{"text_format":"1","workbook":"xlsx","n_sheets":77,"sheets":["ACS_Notes","StartInstruction","ACS_Table_B08303","PopulationCharacteristics","SchoolEnrolEduAttain","HousingCharacteristics","CntyDataLink","CntyQuery","BuildingPermitsSince2000","EmploymentAndWages","EmpVsHUxCounty","HHIncome-10YearComparison","HHIncomeByAge","HHIncomeByTenure","Updates","ACS_Source_Table_List","ACS_Table_B01001","ACS_Table_B01002","ACS_Tbl_B11001_B11002_B25010","ACS_Table_B19001","ACS_Table_B19037","DisabilityByAge","DisabilityByAgePrior5YearEst","DisabilityByAgePrior10YearEst","ACS_Table_B18101","ACS_Table_B18102","ACS_Table_B18103","ACS_Table_B18104","ACS_Table_B18105","ACS_Table_B18106","ACS_Table_B18107","ACS_Table_C18108","ACS_TableB19201_ACS_Tbl_B19202","ACS_Table_B19049","ACS_Table_B25118","ACS_TableB19101_ACS_Tbl_B19113","ACS_Table_B25119","ACS_Table_B25001","ACS_Table_B25003","ACS_Table_B25004","ACS_Table_B25008","ACS_Table_B25024","ACS_Table_B25032","ACS_Table_B25034","ACS_Table_B25041","PovertyCharacteristics","ACS_Table_ B17001","ACS_Table_B17010","ACS_Table_B17017","ACS_Table_B03002","RentalHousingCost","RentalHousingCost-Prior5Yr","RentalHousingCost-Prior10Yr","ACS_Table_B25063_&_B25064","ACS_Table_B25070","ACS_Table_B25074","PlaceOfBirthAndPriorRes","ACS_Table_B05002","ACS_Table_B07003","ACS_Table_B14001","ACS_Table_B15002","PopComparison","DropDownList","CntyQryCensus","SmallTownEmploymentandWages","HousingComparison","Housing_EmploymentComparison","CntyDataLinkPrior5YearEstimates","CntyDataLinkPrior10YearEstimate","StatisticallySignificantCalcs","OwnerHousingCost","OwnerHousingCostPrior5Year","OwnerHousingCostPrior10Year","ACS_Table_B25075_&_B25077","ACS_Table_B25088","ACS_Table_B25091","ACS_Table_B25106"],"not_rendered":{"charts":484,"images":167,"macros":1,"external_links":0,"defined_names":74,"comments":0,"pivot_tables":0},"unopened":[],"bounds":{"document_bytes":16777216,"sheet_cells":100000,"rows_first":2000,"rows_last":500,"rows_between":2000,"halvings":0,"cell_chars":16384,"cell_head_chars":4096},"cells_cut":0,"cells_raw":0,"read":"row_number_cap","date_system":"1900"}

{"sheet":"ACS_Notes","index":0,"n_rows":28,"n_cols":1,"rows_kept":28,"cut":false,"hidden":true,"merged":[[31,120,31,134],[31,135,31,149],[31,150,31,164],[31,165,31,179],[31,240,31,254],[31,180,31,194],[31,195,31,209],[31,210,31,224],[31,225,31,239],[31,60,31,74],[31,75,31,89],[31,90,31,104],[31,105,31,119],[29,0,29,14],[31,15,31,29],[31,30,31,44],[31,45,31,59],[25,0,25,14],[20,0,21,14],[22,0,22,14],[23,0,23,14],[24,0,24,14],[10,0,12,14],[14,0,14,14],[18,0,19,14],[3,0,5,14],[7,0,8,14]]}
["NOTES:"]
[]
[]
["Data are based on a sample and are subject to sampling variability. The degree of uncertainty for an estimate arising from sampling variability is represented through the use of a margin of error. The value shown here is the 90 percent margin of error. The margin of error can be interpreted roughly as providing a 90 percent probability that the interval defined by the estimate minus the margin of error and the estimate plus the margin of error (the lower and upper confidence bounds) contains the true value. In addition to sampling variability, the ACS estimates are subject to nonsampling error (for a discussion of nonsampling variability, see Accuracy of the Data). The effect of nonsampling error is not represented in these tables."]
[]
[]
[]
["In addition to sampling variability, the ACS estimates are subject to nonsampling error (for a discussion of nonsampling variability, see Accuracy of the Data. The link is located at the end of this worksheet.).  The effect of nonsampling error is not represented in these tables."]
[]
[]
["While the 2005-2009 American Community Survey (ACS) data generally reflect the November 2008 Office of Management and Budget (OMB) definitions of metropolitan and micropolitan statistical areas; in certain instances the names, codes, and boundaries of the principal cities shown in ACS tables may differ from the OMB definitions due to differences in the effective dates of the geographic entities."]
[]
[]
[]
["Estimates of urban and rural population, housing units, and characteristics reflect boundaries of urban areas defined based on Census 2000 data.  Boundaries for urban areas have not been updated since Census 2000.  As a result, data for urban and rural areas from the ACS do not necessarily reflect the results of ongoing urbanization."]
[]
["Explanation of Symbols:"]
[]
["1. An '**' entry in the margin of error column indicates that either no sample observations or too few sample observations were available to compute a standard error and thus the margin of error. A statistical test is not appropriate."]
[]
["2. An '-' entry in the estimate column indicates that either no sample observations or too few sample observations were available to compute an estimate, or a ratio of medians cannot be calculated because one or both of the median estimates falls in the lowest interval or upper interval of an open-ended distribution."]
[]
["3. An '-' following a median estimate means the median falls in the lowest interval of an open-ended distribution."]
["4. An '+' following a median estimate means the median falls in the upper interval of an open-ended distribution."]
["5. An '***' entry in the margin of error column indicates that the median falls in the lowest interval or upper interval of an open-ended distribution. A statistical test is not appropriate."]
["6. An '*****' entry in the margin of error column indicates that the estimate is controlled. A statistical test for sampling variability is not appropriate."]
[]
["Accuracy of Data "]

{"sheet":"StartInstruction","index":1,"n_rows":30,"n_cols":16,"rows_kept":30,"cut":false,"hidden":false,"merged":[[30,1,32,3],[29,15,31,18]]}
["Demographic Profiles for Municipalities in Strafford County"]
[]
["To view or print a Demographic Profile follow the steps below"]
[]
[]
["Step 1. ",null,"Select the municipality you wish to"]
[null,null,"Profile from the drop down box below. "]
[]
[]
[]
[]
["Step 2. ",null,"Click one of the profile topic buttons below to review or print"]
[null,null,"the information for the selected geography."]
[null,null,"Don't forget to adjust the axis on charts as necessary. "]
[]
[]
[]
[]
[]
[]
[]
[]
[]
[]
[]
[]
[]
[null,null,null,null,null,null,null,null,null,null,null,null,null,"Updated:",null,"2023-12-07"]
[]
[null,null,null,null,null,null,null,null,null,null,null,null,null,"Next Update:",null,"Spring 2024 Annual Employment Date"]

{"sheet":"ACS_Table_B08303","index":2,"n_rows":40,"n_cols":28,"rows_kept":40,"cut":false,"hidden":true,"merged":[]}
[null,"B08303: TRAVEL TIME TO WORK"]
[null,"Universe: Workers 16 years and over who did not work at home"]
[null,"Data Set: 2006-2010 American Community Survey 3-Year Estimates"]
[]
[null,null,"Barrington",null,"Dover",null,"Durham",null,"Farmington",null,"Lee",null,"Madbury",null,"Middleton",null,"Milton",null,"New Durham",null,"Rochester",null,"Rollinsford",null,"Somersworth",null,"Strafford"]
[null,null,"Esitimate","Margin Of Error","Esitimate","Margin Of Error","Esitimate","Margin Of Error","Esitimate","Margin Of Error","Esitimate","Margin Of Error","Esitimate","Margin Of Error","Esitimate","Margin Of Error","Esitimate","Margin Of Error","Esitimate","Margin Of Error","Esitimate","Margin Of Error","Esitimate","Margin Of Error","Esitimate","Margin Of Error","Esitimate","Margin Of Error"]
[null,"Population Older than 16 not working at hom",4364,462,16409,701,4952,441,3211,401,1919,349,1162,211,667,124,2117,264,1361,207,15107,680,1061,181,6442,524,1857,213]
[null,"Less than 5 minutes",141,113,398,151,402,112,118,136,32,50,11,12,19,14,65,59,12,17,408,193,39,30,96,124,51,40]
[null,"5 to 9 minutes",256,151,1429,336,1107,221,365,266,122,80,100,51,6,7,76,64,76,45,1598,318,94,55,668,231,120,48]
[null,"10 to 14 minutes",525,193,2816,568,632,155,242,162,95,61,193,55,20,12,222,127,50,32,1843,321,124,53,1248,395,121,60]
[null,"15 to 19 minutes",485,175,2962,430,803,171,325,164,302,162,145,82,20,17,327,142,62,34,2210,404,138,54,708,235,62,42]
[null,"20 to 24 minutes",872,245,3237,621,622,178,324,149,301,120,219,81,102,42,139,76,82,41,1512,312,72,46,1022,363,200,81]
[null,"25 to 29 minutes",391,187,1062,284,341,144,246,224,152,95,181,104,32,16,102,67,135,74,1178,235,167,66,476,198,71,43]
[null,"30 to 34 minutes",607,218,1858,523,456,118,608,283,404,172,107,54,110,37,428,140,331,122,2324,413,192,68,710,267,376,131]
[null,"35 to 39 minutes",265,158,691,276,164,96,245,145,95,73,36,32,35,19,117,61,68,38,657,205,32,24,318,161,170,100]
[null,"40 to 44 minutes",282,208,311,147,37,36,103,78,137,110,25,19,29,22,87,75,124,61,528,212,22,16,268,146,128,57]
[null,"45 to 59 minutes",321,175,604,169,201,81,339,178,123,85,42,33,123,43,354,140,309,94,1386,449,49,30,425,177,404,108]
[null,"60 to 89 minutes",70,55,796,281,155,58,296,202,79,87,58,32,110,41,155,88,45,25,1059,275,82,44,348,165,86,57]
[null,"90 or more minutes",149,132,245,129,32,23,0,17,77,117,45,23,61,47,45,45,67,47,404,160,50,29,155,104,68,39]
[]
[]
[]
[]
[]
[]
[]
[]
[]
[]
[]
[]
[]
[]
[]
[]
[]
[]
[]
[null,null,642668,3466,28483,1018,21150,846,36744,934,14089,645,42727,1151,197866,2634,70876,1467,148355,1823,61589,1595,20789,620]
[null,null,"Estimate"]

{"sheet":"PopulationCharacteristics","index":3,"n_rows":64,"n_cols":23,"rows_kept":64,"cut":false,"hidden":true,"merged":[[33,11,33,12],[63,1,63,3],[45,1,45,8],[48,3,48,4],[48,6,48,7],[48,9,48,10],[62,1,62,8],[19,15,19,17],[18,15,18,21],[19,18,19,20],[3,1,3,3],[2,8,2,12],[19,11,19,13],[17,2,18,8]]}
[]
[null,{"$f":"CntyDataLink!A35","v":"Rochester"}]
[null,null,null,null,null,null,"Land Area:",null,{"$f":"((CntyDataLink!F35*10.764)/43560)/640","v":45.151522426394628},null,null,null,null,"Water Area:",{"$f":"((CntyDataLink!G35*10.764)/43560)/640","v":0.6275077169421488}]
[null,"POPULATION CHARACTERISTICS"]
[]
[]
[]
[]
[]
[]
[]
[]
[]
[]
[]
[]
[]
[null,null,{"$f":"\"Source:  US Census; Office of Planning and Devolpment, NH BEA; \"& L20&\", \"&P20&\", and \"&S20&\" American Community Survey Table B01001\"","v":"Source:  US Census; Office of Planning and Devolpment, NH BEA; 2008-2012, 2013-2017, and 2018-2022 American Community Survey Table B01001"}]
[null,"Population ",null,null,null,null,null,null,null,null,null,null,null,"Population by Age ",null,{"$f":"\"Source: \"& L20&\", \"&P20&\", and \"&S20&\"  American Community Survey Tables B01001 and B01002\"","v":"Source: 2008-2012, 2013-2017, and 2018-2022  American Community Survey Tables B01001 and B01002"}]
[null,null,null,null,null,null,null,null,null,null,null,"2008-2012",null,null,null,"2013-2017",null,null,"2018-2022"]
[null,null,1990,2000,2010,2020,"2018-2022",2025,2030,null,null,"Estimate",null,"Margin of Error","Percent Change","Estimate","Margin of Error","Percent Change","Estimate","Margin of Error",null,"Percent Change","Statistically Significant Change"]
[null,null,{"$f":"CntyDataLink!$F$20","v":26630},{"$f":"CntyDataLink!$G$20","v":28461},{"$f":"CntyDataLink!$H$20","v":29752},{"$f":"CntyDataLink!$I$20","v":32492},{"$f":"CntyDataLink!$B$132","v":32317},{"$f":"CntyDataLink!$J$20","v":33801},{"$f":"CntyDataLink!$K$20","v":34894},null,"Under 15 yrs.",{"$f":"CntyDataLinkPrior10YearEstimate!$D$132","v":4630},null,{"$f":"CntyDataLinkPrior10YearEstimate!$E$132","v":474.26891106206824},{"$f":"L22/SUM($L$22:$L$29)","v":0.15521287294669794},{"$f":"CntyDataLinkPrior5YearEstimates!$D$132","v":4974},{"$f":"CntyDataLinkPrior5YearEstimates!$E$132","v":456.55996320308248},{"$f":"P22/SUM($P$22:$P$29)","v":0.16463656825102607},{"$f":"CntyDataLink!$D$132","v":5379},{"$f":"CntyDataLink!$E$132","v":581.30714772829003},{"$f":"S22/SUM($S$22:$S$29)","v":0.16644490515827584},{"$f":"(S22-P22)/P22","v":8.1423401688781663E-2},{"$f":"StatisticallySignificantCalcs!$A3","v":"Y"}]
[null,null,null,null,null,null,null,null,null,null,"15 to 24 yrs.",{"$f":"CntyDataLinkPrior10YearEstimate!$F$132","v":3933},null,{"$f":"CntyDataLinkPrior10YearEstimate!$G$132","v":511.67176978996997},{"$f":"L23/SUM($L$22:$L$29)","v":0.13184713375796178},{"$f":"CntyDataLinkPrior5YearEstimates!$F$132","v":3770},{"$f":"CntyDataLinkPrior5YearEstimates!$G$132","v":478.41404661652649},0.12478485370051635,{"$f":"CntyDataLink!$F$132","v":4073},{"$f":"CntyDataLink!$G$132","v":538.97866377065429},0.12603273818733174,8.0371352785145886E-2,{"$f":"StatisticallySignificantCalcs!$A4","v":"Y"}]
[null,"Percent Change",null,null,null,null,null,null,null,null,"25 to 34 yrs.",{"$f":"CntyDataLinkPrior10YearEstimate!$H$132","v":3447},null,{"$f":"CntyDataLinkPrior10YearEstimate!$I$132","v":360.803270495155},{"$f":"L24/SUM($L$22:$L$29)","v":0.11555481059336238},{"$f":"CntyDataLinkPrior5YearEstimates!$H$132","v":4106},{"$f":"CntyDataLinkPrior5YearEstimates!$I$132","v":404.13116682582154},0.13590626241228651,{"$f":"CntyDataLink!$H$132","v":3883},{"$f":"CntyDataLink!$I$132","v":458.90630852059553},0.12015347959278398,-5.4310764734534826E-2,{"$f":"StatisticallySignificantCalcs!$A5","v":"Y"}]
[null,null,null,{"$f":"C21&\"-2020\"","v":"1990-2020"},{"$f":"D21&\"-2020\"","v":"2000-2020"},{"$f":"E21&\"-2020\"","v":"2010-2020"},{"$f":"F21&\"-2030\"","v":"2020-2030"},{"$f":"G21&\"-\"&H21","v":"2018-2022-2025"},{"$f":"H21&\"-\"&I21","v":"2025-2030"},null,"35 to 44 yrs.",{"$f":"CntyDataLinkPrior10YearEstimate!$J$132","v":4261},null,{"$f":"CntyDataLinkPrior10YearEstimate!$K$132","v":399.48717125835219},0.14284277572913176,{"$f":"CntyDataLinkPrior5YearEstimates!$J$132","v":3942},{"$f":"CntyDataLinkPrior5YearEstimates!$K$132","v":392.77219860881195},0.1304779557791606,{"$f":"CntyDataLink!$J$132","v":4020},{"$f":"CntyDataLink!$K$132","v":491.35628621195031},0.12439273447411579,1.9786910197869101E-2,{"$f":"StatisticallySignificantCalcs!$A6","v":"Y"}]
[null,null,null,{"$f":"(D22-C22)/C22","v":6.8757040931280516E-2},4.5360317627630792E-2,9.2094649099220216E-2,-5.3859411547457839E-3,4.5920103970046727E-2,3.2336321410609152E-2,null,"45 to 54 yrs.",{"$f":"CntyDataLinkPrior10YearEstimate!$L$132","v":4797},null,{"$f":"CntyDataLinkPrior10YearEstimate!$M$132","v":365.38336032173112},0.16081126382836072,{"$f":"CntyDataLinkPrior5YearEstimates!$L$132","v":4300},{"$f":"CntyDataLinkPrior5YearEstimates!$M$132","v":371.33542788158525},0.14232755196610619,{"$f":"CntyDataLink!$L$132","v":4322},{"$f":"CntyDataLink!$M$132","v":461.1594084478815},0.13373766129281803,5.1162790697674414E-3,{"$f":"StatisticallySignificantCalcs!$A7","v":"Y"}]
[null,null,null,null,null,null,null,null,null,null,"55 to 64 yrs.",{"$f":"CntyDataLinkPrior10YearEstimate!$N$132","v":4091},null,{"$f":"CntyDataLinkPrior10YearEstimate!$O$132","v":402.46863231809755},0.13714381495139122,{"$f":"CntyDataLinkPrior5YearEstimates!$N$132","v":3893},{"$f":"CntyDataLinkPrior5YearEstimates!$O$132","v":389.17990698390378},0.12885608367536078,{"$f":"CntyDataLink!$N$132","v":5019},{"$f":"CntyDataLink!$O$132","v":503.87696911051609},0.15530525729492217,0.28923709221679939,{"$f":"StatisticallySignificantCalcs!$A8","v":"Y"}]
[null,null,null,null,null,null,null,null,null,null,"65 to 74 yrs.",{"$f":"CntyDataLinkPrior10YearEstimate!$P$132","v":2698},null,{"$f":"CntyDataLinkPrior10YearEstimate!$Q$132","v":303.27215500273019},9.0445859872611459E-2,{"$f":"CntyDataLinkPrior5YearEstimates!$P$132","v":3047},{"$f":"CntyDataLinkPrior5YearEstimates!$Q$132","v":337.86091813052303},0.10085396531179663,{"$f":"CntyDataLink!$P$132","v":3380},{"$f":"CntyDataLink!$Q$132","v":476.86266366743371},0.10458891605037596,0.10928782408926813,{"$f":"StatisticallySignificantCalcs!$A9","v":"Y"}]
[null,null,null,null,null,null,null,null,null,null,"Over 74 yrs. ",{"$f":"CntyDataLinkPrior10YearEstimate!$R$132","v":1973},null,{"$f":"CntyDataLinkPrior10YearEstimate!$S$132","v":267.87123772439622},6.6141468320482733E-2,{"$f":"CntyDataLinkPrior5YearEstimates!$R$132","v":2180},{"$f":"CntyDataLinkPrior5YearEstimates!$S$132","v":302.93068514100713},7.2156758903746857E-2,{"$f":"CntyDataLink!$R$132","v":2241},{"$f":"CntyDataLink!$S$132","v":377.96031537715703},6.9344307949376488E-2,2.7981651376146791E-2,{"$f":"StatisticallySignificantCalcs!$A10","v":"Y"}]
[null,null,null,null,null,null,null,null,null,null,"Median Age (years)",{"$f":"CntyDataLinkPrior10YearEstimate!$AX132","v":42.6},null,{"$f":"CntyDataLinkPrior10YearEstimate!$AY$132","v":1},null,{"$f":"CntyDataLinkPrior5YearEstimates!$AX132","v":41.1},{"$f":"CntyDataLinkPrior5YearEstimates!$AY$132","v":1},null,{"$f":"CntyDataLink!$AX$132","v":42.6},{"$f":"CntyDataLink!$AY$132","v":1.8}]
[]
[null,"Population By Race",null,null,null,null,null,null,null,null,null,null,"Statistically Significant Change"]
[null,null,null,null,null,null,null,null,null,null,null,null,{"$f":"IF(L36=\"\",\"-\",StatisticallySignificantCalcs!A20)","v":"Y"}]
[null,null,{"$f":"L20","v":"2008-2012"},null,null,{"$f":"P20","v":"2013-2017"},null,null,{"$f":"S20","v":"2018-2022"},null,null,"Statistically Significant Change"]
[null,null,"Estimate","Margin of Error",null,"Estimate","Margin of Error",null,"Estimate","Margin of Error",null,"2012-2022","2017-2022"]
[null,"White",{"$f":"CntyDataLinkPrior10YearEstimate!$AL$132","v":28204},{"$f":"CntyDataLinkPrior10YearEstimate!$AM$132","v":414},{"$f":"IF(C$36=\"-\",\"-\",VALUE(C36/$C$41))","v":0.94549111632584648},{"$f":"CntyDataLinkPrior5YearEstimates!$AL$132","v":28298},{"$f":"CntyDataLinkPrior5YearEstimates!$AM$132","v":439},{"$f":"IF(F$36=\"-\",\"-\",VALUE(F36/$F$41))","v":0.93664768965973788},{"$f":"CntyDataLink!$AL$132","v":29393},{"$f":"CntyDataLink!$AM$132","v":540},{"$f":"IF(I$36=\"-\",\"-\",VALUE(I36/$I$41))","v":0.90952130457653868},{"$f":"StatisticallySignificantCalcs!A20","v":"Y"},{"$f":"StatisticallySignificantCalcs!J20","v":"Y"}]
[null,"Black",{"$f":"CntyDataLinkPrior10YearEstimate!$AN132","v":276},{"$f":"CntyDataLinkPrior10YearEstimate!$AO$132","v":156},{"$f":"IF(C$37=\"-\",\"-\",VALUE(C37/$C$41))","v":9.2524304391552129E-3},{"$f":"CntyDataLinkPrior5YearEstimates!$AN132","v":227},{"$f":"CntyDataLinkPrior5YearEstimates!$AO$132","v":187},{"$f":"IF(F$37=\"-\",\"-\",VALUE(F37/$F$41))","v":7.5135707665828144E-3},{"$f":"CntyDataLink!$AN$132","v":324},{"$f":"CntyDataLink!$AO$132","v":194},{"$f":"IF(I$37=\"-\",\"-\",VALUE(I37/$I$41))","v":1.0025683077018288E-2},{"$f":"StatisticallySignificantCalcs!A21","v":"N"},{"$f":"StatisticallySignificantCalcs!J21","v":"N"}]
[null,"American Indian",{"$f":"CntyDataLinkPrior10YearEstimate!$AP$132","v":33},{"$f":"CntyDataLinkPrior10YearEstimate!$AQ$132","v":37},{"$f":"IF(C$38=\"-\",\"-\",VALUE(C38/$C$41))","v":1.1062688568555146E-3},{"$f":"CntyDataLinkPrior5YearEstimates!$AP$132","v":20},{"$f":"CntyDataLinkPrior5YearEstimates!$AQ$132","v":24},{"$f":"IF(F$38=\"-\",\"-\",VALUE(F38/$F$41))","v":6.6198861379584268E-4},{"$f":"CntyDataLink!$AP$132","v":4},{"$f":"CntyDataLink!$AQ$132","v":8},{"$f":"IF(I$38=\"-\",\"-\",VALUE(I38/$I$41))","v":1.2377386514837393E-4},{"$f":"StatisticallySignificantCalcs!A22","v":"N"},{"$f":"StatisticallySignificantCalcs!J22","v":"N"}]
[null,"Asian &Pacific Is.",{"$f":"CntyDataLinkPrior10YearEstimate!$AR$132","v":194},{"$f":"CntyDataLinkPrior10YearEstimate!$AS$132","v":163.78339354159201},{"$f":"IF(C$39=\"-\",\"-\",VALUE(C39/$C$41))","v":6.5035199463627218E-3},{"$f":"CntyDataLinkPrior5YearEstimates!$AR$132","v":408},{"$f":"CntyDataLinkPrior5YearEstimates!$AS$132","v":235.22754940695191},{"$f":"IF(F$39=\"-\",\"-\",VALUE(F39/$F$41))","v":1.3504567721435191E-2},{"$f":"CntyDataLink!$AR$132","v":713},{"$f":"CntyDataLink!$AS$132","v":353.47560028946833},{"$f":"IF(I$39=\"-\",\"-\",VALUE(I39/$I$41))","v":2.206269146269765E-2},{"$f":"StatisticallySignificantCalcs!A23","v":"Y"},{"$f":"StatisticallySignificantCalcs!J23","v":"N"}]
[null,"Other*",{"$f":"CntyDataLinkPrior10YearEstimate!$AT$132","v":537},{"$f":"CntyDataLinkPrior10YearEstimate!$AU$132","v":239.58505796480713},{"$f":"IF(C$40=\"-\",\"-\",VALUE(C40/$C$41))","v":1.8002011397921555E-2},{"$f":"CntyDataLinkPrior5YearEstimates!$AT$132","v":692},{"$f":"CntyDataLinkPrior5YearEstimates!$AU$132","v":316.12813857674865},{"$f":"IF(F$40=\"-\",\"-\",VALUE(F40/$F$41))","v":2.2904806037336158E-2},{"$f":"CntyDataLink!$AT$132","v":1059},{"$f":"CntyDataLink!$AU$132","v":294.06461874900896},{"$f":"IF(I$40=\"-\",\"-\",VALUE(I40/$I$41))","v":3.2769130798031995E-2},{"$f":"StatisticallySignificantCalcs!A24","v":"Y"},{"$f":"StatisticallySignificantCalcs!J24","v":"N"}]
[null,"Total Population",{"$f":"CntyDataLinkPrior10YearEstimate!$B$132","v":29830},{"$f":"CntyDataLinkPrior10YearEstimate!$C$132","v":29},null,{"$f":"CntyDataLinkPrior5YearEstimates!$B$132","v":30212},{"$f":"CntyDataLinkPrior5YearEstimates!$C$132","v":21},null,{"$f":"CntyDataLink!$B$132","v":32317},{"$f":"CntyDataLink!$C$132","v":37}]
[null,"Hispanic",{"$f":"CntyDataLinkPrior10YearEstimate!$AV$132","v":590},{"$f":"CntyDataLinkPrior10YearEstimate!$AW$132","v":263},{"$f":"IF(C$42=\"-\",\"-\",VALUE(C42/$C$41))","v":1.9778746228628897E-2},{"$f":"CntyDataLinkPrior5YearEstimates!$AV132","v":567},{"$f":"CntyDataLinkPrior5YearEstimates!$AW$132","v":270},{"$f":"IF(F$42=\"-\",\"-\",VALUE(F42/$F$41))","v":1.8767377201112143E-2},{"$f":"CntyDataLink!$AV$132","v":824},{"$f":"CntyDataLink!$AW$132","v":263},{"$f":"IF(I$42=\"-\",\"-\",VALUE(I42/$I$41))","v":2.5497416220565026E-2},{"$f":"StatisticallySignificantCalcs!A26","v":"Y"},{"$f":"StatisticallySignificantCalcs!J26","v":"Y"}]
[]
[null,"*","Other includes population of 2 or more races"]
[]
[null,{"$f":"\"Source: \"& L20&\", \"&P20&\", and \"&S20&\" American Community Survey Table B03002\"","v":"Source: 2008-2012, 2013-2017, and 2018-2022 American Community Survey Table B03002"}]
[]
[null,null,"Households and Families"]
[null,null,null,{"$f":"L20","v":"2008-2012"},null,null,{"$f":"P20","v":"2013-2017"},null,null,{"$f":"S20","v":"2018-2022"},null,null,null,"Percent Change",null,"Percent Change"]
[null,null,null,"Estimate","Margin of Error",null,"Estimate","Margin of Error",null,"Estimate","Margin of Error",null,null,{"$f":"L35","v":"2012-2022"},null,{"$f":"M35","v":"2017-2022"}]
[null,null,"Total Households",{"$f":"CntyDataLinkPrior10YearEstimate!$T$132","v":29577},{"$f":"CntyDataLinkPrior10YearEstimate!$U$132","v":64},null,{"$f":"CntyDataLinkPrior5YearEstimates!$T$132","v":12837},{"$f":"CntyDataLinkPrior5YearEstimates!$U$132","v":353},null,{"$f":"CntyDataLink!$T$132","v":13471},{"$f":"CntyDataLink!$U$132","v":518},null,null,{"$f":"(J51-D51)/D51","v":-0.54454474760793858},null,{"$f":"(J51-G51)/G51","v":4.9388486406481268E-2}]
[null,null,"Persons per Household",{"$f":"CntyDataLinkPrior10YearEstimate!$BD$132","v":2.3199999999999998},{"$f":"CntyDataLinkPrior10YearEstimate!$BE$132","v":7.0000000000000007E-2},null,{"$f":"CntyDataLinkPrior5YearEstimates!$BD$132","v":2.3390979200747837},{"$f":"CntyDataLinkPrior5YearEstimates!$BE$132","v":9.2042299123706886E-2},null,{"$f":"CntyDataLink!$BD$132","v":2.3851978323806695},{"$f":"CntyDataLink!$BE$132","v":9.2042299123706886E-2},null,null,{"$f":"(J52-D52)/D52","v":2.8102513957185205E-2},null,{"$f":"(J52-G52)/G52","v":1.9708414902276501E-2}]
[null,null,"Family Households",{"$f":"CntyDataLinkPrior10YearEstimate!$V$132","v":23065},{"$f":"CntyDataLinkPrior10YearEstimate!$U$132","v":64},null,{"$f":"CntyDataLinkPrior5YearEstimates!$V$132","v":7943},{"$f":"CntyDataLinkPrior5YearEstimates!$U$132","v":353},null,{"$f":"CntyDataLink!$V$132","v":8476},{"$f":"CntyDataLink!$U$132","v":518},null,null,-0.63251680034684588,null,{"$f":"(J53-G53)/G53","v":6.7103109656301146E-2}]
[null,null,"Persons per Family Household",{"$f":"CntyDataLinkPrior10YearEstimate!$BF$132","v":2.42},{"$f":"CntyDataLinkPrior10YearEstimate!$BG$132","v":0.09},null,{"$f":"CntyDataLinkPrior5YearEstimates!$BF$132","v":2.9880397834571322},{"$f":"CntyDataLinkPrior5YearEstimates!$BG$132","v":0.17184018017954392},null,{"$f":"CntyDataLink!$BF$132","v":3.0338603114676732},{"$f":"CntyDataLink!$BG$132","v":0.17184018017954392},null,null,0.2536612857304435,null,1.5334644560028966E-2]
[null,null,"Married-Couple Family Hh",{"$f":"CntyDataLinkPrior10YearEstimate!$X$132","v":16370},{"$f":"CntyDataLinkPrior10YearEstimate!$Y$132","v":1023},null,{"$f":"CntyDataLinkPrior5YearEstimates!$X$132","v":6079},{"$f":"CntyDataLinkPrior5YearEstimates!$Y$132","v":344},null,{"$f":"CntyDataLink!$X$132","v":6382},{"$f":"CntyDataLink!$Y$132","v":444},null,null,-0.61014050091631034,null,4.9843724296759338E-2]
[null,null,"Single-Parent Family Hh",{"$f":"CntyDataLinkPrior10YearEstimate!$Z$132","v":16231},{"$f":"CntyDataLinkPrior10YearEstimate!$AA$132","v":1008},null,{"$f":"CntyDataLinkPrior5YearEstimates!$Z$132","v":1864},{"$f":"CntyDataLinkPrior5YearEstimates!$AA$132","v":266},null,{"$f":"CntyDataLink!$Z$132","v":2094},{"$f":"CntyDataLink!$AA$132","v":330},null,null,-0.8709876162898158,null,0.12339055793991416]
[null,null,"Non-Family Households",{"$f":"CntyDataLinkPrior10YearEstimate!$AF$132","v":1595},{"$f":"CntyDataLinkPrior10YearEstimate!$AG$132","v":538},null,{"$f":"CntyDataLinkPrior5YearEstimates!$AF$132","v":4894},{"$f":"CntyDataLinkPrior5YearEstimates!$AG$132","v":520},null,{"$f":"CntyDataLink!$AF$132","v":4995},{"$f":"CntyDataLink!$AG$132","v":617},null,null,2.1316614420062696,null,2.0637515324887619E-2]
[null,null,"Persons per Non-Family Hh",{"$f":"CntyDataLinkPrior10YearEstimate!$BH$132","v":2.08},{"$f":"CntyDataLinkPrior10YearEstimate!$BI$132","v":0.14000000000000001},null,{"$f":"CntyDataLinkPrior5YearEstimates!$BH$132","v":1.2858602370249286},{"$f":"CntyDataLinkPrior5YearEstimates!$BI$132","v":0.22744495571615367},null,{"$f":"CntyDataLink!$BH$132","v":1.2844844844844845},{"$f":"CntyDataLink!$BI$132","v":0.22744495571615367},null,null,-0.38245938245938249,null,-1.0699083001642076E-3]
[]
[]
[null,"As a result of changes in the American Community Survey, direct comparisons between the data should be made with caution."]
[]
[null,{"$f":"\"Source: \"& L20&\", \"&P20&\", and \"&S20&\" American Community Survey Table B11001\"","v":"Source: 2008-2012, 2013-2017, and 2018-2022 American Community Survey Table B11001"}]
[null,"POPULATION CHARACTERISTICS"]

{"sheet":"SchoolEnrolEduAttain","index":4,"n_rows":67,"n_cols":14,"rows_kept":67,"cut":false,"hidden":true,"merged":[[49,5,49,7],[20,5,20,7],[20,8,20,10],[20,11,20,13],[49,8,49,10]]}
[]
[null,null,{"$f":"CntyDataLink!A50","v":"Rochester"}]
[null,null,"SOCIAL CHARACTERISTICS"]
[]
[]
[]
[]
[]
[]
[]
[]
[]
[]
[]
[]
[]
[]
[]
[]
[]
[null,null,"School Enrollment",null,null,"2008-2012",null,null,"2013-2017",null,null,"2018-2022"]
[null,null,null,null,null,"Estimate"," Margin of Error","Percent of Population","Estimate"," Margin of Error","Percent of Population","Estimate"," Margin of Error","Percent of Population"]
[null,null,"Population 3 years and over",null,null,{"$f":"CntyDataLinkPrior10YearEstimate!$B$140","v":29014},{"$f":"CntyDataLinkPrior10YearEstimate!$C$140","v":180},null,{"$f":"CntyDataLinkPrior5YearEstimates!$B$140","v":29091},{"$f":"CntyDataLinkPrior5YearEstimates!$C$140","v":218},null,{"$f":"CntyDataLink!$B$140","v":31737},{"$f":"CntyDataLink!$C$140","v":163}]
[null,null,"Population 3 years & over enrolled in school",null,null,{"$f":"CntyDataLinkPrior10YearEstimate!$D$140","v":6311},{"$f":"CntyDataLinkPrior10YearEstimate!$E$140","v":455},{"$f":"F24/$F$23","v":0.21751568208451091},{"$f":"CntyDataLinkPrior5YearEstimates!$D$140","v":5985},{"$f":"CntyDataLinkPrior5YearEstimates!$E$140","v":520},{"$f":"I24/$I$23","v":0.20573373208208726},{"$f":"CntyDataLink!$D$140","v":7488},{"$f":"CntyDataLink!$E$140","v":685},{"$f":"L24/$L$23","v":0.23593912468097172}]
[null,null,"Preprimary (Nursery, Preschool, Kindergarten)",null,null,{"$f":"CntyDataLinkPrior10YearEstimate!$F$140","v":573},{"$f":"CntyDataLinkPrior10YearEstimate!$G$140","v":154.26276284314372},{"$f":"F25/$F$23","v":1.9749086647825188E-2},{"$f":"CntyDataLinkPrior5YearEstimates!$F$140","v":493},{"$f":"CntyDataLinkPrior5YearEstimates!$G$140","v":174.01149387324966},{"$f":"I25/$I$23","v":1.6946822041181121E-2},{"$f":"CntyDataLink!$F$140","v":995},{"$f":"CntyDataLink!$G$140","v":253.14817795117546},{"$f":"L25/$L$23","v":3.1351419478841729E-2}]
[null,null,"        Nursery school and Preschool",null,null,{"$f":"CntyDataLinkPrior10YearEstimate!$H$140","v":226},{"$f":"CntyDataLinkPrior10YearEstimate!$I$140","v":89},7.789343075756531E-3,{"$f":"CntyDataLinkPrior5YearEstimates!$H$140","v":279},{"$f":"CntyDataLinkPrior5YearEstimates!$I$140","v":138},9.5905950293905338E-3,{"$f":"CntyDataLink!$H$140","v":61},{"$f":"CntyDataLink!$I$140","v":27},1.9220468223209502E-3]
[null,null,"        Kindergarten",null,null,{"$f":"CntyDataLinkPrior10YearEstimate!$J$140","v":347},{"$f":"CntyDataLinkPrior10YearEstimate!$K$140","v":126},1.1959743572068656E-2,{"$f":"CntyDataLinkPrior5YearEstimates!$J$140","v":214},{"$f":"CntyDataLinkPrior5YearEstimates!$K$140","v":106},7.3562270117905884E-3,{"$f":"CntyDataLink!$J$140","v":11},{"$f":"CntyDataLink!$K$140","v":13},3.4659860730377795E-4]
[null,null,"Elementary through High school",null,null,{"$f":"CntyDataLinkPrior10YearEstimate!$P$140","v":4544},{"$f":"CntyDataLinkPrior10YearEstimate!$Q$140","v":442.59462265147323},0.15661404839043219,{"$f":"CntyDataLinkPrior5YearEstimates!$P$140","v":4077},{"$f":"CntyDataLinkPrior5YearEstimates!$Q$140","v":456.24006838505539},0.14014643704238425,{"$f":"CntyDataLink!$P$140","v":4711},{"$f":"CntyDataLink!$Q$140","v":522.01628327093397},0.14843873081891798]
[null,null,"        Elementary school (grades 1-8)",null,null,{"$f":"CntyDataLinkPrior10YearEstimate!$L$140","v":2930},{"$f":"CntyDataLinkPrior10YearEstimate!$M$140","v":343.582595601116},0.10098573102640104,{"$f":"CntyDataLinkPrior5YearEstimates!$L$140","v":2463},{"$f":"CntyDataLinkPrior5YearEstimates!$M$140","v":372.80826171103024},8.4665360420748681E-2,{"$f":"CntyDataLink!$L$140","v":3127},{"$f":"CntyDataLink!$M$140","v":453.80282061706049},9.852853136717396E-2]
[null,null,"        High school (grades 9-12)",null,null,{"$f":"CntyDataLinkPrior10YearEstimate!$N$140","v":1614},{"$f":"CntyDataLinkPrior10YearEstimate!$O$140","v":279},5.5628317364031156E-2,{"$f":"CntyDataLinkPrior5YearEstimates!$N$140","v":1614},{"$f":"CntyDataLinkPrior5YearEstimates!$O$140","v":263},5.548107662163556E-2,{"$f":"CntyDataLink!$N$140","v":1584},{"$f":"CntyDataLink!$O$140","v":258},4.991019945174402E-2]
[null,null,"College or Graduate School",null,null,{"$f":"CntyDataLinkPrior10YearEstimate!$R$140","v":1194},{"$f":"CntyDataLinkPrior10YearEstimate!$S$140","v":281.78360491696463},4.1152547046253533E-2,{"$f":"CntyDataLinkPrior5YearEstimates!$R$140","v":1415},{"$f":"CntyDataLinkPrior5YearEstimates!$S$140","v":327.49351138610365},4.864047299852188E-2,{"$f":"CntyDataLink!$R$140","v":1782},{"$f":"CntyDataLink!$S$140","v":331.82073473488663},5.6148974383212022E-2]
[]
[null,null,{"$f":"\"Source: \"&F21&\", \"& I21&\" and \"&L21&\" American Community Survey Table B14001\"","v":"Source: 2008-2012, 2013-2017 and 2018-2022 American Community Survey Table B14001"}]
[]
[]
[]
[]
[]
[]
[]
[]
[]
[]
[]
[]
[]
[]
[]
[]
[null,null,"Educational Attainment",null,null,{"$f":"F21","v":"2008-2012"},null,null,{"$f":"I21","v":"2013-2017"},null,null,{"$f":"L21","v":"2018-2022"}]
[null,null,null,null,null,"Estimate"," Margin of Error","Percent of Population","Estimate"," Margin of Error","Percent of Population","Estimate"," Margin of Error","Percent of Population"]
[null,null,"Population 25 years and over",null,null,{"$f":"CntyDataLinkPrior10YearEstimate!$V$140","v":20844},{"$f":"CntyDataLinkPrior10YearEstimate!$W$140","v":426},null,{"$f":"CntyDataLinkPrior5YearEstimates!$V$140","v":21589},{"$f":"CntyDataLinkPrior5YearEstimates!$W$140","v":436},null,{"$f":"CntyDataLink!$V$140","v":22865},{"$f":"CntyDataLink!$W$140","v":609}]
[null,null,"Less than 9th Grade",null,null,{"$f":"CntyDataLinkPrior10YearEstimate!$X$140","v":747},{"$f":"CntyDataLinkPrior10YearEstimate!$Y$140","v":190.23669467271554},{"$f":"F53/$F$52","v":3.5837651122625214E-2},{"$f":"CntyDataLinkPrior5YearEstimates!$X$140","v":448},{"$f":"CntyDataLinkPrior5YearEstimates!$Y$140","v":186.1531627450901},{"$f":"I53/$I$52","v":2.0751308536754828E-2},{"$f":"CntyDataLink!$X$140","v":553},{"$f":"CntyDataLink!$Y$140","v":253.40876070096709},{"$f":"L53/$L$52","v":2.4185436256286903E-2}]
[null,null,"9th to 12th Grade, no Diploma",null,null,{"$f":"CntyDataLinkPrior10YearEstimate!$Z$140","v":1482},{"$f":"CntyDataLinkPrior10YearEstimate!$AA$140","v":274.38112179958739},{"$f":"F54/$F$52","v":7.1099597006332754E-2},{"$f":"CntyDataLinkPrior5YearEstimates!$Z$140","v":1693},{"$f":"CntyDataLinkPrior5YearEstimates!$AA$140","v":318.23104813955536},{"$f":"I54/$I$52","v":7.8419565519477513E-2},{"$f":"CntyDataLink!$Z$140","v":991},{"$f":"CntyDataLink!$AA$140","v":229.23132421202823},{"$f":"L54/$L$52","v":4.3341351410452658E-2}]
[null,null,"High School Graduate ",null,null,{"$f":"CntyDataLinkPrior10YearEstimate!$AB$140","v":7945},{"$f":"CntyDataLinkPrior10YearEstimate!$AC$140","v":449.71991283464422},0.38116484360007674,{"$f":"CntyDataLinkPrior5YearEstimates!$AB$140","v":7739},{"$f":"CntyDataLinkPrior5YearEstimates!$AC$140","v":511.4782497819433},0.35846959099541431,{"$f":"CntyDataLink!$AB$140","v":7909},{"$f":"CntyDataLink!$AC$140","v":689.42947427565059},0.3458998469276186]
[null,null,"Some College, No Degree",null,null,{"$f":"CntyDataLinkPrior10YearEstimate!$AD$140","v":4531},{"$f":"CntyDataLinkPrior10YearEstimate!$AE$140","v":408.57190309662752},0.21737670312799848,{"$f":"CntyDataLinkPrior5YearEstimates!$AD$140","v":4778},{"$f":"CntyDataLinkPrior5YearEstimates!$AE$140","v":505.38994845564548},0.22131641113530037,{"$f":"CntyDataLink!$AD$140","v":4779},{"$f":"CntyDataLink!$AE$140","v":567.75875158380427},0.20900940301771267]
[null,null,"Associate Degree",null,null,{"$f":"CntyDataLinkPrior10YearEstimate!$AF$140","v":2071},{"$f":"CntyDataLinkPrior10YearEstimate!$AG$140","v":281.81199406696658},9.9357129149875267E-2,{"$f":"CntyDataLinkPrior5YearEstimates!$AF$140","v":2007},{"$f":"CntyDataLinkPrior5YearEstimates!$AG$140","v":314.66966806478189},9.2964009449256563E-2,{"$f":"CntyDataLink!$AF$140","v":2796},{"$f":"CntyDataLink!$AG$140","v":431.29224430773155},0.12228296523070195]
[null,null,"Bachelor's Degree",null,null,{"$f":"CntyDataLinkPrior10YearEstimate!$AH$140","v":2759},{"$f":"CntyDataLinkPrior10YearEstimate!$AI$140","v":323.32182110089633},0.13236422951448859,{"$f":"CntyDataLinkPrior5YearEstimates!$AH$140","v":3516},{"$f":"CntyDataLinkPrior5YearEstimates!$AI$140","v":369.49966170485192},0.16286071610542405,{"$f":"CntyDataLink!$AH$140","v":4055},{"$f":"CntyDataLink!$AI$140","v":474.60509900337144},0.17734528755740214]
[null,null,"Graduate or Professional Degree",null,null,{"$f":"CntyDataLinkPrior10YearEstimate!$AJ$140","v":645},{"$f":"CntyDataLinkPrior10YearEstimate!$AK$140","v":143.9791651594077},3.0944156591824985E-2,{"$f":"CntyDataLinkPrior5YearEstimates!$AJ$140","v":1229},{"$f":"CntyDataLinkPrior5YearEstimates!$AK$140","v":227.442300375282},5.6927138820695722E-2,{"$f":"CntyDataLink!$AJ$140","v":1519},{"$f":"CntyDataLink!$AK$140","v":281.43205219022229},6.6433413514104533E-2]
[]
[null,null,"Percent of High School Graduate or Higher",null,null,null,null,{"$f":"SUM(F55:F59)/F52","v":0.86120706198426411},null,null,{"$f":"SUM(I55:I59)/I52","v":0.89253786650609102},null,null,{"$f":"SUM(L55:L59)/L52","v":0.92097091624753991}]
[null,null,"Percent of Bachelor's Degree or Higher",null,null,null,null,{"$f":"SUM(F58:F59)/F52","v":0.16330838610631357},null,null,{"$f":"SUM(I58:I59)/I52","v":0.2197878549261198},null,null,{"$f":"SUM(L58:L59)/L52","v":0.24377870107150668}]
[]
[null,null,{"$f":"\"Source: \"&F21&\", \"&I21&\" and \"&L21&\" American Community Survey Table B15002\"","v":"Source: 2008-2012, 2013-2017 and 2018-2022 American Community Survey Table B15002"},null,null,null,null,"Data from the American Community Survey are estimates"]
[]
[null,null,"As a result of changes in the American Community Survey, direct comparisons between the data should be made with caution."]
[null,null,"be made with caution."]

{"sheet":"HousingCharacteristics","index":5,"n_rows":112,"n_cols":15,"rows_kept":112,"cut":false,"hidden":true,"merged":[[29,13,29,14],[68,13,68,14],[85,2,85,4],[85,6,85,8],[85,10,85,12],[29,2,29,4],[29,5,29,7],[29,8,29,10],[68,3,68,5],[68,6,68,8],[68,9,68,12]]}
[]
[null,{"$f":"CntyDataLink!$A35","v":"Rochester"}]
[]
[null,"HOUSING CHARACTERISTICS"]
[]
[]
[]
[]
[]
[]
[]
[]
[]
[]
[]
[]
[]
[]
[]
[]
[]
[]
[]
[]
[]
[]
[null,null,null,{"$f":"\"Source:  \"& \" \"&D69&\", \"&G69&\" and \"&J69& \" American Community Survey Table B25004; B25024; B25032\"","v":"Source:   2008-2012, 2013-2017 and 2018-2022 American Community Survey Table B25004; B25024; B25032"}]
[null,"Units by Tenure & Vacancy"]
[]
[null,null,"2008-2012",null,null,"2013-2017",null,null,"2018-2022",null,null,null,null,"Statistically Significant Change"]
[null,null,"Estimate","Margin of Error","%","Estimate","Margin of Error","%","Estimate","Margin of Error","%","% Change",null,"2012-2022","2017-2022"]
[null,"Total Units",{"$f":"CntyDataLinkPrior10YearEstimate!$B$108","v":14003},{"$f":"CntyDataLinkPrior5YearEstimates!$C$108","v":337},null,{"$f":"CntyDataLinkPrior5YearEstimates!$B$108","v":13661},{"$f":"CntyDataLinkPrior5YearEstimates!$C$108","v":337},null,{"$f":"CntyDataLink!$B$108","v":14192},{"$f":"CntyDataLink!$C$108","v":482},null,{"$f":"IF(I32=\"-\",\"-\",(I32-C32)/C32)","v":1.3497107762622295E-2},null,{"$f":"StatisticallySignificantCalcs!$A62","v":"N"},{"$f":"StatisticallySignificantCalcs!$J62","v":"N"}]
[null,"Occupied Units",{"$f":"CntyDataLinkPrior10YearEstimate!$D$108","v":12762},{"$f":"CntyDataLinkPrior5YearEstimates!$E$108","v":353},{"$f":"ROUND(C33/C32,2)*100&\"% of Total\"","v":"91% of Total"},{"$f":"CntyDataLinkPrior5YearEstimates!$D$108","v":12837},{"$f":"CntyDataLinkPrior5YearEstimates!$E$108","v":353},{"$f":"ROUND(F33/F32,2)*100&\"% of Total\"","v":"94% of Total"},{"$f":"CntyDataLink!$D$108","v":13471},{"$f":"CntyDataLink!$E$108","v":518},{"$f":"ROUND(I33/I32,2)*100&\"% of Total\"","v":"95% of Total"},{"$f":"IF(I33=\"-\",\"-\",(I33-C33)/C33)","v":5.5555555555555552E-2},null,{"$f":"StatisticallySignificantCalcs!$A63","v":"Y"},{"$f":"StatisticallySignificantCalcs!$J63","v":"Y"}]
[null,"Owner Occupied",{"$f":"CntyDataLinkPrior10YearEstimate!$F$108","v":8858},{"$f":"CntyDataLinkPrior5YearEstimates!$G$108","v":395},{"$f":"ROUND(C34/C33,2)*100&\"% of Occ.\"","v":"69% of Occ."},{"$f":"CntyDataLinkPrior5YearEstimates!$F$108","v":8308},{"$f":"CntyDataLinkPrior5YearEstimates!$G$108","v":395},{"$f":"ROUND(F34/F33,2)*100&\"% of Occ.\"","v":"65% of Occ."},{"$f":"CntyDataLink!$F$108","v":8795},{"$f":"CntyDataLink!$G$108","v":577},{"$f":"ROUND(I34/I33,2)*100&\"% of Occ.\"","v":"65% of Occ."},{"$f":"IF(I34=\"-\",\"-\",(I34-C34)/C34)","v":-7.1122149469406183E-3},null,{"$f":"StatisticallySignificantCalcs!$A64","v":"N"},{"$f":"StatisticallySignificantCalcs!$J64","v":"N"}]
[null,"Renter Occupied",{"$f":"CntyDataLinkPrior10YearEstimate!$H$108","v":3904},{"$f":"CntyDataLinkPrior5YearEstimates!$I$108","v":385},{"$f":"ROUND(C35/C33,2)*100&\"% of Occ.\"","v":"31% of Occ."},{"$f":"CntyDataLinkPrior5YearEstimates!$H$108","v":4529},{"$f":"CntyDataLinkPrior5YearEstimates!$I$108","v":385},{"$f":"ROUND(F35/F33,2)*100&\"% of Occ.\"","v":"35% of Occ."},{"$f":"CntyDataLink!$H$108","v":4676},{"$f":"CntyDataLink!$I$108","v":519},{"$f":"ROUND(I35/I33,2)*100&\"% of Occ.\"","v":"35% of Occ."},{"$f":"IF(I35=\"-\",\"-\",(I35-C35)/C35)","v":0.19774590163934427},null,{"$f":"StatisticallySignificantCalcs!$A65","v":"Y"},{"$f":"StatisticallySignificantCalcs!$J65","v":"N"}]
[null,"Vacant Units",{"$f":"CntyDataLinkPrior10YearEstimate!$J$108","v":1241},{"$f":"CntyDataLinkPrior5YearEstimates!$K$108","v":248},{"$f":"ROUND(C36/C32,2)*100&\"% of Total\"","v":"9% of Total"},{"$f":"CntyDataLinkPrior5YearEstimates!$J$108","v":824},{"$f":"CntyDataLinkPrior5YearEstimates!$K$108","v":248},{"$f":"ROUND(F36/F32,2)*100&\"% of Total\"","v":"6% of Total"},{"$f":"CntyDataLink!$J$108","v":721},{"$f":"CntyDataLink!$K$108","v":226},{"$f":"ROUND(I36/I32,2)*100&\"% of Total\"","v":"5% of Total"},{"$f":"IF(I36=\"-\",I36,VALUE((I36-C36)/C36))","v":-0.41901692183722805},null,{"$f":"StatisticallySignificantCalcs!$A66","v":"Y"},{"$f":"StatisticallySignificantCalcs!$J66","v":"N"}]
[null,"Vacant For Sale",{"$f":"CntyDataLinkPrior10YearEstimate!$P$108","v":189},{"$f":"CntyDataLinkPrior5YearEstimates!$Q$108","v":133},{"$f":"ROUND(C37/(C$36),3)*100&\"% Vac.\"","v":"15.2% Vac."},{"$f":"CntyDataLinkPrior5YearEstimates!$P$108","v":197},{"$f":"CntyDataLinkPrior5YearEstimates!$Q$108","v":133},{"$f":"ROUND(F37/(F$36),3)*100&\"% Vac.\"","v":"23.9% Vac."},{"$f":"CntyDataLink!$P$108","v":147},{"$f":"CntyDataLink!$Q$108","v":132},{"$f":"ROUND(I37/(I$36),3)*100&\"% Vac.\"","v":"20.4% Vac."},{"$f":"IF(I37=\"-\",I37,VALUE((I37-C37)/C37))","v":-0.22222222222222221},null,{"$f":"StatisticallySignificantCalcs!$A67","v":"N"},{"$f":"StatisticallySignificantCalcs!$J67","v":"N"}]
[null,"Vacant For Rent",{"$f":"CntyDataLinkPrior10YearEstimate!$L$108","v":252},{"$f":"CntyDataLinkPrior5YearEstimates!$M$108","v":146},{"$f":"ROUND(C38/(C$36),3)*100&\"% Vac.\"","v":"20.3% Vac."},{"$f":"CntyDataLinkPrior5YearEstimates!$L$108","v":258},{"$f":"CntyDataLinkPrior5YearEstimates!$M$108","v":146},{"$f":"ROUND(F38/(F$36),3)*100&\"% Vac.\"","v":"31.3% Vac."},{"$f":"CntyDataLink!$L$108","v":264},{"$f":"CntyDataLink!$M$108","v":158},{"$f":"ROUND(I38/(I$36),3)*100&\"% Vac.\"","v":"36.6% Vac."},{"$f":"IF(I38=\"-\",I38,VALUE((I38-C38)/C38))","v":4.7619047619047616E-2},null,{"$f":"StatisticallySignificantCalcs!$A68","v":"N"},{"$f":"StatisticallySignificantCalcs!$J68","v":"N"}]
[null,"Vacant Seasonal",{"$f":"CntyDataLinkPrior10YearEstimate!$T$108","v":222},{"$f":"CntyDataLinkPrior5YearEstimates!$U$108","v":24},{"$f":"ROUND(C39/(C$36),3)*100&\"% Vac.\"","v":"17.9% Vac."},{"$f":"CntyDataLinkPrior5YearEstimates!$T$108","v":0},{"$f":"CntyDataLinkPrior5YearEstimates!$U$108","v":24},{"$f":"ROUND(F39/(F$36),3)*100&\"% Vac.\"","v":"0% Vac."},{"$f":"CntyDataLink!$T$108","v":62},{"$f":"CntyDataLink!$U$108","v":74},{"$f":"ROUND(I39/(I$36),3)*100&\"% Vac.\"","v":"8.6% Vac."},{"$f":"IF(I39=\"-\",I39,VALUE((I39-C39)/C39))","v":-0.72072072072072069},null,{"$f":"StatisticallySignificantCalcs!$A69","v":"Y"},{"$f":"StatisticallySignificantCalcs!$J69","v":"N"}]
[]
[null,"Data from the American Community Survey are estimates"]
[]
[]
[null,"HOUSING CHARACTERISTICS"]
[]
[]
[]
[]
[]
[]
[]
[]
[]
[]
[]
[]
[]
[]
[]
[]
[]
[]
[]
[]
[null,null,null,{"$f":"\"Source: \"& \" \"&D69&\", \"&G69&\" and \"&J69& \"  American Community Survey Table B25024; B25032\"","v":"Source:  2008-2012, 2013-2017 and 2018-2022  American Community Survey Table B25024; B25032"}]
[]
[null,null,"Units by Type"]
[]
[null,null,null,{"$f":"C30","v":"2008-2012"},null,null,{"$f":"F30","v":"2013-2017"},null,null,{"$f":"I30","v":"2018-2022"},null,null,null,"Statistically Significant Change"]
[null,null,null,"Estimate","Margin of Error","% of Total","Estimate","Margin of Error","% of Total","Estimate","Margin of Error","% of Total","% Change",{"$f":"N31","v":"2012-2022"},{"$f":"O31","v":"2017-2022"}]
[null,null,"Total Units",{"$f":"CntyDataLinkPrior10YearEstimate!$B$108","v":14003},{"$f":"CntyDataLinkPrior10YearEstimate!$C$108","v":458},null,{"$f":"CntyDataLinkPrior5YearEstimates!$B$108","v":13661},{"$f":"CntyDataLinkPrior5YearEstimates!$C$108","v":337},null,{"$f":"CntyDataLink!$B$108","v":14192},{"$f":"CntyDataLink!$C$108","v":482},null,{"$f":"IF(J71=\"-\",\"-\",($J71-$D71)/$D71)","v":1.3497107762622295E-2},{"$f":"StatisticallySignificantCalcs!$A70","v":"N"},{"$f":"StatisticallySignificantCalcs!$J70","v":"N"}]
[null,null,"Single Family Units",{"$f":"CntyDataLinkPrior10YearEstimate!$AT$108","v":6934},{"$f":"CntyDataLinkPrior10YearEstimate!$AU$108","v":443},{"$f":"IF(D72=\"-\",\"-\",($D$72/$D$71))","v":0.49517960437049202},{"$f":"CntyDataLinkPrior5YearEstimates!$AT$108","v":6662},{"$f":"CntyDataLinkPrior5YearEstimates!$AU$108","v":372},{"$f":"IF(G72=\"-\",\"-\",($G$72/$G$71))","v":0.48766561745113829},{"$f":"CntyDataLink!$AT$108","v":6983},{"$f":"CntyDataLink!$AU$108","v":455},{"$f":"IF(J72=\"-\",\"-\",($J$72/$J$71))","v":0.4920377677564825},7.0666282088260746E-3,{"$f":"StatisticallySignificantCalcs!$A71","v":"N"},{"$f":"StatisticallySignificantCalcs!$J71","v":"N"}]
[null,null,"SF Owner Occ.",{"$f":"CntyDataLinkPrior10YearEstimate!$AF$108","v":5873},{"$f":"CntyDataLinkPrior10YearEstimate!$AG$108","v":376},null,{"$f":"CntyDataLinkPrior5YearEstimates!$AF$108","v":5870},{"$f":"CntyDataLinkPrior5YearEstimates!$AG$108","v":374},null,{"$f":"CntyDataLink!$AF$108","v":6251},{"$f":"CntyDataLink!$AG$108","v":472},null,6.4362336114421936E-2,{"$f":"StatisticallySignificantCalcs!$A72","v":"N"},{"$f":"StatisticallySignificantCalcs!$J72","v":"N"}]
[null,null,"SF Renter Occ.",{"$f":"CntyDataLinkPrior10YearEstimate!$AN$108","v":598},{"$f":"CntyDataLinkPrior10YearEstimate!$AO$108","v":193},null,{"$f":"CntyDataLinkPrior5YearEstimates!$AN$108","v":551},{"$f":"CntyDataLinkPrior5YearEstimates!$AO$108","v":156},null,{"$f":"CntyDataLink!$AN$108","v":543},{"$f":"CntyDataLink!$AO$108","v":168},null,-9.1973244147157185E-2,{"$f":"StatisticallySignificantCalcs!$A73","v":"N"},{"$f":"StatisticallySignificantCalcs!$J73","v":"N"}]
[null,null,"Multi-family Units",{"$f":"CntyDataLinkPrior10YearEstimate!$AV$108","v":4554},{"$f":"CntyDataLinkPrior10YearEstimate!$AW$108","v":482.5194296606096},{"$f":"IF(D75=\"-\",\"-\",$D$75/$D$71)","v":0.32521602513747055},{"$f":"CntyDataLinkPrior5YearEstimates!$AV$108","v":4890},{"$f":"CntyDataLinkPrior5YearEstimates!$AW$108","v":559.3093955942453},{"$f":"IF(G75=\"-\",\"-\",$G$75/$G$71)","v":0.35795329770880607},{"$f":"CntyDataLink!$AV$108","v":4907},{"$f":"CntyDataLink!$AW$108","v":645.39677718439225},{"$f":"IF(J75=\"-\",\"-\",$J$75/$J$71)","v":0.34575817361894023},7.7514273166447073E-2,{"$f":"StatisticallySignificantCalcs!$A74","v":"N"},{"$f":"StatisticallySignificantCalcs!$J74","v":"N"}]
[null,null,"MF Owner Occ.",{"$f":"CntyDataLinkPrior10YearEstimate!$AH$108","v":864},{"$f":"CntyDataLinkPrior10YearEstimate!$AI$108","v":202.64747716169575},null,{"$f":"CntyDataLinkPrior5YearEstimates!$AH$108","v":665},{"$f":"CntyDataLinkPrior5YearEstimates!$AI$108","v":167.62159765376299},null,{"$f":"CntyDataLink!$AH$108","v":710},{"$f":"CntyDataLink!$AI$108","v":190.88478200212819},null,-0.17824074074074073,{"$f":"StatisticallySignificantCalcs!$A75","v":"N"},{"$f":"StatisticallySignificantCalcs!$J75","v":"N"}]
[null,null,"MF Renter Occ.",{"$f":"CntyDataLinkPrior10YearEstimate!$AP$108","v":3081},{"$f":"CntyDataLinkPrior10YearEstimate!$AQ$108","v":404.66035140596614},null,{"$f":"CntyDataLinkPrior5YearEstimates!$AP$108","v":3753},{"$f":"CntyDataLinkPrior5YearEstimates!$AQ$108","v":514.22174205297858},null,{"$f":"CntyDataLink!$AP$108","v":3827},{"$f":"CntyDataLink!$AQ$108","v":596.79142084986438},null,0.24212917883803961,{"$f":"StatisticallySignificantCalcs!$A76","v":"Y"},{"$f":"StatisticallySignificantCalcs!$J76","v":"N"}]
[null,null,"Mobile Home & Other",{"$f":"CntyDataLinkPrior10YearEstimate!$AX$108","v":2515},{"$f":"CntyDataLinkPrior10YearEstimate!$AY$108","v":304.72446570631638},{"$f":"IF(D78=\"-\",\"-\",($D$78/$D$71))","v":0.17960437049203742},{"$f":"CntyDataLinkPrior5YearEstimates!$AX$108","v":2109},{"$f":"CntyDataLinkPrior5YearEstimates!$AY$108","v":280.03035549739963},{"$f":"IF(G78=\"-\",\"-\",($G$78/$G$71))","v":0.15438108484005564},{"$f":"CntyDataLink!$AX$108","v":2302},{"$f":"CntyDataLink!$AY$108","v":299.04681907687967},{"$f":"IF(J78=\"-\",\"-\",($J$78/$J$71))","v":0.16220405862457724},-8.4691848906560632E-2,{"$f":"StatisticallySignificantCalcs!$A77","v":"N"},{"$f":"StatisticallySignificantCalcs!$J77","v":"N"}]
[]
[null,"Data from the American Community Survey are estimates"]
[]
[]
[null,"Units by Number of Bedrooms "]
[null,null,null,{"$f":"\"Source: \"& \" \"&D69&\", \"&G69&\" and \"&J69& \" American Community Survey Table B25041\"","v":"Source:  2008-2012, 2013-2017 and 2018-2022 American Community Survey Table B25041"}]
[]
[null,null,{"$f":"C30","v":"2008-2012"},null,null,null,{"$f":"F30","v":"2013-2017"},null,null,null,{"$f":"I30","v":"2018-2022"}]
[null,"Bedrooms","Estimate","Margin of Error","% of Total",null,"Estimate","Margin of Error","% of Total",null,"Estimate","Margin of Error","% of Total",null,"Statistically Significant Change"]
[null,"No Bedrooms",{"$f":"CntyDataLinkPrior10YearEstimate!$BR$108","v":381},{"$f":"CntyDataLinkPrior10YearEstimate!$BS$108","v":167},{"$f":"C88/SUM($C$88:$C$92)","v":2.7208455331000501E-2},null,{"$f":"CntyDataLinkPrior5YearEstimates!$BR$108","v":265},{"$f":"CntyDataLinkPrior5YearEstimates!$BS$108","v":164},{"$f":"G88/SUM($G$88:$G$92)","v":1.9720196457806222E-2},null,{"$f":"CntyDataLink!$BT$108","v":297},{"$f":"CntyDataLink!$BU$108","v":161},{"$f":"K88/SUM($K$88:$K$92)","v":2.092728297632469E-2},null,{"$f":"StatisticallySignificantCalcs!$A77","v":"N"}]
[null,"1 Bedroom",{"$f":"CntyDataLinkPrior10YearEstimate!$BT$108","v":1257},{"$f":"CntyDataLinkPrior10YearEstimate!$BU$108","v":221},{"$f":"C89/SUM($C$88:$C$92)","v":8.9766478611726055E-2},null,{"$f":"CntyDataLinkPrior5YearEstimates!$BT$108","v":1315},{"$f":"CntyDataLinkPrior5YearEstimates!$BU$108","v":260},{"$f":"G89/SUM($G$88:$G$92)","v":9.7856823932132755E-2},null,{"$f":"CntyDataLink!$BV$108","v":1665},{"$f":"CntyDataLink!$BW$108","v":410},{"$f":"K89/SUM($K$88:$K$92)","v":0.1173196166854566},null,{"$f":"StatisticallySignificantCalcs!$A78","v":"N"}]
[null,"2 Bedrooms",{"$f":"CntyDataLinkPrior10YearEstimate!$BV$108","v":5221},{"$f":"CntyDataLinkPrior10YearEstimate!$BW$108","v":441},{"$f":"C90/SUM($C$88:$C$92)","v":0.37284867528386773},null,{"$f":"CntyDataLinkPrior5YearEstimates!$BV$108","v":5577},{"$f":"CntyDataLinkPrior5YearEstimates!$BW$108","v":383},{"$f":"G90/SUM($G$88:$G$92)","v":0.41501711564220867},null,{"$f":"CntyDataLink!$BX$108","v":4897},{"$f":"CntyDataLink!$BY$108","v":469},{"$f":"K90/SUM($K$88:$K$92)","v":0.34505355129650506},null,{"$f":"StatisticallySignificantCalcs!$A79","v":"Y"}]
[null,"3 Bedrooms",{"$f":"CntyDataLinkPrior10YearEstimate!$BX$108","v":5525},{"$f":"CntyDataLinkPrior10YearEstimate!$BY$108","v":475},{"$f":"C91/SUM($C$88:$C$92)","v":0.39455830893379989},null,{"$f":"CntyDataLinkPrior5YearEstimates!$BX$108","v":4911},{"$f":"CntyDataLinkPrior5YearEstimates!$BY$108","v":379},{"$f":"G91/SUM($G$88:$G$92)","v":0.36545616907277867},null,{"$f":"CntyDataLink!$BZ$108","v":5370},{"$f":"CntyDataLink!$CA$108","v":511},{"$f":"K91/SUM($K$88:$K$92)","v":0.37838218714768884},null,{"$f":"StatisticallySignificantCalcs!$A80","v":"Y"}]
[null,"4+ Bedrooms",{"$f":"CntyDataLinkPrior10YearEstimate!$BZ$108","v":1619},{"$f":"CntyDataLinkPrior10YearEstimate!$CA$108","v":276.09056485146317},{"$f":"C92/SUM($C$88:$C$92)","v":0.1156180818396058},null,{"$f":"CntyDataLinkPrior5YearEstimates!$BZ$108","v":1370},{"$f":"CntyDataLinkPrior5YearEstimates!$CA$108","v":264},{"$f":"G92/SUM($G$88:$G$92)","v":0.10194969489507368},null,{"$f":"CntyDataLink!$CB$108","v":1963},{"$f":"CntyDataLink!$CC$108","v":318.41639405030639},{"$f":"K92/SUM($K$88:$K$92)","v":0.1383173618940248},null,{"$f":"StatisticallySignificantCalcs!$A81","v":"Y"}]
[]
[]
[]
[]
[null,"Units by Year Built   "]
[null,{"$f":"\"Source: \"&K86& \" American Community Survey Table B25034\"","v":"Source: 2018-2022 American Community Survey Table B25034"}]
[]
[null,null,null,"Year Built",null,null,"Units  ",null,"% of Total",null,"Margin of Error"]
[null,null,null,null,null,"2020 or later",{"$f":"CntyDataLink!$AZ$108","v":0},null,{"$f":"G101/SUM($G$101:$G$110)","v":0},null,{"$f":"CntyDataLink!$BA$108","v":25}]
[null,null,null,null,null,"2010 through 2019",{"$f":"CntyDataLink!$BB$108","v":957},null,6.7432356257046216E-2,null,{"$f":"CntyDataLink!$BC$108","v":274}]
[null,null,null,null,null,"2000 through 2009",{"$f":"CntyDataLink!$BD$108","v":1684},null,0.11865839909808343,null,{"$f":"CntyDataLink!$BE$108","v":260}]
[null,null,null,null,null,"1990 through 1999",{"$f":"CntyDataLink!$BF$108","v":1172},null,8.2581736189402483E-2,null,{"$f":"CntyDataLink!$BG$108","v":240}]
[null,null,null,null,null,"1980 through 1989",{"$f":"CntyDataLink!$BH$108","v":2733},null,0.19257328072153326,null,{"$f":"CntyDataLink!$BI$108","v":394}]
[null,null,null,null,null,"1970 through 1979",{"$f":"CntyDataLink!$BJ$108","v":1731},null,0.12197012401352875,null,{"$f":"CntyDataLink!$BK$108","v":318}]
[null,null,null,null,null,"1960 through 1969",{"$f":"CntyDataLink!$BL$108","v":1187},null,8.3638669673055249E-2,null,{"$f":"CntyDataLink!$BM$108","v":250}]
[null,null,null,null,null,"1950 through 1959",{"$f":"CntyDataLink!$BN$108","v":1230},null,8.6668545659526489E-2,null,{"$f":"CntyDataLink!$BO$108","v":315}]
[null,null,null,null,null,"1940 through 1949",{"$f":"CntyDataLink!$BP$108","v":773},null,5.4467305524239007E-2,null,{"$f":"CntyDataLink!$BQ$108","v":250}]
[null,null,null,null,null,"1939 and earlier",{"$f":"CntyDataLink!$BR$108","v":2725},null,0.19200958286358513,null,{"$f":"CntyDataLink!$BS$108","v":347}]
[]
[null,"Data from the American Community Survey are estimates"]

{"sheet":"CntyDataLink","index":6,"n_rows":167,"n_cols":259,"rows_kept":167,"cut":false,"hidden":true,"merged":[]}
[1,{"$f":"A1+1","v":2},3,4,5,6,7,8,9,10,11,12,13,14,15,16,17,18,19,20,21,22,23,24,25,26,27,28,29,30,31,32,33,34,35,36,37,38,39,40,41,42,43,44,45,46,47,48,49,50,51,52,53,54,55,56,57,58,59,60,61,62,63,64,65,{"$f":"BM1+1","v":66},67,68,69,70,71,72,73,74,75,76,77,78,79,80,81,82,83,84,85,86,87,88,89,90,91,92,93,94,95,96,97,98,99,100,101,102,103,104,105,106,107,108,109,110,111,112,113,114,115,116,117,118,119,120,121,122,123,124,125,126,127,128,129,{"$f":"DY1+1","v":130},131,132,133,134,135,136,137,138,139,140,141,142,143,144,145,146,147,148,149,150,151,152,153,154,155,156,157,158,159,160,161,162,163,164,165,166,167,168,169,170,171,172,173,174,175,176,177,178,179,180,181,182,183,184,185,186,187,188,189,190,191,192,193,{"$f":"GK1+1","v":194},195,196,197,198,199,200,201,202,203,204,205,206,207,208,209,210,211,212,213,214,215,216,217,218,219,220,221,222,223,224,225,226,227,228,229,230,231,232,233,234,235,236,237,238,239,240,241,242,243,244,245,246,247,248,249,250,251,252,253,254,255]
[]
["Census 1990 Data -           Query Name:  DPCnty90Census"]
["TownName","Cnty_Code","Census_Cnty_Code","LandAcres","WaterAcres","HousingUnits90Cen","Persons90Cen","Families90Cen","Households90cen","MalePop90cen","FemalePop90cen","WhitePop","BlackPop","AmerIndianPop","AsianPIPop","OtherRacePop","HispanicOrPop","AgeUnder15_90cen","Age15to24_90cen","Age25to34_90cen","Age35to44_90cen","Age45to54_90cen","Age55to64_90cen","Age65to74_90cen","Age75andOver_90cen","PersonsInHH90cen","PersonsInFamHH90cen","PersonsInGC","PersonsPerHH90cen","PersonsPerFam90Cen","SinglePersonHH90cen","MarriedCoupleHH90cen","SingleParentHH90cen","NonFamilyHH90cen","TotalHousingUnits","OccupiedHousingUnits","VacantHousingUnits","OwnerOccHU","RenterOccHU","VacantForRent90","VacantForSale90","VacantSeasonalRec","SingFamHU90cen","MultiFamHU90cen","MobileHom90cen","SingFamOwnHU90cen","MultiFamOwnHU90cen","MobileHomOwnHU90cen","SingFamRntrHU90cen","MultiFamRntrHU90cen","MobileHomRntrHU90cen","HU<5yrs90cen","HU5to20yrs90cen","HU20to50yrs90cen","HU>50yrs90cen","Units0Bedroom90cen","Units1Bedroom90cen","Units2Bedroom90cen","Units3Bedroom90cen","Units4+Bedroom90cen","HI<5K","HI5Kto10K","HI10Kto15K","HI15Kto25K","HI25Kto35K","HI35Kto50K","HI50Kto75K","HI75Kto100K","HI>100K","MedHI","HH<25HI<5K","HH<25HI5Kto10K","HH<25HI10Kto15K","HH<25HI15Kto25K","HH<25HI25Kto35K","HH<25HI35Kto50K","HH<25HI50Kto75K","HH<25HI75Kto100K","HH<25HI>100K","HH25to34HI<5K","HH25to34HI5Kto10K","HH25to34HI10Kto15K","HH25to34HI15Kto25K","HH25to34HI25Kto35K","HH25to34HI35Kto50K","HH25to34HI50Kto75K","HH25to34HI75Kto100K","HH25to34HI>100K","HH35to44HI<5K","HH35to44HI5Kto10K","HH35to44HI10Kto15K","HH35to44HI15Kto25K","HH35to44HI25Kto35K","HH35to44HI35Kto50K","HH35to44HI50Kto75K","HH35to44HI75Kto100K","HH35to44HI>100K","HH45to54HI<5K","HH45to54HI5Kto10K","HH45to54HI10Kto15K","HH45to54HI15Kto25K","HH45to54HI25Kto35K","HH45to54HI35Kto50K","HH45to54HI50Kto75K","HH45to54HI75Kto100K","HH45to54HI>100K","HH55to64HI<5K","HH55to64HI5Kto10K","HH55to64HI10Kto15K","HH55to64HI15Kto25K","HH55to64HI25Kto35K","HH55to64HI35Kto50K","HH55to64HI50Kto75K","HH55to64HI75Kto100K","HH55to64HI>100K","HH65to74HI<5K","HH65to74HI5Kto10K","HH65to74HI10Kto15K","HH65to74HI15Kto25K","HH65to74HI25Kto35K","HH65to74HI35Kto50K","HH65to74HI50Kto75K","HH65to74HI75Kto100K","HH65to74HI>100K","HH>75HI<5K","HH>75HI5Kto10K","HH>75HI10Kto15K","HH>75HI15Kto25K","HH>75HI25Kto35K","HH>75HI35Kto50K","HH>75HI50Kto75K","HH>75HI75Kto100K","HH>75HI>100K","SchoolEnrollment1thru12","Pop25andOver","HSGradorHigher","CollGradorHigher","NativePop","ForeignBornPop","BornStateOfRes","NativePop2","ForeignBornPop2","DroveAlone","CarPooled","PublicTranspt","Walked","OtherMeans","WorkedAtHome","HHInc<10K","HHInc10to15K","HHInc15to25K","HHInc25to35K","HHInc35to50K","HHInc50to75K","HHInc75to100K","HHInc100to150K","HHInc>150K"]
[{"$f":"VLOOKUP(DropDownList!$A$47,CntyQuery!$A$4:$FI$46,A1)","v":"Rochester"},{"$f":"VLOOKUP(DropDownList!$A$47,CntyQuery!$A$4:$FA$46,B1)","v":17050},{"$f":"VLOOKUP(DropDownList!$A$47,CntyQuery!$A$4:$FA$46,C1)","v":"65140"},{"$f":"VLOOKUP(DropDownList!$A$47,CntyQuery!$A$4:$FA$46,D1)","v":28688.05},{"$f":"VLOOKUP(DropDownList!$A$47,CntyQuery!$A$4:$FA$46,E1)","v":392.49},{"$f":"VLOOKUP(DropDownList!$A$47,CntyQuery!$A$4:$FA$46,F1)","v":11076},{"$f":"VLOOKUP(DropDownList!$A$47,CntyQuery!$A$4:$FA$46,G1)","v":26630},{"$f":"VLOOKUP(DropDownList!$A$47,CntyQuery!$A$4:$FA$46,H1)","v":7332},{"$f":"VLOOKUP(DropDownList!$A$47,CntyQuery!$A$4:$FA$46,I1)","v":10221},{"$f":"VLOOKUP(DropDownList!$A$47,CntyQuery!$A$4:$FA$46,J1)","v":12931},{"$f":"VLOOKUP(DropDownList!$A$47,CntyQuery!$A$4:$FA$46,K1)","v":13699},{"$f":"VLOOKUP(DropDownList!$A$47,CntyQuery!$A$4:$FA$46,L1)","v":26291},{"$f":"VLOOKUP(DropDownList!$A$47,CntyQuery!$A$4:$FA$46,M1)","v":85},{"$f":"VLOOKUP(DropDownList!$A$47,CntyQuery!$A$4:$FA$46,N1)","v":54},{"$f":"VLOOKUP(DropDownList!$A$47,CntyQuery!$A$4:$FA$46,O1)","v":147},{"$f":"VLOOKUP(DropDownList!$A$47,CntyQuery!$A$4:$FA$46,P1)","v":53},{"$f":"VLOOKUP(DropDownList!$A$47,CntyQuery!$A$4:$FA$46,Q1)","v":192},{"$f":"VLOOKUP(DropDownList!$A$47,CntyQuery!$A$4:$FA$46,R1)","v":6067},{"$f":"VLOOKUP(DropDownList!$A$47,CntyQuery!$A$4:$FA$46,S1)","v":3386},{"$f":"VLOOKUP(DropDownList!$A$47,CntyQuery!$A$4:$FA$46,T1)","v":5151},{"$f":"VLOOKUP(DropDownList!$A$47,CntyQuery!$A$4:$FA$46,U1)","v":3862},{"$f":"VLOOKUP(DropDownList!$A$47,CntyQuery!$A$4:$FA$46,V1)","v":2510},{"$f":"VLOOKUP(DropDownList!$A$47,CntyQuery!$A$4:$FA$46,W1)","v":2258},{"$f":"VLOOKUP(DropDownList!$A$47,CntyQuery!$A$4:$FA$46,X1)","v":1886},{"$f":"VLOOKUP(DropDownList!$A$47,CntyQuery!$A$4:$FA$46,Y1)","v":1510},{"$f":"VLOOKUP(DropDownList!$A$47,CntyQuery!$A$4:$FA$46,Z1)","v":26327},{"$f":"VLOOKUP(DropDownList!$A$47,CntyQuery!$A$4:$FA$46,AA1)","v":22703},{"$f":"VLOOKUP(DropDownList!$A$47,CntyQuery!$A$4:$FA$46,AB1)","v":303},{"$f":"VLOOKUP(DropDownList!$A$47,CntyQuery!$A$4:$FA$46,AC1)","v":2.5757753644457488},{"$f":"VLOOKUP(DropDownList!$A$47,CntyQuery!$A$4:$FA$46,AD1)","v":3.0964266230223676},{"$f":"VLOOKUP(DropDownList!$A$47,CntyQuery!$A$4:$FA$46,AE1)","v":2304},{"$f":"VLOOKUP(DropDownList!$A$47,CntyQuery!$A$4:$FA$46,AF1)","v":5989},{"$f":"VLOOKUP(DropDownList!$A$47,CntyQuery!$A$4:$FA$46,AG1)","v":1343},{"$f":"VLOOKUP(DropDownList!$A$47,CntyQuery!$A$4:$FA$46,AH1)","v":585},{"$f":"VLOOKUP(DropDownList!$A$47,CntyQuery!$A$4:$FA$46,AI1)","v":11076},{"$f":"VLOOKUP(DropDownList!$A$47,CntyQuery!$A$4:$FA$46,AJ1)","v":10221},{"$f":"VLOOKUP(DropDownList!$A$47,CntyQuery!$A$4:$FA$46,AK1)","v":855},{"$f":"VLOOKUP(DropDownList!$A$47,CntyQuery!$A$4:$FA$46,AL1)","v":7051},{"$f":"VLOOKUP(DropDownList!$A$47,CntyQuery!$A$4:$FA$46,AM1)","v":3170},{"$f":"VLOOKUP(DropDownList!$A$47,CntyQuery!$A$4:$FA$46,AN1)","v":446},{"$f":"VLOOKUP(DropDownList!$A$47,CntyQuery!$A$4:$FA$46,AO1)","v":212},{"$f":"VLOOKUP(DropDownList!$A$47,CntyQuery!$A$4:$FA$46,AP1)","v":50},{"$f":"VLOOKUP(DropDownList!$A$47,CntyQuery!$A$4:$FA$46,AQ1)","v":5129},{"$f":"VLOOKUP(DropDownList!$A$47,CntyQuery!$A$4:$FA$46,AR1)","v":3796},{"$f":"VLOOKUP(DropDownList!$A$47,CntyQuery!$A$4:$FA$46,AS1)","v":2151},{"$f":"VLOOKUP(DropDownList!$A$47,CntyQuery!$A$4:$FA$46,AT1)","v":4588},{"$f":"VLOOKUP(DropDownList!$A$47,CntyQuery!$A$4:$FA$46,AU1)","v":626},{"$f":"VLOOKUP(DropDownList!$A$47,CntyQuery!$A$4:$FA$46,AV1)","v":2151},{"$f":"VLOOKUP(DropDownList!$A$47,CntyQuery!$A$4:$FA$46,AW1)","v":392},{"$f":"VLOOKUP(DropDownList!$A$47,CntyQuery!$A$4:$FA$46,AX1)","v":2646},{"$f":"VLOOKUP(DropDownList!$A$47,CntyQuery!$A$4:$FA$46,AY1)","v":132},{"$f":"VLOOKUP(DropDownList!$A$47,CntyQuery!$A$4:$FA$46,AZ1)","v":2013},{"$f":"VLOOKUP(DropDownList!$A$47,CntyQuery!$A$4:$FA$46,BA1)","v":3034},{"$f":"VLOOKUP(DropDownList!$A$47,CntyQuery!$A$4:$FA$46,BB1)","v":2699},{"$f":"VLOOKUP(DropDownList!$A$47,CntyQuery!$A$4:$FA$46,BC1)","v":3330},{"$f":"VLOOKUP(DropDownList!$A$47,CntyQuery!$A$4:$FA$46,BD1)","v":113},{"$f":"VLOOKUP(DropDownList!$A$47,CntyQuery!$A$4:$FA$46,BE1)","v":1452},{"$f":"VLOOKUP(DropDownList!$A$47,CntyQuery!$A$4:$FA$46,BF1)","v":4176},{"$f":"VLOOKUP(DropDownList!$A$47,CntyQuery!$A$4:$FA$46,BG1)","v":3867},{"$f":"VLOOKUP(DropDownList!$A$47,CntyQuery!$A$4:$FA$46,BH1)","v":1468},{"$f":"VLOOKUP(DropDownList!$A$47,CntyQuery!$A$4:$FA$46,BI1)","v":335},{"$f":"VLOOKUP(DropDownList!$A$47,CntyQuery!$A$4:$FA$46,BJ1)","v":786},{"$f":"VLOOKUP(DropDownList!$A$47,CntyQuery!$A$4:$FA$46,BK1)","v":879},{"$f":"VLOOKUP(DropDownList!$A$47,CntyQuery!$A$4:$FA$46,BL1)","v":1996},{"$f":"VLOOKUP(DropDownList!$A$47,CntyQuery!$A$4:$FA$46,BM1)","v":1883},{"$f":"VLOOKUP(DropDownList!$A$47,CntyQuery!$A$4:$FA$46,BN1)","v":2394},{"$f":"VLOOKUP(DropDownList!$A$47,CntyQuery!$A$4:$FA$46,BO1)","v":1525},{"$f":"VLOOKUP(DropDownList!$A$47,CntyQuery!$A$4:$FA$46,BP1)","v":276},{"$f":"VLOOKUP(DropDownList!$A$47,CntyQuery!$A$4:$FA$46,BQ1)","v":122},{"$f":"VLOOKUP(DropDownList!$A$47,CntyQuery!$A$4:$FA$46,BR1)","v":30807},{"$f":"VLOOKUP(DropDownList!$A$47,CntyQuery!$A$4:$FA$46,BS1)","v":26},{"$f":"VLOOKUP(DropDownList!$A$47,CntyQuery!$A$4:$FA$46,BT1)","v":62},{"$f":"VLOOKUP(DropDownList!$A$47,CntyQuery!$A$4:$FA$46,BU1)","v":50},{"$f":"VLOOKUP(DropDownList!$A$47,CntyQuery!$A$4:$FA$46,BV1)","v":225},{"$f":"VLOOKUP(DropDownList!$A$47,CntyQuery!$A$4:$FA$46,BW1)","v":102},{"$f":"VLOOKUP(DropDownList!$A$47,CntyQuery!$A$4:$FA$46,BX1)","v":169},{"$f":"VLOOKUP(DropDownList!$A$47,CntyQuery!$A$4:$FA$46,BY1)","v":29},{"$f":"VLOOKUP(DropDownList!$A$47,CntyQuery!$A$4:$FA$46,BZ1)","v":6},{"$f":"VLOOKUP(DropDownList!$A$47,CntyQuery!$A$4:$FA$46,CA1)","v":0},{"$f":"VLOOKUP(DropDownList!$A$47,CntyQuery!$A$4:$FA$46,CB1)","v":37},{"$f":"VLOOKUP(DropDownList!$A$47,CntyQuery!$A$4:$FA$46,CC1)","v":65},{"$f":"VLOOKUP(DropDownList!$A$47,CntyQuery!$A$4:$FA$46,CD1)","v":144},{"$f":"VLOOKUP(DropDownList!$A$47,CntyQuery!$A$4:$FA$46,CE1)","v":464},{"$f":"VLOOKUP(DropDownList!$A$47,CntyQuery!$A$4:$FA$46,CF1)","v":563},{"$f":"VLOOKUP(DropDownList!$A$47,CntyQuery!$A$4:$FA$46,CG1)","v":766},{"$f":"VLOOKUP(DropDownList!$A$47,CntyQuery!$A$4:$FA$46,CH1)","v":423},{"$f":"VLOOKUP(DropDownList!$A$47,CntyQuery!$A$4:$FA$46,CI1)","v":45},{"$f":"VLOOKUP(DropDownList!$A$47,CntyQuery!$A$4:$FA$46,CJ1)","v":14},{"$f":"VLOOKUP(DropDownList!$A$47,CntyQuery!$A$4:$FA$46,CK1)","v":42},{"$f":"VLOOKUP(DropDownList!$A$47,CntyQuery!$A$4:$FA$46,CL1)","v":53},{"$f":"VLOOKUP(DropDownList!$A$47,CntyQuery!$A$4:$FA$46,CM1)","v":90},{"$f":"VLOOKUP(DropDownList!$A$47,CntyQuery!$A$4:$FA$46,CN1)","v":352},{"$f":"VLOOKUP(DropDownList!$A$47,CntyQuery!$A$4:$FA$46,CO1)","v":375},{"$f":"VLOOKUP(DropDownList!$A$47,CntyQuery!$A$4:$FA$46,CP1)","v":735},{"$f":"VLOOKUP(DropDownList!$A$47,CntyQuery!$A$4:$FA$46,CQ1)","v":455},{"$f":"VLOOKUP(DropDownList!$A$47,CntyQuery!$A$4:$FA$46,CR1)","v":64},{"$f":"VLOOKUP(DropDownList!$A$47,CntyQuery!$A$4:$FA$46,CS1)","v":38},{"$f":"VLOOKUP(DropDownList!$A$47,CntyQuery!$A$4:$FA$46,CT1)","v":24},{"$f":"VLOOKUP(DropDownList!$A$47,CntyQuery!$A$4:$FA$46,CU1)","v":80},{"$f":"VLOOKUP(DropDownList!$A$47,CntyQuery!$A$4:$FA$46,CV1)","v":48},{"$f":"VLOOKUP(DropDownList!$A$47,CntyQuery!$A$4:$FA$46,CW1)","v":189},{"$f":"VLOOKUP(DropDownList!$A$47,CntyQuery!$A$4:$FA$46,CX1)","v":244},{"$f":"VLOOKUP(DropDownList!$A$47,CntyQuery!$A$4:$FA$46,CY1)","v":339},{"$f":"VLOOKUP(DropDownList!$A$47,CntyQuery!$A$4:$FA$46,CZ1)","v":335},{"$f":"VLOOKUP(DropDownList!$A$47,CntyQuery!$A$4:$FA$46,DA1)","v":102},{"$f":"VLOOKUP(DropDownList!$A$47,CntyQuery!$A$4:$FA$46,DB1)","v":48},{"$f":"VLOOKUP(DropDownList!$A$47,CntyQuery!$A$4:$FA$46,DC1)","v":51},{"$f":"VLOOKUP(DropDownList!$A$47,CntyQuery!$A$4:$FA$46,DD1)","v":71},{"$f":"VLOOKUP(DropDownList!$A$47,CntyQuery!$A$4:$FA$46,DE1)","v":166},{"$f":"VLOOKUP(DropDownList!$A$47,CntyQuery!$A$4:$FA$46,DF1)","v":257},{"$f":"VLOOKUP(DropDownList!$A$47,CntyQuery!$A$4:$FA$46,DG1)","v":232},{"$f":"VLOOKUP(DropDownList!$A$47,CntyQuery!$A$4:$FA$46,DH1)","v":224},{"$f":"VLOOKUP(DropDownList!$A$47,CntyQuery!$A$4:$FA$46,DI1)","v":215},{"$f":"VLOOKUP(DropDownList!$A$47,CntyQuery!$A$4:$FA$46,DJ1)","v":47},{"$f":"VLOOKUP(DropDownList!$A$47,CntyQuery!$A$4:$FA$46,DK1)","v":22},{"$f":"VLOOKUP(DropDownList!$A$47,CntyQuery!$A$4:$FA$46,DL1)","v":39},{"$f":"VLOOKUP(DropDownList!$A$47,CntyQuery!$A$4:$FA$46,DM1)","v":142},{"$f":"VLOOKUP(DropDownList!$A$47,CntyQuery!$A$4:$FA$46,DN1)","v":263},{"$f":"VLOOKUP(DropDownList!$A$47,CntyQuery!$A$4:$FA$46,DO1)","v":354},{"$f":"VLOOKUP(DropDownList!$A$47,CntyQuery!$A$4:$FA$46,DP1)","v":297},{"$f":"VLOOKUP(DropDownList!$A$47,CntyQuery!$A$4:$FA$46,DQ1)","v":95},{"$f":"VLOOKUP(DropDownList!$A$47,CntyQuery!$A$4:$FA$46,DR1)","v":39},{"$f":"VLOOKUP(DropDownList!$A$47,CntyQuery!$A$4:$FA$46,DS1)","v":12},{"$f":"VLOOKUP(DropDownList!$A$47,CntyQuery!$A$4:$FA$46,DT1)","v":0},{"$f":"VLOOKUP(DropDownList!$A$47,CntyQuery!$A$4:$FA$46,DU1)","v":116},{"$f":"VLOOKUP(DropDownList!$A$47,CntyQuery!$A$4:$FA$46,DV1)","v":313},{"$f":"VLOOKUP(DropDownList!$A$47,CntyQuery!$A$4:$FA$46,DW1)","v":118},{"$f":"VLOOKUP(DropDownList!$A$47,CntyQuery!$A$4:$FA$46,DX1)","v":155},{"$f":"VLOOKUP(DropDownList!$A$47,CntyQuery!$A$4:$FA$46,DY1)","v":70},{"$f":"VLOOKUP(DropDownList!$A$47,CntyQuery!$A$4:$FA$46,DZ1)","v":66},{"$f":"VLOOKUP(DropDownList!$A$47,CntyQuery!$A$4:$FA$46,EA1)","v":29},{"$f":"VLOOKUP(DropDownList!$A$47,CntyQuery!$A$4:$FA$46,EB1)","v":0},{"$f":"VLOOKUP(DropDownList!$A$47,CntyQuery!$A$4:$FA$46,EC1)","v":0},{"$f":"VLOOKUP(DropDownList!$A$47,CntyQuery!$A$4:$FA$46,ED1)","v":4209},{"$f":"VLOOKUP(DropDownList!$A$47,CntyQuery!$A$4:$FA$46,EE1)","v":17177},{"$f":"VLOOKUP(DropDownList!$A$47,CntyQuery!$A$4:$FA$46,EF1)","v":12889},{"$f":"VLOOKUP(DropDownList!$A$47,CntyQuery!$A$4:$FA$46,EG1)","v":2416},{"$f":"VLOOKUP(DropDownList!$A$47,CntyQuery!$A$4:$FA$46,EH1)","v":25961},{"$f":"VLOOKUP(DropDownList!$A$47,CntyQuery!$A$4:$FA$46,EI1)","v":669},{"$f":"VLOOKUP(DropDownList!$A$47,CntyQuery!$A$4:$FA$46,EJ1)","v":15347},{"$f":"VLOOKUP(DropDownList!$A$47,CntyQuery!$A$4:$FA$46,EK1)","v":25961},{"$f":"VLOOKUP(DropDownList!$A$47,CntyQuery!$A$4:$FA$46,EL1)","v":669},{"$f":"VLOOKUP(DropDownList!$A$47,CntyQuery!$A$4:$FA$46,EM1)","v":9749},{"$f":"VLOOKUP(DropDownList!$A$47,CntyQuery!$A$4:$FA$46,EN1)","v":2241},{"$f":"VLOOKUP(DropDownList!$A$47,CntyQuery!$A$4:$FA$46,EO1)","v":113},{"$f":"VLOOKUP(DropDownList!$A$47,CntyQuery!$A$4:$FA$46,EP1)","v":278},{"$f":"VLOOKUP(DropDownList!$A$47,CntyQuery!$A$4:$FA$46,EQ1)","v":164},{"$f":"VLOOKUP(DropDownList!$A$47,CntyQuery!$A$4:$FA$46,ER1)","v":298},{"$f":"VLOOKUP(DropDownList!$A$47,CntyQuery!$A$4:$FA$46,ES1)","v":1121},{"$f":"VLOOKUP(DropDownList!$A$47,CntyQuery!$A$4:$FA$46,ET1)","v":879},{"$f":"VLOOKUP(DropDownList!$A$47,CntyQuery!$A$4:$FA$46,EU1)","v":1996},{"$f":"VLOOKUP(DropDownList!$A$47,CntyQuery!$A$4:$FA$46,EV1)","v":1883},{"$f":"VLOOKUP(DropDownList!$A$47,CntyQuery!$A$4:$FA$46,EW1)","v":2394},{"$f":"VLOOKUP(DropDownList!$A$47,CntyQuery!$A$4:$FA$46,EX1)","v":1525},{"$f":"VLOOKUP(DropDownList!$A$47,CntyQuery!$A$4:$FA$46,EY1)","v":276},{"$f":"VLOOKUP(DropDownList!$A$47,CntyQuery!$A$4:$FA$46,EZ1)","v":68},{"$f":"VLOOKUP(DropDownList!$A$47,CntyQuery!$A$4:$FA$46,FA1)","v":54}]
[]
[]
["Census 1990 Data -    Query Name:  TownSTF1Qry1"]
["NAME","COUSUBFP","Census_Cnty_Code","FIPS","LandAcres","WaterAcres","HousingUnits90Cen","P01Persons90Cen","P02Families90Cen","P03Households90cen","P05MalePop90cen","P05FemalePop90cen","P06WhitePop","P06BlackPop","P06AmerIndianPop","P06AsianPIPop","P06OtherRacePop","P08HispanicOrPop","P11AgeUnder15_90cen","P11Age15to24_90cen","P11Age25to34_90cen","P11Age35to44_90cen","P11Age45to54_90cen","P11Age55to64_90cen","P11Age65to74_90cen","P11Age75andOver_90cen","P15PersonsInHH90cen","P15PersonsInFamHH90cen","P15PersonsInGC","PersonsPerHH90cen","PersonsPerFam90Cen","P16SinglePersonHH90cen","P16MarriedCoupleHH90cen","P16SingleParentHH90cen","P16NonFamilyHH90cen","H01TotalHousingUnits","H02OccupiedHousingUnits","H02VacantHousingUnits","H03OwnerOccHU","H03RenterOccHU","H05VacantForRent90","H05VacantForSale90","H05VacantSeasonalRec","H23OOHUVal<15k","H23OOHUVal15to19k","H23OOHUVal20to24k","H23OOHUVal25to29k","H23OOHUVal30to34k","H23OOHUVal35to39k","H23OOHUVal40to44k","H23OOHUVal45to49k","H23OOHUVal50to59k","H23OOHUVal60to74k","H23OOHUVal75to99k","H23OOHUVal100to124k","H23OOHUVal125to149k","H23OOHUVal150to174k","H23OOHUVal175to199k","H23OOHUVal200to249k","H23OOHUVal250to299k","H23OOHUVal300to399k","H23OOHUVal400to499k","H23OOHUVal500kOrMore","H23BOOHUMedVal","H41SingFamHU90cen","H41MultiFamHU90cen","H41MobileHom90cen","H43SingFamOwnHU90cen","H43MultiFamOwnHU90cen","H43MobileHomOwnHU90cen","H43SingFamRntrHU90cen","H43MultiFamRntrHU90cen","H43MobileHomRntrHU90cen","H41HU1UnitDet","H41HU1UnitAtt","H41HU2Unit","H41HU3to4Unit","H41HU5to9Unit","H41HU10to19Unit","H41HU20to49Unit","H41HU50PlusUnit","H41HUMobilH","H41HUOther"]
[{"$f":"VLOOKUP(DropDownList!$B$47,CntyQuery!$A$51:$CE$93,A$1)","v":"Rochester"},{"$f":"VLOOKUP(DropDownList!$B$47,CntyQuery!$A$51:$CE$93,B$1)","v":910},{"$f":"VLOOKUP(DropDownList!$B$47,CntyQuery!$A$51:$CE$93,C$1)","v":17050},{"$f":"VLOOKUP(DropDownList!$B$47,CntyQuery!$A$51:$CE$93,D$1)","v":"65140"},{"$f":"VLOOKUP(DropDownList!$B$47,CntyQuery!$A$51:$CE$93,E$1)","v":28688.05},{"$f":"VLOOKUP(DropDownList!$B$47,CntyQuery!$A$51:$CE$93,F$1)","v":392.49},{"$f":"VLOOKUP(DropDownList!$B$47,CntyQuery!$A$51:$CE$93,G$1)","v":11076},{"$f":"VLOOKUP(DropDownList!$B$47,CntyQuery!$A$51:$CE$93,H$1)","v":26630},{"$f":"VLOOKUP(DropDownList!$B$47,CntyQuery!$A$51:$CE$93,I$1)","v":7332},{"$f":"VLOOKUP(DropDownList!$B$47,CntyQuery!$A$51:$CE$93,J$1)","v":10221},{"$f":"VLOOKUP(DropDownList!$B$47,CntyQuery!$A$51:$CE$93,K$1)","v":12931},{"$f":"VLOOKUP(DropDownList!$B$47,CntyQuery!$A$51:$CE$93,L$1)","v":13699},{"$f":"VLOOKUP(DropDownList!$B$47,CntyQuery!$A$51:$CE$93,M$1)","v":26291},{"$f":"VLOOKUP(DropDownList!$B$47,CntyQuery!$A$51:$CE$93,N$1)","v":85},{"$f":"VLOOKUP(DropDownList!$B$47,CntyQuery!$A$51:$CE$93,O$1)","v":54},{"$f":"VLOOKUP(DropDownList!$B$47,CntyQuery!$A$51:$CE$93,P$1)","v":147},{"$f":"VLOOKUP(DropDownList!$B$47,CntyQuery!$A$51:$CE$93,Q$1)","v":53},{"$f":"VLOOKUP(DropDownList!$B$47,CntyQuery!$A$51:$CE$93,R$1)","v":192},{"$f":"VLOOKUP(DropDownList!$B$47,CntyQuery!$A$51:$CE$93,S$1)","v":6067},{"$f":"VLOOKUP(DropDownList!$B$47,CntyQuery!$A$51:$CE$93,T$1)","v":3386},{"$f":"VLOOKUP(DropDownList!$B$47,CntyQuery!$A$51:$CE$93,U$1)","v":5151},{"$f":"VLOOKUP(DropDownList!$B$47,CntyQuery!$A$51:$CE$93,V$1)","v":3862},{"$f":"VLOOKUP(DropDownList!$B$47,CntyQuery!$A$51:$CE$93,W$1)","v":2510},{"$f":"VLOOKUP(DropDownList!$B$47,CntyQuery!$A$51:$CE$93,X$1)","v":2258},{"$f":"VLOOKUP(DropDownList!$B$47,CntyQuery!$A$51:$CE$93,Y$1)","v":1886},{"$f":"VLOOKUP(DropDownList!$B$47,CntyQuery!$A$51:$CE$93,Z$1)","v":1510},{"$f":"VLOOKUP(DropDownList!$B$47,CntyQuery!$A$51:$CE$93,AA$1)","v":26327},{"$f":"VLOOKUP(DropDownList!$B$47,CntyQuery!$A$51:$CE$93,AB$1)","v":22703},{"$f":"VLOOKUP(DropDownList!$B$47,CntyQuery!$A$51:$CE$93,AC$1)","v":303},{"$f":"VLOOKUP(DropDownList!$B$47,CntyQuery!$A$51:$CE$93,AD$1)","v":2.5757753644457488},{"$f":"VLOOKUP(DropDownList!$B$47,CntyQuery!$A$51:$CE$93,AE$1)","v":3.0964266230223676},{"$f":"VLOOKUP(DropDownList!$B$47,CntyQuery!$A$51:$CE$93,AF$1)","v":2304},{"$f":"VLOOKUP(DropDownList!$B$47,CntyQuery!$A$51:$CE$93,AG$1)","v":5989},{"$f":"VLOOKUP(DropDownList!$B$47,CntyQuery!$A$51:$CE$93,AH$1)","v":1343},{"$f":"VLOOKUP(DropDownList!$B$47,CntyQuery!$A$51:$CE$93,AI$1)","v":585},{"$f":"VLOOKUP(DropDownList!$B$47,CntyQuery!$A$51:$CE$93,AJ$1)","v":11076},{"$f":"VLOOKUP(DropDownList!$B$47,CntyQuery!$A$51:$CE$93,AK$1)","v":10221},{"$f":"VLOOKUP(DropDownList!$B$47,CntyQuery!$A$51:$CE$93,AL$1)","v":855},{"$f":"VLOOKUP(DropDownList!$B$47,CntyQuery!$A$51:$CE$93,AM$1)","v":7051},{"$f":"VLOOKUP(DropDownList!$B$47,CntyQuery!$A$51:$CE$93,AN$1)","v":3170},{"$f":"VLOOKUP(DropDownList!$B$47,CntyQuery!$A$51:$CE$93,AO$1)","v":446},{"$f":"VLOOKUP(DropDownList!$B$47,CntyQuery!$A$51:$CE$93,AP$1)","v":212},{"$f":"VLOOKUP(DropDownList!$B$47,CntyQuery!$A$51:$CE$93,AQ$1)","v":50},{"$f":"VLOOKUP(DropDownList!$B$47,CntyQuery!$A$51:$CE$93,AR$1)","v":15},{"$f":"VLOOKUP(DropDownList!$B$47,CntyQuery!$A$51:$CE$93,AS$1)","v":6},{"$f":"VLOOKUP(DropDownList!$B$47,CntyQuery!$A$51:$CE$93,AT$1)","v":18},{"$f":"VLOOKUP(DropDownList!$B$47,CntyQuery!$A$51:$CE$93,AU$1)","v":10},{"$f":"VLOOKUP(DropDownList!$B$47,CntyQuery!$A$51:$CE$93,AV$1)","v":20},{"$f":"VLOOKUP(DropDownList!$B$47,CntyQuery!$A$51:$CE$93,AW$1)","v":35},{"$f":"VLOOKUP(DropDownList!$B$47,CntyQuery!$A$51:$CE$93,AX$1)","v":33},{"$f":"VLOOKUP(DropDownList!$B$47,CntyQuery!$A$51:$CE$93,AY$1)","v":31},{"$f":"VLOOKUP(DropDownList!$B$47,CntyQuery!$A$51:$CE$93,AZ$1)","v":78},{"$f":"VLOOKUP(DropDownList!$B$47,CntyQuery!$A$51:$CE$93,BA$1)","v":311},{"$f":"VLOOKUP(DropDownList!$B$47,CntyQuery!$A$51:$CE$93,BB$1)","v":1366},{"$f":"VLOOKUP(DropDownList!$B$47,CntyQuery!$A$51:$CE$93,BC$1)","v":1172},{"$f":"VLOOKUP(DropDownList!$B$47,CntyQuery!$A$51:$CE$93,BD$1)","v":720},{"$f":"VLOOKUP(DropDownList!$B$47,CntyQuery!$A$51:$CE$93,BE$1)","v":265},{"$f":"VLOOKUP(DropDownList!$B$47,CntyQuery!$A$51:$CE$93,BF$1)","v":102},{"$f":"VLOOKUP(DropDownList!$B$47,CntyQuery!$A$51:$CE$93,BG$1)","v":97},{"$f":"VLOOKUP(DropDownList!$B$47,CntyQuery!$A$51:$CE$93,BH$1)","v":34},{"$f":"VLOOKUP(DropDownList!$B$47,CntyQuery!$A$51:$CE$93,BI$1)","v":12},{"$f":"VLOOKUP(DropDownList!$B$47,CntyQuery!$A$51:$CE$93,BJ$1)","v":3},{"$f":"VLOOKUP(DropDownList!$B$47,CntyQuery!$A$51:$CE$93,BK$1)","v":4},{"$f":"VLOOKUP(DropDownList!$B$47,CntyQuery!$A$51:$CE$93,BL$1)","v":105200},{"$f":"VLOOKUP(DropDownList!$B$47,CntyQuery!$A$51:$CE$93,BM$1)","v":5129},{"$f":"VLOOKUP(DropDownList!$B$47,CntyQuery!$A$51:$CE$93,BN$1)","v":3796},{"$f":"VLOOKUP(DropDownList!$B$47,CntyQuery!$A$51:$CE$93,BO$1)","v":2151},{"$f":"VLOOKUP(DropDownList!$B$47,CntyQuery!$A$51:$CE$93,BP$1)","v":4588},{"$f":"VLOOKUP(DropDownList!$B$47,CntyQuery!$A$51:$CE$93,BQ$1)","v":626},{"$f":"VLOOKUP(DropDownList!$B$47,CntyQuery!$A$51:$CE$93,BR$1)","v":1837},{"$f":"VLOOKUP(DropDownList!$B$47,CntyQuery!$A$51:$CE$93,BS$1)","v":392},{"$f":"VLOOKUP(DropDownList!$B$47,CntyQuery!$A$51:$CE$93,BT$1)","v":2646},{"$f":"VLOOKUP(DropDownList!$B$47,CntyQuery!$A$51:$CE$93,BU$1)","v":132},{"$f":"VLOOKUP(DropDownList!$B$47,CntyQuery!$A$51:$CE$93,BV$1)","v":5129},{"$f":"VLOOKUP(DropDownList!$B$47,CntyQuery!$A$51:$CE$93,BW$1)","v":362},{"$f":"VLOOKUP(DropDownList!$B$47,CntyQuery!$A$51:$CE$93,BX$1)","v":942},{"$f":"VLOOKUP(DropDownList!$B$47,CntyQuery!$A$51:$CE$93,BY$1)","v":1151},{"$f":"VLOOKUP(DropDownList!$B$47,CntyQuery!$A$51:$CE$93,BZ$1)","v":696},{"$f":"VLOOKUP(DropDownList!$B$47,CntyQuery!$A$51:$CE$93,CA$1)","v":273},{"$f":"VLOOKUP(DropDownList!$B$47,CntyQuery!$A$51:$CE$93,CB$1)","v":218},{"$f":"VLOOKUP(DropDownList!$B$47,CntyQuery!$A$51:$CE$93,CC$1)","v":154},{"$f":"VLOOKUP(DropDownList!$B$47,CntyQuery!$A$51:$CE$93,CD$1)","v":2041},{"$f":"VLOOKUP(DropDownList!$B$47,CntyQuery!$A$51:$CE$93,CE$1)","v":110}]
[]
[]
["Census 1990 Data -          Query Name: TownSTF3Qry1"]
["NAME","FIPS","COUSUBFP","LandAcres","WaterAcres","HousingUnits90Cen","P01Persons90Cen","P02Families90Cen","P03Households90cen","H25HU<5yrs90cen","H25HU5to20yrs90cen","H25HU20to50yrs90cen","H25HU>50yrs90cen","H31Units0Bedroom90cen","H31Units1Bedroom90cen","H31Units2Bedroom90cen","H31Units3Bedroom90cen","H31Units4Bedroom90cen","H31Units5+Bedroom90cen","P80HI<5K","P80HI5Kto10K","P80HI10Kto15K","P80HI15Kto25K","P80HI25Kto35K","P80HI35Kto50K","P80HI50Kto75K","P80HI75Kto100K","P80HI>100K","P80AMedHI","P86HH<25HI<5K","P86HH<25HI5Kto10K","P86HH<25HI10Kto15K","P86HH<25HI15Kto25K","P86HH<25HI25Kto35K","P86HH<25HI35Kto50K","P86HH<25HI50Kto75K","P86HH<25HI75Kto100K","P86HH<25HI>100K","P86HH25to34HI<5K","P86HH25to34HI5Kto10K","P86HH25to34HI10Kto15K","P86HH25to34HI15Kto25K","P86HH25to34HI25Kto35K","P86HH25to34HI35Kto50K","P86HH25to34HI50Kto75K","P86HH25to34HI75Kto100K","P86HH25to34HI>100K","P86HH35to44HI<5K","P86HH35to44HI5Kto10K","P86HH35to44HI10Kto15K","P86HH35to44HI15Kto25K","P86HH35to44HI25Kto35K","P86HH35to44HI35Kto50K","P86HH35to44HI50Kto75K","P86HH35to44HI75Kto100K","P86HH35to44HI>100K","P86HH45to54HI<5K","P86HH45to54HI5Kto10K","P86HH45to54HI10Kto15K","P86HH45to54HI15Kto25K","P86HH45to54HI25Kto35K","P86HH45to54HI35Kto50K","P86HH45to54HI50Kto75K","P86HH45to54HI75Kto100K","P86HH45to54HI>100K","P86HH55to64HI<5K","P86HH55to64HI5Kto10K","P86HH55to64HI10Kto15K","P86HH55to64HI15Kto25K","P86HH55to64HI25Kto35K","P86HH55to64HI35Kto50K","P86HH55to64HI50Kto75K","P86HH55to64HI75Kto100K","P86HH55to64HI>100K","P86HH65to74HI<5K","P86HH65to74HI5Kto10K","P86HH65to74HI10Kto15K","P86HH65to74HI15Kto25K","P86HH65to74HI25Kto35K","P86HH65to74HI35Kto50K","P86HH65to74HI50Kto75K","P86HH65to74HI75Kto100K","P86HH65to74HI>100K","P86HH>75HI<5K","P86HH>75HI5Kto10K","P86HH>75HI10Kto15K","P86HH>75HI15Kto25K","P86HH>75HI25Kto35K","P86HH>75HI35Kto50K","P86HH>75HI50Kto75K","P86HH>75HI75Kto100K","P86HH>75HI>100K","P54SchlEnrlPrePrim","P54SchlEnrlElemThrHS","P54SchlEnrlCollege","P54NotEnrlInSch","P57Pop25andOver","P57LessThan9thGrade","P579thto12thNoDip","P57HSGrad","P57SomeCollege","P57AssocDeg","P57BachelDeg","P57GradorProfDeg","P57HSGradorHigher","P57CollGradorHigher","P42NativePop","P42ForeignBornPop","P42BornStateOfRes","P37NativePop2","P37ForeignBornPop2","P49DroveAlone","P49CarPooled","P49PublicTranspt","P49Walked","P49OtherMeans","P49WorkedAtHome","P80HHInc<10K","P80HHInc10to15K","P80HHInc15to25K","P80HHInc25to35K","P80HHInc35to50K","P80HHInc50to75K","P80HHInc75to100K","P80HHInc100to150K","P80HHInc>150K","H25YearStBlt89to90","H25YearStBlt85to88","H25YearStBlt80to84","H25YearStBlt70to79","H25YearStBlt60to69","H25YearStBlt50to59","H25YearStBlt40to49","H25YearStBlt39earlier","P107FamInc<10K","P107FamInc10to15K","P107FamInc15to25K","P107FamInc25to35K","P107FamInc35to50K","P107FamInc50to75K","P107FamInc75to100K","P107FamInc100to150K","P107FamInc>150K","P107AMedFamInc","P110NonFamInc<10K","P110NonFamInc10to15K","P110NonFamInc15to25K","P110NonFamInc25to35K","P110NonFamInc35to50K","P110NonFamInc50to75K","P110NonFamInc75to100K","P110NonFamInc100to150K","P110NonFamInc>150K","P110AMedNonFamInc","H16HU1Room","H16HU2Room","H16HU3Room","H16HU4Room","H16HU5Room","H16HU6Room","H16HU7Room","H16HU8Room","H16HU9+Room","H43GrossRnt<100","H43GrossRnt100to149","H43GrossRnt150to199","H43GrossRnt200to249","H43GrossRnt250to299","H43GrossRnt300to349","H43GrossRnt350to399","H43GrossRnt400to449","H43GrossRnt450to499","H43GrossRnt500to549","H43GrossRnt550to599","H43GrossRnt600to649","H43GrossRnt650to699","H43GrossRnt700to749","H43GrossRnt750to999","H43GrossRnt1000Plus","H43NoCashRent","H43MedGrossRent","H51GrossRnt<20PctHHInc","H51GrossRnt20to24PctHHInc","H51GrossRnt25to29PctHHInc","H51GrossRnt30to34PctHHInc","H51GrossRnt35PctOrMoreHHInc","H51GrossRntAsPctHHIncNotComp","H52HUwMtgMoOwnCst<200","H52HUwMtgMoOwnCst200to299","H52HUwMtgMoOwnCst300to399","H52HUwMtgMoOwnCst400to499","H52HUwMtgMoOwnCst500to599","H52HUwMtgMoOwnCst600to699","H52HUwMtgMoOwnCst700to799","H52HUwMtgMoOwnCst800to899","H52HUwMtgMoOwnCst900to999","H52HUwMtgMoOwnCst1000to1249","H52HUwMtgMoOwnCst1250to1499","H52HUwMtgMoOwnCst1500to1999","H52HUwMtgMoOwnCst2000More","H52HUwNoMtgMoOwnCst<100","H52HUwNoMtgMoOwnCst100to149","H52HUwNoMtgMoOwnCst150to199","H52HUwNoMtgMoOwnCst200to249","H52HUwNoMtgMoOwnCst250to299","H52HUwNoMtgMoOwnCst300to349","H52HUwNoMtgMoOwnCst350to399","H52HUwNoMtgMoOwnCst400More","H52AMedMoOwnCstWMortg","H52AMedMoOwnCstWNoMortg","H58HUwMtgMOC<20pHHInc","H58HUwMtgMOC20to24pHHInc","H58HUwMtgMOC25to29pHHInc","H58HUwMtgMOC30to34pHHInc","H58wMtgMOC>35pHHInc","H58HUwMtgMOCNotComp","H58HUwNoMtgMOC<20pHHInc","H58HUwNoMtgMOC20to24pHHInc","H58HUwNoMtgMOC25to29pHHInc","H58HUwNoMtgMOC30to34pHHInc","H58wNoMtgMOC>35pHHInc","H58HUwNoMtgMOCNotComp","H61OOHUVal<15k","H61OOHUVal15to19k","H61OOHUVal20to24k","H61OOHUVal25to29k","H61OOHUVal30to34k","H61OOHUVal35to39k","H61OOHUVal40to44k","H61OOHUVal45to49k","H61OOHUVal50to59k","H61OOHUVal60to74k","H61OOHUVal75to99k","H61OOHUVal100to124k","H61OOHUVal125to149k","H61OOHUVal150to174k","H61OOHUVal175to199k","H61OOHUVal200to249k","H61OOHUVal250to299k","H61OOHUVal300to399k","H61OOHUVal400to499k","H61OOHUVal500kOrMore","H61aOOHUMedVal"]
[]
[]
[]
["Other Demo Data -             Query Name: QryAllTowns-ACSDemographicSheet"]
["TOWN_NAME","FIPS","TOWNCNTY","COUSUB","POP80","POP90CDCEN","POP2000CEN","POP2010CEN","POP2020CEN","POP2025-Proj","POP2030-Proj","POP2035-Proj","SF80","MF80","MH80","SF81","MF81","MH81","SF82","MF82","MH82","SF83","MF83","MH83","SF84_OSP","MF84_OSP","MH84_OSP","SF85_OSP","MF85_OSP","MH85_OSP","SF86_OSP","MF86_OSP","MH86_OSP","SF87_OSP","MF87_OSP","MH87_OSP","SF88_OSP","MF88_OSP","MH88_OSP","SF89_OSP","MF89_OSP","MH89_OSP","SF90_OSP","MF90_OSP","MH90_OSP","SF91_OSP","MF91_OSP","MH91_OSP","SF92_OSP","MF92_OSP","MH92_OSP","SF93_OSP","MF93_OSP","MH93_OSP","SF94_OSP","MF94_OSP","MH94_OSP","SF95_OSP","MF95_OSP","MH95_OSP","SF96_OSP","MF96_OSP","MH96_OSP","SF97_OSP","MF97_OSP","MH97_OSP","SF98_OSP","MF98_OSP","MH98_OSP","SF99_OSP","MF99_OSP","MH99_OSP","SF00_OSP","MF00_OSP","MH00_OSP","SF01_OSP","MF01_OSP","MH01_OSP","SF02_OSP","MF02_OSP","MH02_OSP","SF03_OSP","MF03_OSP","MH03_OSP","SF04_OSP","MF04_OSP","MH04_OSP","SF05_OSP","MF05_OSP","MH05_OSP","SF06_OSP","MF06_OSP","MH06_OSP","SF07_OSP","MF07_OSP","MH07_OSP","SF08_OSP","MF08_OSP","MH08_OSP","SF09_OSP","MF09_OSP","MH09_OSP","SF10_OSP","MF10_OSP","MH10_OSP","SF11_OSP","MF11_OSP","MH11_OSP","SF12_OSP","MF12_OSP","MH12_OSP","SF13_OSP","MF13_OSP","MH13_OSP","SF14_OSP","MF14_OSP","MH14_OSP","SF15_OSP","MF15_OSP","MH15_OSP","SF16_OSP","MF16_OSP","MH16_OSP","SF17_OSP","MF17_OSP","MH17_OSP","SF18_OSP","MF18_OSP","MH18_OSP","SF19_OSP","MF19_OSP","MH19_OSP","SF20_OSP","MF20_OSP","MH20_OSP","SF20 Census_OSP","MF20 Census OSP","MH20 Census_OSP","SF21_OSP","MF21_OSP","MH21_OSP","COMMENTS","CNTY_CODE"]
[{"$f":"VLOOKUP(DropDownList!$A$47,CntyQuery!$A$118:$FZ$130,A$1)","v":"Rochester"},{"$f":"VLOOKUP(DropDownList!$A$47,CntyQuery!$A$118:$FZ$130,B$1)","v":17050},{"$f":"VLOOKUP(DropDownList!$A$47,CntyQuery!$A$118:$FZ$130,C$1)","v":910},{"$f":"VLOOKUP(DropDownList!$A$47,CntyQuery!$A$118:$FZ$130,D$1)","v":"65140"},{"$f":"VLOOKUP(DropDownList!$A$47,CntyQuery!$A$118:$FZ$130,E$1)","v":21560},{"$f":"VLOOKUP(DropDownList!$A$47,CntyQuery!$A$118:$FZ$130,F$1)","v":26630},{"$f":"VLOOKUP(DropDownList!$A$47,CntyQuery!$A$118:$FZ$130,G$1)","v":28461},{"$f":"VLOOKUP(DropDownList!$A$47,CntyQuery!$A$118:$FZ$130,H$1)","v":29752},{"$f":"VLOOKUP(DropDownList!$A$47,CntyQuery!$A$118:$FZ$130,I$1)","v":32492},{"$f":"VLOOKUP(DropDownList!$A$47,CntyQuery!$A$118:$FZ$130,J$1)","v":33801},{"$f":"VLOOKUP(DropDownList!$A$47,CntyQuery!$A$118:$FZ$130,K$1)","v":34894},{"$f":"VLOOKUP(DropDownList!$A$47,CntyQuery!$A$118:$FZ$130,L$1)","v":35800},{"$f":"VLOOKUP(DropDownList!$A$47,CntyQuery!$A$118:$FZ$130,M$1)","v":46},{"$f":"VLOOKUP(DropDownList!$A$47,CntyQuery!$A$118:$FZ$130,N$1)","v":48},{"$f":"VLOOKUP(DropDownList!$A$47,CntyQuery!$A$118:$FZ$130,O$1)","v":11},{"$f":"VLOOKUP(DropDownList!$A$47,CntyQuery!$A$118:$FZ$130,P$1)","v":31},{"$f":"VLOOKUP(DropDownList!$A$47,CntyQuery!$A$118:$FZ$130,Q$1)","v":0},{"$f":"VLOOKUP(DropDownList!$A$47,CntyQuery!$A$118:$FZ$130,R$1)","v":6},{"$f":"VLOOKUP(DropDownList!$A$47,CntyQuery!$A$118:$FZ$130,S$1)","v":19},{"$f":"VLOOKUP(DropDownList!$A$47,CntyQuery!$A$118:$FZ$130,T$1)","v":10},{"$f":"VLOOKUP(DropDownList!$A$47,CntyQuery!$A$118:$FZ$130,U$1)","v":8},{"$f":"VLOOKUP(DropDownList!$A$47,CntyQuery!$A$118:$FZ$130,V$1)","v":42},{"$f":"VLOOKUP(DropDownList!$A$47,CntyQuery!$A$118:$FZ$130,W$1)","v":2},{"$f":"VLOOKUP(DropDownList!$A$47,CntyQuery!$A$118:$FZ$130,X$1)","v":38},{"$f":"VLOOKUP(DropDownList!$A$47,CntyQuery!$A$118:$FZ$130,Y$1)","v":111},{"$f":"VLOOKUP(DropDownList!$A$47,CntyQuery!$A$118:$FZ$130,Z$1)","v":27},{"$f":"VLOOKUP(DropDownList!$A$47,CntyQuery!$A$118:$FZ$130,AA$1)","v":52},{"$f":"VLOOKUP(DropDownList!$A$47,CntyQuery!$A$118:$FZ$130,AB$1)","v":159},{"$f":"VLOOKUP(DropDownList!$A$47,CntyQuery!$A$118:$FZ$130,AC$1)","v":73},{"$f":"VLOOKUP(DropDownList!$A$47,CntyQuery!$A$118:$FZ$130,AD$1)","v":132},{"$f":"VLOOKUP(DropDownList!$A$47,CntyQuery!$A$118:$FZ$130,AE$1)","v":321},{"$f":"VLOOKUP(DropDownList!$A$47,CntyQuery!$A$118:$FZ$130,AF$1)","v":334},{"$f":"VLOOKUP(DropDownList!$A$47,CntyQuery!$A$118:$FZ$130,AG$1)","v":250},{"$f":"VLOOKUP(DropDownList!$A$47,CntyQuery!$A$118:$FZ$130,AH$1)","v":335},{"$f":"VLOOKUP(DropDownList!$A$47,CntyQuery!$A$118:$FZ$130,AI$1)","v":117},{"$f":"VLOOKUP(DropDownList!$A$47,CntyQuery!$A$118:$FZ$130,AJ$1)","v":159},{"$f":"VLOOKUP(DropDownList!$A$47,CntyQuery!$A$118:$FZ$130,AK$1)","v":81},{"$f":"VLOOKUP(DropDownList!$A$47,CntyQuery!$A$118:$FZ$130,AL$1)","v":28},{"$f":"VLOOKUP(DropDownList!$A$47,CntyQuery!$A$118:$FZ$130,AM$1)","v":87},{"$f":"VLOOKUP(DropDownList!$A$47,CntyQuery!$A$118:$FZ$130,AN$1)","v":114},{"$f":"VLOOKUP(DropDownList!$A$47,CntyQuery!$A$118:$FZ$130,AO$1)","v":1},{"$f":"VLOOKUP(DropDownList!$A$47,CntyQuery!$A$118:$FZ$130,AP$1)","v":78},{"$f":"VLOOKUP(DropDownList!$A$47,CntyQuery!$A$118:$FZ$130,AQ$1)","v":54},{"$f":"VLOOKUP(DropDownList!$A$47,CntyQuery!$A$118:$FZ$130,AR$1)","v":0},{"$f":"VLOOKUP(DropDownList!$A$47,CntyQuery!$A$118:$FZ$130,AS$1)","v":30},{"$f":"VLOOKUP(DropDownList!$A$47,CntyQuery!$A$118:$FZ$130,AT$1)","v":36},{"$f":"VLOOKUP(DropDownList!$A$47,CntyQuery!$A$118:$FZ$130,AU$1)","v":-7},{"$f":"VLOOKUP(DropDownList!$A$47,CntyQuery!$A$118:$FZ$130,AV$1)","v":32},{"$f":"VLOOKUP(DropDownList!$A$47,CntyQuery!$A$118:$FZ$130,AW$1)","v":36},{"$f":"VLOOKUP(DropDownList!$A$47,CntyQuery!$A$118:$FZ$130,AX$1)","v":2},{"$f":"VLOOKUP(DropDownList!$A$47,CntyQuery!$A$118:$FZ$130,AY$1)","v":28},{"$f":"VLOOKUP(DropDownList!$A$47,CntyQuery!$A$118:$FZ$130,AZ$1)","v":19},{"$f":"VLOOKUP(DropDownList!$A$47,CntyQuery!$A$118:$FZ$130,BA$1)","v":-6},{"$f":"VLOOKUP(DropDownList!$A$47,CntyQuery!$A$118:$FZ$130,BB$1)","v":69},{"$f":"VLOOKUP(DropDownList!$A$47,CntyQuery!$A$118:$FZ$130,BC$1)","v":47},{"$f":"VLOOKUP(DropDownList!$A$47,CntyQuery!$A$118:$FZ$130,BD$1)","v":43},{"$f":"VLOOKUP(DropDownList!$A$47,CntyQuery!$A$118:$FZ$130,BE$1)","v":61},{"$f":"VLOOKUP(DropDownList!$A$47,CntyQuery!$A$118:$FZ$130,BF$1)","v":30},{"$f":"VLOOKUP(DropDownList!$A$47,CntyQuery!$A$118:$FZ$130,BG$1)","v":5},{"$f":"VLOOKUP(DropDownList!$A$47,CntyQuery!$A$118:$FZ$130,BH$1)","v":37},{"$f":"VLOOKUP(DropDownList!$A$47,CntyQuery!$A$118:$FZ$130,BI$1)","v":26},{"$f":"VLOOKUP(DropDownList!$A$47,CntyQuery!$A$118:$FZ$130,BJ$1)","v":0},{"$f":"VLOOKUP(DropDownList!$A$47,CntyQuery!$A$118:$FZ$130,BK$1)","v":62},{"$f":"VLOOKUP(DropDownList!$A$47,CntyQuery!$A$118:$FZ$130,BL$1)","v":30},{"$f":"VLOOKUP(DropDownList!$A$47,CntyQuery!$A$118:$FZ$130,BM$1)","v":0},{"$f":"VLOOKUP(DropDownList!$A$47,CntyQuery!$A$118:$FZ$130,BN$1)","v":56},{"$f":"VLOOKUP(DropDownList!$A$47,CntyQuery!$A$118:$FZ$130,BO$1)","v":50},{"$f":"VLOOKUP(DropDownList!$A$47,CntyQuery!$A$118:$FZ$130,BP$1)","v":63},{"$f":"VLOOKUP(DropDownList!$A$47,CntyQuery!$A$118:$FZ$130,BQ$1)","v":88},{"$f":"VLOOKUP(DropDownList!$A$47,CntyQuery!$A$118:$FZ$130,BR$1)","v":79},{"$f":"VLOOKUP(DropDownList!$A$47,CntyQuery!$A$118:$FZ$130,BS$1)","v":0},{"$f":"VLOOKUP(DropDownList!$A$47,CntyQuery!$A$118:$FZ$130,BT$1)","v":52},{"$f":"VLOOKUP(DropDownList!$A$47,CntyQuery!$A$118:$FZ$130,BU$1)","v":87},{"$f":"VLOOKUP(DropDownList!$A$47,CntyQuery!$A$118:$FZ$130,BV$1)","v":16},{"$f":"VLOOKUP(DropDownList!$A$47,CntyQuery!$A$118:$FZ$130,BW$1)","v":40},{"$f":"VLOOKUP(DropDownList!$A$47,CntyQuery!$A$118:$FZ$130,BX$1)","v":62},{"$f":"VLOOKUP(DropDownList!$A$47,CntyQuery!$A$118:$FZ$130,BY$1)","v":-3},{"$f":"VLOOKUP(DropDownList!$A$47,CntyQuery!$A$118:$FZ$130,BZ$1)","v":71},{"$f":"VLOOKUP(DropDownList!$A$47,CntyQuery!$A$118:$FZ$130,CA$1)","v":108},{"$f":"VLOOKUP(DropDownList!$A$47,CntyQuery!$A$118:$FZ$130,CB$1)","v":7},{"$f":"VLOOKUP(DropDownList!$A$47,CntyQuery!$A$118:$FZ$130,CC$1)","v":88},{"$f":"VLOOKUP(DropDownList!$A$47,CntyQuery!$A$118:$FZ$130,CD$1)","v":86},{"$f":"VLOOKUP(DropDownList!$A$47,CntyQuery!$A$118:$FZ$130,CE$1)","v":193},{"$f":"VLOOKUP(DropDownList!$A$47,CntyQuery!$A$118:$FZ$130,CF$1)","v":61},{"$f":"VLOOKUP(DropDownList!$A$47,CntyQuery!$A$118:$FZ$130,CG$1)","v":158},{"$f":"VLOOKUP(DropDownList!$A$47,CntyQuery!$A$118:$FZ$130,CH$1)","v":90},{"$f":"VLOOKUP(DropDownList!$A$47,CntyQuery!$A$118:$FZ$130,CI$1)","v":44},{"$f":"VLOOKUP(DropDownList!$A$47,CntyQuery!$A$118:$FZ$130,CJ$1)","v":92},{"$f":"VLOOKUP(DropDownList!$A$47,CntyQuery!$A$118:$FZ$130,CK$1)","v":26},{"$f":"VLOOKUP(DropDownList!$A$47,CntyQuery!$A$118:$FZ$130,CL$1)","v":26},{"$f":"VLOOKUP(DropDownList!$A$47,CntyQuery!$A$118:$FZ$130,CM$1)","v":66},{"$f":"VLOOKUP(DropDownList!$A$47,CntyQuery!$A$118:$FZ$130,CN$1)","v":145},{"$f":"VLOOKUP(DropDownList!$A$47,CntyQuery!$A$118:$FZ$130,CO$1)","v":11},{"$f":"VLOOKUP(DropDownList!$A$47,CntyQuery!$A$118:$FZ$130,CP$1)","v":69},{"$f":"VLOOKUP(DropDownList!$A$47,CntyQuery!$A$118:$FZ$130,CQ$1)","v":4},{"$f":"VLOOKUP(DropDownList!$A$47,CntyQuery!$A$118:$FZ$130,CR$1)","v":0},{"$f":"VLOOKUP(DropDownList!$A$47,CntyQuery!$A$118:$FZ$130,CS$1)","v":63},{"$f":"VLOOKUP(DropDownList!$A$47,CntyQuery!$A$118:$FZ$130,CT$1)","v":0},{"$f":"VLOOKUP(DropDownList!$A$47,CntyQuery!$A$118:$FZ$130,CU$1)","v":18},{"$f":"VLOOKUP(DropDownList!$A$47,CntyQuery!$A$118:$FZ$130,CV$1)","v":15},{"$f":"VLOOKUP(DropDownList!$A$47,CntyQuery!$A$118:$FZ$130,CW$1)","v":30},{"$f":"VLOOKUP(DropDownList!$A$47,CntyQuery!$A$118:$FZ$130,CX$1)","v":1},{"$f":"VLOOKUP(DropDownList!$A$47,CntyQuery!$A$118:$FZ$130,CY$1)","v":20},{"$f":"VLOOKUP(DropDownList!$A$47,CntyQuery!$A$118:$FZ$130,CZ$1)","v":31},{"$f":"VLOOKUP(DropDownList!$A$47,CntyQuery!$A$118:$FZ$130,DA$1)","v":5},{"$f":"VLOOKUP(DropDownList!$A$47,CntyQuery!$A$118:$FZ$130,DB$1)","v":20},{"$f":"VLOOKUP(DropDownList!$A$47,CntyQuery!$A$118:$FZ$130,DC$1)","v":0},{"$f":"VLOOKUP(DropDownList!$A$47,CntyQuery!$A$118:$FZ$130,DD$1)","v":0},{"$f":"VLOOKUP(DropDownList!$A$47,CntyQuery!$A$118:$FZ$130,DE$1)","v":39},{"$f":"VLOOKUP(DropDownList!$A$47,CntyQuery!$A$118:$FZ$130,DF$1)","v":0},{"$f":"VLOOKUP(DropDownList!$A$47,CntyQuery!$A$118:$FZ$130,DG$1)","v":36},{"$f":"VLOOKUP(DropDownList!$A$47,CntyQuery!$A$118:$FZ$130,DH$1)","v":0},{"$f":"VLOOKUP(DropDownList!$A$47,CntyQuery!$A$118:$FZ$130,DI$1)","v":0},{"$f":"VLOOKUP(DropDownList!$A$47,CntyQuery!$A$118:$FZ$130,DJ$1)","v":3},{"$f":"VLOOKUP(DropDownList!$A$47,CntyQuery!$A$118:$FZ$130,DK$1)","v":27},{"$f":"VLOOKUP(DropDownList!$A$47,CntyQuery!$A$118:$FZ$130,DL$1)","v":24},{"$f":"VLOOKUP(DropDownList!$A$47,CntyQuery!$A$118:$FZ$130,DM$1)","v":7},{"$f":"VLOOKUP(DropDownList!$A$47,CntyQuery!$A$118:$FZ$130,DN$1)","v":45},{"$f":"VLOOKUP(DropDownList!$A$47,CntyQuery!$A$118:$FZ$130,DO$1)","v":51},{"$f":"VLOOKUP(DropDownList!$A$47,CntyQuery!$A$118:$FZ$130,DP$1)","v":0},{"$f":"VLOOKUP(DropDownList!$A$47,CntyQuery!$A$118:$FZ$130,DQ$1)","v":7},{"$f":"VLOOKUP(DropDownList!$A$47,CntyQuery!$A$118:$FZ$130,DR$1)","v":71},{"$f":"VLOOKUP(DropDownList!$A$47,CntyQuery!$A$118:$FZ$130,DS$1)","v":10},{"$f":"VLOOKUP(DropDownList!$A$47,CntyQuery!$A$118:$FZ$130,DT$1)","v":71},{"$f":"VLOOKUP(DropDownList!$A$47,CntyQuery!$A$118:$FZ$130,DU$1)","v":113},{"$f":"VLOOKUP(DropDownList!$A$47,CntyQuery!$A$118:$FZ$130,DV$1)","v":28},{"$f":"VLOOKUP(DropDownList!$A$47,CntyQuery!$A$118:$FZ$130,DW$1)","v":61},{"$f":"VLOOKUP(DropDownList!$A$47,CntyQuery!$A$118:$FZ$130,DX$1)","v":58},{"$f":"VLOOKUP(DropDownList!$A$47,CntyQuery!$A$118:$FZ$130,DY$1)","v":24},{"$f":"VLOOKUP(DropDownList!$A$47,CntyQuery!$A$118:$FZ$130,DZ$1)","v":33},{"$f":"VLOOKUP(DropDownList!$A$47,CntyQuery!$A$118:$FZ$130,EA$1)","v":123},{"$f":"VLOOKUP(DropDownList!$A$47,CntyQuery!$A$118:$FZ$130,EB$1)","v":5},{"$f":"VLOOKUP(DropDownList!$A$47,CntyQuery!$A$118:$FZ$130,EC$1)","v":55},{"$f":"VLOOKUP(DropDownList!$A$47,CntyQuery!$A$118:$FZ$130,ED$1)","v":15},{"$f":"VLOOKUP(DropDownList!$A$47,CntyQuery!$A$118:$FZ$130,EE$1)","v":22},{"$f":"VLOOKUP(DropDownList!$A$47,CntyQuery!$A$118:$FZ$130,EF$1)","v":0},{"$f":"VLOOKUP(DropDownList!$A$47,CntyQuery!$A$118:$FZ$130,EG$1)","v":0},{"$f":"VLOOKUP(DropDownList!$A$47,CntyQuery!$A$118:$FZ$130,EH$1)","v":0},{"$f":"VLOOKUP(DropDownList!$A$47,CntyQuery!$A$118:$FZ$130,EI$1)","v":54},{"$f":"VLOOKUP(DropDownList!$A$47,CntyQuery!$A$118:$FZ$130,EJ$1)","v":90},{"$f":"VLOOKUP(DropDownList!$A$47,CntyQuery!$A$118:$FZ$130,EK$1)","v":8},{"$f":"VLOOKUP(DropDownList!$A$47,CntyQuery!$A$118:$FZ$130,EL$1)","v":""},{"$f":"VLOOKUP(DropDownList!$A$47,CntyQuery!$A$118:$FZ$130,EM$1)","v":9}]
[]
[]
[]
["AreaName","COUNTYCODE","TOTP & G2001","TOT2001","GOODPRO2001","SERVICEPROMAN2001","WAGEP & G2001","WAGETOT2001","WAGEGOODPRO2001","WAGESERVICEPRO2001","TOTP & G2002","TOT2002","GOODPRO2002","SERVICEPROMAN2002","WAGEP & G2002","WAGETOT2002","WAGEGOODPRO2002","WAGESERVICEPRO2002","TOTP & G2003","TOT2003","GOODPRO2003","SERVICEPROMAN2003","WAGEP & G2003","WAGETOT2003","WAGEGOODPRO2003","WAGESERVICEPRO2003","TOTP & G2004","TOT2004","GOODPRO2004","SERVICEPROMAN2004","WAGEP & G2004","WAGETOT2004","WAGEGOODPRO2004","WAGESERVICEPRO2004","TOTP & G2005","TOT2005","GOODPRO2005","SERVICEPROMAN2005","WAGEP & G2005","WAGETOT2005","WAGEGOODPRO2005","WAGESERVICEPRO2005","TOTP & G2006","TOT2006","GOODPRO2006","SERVICEPROMAN2006","WAGEP & G2006","WAGETOT2006","WAGEGOODPRO2006","WAGESERVICEPRO2006","TOTP & G2007","TOT2007","GOODPRO2007","SERVICEPROMAN2007","WAGEP & G2007","WAGETOT2007","WAGEGOODPRO2007","WAGESERVICEPRO2007","TOTP & G2008","TOT2008","GOODPRO2008","SERVICEPROMAN2008","WAGEP & G2008","WAGETOT2008","WAGEGOODPRO2008","WAGESERVICEPRO2008","TOTP & G2009","TOT2009","GOODPRO2009","SERVICEPROMAN2009","WAGEP & G2009","WAGETOT2009","WAGEGOODPRO2009","WAGESERVICEPRO2009","TOTP & G2010","TOT2010","GOODPRO2010","SERVICEPROMAN2010","WAGEP & G2010","WAGETOT2010","WAGEGOODPRO2010","WAGESERVICEPRO2010","TOTP & G2011","TOT2011","GOODPRO2011","SERVICEPROMAN2011","WAGEP & G2011","WAGETOT2011","WAGEGOODPRO2011","WAGESERVICEPRO2011","TOTP & G2012","TOT2012","GOODPRO2012","SERVICEPROMAN2012","WAGEP & G2012","WAGETOT2012","WAGEGOODPRO2012","WAGESERVICEPRO2012","TOTP & G2013","TOT2013","GOODPRO2013","SERVICEPROMAN2013","WAGEP & G2013","WAGETOT2013","WAGEGOODPRO2013","WAGESERVICEPRO2013","TOTP & G2014","TOT2014","GOODPRO2014","SERVICEPROMAN2014","WAGEP & G2014","WAGETOT2014","WAGEGOODPRO2014","WAGESERVICEPRO2014","TOTP & G2015","TOT2015","GOODPRO2015","SERVICEPROMAN2015","WAGEP & G2015","WAGETOT2015","WAGEGOODPRO2015","WAGESERVICEPRO2015","TOTP & G2016","TOT2016","GOODPRO2016","SERVICEPROMAN2016","WAGEP & G2016","WAGETOT2016","WAGEGOODPRO2016","WAGESERVICEPRO2016","TOTP & G2017","TOT2017","GOODPRO2017","SERVICEPROMAN2017","WAGEP & G2017","WAGETOT2017","WAGEGOODPRO2017","WAGESERVICEPRO2017","TOTP & G2018","TOT2018","GOODPRO2018","SERVICEPROMAN2018","WAGEP & G2018","WAGETOT2018","WAGEGOODPRO2018","WAGESERVICEPRO2018","TOTP & G2019","TOT2019","TOTGov2019","GOODPRO2019","SERVICEPROMAN2019","WAGEP & G2019","WAGETOT2019","WAGEGov2019","WAGEGOODPRO2019","WAGESERVICEPRO2019","TOTP & G2020","TOT2020","TOTGov2020","GOODPRO2020","SERVICEPROMAN2020","WAGEP & G2020","WAGETOT2020","WAGEGov2020","WAGEGOODPRO2020","WAGESERVICEPRO2020","TOTP & G2021","TOT2021","TOTGov2021","GOODPRO2021","SERVICEPROMAN2021","WAGEP & G2021","WAGETOT2021","WAGEGov2021","WAGEGOODPRO2021","WAGESERVICEPRO2021","TOTP & G2022","TOT2022","TOTGov2022","GOODPRO2022","SERVICEPROMAN2022","WAGEP & G2022","WAGETOT2022","WAGEGov2022","WAGEGOODPRO2022","WAGESERVICEPRO2022","COUNTYCODE"]
[{"$f":"VLOOKUP(DropDownList!$B$47,CntyQuery!$A$170:$GZ$183,A$1)","v":"Rochester"},{"$f":"VLOOKUP(DropDownList!$B$47,CntyQuery!$A$170:$GZ$183,B$1)","v":9},{"$f":"VLOOKUP(DropDownList!$B$47,CntyQuery!$A$170:$GZ$183,C$1)","v":11888},{"$f":"VLOOKUP(DropDownList!$B$47,CntyQuery!$A$170:$GZ$183,D$1)","v":10711},{"$f":"VLOOKUP(DropDownList!$B$47,CntyQuery!$A$170:$GZ$183,E$1)","v":2575},{"$f":"VLOOKUP(DropDownList!$B$47,CntyQuery!$A$170:$GZ$183,F$1)","v":8136},{"$f":"VLOOKUP(DropDownList!$B$47,CntyQuery!$A$170:$GZ$183,G$1)","v":715.39},{"$f":"VLOOKUP(DropDownList!$B$47,CntyQuery!$A$170:$GZ$183,H$1)","v":729.43},{"$f":"VLOOKUP(DropDownList!$B$47,CntyQuery!$A$170:$GZ$183,I$1)","v":795.69},{"$f":"VLOOKUP(DropDownList!$B$47,CntyQuery!$A$170:$GZ$183,J$1)","v":708.46},{"$f":"VLOOKUP(DropDownList!$B$47,CntyQuery!$A$170:$GZ$183,K$1)","v":11143},{"$f":"VLOOKUP(DropDownList!$B$47,CntyQuery!$A$170:$GZ$183,L$1)","v":9848},{"$f":"VLOOKUP(DropDownList!$B$47,CntyQuery!$A$170:$GZ$183,M$1)","v":1791},{"$f":"VLOOKUP(DropDownList!$B$47,CntyQuery!$A$170:$GZ$183,N$1)","v":8057},{"$f":"VLOOKUP(DropDownList!$B$47,CntyQuery!$A$170:$GZ$183,O$1)","v":649.78},{"$f":"VLOOKUP(DropDownList!$B$47,CntyQuery!$A$170:$GZ$183,P$1)","v":660.08},{"$f":"VLOOKUP(DropDownList!$B$47,CntyQuery!$A$170:$GZ$183,Q$1)","v":817.04},{"$f":"VLOOKUP(DropDownList!$B$47,CntyQuery!$A$170:$GZ$183,R$1)","v":625.17999999999995},{"$f":"VLOOKUP(DropDownList!$B$47,CntyQuery!$A$170:$GZ$183,S$1)","v":11059},{"$f":"VLOOKUP(DropDownList!$B$47,CntyQuery!$A$170:$GZ$183,T$1)","v":9763},{"$f":"VLOOKUP(DropDownList!$B$47,CntyQuery!$A$170:$GZ$183,U$1)","v":1708},{"$f":"VLOOKUP(DropDownList!$B$47,CntyQuery!$A$170:$GZ$183,V$1)","v":8055},{"$f":"VLOOKUP(DropDownList!$B$47,CntyQuery!$A$170:$GZ$183,W$1)","v":642.30999999999995},{"$f":"VLOOKUP(DropDownList!$B$47,CntyQuery!$A$170:$GZ$183,X$1)","v":647.39},{"$f":"VLOOKUP(DropDownList!$B$47,CntyQuery!$A$170:$GZ$183,Y$1)","v":773.1},{"$f":"VLOOKUP(DropDownList!$B$47,CntyQuery!$A$170:$GZ$183,Z$1)","v":620.74},{"$f":"VLOOKUP(DropDownList!$B$47,CntyQuery!$A$170:$GZ$183,AA$1)","v":10935},{"$f":"VLOOKUP(DropDownList!$B$47,CntyQuery!$A$170:$GZ$183,AB$1)","v":9664},{"$f":"VLOOKUP(DropDownList!$B$47,CntyQuery!$A$170:$GZ$183,AC$1)","v":1666},{"$f":"VLOOKUP(DropDownList!$B$47,CntyQuery!$A$170:$GZ$183,AD$1)","v":7998},{"$f":"VLOOKUP(DropDownList!$B$47,CntyQuery!$A$170:$GZ$183,AE$1)","v":641.45000000000005},{"$f":"VLOOKUP(DropDownList!$B$47,CntyQuery!$A$170:$GZ$183,AF$1)","v":641.09},{"$f":"VLOOKUP(DropDownList!$B$47,CntyQuery!$A$170:$GZ$183,AG$1)","v":768.85},{"$f":"VLOOKUP(DropDownList!$B$47,CntyQuery!$A$170:$GZ$183,AH$1)","v":614.47},{"$f":"VLOOKUP(DropDownList!$B$47,CntyQuery!$A$170:$GZ$183,AI$1)","v":10944},{"$f":"VLOOKUP(DropDownList!$B$47,CntyQuery!$A$170:$GZ$183,AJ$1)","v":9654},{"$f":"VLOOKUP(DropDownList!$B$47,CntyQuery!$A$170:$GZ$183,AK$1)","v":1713},{"$f":"VLOOKUP(DropDownList!$B$47,CntyQuery!$A$170:$GZ$183,AL$1)","v":7941},{"$f":"VLOOKUP(DropDownList!$B$47,CntyQuery!$A$170:$GZ$183,AM$1)","v":644.64},{"$f":"VLOOKUP(DropDownList!$B$47,CntyQuery!$A$170:$GZ$183,AN$1)","v":644.05999999999995},{"$f":"VLOOKUP(DropDownList!$B$47,CntyQuery!$A$170:$GZ$183,AO$1)","v":764.91},{"$f":"VLOOKUP(DropDownList!$B$47,CntyQuery!$A$170:$GZ$183,AP$1)","v":618},{"$f":"VLOOKUP(DropDownList!$B$47,CntyQuery!$A$170:$GZ$183,AQ$1)","v":11250},{"$f":"VLOOKUP(DropDownList!$B$47,CntyQuery!$A$170:$GZ$183,AR$1)","v":9937},{"$f":"VLOOKUP(DropDownList!$B$47,CntyQuery!$A$170:$GZ$183,AS$1)","v":1790},{"$f":"VLOOKUP(DropDownList!$B$47,CntyQuery!$A$170:$GZ$183,AT$1)","v":8147},{"$f":"VLOOKUP(DropDownList!$B$47,CntyQuery!$A$170:$GZ$183,AU$1)","v":650.77},{"$f":"VLOOKUP(DropDownList!$B$47,CntyQuery!$A$170:$GZ$183,AV$1)","v":648.54999999999995},{"$f":"VLOOKUP(DropDownList!$B$47,CntyQuery!$A$170:$GZ$183,AW$1)","v":818},{"$f":"VLOOKUP(DropDownList!$B$47,CntyQuery!$A$170:$GZ$183,AX$1)","v":611.32000000000005},{"$f":"VLOOKUP(DropDownList!$B$47,CntyQuery!$A$170:$GZ$183,AY$1)","v":11702},{"$f":"VLOOKUP(DropDownList!$B$47,CntyQuery!$A$170:$GZ$183,AZ$1)","v":10330},{"$f":"VLOOKUP(DropDownList!$B$47,CntyQuery!$A$170:$GZ$183,BA$1)","v":1853},{"$f":"VLOOKUP(DropDownList!$B$47,CntyQuery!$A$170:$GZ$183,BB$1)","v":8476},{"$f":"VLOOKUP(DropDownList!$B$47,CntyQuery!$A$170:$GZ$183,BC$1)","v":670.68},{"$f":"VLOOKUP(DropDownList!$B$47,CntyQuery!$A$170:$GZ$183,BD$1)","v":667.45},{"$f":"VLOOKUP(DropDownList!$B$47,CntyQuery!$A$170:$GZ$183,BE$1)","v":846.88},{"$f":"VLOOKUP(DropDownList!$B$47,CntyQuery!$A$170:$GZ$183,BF$1)","v":628.21},{"$f":"VLOOKUP(DropDownList!$B$47,CntyQuery!$A$170:$GZ$183,BG$1)","v":11760},{"$f":"VLOOKUP(DropDownList!$B$47,CntyQuery!$A$170:$GZ$183,BH$1)","v":10354},{"$f":"VLOOKUP(DropDownList!$B$47,CntyQuery!$A$170:$GZ$183,BI$1)","v":1844},{"$f":"VLOOKUP(DropDownList!$B$47,CntyQuery!$A$170:$GZ$183,BJ$1)","v":8511},{"$f":"VLOOKUP(DropDownList!$B$47,CntyQuery!$A$170:$GZ$183,BK$1)","v":690.71},{"$f":"VLOOKUP(DropDownList!$B$47,CntyQuery!$A$170:$GZ$183,BL$1)","v":688.41},{"$f":"VLOOKUP(DropDownList!$B$47,CntyQuery!$A$170:$GZ$183,BM$1)","v":856},{"$f":"VLOOKUP(DropDownList!$B$47,CntyQuery!$A$170:$GZ$183,BN$1)","v":652.11},{"$f":"VLOOKUP(DropDownList!$B$47,CntyQuery!$A$170:$GZ$183,BO$1)","v":11201},{"$f":"VLOOKUP(DropDownList!$B$47,CntyQuery!$A$170:$GZ$183,BP$1)","v":9784},{"$f":"VLOOKUP(DropDownList!$B$47,CntyQuery!$A$170:$GZ$183,BQ$1)","v":1613},{"$f":"VLOOKUP(DropDownList!$B$47,CntyQuery!$A$170:$GZ$183,BR$1)","v":8171},{"$f":"VLOOKUP(DropDownList!$B$47,CntyQuery!$A$170:$GZ$183,BS$1)","v":686},{"$f":"VLOOKUP(DropDownList!$B$47,CntyQuery!$A$170:$GZ$183,BT$1)","v":680.33},{"$f":"VLOOKUP(DropDownList!$B$47,CntyQuery!$A$170:$GZ$183,BU$1)","v":907.22},{"$f":"VLOOKUP(DropDownList!$B$47,CntyQuery!$A$170:$GZ$183,BV$1)","v":635.54},{"$f":"VLOOKUP(DropDownList!$B$47,CntyQuery!$A$170:$GZ$183,BW$1)","v":11079},{"$f":"VLOOKUP(DropDownList!$B$47,CntyQuery!$A$170:$GZ$183,BX$1)","v":9599},{"$f":"VLOOKUP(DropDownList!$B$47,CntyQuery!$A$170:$GZ$183,BY$1)","v":1671},{"$f":"VLOOKUP(DropDownList!$B$47,CntyQuery!$A$170:$GZ$183,BZ$1)","v":7928},{"$f":"VLOOKUP(DropDownList!$B$47,CntyQuery!$A$170:$GZ$183,CA$1)","v":706.57},{"$f":"VLOOKUP(DropDownList!$B$47,CntyQuery!$A$170:$GZ$183,CB$1)","v":705.31},{"$f":"VLOOKUP(DropDownList!$B$47,CntyQuery!$A$170:$GZ$183,CC$1)","v":977.22},{"$f":"VLOOKUP(DropDownList!$B$47,CntyQuery!$A$170:$GZ$183,CD$1)","v":647.99},{"$f":"VLOOKUP(DropDownList!$B$47,CntyQuery!$A$170:$GZ$183,CE$1)","v":10780},{"$f":"VLOOKUP(DropDownList!$B$47,CntyQuery!$A$170:$GZ$183,CF$1)","v":9364},{"$f":"VLOOKUP(DropDownList!$B$47,CntyQuery!$A$170:$GZ$183,CG$1)","v":1614},{"$f":"VLOOKUP(DropDownList!$B$47,CntyQuery!$A$170:$GZ$183,CH$1)","v":7750},{"$f":"VLOOKUP(DropDownList!$B$47,CntyQuery!$A$170:$GZ$183,CI$1)","v":734.07},{"$f":"VLOOKUP(DropDownList!$B$47,CntyQuery!$A$170:$GZ$183,CJ$1)","v":733.64},{"$f":"VLOOKUP(DropDownList!$B$47,CntyQuery!$A$170:$GZ$183,CK$1)","v":1062.29},{"$f":"VLOOKUP(DropDownList!$B$47,CntyQuery!$A$170:$GZ$183,CL$1)","v":665.17},{"$f":"VLOOKUP(DropDownList!$B$47,CntyQuery!$A$170:$GZ$183,CM$1)","v":10732},{"$f":"VLOOKUP(DropDownList!$B$47,CntyQuery!$A$170:$GZ$183,CN$1)","v":9318},{"$f":"VLOOKUP(DropDownList!$B$47,CntyQuery!$A$170:$GZ$183,CO$1)","v":1559},{"$f":"VLOOKUP(DropDownList!$B$47,CntyQuery!$A$170:$GZ$183,CP$1)","v":7760},{"$f":"VLOOKUP(DropDownList!$B$47,CntyQuery!$A$170:$GZ$183,CQ$1)","v":750.73},{"$f":"VLOOKUP(DropDownList!$B$47,CntyQuery!$A$170:$GZ$183,CR$1)","v":752.87},{"$f":"VLOOKUP(DropDownList!$B$47,CntyQuery!$A$170:$GZ$183,CS$1)","v":1163.8599999999999},{"$f":"VLOOKUP(DropDownList!$B$47,CntyQuery!$A$170:$GZ$183,CT$1)","v":670.33},{"$f":"VLOOKUP(DropDownList!$B$47,CntyQuery!$A$170:$GZ$183,CU$1)","v":11035},{"$f":"VLOOKUP(DropDownList!$B$47,CntyQuery!$A$170:$GZ$183,CV$1)","v":9644},{"$f":"VLOOKUP(DropDownList!$B$47,CntyQuery!$A$170:$GZ$183,CW$1)","v":1759},{"$f":"VLOOKUP(DropDownList!$B$47,CntyQuery!$A$170:$GZ$183,CX$1)","v":7885},{"$f":"VLOOKUP(DropDownList!$B$47,CntyQuery!$A$170:$GZ$183,CY$1)","v":767.61},{"$f":"VLOOKUP(DropDownList!$B$47,CntyQuery!$A$170:$GZ$183,CZ$1)","v":766.34},{"$f":"VLOOKUP(DropDownList!$B$47,CntyQuery!$A$170:$GZ$183,DA$1)","v":1198.75},{"$f":"VLOOKUP(DropDownList!$B$47,CntyQuery!$A$170:$GZ$183,DB$1)","v":669.88},{"$f":"VLOOKUP(DropDownList!$B$47,CntyQuery!$A$170:$GZ$183,DC$1)","v":11249},{"$f":"VLOOKUP(DropDownList!$B$47,CntyQuery!$A$170:$GZ$183,DD$1)","v":9811},{"$f":"VLOOKUP(DropDownList!$B$47,CntyQuery!$A$170:$GZ$183,DE$1)","v":1897},{"$f":"VLOOKUP(DropDownList!$B$47,CntyQuery!$A$170:$GZ$183,DF$1)","v":7914},{"$f":"VLOOKUP(DropDownList!$B$47,CntyQuery!$A$170:$GZ$183,DG$1)","v":791.7},{"$f":"VLOOKUP(DropDownList!$B$47,CntyQuery!$A$170:$GZ$183,DH$1)","v":794.8},{"$f":"VLOOKUP(DropDownList!$B$47,CntyQuery!$A$170:$GZ$183,DI$1)","v":1206.82},{"$f":"VLOOKUP(DropDownList!$B$47,CntyQuery!$A$170:$GZ$183,DJ$1)","v":696.03},{"$f":"VLOOKUP(DropDownList!$B$47,CntyQuery!$A$170:$GZ$183,DK$1)","v":11523},{"$f":"VLOOKUP(DropDownList!$B$47,CntyQuery!$A$170:$GZ$183,DL$1)","v":10100},{"$f":"VLOOKUP(DropDownList!$B$47,CntyQuery!$A$170:$GZ$183,DM$1)","v":1939},{"$f":"VLOOKUP(DropDownList!$B$47,CntyQuery!$A$170:$GZ$183,DN$1)","v":8161},{"$f":"VLOOKUP(DropDownList!$B$47,CntyQuery!$A$170:$GZ$183,DO$1)","v":843.18},{"$f":"VLOOKUP(DropDownList!$B$47,CntyQuery!$A$170:$GZ$183,DP$1)","v":849.52},{"$f":"VLOOKUP(DropDownList!$B$47,CntyQuery!$A$170:$GZ$183,DQ$1)","v":1305.07},{"$f":"VLOOKUP(DropDownList!$B$47,CntyQuery!$A$170:$GZ$183,DR$1)","v":741.27},{"$f":"VLOOKUP(DropDownList!$B$47,CntyQuery!$A$170:$GZ$183,DS$1)","v":11928},{"$f":"VLOOKUP(DropDownList!$B$47,CntyQuery!$A$170:$GZ$183,DT$1)","v":10514},{"$f":"VLOOKUP(DropDownList!$B$47,CntyQuery!$A$170:$GZ$183,DU$1)","v":2072},{"$f":"VLOOKUP(DropDownList!$B$47,CntyQuery!$A$170:$GZ$183,DV$1)","v":8442},{"$f":"VLOOKUP(DropDownList!$B$47,CntyQuery!$A$170:$GZ$183,DW$1)","v":845.47},{"$f":"VLOOKUP(DropDownList!$B$47,CntyQuery!$A$170:$GZ$183,DX$1)","v":851.07},{"$f":"VLOOKUP(DropDownList!$B$47,CntyQuery!$A$170:$GZ$183,DY$1)","v":1296.42},{"$f":"VLOOKUP(DropDownList!$B$47,CntyQuery!$A$170:$GZ$183,DZ$1)","v":741.78},{"$f":"VLOOKUP(DropDownList!$B$47,CntyQuery!$A$170:$GZ$183,EA$1)","v":12108},{"$f":"VLOOKUP(DropDownList!$B$47,CntyQuery!$A$170:$GZ$183,EB$1)","v":10693},{"$f":"VLOOKUP(DropDownList!$B$47,CntyQuery!$A$170:$GZ$183,EC$1)","v":2170},{"$f":"VLOOKUP(DropDownList!$B$47,CntyQuery!$A$170:$GZ$183,ED$1)","v":8522},{"$f":"VLOOKUP(DropDownList!$B$47,CntyQuery!$A$170:$GZ$183,EE$1)","v":877.87},{"$f":"VLOOKUP(DropDownList!$B$47,CntyQuery!$A$170:$GZ$183,EF$1)","v":884.76},{"$f":"VLOOKUP(DropDownList!$B$47,CntyQuery!$A$170:$GZ$183,EG$1)","v":1388.36},{"$f":"VLOOKUP(DropDownList!$B$47,CntyQuery!$A$170:$GZ$183,EH$1)","v":756.52},{"$f":"VLOOKUP(DropDownList!$B$47,CntyQuery!$A$170:$GZ$183,EI$1)","v":12359},{"$f":"VLOOKUP(DropDownList!$B$47,CntyQuery!$A$170:$GZ$183,EJ$1)","v":10941},{"$f":"VLOOKUP(DropDownList!$B$47,CntyQuery!$A$170:$GZ$183,EK$1)","v":2260},{"$f":"VLOOKUP(DropDownList!$B$47,CntyQuery!$A$170:$GZ$183,EL$1)","v":8681},{"$f":"VLOOKUP(DropDownList!$B$47,CntyQuery!$A$170:$GZ$183,EM$1)","v":889.69},{"$f":"VLOOKUP(DropDownList!$B$47,CntyQuery!$A$170:$GZ$183,EN$1)","v":895.48},{"$f":"VLOOKUP(DropDownList!$B$47,CntyQuery!$A$170:$GZ$183,EO$1)","v":1302.67},{"$f":"VLOOKUP(DropDownList!$B$47,CntyQuery!$A$170:$GZ$183,EP$1)","v":789.49},{"$f":"VLOOKUP(DropDownList!$B$47,CntyQuery!$A$170:$GZ$183,EQ$1)","v":12483},{"$f":"VLOOKUP(DropDownList!$B$47,CntyQuery!$A$170:$GZ$183,ER$1)","v":11067},{"$f":"VLOOKUP(DropDownList!$B$47,CntyQuery!$A$170:$GZ$183,ES$1)","v":1415},{"$f":"VLOOKUP(DropDownList!$B$47,CntyQuery!$A$170:$GZ$183,ET$1)","v":2370},{"$f":"VLOOKUP(DropDownList!$B$47,CntyQuery!$A$170:$GZ$183,EU$1)","v":8697},{"$f":"VLOOKUP(DropDownList!$B$47,CntyQuery!$A$170:$GZ$183,EV$1)","v":901.03},{"$f":"VLOOKUP(DropDownList!$B$47,CntyQuery!$A$170:$GZ$183,EW$1)","v":906.17},{"$f":"VLOOKUP(DropDownList!$B$47,CntyQuery!$A$170:$GZ$183,EX$1)","v":860.8},{"$f":"VLOOKUP(DropDownList!$B$47,CntyQuery!$A$170:$GZ$183,EY$1)","v":1307.21},{"$f":"VLOOKUP(DropDownList!$B$47,CntyQuery!$A$170:$GZ$183,EZ$1)","v":796.89},{"$f":"VLOOKUP(DropDownList!$B$47,CntyQuery!$A$170:$GZ$183,FA$1)","v":11425},{"$f":"VLOOKUP(DropDownList!$B$47,CntyQuery!$A$170:$GZ$183,FB$1)","v":10041},{"$f":"VLOOKUP(DropDownList!$B$47,CntyQuery!$A$170:$GZ$183,FC$1)","v":1384},{"$f":"VLOOKUP(DropDownList!$B$47,CntyQuery!$A$170:$GZ$183,FD$1)","v":2061},{"$f":"VLOOKUP(DropDownList!$B$47,CntyQuery!$A$170:$GZ$183,FE$1)","v":7980},{"$f":"VLOOKUP(DropDownList!$B$47,CntyQuery!$A$170:$GZ$183,FF$1)","v":967.66},{"$f":"VLOOKUP(DropDownList!$B$47,CntyQuery!$A$170:$GZ$183,FG$1)","v":976.39},{"$f":"VLOOKUP(DropDownList!$B$47,CntyQuery!$A$170:$GZ$183,FH$1)","v":904.31},{"$f":"VLOOKUP(DropDownList!$B$47,CntyQuery!$A$170:$GZ$183,FI$1)","v":1406.28},{"$f":"VLOOKUP(DropDownList!$B$47,CntyQuery!$A$170:$GZ$183,FJ$1)","v":865.36},{"$f":"VLOOKUP(DropDownList!$B$47,CntyQuery!$A$170:$GZ$183,FK$1)","v":11529},{"$f":"VLOOKUP(DropDownList!$B$47,CntyQuery!$A$170:$GZ$183,FL$1)","v":10204},{"$f":"VLOOKUP(DropDownList!$B$47,CntyQuery!$A$170:$GZ$183,FM$1)","v":1326},{"$f":"VLOOKUP(DropDownList!$B$47,CntyQuery!$A$170:$GZ$183,FN$1)","v":2128},{"$f":"VLOOKUP(DropDownList!$B$47,CntyQuery!$A$170:$GZ$183,FO$1)","v":8076},{"$f":"VLOOKUP(DropDownList!$B$47,CntyQuery!$A$170:$GZ$183,FP$1)","v":990.28},{"$f":"VLOOKUP(DropDownList!$B$47,CntyQuery!$A$170:$GZ$183,FQ$1)","v":995.49},{"$f":"VLOOKUP(DropDownList!$B$47,CntyQuery!$A$170:$GZ$183,FR$1)","v":950.19},{"$f":"VLOOKUP(DropDownList!$B$47,CntyQuery!$A$170:$GZ$183,FS$1)","v":1416.61},{"$f":"VLOOKUP(DropDownList!$B$47,CntyQuery!$A$170:$GZ$183,FT$1)","v":884.52},{"$f":"VLOOKUP(DropDownList!$B$47,CntyQuery!$A$170:$GZ$183,FU$1)","v":11852},{"$f":"VLOOKUP(DropDownList!$B$47,CntyQuery!$A$170:$GZ$183,FV$1)","v":10576},{"$f":"VLOOKUP(DropDownList!$B$47,CntyQuery!$A$170:$GZ$183,FW$1)","v":1276},{"$f":"VLOOKUP(DropDownList!$B$47,CntyQuery!$A$170:$GZ$183,FX$1)","v":2349},{"$f":"VLOOKUP(DropDownList!$B$47,CntyQuery!$A$170:$GZ$183,FY$1)","v":8227},{"$f":"VLOOKUP(DropDownList!$B$47,CntyQuery!$A$170:$GZ$183,FZ$1)","v":1042},{"$f":"VLOOKUP(DropDownList!$B$47,CntyQuery!$A$170:$GZ$183,GA$1)","v":1048},{"$f":"VLOOKUP(DropDownList!$B$47,CntyQuery!$A$170:$GZ$183,GB$1)","v":995},{"$f":"VLOOKUP(DropDownList!$B$47,CntyQuery!$A$170:$GZ$183,GC$1)","v":1433},{"$f":"VLOOKUP(DropDownList!$B$47,CntyQuery!$A$170:$GZ$183,GD$1)","v":938},{"$f":"VLOOKUP(DropDownList!$B$47,CntyQuery!$A$170:$GZ$183,GE$1)","v":9}]
[]
[]
["Labor Force and Unemployment Rate","Query Name: DPQryUnempByCnty"]
["PlaceName","LaborForce1990","LaborForce1991","LaborForce1992","LaborForce1993","LaborForce1994","LaborForce1995","LaborForce1996","LaborForce1997","LaborForce1998","LaborForce1999","LaborForce2000","LaborForce2001","LaborForce2002","LaborForce2003","NumbEmployed1990","NumbEmployed1991","NumbEmployed1992","NumbEmployed1993","NumbEmployed1994","NumbEmployed1995","NumbEmployed1996","NumbEmployed1997","NumbEmployed1998","NumbEmployed1999","NumbEmployed2000","NumbEmployed2001","NumbEmployed2002","NumbEmployed2003","UnempRate1990","UnempRate1991","UnempRate1992","UnempRate1993","UnempRate1994","UnempRate1995","UnempRate1996","UnempRate1997","UnempRate1998","UnempRate1999","UnempRate2000","UnempRate2001","UnempRate2002","UnempRate2003","NumbUnEmp1990","NumbUnEmp1991","NumbUnEmp1992","NumbUnEmp1993","NumbUnEmp1994","NumbUnEmp1995","NumbUnEmp1996","NumbUnEmp1997","NumbUnEmp1998","NumbUnEmp1999","NumbUnEmp2000","NumbUnEmp2001","NumbUnEmp2002","NumbUnEmp2003","LaborForce2004","NumbEmployed2004","UnempRate2004","NumbUnEmp2004","LaborForce2005","NumbEmployed2005","NumbUnEmp2005","UnempRate2005","LaborForce2006","NumbEmployed2006","NumbUnEmp2006","UnempRate2006","LaborForce2007","NumbEmployed2007","NumbUnEmp2007","UnempRate2007","LaborForce2008","NumbEmployed2008","NumbUnEmp2008","UnempRate2008","LaborForce2009","NumbEmployed2009","NumbUnEmp2009","UnempRate2009","LaborForce2010","NumbEmployed2010","NumbUnEmp2010","UnempRate2010","LaborForce2011","NumbEmployed2011","NumbUnEmp2011","UnempRate2011","LaborForce2012","NumbEmployed2012","NumbUnEmp2012","UnempRate2012","LaborForce2013","NumbEmployed2013","NumbUnEmp2013","UnempRate2013","LaborForce2014","NumbEmployed2014","NumbUnEmp2014","UnempRate2014","LaborForce2015","NumbEmployed2015","NumbUnEmp2015","UnempRate2015","LaborForce2016","NumbEmployed2016","NumbUnEmp2016","UnempRate2016","LaborForce2017","NumbEmployed2017","NumbUnEmp2017","UnempRate2017","LaborForce2018","NumbEmployed2018","NumbUnEmp2018","UnempRate2018","LaborForce2019","NumbEmployed2019","NumbUnEmp2019","UnempRate2019","LaborForce2020","NumbEmployed2020","NumbUnEmp2020","UnempRate2020","LaborForce2021","NumbEmployed2021","NumbUnEmp2021","UnempRate2021","Place-TownIDNumber"]
[{"$f":"VLOOKUP(DropDownList!$B$47,CntyQuery!$A$220:$EF$229,A$1)","v":"Rochester"},{"$f":"VLOOKUP(DropDownList!$B$47,CntyQuery!$A$220:$EF$229,B$1)","v":14242},{"$f":"VLOOKUP(DropDownList!$B$47,CntyQuery!$A$220:$EF$229,C$1)","v":14280},{"$f":"VLOOKUP(DropDownList!$B$47,CntyQuery!$A$220:$EF$229,D$1)","v":14153},{"$f":"VLOOKUP(DropDownList!$B$47,CntyQuery!$A$220:$EF$229,E$1)","v":14123},{"$f":"VLOOKUP(DropDownList!$B$47,CntyQuery!$A$220:$EF$229,F$1)","v":13917},{"$f":"VLOOKUP(DropDownList!$B$47,CntyQuery!$A$220:$EF$229,G$1)","v":14056},{"$f":"VLOOKUP(DropDownList!$B$47,CntyQuery!$A$220:$EF$229,H$1)","v":14172},{"$f":"VLOOKUP(DropDownList!$B$47,CntyQuery!$A$220:$EF$229,I$1)","v":14407},{"$f":"VLOOKUP(DropDownList!$B$47,CntyQuery!$A$220:$EF$229,J$1)","v":14297},{"$f":"VLOOKUP(DropDownList!$B$47,CntyQuery!$A$220:$EF$229,K$1)","v":14288},{"$f":"VLOOKUP(DropDownList!$B$47,CntyQuery!$A$220:$EF$229,L$1)","v":15280},{"$f":"VLOOKUP(DropDownList!$B$47,CntyQuery!$A$220:$EF$229,M$1)","v":15450},{"$f":"VLOOKUP(DropDownList!$B$47,CntyQuery!$A$220:$EF$229,N$1)","v":15670},{"$f":"VLOOKUP(DropDownList!$B$47,CntyQuery!$A$220:$EF$229,O$1)","v":15900},{"$f":"VLOOKUP(DropDownList!$B$47,CntyQuery!$A$220:$EF$229,P$1)","v":13158},{"$f":"VLOOKUP(DropDownList!$B$47,CntyQuery!$A$220:$EF$229,Q$1)","v":12952},{"$f":"VLOOKUP(DropDownList!$B$47,CntyQuery!$A$220:$EF$229,R$1)","v":12771},{"$f":"VLOOKUP(DropDownList!$B$47,CntyQuery!$A$220:$EF$229,S$1)","v":13032},{"$f":"VLOOKUP(DropDownList!$B$47,CntyQuery!$A$220:$EF$229,T$1)","v":13177},{"$f":"VLOOKUP(DropDownList!$B$47,CntyQuery!$A$220:$EF$229,U$1)","v":13387},{"$f":"VLOOKUP(DropDownList!$B$47,CntyQuery!$A$220:$EF$229,V$1)","v":13529},{"$f":"VLOOKUP(DropDownList!$B$47,CntyQuery!$A$220:$EF$229,W$1)","v":13825},{"$f":"VLOOKUP(DropDownList!$B$47,CntyQuery!$A$220:$EF$229,X$1)","v":13799},{"$f":"VLOOKUP(DropDownList!$B$47,CntyQuery!$A$220:$EF$229,Y$1)","v":13892},{"$f":"VLOOKUP(DropDownList!$B$47,CntyQuery!$A$220:$EF$229,Z$1)","v":14820},{"$f":"VLOOKUP(DropDownList!$B$47,CntyQuery!$A$220:$EF$229,AA$1)","v":14880},{"$f":"VLOOKUP(DropDownList!$B$47,CntyQuery!$A$220:$EF$229,AB$1)","v":14870},{"$f":"VLOOKUP(DropDownList!$B$47,CntyQuery!$A$220:$EF$229,AC$1)","v":15210},{"$f":"VLOOKUP(DropDownList!$B$47,CntyQuery!$A$220:$EF$229,AD$1)","v":7.6000000000000005},{"$f":"VLOOKUP(DropDownList!$B$47,CntyQuery!$A$220:$EF$229,AE$1)","v":9.3000000000000007},{"$f":"VLOOKUP(DropDownList!$B$47,CntyQuery!$A$220:$EF$229,AF$1)","v":9.8000000000000007},{"$f":"VLOOKUP(DropDownList!$B$47,CntyQuery!$A$220:$EF$229,AG$1)","v":7.7},{"$f":"VLOOKUP(DropDownList!$B$47,CntyQuery!$A$220:$EF$229,AH$1)","v":5.3},{"$f":"VLOOKUP(DropDownList!$B$47,CntyQuery!$A$220:$EF$229,AI$1)","v":4.8},{"$f":"VLOOKUP(DropDownList!$B$47,CntyQuery!$A$220:$EF$229,AJ$1)","v":4.5},{"$f":"VLOOKUP(DropDownList!$B$47,CntyQuery!$A$220:$EF$229,AK$1)","v":4},{"$f":"VLOOKUP(DropDownList!$B$47,CntyQuery!$A$220:$EF$229,AL$1)","v":3.5},{"$f":"VLOOKUP(DropDownList!$B$47,CntyQuery!$A$220:$EF$229,AM$1)","v":2.8000000000000003},{"$f":"VLOOKUP(DropDownList!$B$47,CntyQuery!$A$220:$EF$229,AN$1)","v":3},{"$f":"VLOOKUP(DropDownList!$B$47,CntyQuery!$A$220:$EF$229,AO$1)","v":3.7000000000000006},{"$f":"VLOOKUP(DropDownList!$B$47,CntyQuery!$A$220:$EF$229,AP$1)","v":5.0999999999999996},{"$f":"VLOOKUP(DropDownList!$B$47,CntyQuery!$A$220:$EF$229,AQ$1)","v":4.3},{"$f":"VLOOKUP(DropDownList!$B$47,CntyQuery!$A$220:$EF$229,AR$1)","v":1084},{"$f":"VLOOKUP(DropDownList!$B$47,CntyQuery!$A$220:$EF$229,AS$1)","v":1328},{"$f":"VLOOKUP(DropDownList!$B$47,CntyQuery!$A$220:$EF$229,AT$1)","v":1382},{"$f":"VLOOKUP(DropDownList!$B$47,CntyQuery!$A$220:$EF$229,AU$1)","v":1091},{"$f":"VLOOKUP(DropDownList!$B$47,CntyQuery!$A$220:$EF$229,AV$1)","v":740},{"$f":"VLOOKUP(DropDownList!$B$47,CntyQuery!$A$220:$EF$229,AW$1)","v":669},{"$f":"VLOOKUP(DropDownList!$B$47,CntyQuery!$A$220:$EF$229,AX$1)","v":643},{"$f":"VLOOKUP(DropDownList!$B$47,CntyQuery!$A$220:$EF$229,AY$1)","v":582},{"$f":"VLOOKUP(DropDownList!$B$47,CntyQuery!$A$220:$EF$229,AZ$1)","v":498},{"$f":"VLOOKUP(DropDownList!$B$47,CntyQuery!$A$220:$EF$229,BA$1)","v":396},{"$f":"VLOOKUP(DropDownList!$B$47,CntyQuery!$A$220:$EF$229,BB$1)","v":460},{"$f":"VLOOKUP(DropDownList!$B$47,CntyQuery!$A$220:$EF$229,BC$1)","v":570},{"$f":"VLOOKUP(DropDownList!$B$47,CntyQuery!$A$220:$EF$229,BD$1)","v":800},{"$f":"VLOOKUP(DropDownList!$B$47,CntyQuery!$A$220:$EF$229,BE$1)","v":690},{"$f":"VLOOKUP(DropDownList!$B$47,CntyQuery!$A$220:$EF$229,BF$1)","v":16150},{"$f":"VLOOKUP(DropDownList!$B$47,CntyQuery!$A$220:$EF$229,BG$1)","v":15550},{"$f":"VLOOKUP(DropDownList!$B$47,CntyQuery!$A$220:$EF$229,BH$1)","v":3.7000000000000006},{"$f":"VLOOKUP(DropDownList!$B$47,CntyQuery!$A$220:$EF$229,BI$1)","v":600},{"$f":"VLOOKUP(DropDownList!$B$47,CntyQuery!$A$220:$EF$229,BJ$1)","v":16360},{"$f":"VLOOKUP(DropDownList!$B$47,CntyQuery!$A$220:$EF$229,BK$1)","v":15740},{"$f":"VLOOKUP(DropDownList!$B$47,CntyQuery!$A$220:$EF$229,BL$1)","v":620},{"$f":"VLOOKUP(DropDownList!$B$47,CntyQuery!$A$220:$EF$229,BM$1)","v":3.8},{"$f":"VLOOKUP(DropDownList!$B$47,CntyQuery!$A$220:$EF$229,BN$1)","v":16340},{"$f":"VLOOKUP(DropDownList!$B$47,CntyQuery!$A$220:$EF$229,BO$1)","v":15790},{"$f":"VLOOKUP(DropDownList!$B$47,CntyQuery!$A$220:$EF$229,BP$1)","v":550},{"$f":"VLOOKUP(DropDownList!$B$47,CntyQuery!$A$220:$EF$229,BQ$1)","v":3.3000000000000003},{"$f":"VLOOKUP(DropDownList!$B$47,CntyQuery!$A$220:$EF$229,BR$1)","v":16700},{"$f":"VLOOKUP(DropDownList!$B$47,CntyQuery!$A$220:$EF$229,BS$1)","v":16100},{"$f":"VLOOKUP(DropDownList!$B$47,CntyQuery!$A$220:$EF$229,BT$1)","v":600},{"$f":"VLOOKUP(DropDownList!$B$47,CntyQuery!$A$220:$EF$229,BU$1)","v":3.6000000000000005},{"$f":"VLOOKUP(DropDownList!$B$47,CntyQuery!$A$220:$EF$229,BV$1)","v":17120},{"$f":"VLOOKUP(DropDownList!$B$47,CntyQuery!$A$220:$EF$229,BW$1)","v":16410},{"$f":"VLOOKUP(DropDownList!$B$47,CntyQuery!$A$220:$EF$229,BX$1)","v":710},{"$f":"VLOOKUP(DropDownList!$B$47,CntyQuery!$A$220:$EF$229,BY$1)","v":4.0999999999999996},{"$f":"VLOOKUP(DropDownList!$B$47,CntyQuery!$A$220:$EF$229,BZ$1)","v":17210},{"$f":"VLOOKUP(DropDownList!$B$47,CntyQuery!$A$220:$EF$229,CA$1)","v":15950},{"$f":"VLOOKUP(DropDownList!$B$47,CntyQuery!$A$220:$EF$229,CB$1)","v":1260},{"$f":"VLOOKUP(DropDownList!$B$47,CntyQuery!$A$220:$EF$229,CC$1)","v":7.3},{"$f":"VLOOKUP(DropDownList!$B$47,CntyQuery!$A$220:$EF$229,CD$1)","v":16940},{"$f":"VLOOKUP(DropDownList!$B$47,CntyQuery!$A$220:$EF$229,CE$1)","v":15815},{"$f":"VLOOKUP(DropDownList!$B$47,CntyQuery!$A$220:$EF$229,CF$1)","v":1125},{"$f":"VLOOKUP(DropDownList!$B$47,CntyQuery!$A$220:$EF$229,CG$1)","v":6.6000000000000005},{"$f":"VLOOKUP(DropDownList!$B$47,CntyQuery!$A$220:$EF$229,CH$1)","v":16868},{"$f":"VLOOKUP(DropDownList!$B$47,CntyQuery!$A$220:$EF$229,CI$1)","v":15894},{"$f":"VLOOKUP(DropDownList!$B$47,CntyQuery!$A$220:$EF$229,CJ$1)","v":974},{"$f":"VLOOKUP(DropDownList!$B$47,CntyQuery!$A$220:$EF$229,CK$1)","v":5.8},{"$f":"VLOOKUP(DropDownList!$B$47,CntyQuery!$A$220:$EF$229,CL$1)","v":16840},{"$f":"VLOOKUP(DropDownList!$B$47,CntyQuery!$A$220:$EF$229,CM$1)","v":15863},{"$f":"VLOOKUP(DropDownList!$B$47,CntyQuery!$A$220:$EF$229,CN$1)","v":977},{"$f":"VLOOKUP(DropDownList!$B$47,CntyQuery!$A$220:$EF$229,CO$1)","v":5.8},{"$f":"VLOOKUP(DropDownList!$B$47,CntyQuery!$A$220:$EF$229,CP$1)","v":16849},{"$f":"VLOOKUP(DropDownList!$B$47,CntyQuery!$A$220:$EF$229,CQ$1)","v":15932},{"$f":"VLOOKUP(DropDownList!$B$47,CntyQuery!$A$220:$EF$229,CR$1)","v":917},{"$f":"VLOOKUP(DropDownList!$B$47,CntyQuery!$A$220:$EF$229,CS$1)","v":5.4},{"$f":"VLOOKUP(DropDownList!$B$47,CntyQuery!$A$220:$EF$229,CT$1)","v":16923},{"$f":"VLOOKUP(DropDownList!$B$47,CntyQuery!$A$220:$EF$229,CU$1)","v":16214},{"$f":"VLOOKUP(DropDownList!$B$47,CntyQuery!$A$220:$EF$229,CV$1)","v":709},{"$f":"VLOOKUP(DropDownList!$B$47,CntyQuery!$A$220:$EF$229,CW$1)","v":4.2},{"$f":"VLOOKUP(DropDownList!$B$47,CntyQuery!$A$220:$EF$229,CX$1)","v":16914},{"$f":"VLOOKUP(DropDownList!$B$47,CntyQuery!$A$220:$EF$229,CY$1)","v":16360},{"$f":"VLOOKUP(DropDownList!$B$47,CntyQuery!$A$220:$EF$229,CZ$1)","v":554},{"$f":"VLOOKUP(DropDownList!$B$47,CntyQuery!$A$220:$EF$229,DA$1)","v":3.3000000000000003},{"$f":"VLOOKUP(DropDownList!$B$47,CntyQuery!$A$220:$EF$229,DB$1)","v":17257},{"$f":"VLOOKUP(DropDownList!$B$47,CntyQuery!$A$220:$EF$229,DC$1)","v":16818},{"$f":"VLOOKUP(DropDownList!$B$47,CntyQuery!$A$220:$EF$229,DD$1)","v":439},{"$f":"VLOOKUP(DropDownList!$B$47,CntyQuery!$A$220:$EF$229,DE$1)","v":2.5},{"$f":"VLOOKUP(DropDownList!$B$47,CntyQuery!$A$220:$EF$229,DF$1)","v":17433},{"$f":"VLOOKUP(DropDownList!$B$47,CntyQuery!$A$220:$EF$229,DG$1)","v":17005},{"$f":"VLOOKUP(DropDownList!$B$47,CntyQuery!$A$220:$EF$229,DH$1)","v":428},{"$f":"VLOOKUP(DropDownList!$B$47,CntyQuery!$A$220:$EF$229,DI$1)","v":2.5},{"$f":"VLOOKUP(DropDownList!$B$47,CntyQuery!$A$220:$EF$229,DJ$1)","v":17920},{"$f":"VLOOKUP(DropDownList!$B$47,CntyQuery!$A$220:$EF$229,DK$1)","v":17480},{"$f":"VLOOKUP(DropDownList!$B$47,CntyQuery!$A$220:$EF$229,DL$1)","v":440},{"$f":"VLOOKUP(DropDownList!$B$47,CntyQuery!$A$220:$EF$229,DM$1)","v":2.4},{"$f":"VLOOKUP(DropDownList!$B$47,CntyQuery!$A$220:$EF$229,DN$1)","v":18140},{"$f":"VLOOKUP(DropDownList!$B$47,CntyQuery!$A$220:$EF$229,DO$1)","v":17700},{"$f":"VLOOKUP(DropDownList!$B$47,CntyQuery!$A$220:$EF$229,DP$1)","v":440},{"$f":"VLOOKUP(DropDownList!$B$47,CntyQuery!$A$220:$EF$229,DQ$1)","v":2.4},{"$f":"VLOOKUP(DropDownList!$B$47,CntyQuery!$A$220:$EF$229,DR$1)","v":17760},{"$f":"VLOOKUP(DropDownList!$B$47,CntyQuery!$A$220:$EF$229,DS$1)","v":16520},{"$f":"VLOOKUP(DropDownList!$B$47,CntyQuery!$A$220:$EF$229,DT$1)","v":1240},{"$f":"VLOOKUP(DropDownList!$B$47,CntyQuery!$A$220:$EF$229,DU$1)","v":7.0000000000000009},{"$f":"VLOOKUP(DropDownList!$B$47,CntyQuery!$A$220:$EF$229,DV$1)","v":17640},{"$f":"VLOOKUP(DropDownList!$B$47,CntyQuery!$A$220:$EF$229,DW$1)","v":17040},{"$f":"VLOOKUP(DropDownList!$B$47,CntyQuery!$A$220:$EF$229,DX$1)","v":600},{"$f":"VLOOKUP(DropDownList!$B$47,CntyQuery!$A$220:$EF$229,DY$1)","v":3.4000000000000004},{"$f":"VLOOKUP(DropDownList!$B$47,CntyQuery!$A$220:$EF$229,DZ$1)","v":17850}]
[]
[null,null,null,null,null,null,null,null,null,null,null,null,{"$f":"IF((CntyDataLink!$BL$25)=\"n\",NA(),IF(VALUE(CntyDataLink!$BL$25)=\"\",NA(),VALUE(CntyDataLink!$BL$25)))","v":688.41}]
["Census 2000   -           Query Name:  TownAllQuery3",2,{"$f":"B33+1","v":3},{"$f":"C33+1","v":4},5,6,7,8,9,10,11,12,13,14,15,16,17,18,19,20,21,22,23,24,25,26,27,28,29,30,31,32,33,34,35,36,37,38,39,40,41,42,43,44,45,46,47,48,49,50,51,52,53,54,55,56,57,58,59,60,61,62,63,64,65,66,67,{"$f":"BO33+1","v":68},69,70,71,72,73,74,75,76,77,78,79,80,81,82,83,84,85,86,87,88,89,90,91,92,93,94,95,96,97,98,99,100,101,102]
["NAME","COUNTY","LOGRECNO","COUSUB","TRACT","AREALAND","AREAWATR","POP100","HU100","2000Population","PopOfOneRace","PopWhite","PopBlack","PopAmIndian","PopAsian","PopHawaiian","PopOtherRace","Pop2orMoreRaces","PopHispanicLatino","PopNotHispanicLatino","PopMale","PopMale<15","PopMale15to24","PopMale25to34","PopMale35to44","PopMale45to54","PopMale55to64","PopMale65to74","PopMale75to84","PopMale85andOver","PopFemale","PopFemale<15","PopFemale15to24","PopFemale25to34","PopFemale35t44","PopFemale45to54","PopFemale55to64","PopFemale65to74","PopFemale75to84","PopFemale85andOver","Households2000","PopInHH","AvgHHSize","HHs1Person","HHs2orMorePerson","HHsFamily","HHMarriedCoupleFam","HHSingleParentFam","HHsNonFamily","Families","PopInFam","AvgFamSize","TotHsUnits","OccHsUnits","OwnerOccHU","RenterOccHU","VctHsUnits","VctHUForRent","VctHUForSale","VctHUSeasonal","PopInOccHU","PopInOwnOccHU","PopInRntOccHU","AvgHHSize2","AvgHHSizOwnOcc","AvgHHSizRntOcc","OwnOccWhtHsHldr","OwnOccBlkHsHldr","OwnOccAmIHsHldr","OwnOccAsnHsHldr","OwnOccPIsHsHldr","OwnOccORHsHldr","OwnOcc2RcHsHldr","RntOccWhtHsHldr","RntOccBlkHsHldr","RntOccAmIHsHldr","RntOccAsnHsHldr","RntOccPIsHsHldr","RntOccORHsHldr","RntOcc2RcHsHldr","OwnOccHH15to24","OwnOccHH25to34","OwnOccHH35to44","OwnOccHH45to54","OwnOccHH55to64","OwnOccHH65to74","OwnOccHH75to84","OwnOccHH85Over","RntOccHH15to24","RntOccHH25to34","RntOccHH35to44","RntOccHH45to54","RntOccHH55to64","RntOccHH65to74","RntOccHH75to84","RntOccHH85Over","P27TotalPop","P27PopInHseHlds","P27PopInGrpQtrs","Median Age Total","Median Age (Male)","Median Age (Female)"]
[{"$f":"VLOOKUP(DropDownList!$B$47,CntyQryCensus!$A$4:$CW$46,A$1)","v":"Rochester"},{"$f":"VLOOKUP(DropDownList!$B$47,CntyQryCensus!$A$4:$CW$46,B$1)","v":"017"},{"$f":"VLOOKUP(DropDownList!$B$47,CntyQryCensus!$A$4:$CW$46,C$1)","v":"0034907"},{"$f":"VLOOKUP(DropDownList!$B$47,CntyQryCensus!$A$4:$CW$46,D$1)","v":"65140"},{"$f":"VLOOKUP(DropDownList!$B$47,CntyQryCensus!$A$4:$CW$46,E$1)","v":""},{"$f":"VLOOKUP(DropDownList!$B$47,CntyQryCensus!$A$4:$CW$46,F$1)","v":"     116940933"},{"$f":"VLOOKUP(DropDownList!$B$47,CntyQryCensus!$A$4:$CW$46,G$1)","v":"       1625224"},{"$f":"VLOOKUP(DropDownList!$B$47,CntyQryCensus!$A$4:$CW$46,H$1)","v":28461},{"$f":"VLOOKUP(DropDownList!$B$47,CntyQryCensus!$A$4:$CW$46,I$1)","v":"    11836"},{"$f":"VLOOKUP(DropDownList!$B$47,CntyQryCensus!$A$4:$CW$46,J$1)","v":28461},{"$f":"VLOOKUP(DropDownList!$B$47,CntyQryCensus!$A$4:$CW$46,K$1)","v":28182},{"$f":"VLOOKUP(DropDownList!$B$47,CntyQryCensus!$A$4:$CW$46,L$1)","v":27640},{"$f":"VLOOKUP(DropDownList!$B$47,CntyQryCensus!$A$4:$CW$46,M$1)","v":149},{"$f":"VLOOKUP(DropDownList!$B$47,CntyQryCensus!$A$4:$CW$46,N$1)","v":62},{"$f":"VLOOKUP(DropDownList!$B$47,CntyQryCensus!$A$4:$CW$46,O$1)","v":248},{"$f":"VLOOKUP(DropDownList!$B$47,CntyQryCensus!$A$4:$CW$46,P$1)","v":9},{"$f":"VLOOKUP(DropDownList!$B$47,CntyQryCensus!$A$4:$CW$46,Q$1)","v":74},{"$f":"VLOOKUP(DropDownList!$B$47,CntyQryCensus!$A$4:$CW$46,R$1)","v":279},{"$f":"VLOOKUP(DropDownList!$B$47,CntyQryCensus!$A$4:$CW$46,S$1)","v":255},{"$f":"VLOOKUP(DropDownList!$B$47,CntyQryCensus!$A$4:$CW$46,T$1)","v":28206},{"$f":"VLOOKUP(DropDownList!$B$47,CntyQryCensus!$A$4:$CW$46,U$1)","v":13838},{"$f":"VLOOKUP(DropDownList!$B$47,CntyQryCensus!$A$4:$CW$46,V$1)","v":3142},{"$f":"VLOOKUP(DropDownList!$B$47,CntyQryCensus!$A$4:$CW$46,W$1)","v":1655},{"$f":"VLOOKUP(DropDownList!$B$47,CntyQryCensus!$A$4:$CW$46,X$1)","v":2002},{"$f":"VLOOKUP(DropDownList!$B$47,CntyQryCensus!$A$4:$CW$46,Y$1)","v":2422},{"$f":"VLOOKUP(DropDownList!$B$47,CntyQryCensus!$A$4:$CW$46,Z$1)","v":1852},{"$f":"VLOOKUP(DropDownList!$B$47,CntyQryCensus!$A$4:$CW$46,AA$1)","v":1202},{"$f":"VLOOKUP(DropDownList!$B$47,CntyQryCensus!$A$4:$CW$46,AB$1)","v":955},{"$f":"VLOOKUP(DropDownList!$B$47,CntyQryCensus!$A$4:$CW$46,AC$1)","v":499},{"$f":"VLOOKUP(DropDownList!$B$47,CntyQryCensus!$A$4:$CW$46,AD$1)","v":109},{"$f":"VLOOKUP(DropDownList!$B$47,CntyQryCensus!$A$4:$CW$46,AE$1)","v":14623},{"$f":"VLOOKUP(DropDownList!$B$47,CntyQryCensus!$A$4:$CW$46,AF$1)","v":2847},{"$f":"VLOOKUP(DropDownList!$B$47,CntyQryCensus!$A$4:$CW$46,AG$1)","v":1731},{"$f":"VLOOKUP(DropDownList!$B$47,CntyQryCensus!$A$4:$CW$46,AH$1)","v":2031},{"$f":"VLOOKUP(DropDownList!$B$47,CntyQryCensus!$A$4:$CW$46,AI$1)","v":2519},{"$f":"VLOOKUP(DropDownList!$B$47,CntyQryCensus!$A$4:$CW$46,AJ$1)","v":1976},{"$f":"VLOOKUP(DropDownList!$B$47,CntyQryCensus!$A$4:$CW$46,AK$1)","v":1248},{"$f":"VLOOKUP(DropDownList!$B$47,CntyQryCensus!$A$4:$CW$46,AL$1)","v":1116},{"$f":"VLOOKUP(DropDownList!$B$47,CntyQryCensus!$A$4:$CW$46,AM$1)","v":843},{"$f":"VLOOKUP(DropDownList!$B$47,CntyQryCensus!$A$4:$CW$46,AN$1)","v":312},{"$f":"VLOOKUP(DropDownList!$B$47,CntyQryCensus!$A$4:$CW$46,AO$1)","v":11434},{"$f":"VLOOKUP(DropDownList!$B$47,CntyQryCensus!$A$4:$CW$46,AP$1)","v":28168},{"$f":"VLOOKUP(DropDownList!$B$47,CntyQryCensus!$A$4:$CW$46,AQ$1)","v":2.46},{"$f":"VLOOKUP(DropDownList!$B$47,CntyQryCensus!$A$4:$CW$46,AR$1)","v":2936},{"$f":"VLOOKUP(DropDownList!$B$47,CntyQryCensus!$A$4:$CW$46,AS$1)","v":8498},{"$f":"VLOOKUP(DropDownList!$B$47,CntyQryCensus!$A$4:$CW$46,AT$1)","v":7648},{"$f":"VLOOKUP(DropDownList!$B$47,CntyQryCensus!$A$4:$CW$46,AU$1)","v":5819},{"$f":"VLOOKUP(DropDownList!$B$47,CntyQryCensus!$A$4:$CW$46,AV$1)","v":1829},{"$f":"VLOOKUP(DropDownList!$B$47,CntyQryCensus!$A$4:$CW$46,AW$1)","v":850},{"$f":"VLOOKUP(DropDownList!$B$47,CntyQryCensus!$A$4:$CW$46,AX$1)","v":7648},{"$f":"VLOOKUP(DropDownList!$B$47,CntyQryCensus!$A$4:$CW$46,AY$1)","v":22584},{"$f":"VLOOKUP(DropDownList!$B$47,CntyQryCensus!$A$4:$CW$46,AZ$1)","v":2.95},{"$f":"VLOOKUP(DropDownList!$B$47,CntyQryCensus!$A$4:$CW$46,BA$1)","v":11836},{"$f":"VLOOKUP(DropDownList!$B$47,CntyQryCensus!$A$4:$CW$46,BB$1)","v":11434},{"$f":"VLOOKUP(DropDownList!$B$47,CntyQryCensus!$A$4:$CW$46,BC$1)","v":7643},{"$f":"VLOOKUP(DropDownList!$B$47,CntyQryCensus!$A$4:$CW$46,BD$1)","v":3791},{"$f":"VLOOKUP(DropDownList!$B$47,CntyQryCensus!$A$4:$CW$46,BE$1)","v":402},{"$f":"VLOOKUP(DropDownList!$B$47,CntyQryCensus!$A$4:$CW$46,BF$1)","v":110},{"$f":"VLOOKUP(DropDownList!$B$47,CntyQryCensus!$A$4:$CW$46,BG$1)","v":68},{"$f":"VLOOKUP(DropDownList!$B$47,CntyQryCensus!$A$4:$CW$46,BH$1)","v":77},{"$f":"VLOOKUP(DropDownList!$B$47,CntyQryCensus!$A$4:$CW$46,BI$1)","v":28168},{"$f":"VLOOKUP(DropDownList!$B$47,CntyQryCensus!$A$4:$CW$46,BJ$1)","v":19590},{"$f":"VLOOKUP(DropDownList!$B$47,CntyQryCensus!$A$4:$CW$46,BK$1)","v":8578},{"$f":"VLOOKUP(DropDownList!$B$47,CntyQryCensus!$A$4:$CW$46,BL$1)","v":2.46},{"$f":"VLOOKUP(DropDownList!$B$47,CntyQryCensus!$A$4:$CW$46,BM$1)","v":2.56},{"$f":"VLOOKUP(DropDownList!$B$47,CntyQryCensus!$A$4:$CW$46,BN$1)","v":2.2599999999999998},{"$f":"VLOOKUP(DropDownList!$B$47,CntyQryCensus!$A$4:$CW$46,BO$1)","v":7538},{"$f":"VLOOKUP(DropDownList!$B$47,CntyQryCensus!$A$4:$CW$46,BP$1)","v":20},{"$f":"VLOOKUP(DropDownList!$B$47,CntyQryCensus!$A$4:$CW$46,BQ$1)","v":15},{"$f":"VLOOKUP(DropDownList!$B$47,CntyQryCensus!$A$4:$CW$46,BR$1)","v":29},{"$f":"VLOOKUP(DropDownList!$B$47,CntyQryCensus!$A$4:$CW$46,BS$1)","v":1},{"$f":"VLOOKUP(DropDownList!$B$47,CntyQryCensus!$A$4:$CW$46,BT$1)","v":8},{"$f":"VLOOKUP(DropDownList!$B$47,CntyQryCensus!$A$4:$CW$46,BU$1)","v":32},{"$f":"VLOOKUP(DropDownList!$B$47,CntyQryCensus!$A$4:$CW$46,BV$1)","v":3647},{"$f":"VLOOKUP(DropDownList!$B$47,CntyQryCensus!$A$4:$CW$46,BW$1)","v":35},{"$f":"VLOOKUP(DropDownList!$B$47,CntyQryCensus!$A$4:$CW$46,BX$1)","v":15},{"$f":"VLOOKUP(DropDownList!$B$47,CntyQryCensus!$A$4:$CW$46,BY$1)","v":42},{"$f":"VLOOKUP(DropDownList!$B$47,CntyQryCensus!$A$4:$CW$46,BZ$1)","v":0},{"$f":"VLOOKUP(DropDownList!$B$47,CntyQryCensus!$A$4:$CW$46,CA$1)","v":13},{"$f":"VLOOKUP(DropDownList!$B$47,CntyQryCensus!$A$4:$CW$46,CB$1)","v":39},{"$f":"VLOOKUP(DropDownList!$B$47,CntyQryCensus!$A$4:$CW$46,CC$1)","v":127},{"$f":"VLOOKUP(DropDownList!$B$47,CntyQryCensus!$A$4:$CW$46,CD$1)","v":986},{"$f":"VLOOKUP(DropDownList!$B$47,CntyQryCensus!$A$4:$CW$46,CE$1)","v":1890},{"$f":"VLOOKUP(DropDownList!$B$47,CntyQryCensus!$A$4:$CW$46,CF$1)","v":1632},{"$f":"VLOOKUP(DropDownList!$B$47,CntyQryCensus!$A$4:$CW$46,CG$1)","v":1155},{"$f":"VLOOKUP(DropDownList!$B$47,CntyQryCensus!$A$4:$CW$46,CH$1)","v":1073},{"$f":"VLOOKUP(DropDownList!$B$47,CntyQryCensus!$A$4:$CW$46,CI$1)","v":639},{"$f":"VLOOKUP(DropDownList!$B$47,CntyQryCensus!$A$4:$CW$46,CJ$1)","v":141},{"$f":"VLOOKUP(DropDownList!$B$47,CntyQryCensus!$A$4:$CW$46,CK$1)","v":434},{"$f":"VLOOKUP(DropDownList!$B$47,CntyQryCensus!$A$4:$CW$46,CL$1)","v":1021},{"$f":"VLOOKUP(DropDownList!$B$47,CntyQryCensus!$A$4:$CW$46,CM$1)","v":919},{"$f":"VLOOKUP(DropDownList!$B$47,CntyQryCensus!$A$4:$CW$46,CN$1)","v":552},{"$f":"VLOOKUP(DropDownList!$B$47,CntyQryCensus!$A$4:$CW$46,CO$1)","v":301},{"$f":"VLOOKUP(DropDownList!$B$47,CntyQryCensus!$A$4:$CW$46,CP$1)","v":261},{"$f":"VLOOKUP(DropDownList!$B$47,CntyQryCensus!$A$4:$CW$46,CQ$1)","v":232},{"$f":"VLOOKUP(DropDownList!$B$47,CntyQryCensus!$A$4:$CW$46,CR$1)","v":71},{"$f":"VLOOKUP(DropDownList!$B$47,CntyQryCensus!$A$4:$CW$46,CS$1)","v":28461},{"$f":"VLOOKUP(DropDownList!$B$47,CntyQryCensus!$A$4:$CW$46,CT$1)","v":28168},{"$f":"VLOOKUP(DropDownList!$B$47,CntyQryCensus!$A$4:$CW$46,CU$1)","v":293},{"$f":"VLOOKUP(DropDownList!$B$47,CntyQryCensus!$A$4:$CW$46,CV$1)","v":36.700000000000003},{"$f":"VLOOKUP(DropDownList!$B$47,CntyQryCensus!$A$4:$CW$46,CW$1)","v":35.5},{"$f":"VLOOKUP(DropDownList!$B$47,CntyQryCensus!$A$4:$CW$46,CX$1)","v":{"$error":"#REF!"}}]
[]
[]
["Census 2000 DemoProfile Sample Data Tables 2&3   -  DPTab23TownQry"]
["NAME","COUSUB","AREANAME","PopInSchool","Preschool","Kindergarten","Elementary","HighSchool","College","Pop25andOver","HighSchoolGrad","SomeCollege","AssocDegree","BachelDegree","GradDegree","HSGradorHigher","CollegeGradorHigher","Pop5to20yrs","Pop5to20wDis","Pop21to64","Pop21to64wDis","Pop65over","Pop65overwDis","Pop5yrsOver","SameHUin95","DiffHUinUSin95","HUinSameCountyin95","HUinSameStatein95","TotalPop","NativePop","NatPopBornUS","NatPopBornInStatRes","NatPopBornDiffState","NatPopBornOutUS","FornBornPop","FornPopEnt90to00","FornPopNatCit","FornPopNotCit","Households","HHIncLessThn10k","HHInc10to15K","HHInc15to25K","HHInc25to35K","HHInc35to50K","HHInc50to75K","HHInc75to100K","HHInc100to150K","HHInc150to200K","HHIncOver200K","MedianHHInc","HHwithPubAssistInc","MeanPubAssist","FamilyHH","FHHIncLessThn10k","FHHInc10to15K","FHHInc15to25K","FHHInc25to35K","FHHInc35to50K","FHHInc50to75K","FHHInc75to100K","FHHInc100to150K","FHHInc150to200K","FHHIncOver200K","MedianFHHInc","PerCapitaInc","PovStatFamilies","PovStatFHHwChilUnd18","PovStatFHHwChilUnd5","PovStFmalHH","DP3088","DP3089","PovStatIndiv","PovStatIndiv18yrOver","PovStatIndiv65yrOver","DP3093","DP3094","DP3095"]
[{"$f":"VLOOKUP(DropDownList!$B$47,CntyQryCensus!$A$53:$BY$96,A$1)","v":"Rochester"},{"$f":"VLOOKUP(DropDownList!$B$47,CntyQryCensus!$A$53:$BY$96,B$1)","v":"65140"},{"$f":"VLOOKUP(DropDownList!$B$47,CntyQryCensus!$A$53:$BY$96,C$1)","v":"Rochester city, New Hampshire"},{"$f":"VLOOKUP(DropDownList!$B$47,CntyQryCensus!$A$53:$BY$96,D$1)","v":6893},{"$f":"VLOOKUP(DropDownList!$B$47,CntyQryCensus!$A$53:$BY$96,E$1)","v":489},{"$f":"VLOOKUP(DropDownList!$B$47,CntyQryCensus!$A$53:$BY$96,F$1)","v":302},{"$f":"VLOOKUP(DropDownList!$B$47,CntyQryCensus!$A$53:$BY$96,G$1)","v":3387},{"$f":"VLOOKUP(DropDownList!$B$47,CntyQryCensus!$A$53:$BY$96,H$1)","v":1635},{"$f":"VLOOKUP(DropDownList!$B$47,CntyQryCensus!$A$53:$BY$96,I$1)","v":1080},{"$f":"VLOOKUP(DropDownList!$B$47,CntyQryCensus!$A$53:$BY$96,J$1)","v":19122},{"$f":"VLOOKUP(DropDownList!$B$47,CntyQryCensus!$A$53:$BY$96,K$1)","v":7264},{"$f":"VLOOKUP(DropDownList!$B$47,CntyQryCensus!$A$53:$BY$96,L$1)","v":4004},{"$f":"VLOOKUP(DropDownList!$B$47,CntyQryCensus!$A$53:$BY$96,M$1)","v":1666},{"$f":"VLOOKUP(DropDownList!$B$47,CntyQryCensus!$A$53:$BY$96,N$1)","v":1953},{"$f":"VLOOKUP(DropDownList!$B$47,CntyQryCensus!$A$53:$BY$96,O$1)","v":955},{"$f":"VLOOKUP(DropDownList!$B$47,CntyQryCensus!$A$53:$BY$96,P$1)","v":15842},{"$f":"VLOOKUP(DropDownList!$B$47,CntyQryCensus!$A$53:$BY$96,Q$1)","v":2908},{"$f":"VLOOKUP(DropDownList!$B$47,CntyQryCensus!$A$53:$BY$96,R$1)","v":6221},{"$f":"VLOOKUP(DropDownList!$B$47,CntyQryCensus!$A$53:$BY$96,S$1)","v":538},{"$f":"VLOOKUP(DropDownList!$B$47,CntyQryCensus!$A$53:$BY$96,T$1)","v":16484},{"$f":"VLOOKUP(DropDownList!$B$47,CntyQryCensus!$A$53:$BY$96,U$1)","v":3336},{"$f":"VLOOKUP(DropDownList!$B$47,CntyQryCensus!$A$53:$BY$96,V$1)","v":3609},{"$f":"VLOOKUP(DropDownList!$B$47,CntyQryCensus!$A$53:$BY$96,W$1)","v":1534},{"$f":"VLOOKUP(DropDownList!$B$47,CntyQryCensus!$A$53:$BY$96,X$1)","v":26567},{"$f":"VLOOKUP(DropDownList!$B$47,CntyQryCensus!$A$53:$BY$96,Y$1)","v":13721},{"$f":"VLOOKUP(DropDownList!$B$47,CntyQryCensus!$A$53:$BY$96,Z$1)","v":12721},{"$f":"VLOOKUP(DropDownList!$B$47,CntyQryCensus!$A$53:$BY$96,AA$1)","v":7981},{"$f":"VLOOKUP(DropDownList!$B$47,CntyQryCensus!$A$53:$BY$96,AB$1)","v":4740},{"$f":"VLOOKUP(DropDownList!$B$47,CntyQryCensus!$A$53:$BY$96,AC$1)","v":28461},{"$f":"VLOOKUP(DropDownList!$B$47,CntyQryCensus!$A$53:$BY$96,AD$1)","v":27738},{"$f":"VLOOKUP(DropDownList!$B$47,CntyQryCensus!$A$53:$BY$96,AE$1)","v":27389},{"$f":"VLOOKUP(DropDownList!$B$47,CntyQryCensus!$A$53:$BY$96,AF$1)","v":16186},{"$f":"VLOOKUP(DropDownList!$B$47,CntyQryCensus!$A$53:$BY$96,AG$1)","v":11203},{"$f":"VLOOKUP(DropDownList!$B$47,CntyQryCensus!$A$53:$BY$96,AH$1)","v":349},{"$f":"VLOOKUP(DropDownList!$B$47,CntyQryCensus!$A$53:$BY$96,AI$1)","v":723},{"$f":"VLOOKUP(DropDownList!$B$47,CntyQryCensus!$A$53:$BY$96,AJ$1)","v":160},{"$f":"VLOOKUP(DropDownList!$B$47,CntyQryCensus!$A$53:$BY$96,AK$1)","v":417},{"$f":"VLOOKUP(DropDownList!$B$47,CntyQryCensus!$A$53:$BY$96,AL$1)","v":306},{"$f":"VLOOKUP(DropDownList!$B$47,CntyQryCensus!$A$53:$BY$96,AM$1)","v":11397},{"$f":"VLOOKUP(DropDownList!$B$47,CntyQryCensus!$A$53:$BY$96,AN$1)","v":857},{"$f":"VLOOKUP(DropDownList!$B$47,CntyQryCensus!$A$53:$BY$96,AO$1)","v":765},{"$f":"VLOOKUP(DropDownList!$B$47,CntyQryCensus!$A$53:$BY$96,AP$1)","v":1546},{"$f":"VLOOKUP(DropDownList!$B$47,CntyQryCensus!$A$53:$BY$96,AQ$1)","v":1600},{"$f":"VLOOKUP(DropDownList!$B$47,CntyQryCensus!$A$53:$BY$96,AR$1)","v":2453},{"$f":"VLOOKUP(DropDownList!$B$47,CntyQryCensus!$A$53:$BY$96,AS$1)","v":2501},{"$f":"VLOOKUP(DropDownList!$B$47,CntyQryCensus!$A$53:$BY$96,AT$1)","v":965},{"$f":"VLOOKUP(DropDownList!$B$47,CntyQryCensus!$A$53:$BY$96,AU$1)","v":509},{"$f":"VLOOKUP(DropDownList!$B$47,CntyQryCensus!$A$53:$BY$96,AV$1)","v":118},{"$f":"VLOOKUP(DropDownList!$B$47,CntyQryCensus!$A$53:$BY$96,AW$1)","v":83},{"$f":"VLOOKUP(DropDownList!$B$47,CntyQryCensus!$A$53:$BY$96,AX$1)","v":40596},{"$f":"VLOOKUP(DropDownList!$B$47,CntyQryCensus!$A$53:$BY$96,AY$1)","v":625},{"$f":"VLOOKUP(DropDownList!$B$47,CntyQryCensus!$A$53:$BY$96,AZ$1)","v":2802},{"$f":"VLOOKUP(DropDownList!$B$47,CntyQryCensus!$A$53:$BY$96,BA$1)","v":7671},{"$f":"VLOOKUP(DropDownList!$B$47,CntyQryCensus!$A$53:$BY$96,BB$1)","v":307},{"$f":"VLOOKUP(DropDownList!$B$47,CntyQryCensus!$A$53:$BY$96,BC$1)","v":345},{"$f":"VLOOKUP(DropDownList!$B$47,CntyQryCensus!$A$53:$BY$96,BD$1)","v":776},{"$f":"VLOOKUP(DropDownList!$B$47,CntyQryCensus!$A$53:$BY$96,BE$1)","v":930},{"$f":"VLOOKUP(DropDownList!$B$47,CntyQryCensus!$A$53:$BY$96,BF$1)","v":1757},{"$f":"VLOOKUP(DropDownList!$B$47,CntyQryCensus!$A$53:$BY$96,BG$1)","v":2051},{"$f":"VLOOKUP(DropDownList!$B$47,CntyQryCensus!$A$53:$BY$96,BH$1)","v":858},{"$f":"VLOOKUP(DropDownList!$B$47,CntyQryCensus!$A$53:$BY$96,BI$1)","v":480},{"$f":"VLOOKUP(DropDownList!$B$47,CntyQryCensus!$A$53:$BY$96,BJ$1)","v":96},{"$f":"VLOOKUP(DropDownList!$B$47,CntyQryCensus!$A$53:$BY$96,BK$1)","v":71},{"$f":"VLOOKUP(DropDownList!$B$47,CntyQryCensus!$A$53:$BY$96,BL$1)","v":47324},{"$f":"VLOOKUP(DropDownList!$B$47,CntyQryCensus!$A$53:$BY$96,BM$1)","v":18859},{"$f":"VLOOKUP(DropDownList!$B$47,CntyQryCensus!$A$53:$BY$96,BN$1)","v":481},{"$f":"VLOOKUP(DropDownList!$B$47,CntyQryCensus!$A$53:$BY$96,BO$1)","v":399},{"$f":"VLOOKUP(DropDownList!$B$47,CntyQryCensus!$A$53:$BY$96,BP$1)","v":197},{"$f":"VLOOKUP(DropDownList!$B$47,CntyQryCensus!$A$53:$BY$96,BQ$1)","v":325},{"$f":"VLOOKUP(DropDownList!$B$47,CntyQryCensus!$A$53:$BY$96,BR$1)","v":313},{"$f":"VLOOKUP(DropDownList!$B$47,CntyQryCensus!$A$53:$BY$96,BS$1)","v":155},{"$f":"VLOOKUP(DropDownList!$B$47,CntyQryCensus!$A$53:$BY$96,BT$1)","v":2357},{"$f":"VLOOKUP(DropDownList!$B$47,CntyQryCensus!$A$53:$BY$96,BU$1)","v":1481},{"$f":"VLOOKUP(DropDownList!$B$47,CntyQryCensus!$A$53:$BY$96,BV$1)","v":316},{"$f":"VLOOKUP(DropDownList!$B$47,CntyQryCensus!$A$53:$BY$96,BW$1)","v":823},{"$f":"VLOOKUP(DropDownList!$B$47,CntyQryCensus!$A$53:$BY$96,BX$1)","v":579},{"$f":"VLOOKUP(DropDownList!$B$47,CntyQryCensus!$A$53:$BY$96,BY$1)","v":903}]
[]
[]
["Census 2000 DemoProfile Sample Data Table 4   -  DPTab4TownQry"]
["NAME","COUSUB","TotHousingUnits","1UnitDet","1UnitAtt","2Units","3to4Units","5to9Units","10to19Units","20orMoreUnits","MobileHomes","BoatRvVan","SingleFamilyUnits","MultiFamUnits","MobileHomeUnits","YearBuilt99to00","YearBuilt95to98","YearBUilt90to94","YearBuilt80to89","YearBuilt70to79","YearBuilt60to69","YearBuilt40to59","YearBuilt39orEarlier","Rooms1","Rooms2","Rooms3","Rooms4","Rooms5","Rooms6","Rooms7","Rooms8","Rooms9orMore","MedianRooms","OccHU1","YrHHMvdIn99to00","YrHHMvdIn95to98","YrHHMvdIn90to94","YrHHMvdIn80to89","YrHHMvdIn70to79","YrHHMvdIn69orBefore","HeatFuelNatGas","HeatFuelBotGas","HeatFuelElectric","HeatFuelOil","HeatFuelCoal","HeatFuelWood","HeatFuelSolar","HeatFuelOther","HeatFuelNone","LackCompPlumb","LackCompKit","NoTelephone","OccHU","OccPerRm1orLess","OccPerRm1to1_5","OccPerRm1_5orMore","SpecOwnOccUnits","Value<50K","Value50to100K","Value100to150K","Value150to200K","Value200to300K","Value300to500K","Value500Kto1mil","Value1MilorMore","MedianValue","WithMortg","MnthOwnCst<300","MnthOwnCst300to500","MnthOwnCst500to700","MnthOwnCst700to1000","MnthOwnCst1000to1500","MnthOwnCst1500to2000","MnthOwnCst2000orMore","MediMnthOwnCst","NotMrtg","NotMrtgMediMnthOwnCst","OwnCst%HHInc<15","OwnCst%HHInc15to20","OwnCst%HHInc20to25","OwnCst%HHInc25to30","OwnCst%HHInc30to35","OwnCst%HHInc35orMor","NotComputed","SpecRntOccUnits","Rnt<200","Rnt200to300","Rnt300to500","Rnt500to750","Rnt750to1000","Rnt1000to1500","Rnt1500orMore","NoRent","MedianRent","Rnt%HHInc<15","Rnt%HHInc15to20","Rnt%HHInc20to25","Rnt%HHInc25to30","Rnt%HHInc30to35","Rnt%HHInc35orMore","Rnt%NotCompute"]
[{"$f":"VLOOKUP(DropDownList!$B$47,CntyQryCensus!$A$103:$CX$146,A$1)","v":"Rochester"},{"$f":"VLOOKUP(DropDownList!$B$47,CntyQryCensus!$A$103:$CX$146,B$1)","v":"65140"},{"$f":"VLOOKUP(DropDownList!$B$47,CntyQryCensus!$A$103:$CX$146,C$1)","v":11836},{"$f":"VLOOKUP(DropDownList!$B$47,CntyQryCensus!$A$103:$CX$146,D$1)","v":5727},{"$f":"VLOOKUP(DropDownList!$B$47,CntyQryCensus!$A$103:$CX$146,E$1)","v":402},{"$f":"VLOOKUP(DropDownList!$B$47,CntyQryCensus!$A$103:$CX$146,F$1)","v":707},{"$f":"VLOOKUP(DropDownList!$B$47,CntyQryCensus!$A$103:$CX$146,G$1)","v":1133},{"$f":"VLOOKUP(DropDownList!$B$47,CntyQryCensus!$A$103:$CX$146,H$1)","v":890},{"$f":"VLOOKUP(DropDownList!$B$47,CntyQryCensus!$A$103:$CX$146,I$1)","v":169},{"$f":"VLOOKUP(DropDownList!$B$47,CntyQryCensus!$A$103:$CX$146,J$1)","v":563},{"$f":"VLOOKUP(DropDownList!$B$47,CntyQryCensus!$A$103:$CX$146,K$1)","v":2239},{"$f":"VLOOKUP(DropDownList!$B$47,CntyQryCensus!$A$103:$CX$146,L$1)","v":6},{"$f":"VLOOKUP(DropDownList!$B$47,CntyQryCensus!$A$103:$CX$146,M$1)","v":5727},{"$f":"VLOOKUP(DropDownList!$B$47,CntyQryCensus!$A$103:$CX$146,N$1)","v":3864},{"$f":"VLOOKUP(DropDownList!$B$47,CntyQryCensus!$A$103:$CX$146,O$1)","v":2245},{"$f":"VLOOKUP(DropDownList!$B$47,CntyQryCensus!$A$103:$CX$146,P$1)","v":252},{"$f":"VLOOKUP(DropDownList!$B$47,CntyQryCensus!$A$103:$CX$146,Q$1)","v":647},{"$f":"VLOOKUP(DropDownList!$B$47,CntyQryCensus!$A$103:$CX$146,R$1)","v":726},{"$f":"VLOOKUP(DropDownList!$B$47,CntyQryCensus!$A$103:$CX$146,S$1)","v":2520},{"$f":"VLOOKUP(DropDownList!$B$47,CntyQryCensus!$A$103:$CX$146,T$1)","v":1966},{"$f":"VLOOKUP(DropDownList!$B$47,CntyQryCensus!$A$103:$CX$146,U$1)","v":925},{"$f":"VLOOKUP(DropDownList!$B$47,CntyQryCensus!$A$103:$CX$146,V$1)","v":1799},{"$f":"VLOOKUP(DropDownList!$B$47,CntyQryCensus!$A$103:$CX$146,W$1)","v":3001},{"$f":"VLOOKUP(DropDownList!$B$47,CntyQryCensus!$A$103:$CX$146,X$1)","v":55},{"$f":"VLOOKUP(DropDownList!$B$47,CntyQryCensus!$A$103:$CX$146,Y$1)","v":281},{"$f":"VLOOKUP(DropDownList!$B$47,CntyQryCensus!$A$103:$CX$146,Z$1)","v":1391},{"$f":"VLOOKUP(DropDownList!$B$47,CntyQryCensus!$A$103:$CX$146,AA$1)","v":2703},{"$f":"VLOOKUP(DropDownList!$B$47,CntyQryCensus!$A$103:$CX$146,AB$1)","v":2850},{"$f":"VLOOKUP(DropDownList!$B$47,CntyQryCensus!$A$103:$CX$146,AC$1)","v":2026},{"$f":"VLOOKUP(DropDownList!$B$47,CntyQryCensus!$A$103:$CX$146,AD$1)","v":1263},{"$f":"VLOOKUP(DropDownList!$B$47,CntyQryCensus!$A$103:$CX$146,AE$1)","v":751},{"$f":"VLOOKUP(DropDownList!$B$47,CntyQryCensus!$A$103:$CX$146,AF$1)","v":516},{"$f":"VLOOKUP(DropDownList!$B$47,CntyQryCensus!$A$103:$CX$146,AG$1)","v":5},{"$f":"VLOOKUP(DropDownList!$B$47,CntyQryCensus!$A$103:$CX$146,AH$1)","v":11434},{"$f":"VLOOKUP(DropDownList!$B$47,CntyQryCensus!$A$103:$CX$146,AI$1)","v":2293},{"$f":"VLOOKUP(DropDownList!$B$47,CntyQryCensus!$A$103:$CX$146,AJ$1)","v":3618},{"$f":"VLOOKUP(DropDownList!$B$47,CntyQryCensus!$A$103:$CX$146,AK$1)","v":1710},{"$f":"VLOOKUP(DropDownList!$B$47,CntyQryCensus!$A$103:$CX$146,AL$1)","v":1929},{"$f":"VLOOKUP(DropDownList!$B$47,CntyQryCensus!$A$103:$CX$146,AM$1)","v":854},{"$f":"VLOOKUP(DropDownList!$B$47,CntyQryCensus!$A$103:$CX$146,AN$1)","v":1030},{"$f":"VLOOKUP(DropDownList!$B$47,CntyQryCensus!$A$103:$CX$146,AO$1)","v":2273},{"$f":"VLOOKUP(DropDownList!$B$47,CntyQryCensus!$A$103:$CX$146,AP$1)","v":1063},{"$f":"VLOOKUP(DropDownList!$B$47,CntyQryCensus!$A$103:$CX$146,AQ$1)","v":739},{"$f":"VLOOKUP(DropDownList!$B$47,CntyQryCensus!$A$103:$CX$146,AR$1)","v":7069},{"$f":"VLOOKUP(DropDownList!$B$47,CntyQryCensus!$A$103:$CX$146,AS$1)","v":7},{"$f":"VLOOKUP(DropDownList!$B$47,CntyQryCensus!$A$103:$CX$146,AT$1)","v":188},{"$f":"VLOOKUP(DropDownList!$B$47,CntyQryCensus!$A$103:$CX$146,AU$1)","v":0},{"$f":"VLOOKUP(DropDownList!$B$47,CntyQryCensus!$A$103:$CX$146,AV$1)","v":54},{"$f":"VLOOKUP(DropDownList!$B$47,CntyQryCensus!$A$103:$CX$146,AW$1)","v":41},{"$f":"VLOOKUP(DropDownList!$B$47,CntyQryCensus!$A$103:$CX$146,AX$1)","v":86},{"$f":"VLOOKUP(DropDownList!$B$47,CntyQryCensus!$A$103:$CX$146,AY$1)","v":32},{"$f":"VLOOKUP(DropDownList!$B$47,CntyQryCensus!$A$103:$CX$146,AZ$1)","v":199},{"$f":"VLOOKUP(DropDownList!$B$47,CntyQryCensus!$A$103:$CX$146,BA$1)","v":11434},{"$f":"VLOOKUP(DropDownList!$B$47,CntyQryCensus!$A$103:$CX$146,BB$1)","v":11228},{"$f":"VLOOKUP(DropDownList!$B$47,CntyQryCensus!$A$103:$CX$146,BC$1)","v":157},{"$f":"VLOOKUP(DropDownList!$B$47,CntyQryCensus!$A$103:$CX$146,BD$1)","v":49},{"$f":"VLOOKUP(DropDownList!$B$47,CntyQryCensus!$A$103:$CX$146,BE$1)","v":4928},{"$f":"VLOOKUP(DropDownList!$B$47,CntyQryCensus!$A$103:$CX$146,BF$1)","v":68},{"$f":"VLOOKUP(DropDownList!$B$47,CntyQryCensus!$A$103:$CX$146,BG$1)","v":2442},{"$f":"VLOOKUP(DropDownList!$B$47,CntyQryCensus!$A$103:$CX$146,BH$1)","v":1780},{"$f":"VLOOKUP(DropDownList!$B$47,CntyQryCensus!$A$103:$CX$146,BI$1)","v":427},{"$f":"VLOOKUP(DropDownList!$B$47,CntyQryCensus!$A$103:$CX$146,BJ$1)","v":173},{"$f":"VLOOKUP(DropDownList!$B$47,CntyQryCensus!$A$103:$CX$146,BK$1)","v":38},{"$f":"VLOOKUP(DropDownList!$B$47,CntyQryCensus!$A$103:$CX$146,BL$1)","v":0},{"$f":"VLOOKUP(DropDownList!$B$47,CntyQryCensus!$A$103:$CX$146,BM$1)","v":0},{"$f":"VLOOKUP(DropDownList!$B$47,CntyQryCensus!$A$103:$CX$146,BN$1)","v":99400},{"$f":"VLOOKUP(DropDownList!$B$47,CntyQryCensus!$A$103:$CX$146,BO$1)","v":3576},{"$f":"VLOOKUP(DropDownList!$B$47,CntyQryCensus!$A$103:$CX$146,BP$1)","v":15},{"$f":"VLOOKUP(DropDownList!$B$47,CntyQryCensus!$A$103:$CX$146,BQ$1)","v":62},{"$f":"VLOOKUP(DropDownList!$B$47,CntyQryCensus!$A$103:$CX$146,BR$1)","v":281},{"$f":"VLOOKUP(DropDownList!$B$47,CntyQryCensus!$A$103:$CX$146,BS$1)","v":1282},{"$f":"VLOOKUP(DropDownList!$B$47,CntyQryCensus!$A$103:$CX$146,BT$1)","v":1541},{"$f":"VLOOKUP(DropDownList!$B$47,CntyQryCensus!$A$103:$CX$146,BU$1)","v":268},{"$f":"VLOOKUP(DropDownList!$B$47,CntyQryCensus!$A$103:$CX$146,BV$1)","v":127},{"$f":"VLOOKUP(DropDownList!$B$47,CntyQryCensus!$A$103:$CX$146,BW$1)","v":1036},{"$f":"VLOOKUP(DropDownList!$B$47,CntyQryCensus!$A$103:$CX$146,BX$1)","v":1352},{"$f":"VLOOKUP(DropDownList!$B$47,CntyQryCensus!$A$103:$CX$146,BY$1)","v":393},{"$f":"VLOOKUP(DropDownList!$B$47,CntyQryCensus!$A$103:$CX$146,BZ$1)","v":1190},{"$f":"VLOOKUP(DropDownList!$B$47,CntyQryCensus!$A$103:$CX$146,CA$1)","v":1004},{"$f":"VLOOKUP(DropDownList!$B$47,CntyQryCensus!$A$103:$CX$146,CB$1)","v":1039},{"$f":"VLOOKUP(DropDownList!$B$47,CntyQryCensus!$A$103:$CX$146,CC$1)","v":505},{"$f":"VLOOKUP(DropDownList!$B$47,CntyQryCensus!$A$103:$CX$146,CD$1)","v":458},{"$f":"VLOOKUP(DropDownList!$B$47,CntyQryCensus!$A$103:$CX$146,CE$1)","v":702},{"$f":"VLOOKUP(DropDownList!$B$47,CntyQryCensus!$A$103:$CX$146,CF$1)","v":30},{"$f":"VLOOKUP(DropDownList!$B$47,CntyQryCensus!$A$103:$CX$146,CG$1)","v":3777},{"$f":"VLOOKUP(DropDownList!$B$47,CntyQryCensus!$A$103:$CX$146,CH$1)","v":217},{"$f":"VLOOKUP(DropDownList!$B$47,CntyQryCensus!$A$103:$CX$146,CI$1)","v":204},{"$f":"VLOOKUP(DropDownList!$B$47,CntyQryCensus!$A$103:$CX$146,CJ$1)","v":726},{"$f":"VLOOKUP(DropDownList!$B$47,CntyQryCensus!$A$103:$CX$146,CK$1)","v":1743},{"$f":"VLOOKUP(DropDownList!$B$47,CntyQryCensus!$A$103:$CX$146,CL$1)","v":595},{"$f":"VLOOKUP(DropDownList!$B$47,CntyQryCensus!$A$103:$CX$146,CM$1)","v":174},{"$f":"VLOOKUP(DropDownList!$B$47,CntyQryCensus!$A$103:$CX$146,CN$1)","v":7},{"$f":"VLOOKUP(DropDownList!$B$47,CntyQryCensus!$A$103:$CX$146,CO$1)","v":111},{"$f":"VLOOKUP(DropDownList!$B$47,CntyQryCensus!$A$103:$CX$146,CP$1)","v":601},{"$f":"VLOOKUP(DropDownList!$B$47,CntyQryCensus!$A$103:$CX$146,CQ$1)","v":660},{"$f":"VLOOKUP(DropDownList!$B$47,CntyQryCensus!$A$103:$CX$146,CR$1)","v":594},{"$f":"VLOOKUP(DropDownList!$B$47,CntyQryCensus!$A$103:$CX$146,CS$1)","v":464},{"$f":"VLOOKUP(DropDownList!$B$47,CntyQryCensus!$A$103:$CX$146,CT$1)","v":519},{"$f":"VLOOKUP(DropDownList!$B$47,CntyQryCensus!$A$103:$CX$146,CU$1)","v":267},{"$f":"VLOOKUP(DropDownList!$B$47,CntyQryCensus!$A$103:$CX$146,CV$1)","v":1123},{"$f":"VLOOKUP(DropDownList!$B$47,CntyQryCensus!$A$103:$CX$146,CW$1)","v":150}]
[]
[]
["Census 2000 SummaryFile3 Sample Data  -  SF3TownQry1SocialChar"]
["TOWN_NAME","LOGRECNO","COUSUB","P01TotalPopulation","P02SampleCountOfPop","P03Pop100pctCount","P05UrbanPopulation","P05RuralPopulation","P06WhiteAlone","P06BlackOrAfAm","P06AmIndAlone","P06AsianAlone","P06HawaiianOrPI","P06OtherRace","P06TwoPlusRaces","P07NotHispanicOrLatino","P07HispanicOrLatino","P08MalePop","P08FemalePop","P09PopInHouseholds","P09PopInFamHH","P09PopInNonFamHH","P09PopInGroupQtr","P13TotalHH","P13FamilyHH","P13FamHHolder15to24yrs","P13FamHHolder25to34yrs","P13FamHHolder35to44yrs","P13FamHHolder45to54yrs","P13FamHHolder55to64yrs","P13FamHHolder65to74yrs","P13FamHHolder75to84yrs","P13FamHHolder85yrsOver","P13NonFamilyHH","P13NonFamHHolder15to24yrs","P13NonFamHHolder25to34yrs","P13NonFamHHolder35to44yrs","P13NonFamHHolder45to54yrs","P13NonFamHHolder55to64yrs","P13NonFamHHolder65to74yrs","P13NonFamHHolder75to84yrs","P13NonFamHHolder85yrsOver","P18Pop15yrsOver","P18MaritalStatNeverMarried","P18MaritalStatNowMarried","P18MaritalStatSeparated","P18MaritalStatWidowed","P18MaritalStatWidowFemale","P18MaritalStatDivorced","P18MaritalStatDivorcedFemale","P21NativeBornPop","P21NatPopBornInState","P21NatPopBornOtherState","P021005","P021006","P021007","P021008","P21NatPopBornOutUS","P21ForeignBornPop","P021014","P021015","P24Pop5YrsPlus","P24ResSameHouseIn95","P24ResDiffHouseIn95","P24ResDiffHouseInUSIn95","P24ResDiffHouseSameCountyIn95","P24ResDiffHouseDiffCountyIn95","P24ResDiffHouseDiffCntySamStIn95","P24ResDiffHouseDiffCntyDifStIn95","P24ResDiffHouseDiffCntyNEStIn95","P24ResDiffHouseDiffCntyMWStIn95","P24ResDiffHouseDiffCntySoStIn95","P24ResDiffHouseDiffCntyWstStIn95","P24ResDiffInPR","P24ResDiffElsewhereIn95","P26Workers16yrsOver","P26WorkedInState","P26WorkedInCnty","P26WorkedOutsideCnty","P26WorkedOutsideState","P30Workers16Over","P30TranspToWrkCar","P30TranspToWrkPublic","P30TranspToWrkOther","P30WrkdAtHome","P31WrkrsNotWrkAtHom","P31TravTim<5min","P31TravTim5to9Min","P31TravTim10to14Min","P31TravTim15to19Min","P31TravTim20to24Min","P31TravTim25to29Min","P31TravTim30to34Min","P31TravTim35to39Min","P31TravTim40to44Min","P31TravTim45to59Min","P31TravTim60to89Min","P31TravTim90MinMore","P31WorkAtHome","P36SchEnrlPop3yrOver","P36NurserSchEnrl","P36KinderSchEnrl","P36ElemSchEnrl","P36HighSchEnrl","P36CollGradSchEnrl","P37Pop25yrsOver","P37EduAtain<9grd","P37EduAtainHSnoDip","P37EduAtainHSgrad","P37EduAtainCollNoDeg","P37EduAtainAssocDeg","P37EduAtainBachDeg","P37EduAtainGradProfDeg","P42NIPop5to15","P42NIPop5to15wDisabl","P42NIPop16to20","P42NIPop16to20wDisab","P42NIPop16to20wDisEmp","P42NIPop16to21NoDis","P42NIPop16to21NoDisEmpl","P42NIPop21to64","P42NIPop21to64wDis","P42NIPop21to64wDisEmp","P42NIPop21to64NoDis","P42NIPop21to64NoDisEmp","P42NIPop65to74","P42NIPop65to74wDis","P42NIPop75Over","P42NIPop75OverwDis","P43Pop16YrsOver","P43Pop16OvrInLaborForce","P43Pop16OvrCivlLabFrc","P43Pop16OvrCivlLbrFrcEmp","P48Families","P48MarriedFam","P48MarrFamNoWorkers","P48MarrFam1Worker","P48MarrFam2Worker","P48MarrFamHusbWifeWorked","P48MarrFamOther","P48MarrFam3PlusWorker","P48MarrFam3WorkHsbWif","P48MarrFam3PlsWrkOther","P48OtherFam","P48MaleHHNoWif","P48MaleHHNoWifNoWorker","P48MaleHHNoWif1Worker","P48MaleHHNoWif2Worker","P48MaleHHNoWif3PlusWorker","P48FemaleHHNoHsb","P48FemaleHHNoHsbNoWorker","P48FemaleHHNoHsb1Worker","P48FemaleHHNoHsb2Worker","P48FemaleHHNoHsb3Worker","P49EmpCivPop16YrOver","P49IndustAgricult","P49IndustConst","P49IndustMnftg","P49IndustWhlslTrd","P49IndustRtlTrd","P49IndustTrspWrhsUtlt","P49IndustInfrm","P49IndustFinInsRE","P49IndustPrfsScntfMngmt","P49IndustEduHlthSocSrv","P49IndustArtsEntRec","P49IndustOthrSrvc","P49IndustPubAdm","P50OccupMngmtProfs","P50OccupService","P50OccupSalesOff","P50OccupFarmFishForest","P50OccupConstExtrctMaint","P50OccupPrdctTrnspMatMv"]
[{"$f":"VLOOKUP(DropDownList!$B$47,CntyQryCensus!$A$156:$FR$198,A$1)","v":"Rochester"},{"$f":"VLOOKUP(DropDownList!$B$47,CntyQryCensus!$A$156:$FR$198,B$1)","v":"0003956"},{"$f":"VLOOKUP(DropDownList!$B$47,CntyQryCensus!$A$156:$FR$198,C$1)","v":"65140"},{"$f":"VLOOKUP(DropDownList!$B$47,CntyQryCensus!$A$156:$FR$198,D$1)","v":28461},{"$f":"VLOOKUP(DropDownList!$B$47,CntyQryCensus!$A$156:$FR$198,E$1)","v":3853},{"$f":"VLOOKUP(DropDownList!$B$47,CntyQryCensus!$A$156:$FR$198,F$1)","v":28461},{"$f":"VLOOKUP(DropDownList!$B$47,CntyQryCensus!$A$156:$FR$198,G$1)","v":22614},{"$f":"VLOOKUP(DropDownList!$B$47,CntyQryCensus!$A$156:$FR$198,H$1)","v":5847},{"$f":"VLOOKUP(DropDownList!$B$47,CntyQryCensus!$A$156:$FR$198,I$1)","v":27753},{"$f":"VLOOKUP(DropDownList!$B$47,CntyQryCensus!$A$156:$FR$198,J$1)","v":110},{"$f":"VLOOKUP(DropDownList!$B$47,CntyQryCensus!$A$156:$FR$198,K$1)","v":5},{"$f":"VLOOKUP(DropDownList!$B$47,CntyQryCensus!$A$156:$FR$198,L$1)","v":191},{"$f":"VLOOKUP(DropDownList!$B$47,CntyQryCensus!$A$156:$FR$198,M$1)","v":11},{"$f":"VLOOKUP(DropDownList!$B$47,CntyQryCensus!$A$156:$FR$198,N$1)","v":76},{"$f":"VLOOKUP(DropDownList!$B$47,CntyQryCensus!$A$156:$FR$198,O$1)","v":315},{"$f":"VLOOKUP(DropDownList!$B$47,CntyQryCensus!$A$156:$FR$198,P$1)","v":28129},{"$f":"VLOOKUP(DropDownList!$B$47,CntyQryCensus!$A$156:$FR$198,Q$1)","v":332},{"$f":"VLOOKUP(DropDownList!$B$47,CntyQryCensus!$A$156:$FR$198,R$1)","v":13857},{"$f":"VLOOKUP(DropDownList!$B$47,CntyQryCensus!$A$156:$FR$198,S$1)","v":14604},{"$f":"VLOOKUP(DropDownList!$B$47,CntyQryCensus!$A$156:$FR$198,T$1)","v":28168},{"$f":"VLOOKUP(DropDownList!$B$47,CntyQryCensus!$A$156:$FR$198,U$1)","v":23509},{"$f":"VLOOKUP(DropDownList!$B$47,CntyQryCensus!$A$156:$FR$198,V$1)","v":4659},{"$f":"VLOOKUP(DropDownList!$B$47,CntyQryCensus!$A$156:$FR$198,W$1)","v":293},{"$f":"VLOOKUP(DropDownList!$B$47,CntyQryCensus!$A$156:$FR$198,X$1)","v":11397},{"$f":"VLOOKUP(DropDownList!$B$47,CntyQryCensus!$A$156:$FR$198,Y$1)","v":7671},{"$f":"VLOOKUP(DropDownList!$B$47,CntyQryCensus!$A$156:$FR$198,Z$1)","v":266},{"$f":"VLOOKUP(DropDownList!$B$47,CntyQryCensus!$A$156:$FR$198,AA$1)","v":1520},{"$f":"VLOOKUP(DropDownList!$B$47,CntyQryCensus!$A$156:$FR$198,AB$1)","v":2076},{"$f":"VLOOKUP(DropDownList!$B$47,CntyQryCensus!$A$156:$FR$198,AC$1)","v":1578},{"$f":"VLOOKUP(DropDownList!$B$47,CntyQryCensus!$A$156:$FR$198,AD$1)","v":985},{"$f":"VLOOKUP(DropDownList!$B$47,CntyQryCensus!$A$156:$FR$198,AE$1)","v":832},{"$f":"VLOOKUP(DropDownList!$B$47,CntyQryCensus!$A$156:$FR$198,AF$1)","v":370},{"$f":"VLOOKUP(DropDownList!$B$47,CntyQryCensus!$A$156:$FR$198,AG$1)","v":44},{"$f":"VLOOKUP(DropDownList!$B$47,CntyQryCensus!$A$156:$FR$198,AH$1)","v":3726},{"$f":"VLOOKUP(DropDownList!$B$47,CntyQryCensus!$A$156:$FR$198,AI$1)","v":216},{"$f":"VLOOKUP(DropDownList!$B$47,CntyQryCensus!$A$156:$FR$198,AJ$1)","v":592},{"$f":"VLOOKUP(DropDownList!$B$47,CntyQryCensus!$A$156:$FR$198,AK$1)","v":605},{"$f":"VLOOKUP(DropDownList!$B$47,CntyQryCensus!$A$156:$FR$198,AL$1)","v":568},{"$f":"VLOOKUP(DropDownList!$B$47,CntyQryCensus!$A$156:$FR$198,AM$1)","v":504},{"$f":"VLOOKUP(DropDownList!$B$47,CntyQryCensus!$A$156:$FR$198,AN$1)","v":510},{"$f":"VLOOKUP(DropDownList!$B$47,CntyQryCensus!$A$156:$FR$198,AO$1)","v":539},{"$f":"VLOOKUP(DropDownList!$B$47,CntyQryCensus!$A$156:$FR$198,AP$1)","v":192},{"$f":"VLOOKUP(DropDownList!$B$47,CntyQryCensus!$A$156:$FR$198,AQ$1)","v":22490},{"$f":"VLOOKUP(DropDownList!$B$47,CntyQryCensus!$A$156:$FR$198,AR$1)","v":5246},{"$f":"VLOOKUP(DropDownList!$B$47,CntyQryCensus!$A$156:$FR$198,AS$1)","v":12431},{"$f":"VLOOKUP(DropDownList!$B$47,CntyQryCensus!$A$156:$FR$198,AT$1)","v":401},{"$f":"VLOOKUP(DropDownList!$B$47,CntyQryCensus!$A$156:$FR$198,AU$1)","v":1468},{"$f":"VLOOKUP(DropDownList!$B$47,CntyQryCensus!$A$156:$FR$198,AV$1)","v":1278},{"$f":"VLOOKUP(DropDownList!$B$47,CntyQryCensus!$A$156:$FR$198,AW$1)","v":2944},{"$f":"VLOOKUP(DropDownList!$B$47,CntyQryCensus!$A$156:$FR$198,AX$1)","v":1665},{"$f":"VLOOKUP(DropDownList!$B$47,CntyQryCensus!$A$156:$FR$198,AY$1)","v":27738},{"$f":"VLOOKUP(DropDownList!$B$47,CntyQryCensus!$A$156:$FR$198,AZ$1)","v":16186},{"$f":"VLOOKUP(DropDownList!$B$47,CntyQryCensus!$A$156:$FR$198,BA$1)","v":11203},{"$f":"VLOOKUP(DropDownList!$B$47,CntyQryCensus!$A$156:$FR$198,BB$1)","v":8937},{"$f":"VLOOKUP(DropDownList!$B$47,CntyQryCensus!$A$156:$FR$198,BC$1)","v":819},{"$f":"VLOOKUP(DropDownList!$B$47,CntyQryCensus!$A$156:$FR$198,BD$1)","v":955},{"$f":"VLOOKUP(DropDownList!$B$47,CntyQryCensus!$A$156:$FR$198,BE$1)","v":492},{"$f":"VLOOKUP(DropDownList!$B$47,CntyQryCensus!$A$156:$FR$198,BF$1)","v":349},{"$f":"VLOOKUP(DropDownList!$B$47,CntyQryCensus!$A$156:$FR$198,BG$1)","v":723},{"$f":"VLOOKUP(DropDownList!$B$47,CntyQryCensus!$A$156:$FR$198,BH$1)","v":417},{"$f":"VLOOKUP(DropDownList!$B$47,CntyQryCensus!$A$156:$FR$198,BI$1)","v":306},{"$f":"VLOOKUP(DropDownList!$B$47,CntyQryCensus!$A$156:$FR$198,BJ$1)","v":26567},{"$f":"VLOOKUP(DropDownList!$B$47,CntyQryCensus!$A$156:$FR$198,BK$1)","v":13721},{"$f":"VLOOKUP(DropDownList!$B$47,CntyQryCensus!$A$156:$FR$198,BL$1)","v":12846},{"$f":"VLOOKUP(DropDownList!$B$47,CntyQryCensus!$A$156:$FR$198,BM$1)","v":12721},{"$f":"VLOOKUP(DropDownList!$B$47,CntyQryCensus!$A$156:$FR$198,BN$1)","v":7981},{"$f":"VLOOKUP(DropDownList!$B$47,CntyQryCensus!$A$156:$FR$198,BO$1)","v":4740},{"$f":"VLOOKUP(DropDownList!$B$47,CntyQryCensus!$A$156:$FR$198,BP$1)","v":1603},{"$f":"VLOOKUP(DropDownList!$B$47,CntyQryCensus!$A$156:$FR$198,BQ$1)","v":3137},{"$f":"VLOOKUP(DropDownList!$B$47,CntyQryCensus!$A$156:$FR$198,BR$1)","v":1890},{"$f":"VLOOKUP(DropDownList!$B$47,CntyQryCensus!$A$156:$FR$198,BS$1)","v":240},{"$f":"VLOOKUP(DropDownList!$B$47,CntyQryCensus!$A$156:$FR$198,BT$1)","v":695},{"$f":"VLOOKUP(DropDownList!$B$47,CntyQryCensus!$A$156:$FR$198,BU$1)","v":312},{"$f":"VLOOKUP(DropDownList!$B$47,CntyQryCensus!$A$156:$FR$198,BV$1)","v":0},{"$f":"VLOOKUP(DropDownList!$B$47,CntyQryCensus!$A$156:$FR$198,BW$1)","v":125},{"$f":"VLOOKUP(DropDownList!$B$47,CntyQryCensus!$A$156:$FR$198,BX$1)","v":14407},{"$f":"VLOOKUP(DropDownList!$B$47,CntyQryCensus!$A$156:$FR$198,BY$1)","v":13412},{"$f":"VLOOKUP(DropDownList!$B$47,CntyQryCensus!$A$156:$FR$198,BZ$1)","v":9640},{"$f":"VLOOKUP(DropDownList!$B$47,CntyQryCensus!$A$156:$FR$198,CA$1)","v":3772},{"$f":"VLOOKUP(DropDownList!$B$47,CntyQryCensus!$A$156:$FR$198,CB$1)","v":995},{"$f":"VLOOKUP(DropDownList!$B$47,CntyQryCensus!$A$156:$FR$198,CC$1)","v":14407},{"$f":"VLOOKUP(DropDownList!$B$47,CntyQryCensus!$A$156:$FR$198,CD$1)","v":13616},{"$f":"VLOOKUP(DropDownList!$B$47,CntyQryCensus!$A$156:$FR$198,CE$1)","v":86},{"$f":"VLOOKUP(DropDownList!$B$47,CntyQryCensus!$A$156:$FR$198,CF$1)","v":1659},{"$f":"VLOOKUP(DropDownList!$B$47,CntyQryCensus!$A$156:$FR$198,CG$1)","v":332},{"$f":"VLOOKUP(DropDownList!$B$47,CntyQryCensus!$A$156:$FR$198,CH$1)","v":14075},{"$f":"VLOOKUP(DropDownList!$B$47,CntyQryCensus!$A$156:$FR$198,CI$1)","v":450},{"$f":"VLOOKUP(DropDownList!$B$47,CntyQryCensus!$A$156:$FR$198,CJ$1)","v":1681},{"$f":"VLOOKUP(DropDownList!$B$47,CntyQryCensus!$A$156:$FR$198,CK$1)","v":2294},{"$f":"VLOOKUP(DropDownList!$B$47,CntyQryCensus!$A$156:$FR$198,CL$1)","v":2125},{"$f":"VLOOKUP(DropDownList!$B$47,CntyQryCensus!$A$156:$FR$198,CM$1)","v":2202},{"$f":"VLOOKUP(DropDownList!$B$47,CntyQryCensus!$A$156:$FR$198,CN$1)","v":813},{"$f":"VLOOKUP(DropDownList!$B$47,CntyQryCensus!$A$156:$FR$198,CO$1)","v":1870},{"$f":"VLOOKUP(DropDownList!$B$47,CntyQryCensus!$A$156:$FR$198,CP$1)","v":406},{"$f":"VLOOKUP(DropDownList!$B$47,CntyQryCensus!$A$156:$FR$198,CQ$1)","v":451},{"$f":"VLOOKUP(DropDownList!$B$47,CntyQryCensus!$A$156:$FR$198,CR$1)","v":929},{"$f":"VLOOKUP(DropDownList!$B$47,CntyQryCensus!$A$156:$FR$198,CS$1)","v":587},{"$f":"VLOOKUP(DropDownList!$B$47,CntyQryCensus!$A$156:$FR$198,CT$1)","v":267},{"$f":"VLOOKUP(DropDownList!$B$47,CntyQryCensus!$A$156:$FR$198,CU$1)","v":332},{"$f":"VLOOKUP(DropDownList!$B$47,CntyQryCensus!$A$156:$FR$198,CV$1)","v":27274},{"$f":"VLOOKUP(DropDownList!$B$47,CntyQryCensus!$A$156:$FR$198,CW$1)","v":489},{"$f":"VLOOKUP(DropDownList!$B$47,CntyQryCensus!$A$156:$FR$198,CX$1)","v":302},{"$f":"VLOOKUP(DropDownList!$B$47,CntyQryCensus!$A$156:$FR$198,CY$1)","v":3387},{"$f":"VLOOKUP(DropDownList!$B$47,CntyQryCensus!$A$156:$FR$198,CZ$1)","v":1635},{"$f":"VLOOKUP(DropDownList!$B$47,CntyQryCensus!$A$156:$FR$198,DA$1)","v":1080},{"$f":"VLOOKUP(DropDownList!$B$47,CntyQryCensus!$A$156:$FR$198,DB$1)","v":19122},{"$f":"VLOOKUP(DropDownList!$B$47,CntyQryCensus!$A$156:$FR$198,DC$1)","v":1009},{"$f":"VLOOKUP(DropDownList!$B$47,CntyQryCensus!$A$156:$FR$198,DD$1)","v":2271},{"$f":"VLOOKUP(DropDownList!$B$47,CntyQryCensus!$A$156:$FR$198,DE$1)","v":7264},{"$f":"VLOOKUP(DropDownList!$B$47,CntyQryCensus!$A$156:$FR$198,DF$1)","v":4004},{"$f":"VLOOKUP(DropDownList!$B$47,CntyQryCensus!$A$156:$FR$198,DG$1)","v":1666},{"$f":"VLOOKUP(DropDownList!$B$47,CntyQryCensus!$A$156:$FR$198,DH$1)","v":1953},{"$f":"VLOOKUP(DropDownList!$B$47,CntyQryCensus!$A$156:$FR$198,DI$1)","v":955},{"$f":"VLOOKUP(DropDownList!$B$47,CntyQryCensus!$A$156:$FR$198,DJ$1)","v":4502},{"$f":"VLOOKUP(DropDownList!$B$47,CntyQryCensus!$A$156:$FR$198,DK$1)","v":384},{"$f":"VLOOKUP(DropDownList!$B$47,CntyQryCensus!$A$156:$FR$198,DL$1)","v":1719},{"$f":"VLOOKUP(DropDownList!$B$47,CntyQryCensus!$A$156:$FR$198,DM$1)","v":154},{"$f":"VLOOKUP(DropDownList!$B$47,CntyQryCensus!$A$156:$FR$198,DN$1)","v":70},{"$f":"VLOOKUP(DropDownList!$B$47,CntyQryCensus!$A$156:$FR$198,DO$1)","v":1565},{"$f":"VLOOKUP(DropDownList!$B$47,CntyQryCensus!$A$156:$FR$198,DP$1)","v":941},{"$f":"VLOOKUP(DropDownList!$B$47,CntyQryCensus!$A$156:$FR$198,DQ$1)","v":16484},{"$f":"VLOOKUP(DropDownList!$B$47,CntyQryCensus!$A$156:$FR$198,DR$1)","v":3336},{"$f":"VLOOKUP(DropDownList!$B$47,CntyQryCensus!$A$156:$FR$198,DS$1)","v":2104},{"$f":"VLOOKUP(DropDownList!$B$47,CntyQryCensus!$A$156:$FR$198,DT$1)","v":13148},{"$f":"VLOOKUP(DropDownList!$B$47,CntyQryCensus!$A$156:$FR$198,DU$1)","v":11223},{"$f":"VLOOKUP(DropDownList!$B$47,CntyQryCensus!$A$156:$FR$198,DV$1)","v":2074},{"$f":"VLOOKUP(DropDownList!$B$47,CntyQryCensus!$A$156:$FR$198,DW$1)","v":779},{"$f":"VLOOKUP(DropDownList!$B$47,CntyQryCensus!$A$156:$FR$198,DX$1)","v":1535},{"$f":"VLOOKUP(DropDownList!$B$47,CntyQryCensus!$A$156:$FR$198,DY$1)","v":755},{"$f":"VLOOKUP(DropDownList!$B$47,CntyQryCensus!$A$156:$FR$198,DZ$1)","v":22045},{"$f":"VLOOKUP(DropDownList!$B$47,CntyQryCensus!$A$156:$FR$198,EA$1)","v":15252},{"$f":"VLOOKUP(DropDownList!$B$47,CntyQryCensus!$A$156:$FR$198,EB$1)","v":15232},{"$f":"VLOOKUP(DropDownList!$B$47,CntyQryCensus!$A$156:$FR$198,EC$1)","v":14668},{"$f":"VLOOKUP(DropDownList!$B$47,CntyQryCensus!$A$156:$FR$198,ED$1)","v":7671},{"$f":"VLOOKUP(DropDownList!$B$47,CntyQryCensus!$A$156:$FR$198,EE$1)","v":5986},{"$f":"VLOOKUP(DropDownList!$B$47,CntyQryCensus!$A$156:$FR$198,EF$1)","v":719},{"$f":"VLOOKUP(DropDownList!$B$47,CntyQryCensus!$A$156:$FR$198,EG$1)","v":1072},{"$f":"VLOOKUP(DropDownList!$B$47,CntyQryCensus!$A$156:$FR$198,EH$1)","v":3216},{"$f":"VLOOKUP(DropDownList!$B$47,CntyQryCensus!$A$156:$FR$198,EI$1)","v":3116},{"$f":"VLOOKUP(DropDownList!$B$47,CntyQryCensus!$A$156:$FR$198,EJ$1)","v":100},{"$f":"VLOOKUP(DropDownList!$B$47,CntyQryCensus!$A$156:$FR$198,EK$1)","v":979},{"$f":"VLOOKUP(DropDownList!$B$47,CntyQryCensus!$A$156:$FR$198,EL$1)","v":931},{"$f":"VLOOKUP(DropDownList!$B$47,CntyQryCensus!$A$156:$FR$198,EM$1)","v":48},{"$f":"VLOOKUP(DropDownList!$B$47,CntyQryCensus!$A$156:$FR$198,EN$1)","v":1685},{"$f":"VLOOKUP(DropDownList!$B$47,CntyQryCensus!$A$156:$FR$198,EO$1)","v":457},{"$f":"VLOOKUP(DropDownList!$B$47,CntyQryCensus!$A$156:$FR$198,EP$1)","v":43},{"$f":"VLOOKUP(DropDownList!$B$47,CntyQryCensus!$A$156:$FR$198,EQ$1)","v":267},{"$f":"VLOOKUP(DropDownList!$B$47,CntyQryCensus!$A$156:$FR$198,ER$1)","v":124},{"$f":"VLOOKUP(DropDownList!$B$47,CntyQryCensus!$A$156:$FR$198,ES$1)","v":23},{"$f":"VLOOKUP(DropDownList!$B$47,CntyQryCensus!$A$156:$FR$198,ET$1)","v":1228},{"$f":"VLOOKUP(DropDownList!$B$47,CntyQryCensus!$A$156:$FR$198,EU$1)","v":110},{"$f":"VLOOKUP(DropDownList!$B$47,CntyQryCensus!$A$156:$FR$198,EV$1)","v":795},{"$f":"VLOOKUP(DropDownList!$B$47,CntyQryCensus!$A$156:$FR$198,EW$1)","v":213},{"$f":"VLOOKUP(DropDownList!$B$47,CntyQryCensus!$A$156:$FR$198,EX$1)","v":110},{"$f":"VLOOKUP(DropDownList!$B$47,CntyQryCensus!$A$156:$FR$198,EY$1)","v":14668},{"$f":"VLOOKUP(DropDownList!$B$47,CntyQryCensus!$A$156:$FR$198,EZ$1)","v":119},{"$f":"VLOOKUP(DropDownList!$B$47,CntyQryCensus!$A$156:$FR$198,FA$1)","v":767},{"$f":"VLOOKUP(DropDownList!$B$47,CntyQryCensus!$A$156:$FR$198,FB$1)","v":3525},{"$f":"VLOOKUP(DropDownList!$B$47,CntyQryCensus!$A$156:$FR$198,FC$1)","v":384},{"$f":"VLOOKUP(DropDownList!$B$47,CntyQryCensus!$A$156:$FR$198,FD$1)","v":2394},{"$f":"VLOOKUP(DropDownList!$B$47,CntyQryCensus!$A$156:$FR$198,FE$1)","v":634},{"$f":"VLOOKUP(DropDownList!$B$47,CntyQryCensus!$A$156:$FR$198,FF$1)","v":407},{"$f":"VLOOKUP(DropDownList!$B$47,CntyQryCensus!$A$156:$FR$198,FG$1)","v":846},{"$f":"VLOOKUP(DropDownList!$B$47,CntyQryCensus!$A$156:$FR$198,FH$1)","v":997},{"$f":"VLOOKUP(DropDownList!$B$47,CntyQryCensus!$A$156:$FR$198,FI$1)","v":2549},{"$f":"VLOOKUP(DropDownList!$B$47,CntyQryCensus!$A$156:$FR$198,FJ$1)","v":852},{"$f":"VLOOKUP(DropDownList!$B$47,CntyQryCensus!$A$156:$FR$198,FK$1)","v":567},{"$f":"VLOOKUP(DropDownList!$B$47,CntyQryCensus!$A$156:$FR$198,FL$1)","v":627},{"$f":"VLOOKUP(DropDownList!$B$47,CntyQryCensus!$A$156:$FR$198,FM$1)","v":3673},{"$f":"VLOOKUP(DropDownList!$B$47,CntyQryCensus!$A$156:$FR$198,FN$1)","v":2288},{"$f":"VLOOKUP(DropDownList!$B$47,CntyQryCensus!$A$156:$FR$198,FO$1)","v":4022},{"$f":"VLOOKUP(DropDownList!$B$47,CntyQryCensus!$A$156:$FR$198,FP$1)","v":53},{"$f":"VLOOKUP(DropDownList!$B$47,CntyQryCensus!$A$156:$FR$198,FQ$1)","v":1425},{"$f":"VLOOKUP(DropDownList!$B$47,CntyQryCensus!$A$156:$FR$198,FR$1)","v":3207}]
[]
[]
["Census 2000 SummaryFile3 Sample Data  -  SF3TownQry2aIncomeChar"]
["NAME","LOGRECNO","COUNTY","TotalPop","P52Households1","P52HHInc<10K","P52HHInc10to15K","P52HHInc15to20K","P52HHInc20to25K","P52HHInc25to30K","P52HHInc30to35K","P52HHInc35to40K","P52HHInc40to45K","P52HHInc45to50K","P52HHInc50to60K","P52HHInc60to75K","P52HHInc75to100K","P52HHInc100to125K","P52HHInc125to150K","P52HHInc150to200K","P52HHInc>200K","P53MedianHHInc","P54AggregHHInc","P55Households2","P55HHUnder25yrs","P55HH<25HHInc<10K","P55HH<25HHInc10to15K","P55HH<25HHInc15to20K","P55HH<25HHInc20to25K","P55HH<25HHInc25to30K","P55HH<25HHInc30to35K","P55HH<25HHInc35to40K","P55HH<25HHInc40to45K","P55HH<25HHInc45to50K","P55HH<25HHInc50to60K","P55HH<25HHInc60to75K","P55HH<25HHInc75to100K","P55HH<25HHInc100to125K","P55HH<25HHInc125to150K","P55HH<25HHInc150to200K","P55HH<25HHInc>200K","P55HH25to34yrs","P55HH25to34HHInc<10K","P55HH25to34HHInc10to15K","P55HH25to34HHInc15to20K","P55HH25to34HHInc20to25K","P55HH25to34HHInc25to30K","P55HH25to34HHInc30to35K","P55HH25to34HHInc35to40K","P55HH25to34HHInc40to45K","P55HH25to34HHInc45to50K","P55HH25to34HHInc50to60K","P55HH25to34HHInc60to75K","P55HH25to34HHInc75to100K","P55HH25to34HHInc100to125K","P55HH25to34HHInc125to150K","P55HH25to34HHInc150to200K","P55HH25to34HHInc>200K","P55HH35to44yrs","P55HH35to44HHInc<10K","P55HH35to44HHInc10to15K","P55HH35to44HHInc15to20K","P55HH35to44HHInc20to25K","P55HH35to44HHInc25to30K","P55HH35to44HHInc30to35K","P55HH35to44HHInc35to40K","P55HH35to44HHInc40to45K","P55HH35to44HHInc45to50K","P55HH35to44HHInc50to60K","P55HH35to44HHInc60to75K","P55HH35to44HHInc75to100K","P55HH35to44HHInc100to125K","P55HH35to44HHInc125to150K","P55HH35to44HHInc150to200K","P55HH35to44HHInc>200K","P55HH45to54yrs","P55HH45to55HHInc<10K","P55HH45to55HHInc10to15K","P55HH45to55HHInc15to20K","P55HH45to55HHInc20to25K","P55HH45to55HHInc25to30K","P55HH45to55HHInc30to35K","P55HH45to55HHInc35to40K","P55HH45to55HHInc40to45K","P55HH45to55HHInc45to50K","P55HH45to55HHInc50to60K","P55HH45to55HHInc60to75K","P55HH45to55HHInc75to100K","P55HH45to55HHInc100to125K","P55HH45to55HHInc125to150K","P55HH45to55HHInc150to200K","P55HH45to55HHInc>200K","P55HH55to64yrs","P55HH55to64HHInc<10K","P55HH55to64HHInc10to15K","P55HH55to64HHInc15to20K","P55HH55to64HHInc20to25K","P55HH55to64HHInc25to30K","P55HH55to64HHInc30to35K","P55HH55to64HHInc35to40K","P55HH55to64HHInc40to45K","P55HH55to64HHInc45to50K","P55HH55to64HHInc50to60K","P55HH55to64HHInc60to75K","P55HH55to64HHInc75to100K","P55HH55to64HHInc100to125K","P55HH55to64HHInc125to150K","P55HH55to64HHInc150to200K","P55HH55to64HHInc>200K","P55HH65to74yrs","P55HH65to74HHInc<10K","P55HH65to74HHInc10to15K","P55HH65to74HHInc15to20K","P55HH65to74HHInc20to25K","P55HH65to74HHInc25to30K","P55HH65to74HHInc30to35K","P55HH65to74HHInc35to40K","P55HH65to74HHInc40to45K","P55HH65to74HHInc45to50K","P55HH65to74HHInc50to60K","P55HH65to74HHInc60to75K","P55HH65to74HHInc75to100K","P55HH65to74HHInc100to125K","P55HH65to74HHInc125to150K","P55HH65to74HHInc150to200K","P55HH65to74HHInc>200K","P55HH>75yrs","P55HH>75HHInc<10K","P55HH>75HHInc10to15K","P55HH>75HHInc15to20K","P55HH>75HHInc20to25K","P55HH>75HHInc25to30K","P55HH>75HHInc30to35K","P55HH>75HHInc35to40K","P55HH>75HHInc40to45K","P55HH>75HHInc45to50K","P55HH>75HHInc50to60K","P55HH>75HHInc60to75K","P55HH>75HHInc75to100K","P55HH>75HHInc100to125K","P55HH>75HHInc125to150K","P55HH>75HHInc150to200K","P55HH>75HHInc>200K","P56MedHHInc","P56MedHHIncHH<25y","P56MedHHIncHH25to34y","P56MedHHIncHH35to44y","P56MedHHIncHH45to54y","P56MedHHIncHH55to64y","P56MedHHIncHH65to74y","P56MedHHIncHH>75y","P58Households3","P58HHwithEarnings","P58HHNoEarnings","P59HHwWageSalInc","P59HHNoWageSalInc","P60HHwSelfEmpInc","P60HHNoSelfEmpInc","P61HHwIndDivInc","P61HHNoIndDivInc","P62HHwSocSecInc","P62HHNoSocSecInc","P63HHwSSI","P63HHNoSSI","P64HHwPubAssInc","P64HHNoPubAssInc","P65HHwRetInc","P65HHNoRetInc","P66HHwOtherTypInc","P66HHNoOtherTypInc","P67AggregEarnings","P68AggregWageSalInc","P69AggregSelfEmpInc","P70AggregIntDivInc","P71AggregSocSecInc","P72AggregSSIInc","P73AggregPublicAssInc","P74AggregRetireInc","P76Families1","P76FamInc<10K","P76FamInc10to15K","P76FamInc15to20K","P76FamInc20to25K","P76FamInc25to30K","P76FamInc30to35K","P76FamInc35to40K","P76FamInc40to45K","P76FamInc45to50K","P76FamInc50to60K","P76FamInc60to75K","P76FamInc75to100K","P76FamInc100to125K","P76FamInc125to150K","P76FamInc150to200K","P76FamInc>200K","P77MedFamInc","P78AggregFamInc","P79NonFamHH","P79NonFamHHwInc<10K","P79NonFamHHwInc10to15K","P79NonFamHHwInc15to20K","P79NonFamHHwInc20to25K","P79NonFamHHwInc25to30K","P79NonFamHHwInc30to35K","P79NonFamHHwInc35to40K","P79NonFamHHwInc40to45K","P79NonFamHHwInc45to50K","P79NonFamHHwInc50to60K","P79NonFamHHwInc60to75K","P79NonFamHHwInc75to100K","P79NonFamHHwInc100to125K","P79NonFamHHwInc125to150K","P79NonFamHHwInc150to200K","P79NonFamHHwInc200KorMore","P80MedNonFamInc","P82PerCapitaInc"]
[{"$f":"VLOOKUP(DropDownList!$B$47,CntyQryCensus!$A$206:$HH$248,A$1)","v":"Rochester"},{"$f":"VLOOKUP(DropDownList!$B$47,CntyQryCensus!$A$206:$HH$248,B$1)","v":"0003956"},{"$f":"VLOOKUP(DropDownList!$B$47,CntyQryCensus!$A$206:$HH$248,C$1)","v":"65140"},{"$f":"VLOOKUP(DropDownList!$B$47,CntyQryCensus!$A$206:$HH$248,D$1)","v":28461},{"$f":"VLOOKUP(DropDownList!$B$47,CntyQryCensus!$A$206:$HH$248,E$1)","v":11397},{"$f":"VLOOKUP(DropDownList!$B$47,CntyQryCensus!$A$206:$HH$248,F$1)","v":857},{"$f":"VLOOKUP(DropDownList!$B$47,CntyQryCensus!$A$206:$HH$248,G$1)","v":765},{"$f":"VLOOKUP(DropDownList!$B$47,CntyQryCensus!$A$206:$HH$248,H$1)","v":696},{"$f":"VLOOKUP(DropDownList!$B$47,CntyQryCensus!$A$206:$HH$248,I$1)","v":850},{"$f":"VLOOKUP(DropDownList!$B$47,CntyQryCensus!$A$206:$HH$248,J$1)","v":702},{"$f":"VLOOKUP(DropDownList!$B$47,CntyQryCensus!$A$206:$HH$248,K$1)","v":898},{"$f":"VLOOKUP(DropDownList!$B$47,CntyQryCensus!$A$206:$HH$248,L$1)","v":816},{"$f":"VLOOKUP(DropDownList!$B$47,CntyQryCensus!$A$206:$HH$248,M$1)","v":904},{"$f":"VLOOKUP(DropDownList!$B$47,CntyQryCensus!$A$206:$HH$248,N$1)","v":733},{"$f":"VLOOKUP(DropDownList!$B$47,CntyQryCensus!$A$206:$HH$248,O$1)","v":1170},{"$f":"VLOOKUP(DropDownList!$B$47,CntyQryCensus!$A$206:$HH$248,P$1)","v":1331},{"$f":"VLOOKUP(DropDownList!$B$47,CntyQryCensus!$A$206:$HH$248,Q$1)","v":965},{"$f":"VLOOKUP(DropDownList!$B$47,CntyQryCensus!$A$206:$HH$248,R$1)","v":401},{"$f":"VLOOKUP(DropDownList!$B$47,CntyQryCensus!$A$206:$HH$248,S$1)","v":108},{"$f":"VLOOKUP(DropDownList!$B$47,CntyQryCensus!$A$206:$HH$248,T$1)","v":118},{"$f":"VLOOKUP(DropDownList!$B$47,CntyQryCensus!$A$206:$HH$248,U$1)","v":83},{"$f":"VLOOKUP(DropDownList!$B$47,CntyQryCensus!$A$206:$HH$248,V$1)","v":40596},{"$f":"VLOOKUP(DropDownList!$B$47,CntyQryCensus!$A$206:$HH$248,W$1)","v":531067100},{"$f":"VLOOKUP(DropDownList!$B$47,CntyQryCensus!$A$206:$HH$248,X$1)","v":11397},{"$f":"VLOOKUP(DropDownList!$B$47,CntyQryCensus!$A$206:$HH$248,Y$1)","v":482},{"$f":"VLOOKUP(DropDownList!$B$47,CntyQryCensus!$A$206:$HH$248,Z$1)","v":60},{"$f":"VLOOKUP(DropDownList!$B$47,CntyQryCensus!$A$206:$HH$248,AA$1)","v":56},{"$f":"VLOOKUP(DropDownList!$B$47,CntyQryCensus!$A$206:$HH$248,AB$1)","v":17},{"$f":"VLOOKUP(DropDownList!$B$47,CntyQryCensus!$A$206:$HH$248,AC$1)","v":75},{"$f":"VLOOKUP(DropDownList!$B$47,CntyQryCensus!$A$206:$HH$248,AD$1)","v":30},{"$f":"VLOOKUP(DropDownList!$B$47,CntyQryCensus!$A$206:$HH$248,AE$1)","v":43},{"$f":"VLOOKUP(DropDownList!$B$47,CntyQryCensus!$A$206:$HH$248,AF$1)","v":69},{"$f":"VLOOKUP(DropDownList!$B$47,CntyQryCensus!$A$206:$HH$248,AG$1)","v":41},{"$f":"VLOOKUP(DropDownList!$B$47,CntyQryCensus!$A$206:$HH$248,AH$1)","v":33},{"$f":"VLOOKUP(DropDownList!$B$47,CntyQryCensus!$A$206:$HH$248,AI$1)","v":8},{"$f":"VLOOKUP(DropDownList!$B$47,CntyQryCensus!$A$206:$HH$248,AJ$1)","v":27},{"$f":"VLOOKUP(DropDownList!$B$47,CntyQryCensus!$A$206:$HH$248,AK$1)","v":23},{"$f":"VLOOKUP(DropDownList!$B$47,CntyQryCensus!$A$206:$HH$248,AL$1)","v":0},{"$f":"VLOOKUP(DropDownList!$B$47,CntyQryCensus!$A$206:$HH$248,AM$1)","v":0},{"$f":"VLOOKUP(DropDownList!$B$47,CntyQryCensus!$A$206:$HH$248,AN$1)","v":0},{"$f":"VLOOKUP(DropDownList!$B$47,CntyQryCensus!$A$206:$HH$248,AO$1)","v":0},{"$f":"VLOOKUP(DropDownList!$B$47,CntyQryCensus!$A$206:$HH$248,AP$1)","v":2112},{"$f":"VLOOKUP(DropDownList!$B$47,CntyQryCensus!$A$206:$HH$248,AQ$1)","v":117},{"$f":"VLOOKUP(DropDownList!$B$47,CntyQryCensus!$A$206:$HH$248,AR$1)","v":117},{"$f":"VLOOKUP(DropDownList!$B$47,CntyQryCensus!$A$206:$HH$248,AS$1)","v":130},{"$f":"VLOOKUP(DropDownList!$B$47,CntyQryCensus!$A$206:$HH$248,AT$1)","v":133},{"$f":"VLOOKUP(DropDownList!$B$47,CntyQryCensus!$A$206:$HH$248,AU$1)","v":154},{"$f":"VLOOKUP(DropDownList!$B$47,CntyQryCensus!$A$206:$HH$248,AV$1)","v":130},{"$f":"VLOOKUP(DropDownList!$B$47,CntyQryCensus!$A$206:$HH$248,AW$1)","v":159},{"$f":"VLOOKUP(DropDownList!$B$47,CntyQryCensus!$A$206:$HH$248,AX$1)","v":203},{"$f":"VLOOKUP(DropDownList!$B$47,CntyQryCensus!$A$206:$HH$248,AY$1)","v":210},{"$f":"VLOOKUP(DropDownList!$B$47,CntyQryCensus!$A$206:$HH$248,AZ$1)","v":285},{"$f":"VLOOKUP(DropDownList!$B$47,CntyQryCensus!$A$206:$HH$248,BA$1)","v":304},{"$f":"VLOOKUP(DropDownList!$B$47,CntyQryCensus!$A$206:$HH$248,BB$1)","v":113},{"$f":"VLOOKUP(DropDownList!$B$47,CntyQryCensus!$A$206:$HH$248,BC$1)","v":31},{"$f":"VLOOKUP(DropDownList!$B$47,CntyQryCensus!$A$206:$HH$248,BD$1)","v":26},{"$f":"VLOOKUP(DropDownList!$B$47,CntyQryCensus!$A$206:$HH$248,BE$1)","v":0},{"$f":"VLOOKUP(DropDownList!$B$47,CntyQryCensus!$A$206:$HH$248,BF$1)","v":0},{"$f":"VLOOKUP(DropDownList!$B$47,CntyQryCensus!$A$206:$HH$248,BG$1)","v":2681},{"$f":"VLOOKUP(DropDownList!$B$47,CntyQryCensus!$A$206:$HH$248,BH$1)","v":105},{"$f":"VLOOKUP(DropDownList!$B$47,CntyQryCensus!$A$206:$HH$248,BI$1)","v":102},{"$f":"VLOOKUP(DropDownList!$B$47,CntyQryCensus!$A$206:$HH$248,BJ$1)","v":68},{"$f":"VLOOKUP(DropDownList!$B$47,CntyQryCensus!$A$206:$HH$248,BK$1)","v":130},{"$f":"VLOOKUP(DropDownList!$B$47,CntyQryCensus!$A$206:$HH$248,BL$1)","v":179},{"$f":"VLOOKUP(DropDownList!$B$47,CntyQryCensus!$A$206:$HH$248,BM$1)","v":181},{"$f":"VLOOKUP(DropDownList!$B$47,CntyQryCensus!$A$206:$HH$248,BN$1)","v":171},{"$f":"VLOOKUP(DropDownList!$B$47,CntyQryCensus!$A$206:$HH$248,BO$1)","v":226},{"$f":"VLOOKUP(DropDownList!$B$47,CntyQryCensus!$A$206:$HH$248,BP$1)","v":186},{"$f":"VLOOKUP(DropDownList!$B$47,CntyQryCensus!$A$206:$HH$248,BQ$1)","v":358},{"$f":"VLOOKUP(DropDownList!$B$47,CntyQryCensus!$A$206:$HH$248,BR$1)","v":435},{"$f":"VLOOKUP(DropDownList!$B$47,CntyQryCensus!$A$206:$HH$248,BS$1)","v":295},{"$f":"VLOOKUP(DropDownList!$B$47,CntyQryCensus!$A$206:$HH$248,BT$1)","v":184},{"$f":"VLOOKUP(DropDownList!$B$47,CntyQryCensus!$A$206:$HH$248,BU$1)","v":30},{"$f":"VLOOKUP(DropDownList!$B$47,CntyQryCensus!$A$206:$HH$248,BV$1)","v":19},{"$f":"VLOOKUP(DropDownList!$B$47,CntyQryCensus!$A$206:$HH$248,BW$1)","v":12},{"$f":"VLOOKUP(DropDownList!$B$47,CntyQryCensus!$A$206:$HH$248,BX$1)","v":2146},{"$f":"VLOOKUP(DropDownList!$B$47,CntyQryCensus!$A$206:$HH$248,BY$1)","v":125},{"$f":"VLOOKUP(DropDownList!$B$47,CntyQryCensus!$A$206:$HH$248,BZ$1)","v":59},{"$f":"VLOOKUP(DropDownList!$B$47,CntyQryCensus!$A$206:$HH$248,CA$1)","v":72},{"$f":"VLOOKUP(DropDownList!$B$47,CntyQryCensus!$A$206:$HH$248,CB$1)","v":128},{"$f":"VLOOKUP(DropDownList!$B$47,CntyQryCensus!$A$206:$HH$248,CC$1)","v":86},{"$f":"VLOOKUP(DropDownList!$B$47,CntyQryCensus!$A$206:$HH$248,CD$1)","v":167},{"$f":"VLOOKUP(DropDownList!$B$47,CntyQryCensus!$A$206:$HH$248,CE$1)","v":150},{"$f":"VLOOKUP(DropDownList!$B$47,CntyQryCensus!$A$206:$HH$248,CF$1)","v":201},{"$f":"VLOOKUP(DropDownList!$B$47,CntyQryCensus!$A$206:$HH$248,CG$1)","v":101},{"$f":"VLOOKUP(DropDownList!$B$47,CntyQryCensus!$A$206:$HH$248,CH$1)","v":270},{"$f":"VLOOKUP(DropDownList!$B$47,CntyQryCensus!$A$206:$HH$248,CI$1)","v":276},{"$f":"VLOOKUP(DropDownList!$B$47,CntyQryCensus!$A$206:$HH$248,CJ$1)","v":329},{"$f":"VLOOKUP(DropDownList!$B$47,CntyQryCensus!$A$206:$HH$248,CK$1)","v":87},{"$f":"VLOOKUP(DropDownList!$B$47,CntyQryCensus!$A$206:$HH$248,CL$1)","v":52},{"$f":"VLOOKUP(DropDownList!$B$47,CntyQryCensus!$A$206:$HH$248,CM$1)","v":31},{"$f":"VLOOKUP(DropDownList!$B$47,CntyQryCensus!$A$206:$HH$248,CN$1)","v":12},{"$f":"VLOOKUP(DropDownList!$B$47,CntyQryCensus!$A$206:$HH$248,CO$1)","v":1489},{"$f":"VLOOKUP(DropDownList!$B$47,CntyQryCensus!$A$206:$HH$248,CP$1)","v":119},{"$f":"VLOOKUP(DropDownList!$B$47,CntyQryCensus!$A$206:$HH$248,CQ$1)","v":53},{"$f":"VLOOKUP(DropDownList!$B$47,CntyQryCensus!$A$206:$HH$248,CR$1)","v":69},{"$f":"VLOOKUP(DropDownList!$B$47,CntyQryCensus!$A$206:$HH$248,CS$1)","v":113},{"$f":"VLOOKUP(DropDownList!$B$47,CntyQryCensus!$A$206:$HH$248,CT$1)","v":51},{"$f":"VLOOKUP(DropDownList!$B$47,CntyQryCensus!$A$206:$HH$248,CU$1)","v":130},{"$f":"VLOOKUP(DropDownList!$B$47,CntyQryCensus!$A$206:$HH$248,CV$1)","v":111},{"$f":"VLOOKUP(DropDownList!$B$47,CntyQryCensus!$A$206:$HH$248,CW$1)","v":131},{"$f":"VLOOKUP(DropDownList!$B$47,CntyQryCensus!$A$206:$HH$248,CX$1)","v":153},{"$f":"VLOOKUP(DropDownList!$B$47,CntyQryCensus!$A$206:$HH$248,CY$1)","v":128},{"$f":"VLOOKUP(DropDownList!$B$47,CntyQryCensus!$A$206:$HH$248,CZ$1)","v":143},{"$f":"VLOOKUP(DropDownList!$B$47,CntyQryCensus!$A$206:$HH$248,DA$1)","v":138},{"$f":"VLOOKUP(DropDownList!$B$47,CntyQryCensus!$A$206:$HH$248,DB$1)","v":66},{"$f":"VLOOKUP(DropDownList!$B$47,CntyQryCensus!$A$206:$HH$248,DC$1)","v":0},{"$f":"VLOOKUP(DropDownList!$B$47,CntyQryCensus!$A$206:$HH$248,DD$1)","v":48},{"$f":"VLOOKUP(DropDownList!$B$47,CntyQryCensus!$A$206:$HH$248,DE$1)","v":36},{"$f":"VLOOKUP(DropDownList!$B$47,CntyQryCensus!$A$206:$HH$248,DF$1)","v":1342},{"$f":"VLOOKUP(DropDownList!$B$47,CntyQryCensus!$A$206:$HH$248,DG$1)","v":130},{"$f":"VLOOKUP(DropDownList!$B$47,CntyQryCensus!$A$206:$HH$248,DH$1)","v":141},{"$f":"VLOOKUP(DropDownList!$B$47,CntyQryCensus!$A$206:$HH$248,DI$1)","v":200},{"$f":"VLOOKUP(DropDownList!$B$47,CntyQryCensus!$A$206:$HH$248,DJ$1)","v":121},{"$f":"VLOOKUP(DropDownList!$B$47,CntyQryCensus!$A$206:$HH$248,DK$1)","v":114},{"$f":"VLOOKUP(DropDownList!$B$47,CntyQryCensus!$A$206:$HH$248,DL$1)","v":173},{"$f":"VLOOKUP(DropDownList!$B$47,CntyQryCensus!$A$206:$HH$248,DM$1)","v":108},{"$f":"VLOOKUP(DropDownList!$B$47,CntyQryCensus!$A$206:$HH$248,DN$1)","v":67},{"$f":"VLOOKUP(DropDownList!$B$47,CntyQryCensus!$A$206:$HH$248,DO$1)","v":31},{"$f":"VLOOKUP(DropDownList!$B$47,CntyQryCensus!$A$206:$HH$248,DP$1)","v":57},{"$f":"VLOOKUP(DropDownList!$B$47,CntyQryCensus!$A$206:$HH$248,DQ$1)","v":122},{"$f":"VLOOKUP(DropDownList!$B$47,CntyQryCensus!$A$206:$HH$248,DR$1)","v":39},{"$f":"VLOOKUP(DropDownList!$B$47,CntyQryCensus!$A$206:$HH$248,DS$1)","v":25},{"$f":"VLOOKUP(DropDownList!$B$47,CntyQryCensus!$A$206:$HH$248,DT$1)","v":0},{"$f":"VLOOKUP(DropDownList!$B$47,CntyQryCensus!$A$206:$HH$248,DU$1)","v":14},{"$f":"VLOOKUP(DropDownList!$B$47,CntyQryCensus!$A$206:$HH$248,DV$1)","v":0},{"$f":"VLOOKUP(DropDownList!$B$47,CntyQryCensus!$A$206:$HH$248,DW$1)","v":1145},{"$f":"VLOOKUP(DropDownList!$B$47,CntyQryCensus!$A$206:$HH$248,DX$1)","v":201},{"$f":"VLOOKUP(DropDownList!$B$47,CntyQryCensus!$A$206:$HH$248,DY$1)","v":237},{"$f":"VLOOKUP(DropDownList!$B$47,CntyQryCensus!$A$206:$HH$248,DZ$1)","v":140},{"$f":"VLOOKUP(DropDownList!$B$47,CntyQryCensus!$A$206:$HH$248,EA$1)","v":150},{"$f":"VLOOKUP(DropDownList!$B$47,CntyQryCensus!$A$206:$HH$248,EB$1)","v":88},{"$f":"VLOOKUP(DropDownList!$B$47,CntyQryCensus!$A$206:$HH$248,EC$1)","v":74},{"$f":"VLOOKUP(DropDownList!$B$47,CntyQryCensus!$A$206:$HH$248,ED$1)","v":48},{"$f":"VLOOKUP(DropDownList!$B$47,CntyQryCensus!$A$206:$HH$248,EE$1)","v":35},{"$f":"VLOOKUP(DropDownList!$B$47,CntyQryCensus!$A$206:$HH$248,EF$1)","v":19},{"$f":"VLOOKUP(DropDownList!$B$47,CntyQryCensus!$A$206:$HH$248,EG$1)","v":64},{"$f":"VLOOKUP(DropDownList!$B$47,CntyQryCensus!$A$206:$HH$248,EH$1)","v":24},{"$f":"VLOOKUP(DropDownList!$B$47,CntyQryCensus!$A$206:$HH$248,EI$1)","v":28},{"$f":"VLOOKUP(DropDownList!$B$47,CntyQryCensus!$A$206:$HH$248,EJ$1)","v":8},{"$f":"VLOOKUP(DropDownList!$B$47,CntyQryCensus!$A$206:$HH$248,EK$1)","v":0},{"$f":"VLOOKUP(DropDownList!$B$47,CntyQryCensus!$A$206:$HH$248,EL$1)","v":6},{"$f":"VLOOKUP(DropDownList!$B$47,CntyQryCensus!$A$206:$HH$248,EM$1)","v":23},{"$f":"VLOOKUP(DropDownList!$B$47,CntyQryCensus!$A$206:$HH$248,EN$1)","v":40596},{"$f":"VLOOKUP(DropDownList!$B$47,CntyQryCensus!$A$206:$HH$248,EO$1)","v":30313},{"$f":"VLOOKUP(DropDownList!$B$47,CntyQryCensus!$A$206:$HH$248,EP$1)","v":42302},{"$f":"VLOOKUP(DropDownList!$B$47,CntyQryCensus!$A$206:$HH$248,EQ$1)","v":49740},{"$f":"VLOOKUP(DropDownList!$B$47,CntyQryCensus!$A$206:$HH$248,ER$1)","v":49149},{"$f":"VLOOKUP(DropDownList!$B$47,CntyQryCensus!$A$206:$HH$248,ES$1)","v":43917},{"$f":"VLOOKUP(DropDownList!$B$47,CntyQryCensus!$A$206:$HH$248,ET$1)","v":28250},{"$f":"VLOOKUP(DropDownList!$B$47,CntyQryCensus!$A$206:$HH$248,EU$1)","v":19771},{"$f":"VLOOKUP(DropDownList!$B$47,CntyQryCensus!$A$206:$HH$248,EV$1)","v":11397},{"$f":"VLOOKUP(DropDownList!$B$47,CntyQryCensus!$A$206:$HH$248,EW$1)","v":9126},{"$f":"VLOOKUP(DropDownList!$B$47,CntyQryCensus!$A$206:$HH$248,EX$1)","v":2271},{"$f":"VLOOKUP(DropDownList!$B$47,CntyQryCensus!$A$206:$HH$248,EY$1)","v":8956},{"$f":"VLOOKUP(DropDownList!$B$47,CntyQryCensus!$A$206:$HH$248,EZ$1)","v":2441},{"$f":"VLOOKUP(DropDownList!$B$47,CntyQryCensus!$A$206:$HH$248,FA$1)","v":994},{"$f":"VLOOKUP(DropDownList!$B$47,CntyQryCensus!$A$206:$HH$248,FB$1)","v":10403},{"$f":"VLOOKUP(DropDownList!$B$47,CntyQryCensus!$A$206:$HH$248,FC$1)","v":3672},{"$f":"VLOOKUP(DropDownList!$B$47,CntyQryCensus!$A$206:$HH$248,FD$1)","v":7725},{"$f":"VLOOKUP(DropDownList!$B$47,CntyQryCensus!$A$206:$HH$248,FE$1)","v":3160},{"$f":"VLOOKUP(DropDownList!$B$47,CntyQryCensus!$A$206:$HH$248,FF$1)","v":8237},{"$f":"VLOOKUP(DropDownList!$B$47,CntyQryCensus!$A$206:$HH$248,FG$1)","v":439},{"$f":"VLOOKUP(DropDownList!$B$47,CntyQryCensus!$A$206:$HH$248,FH$1)","v":10958},{"$f":"VLOOKUP(DropDownList!$B$47,CntyQryCensus!$A$206:$HH$248,FI$1)","v":625},{"$f":"VLOOKUP(DropDownList!$B$47,CntyQryCensus!$A$206:$HH$248,FJ$1)","v":10772},{"$f":"VLOOKUP(DropDownList!$B$47,CntyQryCensus!$A$206:$HH$248,FK$1)","v":2234},{"$f":"VLOOKUP(DropDownList!$B$47,CntyQryCensus!$A$206:$HH$248,FL$1)","v":9163},{"$f":"VLOOKUP(DropDownList!$B$47,CntyQryCensus!$A$206:$HH$248,FM$1)","v":1743},{"$f":"VLOOKUP(DropDownList!$B$47,CntyQryCensus!$A$206:$HH$248,FN$1)","v":9654},{"$f":"VLOOKUP(DropDownList!$B$47,CntyQryCensus!$A$206:$HH$248,FO$1)","v":427659500},{"$f":"VLOOKUP(DropDownList!$B$47,CntyQryCensus!$A$206:$HH$248,FP$1)","v":407922300},{"$f":"VLOOKUP(DropDownList!$B$47,CntyQryCensus!$A$206:$HH$248,FQ$1)","v":19737300},{"$f":"VLOOKUP(DropDownList!$B$47,CntyQryCensus!$A$206:$HH$248,FR$1)","v":23516400},{"$f":"VLOOKUP(DropDownList!$B$47,CntyQryCensus!$A$206:$HH$248,FS$1)","v":34125200},{"$f":"VLOOKUP(DropDownList!$B$47,CntyQryCensus!$A$206:$HH$248,FT$1)","v":2767100},{"$f":"VLOOKUP(DropDownList!$B$47,CntyQryCensus!$A$206:$HH$248,FU$1)","v":1751100},{"$f":"VLOOKUP(DropDownList!$B$47,CntyQryCensus!$A$206:$HH$248,FV$1)","v":27282400},{"$f":"VLOOKUP(DropDownList!$B$47,CntyQryCensus!$A$206:$HH$248,FW$1)","v":7671},{"$f":"VLOOKUP(DropDownList!$B$47,CntyQryCensus!$A$206:$HH$248,FX$1)","v":307},{"$f":"VLOOKUP(DropDownList!$B$47,CntyQryCensus!$A$206:$HH$248,FY$1)","v":345},{"$f":"VLOOKUP(DropDownList!$B$47,CntyQryCensus!$A$206:$HH$248,FZ$1)","v":383},{"$f":"VLOOKUP(DropDownList!$B$47,CntyQryCensus!$A$206:$HH$248,GA$1)","v":393},{"$f":"VLOOKUP(DropDownList!$B$47,CntyQryCensus!$A$206:$HH$248,GB$1)","v":375},{"$f":"VLOOKUP(DropDownList!$B$47,CntyQryCensus!$A$206:$HH$248,GC$1)","v":555},{"$f":"VLOOKUP(DropDownList!$B$47,CntyQryCensus!$A$206:$HH$248,GD$1)","v":499},{"$f":"VLOOKUP(DropDownList!$B$47,CntyQryCensus!$A$206:$HH$248,GE$1)","v":628},{"$f":"VLOOKUP(DropDownList!$B$47,CntyQryCensus!$A$206:$HH$248,GF$1)","v":630},{"$f":"VLOOKUP(DropDownList!$B$47,CntyQryCensus!$A$206:$HH$248,GG$1)","v":991},{"$f":"VLOOKUP(DropDownList!$B$47,CntyQryCensus!$A$206:$HH$248,GH$1)","v":1060},{"$f":"VLOOKUP(DropDownList!$B$47,CntyQryCensus!$A$206:$HH$248,GI$1)","v":858},{"$f":"VLOOKUP(DropDownList!$B$47,CntyQryCensus!$A$206:$HH$248,GJ$1)","v":378},{"$f":"VLOOKUP(DropDownList!$B$47,CntyQryCensus!$A$206:$HH$248,GK$1)","v":102},{"$f":"VLOOKUP(DropDownList!$B$47,CntyQryCensus!$A$206:$HH$248,GL$1)","v":96},{"$f":"VLOOKUP(DropDownList!$B$47,CntyQryCensus!$A$206:$HH$248,GM$1)","v":71},{"$f":"VLOOKUP(DropDownList!$B$47,CntyQryCensus!$A$206:$HH$248,GN$1)","v":47324},{"$f":"VLOOKUP(DropDownList!$B$47,CntyQryCensus!$A$206:$HH$248,GO$1)","v":411636500},{"$f":"VLOOKUP(DropDownList!$B$47,CntyQryCensus!$A$206:$HH$248,GP$1)","v":3726},{"$f":"VLOOKUP(DropDownList!$B$47,CntyQryCensus!$A$206:$HH$248,GQ$1)","v":603},{"$f":"VLOOKUP(DropDownList!$B$47,CntyQryCensus!$A$206:$HH$248,GR$1)","v":501},{"$f":"VLOOKUP(DropDownList!$B$47,CntyQryCensus!$A$206:$HH$248,GS$1)","v":345},{"$f":"VLOOKUP(DropDownList!$B$47,CntyQryCensus!$A$206:$HH$248,GT$1)","v":473},{"$f":"VLOOKUP(DropDownList!$B$47,CntyQryCensus!$A$206:$HH$248,GU$1)","v":312},{"$f":"VLOOKUP(DropDownList!$B$47,CntyQryCensus!$A$206:$HH$248,GV$1)","v":379},{"$f":"VLOOKUP(DropDownList!$B$47,CntyQryCensus!$A$206:$HH$248,GW$1)","v":273},{"$f":"VLOOKUP(DropDownList!$B$47,CntyQryCensus!$A$206:$HH$248,GX$1)","v":255},{"$f":"VLOOKUP(DropDownList!$B$47,CntyQryCensus!$A$206:$HH$248,GY$1)","v":86},{"$f":"VLOOKUP(DropDownList!$B$47,CntyQryCensus!$A$206:$HH$248,GZ$1)","v":154},{"$f":"VLOOKUP(DropDownList!$B$47,CntyQryCensus!$A$206:$HH$248,HA$1)","v":208},{"$f":"VLOOKUP(DropDownList!$B$47,CntyQryCensus!$A$206:$HH$248,HB$1)","v":86},{"$f":"VLOOKUP(DropDownList!$B$47,CntyQryCensus!$A$206:$HH$248,HC$1)","v":11},{"$f":"VLOOKUP(DropDownList!$B$47,CntyQryCensus!$A$206:$HH$248,HD$1)","v":6},{"$f":"VLOOKUP(DropDownList!$B$47,CntyQryCensus!$A$206:$HH$248,HE$1)","v":22},{"$f":"VLOOKUP(DropDownList!$B$47,CntyQryCensus!$A$206:$HH$248,HF$1)","v":12},{"$f":"VLOOKUP(DropDownList!$B$47,CntyQryCensus!$A$206:$HH$248,HG$1)","v":24244},{"$f":"VLOOKUP(DropDownList!$B$47,CntyQryCensus!$A$206:$HH$248,HH$1)","v":18859}]
[]
[]
["Census 2000 SummaryFile3 Sample Data  -  SF3TownQry2bPovertyChar"]
["NAME","LOGRECNO","COUNTY","TotalPop","P52Households1","P82PerCapitaInc","P87PopForPovStatus","P87PopWIncBelowPovStatus","P87PopUnder5yrBelowPoverty","P87Pop5yrBelowPoverty","P87Pop5to11yrBelowPoverty","P87Pop12to17yrBelowPoverty","P87Pop18to64yrBelowPoverty","P87Pop65to74yrBelowPoverty","P87PopOver75yrBelowPoverty","P87PopWIncAbovePovStatus","P87PopUnder5yrAbovePoverty","P87Pop5yrAbovePoverty","P87Pop5to11yrAbovePoverty","P87Pop12to17yrAbovePoverty","P87Pop18to64yrAbovePoverty","P87Pop65to74yrAbovePoverty","P87PopOver75yrAbovePoverty","P90Families","P90FamWIncBelowPov","P90MarCupFamWIncBelowPov","P90MCFamWRltdChld<18WIncBelowPov","P90MCFamWRltdChld<5WIncBelowPov","P90MaleHhlrWIncBelowPov","P90MaleHhlrWRltdChld<18yrWIncBelowPov","P90MaleHhlrWRltdChld<5yrWIncBelowPov","P90FemaleHhlrWIncBelowPov","P90FemaleHhlrWRltdChld<18yWIncBelowPov","P90FemaleHhlrWRltdChld<5yWIncBelowPov","P90FamWIncAbovePov","P90MarCupFamWIncAbovePov","P90MCFamWRltdChld<18WIncAbovePov","P90MCFamWRltdChld<5WIncAbovePov","P90MaleHhlrWIncAbovePov","P90MaleHhlrWRltdChld<18yrWIncAbovePov","P90MaleHhlrWRltdChld<5yrWIncAbovePov","P90FemaleHhlrWIncAbovePov","P90FemaleHhlrWRltdChld<18yWIncAbovePov","P90FemaleHhlrWRltdChld<5yWIncAbovePov","P92Households","P92HHwIncBelowPov","P92FamHHwIncBelowPov","P92MCFamHHwIncBelowPov","P92MaleFamHHwIncBelowPov","P92FemaleFamHHwIncBelowPov","P92NonFamHHwIncBelowPov","P92NonFamMaleHHwIncBelowPov","P92NonFamFemaleHHwIncBelowPov","P92HHwIncAbovePov","P92FamHHwIncAbovePov","P92MCFamHHwIncAbovePov","P92MaleFamHHwIncAbovePov","P92FemaleFamHHwIncAbovePov","P92NonFamHHwIncAbovePov","P92NonFamMaleHHwIncAbovePov","P92NonFamFemaleHHwIncAbovePov"]
[{"$f":"VLOOKUP(DropDownList!$B$47,CntyQryCensus!$A$256:$BI$298,A$1)","v":"Rochester"},{"$f":"VLOOKUP(DropDownList!$B$47,CntyQryCensus!$A$256:$BI$298,B$1)","v":"0003956"},{"$f":"VLOOKUP(DropDownList!$B$47,CntyQryCensus!$A$256:$BI$298,C$1)","v":"65140"},{"$f":"VLOOKUP(DropDownList!$B$47,CntyQryCensus!$A$256:$BI$298,D$1)","v":28461},{"$f":"VLOOKUP(DropDownList!$B$47,CntyQryCensus!$A$256:$BI$298,E$1)","v":11397},{"$f":"VLOOKUP(DropDownList!$B$47,CntyQryCensus!$A$256:$BI$298,F$1)","v":18859},{"$f":"VLOOKUP(DropDownList!$B$47,CntyQryCensus!$A$256:$BI$298,G$1)","v":28140},{"$f":"VLOOKUP(DropDownList!$B$47,CntyQryCensus!$A$256:$BI$298,H$1)","v":2357},{"$f":"VLOOKUP(DropDownList!$B$47,CntyQryCensus!$A$256:$BI$298,I$1)","v":244},{"$f":"VLOOKUP(DropDownList!$B$47,CntyQryCensus!$A$256:$BI$298,J$1)","v":66},{"$f":"VLOOKUP(DropDownList!$B$47,CntyQryCensus!$A$256:$BI$298,K$1)","v":276},{"$f":"VLOOKUP(DropDownList!$B$47,CntyQryCensus!$A$256:$BI$298,L$1)","v":290},{"$f":"VLOOKUP(DropDownList!$B$47,CntyQryCensus!$A$256:$BI$298,M$1)","v":1165},{"$f":"VLOOKUP(DropDownList!$B$47,CntyQryCensus!$A$256:$BI$298,N$1)","v":114},{"$f":"VLOOKUP(DropDownList!$B$47,CntyQryCensus!$A$256:$BI$298,O$1)","v":202},{"$f":"VLOOKUP(DropDownList!$B$47,CntyQryCensus!$A$256:$BI$298,P$1)","v":25783},{"$f":"VLOOKUP(DropDownList!$B$47,CntyQryCensus!$A$256:$BI$298,Q$1)","v":1611},{"$f":"VLOOKUP(DropDownList!$B$47,CntyQryCensus!$A$256:$BI$298,R$1)","v":257},{"$f":"VLOOKUP(DropDownList!$B$47,CntyQryCensus!$A$256:$BI$298,S$1)","v":2061},{"$f":"VLOOKUP(DropDownList!$B$47,CntyQryCensus!$A$256:$BI$298,T$1)","v":2297},{"$f":"VLOOKUP(DropDownList!$B$47,CntyQryCensus!$A$256:$BI$298,U$1)","v":16264},{"$f":"VLOOKUP(DropDownList!$B$47,CntyQryCensus!$A$256:$BI$298,V$1)","v":1960},{"$f":"VLOOKUP(DropDownList!$B$47,CntyQryCensus!$A$256:$BI$298,W$1)","v":1333},{"$f":"VLOOKUP(DropDownList!$B$47,CntyQryCensus!$A$256:$BI$298,X$1)","v":7671},{"$f":"VLOOKUP(DropDownList!$B$47,CntyQryCensus!$A$256:$BI$298,Y$1)","v":481},{"$f":"VLOOKUP(DropDownList!$B$47,CntyQryCensus!$A$256:$BI$298,Z$1)","v":130},{"$f":"VLOOKUP(DropDownList!$B$47,CntyQryCensus!$A$256:$BI$298,AA$1)","v":65},{"$f":"VLOOKUP(DropDownList!$B$47,CntyQryCensus!$A$256:$BI$298,AB$1)","v":15},{"$f":"VLOOKUP(DropDownList!$B$47,CntyQryCensus!$A$256:$BI$298,AC$1)","v":26},{"$f":"VLOOKUP(DropDownList!$B$47,CntyQryCensus!$A$256:$BI$298,AD$1)","v":21},{"$f":"VLOOKUP(DropDownList!$B$47,CntyQryCensus!$A$256:$BI$298,AE$1)","v":0},{"$f":"VLOOKUP(DropDownList!$B$47,CntyQryCensus!$A$256:$BI$298,AF$1)","v":325},{"$f":"VLOOKUP(DropDownList!$B$47,CntyQryCensus!$A$256:$BI$298,AG$1)","v":313},{"$f":"VLOOKUP(DropDownList!$B$47,CntyQryCensus!$A$256:$BI$298,AH$1)","v":87},{"$f":"VLOOKUP(DropDownList!$B$47,CntyQryCensus!$A$256:$BI$298,AI$1)","v":7190},{"$f":"VLOOKUP(DropDownList!$B$47,CntyQryCensus!$A$256:$BI$298,AJ$1)","v":5856},{"$f":"VLOOKUP(DropDownList!$B$47,CntyQryCensus!$A$256:$BI$298,AK$1)","v":2674},{"$f":"VLOOKUP(DropDownList!$B$47,CntyQryCensus!$A$256:$BI$298,AL$1)","v":608},{"$f":"VLOOKUP(DropDownList!$B$47,CntyQryCensus!$A$256:$BI$298,AM$1)","v":431},{"$f":"VLOOKUP(DropDownList!$B$47,CntyQryCensus!$A$256:$BI$298,AN$1)","v":301},{"$f":"VLOOKUP(DropDownList!$B$47,CntyQryCensus!$A$256:$BI$298,AO$1)","v":80},{"$f":"VLOOKUP(DropDownList!$B$47,CntyQryCensus!$A$256:$BI$298,AP$1)","v":903},{"$f":"VLOOKUP(DropDownList!$B$47,CntyQryCensus!$A$256:$BI$298,AQ$1)","v":594},{"$f":"VLOOKUP(DropDownList!$B$47,CntyQryCensus!$A$256:$BI$298,AR$1)","v":118},{"$f":"VLOOKUP(DropDownList!$B$47,CntyQryCensus!$A$256:$BI$298,AS$1)","v":11397},{"$f":"VLOOKUP(DropDownList!$B$47,CntyQryCensus!$A$256:$BI$298,AT$1)","v":986},{"$f":"VLOOKUP(DropDownList!$B$47,CntyQryCensus!$A$256:$BI$298,AU$1)","v":481},{"$f":"VLOOKUP(DropDownList!$B$47,CntyQryCensus!$A$256:$BI$298,AV$1)","v":130},{"$f":"VLOOKUP(DropDownList!$B$47,CntyQryCensus!$A$256:$BI$298,AW$1)","v":26},{"$f":"VLOOKUP(DropDownList!$B$47,CntyQryCensus!$A$256:$BI$298,AX$1)","v":325},{"$f":"VLOOKUP(DropDownList!$B$47,CntyQryCensus!$A$256:$BI$298,AY$1)","v":505},{"$f":"VLOOKUP(DropDownList!$B$47,CntyQryCensus!$A$256:$BI$298,AZ$1)","v":133},{"$f":"VLOOKUP(DropDownList!$B$47,CntyQryCensus!$A$256:$BI$298,BA$1)","v":372},{"$f":"VLOOKUP(DropDownList!$B$47,CntyQryCensus!$A$256:$BI$298,BB$1)","v":10411},{"$f":"VLOOKUP(DropDownList!$B$47,CntyQryCensus!$A$256:$BI$298,BC$1)","v":7190},{"$f":"VLOOKUP(DropDownList!$B$47,CntyQryCensus!$A$256:$BI$298,BD$1)","v":5856},{"$f":"VLOOKUP(DropDownList!$B$47,CntyQryCensus!$A$256:$BI$298,BE$1)","v":431},{"$f":"VLOOKUP(DropDownList!$B$47,CntyQryCensus!$A$256:$BI$298,BF$1)","v":903},{"$f":"VLOOKUP(DropDownList!$B$47,CntyQryCensus!$A$256:$BI$298,BG$1)","v":3221},{"$f":"VLOOKUP(DropDownList!$B$47,CntyQryCensus!$A$256:$BI$298,BH$1)","v":1579},{"$f":"VLOOKUP(DropDownList!$B$47,CntyQryCensus!$A$256:$BI$298,BI$1)","v":1642}]
[null,null,null,null,null,null,null,null,null,null,null,null,null,null,null,null,null,null,{"$f":"SUM(R60:T60)","v":4615}]
[]
["Census 2000 SummaryFile3 Sample Data  -  SF3TownQry7HousingA"]
["NAME","LOGRECNO","COUNTY","TotalPop","H1HousingUnitsTotal","H2SampleHU","H2SampleOccHU","H2SampleVacHU","H3HU100pctCount","H5HUTotal","H5HUUrban","H5HUUrbanInUrbanAreas","H5HUUrbanInUrbanClusters","H5HURural","H5HURuralFarm","H5HURuralNonFarm","H7HUOcc","H7HUOwnrOcc","H7HURentrOcc","H8HUVacant","H8HUVacantForRent","H8HUVacantForSale","H8HUVacRentedorSold","H8HUVacSeasonal","H8HUVacForMigrantWrkrs","H8HUOtherVacant","H14OccHUa","H14OwnerOccHU","H14OwnOccHuHh15to24","H14OwnOccHuHh25to34","H14OwnOccHuHh35to44","H14OwnOccHuHh45to54","H14OwnOccHuHh55to59","H14OwnOccHuHh60to64","H14OwnOccHuHh65to74","H14OwnOccHuHh75to84","H14OwnOccHuHh85Over","H14RenterOccHU1","H14RntrOccHuHh15to24","H14RntrOccHuHh25to34","H14RntrOccHuHh35to44","H14RntrOccHuHh45to54","H14RntrOccHuHh55to59","H14RntrOccHuHh60to64","H14RntrOccHuHh65to74","H14RntrOccHuHh75to84","H14RntrOccHuHh85Over","H15PopInOccHU","H15PopInOwnOccHU1","H15PopInRentOccHU1","H17OccupHUb","H17OwnOccHU2","H17OwnOccHU1PersonHH","H17OwnOccHU2PersonHH","H17OwnOccHU3PersonHH","H17OwnOccHU4PersonHH","H17OwnOccHU5PersonHH","H17OwnOccHU6PersonHH","H17OwnOccHU7PlusPersonHH","H17RentOccHU2","H17RntOccHU1PersonHH","H17RntOccHU2PersonHH","H17RntOccHU3PersonHH","H17RntOccHU4PersonHH","H17RntOccHU5PersonHH","H17RntOccHU6PersonHH","H17RntOccHU7PlusPersonHH","H18AvgHHSize","H18AvgHHSizeOwnOcc","H18AvgHHSizeRentOcc","H23TotHU","H23HU1Room","H23HU2Room","H23HU3Room","H23HU4Room","H23HU5Room","H23HU6Room","H23HU7Room","H23HU8Room","H23HU9orMoreRoom","H24MedianNumRooms","H25AggregNumRooms","H30TotalHU","H30Det1HU","H30Att1HU","H30Units2","H30Units3or4","H30Units5to9","H30Units10to19","H30Units20to49","H30Units50orMore","H30UnitsMobileHome","H30UnitsBoatRv","H32OccHUcTotal","H32OwnerOccHU3","H32OwnOccHU1Det","H32OwnOccHU1Att","H32OwnOccHU2Unit","H32OwnOccHU3to4Unit","H32OwnOccHU5to9Unit","H32OwnOccHU10to19Unit","H32OwnOccHU20to49Unit","H32OwnOccHU50plusUnit","H32OwnOccHUMobHom","H32OwnOccHUBoatRVOth","H32RentrOccHU3","H32RntrOccHU1Det","H32RntrOccHU1Att","H32RntrOccHU2Unit","H32RntrOccHU3to4Unit","H32RntrOccHU5to9Unit","H32RntrOccHU10to19Unit","H32RntrOccHU20to49Unit","H32RntrOccHU50PlusUnit","H32RntrOccHUMobHom","H32RntrOccHUBoatRVOth","H33TotPopInOccHU","H33PopInOwnOccHU2","H33PopInOOHU1Det","H33PopInOOHU1Att","H33PopInOOHU2unit","H33PopInOOHU3to4Unit","H33PopInOOHU5to9Unit","H33PopInOOHU10to19Unit","H33PopInOOHU20to49Unit","H33PopInOOHU50PlusUnit","H33PopInOOHUMobilHome","H33PopInOOHUOtherUnit","H33PopInRentOccHU2","H33PopInROHU1Det","H33PopInROHU1Att","H33PopInROHU2Unit","H33PopInROHU3to4Unit","H33PopInROHU5to9Unit","H33PopInROHU10to19Unit","H33PopInROHU20to49Unit","H33PopInROHU50PlusUnit","H33PopInROHUMobilHome","H33PopInROHUOtherUnit","H36OccHousingUnitsdTotal","H36OwnerOccHU4","H36OOHUBuilt99to0300","H36OOHUBuilt95to98","H36OOHUBuilt90to94","H36OOHUBuilt80to89","H36OOHUBuilt70to79","H36OOHUBuilt60to69","H36OOHUBuilt50to59","H36OOHUBuilt40to49","H36OOHUBuilt39Earlier","H36RentOccHU4","H36ROHUBuilt99to0300","H36ROHUBuilt95to98","H36ROHUBuilt90to94","H36ROHUBuilt80to89","H36ROHUBuilt70to79","H36ROHUBuilt60to69","H36ROHUBuilt50to59","H36ROHUBuilt40to49","H36ROHUBuilt39Earlier","H40OccupHousUnitse","H40HeatFuelUtilGas","H40HeatFuelBotGas","H40HeatFuelElect","H40HeatFuelOilKero","H40HeatFuelCoal","H40HeatFuelWood","H40HeatFuelSolar","H40HeatFuelOther","H40HeatFuelNone","H41TotalHU","H41HUNoBdrm","H41HU1Bdrm","H41HU2Bdrm","H41HU3Bdrm","H41HU4Bdrm","H41HU5MoreBdrm","H42OccuHousUnitf","H42OwnerOccHU5","H42OOHUNoBdrm","H42OOHU1Bdrm","H42OOHU2Bdrm","H42OOHU3Bdrm","H42OOHU4Bdrm","H42OOHU5PlusBdrm","H42RentOccHU5","H42ROHUNoBdrm","H42ROHU1Bdrm","H42ROHU2Bdrm","H42ROHU3Bdrm","H42ROHU4Bdrm","H42ROHU5PlusBdrm","H48OccupHousUnitsg","H48OwnerOccHU6","H48OOHUwCompltPlumFacil","H48OOHULackCompltPlumFacil","H48RentOccHU6","H48ROHUwCompltPlumFacil","H48ROHULackCompltPlumFacil","H51OccupHousUnitf","H51OwnerOccHU7","H51OOHUwCompleteKitFacil","H51OOHULackCompleteKitFacil","H51RenterOccHU7","H51ROHUwCompleteKitFacil","H51ROHULackCompleteKitFacil"]
[{"$f":"VLOOKUP(DropDownList!$B47,CntyQryCensus!$A$306:$GX$348,A$1)","v":"Rochester"},{"$f":"VLOOKUP(DropDownList!$B47,CntyQryCensus!$A$306:$GX$348,B$1)","v":"0003956"},{"$f":"VLOOKUP(DropDownList!$B47,CntyQryCensus!$A$306:$GX$348,C$1)","v":"65140"},{"$f":"VLOOKUP(DropDownList!$B47,CntyQryCensus!$A$306:$GX$348,D$1)","v":28461},{"$f":"VLOOKUP(DropDownList!$B47,CntyQryCensus!$A$306:$GX$348,E$1)","v":11836},{"$f":"VLOOKUP(DropDownList!$B47,CntyQryCensus!$A$306:$GX$348,F$1)","v":1590},{"$f":"VLOOKUP(DropDownList!$B47,CntyQryCensus!$A$306:$GX$348,G$1)","v":1542},{"$f":"VLOOKUP(DropDownList!$B47,CntyQryCensus!$A$306:$GX$348,H$1)","v":48},{"$f":"VLOOKUP(DropDownList!$B47,CntyQryCensus!$A$306:$GX$348,I$1)","v":11836},{"$f":"VLOOKUP(DropDownList!$B47,CntyQryCensus!$A$306:$GX$348,J$1)","v":11836},{"$f":"VLOOKUP(DropDownList!$B47,CntyQryCensus!$A$306:$GX$348,K$1)","v":9512},{"$f":"VLOOKUP(DropDownList!$B47,CntyQryCensus!$A$306:$GX$348,L$1)","v":9512},{"$f":"VLOOKUP(DropDownList!$B47,CntyQryCensus!$A$306:$GX$348,M$1)","v":0},{"$f":"VLOOKUP(DropDownList!$B47,CntyQryCensus!$A$306:$GX$348,N$1)","v":2324},{"$f":"VLOOKUP(DropDownList!$B47,CntyQryCensus!$A$306:$GX$348,O$1)","v":41},{"$f":"VLOOKUP(DropDownList!$B47,CntyQryCensus!$A$306:$GX$348,P$1)","v":2283},{"$f":"VLOOKUP(DropDownList!$B47,CntyQryCensus!$A$306:$GX$348,Q$1)","v":11434},{"$f":"VLOOKUP(DropDownList!$B47,CntyQryCensus!$A$306:$GX$348,R$1)","v":7637},{"$f":"VLOOKUP(DropDownList!$B47,CntyQryCensus!$A$306:$GX$348,S$1)","v":3797},{"$f":"VLOOKUP(DropDownList!$B47,CntyQryCensus!$A$306:$GX$348,T$1)","v":402},{"$f":"VLOOKUP(DropDownList!$B47,CntyQryCensus!$A$306:$GX$348,U$1)","v":104},{"$f":"VLOOKUP(DropDownList!$B47,CntyQryCensus!$A$306:$GX$348,V$1)","v":25},{"$f":"VLOOKUP(DropDownList!$B47,CntyQryCensus!$A$306:$GX$348,W$1)","v":16},{"$f":"VLOOKUP(DropDownList!$B47,CntyQryCensus!$A$306:$GX$348,X$1)","v":106},{"$f":"VLOOKUP(DropDownList!$B47,CntyQryCensus!$A$306:$GX$348,Y$1)","v":0},{"$f":"VLOOKUP(DropDownList!$B47,CntyQryCensus!$A$306:$GX$348,Z$1)","v":151},{"$f":"VLOOKUP(DropDownList!$B47,CntyQryCensus!$A$306:$GX$348,AA$1)","v":11434},{"$f":"VLOOKUP(DropDownList!$B47,CntyQryCensus!$A$306:$GX$348,AB$1)","v":7637},{"$f":"VLOOKUP(DropDownList!$B47,CntyQryCensus!$A$306:$GX$348,AC$1)","v":111},{"$f":"VLOOKUP(DropDownList!$B47,CntyQryCensus!$A$306:$GX$348,AD$1)","v":985},{"$f":"VLOOKUP(DropDownList!$B47,CntyQryCensus!$A$306:$GX$348,AE$1)","v":1835},{"$f":"VLOOKUP(DropDownList!$B47,CntyQryCensus!$A$306:$GX$348,AF$1)","v":1652},{"$f":"VLOOKUP(DropDownList!$B47,CntyQryCensus!$A$306:$GX$348,AG$1)","v":662},{"$f":"VLOOKUP(DropDownList!$B47,CntyQryCensus!$A$306:$GX$348,AH$1)","v":543},{"$f":"VLOOKUP(DropDownList!$B47,CntyQryCensus!$A$306:$GX$348,AI$1)","v":1089},{"$f":"VLOOKUP(DropDownList!$B47,CntyQryCensus!$A$306:$GX$348,AJ$1)","v":646},{"$f":"VLOOKUP(DropDownList!$B47,CntyQryCensus!$A$306:$GX$348,AK$1)","v":114},{"$f":"VLOOKUP(DropDownList!$B47,CntyQryCensus!$A$306:$GX$348,AL$1)","v":3797},{"$f":"VLOOKUP(DropDownList!$B47,CntyQryCensus!$A$306:$GX$348,AM$1)","v":351},{"$f":"VLOOKUP(DropDownList!$B47,CntyQryCensus!$A$306:$GX$348,AN$1)","v":1068},{"$f":"VLOOKUP(DropDownList!$B47,CntyQryCensus!$A$306:$GX$348,AO$1)","v":935},{"$f":"VLOOKUP(DropDownList!$B47,CntyQryCensus!$A$306:$GX$348,AP$1)","v":516},{"$f":"VLOOKUP(DropDownList!$B47,CntyQryCensus!$A$306:$GX$348,AQ$1)","v":160},{"$f":"VLOOKUP(DropDownList!$B47,CntyQryCensus!$A$306:$GX$348,AR$1)","v":118},{"$f":"VLOOKUP(DropDownList!$B47,CntyQryCensus!$A$306:$GX$348,AS$1)","v":296},{"$f":"VLOOKUP(DropDownList!$B47,CntyQryCensus!$A$306:$GX$348,AT$1)","v":237},{"$f":"VLOOKUP(DropDownList!$B47,CntyQryCensus!$A$306:$GX$348,AU$1)","v":116},{"$f":"VLOOKUP(DropDownList!$B47,CntyQryCensus!$A$306:$GX$348,AV$1)","v":28168},{"$f":"VLOOKUP(DropDownList!$B47,CntyQryCensus!$A$306:$GX$348,AW$1)","v":20039},{"$f":"VLOOKUP(DropDownList!$B47,CntyQryCensus!$A$306:$GX$348,AX$1)","v":8129},{"$f":"VLOOKUP(DropDownList!$B47,CntyQryCensus!$A$306:$GX$348,AY$1)","v":11434},{"$f":"VLOOKUP(DropDownList!$B47,CntyQryCensus!$A$306:$GX$348,AZ$1)","v":7637},{"$f":"VLOOKUP(DropDownList!$B47,CntyQryCensus!$A$306:$GX$348,BA$1)","v":1506},{"$f":"VLOOKUP(DropDownList!$B47,CntyQryCensus!$A$306:$GX$348,BB$1)","v":2834},{"$f":"VLOOKUP(DropDownList!$B47,CntyQryCensus!$A$306:$GX$348,BC$1)","v":1401},{"$f":"VLOOKUP(DropDownList!$B47,CntyQryCensus!$A$306:$GX$348,BD$1)","v":1300},{"$f":"VLOOKUP(DropDownList!$B47,CntyQryCensus!$A$306:$GX$348,BE$1)","v":464},{"$f":"VLOOKUP(DropDownList!$B47,CntyQryCensus!$A$306:$GX$348,BF$1)","v":108},{"$f":"VLOOKUP(DropDownList!$B47,CntyQryCensus!$A$306:$GX$348,BG$1)","v":24},{"$f":"VLOOKUP(DropDownList!$B47,CntyQryCensus!$A$306:$GX$348,BH$1)","v":3797},{"$f":"VLOOKUP(DropDownList!$B47,CntyQryCensus!$A$306:$GX$348,BI$1)","v":1431},{"$f":"VLOOKUP(DropDownList!$B47,CntyQryCensus!$A$306:$GX$348,BJ$1)","v":1166},{"$f":"VLOOKUP(DropDownList!$B47,CntyQryCensus!$A$306:$GX$348,BK$1)","v":556},{"$f":"VLOOKUP(DropDownList!$B47,CntyQryCensus!$A$306:$GX$348,BL$1)","v":370},{"$f":"VLOOKUP(DropDownList!$B47,CntyQryCensus!$A$306:$GX$348,BM$1)","v":185},{"$f":"VLOOKUP(DropDownList!$B47,CntyQryCensus!$A$306:$GX$348,BN$1)","v":89},{"$f":"VLOOKUP(DropDownList!$B47,CntyQryCensus!$A$306:$GX$348,BO$1)","v":0},{"$f":"VLOOKUP(DropDownList!$B47,CntyQryCensus!$A$306:$GX$348,BP$1)","v":2},{"$f":"VLOOKUP(DropDownList!$B47,CntyQryCensus!$A$306:$GX$348,BQ$1)","v":3},{"$f":"VLOOKUP(DropDownList!$B47,CntyQryCensus!$A$306:$GX$348,BR$1)","v":2},{"$f":"VLOOKUP(DropDownList!$B47,CntyQryCensus!$A$306:$GX$348,BS$1)","v":11836},{"$f":"VLOOKUP(DropDownList!$B47,CntyQryCensus!$A$306:$GX$348,BT$1)","v":55},{"$f":"VLOOKUP(DropDownList!$B47,CntyQryCensus!$A$306:$GX$348,BU$1)","v":281},{"$f":"VLOOKUP(DropDownList!$B47,CntyQryCensus!$A$306:$GX$348,BV$1)","v":1391},{"$f":"VLOOKUP(DropDownList!$B47,CntyQryCensus!$A$306:$GX$348,BW$1)","v":2703},{"$f":"VLOOKUP(DropDownList!$B47,CntyQryCensus!$A$306:$GX$348,BX$1)","v":2850},{"$f":"VLOOKUP(DropDownList!$B47,CntyQryCensus!$A$306:$GX$348,BY$1)","v":2026},{"$f":"VLOOKUP(DropDownList!$B47,CntyQryCensus!$A$306:$GX$348,BZ$1)","v":1263},{"$f":"VLOOKUP(DropDownList!$B47,CntyQryCensus!$A$306:$GX$348,CA$1)","v":751},{"$f":"VLOOKUP(DropDownList!$B47,CntyQryCensus!$A$306:$GX$348,CB$1)","v":516},{"$f":"VLOOKUP(DropDownList!$B47,CntyQryCensus!$A$306:$GX$348,CC$1)","v":5},{"$f":"VLOOKUP(DropDownList!$B47,CntyQryCensus!$A$306:$GX$348,CD$1)","v":62017},{"$f":"VLOOKUP(DropDownList!$B47,CntyQryCensus!$A$306:$GX$348,CE$1)","v":11836},{"$f":"VLOOKUP(DropDownList!$B47,CntyQryCensus!$A$306:$GX$348,CF$1)","v":5727},{"$f":"VLOOKUP(DropDownList!$B47,CntyQryCensus!$A$306:$GX$348,CG$1)","v":402},{"$f":"VLOOKUP(DropDownList!$B47,CntyQryCensus!$A$306:$GX$348,CH$1)","v":707},{"$f":"VLOOKUP(DropDownList!$B47,CntyQryCensus!$A$306:$GX$348,CI$1)","v":1133},{"$f":"VLOOKUP(DropDownList!$B47,CntyQryCensus!$A$306:$GX$348,CJ$1)","v":890},{"$f":"VLOOKUP(DropDownList!$B47,CntyQryCensus!$A$306:$GX$348,CK$1)","v":169},{"$f":"VLOOKUP(DropDownList!$B47,CntyQryCensus!$A$306:$GX$348,CL$1)","v":351},{"$f":"VLOOKUP(DropDownList!$B47,CntyQryCensus!$A$306:$GX$348,CM$1)","v":212},{"$f":"VLOOKUP(DropDownList!$B47,CntyQryCensus!$A$306:$GX$348,CN$1)","v":2239},{"$f":"VLOOKUP(DropDownList!$B47,CntyQryCensus!$A$306:$GX$348,CO$1)","v":6},{"$f":"VLOOKUP(DropDownList!$B47,CntyQryCensus!$A$306:$GX$348,CP$1)","v":11434},{"$f":"VLOOKUP(DropDownList!$B47,CntyQryCensus!$A$306:$GX$348,CQ$1)","v":7637},{"$f":"VLOOKUP(DropDownList!$B47,CntyQryCensus!$A$306:$GX$348,CR$1)","v":5154},{"$f":"VLOOKUP(DropDownList!$B47,CntyQryCensus!$A$306:$GX$348,CS$1)","v":277},{"$f":"VLOOKUP(DropDownList!$B47,CntyQryCensus!$A$306:$GX$348,CT$1)","v":164},{"$f":"VLOOKUP(DropDownList!$B47,CntyQryCensus!$A$306:$GX$348,CU$1)","v":91},{"$f":"VLOOKUP(DropDownList!$B47,CntyQryCensus!$A$306:$GX$348,CV$1)","v":65},{"$f":"VLOOKUP(DropDownList!$B47,CntyQryCensus!$A$306:$GX$348,CW$1)","v":0},{"$f":"VLOOKUP(DropDownList!$B47,CntyQryCensus!$A$306:$GX$348,CX$1)","v":9},{"$f":"VLOOKUP(DropDownList!$B47,CntyQryCensus!$A$306:$GX$348,CY$1)","v":0},{"$f":"VLOOKUP(DropDownList!$B47,CntyQryCensus!$A$306:$GX$348,CZ$1)","v":1871},{"$f":"VLOOKUP(DropDownList!$B47,CntyQryCensus!$A$306:$GX$348,DA$1)","v":6},{"$f":"VLOOKUP(DropDownList!$B47,CntyQryCensus!$A$306:$GX$348,DB$1)","v":3797},{"$f":"VLOOKUP(DropDownList!$B47,CntyQryCensus!$A$306:$GX$348,DC$1)","v":467},{"$f":"VLOOKUP(DropDownList!$B47,CntyQryCensus!$A$306:$GX$348,DD$1)","v":125},{"$f":"VLOOKUP(DropDownList!$B47,CntyQryCensus!$A$306:$GX$348,DE$1)","v":527},{"$f":"VLOOKUP(DropDownList!$B47,CntyQryCensus!$A$306:$GX$348,DF$1)","v":963},{"$f":"VLOOKUP(DropDownList!$B47,CntyQryCensus!$A$306:$GX$348,DG$1)","v":750},{"$f":"VLOOKUP(DropDownList!$B47,CntyQryCensus!$A$306:$GX$348,DH$1)","v":165},{"$f":"VLOOKUP(DropDownList!$B47,CntyQryCensus!$A$306:$GX$348,DI$1)","v":342},{"$f":"VLOOKUP(DropDownList!$B47,CntyQryCensus!$A$306:$GX$348,DJ$1)","v":200},{"$f":"VLOOKUP(DropDownList!$B47,CntyQryCensus!$A$306:$GX$348,DK$1)","v":258},{"$f":"VLOOKUP(DropDownList!$B47,CntyQryCensus!$A$306:$GX$348,DL$1)","v":0},{"$f":"VLOOKUP(DropDownList!$B47,CntyQryCensus!$A$306:$GX$348,DM$1)","v":28168},{"$f":"VLOOKUP(DropDownList!$B47,CntyQryCensus!$A$306:$GX$348,DN$1)","v":20039},{"$f":"VLOOKUP(DropDownList!$B47,CntyQryCensus!$A$306:$GX$348,DO$1)","v":14516},{"$f":"VLOOKUP(DropDownList!$B47,CntyQryCensus!$A$306:$GX$348,DP$1)","v":635},{"$f":"VLOOKUP(DropDownList!$B47,CntyQryCensus!$A$306:$GX$348,DQ$1)","v":457},{"$f":"VLOOKUP(DropDownList!$B47,CntyQryCensus!$A$306:$GX$348,DR$1)","v":170},{"$f":"VLOOKUP(DropDownList!$B47,CntyQryCensus!$A$306:$GX$348,DS$1)","v":139},{"$f":"VLOOKUP(DropDownList!$B47,CntyQryCensus!$A$306:$GX$348,DT$1)","v":0},{"$f":"VLOOKUP(DropDownList!$B47,CntyQryCensus!$A$306:$GX$348,DU$1)","v":7},{"$f":"VLOOKUP(DropDownList!$B47,CntyQryCensus!$A$306:$GX$348,DV$1)","v":0},{"$f":"VLOOKUP(DropDownList!$B47,CntyQryCensus!$A$306:$GX$348,DW$1)","v":4105},{"$f":"VLOOKUP(DropDownList!$B47,CntyQryCensus!$A$306:$GX$348,DX$1)","v":10},{"$f":"VLOOKUP(DropDownList!$B47,CntyQryCensus!$A$306:$GX$348,DY$1)","v":8129},{"$f":"VLOOKUP(DropDownList!$B47,CntyQryCensus!$A$306:$GX$348,DZ$1)","v":1271},{"$f":"VLOOKUP(DropDownList!$B47,CntyQryCensus!$A$306:$GX$348,EA$1)","v":236},{"$f":"VLOOKUP(DropDownList!$B47,CntyQryCensus!$A$306:$GX$348,EB$1)","v":1316},{"$f":"VLOOKUP(DropDownList!$B47,CntyQryCensus!$A$306:$GX$348,EC$1)","v":2168},{"$f":"VLOOKUP(DropDownList!$B47,CntyQryCensus!$A$306:$GX$348,ED$1)","v":1459},{"$f":"VLOOKUP(DropDownList!$B47,CntyQryCensus!$A$306:$GX$348,EE$1)","v":277},{"$f":"VLOOKUP(DropDownList!$B47,CntyQryCensus!$A$306:$GX$348,EF$1)","v":619},{"$f":"VLOOKUP(DropDownList!$B47,CntyQryCensus!$A$306:$GX$348,EG$1)","v":229},{"$f":"VLOOKUP(DropDownList!$B47,CntyQryCensus!$A$306:$GX$348,EH$1)","v":554},{"$f":"VLOOKUP(DropDownList!$B47,CntyQryCensus!$A$306:$GX$348,EI$1)","v":0},{"$f":"VLOOKUP(DropDownList!$B47,CntyQryCensus!$A$306:$GX$348,EJ$1)","v":11434},{"$f":"VLOOKUP(DropDownList!$B47,CntyQryCensus!$A$306:$GX$348,EK$1)","v":7637},{"$f":"VLOOKUP(DropDownList!$B47,CntyQryCensus!$A$306:$GX$348,EL$1)","v":151},{"$f":"VLOOKUP(DropDownList!$B47,CntyQryCensus!$A$306:$GX$348,EM$1)","v":469},{"$f":"VLOOKUP(DropDownList!$B47,CntyQryCensus!$A$306:$GX$348,EN$1)","v":573},{"$f":"VLOOKUP(DropDownList!$B47,CntyQryCensus!$A$306:$GX$348,EO$1)","v":1841},{"$f":"VLOOKUP(DropDownList!$B47,CntyQryCensus!$A$306:$GX$348,EP$1)","v":1227},{"$f":"VLOOKUP(DropDownList!$B47,CntyQryCensus!$A$306:$GX$348,EQ$1)","v":688},{"$f":"VLOOKUP(DropDownList!$B47,CntyQryCensus!$A$306:$GX$348,ER$1)","v":709},{"$f":"VLOOKUP(DropDownList!$B47,CntyQryCensus!$A$306:$GX$348,ES$1)","v":473},{"$f":"VLOOKUP(DropDownList!$B47,CntyQryCensus!$A$306:$GX$348,ET$1)","v":1506},{"$f":"VLOOKUP(DropDownList!$B47,CntyQryCensus!$A$306:$GX$348,EU$1)","v":3797},{"$f":"VLOOKUP(DropDownList!$B47,CntyQryCensus!$A$306:$GX$348,EV$1)","v":82},{"$f":"VLOOKUP(DropDownList!$B47,CntyQryCensus!$A$306:$GX$348,EW$1)","v":168},{"$f":"VLOOKUP(DropDownList!$B47,CntyQryCensus!$A$306:$GX$348,EX$1)","v":147},{"$f":"VLOOKUP(DropDownList!$B47,CntyQryCensus!$A$306:$GX$348,EY$1)","v":657},{"$f":"VLOOKUP(DropDownList!$B47,CntyQryCensus!$A$306:$GX$348,EZ$1)","v":627},{"$f":"VLOOKUP(DropDownList!$B47,CntyQryCensus!$A$306:$GX$348,FA$1)","v":237},{"$f":"VLOOKUP(DropDownList!$B47,CntyQryCensus!$A$306:$GX$348,FB$1)","v":333},{"$f":"VLOOKUP(DropDownList!$B47,CntyQryCensus!$A$306:$GX$348,FC$1)","v":246},{"$f":"VLOOKUP(DropDownList!$B47,CntyQryCensus!$A$306:$GX$348,FD$1)","v":1300},{"$f":"VLOOKUP(DropDownList!$B47,CntyQryCensus!$A$306:$GX$348,FE$1)","v":11434},{"$f":"VLOOKUP(DropDownList!$B47,CntyQryCensus!$A$306:$GX$348,FF$1)","v":2273},{"$f":"VLOOKUP(DropDownList!$B47,CntyQryCensus!$A$306:$GX$348,FG$1)","v":1063},{"$f":"VLOOKUP(DropDownList!$B47,CntyQryCensus!$A$306:$GX$348,FH$1)","v":739},{"$f":"VLOOKUP(DropDownList!$B47,CntyQryCensus!$A$306:$GX$348,FI$1)","v":7069},{"$f":"VLOOKUP(DropDownList!$B47,CntyQryCensus!$A$306:$GX$348,FJ$1)","v":7},{"$f":"VLOOKUP(DropDownList!$B47,CntyQryCensus!$A$306:$GX$348,FK$1)","v":188},{"$f":"VLOOKUP(DropDownList!$B47,CntyQryCensus!$A$306:$GX$348,FL$1)","v":0},{"$f":"VLOOKUP(DropDownList!$B47,CntyQryCensus!$A$306:$GX$348,FM$1)","v":54},{"$f":"VLOOKUP(DropDownList!$B47,CntyQryCensus!$A$306:$GX$348,FN$1)","v":41},{"$f":"VLOOKUP(DropDownList!$B47,CntyQryCensus!$A$306:$GX$348,FO$1)","v":11836},{"$f":"VLOOKUP(DropDownList!$B47,CntyQryCensus!$A$306:$GX$348,FP$1)","v":103},{"$f":"VLOOKUP(DropDownList!$B47,CntyQryCensus!$A$306:$GX$348,FQ$1)","v":1671},{"$f":"VLOOKUP(DropDownList!$B47,CntyQryCensus!$A$306:$GX$348,FR$1)","v":4384},{"$f":"VLOOKUP(DropDownList!$B47,CntyQryCensus!$A$306:$GX$348,FS$1)","v":4227},{"$f":"VLOOKUP(DropDownList!$B47,CntyQryCensus!$A$306:$GX$348,FT$1)","v":1281},{"$f":"VLOOKUP(DropDownList!$B47,CntyQryCensus!$A$306:$GX$348,FU$1)","v":170},{"$f":"VLOOKUP(DropDownList!$B47,CntyQryCensus!$A$306:$GX$348,FV$1)","v":11434},{"$f":"VLOOKUP(DropDownList!$B47,CntyQryCensus!$A$306:$GX$348,FW$1)","v":7637},{"$f":"VLOOKUP(DropDownList!$B47,CntyQryCensus!$A$306:$GX$348,FX$1)","v":0},{"$f":"VLOOKUP(DropDownList!$B47,CntyQryCensus!$A$306:$GX$348,FY$1)","v":252},{"$f":"VLOOKUP(DropDownList!$B47,CntyQryCensus!$A$306:$GX$348,FZ$1)","v":2561},{"$f":"VLOOKUP(DropDownList!$B47,CntyQryCensus!$A$306:$GX$348,GA$1)","v":3568},{"$f":"VLOOKUP(DropDownList!$B47,CntyQryCensus!$A$306:$GX$348,GB$1)","v":1111},{"$f":"VLOOKUP(DropDownList!$B47,CntyQryCensus!$A$306:$GX$348,GC$1)","v":145},{"$f":"VLOOKUP(DropDownList!$B47,CntyQryCensus!$A$306:$GX$348,GD$1)","v":3797},{"$f":"VLOOKUP(DropDownList!$B47,CntyQryCensus!$A$306:$GX$348,GE$1)","v":95},{"$f":"VLOOKUP(DropDownList!$B47,CntyQryCensus!$A$306:$GX$348,GF$1)","v":1315},{"$f":"VLOOKUP(DropDownList!$B47,CntyQryCensus!$A$306:$GX$348,GG$1)","v":1609},{"$f":"VLOOKUP(DropDownList!$B47,CntyQryCensus!$A$306:$GX$348,GH$1)","v":589},{"$f":"VLOOKUP(DropDownList!$B47,CntyQryCensus!$A$306:$GX$348,GI$1)","v":164},{"$f":"VLOOKUP(DropDownList!$B47,CntyQryCensus!$A$306:$GX$348,GJ$1)","v":25},{"$f":"VLOOKUP(DropDownList!$B47,CntyQryCensus!$A$306:$GX$348,GK$1)","v":11434},{"$f":"VLOOKUP(DropDownList!$B47,CntyQryCensus!$A$306:$GX$348,GL$1)","v":7637},{"$f":"VLOOKUP(DropDownList!$B47,CntyQryCensus!$A$306:$GX$348,GM$1)","v":7572},{"$f":"VLOOKUP(DropDownList!$B47,CntyQryCensus!$A$306:$GX$348,GN$1)","v":65},{"$f":"VLOOKUP(DropDownList!$B47,CntyQryCensus!$A$306:$GX$348,GO$1)","v":3797},{"$f":"VLOOKUP(DropDownList!$B47,CntyQryCensus!$A$306:$GX$348,GP$1)","v":3776},{"$f":"VLOOKUP(DropDownList!$B47,CntyQryCensus!$A$306:$GX$348,GQ$1)","v":21},{"$f":"VLOOKUP(DropDownList!$B47,CntyQryCensus!$A$306:$GX$348,GR$1)","v":11434},{"$f":"VLOOKUP(DropDownList!$B47,CntyQryCensus!$A$306:$GX$348,GS$1)","v":7637},{"$f":"VLOOKUP(DropDownList!$B47,CntyQryCensus!$A$306:$GX$348,GT$1)","v":7623},{"$f":"VLOOKUP(DropDownList!$B47,CntyQryCensus!$A$306:$GX$348,GU$1)","v":14},{"$f":"VLOOKUP(DropDownList!$B47,CntyQryCensus!$A$306:$GX$348,GV$1)","v":3797},{"$f":"VLOOKUP(DropDownList!$B47,CntyQryCensus!$A$306:$GX$348,GW$1)","v":3779},{"$f":"VLOOKUP(DropDownList!$B47,CntyQryCensus!$A$306:$GX$348,GX$1)","v":18}]
[]
[]
["Census 2000 SummaryFile3 Sample Data  -  SF3TownQry8HousingCostA"]
["NAME","LOGRECNO","COUNTY","TotalPop","H62RntrOccHU","H62RntrOccHUwRent","H62ROHUGRent<100","H62ROHUGRent100to149","H62ROHUGRent150to199","H62ROHUGRent200to249","H62ROHUGRent250to299","H62ROHUGRent300to349","H62ROHUGRent350to399","H62ROHUGRent400to449","H62ROHUGRent450to499","H62ROHUGRent500to549","H62ROHUGRent550to599","H62ROHUGRent600to649","H62ROHUGRent650to699","H62ROHUGRent700to749","H62ROHUGRent750to799","H62ROHUGRent800to899","H62ROHUGRent900to999","H62ROHUGRent1000to1249","H62ROHUGRent1250to1499","H62ROHUGRent1500to1999","H62ROHUGRent2000>","H62ROHUNoGRent","H63MedianGrossRnt","H69RenterOccHsU","H69GRnt<10PctHHInc","H69GRnt10to15PctHHInc","H69GRnt15to20PctHHInc","H69GRnt20to25PctHHInc","H69GRnt25to30PctHHInc","H69GRnt30to35PctHHInc","H69GRnt35to40PctHHInc","H69GRnt40to50PctHHInc","H69GRnt>50PctHHInc","H69GRntPctNotcomputed","H73RenterOccHU","H73ROHUHhInc<10k","H73ROHUHhInc<10kRnt<20pct","H73ROHUHhInc<10kRnt20to25pct","H73ROHUHhInc<10kRnt25to30pct","H73ROHUHhInc<10kRnt30to35pct","H73ROHUHhInc<10kRnt>35pct","H73ROHUHhInc<10kPctNotComput","H73ROHUHhInc10to20k","H73ROHUHhInc10to20kRnt<20pct","H73ROHUHhInc10to20kRnt20to25pct","H73ROHUHhInc10to20kRnt25to30pct","H73ROHUHhInc10to20kRnt30to35pct","H73ROHUHhInc10to20kRnt>35pct","H73ROHUHhInc10to20kRntPctNC","H73ROHUHhInc20to35k","H73ROHUHhInc20to35kRnt<20pct","H73ROHUHhInc20to35kRnt20to25pct","H73ROHUHhInc20to35kRnt25to30pct","H73ROHUHhInc20to35kRnt30to35pct","H73ROHUHhInc20to35kRnt>35pct","H73ROHUHhInc20to35kRntPctNC","H73ROHUHhInc35to40k","H73ROHUHhInc35to40kRnt<20pct","H73ROHUHhInc35to40kRnt20to25pct","H73ROHUHhInc35to40kRnt25to30pct","H73ROHUHhInc35to40kRnt30to35pct","H73ROHUHhInc35to40kRnt>35pct","H73ROHUHhInc35to40kRntPctNC","H73ROHUHhInc50to75k","H73ROHUHhInc50to75kRnt<20pct","H73ROHUHhInc50to75kRnt20to25pct","H73ROHUHhInc50to75kRnt25to30pct","H73ROHUHhInc50to75kRnt30to35pct","H73ROHUHhInc50to75kRnt>35pct","H73ROHUHhInc50to75kRntPctNC","H73ROHUHhInc75to100k","H73ROHUHhInc75to100kRnt<20pct","H73ROHUHhInc75to100kRnt20to25pct","H73ROHUHhInc75to100kRnt25to30pct","H73ROHUHhInc75to100kRnt30to35pct","H73ROHUHhInc75to100kRnt>35pct","H73ROHUHhInc75to100kRntPctNC","H73ROHUHhInc>100k","H73ROHUHhInc>100kRnt<20pct","H73ROHUHhInc>100kRnt20to25pct","H73ROHUHhInc>100kRnt25to30pct","H73ROHUHhInc>100kRnt30to35pct","H73ROHUHhInc>100kRnt>35pct","H73ROHUHhInc>100kRntPctNC","H73ROHUHhInc>100kRntPctNC"]
[{"$f":"VLOOKUP(DropDownList!$B$47,CntyQryCensus!$A$357:$CM$399,A$1)","v":"Rochester"},{"$f":"VLOOKUP(DropDownList!$B$47,CntyQryCensus!$A$357:$CM$399,B$1)","v":"0003956"},{"$f":"VLOOKUP(DropDownList!$B$47,CntyQryCensus!$A$357:$CM$399,C$1)","v":"65140"},{"$f":"VLOOKUP(DropDownList!$B$47,CntyQryCensus!$A$357:$CM$399,D$1)","v":28461},{"$f":"VLOOKUP(DropDownList!$B$47,CntyQryCensus!$A$357:$CM$399,E$1)","v":3777},{"$f":"VLOOKUP(DropDownList!$B$47,CntyQryCensus!$A$357:$CM$399,F$1)","v":3666},{"$f":"VLOOKUP(DropDownList!$B$47,CntyQryCensus!$A$357:$CM$399,G$1)","v":44},{"$f":"VLOOKUP(DropDownList!$B$47,CntyQryCensus!$A$357:$CM$399,H$1)","v":108},{"$f":"VLOOKUP(DropDownList!$B$47,CntyQryCensus!$A$357:$CM$399,I$1)","v":65},{"$f":"VLOOKUP(DropDownList!$B$47,CntyQryCensus!$A$357:$CM$399,J$1)","v":101},{"$f":"VLOOKUP(DropDownList!$B$47,CntyQryCensus!$A$357:$CM$399,K$1)","v":103},{"$f":"VLOOKUP(DropDownList!$B$47,CntyQryCensus!$A$357:$CM$399,L$1)","v":112},{"$f":"VLOOKUP(DropDownList!$B$47,CntyQryCensus!$A$357:$CM$399,M$1)","v":170},{"$f":"VLOOKUP(DropDownList!$B$47,CntyQryCensus!$A$357:$CM$399,N$1)","v":164},{"$f":"VLOOKUP(DropDownList!$B$47,CntyQryCensus!$A$357:$CM$399,O$1)","v":280},{"$f":"VLOOKUP(DropDownList!$B$47,CntyQryCensus!$A$357:$CM$399,P$1)","v":340},{"$f":"VLOOKUP(DropDownList!$B$47,CntyQryCensus!$A$357:$CM$399,Q$1)","v":340},{"$f":"VLOOKUP(DropDownList!$B$47,CntyQryCensus!$A$357:$CM$399,R$1)","v":358},{"$f":"VLOOKUP(DropDownList!$B$47,CntyQryCensus!$A$357:$CM$399,S$1)","v":450},{"$f":"VLOOKUP(DropDownList!$B$47,CntyQryCensus!$A$357:$CM$399,T$1)","v":255},{"$f":"VLOOKUP(DropDownList!$B$47,CntyQryCensus!$A$357:$CM$399,U$1)","v":238},{"$f":"VLOOKUP(DropDownList!$B$47,CntyQryCensus!$A$357:$CM$399,V$1)","v":273},{"$f":"VLOOKUP(DropDownList!$B$47,CntyQryCensus!$A$357:$CM$399,W$1)","v":84},{"$f":"VLOOKUP(DropDownList!$B$47,CntyQryCensus!$A$357:$CM$399,X$1)","v":137},{"$f":"VLOOKUP(DropDownList!$B$47,CntyQryCensus!$A$357:$CM$399,Y$1)","v":37},{"$f":"VLOOKUP(DropDownList!$B$47,CntyQryCensus!$A$357:$CM$399,Z$1)","v":0},{"$f":"VLOOKUP(DropDownList!$B$47,CntyQryCensus!$A$357:$CM$399,AA$1)","v":7},{"$f":"VLOOKUP(DropDownList!$B$47,CntyQryCensus!$A$357:$CM$399,AB$1)","v":111},{"$f":"VLOOKUP(DropDownList!$B$47,CntyQryCensus!$A$357:$CM$399,AC$1)","v":601},{"$f":"VLOOKUP(DropDownList!$B$47,CntyQryCensus!$A$357:$CM$399,AD$1)","v":3777},{"$f":"VLOOKUP(DropDownList!$B$47,CntyQryCensus!$A$357:$CM$399,AE$1)","v":212},{"$f":"VLOOKUP(DropDownList!$B$47,CntyQryCensus!$A$357:$CM$399,AF$1)","v":448},{"$f":"VLOOKUP(DropDownList!$B$47,CntyQryCensus!$A$357:$CM$399,AG$1)","v":594},{"$f":"VLOOKUP(DropDownList!$B$47,CntyQryCensus!$A$357:$CM$399,AH$1)","v":464},{"$f":"VLOOKUP(DropDownList!$B$47,CntyQryCensus!$A$357:$CM$399,AI$1)","v":519},{"$f":"VLOOKUP(DropDownList!$B$47,CntyQryCensus!$A$357:$CM$399,AJ$1)","v":267},{"$f":"VLOOKUP(DropDownList!$B$47,CntyQryCensus!$A$357:$CM$399,AK$1)","v":209},{"$f":"VLOOKUP(DropDownList!$B$47,CntyQryCensus!$A$357:$CM$399,AL$1)","v":232},{"$f":"VLOOKUP(DropDownList!$B$47,CntyQryCensus!$A$357:$CM$399,AM$1)","v":682},{"$f":"VLOOKUP(DropDownList!$B$47,CntyQryCensus!$A$357:$CM$399,AN$1)","v":150},{"$f":"VLOOKUP(DropDownList!$B$47,CntyQryCensus!$A$357:$CM$399,AO$1)","v":3777},{"$f":"VLOOKUP(DropDownList!$B$47,CntyQryCensus!$A$357:$CM$399,AP$1)","v":575},{"$f":"VLOOKUP(DropDownList!$B$47,CntyQryCensus!$A$357:$CM$399,AQ$1)","v":25},{"$f":"VLOOKUP(DropDownList!$B$47,CntyQryCensus!$A$357:$CM$399,AR$1)","v":56},{"$f":"VLOOKUP(DropDownList!$B$47,CntyQryCensus!$A$357:$CM$399,AS$1)","v":37},{"$f":"VLOOKUP(DropDownList!$B$47,CntyQryCensus!$A$357:$CM$399,AT$1)","v":0},{"$f":"VLOOKUP(DropDownList!$B$47,CntyQryCensus!$A$357:$CM$399,AU$1)","v":423},{"$f":"VLOOKUP(DropDownList!$B$47,CntyQryCensus!$A$357:$CM$399,AV$1)","v":34},{"$f":"VLOOKUP(DropDownList!$B$47,CntyQryCensus!$A$357:$CM$399,AW$1)","v":740},{"$f":"VLOOKUP(DropDownList!$B$47,CntyQryCensus!$A$357:$CM$399,AX$1)","v":83},{"$f":"VLOOKUP(DropDownList!$B$47,CntyQryCensus!$A$357:$CM$399,AY$1)","v":46},{"$f":"VLOOKUP(DropDownList!$B$47,CntyQryCensus!$A$357:$CM$399,AZ$1)","v":79},{"$f":"VLOOKUP(DropDownList!$B$47,CntyQryCensus!$A$357:$CM$399,BA$1)","v":57},{"$f":"VLOOKUP(DropDownList!$B$47,CntyQryCensus!$A$357:$CM$399,BB$1)","v":459},{"$f":"VLOOKUP(DropDownList!$B$47,CntyQryCensus!$A$357:$CM$399,BC$1)","v":16},{"$f":"VLOOKUP(DropDownList!$B$47,CntyQryCensus!$A$357:$CM$399,BD$1)","v":1016},{"$f":"VLOOKUP(DropDownList!$B$47,CntyQryCensus!$A$357:$CM$399,BE$1)","v":180},{"$f":"VLOOKUP(DropDownList!$B$47,CntyQryCensus!$A$357:$CM$399,BF$1)","v":150},{"$f":"VLOOKUP(DropDownList!$B$47,CntyQryCensus!$A$357:$CM$399,BG$1)","v":259},{"$f":"VLOOKUP(DropDownList!$B$47,CntyQryCensus!$A$357:$CM$399,BH$1)","v":166},{"$f":"VLOOKUP(DropDownList!$B$47,CntyQryCensus!$A$357:$CM$399,BI$1)","v":212},{"$f":"VLOOKUP(DropDownList!$B$47,CntyQryCensus!$A$357:$CM$399,BJ$1)","v":49},{"$f":"VLOOKUP(DropDownList!$B$47,CntyQryCensus!$A$357:$CM$399,BK$1)","v":751},{"$f":"VLOOKUP(DropDownList!$B$47,CntyQryCensus!$A$357:$CM$399,BL$1)","v":339},{"$f":"VLOOKUP(DropDownList!$B$47,CntyQryCensus!$A$357:$CM$399,BM$1)","v":188},{"$f":"VLOOKUP(DropDownList!$B$47,CntyQryCensus!$A$357:$CM$399,BN$1)","v":136},{"$f":"VLOOKUP(DropDownList!$B$47,CntyQryCensus!$A$357:$CM$399,BO$1)","v":44},{"$f":"VLOOKUP(DropDownList!$B$47,CntyQryCensus!$A$357:$CM$399,BP$1)","v":29},{"$f":"VLOOKUP(DropDownList!$B$47,CntyQryCensus!$A$357:$CM$399,BQ$1)","v":15},{"$f":"VLOOKUP(DropDownList!$B$47,CntyQryCensus!$A$357:$CM$399,BR$1)","v":486},{"$f":"VLOOKUP(DropDownList!$B$47,CntyQryCensus!$A$357:$CM$399,BS$1)","v":439},{"$f":"VLOOKUP(DropDownList!$B$47,CntyQryCensus!$A$357:$CM$399,BT$1)","v":16},{"$f":"VLOOKUP(DropDownList!$B$47,CntyQryCensus!$A$357:$CM$399,BU$1)","v":8},{"$f":"VLOOKUP(DropDownList!$B$47,CntyQryCensus!$A$357:$CM$399,BV$1)","v":0},{"$f":"VLOOKUP(DropDownList!$B$47,CntyQryCensus!$A$357:$CM$399,BW$1)","v":0},{"$f":"VLOOKUP(DropDownList!$B$47,CntyQryCensus!$A$357:$CM$399,BX$1)","v":23},{"$f":"VLOOKUP(DropDownList!$B$47,CntyQryCensus!$A$357:$CM$399,BY$1)","v":135},{"$f":"VLOOKUP(DropDownList!$B$47,CntyQryCensus!$A$357:$CM$399,BZ$1)","v":119},{"$f":"VLOOKUP(DropDownList!$B$47,CntyQryCensus!$A$357:$CM$399,CA$1)","v":8},{"$f":"VLOOKUP(DropDownList!$B$47,CntyQryCensus!$A$357:$CM$399,CB$1)","v":0},{"$f":"VLOOKUP(DropDownList!$B$47,CntyQryCensus!$A$357:$CM$399,CC$1)","v":0},{"$f":"VLOOKUP(DropDownList!$B$47,CntyQryCensus!$A$357:$CM$399,CD$1)","v":0},{"$f":"VLOOKUP(DropDownList!$B$47,CntyQryCensus!$A$357:$CM$399,CE$1)","v":8},{"$f":"VLOOKUP(DropDownList!$B$47,CntyQryCensus!$A$357:$CM$399,CF$1)","v":74},{"$f":"VLOOKUP(DropDownList!$B$47,CntyQryCensus!$A$357:$CM$399,CG$1)","v":69},{"$f":"VLOOKUP(DropDownList!$B$47,CntyQryCensus!$A$357:$CM$399,CH$1)","v":0},{"$f":"VLOOKUP(DropDownList!$B$47,CntyQryCensus!$A$357:$CM$399,CI$1)","v":0},{"$f":"VLOOKUP(DropDownList!$B$47,CntyQryCensus!$A$357:$CM$399,CJ$1)","v":0},{"$f":"VLOOKUP(DropDownList!$B$47,CntyQryCensus!$A$357:$CM$399,CK$1)","v":0},{"$f":"VLOOKUP(DropDownList!$B$47,CntyQryCensus!$A$357:$CM$399,CL$1)","v":5},{"$f":"VLOOKUP(DropDownList!$B$47,CntyQryCensus!$A$357:$CM$399,CM$1)","v":0}]
[]
[]
["Census 2000 SummaryFile3 Sample Data  -  SF3TownQry8HousingCostB"]
["NAME","LOGRECNO","COUNTY","TotalPop","H74SpecOwnerOccHU","H74OOHU<10k","H74OOHU10to15k","H74OOHU15to20k","H74OOHU20to25k","H74OOHU25to30k","H74OOHU30to35k","H74OOHU35to40k","H74OOHU40to50k","H74OOHU50to60k","H74OOHU60to70k","H74OOHU70to80k","H74OOHU80to90k","H74OOHU90to100k","H74OOHU100to125k","H74OOHU125to150k","H74OOHU150to175k","H74OOHU175to200k","H74OOHU200to250k","H74OOHU250to300k","H74OOHU300to400k","H74OOHU400to500k","H74OOHU500to750k","H74OOHU750to1000k","H74OOHU1000kmore","H76OOHUMedianVal","H84OwnerOccHU","H84AllOOHU<10k","H84AllOOHU10to15k","H84AllOOHU15to20k","H84AllOOHU20to25k","H84AllOOHU25to30k","H84AllOOHU30to35k","H84AllOOHU35to40k","H84AllOOHU40to50k","H84AllOOHU50to60k","H84AllOOHU60to70k","H84AllOOHU70to80k","H84AllOOHU80to90k","H84AllOOHU90to100k","H84AllOOHU100to125k","H84AllOOHU125to150k","H84AllOOHU150to175k","H84AllOOHU175to200k","H84AllOOHU200to250k","H84AllOOHU250to300k","H84AllOOHU300to400k","H84AllOOHU400to500k","H84AllOOHU500to750k","H84AllOOHU750to1000k","H84AllOOHU1000kmore","H85OOHUMedVal","H90SOOHU","H90HUwMorgt","H90HUwMtgHC<200","H90HUwMtgHC200to300","H90HUwMtgHC300to400","H90HUwMtgHC400to500","H90HUwMtgHC500to600","H90HUwMtgHC600to700","H90HUwMtgHC700to800","H90HUwMtgHC800to900","H90HUwMtgHC900to1000","H90HUwMtgHC1000to1250","H90HUwMtgHC1250to1500","H90HUwMtgHC1500to2000","H90HUwMtgHC2000to2500","H90HUwMtgHC2500to3000","H90HUwMtgHC3000orMore","H90HUwOutMorgt","H90HUwOutMtgHC<100","H90HUwOutMtgHC100to150","H90HUwOutMtgHC150to200","H90HUwOutMtgHC200to250","H90HUwOutMtgHC250to300","H90HUwOutMtgHC300to350","H90HUwOutMtgHC350to400","H90HUwOutMtgHC400to500","H90HUwOutMtgHC500to600","H90HUwOutMtgHC600to700","H90HUwOutMtgHC700to800","H90HUwOutMtgHC800to900","H90HUwOutMtgHC900to1000","H90HUwOutMtgHC1000orMore","H91MedianOCHUwMtg","H91MedianOCHUwOutMtg","H94SpecOOHU","H94HUwMortg","H94HUwMtgHC<10pct","H94HUwMtgHC10to15pct","H94HUwMtgHC15to20pct","H94HUwMtgHC20to25pct","H94HUwMtgHC25to30pct","H94HUwMtgHC30to35pct","H94HUwMtgHC35to40pct","H94HUwMtgHC40to50pct","H94HUwMtgHC50pctOrMore","H94HUwMtgHCpctNotComp","H94HUWOutMortg","H94HUWOutMortgHC<10pct","H94HUWOutMortgHC10to15pct","H94HUWOutMortgHC15to20pct","H94HUWOutMortgHC20to25pct","H94HUWOutMortgHC25to30pct","H94HUWOutMortgHC30to35pct","H94HUWOutMortgHC35to40pct","H94HUWOutMortgHC40to50pct","H94HUWOutMortgHC50pctOrMore","H94HUWOutMortgHCpctNotComp","H97SpecifOwnOccHU","H97SOOHUInc<10k","H97SOOHUInc<10kHC<20pct","H97SOOHUInc<10kHC20to25pct","H97SOOHUInc<10kHC25to30pct","H97SOOHUInc<10kHC30to35pct","H97SOOHUInc<10kHC>35pct","H97SOOHUInc<10kHCpctNotComput","H97SOOHUInc10to20k","H97SOOHUInc10to20kHC<20pct","H97SOOHUInc10to20kHC20to25pct","H97SOOHUInc10to20kHC25to30pct","H97SOOHUInc10to20kHC30to35pct","H97SOOHUInc10to20kHC>35pct","H97SOOHUInc10to20kHCpctNotComput","H97SOOHUInc20to35k","H97SOOHUInc20to35kRC<20pct","H97SOOHUInc20to35kRC20to25pct","H97SOOHUInc20to35kRC25to30pct","H97SOOHUInc20to35kRC30to35pct","H97SOOHUInc20to35kRC>35pct","H97SOOHUInc20to35kRCpctNotComput","H97SOOHUInc35to50k","H97SOOHUInc35to50kRC<20pct","H97SOOHUInc35to50kRC20to25pct","H97SOOHUInc35to50kRC25to30pct","H97SOOHUInc35to50kRC30to35pct","H97SOOHUInc35to50kRC>35pct","H97SOOHUInc35to50kRCpctNotCompute","H97SOOHUInc50to75k","H97SOOHUInc50to75kRC<20pct","H97SOOHUInc50to75kRC20to25pct","H97SOOHUInc50to75kRC25to30pct","H97SOOHUInc50to75kRC30to35pct","H97SOOHUInc50to75kRC>35pct","H97SOOHUInc50to75kRCpctNotComput","H97SOOHUInc75to100k","H97SOOHUInc75to100kRC<20pct","H97SOOHUInc75to100kRC20to25pct","H97SOOHUInc75to100kRC25to30pct","H97SOOHUInc75to100kRC30to35pct","H97SOOHUInc75to100kRC>35pct","H97SOOHUInc75to100kRCpctNotCompute","H97SOOHUInc100to150k","H97SOOHUInc100to150kRC<20pct","H97SOOHUInc100to150kRC20to25pct","H97SOOHUInc100to150kRC25to30pct","H97SOOHUInc100to150kRC30to35pct","H97SOOHUInc100to150kRC>35pct","H97SOOHUInc100to150kRCpctNotCompute","H97SOOHUInc>150k","H97SOOHUInc>150kRC<20pct","H97SOOHUInc>150kRC20to25pct","H97SOOHUInc>150kRC25to30pct","H97SOOHUInc>150kRC30to35pct","H97SOOHUInc>150kRC>35pct","H97SOOHUInc>150kRCpctNotCompute"]
[{"$f":"VLOOKUP(DropDownList!$B$47,CntyQryCensus!$A$408:$FN$450,A$1)","v":"Rochester"},{"$f":"VLOOKUP(DropDownList!$B$47,CntyQryCensus!$A$408:$FN$450,B$1)","v":"0003956"},{"$f":"VLOOKUP(DropDownList!$B$47,CntyQryCensus!$A$408:$FN$450,C$1)","v":"65140"},{"$f":"VLOOKUP(DropDownList!$B$47,CntyQryCensus!$A$408:$FN$450,D$1)","v":28461},{"$f":"VLOOKUP(DropDownList!$B$47,CntyQryCensus!$A$408:$FN$450,E$1)","v":4928},{"$f":"VLOOKUP(DropDownList!$B$47,CntyQryCensus!$A$408:$FN$450,F$1)","v":0},{"$f":"VLOOKUP(DropDownList!$B$47,CntyQryCensus!$A$408:$FN$450,G$1)","v":6},{"$f":"VLOOKUP(DropDownList!$B$47,CntyQryCensus!$A$408:$FN$450,H$1)","v":0},{"$f":"VLOOKUP(DropDownList!$B$47,CntyQryCensus!$A$408:$FN$450,I$1)","v":8},{"$f":"VLOOKUP(DropDownList!$B$47,CntyQryCensus!$A$408:$FN$450,J$1)","v":7},{"$f":"VLOOKUP(DropDownList!$B$47,CntyQryCensus!$A$408:$FN$450,K$1)","v":14},{"$f":"VLOOKUP(DropDownList!$B$47,CntyQryCensus!$A$408:$FN$450,L$1)","v":0},{"$f":"VLOOKUP(DropDownList!$B$47,CntyQryCensus!$A$408:$FN$450,M$1)","v":33},{"$f":"VLOOKUP(DropDownList!$B$47,CntyQryCensus!$A$408:$FN$450,N$1)","v":107},{"$f":"VLOOKUP(DropDownList!$B$47,CntyQryCensus!$A$408:$FN$450,O$1)","v":357},{"$f":"VLOOKUP(DropDownList!$B$47,CntyQryCensus!$A$408:$FN$450,P$1)","v":487},{"$f":"VLOOKUP(DropDownList!$B$47,CntyQryCensus!$A$408:$FN$450,Q$1)","v":765},{"$f":"VLOOKUP(DropDownList!$B$47,CntyQryCensus!$A$408:$FN$450,R$1)","v":726},{"$f":"VLOOKUP(DropDownList!$B$47,CntyQryCensus!$A$408:$FN$450,S$1)","v":1087},{"$f":"VLOOKUP(DropDownList!$B$47,CntyQryCensus!$A$408:$FN$450,T$1)","v":693},{"$f":"VLOOKUP(DropDownList!$B$47,CntyQryCensus!$A$408:$FN$450,U$1)","v":329},{"$f":"VLOOKUP(DropDownList!$B$47,CntyQryCensus!$A$408:$FN$450,V$1)","v":98},{"$f":"VLOOKUP(DropDownList!$B$47,CntyQryCensus!$A$408:$FN$450,W$1)","v":124},{"$f":"VLOOKUP(DropDownList!$B$47,CntyQryCensus!$A$408:$FN$450,X$1)","v":49},{"$f":"VLOOKUP(DropDownList!$B$47,CntyQryCensus!$A$408:$FN$450,Y$1)","v":27},{"$f":"VLOOKUP(DropDownList!$B$47,CntyQryCensus!$A$408:$FN$450,Z$1)","v":11},{"$f":"VLOOKUP(DropDownList!$B$47,CntyQryCensus!$A$408:$FN$450,AA$1)","v":0},{"$f":"VLOOKUP(DropDownList!$B$47,CntyQryCensus!$A$408:$FN$450,AB$1)","v":0},{"$f":"VLOOKUP(DropDownList!$B$47,CntyQryCensus!$A$408:$FN$450,AC$1)","v":0},{"$f":"VLOOKUP(DropDownList!$B$47,CntyQryCensus!$A$408:$FN$450,AD$1)","v":99400},{"$f":"VLOOKUP(DropDownList!$B$47,CntyQryCensus!$A$408:$FN$450,AE$1)","v":7637},{"$f":"VLOOKUP(DropDownList!$B$47,CntyQryCensus!$A$408:$FN$450,AF$1)","v":130},{"$f":"VLOOKUP(DropDownList!$B$47,CntyQryCensus!$A$408:$FN$450,AG$1)","v":140},{"$f":"VLOOKUP(DropDownList!$B$47,CntyQryCensus!$A$408:$FN$450,AH$1)","v":260},{"$f":"VLOOKUP(DropDownList!$B$47,CntyQryCensus!$A$408:$FN$450,AI$1)","v":252},{"$f":"VLOOKUP(DropDownList!$B$47,CntyQryCensus!$A$408:$FN$450,AJ$1)","v":212},{"$f":"VLOOKUP(DropDownList!$B$47,CntyQryCensus!$A$408:$FN$450,AK$1)","v":229},{"$f":"VLOOKUP(DropDownList!$B$47,CntyQryCensus!$A$408:$FN$450,AL$1)","v":180},{"$f":"VLOOKUP(DropDownList!$B$47,CntyQryCensus!$A$408:$FN$450,AM$1)","v":164},{"$f":"VLOOKUP(DropDownList!$B$47,CntyQryCensus!$A$408:$FN$450,AN$1)","v":261},{"$f":"VLOOKUP(DropDownList!$B$47,CntyQryCensus!$A$408:$FN$450,AO$1)","v":496},{"$f":"VLOOKUP(DropDownList!$B$47,CntyQryCensus!$A$408:$FN$450,AP$1)","v":682},{"$f":"VLOOKUP(DropDownList!$B$47,CntyQryCensus!$A$408:$FN$450,AQ$1)","v":876},{"$f":"VLOOKUP(DropDownList!$B$47,CntyQryCensus!$A$408:$FN$450,AR$1)","v":861},{"$f":"VLOOKUP(DropDownList!$B$47,CntyQryCensus!$A$408:$FN$450,AS$1)","v":1329},{"$f":"VLOOKUP(DropDownList!$B$47,CntyQryCensus!$A$408:$FN$450,AT$1)","v":771},{"$f":"VLOOKUP(DropDownList!$B$47,CntyQryCensus!$A$408:$FN$450,AU$1)","v":387},{"$f":"VLOOKUP(DropDownList!$B$47,CntyQryCensus!$A$408:$FN$450,AV$1)","v":134},{"$f":"VLOOKUP(DropDownList!$B$47,CntyQryCensus!$A$408:$FN$450,AW$1)","v":150},{"$f":"VLOOKUP(DropDownList!$B$47,CntyQryCensus!$A$408:$FN$450,AX$1)","v":61},{"$f":"VLOOKUP(DropDownList!$B$47,CntyQryCensus!$A$408:$FN$450,AY$1)","v":34},{"$f":"VLOOKUP(DropDownList!$B$47,CntyQryCensus!$A$408:$FN$450,AZ$1)","v":22},{"$f":"VLOOKUP(DropDownList!$B$47,CntyQryCensus!$A$408:$FN$450,BA$1)","v":6},{"$f":"VLOOKUP(DropDownList!$B$47,CntyQryCensus!$A$408:$FN$450,BB$1)","v":0},{"$f":"VLOOKUP(DropDownList!$B$47,CntyQryCensus!$A$408:$FN$450,BC$1)","v":0},{"$f":"VLOOKUP(DropDownList!$B$47,CntyQryCensus!$A$408:$FN$450,BD$1)","v":89300},{"$f":"VLOOKUP(DropDownList!$B$47,CntyQryCensus!$A$408:$FN$450,BE$1)","v":4928},{"$f":"VLOOKUP(DropDownList!$B$47,CntyQryCensus!$A$408:$FN$450,BF$1)","v":3576},{"$f":"VLOOKUP(DropDownList!$B$47,CntyQryCensus!$A$408:$FN$450,BG$1)","v":0},{"$f":"VLOOKUP(DropDownList!$B$47,CntyQryCensus!$A$408:$FN$450,BH$1)","v":15},{"$f":"VLOOKUP(DropDownList!$B$47,CntyQryCensus!$A$408:$FN$450,BI$1)","v":7},{"$f":"VLOOKUP(DropDownList!$B$47,CntyQryCensus!$A$408:$FN$450,BJ$1)","v":55},{"$f":"VLOOKUP(DropDownList!$B$47,CntyQryCensus!$A$408:$FN$450,BK$1)","v":93},{"$f":"VLOOKUP(DropDownList!$B$47,CntyQryCensus!$A$408:$FN$450,BL$1)","v":188},{"$f":"VLOOKUP(DropDownList!$B$47,CntyQryCensus!$A$408:$FN$450,BM$1)","v":324},{"$f":"VLOOKUP(DropDownList!$B$47,CntyQryCensus!$A$408:$FN$450,BN$1)","v":480},{"$f":"VLOOKUP(DropDownList!$B$47,CntyQryCensus!$A$408:$FN$450,BO$1)","v":478},{"$f":"VLOOKUP(DropDownList!$B$47,CntyQryCensus!$A$408:$FN$450,BP$1)","v":1039},{"$f":"VLOOKUP(DropDownList!$B$47,CntyQryCensus!$A$408:$FN$450,BQ$1)","v":502},{"$f":"VLOOKUP(DropDownList!$B$47,CntyQryCensus!$A$408:$FN$450,BR$1)","v":268},{"$f":"VLOOKUP(DropDownList!$B$47,CntyQryCensus!$A$408:$FN$450,BS$1)","v":104},{"$f":"VLOOKUP(DropDownList!$B$47,CntyQryCensus!$A$408:$FN$450,BT$1)","v":9},{"$f":"VLOOKUP(DropDownList!$B$47,CntyQryCensus!$A$408:$FN$450,BU$1)","v":14},{"$f":"VLOOKUP(DropDownList!$B$47,CntyQryCensus!$A$408:$FN$450,BV$1)","v":1352},{"$f":"VLOOKUP(DropDownList!$B$47,CntyQryCensus!$A$408:$FN$450,BW$1)","v":0},{"$f":"VLOOKUP(DropDownList!$B$47,CntyQryCensus!$A$408:$FN$450,BX$1)","v":0},{"$f":"VLOOKUP(DropDownList!$B$47,CntyQryCensus!$A$408:$FN$450,BY$1)","v":14},{"$f":"VLOOKUP(DropDownList!$B$47,CntyQryCensus!$A$408:$FN$450,BZ$1)","v":60},{"$f":"VLOOKUP(DropDownList!$B$47,CntyQryCensus!$A$408:$FN$450,CA$1)","v":138},{"$f":"VLOOKUP(DropDownList!$B$47,CntyQryCensus!$A$408:$FN$450,CB$1)","v":233},{"$f":"VLOOKUP(DropDownList!$B$47,CntyQryCensus!$A$408:$FN$450,CC$1)","v":269},{"$f":"VLOOKUP(DropDownList!$B$47,CntyQryCensus!$A$408:$FN$450,CD$1)","v":340},{"$f":"VLOOKUP(DropDownList!$B$47,CntyQryCensus!$A$408:$FN$450,CE$1)","v":215},{"$f":"VLOOKUP(DropDownList!$B$47,CntyQryCensus!$A$408:$FN$450,CF$1)","v":61},{"$f":"VLOOKUP(DropDownList!$B$47,CntyQryCensus!$A$408:$FN$450,CG$1)","v":22},{"$f":"VLOOKUP(DropDownList!$B$47,CntyQryCensus!$A$408:$FN$450,CH$1)","v":0},{"$f":"VLOOKUP(DropDownList!$B$47,CntyQryCensus!$A$408:$FN$450,CI$1)","v":0},{"$f":"VLOOKUP(DropDownList!$B$47,CntyQryCensus!$A$408:$FN$450,CJ$1)","v":0},{"$f":"VLOOKUP(DropDownList!$B$47,CntyQryCensus!$A$408:$FN$450,CK$1)","v":1036},{"$f":"VLOOKUP(DropDownList!$B$47,CntyQryCensus!$A$408:$FN$450,CL$1)","v":393},{"$f":"VLOOKUP(DropDownList!$B$47,CntyQryCensus!$A$408:$FN$450,CM$1)","v":4928},{"$f":"VLOOKUP(DropDownList!$B$47,CntyQryCensus!$A$408:$FN$450,CN$1)","v":3576},{"$f":"VLOOKUP(DropDownList!$B$47,CntyQryCensus!$A$408:$FN$450,CO$1)","v":104},{"$f":"VLOOKUP(DropDownList!$B$47,CntyQryCensus!$A$408:$FN$450,CP$1)","v":413},{"$f":"VLOOKUP(DropDownList!$B$47,CntyQryCensus!$A$408:$FN$450,CQ$1)","v":763},{"$f":"VLOOKUP(DropDownList!$B$47,CntyQryCensus!$A$408:$FN$450,CR$1)","v":897},{"$f":"VLOOKUP(DropDownList!$B$47,CntyQryCensus!$A$408:$FN$450,CS$1)","v":443},{"$f":"VLOOKUP(DropDownList!$B$47,CntyQryCensus!$A$408:$FN$450,CT$1)","v":385},{"$f":"VLOOKUP(DropDownList!$B$47,CntyQryCensus!$A$408:$FN$450,CU$1)","v":152},{"$f":"VLOOKUP(DropDownList!$B$47,CntyQryCensus!$A$408:$FN$450,CV$1)","v":148},{"$f":"VLOOKUP(DropDownList!$B$47,CntyQryCensus!$A$408:$FN$450,CW$1)","v":258},{"$f":"VLOOKUP(DropDownList!$B$47,CntyQryCensus!$A$408:$FN$450,CX$1)","v":13},{"$f":"VLOOKUP(DropDownList!$B$47,CntyQryCensus!$A$408:$FN$450,CY$1)","v":1352},{"$f":"VLOOKUP(DropDownList!$B$47,CntyQryCensus!$A$408:$FN$450,CZ$1)","v":363},{"$f":"VLOOKUP(DropDownList!$B$47,CntyQryCensus!$A$408:$FN$450,DA$1)","v":310},{"$f":"VLOOKUP(DropDownList!$B$47,CntyQryCensus!$A$408:$FN$450,DB$1)","v":241},{"$f":"VLOOKUP(DropDownList!$B$47,CntyQryCensus!$A$408:$FN$450,DC$1)","v":142},{"$f":"VLOOKUP(DropDownList!$B$47,CntyQryCensus!$A$408:$FN$450,DD$1)","v":62},{"$f":"VLOOKUP(DropDownList!$B$47,CntyQryCensus!$A$408:$FN$450,DE$1)","v":73},{"$f":"VLOOKUP(DropDownList!$B$47,CntyQryCensus!$A$408:$FN$450,DF$1)","v":19},{"$f":"VLOOKUP(DropDownList!$B$47,CntyQryCensus!$A$408:$FN$450,DG$1)","v":68},{"$f":"VLOOKUP(DropDownList!$B$47,CntyQryCensus!$A$408:$FN$450,DH$1)","v":57},{"$f":"VLOOKUP(DropDownList!$B$47,CntyQryCensus!$A$408:$FN$450,DI$1)","v":17},{"$f":"VLOOKUP(DropDownList!$B$47,CntyQryCensus!$A$408:$FN$450,DJ$1)","v":4928},{"$f":"VLOOKUP(DropDownList!$B$47,CntyQryCensus!$A$408:$FN$450,DK$1)","v":138},{"$f":"VLOOKUP(DropDownList!$B$47,CntyQryCensus!$A$408:$FN$450,DL$1)","v":0},{"$f":"VLOOKUP(DropDownList!$B$47,CntyQryCensus!$A$408:$FN$450,DM$1)","v":0},{"$f":"VLOOKUP(DropDownList!$B$47,CntyQryCensus!$A$408:$FN$450,DN$1)","v":0},{"$f":"VLOOKUP(DropDownList!$B$47,CntyQryCensus!$A$408:$FN$450,DO$1)","v":0},{"$f":"VLOOKUP(DropDownList!$B$47,CntyQryCensus!$A$408:$FN$450,DP$1)","v":108},{"$f":"VLOOKUP(DropDownList!$B$47,CntyQryCensus!$A$408:$FN$450,DQ$1)","v":30},{"$f":"VLOOKUP(DropDownList!$B$47,CntyQryCensus!$A$408:$FN$450,DR$1)","v":405},{"$f":"VLOOKUP(DropDownList!$B$47,CntyQryCensus!$A$408:$FN$450,DS$1)","v":38},{"$f":"VLOOKUP(DropDownList!$B$47,CntyQryCensus!$A$408:$FN$450,DT$1)","v":75},{"$f":"VLOOKUP(DropDownList!$B$47,CntyQryCensus!$A$408:$FN$450,DU$1)","v":52},{"$f":"VLOOKUP(DropDownList!$B$47,CntyQryCensus!$A$408:$FN$450,DV$1)","v":54},{"$f":"VLOOKUP(DropDownList!$B$47,CntyQryCensus!$A$408:$FN$450,DW$1)","v":186},{"$f":"VLOOKUP(DropDownList!$B$47,CntyQryCensus!$A$408:$FN$450,DX$1)","v":0},{"$f":"VLOOKUP(DropDownList!$B$47,CntyQryCensus!$A$408:$FN$450,DY$1)","v":781},{"$f":"VLOOKUP(DropDownList!$B$47,CntyQryCensus!$A$408:$FN$450,DZ$1)","v":285},{"$f":"VLOOKUP(DropDownList!$B$47,CntyQryCensus!$A$408:$FN$450,EA$1)","v":90},{"$f":"VLOOKUP(DropDownList!$B$47,CntyQryCensus!$A$408:$FN$450,EB$1)","v":58},{"$f":"VLOOKUP(DropDownList!$B$47,CntyQryCensus!$A$408:$FN$450,EC$1)","v":123},{"$f":"VLOOKUP(DropDownList!$B$47,CntyQryCensus!$A$408:$FN$450,ED$1)","v":225},{"$f":"VLOOKUP(DropDownList!$B$47,CntyQryCensus!$A$408:$FN$450,EE$1)","v":0},{"$f":"VLOOKUP(DropDownList!$B$47,CntyQryCensus!$A$408:$FN$450,EF$1)","v":1067},{"$f":"VLOOKUP(DropDownList!$B$47,CntyQryCensus!$A$408:$FN$450,EG$1)","v":349},{"$f":"VLOOKUP(DropDownList!$B$47,CntyQryCensus!$A$408:$FN$450,EH$1)","v":217},{"$f":"VLOOKUP(DropDownList!$B$47,CntyQryCensus!$A$408:$FN$450,EI$1)","v":178},{"$f":"VLOOKUP(DropDownList!$B$47,CntyQryCensus!$A$408:$FN$450,EJ$1)","v":184},{"$f":"VLOOKUP(DropDownList!$B$47,CntyQryCensus!$A$408:$FN$450,EK$1)","v":139},{"$f":"VLOOKUP(DropDownList!$B$47,CntyQryCensus!$A$408:$FN$450,EL$1)","v":0},{"$f":"VLOOKUP(DropDownList!$B$47,CntyQryCensus!$A$408:$FN$450,EM$1)","v":1437},{"$f":"VLOOKUP(DropDownList!$B$47,CntyQryCensus!$A$408:$FN$450,EN$1)","v":653},{"$f":"VLOOKUP(DropDownList!$B$47,CntyQryCensus!$A$408:$FN$450,EO$1)","v":499},{"$f":"VLOOKUP(DropDownList!$B$47,CntyQryCensus!$A$408:$FN$450,EP$1)","v":182},{"$f":"VLOOKUP(DropDownList!$B$47,CntyQryCensus!$A$408:$FN$450,EQ$1)","v":80},{"$f":"VLOOKUP(DropDownList!$B$47,CntyQryCensus!$A$408:$FN$450,ER$1)","v":23},{"$f":"VLOOKUP(DropDownList!$B$47,CntyQryCensus!$A$408:$FN$450,ES$1)","v":0},{"$f":"VLOOKUP(DropDownList!$B$47,CntyQryCensus!$A$408:$FN$450,ET$1)","v":612},{"$f":"VLOOKUP(DropDownList!$B$47,CntyQryCensus!$A$408:$FN$450,EU$1)","v":430},{"$f":"VLOOKUP(DropDownList!$B$47,CntyQryCensus!$A$408:$FN$450,EV$1)","v":130},{"$f":"VLOOKUP(DropDownList!$B$47,CntyQryCensus!$A$408:$FN$450,EW$1)","v":29},{"$f":"VLOOKUP(DropDownList!$B$47,CntyQryCensus!$A$408:$FN$450,EX$1)","v":8},{"$f":"VLOOKUP(DropDownList!$B$47,CntyQryCensus!$A$408:$FN$450,EY$1)","v":15},{"$f":"VLOOKUP(DropDownList!$B$47,CntyQryCensus!$A$408:$FN$450,EZ$1)","v":0},{"$f":"VLOOKUP(DropDownList!$B$47,CntyQryCensus!$A$408:$FN$450,FA$1)","v":344},{"$f":"VLOOKUP(DropDownList!$B$47,CntyQryCensus!$A$408:$FN$450,FB$1)","v":295},{"$f":"VLOOKUP(DropDownList!$B$47,CntyQryCensus!$A$408:$FN$450,FC$1)","v":28},{"$f":"VLOOKUP(DropDownList!$B$47,CntyQryCensus!$A$408:$FN$450,FD$1)","v":6},{"$f":"VLOOKUP(DropDownList!$B$47,CntyQryCensus!$A$408:$FN$450,FE$1)","v":9},{"$f":"VLOOKUP(DropDownList!$B$47,CntyQryCensus!$A$408:$FN$450,FF$1)","v":6},{"$f":"VLOOKUP(DropDownList!$B$47,CntyQryCensus!$A$408:$FN$450,FG$1)","v":0},{"$f":"VLOOKUP(DropDownList!$B$47,CntyQryCensus!$A$408:$FN$450,FH$1)","v":144},{"$f":"VLOOKUP(DropDownList!$B$47,CntyQryCensus!$A$408:$FN$450,FI$1)","v":144},{"$f":"VLOOKUP(DropDownList!$B$47,CntyQryCensus!$A$408:$FN$450,FJ$1)","v":0},{"$f":"VLOOKUP(DropDownList!$B$47,CntyQryCensus!$A$408:$FN$450,FK$1)","v":0},{"$f":"VLOOKUP(DropDownList!$B$47,CntyQryCensus!$A$408:$FN$450,FL$1)","v":0},{"$f":"VLOOKUP(DropDownList!$B$47,CntyQryCensus!$A$408:$FN$450,FM$1)","v":0},{"$f":"VLOOKUP(DropDownList!$B$47,CntyQryCensus!$A$408:$FN$450,FN$1)","v":0}]
[]
[]
["Census 2000 SummaryFile3 Sample Data  -  SF3TownQry9HHIncomeByTenure"]
["NAME","LOGRECNO","COUNTY","TotalPop","HCT11OccHU","HCT11OwnOccHU","HCT11OOHUInc<5K","HCT11OOHUInc5to10K","HCT11OOHUInc10to15K","HCT11OOHUInc15to20K","HCT11OOHUInc20to25K","HCT11OOHUInc25to35K","HCT11OOHUInc35to50K","HCT11OOHUInc50to75K","HCT11OOHUInc75to100K","HCT11OOHUInc100to150K","HCT11OOHUInc>150K","HCT11RentOccHU","HCT11ROHUInc<5K","HCT11ROHUInc5to10K","HCT11ROHUInc10to15K","HCT11ROHUInc15to20K","HCT11ROHUInc20to25K","HCT11ROHUInc25to35K","HCT11ROHUInc35to50K","HCT11ROHUInc50to75K","HCT11ROHUInc75to100K","HCT11ROHUInc100to150K","HCT11ROHUInc>150K","HCT12MedHHInc","HCT12MedOwnOccHHInc","HCT12MedRentOccHHInc","Summary Level"]
[{"$f":"VLOOKUP(DropDownList!$B$47,CntyQryCensus!$A$459:$AG$501,A$1)","v":"Rochester"},{"$f":"VLOOKUP(DropDownList!$B$47,CntyQryCensus!$A$459:$AG$501,B$1)","v":"0000318"},{"$f":"VLOOKUP(DropDownList!$B$47,CntyQryCensus!$A$459:$AG$501,C$1)","v":"017"},{"$f":"VLOOKUP(DropDownList!$B$47,CntyQryCensus!$A$459:$AG$501,D$1)","v":29752},{"$f":"VLOOKUP(DropDownList!$B$47,CntyQryCensus!$A$459:$AG$501,E$1)","v":29238},{"$f":"VLOOKUP(DropDownList!$B$47,CntyQryCensus!$A$459:$AG$501,F$1)","v":28388},{"$f":"VLOOKUP(DropDownList!$B$47,CntyQryCensus!$A$459:$AG$501,G$1)","v":251},{"$f":"VLOOKUP(DropDownList!$B$47,CntyQryCensus!$A$459:$AG$501,H$1)","v":92},{"$f":"VLOOKUP(DropDownList!$B$47,CntyQryCensus!$A$459:$AG$501,I$1)","v":361},{"$f":"VLOOKUP(DropDownList!$B$47,CntyQryCensus!$A$459:$AG$501,J$1)","v":15},{"$f":"VLOOKUP(DropDownList!$B$47,CntyQryCensus!$A$459:$AG$501,K$1)","v":131},{"$f":"VLOOKUP(DropDownList!$B$47,CntyQryCensus!$A$459:$AG$501,L$1)","v":514},{"$f":"VLOOKUP(DropDownList!$B$47,CntyQryCensus!$A$459:$AG$501,M$1)","v":547},{"$f":"VLOOKUP(DropDownList!$B$47,CntyQryCensus!$A$459:$AG$501,N$1)","v":29205},{"$f":"VLOOKUP(DropDownList!$B$47,CntyQryCensus!$A$459:$AG$501,O$1)","v":5457},{"$f":"VLOOKUP(DropDownList!$B$47,CntyQryCensus!$A$459:$AG$501,P$1)","v":3381},{"$f":"VLOOKUP(DropDownList!$B$47,CntyQryCensus!$A$459:$AG$501,Q$1)","v":3779},{"$f":"VLOOKUP(DropDownList!$B$47,CntyQryCensus!$A$459:$AG$501,R$1)","v":4024},{"$f":"VLOOKUP(DropDownList!$B$47,CntyQryCensus!$A$459:$AG$501,S$1)","v":4863},{"$f":"VLOOKUP(DropDownList!$B$47,CntyQryCensus!$A$459:$AG$501,T$1)","v":3851},{"$f":"VLOOKUP(DropDownList!$B$47,CntyQryCensus!$A$459:$AG$501,U$1)","v":2334},{"$f":"VLOOKUP(DropDownList!$B$47,CntyQryCensus!$A$459:$AG$501,V$1)","v":2063},{"$f":"VLOOKUP(DropDownList!$B$47,CntyQryCensus!$A$459:$AG$501,W$1)","v":40.700000000000003},{"$f":"VLOOKUP(DropDownList!$B$47,CntyQryCensus!$A$459:$AG$501,X$1)","v":39.5},{"$f":"VLOOKUP(DropDownList!$B$47,CntyQryCensus!$A$459:$AG$501,Y$1)","v":42.1},{"$f":"VLOOKUP(DropDownList!$B$47,CntyQryCensus!$A$459:$AG$501,Z$1)","v":12378},{"$f":"VLOOKUP(DropDownList!$B$47,CntyQryCensus!$A$459:$AG$501,AA$1)","v":29512},{"$f":"VLOOKUP(DropDownList!$B$47,CntyQryCensus!$A$459:$AG$501,AB$1)","v":14994},{"$f":"VLOOKUP(DropDownList!$B$47,CntyQryCensus!$A$459:$AG$501,AC$1)","v":14518},{"$f":"VLOOKUP(DropDownList!$B$47,CntyQryCensus!$A$459:$AG$501,AD$1)","v":2.38},{"$f":"VLOOKUP(DropDownList!$B$47,CntyQryCensus!$A$459:$AG$501,AE$1)","v":7936},{"$f":"VLOOKUP(DropDownList!$B$47,CntyQryCensus!$A$459:$AG$501,AF$1)","v":5788},{"$f":"VLOOKUP(DropDownList!$B$47,CntyQryCensus!$A$459:$AG$501,AG$1)","v":2148}]
[]
[]
[]
[]
[]
[{"$f":"VLOOKUP(DropDownList!$B$47,CntyQryCensus!$A$510:$DA$522,A$1)","v":"Rochester"}]
[]
[]
[]
[]
[]
[]
[]
["Census 2000 SummaryFile3 Sample Data - SF3TownQry10Disabil"]
["NAME","LOGRECNO","COUNTY","TotalPop","PCT026001-NonInstPop5yrs+","PCT026002-MaleNonInstPop5yrs+","PCT026003","PCT026004","PCT026005","PCT026006","PCT026007","PCT026008","PCT026009","PCT026010","PCT026011","PCT026012","PCT026013","PCT026014","PCT026015","PCT026016","PCT026017","PCT026018","PCT026019","PCT026020","PCT026021","PCT026022","PCT026023","PCT026024","PCT026025","PCT026026","PCT026027","PCT026028","PCT026029","PCT026030","PCT026031","PCT026032","PCT026033","PCT026034","PCT026035","PCT026036","PCT026037","PCT026038","PCT026039","PCT026040","PCT026041","PCT026042","PCT026043","PCT026044","PCT026045","PCT026046","PCT026047","PCT026048","PCT026049","PCT026050","PCT026051","PCT026052","PCT026053","PCT026054","PCT026055","PCT026056","PCT026057","PCT026058","PCT026059","PCT026060","PCT026061","PCT026062","PCT026063","PCT026064","PCT026065","PCT026066","PCT026067","PCT026068","PCT026069","PCT026070","PCT026071","PCT026072","PCT026073","PCT026074","PCT026075","PCT026076","PCT026077","PCT026078","PCT026079","PCT026080","PCT026081","PCT026082","PCT026083","PCT026084","PCT026085","PCT026086","PCT026087","PCT026088","PCT026089","PCT026090","PCT026091","PCT026092","PCT026093","PCT026094","PCT026095","PCT026096","PCT026097","PCT026098","PCT026099","PCT026100","PCT026101"]
[{"$f":"VLOOKUP(DropDownList!$B$47,CntyQryCensus!$A$510:$DA$522,A$1)","v":"Rochester"},{"$f":"VLOOKUP(DropDownList!$B$47,CntyQryCensus!$A$510:$DA$522,B$1)","v":"0003956"},{"$f":"VLOOKUP(DropDownList!$B$47,CntyQryCensus!$A$510:$DA$522,C$1)","v":"65140"},{"$f":"VLOOKUP(DropDownList!$B$47,CntyQryCensus!$A$510:$DA$522,D$1)","v":28461},{"$f":"VLOOKUP(DropDownList!$B$47,CntyQryCensus!$A$510:$DA$522,E$1)","v":26314},{"$f":"VLOOKUP(DropDownList!$B$47,CntyQryCensus!$A$510:$DA$522,F$1)","v":12732},{"$f":"VLOOKUP(DropDownList!$B$47,CntyQryCensus!$A$510:$DA$522,G$1)","v":2359},{"$f":"VLOOKUP(DropDownList!$B$47,CntyQryCensus!$A$510:$DA$522,H$1)","v":250},{"$f":"VLOOKUP(DropDownList!$B$47,CntyQryCensus!$A$510:$DA$522,I$1)","v":0},{"$f":"VLOOKUP(DropDownList!$B$47,CntyQryCensus!$A$510:$DA$522,J$1)","v":7},{"$f":"VLOOKUP(DropDownList!$B$47,CntyQryCensus!$A$510:$DA$522,K$1)","v":243},{"$f":"VLOOKUP(DropDownList!$B$47,CntyQryCensus!$A$510:$DA$522,L$1)","v":0},{"$f":"VLOOKUP(DropDownList!$B$47,CntyQryCensus!$A$510:$DA$522,M$1)","v":35},{"$f":"VLOOKUP(DropDownList!$B$47,CntyQryCensus!$A$510:$DA$522,N$1)","v":26},{"$f":"VLOOKUP(DropDownList!$B$47,CntyQryCensus!$A$510:$DA$522,O$1)","v":9},{"$f":"VLOOKUP(DropDownList!$B$47,CntyQryCensus!$A$510:$DA$522,P$1)","v":2074},{"$f":"VLOOKUP(DropDownList!$B$47,CntyQryCensus!$A$510:$DA$522,Q$1)","v":821},{"$f":"VLOOKUP(DropDownList!$B$47,CntyQryCensus!$A$510:$DA$522,R$1)","v":52},{"$f":"VLOOKUP(DropDownList!$B$47,CntyQryCensus!$A$510:$DA$522,S$1)","v":0},{"$f":"VLOOKUP(DropDownList!$B$47,CntyQryCensus!$A$510:$DA$522,T$1)","v":0},{"$f":"VLOOKUP(DropDownList!$B$47,CntyQryCensus!$A$510:$DA$522,U$1)","v":21},{"$f":"VLOOKUP(DropDownList!$B$47,CntyQryCensus!$A$510:$DA$522,V$1)","v":0},{"$f":"VLOOKUP(DropDownList!$B$47,CntyQryCensus!$A$510:$DA$522,W$1)","v":0},{"$f":"VLOOKUP(DropDownList!$B$47,CntyQryCensus!$A$510:$DA$522,X$1)","v":31},{"$f":"VLOOKUP(DropDownList!$B$47,CntyQryCensus!$A$510:$DA$522,Y$1)","v":39},{"$f":"VLOOKUP(DropDownList!$B$47,CntyQryCensus!$A$510:$DA$522,Z$1)","v":0},{"$f":"VLOOKUP(DropDownList!$B$47,CntyQryCensus!$A$510:$DA$522,AA$1)","v":39},{"$f":"VLOOKUP(DropDownList!$B$47,CntyQryCensus!$A$510:$DA$522,AB$1)","v":8},{"$f":"VLOOKUP(DropDownList!$B$47,CntyQryCensus!$A$510:$DA$522,AC$1)","v":31},{"$f":"VLOOKUP(DropDownList!$B$47,CntyQryCensus!$A$510:$DA$522,AD$1)","v":730},{"$f":"VLOOKUP(DropDownList!$B$47,CntyQryCensus!$A$510:$DA$522,AE$1)","v":8055},{"$f":"VLOOKUP(DropDownList!$B$47,CntyQryCensus!$A$510:$DA$522,AF$1)","v":1029},{"$f":"VLOOKUP(DropDownList!$B$47,CntyQryCensus!$A$510:$DA$522,AG$1)","v":202},{"$f":"VLOOKUP(DropDownList!$B$47,CntyQryCensus!$A$510:$DA$522,AH$1)","v":162},{"$f":"VLOOKUP(DropDownList!$B$47,CntyQryCensus!$A$510:$DA$522,AI$1)","v":102},{"$f":"VLOOKUP(DropDownList!$B$47,CntyQryCensus!$A$510:$DA$522,AJ$1)","v":0},{"$f":"VLOOKUP(DropDownList!$B$47,CntyQryCensus!$A$510:$DA$522,AK$1)","v":0},{"$f":"VLOOKUP(DropDownList!$B$47,CntyQryCensus!$A$510:$DA$522,AL$1)","v":563},{"$f":"VLOOKUP(DropDownList!$B$47,CntyQryCensus!$A$510:$DA$522,AM$1)","v":578},{"$f":"VLOOKUP(DropDownList!$B$47,CntyQryCensus!$A$510:$DA$522,AN$1)","v":77},{"$f":"VLOOKUP(DropDownList!$B$47,CntyQryCensus!$A$510:$DA$522,AO$1)","v":501},{"$f":"VLOOKUP(DropDownList!$B$47,CntyQryCensus!$A$510:$DA$522,AP$1)","v":119},{"$f":"VLOOKUP(DropDownList!$B$47,CntyQryCensus!$A$510:$DA$522,AQ$1)","v":382},{"$f":"VLOOKUP(DropDownList!$B$47,CntyQryCensus!$A$510:$DA$522,AR$1)","v":6448},{"$f":"VLOOKUP(DropDownList!$B$47,CntyQryCensus!$A$510:$DA$522,AS$1)","v":1497},{"$f":"VLOOKUP(DropDownList!$B$47,CntyQryCensus!$A$510:$DA$522,AT$1)","v":329},{"$f":"VLOOKUP(DropDownList!$B$47,CntyQryCensus!$A$510:$DA$522,AU$1)","v":60},{"$f":"VLOOKUP(DropDownList!$B$47,CntyQryCensus!$A$510:$DA$522,AV$1)","v":193},{"$f":"VLOOKUP(DropDownList!$B$47,CntyQryCensus!$A$510:$DA$522,AW$1)","v":41},{"$f":"VLOOKUP(DropDownList!$B$47,CntyQryCensus!$A$510:$DA$522,AX$1)","v":0},{"$f":"VLOOKUP(DropDownList!$B$47,CntyQryCensus!$A$510:$DA$522,AY$1)","v":35},{"$f":"VLOOKUP(DropDownList!$B$47,CntyQryCensus!$A$510:$DA$522,AZ$1)","v":279},{"$f":"VLOOKUP(DropDownList!$B$47,CntyQryCensus!$A$510:$DA$522,BA$1)","v":102},{"$f":"VLOOKUP(DropDownList!$B$47,CntyQryCensus!$A$510:$DA$522,BB$1)","v":177},{"$f":"VLOOKUP(DropDownList!$B$47,CntyQryCensus!$A$510:$DA$522,BC$1)","v":889},{"$f":"VLOOKUP(DropDownList!$B$47,CntyQryCensus!$A$510:$DA$522,BD$1)","v":13582},{"$f":"VLOOKUP(DropDownList!$B$47,CntyQryCensus!$A$510:$DA$522,BE$1)","v":2143},{"$f":"VLOOKUP(DropDownList!$B$47,CntyQryCensus!$A$510:$DA$522,BF$1)","v":71},{"$f":"VLOOKUP(DropDownList!$B$47,CntyQryCensus!$A$510:$DA$522,BG$1)","v":10},{"$f":"VLOOKUP(DropDownList!$B$47,CntyQryCensus!$A$510:$DA$522,BH$1)","v":7},{"$f":"VLOOKUP(DropDownList!$B$47,CntyQryCensus!$A$510:$DA$522,BI$1)","v":54},{"$f":"VLOOKUP(DropDownList!$B$47,CntyQryCensus!$A$510:$DA$522,BJ$1)","v":0},{"$f":"VLOOKUP(DropDownList!$B$47,CntyQryCensus!$A$510:$DA$522,BK$1)","v":28},{"$f":"VLOOKUP(DropDownList!$B$47,CntyQryCensus!$A$510:$DA$522,BL$1)","v":28},{"$f":"VLOOKUP(DropDownList!$B$47,CntyQryCensus!$A$510:$DA$522,BM$1)","v":0},{"$f":"VLOOKUP(DropDownList!$B$47,CntyQryCensus!$A$510:$DA$522,BN$1)","v":2044},{"$f":"VLOOKUP(DropDownList!$B$47,CntyQryCensus!$A$510:$DA$522,BO$1)","v":898},{"$f":"VLOOKUP(DropDownList!$B$47,CntyQryCensus!$A$510:$DA$522,BP$1)","v":63},{"$f":"VLOOKUP(DropDownList!$B$47,CntyQryCensus!$A$510:$DA$522,BQ$1)","v":0},{"$f":"VLOOKUP(DropDownList!$B$47,CntyQryCensus!$A$510:$DA$522,BR$1)","v":6},{"$f":"VLOOKUP(DropDownList!$B$47,CntyQryCensus!$A$510:$DA$522,BS$1)","v":30},{"$f":"VLOOKUP(DropDownList!$B$47,CntyQryCensus!$A$510:$DA$522,BT$1)","v":0},{"$f":"VLOOKUP(DropDownList!$B$47,CntyQryCensus!$A$510:$DA$522,BU$1)","v":5},{"$f":"VLOOKUP(DropDownList!$B$47,CntyQryCensus!$A$510:$DA$522,BV$1)","v":22},{"$f":"VLOOKUP(DropDownList!$B$47,CntyQryCensus!$A$510:$DA$522,BW$1)","v":0},{"$f":"VLOOKUP(DropDownList!$B$47,CntyQryCensus!$A$510:$DA$522,BX$1)","v":0},{"$f":"VLOOKUP(DropDownList!$B$47,CntyQryCensus!$A$510:$DA$522,BY$1)","v":0},{"$f":"VLOOKUP(DropDownList!$B$47,CntyQryCensus!$A$510:$DA$522,BZ$1)","v":0},{"$f":"VLOOKUP(DropDownList!$B$47,CntyQryCensus!$A$510:$DA$522,CA$1)","v":0},{"$f":"VLOOKUP(DropDownList!$B$47,CntyQryCensus!$A$510:$DA$522,CB$1)","v":835},{"$f":"VLOOKUP(DropDownList!$B$47,CntyQryCensus!$A$510:$DA$522,CC$1)","v":8429},{"$f":"VLOOKUP(DropDownList!$B$47,CntyQryCensus!$A$510:$DA$522,CD$1)","v":917},{"$f":"VLOOKUP(DropDownList!$B$47,CntyQryCensus!$A$510:$DA$522,CE$1)","v":88},{"$f":"VLOOKUP(DropDownList!$B$47,CntyQryCensus!$A$510:$DA$522,CF$1)","v":249},{"$f":"VLOOKUP(DropDownList!$B$47,CntyQryCensus!$A$510:$DA$522,CG$1)","v":82},{"$f":"VLOOKUP(DropDownList!$B$47,CntyQryCensus!$A$510:$DA$522,CH$1)","v":0},{"$f":"VLOOKUP(DropDownList!$B$47,CntyQryCensus!$A$510:$DA$522,CI$1)","v":40},{"$f":"VLOOKUP(DropDownList!$B$47,CntyQryCensus!$A$510:$DA$522,CJ$1)","v":458},{"$f":"VLOOKUP(DropDownList!$B$47,CntyQryCensus!$A$510:$DA$522,CK$1)","v":812},{"$f":"VLOOKUP(DropDownList!$B$47,CntyQryCensus!$A$510:$DA$522,CL$1)","v":144},{"$f":"VLOOKUP(DropDownList!$B$47,CntyQryCensus!$A$510:$DA$522,CM$1)","v":668},{"$f":"VLOOKUP(DropDownList!$B$47,CntyQryCensus!$A$510:$DA$522,CN$1)","v":127},{"$f":"VLOOKUP(DropDownList!$B$47,CntyQryCensus!$A$510:$DA$522,CO$1)","v":541},{"$f":"VLOOKUP(DropDownList!$B$47,CntyQryCensus!$A$510:$DA$522,CP$1)","v":6700},{"$f":"VLOOKUP(DropDownList!$B$47,CntyQryCensus!$A$510:$DA$522,CQ$1)","v":2112},{"$f":"VLOOKUP(DropDownList!$B$47,CntyQryCensus!$A$510:$DA$522,CR$1)","v":472},{"$f":"VLOOKUP(DropDownList!$B$47,CntyQryCensus!$A$510:$DA$522,CS$1)","v":46},{"$f":"VLOOKUP(DropDownList!$B$47,CntyQryCensus!$A$510:$DA$522,CT$1)","v":273},{"$f":"VLOOKUP(DropDownList!$B$47,CntyQryCensus!$A$510:$DA$522,CU$1)","v":15},{"$f":"VLOOKUP(DropDownList!$B$47,CntyQryCensus!$A$510:$DA$522,CV$1)","v":0},{"$f":"VLOOKUP(DropDownList!$B$47,CntyQryCensus!$A$510:$DA$522,CW$1)","v":138},{"$f":"VLOOKUP(DropDownList!$B$47,CntyQryCensus!$A$510:$DA$522,CX$1)","v":454},{"$f":"VLOOKUP(DropDownList!$B$47,CntyQryCensus!$A$510:$DA$522,CY$1)","v":210},{"$f":"VLOOKUP(DropDownList!$B$47,CntyQryCensus!$A$510:$DA$522,CZ$1)","v":244},{"$f":"VLOOKUP(DropDownList!$B$47,CntyQryCensus!$A$510:$DA$522,DA$1)","v":1186}]
[]
[]
[]
[]
[{"$f":"VLOOKUP(DropDownList!$B$47,CntyQryCensus!$A$510:$DA$522,A$1)","v":"Rochester"}]
[]
[]
[]
["ACS",2,{"$f":"B105+1","v":3},{"$f":"C105+1","v":4},5,6,7,8,9,10,11,{"$f":"K105+1","v":12},13,14,15,{"$f":"O105+1","v":16},17,18,19,20,21,22,23,24,25,26,27,28,29,30,31,32,33,34,35,36,37,38,39,40,41,42,43,44,45,46,47,48,49,50,51,52,53,54,55,56,57,58,59,60,61,62,63,64,65,66,67,{"$f":"BO105+1","v":68},69,70,71,72,73,74,75,76,77,78,79,80,81,82,83,84,85,86,87,88,89,90,91,92,93,94,95,96,97,98,99,100,101,102,103,104,105,106,107,108,109,110,111,112,113,114,115,116,117,118,119,120,121,122,123,124,125]
["Househould Data (Housing Unit Type)"]
["NAME","TotalHU",{"$f":"\"MOE \"&B107","v":"MOE TotalHU"},"TotalOccHU",{"$f":"\"MOE \"&D107","v":"MOE TotalOccHU"},"TotalOwnerOccUn",{"$f":"\"MOE \"&F107","v":"MOE TotalOwnerOccUn"},"TotalRenterOccn",{"$f":"\"MOE \"&H107","v":"MOE TotalRenterOccn"},"TotalVacantUntis",{"$f":"\"MOE \"&J107","v":"MOE TotalVacantUntis"},"VacantUnitsForRent",{"$f":"\"MOE \"&L107","v":"MOE VacantUnitsForRent"},"VacantUnitRentedNotOcc",{"$f":"\"MOE \"&N107","v":"MOE VacantUnitRentedNotOcc"},"VacantUnitForSale",{"$f":"\"MOE \"&P107","v":"MOE VacantUnitForSale"},"VacantUnitSoldNotOcc",{"$f":"\"MOE \"&R107","v":"MOE VacantUnitSoldNotOcc"},"VacantUnitSeasonalRec",{"$f":"\"MOE \"&T107","v":"MOE VacantUnitSeasonalRec"},"TotalPopInHousingUnits",{"$f":"\"MOE \"&V107","v":"MOE TotalPopInHousingUnits"},"OwnerOccPopHousingUnits",{"$f":"\"MOE \"&X107","v":"MOE OwnerOccPopHousingUnits"},"RenterOccPopHousingUnits",{"$f":"\"MOE \"&Z107","v":"MOE RenterOccPopHousingUnits"},"TotalUntis",{"$f":"\"MOE \"&AB107","v":"MOE TotalUntis"},"TotalOwnerOccUnits",{"$f":"\"MOE \"&AD107","v":"MOE TotalOwnerOccUnits"},"SigFamOwnerOcc",{"$f":"\"MOE \"&AF107","v":"MOE SigFamOwnerOcc"},"MultiFamOwnerOcc",{"$f":"\"MOE \"&AH107","v":"MOE MultiFamOwnerOcc"},"MobileOwnerOcc",{"$f":"\"MOE \"&AJ107","v":"MOE MobileOwnerOcc"},"TotalRenterOccUnits",{"$f":"\"MOE \"&AL107","v":"MOE TotalRenterOccUnits"},"SigFamRenterOcc",{"$f":"\"MOE \"&AN107","v":"MOE SigFamRenterOcc"},"MultiFamRenterOcc",{"$f":"\"MOE \"&AP107","v":"MOE MultiFamRenterOcc"},"MobileRenterOcc",{"$f":"\"MOE \"&AR107","v":"MOE MobileRenterOcc"},"TotalSigFamilyUnits",{"$f":"\"MOE \"&AT107","v":"MOE TotalSigFamilyUnits"},"TotalMultiFamilyUnits",{"$f":"\"MOE \"&AV107","v":"MOE TotalMultiFamilyUnits"},"TotalMobileUnits",{"$f":"\"MOE \"&AX107","v":"MOE TotalMobileUnits"},"YrHouseBuilt2014Later",{"$f":"\"MOE \"&AZ107","v":"MOE YrHouseBuilt2014Later"},"YrHouseBuilt2010-2013",{"$f":"\"MOE \"&BB107","v":"MOE YrHouseBuilt2010-2013"},"YrHouseBuilt2000-2009",{"$f":"\"MOE \"&BD107","v":"MOE YrHouseBuilt2000-2009"},"YrHouseBuilt1990-1999",{"$f":"\"MOE \"&BF107","v":"MOE YrHouseBuilt1990-1999"},"YrHouseBuilt1980-1989",{"$f":"\"MOE \"&BH107","v":"MOE YrHouseBuilt1980-1989"},"YrHouseBuilt1970-1979",{"$f":"\"MOE \"&BJ107","v":"MOE YrHouseBuilt1970-1979"},"YrHouseBuilt1960-1969",{"$f":"\"MOE \"&BL107","v":"MOE YrHouseBuilt1960-1969"},"YrHouseBuilt1950-1959",{"$f":"\"MOE \"&BN107","v":"MOE YrHouseBuilt1950-1959"},"YrHouseBuilt1940-1949",{"$f":"\"MOE \"&BP107","v":"MOE YrHouseBuilt1940-1949"},"YrHouseBuilt1939orEarlier",{"$f":"\"MOE \"&BR107","v":"MOE YrHouseBuilt1939orEarlier"},"NoBedrooms",{"$f":"\"MOE \"&BT107","v":"MOE NoBedrooms"},"1Bedroom",{"$f":"\"MOE \"&BV107","v":"MOE 1Bedroom"},"2Bedroom",{"$f":"\"MOE \"&BX107","v":"MOE 2Bedroom"},"3Bedroom",{"$f":"\"MOE \"&BZ107","v":"MOE 3Bedroom"},"4+Bedroom",{"$f":"\"MOE \"&CB107","v":"MOE 4+Bedroom"}]
[{"$f":"VLOOKUP(DropDownList!$B$47,CntyQryCensus!$A$510:$DA$522,A$1)","v":"Rochester"},14192,482,13471,518,8795,577,4676,519,721,226,264,158,55,70,147,132,14,18,62,74,32131,104,21302,1214,10829,1198,13471,518,8795,577,6251,472,710,190.88478200212819,1834,304.02960382173313,4676,519,543,168,3827,596.79142084986438,306,138.27870407260838,6983,455,4907,645.39677718439225,2302,299.04681907687967,0,25,957,274,1684,260,1172,240,2733,394,1731,318,1187,250,1230,315,773,250,2725,347,297,161,1665,410,4897,469,5370,511,1963,318.41639405030639,null,null,null,null,28]
[]
["Disability Data"]
["NAME","TotalPop",{"$f":"\"MOE \"&B111","v":"MOE TotalPop"},"PopUnder 5 years:",{"$f":"\"MOE \"&D111","v":"MOE PopUnder 5 years:"},{"$f":"D$111&\"-WithDisability\"","v":"PopUnder 5 years:-WithDisability"},{"$f":"\"MOE \"&F111","v":"MOE PopUnder 5 years:-WithDisability"},{"$f":"D111&\"-NoDisability\"","v":"PopUnder 5 years:-NoDisability"},{"$f":"\"MOE \"&H111","v":"MOE PopUnder 5 years:-NoDisability"},"PopUnder 5 to 17years:",{"$f":"\"MOE \"&J111","v":"MOE PopUnder 5 to 17years:"},{"$f":"J$111&\"-WithDisability\"","v":"PopUnder 5 to 17years:-WithDisability"},{"$f":"\"MOE \"&L111","v":"MOE PopUnder 5 to 17years:-WithDisability"},{"$f":"J111&\"-NoDisability\"","v":"PopUnder 5 to 17years:-NoDisability"},{"$f":"\"MOE \"&N111","v":"MOE PopUnder 5 to 17years:-NoDisability"},"PopUnder 18 to 34 years:",{"$f":"\"MOE \"&P111","v":"MOE PopUnder 18 to 34 years:"},{"$f":"P$111&\"-WithDisability\"","v":"PopUnder 18 to 34 years:-WithDisability"},{"$f":"\"MOE \"&R111","v":"MOE PopUnder 18 to 34 years:-WithDisability"},{"$f":"P111&\"-NoDisability\"","v":"PopUnder 18 to 34 years:-NoDisability"},{"$f":"\"MOE \"&T111","v":"MOE PopUnder 18 to 34 years:-NoDisability"},"Pop 35 years to 64:",{"$f":"\"MOE \"&V111","v":"MOE Pop 35 years to 64:"},{"$f":"$V$111&\"-WithDisability\"","v":"Pop 35 years to 64:-WithDisability"},{"$f":"\"MOE \"&X111","v":"MOE Pop 35 years to 64:-WithDisability"},{"$f":"$V$111&\"-NoDisability\"","v":"Pop 35 years to 64:-NoDisability"},{"$f":"\"MOE \"&Z111","v":"MOE Pop 35 years to 64:-NoDisability"},"Pop 65 years to 74:",{"$f":"\"MOE \"&AB111","v":"MOE Pop 65 years to 74:"},{"$f":"$AB$111&\"-WithDisability\"","v":"Pop 65 years to 74:-WithDisability"},{"$f":"\"MOE \"&AD111","v":"MOE Pop 65 years to 74:-WithDisability"},{"$f":"$AB$111&\"-NoDisability\"","v":"Pop 65 years to 74:-NoDisability"},{"$f":"\"MOE \"&AF111","v":"MOE Pop 65 years to 74:-NoDisability"},"Pop 75 and older:",{"$f":"\"MOE \"&AH111","v":"MOE Pop 75 and older:"},{"$f":"$AH$111&\"-WithDisability\"","v":"Pop 75 and older:-WithDisability"},{"$f":"\"MOE \"&AJ111","v":"MOE Pop 75 and older:-WithDisability"},{"$f":"$AH$111&\"-NoDisability\"","v":"Pop 75 and older:-NoDisability"},{"$f":"\"MOE \"&AL111","v":"MOE Pop 75 and older:-NoDisability"},"TotalPopUnder5_HearingDisability",{"$f":"\"MOE \"&AN111","v":"MOE TotalPopUnder5_HearingDisability"},"TotalPopUnder5_HearingDisability",{"$f":"\"MOE \"&AP111","v":"MOE TotalPopUnder5_HearingDisability"},"TotalPop18To34_HearingDisability",{"$f":"\"MOE \"&AR111","v":"MOE TotalPop18To34_HearingDisability"},"TotalPop35To64_HearingDisability",{"$f":"\"MOE \"&AT111","v":"MOE TotalPop35To64_HearingDisability"},"TotalPop65To74_HearingDisability",{"$f":"\"MOE \"&AV111","v":"MOE TotalPop65To74_HearingDisability"},"TotalPop75andOlder_HearingDisability",{"$f":"\"MOE \"&AX111","v":"MOE TotalPop75andOlder_HearingDisability"},"TotalPopUnder5_VisionDisability",{"$f":"\"MOE \"&AZ111","v":"MOE TotalPopUnder5_VisionDisability"},"TotalPop5To17_VisionDisability",{"$f":"\"MOE \"&BB111","v":"MOE TotalPop5To17_VisionDisability"},"TotalPop18To34_VisionDisability",{"$f":"\"MOE \"&BD111","v":"MOE TotalPop18To34_VisionDisability"},"TotalPop35To64_VisionDisability",{"$f":"\"MOE \"&BF111","v":"MOE TotalPop35To64_VisionDisability"},"TotalPop65To74_VisionDisability",{"$f":"\"MOE \"&BH111","v":"MOE TotalPop65To74_VisionDisability"},"TotalPop75andOlder_VisionDisability",{"$f":"\"MOE \"&BJ111","v":"MOE TotalPop75andOlder_VisionDisability"},"TotalPop5To17_CongnitiveDisability",{"$f":"\"MOE \"&BL111","v":"MOE TotalPop5To17_CongnitiveDisability"},"TotalPop18To34_CongnitiveDisability",{"$f":"\"MOE \"&BN111","v":"MOE TotalPop18To34_CongnitiveDisability"},"TotalPop35To64_CongnitiveDisability",{"$f":"\"MOE \"&BP111","v":"MOE TotalPop35To64_CongnitiveDisability"},"TotalPop65To74_CongnitiveDisability",{"$f":"\"MOE \"&BR111","v":"MOE TotalPop65To74_CongnitiveDisability"},"TotalPop75andOlder_CongnitiveDisability",{"$f":"\"MOE \"&BT111","v":"MOE TotalPop75andOlder_CongnitiveDisability"},"TotalPop5To17_AmbulatoryDisability",{"$f":"\"MOE \"&BV111","v":"MOE TotalPop5To17_AmbulatoryDisability"},"TotalPop18To34_AmbulatoryDisability",{"$f":"\"MOE \"&BX111","v":"MOE TotalPop18To34_AmbulatoryDisability"},"TotalPop35To64_AmbulatoryDisability",{"$f":"\"MOE \"&BZ111","v":"MOE TotalPop35To64_AmbulatoryDisability"},"TotalPop65To74_AmbulatoryDisability",{"$f":"\"MOE \"&CB111","v":"MOE TotalPop65To74_AmbulatoryDisability"},"TotalPop75andOlder_AmbulatoryDisability",{"$f":"\"MOE \"&CD111","v":"MOE TotalPop75andOlder_AmbulatoryDisability"},"TotalPop5To17_SelfCareDisability",{"$f":"\"MOE \"&CF111","v":"MOE TotalPop5To17_SelfCareDisability"},"TotalPop18To34_SelfCareDisability",{"$f":"\"MOE \"&CH111","v":"MOE TotalPop18To34_SelfCareDisability"},"TotalPop35To64_SelfCareDisability",{"$f":"\"MOE \"&CJ111","v":"MOE TotalPop35To64_SelfCareDisability"},"TotalPop65To74_SelfCareDisability",{"$f":"\"MOE \"&CL111","v":"MOE TotalPop65To74_SelfCareDisability"},"TotalPop75andOlder_SelfCareDisability",{"$f":"\"MOE \"&CN111","v":"MOE TotalPop75andOlder_SelfCareDisability"},"TotalPop18To34_IndependantLivingDisability",{"$f":"\"MOE \"&CP111","v":"MOE TotalPop18To34_IndependantLivingDisability"},"TotalPop35To64_IndependantLivingDisability",{"$f":"\"MOE \"&CR111","v":"MOE TotalPop35To64_IndependantLivingDisability"},"TotalPop65To74_IndependantLivingDisability",{"$f":"\"MOE \"&CT111","v":"MOE TotalPop65To74_IndependantLivingDisability"},"TotalPop75andOlder_IndependantLivingDisability",{"$f":"\"MOE \"&CV111","v":"MOE TotalPop75andOlder_IndependantLivingDisability"},"TotalUnder5_HearingorVisionDisability",{"$f":"\"MOE \"&CX111","v":"MOE TotalUnder5_HearingorVisionDisability"},"TotalUnder5_HearingandVisionDisability",{"$f":"\"MOE \"&CZ111","v":"MOE TotalUnder5_HearingandVisionDisability"},"5to17YearWIthOneDisability",{"$f":"\"MOE \"&DB111","v":"MOE 5to17YearWIthOneDisability"},"5to17YearWIthTwoOrMoreDisability",{"$f":"\"MOE \"&DD111","v":"MOE 5to17YearWIthTwoOrMoreDisability"},"18to34YearWIthOneDisability",{"$f":"\"MOE \"&DF111","v":"MOE 18to34YearWIthOneDisability"},"18to34YearWIthTwoOrMoreDisability",{"$f":"\"MOE \"&DH111","v":"MOE 18to34YearWIthTwoOrMoreDisability"},"35to64YearWIthOneDisability",{"$f":"\"MOE \"&DJ111","v":"MOE 35to64YearWIthOneDisability"},"35to64YearWIthTwoOrMoreDisability",{"$f":"\"MOE \"&DL111","v":"MOE 35to64YearWIthTwoOrMoreDisability"},"65to74YearWIthOneDisability",{"$f":"\"MOE \"&DN111","v":"MOE 65to74YearWIthOneDisability"},"65to74YearWIthTwoOrMoreDisability",{"$f":"\"MOE \"&DP111","v":"MOE 65to74YearWIthTwoOrMoreDisability"},"75AndOlderWIthOneDisability",{"$f":"\"MOE \"&DR111","v":"MOE 75AndOlderWIthOneDisability"},"75AndOlderWIthTwoOrMoreDisability",{"$f":"\"MOE \"&DT111","v":"MOE 75AndOlderWIthTwoOrMoreDisability"}]
[{"$f":"VLOOKUP(DropDownList!$B$47,CntyQryCensus!$A$510:$DA$522,A$1)","v":"Rochester"},32186,108,1410,272.00183822908258,63,80.006249755878443,1347,261.74797038372617,4962,520.18554382066407,268,109.20164833920778,4694,512.86742926413251,6395,564.10016840983121,906,276.94223224347706,5489,579.24951445814781,13543,587.29975310738894,2410,349.54255821001254,11133,590.52942348370755,3598,376.70280062670093,938,311.58947350640716,2660,361.76373505369497,2278,327.70260908329675,1178,265.50517885721177,1100,284.44507378402602,0,16.970562748477139,0,16.970562748477139,0,16.970562748477139,21,20,8,10.63014581273465,106,84.504437753291981,63,80.006249755878443,0,35.355339059327378,184,132.09844813622905,339,150.41608956491322,200,181.20154524727431,282,177.77513886930311,102,70.213958726167832,424,146.47866738880444,894,231.63117234085743,200,133.01503674397117,200,112.27199116431488,7,24.186773244895647,160,120.3536455617361,1368,264.66015944981217,491,167.09278859364338,548,150.81445554057476,105,73.389372527635089,5,27.313000567495326,539,176.9547964876906,162,176.36609651517495,298,177.15812146215595,441,209.74746720759228,876,222.49719099350446,201,180.2692430782356,673,229.10696191953662,205,115,126,78,1726,317,1590,366,912,261,1204,291]
[]
["Househould Income By Age"]
["NAME","TotalHouseholds",{"$f":"\"MOE \"&B115","v":"MOE TotalHouseholds"},"HHInc<10K",{"$f":"\"MOE \"&D115","v":"MOE HHInc<10K"},"HHInc10to15K",{"$f":"\"MOE \"&F115","v":"MOE HHInc10to15K"},"HHInc15to20K",{"$f":"\"MOE \"&H115","v":"MOE HHInc15to20K"},"HHInc20to25K",{"$f":"\"MOE \"&J115","v":"MOE HHInc20to25K"},"HHInc25to30K",{"$f":"\"MOE \"&L115","v":"MOE HHInc25to30K"},"HHInc30to35K",{"$f":"\"MOE \"&N115","v":"MOE HHInc30to35K"},"HHInc35to40K",{"$f":"\"MOE \"&P115","v":"MOE HHInc35to40K"},"HHInc40to45K",{"$f":"\"MOE \"&R115","v":"MOE HHInc40to45K"},"HHInc45to50K",{"$f":"\"MOE \"&T115","v":"MOE HHInc45to50K"},"HHInc50to60K",{"$f":"\"MOE \"&V115","v":"MOE HHInc50to60K"},"HHInc60to75K",{"$f":"\"MOE \"&X115","v":"MOE HHInc60to75K"},"HHInc75to100K",{"$f":"\"MOE \"&Z115","v":"MOE HHInc75to100K"},"HHInc100to125K",{"$f":"\"MOE \"&AB115","v":"MOE HHInc100to125K"},"HHInc125to150K",{"$f":"\"MOE \"&AD115","v":"MOE HHInc125to150K"},"HHInc150to200K",{"$f":"\"MOE \"&AF115","v":"MOE HHInc150to200K"},"HHInc>200K",{"$f":"\"MOE \"&AH115","v":"MOE HHInc>200K"},"TotalHH",{"$f":"\"MOE \"&AJ115","v":"MOE TotalHH"},"HHAgeHHUnder25yrs",{"$f":"\"MOE \"&AL115","v":"MOE HHAgeHHUnder25yrs"},"HHAgeHH<25HHInc<10K",{"$f":"\"MOE \"&AN115","v":"MOE HHAgeHH<25HHInc<10K"},"HHAgeHH<25HHInc10to15K",{"$f":"\"MOE \"&AP115","v":"MOE HHAgeHH<25HHInc10to15K"},"HHAgeHH<25HHInc15to20K",{"$f":"\"MOE \"&AR115","v":"MOE HHAgeHH<25HHInc15to20K"},"HHAgeHH<25HHInc20to25K",{"$f":"\"MOE \"&AT115","v":"MOE HHAgeHH<25HHInc20to25K"},"HHAgeHH<25HHInc25to30K",{"$f":"\"MOE \"&AV115","v":"MOE HHAgeHH<25HHInc25to30K"},"HHAgeHH<25HHInc30to35K",{"$f":"\"MOE \"&AX115","v":"MOE HHAgeHH<25HHInc30to35K"},"HHAgeHH<25HHInc35to40K",{"$f":"\"MOE \"&AZ115","v":"MOE HHAgeHH<25HHInc35to40K"},"HHAgeHH<25HHInc40to45K",{"$f":"\"MOE \"&BB115","v":"MOE HHAgeHH<25HHInc40to45K"},"HHAgeHH<25HHInc45to50K",{"$f":"\"MOE \"&BD115","v":"MOE HHAgeHH<25HHInc45to50K"},"HHAgeHH<25HHInc50to60K",{"$f":"\"MOE \"&BF115","v":"MOE HHAgeHH<25HHInc50to60K"},"HHAgeHH<25HHInc60to75K",{"$f":"\"MOE \"&BH115","v":"MOE HHAgeHH<25HHInc60to75K"},"HHAgeHH<25HHInc75to100K",{"$f":"\"MOE \"&BJ115","v":"MOE HHAgeHH<25HHInc75to100K"},"HHAgeHH<25HHInc100to125K",{"$f":"\"MOE \"&BL115","v":"MOE HHAgeHH<25HHInc100to125K"},"HHAgeHH<25HHInc125to150K",{"$f":"\"MOE \"&BN115","v":"MOE HHAgeHH<25HHInc125to150K"},"HHAgeHH<25HHInc150to200K",{"$f":"\"MOE \"&BP115","v":"MOE HHAgeHH<25HHInc150to200K"},"HHAge<25HHInc>200K",{"$f":"\"MOE \"&BR115","v":"MOE HHAge<25HHInc>200K"},"HHAgeHH25to44yrs",{"$f":"\"MOE \"&BT115","v":"MOE HHAgeHH25to44yrs"},"HHAgeHH25To44yrsHHInc<10K",{"$f":"\"MOE \"&BV115","v":"MOE HHAgeHH25To44yrsHHInc<10K"},"HHAgeHH25To44yrsHHInc10to15K",{"$f":"\"MOE \"&BX115","v":"MOE HHAgeHH25To44yrsHHInc10to15K"},"HHAgeHH25To44yrsHHInc15to20K",{"$f":"\"MOE \"&BZ115","v":"MOE HHAgeHH25To44yrsHHInc15to20K"},"HHAgeHH25To44yrsHHInc20to25K",{"$f":"\"MOE \"&CB115","v":"MOE HHAgeHH25To44yrsHHInc20to25K"},"HHAgeHH25To44yrsHHInc25to30K",{"$f":"\"MOE \"&CD115","v":"MOE HHAgeHH25To44yrsHHInc25to30K"},"HHAgeHH25To44yrsHHInc30to35K",{"$f":"\"MOE \"&CF115","v":"MOE HHAgeHH25To44yrsHHInc30to35K"},"HHAgeHH25To44yrsHHInc35to40K",{"$f":"\"MOE \"&CH115","v":"MOE HHAgeHH25To44yrsHHInc35to40K"},"HHAgeHH25To44yrsHHInc40to45K",{"$f":"\"MOE \"&CJ115","v":"MOE HHAgeHH25To44yrsHHInc40to45K"},"HHAgeHH25To44yrsHHInc45to50K",{"$f":"\"MOE \"&CL115","v":"MOE HHAgeHH25To44yrsHHInc45to50K"},"HHAgeHH25To44yrsHHInc50to60K",{"$f":"\"MOE \"&CN115","v":"MOE HHAgeHH25To44yrsHHInc50to60K"},"HHAgeHH25To44yrsHHInc60to75K",{"$f":"\"MOE \"&CP115","v":"MOE HHAgeHH25To44yrsHHInc60to75K"},"HHAgeHH25To44yrsHHInc75to100K",{"$f":"\"MOE \"&CR115","v":"MOE HHAgeHH25To44yrsHHInc75to100K"},"HHAgeHH25To44yrsHHInc100to125K",{"$f":"\"MOE \"&CT115","v":"MOE HHAgeHH25To44yrsHHInc100to125K"},"HHAgeHH25To44yrsHHInc125to150K",{"$f":"\"MOE \"&CV115","v":"MOE HHAgeHH25To44yrsHHInc125to150K"},"HHAgeHH25To44yrsHHInc150to200K",{"$f":"\"MOE \"&CX115","v":"MOE HHAgeHH25To44yrsHHInc150to200K"},"HHAge25To44yrsHHInc>200K",{"$f":"\"MOE \"&CZ115","v":"MOE HHAge25To44yrsHHInc>200K"},"HHAgeHH45To64yrs",{"$f":"\"MOE \"&DB115","v":"MOE HHAgeHH45To64yrs"},"HHAgeHH45To64yrsHHInc<10K",{"$f":"\"MOE \"&DD115","v":"MOE HHAgeHH45To64yrsHHInc<10K"},"HHAgeHH45To64yrsHHInc10to15K",{"$f":"\"MOE \"&DF115","v":"MOE HHAgeHH45To64yrsHHInc10to15K"},"HHAgeHH45To64yrsHHInc15to20K",{"$f":"\"MOE \"&DH115","v":"MOE HHAgeHH45To64yrsHHInc15to20K"},"HHAgeHH45To64yrsHHInc20to25K",{"$f":"\"MOE \"&DJ115","v":"MOE HHAgeHH45To64yrsHHInc20to25K"},"HHAgeHH45To64yrsHHInc25to30K",{"$f":"\"MOE \"&DL115","v":"MOE HHAgeHH45To64yrsHHInc25to30K"},"HHAgeHH45To64yrsHHInc30to35K",{"$f":"\"MOE \"&DN115","v":"MOE HHAgeHH45To64yrsHHInc30to35K"},"HHAgeHH45To64yrsHHInc35to40K",{"$f":"\"MOE \"&DP115","v":"MOE HHAgeHH45To64yrsHHInc35to40K"},"HHAgeHH45To64yrsHHInc40to45K",{"$f":"\"MOE \"&DR115","v":"MOE HHAgeHH45To64yrsHHInc40to45K"},"HHAgeHH45To64yrsHHInc45to50K",{"$f":"\"MOE \"&DT115","v":"MOE HHAgeHH45To64yrsHHInc45to50K"},"HHAgeHH45To64yrsHHInc50to60K",{"$f":"\"MOE \"&DV115","v":"MOE HHAgeHH45To64yrsHHInc50to60K"},"HHAgeHH45To64yrsHHInc60to75K",{"$f":"\"MOE \"&DX115","v":"MOE HHAgeHH45To64yrsHHInc60to75K"},"HHAgeHH45To64yrsHHInc75to100K",{"$f":"\"MOE \"&DZ115","v":"MOE HHAgeHH45To64yrsHHInc75to100K"},"HHAgeHH45To64yrsHHInc100to125K",{"$f":"\"MOE \"&EB115","v":"MOE HHAgeHH45To64yrsHHInc100to125K"},"HHAgeHH45To64yrsHHInc125to150K",{"$f":"\"MOE \"&ED115","v":"MOE HHAgeHH45To64yrsHHInc125to150K"},"HHAgeHH45To64yrsHHInc150to200K",{"$f":"\"MOE \"&EF115","v":"MOE HHAgeHH45To64yrsHHInc150to200K"},"HHAge45To64yrsHHInc>200K",{"$f":"\"MOE \"&EH115","v":"MOE HHAge45To64yrsHHInc>200K"},"HHAgeHH65yrsorOlder",{"$f":"\"MOE \"&EJ115","v":"MOE HHAgeHH65yrsorOlder"},"HHAgeHH65yrsorOlderHHInc<10K",{"$f":"\"MOE \"&EL115","v":"MOE HHAgeHH65yrsorOlderHHInc<10K"},"HHAgeHH65yrsorOlderHHInc10to15K",{"$f":"\"MOE \"&EN115","v":"MOE HHAgeHH65yrsorOlderHHInc10to15K"},"HHAgeHH65yrsorOlderHHInc15to20K",{"$f":"\"MOE \"&EP115","v":"MOE HHAgeHH65yrsorOlderHHInc15to20K"},"HHAgeHH65yrsorOlderHHInc20to25K",{"$f":"\"MOE \"&ER115","v":"MOE HHAgeHH65yrsorOlderHHInc20to25K"},"HHAgeHH65yrsorOlderHHInc25to30K",{"$f":"\"MOE \"&ET115","v":"MOE HHAgeHH65yrsorOlderHHInc25to30K"},"HHAgeHH65yrsorOlderHHInc30to35K",{"$f":"\"MOE \"&EV115","v":"MOE HHAgeHH65yrsorOlderHHInc30to35K"},"HHAgeHH65yrsorOlderHHInc35to40K",{"$f":"\"MOE \"&EX115","v":"MOE HHAgeHH65yrsorOlderHHInc35to40K"},"HHAgeHH65yrsorOlderHHInc40to45K",{"$f":"\"MOE \"&EZ115","v":"MOE HHAgeHH65yrsorOlderHHInc40to45K"},"HHAgeHH65yrsorOlderHHInc45to50K",{"$f":"\"MOE \"&FB115","v":"MOE HHAgeHH65yrsorOlderHHInc45to50K"},"HHAgeHH65yrsorOlderHHInc50to60K",{"$f":"\"MOE \"&FD115","v":"MOE HHAgeHH65yrsorOlderHHInc50to60K"},"HHAgeHH65yrsorOlderHHInc60to75K",{"$f":"\"MOE \"&FF115","v":"MOE HHAgeHH65yrsorOlderHHInc60to75K"},"HHAgeHH65yrsorOlderHHInc75to100K",{"$f":"\"MOE \"&FH115","v":"MOE HHAgeHH65yrsorOlderHHInc75to100K"},"HHAgeHH65yrsorOlderHHInc100to125K",{"$f":"\"MOE \"&FJ115","v":"MOE HHAgeHH65yrsorOlderHHInc100to125K"},"HHAgeHH65yrsorOlderHHInc125to150K",{"$f":"\"MOE \"&FL115","v":"MOE HHAgeHH65yrsorOlderHHInc125to150K"},"HHAgeHH65yrsorOlderHHInc150to200K",{"$f":"\"MOE \"&FN115","v":"MOE HHAgeHH65yrsorOlderHHInc150to200K"},"HHAge65yrsorOlderHHInc>200K",{"$f":"\"MOE \"&FP115","v":"MOE HHAge65yrsorOlderHHInc>200K"},"MedianHHInc",{"$f":"\"MOE \"&FR115","v":"MOE MedianHHInc"},"HH under 25 years",{"$f":"\"MOE \"&FT115","v":"MOE HH under 25 years"},"Householder 25 to 44 years",{"$f":"\"MOE \"&FV115","v":"MOE Householder 25 to 44 years"},"Householder 45 to 64 years",{"$f":"\"MOE \"&FX115","v":"MOE Householder 45 to 64 years"},"Householder 65 years and over",{"$f":"\"MOE \"&FZ115","v":"MOE Householder 65 years and over"}]
[{"$f":"VLOOKUP(DropDownList!$B$47,CntyQryCensus!$A$510:$DA$522,A$1)","v":"Rochester"},13542,419,431,173,692,285,524,180,550,150,572,189,580,251,413,152,397,232,454,169,889,236,1279,211,1982,362,1586,227,1066,274,1185,288,942,215,13542,419,523,261,0,25,0,25,102,133,0,25,42,52,0,25,0,25,0,25,0,25,46,68,71,68,169,153,52,65,34,43,7,12,0,25,3721,332,95,87,144,93,39,51,61,49,90,73,77,72,159,98,71,88,129,115,242,108,386,134,680,248,607,162,372,173,330,111,239,135,5273,402,100,82,136,85,115,57,245,118,200,113,125,82,89,60,159,162,136,88,232,114,579,193,554,160,689,154,523,190,740,240,651,180,4025,398,236,126,412,235,268,128,244,104,240,87,378,254,165,75,167,128,189,95,369,162,243,100,579,210,238,94,137,117,108,62,52,52,74882,5100,77521,14008,83730,10733,98139,16293,41316,8233,1404,301.14448359549937,1576,302.69456552769492,1934,291.73104051506073,2575,287.70297183032363,1736,234,1271,194.164878389476,518,141,95,56]
[]
["Number of Households by Income"]
["NAME","HHIncLessThn10k",{"$f":"\"MOE \"&B119","v":"MOE HHIncLessThn10k"},"HHInc10to15K",{"$f":"\"MOE \"&D119","v":"MOE HHInc10to15K"},"HHInc15to25K",{"$f":"\"MOE \"&F119","v":"MOE HHInc15to25K"},"HHInc25to35K",{"$f":"\"MOE \"&H119","v":"MOE HHInc25to35K"},"HHInc35to50K",{"$f":"\"MOE \"&J119","v":"MOE HHInc35to50K"},"HHInc50to75K",{"$f":"\"MOE \"&L119","v":"MOE HHInc50to75K"},"HHInc75to100K",{"$f":"\"MOE \"&N119","v":"MOE HHInc75to100K"},"HHInc100to150K",{"$f":"\"MOE \"&P119","v":"MOE HHInc100to150K"},"HHInc150to200K",{"$f":"\"MOE \"&R119","v":"MOE HHInc150to200K"},"HHIncOver200K",{"$f":"\"MOE \"&T119","v":"MOE HHIncOver200K"}]
[{"$f":"VLOOKUP(DropDownList!$B$47,CntyQryCensus!$A$510:$DA$522,A$1)","v":"Rochester"},431,173,692,285,1074,234.30749027719963,1152,314.20057288299142,1264,324.79070183735246,2168,316.57068720903391,1982,362,2652,355.81596366661233,1185,288,942,215,533,149,637,143,397,109,163,71,186,95,27,25,null,null,null,null,null,null,null,null,null,null,null,null,null,null,null,null,null,null,null,null,null,null,null,null,null,null,null,null,null,null,null,null,null,null,null,null,null,null,null,null,null,40,80,51,13,20,12,19,104,88,115,65,276,90,254,107,166,59,152,59,206,97,79,43,null,null,null,null,null,null,null,null,null,null,null,null,null,null,"Lee",null,"Esitimate","Margin Of Error",1774,134,null,null,83,74,28,43,92,104.58011283222064,43,49.244289008980523,174,91.586025134842487,256,114.63420083029322,271,92,490,193.9922678871506,225,98,112,70]
[]
[]
["NAME","TotalPop",{"$f":"\"MOE \"&B123","v":"MOE TotalPop"},"Total Individuals living in Poverty",{"$f":"\"MOE \"&D123","v":"MOE Total Individuals living in Poverty"},"Under 5 yrs.",{"$f":"\"MOE \"&F123","v":"MOE Under 5 yrs."},"5 to 17 yrs.",{"$f":"\"MOE \"&H123","v":"MOE 5 to 17 yrs."},"18 to 64 yrs.",{"$f":"\"MOE \"&J123","v":"MOE 18 to 64 yrs."},"65 to 74 yrs.",{"$f":"\"MOE \"&L123","v":"MOE 65 to 74 yrs."},"75 yrs. & Over",{"$f":"\"MOE \"&N123","v":"MOE 75 yrs. & Over"},"Total Individuals  Not living Poverty",{"$f":"\"MOE \"&P123","v":"MOE Total Individuals  Not living Poverty"},"Under 5 yrs.",{"$f":"\"MOE \"&R123","v":"MOE Under 5 yrs."},"5 to 17 yrs.",{"$f":"\"MOE \"&T123","v":"MOE 5 to 17 yrs."},"18 to 64 yrs.",{"$f":"\"MOE \"&V123","v":"MOE 18 to 64 yrs."},"65 to 74 yrs.",{"$f":"\"MOE \"&X123","v":"MOE 65 to 74 yrs."},"75 yrs. & Over",{"$f":"\"MOE \"&Z123","v":"MOE 75 yrs. & Over"},"Total HH",{"$f":"\"MOE \"&AB123","v":"MOE Total HH"},"Total Households Below Poverty",{"$f":"\"MOE \"&AD123","v":"MOE Total Households Below Poverty"},"Family Households in Poverty",{"$f":"\"MOE \"&AF123","v":"MOE Family Households in Poverty"},"Married Couple Fam HH",{"$f":"\"MOE \"&AH123","v":"MOE Married Couple Fam HH"},"Other Family",{"$f":"\"MOE \"&AJ123","v":"MOE Other Family"},"Male Head of Family HH no wife",{"$f":"\"MOE \"&AL123","v":"MOE Male Head of Family HH no wife"},"Female Head of Family HH no husband",{"$f":"\"MOE \"&AN123","v":"MOE Female Head of Family HH no husband"},"Non-Family HH",{"$f":"\"MOE \"&AP123","v":"MOE Non-Family HH"},"Non-Family Male HH",{"$f":"\"MOE \"&AR123","v":"MOE Non-Family Male HH"},"Non-Family Female HH",{"$f":"\"MOE \"&AT123","v":"MOE Non-Family Female HH"},"Total Households at or Above Poverty",{"$f":"\"MOE \"&AV123","v":"MOE Total Households at or Above Poverty"},"Family Households above Poverty",{"$f":"\"MOE \"&AX123","v":"MOE Family Households above Poverty"},"Married Couple Fam HH",{"$f":"\"MOE \"&AZ123","v":"MOE Married Couple Fam HH"},"Other Family",{"$f":"\"MOE \"&BB123","v":"MOE Other Family"},"Male Head of Family HH no wife",{"$f":"\"MOE \"&BD123","v":"MOE Male Head of Family HH no wife"},"Female Head of Family HH no husband",{"$f":"\"MOE \"&BF123","v":"MOE Female Head of Family HH no husband"},"Non-Family HH",{"$f":"\"MOE \"&BH123","v":"MOE Non-Family HH"},"Non-Family Male HH",{"$f":"\"MOE \"&BJ123","v":"MOE Non-Family Male HH"},"Non-Family Female HH",{"$f":"\"MOE \"&BL123","v":"MOE Non-Family Female HH"},"Married Couple with Children Below Poverty",{"$f":"\"MOE \"&BN123","v":"MOE Married Couple with Children Below Poverty"},"Male HH with children below poverty",{"$f":"\"MOE \"&BP123","v":"MOE Male HH with children below poverty"},"Female HH with children below poverty",{"$f":"\"MOE \"&BR123","v":"MOE Female HH with children below poverty"},"Married Couple with Children At or Above Poverty",{"$f":"\"MOE \"&BT123","v":"MOE Married Couple with Children At or Above Poverty"},"Male HH with children at or above poverty",{"$f":"\"MOE \"&BV123","v":"MOE Male HH with children at or above poverty"},"Female HH with children at or above poverty",{"$f":"\"MOE \"&BX123","v":"MOE Female HH with children at or above poverty"}]
[{"$f":"VLOOKUP(DropDownList!$B$47,CntyQryCensus!$A$510:$DA$522,A$1)","v":"Rochester"},31710,254,2958,660,158,139.60659010233005,518,177.92695130305583,1693,354.43899334017976,327,208.5976989326584,262,156.01602481796542,28752,682,1183,234.29255216502295,4332,518.13415251264803,18347,935.71309705486112,3001,361.69738732813653,1889,300.42137074449283,13471,518,1466,339,530,183,207,111,323,137,118,77,205,113,936,314,304,190,632,264,12005,512,7946,417,6175,444,1771,342,665,212,1106,273,4059,524,2005,340,2054,417,140,104,90,71,188,108,2046,296,336,145,718,224]
[]
["Household Income By Tenure"]
["NAME","TotalOccHU",{"$f":"\"MOE \"&B127","v":"MOE TotalOccHU"},"OwnOccHU",{"$f":"\"MOE \"&D127","v":"MOE OwnOccHU"},"OOHUInc<5K",{"$f":"\"MOE \"&F127","v":"MOE OOHUInc<5K"},"OOHUInc5to10K",{"$f":"\"MOE \"&H127","v":"MOE OOHUInc5to10K"},"OOHUInc10to15K",{"$f":"\"MOE \"&J127","v":"MOE OOHUInc10to15K"},"OOHUInc15to20K",{"$f":"\"MOE \"&L127","v":"MOE OOHUInc15to20K"},"OOHUInc20to25K",{"$f":"\"MOE \"&N127","v":"MOE OOHUInc20to25K"},"OOHUInc25to35K",{"$f":"\"MOE \"&P127","v":"MOE OOHUInc25to35K"},"OOHUInc35to50K",{"$f":"\"MOE \"&R127","v":"MOE OOHUInc35to50K"},"OOHUInc50to75K",{"$f":"\"MOE \"&T127","v":"MOE OOHUInc50to75K"},"OOHUInc75to100K",{"$f":"\"MOE \"&V127","v":"MOE OOHUInc75to100K"},"OOHUInc100to150K",{"$f":"\"MOE \"&X127","v":"MOE OOHUInc100to150K"},"OOHUInc>150K",{"$f":"\"MOE \"&Z127","v":"MOE OOHUInc>150K"},"RentOccHU",{"$f":"\"MOE \"&AB127","v":"MOE RentOccHU"},"ROHUInc<5K",{"$f":"\"MOE \"&AD127","v":"MOE ROHUInc<5K"},"ROHUInc5to10K",{"$f":"\"MOE \"&AF127","v":"MOE ROHUInc5to10K"},"ROHUInc10to15K",{"$f":"\"MOE \"&AH127","v":"MOE ROHUInc10to15K"},"ROHUInc15to20K",{"$f":"\"MOE \"&AJ127","v":"MOE ROHUInc15to20K"},"ROHUInc20to25K",{"$f":"\"MOE \"&AL127","v":"MOE ROHUInc20to25K"},"ROHUInc25to35K",{"$f":"\"MOE \"&AN127","v":"MOE ROHUInc25to35K"},"ROHUInc35to50K",{"$f":"\"MOE \"&AP127","v":"MOE ROHUInc35to50K"},"ROHUInc50to75K",{"$f":"\"MOE \"&AR127","v":"MOE ROHUInc50to75K"},"ROHUInc75to100K",{"$f":"\"MOE \"&AT127","v":"MOE ROHUInc75to100K"},"ROHUInc100to150K",{"$f":"\"MOE \"&AV127","v":"MOE ROHUInc100to150K"},"ROHUInc>150K",{"$f":"\"MOE \"&AX127","v":"MOE ROHUInc>150K"},"Total OCC HUInc<5K",{"$f":"\"MOE \"&AZ127","v":"MOE Total OCC HUInc<5K"},"Total OCC HUInc5to10K",{"$f":"\"MOE \"&BB127","v":"MOE Total OCC HUInc5to10K"},"Total OCC HUInc10to15K",{"$f":"\"MOE \"&BD127","v":"MOE Total OCC HUInc10to15K"},"Total OCC HUInc15to20K",{"$f":"\"MOE \"&BF127","v":"MOE Total OCC HUInc15to20K"},"Total OCC HUInc20to25K",{"$f":"\"MOE \"&BH127","v":"MOE Total OCC HUInc20to25K"},"Total OCC HUInc25to35K",{"$f":"\"MOE \"&BJ127","v":"MOE Total OCC HUInc25to35K"},"Total OCC HUInc35to50K",{"$f":"\"MOE \"&BL127","v":"MOE Total OCC HUInc35to50K"},"Total OCC HUInc50to75K",{"$f":"\"MOE \"&BN127","v":"MOE Total OCC HUInc50to75K"},"Total OCC HUInc75to100K",{"$f":"\"MOE \"&BP127","v":"MOE Total OCC HUInc75to100K"},"Total OCC HUInc100to150K",{"$f":"\"MOE \"&BR127","v":"MOE Total OCC HUInc100to150K"},"Total OCC HUInc>150K",{"$f":"\"MOE \"&BT127","v":"MOE Total OCC HUInc>150K"},"MedHHInc",{"$f":"\"MOE \"&BV127","v":"MOE MedHHInc"},"MedOwnOccHHInc",{"$f":"\"MOE \"&BX127","v":"MOE MedOwnOccHHInc"},"MedRentOccHHInc",{"$f":"\"MOE \"&BZ127","v":"MOE MedRentOccHHInc"}]
[{"$f":"VLOOKUP(DropDownList!$B$47,CntyQryCensus!$A$510:$DA$522,A$1)","v":"Rochester"},13542,419,8933,466,96,59,35,35,293,157,186,81,265,96,625,203,798,218,1259,245,1474,307,2152,318,1750,317,4609,426,160,111,140,97,399,230,338,174,285,110,527,276,466,227,909,234,508,186,500,180,377,177,256,125.70600622086441,175,103.12128781197411,692,278.47621083316972,524,191.92967462067975,550,146,1152,342.61494421580619,1264,314.7268657105713,2168,338.7934473982636,1982,358.94985722242598,2652,365.40935948604272,2127,363.06748683956818,74882,5100,86956,11532,49680,9616]
[]
["Population Data"]
["NAME","Total Population","MOE Total Population","Under 15 Years","MOE Under 15 yrs.","15 to 24 yrs.","MOE 15 to 24 yrs.","25 to 34 yrs.","MOE 25 to 34 yrs.","35 to 44 yrs.","MOE 35 to 44 yrs.","45 to 54 yrs.","MOE 45 to 54 yrs.","55 to 64 yrs.","MOE 55 to 64 yrs.","65 to 74 yrs.","MOE 65 to 74 yrs.","Over 74 yrs. ","MOE Over 74 yrs. ","TotalHH","MOE TotalHH","FamilyHH","MOE FamilyHH","MarriedFamilyHH","MOE MarriedFamilyHH","SingleFamilyHH","MOE SingleFamilyHH","Sfamily-MaleHH","MOE Sfamily-MaleHH","Sfamily-FemaleHH","MOE Sfamily-FemaleHH","NonFamilyHH","MOE NonFamilyHH","NonFamilyHH-LivingAlone","MOE NonFamilyHH-LivingAlone","NonFamilyHH-NotLivingAlone","MOE NonFamilyHH-NotLivingAlone","PopRaceWhite","MOE PopRaceWhite","PopRaceBlack","MOE PopRaceBlack","PopRaceAmerican Indian","MOE PopRaceAmerican Indian","PopRaceAsian &Pacific Is.","MOE PopRaceAsian &Pacific Is.","PopRaceOther*","MOE PopRaceOther*","PopRaceHispanic or Latino:","MOE PopRaceHispanic or Latino:","MedianAgeTotalPop","MOE MedianAgeTotalPop","MedianAgeMale","MOE MedianAgeMale","MedianAgeFemale","MOE MedianAgeFemale","AvgHHSizeTotal","MOE AvgHHSizeTotal","AvgHHSizeFamilyHH","MOE AvgHHSizeFamilyHH","AvgHHSizeNonFamilyHH","MOE AvgHHSizeNonFamilyHH"]
[{"$f":"VLOOKUP(DropDownList!$B$47,CntyQryCensus!$A$510:$DA$522,A$1)","v":"Rochester"},32317,37,5379,581.30714772829003,4073,538.97866377065429,3883,458.90630852059553,4020,491.35628621195031,4322,461.1594084478815,5019,503.87696911051609,3380,476.86266366743371,2241,377.96031537715703,13471,518,8476,397,6382,444,2094,330,783,206,1311,269,4995,617,3890,578,1105,269,29393,540,324,194,4,8,713,353.47560028946833,1059,294.06461874900896,824,263,42.6,1.8,39.5,3,44.8,2.4,2.3851978323806695,9.2042299123706886E-2,3.0338603114676732,0.17184018017954392,1.2844844844844845,0.22744495571615367,null,null,null,null,null,null,null,null,null,null,null,null,null,null,null,null,null,null,null,null,null,null,null,null,null,null,null,null,null,null,null,null,null,null,null,null,null,null,null,null,null,null,null,null,29,535,534]
[]
["Nativity and Prior Place of Residence"]
["NAME","TotalPop",{"$f":"\"MOE \"&B135","v":"MOE TotalPop"},"Native:",{"$f":"\"MOE \"&D135","v":"MOE Native:"},"NatBornInStateOfResidence",{"$f":"\"MOE \"&F135","v":"MOE NatBornInStateOfResidence"},"Born in other state in the United States:",{"$f":"\"MOE \"&H135","v":"MOE Born in other state in the United States:"},"Northeast",{"$f":"\"MOE \"&J135","v":"MOE Northeast"},"Midwest",{"$f":"\"MOE \"&L135","v":"MOE Midwest"},"South",{"$f":"\"MOE \"&N135","v":"MOE South"},"West",{"$f":"\"MOE \"&P135","v":"MOE West"},"Born outside the United States:",{"$f":"\"MOE \"&R135","v":"MOE Born outside the United States:"},"Puerto Rico",{"$f":"\"MOE \"&T135","v":"MOE Puerto Rico"},"U.S. Island Areas",{"$f":"\"MOE \"&V135","v":"MOE U.S. Island Areas"},"Born abroad of American parent(s)",{"$f":"\"MOE \"&X135","v":"MOE Born abroad of American parent(s)"},"Foreign born:",{"$f":"\"MOE \"&Z135","v":"MOE Foreign born:"},"Naturalized U.S. citizen",{"$f":"\"MOE \"&AB135","v":"MOE Naturalized U.S. citizen"},"Not a U.S. citizen",{"$f":"\"MOE \"&AD135","v":"MOE Not a U.S. citizen"},"CurrentResidenceTotal:",{"$f":"\"MOE \"&AF135","v":"MOE CurrentResidenceTotal:"},"SameHouse:",{"$f":"\"MOE \"&AH135","v":"MOE SameHouse:"},"DifferentHouse:",{"$f":"\"MOE \"&AJ135","v":"MOE DifferentHouse:"},"DiffHouseInNH",{"$f":"\"MOE \"&AL135","v":"MOE DiffHouseInNH"},"DiffHouseInNHSameCnty",{"$f":"\"MOE \"&AN135","v":"MOE DiffHouseInNHSameCnty"},"DiffHouseInNHDiffCnty",{"$f":"\"MOE \"&AP135","v":"MOE DiffHouseInNHDiffCnty"},"DiffHouseInDiffState",{"$f":"\"MOE \"&AR135","v":"MOE DiffHouseInDiffState"},"DiffHouseInElsewhere",{"$f":"\"MOE \"&AT135","v":"MOE DiffHouseInElsewhere"}]
[{"$f":"VLOOKUP(DropDownList!$B$47,CntyQryCensus!$A$510:$DA$522,A$1)","v":"Rochester"},32317,37,31141,349,16444,1038,14213,1077,10569,920,794,241,1846,436,1004,265,484,227,29,32,94,94,361,201,1176,341,634,269,542,276,32155,96,29240,645,2915,636.06682038917893,2022,509.83624822093611,1534,363,488,358,854,378,39,42]
[]
["School Enrollment - Education"]
["NAME","Total Pop 3 Years and Older","MOE Total Pop 3 Years and Older","SchEnrlPop3yrOver",{"$f":"\"MOE \"&D139","v":"MOE SchEnrlPop3yrOver"},"TotalEnrollNursy&Kinder",{"$f":"\"MOE \"&F139","v":"MOE TotalEnrollNursy&Kinder"},"NurserSchEnrl",{"$f":"\"MOE \"&H139","v":"MOE NurserSchEnrl"},"KinderSchEnrl",{"$f":"\"MOE \"&J139","v":"MOE KinderSchEnrl"},"ElemSchEnrl (1-8)",{"$f":"\"MOE \"&L139","v":"MOE ElemSchEnrl (1-8)"},"HighSchEnrl(9-12)",{"$f":"\"MOE \"&N139","v":"MOE HighSchEnrl(9-12)"},"TotalElementry&HSEnroll",{"$f":"\"MOE \"&P139","v":"MOE TotalElementry&HSEnroll"},"CollGradSchEnrl",{"$f":"\"MOE \"&R139","v":"MOE CollGradSchEnrl"},"PopNotEnrolled","MOE PopNotEnrolled","Pop25yrsOver",{"$f":"\"MOE \"&V139","v":"MOE Pop25yrsOver"},"EduAtain<9grd",{"$f":"\"MOE \"&X139","v":"MOE EduAtain<9grd"},"EduAtainHSnoDip",{"$f":"\"MOE \"&Z139","v":"MOE EduAtainHSnoDip"},"EduAtainHSgrad",{"$f":"\"MOE \"&AB139","v":"MOE EduAtainHSgrad"},"EduAtainCollNoDeg",{"$f":"\"MOE \"&AD139","v":"MOE EduAtainCollNoDeg"},"EduAtainAssocDeg",{"$f":"\"MOE \"&AF139","v":"MOE EduAtainAssocDeg"},"EduAtainBachDeg",{"$f":"\"MOE \"&AH139","v":"MOE EduAtainBachDeg"},"EduAtainGradProfDeg",{"$f":"\"MOE \"&AJ139","v":"MOE EduAtainGradProfDeg"}]
[{"$f":"VLOOKUP(DropDownList!$B$47,CntyQryCensus!$A$510:$DA$522,A$1)","v":"Rochester"},31737,163,7488,685,995,253.14817795117546,61,27,11,13,3127,453.80282061706049,1584,258,4711,522.01628327093397,1782,331.82073473488663,24249,668,22865,609,553,253.40876070096709,991,229.23132421202823,7909,689.42947427565059,4779,567.75875158380427,2796,431.29224430773155,4055,474.60509900337144,1519,281.43205219022229]
[]
["Occupied Owner Housing Value"]
["NAME","Estimate; Total:","Margin of Error; Total:","Estimate; Total: - Less than $10,000","Margin of Error; Total: - Less than $10,000","Estimate; Total: - $10,000 to $14,999","Margin of Error; Total: - $10,000 to $14,999","Estimate; Total: - $15,000 to $19,999","Margin of Error; Total: - $15,000 to $19,999","Estimate; Total: - $20,000 to $24,999","Margin of Error; Total: - $20,000 to $24,999","Estimate; Total: - $25,000 to $29,999","Margin of Error; Total: - $25,000 to $29,999","Estimate; Total: - $30,000 to $34,999","Margin of Error; Total: - $30,000 to $34,999","Estimate; Total: - $35,000 to $39,999","Margin of Error; Total: - $35,000 to $39,999","Estimate; Total: - $40,000 to $49,999","Margin of Error; Total: - $40,000 to $49,999","Estimate; Total: - $50,000 to $59,999","Margin of Error; Total: - $50,000 to $59,999","Estimate; Total: - $60,000 to $69,999","Margin of Error; Total: - $60,000 to $69,999","Estimate; Total: - $70,000 to $79,999","Margin of Error; Total: - $70,000 to $79,999","Estimate; Total: - $80,000 to $89,999","Margin of Error; Total: - $80,000 to $89,999","Estimate; Total: - $90,000 to $99,999","Margin of Error; Total: - $90,000 to $99,999","Estimate; Total: - $100,000 to $124,999","Margin of Error; Total: - $100,000 to $124,999","Estimate; Total: - $125,000 to $149,999","Margin of Error; Total: - $125,000 to $149,999","Estimate; Total: - $150,000 to $174,999","Margin of Error; Total: - $150,000 to $174,999","Estimate; Total: - $175,000 to $199,999","Margin of Error; Total: - $175,000 to $199,999","Estimate; Total: - $200,000 to $249,999","Margin of Error; Total: - $200,000 to $249,999","Estimate; Total: - $250,000 to $299,999","Margin of Error; Total: - $250,000 to $299,999","Estimate; Total: - $300,000 to $399,999","Margin of Error; Total: - $300,000 to $399,999","Estimate; Total: - $400,000 to $499,999","Margin of Error; Total: - $400,000 to $499,999","Estimate; Total: - $500,000 to $749,999","Margin of Error; Total: - $500,000 to $749,999","Estimate; Total: - $750,000 to $999,999","Margin of Error; Total: - $750,000 to $999,999","Estimate; Total: - $1,000,000 to $1,499,999","Margin of Error; Total: - $1,000,000 to $1,499,999","Estimate; Total: - $1,500,000 to $1,999,999","Margin of Error; Total: - $1,500,000 to $1,999,999","Estimate; Total: - $2,000,000 or more","Margin of Error; Total: - $2,000,000 or more","MedianOwnOCCHomeValue","MOE MedianOwnOCCHomeValue","OnwerOccHsU","MOE OnwerOccHsU","OwnerCosts>20PctHHInc","MOE OwnerCosts>20PctHHInc","OwnerCosts20to29.9PctHHInc","MOE OwnerCosts20to29.9PctHHInc","OwnerCosts<30PctHHInc","MOE OwnerCosts<30PctHHInc","OwnerCosts>30PctHHInc","MOE OwnerCosts>30PctHHInc","OwnerCosts30to34.9PctHHInc","MOE OwnerCosts30to34.9PctHHInc","OwnerCosts<35PctHHInc","MOE OwnerCosts<35PctHHInc","OwnerCosts>35PctHHInc","MOE OwnerCosts>35PctHHInc","OwnerCosts>50PctHHInc","MOE OwnerCosts>50PctHHInc","OwnerCostsPctNotcomputed","MOE OwnerCostsPctNotcomputed","OwnerOHUHhInc<20k","MOE OwnerOHUHhInc<20k","OwnerOHUHhInc<20kHCosts<20pct","MOE OwnerOHUHhInc<20kHCosts<20pct","OwnerOHUHhInc<20kHCosts20to29pct","MOE OwnerOHUHhInc<20kHCosts20to29pct","OwnerOHUHhInc>20kHCosts30pct","MOE OwnerOHUHhInc>20kHCosts30pct","OwnerOHUHhInc20kTo34999","MOE OwnerOHUHhInc20kTo34999","OwnerOHUHhInc20kTo34999HCosts<20pct","MOE OwnerOHUHhInc20kTo34999HCosts<20pct","OwnerOHUHhInc20kTo34999HCosts20to29pct","MOE OwnerOHUHhInc20kTo34999HCosts20to29pct","OwnerOHUHhInc20kTo34999HCosts30pct","MOE OwnerOHUHhInc20kTo34999HCosts30pct","OwnerOHUHhInc35kTo49999","MOE OwnerOHUHhInc35kTo49999","OwnerOHUHhInc35kTo49999HCosts<20pct","MOE OwnerOHUHhInc35kTo49999HCosts<20pct","OwnerOHUHhInc35kTo49999HCosts20to29pct","MOE OwnerOHUHhInc35kTo49999HCosts20to29pct","OwnerOHUHhInc35kTo49999HCosts30pct","MOE OwnerOHUHhInc35kTo49999HCosts30pct","OwnerOHUHhInc50kTo74999","MOE OwnerOHUHhInc50kTo74999","OwnerOHUHhInc50kTo74999HCosts<20pct","MOE OwnerOHUHhInc50kTo74999HCosts<20pct","OwnerOHUHhInc50kTo74999HCosts20to29pct","MOE OwnerOHUHhInc50kTo74999HCosts20to29pct","OwnerOHUHhInc50kTo74999HCosts30pct","MOE OwnerOHUHhInc50kTo74999HCosts30pct","OwnerOHUHhInc>75000","MOE OwnerOHUHhInc>75000","OwnerOHUHhInc>75000HCosts<20pct","MOE OwnerOHUHhInc>75000HCosts<20pct","OwnerOHUHhInc>75000HCosts20to29pct","MOE OwnerOHUHhInc>75000HCosts20to29pct","OwnerOHUHhInc>75000HCosts30pct","MOE OwnerOHUHhInc>75000HCosts30pct","ZeroOrNegativeIncome","MOE ZeroOrNegativeIncome"]
[{"$f":"VLOOKUP(DropDownList!$B$47,CntyQryCensus!$A$510:$DA$522,A$1)","v":"Rochester"},8933,466,68,44,15,24,2,7,146,98,161,89,157,92,20,29,127,78,239,164,141,97,73,54,118,91,96,62,305,194,281,110,824,234,437,142,1634,295,1650,283,1493,253,628,186,200,92,18,20,52,53,9,18,39,43,238400,10945,8933,466,4480,512.51829235647779,1847,314.34057962662092,6327,601.23622645346313,2606,395.87498026523474,649,184.01086924418351,6976,628.76466185688264,1957,350.5096289690199,958,236.81216184985095,0,35.355339059327378,610,188,12,23,24,40,574,183,890,237,39,42,162,103,689,200,798,218,95,74,255,105,448,162,1259,245,464,170,298,118,497,166,5376,412,3870,359,1108,221,398,158,0,25,0,85,129,76,134,69,495,135,545,155,461,149,185,106,104,58,0,85,0,85,null,null,null,null,null,null,null,null,null,null,null,null,null,null,null,null,"Barrington",null,"Estimate","Margin Of Error",null,null,257800,14680]
[]
["Occupied Rental Housing Value"]
["NAME","RntrOccHU","MOE RntrOccHU","RntrOccHUwRent","MOE RntrOccHUwRent","ROHUGRent<100","MOE ROHUGRent<100","ROHUGRent100to149","MOE ROHUGRent100to149","ROHUGRent150to199","MOE ROHUGRent150to199","ROHUGRent200to249","MOE ROHUGRent200to249","ROHUGRent250to299","MOE ROHUGRent250to299","ROHUGRent300to349","MOE ROHUGRent300to349","ROHUGRent350to399","MOE ROHUGRent350to399","ROHUGRent400to449","MOE ROHUGRent400to449","ROHUGRent450to499","MOE ROHUGRent450to499","ROHUGRent500to549","MOE ROHUGRent500to549","ROHUGRent550to599","MOE ROHUGRent550to599","ROHUGRent600to649","MOE ROHUGRent600to649","ROHUGRent650to699","MOE ROHUGRent650to699","ROHUGRent700to749","MOE ROHUGRent700to749","ROHUGRent750to799","MOE ROHUGRent750to799","ROHUGRent800to899","MOE ROHUGRent800to899","ROHUGRent900to999","MOE ROHUGRent900to999","ROHUGRent1000to1249","MOE ROHUGRent1000to1249","ROHUGRent1250to1499","MOE ROHUGRent1250to1499","ROHUGRent1500to1999","MOE ROHUGRent1500to1999","ROHUGRent$2,000 to $2,499","MOE ROHUGRent$2,000 to $2,499","ROHUGRent$2,500 to $2,999","MOE ROHUGRent$2,500 to $2,999","ROHUGRent$3,000 to $3,499","MOE ROHUGRent$3,000 to $3,499","ROHUGRent$3,500 or more","MOE ROHUGRent$3,500 or more","ROHUNoGRent","MOE ROHUNoGRent","MedianGrossRnt","MOE MedianGrossRnt","H73RenterOccHU","MOE H73RenterOccHU","H73ROHUHhInc<10k","MOE H73ROHUHhInc<10k","H73ROHUHhInc<10kRnt<20pct","MOE H73ROHUHhInc<10kRnt<20pct","H73ROHUHhInc<10kRnt20to25pct","MOE H73ROHUHhInc<10kRnt20to25pct","H73ROHUHhInc<10kRnt25to30pct","MOE H73ROHUHhInc<10kRnt25to30pct","H73ROHUHhInc<10kRnt30to35pct","MOE H73ROHUHhInc<10kRnt30to35pct","H73ROHUHhInc<10kRnt35to39.9","MOE H73ROHUHhInc<10kRnt35to39.9","H73ROHUHhInc<10kRnt40to49.9","MOE H73ROHUHhInc<10kRnt40to49.9","H73ROHUHhInc<10kRnt>50pct","MOE H73ROHUHhInc<10kRnt>50pct","H73ROHUHhInc<10kPctNotComput","MOE H73ROHUHhInc<10kPctNotComput","H73ROHUHhInc10to20k","MOE H73ROHUHhInc10to20k","H73ROHUHhInc10to20kRnt<20pct","MOE H73ROHUHhInc10to20kRnt<20pct","H73ROHUHhInc10to20kRnt20to25pct","MOE H73ROHUHhInc10to20kRnt20to25pct","H73ROHUHhInc10to20kRnt25to30pct","MOE H73ROHUHhInc10to20kRnt25to30pct","H73ROHUHhInc10to20kRnt30to35pct","MOE H73ROHUHhInc10to20kRnt30to35pct","H73ROHUHhInc10to20kRnt35to39.9","MOE H73ROHUHhInc10to20kRnt35to39.9","H73ROHUHhInc10to20kRnt40to49.9","MOE H73ROHUHhInc10to20kRnt40to49.9","H73ROHUHhInc10to20kRnt>50pct","MOE H73ROHUHhInc10to20kRnt>50pct","H73ROHUHhInc10to20kRntPctNC","MOE H73ROHUHhInc10to20kRntPctNC","H73ROHUHhInc20to34.9k","MOE H73ROHUHhInc20to34.9k","H73ROHUHhInc20to34.9kRnt<20pct","MOE H73ROHUHhInc20to34.9kRnt<20pct","H73ROHUHhInc20to34.9kRnt20to25pct","MOE H73ROHUHhInc20to34.9kRnt20to25pct","H73ROHUHhInc20to34.9kRnt25to30pct","MOE H73ROHUHhInc20to34.9kRnt25to30pct","H73ROHUHhInc20to34.9kRnt30to35pct","MOE H73ROHUHhInc20to34.9kRnt30to35pct","H73ROHUHhInc20to34.9kRnt35to39.9","MOE H73ROHUHhInc20to34.9kRnt35to39.9","H73ROHUHhInc20to34.9kRnt40to49.9","MOE H73ROHUHhInc20to34.9kRnt40to49.9","H73ROHUHhInc20to34.9kRnt>50pct","MOE H73ROHUHhInc20to34.9kRnt>50pct","H73ROHUHhInc20to34.9kRntPctNC","MOE H73ROHUHhInc20to34.9kRntPctNC","H73ROHUHhInc35to49.9k","MOE H73ROHUHhInc35to49.9k","H73ROHUHhInc35to49.9kRnt<20pct","MOE H73ROHUHhInc35to49.9kRnt<20pct","H73ROHUHhInc35to49.9kRnt20to25pct","MOE H73ROHUHhInc35to49.9kRnt20to25pct","H73ROHUHhInc35to49.9kRnt25to30pct","MOE H73ROHUHhInc35to49.9kRnt25to30pct","H73ROHUHhInc35to49.9kRnt30to35pct","MOE H73ROHUHhInc35to49.9kRnt30to35pct","H73ROHUHhInc35to49.9kRnt35to39.9","MOE H73ROHUHhInc35to49.9kRnt35to39.9","H73ROHUHhInc35to49.9kRnt40to49.9","MOE H73ROHUHhInc35to49.9kRnt40to49.9","H73ROHUHhInc35to49.9kRnt>50pct","MOE H73ROHUHhInc35to49.9kRnt>50pct","H73ROHUHhInc35to49.9kRntPctNC","MOE H73ROHUHhInc35to49.9kRntPctNC","H73ROHUHhInc50to74.9k","MOE H73ROHUHhInc50to74.9k","H73ROHUHhInc50to74.9kRnt<20pct","MOE H73ROHUHhInc50to74.9kRnt<20pct","H73ROHUHhInc50to74.9kRnt20to25pct","MOE H73ROHUHhInc50to74.9kRnt20to25pct","H73ROHUHhInc50to74.9kRnt25to30pct","MOE H73ROHUHhInc50to74.9kRnt25to30pct","H73ROHUHhInc50to74.9kRnt30to35pct","MOE H73ROHUHhInc50to74.9kRnt30to35pct","H73ROHUHhInc50to74.9kRnt35to39.9","MOE H73ROHUHhInc50to74.9kRnt35to39.9","H73ROHUHhInc50to74.9kRnt40to49.9","MOE H73ROHUHhInc50to74.9kRnt40to49.9","H73ROHUHhInc50to74.9kRnt>50pct","MOE H73ROHUHhInc50to74.9kRnt>50pct","H73ROHUHhInc50to74.9kRntPctNC","MOE H73ROHUHhInc50to74.9kRntPctNC","H73ROHUHhInc75to99.9k","MOE H73ROHUHhInc75to99.9k","H73ROHUHhInc75to99.9kRnt<20pct","MOE H73ROHUHhInc75to99.9kRnt<20pct","H73ROHUHhInc75to99.9kRnt20to25pct","MOE H73ROHUHhInc75to99.9kRnt20to25pct","H73ROHUHhInc75to99.9kRnt25to30pct","MOE H73ROHUHhInc75to99.9kRnt25to30pct","H73ROHUHhInc75to99.9kRnt30to35pct","MOE H73ROHUHhInc75to99.9kRnt30to35pct","H73ROHUHhInc75to99.9kRnt35to39.9","MOE H73ROHUHhInc75to99.9kRnt35to39.9","H73ROHUHhInc75to99.9kRnt40to49.9","MOE H73ROHUHhInc75to99.9kRnt40to49.9","H73ROHUHhInc75to99.9kRnt>50pct","MOE H73ROHUHhInc75to99.9kRnt>50pct","H73ROHUHhInc75to99.9kRntPctNC","MOE H73ROHUHhInc75to99.9kRntPctNC","H73ROHUHhInc>100k","MOE H73ROHUHhInc>100k","H73ROHUHhInc>100kRnt<20pct","MOE H73ROHUHhInc>100kRnt<20pct","H73ROHUHhInc>100kRnt20to25pct","MOE H73ROHUHhInc>100kRnt20to25pct","H73ROHUHhInc>100kRnt25to30pct","MOE H73ROHUHhInc>100kRnt25to30pct","H73ROHUHhInc>100kRnt30to35pct","MOE H73ROHUHhInc>100kRnt30to35pct","H73ROHUHhInc>100kRnt35to39.9","MOE H73ROHUHhInc>100kRnt35to39.9","H73ROHUHhInc>100kRnt40to49.9","MOE H73ROHUHhInc>100kRnt40to49.9","H73ROHUHhInc>100kRnt>50pct","MOE H73ROHUHhInc>100kRnt>50pct","H73ROHUHhInc>100kRntPctNC","MOE H73ROHUHhInc>100kRntPctNC"]
[{"$f":"VLOOKUP(DropDownList!$B$47,CntyQryCensus!$A$510:$DA$522,A$1)","v":"Rochester"},4676,519,4614,514,31,46,0,25,0,25,181,183,106,89,79,53,68,67,32,30,34,26,26,32,50,49,64,63,237,220,92,98,74,66,316,133,298,156,1523,355,526,173,740,268,113,80,24,40,0,25,0,25,62,51,1102,44,4676,519,281,161,31,46,0,25,0,25,0,25,0,25,0,25,169,132,81,76,672,263,0,25,17,27,232,191,71,71,12,20,0,25,321,139,19,22,929,338,98,78,26,32,182,211,87,69,23,26,184,119,304,183,25,39,709,252,25,30,11,18,147,109,191,129,171,171,136,97,28,27,0,25,856,224,380,161,123,69,260,116,73,69,0,25,20,30,0,25,0,25,407,149,289,146,65,71,45,53,8,13,0,25,0,25,0,25,0,25,822,276,773,264,37,58,0,25,0,25,0,25,0,25,0,25,12,20,"Estimate","Margin Of Error",519,159,509,159,0,114,0,114,0,114,0,114,0,114,0,114,0,114,0,114,62,75,0,114,26,42,0,114,0,114,16,24,16,25,78,63,69,78,114,81,61,50,67,72,0,114,null,null,null,null,null,null,10,17,null,null,null,null,null,null,null,null,null,null,null,null,"Barrington",null,"Estimate","Margin Of Error",982,136]
[]
[]
[]
[]
[]
["Occupied Rental Housing Cost Burdern All Incomes"]
["NAME","RntrOccHU","MOE RntrOccHU","RntrOccHUwRent","MOE RntrOccHUwRent","ROHUGRent<100","MOE ROHUGRent<100","ROHUGRent100to149","MOE ROHUGRent100to149","ROHUGRent150to199","MOE ROHUGRent150to199","ROHUGRent200to249","MOE ROHUGRent200to249","ROHUGRent250to299","MOE ROHUGRent250to299","ROHUGRent300to349","MOE ROHUGRent300to349","ROHUGRent350to399","MOE ROHUGRent350to399","ROHUGRent400to449","MOE ROHUGRent400to449","ROHUGRent450to499","MOE ROHUGRent450to499","ROHUGRent500to549","MOE ROHUGRent500to549","ROHUGRent550to599","MOE ROHUGRent550to599","ROHUGRent600to649","MOE ROHUGRent600to649","ROHUGRent650to699","MOE ROHUGRent650to699","ROHUGRent700to749","MOE ROHUGRent700to749","ROHUGRent750to799","MOE ROHUGRent750to799","ROHUGRent800to899","MOE ROHUGRent800to899","ROHUGRent900to999","MOE ROHUGRent900to999","ROHUGRent1000to1249","MOE ROHUGRent1000to1249","ROHUGRent1250to1499","MOE ROHUGRent1250to1499","ROHUGRent1500to1999","MOE ROHUGRent1500to1999","ROHUGRent2000-2499","MOE ROHUGRent2000-2499","ROHUGRent2500-2999","MOE ROHUGRent2500-2999","ROHUGRent3000-3499","MOE ROHUGRent3000-3499","ROHUGRent3500<","MOE ROHUGRent3500<","ROHUNoGRent","MOE ROHUNoGRent","MedianGrossRnt","MOE MedianGrossRnt","H73RenterOccHU","MOE H73RenterOccHU","H73ROHUHhInc<10k","MOE H73ROHUHhInc<10k","H73ROHUHhInc<10kRnt<20pct","MOE H73ROHUHhInc<10kRnt<20pct","H73ROHUHhInc<10kRnt20to25pct","MOE H73ROHUHhInc<10kRnt20to25pct","H73ROHUHhInc<10kRnt25to30pct","MOE H73ROHUHhInc<10kRnt25to30pct","H73ROHUHhInc<10kRnt30to35pct","MOE H73ROHUHhInc<10kRnt30to35pct","H73ROHUHhInc<10kRnt35to39.9","MOE H73ROHUHhInc<10kRnt35to39.9","H73ROHUHhInc<10kRnt40to49.9","MOE H73ROHUHhInc<10kRnt40to49.9","H73ROHUHhInc<10kRnt>50pct","MOE H73ROHUHhInc<10kRnt>50pct","H73ROHUHhInc<10kPctNotComput","MOE H73ROHUHhInc<10kPctNotComput","H73ROHUHhInc10to20k","MOE H73ROHUHhInc10to20k","H73ROHUHhInc10to20kRnt<20pct","MOE H73ROHUHhInc10to20kRnt<20pct","H73ROHUHhInc10to20kRnt20to25pct","MOE H73ROHUHhInc10to20kRnt20to25pct","H73ROHUHhInc10to20kRnt25to30pct","MOE H73ROHUHhInc10to20kRnt25to30pct","H73ROHUHhInc10to20kRnt30to35pct","MOE H73ROHUHhInc10to20kRnt30to35pct","H73ROHUHhInc10to20kRnt35to39.9","MOE H73ROHUHhInc10to20kRnt35to39.9","H73ROHUHhInc10to20kRnt40to49.9","MOE H73ROHUHhInc10to20kRnt40to49.9","H73ROHUHhInc10to20kRnt>50pct","MOE H73ROHUHhInc10to20kRnt>50pct","H73ROHUHhInc10to20kRntPctNC","MOE H73ROHUHhInc10to20kRntPctNC","H73ROHUHhInc20to34.9k","MOE H73ROHUHhInc20to34.9k","H73ROHUHhInc20to34.9kRnt<20pct","MOE H73ROHUHhInc20to34.9kRnt<20pct","H73ROHUHhInc20to34.9kRnt20to25pct","MOE H73ROHUHhInc20to34.9kRnt20to25pct","H73ROHUHhInc20to34.9kRnt25to30pct","MOE H73ROHUHhInc20to34.9kRnt25to30pct","H73ROHUHhInc20to34.9kRnt30to35pct","MOE H73ROHUHhInc20to34.9kRnt30to35pct","H73ROHUHhInc20to34.9kRnt35to39.9","MOE H73ROHUHhInc20to34.9kRnt35to39.9","H73ROHUHhInc20to34.9kRnt40to49.9","MOE H73ROHUHhInc20to34.9kRnt40to49.9","H73ROHUHhInc20to34.9kRnt>50pct","MOE H73ROHUHhInc20to34.9kRnt>50pct","H73ROHUHhInc20to34.9kRntPctNC","MOE H73ROHUHhInc20to34.9kRntPctNC","H73ROHUHhInc35to49.9k","MOE H73ROHUHhInc35to49.9k","H73ROHUHhInc35to49.9kRnt<20pct","MOE H73ROHUHhInc35to49.9kRnt<20pct","H73ROHUHhInc35to49.9kRnt20to25pct","MOE H73ROHUHhInc35to49.9kRnt20to25pct","H73ROHUHhInc35to49.9kRnt25to30pct","MOE H73ROHUHhInc35to49.9kRnt25to30pct","H73ROHUHhInc35to49.9kRnt30to35pct","MOE H73ROHUHhInc35to49.9kRnt30to35pct","H73ROHUHhInc35to49.9kRnt35to39.9","MOE H73ROHUHhInc35to49.9kRnt35to39.9","H73ROHUHhInc35to49.9kRnt40to49.9","MOE H73ROHUHhInc35to49.9kRnt40to49.9","H73ROHUHhInc35to49.9kRnt>50pct","MOE H73ROHUHhInc35to49.9kRnt>50pct","H73ROHUHhInc35to49.9kRntPctNC","MOE H73ROHUHhInc35to49.9kRntPctNC","H73ROHUHhInc50to74.9k","MOE H73ROHUHhInc50to74.9k","H73ROHUHhInc50to74.9kRnt<20pct","MOE H73ROHUHhInc50to74.9kRnt<20pct","H73ROHUHhInc50to74.9kRnt20to25pct","MOE H73ROHUHhInc50to74.9kRnt20to25pct","H73ROHUHhInc50to74.9kRnt25to30pct","MOE H73ROHUHhInc50to74.9kRnt25to30pct","H73ROHUHhInc50to74.9kRnt30to35pct","MOE H73ROHUHhInc50to74.9kRnt30to35pct","H73ROHUHhInc50to74.9kRnt35to39.9","MOE H73ROHUHhInc50to74.9kRnt35to39.9","H73ROHUHhInc50to74.9kRnt40to49.9","MOE H73ROHUHhInc50to74.9kRnt40to49.9","H73ROHUHhInc50to74.9kRnt>50pct","MOE H73ROHUHhInc50to74.9kRnt>50pct","H73ROHUHhInc50to74.9kRntPctNC","MOE H73ROHUHhInc50to74.9kRntPctNC","H73ROHUHhInc75to99.9k","MOE H73ROHUHhInc75to99.9k","H73ROHUHhInc75to99.9kRnt<20pct","MOE H73ROHUHhInc75to99.9kRnt<20pct","H73ROHUHhInc75to99.9kRnt20to25pct","MOE H73ROHUHhInc75to99.9kRnt20to25pct","H73ROHUHhInc75to99.9kRnt25to30pct","MOE H73ROHUHhInc75to99.9kRnt25to30pct","H73ROHUHhInc75to99.9kRnt30to35pct","MOE H73ROHUHhInc75to99.9kRnt30to35pct","H73ROHUHhInc75to99.9kRnt35to39.9","MOE H73ROHUHhInc75to99.9kRnt35to39.9","H73ROHUHhInc75to99.9kRnt40to49.9","MOE H73ROHUHhInc75to99.9kRnt40to49.9","H73ROHUHhInc75to99.9kRnt>50pct","MOE H73ROHUHhInc75to99.9kRnt>50pct","H73ROHUHhInc75to99.9kRntPctNC","MOE H73ROHUHhInc75to99.9kRntPctNC","H73ROHUHhInc>100k","MOE H73ROHUHhInc>100k","H73ROHUHhInc>100kRnt<20pct","MOE H73ROHUHhInc>100kRnt<20pct","H73ROHUHhInc>100kRnt20to25pct","MOE H73ROHUHhInc>100kRnt20to25pct","H73ROHUHhInc>100kRnt25to30pct","MOE H73ROHUHhInc>100kRnt25to30pct","H73ROHUHhInc>100kRnt30to35pct","MOE H73ROHUHhInc>100kRnt30to35pct","H73ROHUHhInc>100kRnt35to39.9","MOE H73ROHUHhInc>100kRnt35to39.9","H73ROHUHhInc>100kRnt40to49.9","MOE H73ROHUHhInc>100kRnt40to49.9","H73ROHUHhInc>100kRnt>50pct","MOE H73ROHUHhInc>100kRnt>50pct","H73ROHUHhInc>100kRntPctNC","MOE H73ROHUHhInc>100kRntPctNC"]
[{"$f":"VLOOKUP(DropDownList!$B$47,CntyQryCensus!$A$510:$DA$522,A$1)","v":"Rochester"},4676,519,1596,356.90194731886794,279,120,866,308,2741,486.45965917021323,1798,382.94255443865205,430,180,3171,518.69355114556799,1368,338.00147928670373,822,246,137,94]
[]
["Income By Household Type and Tenure"]
["NAME","TotalFamilyHouseholds",{"$f":"\"MOE \"&B159","v":"MOE TotalFamilyHouseholds"},"FamInc<10K",{"$f":"\"MOE \"&D159","v":"MOE FamInc<10K"},"FamInc10to15K",{"$f":"\"MOE \"&F159","v":"MOE FamInc10to15K"},"FamInc15to20K",{"$f":"\"MOE \"&H159","v":"MOE FamInc15to20K"},"FamInc20to25K",{"$f":"\"MOE \"&J159","v":"MOE FamInc20to25K"},"FamInc25to30K",{"$f":"\"MOE \"&L159","v":"MOE FamInc25to30K"},"FamInc30to35K",{"$f":"\"MOE \"&N159","v":"MOE FamInc30to35K"},"FamInc35to40K",{"$f":"\"MOE \"&P159","v":"MOE FamInc35to40K"},"FamInc40to45K",{"$f":"\"MOE \"&R159","v":"MOE FamInc40to45K"},"FamInc45to50K",{"$f":"\"MOE \"&T159","v":"MOE FamInc45to50K"},"FamInc50to60K",{"$f":"\"MOE \"&V159","v":"MOE FamInc50to60K"},"FamInc60to75K",{"$f":"\"MOE \"&X159","v":"MOE FamInc60to75K"},"FamInc75to100K",{"$f":"\"MOE \"&Z159","v":"MOE FamInc75to100K"},"FamInc100to125K",{"$f":"\"MOE \"&AB159","v":"MOE FamInc100to125K"},"FamInc125to150K",{"$f":"\"MOE \"&AD159","v":"MOE FamInc125to150K"},"FamInc150to200K",{"$f":"\"MOE \"&AF159","v":"MOE FamInc150to200K"},"FamInc>200K",{"$f":"\"MOE \"&AH159","v":"MOE FamInc>200K"},"MedFamInc",{"$f":"\"MOE \"&AJ159","v":"MOE MedFamInc"},"TotalNonNonFamilyHouseholds",{"$f":"\"MOE \"&AL159","v":"MOE TotalNonNonFamilyHouseholds"},"NonFamInc<10K",{"$f":"\"MOE \"&AN159","v":"MOE NonFamInc<10K"},"NonFamInc10to15K",{"$f":"\"MOE \"&AP159","v":"MOE NonFamInc10to15K"},"NonFamInc15to20K",{"$f":"\"MOE \"&AR159","v":"MOE NonFamInc15to20K"},"NonFamInc20to25K",{"$f":"\"MOE \"&AT159","v":"MOE NonFamInc20to25K"},"NonFamInc25to30K",{"$f":"\"MOE \"&AV159","v":"MOE NonFamInc25to30K"},"NonFamInc30to35K",{"$f":"\"MOE \"&AX159","v":"MOE NonFamInc30to35K"},"NonFamInc35to40K",{"$f":"\"MOE \"&AZ159","v":"MOE NonFamInc35to40K"},"NonFamInc40to45K",{"$f":"\"MOE \"&BB159","v":"MOE NonFamInc40to45K"},"NonFamInc45to50K",{"$f":"\"MOE \"&BD159","v":"MOE NonFamInc45to50K"},"NonFamInc50to60K",{"$f":"\"MOE \"&BF159","v":"MOE NonFamInc50to60K"},"NonFamInc60to75K",{"$f":"\"MOE \"&BH159","v":"MOE NonFamInc60to75K"},"NonFamInc75to100K",{"$f":"\"MOE \"&BJ159","v":"MOE NonFamInc75to100K"},"NonFamInc100to125K",{"$f":"\"MOE \"&BL159","v":"MOE NonFamInc100to125K"},"NonFamInc125to150K",{"$f":"\"MOE \"&BN159","v":"MOE NonFamInc125to150K"},"NonFamInc150to200K",{"$f":"\"MOE \"&BP159","v":"MOE NonFamInc150to200K"},"NonFamInc>200K",{"$f":"\"MOE \"&BR159","v":"MOE NonFamInc>200K"},"MedNonFamInc",{"$f":"\"MOE \"&BT159","v":"MOE MedNonFamInc"},"PerCapitaIncome","MOE PerCapitaIncome"]
[{"$f":"VLOOKUP(DropDownList!$B$47,CntyQryCensus!$A$510:$DA$522,A$1)","v":"Rochester"},8270,414,189,114,143,89,102,77,213,93,254,123,172,94,250,107,81,45,328,135,524,180,792,173,1418,283,1143,196,782,222,1142,317,737,186,91295,11292,5272,560,260,127,562,271,474,187,333,135,318,131,419,236,151,78,316,222,270,138,389,146,371,149,615,206,365,132,232,141,106,62,91,69,40969,4106]
[]
[]
[]
["2010 Census"]
[]
["TownName","LOGRECNO","COUNTY","TotalPop","TotalPop1Race","TotalPopWhite","TotalPopAfricanAmerican","TotalPopAmericanIndAlaska","TotalPopAsian","TotalPopNativeHawaiianPIsland","TotalPopSomeOtherRace","TotalPopTwoOrMoreRaces","TotalPopHispanicLatino","TotalNonHispanicLatino","TotPopUnder15yrs","TotPop15to24yrs","TotPop25to34yrs","TotPop35to44yrs","TotPop45to54yrs","TotPop55to64yrs","TotPop65to74yrs","TotPopOver74yrs","MedianAge","MedianAgeMale","MedianAgeFemale","TotalHH","TotalPopInHouseholds","TotalPopInFamilyHH","TotalPopInNonFamilyHH","AvgHHSize","TotalFamilyHH","TotalFamilyHHSpouse","TotalSingleParentHH","TotalNonFamilyHH","AvgFamilyHHSize","AvgNonFamilyHHSize","AverageHHSizeOwnerOccupied","AverageHHSizeRentalOccupied","TotalHousingUnits","TotalOccupiedHU","TotalOwnerOccupiedHUs","TotalRentalOccupiedHU","TotalVacantHU","VacantHUForRent","VacantHURentNotOccupied","VacantHUForSale","VacantHUsSoldNotOccupied","VacantHUSeasonalRecreational","VacantHUsAllOtherVacants","HomeOwnerVacancyRate","HomeRentalVacancyRate","Total HH","Total Single Family HU","Total Multi-Family HU","Total Manufacture HU"]
[{"$f":"VLOOKUP(DropDownList!$B$47,CntyQryCensus!$A$529:$DA$540,A$1)","v":"Rochester"},{"$f":"VLOOKUP(DropDownList!$B$47,CntyQryCensus!$A$529:$DA$540,B$1)","v":"0000318"},{"$f":"VLOOKUP(DropDownList!$B$47,CntyQryCensus!$A$529:$DA$540,C$1)","v":"017"},{"$f":"VLOOKUP(DropDownList!$B$47,CntyQryCensus!$A$529:$DA$540,D$1)","v":29752},{"$f":"VLOOKUP(DropDownList!$B$47,CntyQryCensus!$A$529:$DA$540,E$1)","v":29238},{"$f":"VLOOKUP(DropDownList!$B$47,CntyQryCensus!$A$529:$DA$540,F$1)","v":28388},{"$f":"VLOOKUP(DropDownList!$B$47,CntyQryCensus!$A$529:$DA$540,G$1)","v":251},{"$f":"VLOOKUP(DropDownList!$B$47,CntyQryCensus!$A$529:$DA$540,H$1)","v":92},{"$f":"VLOOKUP(DropDownList!$B$47,CntyQryCensus!$A$529:$DA$540,I$1)","v":361},{"$f":"VLOOKUP(DropDownList!$B$47,CntyQryCensus!$A$529:$DA$540,J$1)","v":15},{"$f":"VLOOKUP(DropDownList!$B$47,CntyQryCensus!$A$529:$DA$540,K$1)","v":131},{"$f":"VLOOKUP(DropDownList!$B$47,CntyQryCensus!$A$529:$DA$540,L$1)","v":514},{"$f":"VLOOKUP(DropDownList!$B$47,CntyQryCensus!$A$529:$DA$540,M$1)","v":547},{"$f":"VLOOKUP(DropDownList!$B$47,CntyQryCensus!$A$529:$DA$540,N$1)","v":29205},{"$f":"VLOOKUP(DropDownList!$B$47,CntyQryCensus!$A$529:$DA$540,O$1)","v":5457},{"$f":"VLOOKUP(DropDownList!$B$47,CntyQryCensus!$A$529:$DA$540,P$1)","v":3381},{"$f":"VLOOKUP(DropDownList!$B$47,CntyQryCensus!$A$529:$DA$540,Q$1)","v":3779},{"$f":"VLOOKUP(DropDownList!$B$47,CntyQryCensus!$A$529:$DA$540,R$1)","v":4024},{"$f":"VLOOKUP(DropDownList!$B$47,CntyQryCensus!$A$529:$DA$540,S$1)","v":4863},{"$f":"VLOOKUP(DropDownList!$B$47,CntyQryCensus!$A$529:$DA$540,T$1)","v":3851},{"$f":"VLOOKUP(DropDownList!$B$47,CntyQryCensus!$A$529:$DA$540,U$1)","v":2334},{"$f":"VLOOKUP(DropDownList!$B$47,CntyQryCensus!$A$529:$DA$540,V$1)","v":2063},{"$f":"VLOOKUP(DropDownList!$B$47,CntyQryCensus!$A$529:$DA$540,W$1)","v":40.700000000000003},{"$f":"VLOOKUP(DropDownList!$B$47,CntyQryCensus!$A$529:$DA$540,X$1)","v":39.5},{"$f":"VLOOKUP(DropDownList!$B$47,CntyQryCensus!$A$529:$DA$540,Y$1)","v":42.1},{"$f":"VLOOKUP(DropDownList!$B$47,CntyQryCensus!$A$529:$DA$540,Z$1)","v":12378},{"$f":"VLOOKUP(DropDownList!$B$47,CntyQryCensus!$A$529:$DA$540,AA$1)","v":29512},{"$f":"VLOOKUP(DropDownList!$B$47,CntyQryCensus!$A$529:$DA$540,AB$1)","v":14994},{"$f":"VLOOKUP(DropDownList!$B$47,CntyQryCensus!$A$529:$DA$540,AC$1)","v":14518},{"$f":"VLOOKUP(DropDownList!$B$47,CntyQryCensus!$A$529:$DA$540,AD$1)","v":2.38},{"$f":"VLOOKUP(DropDownList!$B$47,CntyQryCensus!$A$529:$DA$540,AE$1)","v":7936},{"$f":"VLOOKUP(DropDownList!$B$47,CntyQryCensus!$A$529:$DA$540,AF$1)","v":5788},{"$f":"VLOOKUP(DropDownList!$B$47,CntyQryCensus!$A$529:$DA$540,AG$1)","v":2148},{"$f":"VLOOKUP(DropDownList!$B$47,CntyQryCensus!$A$529:$DA$540,AH$1)","v":4442},{"$f":"VLOOKUP(DropDownList!$B$47,CntyQryCensus!$A$529:$DA$540,AI$1)","v":2.89},{"$f":"VLOOKUP(DropDownList!$B$47,CntyQryCensus!$A$529:$DA$540,AJ$1)","v":3.2683475911751465},{"$f":"VLOOKUP(DropDownList!$B$47,CntyQryCensus!$A$529:$DA$540,AK$1)","v":2.46},{"$f":"VLOOKUP(DropDownList!$B$47,CntyQryCensus!$A$529:$DA$540,AL$1)","v":2.23},{"$f":"VLOOKUP(DropDownList!$B$47,CntyQryCensus!$A$529:$DA$540,AM$1)","v":13372},{"$f":"VLOOKUP(DropDownList!$B$47,CntyQryCensus!$A$529:$DA$540,AN$1)","v":12378},{"$f":"VLOOKUP(DropDownList!$B$47,CntyQryCensus!$A$529:$DA$540,AO$1)","v":8359},{"$f":"VLOOKUP(DropDownList!$B$47,CntyQryCensus!$A$529:$DA$540,AP$1)","v":4019},{"$f":"VLOOKUP(DropDownList!$B$47,CntyQryCensus!$A$529:$DA$540,AQ$1)","v":994},{"$f":"VLOOKUP(DropDownList!$B$47,CntyQryCensus!$A$529:$DA$540,AR$1)","v":376},{"$f":"VLOOKUP(DropDownList!$B$47,CntyQryCensus!$A$529:$DA$540,AS$1)","v":15},{"$f":"VLOOKUP(DropDownList!$B$47,CntyQryCensus!$A$529:$DA$540,AT$1)","v":231},{"$f":"VLOOKUP(DropDownList!$B$47,CntyQryCensus!$A$529:$DA$540,AU$1)","v":18},{"$f":"VLOOKUP(DropDownList!$B$47,CntyQryCensus!$A$529:$DA$540,AV$1)","v":80},{"$f":"VLOOKUP(DropDownList!$B$47,CntyQryCensus!$A$529:$DA$540,AW$1)","v":274},{"$f":"VLOOKUP(DropDownList!$B$47,CntyQryCensus!$A$529:$DA$540,AX$1)","v":2.7},{"$f":"VLOOKUP(DropDownList!$B$47,CntyQryCensus!$A$529:$DA$540,AY$1)","v":8.5},{"$f":"VLOOKUP(DropDownList!$B$47,CntyQryCensus!$A$529:$DA$540,AZ$1)","v":13372},{"$f":"VLOOKUP(DropDownList!$B$47,CntyQryCensus!$A$529:$DA$540,BA$1)","v":6622},{"$f":"VLOOKUP(DropDownList!$B$47,CntyQryCensus!$A$529:$DA$540,BB$1)","v":4349},{"$f":"VLOOKUP(DropDownList!$B$47,CntyQryCensus!$A$529:$DA$540,BC$1)","v":2402}]

{"sheet":"CntyQuery","index":7,"n_rows":229,"n_cols":243,"rows_kept":229,"cut":false,"hidden":true,"merged":[]}
["CountyName","Cnty_Code","Census_Cnty_Code","LandAcres","WaterAcres","HousingUnits90Cen","Persons90Cen","Families90Cen","Households90cen","MalePop90cen","FemalePop90cen","WhitePop","BlackPop","AmerIndianPop","AsianPIPop","OtherRacePop","HispanicOrPop","AgeUnder15_90cen","Age15to24_90cen","Age25to34_90cen","Age35to44_90cen","Age45to54_90cen","Age55to64_90cen","Age65to74_90cen","Age75andOver_90cen","PersonsInHH90cen","PersonsInFamHH90cen","PersonsInGC","PersonsPerHH90cen","PersonsPerFam90Cen","SinglePersonHH90cen","MarriedCoupleHH90cen","SingleParentHH90cen","NonFamilyHH90cen","TotalHousingUnits","OccupiedHousingUnits","VacantHousingUnits","OwnerOccHU","RenterOccHU","VacantForRent90","VacantForSale90","VacantSeasonalRec","SingFamHU90cen","MultiFamHU90cen","MobileHom90cen","SingFamOwnHU90cen","MultiFamOwnHU90cen","MobileHomOwnHU90cen","SingFamRntrHU90cen","MultiFamRntrHU90cen","MobileHomRntrHU90cen","HU<5yrs90cen","HU5to20yrs90cen","HU20to50yrs90cen","HU>50yrs90cen","Units0Bedroom90cen","Units1Bedroom90cen","Units2Bedroom90cen","Units3Bedroom90cen","Units4+Bedroom90cen","HI<5K","HI5Kto10K","HI10Kto15K","HI15Kto25K","HI25Kto35K","HI35Kto50K","HI50Kto75K","HI75Kto100K","HI>100K","MedHI","HH<25HI<5K","HH<25HI5Kto10K","HH<25HI10Kto15K","HH<25HI15Kto25K","HH<25HI25Kto35K","HH<25HI35Kto50K","HH<25HI50Kto75K","HH<25HI75Kto100K","HH<25HI>100K","HH25to34HI<5K","HH25to34HI5Kto10K","HH25to34HI10Kto15K","HH25to34HI15Kto25K","HH25to34HI25Kto35K","HH25to34HI35Kto50K","HH25to34HI50Kto75K","HH25to34HI75Kto100K","HH25to34HI>100K","HH35to44HI<5K","HH35to44HI5Kto10K","HH35to44HI10Kto15K","HH35to44HI15Kto25K","HH35to44HI25Kto35K","HH35to44HI35Kto50K","HH35to44HI50Kto75K","HH35to44HI75Kto100K","HH35to44HI>100K","HH45to54HI<5K","HH45to54HI5Kto10K","HH45to54HI10Kto15K","HH45to54HI15Kto25K","HH45to54HI25Kto35K","HH45to54HI35Kto50K","HH45to54HI50Kto75K","HH45to54HI75Kto100K","HH45to54HI>100K","HH55to64HI<5K","HH55to64HI5Kto10K","HH55to64HI10Kto15K","HH55to64HI15Kto25K","HH55to64HI25Kto35K","HH55to64HI35Kto50K","HH55to64HI50Kto75K","HH55to64HI75Kto100K","HH55to64HI>100K","HH65to74HI<5K","HH65to74HI5Kto10K","HH65to74HI10Kto15K","HH65to74HI15Kto25K","HH65to74HI25Kto35K","HH65to74HI35Kto50K","HH65to74HI50Kto75K","HH65to74HI75Kto100K","HH65to74HI>100K","HH>75HI<5K","HH>75HI5Kto10K","HH>75HI10Kto15K","HH>75HI15Kto25K","HH>75HI25Kto35K","HH>75HI35Kto50K","HH>75HI50Kto75K","HH>75HI75Kto100K","HH>75HI>100K","SchoolEnrollment1thru12","Pop25andOver","HSGradorHigher","CollGradorHigher","NativePop","ForeignBornPop","BornStateOfRes","NativePop2","ForeignBornPop2","DroveAlone","CarPooled","PublicTranspt","Walked","OtherMeans","WorkedAtHome","HHInc<10K","HHInc10to15K","HHInc15to25K","HHInc25to35K","HHInc35to50K","HHInc50to75K","HHInc75to100K","HHInc100to150K","HHInc>150K"]
["Census 1990 Data -           Query Name:  DPCnty90Census"]
["NAME","FIPS","COUSUBFP","LandAcres","WaterAcres","HousingUnits90Cen","Persons90Cen","Families90Cen","Households90cen","MalePop90cen","FemalePop90cen","WhitePop","BlackPop","AmerIndianPop","AsianPIPop","OtherRacePop","HispanicOrPop","AgeUnder15_90cen","Age15to24_90cen","Age25to34_90cen","Age35to44_90cen","Age45to54_90cen","Age55to64_90cen","Age65to74_90cen","Age75andOver_90cen","PersonsInHH90cen","PersonsInFamHH90cen","PersonsInGC","PersonsPerHH90cen","PersonsPerFam90Cen","SinglePersonHH90cen","MarriedCoupleHH90cen","SingleParentHH90cen","NonFamilyHH90cen","TotalHousingUnits","OccupiedHousingUnits","VacantHousingUnits","OwnerOccHU","RenterOccHU","VacantForRent90","VacantForSale90","VacantSeasonalRec","SingFamHU90cen","MultiFamHU90cen","MobileHom90cen","SingFamOwnHU90cen","MultiFamOwnHU90cen","MobileHomOwnHU90cen","SingFamRntrHU90cen","MultiFamRntrHU90cen","MobileHomRntrHU90cen","HU<5yrs90cen","HU5to20yrs90cen","HU20to50yrs90cen","HU>50yrs90cen","Units0Bedroom90cen","Units1Bedroom90cen","Units2Bedroom90cen","Units3Bedroom90cen","Units4+Bedroom90cen","HI<5K","HI5Kto10K","HI10Kto15K","HI15Kto25K","HI25Kto35K","HI35Kto50K","HI50Kto75K","HI75Kto100K","HI>100K","MedHI","HH<25HI<5K","HH<25HI5Kto10K","HH<25HI10Kto15K","HH<25HI15Kto25K","HH<25HI25Kto35K","HH<25HI35Kto50K","HH<25HI50Kto75K","HH<25HI75Kto100K","HH<25HI>100K","HH25to34HI<5K","HH25to34HI5Kto10K","HH25to34HI10Kto15K","HH25to34HI15Kto25K","HH25to34HI25Kto35K","HH25to34HI35Kto50K","HH25to34HI50Kto75K","HH25to34HI75Kto100K","HH25to34HI>100K","HH35to44HI<5K","HH35to44HI5Kto10K","HH35to44HI10Kto15K","HH35to44HI15Kto25K","HH35to44HI25Kto35K","HH35to44HI35Kto50K","HH35to44HI50Kto75K","HH35to44HI75Kto100K","HH35to44HI>100K","HH45to54HI<5K","HH45to54HI5Kto10K","HH45to54HI10Kto15K","HH45to54HI15Kto25K","HH45to54HI25Kto35K","HH45to54HI35Kto50K","HH45to54HI50Kto75K","HH45to54HI75Kto100K","HH45to54HI>100K","HH55to64HI<5K","HH55to64HI5Kto10K","HH55to64HI10Kto15K","HH55to64HI15Kto25K","HH55to64HI25Kto35K","HH55to64HI35Kto50K","HH55to64HI50Kto75K","HH55to64HI75Kto100K","HH55to64HI>100K","HH65to74HI<5K","HH65to74HI5Kto10K","HH65to74HI10Kto15K","HH65to74HI15Kto25K","HH65to74HI25Kto35K","HH65to74HI35Kto50K","HH65to74HI50Kto75K","HH65to74HI75Kto100K","HH65to74HI>100K","HH>75HI<5K","HH>75HI5Kto10K","HH>75HI10Kto15K","HH>75HI15Kto25K","HH>75HI25Kto35K","HH>75HI35Kto50K","HH>75HI50Kto75K","HH>75HI75Kto100K","HH>75HI>100K","SchoolEnrollment1thru12","Pop25andOver","HSGradorHigher","CollGradorHigher","NativePop","ForeignBornPop","BornStateOfRes","NativePop2","ForeignBornPop2","DroveAlone","CarPooled","PublicTranspt","Walked","OtherMeans","WorkedAtHome","HHInc<10K","HHInc10to15K","HHInc15to25K","HHInc25to35K","HHInc35to50K","HHInc50to75K","HHInc75to100K","HHInc100to150K","HHInc>150K"]
["Barrington",17005,"03460",29886.99,1230.17,2640,6164,1698,2217,3053,3111,6100,19,16,15,14,53,1479,700,1303,1142,673,402,317,148,6164,5438,0,2.7803337843933242,3.2025912838633688,360,1497,201,159,2640,2217,423,1911,306,59,44,280,1809,244,587,1402,39,587,108,152,46,452,1375,531,322,18,182,955,1206,319,17,97,140,301,521,606,398,99,38,35542,0,0,0,12,0,41,11,0,0,0,9,14,111,216,211,68,17,0,0,34,8,81,120,193,192,17,7,0,0,34,38,56,66,87,32,13,17,26,26,37,25,32,40,33,8,0,14,22,14,96,42,0,0,10,0,14,36,8,8,21,0,0,0,1146,3943,3358,893,6022,187,3502,6022,187,2520,619,28,29,25,100,114,140,301,521,606,398,99,21,17,100,352,444,931,329,101,101,322]
["Dover",17010,"18820",17113.07,1478.97,11307,25042,6257,10345,11976,13066,24390,265,53,284,50,254,4279,4558,5221,3374,2282,2087,1769,1472,24433,18633,609,2.3618173030449494,2.9779447019338341,2870,5023,1234,1218,11307,10345,962,5190,5155,616,136,72,4649,6202,456,4056,785,456,425,4659,71,1440,2726,3296,3845,194,2186,4095,3403,1429,269,888,863,1937,1859,2159,1653,468,250,31507,32,229,149,338,232,126,30,7,0,32,90,133,549,661,739,504,74,13,22,60,101,224,337,523,455,126,35,21,46,43,131,207,302,344,160,121,19,38,101,249,167,260,264,66,59,31,146,210,293,197,137,51,27,14,112,279,126,153,58,72,5,8,8,3175,16201,13468,3944,24087,955,11846,24087,955,10490,1931,244,621,138,331,1157,863,1937,1859,2159,1653,468,179,71,169,1271,916,1810,1209,1423,664,3845]
["Durham",17015,"19700",14338,1514.2,2508,11818,1466,2392,5505,6313,11486,75,8,234,15,99,1008,7130,858,942,682,521,401,276,6407,4521,5411,2.6785117056856187,3.0839017735334244,496,1280,186,430,2508,2392,116,1357,1035,41,24,23,1480,954,74,1241,93,74,172,815,48,339,717,951,495,171,381,493,621,836,153,156,219,277,238,284,432,309,297,42477,96,88,89,122,25,12,0,0,8,22,21,24,45,65,44,22,22,34,6,7,6,44,69,63,130,96,59,9,0,9,15,5,64,155,86,89,0,9,0,9,24,36,71,66,56,12,6,27,19,31,33,31,36,36,8,25,64,23,19,32,23,3,15,908,3707,3609,2467,11296,521,3003,11296,521,2741,357,122,1624,81,232,309,219,277,238,284,432,309,214,83,27,312,145,572,502,338,111,495]
["Farmington",17020,"26020",23368.36,271.51,2260,5739,1514,2032,2812,2927,5681,8,19,16,15,40,1473,699,1083,899,537,425,353,270,5718,5030,21,2.813976377952756,3.3223249669749011,381,1222,292,137,2260,2032,228,1431,601,74,28,65,1324,544,392,1102,52,392,109,412,80,289,684,352,893,28,313,732,777,368,82,194,132,349,451,543,238,37,41,31112,0,8,6,36,19,15,0,0,0,0,31,45,90,135,146,51,0,4,7,8,18,89,77,175,99,20,16,0,24,9,29,99,86,64,7,12,23,0,34,46,53,85,8,10,9,15,75,11,46,49,19,16,0,0,37,48,9,13,19,17,0,0,0,1087,3679,2492,334,5661,94,3383,5661,94,1960,475,35,122,34,84,276,132,349,451,543,238,37,17,24,44,245,172,512,222,100,30,893]
["Lee",17025,"41460",12788.37,138.87,1393,3729,1014,1287,1911,1818,3654,17,11,46,1,23,910,496,730,736,422,230,137,68,3729,3278,0,2.8974358974358974,3.2327416173570018,164,895,119,109,1393,1287,106,972,315,31,24,40,881,295,217,753,67,217,75,196,44,475,480,244,178,0,131,377,564,305,29,30,43,186,173,301,288,133,95,43421,0,7,6,14,17,7,7,0,0,8,8,15,82,30,132,76,12,7,13,15,0,30,75,90,96,42,61,8,0,0,12,45,29,59,43,14,0,0,0,7,6,24,39,12,7,0,0,22,29,0,19,11,24,0,0,0,0,12,0,0,0,0,6,706,2314,2089,968,3654,78,1556,3654,78,1515,328,10,26,20,84,59,43,186,173,301,288,133,64,31,46,429,197,283,175,19,50,178]
["Madbury",17030,"44820",7390.17,408.86,528,1404,377,490,722,682,1368,2,5,26,3,16,329,199,256,255,166,89,80,30,1404,1216,0,2.8653061224489798,3.2254641909814326,67,323,54,46,528,490,38,367,123,8,9,7,339,93,96,280,21,96,32,66,25,132,190,88,124,3,25,153,192,161,9,13,34,54,80,112,118,38,31,42208,0,4,0,8,0,8,2,0,0,6,0,14,18,18,35,19,10,5,0,2,4,7,18,25,41,12,6,0,2,6,2,11,18,29,8,10,0,0,0,3,17,18,22,8,8,2,2,6,12,10,2,3,0,0,1,3,4,4,6,6,2,0,2,260,869,774,346,1366,39,644,1366,39,584,67,0,22,3,37,22,34,54,80,112,118,38,20,11,8,124,58,132,30,40,18,124]
["Middleton",17035,"47700",11568.36,274.58999999999997,654,1183,320,399,610,573,1172,1,5,5,0,7,321,140,251,181,105,100,49,36,1183,1076,0,2.9649122807017543,3.3624999999999998,59,281,39,20,654,399,255,363,36,4,19,217,569,8,77,308,2,77,30,1,5,127,268,198,61,10,32,291,255,66,12,23,26,59,94,125,46,11,2,33125,1,0,0,0,0,0,0,0,0,0,0,5,13,45,37,17,2,0,2,6,7,19,14,56,13,5,0,5,2,0,12,3,20,4,2,0,0,6,5,6,16,12,10,2,2,4,4,9,6,13,0,2,0,0,0,5,0,3,3,0,0,0,0,252,723,525,56,1161,22,614,1161,22,459,80,10,3,6,6,35,26,59,94,125,46,11,2,0,23,104,66,202,136,50,12,61]
["Milton",17040,"48660",21159.759999999998,776.07,1767,3691,1030,1324,1816,1875,3666,3,3,17,2,7,860,444,728,569,395,316,216,163,3688,3285,3,2.785498489425982,3.1893203883495147,208,850,180,86,1767,1324,443,1097,227,25,33,329,1190,163,414,765,29,414,77,108,42,392,522,370,483,26,172,703,631,235,61,57,120,193,244,384,186,37,19,32888,8,0,0,10,15,9,0,0,0,13,6,33,57,60,124,72,0,0,3,0,5,16,71,91,33,13,6,7,6,22,19,22,100,66,7,13,23,6,8,50,38,50,15,13,0,0,12,22,34,30,0,0,0,0,7,27,30,7,8,10,0,4,0,612,2387,1720,302,3663,28,2091,3663,28,1324,328,12,48,24,73,118,120,193,244,384,186,37,19,0,60,332,137,385,133,113,124,483]
["New Durham",17045,"51220",26487.99,1565.83,1231,1974,551,688,987,987,1966,2,2,2,2,10,521,193,390,352,189,159,118,52,1974,1783,0,2.8691860465116279,3.2359346642468241,95,488,63,42,1231,688,543,603,85,5,32,489,1088,18,125,522,2,125,58,10,17,280,358,394,199,10,88,525,504,104,26,29,42,97,150,184,122,22,12,34857,4,0,0,0,0,9,0,0,0,0,0,10,25,60,41,35,5,0,6,6,3,26,41,69,46,10,0,2,0,6,10,12,36,23,7,5,6,5,5,12,23,16,14,0,7,2,9,14,17,9,11,1,0,0,6,9,4,7,5,2,3,0,0,410,1260,1015,191,1941,33,992,1941,33,710,176,6,14,10,42,55,42,97,150,184,122,22,10,2,42,238,97,261,169,160,65,199]
["Rochester",17050,"65140",28688.05,392.49,11076,26630,7332,10221,12931,13699,26291,85,54,147,53,192,6067,3386,5151,3862,2510,2258,1886,1510,26327,22703,303,2.5757753644457488,3.0964266230223676,2304,5989,1343,585,11076,10221,855,7051,3170,446,212,50,5129,3796,2151,4588,626,2151,392,2646,132,2013,3034,2699,3330,113,1452,4176,3867,1468,335,786,879,1996,1883,2394,1525,276,122,30807,26,62,50,225,102,169,29,6,0,37,65,144,464,563,766,423,45,14,42,53,90,352,375,735,455,64,38,24,80,48,189,244,339,335,102,48,51,71,166,257,232,224,215,47,22,39,142,263,354,297,95,39,12,0,116,313,118,155,70,66,29,0,0,4209,17177,12889,2416,25961,669,15347,25961,669,9749,2241,113,278,164,298,1121,879,1996,1883,2394,1525,276,68,54,237,1776,836,2198,1124,872,703,3330]
["Rollinsford",17055,"65540",4680.0600000000004,162.69,1040,2645,751,976,1310,1335,2614,14,2,13,2,21,540,362,544,431,258,253,173,84,2645,2350,0,2.7100409836065573,3.1291611185086552,164,639,112,61,1040,976,64,686,290,34,12,5,673,338,29,605,58,29,45,239,6,162,134,346,414,0,111,352,371,222,25,56,65,176,129,220,186,75,47,37741,0,0,0,15,0,12,10,0,0,0,0,13,49,41,56,43,31,7,8,6,7,28,36,80,63,0,12,0,0,8,22,15,22,20,6,28,7,13,12,19,20,30,44,32,0,10,24,12,27,17,7,6,6,0,0,13,13,16,0,13,0,0,0,341,1752,1410,284,2577,65,1656,2577,65,1154,165,0,50,0,35,81,65,176,129,220,186,75,33,14,47,115,19,115,123,129,94,414]
["Somersworth",17060,"69940",6280.88,117.39,4719,11249,3073,4374,5378,5871,10968,82,33,123,43,102,2444,1656,2365,1559,1021,945,783,476,11208,9493,41,2.5624142661179699,3.0891636836967131,985,2412,661,316,4719,4374,345,2549,1825,221,60,10,1979,2170,570,1788,274,570,133,1642,50,406,1171,1947,1195,28,715,1901,1545,530,165,273,412,791,743,1007,758,205,20,32886,14,15,44,77,51,87,0,7,0,18,25,45,207,288,378,217,29,15,0,0,53,110,173,209,212,76,0,16,7,41,95,72,99,203,36,5,15,30,49,112,66,143,91,49,0,55,97,108,122,71,68,29,8,0,47,99,72,68,22,23,6,0,0,1558,7149,5341,970,10820,429,6520,10820,429,4374,1047,65,235,52,132,438,412,791,743,1007,758,205,10,10,79,327,287,884,943,698,306,1195]
["Strafford",17065,"73860",31342.78,1436.02,1264,2965,848,999,1457,1508,2952,2,1,9,1,13,773,320,559,605,280,216,135,77,2959,2764,6,2.9619619619619622,3.2594339622641511,112,760,88,39,1264,999,265,876,123,8,24,207,963,58,243,787,14,243,65,37,21,267,451,239,309,11,48,378,581,248,28,32,56,103,215,269,224,38,29,37500,0,0,0,11,14,6,0,0,5,5,6,0,20,57,79,52,7,0,0,0,7,46,63,101,66,26,11,5,8,13,0,19,37,71,5,0,6,6,0,7,56,7,22,0,7,6,0,16,13,6,13,13,0,6,6,12,20,6,0,26,0,0,0,564,1802,1543,484,2844,60,1458,2844,60,1098,198,6,26,6,79,60,56,103,215,269,224,38,29,0,26,241,114,337,159,41,39,309]
[]
[]
[]
[]
[]
[]
[]
[]
[]
[]
[]
[]
[]
[]
[]
[]
[]
[]
[]
[]
[]
[]
[]
[]
[]
[]
[]
[]
[]
[]
[]
[]
["Census 1990 Data -    Query Name:  CountySTF1Qry1"]
["NAME","COUSUBFP","Census_Cnty_Code","FIPS","LandAcres","WaterAcres","HousingUnits90Cen","P01Persons90Cen","P02Families90Cen","P03Households90cen","P05MalePop90cen","P05FemalePop90cen","P06WhitePop","P06BlackPop","P06AmerIndianPop","P06AsianPIPop","P06OtherRacePop","P08HispanicOrPop","P11AgeUnder15_90cen","P11Age15to24_90cen","P11Age25to34_90cen","P11Age35to44_90cen","P11Age45to54_90cen","P11Age55to64_90cen","P11Age65to74_90cen","P11Age75andOver_90cen","P15PersonsInHH90cen","P15PersonsInFamHH90cen","P15PersonsInGC","PersonsPerHH90cen","PersonsPerFam90Cen","P16SinglePersonHH90cen","P16MarriedCoupleHH90cen","P16SingleParentHH90cen","P16NonFamilyHH90cen","H01TotalHousingUnits","H02OccupiedHousingUnits","H02VacantHousingUnits","H03OwnerOccHU","H03RenterOccHU","H05VacantForRent90","H05VacantForSale90","H05VacantSeasonalRec","H23OOHUVal<15k","H23OOHUVal15to19k","H23OOHUVal20to24k","H23OOHUVal25to29k","H23OOHUVal30to34k","H23OOHUVal35to39k","H23OOHUVal40to44k","H23OOHUVal45to49k","H23OOHUVal50to59k","H23OOHUVal60to74k","H23OOHUVal75to99k","H23OOHUVal100to124k","H23OOHUVal125to149k","H23OOHUVal150to174k","H23OOHUVal175to199k","H23OOHUVal200to249k","H23OOHUVal250to299k","H23OOHUVal300to399k","H23OOHUVal400to499k","H23OOHUVal500kOrMore","H23BOOHUMedVal","H41SingFamHU90cen","H41MultiFamHU90cen","H41MobileHom90cen","H43SingFamOwnHU90cen","H43MultiFamOwnHU90cen","H43MobileHomOwnHU90cen","H43SingFamRntrHU90cen","H43MultiFamRntrHU90cen","H43MobileHomRntrHU90cen","H41HU1UnitDet","H41HU1UnitAtt","H41HU2Unit","H41HU3to4Unit","H41HU5to9Unit","H41HU10to19Unit","H41HU20to49Unit","H41HU50PlusUnit","H41HUMobilH","H41HUOther"]
["Barrington",901,17005,"03460",29886.99,1230.17,2640,6164,1698,2217,3053,3111,6100,19,16,15,14,53,1479,700,1303,1142,673,402,317,148,6164,5438,0,2.7803337843933242,3.2025912838633688,360,1497,201,159,2640,2217,423,1911,306,59,44,280,3,0,3,6,5,4,5,4,20,51,185,324,257,143,48,41,17,6,2,2,121400,1809,244,587,1402,39,470,108,152,46,1809,21,45,36,99,43,0,0,569,18]
["Dover",902,17010,"18820",17113.07,1478.97,11307,25042,6257,10345,11976,13066,24390,265,53,284,50,254,4279,4558,5221,3374,2282,2087,1769,1472,24433,18633,609,2.3618173030449494,2.9779447019338341,2870,5023,1234,1218,11307,10345,962,5190,5155,616,136,72,7,5,2,5,4,15,30,36,63,135,745,1179,774,386,208,200,98,45,17,15,119900,4649,6202,456,4056,785,349,425,4659,71,4649,536,1145,1575,1034,533,882,497,369,87]
["Durham",903,17015,"19700",14338,1514.2,2508,11818,1466,2392,5505,6313,11486,75,8,234,15,99,1008,7130,858,942,682,521,401,276,6407,4521,5411,2.6785117056856187,3.0839017735334244,496,1280,186,430,2508,2392,116,1357,1035,41,24,23,2,0,0,0,0,0,1,0,0,2,21,61,140,286,207,228,110,31,11,18,180600,1480,954,74,1241,93,23,172,815,48,1480,103,122,140,226,200,94,69,6,68]
["Farmington",904,17020,"26020",23368.36,271.51,2260,5739,1514,2032,2812,2927,5681,8,19,16,15,40,1473,699,1083,899,537,425,353,270,5718,5030,21,2.813976377952756,3.3223249669749011,381,1222,292,137,2260,2032,228,1431,601,74,28,65,4,4,8,5,6,6,10,23,32,120,363,158,93,41,17,9,6,4,0,0,91300,1324,544,392,1102,52,277,109,412,80,1324,17,127,141,115,99,45,0,375,17]
["Lee",905,17025,"41460",12788.37,138.87,1393,3729,1014,1287,1911,1818,3654,17,11,46,1,23,910,496,730,736,422,230,137,68,3729,3278,0,2.8974358974358974,3.2327416173570018,164,895,119,109,1393,1287,106,972,315,31,24,40,2,1,0,0,1,1,0,2,1,3,27,82,140,119,79,100,34,11,4,0,159100,881,295,217,753,67,152,75,196,44,881,69,83,43,85,15,0,0,191,26]
["Madbury",906,17030,"44820",7390.17,408.86,528,1404,377,490,722,682,1368,2,5,26,3,16,329,199,256,255,166,89,80,30,1404,1216,0,2.8653061224489798,3.2254641909814326,67,323,54,46,528,490,38,367,123,8,9,7,2,1,0,0,0,0,1,1,1,4,12,20,37,47,45,29,12,3,0,1,165400,339,93,96,280,21,66,32,66,25,339,19,48,24,1,1,0,0,88,8]
["Middleton",907,17035,"47700",11568.36,274.58999999999997,654,1183,320,399,610,573,1172,1,5,5,0,7,321,140,251,181,105,100,49,36,1183,1076,0,2.9649122807017543,3.3624999999999998,59,281,39,20,654,399,255,363,36,4,19,217,3,1,0,3,1,3,2,6,12,30,86,57,30,14,4,8,2,0,0,0,95300,569,8,77,308,2,53,30,1,5,569,5,3,0,0,0,0,0,69,8]
["Milton",908,17040,"48660",21159.759999999998,776.07,1767,3691,1030,1324,1816,1875,3666,3,3,17,2,7,860,444,728,569,395,316,216,163,3688,3285,3,2.785498489425982,3.1893203883495147,208,850,180,86,1767,1324,443,1097,227,25,33,329,4,4,6,6,7,8,6,7,20,62,169,146,65,57,17,21,9,4,0,0,101700,1190,163,414,765,29,303,77,108,42,1190,14,58,57,23,11,0,0,388,26]
["New Durham",909,17045,"51220",26487.99,1565.83,1231,1974,551,688,987,987,1966,2,2,2,2,10,521,193,390,352,189,159,118,52,1974,1783,0,2.8691860465116279,3.2359346642468241,95,488,63,42,1231,688,543,603,85,5,32,489,4,0,1,0,1,3,1,3,6,11,88,115,72,40,14,15,9,14,0,1,117600,1088,18,125,522,2,79,58,10,17,1088,2,10,6,0,0,0,0,108,17]
["Rochester",910,17050,"65140",28688.05,392.49,11076,26630,7332,10221,12931,13699,26291,85,54,147,53,192,6067,3386,5151,3862,2510,2258,1886,1510,26327,22703,303,2.5757753644457488,3.0964266230223676,2304,5989,1343,585,11076,10221,855,7051,3170,446,212,50,15,6,18,10,20,35,33,31,78,311,1366,1172,720,265,102,97,34,12,3,4,105200,5129,3796,2151,4588,626,1837,392,2646,132,5129,362,942,1151,696,273,218,154,2041,110]
["Rollinsford",911,17055,"65540",4680.0600000000004,162.69,1040,2645,751,976,1310,1335,2614,14,2,13,2,21,540,362,544,431,258,253,173,84,2645,2350,0,2.7100409836065573,3.1291611185086552,164,639,112,61,1040,976,64,686,290,34,12,5,2,0,2,1,0,2,0,5,8,9,120,177,79,63,25,23,8,10,2,2,116900,673,338,29,605,58,23,45,239,6,673,15,90,93,111,29,0,0,25,4]
["Somersworth",912,17060,"69940",6280.88,117.39,4719,11249,3073,4374,5378,5871,10968,82,33,123,43,102,2444,1656,2365,1559,1021,945,783,476,11208,9493,41,2.5624142661179699,3.0891636836967131,985,2412,661,316,4719,4374,345,2549,1825,221,60,10,6,1,5,6,5,9,8,9,26,62,480,579,282,114,48,32,2,1,0,2,109600,1979,2170,570,1788,274,487,133,1642,50,1979,61,700,588,289,202,195,135,537,33]
["Strafford",913,17065,"73860",31342.78,1436.02,1264,2965,848,999,1457,1508,2952,2,1,9,1,13,773,320,559,605,280,216,135,77,2959,2764,6,2.9619619619619622,3.2594339622641511,112,760,88,39,1264,999,265,876,123,8,24,207,1,0,2,1,2,5,1,2,6,17,104,149,119,67,32,18,9,9,3,3,122500,963,58,243,787,14,75,65,37,21,963,5,45,7,0,1,0,0,77,166]
[]
[]
[]
[]
[]
[]
[]
[]
[]
[]
[]
[]
[]
[]
[]
[]
[]
[]
[]
[]
[]
[]
[]
[]
[]
[]
[]
[]
[]
[]
[]
[]
[]
["Census 1990 Data -          Query Name: CountySTF3Qry1"]
[]
["NAME","FIPS","COUSUBFP","LandAcres","WaterAcres","HousingUnits90Cen","P01Persons90Cen","P02Families90Cen","P03Households90cen","H25HU<5yrs90cen","H25HU5to20yrs90cen","H25HU20to50yrs90cen","H25HU>50yrs90cen","H31Units0Bedroom90cen","H31Units1Bedroom90cen","H31Units2Bedroom90cen","H31Units3Bedroom90cen","H31Units4Bedroom90cen","H31Units5+Bedroom90cen","P80HI<5K","P80HI5Kto10K","P80HI10Kto15K","P80HI15Kto25K","P80HI25Kto35K","P80HI35Kto50K","P80HI50Kto75K","P80HI75Kto100K","P80HI>100K","P80AMedHI","P86HH<25HI<5K","P86HH<25HI5Kto10K","P86HH<25HI10Kto15K","P86HH<25HI15Kto25K","P86HH<25HI25Kto35K","P86HH<25HI35Kto50K","P86HH<25HI50Kto75K","P86HH<25HI75Kto100K","P86HH<25HI>100K","P86HH25to34HI<5K","P86HH25to34HI5Kto10K","P86HH25to34HI10Kto15K","P86HH25to34HI15Kto25K","P86HH25to34HI25Kto35K","P86HH25to34HI35Kto50K","P86HH25to34HI50Kto75K","P86HH25to34HI75Kto100K","P86HH25to34HI>100K","P86HH35to44HI<5K","P86HH35to44HI5Kto10K","P86HH35to44HI10Kto15K","P86HH35to44HI15Kto25K","P86HH35to44HI25Kto35K","P86HH35to44HI35Kto50K","P86HH35to44HI50Kto75K","P86HH35to44HI75Kto100K","P86HH35to44HI>100K","P86HH45to54HI<5K","P86HH45to54HI5Kto10K","P86HH45to54HI10Kto15K","P86HH45to54HI15Kto25K","P86HH45to54HI25Kto35K","P86HH45to54HI35Kto50K","P86HH45to54HI50Kto75K","P86HH45to54HI75Kto100K","P86HH45to54HI>100K","P86HH55to64HI<5K","P86HH55to64HI5Kto10K","P86HH55to64HI10Kto15K","P86HH55to64HI15Kto25K","P86HH55to64HI25Kto35K","P86HH55to64HI35Kto50K","P86HH55to64HI50Kto75K","P86HH55to64HI75Kto100K","P86HH55to64HI>100K","P86HH65to74HI<5K","P86HH65to74HI5Kto10K","P86HH65to74HI10Kto15K","P86HH65to74HI15Kto25K","P86HH65to74HI25Kto35K","P86HH65to74HI35Kto50K","P86HH65to74HI50Kto75K","P86HH65to74HI75Kto100K","P86HH65to74HI>100K","P86HH>75HI<5K","P86HH>75HI5Kto10K","P86HH>75HI10Kto15K","P86HH>75HI15Kto25K","P86HH>75HI25Kto35K","P86HH>75HI35Kto50K","P86HH>75HI50Kto75K","P86HH>75HI75Kto100K","P86HH>75HI>100K","P54SchlEnrlPrePrim","P54SchlEnrlElemThrHS","P54SchlEnrlCollege","P54NotEnrlInSch","P57Pop25andOver","P57LessThan9thGrade","P579thto12thNoDip","P57HSGrad","P57SomeCollege","P57AssocDeg","P57BachelDeg","P57GradorProfDeg","P57HSGradorHigher","P57CollGradorHigher","P42NativePop","P42ForeignBornPop","P42BornStateOfRes","P37NativePop2","P37ForeignBornPop2","P49DroveAlone","P49CarPooled","P49PublicTranspt","P49Walked","P49OtherMeans","P49WorkedAtHome","P80HHInc<10K","P80HHInc10to15K","P80HHInc15to25K","P80HHInc25to35K","P80HHInc35to50K","P80HHInc50to75K","P80HHInc75to100K","P80HHInc100to150K","P80HHInc>150K","H25YearStBlt89to90","H25YearStBlt85to88","H25YearStBlt80to84","H25YearStBlt70to79","H25YearStBlt60to69","H25YearStBlt50to59","H25YearStBlt40to49","H25YearStBlt39earlier","P107FamInc<10K","P107FamInc10to15K","P107FamInc15to25K","P107FamInc25to35K","P107FamInc35to50K","P107FamInc50to75K","P107FamInc75to100K","P107FamInc100to150K","P107FamInc>150K","P107AMedFamInc","P110NonFamInc<10K","P110NonFamInc10to15K","P110NonFamInc15to25K","P110NonFamInc25to35K","P110NonFamInc35to50K","P110NonFamInc50to75K","P110NonFamInc75to100K","P110NonFamInc100to150K","P110NonFamInc>150K","P110AMedNonFamInc","H16HU1Room","H16HU2Room","H16HU3Room","H16HU4Room","H16HU5Room","H16HU6Room","H16HU7Room","H16HU8Room","H16HU9+Room","H43GrossRnt<100","H43GrossRnt100to149","H43GrossRnt150to199","H43GrossRnt200to249","H43GrossRnt250to299","H43GrossRnt300to349","H43GrossRnt350to399","H43GrossRnt400to449","H43GrossRnt450to499","H43GrossRnt500to549","H43GrossRnt550to599","H43GrossRnt600to649","H43GrossRnt650to699","H43GrossRnt700to749","H43GrossRnt750to999","H43GrossRnt1000Plus","H43NoCashRent","H43MedGrossRent","H51GrossRnt<20PctHHInc","H51GrossRnt20to24PctHHInc","H51GrossRnt25to29PctHHInc","H51GrossRnt30to34PctHHInc","H51GrossRnt35PctOrMoreHHInc","H51GrossRntAsPctHHIncNotComp","H52HUwMtgMoOwnCst<200","H52HUwMtgMoOwnCst200to299","H52HUwMtgMoOwnCst300to399","H52HUwMtgMoOwnCst400to499","H52HUwMtgMoOwnCst500to599","H52HUwMtgMoOwnCst600to699","H52HUwMtgMoOwnCst700to799","H52HUwMtgMoOwnCst800to899","H52HUwMtgMoOwnCst900to999","H52HUwMtgMoOwnCst1000to1249","H52HUwMtgMoOwnCst1250to1499","H52HUwMtgMoOwnCst1500to1999","H52HUwMtgMoOwnCst2000More","H52HUwNoMtgMoOwnCst<100","H52HUwNoMtgMoOwnCst100to149","H52HUwNoMtgMoOwnCst150to199","H52HUwNoMtgMoOwnCst200to249","H52HUwNoMtgMoOwnCst250to299","H52HUwNoMtgMoOwnCst300to349","H52HUwNoMtgMoOwnCst350to399","H52HUwNoMtgMoOwnCst400More","H52AMedMoOwnCstWMortg","H52AMedMoOwnCstWNoMortg","H58HUwMtgMOC<20pHHInc","H58HUwMtgMOC20to24pHHInc","H58HUwMtgMOC25to29pHHInc","H58HUwMtgMOC30to34pHHInc","H58wMtgMOC>35pHHInc","H58HUwMtgMOCNotComp","H58HUwNoMtgMOC<20pHHInc","H58HUwNoMtgMOC20to24pHHInc","H58HUwNoMtgMOC25to29pHHInc","H58HUwNoMtgMOC30to34pHHInc","H58wNoMtgMOC>35pHHInc","H58HUwNoMtgMOCNotComp","H61OOHUVal<15k","H61OOHUVal15to19k","H61OOHUVal20to24k","H61OOHUVal25to29k","H61OOHUVal30to34k","H61OOHUVal35to39k","H61OOHUVal40to44k","H61OOHUVal45to49k","H61OOHUVal50to59k","H61OOHUVal60to74k","H61OOHUVal75to99k","H61OOHUVal100to124k","H61OOHUVal125to149k","H61OOHUVal150to174k","H61OOHUVal175to199k","H61OOHUVal200to249k","H61OOHUVal250to299k","H61OOHUVal300to399k","H61OOHUVal400to499k","H61OOHUVal500kOrMore","H61aOOHUMedVal"]
[]
[]
[]
[]
[]
[]
[]
[]
[]
[]
[]
[]
[]
[]
[]
["Other Demo Data -             Query Name: QryAllTowns-ACSDemographicSheet",null,null,"2023-01-25"]
[]
["TOWN_NAME","FIPS","TOWNCNTY","COUSUB","POP80","POP90CDCEN","POP2000CEN","POP2010CEN","POP2020CEN","POP2025-Proj","POP2030-Proj","POP2035-Proj","SF80","MF80","MH80","SF81","MF81","MH81","SF82","MF82","MH82","SF83","MF83","MH83","SF84_OSP","MF84_OSP","MH84_OSP","SF85_OSP","MF85_OSP","MH85_OSP","SF86_OSP","MF86_OSP","MH86_OSP","SF87_OSP","MF87_OSP","MH87_OSP","SF88_OSP","MF88_OSP","MH88_OSP","SF89_OSP","MF89_OSP","MH89_OSP","SF90_OSP","MF90_OSP","MH90_OSP","SF91_OSP","MF91_OSP","MH91_OSP","SF92_OSP","MF92_OSP","MH92_OSP","SF93_OSP","MF93_OSP","MH93_OSP","SF94_OSP","MF94_OSP","MH94_OSP","SF95_OSP","MF95_OSP","MH95_OSP","SF96_OSP","MF96_OSP","MH96_OSP","SF97_OSP","MF97_OSP","MH97_OSP","SF98_OSP","MF98_OSP","MH98_OSP","SF99_OSP","MF99_OSP","MH99_OSP","SF00_OSP","MF00_OSP","MH00_OSP","SF01_OSP","MF01_OSP","MH01_OSP","SF02_OSP","MF02_OSP","MH02_OSP","SF03_OSP","MF03_OSP","MH03_OSP","SF04_OSP","MF04_OSP","MH04_OSP","SF05_OSP","MF05_OSP","MH05_OSP","SF06_OSP","MF06_OSP","MH06_OSP","SF07_OSP","MF07_OSP","MH07_OSP","SF08_OSP","MF08_OSP","MH08_OSP","SF09_OSP","MF09_OSP","MH09_OSP","SF10_OSP","MF10_OSP","MH10_OSP","SF11_OSP","MF11_OSP","MH11_OSP","SF12_OSP","MF12_OSP","MH12_OSP","SF13_OSP","MF13_OSP","MH13_OSP","SF14_OSP","MF14_OSP","MH14_OSP","SF15_OSP","MF15_OSP","MH15_OSP","SF16_OSP","MF16_OSP","MH16_OSP","SF17_OSP","MF17_OSP","MH17_OSP","SF18_OSP","MF18_OSP","MH18_OSP","SF19_OSP","MF19_OSP","MH19_OSP","SF20_OSP","MF20_OSP","MH20_OSP","SF20 Census_OSP","MF20 Census OSP","MH20 Census_OSP","SF21_OSP","MF21_OSP","MH21_OSP","COMMENTS","CNTY_CODE"]
["Barrington",17005,901,"03460",4404,6164,7475,8576,9326,9702,10015,10275,26,0,15,22,0,9,37,6,20,41,0,14,45,10,15,62,1,6,68,18,4,62,0,3,79,6,11,67,5,4,52,0,6,37,1,7,31,2,11,30,0,10,33,0,8,50,2,10,36,4,14,52,0,14,54,0,7,67,4,0,69,0,6,51,6,1,59,10,0,44,0,1,77,2,0,63,4,15,52,0,22,37,6,0,42,0,0,29,0,0,37,0,2,20,2,0,19,0,2,17,0,3,26,0,2,26,0,0,26,0,5,41,0,0,33,8,1,15,6,-1,17,0,0,null,null,null,19,23,-2,"",9]
["Dover",17010,902,"18820",22377,25042,26884,29987,32741,34076,35190,36114,81,46,12,22,28,13,41,0,10,165,58,11,68,128,11,204,245,13,260,28,0,647,31,0,213,93,12,60,3,3,35,4,11,53,0,4,50,0,1,40,53,4,57,0,2,52,2,0,54,2,0,68,74,1,74,47,16,114,30,9,130,31,16,143,6,22,113,120,15,99,150,-21,83,45,-4,59,31,4,53,75,1,37,28,1,16,63,0,42,68,0,53,20,0,46,9,1,68,23,4,60,54,1,57,13,0,44,38,0,60,18,4,52,112,5,41,237,3,39,169,3,33,86,0,null,null,null,15,75,-4,"2001 Did not submit data to OEP. Used Census Data",9]
["Durham",17015,903,"19700",10652,11818,12664,14638,15490,16114,16635,17067,9,0,0,13,0,0,13,2,0,23,69,0,30,30,0,39,14,0,72,16,0,52,2,0,35,0,0,27,6,0,18,9,0,19,0,0,10,0,0,23,28,0,27,0,0,30,4,0,26,0,0,33,3,0,40,3,0,42,8,-1,17,7,0,21,43,0,10,115,0,12,31,0,15,10,4,13,12,0,8,4,0,2,2,0,2,55,0,1,62,0,5,6,0,52,121,0,4,17,0,17,133,0,8,164,0,6,6,0,4,1,0,1,0,0,8,155,0,11,1,0,1,39,0,null,null,null,2,5,0,"",9]
["Farmington",17020,904,"26020",4630,5739,5774,6786,6722,6988,7209,7393,0,0,0,0,0,0,0,0,0,0,0,0,0,0,0,18,16,10,45,1,21,43,10,15,34,-1,20,18,3,27,10,0,4,7,0,9,15,-3,5,10,4,5,8,5,16,7,0,8,12,0,1,9,1,14,12,3,26,23,0,27,34,0,27,37,0,20,45,14,22,76,10,23,81,12,0,54,5,19,44,0,7,40,2,5,7,0,3,11,1,2,8,1,1,6,1,-1,2,0,0,5,1,1,6,1,-5,5,3,0,15,0,5,5,2,3,-8,4,7,3,6,6,17,4,2,null,null,null,17,2,8,"",9]
["Lee",17025,905,"41460",2111,3729,4145,4330,4520,4697,4844,4967,12,2,4,17,4,0,23,4,1,32,18,5,22,13,4,73,63,5,92,10,5,66,6,3,26,10,0,35,2,0,12,6,3,7,2,2,16,0,0,18,2,0,19,2,0,14,2,0,24,4,4,20,1,3,34,0,0,26,0,6,30,0,0,17,0,3,10,2,0,18,2,0,38,0,4,10,6,0,8,4,0,13,0,0,4,0,0,1,0,0,5,0,0,4,0,0,2,0,0,4,0,-1,1,0,1,6,0,0,11,0,0,11,2,0,26,3,5,16,0,0,12,1,1,null,null,null,2,1,0,"2005 Did not submit data to OEP. Used Census Data",9]
["Madbury",17030,906,"44820",987,1404,1509,1771,1918,1995,2060,2113,8,0,-1,7,0,2,0,2,0,4,2,1,13,2,1,32,8,3,14,3,5,18,2,1,3,-2,0,10,0,2,8,0,0,6,0,0,5,2,2,5,2,1,3,0,2,6,2,4,4,0,0,4,0,0,10,0,1,7,0,0,21,0,3,24,2,0,10,8,1,13,2,0,9,0,0,13,2,-2,8,0,-2,9,1,0,4,10,0,6,6,3,2,4,0,1,0,0,3,0,0,0,0,0,3,0,0,5,0,0,3,0,0,4,0,0,9,0,1,2,0,0,2,0,0,null,null,null,6,0,0,"",9]
["Middleton",17035,907,"47700",734,1183,1440,1783,1823,1891,1948,1995,2,0,5,2,0,1,2,0,1,3,0,0,2,0,2,17,0,4,18,0,1,28,1,9,38,0,9,23,0,3,2,0,0,5,0,0,4,0,2,9,0,0,2,1,2,6,0,3,7,0,4,5,0,2,6,0,5,8,0,7,7,9,9,18,0,7,18,0,10,30,0,0,31,0,2,82,0,0,14,0,0,8,0,2,6,0,0,3,0,0,1,0,0,0,0,1,0,0,0,1,0,0,0,0,1,5,4,0,4,0,0,1,0,0,6,0,0,1,1,0,10,0,0,null,null,null,5,0,0,"2005 Did not submit data to OEP. Used Census Data",9]
["Milton",17040,908,"48660",2438,3691,3910,4598,4482,4657,4804,4925,5,0,3,7,0,2,7,0,2,9,0,8,13,5,10,14,0,31,45,18,18,29,18,12,31,40,12,40,6,8,5,6,22,4,2,3,15,1,2,4,0,0,5,0,2,1,0,3,8,0,7,6,0,5,12,0,0,19,2,10,42,0,6,45,0,10,41,0,11,42,2,0,45,0,0,108,4,0,45,0,7,1,0,10,15,0,0,2,0,0,3,2,0,6,0,-4,-2,1,0,-1,0,2,2,0,0,3,0,0,4,0,8,4,1,5,1,0,6,1,0,6,4,1,1,null,null,null,19,0,0,"2002, 2005 Did not submit data to OEP. Used Census Data",9]
["New Durham",17045,909,"51220",1183,1974,2220,2638,2693,2796,2882,2954,8,0,4,10,0,3,5,0,3,11,0,6,19,0,6,26,0,13,44,0,0,54,0,11,64,0,2,37,2,1,17,1,1,12,0,0,6,0,0,6,0,2,9,0,5,13,0,0,14,0,2,11,0,2,19,0,2,15,0,3,32,0,6,24,0,2,29,0,4,30,0,0,52,0,0,57,0,2,25,0,0,17,0,0,6,0,0,8,0,0,4,0,0,-3,0,0,-1,0,0,-2,0,0,3,-2,0,5,0,1,2,0,0,6,0,0,9,0,0,12,2,1,21,0,1,null,null,null,18,0,4,"",9]
["Rochester",17050,910,"65140",21560,26630,28461,29752,32492,33801,34894,35800,46,48,11,31,0,6,19,10,8,42,2,38,111,27,52,159,73,132,321,334,250,335,117,159,81,28,87,114,1,78,54,0,30,36,-7,32,36,2,28,19,-6,69,47,43,61,30,5,37,26,0,62,30,0,56,50,63,88,79,0,52,87,16,40,62,-3,71,108,7,88,86,193,61,158,90,44,92,26,26,66,145,11,69,4,0,63,0,18,15,30,1,20,31,5,20,0,0,39,0,36,0,0,3,27,24,7,45,51,0,7,71,10,71,113,28,61,58,24,33,123,5,55,15,22,null,null,null,54,90,8,"",9]
["Rollinsford",17055,911,"65540",2319,2645,2648,2527,2597,2696,2779,2848,2,1,0,2,0,0,3,0,0,5,1,0,4,11,0,11,0,4,50,2,0,27,2,0,40,1,1,24,0,0,4,0,0,6,2,0,8,0,0,5,0,0,5,0,0,4,0,0,5,0,0,2,0,0,6,0,0,3,0,0,0,0,0,4,2,0,7,2,0,2,2,0,1,0,0,7,0,0,6,2,0,3,0,0,-1,0,0,2,0,0,2,0,0,0,0,0,1,0,1,1,2,0,2,0,0,6,0,0,8,0,0,9,0,0,4,0,0,3,2,0,11,0,0,null,null,null,2,6,0,"",9]
["Somersworth",17060,912,"69940",10350,11249,11477,11766,11855,12348,12760,13102,1,-7,0,7,2,4,9,62,1,22,22,12,17,24,9,30,77,27,90,15,23,34,12,24,52,20,12,38,4,9,14,3,5,14,0,3,7,0,3,14,0,11,14,0,2,7,0,8,12,2,31,10,2,7,18,2,7,28,46,0,29,4,-2,23,16,0,23,16,0,13,41,0,49,4,11,64,1,0,39,17,0,23,50,0,16,4,0,12,0,-1,13,-1,0,2,0,0,3,0,5,4,0,-2,0,0,1,10,-3,0,14,14,-2,19,0,0,14,0,4,18,0,-1,23,6,3,null,null,null,36,0,9,"",9]
["Strafford",17065,913,"73860",1663,2965,3626,3991,4230,4400,4543,4661,7,0,2,22,0,2,0,0,0,44,0,1,42,1,0,48,2,5,0,0,0,71,0,-1,68,0,0,42,0,0,30,0,1,13,0,0,17,1,0,10,0,0,22,0,1,25,0,2,10,0,0,19,0,0,23,0,5,41,2,10,31,0,2,36,2,0,41,0,0,32,4,0,28,2,0,28,0,0,15,0,0,8,2,3,4,0,0,9,3,2,6,0,0,10,0,0,6,0,0,10,0,0,16,0,0,8,0,2,11,0,0,12,2,0,21,6,0,15,3,1,3,2,0,null,null,null,14,0,1,"2002 Did not provide data. Census data used",9]
[]
[]
[]
[]
[]
[]
[]
[]
[]
[]
[]
[]
[]
[]
[]
[]
[]
[]
[]
[]
[]
[]
[]
[]
[]
[]
[]
[]
[]
[]
[]
[]
[]
[]
[]
[]
[]
["NH Employment Data","Query Name: DPQryEmploymentByCnty-Good-Serv-Total","Updated:","2023-10-26"]
[]
["AreaName","COUNTYCODE","TOTP & G2001","TOT2001","GOODPRO2001","SERVICEPROMAN2001","WAGEP & G2001","WAGETOT2001","WAGEGOODPRO2001","WAGESERVICEPRO2001","TOTP & G2002","TOT2002","GOODPRO2002","SERVICEPROMAN2002","WAGEP & G2002","WAGETOT2002","WAGEGOODPRO2002","WAGESERVICEPRO2002","TOTP & G2003","TOT2003","GOODPRO2003","SERVICEPROMAN2003","WAGEP & G2003","WAGETOT2003","WAGEGOODPRO2003","WAGESERVICEPRO2003","TOTP & G2004","TOT2004","GOODPRO2004","SERVICEPROMAN2004","WAGEP & G2004","WAGETOT2004","WAGEGOODPRO2004","WAGESERVICEPRO2004","TOTP & G2005","TOT2005","GOODPRO2005","SERVICEPROMAN2005","WAGEP & G2005","WAGETOT2005","WAGEGOODPRO2005","WAGESERVICEPRO2005","TOTP & G2006","TOT2006","GOODPRO2006","SERVICEPROMAN2006","WAGEP & G2006","WAGETOT2006","WAGEGOODPRO2006","WAGESERVICEPRO2006","TOTP & G2007","TOT2007","GOODPRO2007","SERVICEPROMAN2007","WAGEP & G2007","WAGETOT2007","WAGEGOODPRO2007","WAGESERVICEPRO2007","TOTP & G2008","TOT2008","GOODPRO2008","SERVICEPROMAN2008","WAGEP & G2008","WAGETOT2008","WAGEGOODPRO2008","WAGESERVICEPRO2008","TOTP & G2009","TOT2009","GOODPRO2009","SERVICEPROMAN2009","WAGEP & G2009","WAGETOT2009","WAGEGOODPRO2009","WAGESERVICEPRO2009","TOTP & G2010","TOT2010","GOODPRO2010","SERVICEPROMAN2010","WAGEP & G2010","WAGETOT2010","WAGEGOODPRO2010","WAGESERVICEPRO2010","TOTP & G2011","TOT2011","GOODPRO2011","SERVICEPROMAN2011","WAGEP & G2011","WAGETOT2011","WAGEGOODPRO2011","WAGESERVICEPRO2011","TOTP & G2012","TOT2012","GOODPRO2012","SERVICEPROMAN2012","WAGEP & G2012","WAGETOT2012","WAGEGOODPRO2012","WAGESERVICEPRO2012","TOTP & G2013","TOT2013","GOODPRO2013","SERVICEPROMAN2013","WAGEP & G2013","WAGETOT2013","WAGEGOODPRO2013","WAGESERVICEPRO2013","TOTP & G2014","TOT2014","GOODPRO2014","SERVICEPROMAN2014","WAGEP & G2014","WAGETOT2014","WAGEGOODPRO2014","WAGESERVICEPRO2014","TOTP & G2015","TOT2015","GOODPRO2015","SERVICEPROMAN2015","WAGEP & G2015","WAGETOT2015","WAGEGOODPRO2015","WAGESERVICEPRO2015","TOTP & G2016","TOT2016","GOODPRO2016","SERVICEPROMAN2016","WAGEP & G2016","WAGETOT2016","WAGEGOODPRO2016","WAGESERVICEPRO2016","TOTP & G2017","TOT2017","GOODPRO2017","SERVICEPROMAN2017","WAGEP & G2017","WAGETOT2017","WAGEGOODPRO2017","WAGESERVICEPRO2017","TOTP & G2018","TOT2018","GOODPRO2018","SERVICEPROMAN2018","WAGEP & G2018","WAGETOT2018","WAGEGOODPRO2018","WAGESERVICEPRO2018","TOTP & G2019","TOT2019","TOTGov2019","GOODPRO2019","SERVICEPROMAN2019","WAGEP & G2019","WAGETOT2019","WAGEGov2019","WAGEGOODPRO2019","WAGESERVICEPRO2019","TOTP & G2020","TOT2020","TOTGov2020","GOODPRO2020","SERVICEPROMAN2020","WAGEP & G2020","WAGETOT2020","WAGEGov2020","WAGEGOODPRO2020","WAGESERVICEPRO2020","TOTP & G2021","TOT2021","TOTGov2021","GOODPRO2021","SERVICEPROMAN2021","WAGEP & G2021","WAGETOT2021","WAGEGov2021","WAGEGOODPRO2021","WAGESERVICEPRO2021","TOTP & G2022","TOT2022","TOTGov2022","GOODPRO2022","SERVICEPROMAN2022","WAGEP & G2022","WAGETOT2022","WAGEGov2022","WAGEGOODPRO2022","WAGESERVICEPRO2022","COUNTYCODE"]
["Barrington",9,967,766,128,637,576.54,591.1,545.95000000000005,600.17999999999995,1011,803,121,682,597.25,612.87,557.24,622.72,984,777,139,638,585.84,584.16999999999996,534.86,594.92999999999995,1065,841,144,697,624.84,632.54999999999995,555.78,648.38,1165,923,140,783,635.08000000000004,650.46,585.94000000000005,662,1246,992,150,843,643.59,658.49,636.42999999999995,662.41,1309,1033,141,892,645.05999999999995,658.62,599.33000000000004,668,1536,1253,352,901,739.01,766.39,955.73,692.46,1475,1184,323,861,744.65,778.79,932.29,721.2,1468,1188,354,834,769.31,796.47,1067.45,681.53,1522,1236,396,840,783.83,814.57,994.51,729.74,1591,1306,457,849,793.41,823.23,1006,724.85,1650,1370,487,883,840.65,873.52,1118.82,738.04,1661,1387,505,883,839.24,862.33,1124.94,712.28,1785,1502,607,895,900.26,931.95,1163.26,775.14,1880,1583,673,910,886.48,921.27,1107.7,783.48,1947,1661,721,939,927.55,955.59,1123.82,826.39,2015,1719,791,928,985.51,1021.32,1209.45,860.86,2070,1769,302,811,958,996.42,1033.02,781.75,1174.99,912.8,1883,1590,293,738,852,1045.31,1083.55,837.67,1204.17,979.02,1988,1682,306,745,937,1045.8,1076.8,875.34,1259.33,931.7,2081,1752,329,808,944,1140,1201,817,1327,1092,9]
["Dover",9,15072,13283,2858,10425,632.05999999999995,637.82000000000005,778.92,599.14,15077,13240,2523,10717,664.15,673.77,819.33,639.5,15503,13665,2760,10906,682.59,689.77,825.13,655.52,15657,13782,2573,11209,721.01,730.14,842.18,704.42,15847,13991,2439,11553,746.59,757.36,862.81,735.1,16247,14373,2447,11926,782.26,793.93,932.95,765.41,16755,14911,2298,12612,806.67,818.08,934.77,796.82,17630,15761,2008,13753,896.17,915.68,964.24,908.59,16271,14460,1319,13141,927.27,947.34,888.43,953.25,16402,14574,1278,13296,940.99,964.19,893.1,971.03,16586,14809,1318,13491,999.42,1028.5899999999999,1373.88,994.84,16773,15013,1293,13720,979.59,1004.09,928.7,1011.19,16666,14920,1325,13594,1004.16,1028.76,900.5,1041.26,17129,15376,1318,14058,1033.55,1058.98,940.46,1070.0899999999999,17215,15437,1287,14150,1075.03,1099.92,980.47,1110.79,17406,15575,1308,14266,1098.8,1128.17,995.64,1140.33,17579,15737,1329,14408,1134.43,1163.17,1023.16,1176.0899999999999,17761,15885,1393,14492,1136.08,1163.03,1015.1,1177.24,17768,15890,1878,1428,14462,1183.49,1211.8800000000001,943.29,1040.23,1228.82,16829,15069,1760,1318,13752,1254.3900000000001,1276.8499999999999,1062.0899999999999,1109.77,1292.8599999999999,17537,15799,1738,1433,14366,1292.3499999999999,1315.01,1086.3399999999999,1166.8599999999999,1329.79,17785,15990,1795,1646,14345,1329,1357,1082,1188,1377,9]
["Durham",9,6455,2067,"n","n",754.34,770.54,"n","n",6546,2063,545,1518,765.22,758.43,1114.96,630.29999999999995,6856,2059,559,1500,774.67,664,1139.71,486.77,6806,1990,589,1401,819.79,622.16999999999996,1122.06,411.93,6683,2031,582,1449,822.27,612.59,1085.8,422.63,6438,1857,362,1496,826.48,564.86,1089.52,437.89,6291,1691,348,1343,876.76,635.4,1114.82,511.1,6173,1697,318,1378,965.78,640.53,1159.44,520.73,6327,2141,"n","n",1009.57,731.94,"n","n",6115,1905,"n","n",1039.58,773.82,"n","n",6054,1818,"n","n",1073.46,848.18,"n","n",6091,1812,"n","n",1072.6500000000001,867.08,"n","n",6100,1876,"n","n",1091.81,834.04,"n","n",6255,1921,531,1389,1074.6199999999999,873.85,1402.33,671.74,6249,1910,"n","n",1120.08,830.06,"n","n",6261,1917,401,1517,1137.3599999999999,810.43,1369.37,662.73,6131,1747,343,1404,1148.4000000000001,850.36,1465.79,699.9,5986,1687,253,1434,1172.9100000000001,823.27,1497.11,704.33,6000,1697,4303,212,1485,1145.98,796.85,1283.71,1428.29,706.48,5680,1445,4236,173,1272,1259.81,901.61,1381.98,1387.82,835.61,5708,1515,4193,176,1339,1268.73,945.27,1385.57,1425.33,882.19,5649,1491,115,179,4158,1321,1039,1984,979,1423,9]
["Farmington",9,1636,1357,969,388,627.07000000000005,646.54,727.6,444.36,1607,1308,872,436,642.54999999999995,666.17,758.3,482,1128,829,407,422,635.91999999999996,661.43,802.85,525.22,1040,744,319,425,635.79999999999995,658.54,843.59,519.57000000000005,1109,783,350,432,656.21,686.31,874.17,533.99,1152,814,385,429,665.51,687.88,888.02,508.48,1073,718,299,419,668.29,693.33,939.48,517.66999999999996,1026,657,249,408,669.13,675.77,903.1,537.25,978,603,214,390,705.85,735.12,1000.08,589.91999999999996,944,568,203,365,686.79,699.22,934.89,568.16999999999996,953,580,219,361,697.66,726.29,975.69,574.99,1012,629,227,403,688.62,725.1,998.12,571.23,1008,653,254,398,738.61,781.87,1067.55,599.44000000000005,1000,655,225,430,736.96,763.59,1079.02,598.63,1004,661,243,418,739.61,787.95,1035.53,643.91,971,646,256,390,823.7,885.81,1147.3399999999999,714.17,956,614,209,405,780.04,809.5,1030.4000000000001,695.59,947,617,208,410,795.06,811.47,1014.73,708.47,954,616,338,207,409,798.09,820.56,757.11,986.71,736.47,892,576,315,195,382,881.72,902.63,843.48,1063.28,820.71,916,613,303,202,411,902.94,920.29,867.91,1055.6099999999999,853.72,910,609,301,197,412,972,1011,892,1195,923,9]
["Lee",9,1074,961,90,871,409.9,395.35,672.72,366.82,1050,936,87,849,434.83,421.6,693.66,393.66,991,870,77,793,458.81,442.24,643.44000000000005,422.67,982,858,87,772,494.87,475.7,597.07000000000005,462.1,1020,888,88,799,524.04,511.41,707.15,489.8,1041,907,88,819,521.54999999999995,502.92,655.75,486.5,1118,981,81,901,504.47,482.32,637.38,468.46,1123,988,86,902,509.21,482.13,512.69000000000005,479.22,1106,970,76,894,495.31,464.52,501.51,461.37,1113,982,82,900,512.19000000000005,479,494.96,477.54,1117,974,80,894,529.71,491.02,602.79999999999995,481.07,1153,1008,74,935,520.70000000000005,490.17,616.37,480.24,1189,1050,61,990,522.71,492.69,663.34,482.25,1212,1039,60,979,579.72,515.47,664.54,506.32,1221,1084,61,1023,555.89,524.12,687.22,514.37,1233,1106,70,1035,578.72,557.75,742.29,545.25,1306,1178,83,1095,592.41999999999996,569.29,696.44,559.66999999999996,1304,1174,79,1095,646.13,626.91,717.55,620.41999999999996,1330,1193,9,100,1092,684.66,666.3,2064.29,814.76,652.66,1279,1158,121,102,1056,735.49,711.86,962.3,1010.27,683.14,1366,1242,124,102,1139,710.03,682.05,990.08,1008.16,652.79,1370,1241,130,117,1123,786,771,934,1089,737,9]
["Madbury",9,147,133,52,81,542.29999999999995,575.29,513.58000000000004,615.32000000000005,238,149,56,93,597.01,646.04,541.29,708.37,249,162,61,101,676.53,738.31,565.95000000000005,841.82,281,191,61,131,757.86,828.25,609.44000000000005,929.36,276,190,59,131,686.04,730.73,606.64,786.83,257,173,47,127,683.71,695.18,684.14,699.23,252,168,43,125,666.64,659.39,779.41,617.97,251,154,"n","n",668.21,682.59,"n","n",255,156,45,111,727.33,760.61,717.33,778.31,245,145,39,106,722.32,771.54,739.99,783.17,239,137,"n","n",841.34,969.41,"n","n",246,145,41,104,841.32,951.44,880.25,979.4,246,149,41,107,874.21,968.64,878.49,1003.41,252,151,40,111,861.18,958.22,897.88,980.15,258,156,40,116,894.02,987.08,1003.73,981.34,276,178,35,143,915.47,965.56,1096.27,933.18,291,194,34,160,971.67,1023.53,1175.8900000000001,990.9,289,194,37,157,1008.23,1071.6199999999999,1146.6199999999999,1053.79,333,240,92,50,190,882.29,873.85,904.21,1142.8,802.36,295,212,84,"n","n",1087.9000000000001,1125.03,993.85,"n","n",295,210,85,54,156,1106.24,1148.3399999999999,1001.72,1395.2,1062.22,319,230,89,60,170,1056,1104,934,1692,896,9]
["Middleton",9,155,137,"n","n",556.74,592.08000000000004,"n","n",143,126,22,105,667.94,718.95,509.75,762.22,150,132,12,120,618.22,665.39,594.04,672.59,144,125,6,119,663.4,721.24,598.58000000000004,727.51,145,123,9,114,711.73,789.24,516.98,811.11,136,121,9,112,757.75,795,540.84,814.83,135,118,10,108,754.76,798.42,678.16,809.77,124,107,"n","n",781.58,819.42,"n","n",119,101,"n","n",741.01,781.47,"n","n",128,103,"n","n",680.63,759.72,"n","n",120,103,5,99,750.14,777.49,390,796.15,128,100,"n","n",720.72,825.91,"n","n",139,118,"n","n",1031.5999999999999,1133.46,"n","n",137,122,"n","n",1131.95,1163.24,"n","n",135,121,4,117,1060.96,1078.6500000000001,667.87,1092.76,138,124,6,118,1010.98,1012.7,538.25,1034.75,136,120,0,0,996.95,990.78,0,0,141,126,0,0,977.11,975.52,0,0,155,140,0,0,0,951.9,940.61,0,0,0,158,138,20,"n","n",979.55,1010.51,760.09,"n","n",141,126,15,"n","n",1088.74,1101.4000000000001,982.91,"n","n",131,119,11,31,88,1267,1267,1269,952,1379,9]
["Milton",9,356,310,180,131,476.41,480.68,518.33000000000004,428.79,375,326,186,140,508.78,515.17999999999995,559.34,456.78,454,403,217,185,508.32,510.02,544.01,470.22,492,436,252,185,533.15,543.95000000000005,589.83000000000004,481.46,477,417,244,173,562.07000000000005,579.65,627.83000000000004,511.85,527,469,257,213,575.65,585.58000000000004,648.65,509.51,513,455,245,211,632.38,635.86,707.03,553.29999999999995,513,453,229,224,634.83000000000004,636.1,698.78,571.92999999999995,455,401,188,213,649.55999999999995,645.97,698.14,599.75,495,440,221,219,652.29999999999995,649.21,715.24,582.48,537,480,243,237,659.77,657.38,718.85,594.22,530,465,236,230,732.99,747.17,808,684.65,519,451,244,207,733.44,752.49,786.2,712.84,582,514,273,241,814.61,834.92,830.59,839.83,589,520,264,256,881.01,905.54,934.55,875.65,577,507,266,241,869.34,894.85,861.84,931.23,587,515,272,244,878.53,904.47,850.89,964.15,589,515,292,223,910.49,936.94,909.75,972.58,608,536,72,302,235,904.76,921.87,777.11,861.04,999.99,621,548,73,293,256,906.41,921.21,795.16,914.6,928.79,683,613,70,328,285,928.66,938.38,843.63,951.06,923.8,739,670,69,325,345,964,973,882,1036,913,9]
["New Durham",9,239,161,21,141,573.47,603.62,647.91999999999996,597.16,241,152,18,134,633.86,721.73,549.20000000000005,744.55,228,142,17,124,655.83,737.29,558.27,762.24,236,153,24,129,642.54999999999995,686.6,515.72,718.82,235,148,29,119,718.78,806,518.26,876.28,332,247,34,213,609.41999999999996,609.1,542.14,619.79999999999995,328,228,35,193,647.65,686.57,677.34,688.24,355,240,40,200,727.33,822.39,530.30999999999995,880.73,306,192,30,162,537.64,523.42999999999995,621.79,505.51,281,165,23,142,531.54,525.62,651.12,505.44,300,184,23,161,541.85,531.82000000000005,678.13,511.01,290,182,"n","n",526.95000000000005,510.43,"n","n",274,170,"n","n",536.6,516.84,"n","n",240,137,"n","n",566.39,554.13,"n","n",258,147,"n","n",575.48,616.70000000000005,"n","n",259,159,21,138,638.98,654.95000000000005,746.96,641.13,247,147,16,130,713.08,773.95,800.46,770.63,279,175,19,156,697,738.27,871.34,721.96,275,172,103,13,159,640.22,642.85,635.79999999999995,745.89,634.28,258,158,101,12,146,744.46,768.94,706.15,855.24,762.09,268,165,103,10,155,845.53,929.54,711.14,885.71,932.47,295,198,97,20,178,913,960,819,1009,954,9]
["Rochester",9,11888,10711,2575,8136,715.39,729.43,795.69,708.46,11143,9848,1791,8057,649.78,660.08,817.04,625.17999999999995,11059,9763,1708,8055,642.30999999999995,647.39,773.1,620.74,10935,9664,1666,7998,641.45000000000005,641.09,768.85,614.47,10944,9654,1713,7941,644.64,644.05999999999995,764.91,618,11250,9937,1790,8147,650.77,648.54999999999995,818,611.32000000000005,11702,10330,1853,8476,670.68,667.45,846.88,628.21,11760,10354,1844,8511,690.71,688.41,856,652.11,11201,9784,1613,8171,686,680.33,907.22,635.54,11079,9599,1671,7928,706.57,705.31,977.22,647.99,10780,9364,1614,7750,734.07,733.64,1062.29,665.17,10732,9318,1559,7760,750.73,752.87,1163.8599999999999,670.33,11035,9644,1759,7885,767.61,766.34,1198.75,669.88,11249,9811,1897,7914,791.7,794.8,1206.82,696.03,11523,10100,1939,8161,843.18,849.52,1305.07,741.27,11928,10514,2072,8442,845.47,851.07,1296.42,741.78,12108,10693,2170,8522,877.87,884.76,1388.36,756.52,12359,10941,2260,8681,889.69,895.48,1302.67,789.49,12483,11067,1415,2370,8697,901.03,906.17,860.8,1307.21,796.89,11425,10041,1384,2061,7980,967.66,976.39,904.31,1406.28,865.36,11529,10204,1326,2128,8076,990.28,995.49,950.19,1416.61,884.52,11852,10576,1276,2349,8227,1042,1048,995,1433,938,9]
["Rollinsford",9,580,513,237,276,521.07000000000005,537.6,647.22,443.43,389,324,163,160,533.16999999999996,549.9,694.85,402.24,427,358,170,189,574.20000000000005,594.54,723.22,478.88,542,472,238,234,648.9,671.23,749.18,591.78,640,567,259,308,703.16,728.88,792.51,675.55,688,610,330,281,700.41,724.62,765.75,676.3,635,553,358,195,651.77,670.4,732.24,556.61,582,503,335,168,662.96,678.13,750.4,533.52,579,495,325,169,650.05999999999995,666.92,733.96,538.13,590,511,327,184,706.06,725.25,775.44,635.91,547,470,271,199,657.75,667.52,657.37,681.35,562,472,269,203,656.02,680.4,732.14,611.82000000000005,524,435,251,183,662.33,685.14,714.64,644.66,507,427,246,181,658.43,666.75,703.16,617.13,507,424,246,178,717.54,732.91,759.67,695.95,521,439,246,193,787.72,823.84,838.55,805.13,554,474,248,226,755.01,777.62,807.62,744.62,591,507,258,249,746.28,765.53,826.07,702.85,594,512,81,266,246,757.67,765.31,709.56,851.33,672.3,508,435,72,246,189,934.03,955.24,806.58,1057.21,822.69,504,435,69,261,174,1061.26,1096.56,838.28,1124.1600000000001,1055.0899999999999,523,452,71,263,189,1098,1133,874,1173,1078,9]
["Somersworth",9,4743,4243,1384,2859,579.5,585.25,749.04,505.96,4691,4178,1173,3005,597.4,601.83000000000004,740.02,547.91,4718,4212,1156,3056,634.1,638.29999999999995,790.45,580.74,4935,4433,1157,3276,646.45000000000005,648.11,835.43,581.94000000000005,4909,4375,1180,3196,669.66,676.57,833.66,618.58000000000004,4890,4364,1106,3258,672.59,675.75,841.42,619.5,5078,4552,1105,3447,701.54,704.31,897.42,642.4,5115,4585,1108,3477,713.59,715.82,910.08,653.91999999999996,4938,4418,1017,3400,740.8,743.39,975.69,673.9,4951,4427,1042,3385,787.94,795.86,1060.99,714.23,5055,4524,1106,3418,793.17,803.08,1098.76,707.44,5549,5013,1168,3845,789.42,796.96,1068.3,714.54,5669,5137,1248,3888,802.17,807.87,1033.28,735.5,5642,5122,1194,3928,809.23,813.47,1071.8800000000001,734.92,5700,5215,1372,3843,827.9,826.24,1062.4100000000001,741.91,5820,5345,1391,3954,828.3,825.45,1048.76,746.88,5933,5458,1358,4100,834.14,831.6,1015.59,770.67,5704,5239,1247,3992,852.64,850.38,1019.53,797.56,5740,5275,465,1182,4093,967.67,973.05,906.66,1103.01,935.52,5587,5146,442,1077,4068,1032.19,1034.98,999.69,1162.3399999999999,1001.25,5454,4994,460,957,4037,1081.6199999999999,1088.46,1007.4,1242.1600000000001,1052.03,5393,4932,460,847,4086,1124,1131,1048,1260,1105,9]
["Strafford",9,334,179,75,104,469.9,497.01,527.22,475.23,363,232,74,158,415.26,408.01,565.66,334.39,300,159,84,75,514.49,581.78,626.88,530.92999999999995,322,182,114,68,539.25,607.6,641.41999999999996,550.88,323,177,120,57,575.75,669.74,644.22,723.12,354,199,137,62,584.4,691.74,634.46,817.54,382,224,144,80,658.14,783.24,780.83,787.61,392,240,135,105,659.1,742.04,839.18,618.1,367,210,"n","n",606.34,651.66,"n","n",335,186,102,84,668.65,736.19,760.26,707.17,343,192,112,80,682.71,754.37,726.68,793.13,361,204,114,90,711.04,811.45,781.45,849.29,361,217,119,98,800.43,915.98,803.86,1051.72,384,238,116,122,813.15,919.22,867.42,968.27,383,242,129,113,824.95,933.57,877.97,996.88,361,221,136,86,794.08,893.83,876.87,920.63,390,243,143,101,805.02,912.46,931.73,885.2,405,259,148,111,853.7,969.67,954.97,989.33,404,257,147,144,112,867.46,988.38,656.37,1061.48,894.53,384,245,139,136,109,896.63,993.4,726.45,1010.02,972.66,414,273,141,"n","n",963.9,1089.57,719.5,"n","n",424,269,155,132,138,915,1044,692,1172,921,9]
[]
["NH Employment Data","Query Name: DPQryEmploymentByCnty-Good-Serv-Total","Updated:","2023-10-24"]
[]
[]
["AreaName","COUNTYCODE","TOTP & G2001","TOT2001","GOODPRO2001","SERVICEPROMAN2001","WAGEP & G2001","WAGETOT2001","WAGEGOODPRO2001","WAGESERVICEPRO2001","TOTP & G2002","TOT2002","GOODPRO2002","SERVICEPROMAN2002","WAGEP & G2002","WAGETOT2002","WAGEGOODPRO2002","WAGESERVICEPRO2002","TOTP & G2003","TOT2003","GOODPRO2003","SERVICEPROMAN2003","WAGEP & G2003","WAGETOT2003","WAGEGOODPRO2003","WAGESERVICEPRO2003","TOTP & G2004","TOT2004","GOODPRO2004","SERVICEPROMAN2004","WAGEP & G2004","WAGETOT2004","WAGEGOODPRO2004","WAGESERVICEPRO2004","TOTP & G2005","TOT2005","GOODPRO2005","SERVICEPROMAN2005","WAGEP & G2005","WAGETOT2005","WAGEGOODPRO2005","WAGESERVICEPRO2005","TOTP & G2006","TOT2006","GOODPRO2006","SERVICEPROMAN2006","WAGEP & G2006","WAGETOT2006","WAGEGOODPRO2006","WAGESERVICEPRO2006","TOTP & G2007","TOT2007","GOODPRO2007","SERVICEPROMAN2007","WAGEP & G2007","WAGETOT2007","WAGEGOODPRO2007","WAGESERVICEPRO2007","TOTP & G2008","TOT2008","GOODPRO2008","SERVICEPROMAN2008","WAGEP & G2008","WAGETOT2008","WAGEGOODPRO2008","WAGESERVICEPRO2008","TOTP & G2009","TOT2009","GOODPRO2009","SERVICEPROMAN2009","WAGEP & G2009","WAGETOT2009","WAGEGOODPRO2009","WAGESERVICEPRO2009","TOTP & G2010","TOT2010","GOODPRO2010","SERVICEPROMAN2010","WAGEP & G2010","WAGETOT2010","WAGEGOODPRO2010","WAGESERVICEPRO2010","TOTP & G2011","TOT2011","GOODPRO2011","SERVICEPROMAN2011","WAGEP & G2011","WAGETOT2011","WAGEGOODPRO2011","WAGESERVICEPRO2011","TOTP & G2012","TOT2012","GOODPRO2012","SERVICEPROMAN2012","WAGEP & G2012","WAGETOT2012","WAGEGOODPRO2012","WAGESERVICEPRO2012","TOTP & G2013","TOT2013","GOODPRO2013","SERVICEPROMAN2013","WAGEP & G2013","WAGETOT2013","WAGEGOODPRO2013","WAGESERVICEPRO2013","TOTP & G2014","TOT2014","GOODPRO2014","SERVICEPROMAN2014","WAGEP & G2014","WAGETOT2014","WAGEGOODPRO2014","WAGESERVICEPRO2014","TOTP & G2015","TOT2015","GOODPRO2015","SERVICEPROMAN2015","WAGEP & G2015","WAGETOT2015","WAGEGOODPRO2015","WAGESERVICEPRO2015","TOTP & G2016","TOT2016","GOODPRO2016","SERVICEPROMAN2016","WAGEP & G2016","WAGETOT2016","WAGEGOODPRO2016","WAGESERVICEPRO2016","TOTP & G2017","TOT2017","GOODPRO2017","SERVICEPROMAN2017","WAGEP & G2017","WAGETOT2017","WAGEGOODPRO2017","WAGESERVICEPRO2017","TOTP & G2018","TOT2018","GOODPRO2018","SERVICEPROMAN2018","WAGEP & G2018","WAGETOT2018","WAGEGOODPRO2018","WAGESERVICEPRO2018","TOTP & G2019","TOT2019","TOTGov2019","GOODPRO2019","SERVICEPROMAN2019","WAGEP & G2019","WAGETOT2019","WAGEGov2019","WAGEGOODPRO2019","WAGESERVICEPRO2019","TOTP & G2020","TOT2020","TOTGov2020","GOODPRO2020","SERVICEPROMAN2020","WAGEP & G2020","WAGETOT2020","WAGEGov2020","WAGEGOODPRO2020","WAGESERVICEPRO2020","TOTP & G2021","TOT2021","TOTGov2021","GOODPRO2021","SERVICEPROMAN2021","WAGEP & G2021","WAGETOT2021","WAGEGov2021","WAGEGOODPRO2021","WAGESERVICEPRO2021","TOTP & G2022","TOT2022","GOODPRO2022","SERVICEPROMAN2022","WAGEP & G2022","WAGETOT2022","WAGEGOODPRO2022","WAGESERVICEPRO2022","PlaceTownIDNumber","COUNTYCODE"]
["Belknap County",1,26173,22708,6138,16570,541.07000000000005,538.34,689.88,482.21,26052,22334,5408,16926,561.11,555.84,731.15,499.83,26286,22376,5281,17095,579.91,573.04,754.28,517.04999999999995,26931,23030,5431,17599,610.04,602.01,777.41,547.89,26940,22891,5467,17424,636.41999999999996,634.14,819.42,576,27237,23042,5133,17909,657.93,655.07000000000005,862.32,595.66999999999996,27266,23032,4820,18212,674.29,668.31,921.91,601.17999999999995,26793,22507,4572,17935,689.74,680.53,938.61,614.74,25570,21280,3944,17337,692.98,680.87,934.72,623.12,24943,20713,3480,17234,698.61,690.71,945.91,639.19000000000005,24953,20748,3411,17337,706.01,697.17,959.24,645.61,25196,20972,3400,17572,708.66,703.81,960.55,654.13,25517,21311,3517,17794,718.36,714.81,997.67,658.89,25490,21315,3554,17761,748.41,745.98,1036.05,687.93,25584,21457,3597,17859,776.57,774.35,1066.24,715.55,25708,21577,3626,17951,797.95,796.89,1088.81,737.93,25829,21725,3676,18049,823.13,823.31,1139.79,758.85,25898,21803,3774,18029,851.06,851.82,1167.98,785.64,26080,22008,4072,3799,18209,854.12,849.87,877.08,1177.3,781.56,23895,20018,3878,3578,16439,949.48,948,957.09,1212.92,890.34,23895,20018,3878,3578,16439,949.48,948,957.09,1212.92,890.34,25226,21338,3632,17706,1005,1007,1332,941,1016,1]
["Carroll County",2,19495,16938,2563,14374,467.52,460.32,627.98,430.42,19756,17153,2497,14656,481.01,472.65,645.74,443.16,20167,17534,2567,14967,492.28,481.72,647.55999999999995,453.27,20405,17701,2526,15175,519.72,511.1,687.06,481.81,20205,17448,2541,14906,533.86,524.08000000000004,703.81,493.43,20294,17504,2588,14916,575.59,568.1,737.84,538.66,20402,17510,2544,14966,573.29999999999995,562.55999999999995,760.1,528.99,20584,17636,2552,15084,584.17999999999995,570.32000000000005,770.38,536.47,19942,16904,2265,14639,587.36,570.99,765.31,540.91999999999996,19810,16754,2124,14630,600.19000000000005,586.5,775.97,558.99,19997,17005,2189,14816,617.28,603.41999999999996,798.39,574.61,20082,17083,2162,14921,627.16999999999996,615.41,800.29,588.62,19971,16958,2084,14874,645.66999999999996,633.79,805.62,609.71,20015,16952,2024,14928,640.24,627.02,843.7,597.64,19806,16828,1996,14832,667.3,653.87,884.26,622.86,19997,17053,2030,15023,686.74,674.21,909.04,642.48,20005,17047,2057,14991,692.33,677.15,941.62,640.87,20015,17037,2078,14959,710.33,694.81,905.58,665.54,20228,17268,2960,2128,15140,735.27,721.26,816.99,942.12,690.22,17882,15000,2883,2074,12926,841.07,832.06,888,1019.76,801.94,17882,15000,2883,2074,12926,841.07,832.06,888,1019.76,801.94,19410,16536,2187,14349,918,915,1060,893,1017,2]
["Cheshire County",3,32349,27819,"n","n",571.92999999999995,577.30999999999995,"n","n",32369,27595,7795,19800,584.33000000000004,590.97,743.2,531.04,32548,27626,7754,19873,598.89,603.04,763.11,540.59,33075,28132,7648,20484,631.09,634.67999999999995,807.42,570.17999999999995,33995,28886,8110,20776,656.03,666.98,828.9,603.78,34194,29151,7889,21262,723.95,741.43,987.42,650.15,33638,28601,7473,21128,707.44,717.07,867.3,663.94,33220,28351,7351,21000,746.75,752.8,902.94,700.24,32207,27212,6761,20451,742.41,745.7,870.79,704.34,31527,26585,6300,20286,754.45,756.21,900.6,711.38,31690,26854,6240,20614,768.13,768.69,935.64,718.15,32021,27158,6245,20914,790.24,793.9,933.87,752.11,31923,27008,6032,20975,796.52,797.61,965.3,749.39,31904,26935,6025,20910,810.83,815.88,993.69,764.64,32067,27097,6073,21024,830.63,834.25,1010.79,783.25,32005,27109,6177,20932,838.96,843.47,1028.03,789.01,31743,26953,6194,20759,867.06,873.07,1043.75,822.14,31642,26825,6445,20380,895.81,907.01,1090.07,849.12,31737,26923,4814,6652,20272,913.17,927.09,835.36,1100.44,870.2,29801,25226,4575,6410,18816,1000.19,1013.03,929.37,1159.32,963.2,29801,25226,4575,6410,18816,1000.19,1013.03,929.37,1159.32,963.2,31326,26866,7145,19722,1081,1104,1278,1041,1018,3]
["Coos County",4,13872,11234,"n","n",489.02,487.7,"n","n",13737,11021,2332,8689,490.8,484.33,650.88,439.63,13946,11225,2578,8647,525.08000000000004,519.66,703.37,464.89,14103,11341,2590,8751,542.98,540.59,726.42,485.6,14026,11222,2533,8689,556.04,552.64,754.89,493.68,13898,10991,2334,8657,572.86,571.41999999999996,766.73,518.76,13876,11050,2184,8866,583.63,572.30999999999995,758.88,526.34,13566,10747,1988,8759,602.53,587.51,755.51,549.38,13002,10134,1720,8414,609.67999999999995,592.77,751.35,560.36,12832,9977,1593,8384,608.57000000000005,589.54,744.88,560.02,12555,9785,1473,8312,620.23,600.46,757.95,572.54,12371,9564,1568,7995,640.94000000000005,622.74,825.56,582.97,12515,9564,1649,7915,667.37,647.75,855.89,604.39,12064,9083,1293,7789,675.59,651.58000000000004,777.89,630.61,11974,9046,1222,7824,694.46,666.94,788.97,647.89,11990,9038,1167,7870,706.62,682.98,853.55,657.68,11999,9070,1223,7846,729.45,705.37,867.99,680.02,11970,9060,1296,7764,749.69,723.06,852.68,701.43,12083,9226,2857,1304,7921,766.79,735.31,868.44,914.39,705.82,10860,8144,2716,1260,6884,857.08,825.46,951.91,905.94,810.72,10860,8144,2716,1260,6884,857.08,825.46,951.91,905.94,810.72,11633,8928,1393,7535,954,944,1180,900,1019,4]
["Grafton County",5,49352,43256,8085,35171,617.73,624.04999999999995,672.45,612.92999999999995,49690,43362,7763,35599,658.93,668.77,701.81,661.56,50615,44009,7790,36220,704.15,717.01,753.77,709.11,51355,44704,7636,37069,728.96,740.6,770.78,734.38,51541,44954,7698,37256,768.82,783.94,809.26,778.7,52267,45531,7761,37770,803.4,820.96,855.22,813.92,52729,45992,7672,38320,843.04,860.73,901.98,852.47,52901,46166,7347,38819,867.61,884.82,928.14,876.62,51401,44646,6446,38200,879.4,895.26,899.95,894.47,51256,44376,6289,38086,905.77,925.54,949.83,921.53,51663,44867,6681,38186,926.58,946.3,981.6,940.12,52026,45246,6818,38428,950.95,973.52,996.15,969.5,52153,45454,6717,38736,965.05,986.68,1028.75,979.39,52226,45565,6778,38787,1004.06,1029.1500000000001,1069.54,1022.09,52654,46056,6882,39174,1037.55,1061.83,1078.8900000000001,1058.83,53361,46686,6801,39885,1058.5999999999999,1086.92,1082.4000000000001,1087.69,53790,47161,6781,40380,1079.6300000000001,1108.6099999999999,1125.3,1105.81,54119,47417,6926,40491,1105.33,1135.81,1167.74,1130.3399999999999,54388,47685,6703,6855,40830,1142.8,1174.8,915.17,1156.02,1177.95,50622,44208,6414,6338,37870,1251.72,1287.53,1004.85,1194.47,1303.1099999999999,50622,44208,6414,6338,37870,1251.72,1287.53,1004.85,1194.47,1303.1099999999999,53193,47047,6756,40292,1320,1356,1348,1358,1020,5]
["Hillsborough County",6,192842,173003,47169,125834,756.14,762.49,941.37,695.43,188573,168164,42086,126078,768.52,773.3,968.23,708.23,190864,169969,41006,128962,801.91,806.79,1014.82,740.64,193543,172567,40910,131656,839.56,844.4,1064.01,776.16,196190,174854,40181,134673,866.71,873.18,1101.58,805.03,196502,175094,39123,135971,897.24,904,1171.1600000000001,827.13,197183,175821,38588,137233,946.54,951.14,1248.82,867.44,195976,174253,36628,137625,973.54,979.17,1267.17,902.52,187240,165260,33003,132257,959.3,962.96,1236.24,894.76,184628,162829,32117,130712,980.99,986.25,1287.9100000000001,912.12,186437,165030,32694,132336,1013.7,1018.86,1329.81,942.03,188425,167133,31642,135492,1029.82,1035.95,1325.69,968.28,190568,169383,30861,138522,1038.74,1045.24,1365.43,973.9,193565,172574,31422,141152,1092.9000000000001,1101.22,1393.55,1036.1500000000001,196842,175848,31842,144005,1099.51,1106.52,1401.46,1041.3,199729,178867,32654,146213,1118.6300000000001,1126.21,1436.51,1056.9100000000001,201740,180839,33513,147327,1147.78,1156.08,1490.14,1080.0899999999999,203961,182874,34296,148577,1182,1189.98,1525.57,1112.51,205989,184819,21170,35047,149772,1219.73,1229.8399999999999,1131.48,1558.29,1152.98,192746,172283,20463,33774,138510,1350.41,1366.74,1212.8699999999999,1698.45,1285.8599999999999,192746,172283,20463,33774,138510,1350.41,1366.74,1212.8699999999999,1698.45,1285.8599999999999,200919,180392,34516,145876,1452,1472,1832,1386,1021,6]
["Merrimack County",7,71543,56168,12137,44031,631.86,633.92999999999995,772.48,595.74,71850,56025,11403,44622,653.27,655.12,799.93,618.12,72840,56631,11036,45595,667.06,666.91,826.68,628.24,72381,56515,10742,45773,690.51,689.4,845.49,652.77,72963,56979,11012,45967,710.07,710.67,861.87,674.44,74077,57818,10760,47058,739.28,739.89,906.79,701.73,74070,57629,10051,47579,774.05,772.96,972.47,730.82,73959,57295,9822,47472,795.3,789.49,978.78,750.33,72134,55582,8724,46857,810.16,788.36,966.04,755.28,71882,55306,8662,46645,821.15,806.64,998.67,770.98,72140,55913,9059,46854,835.3,821.63,1012.78,784.67,72901,56946,9282,47664,850.4,842.26,1036.72,804.39,73510,57805,9457,48348,866.04,857.51,1050.8699999999999,819.69,74884,58800,9698,49103,892.44,882.46,1086.78,842.11,75670,59563,9801,49762,929.04,918.53,1114.06,880.02,76413,60219,9936,50283,946.35,937.29,1126.3800000000001,899.92,76803,60570,10042,50528,980.03,971.23,1164.72,932.78,77469,61326,10142,51184,1012.33,1004.39,1186.1199999999999,968.39,77816,61536,16281,10313,51222,1038.6300000000001,1030.98,1067.56,1209.32,995.07,73101,57299,15802,9711,47587,1132,1126.1500000000001,1153.22,1268.4000000000001,1097.1199999999999,73101,57299,15802,9711,47587,1132,1126.1500000000001,1153.22,1268.4000000000001,1097.1199999999999,75215,59610,10148,49462,1250,1269,1360,1250,1022,7]
["New Hampshire",1026,610446,531225,127190,404035,682.38,691.51,842.11,644.1,603100,521320,115244,406076,695.8,703.84,868.13,657.22,604198,520362,111472,408890,717.94,724.91,888.81,680.22,613327,529515,111893,417622,753.7,760.58,928.63,715.56,620909,536173,112033,424140,779.84,788.93,958.48,744.15,627301,541435,110189,431246,816.3,827.48,1013.11,780.04,630171,543800,107673,436127,843.46,852.45,1054.1600000000001,802.65,628819,541768,104441,437326,863.66,870.64,1074.5999999999999,821.93,604915,517658,92952,424706,864.05,867.37,1066.42,823.81,600540,513386,89428,423957,883.88,890.13,1119.47,841.75,605864,520338,90996,429342,909.31,916.27,1140.95,868.65,612432,527263,90404,436858,928.33,938.02,1152.07,893.72,618756,534106,90890,443216,941.75,950.79,1173.1099999999999,905.2,626567,541441,92176,449265,983.96,996.35,1200.71,954.42,636798,552276,93968,458308,1010.64,1021.89,1224.55,980.34,647375,562836,96138,466699,1030.04,1042.6300000000001,1251.03,999.7,653496,569023,97995,471029,1060.3399999999999,1073.99,1294.46,1028.1199999999999,658816,574044,100089,473955,1091.97,1106.44,1317.59,1061.8499999999999,665374,580394,84980,101907,478487,1128.27,1145.04,1013.77,1346.98,1102.03,624442,542824,81618,97843,444981,1247.45,1269.51,1100.73,1431.08,1233.99,624442,542824,81618,97843,444981,1247.45,1269.51,1100.73,1431.08,1233.99,670634,589201,102750,486451,1389,1423,1549,1396,1026]
["Rockingham County",8,130960,117604,24384,93220,704.6,714.62,913.02,662.73,130242,116589,22286,94302,712.56,720.57,945.47,667.42,130329,116466,21075,95392,725.68,731.51,920.38,689.79,133803,119786,21944,97841,774.11,781.14,964.22,740.08,136154,122028,22051,99976,796.86,803.2,996.54,760.55,138063,123549,22274,101275,842.13,851.8,1013.05,816.33,138382,123679,22407,101273,849.04,856.27,1052.77,812.8,137191,122378,22407,99970,839.01,841.86,1081.82,788.07,131375,116492,19644,96848,839.06,840.45,1104.3599999999999,786.93,131892,117079,18689,98391,862.17,865.32,1199.72,801.8,133444,119079,18941,100138,880.6,883.65,1146.49,833.93,135396,121125,18942,102183,907.06,912.95,1200.98,859.56,137505,123255,19558,103698,919.22,924.42,1204.8699999999999,871.53,139972,125705,20107,105598,967.99,976.63,1214.5999999999999,931.32,143650,129571,20954,108617,999.45,1007.52,1260.8800000000001,958.65,146926,132843,21711,111132,1008.63,1016.49,1289.1199999999999,963.24,149059,134948,22384,112564,1040.5999999999999,1049.82,1335.62,992.99,149817,135525,22957,112568,1068.69,1079.1600000000001,1345.67,1024.8,151694,137342,14352,23611,113731,1110.28,1122.81,990.42,1388.53,1067.6400000000001,141876,128387,13488,23301,105086,1204.1600000000001,1216.3900000000001,1087.78,1435.04,1167.9100000000001,141876,128387,13488,23301,105086,1204.1600000000001,1216.3900000000001,1087.78,1435.04,1167.9100000000001,151310,137387,24619,112767,1327,1345,1543,1301,1023,8]
["Strafford County",9,43645,34821,9068,25753,655.37,655.92,770.85,615.45000000000005,42874,33684,7630,26054,655.35,652.99,800.21,609.88,43046,33530,7366,26164,668.52,656.47,806.84,614.13,43436,33873,7230,26643,693.72,673.65,820.17,633.9,43773,34267,7211,27056,709.03,692.76,828.02,656.71,44557,35064,7140,27925,723.22,705.71,858.22,666.71,45570,35960,6960,29000,746.96,729.16,880.17,692.91,46580,36991,6754,30237,803.35,784.14,900.05,758.25,44375,35115,5981,29133,822.2,798.7,916.04,774.61,44144,34793,5960,28833,843.68,824.98,964.85,796.07,44154,34870,6008,28863,879.87,868.02,1098.93,819.95,45017,35667,6036,29631,875.8,864.35,1039.17,828.73,45379,36187,6365,29822,896.63,880.93,1050.44,844.76,46249,36899,6431,30469,915.86,906.58,1082.2,869.52,46826,37517,6657,30860,954.37,941.53,1121.8,902.65,47632,38313,6879,31434,967.61,953.88,1119.03,917.74,48165,38780,6935,31845,990.95,980.7,1148.01,944.26,48371,39036,6997,32039,1004.47,991.1,1131.83,960.36,48714,39366,9348,7127,32239,1034.79,1028.5999999999999,1060.8599999999999,1146.21,1002.6,45799,36761,9038,6439,30321,1109.92,1099.0999999999999,1153.96,1214.9000000000001,1074.5,45799,36761,9038,6439,30321,1109.92,1099.0999999999999,1153.96,1214.9000000000001,1074.5,47470,38529,6974,31554,1186,1184,1296,1159,1024,9]
["Sullivan County",10,14086,11544,"n","n",536.78,549.33000000000004,"n","n",13793,11231,4452,6779,561.15,569.74,685.65,493.64,13370,10809,4059,6750,577.41,588.45000000000005,688.92,528.03,13551,11127,4066,7061,602.70000000000005,607.34,721.67,541.5,13862,11386,4086,7300,615.79,621.85,741.34,554.98,13826,11306,3928,7377,642.61,650.96,800.27,571.45000000000005,13873,11351,3958,7393,676.8,687.32,843.22,603.85,13799,11227,3909,7318,687.34,698.53,866.24,608.95000000000005,13185,10586,3466,7121,698.02,705.82,887.35,617.47,13076,10479,3303,7176,714.38,723.66,917.55,634.42999999999995,13190,10617,3204,7413,723.57,732.12,955.94,635.39,13597,11070,3448,7622,757.15,771.77,1038.8399999999999,650.94000000000005,13793,11373,3704,7670,768.35,784.88,1012.65,674.88,13873,11439,3932,7507,795.94,816.28,1039.17,699.53,14090,11709,3948,7761,803.2,815.31,1021.57,710.37,14204,11783,4061,7722,810.76,830.28,1066.2,706.22,13997,11636,4031,7605,821.95,836.22,1048.48,723.72,13966,11628,3919,7708,836.09,849.04,1063.6199999999999,739.94,13735,11390,2344,3818,7573,854.16,864.16,805.53,1081.23,754.74,13162,10897,2266,3666,7231,933.76,950.68,852.41,1145.6400000000001,851.82,13162,10897,2266,3666,7231,933.76,950.68,852.41,1145.6400000000001,851.82,13460,11234,3901,7333,1031,1058,1256,952,1025,10]
[]
[]
[]
[]
[]
[]
[]
[]
[]
[]
[]
[]
[]
[]
[]
[]
[]
["Labor Force and Unemployment Rate","Query Name: DPQryUnempByTown",null,"2023-04-21"]
[]
["PlaceName","LaborForce1990","LaborForce1991","LaborForce1992","LaborForce1993","LaborForce1994","LaborForce1995","LaborForce1996","LaborForce1997","LaborForce1998","LaborForce1999","LaborForce2000","LaborForce2001","LaborForce2002","LaborForce2003","NumbEmployed1990","NumbEmployed1991","NumbEmployed1992","NumbEmployed1993","NumbEmployed1994","NumbEmployed1995","NumbEmployed1996","NumbEmployed1997","NumbEmployed1998","NumbEmployed1999","NumbEmployed2000","NumbEmployed2001","NumbEmployed2002","NumbEmployed2003","UnempRate1990","UnempRate1991","UnempRate1992","UnempRate1993","UnempRate1994","UnempRate1995","UnempRate1996","UnempRate1997","UnempRate1998","UnempRate1999","UnempRate2000","UnempRate2001","UnempRate2002","UnempRate2003","NumbUnEmp1990","NumbUnEmp1991","NumbUnEmp1992","NumbUnEmp1993","NumbUnEmp1994","NumbUnEmp1995","NumbUnEmp1996","NumbUnEmp1997","NumbUnEmp1998","NumbUnEmp1999","NumbUnEmp2000","NumbUnEmp2001","NumbUnEmp2002","NumbUnEmp2003","LaborForce2004","NumbEmployed2004","UnempRate2004","NumbUnEmp2004","LaborForce2005","NumbEmployed2005","NumbUnEmp2005","UnempRate2005","LaborForce2006","NumbEmployed2006","NumbUnEmp2006","UnempRate2006","LaborForce2007","NumbEmployed2007","NumbUnEmp2007","UnempRate2007","LaborForce2008","NumbEmployed2008","NumbUnEmp2008","UnempRate2008","LaborForce2009","NumbEmployed2009","NumbUnEmp2009","UnempRate2009","LaborForce2010","NumbEmployed2010","NumbUnEmp2010","UnempRate2010","LaborForce2011","NumbEmployed2011","NumbUnEmp2011","UnempRate2011","LaborForce2012","NumbEmployed2012","NumbUnEmp2012","UnempRate2012","LaborForce2013","NumbEmployed2013","NumbUnEmp2013","UnempRate2013","LaborForce2014","NumbEmployed2014","NumbUnEmp2014","UnempRate2014","LaborForce2015","NumbEmployed2015","NumbUnEmp2015","UnempRate2015","LaborForce2016","NumbEmployed2016","NumbUnEmp2016","UnempRate2016","LaborForce2017","NumbEmployed2017","NumbUnEmp2017","UnempRate2017","LaborForce2018","NumbEmployed2018","NumbUnEmp2018","UnempRate2018","LaborForce2019","NumbEmployed2019","NumbUnEmp2019","UnempRate2019","LaborForce2020","NumbEmployed2020","NumbUnEmp2020","UnempRate2020","LaborForce2021","NumbEmployed2021","NumbUnEmp2021","UnempRate2021","LaborForce2022","NumbEmployed2022","NumbUnEmp2022","UnempRate2022","Place-TownIDNumber"]
["Concord",17158,19156,19345,19473,20493,20901,20846,21269,21945,22040,21450,21610,21650,21670,16236,17796,18081,18604,19817,20347,20327,20750,21448,21597,20940,20990,20950,20910,5.4,7.1000000000000005,6.5,4.5,3.3000000000000003,2.7,2.5,2.4,2.3000000000000003,2,2.4,2.9,3.2,3.5000000000000004,922,1360,1264,869,676,554,519,519,497,443,510,620,700,760,21380,20700,3.2,680,21470,20780,690,3.2,21760,21080,680,3.1,21910,21160,750,3.4000000000000004,22110,21300,810,3.7000000000000006,22350,21100,1250,5.6,22810,21650,1160,5.0999999999999996,22550,21470,1080,4.8,22600,21520,1080,4.8,22470,21450,1020,4.5,22380,21540,840,3.7000000000000006,22440,21760,680,3,22660,22090,570,2.5,22600,22050,550,2.4,22960,22440,520,2.2999999999999998,23190,22670,520,2.2000000000000002,22760,21350,1410,6.2,22260,21560,700,3.2,22530,22020,510,2.2999999999999998,708]
["Derry",17958,17746,18152,18497,18838,18314,18802,19008,19268,21920,19660,19960,19850,20060,16803,16278,16445,16998,17576,17406,17960,18213,18522,21159,19050,19020,18590,18830,6.4,8.3000000000000007,9.4,8.1,6.7,5,4.5,4.2,3.9,3.5,3.1,4.7,6.3,6.1,1155,1468,1707,1499,1262,908,842,795,746,761,610,940,1260,1230,20040,19040,5,1000,20230,19300,930,4.5999999999999996,19950,19140,810,4.0999999999999996,20050,19250,800,4,20240,19350,890,4.4000000000000004,20170,18770,1400,7.0000000000000009,19820,18424,1396,7.0000000000000009,19604,18375,1229,6.3,19895,18602,1293,6.5,19948,18720,1228,6.2000000000000011,19931,18897,1034,5.2,19840,19019,821,4.0999999999999996,19988,19275,713,3.6000000000000005,20216,19489,727,3.6000000000000005,20460,19790,670,3.3000000000000003,20630,20030,600,2.9,20290,18650,1640,8.1,19960,19210,750,3.7000000000000006,20290,19720,570,2.8,808]
["Dover",14442,14804,14525,14590,14159,14543,14597,14771,14778,14852,15820,15990,16200,16680,13728,13847,13574,13803,13638,14026,14138,14390,14439,14536,15420,15520,15600,16060,4.9000000000000004,6.5,6.5,5.4,3.7,3.6,3.1,2.6,2.3000000000000003,2.1,2.5,2.9,3.7000000000000006,3.7000000000000006,714,957,951,787,521,517,459,381,339,316,400,470,600,620,16980,16440,3.2,540,16980,16460,520,3.1,16890,16410,480,2.9,17220,16720,500,2.9,17420,16870,550,3.2,17280,16330,950,5.5,17390,16458,932,5.4,17411,16583,828,4.8,17494,16662,832,4.8,17600,16846,754,4.3,17731,17090,641,3.6000000000000005,17854,17338,516,2.9,18226,17798,428,2.2999999999999998,18297,17871,426,2.2999999999999998,18670,18250,420,2.2000000000000002,19040,18630,410,2.2000000000000002,18640,17420,1220,6.5,18560,17970,590,3.2,18790,18380,410,2.2000000000000002,902]
["Hudson",12484,12026,12188,12214,12119,12078,12442,12876,13125,13345,13500,13680,13660,14010,11727,11098,11160,11343,11344,11442,11918,12438,12722,12888,13130,13130,12920,13300,6.1000000000000005,7.7,8.4,7.1000000000000005,6.4,5.3,4.2,3.4,3.1,3.4,2.8,4,5.4,5.0999999999999996,757,928,1028,871,775,636,524,438,403,457,370,550,740,710,14420,13770,4.5,650,14750,14150,600,4.0999999999999996,14750,14200,550,3.8,14920,14350,570,3.8,14950,14330,620,4.0999999999999996,14930,13930,1000,6.7,14240,13290,950,6.7,14150,13280,870,6.1,14320,13400,920,6.5,14360,13500,860,6,14460,13690,770,5.3,14510,13890,620,4.2,14680,14180,500,3.4000000000000004,14720,14210,510,3.5000000000000004,15130,14630,500,3.3000000000000003,15410,14920,490,3.2,30920,13920,1190,7.9,14890,14330,560,3.8,15150,14720,430,2.9,614]
["Londonderry",11797,11497,11671,11945,12109,11969,12248,12747,13057,13288,13370,13700,13730,13880,11223,10806,10886,11198,11492,11495,11820,12345,12706,12914,13030,13180,13020,13200,4.9000000000000004,6,6.7,6.3,5.1000000000000005,4,3.5,3.2,2.7,2.8000000000000003,2.5,3.8,5.2,4.9000000000000004,574,691,785,747,617,474,428,402,351,374,340,520,710,680,14070,13500,4.0999999999999996,570,14490,13960,530,3.7000000000000006,14430,13940,490,3.4000000000000004,14620,14120,500,3.4000000000000004,14670,14120,550,3.7000000000000006,14540,13680,860,5.9,14270,13470,800,5.6,14160,13420,740,5.2,14410,13600,810,5.6,14440,13690,750,5.2,14510,13850,660,4.5,14960,14440,520,3.5000000000000004,15440,15000,440,2.8,15620,15170,450,2.9,15940,15480,460,2.9,16310,15860,450,2.8,15930,14880,1050,6.6000000000000005,15810,15320,490,3.1,16140,15730,410,2.6,819]
["Manchester",57227,54398,53484,53029,52584,54444,54748,56302,57027,57867,58440,59230,59350,60270,53493,49879,48873,49490,49803,52144,52888,54663,55481,56389,56950,57140,56610,57550,6.5,8.3000000000000007,8.6,6.7,5.3,4.2,3.4,2.9,2.7,2.6,2.6,3.5000000000000004,4.5999999999999996,4.5,3734,4519,4611,3539,2781,2300,1860,1639,1546,1478,1490,2090,2740,2720,60940,58510,4,2430,61140,58810,2330,3.8,61080,58710,2370,3.9,61520,59130,2390,3.9,61910,59230,2680,4.3,62170,57720,4450,7.2000000000000011,61300,57130,4170,6.8000000000000007,60990,57330,3660,6,61290,57460,3830,6.3,61390,57990,3400,5.5,61890,59020,2870,4.5999999999999996,61940,59690,2250,3.6000000000000005,62710,60800,1910,3,63570,61680,1890,3,65350,63610,1740,2.7,66170,64440,1730,2.6,64820,59710,5110,7.9,63710,61250,2460,3.9,64460,62770,1690,2.6,617]
["Merrimack",13981,13473,13706,13893,13686,13315,13754,14250,14570,14810,15420,15760,15890,16040,13416,12714,12773,12999,12979,12783,13294,13866,14217,14403,15070,15270,15160,15360,4,5.6000000000000005,6.8,6.4,5.2,4,3.3000000000000003,2.7,2.4,2.7,2.2999999999999998,3.1,4.5999999999999996,4.2,565,759,933,894,707,532,460,384,353,407,350,490,730,680,16250,15710,3.3000000000000003,540,16520,16020,500,3,16440,15950,490,3,16550,16060,490,3,16510,15970,540,3.3000000000000003,16470,15520,950,5.8,61300,57130,4170,6.8000000000000007,60990,57330,3660,6,61290,57460,3830,6.3,61390,57990,3400,5.5,61890,59020,2870,4.5999999999999996,61940,59690,2250,3.6000000000000005,62710,60800,1910,3,15810,15380,430,2.7,16190,15770,420,2.6,16770,16360,410,2.4,16820,15810,1010,6,16770,16280,490,2.9,17110,16720,390,2.2999999999999998,619]
["Nashua",48381,45637,45669,45204,43405,44276,45430,46753,47362,48054,48150,48730,48350,48550,45749,42390,42064,41756,40901,42188,43654,45410,45982,46581,46830,46750,45610,46000,5.4,7.1000000000000005,7.9,7.6000000000000005,5.8,4.7,3.9,2.9,2.9,3.1,2.7,4.0999999999999996,5.7,5.2,2632,3247,3605,3448,2504,2088,1776,1343,1380,1473,1320,1980,2740,2550,48910,46770,4.4000000000000004,2140,49460,47490,1970,4,49190,47270,1920,3.9,49360,47510,1850,3.7000000000000006,49270,47280,1990,4,49520,46070,3450,7.0000000000000009,48410,45220,3190,6.6000000000000005,48090,45080,3010,6.2,48600,45500,3100,6.4,48830,45940,2890,5.9,48860,46380,2480,5.0999999999999996,49150,47210,1940,3.9,49440,47750,1690,3.4000000000000004,49710,48040,1670,3.4000000000000004,50710,49170,1540,3,51630,50090,1540,3,50730,46610,4120,8.1,50030,48000,2030,4.0999999999999996,50740,49280,1460,2.9,622]
["Rochester",14242,14280,14153,14123,13917,14056,14172,14407,14297,14288,15280,15450,15670,15900,13158,12952,12771,13032,13177,13387,13529,13825,13799,13892,14820,14880,14870,15210,7.6000000000000005,9.3000000000000007,9.8000000000000007,7.7,5.3,4.8,4.5,4,3.5,2.8000000000000003,3,3.7000000000000006,5.0999999999999996,4.3,1084,1328,1382,1091,740,669,643,582,498,396,460,570,800,690,16150,15550,3.7000000000000006,600,16360,15740,620,3.8,16340,15790,550,3.3000000000000003,16700,16100,600,3.6000000000000005,17120,16410,710,4.0999999999999996,17210,15950,1260,7.3,16940,15815,1125,6.6000000000000005,16868,15894,974,5.8,16840,15863,977,5.8,16849,15932,917,5.4,16923,16214,709,4.2,16914,16360,554,3.3000000000000003,17257,16818,439,2.5,17433,17005,428,2.5,17920,17480,440,2.4,18140,17700,440,2.4,17760,16520,1240,7.0000000000000009,17640,17040,600,3.4000000000000004,17850,17430,420,2.2999999999999998,910]
["Salem",15853,15251,15792,16067,15973,15983,16536,16695,17028,19224,16440,16840,17070,17060,14545,13832,14010,14242,14652,14897,15474,15785,16115,18409,15780,15940,15860,15880,8.3000000000000007,9.3000000000000007,11.3,11.4,8.3000000000000007,6.8,6.4,5.5,5.4,4.2,4,5.3,7.1,6.9,1308,1419,1782,1825,1321,1086,1062,910,913,815,660,900,1210,1180,17300,16210,6.3,1090,17440,16490,950,5.5,17510,16680,830,4.7,17840,16970,870,4.9000000000000004,17830,16880,950,5.3,17830,16410,1420,8,17320,16110,1210,7.0000000000000009,17300,16160,1140,6.6000000000000005,17530,16330,1200,6.8000000000000007,17580,16480,1100,6.2,17660,16730,930,5.2,17680,16920,760,4.3,17770,17130,640,3.6000000000000005,17850,17180,670,3.7000000000000006,18390,17770,620,3.4000000000000004,18780,18150,630,3.4000000000000004,18630,17040,1590,8.5,18560,17820,740,4,18980,18400,580,3,832]

{"sheet":"BuildingPermitsSince2000","index":8,"n_rows":41,"n_cols":25,"rows_kept":41,"cut":false,"hidden":true,"merged":[[3,1,3,3]]}
[]
[null,{"$f":"CntyDataLink!A35","v":"Rochester"}]
[]
[null,"HOUSING CHARACTERISTICS"]
[]
[]
[]
[]
[]
[]
[]
[]
[]
[]
[]
[]
[]
[]
[]
[]
[]
[]
[]
[]
[]
[]
[]
[]
[]
[]
[]
[]
[]
[]
[null,"Housing Units Authorized by Permit",null,null,null,"Source  Office of Planning and Devolpment, NH BEA"]
[]
[null,"Year",2000,{"$f":"C37+1","v":2001},{"$f":"D37+1","v":2002},2003,2004,2005,2006,2007,2008,2009,2010,2011,2012,2013,2014,2015,2016,2017,2018,2019,2020,2021,"Total"]
[null,"Single Family",{"$f":"CntyDataLink!$BU$20","v":87},{"$f":"CntyDataLink!$BX$20","v":62},{"$f":"CntyDataLink!$CA$20","v":108},{"$f":"CntyDataLink!$CD$20","v":86},{"$f":"CntyDataLink!$CG$20","v":158},{"$f":"CntyDataLink!$CJ$20","v":92},{"$f":"CntyDataLink!$CM$20","v":66},{"$f":"CntyDataLink!$CO$20","v":11},{"$f":"CntyDataLink!$CS$20","v":63},{"$f":"CntyDataLink!$CV$20","v":15},{"$f":"CntyDataLink!$CY$20","v":20},{"$f":"CntyDataLink!$DB$20","v":20},{"$f":"CntyDataLink!$DE$20","v":39},{"$f":"CntyDataLink!$DH$20","v":0},{"$f":"CntyDataLink!$DK$20","v":27},{"$f":"CntyDataLink!$DN$20","v":45},{"$f":"CntyDataLink!$DQ$20","v":7},{"$f":"CntyDataLink!$DT$20","v":71},{"$f":"CntyDataLink!$DW$20","v":61},{"$f":"CntyDataLink!$DZ$20","v":33},{"$f":"CntyDataLink!$EC$20","v":55},{"$f":"CntyDataLink!$EI$20","v":54},{"$f":"SUM(C38:X38)","v":1180}]
[null,"Multi-family",{"$f":"CntyDataLink!$BV$20","v":16},{"$f":"CntyDataLink!$BY$20","v":-3},{"$f":"CntyDataLink!$CB$20","v":7},{"$f":"CntyDataLink!$CE$20","v":193},{"$f":"CntyDataLink!$CH$20","v":90},{"$f":"CntyDataLink!$CK$20","v":26},{"$f":"CntyDataLink!$CN$20","v":145},{"$f":"CntyDataLink!$CP$20","v":69},{"$f":"CntyDataLink!$CT$20","v":0},{"$f":"CntyDataLink!$CW$20","v":30},{"$f":"CntyDataLink!$CZ$20","v":31},{"$f":"CntyDataLink!$DC$20","v":0},{"$f":"CntyDataLink!$DF$20","v":0},{"$f":"CntyDataLink!$DI$20","v":0},{"$f":"CntyDataLink!$DL$20","v":24},{"$f":"CntyDataLink!$DO$20","v":51},{"$f":"CntyDataLink!$DR$20","v":71},{"$f":"CntyDataLink!$DU$20","v":113},{"$f":"CntyDataLink!$DX$20","v":58},{"$f":"CntyDataLink!$EA$20","v":123},{"$f":"CntyDataLink!$ED$20","v":15},{"$f":"CntyDataLink!$EJ$20","v":90},{"$f":"SUM(C39:X39)","v":1149}]
[null,"Manufactured",{"$f":"CntyDataLink!$BW$20","v":40},{"$f":"CntyDataLink!$BZ$20","v":71},{"$f":"CntyDataLink!$CC$20","v":88},{"$f":"CntyDataLink!$CF$20","v":61},{"$f":"CntyDataLink!$CI$20","v":44},{"$f":"CntyDataLink!$CL$20","v":26},{"$f":"CntyDataLink!$CO$20","v":11},{"$f":"CntyDataLink!$CR$20","v":0},{"$f":"CntyDataLink!$CU$20","v":18},{"$f":"CntyDataLink!$CX$20","v":1},{"$f":"CntyDataLink!$DA$20","v":5},{"$f":"CntyDataLink!$DD$20","v":0},{"$f":"CntyDataLink!$DG$20","v":36},{"$f":"CntyDataLink!$DJ$20","v":3},{"$f":"CntyDataLink!$DM$20","v":7},{"$f":"CntyDataLink!$DP$20","v":0},{"$f":"CntyDataLink!$DR$20","v":71},{"$f":"CntyDataLink!$DV$20","v":28},{"$f":"CntyDataLink!$DY$20","v":24},{"$f":"CntyDataLink!$EB$20","v":5},{"$f":"CntyDataLink!$EE$20","v":22},{"$f":"CntyDataLink!$EK$20","v":8},{"$f":"SUM(C40:X40)","v":569}]
[null,"Total",{"$f":"SUM(C38:C40)","v":143},{"$f":"SUM(D38:D40)","v":130},203,340,292,144,222,80,81,46,56,20,75,3,58,96,149,212,{"$f":"SUM(U38:U40)","v":143},{"$f":"SUM(V38:V40)","v":161},{"$f":"SUM(W38:W40)","v":92},{"$f":"SUM(X38:X40)","v":152},{"$f":"SUM(C41:W41)","v":2746}]

{"sheet":"EmploymentAndWages","index":9,"n_rows":115,"n_cols":14,"rows_kept":115,"cut":false,"hidden":true,"merged":[[3,1,3,3],[35,1,35,2],[73,1,73,2],[41,1,41,3],[66,1,67,3]]}
[]
[null,{"$f":"CntyDataLink!A35","v":"Rochester"}]
[]
[null,"EMPLOYMENT CHARACTERISTICS"]
[]
[]
[]
[]
[]
[]
[]
[]
[]
[]
[]
[]
[]
[]
[]
[]
[]
[]
[]
[]
[]
[]
[]
[]
[null,"Annual Average Covered Private Employment "]
[null,null,null,"Source: NH Department of Employment Security, Covered Private Employment by location of employment"]
[null,null,2011,{"$f":"C31+1","v":2012},{"$f":"D31+1","v":2013},2014,2015,2016,2017,2018,2019,2020,2021,"Total Change  "]
[null,"Goods Producing",{"$f":"IF((CntyDataLink!$CG$25)=\"n\",NA(),IF(VALUE(CntyDataLink!$CG$25)=\"\",NA(),VALUE(CntyDataLink!$CG$25)))","v":1614},{"$f":"IF((CntyDataLink!$CO$25)=\"n\",NA(),IF(VALUE(CntyDataLink!$CO$25)=\"\",NA(),VALUE(CntyDataLink!$CO$25)))","v":1559},{"$f":"IF((CntyDataLink!$CW$25)=\"n\",NA(),IF(VALUE(CntyDataLink!$CW$25)=\"\",NA(),VALUE(CntyDataLink!$CW$25)))","v":1759},{"$f":"IF((CntyDataLink!$DE$25)=\"n\",NA(),IF(VALUE(CntyDataLink!$DE$25)=\"\",NA(),VALUE(CntyDataLink!$DE$25)))","v":1897},{"$f":"IF((CntyDataLink!$DM$25)=\"n\",NA(),IF(VALUE(CntyDataLink!$DM$25)=\"\",NA(),VALUE(CntyDataLink!$DM$25)))","v":1939},{"$f":"IF((CntyDataLink!$DU$25)=\"n\",NA(),IF(VALUE(CntyDataLink!$DU$25)=\"\",NA(),VALUE(CntyDataLink!$DU$25)))","v":2072},{"$f":"IF((CntyDataLink!$EC$25)=\"n\",NA(),IF(VALUE(CntyDataLink!$EC$25)=\"\",NA(),VALUE(CntyDataLink!$EC$25)))","v":2170},{"$f":"IF((CntyDataLink!$EK$25)=\"n\",NA(),IF(VALUE(CntyDataLink!$EK$25)=\"\",NA(),VALUE(CntyDataLink!$EK$25)))","v":2260},{"$f":"IF((CntyDataLink!$ET$25)=\"n\",NA(),IF(VALUE(CntyDataLink!$ET$25)=\"\",NA(),VALUE(CntyDataLink!$ET$25)))","v":2370},{"$f":"IF((CntyDataLink!$FD$25)=\"n\",NA(),IF(VALUE(CntyDataLink!$FD$25)=\"\",NA(),VALUE(CntyDataLink!$FD$25)))","v":2061},{"$f":"IF((CntyDataLink!$FN$25)=\"n\",NA(),IF(VALUE(CntyDataLink!$FN$25)=\"\",NA(),VALUE(CntyDataLink!$FN$25)))","v":2128},{"$f":"$M32-C32","v":514}]
[null,"Service Providing",{"$f":"IF((CntyDataLink!$CH$25)=\"n\",NA(),IF(VALUE(CntyDataLink!$CH$25)=\"\",NA(),VALUE(CntyDataLink!$CH$25)))","v":7750},{"$f":"IF((CntyDataLink!$CP$25)=\"n\",NA(),IF(VALUE(CntyDataLink!$CP$25)=\"\",NA(),VALUE(CntyDataLink!$CP$25)))","v":7760},{"$f":"IF((CntyDataLink!$CX$25)=\"n\",NA(),IF(VALUE(CntyDataLink!$CX$25)=\"\",NA(),VALUE(CntyDataLink!$CX$25)))","v":7885},{"$f":"IF((CntyDataLink!$DF$25)=\"n\",NA(),IF(VALUE(CntyDataLink!$DF$25)=\"\",NA(),VALUE(CntyDataLink!$DF$25)))","v":7914},{"$f":"IF((CntyDataLink!$DN$25)=\"n\",NA(),IF(VALUE(CntyDataLink!$DN$25)=\"\",NA(),VALUE(CntyDataLink!$DN$25)))","v":8161},{"$f":"IF((CntyDataLink!$DV$25)=\"n\",NA(),IF(VALUE(CntyDataLink!$DV$25)=\"\",NA(),VALUE(CntyDataLink!$DV$25)))","v":8442},{"$f":"IF((CntyDataLink!$ED$25)=\"n\",NA(),IF(VALUE(CntyDataLink!$ED$25)=\"\",NA(),VALUE(CntyDataLink!$ED$25)))","v":8522},{"$f":"IF((CntyDataLink!$EL$25)=\"n\",NA(),IF(VALUE(CntyDataLink!$EL$25)=\"\",NA(),VALUE(CntyDataLink!$EL$25)))","v":8681},{"$f":"IF((CntyDataLink!$EU$25)=\"n\",NA(),IF(VALUE(CntyDataLink!$EU$25)=\"\",NA(),VALUE(CntyDataLink!$EU$25)))","v":8697},{"$f":"IF((CntyDataLink!$FE$25)=\"n\",NA(),IF(VALUE(CntyDataLink!$FE$25)=\"\",NA(),VALUE(CntyDataLink!$FE$25)))","v":7980},{"$f":"IF((CntyDataLink!$FO$25)=\"n\",NA(),IF(VALUE(CntyDataLink!$FO$25)=\"\",NA(),VALUE(CntyDataLink!$FO$25)))","v":8076},{"$f":"$M33-C33","v":326}]
[null,"Total Private Emp",{"$f":"IF((CntyDataLink!$CF$25)=\"n\",NA(),IF(VALUE(CntyDataLink!$CF$25)=\"\",NA(),VALUE(CntyDataLink!$CF$25)))","v":9364},{"$f":"IF((CntyDataLink!$CN$25)=\"n\",NA(),IF(VALUE(CntyDataLink!$CN$25)=\"\",NA(),VALUE(CntyDataLink!$CN$25)))","v":9318},{"$f":"IF((CntyDataLink!$CV$25)=\"n\",NA(),IF(VALUE(CntyDataLink!$CV$25)=\"\",NA(),VALUE(CntyDataLink!$CV$25)))","v":9644},{"$f":"IF((CntyDataLink!$DD$25)=\"n\",NA(),IF(VALUE(CntyDataLink!$DD$25)=\"\",NA(),VALUE(CntyDataLink!$DD$25)))","v":9811},{"$f":"IF((CntyDataLink!$DL$25)=\"n\",NA(),IF(VALUE(CntyDataLink!$DL$25)=\"\",NA(),VALUE(CntyDataLink!$DL$25)))","v":10100},{"$f":"IF((CntyDataLink!$DT$25)=\"n\",NA(),IF(VALUE(CntyDataLink!$DT$25)=\"\",NA(),VALUE(CntyDataLink!$DT$25)))","v":10514},{"$f":"IF((CntyDataLink!$EB$25)=\"n\",NA(),IF(VALUE(CntyDataLink!$EB$25)=\"\",NA(),VALUE(CntyDataLink!$EB$25)))","v":10693},{"$f":"IF((CntyDataLink!$EJ$25)=\"n\",NA(),IF(VALUE(CntyDataLink!$EJ$25)=\"\",NA(),VALUE(CntyDataLink!$EJ$25)))","v":10941},{"$f":"IF((CntyDataLink!$ER$25)=\"n\",NA(),IF(VALUE(CntyDataLink!$ER$25)=\"\",NA(),VALUE(CntyDataLink!$ER$25)))","v":11067},{"$f":"IF((CntyDataLink!$FB$25)=\"n\",NA(),IF(VALUE(CntyDataLink!$FB$25)=\"\",NA(),VALUE(CntyDataLink!$FB$25)))","v":10041},{"$f":"IF((CntyDataLink!$FL$25)=\"n\",NA(),IF(VALUE(CntyDataLink!$FL$25)=\"\",NA(),VALUE(CntyDataLink!$FL$25)))","v":10204},{"$f":"$M34-C34","v":840}]
[]
[null,"% Change from prior Year",null,"11-12","12-13","13-14","14-15","15-16","16-17","17-18","18-19","19-20","20-21","Total % Change"]
[null,"Goods Producing",null,{"$f":"(D32-C32)/C32","v":-3.4076827757125158E-2},0.12828736369467608,7.845366685616828E-2,2.2140221402214021E-2,6.8592057761732855E-2,{"$f":"(I32-H32)/H32","v":4.72972972972973E-2},4.1474654377880185E-2,4.8672566371681415E-2,-0.13037974683544304,3.2508491023774864E-2,{"$f":"N32/C32","v":0.31846344485749689}]
[null,"Service Providing",null,1.2903225806451613E-3,1.6108247422680411E-2,3.6778693722257453E-3,{"$f":"(G33-F33)/F33","v":3.1210513014910287E-2},3.4432054895233426E-2,9.4764273868751473E-3,1.8657592114527107E-2,1.8431056329915908E-3,-8.2442221455674369E-2,1.2030075187969926E-2,{"$f":"N33/C33","v":4.206451612903226E-2}]
[null,"Total Private Emp",null,-4.9124305852199911E-3,3.4986048508263576E-2,1.731646619659892E-2,2.945673223932321E-2,4.0990099009900992E-2,1.7024919155411832E-2,2.3192742915926306E-2,1.1516314779270634E-2,-9.2708050962320418E-2,1.6233442884174883E-2,{"$f":"N34/C34","v":8.9705254164886797E-2}]
[]
[]
[null,"EMPLOYMENT CHARACTERISTICS"]
[]
[]
[]
[]
[]
[]
[]
[]
[]
[]
[]
[]
[]
[]
[]
[]
[]
[]
[]
[]
[]
[]
[]
[]
[null,"Covered Private Employment Average Wages",null,null,"Source: NH Department of Employment Security, Covered Private Employment"]
[]
[null,null,2011,{"$f":"C69+1","v":2012},{"$f":"D69+1","v":2013},{"$f":"E69+1","v":2014},2015,2016,2017,2018,2019,2020,2021,"Total $ Change"]
[null,"Goods Producing",{"$f":"IF((CntyDataLink!$CK$25)=\"n\",NA(),IF(VALUE(CntyDataLink!$CK$25)=\"\",NA(),VALUE(CntyDataLink!$CK$25)))","v":1062.29},{"$f":"IF((CntyDataLink!$CS$25)=\"n\",NA(),IF(VALUE(CntyDataLink!$CS$25)=\"\",NA(),VALUE(CntyDataLink!$CS$25)))","v":1163.8599999999999},{"$f":"IF((CntyDataLink!$DA$25)=\"n\",NA(),IF(VALUE(CntyDataLink!$DA$25)=\"\",NA(),VALUE(CntyDataLink!$DA$25)))","v":1198.75},{"$f":"IF((CntyDataLink!$DI$25)=\"n\",NA(),IF(VALUE(CntyDataLink!$DI$25)=\"\",NA(),VALUE(CntyDataLink!$DI$25)))","v":1206.82},{"$f":"IF((CntyDataLink!$DQ$25)=\"n\",NA(),IF(VALUE(CntyDataLink!$DQ$25)=\"\",NA(),VALUE(CntyDataLink!$DQ$25)))","v":1305.07},{"$f":"IF((CntyDataLink!$DY$25)=\"n\",NA(),IF(VALUE(CntyDataLink!$DY$25)=\"\",NA(),VALUE(CntyDataLink!$DY$25)))","v":1296.42},{"$f":"IF((CntyDataLink!$EG$25)=\"n\",NA(),IF(VALUE(CntyDataLink!$EG$25)=\"\",NA(),VALUE(CntyDataLink!$EG$25)))","v":1388.36},{"$f":"IF((CntyDataLink!$EO$25)=\"n\",NA(),IF(VALUE(CntyDataLink!$EO$25)=\"\",NA(),VALUE(CntyDataLink!$EO$25)))","v":1302.67},{"$f":"IF((CntyDataLink!$EY$25)=\"n\",NA(),IF(VALUE(CntyDataLink!$EY$25)=\"\",NA(),VALUE(CntyDataLink!$EY$25)))","v":1307.21},{"$f":"IF((CntyDataLink!$FI$25)=\"n\",NA(),IF(VALUE(CntyDataLink!$FI$25)=\"\",NA(),VALUE(CntyDataLink!$FI$25)))","v":1406.28},{"$f":"IF((CntyDataLink!$FS$25)=\"n\",NA(),IF(VALUE(CntyDataLink!$FS$25)=\"\",NA(),VALUE(CntyDataLink!$FS$25)))","v":1416.61},{"$f":"M70-C70","v":354.31999999999994}]
[null,"Service Providing",{"$f":"IF((CntyDataLink!$CL$25)=\"n\",NA(),IF(VALUE(CntyDataLink!$CL$25)=\"\",NA(),VALUE(CntyDataLink!$CL$25)))","v":665.17},{"$f":"IF((CntyDataLink!$CT$25)=\"n\",NA(),IF(VALUE(CntyDataLink!$CT$25)=\"\",NA(),VALUE(CntyDataLink!$CT$25)))","v":670.33},{"$f":"IF((CntyDataLink!$DB$25)=\"n\",NA(),IF(VALUE(CntyDataLink!$DB$25)=\"\",NA(),VALUE(CntyDataLink!$DB$25)))","v":669.88},{"$f":"IF((CntyDataLink!$DJ$25)=\"n\",NA(),IF(VALUE(CntyDataLink!$DJ$25)=\"\",NA(),VALUE(CntyDataLink!$DJ$25)))","v":696.03},{"$f":"IF((CntyDataLink!$DR$25)=\"n\",NA(),IF(VALUE(CntyDataLink!$DR$25)=\"\",NA(),VALUE(CntyDataLink!$DR$25)))","v":741.27},{"$f":"IF((CntyDataLink!$DZ$25)=\"n\",NA(),IF(VALUE(CntyDataLink!$DZ$25)=\"\",NA(),VALUE(CntyDataLink!$DZ$25)))","v":741.78},{"$f":"IF((CntyDataLink!EE$25)=\"n\",NA(),IF(VALUE(CntyDataLink!$EE$25)=\"\",NA(),VALUE(CntyDataLink!$EE$25)))","v":877.87},{"$f":"IF((CntyDataLink!EM$25)=\"n\",NA(),IF(VALUE(CntyDataLink!$EM$25)=\"\",NA(),VALUE(CntyDataLink!$EM$25)))","v":889.69},{"$f":"IF((CntyDataLink!EZ$25)=\"n\",NA(),IF(VALUE(CntyDataLink!$EZ$25)=\"\",NA(),VALUE(CntyDataLink!$EZ$25)))","v":796.89},{"$f":"IF((CntyDataLink!FJ$25)=\"n\",NA(),IF(VALUE(CntyDataLink!$FJ$25)=\"\",NA(),VALUE(CntyDataLink!$FJ$25)))","v":865.36},{"$f":"IF((CntyDataLink!FT$25)=\"n\",NA(),IF(VALUE(CntyDataLink!$FT$25)=\"\",NA(),VALUE(CntyDataLink!$FT$25)))","v":884.52},{"$f":"M71-C71","v":219.35000000000002}]
[null,"Total Private Emp",{"$f":"IF((CntyDataLink!$CJ$25)=\"n\",NA(),IF(VALUE(CntyDataLink!$CJ$25)=\"\",NA(),VALUE(CntyDataLink!$CJ$25)))","v":733.64},{"$f":"IF((CntyDataLink!$CR$25)=\"n\",NA(),IF(VALUE(CntyDataLink!$CR$25)=\"\",NA(),VALUE(CntyDataLink!$CR$25)))","v":752.87},{"$f":"IF((CntyDataLink!$CZ$25)=\"n\",NA(),IF(VALUE(CntyDataLink!$CZ$25)=\"\",NA(),VALUE(CntyDataLink!$CZ$25)))","v":766.34},{"$f":"IF((CntyDataLink!$DH$25)=\"n\",NA(),IF(VALUE(CntyDataLink!$DH$25)=\"\",NA(),VALUE(CntyDataLink!$DH$25)))","v":794.8},{"$f":"IF((CntyDataLink!$DP$25)=\"n\",NA(),IF(VALUE(CntyDataLink!$DP$25)=\"\",NA(),VALUE(CntyDataLink!$DP$25)))","v":849.52},{"$f":"IF((CntyDataLink!$DX$25)=\"n\",NA(),IF(VALUE(CntyDataLink!$DX$25)=\"\",NA(),VALUE(CntyDataLink!$DX$25)))","v":851.07},{"$f":"IF((CntyDataLink!$EF$25)=\"n\",NA(),IF(VALUE(CntyDataLink!$EF$25)=\"\",NA(),VALUE(CntyDataLink!$EF$25)))","v":884.76},{"$f":"IF((CntyDataLink!$EN$25)=\"n\",NA(),IF(VALUE(CntyDataLink!$EN$25)=\"\",NA(),VALUE(CntyDataLink!$EN$25)))","v":895.48},{"$f":"IF((CntyDataLink!$EW$25)=\"n\",NA(),IF(VALUE(CntyDataLink!$EW$25)=\"\",NA(),VALUE(CntyDataLink!$EW$25)))","v":906.17},{"$f":"IF((CntyDataLink!$FG$25)=\"n\",NA(),IF(VALUE(CntyDataLink!$FG$25)=\"\",NA(),VALUE(CntyDataLink!$FG$25)))","v":976.39},{"$f":"IF((CntyDataLink!$FQ$25)=\"n\",NA(),IF(VALUE(CntyDataLink!$FQ$25)=\"\",NA(),VALUE(CntyDataLink!$FQ$25)))","v":995.49},{"$f":"M72-C72","v":261.85000000000002}]
[]
[null,"% Change from prior Year",null,"11-12","12-13","13-14","14-15","15-16","16-17","17-18","18-19","19-20","20-21","Total % Change"]
[null,"Goods Producing",null,{"$f":"(D70-C70)/C70","v":9.5614191981473931E-2},2.9977832385338531E-2,6.7320125130343579E-3,8.1412306723455036E-2,-6.6279969656798977E-3,7.0918375217907642E-2,-6.1720303091417093E-2,3.4851497309372008E-3,7.5787363927754481E-2,7.3456210711948739E-3,{"$f":"N70/C70","v":0.33354357096461412}]
[null,"Service Providing",null,7.757415397567663E-3,-6.7131114525688157E-4,3.9036842419537796E-2,6.4997198396620853E-2,6.8800841798533725E-4,0.18346409986788539,1.3464408169774626E-2,-0.10430599422270685,8.5921519908644897E-2,2.2141074235000426E-2,{"$f":"N71/C71","v":0.32976532315047286}]
[null,"Total Private Emp",null,2.6211765988768357E-2,1.78915350591736E-2,3.7137562961609624E-2,6.8847508807247146E-2,1.8245597513890999E-3,3.9585463005393139E-2,1.2116280121162832E-2,1.1937731719301315E-2,7.74909785139654E-2,1.9561855406138962E-2,{"$f":"N72/C72","v":0.35691892481325993}]
[]
[]
[null,"LABOR FORCE AND UNEMPLOYMENT CHARACTERISTICS"]
[]
[]
[]
[]
[]
[]
[]
[]
[]
[]
[]
[]
[]
[]
[]
[]
[]
[]
[]
[]
[]
[]
[]
[]
[]
[]
[]
[]
[]
[null,"Annual Average Labor Force and Unemployment ",null,null,null,"Source: NH Department of Employment Security, Local Area Unemployment Statistics"]
[null,null,2011,{"$f":"C111+1","v":2012},{"$f":"D111+1","v":2013},2014,2015,2016,2017,2018,2019,2020,2021,"Total Change  "]
[null,"Civilian Labor Force",{"$f":"CntyDataLink!$CH30","v":16868},{"$f":"CntyDataLink!$CL30","v":16840},{"$f":"CntyDataLink!$CP30","v":16849},{"$f":"CntyDataLink!$CT30","v":16923},{"$f":"CntyDataLink!$CX30","v":16914},{"$f":"CntyDataLink!$DB30","v":17257},{"$f":"CntyDataLink!$DF30","v":17433},{"$f":"CntyDataLink!$DF30","v":17433},{"$f":"CntyDataLink!$DN30","v":18140},{"$f":"CntyDataLink!$DR30","v":17760},{"$f":"CntyDataLink!$DV30","v":17640},{"$f":"M112-C112","v":772}]
[null,"Employed Labor Force",{"$f":"CntyDataLink!$CI$30","v":15894},{"$f":"CntyDataLink!$CM$30","v":15863},{"$f":"CntyDataLink!$CQ$30","v":15932},{"$f":"CntyDataLink!$CU$30","v":16214},{"$f":"CntyDataLink!$CY$30","v":16360},{"$f":"CntyDataLink!$DC$30","v":16818},{"$f":"CntyDataLink!$DG$30","v":17005},{"$f":"CntyDataLink!$DG$30","v":17005},{"$f":"CntyDataLink!$DO$30","v":17700},{"$f":"CntyDataLink!$DS$30","v":16520},{"$f":"CntyDataLink!$DW$30","v":17040},{"$f":"M113-C113","v":1146}]
[null,"Unemployed Labor Force",{"$f":"CntyDataLink!$CJ$30","v":974},{"$f":"CntyDataLink!$CN$30","v":977},{"$f":"CntyDataLink!$CR$30","v":917},{"$f":"CntyDataLink!$CV$30","v":709},{"$f":"CntyDataLink!$CZ$30","v":554},{"$f":"CntyDataLink!$DD$30","v":439},{"$f":"CntyDataLink!$DH$30","v":428},{"$f":"CntyDataLink!$DH$30","v":428},{"$f":"CntyDataLink!$DP$30","v":440},{"$f":"CntyDataLink!$DT$30","v":1240},{"$f":"CntyDataLink!$DX$30","v":600},{"$f":"M114-C114","v":-374}]
[null,"Unemployment Rate",{"$f":"CntyDataLink!$CK$30","v":5.8},{"$f":"CntyDataLink!$CO$30","v":5.8},{"$f":"CntyDataLink!$CS$30","v":5.4},{"$f":"CntyDataLink!$CW$30","v":4.2},{"$f":"CntyDataLink!$DA$30","v":3.3000000000000003},{"$f":"CntyDataLink!$DE$30","v":2.5},{"$f":"CntyDataLink!$DI$30","v":2.5},{"$f":"CntyDataLink!$DI$30","v":2.5},{"$f":"CntyDataLink!$DQ$30","v":2.4},{"$f":"CntyDataLink!$DU$30","v":7.0000000000000009},{"$f":"CntyDataLink!$DY$30","v":3.4000000000000004}]

{"sheet":"EmpVsHUxCounty","index":10,"n_rows":124,"n_cols":14,"rows_kept":124,"cut":false,"hidden":true,"merged":[[64,0,64,11],[79,0,80,9]]}
[]
[{"$f":"CntyDataLink!A35","v":"Rochester"}]
[]
[]
[]
[]
[]
[]
[]
[]
[]
[]
[]
[]
[]
[]
[]
[]
[]
[]
[]
[]
[]
[]
[]
[]
[]
[]
[]
[]
[]
[]
[]
[]
[]
[]
[]
[]
[]
[]
[]
[]
[]
["Housing Units "]
[{"$f":"CntyDataLink!A20","v":"Rochester"}]
[null,null,null,"Source: Office of Planning and Devolpment, NH BEA"]
["Units Authorized By Permit",2010,{"$f":"B47+1","v":2011},{"$f":"C47+1","v":2012},2013,2014,2015,2016,2017,2018,2019,2020,2021]
["Single Family",{"$f":"CntyDataLink!$CY$20","v":20},{"$f":"CntyDataLink!$DB$20","v":20},{"$f":"CntyDataLink!$DE$20","v":39},{"$f":"CntyDataLink!$DH$20","v":0},{"$f":"CntyDataLink!$DK$20","v":27},{"$f":"CntyDataLink!$DN$20","v":45},{"$f":"CntyDataLink!$DQ$20","v":7},{"$f":"CntyDataLink!$DT$20","v":71},{"$f":"CntyDataLink!$DW$20","v":61},{"$f":"CntyDataLink!$DZ$20","v":33},{"$f":"CntyDataLink!$EC$20","v":55},{"$f":"CntyDataLink!$EI$20","v":54}]
["Multi-family",{"$f":"CntyDataLink!$CZ$20","v":31},{"$f":"CntyDataLink!$DC$20","v":0},{"$f":"CntyDataLink!$DF$20","v":0},{"$f":"CntyDataLink!$DI$20","v":0},{"$f":"CntyDataLink!$DL$20","v":24},{"$f":"CntyDataLink!$DO$20","v":51},{"$f":"CntyDataLink!$DR$20","v":71},{"$f":"CntyDataLink!$DU$20","v":113},{"$f":"CntyDataLink!$DX$20","v":58},{"$f":"CntyDataLink!$EA$20","v":123},{"$f":"CntyDataLink!$ED$20","v":15},{"$f":"CntyDataLink!$EJ$20","v":90}]
["Mobile Home",{"$f":"CntyDataLink!$DA$20","v":5},{"$f":"CntyDataLink!$DD$20","v":0},{"$f":"CntyDataLink!$DG$20","v":36},{"$f":"CntyDataLink!$DJ$20","v":3},{"$f":"CntyDataLink!$DM$20","v":7},{"$f":"CntyDataLink!$DP$20","v":0},{"$f":"CntyDataLink!$DR$20","v":71},{"$f":"CntyDataLink!$DV$20","v":28},{"$f":"CntyDataLink!$DY$20","v":24},{"$f":"CntyDataLink!$EB$20","v":5},{"$f":"CntyDataLink!$EE$20","v":22},{"$f":"CntyDataLink!$EK$20","v":8}]
["Total",{"$f":"SUM(B48:B50)","v":56},20,75,3,58,96,149,212,{"$f":"SUM(J48:J50)","v":143},{"$f":"SUM(K48:K50)","v":161},{"$f":"SUM(L48:L50)","v":92},{"$f":"SUM(M48:M50)","v":152}]
[]
["Total Housing Units","2010 Census",2011,{"$f":"C53+1","v":2012},2013,2014,2015,2016,2017,2018,2019,2020,2021,2022]
["Single Family",{"$f":"CntyDataLink!$BA$167","v":6622},{"$f":"B48+B54","v":6642},6662,6701,6701,6728,6773,6780,6851,6912,{"$f":"K54+K48","v":6945},7000,7054]
["Multi Family",{"$f":"CntyDataLink!$BB$167","v":4349},4380,4380,4380,4380,4404,4455,4526,4639,4697,4820,4835,4925]
["Mobile Home",{"$f":"CntyDataLink!$BC$167","v":2402},2407,2407,2443,2446,2453,2453,2524,2552,2576,2581,2603,2611]
["Total",{"$f":"SUM(B54:B56)","v":13373},13429,13449,13524,13527,13585,13681,13830,14042,14185,14346,14438,{"$f":"SUM(N54:N56)","v":14590}]
[]
["Percent Change","2000-2010 Census"," 10-11"," 11-12","12-13","13-14","14-15","15-16","16-17","17-18","18-19","19-20","20-21","21-22"]
["Single Family",{"$f":"(B54-CntyDataLink!CF$65)/CntyDataLink!CF$65","v":0.15627728304522437},{"$f":"(C54-B54)/B54","v":3.0202355783751134E-3},3.0111412225233363E-3,5.8540978685079556E-3,0,4.0292493657663039E-3,6.6884661117717001E-3,1.033515428908903E-3,1.0471976401179941E-2,8.9038096628229462E-3,4.7743055555555559E-3,7.9193664506839456E-3,7.7142857142857143E-3]
["Multi Family",{"$f":"(B55-SUM(CntyDataLink!CG65:CM65))/SUM(CntyDataLink!CG65:CM65)","v":0.12551759834368531},7.128075419636698E-3,0,0,0,5.4794520547945206E-3,1.1580381471389645E-2,1.5937149270482603E-2,2.496685815289439E-2,1.2502694546238414E-2,2.6186927826272088E-2,3.1120331950207467E-3,1.8614270941054809E-2]
["Mobile Home",{"$f":"(B56-SUM(CntyDataLink!CN65))/(CntyDataLink!CN65)","v":7.2800357302367127E-2},2.0815986677768525E-3,0,1.4956377233070212E-2,1.2279983626688497E-3,2.8618152085036794E-3,0,2.8944150020383204E-2,1.1093502377179081E-2,9.4043887147335428E-3,1.9409937888198758E-3,8.5238279736536225E-3,3.073376872839032E-3]
["Total",{"$f":"(B57-CntyDataLink!$CE65)/CntyDataLink!$CE65","v":0.12985806015545792},4.1875420623644658E-3,1.4893141708243354E-3,5.5766227972339948E-3,2.2182786157941438E-4,4.2877208545871216E-3,7.0666175929333828E-3,1.0891016738542505E-2,1.5328994938539408E-2,1.0183734510753453E-2,1.1350017624250969E-2,6.4129374041544682E-3,1.052777392990719E-2]
[]
[]
[]
[]
["Private Employment"]
[{"$f":"CntyDataLink!A25","v":"Rochester"}]
[null,null,2010,{"$f":"C70+1","v":2011},2012,2013,2014,2015,2016,2017,2018,2019,2020,2021]
["Goods Producing",null,{"$f":"IF((CntyDataLink!$BY$25)=\"n\",NA(),IF(VALUE(CntyDataLink!$BY$25)=\"\",NA(),VALUE(CntyDataLink!$BY$25)))","v":1671},{"$f":"IF((CntyDataLink!$CG$25)=\"n\",NA(),IF(VALUE(CntyDataLink!$CG$25)=\"\",NA(),VALUE(CntyDataLink!$CG$25)))","v":1614},{"$f":"IF((CntyDataLink!$CO$25)=\"n\",NA(),IF(VALUE(CntyDataLink!$CO$25)=\"\",NA(),VALUE(CntyDataLink!$CO$25)))","v":1559},{"$f":"IF((CntyDataLink!$CW$25)=\"n\",NA(),IF(VALUE(CntyDataLink!$CW$25)=\"\",NA(),VALUE(CntyDataLink!$CW$25)))","v":1759},{"$f":"IF((CntyDataLink!$DE$25)=\"n\",NA(),IF(VALUE(CntyDataLink!$DE$25)=\"\",NA(),VALUE(CntyDataLink!$DE$25)))","v":1897},{"$f":"IF((CntyDataLink!$DM$25)=\"n\",NA(),IF(VALUE(CntyDataLink!$DM$25)=\"\",NA(),VALUE(CntyDataLink!$DM$25)))","v":1939},{"$f":"IF((CntyDataLink!$DU$25)=\"n\",NA(),IF(VALUE(CntyDataLink!$DU$25)=\"\",NA(),VALUE(CntyDataLink!$DU$25)))","v":2072},{"$f":"IF((CntyDataLink!$EC$25)=\"n\",NA(),IF(VALUE(CntyDataLink!$EC$25)=\"\",NA(),VALUE(CntyDataLink!$EC$25)))","v":2170},{"$f":"IF((CntyDataLink!$EK$25)=\"n\",NA(),IF(VALUE(CntyDataLink!$EK$25)=\"\",NA(),VALUE(CntyDataLink!$EK$25)))","v":2260},{"$f":"IF((CntyDataLink!$ET$25)=\"n\",NA(),IF(VALUE(CntyDataLink!$ET$25)=\"\",NA(),VALUE(CntyDataLink!$ET$25)))","v":2370},{"$f":"IF((CntyDataLink!$FD$25)=\"n\",NA(),IF(VALUE(CntyDataLink!$FD$25)=\"\",NA(),VALUE(CntyDataLink!$FD$25)))","v":2061},{"$f":"IF((CntyDataLink!$FN$25)=\"n\",NA(),IF(VALUE(CntyDataLink!$FN$25)=\"\",NA(),VALUE(CntyDataLink!$FN$25)))","v":2128}]
["Service Providing",null,{"$f":"IF((CntyDataLink!$BZ$25)=\"n\",NA(),IF(VALUE(CntyDataLink!$BZ$25)=\"\",NA(),VALUE(CntyDataLink!$BZ$25)))","v":7928},{"$f":"IF((CntyDataLink!$CH$25)=\"n\",NA(),IF(VALUE(CntyDataLink!$CH$25)=\"\",NA(),VALUE(CntyDataLink!$CH$25)))","v":7750},{"$f":"IF((CntyDataLink!$CP$25)=\"n\",NA(),IF(VALUE(CntyDataLink!$CP$25)=\"\",NA(),VALUE(CntyDataLink!$CP$25)))","v":7760},{"$f":"IF((CntyDataLink!$CX$25)=\"n\",NA(),IF(VALUE(CntyDataLink!$CX$25)=\"\",NA(),VALUE(CntyDataLink!$CX$25)))","v":7885},{"$f":"IF((CntyDataLink!$DF$25)=\"n\",NA(),IF(VALUE(CntyDataLink!$DF$25)=\"\",NA(),VALUE(CntyDataLink!$DF$25)))","v":7914},{"$f":"IF((CntyDataLink!$DN$25)=\"n\",NA(),IF(VALUE(CntyDataLink!$DN$25)=\"\",NA(),VALUE(CntyDataLink!$DN$25)))","v":8161},{"$f":"IF((CntyDataLink!$DV$25)=\"n\",NA(),IF(VALUE(CntyDataLink!$DV$25)=\"\",NA(),VALUE(CntyDataLink!$DV$25)))","v":8442},{"$f":"IF((CntyDataLink!$ED$25)=\"n\",NA(),IF(VALUE(CntyDataLink!$ED$25)=\"\",NA(),VALUE(CntyDataLink!$ED$25)))","v":8522},{"$f":"IF((CntyDataLink!$EL$25)=\"n\",NA(),IF(VALUE(CntyDataLink!$EL$25)=\"\",NA(),VALUE(CntyDataLink!$EL$25)))","v":8681},{"$f":"IF((CntyDataLink!$EU$25)=\"n\",NA(),IF(VALUE(CntyDataLink!$EU$25)=\"\",NA(),VALUE(CntyDataLink!$EU$25)))","v":8697},{"$f":"IF((CntyDataLink!$FE$25)=\"n\",NA(),IF(VALUE(CntyDataLink!$FE$25)=\"\",NA(),VALUE(CntyDataLink!$FE$25)))","v":7980},{"$f":"IF((CntyDataLink!$FO$25)=\"n\",NA(),IF(VALUE(CntyDataLink!$FO$25)=\"\",NA(),VALUE(CntyDataLink!$FO$25)))","v":8076}]
["Total Private Emp",null,{"$f":"IF((CntyDataLink!$BX$25)=\"n\",NA(),IF(VALUE(CntyDataLink!$BX$25)=\"\",NA(),VALUE(CntyDataLink!$BX$25)))","v":9599},{"$f":"IF((CntyDataLink!$CF$25)=\"n\",NA(),IF(VALUE(CntyDataLink!$CF$25)=\"\",NA(),VALUE(CntyDataLink!$CF$25)))","v":9364},{"$f":"IF((CntyDataLink!$CN$25)=\"n\",NA(),IF(VALUE(CntyDataLink!$CN$25)=\"\",NA(),VALUE(CntyDataLink!$CN$25)))","v":9318},{"$f":"IF((CntyDataLink!$CV$25)=\"n\",NA(),IF(VALUE(CntyDataLink!$CV$25)=\"\",NA(),VALUE(CntyDataLink!$CV$25)))","v":9644},{"$f":"IF((CntyDataLink!$DD$25)=\"n\",NA(),IF(VALUE(CntyDataLink!$DD$25)=\"\",NA(),VALUE(CntyDataLink!$DD$25)))","v":9811},{"$f":"IF((CntyDataLink!$DL$25)=\"n\",NA(),IF(VALUE(CntyDataLink!$DL$25)=\"\",NA(),VALUE(CntyDataLink!$DL$25)))","v":10100},{"$f":"IF((CntyDataLink!$DT$25)=\"n\",NA(),IF(VALUE(CntyDataLink!$DT$25)=\"\",NA(),VALUE(CntyDataLink!$DT$25)))","v":10514},{"$f":"IF((CntyDataLink!$EB$25)=\"n\",NA(),IF(VALUE(CntyDataLink!$EB$25)=\"\",NA(),VALUE(CntyDataLink!$EB$25)))","v":10693},{"$f":"IF((CntyDataLink!$EJ$25)=\"n\",NA(),IF(VALUE(CntyDataLink!$EJ$25)=\"\",NA(),VALUE(CntyDataLink!$EJ$25)))","v":10941},{"$f":"IF((CntyDataLink!$ER$25)=\"n\",NA(),IF(VALUE(CntyDataLink!$ER$25)=\"\",NA(),VALUE(CntyDataLink!$ER$25)))","v":11067},{"$f":"IF((CntyDataLink!$FB$25)=\"n\",NA(),IF(VALUE(CntyDataLink!$FB$25)=\"\",NA(),VALUE(CntyDataLink!$FB$25)))","v":10041},{"$f":"IF((CntyDataLink!$FL$25)=\"n\",NA(),IF(VALUE(CntyDataLink!$FL$25)=\"\",NA(),VALUE(CntyDataLink!$FL$25)))","v":10204}]
[]
["Percent Change",null,null,"10-11","11-12","12-13","13-14","14-15","15-16","16-17","17-18","18-19","19-20","20-21"]
["Goods Producing",null,null,{"$f":"(D71-C71)/C71","v":-3.4111310592459608E-2},-3.4076827757125158E-2,0.12828736369467608,7.845366685616828E-2,2.2140221402214021E-2,6.8592057761732855E-2,4.72972972972973E-2,4.1474654377880185E-2,4.8672566371681415E-2,-0.13037974683544304,{"$f":"(N71-M71)/M71","v":3.2508491023774864E-2}]
["Service Providing",null,null,-2.2452068617558021E-2,1.2903225806451613E-3,1.6108247422680411E-2,3.6778693722257453E-3,3.1210513014910287E-2,3.4432054895233426E-2,9.4764273868751473E-3,1.8657592114527107E-2,1.8431056329915908E-3,-8.2442221455674369E-2,1.2030075187969926E-2]
["Total Private Emp",null,null,-2.448171684550474E-2,{"$f":"(E73-D73)/D73","v":-4.9124305852199911E-3},3.4986048508263576E-2,1.731646619659892E-2,2.945673223932321E-2,4.0990099009900992E-2,1.7024919155411832E-2,2.3192742915926306E-2,1.1516314779270634E-2,-9.2708050962320418E-2,{"$f":"(N73-M73)/M73","v":1.6233442884174883E-2}]
[]
[]
[]
[]
[]
[]
["Source: New Hampshire Department of Employment Security"]
[]
[{"$f":"A2","v":"Rochester"}]
[]
[]
[]
[]
[]
[]
[]
[]
[]
[]
[]
[]
[]
[]
[]
[]
[]
[]
[]
[]
[]
[]
[]
[]
[]
[]
[]
[]
[]
[]
[]
[]
[null,null,2011,{"$f":"C120+1","v":2012},2013,2014,2015,2016,2017,2018,2019,2020,2021]
["Total Housing Units",null,{"$f":"C$57","v":13429},13449,13524,13527,13585,13681,13830,14042,14185,14346,14438]
["Private & Government Emp.",null,{"$f":"VALUE(CntyDataLink!$CE$25)","v":10780},{"$f":"VALUE(CntyDataLink!$CM$25)","v":10732},{"$f":"VALUE(CntyDataLink!$CU$25)","v":11035},{"$f":"VALUE(CntyDataLink!$DC$25)","v":11249},{"$f":"VALUE(CntyDataLink!$DK$25)","v":11523},{"$f":"VALUE(CntyDataLink!$DS$25)","v":11928},{"$f":"VALUE(CntyDataLink!$EA$25)","v":12108},{"$f":"VALUE(CntyDataLink!$EI$25)","v":12359},{"$f":"VALUE(CntyDataLink!$EQ$25)","v":12483},{"$f":"VALUE(CntyDataLink!$FA$25)","v":11425},{"$f":"VALUE(CntyDataLink!$FK$25)","v":11529}]
[]
["Source: New Hampshire Department of Employment Security and Office of Planning and Development, NH BEA"]

{"sheet":"HHIncome-10YearComparison","index":11,"n_rows":50,"n_cols":17,"rows_kept":50,"cut":false,"hidden":true,"merged":[[27,15,27,16],[27,11,27,13],[28,1,28,2],[3,1,3,3],[26,1,26,4],[27,4,27,7],[27,8,27,10]],"read":"row_number_cap"}
[]
[null,{"$f":"CntyDataLink!A35","v":"Rochester"}]
[]
[null,"INCOME CHARACTERISTICS"]
[]
[]
[]
[]
[]
[]
[]
[]
[]
[]
[]
[]
[]
[]
[]
[]
[]
[]
[]
[]
[]
[]
[null,"Households By Household Income"]
[null,null,null,null,"2008-2012",null,null,null,"2013-2017",null,null,"2018-2022",null,null,null,"Statistically Significant Change"]
[null,"Household Income",null,null,"Estimate","Margin of Error",null,null,"Estimate"," Margin of Error",null,"Estimate"," Margin of Error",null,null,"2012-2022","2017-2022"]
[null,"Less than $10,000",null,null,{"$f":"CntyDataLinkPrior10YearEstimate!$B$120","v":553},{"$f":"CntyDataLinkPrior10YearEstimate!$C$120","v":151},{"$f":"E30/SUM($E$30:$E$39)","v":4.4751962450432954E-2},null,{"$f":"CntyDataLinkPrior5YearEstimates!$B$120","v":703},{"$f":"CntyDataLinkPrior5YearEstimates!$C$120","v":233},{"$f":"I30/SUM($I$30:$I$39)","v":5.4763574043779698E-2},{"$f":"CntyDataLink!$B$120","v":431},{"$f":"CntyDataLink!$C$120","v":173},{"$f":"L30/SUM($L$30:$L$39)","v":3.1826908876089202E-2},null,{"$f":"StatisticallySignificantCalcs!$A$83","v":"N"},{"$f":"StatisticallySignificantCalcs!$J$83","v":"N"}]
[null,"$10,000 to $14,999",null,null,{"$f":"CntyDataLinkPrior10YearEstimate!$D$120","v":620},{"$f":"CntyDataLinkPrior10YearEstimate!$E$120","v":151},{"$f":"E31/SUM($E$30:$E$39)","v":5.0173990450756656E-2},null,{"$f":"CntyDataLinkPrior5YearEstimates!$D$120","v":510},{"$f":"CntyDataLinkPrior5YearEstimates!$E$120","v":176},{"$f":"I31/SUM($I$30:$I$39)","v":3.9728908623510167E-2},{"$f":"CntyDataLink!$D$120","v":692},{"$f":"CntyDataLink!$E$120","v":285},{"$f":"L31/SUM($L$30:$L$39)","v":5.1100280608477329E-2},null,{"$f":"StatisticallySignificantCalcs!$A$84","v":"N"},{"$f":"StatisticallySignificantCalcs!$J$84","v":"N"}]
[null,"$15,000 to $24,999",null,null,{"$f":"CntyDataLinkPrior10YearEstimate!$F$120","v":1117},{"$f":"CntyDataLinkPrior10YearEstimate!$G$120","v":251.73398658107331},9.0394108602411594E-2,null,{"$f":"CntyDataLinkPrior5YearEstimates!$F$120","v":1413},{"$f":"CntyDataLinkPrior5YearEstimates!$G$120","v":290.20337696174386},0.11007244683337228,{"$f":"CntyDataLink!$F$120","v":1074},{"$f":"CntyDataLink!$G$120","v":234.30749027719963},7.9308817013735045E-2,null,{"$f":"StatisticallySignificantCalcs!$A$85","v":"N"},{"$f":"StatisticallySignificantCalcs!$J$85","v":"N"}]
[null,"$25,000 to $34,999",null,null,{"$f":"CntyDataLinkPrior10YearEstimate!$H$120","v":1342},{"$f":"CntyDataLinkPrior10YearEstimate!$I$120","v":268.00186566514793},0.10860241158857328,null,{"$f":"CntyDataLinkPrior5YearEstimates!$H$120","v":1318},{"$f":"CntyDataLinkPrior5YearEstimates!$I$120","v":244.92039523077696},0.10267196385448313,{"$f":"CntyDataLink!$H$120","v":1152},{"$f":"CntyDataLink!$I$120","v":314.20057288299142},8.5068675232609664E-2,null,{"$f":"StatisticallySignificantCalcs!$A$86","v":"N"},{"$f":"StatisticallySignificantCalcs!$J$86","v":"N"}]
[null,"$35,000 to $49,999",null,null,{"$f":"CntyDataLinkPrior10YearEstimate!$J$120","v":2220},{"$f":"CntyDataLinkPrior10YearEstimate!$K$120","v":340.95307595034245},0.17965525613012867,null,{"$f":"CntyDataLinkPrior5YearEstimates!$J$120","v":1927},{"$f":"CntyDataLinkPrior5YearEstimates!$K$120","v":348.97707661105767},0.15011295474020409,{"$f":"CntyDataLink!$J$120","v":1264},{"$f":"CntyDataLink!$K$120","v":324.79070183735246},9.3339240880224481E-2,null,{"$f":"StatisticallySignificantCalcs!$A$87","v":"Y"},{"$f":"StatisticallySignificantCalcs!$J$87","v":"N"}]
[null,"$50,000 to $74,999",null,null,{"$f":"CntyDataLinkPrior10YearEstimate!$L$120","v":2577},{"$f":"CntyDataLinkPrior10YearEstimate!$M$120","v":341.4849923495907},0.20854576353483856,null,{"$f":"CntyDataLinkPrior5YearEstimates!$L$120","v":2226},{"$f":"CntyDataLinkPrior5YearEstimates!$M$120","v":313.86939959161356},0.1734050011684973,{"$f":"CntyDataLink!$L$120","v":2168},{"$f":"CntyDataLink!$M$120","v":316.57068720903391},0.16009452075025846,null,{"$f":"StatisticallySignificantCalcs!$A$88","v":"N"},{"$f":"StatisticallySignificantCalcs!$J$88","v":"N"}]
[null,"$75,000 to $99,999",null,null,{"$f":"CntyDataLinkPrior10YearEstimate!$N$120","v":1589},{"$f":"CntyDataLinkPrior10YearEstimate!$O$120","v":230},0.12859108197782634,null,{"$f":"CntyDataLinkPrior5YearEstimates!$N$120","v":2276},{"$f":"CntyDataLinkPrior5YearEstimates!$O$120","v":370},0.17729999221001791,{"$f":"CntyDataLink!$N$120","v":1982},{"$f":"CntyDataLink!$O$120","v":362},0.14635947422832668,null,{"$f":"StatisticallySignificantCalcs!$A$89","v":"N"},{"$f":"StatisticallySignificantCalcs!$J$89","v":"Y"}]
[null,"$100,000 to $149,999",null,null,{"$f":"CntyDataLinkPrior10YearEstimate!$P$120","v":1585},{"$f":"CntyDataLinkPrior10YearEstimate!$Q$120","v":220.16584657934573},0.1282673788136279,null,{"$f":"CntyDataLinkPrior5YearEstimates!$P$120","v":1663},{"$f":"CntyDataLinkPrior5YearEstimates!$Q$120","v":311.71942512458219},0.12954740204097531,{"$f":"CntyDataLink!$P$120","v":2652},{"$f":"CntyDataLink!$Q$120","v":355.81596366661233},0.19583517944173681,null,{"$f":"StatisticallySignificantCalcs!$A$90","v":"Y"},{"$f":"StatisticallySignificantCalcs!$J$90","v":"N"}]
[null,"$150,000 to $199,999",null,null,{"$f":"CntyDataLinkPrior10YearEstimate!$R$120","v":515},{"$f":"CntyDataLinkPrior10YearEstimate!$S$120","v":153},4.1676782390547867E-2,null,{"$f":"CntyDataLinkPrior5YearEstimates!$R$120","v":541},{"$f":"CntyDataLinkPrior5YearEstimates!$S$120","v":143},4.2143803069252944E-2,{"$f":"CntyDataLink!$R$120","v":1185},{"$f":"CntyDataLink!$S$120","v":288},8.750553832521045E-2,null,{"$f":"StatisticallySignificantCalcs!$A$91","v":"Y"},{"$f":"StatisticallySignificantCalcs!$J$91","v":"N"}]
[null,"Greater than $200,000",null,null,{"$f":"CntyDataLinkPrior10YearEstimate!$T$120","v":239},{"$f":"CntyDataLinkPrior10YearEstimate!$U$120","v":100},1.9341264060856195E-2,null,{"$f":"CntyDataLinkPrior5YearEstimates!$T$120","v":260},{"$f":"CntyDataLinkPrior5YearEstimates!$U$120","v":91},2.0253953415907144E-2,{"$f":"CntyDataLink!$T$120","v":942},{"$f":"CntyDataLink!$U$120","v":215},6.9561364643331861E-2,null,{"$f":"StatisticallySignificantCalcs!$A$92","v":"Y"},{"$f":"StatisticallySignificantCalcs!$J$92","v":"N"}]
[null,null,null,null,491895,null,null,null,491895]
[null,null,"Median HH Income",null,{"$f":"CntyDataLinkPrior10YearEstimate!$BV$128","v":49366},{"$f":"CntyDataLinkPrior10YearEstimate!$BW$128","v":2913},null,null,{"$f":"CntyDataLinkPrior5YearEstimates!$BV$128","v":55767},{"$f":"CntyDataLinkPrior5YearEstimates!$BW$128","v":6283},null,{"$f":"CntyDataLink!$BV$128","v":74882},{"$f":"CntyDataLink!$BW$128","v":5100}]
[null,null,"HH Income in 2022 Dollars",null,{"$f":"($E$50)*E41","v":62925.018641602139},{"$f":"($E$50)*F41","v":3713.0936130735131},null,null,{"$f":"($E$49)*I41","v":66581.639135933423},{"$f":"($E$49)*J41","v":7501.4334407637079}]
[]
[null,{"$f":"\"Source:  \"& \" \"&E28&\", \"&I28&\" and \"&L28& \"  American Community Survey; Tables B25119; B19001\"","v":"Source:   2008-2012, 2013-2017 and 2018-2022  American Community Survey; Tables B25119; B19001"}]
[]
[null,"Data from the American Community Survey are estimates."]
[]
[null,"CPI Adjustment Factor"]
[null,"2013-2017",null,null,1.1939254242819843]
[null,"2008-2012",null,null,1.2746631009521157]

{"sheet":"HHIncomeByAge","index":12,"n_rows":79,"n_cols":22,"rows_kept":79,"cut":false,"hidden":true,"merged":[[21,6,21,15]]}
[]
[null,null,{"$f":"CntyDataLink!A55","v":"Rochester"}]
[null,null,"INCOME CHARACTERISTICS"]
[]
[]
[]
[]
[]
[]
[]
[]
[]
[]
[]
[]
[]
[]
[]
[]
[]
[null,null,{"$f":"HHIncomeByAge!C2","v":"Rochester"},"Household Income in 2022"]
[null,null,null,null,null,null,"Households by Age of Householder "]
[null,null,null,"Households","Margin of Error Households",null,"Under 25","Margin of Error Under 25",null,"25 to 44","Margin of Error 25 to 44",null,"45 to 64","Margin of Error 45 to 64",null,"65 & Over","Margin of Error 65 & Over",null,"Family Households","Margin of Error Family HH","Non-Family HH","Margin of Error Non-Family HH"]
[null,null,"Less Than $10,000",{"$f":"CntyDataLink!$D$116","v":431},{"$f":"CntyDataLink!$E$116","v":173},null,{"$f":"CntyDataLink!$AN$116","v":0},{"$f":"CntyDataLink!$AO$116","v":25},null,{"$f":"CntyDataLink!$BV$116","v":95},{"$f":"CntyDataLink!$BW$116","v":87},null,{"$f":"CntyDataLink!$DD$116","v":100},{"$f":"CntyDataLink!$DE$116","v":82},null,{"$f":"CntyDataLink!$EL$116","v":236},{"$f":"CntyDataLink!$EM$116","v":126},null,{"$f":"CntyDataLink!$D$160","v":189},{"$f":"CntyDataLink!$E$160","v":114},{"$f":"CntyDataLink!$AN$160","v":260},{"$f":"CntyDataLink!$AO$160","v":127}]
[null,null,"$10,000 to $14,999",{"$f":"CntyDataLink!$F$116","v":692},{"$f":"CntyDataLink!$G$116","v":285},null,{"$f":"CntyDataLink!$AP$116","v":0},{"$f":"CntyDataLink!$AQ$116","v":25},null,{"$f":"CntyDataLink!$BX$116","v":144},{"$f":"CntyDataLink!$BY$116","v":93},null,{"$f":"CntyDataLink!$DF$116","v":136},{"$f":"CntyDataLink!$DG$116","v":85},null,{"$f":"CntyDataLink!$EN$116","v":412},{"$f":"CntyDataLink!$EO$116","v":235},null,{"$f":"CntyDataLink!$F$160","v":143},{"$f":"CntyDataLink!$G$160","v":89},{"$f":"CntyDataLink!$AP$160","v":562},{"$f":"CntyDataLink!$AQ$160","v":271}]
[null,null,"$15,000 to $19,999",{"$f":"CntyDataLink!$H$116","v":524},{"$f":"CntyDataLink!$I$116","v":180},null,{"$f":"CntyDataLink!$AR$116","v":102},{"$f":"CntyDataLink!$AS$116","v":133},null,{"$f":"CntyDataLink!$BZ$116","v":39},{"$f":"CntyDataLink!$CA$116","v":51},null,{"$f":"CntyDataLink!$DH$116","v":115},{"$f":"CntyDataLink!$DI$116","v":57},null,{"$f":"CntyDataLink!$EP$116","v":268},{"$f":"CntyDataLink!$EQ$116","v":128},null,{"$f":"CntyDataLink!$H$160","v":102},{"$f":"CntyDataLink!$I$160","v":77},{"$f":"CntyDataLink!$AR$160","v":474},{"$f":"CntyDataLink!$AS$160","v":187}]
[null,null,"$20,000 to $24,999",{"$f":"CntyDataLink!$J$116","v":550},{"$f":"CntyDataLink!$K$116","v":150},null,{"$f":"CntyDataLink!$AT$116","v":0},{"$f":"CntyDataLink!$AU$116","v":25},null,{"$f":"CntyDataLink!$CB$116","v":61},{"$f":"CntyDataLink!$CC$116","v":49},null,{"$f":"CntyDataLink!$DJ$116","v":245},{"$f":"CntyDataLink!$DK$116","v":118},null,{"$f":"CntyDataLink!$ER$116","v":244},{"$f":"CntyDataLink!$ES$116","v":104},null,{"$f":"CntyDataLink!$J$160","v":213},{"$f":"CntyDataLink!$K$160","v":93},{"$f":"CntyDataLink!$AT$160","v":333},{"$f":"CntyDataLink!$AU$160","v":135}]
[null,null,"$25,000 to $29,999",{"$f":"CntyDataLink!$L$116","v":572},{"$f":"CntyDataLink!$M$116","v":189},null,{"$f":"CntyDataLink!$AV$116","v":42},{"$f":"CntyDataLink!$AW$116","v":52},null,{"$f":"CntyDataLink!$CD$116","v":90},{"$f":"CntyDataLink!$CE$116","v":73},null,{"$f":"CntyDataLink!$DL$116","v":200},{"$f":"CntyDataLink!$DM$116","v":113},null,{"$f":"CntyDataLink!$ET$116","v":240},{"$f":"CntyDataLink!$EU$116","v":87},null,{"$f":"CntyDataLink!$L$160","v":254},{"$f":"CntyDataLink!$M$160","v":123},{"$f":"CntyDataLink!$AV$160","v":318},{"$f":"CntyDataLink!$AW$160","v":131}]
[null,null,"$30,000 to $34,999",{"$f":"CntyDataLink!$N$116","v":580},{"$f":"CntyDataLink!$O$116","v":251},null,{"$f":"CntyDataLink!$AX$116","v":0},{"$f":"CntyDataLink!$AY$116","v":25},null,{"$f":"CntyDataLink!$CF$116","v":77},{"$f":"CntyDataLink!$CG$116","v":72},null,{"$f":"CntyDataLink!$DN$116","v":125},{"$f":"CntyDataLink!$DO$116","v":82},null,{"$f":"CntyDataLink!$EV$116","v":378},{"$f":"CntyDataLink!$EW$116","v":254},null,{"$f":"CntyDataLink!$N$160","v":172},{"$f":"CntyDataLink!$O$160","v":94},{"$f":"CntyDataLink!$AX$160","v":419},{"$f":"CntyDataLink!$AY$160","v":236}]
[null,null,"$35,000 to $39,999",{"$f":"CntyDataLink!$P$116","v":413},{"$f":"CntyDataLink!$Q$116","v":152},null,{"$f":"CntyDataLink!$AZ$116","v":0},{"$f":"CntyDataLink!$BA$116","v":25},null,{"$f":"CntyDataLink!$CH$116","v":159},{"$f":"CntyDataLink!$CI$116","v":98},null,{"$f":"CntyDataLink!$DP$116","v":89},{"$f":"CntyDataLink!$DQ$116","v":60},null,{"$f":"CntyDataLink!$EX$116","v":165},{"$f":"CntyDataLink!$EY$116","v":75},null,{"$f":"CntyDataLink!$P$160","v":250},{"$f":"CntyDataLink!$Q$160","v":107},{"$f":"CntyDataLink!$AZ$160","v":151},{"$f":"CntyDataLink!$BA$160","v":78}]
[null,null,"$40,000 to $44,999",{"$f":"CntyDataLink!$R$116","v":397},{"$f":"CntyDataLink!$S$116","v":232},null,{"$f":"CntyDataLink!$BB$116","v":0},{"$f":"CntyDataLink!$BC$116","v":25},null,{"$f":"CntyDataLink!$CJ$116","v":71},{"$f":"CntyDataLink!$CK$116","v":88},null,{"$f":"CntyDataLink!$DR$116","v":159},{"$f":"CntyDataLink!$DS$116","v":162},null,{"$f":"CntyDataLink!$EZ$116","v":167},{"$f":"CntyDataLink!$FA$116","v":128},null,{"$f":"CntyDataLink!$R$160","v":81},{"$f":"CntyDataLink!$S$160","v":45},{"$f":"CntyDataLink!$BB$160","v":316},{"$f":"CntyDataLink!$BC$160","v":222}]
[null,null,"$45,000 to $49,999",{"$f":"CntyDataLink!$T$116","v":454},{"$f":"CntyDataLink!$U$116","v":169},null,{"$f":"CntyDataLink!$BD$116","v":0},{"$f":"CntyDataLink!$BE$116","v":25},null,{"$f":"CntyDataLink!$CL$116","v":129},{"$f":"CntyDataLink!$CM$116","v":115},null,{"$f":"CntyDataLink!$DT$116","v":136},{"$f":"CntyDataLink!$DU$116","v":88},null,{"$f":"CntyDataLink!$FB$116","v":189},{"$f":"CntyDataLink!$FC$116","v":95},null,{"$f":"CntyDataLink!$T$160","v":328},{"$f":"CntyDataLink!$U$160","v":135},{"$f":"CntyDataLink!$BD$160","v":270},{"$f":"CntyDataLink!$BE$160","v":138}]
[null,null,"$50,000 to $59,999",{"$f":"CntyDataLink!$V$116","v":889},{"$f":"CntyDataLink!$W$116","v":236},null,{"$f":"CntyDataLink!$BF$116","v":46},{"$f":"CntyDataLink!$BG$116","v":68},null,{"$f":"CntyDataLink!$CN$116","v":242},{"$f":"CntyDataLink!$CO$116","v":108},null,{"$f":"CntyDataLink!$DV$116","v":232},{"$f":"CntyDataLink!$DW$116","v":114},null,{"$f":"CntyDataLink!$FD$116","v":369},{"$f":"CntyDataLink!$FE$116","v":162},null,{"$f":"CntyDataLink!$V$160","v":524},{"$f":"CntyDataLink!$W$160","v":180},{"$f":"CntyDataLink!$BF$160","v":389},{"$f":"CntyDataLink!$BG$160","v":146}]
[null,null,"$60,000 to $74,999",{"$f":"CntyDataLink!$X$116","v":1279},{"$f":"CntyDataLink!$Y$116","v":211},null,{"$f":"CntyDataLink!$BH$116","v":71},{"$f":"CntyDataLink!$BI$116","v":68},null,{"$f":"CntyDataLink!$CP$116","v":386},{"$f":"CntyDataLink!$CQ$116","v":134},null,{"$f":"CntyDataLink!$DX$116","v":579},{"$f":"CntyDataLink!$DY$116","v":193},null,{"$f":"CntyDataLink!$FF$116","v":243},{"$f":"CntyDataLink!$FG$116","v":100},null,{"$f":"CntyDataLink!$X$160","v":792},{"$f":"CntyDataLink!$Y$160","v":173},{"$f":"CntyDataLink!$BH$160","v":371},{"$f":"CntyDataLink!$BI$160","v":149}]
[null,null,"$75,000 to $99,999",{"$f":"CntyDataLink!$Z$116","v":1982},{"$f":"CntyDataLink!$AA$116","v":362},null,{"$f":"CntyDataLink!$BJ$116","v":169},{"$f":"CntyDataLink!$BK$116","v":153},null,{"$f":"CntyDataLink!$CR$116","v":680},{"$f":"CntyDataLink!$CS$116","v":248},null,{"$f":"CntyDataLink!$DZ$116","v":554},{"$f":"CntyDataLink!$EA$116","v":160},null,{"$f":"CntyDataLink!$FH$116","v":579},{"$f":"CntyDataLink!$FI$116","v":210},null,{"$f":"CntyDataLink!$Z$160","v":1418},{"$f":"CntyDataLink!$AA$160","v":283},{"$f":"CntyDataLink!$BJ$160","v":615},{"$f":"CntyDataLink!$BK$160","v":206}]
[null,null,"$100,000 to $124,999",{"$f":"CntyDataLink!$AB$116","v":1586},{"$f":"CntyDataLink!$AC$116","v":227},null,{"$f":"CntyDataLink!$BL$116","v":52},{"$f":"CntyDataLink!$BM$116","v":65},null,{"$f":"CntyDataLink!$CT$116","v":607},{"$f":"CntyDataLink!$CU$116","v":162},null,{"$f":"CntyDataLink!$EB$116","v":689},{"$f":"CntyDataLink!$EC$116","v":154},null,{"$f":"CntyDataLink!$FJ$116","v":238},{"$f":"CntyDataLink!$FK$116","v":94},null,{"$f":"CntyDataLink!$AB$160","v":1143},{"$f":"CntyDataLink!$AC$160","v":196},{"$f":"CntyDataLink!$BL$160","v":365},{"$f":"CntyDataLink!$BM$160","v":132}]
[null,null,"$125,000 to $149,999",{"$f":"CntyDataLink!$AD$116","v":1066},{"$f":"CntyDataLink!$AE$116","v":274},null,{"$f":"CntyDataLink!$BN$116","v":34},{"$f":"CntyDataLink!$BO$116","v":43},null,{"$f":"CntyDataLink!$CV$116","v":372},{"$f":"CntyDataLink!$CW$116","v":173},null,{"$f":"CntyDataLink!$ED$116","v":523},{"$f":"CntyDataLink!$EE$116","v":190},null,{"$f":"CntyDataLink!$FL$116","v":137},{"$f":"CntyDataLink!$FM$116","v":117},null,{"$f":"CntyDataLink!$AD$160","v":782},{"$f":"CntyDataLink!$AE$160","v":222},{"$f":"CntyDataLink!$BN$160","v":232},{"$f":"CntyDataLink!$BO$160","v":141}]
[null,null,"$150,000 to $199,999",{"$f":"CntyDataLink!$AF$116","v":1185},{"$f":"CntyDataLink!$AG$116","v":288},null,{"$f":"CntyDataLink!$BP$116","v":7},{"$f":"CntyDataLink!$BQ$116","v":12},null,{"$f":"CntyDataLink!$CX$116","v":330},{"$f":"CntyDataLink!$CY$116","v":111},null,{"$f":"CntyDataLink!$EF$116","v":740},{"$f":"CntyDataLink!$EG$116","v":240},null,{"$f":"CntyDataLink!$FN$116","v":108},{"$f":"CntyDataLink!$FO$116","v":62},null,{"$f":"CntyDataLink!$AF$160","v":1142},{"$f":"CntyDataLink!$AG$160","v":317},{"$f":"CntyDataLink!$BP$160","v":106},{"$f":"CntyDataLink!$BQ$160","v":62}]
[null,null,"$200,000 or More",{"$f":"CntyDataLink!$AH$116","v":942},{"$f":"CntyDataLink!$AI$116","v":215},null,{"$f":"CntyDataLink!$BR$116","v":0},{"$f":"CntyDataLink!$BS$116","v":25},null,{"$f":"CntyDataLink!$CZ$116","v":239},{"$f":"CntyDataLink!$DA$116","v":135},null,{"$f":"CntyDataLink!$EH$116","v":651},{"$f":"CntyDataLink!$EI$116","v":180},null,{"$f":"CntyDataLink!$FP$116","v":52},{"$f":"CntyDataLink!$FQ$116","v":52},null,{"$f":"CntyDataLink!$AH$160","v":737},{"$f":"CntyDataLink!$AI$160","v":186},{"$f":"CntyDataLink!$BR$160","v":91},{"$f":"CntyDataLink!$BS$160","v":69}]
[]
[null,null,"Total Households",{"$f":"CntyDataLink!$B$116","v":13542},{"$f":"CntyDataLink!$C$116","v":419},null,{"$f":"CntyDataLink!$AL$116","v":523},{"$f":"CntyDataLink!$AM$116","v":261},null,{"$f":"CntyDataLink!$BT$116","v":3721},{"$f":"CntyDataLink!$BU$116","v":332},null,{"$f":"CntyDataLink!$DB$116","v":5273},{"$f":"CntyDataLink!$DC$116","v":402},null,{"$f":"CntyDataLink!$EJ$116","v":4025},{"$f":"CntyDataLink!$EK$116","v":398},null,{"$f":"CntyDataLink!$B$160","v":8270},{"$f":"CntyDataLink!$C$160","v":414},{"$f":"CntyDataLink!$AL$160","v":5272},{"$f":"CntyDataLink!$AM$160","v":560}]
[null,null,"Median Household Inc ",{"$f":"CntyDataLink!$FR$116","v":74882},{"$f":"CntyDataLink!$FS$116","v":5100},null,{"$f":"CntyDataLink!$FT$116","v":77521},{"$f":"CntyDataLink!$FU$116","v":14008},null,{"$f":"CntyDataLink!$FV$116","v":83730},{"$f":"CntyDataLink!$FW$116","v":10733},null,{"$f":"CntyDataLink!$FX$116","v":98139},{"$f":"CntyDataLink!$FY$116","v":16293},null,{"$f":"CntyDataLink!$FZ$116","v":41316},{"$f":"CntyDataLink!$GA$116","v":8233},null,{"$f":"CntyDataLink!$AJ$160","v":91295},{"$f":"CntyDataLink!$AK$160","v":11292},{"$f":"CntyDataLink!BT$160","v":40969},{"$f":"CntyDataLink!$BU$160","v":4106}]
[]
[null,null,"Source: 2018-2022 American Community Survey Tables B19001; B19037; B19101; B19102; B19112; Table B19113; B19049"]
[null,null,"Data from the American Community Survey are estimates"]
[]
[null,null,{"$f":"C2","v":"Rochester"}]
[null,null,"INCOME CHARACTERISTICS"]
[]
[]
[]
[]
[]
[]
[]
[]
[]
[]
[]
[]
[]
[]
[]
[]
[]
[]
[]
[]
[]
[]
[]
[]
[]
[]
[]
[]
[]
[]
[null,"Source: 2018-2022 American Community Survey Tables B19001; B19102",null,null,null,null,null,null,null,null,null,null,null,null,"Data from the American Community Survey are estimates"]

{"sheet":"HHIncomeByTenure","index":13,"n_rows":64,"n_cols":17,"rows_kept":64,"cut":false,"hidden":true,"merged":[[2,3,2,5],[58,3,58,6],[58,8,58,11],[58,13,58,16],[59,3,59,6],[59,8,59,11],[59,13,59,16],[63,3,63,4],[63,8,63,9],[63,13,63,14],[61,3,61,4],[61,8,61,9],[61,13,61,14],[62,3,62,4],[62,8,62,9],[62,13,62,14]]}
[]
[null,null,null,{"$f":"CntyDataLink!A80","v":"Rochester"}]
[null,null,null,"INCOME CHARACTERISTICS"]
[]
[]
[]
[]
[]
[]
[]
[]
[]
[]
[]
[]
[]
[]
[]
[]
[]
[]
[]
[]
[]
[]
[]
[]
[null,null,null,{"$f":"D2","v":"Rochester"}]
[null,null,null,"Household Income By Tenure"]
[null,null,null,null,null,"2022 Household Income 1",null,"Occupied Housing Units","Margin of Error Occupied Housing Units","Owner Occupied Housing Units","Margin of Error Owner Occupied Housing Units","Renter Occupied Housing Units","Margin of Error Renter Occupied Housing Units"]
[]
[null,null,null,null,null,"Total",null,{"$f":"CntyDataLink!$B$128","v":13542},{"$f":"CntyDataLink!$C$128","v":419},{"$f":"CntyDataLink!$D$128","v":8933},{"$f":"CntyDataLink!$E$128","v":466},{"$f":"CntyDataLink!$AB$128","v":4609},{"$f":"CntyDataLink!$AC$128","v":426}]
[null,null,null,4999,{"$f":"VALUE(RIGHT(F33,7))","v":5000},"Less Than $5,000",null,{"$f":"CntyDataLink!$AZ$128","v":256},{"$f":"CntyDataLink!$BA$128","v":125.70600622086441},{"$f":"CntyDataLink!$F$128","v":96},{"$f":"CntyDataLink!$G$128","v":59},{"$f":"CntyDataLink!$AD$128","v":160},{"$f":"CntyDataLink!$AE$128","v":111}]
[null,null,{"$f":"VALUE(RIGHT($F33,7))","v":5000},4999,10000,"$5,000 to $10,000",null,{"$f":"CntyDataLink!$BB$128","v":175},{"$f":"CntyDataLink!$BC$128","v":103.12128781197411},{"$f":"CntyDataLink!$H$128","v":35},{"$f":"CntyDataLink!$I$128","v":35},{"$f":"CntyDataLink!$AF$128","v":140},{"$f":"CntyDataLink!$AG$128","v":97}]
[null,null,10000,4999,15000,"$10,000 to $15,000",null,{"$f":"CntyDataLink!$BD$128","v":692},{"$f":"CntyDataLink!$BE$128","v":278.47621083316972},{"$f":"CntyDataLink!$J$128","v":293},{"$f":"CntyDataLink!$K$128","v":157},{"$f":"CntyDataLink!$AH$128","v":399},{"$f":"CntyDataLink!$AI$128","v":230}]
[null,null,15000,4999,20000,"$15,000 to $20,000",null,{"$f":"CntyDataLink!$BF$128","v":524},{"$f":"CntyDataLink!$BG$128","v":191.92967462067975},{"$f":"CntyDataLink!$L$128","v":186},{"$f":"CntyDataLink!$M$128","v":81},{"$f":"CntyDataLink!$AJ$128","v":338},{"$f":"CntyDataLink!$AK$128","v":174}]
[null,null,20000,4999,25000,"$20,000 to $25,000",null,{"$f":"CntyDataLink!$BH$128","v":550},{"$f":"CntyDataLink!$BI$128","v":146},{"$f":"CntyDataLink!$N$128","v":265},{"$f":"CntyDataLink!$O$128","v":96},{"$f":"CntyDataLink!$AL$128","v":285},{"$f":"CntyDataLink!$AM$128","v":110}]
[null,null,25000,9999,35000,"$25,000 to $35,000",null,{"$f":"CntyDataLink!$BJ$128","v":1152},{"$f":"CntyDataLink!$BK$128","v":342.61494421580619},{"$f":"CntyDataLink!$P$128","v":625},{"$f":"CntyDataLink!$Q$128","v":203},{"$f":"CntyDataLink!$AN$128","v":527},{"$f":"CntyDataLink!$AO$128","v":276}]
[null,null,35000,14999,50000,"$35,000 to $50,000",null,{"$f":"CntyDataLink!$BL$128","v":1264},{"$f":"CntyDataLink!$BM$128","v":314.7268657105713},{"$f":"CntyDataLink!$R$128","v":798},{"$f":"CntyDataLink!$S$128","v":218},{"$f":"CntyDataLink!$AP$128","v":466},{"$f":"CntyDataLink!$AQ$128","v":227}]
[null,null,50000,24999,75000,"$50,000 to $75,000",null,{"$f":"CntyDataLink!$BN$128","v":2168},{"$f":"CntyDataLink!$BO$128","v":338.7934473982636},{"$f":"CntyDataLink!$T$128","v":1259},{"$f":"CntyDataLink!$U$128","v":245},{"$f":"CntyDataLink!$AR$128","v":909},{"$f":"CntyDataLink!$AS$128","v":234}]
[null,null,75000,24999,100000,"$75,000 to $100,000",null,{"$f":"CntyDataLink!$BP$128","v":1982},{"$f":"CntyDataLink!$BQ$128","v":358.94985722242598},{"$f":"CntyDataLink!$V$128","v":1474},{"$f":"CntyDataLink!$W$128","v":307},{"$f":"CntyDataLink!$AT$128","v":508},{"$f":"CntyDataLink!$AU$128","v":186}]
[null,null,100000,49999,150000,"$100,000 to $150,000",null,{"$f":"CntyDataLink!$BR$128","v":2652},{"$f":"CntyDataLink!$BS$128","v":365.40935948604272},{"$f":"CntyDataLink!$X$128","v":2152},{"$f":"CntyDataLink!$Y$128","v":318},{"$f":"CntyDataLink!$AV$128","v":500},{"$f":"CntyDataLink!$AW$128","v":180}]
[null,null,150000,null,null,"$150,000 and More",null,{"$f":"CntyDataLink!$BT$128","v":2127},{"$f":"CntyDataLink!$BU$128","v":363.06748683956818},{"$f":"CntyDataLink!$Z$128","v":1750},{"$f":"CntyDataLink!$AA$128","v":317},{"$f":"CntyDataLink!$AX$128","v":377},{"$f":"CntyDataLink!$AY$128","v":177}]
[]
[]
[null,null,null,null,null,"Median Household Income 2",null,{"$f":"CntyDataLink!$BV$128","v":74882},{"$f":"CntyDataLink!$BW$128","v":5100},{"$f":"CntyDataLink!$BX$128","v":86956},{"$f":"CntyDataLink!$BY$128","v":11532},{"$f":"CntyDataLink!$BZ$128","v":49680},{"$f":"CntyDataLink!$CA$128","v":9616}]
[]
[]
[null,null,null,null,null,"Data from the American Community Survey are estimates"]
[]
[null,null,null,"Source:",1,"2018-2022 American Community Survey Table B25118;  2022 Inflation Adjusted dollars"]
[null,null,null,null,2,"2018-2022 American Community Survey Table B25119;  2022 Inflation Adjusted dollars"]
[]
[]
[]
[null,null,null,"HOUSEHOLD INCOME IN THE PAST 12 MONTHS BY PERCENT OF MEDIAN THRESHOLD"]
[]
[]
[null,null,null,"All Occupied Housing Units",null,null,null,null,"Owner Occupied Households",null,null,null,null,"Renter Occupied Households"]
[]
[null,null,null,"HOUSEHOLD INCOME",null,"Estimate","Margin Of Error",null,"HOUSEHOLD INCOME",null,"Estimate","Margin Of Error",null,"HOUSEHOLD INCOME",null,"Estimate","Margin Of Error"]
[null,null,{"$f":"$H$46*0.3","v":22464.6},"30% of Median Household Income",null,{"$f":"IF($C$62<$C$36,((($C$62-$C$35)/$D$35)*$H$35)+SUM($H$33:$H$34),IF($C$62<$C$37,((($C$62-$C$36)/$D$36)*$H$36)+SUM($H$33:$H$35),IF($C$62<$C$38,((($C$62-$C$37)/$D$37)*$H$37)+SUM($H$33:$H$36),IF($C$62<$C$39,((($C$62-$C$38)/$D$38)*$H$38)+SUM($H$33:$H$37),IF($C$62<$C$40,((($C$62-$C$39)/$D$39)*$H$39)+SUM($H$33:$H$38),IF($C$62<$C$41,((($C$62-$C$40)/$D$40)*$H$40)+SUM($H$33:$H$39),IF($C$62<$C$42,((($C$62-$C$41)/$D$41)*$H$41)+SUM($H$33:$H$40),\"False\")))))))","v":1918.1602320464092},{"$f":"IF($C$62<$C$36,((($C$62-$C$35)/$D$35)*$I$35)+SQRT(SUM(($I$33^2),($I$34^2))),IF($C$62<$C$37,((($C$62-$C$36)/$D$36)*$I$36)+SQRT(SUM(($I$33^2),($I$34^2),($I$35^2))),IF($C$62<$C$38,((($C$62-$C$37)/$D$37)*$I$37)+SQRT(SUM(($I$33^2),($I$34^2),($I$35^2),($I$36^2))),IF($C$62<$C$39,((($C$62-$C$38)/$D$38)*$I$38)+SQRT(SUM(($I$33^2),($I$34^2),($I$35^2),($I$36^2),($I$37^2))),IF($C$62<$C$40,((($C$62-$C$39)/$D$39)*$I$39)+SQRT(SUM(($I$33^2),($I$34^2),($I$35^2),($I$36^2),($I$37^2),($I$38^2))),IF($C$62<$C$41,((($C$62-$C$40)/$D$40)*$I$40)+SQRT(SUM(($I$33^2),($I$34^2),($I$35^2),($I$36^2),($I$37^2),($I$38^2),($I$39^2))),IF($C$62<$C$42,((($C$62-$C$41)/$D$41)*$I$41)+SQRT((($I$33^2)+($I$34^2)+($I$35^2)+($I$36^2)+($I$37^2)+($I$38^2)+($I$39^2)+($I$40^2))),\"False\")))))))","v":447.24329088257031},{"$f":"$J$46*0.3","v":26086.799999999999},"30% of Median Household Income",null,{"$f":"IF($H$62<$C$36,((($H$62-$C$35)/$D$35)*$J$35)+SUM($J$33:$J$34),IF($H$62<$C$37,((($H$62-$C$36)/$D$36)*$J$36)+SUM($J$33:$J$35),IF($H$62<$C$38,((($H$62-$C$37)/$D$37)*$J$37)+SUM($J$33:$J$36),IF($H$62<$C$39,((($H$62-$C$38)/$D$38)*$J$38)+SUM($J$33:$J$37),IF($H$62<$C$40,((($H$62-$C$39)/$D$39)*$J$39)+SUM($J$33:$J$38),IF($H$62<$C$41,((($H$62-$C$40)/$D$40)*$J$40)+SUM($J$33:$J$39),IF($H$62<$C$42,((($H$62-$C$41)/$D$41)*$J$41)+SUM($J$33:$J$40),\"False\")))))))","v":942.93179317931788},{"$f":"IF($H$62<$C$36,((($H$62-$C$35)/$D$35)*$K$35)+SQRT(SUM(($K$33^2),($K$34^2))),IF($H$62<$C$37,((($H$62-$C$36)/$D$36)*$K$36)+SQRT(SUM(($K$33^2),($K$34^2),($K$35^2))),IF($H$62<$C$38,((($H$62-$C$37)/$D$37)*$K$37)+SQRT(SUM(($K$33^2),($K$34^2),($K$35^2),($K$36^2))),IF($H$62<$C$39,((($H$62-$C$38)/$D$38)*$K$38)+SQRT(SUM(($K$33^2),($K$34^2),($K$35^2),($K$36^2),($K$37^2))),IF($H$62<$C$40,((($H$62-$C$39)/$D$39)*$K$39)+SQRT(SUM(($K$33^2),($K$34^2),($K$35^2),($K$36^2),($K$37^2),($K$38^2))),IF($H$62<$C$41,((($H$62-$C$40)/$D$40)*$K$40)+SQRT(SUM(($K$33^2),($K$34^2),($K$35^2),($K$36^2),($K$37^2),($K$38^2),($K$39^2))),IF($H$62<$C$42,((($H$62-$C$41)/$D$41)*$K$41)+SQRT((($K$33^2)+($K$34^2)+($K$35^2)+($K$36^2)+($K$37^2)+($K$38^2)+($K$39^2)+($K$40^2))),\"False\")))))))","v":234.50717993856284},{"$f":"$L$46*0.3","v":14904},"30% of Median Household Income",null,{"$f":"IF($M$62<$C$36,((($M$62-$C$35)/$D$35)*$L$35)+SUM($L$33:$L$34),IF($M$62<$C$37,((($M$62-$C$36)/$D$36)*$L$36)+SUM($L$33:$L$35),IF($M$62<$C$38,((($M$62-$C$37)/$D$37)*$L$37)+SUM($L$33:$L$36),IF($M$62<$C$39,((($M$62-$C$38)/$D$38)*$L$38)+SUM($L$33:$L$37),IF($M$62<$C$40,((($M$62-$C$39)/$D$39)*$L$39)+SUM($L$33:$L$38),IF($M$62<$C$41,((($M$62-$C$40)/$D$40)*$L$40)+SUM($L$33:$L$39),IF($M$62<$C$42,((($M$62-$C$41)/$D$41)*$L$41)+SUM($L$33:$L$40),\"False\")))))))","v":691.41748349669933},{"$f":"IF($M$62<$C$36,((($M$62-$C$35)/$D$35)*$M$35)+SQRT(SUM(($M$33^2),($M$34^2))),IF($M$62<$C$37,((($M$62-$C$36)/$D$36)*$M$36)+SQRT(SUM(($M$33^2),($M$34^2),($M$35^2))),IF($M$62<$C$38,((($M$62-$C$37)/$D$37)*$M$37)+SQRT(SUM(($M$33^2),($M$34^2),($M$35^2),($M$36^2))),IF($M$62<$C$39,((($M$62-$C$38)/$D$38)*$M$38)+SQRT(SUM(($M$33^2),($M$34^2),($M$35^2),($M$36^2),($M$37^2))),IF($M$62<$C$40,((($M$62-$C$39)/$D$39)*$M$39)+SQRT(SUM(($M$33^2),($M$34^2),($M$35^2),($M$36^2),($M$37^2),($M$38^2))),IF($M$62<$C$41,((($M$62-$C$40)/$D$40)*$M$40)+SQRT(SUM(($M$33^2),($M$34^2),($M$35^2),($M$36^2),($M$37^2),($M$38^2),($M$39^2))),IF($M$62<$C$42,((($M$62-$C$41)/$D$41)*$M$41)+SQRT((($M$33^2)+($M$34^2)+($M$35^2)+($M$36^2)+($M$37^2)+($M$38^2)+($M$39^2)+($M$40^2))),\"False\")))))))","v":373.04011591749156}]
[490,null,{"$f":"$H$46*0.5","v":37441},"50% of Median Household Income",null,{"$f":"IF($C$63<$C$36,((($C$63-$C$35)/$D$35)*$H$35)+SUM($H$33:$H$34),IF($C$63<$C$37,((($C$63-$C$36)/$D$36)*$H$36)+SUM($H$33:$H$35),IF($C$63<$C$38,((($C$63-$C$37)/$D$37)*$H$37)+SUM($H$33:$H$36),IF($C$63<$C$39,((($C$63-$C$38)/$D$38)*$H$38)+SUM($H$33:$H$37),IF($C$63<$C$40,((($C$63-$C$39)/$D$39)*$H$39)+SUM($H$33:$H$38),IF($C$63<$C$41,((($C$63-$C$40)/$D$40)*$H$40)+SUM($H$33:$H$39),IF($C$63<$C$42,((($C$63-$C$41)/$D$41)*$H$41)+SUM($H$33:$H$40),\"False\")))))))","v":3554.7086472431497},{"$f":"IF($C$63<$C$36,((($C$63-$C$35)/$D$35)*$I$35)+SQRT(SUM(($I$33^2),($I$34^2))),IF($C$63<$C$37,((($C$63-$C$36)/$D$36)*$I$36)+SQRT(SUM(($I$33^2),($I$34^2),($I$35^2))),IF($C$63<$C$38,((($C$63-$C$37)/$D$37)*$I$37)+SQRT(SUM(($I$33^2),($I$34^2),($I$35^2),($I$36^2))),IF($C$63<$C$39,((($C$63-$C$38)/$D$38)*$I$38)+SQRT(SUM(($I$33^2),($I$34^2),($I$35^2),($I$36^2),($I$37^2))),IF($C$63<$C$40,((($C$63-$C$39)/$D$39)*$I$39)+SQRT(SUM(($I$33^2),($I$34^2),($I$35^2),($I$36^2),($I$37^2),($I$38^2))),IF($C$63<$C$41,((($C$63-$C$40)/$D$40)*$I$40)+SQRT(SUM(($I$33^2),($I$34^2),($I$35^2),($I$36^2),($I$37^2),($I$38^2),($I$39^2))),IF($C$63<$C$42,((($C$63-$C$41)/$D$41)*$I$41)+SQRT((($I$33^2)+($I$34^2)+($I$35^2)+($I$36^2)+($I$37^2)+($I$38^2)+($I$39^2)+($I$40^2))),\"False\")))))))","v":579.91931406669585},{"$f":"$J$46*0.5","v":43478},"50% of Median Household Income",null,{"$f":"IF($H$63<$C$36,((($H$63-$C$35)/$D$35)*$J$35)+SUM($J$33:$J$34),IF($H$63<$C$37,((($H$63-$C$36)/$D$36)*$J$36)+SUM($J$33:$J$35),IF($H$63<$C$38,((($H$63-$C$37)/$D$37)*$J$37)+SUM($J$33:$J$36),IF($H$63<$C$39,((($H$63-$C$38)/$D$38)*$J$38)+SUM($J$33:$J$37),IF($H$63<$C$40,((($H$63-$C$39)/$D$39)*$J$39)+SUM($J$33:$J$38),IF($H$63<$C$41,((($H$63-$C$40)/$D$40)*$J$40)+SUM($J$33:$J$39),IF($H$63<$C$42,((($H$63-$C$41)/$D$41)*$J$41)+SUM($J$33:$J$40),\"False\")))))))","v":1951.0596706447095},{"$f":"IF($H$63<$C$36,((($H$63-$C$35)/$D$35)*$K$35)+SQRT(SUM(($K$33^2),($K$34^2))),IF($H$63<$C$37,((($H$63-$C$36)/$D$36)*$K$36)+SQRT(SUM(($K$33^2),($K$34^2),($K$35^2))),IF($H$63<$C$38,((($H$63-$C$37)/$D$37)*$K$37)+SQRT(SUM(($K$33^2),($K$34^2),($K$35^2),($K$36^2))),IF($H$63<$C$39,((($H$63-$C$38)/$D$38)*$K$38)+SQRT(SUM(($K$33^2),($K$34^2),($K$35^2),($K$36^2),($K$37^2))),IF($H$63<$C$40,((($H$63-$C$39)/$D$39)*$K$39)+SQRT(SUM(($K$33^2),($K$34^2),($K$35^2),($K$36^2),($K$37^2),($K$38^2))),IF($H$63<$C$41,((($H$63-$C$40)/$D$40)*$K$40)+SQRT(SUM(($K$33^2),($K$34^2),($K$35^2),($K$36^2),($K$37^2),($K$38^2),($K$39^2))),IF($H$63<$C$42,((($H$63-$C$41)/$D$41)*$K$41)+SQRT((($K$33^2)+($K$34^2)+($K$35^2)+($K$36^2)+($K$37^2)+($K$38^2)+($K$39^2)+($K$40^2))),\"False\")))))))","v":417.0602057443142},{"$f":"$L$46*0.5","v":24840},"50% of Median Household Income",null,{"$f":"IF($M$63<$C$36,((($M$63-$C$35)/$D$35)*$L$35)+SUM($L$33:$L$34),IF($M$63<$C$37,((($M$63-$C$36)/$D$36)*$L$36)+SUM($L$33:$L$35),IF($M$63<$C$38,((($M$63-$C$37)/$D$37)*$L$37)+SUM($L$33:$L$36),IF($M$63<$C$39,((($M$63-$C$38)/$D$38)*$L$38)+SUM($L$33:$L$37),IF($M$63<$C$40,((($M$63-$C$39)/$D$39)*$L$39)+SUM($L$33:$L$38),IF($M$63<$C$41,((($M$63-$C$40)/$D$40)*$L$40)+SUM($L$33:$L$39),IF($M$63<$C$42,((($M$63-$C$41)/$D$41)*$L$41)+SUM($L$33:$L$40),\"False\")))))))","v":1312.9351870374076},{"$f":"IF($M$63<$C$36,((($M$63-$C$35)/$D$35)*$M$35)+SQRT(SUM(($M$33^2),($M$34^2))),IF($M$63<$C$37,((($M$63-$C$36)/$D$36)*$M$36)+SQRT(SUM(($M$33^2),($M$34^2),($M$35^2))),IF($M$63<$C$38,((($M$63-$C$37)/$D$37)*$M$37)+SQRT(SUM(($M$33^2),($M$34^2),($M$35^2),($M$36^2))),IF($M$63<$C$39,((($M$63-$C$38)/$D$38)*$M$38)+SQRT(SUM(($M$33^2),($M$34^2),($M$35^2),($M$36^2),($M$37^2))),IF($M$63<$C$40,((($M$63-$C$39)/$D$39)*$M$39)+SQRT(SUM(($M$33^2),($M$34^2),($M$35^2),($M$36^2),($M$37^2),($M$38^2))),IF($M$63<$C$41,((($M$63-$C$40)/$D$40)*$M$40)+SQRT(SUM(($M$33^2),($M$34^2),($M$35^2),($M$36^2),($M$37^2),($M$38^2),($M$39^2))),IF($M$63<$C$42,((($M$63-$C$41)/$D$41)*$M$41)+SQRT((($M$33^2)+($M$34^2)+($M$35^2)+($M$36^2)+($M$37^2)+($M$38^2)+($M$39^2)+($M$40^2))),\"False\")))))))","v":430.39325755445594}]
[null,null,{"$f":"$H$46*0.8","v":59905.600000000006},"80% of Median Household Income",null,{"$f":"IF($C$64<$C$36,((($C$64-$C$35)/$D$35)*$H$35)+SUM($H$33:$H$34),IF($C$64<$C$37,((($C$64-$C$36)/$D$36)*$H$36)+SUM($H$33:$H$35),IF($C$64<$C$38,((($C$64-$C$37)/$D$37)*$H$37)+SUM($H$33:$H$36),IF($C$64<$C$39,((($C$64-$C$38)/$D$38)*$H$38)+SUM($H$33:$H$37),IF($C$64<$C$40,((($C$64-$C$39)/$D$39)*$H$39)+SUM($H$33:$H$38),IF($C$64<$C$41,((($C$64-$C$40)/$D$40)*$H$40)+SUM($H$33:$H$39),IF($C$64<$C$42,((($C$64-$C$41)/$D$41)*$H$41)+SUM($H$33:$H$40),\"False\")))))))","v":5472.0479939197576},{"$f":"IF($C$64<$C$36,((($C$64-$C$35)/$D$35)*$I$35)+SQRT(SUM(($I$33^2),($I$34^2))),IF($C$64<$C$37,((($C$64-$C$36)/$D$36)*$I$36)+SQRT(SUM(($I$33^2),($I$34^2),($I$35^2))),IF($C$64<$C$38,((($C$64-$C$37)/$D$37)*$I$37)+SQRT(SUM(($I$33^2),($I$34^2),($I$35^2),($I$36^2))),IF($C$64<$C$39,((($C$64-$C$38)/$D$38)*$I$38)+SQRT(SUM(($I$33^2),($I$34^2),($I$35^2),($I$36^2),($I$37^2))),IF($C$64<$C$40,((($C$64-$C$39)/$D$39)*$I$39)+SQRT(SUM(($I$33^2),($I$34^2),($I$35^2),($I$36^2),($I$37^2),($I$38^2))),IF($C$64<$C$41,((($C$64-$C$40)/$D$40)*$I$40)+SQRT(SUM(($I$33^2),($I$34^2),($I$35^2),($I$36^2),($I$37^2),($I$38^2),($I$39^2))),IF($C$64<$C$42,((($C$64-$C$41)/$D$41)*$I$41)+SQRT((($I$33^2)+($I$34^2)+($I$35^2)+($I$36^2)+($I$37^2)+($I$38^2)+($I$39^2)+($I$40^2))),\"False\")))))))","v":749.52876431864024},{"$f":"$J$46*0.8","v":69564.800000000003},"80% of Median Household Income",null,{"$f":"IF($H$64<$C$36,((($H$64-$C$35)/$D$35)*$J$35)+SUM($J$33:$J$34),IF($H$64<$C$37,((($H$64-$C$36)/$D$36)*$J$36)+SUM($J$33:$J$35),IF($H$64<$C$38,((($H$64-$C$37)/$D$37)*$J$37)+SUM($J$33:$J$36),IF($H$64<$C$39,((($H$64-$C$38)/$D$38)*$J$38)+SUM($J$33:$J$37),IF($H$64<$C$40,((($H$64-$C$39)/$D$39)*$J$39)+SUM($J$33:$J$38),IF($H$64<$C$41,((($H$64-$C$40)/$D$40)*$J$40)+SUM($J$33:$J$39),IF($H$64<$C$42,((($H$64-$C$41)/$D$41)*$J$41)+SUM($J$33:$J$40),\"False\")))))))","v":3283.3227409096367},{"$f":"IF($H$64<$C$36,((($H$64-$C$35)/$D$35)*$K$35)+SQRT(SUM(($K$33^2),($K$34^2))),IF($H$64<$C$37,((($H$64-$C$36)/$D$36)*$K$36)+SQRT(SUM(($K$33^2),($K$34^2),($K$35^2))),IF($H$64<$C$38,((($H$64-$C$37)/$D$37)*$K$37)+SQRT(SUM(($K$33^2),($K$34^2),($K$35^2),($K$36^2))),IF($H$64<$C$39,((($H$64-$C$38)/$D$38)*$K$38)+SQRT(SUM(($K$33^2),($K$34^2),($K$35^2),($K$36^2),($K$37^2))),IF($H$64<$C$40,((($H$64-$C$39)/$D$39)*$K$39)+SQRT(SUM(($K$33^2),($K$34^2),($K$35^2),($K$36^2),($K$37^2),($K$38^2))),IF($H$64<$C$41,((($H$64-$C$40)/$D$40)*$K$40)+SQRT(SUM(($K$33^2),($K$34^2),($K$35^2),($K$36^2),($K$37^2),($K$38^2),($K$39^2))),IF($H$64<$C$42,((($H$64-$C$41)/$D$41)*$K$41)+SQRT((($K$33^2)+($K$34^2)+($K$35^2)+($K$36^2)+($K$37^2)+($K$38^2)+($K$39^2)+($K$40^2))),\"False\")))))))","v":557.6183716483431},{"$f":"$L$46*0.8","v":39744},"80% of Median Household Income",null,{"$f":"IF($M$64<$C$36,((($M$64-$C$35)/$D$35)*$L$35)+SUM($L$33:$L$34),IF($M$64<$C$37,((($M$64-$C$36)/$D$36)*$L$36)+SUM($L$33:$L$35),IF($M$64<$C$38,((($M$64-$C$37)/$D$37)*$L$37)+SUM($L$33:$L$36),IF($M$64<$C$39,((($M$64-$C$38)/$D$38)*$L$38)+SUM($L$33:$L$37),IF($M$64<$C$40,((($M$64-$C$39)/$D$39)*$L$39)+SUM($L$33:$L$38),IF($M$64<$C$41,((($M$64-$C$40)/$D$40)*$L$40)+SUM($L$33:$L$39),IF($M$64<$C$42,((($M$64-$C$41)/$D$41)*$L$41)+SUM($L$33:$L$40),\"False\")))))))","v":1996.3900926728447},{"$f":"IF($M$64<$C$36,((($M$64-$C$35)/$D$35)*$M$35)+SQRT(SUM(($M$33^2),($M$34^2))),IF($M$64<$C$37,((($M$64-$C$36)/$D$36)*$M$36)+SQRT(SUM(($M$33^2),($M$34^2),($M$35^2))),IF($M$64<$C$38,((($M$64-$C$37)/$D$37)*$M$37)+SQRT(SUM(($M$33^2),($M$34^2),($M$35^2),($M$36^2))),IF($M$64<$C$39,((($M$64-$C$38)/$D$38)*$M$38)+SQRT(SUM(($M$33^2),($M$34^2),($M$35^2),($M$36^2),($M$37^2))),IF($M$64<$C$40,((($M$64-$C$39)/$D$39)*$M$39)+SQRT(SUM(($M$33^2),($M$34^2),($M$35^2),($M$36^2),($M$37^2),($M$38^2))),IF($M$64<$C$41,((($M$64-$C$40)/$D$40)*$M$40)+SQRT(SUM(($M$33^2),($M$34^2),($M$35^2),($M$36^2),($M$37^2),($M$38^2),($M$39^2))),IF($M$64<$C$42,((($M$64-$C$41)/$D$41)*$M$41)+SQRT((($M$33^2)+($M$34^2)+($M$35^2)+($M$36^2)+($M$37^2)+($M$38^2)+($M$39^2)+($M$40^2))),\"False\")))))))","v":511.32206315211505}]

{"sheet":"Updates","index":14,"n_rows":62,"n_cols":3,"rows_kept":62,"cut":false,"hidden":false,"merged":[[4,2,4,11],[5,2,5,11],[6,2,6,11],[60,2,60,12],[61,2,61,12],[47,2,47,12],[49,2,49,12],[55,2,55,12],[56,2,56,12],[57,2,57,12],[58,2,58,12],[59,2,59,12],[54,2,54,12],[53,2,53,12],[50,2,50,12],[51,2,51,12],[52,2,52,12],[48,2,48,12],[0,2,0,12],[1,2,1,12],[2,2,2,12],[39,2,39,12],[38,2,38,12],[27,2,27,12],[28,2,28,12],[31,2,31,12],[29,2,29,12],[30,2,30,12],[32,2,32,12],[33,2,33,12],[34,2,34,12],[35,2,35,12],[36,2,36,12],[46,2,46,12],[25,2,25,12],[44,2,44,12],[45,2,45,12],[26,2,26,12],[37,2,37,12],[40,2,40,12],[41,2,41,12],[42,2,42,12],[43,2,43,12],[7,2,7,11],[9,2,9,11],[10,2,10,11],[21,2,21,12],[24,2,24,12],[17,2,17,11],[18,2,18,11],[20,2,20,12],[22,2,22,12],[23,2,23,12],[19,2,19,12],[16,2,16,11],[8,2,8,11],[11,2,11,11]]}
["Important Notes"]
[]
["Date",null,"Task"]
[]
["2023-12-07",null,"Updated 2018-2022 Amreican Community Survey Data. Updated CPI Adjustement Factor  factor 1.19 for 2013-2017 and 1.27 for 2008-2012"]
["2023-10-26",null,"Updated Employment and Wage Information for 2022."]
["2023-10-18",null,"Updated 2008-2012 and 2013-2017 Amreican Community Survey Data; updated error in Poverty worksheet.  Added 10 Year Disability Comparison Worksheet"]
["2023-01-25",null,"Updated Permit Data and appropriate worksheets."]
["2022-12-14",null,"Updated 2017-2021 Amreican Community Survey Data."]
["2022-11-01",null,"Updated NH Population Estimates through 2030"]
["2022-10-04",null,"Updated Employment and Wage Information for 2021. Updated CPI Adjustment factor 1.08 for 2012-2016 and 1.15 for 2007-2011"]
["2022-03-21",null,"Updated 2016-2020 Amreican Community Survey Data."]
["2022-03-14",null,"Updated CPI Adjustement factor to adjust 2010 (1.19) and 2015 (1.09) dollars to 2020 dollars. "]
["2022-02-17",null,"Updated Permit Data and all appropriate charts."]
["2021-11-02",null,"Updated 2020 Annual Wage and Employment count"]
["2021-09-09",null,"Updated with 2020 Decennial Population data"]
["2020-12-18",null,"Updated 2015-2019 Amreican Community Survey Data and added 2019 NH Permit data."]
["2020-10-01",null,"Updated 2019 Employmnet and Wage data by industry sector"]
["2020-09-10",null,"Updated historical data 2005-2009 and 2010-2014 ACS Data"]
["2020-07-10",null,"Updated 2018 Unemployment Rate and Labor Force Data to Employment, Wages, LaborForce & Unemp. Worksheet for large communities."]
["2019-12-31",null,"Updated Visual Basic Code changing the footer font from Gotham Medium to Verdana."]
["2019-12-27",null,"Updated with 2014-2018 ACS Data. Updated 2018 Permit data. Updated CPI Adjustment Factor (1.02437673) to the 2009-2013 and 2014-2018 Income Comparison Table. This factor was provided by Census"]
["2019-11-27",null,"Updated 2009-2013 comparison data set."]
["2019-09-17",null,"Updated 2018 Annual Employment and Wage data; updated Housing and Employment worksheet."]
["2019-01-08",null,"Updated the location of the 2008-2012 data and the ACS_Tbl_B11001_B11002_B25010 worksheet. This fixed an error on the PopulationCharacteristics worksheet"]
["2018-12-19",null,"Updated 2017 Annual Employment and Wage data; updated Housing and Employment worksheet. Updated 2017 Permit data"]
["2018-12-13",null,"Updated the 2008-2012 ACS data for comparison purposes. Updated CPI Adjustment Factor (1.0676) to the 2008-2012 and 2013-2017  Income Comparison Table. This factor was provided by Census."]
["2018-12-06",null,"Updated labels in workbook to reflect 2013-2017 data set and 2008-2012 comparison data set. Updated footer text.  Updated 2013-2017 ACS data"]
["2018-08-17",null,"Updated Chart formats."]
["2018-05-09",null,"Updated 2017 Unemployment Rate and Labor Force Data to Employment, Wages, LaborForce & Unemp. Worksheet for large communities."]
["2017-12-18",null,"Updated 2016 NH Permit Data"]
["2017-12-12",null,"Updated Charts with 2012-2016 data; updated code to reflect additional data points in various tables. Updated CPI Adjustment Factor (1.06686838) to the 2007-2011 and 2012-2016 Income Comparison Table. This factor was provided by Census."]
["2017-11-16",null,"Updated 2007-2011 ACS Data to all charts"]
["2017-10-13",null,"Updated 2016 Annual Employment and Wage data; updated Housing and Employment worksheet"]
["2017-06-06",null,"Fixed error on E mployment and Housing worksheet. Invalidly referenced Coos County."]
["2017-05-15",null,"Updated 2016 Unemployment Rate and Labor Force Data to Employment, Wages, LaborForce & Unemp. Worksheet for large communities."]
["2017-01-05",null,"Verified Charts; Added 2015 Permit Data; Updated Housing and Permit data"]
["2016-12-29",null,"Updated the 2006-2010 ACS data for comparison purposes."]
["2016-12-23",null,"Updated Town Comparisons: Employment and Housing with 2015 data"]
["2016-12-19",null,"Updated 2010-2014 ACS Data"]
["2016-10-31",null,"Updated 2015 Annual Employment and Wage data"]
["2016-08-09",null,"Updated Labor Force and Unemployment data for the specific towns: Concord; Derry; Dover; Hudson; Londonderry; Manchester; Merrimack; Nashua; Rochester; and Salem"]
["2016-01-14",null,"Fixed error in School Attainment worksheet - Graduate or Professional Degree data."]
["2016-01-07",null,"Fixed formula in Poverty worksheet; fixed Non-Family Persons per Household data; fixed legend of Rental Cost Charts."]
["2015-12-23",null,"Fixed Table ACS_B25074"]
["2015-12-16",null,"Updated Owner Cost Chart and data worksheet to fix error."]
["2015-12-11",null,"Updated Code to correct an error on the RentalHousingCost worksheet; updated column names on CntyDataLink."]
["2015-12-10",null,"Updated 2010-2014 ACS Data"]
["2015-12-07",null,"Updated Permit Data and all appropriate charts."]
["2015-12-03",null,"Updated Color scheme on charts and added correct logo to the charts; updated RentalHousingCost and OwnerCost worksheet to eliminate a printed page. Charts were moved and reduced in size. Updated the CPI Adjustment Factor (1.1034264) to the 2005-2009 and 2010-2014 Income Comparison Table. This factor was provided by Census."]
["2015-10-06",null,"Added County Comparison Employment and Housing data. Added Visual basic code to automatically update footer. Visual basic code will run when Ctrl-j is selected. "]
["2015-09-29",null,"Updated Employment Information"]
["2015-09-18",null,"Updated RentalHousingCost worksheet to accommodate changes to Table B25074; Updated Charts and code to allow for prior 5 year estimates to be updated."]
["2015-09-01",null,"Updated Code to include Prior 5 year Estimates"]
["2015-08-19",null,"Updated Owner Cost Chart and data. Added Table B25106. Housing Cost burden by Income. Updated 2005-2009 ACS Estimate data"]
["2015-08-06",null,"Corrected the Employment vs. Housing worksheet."]
["2015-03-17",null,"Added Labor Force Data"]
["2014-12-30",null,"Corrected Rental Cost formula."]
["2014-12-17",null,"Corrected and verified household pie charts. All Permit data and employment data has been updated through 2013."]
["2011-10-14",null,"Reformatted the code in the worksheet and corrected an error in the Income Comparison Sheet"]
["2010-12-21",null,"Added Margin of Error information on all applicable ACS Sheets"]
["2010-12-07",null,"Created a calculated Table B19001 in anticipation for the 5 year data.  Table C19001 will not be provided"]

{"sheet":"ACS_Source_Table_List","index":15,"n_rows":45,"n_cols":4,"rows_kept":45,"cut":false,"hidden":true,"merged":[]}
[]
["ACS Table B01001","x"]
["ACS Table B01002","x"]
["ACS Table B03002","x"]
["ACS Table B05002 ","x"]
["ACS Table B07003","x","Replaces C07001"]
["ACS Table B11001","x"]
["ACS Table B11002","x"]
["ACS Table B14001 & B15002","x","Replaces C15002"]
["ACS Table B17001 ","x"]
["ACS Table B17010 ","x","Replaces C17010","Poverty Status by family type"]
["ACS Table B17017","x","Replaces C17017","Poverty Status by HH type"]
["ACS Table B18001 ",null,"Removed Disability Tables"]
["ACS Table C18001 ",null,"Removed Disability Tables"]
["ACS Table B18003",null,"Removed Disability Tables"]
["ACS Table B18004",null,"Removed Disability Tables"]
["ACS Table B18005",null,"Removed Disability Tables"]
["ACS Table B18006",null,"Removed Disability Tables"]
["ACS Table B18007",null,"Removed Disability Tables"]
["ACS Table B18008",null,"Removed Disability Tables"]
["ACS Table B19001","x"]
["ACS Table B19037 ","x"]
["ACS Table B19049 ","x"]
["ACS Table B19101& B19113 ","s"]
["ACS Table B19201 & B19202","s"]
["ACS Table B25001, B25003 & B25004 ","x"]
["ACS Table B25008","x"]
["ACS Table B25010","x"]
["ACS Table B25024","x"]
["ACS Table B25075 & B25077","x"]
["ACS Table B25088","x"]
["ACS Table B25091","x"]
["ACS Table B25118 & B25119","x"]
[]
[]
[]
[]
[]
[]
["Tables Removed from 5 Year Estimates"]
["ACS Table C19001 ","x","May have to consolidate this table from Table B19001. This has already been done. For 5 year estimates remove worksheet."]
["ACS Table B25094","x","No Comparison Table for B25094 Removed"]
["ACS Table B25101",null,"No Comparison Table for B25101 Removed"]
["ACS Table B25104 & B25105",null,"No Comparison Table for B25104 & B25105 Removed"]
["ACS Table B25106","x","No Comparison Table for  B25106 Removed"]

{"sheet":"ACS_Table_B01001","index":16,"n_rows":310,"n_cols":76,"rows_kept":310,"cut":false,"hidden":true,"merged":[[65106,10,65106,11],[65106,12,65106,13],[65106,14,65106,15],[65106,2,65106,3],[65106,4,65106,5],[65106,6,65106,7],[65106,8,65106,9],[64922,2,64922,3],[64922,4,64922,5],[64922,6,64922,7],[64922,8,64922,9],[64922,10,64922,11],[64922,12,64922,13],[64922,14,64922,15],[64860,2,64860,3],[64860,4,64860,5],[64942,14,64942,15],[65004,2,65004,3],[65004,4,65004,5],[65004,6,65004,7],[65004,8,65004,9],[65004,10,65004,11],[65004,12,65004,13],[65004,14,65004,15],[64942,2,64942,3],[64942,4,64942,5],[65024,6,65024,7],[65024,8,65024,9],[64942,10,64942,11],[64942,12,64942,13],[64942,6,64942,7],[64942,8,64942,9],[65024,10,65024,11],[65024,12,65024,13],[65024,14,65024,15],[65086,2,65086,3],[65086,4,65086,5],[65086,6,65086,7],[65086,8,65086,9],[65086,10,65086,11],[65086,12,65086,13],[65086,14,65086,15],[65024,2,65024,3],[65024,4,65024,5],[64696,6,64696,7],[64696,8,64696,9],[64614,10,64614,11],[64614,12,64614,13],[64614,6,64614,7],[64614,8,64614,9],[64696,10,64696,11],[64696,12,64696,13],[64696,14,64696,15],[64860,6,64860,7],[64860,8,64860,9],[64778,10,64778,11],[64778,12,64778,13],[64778,6,64778,7],[64778,8,64778,9],[64860,10,64860,11],[64860,12,64860,13],[64860,14,64860,15],[64758,2,64758,3],[64758,4,64758,5],[64758,6,64758,7],[64758,8,64758,9],[64758,10,64758,11],[64758,12,64758,13],[64758,14,64758,15],[64696,2,64696,3],[64696,4,64696,5],[64778,14,64778,15],[64840,2,64840,3],[64840,4,64840,5],[64840,6,64840,7],[64840,8,64840,9],[64840,10,64840,11],[64840,12,64840,13],[64840,14,64840,15],[64778,2,64778,3],[64778,4,64778,5],[64450,14,64450,15],[64512,2,64512,3],[64512,4,64512,5],[64512,6,64512,7],[64512,8,64512,9],[64512,10,64512,11],[64512,12,64512,13],[64512,14,64512,15],[64450,2,64450,3],[64450,4,64450,5],[64450,10,64450,11],[64450,12,64450,13],[64450,6,64450,7],[64450,8,64450,9],[64532,12,64532,13],[64532,14,64532,15],[64594,2,64594,3],[64594,4,64594,5],[64594,6,64594,7],[64594,8,64594,9],[64594,10,64594,11],[64594,12,64594,13],[64594,14,64594,15],[64532,2,64532,3],[64532,4,64532,5],[64614,14,64614,15],[64676,2,64676,3],[64676,4,64676,5],[64676,6,64676,7],[64676,8,64676,9],[64676,10,64676,11],[64676,12,64676,13],[64676,14,64676,15],[64614,2,64614,3],[64614,4,64614,5],[64532,6,64532,7],[64532,8,64532,9],[64532,10,64532,11],[64266,2,64266,3],[64266,4,64266,5],[64266,6,64266,7],[64266,8,64266,9],[64266,10,64266,11],[64266,12,64266,13],[64266,14,64266,15],[64204,2,64204,3],[64204,4,64204,5],[64286,14,64286,15],[64348,2,64348,3],[64348,4,64348,5],[64348,6,64348,7],[64348,8,64348,9],[64348,10,64348,11],[64348,12,64348,13],[64348,14,64348,15],[64286,2,64286,3],[64286,4,64286,5],[64368,6,64368,7],[64368,8,64368,9],[64286,10,64286,11],[64286,12,64286,13],[64286,6,64286,7],[64286,8,64286,9],[64368,10,64368,11],[64368,12,64368,13],[64368,14,64368,15],[64430,2,64430,3],[64430,4,64430,5],[64430,6,64430,7],[64430,8,64430,9],[64430,10,64430,11],[64430,12,64430,13],[64430,14,64430,15],[64368,2,64368,3],[64368,4,64368,5],[64040,6,64040,7],[64040,8,64040,9],[63958,10,63958,11],[63958,12,63958,13],[63958,6,63958,7],[63958,8,63958,9],[64040,10,64040,11],[64040,12,64040,13],[64040,14,64040,15],[64102,2,64102,3],[64102,4,64102,5],[64102,6,64102,7],[64102,8,64102,9],[64102,10,64102,11],[64102,12,64102,13],[64102,14,64102,15],[64040,2,64040,3],[64040,4,64040,5],[64122,14,64122,15],[64184,2,64184,3],[64184,4,64184,5],[64184,6,64184,7],[64184,8,64184,9],[64184,10,64184,11],[64184,12,64184,13],[64184,14,64184,15],[64122,2,64122,3],[64122,4,64122,5],[64204,6,64204,7],[64204,8,64204,9],[64122,10,64122,11],[64122,12,64122,13],[64122,6,64122,7],[64122,8,64122,9],[64204,10,64204,11],[64204,12,64204,13],[64204,14,64204,15],[63794,14,63794,15],[63856,2,63856,3],[63856,4,63856,5],[63856,6,63856,7],[63856,8,63856,9],[63856,10,63856,11],[63856,12,63856,13],[63856,14,63856,15],[63794,2,63794,3],[63794,4,63794,5],[63876,6,63876,7],[63876,8,63876,9],[63794,10,63794,11],[63794,12,63794,13],[63794,6,63794,7],[63794,8,63794,9],[63876,10,63876,11],[63876,12,63876,13],[63876,14,63876,15],[63938,2,63938,3],[63938,4,63938,5],[63938,6,63938,7],[63938,8,63938,9],[63938,10,63938,11],[63938,12,63938,13],[63938,14,63938,15],[63876,2,63876,3],[63876,4,63876,5],[63958,14,63958,15],[64020,2,64020,3],[64020,4,64020,5],[64020,6,64020,7],[64020,8,64020,9],[64020,10,64020,11],[64020,12,64020,13],[64020,14,64020,15],[63958,2,63958,3],[63958,4,63958,5],[63610,2,63610,3],[63610,4,63610,5],[63610,6,63610,7],[63610,8,63610,9],[63610,10,63610,11],[63610,12,63610,13],[63610,14,63610,15],[63548,2,63548,3],[63548,4,63548,5],[63630,14,63630,15],[63692,2,63692,3],[63692,4,63692,5],[63692,6,63692,7],[63692,8,63692,9],[63692,10,63692,11],[63692,12,63692,13],[63692,14,63692,15],[63630,2,63630,3],[63630,4,63630,5],[63712,6,63712,7],[63712,8,63712,9],[63630,10,63630,11],[63630,12,63630,13],[63630,6,63630,7],[63630,8,63630,9],[63712,10,63712,11],[63712,12,63712,13],[63712,14,63712,15],[63774,2,63774,3],[63774,4,63774,5],[63774,6,63774,7],[63774,8,63774,9],[63774,10,63774,11],[63774,12,63774,13],[63774,14,63774,15],[63712,2,63712,3],[63712,4,63712,5],[63384,6,63384,7],[63384,8,63384,9],[63302,10,63302,11],[63302,12,63302,13],[63302,6,63302,7],[63302,8,63302,9],[63384,10,63384,11],[63384,12,63384,13],[63384,14,63384,15],[63446,2,63446,3],[63446,4,63446,5],[63446,6,63446,7],[63446,8,63446,9],[63446,10,63446,11],[63446,12,63446,13],[63446,14,63446,15],[63384,2,63384,3],[63384,4,63384,5],[63466,14,63466,15],[63528,2,63528,3],[63528,4,63528,5],[63528,6,63528,7],[63528,8,63528,9],[63528,10,63528,11],[63528,12,63528,13],[63528,14,63528,15],[63466,2,63466,3],[63466,4,63466,5],[63548,6,63548,7],[63548,8,63548,9],[63466,10,63466,11],[63466,12,63466,13],[63466,6,63466,7],[63466,8,63466,9],[63548,10,63548,11],[63548,12,63548,13],[63548,14,63548,15],[63138,14,63138,15],[63200,2,63200,3],[63200,4,63200,5],[63200,6,63200,7],[63200,8,63200,9],[63200,10,63200,11],[63200,12,63200,13],[63200,14,63200,15],[63138,2,63138,3],[63138,4,63138,5],[63220,6,63220,7],[63220,8,63220,9],[63138,10,63138,11],[63138,12,63138,13],[63138,6,63138,7],[63138,8,63138,9],[63220,10,63220,11],[63220,12,63220,13],[63220,14,63220,15],[63282,2,63282,3],[63282,4,63282,5],[63282,6,63282,7],[63282,8,63282,9],[63282,10,63282,11],[63282,12,63282,13],[63282,14,63282,15],[63220,2,63220,3],[63220,4,63220,5],[63302,14,63302,15],[63364,2,63364,3],[63364,4,63364,5],[63364,6,63364,7],[63364,8,63364,9],[63364,10,63364,11],[63364,12,63364,13],[63364,14,63364,15],[63302,2,63302,3],[63302,4,63302,5],[62954,2,62954,3],[62954,4,62954,5],[62954,6,62954,7],[62954,8,62954,9],[62954,10,62954,11],[62954,12,62954,13],[62954,14,62954,15],[62892,2,62892,3],[62892,4,62892,5],[62974,14,62974,15],[63036,2,63036,3],[63036,4,63036,5],[63036,6,63036,7],[63036,8,63036,9],[63036,10,63036,11],[63036,12,63036,13],[63036,14,63036,15],[62974,2,62974,3],[62974,4,62974,5],[63056,6,63056,7],[63056,8,63056,9],[62974,10,62974,11],[62974,12,62974,13],[62974,6,62974,7],[62974,8,62974,9],[63056,10,63056,11],[63056,12,63056,13],[63056,14,63056,15],[63118,2,63118,3],[63118,4,63118,5],[63118,6,63118,7],[63118,8,63118,9],[63118,10,63118,11],[63118,12,63118,13],[63118,14,63118,15],[63056,2,63056,3],[63056,4,63056,5],[62728,6,62728,7],[62728,8,62728,9],[62646,10,62646,11],[62646,12,62646,13],[62646,6,62646,7],[62646,8,62646,9],[62728,10,62728,11],[62728,12,62728,13],[62728,14,62728,15],[62790,2,62790,3],[62790,4,62790,5],[62790,6,62790,7],[62790,8,62790,9],[62790,10,62790,11],[62790,12,62790,13],[62790,14,62790,15],[62728,2,62728,3],[62728,4,62728,5],[62810,14,62810,15],[62872,2,62872,3],[62872,4,62872,5],[62872,6,62872,7],[62872,8,62872,9],[62872,10,62872,11],[62872,12,62872,13],[62872,14,62872,15],[62810,2,62810,3],[62810,4,62810,5],[62892,6,62892,7],[62892,8,62892,9],[62810,10,62810,11],[62810,12,62810,13],[62810,6,62810,7],[62810,8,62810,9],[62892,10,62892,11],[62892,12,62892,13],[62892,14,62892,15],[62482,14,62482,15],[62544,2,62544,3],[62544,4,62544,5],[62544,6,62544,7],[62544,8,62544,9],[62544,10,62544,11],[62544,12,62544,13],[62544,14,62544,15],[62482,2,62482,3],[62482,4,62482,5],[62564,6,62564,7],[62564,8,62564,9],[62482,10,62482,11],[62482,12,62482,13],[62482,6,62482,7],[62482,8,62482,9],[62564,10,62564,11],[62564,12,62564,13],[62564,14,62564,15],[62626,2,62626,3],[62626,4,62626,5],[62626,6,62626,7],[62626,8,62626,9],[62626,10,62626,11],[62626,12,62626,13],[62626,14,62626,15],[62564,2,62564,3],[62564,4,62564,5],[62646,14,62646,15],[62708,2,62708,3],[62708,4,62708,5],[62708,6,62708,7],[62708,8,62708,9],[62708,10,62708,11],[62708,12,62708,13],[62708,14,62708,15],[62646,2,62646,3],[62646,4,62646,5],[62298,2,62298,3],[62298,4,62298,5],[62298,6,62298,7],[62298,8,62298,9],[62298,10,62298,11],[62298,12,62298,13],[62298,14,62298,15],[62236,2,62236,3],[62236,4,62236,5],[62318,14,62318,15],[62380,2,62380,3],[62380,4,62380,5],[62380,6,62380,7],[62380,8,62380,9],[62380,10,62380,11],[62380,12,62380,13],[62380,14,62380,15],[62318,2,62318,3],[62318,4,62318,5],[62400,6,62400,7],[62400,8,62400,9],[62318,10,62318,11],[62318,12,62318,13],[62318,6,62318,7],[62318,8,62318,9],[62400,10,62400,11],[62400,12,62400,13],[62400,14,62400,15],[62462,2,62462,3],[62462,4,62462,5],[62462,6,62462,7],[62462,8,62462,9],[62462,10,62462,11],[62462,12,62462,13],[62462,14,62462,15],[62400,2,62400,3],[62400,4,62400,5],[62072,6,62072,7],[62072,8,62072,9],[61990,10,61990,11],[61990,12,61990,13],[61990,6,61990,7],[61990,8,61990,9],[62072,10,62072,11],[62072,12,62072,13],[62072,14,62072,15],[62134,2,62134,3],[62134,4,62134,5],[62134,6,62134,7],[62134,8,62134,9],[62134,10,62134,11],[62134,12,62134,13],[62134,14,62134,15],[62072,2,62072,3],[62072,4,62072,5],[62154,14,62154,15],[62216,2,62216,3],[62216,4,62216,5],[62216,6,62216,7],[62216,8,62216,9],[62216,10,62216,11],[62216,12,62216,13],[62216,14,62216,15],[62154,2,62154,3],[62154,4,62154,5],[62236,6,62236,7],[62236,8,62236,9],[62154,10,62154,11],[62154,12,62154,13],[62154,6,62154,7],[62154,8,62154,9],[62236,10,62236,11],[62236,12,62236,13],[62236,14,62236,15],[61826,14,61826,15],[61888,2,61888,3],[61888,4,61888,5],[61888,6,61888,7],[61888,8,61888,9],[61888,10,61888,11],[61888,12,61888,13],[61888,14,61888,15],[61826,2,61826,3],[61826,4,61826,5],[61908,6,61908,7],[61908,8,61908,9],[61826,10,61826,11],[61826,12,61826,13],[61826,6,61826,7],[61826,8,61826,9],[61908,10,61908,11],[61908,12,61908,13],[61908,14,61908,15],[61970,2,61970,3],[61970,4,61970,5],[61970,6,61970,7],[61970,8,61970,9],[61970,10,61970,11],[61970,12,61970,13],[61970,14,61970,15],[61908,2,61908,3],[61908,4,61908,5],[61990,14,61990,15],[62052,2,62052,3],[62052,4,62052,5],[62052,6,62052,7],[62052,8,62052,9],[62052,10,62052,11],[62052,12,62052,13],[62052,14,62052,15],[61990,2,61990,3],[61990,4,61990,5],[61642,2,61642,3],[61642,4,61642,5],[61642,6,61642,7],[61642,8,61642,9],[61642,10,61642,11],[61642,12,61642,13],[61642,14,61642,15],[61580,2,61580,3],[61580,4,61580,5],[61662,14,61662,15],[61724,2,61724,3],[61724,4,61724,5],[61724,6,61724,7],[61724,8,61724,9],[61724,10,61724,11],[61724,12,61724,13],[61724,14,61724,15],[61662,2,61662,3],[61662,4,61662,5],[61744,6,61744,7],[61744,8,61744,9],[61662,10,61662,11],[61662,12,61662,13],[61662,6,61662,7],[61662,8,61662,9],[61744,10,61744,11],[61744,12,61744,13],[61744,14,61744,15],[61806,2,61806,3],[61806,4,61806,5],[61806,6,61806,7],[61806,8,61806,9],[61806,10,61806,11],[61806,12,61806,13],[61806,14,61806,15],[61744,2,61744,3],[61744,4,61744,5],[61416,6,61416,7],[61416,8,61416,9],[61334,10,61334,11],[61334,12,61334,13],[61334,6,61334,7],[61334,8,61334,9],[61416,10,61416,11],[61416,12,61416,13],[61416,14,61416,15],[61478,2,61478,3],[61478,4,61478,5],[61478,6,61478,7],[61478,8,61478,9],[61478,10,61478,11],[61478,12,61478,13],[61478,14,61478,15],[61416,2,61416,3],[61416,4,61416,5],[61498,14,61498,15],[61560,2,61560,3],[61560,4,61560,5],[61560,6,61560,7],[61560,8,61560,9],[61560,10,61560,11],[61560,12,61560,13],[61560,14,61560,15],[61498,2,61498,3],[61498,4,61498,5],[61580,6,61580,7],[61580,8,61580,9],[61498,10,61498,11],[61498,12,61498,13],[61498,6,61498,7],[61498,8,61498,9],[61580,10,61580,11],[61580,12,61580,13],[61580,14,61580,15],[61170,14,61170,15],[61232,2,61232,3],[61232,4,61232,5],[61232,6,61232,7],[61232,8,61232,9],[61232,10,61232,11],[61232,12,61232,13],[61232,14,61232,15],[61170,2,61170,3],[61170,4,61170,5],[61252,6,61252,7],[61252,8,61252,9],[61170,10,61170,11],[61170,12,61170,13],[61170,6,61170,7],[61170,8,61170,9],[61252,10,61252,11],[61252,12,61252,13],[61252,14,61252,15],[61314,2,61314,3],[61314,4,61314,5],[61314,6,61314,7],[61314,8,61314,9],[61314,10,61314,11],[61314,12,61314,13],[61314,14,61314,15],[61252,2,61252,3],[61252,4,61252,5],[61334,14,61334,15],[61396,2,61396,3],[61396,4,61396,5],[61396,6,61396,7],[61396,8,61396,9],[61396,10,61396,11],[61396,12,61396,13],[61396,14,61396,15],[61334,2,61334,3],[61334,4,61334,5],[60986,2,60986,3],[60986,4,60986,5],[60986,6,60986,7],[60986,8,60986,9],[60986,10,60986,11],[60986,12,60986,13],[60986,14,60986,15],[60924,2,60924,3],[60924,4,60924,5],[61006,14,61006,15],[61068,2,61068,3],[61068,4,61068,5],[61068,6,61068,7],[61068,8,61068,9],[61068,10,61068,11],[61068,12,61068,13],[61068,14,61068,15],[61006,2,61006,3],[61006,4,61006,5],[61088,6,61088,7],[61088,8,61088,9],[61006,10,61006,11],[61006,12,61006,13],[61006,6,61006,7],[61006,8,61006,9],[61088,10,61088,11],[61088,12,61088,13],[61088,14,61088,15],[61150,2,61150,3],[61150,4,61150,5],[61150,6,61150,7],[61150,8,61150,9],[61150,10,61150,11],[61150,12,61150,13],[61150,14,61150,15],[61088,2,61088,3],[61088,4,61088,5],[60760,6,60760,7],[60760,8,60760,9],[60678,10,60678,11],[60678,12,60678,13],[60678,6,60678,7],[60678,8,60678,9],[60760,10,60760,11],[60760,12,60760,13],[60760,14,60760,15],[60822,2,60822,3],[60822,4,60822,5],[60822,6,60822,7],[60822,8,60822,9],[60822,10,60822,11],[60822,12,60822,13],[60822,14,60822,15],[60760,2,60760,3],[60760,4,60760,5],[60842,14,60842,15],[60904,2,60904,3],[60904,4,60904,5],[60904,6,60904,7],[60904,8,60904,9],[60904,10,60904,11],[60904,12,60904,13],[60904,14,60904,15],[60842,2,60842,3],[60842,4,60842,5],[60924,6,60924,7],[60924,8,60924,9],[60842,10,60842,11],[60842,12,60842,13],[60842,6,60842,7],[60842,8,60842,9],[60924,10,60924,11],[60924,12,60924,13],[60924,14,60924,15],[60514,14,60514,15],[60576,2,60576,3],[60576,4,60576,5],[60576,6,60576,7],[60576,8,60576,9],[60576,10,60576,11],[60576,12,60576,13],[60576,14,60576,15],[60514,2,60514,3],[60514,4,60514,5],[60596,6,60596,7],[60596,8,60596,9],[60514,10,60514,11],[60514,12,60514,13],[60514,6,60514,7],[60514,8,60514,9],[60596,10,60596,11],[60596,12,60596,13],[60596,14,60596,15],[60658,2,60658,3],[60658,4,60658,5],[60658,6,60658,7],[60658,8,60658,9],[60658,10,60658,11],[60658,12,60658,13],[60658,14,60658,15],[60596,2,60596,3],[60596,4,60596,5],[60678,14,60678,15],[60740,2,60740,3],[60740,4,60740,5],[60740,6,60740,7],[60740,8,60740,9],[60740,10,60740,11],[60740,12,60740,13],[60740,14,60740,15],[60678,2,60678,3],[60678,4,60678,5],[60330,2,60330,3],[60330,4,60330,5],[60330,6,60330,7],[60330,8,60330,9],[60330,10,60330,11],[60330,12,60330,13],[60330,14,60330,15],[60268,2,60268,3],[60268,4,60268,5],[60350,14,60350,15],[60412,2,60412,3],[60412,4,60412,5],[60412,6,60412,7],[60412,8,60412,9],[60412,10,60412,11],[60412,12,60412,13],[60412,14,60412,15],[60350,2,60350,3],[60350,4,60350,5],[60432,6,60432,7],[60432,8,60432,9],[60350,10,60350,11],[60350,12,60350,13],[60350,6,60350,7],[60350,8,60350,9],[60432,10,60432,11],[60432,12,60432,13],[60432,14,60432,15],[60494,2,60494,3],[60494,4,60494,5],[60494,6,60494,7],[60494,8,60494,9],[60494,10,60494,11],[60494,12,60494,13],[60494,14,60494,15],[60432,2,60432,3],[60432,4,60432,5],[60104,6,60104,7],[60104,8,60104,9],[60022,10,60022,11],[60022,12,60022,13],[60022,6,60022,7],[60022,8,60022,9],[60104,10,60104,11],[60104,12,60104,13],[60104,14,60104,15],[60166,2,60166,3],[60166,4,60166,5],[60166,6,60166,7],[60166,8,60166,9],[60166,10,60166,11],[60166,12,60166,13],[60166,14,60166,15],[60104,2,60104,3],[60104,4,60104,5],[60186,14,60186,15],[60248,2,60248,3],[60248,4,60248,5],[60248,6,60248,7],[60248,8,60248,9],[60248,10,60248,11],[60248,12,60248,13],[60248,14,60248,15],[60186,2,60186,3],[60186,4,60186,5],[60268,6,60268,7],[60268,8,60268,9],[60186,10,60186,11],[60186,12,60186,13],[60186,6,60186,7],[60186,8,60186,9],[60268,10,60268,11],[60268,12,60268,13],[60268,14,60268,15],[59858,14,59858,15],[59920,2,59920,3],[59920,4,59920,5],[59920,6,59920,7],[59920,8,59920,9],[59920,10,59920,11],[59920,12,59920,13],[59920,14,59920,15],[59858,2,59858,3],[59858,4,59858,5],[59940,6,59940,7],[59940,8,59940,9],[59858,10,59858,11],[59858,12,59858,13],[59858,6,59858,7],[59858,8,59858,9],[59940,10,59940,11],[59940,12,59940,13],[59940,14,59940,15],[60002,2,60002,3],[60002,4,60002,5],[60002,6,60002,7],[60002,8,60002,9],[60002,10,60002,11],[60002,12,60002,13],[60002,14,60002,15],[59940,2,59940,3],[59940,4,59940,5],[60022,14,60022,15],[60084,2,60084,3],[60084,4,60084,5],[60084,6,60084,7],[60084,8,60084,9],[60084,10,60084,11],[60084,12,60084,13],[60084,14,60084,15],[60022,2,60022,3],[60022,4,60022,5],[59674,2,59674,3],[59674,4,59674,5],[59674,6,59674,7],[59674,8,59674,9],[59674,10,59674,11],[59674,12,59674,13],[59674,14,59674,15],[59612,2,59612,3],[59612,4,59612,5],[59694,14,59694,15],[59756,2,59756,3],[59756,4,59756,5],[59756,6,59756,7],[59756,8,59756,9],[59756,10,59756,11],[59756,12,59756,13],[59756,14,59756,15],[59694,2,59694,3],[59694,4,59694,5],[59776,6,59776,7],[59776,8,59776,9],[59694,10,59694,11],[59694,12,59694,13],[59694,6,59694,7],[59694,8,59694,9],[59776,10,59776,11],[59776,12,59776,13],[59776,14,59776,15],[59838,2,59838,3],[59838,4,59838,5],[59838,6,59838,7],[59838,8,59838,9],[59838,10,59838,11],[59838,12,59838,13],[59838,14,59838,15],[59776,2,59776,3],[59776,4,59776,5],[59448,6,59448,7],[59448,8,59448,9],[59366,10,59366,11],[59366,12,59366,13],[59366,6,59366,7],[59366,8,59366,9],[59448,10,59448,11],[59448,12,59448,13],[59448,14,59448,15],[59510,2,59510,3],[59510,4,59510,5],[59510,6,59510,7],[59510,8,59510,9],[59510,10,59510,11],[59510,12,59510,13],[59510,14,59510,15],[59448,2,59448,3],[59448,4,59448,5],[59530,14,59530,15],[59592,2,59592,3],[59592,4,59592,5],[59592,6,59592,7],[59592,8,59592,9],[59592,10,59592,11],[59592,12,59592,13],[59592,14,59592,15],[59530,2,59530,3],[59530,4,59530,5],[59612,6,59612,7],[59612,8,59612,9],[59530,10,59530,11],[59530,12,59530,13],[59530,6,59530,7],[59530,8,59530,9],[59612,10,59612,11],[59612,12,59612,13],[59612,14,59612,15],[59202,14,59202,15],[59264,2,59264,3],[59264,4,59264,5],[59264,6,59264,7],[59264,8,59264,9],[59264,10,59264,11],[59264,12,59264,13],[59264,14,59264,15],[59202,2,59202,3],[59202,4,59202,5],[59284,6,59284,7],[59284,8,59284,9],[59202,10,59202,11],[59202,12,59202,13],[59202,6,59202,7],[59202,8,59202,9],[59284,10,59284,11],[59284,12,59284,13],[59284,14,59284,15],[59346,2,59346,3],[59346,4,59346,5],[59346,6,59346,7],[59346,8,59346,9]],"merged_total":58593,"flags":["merged_cut"]}
[null,"B01001. GENDER BY AGE"]
[null,"Universe:  TOTAL POPULATION"]
[null,"Data Set: 2018-2022 American Community Survey 5-Year Estimates"]
[]
[null,null,"Barrington",null,"Dover",null,"Durham",null,"Farmington",null,"Lee",null,"Madbury",null,"Middleton",null,"Milton",null,"New Durham",null,"Rochester",null,"Rollinsford",null,"Somersworth",null,"Strafford"]
[null,null,"Estimate","Margin Of Error","Estimate","Margin Of Error","Estimate","Margin Of Error","Estimate","Margin Of Error","Estimate","Margin Of Error","Estimate","Margin Of Error","Estimate","Margin Of Error","Estimate","Margin Of Error","Estimate","Margin Of Error","Estimate","Margin Of Error","Estimate","Margin Of Error","Estimate","Margin Of Error","Estimate","Margin Of Error"]
[null,"Total:",9339,19,32849,21,15073,41,6762,17,4547,15,2213,277,1537,276,4509,17,2711,17,32573,26,2597,24,11994,26,4261,26]
[null,"Male:",4764,337,16316,474,7271,428,3113,269,2212,220,1027,131,817,164,2364,215,1380,91,16451,510,1018,134,6089,419,2012,127]
[null,"Under 5 years",237,104,853,174,109,66,210,136,89,68,52,33,40,36,71,51,123,108,762,217,40,32,291,127,124,54]
[null,"5 to 9 years",494,202,568,133,271,151,146,104,190,104,60,39,19,13,206,98,74,42,1060,215,36,28,147,108,111,61]
[null,"10 to 14 years",316,123,753,285,203,95,163,97,77,87,76,45,72,44,163,71,9,10,1110,244,33,23,479,169,45,31]
[null,"15 to 17 years",141,83,443,160,182,97,57,89,113,107,39,24,49,31,133,91,76,39,830,192,0,12,248,145,73,48]
[null,"18 and 19 years",0,17,124,92,2111,286,19,34,0,12,13,11,21,27,43,45,31,28,298,147,8,13,74,80,50,45]
[null,"20 years",56,67,98,68,1058,257,0,17,0,12,7,9,6,7,84,82,19,18,212,182,15,17,94,96,59,56]
[null,"21 years",78,95,248,137,737,224,55,71,0,12,29,30,19,15,1,2,0,12,76,86,7,10,3,9,16,25]
[null,"22 to 24 years",270,211,1197,408,558,229,111,99,59,60,44,31,29,26,97,79,32,25,787,241,73,59,258,147,16,26]
[null,"25 to 29 years",365,174,1715,329,175,91,278,149,14,23,33,28,39,28,156,95,110,99,975,213,112,59,709,243,118,68]
[null,"30 to 34 years",243,136,1593,260,185,105,279,121,97,67,80,79,43,21,148,94,101,56,1091,211,89,43,588,218,97,57]
[null,"35 to 39 years",373,172,1303,298,140,46,243,131,249,136,109,72,62,29,143,65,90,70,919,209,73,38,586,180,127,55]
[null,"40 to 44 years",278,102,1110,249,228,80,103,102,111,71,48,32,46,43,100,66,72,36,1035,207,62,35,199,119,65,53]
[null,"45 to 49 years",149,84,819,184,167,58,112,76,56,49,115,42,39,21,131,71,117,60,1078,210,37,20,523,236,113,60]
[null,"50 to 54 years",534,181,1032,251,192,86,205,95,285,124,63,31,39,22,171,71,123,58,1125,251,87,31,204,115,237,117]
[null,"55 to 59 years",262,129,1061,299,192,63,444,207,100,70,102,49,95,39,222,97,114,55,1165,235,85,32,401,184,97,51]
[null,"60 and 61 years",176,99,421,162,79,47,123,83,26,40,10,10,14,13,14,14,50,34,493,169,49,32,336,195,137,65]
[null,"62 to 64 years",228,108,541,191,84,40,118,70,243,117,41,25,62,29,174,99,44,29,777,209,48,28,119,71,186,75]
[null,"65 and 66 years",126,91,188,128,54,28,128,97,59,48,18,12,14,12,0,12,39,30,436,175,9,10,76,60,48,38]
[null,"67 to 69 years",236,127,644,273,98,53,106,62,82,88,16,11,12,9,106,56,53,27,543,181,20,21,177,138,138,59]
[null,"70 to 74 years",27,31,710,164,181,60,38,39,198,111,30,18,47,25,119,55,68,33,751,212,66,35,185,77,45,29]
[null,"75 to 79 years",93,53,435,159,57,31,39,36,99,112,26,17,22,15,26,22,30,26,315,135,45,32,238,105,58,28]
[null,"80 to 84 years",30,37,246,100,121,46,121,67,26,30,5,6,13,15,45,44,5,7,156,70,12,16,134,90,21,19]
[null,"85 years and over",52,49,214,112,89,44,15,25,39,34,11,11,15,12,11,17,0,12,457,179,12,11,20,30,31,23]
[null,"Female:",4575,336,16533,479,7802,424,3649,270,2335,218,1186,213,720,143,2145,215,1331,91,16122,514,1579,134,5905,420,2249,130]
[null,"Under 5 years",263,159,897,247,109,51,269,145,116,85,75,48,32,21,111,103,61,69,648,164,99,66,168,110,55,39]
[null,"5 to 9 years",206,121,764,196,202,73,47,58,155,92,42,23,35,28,155,96,30,21,677,174,72,42,95,92,146,63]
[null,"10 to 14 years",366,123,686,221,237,129,321,173,191,161,136,76,34,31,55,43,62,42,955,268,62,41,485,263,153,82]
[null,"15 to 17 years",112,84,635,204,150,69,121,76,97,99,104,79,14,12,62,48,61,49,330,131,46,30,237,130,67,43]
[null,"18 and 19 years",42,46,117,88,2602,253,20,31,27,27,16,23,3,5,7,9,0,12,241,137,3,4,131,119,28,35]
[null,"20 years",101,77,244,165,911,190,8,21,0,12,11,18,33,30,12,20,9,12,317,228,0,12,2,3,6,10]
[null,"21 years",76,76,192,141,912,306,102,137,54,88,0,12,0,12,0,12,61,62,89,82,0,12,45,76,37,41]
[null,"22 to 24 years",203,130,1321,398,371,130,256,275,0,12,109,53,19,13,132,110,78,66,767,316,210,157,274,176,40,45]
[null,"25 to 29 years",212,120,1449,262,201,106,311,159,100,71,74,49,47,40,62,42,59,35,802,184,160,65,646,245,79,42]
[null,"30 to 34 years",295,155,1393,298,137,57,280,127,38,38,28,24,40,18,273,109,31,17,908,215,104,47,493,180,115,48]
[null,"35 to 39 years",395,140,1154,272,204,76,10,22,197,99,119,81,91,35,37,35,163,102,1067,231,82,45,319,124,107,47]
[null,"40 to 44 years",288,130,765,174,273,115,143,96,176,79,51,25,37,19,145,67,37,20,1140,243,29,26,359,143,28,21]
[null,"45 to 49 years",232,116,980,225,114,38,222,90,220,130,82,40,41,24,170,67,157,55,911,192,96,65,428,130,205,108]
[null,"50 to 54 years",249,114,1023,202,236,100,351,124,138,80,66,40,37,22,157,78,71,34,1116,197,138,56,494,271,209,67]
[null,"55 to 59 years",584,157,1127,243,194,70,332,249,182,118,90,35,62,25,183,93,92,38,1728,407,96,43,379,156,170,64]
[null,"60 and 61 years",70,61,280,128,46,33,153,87,60,56,5,6,30,16,147,94,40,23,337,104,44,31,201,129,106,54]
[null,"62 to 64 years",127,78,515,185,39,25,201,109,37,44,59,47,30,16,59,39,41,25,716,198,39,26,231,111,141,80]
[null,"65 and 66 years",129,81,321,118,83,49,83,61,87,60,15,13,21,16,35,30,71,32,568,221,26,17,150,212,58,32]
[null,"67 to 69 years",99,66,588,160,163,72,107,75,100,64,20,14,20,13,106,50,52,36,604,235,5,7,135,90,260,133]
[null,"70 to 74 years",132,102,603,134,177,65,43,41,247,165,24,16,31,22,101,59,104,47,776,145,77,40,368,137,72,35]
[null,"75 to 79 years",91,63,554,213,202,103,139,111,56,53,33,21,18,12,64,42,26,19,351,127,42,28,157,85,38,33]
[null,"80 to 84 years",134,76,417,133,68,33,79,68,37,43,6,7,19,13,48,54,25,20,627,252,134,86,20,35,56,50]
[null,"85 years and over",169,120,508,156,171,71,51,46,20,31,21,28,26,20,24,26,0,12,447,123,15,13,88,61,73,47]
[]
[]
[]
[]
[]
[]
[]
[]
[]
[]
[]
[]
[]
[null,"Calculated B01001. GENDER BY AGE"]
[null,"Universe:  TOTAL POPULATION"]
[null,"Data Set: 2018-2022 American Community Survey 5-Year Estimates"]
[]
[null,null,"Barrington",null,"Dover",null,"Durham",null,"Farmington",null,"Lee",null,"Madbury",null,"Middleton",null,"Milton",null,"New Durham",null,"Rochester",null,"Rollinsford",null,"Somersworth",null,"Strafford"]
[null,null,"Estimate","Margin Of Error","Estimate","Margin Of Error","Estimate","Margin Of Error","Estimate","Margin Of Error","Estimate","Margin Of Error","Estimate","Margin Of Error","Estimate","Margin Of Error","Estimate","Margin Of Error","Estimate","Margin Of Error","Estimate","Margin Of Error","Estimate","Margin Of Error","Estimate","Margin Of Error","Estimate","Margin Of Error"]
[null,"Total",{"$f":"C7","v":9339},19,32849,21,15073,41,6762,17,4547,15,2213,277,1537,276,4509,17,2711,17,32573,26,2597,24,{"$f":"Y7","v":11994},{"$f":"Z7","v":26},{"$f":"AA7","v":4261},{"$f":"AB7","v":26}]
[null,"Under 15 yrs.",{"$f":"C9+C10+C11+C33+C34+C35","v":1882},{"$f":"SQRT((D9^2)+(D10^2)+(D11^2)+(D33^2)+(D34^2)+(D35^2))","v":348.99856733230297},{"$f":"E9+E10+E11+E33+E34+E35","v":4521},{"$f":"SQRT((F9^2)+(F10^2)+(F11^2)+(F33^2)+(F34^2)+(F35^2))","v":526.74092303522423},{"$f":"G9+G10+G11+G33+G34+G35","v":1131},{"$f":"SQRT((H9^2)+(H10^2)+(H11^2)+(H33^2)+(H34^2)+(H35^2))","v":246.48123660838769},{"$f":"I9+I10+I11+I33+I34+I35","v":1156},{"$f":"SQRT((J9^2)+(J10^2)+(J11^2)+(J33^2)+(J34^2)+(J35^2))","v":305.02294995622873},{"$f":"K9+K10+K11+K33+K34+K35","v":818},{"$f":"SQRT((L9^2)+(L10^2)+(L11^2)+(L33^2)+(L34^2)+(L35^2))","v":254.20267504493339},{"$f":"M9+M10+M11+M33+M34+M35","v":441},{"$f":"SQRT((N9^2)+(N10^2)+(N11^2)+(N33^2)+(N34^2)+(N35^2))","v":115.08257904652642},{"$f":"O9+O10+O11+O33+O34+O35","v":232},{"$f":"SQRT((P9^2)+(P10^2)+(P11^2)+(P33^2)+(P34^2)+(P35^2))","v":74.746237363495425},{"$f":"Q9+Q10+Q11+Q33+Q34+Q35","v":761},{"$f":"SQRT((R9^2)+(R10^2)+(R11^2)+(R33^2)+(R34^2)+(R35^2))","v":197.2815247305231},{"$f":"S9+S10+S11+S33+S34+S35","v":359},{"$f":"SQRT((T9^2)+(T10^2)+(T11^2)+(T33^2)+(T34^2)+(T35^2))","v":143.15725619052637},{"$f":"U9+U10+U11+U33+U34+U35","v":5212},{"$f":"SQRT((V9^2)+(V10^2)+(V11^2)+(V33^2)+(V34^2)+(V35^2))","v":530.89170270404486},{"$f":"W9+W10+W11+W33+W34+W35","v":342},{"$f":"SQRT((X9^2)+(X10^2)+(X11^2)+(X33^2)+(X34^2)+(X35^2))","v":100.68763578513501},{"$f":"Y9+Y10+Y11+Y33+Y34+Y35","v":1665},{"$f":"SQRT((Z9^2)+(Z10^2)+(Z11^2)+(Z33^2)+(Z34^2)+(Z35^2))","v":382.21329123932884},{"$f":"AA9+AA10+AA11+AA33+AA34+AA35","v":634},{"$f":"SQRT((AB9^2)+(AB10^2)+(AB11^2)+(AB33^2)+(AB34^2)+(AB35^2))","v":140.75510647930327}]
[null,"15 to 24 yrs.",{"$f":"C12+C13+C14+C15+C16+C36+C37+C38+C39+C40","v":1079},{"$f":"SQRT((D12^2)+(D13^2)+(D14^2)+(D15^2)+(D16^2)+(D36^2)+(D37^2)+(D38^2)+(D39^2)+(D40^2))","v":320.92055091564328},{"$f":"E12+E13+E14+E15+E16+E36+E37+E38+E39+E40","v":4619},{"$f":"SQRT((F12^2)+(F13^2)+(F14^2)+(F15^2)+(F16^2)+(F36^2)+(F37^2)+(F38^2)+(F39^2)+(F40^2))","v":691.94725232491533},{"$f":"G12+G13+G14+G15+G16+G36+G37+G38+G39+G40","v":9592},{"$f":"SQRT((H12^2)+(H13^2)+(H14^2)+(H15^2)+(H16^2)+(H36^2)+(H37^2)+(H38^2)+(H39^2)+(H40^2))","v":689.40336523692713},{"$f":"I12+I13+I14+I15+I16+I36+I37+I38+I39+I40","v":749},{"$f":"SQRT((J12^2)+(J13^2)+(J14^2)+(J15^2)+(J16^2)+(J36^2)+(J37^2)+(J38^2)+(J39^2)+(J40^2))","v":354.65476170495725},{"$f":"K12+K13+K14+K15+K16+K36+K37+K38+K39+K40","v":350},{"$f":"SQRT((L12^2)+(L13^2)+(L14^2)+(L15^2)+(L16^2)+(L36^2)+(L37^2)+(L38^2)+(L39^2)+(L40^2))","v":184.50745242401456},{"$f":"M12+M13+M14+M15+M16+M36+M37+M38+M39+M40","v":372},{"$f":"SQRT((N12^2)+(N13^2)+(N14^2)+(N15^2)+(N16^2)+(N36^2)+(N37^2)+(N38^2)+(N39^2)+(N40^2))","v":112.63214461245067},{"$f":"O12+O13+O14+O15+O16+O36+O37+O38+O39+O40","v":193},{"$f":"SQRT((P12^2)+(P13^2)+(P14^2)+(P15^2)+(P16^2)+(P36^2)+(P37^2)+(P38^2)+(P39^2)+(P40^2))","v":63.419239982831705},{"$f":"Q12+Q13+Q14+Q15+Q16+Q36+Q37+Q38+Q39+Q40","v":571},{"$f":"SQRT((R12^2)+(R13^2)+(R14^2)+(R15^2)+(R16^2)+(R36^2)+(R37^2)+(R38^2)+(R39^2)+(R40^2))","v":195.71407716360108},{"$f":"S12+S13+S14+S15+S16+S36+S37+S38+S39+S40","v":367},{"$f":"SQRT((T12^2)+(T13^2)+(T14^2)+(T15^2)+(T16^2)+(T36^2)+(T37^2)+(T38^2)+(T39^2)+(T40^2))","v":119.52823934116992},{"$f":"U12+U13+U14+U15+U16+U36+U37+U38+U39+U40","v":3947},{"$f":"SQRT((V12^2)+(V13^2)+(V14^2)+(V15^2)+(V16^2)+(V36^2)+(V37^2)+(V38^2)+(V39^2)+(V40^2))","v":592.9316992706664},{"$f":"W12+W13+W14+W15+W16+W36+W37+W38+W39+W40","v":362},{"$f":"SQRT((X12^2)+(X13^2)+(X14^2)+(X15^2)+(X16^2)+(X36^2)+(X37^2)+(X38^2)+(X39^2)+(X40^2))","v":173.30897264711945},{"$f":"Y12+Y13+Y14+Y15+Y16+Y36+Y37+Y38+Y39+Y40","v":1366},{"$f":"SQRT((Z12^2)+(Z13^2)+(Z14^2)+(Z15^2)+(Z16^2)+(Z36^2)+(Z37^2)+(Z38^2)+(Z39^2)+(Z40^2))","v":355.1802359366298},{"$f":"AA12+AA13+AA14+AA15+AA16+AA36+AA37+AA38+AA39+AA40","v":392},{"$f":"SQRT((AB12^2)+(AB13^2)+(AB14^2)+(AB15^2)+(AB16^2)+(AB36^2)+(AB37^2)+(AB38^2)+(AB39^2)+(AB40^2))","v":125.08397179495061}]
[null,"25 to 34 yrs.",{"$f":"C17+C18+C41+C42","v":1115},{"$f":"SQRT((D17^2)+(D18^2)+(D41^2)+(D42^2))","v":295.29138152001661},{"$f":"E17+E18+E41+E42","v":6150},{"$f":"SQRT((F17^2)+(F18^2)+(F41^2)+(F42^2))","v":577.31187412004613},{"$f":"G17+G18+G41+G42","v":698},{"$f":"SQRT((H17^2)+(H18^2)+(H41^2)+(H42^2))","v":183.82328470571949},{"$f":"I17+I18+I41+I42","v":1148},{"$f":"SQRT((J17^2)+(J18^2)+(J41^2)+(J42^2))","v":279.73558944117212},{"$f":"K17+K18+K41+K42","v":249},{"$f":"SQRT((L17^2)+(L18^2)+(L41^2)+(L42^2))","v":107.25203960764568},{"$f":"M17+M18+M41+M42","v":215},{"$f":"SQRT((N17^2)+(N18^2)+(N41^2)+(N42^2))","v":100.00999950005},{"$f":"O17+O18+O41+O42","v":169},{"$f":"SQRT((P17^2)+(P18^2)+(P41^2)+(P42^2))","v":56.115951386392801},{"$f":"Q17+Q18+Q41+Q42","v":639},{"$f":"SQRT((R17^2)+(R18^2)+(R41^2)+(R42^2))","v":177.49929577325088},{"$f":"S17+S18+S41+S42","v":301},{"$f":"SQRT((T17^2)+(T18^2)+(T41^2)+(T42^2))","v":120.21231218140677},{"$f":"U17+U18+U41+U42","v":3776},{"$f":"SQRT((V17^2)+(V18^2)+(V41^2)+(V42^2))","v":412.27539339621035},{"$f":"W17+W18+W41+W42","v":465},{"$f":"SQRT((X17^2)+(X18^2)+(X41^2)+(X42^2))","v":108.46197490364999},{"$f":"Y17+Y18+Y41+Y42","v":2436},{"$f":"SQRT((Z17^2)+(Z18^2)+(Z41^2)+(Z42^2))","v":446.09191877907853},{"$f":"AA17+AA18+AA41+AA42","v":409},{"$f":"SQRT((AB17^2)+(AB18^2)+(AB41^2)+(AB42^2))","v":109.27488274987991}]
[null,"35 to 44 yrs.",{"$f":"C19+C20+C43+C44","v":1334},{"$f":"SQRT((D19^2)+(D20^2)+(D43^2)+(D44^2))","v":276.56463982223033},{"$f":"E19+E20+E43+E44","v":4332},{"$f":"SQRT((F19^2)+(F20^2)+(F43^2)+(F44^2))","v":505.03960240757357},{"$f":"G19+G20+G43+G44","v":845},{"$f":"SQRT((H19^2)+(H20^2)+(H43^2)+(H44^2))","v":165.88248852727043},{"$f":"I19+I20+I43+I44","v":499},{"$f":"SQRT((J19^2)+(J20^2)+(J43^2)+(J44^2))","v":193.04144632694815},{"$f":"K19+K20+K43+K44","v":733},{"$f":"SQRT((L19^2)+(L20^2)+(L43^2)+(L44^2))","v":198.94471593887585},{"$f":"M19+M20+M43+M44","v":327},{"$f":"SQRT((N19^2)+(N20^2)+(N43^2)+(N44^2))","v":115.73245007343446},{"$f":"O19+O20+O43+O44","v":236},{"$f":"SQRT((P19^2)+(P20^2)+(P43^2)+(P44^2))","v":65.391130897087265},{"$f":"Q19+Q20+Q43+Q44","v":425},{"$f":"SQRT((R19^2)+(R20^2)+(R43^2)+(R44^2))","v":119.56169955299231},{"$f":"S19+S20+S43+S44","v":362},{"$f":"SQRT((T19^2)+(T20^2)+(T43^2)+(T44^2))","v":130.38404810405297},{"$f":"U19+U20+U43+U44","v":4161},{"$f":"SQRT((V19^2)+(V20^2)+(V43^2)+(V44^2))","v":446.02690501807177},{"$f":"W19+W20+W43+W44","v":246},{"$f":"SQRT((X19^2)+(X20^2)+(X43^2)+(X44^2))","v":73.280283842245041},{"$f":"Y19+Y20+Y43+Y44","v":1463},{"$f":"SQRT((Z19^2)+(Z20^2)+(Z43^2)+(Z44^2))","v":287.02961519675978},{"$f":"AA19+AA20+AA43+AA44","v":327},{"$f":"SQRT((AB19^2)+(AB20^2)+(AB43^2)+(AB44^2))","v":92.108631517355633}]
[null,"45 to 54 yrs.",{"$f":"C21+C22+C45+C46","v":1164},{"$f":"SQRT((D21^2)+(D22^2)+(D45^2)+(D46^2))","v":257.42765974152815},{"$f":"E21+E22+E45+E46","v":3854},{"$f":"SQRT((F21^2)+(F22^2)+(F45^2)+(F46^2))","v":433.91934734464189},{"$f":"G21+G22+G45+G46","v":709},{"$f":"SQRT((H21^2)+(H22^2)+(H45^2)+(H46^2))","v":149.01006677402705},{"$f":"I21+I22+I45+I46","v":890},{"$f":"SQRT((J21^2)+(J22^2)+(J45^2)+(J46^2))","v":195.64508682816444},{"$f":"K21+K22+K45+K46","v":699},{"$f":"SQRT((L21^2)+(L22^2)+(L45^2)+(L46^2))","v":202.67461607216629},{"$f":"M21+M22+M45+M46","v":326},{"$f":"SQRT((N21^2)+(N22^2)+(N45^2)+(N46^2))","v":76.974021591703263},{"$f":"O21+O22+O45+O46","v":156},{"$f":"SQRT((P21^2)+(P22^2)+(P45^2)+(P46^2))","v":44.553338819890925},{"$f":"Q21+Q22+Q45+Q46","v":629},{"$f":"SQRT((R21^2)+(R22^2)+(R45^2)+(R46^2))","v":143.71847480404182},{"$f":"S21+S22+S45+S46","v":468},{"$f":"SQRT((T21^2)+(T22^2)+(T45^2)+(T46^2))","v":105.56988206870366},{"$f":"U21+U22+U45+U46","v":4230},{"$f":"SQRT((V21^2)+(V22^2)+(V45^2)+(V46^2))","v":427.52075972986387},{"$f":"W21+W22+W45+W46","v":358},{"$f":"SQRT((X21^2)+(X22^2)+(X45^2)+(X46^2))","v":93.391648448884339},{"$f":"Y21+Y22+Y45+Y46","v":1649},{"$f":"SQRT((Z21^2)+(Z22^2)+(Z45^2)+(Z46^2))","v":399.07643378180074},{"$f":"AA21+AA22+AA45+AA46","v":764},{"$f":"SQRT((AB21^2)+(AB22^2)+(AB45^2)+(AB46^2))","v":182.87153961182696}]
[null,"55 to 64 yrs.",{"$f":"C23+C24+C25+C47+C48+C49","v":1447},{"$f":"SQRT((D23^2)+(D24^2)+(D25^2)+(D47^2)+(D48^2)+(D49^2))","v":269.3696345173301},{"$f":"E23+E24+E25+E47+E48+E49","v":3945},{"$f":"SQRT((F23^2)+(F24^2)+(F25^2)+(F47^2)+(F48^2)+(F49^2))","v":511.6483167176454},{"$f":"G23+G24+G25+G47+G48+G49","v":634},{"$f":"SQRT((H23^2)+(H24^2)+(H25^2)+(H47^2)+(H48^2)+(H49^2))","v":119.96666203575059},{"$f":"I23+I24+I25+I47+I48+I49","v":1371},{"$f":"SQRT((J23^2)+(J24^2)+(J25^2)+(J47^2)+(J48^2)+(J49^2))","v":368.90242612376517},{"$f":"K23+K24+K25+K47+K48+K49","v":648},{"$f":"SQRT((L23^2)+(L24^2)+(L25^2)+(L47^2)+(L48^2)+(L49^2))","v":197.9520143873257},{"$f":"M23+M24+M25+M47+M48+M49","v":307},{"$f":"SQRT((N23^2)+(N24^2)+(N25^2)+(N47^2)+(N48^2)+(N49^2))","v":81.21576201698781},{"$f":"O23+O24+O25+O47+O48+O49","v":293},{"$f":"SQRT((P23^2)+(P24^2)+(P25^2)+(P47^2)+(P48^2)+(P49^2))","v":60.56401571890688},{"$f":"Q23+Q24+Q25+Q47+Q48+Q49","v":799},{"$f":"SQRT((R23^2)+(R24^2)+(R25^2)+(R47^2)+(R48^2)+(R49^2))","v":195.98979565273291},{"$f":"S23+S24+S25+S47+S48+S49","v":381},{"$f":"SQRT((T23^2)+(T24^2)+(T25^2)+(T47^2)+(T48^2)+(T49^2))","v":87.292611371180783},{"$f":"U23+U24+U25+U47+U48+U49","v":5216},{"$f":"SQRT((V23^2)+(V24^2)+(V25^2)+(V47^2)+(V48^2)+(V49^2))","v":585.77811498894357},{"$f":"W23+W24+W25+W47+W48+W49","v":361},{"$f":"SQRT((X23^2)+(X24^2)+(X25^2)+(X47^2)+(X48^2)+(X49^2))","v":79.485847796950623},{"$f":"Y23+Y24+Y25+Y47+Y48+Y49","v":1667},{"$f":"SQRT((Z23^2)+(Z24^2)+(Z25^2)+(Z47^2)+(Z48^2)+(Z49^2))","v":360.86008368895557},{"$f":"AA23+AA24+AA25+AA47+AA48+AA49","v":837},{"$f":"SQRT((AB23^2)+(AB24^2)+(AB25^2)+(AB47^2)+(AB48^2)+(AB49^2))","v":160.81977490346142}]
[null,"65 to 74 yrs.",{"$f":"C26+C27+C28+C50+C51+C52","v":749},{"$f":"SQRT((D26^2)+(D27^2)+(D28^2)+(D50^2)+(D51^2)+(D52^2))","v":216.08331726442927},{"$f":"E26+E27+E28+E50+E51+E52","v":3054},{"$f":"SQRT((F26^2)+(F27^2)+(F28^2)+(F50^2)+(F51^2)+(F52^2))","v":418.67529184321353},{"$f":"G26+G27+G28+G50+G51+G52","v":756},{"$f":"SQRT((H26^2)+(H27^2)+(H28^2)+(H50^2)+(H51^2)+(H52^2))","v":137.85136923512948},{"$f":"I26+I27+I28+I50+I51+I52","v":505},{"$f":"SQRT((J26^2)+(J27^2)+(J28^2)+(J50^2)+(J51^2)+(J52^2))","v":160.62689687595909},{"$f":"K26+K27+K28+K50+K51+K52","v":773},{"$f":"SQRT((L26^2)+(L27^2)+(L28^2)+(L50^2)+(L51^2)+(L52^2))","v":239.35329536064467},{"$f":"M26+M27+M28+M50+M51+M52","v":123},{"$f":"SQRT((N26^2)+(N27^2)+(N28^2)+(N50^2)+(N51^2)+(N52^2))","v":34.785054261852174},{"$f":"O26+O27+O28+O50+O51+O52","v":145},{"$f":"SQRT((P26^2)+(P27^2)+(P28^2)+(P50^2)+(P51^2)+(P52^2))","v":41.940433951021539},{"$f":"Q26+Q27+Q28+Q50+Q51+Q52","v":467},{"$f":"SQRT((R26^2)+(R27^2)+(R28^2)+(R50^2)+(R51^2)+(R52^2))","v":114.8303095876694},{"$f":"S26+S27+S28+S50+S51+S52","v":387},{"$f":"SQRT((T26^2)+(T27^2)+(T28^2)+(T50^2)+(T51^2)+(T52^2))","v":85.129313400261836},{"$f":"U26+U27+U28+U50+U51+U52","v":3678},{"$f":"SQRT((V26^2)+(V27^2)+(V28^2)+(V50^2)+(V51^2)+(V52^2))","v":483.13662663888357},{"$f":"W26+W27+W28+W50+W51+W52","v":203},{"$f":"SQRT((X26^2)+(X27^2)+(X28^2)+(X50^2)+(X51^2)+(X52^2))","v":60.860496218811754},{"$f":"Y26+Y27+Y28+Y50+Y51+Y52","v":1091},{"$f":"SQRT((Z26^2)+(Z27^2)+(Z28^2)+(Z50^2)+(Z51^2)+(Z52^2))","v":316.83749778080244},{"$f":"AA26+AA27+AA28+AA50+AA51+AA52","v":621},{"$f":"SQRT((AB26^2)+(AB27^2)+(AB28^2)+(AB50^2)+(AB51^2)+(AB52^2))","v":160.32467059064865}]
[null,"Over 74 yrs. ",{"$f":"C29+C30+C31+C53+C54+C55","v":569},{"$f":"SQRT((D29^2)+(D30^2)+(D31^2)+(D53^2)+(D54^2)+(D55^2))","v":175.28262891684389},{"$f":"E29+E30+E31+E53+E54+E55","v":2374},{"$f":"SQRT((F29^2)+(F30^2)+(F31^2)+(F53^2)+(F54^2)+(F55^2))","v":367.72136190327586},{"$f":"G29+G30+G31+G53+G54+G55","v":708},{"$f":"SQRT((H29^2)+(H30^2)+(H31^2)+(H53^2)+(H54^2)+(H55^2))","v":147.48559251669298},{"$f":"I29+I30+I31+I53+I54+I55","v":444},{"$f":"SQRT((J29^2)+(J30^2)+(J31^2)+(J53^2)+(J54^2)+(J55^2))","v":159.59636587341205},{"$f":"K29+K30+K31+K53+K54+K55","v":277},{"$f":"SQRT((L29^2)+(L30^2)+(L31^2)+(L53^2)+(L54^2)+(L55^2))","v":142.19353009191383},{"$f":"M29+M30+M31+M53+M54+M55","v":102},{"$f":"SQRT((N29^2)+(N30^2)+(N31^2)+(N53^2)+(N54^2)+(N55^2))","v":41.47288270665544},{"$f":"O29+O30+O31+O53+O54+O55","v":113},{"$f":"SQRT((P29^2)+(P30^2)+(P31^2)+(P53^2)+(P54^2)+(P55^2))","v":36.152454965050438},{"$f":"Q29+Q30+Q31+Q53+Q54+Q55","v":218},{"$f":"SQRT((R29^2)+(R30^2)+(R31^2)+(R53^2)+(R54^2)+(R55^2))","v":89.805345052507874},{"$f":"S29+S30+S31+S53+S54+S55","v":86},{"$f":"SQRT((T29^2)+(T30^2)+(T31^2)+(T53^2)+(T54^2)+(T55^2))","v":42.118879377305376},{"$f":"U29+U30+U31+U53+U54+U55","v":2353},{"$f":"SQRT((V29^2)+(V30^2)+(V31^2)+(V53^2)+(V54^2)+(V55^2))","v":387.20537186356285},{"$f":"W29+W30+W31+W53+W54+W55","v":260},{"$f":"SQRT((X29^2)+(X30^2)+(X31^2)+(X53^2)+(X54^2)+(X55^2))","v":98.742088290657492},{"$f":"Y29+Y30+Y31+Y53+Y54+Y55","v":657},{"$f":"SQRT((Z29^2)+(Z30^2)+(Z31^2)+(Z53^2)+(Z54^2)+(Z55^2))","v":179.43243853885505},{"$f":"AA29+AA30+AA31+AA53+AA54+AA55","v":277},{"$f":"SQRT((AB29^2)+(AB30^2)+(AB31^2)+(AB53^2)+(AB54^2)+(AB55^2))","v":86.440731139897238}]
[]
[]
[]
[]
[]
[]
[]
[]
[]
[]
[]
[]
[]
[]
[]
[]
[]
[]
[]
[]
[]
[]
[]
[]
[]
[]
[]
[]
[]
[]
[]
[]
[]
[]
[]
[]
[]
[]
[]
[]
[]
[]
[]
[]
[]
[]
[]
[]
[]
[]
[]
[]
[]
[]
[]
[]
[]
[]
[]
[]
[]
[]
[]
[]
[]
[]
[]
[]
[]
[]
[]
[]
[]
[]
[]
[]
[null,"Calculated B01001. GENDER BY AGE"]
[null,"Universe:  TOTAL POPULATION"]
[null,"Data Set: 2013-2017 American Community Survey 5-Year Estimates"]
[]
[null,null,"Barrington",null,"Dover",null,"Durham",null,"Farmington",null,"Lee",null,"Madbury",null,"Middleton",null,"Milton",null,"New Durham",null,"Rochester",null,"Rollinsford",null,"Somersworth",null,"Strafford"]
[null,null,"Estimate","Margin Of Error","Estimate","Margin Of Error","Estimate","Margin Of Error","Estimate","Margin Of Error","Estimate","Margin Of Error","Estimate","Margin Of Error","Estimate","Margin Of Error","Estimate","Margin Of Error","Estimate","Margin Of Error","Estimate","Margin Of Error","Estimate","Margin Of Error","Estimate","Margin Of Error","Estimate","Margin Of Error",null,null,null,null,null,null,null,null,null,null,null,null,null,null,"Estimate","Margin Of Error","Estimate","Margin Of Error","Estimate","Margin Of Error","Estimate","Margin Of Error","Estimate","Margin Of Error","Estimate","Margin Of Error","Estimate","Margin Of Error","Estimate","Margin Of Error","Estimate","Margin Of Error","Estimate","Margin Of Error","Estimate","Margin Of Error","Estimate","Margin Of Error","Estimate","Margin Of Error","Estimate","Margin Of Error","Estimate","Margin Of Error","Estimate","Margin Of Error","Estimate","Margin Of Error"]
[null,"Total",8841,20,30901,45,16148,27,6834,16,4375,18,1906,157,1687,154,4602,18,2663,22,30212,21,2529,20,11797,21,4057,15,null,null,null,null,null,null,null,null,null,null,null,null,null,null,1836,240,691,109,9401,30,4523,25,4542,22,4077,20,4471,16,7665,30,20557,24,10181,17,5177,23,29423,51,5822,18,8494,17,798,129,7214,17,13097,27]
[null,"Under 15 yrs.",1637,391.89156663546612,5034,483.58866818816176,1188,208.70313845268356,1189,260.53406687034231,741,247.41058991077969,485,84.994117443503114,335,68.534662762721752,800,157.14006491025768,401,82.018290643002302,4974,456.55996320308248,447,85.328775919967356,2146,342.03800958373034,759,168.62680688431482,null,null,null,null,null,null,null,null,null,null,null,null,null,null,494,81.301906496711382,57,31.496031496047245,1693,285.04561038542585,828,148.2700239428051,806,181.48829163337231,872,182.65815065307106,1065,209.01913787976449,1654,321.3627234139019,3103,379.76045081077098,1825,268.4809117982133,843,191.59331929897763,5616,474.16558289272746,1367,216.84787294322257,1384,277.45089655648979,126,35.735136770411273,1616,233.79905902291395,2804,324.07097987940853]
[null,"15 to 24 yrs.",879,286.59378918601845,4224,533.16320203104794,10572,694.43646217634625,1033,328.73241397829941,610,199.79239224755281,213,56.222771187482387,171,45.639894828976104,540,144,333,81.590440616533016,3770,478.41404661652649,340,100.38426171467319,1497,315.55506650979316,471,126.64122551523259,null,null,null,null,null,null,null,null,null,null,null,null,null,null,223,172.78888853164142,69,199.83493188129046,1367,253.25678668102856,702,204.87313147409057,470,169.29264603047588,463,167.10176540060851,389,184.03260580668851,1007,235.0957251844448,2532,428.31530441953623,1325,247.69537742961614,554,266.4169664266899,3727,438.85874720688889,853,186.23372412106247,599,237.49526311065659,45,255.62472493872733,683,157.89870170460554,1542,275.31436577120343]
[null,"25 to 34 yrs.",705,276.37112729082247,5608,423.81363828928392,498,111.18902823570319,782,213.78493866500511,302,191.79676743887003,133,41.797129088012731,191,50.029991005395956,496,118.12281744015421,244,64.637450444769243,4106,404.13116682582154,236,55.344376408086845,1940,298.95986352686208,362,114.56002793295748,null,null,null,null,null,null,null,null,null,null,null,null,null,null,107,41.581245772583578,49,22.693611435820433,1640,258.80108191427638,466,115.90944741478151,541,149.70971912337555,470,143.90621946253748,590,148.32059870429327,576,188.09572031282372,3848,398.70415096911142,987,179.89163404672269,248,98.168222964460341,2750,379.13717834050516,569,136.58330791132568,793,226.31615055050756,90,121.64292005702592,520,148.81532179181013,1040,183.82328470571949]
[null,"35 to 44 yrs.",1518,363.27675400443667,3533,395.14301208549796,741,138.84523758487362,890,236.44238198766311,627,202.66721491153916,336,65.253352404301808,212,50.109879265470198,400,106.72394295564608,259,60.778285596090974,3942,392.77219860881195,258,64.552304374050038,1282,245.02856976279318,540,125.57467897629681,null,null,null,null,null,null,null,null,null,null,null,null,null,null,330,63.482280992415511,78,33.136083051561783,1452,253.59613561724476,960,160.49299050114308,639,128.55349081219072,557,129.67266481413884,807,157.23867208800766,1034,181.09389829588406,2906,262.13355374694021,1864,257.27028588626399,685,144.33987668000827,4851,401.55946010522524,1013,169.94999264489539,1509,269.06504789734396,133,38.183766184073569,1389,228.34184898962346,2212,254.6644851564505]
[null,"45 to 54 yrs.",1607,356.46738981286916,4158,384.84542351442872,870,143.9791651594077,1121,229.6867431960321,771,176.84173715500535,324,57.463031594234565,313,63,647,121.09087496587016,532,94.260277954183863,4300,371.33542788158525,377,81.024687595818591,1699,286.12759391572143,760,126.94093114515901,null,null,null,null,null,null,null,null,null,null,null,null,null,null,414,68.753181744556372,131,38.974350539810153,1322,190.84810714282708,764,154.463587942272,834,144.08677940741129,657,128.46400274006723,730,146.78555787270082,1500,232.25632391820895,3292,333.37816365203048,1820,247.78014448296699,1013,196.22945752358385,5289,423.48317558080157,1254,191.15961916681044,1256,257.17309346041628,142,28.0178514522438,1370,211.72859986312668,2167,238.62522917746983]
[null,"55 to 64 yrs.",1486,315.46949139338341,3771,347.26358864701035,930,150.30635382444748,884,239.41177915883753,809,183.09833423600554,201,49.020403915104573,265,46.508063816933941,1017,169.51991033504001,441,75.312681535050928,3893,389.17990698390378,476,84.658136053187462,1751,263.03611919278308,623,111.89727431890377,null,null,null,null,null,null,null,null,null,null,null,null,null,null,157,41.340053217188775,159,44.50842616853577,1031,198.38094666575216,445,115.26057435220423,560,107.25670142233538,596,138.30039768561767,523,119.00420160649792,998,192.97668252926312,2056,252.91105155765732,1443,242.30971916124207,905,185.68791021496256,3277,323.2723310151984,407,93.300589494386372,1265,256.59111442136884,139,41.928510586473259,991,195.94386951369518,2009,263.51470547200967]
[null,"65 to 74 yrs.",615,210.15470491997081,2426,309.72729941030383,824,134.68481725866505,580,179.17310065966933,352,130.21136663133521,132,38.223029707232783,166,38.80721582386451,411,106.75204916066015,332,81.28345465099278,3047,337.86091813052303,240,51.410115736107812,845,172.4760852988031,355,91.64060235506966,null,null,null,null,null,null,null,null,null,null,null,null,null,null,75,20.928449536456348,94,33.045423283716609,543,136.24243098242192,185,139.30900904105232,328,94.609724658726279,214,70.562029449272501,252,70.753091805234916,349,152.34500319997372,1277,209.12914670126688,601,143.80542409798039,405,129.38315191708693,2049,254.22234362856463,298,106,899,186.66011893278113,41,15.066519173319364,370,111.74972035759194,892,192.05467971387731]
[null,"Over 74 yrs. ",394,192.0208322031753,2147,305.0098359069753,525,124.43472184241824,355,159.26707129849535,163,115.96982366115765,82,30.413812651491099,34,18.947295321496416,291,94.540996398387932,121,43.840620433565945,2180,302.93068514100713,155,52.287665849605489,637,154.06816673148285,187,75.359140122482813,null,null,null,null,null,null,null,null,null,null,null,null,null,null,36,115.35163631262454,54,20.760539492026695,353,110.75197515168747,173,182.3567931281969,364,97.596106479715672,248,86.804377769787621,115,127.23993083933989,547,176.78518037437414,1543,223.98660674245681,316,98.427638394914254,524,137.08391590555036,1864,256.32791498391276,61,168.54079624826744,789,180.94197965093673,82,119.05040949110591,275,101.70054080485511,431,183.61917111238685]
[]
[]
[]
[]
[]
[]
[]
[]
[]
[]
[]
[]
[]
[]
[]
[]
[]
[]
[]
[]
[]
[]
[]
[]
[]
[]
[]
[]
[]
[]
[]
[]
[]
[]
[]
[]
[]
[]
[]
[]
[]
[]
[]
[]
[]
[]
[]
[]
[]
[]
[]
[]
[]
[]
[]
[]
[]
[]
[]
[]
[]
[]
[]
[]
[]
[]
[]
[]
[]
[]
[]
[]
[]
[]
[]
[]
[null,"Calculated B01001. GENDER BY AGE"]
[null,"Universe:  TOTAL POPULATION"]
[null,"Data Set: 2008-2012 American Community Survey 5-Year Estimates"]
[]
[null,null,"Barrington",null,"Dover",null,"Durham",null,"Farmington",null,"Lee",null,"Madbury",null,"Middleton",null,"Milton",null,"New Durham",null,"Rochester",null,"Rollinsford",null,"Somersworth",null,"Strafford"]
[null,null,"Estimate","Margin Of Error","Estimate","Margin Of Error","Estimate","Margin Of Error","Estimate","Margin Of Error","Estimate","Margin Of Error","Estimate","Margin Of Error","Estimate","Margin Of Error","Estimate","Margin Of Error","Estimate","Margin Of Error","Estimate","Margin Of Error","Estimate","Margin Of Error","Estimate","Margin Of Error","Estimate","Margin Of Error",null,null,null,null,null,null,null,null,null,null,null,null,null,null,"Estimate","Margin Of Error","Estimate","Margin Of Error","Estimate","Margin Of Error","Estimate","Margin Of Error","Estimate","Margin Of Error","Estimate","Margin Of Error","Estimate","Margin Of Error","Estimate","Margin Of Error","Estimate","Margin Of Error","Estimate","Margin Of Error","Estimate","Margin Of Error","Estimate","Margin Of Error","Estimate","Margin Of Error","Estimate","Margin Of Error","Estimate","Margin Of Error","Estimate","Margin Of Error","Estimate","Margin Of Error"]
[null,"Total",8591,19,30021,29,14695,19,6768,25,4334,22,2017,164,1532,166,4566,43,2627,18,29830,29,2540,18,11782,30,3992,17,null,null,null,null,null,null,null,null,null,null,null,null,null,null,1836,240,691,109,9401,30,4523,25,4542,22,4077,20,4471,16,7665,30,20557,24,10181,17,5177,23,29423,51,5822,18,8494,17,798,129,7214,17,13097,27]
[null,"Under 15 yrs.",2037,316.11390352213238,4894,425.73700802255843,1213,175.72137035659608,1262,294.80332426890982,807,192.1067411623028,428,95.791440118624379,299,62.321745803531535,888,169.92056967889437,514,108.94035065117058,4630,474.26891106206824,547,110.20435563080073,2379,372.42448899072144,877,189.45975826016459,null,null,null,null,null,null,null,null,null,null,null,null,null,null,494,81.301906496711382,57,31.496031496047245,1693,285.04561038542585,828,148.2700239428051,806,181.48829163337231,872,182.65815065307106,1065,209.01913787976449,1654,321.3627234139019,3103,379.76045081077098,1825,268.4809117982133,843,191.59331929897763,5616,474.16558289272746,1367,216.84787294322257,1384,277.45089655648979,126,35.735136770411273,1616,233.79905902291395,2804,324.07097987940853]
[null,"15 to 24 yrs.",810,193.68014869882768,5234,607.95394562417312,8742,669.19130299190226,820,246.56439321199645,478,163.32482971061074,339,97.570487341203744,166,48.507731342539614,559,155.31580730885057,266,79.303215571627362,3933,511.67176978996997,324,91.831367190083796,1665,331.59764776005272,387,121.54011683390797,null,null,null,null,null,null,null,null,null,null,null,null,null,null,223,172.78888853164142,69,199.83493188129046,1367,253.25678668102856,702,204.87313147409057,470,169.29264603047588,463,167.10176540060851,389,184.03260580668851,1007,235.0957251844448,2532,428.31530441953623,1325,247.69537742961614,554,266.4169664266899,3727,438.85874720688889,853,186.23372412106247,599,237.49526311065659,45,255.62472493872733,683,157.89870170460554,1542,275.31436577120343]
[null,"25 to 34 yrs.",1155,220.07953107910785,4648,399.25305258695266,616,120.21647141718975,694,203.07880243885623,308,135.81973347050862,172,53.758720222862451,177,46.936126810805341,585,152.24322645030878,238,58.043087443725803,3447,360.803270495155,239,80.703159789440704,1979,303.77787937899626,358,109.99545445153632,null,null,null,null,null,null,null,null,null,null,null,null,null,null,107,41.581245772583578,49,22.693611435820433,1640,258.80108191427638,466,115.90944741478151,541,149.70971912337555,470,143.90621946253748,590,148.32059870429327,576,188.09572031282372,3848,398.70415096911142,987,179.89163404672269,248,98.168222964460341,2750,379.13717834050516,569,136.58330791132568,793,226.31615055050756,90,121.64292005702592,520,148.81532179181013,1040,183.82328470571949]
[null,"35 to 44 yrs.",1251,229.80426453832399,3851,358.16476655304888,917,159.00628918379297,1013,230.5883778510964,569,137.13861600585008,380,89.994444272966092,229,47.180504448341793,629,140.15705476357584,321,66.105975524153635,4261,399.48717125835219,343,69.785385289471606,1666,306.98859913684089,556,135.90069904161641,null,null,null,null,null,null,null,null,null,null,null,null,null,null,330,63.482280992415511,78,33.136083051561783,1452,253.59613561724476,960,160.49299050114308,639,128.55349081219072,557,129.67266481413884,807,157.23867208800766,1034,181.09389829588406,2906,262.13355374694021,1864,257.27028588626399,685,144.33987668000827,4851,401.55946010522524,1013,169.94999264489539,1509,269.06504789734396,133,38.183766184073569,1389,228.34184898962346,2212,254.6644851564505]
[null,"45 to 54 yrs.",1501,237.37312400522515,4309,343.03061087897095,1373,189.65758619153624,1091,236.34720222587785,1011,182.60887163552596,284,62.377880695002773,295,57.532599454570104,833,158.52129194527782,601,107,4797,365.38336032173112,485,85.07643622061282,1643,258.03681907820828,787,136.0404351654316,null,null,null,null,null,null,null,null,null,null,null,null,null,null,414,68.753181744556372,131,38.974350539810153,1322,190.84810714282708,764,154.463587942272,834,144.08677940741129,657,128.46400274006723,730,146.78555787270082,1500,232.25632391820895,3292,333.37816365203048,1820,247.78014448296699,1013,196.22945752358385,5289,423.48317558080157,1254,191.15961916681044,1256,257.17309346041628,142,28.0178514522438,1370,211.72859986312668,2167,238.62522917746983]
[null,"55 to 64 yrs.",1209,251.58298829610877,3344,328.89359981611074,968,171.44095193389472,994,227.3851358378555,478,136.77353545185559,263,62.353829072479584,219,43.829214001622255,466,128.70508925446578,361,71.826179071422146,4091,402.46863231809755,277,56.320511361314892,1155,213.30494602798126,519,106.03301372685773,null,null,null,null,null,null,null,null,null,null,null,null,null,null,157,41.340053217188775,159,44.50842616853577,1031,198.38094666575216,445,115.26057435220423,560,107.25670142233538,596,138.30039768561767,523,119.00420160649792,998,192.97668252926312,2056,252.91105155765732,1443,242.30971916124207,905,185.68791021496256,3277,323.2723310151984,407,93.300589494386372,1265,256.59111442136884,139,41.928510586473259,991,195.94386951369518,2009,263.51470547200967]
[null,"65 to 74 yrs.",397,125.30762147610974,1764,235.19353732617739,379,92.817024300502112,452,153.4372836047354,462,142.765542061101,100,31.622776601683793,95,26.851443164195103,275,85.422479477008864,169,52.478567053607705,2698,303.27215500273019,176,50.705029336348872,628,160.73891874714101,383,122.0245876862528,null,null,null,null,null,null,null,null,null,null,null,null,null,null,75,20.928449536456348,94,33.045423283716609,543,136.24243098242192,185,139.30900904105232,328,94.609724658726279,214,70.562029449272501,252,70.753091805234916,349,152.34500319997372,1277,209.12914670126688,601,143.80542409798039,405,129.38315191708693,2049,254.22234362856463,298,106,899,186.66011893278113,41,15.066519173319364,370,111.74972035759194,892,192.05467971387731]
[null,"Over 74 yrs. ",231,101.11379727811631,1977,236.50581388202701,487,111.01351269102334,442,172.81492991058383,221,100.83154268382489,51,19.05255888325765,52,23.727621035409346,331,100.7323185477233,157,52.211109928826453,1973,267.87123772439622,149,46.119410230400824,667,176.34625031454453,125,62.625873247404705,null,null,null,null,null,null,null,null,null,null,null,null,null,null,36,115.35163631262454,54,20.760539492026695,353,110.75197515168747,173,182.3567931281969,364,97.596106479715672,248,86.804377769787621,115,127.23993083933989,547,176.78518037437414,1543,223.98660674245681,316,98.427638394914254,524,137.08391590555036,1864,256.32791498391276,61,168.54079624826744,789,180.94197965093673,82,119.05040949110591,275,101.70054080485511,431,183.61917111238685]
[]
[]
[]
[]
[]
[]
[]
[]
[]
[]
[]
[]
[]
[]
[]
[]
[]
[]
[]
[]
[]
[]
[]
[]
[]
[]
[]
[]
[]
[]
[null,"Calculated B01001. GENDER BY AGE"]
[null,"Universe:  TOTAL POPULATION"]
[null,"Data Set: 2005-2009 American Community Survey 5-Year Estimates"]
[]
[null,null,"Barrington",null,"Dover",null,"Durham",null,"Farmington",null,"Lee",null,"Madbury",null,"Middleton",null,"Milton",null,"New Durham",null,"Rochester",null,"Rollinsford",null,"Somersworth",null,"Strafford"]
[null,null,"Estimate","Margin Of Error","Estimate","Margin Of Error","Estimate","Margin Of Error","Estimate","Margin Of Error","Estimate","Margin Of Error","Estimate","Margin Of Error","Estimate","Margin Of Error","Estimate","Margin Of Error","Estimate","Margin Of Error","Estimate","Margin Of Error","Estimate","Margin Of Error","Estimate","Margin Of Error","Estimate","Margin Of Error",null,null,null,null,null,null,null,null,null,null,null,null,null,null,"Estimate","Margin Of Error","Estimate","Margin Of Error","Estimate","Margin Of Error","Estimate","Margin Of Error","Estimate","Margin Of Error","Estimate","Margin Of Error","Estimate","Margin Of Error","Estimate","Margin Of Error","Estimate","Margin Of Error","Estimate","Margin Of Error","Estimate","Margin Of Error","Estimate","Margin Of Error","Estimate","Margin Of Error","Estimate","Margin Of Error","Estimate","Margin Of Error","Estimate","Margin Of Error","Estimate","Margin Of Error"]
[null,"Total",8389,19,28595,21,13991,26,6621,32,4446,14,1857,153,1630,157,4509,19,2516,18,30568,44,2629,37,11876,20,4029,28,null,null,null,null,null,null,null,null,null,null,null,null,null,null,1836,240,691,109,9401,30,4523,25,4542,22,4077,20,4471,16,7665,30,20557,24,10181,17,5177,23,29423,51,5822,18,8494,17,798,129,7214,17,13097,27]
[null,"Under 15 yrs.",2139,277.52837692747744,4753,443.66090654913467,1105,160.56462873248267,1217,248.59002393499222,718,163.40746616969494,451,95.44108130150245,281,60.712436946642157,893,210.68697159530296,455,102.53779790886871,5515,525.7527936207282,529,127.10232098588916,2240,318.54513024059872,900,198.31288409984865,null,null,null,null,null,null,null,null,null,null,null,null,null,null,494,81.301906496711382,57,31.496031496047245,1693,285.04561038542585,828,148.2700239428051,806,181.48829163337231,872,182.65815065307106,1065,209.01913787976449,1654,321.3627234139019,3103,379.76045081077098,1825,268.4809117982133,843,191.59331929897763,5616,474.16558289272746,1367,216.84787294322257,1384,277.45089655648979,126,35.735136770411273,1616,233.79905902291395,2804,324.07097987940853]
[null,"15 to 24 yrs.",845,249.63373169505758,5063,627.41214524425652,8702,756.9240384609277,1109,303.40237309553135,792,172.08137609863539,316,95.692214939356489,228,62.689712074629917,663,185.88975227268446,329,184.67268341582087,4563,551.60583753256276,226,181.65902124584949,1517,309.12618782626618,453,185.24848177515517,null,null,null,null,null,null,null,null,null,null,null,null,null,null,223,172.78888853164142,69,199.83493188129046,1367,253.25678668102856,702,204.87313147409057,470,169.29264603047588,463,167.10176540060851,389,184.03260580668851,1007,235.0957251844448,2532,428.31530441953623,1325,247.69537742961614,554,266.4169664266899,3727,438.85874720688889,853,186.23372412106247,599,237.49526311065659,45,255.62472493872733,683,157.89870170460554,1542,275.31436577120343]
[null,"25 to 34 yrs.",984,210.29978601986261,4125,393.04707097242181,417,106.41898326896381,667,170.61945961700852,477,148.45201244846766,130,42.30839160261236,185,49.416596402423345,468,126.10313239567049,275,70.278019323256402,3513,333.34816633663968,319,100.27462291128299,1739,258.52852840644107,391,102.61578825892242,null,null,null,null,null,null,null,null,null,null,null,null,null,null,107,41.581245772583578,49,22.693611435820433,1640,258.80108191427638,466,115.90944741478151,541,149.70971912337555,470,143.90621946253748,590,148.32059870429327,576,188.09572031282372,3848,398.70415096911142,987,179.89163404672269,248,98.168222964460341,2750,379.13717834050516,569,136.58330791132568,793,226.31615055050756,90,121.64292005702592,520,148.81532179181013,1040,183.82328470571949]
[null,"35 to 44 yrs.",1601,250.93226177596216,4402,432.99307153810207,659,110.19981851164728,879,167.87495346239118,544,118.23282116231516,320,81.203448202647152,229,50.259327492516249,789,168.18144963104581,368,77.032460690283031,4472,387.53580479744062,387,72.208032794142781,1986,280.24810436468613,611,147.13938969562162,null,null,null,null,null,null,null,null,null,null,null,null,null,null,330,63.482280992415511,78,33.136083051561783,1452,253.59613561724476,960,160.49299050114308,639,128.55349081219072,557,129.67266481413884,807,157.23867208800766,1034,181.09389829588406,2906,262.13355374694021,1864,257.27028588626399,685,144.33987668000827,4851,401.55946010522524,1013,169.94999264489539,1509,269.06504789734396,133,38.183766184073569,1389,228.34184898962346,2212,254.6644851564505]
[null,"45 to 54 yrs.",1381,198.76619430879086,3918,330.73403211644245,1401,186.31693428134759,1055,198.28514820833152,859,155.46703830716015,287,64.884512790033341,316,53.329166503893532,933,200.09247861926244,540,97.657564991146486,4572,343.71063410956606,480,98.645831133403703,1755,252.14479966876175,747,150.07997867803687,null,null,null,null,null,null,null,null,null,null,null,null,null,null,414,68.753181744556372,131,38.974350539810153,1322,190.84810714282708,764,154.463587942272,834,144.08677940741129,657,128.46400274006723,730,146.78555787270082,1500,232.25632391820895,3292,333.37816365203048,1820,247.78014448296699,1013,196.22945752358385,5289,423.48317558080157,1254,191.15961916681044,1256,257.17309346041628,142,28.0178514522438,1370,211.72859986312668,2167,238.62522917746983]
[null,"55 to 64 yrs.",894,201.88610650562362,2819,295.25920815446216,777,146.44452874723589,598,155.33834040570923,616,163.53592877407704,220,47.127486671792717,208,45.133136385587029,351,105.28057750601485,281,78.708322304569549,3675,343.75281817026604,281,62.952362942148568,1127,232.83255786079403,570,147.220922426128,null,null,null,null,null,null,null,null,null,null,null,null,null,null,157,41.340053217188775,159,44.50842616853577,1031,198.38094666575216,445,115.26057435220423,560,107.25670142233538,596,138.30039768561767,523,119.00420160649792,998,192.97668252926312,2056,252.91105155765732,1443,242.30971916124207,905,185.68791021496256,3277,323.2723310151984,407,93.300589494386372,1265,256.59111442136884,139,41.928510586473259,991,195.94386951369518,2009,263.51470547200967]
[null,"65 to 74 yrs.",358,109.80437149767764,1697,230.09780529157595,445,100.30453628824571,382,125.37942414925983,246,91.290744328217627,89,26.944387170614959,127,32.496153618543843,221,109.01376059929315,133,54.027770636960398,2283,252.39255139563846,260,69.656299069071991,745,162.34531098864542,246,95.619035761714315,null,null,null,null,null,null,null,null,null,null,null,null,null,null,75,20.928449536456348,94,33.045423283716609,543,136.24243098242192,185,139.30900904105232,328,94.609724658726279,214,70.562029449272501,252,70.753091805234916,349,152.34500319997372,1277,209.12914670126688,601,143.80542409798039,405,129.38315191708693,2049,254.22234362856463,298,106,899,186.66011893278113,41,15.066519173319364,370,111.74972035759194,892,192.05467971387731]
[null,"Over 74 yrs. ",187,145.5403724057349,1818,265.90035727693186,485,117.10251918724892,714,249.86396298786266,194,141,44,19.026297590440446,56,20.248456731316587,191,145.56785359412291,135,51.623637996561229,1975,313.73237002260385,147,172.30786401090347,767,203.66639388961548,111,56.267219586540797,null,null,null,null,null,null,null,null,null,null,null,null,null,null,36,115.35163631262454,54,20.760539492026695,353,110.75197515168747,173,182.3567931281969,364,97.596106479715672,248,86.804377769787621,115,127.23993083933989,547,176.78518037437414,1543,223.98660674245681,316,98.427638394914254,524,137.08391590555036,1864,256.32791498391276,61,168.54079624826744,789,180.94197965093673,82,119.05040949110591,275,101.70054080485511,431,183.61917111238685]

{"sheet":"ACS_Table_B01002","index":17,"n_rows":49,"n_cols":28,"rows_kept":49,"cut":false,"hidden":true,"merged":[[64774,16,64774,17],[64774,18,64774,19],[64774,20,64774,21],[64774,22,64774,23],[64754,16,64754,17],[64754,18,64754,19],[64754,20,64754,21],[64754,22,64754,23],[64856,16,64856,17],[64856,18,64856,19],[64856,20,64856,21],[64856,22,64856,23],[64836,16,64836,17],[64836,18,64836,19],[64836,20,64836,21],[64836,22,64836,23],[64938,16,64938,17],[64938,18,64938,19],[64938,20,64938,21],[64938,22,64938,23],[64918,16,64918,17],[64918,18,64918,19],[64918,20,64918,21],[64918,22,64918,23],[64364,16,64364,17],[64364,18,64364,19],[64364,20,64364,21],[64364,22,64364,23],[64344,16,64344,17],[64344,18,64344,19],[64344,20,64344,21],[64344,22,64344,23],[64446,16,64446,17],[64446,18,64446,19],[64446,20,64446,21],[64446,22,64446,23],[64426,16,64426,17],[64426,18,64426,19],[64426,20,64426,21],[64426,22,64426,23],[64528,16,64528,17],[64528,18,64528,19],[64528,20,64528,21],[64528,22,64528,23],[64508,16,64508,17],[64508,18,64508,19],[64508,20,64508,21],[64508,22,64508,23],[64610,16,64610,17],[64610,18,64610,19],[64610,20,64610,21],[64610,22,64610,23],[64590,16,64590,17],[64590,18,64590,19],[64590,20,64590,21],[64590,22,64590,23],[64692,16,64692,17],[64692,18,64692,19],[64692,20,64692,21],[64692,22,64692,23],[64672,16,64672,17],[64672,18,64672,19],[64672,20,64672,21],[64672,22,64672,23],[63954,16,63954,17],[63954,18,63954,19],[63954,20,63954,21],[63954,22,63954,23],[63934,16,63934,17],[63934,18,63934,19],[63934,20,63934,21],[63934,22,63934,23],[64036,16,64036,17],[64036,18,64036,19],[64036,20,64036,21],[64036,22,64036,23],[64016,16,64016,17],[64016,18,64016,19],[64016,20,64016,21],[64016,22,64016,23],[64118,16,64118,17],[64118,18,64118,19],[64118,20,64118,21],[64118,22,64118,23],[64098,16,64098,17],[64098,18,64098,19],[64098,20,64098,21],[64098,22,64098,23],[64200,16,64200,17],[64200,18,64200,19],[64200,20,64200,21],[64200,22,64200,23],[64180,16,64180,17],[64180,18,64180,19],[64180,20,64180,21],[64180,22,64180,23],[64282,16,64282,17],[64282,18,64282,19],[64282,20,64282,21],[64282,22,64282,23],[64262,16,64262,17],[64262,18,64262,19],[64262,20,64262,21],[64262,22,64262,23],[63544,16,63544,17],[63544,18,63544,19],[63544,20,63544,21],[63544,22,63544,23],[63524,16,63524,17],[63524,18,63524,19],[63524,20,63524,21],[63524,22,63524,23],[63626,16,63626,17],[63626,18,63626,19],[63626,20,63626,21],[63626,22,63626,23],[63606,16,63606,17],[63606,18,63606,19],[63606,20,63606,21],[63606,22,63606,23],[63708,16,63708,17],[63708,18,63708,19],[63708,20,63708,21],[63708,22,63708,23],[63688,16,63688,17],[63688,18,63688,19],[63688,20,63688,21],[63688,22,63688,23],[63790,16,63790,17],[63790,18,63790,19],[63790,20,63790,21],[63790,22,63790,23],[63770,16,63770,17],[63770,18,63770,19],[63770,20,63770,21],[63770,22,63770,23],[63872,16,63872,17],[63872,18,63872,19],[63872,20,63872,21],[63872,22,63872,23],[63852,16,63852,17],[63852,18,63852,19],[63852,20,63852,21],[63852,22,63852,23],[63134,16,63134,17],[63134,18,63134,19],[63134,20,63134,21],[63134,22,63134,23],[63114,16,63114,17],[63114,18,63114,19],[63114,20,63114,21],[63114,22,63114,23],[63216,16,63216,17],[63216,18,63216,19],[63216,20,63216,21],[63216,22,63216,23],[63196,16,63196,17],[63196,18,63196,19],[63196,20,63196,21],[63196,22,63196,23],[63298,16,63298,17],[63298,18,63298,19],[63298,20,63298,21],[63298,22,63298,23],[63278,16,63278,17],[63278,18,63278,19],[63278,20,63278,21],[63278,22,63278,23],[63380,16,63380,17],[63380,18,63380,19],[63380,20,63380,21],[63380,22,63380,23],[63360,16,63360,17],[63360,18,63360,19],[63360,20,63360,21],[63360,22,63360,23],[63462,16,63462,17],[63462,18,63462,19],[63462,20,63462,21],[63462,22,63462,23],[63442,16,63442,17],[63442,18,63442,19],[63442,20,63442,21],[63442,22,63442,23],[62724,16,62724,17],[62724,18,62724,19],[62724,20,62724,21],[62724,22,62724,23],[62704,16,62704,17],[62704,18,62704,19],[62704,20,62704,21],[62704,22,62704,23],[62806,16,62806,17],[62806,18,62806,19],[62806,20,62806,21],[62806,22,62806,23],[62786,16,62786,17],[62786,18,62786,19],[62786,20,62786,21],[62786,22,62786,23],[62888,16,62888,17],[62888,18,62888,19],[62888,20,62888,21],[62888,22,62888,23],[62868,16,62868,17],[62868,18,62868,19],[62868,20,62868,21],[62868,22,62868,23],[62970,16,62970,17],[62970,18,62970,19],[62970,20,62970,21],[62970,22,62970,23],[62950,16,62950,17],[62950,18,62950,19],[62950,20,62950,21],[62950,22,62950,23],[63052,16,63052,17],[63052,18,63052,19],[63052,20,63052,21],[63052,22,63052,23],[63032,16,63032,17],[63032,18,63032,19],[63032,20,63032,21],[63032,22,63032,23],[62314,16,62314,17],[62314,18,62314,19],[62314,20,62314,21],[62314,22,62314,23],[62294,16,62294,17],[62294,18,62294,19],[62294,20,62294,21],[62294,22,62294,23],[62396,16,62396,17],[62396,18,62396,19],[62396,20,62396,21],[62396,22,62396,23],[62376,16,62376,17],[62376,18,62376,19],[62376,20,62376,21],[62376,22,62376,23],[62478,16,62478,17],[62478,18,62478,19],[62478,20,62478,21],[62478,22,62478,23],[62458,16,62458,17],[62458,18,62458,19],[62458,20,62458,21],[62458,22,62458,23],[62560,16,62560,17],[62560,18,62560,19],[62560,20,62560,21],[62560,22,62560,23],[62540,16,62540,17],[62540,18,62540,19],[62540,20,62540,21],[62540,22,62540,23],[62642,16,62642,17],[62642,18,62642,19],[62642,20,62642,21],[62642,22,62642,23],[62622,16,62622,17],[62622,18,62622,19],[62622,20,62622,21],[62622,22,62622,23],[61904,16,61904,17],[61904,18,61904,19],[61904,20,61904,21],[61904,22,61904,23],[61884,16,61884,17],[61884,18,61884,19],[61884,20,61884,21],[61884,22,61884,23],[61986,16,61986,17],[61986,18,61986,19],[61986,20,61986,21],[61986,22,61986,23],[61966,16,61966,17],[61966,18,61966,19],[61966,20,61966,21],[61966,22,61966,23],[62068,16,62068,17],[62068,18,62068,19],[62068,20,62068,21],[62068,22,62068,23],[62048,16,62048,17],[62048,18,62048,19],[62048,20,62048,21],[62048,22,62048,23],[62150,16,62150,17],[62150,18,62150,19],[62150,20,62150,21],[62150,22,62150,23],[62130,16,62130,17],[62130,18,62130,19],[62130,20,62130,21],[62130,22,62130,23],[62232,16,62232,17],[62232,18,62232,19],[62232,20,62232,21],[62232,22,62232,23],[62212,16,62212,17],[62212,18,62212,19],[62212,20,62212,21],[62212,22,62212,23],[61494,16,61494,17],[61494,18,61494,19],[61494,20,61494,21],[61494,22,61494,23],[61474,16,61474,17],[61474,18,61474,19],[61474,20,61474,21],[61474,22,61474,23],[61576,16,61576,17],[61576,18,61576,19],[61576,20,61576,21],[61576,22,61576,23],[61556,16,61556,17],[61556,18,61556,19],[61556,20,61556,21],[61556,22,61556,23],[61658,16,61658,17],[61658,18,61658,19],[61658,20,61658,21],[61658,22,61658,23],[61638,16,61638,17],[61638,18,61638,19],[61638,20,61638,21],[61638,22,61638,23],[61740,16,61740,17],[61740,18,61740,19],[61740,20,61740,21],[61740,22,61740,23],[61720,16,61720,17],[61720,18,61720,19],[61720,20,61720,21],[61720,22,61720,23],[61822,16,61822,17],[61822,18,61822,19],[61822,20,61822,21],[61822,22,61822,23],[61802,16,61802,17],[61802,18,61802,19],[61802,20,61802,21],[61802,22,61802,23],[61084,16,61084,17],[61084,18,61084,19],[61084,20,61084,21],[61084,22,61084,23],[61064,16,61064,17],[61064,18,61064,19],[61064,20,61064,21],[61064,22,61064,23],[61166,16,61166,17],[61166,18,61166,19],[61166,20,61166,21],[61166,22,61166,23],[61146,16,61146,17],[61146,18,61146,19],[61146,20,61146,21],[61146,22,61146,23],[61248,16,61248,17],[61248,18,61248,19],[61248,20,61248,21],[61248,22,61248,23],[61228,16,61228,17],[61228,18,61228,19],[61228,20,61228,21],[61228,22,61228,23],[61330,16,61330,17],[61330,18,61330,19],[61330,20,61330,21],[61330,22,61330,23],[61310,16,61310,17],[61310,18,61310,19],[61310,20,61310,21],[61310,22,61310,23],[61412,16,61412,17],[61412,18,61412,19],[61412,20,61412,21],[61412,22,61412,23],[61392,16,61392,17],[61392,18,61392,19],[61392,20,61392,21],[61392,22,61392,23],[60674,16,60674,17],[60674,18,60674,19],[60674,20,60674,21],[60674,22,60674,23],[60654,16,60654,17],[60654,18,60654,19],[60654,20,60654,21],[60654,22,60654,23],[60756,16,60756,17],[60756,18,60756,19],[60756,20,60756,21],[60756,22,60756,23],[60736,16,60736,17],[60736,18,60736,19],[60736,20,60736,21],[60736,22,60736,23],[60838,16,60838,17],[60838,18,60838,19],[60838,20,60838,21],[60838,22,60838,23],[60818,16,60818,17],[60818,18,60818,19],[60818,20,60818,21],[60818,22,60818,23],[60920,16,60920,17],[60920,18,60920,19],[60920,20,60920,21],[60920,22,60920,23],[60900,16,60900,17],[60900,18,60900,19],[60900,20,60900,21],[60900,22,60900,23],[61002,16,61002,17],[61002,18,61002,19],[61002,20,61002,21],[61002,22,61002,23],[60982,16,60982,17],[60982,18,60982,19],[60982,20,60982,21],[60982,22,60982,23],[60264,16,60264,17],[60264,18,60264,19],[60264,20,60264,21],[60264,22,60264,23],[60244,16,60244,17],[60244,18,60244,19],[60244,20,60244,21],[60244,22,60244,23],[60346,16,60346,17],[60346,18,60346,19],[60346,20,60346,21],[60346,22,60346,23],[60326,16,60326,17],[60326,18,60326,19],[60326,20,60326,21],[60326,22,60326,23],[60428,16,60428,17],[60428,18,60428,19],[60428,20,60428,21],[60428,22,60428,23],[60408,16,60408,17],[60408,18,60408,19],[60408,20,60408,21],[60408,22,60408,23],[60510,16,60510,17],[60510,18,60510,19],[60510,20,60510,21],[60510,22,60510,23],[60490,16,60490,17],[60490,18,60490,19],[60490,20,60490,21],[60490,22,60490,23],[60592,16,60592,17],[60592,18,60592,19],[60592,20,60592,21],[60592,22,60592,23],[60572,16,60572,17],[60572,18,60572,19],[60572,20,60572,21],[60572,22,60572,23],[59854,16,59854,17],[59854,18,59854,19],[59854,20,59854,21],[59854,22,59854,23],[59834,16,59834,17],[59834,18,59834,19],[59834,20,59834,21],[59834,22,59834,23],[59936,16,59936,17],[59936,18,59936,19],[59936,20,59936,21],[59936,22,59936,23],[59916,16,59916,17],[59916,18,59916,19],[59916,20,59916,21],[59916,22,59916,23],[60018,16,60018,17],[60018,18,60018,19],[60018,20,60018,21],[60018,22,60018,23],[59998,16,59998,17],[59998,18,59998,19],[59998,20,59998,21],[59998,22,59998,23],[60100,16,60100,17],[60100,18,60100,19],[60100,20,60100,21],[60100,22,60100,23],[60080,16,60080,17],[60080,18,60080,19],[60080,20,60080,21],[60080,22,60080,23],[60182,16,60182,17],[60182,18,60182,19],[60182,20,60182,21],[60182,22,60182,23],[60162,16,60162,17],[60162,18,60162,19],[60162,20,60162,21],[60162,22,60162,23],[59444,16,59444,17],[59444,18,59444,19],[59444,20,59444,21],[59444,22,59444,23],[59424,16,59424,17],[59424,18,59424,19],[59424,20,59424,21],[59424,22,59424,23],[59526,16,59526,17],[59526,18,59526,19],[59526,20,59526,21],[59526,22,59526,23],[59506,16,59506,17],[59506,18,59506,19],[59506,20,59506,21],[59506,22,59506,23],[59608,16,59608,17],[59608,18,59608,19],[59608,20,59608,21],[59608,22,59608,23],[59588,16,59588,17],[59588,18,59588,19],[59588,20,59588,21],[59588,22,59588,23],[59690,16,59690,17],[59690,18,59690,19],[59690,20,59690,21],[59690,22,59690,23],[59670,16,59670,17],[59670,18,59670,19],[59670,20,59670,21],[59670,22,59670,23],[59772,16,59772,17],[59772,18,59772,19],[59772,20,59772,21],[59772,22,59772,23],[59752,16,59752,17],[59752,18,59752,19],[59752,20,59752,21],[59752,22,59752,23],[59034,16,59034,17],[59034,18,59034,19],[59034,20,59034,21],[59034,22,59034,23],[59014,16,59014,17],[59014,18,59014,19],[59014,20,59014,21],[59014,22,59014,23],[59116,16,59116,17],[59116,18,59116,19],[59116,20,59116,21],[59116,22,59116,23],[59096,16,59096,17],[59096,18,59096,19],[59096,20,59096,21],[59096,22,59096,23],[59198,16,59198,17],[59198,18,59198,19],[59198,20,59198,21],[59198,22,59198,23],[59178,16,59178,17],[59178,18,59178,19],[59178,20,59178,21],[59178,22,59178,23],[59280,16,59280,17],[59280,18,59280,19],[59280,20,59280,21],[59280,22,59280,23],[59260,16,59260,17],[59260,18,59260,19],[59260,20,59260,21],[59260,22,59260,23],[59362,16,59362,17],[59362,18,59362,19],[59362,20,59362,21],[59362,22,59362,23],[59342,16,59342,17],[59342,18,59342,19],[59342,20,59342,21],[59342,22,59342,23],[58624,16,58624,17],[58624,18,58624,19],[58624,20,58624,21],[58624,22,58624,23],[58604,16,58604,17],[58604,18,58604,19],[58604,20,58604,21],[58604,22,58604,23],[58706,16,58706,17],[58706,18,58706,19],[58706,20,58706,21],[58706,22,58706,23],[58686,16,58686,17],[58686,18,58686,19],[58686,20,58686,21],[58686,22,58686,23],[58788,16,58788,17],[58788,18,58788,19],[58788,20,58788,21],[58788,22,58788,23],[58768,16,58768,17],[58768,18,58768,19],[58768,20,58768,21],[58768,22,58768,23],[58870,16,58870,17],[58870,18,58870,19],[58870,20,58870,21],[58870,22,58870,23],[58850,16,58850,17],[58850,18,58850,19],[58850,20,58850,21],[58850,22,58850,23],[58952,16,58952,17],[58952,18,58952,19],[58952,20,58952,21],[58952,22,58952,23],[58932,16,58932,17],[58932,18,58932,19],[58932,20,58932,21],[58932,22,58932,23],[58214,16,58214,17],[58214,18,58214,19],[58214,20,58214,21],[58214,22,58214,23],[58194,16,58194,17],[58194,18,58194,19],[58194,20,58194,21],[58194,22,58194,23],[58296,16,58296,17],[58296,18,58296,19],[58296,20,58296,21],[58296,22,58296,23],[58276,16,58276,17],[58276,18,58276,19],[58276,20,58276,21],[58276,22,58276,23],[58378,16,58378,17],[58378,18,58378,19],[58378,20,58378,21],[58378,22,58378,23],[58358,16,58358,17],[58358,18,58358,19],[58358,20,58358,21],[58358,22,58358,23],[58460,16,58460,17],[58460,18,58460,19],[58460,20,58460,21],[58460,22,58460,23],[58440,16,58440,17],[58440,18,58440,19],[58440,20,58440,21],[58440,22,58440,23],[58542,16,58542,17],[58542,18,58542,19],[58542,20,58542,21],[58542,22,58542,23],[58522,16,58522,17],[58522,18,58522,19],[58522,20,58522,21],[58522,22,58522,23],[57804,16,57804,17],[57804,18,57804,19],[57804,20,57804,21],[57804,22,57804,23],[57784,16,57784,17],[57784,18,57784,19],[57784,20,57784,21],[57784,22,57784,23],[57886,16,57886,17],[57886,18,57886,19],[57886,20,57886,21],[57886,22,57886,23],[57866,16,57866,17],[57866,18,57866,19],[57866,20,57866,21],[57866,22,57866,23],[57968,16,57968,17],[57968,18,57968,19],[57968,20,57968,21],[57968,22,57968,23],[57948,16,57948,17],[57948,18,57948,19],[57948,20,57948,21],[57948,22,57948,23],[58050,16,58050,17],[58050,18,58050,19],[58050,20,58050,21],[58050,22,58050,23],[58030,16,58030,17],[58030,18,58030,19],[58030,20,58030,21],[58030,22,58030,23],[58132,16,58132,17],[58132,18,58132,19],[58132,20,58132,21],[58132,22,58132,23],[58112,16,58112,17],[58112,18,58112,19],[58112,20,58112,21],[58112,22,58112,23],[57394,16,57394,17],[57394,18,57394,19],[57394,20,57394,21],[57394,22,57394,23],[57374,16,57374,17],[57374,18,57374,19],[57374,20,57374,21],[57374,22,57374,23],[57476,16,57476,17],[57476,18,57476,19],[57476,20,57476,21],[57476,22,57476,23],[57456,16,57456,17],[57456,18,57456,19],[57456,20,57456,21],[57456,22,57456,23],[57558,16,57558,17],[57558,18,57558,19],[57558,20,57558,21],[57558,22,57558,23],[57538,16,57538,17],[57538,18,57538,19],[57538,20,57538,21],[57538,22,57538,23],[57640,16,57640,17],[57640,18,57640,19],[57640,20,57640,21],[57640,22,57640,23],[57620,16,57620,17],[57620,18,57620,19],[57620,20,57620,21],[57620,22,57620,23],[57722,16,57722,17],[57722,18,57722,19],[57722,20,57722,21],[57722,22,57722,23],[57702,16,57702,17],[57702,18,57702,19],[57702,20,57702,21],[57702,22,57702,23],[56984,16,56984,17],[56984,18,56984,19],[56984,20,56984,21],[56984,22,56984,23],[56964,16,56964,17],[56964,18,56964,19],[56964,20,56964,21],[56964,22,56964,23],[57066,16,57066,17],[57066,18,57066,19],[57066,20,57066,21],[57066,22,57066,23],[57046,16,57046,17],[57046,18,57046,19],[57046,20,57046,21],[57046,22,57046,23],[57148,16,57148,17],[57148,18,57148,19],[57148,20,57148,21],[57148,22,57148,23],[57128,16,57128,17],[57128,18,57128,19],[57128,20,57128,21],[57128,22,57128,23],[57230,16,57230,17],[57230,18,57230,19],[57230,20,57230,21],[57230,22,57230,23],[57210,16,57210,17],[57210,18,57210,19],[57210,20,57210,21],[57210,22,57210,23],[57312,16,57312,17],[57312,18,57312,19],[57312,20,57312,21],[57312,22,57312,23],[57292,16,57292,17],[57292,18,57292,19],[57292,20,57292,21],[57292,22,57292,23],[56574,16,56574,17],[56574,18,56574,19],[56574,20,56574,21],[56574,22,56574,23],[56554,16,56554,17],[56554,18,56554,19],[56554,20,56554,21],[56554,22,56554,23],[56656,16,56656,17],[56656,18,56656,19],[56656,20,56656,21],[56656,22,56656,23],[56636,16,56636,17],[56636,18,56636,19],[56636,20,56636,21],[56636,22,56636,23],[56738,16,56738,17],[56738,18,56738,19],[56738,20,56738,21],[56738,22,56738,23],[56718,16,56718,17],[56718,18,56718,19],[56718,20,56718,21],[56718,22,56718,23],[56820,16,56820,17],[56820,18,56820,19],[56820,20,56820,21],[56820,22,56820,23],[56800,16,56800,17],[56800,18,56800,19],[56800,20,56800,21],[56800,22,56800,23],[56902,16,56902,17],[56902,18,56902,19],[56902,20,56902,21],[56902,22,56902,23],[56882,16,56882,17],[56882,18,56882,19],[56882,20,56882,21],[56882,22,56882,23],[56164,16,56164,17],[56164,18,56164,19],[56164,20,56164,21],[56164,22,56164,23],[56144,16,56144,17],[56144,18,56144,19],[56144,20,56144,21],[56144,22,56144,23],[56246,16,56246,17],[56246,18,56246,19],[56246,20,56246,21],[56246,22,56246,23],[56226,16,56226,17],[56226,18,56226,19],[56226,20,56226,21],[56226,22,56226,23],[56328,16,56328,17],[56328,18,56328,19],[56328,20,56328,21],[56328,22,56328,23],[56308,16,56308,17],[56308,18,56308,19],[56308,20,56308,21],[56308,22,56308,23],[56410,16,56410,17],[56410,18,56410,19],[56410,20,56410,21],[56410,22,56410,23],[56390,16,56390,17],[56390,18,56390,19],[56390,20,56390,21],[56390,22,56390,23],[56492,16,56492,17],[56492,18,56492,19],[56492,20,56492,21],[56492,22,56492,23],[56472,16,56472,17],[56472,18,56472,19],[56472,20,56472,21],[56472,22,56472,23],[55754,16,55754,17],[55754,18,55754,19],[55754,20,55754,21],[55754,22,55754,23],[55734,16,55734,17],[55734,18,55734,19],[55734,20,55734,21],[55734,22,55734,23],[55836,16,55836,17],[55836,18,55836,19],[55836,20,55836,21],[55836,22,55836,23],[55816,16,55816,17],[55816,18,55816,19],[55816,20,55816,21],[55816,22,55816,23],[55918,16,55918,17],[55918,18,55918,19],[55918,20,55918,21],[55918,22,55918,23],[55898,16,55898,17],[55898,18,55898,19],[55898,20,55898,21],[55898,22,55898,23],[56000,16,56000,17],[56000,18,56000,19],[56000,20,56000,21],[56000,22,56000,23],[55980,16,55980,17],[55980,18,55980,19],[55980,20,55980,21],[55980,22,55980,23],[56082,16,56082,17],[56082,18,56082,19],[56082,20,56082,21],[56082,22,56082,23],[56062,16,56062,17],[56062,18,56062,19],[56062,20,56062,21],[56062,22,56062,23],[55344,16,55344,17],[55344,18,55344,19],[55344,20,55344,21],[55344,22,55344,23],[55324,16,55324,17],[55324,18,55324,19],[55324,20,55324,21],[55324,22,55324,23],[55426,16,55426,17],[55426,18,55426,19],[55426,20,55426,21],[55426,22,55426,23],[55406,16,55406,17],[55406,18,55406,19],[55406,20,55406,21],[55406,22,55406,23],[55508,16,55508,17],[55508,18,55508,19],[55508,20,55508,21],[55508,22,55508,23],[55488,16,55488,17],[55488,18,55488,19],[55488,20,55488,21],[55488,22,55488,23],[55590,16,55590,17],[55590,18,55590,19],[55590,20,55590,21],[55590,22,55590,23],[55570,16,55570,17],[55570,18,55570,19],[55570,20,55570,21],[55570,22,55570,23],[55672,16,55672,17],[55672,18,55672,19],[55672,20,55672,21],[55672,22,55672,23],[55652,16,55652,17],[55652,18,55652,19],[55652,20,55652,21],[55652,22,55652,23],[54934,16,54934,17],[54934,18,54934,19],[54934,20,54934,21],[54934,22,54934,23],[54914,16,54914,17],[54914,18,54914,19],[54914,20,54914,21],[54914,22,54914,23],[55016,16,55016,17],[55016,18,55016,19],[55016,20,55016,21],[55016,22,55016,23],[54996,16,54996,17],[54996,18,54996,19],[54996,20,54996,21],[54996,22,54996,23],[55098,16,55098,17],[55098,18,55098,19],[55098,20,55098,21],[55098,22,55098,23],[55078,16,55078,17],[55078,18,55078,19],[55078,20,55078,21],[55078,22,55078,23],[55180,16,55180,17],[55180,18,55180,19],[55180,20,55180,21],[55180,22,55180,23],[55160,16,55160,17],[55160,18,55160,19],[55160,20,55160,21],[55160,22,55160,23],[55262,16,55262,17],[55262,18,55262,19],[55262,20,55262,21],[55262,22,55262,23],[55242,16,55242,17],[55242,18,55242,19],[55242,20,55242,21],[55242,22,55242,23],[54524,16,54524,17],[54524,18,54524,19],[54524,20,54524,21],[54524,22,54524,23],[54504,16,54504,17],[54504,18,54504,19],[54504,20,54504,21],[54504,22,54504,23],[54606,16,54606,17],[54606,18,54606,19],[54606,20,54606,21],[54606,22,54606,23],[54586,16,54586,17],[54586,18,54586,19],[54586,20,54586,21],[54586,22,54586,23]],"merged_total":58608,"flags":["merged_cut"]}
[null,"B01001. GENDER BY AGE"]
[null,"Universe:  TOTAL POPULATION, Median Age"]
[null,"Data Set: 2018-2022 American Community Survey 5-Year Estimates"]
[]
[null,null,"Barrington",null,"Dover",null,"Durham",null,"Farmington",null,"Lee",null,"Madbury",null,"Middleton",null,"Milton",null,"New Durham",null,"Rochester",null,"Rollinsford",null,"Somersworth",null,"Strafford"]
[null,null,"Estimate","Margin Of Error","Estimate","Margin Of Error","Estimate","Margin Of Error","Estimate","Margin Of Error","Estimate","Margin Of Error","Estimate","Margin Of Error","Estimate","Margin Of Error","Estimate","Margin Of Error","Estimate","Margin Of Error","Estimate","Margin Of Error","Estimate","Margin Of Error","Estimate","Margin Of Error","Estimate","Margin Of Error"]
[null,"Total:",39,2.6,37.200000000000003,1.6,20.7,0.2,42.6,10.4,48.1,5.2,37.700000000000003,2.6,41.5,5.4,43.1,5.6,43.9,8.1999999999999993,43.3,1.9,38.6,5.5,38.1,2.1,51.1,2.9]
[null,"Male:",37.5,3.9,37,2.5,20.7,0.3,39.9,10.6,50.9,2.8,39,2.5,41.4,6.1,38,6.5,43,9.1,40.5,2.4,41.5,5.4,36.1,2,49.8,3.6]
[null,"Female:",40.200000000000003,3.4,37.200000000000003,2,20.7,0.3,42.7,16.600000000000001,45.5,4.9000000000000004,34.9,10.7,41.7,7.2,45.7,4.3,46.1,7.8,46.1,2.7,36.6,7.9,40.700000000000003,3.4,52.1,3.7]
[]
[]
[]
[]
[]
[]
[]
[]
[]
[]
[]
[null,"B01001. GENDER BY AGE"]
[null,"Universe:  TOTAL POPULATION, Median Age"]
[null,"Data Set: 2013-2017 American Community Survey 5-Year Estimates"]
[]
[null,null,"Barrington",null,"Dover",null,"Durham",null,"Farmington",null,"Lee",null,"Madbury",null,"Middleton",null,"Milton",null,"New Durham",null,"Rochester",null,"Rollinsford",null,"Somersworth",null,"Strafford"]
[null,null,"Estimate","Margin Of Error","Estimate","Margin Of Error","Estimate","Margin Of Error","Estimate","Margin Of Error","Estimate","Margin Of Error","Estimate","Margin Of Error","Estimate","Margin Of Error","Estimate","Margin Of Error","Estimate","Margin Of Error","Estimate","Margin Of Error","Estimate","Margin Of Error","Estimate","Margin Of Error","Estimate","Margin Of Error"]
[null,"Total:",42.2,3.3,36.6,1.5,20.9,0.2,40.4,3.3,44.1,5.0999999999999996,37.9,3.5,42.1,3.1,46.3,4.9000000000000004,47.4,3,41.1,1,44.7,2.2999999999999998,37,3.1,43.8,2.6]
[null,"Male:",43.1,4.2,36.200000000000003,1.7,21.1,0.3,38.6,4.8,44.9,4.7,37.799999999999997,4.4000000000000004,41,4.7,44.3,4.7,48.9,3.7,38.700000000000003,2.1,44.4,3.4,36.799999999999997,4.0999999999999996,43.4,4.7]
[null,"Female:",41.8,4,37,2.8,20.7,0.3,42.5,3.9,41.9,4.7,37.9,3.9,42.4,3.5,49.5,5.4,46.4,3.1,43.9,2.1,45.2,3,37.200000000000003,3.1,44.3,3.2]
[]
[]
[]
[]
[]
[]
[null,null,null,null,null,null,null,null,null,null,null,{"$f":"IF(F36=\"-\",\"\",IF(I36=\"-\",\"\",(I36-F36)/F36))","v":{"$error":"#DIV/0!"}}]
[]
[]
[]
[]
[null,"B01001. GENDER BY AGE"]
[null,"Universe:  TOTAL POPULATION, Median Age"]
[null,"Data Set: 2008-2012 American Community Survey 5-Year Estimates"]
[]
[null,null,"Barrington",null,"Dover",null,"Durham",null,"Farmington",null,"Lee",null,"Madbury",null,"Middleton",null,"Milton",null,"New Durham",null,"Rochester",null,"Rollinsford",null,"Somersworth",null,"Strafford"]
[null,null,"Estimate","Margin Of Error","Estimate","Margin Of Error","Estimate","Margin Of Error","Estimate","Margin Of Error","Estimate","Margin Of Error","Estimate","Margin Of Error","Estimate","Margin Of Error","Estimate","Margin Of Error","Estimate","Margin Of Error","Estimate","Margin Of Error","Estimate","Margin Of Error","Estimate","Margin Of Error","Estimate","Margin Of Error"]
[null,"Total:",38.200000000000003,4.3,35.6,1,20.7,0.2,41.5,3.5,45,3.2,37.6,4,40.9,3.3,38.4,3.9,44.5,3.3,42.6,1,38.799999999999997,2.2000000000000002,34.299999999999997,2.2999999999999998,43,4.5999999999999996]
[null,"Male:",40.299999999999997,4.3,34.799999999999997,1.2,21,0.5,41,7.7,45,5.5,34.799999999999997,10.9,40.299999999999997,5.0999999999999996,36.9,3,44.8,4.5999999999999996,40.200000000000003,1.8,37.6,7.5,32.700000000000003,2.2999999999999998,40.9,5.5]
[null,"Female:",36.9,3.8,36.299999999999997,1.2,20.5,0.3,42.5,5.6,45.1,4.2,39,2.7,42,4.0999999999999996,41.2,5.3,43.9,3.7,44,1.1000000000000001,39.700000000000003,4.5,36.299999999999997,3.6,43.7,5.0999999999999996]

{"sheet":"ACS_Tbl_B11001_B11002_B25010","index":18,"n_rows":202,"n_cols":28,"rows_kept":202,"cut":false,"hidden":true,"merged":[]}
[null,"B11001. HOUSEHOLD TYPE (INCLUDING LIVING ALONE)"]
[null,"Universe:  HOUSEHOLDS"]
[null,"Data Set: 2018-2022 American Community Survey 5-Year Estimates"]
[]
[null,null,"Barrington",null,"Dover",null,"Durham",null,"Farmington",null,"Lee",null,"Madbury",null,"Middleton",null,"Milton",null,"New Durham",null,"Rochester",null,"Rollinsford",null,"Somersworth",null,"Strafford"]
[null,null,"Estimate","Margin Of Error","Estimate","Margin Of Error","Estimate","Margin Of Error","Estimate","Margin Of Error","Estimate","Margin Of Error","Estimate","Margin Of Error","Estimate","Margin Of Error","Estimate","Margin Of Error","Estimate","Margin Of Error","Estimate","Margin Of Error","Estimate","Margin Of Error","Estimate","Margin Of Error","Estimate","Margin Of Error"]
[null,"Total:",3401,227,14606,524,3000,226,2911,264,1839,183,688,80,556,90,1664,125,1004,107,13542,419,1070,112,5232,318,1440,98]
[null,"Family households:",2585,210,8060,470,1594,194,1960,213,1316,136,572,77,403,80,1153,126,731,75,8270,414,685,78,3046,281,1248,82]
[null,"Married-couple family",2008,232,6547,463,1386,189,1510,257,1225,167,473,83,346,74,962,132,632,92,6259,411,515,77,2258,336,1136,103]
[null,"Other family:",577,213,1513,320,208,118,450,186,91,74,99,50,57,26,191,112,99,62,2011,307,170,75,788,229,112,68]
[null,"Male householder, no wife present",263,152,537,208,71,51,292,155,0,12,28,20,21,17,89,60,55,57,639,154,91,58,222,125,52,45]
[null,"Female householder, no husband present",314,131,976,265,137,110,158,105,91,74,71,45,36,19,102,81,44,24,1372,266,79,45,566,188,60,44]
[null,"Nonfamily households:",816,195,6546,625,1406,196,951,252,523,216,116,38,153,37,511,143,273,96,5272,560,385,108,2186,380,192,85]
[null,"Householder living alone",607,206,4682,619,797,196,756,236,494,210,65,25,95,29,306,112,189,74,4062,471,310,100,1692,382,119,66]
[null,"Householder not living alone",209,110,1864,302,609,160,195,122,29,41,51,34,58,28,205,102,84,60,1210,303,75,39,494,172,73,46]
[]
[]
[]
[]
[]
[]
[]
[]
[]
[]
[]
[]
[]
[]
[]
[]
[]
[null,"B11002. HOUSEHOLD TYPE BY RELATIVES AND NONRELATIVES FOR POPULATION IN HOUSEHOLDS "]
[null,"Universe:  POPULATION IN HOUSEHOLDS"]
[null,"Data Set: 2018-2022 American Community Survey 5-Year Estimates"]
[null,null,null,null,null,null,null,null,null,null,null,{"$f":"IF(F36=\"-\",\"\",IF(I36=\"-\",\"\",(I36-F36)/F36))","v":{"$error":"#DIV/0!"}}]
[null,null,"Barrington",null,"Dover",null,"Durham",null,"Farmington",null,"Lee",null,"Madbury",null,"Middleton",null,"Milton",null,"New Durham",null,"Rochester",null,"Rollinsford",null,"Somersworth",null,"Strafford"]
[null,null,"Estimate","Margin Of Error","Estimate","Margin Of Error","Estimate","Margin Of Error","Estimate","Margin Of Error","Estimate","Margin Of Error","Estimate","Margin Of Error","Estimate","Margin Of Error","Estimate","Margin Of Error","Estimate","Margin Of Error","Estimate","Margin Of Error","Estimate","Margin Of Error","Estimate","Margin Of Error","Estimate","Margin Of Error"]
[null,"Total:",9339,19,31867,36,7888,186,6749,21,4532,16,2208,278,1537,276,4492,19,2711,17,32338,27,2597,24,11980,21,4251,27]
[null,"In family households:",8286,255,22424,875,4908,531,5598,323,3977,232,2030,282,1326,276,3632,356,2383,115,25345,855,2105,136,8940,557,3992,115]
[null,"In married-couple family:",6607,738,18141,902,4350,563,4178,553,3639,365,1687,307,1110,257,3043,439,1990,270,18864,1245,1599,223,6284,876,3621,247]
[null,"Relatives",6500,728,17961,905,4306,560,4178,553,3605,368,1668,306,1080,244,2971,423,1927,266,18279,1213,1599,223,6173,875,3594,252]
[null,"Nonrelatives",107,78,180,113,44,42,0,17,34,39,19,22,30,27,72,63,63,63,585,270,0,12,111,119,27,33]
[null,"In male householder, no wife present, family:",646,354,1520,572,214,159,1015,500,0,12,78,50,90,75,281,186,219,245,1924,467,262,161,724,429,154,135]
[null,"Relatives",605,324,1386,513,200,144,742,325,0,12,71,46,73,59,255,176,203,243,1623,374,223,130,529,312,128,101]
[null,"Nonrelatives",41,64,134,97,14,21,273,248,0,12,7,9,17,20,26,25,16,27,301,131,39,41,195,177,26,42]
[null,"In female householder, no husband present, family:",1033,533,2763,822,344,231,405,265,338,268,265,159,126,71,308,247,174,112,4557,897,244,124,1932,648,217,177]
[null,"Relatives",956,504,2544,776,337,230,378,261,275,210,252,150,110,59,295,245,147,88,4171,824,221,113,1633,544,217,177]
[null,"Nonrelatives",77,84,219,145,7,11,27,49,63,66,13,18,16,17,13,20,27,27,386,210,23,21,299,191,0,12]
[null,"In nonfamily households",1053,256,9443,874,2980,518,1151,322,555,231,178,68,211,57,860,356,328,115,6993,858,492,134,3040,559,259,114]
[]
[]
[]
[null,"Calculated Average  Household Size by Household Type"]
[null,"Universe:  POPULATION IN HOUSEHOLDS"]
[null,"Data Set: 2018-2022 American Community Survey 5-Year Estimates"]
[]
[null,null,"Barrington",null,"Dover",null,"Durham",null,"Farmington",null,"Lee",null,"Madbury",null,"Middleton",null,"Milton",null,"New Durham",null,"Rochester",null,"Rollinsford",null,"Somersworth",null,"Strafford"]
[null,null,"Estimate","Margin Of Error","Estimate","Margin Of Error","Estimate","Margin Of Error","Estimate","Margin Of Error","Estimate","Margin Of Error","Estimate","Margin Of Error","Estimate","Margin Of Error","Estimate","Margin Of Error","Estimate","Margin Of Error","Estimate","Margin Of Error","Estimate","Margin Of Error","Estimate","Margin Of Error","Estimate","Margin Of Error"]
[null,"Total:",{"$f":"C39/C7","v":2.7459570714495736},{"$f":"D73","v":0.19},{"$f":"E39/E7","v":2.181774613172669},{"$f":"(SQRT((F$39^2)+((E$39^2)/(E$7^2))*(F$7^2)))/E$7","v":7.8311417368013808E-2},{"$f":"G39/G7","v":2.6293333333333333},{"$f":"(SQRT((H$39^2)+((G$39^2)/(G$7^2))*(H$7^2)))/G$7","v":0.20755307235440548},{"$f":"I39/I7","v":2.3184472689797322},{"$f":"(SQRT((J$39^2)+((I$39^2)/(I$7^2))*(J$7^2)))/I$7","v":0.21038482511842627},{"$f":"K39/K7","v":2.4643828167482327},{"$f":"(SQRT((L$39^2)+((K$39^2)/(K$7^2))*(L$7^2)))/K$7","v":0.2453865096513109},{"$f":"M39/M7","v":3.2093023255813953},{"$f":"(SQRT((N$39^2)+((M$39^2)/(M$7^2))*(N$7^2)))/M$7","v":0.55002884059520762},{"$f":"O39/O7","v":2.764388489208633},{"$f":"(SQRT((P$39^2)+((O$39^2)/(O$7^2))*(P$7^2)))/O$7","v":0.66831718826561504},{"$f":"Q39/Q7","v":2.6995192307692308},{"$f":"(SQRT((R$39^2)+((Q$39^2)/(Q$7^2))*(R$7^2)))/Q$7","v":0.20310960974114262},{"$f":"S39/S7","v":2.700199203187251},{"$f":"(SQRT((T$39^2)+((S$39^2)/(S$7^2))*(T$7^2)))/S$7","v":0.28826794699209313},{"$f":"U39/U7","v":2.3879781420765029},{"$f":"(SQRT((V$39^2)+((U$39^2)/(U$7^2))*(V$7^2)))/U$7","v":7.3912795022579733E-2},{"$f":"W39/W7","v":2.4271028037383178},{"$f":"(SQRT((X$39^2)+((W$39^2)/(W$7^2))*(X$7^2)))/W$7","v":0.25504011368325519},{"$f":"Y39/Y7","v":2.2897553516819573},{"$f":"(SQRT((Z$39^2)+((Y$39^2)/(Y$7^2))*(Z$7^2)))/Y$7","v":0.13922877759062535},{"$f":"AA39/AA7","v":2.9520833333333334},{"$f":"(SQRT((AB$39^2)+((AA$39^2)/(AA$7^2))*(AB$7^2)))/AA$7","v":0.20177871854835303}]
[null,"In family households:",{"$f":"C40/C8","v":3.2054158607350098},{"$f":"(SQRT((D$40^2)+((C$40^2)/(C$8^2))*(D$8^2)))/C$8","v":0.27845981978334372},{"$f":"E40/E8","v":2.782133995037221},{"$f":"(SQRT((F$40^2)+((E$40^2)/(E$8^2))*(F$8^2)))/E$8","v":0.1952055160100048},{"$f":"G40/G8","v":3.0790464240903388},{"$f":"(SQRT((H$40^2)+((G$40^2)/(G$8^2))*(H$8^2)))/G$8","v":0.50139959154651714},{"$f":"I40/I8","v":2.8561224489795918},{"$f":"(SQRT((J$40^2)+((I$40^2)/(I$8^2))*(J$8^2)))/I$8","v":0.35142051556307646},{"$f":"K40/K8","v":3.0220364741641337},{"$f":"(SQRT((L$40^2)+((K$40^2)/(K$8^2))*(L$8^2)))/K$8","v":0.35862920798477049},{"$f":"M40/M8","v":3.5489510489510487},{"$f":"(SQRT((N$40^2)+((M$40^2)/(M$8^2))*(N$8^2)))/M$8","v":0.68650903953884557},{"$f":"O40/O8","v":3.2903225806451615},{"$f":"(SQRT((P$40^2)+((O$40^2)/(O$8^2))*(P$8^2)))/O$8","v":0.94639504052026369},{"$f":"Q40/Q8","v":3.1500433651344317},{"$f":"(SQRT((R$40^2)+((Q$40^2)/(Q$8^2))*(R$8^2)))/Q$8","v":0.46241952924390806},{"$f":"S40/S8","v":3.2599179206566347},{"$f":"(SQRT((T$40^2)+((S$40^2)/(S$8^2))*(T$8^2)))/S$8","v":0.36961595976120343},{"$f":"U40/U8","v":3.0646916565900848},{"$f":"(SQRT((V$40^2)+((U$40^2)/(U$8^2))*(V$8^2)))/U$8","v":0.18500342369124032},{"$f":"W40/W8","v":3.0729927007299271},{"$f":"(SQRT((X$40^2)+((W$40^2)/(W$8^2))*(X$8^2)))/W$8","v":0.40231876453882837},{"$f":"Y40/Y8","v":2.9349967170059093},{"$f":"(SQRT((Z$40^2)+((Y$40^2)/(Y$8^2))*(Z$8^2)))/Y$8","v":0.32672559383475452},{"$f":"AA40/AA8","v":3.1987179487179489},{"$f":"(SQRT((AB$40^2)+((AA$40^2)/(AA$8^2))*(AB$8^2)))/AA$8","v":0.2294852766720733}]
[null,"In nonfamily households",{"$f":"C50/C13","v":1.2904411764705883},{"$f":"(SQRT((D$50^2)+((C$50^2)/(C$13^2))*(D$13^2)))/C$13","v":0.43990948807924518},{"$f":"E50/E13","v":1.4425603421937061},{"$f":"(SQRT((F$50^2)+((E$50^2)/(E$13^2))*(F$13^2)))/E$13","v":0.19182563779039025},{"$f":"G50/G13","v":2.119487908961593},{"$f":"(SQRT((H$50^2)+((G$50^2)/(G$13^2))*(H$13^2)))/G$13","v":0.47226252223587617},{"$f":"I50/I13","v":1.2103049421661409},{"$f":"(SQRT((J$50^2)+((I$50^2)/(I$13^2))*(J$13^2)))/I$13","v":0.46636878458249981},{"$f":"K50/K13","v":1.0611854684512427},{"$f":"(SQRT((L$50^2)+((K$50^2)/(K$13^2))*(L$13^2)))/K$13","v":0.62222627633124017},{"$f":"M50/M13","v":1.5344827586206897},{"$f":"(SQRT((N$50^2)+((M$50^2)/(M$13^2))*(N$13^2)))/M$13","v":0.77221827853408198},{"$f":"O50/O13","v":1.3790849673202614},{"$f":"(SQRT((P$50^2)+((O$50^2)/(O$13^2))*(P$13^2)))/O$13","v":0.50001782830210417},{"$f":"Q50/Q13","v":1.6829745596868884},{"$f":"(SQRT((R$50^2)+((Q$50^2)/(Q$13^2))*(R$13^2)))/Q$13","v":0.84093145180805884},{"$f":"S50/S13","v":1.2014652014652014},{"$f":"(SQRT((T$50^2)+((S$50^2)/(S$13^2))*(T$13^2)))/S$13","v":0.59661399387441461},{"$f":"U50/U13","v":1.3264415781487102},{"$f":"(SQRT((V$50^2)+((U$50^2)/(U$13^2))*(V$13^2)))/U$13","v":0.21526338494588093},{"$f":"W50/W13","v":1.2779220779220779},{"$f":"(SQRT((X$50^2)+((W$50^2)/(W$13^2))*(X$13^2)))/W$13","v":0.49964940679650083},{"$f":"Y50/Y13","v":1.3906678865507778},{"$f":"(SQRT((Z$50^2)+((Y$50^2)/(Y$13^2))*(Z$13^2)))/Y$13","v":0.35189810358355045},{"$f":"AA50/AA13","v":1.3489583333333333},{"$f":"(SQRT((AB$50^2)+((AA$50^2)/(AA$13^2))*(AB$13^2)))/AA$13","v":0.84212887646289936}]
[]
[]
[]
[null,"B25010. AVERAGE HOUSEHOLD SIZE OF OCCUPIED HOUSING UNITS BY TENURE"]
[null,"Universe:  OCCUPIED HOUSING UNITS"]
[null,"Data Set: 2018-2022 American Community Survey 5-Year Estimates"]
[]
[null,null,"Barrington",null,"Dover",null,"Durham",null,"Farmington",null,"Lee",null,"Madbury",null,"Middleton",null,"Milton",null,"New Durham",null,"Rochester",null,"Rollinsford",null,"Somersworth",null,"Strafford"]
[null,null,"Estimate","Margin Of Error","Estimate","Margin Of Error","Estimate","Margin Of Error","Estimate","Margin Of Error","Estimate","Margin Of Error","Estimate","Margin Of Error","Estimate","Margin Of Error","Estimate","Margin Of Error","Estimate","Margin Of Error","Estimate","Margin Of Error","Estimate","Margin Of Error","Estimate","Margin Of Error","Estimate","Margin Of Error"]
[null,"Average household size --"]
[null,"Total:",2.75,0.19,2.1800000000000002,0.08,2.63,0.19,2.3199999999999998,0.21,2.46,0.25,3.21,0.28999999999999998,2.76,0.27,2.7,0.2,2.7,0.28999999999999998,2.39,7.0000000000000007E-2,2.4300000000000002,0.25,2.29,0.14000000000000001,2.95,0.2]
[null,"Owner occupied",2.82,0.22,2.42,0.1,2.66,0.22,2.5499999999999998,0.32,2.61,0.28999999999999998,3.28,0.33,2.78,0.28999999999999998,2.83,0.22,2.81,0.31,2.4300000000000002,0.1,2.52,0.27,2.4700000000000002,0.16,3.03,0.2]
[null,"Renter occupied",2.06,0.43,1.92,0.13,2.57,0.37,1.79,0.28000000000000003,"-","**",2.92,0.7,2.5,0.67,1.8,0.46,1.67,0.23,2.2999999999999998,0.17,2.04,0.57999999999999996,1.96,0.28000000000000003,1.91,0.59]
[]
[]
[]
[]
[]
[]
[null,"B11001. HOUSEHOLD TYPE (INCLUDING LIVING ALONE)"]
[null,"Universe:  HOUSEHOLDS"]
[null,"Data Set: 2013-2017 American Community Survey 5-Year Estimates"]
[]
[null,null,"Barrington",null,"Dover",null,"Durham",null,"Farmington",null,"Lee",null,"Madbury",null,"Middleton",null,"Milton",null,"New Durham",null,"Rochester",null,"Rollinsford",null,"Somersworth",null,"Strafford"]
[null,null,"Estimate","Margin Of Error","Estimate","Margin Of Error","Estimate","Margin Of Error","Estimate","Margin Of Error","Estimate","Margin Of Error","Estimate","Margin Of Error","Estimate","Margin Of Error","Estimate","Margin Of Error","Estimate","Margin Of Error","Estimate","Margin Of Error","Estimate","Margin Of Error","Estimate","Margin Of Error","Estimate","Margin Of Error"]
[null,"Total:",3388,209,13194,359,3325,237,2719,176,1752,139,621,60,595,70,1732,107,995,58,12837,353,1048,57,4905,237,1432,100]
[null,"Family households:",2379,179,7487,362,1814,164,1784,167,1231,148,531,46,444,52,1377,94,782,58,7943,369,729,60,3623,228,1141,85]
[null,"Married-couple family",2089,226,5689,328,1616,169,1517,191,1021,174,462,44,344,56,1097,114,690,62,6079,344,641,68,2610,254,983,103]
[null,"Other family:",290,161,1798,340,198,76,267,129,210,124,69,27,100,31,280,95,92,35,1864,266,88,41,1013,205,158,80]
[null,"Male householder, no wife present",47,70,533,182,86,60,163,116,40,44,24,15,40,23,141,68,28,21,768,206,29,27,321,133,73,67]
[null,"Female householder, no husband present",243,139,1265,273,112,49,104,74,170,117,45,23,60,28,139,68,64,26,1096,190,59,34,692,204,85,44]
[null,"Nonfamily households:",1009,257,5707,514,1511,189,935,260,521,198,90,37,151,43,355,100,213,61,4894,520,319,68,1282,277,291,96]
[null,"Householder living alone",737,220,3837,444,735,146,692,223,346,181,68,34,109,37,298,97,166,60,3543,460,263,65,1071,264,237,94]
[null,"Householder not living alone",272,143,1870,304,776,135,243,167,175,142,22,16,42,21,57,35,47,30,1351,327,56,39,211,118,54,34]
[]
[]
[]
[]
[]
[]
[]
[]
[]
[]
[]
[]
[]
[]
[]
[]
[]
[null,"B11002. HOUSEHOLD TYPE BY RELATIVES AND NONRELATIVES FOR POPULATION IN HOUSEHOLDS "]
[null,"Universe:  POPULATION IN HOUSEHOLDS"]
[null,"Data Set: 2013-2017 American Community Survey 5-Year Estimates"]
[]
[null,null,"Barrington",null,"Dover",null,"Durham",null,"Farmington",null,"Lee",null,"Madbury",null,"Middleton",null,"Milton",null,"New Durham",null,"Rochester",null,"Rollinsford",null,"Somersworth",null,"Strafford"]
[null,null,"Estimate","Margin Of Error","Estimate","Margin Of Error","Estimate","Margin Of Error","Estimate","Margin Of Error","Estimate","Margin Of Error","Estimate","Margin Of Error","Estimate","Margin Of Error","Estimate","Margin Of Error","Estimate","Margin Of Error","Estimate","Margin Of Error","Estimate","Margin Of Error","Estimate","Margin Of Error","Estimate","Margin Of Error"]
[null,"Total:",8841,20,29990,267,8461,444,6834,16,4361,20,1906,157,1687,154,4597,17,2663,22,30027,56,2529,20,11783,33,4052,19]
[null,"In family households:",7489,375,21962,804,5332,445,5550,439,3592,368,1787,161,1490,150,4177,118,2371,100,23734,747,2145,92,10294,336,3700,115]
[null,"In married-couple family:",6636,588,16694,997,4636,456,4657,527,3048,474,1608,175,1067,171,3325,329,2102,136,17960,964,1889,143,7563,623,3101,266]
[null,"Relatives",6588,588,16654,996,4632,456,4606,525,3019,474,1579,174,1058,168,3269,334,2090,134,17916,968,1880,142,7533,616,3101,266]
[null,"Nonrelatives",48,56,40,44,4,6,51,67,29,24,29,20,9,13,56,59,12,13,44,42,9,10,30,42,0,11]
[null,"In male householder, no wife present, family:",93,136,1421,479,318,257,506,368,97,106,60,36,181,121,446,233,77,57,2438,632,105,90,856,367,238,208]
[null,"Relatives",84,123,1314,469,300,252,441,326,97,106,56,33,151,110,424,224,63,47,1921,503,64,56,734,314,197,164]
[null,"Nonrelatives",9,26,107,57,18,20,65,78,0,11,4,6,30,21,22,25,14,14,517,181,41,36,122,82,41,51]
[null,"In female householder, no husband present, family:",760,449,3847,811,378,198,387,300,447,287,119,57,242,121,406,209,192,81,3336,645,151,89,1875,522,361,192]
[null,"Relatives",687,419,3499,774,351,186,349,284,447,287,113,56,207,103,385,202,192,81,2877,493,131,74,1724,499,305,170]
[null,"Nonrelatives",73,77,348,138,27,26,38,65,0,11,6,7,35,24,21,29,0,11,459,260,20,22,151,81,56,35]
[null,"In nonfamily households",1352,377,8028,794,3129,423,1284,438,769,367,119,50,197,58,420,119,292,97,6293,737,384,90,1489,335,352,112]
[]
[]
[]
[null,"Calculated Average  Household Size by Household Type"]
[null,"Universe:  POPULATION IN HOUSEHOLDS"]
[null,"Data Set: 2013-2017 American Community Survey 5-Year Estimates"]
[]
[null,null,"Barrington",null,"Dover",null,"Durham",null,"Farmington",null,"Lee",null,"Madbury",null,"Middleton",null,"Milton",null,"New Durham",null,"Rochester",null,"Rollinsford",null,"Somersworth",null,"Strafford"]
[null,null,"Estimate","Margin Of Error","Estimate","Margin Of Error","Estimate","Margin Of Error","Estimate","Margin Of Error","Estimate","Margin Of Error","Estimate","Margin Of Error","Estimate","Margin Of Error","Estimate","Margin Of Error","Estimate","Margin Of Error","Estimate","Margin Of Error","Estimate","Margin Of Error","Estimate","Margin Of Error","Estimate","Margin Of Error"]
[null,"Total:",{"$f":"C120/C88","v":2.6095041322314048},{"$f":"D154","v":0.16},{"$f":"E120/E88","v":2.2730028800970139},{"$f":"(SQRT((F$39^2)+((E$39^2)/(E$7^2))*(F$7^2)))/E$7","v":7.8311417368013808E-2},{"$f":"G120/G88","v":2.5446616541353384},{"$f":"(SQRT((H$39^2)+((G$39^2)/(G$7^2))*(H$7^2)))/G$7","v":0.20755307235440548},{"$f":"I120/I88","v":2.5134240529606471},{"$f":"(SQRT((J$39^2)+((I$39^2)/(I$7^2))*(J$7^2)))/I$7","v":0.21038482511842627},{"$f":"K120/K88","v":2.4891552511415527},{"$f":"(SQRT((L$39^2)+((K$39^2)/(K$7^2))*(L$7^2)))/K$7","v":0.2453865096513109},{"$f":"M120/M88","v":3.0692431561996778},{"$f":"(SQRT((N$39^2)+((M$39^2)/(M$7^2))*(N$7^2)))/M$7","v":0.55002884059520762},{"$f":"O120/O88","v":2.835294117647059},{"$f":"(SQRT((P$39^2)+((O$39^2)/(O$7^2))*(P$7^2)))/O$7","v":0.66831718826561504},{"$f":"Q120/Q88","v":2.6541570438799078},{"$f":"(SQRT((R$39^2)+((Q$39^2)/(Q$7^2))*(R$7^2)))/Q$7","v":0.20310960974114262},{"$f":"S120/S88","v":2.6763819095477386},{"$f":"(SQRT((T$39^2)+((S$39^2)/(S$7^2))*(T$7^2)))/S$7","v":0.28826794699209313},{"$f":"U120/U88","v":2.3390979200747837},{"$f":"(SQRT((V$39^2)+((U$39^2)/(U$7^2))*(V$7^2)))/U$7","v":7.3912795022579733E-2},{"$f":"W120/W88","v":2.4131679389312977},{"$f":"(SQRT((X$39^2)+((W$39^2)/(W$7^2))*(X$7^2)))/W$7","v":0.25504011368325519},{"$f":"Y120/Y88","v":2.4022426095820593},{"$f":"(SQRT((Z$39^2)+((Y$39^2)/(Y$7^2))*(Z$7^2)))/Y$7","v":0.13922877759062535},{"$f":"AA120/AA88","v":2.8296089385474859},{"$f":"(SQRT((AB$39^2)+((AA$39^2)/(AA$7^2))*(AB$7^2)))/AA$7","v":0.20177871854835303}]
[null,"In family households:",{"$f":"C121/C89","v":3.1479613282891972},{"$f":"(SQRT((D$40^2)+((C$40^2)/(C$8^2))*(D$8^2)))/C$8","v":0.27845981978334372},{"$f":"E121/E89","v":2.9333511419794309},{"$f":"(SQRT((F$40^2)+((E$40^2)/(E$8^2))*(F$8^2)))/E$8","v":0.1952055160100048},{"$f":"G121/G89","v":2.9393605292171996},{"$f":"(SQRT((H$40^2)+((G$40^2)/(G$8^2))*(H$8^2)))/G$8","v":0.50139959154651714},{"$f":"I121/I89","v":3.1109865470852016},{"$f":"(SQRT((J$40^2)+((I$40^2)/(I$8^2))*(J$8^2)))/I$8","v":0.35142051556307646},{"$f":"K121/K89","v":2.917952883834281},{"$f":"(SQRT((L$40^2)+((K$40^2)/(K$8^2))*(L$8^2)))/K$8","v":0.35862920798477049},{"$f":"M121/M89","v":3.3653483992467041},{"$f":"(SQRT((N$40^2)+((M$40^2)/(M$8^2))*(N$8^2)))/M$8","v":0.68650903953884557},{"$f":"O121/O89","v":3.355855855855856},{"$f":"(SQRT((P$40^2)+((O$40^2)/(O$8^2))*(P$8^2)))/O$8","v":0.94639504052026369},{"$f":"Q121/Q89","v":3.0334059549745822},{"$f":"(SQRT((R$40^2)+((Q$40^2)/(Q$8^2))*(R$8^2)))/Q$8","v":0.46241952924390806},{"$f":"S121/S89","v":3.0319693094629154},{"$f":"(SQRT((T$40^2)+((S$40^2)/(S$8^2))*(T$8^2)))/S$8","v":0.36961595976120343},{"$f":"U121/U89","v":2.9880397834571322},{"$f":"(SQRT((V$40^2)+((U$40^2)/(U$8^2))*(V$8^2)))/U$8","v":0.18500342369124032},{"$f":"W121/W89","v":2.9423868312757202},{"$f":"(SQRT((X$40^2)+((W$40^2)/(W$8^2))*(X$8^2)))/W$8","v":0.40231876453882837},{"$f":"Y121/Y89","v":2.8412917471708528},{"$f":"(SQRT((Z$40^2)+((Y$40^2)/(Y$8^2))*(Z$8^2)))/Y$8","v":0.32672559383475452},{"$f":"AA121/AA89","v":3.2427695004382122},{"$f":"(SQRT((AB$40^2)+((AA$40^2)/(AA$8^2))*(AB$8^2)))/AA$8","v":0.2294852766720733}]
[null,"In nonfamily households",{"$f":"C131/C94","v":1.3399405351833498},{"$f":"(SQRT((D$50^2)+((C$50^2)/(C$13^2))*(D$13^2)))/C$13","v":0.43990948807924518},{"$f":"E131/E94","v":1.4066935342561766},{"$f":"(SQRT((F$50^2)+((E$50^2)/(E$13^2))*(F$13^2)))/E$13","v":0.19182563779039025},{"$f":"G131/G94","v":2.0708140304434148},{"$f":"(SQRT((H$50^2)+((G$50^2)/(G$13^2))*(H$13^2)))/G$13","v":0.47226252223587617},{"$f":"I131/I94","v":1.3732620320855615},{"$f":"(SQRT((J$50^2)+((I$50^2)/(I$13^2))*(J$13^2)))/I$13","v":0.46636878458249981},{"$f":"K131/K94","v":1.4760076775431861},{"$f":"(SQRT((L$50^2)+((K$50^2)/(K$13^2))*(L$13^2)))/K$13","v":0.62222627633124017},{"$f":"M131/M94","v":1.3222222222222222},{"$f":"(SQRT((N$50^2)+((M$50^2)/(M$13^2))*(N$13^2)))/M$13","v":0.77221827853408198},{"$f":"O131/O94","v":1.304635761589404},{"$f":"(SQRT((P$50^2)+((O$50^2)/(O$13^2))*(P$13^2)))/O$13","v":0.50001782830210417},{"$f":"Q131/Q94","v":1.1830985915492958},{"$f":"(SQRT((R$50^2)+((Q$50^2)/(Q$13^2))*(R$13^2)))/Q$13","v":0.84093145180805884},{"$f":"S131/S94","v":1.3708920187793427},{"$f":"(SQRT((T$50^2)+((S$50^2)/(S$13^2))*(T$13^2)))/S$13","v":0.59661399387441461},{"$f":"U131/U94","v":1.2858602370249286},{"$f":"(SQRT((V$50^2)+((U$50^2)/(U$13^2))*(V$13^2)))/U$13","v":0.21526338494588093},{"$f":"W131/W94","v":1.2037617554858935},{"$f":"(SQRT((X$50^2)+((W$50^2)/(W$13^2))*(X$13^2)))/W$13","v":0.49964940679650083},{"$f":"Y131/Y94","v":1.1614664586583463},{"$f":"(SQRT((Z$50^2)+((Y$50^2)/(Y$13^2))*(Z$13^2)))/Y$13","v":0.35189810358355045},{"$f":"AA131/AA94","v":1.2096219931271477},{"$f":"(SQRT((AB$50^2)+((AA$50^2)/(AA$13^2))*(AB$13^2)))/AA$13","v":0.84212887646289936}]
[]
[]
[]
[null,"B25010. AVERAGE HOUSEHOLD SIZE OF OCCUPIED HOUSING UNITS BY TENURE"]
[null,"Universe:  OCCUPIED HOUSING UNITS"]
[null,"Data Set: 2013-2017 American Community Survey 5-Year Estimates"]
[]
[null,null,"Barrington",null,"Dover",null,"Durham",null,"Farmington",null,"Lee",null,"Madbury",null,"Middleton",null,"Milton",null,"New Durham",null,"Rochester",null,"Rollinsford",null,"Somersworth",null,"Strafford"]
[null,null,"Estimate","Margin Of Error","Estimate","Margin Of Error","Estimate","Margin Of Error","Estimate","Margin Of Error","Estimate","Margin Of Error","Estimate","Margin Of Error","Estimate","Margin Of Error","Estimate","Margin Of Error","Estimate","Margin Of Error","Estimate","Margin Of Error","Estimate","Margin Of Error","Estimate","Margin Of Error","Estimate","Margin Of Error"]
[null,"Average household size --"]
[null,"Total:",2.61,0.16,2.27,0.06,2.54,0.12,2.5099999999999998,0.16,2.4900000000000002,0.2,3.07,0.25,2.84,0.27,2.65,0.15,2.68,0.16,2.34,0.06,2.41,0.13,2.4,0.12,2.83,0.2]
[null,"Owner occupied",2.64,0.18,2.4500000000000002,0.1,2.61,0.11,2.71,0.17,2.62,0.21,3.11,0.26,2.73,0.26,2.7,0.18,2.76,0.16,2.37,0.08,2.61,0.18,2.61,0.15,2.94,0.21]
[null,"Renter occupied",2.21,0.73,2.08,0.1,2.4700000000000002,0.26,2.1,0.32,1.84,0.48,2.83,0.68,3.41,0.85,2.36,0.62,1.64,0.66,2.2799999999999998,0.13,1.89,0.23,2.13,0.18,1.84,0.77]
[]
[]
[]
[]
[]
[]
[null,"B11001. HOUSEHOLD TYPE (INCLUDING LIVING ALONE)"]
[null,"Universe:  HOUSEHOLDS"]
[null,"Data Set: 2008-2012 American Community Survey 5-Year Estimates"]
[]
[null,null,"Barrington",null,"Dover",null,"Durham",null,"Farmington",null,"Lee",null,"Madbury",null,"Middleton",null,"Milton",null,"New Durham",null,"Rochester",null,"Rollinsford",null,"Somersworth",null,"Strafford"]
[null,null,"Estimate","Margin Of Error","Estimate","Margin Of Error","Estimate","Margin Of Error","Estimate","Margin Of Error","Estimate","Margin Of Error","Estimate","Margin Of Error","Estimate","Margin Of Error","Estimate","Margin Of Error","Estimate","Margin Of Error","Estimate","Margin Of Error","Estimate","Margin Of Error","Estimate","Margin Of Error","Estimate","Margin Of Error"]
[null,"Total:",8588,19,29015,325,8433,731,6754,29,4318,24,2017,164,1532,166,4564,47,2624,22,29577,64,2540,18,11754,36,3986,18]
[null,"Family households:",7828,244,21607,747,6075,600,5733,285,3537,226,1666,210,1345,173,4022,200,2321,104,23065,742,2179,93,9590,444,3746,100]
[null,"Married-couple family",6534,584,16058,952,5431,574,4303,533,3152,282,1507,195,1065,169,2908,360,2121,153,16370,1023,1710,148,7540,652,3286,320]
[null,"Other family:",6442,569,15999,938,5402,574,4194,506,3135,284,1504,194,1062,169,2817,324,2109,151,16231,1008,1710,148,7387,668,3264,319]
[null,"Male householder, no wife present",92,78,59,64,29,30,109,97,17,26,3,5,3,4,91,115,12,14,139,95,0,11,153,110,22,32]
[null,"Female householder, no husband present",219,161,1550,490,112,117,491,299,91,101,13,11,131,70,697,304,87,74,1852,634,41,41,462,264,206,172]
[null,"Nonfamily households:",174,127,1326,407,89,89,448,272,80,93,13,11,100,50,549,239,70,58,1595,538,36,37,420,258,181,153]
[null,"Householder living alone",45,43,224,131,23,33,43,58,11,16,0,11,31,23,148,70,17,21,257,129,5,8,42,41,25,34]
[null,"Householder not living alone",1075,543,3999,785,532,225,939,481,294,177,146,98,149,69,417,198,113,91,4843,868,428,151,1588,515,254,234]
[null,null,977,524,3686,685,512,212,865,435,271,159,111,69,130,55,389,188,113,91,4243,705,391,135,1423,443,223,191]
[]
[]
[null,"Calculated Average  Household Size by Household Type"]
[null,"Universe:  POPULATION IN HOUSEHOLDS"]
[null,"Data Set: 2008-2012 American Community Survey 5-Year Estimates"]
[]
[null,null,"Barrington",null,"Dover",null,"Durham",null,"Farmington",null,"Lee",null,"Madbury",null,"Middleton",null,"Milton",null,"New Durham",null,"Rochester",null,"Rollinsford",null,"Somersworth",null,"Strafford"]
[null,null,"Estimate","Margin Of Error","Estimate","Margin Of Error","Estimate","Margin Of Error","Estimate","Margin Of Error","Estimate","Margin Of Error","Estimate","Margin Of Error","Estimate","Margin Of Error","Estimate","Margin Of Error","Estimate","Margin Of Error","Estimate","Margin Of Error","Estimate","Margin Of Error","Estimate","Margin Of Error","Estimate","Margin Of Error"]
[null,"Total:",{"$f":"C200","v":2.88},0.19,2.3199999999999998,0.06,2.5299999999999998,0.13,2.5499999999999998,0.18,2.44,0.2,3.07,0.27,2.58,0.18,2.75,0.23,2.75,0.17,2.3199999999999998,7.0000000000000007E-2,2.4900000000000002,0.19,2.58,0.13,2.89,0.19]
[null,"In family households:",{"$f":"C201","v":2.84},0.19,2.59,0.09,2.87,0.11,2.66,0.23,2.44,0.21,3.23,0.28999999999999998,2.59,0.19,2.79,0.23,2.77,0.19,2.42,0.09,2.7,0.21,2.68,0.15,2.88,0.18]
[null,"In nonfamily households",{"$f":"C202","v":3.07},0.96,2.0299999999999998,0.11,2.0099999999999998,0.23,2.3199999999999998,0.41,2.4,0.5,2.52,0.54,2.5499999999999998,0.67,2.48,0.43,2.58,0.57999999999999996,2.08,0.14000000000000001,1.89,0.31,2.46,0.24,3.07,0.84]
[]
[]
[]
[null,"B25010. AVERAGE HOUSEHOLD SIZE OF OCCUPIED HOUSING UNITS BY TENURE"]
[null,"Universe:  OCCUPIED HOUSING UNITS"]
[null,"Data Set: 2008-2012 American Community Survey 5-Year Estimates"]
[]
[null,null,"Barrington",null,"Dover",null,"Durham",null,"Farmington",null,"Lee",null,"Madbury",null,"Middleton",null,"Milton",null,"New Durham",null,"Rochester",null,"Rollinsford",null,"Somersworth",null,"Strafford"]
[null,null,"Estimate","Margin Of Error","Estimate","Margin Of Error","Estimate","Margin Of Error","Estimate","Margin Of Error","Estimate","Margin Of Error","Estimate","Margin Of Error","Estimate","Margin Of Error","Estimate","Margin Of Error","Estimate","Margin Of Error","Estimate","Margin Of Error","Estimate","Margin Of Error","Estimate","Margin Of Error","Estimate","Margin Of Error"]
[null,"Average household size --"]
[null,"Total:",2.88,0.19,2.3199999999999998,0.06,2.5299999999999998,0.13,2.5499999999999998,0.18,2.44,0.2,3.07,0.27,2.58,0.18,2.75,0.23,2.75,0.17,2.3199999999999998,7.0000000000000007E-2,2.4900000000000002,0.19,2.58,0.13,2.89,0.19]
[null,"Owner occupied",2.84,0.19,2.59,0.09,2.87,0.11,2.66,0.23,2.44,0.21,3.23,0.28999999999999998,2.59,0.19,2.79,0.23,2.77,0.19,2.42,0.09,2.7,0.21,2.68,0.15,2.88,0.18]
[null,"Renter occupied",3.07,0.96,2.0299999999999998,0.11,2.0099999999999998,0.23,2.3199999999999998,0.41,2.4,0.5,2.52,0.54,2.5499999999999998,0.67,2.48,0.43,2.58,0.57999999999999996,2.08,0.14000000000000001,1.89,0.31,2.46,0.24,3.07,0.84]

{"sheet":"ACS_Table_B19001","index":19,"n_rows":162,"n_cols":28,"rows_kept":162,"cut":false,"hidden":true,"merged":[]}
[null,"B19001. HOUSEHOLD INCOME IN THE PAST 12 MONTHS (IN 2022 INFLATION-ADJUSTED DOLLARS)",null,null,null,null,null,null,null,null,null,null,null,null,{"$f":"B1","v":"B19001. HOUSEHOLD INCOME IN THE PAST 12 MONTHS (IN 2022 INFLATION-ADJUSTED DOLLARS)"}]
[null,"Universe:  HOUSEHOLDS",null,null,null,null,null,null,null,null,null,null,null,null,{"$f":"B3","v":"Data Set: 2018-2022 American Community Survey 5-Year Estimates"}]
[null,"Data Set: 2018-2022 American Community Survey 5-Year Estimates"]
[]
[null,null,"Barrington",null,"Dover",null,"Durham",null,"Farmington",null,"Lee",null,"Madbury",null,"Middleton",null,"Milton",null,"New Durham",null,"Rochester",null,"Rollinsford",null,"Somersworth",null,"Strafford"]
[null,null,"Estimate","Margin Of Error","Estimate","Margin Of Error","Estimate","Margin Of Error","Estimate","Margin Of Error","Estimate","Margin Of Error","Estimate","Margin Of Error","Estimate","Margin Of Error","Estimate","Margin Of Error","Estimate","Margin Of Error","Estimate","Margin Of Error","Estimate","Margin Of Error","Estimate","Margin Of Error","Estimate","Margin Of Error"]
[null,"Total Households",3401,227,14606,524,3000,226,2911,264,1839,183,688,80,556,90,1664,125,1004,107,13542,419,1070,112,5232,318,1440,98]
[null,"Households With"]
[null,"Income Less than $10,000 ",37,42,330,132,231,111,191,109,51,80,13,12,5,5,37,30,45,34,431,173,48,42,98,81,30,25]
[null,"Income $10,000 to $14,999 ",77,99,565,207,160,84,250,156,0,12,0,12,6,7,25,28,20,13,692,285,20,24,183,135,30,38]
[null,"Income $15,000 to $19,999 ",11,18,390,177,68,66,34,44,0,12,3,5,18,19,26,34,4,6,524,180,19,27,106,92,5,9]
[null,"Income $20,000 to $24,999 ",64,60,243,128,54,46,34,36,42,48,6,6,19,13,71,47,24,19,550,150,61,79,235,215,0,12]
[null,"Income $25,000 to $29,999 ",97,60,391,217,56,51,158,103,29,31,6,7,9,8,86,70,22,14,572,189,56,38,227,175,9,13]
[null,"Income $30,000 to $34,999 ",222,141,657,242,56,36,133,96,0,12,8,10,13,10,25,28,36,30,580,251,19,23,111,88,34,23]
[null,"Income $35,000 to $39,999 ",175,131,491,218,74,46,0,17,44,52,9,12,3,5,60,50,15,12,413,152,9,10,131,76,30,29]
[null,"Income $40,000 to $44,999 ",8,12,629,251,139,100,283,255,17,26,6,7,31,21,26,25,9,9,397,232,11,11,209,98,28,25]
[null,"Income $45,000 to $49,999 ",185,117,265,111,47,35,182,126,82,80,5,8,31,23,15,17,17,12,454,169,28,29,153,126,41,27]
[null,"Income $50,000 to $59,999 ",193,93,838,205,182,125,160,155,106,129,11,10,36,19,212,106,62,44,889,236,63,31,421,184,60,37]
[null,"Income $60,000 to $74,999 ",244,140,1331,379,105,58,417,155,266,135,45,40,48,24,168,99,74,61,1279,211,77,50,636,261,167,88]
[null,"Income $75,000 to $99,999 ",355,140,1829,326,349,106,229,114,183,112,73,36,72,32,139,84,182,62,1982,362,196,83,1024,309,153,71]
[null,"Income $100,000 to $124,999 ",517,182,1467,367,187,83,368,176,131,100,73,41,117,53,300,128,100,39,1586,227,147,65,402,150,119,54]
[null,"Income $125,000 to $149,999 ",316,112,965,274,176,75,135,85,340,153,49,20,57,24,166,82,96,43,1066,274,74,37,398,160,179,71]
[null,"Income $150,000 to $199,999 ",309,141,1934,371,460,128,268,159,225,111,97,41,30,18,226,79,161,71,1185,288,95,51,619,216,301,104]
[null,"Income $200,000 or more ",591,162,2281,390,656,139,69,63,323,133,284,81,61,27,82,58,137,52,942,215,147,49,279,117,254,104]
[]
[]
[]
[]
[null,{"$f":"\"Calculated  \"&B1","v":"Calculated  B19001. HOUSEHOLD INCOME IN THE PAST 12 MONTHS (IN 2022 INFLATION-ADJUSTED DOLLARS)"}]
[null,"Universe:  HOUSEHOLDS"]
[null,"Data Set: 2018-2022 American Community Survey 5-Year Estimates"]
[null,null,"Barrington",null,"Dover",null,"Durham",null,"Farmington",null,"Lee",null,"Madbury",null,"Middleton",null,"Milton",null,"New Durham",null,"Rochester",null,"Rollinsford",null,"Somersworth",null,"Strafford"]
[null,null,"Estimate","Margin Of Error","Estimate","Margin Of Error","Estimate","Margin Of Error","Estimate","Margin Of Error","Estimate","Margin Of Error","Estimate","Margin Of Error","Estimate","Margin Of Error","Estimate","Margin Of Error","Estimate","Margin Of Error","Estimate","Margin Of Error","Estimate","Margin Of Error","Estimate","Margin Of Error","Estimate","Margin Of Error"]
[null,"Total Households",{"$f":"$C$7","v":3401},{"$f":"$D$7","v":227},{"$f":"$E$7","v":14606},{"$f":"$F$7","v":524},{"$f":"$G$7","v":3000},{"$f":"$H$7","v":226},{"$f":"$I$7","v":2911},{"$f":"$J$7","v":264},{"$f":"$K$7","v":1839},{"$f":"$L$7","v":183},{"$f":"$M$7","v":688},{"$f":"$N$7","v":80},{"$f":"$O$7","v":556},{"$f":"$P$7","v":90},{"$f":"$Q$7","v":1664},{"$f":"R7","v":125},1004,107,13542,419,1070,112,{"$f":"Y7","v":5232},{"$f":"Z7","v":318},{"$f":"AA7","v":1440},{"$f":"AB7","v":98}]
[null,"Households With"]
[null,"Income Less than $10,000 ",{"$f":"$C$9","v":37},{"$f":"$D$9","v":42},{"$f":"$E$9","v":330},{"$f":"$F$9","v":132},{"$f":"$G$9","v":231},{"$f":"$H$9","v":111},{"$f":"$I$9","v":191},{"$f":"$J$9","v":109},{"$f":"$K$9","v":51},{"$f":"$L$9","v":80},{"$f":"$M$9","v":13},{"$f":"$N$9","v":12},{"$f":"$O$9","v":5},{"$f":"$P$9","v":5},{"$f":"$Q$9","v":37},{"$f":"R9","v":30},45,34,431,173,48,42,{"$f":"Y9","v":98},81,30,25]
[null,"Income $10,000 to $14,999 ",{"$f":"$C$10","v":77},{"$f":"$D$10","v":99},{"$f":"$E$10","v":565},{"$f":"$F$10","v":207},{"$f":"$G$10","v":160},{"$f":"$H$10","v":84},{"$f":"$I$10","v":250},{"$f":"$J$10","v":156},{"$f":"$K$10","v":0},{"$f":"$L$10","v":12},{"$f":"$M$10","v":0},{"$f":"$N$10","v":12},{"$f":"$O$10","v":6},{"$f":"$P$10","v":7},{"$f":"$Q$10","v":25},28,20,13,692,285,20,24,183,135,30,38]
[null,"Income $15,000 to $24,999 ",{"$f":"$C$11+$C$12","v":75},{"$f":"SQRT(($D$11^2)+($D$12^2))","v":62.641839053463301},{"$f":"$E$11+$E$12","v":633},{"$f":"SQRT(($F$11^2)+($F$12^2))","v":218.43305610644191},{"$f":"$G$11+$G$12","v":122},{"$f":"SQRT(($H$11^2)+($H$12^2))","v":80.448741444475061},{"$f":"$I$11+$I$12","v":68},{"$f":"SQRT(($J$11^2)+($J$12^2))","v":56.850681614207581},{"$f":"$K$11+$K$12","v":42},{"$f":"SQRT(($L$11^2)+($L$12^2))","v":49.477267507411923},{"$f":"$M$11+$M$12","v":9},{"$f":"SQRT(($N$11^2)+($N$12^2))","v":7.810249675906654},{"$f":"$O$11+$O$12","v":37},{"$f":"SQRT(($P$11^2)+($P$12^2))","v":23.021728866442675},{"$f":"Q11+Q12","v":97},{"$f":"SQRT((R11^2)+(R12^2))","v":58.008620049092706},{"$f":"S11+S12","v":28},{"$f":"SQRT((T11^2)+(T12^2))","v":19.924858845171276},{"$f":"U11+U12","v":1074},{"$f":"SQRT((V11^2)+(V12^2))","v":234.30749027719963},{"$f":"W11+W12","v":80},{"$f":"SQRT((X11^2)+(X12^2))","v":83.486525858967212},{"$f":"Y11+Y12","v":341},{"$f":"SQRT((Z11^2)+(Z12^2))","v":233.85679378628279},{"$f":"AA11+AA12","v":5},{"$f":"SQRT((AB11^2)+(AB12^2))","v":15}]
[null,"Income $25,000 to $34,999 ",{"$f":"$C$13+$C$14","v":319},{"$f":"SQRT(($D$13^2)+($D$14^2))","v":153.2351134694656},{"$f":"$E$13+$E$14","v":1048},{"$f":"SQRT(($F$13^2)+($F$14^2))","v":325.04307406865325},{"$f":"$G$13+$G$14","v":112},{"$f":"SQRT(($H$13^2)+($H$14^2))","v":62.425956140054431},{"$f":"$I$13+$I$14","v":291},{"$f":"SQRT(($J$13^2)+($J$14^2))","v":140.80127840328723},{"$f":"$K$13+$K$14","v":29},{"$f":"SQRT(($L$13^2)+($L$14^2))","v":33.241540277189323},{"$f":"$M$13+$M$14","v":14},{"$f":"SQRT(($N$13^2)+($N$14^2))","v":12.206555615733702},{"$f":"$O$13+$O$14","v":22},{"$f":"SQRT(($P$13^2)+($P$14^2))","v":12.806248474865697},{"$f":"Q13+Q14","v":111},{"$f":"SQRT((R13^2)+(R14^2))","v":75.392307299883058},{"$f":"S13+S14","v":58},{"$f":"SQRT((T13^2)+(T14^2))","v":33.105890714493697},{"$f":"U13+U14","v":1152},{"$f":"SQRT((V13^2)+(V14^2))","v":314.20057288299142},{"$f":"W13+W14","v":75},{"$f":"SQRT((X13^2)+(X14^2))","v":44.418464629025621},{"$f":"Y13+Y14","v":338},{"$f":"SQRT((Z13^2)+(Z14^2))","v":195.88006534611938},{"$f":"AA13+AA14","v":43},{"$f":"SQRT((AB13^2)+(AB14^2))","v":26.419689627245813}]
[null,"Income $35,000 to $49,999 ",{"$f":"$C$15+$C$16+$C$17","v":368},{"$f":"SQRT(($D$15^2)+($D$16^2)+($D$17^2))","v":176.05112893702216},{"$f":"$E$15+$E$16+$E$17","v":1385},{"$f":"SQRT(($F$15^2)+($F$16^2)+($F$17^2))","v":350.49393718008878},{"$f":"$G$15+$G$16+$G$17","v":260},{"$f":"SQRT(($H$15^2)+($H$16^2)+($H$17^2))","v":115.50324670761424},{"$f":"$I$15+$I$16+$I$17","v":465},{"$f":"SQRT(($J$15^2)+($J$16^2)+($J$17^2))","v":284.93858987508168},{"$f":"$K$15+$K$16+$K$17","v":143},{"$f":"SQRT(($L$15^2)+($L$16^2)+($L$17^2))","v":98.893882520608926},{"$f":"$M$15+$M$16+$M$17","v":20},{"$f":"SQRT(($N$15^2)+($N$16^2)+($N$17^2))","v":16.031219541881399},{"$f":"$O$15+$O$16+$O$17","v":65},{"$f":"SQRT(($P$15^2)+($P$16^2)+($P$17^2))","v":31.54362059117501},{"$f":"Q15+Q16+Q17","v":101},{"$f":"SQRT((R15^2)+(R16^2)+(R17^2))","v":58.42944463196617},{"$f":"S15+S16+S17","v":41},{"$f":"SQRT((T15^2)+(T16^2)+(T17^2))","v":19.209372712298546},{"$f":"U15+U16+U17","v":1264},{"$f":"SQRT((V15^2)+(V16^2)+(V17^2))","v":324.79070183735246},{"$f":"W15+W16+W17","v":48},{"$f":"SQRT((X15^2)+(X16^2)+(X17^2))","v":32.58834147360065},{"$f":"Y15+Y16+Y17","v":493},{"$f":"SQRT((Z15^2)+(Z16^2)+(Z17^2))","v":176.79366504487655},{"$f":"AA15+AA16+AA17","v":99},{"$f":"SQRT((AB15^2)+(AB16^2)+(AB17^2))","v":46.850827100489916}]
[null,"Income $50,000 to $74,999 ",{"$f":"$C$18+$C$19","v":437},{"$f":"SQRT(($D$18^2)+($D$19^2))","v":168.07438829280326},{"$f":"$E$18+$E$19","v":2169},{"$f":"SQRT(($F$18^2)+($F$19^2))","v":430.88977708922266},{"$f":"$G$18+$G$19","v":287},{"$f":"SQRT(($H$18^2)+($H$19^2))","v":137.80058055030102},{"$f":"$I$18+$I$19","v":577},{"$f":"SQRT(($J$18^2)+($J$19^2))","v":219.20310216782974},{"$f":"$K$18+$K$19","v":372},{"$f":"SQRT(($L$18^2)+($L$19^2))","v":186.72439583514523},{"$f":"$M$18+$M$19","v":56},{"$f":"SQRT(($N$18^2)+($N$19^2))","v":41.231056256176608},{"$f":"$O$18+$O$19","v":84},{"$f":"SQRT(($P$18^2)+($P$19^2))","v":30.610455730027933},{"$f":"Q18+Q19","v":380},{"$f":"SQRT((R18^2)+(R19^2))","v":145.04137340772803},{"$f":"S18+S19","v":136},{"$f":"SQRT((T18^2)+(T19^2))","v":75.213030785895072},{"$f":"U18+U19","v":2168},{"$f":"SQRT((V18^2)+(V19^2))","v":316.57068720903391},{"$f":"W18+W19","v":140},{"$f":"SQRT((X18^2)+(X19^2))","v":58.830264320330912},{"$f":"Y18+Y19","v":1057},{"$f":"SQRT((Z18^2)+(Z19^2))","v":319.33837852660304},{"$f":"AA18+AA19","v":227},{"$f":"SQRT((AB18^2)+(AB19^2))","v":95.462034338264544}]
[null,"Income $75,000 to $99,999 ",{"$f":"$C$20","v":355},{"$f":"$D$20","v":140},{"$f":"$E$20","v":1829},{"$f":"$F$20","v":326},{"$f":"$G$20","v":349},{"$f":"$H$20","v":106},{"$f":"$I$20","v":229},{"$f":"$J$20","v":114},{"$f":"$K$20","v":183},{"$f":"$L$20","v":112},{"$f":"$M$20","v":73},{"$f":"$N$20","v":36},{"$f":"$O$20","v":72},{"$f":"$P$20","v":32},{"$f":"Q20","v":139},84,182,62,1982,362,196,83,{"$f":"Y20","v":1024},{"$f":"Z20","v":309},{"$f":"AA20","v":153},{"$f":"AB20","v":71}]
[null,"Income $100,000 to $149,999 ",{"$f":"$C$21+$C$22","v":833},{"$f":"SQRT(($D$21^2)+($D$22^2))","v":213.70072531463248},{"$f":"$E$21+$E$22","v":2432},{"$f":"SQRT(($F$21^2)+($F$22^2))","v":458.00109170175568},{"$f":"$G$21+$G$22","v":363},{"$f":"SQRT(($H$21^2)+($H$22^2))","v":111.8659912573969},{"$f":"$I$21+$I$22","v":503},{"$f":"SQRT(($J$21^2)+($J$22^2))","v":195.45076106272904},{"$f":"$K$21+$K$22","v":471},{"$f":"SQRT(($L$21^2)+($L$22^2))","v":182.7812900709479},{"$f":"$M$21+$M$22","v":122},{"$f":"SQRT(($N$21^2)+($N$22^2))","v":45.617978911828175},{"$f":"$O$21+$O$22","v":174},{"$f":"SQRT(($P$21^2)+($P$22^2))","v":58.180752831155424},{"$f":"Q21+Q22","v":466},{"$f":"SQRT((R21^2)+(R22^2))","v":152.01315732527891},{"$f":"S21+S22","v":196},{"$f":"SQRT((T21^2)+(T22^2))","v":58.051701094799967},{"$f":"U21+U22","v":2652},{"$f":"SQRT((V21^2)+(V22^2))","v":355.81596366661233},{"$f":"W21+W22","v":221},{"$f":"SQRT((X21^2)+(X22^2))","v":74.793047805260613},{"$f":"Y21+Y22","v":800},{"$f":"SQRT((Z21^2)+(Z22^2))","v":219.31712199461307},{"$f":"AA21+AA22","v":298},{"$f":"SQRT((AB21^2)+(AB22^2))","v":89.202017914394744}]
[null,"Income $150,000 to $199,999 ",{"$f":"$C$23","v":309},{"$f":"$D$23","v":141},{"$f":"$E$23","v":1934},{"$f":"$F$23","v":371},{"$f":"$G$23","v":460},{"$f":"$H$23","v":128},{"$f":"$I$23","v":268},{"$f":"$J$23","v":159},{"$f":"$K$23","v":225},{"$f":"$L$23","v":111},{"$f":"$M$23","v":97},{"$f":"$N$23","v":41},{"$f":"$O$23","v":30},{"$f":"$P$23","v":18},{"$f":"Q23","v":226},79,161,71,1185,288,95,51,{"$f":"Y23","v":619},216,301,104]
[null,"Income $200,000 or more ",{"$f":"$C$24","v":591},{"$f":"$D$24","v":162},{"$f":"$E$24","v":2281},{"$f":"$F$24","v":390},{"$f":"$G$24","v":656},{"$f":"$H$24","v":139},{"$f":"$I$24","v":69},{"$f":"$J$24","v":63},{"$f":"$K$24","v":323},{"$f":"$L$24","v":133},{"$f":"$M$24","v":284},{"$f":"$N$24","v":81},{"$f":"$O$24","v":61},{"$f":"$P$24","v":27},82,58,137,52,942,215,147,49,279,117,254,104]
[]
[]
[]
[]
[]
[]
[]
[]
[]
[]
[]
[]
[]
[]
[]
[]
[]
[]
[]
[]
[]
[]
[]
[]
[null,"B19001. HOUSEHOLD INCOME IN THE PAST 12 MONTHS (IN 2017 INFLATION-ADJUSTED DOLLARS)",null,null,null,null,null,null,null,null,null,null,null,null,{"$f":"B70","v":"B19001. HOUSEHOLD INCOME IN THE PAST 12 MONTHS (IN 2017 INFLATION-ADJUSTED DOLLARS)"}]
[null,"Universe:  HOUSEHOLDS",null,null,null,null,null,null,null,null,null,null,null,null,{"$f":"B72","v":"Data Set: 2013-2017 American Community Survey 5-Year Estimates"}]
[null,"Data Set: 2013-2017 American Community Survey 5-Year Estimates"]
[]
[null,null,"Barrington",null,"Dover",null,"Durham",null,"Farmington",null,"Lee",null,"Madbury",null,"Middleton",null,"Milton",null,"New Durham",null,"Rochester",null,"Rollinsford",null,"Somersworth",null,"Strafford"]
[null,null,"Estimate","Margin Of Error","Estimate","Margin Of Error","Estimate","Margin Of Error","Estimate","Margin Of Error","Estimate","Margin Of Error","Estimate","Margin Of Error","Estimate","Margin Of Error","Estimate","Margin Of Error","Estimate","Margin Of Error","Estimate","Margin Of Error","Estimate","Margin Of Error","Estimate","Margin Of Error","Estimate","Margin Of Error"]
[null,"Total Households",3388,209,13194,359,3325,237,2719,176,1752,139,621,60,595,70,1732,107,995,58,12837,353,1048,57,4905,237,1432,100]
[null,"Households With"]
[null,"Income Less than $10,000 ",120,137,535,175,319,120,29,37,0,11,10,9,17,9,14,16,30,28,703,233,17,21,233,150,46,30]
[null,"Income $10,000 to $14,999 ",158,129,587,155,188,95,137,137,0,11,5,7,16,11,105,76,6,8,510,176,30,26,209,121,0,11]
[null,"Income $15,000 to $19,999 ",110,108,504,161,137,70,91,96,49,78,5,6,16,17,35,29,18,15,757,233,25,20,143,80,44,42]
[null,"Income $20,000 to $24,999 ",120,133,627,189,123,66,292,137,29,32,3,5,16,8,68,53,8,14,656,173,34,21,293,134,26,31]
[null,"Income $25,000 to $29,999 ",40,39,598,223,199,89,139,111,41,63,7,9,13,14,96,71,36,28,640,181,69,46,227,151,73,58]
[null,"Income $30,000 to $34,999 ",172,125,311,117,100,49,65,51,16,25,39,28,25,14,40,34,42,31,678,165,31,18,147,81,27,20]
[null,"Income $35,000 to $39,999 ",66,64,621,175,107,72,173,122,24,37,18,11,17,14,64,45,33,21,482,160,19,18,225,94,44,34]
[null,"Income $40,000 to $44,999 ",166,117,596,184,65,42,36,40,80,95,10,9,19,11,37,30,74,45,576,149,25,18,191,97,11,18]
[null,"Income $45,000 to $49,999 ",54,71,535,181,115,76,155,125,34,38,21,22,22,8,131,68,18,17,869,272,29,24,247,117,85,52]
[null,"Income $50,000 to $59,999 ",123,79,859,184,126,51,227,119,94,64,33,22,43,21,144,71,104,35,799,183,135,50,439,128,115,64]
[null,"Income $60,000 to $74,999 ",337,137,1567,282,192,68,242,143,168,91,54,21,107,33,270,90,128,44,1427,255,117,49,822,213,98,56]
[null,"Income $75,000 to $99,999 ",418,166,2029,264,326,103,379,147,237,104,88,32,116,34,197,60,146,43,2276,370,153,69,704,165,115,46]
[null,"Income $100,000 to $124,999 ",277,122,1269,250,193,66,358,171,427,168,70,29,47,22,269,99,121,40,1106,280,128,42,420,140,213,89]
[null,"Income $125,000 to $149,999 ",310,171,1021,206,305,85,166,94,140,103,77,31,57,26,134,63,56,29,557,137,67,28,283,134,233,85]
[null,"Income $150,000 to $199,999 ",781,256,940,172,443,122,230,109,237,103,79,27,33,19,93,54,114,44,541,143,109,32,221,100,165,72]
[null,"Income $200,000 or more ",136,109,595,172,387,83,0,16,176,81,102,36,31,24,35,29,61,35,260,91,60,33,101,59,137,67]
[]
[]
[]
[]
[null,{"$f":"\"Calculated  \"&B70","v":"Calculated  B19001. HOUSEHOLD INCOME IN THE PAST 12 MONTHS (IN 2017 INFLATION-ADJUSTED DOLLARS)"}]
[null,"Universe:  HOUSEHOLDS"]
[null,{"$f":"B72","v":"Data Set: 2013-2017 American Community Survey 5-Year Estimates"}]
[null,null,"Barrington",null,"Dover",null,"Durham",null,"Farmington",null,"Lee",null,"Madbury",null,"Middleton",null,"Milton",null,"New Durham",null,"Rochester",null,"Rollinsford",null,"Somersworth",null,"Strafford"]
[null,null,"Estimate","Margin Of Error","Estimate","Margin Of Error","Estimate","Margin Of Error","Estimate","Margin Of Error","Estimate","Margin Of Error","Estimate","Margin Of Error","Estimate","Margin Of Error","Estimate","Margin Of Error","Estimate","Margin Of Error","Estimate","Margin Of Error","Estimate","Margin Of Error","Estimate","Margin Of Error","Estimate","Margin Of Error"]
[null,"Total Households",{"$f":"C76","v":3388},209,13194,359,3325,237,2719,176,1752,139,621,60,595,70,1732,107,995,58,12837,353,1048,57,{"$f":"Y76","v":4905},{"$f":"Z76","v":237},{"$f":"AA76","v":1432},{"$f":"AB76","v":100}]
[null,"Households With"]
[null,"Income Less than $10,000 ",{"$f":"C78","v":120},137,535,175,319,120,29,37,0,11,10,9,17,9,14,16,30,28,703,233,17,21,233,150,46,30]
[null,"Income $10,000 to $14,999 ",{"$f":"C79","v":158},129,587,155,188,95,137,137,0,11,5,7,16,11,105,76,6,8,510,176,30,26,209,121,0,11]
[null,"Income $15,000 to $24,999 ",{"$f":"C80+C81","v":230},{"$f":"SQRT((D80^2)+(D81^2))","v":171.32717239247253},{"$f":"E80+E81","v":1131},{"$f":"SQRT((F80^2)+(F81^2))","v":248.27806991355479},{"$f":"G80+G81","v":260},{"$f":"SQRT((H80^2)+(H81^2))","v":96.208107766445551},{"$f":"I80+I81","v":383},{"$f":"SQRT((J80^2)+(J81^2))","v":167.28717822953436},{"$f":"K80+K81","v":78},{"$f":"SQRT((L80^2)+(L81^2))","v":84.308955633431964},{"$f":"M80+M81","v":8},{"$f":"SQRT((N80^2)+(N81^2))","v":7.810249675906654},{"$f":"O80+O81","v":32},{"$f":"SQRT((P80^2)+(P81^2))","v":18.788294228055936},{"$f":"Q80+Q81","v":103},{"$f":"SQRT((R80^2)+(R81^2))","v":60.415229867972862},{"$f":"S80+S81","v":26},{"$f":"SQRT((T80^2)+(T81^2))","v":20.518284528683193},{"$f":"U80+U81","v":1413},{"$f":"SQRT((V80^2)+(V81^2))","v":290.20337696174386},{"$f":"W80+W81","v":59},{"$f":"SQRT((X80^2)+(X81^2))","v":29},{"$f":"Y80+Y81","v":436},{"$f":"SQRT((Z80^2)+(Z81^2))","v":156.06408939919524},{"$f":"AA80+AA81","v":70},{"$f":"SQRT((AB80^2)+(AB81^2))","v":52.201532544552748}]
[null,"Income $25,000 to $34,999 ",{"$f":"C82+C83","v":212},{"$f":"SQRT((D82^2)+(D83^2))","v":130.9427355755179},{"$f":"E82+E83","v":909},{"$f":"SQRT((F82^2)+(F83^2))","v":251.82930726982514},{"$f":"G82+G83","v":299},{"$f":"SQRT((H82^2)+(H83^2))","v":101.59724405711013},{"$f":"I82+I83","v":204},{"$f":"SQRT((J82^2)+(J83^2))","v":122.15563842901399},{"$f":"K82+K83","v":57},{"$f":"SQRT((L82^2)+(L83^2))","v":67.779052811322174},{"$f":"M82+M83","v":46},{"$f":"SQRT((N82^2)+(N83^2))","v":29.410882339705484},{"$f":"O82+O83","v":38},{"$f":"SQRT((P82^2)+(P83^2))","v":19.798989873223331},{"$f":"Q82+Q83","v":136},{"$f":"SQRT((R82^2)+(R83^2))","v":78.721026416072604},{"$f":"S82+S83","v":78},{"$f":"SQRT((T82^2)+(T83^2))","v":41.773197148410844},{"$f":"U82+U83","v":1318},{"$f":"SQRT((V82^2)+(V83^2))","v":244.92039523077696},{"$f":"W82+W83","v":100},{"$f":"SQRT((X82^2)+(X83^2))","v":49.396356140913873},{"$f":"Y82+Y83","v":374},{"$f":"SQRT((Z82^2)+(Z83^2))","v":171.35343591536179},{"$f":"AA82+AA83","v":100},{"$f":"SQRT((AB82^2)+(AB83^2))","v":61.351446600711867}]
[null,"Income $35,000 to $49,999 ",{"$f":"C84+C85+C86","v":286},{"$f":"SQRT((D84^2)+(D85^2)+(D86^2))","v":151.08275877809487},{"$f":"E84+E85+E86","v":1752},{"$f":"SQRT((F84^2)+(F85^2)+(F86^2))","v":311.83649561909846},{"$f":"G84+G85+G86","v":287},{"$f":"SQRT((H84^2)+(H85^2)+(H86^2))","v":112.80070921762859},{"$f":"I84+I85+I86","v":364},{"$f":"SQRT((J84^2)+(J85^2)+(J86^2))","v":179.1898434621784},{"$f":"K84+K85+K86","v":138},{"$f":"SQRT((L84^2)+(L85^2)+(L86^2))","v":108.80257349897566},{"$f":"M84+M85+M86","v":49},{"$f":"SQRT((N84^2)+(N85^2)+(N86^2))","v":26.19160170741759},{"$f":"O84+O85+O86","v":58},{"$f":"SQRT((P84^2)+(P85^2)+(P86^2))","v":19.519221295943137},{"$f":"Q84+Q85+Q86","v":232},{"$f":"SQRT((R84^2)+(R85^2)+(R86^2))","v":86.884981440983225},{"$f":"S84+S85+S86","v":125},{"$f":"SQRT((T84^2)+(T85^2)+(T86^2))","v":52.48809388804284},{"$f":"U84+U85+U86","v":1927},{"$f":"SQRT((V84^2)+(V85^2)+(V86^2))","v":348.97707661105767},{"$f":"W84+W85+W86","v":73},{"$f":"SQRT((X84^2)+(X85^2)+(X86^2))","v":34.985711369071801},{"$f":"Y84+Y85+Y86","v":663},{"$f":"SQRT((Z84^2)+(Z85^2)+(Z86^2))","v":178.70086737338463},{"$f":"AA84+AA85+AA86","v":140},{"$f":"SQRT((AB84^2)+(AB85^2)+(AB86^2))","v":64.683846515184911}]
[null,"Income $50,000 to $74,999 ",{"$f":"C87+C88","v":460},{"$f":"SQRT((D87^2)+(D88^2))","v":158.14550262337528},{"$f":"E87+E88","v":2426},{"$f":"SQRT((F87^2)+(F88^2))","v":336.71946780665951},{"$f":"G87+G88","v":318},{"$f":"SQRT((H87^2)+(H88^2))","v":85},{"$f":"I87+I88","v":469},{"$f":"SQRT((J87^2)+(J88^2))","v":186.03763060198332},{"$f":"K87+K88","v":262},{"$f":"SQRT((L87^2)+(L88^2))","v":111.25196627475849},{"$f":"M87+M88","v":87},{"$f":"SQRT((N87^2)+(N88^2))","v":30.413812651491099},{"$f":"O87+O88","v":150},{"$f":"SQRT((P87^2)+(P88^2))","v":39.11521443121589},{"$f":"Q87+Q88","v":414},{"$f":"SQRT((R87^2)+(R88^2))","v":114.63420083029322},{"$f":"S87+S88","v":232},{"$f":"SQRT((T87^2)+(T88^2))","v":56.222771187482387},{"$f":"U87+U88","v":2226},{"$f":"SQRT((V87^2)+(V88^2))","v":313.86939959161356},{"$f":"W87+W88","v":252},{"$f":"SQRT((X87^2)+(X88^2))","v":70.007142492748557},{"$f":"Y87+Y88","v":1261},{"$f":"SQRT((Z87^2)+(Z88^2))","v":248.50150904974402},{"$f":"AA87+AA88","v":213},{"$f":"SQRT((AB87^2)+(AB88^2))","v":85.0411665018772}]
[null,"Income $75,000 to $99,999 ",{"$f":"C89","v":418},166,2029,264,326,103,379,147,237,104,88,32,116,34,197,60,146,43,2276,370,153,69,{"$f":"Y89","v":704},{"$f":"Z89","v":165},{"$f":"AA89","v":115},{"$f":"AB89","v":46}]
[null,"Income $100,000 to $149,999 ",{"$f":"C90+C91","v":587},{"$f":"SQRT((D90^2)+(D91^2))","v":210.05951537600004},{"$f":"E90+E91","v":2290},{"$f":"SQRT((F90^2)+(F91^2))","v":323.93826572357887},{"$f":"G90+G91","v":498},{"$f":"SQRT((H90^2)+(H91^2))","v":107.61505470890214},{"$f":"I90+I91","v":524},{"$f":"SQRT((J90^2)+(J91^2))","v":195.13328778042973},{"$f":"K90+K91","v":567},{"$f":"SQRT((L90^2)+(L91^2))","v":197.06090429103384},{"$f":"M90+M91","v":147},{"$f":"SQRT((N90^2)+(N91^2))","v":42.449970553582247},{"$f":"O90+O91","v":104},{"$f":"SQRT((P90^2)+(P91^2))","v":34.058772731852805},{"$f":"Q90+Q91","v":403},{"$f":"SQRT((R90^2)+(R91^2))","v":117.34564329364768},{"$f":"S90+S91","v":177},{"$f":"SQRT((T90^2)+(T91^2))","v":49.406477308142499},{"$f":"U90+U91","v":1663},{"$f":"SQRT((V90^2)+(V91^2))","v":311.71942512458219},{"$f":"W90+W91","v":195},{"$f":"SQRT((X90^2)+(X91^2))","v":50.47771785649585},{"$f":"Y90+Y91","v":703},{"$f":"SQRT((Z90^2)+(Z91^2))","v":193.79370474811611},{"$f":"AA90+AA91","v":446},{"$f":"SQRT((AB90^2)+(AB91^2))","v":123.0690862889621}]
[null,"Income $150,000 to $199,999 ",{"$f":"C92","v":781},256,940,172,443,122,230,109,237,103,79,27,33,19,93,54,114,44,541,143,109,32,221,100,165,72]
[null,"Income $200,000 or more ",{"$f":"C93","v":136},109,595,172,387,83,0,16,176,81,102,36,31,24,35,29,61,35,260,91,60,33,101,59,137,67]
[]
[]
[]
[null,"B19001. HOUSEHOLD INCOME IN THE PAST 12 MONTHS (IN 2012 INFLATION-ADJUSTED DOLLARS)",null,null,null,null,null,null,null,null,null,null,null,null,{"$f":"B118","v":"B19001. HOUSEHOLD INCOME IN THE PAST 12 MONTHS (IN 2012 INFLATION-ADJUSTED DOLLARS)"}]
[null,"Universe:  HOUSEHOLDS",null,null,null,null,null,null,null,null,null,null,null,null,{"$f":"B120","v":"Data Set: 2008-2012 American Community Survey 5-Year Estimates"}]
[null,"Data Set: 2008-2012 American Community Survey 5-Year Estimates"]
[]
[null,null,"Barrington",null,"Dover",null,"Durham",null,"Farmington",null,"Lee",null,"Madbury",null,"Middleton",null,"Milton",null,"New Durham",null,"Rochester",null,"Rollinsford",null,"Somersworth",null,"Strafford"]
[null,null,"Estimate","Margin Of Error","Estimate","Margin Of Error","Estimate","Margin Of Error","Estimate","Margin Of Error","Estimate","Margin Of Error","Estimate","Margin Of Error","Estimate","Margin Of Error","Estimate","Margin Of Error","Estimate","Margin Of Error","Estimate","Margin Of Error","Estimate","Margin Of Error","Estimate","Margin Of Error","Estimate","Margin Of Error"]
[null,"Total Households",2907,215,12429,308,3344,366,2613,190,1756,138,590,36,595,62,1713,104,964,70,12357,312,1030,59,4739,257,1347,101]
[null,"Households With"]
[null,"Income Less than $10,000 ",43,51,644,190,659,166,126,80,146,101,5,8,26,19,103,63,17,14,553,151,41,37,353,119,20,22]
[null,"Income $10,000 to $14,999 ",22,29,432,118,142,69,294,136,28,47,8,9,16,11,91,57,17,16,620,151,51,36,403,162,0,85]
[null,"Income $15,000 to $19,999 ",92,98,482,155,237,80,67,48,48,49,23,19,16,12,80,64,26,31,517,179,45,43,168,101,19,21]
[null,"Income $20,000 to $24,999 ",83,51,784,200,72,48,138,86,41,46,21,18,45,28,89,52,48,35,600,177,23,23,176,82,45,54]
[null,"Income $25,000 to $29,999 ",92,61,666,180,71,48,45,39,29,48,25,18,27,16,70,50,40,33,802,208,65,49,193,100,13,15]
[null,"Income $30,000 to $34,999 ",102,62,565,151,57,44,178,129,39,36,6,6,28,16,54,42,36,21,540,169,44,36,254,120,120,74]
[null,"Income $35,000 to $39,999 ",76,62,528,172,54,42,126,78,43,49,18,14,39,23,51,35,12,11,717,218,20,17,190,88,0,85]
[null,"Income $40,000 to $44,999 ",13,18,731,167,23,22,88,72,38,38,29,20,52,26,129,59,42,25,901,215,34,21,287,115,89,61]
[null,"Income $45,000 to $49,999 ",210,103,473,164,84,82,178,105,53,44,10,9,37,21,37,33,43,24,602,150,53,36,231,132,65,50]
[null,"Income $50,000 to $59,999 ",175,86,1086,249,159,75,217,113,173,111,66,44,55,25,175,70,64,37,1286,256,58,34,457,149,120,80]
[null,"Income $60,000 to $74,999 ",355,113,1343,254,163,64,316,129,276,99,45,21,74,27,238,81,89,42,1291,226,142,49,444,138,164,74]
[null,"Income $75,000 to $99,999 ",795,176,1435,244,440,113,379,121,155,76,119,37,107,31,351,117,232,60,1589,230,144,52,710,136,192,78]
[null,"Income $100,000 to $124,999 ",336,138,1240,211,258,81,181,82,193,80,38,17,33,18,86,64,111,43,1037,163,153,53,339,127,187,75]
[null,"Income $125,000 to $149,999 ",203,98,921,180,223,77,118,67,144,69,65,26,24,14,76,60,121,45,548,148,44,22,297,143,91,51]
[null,"Income $150,000 to $199,999 ",228,106,618,160,320,90,42,34,168,85,75,31,9,8,8,13,56,40,515,153,69,44,198,96,142,66]
[null,"Income $200,000 or more ",82,71,481,145,382,101,120,98,182,92,37,19,7,8,75,46,10,11,239,100,44,31,39,30,80,43]
[]
[]
[]
[]
[null,{"$f":"\"Calculated  \"&B118","v":"Calculated  B19001. HOUSEHOLD INCOME IN THE PAST 12 MONTHS (IN 2012 INFLATION-ADJUSTED DOLLARS)"}]
[null,"Universe:  HOUSEHOLDS"]
[null,{"$f":"B120","v":"Data Set: 2008-2012 American Community Survey 5-Year Estimates"}]
[null,null,"Barrington",null,"Dover",null,"Durham",null,"Farmington",null,"Lee",null,"Madbury",null,"Middleton",null,"Milton",null,"New Durham",null,"Rochester",null,"Rollinsford",null,"Somersworth",null,"Strafford"]
[null,null,"Estimate","Margin Of Error","Estimate","Margin Of Error","Estimate","Margin Of Error","Estimate","Margin Of Error","Estimate","Margin Of Error","Estimate","Margin Of Error","Estimate","Margin Of Error","Estimate","Margin Of Error","Estimate","Margin Of Error","Estimate","Margin Of Error","Estimate","Margin Of Error","Estimate","Margin Of Error","Estimate","Margin Of Error"]
[null,"Total Households",{"$f":"C124","v":2907},215,12429,308,3344,366,2613,190,1756,138,590,36,595,62,1713,{"$f":"R124","v":104},964,70,12357,312,1030,59,{"$f":"Y124","v":4739},{"$f":"Z124","v":257},{"$f":"AA124","v":1347},{"$f":"AB124","v":101}]
[null,"Households With"]
[null,"Income Less than $10,000 ",{"$f":"C126","v":43},51,644,190,659,166,126,80,146,101,5,8,26,19,103,{"$f":"R126","v":63},17,14,553,151,41,37,353,119,20,22]
[null,"Income $10,000 to $14,999 ",{"$f":"C127","v":22},29,432,118,142,69,294,136,28,47,8,9,16,11,91,57,17,16,620,151,51,36,403,162,0,85]
[null,"Income $15,000 to $24,999 ",{"$f":"C128+C129","v":175},{"$f":"SQRT((D128^2)+(D129^2))","v":110.47624178980746},{"$f":"E128+E129","v":1266},{"$f":"SQRT((F128^2)+(F129^2))","v":253.03161857759991},{"$f":"G128+G129","v":309},{"$f":"SQRT((H128^2)+(H129^2))","v":93.295230317524812},{"$f":"I128+I129","v":205},{"$f":"SQRT((J128^2)+(J129^2))","v":98.488578017961046},{"$f":"K128+K129","v":89},{"$f":"SQRT((L128^2)+(L129^2))","v":67.208630398186216},{"$f":"M128+M129","v":44},{"$f":"SQRT((N128^2)+(N129^2))","v":26.172504656604801},{"$f":"O128+O129","v":61},{"$f":"SQRT((P128^2)+(P129^2))","v":30.463092423455635},{"$f":"Q128+Q129","v":169},{"$f":"SQRT((R128^2)+(R129^2))","v":82.462112512353215},{"$f":"S128+S129","v":74},{"$f":"SQRT((T128^2)+(T129^2))","v":46.75467891024384},{"$f":"U128+U129","v":1117},{"$f":"SQRT((V128^2)+(V129^2))","v":251.73398658107331},{"$f":"W128+W129","v":68},{"$f":"SQRT((X128^2)+(X129^2))","v":48.764741360946438},{"$f":"Y128+Y129","v":344},{"$f":"SQRT((Z128^2)+(Z129^2))","v":130.09611831257686},{"$f":"AA128+AA129","v":64},{"$f":"SQRT((AB128^2)+(AB129^2))","v":57.9396237474839}]
[null,"Income $25,000 to $34,999 ",{"$f":"C130+C131","v":194},{"$f":"SQRT((D130^2)+(D131^2))","v":86.977008456258133},{"$f":"E130+E131","v":1231},{"$f":"SQRT((F130^2)+(F131^2))","v":234.94893062110327},{"$f":"G130+G131","v":128},{"$f":"SQRT((H130^2)+(H131^2))","v":65.115282384398824},{"$f":"I130+I131","v":223},{"$f":"SQRT((J130^2)+(J131^2))","v":134.7664646712972},{"$f":"K130+K131","v":68},{"$f":"SQRT((L130^2)+(L131^2))","v":60},{"$f":"M130+M131","v":31},{"$f":"SQRT((N130^2)+(N131^2))","v":18.973665961010276},{"$f":"O130+O131","v":55},{"$f":"SQRT((P130^2)+(P131^2))","v":22.627416997969522},{"$f":"Q130+Q131","v":124},{"$f":"SQRT((R130^2)+(R131^2))","v":65.299310869258036},{"$f":"S130+S131","v":76},{"$f":"SQRT((T130^2)+(T131^2))","v":39.11521443121589},{"$f":"U130+U131","v":1342},{"$f":"SQRT((V130^2)+(V131^2))","v":268.00186566514793},{"$f":"W130+W131","v":109},{"$f":"SQRT((X130^2)+(X131^2))","v":60.802960454241045},{"$f":"Y130+Y131","v":447},{"$f":"SQRT((Z130^2)+(Z131^2))","v":156.20499351813308},{"$f":"AA130+AA131","v":133},{"$f":"SQRT((AB130^2)+(AB131^2))","v":75.504966724050675}]
[null,"Income $35,000 to $49,999 ",{"$f":"C132+C133+C134","v":299},{"$f":"SQRT((D132^2)+(D133^2)+(D134^2))","v":121.56068443374281},{"$f":"E132+E133+E134","v":1732},{"$f":"SQRT((F132^2)+(F133^2)+(F134^2))","v":290.46342282635175},{"$f":"G132+G133+G134","v":161},{"$f":"SQRT((H132^2)+(H133^2)+(H134^2))","v":94.720641889716944},{"$f":"I132+I133+I134","v":392},{"$f":"SQRT((J132^2)+(J133^2)+(J134^2))","v":149.30840565755165},{"$f":"K132+K133+K134","v":134},{"$f":"SQRT((L132^2)+(L133^2)+(L134^2))","v":76.032887621081443},{"$f":"M132+M133+M134","v":57},{"$f":"SQRT((N132^2)+(N133^2)+(N134^2))","v":26.019223662515376},{"$f":"O132+O133+O134","v":128},{"$f":"SQRT((P132^2)+(P133^2)+(P134^2))","v":40.570925550201586},{"$f":"Q132+Q133+Q134","v":217},{"$f":"SQRT((R132^2)+(R133^2)+(R134^2))","v":76.124897372673018},{"$f":"S132+S133+S134","v":97},{"$f":"SQRT((T132^2)+(T133^2)+(T134^2))","v":36.359317925395686},{"$f":"U132+U133+U134","v":2220},{"$f":"SQRT((V132^2)+(V133^2)+(V134^2))","v":340.95307595034245},{"$f":"W132+W133+W134","v":107},{"$f":"SQRT((X132^2)+(X133^2)+(X134^2))","v":45.011109739707599},{"$f":"Y132+Y133+Y134","v":708},{"$f":"SQRT((Z132^2)+(Z133^2)+(Z134^2))","v":195.94131774590065},{"$f":"AA132+AA133+AA134","v":154},{"$f":"SQRT((AB132^2)+(AB133^2)+(AB134^2))","v":115.95688854052612}]
[null,"Income $50,000 to $74,999 ",{"$f":"C135+C136","v":530},{"$f":"SQRT((D135^2)+(D136^2))","v":142.00352108310554},{"$f":"E135+E136","v":2429},{"$f":"SQRT((F135^2)+(F136^2))","v":355.69228273888655},{"$f":"G135+G136","v":322},{"$f":"SQRT((H135^2)+(H136^2))","v":98.595131725658746},{"$f":"I135+I136","v":533},{"$f":"SQRT((J135^2)+(J136^2))","v":171.49344010777787},{"$f":"K135+K136","v":449},{"$f":"SQRT((L135^2)+(L136^2))","v":148.73466307488647},{"$f":"M135+M136","v":111},{"$f":"SQRT((N135^2)+(N136^2))","v":48.754486972995622},{"$f":"O135+O136","v":129},{"$f":"SQRT((P135^2)+(P136^2))","v":36.796738985948195},{"$f":"Q135+Q136","v":413},{"$f":"SQRT((R135^2)+(R136^2))","v":107.05606008068857},{"$f":"S135+S136","v":153},{"$f":"SQRT((T135^2)+(T136^2))","v":55.97320787662612},{"$f":"U135+U136","v":2577},{"$f":"SQRT((V135^2)+(V136^2))","v":341.4849923495907},{"$f":"W135+W136","v":200},{"$f":"SQRT((X135^2)+(X136^2))","v":59.640590204993778},{"$f":"Y135+Y136","v":901},{"$f":"SQRT((Z135^2)+(Z136^2))","v":203.08865059377396},{"$f":"AA135+AA136","v":284},{"$f":"SQRT((AB135^2)+(AB136^2))","v":108.97706180660222}]
[null,"Income $75,000 to $99,999 ",{"$f":"C137","v":795},176,1435,244,440,113,379,121,155,76,119,37,107,31,{"$f":"Q137","v":351},117,232,60,1589,230,144,52,{"$f":"Y137","v":710},{"$f":"Z137","v":136},{"$f":"AA137","v":192},{"$f":"AB137","v":78}]
[null,"Income $100,000 to $149,999 ",{"$f":"C138+C139","v":539},{"$f":"SQRT((D138^2)+(D139^2))","v":169.25720073308551},{"$f":"E138+E139","v":2161},{"$f":"SQRT((F138^2)+(F139^2))","v":277.34635386101615},{"$f":"G138+G139","v":481},{"$f":"SQRT((H138^2)+(H139^2))","v":111.75866856758807},{"$f":"I138+I139","v":299},{"$f":"SQRT((J138^2)+(J139^2))","v":105.89145385724005},{"$f":"K138+K139","v":337},{"$f":"SQRT((L138^2)+(L139^2))","v":105.64563407921787},{"$f":"M138+M139","v":103},{"$f":"SQRT((N138^2)+(N139^2))","v":31.064449134018133},{"$f":"O138+O139","v":57},{"$f":"SQRT((P138^2)+(P139^2))","v":22.803508501982758},{"$f":"Q138+Q139","v":162},{"$f":"SQRT((R138^2)+(R139^2))","v":87.726848797845236},{"$f":"S138+S139","v":232},{"$f":"SQRT((T138^2)+(T139^2))","v":62.241465278381739},{"$f":"U138+U139","v":1585},{"$f":"SQRT((V138^2)+(V139^2))","v":220.16584657934573},{"$f":"W138+W139","v":197},{"$f":"SQRT((X138^2)+(X139^2))","v":57.384666941614292},{"$f":"Y138+Y139","v":636},{"$f":"SQRT((Z138^2)+(Z139^2))","v":191.25375813301028},{"$f":"AA138+AA139","v":278},{"$f":"SQRT((AB138^2)+(AB139^2))","v":90.697298746985851}]
[null,"Income $150,000 to $199,999 ",{"$f":"C140","v":228},106,618,160,320,90,42,34,168,85,75,31,9,8,{"$f":"Q140","v":8},13,56,40,515,153,69,44,198,96,142,66]
[null,"Income $200,000 or more ",{"$f":"C141","v":82},71,481,145,382,101,120,98,182,92,37,19,7,8,75,46,10,11,239,100,44,31,39,30,80,43]

{"sheet":"ACS_Table_B19037","index":20,"n_rows":253,"n_cols":28,"rows_kept":253,"cut":false,"hidden":true,"merged":[]}
[null,"B19037. AGE OF HOUSEHOLDER BY HOUSEHOLD INCOME IN THE PAST 12 MONTHS (IN 2022 INFLATION-ADJUSTED DOLLARS)"]
[null,"Universe:  HOUSEHOLDS"]
[null,"Data Set: 2018-2022 American Community Survey 5-Year Estimates"]
[]
[null,null,"Barrington",null,"Dover",null,"Durham",null,"Farmington",null,"Lee",null,"Madbury",null,"Middleton",null,"Milton",null,"New Durham",null,"Rochester",null,"Rollinsford",null,"Somersworth",null,"Strafford"]
[null,null,"Estimate","Margin Of Error","Estimate","Margin Of Error","Estimate","Margin Of Error","Estimate","Margin Of Error","Estimate","Margin Of Error","Estimate","Margin Of Error","Estimate","Margin Of Error","Estimate","Margin Of Error","Estimate","Margin Of Error","Estimate","Margin Of Error","Estimate","Margin Of Error","Estimate","Margin Of Error","Estimate","Margin Of Error"]
[null,"Total:",3401,227,14606,524,3000,226,2911,264,1839,183,688,80,556,90,1664,125,1004,107,13542,419,1070,112,5232,318,1440,98]
[null,"Householder under 25 years:",30,50,1097,253,653,158,151,146,0,12,7,10,3,5,57,76,7,11,523,261,36,40,170,107,21,32]
[null,"Less than $10,000",0,17,91,91,198,106,0,17,0,12,0,12,0,12,0,12,0,12,0,25,0,12,16,27,0,12]
[null,"$10,000 to $14,999",0,17,65,85,95,82,0,17,0,12,0,12,3,5,0,12,0,12,0,25,0,12,0,19,0,12]
[null,"$15,000 to $19,999",0,17,0,25,61,66,0,17,0,12,0,12,0,12,0,12,0,12,102,133,0,12,0,19,0,12]
[null,"$20,000 to $24,999",0,17,19,32,31,35,0,17,0,12,0,12,0,12,0,12,0,12,0,25,0,12,0,19,0,12]
[null,"$25,000 to $29,999",0,17,28,48,11,20,0,17,0,12,0,12,0,12,0,12,0,12,42,52,16,25,30,50,0,12]
[null,"$30,000 to $34,999",0,17,33,38,13,14,0,17,0,12,0,12,0,12,0,12,0,12,0,25,0,12,34,58,0,12]
[null,"$35,000 to $39,999",0,17,177,148,22,28,0,17,0,12,0,12,0,12,0,12,0,12,0,25,0,12,0,19,0,12]
[null,"$40,000 to $44,999",0,17,8,12,104,100,72,89,0,12,0,12,0,12,0,12,0,12,0,25,0,12,0,19,0,12]
[null,"$45,000 to $49,999",30,50,2,4,13,15,0,17,0,12,5,8,0,12,0,12,0,12,0,25,0,12,0,19,0,12]
[null,"$50,000 to $59,999",0,17,201,136,30,41,79,117,0,12,0,12,0,12,0,12,7,11,46,68,0,12,52,59,0,12]
[null,"$60,000 to $74,999",0,17,96,76,11,13,0,17,0,12,0,12,0,12,0,12,0,12,71,68,0,12,0,19,21,32]
[null,"$75,000 to $99,999",0,17,178,150,32,36,0,17,0,12,2,5,0,12,0,12,0,12,169,153,20,35,16,28,0,12]
[null,"$100,000 to $124,999",0,17,91,113,0,19,0,17,0,12,0,12,0,12,46,71,0,12,52,65,0,12,22,34,0,12]
[null,"$125,000 to $149,999",0,17,0,25,10,17,0,17,0,12,0,12,0,12,11,22,0,12,34,43,0,12,0,19,0,12]
[null,"$150,000 to $199,999",0,17,92,76,0,19,0,17,0,12,0,12,0,12,0,12,0,12,7,12,0,12,0,19,0,12]
[null,"$200,000 or more",0,17,16,31,22,35,0,17,0,12,0,12,0,12,0,12,0,12,0,25,0,12,0,19,0,12]
[null,"Householder 25 to 44 years:",1001,172,5612,488,715,167,800,192,468,110,218,80,184,58,396,77,254,89,3721,332,326,73,1763,289,280,61]
[null,"Less than $10,000",24,38,43,43,0,19,56,61,0,12,0,12,3,4,0,12,0,12,95,87,14,23,0,19,0,12]
[null,"$10,000 to $14,999",60,98,67,67,0,19,119,120,0,12,0,12,0,12,0,12,0,12,144,93,0,12,112,108,0,12]
[null,"$15,000 to $19,999",0,17,167,141,0,19,0,17,0,12,0,12,0,12,0,12,0,12,39,51,16,23,15,25,5,9]
[null,"$20,000 to $24,999",16,26,87,97,4,7,0,17,0,12,0,12,0,12,0,12,0,12,61,49,0,12,22,38,0,12]
[null,"$25,000 to $29,999",0,17,195,177,10,11,60,73,0,12,0,12,0,12,0,12,4,6,90,73,6,9,143,164,0,12]
[null,"$30,000 to $34,999",0,17,154,108,16,24,88,95,0,12,0,12,2,4,15,23,6,9,77,72,0,12,0,19,0,12]
[null,"$35,000 to $39,999",53,79,155,103,12,19,0,17,0,12,0,12,0,12,12,19,0,12,159,98,0,12,13,24,0,12]
[null,"$40,000 to $44,999",4,10,158,109,5,7,0,17,17,26,3,5,0,12,9,15,5,7,71,88,0,12,16,26,0,12]
[null,"$45,000 to $49,999",64,83,153,94,0,19,68,95,0,12,0,12,13,14,0,12,0,12,129,115,18,26,55,87,0,12]
[null,"$50,000 to $59,999",20,33,215,116,98,115,19,32,16,25,4,7,9,12,78,63,38,43,242,108,0,12,123,95,7,11]
[null,"$60,000 to $74,999",141,114,581,264,32,32,149,104,57,51,27,36,12,12,37,36,24,26,386,134,32,30,234,183,57,56]
[null,"$75,000 to $99,999",103,79,701,159,58,46,24,26,57,57,2,5,30,22,41,44,77,43,680,248,45,33,222,119,18,20]
[null,"$100,000 to $124,999",147,104,517,180,105,64,120,100,20,26,20,25,63,47,106,68,0,12,607,162,63,46,153,86,16,20]
[null,"$125,000 to $149,999",114,71,476,193,64,39,15,34,73,56,29,15,16,11,59,50,6,10,372,173,38,29,225,134,40,29]
[null,"$150,000 to $199,999",133,107,943,280,165,104,82,109,41,39,28,27,15,12,25,32,58,67,330,111,59,43,352,182,93,61]
[null,"$200,000 or more",122,67,1000,348,146,59,0,17,187,95,105,70,21,15,14,20,36,29,239,135,35,24,78,60,44,38]
[null,"Householder 45 to 64 years:",1559,173,4524,382,738,139,1304,294,760,137,339,69,224,43,797,123,493,98,5273,402,378,72,2054,322,786,99]
[null,"Less than $10,000",13,21,140,84,16,26,57,56,0,12,7,8,2,5,37,30,39,32,100,82,0,12,76,75,21,23]
[null,"$10,000 to $14,999",17,23,233,161,7,11,16,24,0,12,0,12,0,12,0,12,7,10,136,85,15,23,0,19,24,37]
[null,"$15,000 to $19,999",11,18,69,44,0,19,25,40,0,12,3,5,3,5,0,12,4,6,115,57,0,12,15,26,0,12]
[null,"$20,000 to $24,999",27,39,52,58,0,19,0,17,26,41,0,12,16,12,51,45,0,12,245,118,6,8,42,39,0,12]
[null,"$25,000 to $29,999",72,51,0,25,7,10,31,44,0,12,4,6,3,4,21,27,11,11,200,113,13,20,36,42,0,12]
[null,"$30,000 to $34,999",0,17,272,195,14,17,31,36,0,12,0,12,4,6,0,12,5,7,125,82,0,12,49,57,15,17]
[null,"$35,000 to $39,999",45,67,0,25,11,13,0,17,44,52,4,7,3,5,0,12,0,12,89,60,5,7,82,64,13,21]
[null,"$40,000 to $44,999",0,17,115,105,9,15,177,243,0,12,0,12,18,17,9,11,0,12,159,162,5,7,128,70,0,12]
[null,"$45,000 to $49,999",72,83,54,43,9,13,81,63,49,72,0,12,0,12,15,17,0,12,136,88,0,12,16,27,8,12]
[null,"$50,000 to $59,999",138,77,147,86,14,17,9,18,0,12,0,12,10,8,90,69,9,9,232,114,27,15,174,110,10,16]
[null,"$60,000 to $74,999",70,60,352,179,29,30,128,93,153,104,15,17,30,19,83,91,50,55,579,193,17,20,235,186,26,24]
[null,"$75,000 to $99,999",117,76,739,224,72,42,173,104,26,40,38,31,17,12,61,59,39,27,554,160,83,69,547,271,79,62]
[null,"$100,000 to $124,999",255,115,412,157,9,11,248,129,92,86,44,32,39,16,113,77,66,32,689,154,39,24,89,66,87,50]
[null,"$125,000 to $149,999",182,91,383,164,72,40,120,78,116,107,16,13,35,24,84,46,83,39,523,190,36,19,161,89,118,60]
[null,"$150,000 to $199,999",145,73,493,134,163,71,139,80,159,101,52,30,14,14,165,68,84,38,740,240,36,23,203,109,183,75]
[null,"$200,000 or more",395,162,1063,203,306,109,69,63,95,69,156,46,30,18,68,56,96,49,651,180,96,39,201,105,202,100]
[null,"Householder 65 years and over:",811,186,3373,337,894,167,656,168,611,155,124,41,145,43,414,101,250,55,4025,398,330,86,1245,285,353,80]
[null,"Less than $10,000",0,17,56,43,17,20,78,81,51,80,6,9,0,12,0,12,6,9,236,126,34,37,6,12,9,9]
[null,"$10,000 to $14,999",0,17,200,118,58,46,115,99,0,12,0,12,3,4,25,28,13,10,412,235,5,7,71,72,6,9]
[null,"$15,000 to $19,999",0,17,154,92,7,8,9,14,0,12,0,12,15,18,26,34,0,12,268,128,3,5,76,83,0,12]
[null,"$20,000 to $24,999",21,35,85,64,19,27,34,36,16,25,6,6,3,5,20,23,24,19,244,104,55,79,171,215,0,12]
[null,"$25,000 to $29,999",25,29,168,92,28,41,67,58,29,31,2,4,6,7,65,63,7,10,240,87,21,19,18,30,9,13]
[null,"$30,000 to $34,999",222,141,198,93,13,14,14,24,0,12,8,10,7,7,10,15,25,26,378,254,19,23,28,32,19,19]
[null,"$35,000 to $39,999",77,92,159,113,29,23,0,17,0,12,5,9,0,12,48,45,15,12,165,75,4,8,36,43,17,19]
[null,"$40,000 to $44,999",4,7,348,209,21,22,34,41,0,12,3,4,13,12,8,14,4,6,167,128,6,8,65,60,28,25]
[null,"$45,000 to $49,999",19,29,56,53,25,30,33,41,33,35,0,12,18,18,0,12,17,12,189,95,10,12,82,63,33,23]
[null,"$50,000 to $59,999",35,42,275,128,40,33,53,60,90,127,7,7,17,12,44,47,8,12,369,162,36,27,72,69,43,33]
[null,"$60,000 to $74,999",33,34,302,118,33,25,140,69,56,51,3,6,6,6,48,33,0,12,243,100,28,24,167,83,63,50]
[null,"$75,000 to $99,999",135,87,211,108,187,85,32,40,100,77,31,18,25,15,37,26,66,36,579,210,48,31,239,120,56,29]
[null,"$100,000 to $124,999",115,83,447,226,73,41,0,17,19,24,9,10,15,11,35,29,34,22,238,94,45,33,138,93,16,17]
[null,"$125,000 to $149,999",20,28,106,68,30,27,0,17,151,96,4,5,6,7,12,19,7,10,137,117,0,12,12,22,21,26]
[null,"$150,000 to $199,999",31,34,406,175,132,46,47,57,25,29,17,12,1,4,36,27,19,18,108,62,0,12,64,51,25,20]
[null,"$200,000 or more",74,58,202,88,182,80,0,17,41,55,23,16,10,11,0,12,5,7,52,52,16,13,0,19,8,12]
[]
[]
[]
[]
[]
[]
[]
[]
[]
[]
[]
[]
[]
[]
[null,"B19037. AGE OF HOUSEHOLDER BY HOUSEHOLD INCOME IN THE PAST 12 MONTHS (IN 2017 INFLATION-ADJUSTED DOLLARS)"]
[null,"Universe:  HOUSEHOLDS"]
[null,"Data Set: 2013-2017 American Community Survey 5-Year Estimates"]
[]
[null,null,"Barrington",null,"Dover",null,"Durham",null,"Farmington",null,"Lee",null,"Madbury",null,"Middleton",null,"Milton",null,"New Durham",null,"Rochester",null,"Rollinsford",null,"Somersworth",null,"Strafford"]
[null,null,"Estimate","Margin Of Error","Estimate","Margin Of Error","Estimate","Margin Of Error","Estimate","Margin Of Error","Estimate","Margin Of Error","Estimate","Margin Of Error","Estimate","Margin Of Error","Estimate","Margin Of Error","Estimate","Margin Of Error","Estimate","Margin Of Error","Estimate","Margin Of Error","Estimate","Margin Of Error","Estimate","Margin Of Error"]
[null,"Total:",3388,209,13194,359,3325,237,2719,176,1752,139,621,60,595,70,1732,107,995,58,12837,353,1048,57,4905,237,1432,100]
[null,"Householder under 25 years:",12,20,1054,245,934,174,186,172,0,11,9,11,12,13,64,57,0,11,682,244,87,62,274,176,38,37]
[null,"Less than $10,000",0,16,0,24,265,118,0,16,0,11,4,6,0,11,0,11,0,11,0,24,12,18,80,124,10,16]
[null,"$10,000 to $14,999",0,16,114,70,136,82,0,16,0,11,0,11,0,11,11,17,0,11,0,24,0,11,0,18,0,11]
[null,"$15,000 to $19,999",0,16,20,30,65,60,0,16,0,11,0,11,0,11,0,11,0,11,31,48,9,13,0,18,0,11]
[null,"$20,000 to $24,999",0,16,178,134,67,54,0,16,0,11,0,11,0,11,0,11,0,11,17,27,0,11,0,18,0,11]
[null,"$25,000 to $29,999",12,20,42,48,134,79,72,106,0,11,0,11,0,11,30,47,0,11,106,82,0,11,92,133,0,11]
[null,"$30,000 to $34,999",0,16,34,44,29,21,0,16,0,11,0,11,0,11,0,11,0,11,12,19,0,11,0,18,0,11]
[null,"$35,000 to $39,999",0,16,103,65,41,48,57,87,0,11,0,11,0,11,7,12,0,11,26,39,0,11,0,18,0,11]
[null,"$40,000 to $44,999",0,16,68,66,36,31,0,16,0,11,0,11,0,11,0,11,0,11,0,24,0,11,0,18,0,11]
[null,"$45,000 to $49,999",0,16,177,135,44,49,0,16,0,11,0,11,4,6,0,11,0,11,130,114,13,20,0,18,14,21]
[null,"$50,000 to $59,999",0,16,47,54,29,29,0,16,0,11,0,11,0,11,0,11,0,11,14,22,16,25,0,18,14,23]
[null,"$60,000 to $74,999",0,16,92,74,34,28,57,91,0,11,0,11,0,11,0,11,0,11,136,127,0,11,76,68,0,11]
[null,"$75,000 to $99,999",0,16,148,95,8,12,0,16,0,11,5,8,8,9,16,26,0,11,116,100,37,55,0,18,0,11]
[null,"$100,000 to $124,999",0,16,31,48,9,12,0,16,0,11,0,11,0,11,0,11,0,11,80,121,0,11,26,42,0,11]
[null,"$125,000 to $149,999",0,16,0,24,0,18,0,16,0,11,0,11,0,11,0,11,0,11,0,24,0,11,0,18,0,11]
[null,"$150,000 to $199,999",0,16,0,24,37,36,0,16,0,11,0,11,0,11,0,11,0,11,0,24,0,11,0,18,0,11]
[null,"$200,000 or more",0,16,0,24,0,18,0,16,0,11,0,11,0,11,0,11,0,11,14,23,0,11,0,18,0,11]
[null,"Householder 25 to 44 years:",1026,181,4636,299,624,106,817,187,534,133,212,51,175,38,354,82,216,62,4022,344,230,40,1526,226,361,92]
[null,"Less than $10,000",83,122,200,108,27,20,16,27,0,11,4,6,0,11,0,11,0,11,329,201,5,9,0,18,0,11]
[null,"$10,000 to $14,999",0,16,83,78,10,15,0,16,0,11,0,11,3,4,38,39,0,11,34,42,6,9,15,25,0,11]
[null,"$15,000 to $19,999",0,16,55,45,42,25,17,27,0,11,0,11,4,5,9,15,8,11,146,93,0,11,32,39,0,11]
[null,"$20,000 to $24,999",0,16,139,78,4,7,82,79,0,11,0,11,0,11,0,11,0,11,216,130,5,8,123,99,0,11]
[null,"$25,000 to $29,999",0,16,211,141,6,9,19,31,0,11,0,11,0,11,51,48,10,15,171,102,0,11,0,18,0,11]
[null,"$30,000 to $34,999",63,76,69,47,36,32,18,29,0,11,15,16,0,11,20,24,13,13,196,117,5,8,31,36,0,11]
[null,"$35,000 to $39,999",40,65,220,100,20,22,60,75,0,11,5,7,6,7,0,11,8,11,94,59,4,8,81,53,0,11]
[null,"$40,000 to $44,999",0,16,252,123,4,6,0,16,60,90,3,4,0,11,0,11,17,19,240,121,5,8,48,48,11,18]
[null,"$45,000 to $49,999",0,16,149,76,51,58,55,85,0,11,7,9,0,11,38,31,0,11,212,141,5,8,124,81,30,39]
[null,"$50,000 to $59,999",13,21,399,136,10,12,134,96,42,44,3,5,16,17,12,20,25,20,215,100,37,26,180,101,25,40]
[null,"$60,000 to $74,999",66,77,559,161,46,32,58,52,18,27,12,11,41,29,87,52,18,14,428,148,35,21,218,101,52,45]
[null,"$75,000 to $99,999",156,106,851,208,96,55,106,67,0,11,21,18,51,22,14,17,29,20,1011,295,26,21,319,118,29,28]
[null,"$100,000 to $124,999",124,85,547,176,14,15,114,86,209,148,30,22,19,14,54,48,34,21,281,113,38,22,123,80,31,44]
[null,"$125,000 to $149,999",56,64,419,132,59,39,63,57,38,41,40,23,20,18,0,11,12,14,153,77,17,14,140,99,42,38]
[null,"$150,000 to $199,999",375,189,326,114,101,45,75,59,82,91,28,17,8,8,15,18,42,38,209,104,37,21,58,53,105,64]
[null,"$200,000 or more",50,64,157,96,98,50,0,16,85,67,44,27,7,8,16,18,0,11,87,67,5,7,34,37,36,34]
[null,"Householder 45 to 64 years:",1730,268,4651,297,917,110,1164,179,872,178,286,49,294,53,971,120,516,67,4843,329,490,69,2206,261,755,90]
[null,"Less than $10,000",37,60,185,100,13,14,13,23,0,11,0,11,15,9,14,16,25,27,182,102,0,11,120,76,23,18]
[null,"$10,000 to $14,999",96,94,183,80,0,18,70,106,0,11,5,7,4,5,20,33,0,11,227,109,24,25,111,107,0,11]
[null,"$15,000 to $19,999",15,24,165,104,7,10,18,31,0,11,2,4,2,4,17,19,4,7,273,142,0,11,61,52,8,12]
[null,"$20,000 to $24,999",83,111,126,66,18,18,128,106,16,25,0,11,7,7,68,53,8,14,89,56,11,12,100,91,17,26]
[null,"$25,000 to $29,999",15,24,91,55,27,27,30,34,41,63,3,5,11,14,6,10,14,20,162,82,37,33,68,64,40,42]
[null,"$30,000 to $34,999",109,101,101,76,0,18,30,35,0,11,8,7,10,7,20,24,0,11,241,98,6,9,75,60,7,11]
[null,"$35,000 to $39,999",26,42,118,82,25,40,39,46,24,37,5,6,6,9,48,41,20,16,232,110,0,11,131,73,31,26]
[null,"$40,000 to $44,999",58,62,162,84,0,18,20,31,20,31,2,6,3,6,28,27,27,34,168,76,6,8,35,27,0,11]
[null,"$45,000 to $49,999",41,69,115,88,0,18,39,47,0,11,14,17,12,7,68,59,0,11,308,151,0,11,73,56,0,11]
[null,"$50,000 to $59,999",76,74,209,79,34,30,46,51,52,44,25,19,22,12,68,53,38,20,311,140,51,37,191,91,47,27]
[null,"$60,000 to $74,999",167,105,555,171,26,20,69,66,136,86,26,14,51,24,132,57,51,21,430,131,66,42,401,171,35,27]
[null,"$75,000 to $99,999",249,141,659,157,114,59,210,109,206,99,43,23,40,16,129,57,78,36,893,211,64,27,331,127,68,42]
[null,"$100,000 to $124,999",118,84,553,147,107,47,210,142,191,106,34,16,28,15,190,85,87,36,547,188,72,36,186,84,171,65]
[null,"$125,000 to $149,999",225,149,516,142,167,60,103,84,17,26,28,18,37,21,83,51,44,25,365,120,45,24,123,72,166,73]
[null,"$150,000 to $199,999",329,142,564,148,163,73,139,87,121,63,43,22,25,15,61,46,66,25,256,110,58,26,163,96,53,35]
[null,"$200,000 or more",86,85,349,125,216,64,0,16,48,41,48,24,21,22,19,23,54,33,159,67,50,31,37,40,89,54]
[null,"Householder 65 years and over:",620,164,2853,230,850,110,552,159,346,108,114,40,114,29,343,69,263,60,3290,201,241,44,899,136,278,78]
[null,"Less than $10,000",0,16,150,68,14,17,0,16,0,11,2,4,2,4,0,11,5,7,192,94,0,11,33,37,13,20]
[null,"$10,000 to $14,999",62,84,207,88,42,52,67,80,0,11,0,11,9,9,36,43,6,8,249,125,0,11,83,59,0,11]
[null,"$15,000 to $19,999",95,104,264,125,23,20,56,87,49,78,3,5,10,15,9,15,6,7,307,152,16,14,50,48,36,45]
[null,"$20,000 to $24,999",37,67,184,97,34,30,82,58,13,19,3,5,9,6,0,11,0,11,334,123,18,15,70,46,9,14]
[null,"$25,000 to $29,999",13,22,254,139,32,27,18,30,0,11,4,8,2,4,9,13,12,12,201,68,32,35,67,58,33,36]
[null,"$30,000 to $34,999",0,16,107,62,35,29,17,27,16,25,16,22,15,11,0,11,29,28,229,97,20,14,41,33,20,18]
[null,"$35,000 to $39,999",0,16,180,111,21,23,17,29,0,11,8,7,5,6,9,14,5,8,130,68,15,15,13,21,13,21]
[null,"$40,000 to $44,999",108,107,114,70,25,25,16,26,0,11,5,6,16,10,9,14,30,27,168,98,14,14,108,76,0,11]
[null,"$45,000 to $49,999",13,21,94,60,20,25,61,69,34,38,0,11,6,7,25,23,18,17,219,78,11,11,50,46,41,35]
[null,"$50,000 to $59,999",34,38,204,110,53,35,47,54,0,11,5,7,5,5,64,47,41,21,259,87,31,21,68,63,29,26]
[null,"$60,000 to $74,999",104,83,361,109,86,45,58,61,14,23,16,12,15,10,51,45,59,35,433,151,16,15,127,66,11,17]
[null,"$75,000 to $99,999",13,26,371,119,108,44,63,55,31,34,19,13,17,10,38,27,39,31,256,103,26,16,54,49,18,20]
[null,"$100,000 to $124,999",35,54,138,82,63,44,34,39,27,28,6,6,0,11,25,21,0,11,198,91,18,14,85,65,11,19]
[null,"$125,000 to $149,999",29,34,86,65,79,47,0,16,85,89,9,9,0,11,51,38,0,11,39,31,5,7,20,32,25,26]
[null,"$150,000 to $199,999",77,90,50,43,142,60,16,27,34,36,8,8,0,11,17,20,6,8,76,52,14,11,0,18,7,12]
[null,"$200,000 or more",0,16,89,56,73,42,0,16,43,38,10,9,3,5,0,11,7,10,0,24,5,7,30,34,12,18]
[]
[]
[]
[]
[]
[]
[]
[]
[]
[]
[]
[]
[]
[]
[null,"B19037. AGE OF HOUSEHOLDER BY HOUSEHOLD INCOME IN THE PAST 12 MONTHS (IN 2012 INFLATION-ADJUSTED DOLLARS)"]
[null,"Universe:  HOUSEHOLDS"]
[null,"Data Set: 2008-2012 American Community Survey 5-Year Estimates"]
[]
[null,null,"Barrington",null,"Dover",null,"Durham",null,"Farmington",null,"Lee",null,"Madbury",null,"Middleton",null,"Milton",null,"New Durham",null,"Rochester",null,"Rollinsford",null,"Somersworth",null,"Strafford"]
[null,null,"Estimate","Margin Of Error","Estimate","Margin Of Error","Estimate","Margin Of Error","Estimate","Margin Of Error","Estimate","Margin Of Error","Estimate","Margin Of Error","Estimate","Margin Of Error","Estimate","Margin Of Error","Estimate","Margin Of Error","Estimate","Margin Of Error","Estimate","Margin Of Error","Estimate","Margin Of Error","Estimate","Margin Of Error"]
[null,"Total:",2987,193,12512,344,3327,354,2646,185,1773,146,656,57,593,63,1660,130,955,62,12762,368,1020,77,4552,227,1378,88]
[null,"Householder under 25 years:",41,46,1321,244,872,197,82,78,71,65,40,32,22,26,41,36,6,9,460,194,59,52,308,149,0,11]
[null,"Less than $10,000",0,16,197,122,436,145,20,33,12,18,18,20,0,11,10,15,0,11,68,53,0,11,0,18,0,11]
[null,"$10,000 to $14,999",0,16,83,70,98,68,0,16,0,11,0,11,0,11,0,11,0,11,0,21,0,11,15,25,0,11]
[null,"$15,000 to $19,999",0,16,50,47,90,51,0,16,0,11,0,11,0,11,0,11,0,11,0,21,26,39,14,22,0,11]
[null,"$20,000 to $24,999",0,16,106,96,45,45,0,16,0,11,0,11,16,24,0,11,0,11,58,57,0,11,0,18,0,11]
[null,"$25,000 to $29,999",21,34,135,127,0,18,0,16,35,56,0,11,0,11,0,11,0,11,106,81,33,37,48,72,0,11]
[null,"$30,000 to $34,999",0,16,107,98,34,41,45,67,0,11,15,24,0,11,0,11,0,11,100,117,0,11,13,22,0,11]
[null,"$35,000 to $39,999",0,16,18,22,34,35,17,27,0,11,0,11,6,9,0,11,0,11,22,26,0,11,0,18,0,11]
[null,"$40,000 to $44,999",0,16,102,88,8,13,0,16,24,36,0,11,0,11,0,11,0,11,46,70,0,11,0,18,0,11]
[null,"$45,000 to $49,999",0,16,131,112,15,28,0,16,0,11,7,12,0,11,0,11,0,11,17,19,0,11,76,84,0,11]
[null,"$50,000 to $59,999",0,16,166,111,90,94,0,16,0,11,0,11,0,11,15,18,0,11,0,21,0,11,59,59,0,11]
[null,"$60,000 to $74,999",20,32,148,100,0,18,0,16,0,11,0,11,0,11,16,26,0,11,0,21,0,11,15,23,0,11]
[null,"$75,000 to $99,999",0,16,0,24,11,18,0,16,0,11,0,11,0,11,0,11,6,9,0,21,0,11,0,18,0,11]
[null,"$100,000 to $124,999",0,16,10,16,0,18,0,16,0,11,0,11,0,11,0,11,0,11,0,21,0,11,0,18,0,11]
[null,"$125,000 to $149,999",0,16,68,88,0,18,0,16,0,11,0,11,0,11,0,11,0,11,43,66,0,11,68,82,0,11]
[null,"$150,000 to $199,999",0,16,0,24,0,18,0,16,0,11,0,11,0,11,0,11,0,11,0,21,0,11,0,18,0,11]
[null,"$200,000 or more",0,16,0,24,11,20,0,16,0,11,0,11,0,11,0,11,0,11,0,21,0,11,0,18,0,11]
[null,"Householder 25 to 44 years:",1164,151,4429,290,647,116,682,154,355,84,248,58,191,40,564,90,263,40,3945,276,314,71,1828,217,373,64]
[null,"Less than $10,000",0,16,200,117,38,38,15,23,0,11,0,11,12,15,37,42,0,11,207,105,30,34,196,131,11,17]
[null,"$10,000 to $14,999",50,62,71,62,0,18,36,54,0,11,0,11,0,11,0,11,0,11,176,94,29,31,54,43,0,11]
[null,"$15,000 to $19,999",0,16,201,127,3,6,23,32,0,11,5,7,0,11,0,11,5,7,71,48,12,12,38,58,0,11]
[null,"$20,000 to $24,999",18,28,169,90,16,22,12,18,0,11,6,8,0,11,0,11,10,13,150,105,4,6,27,30,34,51]
[null,"$25,000 to $29,999",34,34,293,136,9,14,11,19,21,34,3,6,17,17,15,18,4,7,242,113,13,13,31,35,8,14]
[null,"$30,000 to $34,999",21,35,270,102,0,18,26,31,0,11,0,11,4,6,17,24,13,13,318,152,17,13,29,32,26,30]
[null,"$35,000 to $39,999",13,20,205,97,11,18,11,18,0,11,4,7,17,20,27,30,6,9,208,107,4,9,107,70,0,11]
[null,"$40,000 to $44,999",0,16,215,96,3,5,12,21,0,11,5,9,13,14,18,21,4,6,321,156,0,11,46,40,0,11]
[null,"$45,000 to $49,999",150,110,156,100,11,15,110,90,23,33,0,11,22,18,6,10,5,9,162,80,16,21,92,53,0,11]
[null,"$50,000 to $59,999",64,48,379,159,40,32,18,29,41,49,50,49,8,9,90,56,8,12,338,141,21,23,134,97,64,37]
[null,"$60,000 to $74,999",132,86,443,153,59,36,106,93,105,64,39,32,22,13,71,55,9,9,366,134,26,29,205,103,83,56]
[null,"$75,000 to $99,999",345,115,641,159,87,60,143,75,73,55,44,30,31,20,245,85,60,25,693,176,47,33,397,146,47,33]
[null,"$100,000 to $124,999",118,81,442,122,118,53,123,86,38,42,25,18,30,19,4,8,103,39,319,109,75,62,190,75,60,43]
[null,"$125,000 to $149,999",65,49,279,91,50,30,0,16,28,29,24,15,6,6,16,20,11,13,108,51,9,11,158,103,33,31]
[null,"$150,000 to $199,999",93,68,289,130,86,46,0,16,9,13,7,8,9,8,0,11,25,20,162,72,11,12,112,85,7,14]
[null,"$200,000 or more",61,72,176,75,116,56,36,55,17,25,36,27,0,11,18,27,0,11,104,78,0,11,12,19,0,11]
[null,"Householder 45 to 64 years:",1520,196,4573,298,1283,171,1348,173,878,130,277,62,301,46,717,119,491,69,5467,327,418,72,1539,228,692,102]
[null,"Less than $10,000",48,47,116,93,38,30,9,15,48,55,0,11,12,9,45,47,9,9,246,122,5,7,164,99,0,11]
[null,"$10,000 to $14,999",15,24,154,81,24,38,85,83,20,31,2,4,20,14,42,40,11,12,255,103,8,9,101,77,0,11]
[null,"$15,000 to $19,999",0,16,88,61,20,19,97,85,0,11,8,8,4,6,9,15,18,27,219,95,0,11,35,33,0,11]
[null,"$20,000 to $24,999",83,90,174,72,68,50,47,44,25,40,22,23,15,17,49,44,26,29,166,86,32,28,56,50,9,14]
[null,"$25,000 to $29,999",85,55,162,86,18,19,0,16,0,11,3,7,10,9,36,31,15,16,265,133,5,7,35,34,0,11]
[null,"$30,000 to $34,999",67,56,182,82,22,27,121,101,11,18,11,9,9,8,22,26,6,9,190,78,0,11,88,75,5,8]
[null,"$35,000 to $39,999",0,16,137,87,0,18,49,62,45,61,0,11,12,11,11,17,0,11,207,123,8,10,78,50,17,18]
[null,"$40,000 to $44,999",23,28,300,119,13,17,45,62,13,21,11,10,20,11,38,35,6,9,214,115,15,15,84,69,38,36]
[null,"$45,000 to $49,999",31,34,95,54,58,60,9,15,29,33,4,7,15,11,32,37,35,21,365,142,16,15,89,87,22,24]
[null,"$50,000 to $59,999",83,53,435,133,36,31,152,69,42,40,12,10,30,16,51,34,14,14,601,180,24,23,91,58,52,47]
[null,"$60,000 to $74,999",99,64,545,127,77,41,196,93,78,53,18,18,41,18,133,65,54,27,685,147,76,37,128,67,53,52]
[null,"$75,000 to $99,999",415,139,668,174,196,85,204,97,87,67,55,29,51,22,77,42,102,44,695,173,55,26,285,87,199,76]
[null,"$100,000 to $124,999",228,93,472,127,125,50,88,56,90,56,35,23,31,17,82,61,51,33,527,156,65,30,100,56,119,52]
[null,"$125,000 to $149,999",100,101,486,110,125,52,92,76,115,55,34,16,8,9,47,45,55,24,416,113,13,11,78,51,41,32]
[null,"$150,000 to $199,999",123,71,329,117,164,82,97,77,151,98,45,22,21,19,15,16,69,36,316,120,72,41,116,79,87,59]
[null,"$200,000 or more",120,103,230,92,299,99,57,68,124,94,17,13,2,5,28,26,20,15,100,65,24,18,11,18,50,30]
[null,"Householder 65 years and over:",262,85,2189,210,525,112,534,177,469,115,91,29,79,26,338,93,195,48,2890,224,229,46,877,174,313,93]
[null,"Less than $10,000",0,16,142,72,8,12,6,10,93,77,0,11,0,11,0,11,5,8,80,46,0,11,80,53,9,15]
[null,"$10,000 to $14,999",0,16,187,88,9,14,103,78,30,47,8,9,3,5,43,34,11,13,444,131,22,17,135,71,8,14]
[null,"$15,000 to $19,999",23,26,105,56,61,36,88,81,36,44,0,11,7,6,31,36,4,6,190,71,19,15,62,49,12,18]
[null,"$20,000 to $24,999",13,20,258,107,16,18,48,40,0,11,3,4,12,8,19,23,5,8,256,94,10,10,38,36,28,27]
[null,"$25,000 to $29,999",0,16,142,61,35,29,0,16,0,11,3,5,6,7,56,48,31,30,254,96,15,14,85,62,21,22]
[null,"$30,000 to $34,999",25,29,178,93,19,22,25,21,11,18,6,6,5,6,20,21,23,13,113,54,24,30,39,38,15,23]
[null,"$35,000 to $39,999",16,25,156,77,11,17,26,31,16,26,15,14,7,8,18,22,5,8,278,118,6,9,27,30,0,11]
[null,"$40,000 to $44,999",5,11,165,72,13,15,21,21,0,11,7,7,5,7,71,52,22,16,273,101,8,11,103,68,11,16]
[null,"$45,000 to $49,999",7,13,154,71,11,18,78,75,13,20,3,5,9,8,0,11,6,9,167,80,39,29,54,51,15,18]
[null,"$50,000 to $59,999",42,38,109,59,63,42,60,77,57,43,2,5,12,11,15,17,43,30,240,106,19,17,56,42,8,11]
[null,"$60,000 to $74,999",37,32,172,76,25,26,10,17,62,47,3,5,5,6,34,32,26,19,202,82,26,16,88,59,66,59]
[null,"$75,000 to $99,999",56,40,163,68,130,56,9,14,70,47,8,8,8,7,0,11,3,6,149,72,20,17,21,26,37,48]
[null,"$100,000 to $124,999",31,42,134,54,24,21,17,29,63,45,7,7,0,11,0,11,7,9,114,59,5,7,62,76,9,15]
[null,"$125,000 to $149,999",7,11,48,42,31,25,12,21,0,11,5,6,0,11,21,34,0,11,76,41,0,11,0,18,33,42]
[null,"$150,000 to $199,999",0,16,36,29,40,32,0,16,0,11,10,9,0,11,0,11,0,11,34,33,16,13,13,22,10,15]
[null,"$200,000 or more",0,16,40,33,29,27,31,50,18,28,11,10,0,11,10,15,4,7,20,32,0,11,14,22,31,30]

{"sheet":"DisabilityByAge","index":21,"n_rows":72,"n_cols":15,"rows_kept":72,"cut":false,"hidden":true,"merged":[[51,13,51,14],[28,3,28,4],[28,5,28,6],[28,7,28,8],[28,9,28,10],[28,11,28,12],[28,13,28,14],[51,3,51,4],[51,5,51,6],[51,7,51,8],[51,9,51,10],[51,11,51,12]]}
[]
[]
[]
[]
[null,{"$f":"CntyDataLink!A20","v":"Rochester"}]
[null,"SOCIAL CHARACTERISTICS"]
[]
[null,"Disabilities By Age"]
[null,null,"Universe: Civilian Non-institutionalized Population"]
[]
[]
[]
[]
[]
[]
[]
[]
[]
[]
[]
[]
[]
[]
[]
[]
[]
[]
[]
[null,null,null,"Under 5",null,"5 to 17 years",null,"18 to 34 years",null,"35 to 64 years",null,"65 to 74 years",null,"75 years and older"]
[null,null,null,"Estimate","Margin of Error","Estimate","Margin of Error","Estimate","Margin of Error","Estimate","Margin of Error","Estimate","Margin of Error","Estimate","Margin of Error"]
[null,"Total ",null,{"$f":"CntyDataLink!D112","v":1410},{"$f":"CntyDataLink!E112","v":272.00183822908258},{"$f":"CntyDataLink!J112","v":4962},{"$f":"CntyDataLink!K112","v":520.18554382066407},{"$f":"CntyDataLink!P112","v":6395},{"$f":"CntyDataLink!Q112","v":564.10016840983121},{"$f":"CntyDataLink!V112","v":13543},{"$f":"CntyDataLink!W112","v":587.29975310738894},{"$f":"CntyDataLink!AB112","v":3598},{"$f":"CntyDataLink!AC112","v":376.70280062670093},{"$f":"CntyDataLink!AH112","v":2278},{"$f":"CntyDataLink!AI112","v":327.70260908329675}]
[]
[null,"With a disability:",null,{"$f":"CntyDataLink!F112","v":63},{"$f":"CntyDataLink!G112","v":80.006249755878443},{"$f":"CntyDataLink!L112","v":268},{"$f":"CntyDataLink!M112","v":109.20164833920778},{"$f":"CntyDataLink!R112","v":906},{"$f":"CntyDataLink!S112","v":276.94223224347706},{"$f":"CntyDataLink!X112","v":2410},{"$f":"CntyDataLink!Y112","v":349.54255821001254},{"$f":"CntyDataLink!AD112","v":938},{"$f":"CntyDataLink!AE112","v":311.58947350640716},{"$f":"CntyDataLink!AJ112","v":1178},{"$f":"CntyDataLink!AK112","v":265.50517885721177}]
[]
[]
[]
[null,"Type of disability"]
[null,null,"Hearing disability",{"$f":"CntyDataLink!AN112","v":0},{"$f":"CntyDataLink!AO112","v":16.970562748477139},{"$f":"CntyDataLink!AP112","v":0},{"$f":"CntyDataLink!AQ112","v":16.970562748477139},{"$f":"CntyDataLink!AR112","v":0},{"$f":"CntyDataLink!AS112","v":16.970562748477139},{"$f":"CntyDataLink!AT112","v":21},{"$f":"CntyDataLink!AU112","v":20},{"$f":"CntyDataLink!AV112","v":8},{"$f":"CntyDataLink!AW112","v":10.63014581273465},{"$f":"CntyDataLink!AX112","v":106},{"$f":"CntyDataLink!AY112","v":84.504437753291981}]
[null,null,"Visual disability",{"$f":"CntyDataLink!AZ112","v":63},{"$f":"CntyDataLink!BA112","v":80.006249755878443},{"$f":"CntyDataLink!BB112","v":0},{"$f":"CntyDataLink!BC112","v":35.355339059327378},{"$f":"CntyDataLink!BD112","v":184},{"$f":"CntyDataLink!BE112","v":132.09844813622905},{"$f":"CntyDataLink!BF112","v":339},{"$f":"CntyDataLink!BG112","v":150.41608956491322},{"$f":"CntyDataLink!BH112","v":200},{"$f":"CntyDataLink!BI112","v":181.20154524727431},{"$f":"CntyDataLink!BJ112","v":282},{"$f":"CntyDataLink!BK112","v":177.77513886930311}]
[null,null,"Cognitive disability","NA","NA",{"$f":"CntyDataLink!BL112","v":102},{"$f":"CntyDataLink!BM112","v":70.213958726167832},{"$f":"CntyDataLink!BN112","v":424},{"$f":"CntyDataLink!BO112","v":146.47866738880444},{"$f":"CntyDataLink!BP112","v":894},{"$f":"CntyDataLink!BQ112","v":231.63117234085743},{"$f":"CntyDataLink!BR112","v":200},{"$f":"CntyDataLink!BS112","v":133.01503674397117},{"$f":"CntyDataLink!BT112","v":200},{"$f":"CntyDataLink!BU112","v":112.27199116431488}]
[null,null,"Ambulatory disability","NA","NA",{"$f":"CntyDataLink!BV112","v":7},{"$f":"CntyDataLink!BW112","v":24.186773244895647},{"$f":"CntyDataLink!BX112","v":160},{"$f":"CntyDataLink!BY112","v":120.3536455617361},{"$f":"CntyDataLink!BZ112","v":1368},{"$f":"CntyDataLink!CA112","v":264.66015944981217},{"$f":"CntyDataLink!CB112","v":491},{"$f":"CntyDataLink!CC112","v":167.09278859364338},{"$f":"CntyDataLink!CD112","v":548},{"$f":"CntyDataLink!CE112","v":150.81445554057476}]
[null,null,"Self-care disability","NA","NA",{"$f":"CntyDataLink!CF112","v":105},{"$f":"CntyDataLink!CG112","v":73.389372527635089},{"$f":"CntyDataLink!CH112","v":5},{"$f":"CntyDataLink!CI112","v":27.313000567495326},{"$f":"CntyDataLink!CJ112","v":539},{"$f":"CntyDataLink!CK112","v":176.9547964876906},{"$f":"CntyDataLink!CL112","v":162},{"$f":"CntyDataLink!CM112","v":176.36609651517495},{"$f":"CntyDataLink!CN112","v":298},{"$f":"CntyDataLink!CO112","v":177.15812146215595}]
[null,null,"Independent living disability","NA","NA","NA","NA",{"$f":"CntyDataLink!CP112","v":441},{"$f":"CntyDataLink!CQ112","v":209.74746720759228},{"$f":"CntyDataLink!CR112","v":876},{"$f":"CntyDataLink!CS112","v":222.49719099350446},{"$f":"CntyDataLink!CT112","v":201},{"$f":"CntyDataLink!CU112","v":180.2692430782356},{"$f":"CntyDataLink!CV112","v":673},{"$f":"CntyDataLink!CW112","v":229.10696191953662}]
[]
[]
[]
[null,"No disability",null,{"$f":"CntyDataLink!H112","v":1347},{"$f":"CntyDataLink!I112","v":261.74797038372617},{"$f":"CntyDataLink!N112","v":4694},{"$f":"CntyDataLink!O112","v":512.86742926413251},{"$f":"CntyDataLink!T112","v":5489},{"$f":"CntyDataLink!U112","v":579.24951445814781},{"$f":"CntyDataLink!Z112","v":11133},{"$f":"CntyDataLink!AA112","v":590.52942348370755},{"$f":"CntyDataLink!AF112","v":2660},{"$f":"CntyDataLink!AG112","v":361.76373505369497},{"$f":"CntyDataLink!AL112","v":1100},{"$f":"CntyDataLink!AM112","v":284.44507378402602}]
[null,"Source: 2018-2022 American Community Survey Tables B18101;  B18102; B18103; B18104; B18105; B18106; and B18107"]
[null,"NA indicates that the American Community Survey does not calculate the number for that disability."]
[null,"Percent of Population with Disabilities"]
[]
[null,null,null,"Under 5",null,"5 to 17 years",null,"18 to 34 years",null,"35 to 64 years",null,"65 to 74 years",null,"75 years and older"]
[]
[null,"With a disability:",null,{"$f":"D33/D$31","v":4.4680851063829789E-2},null,{"$f":"F33/F$31","v":5.401047964530431E-2},null,{"$f":"H33/H$31","v":0.14167318217357311},null,{"$f":"J33/J$31","v":0.17795170937015431},null,{"$f":"L33/L$31","v":0.26070038910505838},null,{"$f":"N33/N$31","v":0.51712028094820017}]
[]
[null,"Type of disability"]
[null,null,"Hearing disability",{"$f":"D38/D$31","v":0},null,{"$f":"F38/F$31","v":0},null,{"$f":"H38/H$31","v":0},null,{"$f":"J38/J$31","v":1.5506165546776932E-3},null,{"$f":"L38/L$31","v":2.2234574763757642E-3},null,{"$f":"N38/N$31","v":4.6532045654082525E-2}]
[null,null,"Visual disability",{"$f":"D39/D$31","v":4.4680851063829789E-2},null,{"$f":"F39/F$31","v":0},null,2.8772478498827209E-2,null,2.5031381525511334E-2,null,5.5586436909394105E-2,null,0.1237928007023705]
[null,null,"Cognitive disability","NA",null,{"$f":"F40/F$31","v":2.0556227327690448E-2},null,6.6301798279906177E-2,null,6.6011961899136079E-2,null,5.5586436909394105E-2,null,8.7796312554872691E-2]
[null,null,"Ambulatory disability","NA",null,{"$f":"F41/F$31","v":1.4107214832728737E-3},null,2.5019546520719312E-2,null,0.10101159270471831,null,0.13646470261256252,null,0.24056189640035119]
[null,null,"Self-care disability","NA",null,{"$f":"F42/F$31","v":2.1160822249093107E-2},null,7.8186082877247849E-4,null,3.9799158236727458E-2,null,4.5025013896609227E-2,null,0.13081650570676032]
[null,null,"Independent living disability","NA",null,"NA",null,6.8960125097732597E-2,null,6.4682861995126628E-2,null,5.5864369093941081E-2,null,0.29543459174714665]
[]
[]
[]
[null,"No disability",null,{"$f":"D47/D$31","v":0.9553191489361702},null,{"$f":"F47/F$31","v":0.94598952035469563},null,{"$f":"H47/H$31","v":0.85832681782642695},null,{"$f":"J47/J$31","v":0.82204829062984563},null,{"$f":"L47/L$31","v":0.73929961089494167},null,{"$f":"N47/N$31","v":0.48287971905179983}]
[]
[]
[null,"Source: 2018-2022 American Community Survey Tables B18101;  B18102; B18103; B18104; B18105; B18106; and B18107",null,null,null,null,null,null,null,null,"Data from the American Community Survey are estimates."]
[null,"NA indicates that the American Community Survey does not calculate the number for that disability."]
[]
[null,"Data from the American Community Survey are estimates."]

{"sheet":"DisabilityByAgePrior5YearEst","index":22,"n_rows":72,"n_cols":15,"rows_kept":72,"cut":false,"hidden":true,"merged":[[51,13,51,14],[28,3,28,4],[28,5,28,6],[28,7,28,8],[28,9,28,10],[28,11,28,12],[28,13,28,14],[51,3,51,4],[51,5,51,6],[51,7,51,8],[51,9,51,10],[51,11,51,12]]}
[]
[]
[]
[]
[null,{"$f":"CntyDataLink!A20","v":"Rochester"}]
[null,"SOCIAL CHARACTERISTICS"]
[]
[null,"Disabilities By Age"]
[null,null,"Universe: Civilian Non-institutionalized Population"]
[]
[]
[]
[]
[]
[]
[]
[]
[]
[]
[]
[]
[]
[]
[]
[]
[]
[]
[]
[null,null,null,"Under 5",null,"5 to 17 years",null,"18 to 34 years",null,"35 to 64 years",null,"65 to 74 years",null,"75 years and older"]
[null,null,null,"Estimate","Margin of Error","Estimate","Margin of Error","Estimate","Margin of Error","Estimate","Margin of Error","Estimate","Margin of Error","Estimate","Margin of Error"]
[null,"Total ",null,{"$f":"CntyDataLinkPrior5YearEstimates!D112","v":1481},{"$f":"CntyDataLinkPrior5YearEstimates!E112","v":263.00570336021235},{"$f":"CntyDataLinkPrior5YearEstimates!J112","v":4521},{"$f":"CntyDataLinkPrior5YearEstimates!K112","v":369.89863476363359},{"$f":"CntyDataLinkPrior5YearEstimates!P112","v":6734},{"$f":"CntyDataLinkPrior5YearEstimates!Q112","v":498.25495481731036},{"$f":"CntyDataLinkPrior5YearEstimates!V112","v":12087},{"$f":"CntyDataLinkPrior5YearEstimates!W112","v":414.36457377531684},{"$f":"CntyDataLinkPrior5YearEstimates!AB112","v":3036},{"$f":"CntyDataLinkPrior5YearEstimates!AC112","v":262.45190035509364},{"$f":"CntyDataLinkPrior5YearEstimates!AH112","v":2052},{"$f":"CntyDataLinkPrior5YearEstimates!AI112","v":219.93862780330335}]
[]
[null,"With a disability:",null,{"$f":"CntyDataLinkPrior5YearEstimates!F112","v":46},{"$f":"CntyDataLinkPrior5YearEstimates!G112","v":72.111025509279784},{"$f":"CntyDataLinkPrior5YearEstimates!L112","v":292},{"$f":"CntyDataLinkPrior5YearEstimates!M112","v":116.76472069936193},{"$f":"CntyDataLinkPrior5YearEstimates!R112","v":492},{"$f":"CntyDataLinkPrior5YearEstimates!S112","v":157.87653403846943},{"$f":"CntyDataLinkPrior5YearEstimates!X112","v":2301},{"$f":"CntyDataLinkPrior5YearEstimates!Y112","v":327.0244639166923},{"$f":"CntyDataLinkPrior5YearEstimates!AD112","v":644},{"$f":"CntyDataLinkPrior5YearEstimates!AE112","v":180.47160441465576},{"$f":"CntyDataLinkPrior5YearEstimates!AJ112","v":1028},{"$f":"CntyDataLinkPrior5YearEstimates!AK112","v":204.35263639111682}]
[]
[null,"With one disability:",null,{"$f":"CntyDataLinkPrior5YearEstimates!CX112","v":235},{"$f":"CntyDataLinkPrior5YearEstimates!CY112","v":113},{"$f":"CntyDataLinkPrior5YearEstimates!DB112","v":1721},{"$f":"CntyDataLinkPrior5YearEstimates!DC112","v":345},{"$f":"CntyDataLinkPrior5YearEstimates!DF112","v":851},{"$f":"CntyDataLinkPrior5YearEstimates!DG112","v":181},{"$f":"CntyDataLinkPrior5YearEstimates!DJ112","v":751},{"$f":"CntyDataLinkPrior5YearEstimates!DK112","v":211},{"$f":"CntyDataLinkPrior5YearEstimates!DN112","v":0},{"$f":"CntyDataLinkPrior5YearEstimates!DO112","v":0},{"$f":"CntyDataLinkPrior5YearEstimates!DR112","v":0},{"$f":"CntyDataLinkPrior5YearEstimates!DS112","v":0}]
[]
[null,"Type of disability"]
[null,null,"Hearing disability",{"$f":"CntyDataLinkPrior5YearEstimates!AN112","v":46},{"$f":"CntyDataLinkPrior5YearEstimates!AO112","v":72.111025509279784},{"$f":"CntyDataLinkPrior5YearEstimates!AP112","v":53},{"$f":"CntyDataLinkPrior5YearEstimates!AQ112","v":56.36488268416781},{"$f":"CntyDataLinkPrior5YearEstimates!AR112","v":59},{"$f":"CntyDataLinkPrior5YearEstimates!AS112","v":83.024092888751269},{"$f":"CntyDataLinkPrior5YearEstimates!AT112","v":483},{"$f":"CntyDataLinkPrior5YearEstimates!AU112","v":154.87091398968369},{"$f":"CntyDataLinkPrior5YearEstimates!AV112","v":168},{"$f":"CntyDataLinkPrior5YearEstimates!AW112","v":74.632432628181164},{"$f":"CntyDataLinkPrior5YearEstimates!AX112","v":597},{"$f":"CntyDataLinkPrior5YearEstimates!AY112","v":154.38264151127873}]
[null,null,"Visual disability",{"$f":"CntyDataLinkPrior5YearEstimates!AZ112","v":0},{"$f":"CntyDataLinkPrior5YearEstimates!BA112","v":33.941125496954278},{"$f":"CntyDataLinkPrior5YearEstimates!BB112","v":30},{"$f":"CntyDataLinkPrior5YearEstimates!BC112","v":37.215588131856791},{"$f":"CntyDataLinkPrior5YearEstimates!BD112","v":170},{"$f":"CntyDataLinkPrior5YearEstimates!BE112","v":119},{"$f":"CntyDataLinkPrior5YearEstimates!BF112","v":242},{"$f":"CntyDataLinkPrior5YearEstimates!BG112","v":98.2344135219425},{"$f":"CntyDataLinkPrior5YearEstimates!BH112","v":99},{"$f":"CntyDataLinkPrior5YearEstimates!BI112","v":56.586217403180434},{"$f":"CntyDataLinkPrior5YearEstimates!BJ112","v":249},{"$f":"CntyDataLinkPrior5YearEstimates!BK112","v":124.27791436936813}]
[null,null,"Cognitive disability","NA","NA",{"$f":"CntyDataLinkPrior5YearEstimates!BL112","v":142},{"$f":"CntyDataLinkPrior5YearEstimates!BM112","v":98.2344135219425},{"$f":"CntyDataLinkPrior5YearEstimates!BN112","v":387},{"$f":"CntyDataLinkPrior5YearEstimates!BO112","v":150.41608956491322},{"$f":"CntyDataLinkPrior5YearEstimates!BP112","v":825},{"$f":"CntyDataLinkPrior5YearEstimates!BQ112","v":227.96929617823537},{"$f":"CntyDataLinkPrior5YearEstimates!BR112","v":203},{"$f":"CntyDataLinkPrior5YearEstimates!BS112","v":124.33824833895642},{"$f":"CntyDataLinkPrior5YearEstimates!BT112","v":154},{"$f":"CntyDataLinkPrior5YearEstimates!BU112","v":80.131142510262507}]
[null,null,"Ambulatory disability","NA","NA",{"$f":"CntyDataLinkPrior5YearEstimates!BV112","v":0},{"$f":"CntyDataLinkPrior5YearEstimates!BW112","v":29.698484809834994},{"$f":"CntyDataLinkPrior5YearEstimates!BX112","v":142},{"$f":"CntyDataLinkPrior5YearEstimates!BY112","v":95.707888912043188},{"$f":"CntyDataLinkPrior5YearEstimates!BZ112","v":1168},{"$f":"CntyDataLinkPrior5YearEstimates!CA112","v":236.81216184985095},{"$f":"CntyDataLinkPrior5YearEstimates!CB112","v":526},{"$f":"CntyDataLinkPrior5YearEstimates!CC112","v":144.9413674559475},{"$f":"CntyDataLinkPrior5YearEstimates!CD112","v":522},{"$f":"CntyDataLinkPrior5YearEstimates!CE112","v":129.40247292845683}]
[null,null,"Self-care disability","NA","NA",{"$f":"CntyDataLinkPrior5YearEstimates!CF112","v":48},{"$f":"CntyDataLinkPrior5YearEstimates!CG112","v":46.690470119715009},{"$f":"CntyDataLinkPrior5YearEstimates!CH112","v":89},{"$f":"CntyDataLinkPrior5YearEstimates!CI112","v":84.723078319900537},{"$f":"CntyDataLinkPrior5YearEstimates!CJ112","v":294},{"$f":"CntyDataLinkPrior5YearEstimates!CK112","v":109.98636279102969},{"$f":"CntyDataLinkPrior5YearEstimates!CL112","v":28},{"$f":"CntyDataLinkPrior5YearEstimates!CM112","v":29.546573405388315},{"$f":"CntyDataLinkPrior5YearEstimates!CN112","v":176},{"$f":"CntyDataLinkPrior5YearEstimates!CO112","v":96.332756630338366}]
[null,null,"Independent living disability","NA","NA","NA","NA",{"$f":"CntyDataLinkPrior5YearEstimates!CP112","v":275},{"$f":"CntyDataLinkPrior5YearEstimates!CQ112","v":124.06449935416659},{"$f":"CntyDataLinkPrior5YearEstimates!CR112","v":528},{"$f":"CntyDataLinkPrior5YearEstimates!CS112","v":170.42300314218147},{"$f":"CntyDataLinkPrior5YearEstimates!CT112","v":136},{"$f":"CntyDataLinkPrior5YearEstimates!CU112","v":98.030607465219759},{"$f":"CntyDataLinkPrior5YearEstimates!CV112","v":326},{"$f":"CntyDataLinkPrior5YearEstimates!CW112","v":119.20151005754919}]
[]
[null,"With two or more types of disability:",null,{"$f":"CntyDataLinkPrior5YearEstimates!CZ112","v":103},{"$f":"CntyDataLinkPrior5YearEstimates!DA112","v":66},{"$f":"CntyDataLinkPrior5YearEstimates!DD112","v":1072},{"$f":"CntyDataLinkPrior5YearEstimates!DE112","v":220},{"$f":"CntyDataLinkPrior5YearEstimates!DH112","v":821},{"$f":"CntyDataLinkPrior5YearEstimates!DI112","v":210},{"$f":"CntyDataLinkPrior5YearEstimates!DL112","v":0},{"$f":"CntyDataLinkPrior5YearEstimates!DM112","v":0},{"$f":"CntyDataLinkPrior5YearEstimates!DP112","v":0},{"$f":"CntyDataLinkPrior5YearEstimates!DQ112","v":0},{"$f":"CntyDataLinkPrior5YearEstimates!DT112","v":0},{"$f":"CntyDataLinkPrior5YearEstimates!DU112","v":0}]
[]
[null,"No disability",null,{"$f":"CntyDataLinkPrior5YearEstimates!H112","v":1435},{"$f":"CntyDataLinkPrior5YearEstimates!I112","v":264.90941848111027},{"$f":"CntyDataLinkPrior5YearEstimates!N112","v":4229},{"$f":"CntyDataLinkPrior5YearEstimates!O112","v":378.41379467455994},{"$f":"CntyDataLinkPrior5YearEstimates!T112","v":6242},{"$f":"CntyDataLinkPrior5YearEstimates!U112","v":493.34065309885017},{"$f":"CntyDataLinkPrior5YearEstimates!Z112","v":9786},{"$f":"CntyDataLinkPrior5YearEstimates!AA112","v":431.35600146514713},{"$f":"CntyDataLinkPrior5YearEstimates!AF112","v":2392},{"$f":"CntyDataLinkPrior5YearEstimates!AG112","v":240.16869071550522},{"$f":"CntyDataLinkPrior5YearEstimates!AL112","v":1024},{"$f":"CntyDataLinkPrior5YearEstimates!AM112","v":194.20092687729377}]
[null,"Source: 2008-2012 American Community Survey Tables B18101;  B18102; B18103; B18104; B18105; B18106;  and B18107"]
[null,"NA indicates that the American Community Survey does not calculate the number for that disability."]
[null,"Percent of Population with Disabilities"]
[]
[null,null,null,"Under 5",null,"5 to 17 years",null,"18 to 34 years",null,"35 to 64 years",null,"65 to 74 years",null,"75 years and older"]
[]
[null,"With a disability:",null,{"$f":"D33/D$31","v":3.1060094530722483E-2},null,{"$f":"F33/F$31","v":6.4587480645874801E-2},null,{"$f":"H33/H$31","v":7.306207306207306E-2},null,{"$f":"J33/J$31","v":0.19036981881360138},null,{"$f":"L33/L$31","v":0.21212121212121213},null,{"$f":"N33/N$31","v":0.50097465886939574}]
[]
[null,"Type of disability"]
[null,null,"Hearing disability",{"$f":"D38/D$31","v":3.1060094530722483E-2},null,{"$f":"F38/F$31","v":1.1723070117230701E-2},null,{"$f":"H38/H$31","v":8.7615087615087617E-3},null,{"$f":"J38/J$31","v":3.996028791263341E-2},null,{"$f":"L38/L$31","v":5.533596837944664E-2},null,{"$f":"N38/N$31","v":0.29093567251461988}]
[null,null,"Visual disability",{"$f":"D39/D$31","v":0},null,{"$f":"F39/F$31","v":6.6357000663570011E-3},null,2.5245025245025244E-2,null,2.0021510713990238E-2,null,3.2608695652173912E-2,null,0.12134502923976608]
[null,null,"Cognitive disability","NA",null,{"$f":"F40/F$31","v":3.1408980314089806E-2},null,5.7469557469557467E-2,null,6.8255150161330352E-2,null,6.6864295125164688E-2,null,7.5048732943469781E-2]
[null,null,"Ambulatory disability","NA",null,{"$f":"F41/F$31","v":0},null,2.1087021087021086E-2,null,9.6632745925374366E-2,null,0.17325428194993411,null,0.25438596491228072]
[null,null,"Self-care disability","NA",null,{"$f":"F42/F$31","v":1.0617120106171201E-2},null,1.3216513216513216E-2,null,2.4323653512037725E-2,null,9.22266139657444E-3,null,8.5769980506822607E-2]
[null,null,"Independent living disability","NA",null,"NA",null,4.0837540837540841E-2,null,4.3683296103251425E-2,null,4.4795783926218712E-2,null,0.15886939571150097]
[]
[]
[]
[null,"No disability",null,{"$f":"D47/D$31","v":0.96893990546927755},null,{"$f":"F47/F$31","v":0.93541251935412517},null,{"$f":"H47/H$31","v":0.92693792693792698},null,{"$f":"J47/J$31","v":0.80963018118639862},null,{"$f":"L47/L$31","v":0.78787878787878785},null,{"$f":"N47/N$31","v":0.49902534113060426}]
[]
[]
[null,"Source: 2008-2012 American Community Survey Tables B18101;  B18102; B18103; B18104; B18105; B18106;  and B18107"]
[null,"NA indicates that the American Community Survey does not calculate the number for that disability."]
[]
[null,"Data from the American Community Survey are estimates."]

{"sheet":"DisabilityByAgePrior10YearEst","index":23,"n_rows":72,"n_cols":15,"rows_kept":72,"cut":false,"hidden":true,"merged":[[51,13,51,14],[28,3,28,4],[28,5,28,6],[28,7,28,8],[28,9,28,10],[28,11,28,12],[28,13,28,14],[51,3,51,4],[51,5,51,6],[51,7,51,8],[51,9,51,10],[51,11,51,12]]}
[]
[]
[]
[]
[null,{"$f":"CntyDataLink!A20","v":"Rochester"}]
[null,"SOCIAL CHARACTERISTICS"]
[]
[null,"Disabilities By Age"]
[null,null,"Universe: Civilian Non-institutionalized Population"]
[]
[]
[]
[]
[]
[]
[]
[]
[]
[]
[]
[]
[]
[]
[]
[]
[]
[]
[]
[null,null,null,"Under 5",null,"5 to 17 years",null,"18 to 34 years",null,"35 to 64 years",null,"65 to 74 years",null,"75 years and older"]
[null,null,null,"Estimate","Margin of Error","Estimate","Margin of Error","Estimate","Margin of Error","Estimate","Margin of Error","Estimate","Margin of Error","Estimate","Margin of Error"]
[null,"Total ",null,{"$f":"CntyDataLinkPrior10YearEstimate!D112","v":1422},{"$f":"CntyDataLinkPrior10YearEstimate!E112","v":249.01807163336559},{"$f":"CntyDataLinkPrior10YearEstimate!J112","v":4302},{"$f":"CntyDataLinkPrior10YearEstimate!K112","v":403.20962290104137},{"$f":"CntyDataLinkPrior10YearEstimate!P112","v":6260},{"$f":"CntyDataLinkPrior10YearEstimate!Q112","v":505.26131852735375},{"$f":"CntyDataLinkPrior10YearEstimate!V112","v":13110},{"$f":"CntyDataLinkPrior10YearEstimate!W112","v":428.05723916317544},{"$f":"CntyDataLinkPrior10YearEstimate!AB112","v":2646},{"$f":"CntyDataLinkPrior10YearEstimate!AC112","v":242.52834885843757},{"$f":"CntyDataLinkPrior10YearEstimate!AH112","v":1829},{"$f":"CntyDataLinkPrior10YearEstimate!AI112","v":192.75372888740699}]
[]
[null,"With a disability:",null,{"$f":"CntyDataLinkPrior10YearEstimate!F112","v":0},{"$f":"CntyDataLinkPrior10YearEstimate!G112","v":29.698484809834994},{"$f":"CntyDataLinkPrior10YearEstimate!L112","v":205},{"$f":"CntyDataLinkPrior10YearEstimate!M112","v":111.40017953306898},{"$f":"CntyDataLinkPrior10YearEstimate!R112","v":505},{"$f":"CntyDataLinkPrior10YearEstimate!S112","v":172.55723688098394},{"$f":"CntyDataLinkPrior10YearEstimate!X112","v":2105},{"$f":"CntyDataLinkPrior10YearEstimate!Y112","v":327.03516630478748},{"$f":"CntyDataLinkPrior10YearEstimate!AD112","v":784},{"$f":"CntyDataLinkPrior10YearEstimate!AE112","v":168.04761230080004},{"$f":"CntyDataLinkPrior10YearEstimate!AJ112","v":912},{"$f":"CntyDataLinkPrior10YearEstimate!AK112","v":165.42369842317032}]
[]
[null,"With one disability:",null,{"$f":"CntyDataLinkPrior10YearEstimate!CX112","v":194},{"$f":"CntyDataLinkPrior10YearEstimate!CY112","v":117},{"$f":"CntyDataLinkPrior10YearEstimate!DB112","v":1407},{"$f":"CntyDataLinkPrior10YearEstimate!DC112","v":292},{"$f":"CntyDataLinkPrior10YearEstimate!DF112","v":808},{"$f":"CntyDataLinkPrior10YearEstimate!DG112","v":147},{"$f":"CntyDataLinkPrior10YearEstimate!DJ112","v":0},{"$f":"CntyDataLinkPrior10YearEstimate!DK112","v":0},{"$f":"CntyDataLinkPrior10YearEstimate!DN112","v":0},{"$f":"CntyDataLinkPrior10YearEstimate!DO112","v":0},{"$f":"CntyDataLinkPrior10YearEstimate!DR112","v":0},{"$f":"CntyDataLinkPrior10YearEstimate!DS112","v":0}]
[]
[null,"Type of disability"]
[null,null,"Hearing disability",{"$f":"CntyDataLinkPrior10YearEstimate!AN112","v":0},{"$f":"CntyDataLinkPrior10YearEstimate!AO112","v":29.698484809834994},{"$f":"CntyDataLinkPrior10YearEstimate!AP112","v":29},{"$f":"CntyDataLinkPrior10YearEstimate!AQ112","v":38.275318418009277},{"$f":"CntyDataLinkPrior10YearEstimate!AR112","v":99},{"$f":"CntyDataLinkPrior10YearEstimate!AS112","v":80.411441971898498},{"$f":"CntyDataLinkPrior10YearEstimate!AT112","v":422},{"$f":"CntyDataLinkPrior10YearEstimate!AU112","v":137.88763541376724},{"$f":"CntyDataLinkPrior10YearEstimate!AV112","v":243},{"$f":"CntyDataLinkPrior10YearEstimate!AW112","v":103.40696301506973},{"$f":"CntyDataLinkPrior10YearEstimate!AX112","v":521},{"$f":"CntyDataLinkPrior10YearEstimate!AY112","v":145.09651959988565}]
[null,null,"Visual disability",{"$f":"CntyDataLinkPrior10YearEstimate!AZ112","v":0},{"$f":"CntyDataLinkPrior10YearEstimate!BA112","v":29.698484809834994},{"$f":"CntyDataLinkPrior10YearEstimate!BB112","v":42},{"$f":"CntyDataLinkPrior10YearEstimate!BC112","v":43.278170016764804},{"$f":"CntyDataLinkPrior10YearEstimate!BD112","v":73},{"$f":"CntyDataLinkPrior10YearEstimate!BE112","v":53.254107822777392},{"$f":"CntyDataLinkPrior10YearEstimate!BF112","v":260},{"$f":"CntyDataLinkPrior10YearEstimate!BG112","v":126.53062870309307},{"$f":"CntyDataLinkPrior10YearEstimate!BH112","v":115},{"$f":"CntyDataLinkPrior10YearEstimate!BI112","v":64.350602172784676},{"$f":"CntyDataLinkPrior10YearEstimate!BJ112","v":199},{"$f":"CntyDataLinkPrior10YearEstimate!BK112","v":105.58882516630251}]
[null,null,"Cognitive disability","NA","NA",{"$f":"CntyDataLinkPrior10YearEstimate!BL112","v":669},{"$f":"CntyDataLinkPrior10YearEstimate!BM112","v":305.85127104525822},{"$f":"CntyDataLinkPrior10YearEstimate!BN112","v":1333},{"$f":"CntyDataLinkPrior10YearEstimate!BO112","v":390.40619872128053},{"$f":"CntyDataLinkPrior10YearEstimate!BP112","v":2076},{"$f":"CntyDataLinkPrior10YearEstimate!BQ112","v":442.05203313637185},{"$f":"CntyDataLinkPrior10YearEstimate!BR112","v":286},{"$f":"CntyDataLinkPrior10YearEstimate!BS112","v":134.52880732393342},{"$f":"CntyDataLinkPrior10YearEstimate!BT112","v":572},{"$f":"CntyDataLinkPrior10YearEstimate!BU112","v":173.36666346215469}]
[null,null,"Ambulatory disability","NA","NA",{"$f":"CntyDataLinkPrior10YearEstimate!BV112","v":6},{"$f":"CntyDataLinkPrior10YearEstimate!BW112","v":147.33974345029924},{"$f":"CntyDataLinkPrior10YearEstimate!BX112","v":262},{"$f":"CntyDataLinkPrior10YearEstimate!BY112","v":128.03515142334936},{"$f":"CntyDataLinkPrior10YearEstimate!BZ112","v":2826},{"$f":"CntyDataLinkPrior10YearEstimate!CA112","v":474.85260871137689},{"$f":"CntyDataLinkPrior10YearEstimate!CB112","v":1236},{"$f":"CntyDataLinkPrior10YearEstimate!CC112","v":304.52914474644297},{"$f":"CntyDataLinkPrior10YearEstimate!CD112","v":1656},{"$f":"CntyDataLinkPrior10YearEstimate!CE112","v":277.40583988085041}]
[null,null,"Self-care disability","NA","NA",{"$f":"CntyDataLinkPrior10YearEstimate!CF112","v":14},{"$f":"CntyDataLinkPrior10YearEstimate!CG112","v":30.413812651491099},{"$f":"CntyDataLinkPrior10YearEstimate!CH112","v":46},{"$f":"CntyDataLinkPrior10YearEstimate!CI112","v":43.266615305567875},{"$f":"CntyDataLinkPrior10YearEstimate!CJ112","v":228},{"$f":"CntyDataLinkPrior10YearEstimate!CK112","v":102.82509421342633},{"$f":"CntyDataLinkPrior10YearEstimate!CL112","v":49},{"$f":"CntyDataLinkPrior10YearEstimate!CM112","v":42.544094772365298},{"$f":"CntyDataLinkPrior10YearEstimate!CN112","v":144},{"$f":"CntyDataLinkPrior10YearEstimate!CO112","v":75.802374632988901}]
[null,null,"Independent living disability","NA","NA","NA","NA",{"$f":"CntyDataLinkPrior10YearEstimate!CP112","v":187},{"$f":"CntyDataLinkPrior10YearEstimate!CQ112","v":84.291162051546067},{"$f":"CntyDataLinkPrior10YearEstimate!CR112","v":794},{"$f":"CntyDataLinkPrior10YearEstimate!CS112","v":218.3323155192561},{"$f":"CntyDataLinkPrior10YearEstimate!CT112","v":218},{"$f":"CntyDataLinkPrior10YearEstimate!CU112","v":111.66467659918243},{"$f":"CntyDataLinkPrior10YearEstimate!CV112","v":344},{"$f":"CntyDataLinkPrior10YearEstimate!CW112","v":117.83462988442744}]
[]
[null,"With two or more types of disability:",null,{"$f":"CntyDataLinkPrior10YearEstimate!CZ112","v":11},{"$f":"CntyDataLinkPrior10YearEstimate!DA112","v":17},{"$f":"CntyDataLinkPrior10YearEstimate!DD112","v":1203},{"$f":"CntyDataLinkPrior10YearEstimate!DE112","v":259},{"$f":"CntyDataLinkPrior10YearEstimate!DH112","v":888},{"$f":"CntyDataLinkPrior10YearEstimate!DI112","v":189},{"$f":"CntyDataLinkPrior10YearEstimate!DL112","v":0},{"$f":"CntyDataLinkPrior10YearEstimate!DM112","v":0},{"$f":"CntyDataLinkPrior10YearEstimate!DP112","v":0},{"$f":"CntyDataLinkPrior10YearEstimate!DQ112","v":0},{"$f":"CntyDataLinkPrior10YearEstimate!DT112","v":0},{"$f":"CntyDataLinkPrior10YearEstimate!DU112","v":0}]
[]
[null,"No disability",null,{"$f":"CntyDataLinkPrior10YearEstimate!H112","v":1422},{"$f":"CntyDataLinkPrior10YearEstimate!I112","v":249.01807163336559},{"$f":"CntyDataLinkPrior10YearEstimate!N112","v":4097},{"$f":"CntyDataLinkPrior10YearEstimate!O112","v":380.59164467970129},{"$f":"CntyDataLinkPrior10YearEstimate!T112","v":5755},{"$f":"CntyDataLinkPrior10YearEstimate!U112","v":468.5232118049222},{"$f":"CntyDataLinkPrior10YearEstimate!Z112","v":11005},{"$f":"CntyDataLinkPrior10YearEstimate!AA112","v":434.94022577820965},{"$f":"CntyDataLinkPrior10YearEstimate!AF112","v":1862},{"$f":"CntyDataLinkPrior10YearEstimate!AG112","v":209.32271735289507},{"$f":"CntyDataLinkPrior10YearEstimate!AL112","v":917},{"$f":"CntyDataLinkPrior10YearEstimate!AM112","v":141.73566946961517}]
[null,"Source: 2013-2017 American Community Survey Tables B18101;  B18102; B18103; B18104; B18105; B18106;  and B18107"]
[null,"NA indicates that the American Community Survey does not calculate the number for that disability."]
[null,"Percent of Population with Disabilities"]
[]
[null,null,null,"Under 5",null,"5 to 17 years",null,"18 to 34 years",null,"35 to 64 years",null,"65 to 74 years",null,"75 years and older"]
[]
[null,"With a disability:",null,{"$f":"D33/D$31","v":0},null,{"$f":"F33/F$31","v":4.7652254765225478E-2},null,{"$f":"H33/H$31","v":8.0670926517571878E-2},null,{"$f":"J33/J$31","v":0.16056445461479787},null,{"$f":"L33/L$31","v":0.29629629629629628},null,{"$f":"N33/N$31","v":0.49863313285948607}]
[]
[null,"Type of disability"]
[null,null,"Hearing disability",{"$f":"D38/D$31","v":0},null,{"$f":"F38/F$31","v":6.7410506741050671E-3},null,{"$f":"H38/H$31","v":1.5814696485623003E-2},null,{"$f":"J38/J$31","v":3.2189168573607936E-2},null,{"$f":"L38/L$31","v":9.1836734693877556E-2},null,{"$f":"N38/N$31","v":0.28485511208310554}]
[null,null,"Visual disability",{"$f":"D39/D$31","v":0},null,{"$f":"F39/F$31","v":9.7629009762900971E-3},null,1.1661341853035143E-2,null,1.9832189168573607E-2,null,4.3461829176114887E-2,null,0.10880262438490979]
[null,null,"Cognitive disability","NA",null,{"$f":"F40/F$31","v":0.15550906555090654},null,0.21293929712460063,null,0.15835240274599544,null,0.10808767951625095,null,0.31273920174958991]
[null,null,"Ambulatory disability","NA",null,{"$f":"F41/F$31","v":1.3947001394700139E-3},null,4.1853035143769965E-2,null,0.21556064073226544,null,0.46712018140589567,null,0.90541279387643525]
[null,null,"Self-care disability","NA",null,{"$f":"F42/F$31","v":3.2543003254300326E-3},null,7.3482428115015973E-3,null,1.7391304347826087E-2,null,1.8518518518518517E-2,null,7.8731547293603057E-2]
[null,null,"Independent living disability","NA",null,"NA",null,2.9872204472843451E-2,null,6.0564454614797862E-2,null,8.2388510959939529E-2,null,0.18808091853471842]
[]
[]
[]
[null,"No disability",null,{"$f":"D47/D$31","v":1},null,{"$f":"F47/F$31","v":0.9523477452347745},null,{"$f":"H47/H$31","v":0.91932907348242809},null,{"$f":"J47/J$31","v":0.83943554538520215},null,{"$f":"L47/L$31","v":0.70370370370370372},null,{"$f":"N47/N$31","v":0.50136686714051393}]
[]
[]
[null,"Source: 2013-2017 American Community Survey Tables B18101;  B18102; B18103; B18104; B18105; B18106;  and B18107"]
[null,"NA indicates that the American Community Survey does not calculate the number for that disability."]
[]
[null,"Data from the American Community Survey are estimates."]

{"sheet":"ACS_Table_B18101","index":24,"n_rows":155,"n_cols":28,"rows_kept":155,"cut":false,"hidden":true,"merged":[]}
["B18101. SEX BY AGE BY DISABILITY STATUS\n"]
["Universe:  Civilian non-institutionalized population"]
["Data Set: 2018-2022 American Community Survey 5-Year Estimates"]
[]
[null,null,"Barrington",null,"Dover",null,"Durham",null,"Farmington",null,"Lee",null,"Madbury",null,"Middleton",null,"Milton",null,"New Durham",null,"Rochester",null,"Rollinsford",null,"Somersworth",null,"Strafford"]
[null,null,"Estimate","Margin Of Error","Estimate","Margin Of Error","Estimate","Margin Of Error","Estimate","Margin Of Error","Estimate","Margin Of Error","Estimate","Margin Of Error","Estimate","Margin Of Error","Estimate","Margin Of Error","Estimate","Margin Of Error","Estimate","Margin Of Error","Estimate","Margin Of Error","Estimate","Margin Of Error","Estimate","Margin Of Error"]
[null,"Total",9339,19,31886,96,14996,42,6754,22,4547,15,2208,278,1535,277,4495,19,2711,17,32186,108,2575,40,11831,164,4261,26]
[null,"Male:",4764,337,15657,473,7229,428,3105,270,2212,220,1023,130,815,165,2357,214,1380,91,16226,526,996,136,5926,406,2012,127]
[null,"Under 5 years:",237,104,853,174,109,66,210,136,89,68,52,33,40,36,71,51,123,108,762,217,40,32,291,127,124,54]
[null,"With a disability",0,17,0,25,0,19,0,17,0,12,0,12,0,12,0,12,0,12,63,76,0,12,52,60,0,12]
[null,"No disability",237,104,853,174,109,66,210,136,89,68,52,33,40,36,71,51,123,108,699,204,40,32,239,130,124,54]
[null,"5 to 17 years:",951,242,1754,312,656,200,366,176,380,161,175,72,140,60,495,125,159,56,3000,383,69,31,869,213,229,73]
[null,"With a disability",64,90,64,55,11,16,0,17,0,12,4,6,11,13,85,65,0,12,157,87,8,10,53,54,32,39]
[null,"No disability",887,232,1690,299,645,198,366,176,380,161,171,72,129,57,410,124,159,56,2843,373,61,32,816,210,197,70]
[null,"18 to 34 years:",1012,300,4715,569,4824,479,742,214,170,91,206,113,157,62,529,157,293,122,3312,353,304,88,1568,338,356,116]
[null,"With a disability",88,80,283,156,256,146,137,117,0,12,17,21,4,5,45,30,48,87,403,131,27,22,171,118,27,37]
[null,"No disability",924,285,4432,556,4568,394,605,205,170,91,189,104,153,62,484,149,245,93,2909,361,277,91,1397,356,329,121]
[null,"35 to 64 years:",2000,223,6074,448,1071,155,1348,255,1070,142,488,84,355,82,955,120,610,75,6537,389,419,77,2368,309,962,99]
[null,"With a disability",222,145,529,242,43,29,223,121,120,99,30,29,63,43,133,70,85,63,950,238,37,20,305,213,97,51]
[null,"No disability",1778,200,5545,403,1028,153,1125,245,950,133,458,82,292,65,822,138,525,90,5587,374,382,76,2063,289,865,110]
[null,"65 to 74 years:",389,152,1471,271,333,84,272,128,339,134,64,22,73,30,225,70,160,49,1712,244,95,43,438,173,231,69]
[null,"With a disability",88,75,354,126,109,50,75,56,107,93,6,6,24,15,34,27,27,17,578,232,17,19,132,120,17,16]
[null,"No disability",301,125,1117,259,224,68,197,116,232,109,58,21,49,25,191,73,133,47,1134,243,78,37,306,130,214,67]
[null,"75 years and over:",175,70,790,164,236,64,167,72,164,115,38,23,50,23,82,52,35,28,903,190,69,37,392,131,110,38]
[null,"With a disability",81,60,350,118,108,47,50,46,38,35,13,13,23,16,41,41,11,11,528,197,41,30,98,94,45,25]
[null,"No disability",94,51,440,136,128,42,117,68,126,114,25,17,27,17,41,28,24,26,375,130,28,25,294,117,65,33]
[null,"Female:",4575,336,16229,461,7767,423,3649,270,2335,218,1185,213,720,143,2138,215,1331,91,15960,520,1579,134,5905,420,2249,130]
[null,"Under 5 years:",263,159,897,247,109,51,269,145,116,85,75,48,32,21,111,103,61,69,648,164,99,66,168,110,55,39]
[null,"With a disability",0,17,0,25,0,19,0,17,0,12,0,12,6,11,0,12,0,12,0,25,0,12,0,19,0,12]
[null,"No disability",263,159,897,247,109,51,269,145,116,85,75,48,26,17,111,103,61,69,648,164,99,66,168,110,55,39]
[null,"5 to 17 years:",684,172,2079,337,589,163,489,214,443,174,282,143,83,50,265,135,153,78,1962,352,180,80,817,282,366,90]
[null,"With a disability",9,15,99,99,11,17,0,17,31,43,3,5,0,12,0,12,0,12,111,66,0,12,0,19,0,12]
[null,"No disability",675,170,1980,330,578,164,489,214,412,178,279,144,83,50,265,135,153,78,1851,352,180,80,817,282,366,90]
[null,"18 to 34 years:",929,251,4676,463,5134,457,977,300,219,128,238,78,142,68,486,140,238,130,3083,440,477,174,1591,359,305,82]
[null,"With a disability",60,67,592,232,278,113,226,243,0,12,3,7,1,2,3,12,19,19,503,244,16,24,38,49,25,32]
[null,"No disability",869,257,4084,481,4856,444,751,247,219,128,235,78,141,68,483,139,219,132,2580,453,461,179,1553,351,280,80]
[null,"35 to 64 years:",1945,197,5776,414,1106,173,1412,279,1010,143,472,97,328,60,898,133,601,81,7006,440,524,76,2411,261,966,124]
[null,"With a disability",230,117,682,207,87,61,232,114,39,39,12,9,35,18,142,72,51,27,1460,256,53,38,392,171,33,23]
[null,"No disability",1715,190,5094,389,1019,162,1180,277,971,139,460,98,293,56,756,139,550,86,5546,457,471,74,2019,254,933,120]
[null,"65 to 74 years:",360,113,1441,191,423,109,233,102,434,164,59,29,72,31,242,76,227,60,1886,287,108,44,653,257,390,134]
[null,"With a disability",63,65,202,73,104,83,98,63,90,99,7,7,3,4,54,49,20,18,360,208,13,12,211,229,202,133]
[null,"No disability",297,108,1239,195,319,80,135,73,344,165,52,29,69,32,188,60,207,55,1526,268,95,43,442,138,188,45]
[null,"75 years and over:",394,145,1360,244,406,114,269,126,113,75,59,37,63,27,136,74,51,28,1375,267,191,87,265,123,167,73]
[null,"With a disability",211,121,617,216,141,59,114,95,58,53,25,31,35,23,64,43,39,25,650,178,103,82,140,90,67,47]
[null,"No disability",183,103,743,184,265,102,155,90,55,51,34,19,28,16,72,60,12,13,725,253,88,48,125,84,100,51]
[]
[]
[{"$f":"A1& \"-Calculated\"","v":"B18101. SEX BY AGE BY DISABILITY STATUS\n-Calculated"}]
[{"$f":"A2","v":"Universe:  Civilian non-institutionalized population"}]
[{"$f":"A3","v":"Data Set: 2018-2022 American Community Survey 5-Year Estimates"}]
[]
[]
[null,null,"Barrington",null,"Dover",null,"Durham",null,"Farmington",null,"Lee",null,"Madbury",null,"Middleton",null,"Milton",null,"New Durham",null,"Rochester",null,"Rollinsford",null,"Somersworth",null,"Strafford"]
[null,null,"Estimate","Margin Of Error","Estimate","Margin Of Error","Estimate","Margin Of Error","Estimate","Margin Of Error","Estimate","Margin Of Error","Estimate","Margin Of Error","Estimate","Margin Of Error","Estimate","Margin Of Error","Estimate","Margin Of Error","Estimate","Margin Of Error","Estimate","Margin Of Error","Estimate","Margin Of Error","Estimate","Margin Of Error"]
[null,"Total",{"$f":"C7","v":9339},19,31886,96,14996,42,6754,22,4547,15,2208,278,1535,277,4495,19,2711,17,32186,108,2575,40,{"$f":"Y7","v":11831},{"$f":"Z7","v":164},{"$f":"AA7","v":4261},{"$f":"AB7","v":26}]
[null,"Under 5 years:",{"$f":"C28+C9","v":500},{"$f":"SQRT((D28^2)+(D9^2))","v":189.992105099133},{"$f":"E28+E9","v":1750},{"$f":"SQRT((F28^2)+(F9^2))","v":302.1340761979688},{"$f":"G28+G9","v":218},{"$f":"SQRT((H28^2)+(H9^2))","v":83.408632646747066},{"$f":"I28+I9","v":479},{"$f":"SQRT((J28^2)+(J9^2))","v":198.79889335708083},{"$f":"K28+K9","v":205},{"$f":"SQRT((L28^2)+(L9^2))","v":108.85311203635843},{"$f":"M28+M9","v":127},{"$f":"SQRT((N28^2)+(N9^2))","v":58.249463516842795},{"$f":"O28+O9","v":72},{"$f":"SQRT((P28^2)+(P9^2))","v":41.677331968349414},{"$f":"Q28+Q9","v":182},{"$f":"SQRT((R28^2)+(R9^2))","v":114.93476410555685},{"$f":"S28+S9","v":184},{"$f":"SQRT((T28^2)+(T9^2))","v":128.16005617976296},{"$f":"U28+U9","v":1410},{"$f":"SQRT((V28^2)+(V9^2))","v":272.00183822908258},{"$f":"W28+W9","v":139},{"$f":"SQRT((X28^2)+(X9^2))","v":73.348483283568996},459,168.01488029338353,{"$f":"AA28+AA9","v":179},{"$f":"SQRT((AB28^2)+(AB9^2))","v":66.610809933523555}]
[null,"With a disability",{"$f":"C29+C10","v":0},{"$f":"SQRT((D29^2)+(D10^2))","v":24.041630560342615},{"$f":"E29+E10","v":0},{"$f":"SQRT((F29^2)+(F10^2))","v":35.355339059327378},{"$f":"G29+G10","v":0},{"$f":"SQRT((H29^2)+(H10^2))","v":26.870057685088806},{"$f":"I29+I10","v":0},{"$f":"SQRT((J29^2)+(J10^2))","v":24.041630560342615},{"$f":"K29+K10","v":0},{"$f":"SQRT((L29^2)+(L10^2))","v":16.970562748477139},{"$f":"M29+M10","v":0},{"$f":"SQRT((N29^2)+(N10^2))","v":16.970562748477139},{"$f":"O29+O10","v":6},{"$f":"SQRT((P29^2)+(P10^2))","v":16.278820596099706},{"$f":"Q29+Q10","v":0},{"$f":"SQRT((R29^2)+(R10^2))","v":16.970562748477139},{"$f":"S29+S10","v":0},{"$f":"SQRT((T29^2)+(T10^2))","v":16.970562748477139},{"$f":"U29+U10","v":63},{"$f":"SQRT((V29^2)+(V10^2))","v":80.006249755878443},0,16.970562748477139,52,62.936475910238251,0,16.970562748477139]
[null,"No disability",{"$f":"C30+C11","v":500},189.992105099133,1750,302.1340761979688,218,83.408632646747066,479,198.79889335708083,205,108.85311203635843,127,58.249463516842795,66,39.812058474788763,182,114.93476410555685,184,128.16005617976296,1347,261.74797038372617,139,73.348483283568996,407,170.29386365926402,179,66.610809933523555]
[null,"5 to 17 years:",1635,296.89728863699651,3833,459.25265377567496,1245,258.0096897405212,855,277.07760645710795,823,237.05906437004259,457,160.10309178776029,223,78.10249675906654,760,183.98369492974098,312,96.020831073262428,4962,520.18554382066407,249,85.796270315206598,1686,353.40203734557048,595,115.88356225108029]
[null,"With a disability",73,91.241437954473298,163,113.25193155085701,22,23.345235059857504,0,24.041630560342615,31,44.643028571099428,7,7.810249675906654,11,17.691806012954132,85,66.098411478642959,0,16.970562748477139,268,109.20164833920778,8,15.620499351813308,53,57.245087125446844,32,40.80441152620633]
[null,"No disability",1562,287.61780195252169,3670,445.31000437897194,1223,257.09920264364882,855,277.07760645710795,792,240.01041644062033,450,160.99689437998487,212,75.822160349069449,675,183.3057555015663,312,96.020831073262428,4694,512.86742926413251,241,86.16263691415206,1633,351.60204777560665,563,114.0175425099138]
[null,"18 to 34 years:",1941,391.15342258505166,9391,733.57344553902715,9958,662.03474229076528,1719,368.50508816025865,389,157.05094714773293,444,137.30622709840949,299,92.021736562618727,1015,210.35446275275456,531,178.28067758453241,6395,564.10016840983121,781,194.98717906570164,3159,493.07707308290048,661,142.05632685663809]
[null,"With a disability",148,104.35037134576953,875,279.57110008010483,534,184.6212338816963,363,269.69983314789056,0,16.970562748477139,20,22.135943621178654,5,5.3851648071345037,48,32.310988842807021,67,89.050547443572739,906,276.94223224347706,43,32.557641192199412,209,127.76932339180638,52,48.918299234540036]
[null,"No disability",1793,383.7629476643101,8516,735.18501072859203,9424,593.60929911853634,1356,320.98909638802377,389,157.05094714773293,424,130,294,92.021736562618727,967,203.76947759662141,464,161.47135968957468,5489,579.24951445814781,738,200.80338642562779,2950,499.93699603049981,609,145.05516192124981]
[null,"35 to 64 years:",3945,297.55335655979417,11850,610,2177,232.28000344411913,2760,377.97618972628419,2080,201.52667317256046,960,128.31601614763451,683,101.6070863670443,1853,179.13402803487674,1211,110.39021695784459,13543,587.29975310738894,943,108.18964830333815,4779,404.47744065645986,1928,158.67261893597143]
[null,"With a disability",452,186.31693428134759,1211,318.45407832213425,130,67.542579163073128,455,166.24379687675568,159,106.40488710580919,42,30.364452901377952,98,46.61544808322666,275,100.41912168506553,136,68.541957952775178,2410,349.54255821001254,90,42.941821107167776,697,273.14831136216088,130,55.946402922797461]
[null,"No disability",3493,275.86228448267445,10639,560.11605940197785,2047,222.82953125651906,2305,369.80265007162944,1921,192.37983262286096,918,127.7810627597063,585,85.796270315206598,1578,195.86985475054604,1075,124.48293055676348,11133,590.52942348370755,853,106.07544484940895,4082,384.75576668842797,1798,162.78820596099706]
[null,"65 to 74 years:",749,189.40168953839878,2912,331.54486875836278,756,137.61177275218861,505,163.67040050051813,773,211.7829077144801,123,36.400549446402593,145,43.139309220245984,467,103.32473082471591,387,77.466121627457255,3598,376.70280062670093,203,61.522353661088097,1091,309.80316331503138,621,150.72159765607583]
[null,"With a disability",151,99.247166206396045,556,145.6193668438371,213,96.896852374058057,173,84.291162051546067,197,135.83077707206124,13,9.2195444572928871,27,15.524174696260024,88,55.946402922797461,47,24.758836806279895,938,311.58947350640716,30,22.472205054244231,343,258.53626438084081,219,133.9589489358587]
[null,"No disability",598,165.19382555047267,2356,324.20055521235616,543,104.9952379872535,332,137.05838172107534,576,197.75237040298657,110,35.805027579936315,118,40.607881008493905,379,94.493386011932074,340,72.346388990743691,2660,361.76373505369497,173,56.727418414731339,748,189.58902921846507,402,80.709355095924295]
[null,"75 years and over:",569,161.01242188104618,2150,293.99319720020736,642,130.73637596323374,436,145.12063946937388,277,137.2953021774598,97,43.56604182158393,113,35.468295701936398,218,90.443352436760108,86,39.597979746446661,2278,327.70260908329675,260,94.540996398387932,657,179.6941846582688,277,82.29823813423954]
[null,"With a disability",292,135.05924625881784,967,246.13004692641653,249,75.432088662584434,164,105.55093557141026,96,63.513778032801667,38,33.61547262794322,58,28.0178514522438,105,59.413803110051795,50,27.313000567495326,1178,265.50517885721177,144,87.31551981177229,238,130.13838787997952,112,53.235326616824658]
[null,"No disability",277,114.93476410555685,1183,228.80559433720146,393,110.30865786510141,272,112.80070921762859,181,124.88794977899188,59,25.495097567963924,55,23.345235059857504,113,66.211781428987393,36,29.068883707497267,1100,284.44507378402602,116,54.120236510939236,419,144.03124660989366,165,60.745370193949761]
[]
[]
[]
[]
[]
[]
[]
[]
[]
[]
[]
[]
[]
[]
[]
[]
[]
[]
[]
[]
[]
[]
[]
[]
[]
[]
["B18101. SEX BY AGE BY DISABILITY STATUS\n-Calculated"]
["Universe:  Civilian non-institutionalized population"]
["Data Set: 2013-2017 American Community Survey 5-Year Estimates"]
[]
[]
[null,null,"Barrington",null,"Dover",null,"Durham",null,"Farmington",null,"Lee",null,"Madbury",null,"Middleton",null,"Milton",null,"New Durham",null,"Rochester",null,"Rollinsford",null,"Somersworth",null,"Strafford"]
[null,null,"Estimate","Margin Of Error","Estimate","Margin Of Error","Estimate","Margin Of Error","Estimate","Margin Of Error","Estimate","Margin Of Error","Estimate","Margin Of Error","Estimate","Margin Of Error","Estimate","Margin Of Error","Estimate","Margin Of Error","Estimate","Margin Of Error","Estimate","Margin Of Error","Estimate","Margin Of Error","Estimate","Margin Of Error"]
[null,"Total",8841,20,30008,268,16116,41,6815,34,4375,18,1906,157,1683,153,4581,34,2663,22,29911,118,2473,64,11706,75,4046,25]
[null,"Under 5 years:",551,210.87674124947966,1584,243.24473272817235,337,104.23531071570709,412,161.24515496597098,157,119.6202324023825,115,43.600458713183279,78,31.240998703626616,255,98.488578017961046,135,52.497618993626752,1481,263.00570336021235,105,42.426406871192853,853,220.32022149589446,196,88.509886453435243]
[null,"With a disability",0,22.627416997969522,0,33.941125496954278,0,25.45584412271571,0,22.627416997969522,0,15.556349186104045,0,15.556349186104045,0,15.556349186104045,0,15.556349186104045,0,15.556349186104045,46,72.111025509279784,0,15.556349186104045,0,25.45584412271571,0,15.556349186104045]
[null,"No disability",551,210.87674124947966,1584,243.24473272817235,337,104.23531071570709,412,161.24515496597098,157,119.6202324023825,115,43.600458713183279,78,31.240998703626616,255,98.488578017961046,135,52.497618993626752,1435,264.90941848111027,105,42.426406871192853,853,220.32022149589446,196,88.509886453435243]
[null,"5 to 17 years:",1368,348.63447907514825,4292,389.48684188300894,1084,184.58873205046942,1034,239.43683927081898,829,243.28789530101986,476,87.863530545955186,298,76.275815302099531,718,122.9186723000212,442,84.864598037108507,4521,369.89863476363359,423,87.783825389418979,1854,284.43101096751036,719,172.53985046939155]
[null,"With a disability",51,81.584312217484552,256,141.39660533407442,106,61.71709649683789,62,58.412327466040935,28,45.354161881794269,20,19.924858845171276,25,16.763054614240211,12,21.95449840010015,15,15.556349186104045,292,116.76472069936193,48,28.0178514522438,58,63.529520697074361,31,42.449970553582247]
[null,"No disability",1317,349.75705854206859,4036,385.64880396547323,978,166.60432167263849,972,235.64592082189753,801,248.55784035109414,456,83.450584180100265,273,76.006578662639456,706,120.61509026651682,427,84.172442046075858,4229,378.41379467455994,375,85.586213843118443,1796,282.84624798642812,688,157.8923684032892]
[null,"18 to 34 years:",1302,331.69865842357581,8691,587.62658210805955,10831,616.40976630809473,1558,368.71669341107952,667,225.85836269662454,240,62.241465278381739,321,65.73431371817918,854,160.77624202599088,401,83.630138108220294,6734,498.25495481731036,445,79.81227975693966,2826,336.68976818430343,677,140.60227594174995]
[null,"With a disability",170,128.22246293064254,415,153.48289807011074,579,153.93829932800998,224,158.54967675779096,0,15.556349186104045,4,12.529964086141668,17,15.811388300841896,124,75.186434946737563,30,21.023796041628639,492,157.87653403846943,37,41.761226035642203,386,200.12246250733574,56,52.497618993626752]
[null,"No disability",1132,329.31443940404438,8276,572.81934324881172,10252,605.48905853037513,1334,346.36974463714353,667,225.85836269662454,236,61.554853586049575,304,57.008771254956898,730,147.82760229402356,371,85.0411665018772,6242,493.34065309885017,408,70.724818840347695,2440,337.41517452539091,621,131.03434664239754]
[null,"35 to 64 years:",4611,355.44479177503786,11237,408.72973955903916,2515,194.26270872197782,2876,287.21072403376581,2207,210.23796041628637,861,67.007462271003817,786,84.958813551037778,2052,154.80633061990716,1232,97.672923576598237,12087,414.36457377531684,1105,99.085821387320593,4691,317.50590545689067,1912,143.58621103713267]
[null,"With a disability",520,212.86850401127921,1125,214.01401823245129,111,47.707441767506253,415,158.3161394173064,109,87.709748602991681,49,20.518284528683193,96,32.202484376209235,378,126.17844506887855,111,46.861498055439924,2301,327.0244639166923,127,43.863424398922618,780,217.8003673091485,197,85.211501571090736]
[null,"No disability",4091,353.02266216207704,10112,430.6332546378647,2404,198.39858870465787,2461,298.21636440678435,2098,219.9681795169474,812,66.610809933523555,690,77.987178433380961,1674,159.5054857990784,1121,103.58571330062848,9786,431.35600146514713,978,101.13851887386922,3911,294.92032822442064,1715,149.96666296213968]
[null,"65 to 74 years:",615,194.90510511528424,2307,256.20499604808646,824,119.55333537798099,580,146.65946952038249,352,109.34349546269316,132,38.897300677553446,166,38.288379438153292,411,99.824846606443629,332,72.346388990743691,3036,262.45190035509364,240,46.010868281309364,845,149.91330828182001,355,83.600239234107462]
[null,"With a disability",230,144.49913494550754,654,173.25414857947845,142,70.455659815234142,134,69.856996786291916,90,85.088189544730596,34,22.360679774997898,46,22.022715545545239,80,45.188494110780013,112,42.01190307520001,644,180.47160441465576,39,24.186773244895647,199,104.01922899156675,76,40.459856648287818]
[null,"No disability",385,161.20794025109308,1653,234.61670869739862,682,108.57716150277645,446,132.01893803541975,262,94.752308678997366,98,33.600595232822883,120,34.132096331752024,331,96.876209669866839,220,58.796258384356399,2392,240.16869071550522,201,40.36087214122113,646,134.46560898608982,279,84.403791384036765]
[null,"75 years and over:",394,168.5852899869974,1897,217.58906222510359,525,112.44998888394787,355,151.72672803431834,163,113.86395390991831,82,31.144823004794873,34,15,291,88.865066252155572,121,42.201895692018383,2052,219.93862780330335,155,48.414873747640819,637,154.05193929321371,187,72.917761896536561]
[null,"With a disability",202,136.88316185711082,912,188.50198937942272,219,71.505244562899023,244,135.48431643551959,0,15.556349186104045,44,23.345235059857504,16,10.770329614269007,147,65.863495200300449,66,37.013511046643494,1028,204.35263639111682,57,24.758836806279895,314,122.00409829181969,73,47.434164902525687]
[null,"No disability",192,130.17680284904833,985,195.35864454894235,306,86.452298986203942,111,72.249567472753768,163,113.86395390991831,38,19.849433241279208,18,10,144,62.625873247404705,55,24.083189157584592,1024,194.20092687729377,98,44.10215414239989,323,96.260064408871031,114,60.033324079214538]
[]
[]
[]
[]
["B18101. SEX BY AGE BY DISABILITY STATUS\n-Calculated"]
["Universe:  Civilian non-institutionalized population"]
["Data Set: 2008-2012 American Community Survey 5-Year Estimates"]
[]
[]
[null,null,"Barrington",null,"Dover",null,"Durham",null,"Farmington",null,"Lee",null,"Madbury",null,"Middleton",null,"Milton",null,"New Durham",null,"Rochester",null,"Rollinsford",null,"Somersworth",null,"Strafford"]
[null,null,"Estimate","Margin Of Error","Estimate","Margin Of Error","Estimate","Margin Of Error","Estimate","Margin Of Error","Estimate","Margin Of Error","Estimate","Margin Of Error","Estimate","Margin Of Error","Estimate","Margin Of Error","Estimate","Margin Of Error","Estimate","Margin Of Error","Estimate","Margin Of Error","Estimate","Margin Of Error","Estimate","Margin Of Error"]
[null,"Total",8591,19,28955,354,14695,19,6718,66,4334,22,2008,165,1526,165,4566,43,2627,18,29569,78,2540,18,11738,49,3982,22]
[null,"Under 5 years:",715,180.16103907338012,1989,249.63373169505758,368,106.01886624558857,172,86.267027304758798,123,67.208630398186216,110,62.769419305900861,102,40.8166632639171,200,81.841309862440497,113,51.86520991955976,1422,249.01807163336559,253,86.833173384369644,919,231.46706029152398,230,110.45361017187261]
[null,"With a disability",0,22.627416997969522,11,30,0,25.45584412271571,14,28.0178514522438,0,15.556349186104045,0,15.556349186104045,0,15.556349186104045,0,15.556349186104045,0,15.556349186104045,0,29.698484809834994,0,15.556349186104045,0,25.45584412271571,0,15.556349186104045]
[null,"No disability",715,180.16103907338012,1978,249.63373169505758,368,106.01886624558857,158,77.620873481300123,123,67.208630398186216,110,62.769419305900861,102,40.8166632639171,200,81.841309862440497,113,51.86520991955976,1422,249.01807163336559,253,86.833173384369644,919,231.46706029152398,230,110.45361017187261]
[null,"5 to 17 years:",1582,271.15493725912495,4021,398.61008517096002,1202,174.22973339817747,1328,263.42361321643131,926,220.9886874932742,389,82.073138114732771,252,54.561891462814962,946,152.10851389715174,493,98.005101908012932,4302,403.20962290104137,384,78.568441501661468,1861,294.17001886664116,786,168.90825912311098]
[null,"With a disability",100,73.109506905736964,227,130.83195328359201,14,16.643316977093239,217,116.51609330903607,62,77.252831663311866,9,14.866068747318506,6,13.601470508735444,4,13.038404810405298,37,30.610455730027933,205,111.40017953306898,30,29.154759474226502,43,36.235341863986875,87,57.801384066473702]
[null,"No disability",1482,271.22868579853423,3794,391.49584927557021,1188,174.22973339817747,1111,234.00854685246006,864,225.20435164534453,380,79.906195003891909,246,53.814496188294839,942,152.79397893896211,456,94.403389769647575,4097,380.59164467970129,354,74.249579123386283,1818,290.64239195272256,699,156.47363995254921]
[null,"18 to 34 years:",1705,249.77790134437433,8385,521.9674319342156,9001,588.43266394720138,1276,268.02984908401527,544,167.45148551147582,436,119.01260437449471,284,56.850681614207581,886,165.46903033498444,412,74.276510418839678,6260,505.26131852735375,473,101.11874208078342,3223,343.8895171417704,606,133.68993978605869]
[null,"With a disability",21,25.059928172283335,570,186.93849255838134,420,136.69308687713507,76,63.063460101710248,39,50.039984012787215,25,22.825424421026653,16,12.206555615733702,90,55.901699437494742,34,25.298221281347036,505,172.55723688098394,33,26.570660511172846,204,96.607453128627711,13,15]
[null,"No disability",1684,249.0461804565571,7815,510.5389309347525,8581,577.20013860012193,1200,263.21094202179364,505,144.51643505151932,411,118.59595271340417,268,53.907327887774215,796,154.31137352768266,378,73,5755,468.5232118049222,440,99.704563586628268,3019,338.82886535831034,593,133.66001645967279]
[null,"35 to 64 years:",3961,269.00185872963777,11205,401.9950248448356,3258,272.25906780123961,3048,286.03671093060763,2058,180.38015411901608,922,102.17631819555841,741,79.93122043357026,1928,183.09560344257315,1283,82.619610262939389,13110,428.05723916317544,1105,76.485292703891773,4440,321.09967299889922,1852,163.24827717314508]
[null,"With a disability",408,132.65368445693471,1130,231.36551169091732,232,96.767763227223554,541,168.43990026119107,112,60.108235708594876,80,58.309518948453004,143,35.468295701936398,264,89.202017914394744,135,46.043457732885351,2105,327.03516630478748,43,27.730849247724095,555,158.80806024884254,134,63.529520697074361]
[null,"No disability",3553,278.64852413031008,10075,427.93691123809361,3026,287.58650872389683,2507,282.14358046923553,1946,177.59786034747154,842,81.467785044151043,598,75.690157880665041,1664,176.10508226624239,1148,83.006023877788536,11005,434.94022577820965,1062,75.073297516493838,3885,303.34963326168702,1718,150.89400253157845]
[null,"65 to 74 years:",397,114.05700329221349,1649,184.85940603604675,379,84.291162051546067,452,153.56106277308712,462,137.00364958642524,100,32.802438933713454,95,27.802877548915689,275,80.808415403347695,169,50.931326312987373,2646,242.52834885843757,176,43.278170016764804,628,160.70158679988197,383,106.88779163215975]
[null,"With a disability",156,94.810336989170125,459,142.63590010933433,40,32.015621187164243,198,116.0775602776006,66,45.343136195018538,28,19.416487838947599,23,13.038404810405298,83,42.426406871192853,59,34.985711369071801,784,168.04761230080004,49,35.468295701936398,209,84.504437753291981,144,83.600239234107462]
[null,"No disability",241,80.808415403347695,1190,164.54178800535746,339,81.467785044151043,254,96.046863561492728,396,132.20060514233663,72,24.207436873820409,72,24.083189157584592,192,73.756355658343097,110,41.593268686170845,1862,209.32271735289507,127,29.832867780352597,419,145.24462124292245,239,77.801028270839709]
[null,"75 years and over:",231,92.617492948146676,1706,206.20620747203515,487,106.07544484940895,442,162.64070831129578,221,101.86265262597475,51,21.2602916254693,52,19.849433241279208,331,104.04326023342406,157,42.638011210655684,1829,192.75372888740699,149,45.453272709454048,667,169.49631264425784,125,60.827625302982199]
[null,"With a disability",161,86.371291526756735,905,158.79546593023366,134,56.586217403180434,300,137.56816492197603,72,69.354163537598808,22,13.601470508735444,23,14.7648230602334,198,87.200917426366559,92,36.069377593742864,912,165.42369842317032,60,31.622776601683793,261,80,41,29.068883707497267]
[null,"No disability",70,50.606323715519977,801,153.52198539622916,353,88.459030064770658,142,100.2845950283492,149,64.350602172784676,29,14.866068747318506,29,14.866068747318506,133,64.031242374328485,65,36.61966684720111,917,141.73566946961517,89,33.541019662496844,406,154.73848907107759,84,53.851648071345039]

{"sheet":"ACS_Table_B18102","index":25,"n_rows":155,"n_cols":28,"rows_kept":155,"cut":false,"hidden":true,"merged":[]}
["B18102. SEX BY AGE BY HEARING DIFFICULTY\n\n"]
["Universe:  Civilian non-institutionalized population"]
["Data Set: 2018-2022 American Community Survey 5-Year Estimates"]
[]
[null,null,"Barrington",null,"Dover",null,"Durham",null,"Farmington",null,"Lee",null,"Madbury",null,"Middleton",null,"Milton",null,"New Durham",null,"Rochester",null,"Rollinsford",null,"Somersworth",null,"Strafford"]
[null,null,"Estimate","Margin Of Error","Estimate","Margin Of Error","Estimate","Margin Of Error","Estimate","Margin Of Error","Estimate","Margin Of Error","Estimate","Margin Of Error","Estimate","Margin Of Error","Estimate","Margin Of Error","Estimate","Margin Of Error","Estimate","Margin Of Error","Estimate","Margin Of Error","Estimate","Margin Of Error","Estimate","Margin Of Error"]
[null,"Total:",9339,19,31886,96,14996,42,4547,15,2208,278,1535,277,4495,19,2711,17,32186,108,2575,40,11831,164,4261,26,927,278]
[null,"Male:",4764,337,15657,473,7229,428,2212,220,1023,130,815,165,2357,214,1380,91,16226,526,996,136,5926,406,2012,127,439,104]
[null,"Under 5 years:",237,104,853,174,109,66,89,68,52,33,40,36,71,51,123,108,762,217,40,32,291,127,124,54,20,14]
[null,"With hearing difficulty",0,17,0,25,0,19,0,12,0,12,0,12,0,12,0,12,0,25,0,12,52,60,0,12,0,12]
[null,"With no hearing difficulty",237,104,853,174,109,66,89,68,52,33,40,36,71,51,123,108,762,217,40,32,239,130,124,54,20,14]
[null,"5 to 17  years:",951,242,1754,312,656,200,380,161,175,72,140,60,495,125,159,56,3000,383,69,31,869,213,229,73,81,68]
[null,"With hearing difficulty",0,17,23,39,0,19,0,12,0,12,2,3,0,12,0,12,64,49,0,12,0,19,0,12,0,12]
[null,"With no hearing difficulty",951,242,1731,305,656,200,380,161,175,72,138,60,495,125,159,56,2936,380,69,31,869,213,229,73,81,68]
[null,"18 to 34  years:",1012,300,4715,569,4824,479,170,91,206,113,157,62,529,157,293,122,3312,353,304,88,1568,338,356,116,82,51]
[null,"With hearing difficulty",50,61,0,25,17,21,0,12,13,20,4,5,0,12,0,12,6,14,0,12,34,58,0,12,0,12]
[null,"With no hearing difficulty",962,289,4715,569,4807,481,170,91,193,105,153,62,529,157,293,122,3306,356,304,88,1534,348,356,116,82,51]
[null,"35 to 64  years:",2000,223,6074,448,1071,155,1070,142,488,84,355,82,955,120,610,75,6537,389,419,77,2368,309,962,99,174,52]
[null,"With hearing difficulty",114,99,60,53,17,17,45,53,22,29,29,27,68,56,73,60,412,134,21,16,35,44,38,39,0,12]
[null,"With no hearing difficulty",1886,198,6014,450,1054,154,1025,153,466,82,326,71,887,126,537,90,6125,404,398,76,2333,306,924,104,174,52]
[null,"65 to 74  years:",389,152,1471,271,333,84,339,134,64,22,73,30,225,70,160,49,1712,244,95,43,438,173,231,69,47,24]
[null,"With hearing difficulty",56,69,256,108,71,46,80,86,2,4,19,13,34,27,20,14,212,120,5,8,116,119,8,12,0,12]
[null,"With no hearing difficulty",333,131,1215,262,262,71,259,112,62,22,54,26,191,73,140,46,1500,258,90,43,322,133,223,68,47,24]
[null,"75  years and Older:",175,70,790,164,236,64,164,115,38,23,50,23,82,52,35,28,903,190,69,37,392,131,110,38,35,20]
[null,"With hearing difficulty",55,55,253,91,69,38,25,30,9,12,12,9,41,41,0,12,279,122,41,30,68,85,35,21,10,11]
[null,"With no hearing difficulty",120,57,537,146,167,57,139,114,29,18,38,23,41,28,35,28,624,166,28,25,324,118,75,35,25,15]
[null,"Female:",4575,336,16229,461,7767,423,2335,218,1185,213,720,143,2138,215,1331,91,15960,520,1579,134,5905,420,2249,130,488,197]
[null,"Under 5 years:",263,159,897,247,109,51,116,85,75,48,32,21,111,103,61,69,648,164,99,66,168,110,55,39,12,16]
[null,"With hearing difficulty",0,17,0,25,0,19,0,12,0,12,6,11,0,12,0,12,0,25,0,12,0,19,0,12,0,12]
[null,"With no hearing difficulty",263,159,897,247,109,51,116,85,75,48,26,17,111,103,61,69,648,164,99,66,168,110,55,39,12,16]
[null,"5 to 17  years:",684,172,2079,337,589,163,443,174,282,143,83,50,265,135,153,78,1962,352,180,80,817,282,366,90,111,126]
[null,"With hearing difficulty",9,15,0,25,0,19,0,12,0,12,0,12,0,12,0,12,0,25,0,12,0,19,0,12,0,12]
[null,"With no hearing difficulty",675,170,2079,337,589,163,443,174,282,143,83,50,265,135,153,78,1962,352,180,80,817,282,366,90,111,126]
[null,"18 to 34  years:",929,251,4676,463,5134,457,219,128,238,78,142,68,486,140,238,130,3083,440,477,174,1591,359,305,82,76,51]
[null,"With hearing difficulty",0,17,22,35,0,19,0,12,3,7,0,12,0,12,0,12,19,31,0,12,0,19,0,12,0,12]
[null,"With no hearing difficulty",929,251,4654,466,5134,457,219,128,235,78,142,68,486,140,238,130,3064,451,477,174,1591,359,305,82,76,51]
[null,"35 to 64  years:",1945,197,5776,414,1106,173,1010,143,472,97,328,60,898,133,601,81,7006,440,524,76,2411,261,966,124,189,71]
[null,"With hearing difficulty",52,78,143,97,0,19,0,12,2,4,15,15,0,12,4,7,314,138,0,12,8,17,9,14,6,9]
[null,"With no hearing difficulty",1893,189,5633,399,1106,173,1010,143,470,97,313,59,898,133,597,81,6692,452,524,76,2403,259,957,124,183,69]
[null,"65 to 74  years:",360,113,1441,191,423,109,434,164,59,29,72,31,242,76,227,60,1886,287,108,44,653,257,390,134,75,30]
[null,"With hearing difficulty",38,57,79,48,22,29,70,94,1,4,0,12,21,32,0,12,248,189,3,7,30,35,0,12,6,8]
[null,"With no hearing difficulty",322,111,1362,194,401,106,364,163,58,29,72,31,221,68,227,60,1638,270,105,45,623,245,390,134,69,29]
[null,"75  years and Older:",394,145,1360,244,406,114,113,75,59,37,63,27,136,74,51,28,1375,267,191,87,265,123,167,73,25,18]
[null,"With hearing difficulty",59,58,306,198,54,38,36,39,7,11,4,6,2,8,23,19,190,79,65,79,6,12,36,44,2,2]
[null,"With no hearing difficulty",335,152,1054,194,352,124,77,61,52,34,59,26,134,75,28,20,1185,268,126,53,259,123,131,60,23,17]
[]
[]
[{"$f":"A1& \"-Calculated\"","v":"B18102. SEX BY AGE BY HEARING DIFFICULTY\n\n-Calculated"}]
[{"$f":"A2","v":"Universe:  Civilian non-institutionalized population"}]
[{"$f":"A3","v":"Data Set: 2018-2022 American Community Survey 5-Year Estimates"}]
[]
[]
[null,null,"Barrington",null,"Dover",null,"Durham",null,"Farmington",null,"Lee",null,"Madbury",null,"Middleton",null,"Milton",null,"New Durham",null,"Rochester",null,"Rollinsford",null,"Somersworth",null,"Strafford"]
[null,null,"Estimate","Margin Of Error","Estimate","Margin Of Error","Estimate","Margin Of Error","Estimate","Margin Of Error","Estimate","Margin Of Error","Estimate","Margin Of Error","Estimate","Margin Of Error","Estimate","Margin Of Error","Estimate","Margin Of Error","Estimate","Margin Of Error","Estimate","Margin Of Error","Estimate","Margin Of Error","Estimate","Margin Of Error"]
[null,"Total",{"$f":"C7","v":9339},19,31886,96,14996,42,4547,15,2208,278,1535,277,4495,19,2711,17,32186,108,2575,40,11831,164,{"$f":"Y7","v":4261},{"$f":"Z7","v":26},{"$f":"AA7","v":927},{"$f":"AB7","v":278}]
[null,"Under 5 years:",{"$f":"C28+C9","v":500},{"$f":"SQRT((D28^2)+(D9^2))","v":189.992105099133},{"$f":"E28+E9","v":1750},{"$f":"SQRT((F28^2)+(F9^2))","v":302.1340761979688},{"$f":"G28+G9","v":218},{"$f":"SQRT((H28^2)+(H9^2))","v":83.408632646747066},{"$f":"I28+I9","v":205},{"$f":"SQRT((J28^2)+(J9^2))","v":108.85311203635843},{"$f":"K28+K9","v":127},{"$f":"SQRT((L28^2)+(L9^2))","v":58.249463516842795},{"$f":"M28+M9","v":72},{"$f":"SQRT((N28^2)+(N9^2))","v":41.677331968349414},{"$f":"O28+O9","v":182},{"$f":"SQRT((P28^2)+(P9^2))","v":114.93476410555685},{"$f":"Q28+Q9","v":184},{"$f":"SQRT((R28^2)+(R9^2))","v":128.16005617976296},{"$f":"S28+S9","v":1410},{"$f":"SQRT((T28^2)+(T9^2))","v":272.00183822908258},{"$f":"U28+U9","v":139},{"$f":"SQRT((V28^2)+(V9^2))","v":73.348483283568996},{"$f":"W28+W9","v":459},{"$f":"SQRT((X28^2)+(X9^2))","v":168.01488029338353},{"$f":"Y28+Y9","v":179},{"$f":"SQRT((Z28^2)+(Z9^2))","v":66.610809933523555},{"$f":"AA28+AA9","v":32},{"$f":"SQRT((AB28^2)+(AB9^2))","v":21.2602916254693}]
[null,"With hearing difficulty",{"$f":"C29+C10","v":0},{"$f":"SQRT((D29^2)+(D10^2))","v":24.041630560342615},{"$f":"E29+E10","v":0},{"$f":"SQRT((F29^2)+(F10^2))","v":35.355339059327378},{"$f":"G29+G10","v":0},{"$f":"SQRT((H29^2)+(H10^2))","v":26.870057685088806},{"$f":"I29+I10","v":0},{"$f":"SQRT((J29^2)+(J10^2))","v":16.970562748477139},{"$f":"K29+K10","v":0},{"$f":"SQRT((L29^2)+(L10^2))","v":16.970562748477139},{"$f":"M29+M10","v":6},{"$f":"SQRT((N29^2)+(N10^2))","v":16.278820596099706},{"$f":"O29+O10","v":0},{"$f":"SQRT((P29^2)+(P10^2))","v":16.970562748477139},{"$f":"Q29+Q10","v":0},{"$f":"SQRT((R29^2)+(R10^2))","v":16.970562748477139},{"$f":"S29+S10","v":0},{"$f":"SQRT((T29^2)+(T10^2))","v":35.355339059327378},{"$f":"U29+U10","v":0},{"$f":"SQRT((V29^2)+(V10^2))","v":16.970562748477139},{"$f":"W29+W10","v":52},{"$f":"SQRT((X29^2)+(X10^2))","v":62.936475910238251},0,16.970562748477139,0,16.970562748477139]
[null,"With no hearing difficulty",500,189.992105099133,1750,302.1340761979688,218,83.408632646747066,205,108.85311203635843,127,58.249463516842795,66,39.812058474788763,182,114.93476410555685,184,128.16005617976296,1410,272.00183822908258,139,73.348483283568996,407,170.29386365926402,179,66.610809933523555,32,21.2602916254693]
[null,"5 to 17 years:",1635,296.89728863699651,3833,459.25265377567496,1245,258.0096897405212,823,237.05906437004259,457,160.10309178776029,223,78.10249675906654,760,183.98369492974098,312,96.020831073262428,4962,520.18554382066407,249,85.796270315206598,1686,353.40203734557048,595,115.88356225108029,192,143.17821063276352]
[null,"With hearing difficulty",9,22.671568097509269,23,46.324939287601879,0,26.870057685088806,0,16.970562748477139,0,16.970562748477139,2,12.369316876852981,0,16.970562748477139,0,16.970562748477139,64,55.009090157900268,0,16.970562748477139,0,26.870057685088806,0,16.970562748477139,0,16.970562748477139]
[null,"With no hearing difficulty",1626,295.7431317883815,3810,454.52612686181197,1245,258.0096897405212,823,237.05906437004259,457,160.10309178776029,221,78.10249675906654,760,183.98369492974098,312,96.020831073262428,4898,517.98069462094816,249,85.796270315206598,1686,353.40203734557048,595,115.88356225108029,192,143.17821063276352]
[null,"18 to 34 years:",1941,391.15342258505166,9391,733.57344553902715,9958,662.03474229076528,389,157.05094714773293,444,137.30622709840949,299,92.021736562618727,1015,210.35446275275456,531,178.28067758453241,6395,564.10016840983121,781,194.98717906570164,3159,493.07707308290048,661,142.05632685663809,158,72.124891681027847]
[null,"With hearing difficulty",50,63.324560795950255,22,43.011626335213137,17,28.319604517012593,0,16.970562748477139,16,21.189620100417091,4,13,0,16.970562748477139,0,16.970562748477139,25,34.014702703389901,0,16.970562748477139,34,61.032778078668514,0,16.970562748477139,0,16.970562748477139]
[null,"With no hearing difficulty",1891,382.78192224816468,9369,735.47059764480048,9941,663.48323264420185,389,157.05094714773293,428,130.80137613954986,295,92.021736562618727,1015,210.35446275275456,531,178.28067758453241,6370,574.57549547470262,781,194.98717906570164,3125,499.98499977499324,661,142.05632685663809,158,72.124891681027847]
[null,"35 to 64 years:",3945,297.55335655979417,11850,610,2177,232.28000344411913,2080,201.52667317256046,960,128.31601614763451,683,101.6070863670443,1853,179.13402803487674,1211,110.39021695784459,13543,587.29975310738894,943,108.18964830333815,4779,404.47744065645986,1928,158.67261893597143,363,88.0056816347672]
[null,"With hearing difficulty",166,126.03570922560003,203,110.53506231056279,17,25.495097567963924,45,54.341512676774101,24,29.274562336608895,44,30.886890422961002,68,57.271284253105414,77,60.406953242155822,726,192.35384061671346,21,20,43,47.169905660283021,47,41.43669871020132,6,15]
[null,"With no hearing difficulty",3779,273.72431386341987,11647,601.41582952230317,2160,231.6139028642279,2035,209.42301688209918,936,127.01574705523721,639,92.314679222754165,1785,183.20753259623362,1134,121.0826164236634,12817,606.23427814665843,922,107.48023074035522,4736,400.89524816340742,1881,161.83942659315127,357,86.400231481171389]
[null,"65 to 74 years:",749,189.40168953839878,2912,331.54486875836278,756,137.61177275218861,773,211.7829077144801,123,36.400549446402593,145,43.139309220245984,467,103.32473082471591,387,77.466121627457255,3598,376.70280062670093,203,61.522353661088097,1091,309.80316331503138,621,150.72159765607583,122,38.418745424597091]
[null,"With hearing difficulty",94,89.498603341057787,335,118.18629362155326,93,54.378304497290095,150,127.40486646906389,3,5.6568542494923806,19,17.691806012954132,55,41.868842830916641,20,18.439088914585774,460,223.87719848166762,8,10.63014581273465,146,124.04031602668546,8,16.970562748477139,6,14.422205101855956]
[null,"With no hearing difficulty",655,171.7032323516363,2577,326.00613491159947,663,127.58134659894448,623,197.77006851391846,120,36.400549446402593,126,40.459856648287818,412,99.76472322419383,367,75.604232685743199,3138,373.44879167029046,195,62.241465278381739,945,278.77230852435827,613,150.2664300500947,116,37.643060449437421]
[null,"75 years and over:",569,161.01242188104618,2150,293.99319720020736,642,130.73637596323374,277,137.2953021774598,97,43.56604182158393,113,35.468295701936398,218,90.443352436760108,86,39.597979746446661,2278,327.70260908329675,260,94.540996398387932,657,179.6941846582688,277,82.29823813423954,60,26.90724809414742]
[null,"With hearing difficulty",114,79.93122043357026,559,217.91053209975877,123,53.740115370177612,61,49.203658400570177,16,16.278820596099706,16,10.816653826391969,43,41.773197148410844,23,22.472205054244231,469,145.34441853748632,106,84.504437753291981,74,85.84287972802403,71,48.754486972995622,12,11.180339887498949]
[null,"With no hearing difficulty",455,162.33607116103309,1591,242.80032948906802,519,136.4734406395618,216,129.29423807734048,81,38.470768123342687,97,34.713109915419565,175,80.05623023850174,63,34.409301068170507,1809,315.24593573906708,154,58.600341295934449,583,170.44940598312451,206,69.462219947249025,48,22.671568097509269]
[]
[]
[]
[]
[]
[]
[]
[]
[]
[]
[]
[]
[]
[]
[]
[]
[]
[]
[]
[]
[]
[]
[]
[]
[]
[]
["B18102. SEX BY AGE BY HEARING DIFFICULTY\n\n-Calculated"]
["Universe:  Civilian non-institutionalized population"]
["Data Set: 2013-2017 American Community Survey 5-Year Estimates"]
[]
[]
[null,null,"Barrington",null,"Dover",null,"Durham",null,"Farmington",null,"Lee",null,"Madbury",null,"Middleton",null,"Milton",null,"New Durham",null,"Rochester",null,"Rollinsford",null,"Somersworth",null,"Strafford"]
[null,null,"Estimate","Margin Of Error","Estimate","Margin Of Error","Estimate","Margin Of Error","Estimate","Margin Of Error","Estimate","Margin Of Error","Estimate","Margin Of Error","Estimate","Margin Of Error","Estimate","Margin Of Error","Estimate","Margin Of Error","Estimate","Margin Of Error","Estimate","Margin Of Error","Estimate","Margin Of Error","Estimate","Margin Of Error"]
[null,"Total",8841,20,30008,268,16116,41,6815,34,4375,18,1906,157,1683,153,4581,34,2663,22,29911,118,2473,64,11706,75,4046,25]
[null,"Under 5 years:",551,210.87674124947966,1584,243.24473272817235,337,104.23531071570709,412,161.24515496597098,157,119.6202324023825,115,43.600458713183279,78,31.240998703626616,255,98.488578017961046,135,52.497618993626752,1481,263.00570336021235,105,42.426406871192853,853,220.32022149589446,196,88.509886453435243]
[null,"With hearing difficulty",0,22.627416997969522,0,33.941125496954278,0,25.45584412271571,0,22.627416997969522,0,15.556349186104045,0,15.556349186104045,0,15.556349186104045,0,15.556349186104045,0,15.556349186104045,46,72.111025509279784,0,15.556349186104045,0,25.45584412271571,0,15.556349186104045]
[null,"With no hearing difficulty",551,210.87674124947966,1584,243.24473272817235,337,104.23531071570709,412,161.24515496597098,157,119.6202324023825,115,43.600458713183279,78,31.240998703626616,255,98.488578017961046,135,52.497618993626752,1435,264.90941848111027,105,42.426406871192853,853,220.32022149589446,196,88.509886453435243]
[null,"5 to 17 years:",1368,348.63447907514825,4292,389.48684188300894,1084,184.58873205046942,1034,239.43683927081898,829,243.28789530101986,476,87.863530545955186,298,76.275815302099531,718,122.9186723000212,442,84.864598037108507,4521,369.89863476363359,423,87.783825389418979,1854,284.43101096751036,719,172.53985046939155]
[null,"With hearing difficulty",0,22.627416997969522,78,63.702433234531945,2,18.439088914585774,0,22.627416997969522,0,15.556349186104045,0,15.556349186104045,0,15.556349186104045,0,15.556349186104045,0,15.556349186104045,53,56.36488268416781,0,15.556349186104045,0,25.45584412271571,0,15.556349186104045]
[null,"With no hearing difficulty",1368,348.63447907514825,4214,398.20848810641894,1082,184.58873205046942,1034,239.43683927081898,829,243.28789530101986,476,87.863530545955186,298,76.275815302099531,718,122.9186723000212,442,84.864598037108507,4468,373.37648560132976,423,87.783825389418979,1854,284.43101096751036,719,172.53985046939155]
[null,"18 to 34 years:",1302,331.69865842357581,8691,587.62658210805955,10831,616.40976630809473,1558,368.71669341107952,667,225.85836269662454,240,62.241465278381739,321,65.73431371817918,854,160.77624202599088,401,83.630138108220294,6734,498.25495481731036,445,79.81227975693966,2826,336.68976818430343,677,140.60227594174995]
[null,"With hearing difficulty",0,22.627416997969522,102,78.492037812761623,20,19.209372712298546,19,34,0,15.556349186104045,0,15.556349186104045,0,15.556349186104045,9,17.804493814764857,0,15.556349186104045,59,83.024092888751269,0,15.556349186104045,0,25.45584412271571,0,15.556349186104045]
[null,"With no hearing difficulty",1302,331.69865842357581,8589,569.27409918245883,10811,616.29944020743687,1539,368.24041060155253,667,225.85836269662454,240,62.241465278381739,321,65.73431371817918,845,160.03124694883809,401,83.630138108220294,6675,494.14572749341869,445,79.81227975693966,2826,336.68976818430343,677,140.60227594174995]
[null,"35 to 64 years:",4611,355.44479177503786,11237,408.72973955903916,2515,194.26270872197782,2876,287.21072403376581,2207,210.23796041628637,861,67.007462271003817,786,84.958813551037778,2052,154.80633061990716,1232,97.672923576598237,12087,414.36457377531684,1105,99.085821387320593,4691,317.50590545689067,1912,143.58621103713267]
[null,"With hearing difficulty",125,101.67103815738285,344,123.40583454602137,35,33.286633954186478,86,62.393909959225986,17,28.231188426986208,9,8.6023252670426267,32,18.439088914585774,56,39.824615503479755,59,40.311288741492746,483,154.87091398968369,30,20.124611797498108,121,66.603303221386852,43,28.319604517012593]
[null,"With no hearing difficulty",4486,354.68295701936398,10893,429.31224068269938,2480,196.23710148695125,2790,284.28858577157121,2190,210.23796041628637,852,66.219332524573218,754,81.688432473637292,1996,155,1173,102.94173109094289,11604,423.58588267315992,1075,99.824846606443629,4570,315.83065082414026,1869,147.10540438746634]
[null,"65 to 74 years:",615,194.90510511528424,2307,256.20499604808646,824,119.55333537798099,580,146.65946952038249,352,109.34349546269316,132,38.897300677553446,166,38.288379438153292,411,99.824846606443629,332,72.346388990743691,3036,262.45190035509364,240,46.010868281309364,845,149.91330828182001,355,83.600239234107462]
[null,"With hearing difficulty",92,87.114866699088736,178,112.36102527122117,26,29.206163733020468,45,43.08131845707603,41,35.735136770411273,10,9.4339811320566032,24,19.416487838947599,45,29.529646120466801,67,43.829214001622255,168,74.632432628181164,28,23.706539182259394,85,66.483080554378645,39,30.083217912982647]
[null,"With no hearing difficulty",523,191.80198122021577,2129,246.40211038057285,798,119.55333537798099,535,145.34441853748632,311,107.44766167767449,122,38.183766184073569,142,34.669871646719429,366,94.794514609232536,265,63.7808748764079,2868,260.4611295375953,212,41.109609582188931,760,136.03308421115798,316,86.023252670426274]
[null,"75 years and over:",394,168.5852899869974,1897,217.58906222510359,525,112.44998888394787,355,151.72672803431834,163,113.86395390991831,82,31.144823004794873,34,15,291,88.865066252155572,121,42.201895692018383,2052,219.93862780330335,155,48.414873747640819,637,154.05193929321371,187,72.917761896536561]
[null,"With hearing difficulty",80,90.801982357215081,477,164.47796204963143,85,42.449970553582247,157,115.73245007343446,0,15.556349186104045,31,21.213203435596427,8,7.2111025509279782,108,62.433965115151864,52,33.600595232822883,597,154.38264151127873,19,18.601075237738275,123,78.390050389064044,20,21.213203435596427]
[null,"With no hearing difficulty",314,160.70158679988197,1420,209.72362766269327,440,100.41912168506553,198,98.005101908012932,163,113.86395390991831,51,23.345235059857504,26,12.806248474865697,183,66.708320320631671,69,28.319604517012593,1455,211.91743675309024,136,49.203658400570177,514,133.25539388707685,167,72.498275841567434]
[]
[]
[]
[]
["B18102. SEX BY AGE BY HEARING DIFFICULTY\n\n-Calculated"]
["Universe:  Civilian non-institutionalized population"]
["Data Set: 2008-2012 American Community Survey 5-Year Estimates"]
[]
[]
[null,null,"Barrington",null,"Dover",null,"Durham",null,"Farmington",null,"Lee",null,"Madbury",null,"Middleton",null,"Milton",null,"New Durham",null,"Rochester",null,"Rollinsford",null,"Somersworth",null,"Strafford"]
[null,null,"Estimate","Margin Of Error","Estimate","Margin Of Error","Estimate","Margin Of Error","Estimate","Margin Of Error","Estimate","Margin Of Error","Estimate","Margin Of Error","Estimate","Margin Of Error","Estimate","Margin Of Error","Estimate","Margin Of Error","Estimate","Margin Of Error","Estimate","Margin Of Error","Estimate","Margin Of Error","Estimate","Margin Of Error"]
[null,"Total",8591,19,28955,354,14695,19,6718,66,4334,22,2008,165,1526,165,4566,43,2627,18,29569,78,2540,18,11738,49,3982,22]
[null,"Under 5 years:",715,180.16103907338012,1989,249.63373169505758,368,106.01886624558857,172,86.267027304758798,123,67.208630398186216,110,62.769419305900861,102,40.8166632639171,200,81.841309862440497,113,51.86520991955976,1422,249.01807163336559,253,86.833173384369644,919,231.46706029152398,230,110.45361017187261]
[null,"With hearing difficullty",0,22.627416997969522,11,30,0,25.45584412271571,0,22.627416997969522,0,15.556349186104045,0,15.556349186104045,0,15.556349186104045,0,15.556349186104045,0,15.556349186104045,0,29.698484809834994,0,15.556349186104045,0,25.45584412271571,0,15.556349186104045]
[null,"With no hearing difficullty",715,180.16103907338012,1978,249.63373169505758,368,106.01886624558857,172,86.267027304758798,123,67.208630398186216,110,62.769419305900861,102,40.8166632639171,200,81.841309862440497,113,51.86520991955976,1422,249.01807163336559,253,86.833173384369644,919,231.46706029152398,230,110.45361017187261]
[null,"5 to 17 years:",1582,271.15493725912495,4021,398.61008517096002,1202,174.22973339817747,1328,263.42361321643131,926,220.9886874932742,389,82.073138114732771,252,54.561891462814962,946,152.10851389715174,493,98.005101908012932,4302,403.20962290104137,384,78.568441501661468,1861,294.17001886664116,786,168.90825912311098]
[null,"With hearing difficullty",0,22.627416997969522,29,41.617304093369626,0,25.45584412271571,0,22.627416997969522,0,15.556349186104045,0,15.556349186104045,0,15.556349186104045,0,15.556349186104045,0,15.556349186104045,29,38.275318418009277,0,15.556349186104045,0,25.45584412271571,16,26.40075756488817]
[null,"With no hearing difficullty",1582,271.15493725912495,3992,396.6673669461606,1202,174.22973339817747,1328,263.42361321643131,926,220.9886874932742,389,82.073138114732771,252,54.561891462814962,946,152.10851389715174,493,98.005101908012932,4273,403.20962290104137,384,78.568441501661468,1861,294.17001886664116,770,166.20770138594662]
[null,"18 to 34 years:",1705,249.77790134437433,8385,521.9674319342156,9001,588.43266394720138,1276,268.02984908401527,544,167.45148551147582,436,119.01260437449471,284,56.850681614207581,886,165.46903033498444,412,74.276510418839678,6260,505.26131852735375,473,101.11874208078342,3223,343.8895171417704,606,133.68993978605869]
[null,"With hearing difficullty",0,22.627416997969522,83,80.224684480526321,51,41.773197148410844,0,22.627416997969522,2,11.704699910719626,0,15.556349186104045,0,15.556349186104045,19,26.248809496813376,0,15.556349186104045,99,80.411441971898498,0,15.556349186104045,8,23.430749027719962,0,15.556349186104045]
[null,"With no hearing difficullty",1705,249.77790134437433,8302,522.7245928785062,8950,585.40413391092477,1276,268.02984908401527,542,168.32409215557945,436,119.01260437449471,284,56.850681614207581,867,165.48715962273326,412,74.276510418839678,6161,501.78082864932173,473,101.11874208078342,3215,345.35778549208936,606,133.68993978605869]
[null,"35 to 64 years:",3961,269.00185872963777,11205,401.9950248448356,3258,272.25906780123961,3048,286.03671093060763,2058,180.38015411901608,922,102.17631819555841,741,79.93122043357026,1928,183.09560344257315,1283,82.619610262939389,13110,428.05723916317544,1105,76.485292703891773,4440,321.09967299889922,1852,163.24827717314508]
[null,"With hearing difficullty",197,108.46658471621571,266,107.83784122468327,19,28.42534080710379,110,62.433965115151864,53,45,19,19.924858845171276,27,15.620499351813308,79,53.814496188294839,41,26.40075756488817,422,137.88763541376724,10,12.041594578792296,181,98.655967888415148,51,39.560080889704963]
[null,"With no hearing difficullty",3764,269.15051551130273,10939,403.28773846969364,3239,271.56214758320056,2938,278.36846085718832,2005,183.86951895297926,903,92.633687176966021,714,79.93122043357026,1849,189.62331080328704,1242,87.418533504057365,12688,430.99071915761715,1095,74.411020689142546,4259,297.39199720234569,1801,158.70097668256489]
[null,"65 to 74 years:",397,114.05700329221349,1649,184.85940603604675,379,84.291162051546067,452,153.56106277308712,462,137.00364958642524,100,32.802438933713454,95,27.802877548915689,275,80.808415403347695,169,50.931326312987373,2646,242.52834885843757,176,43.278170016764804,628,160.70158679988197,383,106.88779163215975]
[null,"With hearing difficullty",50,42.154477816715982,75,47.507894080878813,9,22.803508501982758,33,31.240998703626616,30,32.756678708318397,18,14.866068747318506,12,9.8488578017961039,61,37.20215047547655,12,16.278820596099706,243,103.40696301506973,34,32.649655434629018,142,68.680419334771102,99,70.710678118654755]
[null,"With no hearing difficullty",347,112.36102527122117,1574,188.43035848822237,370,84.958813551037778,419,151.23822268196622,432,133.22537295875736,82,27.459060435491963,83,25.495097567963924,214,74.518454090245328,157,50.209560842532767,2403,249.0020080240318,142,31.400636936215164,486,155.70806016388491,284,87.206651122491792]
[null,"75 years and over:",231,92.617492948146676,1706,206.20620747203515,487,106.07544484940895,442,162.64070831129578,221,101.86265262597475,51,21.2602916254693,52,19.849433241279208,331,104.04326023342406,157,42.638011210655684,1829,192.75372888740699,149,45.453272709454048,667,169.49631264425784,125,60.827625302982199]
[null,"With hearing difficullty",50,47.707441767506253,406,112.44998888394787,50,34.985711369071801,61,68.8839603971781,70,68.622153857191051,6,7.2111025509279782,15,13.038404810405298,155,78.644770964127048,52,28.844410203711913,521,145.09651959988565,31,30.594117081556711,118,55.154328932550705,24,27.313000567495326]
[null,"With no hearing difficullty",181,84.599054368237475,1300,189.50461735799473,437,97.185389848474657,381,150.44600360262149,151,64.350602172784676,45,19.849433241279208,37,16.278820596099706,176,71.28113354878694,105,38.600518131237564,1308,187.60863519571799,118,38.483762809787713,549,169.49631264425784,101,56.435804238089851]

{"sheet":"ACS_Table_B18103","index":26,"n_rows":155,"n_cols":28,"rows_kept":155,"cut":false,"hidden":true,"merged":[]}
["B18103. SEX BY AGE BY VISION DIFFICULTY\n\n\n"]
["Universe:  Civilian non-institutionalized population"]
["Data Set: 2018-2022 American Community Survey 5-Year Estimates"]
[]
[null,null,"Barrington",null,"Dover",null,"Durham",null,"Farmington",null,"Lee",null,"Madbury",null,"Middleton",null,"Milton",null,"New Durham",null,"Rochester",null,"Rollinsford",null,"Somersworth",null,"Strafford"]
[null,null,"Estimate","Margin Of Error","Estimate","Margin Of Error","Estimate","Margin Of Error","Estimate","Margin Of Error","Estimate","Margin Of Error","Estimate","Margin Of Error","Estimate","Margin Of Error","Estimate","Margin Of Error","Estimate","Margin Of Error","Estimate","Margin Of Error","Estimate","Margin Of Error","Estimate","Margin Of Error","Estimate","Margin Of Error"]
[null,"Total:",9339,19,31886,96,14996,42,6754,22,4547,15,2208,278,1535,277,4495,19,2711,17,32186,108,2575,40,11831,164,4261,26]
[null,"Male:",4764,337,15657,473,7229,428,3105,270,2212,220,1023,130,815,165,2357,214,1380,91,16226,526,996,136,5926,406,2012,127]
[null,"Under 5 years:",237,104,853,174,109,66,210,136,89,68,52,33,40,36,71,51,123,108,762,217,40,32,291,127,124,54]
[null,"With vision difficulty",0,17,0,25,0,19,0,17,0,12,0,12,0,12,0,12,0,12,63,76,0,12,0,19,0,12]
[null,"With no vision difficulty",237,104,853,174,109,66,210,136,89,68,52,33,40,36,71,51,123,108,699,204,40,32,291,127,124,54]
[null,"5 to 17  years:",951,242,1754,312,656,200,366,176,380,161,175,72,140,60,495,125,159,56,3000,383,69,31,869,213,229,73]
[null,"With vision difficulty",0,17,26,36,0,19,0,17,0,12,0,12,0,12,0,12,0,12,0,25,0,12,0,19,0,12]
[null,"With no vision difficulty",951,242,1728,307,656,200,366,176,380,161,175,72,140,60,495,125,159,56,3000,383,69,31,869,213,229,73]
[null,"18 to 34  years:",1012,300,4715,569,4824,479,742,214,170,91,206,113,157,62,529,157,293,122,3312,353,304,88,1568,338,356,116]
[null,"With vision difficulty",74,75,98,79,94,100,0,17,0,12,0,12,0,12,0,12,0,12,63,53,0,12,0,19,0,12]
[null,"With no vision difficulty",938,285,4617,566,4730,413,742,214,170,91,206,113,157,62,529,157,293,122,3249,369,304,88,1568,338,356,116]
[null,"35 to 64  years:",2000,223,6074,448,1071,155,1348,255,1070,142,488,84,355,82,955,120,610,75,6537,389,419,77,2368,309,962,99]
[null,"With vision difficulty",19,31,56,53,17,18,99,89,0,12,0,12,7,6,33,38,5,9,186,119,5,8,27,31,19,19]
[null,"With no vision difficulty",1981,227,6018,446,1054,153,1249,250,1070,142,488,84,348,81,922,135,605,73,6351,367,414,77,2341,308,943,98]
[null,"65 to 74  years:",389,152,1471,271,333,84,272,128,339,134,64,22,73,30,225,70,160,49,1712,244,95,43,438,173,231,69]
[null,"With vision difficulty",56,69,69,87,7,12,0,17,27,40,0,12,0,12,0,12,0,12,49,47,0,12,16,26,8,12]
[null,"With no vision difficulty",333,131,1402,268,326,85,272,128,312,134,64,22,73,30,225,70,160,49,1663,242,95,43,422,172,223,68]
[null,"75  years and Older:",175,70,790,164,236,64,167,72,164,115,38,23,50,23,82,52,35,28,903,190,69,37,392,131,110,38]
[null,"With vision difficulty",25,40,45,33,3,5,0,17,0,12,2,3,0,12,0,12,6,8,209,170,13,19,53,81,1,4]
[null,"With no vision difficulty",150,62,745,159,233,64,167,72,164,115,36,22,50,23,82,52,29,27,694,173,56,35,339,122,109,38]
[null,"Female:",4575,336,16229,461,7767,423,3649,270,2335,218,1185,213,720,143,2138,215,1331,91,15960,520,1579,134,5905,420,2249,130]
[null,"Under 5 years:",263,159,897,247,109,51,269,145,116,85,75,48,32,21,111,103,61,69,648,164,99,66,168,110,55,39]
[null,"With vision difficulty",0,17,0,25,0,19,0,17,0,12,0,12,0,12,0,12,0,12,0,25,0,12,0,19,0,12]
[null,"With no vision difficulty",263,159,897,247,109,51,269,145,116,85,75,48,32,21,111,103,61,69,648,164,99,66,168,110,55,39]
[null,"5 to 17  years:",684,172,2079,337,589,163,489,214,443,174,282,143,83,50,265,135,153,78,1962,352,180,80,817,282,366,90]
[null,"With vision difficulty",0,17,0,25,0,19,0,17,0,12,0,12,0,12,0,12,0,12,0,25,0,12,0,19,0,12]
[null,"With no vision difficulty",684,172,2079,337,589,163,489,214,443,174,282,143,83,50,265,135,153,78,1962,352,180,80,817,282,366,90]
[null,"18 to 34  years:",929,251,4676,463,5134,457,977,300,219,128,238,78,142,68,486,140,238,130,3083,440,477,174,1591,359,305,82]
[null,"With vision difficulty",7,12,91,112,59,52,0,17,0,12,0,12,1,2,0,12,0,12,121,121,0,12,0,19,0,12]
[null,"With no vision difficulty",922,250,4585,457,5075,456,977,300,219,128,238,78,141,68,486,140,238,130,2962,465,477,174,1591,359,305,82]
[null,"35 to 64  years:",1945,197,5776,414,1106,173,1412,279,1010,143,472,97,328,60,898,133,601,81,7006,440,524,76,2411,261,966,124]
[null,"With vision difficulty",50,60,29,31,46,53,5,19,0,12,0,12,16,15,67,60,5,8,153,92,0,12,79,63,16,17]
[null,"With no vision difficulty",1895,208,5747,418,1060,161,1407,279,1010,143,472,97,312,59,831,142,596,82,6853,451,524,76,2332,262,950,122]
[null,"65 to 74  years:",360,113,1441,191,423,109,233,102,434,164,59,29,72,31,242,76,227,60,1886,287,108,44,653,257,390,134]
[null,"With vision difficulty",8,15,44,35,2,4,50,49,0,12,0,12,0,12,0,12,14,15,151,175,6,8,38,35,0,12]
[null,"With no vision difficulty",352,111,1397,196,421,108,183,86,434,164,59,29,72,31,242,76,213,57,1735,281,102,43,615,256,390,134]
[null,"75  years and Older:",394,145,1360,244,406,114,269,126,113,75,59,37,63,27,136,74,51,28,1375,267,191,87,265,123,167,73]
[null,"With vision difficulty",12,25,58,64,52,46,58,64,0,12,2,4,19,18,24,26,13,14,73,52,0,12,33,46,9,14]
[null,"With no vision difficulty",382,154,1302,238,354,101,211,106,113,75,57,37,44,19,112,65,38,25,1302,267,191,87,232,113,158,70]
[]
[]
[{"$f":"A1& \"-Calculated\"","v":"B18103. SEX BY AGE BY VISION DIFFICULTY\n\n\n-Calculated"}]
[{"$f":"A2","v":"Universe:  Civilian non-institutionalized population"}]
[{"$f":"A3","v":"Data Set: 2018-2022 American Community Survey 5-Year Estimates"}]
[]
[]
[null,null,"Barrington",null,"Dover",null,"Durham",null,"Farmington",null,"Lee",null,"Madbury",null,"Middleton",null,"Milton",null,"New Durham",null,"Rochester",null,"Rollinsford",null,"Somersworth",null,"Strafford"]
[null,null,"Estimate","Margin Of Error","Estimate","Margin Of Error","Estimate","Margin Of Error","Estimate","Margin Of Error","Estimate","Margin Of Error","Estimate","Margin Of Error","Estimate","Margin Of Error","Estimate","Margin Of Error","Estimate","Margin Of Error","Estimate","Margin Of Error","Estimate","Margin Of Error","Estimate","Margin Of Error","Estimate","Margin Of Error"]
[null,"Total",{"$f":"C7","v":9339},19,31886,96,14996,42,6754,22,4547,15,2208,278,1535,277,4495,19,2711,17,32186,108,2575,40,{"$f":"Y7","v":11831},{"$f":"Z7","v":164},{"$f":"AA7","v":4261},{"$f":"AB7","v":26}]
[null,"Under 5 years:",{"$f":"C28+C9","v":500},{"$f":"SQRT((D28^2)+(D9^2))","v":189.992105099133},{"$f":"E28+E9","v":1750},{"$f":"SQRT((F28^2)+(F9^2))","v":302.1340761979688},{"$f":"G28+G9","v":218},{"$f":"SQRT((H28^2)+(H9^2))","v":83.408632646747066},{"$f":"I28+I9","v":479},{"$f":"SQRT((J28^2)+(J9^2))","v":198.79889335708083},{"$f":"K28+K9","v":205},{"$f":"SQRT((L28^2)+(L9^2))","v":108.85311203635843},{"$f":"M28+M9","v":127},{"$f":"SQRT((N28^2)+(N9^2))","v":58.249463516842795},{"$f":"O28+O9","v":72},{"$f":"SQRT((P28^2)+(P9^2))","v":41.677331968349414},{"$f":"Q28+Q9","v":182},{"$f":"SQRT((R28^2)+(R9^2))","v":114.93476410555685},{"$f":"S28+S9","v":184},{"$f":"SQRT((T28^2)+(T9^2))","v":128.16005617976296},{"$f":"U28+U9","v":1410},{"$f":"SQRT((V28^2)+(V9^2))","v":272.00183822908258},{"$f":"W28+W9","v":139},{"$f":"SQRT((X28^2)+(X9^2))","v":73.348483283568996},{"$f":"Y28+Y9","v":459},{"$f":"SQRT((Z28^2)+(Z9^2))","v":168.01488029338353},{"$f":"AA28+AA9","v":179},{"$f":"SQRT((AB28^2)+(AB9^2))","v":66.610809933523555}]
[null,"With vision difficulty",{"$f":"C29+C10","v":0},{"$f":"SQRT((D29^2)+(D10^2))","v":24.041630560342615},{"$f":"E29+E10","v":0},{"$f":"SQRT((F29^2)+(F10^2))","v":35.355339059327378},{"$f":"G29+G10","v":0},{"$f":"SQRT((H29^2)+(H10^2))","v":26.870057685088806},{"$f":"I29+I10","v":0},{"$f":"SQRT((J29^2)+(J10^2))","v":24.041630560342615},{"$f":"K29+K10","v":0},{"$f":"SQRT((L29^2)+(L10^2))","v":16.970562748477139},{"$f":"M29+M10","v":0},{"$f":"SQRT((N29^2)+(N10^2))","v":16.970562748477139},{"$f":"O29+O10","v":0},{"$f":"SQRT((P29^2)+(P10^2))","v":16.970562748477139},{"$f":"Q29+Q10","v":0},{"$f":"SQRT((R29^2)+(R10^2))","v":16.970562748477139},{"$f":"S29+S10","v":0},{"$f":"SQRT((T29^2)+(T10^2))","v":16.970562748477139},{"$f":"U29+U10","v":63},{"$f":"SQRT((V29^2)+(V10^2))","v":80.006249755878443},{"$f":"W29+W10","v":0},{"$f":"SQRT((X29^2)+(X10^2))","v":16.970562748477139},0,26.870057685088806,0,16.970562748477139]
[null,"With no vision difficulty",500,189.992105099133,1750,302.1340761979688,218,83.408632646747066,479,198.79889335708083,205,108.85311203635843,127,58.249463516842795,72,41.677331968349414,182,114.93476410555685,184,128.16005617976296,1347,261.74797038372617,139,73.348483283568996,459,168.01488029338353,179,66.610809933523555]
[null,"5 to 17 years:",1635,296.89728863699651,3833,459.25265377567496,1245,258.0096897405212,855,277.07760645710795,823,237.05906437004259,457,160.10309178776029,223,78.10249675906654,760,183.98369492974098,312,96.020831073262428,4962,520.18554382066407,249,85.796270315206598,1686,353.40203734557048,595,115.88356225108029]
[null,"With vision difficulty",0,24.041630560342615,26,43.829214001622255,0,26.870057685088806,0,24.041630560342615,0,16.970562748477139,0,16.970562748477139,0,16.970562748477139,0,16.970562748477139,0,16.970562748477139,0,35.355339059327378,0,16.970562748477139,0,26.870057685088806,0,16.970562748477139]
[null,"With no vision difficulty",1635,296.89728863699651,3807,455.87059567381618,1245,258.0096897405212,855,277.07760645710795,823,237.05906437004259,457,160.10309178776029,223,78.10249675906654,760,183.98369492974098,312,96.020831073262428,4962,520.18554382066407,249,85.796270315206598,1686,353.40203734557048,595,115.88356225108029]
[null,"18 to 34 years:",1941,391.15342258505166,9391,733.57344553902715,9958,662.03474229076528,1719,368.50508816025865,389,157.05094714773293,444,137.30622709840949,299,92.021736562618727,1015,210.35446275275456,531,178.28067758453241,6395,564.10016840983121,781,194.98717906570164,3159,493.07707308290048,661,142.05632685663809]
[null,"With vision difficulty",81,75.953933407032977,189,137.05838172107534,153,112.71202242884297,0,24.041630560342615,0,16.970562748477139,0,16.970562748477139,1,12.165525060596439,0,16.970562748477139,0,16.970562748477139,184,132.09844813622905,0,16.970562748477139,0,26.870057685088806,0,16.970562748477139]
[null,"With no vision difficulty",1860,379.11080174534726,9202,727.46477577955625,9805,615.22760016111113,1719,368.50508816025865,389,157.05094714773293,444,137.30622709840949,298,92.021736562618727,1015,210.35446275275456,531,178.28067758453241,6211,593.62109126950668,781,194.98717906570164,3159,493.07707308290048,661,142.05632685663809]
[null,"35 to 64 years:",3945,297.55335655979417,11850,610,2177,232.28000344411913,2760,377.97618972628419,2080,201.52667317256046,960,128.31601614763451,683,101.6070863670443,1853,179.13402803487674,1211,110.39021695784459,13543,587.29975310738894,943,108.18964830333815,4779,404.47744065645986,1928,158.67261893597143]
[null,"With vision difficulty",69,67.53517601961218,85,61.400325732035007,63,55.97320787662612,104,91.005494339627646,0,16.970562748477139,0,16.970562748477139,23,16.15549442140351,100,71.021123618258812,10,12.041594578792296,339,150.41608956491322,5,14.422205101855956,106,70.213958726167832,35,25.495097567963924]
[null,"With no vision difficulty",3876,307.88471868541967,11765,611.26099172121235,2114,222.10357943986403,2656,374.62114195544274,2080,201.52667317256046,960,128.31601614763451,660,100.20977996183805,1753,195.93111034238538,1201,109.78615577567146,13204,581.45507135117498,938,108.18964830333815,4673,404.36122464944634,1893,156.48642113614844]
[null,"65 to 74 years:",749,189.40168953839878,2912,331.54486875836278,756,137.61177275218861,505,163.67040050051813,773,211.7829077144801,123,36.400549446402593,145,43.139309220245984,467,103.32473082471591,387,77.466121627457255,3598,376.70280062670093,203,61.522353661088097,1091,309.80316331503138,621,150.72159765607583]
[null,"With vision difficulty",64,70.611613775638915,113,93.776329636001435,9,12.649110640673518,50,51.86520991955976,27,41.761226035642203,0,16.970562748477139,0,16.970562748477139,0,16.970562748477139,14,19.209372712298546,200,181.20154524727431,6,14.422205101855956,54,43.600458713183279,8,16.970562748477139]
[null,"With no vision difficulty",685,171.7032323516363,2799,332.02409551115414,747,137.43725841270262,455,154.20765220960988,746,211.7829077144801,123,36.400549446402593,145,43.139309220245984,467,103.32473082471591,373,75.166481891864535,3398,370.84363281577316,197,60.811183182043088,1037,308.41530441921975,613,150.2664300500947]
[null,"75 years and over:",569,161.01242188104618,2150,293.99319720020736,642,130.73637596323374,436,145.12063946937388,277,137.2953021774598,97,43.56604182158393,113,35.468295701936398,218,90.443352436760108,86,39.597979746446661,2278,327.70260908329675,260,94.540996398387932,657,179.6941846582688,277,82.29823813423954]
[null,"With vision difficulty",37,47.169905660283021,103,72.006944109578768,55,46.270941205037097,58,66.219332524573218,0,16.970562748477139,4,5,19,21.633307652783937,24,28.635642126552707,19,16.124515496597098,282,177.77513886930311,13,22.472205054244231,86,93.150415994776964,10,14.560219778561036]
[null,"With no vision difficulty",532,166.01204775557707,2047,286.22543562723422,587,119.57006314291216,378,128.14054783713078,277,137.2953021774598,93,43.046486500061768,94,29.832867780352597,194,83.240615086627031,67,36.796738985948195,1996,318.14776441144454,247,93.776329636001435,571,166.29191201017565,267,79.649231006959511]
[]
[]
[]
[]
[]
[]
[]
[]
[]
[]
[]
[]
[]
[]
[]
[]
[]
[]
[]
[]
[]
[]
[]
[]
[]
[]
["B18103. SEX BY AGE BY VISION DIFFICULTY\n\n\n-Calculated"]
["Universe:  Civilian non-institutionalized population"]
["Data Set: 2013-2017 American Community Survey 5-Year Estimates"]
[]
[]
[null,null,"Barrington",null,"Dover",null,"Durham",null,"Farmington",null,"Lee",null,"Madbury",null,"Middleton",null,"Milton",null,"New Durham",null,"Rochester",null,"Rollinsford",null,"Somersworth",null,"Strafford"]
[null,null,"Estimate","Margin Of Error","Estimate","Margin Of Error","Estimate","Margin Of Error","Estimate","Margin Of Error","Estimate","Margin Of Error","Estimate","Margin Of Error","Estimate","Margin Of Error","Estimate","Margin Of Error","Estimate","Margin Of Error","Estimate","Margin Of Error","Estimate","Margin Of Error","Estimate","Margin Of Error","Estimate","Margin Of Error"]
[null,"Total",8841,20,30008,268,16116,41,6815,34,4375,18,1906,157,1683,153,4581,34,2663,22,29911,118,2473,64,11706,75,4046,25]
[null,"Under 5 years:",551,210.87674124947966,1584,243.24473272817235,337,104.23531071570709,412,161.24515496597098,157,119.6202324023825,115,43.600458713183279,78,31.240998703626616,255,98.488578017961046,135,52.497618993626752,1481,263.00570336021235,105,42.426406871192853,853,220.32022149589446,196,88.509886453435243]
[null,"With vision difficulty",0,22.627416997969522,0,33.941125496954278,0,25.45584412271571,0,22.627416997969522,0,15.556349186104045,0,15.556349186104045,0,15.556349186104045,0,15.556349186104045,0,15.556349186104045,0,33.941125496954278,0,15.556349186104045,0,25.45584412271571,0,15.556349186104045]
[null,"With no vision difficulty",551,210.87674124947966,1584,243.24473272817235,337,104.23531071570709,412,161.24515496597098,157,119.6202324023825,115,43.600458713183279,78,31.240998703626616,255,98.488578017961046,135,52.497618993626752,1481,263.00570336021235,105,42.426406871192853,853,220.32022149589446,196,88.509886453435243]
[null,"5 to 17 years:",1368,348.63447907514825,4292,389.48684188300894,1084,184.58873205046942,1034,239.43683927081898,829,243.28789530101986,476,87.863530545955186,298,76.275815302099531,718,122.9186723000212,442,84.864598037108507,4521,369.89863476363359,423,87.783825389418979,1854,284.43101096751036,719,172.53985046939155]
[null,"With vision difficulty",51,81.584312217484552,42,51.884487084291386,0,25.45584412271571,0,22.627416997969522,0,15.556349186104045,0,15.556349186104045,0,15.556349186104045,0,15.556349186104045,0,15.556349186104045,30,37.215588131856791,15,13.45362404707371,0,25.45584412271571,0,15.556349186104045]
[null,"With no vision difficulty",1317,349.75705854206859,4250,393.97461847179954,1084,184.58873205046942,1034,239.43683927081898,829,243.28789530101986,476,87.863530545955186,298,76.275815302099531,718,122.9186723000212,442,84.864598037108507,4491,373.52376095772007,408,90.609050320594349,1854,284.43101096751036,719,172.53985046939155]
[null,"18 to 34 years:",1302,331.69865842357581,8691,587.62658210805955,10831,616.40976630809473,1558,368.71669341107952,667,225.85836269662454,240,62.241465278381739,321,65.73431371817918,854,160.77624202599088,401,83.630138108220294,6734,498.25495481731036,445,79.81227975693966,2826,336.68976818430343,677,140.60227594174995]
[null,"With vision difficulty",0,22.627416997969522,18,36.878177829171548,60,46.010868281309364,72,107.20074626605917,0,15.556349186104045,0,15.556349186104045,10,17.804493814764857,11,20.248456731316587,0,15.556349186104045,170,119,26,41.484937025383083,0,25.45584412271571,11,19.416487838947599]
[null,"With no vision difficulty",1302,331.69865842357581,8673,586.22606560950533,10771,615,1486,367.76623009732691,667,225.85836269662454,240,62.241465278381739,311,57.628118136895637,843,158.54967675779096,401,83.630138108220294,6564,499.12423303221811,419,70.724818840347695,2826,336.68976818430343,666,137.43725841270262]
[null,"35 to 64 years:",4611,355.44479177503786,11237,408.72973955903916,2515,194.26270872197782,2876,287.21072403376581,2207,210.23796041628637,861,67.007462271003817,786,84.958813551037778,2052,154.80633061990716,1232,97.672923576598237,12087,414.36457377531684,1105,99.085821387320593,4691,317.50590545689067,1912,143.58621103713267]
[null,"With vision difficulty",46,47.201694884823787,194,87.681240867131891,17,25.45584412271571,37,43.278170016764804,1,11.401754250991379,0,15.556349186104045,13,10.816653826391969,23,23.194827009486403,23,26.40075756488817,242,98.2344135219425,14,19.416487838947599,75,53.712196007983138,24,18.867962264113206]
[null,"With no vision difficulty",4565,351.64755082326394,11043,413.67257583746107,2498,194.26270872197782,2839,287.17242207426534,2206,209.67832506007863,861,67.007462271003817,773,84.219950130595535,2029,155.41557193537591,1209,101.9803902718557,11845,412.9527818044092,1091,96.176920308356728,4616,315.78473680657839,1888,142.89856542317]
[null,"65 to 74 years:",615,194.90510511528424,2307,256.20499604808646,824,119.55333537798099,580,146.65946952038249,352,109.34349546269316,132,38.897300677553446,166,38.288379438153292,411,99.824846606443629,332,72.346388990743691,3036,262.45190035509364,240,46.010868281309364,845,149.91330828182001,355,83.600239234107462]
[null,"With vision difficulty",14,28.844410203711913,27,40.80441152620633,23,34.132096331752024,28,40.311288741492746,0,15.556349186104045,4,12.529964086141668,14,13.601470508735444,0,15.556349186104045,23,27.202941017470888,99,56.586217403180434,0,15.556349186104045,0,25.45584412271571,0,15.556349186104045]
[null,"With no vision difficulty",601,192.57466084612483,2280,256.85015086622008,801,121.63058825805291,552,143.40153416194681,352,109.34349546269316,128,38.209946349085598,152,37.802116342871599,411,99.824846606443629,309,69.354163537598808,2937,260.96934685897497,240,46.010868281309364,845,149.91330828182001,355,83.600239234107462]
[null,"75 years and over:",394,168.5852899869974,1897,217.58906222510359,525,112.44998888394787,355,151.72672803431834,163,113.86395390991831,82,31.144823004794873,34,15,291,88.865066252155572,121,42.201895692018383,2052,219.93862780330335,155,48.414873747640819,637,154.05193929321371,187,72.917761896536561]
[null,"With vision difficulty",56,64.381674411279491,147,81.394102980498531,28,31.622776601683793,20,35.777087639996637,0,15.556349186104045,0,15.556349186104045,3,12.083045973594572,11,19.416487838947599,22,26,249,124.27791436936813,15,12.806248474865697,114,66.730802482811484,10,18.601075237738275]
[null,"With no vision difficulty",338,160.99689437998487,1750,214.21951358361358,497,109.60383204979651,335,147.63468427168462,163,113.86395390991831,82,31.144823004794873,31,14.212670403551895,280,86.556340033529608,99,33.97057550292606,1803,213.66328650472454,140,48.826222462934808,523,130.08458786497346,177,72.917761896536561]
[]
[]
[]
[]
["B18103. SEX BY AGE BY VISION DIFFICULTY\n\n\n-Calculated"]
["Universe:  Civilian non-institutionalized population"]
["Data Set: 2008-2012 American Community Survey 5-Year Estimates"]
[]
[]
[null,null,"Barrington",null,"Dover",null,"Durham",null,"Farmington",null,"Lee",null,"Madbury",null,"Middleton",null,"Milton",null,"New Durham",null,"Rochester",null,"Rollinsford",null,"Somersworth",null,"Strafford"]
[null,null,"Estimate","Margin Of Error","Estimate","Margin Of Error","Estimate","Margin Of Error","Estimate","Margin Of Error","Estimate","Margin Of Error","Estimate","Margin Of Error","Estimate","Margin Of Error","Estimate","Margin Of Error","Estimate","Margin Of Error","Estimate","Margin Of Error","Estimate","Margin Of Error","Estimate","Margin Of Error","Estimate","Margin Of Error"]
[null,"Total",8591,19,28955,354,14695,19,6718,66,4334,22,2008,165,1526,165,4566,43,2627,18,29569,78,2540,18,11738,49,3982,22]
[null,"Under 5 years:",715,180.16103907338012,1989,249.63373169505758,368,106.01886624558857,172,86.267027304758798,123,67.208630398186216,110,62.769419305900861,102,40.8166632639171,200,81.841309862440497,113,51.86520991955976,1422,249.01807163336559,253,86.833173384369644,919,231.46706029152398,230,110.45361017187261]
[null,"With vision difficullty",0,22.627416997969522,0,33.941125496954278,0,25.45584412271571,14,28.0178514522438,0,15.556349186104045,0,15.556349186104045,0,15.556349186104045,0,15.556349186104045,0,15.556349186104045,0,29.698484809834994,0,15.556349186104045,0,25.45584412271571,0,15.556349186104045]
[null,"With no vision difficullty",715,180.16103907338012,1989,249.63373169505758,368,106.01886624558857,158,77.620873481300123,123,67.208630398186216,110,62.769419305900861,102,40.8166632639171,200,81.841309862440497,113,51.86520991955976,1422,249.01807163336559,253,86.833173384369644,919,231.46706029152398,230,110.45361017187261]
[null,"5 to 17 years:",1582,271.15493725912495,4021,398.61008517096002,1202,174.22973339817747,1328,263.42361321643131,926,220.9886874932742,389,82.073138114732771,252,54.561891462814962,946,152.10851389715174,493,98.005101908012932,4302,403.20962290104137,384,78.568441501661468,1861,294.17001886664116,786,168.90825912311098]
[null,"With vision difficullty",29,46.818799642878503,0,33.941125496954278,0,25.45584412271571,38,46.818799642878503,0,15.556349186104045,0,15.556349186104045,0,15.556349186104045,0,15.556349186104045,21,24.041630560342615,42,43.278170016764804,0,15.556349186104045,0,25.45584412271571,0,15.556349186104045]
[null,"With no vision difficullty",1553,272.64078931810627,4021,398.61008517096002,1202,174.22973339817747,1290,261.93892417890089,926,220.9886874932742,389,82.073138114732771,252,54.561891462814962,946,152.10851389715174,472,95.210293561148106,4260,397.64557082909903,384,78.568441501661468,1861,294.17001886664116,786,168.90825912311098]
[null,"18 to 34 years:",1705,249.77790134437433,8385,521.9674319342156,9001,588.43266394720138,1276,268.02984908401527,544,167.45148551147582,436,119.01260437449471,284,56.850681614207581,886,165.46903033498444,412,74.276510418839678,6260,505.26131852735375,473,101.11874208078342,3223,343.8895171417704,606,133.68993978605869]
[null,"With vision difficullty",0,22.627416997969522,52,86.400231481171389,38,38.910152916687437,13,27.202941017470888,0,15.556349186104045,4,12.529964086141668,0,15.556349186104045,26,40.521599178709621,0,15.556349186104045,73,53.254107822777392,0,15.556349186104045,13,28.42534080710379,0,15.556349186104045]
[null,"With no vision difficullty",1705,249.77790134437433,8333,514.79121981634455,8963,590.81638433611499,1263,267.41914665932205,544,167.45148551147582,432,119.01260437449471,284,56.850681614207581,860,159.96249560443849,412,74.276510418839678,6187,496.33859410688586,473,101.11874208078342,3210,341.85523251809383,606,133.68993978605869]
[null,"35 to 64 years:",3961,269.00185872963777,11205,401.9950248448356,3258,272.25906780123961,3048,286.03671093060763,2058,180.38015411901608,922,102.17631819555841,741,79.93122043357026,1928,183.09560344257315,1283,82.619610262939389,13110,428.05723916317544,1105,76.485292703891773,4440,321.09967299889922,1852,163.24827717314508]
[null,"With vision difficullty",43,42.154477816715982,92,55.97320787662612,0,25.45584412271571,77,55.605755097831377,17,24.083189157584592,7,8.0622577482985491,25,14.866068747318506,0,15.556349186104045,16,14.422205101855956,260,126.53062870309307,0,15.556349186104045,68,46.861498055439924,10,19.416487838947599]
[null,"With no vision difficullty",3918,271.02951868754076,11113,402.35556414693707,3258,272.25906780123961,2971,284.94560884491625,2041,180.38015411901608,915,101.41498903022176,716,79.246451024635803,1928,183.09560344257315,1267,84.02380615040002,12850,424.54799493107959,1105,76.485292703891773,4372,324.69370181757455,1842,160.07810593582121]
[null,"65 to 74 years:",397,114.05700329221349,1649,184.85940603604675,379,84.291162051546067,452,153.56106277308712,462,137.00364958642524,100,32.802438933713454,95,27.802877548915689,275,80.808415403347695,169,50.931326312987373,2646,242.52834885843757,176,43.278170016764804,628,160.70158679988197,383,106.88779163215975]
[null,"With vision difficullty",5,18.357559750685819,51,44.82186966202994,0,25.45584412271571,50,60.539243470661241,0,15.556349186104045,3,12.529964086141668,0,15.556349186104045,8,17.029386365926403,5,13.038404810405298,115,64.350602172784676,14,23.706539182259394,7,22.203603311174518,21,25.632011235952593]
[null,"With no vision difficullty",392,114.05700329221349,1598,184.11409506064439,379,84.291162051546067,402,139.29106216839614,462,137.00364958642524,97,32.015621187164243,95,27.802877548915689,267,80.05623023850174,164,50.209560842532767,2531,241.49741199441456,162,38.078865529319543,621,160.03124694883809,362,106.83164325236227]
[null,"75 years and over:",231,92.617492948146676,1706,206.20620747203515,487,106.07544484940895,442,162.64070831129578,221,101.86265262597475,51,21.2602916254693,52,19.849433241279208,331,104.04326023342406,157,42.638011210655684,1829,192.75372888740699,149,45.453272709454048,667,169.49631264425784,125,60.827625302982199]
[null,"With vision difficullty",0,22.627416997969522,109,50.119856344566671,30,29.154759474226502,0,22.627416997969522,13,23.706539182259394,0,15.556349186104045,4,5,79,53.907327887774215,8,13.601470508735444,199,105.58882516630251,5,13.601470508735444,42,42.953463189829058,14,23.706539182259394]
[null,"With no vision difficullty",231,92.617492948146676,1597,195.86985475054604,457,102.55242561733974,442,162.64070831129578,208,100.4987562112089,51,21.2602916254693,48,19.849433241279208,252,87.321245982864909,149,42.638011210655684,1630,197.28405916343064,144,45.453272709454048,625,167.70509831248424,111,57.30619512757761]

{"sheet":"ACS_Table_B18104","index":27,"n_rows":152,"n_cols":28,"rows_kept":152,"cut":false,"hidden":true,"merged":[]}
["B18104. SEX BY AGE BY COGNITIVE DIFFICULTY\n\n"]
["Universe:  Civilian non-institutionalized population 5 years and over"]
["Data Set: 2018-2022 American Community Survey 5-Year Estimates"]
[]
[null,null,"Barrington",null,"Dover",null,"Durham",null,"Farmington",null,"Lee",null,"Madbury",null,"Middleton",null,"Milton",null,"New Durham",null,"Rochester",null,"Rollinsford",null,"Somersworth",null,"Strafford"]
[null,null,"Estimate","Margin Of Error","Estimate","Margin Of Error","Estimate","Margin Of Error","Estimate","Margin Of Error","Estimate","Margin Of Error","Estimate","Margin Of Error","Estimate","Margin Of Error","Estimate","Margin Of Error","Estimate","Margin Of Error","Estimate","Margin Of Error","Estimate","Margin Of Error","Estimate","Margin Of Error","Estimate","Margin Of Error"]
[null,"Total:",8839,180,30136,315,14778,98,4342,103,2081,271,1463,267,4313,111,2527,172,30776,318,2436,78,11372,282,4082,75,895,272]
[null,"Male:",4527,324,14804,461,7120,431,2123,212,971,121,775,163,2286,217,1257,119,15464,531,956,131,5635,396,1888,137,419,101]
[null,"5 to 17  years:",951,242,1754,312,656,200,380,161,175,72,140,60,495,125,159,56,3000,383,69,31,869,213,229,73,81,68]
[null,"With cognitive difficulty",64,90,15,25,0,19,0,12,4,6,9,12,85,65,0,12,102,69,8,10,53,54,32,39,0,12]
[null,"With no cognitive difficulty",887,232,1739,314,656,200,380,161,171,72,131,57,410,124,159,56,2898,368,61,32,816,210,197,70,81,68]
[null,"18 to 34  years:",1012,300,4715,569,4824,479,170,91,206,113,157,62,529,157,293,122,3312,353,304,88,1568,338,356,116,82,51]
[null,"With cognitive difficulty",50,61,185,133,129,106,0,12,4,6,0,12,30,32,48,87,299,125,27,22,137,106,27,37,37,39]
[null,"With no cognitive difficulty",962,289,4530,558,4695,460,170,91,202,113,157,62,499,152,245,93,3013,350,277,91,1431,348,329,121,45,25]
[null,"35 to 64  years:",2000,223,6074,448,1071,155,1070,142,488,84,355,82,955,120,610,75,6537,389,419,77,2368,309,962,99,174,52]
[null,"With cognitive difficulty",120,118,178,112,13,15,25,43,4,6,9,12,11,11,11,12,183,97,4,7,46,58,31,23,7,10]
[null,"With no cognitive difficulty",1880,213,5896,451,1058,153,1045,130,484,84,346,82,944,118,599,74,6354,383,415,79,2322,307,931,99,167,51]
[null,"65 to 74  years:",389,152,1471,271,333,84,339,134,64,22,73,30,225,70,160,49,1712,244,95,43,438,173,231,69,47,24]
[null,"With cognitive difficulty",13,23,93,105,17,19,0,12,2,3,1,2,0,12,0,12,42,37,0,12,0,19,0,12,6,9]
[null,"With no cognitive difficulty",376,150,1378,276,316,87,339,134,62,22,72,30,225,70,160,49,1670,238,95,43,438,173,231,69,41,22]
[null,"75  years and Older:",175,70,790,164,236,64,164,115,38,23,50,23,82,52,35,28,903,190,69,37,392,131,110,38,35,20]
[null,"With cognitive difficulty",38,47,114,86,4,5,13,21,0,12,0,12,25,38,0,12,283,183,13,19,0,19,12,13,2,3]
[null,"With no cognitive difficulty",137,58,676,150,232,64,151,115,38,23,50,23,57,32,35,28,620,173,56,35,392,131,98,38,33,19]
[null,"Female:",4312,287,15332,469,7658,422,2219,229,1110,207,688,131,2027,170,1270,124,15312,523,1480,143,5737,438,2194,128,476,195]
[null,"5 to 17  years:",684,172,2079,337,589,163,443,174,282,143,83,50,265,135,153,78,1962,352,180,80,817,282,366,90,111,126]
[null,"With cognitive difficulty",0,17,99,99,0,19,31,43,3,5,0,12,0,12,0,12,111,66,0,12,0,19,0,12,0,12]
[null,"With no cognitive difficulty",684,172,1980,330,589,163,412,178,279,144,83,50,265,135,153,78,1851,352,180,80,817,282,366,90,111,126]
[null,"18 to 34  years:",929,251,4676,463,5134,457,219,128,238,78,142,68,486,140,238,130,3083,440,477,174,1591,359,305,82,76,51]
[null,"With cognitive difficulty",34,48,482,230,197,101,0,12,0,12,0,12,3,12,19,19,337,211,16,24,38,49,25,32,0,12]
[null,"With no cognitive difficulty",895,255,4194,487,4937,448,219,128,238,78,142,68,483,139,219,132,2746,426,461,179,1553,351,280,80,76,51]
[null,"35 to 64  years:",1945,197,5776,414,1106,173,1010,143,472,97,328,60,898,133,601,81,7006,440,524,76,2411,261,966,124,189,71]
[null,"With cognitive difficulty",45,52,307,151,31,27,39,39,8,7,21,16,11,18,16,13,772,193,49,37,100,75,15,16,0,12]
[null,"With no cognitive difficulty",1900,196,5469,396,1075,173,971,139,464,98,307,58,887,134,585,82,6234,468,475,76,2311,252,951,123,189,71]
[null,"65 to 74  years:",360,113,1441,191,423,109,434,164,59,29,72,31,242,76,227,60,1886,287,108,44,653,257,390,134,75,30]
[null,"With cognitive difficulty",4,7,27,27,77,75,0,12,6,7,0,12,21,32,6,9,138,175,0,12,150,213,0,12,2,3]
[null,"With no cognitive difficulty",356,113,1414,191,346,83,434,164,53,30,72,31,221,68,221,60,1748,271,108,44,503,142,390,134,73,30]
[null,"75  years and Older:",394,145,1360,244,406,114,113,75,59,37,63,27,136,74,51,28,1375,267,191,87,265,123,167,73,25,18]
[null,"With cognitive difficulty",0,17,164,78,67,45,22,34,0,12,15,13,2,8,5,8,136,77,55,79,22,34,7,13,2,2]
[null,"With no cognitive difficulty",394,145,1196,254,339,115,91,67,59,37,48,23,134,75,46,26,1239,282,136,55,243,119,160,73,23,17]
[]
[]
[{"$f":"A1& \"-Calculated\"","v":"B18104. SEX BY AGE BY COGNITIVE DIFFICULTY\n\n-Calculated"}]
[{"$f":"A2","v":"Universe:  Civilian non-institutionalized population 5 years and over"}]
[{"$f":"A3","v":"Data Set: 2018-2022 American Community Survey 5-Year Estimates"}]
[]
[]
[null,null,"Barrington",null,"Dover",null,"Durham",null,"Farmington",null,"Lee",null,"Madbury",null,"Middleton",null,"Milton",null,"New Durham",null,"Rochester",null,"Rollinsford",null,"Somersworth",null,"Strafford"]
[null,null,"Estimate","Margin Of Error","Estimate","Margin Of Error","Estimate","Margin Of Error","Estimate","Margin Of Error","Estimate","Margin Of Error","Estimate","Margin Of Error","Estimate","Margin Of Error","Estimate","Margin Of Error","Estimate","Margin Of Error","Estimate","Margin Of Error","Estimate","Margin Of Error","Estimate","Margin Of Error","Estimate","Margin Of Error"]
[null,"Total:",7993,220,27436,451,14545,126,6554,115,4212,86,1923,147,1409,152,4416,82,2516,57,27901,286,2290,82,10792,227,3781,130]
[null,"5 to 17  years:",1482,263.78779350076076,4567,429.26215766125949,1268,226.34486961272174,1209,263.89770745499095,838,204.45292856792244,434,79.39773296511683,240,50.24937810560445,863,128.06248474865697,472,92.80086206496145,4047,392.39011200589653,419,80.430093870391573,1735,253.62176562747922,768,155.72411502397438]
[null,"With cognitive difficulty",59,47.75981574503821,263,133.71985641631537,61,65.620118866091673,191,126.40015822774906,58,67.119296778199342,15,21.95449840010015,22,17.088007490635061,0,15.556349186104045,26,15.652475842498529,102,70.213958726167832,21,21.095023109728988,32,31.240998703626616,24,25.495097567963924]
[null,"With no cognitive difficulty",1423,259.91537084212621,4304,427.375712927162,1207,205.80087463370995,1018,241.40008285002722,780,202.41047403728888,419,80.156097709406993,218,48.259714048054619,863,128.06248474865697,446,90.801982357215081,3945,379.86444950797909,398,75.822160349069449,1703,254.95097567963924,744,157.30543537970962]
[null,"18 to 34  years:",1507,268.48649872945197,7912,541.86714238824266,9332,638.94365948806467,1231,272.237029075767,782,200.8183258569795,365,107.33126291998991,295,61.846584384264908,797,160.51479682571323,408,79.025312400521386,6800,492.10771178675913,462,85.14693182963201,3321,393.31539507118202,563,128.70120434556935]
[null,"With cognitive difficulty",45,42.720018726587654,450,179.33488227336031,315,126.56223765404908,21,37.576588456111871,2,5.6568542494923806,8,14.866068747318506,10,10,68,45.607017003965517,48,34.481879299133332,424,146.47866738880444,10,11.313708498984761,236,135.35139452550905,6,16.278820596099706]
[null,"With no cognitive difficulty",1462,275.40878707840824,7462,511.94530957906039,9017,620.34587126860129,1210,269.43088167468852,780,200.8183258569795,357,106.88779163215975,285,59.816385714952723,729,150.74813431681335,360,70.007142492748557,6376,471.9502092382204,452,85.14693182963201,3085,369.64036576110027,557,128.70120434556935]
[null,"35 to 64  years:",4144,282.28531665674711,11449,411.07785150747299,2927,249.16059078433733,3244,266.62520511009456,2026,173.36666346215469,954,89.498603341057787,718,84.38601779915912,2068,166.93112352104984,1292,95.801878895979911,12588,451.8860475827949,1079,74.953318805774032,4473,355.30831681794336,1892,160.86329600005092]
[null,"With cognitive difficulty",70,55.758407437802596,546,167.94344286098223,97,72.993150363578636,141,100.62305898749054,75,55.154328932550705,9,14.212670403551895,33,16.643316977093239,186,96.020831073262428,36,19.723082923316021,894,231.63117234085743,11,12.041594578792296,124,71.400280111495363,85,49.658836071740545]
[null,"With no cognitive difficulty",4074,281.51731740694032,10903,414.64322013027055,2830,247.51767613647314,3103,257.10892633278991,1951,174.28998823799375,945,87.965902484996988,685,82.328609851011095,1882,163.60012224934309,1256,96.829747495281637,11694,475.3861588224882,1068,76.367532368147138,4349,347.39746688771351,1807,164.14627622946554]
[null,"65 to 74  years:",521,157.76247969653622,1769,205.38013535880242,472,114.58621208504974,416,120.95040305844375,406,105.68348972285122,118,37.483329627982627,94,30,332,100.56838469419701,164,50.328918128646478,2640,250.50349298961882,212,53.263495942343098,685,163.60012224934309,432,100.56838469419701]
[null,"With cognitive difficulty",103,98.290386101591849,97,59.665735560705194,39,50,17,34,19,30.083217912982647,4,13.038404810405298,6,6.4031242374328485,0,15.556349186104045,0,15.556349186104045,200,133.01503674397117,19,26.40075756488817,5,20.124611797498108,22,29.154759474226502]
[null,"With no cognitive difficulty",418,136.02940858505562,1672,210.44001520623399,433,110.30865786510141,399,120.41594578792295,387,107.41508273980894,114,36.76955262170047,88,28.600699292150182,332,100.56838469419701,164,50.328918128646478,2440,252.38264599611441,193,48.083261120685229,680,162.85576440519384,410,97.948966303887048]
[null,"75  years and Older:",339,115.6027681329474,1739,206.3492185592182,546,112.69871339105873,454,173.97126199461795,160,79.404030124421269,52,23.600847442411894,62,26.172504656604801,356,104.63746938836012,180,49.040799340956916,1826,204.62893246068603,118,36.796738985948195,578,113.6001760562016,126,58.137767414994535]
[null,"With cognitive difficulty",58,42.80186911806539,249,84.723078319900537,39,32.802438933713454,40,39.560080889704963,0,15.556349186104045,11,18.601075237738275,0,15.556349186104045,0,15.556349186104045,16,14.142135623730951,200,112.27199116431488,10,10.63014581273465,54,41.182520563948003,26,26.172504656604801]
[null,"With no cognitive difficulty",281,107.00467279516349,1490,208.21383239352758,507,105.75916035975324,414,173.97126199461795,160,79.404030124421269,41,19.798989873223331,62,26.172504656604801,356,104.63746938836012,164,48.270073544588683,1626,211.43556938225885,108,34.713109915419565,524,115.10864433221339,100,54.589376255824725]
[]
[]
[]
[]
[]
[]
[]
[]
[]
[]
[]
[]
[]
[]
[]
[]
[]
[]
[]
[]
[]
[]
[]
[]
[]
[]
[]
[]
[]
[]
[]
[]
[]
[]
[]
["B18104. SEX BY AGE BY COGNITIVE DIFFICULTY\n\n-Calculated"]
["Universe:  Civilian non-institutionalized population 5 years and over"]
["Data Set: 2013-2017 American Community Survey 5-Year Estimates"]
[]
[]
[null,null,"Barrington",null,"Dover",null,"Durham",null,"Farmington",null,"Lee",null,"Madbury",null,"Middleton",null,"Milton",null,"New Durham",null,"Rochester",null,"Rollinsford",null,"Somersworth",null,"Strafford"]
[null,null,"Estimate","Margin Of Error","Estimate","Margin Of Error","Estimate","Margin Of Error","Estimate","Margin Of Error","Estimate","Margin Of Error","Estimate","Margin Of Error","Estimate","Margin Of Error","Estimate","Margin Of Error","Estimate","Margin Of Error","Estimate","Margin Of Error","Estimate","Margin Of Error","Estimate","Margin Of Error","Estimate","Margin Of Error"]
[null,"Total:",7876,201,26966,455,14327,113,6546,107,4211,82,1898,155,1424,155,4366,91,2514,59,28147,284,2287,72,10819,231,3752,118]
[null,"5 to 17  years:",1582,271.15493725912495,4021,398.61008517096002,1202,174.22973339817747,1328,263.42361321643131,926,220.9886874932742,389,82.073138114732771,252,54.561891462814962,946,152.10851389715174,493,98.005101908012932,4302,403.20962290104137,384,78.568441501661468,1861,294.17001886664116,786,168.90825912311098]
[null,"With cognitive difficulty",71,58.008620049092706,198,124.65151423067431,14,16.643316977093239,179,111.19802156513397,62,77.252831663311866,9,14.866068747318506,6,13.601470508735444,4,13.038404810405298,20,20.615528128088304,142,98.2344135219425,30,29.154759474226502,29,27.018512172212592,51,50.921508225896062]
[null,"With no cognitive difficulty",1511,269.74246977441277,3823,397.37262110014575,1188,174.22973339817747,1149,236.40008460235373,864,225.20435164534453,380,79.906195003891909,246,53.814496188294839,942,152.79397893896211,473,96.020831073262428,4160,386.89662702070689,354,74.249579123386283,1832,292.74562336608892,735,157.8005069700348]
[null,"18 to 34  years:",1705,249.77790134437433,8385,521.9674319342156,9001,588.43266394720138,1276,268.02984908401527,544,167.45148551147582,436,119.01260437449471,284,56.850681614207581,886,165.46903033498444,412,74.276510418839678,6260,505.26131852735375,473,101.11874208078342,3223,343.8895171417704,606,133.68993978605869]
[null,"With cognitive difficulty",21,25.059928172283335,421,163.93291310777101,277,106.53168542738823,20,33.120990323358392,37,49.040799340956916,21,21.95449840010015,13,10.63014581273465,71,50.803543183522152,34,25.298221281347036,387,150.41608956491322,7,10.816653826391969,157,88.600225733346747,8,16.278820596099706]
[null,"With no cognitive difficulty",1684,249.0461804565571,7964,505.585798851194,8724,571.23812897950006,1256,264.40121028467325,507,144.51643505151932,415,118.59595271340417,271,55.443665102516448,815,155.66630977832037,378,73,5873,469.39216013904621,466,101.11874208078342,3066,344.37915151762598,598,132.96616110875729]
[null,"35 to 64  years:",3961,269.00185872963777,11205,401.9950248448356,3258,272.25906780123961,3048,286.03671093060763,2058,180.38015411901608,922,102.17631819555841,741,79.93122043357026,1928,183.09560344257315,1283,82.619610262939389,13110,428.05723916317544,1105,76.485292703891773,4440,321.09967299889922,1852,163.24827717314508]
[null,"With cognitive difficulty",119,74.966659255965254,549,181.72781845386248,101,78.447434629820748,146,90.972523324353276,63,48.104053883222775,17,19.313207915827967,31,15.811388300841896,145,80.05623023850174,39,21.400934559032695,825,227.96929617823537,16,14.212670403551895,105,61.611687202997452,67,48.662100242385755]
[null,"With no cognitive difficulty",3842,285.39446385660671,10656,416.99040756353139,3157,272.97618943783357,2902,284.25516705945734,1995,176.24131184259835,905,94.047860156411858,710,80.622577482985491,1783,176.82759965570986,1244,84.403791384036765,12285,449.17368578312778,1089,76.485292703891773,4335,317.04258389055565,1785,152.22680447279973]
[null,"65 to 74  years:",397,114.05700329221349,1649,184.85940603604675,379,84.291162051546067,452,153.56106277308712,462,137.00364958642524,100,32.802438933713454,95,27.802877548915689,275,80.808415403347695,169,50.931326312987373,2646,242.52834885843757,176,43.278170016764804,628,160.70158679988197,383,106.88779163215975]
[null,"With cognitive difficulty",14,23.345235059857504,91,60.307545133258408,9,22.803508501982758,31,34.409301068170507,13,23.706539182259394,6,7.810249675906654,5,6.4031242374328485,10,19.416487838947599,0,15.556349186104045,203,124.33824833895642,20,27.313000567495326,7,22.203603311174518,22,29.154759474226502]
[null,"With no cognitive difficulty",383,114.05700329221349,1558,182.22239159883728,370,83.630138108220294,421,149.37536610833797,449,137.80058055030102,94,31.400636936215164,90,26.40075756488817,265,80.808415403347695,169,50.931326312987373,2443,233.69210512980536,156,37.536648758246919,621,160.03124694883809,361,106.21675950620975]
[null,"75  years and Older:",231,92.617492948146676,1706,206.20620747203515,487,106.07544484940895,442,162.64070831129578,221,101.86265262597475,51,21.2602916254693,52,19.849433241279208,331,104.04326023342406,157,42.638011210655684,1829,192.75372888740699,149,45.453272709454048,667,169.49631264425784,125,60.827625302982199]
[null,"With cognitive difficulty",56,44.407206622349037,260,87.817993600400598,36,29.206163733020468,27,26,2,2.8284271247461903,9,8.6023252670426267,0,15.556349186104045,12,21.95449840010015,14,12.806248474865697,154,80.131142510262507,5,13.038404810405298,25,28.284271247461902,25,25.079872407968907]
[null,"With no cognitive difficulty",175,85.702975444263316,1446,197.3448757885545,451,101.91172650877817,415,160.52725625263767,219,101.86265262597475,42,18.439088914585774,52,19.849433241279208,319,102.90286682109493,143,42.01190307520001,1675,191.16746585127919,144,44.687805943008662,642,168.62087652482418,100,56.435804238089851]
[]
[]
[]
[]
[]
[]
[]
["B18104. SEX BY AGE BY COGNITIVE DIFFICULTY\n\n-Calculated"]
["Universe:  Civilian non-institutionalized population 5 years and over"]
["Data Set: 2008-2012 American Community Survey 5-Year Estimates"]
[]
[]
[null,null,"Barrington",null,"Dover",null,"Durham",null,"Farmington",null,"Lee",null,"Madbury",null,"Middleton",null,"Milton",null,"New Durham",null,"Rochester",null,"Rollinsford",null,"Somersworth",null,"Strafford"]
[null,null,"Estimate","Margin Of Error","Estimate","Margin Of Error","Estimate","Margin Of Error","Estimate","Margin Of Error","Estimate","Margin Of Error","Estimate","Margin Of Error","Estimate","Margin Of Error","Estimate","Margin Of Error","Estimate","Margin Of Error","Estimate","Margin Of Error","Estimate","Margin Of Error","Estimate","Margin Of Error","Estimate","Margin Of Error"]
[null,"Total:",1231054,562,56552,304,45394,410,73068,306,30117,872,84453,160,372449,722,136123,730,277924,411,113889,1148,41085,203]
[null,"5 to 17  years:",220229,788.42691481201985,9885,185.39687160251654,7254,294.25329225006135,11691,229.31637534201522,4947,120.48651376813922,12424,219.42652528807906,70975,164.78470802838473,24697,315.38230768386484,52943,268.15107682051178,18462,340.87241014784405,6951,135.83077707206124]
[null,"With cognitive difficulty",10464,978.16358550091206,266,117.64352935882194,394,185.60711193270586,666,218.7167117528974,508,157.15597347857954,624,214.46211786700232,3224,528.18557344933231,1094,282.98586537139977,2609,553.97111838073295,669,305.85127104525822,410,167.80047675736802]
[null,"With no cognitive difficulty",209765,1212.0231020900551,9619,201.15914098046849,6860,309.09060160412514,11025,316.81066901226671,4439,175.57049866079439,11800,313.80407900471914,67751,541.85053289629604,23603,443.40162381299416,50334,591.32140160829624,17793,449.41962573968664,6541,202.25231766286387]
[null,"18 to 34  years:",263524,781.28611916505974,10071,263.3476789341421,6616,348.10486925637798,18265,280.713376952364,5086,141.23030836190935,21961,297.98154305258572,82673,306.55668317621132,28403,449.73992484546,50313,371.95295401434845,32612,558.19799354709255,7524,135.10366390294527]
[null,"With cognitive difficulty",10182,1056.0984802564578,397,194.33990840792325,288,126.50691680694776,641,272.88275870783775,331,152.43359209832983,724,267.66023238426737,3058,537.4085968795066,1344,353.57743140647426,1748,478.44017389847187,1333,390.40619872128053,318,142.20056258679148]
[null,"With no cognitive difficulty",253342,1237.4186841970668,9674,352.9560879202964,6328,349.98428536150021,17624,347.57013680694723,4755,208.38905921376966,21237,389.66652409464172,79615,572.15819490766717,27059,513.36731489256306,48565,588.99235988253702,31279,707.19516401061458,7206,193.21749403198459]
[null,"35 to 64  years:",579871,823.84768009626634,27123,197.42593547961221,22213,131.82564242210239,32318,255.5621255194126,14765,206.23530250662714,36880,242.54690268069803,174555,336.0014880919428,64263,442.67595371784086,139257,420.267771783657,48735,563.28500778912974,19762,154.17522498767434]
[null,"With cognitive difficulty",22017,1345.3453088333865,1066,255.5621255194126,1073,301.42494919963076,1406,301.21918929576844,1059,233.36237914453991,1866,342.98250684255021,5783,702.54466050209226,3030,509.58905011783759,3655,477.60443884034413,2076,442.05203313637185,1002,238.21209037326381]
[null,"With no cognitive difficulty",557855,1488.3631949225296,26057,307.94967121268371,21140,317.49173217581586,30912,374.25258850140233,13706,290.40833321376988,35014,418.27383375009248,168772,768.3397685919947,61233,696.78188839837105,135602,658.51727388125516,46659,647.01236464228407,18760,266.91759027834792]
[null,"65 to 74  years:",92888,375.41044204976504,5248,57.489129407219238,5220,35.227829907617071,5955,77.103826104804938,3047,143.62799170078233,7038,55,24443,243.02263269086689,10090,150.69505632236249,20435,194.82556300444764,7547,136.40014662748717,3865,92.612094242598786]
[null,"With cognitive difficulty",3066,416.06970569845623,175,102.17631819555841,113,69.339743293438858,142,84.202137740083529,156,87.80091115700337,272,114.69088891450794,773,200.89798406156294,479,166.97604618627187,519,157.00318468107582,286,134.52880732393342,151,92.395887354362259]
[null,"With no cognitive difficulty",89822,551.87317383616323,5073,118.46096403457132,5107,76.216796049164913,5813,121.51131634543344,2891,159.45218719101973,6766,127.34991166074674,23670,310.75713990188547,9611,224.00892839349061,19916,262.68041419184647,7261,189.4887859478761,3714,140]
[null,"75  years and Older:",74542,472.22981693239149,4225,147.00340132119393,4091,129.98846102635417,4839,171.21039688056331,2272,680.95300865771935,6150,95.078914592037705,19803,407.44202041517514,8670,229.39267643061319,14976,292.61749776799064,6533,155.20631430454111,2983,122.14745187681976]
[null,"With cognitive difficulty",8705,831.98617776979927,845,287.57086083259549,343,128.70120434556935,642,200.8706051168264,308,142.07744367069671,636,180.69310999592651,2323,378.20893696474172,967,222.08106627986098,1717,348.67319942892084,572,173.36666346215469,352,134.46189051177288]
[null,"With no cognitive difficulty",65837,810.7558202072928,3380,289.9275771636772,3748,184.80530295421721,4197,251.71610993339303,1964,577.68590081462094,5514,194.20092687729377,17480,501.30330140544658,7703,292.60553651631403,13259,355.86654802046229,5961,236.22446951998856,2631,183.91846019364124]

{"sheet":"ACS_Table_B18105","index":28,"n_rows":152,"n_cols":28,"rows_kept":152,"cut":false,"hidden":true,"merged":[]}
["B18105. SEX BY AGE BY AMBULATORY DIFFICULTY\n\n"]
["Universe:  Civilian non-institutionalized population 5 years and over"]
["Data Set: 2018-2022 American Community Survey 5-Year Estimates"]
[]
[null,null,"Barrington",null,"Dover",null,"Durham",null,"Farmington",null,"Lee",null,"Madbury",null,"Middleton",null,"Milton",null,"New Durham",null,"Rochester",null,"Rollinsford",null,"Somersworth",null,"Strafford"]
[null,null,"Estimate","Margin Of Error","Estimate","Margin Of Error","Estimate","Margin Of Error","Estimate","Margin Of Error","Estimate","Margin Of Error","Estimate","Margin Of Error","Estimate","Margin Of Error","Estimate","Margin Of Error","Estimate","Margin Of Error","Estimate","Margin Of Error","Estimate","Margin Of Error","Estimate","Margin Of Error","Estimate","Margin Of Error"]
[null,"Total:",8839,180,30136,315,14778,98,6275,231,4342,103,2081,271,1463,267,4313,111,2527,172,30776,318,2436,78,11372,282,4082,75]
[null,"Male:",4527,324,14804,461,7120,431,2895,303,2123,212,971,121,775,163,2286,217,1257,119,15464,531,956,131,5635,396,1888,137]
[null,"5 to 17  years:",951,242,1754,312,656,200,366,176,380,161,175,72,140,60,495,125,159,56,3000,383,69,31,869,213,229,73]
[null,"With ambulatory difficulty",0,17,0,25,0,19,0,17,0,12,0,12,0,12,0,12,0,12,45,38,0,12,23,38,0,12]
[null,"With no ambulatory difficulty",951,242,1754,312,656,200,366,176,380,161,175,72,140,60,495,125,159,56,2955,377,69,31,846,213,229,73]
[null,"18 to 34  years:",1012,300,4715,569,4824,479,742,214,170,91,206,113,157,62,529,157,293,122,3312,353,304,88,1568,338,356,116]
[null,"With ambulatory difficulty",50,61,0,25,4,10,0,17,0,12,0,12,0,12,15,23,0,12,0,25,0,12,0,19,0,12]
[null,"With no ambulatory difficulty",962,289,4715,569,4820,478,742,214,170,91,206,113,157,62,514,157,293,122,3312,353,304,88,1568,338,356,116]
[null,"35 to 64  years:",2000,223,6074,448,1071,155,1348,255,1070,142,488,84,355,82,955,120,610,75,6537,389,419,77,2368,309,962,99]
[null,"With ambulatory difficulty",74,104,312,202,16,20,49,53,75,88,0,12,40,40,48,34,35,55,428,173,9,11,182,183,36,25]
[null,"With no ambulatory difficulty",1926,219,5762,391,1055,156,1299,252,995,123,488,84,315,66,907,123,575,95,6109,353,410,75,2186,283,926,103]
[null,"65 to 74  years:",389,152,1471,271,333,84,272,128,339,134,64,22,73,30,225,70,160,49,1712,244,95,43,438,173,231,69]
[null,"With ambulatory difficulty",32,39,188,130,32,25,58,46,51,80,4,5,14,12,10,15,7,10,447,220,12,18,0,19,8,12]
[null,"With no ambulatory difficulty",357,149,1283,277,301,81,214,119,288,109,60,21,59,26,215,71,153,49,1265,245,83,38,438,173,223,68]
[null,"75  years and Older:",175,70,790,164,236,64,167,72,164,115,38,23,50,23,82,52,35,28,903,190,69,37,392,131,110,38]
[null,"With ambulatory difficulty",51,50,189,96,55,42,31,36,0,12,7,10,11,14,33,40,5,7,411,189,18,20,30,36,20,16]
[null,"With no ambulatory difficulty",124,58,601,142,181,53,136,70,164,115,31,19,39,19,49,30,30,26,492,152,51,34,362,130,90,37]
[null,"Female:",4312,287,15332,469,7658,422,3380,228,2219,229,1110,207,688,131,2027,170,1270,124,15312,523,1480,143,5737,438,2194,128]
[null,"5 to 17  years:",684,172,2079,337,589,163,489,214,443,174,282,143,83,50,265,135,153,78,1962,352,180,80,817,282,366,90]
[null,"With ambulatory difficulty",0,17,0,25,11,17,0,17,0,12,0,12,0,12,0,12,0,12,0,25,0,12,0,19,0,12]
[null,"With no ambulatory difficulty",684,172,2079,337,578,164,489,214,443,174,282,143,83,50,265,135,153,78,1962,352,180,80,817,282,366,90]
[null,"18 to 34  years:",929,251,4676,463,5134,457,977,300,219,128,238,78,142,68,486,140,238,130,3083,440,477,174,1591,359,305,82]
[null,"With ambulatory difficulty",26,43,67,72,39,31,3,2,0,12,0,12,0,12,3,12,9,14,58,59,0,12,13,21,6,10]
[null,"With no ambulatory difficulty",903,253,4609,471,5095,456,974,300,219,128,238,78,142,68,483,139,229,134,3025,450,477,174,1578,358,299,81]
[null,"35 to 64  years:",1945,197,5776,414,1106,173,1412,279,1010,143,472,97,328,60,898,133,601,81,7006,440,524,76,2411,261,966,124]
[null,"With ambulatory difficulty",72,52,322,176,22,23,129,89,0,12,2,3,26,18,51,53,29,21,853,180,19,24,161,116,7,10]
[null,"With no ambulatory difficulty",1873,193,5454,413,1084,176,1283,271,1010,143,470,97,302,57,847,135,572,83,6153,451,505,76,2250,260,959,124]
[null,"65 to 74  years:",360,113,1441,191,423,109,233,102,434,164,59,29,72,31,242,76,227,60,1886,287,108,44,653,257,390,134]
[null,"With ambulatory difficulty",13,20,105,61,41,42,59,54,90,99,6,7,3,4,54,49,20,18,257,194,4,6,193,214,202,133]
[null,"With no ambulatory difficulty",347,113,1336,202,382,96,174,96,344,165,53,30,69,32,188,60,207,55,1629,269,104,44,460,138,188,45]
[null,"75  years and Older:",394,145,1360,244,406,114,269,126,113,75,59,37,63,27,136,74,51,28,1375,267,191,87,265,123,167,73]
[null,"With ambulatory difficulty",164,113,323,130,89,54,46,42,16,25,16,28,31,22,64,43,5,9,473,157,97,82,118,83,29,24]
[null,"With no ambulatory difficulty",230,110,1037,231,317,96,223,116,97,68,43,23,32,17,72,60,46,25,902,249,94,48,147,94,138,70]
[]
[]
[{"$f":"A1& \"-Calculated\"","v":"B18105. SEX BY AGE BY AMBULATORY DIFFICULTY\n\n-Calculated"}]
[{"$f":"A2","v":"Universe:  Civilian non-institutionalized population 5 years and over"}]
[{"$f":"A3","v":"Data Set: 2018-2022 American Community Survey 5-Year Estimates"}]
[]
[]
[null,null,"Barrington",null,"Dover",null,"Durham",null,"Farmington",null,"Lee",null,"Madbury",null,"Middleton",null,"Milton",null,"New Durham",null,"Rochester",null,"Rollinsford",null,"Somersworth",null,"Strafford"]
[null,null,"Estimate","Margin Of Error","Estimate","Margin Of Error","Estimate","Margin Of Error","Estimate","Margin Of Error","Estimate","Margin Of Error","Estimate","Margin Of Error","Estimate","Margin Of Error","Estimate","Margin Of Error","Estimate","Margin Of Error","Estimate","Margin Of Error","Estimate","Margin Of Error","Estimate","Margin Of Error","Estimate","Margin Of Error"]
[null,"Total:",7993,220,27436,451,14545,126,6554,115,4212,86,1923,147,1409,152,4416,82,2516,57,27901,286,2290,82,10792,227,3781,130]
[null,"5 to 17  years:",1482,263.78779350076076,4567,429.26215766125949,1268,226.34486961272174,1209,263.89770745499095,838,204.45292856792244,434,79.39773296511683,240,50.24937810560445,863,128.06248474865697,472,92.80086206496145,4047,392.39011200589653,419,80.430093870391573,1735,253.62176562747922,768,155.72411502397438]
[null,"With ambulatory difficulty",0,22.627416997969522,0,33.941125496954278,0,25.45584412271571,33,44.011362169330773,20,33.837848631377263,0,15.556349186104045,0,15.556349186104045,0,15.556349186104045,5,13.038404810405298,7,24.186773244895647,0,15.556349186104045,45,74.215901261117892,0,15.556349186104045]
[null,"With no ambulatory difficulty",1482,263.78779350076076,4567,429.26215766125949,1268,226.34486961272174,1176,264.66015944981217,818,204.45292856792244,434,79.39773296511683,240,50.24937810560445,863,128.06248474865697,467,92.80086206496145,4040,392.39011200589653,419,80.430093870391573,1690,247.75189202102979,768,155.72411502397438]
[null,"18 to 34  years:",1507,268.48649872945197,7912,541.86714238824266,9332,638.94365948806467,1231,272.237029075767,782,200.8183258569795,365,107.33126291998991,295,61.846584384264908,797,160.51479682571323,408,79.025312400521386,6800,492.10771178675913,462,85.14693182963201,3321,393.31539507118202,563,128.70120434556935]
[null,"With ambulatory difficulty",15,28.0178514522438,148,144.01388821915754,74,53.851648071345039,34,44.944410108488462,0,15.556349186104045,0,15.556349186104045,5,13.038404810405298,22,35.735136770411273,0,15.556349186104045,160,120.3536455617361,30,30.083217912982647,31,34.713109915419565,0,15.556349186104045]
[null,"With no ambulatory difficulty",1492,267.8245694479877,7764,540.49606844083519,9258,636.74955830373369,1197,275.78614903580637,782,200.8183258569795,365,107.33126291998991,290,61.073725938409879,775,153.63918770938616,408,79.025312400521386,6640,489.83772823252394,432,85.912746434973201,3290,390.59057848340376,563,128.70120434556935]
[null,"35 to 64  years:",4144,282.28531665674711,11449,411.07785150747299,2927,249.16059078433733,3244,266.62520511009456,2026,173.36666346215469,954,89.498603341057787,718,84.38601779915912,2068,166.93112352104984,1292,95.801878895979911,12588,451.8860475827949,1079,74.953318805774032,4473,355.30831681794336,1892,160.86329600005092]
[null,"With ambulatory difficulty",136,88.76936408468859,432,141.42842712835352,50,35.510561809129406,295,154.76756766196203,36,40.249223594996216,31,20.615528128088304,80,25.495097567963924,221,108.68762579061151,63,36.76955262170047,1368,264.66015944981217,25,22.825424421026653,455,168.21712160181556,69,42.720018726587654]
[null,"With no ambulatory difficulty",4008,289.91722956733702,11017,414.67336543356629,2877,243.83601046605074,2949,294.32295187429742,1990,170.69856472741651,923,88.865066252155572,638,80.05623023850174,1847,158.39823231336896,1229,93.23625904121208,11220,489.83772823252394,1054,77.103826104804938,4018,340.13673721019904,1823,165.75886099994776]
[null,"65 to 74  years:",521,157.76247969653622,1769,205.38013535880242,472,114.58621208504974,416,120.95040305844375,406,105.68348972285122,118,37.483329627982627,94,30,332,100.56838469419701,164,50.328918128646478,2640,250.50349298961882,212,53.263495942343098,685,163.60012224934309,432,100.56838469419701]
[null,"With ambulatory difficulty",134,102.95630140987001,304,131.48764200486676,44,31.827660925679098,68,66.037867924396224,29,32.893768406797051,21,24.041630560342615,9,7.2111025509279782,24,25.495097567963924,42,29.410882339705484,491,167.09278859364338,29,25.079872407968907,70,47.169905660283021,60,47.885279575251516]
[null,"With no ambulatory difficulty",387,137.43725841270262,1465,186.35718392377581,428,111.75866856758807,348,120.22063050907694,377,99.201814499534237,97,29.832867780352597,85,28.600699292150182,308,98.35141076771599,122,43.56604182158393,2149,232,183,46.872166581031863,615,157.13688300332294,372,95.268042910516428]
[null,"75  years and Older:",339,115.6027681329474,1739,206.3492185592182,546,112.69871339105873,454,173.97126199461795,160,79.404030124421269,52,23.600847442411894,62,26.172504656604801,356,104.63746938836012,180,49.040799340956916,1826,204.62893246068603,118,36.796738985948195,578,113.6001760562016,126,58.137767414994535]
[null,"With ambulatory difficulty",95,58.728187440104094,620,132.32157798333574,96,53.851648071345039,265,156.84705926475002,29,48.270073544588683,3,12.083045973594572,11,10.816653826391969,50,36.891733491393431,52,27.730849247724095,548,150.81445554057476,25,16.643316977093239,215,87.664131775772461,34,28.160255680657446]
[null,"With no ambulatory difficulty",244,103.73041983911952,1119,186.25251676151922,450,102.59142264341595,189,117.2006825918689,131,63.890531379853151,49,23.021728866442675,51,24.083189157584592,306,90.609050320594349,128,48.104053883222775,1278,197.28405916343064,93,31.827660925679098,363,115.10864433221339,92,52.839379254491625]
[]
[]
[]
[]
[]
[]
[]
[]
[]
[]
[]
[]
[]
[]
[]
[]
[]
[]
[]
[]
[]
[]
[]
[]
[]
[]
[]
[]
[]
[]
[]
[]
[]
[]
[]
["B18105. SEX BY AGE BY AMBULATORY DIFFICULTY\n\n-Calculated"]
["Universe:  Civilian non-institutionalized population 5 years and over"]
["Data Set: 2013-2017 American Community Survey 5-Year Estimates"]
[]
[]
[null,null,"Barrington",null,"Dover",null,"Durham",null,"Farmington",null,"Lee",null,"Madbury",null,"Middleton",null,"Milton",null,"New Durham",null,"Rochester",null,"Rollinsford",null,"Somersworth",null,"Strafford"]
[null,null,"Estimate","Margin Of Error","Estimate","Margin Of Error","Estimate","Margin Of Error","Estimate","Margin Of Error","Estimate","Margin Of Error","Estimate","Margin Of Error","Estimate","Margin Of Error","Estimate","Margin Of Error","Estimate","Margin Of Error","Estimate","Margin Of Error","Estimate","Margin Of Error","Estimate","Margin Of Error","Estimate","Margin Of Error"]
[null,"Total:",7876,201,26966,455,14327,113,6546,107,4211,82,1898,155,1424,155,4366,91,2514,59,28147,284,2287,72,10819,231,3752,118]
[null,"5 to 17  years:",1582,271.15493725912495,4021,398.61008517096002,1202,174.22973339817747,1328,263.42361321643131,926,220.9886874932742,389,82.073138114732771,252,54.561891462814962,946,152.10851389715174,493,98.005101908012932,4302,403.20962290104137,384,78.568441501661468,1861,294.17001886664116,786,168.90825912311098]
[null,"With ambulatory difficulty",0,22.627416997969522,0,33.941125496954278,0,25.45584412271571,36,54.405882034941776,18,30.083217912982647,4,12.529964086141668,0,15.556349186104045,0,15.556349186104045,0,15.556349186104045,0,29.698484809834994,0,15.556349186104045,0,25.45584412271571,0,15.556349186104045]
[null,"With no ambulatory difficulty",1582,271.15493725912495,4021,398.61008517096002,1202,174.22973339817747,1292,264.9150807334305,908,219.72937900972642,385,82.073138114732771,252,54.561891462814962,946,152.10851389715174,493,98.005101908012932,4302,403.20962290104137,384,78.568441501661468,1861,294.17001886664116,786,168.90825912311098]
[null,"18 to 34  years:",1705,249.77790134437433,8385,521.9674319342156,9001,588.43266394720138,1276,268.02984908401527,544,167.45148551147582,436,119.01260437449471,284,56.850681614207581,886,165.46903033498444,412,74.276510418839678,6260,505.26131852735375,473,101.11874208078342,3223,343.8895171417704,606,133.68993978605869]
[null,"With ambulatory difficulty",14,27.202941017470888,106,107.70793842609746,69,48.826222462934808,36,56.320511361314892,0,15.556349186104045,0,15.556349186104045,0,15.556349186104045,26,40.521599178709621,0,15.556349186104045,142,95.707888912043188,26,26.40075756488817,25,29,5,14.212670403551895]
[null,"With no ambulatory difficulty",1691,249.77790134437433,8279,523.4137942393188,8932,594.00336699382433,1240,268.64288563071977,544,167.45148551147582,436,119.01260437449471,284,56.850681614207581,860,159.96249560443849,412,74.276510418839678,6118,504.70684560445579,447,99.704563586628268,3198,341.18030423809637,601,134.38005804433931]
[null,"35 to 64  years:",3961,269.00185872963777,11205,401.9950248448356,3258,272.25906780123961,3048,286.03671093060763,2058,180.38015411901608,922,102.17631819555841,741,79.93122043357026,1928,183.09560344257315,1283,82.619610262939389,13110,428.05723916317544,1105,76.485292703891773,4440,321.09967299889922,1852,163.24827717314508]
[null,"With ambulatory difficulty",91,56.080299571239813,506,162.63455967290594,55,34.438350715445125,314,150.81445554057476,52,45.177427992306072,41,27.586228448267445,79,24.041630560342615,180,74.94664769020693,67,37.589892258425003,1168,236.81216184985095,22,25.495097567963924,319,111.25196627475849,43,30.232432915661949]
[null,"With no ambulatory difficulty",3870,276.21006498677775,10699,409.49969474958095,3203,277.93704323101662,2734,303.3891889965758,2006,176.98022488402484,881,89.140338792266206,662,77.103826104804938,1748,181.81584089402111,1216,79.649231006959511,11942,410.96593532797823,1083,77.155686763841331,4121,316.65280671423079,1809,162.60688792299052]
[null,"65 to 74  years:",397,114.05700329221349,1649,184.85940603604675,379,84.291162051546067,452,153.56106277308712,462,137.00364958642524,100,32.802438933713454,95,27.802877548915689,275,80.808415403347695,169,50.931326312987373,2646,242.52834885843757,176,43.278170016764804,628,160.70158679988197,383,106.88779163215975]
[null,"With ambulatory difficulty",87,84.172442046075858,304,125.03199590504823,31,28.284271247461902,127,96.566039579139826,23,28.231188426986208,11,17.029386365926403,9,7.2111025509279782,22,21.095023109728988,42,31.953090617340916,526,144.9413674559475,29,25.495097567963924,99,56.824290580701486,46,46.238512086787566]
[null,"With no ambulatory difficulty",310,85.14693182963201,1345,163.24827717314508,348,80.808415403347695,325,117.32433677630571,439,135.80132547217644,89,29,86,27.202941017470888,253,79.309520235593411,127,43.382023926967726,2120,212.41704263076446,147,37.215588131856791,529,149.57606760441325,337,101.41498903022176]
[null,"75  years and Older:",231,92.617492948146676,1706,206.20620747203515,487,106.07544484940895,442,162.64070831129578,221,101.86265262597475,51,21.2602916254693,52,19.849433241279208,331,104.04326023342406,157,42.638011210655684,1829,192.75372888740699,149,45.453272709454048,667,169.49631264425784,125,60.827625302982199]
[null,"With ambulatory difficulty",107,66.850579653433073,619,134.61797799699713,85,44.598206241955516,220,120.10412149464314,32,47.042533945356304,14,10.816653826391969,10,8.0622577482985491,92,52.40229002629561,40,23.086792761230392,522,129.40247292845683,21,15.620499351813308,200,79.404030124421269,31,26.076809620810597]
[null,"With no ambulatory difficulty",124,71.196910045310247,1087,163.37992532744039,402,99.76472322419383,222,126.40015822774906,189,88.408144421201371,37,16.278820596099706,42,19.104973174542799,239,93.60021367496978,117,39.824615503479755,1307,184.04347312523745,128,46.669047558312137,467,158.7765725792064,94,55.569775957799216]
[]
[]
[]
[]
[]
[]
[]
["B18105. SEX BY AGE BY AMBULATORY DIFFICULTY\n\n-Calculated"]
["Universe:  Civilian non-institutionalized population 5 years and over"]
["Data Set: 2008-2012 American Community Survey 5-Year Estimates"]
[]
[]
[null,null,"Barrington",null,"Dover",null,"Durham",null,"Farmington",null,"Lee",null,"Madbury",null,"Middleton",null,"Milton",null,"New Durham",null,"Rochester",null,"Rollinsford",null,"Somersworth",null,"Strafford"]
[null,null,"Estimate","Margin Of Error","Estimate","Margin Of Error","Estimate","Margin Of Error","Estimate","Margin Of Error","Estimate","Margin Of Error","Estimate","Margin Of Error","Estimate","Margin Of Error","Estimate","Margin Of Error","Estimate","Margin Of Error","Estimate","Margin Of Error","Estimate","Margin Of Error","Estimate","Margin Of Error","Estimate","Margin Of Error"]
[null,"Total:",1231054,562,56552,304,45394,410,73068,306,30117,872,84453,160,372449,722,136123,730,277924,411,113889,1148,41085,203]
[null,"5 to 17  years:",220229,788.42691481201985,9885,185.39687160251654,7254,294.25329225006135,11691,229.31637534201522,4947,120.48651376813922,12424,219.42652528807906,70975,164.78470802838473,24697,315.38230768386484,52943,268.15107682051178,18462,340.87241014784405,6951,135.83077707206124]
[null,"With ambulatory difficulty",1293,374.55306700119274,13,148.35430563350698,29,40.024992192379003,37,155.59562975867928,30,29.410882339705484,116,86.353922898731128,303,152.79397893896211,97,68.154236845554948,561,292.24647132172527,6,147.33974345029924,101,88.238313673823114]
[null,"With no ambulatory difficulty",218936,816.73312654746655,9872,186.07794065928394,7225,296.62434155004877,11654,236.19060099843094,4917,125.22779244241272,12308,237.65521244020718,70672,226.27416997969522,24600,329.35846732701441,52382,369.54160794151448,18456,340.17789463749699,6850,149.04026301640775]
[null,"18 to 34  years:",263524,781.28611916505974,10071,263.3476789341421,6616,348.10486925637798,18265,280.713376952364,5086,141.23030836190935,21961,297.98154305258572,82673,306.55668317621132,28403,449.73992484546,50313,371.95295401434845,32612,558.19799354709255,7524,135.10366390294527]
[null,"With ambulatory difficulty",3652,610.79374587498853,332,223.51062614560411,89,92.655275079188016,173,138.61096637712328,145,88.588938361400409,219,148.31385639919151,978,327.41563798939109,692,224.37691503361035,725,307.71740282278478,262,128.03515142334936,37,46.872166581031863]
[null,"With no ambulatory difficulty",259872,1011.8819101061151,9739,379.22288960451743,6527,362.22920920323361,18092,288.61739379323626,4941,161.01242188104618,21742,317.94496379090515,81695,442.29515032385331,27711,480.09374084651427,49588,479.89269633950465,32350,586.91907448983113,7487,144.04513181638595]
[null,"35 to 64  years:",579871,823.84768009626634,27123,197.42593547961221,22213,131.82564242210239,32318,255.5621255194126,14765,206.23530250662714,36880,242.54690268069803,174555,336.0014880919428,64263,442.67595371784086,139257,420.267771783657,48735,563.28500778912974,19762,154.17522498767434]
[null,"With ambulatory difficulty",31030,1524.3785619064577,1819,354.36986327846785,1650,374.11361910521248,1748,348.60436027106715,1207,201.9108714259834,2267,371.30715048326232,8497,779.23295618191094,3611,435.57433349544368,5970,694.27732211271314,2826,474.85260871137689,1435,275.08725888343139]
[null,"With no ambulatory difficulty",548841,1631.0689746298285,25304,394.77081959030357,20563,380.43396273203581,30570,426.69544173801529,13558,264.62048295625192,34613,426.5231529471759,166058,811.05486867412367,60652,618.83519615484056,133287,813.71493780070182,45909,696.27078065936382,18327,301.95529470436514]
[null,"65 to 74  years:",92888,375.41044204976504,5248,57.489129407219238,5220,35.227829907617071,5955,77.103826104804938,3047,143.62799170078233,7038,55,24443,243.02263269086689,10090,150.69505632236249,20435,194.82556300444764,7547,136.40014662748717,3865,92.612094242598786]
[null,"With ambulatory difficulty",11511,739.49306960917488,661,203.38387350033435,572,188.35339126227592,754,209.99523804124703,406,106.6770828247567,867,232.89911979223967,3074,394.66568130507625,1096,245.35076930794409,2356,343.68153863715173,1236,304.52914474644297,489,167.38578195294843]
[null,"With no ambulatory difficulty",81377,778.40092497375667,4587,217.0829334609241,4648,195.84943196241341,5201,222.61176967986216,2641,170.59015211904818,6171,241.1514047232568,21369,456.00438594381961,8994,280.97864687552328,18079,400.83911984735221,6311,332.34319610908238,3376,188.82796403075471]
[null,"75  years and Older:",74542,472.22981693239149,4225,147.00340132119393,4091,129.98846102635417,4839,171.21039688056331,2272,680.95300865771935,6150,95.078914592037705,19803,407.44202041517514,8670,229.39267643061319,14976,292.61749776799064,6533,155.20631430454111,2983,122.14745187681976]
[null,"With ambulatory difficulty",20549,947.21697619922327,1132,302.23335355317749,928,216.81328372588243,1223,253.64542179980305,857,294.72699231661835,1520,333.64052511647924,5891,523.94369926548404,2644,351.46123541579942,3802,449.05456238635412,1656,277.40583988085041,896,173.62315513778685]
[null,"With no ambulatory difficulty",53993,1016.3626321348104,3093,302.12083675244912,3163,213.05398376937239,3616,275.51043537405258,1415,442.61156785606045,4630,333.62403990120379,13912,573.88849091090856,6026,368.02173848836702,11174,458.18773444953763,4877,322.893171188243,2087,206.78733036624851]

{"sheet":"ACS_Table_B18106","index":29,"n_rows":152,"n_cols":76,"rows_kept":152,"cut":false,"hidden":true,"merged":[]}
["B18106. SEX BY AGE BY SELF-CARE DIFFICULTY\n\n\n\n"]
["Universe:  Civilian non-institutionalized population 5 years and over"]
["Data Set: 2018-2022 American Community Survey 5-Year Estimates"]
[]
[null,null,"Barrington",null,"Dover",null,"Durham",null,"Farmington",null,"Lee",null,"Madbury",null,"Middleton",null,"Milton",null,"New Durham",null,"Rochester",null,"Rollinsford",null,"Somersworth",null,"Strafford"]
[null,null,"Estimate","Margin Of Error","Estimate","Margin Of Error","Estimate","Margin Of Error","Estimate","Margin Of Error","Estimate","Margin Of Error","Estimate","Margin Of Error","Estimate","Margin Of Error","Estimate","Margin Of Error","Estimate","Margin Of Error","Estimate","Margin Of Error","Estimate","Margin Of Error","Estimate","Margin Of Error","Estimate","Margin Of Error",null,null,null,null,null,null,null,null,null,null,null,null,null,null,"Estimate","Margin Of Error","Estimate","Margin Of Error","Estimate","Margin Of Error","Estimate","Margin Of Error","Estimate","Margin Of Error","Estimate","Margin Of Error","Estimate","Margin Of Error","Estimate","Margin Of Error","Estimate","Margin Of Error","Estimate","Margin Of Error","Estimate","Margin Of Error","Estimate","Margin Of Error","Estimate","Margin Of Error","Estimate","Margin Of Error","Estimate","Margin Of Error","Estimate","Margin Of Error","Estimate","Margin Of Error"]
[null,"Total:",8839,180,30136,315,14778,98,6275,231,4342,103,2081,271,1463,267,4313,111,2527,172,30776,318,2436,78,11372,282,4082,75]
[null,"Male:",4527,324,14804,461,7120,431,2895,303,2123,212,971,121,775,163,2286,217,1257,119,15464,531,956,131,5635,396,1888,137]
[null,"5 to 17  years:",951,242,1754,312,656,200,366,176,380,161,175,72,140,60,495,125,159,56,3000,383,69,31,869,213,229,73]
[null,"With self care difficulty",0,17,0,25,11,16,0,17,0,12,0,12,0,12,0,12,0,12,105,69,0,12,23,38,0,12]
[null,"With no self care difficulty",951,242,1754,312,645,198,366,176,380,161,175,72,140,60,495,125,159,56,2895,369,69,31,846,213,229,73]
[null,"18 to 34  years:",1012,300,4715,569,4824,479,742,214,170,91,206,113,157,62,529,157,293,122,3312,353,304,88,1568,338,356,116]
[null,"With self care difficulty",50,61,0,25,0,19,0,17,0,12,0,12,0,12,0,12,0,12,0,25,0,12,0,19,0,12]
[null,"With no self care difficulty",962,289,4715,569,4824,479,742,214,170,91,206,113,157,62,529,157,293,122,3312,353,304,88,1568,338,356,116]
[null,"35 to 64  years:",2000,223,6074,448,1071,155,1348,255,1070,142,488,84,355,82,955,120,610,75,6537,389,419,77,2368,309,962,99]
[null,"With self care difficulty",60,98,17,25,9,16,15,26,50,75,0,12,21,26,21,26,35,55,120,97,8,9,18,30,10,13]
[null,"With no self care difficulty",1940,218,6057,450,1062,155,1333,255,1020,135,488,84,334,71,934,121,575,95,6417,389,411,77,2350,306,952,99]
[null,"65 to 74  years:",389,152,1471,271,333,84,272,128,339,134,64,22,73,30,225,70,160,49,1712,244,95,43,438,173,231,69]
[null,"With self care difficulty",0,17,19,29,5,9,32,45,0,12,2,3,2,5,0,12,0,12,42,39,0,12,0,19,9,9]
[null,"With no self care difficulty",389,152,1452,270,328,82,240,131,339,134,62,21,71,30,225,70,160,49,1670,240,95,43,438,173,222,68]
[null,"75  years and Older:",175,70,790,164,236,64,167,72,164,115,38,23,50,23,82,52,35,28,903,190,69,37,392,131,110,38]
[null,"With self care difficulty",0,17,47,49,2,4,15,25,0,12,2,4,3,4,0,12,5,7,185,164,5,7,0,19,13,13]
[null,"With no self care difficulty",175,70,743,159,234,65,152,69,164,115,36,23,47,23,82,52,30,26,718,174,64,36,392,131,97,38]
[null,"Female:",4312,287,15332,469,7658,422,3380,228,2219,229,1110,207,688,131,2027,170,1270,124,15312,523,1480,143,5737,438,2194,128]
[null,"5 to 17  years:",684,172,2079,337,589,163,489,214,443,174,282,143,83,50,265,135,153,78,1962,352,180,80,817,282,366,90]
[null,"With self care difficulty",0,17,48,76,0,19,0,17,0,12,3,5,0,12,0,12,0,12,0,25,0,12,0,19,0,12]
[null,"With no self care difficulty",684,172,2031,329,589,163,489,214,443,174,279,144,83,50,265,135,153,78,1962,352,180,80,817,282,366,90]
[null,"18 to 34  years:",929,251,4676,463,5134,457,977,300,219,128,238,78,142,68,486,140,238,130,3083,440,477,174,1591,359,305,82]
[null,"With self care difficulty",0,17,42,62,0,19,0,17,0,12,0,12,0,12,3,12,9,14,5,11,16,24,11,21,0,12]
[null,"With no self care difficulty",929,251,4634,469,5134,457,977,300,219,128,238,78,142,68,483,139,229,134,3078,439,461,179,1580,358,305,82]
[null,"35 to 64  years:",1945,197,5776,414,1106,173,1412,279,1010,143,472,97,328,60,898,133,601,81,7006,440,524,76,2411,261,966,124]
[null,"With self care difficulty",49,52,178,147,1,2,0,17,18,28,0,12,2,3,0,12,0,12,419,148,15,23,14,23,7,10]
[null,"With no self care difficulty",1896,198,5598,427,1105,173,1412,279,992,138,472,97,326,60,898,133,601,81,6587,461,509,77,2397,261,959,124]
[null,"65 to 74  years:",360,113,1441,191,423,109,233,102,434,164,59,29,72,31,242,76,227,60,1886,287,108,44,653,257,390,134]
[null,"With self care difficulty",13,20,18,21,27,41,11,19,0,12,0,12,0,12,21,32,14,15,120,172,0,12,26,30,0,12]
[null,"With no self care difficulty",347,113,1423,189,396,98,222,101,434,164,59,29,72,31,221,68,213,57,1766,277,108,44,627,257,390,134]
[null,"75  years and Older:",394,145,1360,244,406,114,269,126,113,75,59,37,63,27,136,74,51,28,1375,267,191,87,265,123,167,73]
[null,"With self care difficulty",71,84,108,64,56,47,0,17,0,12,16,28,19,18,27,26,0,12,113,67,61,79,25,31,21,21]
[null,"With no self care difficulty",323,128,1252,238,350,99,269,126,113,75,43,23,44,19,109,73,51,28,1262,249,130,54,240,120,146,71]
[]
[]
[{"$f":"A1& \"-Calculated\"","v":"B18106. SEX BY AGE BY SELF-CARE DIFFICULTY\n\n\n\n-Calculated"}]
[{"$f":"A2","v":"Universe:  Civilian non-institutionalized population 5 years and over"}]
[{"$f":"A3","v":"Data Set: 2018-2022 American Community Survey 5-Year Estimates"}]
[]
[]
[null,null,"Barrington",null,"Dover",null,"Durham",null,"Farmington",null,"Lee",null,"Madbury",null,"Middleton",null,"Milton",null,"New Durham",null,"Rochester",null,"Rollinsford",null,"Somersworth",null,"Strafford"]
[null,null,"Estimate","Margin Of Error","Estimate","Margin Of Error","Estimate","Margin Of Error","Estimate","Margin Of Error","Estimate","Margin Of Error","Estimate","Margin Of Error","Estimate","Margin Of Error","Estimate","Margin Of Error","Estimate","Margin Of Error","Estimate","Margin Of Error","Estimate","Margin Of Error","Estimate","Margin Of Error","Estimate","Margin Of Error"]
[null,"Total:",{"$f":"C7","v":8839},180,30136,315,14778,98,6275,231,4342,103,2081,271,1463,267,4313,111,2527,172,30776,318,2436,78,{"$f":"Y7","v":11372},{"$f":"Z7","v":282},{"$f":"AA7","v":4082},{"$f":"AB7","v":75}]
[null,"5 to 17  years:",{"$f":"C25+C9","v":1635},{"$f":"SQRT((D25^2)+(D9^2))","v":296.89728863699651},{"$f":"E25+E9","v":3833},{"$f":"SQRT((F25^2)+(F9^2))","v":459.25265377567496},{"$f":"G25+G9","v":1245},{"$f":"SQRT((H25^2)+(H9^2))","v":258.0096897405212},{"$f":"I25+I9","v":855},{"$f":"SQRT((J25^2)+(J9^2))","v":277.07760645710795},{"$f":"K25+K9","v":823},{"$f":"SQRT((L25^2)+(L9^2))","v":237.05906437004259},{"$f":"M25+M9","v":457},{"$f":"SQRT((N25^2)+(N9^2))","v":160.10309178776029},{"$f":"O25+O9","v":223},{"$f":"SQRT((P25^2)+(P9^2))","v":78.10249675906654},{"$f":"Q25+Q9","v":760},{"$f":"SQRT((R25^2)+(R9^2))","v":183.98369492974098},{"$f":"S25+S9","v":312},{"$f":"SQRT((T25^2)+(T9^2))","v":96.020831073262428},{"$f":"U25+U9","v":4962},{"$f":"SQRT((V25^2)+(V9^2))","v":520.18554382066407},{"$f":"W25+W9","v":249},{"$f":"SQRT((X25^2)+(X9^2))","v":85.796270315206598},1686,353.40203734557048,{"$f":"AA25+AA9","v":595},{"$f":"SQRT((AB25^2)+(AB9^2))","v":115.88356225108029}]
[null,"With self care difficulty",0,24.041630560342615,48,80.006249755878443,11,24.839484696748443,0,24.041630560342615,0,16.970562748477139,3,13,0,16.970562748477139,0,16.970562748477139,0,16.970562748477139,105,73.389372527635089,0,16.970562748477139,23,42.485291572496003,0,16.970562748477139]
[null,"With no self care difficulty",1635,296.89728863699651,3785,453.41482110755931,1234,256.46247288833507,855,277.07760645710795,823,237.05906437004259,454,160.99689437998487,223,78.10249675906654,760,183.98369492974098,312,96.020831073262428,4857,509.96568512008724,249,85.796270315206598,1663,353.40203734557048,595,115.88356225108029]
[null,"18 to 34  years:",1941,391.15342258505166,9391,733.57344553902715,9958,662.03474229076528,1719,368.50508816025865,389,157.05094714773293,444,137.30622709840949,299,92.021736562618727,1015,210.35446275275456,531,178.28067758453241,6395,564.10016840983121,781,194.98717906570164,3159,493.07707308290048,661,142.05632685663809]
[null,"With self care difficulty",50,63.324560795950255,42,66.850579653433073,0,26.870057685088806,0,24.041630560342615,0,16.970562748477139,0,16.970562748477139,0,16.970562748477139,3,16.970562748477139,9,18.439088914585774,5,27.313000567495326,16,26.832815729997478,11,28.319604517012593,0,16.970562748477139]
[null,"With no self care difficulty",1891,382.78192224816468,9349,737.37507416510903,9958,662.03474229076528,1719,368.50508816025865,389,157.05094714773293,444,137.30622709840949,299,92.021736562618727,1012,209.69024774652732,522,181.2181006411887,6390,563.32051267462293,765,199.46177578674065,3148,492.34946938125159,661,142.05632685663809]
[null,"35 to 64  years:",3945,297.55335655979417,11850,610,2177,232.28000344411913,2760,377.97618972628419,2080,201.52667317256046,960,128.31601614763451,683,101.6070863670443,1853,179.13402803487674,1211,110.39021695784459,13543,587.29975310738894,943,108.18964830333815,4779,404.47744065645986,1928,158.67261893597143]
[null,"With self care difficulty",109,110.94142598686931,195,149.11069713471264,10,16.124515496597098,15,31.064449134018133,68,80.05623023850174,0,16.970562748477139,23,26.172504656604801,21,28.635642126552707,35,56.293871780150276,539,176.9547964876906,23,24.698178070456937,32,37.802116342871599,17,16.401219466856727]
[null,"With no self care difficulty",3836,294.49617994126851,11655,620.34587126860129,2167,232.28000344411913,2745,377.97618972628419,2012,193.05180651835403,960,128.31601614763451,660,92.956979296876895,1832,179.8054504179448,1176,124.84390253432484,13004,603.19316972260219,920,108.89444430272832,4747,402.19025348707794,1911,158.67261893597143]
[null,"65 to 74  years:",749,189.40168953839878,2912,331.54486875836278,756,137.61177275218861,505,163.67040050051813,773,211.7829077144801,123,36.400549446402593,145,43.139309220245984,467,103.32473082471591,387,77.466121627457255,3598,376.70280062670093,203,61.522353661088097,1091,309.80316331503138,621,150.72159765607583]
[null,"With self care difficulty",13,26.248809496813376,37,35.805027579936315,32,41.976183723630712,43,48.846698967279252,0,16.970562748477139,2,12.369316876852981,2,13,21,34.176014981270121,14,19.209372712298546,162,176.36609651517495,0,16.970562748477139,26,35.510561809129406,9,15]
[null,"With no self care difficulty",736,189.40168953839878,2875,329.57700162480995,724,127.7810627597063,462,165.41463055002117,773,211.7829077144801,121,35.805027579936315,143,43.139309220245984,446,97.590983190046813,373,75.166481891864535,3436,366.50920861555443,203,61.522353661088097,1065,309.80316331503138,612,150.2664300500947]
[null,"75  years and Older:",569,161.01242188104618,2150,293.99319720020736,642,130.73637596323374,436,145.12063946937388,277,137.2953021774598,97,43.56604182158393,113,35.468295701936398,218,90.443352436760108,86,39.597979746446661,2278,327.70260908329675,260,94.540996398387932,657,179.6941846582688,277,82.29823813423954]
[null,"With self care difficulty",71,85.702975444263316,155,80.603970125546539,58,47.169905660283021,15,30.232432915661949,0,16.970562748477139,18,28.284271247461902,22,18.439088914585774,27,28.635642126552707,5,13.892443989449804,298,177.15812146215595,66,79.309520235593411,25,36.359317925395686,34,24.698178070456937]
[null,"With no self care difficulty",498,145.89036979869508,1995,286.22543562723422,584,118.43141475132347,421,143.65583872575453,277,137.2953021774598,79,32.526911934581186,91,29.832867780352597,191,89.627004859026727,81,38.209946349085598,1980,303.77129554979354,194,64.899922958351809,632,177.65415840897168,243,80.529497701152962]
[]
[]
[]
[]
[]
[]
[]
[]
[]
[]
[]
[]
[]
[]
[]
[]
[]
[]
[]
[]
[]
[]
[]
[]
[]
[]
[]
[]
[]
[]
[]
[]
[]
[]
[]
["B18106. SEX BY AGE BY SELF-CARE DIFFICULTY\n\n\n\n-Calculated"]
["Universe:  Civilian non-institutionalized population 5 years and over"]
["Data Set: 2013-2017 American Community Survey 5-Year Estimates"]
[]
[]
[null,null,"Barrington",null,"Dover",null,"Durham",null,"Farmington",null,"Lee",null,"Madbury",null,"Middleton",null,"Milton",null,"New Durham",null,"Rochester",null,"Rollinsford",null,"Somersworth",null,"Strafford"]
[null,null,"Estimate","Margin Of Error","Estimate","Margin Of Error","Estimate","Margin Of Error","Estimate","Margin Of Error","Estimate","Margin Of Error","Estimate","Margin Of Error","Estimate","Margin Of Error","Estimate","Margin Of Error","Estimate","Margin Of Error","Estimate","Margin Of Error","Estimate","Margin Of Error","Estimate","Margin Of Error","Estimate","Margin Of Error"]
[null,"Total:",8290,238,28424,388,15779,113,6403,154,4218,121,1791,150,1605,146,4326,114,2528,59,28430,260,2368,68,10853,263,3850,93]
[null,"5 to 17  years:",1368,348.63447907514825,4292,389.48684188300894,1084,184.58873205046942,1034,239.43683927081898,829,243.28789530101986,476,87.863530545955186,298,76.275815302099531,718,122.9186723000212,442,84.864598037108507,4521,369.89863476363359,423,87.783825389418979,1854,284.43101096751036,719,172.53985046939155]
[null,"With self care difficulty",0,22.627416997969522,0,33.941125496954278,6,20.124611797498108,15,28.844410203711913,0,15.556349186104045,4,12.529964086141668,8,13.038404810405298,0,15.556349186104045,0,15.556349186104045,48,46.690470119715009,0,15.556349186104045,0,25.45584412271571,25,40.521599178709621]
[null,"With no self care difficulty",1368,348.63447907514825,4292,389.48684188300894,1078,185.31055015837603,1019,233.95084953895764,829,243.28789530101986,472,87.863530545955186,290,75.716576784743779,718,122.9186723000212,442,84.864598037108507,4473,372.83910739084223,423,87.783825389418979,1854,284.43101096751036,694,159.15401345866212]
[null,"18 to 34  years:",1302,331.69865842357581,8691,587.62658210805955,10831,616.40976630809473,1558,368.71669341107952,667,225.85836269662454,240,62.241465278381739,321,65.73431371817918,854,160.77624202599088,401,83.630138108220294,6734,498.25495481731036,445,79.81227975693966,2826,336.68976818430343,677,140.60227594174995]
[null,"With self care difficulty",0,22.627416997969522,56,54.561891462814962,56,67.446274915668994,96,111.15754585272202,0,15.556349186104045,4,12.529964086141668,10,17.804493814764857,0,15.556349186104045,0,15.556349186104045,89,84.723078319900537,0,15.556349186104045,20,37.589892258425003,0,15.556349186104045]
[null,"With no self care difficulty",1302,331.69865842357581,8635,587.06899083497842,10775,618.29200221254678,1462,365.89069406039829,667,225.85836269662454,236,61.554853586049575,311,57.628118136895637,854,160.77624202599088,401,83.630138108220294,6645,492.73319352363507,445,79.81227975693966,2806,333.80233672040106,677,140.60227594174995]
[null,"35 to 64  years:",4611,355.44479177503786,11237,408.72973955903916,2515,194.26270872197782,2876,287.21072403376581,2207,210.23796041628637,861,67.007462271003817,786,84.958813551037778,2052,154.80633061990716,1232,97.672923576598237,12087,414.36457377531684,1105,99.085821387320593,4691,317.50590545689067,1912,143.58621103713267]
[null,"With self care difficulty",112,128.41339493993607,168,96.602277405866573,9,12.083045973594572,48,47.423622805517503,39,64.938432380216881,9,8.0622577482985491,24,15,82,57.280013966478741,17,21.095023109728988,294,109.98636279102969,28,26.92582403567252,174,82.879430499973878,0,15.556349186104045]
[null,"With no self care difficulty",4499,366.23080154459973,11069,390.08332443210128,2506,194.26270872197782,2828,284.31320757221249,2168,217.74526401279087,852,67.007462271003817,762,82.03657720797473,1970,154.20116731075677,1215,100.41912168506553,11793,426.43287865735681,1077,100.44899203078147,4517,310.34496934862665,1912,143.58621103713267]
[null,"65 to 74  years:",615,194.90510511528424,2307,256.20499604808646,824,119.55333537798099,580,146.65946952038249,352,109.34349546269316,132,38.897300677553446,166,38.288379438153292,411,99.824846606443629,332,72.346388990743691,3036,262.45190035509364,240,46.010868281309364,845,149.91330828182001,355,83.600239234107462]
[null,"With self care difficulty",13,25.612496949731394,71,57.489129407219238,5,19.697715603592208,0,22.627416997969522,0,15.556349186104045,0,15.556349186104045,2,11.401754250991379,8,17.029386365926403,44,36.124783736376884,28,29.546573405388315,0,15.556349186104045,15,30.805843601498726,0,15.556349186104045]
[null,"With no self care difficulty",602,194.12624758130983,2236,255.66579747787932,819,119.55333537798099,580,146.65946952038249,352,109.34349546269316,132,38.897300677553446,164,38.288379438153292,403,98.35141076771599,288,66.603303221386852,3008,263.07793522072507,240,46.010868281309364,830,150.6286825275983,355,83.600239234107462]
[null,"75  years and Older:",394,168.5852899869974,1897,217.58906222510359,525,112.44998888394787,355,151.72672803431834,163,113.86395390991831,82,31.144823004794873,34,15,291,88.865066252155572,121,42.201895692018383,2052,219.93862780330335,155,48.414873747640819,637,154.05193929321371,187,72.917761896536561]
[null,"With self care difficulty",52,61.1310068623117,69,49.739320461783549,40,38.470768123342687,98,84.118963379252364,0,15.556349186104045,3,11.704699910719626,7,13.601470508735444,49,28.844410203711913,6,14.866068747318506,176,96.332756630338366,5,13.601470508735444,58,44.598206241955516,29,35.735136770411273]
[null,"With no self care difficulty",342,159.73102391207539,1828,219.20994502987313,485,110.30865786510141,257,134.83323032546539,163,113.86395390991831,79,30.413812651491099,27,12.041594578792296,242,85.276022421311367,115,42.201895692018383,1876,223.27113561766106,150,47.634021455258214,579,145.6193668438371,158,64.007812023221035]
[]
[]
[]
[]
[]
[]
[]
["B18106. SEX BY AGE BY SELF-CARE DIFFICULTY\n\n\n\n-Calculated"]
["Universe:  Civilian non-institutionalized population 5 years and over"]
["Data Set: 2008-2012 American Community Survey 5-Year Estimates"]
[]
[]
[null,null,"Barrington",null,"Dover",null,"Durham",null,"Farmington",null,"Lee",null,"Madbury",null,"Middleton",null,"Milton",null,"New Durham",null,"Rochester",null,"Rollinsford",null,"Somersworth",null,"Strafford"]
[null,null,"Estimate","Margin Of Error","Estimate","Margin Of Error","Estimate","Margin Of Error","Estimate","Margin Of Error","Estimate","Margin Of Error","Estimate","Margin Of Error","Estimate","Margin Of Error","Estimate","Margin Of Error","Estimate","Margin Of Error","Estimate","Margin Of Error","Estimate","Margin Of Error","Estimate","Margin Of Error","Estimate","Margin Of Error",null,null,null,null,null,null,null,null,null,null,null,null,null,null,"Estimate","Margin Of Error","Estimate","Margin Of Error","Estimate","Margin Of Error","Estimate","Margin Of Error","Estimate","Margin Of Error","Estimate","Margin Of Error","Estimate","Margin Of Error","Estimate","Margin Of Error","Estimate","Margin Of Error","Estimate","Margin Of Error","Estimate","Margin Of Error","Estimate","Margin Of Error","Estimate","Margin Of Error","Estimate","Margin Of Error","Estimate","Margin Of Error","Estimate","Margin Of Error","Estimate","Margin Of Error"]
[null,"Total:",7876,201,26966,455,14327,113,6546,107,4211,82,1898,155,1424,155,4366,91,2514,59,28147,284,2287,72,10819,231,3752,118]
[null,"5 to 17  years:",1582,271.15493725912495,4021,398.61008517096002,1202,174.22973339817747,1328,263.42361321643131,926,220.9886874932742,389,82.073138114732771,252,54.561891462814962,946,152.10851389715174,493,98.005101908012932,4302,403.20962290104137,384,78.568441501661468,1861,294.17001886664116,786,168.90825912311098]
[null,"With self care difficullty",0,22.627416997969522,27,50.119856344566671,5,20.124611797498108,36,54.405882034941776,18,30.083217912982647,9,14.866068747318506,0,15.556349186104045,0,15.556349186104045,0,15.556349186104045,14,30.413812651491099,5,14.212670403551895,14,28.42534080710379,8,15.556349186104045]
[null,"With no self care difficullty",1582,271.15493725912495,3994,399.26056654771207,1197,174.22973339817747,1292,264.9150807334305,908,219.72937900972642,380,79.906195003891909,252,54.561891462814962,946,152.10851389715174,493,98.005101908012932,4288,403.93687625667457,379,77.833154889160184,1847,292.03595669026782,778,170.01764614298128]
[null,"18 to 34  years:",1705,249.77790134437433,8385,521.9674319342156,9001,588.43266394720138,1276,268.02984908401527,544,167.45148551147582,436,119.01260437449471,284,56.850681614207581,886,165.46903033498444,412,74.276510418839678,6260,505.26131852735375,473,101.11874208078342,3223,343.8895171417704,606,133.68993978605869]
[null,"With self care difficullty",14,27.202941017470888,60,78.746428490440124,31,36.715119501371639,0,22.627416997969522,0,15.556349186104045,3,12.529964086141668,0,15.556349186104045,26,40.521599178709621,0,15.556349186104045,46,43.266615305567875,0,15.556349186104045,25,29,0,15.556349186104045]
[null,"With no self care difficullty",1691,249.77790134437433,8325,529.23529738671061,8970,594.00336699382433,1276,268.02984908401527,544,167.45148551147582,433,119.4361754243663,284,56.850681614207581,860,159.96249560443849,412,74.276510418839678,6214,500.27592386602015,473,101.11874208078342,3198,341.18030423809637,606,133.68993978605869]
[null,"35 to 64  years:",3961,269.00185872963777,11205,401.9950248448356,3258,272.25906780123961,3048,286.03671093060763,2058,180.38015411901608,922,102.17631819555841,741,79.93122043357026,1928,183.09560344257315,1283,82.619610262939389,13110,428.05723916317544,1105,76.485292703891773,4440,321.09967299889922,1852,163.24827717314508]
[null,"With self care difficullty",36,42.485291572496003,168,82.09750300709517,39,46.61544808322666,61,47.853944456021594,0,15.556349186104045,27,26.172504656604801,29,16.278820596099706,98,60.141499815019579,5,13.601470508735444,228,102.82509421342633,0,15.556349186104045,159,91.235957823656349,19,18.357559750685819]
[null,"With no self care difficullty",3925,269.07248094147423,11037,399.23176226347522,3219,281.71616922001476,2987,286.80306832389363,2058,180.38015411901608,895,90.609050320594349,712,80.65977932030313,1830,181.95878654244757,1278,82.006097334283623,12882,416.99040756353139,1105,76.485292703891773,4281,318.06445887587,1833,159.92810884894499]
[null,"65 to 74  years:",397,114.05700329221349,1649,184.85940603604675,379,84.291162051546067,452,153.56106277308712,462,137.00364958642524,100,32.802438933713454,95,27.802877548915689,275,80.808415403347695,169,50.931326312987373,2646,242.52834885843757,176,43.278170016764804,628,160.70158679988197,383,106.88779163215975]
[null,"With self care difficullty",5,18.357559750685819,88,56.302753041036986,20,26.90724809414742,18,32.249030993194197,13,23.706539182259394,0,15.556349186104045,0,15.556349186104045,9,17.804493814764857,0,15.556349186104045,49,42.544094772365298,5,13.601470508735444,0,25.45584412271571,0,15.556349186104045]
[null,"With no self care difficullty",392,114.05700329221349,1561,178.19652072922187,359,82.328609851011095,434,150.2664300500947,449,137.80058055030102,100,32.802438933713454,95,27.802877548915689,266,80.05623023850174,169,50.931326312987373,2597,247.1113109511582,171,42.5205832509386,628,160.70158679988197,383,106.88779163215975]
[null,"75  years and Older:",231,92.617492948146676,1706,206.20620747203515,487,106.07544484940895,442,162.64070831129578,221,101.86265262597475,51,21.2602916254693,52,19.849433241279208,331,104.04326023342406,157,42.638011210655684,1829,192.75372888740699,149,45.453272709454048,667,169.49631264425784,125,60.827625302982199]
[null,"With self care difficullty",23,28.071337695236398,203,81.835200250259064,33,28.42534080710379,84,71.56116265125938,2,2.8284271247461903,6,7.2111025509279782,2,11.704699910719626,27,27.586228448267445,0,15.556349186104045,144,75.802374632988901,5,13.038404810405298,29,25.317977802344327,1,11.180339887498949]
[null,"With no self care difficullty",208,90.210864090751286,1503,210.05951537600004,454,104.65180361560904,358,152.0690632574555,219,101.86265262597475,45,19.849433241279208,50,19.849433241279208,304,102.6498904042279,157,42.638011210655684,1685,194.91793144808406,144,44.687805943008662,638,168.15766411317682,124,60.827625302982199]

{"sheet":"ACS_Table_B18107","index":30,"n_rows":149,"n_cols":28,"rows_kept":149,"cut":false,"hidden":true,"merged":[]}
["B18107. SEX BY AGE BY INDEPENDENT LIVING DIFFICULTY\n\n\n"]
["Universe:  Civilian non-institutionalized population 18 years and over"]
["Data Set: 2018-2022 American Community Survey 5-Year Estimates"]
[]
[null,null,"Barrington",null,"Dover",null,"Durham",null,"Farmington",null,"Lee",null,"Madbury",null,"Middleton",null,"Milton",null,"New Durham",null,"Rochester",null,"Rollinsford",null,"Somersworth",null,"Strafford"]
[null,null,"Estimate","Margin Of Error","Estimate","Margin Of Error","Estimate","Margin Of Error","Estimate","Margin Of Error","Estimate","Margin Of Error","Estimate","Margin Of Error","Estimate","Margin Of Error","Estimate","Margin Of Error","Estimate","Margin Of Error","Estimate","Margin Of Error","Estimate","Margin Of Error","Estimate","Margin Of Error","Estimate","Margin Of Error"]
[null,"Total:",7204,225,26303,442,13533,222,5420,244,3519,208,1624,193,1240,208,3553,158,2215,163,25814,499,2187,131,9686,288,3487,135]
[null,"Male:",3576,258,13050,473,6464,398,2529,262,1743,186,796,116,635,128,1791,160,1098,124,12464,464,887,130,4766,343,1659,127]
[null,"18 to 34  years:",1012,300,4715,569,4824,479,742,214,170,91,206,113,157,62,529,157,293,122,3312,353,304,88,1568,338,356,116]
[null,"With independent living difficulty",64,66,0,25,16,22,50,72,0,12,0,12,0,12,0,12,0,12,136,95,6,10,0,19,0,12]
[null,"With no independent living difficulty",948,288,4715,569,4808,480,692,202,170,91,206,113,157,62,529,157,293,122,3176,358,298,90,1568,338,356,116]
[null,"35 to 64  years:",2000,223,6074,448,1071,155,1348,255,1070,142,488,84,355,82,955,120,610,75,6537,389,419,77,2368,309,962,99]
[null,"With independent living difficulty",64,98,160,103,0,19,88,79,50,75,4,7,16,15,21,26,35,55,230,119,5,8,107,85,10,13]
[null,"With no independent living difficulty",1936,221,5914,444,1071,155,1260,234,1020,135,484,84,339,82,934,121,575,95,6307,375,414,77,2261,306,952,99]
[null,"65 to 74  years:",389,152,1471,271,333,84,272,128,339,134,64,22,73,30,225,70,160,49,1712,244,95,43,438,173,231,69]
[null,"With independent living difficulty",13,23,93,105,25,22,32,45,0,12,2,3,5,6,0,12,0,12,49,39,0,12,0,19,8,12]
[null,"With no independent living difficulty",376,150,1378,276,308,79,240,131,339,134,62,21,68,29,225,70,160,49,1663,239,95,43,438,173,223,68]
[null,"75  years and Older:",175,70,790,164,236,64,167,72,164,115,38,23,50,23,82,52,35,28,903,190,69,37,392,131,110,38]
[null,"With independent living difficulty",25,40,135,94,15,15,15,25,13,21,7,10,0,12,25,38,0,12,321,179,5,7,30,36,22,19]
[null,"With no independent living difficulty",150,62,655,146,221,62,152,69,151,115,31,19,50,23,57,32,35,28,582,156,64,36,362,130,88,36]
[null,"Female:",3628,238,13253,482,7069,398,2891,226,1776,193,828,118,605,105,1762,154,1117,119,13350,490,1300,172,4920,357,1828,138]
[null,"18 to 34  years:",929,251,4676,463,5134,457,977,300,219,128,238,78,142,68,486,140,238,130,3083,440,477,174,1591,359,305,82]
[null,"With independent living difficulty",26,43,166,109,43,46,0,17,0,12,0,12,0,12,3,12,19,19,305,187,16,24,36,49,19,30]
[null,"With no independent living difficulty",903,253,4510,468,5091,450,977,300,219,128,238,78,142,68,483,139,219,132,2778,445,461,179,1555,351,286,81]
[null,"35 to 64  years:",1945,197,5776,414,1106,173,1412,279,1010,143,472,97,328,60,898,133,601,81,7006,440,524,76,2411,261,966,124]
[null,"With independent living difficulty",58,54,195,108,48,61,51,50,18,28,5,6,11,7,21,24,26,21,646,188,29,33,217,139,7,10]
[null,"With no independent living difficulty",1887,195,5581,430,1058,163,1361,278,992,138,467,98,317,60,877,136,575,84,6360,455,495,75,2194,256,959,124]
[null,"65 to 74  years:",360,113,1441,191,423,109,233,102,434,164,59,29,72,31,242,76,227,60,1886,287,108,44,653,257,390,134]
[null,"With independent living difficulty",4,7,27,27,27,41,47,51,0,12,0,12,3,4,21,32,20,18,152,176,0,12,162,213,0,12]
[null,"With no independent living difficulty",356,113,1414,196,396,98,186,94,434,164,59,29,69,32,221,68,207,55,1734,271,108,44,491,141,390,134]
[null,"75  years and Older:",394,145,1360,244,406,114,269,126,113,75,59,37,63,27,136,74,51,28,1375,267,191,87,265,123,167,73]
[null,"With independent living difficulty",71,84,208,97,123,54,46,42,42,46,18,28,29,21,41,35,26,20,352,143,61,80,52,51,21,21]
[null,"With no independent living difficulty",323,128,1152,248,283,106,223,116,71,60,41,22,34,18,95,61,25,19,1023,258,130,55,213,108,146,71]
[]
[]
[{"$f":"A1& \"-Calculated\"","v":"B18107. SEX BY AGE BY INDEPENDENT LIVING DIFFICULTY\n\n\n-Calculated"}]
[{"$f":"A2","v":"Universe:  Civilian non-institutionalized population 18 years and over"}]
[{"$f":"A3","v":"Data Set: 2018-2022 American Community Survey 5-Year Estimates"}]
[]
[]
[null,null,"Barrington",null,"Dover",null,"Durham",null,"Farmington",null,"Lee",null,"Madbury",null,"Middleton",null,"Milton",null,"New Durham",null,"Rochester",null,"Rollinsford",null,"Somersworth",null,"Strafford"]
[null,null,"Estimate","Margin Of Error","Estimate","Margin Of Error","Estimate","Margin Of Error","Estimate","Margin Of Error","Estimate","Margin Of Error","Estimate","Margin Of Error","Estimate","Margin Of Error","Estimate","Margin Of Error","Estimate","Margin Of Error","Estimate","Margin Of Error","Estimate","Margin Of Error","Estimate","Margin Of Error","Estimate","Margin Of Error"]
[null,"Total:",{"$f":"C7","v":7204},225,26303,442,13533,222,5420,244,3519,208,1624,193,1240,208,3553,158,2215,163,25814,499,2187,131,{"$f":"Y7","v":9686},{"$f":"Z7","v":288},{"$f":"AA7","v":3487},{"$f":"AB7","v":135}]
[null,"18 to 34  years:",{"$f":"C22+C9","v":1941},{"$f":"SQRT((D22^2)+(D9^2))","v":391.15342258505166},{"$f":"E22+E9","v":9391},{"$f":"SQRT((F22^2)+(F9^2))","v":733.57344553902715},{"$f":"G22+G9","v":9958},{"$f":"SQRT((H22^2)+(H9^2))","v":662.03474229076528},{"$f":"I22+I9","v":1719},{"$f":"SQRT((J22^2)+(J9^2))","v":368.50508816025865},{"$f":"K22+K9","v":389},{"$f":"SQRT((L22^2)+(L9^2))","v":157.05094714773293},{"$f":"M22+M9","v":444},{"$f":"SQRT((N22^2)+(N9^2))","v":137.30622709840949},{"$f":"O22+O9","v":299},{"$f":"SQRT((P22^2)+(P9^2))","v":92.021736562618727},{"$f":"Q22+Q9","v":1015},{"$f":"SQRT((R22^2)+(R9^2))","v":210.35446275275456},{"$f":"S22+S9","v":531},{"$f":"SQRT((T22^2)+(T9^2))","v":178.28067758453241},{"$f":"U22+U9","v":6395},{"$f":"SQRT((V22^2)+(V9^2))","v":564.10016840983121},{"$f":"W22+W9","v":781},{"$f":"SQRT((X22^2)+(X9^2))","v":194.98717906570164},3159,493.07707308290048,661,142.05632685663809]
[null,"With independent living difficulty",{"$f":"C23+C10","v":90},{"$f":"SQRT((D23^2)+(D10^2))","v":78.771822373231913},166,111.83022847155415,59,50.990195135927848,50,73.979726952726722,0,16.970562748477139,0,16.970562748477139,0,16.970562748477139,3,16.970562748477139,19,22.472205054244231,441,209.74746720759228,22,26,36,52.55473337388365,19,32.310988842807021]
[null,"With no independent living difficulty",1851,383.34449259119401,9225,736.73943833624105,9899,657.95136598383931,1669,361.66835637086086,389,157.05094714773293,444,137.30622709840949,299,92.021736562618727,1012,209.69024774652732,512,179.74426277353055,5954,571.12958249420069,759,200.35218990567586,3123,487.28328516377411,642,141.4814475470194]
[null,"35 to 64  years:",3945,297.55335655979417,11850,610,2177,232.28000344411913,2760,377.97618972628419,2080,201.52667317256046,960,128.31601614763451,683,101.6070863670443,1853,179.13402803487674,1211,110.39021695784459,13543,587.29975310738894,943,108.18964830333815,4779,404.47744065645986,1928,158.67261893597143]
[null,"With independent living difficulty",122,111.89280584559492,355,149.24141516348604,48,63.890531379853151,139,93.493315269060815,68,80.05623023850174,9,9.2195444572928871,27,16.552945357246848,42,35.383612025908263,61,58.872744118140105,876,222.49719099350446,34,33.955853692699293,324,162.92943257741985,17,16.401219466856727]
[null,"With no independent living difficulty",3823,294.73038526762048,11495,618.09060824445476,2129,224.93110056192762,2621,363.37308651026979,2012,193.05180651835403,951,129.07362240210043,656,101.6070863670443,1811,182.03571078225283,1150,126.81088281373961,12667,589.61852074031731,909,107.48953437428223,4455,398.96365749275958,1911,158.67261893597143]
[null,"65 to 74  years:",749,189.40168953839878,2912,331.54486875836278,756,137.61177275218861,505,163.67040050051813,773,211.7829077144801,123,36.400549446402593,145,43.139309220245984,467,103.32473082471591,387,77.466121627457255,3598,376.70280062670093,203,61.522353661088097,1091,309.80316331503138,621,150.72159765607583]
[null,"With independent living difficulty",17,24.041630560342615,120,108.41586599755591,52,46.529560496527367,79,68.01470429252781,0,16.970562748477139,2,12.369316876852981,8,7.2111025509279782,21,34.176014981270121,20,21.633307652783937,201,180.2692430782356,0,16.970562748477139,162,213.84573879317773,8,16.970562748477139]
[null,"With no independent living difficulty",732,187.80042598460739,2792,338.51440146617102,704,125.87692401707312,426,161.23585209251695,773,211.7829077144801,121,35.805027579936315,137,43.185645763378368,446,97.590983190046813,367,73.661387442811588,3397,361.33364083627754,203,61.522353661088097,929,223.1815404552984,613,150.2664300500947]
[null,"75  years and Older:",569,161.01242188104618,2150,293.99319720020736,642,130.73637596323374,436,145.12063946937388,277,137.2953021774598,97,43.56604182158393,113,35.468295701936398,218,90.443352436760108,86,39.597979746446661,2278,327.70260908329675,260,94.540996398387932,657,179.6941846582688,277,82.29823813423954]
[null,"With independent living difficulty",96,93.037626796904064,343,135.07405376311175,138,56.044625076808217,61,48.877397639399746,55,50.566787519082126,25,29.732137494637012,29,24.186773244895647,66,51.662365412357957,26,23.323807579381203,673,229.10696191953662,66,80.305666051655408,82,62.425956140054431,43,28.319604517012593]
[null,"With no independent living difficulty",{"$f":"C33+C20","v":473},142.22517358048822,1807,287.78464170278443,504,122.80065146407001,375,134.97036711811967,222,129.71121771072848,72,29.068883707497267,84,29.206163733020468,152,68.8839603971781,60,33.837848631377263,1605,301.4962686336267,194,65.73431371817918,575,169.00887550658396,234,79.605276207045478]
[]
[]
[]
[]
[]
[]
[]
[]
[]
[]
[]
[]
[]
[]
[]
[]
[]
[]
[]
[]
[]
[]
[]
[]
[]
[]
[]
[]
[]
[]
[]
[]
[]
[]
[]
[]
[]
[]
[]
[]
[]
[]
[]
[]
["B18107. SEX BY AGE BY INDEPENDENT LIVING DIFFICULTY\n\n\n-Calculated"]
["Universe:  Civilian non-institutionalized population 18 years and over"]
["Data Set: 2013-2017 American Community Survey 5-Year Estimates"]
[]
[]
[null,null,"Barrington",null,"Dover",null,"Durham",null,"Farmington",null,"Lee",null,"Madbury",null,"Middleton",null,"Milton",null,"New Durham",null,"Rochester",null,"Rollinsford",null,"Somersworth",null,"Strafford"]
[null,null,"Estimate","Margin Of Error","Estimate","Margin Of Error","Estimate","Margin Of Error","Estimate","Margin Of Error","Estimate","Margin Of Error","Estimate","Margin Of Error","Estimate","Margin Of Error","Estimate","Margin Of Error","Estimate","Margin Of Error","Estimate","Margin Of Error","Estimate","Margin Of Error","Estimate","Margin Of Error","Estimate","Margin Of Error"]
[null,"Total:",6922,273,24132,415,14695,187,5369,240,3389,160,1315,113,1307,139,3608,146,2086,82,23909,390,1945,79,8999,319,3131,121]
[null,"18 to 34  years:",1302,331.69865842357581,8691,587.62658210805955,10831,616.40976630809473,1558,368.71669341107952,667,225.85836269662454,240,62.241465278381739,321,65.73431371817918,854,160.77624202599088,401,83.630138108220294,6734,498.25495481731036,445,79.81227975693966,2826,336.68976818430343,677,140.60227594174995]
[null,"With independent living difficulty",89,92.956979296876895,100,75.894663844041105,122,82.03657720797473,168,150.69505632236249,0,15.556349186104045,4,12.529964086141668,10,17.804493814764857,41,58.051701094799967,11,16.278820596099706,275,124.06449935416659,0,15.556349186104045,133,90.210864090751286,31,35.735136770411273]
[null,"With no independent living difficulty",1213,325,8591,579.87067523716007,10709,615.87661101879814,1390,346.56024007378574,667,225.85836269662454,236,61.554853586049575,311,57.628118136895637,813,152.74161188098023,390,82.134036793524274,6459,495.31606071275337,445,79.81227975693966,2693,337.29067582724548,646,133.5440002396214]
[null,"35 to 64  years:",4611,355.44479177503786,11237,408.72973955903916,2515,194.26270872197782,2876,287.21072403376581,2207,210.23796041628637,861,67.007462271003817,786,84.958813551037778,2052,154.80633061990716,1232,97.672923576598237,12087,414.36457377531684,1105,99.085821387320593,4691,317.50590545689067,1912,143.58621103713267]
[null,"With independent living difficulty",181,152.22680447279973,372,136.01470508735443,37,30.805843601498726,97,70.092795635500224,40,64.070273918565391,25,15.556349186104045,21,15,191,101.55294185792945,24,21.095023109728988,528,170.42300314218147,50,30.232432915661949,177,91.967385523347346,40,47.296934361541872]
[null,"With no independent living difficulty",4430,363.73204423036475,10865,413.01089574005186,2478,196.98730923589977,2779,295.60108254199611,2167,217.20497231877542,836,66.400301204136113,765,82.134036793524274,1861,159.02829936838285,1208,99.724620831567975,11559,442.03732874045829,1055,99.724620831567975,4514,299.90831932442285,1872,144.27751037497146]
[null,"65 to 74  years:",615,194.90510511528424,2307,256.20499604808646,824,119.55333537798099,580,146.65946952038249,352,109.34349546269316,132,38.897300677553446,166,38.288379438153292,411,99.824846606443629,332,72.346388990743691,3036,262.45190035509364,240,46.010868281309364,845,149.91330828182001,355,83.600239234107462]
[null,"With independent living difficulty",13,25.612496949731394,125,64.078077374403179,41,52.630789467763066,12,28.0178514522438,15,26.40075756488817,4,12.529964086141668,14,14.317821063276353,17,18.384776310850235,39,35.383612025908263,136,98.030607465219759,6,14.212670403551895,0,25.45584412271571,16,22.825424421026653]
[null,"With no independent living difficulty",602,194.12624758130983,2182,246.28844877500853,783,108.46658471621571,568,146.65946952038249,337,108.07404868885037,128,38.209946349085598,152,37.536648758246919,394,100.41912168506553,293,68.01470429252781,2900,256.70410982296329,234,45.343136195018538,845,149.91330828182001,339,82.800966177937809]
[null,"75  years and Older:",394,168.5852899869974,1897,217.58906222510359,525,112.44998888394787,355,151.72672803431834,163,113.86395390991831,82,31.144823004794873,34,15,291,88.865066252155572,121,42.201895692018383,2052,219.93862780330335,155,48.414873747640819,637,154.05193929321371,187,72.917761896536561]
[null,"With independent living difficulty",187,134.61797799699713,375,113.56936206565572,68,40.607881008493905,121,83.86298349093002,0,15.556349186104045,16,15.524174696260024,10,14.212670403551895,68,35.383612025908263,6,14.866068747318506,326,119.20151005754919,31,19.849433241279208,136,75.894663844041105,63,46.324939287601879]
[null,"With no independent living difficulty",207,133.09395177843356,1522,213.21585306913744,457,106.77546534667971,234,124.27791436936813,163,113.86395390991831,66,27.202941017470888,24,11.401754250991379,223,84.504437753291981,115,42.201895692018383,1726,212.03773249117714,124,45.793012567421243,501,132.87964479181903,124,60.539243470661241]
[]
[]
[]
[]
[]
[]
[]
[]
[]
[]
["B18107. SEX BY AGE BY INDEPENDENT LIVING DIFFICULTY\n\n\n-Calculated"]
["Universe:  Civilian non-institutionalized population 18 years and over"]
["Data Set: 2008-2012 American Community Survey 5-Year Estimates"]
[]
[]
[null,null,"Barrington",null,"Dover",null,"Durham",null,"Farmington",null,"Lee",null,"Madbury",null,"Middleton",null,"Milton",null,"New Durham",null,"Rochester",null,"Rollinsford",null,"Somersworth",null,"Strafford"]
[null,null,"Estimate","Margin Of Error","Estimate","Margin Of Error","Estimate","Margin Of Error","Estimate","Margin Of Error","Estimate","Margin Of Error","Estimate","Margin Of Error","Estimate","Margin Of Error","Estimate","Margin Of Error","Estimate","Margin Of Error","Estimate","Margin Of Error","Estimate","Margin Of Error","Estimate","Margin Of Error","Estimate","Margin Of Error"]
[null,"Total:",6294,260,22945,498,13125,199,5218,264,3285,177,1509,129,1172,119,3420,138,2021,87,23845,330,1903,58,8958,301,2966,125]
[null,"18 to 34  years:",1705,249.77790134437433,8385,521.9674319342156,9001,588.43266394720138,1276,268.02984908401527,544,167.45148551147582,436,119.01260437449471,284,56.850681614207581,886,165.46903033498444,412,74.276510418839678,6260,505.26131852735375,473,101.11874208078342,3223,343.8895171417704,606,133.68993978605869]
[null,"With independent living difficulty",14,27.202941017470888,94,55.946402922797461,100,68.066144300966542,43,58.240879114244144,1,11.180339887498949,7,14.866068747318506,3,13.038404810405298,26,40.521599178709621,0,15.556349186104045,187,84.291162051546067,8,16.278820596099706,84,55.226805085936306,5,14.212670403551895]
[null,"With no independent living difficulty",1691,249.77790134437433,8291,523.35265357118431,8901,599.81080350390494,1233,268.64288563071977,543,167.45148551147582,429,119.4361754243663,281,55.317266743757322,860,159.96249560443849,412,74.276510418839678,6073,489.62434579992038,465,99.704563586628268,3139,341.11874765248535,601,134.38005804433931]
[null,"35 to 64  years:",3961,269.00185872963777,11205,401.9950248448356,3258,272.25906780123961,3048,286.03671093060763,2058,180.38015411901608,922,102.17631819555841,741,79.93122043357026,1928,183.09560344257315,1283,82.619610262939389,13110,428.05723916317544,1105,76.485292703891773,4440,321.09967299889922,1852,163.24827717314508]
[null,"With independent living difficulty",104,71.700767080973407,411,128.42507543311004,90,55.081757415681643,146,100.46392387319938,14,21.095023109728988,32,36.687872655688281,42,24.596747752497688,144,80.709355095924295,56,40.311288741492746,794,218.3323155192561,5,13.038404810405298,223,94.069123520951337,19,18.357559750685819]
[null,"With no independent living difficulty",3857,285.32963393240459,10794,411.85070110417439,3168,283.93837359539833,2902,296.05742686174926,2044,178.93294833540301,890,87.726848797845236,699,79.981247802219244,1784,169,1227,81.60882305241266,12316,415.24571039325622,1100,76.485292703891773,4217,321.06852851065923,1833,159.92810884894499]
[null,"65 to 74  years:",397,114.05700329221349,1649,184.85940603604675,379,84.291162051546067,452,153.56106277308712,462,137.00364958642524,100,32.802438933713454,95,27.802877548915689,275,80.808415403347695,169,50.931326312987373,2646,242.52834885843757,176,43.278170016764804,628,160.70158679988197,383,106.88779163215975]
[null,"With independent living difficulty",33,34.885527085024819,127,67.208630398186216,20,26.90724809414742,18,32.249030993194197,0,15.556349186104045,0,15.556349186104045,0,15.556349186104045,9,17.804493814764857,7,14.212670403551895,218,111.66467659918243,19,22.472205054244231,12,27.658633371878661,17,24.331050121192877]
[null,"With no independent living difficulty",364,113.01769772916099,1522,180.47991578012218,359,82.328609851011095,434,150.2664300500947,462,137.00364958642524,100,32.802438933713454,95,27.802877548915689,266,80.05623023850174,162,52.40229002629561,2428,232.26062946612367,157,37.215588131856791,616,162.18816233005415,366,107.56393447619885]
[null,"75  years and Older:",231,92.617492948146676,1706,206.20620747203515,487,106.07544484940895,442,162.64070831129578,221,101.86265262597475,51,21.2602916254693,52,19.849433241279208,331,104.04326023342406,157,42.638011210655684,1829,192.75372888740699,149,45.453272709454048,667,169.49631264425784,125,60.827625302982199]
[null,"With independent living difficulty",71,58.412327466040935,406,113.46365056704283,99,48.414873747640819,53,65.30696746902278,45,51.894122981316485,10,9.2195444572928871,4,5,39,33.015148038438355,25,16.643316977093239,344,117.83462988442744,28,18.788294228055936,105,62.968245965724662,33,27.073972741361768]
[null,"With no independent living difficulty",160,76.05918747922567,1300,190.03157632351525,388,94.493386011932074,389,157.69908052997647,176,86.833173384369644,41,19.209372712298546,48,19.849433241279208,292,100.9554357129917,132,40,1485,184.04347312523745,121,42.449970553582247,562,169.09464805250343,92,54.708317466359723]

{"sheet":"ACS_Table_C18108","index":31,"n_rows":148,"n_cols":28,"rows_kept":148,"cut":false,"hidden":true,"merged":[]}
["B18108. AGE BY NUMBER OF DISABILITIES\n\n"]
["Universe:  Civilian non-institutionalized population"]
["Data Set: 2018-2022 American Community Survey 5-Year Estimates"]
[]
[null,null,"Barrington",null,"Dover",null,"Durham",null,"Farmington",null,"Lee",null,"Madbury",null,"Middleton",null,"Milton",null,"New Durham",null,"Rochester",null,"Rollinsford",null,"Somersworth",null,"Strafford"]
[null,null,"Estimate","Margin Of Error","Estimate","Margin Of Error","Estimate","Margin Of Error","Estimate","Margin Of Error","Estimate","Margin Of Error","Estimate","Margin Of Error","Estimate","Margin Of Error","Estimate","Margin Of Error","Estimate","Margin Of Error","Estimate","Margin Of Error","Estimate","Margin Of Error","Estimate","Margin Of Error","Estimate","Margin Of Error"]
[null,"Total:",9339,19,31886,96,14996,42,6754,22,4547,15,2208,278,1535,277,4495,19,2711,17,32186,108,2575,40,11831,164,4261,26]
[null,"Under 18 years:",2135,225,5583,452,1463,218,1334,244,1028,210,584,175,295,93,942,159,496,165,6372,470,388,109,2145,250,774,132]
[null,"With one type of disability",73,90,85,70,11,17,0,17,31,43,4,6,17,17,76,63,0,12,205,115,8,10,82,73,32,39]
[null,"With two or more types of disability",0,17,78,82,11,16,0,17,0,12,3,5,0,12,9,15,0,12,126,78,0,12,23,38,0,12]
[null,"No disability",2062,218,5420,439,1441,217,1334,244,997,211,577,175,278,92,857,180,496,165,6041,468,380,110,2040,263,742,126]
[null,"18 to 64  years:",5886,309,21241,545,12135,317,4479,230,2469,236,1404,195,982,174,2868,176,1742,167,19938,561,1724,137,7938,333,2589,186]
[null,"With one type of disability",351,213,1384,349,529,179,582,297,66,59,57,34,50,26,280,98,116,94,1726,317,77,37,692,286,126,60]
[null,"With two or more types of disability",249,136,702,259,135,97,236,143,93,90,5,6,53,37,43,34,87,62,1590,366,56,43,214,110,56,37]
[null,"No disability",5286,340,19155,639,11471,329,3661,399,2310,218,1342,187,879,162,2545,175,1539,145,16622,702,1591,146,7032,436,2407,195]
[null,"65 years and over:",1318,265,5062,364,1398,227,941,192,1050,186,220,75,258,74,685,144,473,103,5876,431,463,97,1748,328,898,177]
[null,"With one type of disability",248,132,819,230,260,95,104,70,101,84,16,14,36,19,76,51,54,28,912,261,85,44,253,152,282,145]
[null,"With two or more types of disability",195,117,704,186,202,79,233,94,192,137,35,32,49,25,117,70,43,29,1204,291,89,79,328,234,49,31]
[null,"No disability",875,159,3539,366,936,176,604,179,757,183,169,62,173,60,492,122,376,91,3760,486,289,62,1167,199,567,96]
[]
[]
[]
[]
[]
[]
[]
[]
[]
[]
[]
[]
[]
[]
[]
[]
[]
[]
[]
[]
[]
[]
[]
[]
[]
[]
[]
[]
[]
[]
[]
[]
[]
[]
[]
[]
[]
[]
[]
[]
[]
[]
[]
[]
[]
[]
[]
[]
[]
[]
[]
[]
[]
[]
[]
[]
[]
[]
[]
[]
[]
[]
[]
[]
[]
[]
[]
[]
[]
[]
[]
[]
[]
[]
[]
[]
[]
[]
[]
[]
["B18108. AGE BY NUMBER OF DISABILITIES\n\n"]
["Universe:  Civilian non-institutionalized population"]
["Data Set: 2013-2017 American Community Survey 5-Year Estimates"]
[]
[null,null,"Barrington",null,"Dover",null,"Durham",null,"Farmington",null,"Lee",null,"Madbury",null,"Middleton",null,"Milton",null,"New Durham",null,"Rochester",null,"Rollinsford",null,"Somersworth",null,"Strafford"]
[null,null,"Estimate","Margin Of Error","Estimate","Margin Of Error","Estimate","Margin Of Error","Estimate","Margin Of Error","Estimate","Margin Of Error","Estimate","Margin Of Error","Estimate","Margin Of Error","Estimate","Margin Of Error","Estimate","Margin Of Error","Estimate","Margin Of Error","Estimate","Margin Of Error","Estimate","Margin Of Error","Estimate","Margin Of Error"]
[null,"Total:",8841,20,30008,268,16116,41,6815,34,4375,18,1906,157,1683,153,4581,34,2663,22,29911,118,2473,64,11706,75,4046,25]
[null,"Under 18 years:",1919,271,5876,363,1421,184,1446,231,986,161,591,115,376,71,973,139,577,84,6002,350,528,67,2707,313,915,119]
[null,"With one type of disability",51,80,207,134,102,66,62,78,28,44,16,19,17,16,12,19,8,11,235,113,34,23,58,65,0,11]
[null,"With two or more types of disability",0,16,49,47,4,7,0,16,0,11,4,6,8,7,0,11,7,11,103,66,14,16,0,18,31,41]
[null,"No disability",1868,294,5620,307,1315,165,1384,225,958,165,571,110,351,74,961,138,562,83,5664,360,480,66,2649,310,884,109]
[null,"18 to 64  years:",5913,297,19928,425,13346,253,4434,253,2874,180,1101,99,1107,120,2906,145,1633,111,18821,421,1550,81,7517,305,2589,138]
[null,"With one type of disability",379,183,967,211,544,124,404,178,67,60,23,12,59,22,274,90,90,43,1721,345,110,51,761,297,192,84]
[null,"With two or more types of disability",311,193,573,141,146,78,235,137,42,64,30,16,54,20,228,113,51,33,1072,220,54,31,405,146,61,53]
[null,"No disability",5223,344,18388,458,12656,280,3795,325,2765,197,1048,102,994,107,2404,188,1492,117,16028,562,1386,95,6351,437,2336,168]
[null,"65 years and over:",1009,211,4204,268,1349,139,935,233,515,161,214,64,200,45,702,104,453,103,5088,242,395,51,1482,180,542,93]
[null,"With one type of disability",227,141,846,170,240,78,198,117,75,78,41,25,29,15,74,41,106,38,851,181,59,28,271,111,68,39]
[null,"With two or more types of disability",205,126,720,205,121,73,180,96,15,24,37,23,33,28,153,71,72,58,821,210,37,23,242,111,81,48]
[null,"No disability",577,192,2638,248,988,139,557,160,425,176,136,49,138,37,475,119,275,78,3416,281,299,54,969,174,393,98]
[]
[]
[]
[]
[]
[]
[]
[]
[]
[]
[]
["B18108. AGE BY NUMBER OF DISABILITIES\n\n"]
["Universe:  Civilian non-institutionalized population"]
["Data Set: 2008-2012 American Community Survey 5-Year Estimates"]
[]
[null,null,"Barrington",null,"Dover",null,"Durham",null,"Farmington",null,"Lee",null,"Madbury",null,"Middleton",null,"Milton",null,"New Durham",null,"Rochester",null,"Rollinsford",null,"Somersworth",null,"Strafford"]
[null," ","Estimate","Margin of Error","Estimate","Margin of Error","Estimate","Margin of Error","Estimate","Margin of Error","Estimate","Margin of Error","Estimate","Margin of Error","Estimate","Margin of Error","Estimate","Margin of Error","Estimate","Margin of Error","Estimate","Margin of Error","Estimate","Margin of Error","Estimate","Margin of Error","Estimate","Margin of Error"]
[null,"Total:",8591,19,28955,354,14695,19,6718,66,4334,22,2008,165,1526,165,4566,43,2627,18,29569,78,2540,18,11738,49,3982,22]
[null,"Under 18 years:",2297,259,6010,358,1570,200,1500,229,1049,180,499,97,354,77,1146,141,606,85,5724,325,637,58,2780,298,1016,124]
[null,"With one type of disability",100,88,192,111,9,14,195,113,44,72,0,11,2,4,4,7,33,29,194,117,25,25,43,43,87,56]
[null,"With two or more types of disability",0,16,46,53,5,9,36,52,18,28,9,10,4,7,0,11,4,7,11,17,5,9,0,18,0,11]
[null,"No disability",2197,258,5772,383,1556,200,1269,209,987,199,490,95,348,75,1142,142,569,87,5519,308,607,61,2737,296,929,118]
[null,"18 to 64  years:",5666,222,19590,476,12259,284,4324,323,2602,156,1358,147,1025,114,2814,147,1695,97,19370,339,1578,62,7663,318,2458,166]
[null,"With one type of disability",312,132,960,207,507,149,367,144,80,62,71,44,112,39,147,65,108,47,1407,292,58,31,407,148,97,54]
[null,"With two or more types of disability",117,66,740,232,145,75,250,115,71,52,34,29,47,22,207,104,61,39,1203,259,18,16,352,137,50,38]
[null,"No disability",5237,256,17890,524,11607,306,3707,327,2451,156,1253,142,866,107,2460,172,1526,110,16760,425,1502,79,6904,297,2311,162]
[null,"65 years and over:",628,175,3355,271,866,178,894,229,683,146,151,46,147,47,606,132,326,69,4475,296,325,64,1295,266,508,146]
[null,"With one type of disability",215,119,736,169,59,43,377,167,80,64,27,23,39,18,151,68,110,52,808,147,60,32,288,123,121,102]
[null,"With two or more types of disability",102,63,628,140,115,57,121,79,58,55,23,15,7,8,130,77,41,26,888,189,49,46,182,73,64,43]
[null,"No disability",311,107,1991,215,692,149,396,128,545,132,101,33,101,35,325,90,175,65,2779,274,216,37,825,241,323,94]

{"sheet":"ACS_TableB19201_ACS_Tbl_B19202","index":32,"n_rows":115,"n_cols":28,"rows_kept":115,"cut":false,"hidden":true,"merged":[]}
[null,"B19102. NON-FAMILY INCOME IN THE PAST 12 MONTHS (IN 2022 INFLATION-ADJUSTED DOLLARS)"]
[null,"Universe:  FAMILIES"]
[null,"Data Set: 2018-2022 American Community Survey 5-Year Estimates"]
[]
[null,null,"Barrington",null,"Dover",null,"Durham",null,"Farmington",null,"Lee",null,"Madbury",null,"Middleton",null,"Milton",null,"New Durham",null,"Rochester",null,"Rollinsford",null,"Somersworth",null,"Strafford"]
[null,null,"Estimate","Margin Of Error","Estimate","Margin Of Error","Estimate","Margin Of Error","Estimate","Margin Of Error","Estimate","Margin Of Error","Estimate","Margin Of Error","Estimate","Margin Of Error","Estimate","Margin Of Error","Estimate","Margin Of Error","Estimate","Margin Of Error","Estimate","Margin Of Error","Estimate","Margin Of Error","Estimate","Margin Of Error"]
[null,"Total:",816,195,6546,625,1406,196,951,252,523,216,116,38,153,37,511,143,273,96,5272,560,385,108,2186,380,192,85]
[null,"Less than $10,000",13,21,257,122,215,109,135,92,51,80,10,11,2,5,6,10,36,32,260,127,31,34,48,44,0,12]
[null,"$10,000 to $14,999",17,23,540,214,160,84,170,110,0,12,0,12,6,7,25,28,13,10,562,271,20,24,93,101,6,9]
[null,"$15,000 to $19,999",0,17,343,158,68,66,34,44,0,12,0,12,7,9,21,32,4,6,474,187,3,5,53,48,0,12]
[null,"$20,000 to $24,999",48,53,208,121,54,46,34,36,16,25,3,4,16,12,63,45,12,14,333,135,61,79,182,214,0,12]
[null,"$25,000 to $29,999",62,50,171,106,14,21,112,75,15,23,2,4,7,7,46,50,0,12,318,131,25,23,182,170,0,12]
[null,"$30,000 to $34,999",209,141,538,235,51,36,14,24,0,12,2,4,4,5,25,28,12,13,419,236,19,23,95,84,19,20]
[null,"$35,000 to $39,999",105,108,436,204,64,43,0,17,44,52,9,12,3,5,58,49,6,9,151,78,9,10,82,56,17,19]
[null,"$40,000 to $44,999",4,7,509,243,115,100,106,94,0,12,6,7,28,20,15,18,0,12,316,222,6,8,167,87,7,11]
[null,"$45,000 to $49,999",94,99,164,91,39,33,77,61,16,24,5,8,15,16,3,7,4,7,270,138,23,28,106,116,18,14]
[null,"$50,000 to $59,999",60,50,486,190,58,49,117,142,90,127,8,9,23,17,19,19,39,43,389,146,25,23,257,157,0,12]
[null,"$60,000 to $74,999",39,38,893,316,56,38,54,48,126,94,3,5,13,9,104,93,39,32,371,149,33,25,232,188,71,64]
[null,"$75,000 to $99,999",48,49,766,219,168,82,30,35,96,84,26,20,11,12,39,38,57,43,615,206,60,48,281,167,23,20]
[null,"$100,000 to $124,999",30,38,401,153,78,61,63,94,50,75,28,27,15,8,41,34,19,16,365,132,23,28,134,74,8,13]
[null,"$125,000 to $149,999",15,28,112,73,40,34,5,30,14,20,4,5,3,5,11,22,26,22,232,141,17,16,144,129,0,12]
[null,"$150,000 to $199,999",0,17,475,193,91,94,0,17,5,7,5,6,0,12,5,8,6,8,106,62,8,13,117,105,23,25]
[null,"$200,000 or more",72,75,247,124,135,90,0,17,0,12,5,6,0,12,30,49,0,12,91,69,22,18,13,21,0,12]
[]
[]
[null,"B19112. MEDIAN NON-FAMILY INCOME IN THE PAST 12 MONTHS (IN 2019 INFLATION-ADJUSTED DOLLARS)"]
[null,"Universe:  FAMILIES"]
[null,"Data Set: 2018-2022 American Community Survey 5-Year Estimates"]
[]
[null,null,"Barrington",null,"Dover",null,"Durham",null,"Farmington",null,"Lee",null,"Madbury",null,"Middleton",null,"Milton",null,"New Durham",null,"Rochester",null,"Rollinsford",null,"Somersworth",null,"Strafford"]
[null,null,"Estimate","Margin Of Error","Estimate","Margin Of Error","Estimate","Margin Of Error","Estimate","Margin Of Error","Estimate","Margin Of Error","Estimate","Margin Of Error","Estimate","Margin Of Error","Estimate","Margin Of Error","Estimate","Margin Of Error","Estimate","Margin Of Error","Estimate","Margin Of Error","Estimate","Margin Of Error","Estimate","Margin Of Error"]
[null,"Median family income in the past 12 months",36405,8644,53125,7023,42500,7238,29495,21689,64141,17803,91667,19391,45673,4773,44028,27913,68359,16812,40969,4106,47750,23889,54861,11861,61450,7162]
[]
[]
[]
[]
[]
[]
[]
[]
[]
[]
[]
[]
[]
[]
[]
[]
[]
[null,"B19102. NON-FAMILY INCOME IN THE PAST 12 MONTHS (IN 2017 INFLATION-ADJUSTED DOLLARS)"]
[null,"Universe:  FAMILIES"]
[null,"Data Set: 2013-2017 American Community Survey 5-Year Estimates"]
[]
[null,null,"Barrington",null,"Dover",null,"Durham",null,"Farmington",null,"Lee",null,"Madbury",null,"Middleton",null,"Milton",null,"New Durham",null,"Rochester",null,"Rollinsford",null,"Somersworth",null,"Strafford"]
[null,null,"Estimate","Margin Of Error","Estimate","Margin Of Error","Estimate","Margin Of Error","Estimate","Margin Of Error","Estimate","Margin Of Error","Estimate","Margin Of Error","Estimate","Margin Of Error","Estimate","Margin Of Error","Estimate","Margin Of Error","Estimate","Margin Of Error","Estimate","Margin Of Error","Estimate","Margin Of Error","Estimate","Margin Of Error"]
[null,"Total:",1009,257,5707,514,1511,189,935,260,521,198,90,37,151,43,355,100,213,61,4894,520,319,68,1282,277,291,96]
[null,"Less than $10,000",83,122,338,124,298,120,13,23,0,11,8,9,14,8,14,16,21,26,494,236,12,18,133,93,36,27]
[null,"$10,000 to $14,999",137,121,462,132,173,95,137,137,0,11,3,5,13,10,86,70,6,8,411,150,30,26,162,114,0,11]
[null,"$15,000 to $19,999",95,104,403,160,119,70,74,95,49,78,5,6,10,15,35,29,8,11,372,168,19,18,92,63,36,45]
[null,"$20,000 to $24,999",106,130,376,125,113,65,164,105,13,19,3,5,7,8,32,34,8,14,424,128,13,13,125,80,26,31]
[null,"$25,000 to $29,999",12,20,347,154,180,85,37,41,0,11,3,5,11,14,0,11,20,22,436,141,69,46,101,66,36,39]
[null,"$30,000 to $34,999",70,81,230,112,79,48,50,47,16,25,21,22,11,10,0,11,20,16,444,125,26,18,56,46,9,15]
[null,"$35,000 to $39,999",26,42,440,147,82,57,136,120,0,11,11,9,2,4,14,16,6,9,193,107,0,11,108,73,4,8]
[null,"$40,000 to $44,999",83,94,356,156,51,35,16,26,60,90,2,6,6,6,26,24,38,38,131,79,16,14,75,53,0,11]
[null,"$45,000 to $49,999",54,71,395,177,71,57,72,90,15,24,3,5,12,10,12,19,5,8,321,167,5,8,67,56,75,48]
[null,"$50,000 to $59,999",11,19,395,141,61,37,37,44,57,49,3,6,16,17,64,44,6,9,299,121,27,28,92,65,20,24]
[null,"$60,000 to $74,999",64,63,527,169,74,44,96,101,17,27,8,8,16,11,45,34,46,32,511,179,40,34,145,92,0,11]
[null,"$75,000 to $99,999",142,132,701,198,70,61,70,65,107,76,10,11,15,12,13,15,17,16,545,182,13,14,79,58,7,11]
[null,"$100,000 to $124,999",96,71,352,137,58,36,18,30,187,136,3,6,12,14,0,11,12,14,195,142,31,27,15,23,18,16]
[null,"$125,000 to $149,999",15,24,180,93,9,9,15,25,0,11,5,8,3,5,0,11,0,11,42,40,18,17,32,47,17,17]
[null,"$150,000 to $199,999",15,24,101,64,62,46,0,16,0,11,0,11,0,11,6,11,0,11,47,42,0,11,0,18,7,12]
[null,"$200,000 or more",0,16,104,69,11,17,0,16,0,11,2,5,3,4,8,12,0,11,29,28,0,11,0,18,0,11]
[]
[]
[null,"B19112. MEDIAN NON-FAMILY INCOME IN THE PAST 12 MONTHS (IN 2017 INFLATION-ADJUSTED DOLLARS)"]
[null,"Universe:  FAMILIES"]
[null,"Data Set: 2013-2017 American Community Survey 5-Year Estimates"]
[]
[null,null,"Barrington",null,"Dover",null,"Durham",null,"Farmington",null,"Lee",null,"Madbury",null,"Middleton",null,"Milton",null,"New Durham",null,"Rochester",null,"Rollinsford",null,"Somersworth",null,"Strafford"]
[null,null,"Estimate","Margin Of Error","Estimate","Margin Of Error","Estimate","Margin Of Error","Estimate","Margin Of Error","Estimate","Margin Of Error","Estimate","Margin Of Error","Estimate","Margin Of Error","Estimate","Margin Of Error","Estimate","Margin Of Error","Estimate","Margin Of Error","Estimate","Margin Of Error","Estimate","Margin Of Error","Estimate","Margin Of Error"]
[null,"Median family income in the past 12 months",37644,17304,42448,4982,26411,3244,33750,10796,87684,27341,37955,9055,45536,17365,38906,26315,41989,6410,33317,3671,32426,21633,33293,9177,39063,25908]
[]
[]
[null,"B19102. NON-FAMILY INCOME IN THE PAST 12 MONTHS (IN 2012 INFLATION-ADJUSTED DOLLARS)"]
[null,"Universe:  FAMILIES"]
[null,"Data Set: 2008-2012 American Community Survey 5-Year Estimates"]
[]
[null,null,"Barrington",null,"Dover",null,"Durham",null,"Farmington",null,"Lee",null,"Madbury",null,"Middleton",null,"Milton",null,"New Durham",null,"Rochester",null,"Rollinsford",null,"Somersworth",null,"Strafford"]
[null,null,"Estimate","Margin Of Error","Estimate","Margin Of Error","Estimate","Margin Of Error","Estimate","Margin Of Error","Estimate","Margin Of Error","Estimate","Margin Of Error","Estimate","Margin Of Error","Estimate","Margin Of Error","Estimate","Margin Of Error","Estimate","Margin Of Error","Estimate","Margin Of Error","Estimate","Margin Of Error","Estimate","Margin Of Error"]
[null,"Total:",579,173,5396,439,1383,243,853,220,657,179,159,55,151,44,389,127,239,72,4896,471,307,74,1517,292,181,73]
[null,"Less than $10,000",29,35,505,176,509,145,6,10,141,94,13,19,14,16,38,36,10,10,376,154,20,26,235,99,0,11]
[null,"$10,000 to $14,999",15,24,384,126,107,67,162,110,50,69,8,9,14,13,69,45,11,13,683,166,36,25,167,81,8,14]
[null,"$15,000 to $19,999",13,20,268,116,163,63,113,76,36,44,5,7,7,6,21,33,27,29,303,115,52,43,87,49,0,11]
[null,"$20,000 to $24,999",40,35,559,165,92,57,79,50,25,40,19,22,15,17,35,31,4,6,328,138,46,30,64,48,28,27]
[null,"$25,000 to $29,999",84,55,433,155,20,25,11,19,56,66,6,9,27,19,45,45,13,14,493,178,36,37,73,80,12,18]
[null,"$30,000 to $34,999",47,46,457,176,56,49,129,107,11,18,26,25,9,8,12,20,12,12,385,187,21,28,94,71,5,8]
[null,"$35,000 to $39,999",29,31,193,86,56,39,8,13,42,50,6,7,10,11,16,23,5,8,242,98,4,7,102,74,0,11]
[null,"$40,000 to $44,999",8,14,388,141,24,22,45,62,37,42,4,6,18,15,7,11,12,12,309,122,0,11,98,80,0,11]
[null,"$45,000 to $49,999",51,57,307,152,47,47,41,43,16,26,7,12,9,10,0,11,17,14,336,108,18,16,243,136,17,19]
[null,"$50,000 to $59,999",44,44,484,149,115,91,111,94,25,30,5,7,10,8,0,11,23,28,568,212,30,25,68,46,20,22]
[null,"$60,000 to $74,999",44,40,492,166,56,35,79,79,79,66,32,29,3,4,58,48,14,22,272,112,17,12,85,65,3,7]
[null,"$75,000 to $99,999",95,77,386,120,51,37,44,37,24,37,16,19,10,9,57,48,28,18,284,118,22,26,148,75,25,25]
[null,"$100,000 to $124,999",13,21,214,101,20,20,17,29,36,33,3,6,3,5,31,38,4,6,182,92,5,7,0,18,12,19]
[null,"$125,000 to $149,999",45,69,126,100,0,18,0,16,16,26,3,4,0,11,0,11,31,19,47,41,0,11,12,20,31,41]
[null,"$150,000 to $199,999",22,28,173,102,19,22,8,13,63,80,3,5,0,11,0,11,22,34,88,61,0,11,27,31,0,11]
[null,"$200,000 or more",0,16,27,25,48,44,0,16,0,11,3,6,2,5,0,11,6,9,0,21,0,11,14,22,20,25]
[]
[]
[null,"B19112. MEDIAN NON-FAMILY INCOME IN THE PAST 12 MONTHS (IN 2012 INFLATION-ADJUSTED DOLLARS)"]
[null,"Universe:  FAMILIES"]
[null,"Data Set: 2008-2012 American Community Survey 5-Year Estimates"]
[]
[null,null,"Barrington",null,"Dover",null,"Durham",null,"Farmington",null,"Lee",null,"Madbury",null,"Middleton",null,"Milton",null,"New Durham",null,"Rochester",null,"Rollinsford",null,"Somersworth",null,"Strafford"]
[null,null,"Estimate","Margin Of Error","Estimate","Margin Of Error","Estimate","Margin Of Error","Estimate","Margin Of Error","Estimate","Margin Of Error","Estimate","Margin Of Error","Estimate","Margin Of Error","Estimate","Margin Of Error","Estimate","Margin Of Error","Estimate","Margin Of Error","Estimate","Margin Of Error","Estimate","Margin Of Error","Estimate","Margin Of Error"]
[null,"Median family income in the past 12 months",47634,15461,36797,6226,17484,3569,32392,3965,35565,15061,38542,19340,29375,6667,29112,10485,53828,20341,33578,2817,24750,8806,36528,7880,70417,46799]

{"sheet":"ACS_Table_B19049","index":33,"n_rows":56,"n_cols":28,"rows_kept":56,"cut":false,"hidden":true,"merged":[]}
[null,"B19049. MEDIAN HOUSEHOLD INCOME IN THE PAST 12 MONTHS (IN 2022 INFLATION-ADJUSTED DOLLARS) BY AGE OF HOUSEHOLDER "]
[null,"Universe:  HOUSEHOLDS"]
[null,"Data Set: 2018-2022 American Community Survey 5-Year Estimates"]
[]
[null,null,"Barrington",null,"Dover",null,"Durham",null,"Farmington",null,"Lee",null,"Madbury",null,"Middleton",null,"Milton",null,"New Durham",null,"Rochester",null,"Rollinsford",null,"Somersworth",null,"Strafford"]
[null,null,"Estimate","Margin Of Error","Estimate","Margin Of Error","Estimate","Margin Of Error","Estimate","Margin Of Error","Estimate","Margin Of Error","Estimate","Margin Of Error","Estimate","Margin Of Error","Estimate","Margin Of Error","Estimate","Margin Of Error","Estimate","Margin Of Error","Estimate","Margin Of Error","Estimate","Margin Of Error","Estimate","Margin Of Error"]
[null,"Median household income in the past 12 months"]
[null,"Total:",103258,22137,90844,4117,98190,15700,60978,12598,116350,31452,165583,24504,94300,13102,86534,21410,97000,14889,74882,5100,81184,16109,75841,2671,133889,26784]
[null,"Householder under 25 years","-","**",58559,7314,17326,8591,"-","**","-","**","-","**","-","**","-","**","-","**",77521,14008,"-","**",52963,45304,"-","**"]
[null,"Householder 25 to 44 years",102644,25163,106100,20208,132292,34923,51184,22402,149605,57008,199375,82068,113409,7721,110789,42503,92143,49802,83730,10733,107969,10189,88510,30273,146429,20433]
[null,"Householder 45 to 64 years",120859,14398,107712,13915,185658,40248,89127,20702,116500,34608,177083,47651,102500,23898,112054,33373,133661,19627,98139,16293,120500,42615,76726,4952,149000,23330]
[null,"Householder 65 years and over",60446,34902,57386,11039,93258,19837,42500,25854,91067,31198,91500,10515,57841,15037,50357,19099,80652,44072,41316,8233,56250,24862,59896,15183,61116,5690]
[]
[]
[]
[]
[]
[]
[]
[]
[]
[]
[]
[]
[]
[]
[]
[]
[]
[null,"B19049. MEDIAN HOUSEHOLD INCOME IN THE PAST 12 MONTHS (IN 2017 INFLATION-ADJUSTED DOLLARS) BY AGE OF HOUSEHOLDER "]
[null,"Universe:  HOUSEHOLDS"]
[null,"Data Set: 2013-2017 American Community Survey 5-Year Estimates"]
[]
[null,null,"Barrington",null,"Dover",null,"Durham",null,"Farmington",null,"Lee",null,"Madbury",null,"Middleton",null,"Milton",null,"New Durham",null,"Rochester",null,"Rollinsford",null,"Somersworth",null,"Strafford"]
[null,null,"Estimate","Margin Of Error","Estimate","Margin Of Error","Estimate","Margin Of Error","Estimate","Margin Of Error","Estimate","Margin Of Error","Estimate","Margin Of Error","Estimate","Margin Of Error","Estimate","Margin Of Error","Estimate","Margin Of Error","Estimate","Margin Of Error","Estimate","Margin Of Error","Estimate","Margin Of Error","Estimate","Margin Of Error"]
[null,"Median household income in the past 12 months"]
[null,"Total:",84126,6250,65922,4150,74267,11055,60562,14580,108462,14101,105795,16697,73466,5003,67214,6246,77596,13921,55767,6283,74470,5455,62777,6047,106250,18352]
[null,"Householder under 25 years","-","**",41324,9485,20125,7779,35921,9805,"-","**","-","**",78500,30256,"-","**","-","**",70092,45446,53984,37611,"-","**",49107,28523]
[null,"Householder 25 to 44 years",118523,46215,74430,8866,91438,16401,72823,31168,118640,6784,132955,19273,84583,14304,63750,19907,86071,29922,66848,11919,85417,22974,67900,13424,128281,48907]
[null,"Householder 45 to 64 years",84672,11063,85542,6934,134957,12057,83596,17721,89067,13837,109167,29278,77000,11289,74539,19195,98409,12334,68210,7323,95625,18835,67188,8366,114511,8358]
[null,"Householder 65 years and over",44702,28808,43898,8603,85000,18463,45123,18009,110536,62605,67000,16354,41136,6765,63958,11100,54514,9089,40063,4929,47708,12582,44308,5662,47903,15308]
[]
[]
[]
[null,"B19049. MEDIAN HOUSEHOLD INCOME IN THE PAST 12 MONTHS (IN 2012 INFLATION-ADJUSTED DOLLARS) BY AGE OF HOUSEHOLDER "]
[null,"Universe:  HOUSEHOLDS"]
[null,"Data Set: 2008-2012 American Community Survey 5-Year Estimates"]
[]
[null,null,"Barrington",null,"Dover",null,"Durham",null,"Farmington",null,"Lee",null,"Madbury",null,"Middleton",null,"Milton",null,"New Durham",null,"Rochester",null,"Rollinsford",null,"Somersworth",null,"Strafford"]
[null,null,"Estimate","Margin Of Error","Estimate","Margin Of Error","Estimate","Margin Of Error","Estimate","Margin Of Error","Estimate","Margin Of Error","Estimate","Margin Of Error","Estimate","Margin Of Error","Estimate","Margin Of Error","Estimate","Margin Of Error","Estimate","Margin Of Error","Estimate","Margin Of Error","Estimate","Margin Of Error","Estimate","Margin Of Error"]
[null,"Median household income in the past 12 months"]
[null,"Total:",81714,7363,55890,3014,72176,13879,55451,7770,74873,9840,82500,14547,55703,8555,59467,6719,80511,8678,49366,2913,63605,8576,53354,7713,85682,15781]
[null,"Householder under 25 years",29940,66440,34473,11654,10000,2997,33667,19683,29179,17614,30333,44660,21719,14715,55625,41658,"-","**",29904,8173,25729,12163,48000,8717,"-","**"]
[null,"Householder 25 to 44 years",81045,9684,61850,6409,113456,12478,68452,13130,74107,22396,90000,29542,61563,18312,75096,5766,105398,15396,51698,6319,66447,30058,70455,9774,65625,13327]
[null,"Householder 45 to 64 years",90000,10412,71431,6509,114044,19562,62500,7421,111364,34721,96607,19707,60729,5953,61546,9054,88958,13450,60116,4851,81364,18884,52891,14407,95980,6073]
[null,"Householder 65 years and over",63750,22290,37371,4874,67212,21523,34063,20512,55509,14610,53125,55391,39583,9858,36250,11500,43068,11524,37195,2890,45772,6651,34904,13700,61941,18196]

{"sheet":"ACS_Table_B25118","index":34,"n_rows":191,"n_cols":76,"rows_kept":191,"cut":false,"hidden":true,"merged":[]}
[null,"B25118. TENURE BY HOUSEHOLD INCOME IN THE PAST 12 MONTHS (IN 2022 INFLATION-ADJUSTED DOLLARS) "]
[null,"Universe:  OCCUPIED HOUSING UNITS"]
[null,"Data Set: 2018-2022 American Community Survey 5-Year Estimates"]
[]
[null,null,"Barrington",null,"Dover",null,"Durham",null,"Farmington",null,"Lee",null,"Madbury",null,"Middleton",null,"Milton",null,"New Durham",null,"Rochester",null,"Rollinsford",null,"Somersworth",null,"Strafford"]
[null,null,"Estimate","Margin Of Error","Estimate","Margin Of Error","Estimate","Margin Of Error","Estimate","Margin Of Error","Estimate","Margin Of Error","Estimate","Margin Of Error","Estimate","Margin Of Error","Estimate","Margin Of Error","Estimate","Margin Of Error","Estimate","Margin Of Error","Estimate","Margin Of Error","Estimate","Margin Of Error","Estimate","Margin Of Error",null,null,null,null,null,null,null,null,null,null,null,null,null,null,null,null,null,null,null,null,null,null,null,null,null,null,null,null,null,null,null,null,null,null,null,null,null,null,null,null,"Estimate","Margin Of Error","Estimate","Margin Of Error","Estimate","Margin Of Error","Estimate","Margin Of Error"]
[null,"Total:",3401,227,14606,524,3000,226,2911,264,1839,183,688,80,556,90,1664,125,1004,107,13542,419,1070,112,5232,318,1440,98,null,null,null,null,null,null,null,null,null,null,null,null,null,null,null,null,null,null,null,null,null,null,null,null,null,null,null,null,null,null,null,null,null,null,null,null,null,null,null,null,3846,231,321,42,2717,107,4364,175]
[null,"Owner occupied:",3074,266,7585,556,1857,246,2024,274,1672,189,558,91,522,88,1452,134,911,97,8933,466,868,116,3388,318,1343,94,null,null,null,null,null,null,null,null,null,null,null,null,null,null,null,null,null,null,null,null,null,null,null,null,null,null,null,null,null,null,null,null,null,null,null,null,null,null,null,null,2686,223,288,36,2540,143,4088,189]
[null,"Less than $5,000",24,38,57,47,28,34,92,73,0,12,8,10,2,5,19,22,19,18,96,59,17,27,50,68,18,17,null,null,null,null,null,null,null,null,null,null,null,null,null,null,null,null,null,null,null,null,null,null,null,null,null,null,null,null,null,null,null,null,null,null,null,null,null,null,null,null,12,18,2,5,14,23,44,55]
[null,"$5,000 to $9,999",0,17,15,25,5,8,50,61,0,12,5,6,0,12,0,12,22,26,35,35,17,27,13,23,0,12,null,null,null,null,null,null,null,null,null,null,null,null,null,null,null,null,null,null,null,null,null,null,null,null,null,null,null,null,null,null,null,null,null,null,null,null,null,null,null,null,11,18,6,7,11,20,14,22]
[null,"$10,000 to $14,999",77,99,88,116,31,41,22,36,0,12,0,12,6,7,10,15,20,13,293,157,0,12,59,70,30,38,null,null,null,null,null,null,null,null,null,null,null,null,null,null,null,null,null,null,null,null,null,null,null,null,null,null,null,null,null,null,null,null,null,null,null,null,null,null,null,null,41,38,7,7,9,15,41,32]
[null,"$15,000 to $19,999",11,18,113,67,0,19,25,40,0,12,3,5,13,16,26,34,4,6,186,81,3,5,64,81,5,9,null,null,null,null,null,null,null,null,null,null,null,null,null,null,null,null,null,null,null,null,null,null,null,null,null,null,null,null,null,null,null,null,null,null,null,null,null,null,null,null,207,100,11,9,29,32,42,44]
[null,"$20,000 to $24,999",64,60,101,96,0,19,19,29,42,48,3,4,19,13,51,41,18,18,265,96,61,79,33,38,0,12,null,null,null,null,null,null,null,null,null,null,null,null,null,null,null,null,null,null,null,null,null,null,null,null,null,null,null,null,null,null,null,null,null,null,null,null,null,null,null,null,215,104,9,8,43,43,85,61]
[null,"$25,000 to $34,999",290,141,447,221,54,50,76,64,14,21,12,12,22,12,96,72,44,32,625,203,36,34,97,65,43,23,null,null,null,null,null,null,null,null,null,null,null,null,null,null,null,null,null,null,null,null,null,null,null,null,null,null,null,null,null,null,null,null,null,null,null,null,null,null,null,null,249,113,22,11,143,73,192,78]
[null,"$35,000 to $49,999",240,149,328,156,84,47,289,223,109,69,12,14,52,28,43,35,41,19,798,218,25,18,366,132,82,47,null,null,null,null,null,null,null,null,null,null,null,null,null,null,null,null,null,null,null,null,null,null,null,null,null,null,null,null,null,null,null,null,null,null,null,null,null,null,null,null,398,139,40,32,98,61,241,81]
[null,"$50,000 to $74,999",394,162,823,204,80,45,441,161,355,178,14,12,81,30,362,127,96,61,1259,245,120,60,648,222,165,75,null,null,null,null,null,null,null,null,null,null,null,null,null,null,null,null,null,null,null,null,null,null,null,null,null,null,null,null,null,null,null,null,null,null,null,null,null,null,null,null,570,177,28,14,345,110,497,122]
[null,"$75,000 to $99,999",296,130,822,207,241,97,207,108,183,112,44,22,65,29,131,80,158,56,1474,307,163,79,730,289,153,71,null,null,null,null,null,null,null,null,null,null,null,null,null,null,null,null,null,null,null,null,null,null,null,null,null,null,null,null,null,null,null,null,null,null,null,null,null,null,null,null,387,140,37,16,442,115,531,137]
[null,"$100,000 to $149,999",778,201,1592,348,309,101,466,182,421,163,79,37,174,60,413,121,196,62,2152,318,190,69,579,181,292,90,null,null,null,null,null,null,null,null,null,null,null,null,null,null,null,null,null,null,null,null,null,null,null,null,null,null,null,null,null,null,null,null,null,null,null,null,null,null,null,null,462,164,58,24,687,127,1129,161]
[null,"$150,000 or more",900,177,3199,322,1025,190,337,168,548,145,378,79,88,33,301,89,293,71,1750,317,236,68,749,221,555,114,null,null,null,null,null,null,null,null,null,null,null,null,null,null,null,null,null,null,null,null,null,null,null,null,null,null,null,null,null,null,null,null,null,null,null,null,null,null,null,null,134,106,68,26,719,143,1272,162]
[null,"Renter occupied:",327,147,7021,521,1143,175,887,218,167,125,130,59,34,20,212,93,93,60,4609,426,202,72,1844,355,97,56,null,null,null,null,null,null,null,null,null,null,null,null,null,null,null,null,null,null,null,null,null,null,null,null,null,null,null,null,null,null,null,null,null,null,null,null,null,null,null,null,1160,200,33,30,177,114,276,108]
[null,"Less than $5,000",13,21,198,116,141,98,49,66,0,12,0,12,3,4,12,19,4,7,160,111,14,23,13,23,12,19,null,null,null,null,null,null,null,null,null,null,null,null,null,null,null,null,null,null,null,null,null,null,null,null,null,null,null,null,null,null,null,null,null,null,null,null,null,null,null,null,46,48,0,114,0,114,0,114]
[null,"$5,000 to $9,999",0,17,60,49,57,44,0,17,51,80,0,12,0,12,6,10,0,12,140,97,0,12,22,28,0,12,null,null,null,null,null,null,null,null,null,null,null,null,null,null,null,null,null,null,null,null,null,null,null,null,null,null,null,null,null,null,null,null,null,null,null,null,null,null,null,null,16,28,0,114,18,29,0,114]
[null,"$10,000 to $14,999",0,17,477,195,129,86,228,151,0,12,0,12,0,12,15,24,0,12,399,230,20,24,124,110,0,12,null,null,null,null,null,null,null,null,null,null,null,null,null,null,null,null,null,null,null,null,null,null,null,null,null,null,null,null,null,null,null,null,null,null,null,null,null,null,null,null,105,73,0,114,0,114,29,21]
[null,"$15,000 to $19,999",0,17,277,168,68,66,9,14,0,12,0,12,5,9,0,12,0,12,338,174,16,23,42,40,0,12,null,null,null,null,null,null,null,null,null,null,null,null,null,null,null,null,null,null,null,null,null,null,null,null,null,null,null,null,null,null,null,null,null,null,null,null,null,null,null,null,260,142,0,114,34,49,31,49]
[null,"$20,000 to $24,999",0,17,142,88,54,46,15,24,0,12,3,4,0,12,20,25,6,8,285,110,0,12,202,215,0,12,null,null,null,null,null,null,null,null,null,null,null,null,null,null,null,null,null,null,null,null,null,null,null,null,null,null,null,null,null,null,null,null,null,null,null,null,null,null,null,null,25,29,0,114,0,114,21,31]
[null,"$25,000 to $34,999",29,46,601,223,58,36,215,121,15,23,2,4,0,12,15,23,14,10,527,276,39,35,241,177,0,12,null,null,null,null,null,null,null,null,null,null,null,null,null,null,null,null,null,null,null,null,null,null,null,null,null,null,null,null,null,null,null,null,null,null,null,null,null,null,null,null,84,59,2,3,0,114,0,114]
[null,"$35,000 to $49,999",128,109,1057,285,176,104,176,108,34,38,8,10,13,14,58,47,0,12,466,227,23,27,127,109,17,19,null,null,null,null,null,null,null,null,null,null,null,null,null,null,null,null,null,null,null,null,null,null,null,null,null,null,null,null,null,null,null,null,null,null,null,null,null,null,null,null,229,115,0,114,0,114,67,60]
[null,"$50,000 to $74,999",43,48,1346,337,207,133,136,115,17,28,42,40,3,4,18,21,40,48,909,234,20,14,409,245,62,48,null,null,null,null,null,null,null,null,null,null,null,null,null,null,null,null,null,null,null,null,null,null,null,null,null,null,null,null,null,null,null,null,null,null,null,null,null,null,null,null,293,141,25,31,0,114,40,49]
[null,"$75,000 to $99,999",59,52,1007,271,108,52,22,37,0,12,29,32,7,10,8,14,24,31,508,186,33,38,294,173,0,12,null,null,null,null,null,null,null,null,null,null,null,null,null,null,null,null,null,null,null,null,null,null,null,null,null,null,null,null,null,null,null,null,null,null,null,null,null,null,null,null,92,69,6,6,72,81,19,21]
[null,"$100,000 to $149,999",55,57,840,214,54,37,37,57,50,75,43,27,0,12,53,63,0,12,500,180,31,27,221,134,6,9,null,null,null,null,null,null,null,null,null,null,null,null,null,null,null,null,null,null,null,null,null,null,null,null,null,null,null,null,null,null,null,null,null,null,null,null,null,null,null,null,10,17,0,114,53,51,20,24]
[null,"$150,000 or more",0,17,1016,318,91,52,0,17,0,12,3,6,3,4,7,11,5,7,377,177,6,10,149,114,0,12,null,null,null,null,null,null,null,null,null,null,null,null,null,null,null,null,null,null,null,null,null,null,null,null,null,null,null,null,null,null,null,null,null,null,null,null,null,null,null,null,0,114,0,114,0,114,49,50]
[]
[]
[]
[]
[]
[null,{"$f":"\"Calculated \"&B1","v":"Calculated B25118. TENURE BY HOUSEHOLD INCOME IN THE PAST 12 MONTHS (IN 2022 INFLATION-ADJUSTED DOLLARS) "}]
[null,"Universe:  OCCUPIED HOUSING UNITS"]
[null,{"$f":"$B$3","v":"Data Set: 2018-2022 American Community Survey 5-Year Estimates"}]
[null,null,"Barrington",null,"Dover",null,"Durham",null,"Farmington",null,"Lee",null,"Madbury",null,"Middleton",null,"Milton",null,"New Durham",null,"Rochester",null,"Rollinsford",null,"Somersworth",null,"Strafford"]
[null,null,"Estimate","Margin Of Error","Estimate","Margin Of Error","Estimate","Margin Of Error","Estimate","Margin Of Error","Estimate","Margin Of Error","Estimate","Margin Of Error","Estimate","Margin Of Error","Estimate","Margin Of Error","Estimate","Margin Of Error","Estimate","Margin Of Error","Estimate","Margin Of Error","Estimate","Margin Of Error","Estimate","Margin Of Error",null,null,null,null,null,null,null,null,null,null,null,null,null,null,null,null,null,null,null,null,null,null,null,null,null,null,null,null,null,null,null,null,null,null,null,null,null,null,null,null,"Estimate","Margin Of Error","Estimate","Margin Of Error","Estimate","Margin Of Error","Estimate","Margin Of Error"]
[null,{"$f":"B7","v":"Total:"},3401,227,14606,524,3000,226,2911,264,1839,183,688,80,556,90,1664,125,1004,107,13542,419,1070,112,{"$f":"Y7","v":5232},{"$f":"Z7","v":318},{"$f":"AA7","v":1440},{"$f":"AB7","v":98}]
[null,"Less than $5,000",{"$f":"C9+C21","v":37},{"$f":"SQRT((D9^2)+(D21^2))","v":43.416586692184822},{"$f":"E9+E21","v":255},{"$f":"SQRT((F9^2)+(F21^2))","v":125.15989773086265},{"$f":"G9+G21","v":169},{"$f":"SQRT((H9^2)+(H21^2))","v":103.73041983911952},{"$f":"I9+I21","v":141},{"$f":"SQRT((J9^2)+(J21^2))","v":98.412397592986224},{"$f":"K9+K21","v":0},{"$f":"SQRT((L9^2)+(L21^2))","v":16.970562748477139},{"$f":"M9+M21","v":8},{"$f":"SQRT((N9^2)+(N21^2))","v":15.620499351813308},{"$f":"O9+O21","v":5},{"$f":"SQRT((P9^2)+(P21^2))","v":6.4031242374328485},{"$f":"Q9+Q21","v":31},{"$f":"SQRT((R9^2)+(R21^2))","v":29.068883707497267},{"$f":"S9+S21","v":23},{"$f":"SQRT((T9^2)+(T21^2))","v":19.313207915827967},{"$f":"U9+U21","v":256},{"$f":"SQRT((V9^2)+(V21^2))","v":125.70600622086441},{"$f":"W9+W21","v":31},{"$f":"SQRT((X9^2)+(X21^2))","v":35.468295701936398},{"$f":"Y9+Y21","v":63},{"$f":"SQRT((Z9^2)+(Z21^2))","v":71.784399419372448},{"$f":"AA9+AA21","v":30},{"$f":"SQRT((AB9^2)+(AB21^2))","v":25.495097567963924}]
[null,"$5,000 to $9,999",{"$f":"C10+C22","v":0},{"$f":"SQRT((D10^2)+(D22^2))","v":24.041630560342615},{"$f":"E10+E22","v":75},55.009090157900268,{"$f":"G10+G22","v":62},44.721359549995796,{"$f":"I10+I22","v":50},63.324560795950255,{"$f":"K10+K22","v":51},80.894993664626739,{"$f":"M10+M22","v":5},13.416407864998739,{"$f":"O10+O22","v":0},16.970562748477139,{"$f":"Q10+Q22","v":6},15.620499351813308,22,28.635642126552707,175,103.12128781197411,17,29.546573405388315,35,36.235341863986875,0,16.970562748477139]
[null,"$10,000 to $14,999",{"$f":"C11+C23","v":77},100.44899203078147,{"$f":"E11+E23","v":565},226.8942484947558,{"$f":"G11+G23","v":160},95.273291115611201,{"$f":"I11+I23","v":250},155.23208431248997,{"$f":"K11+K23","v":0},16.970562748477139,{"$f":"M11+M23","v":0},16.970562748477139,{"$f":"O11+O23","v":6},13.892443989449804,{"$f":"Q11+Q23","v":25},28.301943396169811,20,17.691806012954132,692,278.47621083316972,20,26.832815729997478,183,130.38404810405297,30,39.849717690342551]
[null,"$15,000 to $19,999",{"$f":"C12+C24","v":11},24.758836806279895,390,180.86735471057236,68,68.680419334771102,34,42.379240200834182,0,16.970562748477139,3,13,18,18.357559750685819,26,36.055512754639892,4,13.416407864998739,524,191.92967462067975,19,23.53720459187964,106,90.338253248554679,5,15]
[null,"$20,000 to $24,999",64,62.361847310675458,243,130.23056476879765,54,49.769468552517218,34,37.643060449437421,42,49.477267507411923,6,5.6568542494923806,19,17.691806012954132,71,48.020828814171878,24,19.697715603592208,550,146,61,79.906195003891909,235,218.3323155192561,0,16.970562748477139]
[null,"$25,000 to $34,999",319,148.31385639919151,1048,313.95859599635111,112,61.611687202997452,291,136.88316185711082,29,31.144823004794873,14,12.649110640673518,22,16.970562748477139,111,75.584389922787622,58,33.526109228480422,1152,342.61494421580619,75,48.795491595023407,338,188.55768348173987,43,25.942243542145693]
[null,"$35,000 to $49,999",368,184.61310896033359,1385,324.90152354213421,260,114.12712210513327,465,247.7761086142084,143,78.771822373231913,20,17.204650534085253,65,31.304951684997057,101,58.600341295934449,41,22.472205054244231,1264,314.7268657105713,48,32.449961479175904,493,171.18703221914913,99,50.695167422546305]
[null,"$50,000 to $74,999",437,168.96153408394468,2169,393.93527387122873,287,140.40655255364686,577,197.85348114198041,372,180.18878988438766,56,41.761226035642203,84,30.265491900843113,380,128.72451204024819,136,77.620873481300123,2168,338.7934473982636,140,61.611687202997452,1057,330.61911620473489,227,89.044932477934978]
[null,"$75,000 to $99,999",355,140.01428498549711,1829,341.01319622560061,349,110.05907504608605,229,114.16216536138407,183,112.64102272262978,73,38.832975677895199,72,30.675723300355934,139,81.21576201698781,182,64.007812023221035,1982,358.94985722242598,196,87.664131775772461,1024,336.82339586198583,153,72.006944109578768]
[null,"$100,000 to $149,999",833,208.92582415776178,2432,408.53396431630995,363,107.56393447619885,503,190.71706793048176,471,179.42686532400882,122,45.803929962395145,174,61.188234163113421,466,136.41847382227965,196,63.150613615387776,2652,365.40935948604272,221,74.094534211370814,800,225.20435164534453,298,90.44888059008801]
[null,"$150,000 or more",900,177.81451009408653,{"$f":"E19+E31","v":4215},452.55717870784019,1116,196.98730923589977,337,168.85792844874061,548,145.49570440394453,381,79.227520471109031,91,33.241540277189323,308,89.677198885781436,298,71.344235926947874,2127,363.06748683956818,242,68.731361109758325,898,248.67046467162118,555,114.62983904725679]
[]
[]
[]
[]
[]
[]
[]
[]
[]
[]
[]
[]
[]
[]
[]
[]
[null,"B25118. TENURE BY HOUSEHOLD INCOME IN THE PAST 12 MONTHS (IN 2017 INFLATION-ADJUSTED DOLLARS) "]
[null,"Universe:  OCCUPIED HOUSING UNITS"]
[null,"Data Set: 2013-2017 American Community Survey 5-Year Estimates"]
[]
[null,null,"Barrington",null,"Dover",null,"Durham",null,"Farmington",null,"Lee",null,"Madbury",null,"Middleton",null,"Milton",null,"New Durham",null,"Rochester",null,"Rollinsford",null,"Somersworth",null,"Strafford"]
[null,null,"Estimate","Margin Of Error","Estimate","Margin Of Error","Estimate","Margin Of Error","Estimate","Margin Of Error","Estimate","Margin Of Error","Estimate","Margin Of Error","Estimate","Margin Of Error","Estimate","Margin Of Error","Estimate","Margin Of Error","Estimate","Margin Of Error","Estimate","Margin Of Error","Estimate","Margin Of Error","Estimate","Margin Of Error",null,null,null,null,null,null,null,null,null,null,null,null,null,null,null,null,null,null,null,null,null,null,null,null,null,null,null,null,null,null,null,null,null,null,null,null,null,null,null,null,"Estimate","Margin Of Error","Estimate","Margin Of Error","Estimate","Margin Of Error","Estimate","Margin Of Error"]
[null,"Total:",3388,209,13194,359,3325,237,2719,176,1752,139,621,60,595,70,1732,107,995,58,12837,353,1048,57,4905,237,1432,100,null,null,null,null,null,null,null,null,null,null,null,null,null,null,null,null,null,null,null,null,null,null,null,null,null,null,null,null,null,null,null,null,null,null,null,null,null,null,null,null,3846,231,321,42,2717,107,4364,175]
[null,"Owner occupied:",3118,226,7021,367,1833,175,1850,201,1450,148,538,63,499,74,1520,115,921,56,8308,395,765,74,2735,242,1287,101,null,null,null,null,null,null,null,null,null,null,null,null,null,null,null,null,null,null,null,null,null,null,null,null,null,null,null,null,null,null,null,null,null,null,null,null,null,null,null,null,2686,223,288,36,2540,143,4088,189]
[null,"Less than $5,000",120,137,58,42,8,11,0,16,0,11,2,4,9,7,7,11,5,8,72,48,0,11,0,18,28,26,null,null,null,null,null,null,null,null,null,null,null,null,null,null,null,null,null,null,null,null,null,null,null,null,null,null,null,null,null,null,null,null,null,null,null,null,null,null,null,null,12,18,2,5,14,23,44,55]
[null,"$5,000 to $9,999",0,16,104,97,5,7,13,23,0,11,0,11,8,7,7,11,5,7,108,72,5,9,0,18,18,21,null,null,null,null,null,null,null,null,null,null,null,null,null,null,null,null,null,null,null,null,null,null,null,null,null,null,null,null,null,null,null,null,null,null,null,null,null,null,null,null,11,18,6,7,11,20,14,22]
[null,"$10,000 to $14,999",72,76,114,65,0,18,53,77,0,11,2,4,13,10,53,50,6,8,198,87,0,11,84,56,0,11,null,null,null,null,null,null,null,null,null,null,null,null,null,null,null,null,null,null,null,null,null,null,null,null,null,null,null,null,null,null,null,null,null,null,null,null,null,null,null,null,41,38,7,7,9,15,41,32]
[null,"$15,000 to $19,999",110,108,162,99,0,18,0,16,0,11,5,6,6,6,28,27,18,15,290,147,16,14,30,34,44,42,null,null,null,null,null,null,null,null,null,null,null,null,null,null,null,null,null,null,null,null,null,null,null,null,null,null,null,null,null,null,null,null,null,null,null,null,null,null,null,null,207,100,11,9,29,32,42,44]
[null,"$20,000 to $24,999",106,130,160,74,29,28,151,84,13,19,3,5,10,8,47,45,0,11,423,144,24,17,44,42,9,14,null,null,null,null,null,null,null,null,null,null,null,null,null,null,null,null,null,null,null,null,null,null,null,null,null,null,null,null,null,null,null,null,null,null,null,null,null,null,null,null,215,104,9,8,43,43,85,61]
[null,"$25,000 to $34,999",174,120,421,162,45,29,95,62,57,68,38,29,32,20,80,57,78,46,679,151,46,30,97,56,86,54,null,null,null,null,null,null,null,null,null,null,null,null,null,null,null,null,null,null,null,null,null,null,null,null,null,null,null,null,null,null,null,null,null,null,null,null,null,null,null,null,249,113,22,11,143,73,192,78]
[null,"$35,000 to $49,999",245,128,565,169,71,47,190,97,59,53,39,22,52,16,215,82,103,41,1133,238,41,21,363,116,79,42,null,null,null,null,null,null,null,null,null,null,null,null,null,null,null,null,null,null,null,null,null,null,null,null,null,null,null,null,null,null,null,null,null,null,null,null,null,null,null,null,398,139,40,32,98,61,241,81]
[null,"$50,000 to $74,999",447,157,1010,215,213,66,322,127,207,104,60,27,110,33,371,97,215,53,1577,259,179,50,748,199,160,60,null,null,null,null,null,null,null,null,null,null,null,null,null,null,null,null,null,null,null,null,null,null,null,null,null,null,null,null,null,null,null,null,null,null,null,null,null,null,null,null,570,177,28,14,345,110,497,122]
[null,"$75,000 to $99,999",355,164,1252,242,242,84,303,121,197,94,70,27,95,32,181,58,139,43,1764,301,97,34,444,127,115,46,null,null,null,null,null,null,null,null,null,null,null,null,null,null,null,null,null,null,null,null,null,null,null,null,null,null,null,null,null,null,null,null,null,null,null,null,null,null,null,null,387,140,37,16,442,115,531,137]
[null,"$100,000 to $149,999",572,208,1786,269,448,117,493,167,504,171,138,41,100,32,403,116,177,47,1321,259,195,47,627,182,446,116,null,null,null,null,null,null,null,null,null,null,null,null,null,null,null,null,null,null,null,null,null,null,null,null,null,null,null,null,null,null,null,null,null,null,null,null,null,null,null,null,462,164,58,24,687,127,1129,161]
[null,"$150,000 or more",917,266,1389,233,772,135,230,109,413,122,181,48,64,28,128,65,175,57,743,152,162,45,298,102,302,79,null,null,null,null,null,null,null,null,null,null,null,null,null,null,null,null,null,null,null,null,null,null,null,null,null,null,null,null,null,null,null,null,null,null,null,null,null,null,null,null,134,106,68,26,719,143,1272,162]
[null,"Renter occupied:",270,160,6173,387,1492,188,869,263,302,146,83,29,96,35,212,74,74,47,4529,385,283,71,2170,282,145,52,null,null,null,null,null,null,null,null,null,null,null,null,null,null,null,null,null,null,null,null,null,null,null,null,null,null,null,null,null,null,null,null,null,null,null,null,null,null,null,null,1160,200,33,30,177,114,276,108]
[null,"Less than $5,000",0,16,199,119,165,102,16,27,0,11,4,6,0,11,0,11,0,11,108,79,12,18,179,136,0,11,null,null,null,null,null,null,null,null,null,null,null,null,null,null,null,null,null,null,null,null,null,null,null,null,null,null,null,null,null,null,null,null,null,null,null,null,null,null,null,null,46,48,0,114,0,114,0,114]
[null,"$5,000 to $9,999",0,16,174,75,141,56,0,16,0,11,4,6,0,11,0,11,20,26,415,225,0,11,54,52,0,11,null,null,null,null,null,null,null,null,null,null,null,null,null,null,null,null,null,null,null,null,null,null,null,null,null,null,null,null,null,null,null,null,null,null,null,null,null,null,null,null,16,28,0,114,18,29,0,114]
[null,"$10,000 to $14,999",86,105,473,148,188,95,84,109,0,11,3,5,3,4,52,56,0,11,312,137,30,26,125,109,0,11,null,null,null,null,null,null,null,null,null,null,null,null,null,null,null,null,null,null,null,null,null,null,null,null,null,null,null,null,null,null,null,null,null,null,null,null,null,null,null,null,105,73,0,114,0,114,29,21]
[null,"$15,000 to $19,999",0,16,342,129,137,70,91,96,49,78,0,11,10,15,7,11,0,11,467,178,9,13,113,73,0,11,null,null,null,null,null,null,null,null,null,null,null,null,null,null,null,null,null,null,null,null,null,null,null,null,null,null,null,null,null,null,null,null,null,null,null,null,null,null,null,null,260,142,0,114,34,49,31,49]
[null,"$20,000 to $24,999",14,25,467,177,94,58,141,120,16,25,0,11,6,6,21,32,8,14,233,118,10,11,249,134,17,26,null,null,null,null,null,null,null,null,null,null,null,null,null,null,null,null,null,null,null,null,null,null,null,null,null,null,null,null,null,null,null,null,null,null,null,null,null,null,null,null,25,29,0,114,0,114,21,31]
[null,"$25,000 to $34,999",38,48,488,192,254,97,109,109,0,11,8,9,6,7,56,55,0,11,639,198,54,40,277,161,14,22,null,null,null,null,null,null,null,null,null,null,null,null,null,null,null,null,null,null,null,null,null,null,null,null,null,null,null,null,null,null,null,null,null,null,null,null,null,null,null,null,84,59,2,3,0,114,0,114]
[null,"$35,000 to $49,999",41,69,1187,287,216,98,174,144,79,95,10,9,6,7,17,19,22,34,794,264,32,28,300,107,61,45,null,null,null,null,null,null,null,null,null,null,null,null,null,null,null,null,null,null,null,null,null,null,null,null,null,null,null,null,null,null,null,null,null,null,null,null,null,null,null,null,229,115,0,114,0,114,67,60]
[null,"$50,000 to $74,999",13,21,1416,247,105,50,147,123,55,49,27,16,40,29,43,39,17,13,649,232,73,48,513,168,53,47,null,null,null,null,null,null,null,null,null,null,null,null,null,null,null,null,null,null,null,null,null,null,null,null,null,null,null,null,null,null,null,null,null,null,null,null,null,null,null,null,293,141,25,31,0,114,40,49]
[null,"$75,000 to $99,999",63,67,777,185,84,54,76,63,40,43,18,18,21,16,16,18,7,10,512,166,56,58,260,117,0,11,null,null,null,null,null,null,null,null,null,null,null,null,null,null,null,null,null,null,null,null,null,null,null,null,null,null,null,null,null,null,null,null,null,null,null,null,null,null,null,null,92,69,6,6,72,81,19,21]
[null,"$100,000 to $149,999",15,25,504,177,50,36,31,38,63,96,9,9,4,6,0,11,0,11,342,153,0,11,76,59,0,11,null,null,null,null,null,null,null,null,null,null,null,null,null,null,null,null,null,null,null,null,null,null,null,null,null,null,null,null,null,null,null,null,null,null,null,null,null,null,null,null,10,17,0,114,53,51,20,24]
[null,"$150,000 or more",0,16,146,77,58,43,0,16,0,11,0,11,0,11,0,11,0,11,58,45,7,10,24,40,0,11,null,null,null,null,null,null,null,null,null,null,null,null,null,null,null,null,null,null,null,null,null,null,null,null,null,null,null,null,null,null,null,null,null,null,null,null,null,null,null,null,0,114,0,114,0,114,49,50]
[]
[]
[]
[]
[]
[null,{"$f":"\"Calculated \"&B70","v":"Calculated B25118. TENURE BY HOUSEHOLD INCOME IN THE PAST 12 MONTHS (IN 2017 INFLATION-ADJUSTED DOLLARS) "}]
[null,"Universe:  OCCUPIED HOUSING UNITS"]
[null,{"$f":"B72","v":"Data Set: 2013-2017 American Community Survey 5-Year Estimates"}]
[null,null,"Barrington",null,"Dover",null,"Durham",null,"Farmington",null,"Lee",null,"Madbury",null,"Middleton",null,"Milton",null,"New Durham",null,"Rochester",null,"Rollinsford",null,"Somersworth",null,"Strafford"]
[null,null,"Estimate","Margin Of Error","Estimate","Margin Of Error","Estimate","Margin Of Error","Estimate","Margin Of Error","Estimate","Margin Of Error","Estimate","Margin Of Error","Estimate","Margin Of Error","Estimate","Margin Of Error","Estimate","Margin Of Error","Estimate","Margin Of Error","Estimate","Margin Of Error","Estimate","Margin Of Error","Estimate","Margin Of Error",null,null,null,null,null,null,null,null,null,null,null,null,null,null,null,null,null,null,null,null,null,null,null,null,null,null,null,null,null,null,null,null,null,null,null,null,null,null,null,null,"Estimate","Margin Of Error","Estimate","Margin Of Error","Estimate","Margin Of Error","Estimate","Margin Of Error"]
[null,"Total:",{"$f":"C76","v":3388},209,13194,359,3325,237,2719,176,1752,139,621,60,595,70,1732,107,995,58,12837,353,1048,57,{"$f":"Y76","v":4905},{"$f":"Z76","v":237},{"$f":"AA76","v":1432},{"$f":"AB76","v":100}]
[null,"Less than $5,000",{"$f":"C78+C90","v":120},{"$f":"SQRT((D78^2)+(D90^2))","v":137.93114224133723},{"$f":"E78+E90","v":257},{"$f":"SQRT((F78^2)+(F90^2))","v":126.19429464123962},{"$f":"G78+G90","v":173},{"$f":"SQRT((H78^2)+(H90^2))","v":102.59142264341595},{"$f":"I78+I90","v":16},{"$f":"SQRT((J78^2)+(J90^2))","v":31.384709652950431},{"$f":"K78+K90","v":0},{"$f":"SQRT((L78^2)+(L90^2))","v":15.556349186104045},{"$f":"M78+M90","v":6},{"$f":"SQRT((N78^2)+(N90^2))","v":7.2111025509279782},{"$f":"O78+O90","v":9},{"$f":"SQRT((P78^2)+(P90^2))","v":13.038404810405298},{"$f":"Q78+Q90","v":7},{"$f":"SQRT((R78^2)+(R90^2))","v":15.556349186104045},{"$f":"S78+S90","v":5},{"$f":"SQRT((T78^2)+(T90^2))","v":13.601470508735444},{"$f":"U78+U90","v":180},{"$f":"SQRT((V78^2)+(V90^2))","v":92.439169187092972},{"$f":"W78+W90","v":12},{"$f":"SQRT((X78^2)+(X90^2))","v":21.095023109728988},{"$f":"Y78+Y90","v":179},{"$f":"SQRT((Z78^2)+(Z90^2))","v":137.18600511714013},{"$f":"AA78+AA90","v":28},{"$f":"SQRT((AB78^2)+(AB90^2))","v":28.231188426986208}]
[null,"$5,000 to $9,999",{"$f":"C79+C91","v":0},{"$f":"SQRT((D79^2)+(D91^2))","v":22.627416997969522},{"$f":"E79+E91","v":278},122.61321299109652,{"$f":"G79+G91","v":146},56.435804238089851,{"$f":"I79+I91","v":13},28.0178514522438,{"$f":"K79+K91","v":0},15.556349186104045,{"$f":"M79+M91","v":4},12.529964086141668,{"$f":"O79+O91","v":8},13.038404810405298,{"$f":"Q79+Q91","v":7},15.556349186104045,25,26.92582403567252,523,236.23928547132036,5,14.212670403551895,54,55.027265968790417,18,23.706539182259394]
[null,"$10,000 to $14,999",{"$f":"C80+C92","v":158},129.61867149450345,{"$f":"E80+E92","v":587},161.64467204334326,{"$f":"G80+G92","v":188},96.690227013902501,{"$f":"I80+I92","v":137},133.45411196362591,{"$f":"K80+K92","v":0},15.556349186104045,{"$f":"M80+M92","v":5},6.4031242374328485,{"$f":"O80+O92","v":16},10.770329614269007,{"$f":"Q80+Q92","v":105},75.073297516493838,6,13.601470508735444,510,162.28986413205232,30,28.231188426986208,209,122.54386969571347,0,15.556349186104045]
[null,"$15,000 to $19,999",{"$f":"C81+C93","v":110},109.17875251164945,504,162.60996279441184,137,72.277243998370608,91,97.324200484771509,49,78.771822373231913,5,12.529964086141668,16,16.15549442140351,35,29.154759474226502,18,18.601075237738275,757,230.85276693165278,25,19.104973174542799,143,80.529497701152962,44,43.416586692184822]
[null,"$20,000 to $24,999",120,132.38202294873727,627,191.84629264074925,123,64.404968752418469,292,146.47866738880444,29,31.400636936215164,3,12.083045973594572,16,10,68,55.21775076911409,8,17.804493814764857,656,186.17196351760379,34,20.248456731316587,293,140.42791745233566,26,29.529646120466801]
[null,"$25,000 to $34,999",212,129.24395537122808,909,251.21305698549986,299,101.24228365658294,204,125.39936203984452,57,68.8839603971781,46,30.364452901377952,38,21.189620100417091,136,79.208585393251411,78,47.296934361541872,1318,249.00803199896987,100,50,374,170.46113926640288,100,58.309518948453004]
[null,"$35,000 to $49,999",286,145.41320435228707,1752,333.0615558721841,287,108.68762579061151,364,173.62315513778685,138,108.78419002777932,49,23.769728648009426,58,17.464249196572979,232,84.172442046075858,125,53.263495942343098,1927,355.44338508403837,73,35,663,157.8131806916013,140,61.554853586049575]
[null,"$50,000 to $74,999",460,158.39823231336896,2426,327.46602877245147,318,82.800966177937809,469,176.7993212656655,262,114.96521212958292,87,31.384709652950431,150,43.931765272977593,414,104.54664030948101,232,54.571054598569013,2226,347.71396290629457,252,69.31089380465383,1261,260.43233286210835,213,76.216796049164913]
[null,"$75,000 to $99,999",418,177.15812146215595,2029,304.61286906498219,326,99.859901862559425,379,136.41847382227965,237,103.36827366266692,88,32.449961479175904,116,35.777087639996637,197,60.728905802755904,146,44.147480109288232,2276,343.73972711922607,153,67.230945255886439,704,172.67889274604468,115,47.296934361541872]
[null,"$100,000 to $149,999",587,209.49701668520245,2290,322.00931663540422,498,122.41323457861898,524,171.26879458909028,567,196.10456394485061,147,41.976183723630712,104,32.557641192199412,403,116.52038448271615,177,48.270073544588683,1663,300.81555810828667,195,48.270073544588683,703,191.32433196015609,446,116.52038448271615]
[null,"$150,000 or more",917,266.48076853686837,{"$f":"E88+E100","v":1535},245.3935614477283,830,141.6827441857335,230,110.16805344563369,413,122.494897852931,181,49.244289008980523,64,30.083217912982647,128,65.924198895398035,175,58.051701094799967,801,158.52129194527782,169,46.097722286464439,322,109.5627673984187,302,79.762146410437069]
[]
[]
[]
[]
[]
[]
[]
[]
[]
[]
[]
[]
[]
[]
[]
[]
[null,"B25118. TENURE BY HOUSEHOLD INCOME IN THE PAST 12 MONTHS (IN 2012 INFLATION-ADJUSTED DOLLARS) "]
[null,"Universe:  OCCUPIED HOUSING UNITS"]
[null,"Data Set: 2008-2012 American Community Survey 5-Year Estimates"]
[]
[null,null,"Barrington",null,"Dover",null,"Durham",null,"Farmington",null,"Lee",null,"Madbury",null,"Middleton",null,"Milton",null,"New Durham",null,"Rochester",null,"Rollinsford",null,"Somersworth",null,"Strafford"]
[null,null,"Estimate","Margin Of Error","Estimate","Margin Of Error","Estimate","Margin Of Error","Estimate","Margin Of Error","Estimate","Margin Of Error","Estimate","Margin Of Error","Estimate","Margin Of Error","Estimate","Margin Of Error","Estimate","Margin Of Error","Estimate","Margin Of Error","Estimate","Margin Of Error","Estimate","Margin Of Error","Estimate","Margin Of Error",null,null,null,null,null,null,null,null,null,null,null,null,null,null,null,null,null,null,null,null,null,null,null,null,null,null,null,null,null,null,null,null,null,null,null,null,null,null,null,null,"Estimate","Margin Of Error","Estimate","Margin Of Error","Estimate","Margin Of Error","Estimate","Margin Of Error"]
[null,"Total:",2987,193,12512,344,3327,354,2646,185,1773,146,656,57,593,63,1660,130,955,62,12762,368,1020,77,4552,227,1378,88,null,null,null,null,null,null,null,null,null,null,null,null,null,null,null,null,null,null,null,null,null,null,null,null,null,null,null,null,null,null,null,null,null,null,null,null,null,null,null,null,3846,231,321,42,2717,107,4364,175]
[null,"Owner occupied:",2576,226,6495,370,2029,239,1838,249,1560,142,514,49,555,62,1445,127,860,69,8858,400,759,75,2522,270,1282,113,null,null,null,null,null,null,null,null,null,null,null,null,null,null,null,null,null,null,null,null,null,null,null,null,null,null,null,null,null,null,null,null,null,null,null,null,null,null,null,null,2686,223,288,36,2540,143,4088,189]
[null,"Less than $5,000",0,16,51,48,31,30,15,23,95,101,5,8,17,15,34,42,0,11,154,93,5,7,54,35,9,15,null,null,null,null,null,null,null,null,null,null,null,null,null,null,null,null,null,null,null,null,null,null,null,null,null,null,null,null,null,null,null,null,null,null,null,null,null,null,null,null,12,18,2,5,14,23,44,55]
[null,"$5,000 to $9,999",31,38,21,25,47,32,9,15,58,58,0,11,4,6,31,37,10,10,63,53,0,11,80,59,11,17,null,null,null,null,null,null,null,null,null,null,null,null,null,null,null,null,null,null,null,null,null,null,null,null,null,null,null,null,null,null,null,null,null,null,null,null,null,null,null,null,11,18,6,7,11,20,14,22]
[null,"$10,000 to $14,999",15,24,152,85,0,18,35,32,30,47,10,10,20,14,58,38,22,18,259,81,40,29,85,74,8,14,null,null,null,null,null,null,null,null,null,null,null,null,null,null,null,null,null,null,null,null,null,null,null,null,null,null,null,null,null,null,null,null,null,null,null,null,null,null,null,null,41,38,7,7,9,15,41,32]
[null,"$15,000 to $19,999",23,26,120,78,38,29,94,90,36,44,8,8,11,8,40,39,22,28,279,87,24,16,73,45,12,18,null,null,null,null,null,null,null,null,null,null,null,null,null,null,null,null,null,null,null,null,null,null,null,null,null,null,null,null,null,null,null,null,null,null,null,null,null,null,null,null,207,100,11,9,29,32,42,44]
[null,"$20,000 to $24,999",99,89,204,95,71,58,56,45,0,11,14,16,27,18,42,32,27,30,181,81,18,17,69,52,28,27,null,null,null,null,null,null,null,null,null,null,null,null,null,null,null,null,null,null,null,null,null,null,null,null,null,null,null,null,null,null,null,null,null,null,null,null,null,null,null,null,215,104,9,8,43,43,85,61]
[null,"$25,000 to $34,999",197,88,433,144,50,36,116,83,46,50,15,11,51,22,141,79,64,26,743,159,45,33,116,72,66,43,null,null,null,null,null,null,null,null,null,null,null,null,null,null,null,null,null,null,null,null,null,null,null,null,null,null,null,null,null,null,null,null,null,null,null,null,null,null,null,null,249,113,22,11,143,73,192,78]
[null,"$35,000 to $49,999",138,73,789,143,66,58,284,135,139,74,48,21,120,38,215,81,82,35,1562,259,79,29,432,150,103,55,null,null,null,null,null,null,null,null,null,null,null,null,null,null,null,null,null,null,null,null,null,null,null,null,null,null,null,null,null,null,null,null,null,null,null,null,null,null,null,null,398,139,40,32,98,61,241,81]
[null,"$50,000 to $74,999",417,139,1178,195,228,72,402,118,301,103,83,50,114,28,381,108,133,45,2008,314,160,49,438,132,302,108,null,null,null,null,null,null,null,null,null,null,null,null,null,null,null,null,null,null,null,null,null,null,null,null,null,null,null,null,null,null,null,null,null,null,null,null,null,null,null,null,570,177,28,14,345,110,497,122]
[null,"$75,000 to $99,999",748,179,954,200,362,109,324,122,230,98,87,35,90,30,288,86,155,50,1336,230,103,40,375,104,283,101,null,null,null,null,null,null,null,null,null,null,null,null,null,null,null,null,null,null,null,null,null,null,null,null,null,null,null,null,null,null,null,null,null,null,null,null,null,null,null,null,387,140,37,16,442,115,531,137]
[null,"$100,000 to $149,999",536,157,1662,183,462,88,282,107,312,102,121,39,72,26,144,58,227,42,1566,248,162,67,583,156,275,88,null,null,null,null,null,null,null,null,null,null,null,null,null,null,null,null,null,null,null,null,null,null,null,null,null,null,null,null,null,null,null,null,null,null,null,null,null,null,null,null,462,164,58,24,687,127,1129,161]
[null,"$150,000 or more",372,148,931,187,674,153,221,121,313,124,123,37,29,21,71,39,118,47,707,185,123,46,217,112,185,77,null,null,null,null,null,null,null,null,null,null,null,null,null,null,null,null,null,null,null,null,null,null,null,null,null,null,null,null,null,null,null,null,null,null,null,null,null,null,null,null,134,106,68,26,719,143,1272,162]
[null,"Renter occupied:",411,124,6017,349,1298,221,808,220,213,87,142,53,38,27,215,92,95,44,3904,353,261,66,2030,250,96,65,null,null,null,null,null,null,null,null,null,null,null,null,null,null,null,null,null,null,null,null,null,null,null,null,null,null,null,null,null,null,null,null,null,null,null,null,null,null,null,null,1160,200,33,30,177,114,276,108]
[null,"Less than $5,000",17,28,219,134,313,115,0,16,0,11,0,11,3,4,10,15,0,11,119,86,15,25,158,129,0,11,null,null,null,null,null,null,null,null,null,null,null,null,null,null,null,null,null,null,null,null,null,null,null,null,null,null,null,null,null,null,null,null,null,null,null,null,null,null,null,null,46,48,0,114,0,114,0,114]
[null,"$5,000 to $9,999",0,16,364,155,129,62,26,35,0,11,13,19,0,11,17,27,4,6,265,99,15,24,148,79,0,11,null,null,null,null,null,null,null,null,null,null,null,null,null,null,null,null,null,null,null,null,null,null,null,null,null,null,null,null,null,null,null,null,null,null,null,null,null,null,null,null,16,28,0,114,18,29,0,114]
[null,"$10,000 to $14,999",50,62,343,127,131,82,189,118,20,31,0,11,3,5,27,33,0,11,616,165,19,19,220,94,0,11,null,null,null,null,null,null,null,null,null,null,null,null,null,null,null,null,null,null,null,null,null,null,null,null,null,null,null,null,null,null,null,null,null,null,null,null,null,null,null,null,105,73,0,114,0,114,29,21]
[null,"$15,000 to $19,999",0,16,324,148,136,58,114,82,0,11,5,7,0,11,0,11,5,7,201,90,33,40,76,68,0,11,null,null,null,null,null,null,null,null,null,null,null,null,null,null,null,null,null,null,null,null,null,null,null,null,null,null,null,null,null,null,null,null,null,null,null,null,null,null,null,null,260,142,0,114,34,49,31,49]
[null,"$20,000 to $24,999",15,23,503,158,74,50,51,37,25,40,17,19,16,24,26,30,14,15,449,146,28,25,52,42,43,52,null,null,null,null,null,null,null,null,null,null,null,null,null,null,null,null,null,null,null,null,null,null,null,null,null,null,null,null,null,null,null,null,null,null,null,null,null,null,null,null,25,29,0,114,0,114,21,31]
[null,"$25,000 to $34,999",56,39,1036,229,87,51,112,101,32,39,26,26,0,11,25,22,28,30,845,237,62,43,252,113,9,14,null,null,null,null,null,null,null,null,null,null,null,null,null,null,null,null,null,null,null,null,null,null,null,null,null,null,null,null,null,null,null,null,null,null,null,null,null,null,null,null,84,59,2,3,0,114,0,114]
[null,"$35,000 to $49,999",107,92,1045,245,122,63,94,74,24,36,8,9,6,9,6,10,7,10,718,229,33,31,324,145,0,11,null,null,null,null,null,null,null,null,null,null,null,null,null,null,null,null,null,null,null,null,null,null,null,null,null,null,null,null,null,null,null,null,null,null,null,null,null,null,null,null,229,115,0,114,0,114,67,60]
[null,"$50,000 to $74,999",60,55,1219,244,162,103,140,110,84,64,41,26,4,5,44,41,21,24,424,153,32,26,338,132,24,39,null,null,null,null,null,null,null,null,null,null,null,null,null,null,null,null,null,null,null,null,null,null,null,null,null,null,null,null,null,null,null,null,null,null,null,null,null,null,null,null,293,141,25,31,0,114,40,49]
[null,"$75,000 to $99,999",68,64,518,177,62,43,32,49,0,11,20,22,0,11,34,39,16,17,201,109,19,26,328,155,0,11,null,null,null,null,null,null,null,null,null,null,null,null,null,null,null,null,null,null,null,null,null,null,null,null,null,null,null,null,null,null,null,null,null,null,null,null,null,null,null,null,92,69,6,6,72,81,19,21]
[null,"$100,000 to $149,999",13,21,277,133,11,17,50,72,22,34,9,9,3,4,26,40,0,11,37,38,5,7,73,62,20,23,null,null,null,null,null,null,null,null,null,null,null,null,null,null,null,null,null,null,null,null,null,null,null,null,null,null,null,null,null,null,null,null,null,null,null,null,null,null,null,null,10,17,0,114,53,51,20,24]
[null,"$150,000 or more",25,30,169,102,71,53,0,16,6,10,3,6,3,5,0,11,0,11,29,31,0,11,61,56,0,11,null,null,null,null,null,null,null,null,null,null,null,null,null,null,null,null,null,null,null,null,null,null,null,null,null,null,null,null,null,null,null,null,null,null,null,null,null,null,null,null,0,114,0,114,0,114,49,50]
[]
[]
[]
[]
[]
[null,{"$f":"\"Calculated \"&B139","v":"Calculated B25118. TENURE BY HOUSEHOLD INCOME IN THE PAST 12 MONTHS (IN 2012 INFLATION-ADJUSTED DOLLARS) "}]
[null,"Universe:  OCCUPIED HOUSING UNITS"]
[null,{"$f":"B141","v":"Data Set: 2008-2012 American Community Survey 5-Year Estimates"}]
[null,null,"Barrington",null,"Dover",null,"Durham",null,"Farmington",null,"Lee",null,"Madbury",null,"Middleton",null,"Milton",null,"New Durham",null,"Rochester",null,"Rollinsford",null,"Somersworth",null,"Strafford"]
[null,null,"Estimate","Margin Of Error","Estimate","Margin Of Error","Estimate","Margin Of Error","Estimate","Margin Of Error","Estimate","Margin Of Error","Estimate","Margin Of Error","Estimate","Margin Of Error","Estimate","Margin Of Error","Estimate","Margin Of Error","Estimate","Margin Of Error","Estimate","Margin Of Error","Estimate","Margin Of Error","Estimate","Margin Of Error",null,null,null,null,null,null,null,null,null,null,null,null,null,null,null,null,null,null,null,null,null,null,null,null,null,null,null,null,null,null,null,null,null,null,null,null,null,null,null,null,"Estimate","Margin Of Error","Estimate","Margin Of Error","Estimate","Margin Of Error","Estimate","Margin Of Error"]
[null,"Total:",{"$f":"C145","v":2987},193,12512,344,3327,354,2646,185,1773,146,656,57,593,63,1660,130,955,62,12762,368,1020,77,{"$f":"Y145","v":4552},{"$f":"Z145","v":227},{"$f":"AA145","v":1378},{"$f":"AB145","v":88}]
[null,"Less than $5,000",{"$f":"C147+C159","v":17},{"$f":"SQRT((D147^2)+(D159^2))","v":32.249030993194197},{"$f":"E147+E159","v":270},{"$f":"SQRT((F147^2)+(F159^2))","v":142.33762678926468},{"$f":"G147+G159","v":344},{"$f":"SQRT((H147^2)+(H159^2))","v":118.84864324004712},{"$f":"I147+I159","v":15},{"$f":"SQRT((J147^2)+(J159^2))","v":28.0178514522438},{"$f":"K147+K159","v":95},{"$f":"SQRT((L147^2)+(L159^2))","v":101.59724405711013},{"$f":"M147+M159","v":5},{"$f":"SQRT((N147^2)+(N159^2))","v":13.601470508735444},{"$f":"O147+O159","v":20},{"$f":"SQRT((P147^2)+(P159^2))","v":15.524174696260024},{"$f":"Q147+Q159","v":44},{"$f":"SQRT((R147^2)+(R159^2))","v":44.598206241955516},{"$f":"S147+S159","v":0},{"$f":"SQRT((T147^2)+(T159^2))","v":15.556349186104045},{"$f":"U147+U159","v":273},{"$f":"SQRT((V147^2)+(V159^2))","v":126.66885963013956},{"$f":"W147+W159","v":20},{"$f":"SQRT((X147^2)+(X159^2))","v":25.96150997149434},{"$f":"Y147+Y159","v":212},{"$f":"SQRT((Z147^2)+(Z159^2))","v":133.6637572418193},{"$f":"AA147+AA159","v":9},{"$f":"SQRT((AB147^2)+(AB159^2))","v":18.601075237738275}]
[null,"$5,000 to $9,999",31,41.231056256176608,385,157.00318468107582,176,69.771054170049638,35,38.078865529319543,58,59.033888572581766,13,21.95449840010015,4,12.529964086141668,48,45.803929962395145,14,11.661903789690601,328,112.29425630903836,15,26.40075756488817,228,98.600202839547947,11,20.248456731316587]
[null,"$10,000 to $14,999",65,66.483080554378645,495,152.8201557386983,131,83.952367447261423,224,122.2620137246234,50,56.302753041036986,10,14.866068747318506,23,14.866068747318506,85,50.328918128646478,22,21.095023109728988,875,183.80968418448469,59,34.669871646719429,305,119.63277142990545,8,17.804493814764857]
[null,"$15,000 to $19,999",23,30.528675044947494,444,167.29614460590537,174,64.845971347493901,208,121.75385004179539,36,45.354161881794269,13,10.63014581273465,11,13.601470508735444,40,40.521599178709621,27,28.861739379323623,480,125.1758762701504,57,43.08131845707603,149,81.541400527584756,12,21.095023109728988]
[null,"$20,000 to $24,999",114,91.923881554251182,707,184.36105879496353,145,76.576758876306585,107,58.258046654518033,25,41.484937025383083,31,24.839484696748443,43,30,68,43.863424398922618,41,33.541019662496844,630,166.96406799069075,46,30.232432915661949,121,66.843099868273612,71,58.591808301161009]
[null,"$25,000 to $34,999",253,96.254870006665115,1469,270.51247660690257,137,62.425956140054431,228,130.728726758888,78,63.411355449950761,41,28.231188426986208,51,24.596747752497688,166,82.006097334283623,92,39.698866482558415,1588,285.39446385660671,107,54.203320931470607,368,133.98880550254935,75,45.221676218380054]
[null,"$35,000 to $49,999",245,117.44360348695028,1834,283.67939650246012,188,85.632937588290176,378,153.95129099815955,163,82.292162445763935,56,22.847319317591726,126,39.05124837953327,221,81.614949610962825,89,36.400549446402593,2280,345.71953951143695,112,42.449970553582247,756,208.62646045025065,103,56.089214649520635]
[null,"$50,000 to $74,999",477,149.48578527739687,2397,312.34756282065018,390,125.67020331009256,542,161.31955864060626,385,121.26417442921878,124,56.356011214421486,118,28.442925306655784,425,115.52056094046635,154,51,2432,349.29214133730522,192,55.470712993434653,776,186.67619023324855,326,114.82595525402782]
[null,"$75,000 to $99,999",816,190.09734348485779,1472,267.07489586256509,424,117.17508267545622,356,131.47243057006287,230,98.615414616580097,107,41.340053217188775,90,31.953090617340916,322,94.429868156214212,171,52.810983706043572,1537,254.52111896658005,122,47.707441767506253,703,186.65744024817226,283,101.59724405711013]
[null,"$100,000 to $149,999",549,158.39823231336896,1939,226.22555116520326,473,89.627004859026727,332,128.96898852049665,334,107.5174404457249,130,40.024992192379003,75,26.305892875931811,170,70.455659815234142,227,43.416586692184822,1603,250.89440009693323,167,67.36467917239716,656,167.86899654194636,295,90.956033334793133]
[null,"$150,000 or more",397,151.00993344810135,1100,213.00938946440834,745,161.91973320136123,221,122.05326705991938,319,124.40257232067189,126,37.483329627982627,32,21.587033144922902,71,40.521599178709621,118,48.270073544588683,736,187.57931655702342,123,47.296934361541872,278,125.21980673998823,185,77.781745930520231]

{"sheet":"ACS_TableB19101_ACS_Tbl_B19113","index":35,"n_rows":130,"n_cols":28,"rows_kept":130,"cut":false,"hidden":true,"merged":[]}
[null,"B19101. FAMILY INCOME IN THE PAST 12 MONTHS (IN 2022 INFLATION-ADJUSTED DOLLARS)"]
[null,"Universe:  FAMILIES"]
[null,"Data Set: 2018-2022 American Community Survey 5-Year Estimates"]
[]
[null,null,"Barrington",null,"Dover",null,"Durham",null,"Farmington",null,"Lee",null,"Madbury",null,"Middleton",null,"Milton",null,"New Durham",null,"Rochester",null,"Rollinsford",null,"Somersworth",null,"Strafford"]
[null,null,"Estimate","Margin Of Error","Estimate","Margin Of Error","Estimate","Margin Of Error","Estimate","Margin Of Error","Estimate","Margin Of Error","Estimate","Margin Of Error","Estimate","Margin Of Error","Estimate","Margin Of Error","Estimate","Margin Of Error","Estimate","Margin Of Error","Estimate","Margin Of Error","Estimate","Margin Of Error","Estimate","Margin Of Error"]
[null,"Total",2585,210,8060,470,1594,194,1960,213,1316,136,572,77,403,80,1153,126,731,75,8270,414,685,78,3046,281,1248,82]
[null,"Less than $10,000",66,82,87,60,16,26,56,61,0,12,3,4,14,13,31,28,16,14,189,114,30,33,50,68,30,25]
[null,"$10,000 to $14,999",71,99,25,30,0,19,80,106,0,12,0,12,0,12,0,12,0,12,143,89,0,12,102,84,24,37]
[null,"$15,000 to $19,999",26,42,63,65,0,19,0,17,0,12,3,5,8,15,5,8,0,12,102,77,16,23,54,80,5,9]
[null,"$20,000 to $24,999",16,26,35,52,0,19,0,17,26,41,3,4,3,4,8,13,12,13,213,93,0,12,53,42,0,12]
[null,"$25,000 to $29,999",54,54,220,183,42,46,114,113,14,21,4,6,2,4,40,52,22,14,254,123,31,30,76,72,9,13]
[null,"$30,000 to $34,999",13,21,119,89,5,7,119,92,0,12,8,10,9,8,0,12,24,26,172,94,0,12,95,114,15,17]
[null,"$35,000 to $39,999",70,87,46,45,10,15,0,17,0,12,26,36,0,12,2,8,9,9,250,107,0,12,36,41,13,21]
[null,"$40,000 to $44,999",4,10,106,88,24,26,177,243,17,26,0,12,3,3,11,16,9,9,81,45,10,11,42,49,21,23]
[null,"$45,000 to $49,999",91,86,115,66,8,14,37,46,66,76,0,12,10,10,12,15,17,12,328,135,5,7,47,45,23,21]
[null,"$50,000 to $59,999",133,80,461,171,124,116,43,48,46,55,3,4,13,9,215,110,23,19,524,180,33,25,188,117,60,37]
[null,"$60,000 to $74,999",144,106,431,141,49,39,363,146,110,70,16,18,35,22,72,43,35,55,792,173,31,30,381,147,120,57]
[null,"$75,000 to $99,999",281,125,1018,226,193,79,226,127,119,84,51,29,84,34,78,57,121,48,1418,283,140,72,671,273,130,69]
[null,"$100,000 to $124,999",509,179,1031,323,109,51,291,147,81,57,45,31,87,51,259,118,86,35,1143,196,139,63,268,131,115,55]
[null,"$125,000 to $149,999",279,105,966,270,130,61,118,75,326,148,39,18,44,19,155,76,70,36,782,222,57,32,331,144,179,71]
[null,"$150,000 to $199,999",309,141,1373,322,366,93,267,160,188,105,92,40,30,18,213,78,160,71,1142,317,68,45,436,163,250,84]
[null,"$200,000 or more",519,144,1964,340,518,118,69,63,323,133,279,81,61,27,52,37,127,51,737,186,125,46,216,102,254,104]
[]
[]
[null,"B19113. MEDIAN FAMILY INCOME IN THE PAST 12 MONTHS (IN 2022 INFLATION-ADJUSTED DOLLARS)"]
[null,"Universe:  FAMILIES"]
[null,"Data Set: 2018-2022 American Community Survey 5-Year Estimates"]
[]
[null,null,"Barrington",null,"Dover",null,"Durham",null,"Farmington",null,"Lee",null,"Madbury",null,"Middleton",null,"Milton",null,"New Durham",null,"Rochester",null,"Rollinsford",null,"Somersworth",null,"Strafford"]
[null,null,"Estimate","Margin Of Error","Estimate","Margin Of Error","Estimate","Margin Of Error","Estimate","Margin Of Error","Estimate","Margin Of Error","Estimate","Margin Of Error","Estimate","Margin Of Error","Estimate","Margin Of Error","Estimate","Margin Of Error","Estimate","Margin Of Error","Estimate","Margin Of Error","Estimate","Margin Of Error","Estimate","Margin Of Error"]
[null,"Median family income in the past 12 months",114630,7771,132056,8349,158571,15178,74338,19306,137161,7582,198906,43730,107841,14306,117337,8051,124115,23866,91295,11292,108233,11117,82639,12241,138939,11184]
[]
[]
[]
[]
[]
[]
[]
[]
[]
[]
[]
[]
[]
[]
[]
[]
[]
[null,"B19101. FAMILY INCOME IN THE PAST 12 MONTHS (IN 2017 INFLATION-ADJUSTED DOLLARS)"]
[null,"Universe:  FAMILIES"]
[null,"Data Set: 2013-2017 American Community Survey 5-Year Estimates"]
[]
[null,null,"Barrington",null,"Dover",null,"Durham",null,"Farmington",null,"Lee",null,"Madbury",null,"Middleton",null,"Milton",null,"New Durham",null,"Rochester",null,"Rollinsford",null,"Somersworth",null,"Strafford"]
[null,null,"Estimate","Margin Of Error","Estimate","Margin Of Error","Estimate","Margin Of Error","Estimate","Margin Of Error","Estimate","Margin Of Error","Estimate","Margin Of Error","Estimate","Margin Of Error","Estimate","Margin Of Error","Estimate","Margin Of Error","Estimate","Margin Of Error","Estimate","Margin Of Error","Estimate","Margin Of Error","Estimate","Margin Of Error"]
[null,"Total",2379,179,7487,362,1814,164,1784,167,1231,148,531,46,444,52,1377,94,782,58,7943,369,729,60,3623,228,1141,85]
[null,"Less than $10,000",37,60,244,119,21,17,16,27,0,11,2,4,6,5,0,11,9,10,335,127,5,9,123,128,10,15]
[null,"$10,000 to $14,999",21,35,138,71,15,17,0,16,0,11,2,4,0,11,19,20,0,11,130,87,5,8,63,53,0,11]
[null,"$15,000 to $19,999",15,24,100,72,18,15,35,41,0,11,0,11,18,17,0,11,10,10,421,162,6,9,51,49,8,12]
[null,"$20,000 to $24,999",14,25,264,148,10,11,128,83,16,25,0,11,20,17,36,42,0,11,305,141,21,16,217,130,0,11]
[null,"$25,000 to $29,999",28,33,258,146,19,22,165,130,41,63,4,8,11,14,110,74,16,17,282,152,0,11,138,143,37,43]
[null,"$30,000 to $34,999",102,96,104,53,21,23,15,24,0,11,18,17,14,9,26,26,22,26,274,138,36,31,75,54,18,21]
[null,"$35,000 to $39,999",40,65,197,113,25,40,37,45,24,37,9,10,15,13,50,48,27,19,324,116,19,18,117,67,71,53]
[null,"$40,000 to $44,999",90,85,256,125,14,18,20,31,20,31,10,9,13,9,11,17,36,28,381,116,11,12,150,90,11,18]
[null,"$45,000 to $49,999",35,58,152,64,44,53,83,76,19,30,18,21,10,8,119,68,13,15,451,151,24,23,146,87,10,15]
[null,"$50,000 to $59,999",105,76,421,127,75,39,125,85,37,41,30,21,43,22,88,61,98,36,441,144,83,33,292,112,76,35]
[null,"$60,000 to $74,999",307,142,1023,236,119,58,146,97,151,91,44,18,61,25,234,79,82,29,839,203,77,34,692,205,91,54]
[null,"$75,000 to $99,999",241,124,1303,233,260,84,293,126,130,64,83,30,83,29,190,64,129,44,1715,322,127,66,648,165,116,46]
[null,"$100,000 to $124,999",162,98,874,199,135,60,340,167,240,129,70,28,45,22,246,94,114,40,857,219,97,34,400,138,195,87]
[null,"$125,000 to $149,999",308,174,835,183,292,85,151,90,156,107,74,31,44,27,134,63,51,32,477,136,53,24,205,103,216,86]
[null,"$150,000 to $199,999",738,253,856,169,384,108,230,109,221,104,71,27,33,19,87,52,114,44,494,144,105,32,221,100,145,70]
[null,"$200,000 or more",136,109,462,139,362,76,0,16,176,81,96,33,28,24,27,27,61,35,217,81,60,33,85,54,137,67]
[]
[]
[null,"B19113. MEDIAN FAMILY INCOME IN THE PAST 12 MONTHS (IN 2017 INFLATION-ADJUSTED DOLLARS)"]
[null,"Universe:  FAMILIES"]
[null,"Data Set: 2013-2017 American Community Survey 5-Year Estimates"]
[]
[null,null,"Barrington",null,"Dover",null,"Durham",null,"Farmington",null,"Lee",null,"Madbury",null,"Middleton",null,"Milton",null,"New Durham",null,"Rochester",null,"Rollinsford",null,"Somersworth",null,"Strafford"]
[null,null,"Estimate","Margin Of Error","Estimate","Margin Of Error","Estimate","Margin Of Error","Estimate","Margin Of Error","Estimate","Margin Of Error","Estimate","Margin Of Error","Estimate","Margin Of Error","Estimate","Margin Of Error","Estimate","Margin Of Error","Estimate","Margin Of Error","Estimate","Margin Of Error","Estimate","Margin Of Error","Estimate","Margin Of Error"]
[null,"Median family income in the past 12 months",124464,33062,86475,6353,132181,8821,85539,11787,115625,14869,117880,16134,77500,6320,74408,13475,89479,12555,70385,5011,91442,18241,71061,4026,112989,7855]
[]
[]
[]
[]
[]
[]
[]
[]
[]
[]
[]
[]
[]
[]
[]
[]
[]
[null,"B19101. FAMILY INCOME IN THE PAST 12 MONTHS (IN 2012 INFLATION-ADJUSTED DOLLARS)"]
[null,"Universe:  FAMILIES"]
[null,"Data Set: 2008-2012 American Community Survey 5-Year Estimates"]
[]
[null,null,"Barrington",null,"Dover",null,"Durham",null,"Farmington",null,"Lee",null,"Madbury",null,"Middleton",null,"Milton",null,"New Durham",null,"Rochester",null,"Rollinsford",null,"Somersworth",null,"Strafford"]
[null,null,"Estimate","Margin Of Error","Estimate","Margin Of Error","Estimate","Margin Of Error","Estimate","Margin Of Error","Estimate","Margin Of Error","Estimate","Margin Of Error","Estimate","Margin Of Error","Estimate","Margin Of Error","Estimate","Margin Of Error","Estimate","Margin Of Error","Estimate","Margin Of Error","Estimate","Margin Of Error","Estimate","Margin Of Error"]
[null,"Total",2408,162,7116,333,1944,198,1793,139,1116,101,497,56,442,58,1271,92,716,51,7866,306,713,67,3035,208,1197,67]
[null,"Less than $10,000",43,34,244,134,11,18,44,34,12,18,5,8,29,22,54,43,4,6,386,156,28,33,259,131,45,36]
[null,"$10,000 to $14,999",62,63,111,70,24,38,62,61,0,11,2,4,9,8,26,33,11,12,286,112,22,23,126,76,0,11]
[null,"$15,000 to $19,999",10,16,191,112,11,17,95,87,0,11,8,8,4,6,19,21,0,11,240,98,5,7,70,70,12,18]
[null,"$20,000 to $24,999",74,86,144,64,53,45,28,32,0,11,16,12,28,25,23,21,37,34,334,113,0,11,57,53,43,52]
[null,"$25,000 to $29,999",60,49,294,127,42,29,18,28,0,11,3,6,9,8,92,51,37,32,361,119,30,23,137,83,47,51]
[null,"$30,000 to $34,999",50,36,344,122,19,22,88,80,11,18,6,6,19,17,60,45,30,17,253,123,20,16,75,68,41,38]
[null,"$35,000 to $39,999",12,19,298,105,0,18,127,97,19,29,13,13,20,13,47,29,6,9,390,138,14,13,110,66,17,18]
[null,"$40,000 to $44,999",20,26,405,143,13,17,33,27,23,34,19,13,20,10,102,61,20,14,538,185,23,19,135,78,49,43]
[null,"$45,000 to $49,999",137,107,229,94,48,51,199,106,49,43,3,5,34,19,38,38,36,24,347,123,41,29,68,57,20,24]
[null,"$50,000 to $59,999",144,74,567,157,126,50,127,64,115,68,72,53,41,21,209,77,42,27,623,163,40,28,252,115,104,57]
[null,"$60,000 to $74,999",220,107,835,196,93,50,225,101,143,67,28,22,67,24,155,74,85,33,979,174,111,42,334,117,176,89]
[null,"$75,000 to $99,999",710,175,1029,198,382,109,325,125,206,88,78,29,78,27,276,99,140,50,1140,223,100,41,555,149,251,98]
[null,"$100,000 to $124,999",364,128,825,142,280,80,105,58,155,80,64,28,40,22,42,45,143,45,755,176,134,66,393,142,151,65]
[null,"$125,000 to $149,999",192,108,739,136,195,63,104,81,127,56,60,23,14,11,57,41,35,18,645,144,22,15,227,116,76,45]
[null,"$150,000 to $199,999",180,84,469,140,240,86,89,75,97,65,59,23,30,21,15,16,72,39,381,129,99,46,214,114,104,63]
[null,"$200,000 or more",130,104,392,107,407,106,124,94,159,99,61,29,0,11,56,38,18,14,208,93,24,18,23,26,61,34]
[]
[]
[null,"B19113. MEDIAN FAMILY INCOME IN THE PAST 12 MONTHS (IN 2012 INFLATION-ADJUSTED DOLLARS)"]
[null,"Universe:  FAMILIES"]
[null,"Data Set: 2008-2012 American Community Survey 5-Year Estimates"]
[]
[null,null,"Barrington",null,"Dover",null,"Durham",null,"Farmington",null,"Lee",null,"Madbury",null,"Middleton",null,"Milton",null,"New Durham",null,"Rochester",null,"Rollinsford",null,"Somersworth",null,"Strafford"]
[null,null,"Esitimate","Margin Of Error","Esitimate","Margin Of Error","Esitimate","Margin Of Error","Esitimate","Margin Of Error","Esitimate","Margin Of Error","Esitimate","Margin Of Error","Esitimate","Margin Of Error","Esitimate","Margin Of Error","Esitimate","Margin Of Error","Esitimate","Margin Of Error","Esitimate","Margin Of Error","Esitimate","Margin Of Error","Esitimate","Margin Of Error"]
[null,"Median family income in the past 12 months",87252,6572,72797,4872,114191,9640,63326,9621,98387,17904,98594,11063,61111,6171,58880,5196,83409,9401,62044,3459,80809,15427,69578,8557,82679,17980]

{"sheet":"ACS_Table_B25119","index":36,"n_rows":68,"n_cols":28,"rows_kept":68,"cut":false,"hidden":true,"merged":[[48893,24,48893,25],[48893,26,48893,27],[48899,24,48899,25],[48899,26,48899,27],[48905,24,48905,25],[48905,26,48905,27],[48911,24,48911,25],[48911,26,48911,27],[48917,24,48917,25],[48917,26,48917,27],[48791,24,48791,25],[48791,26,48791,27],[48797,24,48797,25],[48797,26,48797,27],[48803,24,48803,25],[48803,26,48803,27],[48809,24,48809,25],[48809,26,48809,27],[48815,24,48815,25],[48815,26,48815,27],[48821,24,48821,25],[48821,26,48821,27],[48827,24,48827,25],[48827,26,48827,27],[48833,24,48833,25],[48833,26,48833,27],[48839,24,48839,25],[48839,26,48839,27],[48845,24,48845,25],[48845,26,48845,27],[48851,24,48851,25],[48851,26,48851,27],[48857,24,48857,25],[48857,26,48857,27],[48863,24,48863,25],[48863,26,48863,27],[48869,24,48869,25],[48869,26,48869,27],[48875,24,48875,25],[48875,26,48875,27],[48881,24,48881,25],[48881,26,48881,27],[48887,24,48887,25],[48887,26,48887,27],[48689,24,48689,25],[48689,26,48689,27],[48695,24,48695,25],[48695,26,48695,27],[48701,24,48701,25],[48701,26,48701,27],[48707,24,48707,25],[48707,26,48707,27],[48713,24,48713,25],[48713,26,48713,27],[48719,24,48719,25],[48719,26,48719,27],[48725,24,48725,25],[48725,26,48725,27],[48731,24,48731,25],[48731,26,48731,27],[48737,24,48737,25],[48737,26,48737,27],[48743,24,48743,25],[48743,26,48743,27],[48749,24,48749,25],[48749,26,48749,27],[48755,24,48755,25],[48755,26,48755,27],[48761,24,48761,25],[48761,26,48761,27],[48767,24,48767,25],[48767,26,48767,27],[48773,24,48773,25],[48773,26,48773,27],[48779,24,48779,25],[48779,26,48779,27],[48785,24,48785,25],[48785,26,48785,27],[48587,24,48587,25],[48587,26,48587,27],[48593,24,48593,25],[48593,26,48593,27],[48599,24,48599,25],[48599,26,48599,27],[48605,24,48605,25],[48605,26,48605,27],[48611,24,48611,25],[48611,26,48611,27],[48617,24,48617,25],[48617,26,48617,27],[48623,24,48623,25],[48623,26,48623,27],[48629,24,48629,25],[48629,26,48629,27],[48635,24,48635,25],[48635,26,48635,27],[48641,24,48641,25],[48641,26,48641,27],[48647,24,48647,25],[48647,26,48647,27],[48653,24,48653,25],[48653,26,48653,27],[48659,24,48659,25],[48659,26,48659,27],[48665,24,48665,25],[48665,26,48665,27],[48671,24,48671,25],[48671,26,48671,27],[48677,24,48677,25],[48677,26,48677,27],[48683,24,48683,25],[48683,26,48683,27],[48485,24,48485,25],[48485,26,48485,27],[48491,24,48491,25],[48491,26,48491,27],[48497,24,48497,25],[48497,26,48497,27],[48503,24,48503,25],[48503,26,48503,27],[48509,24,48509,25],[48509,26,48509,27],[48515,24,48515,25],[48515,26,48515,27],[48521,24,48521,25],[48521,26,48521,27],[48527,24,48527,25],[48527,26,48527,27],[48533,24,48533,25],[48533,26,48533,27],[48539,24,48539,25],[48539,26,48539,27],[48545,24,48545,25],[48545,26,48545,27],[48551,24,48551,25],[48551,26,48551,27],[48557,24,48557,25],[48557,26,48557,27],[48563,24,48563,25],[48563,26,48563,27],[48569,24,48569,25],[48569,26,48569,27],[48575,24,48575,25],[48575,26,48575,27],[48581,24,48581,25],[48581,26,48581,27],[48383,24,48383,25],[48383,26,48383,27],[48389,24,48389,25],[48389,26,48389,27],[48395,24,48395,25],[48395,26,48395,27],[48401,24,48401,25],[48401,26,48401,27],[48407,24,48407,25],[48407,26,48407,27],[48413,24,48413,25],[48413,26,48413,27],[48419,24,48419,25],[48419,26,48419,27],[48425,24,48425,25],[48425,26,48425,27],[48431,24,48431,25],[48431,26,48431,27],[48437,24,48437,25],[48437,26,48437,27],[48443,24,48443,25],[48443,26,48443,27],[48449,24,48449,25],[48449,26,48449,27],[48455,24,48455,25],[48455,26,48455,27],[48461,24,48461,25],[48461,26,48461,27],[48467,24,48467,25],[48467,26,48467,27],[48473,24,48473,25],[48473,26,48473,27],[48479,24,48479,25],[48479,26,48479,27],[48281,24,48281,25],[48281,26,48281,27],[48287,24,48287,25],[48287,26,48287,27],[48293,24,48293,25],[48293,26,48293,27],[48299,24,48299,25],[48299,26,48299,27],[48305,24,48305,25],[48305,26,48305,27],[48311,24,48311,25],[48311,26,48311,27],[48317,24,48317,25],[48317,26,48317,27],[48323,24,48323,25],[48323,26,48323,27],[48329,24,48329,25],[48329,26,48329,27],[48335,24,48335,25],[48335,26,48335,27],[48341,24,48341,25],[48341,26,48341,27],[48347,24,48347,25],[48347,26,48347,27],[48353,24,48353,25],[48353,26,48353,27],[48359,24,48359,25],[48359,26,48359,27],[48365,24,48365,25],[48365,26,48365,27],[48371,24,48371,25],[48371,26,48371,27],[48377,24,48377,25],[48377,26,48377,27],[48179,24,48179,25],[48179,26,48179,27],[48185,24,48185,25],[48185,26,48185,27],[48191,24,48191,25],[48191,26,48191,27],[48197,24,48197,25],[48197,26,48197,27],[48203,24,48203,25],[48203,26,48203,27],[48209,24,48209,25],[48209,26,48209,27],[48215,24,48215,25],[48215,26,48215,27],[48221,24,48221,25],[48221,26,48221,27],[48227,24,48227,25],[48227,26,48227,27],[48233,24,48233,25],[48233,26,48233,27],[48239,24,48239,25],[48239,26,48239,27],[48245,24,48245,25],[48245,26,48245,27],[48251,24,48251,25],[48251,26,48251,27],[48257,24,48257,25],[48257,26,48257,27],[48263,24,48263,25],[48263,26,48263,27],[48269,24,48269,25],[48269,26,48269,27],[48275,24,48275,25],[48275,26,48275,27],[48077,24,48077,25],[48077,26,48077,27],[48083,24,48083,25],[48083,26,48083,27],[48089,24,48089,25],[48089,26,48089,27],[48095,24,48095,25],[48095,26,48095,27],[48101,24,48101,25],[48101,26,48101,27],[48107,24,48107,25],[48107,26,48107,27],[48113,24,48113,25],[48113,26,48113,27],[48119,24,48119,25],[48119,26,48119,27],[48125,24,48125,25],[48125,26,48125,27],[48131,24,48131,25],[48131,26,48131,27],[48137,24,48137,25],[48137,26,48137,27],[48143,24,48143,25],[48143,26,48143,27],[48149,24,48149,25],[48149,26,48149,27],[48155,24,48155,25],[48155,26,48155,27],[48161,24,48161,25],[48161,26,48161,27],[48167,24,48167,25],[48167,26,48167,27],[48173,24,48173,25],[48173,26,48173,27],[47975,24,47975,25],[47975,26,47975,27],[47981,24,47981,25],[47981,26,47981,27],[47987,24,47987,25],[47987,26,47987,27],[47993,24,47993,25],[47993,26,47993,27],[47999,24,47999,25],[47999,26,47999,27],[48005,24,48005,25],[48005,26,48005,27],[48011,24,48011,25],[48011,26,48011,27],[48017,24,48017,25],[48017,26,48017,27],[48023,24,48023,25],[48023,26,48023,27],[48029,24,48029,25],[48029,26,48029,27],[48035,24,48035,25],[48035,26,48035,27],[48041,24,48041,25],[48041,26,48041,27],[48047,24,48047,25],[48047,26,48047,27],[48053,24,48053,25],[48053,26,48053,27],[48059,24,48059,25],[48059,26,48059,27],[48065,24,48065,25],[48065,26,48065,27],[48071,24,48071,25],[48071,26,48071,27],[47873,24,47873,25],[47873,26,47873,27],[47879,24,47879,25],[47879,26,47879,27],[47885,24,47885,25],[47885,26,47885,27],[47891,24,47891,25],[47891,26,47891,27],[47897,24,47897,25],[47897,26,47897,27],[47903,24,47903,25],[47903,26,47903,27],[47909,24,47909,25],[47909,26,47909,27],[47915,24,47915,25],[47915,26,47915,27],[47921,24,47921,25],[47921,26,47921,27],[47927,24,47927,25],[47927,26,47927,27],[47933,24,47933,25],[47933,26,47933,27],[47939,24,47939,25],[47939,26,47939,27],[47945,24,47945,25],[47945,26,47945,27],[47951,24,47951,25],[47951,26,47951,27],[47957,24,47957,25],[47957,26,47957,27],[47963,24,47963,25],[47963,26,47963,27],[47969,24,47969,25],[47969,26,47969,27],[47771,24,47771,25],[47771,26,47771,27],[47777,24,47777,25],[47777,26,47777,27],[47783,24,47783,25],[47783,26,47783,27],[47789,24,47789,25],[47789,26,47789,27],[47795,24,47795,25],[47795,26,47795,27],[47801,24,47801,25],[47801,26,47801,27],[47807,24,47807,25],[47807,26,47807,27],[47813,24,47813,25],[47813,26,47813,27],[47819,24,47819,25],[47819,26,47819,27],[47825,24,47825,25],[47825,26,47825,27],[47831,24,47831,25],[47831,26,47831,27],[47837,24,47837,25],[47837,26,47837,27],[47843,24,47843,25],[47843,26,47843,27],[47849,24,47849,25],[47849,26,47849,27],[47855,24,47855,25],[47855,26,47855,27],[47861,24,47861,25],[47861,26,47861,27],[47867,24,47867,25],[47867,26,47867,27],[47669,24,47669,25],[47669,26,47669,27],[47675,24,47675,25],[47675,26,47675,27],[47681,24,47681,25],[47681,26,47681,27],[47687,24,47687,25],[47687,26,47687,27],[47693,24,47693,25],[47693,26,47693,27],[47699,24,47699,25],[47699,26,47699,27],[47705,24,47705,25],[47705,26,47705,27],[47711,24,47711,25],[47711,26,47711,27],[47717,24,47717,25],[47717,26,47717,27],[47723,24,47723,25],[47723,26,47723,27],[47729,24,47729,25],[47729,26,47729,27],[47735,24,47735,25],[47735,26,47735,27],[47741,24,47741,25],[47741,26,47741,27],[47747,24,47747,25],[47747,26,47747,27],[47753,24,47753,25],[47753,26,47753,27],[47759,24,47759,25],[47759,26,47759,27],[47765,24,47765,25],[47765,26,47765,27],[47567,24,47567,25],[47567,26,47567,27],[47573,24,47573,25],[47573,26,47573,27],[47579,24,47579,25],[47579,26,47579,27],[47585,24,47585,25],[47585,26,47585,27],[47591,24,47591,25],[47591,26,47591,27],[47597,24,47597,25],[47597,26,47597,27],[47603,24,47603,25],[47603,26,47603,27],[47609,24,47609,25],[47609,26,47609,27],[47615,24,47615,25],[47615,26,47615,27],[47621,24,47621,25],[47621,26,47621,27],[47627,24,47627,25],[47627,26,47627,27],[47633,24,47633,25],[47633,26,47633,27],[47639,24,47639,25],[47639,26,47639,27],[47645,24,47645,25],[47645,26,47645,27],[47651,24,47651,25],[47651,26,47651,27],[47657,24,47657,25],[47657,26,47657,27],[47663,24,47663,25],[47663,26,47663,27],[47465,24,47465,25],[47465,26,47465,27],[47471,24,47471,25],[47471,26,47471,27],[47477,24,47477,25],[47477,26,47477,27],[47483,24,47483,25],[47483,26,47483,27],[47489,24,47489,25],[47489,26,47489,27],[47495,24,47495,25],[47495,26,47495,27],[47501,24,47501,25],[47501,26,47501,27],[47507,24,47507,25],[47507,26,47507,27],[47513,24,47513,25],[47513,26,47513,27],[47519,24,47519,25],[47519,26,47519,27],[47525,24,47525,25],[47525,26,47525,27],[47531,24,47531,25],[47531,26,47531,27],[47537,24,47537,25],[47537,26,47537,27],[47543,24,47543,25],[47543,26,47543,27],[47549,24,47549,25],[47549,26,47549,27],[47555,24,47555,25],[47555,26,47555,27],[47561,24,47561,25],[47561,26,47561,27],[47363,24,47363,25],[47363,26,47363,27],[47369,24,47369,25],[47369,26,47369,27],[47375,24,47375,25],[47375,26,47375,27],[47381,24,47381,25],[47381,26,47381,27],[47387,24,47387,25],[47387,26,47387,27],[47393,24,47393,25],[47393,26,47393,27],[47399,24,47399,25],[47399,26,47399,27],[47405,24,47405,25],[47405,26,47405,27],[47411,24,47411,25],[47411,26,47411,27],[47417,24,47417,25],[47417,26,47417,27],[47423,24,47423,25],[47423,26,47423,27],[47429,24,47429,25],[47429,26,47429,27],[47435,24,47435,25],[47435,26,47435,27],[47441,24,47441,25],[47441,26,47441,27],[47447,24,47447,25],[47447,26,47447,27],[47453,24,47453,25],[47453,26,47453,27],[47459,24,47459,25],[47459,26,47459,27],[47261,24,47261,25],[47261,26,47261,27],[47267,24,47267,25],[47267,26,47267,27],[47273,24,47273,25],[47273,26,47273,27],[47279,24,47279,25],[47279,26,47279,27],[47285,24,47285,25],[47285,26,47285,27],[47291,24,47291,25],[47291,26,47291,27],[47297,24,47297,25],[47297,26,47297,27],[47303,24,47303,25],[47303,26,47303,27],[47309,24,47309,25],[47309,26,47309,27],[47315,24,47315,25],[47315,26,47315,27],[47321,24,47321,25],[47321,26,47321,27],[47327,24,47327,25],[47327,26,47327,27],[47333,24,47333,25],[47333,26,47333,27],[47339,24,47339,25],[47339,26,47339,27],[47345,24,47345,25],[47345,26,47345,27],[47351,24,47351,25],[47351,26,47351,27],[47357,24,47357,25],[47357,26,47357,27],[47159,24,47159,25],[47159,26,47159,27],[47165,24,47165,25],[47165,26,47165,27],[47171,24,47171,25],[47171,26,47171,27],[47177,24,47177,25],[47177,26,47177,27],[47183,24,47183,25],[47183,26,47183,27],[47189,24,47189,25],[47189,26,47189,27],[47195,24,47195,25],[47195,26,47195,27],[47201,24,47201,25],[47201,26,47201,27],[47207,24,47207,25],[47207,26,47207,27],[47213,24,47213,25],[47213,26,47213,27],[47219,24,47219,25],[47219,26,47219,27],[47225,24,47225,25],[47225,26,47225,27],[47231,24,47231,25],[47231,26,47231,27],[47237,24,47237,25],[47237,26,47237,27],[47243,24,47243,25],[47243,26,47243,27],[47249,24,47249,25],[47249,26,47249,27],[47255,24,47255,25],[47255,26,47255,27],[47057,24,47057,25],[47057,26,47057,27],[47063,24,47063,25],[47063,26,47063,27],[47069,24,47069,25],[47069,26,47069,27],[47075,24,47075,25],[47075,26,47075,27],[47081,24,47081,25],[47081,26,47081,27],[47087,24,47087,25],[47087,26,47087,27],[47093,24,47093,25],[47093,26,47093,27],[47099,24,47099,25],[47099,26,47099,27],[47105,24,47105,25],[47105,26,47105,27],[47111,24,47111,25],[47111,26,47111,27],[47117,24,47117,25],[47117,26,47117,27],[47123,24,47123,25],[47123,26,47123,27],[47129,24,47129,25],[47129,26,47129,27],[47135,24,47135,25],[47135,26,47135,27],[47141,24,47141,25],[47141,26,47141,27],[47147,24,47147,25],[47147,26,47147,27],[47153,24,47153,25],[47153,26,47153,27],[46955,24,46955,25],[46955,26,46955,27],[46961,24,46961,25],[46961,26,46961,27],[46967,24,46967,25],[46967,26,46967,27],[46973,24,46973,25],[46973,26,46973,27],[46979,24,46979,25],[46979,26,46979,27],[46985,24,46985,25],[46985,26,46985,27],[46991,24,46991,25],[46991,26,46991,27],[46997,24,46997,25],[46997,26,46997,27],[47003,24,47003,25],[47003,26,47003,27],[47009,24,47009,25],[47009,26,47009,27],[47015,24,47015,25],[47015,26,47015,27],[47021,24,47021,25],[47021,26,47021,27],[47027,24,47027,25],[47027,26,47027,27],[47033,24,47033,25],[47033,26,47033,27],[47039,24,47039,25],[47039,26,47039,27],[47045,24,47045,25],[47045,26,47045,27],[47051,24,47051,25],[47051,26,47051,27],[46853,24,46853,25],[46853,26,46853,27],[46859,24,46859,25],[46859,26,46859,27],[46865,24,46865,25],[46865,26,46865,27],[46871,24,46871,25],[46871,26,46871,27],[46877,24,46877,25],[46877,26,46877,27],[46883,24,46883,25],[46883,26,46883,27],[46889,24,46889,25],[46889,26,46889,27],[46895,24,46895,25],[46895,26,46895,27],[46901,24,46901,25],[46901,26,46901,27],[46907,24,46907,25],[46907,26,46907,27],[46913,24,46913,25],[46913,26,46913,27],[46919,24,46919,25],[46919,26,46919,27],[46925,24,46925,25],[46925,26,46925,27],[46931,24,46931,25],[46931,26,46931,27],[46937,24,46937,25],[46937,26,46937,27],[46943,24,46943,25],[46943,26,46943,27],[46949,24,46949,25],[46949,26,46949,27],[46751,24,46751,25],[46751,26,46751,27],[46757,24,46757,25],[46757,26,46757,27],[46763,24,46763,25],[46763,26,46763,27],[46769,24,46769,25],[46769,26,46769,27],[46775,24,46775,25],[46775,26,46775,27],[46781,24,46781,25],[46781,26,46781,27],[46787,24,46787,25],[46787,26,46787,27],[46793,24,46793,25],[46793,26,46793,27],[46799,24,46799,25],[46799,26,46799,27],[46805,24,46805,25],[46805,26,46805,27],[46811,24,46811,25],[46811,26,46811,27],[46817,24,46817,25],[46817,26,46817,27],[46823,24,46823,25],[46823,26,46823,27],[46829,24,46829,25],[46829,26,46829,27],[46835,24,46835,25],[46835,26,46835,27],[46841,24,46841,25],[46841,26,46841,27],[46847,24,46847,25],[46847,26,46847,27],[46649,24,46649,25],[46649,26,46649,27],[46655,24,46655,25],[46655,26,46655,27],[46661,24,46661,25],[46661,26,46661,27],[46667,24,46667,25],[46667,26,46667,27],[46673,24,46673,25],[46673,26,46673,27],[46679,24,46679,25],[46679,26,46679,27],[46685,24,46685,25],[46685,26,46685,27],[46691,24,46691,25],[46691,26,46691,27],[46697,24,46697,25],[46697,26,46697,27],[46703,24,46703,25],[46703,26,46703,27],[46709,24,46709,25],[46709,26,46709,27],[46715,24,46715,25],[46715,26,46715,27],[46721,24,46721,25],[46721,26,46721,27],[46727,24,46727,25],[46727,26,46727,27],[46733,24,46733,25],[46733,26,46733,27],[46739,24,46739,25],[46739,26,46739,27],[46745,24,46745,25],[46745,26,46745,27],[46547,24,46547,25],[46547,26,46547,27],[46553,24,46553,25],[46553,26,46553,27],[46559,24,46559,25],[46559,26,46559,27],[46565,24,46565,25],[46565,26,46565,27],[46571,24,46571,25],[46571,26,46571,27],[46577,24,46577,25],[46577,26,46577,27],[46583,24,46583,25],[46583,26,46583,27],[46589,24,46589,25],[46589,26,46589,27],[46595,24,46595,25],[46595,26,46595,27],[46601,24,46601,25],[46601,26,46601,27],[46607,24,46607,25],[46607,26,46607,27],[46613,24,46613,25],[46613,26,46613,27],[46619,24,46619,25],[46619,26,46619,27],[46625,24,46625,25],[46625,26,46625,27],[46631,24,46631,25],[46631,26,46631,27],[46637,24,46637,25],[46637,26,46637,27],[46643,24,46643,25],[46643,26,46643,27],[46445,24,46445,25],[46445,26,46445,27],[46451,24,46451,25],[46451,26,46451,27],[46457,24,46457,25],[46457,26,46457,27],[46463,24,46463,25],[46463,26,46463,27],[46469,24,46469,25],[46469,26,46469,27],[46475,24,46475,25],[46475,26,46475,27],[46481,24,46481,25],[46481,26,46481,27],[46487,24,46487,25],[46487,26,46487,27],[46493,24,46493,25],[46493,26,46493,27],[46499,24,46499,25],[46499,26,46499,27],[46505,24,46505,25],[46505,26,46505,27],[46511,24,46511,25],[46511,26,46511,27],[46517,24,46517,25],[46517,26,46517,27],[46523,24,46523,25],[46523,26,46523,27],[46529,24,46529,25],[46529,26,46529,27],[46535,24,46535,25],[46535,26,46535,27],[46541,24,46541,25],[46541,26,46541,27],[46343,24,46343,25],[46343,26,46343,27],[46349,24,46349,25],[46349,26,46349,27],[46355,24,46355,25],[46355,26,46355,27],[46361,24,46361,25],[46361,26,46361,27],[46367,24,46367,25],[46367,26,46367,27],[46373,24,46373,25],[46373,26,46373,27],[46379,24,46379,25],[46379,26,46379,27],[46385,24,46385,25],[46385,26,46385,27],[46391,24,46391,25],[46391,26,46391,27],[46397,24,46397,25],[46397,26,46397,27],[46403,24,46403,25],[46403,26,46403,27],[46409,24,46409,25],[46409,26,46409,27],[46415,24,46415,25],[46415,26,46415,27],[46421,24,46421,25],[46421,26,46421,27],[46427,24,46427,25],[46427,26,46427,27],[46433,24,46433,25],[46433,26,46433,27],[46439,24,46439,25],[46439,26,46439,27],[46241,24,46241,25],[46241,26,46241,27],[46247,24,46247,25],[46247,26,46247,27],[46253,24,46253,25],[46253,26,46253,27],[46259,24,46259,25],[46259,26,46259,27],[46265,24,46265,25],[46265,26,46265,27],[46271,24,46271,25],[46271,26,46271,27],[46277,24,46277,25],[46277,26,46277,27],[46283,24,46283,25],[46283,26,46283,27],[46289,24,46289,25],[46289,26,46289,27],[46295,24,46295,25],[46295,26,46295,27],[46301,24,46301,25],[46301,26,46301,27],[46307,24,46307,25],[46307,26,46307,27],[46313,24,46313,25],[46313,26,46313,27],[46319,24,46319,25],[46319,26,46319,27],[46325,24,46325,25],[46325,26,46325,27],[46331,24,46331,25],[46331,26,46331,27],[46337,24,46337,25],[46337,26,46337,27],[46139,24,46139,25],[46139,26,46139,27],[46145,24,46145,25],[46145,26,46145,27],[46151,24,46151,25],[46151,26,46151,27],[46157,24,46157,25],[46157,26,46157,27],[46163,24,46163,25],[46163,26,46163,27],[46169,24,46169,25],[46169,26,46169,27],[46175,24,46175,25],[46175,26,46175,27],[46181,24,46181,25],[46181,26,46181,27],[46187,24,46187,25],[46187,26,46187,27],[46193,24,46193,25],[46193,26,46193,27],[46199,24,46199,25],[46199,26,46199,27],[46205,24,46205,25],[46205,26,46205,27],[46211,24,46211,25],[46211,26,46211,27],[46217,24,46217,25],[46217,26,46217,27],[46223,24,46223,25],[46223,26,46223,27],[46229,24,46229,25],[46229,26,46229,27],[46235,24,46235,25],[46235,26,46235,27],[46037,24,46037,25],[46037,26,46037,27],[46043,24,46043,25],[46043,26,46043,27],[46049,24,46049,25],[46049,26,46049,27],[46055,24,46055,25],[46055,26,46055,27],[46061,24,46061,25],[46061,26,46061,27],[46067,24,46067,25],[46067,26,46067,27],[46073,24,46073,25],[46073,26,46073,27],[46079,24,46079,25],[46079,26,46079,27],[46085,24,46085,25],[46085,26,46085,27],[46091,24,46091,25],[46091,26,46091,27],[46097,24,46097,25],[46097,26,46097,27],[46103,24,46103,25],[46103,26,46103,27],[46109,24,46109,25],[46109,26,46109,27],[46115,24,46115,25],[46115,26,46115,27],[46121,24,46121,25],[46121,26,46121,27],[46127,24,46127,25],[46127,26,46127,27],[46133,24,46133,25],[46133,26,46133,27],[45935,24,45935,25],[45935,26,45935,27],[45941,24,45941,25],[45941,26,45941,27],[45947,24,45947,25],[45947,26,45947,27],[45953,24,45953,25],[45953,26,45953,27],[45959,24,45959,25],[45959,26,45959,27],[45965,24,45965,25],[45965,26,45965,27],[45971,24,45971,25],[45971,26,45971,27],[45977,24,45977,25],[45977,26,45977,27],[45983,24,45983,25],[45983,26,45983,27],[45989,24,45989,25],[45989,26,45989,27],[45995,24,45995,25],[45995,26,45995,27],[46001,24,46001,25],[46001,26,46001,27],[46007,24,46007,25],[46007,26,46007,27],[46013,24,46013,25],[46013,26,46013,27],[46019,24,46019,25],[46019,26,46019,27],[46025,24,46025,25],[46025,26,46025,27],[46031,24,46031,25],[46031,26,46031,27],[45833,24,45833,25],[45833,26,45833,27],[45839,24,45839,25],[45839,26,45839,27]],"merged_total":105924,"flags":["merged_cut"]}
[null,"B25119. MEDIAN HOUSEHOLD INCOME THE PAST 12 MONTHS (IN 2022 INFLATION-ADJUSTED DOLLARS) BY TENURE"]
[null," Universe:  OCCUPIED HOUSING UNITS"]
[null,"Data Set: 2018-2022 American Community Survey 5-Year Estimates"]
[]
[null,null,"Barrington",null,"Dover",null,"Durham",null,"Farmington",null,"Lee",null,"Madbury",null,"Middleton",null,"Milton",null,"New Durham",null,"Rochester",null,"Rollinsford",null,"Somersworth",null,"Strafford"]
[null,null,"Estimate","Margin Of Error","Estimate","Margin Of Error","Estimate","Margin Of Error","Estimate","Margin Of Error","Estimate","Margin Of Error","Estimate","Margin Of Error","Estimate","Margin Of Error","Estimate","Margin Of Error","Estimate","Margin Of Error","Estimate","Margin Of Error","Estimate","Margin Of Error","Estimate","Margin Of Error","Estimate","Margin Of Error"]
[null,"Median household income in the past 12 months"]
[null,"Total:",103258,22137,90844,4117,98190,15700,60978,12598,116350,31452,165583,24504,94300,13102,86534,21410,97000,14889,74882,5100,81184,16109,75841,2671,133889,26784]
[null,"Owner occupied (dollars)",112823,15711,128734,12759,157469,9932,74912,19056,133063,22510,205833,36665,100417,16365,92071,30571,104479,26625,86956,11532,93667,24133,83571,5926,139205,15835]
[null,"Renter occupied (dollars)",46958,43911,63988,9817,41069,8409,30740,7686,"-","**",78971,22158,45500,29347,39659,25306,59844,23934,49680,9616,45972,27467,59574,8638,62216,9697]
[]
[]
[]
[]
[]
[]
[]
[]
[]
[]
[]
[]
[]
[]
[]
[]
[]
[]
[]
[null,"B25119. MEDIAN HOUSEHOLD INCOME THE PAST 12 MONTHS (IN 2017 INFLATION-ADJUSTED DOLLARS) BY TENURE"]
[null," Universe:  OCCUPIED HOUSING UNITS"]
[null,"Data Set: 2013-2017 American Community Survey 5-Year Estimates"]
[]
[null,null,"Barrington",null,"Dover",null,"Durham",null,"Farmington",null,"Lee",null,"Madbury",null,"Middleton",null,"Milton",null,"New Durham",null,"Rochester",null,"Rollinsford",null,"Somersworth",null,"Strafford"]
[null,null,"Estimate","Margin Of Error","Estimate","Margin Of Error","Estimate","Margin Of Error","Estimate","Margin Of Error","Estimate","Margin Of Error","Estimate","Margin Of Error","Estimate","Margin Of Error","Estimate","Margin Of Error","Estimate","Margin Of Error","Estimate","Margin Of Error","Estimate","Margin Of Error","Estimate","Margin Of Error","Estimate","Margin Of Error"]
[null,"Median household income in the past 12 months"]
[null,"Total:",84126,6250,65922,4150,74267,11055,60562,14580,108462,14101,105795,16697,73466,5003,67214,6246,77596,13921,55767,6283,74470,5455,62777,6047,106250,18352]
[null,"Owner occupied (dollars)",86845,21896,91753,4506,132629,9023,82344,9910,117726,3940,118929,24311,76827,5455,71020,7252,82917,10724,70153,3218,95170,9622,75049,5396,111646,6686]
[null,"Renter occupied (dollars)",34712,29429,46839,3848,25633,3494,29819,14368,50875,25293,60139,7896,60972,11565,29048,7753,41023,24490,37845,7646,49236,23181,40263,12819,48984,4788]
[]
[]
[]
[]
[]
[]
[]
[]
[]
[]
[]
[]
[]
[]
[]
[]
[]
[]
[]
[null,"B25119. MEDIAN HOUSEHOLD INCOME THE PAST 12 MONTHS (IN 2012 INFLATION-ADJUSTED DOLLARS) BY TENURE"]
[null," Universe:  OCCUPIED HOUSING UNITS"]
[null,"Data Set: 2008-2012 American Community Survey 5-Year Estimates"]
[]
[null,null,"Barrington",null,"Dover",null,"Durham",null,"Farmington",null,"Lee",null,"Madbury",null,"Middleton",null,"Milton",null,"New Durham",null,"Rochester",null,"Rollinsford",null,"Somersworth",null,"Strafford"]
[null,null,"Estimate","Margin Of Error","Estimate","Margin Of Error","Estimate","Margin Of Error","Estimate","Margin Of Error","Estimate","Margin Of Error","Estimate","Margin Of Error","Estimate","Margin Of Error","Estimate","Margin Of Error","Estimate","Margin Of Error","Estimate","Margin Of Error","Estimate","Margin Of Error","Estimate","Margin Of Error","Estimate","Margin Of Error"]
[null,"Median household income in the past 12 months"]
[null,"Total:",81714,7363,55890,3014,72176,13879,55451,7770,74873,9840,82500,14547,55703,8555,59467,6719,80511,8678,49366,2913,63605,8576,53354,7713,85682,15781]
[null,"Owner occupied (dollars)",87778,6591,82242,6529,113494,9431,68770,11203,85667,17107,98289,7156,57109,7073,60099,7145,87045,11719,63925,3448,76932,11856,69643,9433,87273,11615]
[null,"Renter occupied (dollars)",48750,11762,37533,3846,17761,4082,33036,17578,58359,27212,50417,25563,22031,25171,46042,55718,33250,35367,28716,2218,27614,5138,44750,14261,26389,91868]

{"sheet":"ACS_Table_B25001","index":37,"n_rows":29,"n_cols":28,"rows_kept":29,"cut":false,"hidden":true,"merged":[]}
[null,"B25001. HOUSING UNITS"]
[null,"Universe:  HOUSING UNITS"]
[null,"Data Set: 2018-2022 American Community Survey 5-Year Estimates"]
[]
[null,null,"Barrington",null,"Dover",null,"Durham",null,"Farmington",null,"Lee",null,"Madbury",null,"Middleton",null,"Milton",null,"New Durham",null,"Rochester",null,"Rollinsford",null,"Somersworth",null,"Strafford"]
[null,null,"Estimate","Margin Of Error","Estimate","Margin Of Error","Estimate","Margin Of Error","Estimate","Margin Of Error","Estimate","Margin Of Error","Estimate","Margin Of Error","Estimate","Margin Of Error","Estimate","Margin Of Error","Estimate","Margin Of Error","Estimate","Margin Of Error","Estimate","Margin Of Error","Estimate","Margin Of Error","Estimate","Margin Of Error"]
[null,"Total",3651,286,15245,519,3784,264,2977,272,2023,213,715,76,752,114,1909,144,1579,132,14309,384,1156,130,5701,342,1871,118]
[]
[]
[]
[]
[null,"B25001. HOUSING UNITS"]
[null,"Universe:  HOUSING UNITS"]
[null,"Data Set: 2013-2017 American Community Survey 5-Year Estimates"]
[]
[null,null,"Barrington",null,"Dover",null,"Durham",null,"Farmington",null,"Lee",null,"Madbury",null,"Middleton",null,"Milton",null,"New Durham",null,"Rochester",null,"Rollinsford",null,"Somersworth",null,"Strafford"]
[null,null,"Estimate","Margin Of Error","Estimate","Margin Of Error","Estimate","Margin Of Error","Estimate","Margin Of Error","Estimate","Margin Of Error","Estimate","Margin Of Error","Estimate","Margin Of Error","Estimate","Margin Of Error","Estimate","Margin Of Error","Estimate","Margin Of Error","Estimate","Margin Of Error","Estimate","Margin Of Error","Estimate","Margin Of Error"]
[null,"Total",3668,222,13895,347,3818,267,3076,209,1752,139,666,66,780,87,2040,125,1667,76,13661,337,1139,69,5214,275,1733,109]
[]
[]
[]
[]
[null,"B25001. HOUSING UNITS"]
[null,"Universe:  HOUSING UNITS"]
[null,"Data Set: 2008-2012 American Community Survey 5-Year Estimates"]
[]
[null,null,"Barrington",null,"Dover",null,"Durham",null,"Farmington",null,"Lee",null,"Madbury",null,"Middleton",null,"Milton",null,"New Durham",null,"Rochester",null,"Rollinsford",null,"Somersworth",null,"Strafford"]
[null,null,"Estimate","Margin Of Error","Estimate","Margin Of Error","Estimate","Margin Of Error","Estimate","Margin Of Error","Estimate","Margin Of Error","Estimate","Margin Of Error","Estimate","Margin Of Error","Estimate","Margin Of Error","Estimate","Margin Of Error","Estimate","Margin Of Error","Estimate","Margin Of Error","Estimate","Margin Of Error","Estimate","Margin Of Error"]
[null,"Total",3356,243,13252,393,3701,360,2831,212,1919,192,693,68,826,69,2085,174,1395,97,14003,458,1081,79,4823,254,1713,142]

{"sheet":"ACS_Table_B25003","index":38,"n_rows":42,"n_cols":28,"rows_kept":42,"cut":false,"hidden":true,"merged":[]}
[null,"B25003. TENURE"]
[null,"Universe:  OCCUPIED HOUSING UNITS"]
[null,"Data Set: 2018-2022 American Community Survey 5-Year Estimates"]
[]
[null,null,"Barrington",null,"Dover",null,"Durham",null,"Farmington",null,"Lee",null,"Madbury",null,"Middleton",null,"Milton",null,"New Durham",null,"Rochester",null,"Rollinsford",null,"Somersworth",null,"Strafford"]
[null,null,"Estimate","Margin Of Error","Estimate","Margin Of Error","Estimate","Margin Of Error","Estimate","Margin Of Error","Estimate","Margin Of Error","Estimate","Margin Of Error","Estimate","Margin Of Error","Estimate","Margin Of Error","Estimate","Margin Of Error","Estimate","Margin Of Error","Estimate","Margin Of Error","Estimate","Margin Of Error","Estimate","Margin Of Error"]
[null,"Total:",3401,227,14606,524,3000,226,2911,264,1839,183,688,80,556,90,1664,125,1004,107,13542,419,1070,112,5232,318,1440,98]
[null,"Owner occupied",3074,266,7585,556,1857,246,2024,274,1672,189,558,91,522,88,1452,134,911,97,8933,466,868,116,3388,318,1343,94]
[null,"Renter occupied",327,147,7021,521,1143,175,887,218,167,125,130,59,34,20,212,93,93,60,4609,426,202,72,1844,355,97,56]
[]
[]
[]
[]
[]
[]
[]
[]
[]
[]
[]
[]
[null,"B25003. TENURE"]
[null,"Universe:  OCCUPIED HOUSING UNITS"]
[null,"Data Set: 2013-2017 American Community Survey 5-Year Estimates"]
[]
[null,null,"Barrington",null,"Dover",null,"Durham",null,"Farmington",null,"Lee",null,"Madbury",null,"Middleton",null,"Milton",null,"New Durham",null,"Rochester",null,"Rollinsford",null,"Somersworth",null,"Strafford"]
[null,null,"Estimate","Margin Of Error","Estimate","Margin Of Error","Estimate","Margin Of Error","Estimate","Margin Of Error","Estimate","Margin Of Error","Estimate","Margin Of Error","Estimate","Margin Of Error","Estimate","Margin Of Error","Estimate","Margin Of Error","Estimate","Margin Of Error","Estimate","Margin Of Error","Estimate","Margin Of Error","Estimate","Margin Of Error"]
[null,"Total:",3388,209,13194,359,3325,237,2719,176,1752,139,621,60,595,70,1732,107,995,58,12837,353,1048,57,4905,237,1432,100]
[null,"Owner occupied",3118,226,7021,367,1833,175,1850,201,1450,148,538,63,499,74,1520,115,921,56,8308,395,765,74,2735,242,1287,101]
[null,"Renter occupied",270,160,6173,387,1492,188,869,263,302,146,83,29,96,35,212,74,74,47,4529,385,283,71,2170,282,145,52]
[]
[]
[]
[null,"B25003. TENURE"]
[null,"Universe:  OCCUPIED HOUSING UNITS"]
[null,"Data Set: 2008-2012 American Community Survey 5-Year Estimates"]
[]
[null,null,"Barrington",null,"Dover",null,"Durham",null,"Farmington",null,"Lee",null,"Madbury",null,"Middleton",null,"Milton",null,"New Durham",null,"Rochester",null,"Rollinsford",null,"Somersworth",null,"Strafford"]
[null,null,"Estimate","Margin Of Error","Estimate","Margin Of Error","Estimate","Margin Of Error","Estimate","Margin Of Error","Estimate","Margin Of Error","Estimate","Margin Of Error","Estimate","Margin Of Error","Estimate","Margin Of Error","Estimate","Margin Of Error","Estimate","Margin Of Error","Estimate","Margin Of Error","Estimate","Margin Of Error","Estimate","Margin Of Error"]
[null,"Total:",2987,193,12512,344,3327,354,2646,185,1773,146,656,57,593,63,1660,130,955,62,12762,368,1020,77,4552,227,1378,88]
[null,"Owner occupied",2576,226,6495,370,2029,239,1838,249,1560,142,514,49,555,62,1445,127,860,69,8858,400,759,75,2522,270,1282,113]
[null,"Renter occupied",411,124,6017,349,1298,221,808,220,213,87,142,53,38,27,215,92,95,44,3904,353,261,66,2030,250,96,65]

{"sheet":"ACS_Table_B25004","index":39,"n_rows":56,"n_cols":28,"rows_kept":56,"cut":false,"hidden":true,"merged":[]}
[null,"B25004. VACANCY STATUS"]
[null,"Universe:  VACANT HOUSING UNITS"]
[null,"Data Set: 2018-2022 American Community Survey 5-Year Estimates"]
[]
[null,null,"Barrington",null,"Dover",null,"Durham",null,"Farmington",null,"Lee",null,"Madbury",null,"Middleton",null,"Milton",null,"New Durham",null,"Rochester",null,"Rollinsford",null,"Somersworth",null,"Strafford"]
[null,null,"Estimate","Margin Of Error","Estimate","Margin Of Error","Estimate","Margin Of Error","Estimate","Margin Of Error","Estimate","Margin Of Error","Estimate","Margin Of Error","Estimate","Margin Of Error","Estimate","Margin Of Error","Estimate","Margin Of Error","Estimate","Margin Of Error","Estimate","Margin Of Error","Estimate","Margin Of Error","Estimate","Margin Of Error"]
[null,"Total:",250,159,639,266,784,160,66,73,184,131,27,21,196,72,245,90,575,98,767,283,86,64,469,216,431,116]
[null,"For rent",0,17,353,192,151,86,45,66,47,71,0,12,0,12,0,12,0,12,292,166,42,46,226,167,0,12]
[null,"Rented, not occupied",0,17,47,77,359,142,0,17,0,12,0,12,0,12,0,12,0,12,28,45,0,12,35,55,16,25]
[null,"For sale only",0,17,57,63,0,19,0,17,0,12,0,12,9,14,0,12,0,12,29,44,0,12,0,19,0,12]
[null,"Sold, not occupied",47,69,0,25,0,19,0,17,0,12,0,12,10,16,0,12,0,12,31,39,0,12,38,61,27,42]
[null,"For seasonal, recreational, or occasional use",203,146,79,90,79,64,21,36,73,115,0,12,177,71,193,83,547,101,115,108,27,31,0,19,361,116]
[null,"For migrant workers",0,17,0,25,0,19,0,17,0,12,0,12,0,12,0,12,0,12,0,25,0,12,0,19,0,12]
[null,"Other vacant",0,17,103,85,195,94,0,17,64,85,27,21,0,12,52,59,28,27,272,152,17,28,170,116,27,44]
[]
[]
[]
[]
[]
[]
[]
[null,"B25004. VACANCY STATUS"]
[null,"Universe:  VACANT HOUSING UNITS"]
[null,"Data Set: 2013-2017 American Community Survey 5-Year Estimates"]
[]
[null,null,"Barrington",null,"Dover",null,"Durham",null,"Farmington",null,"Lee",null,"Madbury",null,"Middleton",null,"Milton",null,"New Durham",null,"Rochester",null,"Rollinsford",null,"Somersworth",null,"Strafford"]
[null,null,"Estimate","Margin Of Error","Estimate","Margin Of Error","Estimate","Margin Of Error","Estimate","Margin Of Error","Estimate","Margin Of Error","Estimate","Margin Of Error","Estimate","Margin Of Error","Estimate","Margin Of Error","Estimate","Margin Of Error","Estimate","Margin Of Error","Estimate","Margin Of Error","Estimate","Margin Of Error","Estimate","Margin Of Error"]
[null,"Total:",280,154,701,237,493,134,357,186,0,11,45,29,185,54,308,106,672,72,824,248,91,54,309,168,301,92]
[null,"For rent",0,16,330,186,169,90,0,16,0,11,0,11,0,11,31,46,17,26,258,146,0,11,0,18,0,11]
[null,"Rented, not occupied",0,16,0,24,197,111,0,16,0,11,0,11,0,11,0,11,0,11,113,108,0,11,57,95,10,15]
[null,"For sale only",0,16,36,56,15,23,0,16,0,11,3,5,3,4,24,37,49,42,197,133,32,32,111,112,0,11]
[null,"Sold, not occupied",0,16,0,24,0,18,0,16,0,11,0,11,0,11,0,11,0,11,0,24,21,33,0,18,0,11]
[null,"For seasonal, recreational, or occasional use",208,134,20,22,5,8,203,145,0,11,16,19,158,49,199,88,586,78,0,24,6,9,0,18,284,91]
[null,"For migrant workers",0,16,0,24,0,18,0,16,0,11,0,11,0,11,0,11,0,11,40,61,0,11,0,18,0,11]
[null,"Other vacant",72,80,315,174,107,67,154,122,0,11,26,24,24,21,54,52,20,22,216,139,32,34,141,125,7,12]
[]
[]
[]
[]
[]
[]
[]
[null,"B25004. VACANCY STATUS"]
[null,"Universe:  VACANT HOUSING UNITS"]
[null,"Data Set: 2008-2012 American Community Survey 5-Year Estimates"]
[]
[null,null,"Barrington",null,"Dover",null,"Durham",null,"Farmington",null,"Lee",null,"Madbury",null,"Middleton",null,"Milton",null,"New Durham",null,"Rochester",null,"Rollinsford",null,"Somersworth",null,"Strafford"]
[null,null,"Estimate","Margin Of Error","Estimate","Margin Of Error","Estimate","Margin Of Error","Estimate","Margin Of Error","Estimate","Margin Of Error","Estimate","Margin Of Error","Estimate","Margin Of Error","Estimate","Margin Of Error","Estimate","Margin Of Error","Estimate","Margin Of Error","Estimate","Margin Of Error","Estimate","Margin Of Error","Estimate","Margin Of Error"]
[null,"Total:",369,152,740,276,374,118,185,102,146,109,37,49,233,56,425,115,440,94,1241,336,61,41,271,155,335,98]
[null,"For rent",0,16,327,180,77,63,20,31,67,84,0,11,0,11,0,11,16,26,252,147,0,11,104,112,0,11]
[null,"Rented, not occupied",0,16,0,24,120,73,0,16,0,11,0,11,0,11,0,11,0,11,77,83,25,28,0,18,0,11]
[null,"For sale only",98,111,88,93,33,51,36,58,53,59,29,47,8,13,0,11,6,8,189,122,0,11,0,18,14,23]
[null,"Sold, not occupied",0,16,60,86,0,18,27,37,0,11,0,11,0,11,16,24,0,11,138,136,0,11,0,18,0,11]
[null,"For seasonal, recreational, or occasional use",228,128,121,90,70,57,24,39,26,41,8,13,197,53,294,109,404,89,222,149,15,23,167,140,263,95]
[null,"For migrant workers",0,16,0,24,0,18,0,16,0,11,0,11,0,11,0,11,0,11,0,21,0,11,0,18,0,11]
[null,"Other vacant",43,60,144,118,74,56,78,68,0,11,0,11,28,25,115,77,14,22,363,192,21,24,0,18,58,56]

{"sheet":"ACS_Table_B25008","index":40,"n_rows":51,"n_cols":28,"rows_kept":51,"cut":false,"hidden":true,"merged":[]}
[null,"B25008. TOTAL POPULATION IN OCCUPIED HOUSING UNITS BY TENURE"]
[null,"Universe:  TOTAL POPULATION IN OCCUPIED HOUSING UNITS"]
[null,"Data Set: 2018-2022 American Community Survey 5-Year Estimates"]
[]
[null,null,"Barrington",null,"Dover",null,"Durham",null,"Farmington",null,"Lee",null,"Madbury",null,"Middleton",null,"Milton",null,"New Durham",null,"Rochester",null,"Rollinsford",null,"Somersworth",null,"Strafford"]
[null,null,"Estimate","Margin Of Error","Estimate","Margin Of Error","Estimate","Margin Of Error","Estimate","Margin Of Error","Estimate","Margin Of Error","Estimate","Margin Of Error","Estimate","Margin Of Error","Estimate","Margin Of Error","Estimate","Margin Of Error","Estimate","Margin Of Error","Estimate","Margin Of Error","Estimate","Margin Of Error","Estimate","Margin Of Error"]
[null,"Total:",9339,19,31867,36,7888,186,6749,21,4532,16,2208,278,1537,276,4492,19,2711,17,32338,27,2597,24,11980,21,4251,27]
[null,"Owner occupied",8667,314,18393,1083,4946,587,5157,459,4365,123,1828,301,1452,273,4110,213,2556,96,21740,1003,2185,167,8369,711,4066,98]
[null,"Renter occupied",672,315,13474,1089,2942,568,1592,460,167,125,380,183,85,55,382,211,155,96,10598,1007,412,166,3611,712,185,92]
[]
[]
[]
[]
[]
[]
[]
[]
[]
[]
[]
[]
[null,"B25008. TOTAL POPULATION IN OCCUPIED HOUSING UNITS BY TENURE"]
[null,"Universe:  TOTAL POPULATION IN OCCUPIED HOUSING UNITS"]
[null,"Data Set: 2013-2017 American Community Survey 5-Year Estimates"]
[]
[null,null,"Barrington",null,"Dover",null,"Durham",null,"Farmington",null,"Lee",null,"Madbury",null,"Middleton",null,"Milton",null,"New Durham",null,"Rochester",null,"Rollinsford",null,"Somersworth",null,"Strafford"]
[null,null,"Estimate","Margin Of Error","Estimate","Margin Of Error","Estimate","Margin Of Error","Estimate","Margin Of Error","Estimate","Margin Of Error","Estimate","Margin Of Error","Estimate","Margin Of Error","Estimate","Margin Of Error","Estimate","Margin Of Error","Estimate","Margin Of Error","Estimate","Margin Of Error","Estimate","Margin Of Error","Estimate","Margin Of Error"]
[null,"Total:",8841,20,29990,267,8461,444,6834,16,4361,20,1906,157,1687,154,4597,17,2663,22,30027,56,2529,20,11783,33,4052,19]
[null,"Owner occupied",8245,351,17176,915,4776,474,5011,542,3805,268,1671,170,1360,180,4097,202,2542,78,19708,893,1993,146,7152,611,3785,159]
[null,"Renter occupied",596,353,12814,924,3685,467,1823,542,556,269,235,101,327,120,500,202,121,73,10319,896,536,144,4631,613,267,159]
[]
[]
[]
[]
[]
[]
[]
[]
[]
[]
[]
[]
[null,"B25008. TOTAL POPULATION IN OCCUPIED HOUSING UNITS BY TENURE"]
[null,"Universe:  TOTAL POPULATION IN OCCUPIED HOUSING UNITS"]
[null,"Data Set: 2008-2012 American Community Survey 5-Year Estimates"]
[]
[null,null,"Barrington",null,"Dover",null,"Durham",null,"Farmington",null,"Lee",null,"Madbury",null,"Middleton",null,"Milton",null,"New Durham",null,"Rochester",null,"Rollinsford",null,"Somersworth",null,"Strafford"]
[null,null,"Estimate","Margin Of Error","Estimate","Margin Of Error","Estimate","Margin Of Error","Estimate","Margin Of Error","Estimate","Margin Of Error","Estimate","Margin Of Error","Estimate","Margin Of Error","Estimate","Margin Of Error","Estimate","Margin Of Error","Estimate","Margin Of Error","Estimate","Margin Of Error","Estimate","Margin Of Error","Estimate","Margin Of Error"]
[null,"Total:",8588,19,29015,325,8433,731,6754,29,4318,24,2017,164,1532,166,4564,47,2624,22,29577,64,2540,18,11754,36,3986,18]
[null,"Owner occupied",7328,524,16800,948,5826,652,4880,609,3807,195,1659,196,1435,167,4031,251,2379,113,21454,915,2047,129,6759,657,3691,229]
[null,"Renter occupied",1260,525,12215,843,2607,439,1874,609,511,191,358,153,97,68,533,249,245,111,8123,904,493,130,4995,656,295,229]

{"sheet":"ACS_Table_B25024","index":41,"n_rows":78,"n_cols":28,"rows_kept":78,"cut":false,"hidden":true,"merged":[]}
[null,"B25024. UNITS IN STRUCTURE "]
[null,"Universe:  HOUSING UNITS"]
[null,"Data Set: 2018-2022 American Community Survey 5-Year Estimates"]
[]
[null,null,"Barrington",null,"Dover",null,"Durham",null,"Farmington",null,"Lee",null,"Madbury",null,"Middleton",null,"Milton",null,"New Durham",null,"Rochester",null,"Rollinsford",null,"Somersworth",null,"Strafford"]
[null,null,"Estimate","Margin Of Error","Estimate","Margin Of Error","Estimate","Margin Of Error","Estimate","Margin Of Error","Estimate","Margin Of Error","Estimate","Margin Of Error","Estimate","Margin Of Error","Estimate","Margin Of Error","Estimate","Margin Of Error","Estimate","Margin Of Error","Estimate","Margin Of Error","Estimate","Margin Of Error","Estimate","Margin Of Error"]
[null,"Total:",3651,286,15245,519,3784,264,2977,272,2023,213,715,76,752,114,1909,144,1579,132,14309,384,1156,130,5701,342,1871,118]
[null,"1, detached",2631,288,6391,460,1942,267,1923,249,1563,249,524,88,668,105,1542,121,1476,141,7082,448,822,97,2688,300,1568,141]
[null,"1, attached",96,77,987,276,316,120,35,39,157,86,85,48,2,4,30,29,19,18,469,148,20,18,57,58,90,73]
[null,2,73,80,1110,266,238,117,151,111,51,71,61,29,13,16,29,34,14,15,956,266,80,52,954,300,72,53]
[null,"3 or 4",13,21,1831,407,181,72,152,148,0,12,3,4,0,12,73,61,0,12,1129,333,97,53,634,246,19,18]
[null,"5 to 9",133,87,1356,280,131,76,165,102,68,86,0,12,0,12,59,50,0,12,621,165,122,64,150,97,0,12]
[null,"10 to 19",30,50,834,239,330,109,82,83,0,12,0,12,0,12,15,25,0,12,575,297,0,12,225,167,0,12]
[null,"20 to 49",0,17,1548,407,342,146,95,73,0,12,0,12,0,12,0,12,0,12,732,252,0,12,313,137,0,12]
[null,"50 or more",0,17,744,163,295,109,0,17,0,12,0,12,0,12,0,12,0,12,412,189,0,12,274,192,0,12]
[null,"Mobile home",675,187,444,175,9,15,374,161,184,104,42,40,69,27,161,62,70,57,2333,354,15,13,406,126,122,63]
[null,"Boat, RV, van, etc.",0,17,0,25,0,19,0,17,0,12,0,12,0,12,0,12,0,12,0,25,0,12,0,19,0,12]
[]
[]
[null,"Calculated B25024. UNITS IN STRUCTURE "]
[null,"Universe:  HOUSING UNITS"]
[null,{"$f":"B3","v":"Data Set: 2018-2022 American Community Survey 5-Year Estimates"}]
[]
[null,null,"Barrington",null,"Dover",null,"Durham",null,"Farmington",null,"Lee",null,"Madbury",null,"Middleton",null,"Milton",null,"New Durham",null,"Rochester",null,"Rollinsford",null,"Somersworth",null,"Strafford"]
[null,null,"Estimate","Margin Of Error","Estimate","Margin Of Error","Estimate","Margin Of Error","Estimate","Margin Of Error","Estimate","Margin Of Error","Estimate","Margin Of Error","Estimate","Margin Of Error","Estimate","Margin Of Error","Estimate","Margin Of Error","Estimate","Margin Of Error","Estimate","Margin Of Error","Estimate","Margin Of Error","Estimate","Margin Of Error"]
[null,"Total:",{"$f":"C7","v":3651},286,15245,519,3784,264,2977,272,2023,213,715,76,752,114,1909,144,1579,132,14309,384,1156,130,{"$f":"Y7","v":5701},342,1871,118]
[null,"Single Family",{"$f":"C8","v":2631},288,6391,460,1942,267,1923,249,1563,249,524,88,668,105,1542,121,1476,141,7082,448,822,97,2688,300,1568,141]
[null,"Multi-Family",{"$f":"C9+C10+C11+C12+C13+C14+C15","v":345},{"$f":"SQRT((D9^2)+(D10^2)+(D11^2)+(D12^2)+(D13^2)+(D14^2)+(D15^2))","v":153.02614155757831},{"$f":"E9+E10+E11+E12+E13+E14+E15","v":8410},{"$f":"SQRT((F9^2)+(F10^2)+(F11^2)+(F12^2)+(F13^2)+(F14^2)+(F15^2))","v":800.199975006248},{"$f":"G9+G10+G11+G12+G13+G14+G15","v":1833},{"$f":"SQRT((H9^2)+(H10^2)+(H11^2)+(H12^2)+(H13^2)+(H14^2)+(H15^2))","v":290.04654798842205},{"$f":"I9+I10+I11+I12+I13+I14+I15","v":680},{"$f":"SQRT((J9^2)+(J10^2)+(J11^2)+(J12^2)+(J13^2)+(J14^2)+(J15^2))","v":242.19207253748004},{"$f":"K9+K10+K11+K12+K13+K14+K15","v":276},{"$f":"SQRT((L9^2)+(L10^2)+(L11^2)+(L12^2)+(L13^2)+(L14^2)+(L15^2))","v":142.8600713985542},{"$f":"M9+M10+M11+M12+M13+M14+M15","v":149},{"$f":"SQRT((N9^2)+(N10^2)+(N11^2)+(N12^2)+(N13^2)+(N14^2)+(N15^2))","v":61.1310068623117},{"$f":"O9+O10+O11+O12+O13+O14+O15","v":15},{"$f":"SQRT((P9^2)+(P10^2)+(P11^2)+(P12^2)+(P13^2)+(P14^2)+(P15^2))","v":31.496031496047245},{"$f":"Q9+Q10+Q11+Q12+Q13+Q14+Q15","v":206},{"$f":"SQRT((R9^2)+(R10^2)+(R11^2)+(R12^2)+(R13^2)+(R14^2)+(R15^2))","v":95.556266147228669},{"$f":"S9+S10+S11+S12+S13+S14+S15","v":33},{"$f":"SQRT((T9^2)+(T10^2)+(T11^2)+(T12^2)+(T13^2)+(T14^2)+(T15^2))","v":35.62302626111375},{"$f":"U9+U10+U11+U12+U13+U14+U15","v":4894},{"$f":"SQRT((V9^2)+(V10^2)+(V11^2)+(V12^2)+(V13^2)+(V14^2)+(V15^2))","v":646.69003394207334},{"$f":"W9+W10+W11+W12+W13+W14+W15","v":319},{"$f":"SQRT((X9^2)+(X10^2)+(X11^2)+(X12^2)+(X13^2)+(X14^2)+(X15^2))","v":101.80864403379509},{"$f":"Y9+Y10+Y11+Y12+Y13+Y14+Y15","v":2607},{"$f":"SQRT((Z9^2)+(Z10^2)+(Z11^2)+(Z12^2)+(Z13^2)+(Z14^2)+(Z15^2))","v":496.80076489474129},{"$f":"AA9+AA10+AA11+AA12+AA13+AA14+AA15","v":181},{"$f":"SQRT((AB9^2)+(AB10^2)+(AB11^2)+(AB12^2)+(AB13^2)+(AB14^2)+(AB15^2))","v":95.068396431201052}]
[null,"Mobile Home & Other",{"$f":"C16+C17","v":675},{"$f":"SQRT((D16^2)+(D17^2))","v":187.77113729218343},{"$f":"E16+E17","v":444},{"$f":"SQRT((F16^2)+(F17^2))","v":176.77669529663689},{"$f":"G16+G17","v":9},{"$f":"SQRT((H16^2)+(H17^2))","v":24.207436873820409},{"$f":"I16+I17","v":374},{"$f":"SQRT((J16^2)+(J17^2))","v":161.89502771858065},{"$f":"K16+K17","v":184},{"$f":"SQRT((L16^2)+(L17^2))","v":104.6900186264192},{"$f":"M16+M17","v":42},{"$f":"SQRT((N16^2)+(N17^2))","v":41.761226035642203},{"$f":"O16+O17","v":69},{"$f":"SQRT((P16^2)+(P17^2))","v":29.546573405388315},{"$f":"Q16+Q17","v":161},{"$f":"SQRT((R16^2)+(R17^2))","v":63.150613615387776},{"$f":"S16+S17","v":70},{"$f":"SQRT((T16^2)+(T17^2))","v":58.249463516842795},{"$f":"U16+U17","v":2333},{"$f":"SQRT((V16^2)+(V17^2))","v":354.8816704198739},{"$f":"W16+W17","v":15},{"$f":"SQRT((X16^2)+(X17^2))","v":17.691806012954132},{"$f":"Y16+Y17","v":406},{"$f":"SQRT((Z16^2)+(Z17^2))","v":127.4244874425634},{"$f":"AA16+AA17","v":122},{"$f":"SQRT((AB16^2)+(AB17^2))","v":64.132674979295857}]
[]
[]
[]
[]
[]
[]
[]
[]
[]
[]
[]
[]
[]
[]
[]
[]
[]
[]
[]
[]
[]
[]
[]
[]
[]
[]
[]
[null,"Calculated B25024. UNITS IN STRUCTURE "]
[null,"Universe:  HOUSING UNITS"]
[null,"Data Set: 2013-2017 American Community Survey 5-Year Estimates"]
[]
[null,null,"Barrington",null,"Dover",null,"Durham",null,"Farmington",null,"Lee",null,"Madbury",null,"Middleton",null,"Milton",null,"New Durham",null,"Rochester",null,"Rollinsford",null,"Somersworth",null,"Strafford"]
[null,null,"Estimate","Margin Of Error","Estimate","Margin Of Error","Estimate","Margin Of Error","Estimate","Margin Of Error","Estimate","Margin Of Error","Estimate","Margin Of Error","Estimate","Margin Of Error","Estimate","Margin Of Error","Estimate","Margin Of Error","Estimate","Margin Of Error","Estimate","Margin Of Error","Estimate","Margin Of Error","Estimate","Margin Of Error"]
[null,"Total:",3668,222,13895,347,3818,267,3076,209,1752,139,666,66,780,87,2040,125,1667,76,13661,337,1139,69,5214,275,1733,109]
[null,"Single Family",2782,279,6136,355,2171,203,2023,302,1138,130,467,69,688,87,1554,125,1558,82,6662,372,828,82,2443,262,1520,124]
[null,"Multi-Family",370,175.87779848519824,7331,614.21494608972193,1633,238.87235084873259,439,196.16574624536261,379,163.07973509912259,124,46.486557196677836,20,32.756678708318397,208,92.293011653104045,12,27.386127875258307,4890,559.3093955942453,299,94.398093201081139,2172,356.28499828087064,143,82.249620059912743]
[null,"Mobile Home & Other",516,234.54637068179076,428,150.9205088780183,14,15.811388300841896,614,237.76038357977134,235,116.52038448271615,75,28.231188426986208,72,31.016124838541646,278,96.628153247384375,97,51.195702944680818,2109,280.03035549739963,12,14.866068747318506,599,148.0979405663698,70,68.8839603971781]
[]
[]
[null,"Calculated B25024. UNITS IN STRUCTURE "]
[null,"Universe:  HOUSING UNITS"]
[null,"Data Set: 2008-2012 American Community Survey 5-Year Estimates"]
[]
[null,null,"Barrington",null,"Dover",null,"Durham",null,"Farmington",null,"Lee",null,"Madbury",null,"Middleton",null,"Milton",null,"New Durham",null,"Rochester",null,"Rollinsford",null,"Somersworth",null,"Strafford"]
[null,null,"Estimate","Margin Of Error","Estimate","Margin Of Error","Estimate","Margin Of Error","Estimate","Margin Of Error","Estimate","Margin Of Error","Estimate","Margin Of Error","Estimate","Margin Of Error","Estimate","Margin Of Error","Estimate","Margin Of Error","Estimate","Margin Of Error","Estimate","Margin Of Error","Estimate","Margin Of Error","Estimate","Margin Of Error"]
[null,"Total:",3356,243,13252,393,3701,360,2831,212,1919,192,693,68,826,69,2085,174,1395,97,14003,458,1081,79,4823,254,1713,142]
[null,"Single Family",2770,218,5986,396,2112,240,1629,202,1263,143,529,62,755,70,1546,177,1298,101,6934,443,784,79,2270,248,1487,167]
[null,"Multi-Family",219,105.48459603183775,6899,551.08710745217036,1578,249.55961211702507,685,193.01036241611484,376,134.25721582097552,111,47.47630988187688,3,27.239676943752471,213,92.983869568866623,36,39.484174044799268,4554,482.5194296606096,295,87.458561616344909,2117,334.34263862092132,109,74.953318805774032]
[null,"Mobile Home & Other",367,117.09824934643558,367,97.984692682071525,11,24.758836806279895,517,178.71765441612084,280,99.609236519511583,53,25.495097567963924,68,30.083217912982647,326,86.700634369074834,61,29.154759474226502,2515,304.72446570631638,2,11.704699910719626,436,110.47624178980746,117,65.924198895398035]

{"sheet":"ACS_Table_B25032","index":42,"n_rows":119,"n_cols":28,"rows_kept":119,"cut":false,"hidden":true,"merged":[]}
[null,"B25032. TENURE BY UNITS IN STRUCTURE "]
[null,"Universe:  OCCUPIED HOUSING UNITS"]
[null,"Data Set: 2018-2022 American Community Survey 5-Year Estimates"]
[]
[null,null,"Barrington",null,"Dover",null,"Durham",null,"Farmington",null,"Lee",null,"Madbury",null,"Middleton",null,"Milton",null,"New Durham",null,"Rochester",null,"Rollinsford",null,"Somersworth",null,"Strafford"]
[null,null,"Estimate","Margin Of Error","Estimate","Margin Of Error","Estimate","Margin Of Error","Estimate","Margin Of Error","Estimate","Margin Of Error","Estimate","Margin Of Error","Estimate","Margin Of Error","Estimate","Margin Of Error","Estimate","Margin Of Error","Estimate","Margin Of Error","Estimate","Margin Of Error","Estimate","Margin Of Error","Estimate","Margin Of Error"]
[null,"Total:",3401,227,14606,524,3000,226,2911,264,1839,183,688,80,556,90,1664,125,1004,107,13542,419,1070,112,5232,318,1440,98]
[null,"Owner-occupied housing units:",3074,266,7585,556,1857,246,2024,274,1672,189,558,91,522,88,1452,134,911,97,8933,466,868,116,3388,318,1343,94]
[null,"1, detached",2442,254,5775,454,1631,221,1752,262,1393,200,461,88,469,81,1219,118,839,103,6328,406,792,96,2592,289,1206,109]
[null,"1, attached",96,77,566,151,80,38,35,39,157,86,63,41,2,4,21,24,19,18,306,133,10,11,15,26,31,29]
[null,2,0,17,243,109,98,89,0,17,4,6,22,16,0,12,29,34,8,12,266,136,34,32,289,154,9,15]
[null,"3 or 4",0,17,409,226,0,19,0,17,0,12,0,12,0,12,42,53,0,12,60,46,0,12,70,58,4,6]
[null,"5 to 9",0,17,94,71,22,24,0,17,0,12,0,12,0,12,0,12,0,12,135,87,22,34,16,28,0,12]
[null,"10 to 19",0,17,48,82,0,19,0,17,0,12,0,12,0,12,15,25,0,12,0,25,0,12,0,19,0,12]
[null,"20 to 49",0,17,9,13,0,19,0,17,0,12,0,12,0,12,0,12,0,12,59,63,0,12,0,19,0,12]
[null,"50 or more",0,17,32,38,17,26,0,17,0,12,0,12,0,12,0,12,0,12,27,44,0,12,0,19,0,12]
[null,"Mobile home",536,185,409,172,9,15,237,115,118,85,12,12,51,24,126,51,45,43,1752,325,10,11,406,126,93,59]
[null,"Boat, RV, van, etc.",0,17,0,25,0,19,0,17,0,12,0,12,0,12,0,12,0,12,0,25,0,12,0,19,0,12]
[null,"Renter-occupied housing units:",327,147,7021,521,1143,175,887,218,167,125,130,59,34,20,212,93,93,60,4609,426,202,72,1844,355,97,56]
[null,"1, detached",83,76,486,163,219,128,150,108,33,38,41,32,18,14,78,67,67,53,591,170,15,14,1,13,19,21]
[null,"1, attached",0,17,382,199,218,121,0,17,0,12,22,29,0,12,9,14,0,12,121,64,10,15,42,51,0,12]
[null,2,26,42,820,246,96,71,151,111,0,12,34,23,13,16,0,12,6,8,623,231,46,40,588,272,63,48]
[null,"3 or 4",13,21,1342,347,96,54,152,148,0,12,3,4,0,12,31,26,0,12,928,318,68,44,432,201,15,17]
[null,"5 to 9",88,87,1135,258,75,43,120,86,68,86,0,12,0,12,59,50,0,12,478,149,58,42,134,94,0,12]
[null,"10 to 19",30,50,747,209,133,83,82,83,0,12,0,12,0,12,0,12,0,12,507,282,0,12,89,101,0,12]
[null,"20 to 49",0,17,1373,385,113,68,95,73,0,12,0,12,0,12,0,12,0,12,673,255,0,12,284,131,0,12]
[null,"50 or more",0,17,701,159,193,78,0,17,0,12,0,12,0,12,0,12,0,12,327,157,0,12,274,192,0,12]
[null,"Mobile home",87,89,35,40,0,19,137,109,66,78,30,36,3,4,35,31,20,24,361,147,5,7,0,19,0,12]
[null,"Boat, RV, van, etc.",0,17,0,25,0,19,0,17,0,12,0,12,0,12,0,12,0,12,0,25,0,12,0,19,0,12]
[]
[]
[null,"Calculated B25032. TENURE BY UNITS IN STRUCTURE "]
[null,"Universe:  OCCUPIED HOUSING UNITS"]
[null,"Data Set: 2018-2022 American Community Survey 5-Year Estimates"]
[]
[null,null,"Barrington",null,"Dover",null,"Durham",null,"Farmington",null,"Lee",null,"Madbury",null,"Middleton",null,"Milton",null,"New Durham",null,"Rochester",null,"Rollinsford",null,"Somersworth",null,"Strafford"]
[null,null,"Estimate","Margin Of Error","Estimate","Margin Of Error","Estimate","Margin Of Error","Estimate","Margin Of Error","Estimate","Margin Of Error","Estimate","Margin Of Error","Estimate","Margin Of Error","Estimate","Margin Of Error","Estimate","Margin Of Error","Estimate","Margin Of Error","Estimate","Margin Of Error","Estimate","Margin Of Error","Estimate","Margin Of Error"]
[null,"Total:",{"$f":"C7","v":3401},227,14606,524,3000,226,2911,264,1839,183,688,80,556,90,1664,125,{"$f":"S7","v":1004},107,13542,419,1070,112,5232,318,1440,98]
[null,"Owner-occupied housing units:",3074,266,7585,556,1857,246,2024,274,1672,189,558,91,522,88,1452,134,911,97,8933,466,868,116,3388,318,1343,94]
[null,"Single Family",{"$f":"C9","v":2442},254,{"$f":"E9","v":5775},454,{"$f":"G9","v":1631},221,{"$f":"I9","v":1752},262,{"$f":"K9","v":1393},200,{"$f":"M9","v":461},88,{"$f":"O9","v":469},81,{"$f":"Q9","v":1219},118,{"$f":"S9","v":839},103,{"$f":"U9","v":6328},406,{"$f":"W9","v":792},96,{"$f":"Y9","v":2592},289,{"$f":"AA9","v":1206},109]
[null,"Multi-Family",{"$f":"C10+C11+C12+C13+C14+C15+C16","v":96},{"$f":"SQRT((D10^2)+(D11^2)+(D12^2)+(D13^2)+(D14^2)+(D15^2)+(D16^2))","v":87.538562930859214},{"$f":"E10+E11+E12+E13+E14+E15+E16","v":1401},{"$f":"SQRT((F10^2)+(F11^2)+(F12^2)+(F13^2)+(F14^2)+(F15^2)+(F16^2))","v":314.85869846647086},{"$f":"G10+G11+G12+G13+G14+G15+G16","v":217},{"$f":"SQRT((H10^2)+(H11^2)+(H12^2)+(H13^2)+(H14^2)+(H15^2)+(H16^2))","v":108.16653826391968},{"$f":"I10+I11+I12+I13+I14+I15+I16","v":35},{"$f":"SQRT((J10^2)+(J11^2)+(J12^2)+(J13^2)+(J14^2)+(J15^2)+(J16^2))","v":57.052607302383649},{"$f":"K10+K11+K12+K13+K14+K15+K16","v":161},{"$f":"SQRT((L10^2)+(L11^2)+(L12^2)+(L13^2)+(L14^2)+(L15^2)+(L16^2))","v":90.288426722365699},{"$f":"M10+M11+M12+M13+M14+M15+M16","v":85},{"$f":"SQRT((N10^2)+(N11^2)+(N12^2)+(N13^2)+(N14^2)+(N15^2)+(N16^2))","v":51.546095875439491},{"$f":"O10+O11+O12+O13+O14+O15+O16","v":2},{"$f":"SQRT((P10^2)+(P11^2)+(P12^2)+(P13^2)+(P14^2)+(P15^2)+(P16^2))","v":29.664793948382652},{"$f":"Q10+Q11+Q12+Q13+Q14+Q15+Q16","v":107},{"$f":"SQRT((R10^2)+(R11^2)+(R12^2)+(R13^2)+(R14^2)+(R15^2)+(R16^2))","v":74.819783480039561},{"$f":"S10+S11+S12+S13+S14+S15+S16","v":27},{"$f":"SQRT((T10^2)+(T11^2)+(T12^2)+(T13^2)+(T14^2)+(T15^2)+(T16^2))","v":34.467375879228172},{"$f":"U10+U11+U12+U13+U14+U15+U16","v":853},{"$f":"SQRT((V10^2)+(V11^2)+(V12^2)+(V13^2)+(V14^2)+(V15^2)+(V16^2))","v":228.91046284519194},{"$f":"W10+W11+W12+W13+W14+W15+W16","v":66},{"$f":"SQRT((X10^2)+(X11^2)+(X12^2)+(X13^2)+(X14^2)+(X15^2)+(X16^2))","v":53.637673327615545},{"$f":"Y10+Y11+Y12+Y13+Y14+Y15+Y16","v":390},{"$f":"SQRT((Z10^2)+(Z11^2)+(Z12^2)+(Z13^2)+(Z14^2)+(Z15^2)+(Z16^2))","v":172.11333475358614},{"$f":"AA10+AA11+AA12+AA13+AA14+AA15+AA16","v":44},{"$f":"SQRT((AB10^2)+(AB11^2)+(AB12^2)+(AB13^2)+(AB14^2)+(AB15^2)+(AB16^2))","v":40.963398296528084}]
[null,"Mobile Home & Other",{"$f":"C17+C18","v":536},{"$f":"SQRT((D17^2)+(D18^2))","v":185.77943912069495},{"$f":"E17+E18","v":409},{"$f":"SQRT((F17^2)+(F18^2))","v":173.80736463107655},{"$f":"G17+G18","v":9},{"$f":"SQRT((H17^2)+(H18^2))","v":24.207436873820409},{"$f":"I17+I18","v":237},{"$f":"SQRT((J17^2)+(J18^2))","v":116.24973118248489},{"$f":"K17+K18","v":118},{"$f":"SQRT((L17^2)+(L18^2))","v":85.84287972802403},{"$f":"M17+M18","v":12},{"$f":"SQRT((N17^2)+(N18^2))","v":16.970562748477139},{"$f":"O17+O18","v":51},{"$f":"SQRT((P17^2)+(P18^2))","v":26.832815729997478},{"$f":"Q17+Q18","v":126},{"$f":"SQRT((R17^2)+(R18^2))","v":52.392747589718944},{"$f":"S17+S18","v":45},{"$f":"SQRT((T17^2)+(T18^2))","v":44.643028571099428},{"$f":"U17+U18","v":1752},{"$f":"SQRT((V17^2)+(V18^2))","v":325.96012026013244},{"$f":"W17+W18","v":10},{"$f":"SQRT((X17^2)+(X18^2))","v":16.278820596099706},{"$f":"Y17+Y18","v":406},{"$f":"SQRT((Z17^2)+(Z18^2))","v":127.4244874425634},{"$f":"AA17+AA18","v":93},{"$f":"SQRT((AB17^2)+(AB18^2))","v":60.207972893961475}]
[null,"Renter-occupied housing units:",{"$f":"C19","v":327},147,7021,521,1143,175,887,218,167,125,130,59,34,20,212,93,{"$f":"S19","v":93},60,4609,426,202,72,1844,355,97,56]
[null,"Single Family",83,76,486,163,219,128,150,108,33,38,41,32,18,14,78,67,67,53,591,170,15,14,1,13,19,21]
[null,"Multi-Family",{"$f":"C21+C22+C23+C24+C25+C26+C27","v":157},{"$f":"SQRT((D21^2)+(D22^2)+(D23^2)+(D24^2)+(D25^2)+(D26^2)+(D27^2))","v":114.63420083029322},{"$f":"E21+E22+E23+E24+E25+E26+E27","v":6500},{"$f":"SQRT((F21^2)+(F22^2)+(F23^2)+(F24^2)+(F25^2)+(F26^2)+(F27^2))","v":710.12463694762766},{"$f":"G21+G22+G23+G24+G25+G26+G27","v":924},{"$f":"SQRT((H21^2)+(H22^2)+(H23^2)+(H24^2)+(H25^2)+(H26^2)+(H27^2))","v":205.0463362267173},{"$f":"I21+I22+I23+I24+I25+I26+I27","v":600},{"$f":"SQRT((J21^2)+(J22^2)+(J23^2)+(J24^2)+(J25^2)+(J26^2)+(J27^2))","v":233.27451639645511},{"$f":"K21+K22+K23+K24+K25+K26+K27","v":68},{"$f":"SQRT((L21^2)+(L22^2)+(L23^2)+(L24^2)+(L25^2)+(L26^2)+(L27^2))","v":90.884542140014105},{"$f":"M21+M22+M23+M24+M25+M26+M27","v":59},{"$f":"SQRT((N21^2)+(N22^2)+(N23^2)+(N24^2)+(N25^2)+(N26^2)+(N27^2))","v":44.294469180700204},{"$f":"O21+O22+O23+O24+O25+O26+O27","v":13},{"$f":"SQRT((P21^2)+(P22^2)+(P23^2)+(P24^2)+(P25^2)+(P26^2)+(P27^2))","v":33.466401061363023},{"$f":"Q21+Q22+Q23+Q24+Q25+Q26+Q27","v":99},{"$f":"SQRT((R21^2)+(R22^2)+(R23^2)+(R24^2)+(R25^2)+(R26^2)+(R27^2))","v":62.833112289620033},{"$f":"S21+S22+S23+S24+S25+S26+S27","v":6},{"$f":"SQRT((T21^2)+(T22^2)+(T23^2)+(T24^2)+(T25^2)+(T26^2)+(T27^2))","v":30.463092423455635},{"$f":"U21+U22+U23+U24+U25+U26+U27","v":3657},{"$f":"SQRT((V21^2)+(V22^2)+(V23^2)+(V24^2)+(V25^2)+(V26^2)+(V27^2))","v":591.59107498338744},{"$f":"W21+W22+W23+W24+W25+W26+W27","v":182},{"$f":"SQRT((X21^2)+(X22^2)+(X23^2)+(X24^2)+(X25^2)+(X26^2)+(X27^2))","v":77.181604025829884},{"$f":"Y21+Y22+Y23+Y24+Y25+Y26+Y27","v":1843},{"$f":"SQRT((Z21^2)+(Z22^2)+(Z23^2)+(Z24^2)+(Z25^2)+(Z26^2)+(Z27^2))","v":435.94495065317591},{"$f":"AA21+AA22+AA23+AA24+AA25+AA26+AA27","v":78},{"$f":"SQRT((AB21^2)+(AB22^2)+(AB23^2)+(AB24^2)+(AB25^2)+(AB26^2)+(AB27^2))","v":57.55866572463264}]
[null,"Mobile Home & Other",{"$f":"C28+C29","v":87},{"$f":"SQRT((D28^2)+(D29^2))","v":90.609050320594349},{"$f":"E28+E29","v":35},{"$f":"SQRT((F28^2)+(F29^2))","v":47.169905660283021},{"$f":"G28+G29","v":0},{"$f":"SQRT((H28^2)+(H29^2))","v":26.870057685088806},{"$f":"I28+I29","v":137},{"$f":"SQRT((J28^2)+(J29^2))","v":110.3177229641729},{"$f":"K28+K29","v":66},{"$f":"SQRT((L28^2)+(L29^2))","v":78.917678627795439},{"$f":"M28+M29","v":30},{"$f":"SQRT((N28^2)+(N29^2))","v":37.947331922020552},{"$f":"O28+O29","v":3},{"$f":"SQRT((P28^2)+(P29^2))","v":12.649110640673518},{"$f":"Q28+Q29","v":35},{"$f":"SQRT((R28^2)+(R29^2))","v":33.241540277189323},{"$f":"S28+S29","v":20},{"$f":"SQRT((T28^2)+(T29^2))","v":26.832815729997478},{"$f":"U28+U29","v":361},{"$f":"SQRT((V28^2)+(V29^2))","v":149.11069713471264},{"$f":"W28+W29","v":5},{"$f":"SQRT((X28^2)+(X29^2))","v":13.892443989449804},{"$f":"Y28+Y29","v":0},{"$f":"SQRT((Z28^2)+(Z29^2))","v":26.870057685088806},{"$f":"AA28+AA29","v":0},{"$f":"SQRT((AB28^2)+(AB29^2))","v":16.970562748477139}]
[]
[]
[]
[]
[]
[]
[]
[]
[]
[]
[]
[]
[]
[]
[]
[]
[]
[]
[]
[]
[]
[]
[]
[]
[]
[]
[]
[]
[]
[]
[]
[]
[]
[]
[]
[]
[]
[]
[]
[]
[null,"Calculated B25032. TENURE BY UNITS IN STRUCTURE "]
[null,"Universe:  OCCUPIED HOUSING UNITS"]
[null,"Data Set: 2013-2017 American Community Survey 5-Year Estimates"]
[]
[null,null,"Barrington",null,"Dover",null,"Durham",null,"Farmington",null,"Lee",null,"Madbury",null,"Middleton",null,"Milton",null,"New Durham",null,"Rochester",null,"Rollinsford",null,"Somersworth",null,"Strafford"]
[null,null,"Estimate","Margin Of Error","Estimate","Margin Of Error","Estimate","Margin Of Error","Estimate","Margin Of Error","Estimate","Margin Of Error","Estimate","Margin Of Error","Estimate","Margin Of Error","Estimate","Margin Of Error","Estimate","Margin Of Error","Estimate","Margin Of Error","Estimate","Margin Of Error","Estimate","Margin Of Error","Estimate","Margin Of Error"]
[null,"Total:",3388,209,13194,359,3325,237,2719,176,1752,139,621,60,595,70,1732,107,995,58,12837,353,1048,57,4905,237,1432,100]
[null,"Owner-occupied housing units:",3118,226,7021,367,1833,175,1850,201,1450,148,538,63,499,74,1520,115,921,56,8308,395,765,74,2735,242,1287,101]
[null,"Single Family",2339,251,5438,339,1687,159,1536,202,1119,132,439,64,460,69,1235,126,868,68,5870,374,725,69,2102,236,1191,111]
[null,"Multi-Family",300,169.36941872723068,1281,269.15794619516623,146,70.675313936338483,79,74.256312862947894,185,83.98214095865859,45,34.655446902326915,0,29.103264421710495,51,41.496987842492857,0,29.103264421710495,665,167.62159765376299,40,36.755951898978211,173,84.320815935331183,49,49.849774322458067]
[null,"Mobile Home & Other",479,224.57070156189118,302,84.480767041972342,0,25.45584412271571,235,102.77159140540736,146,107.56393447619885,54,30.083217912982647,39,19.416487838947599,234,87.692645073575008,53,33.837848631377263,1773,264.09278672466615,0,15.556349186104045,460,114.42464769445436,47,58.051701094799967]
[null,"Renter-occupied housing units:",270,160,6173,387,1492,188,869,263,302,146,83,29,96,35,212,74,74,47,4529,385,283,71,2170,282,145,52]
[null,"Single Family",200,142,459,155,315,81,222,158,19,29,9,10,60,26,65,41,52,40,551,156,29,20,274,144,61,33]
[null,"Multi-Family",70,78.61933604400383,5588,497.61933242188252,1163,205.24862971527972,360,186.31425066269085,194,142.81806608409175,69,34.669871646719429,20,32.756678708318397,126,71.210954213519713,6,28.407745422683583,3753,514.22174205297858,242,90.260733433758446,1838,334.99850745936169,84,67.948509917436752]
[null,"Mobile Home & Other",0,22.627416997969522,126,111.61093136427094,14,15.811388300841896,287,185.69060288555261,89,75.802374632988901,5,13.038404810405298,16,21.95449840010015,21,24.596747752497688,16,27.313000567495326,225,96.046863561492728,12,14.866068747318506,58,73.246160308919954,0,15.556349186104045]
[]
[]
[]
[null,"Calculated B25032. TENURE BY UNITS IN STRUCTURE "]
[null,"Universe:  OCCUPIED HOUSING UNITS"]
[null,"Data Set: 2008-2012 American Community Survey 5-Year Estimates"]
[]
[null,null,"Barrington",null,"Dover",null,"Durham",null,"Farmington",null,"Lee",null,"Madbury",null,"Middleton",null,"Milton",null,"New Durham",null,"Rochester",null,"Rollinsford",null,"Somersworth",null,"Strafford"]
[null,null,"Estimate","Margin Of Error","Estimate","Margin Of Error","Estimate","Margin Of Error","Estimate","Margin Of Error","Estimate","Margin Of Error","Estimate","Margin Of Error","Estimate","Margin Of Error","Estimate","Margin Of Error","Estimate","Margin Of Error","Estimate","Margin Of Error","Estimate","Margin Of Error","Estimate","Margin Of Error","Estimate","Margin Of Error"]
[null,"Total:",2987,193,12512,344,3327,354,2646,185,1773,146,656,57,593,63,1660,130,955,62,12762,368,1020,77,4552,227,1378,88]
[null,"Owner-occupied housing units:",2576,226,6495,370,2029,239,1838,249,1560,142,514,49,555,62,1445,127,860,69,8858,400,759,75,2522,270,1282,113]
[null,"Single Family",2244,230,5195,338,1816,219,1467,210,1145,130,441,44,510,61,1096,142,794,75,5873,376,707,65,2031,236,1151,118]
[null,"Multi-Family",34,48.877397639399746,1029,179.30699930566013,202,79.755877526361658,70,59.632206063502295,159,70.554943129450535,31,32.603680773802211,0,29.103264421710495,97,74.625732827222535,9,28.740215726399828,864,202.64747716169575,52,39.45883931389772,86,66.820655489152458,44,45.585085280165927]
[null,"Mobile Home & Other",298,109.17875251164945,271,80.65358020571685,11,24.758836806279895,301,137.93114224133723,256,96.628153247384375,42,21.95449840010015,45,19.416487838947599,252,78.771822373231913,57,28.231188426986208,2121,257.85654926722339,0,15.556349186104045,405,109.48972554536796,87,48.270073544588683]
[null,"Renter-occupied housing units:",411,124,6017,349,1298,221,808,220,213,87,142,53,38,27,215,92,95,44,3904,353,261,66,2030,250,96,65]
[null,"Single Family",232,113,615,183,203,84,80,70,39,37,59,36,12,10,58,49,80,43,598,193,41,29,176,102,53,46]
[null,"Multi-Family",179,98.442876837280608,5374,491.58315674969987,1095,213.24164696418944,560,180.03055296254578,150,84.368240469977806,72,43.79497688091638,3,27.239676943752471,116,59.279001341115723,11,26.795522013948524,3081,404.66035140596614,218,80.237148503670042,1823,308.75070850121136,43,58.32666628567074]
[null,"Mobile Home & Other",0,22.627416997969522,28,39.204591567825318,0,25.45584412271571,168,116.1077086157504,24,37.643060449437421,11,14.866068747318506,23,27.313000567495326,41,44.384682042344295,4,12.529964086141668,225,106.09901036296239,2,11.704699910719626,31,35.846896657869841,0,15.556349186104045]

{"sheet":"ACS_Table_B25034","index":43,"n_rows":58,"n_cols":28,"rows_kept":58,"cut":false,"hidden":true,"merged":[]}
[null,"B25034. YEAR STRUCTURE BUILT"]
[null,"Universe:  HOUSING UNITS"]
[null,"Data Set: 2018-2022 American Community Survey 5-Year Estimates"]
[]
[null,null,"Barrington",null,"Dover",null,"Durham",null,"Farmington",null,"Lee",null,"Madbury",null,"Middleton",null,"Milton",null,"New Durham",null,"Rochester",null,"Rollinsford",null,"Somersworth",null,"Strafford"]
[null,null,"Estimate","Margin Of Error","Estimate","Margin Of Error","Estimate","Margin Of Error","Estimate","Margin Of Error","Estimate","Margin Of Error","Estimate","Margin Of Error","Estimate","Margin Of Error","Estimate","Margin Of Error","Estimate","Margin Of Error","Estimate","Margin Of Error","Estimate","Margin Of Error","Estimate","Margin Of Error","Estimate","Margin Of Error"]
[null,"Total:",3651,286,15245,519,3784,264,2977,272,2023,213,715,76,752,114,1909,144,1579,132,14309,384,1156,130,5701,342,1871,118]
[null,"Built 2020 or later",0,17,135,69,18,27,0,17,35,37,0,12,4,7,0,12,0,12,107,112,25,27,0,19,27,42]
[null,"Built 2010 or 2019",388,163,1096,229,733,137,180,116,80,84,34,17,16,13,96,63,86,44,1094,269,4,6,198,123,121,56]
[null,"Built 2000 to 2009",774,205,1701,378,378,117,460,168,296,113,158,34,143,45,384,114,256,80,1617,305,94,70,404,186,373,85]
[null,"Built 1990 to 1999",431,136,1594,336,242,89,136,79,285,145,63,29,114,58,125,72,197,83,1288,291,52,27,406,216,267,103]
[null,"Built 1980 to 1989",584,188,2271,382,402,94,438,165,506,176,182,80,116,41,400,114,359,116,2665,358,156,59,953,291,335,117]
[null,"Built 1970 to 1979",835,250,1820,374,524,140,633,295,345,169,130,51,147,40,136,77,225,84,1361,263,131,56,704,235,202,79]
[null,"Built 1960 to 1969",114,73,1186,302,447,126,179,118,191,132,45,40,103,38,136,104,146,62,1321,262,132,79,642,217,65,46]
[null,"Built 1950 to 1959",237,144,1134,224,308,122,176,142,14,21,39,29,25,12,147,85,109,58,1407,305,84,38,631,185,99,70]
[null,"Built 1940 to 1949",57,72,304,141,172,107,142,111,16,25,6,7,12,13,51,34,73,52,611,201,36,25,271,124,44,53]
[null,"Built 1939 or earlier",231,142,4004,553,560,161,633,207,255,145,58,28,72,28,434,126,128,58,2838,411,442,103,1492,308,338,126]
[]
[]
[]
[]
[null,"B25034. YEAR STRUCTURE BUILT"]
[null,"Universe:  HOUSING UNITS"]
[null,"Data Set: 2013-2017 American Community Survey 5-Year Estimates"]
[]
[null,null,"Barrington",null,"Dover",null,"Durham",null,"Farmington",null,"Lee",null,"Madbury",null,"Middleton",null,"Milton",null,"New Durham",null,"Rochester",null,"Rollinsford",null,"Somersworth",null,"Strafford"]
[null,null,"Estimate","Margin Of Error","Estimate","Margin Of Error","Estimate","Margin Of Error","Estimate","Margin Of Error","Estimate","Margin Of Error","Estimate","Margin Of Error","Estimate","Margin Of Error","Estimate","Margin Of Error","Estimate","Margin Of Error","Estimate","Margin Of Error","Estimate","Margin Of Error","Estimate","Margin Of Error","Estimate","Margin Of Error"]
[null,"Total:",3668,222,13895,347,3818,267,3076,209,1752,139,666,66,780,87,2040,125,1667,76,13661,337,1139,69,5214,275,1733,109]
[null,"Built 2014 or later",19,35,131,83,148,74,12,19,0,11,10,15,0,11,0,11,0,11,34,32,0,11,0,18,8,14]
[null,"Built 2010 or 2013",211,156,329,112,155,71,23,37,0,11,12,11,5,6,30,33,27,27,227,98,0,11,46,52,70,54]
[null,"Built 2000 to 2009",822,217,1697,303,303,105,531,163,482,149,135,36,132,42,395,98,272,68,1860,309,53,26,510,183,265,77]
[null,"Built 1990 to 1999",230,125,1208,232,528,117,228,128,185,75,100,36,96,33,183,82,189,58,1181,212,83,39,354,130,293,114]
[null,"Built 1980 to 1989",837,280,1833,257,697,154,455,157,366,147,137,37,181,44,355,93,310,82,2887,331,209,54,598,193,320,90]
[null,"Built 1970 to 1979",536,176,1763,292,506,115,267,137,433,157,143,41,152,44,180,90,248,74,1779,242,83,34,619,174,208,96]
[null,"Built 1960 to 1969",207,138,1493,288,478,126,340,168,72,56,45,29,95,33,107,78,161,64,1089,211,120,39,448,161,85,57]
[null,"Built 1950 to 1959",290,164,1551,250,232,73,81,60,74,62,23,18,29,18,87,54,110,55,1086,208,178,57,747,185,99,63]
[null,"Built 1940 to 1949",63,75,675,186,217,69,110,79,77,93,0,11,27,22,91,53,129,57,760,189,64,41,339,127,58,45]
[null,"Built 1939 or earlier",453,192,3215,339,554,134,1029,233,63,43,61,26,63,27,612,131,221,68,2758,339,349,74,1553,214,327,107]
[]
[]
[]
[]
[null,"B25034. YEAR STRUCTURE BUILT"]
[null,"Universe:  HOUSING UNITS"]
[null,"Data Set: 2008-2012 American Community Survey 5-Year Estimates"]
[]
[null,null,"Barrington",null,"Dover",null,"Durham",null,"Farmington",null,"Lee",null,"Madbury",null,"Middleton",null,"Milton",null,"New Durham",null,"Rochester",null,"Rollinsford",null,"Somersworth",null,"Strafford"]
[null,null,"Estimate","Margin Of Error","Estimate","Margin Of Error","Estimate","Margin Of Error","Estimate","Margin Of Error","Estimate","Margin Of Error","Estimate","Margin Of Error","Estimate","Margin Of Error","Estimate","Margin Of Error","Estimate","Margin Of Error","Estimate","Margin Of Error","Estimate","Margin Of Error","Estimate","Margin Of Error","Estimate","Margin Of Error"]
[null,"Total:",3356,243,13252,393,3701,360,2831,212,1919,192,693,68,826,69,2085,174,1395,97,14003,458,1081,79,4823,254,1713,142]
[null,"Built 2010 or later",9,16,22,25,21,33,17,26,0,11,3,4,0,11,0,11,0,11,27,32,0,11,0,18,0,11]
[null,"Built 2000 to 2009",483,156,1643,227,455,102,540,169,222,98,109,37,147,35,391,89,223,71,2237,295,31,25,432,134,321,91]
[null,"Built 1990 to 1999",807,229,1011,184,330,103,235,140,347,117,107,49,105,37,144,61,147,48,1371,244,29,20,270,121,227,81]
[null,"Built 1980 to 1989",854,163,1930,297,870,164,511,169,446,134,112,30,145,34,485,127,249,73,2687,290,229,62,681,155,364,87]
[null,"Built 1970 to 1979",656,176,1336,264,538,151,363,129,328,149,151,52,184,53,210,87,232,84,1783,279,97,35,631,170,314,105]
[null,"Built 1960 to 1969",143,82,1349,249,519,125,240,134,204,105,53,35,154,49,120,78,188,71,1378,254,70,36,596,204,68,52]
[null,"Built 1950 to 1959",56,42,1452,238,299,86,126,67,103,74,34,22,30,18,145,59,134,67,1210,222,163,52,557,139,104,54]
[null,"Built 1940 to 1949",41,34,810,208,194,69,75,61,11,16,0,11,11,10,80,54,59,41,582,164,44,27,184,84,23,28]
[null,"Built 1939 or earlier",307,148,3699,378,475,144,724,168,258,127,124,48,50,23,510,113,163,59,2728,291,418,68,1472,255,292,90]

{"sheet":"ACS_Table_B25041","index":44,"n_rows":73,"n_cols":28,"rows_kept":73,"cut":false,"hidden":true,"merged":[]}
[null,"B25041. BEDROOMS "]
[null,"Universe:  HOUSING UNITS"]
[null,"Data Set: 2018-2022 American Community Survey 5-Year Estimates"]
[]
[null,null,"Barrington",null,"Dover",null,"Durham",null,"Farmington",null,"Lee",null,"Madbury",null,"Middleton",null,"Milton",null,"New Durham",null,"Rochester",null,"Rollinsford",null,"Somersworth",null,"Strafford"]
[null,null,"Estimate","Margin Of Error","Estimate","Margin Of Error","Estimate","Margin Of Error","Estimate","Margin Of Error","Estimate","Margin Of Error","Estimate","Margin Of Error","Estimate","Margin Of Error","Estimate","Margin Of Error","Estimate","Margin Of Error","Estimate","Margin Of Error","Estimate","Margin Of Error","Estimate","Margin Of Error","Estimate","Margin Of Error"]
[null,"Total:",3651,286,15245,519,3784,264,2977,272,2023,213,715,76,752,114,1909,144,1579,132,14309,384,1156,130,5701,342,1871,118]
[null,"No bedroom",30,50,517,243,257,117,95,122,49,81,13,18,3,5,22,27,0,12,321,165,17,28,187,219,51,49]
[null,"1 bedroom",117,68,2319,359,416,136,401,174,139,101,20,26,55,28,154,82,110,60,1778,351,87,55,658,255,84,57]
[null,"2 bedrooms",1123,261,5274,559,574,160,930,274,257,119,101,39,265,61,512,151,509,111,4709,496,292,100,1910,361,463,119]
[null,"3 bedrooms",1713,238,4424,421,1225,226,1068,260,818,194,312,66,321,85,955,153,726,115,5675,483,443,98,2112,314,869,150]
[null,"4 bedrooms",569,184,2170,469,870,146,465,183,648,188,227,70,77,42,251,97,187,56,1422,234,236,85,642,204,301,90]
[null,"5 or more bedrooms",99,126,541,185,442,140,18,28,112,92,42,26,31,19,15,21,47,38,404,155,81,69,192,131,103,65]
[]
[]
[null,"Calculated B25041. BEDROOMS "]
[null,"Universe:  HOUSING UNITS"]
[null,"Data Set: 2018-2022 American Community Survey 5-Year Estimates"]
[]
[null,null,"Barrington",null,"Dover",null,"Durham",null,"Farmington",null,"Lee",null,"Madbury",null,"Middleton",null,"Milton",null,"New Durham",null,"Rochester",null,"Rollinsford",null,"Somersworth",null,"Strafford"]
[null,null,"Estimate","Margin Of Error","Estimate","Margin Of Error","Estimate","Margin Of Error","Estimate","Margin Of Error","Estimate","Margin Of Error","Estimate","Margin Of Error","Estimate","Margin Of Error","Estimate","Margin Of Error","Estimate","Margin Of Error","Estimate","Margin Of Error","Estimate","Margin Of Error","Estimate","Margin Of Error","Estimate","Margin Of Error"]
[null,"Total:",{"$f":"C7","v":3651},{"$f":"D7","v":286},15245,519,3784,264,2977,272,2023,213,715,76,752,114,1909,144,1579,132,14309,384,1156,130,{"$f":"Y7","v":5701},342,1871,118]
[null,"No bedroom",{"$f":"C8","v":30},50,517,243,257,117,95,122,49,81,13,18,3,5,22,27,0,12,321,165,17,28,187,219,51,49]
[null,"1 bedroom",{"$f":"C9","v":117},{"$f":"D9","v":68},2319,359,416,136,401,174,139,101,20,26,55,28,154,82,110,60,1778,351,87,55,658,255,84,57]
[null,"2 bedrooms",{"$f":"C10","v":1123},261,5274,559,574,160,930,274,257,119,101,39,265,61,512,151,509,111,4709,496,292,100,1910,361,463,119]
[null,"3 bedrooms",{"$f":"C11","v":1713},238,4424,421,1225,226,1068,260,818,194,312,66,321,85,955,153,726,115,5675,483,443,98,2112,314,869,150]
[null,"4 + bedrooms",{"$f":"C12+C13","v":668},{"$f":"SQRT((D12^2)+(D13^2))","v":223.00672635595546},{"$f":"E12+E13","v":2711},{"$f":"SQRT((F12^2)+(F13^2))","v":504.16862258573769},{"$f":"G12+G13","v":1312},{"$f":"SQRT((H12^2)+(H13^2))","v":202.27703774773843},{"$f":"I12+I13","v":483},{"$f":"SQRT((J12^2)+(J13^2))","v":185.12968427564499},{"$f":"K12+K13","v":760},{"$f":"SQRT((L12^2)+(L13^2))","v":209.30360723121808},{"$f":"M12+M13","v":269},{"$f":"SQRT((N12^2)+(N13^2))","v":74.672618810377884},{"$f":"O12+O13","v":108},{"$f":"SQRT((P12^2)+(P13^2))","v":46.097722286464439},{"$f":"Q12+Q13","v":266},{"$f":"SQRT((R12^2)+(R13^2))","v":99.247166206396045},{"$f":"S12+S13","v":234},{"$f":"SQRT((T12^2)+(T13^2))","v":67.675697262754525},{"$f":"U12+U13","v":1826},{"$f":"SQRT((V12^2)+(V13^2))","v":280.67953256338444},{"$f":"W12+W13","v":317},{"$f":"SQRT((X12^2)+(X13^2))","v":109.48059188732951},{"$f":"Y12+Y13","v":834},{"$f":"SQRT((Z12^2)+(Z13^2))","v":242.4396832203837},{"$f":"AA12+AA13","v":404},{"$f":"SQRT((AB12^2)+(AB13^2))","v":111.01801655587259}]
[]
[]
[]
[]
[]
[]
[]
[]
[]
[]
[]
[]
[]
[]
[]
[]
[]
[]
[]
[null,"Calculated B25041. BEDROOMS "]
[null,"Universe:  HOUSING UNITS"]
[null,"Data Set: 2013-2017 American Community Survey 5-Year Estimates"]
[]
[null,null,"Barrington",null,"Dover",null,"Durham",null,"Farmington",null,"Lee",null,"Madbury",null,"Middleton",null,"Milton",null,"New Durham",null,"Rochester",null,"Rollinsford",null,"Somersworth",null,"Strafford"]
[null,null,"Estimate","Margin Of Error","Estimate","Margin Of Error","Estimate","Margin Of Error","Estimate","Margin Of Error","Estimate","Margin Of Error","Estimate","Margin Of Error","Estimate","Margin Of Error","Estimate","Margin Of Error","Estimate","Margin Of Error","Estimate","Margin Of Error","Estimate","Margin Of Error","Estimate","Margin Of Error","Estimate","Margin Of Error"]
[null,"Total:",3668,222,13895,347,3818,267,3076,209,1752,139,666,66,780,87,2040,125,1667,76,13661,337,1139,69,5214,275,1733,109]
[null,"No bedroom",0,16,141,82,215,99,54,77,0,11,3,5,7,7,63,54,7,9,265,164,38,36,20,33,29,33]
[null,"1 bedroom",167,123,2068,294,407,100,298,149,98,95,30,18,38,22,114,80,109,65,1315,260,72,37,727,201,122,56]
[null,"2 bedrooms",1159,298,5243,407,687,132,661,236,385,165,123,41,299,69,512,116,645,96,5577,383,374,87,1716,269,472,124]
[null,"3 bedrooms",1633,269,4239,374,1193,167,1644,281,825,205,290,51,364,58,1037,147,688,112,4911,379,464,76,1957,266,835,119]
[null,"4 + bedrooms",564,194,1933,305,1038,199,419,167,310,115,175,31,48,20,247,81,182,63,1370,264,151,47,690,205,226,77]
[null,null,145,116,271,117,278,86,0,16,134,72,45,23,24,22,67,46,36,30,223,93,40,21,104,68,49,34]
[]
[]
[null,"Calculated B25041. BEDROOMS "]
[null,"Universe:  HOUSING UNITS"]
[null,"Data Set: 2008-2012 American Community Survey 5-Year Estimates"]
[]
[null,null,"Barrington",null,"Dover",null,"Durham",null,"Farmington",null,"Lee",null,"Madbury",null,"Middleton",null,"Milton",null,"New Durham",null,"Rochester",null,"Rollinsford",null,"Somersworth",null,"Strafford"]
[null,null,"Estimate","Margin Of Error","Estimate","Margin Of Error","Estimate","Margin Of Error","Estimate","Margin Of Error","Estimate","Margin Of Error","Estimate","Margin Of Error","Estimate","Margin Of Error","Estimate","Margin Of Error","Estimate","Margin Of Error","Estimate","Margin Of Error","Estimate","Margin Of Error","Estimate","Margin Of Error","Estimate","Margin Of Error"]
[null,"Total:",3356,243,13252,393,3701,360,2831,212,1919,192,693,68,826,69,2085,174,1395,97,14003,458,1081,79,4823,254,1713,142]
[null,"No bedroom",0,16,271,150,213,94,115,107,53,82,2,3,5,7,26,31,5,7,381,167,12,18,101,108,0,11]
[null,"1 bedroom",175,103,2030,264,669,163,366,153,136,85,40,26,58,31,173,70,51,34,1257,221,132,62,519,158,63,49]
[null,"2 bedrooms",997,210,4326,366,491,113,709,188,486,137,95,33,287,62,618,167,520,99,5221,441,226,63,1390,247,393,116]
[null,"3 bedrooms",1529,239,4621,380,1011,166,1206,200,849,176,292,70,399,66,985,167,609,99,5525,475,486,81,1985,285,916,158]
[null,"4 + bedrooms",655,191.46017862730619,2004,297.06059987820669,1317,199.82242116439286,435,150.28306624500314,395,128.08200498118384,264,56.400354608814297,77,29.529646120466801,283,99.704563586628268,210,67.186308128963304,1619,276.09056485146317,225,57.008771254956898,828,190.93716243832682,341,104.69479452198185]

{"sheet":"PovertyCharacteristics","index":45,"n_rows":82,"n_cols":17,"rows_kept":82,"cut":false,"hidden":true,"merged":[[77,2,78,3],[77,6,78,9],[77,11,78,13],[21,11,21,13],[30,2,31,4],[30,7,31,9],[30,11,31,13],[49,11,49,14],[21,3,21,5],[21,7,21,9],[21,15,21,16],[49,15,49,16],[64,15,64,16],[64,3,64,5],[64,7,64,9],[64,11,64,14]]}
[]
[null,null,{"$f":"CntyDataLink!A86","v":"Rochester"}]
[null,null,"POVERTY CHARACTERISTICS"]
[]
[]
[]
[]
[]
[]
[]
[]
[]
[]
[]
[]
[]
[]
[null,null,null,null,null,null,null,null,null,null,null,null,"2012 Income (2008-2012 ACS)"]
[null,null,null,null,null,null,null,null,null,null,null,null,"2017 Income (2013-2017 ACS)"]
[null,null,null,null,null,null,null,null,null,null,null,null,"2022 Income (2018-2022 ACS)"]
[]
[null,null,null,"2012 Inc below Poverty Level",null,null,null,"2017 Inc below Poverty Level",null,null,null,"2022 Inc below Poverty Level",null,null,null,"Statistically Significant Change"]
[null,null,"Population","Estimate","Margin of Error","% of Population in Poverty",null,"Estimate","Margin of Error","% of Population in Poverty",null,"Estimate","Margin of Error","% of Population in Poverty",null,"2012-2022","2017-2022"]
[null,null," Total Individuals living Poverty",{"$f":"CntyDataLinkPrior10YearEstimate!$D$124","v":3620},{"$f":"CntyDataLinkPrior10YearEstimate!$E$124","v":565},{"$f":"D24/CntyDataLinkPrior10YearEstimate!$B$124","v":0.12279095010345646},null,{"$f":"CntyDataLinkPrior5YearEstimates!$D$124","v":3249},{"$f":"CntyDataLinkPrior5YearEstimates!$E$124","v":667},{"$f":"H24/CntyDataLinkPrior5YearEstimates!$B$124","v":0.10840479129825498},null,{"$f":"CntyDataLink!$D$124","v":2958},{"$f":"CntyDataLink!$E$124","v":660},{"$f":"L24/CntyDataLink!$B$124","v":9.3282876064333012E-2},null,{"$f":"StatisticallySignificantCalcs!$A112","v":"N"},{"$f":"StatisticallySignificantCalcs!$J$112","v":"N"}]
[null,null,"Under 5 yrs.",{"$f":"CntyDataLinkPrior10YearEstimate!$F$124","v":566},{"$f":"CntyDataLinkPrior10YearEstimate!$G$124","v":205.8275977608445},{"$f":"D25/(CntyDataLinkPrior10YearEstimate!$F$124+CntyDataLinkPrior10YearEstimate!$R$124)","v":0.39803094233473979},null,{"$f":"CntyDataLinkPrior5YearEstimates!$F$124","v":386},{"$f":"CntyDataLinkPrior5YearEstimates!$G$124","v":182.33211456021672},{"$f":"H25/(CntyDataLinkPrior5YearEstimates!$F$124+CntyDataLinkPrior5YearEstimates!$R$124)","v":0.26063470627954083},null,{"$f":"CntyDataLink!$F$124","v":158},{"$f":"CntyDataLink!$G$124","v":139.60659010233005},{"$f":"L25/(CntyDataLink!$F$124+CntyDataLink!$R$124)","v":0.11782252050708426},null,{"$f":"StatisticallySignificantCalcs!$A113","v":"N"},{"$f":"StatisticallySignificantCalcs!$J$113","v":"N"}]
[null,null,"5 to 17 yrs.",{"$f":"CntyDataLinkPrior10YearEstimate!$H$124","v":657},{"$f":"CntyDataLinkPrior10YearEstimate!$I$124","v":191.34785078489907},{"$f":"D26/(CntyDataLinkPrior10YearEstimate!$H$124+CntyDataLinkPrior10YearEstimate!$T$124)","v":0.15744069015097054},null,{"$f":"CntyDataLinkPrior5YearEstimates!$H$124","v":554},{"$f":"CntyDataLinkPrior5YearEstimates!$I$124","v":188.33746308156537},{"$f":"H26/(CntyDataLinkPrior5YearEstimates!$H$124+CntyDataLinkPrior5YearEstimates!$T$124)","v":0.1246063877642825},null,{"$f":"CntyDataLink!$H$124","v":518},{"$f":"CntyDataLink!$I$124","v":177.92695130305583},{"$f":"L26/(CntyDataLink!$H$124+CntyDataLink!$T$124)","v":0.10680412371134021},null,{"$f":"StatisticallySignificantCalcs!$A114","v":"N"},{"$f":"StatisticallySignificantCalcs!$J$114","v":"N"}]
[null,null,"18 to 64 yrs.",{"$f":"CntyDataLinkPrior10YearEstimate!$J$124","v":2079},{"$f":"CntyDataLinkPrior10YearEstimate!$K$124","v":338.05916641913439},{"$f":"D27/(CntyDataLinkPrior10YearEstimate!$J$124+CntyDataLinkPrior10YearEstimate!$V$124)","v":0.10710421925712225},null,{"$f":"CntyDataLinkPrior5YearEstimates!$J$124","v":1927},{"$f":"CntyDataLinkPrior5YearEstimates!$K$124","v":381.67918465643368},{"$f":"H27/(CntyDataLinkPrior5YearEstimates!$J$124+CntyDataLinkPrior5YearEstimates!$V$124)","v":0.10165646760920026},null,{"$f":"CntyDataLink!$J$124","v":1693},{"$f":"CntyDataLink!$K$124","v":354.43899334017976},{"$f":"L27/(CntyDataLink!$J$124+CntyDataLink!$V$124)","v":8.4481037924151695E-2},null,{"$f":"StatisticallySignificantCalcs!$A115","v":"N"},{"$f":"StatisticallySignificantCalcs!$J$115","v":"N"}]
[null,null,"65 to 74 yrs.",{"$f":"CntyDataLinkPrior10YearEstimate!$L$124","v":162},{"$f":"CntyDataLinkPrior10YearEstimate!$M$124","v":97.082439194738001},{"$f":"D28/(CntyDataLinkPrior10YearEstimate!$L$124+CntyDataLinkPrior10YearEstimate!$X$124)","v":6.1224489795918366E-2},null,{"$f":"CntyDataLinkPrior5YearEstimates!$L$124","v":143},{"$f":"CntyDataLinkPrior5YearEstimates!$M$124","v":77.103826104804938},{"$f":"H28/(CntyDataLinkPrior5YearEstimates!$L$124+CntyDataLinkPrior5YearEstimates!$X$124)","v":4.710144927536232E-2},null,{"$f":"CntyDataLink!$L$124","v":327},{"$f":"CntyDataLink!$M$124","v":208.5976989326584},{"$f":"L28/(CntyDataLink!$L$124+CntyDataLink!$X$124)","v":9.8257211538461536E-2},null,{"$f":"StatisticallySignificantCalcs!$A116","v":"N"},{"$f":"StatisticallySignificantCalcs!$J$116","v":"N"}]
[null,null,"75 yrs. & Over",{"$f":"CntyDataLinkPrior10YearEstimate!$N$124","v":156},{"$f":"CntyDataLinkPrior10YearEstimate!$O$124","v":68.8839603971781},{"$f":"D29/(CntyDataLinkPrior10YearEstimate!$N$124+CntyDataLinkPrior10YearEstimate!$Z$124)","v":8.5292509568069982E-2},null,{"$f":"CntyDataLinkPrior5YearEstimates!$N$124","v":239},{"$f":"CntyDataLinkPrior5YearEstimates!$O$124","v":113.22543883774529},{"$f":"H29/(CntyDataLinkPrior5YearEstimates!$N$124+CntyDataLinkPrior5YearEstimates!$Z$124)","v":0.11647173489278752},null,{"$f":"CntyDataLink!$N$124","v":262},{"$f":"CntyDataLink!$O$124","v":156.01602481796542},{"$f":"L29/(CntyDataLink!$N$124+CntyDataLink!$Z$124)","v":0.12180381218038122},null,{"$f":"StatisticallySignificantCalcs!$A117","v":"N"},{"$f":"StatisticallySignificantCalcs!$J$117","v":"N"}]
[]
[null,null,"Source: 2008-2012 American Community Survey  Table B1701",null,null,null,null,"Source: 2013-2017 American Community Survey  Table B1701",null,null,null,"Source: 2018-2022 American Community Survey  Table B1701"]
[]
[]
[]
[]
[]
[]
[]
[]
[]
[]
[]
[]
[]
[]
[]
[]
[]
[]
[null,null,null,{"$f":"D22","v":"2012 Inc below Poverty Level"},null,null,null,{"$f":"H22","v":"2017 Inc below Poverty Level"},null,null,null,{"$f":"L22","v":"2022 Inc below Poverty Level"},null,null,null,"Statistically Significant Change"]
[null,null,null,"Estimate","Margin of Error","% of Family Type in Poverty",null,"Estimate","Margin of Error ","% of Family Type in Poverty",null,"Estimate","Margin of Error ","% of Family Type in Poverty",null,{"$f":"P23","v":"2012-2022"},{"$f":"Q23","v":"2017-2022"}]
[]
[]
[null,null,"Total Households",{"$f":"CntyDataLinkPrior10YearEstimate!$AD$124","v":1472},{"$f":"CntyDataLinkPrior10YearEstimate!$AE$124","v":261},{"$f":"$D54/($D54+$D68)","v":0.11534242281774017},null,{"$f":"CntyDataLinkPrior5YearEstimates!$AD$124","v":1554},{"$f":"CntyDataLinkPrior5YearEstimates!$AE$124","v":341},{"$f":"$H54/($H54+$H68)","v":0.12105632157046038},null,{"$f":"CntyDataLink!$AD$124","v":1466},{"$f":"CntyDataLink!$AE$124","v":339},{"$f":"$L54/($L54+$L68)","v":0.10882636775295078},null,{"$f":"StatisticallySignificantCalcs!$A$94","v":"N"},{"$f":"StatisticallySignificantCalcs!$J$94","v":"N"}]
[null,null,"Family Households",{"$f":"CntyDataLinkPrior10YearEstimate!$AF$124","v":835},{"$f":"CntyDataLinkPrior10YearEstimate!$AG$124","v":193},{"$f":"$D55/($D55+$D69)","v":0.10615306381896771},null,{"$f":"CntyDataLinkPrior5YearEstimates!$AF$124","v":693},{"$f":"CntyDataLinkPrior5YearEstimates!$AG$124","v":197},{"$f":"$H55/($H55+$H69)","v":8.7246632254815562E-2},null,{"$f":"CntyDataLink!$AF$124","v":530},{"$f":"CntyDataLink!$AG$124","v":183},{"$f":"$L55/($L55+$L69)","v":6.2529495044832462E-2},null,{"$f":"StatisticallySignificantCalcs!$A$95","v":"Y"},{"$f":"StatisticallySignificantCalcs!$J$95","v":"N"}]
[null,null,"Married Couple Fam HH",{"$f":"CntyDataLinkPrior10YearEstimate!$AH$124","v":191},{"$f":"CntyDataLinkPrior10YearEstimate!$AI$124","v":93},{"$f":"$D56/($D56+$D70)","v":8.6818181818181822E-2},null,{"$f":"CntyDataLinkPrior5YearEstimates!$AH$124","v":222},{"$f":"CntyDataLinkPrior5YearEstimates!$AI$124","v":133},3.6519164336239515E-2,null,{"$f":"CntyDataLink!$AH$124","v":207},{"$f":"CntyDataLink!$AI$124","v":111},3.2434973362582262E-2,null,{"$f":"StatisticallySignificantCalcs!$A$96","v":"N"},{"$f":"StatisticallySignificantCalcs!$J$96","v":"N"}]
[null,null,"M C Fam HH w/Children",{"$f":"CntyDataLinkPrior10YearEstimate!$BN$124","v":0},{"$f":"CntyDataLinkPrior10YearEstimate!$BO$124","v":0},0,null,{"$f":"CntyDataLinkPrior5YearEstimates!$BN$124","v":147},{"$f":"CntyDataLinkPrior5YearEstimates!$BO$124","v":122},6.8659504904250351E-2,null,{"$f":"CntyDataLink!$BN$124","v":140},{"$f":"CntyDataLink!$BO$124","v":104},6.4043915827996345E-2,null,{"$f":"StatisticallySignificantCalcs!$A$97","v":"Y"},{"$f":"StatisticallySignificantCalcs!$J$97","v":"N"}]
[null,null,"Male Head of Family HH ",{"$f":"CntyDataLinkPrior10YearEstimate!$AL$124","v":88},{"$f":"CntyDataLinkPrior10YearEstimate!$AM$124","v":87},0.15094339622641509,null,{"$f":"CntyDataLinkPrior5YearEstimates!$AL$124","v":142},{"$f":"CntyDataLinkPrior5YearEstimates!$AM$124","v":95},0.18489583333333334,null,{"$f":"CntyDataLink!$AL$124","v":118},{"$f":"CntyDataLink!$AM$124","v":77},0.15070242656449553,null,{"$f":"StatisticallySignificantCalcs!$A$98","v":"N"},{"$f":"StatisticallySignificantCalcs!$J$98","v":"N"}]
[null,null,"Male Head of HH w/Children",{"$f":"CntyDataLinkPrior10YearEstimate!$BP$124","v":835},{"$f":"CntyDataLinkPrior10YearEstimate!$BQ$124","v":193},0.10615306381896771,null,{"$f":"CntyDataLinkPrior5YearEstimates!$BP$124","v":142},{"$f":"CntyDataLinkPrior5YearEstimates!$BQ$124","v":95},0.23432343234323433,null,{"$f":"CntyDataLink!$BP$124","v":90},{"$f":"CntyDataLink!$BQ$124","v":71},0.21126760563380281,null,{"$f":"StatisticallySignificantCalcs!$A$99","v":"Y"},{"$f":"StatisticallySignificantCalcs!$J$99","v":"N"}]
[null,null,"Female Head of Family HH ",{"$f":"CntyDataLinkPrior10YearEstimate!$AN$124","v":556},{"$f":"CntyDataLinkPrior10YearEstimate!$AO$124","v":184},0.34641744548286607,null,{"$f":"CntyDataLinkPrior5YearEstimates!$AN$124","v":329},{"$f":"CntyDataLinkPrior5YearEstimates!$AO$124","v":115},0.30018248175182483,null,{"$f":"CntyDataLink!$AN$124","v":205},{"$f":"CntyDataLink!$AO$124","v":113},0.15636918382913806,null,{"$f":"StatisticallySignificantCalcs!$A$100","v":"Y"},{"$f":"StatisticallySignificantCalcs!$J$100","v":"N"}]
[null,null,"Female Head of HH w/Children",{"$f":"CntyDataLinkPrior10YearEstimate!$BR$124","v":150},{"$f":"CntyDataLinkPrior10YearEstimate!$BS$124","v":85},3.9093041438623924E-2,null,{"$f":"CntyDataLinkPrior5YearEstimates!$BR$124","v":291},{"$f":"CntyDataLinkPrior5YearEstimates!$BS$124","v":119},0.4330357142857143,null,{"$f":"CntyDataLink!$BR$124","v":188},{"$f":"CntyDataLink!$BS$124","v":108},0.20750551876379691,null,{"$f":"StatisticallySignificantCalcs!$A$101","v":"N"},{"$f":"StatisticallySignificantCalcs!$J$101","v":"N"}]
[null,null,"Non-Family HH ",{"$f":"CntyDataLinkPrior10YearEstimate!$AP$124","v":637},{"$f":"CntyDataLinkPrior10YearEstimate!$AQ$124","v":204},0.13010620915032681,null,{"$f":"CntyDataLinkPrior5YearEstimates!$AP$124","v":861},{"$f":"CntyDataLinkPrior5YearEstimates!$AQ$124","v":276},0.17592970984879444,null,{"$f":"CntyDataLink!$AP$124","v":936},{"$f":"CntyDataLink!$AQ$124","v":314},0.18738738738738739,null,{"$f":"StatisticallySignificantCalcs!$A$102","v":"N"},{"$f":"StatisticallySignificantCalcs!$J$102","v":"N"}]
[]
[null,"Data from the American Community Survey are estimates."]
[null,null,null,"2012  Inc at or Above Poverty Level",null,null,null,"2017 Inc at or Above Poverty Level",null,null,null,"2022 Inc at or above Poverty Level",null,null,null,"Statistically Significant Change"]
[null,null,"Households","Estimate","Margin of Error",null,null,"Estimate","Margin of Error",null,null,"Estimate","Margin of Error",null,null,{"$f":"P23","v":"2012-2022"},{"$f":"Q23","v":"2017-2022"}]
[]
[null,null,"Total Households",{"$f":"CntyDataLinkPrior10YearEstimate!$AV$124","v":11290},{"$f":"CntyDataLinkPrior10YearEstimate!$AW$124","v":375},{"$f":"$D68/($D68+$D54)","v":0.88465757718225979},null,{"$f":"CntyDataLinkPrior5YearEstimates!$AV$124","v":11283},{"$f":"CntyDataLinkPrior5YearEstimates!$AW$124","v":360},{"$f":"$H68/($H68+$H54)","v":0.87894367842953958},null,{"$f":"CntyDataLink!$AV$124","v":12005},{"$f":"CntyDataLink!$AW$124","v":512},{"$f":"$L68/($L68+$L54)","v":0.89117363224704926},null,{"$f":"StatisticallySignificantCalcs!$A$103","v":"Y"},{"$f":"StatisticallySignificantCalcs!$J$103","v":"Y"}]
[null,null,"Family Households",{"$f":"CntyDataLinkPrior10YearEstimate!$AX$124","v":7031},{"$f":"CntyDataLinkPrior10YearEstimate!$AY$124","v":316},{"$f":"$D69/($D69+$D55)","v":0.89384693618103228},null,{"$f":"CntyDataLinkPrior5YearEstimates!$AX$124","v":7250},{"$f":"CntyDataLinkPrior5YearEstimates!$AY$124","v":398},{"$f":"$H69/($H69+$H55)","v":0.91275336774518445},null,{"$f":"CntyDataLink!$AX$124","v":7946},{"$f":"CntyDataLink!$AY$124","v":417},{"$f":"$L69/($L69+$L55)","v":0.93747050495516748},null,{"$f":"StatisticallySignificantCalcs!$A$104","v":"Y"},{"$f":"StatisticallySignificantCalcs!$J$104","v":"Y"}]
[null,null,"Married Couple Fam HH",{"$f":"CntyDataLinkPrior10YearEstimate!$AZ$124","v":2009},{"$f":"CntyDataLinkPrior10YearEstimate!$BA$124","v":215},{"$f":"$D70/($D70+$D56)","v":0.91318181818181821},null,{"$f":"CntyDataLinkPrior5YearEstimates!$AZ$124","v":5857},{"$f":"CntyDataLinkPrior5YearEstimates!$BA$124","v":343},{"$f":"$H70/($H70+$H56)","v":0.96348083566376053},null,{"$f":"CntyDataLink!$AZ$124","v":6175},{"$f":"CntyDataLink!$BA$124","v":444},0.96756502663741772,null,{"$f":"StatisticallySignificantCalcs!$A$105","v":"Y"},{"$f":"StatisticallySignificantCalcs!$J$105","v":"N"}]
[null,null,"M C Fam HH w/Children",{"$f":"CntyDataLinkPrior10YearEstimate!$BT$124","v":1994},{"$f":"CntyDataLinkPrior10YearEstimate!$BU$124","v":241},1,null,{"$f":"CntyDataLinkPrior5YearEstimates!$BT$124","v":1994},{"$f":"CntyDataLinkPrior5YearEstimates!$BU$124","v":241},0.93134049509574968,null,{"$f":"CntyDataLink!$BT$124","v":2046},{"$f":"CntyDataLink!$BU$124","v":296},0.93595608417200371,null,{"$f":"StatisticallySignificantCalcs!$A$106","v":"N"},{"$f":"StatisticallySignificantCalcs!$J$106","v":"N"}]
[null,null,"Male Head of Family HH ",{"$f":"CntyDataLinkPrior10YearEstimate!$BD$124","v":495},{"$f":"CntyDataLinkPrior10YearEstimate!$BE$124","v":160},0.84905660377358494,null,{"$f":"CntyDataLinkPrior5YearEstimates!$BD$124","v":626},{"$f":"CntyDataLinkPrior5YearEstimates!$BE$124","v":194},0.81510416666666663,null,{"$f":"CntyDataLink!$BD$124","v":665},{"$f":"CntyDataLink!$BE$124","v":212},0.84929757343550449,null,{"$f":"StatisticallySignificantCalcs!$A$107","v":"N"},{"$f":"StatisticallySignificantCalcs!$J$107","v":"N"}]
[null,null,"Male Head of HH w/Children",{"$f":"CntyDataLinkPrior10YearEstimate!$BV$124","v":7031},{"$f":"CntyDataLinkPrior10YearEstimate!$BW$124","v":316},0.89384693618103228,null,{"$f":"CntyDataLinkPrior5YearEstimates!$BV$124","v":464},{"$f":"CntyDataLinkPrior5YearEstimates!$BW$124","v":180},0.76567656765676573,null,{"$f":"CntyDataLink!$BV$124","v":336},{"$f":"CntyDataLink!$BW$124","v":145},0.78873239436619713,null,{"$f":"StatisticallySignificantCalcs!$A$108","v":"Y"},{"$f":"StatisticallySignificantCalcs!$J$108","v":"N"}]
[null,null,"Female Head of Family HH ",{"$f":"CntyDataLinkPrior10YearEstimate!$BF$124","v":1049},{"$f":"CntyDataLinkPrior10YearEstimate!$BG$124","v":233},0.65358255451713398,null,{"$f":"CntyDataLinkPrior5YearEstimates!$BF$124","v":767},{"$f":"CntyDataLinkPrior5YearEstimates!$BG$124","v":177},0.69981751824817517,null,{"$f":"CntyDataLink!$BF$124","v":1106},{"$f":"CntyDataLink!$BG$124","v":273},0.84363081617086189,null,{"$f":"StatisticallySignificantCalcs!$A$109","v":"N"},{"$f":"StatisticallySignificantCalcs!$J$109","v":"Y"}]
[null,null,"Female Head of HH w/Children",{"$f":"CntyDataLinkPrior10YearEstimate!$BX$124","v":3687},{"$f":"CntyDataLinkPrior10YearEstimate!$BY$124","v":322},0.96090695856137609,null,{"$f":"CntyDataLinkPrior5YearEstimates!$BX$124","v":381},{"$f":"CntyDataLinkPrior5YearEstimates!$BY$124","v":144},0.5669642857142857,null,{"$f":"CntyDataLink!$BX$124","v":718},{"$f":"CntyDataLink!$BY$124","v":224},0.79249448123620314,null,{"$f":"StatisticallySignificantCalcs!$A$110","v":"Y"},{"$f":"StatisticallySignificantCalcs!$J$110","v":"Y"}]
[null,null,"Non-Family HH ",{"$f":"CntyDataLinkPrior10YearEstimate!$BH$124","v":4259},{"$f":"CntyDataLinkPrior10YearEstimate!$BI$124","v":419},0.86989379084967322,null,{"$f":"CntyDataLinkPrior5YearEstimates!$BH$124","v":4033},{"$f":"CntyDataLinkPrior5YearEstimates!$BI$124","v":445},0.82407029015120559,null,{"$f":"CntyDataLink!$BH$124","v":4059},{"$f":"CntyDataLink!$BI$124","v":524},0.81261261261261264,null,{"$f":"StatisticallySignificantCalcs!$A$111","v":"N"},{"$f":"StatisticallySignificantCalcs!$J$111","v":"N"}]
[]
[null,null,"Source: 2008-2012 American Community Survey ",null,null,null,"Source: 2013-2017 American Community Survey",null,null,null,null,"Source: 2018-2022 American Community Survey"]
[]
[null,null,"Tables B17010; and B17017",null,null,null,"Tables B17010; and B17017",null,null,null,null,"Tables B17010; and B17017"]
[]
[null,null,"Data from the American Community Survey are estimates."]

{"sheet":"ACS_Table_ B17001","index":46,"n_rows":209,"n_cols":28,"rows_kept":209,"cut":false,"hidden":true,"merged":[]}
[null,"B17001. POVERTY STATUS IN THE PAST 12 MONTHS BY SEX BY AGE"]
[null,"Universe:  POPULATION FOR WHOM POVERTY STATUS IS DETERMINED"]
[null,"Data Set: 2018-2022 American Community Survey 5-Year Estimates"]
[]
[null,null,"Barrington",null,"Dover",null,"Durham",null,"Farmington",null,"Lee",null,"Madbury",null,"Middleton",null,"Milton",null,"New Durham",null,"Rochester",null,"Rollinsford",null,"Somersworth",null,"Strafford"]
[null,null,"Estimate","Margin Of Error","Estimate","Margin Of Error","Estimate","Margin Of Error","Estimate","Margin Of Error","Estimate","Margin Of Error","Estimate","Margin Of Error","Estimate","Margin Of Error","Estimate","Margin Of Error","Estimate","Margin Of Error","Estimate","Margin Of Error","Estimate","Margin Of Error","Estimate","Margin Of Error","Estimate","Margin Of Error"]
[null,"Total:",9316,43,31813,140,7901,187,6754,22,4544,17,2206,277,1537,276,4437,84,2703,19,31899,228,2597,24,11870,99,4261,26]
[null,"Income in the past 12 months below poverty level:",510,305,2422,550,1705,407,917,385,112,99,87,44,140,66,263,130,232,110,3129,718,202,105,1029,383,364,180]
[null,"Male:",343,235,841,251,950,365,254,162,83,94,35,22,71,42,101,48,87,61,1347,369,72,52,447,190,88,64]
[null,"Under 5 years",27,45,49,45,0,19,0,17,0,12,0,12,0,12,0,12,0,12,51,52,13,18,13,21,3,9]
[null,"5 years",0,17,10,15,0,19,22,44,0,12,0,12,0,12,0,12,0,12,20,30,11,15,0,19,0,12]
[null,"6 to 11 years",70,94,27,31,13,21,0,17,0,12,0,12,8,11,0,12,12,13,114,92,0,12,37,44,0,12]
[null,"12 to 14 years",11,17,0,25,13,21,7,15,0,12,5,8,0,12,8,13,0,12,40,49,0,12,23,42,3,7]
[null,"15 years",0,17,61,49,0,19,0,17,0,12,0,12,0,12,14,25,0,12,15,22,0,12,0,19,0,12]
[null,"16 and 17 years",0,17,79,72,0,19,0,17,0,12,0,12,9,12,0,12,0,12,98,83,0,12,0,19,0,12]
[null,"18 to 24 years",0,17,176,126,849,368,0,17,0,12,8,10,14,22,1,2,16,23,227,194,0,12,16,27,16,25]
[null,"25 to 34 years",14,23,111,102,22,25,0,17,0,12,3,5,0,12,15,23,0,12,194,106,27,31,96,63,0,12]
[null,"35 to 44 years",129,123,52,52,5,10,141,116,0,12,0,12,4,5,1,2,22,26,165,104,0,12,123,93,5,9]
[null,"45 to 54 years",11,17,64,53,23,28,0,17,0,12,11,10,10,12,12,17,0,12,107,81,5,8,0,19,1,4]
[null,"55 to 64 years",20,25,98,68,0,19,0,17,32,51,5,7,13,14,6,10,30,30,54,43,16,25,26,33,50,45]
[null,"65 to 74 years",61,82,74,75,17,23,84,92,51,80,0,12,13,18,30,26,7,11,115,96,0,12,24,37,9,9]
[null,"75 years and over",0,17,40,42,8,14,0,17,0,12,3,4,0,12,14,17,0,12,147,148,0,12,89,96,1,4]
[null,"Female:",167,134,1581,445,755,214,663,304,29,34,52,32,69,37,162,124,145,73,1782,464,130,69,582,252,276,147]
[null,"Under 5 years",19,31,8,14,0,19,0,17,0,12,0,12,0,12,0,12,0,12,61,78,0,12,0,19,0,12]
[null,"5 years",43,70,0,25,0,19,0,17,0,12,0,12,0,12,0,12,0,12,10,16,0,12,0,19,0,12]
[null,"6 to 11 years",0,17,28,30,0,19,12,41,0,12,0,12,0,12,0,12,0,12,98,76,0,12,43,70,0,12]
[null,"12 to 14 years",0,17,15,24,0,19,107,119,0,12,3,5,3,4,0,12,0,12,69,76,0,12,42,69,0,12]
[null,"15 years",0,17,0,25,29,41,28,41,0,12,5,8,0,12,0,12,18,26,0,25,0,12,38,54,0,12]
[null,"16 and 17 years",0,17,22,26,7,11,6,30,0,12,0,12,0,12,0,12,4,7,14,21,0,12,0,19,0,12]
[null,"18 to 24 years",10,20,515,290,630,208,183,244,0,12,8,11,3,5,0,12,51,62,170,145,21,35,114,117,27,33]
[null,"25 to 34 years",50,60,325,204,5,8,51,56,22,33,0,12,21,17,101,121,23,26,157,85,29,30,160,135,1,2]
[null,"35 to 44 years",16,26,90,69,9,15,49,60,5,12,4,6,25,24,0,12,4,6,274,151,14,23,33,42,0,12]
[null,"45 to 54 years",15,29,192,155,0,19,5,19,0,12,10,15,6,10,19,22,11,11,196,125,15,23,0,19,6,9]
[null,"55 to 64 years",10,18,220,153,10,13,99,72,2,4,6,7,3,5,12,19,18,16,277,131,0,12,109,112,32,39]
[null,"65 to 74 years",4,7,74,49,1,3,38,47,0,12,8,10,8,15,15,16,16,18,335,219,0,12,12,20,210,132]
[null,"75 years and over",0,17,92,58,64,49,85,81,0,12,8,10,0,12,15,24,0,12,121,78,51,36,31,42,0,12]
[null,"Income in the past 12 months at or above poverty level:",8806,321,29391,559,6196,445,5837,387,4432,97,2119,280,1397,255,4174,202,2471,114,28770,789,2395,108,10841,396,3897,178]
[null,"Male:",4398,370,14856,476,2976,354,2851,279,2126,242,988,130,746,160,2256,222,1293,106,14785,584,946,127,5588,433,1924,129]
[null,"Under 5 years",210,101,804,174,109,66,210,136,89,68,52,33,40,36,71,51,123,108,630,206,27,28,278,128,121,52]
[null,"5 years",108,74,76,60,56,38,67,76,0,12,14,14,0,12,60,54,40,41,180,111,4,7,10,18,19,20]
[null,"6 to 11 years",441,181,721,207,281,153,118,87,236,114,46,35,26,16,170,99,22,17,900,234,41,31,328,152,107,63]
[null,"12 to 14 years",157,99,429,148,105,66,95,88,28,41,71,45,57,42,131,82,9,10,761,230,13,11,183,100,27,26]
[null,"15 years",113,70,177,106,64,57,25,45,73,69,9,10,10,14,69,48,4,6,309,125,0,12,61,75,14,18]
[null,"16 and 17 years",28,35,126,69,107,54,32,48,40,45,30,21,30,28,43,43,72,40,408,145,0,12,183,106,59,45]
[null,"18 to 24 years",404,218,1444,426,350,129,185,143,59,60,85,53,61,39,224,105,66,34,1146,267,103,60,408,207,125,64]
[null,"25 to 34 years",594,198,3053,384,317,135,557,169,111,70,110,84,82,36,289,140,211,117,1871,280,174,66,1201,334,215,85]
[null,"35 to 44 years",522,130,2261,304,363,88,205,150,360,136,157,76,104,48,242,75,140,68,1789,240,135,48,662,212,187,46]
[null,"45 to 54 years",672,185,1713,304,325,102,317,105,341,137,167,48,68,21,290,91,240,69,2088,297,119,36,727,249,349,129]
[null,"55 to 64 years",646,169,1905,297,355,89,685,210,337,117,148,53,158,57,404,123,178,62,2350,280,166,48,830,241,370,89]
[null,"65 to 74 years",328,122,1397,274,316,78,188,101,288,109,64,22,60,24,195,68,153,48,1597,262,95,43,414,170,222,68]
[null,"75 years and over",175,70,750,159,228,62,167,72,164,115,35,22,50,23,68,50,35,28,756,178,69,37,303,115,109,38]
[null,"Female:",4408,366,14535,560,3220,334,2986,352,2306,224,1131,213,651,141,1918,177,1178,90,13985,678,1449,166,5253,479,1973,141]
[null,"Under 5 years",244,157,841,249,109,51,269,145,116,85,75,48,32,21,53,51,61,69,587,140,99,66,168,110,55,39]
[null,"5 years",67,68,124,77,8,12,0,17,36,37,21,19,6,9,13,22,5,7,153,105,15,13,0,19,15,19]
[null,"6 to 11 years",237,118,685,194,298,102,59,60,203,121,92,66,29,25,175,103,70,45,615,194,76,41,297,205,148,67]
[null,"12 to 14 years",225,107,529,211,133,125,190,138,107,109,60,29,31,31,22,31,9,9,453,164,43,32,128,87,136,86]
[null,"15 years",0,17,241,134,7,12,22,38,0,12,10,17,2,5,17,28,21,21,96,90,20,25,62,65,16,25]
[null,"16 and 17 years",112,84,370,148,62,41,65,72,97,99,89,72,12,11,38,33,18,20,220,95,26,17,137,94,51,37]
[null,"18 to 24 years",412,161,1350,327,432,263,203,182,81,92,128,56,52,33,151,109,97,65,1244,374,192,157,338,175,84,60]
[null,"25 to 34 years",457,166,2486,337,320,118,540,191,116,75,102,55,66,43,234,87,67,35,1553,264,235,70,979,271,193,63]
[null,"35 to 44 years",667,146,1815,282,468,120,104,90,368,102,166,80,103,31,182,58,196,101,1933,283,97,45,645,153,135,51]
[null,"45 to 54 years",466,159,1805,267,350,97,568,142,358,124,138,48,72,29,308,92,217,58,1828,236,219,75,922,293,408,119]
[null,"55 to 64 years",771,159,1654,276,269,84,587,274,277,124,148,54,119,32,377,128,155,47,2498,351,179,59,702,178,385,104]
[null,"65 to 74 years",356,113,1367,183,422,108,195,84,434,164,51,24,64,25,227,77,211,59,1551,292,108,44,641,257,180,41]
[null,"75 years and over",394,145,1268,252,342,114,184,98,113,75,51,35,63,27,121,70,51,28,1254,256,140,82,234,119,167,73]
[]
[]
[]
[null,"Calculated Table B17001. POVERTY STATUS IN THE PAST 12 MONTHS BY SEX BY AGE"]
[null,"Universe:  POPULATION FOR WHOM POVERTY STATUS IS DETERMINED"]
[null,"Data Set: 2018-2022 American Community Survey 5-Year Estimates"]
[]
[null,null,"Barrington",null,"Dover",null,"Durham",null,"Farmington",null,"Lee",null,"Madbury",null,"Middleton",null,"Milton",null,"New Durham",null,"Rochester",null,"Rollinsford",null,"Somersworth",null,"Strafford"]
[null,null,"Estimate","Margin Of Error","Estimate","Margin Of Error","Estimate","Margin Of Error","Estimate","Margin Of Error","Estimate","Margin Of Error","Estimate","Margin Of Error","Estimate","Margin Of Error","Estimate","Margin Of Error","Estimate","Margin Of Error","Estimate","Margin Of Error","Estimate","Margin Of Error","Estimate","Margin Of Error","Estimate","Margin Of Error"]
[null,"Total:",{"$f":"C7","v":9316},{"$f":"D7","v":43},31813,140,7901,187,6754,22,4544,17,2206,277,1537,276,4437,84,2703,19,31899,228,2597,24,{"$f":"Y7","v":11870},99,4261,26]
[null,"Income in the past 12 months below poverty level:",{"$f":"C8","v":510},{"$f":"D8","v":305},2422,550,1705,407,917,385,112,99,87,44,140,66,263,130,232,110,3129,718,202,105,1029,383,364,180]
[null,"Under 5 years",{"$f":"C10+C24","v":46},{"$f":"SQRT(((D10^2))+((D34^2)))","v":48.466483264210538},{"$f":"E10+E24","v":57},{"$f":"SQRT(((F10^2))+((F34^2)))","v":159.48040632002414},{"$f":"G10+G24","v":0},{"$f":"SQRT(((H10^2))+((H34^2)))","v":23.021728866442675},{"$f":"I10+I24","v":0},{"$f":"SQRT(((J10^2))+((J34^2)))","v":73.979726952726722},{"$f":"K10+K24","v":0},{"$f":"SQRT(((L10^2))+((L34^2)))","v":12.649110640673518},{"$f":"M10+M24","v":0},{"$f":"SQRT(((N10^2))+((N34^2)))","v":13.892443989449804},{"$f":"O10+O24","v":0},{"$f":"SQRT(((P10^2))+((P34^2)))","v":13},{"$f":"Q10+Q24","v":0},{"$f":"SQRT(((R10^2))+((R34^2)))","v":22.472205054244231},{"$f":"S10+S24","v":0},{"$f":"SQRT(((T10^2))+((T34^2)))","v":20},{"$f":"U10+U24","v":112},{"$f":"SQRT(((V10^2))+((V34^2)))","v":140.94325099131211},{"$f":"W10+W24","v":13},{"$f":"SQRT(((X10^2))+((X34^2)))","v":21.633307652783937},{"$f":"Y10+Y24","v":13},{"$f":"SQRT(((Z10^2))+((Z34^2)))","v":113.95174417269794},{"$f":"AA10+AA24","v":3},{"$f":"SQRT(((AB10^2))+((AB34^2)))","v":40.024992192379003}]
[null,"5 to 17 years",{"$f":"C11+C12+C13+C14+C15+C25+C26+C27+C28+C29","v":124},{"$f":"SQRT((D11^2)+(D12^2)+(D13^2)+(D14^2)+(D15^2)+(D25^2)+(D26^2)+(D27^2)+(D28)+(D29^2))","v":125.60254774486066},{"$f":"E11+E12+E13+E14+E15+E25+E26+E27+E28+E29","v":242},{"$f":"SQRT((F11^2)+(F12^2)+(F13^2)+(F14^2)+(F15^2)+(F25^2)+(F26^2)+(F27^2)+(F28)+(F29^2))","v":110.4445562261898},{"$f":"G11+G12+G13+G14+G15+G25+G26+G27+G28+G29","v":62},{"$f":"SQRT((H11^2)+(H12^2)+(H13^2)+(H14^2)+(H15^2)+(H25^2)+(H26^2)+(H27^2)+(H28)+(H29^2))","v":56.65686189686118},{"$f":"I11+I12+I13+I14+I15+I25+I26+I27+I28+I29","v":182},{"$f":"SQRT((J11^2)+(J12^2)+(J13^2)+(J14^2)+(J15^2)+(J25^2)+(J26^2)+(J27^2)+(J28)+(J29^2))","v":141.77446878757826},{"$f":"K11+K12+K13+K14+K15+K25+K26+K27+K28+K29","v":0},{"$f":"SQRT((L11^2)+(L12^2)+(L13^2)+(L14^2)+(L15^2)+(L25^2)+(L26^2)+(L27^2)+(L28)+(L29^2))","v":36.166282640050248},{"$f":"M11+M12+M13+M14+M15+M25+M26+M27+M28+M29","v":13},{"$f":"SQRT((N11^2)+(N12^2)+(N13^2)+(N14^2)+(N15^2)+(N25^2)+(N26^2)+(N27^2)+(N28)+(N29^2))","v":33.241540277189323},{"$f":"O11+O12+O13+O14+O15+O25+O26+O27+O28+O29","v":20},{"$f":"SQRT((P11^2)+(P12^2)+(P13^2)+(P14^2)+(P15^2)+(P25^2)+(P26^2)+(P27^2)+(P28)+(P29^2))","v":34.014702703389901},{"$f":"Q11+Q12+Q13+Q14+Q15+Q25+Q26+Q27+Q28+Q29","v":22},{"$f":"SQRT((R11^2)+(R12^2)+(R13^2)+(R14^2)+(R15^2)+(R25^2)+(R26^2)+(R27^2)+(R28)+(R29^2))","v":42.591078878093711},{"$f":"S11+S12+S13+S14+S15+S25+S26+S27+S28+S29","v":34},{"$f":"SQRT((T11^2)+(T12^2)+(T13^2)+(T14^2)+(T15^2)+(T25^2)+(T26^2)+(T27^2)+(T28)+(T29^2))","v":35.383612025908263},{"$f":"U11+U12+U13+U14+U15+U25+U26+U27+U28+U29","v":478},{"$f":"SQRT((V11^2)+(V12^2)+(V13^2)+(V14^2)+(V15^2)+(V25^2)+(V26^2)+(V27^2)+(V28)+(V29^2))","v":177.23430819116257},{"$f":"W11+W12+W13+W14+W15+W25+W26+W27+W28+W29","v":11},{"$f":"SQRT((X11^2)+(X12^2)+(X13^2)+(X14^2)+(X15^2)+(X25^2)+(X26^2)+(X27^2)+(X28)+(X29^2))","v":37.269290307168447},{"$f":"Y11+Y12+Y13+Y14+Y15+Y25+Y26+Y27+Y28+Y29","v":183},{"$f":"SQRT((Z11^2)+(Z12^2)+(Z13^2)+(Z14^2)+(Z15^2)+(Z25^2)+(Z26^2)+(Z27^2)+(Z28)+(Z29^2))","v":123.36936410632909},{"$f":"AA11+AA12+AA13+AA14+AA15+AA25+AA26+AA27+AA28+AA29","v":3},{"$f":"SQRT((AB11^2)+(AB12^2)+(AB13^2)+(AB14^2)+(AB15^2)+(AB25^2)+(AB26^2)+(AB27^2)+(AB28)+(AB29^2))","v":34.828149534535996}]
[null,"18 to 64 years",{"$f":"C16+C17+C18+C19+C20+C30+C31+C32+C33+C34","v":275},{"$f":"SQRT((D16^2)+(D17^2)+(D18^2)+(D19^2)+(D20^2)+(D30^2)+(D31^2)+(D32^2)+(D33^2)+(D34^2))","v":150.6718288201215},{"$f":"E16+E17+E18+E19+E20+E30+E31+E32+E33+E34","v":1843},{"$f":"SQRT((F16^2)+(F17^2)+(F18^2)+(F19^2)+(F20^2)+(F30^2)+(F31^2)+(F32^2)+(F33^2)+(F34^2))","v":462.95572142484644},{"$f":"G16+G17+G18+G19+G20+G30+G31+G32+G33+G34","v":1553},{"$f":"SQRT((H16^2)+(H17^2)+(H18^2)+(H19^2)+(H20^2)+(H30^2)+(H31^2)+(H32^2)+(H33^2)+(H34^2))","v":425.8837869654115},{"$f":"I16+I17+I18+I19+I20+I30+I31+I32+I33+I34","v":528},{"$f":"SQRT((J16^2)+(J17^2)+(J18^2)+(J19^2)+(J20^2)+(J30^2)+(J31^2)+(J32^2)+(J33^2)+(J34^2))","v":293.98809499705936},{"$f":"K16+K17+K18+K19+K20+K30+K31+K32+K33+K34","v":61},{"$f":"SQRT((L16^2)+(L17^2)+(L18^2)+(L19^2)+(L20^2)+(L30^2)+(L31^2)+(L32^2)+(L33^2)+(L34^2))","v":68.658575575087482},{"$f":"M16+M17+M18+M19+M20+M30+M31+M32+M33+M34","v":55},{"$f":"SQRT((N16^2)+(N17^2)+(N18^2)+(N19^2)+(N20^2)+(N30^2)+(N31^2)+(N32^2)+(N33^2)+(N34^2))","v":31.511902513177461},{"$f":"O16+O17+O18+O19+O20+O30+O31+O32+O33+O34","v":99},{"$f":"SQRT((P16^2)+(P17^2)+(P18^2)+(P19^2)+(P20^2)+(P30^2)+(P31^2)+(P32^2)+(P33^2)+(P34^2))","v":44.810713004816158},{"$f":"Q16+Q17+Q18+Q19+Q20+Q30+Q31+Q32+Q33+Q34","v":167},{"$f":"SQRT((R16^2)+(R17^2)+(R18^2)+(R19^2)+(R20^2)+(R30^2)+(R31^2)+(R32^2)+(R33^2)+(R34^2))","v":129.22847983320085},{"$f":"S16+S17+S18+S19+S20+S30+S31+S32+S33+S34","v":175},{"$f":"SQRT((T16^2)+(T17^2)+(T18^2)+(T19^2)+(T20^2)+(T30^2)+(T31^2)+(T32^2)+(T33^2)+(T34^2))","v":85.592055706122636},{"$f":"U16+U17+U18+U19+U20+U30+U31+U32+U33+U34","v":1821},{"$f":"SQRT((V16^2)+(V17^2)+(V18^2)+(V19^2)+(V20^2)+(V30^2)+(V31^2)+(V32^2)+(V33^2)+(V34^2))","v":389.78840413742427},{"$f":"W16+W17+W18+W19+W20+W30+W31+W32+W33+W34","v":127},{"$f":"SQRT((X16^2)+(X17^2)+(X18^2)+(X19^2)+(X20^2)+(X30^2)+(X31^2)+(X32^2)+(X33^2)+(X34^2))","v":72.560319734686942},{"$f":"Y16+Y17+Y18+Y19+Y20+Y30+Y31+Y32+Y33+Y34","v":677},{"$f":"SQRT((Z16^2)+(Z17^2)+(Z18^2)+(Z19^2)+(Z20^2)+(Z30^2)+(Z31^2)+(Z32^2)+(Z33^2)+(Z34^2))","v":247.74987386475092},{"$f":"AA16+AA17+AA18+AA19+AA20+AA30+AA31+AA32+AA33+AA34","v":138},{"$f":"SQRT((AB16^2)+(AB17^2)+(AB18^2)+(AB19^2)+(AB20^2)+(AB30^2)+(AB31^2)+(AB32^2)+(AB33^2)+(AB34^2))","v":75.696763471102244}]
[null,"65 to 74 years",{"$f":"C21+C35","v":65},{"$f":"SQRT((D21^2)+(D35^2))","v":82.29823813423954},{"$f":"E21+E35","v":148},{"$f":"SQRT((F21^2)+(F35^2))","v":89.587945617700157},{"$f":"G21+G35","v":18},{"$f":"SQRT((H21^2)+(H35^2))","v":23.194827009486403},{"$f":"I21+I35","v":122},{"$f":"SQRT((J21^2)+(J35^2))","v":103.31021246711285},{"$f":"K21+K35","v":51},{"$f":"SQRT((L21^2)+(L35^2))","v":80.894993664626739},{"$f":"M21+M35","v":8},{"$f":"SQRT((N21^2)+(N35^2))","v":15.620499351813308},{"$f":"O21+O35","v":21},{"$f":"SQRT((P21^2)+(P35^2))","v":23.430749027719962},{"$f":"Q21+Q35","v":45},{"$f":"SQRT((R21^2)+(R35^2))","v":30.528675044947494},{"$f":"S21+S35","v":23},{"$f":"SQRT((T21^2)+(T35^2))","v":21.095023109728988},{"$f":"U21+U35","v":450},{"$f":"SQRT((V21^2)+(V35^2))","v":239.11712611187014},{"$f":"W21+W35","v":0},{"$f":"SQRT((X21^2)+(X35^2))","v":16.970562748477139},{"$f":"Y21+Y35","v":36},{"$f":"SQRT((Z21^2)+(Z35^2))","v":42.059481689626182},{"$f":"AA21+AA35","v":219},{"$f":"SQRT((AB21^2)+(AB35^2))","v":132.30646242719968}]
[null,"75 years and over",{"$f":"C22+C36","v":0},{"$f":"SQRT((D22^2)+(D36^2))","v":24.041630560342615},{"$f":"E22+E36","v":132},{"$f":"SQRT((F22^2)+(F36^2))","v":71.61005515987263},{"$f":"G22+G36","v":72},{"$f":"SQRT((H22^2)+(H36^2))","v":50.960769224963627},{"$f":"I22+I36","v":85},{"$f":"SQRT((J22^2)+(J36^2))","v":82.764726786234249},{"$f":"K22+K36","v":0},{"$f":"SQRT((L22^2)+(L36^2))","v":16.970562748477139},{"$f":"M22+M36","v":11},{"$f":"SQRT((N22^2)+(N36^2))","v":10.770329614269007},{"$f":"O22+O36","v":0},{"$f":"SQRT((P22^2)+(P36^2))","v":16.970562748477139},{"$f":"Q22+Q36","v":29},{"$f":"SQRT((R22^2)+(R36^2))","v":29.410882339705484},{"$f":"S22+S36","v":0},{"$f":"SQRT((T22^2)+(T36^2))","v":16.970562748477139},{"$f":"U22+U36","v":268},{"$f":"SQRT((V22^2)+(V36^2))","v":167.29614460590537},{"$f":"W22+W36","v":51},{"$f":"SQRT((X22^2)+(X36^2))","v":37.947331922020552},{"$f":"Y22+Y36","v":120},{"$f":"SQRT((Z22^2)+(Z36^2))","v":104.78549517943789},{"$f":"AA22+AA36","v":1},{"$f":"SQRT((AB22^2)+(AB36^2))","v":12.649110640673518}]
[null," Income in the past 12 months at or above poverty level ",{"$f":"C37","v":8806},321,29391,559,6196,445,5837,387,4432,97,2119,280,1397,255,4174,202,2471,114,28770,789,2395,108,{"$f":"Y37","v":10841},{"$f":"Z37","v":396},{"$f":"AA37","v":3897},{"$f":"AB37","v":178}]
[null,"Under 5 years",{"$f":"C39+C53","v":454},{"$f":"SQRT(((D39))^2+((D53))^2)","v":186.6815470259447},{"$f":"E39+E53","v":1645},{"$f":"SQRT(((F39))^2+((F53))^2)","v":303.77129554979354},{"$f":"G39+G53","v":218},{"$f":"SQRT(((H39))^2+((H53))^2)","v":83.408632646747066},{"$f":"I39+I53","v":479},{"$f":"SQRT(((J39))^2+((J53))^2)","v":198.79889335708083},{"$f":"K39+K53","v":205},{"$f":"SQRT(((L39))^2+((L53))^2)","v":108.85311203635843},{"$f":"M39+M53","v":127},{"$f":"SQRT(((N39))^2+((N53))^2)","v":58.249463516842795},{"$f":"O39+O53","v":72},{"$f":"SQRT(((P39))^2+((P53))^2)","v":41.677331968349414},{"$f":"Q39+Q53","v":124},{"$f":"SQRT(((R39))^2+((R53))^2)","v":72.124891681027847},{"$f":"S39+S53","v":184},{"$f":"SQRT(((T39))^2+((T53))^2)","v":128.16005617976296},{"$f":"U39+U53","v":1217},{"$f":"SQRT(((V39))^2+((V53))^2)","v":249.07027120874943},{"$f":"W39+W53","v":126},{"$f":"SQRT(((X39))^2+((X53))^2)","v":71.693793315739683},{"$f":"Y39+Y53","v":446},{"$f":"SQRT(((Z39))^2+((Z53))^2)","v":168.77203559831824},{"$f":"AA39+AA53","v":176},{"$f":"SQRT(((AB39))^2+((AB53))^2)","v":65}]
[null,"5 to 17 years",{"$f":"((C40)+(C41)+(C42)+(C43)+(C44)+(C54)+(C55)+(C56)+(C57)+(C58))","v":1488},{"$f":"SQRT((D40^2)+(D41^2)+(D42^2)+(D43^2)+(D44^2)+(D54^2)+(D55^2)+(D56^2)+(D57^2)+(D58^2))","v":302.49793387724156},{"$f":"((E40)+(E41)+(E42)+(E43)+(E44)+(E54)+(E55)+(E56)+(E57)+(E58))","v":3478},{"$f":"SQRT((F40^2)+(F41^2)+(F42^2)+(F43^2)+(F44^2)+(F54^2)+(F55^2)+(F56^2)+(F57^2)+(F58^2))","v":460.75590066758775},{"$f":"((G40)+(G41)+(G42)+(G43)+(G44)+(G54)+(G55)+(G56)+(G57)+(G58))","v":1121},{"$f":"SQRT((H40^2)+(H41^2)+(H42^2)+(H43^2)+(H44^2)+(H54^2)+(H55^2)+(H56^2)+(H57^2)+(H58^2))","v":251.73795899704916},{"$f":"((I40)+(I41)+(I42)+(I43)+(I44)+(I54)+(I55)+(I56)+(I57)+(I58))","v":673},{"$f":"SQRT((J40^2)+(J41^2)+(J42^2)+(J43^2)+(J44^2)+(J54^2)+(J55^2)+(J56^2)+(J57^2)+(J58^2))","v":234.47601156621545},{"$f":"((K40)+(K41)+(K42)+(K43)+(K44)+(K54)+(K55)+(K56)+(K57)+(K58))","v":820},{"$f":"SQRT((L40^2)+(L41^2)+(L42^2)+(L43^2)+(L44^2)+(L54^2)+(L55^2)+(L56^2)+(L57^2)+(L58^2))","v":243.80935174845118},{"$f":"((M40)+(M41)+(M42)+(M43)+(M44)+(M54)+(M55)+(M56)+(M57)+(M58))","v":442},{"$f":"SQRT((N40^2)+(N41^2)+(N42^2)+(N43^2)+(N44^2)+(N54^2)+(N55^2)+(N56^2)+(N57^2)+(N58^2))","v":122.54794979925205},{"$f":"((O40)+(O41)+(O42)+(O43)+(O44)+(O54)+(O55)+(O56)+(O57)+(O58))","v":203},{"$f":"SQRT((P40^2)+(P41^2)+(P42^2)+(P43^2)+(P44^2)+(P54^2)+(P55^2)+(P56^2)+(P57^2)+(P58^2))","v":70.405965656327737},{"$f":"((Q40)+(Q41)+(Q42)+(Q43)+(Q44)+(Q54)+(Q55)+(Q56)+(Q57)+(Q58))","v":738},{"$f":"SQRT((R40^2)+(R41^2)+(R42^2)+(R43^2)+(R44^2)+(R54^2)+(R55^2)+(R56^2)+(R57^2)+(R58^2))","v":193.70338148829515},{"$f":"((S40)+(S41)+(S42)+(S43)+(S44)+(S54)+(S55)+(S56)+(S57)+(S58))","v":270},{"$f":"SQRT((T40^2)+(T41^2)+(T42^2)+(T43^2)+(T44^2)+(T54^2)+(T55^2)+(T56^2)+(T57^2)+(T58^2))","v":81.865743751583906},{"$f":"((U40)+(U41)+(U42)+(U43)+(U44)+(U54)+(U55)+(U56)+(U57)+(U58))","v":4095},{"$f":"SQRT((V40^2)+(V41^2)+(V42^2)+(V43^2)+(V44^2)+(V54^2)+(V55^2)+(V56^2)+(V57^2)+(V58^2))","v":499.30852185797909},{"$f":"((W40)+(W41)+(W42)+(W43)+(W44)+(W54)+(W55)+(W56)+(W57)+(W58))","v":238},{"$f":"SQRT((X40^2)+(X41^2)+(X42^2)+(X43^2)+(X44^2)+(X54^2)+(X55^2)+(X56^2)+(X57^2)+(X58^2))","v":72.159545453113822},{"$f":"((Y40)+(Y41)+(Y42)+(Y43)+(Y44)+(Y54)+(Y55)+(Y56)+(Y57)+(Y58))","v":1389},{"$f":"SQRT((Z40^2)+(Z41^2)+(Z42^2)+(Z43^2)+(Z44^2)+(Z54^2)+(Z55^2)+(Z56^2)+(Z57^2)+(Z58^2))","v":336.60808071108454},{"$f":"((AA40)+(AA41)+(AA42)+(AA43)+(AA44)+(AA54)+(AA55)+(AA56)+(AA57)+(AA58))","v":592},{"$f":"SQRT((AB40^2)+(AB41^2)+(AB42^2)+(AB43^2)+(AB44^2)+(AB54^2)+(AB55^2)+(AB56^2)+(AB57^2)+(AB58^2))","v":147.08500943332058}]
[null,"18 to 64 years",{"$f":"((C45)+(C46)+(C47)+(C48)+(C49)+(C59)+(C60)+(C61)+(C62)+(C63))","v":5611},{"$f":"SQRT((D45^2)+(D46^2)+(D47^2)+(D48^2)+(D49^2)+(D59^2)+(D60^2)+(D61^2)+(D62^2)+(D63^2))","v":540.15645881540661},{"$f":"((E45)+(E46)+(E47)+(E48)+(E49)+(E59)+(E60)+(E61)+(E62)+(E63))","v":19486},{"$f":"SQRT((F45^2)+(F46^2)+(F47^2)+(F48^2)+(F49^2)+(F59^2)+(F60^2)+(F61^2)+(F62^2)+(F63^2))","v":1024.4315496898755},{"$f":"((G45)+(G46)+(G47)+(G48)+(G49)+(G59)+(G60)+(G61)+(G62)+(G63))","v":3549},{"$f":"SQRT((H45^2)+(H46^2)+(H47^2)+(H48^2)+(H49^2)+(H59^2)+(H60^2)+(H61^2)+(H62^2)+(H63^2))","v":418.20210425104273},{"$f":"((I45)+(I46)+(I47)+(I48)+(I49)+(I59)+(I60)+(I61)+(I62)+(I63))","v":3951},{"$f":"SQRT((J45^2)+(J46^2)+(J47^2)+(J48^2)+(J49^2)+(J59^2)+(J60^2)+(J61^2)+(J62^2)+(J63^2))","v":547.33901742886917},{"$f":"((K45)+(K46)+(K47)+(K48)+(K49)+(K59)+(K60)+(K61)+(K62)+(K63))","v":2408},{"$f":"SQRT((L45^2)+(L46^2)+(L47^2)+(L48^2)+(L49^2)+(L59^2)+(L60^2)+(L61^2)+(L62^2)+(L63^2))","v":338.67240808781577},{"$f":"((M45)+(M46)+(M47)+(M48)+(M49)+(M59)+(M60)+(M61)+(M62)+(M63))","v":1349},{"$f":"SQRT((N45^2)+(N46^2)+(N47^2)+(N48^2)+(N49^2)+(N59^2)+(N60^2)+(N61^2)+(N62^2)+(N63^2))","v":196.30333670113711},{"$f":"((O45)+(O46)+(O47)+(O48)+(O49)+(O59)+(O60)+(O61)+(O62)+(O63))","v":885},{"$f":"SQRT((P45^2)+(P46^2)+(P47^2)+(P48^2)+(P49^2)+(P59^2)+(P60^2)+(P61^2)+(P62^2)+(P63^2))","v":120.72696467649637},{"$f":"((Q45)+(Q46)+(Q47)+(Q48)+(Q49)+(Q59)+(Q60)+(Q61)+(Q62)+(Q63))","v":2701},{"$f":"SQRT((R45^2)+(R46^2)+(R47^2)+(R48^2)+(R49^2)+(R59^2)+(R60^2)+(R61^2)+(R62^2)+(R63^2))","v":327.60036630016151},{"$f":"((S45)+(S46)+(S47)+(S48)+(S49)+(S59)+(S60)+(S61)+(S62)+(S63))","v":1567},{"$f":"SQRT((T45^2)+(T46^2)+(T47^2)+(T48^2)+(T49^2)+(T59^2)+(T60^2)+(T61^2)+(T62^2)+(T63^2))","v":222.03152929257593},{"$f":"((U45)+(U46)+(U47)+(U48)+(U49)+(U59)+(U60)+(U61)+(U62)+(U63))","v":18300},{"$f":"SQRT((V45^2)+(V46^2)+(V47^2)+(V48^2)+(V49^2)+(V59^2)+(V60^2)+(V61^2)+(V62^2)+(V63^2))","v":917.85401889407228},{"$f":"((W45)+(W46)+(W47)+(W48)+(W49)+(W59)+(W60)+(W61)+(W62)+(W63))","v":1619},{"$f":"SQRT((X45^2)+(X46^2)+(X47^2)+(X48^2)+(X49^2)+(X59^2)+(X60^2)+(X61^2)+(X62^2)+(X63^2))","v":233.53800547234277},{"$f":"((Y45)+(Y46)+(Y47)+(Y48)+(Y49)+(Y59)+(Y60)+(Y61)+(Y62)+(Y63))","v":7414},{"$f":"SQRT((Z45^2)+(Z46^2)+(Z47^2)+(Z48^2)+(Z49^2)+(Z59^2)+(Z60^2)+(Z61^2)+(Z62^2)+(Z63^2))","v":751.29155459115873},{"$f":"((AA45)+(AA46)+(AA47)+(AA48)+(AA49)+(AA59)+(AA60)+(AA61)+(AA62)+(AA63))","v":2451},{"$f":"SQRT((AB45^2)+(AB46^2)+(AB47^2)+(AB48^2)+(AB49^2)+(AB59^2)+(AB60^2)+(AB61^2)+(AB62^2)+(AB63^2))","v":270.45517188621113}]
[null,"65 to 74 years",{"$f":"((C50)+(C64))","v":684},{"$f":"SQRT((D50^2)+(D64^2))","v":166.29191201017565},{"$f":"((E50)+(E64))","v":2764},{"$f":"SQRT((F50^2)+(F64^2))","v":329.49203328760467},{"$f":"((G50)+(G64))","v":738},{"$f":"SQRT((H50^2)+(H64^2))","v":133.22161986704711},{"$f":"((I50)+(I64))","v":383},{"$f":"SQRT((J50^2)+(J64^2))","v":131.36590120727678},{"$f":"((K50)+(K64))","v":722},{"$f":"SQRT((L50^2)+(L64^2))","v":196.91876497682998},{"$f":"((M50)+(M64))","v":115},{"$f":"SQRT((N50^2)+(N64^2))","v":32.557641192199412},{"$f":"((O50)+(O64))","v":124},{"$f":"SQRT((P50^2)+(P64^2))","v":34.655446902326915},{"$f":"((Q50)+(Q64))","v":422},{"$f":"SQRT((R50^2)+(R64^2))","v":102.7277956543408},{"$f":"((S50)+(S64))","v":364},{"$f":"SQRT((T50^2)+(T64^2))","v":76.05918747922567},{"$f":"((U50)+(U64))","v":3148},{"$f":"SQRT((V50^2)+(V64^2))","v":392.31110104099781},{"$f":"((W50)+(W64))","v":203},{"$f":"SQRT((X50^2)+(X64^2))","v":61.522353661088097},{"$f":"((Y50)+(Y64))","v":1055},{"$f":"SQRT((Z50^2)+(Z64^2))","v":308.13795611706132},{"$f":"((AA50)+(AA64))","v":402},{"$f":"SQRT((AB50^2)+(AB64^2))","v":79.404030124421269}]
[null,"75 years and over",{"$f":"((C51)+(C65))","v":569},{"$f":"SQRT((D51^2)+(D65^2))","v":161.01242188104618},{"$f":"((E51)+(E65))","v":2018},{"$f":"SQRT((F51^2)+(F65^2))","v":297.96811910001378},{"$f":"((G51)+(G65))","v":570},{"$f":"SQRT((H51^2)+(H65^2))","v":129.76902558006668},{"$f":"((I51)+(I65))","v":351},{"$f":"SQRT((J51^2)+(J65^2))","v":121.60592090848209},{"$f":"((K51)+(K65))","v":277},{"$f":"SQRT((L51^2)+(L65^2))","v":137.2953021774598},{"$f":"((M51)+(M65))","v":86},{"$f":"SQRT((N51^2)+(N65^2))","v":41.340053217188775},{"$f":"((O51)+(O65))","v":113},{"$f":"SQRT((P51^2)+(P65^2))","v":35.468295701936398},{"$f":"((Q51)+(Q65))","v":189},{"$f":"SQRT((R51^2)+(R65^2))","v":86.023252670426274},{"$f":"((S51)+(S65))","v":86},{"$f":"SQRT((T51^2)+(T65^2))","v":39.597979746446661},{"$f":"((U51)+(U65))","v":2010},{"$f":"SQRT((V51^2)+(V65^2))","v":311.80121872757331},{"$f":"((W51)+(W65))","v":209},{"$f":"SQRT((X51^2)+(X65^2))","v":89.961102705558247},{"$f":"((Y51)+(Y65))","v":537},{"$f":"SQRT((Z51^2)+(Z65^2))","v":165.48715962273326},{"$f":"((AA51)+(AA65))","v":276},{"$f":"SQRT((AB51^2)+(AB65^2))","v":82.29823813423954}]
[]
[]
[]
[]
[]
[]
[]
[]
[]
[]
[]
[]
[]
[]
[]
[]
[]
[]
[]
[]
[]
[]
[]
[]
[]
[]
[]
[]
[]
[]
[]
[]
[]
[]
[]
[]
[]
[]
[]
[]
[]
[]
[null,"Calculated Table B17001. POVERTY STATUS IN THE PAST 12 MONTHS BY SEX BY AGE"]
[null,"Universe:  POPULATION FOR WHOM POVERTY STATUS IS DETERMINED"]
[null,"Data Set: 2013-2017 American Community Survey 5-Year Estimates"]
[]
[null,null,"Barrington",null,"Dover",null,"Durham",null,"Farmington",null,"Lee",null,"Madbury",null,"Middleton",null,"Milton",null,"New Durham",null,"Rochester",null,"Rollinsford",null,"Somersworth",null,"Strafford"]
[null,null,"Estimate","Margin Of Error","Estimate","Margin Of Error","Estimate","Margin Of Error","Estimate","Margin Of Error","Estimate","Margin Of Error","Estimate","Margin Of Error","Estimate","Margin Of Error","Estimate","Margin Of Error","Estimate","Margin Of Error","Estimate","Margin Of Error","Estimate","Margin Of Error","Estimate","Margin Of Error","Estimate","Margin Of Error"]
[null,"Total:",8841,20,29964,263,8466,443,6771,64,4289,117,1906,157,1682,152,4583,33,2663,22,29971,82,2529,20,11783,33,4057,15]
[null,"Income in the past 12 months below poverty level:",429,222,3223,573,2046,350,546,316,8,7,33,23,140,88,181,80,99,69,3249,667,115,62,943,383,115,69]
[null,"Under 5 years",0,65.969690009882569,341,130.24976007655445,12,20.591260281974002,0,37.576588456111871,0,11.704699910719626,0,11.704699910719626,6,6.4031242374328485,0,15.556349186104045,0,14.866068747318506,386,182.33211456021672,0,24.596747752497688,108,43.840620433565945,0,19.416487838947599]
[null,"5 to 17 years",8,47.254629402842639,365,139.19410907075056,5,51.565492337414952,122,80.386566041845569,0,33.166247903554002,6,30.133038346638727,65,49.658836071740545,18,35.763109484495331,34,40.4103947023535,554,188.33746308156537,11,33.511192160232078,183,126.51086909827156,6,32.295510523910288]
[null,"18 to 64 years",408,208.42984431218096,2184,386.21237680840835,1972,389.07325788339654,394,225.63466045800675,8,30.463092423455635,25,27.331300737432898,65,32.403703492039298,144,64.567793829431707,60,46.551047249229526,1927,381.67918465643368,100,49.769468552517218,539,210.01904675528837,96,62.896740774065549]
[null,"65 to 74 years",13,25.612496949731394,175,91.586025134842487,48,52.611785751863621,14,28.0178514522438,0,15.556349186104045,0,15.556349186104045,2,11.704699910719626,0,15.556349186104045,5,13.038404810405298,143,77.103826104804938,4,13.038404810405298,60,47.381430961928537,13,22.825424421026653]
[null,"75 years and over",0,22.627416997969522,158,75.927597090912869,9,24.083189157584592,16,30.528675044947494,0,15.556349186104045,2,11.704699910719626,2,11.704699910719626,19,21.2602916254693,0,15.556349186104045,239,113.22543883774529,0,15.556349186104045,53,51.264022471905186,0,15.556349186104045]
[null," Income in the past 12 months at or above poverty level ",8412,220,26741,617,6420,420,6225,331,4281,116,1873,158,1542,168,4402,85,2564,72,26722,667,2414,64,10840,380,3942,71]
[null,"Under 5 years",551,210.87674124947966,1195,231.79516819813134,325,102.94173109094289,394,158.35403373454054,155,119.6202324023825,115,43.600458713183279,72,30.610455730027933,254,98.488578017961046,135,52.497618993626752,1095,250,105,42.426406871192853,745,208.69355524308841,196,88.509886453435243]
[null,"5 to 17 years",1360,343.93604056568427,3883,459.12416621214788,997,192.61100695443133,867,226.79285703037473,745,222.79811489328179,470,83.252627586160912,228,58.343808583259289,682,146.20533505997653,408,84.77027781009096,3892,408.465420813072,412,91.646058289486731,1671,290.78686352722332,713,161.42180769648195]
[null,"18 to 64 years",5505,600.44899866683102,17792,779.34074704201112,3806,331.94125986385001,4059,463.36486703244992,2866,373.4889556600034,1076,116.15506876585283,1046,109.81803130633877,2783,262.68612449080746,1573,157.55633912984905,17029,808.42501198317711,1506,153.04247776352813,7055,569.38739009570634,2504,232.60481508343716]
[null,"65 to 74 years",602,194.12624758130983,2132,240.8318915758459,776,107.81465577554843,566,146.65946952038249,352,109.34349546269316,132,38.897300677553446,164,38.948684188300895,411,99.824846606443629,327,71.589105316381762,2893,260.35360569809666,236,46.010868281309364,785,146.37281168304446,342,83.006023877788536]
[null,"75 years and over",394,168.5852899869974,1739,217.42354978244651,516,110.30865786510141,339,149.49581933953871,163,113.86395390991831,80,31.827660925679098,32,14.212670403551895,272,86.05230967266364,121,42.201895692018383,1813,222.15760171553887,155,48.414873747640819,584,144.58561477546789,187,72.917761896536561]
[]
[]
[]
[]
[]
[]
[]
[]
[]
[]
[]
[]
[]
[]
[]
[]
[]
[]
[]
[]
[]
[]
[]
[]
[]
[]
[]
[]
[]
[]
[]
[]
[]
[]
[]
[]
[]
[]
[]
[]
[]
[]
[null,"Calculated Table B17001. POVERTY STATUS IN THE PAST 12 MONTHS BY SEX BY AGE"]
[null,"Universe:  POPULATION FOR WHOM POVERTY STATUS IS DETERMINED"]
[null,"Data Set: 2008-2012 American Community Survey 5-Year Estimates"]
[]
[null,null,"Barrington",null,"Dover",null,"Durham",null,"Farmington",null,"Lee",null,"Madbury",null,"Middleton",null,"Milton",null,"New Durham",null,"Rochester",null,"Rollinsford",null,"Somersworth",null,"Strafford"]
[null,null,"Estimate","Margin Of Error","Estimate","Margin Of Error","Estimate","Margin Of Error","Estimate","Margin Of Error","Estimate","Margin Of Error","Estimate","Margin Of Error","Estimate","Margin Of Error","Estimate","Margin Of Error","Estimate","Margin Of Error","Estimate","Margin Of Error","Estimate","Margin Of Error","Estimate","Margin Of Error","Estimate","Margin Of Error"]
[null,"Total:",8579,29,29071,322,8461,734,6737,58,4333,21,2014,163,1532,166,4545,52,2627,18,29481,121,2532,22,11726,62,3963,34]
[null,"Income in the past 12 months below poverty level:",528,258,2994,633,1701,415,809,303,232,126,168,102,126,67,490,212,110,73,3620,565,213,115,1854,479,141,103]
[null,"Under 5 years",13,38.275318418009277,373,114.49017425089369,0,32.449961479175904,16,49.929950931279713,0,47.296934361541872,0,12.529964086141668,21,22.135943621178654,0,15.556349186104045,0,17.029386365926403,566,205.8275977608445,39,34.525353003264136,193,135.67977004697494,0,18.601075237738275]
[null,"5 to 17 years",150,110.21342930877344,335,138.78760751594501,77,78.48566748139433,169,109.64032105024137,23,37.920970451717082,4,32.062439083762797,17,35.142566781611158,177,107.77290939749192,48,36.262928728937489,657,191.34785078489907,27,31.464265445104548,375,151.45296299511608,34,41.41255848169731]
[null,"18 to 64 years",343,147.5533801713807,2052,450.78819860329088,1610,326.63741365618239,568,200.11246837716035,84,66.347569661593482,160,82.29823813423954,81,32.062439083762797,308,128.94184735763639,51,33.585711247493329,2079,338.05916641913439,147,64.085879880048466,1168,290.75763102625524,96,65.31462317123173]
[null,"65 to 74 years",0,22.627416997969522,94,56.859475903318,1,18.248287590894659,14,28.0178514522438,66,88.294960218576463,0,15.556349186104045,7,7.810249675906654,5,13.601470508735444,6,14.866068747318506,162,97.082439194738001,0,15.556349186104045,80,52.392747589718944,9,18.601075237738275]
[null,"75 years and over",22,34,140,65.76473218982953,13,16.970562748477139,42,60.166435825965294,59,65.069193939989759,4,12.529964086141668,0,15.556349186104045,0,15.556349186104045,5,13.601470508735444,156,68.8839603971781,0,15.556349186104045,38,36.055512754639892,2,11.401754250991379]
[null," Income in the past 12 months at or above poverty level ",8051,264,26077,730,6760,733,5928,307,4101,128,1846,182,1406,163,4055,216,2517,77,25861,552,2319,117,9872,475,3822,103]
[null,"Under 5 years",702,179.40178371465541,1616,235.77319610167734,368,106.01886624558857,145,80.808415403347695,122,67.94115100585212,110,62.769419305900861,81,33.837848631377263,200,81.841309862440497,113,51.86520991955976,856,210.4305110957059,206,85,699,193.33132182861627,225,111.30588483993108]
[null,"5 to 17 years",1420,252.06745129032427,3675,386.56564772364345,1039,170.92981015609888,1139,282.86922773606886,903,200.70874420413278,382,81.28345465099278,235,51.410115736107812,748,166.50825805346713,445,100.9554357129917,3516,410.28526661336502,357,80.137382038596698,1477,277.87407219818118,728,162.58843747327177]
[null,"18 to 64 years",5323,442.13346401284758,17665,744.09206419636007,4501,413.86833655161394,3806,417.48652672870776,2518,289.61008269740887,1207,148.64723340849636,950,103.16006979447037,2506,268.35796988351211,1644,159.26707129849535,17332,738.13752106230174,1431,154.43121446132579,6519,517.38380338004401,2372,230.71410880134746]
[null,"65 to 74 years",397,114.05700329221349,1555,185.80096878111266,378,85.0411665018772,438,150.72159765607583,396,105.11898020814318,100,32.802438933713454,88,27.202941017470888,270,80.808415403347695,163,49.578221024962161,2484,241.99380157351138,176,43.278170016764804,548,156.97452022541748,374,104.6900186264192]
[null,"75 years and over",209,87.965902484996988,1566,201.01989951246119,474,105.38026380684383,400,161.92899678562824,162,66.610809933523555,47,20.518284528683193,52,19.849433241279208,331,104.04326023342406,152,42.638011210655684,1673,187.4459922217597,149,45.453272709454048,629,166.82026255823962,123,60.827625302982199]

{"sheet":"ACS_Table_B17010","index":47,"n_rows":165,"n_cols":28,"rows_kept":165,"cut":false,"hidden":true,"merged":[]}
[null,"B17010. POVERTY STATUS IN THE PAST 12 MONTHS OF FAMILIES BY FAMILY TYPE BY PRESENCE OF RELATED CHILDREN UNDER 18 YEARS"]
[null,"Universe: FAMILIES"]
[null,"Data Set: 2018-2022 American Community Survey 5-Year Estimates"]
[]
[null,null,"Barrington",null,"Dover",null,"Durham",null,"Farmington",null,"Lee",null,"Madbury",null,"Middleton",null,"Milton",null,"New Durham",null,"Rochester",null,"Rollinsford",null,"Somersworth",null,"Strafford"]
[null,null,"Estimate","Margin Of Error","Estimate","Margin Of Error","Estimate","Margin Of Error","Estimate","Margin Of Error","Estimate","Margin Of Error","Estimate","Margin Of Error","Estimate","Margin Of Error","Estimate","Margin Of Error","Estimate","Margin Of Error","Estimate","Margin Of Error","Estimate","Margin Of Error","Estimate","Margin Of Error","Estimate","Margin Of Error"]
[null,"Total:",2585,210,8060,470,1594,194,1960,213,1316,136,572,77,403,80,1153,126,731,75,8270,414,685,78,3046,281,1248,82]
[null,"Income in the past 12 months below poverty level:",179,142,294,165,16,26,136,120,0,12,9,9,22,17,36,28,20,15,476,168,46,39,221,130,61,46]
[null,"Married-couple family:",16,26,154,144,16,26,22,43,0,12,4,6,11,16,28,26,8,8,188,105,16,23,117,100,47,42]
[null,"With related children under 18 years:",16,26,102,132,16,26,22,43,0,12,3,4,0,12,0,12,4,6,114,82,0,12,29,35,5,9]
[null,"Under 5 years only",0,17,0,25,0,19,0,17,0,12,0,12,0,12,0,12,0,12,34,44,0,12,0,19,5,9]
[null,"Under 5 years and 5 to 17 years",0,17,0,25,0,19,0,17,0,12,0,12,0,12,0,12,0,12,0,25,0,12,15,25,0,12]
[null,"5 to 17 years only",16,26,102,132,16,26,22,43,0,12,3,4,0,12,0,12,4,6,80,79,0,12,14,28,0,12]
[null,"No related children under 18 years",0,17,52,57,0,19,0,17,0,12,1,2,11,16,28,26,4,6,74,58,16,23,88,96,42,41]
[null,"Other family:",163,138,140,81,0,19,114,114,0,12,5,7,11,12,8,13,12,12,288,133,30,33,104,97,14,19]
[null,"Male householder, no wife present:",102,116,33,38,0,19,75,106,0,12,0,12,0,12,0,12,0,12,94,60,0,12,41,67,12,19]
[null,"With related children under 18 years:",102,116,33,38,0,19,75,106,0,12,0,12,0,12,0,12,0,12,65,54,0,12,41,67,0,12]
[null,"Under 5 years only",0,17,18,29,0,19,0,17,0,12,0,12,0,12,0,12,0,12,28,43,0,12,0,19,0,12]
[null,"Under 5 years and 5 to 17 years",0,17,0,25,0,19,0,17,0,12,0,12,0,12,0,12,0,12,9,16,0,12,0,19,0,12]
[null,"5 to 17 years only",102,116,15,25,0,19,75,106,0,12,0,12,0,12,0,12,0,12,28,32,0,12,41,67,0,12]
[null,"No related children under 18 years",0,17,0,25,0,19,0,17,0,12,0,12,0,12,0,12,0,12,29,33,0,12,0,19,12,19]
[null,"Female householder, no husband present:",61,62,107,72,0,19,39,46,0,12,5,7,11,12,8,13,12,12,194,116,30,33,63,73,2,4]
[null,"With related children under 18 years:",61,62,107,72,0,19,39,46,0,12,3,5,11,12,8,13,12,12,132,92,13,19,13,24,2,4]
[null,"Under 5 years only",50,60,23,28,0,19,0,17,0,12,0,12,0,12,0,12,0,12,0,25,0,12,0,19,0,12]
[null,"Under 5 years and 5 to 17 years",0,17,14,21,0,19,0,17,0,12,0,12,0,12,0,12,0,12,13,21,13,19,0,19,0,12]
[null,"5 to 17 years only",11,18,70,65,0,19,39,46,0,12,3,5,11,12,8,13,12,12,119,93,0,12,13,24,2,4]
[null,"No related children under 18 years",0,17,0,25,0,19,0,17,0,12,2,4,0,12,0,12,0,12,62,74,17,27,50,68,0,12]
[null,"Income in the past 12 months at or above poverty level:",2406,215,7766,445,1578,195,1824,231,1316,136,563,76,381,75,1117,124,711,74,7794,427,639,79,2825,299,1187,96]
[null,"Married-couple family:",1992,231,6393,436,1370,190,1488,265,1225,167,469,83,335,69,934,133,624,91,6071,407,499,80,2141,340,1089,113]
[null,"With related children under 18 years:",859,199,2484,360,616,108,537,188,509,124,243,83,152,59,367,98,226,66,1996,280,158,46,991,293,289,64]
[null,"Under 5 years only",169,133,945,360,126,62,179,130,81,84,40,30,36,26,22,31,73,67,391,147,57,33,219,169,16,20]
[null,"Under 5 years and 5 to 17 years",154,99,348,130,54,34,30,49,68,47,48,34,19,21,71,53,11,10,427,161,14,11,55,60,100,43]
[null,"5 to 17 years only",536,135,1191,211,436,103,328,164,360,125,155,76,97,51,274,101,142,47,1178,210,87,37,717,278,173,64]
[null,"No related children under 18 years",1133,209,3909,384,754,134,951,272,716,162,226,59,183,45,567,129,398,91,4075,404,341,79,1150,222,800,131]
[null,"Other family:",414,178,1373,337,208,118,336,162,91,74,94,49,46,21,183,108,87,60,1723,292,140,67,684,201,98,65]
[null,"Male householder, no wife present:",161,99,504,201,71,51,217,125,0,12,28,20,21,17,89,60,55,57,545,154,91,58,181,101,40,42]
[null,"With related children under 18 years:",94,79,217,114,26,29,178,133,0,12,12,11,12,14,67,57,7,9,219,101,46,36,140,97,32,40]
[null,"Under 5 years only",14,18,28,47,0,19,107,110,0,12,4,6,3,4,7,12,0,12,53,49,20,26,83,76,0,12]
[null,"Under 5 years and 5 to 17 years",0,17,0,25,0,19,0,17,0,12,0,12,0,12,0,12,0,12,0,25,0,12,0,19,8,14]
[null,"5 to 17 years only",80,77,189,101,26,29,71,77,0,12,8,9,9,13,60,55,7,9,166,95,26,21,57,67,24,38]
[null,"No related children under 18 years",67,75,287,164,45,46,39,42,0,12,16,18,9,10,22,22,48,57,326,124,45,38,41,38,8,12]
[null,"Female householder, no husband present:",253,125,869,280,137,110,119,92,91,74,66,44,25,14,94,77,32,19,1178,270,49,31,503,168,58,44]
[null,"With related children under 18 years:",140,103,463,186,113,116,94,85,32,43,60,44,9,8,43,47,14,13,725,226,9,9,312,143,25,26]
[null,"Under 5 years only",0,17,57,51,4,6,46,68,0,12,29,36,3,4,0,12,0,12,163,138,4,5,79,111,0,12]
[null,"Under 5 years and 5 to 17 years",19,32,34,42,0,19,0,17,0,12,0,12,3,4,0,12,0,12,42,42,0,12,11,21,5,10]
[null,"5 to 17 years only",121,94,372,157,109,117,48,48,32,43,31,30,3,6,43,47,14,13,520,183,5,7,222,134,20,24]
[null,"No related children under 18 years",113,84,406,206,24,21,25,34,59,58,6,7,16,11,51,48,18,15,453,157,40,30,191,95,33,37]
[]
[]
[]
[]
[]
[]
[]
[]
[]
[]
[]
[]
[null,"B17010. POVERTY STATUS IN THE PAST 12 MONTHS OF FAMILIES BY FAMILY TYPE BY PRESENCE OF RELATED CHILDREN UNDER 18 YEARS"]
[null,"Universe: FAMILIES"]
[null,"Data Set: 2013-2017 American Community Survey 5-Year Estimates"]
[]
[null,null,"Barrington",null,"Dover",null,"Durham",null,"Farmington",null,"Lee",null,"Madbury",null,"Middleton",null,"Milton",null,"New Durham",null,"Rochester",null,"Rollinsford",null,"Somersworth",null,"Strafford"]
[null,null,"Estimate","Margin Of Error","Estimate","Margin Of Error","Estimate","Margin Of Error","Estimate","Margin Of Error","Estimate","Margin Of Error","Estimate","Margin Of Error","Estimate","Margin Of Error","Estimate","Margin Of Error","Estimate","Margin Of Error","Estimate","Margin Of Error","Estimate","Margin Of Error","Estimate","Margin Of Error","Estimate","Margin Of Error"]
[null,"Total:",2379,179,7487,362,1814,164,1784,167,1231,148,531,46,444,52,1377,94,782,58,7943,369,729,60,3623,228,1141,85]
[null,"Income in the past 12 months below poverty level:",73,76,545,183,51,28,53,50,0,11,4,6,24,18,19,20,9,10,693,197,10,12,206,136,10,15]
[null,"Married-couple family:",73,76,206,130,43,27,20,32,0,11,0,11,7,7,10,16,0,11,222,133,5,9,18,32,6,11]
[null,"With related children under 18 years:",0,16,77,51,12,13,20,32,0,11,0,11,4,5,0,11,0,11,147,122,5,9,18,32,0,11]
[null,"Under 5 years only",0,16,34,30,12,13,0,16,0,11,0,11,0,11,0,11,0,11,95,102,0,11,0,18,0,11]
[null,"Under 5 years and 5 to 17 years",0,16,17,33,0,18,0,16,0,11,0,11,0,11,0,11,0,11,47,68,0,11,18,32,0,11]
[null,"5 to 17 years only",0,16,26,27,0,18,20,32,0,11,0,11,4,5,0,11,0,11,5,9,5,9,0,18,0,11]
[null,"No related children under 18 years",73,76,129,117,31,22,0,16,0,11,0,11,3,4,10,16,0,11,75,54,0,11,0,18,6,11]
[null,"Other family:",0,16,339,133,8,11,33,40,0,11,4,6,17,17,9,14,9,10,471,146,5,8,188,135,4,7]
[null,"Male householder, no wife present:",0,16,107,93,0,18,0,16,0,11,2,4,2,4,0,11,5,8,142,95,0,11,0,18,0,11]
[null,"With related children under 18 years:",0,16,90,87,0,18,0,16,0,11,0,11,2,4,0,11,5,8,142,95,0,11,0,18,0,11]
[null,"Under 5 years only",0,16,0,24,0,18,0,16,0,11,0,11,0,11,0,11,0,11,65,56,0,11,0,18,0,11]
[null,"Under 5 years and 5 to 17 years",0,16,0,24,0,18,0,16,0,11,0,11,0,11,0,11,0,11,0,24,0,11,0,18,0,11]
[null,"5 to 17 years only",0,16,90,87,0,18,0,16,0,11,0,11,2,4,0,11,5,8,77,73,0,11,0,18,0,11]
[null,"No related children under 18 years",0,16,17,25,0,18,0,16,0,11,2,4,0,11,0,11,0,11,0,24,0,11,0,18,0,11]
[null,"Female householder, no husband present:",0,16,232,95,8,11,33,40,0,11,2,4,15,17,9,14,4,6,329,115,5,8,188,135,4,7]
[null,"With related children under 18 years:",0,16,198,92,8,11,33,40,0,11,2,4,15,17,9,14,4,6,291,119,5,8,174,134,4,7]
[null,"Under 5 years only",0,16,47,59,0,18,0,16,0,11,0,11,0,11,0,11,0,11,18,27,0,11,16,26,0,11]
[null,"Under 5 years and 5 to 17 years",0,16,135,82,0,18,0,16,0,11,0,11,3,4,0,11,0,11,79,70,0,11,103,128,0,11]
[null,"5 to 17 years only",0,16,16,23,8,11,33,40,0,11,2,4,12,16,9,14,4,6,194,93,5,8,55,51,4,7]
[null,"No related children under 18 years",0,16,34,37,0,18,0,16,0,11,0,11,0,11,0,11,0,11,38,35,0,11,14,22,0,11]
[null,"Income in the past 12 months at or above poverty level:",2306,177,6942,369,1763,162,1731,177,1231,148,527,46,420,58,1358,96,773,61,7250,398,719,59,3417,248,1131,82]
[null,"Married-couple family:",2016,223,5483,314,1573,166,1497,198,1021,174,462,44,337,58,1087,114,690,62,5857,343,636,69,2592,249,977,102]
[null,"With related children under 18 years:",900,166,2163,199,547,90,594,155,417,113,262,49,125,34,329,87,214,48,1994,241,204,32,1013,169,395,58]
[null,"Under 5 years only",159,123,459,136,82,55,121,111,27,43,46,25,23,16,70,47,20,16,312,122,38,20,371,161,76,58]
[null,"Under 5 years and 5 to 17 years",167,104,338,128,146,52,166,105,96,70,30,21,23,17,59,40,61,32,279,96,25,15,119,81,33,29]
[null,"5 to 17 years only",574,184,1366,207,319,71,307,114,294,125,186,41,79,27,200,68,133,41,1403,219,141,30,523,130,286,59]
[null,"No related children under 18 years",1116,225,3320,274,1026,128,903,186,604,162,200,43,212,53,758,112,476,78,3863,354,432,75,1579,262,582,101]
[null,"Other family:",290,161,1459,315,190,76,234,133,210,124,65,27,83,29,271,94,83,34,1393,256,83,39,825,190,154,79]
[null,"Male householder, no wife present:",47,70,426,144,86,60,163,116,40,44,22,14,38,23,141,68,23,20,626,194,29,27,321,133,73,67]
[null,"With related children under 18 years:",40,65,256,118,69,60,69,81,20,31,13,13,25,19,78,55,19,19,464,180,29,27,188,101,51,57]
[null,"Under 5 years only",0,16,43,38,0,18,22,36,0,11,0,11,2,4,0,11,0,11,183,120,22,26,38,43,38,54]
[null,"Under 5 years and 5 to 17 years",0,16,0,24,0,18,0,16,0,11,0,11,0,11,14,22,6,9,0,24,7,10,0,18,6,10]
[null,"5 to 17 years only",40,65,213,114,69,60,47,70,20,31,13,13,23,19,64,49,13,15,281,119,0,11,150,96,7,11]
[null,"No related children under 18 years",7,18,170,103,17,18,94,90,20,31,9,8,13,14,63,45,4,7,162,94,0,11,133,102,22,28]
[null,"Female householder, no husband present:",243,139,1033,266,104,48,71,59,170,117,43,23,45,26,130,67,60,27,767,177,54,32,504,155,81,44]
[null,"With related children under 18 years:",115,103,552,196,58,39,53,53,125,111,30,21,29,24,75,63,53,25,381,144,38,28,320,140,38,44]
[null,"Under 5 years only",0,16,134,123,0,18,0,16,0,11,0,11,3,4,40,49,0,11,110,77,0,11,91,76,0,11]
[null,"Under 5 years and 5 to 17 years",56,66,64,87,14,21,23,37,0,11,0,11,11,18,0,11,0,11,8,14,0,11,30,34,0,11]
[null,"5 to 17 years only",59,74,354,132,44,30,30,37,125,111,30,21,15,17,35,38,53,25,263,126,38,28,199,110,38,44]
[null,"No related children under 18 years",128,101,481,143,46,29,18,30,45,32,13,11,16,12,55,27,7,11,386,148,16,14,184,86,43,28]
[]
[]
[]
[]
[]
[]
[]
[]
[]
[]
[]
[]
[null,"B17010. POVERTY STATUS IN THE PAST 12 MONTHS OF FAMILIES BY FAMILY TYPE BY PRESENCE OF RELATED CHILDREN UNDER 18 YEARS"]
[null,"Universe: FAMILIES"]
[null,"Data Set: 2008-2012 American Community Survey 5-Year Estimates"]
[]
[null,null,"Barrington",null,"Dover",null,"Durham",null,"Farmington",null,"Lee",null,"Madbury",null,"Middleton",null,"Milton",null,"New Durham",null,"Rochester",null,"Rollinsford",null,"Somersworth",null,"Strafford"]
[null,null,"Estimate","Margin Of Error","Estimate","Margin Of Error","Estimate","Margin Of Error","Estimate","Margin Of Error","Estimate","Margin Of Error","Estimate","Margin Of Error","Estimate","Margin Of Error","Estimate","Margin Of Error","Estimate","Margin Of Error","Estimate","Margin Of Error","Estimate","Margin Of Error","Estimate","Margin Of Error","Estimate","Margin Of Error"]
[null,"Total:",2408,162,7116,333,1944,198,1793,139,1116,101,497,56,442,58,1271,92,716,51,7866,306,713,67,3035,208,1197,67]
[null,"Income in the past 12 months below poverty level:",105,71,458,166,67,69,159,96,12,18,7,10,38,23,80,55,25,19,835,193,55,39,423,158,45,36]
[null,"Married-couple family:",0,16,55,46,43,50,139,93,0,11,0,11,16,11,34,42,11,11,191,93,13,10,188,130,20,22]
[null,"With related children under 18 years:",0,16,7,13,32,45,104,87,0,11,0,11,4,6,34,42,0,11,41,31,9,10,134,121,11,17]
[null,"Under 5 years only",0,16,0,24,0,18,0,16,0,11,0,11,4,6,0,11,0,11,23,26,5,7,17,27,0,11]
[null,"Under 5 years and 5 to 17 years",0,16,0,24,0,18,0,16,0,11,0,11,0,11,0,11,0,11,0,21,0,11,0,18,0,11]
[null,"5 to 17 years only",0,16,7,13,32,45,104,87,0,11,0,11,0,11,34,42,0,11,18,18,4,8,117,115,11,17]
[null,"No related children under 18 years",0,16,48,43,11,18,35,34,0,11,0,11,12,9,0,11,11,11,150,85,4,6,54,66,9,15]
[null,"Other family:",105,71,403,167,24,38,20,33,12,18,7,10,22,20,46,45,14,15,644,172,42,39,235,136,25,34]
[null,"Male householder, no wife present:",0,16,65,80,0,18,0,16,12,18,2,4,3,5,0,11,4,7,88,87,0,11,43,47,25,34]
[null,"With related children under 18 years:",0,16,65,80,0,18,0,16,12,18,0,11,0,11,0,11,4,7,88,87,0,11,43,47,0,11]
[null,"Under 5 years only",0,16,47,75,0,18,0,16,0,11,0,11,0,11,0,11,0,11,24,34,0,11,28,33,0,11]
[null,"Under 5 years and 5 to 17 years",0,16,0,24,0,18,0,16,0,11,0,11,0,11,0,11,0,11,0,21,0,11,0,18,0,11]
[null,"5 to 17 years only",0,16,18,27,0,18,0,16,12,18,0,11,0,11,0,11,4,7,64,80,0,11,15,25,0,11]
[null,"No related children under 18 years",0,16,0,24,0,18,0,16,0,11,2,4,3,5,0,11,0,11,0,21,0,11,0,18,25,34]
[null,"Female householder, no husband present:",105,71,338,144,24,38,20,33,0,11,5,8,19,20,46,45,10,13,556,184,42,39,192,132,0,11]
[null,"With related children under 18 years:",86,74,324,141,24,38,20,33,0,11,5,8,19,20,36,41,10,13,535,190,42,39,180,131,0,11]
[null,"Under 5 years only",0,16,167,111,0,18,20,33,0,11,0,11,0,11,0,11,0,11,258,160,27,31,63,72,0,11]
[null,"Under 5 years and 5 to 17 years",12,19,102,95,0,18,0,16,0,11,0,11,16,19,0,11,0,11,77,62,0,11,61,64,0,11]
[null,"5 to 17 years only",74,73,55,39,24,38,0,16,0,11,5,8,3,4,36,41,10,13,200,118,15,21,56,46,0,11]
[null,"No related children under 18 years",19,31,14,21,0,18,0,16,0,11,0,11,0,11,10,17,0,11,21,24,0,11,12,19,0,11]
[null,"Income in the past 12 months at or above poverty level:",2303,169,6658,343,1877,209,1634,151,1104,101,490,58,404,57,1191,91,691,54,7031,316,658,75,2612,222,1152,77]
[null,"Married-couple family:",2086,205,5195,316,1699,192,1201,174,964,117,454,51,342,57,901,115,647,60,5487,344,542,71,2164,225,1028,119]
[null,"With related children under 18 years:",1003,166,2194,251,778,148,412,109,476,92,242,42,163,43,340,84,280,45,1800,214,290,56,1195,177,427,78]
[null,"Under 5 years only",228,127,475,131,173,79,70,54,56,52,16,11,45,29,18,14,45,27,293,106,72,38,385,163,74,56]
[null,"Under 5 years and 5 to 17 years",187,90,436,109,108,61,15,24,41,39,64,45,16,12,82,50,40,28,258,116,61,54,216,123,74,46]
[null,"5 to 17 years only",588,156,1283,219,497,120,327,105,379,96,162,39,102,30,240,88,195,53,1249,206,157,46,594,147,279,93]
[null,"No related children under 18 years",1083,208,3001,279,921,147,789,183,488,125,212,45,179,39,561,106,367,62,3687,322,252,54,969,165,601,125]
[null,"Other family:",217,98,1463,204,178,69,433,147,140,74,36,27,62,28,290,93,44,27,1544,292,116,39,448,138,124,78]
[null,"Male householder, no wife present:",83,59,464,137,38,39,173,102,19,28,4,6,39,22,203,87,23,23,495,160,16,16,118,85,52,57]
[null,"With related children under 18 years:",47,44,321,124,28,36,44,42,19,28,4,6,31,22,121,68,6,9,371,141,16,16,103,81,52,57]
[null,"Under 5 years only",35,40,114,96,0,18,0,16,0,11,0,11,9,15,36,33,0,11,40,48,0,11,0,18,0,11]
[null,"Under 5 years and 5 to 17 years",0,16,24,29,0,18,18,28,0,11,0,11,0,11,0,11,0,11,91,71,0,11,0,18,0,11]
[null,"5 to 17 years only",12,19,183,103,28,36,26,30,19,28,4,6,22,18,85,63,6,9,240,129,16,16,103,81,52,57]
[null,"No related children under 18 years",36,39,143,68,10,15,129,94,0,11,0,11,8,8,82,57,17,20,124,85,0,11,15,23,0,11]
[null,"Female householder, no husband present:",134,77,999,178,140,58,260,128,121,70,32,27,23,15,87,41,21,16,1049,233,100,37,330,120,72,60]
[null,"With related children under 18 years:",107,73,514,144,77,42,141,88,55,49,21,21,10,10,37,27,13,13,522,164,44,27,85,51,49,52]
[null,"Under 5 years only",21,26,39,36,0,18,17,27,0,11,0,11,3,5,0,11,0,11,32,28,13,20,0,18,0,11]
[null,"Under 5 years and 5 to 17 years",0,16,31,36,0,18,0,16,0,11,5,6,0,11,11,17,0,11,15,23,4,9,7,14,0,11]
[null,"5 to 17 years only",86,70,444,140,77,42,124,84,55,49,16,19,7,8,26,29,13,13,475,160,27,20,78,53,49,52]
[null,"No related children under 18 years",27,28,485,151,63,41,119,99,66,50,11,12,13,10,50,33,8,8,527,185,56,29,245,106,23,26]

{"sheet":"ACS_Table_B17017","index":48,"n_rows":213,"n_cols":28,"rows_kept":213,"cut":false,"hidden":true,"merged":[]}
[null,"B17017. POVERTY STATUS IN THE PAST 12 MONTHS BY HOUSEHOLD TYPE BY AGE OF HOUSEHOLDER"]
[null,"Universe: HOUSEHOLDS"]
[null,"Data Set: 2018-2022 American Community Survey 5-Year Estimates"]
[]
[null,null,"Barrington",null,"Dover",null,"Durham",null,"Farmington",null,"Lee",null,"Madbury",null,"Middleton",null,"Milton",null,"New Durham",null,"Rochester",null,"Rollinsford",null,"Somersworth",null,"Strafford"]
[null,null,"Estimate","Margin Of Error","Estimate","Margin Of Error","Estimate","Margin Of Error","Estimate","Margin Of Error","Estimate","Margin Of Error","Estimate","Margin Of Error","Estimate","Margin Of Error","Estimate","Margin Of Error","Estimate","Margin Of Error","Estimate","Margin Of Error","Estimate","Margin Of Error","Estimate","Margin Of Error","Estimate","Margin Of Error"]
[null,"Total:",3401,227,14606,524,3000,226,2911,264,1839,183,688,80,556,90,1664,125,1004,107,13542,419,1070,112,5232,318,1440,98]
[null,"Income in the past 12 months below poverty level:",209,144,1250,302,660,145,472,156,51,80,34,22,47,29,100,49,73,42,1494,357,102,57,424,182,88,56]
[null,"Family households:",179,142,294,165,16,26,136,120,0,12,9,9,22,17,36,28,20,15,476,168,46,39,221,130,61,46]
[null,"Married-couple family:",16,26,154,144,16,26,22,43,0,12,4,6,11,16,28,26,8,8,188,105,16,23,117,100,47,42]
[null,"Householder under 25 years",0,17,0,25,0,19,0,17,0,12,0,12,0,12,0,12,0,12,0,25,0,12,0,19,0,12]
[null,"Householder 25 to 44 years",16,26,102,132,0,19,22,43,0,12,0,12,0,12,0,12,4,6,85,81,16,23,29,35,5,9]
[null,"Householder 45 to 64 years",0,17,35,52,16,26,0,17,0,12,1,2,3,5,23,25,4,6,43,39,0,12,0,19,33,39]
[null,"Householder 65 years and over",0,17,17,28,0,19,0,17,0,12,3,4,8,15,5,8,0,12,60,55,0,12,88,96,9,9]
[null,"Other family:",163,138,140,81,0,19,114,114,0,12,5,7,11,12,8,13,12,12,288,133,30,33,104,97,14,19]
[null,"Male householder, no wife present:",102,116,33,38,0,19,75,106,0,12,0,12,0,12,0,12,0,12,94,60,0,12,41,67,12,19]
[null,"Householder under 25 years",0,17,0,25,0,19,0,17,0,12,0,12,0,12,0,12,0,12,0,25,0,12,0,19,0,12]
[null,"Householder 25 to 44 years",102,116,18,29,0,19,75,106,0,12,0,12,0,12,0,12,0,12,49,49,0,12,41,67,0,12]
[null,"Householder 45 to 64 years",0,17,15,25,0,19,0,17,0,12,0,12,0,12,0,12,0,12,45,39,0,12,0,19,12,19]
[null,"Householder 65 years and over",0,17,0,25,0,19,0,17,0,12,0,12,0,12,0,12,0,12,0,25,0,12,0,19,0,12]
[null,"Female householder, no husband present:",61,62,107,72,0,19,39,46,0,12,5,7,11,12,8,13,12,12,194,116,30,33,63,73,2,4]
[null,"Householder under 25 years",0,17,16,27,0,19,0,17,0,12,0,12,0,12,0,12,0,12,0,25,0,12,0,19,0,12]
[null,"Householder 25 to 44 years",50,60,84,71,0,19,34,42,0,12,0,12,11,12,0,12,0,12,101,84,13,19,13,24,0,12]
[null,"Householder 45 to 64 years",11,18,7,11,0,19,5,19,0,12,5,7,0,12,8,13,12,12,73,77,0,12,50,68,0,12]
[null,"Householder 65 years and over",0,17,0,25,0,19,0,17,0,12,0,12,0,12,0,12,0,12,20,34,17,27,0,19,2,4]
[null,"Nonfamily households:",30,31,956,247,644,140,336,126,51,80,25,20,25,21,64,44,53,39,1018,307,56,42,203,128,27,34]
[null,"Male householder:",20,25,371,149,385,116,84,92,51,80,9,10,22,20,49,37,33,31,336,162,0,12,66,55,0,12]
[null,"Householder under 25 years",0,17,120,106,341,118,0,17,0,12,5,8,0,12,0,12,0,12,0,25,0,12,16,27,0,12]
[null,"Householder 25 to 44 years",0,17,49,60,12,13,0,17,0,12,0,12,0,12,15,23,0,12,71,63,0,12,0,19,0,12]
[null,"Householder 45 to 64 years",20,25,109,69,7,11,0,17,0,12,4,6,17,18,6,10,26,29,75,76,0,12,26,33,0,12]
[null,"Householder 65 years and over",0,17,93,80,25,28,84,92,51,80,0,12,5,9,28,28,7,11,190,158,0,12,24,37,0,12]
[null,"Female householder:",10,18,585,185,259,97,252,116,0,12,16,18,3,5,15,24,20,19,682,250,56,42,137,128,27,34]
[null,"Householder under 25 years",0,17,123,86,188,85,0,17,0,12,0,12,3,5,0,12,0,12,7,12,0,12,0,19,21,32]
[null,"Householder 25 to 44 years",0,17,92,68,4,7,44,52,0,12,0,12,0,12,0,12,0,12,85,82,14,23,119,127,0,12]
[null,"Householder 45 to 64 years",10,18,289,175,9,13,99,72,0,12,10,15,0,12,0,12,4,7,259,132,15,23,0,19,0,12]
[null,"Householder 65 years and over",0,17,81,59,58,49,109,85,0,12,6,9,0,12,15,24,16,18,331,209,27,28,18,23,6,9]
[null,"Income in the past 12 months at or above poverty level:",3192,240,13356,548,2340,254,2439,297,1788,202,654,83,509,83,1564,124,931,92,12048,495,968,119,4808,361,1352,103]
[null,"Family households:",2406,215,7766,445,1578,195,1824,231,1316,136,563,76,381,75,1117,124,711,74,7794,427,639,79,2825,299,1187,96]
[null,"Married-couple family:",1992,231,6393,436,1370,190,1488,265,1225,167,469,83,335,69,934,133,624,91,6071,407,499,80,2141,340,1089,113]
[null,"Householder under 25 years",0,17,83,111,0,19,0,17,0,12,0,12,0,12,46,71,7,11,102,101,0,12,27,46,0,12]
[null,"Householder 25 to 44 years",604,122,2525,363,419,106,385,175,398,104,165,76,129,57,250,71,126,68,1555,260,156,54,664,227,206,52]
[null,"Householder 45 to 64 years",996,180,2414,307,495,109,862,271,479,128,242,60,147,37,455,99,330,72,3034,325,253,65,1011,296,672,120]
[null,"Householder 65 years and over",392,131,1371,255,456,89,241,85,348,85,62,27,59,24,183,74,161,47,1380,239,90,46,439,110,211,56]
[null,"Other family:",414,178,1373,337,208,118,336,162,91,74,94,49,46,21,183,108,87,60,1723,292,140,67,684,201,98,65]
[null,"Male householder, no wife present:",161,99,504,201,71,51,217,125,0,12,28,20,21,17,89,60,55,57,545,154,91,58,181,101,40,42]
[null,"Householder under 25 years",0,17,0,25,0,19,0,17,0,12,0,12,0,12,0,12,0,12,7,12,16,25,46,58,0,12]
[null,"Householder 25 to 44 years",12,24,226,117,25,20,107,110,0,12,1,4,12,14,43,50,14,16,292,105,48,42,22,38,32,40]
[null,"Householder 45 to 64 years",135,93,206,125,14,22,110,88,0,12,25,19,8,9,21,20,38,54,143,79,19,14,57,67,8,12]
[null,"Householder 65 years and over",14,18,72,76,32,42,0,17,0,12,2,5,1,2,25,22,3,6,103,81,8,10,56,48,0,12]
[null,"Female householder, no husband present:",253,125,869,280,137,110,119,92,91,74,66,44,25,14,94,77,32,19,1178,270,49,31,503,168,58,44]
[null,"Householder under 25 years",0,17,0,25,0,19,0,17,0,12,0,12,0,12,0,12,0,12,25,27,0,12,0,19,0,12]
[null,"Householder 25 to 44 years",103,97,280,115,90,116,65,74,0,12,28,35,8,8,43,47,5,7,513,211,0,12,263,146,0,12]
[null,"Householder 45 to 64 years",113,84,426,188,43,29,38,48,87,74,35,30,11,11,37,45,13,13,377,128,17,18,105,68,36,38]
[null,"Householder 65 years and over",37,48,163,155,4,8,16,27,4,6,3,5,6,7,14,15,14,14,263,140,32,26,135,94,22,22]
[null,"Nonfamily households:",786,197,5590,624,762,164,615,228,472,213,91,36,128,33,447,143,220,81,4254,529,329,104,1983,409,165,77]
[null,"Male householder:",279,139,2804,453,315,119,230,123,180,108,59,34,96,32,252,114,134,71,2006,378,106,51,928,265,61,50]
[null,"Householder under 25 years",0,17,247,144,64,61,72,89,0,12,2,5,0,12,0,12,0,12,95,79,20,35,56,65,0,12]
[null,"Householder 25 to 44 years",45,48,1398,315,115,86,42,49,17,28,21,26,21,16,26,29,99,68,622,181,26,19,301,143,0,12]
[null,"Householder 45 to 64 years",193,119,681,263,70,59,23,41,102,92,11,10,33,17,179,100,28,20,626,191,43,22,431,212,17,19]
[null,"Householder 65 years and over",41,40,478,176,66,38,93,58,61,44,25,16,42,21,47,44,7,10,663,237,17,18,140,74,44,46]
[null,"Female householder:",507,183,2786,449,447,116,385,175,292,181,32,19,32,16,195,95,86,34,2248,383,223,99,1055,368,104,58]
[null,"Householder under 25 years",30,50,508,210,60,64,79,117,0,12,0,12,0,12,11,22,0,12,287,194,0,12,25,46,0,12]
[null,"Householder 25 to 44 years",69,86,838,244,50,53,26,30,53,50,3,5,3,5,19,23,6,9,348,163,53,39,311,208,37,39]
[null,"Householder 45 to 64 years",81,61,342,131,84,49,167,119,92,84,6,10,5,5,68,60,38,25,598,192,31,24,374,150,8,13]
[null,"Householder 65 years and over",327,161,1098,239,253,101,113,71,147,144,23,15,24,15,97,62,42,23,1015,268,139,87,345,243,59,33]
[]
[]
[]
[]
[]
[]
[]
[]
[]
[null,"B17017. POVERTY STATUS IN THE PAST 12 MONTHS BY HOUSEHOLD TYPE BY AGE OF HOUSEHOLDER"]
[null,"Universe: HOUSEHOLDS"]
[null,"Data Set: 2013-2017 American Community Survey 5-Year Estimates"]
[]
[null,null,"Barrington",null,"Dover",null,"Durham",null,"Farmington",null,"Lee",null,"Madbury",null,"Middleton",null,"Milton",null,"New Durham",null,"Rochester",null,"Rollinsford",null,"Somersworth",null,"Strafford"]
[null,null,"Estimate","Margin Of Error","Estimate","Margin Of Error","Estimate","Margin Of Error","Estimate","Margin Of Error","Estimate","Margin Of Error","Estimate","Margin Of Error","Estimate","Margin Of Error","Estimate","Margin Of Error","Estimate","Margin Of Error","Estimate","Margin Of Error","Estimate","Margin Of Error","Estimate","Margin Of Error","Estimate","Margin Of Error"]
[null,"Total:",3388,209,13194,359,3325,237,2719,176,1752,139,621,60,595,70,1732,107,995,58,12837,353,1048,57,4905,237,1432,100]
[null,"Income in the past 12 months below poverty level:",256,164,1359,301,859,157,207,161,0,11,12,9,50,21,72,52,36,30,1554,341,56,36,481,206,46,30]
[null,"Family households:",73,76,545,183,51,28,53,50,0,11,4,6,24,18,19,20,9,10,693,197,10,12,206,136,10,15]
[null,"Married-couple family:",73,76,206,130,43,27,20,32,0,11,0,11,7,7,10,16,0,11,222,133,5,9,18,32,6,11]
[null,"Householder under 25 years",0,16,0,24,0,18,0,16,0,11,0,11,0,11,0,11,0,11,0,24,0,11,0,18,0,11]
[null,"Householder 25 to 44 years",0,16,146,121,31,24,20,32,0,11,0,11,4,5,0,11,0,11,98,95,5,9,0,18,0,11]
[null,"Householder 45 to 64 years",73,76,53,41,7,10,0,16,0,11,0,11,3,4,0,11,0,11,86,87,0,11,18,32,6,11]
[null,"Householder 65 years and over",0,16,7,14,5,8,0,16,0,11,0,11,0,11,10,16,0,11,38,37,0,11,0,18,0,11]
[null,"Other family:",0,16,339,133,8,11,33,40,0,11,4,6,17,17,9,14,9,10,471,146,5,8,188,135,4,7]
[null,"Male householder, no wife present:",0,16,107,93,0,18,0,16,0,11,2,4,2,4,0,11,5,8,142,95,0,11,0,18,0,11]
[null,"Householder under 25 years",0,16,0,24,0,18,0,16,0,11,0,11,0,11,0,11,0,11,0,24,0,11,0,18,0,11]
[null,"Householder 25 to 44 years",0,16,52,65,0,18,0,16,0,11,0,11,0,11,0,11,0,11,112,91,0,11,0,18,0,11]
[null,"Householder 45 to 64 years",0,16,55,61,0,18,0,16,0,11,0,11,2,4,0,11,5,8,30,33,0,11,0,18,0,11]
[null,"Householder 65 years and over",0,16,0,24,0,18,0,16,0,11,2,4,0,11,0,11,0,11,0,24,0,11,0,18,0,11]
[null,"Female householder, no husband present:",0,16,232,95,8,11,33,40,0,11,2,4,15,17,9,14,4,6,329,115,5,8,188,135,4,7]
[null,"Householder under 25 years",0,16,28,47,0,18,0,16,0,11,0,11,0,11,0,11,0,11,0,24,0,11,80,124,0,11]
[null,"Householder 25 to 44 years",0,16,128,74,8,11,33,40,0,11,0,11,15,17,9,14,0,11,180,94,5,8,74,60,0,11]
[null,"Householder 45 to 64 years",0,16,57,55,0,18,0,16,0,11,2,4,0,11,0,11,4,6,100,77,0,11,20,31,4,7]
[null,"Householder 65 years and over",0,16,19,30,0,18,0,16,0,11,0,11,0,11,0,11,0,11,49,49,0,11,14,22,0,11]
[null,"Nonfamily households:",183,151,814,208,808,160,154,153,0,11,8,9,26,12,53,48,27,28,861,276,46,34,275,133,36,27]
[null,"Male householder:",134,138,204,107,378,120,127,149,0,11,8,9,21,11,20,33,16,25,339,178,23,21,172,112,8,12]
[null,"Householder under 25 years",0,16,64,68,369,119,57,87,0,11,4,6,0,11,0,11,0,11,0,24,12,18,0,18,0,11]
[null,"Householder 25 to 44 years",83,122,17,27,3,4,0,16,0,11,4,6,0,11,0,11,0,11,155,168,6,9,0,18,0,11]
[null,"Householder 45 to 64 years",38,62,54,48,6,9,70,106,0,11,0,11,19,11,20,33,16,25,133,65,5,8,172,112,8,12]
[null,"Householder 65 years and over",13,20,69,57,0,18,0,16,0,11,0,11,2,4,0,11,0,11,51,51,0,11,0,18,0,11]
[null,"Female householder:",49,64,610,179,430,107,27,32,0,11,0,11,5,5,33,27,11,11,522,217,23,27,103,71,28,26]
[null,"Householder under 25 years",12,20,163,90,360,107,0,16,0,11,0,11,0,11,11,17,0,11,63,69,9,13,0,18,10,16]
[null,"Householder 25 to 44 years",0,16,102,66,16,19,0,16,0,11,0,11,0,11,8,12,0,11,112,117,0,11,0,18,0,11]
[null,"Householder 45 to 64 years",37,61,177,117,7,10,13,23,0,11,0,11,3,5,14,16,6,10,185,112,14,22,34,40,5,8]
[null,"Householder 65 years and over",0,16,168,65,47,47,14,23,0,11,0,11,2,4,0,11,5,7,162,111,0,11,69,54,13,20]
[null,"Income in the past 12 months at or above poverty level:",3132,229,11835,422,2466,183,2512,183,1752,139,609,59,545,76,1660,99,959,58,11283,360,992,55,4424,266,1386,92]
[null,"Family households:",2306,177,6942,369,1763,162,1731,177,1231,148,527,46,420,58,1358,96,773,61,7250,398,719,59,3417,248,1131,82]
[null,"Married-couple family:",2016,223,5483,314,1573,166,1497,198,1021,174,462,44,337,58,1087,114,690,62,5857,343,636,69,2592,249,977,102]
[null,"Householder under 25 years",0,16,27,38,0,18,72,106,0,11,0,11,0,11,23,28,0,11,5,9,50,60,139,136,0,11]
[null,"Householder 25 to 44 years",740,161,2089,248,363,86,484,129,348,131,164,49,94,31,181,70,136,48,1844,284,156,32,805,143,273,82]
[null,"Householder 45 to 64 years",1000,178,2290,215,764,108,657,160,434,115,228,45,190,45,648,99,387,57,2500,283,291,53,1198,212,566,96]
[null,"Householder 65 years and over",276,112,1077,157,446,72,284,102,239,106,70,28,53,17,235,65,167,57,1508,174,139,31,450,98,138,43]
[null,"Other family:",290,161,1459,315,190,76,234,133,210,124,65,27,83,29,271,94,83,34,1393,256,83,39,825,190,154,79]
[null,"Male householder, no wife present:",47,70,426,144,86,60,163,116,40,44,22,14,38,23,141,68,23,20,626,194,29,27,321,133,73,67]
[null,"Householder under 25 years",0,16,0,24,0,18,0,16,0,11,0,11,0,11,0,11,0,11,83,78,16,25,0,18,0,11]
[null,"Householder 25 to 44 years",40,65,138,72,31,49,69,81,20,31,13,13,16,16,65,54,14,15,356,148,13,13,118,81,11,16]
[null,"Householder 45 to 64 years",0,16,162,97,10,12,94,90,20,31,2,4,18,18,76,45,9,11,167,79,0,11,186,104,62,63]
[null,"Householder 65 years and over",7,18,126,87,45,35,0,16,0,11,7,8,4,5,0,11,0,11,20,22,0,11,17,28,0,11]
[null,"Female householder, no husband present:",243,139,1033,266,104,48,71,59,170,117,43,23,45,26,130,67,60,27,767,177,54,32,504,155,81,44]
[null,"Householder under 25 years",0,16,102,118,10,17,0,16,0,11,0,11,0,11,30,47,0,11,40,47,0,11,26,42,0,11]
[null,"Householder 25 to 44 years",80,77,339,159,47,37,41,49,0,11,18,15,24,24,0,11,22,19,263,117,20,23,312,135,47,37]
[null,"Householder 45 to 64 years",99,80,377,157,38,28,12,20,170,117,20,15,11,9,72,46,13,11,297,118,29,19,143,79,21,17]
[null,"Householder 65 years and over",64,83,215,120,9,9,18,30,0,11,5,7,10,9,28,24,25,16,167,104,5,9,23,27,13,19]
[null,"Nonfamily households:",826,248,4893,511,703,138,781,209,521,198,82,36,125,42,302,87,186,55,4033,445,273,61,1007,236,255,85]
[null,"Male householder:",440,185,2110,314,290,90,465,174,325,171,48,21,75,30,106,61,118,53,1952,297,144,58,325,134,136,66]
[null,"Householder under 25 years",0,16,308,135,109,60,57,91,0,11,0,11,7,8,0,11,0,11,281,160,0,11,0,18,14,23]
[null,"Householder 25 to 44 years",49,55,720,184,100,63,117,110,144,145,13,11,13,16,56,50,17,20,601,174,15,13,156,99,30,39]
[null,"Householder 45 to 64 years",287,170,722,174,22,21,216,101,152,79,22,14,39,19,34,27,66,41,644,176,67,42,121,67,23,20]
[null,"Householder 65 years and over",104,91,360,144,59,39,75,52,29,32,13,10,16,11,16,16,35,33,426,128,62,38,48,45,69,48]
[null,"Female householder:",386,194,2783,388,413,101,316,150,196,140,34,26,50,25,196,72,68,29,2081,345,129,47,682,185,119,62]
[null,"Householder under 25 years",0,16,362,157,86,58,0,16,0,11,5,8,5,7,0,11,0,11,210,183,0,11,29,47,14,21]
[null,"Householder 25 to 44 years",34,52,905,231,25,16,53,49,22,29,0,11,9,13,35,31,27,19,301,123,10,11,61,63,0,11]
[null,"Householder 45 to 64 years",196,136,704,163,63,40,102,85,96,98,12,9,9,8,107,48,10,12,701,183,84,44,314,109,60,38]
[null,"Householder 65 years and over",156,130,812,167,239,80,161,117,78,85,17,21,27,18,54,45,31,20,869,189,35,21,278,103,45,46]
[]
[]
[]
[]
[]
[]
[]
[]
[]
[null,"B17017. POVERTY STATUS IN THE PAST 12 MONTHS BY HOUSEHOLD TYPE BY AGE OF HOUSEHOLDER"]
[null,"Universe: HOUSEHOLDS"]
[null,"Data Set: 2008-2012 American Community Survey 5-Year Estimates"]
[]
[null,null,"Barrington",null,"Dover",null,"Durham",null,"Farmington",null,"Lee",null,"Madbury",null,"Middleton",null,"Milton",null,"New Durham",null,"Rochester",null,"Rollinsford",null,"Somersworth",null,"Strafford"]
[null,null,"Estimate","Margin Of Error","Estimate","Margin Of Error","Estimate","Margin Of Error","Estimate","Margin Of Error","Estimate","Margin Of Error","Estimate","Margin Of Error","Estimate","Margin Of Error","Estimate","Margin Of Error","Estimate","Margin Of Error","Estimate","Margin Of Error","Estimate","Margin Of Error","Estimate","Margin Of Error","Estimate","Margin Of Error"]
[null,"Total:",2987,193,12512,344,3327,354,2646,185,1773,146,656,57,593,63,1660,130,955,62,12762,368,1020,77,4552,227,1378,88]
[null,"Income in the past 12 months below poverty level:",160,83,1398,265,800,181,276,128,183,107,44,33,58,28,123,64,49,25,1472,261,82,43,758,183,50,36]
[null,"Family households:",105,71,458,166,67,69,159,96,12,18,7,10,38,23,80,55,25,19,835,193,55,39,423,158,45,36]
[null,"Married-couple family:",0,16,55,46,43,50,139,93,0,11,0,11,16,11,34,42,11,11,191,93,13,10,188,130,20,22]
[null,"Householder under 25 years",0,16,0,24,0,18,0,16,0,11,0,11,0,11,0,11,0,11,0,21,0,11,0,18,0,11]
[null,"Householder 25 to 44 years",0,16,7,13,0,18,60,58,0,11,0,11,4,6,0,11,0,11,82,73,5,7,99,108,11,17]
[null,"Householder 45 to 64 years",0,16,31,35,43,50,79,78,0,11,0,11,12,9,34,42,11,11,58,45,8,9,77,78,0,11]
[null,"Householder 65 years and over",0,16,17,26,0,18,0,16,0,11,0,11,0,11,0,11,0,11,51,39,0,11,12,20,9,15]
[null,"Other family:",105,71,403,167,24,38,20,33,12,18,7,10,22,20,46,45,14,15,644,172,42,39,235,136,25,34]
[null,"Male householder, no wife present:",0,16,65,80,0,18,0,16,12,18,2,4,3,5,0,11,4,7,88,87,0,11,43,47,25,34]
[null,"Householder under 25 years",0,16,0,24,0,18,0,16,12,18,0,11,0,11,0,11,0,11,0,21,0,11,15,25,0,11]
[null,"Householder 25 to 44 years",0,16,47,75,0,18,0,16,0,11,0,11,0,11,0,11,0,11,88,87,0,11,13,20,0,11]
[null,"Householder 45 to 64 years",0,16,18,27,0,18,0,16,0,11,2,4,3,5,0,11,4,7,0,21,0,11,15,25,25,34]
[null,"Householder 65 years and over",0,16,0,24,0,18,0,16,0,11,0,11,0,11,0,11,0,11,0,21,0,11,0,18,0,11]
[null,"Female householder, no husband present:",105,71,338,144,24,38,20,33,0,11,5,8,19,20,46,45,10,13,556,184,42,39,192,132,0,11]
[null,"Householder under 25 years",0,16,107,87,0,18,20,33,0,11,5,8,0,11,0,11,0,11,104,93,0,11,25,42,0,11]
[null,"Householder 25 to 44 years",86,74,217,119,0,18,0,16,0,11,0,11,19,20,20,31,10,13,341,144,42,39,122,116,0,11]
[null,"Householder 45 to 64 years",19,31,14,21,24,38,0,16,0,11,0,11,0,11,26,33,0,11,83,55,0,11,45,43,0,11]
[null,"Householder 65 years and over",0,16,0,24,0,18,0,16,0,11,0,11,0,11,0,11,0,11,28,27,0,11,0,18,0,11]
[null,"Nonfamily households:",55,46,940,213,733,171,117,99,171,104,37,32,20,17,43,37,24,17,637,204,27,27,335,126,5,8]
[null,"Male householder:",43,41,472,170,256,86,0,16,80,74,32,31,11,15,38,36,4,7,195,128,0,11,165,99,0,11]
[null,"Householder under 25 years",0,16,190,129,247,85,0,16,0,11,28,30,0,11,10,15,0,11,31,47,0,11,13,22,0,11]
[null,"Householder 25 to 44 years",0,16,142,90,0,18,0,16,0,11,0,11,8,14,17,27,0,11,30,35,0,11,70,70,0,11]
[null,"Householder 45 to 64 years",43,41,81,49,9,14,0,16,0,11,0,11,3,4,11,19,4,7,134,104,0,11,82,68,0,11]
[null,"Householder 65 years and over",0,16,59,50,0,18,0,16,80,74,4,6,0,11,0,11,0,11,0,21,0,11,0,18,0,11]
[null,"Female householder:",12,22,468,153,477,123,117,99,91,74,5,7,9,11,5,8,20,16,442,161,27,27,170,86,5,8]
[null,"Householder under 25 years",0,16,167,101,409,119,0,16,0,11,0,11,6,9,0,11,0,11,27,29,0,11,15,23,0,11]
[null,"Householder 25 to 44 years",0,16,58,46,38,38,0,16,0,11,5,7,0,11,0,11,4,6,79,69,22,26,14,22,0,11]
[null,"Householder 45 to 64 years",12,22,138,94,22,22,75,78,48,55,0,11,3,5,0,11,5,7,213,119,5,7,59,55,5,8]
[null,"Householder 65 years and over",0,16,105,59,8,12,42,58,43,51,0,11,0,11,5,8,11,13,123,89,0,11,82,54,0,11]
[null,"Income in the past 12 months at or above poverty level:",2827,196,11114,412,2527,282,2370,206,1590,141,612,64,535,62,1537,119,906,60,11290,375,938,89,3794,263,1328,97]
[null,"Family households:",2303,169,6658,343,1877,209,1634,151,1104,101,490,58,404,57,1191,91,691,54,7031,316,658,75,2612,222,1152,77]
[null,"Married-couple family:",2086,205,5195,316,1699,192,1201,174,964,117,454,51,342,57,901,115,647,60,5487,344,542,71,2164,225,1028,119]
[null,"Householder under 25 years",0,16,144,114,0,18,0,16,0,11,0,11,16,24,15,18,6,9,59,54,0,11,68,82,0,11]
[null,"Householder 25 to 44 years",858,158,1863,208,484,94,420,143,282,70,184,54,112,35,323,75,203,41,1753,194,156,59,1061,186,287,59]
[null,"Householder 45 to 64 years",1024,176,2348,213,882,145,643,138,513,116,206,49,163,38,381,100,313,57,2512,248,300,52,700,155,542,106]
[null,"Householder 65 years and over",204,80,840,138,333,88,138,85,169,64,64,26,51,19,182,61,125,41,1163,180,86,30,335,119,199,77]
[null,"Other family:",217,98,1463,204,178,69,433,147,140,74,36,27,62,28,290,93,44,27,1544,292,116,39,448,138,124,78]
[null,"Male householder, no wife present:",83,59,464,137,38,39,173,102,19,28,4,6,39,22,203,87,23,23,495,160,16,16,118,85,52,57]
[null,"Householder under 25 years",41,46,0,24,0,18,0,16,0,11,0,11,0,11,16,26,0,11,73,76,0,11,0,18,0,11]
[null,"Householder 25 to 44 years",14,21,276,117,0,18,0,16,0,11,0,11,12,15,91,56,9,10,214,118,5,9,94,81,24,39]
[null,"Householder 45 to 64 years",12,19,172,109,38,39,124,86,19,28,4,6,27,18,54,48,14,19,169,94,11,12,9,14,28,44]
[null,"Householder 65 years and over",16,24,16,26,0,18,49,59,0,11,0,11,0,11,42,41,0,11,39,58,0,11,15,23,0,11]
[null,"Female householder, no husband present:",134,77,999,178,140,58,260,128,121,70,32,27,23,15,87,41,21,16,1049,233,100,37,330,120,72,60]
[null,"Householder under 25 years",0,16,11,19,0,18,17,27,0,11,0,11,0,11,0,11,0,11,10,16,12,18,19,33,0,11]
[null,"Householder 25 to 44 years",58,54,407,119,36,28,71,75,19,30,13,15,4,6,27,21,13,13,428,153,37,24,56,44,30,48]
[null,"Householder 45 to 64 years",76,56,419,132,80,46,160,103,36,39,17,20,19,13,60,36,4,6,462,163,16,14,212,98,42,32]
[null,"Householder 65 years and over",0,16,162,73,24,26,12,22,66,50,2,3,0,11,0,11,4,6,149,65,35,20,43,37,0,11]
[null,"Nonfamily households:",524,164,4456,430,650,159,736,209,486,163,122,50,131,39,346,126,215,66,4259,419,280,71,1182,270,176,73]
[null,"Male householder:",272,123,1966,313,340,127,331,113,155,97,61,36,82,34,158,82,162,62,1808,292,131,60,403,127,55,41]
[null,"Householder under 25 years",0,16,254,136,156,95,0,16,0,11,7,12,0,11,0,11,0,11,96,119,47,50,63,74,0,11]
[null,"Householder 25 to 44 years",97,64,846,204,50,37,117,78,0,11,20,24,29,23,70,52,19,16,587,180,16,25,198,90,21,24]
[null,"Householder 45 to 64 years",175,95,609,166,79,47,133,86,134,93,26,21,35,18,80,51,123,57,792,178,29,29,52,39,23,26]
[null,"Householder 65 years and over",0,16,257,103,55,36,81,53,21,24,8,9,18,12,8,13,20,15,333,97,39,33,90,60,11,17]
[null,"Female householder:",252,102,2490,321,310,87,405,175,331,135,61,35,49,23,188,84,53,30,2451,311,149,47,779,227,121,58]
[null,"Householder under 25 years",0,16,448,173,60,61,45,67,59,65,0,11,0,11,0,11,0,11,60,44,0,11,90,88,0,11]
[null,"Householder 25 to 44 years",51,57,566,202,39,31,14,25,54,58,26,24,3,5,16,23,5,7,343,133,31,23,101,47,0,11]
[null,"Householder 45 to 64 years",159,80,743,195,106,54,134,76,128,81,22,21,36,20,71,48,13,14,1044,214,49,37,288,136,27,24]
[null,"Householder 65 years and over",42,38,733,152,105,48,212,132,90,64,13,10,10,8,101,60,35,28,1004,174,69,25,300,111,94,53]

{"sheet":"ACS_Table_B03002","index":49,"n_rows":108,"n_cols":28,"rows_kept":108,"cut":false,"hidden":true,"merged":[]}
[null,"B03002. HISPANIC OR LATINO ORIGIN BY RACE"]
[null,"Universe:  TOTAL POPULATION"]
[null,"Data Set: 2018-2022 American Community Survey 5-Year Estimates"]
[]
[null,null,"Barrington",null,"Dover",null,"Durham",null,"Farmington",null,"Lee",null,"Madbury",null,"Middleton",null,"Milton",null,"New Durham",null,"Rochester",null,"Rollinsford",null,"Somersworth",null,"Strafford"]
[null,null,"Estimate","Margin Of Error","Estimate","Margin Of Error","Estimate","Margin Of Error","Estimate","Margin Of Error","Estimate","Margin Of Error","Estimate","Margin Of Error","Estimate","Margin Of Error","Estimate","Margin Of Error","Estimate","Margin Of Error","Estimate","Margin Of Error","Estimate","Margin Of Error","Estimate","Margin Of Error","Estimate","Margin Of Error"]
[null,"Total:",9339,19,32849,21,15073,41,6762,17,4547,15,2213,277,1537,276,4509,17,2711,17,32573,26,2597,24,11994,26,4261,26]
[null,"Not Hispanic or Latino:",9055,201,31482,310,14587,127,6700,76,4316,202,2188,273,1502,274,4476,43,2697,23,31937,297,2571,34,11441,308,4223,65]
[null,"White alone",8232,463,28539,602,13180,371,6152,338,3636,418,1905,273,1370,248,4360,83,2574,76,29816,558,2367,103,10066,607,3852,157]
[null,"Black or African American alone",220,175,384,219,80,64,114,113,2,5,9,11,25,34,0,12,0,12,237,174,49,50,241,178,33,40]
[null,"American Indian and Alaska Native alone",15,25,0,25,5,7,0,17,0,12,0,12,5,8,0,12,27,32,6,12,0,12,6,12,0,12]
[null,"Asian alone",0,17,1302,511,594,195,194,282,405,327,96,68,17,27,48,61,5,10,477,268,0,12,523,255,218,140]
[null,"Native Hawaiian and Other Pacific Islander alone",0,17,0,25,0,19,0,17,0,12,0,12,0,12,0,12,0,12,98,142,0,12,0,19,0,12]
[null,"Some other race alone",29,45,143,127,22,24,128,141,0,12,11,14,0,12,0,12,0,12,0,25,44,45,117,176,0,12]
[null,"Two or more races:",559,339,1114,429,706,295,112,76,273,179,167,110,85,108,68,82,91,58,1303,334,111,53,488,270,120,87]
[null,"Two races including Some other race",290,289,125,124,243,245,23,34,24,32,57,84,0,12,59,82,39,35,215,151,21,22,66,83,93,76]
[null,"Two races excluding Some other race, and three or more races",269,173,989,424,463,188,89,64,249,181,110,80,85,108,9,12,52,45,1088,309,90,50,422,249,27,47]
[null,"Hispanic or Latino:",284,197,1367,314,486,115,62,73,231,202,25,30,35,41,33,39,14,17,636,300,26,25,553,306,38,61]
[null,"White alone",40,65,729,273,171,83,29,43,3,6,7,9,7,11,0,12,8,13,352,239,15,18,177,106,0,12]
[null,"Black or African American alone",0,17,49,65,0,19,0,17,0,12,0,12,0,12,0,12,0,12,2,5,0,12,0,19,0,12]
[null,"American Indian and Alaska Native alone",0,17,0,25,0,19,0,17,0,12,0,12,0,12,0,12,0,12,0,25,0,12,0,19,0,12]
[null,"Asian alone",0,17,0,25,11,17,0,17,0,12,0,12,0,12,0,12,0,12,7,12,0,12,11,19,0,12]
[null,"Native Hawaiian and Other Pacific Islander alone",0,17,0,25,0,19,0,17,0,12,0,12,0,12,0,12,0,12,0,25,0,12,0,19,0,12]
[null,"Some other race alone",0,17,249,136,36,30,0,17,0,12,0,12,28,40,8,17,0,12,175,113,0,12,88,134,0,12]
[null,"Two or more races:",244,190,340,221,268,98,33,58,228,202,18,28,0,12,25,36,6,10,100,60,11,17,277,262,38,61]
[null,"Two races including Some other race",234,188,310,219,234,88,8,20,228,202,13,20,0,12,12,30,6,10,52,41,11,17,254,267,8,17]
[null,"Two races excluding Some other race, and three or more races",10,18,30,36,34,43,25,50,0,12,5,8,0,12,13,21,0,12,48,55,0,12,23,42,30,59]
[]
[null,"Calculated- B03002. HISPANIC OR LATINO ORIGIN BY RACE"]
[null,"Universe:  TOTAL POPULATION"]
[null,"Data Set: 2018-2022 American Community Survey 5-Year Estimates","Barrington",null,"Dover",null,"Durham",null,"Farmington",null,"Lee",null,"Madbury",null,"Middleton",null,"Milton",null,"New Durham",null,"Rochester",null,"Rollinsford",null,"Somersworth",null,"Strafford"]
[null,null,"Estimate","Margin Of Error","Estimate","Margin Of Error","Estimate","Margin Of Error","Estimate","Margin Of Error","Estimate","Margin Of Error","Estimate","Margin Of Error","Estimate","Margin Of Error","Estimate","Margin Of Error","Estimate","Margin Of Error","Estimate","Margin Of Error","Estimate","Margin Of Error","Estimate","Margin Of Error","Estimate","Margin Of Error"]
[null,"Total:",{"$f":"C7","v":9339},19,32849,21,15073,41,6762,17,4547,15,2213,277,1537,276,4509,17,2711,17,32573,26,2597,24,{"$f":"Y7","v":11994},26,4261,26]
[null,"Not Hispanic or Latino:",{"$f":"C8","v":9055},201,31482,310,14587,127,6700,76,4316,202,2188,273,1502,274,4476,43,{"$f":"S8","v":2697},23,31937,297,2571,34,11441,308,4223,65]
[null,"White",8232,463,28539,602,13180,371,6152,338,3636,418,1905,273,1370,248,4360,83,2574,76,29816,558,2367,103,10066,607,3852,157]
[null,"Black",220,175,384,219,80,64,114,113,2,{"$f":"IF(F36=\"-\",\"\",IF(I36=\"-\",\"\",(I36-F36)/F36))","v":-0.47945205479452052},9,11,25,34,0,12,0,12,237,174,49,50,241,178,33,40]
[null,"American Indian",{"$f":"$C$11","v":15},{"$f":"D11","v":25},{"$f":"E11","v":0},25,5,7,0,17,0,12,0,12,5,8,0,12,27,32,6,12,0,12,6,12,0,12]
[null,"Asian &Pacific Is.",{"$f":"C12+C13","v":0},{"$f":"SQRT((D12^2)+(D13^2))","v":24.041630560342615},{"$f":"E12+E13","v":1302},{"$f":"SQRT((F12^2)+(F13^2))","v":511.61118048768247},{"$f":"G12+G13","v":594},{"$f":"SQRT((H12^2)+(H13^2))","v":195.92345444075858},{"$f":"I12+I13","v":194},{"$f":"SQRT((J12^2)+(J13^2))","v":282.51194665004874},{"$f":"K12+K13","v":405},{"$f":"SQRT((L12^2)+(L13^2))","v":327.22010940649722},{"$f":"M12+M13","v":96},{"$f":"SQRT((N12^2)+(N13^2))","v":69.050706006528273},{"$f":"O12+O13","v":17},{"$f":"SQRT((P12^2)+(P13^2))","v":29.546573405388315},{"$f":"Q12+Q13","v":48},{"$f":"SQRT((R12^2)+(R13^2))","v":62.169124169478209},{"$f":"S12+S13","v":5},{"$f":"SQRT((T12^2)+(T13^2))","v":15.620499351813308},{"$f":"U12+U13","v":575},{"$f":"SQRT((V12^2)+(V13^2))","v":303.29523570277195},{"$f":"W12+W13","v":0},{"$f":"SQRT((X12^2)+(X13^2))","v":16.970562748477139},{"$f":"Y12+Y13","v":523},{"$f":"SQRT((Z12^2)+(Z13^2))","v":255.70686341981516},{"$f":"AA12+AA13","v":218},{"$f":"SQRT((AB12^2)+(AB13^2))","v":140.51334456200237}]
[null,"Other*",{"$f":"C14+C15","v":588},{"$f":"SQRT((D14^2)+(D15^2))","v":341.97368319799114},{"$f":"E14+E15","v":1257},{"$f":"SQRT((F14^2)+(F15^2))","v":447.40362090622381},{"$f":"G14+G15","v":728},{"$f":"SQRT((H14^2)+(H15^2))","v":295.97466107759971},{"$f":"I14+I15","v":240},{"$f":"SQRT((J14^2)+(J15^2))","v":160.17802595861892},{"$f":"K14+K15","v":273},{"$f":"SQRT((L14^2)+(L15^2))","v":179.40178371465541},{"$f":"M14+M15","v":178},{"$f":"SQRT((N14^2)+(N15^2))","v":110.8873302050329},{"$f":"O14+O15","v":85},{"$f":"SQRT((P14^2)+(P15^2))","v":108.66462165764899},{"$f":"Q14+Q15","v":68},{"$f":"SQRT((R14^2)+(R15^2))","v":82.87339742040264},{"$f":"S14+S15","v":91},{"$f":"SQRT((T14^2)+(T15^2))","v":59.22837157984339},{"$f":"U14+U15","v":1303},{"$f":"SQRT((V14^2)+(V15^2))","v":334.93432191998477},{"$f":"W14+W15","v":155},{"$f":"SQRT((X14^2)+(X15^2))","v":69.526973183074787},{"$f":"Y14+Y15","v":605},{"$f":"SQRT((Z14^2)+(Z15^2))","v":322.29799875270714},{"$f":"AA14+AA15","v":120},{"$f":"SQRT((AB14^2)+(AB15^2))","v":87.823687009826685}]
[null,"Hispanic or Latino:",{"$f":"C18","v":284},{"$f":"D18","v":197},{"$f":"E18","v":1367},314,486,115,62,73,231,202,25,30,35,41,33,39,14,17,636,300,26,25,{"$f":"Y18","v":553},{"$f":"Z18","v":306},{"$f":"AA18","v":38},{"$f":"AB18","v":61}]
[]
[]
[]
[]
[]
[]
[]
[]
[]
[]
[]
[]
[]
[]
[]
[]
[]
[]
[]
[]
[]
[]
[]
[]
[]
[]
[]
[]
[]
[]
[]
[]
[]
[]
[]
[]
[]
["Calculated- B03002. HISPANIC OR LATINO ORIGIN BY RACE"]
["Universe:  TOTAL POPULATION"]
["Data Set: 2013-2017 American Community Survey 5-Year Estimates"]
[]
[null,null,"Barrington",null,"Dover",null,"Durham",null,"Farmington",null,"Lee",null,"Madbury",null,"Middleton",null,"Milton",null,"New Durham",null,"Rochester",null,"Rollinsford",null,"Somersworth",null,"Strafford"]
[null,null,"Estimate","Margin Of Error","Estimate","Margin Of Error","Estimate","Margin Of Error","Estimate","Margin Of Error","Estimate","Margin Of Error","Estimate","Margin Of Error","Estimate","Margin Of Error","Estimate","Margin Of Error","Estimate","Margin Of Error","Estimate","Margin Of Error","Estimate","Margin Of Error","Estimate","Margin Of Error","Estimate","Margin Of Error"]
[null,"Total:",8841,20,30901,45,16148,27,6834,16,4375,18,1906,157,1687,154,4602,18,2663,22,30212,21,2529,20,11797,21,4057,15]
[null,"Not Hispanic or Latino:",8694,129,30211,233,15849,96,6771,80,4178,182,1897,156,1669,152,4586,23,2656,25,29645,271,2431,67,11344,217,3829,160]
[null,"White",8416,233,27463,384,14522,244,6693,117,3848,294,1799,155,1630,151,4502,61,2604,58,28298,439,2313,99,9817,342,3749,174]
[null,"Black",0,16,331,151,114,53,0,16,3,6,0,11,12,14,14,22,0,11,227,187,62,74,255,157,23,35]
[null,"American Indian",8,14,26,22,0,18,0,16,0,11,2,3,0,11,0,11,0,11,20,24,3,5,0,18,0,11]
[null,"Asian &Pacific Is.",167,172.74258305351347,1568,261.10534272588143,714,173.93389548906217,0,22.627416997969522,270,193.31321734428818,59,46.324939287601879,0,15.556349186104045,0,15.556349186104045,0,15.556349186104045,408,235.22754940695191,0,15.556349186104045,850,223.72527796384566,5,15.556349186104045]
[null,"Other*",103,73.756355658343097,823,277.1154993860863,499,132.96616110875729,78,78.644770964127048,57,72.835430938520574,37,31.953090617340916,27,28.231188426986208,70,55.108982933819419,52,54.12947441089743,692,316.12813857674865,53,43.416586692184822,422,182.8879438344693,52,69.871310278253688]
[null,"Hispanic or Latino:",147,130,690,231,299,90,63,79,197,183,9,16,18,17,16,18,7,10,567,270,98,63,453,214,228,161]
[]
[]
[]
["Calculated- B03002. HISPANIC OR LATINO ORIGIN BY RACE"]
["Universe:  TOTAL POPULATION"]
["Data Set: 2008-2012 American Community Survey 5-Year Estimates"]
[]
[null,null,"Barrington",null,"Dover",null,"Durham",null,"Farmington",null,"Lee",null,"Madbury",null,"Middleton",null,"Milton",null,"New Durham",null,"Rochester",null,"Rollinsford",null,"Somersworth",null,"Strafford"]
[null,null,"Estimate","Margin Of Error","Estimate","Margin Of Error","Estimate","Margin Of Error","Estimate","Margin Of Error","Estimate","Margin Of Error","Estimate","Margin Of Error","Estimate","Margin Of Error","Estimate","Margin Of Error","Estimate","Margin Of Error","Estimate","Margin Of Error","Estimate","Margin Of Error","Estimate","Margin Of Error","Estimate","Margin Of Error"]
[null,"Total:",8528,23,29875,22,14508,19,6726,22,4337,23,1959,134,1563,134,4560,22,2614,15,29834,26,2551,25,11830,36,3974,23]
[null,"Not Hispanic or Latino:",8305,170,29501,167,14173,172,6718,26,4274,69,1924,144,1524,132,4547,33,2614,15,29244,263,2497,63,11410,226,3894,89]
[null,"White",8050,245,27492,518,13068,405,6410,194,4077,199,1592,182,1490,134,4463,85,2604,18,28204,414,2379,120,10375,431,3828,111]
[null,"Black",130,175,211,133,79,74,0,85,1,2,6,9,9,12,0,85,10,14,276,156,21,28,205,140,0,85]
[null,"American Indian",15,25,19,22,29,57,0,85,0,85,9,12,5,9,14,22,0,85,33,37,29,44,24,28,0,85]
[null,"Asian &Pacific Is.",29,93.107464792034804,1200,376.7890656587582,609,206.32256299299891,171,168.07736313971611,189,206.32256299299891,272,190.96072894707959,0,120.20815280171308,0,120.20815280171308,0,120.20815280171308,194,163.78339354159201,10,86.145226217127089,337,221.9954954497951,0,120.20815280171308]
[null,"Other*",81,60.539243470661241,579,215.61539833694624,388,200.8706051168264,137,147.87156589419075,7,85.708809348864477,45,50.596442562694072,20,86.683331731077345,70,78.771822373231913,0,120.20815280171308,537,239.58505796480713,58,82.734515167492219,469,241.62781296862329,66,59.665735560705194]
[null,"Hispanic or Latino:",223,170,374,168,335,171,8,15,63,66,35,34,39,30,13,23,0,85,590,263,54,61,420,223,80,87]

{"sheet":"RentalHousingCost","index":50,"n_rows":124,"n_cols":21,"rows_kept":124,"cut":false,"hidden":true,"merged":[]}
[]
[null,null,"HIDE THIS COLUMN",{"$f":"CntyDataLink!A70","v":"Rochester"}]
[]
[null,null,null,"RENTAL HOUSING COST CHARACTERISTICS"]
[]
[]
[]
[]
[]
[]
[]
[]
[]
[]
[]
[]
[]
[]
[]
[]
[]
[]
[]
[]
[]
[]
[]
[]
[]
[]
[]
[]
[]
[]
[]
[]
[]
[]
[null,null,null,"Source:  2018-2022 American Community Survey Table B25074"]
[]
[null,null,null,"Income in 2022 Inflation Adjusted Dollars"]
[null,null,null,"Data from the American Community Survey are estimates"]
[null,null,null,{"$f":"CntyDataLink!A70","v":"Rochester"}]
[]
[null,null,null,{"$f":"D4","v":"RENTAL HOUSING COST CHARACTERISTICS"}]
[]
[null,null,null,"Renter Households by "]
[null,null,null,"Gross Rent as a Percent of 2022 Household Income"]
[null,null,{"$f":"CntyDataLink!AO$69","v":"H73RenterOccHU"},null,null,null,"By Household Income"]
[null,null,null,null,"Specified Renter Occ Housing Units",{"$f":"\"Margin of Error Renter Occupied Units\"","v":"Margin of Error Renter Occupied Units"},null,"Less than $10,000",{"$f":"\"Margin of Error \"&H50","v":"Margin of Error Less than $10,000"},"$10,000 to $19,999",{"$f":"\"Margin of Error \"&J50","v":"Margin of Error $10,000 to $19,999"},"$20,000 to $34,999",{"$f":"\"Margin of Error \"&L50","v":"Margin of Error $20,000 to $34,999"},"$35,000 to $49,999",{"$f":"\"Margin of Error \"&N50","v":"Margin of Error $35,000 to $49,999"},"$50,000 to $74,999",{"$f":"\"Margin of Error \"&P50","v":"Margin of Error $50,000 to $74,999"},"$75,000 to $99,999",{"$f":"\"Margin of Error \"&R50","v":"Margin of Error $75,000 to $99,999"},"$100,000 or More",{"$f":"\"Margin of Error \"&T50","v":"Margin of Error $100,000 or More"}]
[]
[null,null,null,"All Renter Households",{"$f":"CntyDataLink!$B$156","v":4676},{"$f":"CntyDataLink!$C$156","v":519},null,{"$f":"CntyDataLink!$BH$148","v":281},{"$f":"CntyDataLink!$BI$148","v":161},{"$f":"CntyDataLink!$BZ$148","v":672},{"$f":"CntyDataLink!$CA$148","v":263},{"$f":"CntyDataLink!$CR$148","v":929},{"$f":"CntyDataLink!$CS$148","v":338},{"$f":"CntyDataLink!$DJ$148","v":709},{"$f":"CntyDataLink!$DK$148","v":252},{"$f":"CntyDataLink!$EB$148","v":856},{"$f":"CntyDataLink!$EC$148","v":224},{"$f":"CntyDataLink!$ET$148","v":407},{"$f":"CntyDataLink!$EU$148","v":149},{"$f":"CntyDataLink!$FL$148","v":822},{"$f":"CntyDataLink!$FM$148","v":276}]
[null,null,null,"Rent Less than 20% of HH Income",{"$f":"CntyDataLink!$D$156","v":1596},{"$f":"CntyDataLink!$E$156","v":356.90194731886794},null,{"$f":"CntyDataLink!$BJ$148","v":31},{"$f":"CntyDataLink!$BK$148","v":46},{"$f":"CntyDataLink!$CB$148","v":0},{"$f":"CntyDataLink!$CC$148","v":25},{"$f":"CntyDataLink!$CT$148","v":98},{"$f":"CntyDataLink!$CU$148","v":78},{"$f":"CntyDataLink!$DL$148","v":25},{"$f":"CntyDataLink!$DM$148","v":30},{"$f":"CntyDataLink!$ED$148","v":380},{"$f":"CntyDataLink!$EE$148","v":161},{"$f":"CntyDataLink!$EV$148","v":289},{"$f":"CntyDataLink!$EW$148","v":146},{"$f":"CntyDataLink!$FN$148","v":773},{"$f":"CntyDataLink!$FO$148","v":264}]
[null,null,null,"Rent 20% to 24.9% of HH Income",{"$f":"CntyDataLink!$F$156","v":279},{"$f":"CntyDataLink!$G$156","v":120},null,{"$f":"CntyDataLink!$BL$148","v":0},{"$f":"CntyDataLink!$BM$148","v":25},{"$f":"CntyDataLink!$CD$148","v":17},{"$f":"CntyDataLink!$CE$148","v":27},{"$f":"CntyDataLink!$CV$148","v":26},{"$f":"CntyDataLink!$CW$148","v":32},{"$f":"CntyDataLink!$DN$148","v":11},{"$f":"CntyDataLink!$DO$148","v":18},{"$f":"CntyDataLink!$EF$148","v":123},{"$f":"CntyDataLink!$EG$148","v":69},{"$f":"CntyDataLink!$EX$148","v":65},{"$f":"CntyDataLink!$EY$148","v":71},{"$f":"CntyDataLink!$FP$148","v":37},{"$f":"CntyDataLink!$FQ$148","v":58}]
[null,null,null,"Rent 25% to 29.9% of HH Income",{"$f":"CntyDataLink!$H$156","v":866},{"$f":"CntyDataLink!$I$156","v":308},null,{"$f":"CntyDataLink!$BN$148","v":0},{"$f":"CntyDataLink!$BO$148","v":25},{"$f":"CntyDataLink!$CF$148","v":232},{"$f":"CntyDataLink!$CG$148","v":191},{"$f":"CntyDataLink!$CX$148","v":182},{"$f":"CntyDataLink!$CY$148","v":211},{"$f":"CntyDataLink!$DP$148","v":147},{"$f":"CntyDataLink!$DQ$148","v":109},{"$f":"CntyDataLink!$EH$148","v":260},{"$f":"CntyDataLink!$EI$148","v":116},{"$f":"CntyDataLink!$EZ$148","v":45},{"$f":"CntyDataLink!$FA$148","v":53},{"$f":"CntyDataLink!$FR$148","v":0},{"$f":"CntyDataLink!$FS$148","v":25}]
[null,null,null,"Rent Less Than 30% of HH Income",{"$f":"CntyDataLink!$J$156","v":2741},{"$f":"CntyDataLink!$K$156","v":486.45965917021323},null,{"$f":"SUM(H53:H55)","v":31},{"$f":"SQRT((I53^2)+(I54^2)+(I55^2))","v":58.017238817441147},{"$f":"SUM(J53:J55)","v":249},{"$f":"SQRT((K53^2)+(K54^2)+(K55^2))","v":194.51221041363959},{"$f":"SUM(L53:L55)","v":306},{"$f":"SQRT((M53^2)+(M54^2)+(M55^2))","v":227.22015755649849},{"$f":"SUM(N53:N55)","v":183},{"$f":"SQRT((O53^2)+(O54^2)+(O55^2))","v":114.47707194019246},{"$f":"SUM(P53:P55)","v":763},{"$f":"SQRT((Q53^2)+(Q54^2)+(Q55^2))","v":210.09045670853305},{"$f":"SUM(R53:R55)","v":399},{"$f":"SQRT((S53^2)+(S54^2)+(S55^2))","v":170.78056095469412},{"$f":"SUM(T53:T55)","v":810},{"$f":"SQRT((U53^2)+(U54^2)+(U55^2))","v":271.4498111990502}]
[null,null,null,"Rent 30% or More of HH Income",{"$f":"CntyDataLink!$L$156","v":1798},{"$f":"CntyDataLink!$M$156","v":382.94255443865205},null,{"$f":"H60+H58","v":169},{"$f":"SQRT((I58^2)+(I60^2))","v":138.92084076912292},{"$f":"J60+J58","v":404},{"$f":"SQRT((K58^2)+(K60^2))","v":159.33298465791694},{"$f":"L60+L58","v":598},{"$f":"SQRT((M58^2)+(M60^2))","v":230.40616311201401},{"$f":"N60+N58","v":526},{"$f":"SQRT((O58^2)+(O60^2))","v":236.68544526438461},93,{"$f":"SQRT((Q58^2)+(Q60^2))","v":83.132424480463698},{"$f":"R60+R58","v":8},{"$f":"SQRT((S58^2)+(S60^2))","v":45.210618221829257},0,{"$f":"SQRT((U58^2)+(U60^2))","v":50}]
[null,null,null,"Rent 30% to 34.9% of HH Income",{"$f":"CntyDataLink!$N$156","v":430},{"$f":"CntyDataLink!$O$156","v":180},null,{"$f":"CntyDataLink!$BP$148","v":0},{"$f":"CntyDataLink!$BQ$148","v":25},{"$f":"CntyDataLink!$CH$148","v":71},{"$f":"CntyDataLink!$CI$148","v":71},{"$f":"CntyDataLink!$CZ$148","v":87},{"$f":"CntyDataLink!$DA$148","v":69},{"$f":"CntyDataLink!$DR$148","v":191},{"$f":"CntyDataLink!$DS$148","v":129},{"$f":"CntyDataLink!$EJ$148","v":73},{"$f":"CntyDataLink!$EK$148","v":69},{"$f":"CntyDataLink!$FB$148","v":8},{"$f":"CntyDataLink!$FC$148","v":13},{"$f":"CntyDataLink!$FT$148","v":0},{"$f":"CntyDataLink!$FU$148","v":25}]
[null,null,null,"Rent Less Than 35% of HH Income",{"$f":"CntyDataLink!$P$156","v":3171},{"$f":"CntyDataLink!$Q$156","v":518.69355114556799},null,{"$f":"SUM(H56,H58)","v":31},{"$f":"SQRT((I56^2)+(I58^2))","v":63.174361888348344},{"$f":"SUM(J56,J58)","v":320},{"$f":"SQRT((K56^2)+(K58^2))","v":207.06520712084878},{"$f":"SUM(L56,L58)","v":393},{"$f":"SQRT((M56^2)+(M58^2))","v":237.46578700941322},374,243.47707194019245,836,{"$f":"SQRT((Q58^2)+(Q56^2))","v":221.13118278524175},{"$f":"SUM(R56,R58)","v":407},{"$f":"SQRT((S58^2)+(S56^2))","v":171.27463326482413},810,{"$f":"SQRT((U58^2)+(U56^2))","v":272.59860601257668}]
[null,null,null,"Rent 35% or More of HH Income",{"$f":"CntyDataLink!$R$156","v":1368},{"$f":"CntyDataLink!$S$156","v":338.00147928670373},null,{"$f":"CntyDataLink!$BR$148+CntyDataLink!$BT$148+CntyDataLink!$BV$148","v":169},{"$f":"SQRT((CntyDataLink!$BS$148^2)+(CntyDataLink!$BU$148^2)+(CntyDataLink!$BW$148^2))","v":136.65284482951682},{"$f":"CntyDataLink!$CJ$148+CntyDataLink!$CL$148+CntyDataLink!$CN$148","v":333},{"$f":"SQRT((CntyDataLink!$CK$148^2)+(CntyDataLink!$CM$148^2)+(CntyDataLink!$CO$148^2))","v":142.63940549511554},{"$f":"CntyDataLink!$DB$148+CntyDataLink!$DD$148+CntyDataLink!$DF$148","v":511},{"$f":"SQRT((CntyDataLink!$DC$148^2)+(CntyDataLink!$DE$148^2)+(CntyDataLink!$DG$148^2))","v":219.83175384825552},{"$f":"CntyDataLink!$DT$148+CntyDataLink!$DV$148+CntyDataLink!$DX$148","v":335},{"$f":"SQRT((CntyDataLink!$DU$148^2)+(CntyDataLink!$DW$148^2)+(CntyDataLink!$DY$148^2))","v":198.44142712649494},{"$f":"CntyDataLink!$EL$148+CntyDataLink!$EN$148+CntyDataLink!$EP$148","v":20},{"$f":"SQRT((CntyDataLink!$EM$148^2)+(CntyDataLink!$EO$148^2)+(CntyDataLink!$EQ$148^2))","v":46.36809247747852},{"$f":"CntyDataLink!$FD$148+CntyDataLink!$FF$148+CntyDataLink!$FH$148","v":0},{"$f":"SQRT((CntyDataLink!$FE$148^2)+(CntyDataLink!$FG$148^2)+(CntyDataLink!$FI$148^2))","v":43.301270189221931},{"$f":"CntyDataLink!$FV$148+CntyDataLink!$FX$148+CntyDataLink!$FZ$148","v":0},{"$f":"SQRT((CntyDataLink!$FW$148^2)+(CntyDataLink!$FY$148^2)+(CntyDataLink!$GA$148^2))","v":43.301270189221931}]
[null,null,null,"Rent 50% or More of HH Income",{"$f":"CntyDataLink!$T$156","v":822},{"$f":"CntyDataLink!$U$156","v":246},null,{"$f":"CntyDataLink!$BV$148","v":169},{"$f":"CntyDataLink!$BW$148","v":132},{"$f":"CntyDataLink!$CN$148","v":321},{"$f":"CntyDataLink!$CO$148","v":139},{"$f":"CntyDataLink!$DF$148","v":304},{"$f":"CntyDataLink!$DG$148","v":183},{"$f":"CntyDataLink!$DX$148","v":28},{"$f":"CntyDataLink!$DY$148","v":27},{"$f":"CntyDataLink!$EP$148","v":0},{"$f":"CntyDataLink!$EQ$148","v":25},{"$f":"CntyDataLink!$FH$148","v":0},{"$f":"CntyDataLink!$FI$148","v":25},{"$f":"CntyDataLink!$FZ$148","v":0},{"$f":"CntyDataLink!$GA$148","v":25}]
[null,null,null,"Percent not computed",{"$f":"CntyDataLink!$V$156","v":137},{"$f":"CntyDataLink!$W$156","v":94},null,{"$f":"CntyDataLink!$BX$148","v":81},{"$f":"CntyDataLink!$BY$148","v":76},{"$f":"CntyDataLink!$CP$148","v":19},{"$f":"CntyDataLink!$CQ$148","v":22},{"$f":"CntyDataLink!$DH$148","v":25},{"$f":"CntyDataLink!$DI$148","v":39},{"$f":"CntyDataLink!$DZ$148","v":0},{"$f":"CntyDataLink!$EA$148","v":25},{"$f":"CntyDataLink!$ER$148","v":0},{"$f":"CntyDataLink!$ES$148","v":25},{"$f":"CntyDataLink!$FJ$148","v":0},{"$f":"CntyDataLink!$FK$148","v":25},{"$f":"CntyDataLink!$GB$148","v":12},{"$f":"CntyDataLink!$GC148","v":20}]
[]
[]
[]
[null,null,null,"Percent of Households Paying ",null,null,null,"By Household Income"]
[null,null,null,{"$f":"D56","v":"Rent Less Than 30% of HH Income"},{"$f":"E56/E$52","v":0.58618477331052177},null,null,{"$f":"H56/H$52","v":0.1103202846975089},null,{"$f":"J56/J$52","v":0.3705357142857143},null,{"$f":"L56/L$52","v":0.32938643702906351},null,{"$f":"N56/N$52","v":0.25811001410437234},null,{"$f":"P56/P$52","v":0.89135514018691586},null,{"$f":"R56/R$52","v":0.98034398034398029},null,{"$f":"T56/T$52","v":0.98540145985401462}]
[null,null,null,{"$f":"D57","v":"Rent 30% or More of HH Income"},{"$f":"E57/E$52","v":0.38451668092386654},null,null,{"$f":"H57/H$52","v":0.60142348754448394},null,{"$f":"J57/J$52","v":0.60119047619047616},null,{"$f":"L57/L$52","v":0.64370290635091498},null,{"$f":"N57/N$52","v":0.7418899858956276},null,{"$f":"P57/P$52","v":0.10864485981308411},null,{"$f":"R57/R$52","v":1.9656019656019656E-2},null,{"$f":"T57/T$52","v":0}]
[null,null,null,{"$f":"D59","v":"Rent Less Than 35% of HH Income"},{"$f":"E59/E$52","v":0.67814371257485029},null,null,{"$f":"H59/H$52","v":0.1103202846975089},null,{"$f":"J59/J$52","v":0.47619047619047616},null,{"$f":"L59/L$52","v":0.42303552206673845},null,{"$f":"N59/N$52","v":0.52750352609308881},null,{"$f":"P59/P$52","v":0.97663551401869164},null,{"$f":"R59/R$52","v":1},null,{"$f":"T59/T$52","v":0.98540145985401462}]
[null,null,null,{"$f":"D60","v":"Rent 35% or More of HH Income"},{"$f":"E60/E$52","v":0.29255774165953807},null,null,{"$f":"H60/H$52","v":0.60142348754448394},null,{"$f":"J60/J$52","v":0.4955357142857143},null,{"$f":"L60/L$52","v":0.55005382131323999},null,{"$f":"N60/N$52","v":0.47249647390691113},null,{"$f":"P60/P$52","v":2.336448598130841E-2},null,{"$f":"R60/R$52","v":0},null,{"$f":"T60/T$52","v":0}]
[null,null,null,"Rent 50% or More of HH Income",{"$f":"E61/E$52","v":0.17579127459366981},null,null,{"$f":"H61/H$52","v":0.60142348754448394},null,{"$f":"J61/J$52","v":0.47767857142857145},null,{"$f":"L61/L$52","v":0.32723358449946177},null,{"$f":"N61/N$52","v":3.9492242595204514E-2},null,{"$f":"P61/P$52","v":0},null,{"$f":"R61/R$52","v":0},null,{"$f":"T61/T$52","v":0}]
[null,null,null,"Percent not computed",{"$f":"E62/E$52","v":2.9298545765611635E-2},null,null,{"$f":"H62/H$52","v":0.28825622775800713},null,{"$f":"J62/J$52","v":2.8273809523809524E-2},null,{"$f":"L62/L$52","v":2.6910656620021529E-2},null,{"$f":"N62/N$52","v":0},null,{"$f":"P62/P$52","v":0},null,{"$f":"R62/R$52","v":0},null,{"$f":"T62/T$52","v":1.4598540145985401E-2}]
[]
[]
[null,null,null,"Source:  2018-2022 American Community Survey Table B25070; B25074"]
[]
[null,null,null,{"$f":"D41","v":"Income in 2022 Inflation Adjusted Dollars"}]
[null,null,null,"Data from the American Community Survey are estimates"]
[]
[null,null,null,{"$f":"CntyDataLink!A70","v":"Rochester"}]
[null,null,null,{"$f":"D4","v":"RENTAL HOUSING COST CHARACTERISTICS"}]
[]
[null,null,null,"Rental Housing Costs"]
[]
[null,null,null,"Renter Occupied Housing Units By Gross Rent "]
[]
[null,null,null,null,"Units","Margin of Error"]
[null,null,{"$f":"CntyDataLink!E$69","v":"H62RntrOccHU"},"Specified Renter Occ Housing Units",{"$f":"CntyDataLink!$B$148","v":4676},{"$f":"CntyDataLink!$C$148","v":519}]
[null,null,{"$f":"CntyDataLink!F$69","v":"H62RntrOccHUwRent"},"Renter Occ. Housing Units w/ Cash Rent",{"$f":"CntyDataLink!$D$148","v":4614},{"$f":"CntyDataLink!$E$148","v":514}]
[]
[null,null,{"$f":"CntyDataLink!G$69","v":"H62ROHUGRent<100"},"Gross Rent","Units","Margin of Error 2018-2022"]
[null,null,{"$f":"CntyDataLink!H$69","v":"H62ROHUGRent100to149"},"Less than $100",{"$f":"CntyDataLink!$F$148","v":31},{"$f":"CntyDataLink!$G$148","v":46}]
[null,null,{"$f":"CntyDataLink!I$69","v":"H62ROHUGRent150to199"},"$100 to $149",{"$f":"CntyDataLink!$H$148","v":0},{"$f":"CntyDataLink!$I$148","v":25}]
[null,null,{"$f":"CntyDataLink!J$69","v":"H62ROHUGRent200to249"},"$150 to $199",{"$f":"CntyDataLink!J$148","v":0},{"$f":"CntyDataLink!$K$148","v":25}]
[null,null,{"$f":"CntyDataLink!K$69","v":"H62ROHUGRent250to299"},"$200 to $249",{"$f":"CntyDataLink!$L$148","v":181},{"$f":"CntyDataLink!$M$148","v":183}]
[null,null,{"$f":"CntyDataLink!L$69","v":"H62ROHUGRent300to349"},"$250 to $299",{"$f":"CntyDataLink!$N$148","v":106},{"$f":"CntyDataLink!$O$148","v":89}]
[null,null,{"$f":"CntyDataLink!M$69","v":"H62ROHUGRent350to399"},"$300 to $349",{"$f":"CntyDataLink!$P$148","v":79},{"$f":"CntyDataLink!$Q$148","v":53}]
[null,null,{"$f":"CntyDataLink!N$69","v":"H62ROHUGRent400to449"},"$350 to $399",{"$f":"CntyDataLink!$R$148","v":68},{"$f":"CntyDataLink!$S$148","v":67}]
[null,null,{"$f":"CntyDataLink!O$69","v":"H62ROHUGRent450to499"},"$400 to $449",{"$f":"CntyDataLink!$T$148","v":32},{"$f":"CntyDataLink!$U$148","v":30}]
[null,null,{"$f":"CntyDataLink!P$69","v":"H62ROHUGRent500to549"},"$450 to $499",{"$f":"CntyDataLink!$V$148","v":34},{"$f":"CntyDataLink!$W$148","v":26}]
[null,null,{"$f":"CntyDataLink!Q$69","v":"H62ROHUGRent550to599"},"$500 to $549",{"$f":"CntyDataLink!$X$148","v":26},{"$f":"CntyDataLink!$Y$148","v":32}]
[null,null,{"$f":"CntyDataLink!R$69","v":"H62ROHUGRent600to649"},"$550 to $599",{"$f":"CntyDataLink!$Z$148","v":50},{"$f":"CntyDataLink!$AA$148","v":49}]
[null,null,{"$f":"CntyDataLink!S$69","v":"H62ROHUGRent650to699"},"$600 to $649",{"$f":"CntyDataLink!$AB$148","v":64},{"$f":"CntyDataLink!$AC$148","v":63}]
[null,null,{"$f":"CntyDataLink!T$69","v":"H62ROHUGRent700to749"},"$650 to $699",{"$f":"CntyDataLink!$AD$148","v":237},{"$f":"CntyDataLink!$AE$148","v":220}]
[null,null,{"$f":"CntyDataLink!U$69","v":"H62ROHUGRent750to799"},"$700 to $749",{"$f":"CntyDataLink!$AF$148","v":92},{"$f":"CntyDataLink!$AG$148","v":98}]
[null,null,{"$f":"CntyDataLink!V$69","v":"H62ROHUGRent800to899"},"$750 to $799",{"$f":"CntyDataLink!$AH$148","v":74},{"$f":"CntyDataLink!$AI$148","v":66}]
[null,null,{"$f":"CntyDataLink!W$69","v":"H62ROHUGRent900to999"},"$800 to $899",{"$f":"CntyDataLink!$AJ$148","v":316},{"$f":"CntyDataLink!$AK$148","v":133}]
[null,null,{"$f":"CntyDataLink!X$69","v":"H62ROHUGRent1000to1249"},"$900 to $999",{"$f":"CntyDataLink!$AL$148","v":298},{"$f":"CntyDataLink!$AM$148","v":156}]
[null,null,{"$f":"CntyDataLink!Y$69","v":"H62ROHUGRent1250to1499"},"$1000 to $1249",{"$f":"CntyDataLink!$AN$148","v":1523},{"$f":"CntyDataLink!$AO$148","v":355}]
[null,null,{"$f":"CntyDataLink!Z$69","v":"H62ROHUGRent1500to1999"},"$1250 to $1499",{"$f":"CntyDataLink!$AP$148","v":526},{"$f":"CntyDataLink!$AQ$148","v":173}]
[null,null,{"$f":"CntyDataLink!AA$69","v":"H62ROHUGRent2000>"},"$1500 to $1999",{"$f":"CntyDataLink!$AR$148","v":740},{"$f":"CntyDataLink!$AS$148","v":268}]
[null,null,{"$f":"CntyDataLink!AB$69","v":"H62ROHUNoGRent"},"$2,000 to $2,499",{"$f":"CntyDataLink!$AT$148","v":113},{"$f":"CntyDataLink!$AU$148","v":80}]
[null,null,{"$f":"CntyDataLink!AC$69","v":"H63MedianGrossRnt"},"$2,500 to $2,999",{"$f":"CntyDataLink!$AV$148","v":24},{"$f":"CntyDataLink!$AW$148","v":40}]
[null,null,null,"$3,000 to $3,499",{"$f":"CntyDataLink!$AX$148","v":0},{"$f":"CntyDataLink!$AY$148","v":25}]
[null,null,null,"$3,500 or more",{"$f":"CntyDataLink!$AZ$148","v":0},{"$f":"CntyDataLink!$BA$148","v":25}]
[null,null,null,"Renter Occ. Housing Units w/ No Cash Rent",{"$f":"CntyDataLink!$BB$148","v":62},{"$f":"CntyDataLink!$BC$148","v":51}]
[]
[null,null,null,"Median Gross Rent",{"$f":"CntyDataLink!$BD$148","v":1102},{"$f":"CntyDataLink!$BE$148","v":44}]
[]
[]
[]
[]
[null,null,null,"Source: 2018-2022 American Community Survey Table B25063; B25064"]
[null,null,null,"Data from the American Community Survey are estimates"]

{"sheet":"RentalHousingCost-Prior5Yr","index":51,"n_rows":125,"n_cols":21,"rows_kept":125,"cut":false,"hidden":true,"merged":[]}
[]
[null,null,"HIDE THIS COLUMN",{"$f":"CntyDataLink!A70","v":"Rochester"}]
[]
[null,null,null,"RENTAL HOUSING COST CHARACTERISTICS"]
[]
[]
[]
[]
[]
[]
[]
[]
[]
[]
[]
[]
[]
[]
[]
[]
[]
[]
[]
[]
[]
[]
[]
[]
[]
[]
[]
[]
[]
[]
[]
[]
[]
[]
[null,null,null,"Source:  2013-2017 American Community Survey Table B25074"]
[]
[null,null,null,"Income in 2017 Inflation Adjusted Dollars"]
[null,null,null,"Data from the American Community Survey are estimates"]
[null,null,null,{"$f":"CntyDataLinkPrior5YearEstimates!A120","v":"Rochester"}]
[]
[null,null,null,{"$f":"D4","v":"RENTAL HOUSING COST CHARACTERISTICS"}]
[]
[null,null,null,"Renter Households by "]
[null,null,null,"Gross Rent as a Percent of 2017 Household Income"]
[null,null,null,null,null,null,"By Household Income"]
[null,null,{"$f":"CntyDataLinkPrior5YearEstimates!AO$69","v":"H73RenterOccHU"},null,"Specified Renter Occ Housing Units",{"$f":"\"Margin of Error Renter Occupied Units\"","v":"Margin of Error Renter Occupied Units"},null,"Less than $10,000",{"$f":"\"Margin of Error \"&H50","v":"Margin of Error Less than $10,000"},"$10,000 to $19,999",{"$f":"\"Margin of Error \"&J50","v":"Margin of Error $10,000 to $19,999"},"$20,000 to $34,999",{"$f":"\"Margin of Error \"&L50","v":"Margin of Error $20,000 to $34,999"},"$35,000 to $49,999",{"$f":"\"Margin of Error \"&N50","v":"Margin of Error $35,000 to $49,999"},"$50,000 to $74,999",{"$f":"\"Margin of Error \"&P50","v":"Margin of Error $50,000 to $74,999"},"$75,000 to $99,999",{"$f":"\"Margin of Error \"&R50","v":"Margin of Error $75,000 to $99,999"},"$100,000 or More",{"$f":"\"Margin of Error \"&T50","v":"Margin of Error $100,000 or More"}]
[]
[null,null,null,"All Renter Households",{"$f":"CntyDataLinkPrior5YearEstimates!$B$156","v":4504},{"$f":"CntyDataLinkPrior5YearEstimates!$C$156","v":373},null,{"$f":"CntyDataLinkPrior5YearEstimates!$BH$148","v":459},{"$f":"CntyDataLinkPrior5YearEstimates!$BI$148","v":138},{"$f":"CntyDataLinkPrior5YearEstimates!$BZ$148","v":1019},{"$f":"CntyDataLinkPrior5YearEstimates!$CA$148","v":245},{"$f":"CntyDataLinkPrior5YearEstimates!$CR$148","v":945},{"$f":"CntyDataLinkPrior5YearEstimates!$CS$148","v":234},{"$f":"CntyDataLinkPrior5YearEstimates!$DJ$148","v":822},{"$f":"CntyDataLinkPrior5YearEstimates!$DK$148","v":213},{"$f":"CntyDataLinkPrior5YearEstimates!$EB$148","v":638},{"$f":"CntyDataLinkPrior5YearEstimates!$EC$148","v":225},{"$f":"CntyDataLinkPrior5YearEstimates!$ET$148","v":320},{"$f":"CntyDataLinkPrior5YearEstimates!$EU$148","v":111},{"$f":"CntyDataLinkPrior5YearEstimates!$FL$148","v":301},{"$f":"CntyDataLinkPrior5YearEstimates!$FM$148","v":138}]
[null,null,null,"Rent Less than 20% of HH Income",{"$f":"CntyDataLinkPrior5YearEstimates!$D$156","v":962},{"$f":"CntyDataLinkPrior5YearEstimates!$E$156","v":289.39073931278449},null,{"$f":"CntyDataLinkPrior5YearEstimates!$BJ$148","v":0},{"$f":"CntyDataLinkPrior5YearEstimates!$BK$148","v":23},{"$f":"CntyDataLinkPrior5YearEstimates!$CB$148","v":69},{"$f":"CntyDataLinkPrior5YearEstimates!$CC$148","v":76},{"$f":"CntyDataLinkPrior5YearEstimates!$CT$148","v":13},{"$f":"CntyDataLinkPrior5YearEstimates!$CU$148","v":23},{"$f":"CntyDataLinkPrior5YearEstimates!$DL$148","v":126},{"$f":"CntyDataLinkPrior5YearEstimates!$DM$148","v":105},{"$f":"CntyDataLinkPrior5YearEstimates!$ED$148","v":255},{"$f":"CntyDataLinkPrior5YearEstimates!$EE$148","v":170},{"$f":"CntyDataLinkPrior5YearEstimates!$EV$148","v":198},{"$f":"CntyDataLinkPrior5YearEstimates!$EW$148","v":101},{"$f":"CntyDataLinkPrior5YearEstimates!$FN$148","v":301},{"$f":"CntyDataLinkPrior5YearEstimates!$FO$148","v":138}]
[null,null,null,"Rent 20% to 24.9% of HH Income",{"$f":"CntyDataLinkPrior5YearEstimates!$F$156","v":490},{"$f":"CntyDataLinkPrior5YearEstimates!$G$156","v":158},null,{"$f":"CntyDataLinkPrior5YearEstimates!$BL$148","v":13},{"$f":"CntyDataLinkPrior5YearEstimates!$BM$148","v":22},{"$f":"CntyDataLinkPrior5YearEstimates!$CD$148","v":29},{"$f":"CntyDataLinkPrior5YearEstimates!$CE$148","v":33},{"$f":"CntyDataLinkPrior5YearEstimates!$CV$148","v":57},{"$f":"CntyDataLinkPrior5YearEstimates!$CW$148","v":72},{"$f":"CntyDataLinkPrior5YearEstimates!$DN$148","v":119},{"$f":"CntyDataLinkPrior5YearEstimates!$DO$148","v":84},{"$f":"CntyDataLinkPrior5YearEstimates!$EF$148","v":225},{"$f":"CntyDataLinkPrior5YearEstimates!$EG$148","v":117},{"$f":"CntyDataLinkPrior5YearEstimates!$EX$148","v":47},{"$f":"CntyDataLinkPrior5YearEstimates!$EY$148","v":47},{"$f":"CntyDataLinkPrior5YearEstimates!$FP$148","v":0},{"$f":"CntyDataLinkPrior5YearEstimates!$FQ$148","v":23}]
[null,null,null,"Rent 25% to 29.9% of HH Income",{"$f":"CntyDataLinkPrior5YearEstimates!$H$156","v":715},{"$f":"CntyDataLinkPrior5YearEstimates!$I$156","v":219},null,{"$f":"CntyDataLinkPrior5YearEstimates!$BN$148","v":0},{"$f":"CntyDataLinkPrior5YearEstimates!$BO$148","v":23},{"$f":"CntyDataLinkPrior5YearEstimates!$CF$148","v":162},{"$f":"CntyDataLinkPrior5YearEstimates!$CG$148","v":116},{"$f":"CntyDataLinkPrior5YearEstimates!$CX$148","v":120},{"$f":"CntyDataLinkPrior5YearEstimates!$CY$148","v":92},{"$f":"CntyDataLinkPrior5YearEstimates!$DP$148","v":298},{"$f":"CntyDataLinkPrior5YearEstimates!$DQ$148","v":138},{"$f":"CntyDataLinkPrior5YearEstimates!$EH$148","v":78},{"$f":"CntyDataLinkPrior5YearEstimates!$EI$148","v":41},{"$f":"CntyDataLinkPrior5YearEstimates!$EZ$148","v":57},{"$f":"CntyDataLinkPrior5YearEstimates!$FA$148","v":51},{"$f":"CntyDataLinkPrior5YearEstimates!$FR$148","v":0},{"$f":"CntyDataLinkPrior5YearEstimates!$FS$148","v":23}]
[null,null,null,"Rent Less Than 30% of HH Income",{"$f":"CntyDataLinkPrior5YearEstimates!$J$156","v":2167},{"$f":"CntyDataLinkPrior5YearEstimates!$K$156","v":395.81814005929539},null,{"$f":"SUM(H53:H55)","v":13},{"$f":"SQRT((I53^2)+(I54^2)+(I55^2))","v":39.268307832143719},{"$f":"SUM(J53:J55)","v":260},{"$f":"SQRT((K53^2)+(K54^2)+(K55^2))","v":142.55174499107332},{"$f":"SUM(L53:L55)","v":190},{"$f":"SQRT((M53^2)+(M54^2)+(M55^2))","v":119.06720791217035},{"$f":"SUM(N53:N55)","v":543},{"$f":"SQRT((O53^2)+(O54^2)+(O55^2))","v":192.67848867997694},{"$f":"SUM(P53:P55)","v":558},{"$f":"SQRT((Q53^2)+(Q54^2)+(Q55^2))","v":210.40437257813821},{"$f":"SUM(R53:R55)","v":302},{"$f":"SQRT((S53^2)+(S54^2)+(S55^2))","v":122.51938622112013},{"$f":"SUM(T53:T55)","v":301},{"$f":"SQRT((U53^2)+(U54^2)+(U55^2))","v":141.78152206828645}]
[null,null,null,"Rent 30% or More of HH Income",{"$f":"CntyDataLinkPrior5YearEstimates!$L$156","v":2154},{"$f":"CntyDataLinkPrior5YearEstimates!$M$156","v":350.45256455046808},null,{"$f":"H60+H58","v":414},{"$f":"SQRT((I58^2)+(I60^2))","v":146.37964339347189},{"$f":"J60+J58","v":727},{"$f":"SQRT((K58^2)+(K60^2))","v":217.5017241310974},{"$f":"L60+L58","v":755},{"$f":"SQRT((M58^2)+(M60^2))","v":202.24984548819808},{"$f":"N60+N58","v":229},{"$f":"SQRT((O58^2)+(O60^2))","v":116.57615536635268},29,{"$f":"SQRT((Q58^2)+(Q60^2))","v":53.693575034635195},{"$f":"R60+R58","v":0},{"$f":"SQRT((S58^2)+(S60^2))","v":46},0,{"$f":"SQRT((U58^2)+(U60^2))","v":46}]
[null,null,null,"Rent 30% to 34.9% of HH Income",{"$f":"CntyDataLinkPrior5YearEstimates!$N$156","v":337},{"$f":"CntyDataLinkPrior5YearEstimates!$O$156","v":136},null,{"$f":"CntyDataLinkPrior5YearEstimates!$BP$148","v":0},{"$f":"CntyDataLinkPrior5YearEstimates!$BQ$148","v":23},{"$f":"CntyDataLinkPrior5YearEstimates!$CH$148","v":70},{"$f":"CntyDataLinkPrior5YearEstimates!$CI$148","v":53},{"$f":"CntyDataLinkPrior5YearEstimates!$CZ$148","v":107},{"$f":"CntyDataLinkPrior5YearEstimates!$DA$148","v":89},{"$f":"CntyDataLinkPrior5YearEstimates!$DR$148","v":131},{"$f":"CntyDataLinkPrior5YearEstimates!$DS$148","v":89},{"$f":"CntyDataLinkPrior5YearEstimates!$EJ$148","v":29},{"$f":"CntyDataLinkPrior5YearEstimates!$EK$148","v":36},{"$f":"CntyDataLinkPrior5YearEstimates!$FB$148","v":0},{"$f":"CntyDataLinkPrior5YearEstimates!$FC$148","v":23},{"$f":"CntyDataLinkPrior5YearEstimates!$FT$148","v":0},{"$f":"CntyDataLinkPrior5YearEstimates!$FU$148","v":23}]
[null,null,null,"Rent Less Than 35% of HH Income",{"$f":"CntyDataLinkPrior5YearEstimates!$P$156","v":2504},{"$f":"CntyDataLinkPrior5YearEstimates!$Q$156","v":418.53076350490653},null,{"$f":"SUM(H56,H58)","v":13},{"$f":"SQRT((I56^2)+(I58^2))","v":45.508241011931013},{"$f":"SUM(J56,J58)","v":330},{"$f":"SQRT((K56^2)+(K58^2))","v":152.0855022676389},{"$f":"SUM(L56,L58)","v":297},{"$f":"SQRT((M56^2)+(M58^2))","v":148.65396059304979},674,281.67848867997691,587,{"$f":"SQRT((Q58^2)+(Q56^2))","v":213.46194040156198},{"$f":"SUM(R56,R58)","v":302},{"$f":"SQRT((S58^2)+(S56^2))","v":124.65953633797938},301,{"$f":"SQRT((U58^2)+(U56^2))","v":143.63495396316316}]
[null,null,null,"Rent 35% or More of HH Income",{"$f":"CntyDataLinkPrior5YearEstimates!$R$156","v":1817},{"$f":"CntyDataLinkPrior5YearEstimates!$S$156","v":322.9876158616612},null,{"$f":"CntyDataLinkPrior5YearEstimates!$BR$148+CntyDataLinkPrior5YearEstimates!$BT$148+CntyDataLinkPrior5YearEstimates!$BV$148","v":414},{"$f":"SQRT((CntyDataLinkPrior5YearEstimates!$BS$148^2)+(CntyDataLinkPrior5YearEstimates!$BU$148^2)+(CntyDataLinkPrior5YearEstimates!$BW$148^2))","v":144.56140563788111},{"$f":"CntyDataLinkPrior5YearEstimates!$CJ$148+CntyDataLinkPrior5YearEstimates!$CL$148+CntyDataLinkPrior5YearEstimates!$CN$148","v":657},{"$f":"SQRT((CntyDataLinkPrior5YearEstimates!$CK$148^2)+(CntyDataLinkPrior5YearEstimates!$CM$148^2)+(CntyDataLinkPrior5YearEstimates!$CO$148^2))","v":210.94549058939373},{"$f":"CntyDataLinkPrior5YearEstimates!$DB$148+CntyDataLinkPrior5YearEstimates!$DD$148+CntyDataLinkPrior5YearEstimates!$DF$148","v":648},{"$f":"SQRT((CntyDataLinkPrior5YearEstimates!$DC$148^2)+(CntyDataLinkPrior5YearEstimates!$DE$148^2)+(CntyDataLinkPrior5YearEstimates!$DG$148^2))","v":181.61497735594386},{"$f":"CntyDataLinkPrior5YearEstimates!$DT$148+CntyDataLinkPrior5YearEstimates!$DV$148+CntyDataLinkPrior5YearEstimates!$DX$148","v":98},{"$f":"SQRT((CntyDataLinkPrior5YearEstimates!$DU$148^2)+(CntyDataLinkPrior5YearEstimates!$DW$148^2)+(CntyDataLinkPrior5YearEstimates!$DY$148^2))","v":75.292761936324268},{"$f":"CntyDataLinkPrior5YearEstimates!$EL$148+CntyDataLinkPrior5YearEstimates!$EN$148+CntyDataLinkPrior5YearEstimates!$EP$148","v":0},{"$f":"SQRT((CntyDataLinkPrior5YearEstimates!$EM$148^2)+(CntyDataLinkPrior5YearEstimates!$EO$148^2)+(CntyDataLinkPrior5YearEstimates!$EQ$148^2))","v":39.837168574084181},{"$f":"CntyDataLinkPrior5YearEstimates!$FD$148+CntyDataLinkPrior5YearEstimates!$FF$148+CntyDataLinkPrior5YearEstimates!$FH$148","v":0},{"$f":"SQRT((CntyDataLinkPrior5YearEstimates!$FE$148^2)+(CntyDataLinkPrior5YearEstimates!$FG$148^2)+(CntyDataLinkPrior5YearEstimates!$FI$148^2))","v":39.837168574084181},{"$f":"CntyDataLinkPrior5YearEstimates!$FV$148+CntyDataLinkPrior5YearEstimates!$FX$148+CntyDataLinkPrior5YearEstimates!$FZ$148","v":0},{"$f":"SQRT((CntyDataLinkPrior5YearEstimates!$FW$148^2)+(CntyDataLinkPrior5YearEstimates!$FY$148^2)+(CntyDataLinkPrior5YearEstimates!$GA$148^2))","v":39.837168574084181}]
[null,null,null,"Rent 50% or More of HH Income",{"$f":"CntyDataLinkPrior5YearEstimates!$T$156","v":1226},{"$f":"CntyDataLinkPrior5YearEstimates!$U$156","v":283},null,{"$f":"CntyDataLinkPrior5YearEstimates!$BV$148","v":388},{"$f":"CntyDataLinkPrior5YearEstimates!$BW$148","v":137},{"$f":"CntyDataLinkPrior5YearEstimates!$CN$148","v":599},{"$f":"CntyDataLinkPrior5YearEstimates!$CO$148","v":207},{"$f":"CntyDataLinkPrior5YearEstimates!$DF$148","v":239},{"$f":"CntyDataLinkPrior5YearEstimates!$DG$148","v":122},{"$f":"CntyDataLinkPrior5YearEstimates!$DX$148","v":0},{"$f":"CntyDataLinkPrior5YearEstimates!$DY$148","v":23},{"$f":"CntyDataLinkPrior5YearEstimates!$EP$148","v":0},{"$f":"CntyDataLinkPrior5YearEstimates!$EQ$148","v":23},{"$f":"CntyDataLinkPrior5YearEstimates!$FH$148","v":0},{"$f":"CntyDataLinkPrior5YearEstimates!$FI$148","v":23},{"$f":"CntyDataLinkPrior5YearEstimates!$FZ$148","v":0},{"$f":"CntyDataLinkPrior5YearEstimates!$GA$148","v":23}]
[null,null,null,"Percent not computed",{"$f":"CntyDataLinkPrior5YearEstimates!$V$156","v":183},{"$f":"CntyDataLinkPrior5YearEstimates!$W$156","v":89},null,{"$f":"CntyDataLinkPrior5YearEstimates!$BX$148","v":32},{"$f":"CntyDataLinkPrior5YearEstimates!$BY$148","v":47},{"$f":"CntyDataLinkPrior5YearEstimates!$CP$148","v":32},{"$f":"CntyDataLinkPrior5YearEstimates!$CQ$148","v":25},{"$f":"CntyDataLinkPrior5YearEstimates!$DH$148","v":0},{"$f":"CntyDataLinkPrior5YearEstimates!$DI$148","v":23},{"$f":"CntyDataLinkPrior5YearEstimates!$DZ$148","v":50},{"$f":"CntyDataLinkPrior5YearEstimates!$EA$148","v":43},{"$f":"CntyDataLinkPrior5YearEstimates!$ER$148","v":51},{"$f":"CntyDataLinkPrior5YearEstimates!$ES$148","v":49},{"$f":"CntyDataLinkPrior5YearEstimates!$FJ$148","v":18},{"$f":"CntyDataLinkPrior5YearEstimates!$FK$148","v":28},{"$f":"CntyDataLinkPrior5YearEstimates!$GB$148","v":0},{"$f":"CntyDataLinkPrior5YearEstimates!$GC148","v":23}]
[]
[]
[null,null,null,"Percent of Households Paying ",null,null,null,"By Household Income"]
[null,null,null,{"$f":"D56","v":"Rent Less Than 30% of HH Income"},{"$f":"E56/E$52","v":0.48112788632326819},null,null,{"$f":"H56/H$52","v":2.8322440087145968E-2},null,{"$f":"J56/J$52","v":0.25515210991167814},null,{"$f":"L56/L$52","v":0.20105820105820105},null,{"$f":"N56/N$52","v":0.66058394160583944},null,{"$f":"P56/P$52","v":0.87460815047021945},null,{"$f":"R56/R$52","v":0.94374999999999998},null,{"$f":"T56/T$52","v":1}]
[null,null,null,{"$f":"D57","v":"Rent 30% or More of HH Income"},{"$f":"E57/E$52","v":0.47824156305506216},null,null,{"$f":"H57/H$52","v":0.90196078431372551},null,{"$f":"J57/J$52","v":0.71344455348380764},null,{"$f":"L57/L$52","v":0.79894179894179895},null,{"$f":"N57/N$52","v":0.27858880778588807},null,{"$f":"P57/P$52","v":4.5454545454545456E-2},null,{"$f":"R57/R$52","v":0},null,{"$f":"T57/T$52","v":0}]
[null,null,null,{"$f":"D59","v":"Rent Less Than 35% of HH Income"},{"$f":"E59/E$52","v":0.55595026642984013},null,null,{"$f":"H59/H$52","v":2.8322440087145968E-2},null,{"$f":"J59/J$52","v":0.32384690873405297},null,{"$f":"L59/L$52","v":0.31428571428571428},null,{"$f":"N59/N$52","v":0.81995133819951338},null,{"$f":"P59/P$52","v":0.92006269592476486},null,{"$f":"R59/R$52","v":0.94374999999999998},null,{"$f":"T59/T$52","v":1}]
[null,null,null,{"$f":"D60","v":"Rent 35% or More of HH Income"},{"$f":"E60/E$52","v":0.40341918294849022},null,null,{"$f":"H60/H$52","v":0.90196078431372551},null,{"$f":"J60/J$52","v":0.64474975466143281},null,{"$f":"L60/L$52","v":0.68571428571428572},null,{"$f":"N60/N$52","v":0.11922141119221411},null,{"$f":"P60/P$52","v":0},null,{"$f":"R60/R$52","v":0},null,{"$f":"T60/T$52","v":0}]
[null,null,null,"Rent 50% or More of HH Income",{"$f":"E61/E$52","v":0.27220248667850799},null,null,{"$f":"H61/H$52","v":0.84531590413943358},null,{"$f":"J61/J$52","v":0.58783120706575076},null,{"$f":"L61/L$52","v":0.25291005291005292},null,{"$f":"N61/N$52","v":0},null,{"$f":"P61/P$52","v":0},null,{"$f":"R61/R$52","v":0},null,{"$f":"T61/T$52","v":0}]
[null,null,null,"Percent not computed",{"$f":"E62/E$52","v":4.0630550621669627E-2},null,null,{"$f":"H62/H$52","v":6.9716775599128547E-2},null,{"$f":"J62/J$52","v":3.1403336604514227E-2},null,{"$f":"L62/L$52","v":0},null,{"$f":"N62/N$52","v":6.0827250608272508E-2},null,{"$f":"P62/P$52","v":7.9937304075235111E-2},null,{"$f":"R62/R$52","v":5.6250000000000001E-2},null,{"$f":"T62/T$52","v":0}]
[]
[]
[null,null,null,"Source:  2013-2017 American Community Survey Table B25070; B25074"]
[]
[null,null,null,{"$f":"D41","v":"Income in 2017 Inflation Adjusted Dollars"}]
[null,null,null,"Data from the American Community Survey are estimates"]
[]
[]
[]
[null,null,null,{"$f":"CntyDataLink!A70","v":"Rochester"}]
[null,null,null,{"$f":"D4","v":"RENTAL HOUSING COST CHARACTERISTICS"}]
[]
[null,null,null,"Rental Housing Costs"]
[]
[null,null,null,"Renter Occupied Housing Units By Gross Rent "]
[]
[null,null,null,null,"Units","Margin of Error"]
[null,null,{"$f":"CntyDataLink!E$69","v":"H62RntrOccHU"},"Specified Renter Occ Housing Units",{"$f":"CntyDataLinkPrior5YearEstimates!$B$148","v":4504},{"$f":"CntyDataLinkPrior5YearEstimates!$C$148","v":373}]
[null,null,{"$f":"CntyDataLink!F$69","v":"H62RntrOccHUwRent"},"Renter Occ. Housing Units w/ Cash Rent",{"$f":"CntyDataLinkPrior5YearEstimates!$D$148","v":4353},{"$f":"CntyDataLinkPrior5YearEstimates!$E$148","v":367}]
[]
[null,null,{"$f":"CntyDataLink!G$69","v":"H62ROHUGRent<100"},"Gross Rent","Units","Margin of Error 2013-2017"]
[null,null,{"$f":"CntyDataLink!H$69","v":"H62ROHUGRent100to149"},"Less than $100",{"$f":"CntyDataLinkPrior5YearEstimates!$F$148","v":0},{"$f":"CntyDataLinkPrior5YearEstimates!$G$148","v":23}]
[null,null,{"$f":"CntyDataLink!I$69","v":"H62ROHUGRent150to199"},"$100 to $149",{"$f":"CntyDataLinkPrior5YearEstimates!$H$148","v":12},{"$f":"CntyDataLinkPrior5YearEstimates!$I$148","v":19}]
[null,null,{"$f":"CntyDataLink!J$69","v":"H62ROHUGRent200to249"},"$150 to $199",{"$f":"CntyDataLinkPrior5YearEstimates!J$148","v":25},{"$f":"CntyDataLinkPrior5YearEstimates!$K$148","v":29}]
[null,null,{"$f":"CntyDataLink!K$69","v":"H62ROHUGRent250to299"},"$200 to $249",{"$f":"CntyDataLinkPrior5YearEstimates!$L$148","v":75},{"$f":"CntyDataLinkPrior5YearEstimates!$M$148","v":78}]
[null,null,{"$f":"CntyDataLink!L$69","v":"H62ROHUGRent300to349"},"$250 to $299",{"$f":"CntyDataLinkPrior5YearEstimates!$N$148","v":103},{"$f":"CntyDataLinkPrior5YearEstimates!$O$148","v":97}]
[null,null,{"$f":"CntyDataLink!M$69","v":"H62ROHUGRent350to399"},"$300 to $349",{"$f":"CntyDataLinkPrior5YearEstimates!$P$148","v":77},{"$f":"CntyDataLinkPrior5YearEstimates!$Q$148","v":49}]
[null,null,{"$f":"CntyDataLink!N$69","v":"H62ROHUGRent400to449"},"$350 to $399",{"$f":"CntyDataLinkPrior5YearEstimates!$R$148","v":95},{"$f":"CntyDataLinkPrior5YearEstimates!$S$148","v":64}]
[null,null,{"$f":"CntyDataLink!O$69","v":"H62ROHUGRent450to499"},"$400 to $449",{"$f":"CntyDataLinkPrior5YearEstimates!$T$148","v":120},{"$f":"CntyDataLinkPrior5YearEstimates!$U$148","v":99}]
[null,null,{"$f":"CntyDataLink!P$69","v":"H62ROHUGRent500to549"},"$450 to $499",{"$f":"CntyDataLinkPrior5YearEstimates!$V$148","v":44},{"$f":"CntyDataLinkPrior5YearEstimates!$W$148","v":63}]
[null,null,{"$f":"CntyDataLink!Q$69","v":"H62ROHUGRent550to599"},"$500 to $549",{"$f":"CntyDataLinkPrior5YearEstimates!$X$148","v":103},{"$f":"CntyDataLinkPrior5YearEstimates!$Y$148","v":77}]
[null,null,{"$f":"CntyDataLink!R$69","v":"H62ROHUGRent600to649"},"$550 to $599",{"$f":"CntyDataLinkPrior5YearEstimates!$Z$148","v":16},{"$f":"CntyDataLinkPrior5YearEstimates!$AA$148","v":17}]
[null,null,{"$f":"CntyDataLink!S$69","v":"H62ROHUGRent650to699"},"$600 to $649",{"$f":"CntyDataLinkPrior5YearEstimates!$AB$148","v":154},{"$f":"CntyDataLinkPrior5YearEstimates!$AC$148","v":97}]
[null,null,{"$f":"CntyDataLink!T$69","v":"H62ROHUGRent700to749"},"$650 to $699",{"$f":"CntyDataLinkPrior5YearEstimates!$AD$148","v":133},{"$f":"CntyDataLinkPrior5YearEstimates!$AE$148","v":96}]
[null,null,{"$f":"CntyDataLink!U$69","v":"H62ROHUGRent750to799"},"$700 to $749",{"$f":"CntyDataLinkPrior5YearEstimates!$AF$148","v":178},{"$f":"CntyDataLinkPrior5YearEstimates!$AG$148","v":114}]
[null,null,{"$f":"CntyDataLink!V$69","v":"H62ROHUGRent800to899"},"$750 to $799",{"$f":"CntyDataLinkPrior5YearEstimates!$AH$148","v":194},{"$f":"CntyDataLinkPrior5YearEstimates!$AI$148","v":93}]
[null,null,{"$f":"CntyDataLink!W$69","v":"H62ROHUGRent900to999"},"$800 to $899",{"$f":"CntyDataLinkPrior5YearEstimates!$AJ$148","v":630},{"$f":"CntyDataLinkPrior5YearEstimates!$AK$148","v":194}]
[null,null,{"$f":"CntyDataLink!X$69","v":"H62ROHUGRent1000to1249"},"$900 to $999",{"$f":"CntyDataLinkPrior5YearEstimates!$AL$148","v":674},{"$f":"CntyDataLinkPrior5YearEstimates!$AM$148","v":204}]
[null,null,{"$f":"CntyDataLink!Y$69","v":"H62ROHUGRent1250to1499"},"$1000 to $1249",{"$f":"CntyDataLinkPrior5YearEstimates!$AN$148","v":1009},{"$f":"CntyDataLinkPrior5YearEstimates!$AO$148","v":266}]
[null,null,{"$f":"CntyDataLink!Z$69","v":"H62ROHUGRent1500to1999"},"$1250 to $1499",{"$f":"CntyDataLinkPrior5YearEstimates!$AP$148","v":421},{"$f":"CntyDataLinkPrior5YearEstimates!$AQ$148","v":169}]
[null,null,{"$f":"CntyDataLink!AA$69","v":"H62ROHUGRent2000>"},"$1500 to $1999",{"$f":"CntyDataLinkPrior5YearEstimates!$AR$148","v":275},{"$f":"CntyDataLinkPrior5YearEstimates!$AS$148","v":131}]
[null,null,{"$f":"CntyDataLink!AB$69","v":"H62ROHUNoGRent"},"$2,000 to $2,499",{"$f":"CntyDataLinkPrior5YearEstimates!$AT$148","v":15},{"$f":"CntyDataLinkPrior5YearEstimates!$AU$148","v":23}]
[null,null,{"$f":"CntyDataLink!AC$69","v":"H63MedianGrossRnt"},"$2,500 to $2,999",{"$f":"CntyDataLinkPrior5YearEstimates!$AV$148","v":0},{"$f":"CntyDataLinkPrior5YearEstimates!$AW$148","v":23}]
[null,null,null,"$3,000 to $3,499",{"$f":"CntyDataLinkPrior5YearEstimates!$AX$148","v":0},{"$f":"CntyDataLinkPrior5YearEstimates!$AY$148","v":23}]
[null,null,null,"$3,500 or more",{"$f":"CntyDataLinkPrior5YearEstimates!$AZ$148","v":0},{"$f":"CntyDataLinkPrior5YearEstimates!$BA$148","v":23}]
[null,null,null,"Renter Occ. Housing Units w/ No Cash Rent",{"$f":"CntyDataLinkPrior5YearEstimates!$BB$148","v":151},{"$f":"CntyDataLinkPrior5YearEstimates!$BC$148","v":75}]
[]
[null,null,null,"Median Gross Rent",{"$f":"CntyDataLinkPrior5YearEstimates!$BD$148","v":932},{"$f":"CntyDataLinkPrior5YearEstimates!$BE$148","v":40}]
[]
[]
[]
[]
[null,null,null,"Source: 2013-2017 American Community Survey Table B25063; B25064"]
[null,null,null,"Data from the American Community Survey are estimates"]

{"sheet":"RentalHousingCost-Prior10Yr","index":52,"n_rows":125,"n_cols":21,"rows_kept":125,"cut":false,"hidden":true,"merged":[]}
[]
[null,null,"HIDE THIS COLUMN",{"$f":"CntyDataLink!A70","v":"Rochester"}]
[]
[null,null,null,"RENTAL HOUSING COST CHARACTERISTICS"]
[]
[]
[]
[]
[]
[]
[]
[]
[]
[]
[]
[]
[]
[]
[]
[]
[]
[]
[]
[]
[]
[]
[]
[]
[]
[]
[]
[]
[]
[]
[]
[]
[]
[]
[null,null,null,"Source:  2008-2012 American Community Survey Table B25074"]
[]
[null,null,null,"Income in 2012 Inflation Adjusted Dollars"]
[null,null,null,"Data from the American Community Survey are estimates"]
[null,null,null,{"$f":"CntyDataLinkPrior10YearEstimate!A120","v":"Rochester"}]
[]
[null,null,null,{"$f":"D4","v":"RENTAL HOUSING COST CHARACTERISTICS"}]
[]
[null,null,null,"Renter Households by "]
[null,null,null,"Gross Rent as a Percent of 2012 Household Income"]
[null,null,null,null,null,null,"By Household Income"]
[null,null,{"$f":"CntyDataLinkPrior10YearEstimate!AO$69","v":"H73RenterOccHU"},null,"Specified Renter Occ Housing Units",{"$f":"\"Margin of Error Renter Occupied Units\"","v":"Margin of Error Renter Occupied Units"},null,"Less than $10,000",{"$f":"\"Margin of Error \"&H50","v":"Margin of Error Less than $10,000"},"$10,000 to $19,999",{"$f":"\"Margin of Error \"&J50","v":"Margin of Error $10,000 to $19,999"},"$20,000 to $34,999",{"$f":"\"Margin of Error \"&L50","v":"Margin of Error $20,000 to $34,999"},"$35,000 to $49,999",{"$f":"\"Margin of Error \"&N50","v":"Margin of Error $35,000 to $49,999"},"$50,000 to $74,999",{"$f":"\"Margin of Error \"&P50","v":"Margin of Error $50,000 to $74,999"},"$75,000 to $99,999",{"$f":"\"Margin of Error \"&R50","v":"Margin of Error $75,000 to $99,999"},"$100,000 or More",{"$f":"\"Margin of Error \"&T50","v":"Margin of Error $100,000 or More"}]
[]
[null,null,null,"All Renter Households",{"$f":"CntyDataLinkPrior10YearEstimate!$B$156","v":3657},{"$f":"CntyDataLinkPrior10YearEstimate!$C$156","v":386},null,{"$f":"CntyDataLinkPrior10YearEstimate!$BH$148","v":331},{"$f":"CntyDataLinkPrior10YearEstimate!$BI$148","v":129},{"$f":"CntyDataLinkPrior10YearEstimate!$BZ$148","v":698},{"$f":"CntyDataLinkPrior10YearEstimate!$CA$148","v":212},{"$f":"CntyDataLinkPrior10YearEstimate!$CR$148","v":986},{"$f":"CntyDataLinkPrior10YearEstimate!$CS$148","v":251},{"$f":"CntyDataLinkPrior10YearEstimate!$DJ$148","v":818},{"$f":"CntyDataLinkPrior10YearEstimate!$DK$148","v":231},{"$f":"CntyDataLinkPrior10YearEstimate!$EB$148","v":511},{"$f":"CntyDataLinkPrior10YearEstimate!$EC$148","v":208},{"$f":"CntyDataLinkPrior10YearEstimate!$ET$148","v":244},{"$f":"CntyDataLinkPrior10YearEstimate!$EU$148","v":131},{"$f":"CntyDataLinkPrior10YearEstimate!$FL$148","v":69},{"$f":"CntyDataLinkPrior10YearEstimate!$FM$148","v":50}]
[null,null,null,"Rent Less than 20% of HH Income",{"$f":"CntyDataLinkPrior10YearEstimate!$D$156","v":536},{"$f":"CntyDataLinkPrior10YearEstimate!$E$156","v":181.13806888669205},null,{"$f":"CntyDataLinkPrior10YearEstimate!$BJ$148","v":0},{"$f":"CntyDataLinkPrior10YearEstimate!$BK$148","v":85},{"$f":"CntyDataLinkPrior10YearEstimate!$CB$148","v":21},{"$f":"CntyDataLinkPrior10YearEstimate!$CC$148","v":23},{"$f":"CntyDataLinkPrior10YearEstimate!$CT$148","v":28},{"$f":"CntyDataLinkPrior10YearEstimate!$CU$148","v":43},{"$f":"CntyDataLinkPrior10YearEstimate!$DL$148","v":153},{"$f":"CntyDataLinkPrior10YearEstimate!$DM$148","v":119},{"$f":"CntyDataLinkPrior10YearEstimate!$ED$148","v":57},{"$f":"CntyDataLinkPrior10YearEstimate!$EE$148","v":49},{"$f":"CntyDataLinkPrior10YearEstimate!$EV$148","v":218},{"$f":"CntyDataLinkPrior10YearEstimate!$EW$148","v":127},{"$f":"CntyDataLinkPrior10YearEstimate!$FN$148","v":59},{"$f":"CntyDataLinkPrior10YearEstimate!$FO$148","v":46}]
[null,null,null,"Rent 20% to 24.9% of HH Income",{"$f":"CntyDataLinkPrior10YearEstimate!$F$156","v":403},{"$f":"CntyDataLinkPrior10YearEstimate!$G$156","v":145},null,{"$f":"CntyDataLinkPrior10YearEstimate!$BL$148","v":0},{"$f":"CntyDataLinkPrior10YearEstimate!$BM$148","v":85},{"$f":"CntyDataLinkPrior10YearEstimate!$CD$148","v":41},{"$f":"CntyDataLinkPrior10YearEstimate!$CE$148","v":31},{"$f":"CntyDataLinkPrior10YearEstimate!$CV$148","v":15},{"$f":"CntyDataLinkPrior10YearEstimate!$CW$148","v":25},{"$f":"CntyDataLinkPrior10YearEstimate!$DN$148","v":114},{"$f":"CntyDataLinkPrior10YearEstimate!$DO$148","v":60},{"$f":"CntyDataLinkPrior10YearEstimate!$EF$148","v":233},{"$f":"CntyDataLinkPrior10YearEstimate!$EG$148","v":134},{"$f":"CntyDataLinkPrior10YearEstimate!$EX$148","v":0},{"$f":"CntyDataLinkPrior10YearEstimate!$EY$148","v":85},{"$f":"CntyDataLinkPrior10YearEstimate!$FP$148","v":0},{"$f":"CntyDataLinkPrior10YearEstimate!$FQ$148","v":85}]
[null,null,null,"Rent 25% to 29.9% of HH Income",{"$f":"CntyDataLinkPrior10YearEstimate!$H$156","v":596},{"$f":"CntyDataLinkPrior10YearEstimate!$I$156","v":188},null,{"$f":"CntyDataLinkPrior10YearEstimate!$BN$148","v":30},{"$f":"CntyDataLinkPrior10YearEstimate!$BO$148","v":31},{"$f":"CntyDataLinkPrior10YearEstimate!$CF$148","v":125},{"$f":"CntyDataLinkPrior10YearEstimate!$CG$148","v":72},{"$f":"CntyDataLinkPrior10YearEstimate!$CX$148","v":76},{"$f":"CntyDataLinkPrior10YearEstimate!$CY$148","v":60},{"$f":"CntyDataLinkPrior10YearEstimate!$DP$148","v":213},{"$f":"CntyDataLinkPrior10YearEstimate!$DQ$148","v":116},{"$f":"CntyDataLinkPrior10YearEstimate!$EH$148","v":135},{"$f":"CntyDataLinkPrior10YearEstimate!$EI$148","v":115},{"$f":"CntyDataLinkPrior10YearEstimate!$EZ$148","v":17},{"$f":"CntyDataLinkPrior10YearEstimate!$FA$148","v":28},{"$f":"CntyDataLinkPrior10YearEstimate!$FR$148","v":0},{"$f":"CntyDataLinkPrior10YearEstimate!$FS$148","v":85}]
[null,null,null,"Rent Less Than 30% of HH Income",{"$f":"CntyDataLinkPrior10YearEstimate!$J$156","v":1535},{"$f":"CntyDataLinkPrior10YearEstimate!$K$156","v":298.63020610782161},null,{"$f":"SUM(H53:H55)","v":30},{"$f":"SQRT((I53^2)+(I54^2)+(I55^2))","v":124.14104881142256},{"$f":"SUM(J53:J55)","v":187},{"$f":"SQRT((K53^2)+(K54^2)+(K55^2))","v":81.694553062000409},{"$f":"SUM(L53:L55)","v":119},{"$f":"SQRT((M53^2)+(M54^2)+(M55^2))","v":77.935871073594853},{"$f":"SUM(N53:N55)","v":480},{"$f":"SQRT((O53^2)+(O54^2)+(O55^2))","v":176.68333254724396},{"$f":"SUM(P53:P55)","v":425},{"$f":"SQRT((Q53^2)+(Q54^2)+(Q55^2))","v":183.25392219540623},{"$f":"SUM(R53:R55)","v":235},{"$f":"SQRT((S53^2)+(S54^2)+(S55^2))","v":155.36408851468863},{"$f":"SUM(T53:T55)","v":59},{"$f":"SQRT((U53^2)+(U54^2)+(U55^2))","v":128.70897404610139}]
[null,null,null,"Rent 30% or More of HH Income",{"$f":"CntyDataLinkPrior10YearEstimate!$L$156","v":1953},{"$f":"CntyDataLinkPrior10YearEstimate!$M$156","v":337.40924705763473},null,{"$f":"H60+H58","v":214},{"$f":"SQRT((I58^2)+(I60^2))","v":139.01438774457844},{"$f":"J60+J58","v":484},{"$f":"SQRT((K58^2)+(K60^2))","v":193.66207682455541},{"$f":"L60+L58","v":867},{"$f":"SQRT((M58^2)+(M60^2))","v":247.63077353188558},{"$f":"N60+N58","v":300},{"$f":"SQRT((O58^2)+(O60^2))","v":161.99382704288456},79,{"$f":"SQRT((Q58^2)+(Q60^2))","v":77.491935064237495},{"$f":"R60+R58","v":9},{"$f":"SQRT((S58^2)+(S60^2))","v":86.145226217127089},0,{"$f":"SQRT((U58^2)+(U60^2))","v":120.20815280171308}]
[null,null,null,"Rent 30% to 34.9% of HH Income",{"$f":"CntyDataLinkPrior10YearEstimate!$N$156","v":211},{"$f":"CntyDataLinkPrior10YearEstimate!$O$156","v":100},null,{"$f":"CntyDataLinkPrior10YearEstimate!$BP$148","v":0},{"$f":"CntyDataLinkPrior10YearEstimate!$BQ$148","v":85},{"$f":"CntyDataLinkPrior10YearEstimate!$CH$148","v":27},{"$f":"CntyDataLinkPrior10YearEstimate!$CI$148","v":32},{"$f":"CntyDataLinkPrior10YearEstimate!$CZ$148","v":94},{"$f":"CntyDataLinkPrior10YearEstimate!$DA$148","v":61},{"$f":"CntyDataLinkPrior10YearEstimate!$DR$148","v":25},{"$f":"CntyDataLinkPrior10YearEstimate!$DS$148","v":31},{"$f":"CntyDataLinkPrior10YearEstimate!$EJ$148","v":56},{"$f":"CntyDataLinkPrior10YearEstimate!$EK$148","v":73},{"$f":"CntyDataLinkPrior10YearEstimate!$FB$148","v":9},{"$f":"CntyDataLinkPrior10YearEstimate!$FC$148","v":14},{"$f":"CntyDataLinkPrior10YearEstimate!$FT$148","v":0},{"$f":"CntyDataLinkPrior10YearEstimate!$FU$148","v":85}]
[null,null,null,"Rent Less Than 35% of HH Income",{"$f":"CntyDataLinkPrior10YearEstimate!$P$156","v":1746},{"$f":"CntyDataLinkPrior10YearEstimate!$Q$156","v":314.92856332825704},null,{"$f":"SUM(H56,H58)","v":30},{"$f":"SQRT((I56^2)+(I58^2))","v":150.45265035884213},{"$f":"SUM(J56,J58)","v":214},{"$f":"SQRT((K56^2)+(K58^2))","v":87.738247076175398},{"$f":"SUM(L56,L58)","v":213},{"$f":"SQRT((M56^2)+(M58^2))","v":98.969692330531174},505,207.68333254724396,481,{"$f":"SQRT((Q58^2)+(Q56^2))","v":197.25871336901699},{"$f":"SUM(R56,R58)","v":244},{"$f":"SQRT((S58^2)+(S56^2))","v":155.99358961188119},59,{"$f":"SQRT((U58^2)+(U56^2))","v":154.2433142797444}]
[null,null,null,"Rent 35% or More of HH Income",{"$f":"CntyDataLinkPrior10YearEstimate!$R$156","v":1742},{"$f":"CntyDataLinkPrior10YearEstimate!$S$156","v":322.24990302558666},null,{"$f":"CntyDataLinkPrior10YearEstimate!$BR$148+CntyDataLinkPrior10YearEstimate!$BT$148+CntyDataLinkPrior10YearEstimate!$BV$148","v":214},{"$f":"SQRT((CntyDataLinkPrior10YearEstimate!$BS$148^2)+(CntyDataLinkPrior10YearEstimate!$BU$148^2)+(CntyDataLinkPrior10YearEstimate!$BW$148^2))","v":110},{"$f":"CntyDataLinkPrior10YearEstimate!$CJ$148+CntyDataLinkPrior10YearEstimate!$CL$148+CntyDataLinkPrior10YearEstimate!$CN$148","v":457},{"$f":"SQRT((CntyDataLinkPrior10YearEstimate!$CK$148^2)+(CntyDataLinkPrior10YearEstimate!$CM$148^2)+(CntyDataLinkPrior10YearEstimate!$CO$148^2))","v":191},{"$f":"CntyDataLinkPrior10YearEstimate!$DB$148+CntyDataLinkPrior10YearEstimate!$DD$148+CntyDataLinkPrior10YearEstimate!$DF$148","v":773},{"$f":"SQRT((CntyDataLinkPrior10YearEstimate!$DC$148^2)+(CntyDataLinkPrior10YearEstimate!$DE$148^2)+(CntyDataLinkPrior10YearEstimate!$DG$148^2))","v":240},{"$f":"CntyDataLinkPrior10YearEstimate!$DT$148+CntyDataLinkPrior10YearEstimate!$DV$148+CntyDataLinkPrior10YearEstimate!$DX$148","v":275},{"$f":"SQRT((CntyDataLinkPrior10YearEstimate!$DU$148^2)+(CntyDataLinkPrior10YearEstimate!$DW$148^2)+(CntyDataLinkPrior10YearEstimate!$DY$148^2))","v":159},{"$f":"CntyDataLinkPrior10YearEstimate!$EL$148+CntyDataLinkPrior10YearEstimate!$EN$148+CntyDataLinkPrior10YearEstimate!$EP$148","v":23},{"$f":"SQRT((CntyDataLinkPrior10YearEstimate!$EM$148^2)+(CntyDataLinkPrior10YearEstimate!$EO$148^2)+(CntyDataLinkPrior10YearEstimate!$EQ$148^2))","v":26},{"$f":"CntyDataLinkPrior10YearEstimate!$FD$148+CntyDataLinkPrior10YearEstimate!$FF$148+CntyDataLinkPrior10YearEstimate!$FH$148","v":0},{"$f":"SQRT((CntyDataLinkPrior10YearEstimate!$FE$148^2)+(CntyDataLinkPrior10YearEstimate!$FG$148^2)+(CntyDataLinkPrior10YearEstimate!$FI$148^2))","v":85},{"$f":"CntyDataLinkPrior10YearEstimate!$FV$148+CntyDataLinkPrior10YearEstimate!$FX$148+CntyDataLinkPrior10YearEstimate!$FZ$148","v":0},{"$f":"SQRT((CntyDataLinkPrior10YearEstimate!$FW$148^2)+(CntyDataLinkPrior10YearEstimate!$FY$148^2)+(CntyDataLinkPrior10YearEstimate!$GA$148^2))","v":85}]
[null,null,null,"Rent 50% or More of HH Income",{"$f":"CntyDataLinkPrior10YearEstimate!$T$156","v":965},{"$f":"CntyDataLinkPrior10YearEstimate!$U$156","v":209},null,{"$f":"CntyDataLinkPrior10YearEstimate!$BV$148","v":0},{"$f":"CntyDataLinkPrior10YearEstimate!$BW$148","v":0},{"$f":"CntyDataLinkPrior10YearEstimate!$CN$148","v":0},{"$f":"CntyDataLinkPrior10YearEstimate!$CO$148","v":0},{"$f":"CntyDataLinkPrior10YearEstimate!$DF$148","v":0},{"$f":"CntyDataLinkPrior10YearEstimate!$DG$148","v":0},{"$f":"CntyDataLinkPrior10YearEstimate!$DX$148","v":0},{"$f":"CntyDataLinkPrior10YearEstimate!$DY$148","v":0},{"$f":"CntyDataLinkPrior10YearEstimate!$EP$148","v":0},{"$f":"CntyDataLinkPrior10YearEstimate!$EQ$148","v":0},{"$f":"CntyDataLinkPrior10YearEstimate!$FH$148","v":0},{"$f":"CntyDataLinkPrior10YearEstimate!$FI$148","v":0},{"$f":"CntyDataLinkPrior10YearEstimate!$FZ$148","v":0},{"$f":"CntyDataLinkPrior10YearEstimate!$GA$148","v":0}]
[null,null,null,"Percent not computed",{"$f":"CntyDataLinkPrior10YearEstimate!$V$156","v":169},{"$f":"CntyDataLinkPrior10YearEstimate!$W$156","v":85},null,{"$f":"CntyDataLinkPrior10YearEstimate!$BX$148","v":87},{"$f":"CntyDataLinkPrior10YearEstimate!$BY$148","v":73},{"$f":"CntyDataLinkPrior10YearEstimate!$CP$148","v":27},{"$f":"CntyDataLinkPrior10YearEstimate!$CQ$148","v":31},{"$f":"CntyDataLinkPrior10YearEstimate!$DH$148","v":0},{"$f":"CntyDataLinkPrior10YearEstimate!$DI$148","v":85},{"$f":"CntyDataLinkPrior10YearEstimate!$DZ$148","v":38},{"$f":"CntyDataLinkPrior10YearEstimate!$EA$148","v":40},{"$f":"CntyDataLinkPrior10YearEstimate!$ER$148","v":7},{"$f":"CntyDataLinkPrior10YearEstimate!$ES$148","v":12},{"$f":"CntyDataLinkPrior10YearEstimate!$FJ$148","v":0},{"$f":"CntyDataLinkPrior10YearEstimate!$FK$148","v":85},{"$f":"CntyDataLinkPrior10YearEstimate!$GB$148","v":10},{"$f":"CntyDataLinkPrior10YearEstimate!$GC148","v":17}]
[]
[]
[null,null,null,"Percent of Households Paying ",null,null,null,"By Household Income"]
[null,null,null,{"$f":"D56","v":"Rent Less Than 30% of HH Income"},{"$f":"E56/E$52","v":0.4197429587093246},null,null,{"$f":"H56/H$52","v":9.0634441087613288E-2},null,{"$f":"J56/J$52","v":0.26790830945558741},null,{"$f":"L56/L$52","v":0.1206896551724138},null,{"$f":"N56/N$52","v":0.58679706601466997},null,{"$f":"P56/P$52","v":0.83170254403131116},null,{"$f":"R56/R$52","v":0.96311475409836067},null,{"$f":"T56/T$52","v":0.85507246376811596}]
[null,null,null,{"$f":"D57","v":"Rent 30% or More of HH Income"},{"$f":"E57/E$52","v":0.53404429860541425},null,null,{"$f":"H57/H$52","v":0.6465256797583081},null,{"$f":"J57/J$52","v":0.69340974212034379},null,{"$f":"L57/L$52","v":0.87931034482758619},null,{"$f":"N57/N$52","v":0.36674816625916873},null,{"$f":"P57/P$52","v":0.15459882583170254},null,{"$f":"R57/R$52","v":3.6885245901639344E-2},null,{"$f":"T57/T$52","v":0}]
[null,null,null,{"$f":"D59","v":"Rent Less Than 35% of HH Income"},{"$f":"E59/E$52","v":0.4774405250205086},null,null,{"$f":"H59/H$52","v":9.0634441087613288E-2},null,{"$f":"J59/J$52","v":0.30659025787965616},null,{"$f":"L59/L$52","v":0.21602434077079108},null,{"$f":"N59/N$52","v":0.61735941320293397},null,{"$f":"P59/P$52","v":0.94129158512720157},null,{"$f":"R59/R$52","v":1},null,{"$f":"T59/T$52","v":0.85507246376811596}]
[null,null,null,{"$f":"D60","v":"Rent 35% or More of HH Income"},{"$f":"E60/E$52","v":0.47634673229423025},null,null,{"$f":"H60/H$52","v":0.6465256797583081},null,{"$f":"J60/J$52","v":0.6547277936962751},null,{"$f":"L60/L$52","v":0.78397565922920898},null,{"$f":"N60/N$52","v":0.33618581907090467},null,{"$f":"P60/P$52","v":4.5009784735812131E-2},null,{"$f":"R60/R$52","v":0},null,{"$f":"T60/T$52","v":0}]
[null,null,null,"Rent 50% or More of HH Income",{"$f":"E61/E$52","v":0.26387749521465681},null,null,{"$f":"H61/H$52","v":0},null,{"$f":"J61/J$52","v":0},null,{"$f":"L61/L$52","v":0},null,{"$f":"N61/N$52","v":0},null,{"$f":"P61/P$52","v":0},null,{"$f":"R61/R$52","v":0},null,{"$f":"T61/T$52","v":0}]
[null,null,null,"Percent not computed",{"$f":"E62/E$52","v":4.6212742685261141E-2},null,null,{"$f":"H62/H$52","v":0.26283987915407853},null,{"$f":"J62/J$52","v":3.8681948424068767E-2},null,{"$f":"L62/L$52","v":0},null,{"$f":"N62/N$52","v":4.6454767726161368E-2},null,{"$f":"P62/P$52","v":1.3698630136986301E-2},null,{"$f":"R62/R$52","v":0},null,{"$f":"T62/T$52","v":0.14492753623188406}]
[]
[]
[null,null,null,"Source:  2008-2012 American Community Survey Table B25070; B25074"]
[]
[null,null,null,{"$f":"D41","v":"Income in 2012 Inflation Adjusted Dollars"}]
[null,null,null,"Data from the American Community Survey are estimates"]
[]
[]
[]
[null,null,null,{"$f":"CntyDataLink!A70","v":"Rochester"}]
[null,null,null,{"$f":"D4","v":"RENTAL HOUSING COST CHARACTERISTICS"}]
[]
[null,null,null,"Rental Housing Costs"]
[]
[null,null,null,"Renter Occupied Housing Units By Gross Rent "]
[]
[null,null,null,null,"Units","Margin of Error"]
[null,null,{"$f":"CntyDataLink!E$69","v":"H62RntrOccHU"},"Specified Renter Occ Housing Units",{"$f":"CntyDataLinkPrior10YearEstimate!$B$148","v":3657},{"$f":"CntyDataLinkPrior10YearEstimate!$C$148","v":386}]
[null,null,{"$f":"CntyDataLink!F$69","v":"H62RntrOccHUwRent"},"Renter Occ. Housing Units w/ Cash Rent",{"$f":"CntyDataLinkPrior10YearEstimate!$D$148","v":3555},{"$f":"CntyDataLinkPrior10YearEstimate!$E$148","v":384}]
[]
[null,null,{"$f":"CntyDataLink!G$69","v":"H62ROHUGRent<100"},"Gross Rent","Units","Margin of Error 2008-2012"]
[null,null,{"$f":"CntyDataLink!H$69","v":"H62ROHUGRent100to149"},"Less than $100",{"$f":"CntyDataLinkPrior10YearEstimate!$F$148","v":0},{"$f":"CntyDataLinkPrior10YearEstimate!$G$148","v":85}]
[null,null,{"$f":"CntyDataLink!I$69","v":"H62ROHUGRent150to199"},"$100 to $149",{"$f":"CntyDataLinkPrior10YearEstimate!$H$148","v":21},{"$f":"CntyDataLinkPrior10YearEstimate!$I$148","v":23}]
[null,null,{"$f":"CntyDataLink!J$69","v":"H62ROHUGRent200to249"},"$150 to $199",{"$f":"CntyDataLinkPrior10YearEstimate!J$148","v":18},{"$f":"CntyDataLinkPrior10YearEstimate!$K$148","v":30}]
[null,null,{"$f":"CntyDataLink!K$69","v":"H62ROHUGRent250to299"},"$200 to $249",{"$f":"CntyDataLinkPrior10YearEstimate!$L$148","v":95},{"$f":"CntyDataLinkPrior10YearEstimate!$M$148","v":64}]
[null,null,{"$f":"CntyDataLink!L$69","v":"H62ROHUGRent300to349"},"$250 to $299",{"$f":"CntyDataLinkPrior10YearEstimate!$N$148","v":91},{"$f":"CntyDataLinkPrior10YearEstimate!$O$148","v":74}]
[null,null,{"$f":"CntyDataLink!M$69","v":"H62ROHUGRent350to399"},"$300 to $349",{"$f":"CntyDataLinkPrior10YearEstimate!$P$148","v":62},{"$f":"CntyDataLinkPrior10YearEstimate!$Q$148","v":52}]
[null,null,{"$f":"CntyDataLink!N$69","v":"H62ROHUGRent400to449"},"$350 to $399",{"$f":"CntyDataLinkPrior10YearEstimate!$R$148","v":58},{"$f":"CntyDataLinkPrior10YearEstimate!$S$148","v":50}]
[null,null,{"$f":"CntyDataLink!O$69","v":"H62ROHUGRent450to499"},"$400 to $449",{"$f":"CntyDataLinkPrior10YearEstimate!$T$148","v":98},{"$f":"CntyDataLinkPrior10YearEstimate!$U$148","v":71}]
[null,null,{"$f":"CntyDataLink!P$69","v":"H62ROHUGRent500to549"},"$450 to $499",{"$f":"CntyDataLinkPrior10YearEstimate!$V$148","v":11},{"$f":"CntyDataLinkPrior10YearEstimate!$W$148","v":17}]
[null,null,{"$f":"CntyDataLink!Q$69","v":"H62ROHUGRent550to599"},"$500 to $549",{"$f":"CntyDataLinkPrior10YearEstimate!$X$148","v":73},{"$f":"CntyDataLinkPrior10YearEstimate!$Y$148","v":77}]
[null,null,{"$f":"CntyDataLink!R$69","v":"H62ROHUGRent600to649"},"$550 to $599",{"$f":"CntyDataLinkPrior10YearEstimate!$Z$148","v":52},{"$f":"CntyDataLinkPrior10YearEstimate!$AA$148","v":47}]
[null,null,{"$f":"CntyDataLink!S$69","v":"H62ROHUGRent650to699"},"$600 to $649",{"$f":"CntyDataLinkPrior10YearEstimate!$AB$148","v":66},{"$f":"CntyDataLinkPrior10YearEstimate!$AC$148","v":64}]
[null,null,{"$f":"CntyDataLink!T$69","v":"H62ROHUGRent700to749"},"$650 to $699",{"$f":"CntyDataLinkPrior10YearEstimate!$AD$148","v":71},{"$f":"CntyDataLinkPrior10YearEstimate!$AE$148","v":68}]
[null,null,{"$f":"CntyDataLink!U$69","v":"H62ROHUGRent750to799"},"$700 to $749",{"$f":"CntyDataLinkPrior10YearEstimate!$AF$148","v":61},{"$f":"CntyDataLinkPrior10YearEstimate!$AG$148","v":52}]
[null,null,{"$f":"CntyDataLink!V$69","v":"H62ROHUGRent800to899"},"$750 to $799",{"$f":"CntyDataLinkPrior10YearEstimate!$AH$148","v":262},{"$f":"CntyDataLinkPrior10YearEstimate!$AI$148","v":120}]
[null,null,{"$f":"CntyDataLink!W$69","v":"H62ROHUGRent900to999"},"$800 to $899",{"$f":"CntyDataLinkPrior10YearEstimate!$AJ$148","v":393},{"$f":"CntyDataLinkPrior10YearEstimate!$AK$148","v":135}]
[null,null,{"$f":"CntyDataLink!X$69","v":"H62ROHUGRent1000to1249"},"$900 to $999",{"$f":"CntyDataLinkPrior10YearEstimate!$AL$148","v":662},{"$f":"CntyDataLinkPrior10YearEstimate!$AM$148","v":228}]
[null,null,{"$f":"CntyDataLink!Y$69","v":"H62ROHUGRent1250to1499"},"$1000 to $1249",{"$f":"CntyDataLinkPrior10YearEstimate!$AN$148","v":891},{"$f":"CntyDataLinkPrior10YearEstimate!$AO$148","v":266}]
[null,null,{"$f":"CntyDataLink!Z$69","v":"H62ROHUGRent1500to1999"},"$1250 to $1499",{"$f":"CntyDataLinkPrior10YearEstimate!$AP$148","v":284},{"$f":"CntyDataLinkPrior10YearEstimate!$AQ$148","v":119}]
[null,null,{"$f":"CntyDataLink!AA$69","v":"H62ROHUGRent2000>"},"$1500 to $1999",{"$f":"CntyDataLinkPrior10YearEstimate!$AR$148","v":256},{"$f":"CntyDataLinkPrior10YearEstimate!$AS$148","v":136}]
[null,null,{"$f":"CntyDataLink!AB$69","v":"H62ROHUNoGRent"},"$2,000 to $2,499",{"$f":"CntyDataLinkPrior10YearEstimate!$AT$148","v":30},{"$f":"CntyDataLinkPrior10YearEstimate!$AU$148","v":36}]
[null,null,{"$f":"CntyDataLink!AC$69","v":"H63MedianGrossRnt"},"$2,500 to $2,999",{"$f":"CntyDataLinkPrior10YearEstimate!$AV$148","v":0},{"$f":"CntyDataLinkPrior10YearEstimate!$AW$148","v":0}]
[null,null,null,"$3,000 to $3,499",{"$f":"CntyDataLinkPrior10YearEstimate!$AX$148","v":0},{"$f":"CntyDataLinkPrior10YearEstimate!$AY$148","v":0}]
[null,null,null,"$3,500 or more",{"$f":"CntyDataLinkPrior10YearEstimate!$AZ$148","v":0},{"$f":"CntyDataLinkPrior10YearEstimate!$BA$148","v":0}]
[null,null,null,"Renter Occ. Housing Units w/ No Cash Rent",{"$f":"CntyDataLinkPrior10YearEstimate!$BB$148","v":102},{"$f":"CntyDataLinkPrior10YearEstimate!$BC$148","v":60}]
[]
[null,null,null,"Median Gross Rent",{"$f":"CntyDataLinkPrior10YearEstimate!$BD$148","v":909},{"$f":"CntyDataLinkPrior10YearEstimate!$BE$148","v":41}]
[]
[]
[]
[]
[null,null,null,"Source: 2008-2012 American Community Survey Table B25063; B25064"]
[null,null,null,"Data from the American Community Survey are estimates"]

{"sheet":"ACS_Table_B25063_&_B25064","index":53,"n_rows":158,"n_cols":28,"rows_kept":158,"cut":false,"hidden":true,"merged":[]}
[null,"B25063. GROSS RENT"]
[null,"Universe:  RENTER-OCCUPIED HOUSING UNITS"]
[null,"Data Set: 2018-2022 American Community Survey 5-Year Estimates"]
[]
[null,null,"Barrington",null,"Dover",null,"Durham",null,"Farmington",null,"Lee",null,"Madbury",null,"Middleton",null,"Milton",null,"New Durham",null,"Rochester",null,"Rollinsford",null,"Somersworth",null,"Strafford"]
[null,null,"Estimate","Margin Of Error","Estimate","Margin Of Error","Estimate","Margin Of Error","Estimate","Margin Of Error","Estimate","Margin Of Error","Estimate","Margin Of Error","Estimate","Margin Of Error","Estimate","Margin Of Error","Estimate","Margin Of Error","Estimate","Margin Of Error","Estimate","Margin Of Error","Estimate","Margin Of Error","Estimate","Margin Of Error"]
[null,"Total:",327,147,7021,521,1143,175,887,218,167,125,130,59,34,20,212,93,93,60,4609,426,202,72,1844,355,97,56]
[null,"With cash rent:",295,145,6929,518,1076,180,777,204,152,124,110,54,26,18,202,92,73,51,4540,426,162,62,1844,355,97,56]
[null,"Less than $100",0,17,0,25,0,19,0,17,0,12,0,12,0,12,0,12,0,12,0,25,32,34,16,25,0,12]
[null,"$100 to $149",0,17,0,25,0,19,0,17,0,12,0,12,0,12,0,12,0,12,0,25,0,12,0,19,0,12]
[null,"$150 to $199",0,17,8,12,0,19,0,17,0,12,0,12,0,12,0,12,0,12,24,35,0,12,0,19,0,12]
[null,"$200 to $249",0,17,108,120,12,20,24,38,0,12,0,12,0,12,0,12,0,12,136,175,0,12,98,113,0,12]
[null,"$250 to $299",0,17,22,35,22,25,9,14,0,12,0,12,0,12,0,12,0,12,51,57,0,12,0,19,0,12]
[null,"$300 to $349",0,17,43,38,3,5,19,33,0,12,0,12,0,12,0,12,0,12,69,54,0,12,0,19,0,12]
[null,"$350 to $399",0,17,115,69,0,19,38,50,0,12,0,12,0,12,0,12,0,12,80,77,0,12,22,38,0,12]
[null,"$400 to $449",0,17,28,36,24,33,0,17,0,12,0,12,0,12,0,12,0,12,80,83,0,12,18,23,0,12]
[null,"$450 to $499",0,17,19,32,20,27,0,17,0,12,0,12,7,10,0,12,0,12,34,33,0,12,14,25,0,12]
[null,"$500 to $549",0,17,98,136,0,19,0,17,0,12,0,12,3,4,0,12,0,12,47,51,0,12,12,20,0,12]
[null,"$550 to $599",0,17,0,25,3,5,0,17,0,12,2,4,0,12,0,12,0,12,0,25,0,12,12,20,0,12]
[null,"$600 to $649",0,17,55,50,0,19,0,17,0,12,0,12,0,12,0,12,0,12,44,46,0,12,0,19,0,12]
[null,"$650 to $699",0,17,70,60,0,19,41,47,0,12,5,8,0,12,0,12,0,12,14,16,5,7,0,19,0,12]
[null,"$700 to $749",0,17,43,53,13,22,0,17,16,24,0,12,0,12,15,24,0,12,297,248,0,12,0,19,0,12]
[null,"$750 to $799",0,17,23,28,0,19,0,17,0,12,0,12,0,12,32,41,0,12,41,33,7,10,13,22,0,12]
[null,"$800 to $899",0,17,210,109,0,19,72,77,0,12,2,5,0,12,15,23,0,12,243,153,9,10,0,19,0,12]
[null,"$900 to $999",30,50,276,152,96,46,162,154,50,75,26,36,0,12,20,25,0,12,254,137,15,23,128,105,9,14]
[null,"$1,000 to $1,249",53,79,1451,313,242,99,199,120,17,28,3,4,0,12,54,36,20,24,1319,315,10,7,431,258,0,12]
[null,"$1,250 to $1,499",0,17,1202,281,184,109,67,61,51,80,3,5,8,12,0,12,30,42,586,180,37,33,491,281,8,12]
[null,"$1,500 to $1,999",186,111,1944,366,153,103,146,120,18,29,51,32,8,10,36,38,18,12,957,250,28,28,529,224,74,49]
[null,"$2,000 to $2,499",26,41,841,308,123,114,0,17,0,12,10,9,0,12,30,40,0,12,227,119,19,22,60,66,6,9]
[null,"$2,500 to $2,999",0,17,166,111,80,71,0,17,0,12,8,9,0,12,0,12,5,7,29,38,0,12,0,19,0,12]
[null,"$3,000 to $3,499",0,17,123,84,68,57,0,17,0,12,0,12,0,12,0,12,0,12,8,12,0,12,0,19,0,12]
[null,"$3,500 or more",0,17,84,78,33,28,0,17,0,12,0,12,0,12,0,12,0,12,0,25,0,12,0,19,0,12]
[null,"No cash rent",32,36,92,80,67,57,110,98,15,23,20,26,8,8,10,17,20,27,69,53,40,40,0,19,0,12]
[]
[]
[]
[null,"B25064. MEDIAN GROSS RENT (DOLLARS)"]
[null,"Universe:  RENTER-OCCUPIED HOUSING UNITS PAYING CASH RENT"]
[null,"Data Set: 2018-2022 American Community Survey 5-Year Estimates"]
[null,{"$f":"RentalHousingCost!D41","v":"Income in 2022 Inflation Adjusted Dollars"}]
[null,null,"Barrington",null,"Dover",null,"Durham",null,"Farmington",null,"Lee",null,"Madbury",null,"Middleton",null,"Milton",null,"New Durham",null,"Rochester",null,"Rollinsford",null,"Somersworth",null,"Strafford"]
[null,null,"Estimate","Margin Of Error","Estimate","Margin Of Error","Estimate","Margin Of Error","Estimate","Margin Of Error","Estimate","Margin Of Error","Estimate","Margin Of Error","Estimate","Margin Of Error","Estimate","Margin Of Error","Estimate","Margin Of Error","Estimate","Margin Of Error","Estimate","Margin Of Error","Estimate","Margin Of Error","Estimate","Margin Of Error"]
[null,"Median gross rent",1673,161,1436,68,1390,160,1030,142,1147,457,1637,251,1344,1032,1088,193,1388,152,1162,52,1270,427,1330,116,1713,77]
[]
[]
[]
[]
[]
[]
[]
[]
[]
[]
[]
[]
[]
[]
[]
[]
[]
[]
[]
[]
[]
[]
[]
[]
[]
[]
[null,"B25063. GROSS RENT"]
[null,"Universe:  RENTER-OCCUPIED HOUSING UNITS"]
[null,"Data Set: 2013-2017 American Community Survey 5-Year Estimates"]
[]
[null,null,"Barrington",null,"Dover",null,"Durham",null,"Farmington",null,"Lee",null,"Madbury",null,"Middleton",null,"Milton",null,"New Durham",null,"Rochester",null,"Rollinsford",null,"Somersworth",null,"Strafford"]
[null,null,"Estimate","Margin Of Error","Estimate","Margin Of Error","Estimate","Margin Of Error","Estimate","Margin Of Error","Estimate","Margin Of Error","Estimate","Margin Of Error","Estimate","Margin Of Error","Estimate","Margin Of Error","Estimate","Margin Of Error","Estimate","Margin Of Error","Estimate","Margin Of Error","Estimate","Margin Of Error","Estimate","Margin Of Error"]
[null,"Total:",270,160,6173,387,1492,188,869,263,302,146,83,29,96,35,212,74,74,47,4529,385,283,71,2170,282,145,52]
[null,"With cash rent:",221,130,6125,395,1468,186,835,267,302,146,80,29,88,34,192,70,66,45,4382,373,283,71,2154,287,139,52]
[null,"Less than $100",14,25,0,24,0,18,0,16,0,11,0,11,0,11,0,11,0,11,8,12,0,11,0,18,0,11]
[null,"$100 to $149",0,16,55,86,9,16,56,87,0,11,0,11,0,11,0,11,0,11,0,24,0,11,0,18,0,11]
[null,"$150 to $199",0,16,5,8,0,18,0,16,0,11,0,11,0,11,0,11,0,11,30,35,0,11,0,18,0,11]
[null,"$200 to $249",0,16,90,61,33,51,0,16,0,11,0,11,0,11,0,11,0,11,71,64,6,9,68,80,0,11]
[null,"$250 to $299",0,16,26,29,0,18,0,16,0,11,0,11,0,11,0,11,0,11,53,34,0,11,14,22,0,11]
[null,"$300 to $349",0,16,92,57,0,18,0,16,0,11,0,11,0,11,0,11,22,34,83,48,0,11,14,23,13,21]
[null,"$350 to $399",0,16,34,35,20,21,0,16,0,11,0,11,0,11,0,11,0,11,87,70,0,11,14,23,0,11]
[null,"$400 to $449",0,16,78,49,33,39,0,16,0,11,0,11,0,11,0,11,0,11,69,92,0,11,20,33,0,11]
[null,"$450 to $499",26,45,92,68,22,22,88,111,0,11,0,11,0,11,0,11,0,11,66,68,0,11,28,34,0,11]
[null,"$500 to $549",0,16,55,51,69,53,0,16,0,11,0,11,0,11,0,11,0,11,105,113,7,10,42,58,0,11]
[null,"$550 to $599",0,16,163,112,7,12,0,16,0,11,4,6,0,11,0,11,0,11,59,44,0,11,78,77,25,19]
[null,"$600 to $649",13,21,93,97,55,62,0,16,0,11,5,8,0,11,21,35,0,11,83,69,17,20,31,37,0,11]
[null,"$650 to $699",41,69,96,61,73,51,44,71,0,11,6,5,0,11,7,12,0,11,107,103,0,11,37,42,0,11]
[null,"$700 to $749",0,16,69,51,58,35,57,53,60,90,3,4,6,6,0,11,0,11,81,44,0,11,52,51,0,11]
[null,"$750 to $799",12,20,246,125,62,48,14,23,0,11,8,8,10,15,0,11,0,11,184,94,17,26,35,42,8,12]
[null,"$800 to $899",0,16,668,179,65,39,102,103,0,11,6,7,10,15,20,33,0,11,530,183,30,17,261,169,17,26]
[null,"$900 to $999",0,16,729,191,231,82,161,145,49,78,3,6,2,4,35,39,5,7,761,262,47,41,376,156,23,37]
[null,"$1,000 to $1,249",45,62,1406,278,204,82,204,147,140,108,23,19,25,24,71,58,33,28,1010,263,82,64,583,198,53,48]
[null,"$1,250 to $1,499",0,16,992,220,76,52,57,66,53,48,16,13,3,4,30,36,0,11,633,221,47,35,326,150,0,11]
[null,"$1,500 to $1,999",31,49,759,196,264,104,15,25,0,11,3,6,32,19,8,13,6,10,342,116,19,23,151,82,0,11]
[null,"$2,000 to $2,499",24,37,215,123,132,64,37,45,0,11,3,6,0,11,0,11,0,11,20,24,11,12,24,40,0,11]
[null,"$2,500 to $2,999",15,25,126,74,10,16,0,16,0,11,0,11,0,11,0,11,0,11,0,24,0,11,0,18,0,11]
[null,"$3,000 to $3,499",0,16,0,24,37,36,0,16,0,11,0,11,0,11,0,11,0,11,0,24,0,11,0,18,0,11]
[null,"$3,500 or more",0,16,36,38,8,12,0,16,0,11,0,11,0,11,0,11,0,11,0,24,0,11,0,18,0,11]
[null,"No cash rent",49,82,48,42,24,20,34,42,0,11,3,5,8,8,20,23,8,14,147,70,0,11,16,25,6,9]
[]
[]
[]
[null,"B25064. MEDIAN GROSS RENT (DOLLARS)"]
[null,"Universe:  RENTER-OCCUPIED HOUSING UNITS PAYING CASH RENT"]
[null,"Data Set: 2013-2017 American Community Survey 5-Year Estimates"]
[null,{"$f":"'RentalHousingCost-Prior5Yr'!D41","v":"Income in 2017 Inflation Adjusted Dollars"}]
[null,null,"Barrington",null,"Dover",null,"Durham",null,"Farmington",null,"Lee",null,"Madbury",null,"Middleton",null,"Milton",null,"New Durham",null,"Rochester",null,"Rollinsford",null,"Somersworth",null,"Strafford"]
[null,null,"Estimate","Margin Of Error","Estimate","Margin Of Error","Estimate","Margin Of Error","Estimate","Margin Of Error","Estimate","Margin Of Error","Estimate","Margin Of Error","Estimate","Margin Of Error","Estimate","Margin Of Error","Estimate","Margin Of Error","Estimate","Margin Of Error","Estimate","Margin Of Error","Estimate","Margin Of Error","Estimate","Margin Of Error"]
[null,"Median gross rent",1025,728,1084,47,999,91,935,83,1075,133,1054,143,1160,331,1046,148,1045,558,976,35,1053,124,1003,65,928,171]
[]
[]
[]
[]
[null,"B25063. GROSS RENT"]
[null,"Universe:  RENTER-OCCUPIED HOUSING UNITS"]
[null,"Data Set: 2008-2012 American Community Survey 5-Year Estimates"]
[]
[null,null,"Barrington",null,"Dover",null,"Durham",null,"Farmington",null,"Lee",null,"Madbury",null,"Middleton",null,"Milton",null,"New Durham",null,"Rochester",null,"Rollinsford",null,"Somersworth",null,"Strafford"]
[null,null,"Estimate","Margin Of Error","Estimate","Margin Of Error","Estimate","Margin Of Error","Estimate","Margin Of Error","Estimate","Margin Of Error","Estimate","Margin Of Error","Estimate","Margin Of Error","Estimate","Margin Of Error","Estimate","Margin Of Error","Estimate","Margin Of Error","Estimate","Margin Of Error","Estimate","Margin Of Error","Estimate","Margin Of Error"]
[null,"Total:",411,124,6017,349,1298,221,808,220,213,87,142,53,38,27,215,92,95,44,3904,353,261,66,2030,250,96,65]
[null,"With cash rent:",406,121,5895,339,1181,216,802,220,197,88,139,52,38,27,203,89,83,44,3813,344,261,66,1927,248,96,65]
[null,"Less than $100",0,16,54,64,0,18,0,16,0,11,0,11,3,5,0,11,0,11,0,21,0,11,0,18,0,11]
[null,"$100 to $149",13,21,0,24,11,20,0,16,0,11,0,11,0,11,0,11,0,11,61,50,0,11,0,18,0,11]
[null,"$150 to $199",0,16,27,30,0,18,55,75,0,11,0,11,0,11,0,11,0,11,65,79,0,11,0,18,0,11]
[null,"$200 to $249",0,16,134,85,0,18,36,57,0,11,0,11,0,11,16,27,0,11,58,42,0,11,66,68,0,11]
[null,"$250 to $299",0,16,85,80,6,10,0,16,0,11,0,11,0,11,0,11,0,11,141,103,0,11,75,41,0,11]
[null,"$300 to $349",0,16,90,53,10,17,0,16,0,11,0,11,0,11,0,11,0,11,55,48,0,11,0,18,0,11]
[null,"$350 to $399",0,16,48,47,5,7,14,25,0,11,2,3,0,11,0,11,0,11,61,50,0,11,11,19,0,11]
[null,"$400 to $449",0,16,13,18,58,62,0,16,0,11,0,11,0,11,0,11,0,11,167,111,26,39,10,16,9,14]
[null,"$450 to $499",63,81,37,35,24,38,0,16,0,11,0,11,0,11,10,15,0,11,32,37,0,11,16,23,0,11]
[null,"$500 to $549",0,16,23,34,71,50,0,16,0,11,0,11,0,11,0,11,0,11,61,77,0,11,26,29,0,11]
[null,"$550 to $599",0,16,65,43,45,42,0,16,0,11,0,11,0,11,17,27,0,11,43,33,0,11,13,21,0,11]
[null,"$600 to $649",30,46,78,49,46,36,77,98,11,18,7,10,0,11,0,11,0,11,128,83,5,9,14,23,0,11]
[null,"$650 to $699",0,16,93,65,44,33,47,73,0,11,0,11,0,11,0,11,0,11,125,87,6,9,0,18,0,11]
[null,"$700 to $749",16,25,198,110,63,37,23,27,0,11,5,7,0,11,10,16,0,11,86,62,0,11,79,64,0,11]
[null,"$750 to $799",15,23,352,137,96,57,36,59,0,11,0,11,0,11,0,11,0,11,178,90,22,26,36,38,0,11]
[null,"$800 to $899",6,12,1190,241,239,107,109,89,69,54,29,21,19,24,31,23,10,13,471,163,44,34,335,156,0,11]
[null,"$900 to $999",94,80,1060,221,76,52,139,81,33,48,4,6,3,4,23,28,24,29,642,189,57,44,297,129,9,14]
[null,"$1,000 to $1,249",88,59,1090,246,130,65,182,138,61,47,18,18,10,9,36,36,29,27,784,219,55,36,634,192,58,61]
[null,"$1,250 to $1,499",30,34,549,189,38,27,84,66,0,11,18,17,3,5,46,49,10,10,277,136,28,32,191,97,15,22]
[null,"$1,500 to $1,999",31,48,496,135,145,99,0,16,17,27,17,17,0,11,14,22,10,14,346,149,8,9,108,59,5,8]
[null,"$2,000 to $2,499",20,34,213,118,74,54,0,16,6,10,39,34,0,11,0,11,0,11,32,33,10,11,16,20,0,11]
[null,"$2,500 to $2,999"]
[null,"$3,000 to $3,499"]
[null,"$3,500 or more"]
[null,"No cash rent",5,11,122,60,117,54,6,10,16,26,3,5,0,11,12,20,12,12,91,52,0,11,103,59,0,11]
[]
[]
[null,"B25064. MEDIAN GROSS RENT (DOLLARS)"]
[null,"Universe:  RENTER-OCCUPIED HOUSING UNITS PAYING CASH RENT"]
[null,"Data Set: 2008-2012 American Community Survey 5-Year Estimates"]
[null,{"$f":"'RentalHousingCost-Prior10Yr'!D41","v":"Income in 2012 Inflation Adjusted Dollars"}]
[null,null,"Barrington",null,"Dover",null,"Durham",null,"Farmington",null,"Lee",null,"Madbury",null,"Middleton",null,"Milton",null,"New Durham",null,"Rochester",null,"Rollinsford",null,"Somersworth",null,"Strafford"]
[null,null,"Estimate","Margin Of Error","Estimate","Margin Of Error","Estimate","Margin Of Error","Estimate","Margin Of Error","Estimate","Margin Of Error","Estimate","Margin Of Error","Estimate","Margin Of Error","Estimate","Margin Of Error","Estimate","Margin Of Error","Estimate","Margin Of Error","Estimate","Margin Of Error","Estimate","Margin Of Error","Estimate","Margin Of Error"]
[null,"Median gross rent",964,108,943,24,847,40,903,107,956,124,1313,378,884,166,976,236,1065,155,927,34,948,72,995,55,1129,93]

{"sheet":"ACS_Table_B25070","index":54,"n_rows":174,"n_cols":28,"rows_kept":174,"cut":false,"hidden":true,"merged":[]}
[null,"B25070. GROSS RENT AS A PERCENTAGE OF HOUSEHOLD INCOME IN THE PAST 12 MONTHS"]
[null,"Universe:  RENTER-OCCUPIED HOUSING UNITS"]
[null,"Data Set: 2018-2022 American Community Survey 5-Year Estimates"]
[]
[null,null,"Barrington",null,"Dover",null,"Durham",null,"Farmington",null,"Lee",null,"Madbury",null,"Middleton",null,"Milton",null,"New Durham",null,"Rochester",null,"Rollinsford",null,"Somersworth",null,"Strafford"]
[null,null,"Estimate","Margin Of Error",170,98,63,47,9,15,0,11,3,5,6,7,21,21,21,19,203,97,0,11,63,51,8,12]
[null,"Total:",327,147,7021,521,1143,175,887,218,167,125,130,59,34,20,212,93,93,60,4609,426,202,72,1844,355,97,56]
[null,"Less than 10.0 percent",0,17,396,263,56,49,46,58,0,12,0,12,7,10,0,12,0,12,258,163,22,27,43,40,0,12]
[null,"10.0 to 14.9 percent",0,17,705,268,52,38,0,17,50,75,2,5,3,4,9,16,0,12,326,148,18,16,186,119,0,12]
[null,"15.0 to 19.9 percent",0,17,1193,299,109,59,19,36,33,37,42,37,0,12,45,41,5,7,750,203,15,23,334,183,6,9]
[null,"20.0 to 24.9 percent",55,57,828,251,47,35,117,126,0,12,46,32,0,12,32,40,20,24,357,130,23,18,270,226,0,12]
[null,"25.0 to 29.9 percent",89,84,723,231,67,35,78,58,0,12,2,4,0,12,23,37,24,41,829,291,5,7,243,148,21,32]
[null,"30.0 to 34.9 percent",77,86,677,219,26,24,67,67,0,12,10,16,0,12,14,17,0,12,398,177,0,12,87,68,50,40]
[null,"35.0 to 39.9 percent",0,17,359,237,82,77,160,120,0,12,5,7,0,12,26,33,0,12,267,183,0,12,211,148,0,12]
[null,"40.0 to 49.9 percent",0,17,736,241,125,66,61,74,0,12,0,12,8,12,15,23,0,12,380,163,0,12,173,165,8,12]
[null,"50.0 percent or more",74,82,1244,303,473,161,229,141,69,86,3,4,8,9,26,27,24,16,892,237,65,45,284,229,12,19]
[null,"Not computed",32,36,160,135,106,71,110,98,15,23,20,26,8,8,22,28,20,27,152,96,54,47,13,23,0,12]
[]
[]
[]
[]
[]
[]
[]
[]
[]
[]
[]
[]
[]
[]
[]
[]
[]
[null,"Calculated B25070. GROSS RENT AS A PERCENTAGE OF HOUSEHOLD INCOME IN THE PAST 12 MONTHS"]
[null,"Universe:  RENTER-OCCUPIED HOUSING UNITS"]
[null,"Data Set: 2018-2022 American Community Survey 5-Year Estimates"]
[]
[null,null,"Barrington",null,"Dover",null,"Durham",null,"Farmington",null,"Lee",null,"Madbury",null,"Middleton",null,"Milton",null,"New Durham",null,"Rochester",null,"Rollinsford",null,"Somersworth",null,"Strafford"]
[null," ","Estimate","Margin of Error","Estimate","Margin of Error","Estimate","Margin of Error","Estimate","Margin of Error","Estimate","Margin of Error","Estimate","Margin of Error","Estimate","Margin of Error","Estimate","Margin of Error","Estimate","Margin of Error","Estimate","Margin of Error","Estimate","Margin of Error","Estimate","Margin of Error","Estimate","Margin of Error"]
[null,{"$f":"B7","v":"Total:"},327,147,7021,521,1143,175,887,218,167,125,130,59,34,20,212,93,93,60,4609,426,202,72,1844,355,97,56]
[null," Less Than 20% of HH Income",{"$f":"C8+C9+C10","v":0},{"$f":"SQRT((D8^2)+(D9^2)+(D10^2))","v":29.444863728670914},{"$f":"E8+E9+E10","v":2294},{"$f":"SQRT((F8^2)+(F9^2)+(F10^2))","v":479.99374995930935},{"$f":"G8+G9+G10","v":217},{"$f":"SQRT((H8^2)+(H9^2)+(H10^2))","v":85.592055706122636},{"$f":"I8+I9+I10","v":65},{"$f":"SQRT((J8^2)+(J9^2)+(J10^2))","v":70.34912934784623},{"$f":"K8+K9+K10","v":83},{"$f":"SQRT((L8^2)+(L9^2)+(L10^2))","v":84.486685341537694},{"$f":"M8+M9+M10","v":44},{"$f":"SQRT((N8^2)+(N9^2)+(N10^2))","v":39.217343102255157},{"$f":"O8+O9+O10","v":10},{"$f":"SQRT((P8^2)+(P9^2)+(P10^2))","v":16.124515496597098},{"$f":"Q8+Q9+Q10","v":54},{"$f":"SQRT((R8^2)+(R9^2)+(R10^2))","v":45.617978911828175},{"$f":"S8+S9+S10","v":5},{"$f":"SQRT((T8^2)+(T9^2)+(T10^2))","v":18.357559750685819},{"$f":"U8+U9+U10","v":1334},{"$f":"SQRT((V8^2)+(V9^2)+(V10^2))","v":299.46953100440788},{"$f":"W8+W9+W10","v":55},{"$f":"SQRT((X8^2)+(X9^2)+(X10^2))","v":38.910152916687437},{"$f":"Y8+Y9+Y10","v":563},{"$f":"SQRT((Z8^2)+(Z9^2)+(Z10^2))","v":221.92341021172146},{"$f":"AA8+AA9+AA10","v":6},{"$f":"SQRT((AB8^2)+(AB9^2)+(AB10^2))","v":19.209372712298546}]
[null," 20% to 24.9% of HH Income",{"$f":"C11","v":55},{"$f":"D11","v":57},{"$f":"E11","v":828},251,47,35,117,126,0,12,46,32,0,12,32,40,20,24,357,130,23,18,{"$f":"Y11","v":270},226,0,12]
[null," 25% to 29.9% of HH Income",{"$f":"C12","v":89},{"$f":"D12","v":84},723,231,67,35,78,58,0,12,2,4,0,12,23,37,24,41,829,291,5,7,243,148,21,32]
[null," Less Than 30% of HH Income",{"$f":"C12+C11+C10+C9+C8","v":144},{"$f":"SQRT((D12^2)+(D11^2)+(D10^2)+(D9^2)+(D8^2))","v":105.69768209379049},{"$f":"E12+E11+E10+E9+E8","v":3845},{"$f":"SQRT((F12^2)+(F11^2)+(F10^2)+(F9^2)+(F8^2))","v":588.85991542980742},{"$f":"G12+G11+G10+G9+G8","v":331},{"$f":"SQRT((H12^2)+(H11^2)+(H10^2)+(H9^2)+(H8^2))","v":98.873656754466197},{"$f":"I12+I11+I10+I9+I8","v":260},{"$f":"SQRT((J12^2)+(J11^2)+(J10^2)+(J9^2)+(J8^2))","v":155.52813250341561},{"$f":"K12+K11+K10+K9+K8","v":83},{"$f":"SQRT((L12^2)+(L11^2)+(L10^2)+(L9^2)+(L8^2))","v":86.174242091242093},{"$f":"M12+M11+M10+M9+M8","v":92},{"$f":"SQRT((N12^2)+(N11^2)+(N10^2)+(N9^2)+(N8^2))","v":50.774009099144415},{"$f":"O12+O11+O10+O9+O8","v":10},{"$f":"SQRT((P12^2)+(P11^2)+(P10^2)+(P9^2)+(P8^2))","v":23.409399821439251},{"$f":"Q12+Q11+Q10+Q9+Q8","v":109},{"$f":"SQRT((R12^2)+(R11^2)+(R10^2)+(R9^2)+(R8^2))","v":71.06335201775947},{"$f":"S12+S11+S10+S9+S8","v":49},{"$f":"SQRT((T12^2)+(T11^2)+(T10^2)+(T9^2)+(T8^2))","v":50.931326312987373},{"$f":"U12+U11+U10+U9+U8","v":2520},{"$f":"SQRT((V12^2)+(V11^2)+(V10^2)+(V9^2)+(V8^2))","v":437.33625507154102},{"$f":"W12+W11+W10+W9+W8","v":83},{"$f":"SQRT((X12^2)+(X11^2)+(X10^2)+(X9^2)+(X8^2))","v":43.439613257946945},{"$f":"Y12+Y11+Y10+Y9+Y8","v":1076},{"$f":"SQRT((Z12^2)+(Z11^2)+(Z10^2)+(Z9^2)+(Z8^2))","v":349.61407294329558},{"$f":"AA12+AA11+AA10+AA9+AA8","v":27},{"$f":"SQRT((AB12^2)+(AB11^2)+(AB10^2)+(AB9^2)+(AB8^2))","v":39.204591567825318}]
[null," 30% or More of HH Income",{"$f":"C13+C14+C15+C16","v":151},{"$f":"SQRT((D13^2)+(D14^2)+(D15^2)+(D16^2))","v":121.23530838827442},{"$f":"E13+E14+E15+E16","v":3016},{"$f":"SQRT((F13^2)+(F14^2)+(F15^2)+(F16^2))","v":504.00396823834632},{"$f":"G13+G14+G15+G16","v":706},{"$f":"SQRT((H13^2)+(H14^2)+(H15^2)+(H16^2))","v":191.78633945096297},{"$f":"I13+I14+I15+I16","v":517},{"$f":"SQRT((J13^2)+(J14^2)+(J15^2)+(J16^2))","v":210.34733181098352},{"$f":"K13+K14+K15+K16","v":69},{"$f":"SQRT((L13^2)+(L14^2)+(L15^2)+(L16^2))","v":88.475985442378658},{"$f":"M13+M14+M15+M16","v":18},{"$f":"SQRT((N13^2)+(N14^2)+(N15^2)+(N16^2))","v":21.563858652847824},{"$f":"O13+O14+O15+O16","v":16},{"$f":"SQRT((P13^2)+(P14^2)+(P15^2)+(P16^2))","v":22.649503305812249},{"$f":"Q13+Q14+Q15+Q16","v":81},{"$f":"SQRT((R13^2)+(R14^2)+(R15^2)+(R16^2))","v":51.341990611973742},{"$f":"S13+S14+S15+S16","v":24},{"$f":"SQRT((T13^2)+(T14^2)+(T15^2)+(T16^2))","v":26.229754097208001},{"$f":"U13+U14+U15+U16","v":1937},{"$f":"SQRT((V13^2)+(V14^2)+(V15^2)+(V16^2))","v":384.13018626502134},{"$f":"W13+W14+W15+W16","v":65},{"$f":"SQRT((X13^2)+(X14^2)+(X15^2)+(X16^2))","v":49.568134925574917},{"$f":"Y13+Y14+Y15+Y16","v":755},{"$f":"SQRT((Z13^2)+(Z14^2)+(Z15^2)+(Z16^2))","v":325.87420885979913},{"$f":"AA13+AA14+AA15+AA16","v":70},{"$f":"SQRT((AB13^2)+(AB14^2)+(AB15^2)+(AB16^2))","v":47.423622805517503}]
[null," 30% to 34.9% of HH Income",{"$f":"C13","v":77},{"$f":"D13","v":86},{"$f":"E13","v":677},219,26,24,67,67,0,12,10,16,0,12,14,17,0,12,398,177,0,12,{"$f":"Y13","v":87},{"$f":"Z13","v":68},{"$f":"AA13","v":50},{"$f":"AB13","v":40}]
[null," Less Than 35% of HH Income",{"$f":"C13+C12+C11+C10+C9+C8","v":221},{"$f":"SQRT((D13^2)+(D12^2)+(D11^2)+(D10^2)+(D9^2)+(D8^2))","v":136.26444877516658},{"$f":"E13+E12+E11+E10+E9+E8","v":4522},{"$f":"SQRT((F13^2)+(F12^2)+(F11^2)+(F10^2)+(F9^2)+(F8^2))","v":628.26507144675804},{"$f":"G13+G12+G11+G10+G9+G8","v":357},{"$f":"SQRT((H13^2)+(H12^2)+(H11^2)+(H10^2)+(H9^2)+(H8^2))","v":101.74477873581523},{"$f":"I13+I12+I11+I10+I9+I8","v":327},{"$f":"SQRT((J13^2)+(J12^2)+(J11^2)+(J10^2)+(J9^2)+(J8^2))","v":169.34580006601877},{"$f":"K13+K12+K11+K10+K9+K8","v":83},{"$f":"SQRT((L13^2)+(L12^2)+(L11^2)+(L10^2)+(L9^2)+(L8^2))","v":87.005746936624831},{"$f":"M13+M12+M11+M10+M9+M8","v":102},{"$f":"SQRT((N13^2)+(N12^2)+(N11^2)+(N10^2)+(N9^2)+(N8^2))","v":53.235326616824658},{"$f":"O13+O12+O11+O10+O9+O8","v":10},{"$f":"SQRT((P13^2)+(P12^2)+(P11^2)+(P10^2)+(P9^2)+(P8^2))","v":26.305892875931811},{"$f":"Q13+Q12+Q11+Q10+Q9+Q8","v":123},{"$f":"SQRT((R13^2)+(R12^2)+(R11^2)+(R10^2)+(R9^2)+(R8^2))","v":73.06846104852626},{"$f":"S13+S12+S11+S10+S9+S8","v":49},{"$f":"SQRT((T13^2)+(T12^2)+(T11^2)+(T10^2)+(T9^2)+(T8^2))","v":52.32590180780452},{"$f":"U13+U12+U11+U10+U9+U8","v":2918},{"$f":"SQRT((V13^2)+(V12^2)+(V11^2)+(V10^2)+(V9^2)+(V8^2))","v":471.79656632917539},{"$f":"W13+W12+W11+W10+W9+W8","v":83},{"$f":"SQRT((X13^2)+(X12^2)+(X11^2)+(X10^2)+(X9^2)+(X8^2))","v":45.066617356974994},{"$f":"Y13+Y12+Y11+Y10+Y9+Y8","v":1163},{"$f":"SQRT((Z13^2)+(Z12^2)+(Z11^2)+(Z10^2)+(Z9^2)+(Z8^2))","v":356.16569177841933},{"$f":"AA13+AA12+AA11+AA10+AA9+AA8","v":77},{"$f":"SQRT((AB13^2)+(AB12^2)+(AB11^2)+(AB10^2)+(AB9^2)+(AB8^2))","v":56.008927859761783}]
[null," 35% or More of HH Income",{"$f":"C14+C15+C16","v":74},{"$f":"SQRT((D14^2)+(D15^2)+(D16^2))","v":85.451740766353026},{"$f":"E14+E15+E16","v":2339},{"$f":"SQRT((F14^2)+(F15^2)+(F16^2))","v":453.93722032897898},{"$f":"G14+G15+G16","v":680},{"$f":"SQRT((H14^2)+(H15^2)+(H16^2))","v":190.27874290103978},{"$f":"I14+I15+I16","v":450},{"$f":"SQRT((J14^2)+(J15^2)+(J16^2))","v":199.39157454616782},{"$f":"K14+K15+K16","v":69},{"$f":"SQRT((L14^2)+(L15^2)+(L16^2))","v":87.658428003244509},{"$f":"M14+M15+M16","v":8},{"$f":"SQRT((N14^2)+(N15^2)+(N16^2))","v":14.456832294800961},{"$f":"O14+O15+O16","v":16},{"$f":"SQRT((P14^2)+(P15^2)+(P16^2))","v":19.209372712298546},{"$f":"Q14+Q15+Q16","v":67},{"$f":"SQRT((R14^2)+(R15^2)+(R16^2))","v":48.445846055157297},{"$f":"S14+S15+S16","v":24},{"$f":"SQRT((T14^2)+(T15^2)+(T16^2))","v":23.323807579381203},{"$f":"U14+U15+U16","v":1539},{"$f":"SQRT((V14^2)+(V15^2)+(V16^2))","v":340.9208119197184},{"$f":"W14+W15+W16","v":65},{"$f":"SQRT((X14^2)+(X15^2)+(X16^2))","v":48.093658625644196},{"$f":"Y14+Y15+Y16","v":668},{"$f":"SQRT((Z14^2)+(Z15^2)+(Z16^2))","v":318.700486350429},{"$f":"AA14+AA15+AA16","v":20},{"$f":"SQRT((AB14^2)+(AB15^2)+(AB16^2))","v":25.475478405713993}]
[null," 50% or More of HH Income",{"$f":"C16","v":74},{"$f":"D16","v":82},{"$f":"E16","v":1244},303,473,161,229,141,69,86,3,4,8,9,26,27,24,16,892,237,65,45,{"$f":"Y16","v":284},229,12,19]
[null,"Not computed",{"$f":"C17","v":32},{"$f":"D17","v":36},160,135,106,71,110,98,15,23,20,26,8,8,22,28,20,27,152,96,54,47,13,23,0,12]
[]
[]
[]
[]
[]
[]
[]
[]
[]
[]
[]
[]
[]
[]
[]
[]
[]
[]
[null,"B25070. GROSS RENT AS A PERCENTAGE OF HOUSEHOLD INCOME IN THE PAST 12 MONTHS"]
[null,"Universe:  RENTER-OCCUPIED HOUSING UNITS"]
[null,"Data Set: 2013-2017 American Community Survey 5-Year Estimates"]
[]
[null,null,"Barrington",null,"Dover",null,"Durham",null,"Farmington",null,"Lee",null,"Madbury",null,"Middleton",null,"Milton",null,"New Durham",null,"Rochester",null,"Rollinsford",null,"Somersworth",null,"Strafford"]
[null,null,"Estimate","Margin Of Error","Estimate","Margin Of Error","Estimate","Margin Of Error","Estimate","Margin Of Error","Estimate","Margin Of Error","Estimate","Margin Of Error","Estimate","Margin Of Error","Estimate","Margin Of Error","Estimate","Margin Of Error","Estimate","Margin Of Error","Estimate","Margin Of Error","Estimate","Margin Of Error","Estimate","Margin Of Error"]
[null,"Total:",270,160,6173,387,1492,188,869,263,302,146,83,29,96,35,212,74,74,47,4529,385,283,71,2170,282,145,52]
[null,"Less than 10.0 percent",14,25,185,119,0,18,72,79,0,11,0,11,0,11,0,11,0,11,95,60,0,11,14,22,0,11]
[null,"10.0 to 14.9 percent",0,16,490,152,74,48,23,35,63,96,9,8,2,4,0,11,22,34,385,168,6,8,98,77,38,28]
[null,"15.0 to 19.9 percent",88,91,803,193,70,40,112,103,21,31,24,17,16,16,0,11,18,13,758,272,57,57,442,161,8,12]
[null,"20.0 to 24.9 percent",0,16,1106,264,156,75,94,87,96,96,17,14,38,25,35,28,0,11,421,152,47,44,259,114,62,41]
[null,"25.0 to 29.9 percent",46,56,852,211,135,78,73,88,57,51,22,16,4,5,22,33,0,11,609,169,59,37,369,156,0,11]
[null,"30.0 to 34.9 percent",24,37,539,162,138,85,37,42,0,11,0,11,7,11,0,11,0,11,360,146,0,11,131,78,0,11]
[null,"35.0 to 39.9 percent",12,20,280,142,59,36,129,127,0,11,0,11,2,3,24,27,6,10,334,148,30,33,72,63,0,11]
[null,"40.0 to 49.9 percent",0,16,627,197,125,62,191,125,0,11,0,11,0,11,42,51,0,11,233,95,25,31,226,149,17,26]
[null,"50.0 percent or more",37,61,1124,277,687,163,104,78,65,83,8,9,19,17,69,60,20,26,1143,333,47,31,543,212,14,22]
[null,"Not computed",49,82,167,139,48,29,34,42,0,11,3,5,8,8,20,23,8,14,191,95,12,18,16,25,6,9]
[]
[]
[]
[]
[]
[]
[]
[]
[]
[]
[]
[]
[]
[]
[]
[]
[]
[null,"Calculated B25070. GROSS RENT AS A PERCENTAGE OF HOUSEHOLD INCOME IN THE PAST 12 MONTHS"]
[null,"Universe:  RENTER-OCCUPIED HOUSING UNITS"]
[null,"Data Set: 2013-2017 American Community Survey 5-Year Estimates"]
[]
[null,null,"Barrington",null,"Dover",null,"Durham",null,"Farmington",null,"Lee",null,"Madbury",null,"Middleton",null,"Milton",null,"New Durham",null,"Rochester",null,"Rollinsford",null,"Somersworth",null,"Strafford"]
[null," ","Estimate","Margin of Error","Estimate","Margin of Error","Estimate","Margin of Error","Estimate","Margin of Error","Estimate","Margin of Error","Estimate","Margin of Error","Estimate","Margin of Error","Estimate","Margin of Error","Estimate","Margin of Error","Estimate","Margin of Error","Estimate","Margin of Error","Estimate","Margin of Error","Estimate","Margin of Error"]
[null,"Total:",{"$f":"C76","v":270},160,6173,387,1492,188,869,263,302,146,83,29,96,35,212,74,74,47,4529,385,283,71,2170,282,145,52]
[null," Less Than 20% of HH Income",{"$f":"C77+C78+C79","v":102},{"$f":"SQRT((D77^2)+(D78^2)+(D79^2))","v":95.718336801262907},{"$f":"E77+E78+E79","v":1478},{"$f":"SQRT((F77^2)+(F78^2)+(F79^2))","v":272.97252609008109},{"$f":"G77+G78+G79","v":144},{"$f":"SQRT((H77^2)+(H78^2)+(H79^2))","v":65.023072828035438},{"$f":"I77+I78+I79","v":207},{"$f":"SQRT((J77^2)+(J78^2)+(J79^2))","v":134.44329659748752},{"$f":"K77+K78+K79","v":84},{"$f":"SQRT((L77^2)+(L78^2)+(L79^2))","v":101.47906187977893},{"$f":"M77+M78+M79","v":33},{"$f":"SQRT((N77^2)+(N78^2)+(N79^2))","v":21.77154105707724},{"$f":"O77+O78+O79","v":18},{"$f":"SQRT((P77^2)+(P78^2)+(P79^2))","v":19.824227601599009},{"$f":"Q77+Q78+Q79","v":0},{"$f":"SQRT((R77^2)+(R78^2)+(R79^2))","v":19.05255888325765},{"$f":"S77+S78+S79","v":40},{"$f":"SQRT((T77^2)+(T78^2)+(T79^2))","v":38.026306683663087},{"$f":"U77+U78+U79","v":1238},{"$f":"SQRT((V77^2)+(V78^2)+(V79^2))","v":325.28141662259156},{"$f":"W77+W78+W79","v":63},{"$f":"SQRT((X77^2)+(X78^2)+(X79^2))","v":58.600341295934449},{"$f":"Y77+Y78+Y79","v":554},{"$f":"SQRT((Z77^2)+(Z78^2)+(Z79^2))","v":179.81657320725472},{"$f":"AA77+AA78+AA79","v":46},{"$f":"SQRT((AB77^2)+(AB78^2)+(AB79^2))","v":32.388269481403292}]
[null," 20% to 24.9% of HH Income",{"$f":"C80","v":0},{"$f":"D80","v":16},{"$f":"E80","v":1106},264,156,75,94,87,96,96,17,14,38,25,35,28,0,11,421,152,47,44,259,114,62,41]
[null," 25% to 29.9% of HH Income",{"$f":"C81","v":46},{"$f":"D81","v":56},{"$f":"E81","v":852},211,135,78,73,88,57,51,22,16,4,5,22,33,0,11,609,169,59,37,369,156,0,11]
[null," Less Than 30% of HH Income",{"$f":"C81+C80+C79+C78+C77","v":148},{"$f":"SQRT((D81^2)+(D80^2)+(D79^2)+(D78^2)+(D77^2))","v":112.04463396343441},{"$f":"E81+E80+E79+E78+E77","v":3436},{"$f":"SQRT((F81^2)+(F80^2)+(F79^2)+(F78^2)+(F77^2))","v":434.43181283142695},{"$f":"G81+G80+G79+G78+G77","v":435},{"$f":"SQRT((H81^2)+(H80^2)+(H79^2)+(H78^2)+(H77^2))","v":126.24183141890805},{"$f":"I81+I80+I79+I78+I77","v":374},{"$f":"SQRT((J81^2)+(J80^2)+(J79^2)+(J78^2)+(J77^2))","v":182.72383533628008},{"$f":"K81+K80+K79+K78+K77","v":237},{"$f":"SQRT((L81^2)+(L80^2)+(L79^2)+(L78^2)+(L77^2))","v":148.7111293750404},{"$f":"M81+M80+M79+M78+M77","v":72},{"$f":"SQRT((N81^2)+(N80^2)+(N79^2)+(N78^2)+(N77^2))","v":30.430248109405877},{"$f":"O81+O80+O79+O78+O77","v":60},{"$f":"SQRT((P81^2)+(P80^2)+(P79^2)+(P78^2)+(P77^2))","v":32.295510523910288},{"$f":"Q81+Q80+Q79+Q78+Q77","v":57},{"$f":"SQRT((R81^2)+(R80^2)+(R79^2)+(R78^2)+(R77^2))","v":47.286361670147556},{"$f":"S81+S80+S79+S78+S77","v":40},{"$f":"SQRT((T81^2)+(T80^2)+(T79^2)+(T78^2)+(T77^2))","v":41.085277168348277},{"$f":"U81+U80+U79+U78+U77","v":2268},{"$f":"SQRT((V81^2)+(V80^2)+(V79^2)+(V78^2)+(V77^2))","v":396.82867839912984},{"$f":"W81+W80+W79+W78+W77","v":169},{"$f":"SQRT((X81^2)+(X80^2)+(X79^2)+(X78^2)+(X77^2))","v":82.091412461962179},{"$f":"Y81+Y80+Y79+Y78+Y77","v":1182},{"$f":"SQRT((Z81^2)+(Z80^2)+(Z79^2)+(Z78^2)+(Z77^2))","v":263.94317570265008},{"$f":"AA81+AA80+AA79+AA78+AA77","v":108},{"$f":"SQRT((AB81^2)+(AB80^2)+(AB79^2)+(AB78^2)+(AB77^2))","v":53.394756296849977}]
[null," 30% or More of HH Income",{"$f":"C82+C83+C84+C85","v":73},{"$f":"SQRT((D82^2)+(D83^2)+(D84^2)+(D85^2))","v":75.802374632988901},{"$f":"E82+E83+E84+E85","v":2570},{"$f":"SQRT((F82^2)+(F83^2)+(F84^2)+(F85^2))","v":402.42514831953531},{"$f":"G82+G83+G84+G85","v":1009},{"$f":"SQRT((H82^2)+(H83^2)+(H84^2)+(H85^2))","v":197.31700382886419},{"$f":"I82+I83+I84+I85","v":461},{"$f":"SQRT((J82^2)+(J83^2)+(J84^2)+(J85^2))","v":199.00251254695254},{"$f":"K82+K83+K84+K85","v":65},{"$f":"SQRT((L82^2)+(L83^2)+(L84^2)+(L85^2))","v":85.158675424175073},{"$f":"M82+M83+M84+M85","v":8},{"$f":"SQRT((N82^2)+(N83^2)+(N84^2)+(N85^2))","v":21.071307505705477},{"$f":"O82+O83+O84+O85","v":28},{"$f":"SQRT((P82^2)+(P83^2)+(P84^2)+(P85^2))","v":23.2379000772445},{"$f":"Q82+Q83+Q84+Q85","v":135},{"$f":"SQRT((R82^2)+(R83^2)+(R84^2)+(R85^2))","v":83.970232820922917},{"$f":"S82+S83+S84+S85","v":26},{"$f":"SQRT((T82^2)+(T83^2)+(T84^2)+(T85^2))","v":31.906112267087632},{"$f":"U82+U83+U84+U85","v":2070},{"$f":"SQRT((V82^2)+(V83^2)+(V84^2)+(V85^2))","v":403.89850210170374},{"$f":"W82+W83+W84+W85","v":102},{"$f":"SQRT((X82^2)+(X83^2)+(X84^2)+(X85^2))","v":55.964274318532887},{"$f":"Y82+Y83+Y84+Y85","v":972},{"$f":"SQRT((Z82^2)+(Z83^2)+(Z84^2)+(Z85^2))","v":277.84528068693197},{"$f":"AA82+AA83+AA84+AA85","v":31},{"$f":"SQRT((AB82^2)+(AB83^2)+(AB84^2)+(AB85^2))","v":37.443290453698111}]
[null," 30% to 34.9% of HH Income",{"$f":"C82","v":24},{"$f":"D82","v":37},{"$f":"E82","v":539},162,138,85,37,42,0,11,0,11,7,11,0,11,0,11,360,146,0,11,{"$f":"Y82","v":131},{"$f":"Z82","v":78},{"$f":"AA82","v":0},{"$f":"AB82","v":11}]
[null," Less Than 35% of HH Income",{"$f":"C82+C81+C80+C79+C78+C77","v":172},{"$f":"SQRT((D82^2)+(D81^2)+(D80^2)+(D79^2)+(D78^2)+(D77^2))","v":117.99576263578281},{"$f":"E82+E81+E80+E79+E78+E77","v":3975},{"$f":"SQRT((F82^2)+(F81^2)+(F80^2)+(F79^2)+(F78^2)+(F77^2))","v":463.65396579777035},{"$f":"G82+G81+G80+G79+G78+G77","v":573},{"$f":"SQRT((H82^2)+(H81^2)+(H80^2)+(H79^2)+(H78^2)+(H77^2))","v":152.19066988485201},{"$f":"I82+I81+I80+I79+I78+I77","v":411},{"$f":"SQRT((J82^2)+(J81^2)+(J80^2)+(J79^2)+(J78^2)+(J77^2))","v":187.48866632412745},{"$f":"K82+K81+K80+K79+K78+K77","v":237},{"$f":"SQRT((L82^2)+(L81^2)+(L80^2)+(L79^2)+(L78^2)+(L77^2))","v":149.11740341086951},{"$f":"M82+M81+M80+M79+M78+M77","v":72},{"$f":"SQRT((N82^2)+(N81^2)+(N80^2)+(N79^2)+(N78^2)+(N77^2))","v":32.357379374726875},{"$f":"O82+O81+O80+O79+O78+O77","v":67},{"$f":"SQRT((P82^2)+(P81^2)+(P80^2)+(P79^2)+(P78^2)+(P77^2))","v":34.117444218463959},{"$f":"Q82+Q81+Q80+Q79+Q78+Q77","v":57},{"$f":"SQRT((R82^2)+(R81^2)+(R80^2)+(R79^2)+(R78^2)+(R77^2))","v":48.548944375753422},{"$f":"S82+S81+S80+S79+S78+S77","v":40},{"$f":"SQRT((T82^2)+(T81^2)+(T80^2)+(T79^2)+(T78^2)+(T77^2))","v":42.532340636273474},{"$f":"U82+U81+U80+U79+U78+U77","v":2628},{"$f":"SQRT((V82^2)+(V81^2)+(V80^2)+(V79^2)+(V78^2)+(V77^2))","v":422.83448298359019},{"$f":"W82+W81+W80+W79+W78+W77","v":169},{"$f":"SQRT((X82^2)+(X81^2)+(X80^2)+(X79^2)+(X78^2)+(X77^2))","v":82.82511696339462},{"$f":"Y82+Y81+Y80+Y79+Y78+Y77","v":1313},{"$f":"SQRT((Z82^2)+(Z81^2)+(Z80^2)+(Z79^2)+(Z78^2)+(Z77^2))","v":275.22717889045771},{"$f":"AA82+AA81+AA80+AA79+AA78+AA77","v":108},{"$f":"SQRT((AB82^2)+(AB81^2)+(AB80^2)+(AB79^2)+(AB78^2)+(AB77^2))","v":54.516052681756044}]
[null," 35% or More of HH Income",{"$f":"C83+C84+C85","v":49},{"$f":"SQRT((D83^2)+(D84^2)+(D85^2))","v":66.158899628092371},{"$f":"E83+E84+E85","v":2031},{"$f":"SQRT((F83^2)+(F84^2)+(F85^2))","v":368.37752374432404},{"$f":"G83+G84+G85","v":871},{"$f":"SQRT((H83^2)+(H84^2)+(H85^2))","v":178.07021087200408},{"$f":"I83+I84+I85","v":424},{"$f":"SQRT((J83^2)+(J84^2)+(J85^2))","v":194.5199218589191},{"$f":"K83+K84+K85","v":65},{"$f":"SQRT((L83^2)+(L84^2)+(L85^2))","v":84.445248534183378},{"$f":"M83+M84+M85","v":8},{"$f":"SQRT((N83^2)+(N84^2)+(N85^2))","v":17.972200755611428},{"$f":"O83+O84+O85","v":21},{"$f":"SQRT((P83^2)+(P84^2)+(P85^2))","v":20.46948949045872},{"$f":"Q83+Q84+Q85","v":135},{"$f":"SQRT((R83^2)+(R84^2)+(R85^2))","v":83.246621553069645},{"$f":"S83+S84+S85","v":26},{"$f":"SQRT((T83^2)+(T84^2)+(T85^2))","v":29.949958263743873},{"$f":"U83+U84+U85","v":1710},{"$f":"SQRT((V83^2)+(V84^2)+(V85^2))","v":376.58730727415656},{"$f":"W83+W84+W85","v":102},{"$f":"SQRT((X83^2)+(X84^2)+(X85^2))","v":54.872579673275794},{"$f":"Y83+Y84+Y85","v":841},{"$f":"SQRT((Z83^2)+(Z84^2)+(Z85^2))","v":266.67208327832145},{"$f":"AA83+AA84+AA85","v":31},{"$f":"SQRT((AB83^2)+(AB84^2)+(AB85^2))","v":35.791060336346561}]
[null," 50% or More of HH Income",{"$f":"C85","v":37},{"$f":"D85","v":61},{"$f":"E85","v":1124},277,687,163,104,78,65,83,8,9,19,17,69,60,20,26,1143,333,47,31,543,212,14,22]
[null,"Not computed",{"$f":"C86","v":49},{"$f":"D86","v":82},{"$f":"E86","v":167},139,48,29,34,42,0,11,3,5,8,8,20,23,8,14,191,95,12,18,16,25,6,9]
[]
[]
[]
[null,"B25070. GROSS RENT AS A PERCENTAGE OF HOUSEHOLD INCOME IN THE PAST 12 MONTHS"]
[null,"Universe:  RENTER-OCCUPIED HOUSING UNITS"]
[null,"Data Set: 2008-2012 American Community Survey 3-Year Estimates"]
[]
[null,null,"Barrington",null,"Dover",null,"Durham",null,"Farmington",null,"Lee",null,"Madbury",null,"Middleton",null,"Milton",null,"New Durham",null,"Rochester",null,"Rollinsford",null,"Somersworth",null,"Strafford"]
[null,null,"Esitimate","Margin Of Error","Esitimate","Margin Of Error","Esitimate","Margin Of Error","Esitimate","Margin Of Error","Esitimate","Margin Of Error","Esitimate","Margin Of Error","Esitimate","Margin Of Error","Esitimate","Margin Of Error","Esitimate","Margin Of Error","Esitimate","Margin Of Error","Esitimate","Margin Of Error","Esitimate","Margin Of Error","Esitimate","Margin Of Error"]
[null,"Total:",411,124,6017,349,1298,221,808,220,213,87,142,53,38,27,215,92,95,44,3904,353,261,66,2030,250,96,65]
[null,"Less than 10.0 percent",136,101.11874208078342,1355,269.61824864055473,206,92.768529146472943,173,128.39781929612357,61,60.415229867972862,34,26.92582403567252,9,13.490737563232042,59,57.157676649772952,21,28.600699292150182,474,173.09534944648283,21,30.298514815086232,589,193.05439647933429,44,46.669047558312137]
[null,"10.0 to 14.9 percent",28,44,868,230,95,54,96,93,29,36,24,24,4,5,34,39,16,17,443,152,26,26,285,137,9,14]
[null,"15.0 to 19.9 percent",61,57,641,186,44,32,72,64,41,45,18,15,0,11,33,34,0,11,610,178,56,45,250,113,0,11]
[null,"20.0 to 24.9 percent",225,124.1370210694618,2864,400.23742953402046,345,112.00892821556681,341,170.97075773359606,131,83.492514634546737,76,39.064049969249218,13,18.110770276274835,126,77.097341069585525,37,35.042830935870462,1527,291.11853256019276,103,60.158124970780129,1124,262.31279038582926,53,49.949974974968704]
[null,"25.0 to 29.9 percent",181,98.63569333664158,3025,412.85711814137346,763,188.25249002337259,461,174.67398203510447,66,64.389440128020993,63,42.355637169094742,22,29.983328701129899,77,43.56604182158393,46,34.205262752974143,2216,359.45931619586662,158,62.94441992742486,767,205.80087463370995,43,55.127125809350879]
[null,"30.0 to 34.9 percent",75,57,646,171,39,35,58,67,0,11,10,16,0,11,10,16,0,11,313,124,18,21,111,64,0,11]
[null,"35.0 to 39.9 percent",300,136.59795020423988,3510,435.23671720111116,384,117.3499041328965,399,183.63006289820848,131,84.214013085709198,86,42.213741838410868,13,21.189620100417091,136,78.740078740118108,37,36.728735344413913,1840,316.4269267935332,121,63.718129288295962,1235,270.00740730579969,53,51.146847410177685]
[null,"40.0 to 49.9 percent",106,80.498447189992433,2379,375.77919048292176,724,184.97026788108406,403,161.31335964513292,66,63.442887702247603,53,39.217343102255157,22,27.892651361962706,67,40.521599178709621,46,32.388269481403292,1903,337.39442793264976,140,59.338014796587188,656,195.59652348648734,43,54.018515344278022]
[null,"50.0 percent or more",67,68,1270,269,496,142,291,134,41,48,53,36,16,24,52,36,14,10,1021,247,96,44,461,169,34,51]
[null,"Not computed",5,11,128,62,190,71,6,10,16,26,3,5,3,4,12,20,12,12,161,86,0,11,139,78,0,11]
[]
[]
[]
[]
[]
[]
[]
[]
[]
[]
[]
[]
[]
[]
[]
[]
[]
[null,"Calculated B25070. GROSS RENT AS A PERCENTAGE OF HOUSEHOLD INCOME IN THE PAST 12 MONTHS"]
[null,"Universe:  RENTER-OCCUPIED HOUSING UNITS"]
[null,"Data Set: 2008-2012 American Community Survey 5-Year Estimates"]
[]
[null,null,"Barrington",null,"Dover",null,"Durham",null,"Farmington",null,"Lee",null,"Madbury",null,"Middleton",null,"Milton",null,"New Durham",null,"Rochester",null,"Rollinsford",null,"Somersworth",null,"Strafford"]
[null," ","Estimate","Margin of Error","Estimate","Margin of Error","Estimate","Margin of Error","Estimate","Margin of Error","Estimate","Margin of Error","Estimate","Margin of Error","Estimate","Margin of Error","Estimate","Margin of Error","Estimate","Margin of Error","Estimate","Margin of Error","Estimate","Margin of Error","Estimate","Margin of Error","Estimate"]
[null,"Total:",{"$f":"C130","v":411},124,6017,349,1298,221,808,220,213,87,142,53,38,27,215,92,95,44,3904,353,261,66,2030,250,96,65]
[null," Less Than 20% of HH Income",{"$f":"C131+C132+C133","v":225},{"$f":"SQRT((D131^2)+(D132^2)+(D133^2))","v":124.1370210694618},{"$f":"E131+E132+E133","v":2864},{"$f":"SQRT((F131^2)+(F132^2)+(F133^2))","v":400.23742953402046},{"$f":"G131+G132+G133","v":345},{"$f":"SQRT((H131^2)+(H132^2)+(H133^2))","v":112.00892821556681},{"$f":"I131+I132+I133","v":341},{"$f":"SQRT((J131^2)+(J132^2)+(J133^2))","v":170.97075773359609},{"$f":"K131+K132+K133","v":131},{"$f":"SQRT((L131^2)+(L132^2)+(L133^2))","v":83.492514634546737},{"$f":"M131+M132+M133","v":76},{"$f":"SQRT((N131^2)+(N132^2)+(N133^2))","v":39.064049969249218},{"$f":"O131+O132+O133","v":13},{"$f":"SQRT((P131^2)+(P132^2)+(P133^2))","v":18.110770276274835},{"$f":"Q131+Q132+Q133","v":126},{"$f":"SQRT((R131^2)+(R132^2)+(R133^2))","v":77.097341069585525},{"$f":"S131+S132+S133","v":37},{"$f":"SQRT((T131^2)+(T132^2)+(T133^2))","v":35.042830935870462},{"$f":"U131+U132+U133","v":1527},{"$f":"SQRT((V131^2)+(V132^2)+(V133^2))","v":291.11853256019276},{"$f":"W131+W132+W133","v":103},{"$f":"SQRT((X131^2)+(X132^2)+(X133^2))","v":60.158124970780129},{"$f":"Y131+Y132+Y133","v":1124},{"$f":"SQRT((Z131^2)+(Z132^2)+(Z133^2))","v":262.31279038582926},{"$f":"AA131+AA132+AA133","v":53},{"$f":"SQRT((AB131^2)+(AB132^2)+(AB133^2))","v":49.949974974968704}]
[null," 20% to 24.9% of HH Income",{"$f":"C134","v":225},{"$f":"D134","v":124.1370210694618},{"$f":"E134","v":2864},400.23742953402046,345,112.00892821556681,341,170.97075773359606,131,83.492514634546737,76,39.064049969249218,13,18.110770276274835,126,77.097341069585525,37,35.042830935870462,1527,291.11853256019276,103,60.158124970780129,1124,262.31279038582926,53,49.949974974968704]
[null," 25% to 29.9% of HH Income",{"$f":"C135","v":181},{"$f":"D135","v":98.63569333664158},{"$f":"E135","v":3025},412.85711814137346,763,188.25249002337259,461,174.67398203510447,66,64.389440128020993,63,42.355637169094742,22,29.983328701129899,77,43.56604182158393,46,34.205262752974143,2216,359.45931619586662,158,62.94441992742486,767,205.80087463370995,43,55.127125809350879]
[null," Less Than 30% of HH Income",{"$f":"C135+C134+C133+C132+C131","v":631},{"$f":"SQRT((D135^2)+(D134^2)+(D133^2)+(D132^2)+(D131^2))","v":201.36782265297501},{"$f":"E135+E134+E133+E132+E131","v":8753},{"$f":"SQRT((F135^2)+(F134^2)+(F133^2)+(F132^2)+(F131^2))","v":700.5933199795727},{"$f":"G135+G134+G133+G132+G131","v":1453},{"$f":"SQRT((H135^2)+(H134^2)+(H133^2)+(H132^2)+(H131^2))","v":246.03048591587179},{"$f":"I135+I134+I133+I132+I131","v":1143},{"$f":"SQRT((J135^2)+(J134^2)+(J133^2)+(J132^2)+(J131^2))","v":298.28342226815084},{"$f":"K135+K134+K133+K132+K131","v":328},{"$f":"SQRT((L135^2)+(L134^2)+(L133^2)+(L132^2)+(L131^2))","v":134.49163542763543},{"$f":"M135+M134+M133+M132+M131","v":215},{"$f":"SQRT((N135^2)+(N134^2)+(N133^2)+(N132^2)+(N131^2))","v":69.613217135828449},{"$f":"O135+O134+O133+O132+O131","v":48},{"$f":"SQRT((P135^2)+(P134^2)+(P133^2)+(P132^2)+(P131^2))","v":39.433488306260706},{"$f":"Q135+Q134+Q133+Q132+Q131","v":329},{"$f":"SQRT((R135^2)+(R134^2)+(R133^2)+(R132^2)+(R131^2))","v":117.41379816699569},{"$f":"S135+S134+S133+S132+S131","v":120},{"$f":"SQRT((T135^2)+(T134^2)+(T133^2)+(T132^2)+(T131^2))","v":60.21627686929839},{"$f":"U135+U134+U133+U132+U131","v":5270},{"$f":"SQRT((V135^2)+(V134^2)+(V133^2)+(V132^2)+(V131^2))","v":546.54460019288456},{"$f":"W135+W134+W133+W132+W131","v":364},{"$f":"SQRT((X135^2)+(X134^2)+(X133^2)+(X132^2)+(X131^2))","v":105.83005244258362},{"$f":"Y135+Y134+Y133+Y132+Y131","v":3015},{"$f":"SQRT((Z135^2)+(Z134^2)+(Z133^2)+(Z132^2)+(Z131^2))","v":424.22871189960728},{"$f":"AA135+AA134+AA133+AA132+AA131","v":149},{"$f":"SQRT((AB135^2)+(AB134^2)+(AB133^2)+(AB132^2)+(AB131^2))","v":89.604687377391144}]
[null," 30% or More of HH Income",{"$f":"C136+C137+C138+C139","v":548},{"$f":"SQRT((D136^2)+(D137^2)+(D138^2)+(D139^2))","v":181.69204715672066},{"$f":"E136+E137+E138+E139","v":7805},{"$f":"SQRT((F136^2)+(F137^2)+(F138^2)+(F139^2))","v":657.45189938123985},{"$f":"G136+G137+G138+G139","v":1643},{"$f":"SQRT((H136^2)+(H137^2)+(H138^2)+(H139^2))","v":263.38944549848611},{"$f":"I136+I137+I138+I139","v":1151},{"$f":"SQRT((J136^2)+(J137^2)+(J138^2)+(J139^2))","v":286.6827514867262},{"$f":"K136+K137+K138+K139","v":238},{"$f":"SQRT((L136^2)+(L137^2)+(L138^2)+(L139^2))","v":116.37009925234231},{"$f":"M136+M137+M138+M139","v":202},{"$f":"SQRT((N136^2)+(N137^2)+(N138^2)+(N139^2))","v":69.799713466460588},{"$f":"O136+O137+O138+O139","v":51},{"$f":"SQRT((P136^2)+(P137^2)+(P138^2)+(P139^2))","v":43.863424398922618},{"$f":"Q136+Q137+Q138+Q139","v":265},{"$f":"SQRT((R136^2)+(R137^2)+(R138^2)+(R139^2))","v":96.922649571707439},{"$f":"S136+S137+S138+S139","v":97},{"$f":"SQRT((T136^2)+(T137^2)+(T138^2)+(T139^2))","v":51.176166327695938},{"$f":"U136+U137+U138+U139","v":5077},{"$f":"SQRT((V136^2)+(V137^2)+(V138^2)+(V139^2))","v":538.8376378836208},{"$f":"W136+W137+W138+W139","v":375},{"$f":"SQRT((X136^2)+(X137^2)+(X138^2)+(X139^2))","v":99.789779035730902},{"$f":"Y136+Y137+Y138+Y139","v":2463},{"$f":"SQRT((Z136^2)+(Z137^2)+(Z138^2)+(Z139^2))","v":379.23475579118536},{"$f":"AA136+AA137+AA138+AA139","v":130},{"$f":"SQRT((AB136^2)+(AB137^2)+(AB138^2)+(AB139^2))","v":90.862533532804378}]
[null," 30% to 34.9% of HH Income",{"$f":"C136","v":75},{"$f":"D136","v":57},{"$f":"E136","v":646},171,39,35,58,67,0,11,10,16,0,11,10,16,0,11,313,124,18,21,{"$f":"Y136","v":111},{"$f":"Z136","v":64},{"$f":"AA136","v":0},{"$f":"AB136","v":11}]
[null," Less Than 35% of HH Income",{"$f":"C136+C135+C134+C133+C132+C131","v":706},{"$f":"SQRT((D136^2)+(D135^2)+(D134^2)+(D133^2)+(D132^2)+(D131^2))","v":209.2797171251911},{"$f":"E136+E135+E134+E133+E132+E131","v":9399},{"$f":"SQRT((F136^2)+(F135^2)+(F134^2)+(F133^2)+(F132^2)+(F131^2))","v":721.16017638247331},{"$f":"G136+G135+G134+G133+G132+G131","v":1492},{"$f":"SQRT((H136^2)+(H135^2)+(H134^2)+(H133^2)+(H132^2)+(H131^2))","v":248.50754515708368},{"$f":"I136+I135+I134+I133+I132+I131","v":1201},{"$f":"SQRT((J136^2)+(J135^2)+(J134^2)+(J133^2)+(J132^2)+(J131^2))","v":305.71555406946504},{"$f":"K136+K135+K134+K133+K132+K131","v":328},{"$f":"SQRT((L136^2)+(L135^2)+(L134^2)+(L133^2)+(L132^2)+(L131^2))","v":134.94072772888103},{"$f":"M136+M135+M134+M133+M132+M131","v":225},{"$f":"SQRT((N136^2)+(N135^2)+(N134^2)+(N133^2)+(N132^2)+(N131^2))","v":71.428285713714288},{"$f":"O136+O135+O134+O133+O132+O131","v":48},{"$f":"SQRT((P136^2)+(P135^2)+(P134^2)+(P133^2)+(P132^2)+(P131^2))","v":40.93897898091744},{"$f":"Q136+Q135+Q134+Q133+Q132+Q131","v":339},{"$f":"SQRT((R136^2)+(R135^2)+(R134^2)+(R133^2)+(R132^2)+(R131^2))","v":118.49894514298428},{"$f":"S136+S135+S134+S133+S132+S131","v":120},{"$f":"SQRT((T136^2)+(T135^2)+(T134^2)+(T133^2)+(T132^2)+(T131^2))","v":61.212743771211564},{"$f":"U136+U135+U134+U133+U132+U131","v":5583},{"$f":"SQRT((V136^2)+(V135^2)+(V134^2)+(V133^2)+(V132^2)+(V131^2))","v":560.43465274731182},{"$f":"W136+W135+W134+W133+W132+W131","v":382},{"$f":"SQRT((X136^2)+(X135^2)+(X134^2)+(X133^2)+(X132^2)+(X131^2))","v":107.89346597454362},{"$f":"Y136+Y135+Y134+Y133+Y132+Y131","v":3126},{"$f":"SQRT((Z136^2)+(Z135^2)+(Z134^2)+(Z133^2)+(Z132^2)+(Z131^2))","v":429.02913653969938},{"$f":"AA136+AA135+AA134+AA133+AA132+AA131","v":149},{"$f":"SQRT((AB136^2)+(AB135^2)+(AB134^2)+(AB133^2)+(AB132^2)+(AB131^2))","v":90.277350426338941}]
[null," 35% or More of HH Income",{"$f":"C137+C138+C139","v":473},{"$f":"SQRT((D137^2)+(D138^2)+(D139^2))","v":172.51956410795847},{"$f":"E137+E138+E139","v":7159},{"$f":"SQRT((F137^2)+(F138^2)+(F139^2))","v":634.82438516490527},{"$f":"G137+G138+G139","v":1604},{"$f":"SQRT((H137^2)+(H138^2)+(H139^2))","v":261.05363433593487},{"$f":"I137+I138+I139","v":1093},{"$f":"SQRT((J137^2)+(J138^2)+(J139^2))","v":278.74360979222467},{"$f":"K137+K138+K139","v":238},{"$f":"SQRT((L137^2)+(L138^2)+(L139^2))","v":115.84903970253703},{"$f":"M137+M138+M139","v":192},{"$f":"SQRT((N137^2)+(N138^2)+(N139^2))","v":67.94115100585212},{"$f":"O137+O138+O139","v":51},{"$f":"SQRT((P137^2)+(P138^2)+(P139^2))","v":42.461747491124292},{"$f":"Q137+Q138+Q139","v":255},{"$f":"SQRT((R137^2)+(R138^2)+(R139^2))","v":95.592886764654196},{"$f":"S137+S138+S139","v":97},{"$f":"SQRT((T137^2)+(T138^2)+(T139^2))","v":49.979995998399197},{"$f":"U137+U138+U139","v":4764},{"$f":"SQRT((V137^2)+(V138^2)+(V139^2))","v":524.37581942725012},{"$f":"W137+W138+W139","v":357},{"$f":"SQRT((X137^2)+(X138^2)+(X139^2))","v":97.5551126287085},{"$f":"Y137+Y138+Y139","v":2352},{"$f":"SQRT((Z137^2)+(Z138^2)+(Z139^2))","v":373.7953985805604},{"$f":"AA137+AA138+AA139","v":130},{"$f":"SQRT((AB137^2)+(AB138^2)+(AB139^2))","v":90.19423484901904}]
[null," 50% or More of HH Income",{"$f":"C139","v":67},{"$f":"D139","v":68},{"$f":"E139","v":1270},{"$f":"F139","v":269},496,142,291,134,41,48,53,36,16,24,52,36,14,10,1021,247,96,44,461,169,34,51]
[null,"Not computed",{"$f":"C140","v":5},{"$f":"D140","v":11},{"$f":"E140","v":128},62,190,71,6,10,16,26,3,5,3,4,12,20,12,12,161,86,0,11,139,78,0,11]

{"sheet":"ACS_Table_B25074","index":55,"n_rows":485,"n_cols":28,"rows_kept":485,"cut":false,"hidden":true,"merged":[]}
[null,"B25074. HOUSEHOLD INCOME BY GROSS RENT AS A PERCENTAGE OF HOUSEHOLD INCOME IN THE PAST 12 MONTHS"]
[null,"Universe:  RENTER-OCCUPIED HOUSING UNITS"]
[null,"Data Set: 2018-2022 American Community Survey 5-Year Estimates",null,null,null,null,null,{"$f":"RentalHousingCost!D41","v":"Income in 2022 Inflation Adjusted Dollars"}]
[]
[null,null,"Barrington",null,"Dover",null,"Durham",null,"Farmington",null,"Lee",null,"Madbury",null,"Middleton",null,"Milton",null,"New Durham",null,"Rochester",null,"Rollinsford",null,"Somersworth",null,"Strafford"]
[null,null,"Estimate","Margin Of Error","Estimate","Margin Of Error","Estimate","Margin Of Error","Estimate","Margin Of Error","Estimate","Margin Of Error","Estimate","Margin Of Error","Estimate","Margin Of Error","Estimate","Margin Of Error","Estimate","Margin Of Error","Estimate","Margin Of Error","Estimate","Margin Of Error","Estimate","Margin Of Error","Estimate","Margin Of Error"]
[null,"Total:",327,147,7021,521,1143,175,887,218,167,125,130,59,34,20,212,93,93,60,4609,426,202,72,1844,355,97,56]
[null,"Less than $10,000:",13,21,258,123,198,107,49,66,51,80,0,12,3,4,18,21,4,7,300,147,14,23,35,38,12,19]
[null,"Less than 20.0 percent",0,17,0,25,0,19,0,17,0,12,0,12,0,12,0,12,0,12,0,25,0,12,0,19,0,12]
[null,"20.0 to 24.9 percent",0,17,0,25,0,19,0,17,0,12,0,12,0,12,0,12,0,12,0,25,0,12,0,19,0,12]
[null,"25.0 to 29.9 percent",0,17,0,25,0,19,0,17,0,12,0,12,0,12,0,12,0,12,0,25,0,12,0,19,0,12]
[null,"30.0 to 34.9 percent",0,17,0,25,0,19,0,17,0,12,0,12,0,12,0,12,0,12,0,25,0,12,0,19,0,12]
[null,"35.0 to 39.9 percent",0,17,0,25,0,19,0,17,0,12,0,12,0,12,0,12,0,12,0,25,0,12,0,19,0,12]
[null,"40.0 to 49.9 percent",0,17,0,25,0,19,0,17,0,12,0,12,0,12,0,12,0,12,11,20,0,12,0,19,0,12]
[null,"50.0 percent or more",0,17,190,95,123,88,49,66,51,80,0,12,3,4,6,10,4,7,200,127,0,12,22,28,12,19]
[null,"Not computed",13,21,68,85,75,69,0,17,0,12,0,12,0,12,12,19,0,12,89,81,14,23,13,23,0,12]
[null,"$10,000 to $19,999:",0,17,754,250,197,110,237,153,0,12,0,12,5,9,15,24,0,12,737,242,36,33,166,119,0,12]
[null,"Less than 20.0 percent",0,17,0,25,0,19,9,14,0,12,0,12,0,12,0,12,0,12,24,35,0,12,57,91,0,12]
[null,"20.0 to 24.9 percent",0,17,30,34,3,5,0,17,0,12,0,12,0,12,0,12,0,12,13,22,0,12,0,19,0,12]
[null,"25.0 to 29.9 percent",0,17,139,124,27,24,35,43,0,12,0,12,0,12,0,12,0,12,233,159,0,12,41,67,0,12]
[null,"30.0 to 34.9 percent",0,17,32,36,11,13,0,17,0,12,0,12,0,12,0,12,0,12,44,47,0,12,12,20,0,12]
[null,"35.0 to 39.9 percent",0,17,0,25,0,19,0,17,0,12,0,12,0,12,0,12,0,12,0,25,0,12,0,19,0,12]
[null,"40.0 to 49.9 percent",0,17,0,25,0,19,0,17,0,12,0,12,0,12,0,12,0,12,84,112,0,12,12,20,0,12]
[null,"50.0 percent or more",0,17,511,205,156,107,124,119,0,12,0,12,5,9,15,24,0,12,322,171,36,33,44,46,0,12]
[null,"Not computed",0,17,42,62,0,19,69,86,0,12,0,12,0,12,0,12,0,12,17,28,0,12,0,19,0,12]
[null,"$20,000 to $34,999:",29,46,743,248,112,58,230,127,15,23,5,6,0,12,35,35,20,13,812,306,39,35,443,280,0,12]
[null,"Less than 20.0 percent",0,17,15,26,0,19,0,17,0,12,0,12,0,12,0,12,0,12,50,41,0,12,15,25,0,12]
[null,"20.0 to 24.9 percent",0,17,0,25,0,19,0,17,0,12,0,12,0,12,0,12,0,12,27,43,0,12,22,38,0,12]
[null,"25.0 to 29.9 percent",0,17,104,134,18,27,18,30,0,12,2,4,0,12,0,12,0,12,195,227,0,12,0,19,0,12]
[null,"30.0 to 34.9 percent",0,17,31,50,0,19,37,45,0,12,0,12,0,12,0,12,0,12,41,42,0,12,0,19,0,12]
[null,"35.0 to 39.9 percent",0,17,44,43,0,19,58,85,0,12,0,12,0,12,15,23,0,12,33,32,0,12,40,53,0,12]
[null,"40.0 to 49.9 percent",0,17,212,115,50,35,61,74,0,12,0,12,0,12,15,23,0,12,131,90,0,12,149,165,0,12]
[null,"50.0 percent or more",29,46,337,142,44,38,56,64,0,12,3,4,0,12,5,10,20,13,314,132,29,33,217,222,0,12]
[null,"Not computed",0,17,0,25,0,19,0,17,15,23,0,12,0,12,0,12,0,12,21,37,10,15,0,19,0,12]
[null,"$35,000 to $49,999:",128,109,1057,285,176,104,176,108,34,38,8,10,13,14,58,47,0,12,466,227,23,27,127,109,17,19]
[null,"Less than 20.0 percent",0,17,40,46,0,19,19,33,16,24,5,8,0,12,0,12,0,12,9,15,18,26,0,19,0,12]
[null,"20.0 to 24.9 percent",0,17,0,25,0,19,16,30,0,12,0,12,0,12,0,12,0,12,16,26,5,7,0,19,0,12]
[null,"25.0 to 29.9 percent",30,50,110,103,12,15,25,40,0,12,0,12,0,12,23,37,0,12,59,53,0,12,27,34,0,12]
[null,"30.0 to 34.9 percent",53,79,230,114,0,19,0,17,0,12,0,12,0,12,14,17,0,12,101,101,0,12,32,37,9,14]
[null,"35.0 to 39.9 percent",0,17,120,105,68,76,93,93,0,12,3,5,0,12,11,17,0,12,168,178,0,12,55,87,0,12]
[null,"40.0 to 49.9 percent",0,17,381,238,48,49,0,17,0,12,0,12,8,12,0,12,0,12,57,43,0,12,12,20,8,12]
[null,"50.0 percent or more",45,67,168,140,26,32,0,17,18,29,0,12,0,12,0,12,0,12,56,47,0,12,1,13,0,12]
[null,"Not computed",0,17,8,13,22,24,23,36,0,12,0,12,5,7,10,17,0,12,0,25,0,12,0,19,0,12]
[null,"$50,000 to $74,999:",43,48,1346,337,207,133,136,115,17,28,42,40,3,4,18,21,40,48,909,234,20,14,409,245,62,48]
[null,"Less than 20.0 percent",0,17,237,138,20,24,0,17,17,28,26,36,0,12,9,16,0,12,193,95,0,12,53,63,0,12]
[null,"20.0 to 24.9 percent",0,17,246,119,16,24,79,117,0,12,0,12,0,12,9,14,16,22,150,87,5,7,181,188,0,12]
[null,"25.0 to 29.9 percent",0,17,222,101,10,11,0,17,0,12,0,12,0,12,0,12,24,41,221,120,5,7,60,72,21,32]
[null,"30.0 to 34.9 percent",24,33,275,128,15,20,30,49,0,12,10,16,0,12,0,12,0,12,190,126,0,12,25,46,41,34]
[null,"35.0 to 39.9 percent",0,17,180,208,7,12,9,18,0,12,2,4,0,12,0,12,0,12,66,73,0,12,90,110,0,12]
[null,"40.0 to 49.9 percent",0,17,131,89,15,18,0,17,0,12,0,12,0,12,0,12,0,12,89,80,0,12,0,19,0,12]
[null,"50.0 percent or more",0,17,38,49,115,120,0,17,0,12,0,12,0,12,0,12,0,12,0,25,0,12,0,19,0,12]
[null,"Not computed",19,30,17,29,9,15,18,29,0,12,4,7,3,4,0,12,0,12,0,25,10,12,0,19,0,12]
[null,"$75,000 to $99,999:",59,52,1007,271,108,52,22,37,0,12,29,32,7,10,8,14,24,31,508,186,33,38,294,173,0,12]
[null,"Less than 20.0 percent",0,17,538,198,79,49,0,17,0,12,2,5,7,10,8,14,0,12,312,155,7,10,90,85,0,12]
[null,"20.0 to 24.9 percent",26,42,308,168,22,23,22,37,0,12,27,30,0,12,0,12,4,7,35,44,6,9,45,69,0,12]
[null,"25.0 to 29.9 percent",33,51,79,64,0,19,0,17,0,12,0,12,0,12,0,12,0,12,121,109,0,12,115,113,0,12]
[null,"30.0 to 34.9 percent",0,17,70,65,0,19,0,17,0,12,0,12,0,12,0,12,0,12,22,23,0,12,18,29,0,12]
[null,"35.0 to 39.9 percent",0,17,0,25,7,10,0,17,0,12,0,12,0,12,0,12,0,12,0,25,0,12,26,42,0,12]
[null,"40.0 to 49.9 percent",0,17,12,19,0,19,0,17,0,12,0,12,0,12,0,12,0,12,8,12,0,12,0,19,0,12]
[null,"50.0 percent or more",0,17,0,25,0,19,0,17,0,12,0,12,0,12,0,12,0,12,0,25,0,12,0,19,0,12]
[null,"Not computed",0,17,0,25,0,19,0,17,0,12,0,12,0,12,0,12,20,27,10,15,20,35,0,19,0,12]
[null,"$100,000 or more:",55,57,1856,327,145,65,37,57,50,75,46,28,3,4,60,65,5,7,877,244,37,29,370,175,6,9]
[null,"Less than 20.0 percent",0,17,1464,360,118,59,37,57,50,75,11,10,3,4,37,40,5,7,746,237,30,27,348,171,6,9]
[null,"20.0 to 24.9 percent",29,36,244,172,6,9,0,17,0,12,19,13,0,12,23,38,0,12,116,84,7,10,22,34,0,12]
[null,"25.0 to 29.9 percent",26,41,69,48,0,19,0,17,0,12,0,12,0,12,0,12,0,12,0,25,0,12,0,19,0,12]
[null,"30.0 to 34.9 percent",0,17,39,45,0,19,0,17,0,12,0,12,0,12,0,12,0,12,0,25,0,12,0,19,0,12]
[null,"35.0 to 39.9 percent",0,17,15,24,0,19,0,17,0,12,0,12,0,12,0,12,0,12,0,25,0,12,0,19,0,12]
[null,"40.0 to 49.9 percent",0,17,0,25,12,20,0,17,0,12,0,12,0,12,0,12,0,12,0,25,0,12,0,19,0,12]
[null,"50.0 percent or more",0,17,0,25,9,16,0,17,0,12,0,12,0,12,0,12,0,12,0,25,0,12,0,19,0,12]
[null,"Not computed",0,17,25,31,0,19,0,17,0,12,16,25,0,12,0,12,0,12,15,24,0,12,0,19,0,12]
[]
[]
[]
[]
[]
[]
[]
[]
[]
[]
[]
[]
[]
[]
[]
[null,"Calculated B25074. HOUSEHOLD INCOME BY GROSS RENT AS A PERCENTAGE OF HOUSEHOLD INCOME IN THE PAST 12 MONTHS"]
[null,"Universe:  RENTER-OCCUPIED HOUSING UNITS"]
[null,"Data Set: 2018-2022 American Community Survey 5-Year Estimates"]
[]
[null,null,"Barrington",null,"Dover",null,"Durham",null,"Farmington",null,"Lee",null,"Madbury",null,"Middleton",null,"Milton",null,"New Durham",null,"Rochester",null,"Rollinsford",null,"Somersworth",null,"Strafford"]
[null,null,"Estimate","Margin Of Error","Estimate","Margin Of Error","Estimate","Margin Of Error","Estimate","Margin Of Error","Estimate","Margin Of Error","Estimate","Margin Of Error","Estimate","Margin Of Error","Estimate","Margin Of Error","Estimate","Margin Of Error","Estimate","Margin Of Error","Estimate","Margin Of Error","Estimate","Margin Of Error","Estimate","Margin Of Error"]
[null,"Total:",{"$f":"C7","v":327},{"$f":"D7","v":147},{"$f":"E7","v":7021},521,1143,175,887,218,167,125,130,59,34,20,212,93,{"$f":"S7","v":93},60,4609,426,202,72,1844,355,97,56]
[null,"Less than $10,000:",{"$f":"C8","v":13},{"$f":"D8","v":21},258,123,198,107,49,66,51,80,0,12,3,4,18,21,4,7,300,147,14,23,35,38,12,19]
[null,"Less than 30.0 percent",{"$f":"C9+C10+C11","v":0},{"$f":"SQRT((D9^2)+(D10^2)+(D11^2))","v":29.444863728670914},{"$f":"E9+E10+E11","v":0},{"$f":"SQRT((F9^2)+(F10^2)+(F11^2))","v":43.301270189221931},{"$f":"G9+G10+G11","v":0},{"$f":"SQRT((H9^2)+(H10^2)+(H11^2))","v":32.908965343808667},{"$f":"I9+I10+I11","v":0},{"$f":"SQRT((J9^2)+(J10^2)+(J11^2))","v":29.444863728670914},{"$f":"K9+K10+K11","v":0},{"$f":"SQRT((L9^2)+(L10^2)+(L11^2))","v":20.784609690826528},{"$f":"M9+M10+M11","v":0},{"$f":"SQRT((N9^2)+(N10^2)+(N11^2))","v":20.784609690826528},{"$f":"O9+O10+O11","v":0},{"$f":"SQRT((P9^2)+(P10^2)+(P11^2))","v":20.784609690826528},{"$f":"Q9+Q10+Q11","v":0},{"$f":"SQRT((R9^2)+(R10^2)+(R11^2))","v":20.784609690826528},{"$f":"S9+S10+S11","v":0},{"$f":"SQRT((T9^2)+(T10^2)+(T11^2))","v":20.784609690826528},{"$f":"U9+U10+U11","v":0},{"$f":"SQRT((V9^2)+(V10^2)+(V11^2))","v":43.301270189221931},{"$f":"W9+W10+W11","v":0},{"$f":"SQRT((X9^2)+(X10^2)+(X11^2))","v":20.784609690826528},{"$f":"Y9+Y10+Y11","v":0},{"$f":"SQRT((Z9^2)+(Z10^2)+(Z11^2))","v":32.908965343808667},{"$f":"AA9+AA10+AA11","v":0},{"$f":"SQRT((AB9^2)+(AB10^2)+(AB11^2))","v":20.784609690826528}]
[null,"More than 30.0 percent",{"$f":"C12+C13+C14+C15","v":0},{"$f":"SQRT((D12^2)+(D13^2)+(D14^2)+(D15^2))","v":34},{"$f":"E12+E13+E14+E15","v":190},{"$f":"SQRT((F12^2)+(F13^2)+(F14^2)+(F15^2))","v":104.4030650891055},{"$f":"G12+G13+G14+G15","v":123},{"$f":"SQRT((H12^2)+(H13^2)+(H14^2)+(H15^2))","v":93.95211546314431},{"$f":"I12+I13+I14+I15","v":49},{"$f":"SQRT((J12^2)+(J13^2)+(J14^2)+(J15^2))","v":72.270325860618613},{"$f":"K12+K13+K14+K15","v":51},{"$f":"SQRT((L12^2)+(L13^2)+(L14^2)+(L15^2))","v":82.655913279087301},{"$f":"M12+M13+M14+M15","v":0},{"$f":"SQRT((N12^2)+(N13^2)+(N14^2)+(N15^2))","v":24},{"$f":"O12+O13+O14+O15","v":3},{"$f":"SQRT((P12^2)+(P13^2)+(P14^2)+(P15^2))","v":21.166010488516726},{"$f":"Q12+Q13+Q14+Q15","v":6},{"$f":"SQRT((R12^2)+(R13^2)+(R14^2)+(R15^2))","v":23.065125189341593},{"$f":"S12+S13+S14+S15","v":4},{"$f":"SQRT((T12^2)+(T13^2)+(T14^2)+(T15^2))","v":21.931712199461309},{"$f":"U12+U13+U14+U15","v":211},{"$f":"SQRT((V12^2)+(V13^2)+(V14^2)+(V15^2))","v":133.33791658789335},{"$f":"W12+W13+W14+W15","v":0},{"$f":"SQRT((X12^2)+(X13^2)+(X14^2)+(X15^2))","v":24},{"$f":"Y12+Y13+Y14+Y15","v":22},{"$f":"SQRT((Z12^2)+(Z13^2)+(Z14^2)+(Z15^2))","v":43.208795400936602},{"$f":"AA12+AA13+AA14+AA15","v":12},{"$f":"SQRT((AB12^2)+(AB13^2)+(AB14^2)+(AB15^2))","v":28.160255680657446}]
[null,"Less Than 35% of HH Income",{"$f":"C9+C10+C11+C12","v":0},{"$f":"SQRT((D9^2)+(D10^2)+(D11^2)+(D12^2))","v":34},{"$f":"E9+E10+E11+E12","v":0},{"$f":"SQRT((F9^2)+(F10^2)+(F11^2)+(F12^2))","v":50},{"$f":"G9+G10+G11+G12","v":0},{"$f":"SQRT((H9^2)+(H10^2)+(H11^2)+(H12^2))","v":38},{"$f":"I9+I10+I11+I12","v":0},{"$f":"SQRT((J9^2)+(J10^2)+(J11^2)+(J12^2))","v":34},{"$f":"K9+K10+K11+K12","v":0},{"$f":"SQRT((L9^2)+(L10^2)+(L11^2)+(L12^2))","v":24},{"$f":"M9+M10+M11+M12","v":0},{"$f":"SQRT((N9^2)+(N10^2)+(N11^2)+(N12^2))","v":24},{"$f":"O9+O10+O11+O12","v":0},{"$f":"SQRT((P9^2)+(P10^2)+(P11^2)+(P12^2))","v":24},{"$f":"Q9+Q10+Q11+Q12","v":0},{"$f":"SQRT((R9^2)+(R10^2)+(R11^2)+(R12^2))","v":24},{"$f":"S9+S10+S11+S12","v":0},{"$f":"SQRT((T9^2)+(T10^2)+(T11^2)+(T12^2))","v":24},{"$f":"U9+U10+U11+U12","v":0},{"$f":"SQRT((V9^2)+(V10^2)+(V11^2)+(V12^2))","v":50},{"$f":"W9+W10+W11+W12","v":0},{"$f":"SQRT((X9^2)+(X10^2)+(X11^2)+(X12^2))","v":24},{"$f":"Y9+Y10+Y11+Y12","v":0},{"$f":"SQRT((Z9^2)+(Z10^2)+(Z11^2)+(Z12^2))","v":38},{"$f":"AA9+AA10+AA11+AA12","v":0},{"$f":"SQRT((AB9^2)+(AB10^2)+(AB11^2)+(AB12^2))","v":24}]
[null,"35.0 percent or more",{"$f":"C13+C14++C15","v":0},{"$f":"SQRT((D13^2)+(D14^2)+(D15^2))","v":29.444863728670914},{"$f":"E13+E14++E15","v":190},{"$f":"SQRT((F13^2)+(F14^2)+(F15^2))","v":101.36567466356647},{"$f":"G13+G14++G15","v":123},{"$f":"SQRT((H13^2)+(H14^2)+(H15^2))","v":92.010868923187545},{"$f":"I13+I14++I15","v":49},{"$f":"SQRT((J13^2)+(J14^2)+(J15^2))","v":70.242437315343778},{"$f":"K13+K14++K15","v":51},{"$f":"SQRT((L13^2)+(L14^2)+(L15^2))","v":81.780193201043488},{"$f":"M13+M14++M15","v":0},{"$f":"SQRT((N13^2)+(N14^2)+(N15^2))","v":20.784609690826528},{"$f":"O13+O14++O15","v":3},{"$f":"SQRT((P13^2)+(P14^2)+(P15^2))","v":17.435595774162696},{"$f":"Q13+Q14++Q15","v":6},{"$f":"SQRT((R13^2)+(R14^2)+(R15^2))","v":19.697715603592208},{"$f":"S13+S14++S15","v":4},{"$f":"SQRT((T13^2)+(T14^2)+(T15^2))","v":18.357559750685819},{"$f":"U13+U14++U15","v":211},{"$f":"SQRT((V13^2)+(V14^2)+(V15^2))","v":130.97327971765844},{"$f":"W13+W14++W15","v":0},{"$f":"SQRT((X13^2)+(X14^2)+(X15^2))","v":20.784609690826528},{"$f":"Y13+Y14++Y15","v":22},{"$f":"SQRT((Z13^2)+(Z14^2)+(Z15^2))","v":38.80721582386451},{"$f":"AA13+AA14++AA15","v":12},{"$f":"SQRT((AB13^2)+(AB14^2)+(AB15^2))","v":25.475478405713993}]
[null,"50.0 percent or more",{"$f":"C15","v":0},17,190,95,123,88,49,66,51,80,0,12,3,4,6,10,4,7,200,127,0,12,22,28,12,19]
[null,"Not Computed",{"$f":"C16","v":13},21,68,85,75,69,0,17,0,12,0,12,0,12,12,19,0,12,89,81,14,23,13,23,0,12]
[null,"$10,000 to $19,999:",{"$f":"C17","v":0},{"$f":"D17","v":17},{"$f":"E17","v":754},250,197,110,237,153,0,12,0,12,5,9,15,24,0,12,737,242,36,33,166,119,0,12]
[null,"Less than 30.0 percent",{"$f":"C18+C19+C20","v":0},{"$f":"SQRT((D18^2)+(D19^2)+(D20^2))","v":29.444863728670914},{"$f":"E18+E19+E20","v":169},{"$f":"SQRT((F18^2)+(F19^2)+(F20^2))","v":130.98473193468007},{"$f":"G18+G19+G20","v":30},{"$f":"SQRT((H18^2)+(H19^2)+(H20^2))","v":31.016124838541646},{"$f":"I18+I19+I20","v":44},{"$f":"SQRT((J18^2)+(J19^2)+(J20^2))","v":48.311489316724654},{"$f":"K18+K19+K20","v":0},{"$f":"SQRT((L18^2)+(L19^2)+(L20^2))","v":20.784609690826528},{"$f":"M18+M19+M20","v":0},{"$f":"SQRT((N18^2)+(N19^2)+(N20^2))","v":20.784609690826528},{"$f":"O18+O19+O20","v":0},{"$f":"SQRT((P18^2)+(P19^2)+(P20^2))","v":20.784609690826528},{"$f":"Q18+Q19+Q20","v":0},{"$f":"SQRT((R18^2)+(R19^2)+(R20^2))","v":20.784609690826528},{"$f":"S18+S19+S20","v":0},{"$f":"SQRT((T18^2)+(T19^2)+(T20^2))","v":20.784609690826528},{"$f":"U18+U19+U20","v":270},{"$f":"SQRT((V18^2)+(V19^2)+(V20^2))","v":164.28633540255257},{"$f":"W18+W19+W20","v":0},{"$f":"SQRT((X18^2)+(X19^2)+(X20^2))","v":20.784609690826528},{"$f":"Y18+Y19+Y20","v":98},{"$f":"SQRT((Z18^2)+(Z19^2)+(Z20^2))","v":114.59057552870567},{"$f":"AA18+AA19+AA20","v":0},{"$f":"SQRT((AB18^2)+(AB19^2)+(AB20^2))","v":20.784609690826528}]
[null,"More than 30.0 percent",{"$f":"C21+C22+C23+C24","v":0},{"$f":"SQRT((D21^2)+(D22^2)+(D23^2)+(D24^2))","v":34},{"$f":"E21+E22+E23+E24","v":543},{"$f":"SQRT((F21^2)+(F22^2)+(F23^2)+(F24^2))","v":211.11845016483045},{"$f":"G21+G22+G23+G24","v":167},{"$f":"SQRT((H21^2)+(H22^2)+(H23^2)+(H24^2))","v":111.08555261599052},{"$f":"I21+I22+I23+I24","v":124},{"$f":"SQRT((J21^2)+(J22^2)+(J23^2)+(J24^2))","v":122.58874336577564},{"$f":"K21+K22+K23+K24","v":0},{"$f":"SQRT((L21^2)+(L22^2)+(L23^2)+(L24^2))","v":24},{"$f":"M21+M22+M23+M24","v":0},{"$f":"SQRT((N21^2)+(N22^2)+(N23^2)+(N24^2))","v":24},{"$f":"O21+O22+O23+O24","v":5},{"$f":"SQRT((P21^2)+(P22^2)+(P23^2)+(P24^2))","v":22.649503305812249},{"$f":"Q21+Q22+Q23+Q24","v":15},{"$f":"SQRT((R21^2)+(R22^2)+(R23^2)+(R24^2))","v":31.749015732775089},{"$f":"S21+S22+S23+S24","v":0},{"$f":"SQRT((T21^2)+(T22^2)+(T23^2)+(T24^2))","v":24},{"$f":"U21+U22+U23+U24","v":450},{"$f":"SQRT((V21^2)+(V22^2)+(V23^2)+(V24^2))","v":211.23209983333498},{"$f":"W21+W22+W23+W24","v":36},{"$f":"SQRT((X21^2)+(X22^2)+(X23^2)+(X24^2))","v":39},{"$f":"Y21+Y22+Y23+Y24","v":68},{"$f":"SQRT((Z21^2)+(Z22^2)+(Z23^2)+(Z24^2))","v":57.245087125446844},{"$f":"AA21+AA22+AA23+AA24","v":0},{"$f":"SQRT((AB21^2)+(AB22^2)+(AB23^2)+(AB24^2))","v":24}]
[null,"Less Than 35% of HH Income",{"$f":"C18+C19+C20+C21","v":0},{"$f":"SQRT((D18^2)+(D19^2)+(D20^2)+(D21^2))","v":34},{"$f":"E18+E19+E20+E21","v":201},{"$f":"SQRT((F18^2)+(F19^2)+(F20^2)+(F21^2))","v":135.84181977579658},{"$f":"G18+G19+G20+G21","v":41},{"$f":"SQRT((H18^2)+(H19^2)+(H20^2)+(H21^2))","v":33.630343441600473},{"$f":"I18+I19+I20+I21","v":44},{"$f":"SQRT((J18^2)+(J19^2)+(J20^2)+(J21^2))","v":51.215232109207513},{"$f":"K18+K19+K20+K21","v":0},{"$f":"SQRT((L18^2)+(L19^2)+(L20^2)+(L21^2))","v":24},{"$f":"M18+M19+M20+M21","v":0},{"$f":"SQRT((N18^2)+(N19^2)+(N20^2)+(N21^2))","v":24},{"$f":"O18+O19+O20+O21","v":0},{"$f":"SQRT((P18^2)+(P19^2)+(P20^2)+(P21^2))","v":24},{"$f":"Q18+Q19+Q20+Q21","v":0},{"$f":"SQRT((R18^2)+(R19^2)+(R20^2)+(R21^2))","v":24},{"$f":"S18+S19+S20+S21","v":0},{"$f":"SQRT((T18^2)+(T19^2)+(T20^2)+(T21^2))","v":24},{"$f":"U18+U19+U20+U21","v":314},{"$f":"SQRT((V18^2)+(V19^2)+(V20^2)+(V21^2))","v":170.87714885261869},{"$f":"W18+W19+W20+W21","v":0},{"$f":"SQRT((X18^2)+(X19^2)+(X20^2)+(X21^2))","v":24},{"$f":"Y18+Y19+Y20+Y21","v":110},{"$f":"SQRT((Z18^2)+(Z19^2)+(Z20^2)+(Z21^2))","v":116.32282665066217},{"$f":"AA18+AA19+AA20+AA21","v":0},{"$f":"SQRT((AB18^2)+(AB19^2)+(AB20^2)+(AB21^2))","v":24}]
[null,"35.0 percent or more",{"$f":"C22+C23++C24","v":0},{"$f":"SQRT((D22^2)+(D23^2)+(D24^2))","v":29.444863728670914},{"$f":"E22+E23++E24","v":511},{"$f":"SQRT((F22^2)+(F23^2)+(F24^2))","v":208.0264406271472},{"$f":"G22+G23++G24","v":156},{"$f":"SQRT((H22^2)+(H23^2)+(H24^2))","v":110.32225523438143},{"$f":"I22+I23++I24","v":124},{"$f":"SQRT((J22^2)+(J23^2)+(J24^2))","v":121.40428328522844},{"$f":"K22+K23++K24","v":0},{"$f":"SQRT((L22^2)+(L23^2)+(L24^2))","v":20.784609690826528},{"$f":"M22+M23++M24","v":0},{"$f":"SQRT((N22^2)+(N23^2)+(N24^2))","v":20.784609690826528},{"$f":"O22+O23++O24","v":5},{"$f":"SQRT((P22^2)+(P23^2)+(P24^2))","v":19.209372712298546},{"$f":"Q22+Q23++Q24","v":15},{"$f":"SQRT((R22^2)+(R23^2)+(R24^2))","v":29.393876913398138},{"$f":"S22+S23++S24","v":0},{"$f":"SQRT((T22^2)+(T23^2)+(T24^2))","v":20.784609690826528},{"$f":"U22+U23++U24","v":406},{"$f":"SQRT((V22^2)+(V23^2)+(V24^2))","v":205.9368835347374},{"$f":"W22+W23++W24","v":36},{"$f":"SQRT((X22^2)+(X23^2)+(X24^2))","v":37.107950630558946},{"$f":"Y22+Y23++Y24","v":56},{"$f":"SQRT((Z22^2)+(Z23^2)+(Z24^2))","v":53.637673327615545},{"$f":"AA22+AA23++AA24","v":0},{"$f":"SQRT((AB22^2)+(AB23^2)+(AB24^2))","v":20.784609690826528}]
[null,"50.0 percent or more",{"$f":"C24","v":0},{"$f":"D24","v":17},{"$f":"E24","v":511},{"$f":"F24","v":205},{"$f":"G24","v":156},107,{"$f":"I24","v":124},119,{"$f":"K24","v":0},12,{"$f":"M24","v":0},12,{"$f":"O24","v":5},9,{"$f":"Q24","v":15},24,{"$f":"S24","v":0},12,{"$f":"U24","v":322},171,{"$f":"W24","v":36},33,{"$f":"Y24","v":44},46,{"$f":"AA24","v":0},12]
[null,"Not Computed",{"$f":"C25","v":0},{"$f":"D25","v":17},{"$f":"E25","v":42},62,0,19,69,86,0,12,0,12,0,12,0,12,{"$f":"S25","v":0},12,17,28,0,12,0,19,0,12]
[null,"$20,000 to $34,999:",{"$f":"C26","v":29},{"$f":"D26","v":46},743,248,112,58,230,127,15,23,5,6,0,12,35,35,20,13,812,306,39,35,443,280,0,12]
[null,"Less than 30.0 percent",{"$f":"C27+C28+C29","v":0},{"$f":"SQRT((D27^2)+(D28^2)+(D29^2))","v":29.444863728670914},{"$f":"E27+E28+E29","v":119},{"$f":"SQRT((F27^2)+(F28^2)+(F29^2))","v":138.76959321119307},{"$f":"G27+G28+G29","v":18},{"$f":"SQRT((H27^2)+(H28^2)+(H29^2))","v":38.091993909481822},{"$f":"I27+I28+I29","v":18},{"$f":"SQRT((J27^2)+(J28^2)+(J29^2))","v":38.444765573482172},{"$f":"K27+K28+K29","v":0},{"$f":"SQRT((L27^2)+(L28^2)+(L29^2))","v":20.784609690826528},{"$f":"M27+M28+M29","v":2},{"$f":"SQRT((N27^2)+(N28^2)+(N29^2))","v":17.435595774162696},{"$f":"O27+O28+O29","v":0},{"$f":"SQRT((P27^2)+(P28^2)+(P29^2))","v":20.784609690826528},{"$f":"Q27+Q28+Q29","v":0},{"$f":"SQRT((R27^2)+(R28^2)+(R29^2))","v":20.784609690826528},{"$f":"S27+S28+S29","v":0},{"$f":"SQRT((T27^2)+(T28^2)+(T29^2))","v":20.784609690826528},{"$f":"U27+U28+U29","v":272},{"$f":"SQRT((V27^2)+(V28^2)+(V29^2))","v":234.64654269773504},{"$f":"W27+W28+W29","v":0},{"$f":"SQRT((X27^2)+(X28^2)+(X29^2))","v":20.784609690826528},{"$f":"Y27+Y28+Y29","v":37},{"$f":"SQRT((Z27^2)+(Z28^2)+(Z29^2))","v":49.295030175464952},{"$f":"AA27+AA28+AA29","v":0},{"$f":"SQRT((AB27^2)+(AB28^2)+(AB29^2))","v":20.784609690826528}]
[null,"More than 30.0 percent",{"$f":"C30+C31+C32+C33","v":29},{"$f":"SQRT((D30^2)+(D31^2)+(D32^2)+(D33^2))","v":54.616847217685496},{"$f":"E30+E31+E32+E33","v":624},{"$f":"SQRT((F30^2)+(F31^2)+(F32^2)+(F33^2))","v":194.26270872197782},{"$f":"G30+G31+G32+G33","v":94},{"$f":"SQRT((H30^2)+(H31^2)+(H32^2)+(H33^2))","v":58.232293446162672},{"$f":"I30+I31+I32+I33","v":212},{"$f":"SQRT((J30^2)+(J31^2)+(J32^2)+(J33^2))","v":137.19329429676947},{"$f":"K30+K31+K32+K33","v":0},{"$f":"SQRT((L30^2)+(L31^2)+(L32^2)+(L33^2))","v":24},{"$f":"M30+M31+M32+M33","v":3},{"$f":"SQRT((N30^2)+(N31^2)+(N32^2)+(N33^2))","v":21.166010488516726},{"$f":"O30+O31+O32+O33","v":0},{"$f":"SQRT((P30^2)+(P31^2)+(P32^2)+(P33^2))","v":24},{"$f":"Q30+Q31+Q32+Q33","v":35},{"$f":"SQRT((R30^2)+(R31^2)+(R32^2)+(R33^2))","v":36.083237105337432},{"$f":"S30+S31+S32+S33","v":20},{"$f":"SQRT((T30^2)+(T31^2)+(T32^2)+(T33^2))","v":24.515301344262525},{"$f":"U30+U31+U32+U33","v":519},{"$f":"SQRT((V30^2)+(V31^2)+(V32^2)+(V33^2))","v":168.26170093042563},{"$f":"W30+W31+W32+W33","v":29},{"$f":"SQRT((X30^2)+(X31^2)+(X32^2)+(X33^2))","v":39},{"$f":"Y30+Y31+Y32+Y33","v":406},{"$f":"SQRT((Z30^2)+(Z31^2)+(Z32^2)+(Z33^2))","v":282.27468891135101},{"$f":"AA30+AA31+AA32+AA33","v":0},{"$f":"SQRT((AB30^2)+(AB31^2)+(AB32^2)+(AB33^2))","v":24}]
[null,"Less Than 35% of HH Income",{"$f":"C27+C28+C29+C30","v":0},{"$f":"SQRT((D27^2)+(D28^2)+(D29^2)+(D30^2))","v":34},{"$f":"E27+E28+E29+E30","v":150},{"$f":"SQRT((F27^2)+(F28^2)+(F29^2)+(F30^2))","v":147.50254235097103},{"$f":"G27+G28+G29+G30","v":18},{"$f":"SQRT((H27^2)+(H28^2)+(H29^2)+(H30^2))","v":42.567593307585526},{"$f":"I27+I28+I29+I30","v":55},{"$f":"SQRT((J27^2)+(J28^2)+(J29^2)+(J30^2))","v":59.186147027830764},{"$f":"K27+K28+K29+K30","v":0},{"$f":"SQRT((L27^2)+(L28^2)+(L29^2)+(L30^2))","v":24},{"$f":"M27+M28+M29+M30","v":2},{"$f":"SQRT((N27^2)+(N28^2)+(N29^2)+(N30^2))","v":21.166010488516726},{"$f":"O27+O28+O29+O30","v":0},{"$f":"SQRT((P27^2)+(P28^2)+(P29^2)+(P30^2))","v":24},{"$f":"Q27+Q28+Q29+Q30","v":0},{"$f":"SQRT((R27^2)+(R28^2)+(R29^2)+(R30^2))","v":24},{"$f":"S27+S28+S29+S30","v":0},{"$f":"SQRT((T27^2)+(T28^2)+(T29^2)+(T30^2))","v":24},{"$f":"U27+U28+U29+U30","v":313},{"$f":"SQRT((V27^2)+(V28^2)+(V29^2)+(V30^2))","v":238.37575380059104},{"$f":"W27+W28+W29+W30","v":0},{"$f":"SQRT((X27^2)+(X28^2)+(X29^2)+(X30^2))","v":24},{"$f":"Y27+Y28+Y29+Y30","v":37},{"$f":"SQRT((Z27^2)+(Z28^2)+(Z29^2)+(Z30^2))","v":52.829915767489162},{"$f":"AA27+AA28+AA29+AA30","v":0},{"$f":"SQRT((AB27^2)+(AB28^2)+(AB29^2)+(AB30^2))","v":24}]
[null,"35.0 percent or more",{"$f":"C31+C32+C33","v":29},{"$f":"SQRT((D31^2)+(D32^2)+(D33^2))","v":51.903757089443921},{"$f":"E31+E32+E33","v":593},{"$f":"SQRT((F31^2)+(F32^2)+(F33^2))","v":187.71787341646507},{"$f":"G31+G32+G33","v":94},{"$f":"SQRT((H31^2)+(H32^2)+(H33^2))","v":55.045435778091537},{"$f":"I31+I32+I33","v":175},{"$f":"SQRT((J31^2)+(J32^2)+(J33^2))","v":129.60324070022324},{"$f":"K31+K32+K33","v":0},{"$f":"SQRT((L31^2)+(L32^2)+(L33^2))","v":20.784609690826528},{"$f":"M31+M32+M33","v":3},{"$f":"SQRT((N31^2)+(N32^2)+(N33^2))","v":17.435595774162696},{"$f":"O31+O32+O33","v":0},{"$f":"SQRT((P31^2)+(P32^2)+(P33^2))","v":20.784609690826528},{"$f":"Q31+Q32+Q33","v":35},{"$f":"SQRT((R31^2)+(R32^2)+(R33^2))","v":34.02939905434711},{"$f":"S31+S32+S33","v":20},{"$f":"SQRT((T31^2)+(T32^2)+(T33^2))","v":21.377558326431949},{"$f":"U31+U32+U33","v":478},{"$f":"SQRT((V31^2)+(V32^2)+(V33^2))","v":162.93557008830209},{"$f":"W31+W32+W33","v":29},{"$f":"SQRT((X31^2)+(X32^2)+(X33^2))","v":37.107950630558946},{"$f":"Y31+Y32+Y33","v":406},{"$f":"SQRT((Z31^2)+(Z32^2)+(Z33^2))","v":281.63451493025497},{"$f":"AA31+AA32+AA33","v":0},{"$f":"SQRT((AB31^2)+(AB32^2)+(AB33^2))","v":20.784609690826528}]
[null,"50.0 percent or more",{"$f":"C33","v":29},46,{"$f":"E33","v":337},142,44,38,56,64,0,12,3,4,0,12,5,10,{"$f":"S33","v":20},13,314,132,29,33,217,222,0,12]
[null,"Not Computed",0,17,0,25,0,19,0,17,15,23,0,12,0,12,0,12,0,12,21,37,10,15,0,19,0,12]
[null,"$35,000 to $49,999:",128,109,1057,285,176,104,176,108,34,38,8,10,13,14,58,47,0,12,466,227,23,27,127,109,17,19]
[null,"Less than 30.0 percent",{"$f":"C36+C37+C38","v":30},{"$f":"SQRT((D36^2)+(D37^2)+(D38^2))","v":55.47972602672079},{"$f":"E36+E37+E38","v":150},{"$f":"SQRT((F36^2)+(F37^2)+(F38^2))","v":115.54220008291342},{"$f":"G36+G37+G38","v":12},{"$f":"SQRT((H36^2)+(H37^2)+(H38^2))","v":30.773365106858236},{"$f":"I36+I37+I38","v":60},{"$f":"SQRT((J36^2)+(J37^2)+(J38^2))","v":59.908263203000637},{"$f":"K36+K37+K38","v":16},{"$f":"SQRT((L36^2)+(L37^2)+(L38^2))","v":29.393876913398138},{"$f":"M36+M37+M38","v":5},{"$f":"SQRT((N36^2)+(N37^2)+(N38^2))","v":18.761663039293719},{"$f":"O36+O37+O38","v":0},{"$f":"SQRT((P36^2)+(P37^2)+(P38^2))","v":20.784609690826528},{"$f":"Q36+Q37+Q38","v":23},{"$f":"SQRT((R36^2)+(R37^2)+(R38^2))","v":40.70626487409524},{"$f":"S36+S37+S38","v":0},{"$f":"SQRT((T36^2)+(T37^2)+(T38^2))","v":20.784609690826528},{"$f":"U36+U37+U38","v":84},{"$f":"SQRT((V36^2)+(V37^2)+(V38^2))","v":60.909769331364245},{"$f":"W36+W37+W38","v":23},{"$f":"SQRT((X36^2)+(X37^2)+(X38^2))","v":29.478805945967352},{"$f":"Y36+Y37+Y38","v":27},{"$f":"SQRT((Z36^2)+(Z37^2)+(Z38^2))","v":43.335897360040903},{"$f":"AA36+AA37+AA38","v":0},{"$f":"SQRT((AB36^2)+(AB37^2)+(AB38^2))","v":20.784609690826528}]
[null,"More than 30.0 percent",{"$f":"C39+C40+C41+C42","v":98},{"$f":"SQRT((D39^2)+(D40^2)+(D41^2)+(D42^2))","v":106.33908030446756},{"$f":"E39+E40+E41+E42","v":899},{"$f":"SQRT((F39^2)+(F40^2)+(F41^2)+(F42^2))","v":316.64649058532137},{"$f":"G39+G40+G41+G42","v":142},{"$f":"SQRT((H39^2)+(H40^2)+(H41^2)+(H42^2))","v":97.785479494657082},{"$f":"I39+I40+I41+I42","v":93},{"$f":"SQRT((J39^2)+(J40^2)+(J41^2)+(J42^2))","v":97.549987186057592},{"$f":"K39+K40+K41+K42","v":18},{"$f":"SQRT((L39^2)+(L40^2)+(L41^2)+(L42^2))","v":35.679125549822544},{"$f":"M39+M40+M41+M42","v":3},{"$f":"SQRT((N39^2)+(N40^2)+(N41^2)+(N42^2))","v":21.377558326431949},{"$f":"O39+O40+O41+O42","v":8},{"$f":"SQRT((P39^2)+(P40^2)+(P41^2)+(P42^2))","v":24},{"$f":"Q39+Q40+Q41+Q42","v":25},{"$f":"SQRT((R39^2)+(R40^2)+(R41^2)+(R42^2))","v":29.427877939124322},{"$f":"S39+S40+S41+S42","v":0},{"$f":"SQRT((T39^2)+(T40^2)+(T41^2)+(T42^2))","v":24},{"$f":"U39+U40+U41+U42","v":382},{"$f":"SQRT((V39^2)+(V40^2)+(V41^2)+(V42^2))","v":214.34318277006153},{"$f":"W39+W40+W41+W42","v":0},{"$f":"SQRT((X39^2)+(X40^2)+(X41^2)+(X42^2))","v":24},{"$f":"Y39+Y40+Y41+Y42","v":100},{"$f":"SQRT((Z39^2)+(Z40^2)+(Z41^2)+(Z42^2))","v":97.503846077988129},{"$f":"AA39+AA40+AA41+AA42","v":17},{"$f":"SQRT((AB39^2)+(AB40^2)+(AB41^2)+(AB42^2))","v":25.059928172283335}]
[null,"Less Than 35% of HH Income",{"$f":"C36+C37+C38+C39","v":83},{"$f":"SQRT((D36^2)+(D37^2)+(D38^2)+(D39^2))","v":96.534967757802661},{"$f":"E36+E37+E38+E39","v":380},{"$f":"SQRT((F36^2)+(F37^2)+(F38^2)+(F39^2))","v":162.31450951778771},{"$f":"G36+G37+G38+G39","v":12},{"$f":"SQRT((H36^2)+(H37^2)+(H38^2)+(H39^2))","v":36.166282640050248},{"$f":"I36+I37+I38+I39","v":60},{"$f":"SQRT((J36^2)+(J37^2)+(J38^2)+(J39^2))","v":62.273589907761057},{"$f":"K36+K37+K38+K39","v":16},{"$f":"SQRT((L36^2)+(L37^2)+(L38^2)+(L39^2))","v":31.749015732775089},{"$f":"M36+M37+M38+M39","v":5},{"$f":"SQRT((N36^2)+(N37^2)+(N38^2)+(N39^2))","v":22.271057451320086},{"$f":"O36+O37+O38+O39","v":0},{"$f":"SQRT((P36^2)+(P37^2)+(P38^2)+(P39^2))","v":24},{"$f":"Q36+Q37+Q38+Q39","v":37},{"$f":"SQRT((R36^2)+(R37^2)+(R38^2)+(R39^2))","v":44.113490000225553},{"$f":"S36+S37+S38+S39","v":0},{"$f":"SQRT((T36^2)+(T37^2)+(T38^2)+(T39^2))","v":24},{"$f":"U36+U37+U38+U39","v":185},{"$f":"SQRT((V36^2)+(V37^2)+(V38^2)+(V39^2))","v":117.94490239090455},{"$f":"W36+W37+W38+W39","v":23},{"$f":"SQRT((X36^2)+(X37^2)+(X38^2)+(X39^2))","v":31.827660925679098},{"$f":"Y36+Y37+Y38+Y39","v":59},{"$f":"SQRT((Z36^2)+(Z37^2)+(Z38^2)+(Z39^2))","v":56.982453439633503},{"$f":"AA36+AA37+AA38+AA39","v":9},{"$f":"SQRT((AB36^2)+(AB37^2)+(AB38^2)+(AB39^2))","v":25.059928172283335}]
[null,"35.0 percent or more",{"$f":"C40+C41+C42","v":45},{"$f":"SQRT((D40^2)+(D41^2)+(D42^2))","v":71.182863106228027},{"$f":"E40+E41+E42","v":669},{"$f":"SQRT((F40^2)+(F41^2)+(F42^2))","v":295.41326984412871},{"$f":"G40+G41+G42","v":142},{"$f":"SQRT((H40^2)+(H41^2)+(H42^2))","v":95.921843184959698},{"$f":"I40+I41+I42","v":93},{"$f":"SQRT((J40^2)+(J41^2)+(J42^2))","v":96.0572745813663},{"$f":"K40+K41+K42","v":18},{"$f":"SQRT((L40^2)+(L41^2)+(L42^2))","v":33.600595232822883},{"$f":"M40+M41+M42","v":3},{"$f":"SQRT((N40^2)+(N41^2)+(N42^2))","v":17.691806012954132},{"$f":"O40+O41+O42","v":8},{"$f":"SQRT((P40^2)+(P41^2)+(P42^2))","v":20.784609690826528},{"$f":"Q40+Q41+Q42","v":11},{"$f":"SQRT((R40^2)+(R41^2)+(R42^2))","v":24.020824298928627},{"$f":"S40+S41+S42","v":0},{"$f":"SQRT((T40^2)+(T41^2)+(T42^2))","v":20.784609690826528},{"$f":"U40+U41+U42","v":281},{"$f":"SQRT((V40^2)+(V41^2)+(V42^2))","v":189.05554739282314},{"$f":"W40+W41+W42","v":0},{"$f":"SQRT((X40^2)+(X41^2)+(X42^2))","v":20.784609690826528},{"$f":"Y40+Y41+Y42","v":68},{"$f":"SQRT((Z40^2)+(Z41^2)+(Z42^2))","v":90.210864090751286},{"$f":"AA40+AA41+AA42","v":8},{"$f":"SQRT((AB40^2)+(AB41^2)+(AB42^2))","v":20.784609690826528}]
[null,"50.0 percent or more",{"$f":"C42","v":45},67,168,{"$f":"F42","v":140},{"$f":"G42","v":26},32,{"$f":"I42","v":0},17,{"$f":"K42","v":18},29,{"$f":"M42","v":0},12,{"$f":"O42","v":0},12,{"$f":"Q42","v":0},12,{"$f":"S42","v":0},12,{"$f":"U42","v":56},47,{"$f":"W42","v":0},12,{"$f":"Y42","v":1},13,{"$f":"AA42","v":0},12]
[null,"Not Computed",0,17,8,13,{"$f":"G43","v":22},24,{"$f":"I43","v":23},36,{"$f":"K43","v":0},12,{"$f":"M43","v":0},12,{"$f":"O43","v":5},7,{"$f":"Q43","v":10},17,{"$f":"S43","v":0},12,{"$f":"U43","v":0},25,{"$f":"W43","v":0},12,{"$f":"Y43","v":0},19,{"$f":"AA43","v":0},12]
[null,"$50,000 to $74,999:",{"$f":"C44","v":43},{"$f":"D44","v":48},{"$f":"E44","v":1346},337,207,133,136,115,17,28,42,40,3,4,18,21,40,48,909,234,20,14,409,245,62,48]
[null,"Less than 30.0 percent",{"$f":"C45+C46+C47","v":0},{"$f":"SQRT((D45^2)+(D46^2)+(D47^2))","v":29.444863728670914},{"$f":"E45+E46+E47","v":705},{"$f":"SQRT((F45^2)+(F46^2)+(F47^2))","v":208.34106652314134},{"$f":"G45+G46+G47","v":46},{"$f":"SQRT((H45^2)+(H46^2)+(H47^2))","v":35.679125549822544},{"$f":"I45+I46+I47","v":79},{"$f":"SQRT((J45^2)+(J46^2)+(J47^2))","v":119.44454780357285},{"$f":"K45+K46+K47","v":17},{"$f":"SQRT((L45^2)+(L46^2)+(L47^2))","v":32.741411087489801},{"$f":"M45+M46+M47","v":26},{"$f":"SQRT((N45^2)+(N46^2)+(N47^2))","v":39.799497484264798},{"$f":"O45+O46+O47","v":0},{"$f":"SQRT((P45^2)+(P46^2)+(P47^2))","v":20.784609690826528},{"$f":"Q45+Q46+Q47","v":18},{"$f":"SQRT((R45^2)+(R46^2)+(R47^2))","v":24.413111231467404},{"$f":"S45+S46+S47","v":40},{"$f":"SQRT((T45^2)+(T46^2)+(T47^2))","v":48.052055106935853},{"$f":"U45+U46+U47","v":564},{"$f":"SQRT((V45^2)+(V46^2)+(V47^2))","v":176.05112893702216},{"$f":"W45+W46+W47","v":10},{"$f":"SQRT((X45^2)+(X46^2)+(X47^2))","v":15.556349186104045},{"$f":"Y45+Y46+Y47","v":294},{"$f":"SQRT((Z45^2)+(Z46^2)+(Z47^2))","v":210.94312029549576},{"$f":"AA45+AA46+AA47","v":21},{"$f":"SQRT((AB45^2)+(AB46^2)+(AB47^2))","v":36.221540552549669}]
[null,"More than 30.0 percent",{"$f":"C48+C49+C50+C51","v":24},{"$f":"SQRT((D48^2)+(D49^2)+(D50^2)+(D51^2))","v":44.226688774991963},{"$f":"E48+E49+E50+E51","v":624},{"$f":"SQRT((F48^2)+(F49^2)+(F50^2)+(F51^2))","v":264.51843035977663},{"$f":"G48+G49+G50+G51","v":152},{"$f":"SQRT((H48^2)+(H49^2)+(H50^2)+(H51^2))","v":123.5637487291479},{"$f":"I48+I49+I50+I51","v":39},{"$f":"SQRT((J48^2)+(J49^2)+(J50^2)+(J51^2))","v":57.471732182004047},{"$f":"K48+K49+K50+K51","v":0},{"$f":"SQRT((L48^2)+(L49^2)+(L50^2)+(L51^2))","v":24},{"$f":"M48+M49+M50+M51","v":12},{"$f":"SQRT((N48^2)+(N49^2)+(N50^2)+(N51^2))","v":23.664319132398465},{"$f":"O48+O49+O50+O51","v":0},{"$f":"SQRT((P48^2)+(P49^2)+(P50^2)+(P51^2))","v":24},{"$f":"Q48+Q49+Q50+Q51","v":0},{"$f":"SQRT((R48^2)+(R49^2)+(R50^2)+(R51^2))","v":24},{"$f":"S48+S49+S50+S51","v":0},{"$f":"SQRT((T48^2)+(T49^2)+(T50^2)+(T51^2))","v":24},{"$f":"U48+U49+U50+U51","v":345},{"$f":"SQRT((V48^2)+(V49^2)+(V50^2)+(V51^2))","v":168.01785619391768},{"$f":"W48+W49+W50+W51","v":0},{"$f":"SQRT((X48^2)+(X49^2)+(X50^2)+(X51^2))","v":24},{"$f":"Y48+Y49+Y50+Y51","v":115},{"$f":"SQRT((Z48^2)+(Z49^2)+(Z50^2)+(Z51^2))","v":122.22111110606056},{"$f":"AA48+AA49+AA50+AA51","v":41},{"$f":"SQRT((AB48^2)+(AB49^2)+(AB50^2)+(AB51^2))","v":39.849717690342551}]
[null,"Less Than 35% of HH Income",{"$f":"C48+C47+C46+C45","v":24},{"$f":"SQRT((D48^2)+(D47^2)+(D46^2)+(D45^2))","v":44.226688774991963},{"$f":"E48+E47+E46+E45","v":980},{"$f":"SQRT((F48^2)+(F47^2)+(F46^2)+(F45^2))","v":244.5199378373878},{"$f":"G48+G47+G46+G45","v":61},{"$f":"SQRT((H48^2)+(H47^2)+(H46^2)+(H45^2))","v":40.902322672435119},{"$f":"I48+I47+I46+I45","v":109},{"$f":"SQRT((J48^2)+(J47^2)+(J46^2)+(J45^2))","v":129.10460874810008},{"$f":"K48+K47+K46+K45","v":17},{"$f":"SQRT((L48^2)+(L47^2)+(L46^2)+(L45^2))","v":34.871191548325392},{"$f":"M48+M47+M46+M45","v":36},{"$f":"SQRT((N48^2)+(N47^2)+(N46^2)+(N45^2))","v":42.895221179054431},{"$f":"O48+O47+O46+O45","v":0},{"$f":"SQRT((P48^2)+(P47^2)+(P46^2)+(P45^2))","v":24},{"$f":"Q48+Q47+Q46+Q45","v":18},{"$f":"SQRT((R48^2)+(R47^2)+(R46^2)+(R45^2))","v":27.202941017470888},{"$f":"S48+S47+S46+S45","v":40},{"$f":"SQRT((T48^2)+(T47^2)+(T46^2)+(T45^2))","v":49.527769988159172},{"$f":"U48+U47+U46+U45","v":754},{"$f":"SQRT((V48^2)+(V47^2)+(V46^2)+(V45^2))","v":216.49480363278931},{"$f":"W48+W47+W46+W45","v":10},{"$f":"SQRT((X48^2)+(X47^2)+(X46^2)+(X45^2))","v":19.646882704388499},{"$f":"Y48+Y47+Y46+Y45","v":319},{"$f":"SQRT((Z48^2)+(Z47^2)+(Z46^2)+(Z45^2))","v":215.90044001807871},{"$f":"AA48+AA47+AA46+AA45","v":62},{"$f":"SQRT((AB48^2)+(AB47^2)+(AB46^2)+(AB45^2))","v":49.678969393496885}]
[null,"35.0 percent or more",{"$f":"C49+C50+C51","v":0},{"$f":"SQRT((D49^2)+(D50^2)+(D51^2))","v":29.444863728670914},{"$f":"E49+E50+E51","v":349},{"$f":"SQRT((F49^2)+(F50^2)+(F51^2))","v":231.48650068632512},{"$f":"G49+G50+G51","v":137},{"$f":"SQRT((H49^2)+(H50^2)+(H51^2))","v":121.93440859740946},{"$f":"I49+I50+I51","v":9},{"$f":"SQRT((J49^2)+(J50^2)+(J51^2))","v":30.033314835362415},{"$f":"K49+K50+K51","v":0},{"$f":"SQRT((L49^2)+(L50^2)+(L51^2))","v":20.784609690826528},{"$f":"M49+M50+M51","v":2},{"$f":"SQRT((N49^2)+(N50^2)+(N51^2))","v":17.435595774162696},{"$f":"O49+O50+O51","v":0},{"$f":"SQRT((P49^2)+(P50^2)+(P51^2))","v":20.784609690826528},{"$f":"Q49+Q50+Q51","v":0},{"$f":"SQRT((R49^2)+(R50^2)+(R51^2))","v":20.784609690826528},{"$f":"S49+S50+S51","v":0},{"$f":"SQRT((T49^2)+(T50^2)+(T51^2))","v":20.784609690826528},{"$f":"U49+U50+U51","v":155},{"$f":"SQRT((V49^2)+(V50^2)+(V51^2))","v":111.14854924829204},{"$f":"W49+W50+W51","v":0},{"$f":"SQRT((X49^2)+(X50^2)+(X51^2))","v":20.784609690826528},{"$f":"Y49+Y50+Y51","v":90},{"$f":"SQRT((Z49^2)+(Z50^2)+(Z51^2))","v":113.23427043081966},{"$f":"AA49+AA50+AA51","v":0},{"$f":"SQRT((AB49^2)+(AB50^2)+(AB51^2))","v":20.784609690826528}]
[null,"50.0 percent or more",{"$f":"C51","v":0},17,38,{"$f":"F51","v":49},{"$f":"G51","v":115},120,{"$f":"I51","v":0},17,{"$f":"K51","v":0},12,{"$f":"M51","v":0},12,{"$f":"O51","v":0},12,{"$f":"Q51","v":0},12,{"$f":"S51","v":0},12,{"$f":"U51","v":0},25,{"$f":"W51","v":0},12,{"$f":"Y51","v":0},19,{"$f":"AA51","v":0},12]
[null,"Not Computed",19,30,17,29,{"$f":"G52","v":9},15,{"$f":"I52","v":18},29,{"$f":"K52","v":0},12,{"$f":"M52","v":4},7,{"$f":"O52","v":3},4,{"$f":"Q52","v":0},12,{"$f":"S52","v":0},12,{"$f":"U52","v":0},25,{"$f":"W52","v":10},12,{"$f":"Y52","v":0},19,{"$f":"AA52","v":0},12]
[null,"$75,000 to $99,999:",59,52,1007,271,{"$f":"G53","v":108},52,{"$f":"I53","v":22},37,{"$f":"K53","v":0},12,{"$f":"M53","v":29},32,{"$f":"O53","v":7},10,{"$f":"Q53","v":8},14,{"$f":"S53","v":24},31,{"$f":"U53","v":508},186,{"$f":"W53","v":33},38,{"$f":"Y53","v":294},173,{"$f":"AA53","v":0},12]
[null,"Less than 30.0 percent",{"$f":"C54+C55+C56","v":59},{"$f":"SQRT((D54^2)+(D55^2)+(D56^2))","v":68.220231603242155},{"$f":"E54+E55+E56","v":925},{"$f":"SQRT((F54^2)+(F55^2)+(F56^2))","v":267.43971283263073},{"$f":"G54+G55+G56","v":101},{"$f":"SQRT((H54^2)+(H55^2)+(H56^2))","v":57.367238037053866},{"$f":"I54+I55+I56","v":22},{"$f":"SQRT((J54^2)+(J55^2)+(J56^2))","v":44.124822945820419},{"$f":"K54+K55+K56","v":0},{"$f":"SQRT((L54^2)+(L55^2)+(L56^2))","v":20.784609690826528},{"$f":"M54+M55+M56","v":29},{"$f":"SQRT((N54^2)+(N55^2)+(N56^2))","v":32.695565448543633},{"$f":"O54+O55+O56","v":7},{"$f":"SQRT((P54^2)+(P55^2)+(P56^2))","v":19.697715603592208},{"$f":"Q54+Q55+Q56","v":8},{"$f":"SQRT((R54^2)+(R55^2)+(R56^2))","v":22},{"$f":"S54+S55+S56","v":4},{"$f":"SQRT((T54^2)+(T55^2)+(T56^2))","v":18.357559750685819},{"$f":"U54+U55+U56","v":468},{"$f":"SQRT((V54^2)+(V55^2)+(V56^2))","v":194.53020331043712},{"$f":"W54+W55+W56","v":13},{"$f":"SQRT((X54^2)+(X55^2)+(X56^2))","v":18.027756377319946},{"$f":"Y54+Y55+Y56","v":250},{"$f":"SQRT((Z54^2)+(Z55^2)+(Z56^2))","v":157.33721746617994},{"$f":"AA54+AA55+AA56","v":0},{"$f":"SQRT((AB54^2)+(AB55^2)+(AB56^2))","v":20.784609690826528}]
[null,"More than 30.0 percent",{"$f":"C57+C58+C59+C60","v":0},{"$f":"SQRT((D57^2)+(D58^2)+(D59^2)+(D60^2))","v":34},{"$f":"E57+E58+E59+E60","v":82},{"$f":"SQRT((F57^2)+(F58^2)+(F59^2)+(F60^2))","v":76.393717019137114},{"$f":"G57+G58+G59+G60","v":7},{"$f":"SQRT((H57^2)+(H58^2)+(H59^2)+(H60^2))","v":34.394767043839678},{"$f":"I57+I58+I59+I60","v":0},{"$f":"SQRT((J57^2)+(J58^2)+(J59^2)+(J60^2))","v":34},{"$f":"K57+K58+K59+K60","v":0},{"$f":"SQRT((L57^2)+(L58^2)+(L59^2)+(L60^2))","v":24},{"$f":"M57+M58+M59+M60","v":0},{"$f":"SQRT((N57^2)+(N58^2)+(N59^2)+(N60^2))","v":24},{"$f":"O57+O58+O59+O60","v":0},{"$f":"SQRT((P57^2)+(P58^2)+(P59^2)+(P60^2))","v":24},{"$f":"Q57+Q58+Q59+Q60","v":0},{"$f":"SQRT((R57^2)+(R58^2)+(R59^2)+(R60^2))","v":24},{"$f":"S57+S58+S59+S60","v":0},{"$f":"SQRT((T57^2)+(T58^2)+(T59^2)+(T60^2))","v":24},{"$f":"U57+U58+U59+U60","v":30},{"$f":"SQRT((V57^2)+(V58^2)+(V59^2)+(V60^2))","v":43.852023898561399},{"$f":"W57+W58+W59+W60","v":0},{"$f":"SQRT((X57^2)+(X58^2)+(X59^2)+(X60^2))","v":24},{"$f":"Y57+Y58+Y59+Y60","v":44},{"$f":"SQRT((Z57^2)+(Z58^2)+(Z59^2)+(Z60^2))","v":57.680152565678952},{"$f":"AA57+AA58+AA59+AA60","v":0},{"$f":"SQRT((AB57^2)+(AB58^2)+(AB59^2)+(AB60^2))","v":24}]
[null,"Less Than 35% of HH Income",{"$f":"C54+C55+C56+C57","v":59},{"$f":"SQRT((D54^2)+(D55^2)+(D56^2)+(D57^2))","v":70.306471963824208},{"$f":"E54+E55+E56+E57","v":995},{"$f":"SQRT((F54^2)+(F55^2)+(F56^2)+(F57^2))","v":275.22536220341323},{"$f":"G54+G55+G56+G57","v":101},{"$f":"SQRT((H54^2)+(H55^2)+(H56^2)+(H57^2))","v":60.431779718952512},{"$f":"I54+I55+I56+I57","v":22},{"$f":"SQRT((J54^2)+(J55^2)+(J56^2)+(J57^2))","v":47.286361670147556},{"$f":"K54+K55+K56+K57","v":0},{"$f":"SQRT((L54^2)+(L55^2)+(L56^2)+(L57^2))","v":24},{"$f":"M54+M55+M56+M57","v":29},{"$f":"SQRT((N54^2)+(N55^2)+(N56^2)+(N57^2))","v":34.828149534535996},{"$f":"O54+O55+O56+O57","v":7},{"$f":"SQRT((P54^2)+(P55^2)+(P56^2)+(P57^2))","v":23.065125189341593},{"$f":"Q54+Q55+Q56+Q57","v":8},{"$f":"SQRT((R54^2)+(R55^2)+(R56^2)+(R57^2))","v":25.059928172283335},{"$f":"S54+S55+S56+S57","v":4},{"$f":"SQRT((T54^2)+(T55^2)+(T56^2)+(T57^2))","v":21.931712199461309},{"$f":"U54+U55+U56+U57","v":490},{"$f":"SQRT((V54^2)+(V55^2)+(V56^2)+(V57^2))","v":195.88517044431924},{"$f":"W54+W55+W56+W57","v":13},{"$f":"SQRT((X54^2)+(X55^2)+(X56^2)+(X57^2))","v":21.656407827707714},{"$f":"Y54+Y55+Y56+Y57","v":268},{"$f":"SQRT((Z54^2)+(Z55^2)+(Z56^2)+(Z57^2))","v":159.9874995116806},{"$f":"AA54+AA55+AA56+AA57","v":0},{"$f":"SQRT((AB54^2)+(AB55^2)+(AB56^2)+(AB57^2))","v":24}]
[null,"35.0 percent or more",{"$f":"C58+C59+C60","v":0},{"$f":"SQRT((D58^2)+(D59^2)+(D60^2))","v":29.444863728670914},{"$f":"E58+E59+E60","v":12},{"$f":"SQRT((F58^2)+(F59^2)+(F60^2))","v":40.137264480778953},{"$f":"G58+G59+G60","v":7},{"$f":"SQRT((H58^2)+(H59^2)+(H60^2))","v":28.670542373662901},{"$f":"I58+I59+I60","v":0},{"$f":"SQRT((J58^2)+(J59^2)+(J60^2))","v":29.444863728670914},{"$f":"K58+K59+K60","v":0},{"$f":"SQRT((L58^2)+(L59^2)+(L60^2))","v":20.784609690826528},{"$f":"M58+M59+M60","v":0},{"$f":"SQRT((N58^2)+(N59^2)+(N60^2))","v":20.784609690826528},{"$f":"O58+O59+O60","v":0},{"$f":"SQRT((P58^2)+(P59^2)+(P60^2))","v":20.784609690826528},{"$f":"Q58+Q59+Q60","v":0},{"$f":"SQRT((R58^2)+(R59^2)+(R60^2))","v":20.784609690826528},{"$f":"S58+S59+S60","v":0},{"$f":"SQRT((T58^2)+(T59^2)+(T60^2))","v":20.784609690826528},{"$f":"U58+U59+U60","v":8},{"$f":"SQRT((V58^2)+(V59^2)+(V60^2))","v":37.336309405188942},{"$f":"W58+W59+W60","v":0},{"$f":"SQRT((X58^2)+(X59^2)+(X60^2))","v":20.784609690826528},{"$f":"Y58+Y59+Y60","v":26},{"$f":"SQRT((Z58^2)+(Z59^2)+(Z60^2))","v":49.859803449271638},{"$f":"AA58+AA59+AA60","v":0},{"$f":"SQRT((AB58^2)+(AB59^2)+(AB60^2))","v":20.784609690826528}]
[null,"50.0 percent or more",{"$f":"C60","v":0},17,{"$f":"E60","v":0},25,0,19,0,17,0,12,0,12,0,12,0,12,{"$f":"S60","v":0},12,0,25,0,12,0,19,0,12]
[null,"Not Computed",0,17,0,25,0,19,0,17,0,12,0,12,0,12,0,12,20,27,10,15,20,35,0,19,0,12]
[null,"$100,000 or more:",55,57,1856,327,145,65,37,57,50,75,46,28,3,4,60,65,5,7,877,244,37,29,370,175,6,9]
[null,"Less than 30.0 percent",{"$f":"C63+C64+C65","v":55},{"$f":"SQRT((D63^2)+(D64^2)+(D65^2))","v":57.148928248918196},{"$f":"E63+E64+E65","v":1777},{"$f":"SQRT((F63^2)+(F64^2)+(F65^2))","v":401.85569549279751},{"$f":"G63+G64+G65","v":124},{"$f":"SQRT((H63^2)+(H64^2)+(H65^2))","v":62.63385665915839},{"$f":"I63+I64+I65","v":37},{"$f":"SQRT((J63^2)+(J64^2)+(J65^2))","v":61.862751312886175},{"$f":"K63+K64+K65","v":50},{"$f":"SQRT((L63^2)+(L64^2)+(L65^2))","v":76.896033707857782},{"$f":"M63+M64+M65","v":30},{"$f":"SQRT((N63^2)+(N64^2)+(N65^2))","v":20.322401432901575},{"$f":"O63+O64+O65","v":3},{"$f":"SQRT((P63^2)+(P64^2)+(P65^2))","v":17.435595774162696},{"$f":"Q63+Q64+Q65","v":60},{"$f":"SQRT((R63^2)+(R64^2)+(R65^2))","v":56.462376853972415},{"$f":"S63+S64+S65","v":5},{"$f":"SQRT((T63^2)+(T64^2)+(T65^2))","v":18.357559750685819},{"$f":"U63+U64+U65","v":862},{"$f":"SQRT((V63^2)+(V64^2)+(V65^2))","v":252.68557536986555},{"$f":"W63+W64+W65","v":37},{"$f":"SQRT((X63^2)+(X64^2)+(X65^2))","v":31.192947920964443},{"$f":"Y63+Y64+Y65","v":370},{"$f":"SQRT((Z63^2)+(Z64^2)+(Z65^2))","v":175.37958832201653},{"$f":"AA63+AA64+AA65","v":6},{"$f":"SQRT((AB63^2)+(AB64^2)+(AB65^2))","v":19.209372712298546}]
[null,"More than 30.0 percent",{"$f":"C66+C67+C68+C69","v":0},{"$f":"SQRT((D66^2)+(D67^2)+(D68^2)+(D69^2))","v":34},{"$f":"E66+E67+E68+E69","v":54},{"$f":"SQRT((F66^2)+(F67^2)+(F68^2)+(F69^2))","v":62.056425936400814},{"$f":"G66+G67+G68+G69","v":21},{"$f":"SQRT((H66^2)+(H67^2)+(H68^2)+(H69^2))","v":37.12142238654117},{"$f":"I66+I67+I68+I69","v":0},{"$f":"SQRT((J66^2)+(J67^2)+(J68^2)+(J69^2))","v":34},{"$f":"K66+K67+K68+K69","v":0},{"$f":"SQRT((L66^2)+(L67^2)+(L68^2)+(L69^2))","v":24},{"$f":"M66+M67+M68+M69","v":0},{"$f":"SQRT((N66^2)+(N67^2)+(N68^2)+(N69^2))","v":24},{"$f":"O66+O67+O68+O69","v":0},{"$f":"SQRT((P66^2)+(P67^2)+(P68^2)+(P69^2))","v":24},{"$f":"Q66+Q67+Q68+Q69","v":0},{"$f":"SQRT((R66^2)+(R67^2)+(R68^2)+(R69^2))","v":24},{"$f":"S66+S67+S68+S69","v":0},{"$f":"SQRT((T66^2)+(T67^2)+(T68^2)+(T69^2))","v":24},{"$f":"U66+U67+U68+U69","v":0},{"$f":"SQRT((V66^2)+(V67^2)+(V68^2)+(V69^2))","v":50},{"$f":"W66+W67+W68+W69","v":0},{"$f":"SQRT((X66^2)+(X67^2)+(X68^2)+(X69^2))","v":24},{"$f":"Y66+Y67+Y68+Y69","v":0},{"$f":"SQRT((Z66^2)+(Z67^2)+(Z68^2)+(Z69^2))","v":38},{"$f":"AA66+AA67+AA68+AA69","v":0},{"$f":"SQRT((AB66^2)+(AB67^2)+(AB68^2)+(AB69^2))","v":24}]
[null,"Less Than 35% of HH Income",{"$f":"C63+C64+C65+C66","v":55},{"$f":"SQRT(((D63^2)+(D64^2)+(D65^2)+(D66^2)))","v":59.623820743055369},{"$f":"E63+E64+E65+E66","v":1816},{"$f":"SQRT(((F63^2)+(F64^2)+(F65^2)+(F66^2)))","v":404.36740719301304},{"$f":"G63+G64+G65+G66","v":124},{"$f":"SQRT(((H63^2)+(H64^2)+(H65^2)+(H66^2)))","v":65.452272687814286},{"$f":"I63+I64+I65+I66","v":37},{"$f":"SQRT(((J63^2)+(J64^2)+(J65^2)+(J66^2)))","v":64.156059729381766},{"$f":"K63+K64+K65+K66","v":50},{"$f":"SQRT(((L63^2)+(L64^2)+(L65^2)+(L66^2)))","v":77.826730626437083},{"$f":"M63+M64+M65+M66","v":30},{"$f":"SQRT(((N63^2)+(N64^2)+(N65^2)+(N66^2)))","v":23.600847442411894},{"$f":"O63+O64+O65+O66","v":3},{"$f":"SQRT(((P63^2)+(P64^2)+(P65^2)+(P66^2)))","v":21.166010488516726},{"$f":"Q63+Q64+Q65+Q66","v":60},{"$f":"SQRT(((R63^2)+(R64^2)+(R65^2)+(R66^2)))","v":57.723478758647246},{"$f":"S63+S64+S65+S66","v":5},{"$f":"SQRT(((T63^2)+(T64^2)+(T65^2)+(T66^2)))","v":21.931712199461309},{"$f":"U63+U64+U65+U66","v":862},{"$f":"SQRT(((V63^2)+(V64^2)+(V65^2)+(V66^2)))","v":253.91927851189243},{"$f":"W63+W64+W65+W66","v":37},{"$f":"SQRT(((X63^2)+(X64^2)+(X65^2)+(X66^2)))","v":33.421549934136806},{"$f":"Y63+Y64+Y65+Y66","v":370},{"$f":"SQRT(((Z63^2)+(Z64^2)+(Z65^2)+(Z66^2)))","v":176.40578221815747},{"$f":"AA63+AA64+AA65+AA66","v":6},{"$f":"SQRT(((AB63^2)+(AB64^2)+(AB65^2)+(AB66^2)))","v":22.649503305812249}]
[null,"35.0 percent or more",{"$f":"C67+C68+C69","v":0},{"$f":"SQRT((D67^2)+(D68^2)+(D69^2))","v":29.444863728670914},{"$f":"E67+E68+E69","v":15},{"$f":"SQRT((F67^2)+(F68^2)+(F69^2))","v":42.731721238442994},{"$f":"G67+G68+G69","v":21},{"$f":"SQRT((H67^2)+(H68^2)+(H69^2))","v":31.89043743820395},{"$f":"I67+I68+I69","v":0},{"$f":"SQRT((J67^2)+(J68^2)+(J69^2))","v":29.444863728670914},{"$f":"K67+K68+K69","v":0},{"$f":"SQRT((L67^2)+(L68^2)+(L69^2))","v":20.784609690826528},{"$f":"M67+M68+M69","v":0},{"$f":"SQRT((N67^2)+(N68^2)+(N69^2))","v":20.784609690826528},{"$f":"O67+O68+O69","v":0},{"$f":"SQRT((P67^2)+(P68^2)+(P69^2))","v":20.784609690826528},{"$f":"Q67+Q68+Q69","v":0},{"$f":"SQRT((R67^2)+(R68^2)+(R69^2))","v":20.784609690826528},{"$f":"S67+S68+S69","v":0},{"$f":"SQRT((T67^2)+(T68^2)+(T69^2))","v":20.784609690826528},{"$f":"U67+U68+U69","v":0},{"$f":"SQRT((V67^2)+(V68^2)+(V69^2))","v":43.301270189221931},{"$f":"W67+W68+W69","v":0},{"$f":"SQRT((X67^2)+(X68^2)+(X69^2))","v":20.784609690826528},{"$f":"Y67+Y68+Y69","v":0},{"$f":"SQRT((Z67^2)+(Z68^2)+(Z69^2))","v":32.908965343808667},{"$f":"AA67+AA68+AA69","v":0},{"$f":"SQRT((AB67^2)+(AB68^2)+(AB69^2))","v":20.784609690826528}]
[null,"50.0 percent or more",{"$f":"C69","v":0},17,0,{"$f":"F69","v":25},{"$f":"G69","v":9},16,{"$f":"I69","v":0},17,{"$f":"K69","v":0},12,{"$f":"M69","v":0},12,{"$f":"O69","v":0},12,{"$f":"Q69","v":0},12,{"$f":"S69","v":0},12,{"$f":"U69","v":0},25,{"$f":"W69","v":0},12,{"$f":"Y69","v":0},19,{"$f":"AA69","v":0},12]
[null,"Not Computed",0,17,25,31,{"$f":"G70","v":0},19,{"$f":"I70","v":0},17,{"$f":"K70","v":0},12,{"$f":"M70","v":16},25,{"$f":"O70","v":0},12,{"$f":"Q70","v":0},12,{"$f":"S70","v":0},12,{"$f":"U70","v":15},24,{"$f":"W70","v":0},12,{"$f":"Y70","v":0},19,{"$f":"AA70","v":0},12]
[]
[]
[null,"Calculated GROSS RENT AS A PERCENTAGE OF HOUSEHOLD INCOME IN THE PAST 12 MONTHS"]
[null,"Universe:  RENTER-OCCUPIED HOUSING UNITS"]
[null,"Data Set: 2018-2022 American Community Survey 5-Year Estimates"]
[]
[null,null,"Barrington",null,"Dover",null,"Durham",null,"Farmington",null,"Lee",null,"Madbury",null,"Middleton",null,"Milton",null,"New Durham",null,"Rochester",null,"Rollinsford",null,"Somersworth",null,"Strafford"]
[null,null,"Estimate","Margin Of Error","Estimate","Margin Of Error","Estimate","Margin Of Error","Estimate","Margin Of Error","Estimate","Margin Of Error","Estimate","Margin Of Error","Estimate","Margin Of Error","Estimate","Margin Of Error","Estimate","Margin Of Error","Estimate","Margin Of Error","Estimate","Margin Of Error","Estimate","Margin Of Error","Estimate","Margin Of Error"]
[null,{"$f":"B92","v":"Total:"},327,147,7021,521,1143,175,887,218,167,125,130,59,34,20,212,93,93,60,4609,426,202,72,1844,355,97,56]
[null,"Less than 30.0 percent",{"$f":"C136+C129+C122+C115+C108+C101+C94","v":144},{"$f":"SQRT((D136^2)+(D129^2)+(D122^2)+(D115^2)+(D108^2)+(D101^2)+(D94^2))","v":120.2746856158851},{"$f":"E136+E129+E122+E115+E108+E101+E94","v":3845},{"$f":"SQRT((F136^2)+(F129^2)+(F122^2)+(F115^2)+(F108^2)+(F101^2)+(F94^2))","v":572.76260352784902},{"$f":"G136+G129+G122+G115+G108+G101+G94","v":331},{"$f":"SQRT((H136^2)+(H129^2)+(H122^2)+(H115^2)+(H108^2)+(H101^2)+(H94^2))","v":113.71015785759863},{"$f":"I136+I129+I122+I115+I108+I101+I94","v":260},{"$f":"SQRT((J136^2)+(J129^2)+(J122^2)+(J115^2)+(J108^2)+(J101^2)+(J94^2))","v":168.25278600962304},{"$f":"K136+K129+K122+K115+K108+K101+K94","v":83},{"$f":"SQRT((L136^2)+(L129^2)+(L122^2)+(L115^2)+(L108^2)+(L101^2)+(L94^2))","v":97.862147942909985},{"$f":"M136+M129+M122+M115+M108+M101+M94","v":92},{"$f":"SQRT((N136^2)+(N129^2)+(N122^2)+(N115^2)+(N108^2)+(N101^2)+(N94^2))","v":67.720011813348052},{"$f":"O136+O129+O122+O115+O108+O101+O94","v":10},{"$f":"SQRT((P136^2)+(P129^2)+(P122^2)+(P115^2)+(P108^2)+(P101^2)+(P94^2))","v":53.404119691274758},{"$f":"Q136+Q129+Q122+Q115+Q108+Q101+Q94","v":109},{"$f":"SQRT((R136^2)+(R129^2)+(R122^2)+(R115^2)+(R108^2)+(R101^2)+(R94^2))","v":84.976467330667489},{"$f":"S136+S129+S122+S115+S108+S101+S94","v":49},{"$f":"SQRT((T136^2)+(T129^2)+(T122^2)+(T115^2)+(T108^2)+(T101^2)+(T94^2))","v":68.636724863588881},{"$f":"U136+U129+U122+U115+U108+U101+U94","v":2520},{"$f":"SQRT((V136^2)+(V129^2)+(V122^2)+(V115^2)+(V108^2)+(V101^2)+(V94^2))","v":469.38257317459073},{"$f":"W136+W129+W122+W115+W108+W101+W94","v":83},{"$f":"SQRT((X136^2)+(X129^2)+(X122^2)+(X115^2)+(X108^2)+(X101^2)+(X94^2))","v":60.868711174132805},{"$f":"Y136+Y129+Y122+Y115+Y108+Y101+Y94","v":1076},{"$f":"SQRT((Z136^2)+(Z129^2)+(Z122^2)+(Z115^2)+(Z108^2)+(Z101^2)+(Z94^2))","v":344.28476585524373},{"$f":"AA136+AA129+AA122+AA115+AA108+AA101+AA94","v":27},{"$f":"SQRT((AB136^2)+(AB129^2)+(AB122^2)+(AB115^2)+(AB108^2)+(AB101^2)+(AB94^2))","v":61.975801729384671}]
[null,"More than 30.0 percent",{"$f":"C137+C130+C123+C116+C109+C102+C95","v":151},{"$f":"SQRT((D137^2)+(D130^2)+(D123^2)+(D116^2)+(D109^2)+(D102^2)+(D95^2))","v":144.46798953401407},{"$f":"E137+E130+E123+E116+E109+E102+E95","v":3016},{"$f":"SQRT((F137^2)+(F130^2)+(F123^2)+(F116^2)+(F109^2)+(F102^2)+(F95^2))","v":522.61936435612483},{"$f":"G137+G130+G123+G116+G109+G102+G95","v":706},{"$f":"SQRT((H137^2)+(H130^2)+(H123^2)+(H116^2)+(H109^2)+(H102^2)+(H95^2))","v":227.92323269030737},{"$f":"I137+I130+I123+I116+I109+I102+I95","v":517},{"$f":"SQRT((J137^2)+(J130^2)+(J123^2)+(J116^2)+(J109^2)+(J102^2)+(J95^2))","v":232.81752511355324},{"$f":"K137+K130+K123+K116+K109+K102+K95","v":69},{"$f":"SQRT((L137^2)+(L130^2)+(L123^2)+(L116^2)+(L109^2)+(L102^2)+(L95^2))","v":104.80935072788114},{"$f":"M137+M130+M123+M116+M109+M102+M95","v":18},{"$f":"SQRT((N137^2)+(N130^2)+(N123^2)+(N116^2)+(N109^2)+(N102^2)+(N95^2))","v":61.392181912683313},{"$f":"O137+O130+O123+O116+O109+O102+O95","v":16},{"$f":"SQRT((P137^2)+(P130^2)+(P123^2)+(P116^2)+(P109^2)+(P102^2)+(P95^2))","v":61.975801729384671},{"$f":"Q137+Q130+Q123+Q116+Q109+Q102+Q95","v":81},{"$f":"SQRT((R137^2)+(R130^2)+(R123^2)+(R116^2)+(R109^2)+(R102^2)+(R95^2))","v":73.72923436466705},{"$f":"S137+S130+S123+S116+S109+S102+S95","v":24},{"$f":"SQRT((T137^2)+(T130^2)+(T123^2)+(T116^2)+(T109^2)+(T102^2)+(T95^2))","v":62.94441992742486},{"$f":"U137+U130+U123+U116+U109+U102+U95","v":1937},{"$f":"SQRT((V137^2)+(V130^2)+(V123^2)+(V116^2)+(V109^2)+(V102^2)+(V95^2))","v":411.46810325953578},{"$f":"W137+W130+W123+W116+W109+W102+W95","v":65},{"$f":"SQRT((X137^2)+(X130^2)+(X123^2)+(X116^2)+(X109^2)+(X102^2)+(X95^2))","v":76.954532030283957},{"$f":"Y137+Y130+Y123+Y116+Y109+Y102+Y95","v":755},{"$f":"SQRT((Z137^2)+(Z130^2)+(Z123^2)+(Z116^2)+(Z109^2)+(Z102^2)+(Z95^2))","v":337.69660939962068},{"$f":"AA137+AA130+AA123+AA116+AA109+AA102+AA95","v":70},{"$f":"SQRT((AB137^2)+(AB130^2)+(AB123^2)+(AB116^2)+(AB109^2)+(AB102^2)+(AB95^2))","v":72.890328576567683}]
[null,"Less Than 35% of HH Income",{"$f":"C138+C131+C124+C117+C110+C103+C96","v":221},{"$f":"SQRT((D138^2)+(D131^2)+(D124^2)+(D117^2)+(D110^2)+(D103^2)+(D96^2))","v":152.44999180059014},{"$f":"E138+E131+E124+E117+E110+E103+E96","v":4522},{"$f":"SQRT((F138^2)+(F131^2)+(F124^2)+(F117^2)+(F110^2)+(F103^2)+(F96^2))","v":606.71904535789872},{"$f":"G138+G131+G124+G117+G110+G103+G96","v":357},{"$f":"SQRT((H138^2)+(H131^2)+(H124^2)+(H117^2)+(H110^2)+(H103^2)+(H96^2))","v":123.70933675353692},{"$f":"I138+I131+I124+I117+I110+I103+I96","v":327},{"$f":"SQRT((J138^2)+(J131^2)+(J124^2)+(J117^2)+(J110^2)+(J103^2)+(J96^2))","v":184.87833837418594},{"$f":"K138+K131+K124+K117+K110+K103+K96","v":83},{"$f":"SQRT((L138^2)+(L131^2)+(L124^2)+(L117^2)+(L110^2)+(L103^2)+(L96^2))","v":102.88342918079665},{"$f":"M138+M131+M124+M117+M110+M103+M96","v":102},{"$f":"SQRT((N138^2)+(N131^2)+(N124^2)+(N117^2)+(N110^2)+(N103^2)+(N96^2))","v":75.538069872085032},{"$f":"O138+O131+O124+O117+O110+O103+O96","v":10},{"$f":"SQRT((P138^2)+(P131^2)+(P124^2)+(P117^2)+(P110^2)+(P103^2)+(P96^2))","v":62.128898268036266},{"$f":"Q138+Q131+Q124+Q117+Q110+Q103+Q96","v":123},{"$f":"SQRT((R138^2)+(R131^2)+(R124^2)+(R117^2)+(R110^2)+(R103^2)+(R96^2))","v":91.509562341866769},{"$f":"S138+S131+S124+S117+S110+S103+S96","v":49},{"$f":"SQRT((T138^2)+(T131^2)+(T124^2)+(T117^2)+(T110^2)+(T103^2)+(T96^2))","v":75.624070242218522},{"$f":"U138+U131+U124+U117+U110+U103+U96","v":2918},{"$f":"SQRT((V138^2)+(V131^2)+(V124^2)+(V117^2)+(V110^2)+(V103^2)+(V96^2))","v":502.14440154202657},{"$f":"W138+W131+W124+W117+W110+W103+W96","v":83},{"$f":"SQRT((X138^2)+(X131^2)+(X124^2)+(X117^2)+(X110^2)+(X103^2)+(X96^2))","v":68.651292777339592},{"$f":"Y138+Y131+Y124+Y117+Y110+Y103+Y96","v":1163},{"$f":"SQRT((Z138^2)+(Z131^2)+(Z124^2)+(Z117^2)+(Z110^2)+(Z103^2)+(Z96^2))","v":352.62019227491783},{"$f":"AA138+AA131+AA124+AA117+AA110+AA103+AA96","v":77},{"$f":"SQRT((AB138^2)+(AB131^2)+(AB124^2)+(AB117^2)+(AB110^2)+(AB103^2)+(AB96^2))","v":76.896033707857782}]
[null,"35.0 percent or more",{"$f":"C139+C132+C125+C118+C111+C104+C97","v":74},{"$f":"SQRT((D139^2)+(D132^2)+(D125^2)+(D118^2)+(D111^2)+(D104^2)+(D97^2))","v":109.98181667894016},{"$f":"E139+E132+E125+E118+E111+E104+E97","v":2339},{"$f":"SQRT((F139^2)+(F132^2)+(F125^2)+(F118^2)+(F111^2)+(F104^2)+(F97^2))","v":482.78359541310016},{"$f":"G139+G132+G125+G118+G111+G104+G97","v":680},{"$f":"SQRT((H139^2)+(H132^2)+(H125^2)+(H118^2)+(H111^2)+(H104^2)+(H97^2))","v":222.65444078212317},{"$f":"I139+I132+I125+I118+I111+I104+I97","v":450},{"$f":"SQRT((J139^2)+(J132^2)+(J125^2)+(J118^2)+(J111^2)+(J104^2)+(J97^2))","v":219.84767453853135},{"$f":"K139+K132+K125+K118+K111+K104+K97","v":69},{"$f":"SQRT((L139^2)+(L132^2)+(L125^2)+(L118^2)+(L111^2)+(L104^2)+(L97^2))","v":99.88493379884676},{"$f":"M139+M132+M125+M118+M111+M104+M97","v":8},{"$f":"SQRT((N139^2)+(N132^2)+(N125^2)+(N118^2)+(N111^2)+(N104^2)+(N97^2))","v":51.468436929831086},{"$f":"O139+O132+O125+O118+O111+O104+O97","v":16},{"$f":"SQRT((P139^2)+(P132^2)+(P125^2)+(P118^2)+(P111^2)+(P104^2)+(P97^2))","v":53.225933528685054},{"$f":"Q139+Q132+Q125+Q118+Q111+Q104+Q97","v":67},{"$f":"SQRT((R139^2)+(R132^2)+(R125^2)+(R118^2)+(R111^2)+(R104^2)+(R97^2))","v":65.444633087824698},{"$f":"S139+S132+S125+S118+S111+S104+S97","v":24},{"$f":"SQRT((T139^2)+(T132^2)+(T125^2)+(T118^2)+(T111^2)+(T104^2)+(T97^2))","v":54.350712966804771},{"$f":"U139+U132+U125+U118+U111+U104+U97","v":1539},{"$f":"SQRT((V139^2)+(V132^2)+(V125^2)+(V118^2)+(V111^2)+(V104^2)+(V97^2))","v":370.77890986408596},{"$f":"W139+W132+W125+W118+W111+W104+W97","v":65},{"$f":"SQRT((X139^2)+(X132^2)+(X125^2)+(X118^2)+(X111^2)+(X104^2)+(X97^2))","v":70.099928673287536},{"$f":"Y139+Y132+Y125+Y118+Y111+Y104+Y97","v":668},{"$f":"SQRT((Z139^2)+(Z132^2)+(Z125^2)+(Z118^2)+(Z111^2)+(Z104^2)+(Z97^2))","v":328.98328225002558},{"$f":"AA139+AA132+AA125+AA118+AA111+AA104+AA97","v":20},{"$f":"SQRT((AB139^2)+(AB132^2)+(AB125^2)+(AB118^2)+(AB111^2)+(AB104^2)+(AB97^2))","v":56.929781309961136}]
[null,"50.0 percent or more",{"$f":"C140+C133+C126+C119+C112+C105+C98","v":74},{"$f":"SQRT((D140^2)+(D133^2)+(D126^2)+(D119^2)+(D112^2)+(D105^2)+(D98^2))","v":89.721792224631798},{"$f":"E140+E133+E126+E119+E112+E105+E98","v":1244},{"$f":"SQRT((F140^2)+(F133^2)+(F126^2)+(F119^2)+(F112^2)+(F105^2)+(F98^2))","v":307.35159020249108},{"$f":"G140+G133+G126+G119+G112+G105+G98","v":473},{"$f":"SQRT((H140^2)+(H133^2)+(H126^2)+(H119^2)+(H112^2)+(H105^2)+(H98^2))","v":191.51501246638603},{"$f":"I140+I133+I126+I119+I112+I105+I98","v":229},{"$f":"SQRT((J140^2)+(J133^2)+(J126^2)+(J119^2)+(J112^2)+(J105^2)+(J98^2))","v":154.17198189035517},{"$f":"K140+K133+K126+K119+K112+K105+K98","v":69},{"$f":"SQRT((L140^2)+(L133^2)+(L126^2)+(L119^2)+(L112^2)+(L105^2)+(L98^2))","v":89.224436114777433},{"$f":"M140+M133+M126+M119+M112+M105+M98","v":3},{"$f":"SQRT((N140^2)+(N133^2)+(N126^2)+(N119^2)+(N112^2)+(N105^2)+(N98^2))","v":29.664793948382652},{"$f":"O140+O133+O126+O119+O112+O105+O98","v":8},{"$f":"SQRT((P140^2)+(P133^2)+(P126^2)+(P119^2)+(P112^2)+(P105^2)+(P98^2))","v":28.583211855912904},{"$f":"Q140+Q133+Q126+Q119+Q112+Q105+Q98","v":26},{"$f":"SQRT((R140^2)+(R133^2)+(R126^2)+(R119^2)+(R112^2)+(R105^2)+(R98^2))","v":36.76955262170047},{"$f":"S140+S133+S126+S119+S112+S105+S98","v":24},{"$f":"SQRT((T140^2)+(T133^2)+(T126^2)+(T119^2)+(T112^2)+(T105^2)+(T98^2))","v":30.62678566222711},{"$f":"U140+U133+U126+U119+U112+U105+U98","v":892},{"$f":"SQRT((V140^2)+(V133^2)+(V126^2)+(V119^2)+(V112^2)+(V105^2)+(V98^2))","v":258.60781117359932},{"$f":"W140+W133+W126+W119+W112+W105+W98","v":65},{"$f":"SQRT((X140^2)+(X133^2)+(X126^2)+(X119^2)+(X112^2)+(X105^2)+(X98^2))","v":53.833075334779082},{"$f":"Y140+Y133+Y126+Y119+Y112+Y105+Y98","v":284},{"$f":"SQRT((Z140^2)+(Z133^2)+(Z126^2)+(Z119^2)+(Z112^2)+(Z105^2)+(Z98^2))","v":231.16228066014577},{"$f":"AA140+AA133+AA126+AA119+AA112+AA105+AA98","v":12},{"$f":"SQRT((AB140^2)+(AB133^2)+(AB126^2)+(AB119^2)+(AB112^2)+(AB105^2)+(AB98^2))","v":35}]
[null,"Not Computed",{"$f":"C140+C134+C127+C120+C113+C106+C99","v":32},{"$f":"SQRT((D140^2)+(D134^2)+(D127^2)+(D120^2)+(D113^2)+(D106^2)+(D99^2))","v":52.782572881586589},{"$f":"E140+E134+E127+E120+E113+E106+E99","v":135},{"$f":"SQRT((F140^2)+(F134^2)+(F127^2)+(F120^2)+(F113^2)+(F106^2)+(F99^2))","v":118.12705024675762},{"$f":"G140+G134+G127+G120+G113+G106+G99","v":115},{"$f":"SQRT((H140^2)+(H134^2)+(H127^2)+(H120^2)+(H113^2)+(H106^2)+(H99^2))","v":83.072257703760528},{"$f":"I140+I134+I127+I120+I113+I106+I99","v":110},{"$f":"SQRT((J140^2)+(J134^2)+(J127^2)+(J120^2)+(J113^2)+(J106^2)+(J99^2))","v":103.38762014864255},{"$f":"K140+K134+K127+K120+K113+K106+K99","v":15},{"$f":"SQRT((L140^2)+(L134^2)+(L127^2)+(L120^2)+(L113^2)+(L106^2)+(L99^2))","v":37.322915213043046},{"$f":"M140+M134+M127+M120+M113+M106+M99","v":4},{"$f":"SQRT((N140^2)+(N134^2)+(N127^2)+(N120^2)+(N113^2)+(N106^2)+(N99^2))","v":30.215889859476256},{"$f":"O140+O134+O127+O120+O113+O106+O99","v":8},{"$f":"SQRT((P140^2)+(P134^2)+(P127^2)+(P120^2)+(P113^2)+(P106^2)+(P99^2))","v":28.0178514522438},{"$f":"Q140+Q134+Q127+Q120+Q113+Q106+Q99","v":22},{"$f":"SQRT((R140^2)+(R134^2)+(R127^2)+(R120^2)+(R113^2)+(R106^2)+(R99^2))","v":37.013511046643494},{"$f":"S140+S134+S127+S120+S113+S106+S99","v":20},{"$f":"SQRT((T140^2)+(T134^2)+(T127^2)+(T120^2)+(T113^2)+(T106^2)+(T99^2))","v":39.912404086950211},{"$f":"U140+U134+U127+U120+U113+U106+U99","v":137},{"$f":"SQRT((V140^2)+(V134^2)+(V127^2)+(V120^2)+(V113^2)+(V106^2)+(V99^2))","v":103.99038417084533},{"$f":"W140+W134+W127+W120+W113+W106+W99","v":54},{"$f":"SQRT((X140^2)+(X134^2)+(X127^2)+(X120^2)+(X113^2)+(X106^2)+(X99^2))","v":50.547007824400445},{"$f":"Y140+Y134+Y127+Y120+Y113+Y106+Y99","v":13},{"$f":"SQRT((Z140^2)+(Z134^2)+(Z127^2)+(Z120^2)+(Z113^2)+(Z106^2)+(Z99^2))","v":51.913389409669641},{"$f":"AA140+AA134+AA127+AA120+AA113+AA106+AA99","v":0},{"$f":"SQRT((AB140^2)+(AB134^2)+(AB127^2)+(AB120^2)+(AB113^2)+(AB106^2)+(AB99^2))","v":31.749015732775089}]
[]
[]
[]
[]
[]
[]
[]
[]
[]
[]
[]
[null,"B25074. HOUSEHOLD INCOME BY GROSS RENT AS A PERCENTAGE OF HOUSEHOLD INCOME IN THE PAST 12 MONTHS"]
[null,"Universe:  RENTER-OCCUPIED HOUSING UNITS"]
[null,"Data Set: 2013-2017 American Community Survey 5-Year Estimates",null,null,null,null,null,{"$f":"'RentalHousingCost-Prior5Yr'!D41","v":"Income in 2017 Inflation Adjusted Dollars"}]
[]
[null,null,"Barrington",null,"Dover",null,"Durham",null,"Farmington",null,"Lee",null,"Madbury",null,"Middleton",null,"Milton",null,"New Durham",null,"Rochester",null,"Rollinsford",null,"Somersworth",null,"Strafford"]
[null,null,"Estimate","Margin Of Error","Estimate","Margin Of Error","Estimate","Margin Of Error","Estimate","Margin Of Error","Estimate","Margin Of Error","Estimate","Margin Of Error","Estimate","Margin Of Error","Estimate","Margin Of Error","Estimate","Margin Of Error","Estimate","Margin Of Error","Estimate","Margin Of Error","Estimate","Margin Of Error","Estimate","Margin Of Error"]
[null,"Total:",270,160,6173,387,1492,188,869,263,302,146,83,29,96,35,212,74,74,47,4529,385,283,71,2170,282,145,52]
[null,"Less than $10,000:",0,16,373,140,306,120,16,27,0,11,8,9,0,11,0,11,20,26,523,228,12,18,233,150,0,11]
[null,"Less than 20.0 percent",0,16,0,24,9,16,0,16,0,11,0,11,0,11,0,11,0,11,8,12,0,11,0,18,0,11]
[null,"20.0 to 24.9 percent",0,16,0,24,0,18,0,16,0,11,0,11,0,11,0,11,0,11,0,24,0,11,0,18,0,11]
[null,"25.0 to 29.9 percent",0,16,39,41,0,18,0,16,0,11,0,11,0,11,0,11,0,11,19,31,0,11,0,18,0,11]
[null,"30.0 to 34.9 percent",0,16,0,24,0,18,0,16,0,11,0,11,0,11,0,11,0,11,0,24,0,11,0,18,0,11]
[null,"35.0 to 39.9 percent",0,16,29,32,0,18,0,16,0,11,0,11,0,11,0,11,0,11,0,24,0,11,0,18,0,11]
[null,"40.0 to 49.9 percent",0,16,0,24,0,18,0,16,0,11,0,11,0,11,0,11,0,11,0,24,0,11,0,18,0,11]
[null,"50.0 percent or more",0,16,186,79,265,117,16,27,0,11,8,9,0,11,0,11,20,26,452,232,0,11,233,150,0,11]
[null,"Not computed",0,16,119,121,32,25,0,16,0,11,0,11,0,11,0,11,0,11,44,59,12,18,0,18,0,11]
[null,"$10,000 to $19,999:",86,105,815,196,325,107,175,148,49,78,3,5,13,16,59,58,0,11,779,236,39,29,238,138,0,11]
[null,"Less than 20.0 percent",0,16,12,20,0,18,56,87,0,11,0,11,0,11,0,11,0,11,8,13,0,11,0,18,0,11]
[null,"20.0 to 24.9 percent",0,16,19,24,11,19,0,16,0,11,0,11,0,11,0,11,0,11,37,44,0,11,0,18,0,11]
[null,"25.0 to 29.9 percent",0,16,85,55,33,51,0,16,0,11,0,11,0,11,0,11,0,11,152,106,6,9,82,94,0,11]
[null,"30.0 to 34.9 percent",0,16,100,58,12,19,18,31,0,11,0,11,0,11,0,11,0,11,52,42,0,11,30,37,0,11]
[null,"35.0 to 39.9 percent",0,16,0,24,18,20,0,16,0,11,0,11,0,11,0,11,0,11,35,37,0,11,0,18,0,11]
[null,"40.0 to 49.9 percent",0,16,50,51,12,21,70,106,0,11,0,11,0,11,0,11,0,11,17,20,0,11,21,32,0,11]
[null,"50.0 percent or more",37,61,549,171,239,97,31,36,49,78,0,11,13,16,48,50,0,11,426,194,33,28,105,85,0,11]
[null,"Not computed",49,82,0,24,0,18,0,16,0,11,3,5,0,11,11,17,0,11,52,40,0,11,0,18,0,11]
[null,"$20,000 to $34,999:",52,54,955,253,348,116,250,161,16,25,8,9,12,9,77,51,8,14,872,233,64,42,526,188,31,34]
[null,"Less than 20.0 percent",40,52,76,92,4,6,0,16,0,11,0,11,0,11,0,11,0,11,50,47,0,11,0,18,0,11]
[null,"20.0 to 24.9 percent",0,16,21,32,59,50,0,16,0,11,0,11,0,11,0,11,0,11,20,22,7,10,14,23,0,11]
[null,"25.0 to 29.9 percent",0,16,139,102,18,18,18,28,0,11,8,9,4,5,0,11,0,11,62,44,5,7,57,62,0,11]
[null,"30.0 to 34.9 percent",0,16,70,54,32,39,0,16,0,11,0,11,0,11,0,11,0,11,126,75,0,11,71,65,0,11]
[null,"35.0 to 39.9 percent",12,20,92,58,30,22,72,106,0,11,0,11,2,3,14,22,0,11,163,102,17,26,34,46,0,11]
[null,"40.0 to 49.9 percent",0,16,242,90,85,59,121,107,0,11,0,11,0,11,42,51,0,11,186,94,25,31,178,144,17,26]
[null,"50.0 percent or more",0,16,315,156,120,65,39,60,16,25,0,11,0,11,21,32,0,11,265,136,10,11,172,124,14,22]
[null,"Not computed",0,16,0,24,0,18,0,16,0,11,0,11,6,6,0,11,8,14,0,24,0,11,0,18,0,11]
[null,"$35,000 to $49,999:",41,69,1187,287,216,98,174,144,79,95,10,9,6,7,17,19,22,34,794,264,32,28,300,107,61,45]
[null,"Less than 20.0 percent",41,69,131,108,9,14,0,16,0,11,3,4,0,11,0,11,22,34,132,115,0,11,50,48,38,28]
[null,"20.0 to 24.9 percent",0,16,108,70,8,12,44,71,60,90,0,11,0,11,7,12,0,11,100,80,5,8,16,25,23,37]
[null,"25.0 to 29.9 percent",0,16,296,147,48,33,55,85,19,30,7,8,0,11,0,11,0,11,208,106,10,13,107,71,0,11]
[null,"30.0 to 34.9 percent",0,16,249,111,79,69,0,16,0,11,0,11,0,11,0,11,0,11,160,116,0,11,13,21,0,11]
[null,"35.0 to 39.9 percent",0,16,82,55,0,18,57,87,0,11,0,11,0,11,10,16,0,11,136,101,13,20,38,44,0,11]
[null,"40.0 to 49.9 percent",0,16,272,158,21,23,0,16,0,11,0,11,0,11,0,11,0,11,22,27,0,11,27,33,0,11]
[null,"50.0 percent or more",0,16,34,37,45,51,0,16,0,11,0,11,6,7,0,11,0,11,0,24,4,8,33,38,0,11]
[null,"Not computed",0,16,15,19,6,9,18,28,0,11,0,11,0,11,0,11,0,11,36,33,0,11,16,25,0,11]
[null,"$50,000 to $74,999:",13,21,1416,247,105,50,147,123,55,49,27,16,40,29,43,39,17,13,649,232,73,48,513,168,53,47]
[null,"Less than 20.0 percent",13,21,380,135,25,21,79,96,0,11,14,11,10,15,0,11,11,9,303,161,6,8,220,140,8,12]
[null,"20.0 to 24.9 percent",0,16,558,169,23,26,50,58,17,27,6,9,23,23,12,18,0,11,201,116,35,41,167,89,39,44]
[null,"25.0 to 29.9 percent",0,16,215,90,3,6,0,16,38,41,7,9,0,11,22,33,0,11,74,42,32,31,109,78,0,11]
[null,"30.0 to 34.9 percent",0,16,102,72,15,18,0,16,0,11,0,11,7,11,0,11,0,11,22,33,0,11,17,26,0,11]
[null,"35.0 to 39.9 percent",0,16,77,97,11,17,0,16,0,11,0,11,0,11,0,11,6,10,0,24,0,11,0,18,0,11]
[null,"40.0 to 49.9 percent",0,16,50,76,7,11,0,16,0,11,0,11,0,11,0,11,0,11,8,13,0,11,0,18,0,11]
[null,"50.0 percent or more",0,16,22,36,18,21,18,31,0,11,0,11,0,11,0,11,0,11,0,24,0,11,0,18,0,11]
[null,"Not computed",0,16,12,20,3,7,0,16,0,11,0,11,0,11,9,13,0,11,41,40,0,11,0,18,6,9]
[null,"$75,000 to $99,999:",63,67,777,185,84,54,76,63,40,43,18,18,21,16,16,18,7,10,512,166,56,58,260,117,0,11]
[null,"Less than 20.0 percent",8,18,360,149,43,43,41,46,21,31,10,16,4,7,0,11,7,10,337,147,50,56,195,100,0,11]
[null,"20.0 to 24.9 percent",0,16,294,118,8,13,0,16,19,29,8,10,15,14,16,18,0,11,63,64,0,11,51,40,0,11]
[null,"25.0 to 29.9 percent",31,49,53,46,33,30,0,16,0,11,0,11,0,11,0,11,0,11,94,62,6,9,14,24,0,11]
[null,"30.0 to 34.9 percent",24,37,18,20,0,18,19,29,0,11,0,11,0,11,0,11,0,11,0,24,0,11,0,18,0,11]
[null,"35.0 to 39.9 percent",0,16,0,24,0,18,0,16,0,11,0,11,0,11,0,11,0,11,0,24,0,11,0,18,0,11]
[null,"40.0 to 49.9 percent",0,16,13,21,0,18,0,16,0,11,0,11,0,11,0,11,0,11,0,24,0,11,0,18,0,11]
[null,"50.0 percent or more",0,16,18,27,0,18,0,16,0,11,0,11,0,11,0,11,0,11,0,24,0,11,0,18,0,11]
[null,"Not computed",0,16,21,34,0,18,16,28,0,11,0,11,2,4,0,11,0,11,18,29,0,11,0,18,0,11]
[null,"$100,000 or more:",15,25,650,167,108,57,31,38,63,96,9,9,4,6,0,11,0,11,400,151,7,10,100,72,0,11]
[null,"Less than 20.0 percent",0,16,519,153,54,39,31,38,63,96,6,7,4,6,0,11,0,11,400,151,7,10,89,68,0,11]
[null,"20.0 to 24.9 percent",0,16,106,89,47,39,0,16,0,11,3,6,0,11,0,11,0,11,0,24,0,11,11,18,0,11]
[null,"25.0 to 29.9 percent",15,25,25,40,0,18,0,16,0,11,0,11,0,11,0,11,0,11,0,24,0,11,0,18,0,11]
[null,"30.0 to 34.9 percent",0,16,0,24,0,18,0,16,0,11,0,11,0,11,0,11,0,11,0,24,0,11,0,18,0,11]
[null,"35.0 to 39.9 percent",0,16,0,24,0,18,0,16,0,11,0,11,0,11,0,11,0,11,0,24,0,11,0,18,0,11]
[null,"40.0 to 49.9 percent",0,16,0,24,0,18,0,16,0,11,0,11,0,11,0,11,0,11,0,24,0,11,0,18,0,11]
[null,"50.0 percent or more",0,16,0,24,0,18,0,16,0,11,0,11,0,11,0,11,0,11,0,24,0,11,0,18,0,11]
[null,"Not computed",0,16,0,24,7,11,0,16,0,11,0,11,0,11,0,11,0,11,0,24,0,11,0,18,0,11]
[]
[]
[]
[]
[]
[]
[]
[]
[]
[]
[]
[]
[]
[]
[]
[null,"Calculated B25074. HOUSEHOLD INCOME BY GROSS RENT AS A PERCENTAGE OF HOUSEHOLD INCOME IN THE PAST 12 MONTHS"]
[null,"Universe:  RENTER-OCCUPIED HOUSING UNITS"]
[null,{"$f":"B170","v":"Data Set: 2013-2017 American Community Survey 5-Year Estimates"}]
[]
[null,null,"Barrington",null,"Dover",null,"Durham",null,"Farmington",null,"Lee",null,"Madbury",null,"Middleton",null,"Milton",null,"New Durham",null,"Rochester",null,"Rollinsford",null,"Somersworth",null,"Strafford"]
[null,null,"Estimate","Margin Of Error","Estimate","Margin Of Error","Estimate","Margin Of Error","Estimate","Margin Of Error","Estimate","Margin Of Error","Estimate","Margin Of Error","Estimate","Margin Of Error","Estimate","Margin Of Error","Estimate","Margin Of Error","Estimate","Margin Of Error","Estimate","Margin Of Error","Estimate","Margin Of Error","Estimate","Margin Of Error"]
[null,"Total:",{"$f":"C174","v":270},{"$f":"D174","v":160},{"$f":"E174","v":6173},387,1492,188,869,263,302,146,83,29,96,35,212,74,74,47,4529,385,283,71,2170,282,145,52]
[null,"Less than $10,000:",{"$f":"C175","v":0},{"$f":"D175","v":16},373,140,306,120,16,27,0,11,8,9,0,11,0,11,20,26,523,228,12,18,233,150,0,11]
[null,"Less than 30.0 percent",{"$f":"C176+C177+C178","v":0},{"$f":"SQRT((D176^2)+(D177^2)+(D178^2))","v":27.712812921102035},{"$f":"E176+E177+E178","v":39},{"$f":"SQRT((F176^2)+(F177^2)+(F178^2))","v":53.225933528685054},{"$f":"G176+G177+G178","v":9},{"$f":"SQRT((H176^2)+(H177^2)+(H178^2))","v":30.066592756745816},{"$f":"I176+I177+I178","v":0},{"$f":"SQRT((J176^2)+(J177^2)+(J178^2))","v":27.712812921102035},{"$f":"K176+K177+K178","v":0},{"$f":"SQRT((L176^2)+(L177^2)+(L178^2))","v":19.05255888325765},{"$f":"M176+M177+M178","v":0},{"$f":"SQRT((N176^2)+(N177^2)+(N178^2))","v":19.05255888325765},{"$f":"O176+O177+O178","v":0},{"$f":"SQRT((P176^2)+(P177^2)+(P178^2))","v":19.05255888325765},{"$f":"Q176+Q177+Q178","v":0},{"$f":"SQRT((R176^2)+(R177^2)+(R178^2))","v":19.05255888325765},{"$f":"S176+S177+S178","v":0},{"$f":"SQRT((T176^2)+(T177^2)+(T178^2))","v":19.05255888325765},{"$f":"U176+U177+U178","v":27},{"$f":"SQRT((V176^2)+(V177^2)+(V178^2))","v":41},{"$f":"W176+W177+W178","v":0},{"$f":"SQRT((X176^2)+(X177^2)+(X178^2))","v":19.05255888325765},{"$f":"Y176+Y177+Y178","v":0},{"$f":"SQRT((Z176^2)+(Z177^2)+(Z178^2))","v":31.176914536239792},{"$f":"AA176+AA177+AA178","v":0},{"$f":"SQRT((AB176^2)+(AB177^2)+(AB178^2))","v":19.05255888325765}]
[null,"More than 30.0 percent",{"$f":"C179+C180+C181+C182","v":0},{"$f":"SQRT((D179^2)+(D180^2)+(D181^2)+(D182^2))","v":32},{"$f":"E179+E180+E181+E182","v":215},{"$f":"SQRT((F179^2)+(F180^2)+(F181^2)+(F182^2))","v":91.744209626548098},{"$f":"G179+G180+G181+G182","v":265},{"$f":"SQRT((H179^2)+(H180^2)+(H181^2)+(H182^2))","v":121.0826164236634},{"$f":"I179+I180+I181+I182","v":16},{"$f":"SQRT((J179^2)+(J180^2)+(J181^2)+(J182^2))","v":38.691084244306204},{"$f":"K179+K180+K181+K182","v":0},{"$f":"SQRT((L179^2)+(L180^2)+(L181^2)+(L182^2))","v":22},{"$f":"M179+M180+M181+M182","v":8},{"$f":"SQRT((N179^2)+(N180^2)+(N181^2)+(N182^2))","v":21.071307505705477},{"$f":"O179+O180+O181+O182","v":0},{"$f":"SQRT((P179^2)+(P180^2)+(P181^2)+(P182^2))","v":22},{"$f":"Q179+Q180+Q181+Q182","v":0},{"$f":"SQRT((R179^2)+(R180^2)+(R181^2)+(R182^2))","v":22},{"$f":"S179+S180+S181+S182","v":20},{"$f":"SQRT((T179^2)+(T180^2)+(T181^2)+(T182^2))","v":32.233522922572398},{"$f":"U179+U180+U181+U182","v":452},{"$f":"SQRT((V179^2)+(V180^2)+(V181^2)+(V182^2))","v":235.69471780249975},{"$f":"W179+W180+W181+W182","v":0},{"$f":"SQRT((X179^2)+(X180^2)+(X181^2)+(X182^2))","v":22},{"$f":"Y179+Y180+Y181+Y182","v":233},{"$f":"SQRT((Z179^2)+(Z180^2)+(Z181^2)+(Z182^2))","v":153.20574401764446},{"$f":"AA179+AA180+AA181+AA182","v":0},{"$f":"SQRT((AB179^2)+(AB180^2)+(AB181^2)+(AB182^2))","v":22}]
[null,"Less Than 35% of HH Income",{"$f":"C176+C177+C178+C179","v":0},{"$f":"SQRT((D176^2)+(D177^2)+(D178^2)+(D179^2))","v":32},{"$f":"E176+E177+E178+E179","v":39},{"$f":"SQRT((F176^2)+(F177^2)+(F178^2)+(F179^2))","v":58.386642307979997},{"$f":"G176+G177+G178+G179","v":9},{"$f":"SQRT((H176^2)+(H177^2)+(H178^2)+(H179^2))","v":35.042830935870462},{"$f":"I176+I177+I178+I179","v":0},{"$f":"SQRT((J176^2)+(J177^2)+(J178^2)+(J179^2))","v":32},{"$f":"K176+K177+K178+K179","v":0},{"$f":"SQRT((L176^2)+(L177^2)+(L178^2)+(L179^2))","v":22},{"$f":"M176+M177+M178+M179","v":0},{"$f":"SQRT((N176^2)+(N177^2)+(N178^2)+(N179^2))","v":22},{"$f":"O176+O177+O178+O179","v":0},{"$f":"SQRT((P176^2)+(P177^2)+(P178^2)+(P179^2))","v":22},{"$f":"Q176+Q177+Q178+Q179","v":0},{"$f":"SQRT((R176^2)+(R177^2)+(R178^2)+(R179^2))","v":22},{"$f":"S176+S177+S178+S179","v":0},{"$f":"SQRT((T176^2)+(T177^2)+(T178^2)+(T179^2))","v":22},{"$f":"U176+U177+U178+U179","v":27},{"$f":"SQRT((V176^2)+(V177^2)+(V178^2)+(V179^2))","v":47.507894080878813},{"$f":"W176+W177+W178+W179","v":0},{"$f":"SQRT((X176^2)+(X177^2)+(X178^2)+(X179^2))","v":22},{"$f":"Y176+Y177+Y178+Y179","v":0},{"$f":"SQRT((Z176^2)+(Z177^2)+(Z178^2)+(Z179^2))","v":36},{"$f":"AA176+AA177+AA178+AA179","v":0},{"$f":"SQRT((AB176^2)+(AB177^2)+(AB178^2)+(AB179^2))","v":22}]
[null,"35.0 percent or more",{"$f":"C180+C181++C182","v":0},{"$f":"SQRT((D180^2)+(D181^2)+(D182^2))","v":27.712812921102035},{"$f":"E180+E181++E182","v":215},{"$f":"SQRT((F180^2)+(F181^2)+(F182^2))","v":88.549421229051518},{"$f":"G180+G181++G182","v":265},{"$f":"SQRT((H180^2)+(H181^2)+(H182^2))","v":119.73721226085064},{"$f":"I180+I181++I182","v":16},{"$f":"SQRT((J180^2)+(J181^2)+(J182^2))","v":35.227829907617071},{"$f":"K180+K181++K182","v":0},{"$f":"SQRT((L180^2)+(L181^2)+(L182^2))","v":19.05255888325765},{"$f":"M180+M181++M182","v":8},{"$f":"SQRT((N180^2)+(N181^2)+(N182^2))","v":17.972200755611428},{"$f":"O180+O181++O182","v":0},{"$f":"SQRT((P180^2)+(P181^2)+(P182^2))","v":19.05255888325765},{"$f":"Q180+Q181++Q182","v":0},{"$f":"SQRT((R180^2)+(R181^2)+(R182^2))","v":19.05255888325765},{"$f":"S180+S181++S182","v":20},{"$f":"SQRT((T180^2)+(T181^2)+(T182^2))","v":30.298514815086232},{"$f":"U180+U181++U182","v":452},{"$f":"SQRT((V180^2)+(V181^2)+(V182^2))","v":234.46961423604552},{"$f":"W180+W181++W182","v":0},{"$f":"SQRT((X180^2)+(X181^2)+(X182^2))","v":19.05255888325765},{"$f":"Y180+Y181++Y182","v":233},{"$f":"SQRT((Z180^2)+(Z181^2)+(Z182^2))","v":152.1446679972716},{"$f":"AA180+AA181++AA182","v":0},{"$f":"SQRT((AB180^2)+(AB181^2)+(AB182^2))","v":19.05255888325765}]
[null,"50.0 percent or more",{"$f":"C182","v":0},16,186,79,265,117,16,27,0,11,8,9,0,11,0,11,20,26,452,232,0,11,233,150,0,11]
[null,"Not Computed",0,16,119,121,32,25,0,16,0,11,0,11,0,11,0,11,0,11,44,59,12,18,0,18,0,11]
[null,"$10,000 to $19,999:",{"$f":"C184","v":86},{"$f":"D184","v":105},815,196,325,107,175,148,49,78,3,5,13,16,59,58,0,11,779,236,39,29,238,138,0,11]
[null,"Less than 30.0 percent",{"$f":"C185+C186+C187","v":0},{"$f":"SQRT((D185^2)+(D186^2)+(D187^2))","v":27.712812921102035},{"$f":"E185+E186+E187","v":116},{"$f":"SQRT((F185^2)+(F186^2)+(F187^2))","v":63.253458403473878},{"$f":"G185+G186+G187","v":44},{"$f":"SQRT((H185^2)+(H186^2)+(H187^2))","v":57.323642591866054},{"$f":"I185+I186+I187","v":56},{"$f":"SQRT((J185^2)+(J186^2)+(J187^2))","v":89.894382471876412},{"$f":"K185+K186+K187","v":0},{"$f":"SQRT((L185^2)+(L186^2)+(L187^2))","v":19.05255888325765},{"$f":"M185+M186+M187","v":0},{"$f":"SQRT((N185^2)+(N186^2)+(N187^2))","v":19.05255888325765},{"$f":"O185+O186+O187","v":0},{"$f":"SQRT((P185^2)+(P186^2)+(P187^2))","v":19.05255888325765},{"$f":"Q185+Q186+Q187","v":0},{"$f":"SQRT((R185^2)+(R186^2)+(R187^2))","v":19.05255888325765},{"$f":"S185+S186+S187","v":0},{"$f":"SQRT((T185^2)+(T186^2)+(T187^2))","v":19.05255888325765},{"$f":"U185+U186+U187","v":197},{"$f":"SQRT((V185^2)+(V186^2)+(V187^2))","v":115.50324670761424},{"$f":"W185+W186+W187","v":6},{"$f":"SQRT((X185^2)+(X186^2)+(X187^2))","v":17.972200755611428},{"$f":"Y185+Y186+Y187","v":82},{"$f":"SQRT((Z185^2)+(Z186^2)+(Z187^2))","v":97.385830591518811},{"$f":"AA185+AA186+AA187","v":0},{"$f":"SQRT((AB185^2)+(AB186^2)+(AB187^2))","v":19.05255888325765}]
[null,"More than 30.0 percent",{"$f":"C188+C189+C190+C191","v":37},{"$f":"SQRT((D188^2)+(D189^2)+(D190^2)+(D191^2))","v":67},{"$f":"E188+E189+E190+E191","v":699},{"$f":"SQRT((F188^2)+(F189^2)+(F190^2)+(F191^2))","v":189.16130682568252},{"$f":"G188+G189+G190+G191","v":281},{"$f":"SQRT((H188^2)+(H189^2)+(H190^2)+(H191^2))","v":103.00970828033637},{"$f":"I188+I189+I190+I191","v":119},{"$f":"SQRT((J188^2)+(J189^2)+(J190^2)+(J191^2))","v":117.25612990372828},{"$f":"K188+K189+K190+K191","v":49},{"$f":"SQRT((L188^2)+(L189^2)+(L190^2)+(L191^2))","v":80.293212664583294},{"$f":"M188+M189+M190+M191","v":0},{"$f":"SQRT((N188^2)+(N189^2)+(N190^2)+(N191^2))","v":22},{"$f":"O188+O189+O190+O191","v":13},{"$f":"SQRT((P188^2)+(P189^2)+(P190^2)+(P191^2))","v":24.879710609249457},{"$f":"Q188+Q189+Q190+Q191","v":48},{"$f":"SQRT((R188^2)+(R189^2)+(R190^2)+(R191^2))","v":53.507008886686982},{"$f":"S188+S189+S190+S191","v":0},{"$f":"SQRT((T188^2)+(T189^2)+(T190^2)+(T191^2))","v":22},{"$f":"U188+U189+U190+U191","v":530},{"$f":"SQRT((V188^2)+(V189^2)+(V190^2)+(V191^2))","v":202.90145391297716},{"$f":"W188+W189+W190+W191","v":33},{"$f":"SQRT((X188^2)+(X189^2)+(X190^2)+(X191^2))","v":33.867388443752198},{"$f":"Y188+Y189+Y190+Y191","v":156},{"$f":"SQRT((Z188^2)+(Z189^2)+(Z190^2)+(Z191^2))","v":99.709578276111472},{"$f":"AA188+AA189+AA190+AA191","v":0},{"$f":"SQRT((AB188^2)+(AB189^2)+(AB190^2)+(AB191^2))","v":22}]
[null,"Less Than 35% of HH Income",{"$f":"C185+C186+C187+C188","v":0},{"$f":"SQRT((D185^2)+(D186^2)+(D187^2)+(D188^2))","v":32},{"$f":"E185+E186+E187+E188","v":216},{"$f":"SQRT((F185^2)+(F186^2)+(F187^2)+(F188^2))","v":85.819578185866192},{"$f":"G185+G186+G187+G188","v":56},{"$f":"SQRT((H185^2)+(H186^2)+(H187^2)+(H188^2))","v":60.390396587536998},{"$f":"I185+I186+I187+I188","v":74},{"$f":"SQRT((J185^2)+(J186^2)+(J187^2)+(J188^2))","v":95.089431589425331},{"$f":"K185+K186+K187+K188","v":0},{"$f":"SQRT((L185^2)+(L186^2)+(L187^2)+(L188^2))","v":22},{"$f":"M185+M186+M187+M188","v":0},{"$f":"SQRT((N185^2)+(N186^2)+(N187^2)+(N188^2))","v":22},{"$f":"O185+O186+O187+O188","v":0},{"$f":"SQRT((P185^2)+(P186^2)+(P187^2)+(P188^2))","v":22},{"$f":"Q185+Q186+Q187+Q188","v":0},{"$f":"SQRT((R185^2)+(R186^2)+(R187^2)+(R188^2))","v":22},{"$f":"S185+S186+S187+S188","v":0},{"$f":"SQRT((T185^2)+(T186^2)+(T187^2)+(T188^2))","v":22},{"$f":"U185+U186+U187+U188","v":249},{"$f":"SQRT((V185^2)+(V186^2)+(V187^2)+(V188^2))","v":122.90240030202827},{"$f":"W185+W186+W187+W188","v":6},{"$f":"SQRT((X185^2)+(X186^2)+(X187^2)+(X188^2))","v":21.071307505705477},{"$f":"Y185+Y186+Y187+Y188","v":112},{"$f":"SQRT((Z185^2)+(Z186^2)+(Z187^2)+(Z188^2))","v":104.17773274553444},{"$f":"AA185+AA186+AA187+AA188","v":0},{"$f":"SQRT((AB185^2)+(AB186^2)+(AB187^2)+(AB188^2))","v":22}]
[null,"35.0 percent or more",{"$f":"C189+C190++C191","v":37},{"$f":"SQRT((D189^2)+(D190^2)+(D191^2))","v":65.061509358452483},{"$f":"E189+E190++E191","v":599},{"$f":"SQRT((F189^2)+(F190^2)+(F191^2))","v":180.0499930574839},{"$f":"G189+G190++G191","v":269},{"$f":"SQRT((H189^2)+(H190^2)+(H191^2))","v":101.24228365658294},{"$f":"I189+I190++I191","v":101},{"$f":"SQRT((J189^2)+(J190^2)+(J191^2))","v":113.08403954581743},{"$f":"K189+K190++K191","v":49},{"$f":"SQRT((L189^2)+(L190^2)+(L191^2))","v":79.536155300592696},{"$f":"M189+M190++M191","v":0},{"$f":"SQRT((N189^2)+(N190^2)+(N191^2))","v":19.05255888325765},{"$f":"O189+O190++O191","v":13},{"$f":"SQRT((P189^2)+(P190^2)+(P191^2))","v":22.315913604421397},{"$f":"Q189+Q190++Q191","v":48},{"$f":"SQRT((R189^2)+(R190^2)+(R191^2))","v":52.364109846344185},{"$f":"S189+S190++S191","v":0},{"$f":"SQRT((T189^2)+(T190^2)+(T191^2))","v":19.05255888325765},{"$f":"U189+U190++U191","v":478},{"$f":"SQRT((V189^2)+(V190^2)+(V191^2))","v":198.50692683128213},{"$f":"W189+W190++W191","v":33},{"$f":"SQRT((X189^2)+(X190^2)+(X191^2))","v":32.03123475609393},{"$f":"Y189+Y190++Y191","v":126},{"$f":"SQRT((Z189^2)+(Z190^2)+(Z191^2))","v":92.590496272565687},{"$f":"AA189+AA190++AA191","v":0},{"$f":"SQRT((AB189^2)+(AB190^2)+(AB191^2))","v":19.05255888325765}]
[null,"50.0 percent or more",{"$f":"C191","v":37},{"$f":"D191","v":61},{"$f":"E191","v":549},{"$f":"F191","v":171},{"$f":"G191","v":239},97,{"$f":"I191","v":31},36,{"$f":"K191","v":49},78,{"$f":"M191","v":0},11,{"$f":"O191","v":13},16,{"$f":"Q191","v":48},50,{"$f":"S191","v":0},11,{"$f":"U191","v":426},194,{"$f":"W191","v":33},28,{"$f":"Y191","v":105},85,{"$f":"AA191","v":0},11]
[null,"Not Computed",{"$f":"C192","v":49},{"$f":"D192","v":82},{"$f":"E192","v":0},24,0,18,0,16,0,11,3,5,0,11,11,17,0,11,52,40,0,11,0,18,0,11]
[null,"$20,000 to $34,999:",{"$f":"C193","v":52},{"$f":"D193","v":54},955,253,348,116,250,161,16,25,8,9,12,9,77,51,8,14,872,233,64,42,526,188,31,34]
[null,"Less than 30.0 percent",{"$f":"C194+C195+C196","v":40},{"$f":"SQRT((D194^2)+(D195^2)+(D196^2))","v":56.709787515031302},{"$f":"E194+E195+E196","v":236},{"$f":"SQRT((F194^2)+(F195^2)+(F196^2))","v":141.03900169811186},{"$f":"G194+G195+G196","v":81},{"$f":"SQRT((H194^2)+(H195^2)+(H196^2))","v":53.478967828483754},{"$f":"I194+I195+I196","v":18},{"$f":"SQRT((J194^2)+(J195^2)+(J196^2))","v":36},{"$f":"K194+K195+K196","v":0},{"$f":"SQRT((L194^2)+(L195^2)+(L196^2))","v":19.05255888325765},{"$f":"M194+M195+M196","v":8},{"$f":"SQRT((N194^2)+(N195^2)+(N196^2))","v":17.972200755611428},{"$f":"O194+O195+O196","v":4},{"$f":"SQRT((P194^2)+(P195^2)+(P196^2))","v":16.340134638368191},{"$f":"Q194+Q195+Q196","v":0},{"$f":"SQRT((R194^2)+(R195^2)+(R196^2))","v":19.05255888325765},{"$f":"S194+S195+S196","v":0},{"$f":"SQRT((T194^2)+(T195^2)+(T196^2))","v":19.05255888325765},{"$f":"U194+U195+U196","v":132},{"$f":"SQRT((V194^2)+(V195^2)+(V196^2))","v":68.036754772696213},{"$f":"W194+W195+W196","v":12},{"$f":"SQRT((X194^2)+(X195^2)+(X196^2))","v":16.431676725154983},{"$f":"Y194+Y195+Y196","v":71},{"$f":"SQRT((Z194^2)+(Z195^2)+(Z196^2))","v":68.534662762721752},{"$f":"AA194+AA195+AA196","v":0},{"$f":"SQRT((AB194^2)+(AB195^2)+(AB196^2))","v":19.05255888325765}]
[null,"More than 30.0 percent",{"$f":"C197+C198+C199+C200","v":12},{"$f":"SQRT((D197^2)+(D198^2)+(D199^2)+(D200^2))","v":34.176014981270121},{"$f":"E197+E198+E199+E200","v":719},{"$f":"SQRT((F197^2)+(F198^2)+(F199^2)+(F200^2))","v":196.76381781211708},{"$f":"G197+G198+G199+G200","v":267},{"$f":"SQRT((H197^2)+(H198^2)+(H199^2)+(H200^2))","v":98.544406233941046},{"$f":"I197+I198+I199+I200","v":232},{"$f":"SQRT((J197^2)+(J198^2)+(J199^2)+(J200^2))","v":162.91408778862558},{"$f":"K197+K198+K199+K200","v":16},{"$f":"SQRT((L197^2)+(L198^2)+(L199^2)+(L200^2))","v":31.432467291003423},{"$f":"M197+M198+M199+M200","v":0},{"$f":"SQRT((N197^2)+(N198^2)+(N199^2)+(N200^2))","v":22},{"$f":"O197+O198+O199+O200","v":2},{"$f":"SQRT((P197^2)+(P198^2)+(P199^2)+(P200^2))","v":19.28730152198591},{"$f":"Q197+Q198+Q199+Q200","v":77},{"$f":"SQRT((R197^2)+(R198^2)+(R199^2)+(R200^2))","v":65.038450166036398},{"$f":"S197+S198+S199+S200","v":0},{"$f":"SQRT((T197^2)+(T198^2)+(T199^2)+(T200^2))","v":22},{"$f":"U197+U198+U199+U200","v":740},{"$f":"SQRT((V197^2)+(V198^2)+(V199^2)+(V200^2))","v":208.2330425268766},{"$f":"W197+W198+W199+W200","v":52},{"$f":"SQRT((X197^2)+(X198^2)+(X199^2)+(X200^2))","v":43.347433603386484},{"$f":"Y197+Y198+Y199+Y200","v":455},{"$f":"SQRT((Z197^2)+(Z198^2)+(Z199^2)+(Z200^2))","v":206.04125800431331},{"$f":"AA197+AA198+AA199+AA200","v":31},{"$f":"SQRT((AB197^2)+(AB198^2)+(AB199^2)+(AB200^2))","v":37.443290453698111}]
[null,"Less Than 35% of HH Income",{"$f":"C194+C195+C196+C197","v":40},{"$f":"SQRT((D194^2)+(D195^2)+(D196^2)+(D197^2))","v":58.923679450624938},{"$f":"E194+E195+E196+E197","v":306},{"$f":"SQRT((F194^2)+(F195^2)+(F196^2)+(F197^2))","v":151.02317702922289},{"$f":"G194+G195+G196+G197","v":113},{"$f":"SQRT((H194^2)+(H195^2)+(H196^2)+(H197^2))","v":66.189122973491649},{"$f":"I194+I195+I196+I197","v":18},{"$f":"SQRT((J194^2)+(J195^2)+(J196^2)+(J197^2))","v":39.395431207184416},{"$f":"K194+K195+K196+K197","v":0},{"$f":"SQRT((L194^2)+(L195^2)+(L196^2)+(L197^2))","v":22},{"$f":"M194+M195+M196+M197","v":8},{"$f":"SQRT((N194^2)+(N195^2)+(N196^2)+(N197^2))","v":21.071307505705477},{"$f":"O194+O195+O196+O197","v":4},{"$f":"SQRT((P194^2)+(P195^2)+(P196^2)+(P197^2))","v":19.697715603592208},{"$f":"Q194+Q195+Q196+Q197","v":0},{"$f":"SQRT((R194^2)+(R195^2)+(R196^2)+(R197^2))","v":22},{"$f":"S194+S195+S196+S197","v":0},{"$f":"SQRT((T194^2)+(T195^2)+(T196^2)+(T197^2))","v":22},{"$f":"U194+U195+U196+U197","v":258},{"$f":"SQRT((V194^2)+(V195^2)+(V196^2)+(V197^2))","v":101.26203632161463},{"$f":"W194+W195+W196+W197","v":12},{"$f":"SQRT((X194^2)+(X195^2)+(X196^2)+(X197^2))","v":19.773719933285189},{"$f":"Y194+Y195+Y196+Y197","v":142},{"$f":"SQRT((Z194^2)+(Z195^2)+(Z196^2)+(Z197^2))","v":94.456339120251741},{"$f":"AA194+AA195+AA196+AA197","v":0},{"$f":"SQRT((AB194^2)+(AB195^2)+(AB196^2)+(AB197^2))","v":22}]
[null,"35.0 percent or more",{"$f":"C198+C199+C200","v":12},{"$f":"SQRT((D198^2)+(D199^2)+(D200^2))","v":30.199337741082999},{"$f":"E198+E199+E200","v":649},{"$f":"SQRT((F198^2)+(F199^2)+(F200^2))","v":189.208879284245},{"$f":"G198+G199+G200","v":235},{"$f":"SQRT((H198^2)+(H199^2)+(H200^2))","v":90.498618773990131},{"$f":"I198+I199+I200","v":232},{"$f":"SQRT((J198^2)+(J199^2)+(J200^2))","v":162.12649382503773},{"$f":"K198+K199+K200","v":16},{"$f":"SQRT((L198^2)+(L199^2)+(L200^2))","v":29.444863728670914},{"$f":"M198+M199+M200","v":0},{"$f":"SQRT((N198^2)+(N199^2)+(N200^2))","v":19.05255888325765},{"$f":"O198+O199+O200","v":2},{"$f":"SQRT((P198^2)+(P199^2)+(P200^2))","v":15.842979517754859},{"$f":"Q198+Q199+Q200","v":77},{"$f":"SQRT((R198^2)+(R199^2)+(R200^2))","v":64.101482042149385},{"$f":"S198+S199+S200","v":0},{"$f":"SQRT((T198^2)+(T199^2)+(T200^2))","v":19.05255888325765},{"$f":"U198+U199+U200","v":614},{"$f":"SQRT((V198^2)+(V199^2)+(V200^2))","v":194.25756098540927},{"$f":"W198+W199+W200","v":52},{"$f":"SQRT((X198^2)+(X199^2)+(X200^2))","v":41.928510586473259},{"$f":"Y198+Y199+Y200","v":384},{"$f":"SQRT((Z198^2)+(Z199^2)+(Z200^2))","v":195.51981996718388},{"$f":"AA198+AA199+AA200","v":31},{"$f":"SQRT((AB198^2)+(AB199^2)+(AB200^2))","v":35.791060336346561}]
[null,"50.0 percent or more",{"$f":"C200","v":0},16,315,156,120,65,39,60,16,25,0,11,0,11,21,32,0,11,265,136,10,11,172,124,14,22]
[null,"Not Computed",0,16,0,24,0,18,0,16,0,11,0,11,6,6,0,11,8,14,0,24,0,11,0,18,0,11]
[null,"$35,000 to $49,999:",41,69,1187,287,216,98,174,144,79,95,10,9,6,7,17,19,22,34,794,264,32,28,300,107,61,45]
[null,"Less than 30.0 percent",{"$f":"C203+C204+C205","v":41},{"$f":"SQRT((D203^2)+(D204^2)+(D205^2))","v":72.615425358528341},{"$f":"E203+E204+E205","v":535},{"$f":"SQRT((F203^2)+(F204^2)+(F205^2))","v":195.3791186386099},{"$f":"G203+G204+G205","v":65},{"$f":"SQRT((H203^2)+(H204^2)+(H205^2))","v":37.802116342871599},{"$f":"I203+I204+I205","v":99},{"$f":"SQRT((J203^2)+(J204^2)+(J205^2))","v":111.90174261377702},{"$f":"K203+K204+K205","v":79},{"$f":"SQRT((L203^2)+(L204^2)+(L205^2))","v":95.503926620846329},{"$f":"M203+M204+M205","v":10},{"$f":"SQRT((N203^2)+(N204^2)+(N205^2))","v":14.177446878757825},{"$f":"O203+O204+O205","v":0},{"$f":"SQRT((P203^2)+(P204^2)+(P205^2))","v":19.05255888325765},{"$f":"Q203+Q204+Q205","v":7},{"$f":"SQRT((R203^2)+(R204^2)+(R205^2))","v":19.646882704388499},{"$f":"S203+S204+S205","v":22},{"$f":"SQRT((T203^2)+(T204^2)+(T205^2))","v":37.389838191679836},{"$f":"U203+U204+U205","v":440},{"$f":"SQRT((V203^2)+(V204^2)+(V205^2))","v":175.6729916634882},{"$f":"W203+W204+W205","v":15},{"$f":"SQRT((X203^2)+(X204^2)+(X205^2))","v":18.814887722226779},{"$f":"Y203+Y204+Y205","v":173},{"$f":"SQRT((Z203^2)+(Z204^2)+(Z205^2))","v":89.274856482662571},{"$f":"AA203+AA204+AA205","v":61},{"$f":"SQRT((AB203^2)+(AB204^2)+(AB205^2))","v":47.686476070265456}]
[null,"More than 30.0 percent",{"$f":"C206+C207+C208+C209","v":0},{"$f":"SQRT((D206^2)+(D207^2)+(D208^2)+(D209^2))","v":32},{"$f":"E206+E207+E208+E209","v":637},{"$f":"SQRT((F206^2)+(F207^2)+(F208^2)+(F209^2))","v":204.154353370189},{"$f":"G206+G207+G208+G209","v":145},{"$f":"SQRT((H206^2)+(H207^2)+(H208^2)+(H209^2))","v":90.636637183867322},{"$f":"I206+I207+I208+I209","v":57},{"$f":"SQRT((J206^2)+(J207^2)+(J208^2)+(J209^2))","v":91.307173869307775},{"$f":"K206+K207+K208+K209","v":0},{"$f":"SQRT((L206^2)+(L207^2)+(L208^2)+(L209^2))","v":22},{"$f":"M206+M207+M208+M209","v":0},{"$f":"SQRT((N206^2)+(N207^2)+(N208^2)+(N209^2))","v":22},{"$f":"O206+O207+O208+O209","v":6},{"$f":"SQRT((P206^2)+(P207^2)+(P208^2)+(P209^2))","v":20.297783130184438},{"$f":"Q206+Q207+Q208+Q209","v":10},{"$f":"SQRT((R206^2)+(R207^2)+(R208^2)+(R209^2))","v":24.879710609249457},{"$f":"S206+S207+S208+S209","v":0},{"$f":"SQRT((T206^2)+(T207^2)+(T208^2)+(T209^2))","v":22},{"$f":"U206+U207+U208+U209","v":318},{"$f":"SQRT((V206^2)+(V207^2)+(V208^2)+(V209^2))","v":157.99367075930604},{"$f":"W206+W207+W208+W209","v":17},{"$f":"SQRT((X206^2)+(X207^2)+(X208^2)+(X209^2))","v":26.570660511172846},{"$f":"Y206+Y207+Y208+Y209","v":111},{"$f":"SQRT((Z206^2)+(Z207^2)+(Z208^2)+(Z209^2))","v":70.071392165419411},{"$f":"AA206+AA207+AA208+AA209","v":0},{"$f":"SQRT((AB206^2)+(AB207^2)+(AB208^2)+(AB209^2))","v":22}]
[null,"Less Than 35% of HH Income",{"$f":"C203+C204+C205+C206","v":41},{"$f":"SQRT((D203^2)+(D204^2)+(D205^2)+(D206^2))","v":74.357245780085208},{"$f":"E203+E204+E205+E206","v":784},{"$f":"SQRT((F203^2)+(F204^2)+(F205^2)+(F206^2))","v":224.7087003211046},{"$f":"G203+G204+G205+G206","v":144},{"$f":"SQRT((H203^2)+(H204^2)+(H205^2)+(H206^2))","v":78.676553051083772},{"$f":"I203+I204+I205+I206","v":99},{"$f":"SQRT((J203^2)+(J204^2)+(J205^2)+(J206^2))","v":113.03981599418853},{"$f":"K203+K204+K205+K206","v":79},{"$f":"SQRT((L203^2)+(L204^2)+(L205^2)+(L206^2))","v":96.135321292436529},{"$f":"M203+M204+M205+M206","v":10},{"$f":"SQRT((N203^2)+(N204^2)+(N205^2)+(N206^2))","v":17.944358444926362},{"$f":"O203+O204+O205+O206","v":0},{"$f":"SQRT((P203^2)+(P204^2)+(P205^2)+(P206^2))","v":22},{"$f":"Q203+Q204+Q205+Q206","v":7},{"$f":"SQRT((R203^2)+(R204^2)+(R205^2)+(R206^2))","v":22.516660498395403},{"$f":"S203+S204+S205+S206","v":22},{"$f":"SQRT((T203^2)+(T204^2)+(T205^2)+(T206^2))","v":38.974350539810153},{"$f":"U203+U204+U205+U206","v":600},{"$f":"SQRT((V203^2)+(V204^2)+(V205^2)+(V206^2))","v":210.51603264359701},{"$f":"W203+W204+W205+W206","v":15},{"$f":"SQRT((X203^2)+(X204^2)+(X205^2)+(X206^2))","v":21.794494717703369},{"$f":"Y203+Y204+Y205+Y206","v":186},{"$f":"SQRT((Z203^2)+(Z204^2)+(Z205^2)+(Z206^2))","v":91.711504185679999},{"$f":"AA203+AA204+AA205+AA206","v":61},{"$f":"SQRT((AB203^2)+(AB204^2)+(AB205^2)+(AB206^2))","v":48.938737212968626}]
[null,"35.0 percent or more",{"$f":"C207+C208+C209","v":0},{"$f":"SQRT((D207^2)+(D208^2)+(D209^2))","v":27.712812921102035},{"$f":"E207+E208+E209","v":388},{"$f":"SQRT((F207^2)+(F208^2)+(F209^2))","v":171.34176373552364},{"$f":"G207+G208+G209","v":66},{"$f":"SQRT((H207^2)+(H208^2)+(H209^2))","v":58.770741019660456},{"$f":"I207+I208+I209","v":57},{"$f":"SQRT((J207^2)+(J208^2)+(J209^2))","v":89.894382471876412},{"$f":"K207+K208+K209","v":0},{"$f":"SQRT((L207^2)+(L208^2)+(L209^2))","v":19.05255888325765},{"$f":"M207+M208+M209","v":0},{"$f":"SQRT((N207^2)+(N208^2)+(N209^2))","v":19.05255888325765},{"$f":"O207+O208+O209","v":6},{"$f":"SQRT((P207^2)+(P208^2)+(P209^2))","v":17.058722109231979},{"$f":"Q207+Q208+Q209","v":10},{"$f":"SQRT((R207^2)+(R208^2)+(R209^2))","v":22.315913604421397},{"$f":"S207+S208+S209","v":0},{"$f":"SQRT((T207^2)+(T208^2)+(T209^2))","v":19.05255888325765},{"$f":"U207+U208+U209","v":158},{"$f":"SQRT((V207^2)+(V208^2)+(V209^2))","v":107.26602444390302},{"$f":"W207+W208+W209","v":17},{"$f":"SQRT((X207^2)+(X208^2)+(X209^2))","v":24.186773244895647},{"$f":"Y207+Y208+Y209","v":98},{"$f":"SQRT((Z207^2)+(Z208^2)+(Z209^2))","v":66.850579653433073},{"$f":"AA207+AA208+AA209","v":0},{"$f":"SQRT((AB207^2)+(AB208^2)+(AB209^2))","v":19.05255888325765}]
[null,"50.0 percent or more",{"$f":"C209","v":0},16,34,37,{"$f":"G209","v":45},51,{"$f":"I209","v":0},16,{"$f":"K209","v":0},11,{"$f":"M209","v":0},11,{"$f":"O209","v":6},7,{"$f":"Q209","v":0},11,{"$f":"S209","v":0},11,{"$f":"U209","v":0},24,{"$f":"W209","v":4},8,{"$f":"Y209","v":33},38,{"$f":"AA209","v":0},11]
[null,"Not Computed",0,16,15,19,{"$f":"G210","v":6},9,{"$f":"I210","v":18},28,{"$f":"K210","v":0},11,{"$f":"M210","v":0},11,{"$f":"O210","v":0},11,{"$f":"Q210","v":0},11,{"$f":"S210","v":0},11,{"$f":"U210","v":36},33,{"$f":"W210","v":0},11,{"$f":"Y210","v":16},25,{"$f":"AA210","v":0},11]
[null,"$50,000 to $74,999:",{"$f":"C211","v":13},{"$f":"D211","v":21},1416,247,105,50,147,123,55,49,27,16,40,29,43,39,17,13,649,232,73,48,513,168,53,47]
[null,"Less than 30.0 percent",{"$f":"C212+C213+C214","v":13},{"$f":"SQRT((D212^2)+(D213^2)+(D214^2))","v":30.870698080866262},{"$f":"E212+E213+E214","v":1153},{"$f":"SQRT((F212^2)+(F213^2)+(F214^2))","v":234.27761310035578},{"$f":"G212+G213+G214","v":51},{"$f":"SQRT((H212^2)+(H213^2)+(H214^2))","v":33.955853692699293},{"$f":"I212+I213+I214","v":129},{"$f":"SQRT((J212^2)+(J213^2)+(J214^2))","v":113.29607230614837},{"$f":"K212+K213+K214","v":55},{"$f":"SQRT((L212^2)+(L213^2)+(L214^2))","v":50.309044912421065},{"$f":"M212+M213+M214","v":27},{"$f":"SQRT((N212^2)+(N213^2)+(N214^2))","v":16.822603841260722},{"$f":"O212+O213+O214","v":33},{"$f":"SQRT((P212^2)+(P213^2)+(P214^2))","v":29.58039891549808},{"$f":"Q212+Q213+Q214","v":34},{"$f":"SQRT((R212^2)+(R213^2)+(R214^2))","v":39.166312055132281},{"$f":"S212+S213+S214","v":11},{"$f":"SQRT((T212^2)+(T213^2)+(T214^2))","v":17.972200755611428},{"$f":"U212+U213+U214","v":578},{"$f":"SQRT((V212^2)+(V213^2)+(V214^2))","v":202.8324431643025},{"$f":"W212+W213+W214","v":73},{"$f":"SQRT((X212^2)+(X213^2)+(X214^2))","v":52.019227214559812},{"$f":"Y212+Y213+Y214","v":496},{"$f":"SQRT((Z212^2)+(Z213^2)+(Z214^2))","v":183.31666590902202},{"$f":"AA212+AA213+AA214","v":47},{"$f":"SQRT((AB212^2)+(AB213^2)+(AB214^2))","v":46.914816422959603}]
[null,"More than 30.0 percent",{"$f":"C215+C216+C217+C218","v":0},{"$f":"SQRT((D215^2)+(D216^2)+(D217^2)+(D218^2))","v":32},{"$f":"E215+E216+E217+E218","v":251},{"$f":"SQRT((F215^2)+(F216^2)+(F217^2)+(F218^2))","v":147.19035294474975},{"$f":"G215+G216+G217+G218","v":51},{"$f":"SQRT((H215^2)+(H216^2)+(H217^2)+(H218^2))","v":34.278273002005221},{"$f":"I215+I216+I217+I218","v":18},{"$f":"SQRT((J215^2)+(J216^2)+(J217^2)+(J218^2))","v":41.581245772583578},{"$f":"K215+K216+K217+K218","v":0},{"$f":"SQRT((L215^2)+(L216^2)+(L217^2)+(L218^2))","v":22},{"$f":"M215+M216+M217+M218","v":0},{"$f":"SQRT((N215^2)+(N216^2)+(N217^2)+(N218^2))","v":22},{"$f":"O215+O216+O217+O218","v":7},{"$f":"SQRT((P215^2)+(P216^2)+(P217^2)+(P218^2))","v":22},{"$f":"Q215+Q216+Q217+Q218","v":0},{"$f":"SQRT((R215^2)+(R216^2)+(R217^2)+(R218^2))","v":22},{"$f":"S215+S216+S217+S218","v":6},{"$f":"SQRT((T215^2)+(T216^2)+(T217^2)+(T218^2))","v":21.517434791350013},{"$f":"U215+U216+U217+U218","v":30},{"$f":"SQRT((V215^2)+(V216^2)+(V217^2)+(V218^2))","v":49.091750834534309},{"$f":"W215+W216+W217+W218","v":0},{"$f":"SQRT((X215^2)+(X216^2)+(X217^2)+(X218^2))","v":22},{"$f":"Y215+Y216+Y217+Y218","v":17},{"$f":"SQRT((Z215^2)+(Z216^2)+(Z217^2)+(Z218^2))","v":40.595566260368876},{"$f":"AA215+AA216+AA217+AA218","v":0},{"$f":"SQRT((AB215^2)+(AB216^2)+(AB217^2)+(AB218^2))","v":22}]
[null,"Less Than 35% of HH Income",{"$f":"C215+C214+C213+C212","v":13},{"$f":"SQRT((D215^2)+(D214^2)+(D213^2)+(D212^2))","v":34.770677301427419},{"$f":"E215+E214+E213+E212","v":1255},{"$f":"SQRT((F215^2)+(F214^2)+(F213^2)+(F212^2))","v":245.09181952892675},{"$f":"G215+G214+G213+G212","v":66},{"$f":"SQRT((H215^2)+(H214^2)+(H213^2)+(H212^2))","v":38.43175770115127},{"$f":"I215+I214+I213+I212","v":129},{"$f":"SQRT((J215^2)+(J214^2)+(J213^2)+(J212^2))","v":114.42027792310242},{"$f":"K215+K214+K213+K212","v":55},{"$f":"SQRT((L215^2)+(L214^2)+(L213^2)+(L212^2))","v":51.497572758334933},{"$f":"M215+M214+M213+M212","v":27},{"$f":"SQRT((N215^2)+(N214^2)+(N213^2)+(N212^2))","v":20.09975124224178},{"$f":"O215+O214+O213+O212","v":40},{"$f":"SQRT((P215^2)+(P214^2)+(P213^2)+(P212^2))","v":31.559467676118999},{"$f":"Q215+Q214+Q213+Q212","v":34},{"$f":"SQRT((R215^2)+(R214^2)+(R213^2)+(R212^2))","v":40.681691213615984},{"$f":"S215+S214+S213+S212","v":11},{"$f":"SQRT((T215^2)+(T214^2)+(T213^2)+(T212^2))","v":21.071307505705477},{"$f":"U215+U214+U213+U212","v":600},{"$f":"SQRT((V215^2)+(V214^2)+(V213^2)+(V212^2))","v":205.49939172659367},{"$f":"W215+W214+W213+W212","v":73},{"$f":"SQRT((X215^2)+(X214^2)+(X213^2)+(X212^2))","v":53.169540152233779},{"$f":"Y215+Y214+Y213+Y212","v":513},{"$f":"SQRT((Z215^2)+(Z214^2)+(Z213^2)+(Z212^2))","v":185.15128949051368},{"$f":"AA215+AA214+AA213+AA212","v":47},{"$f":"SQRT((AB215^2)+(AB214^2)+(AB213^2)+(AB212^2))","v":48.187135212627034}]
[null,"35.0 percent or more",{"$f":"C216+C217+C218","v":0},{"$f":"SQRT((D216^2)+(D217^2)+(D218^2))","v":27.712812921102035},{"$f":"E216+E217+E218","v":149},{"$f":"SQRT((F216^2)+(F217^2)+(F218^2))","v":128.37834708392222},{"$f":"G216+G217+G218","v":36},{"$f":"SQRT((H216^2)+(H217^2)+(H218^2))","v":29.171904291629644},{"$f":"I216+I217+I218","v":18},{"$f":"SQRT((J216^2)+(J217^2)+(J218^2))","v":38.379682124790975},{"$f":"K216+K217+K218","v":0},{"$f":"SQRT((L216^2)+(L217^2)+(L218^2))","v":19.05255888325765},{"$f":"M216+M217+M218","v":0},{"$f":"SQRT((N216^2)+(N217^2)+(N218^2))","v":19.05255888325765},{"$f":"O216+O217+O218","v":0},{"$f":"SQRT((P216^2)+(P217^2)+(P218^2))","v":19.05255888325765},{"$f":"Q216+Q217+Q218","v":0},{"$f":"SQRT((R216^2)+(R217^2)+(R218^2))","v":19.05255888325765},{"$f":"S216+S217+S218","v":6},{"$f":"SQRT((T216^2)+(T217^2)+(T218^2))","v":18.493242008906929},{"$f":"U216+U217+U218","v":8},{"$f":"SQRT((V216^2)+(V217^2)+(V218^2))","v":36.345563690772494},{"$f":"W216+W217+W218","v":0},{"$f":"SQRT((X216^2)+(X217^2)+(X218^2))","v":19.05255888325765},{"$f":"Y216+Y217+Y218","v":0},{"$f":"SQRT((Z216^2)+(Z217^2)+(Z218^2))","v":31.176914536239792},{"$f":"AA216+AA217+AA218","v":0},{"$f":"SQRT((AB216^2)+(AB217^2)+(AB218^2))","v":19.05255888325765}]
[null,"50.0 percent or more",{"$f":"C218","v":0},16,22,36,{"$f":"G218","v":18},21,{"$f":"I218","v":18},31,{"$f":"K218","v":0},11,{"$f":"M218","v":0},11,{"$f":"O218","v":0},11,{"$f":"Q218","v":0},11,{"$f":"S218","v":0},11,{"$f":"U218","v":0},24,{"$f":"W218","v":0},11,{"$f":"Y218","v":0},18,{"$f":"AA218","v":0},11]
[null,"Not Computed",0,16,12,20,{"$f":"G219","v":3},7,{"$f":"I219","v":0},16,{"$f":"K219","v":0},11,{"$f":"M219","v":0},11,{"$f":"O219","v":0},11,{"$f":"Q219","v":9},13,{"$f":"S219","v":0},11,{"$f":"U219","v":41},40,{"$f":"W219","v":0},11,{"$f":"Y219","v":0},18,{"$f":"AA219","v":6},9]
[null,"$75,000 to $99,999:",63,67,777,185,{"$f":"G220","v":84},54,{"$f":"I220","v":76},63,{"$f":"K220","v":40},43,{"$f":"M220","v":18},18,{"$f":"O220","v":21},16,{"$f":"Q220","v":16},18,{"$f":"S220","v":7},10,{"$f":"U220","v":512},166,{"$f":"W220","v":56},58,{"$f":"Y220","v":260},117,{"$f":"AA220","v":0},11]
[null,"Less than 30.0 percent",{"$f":"C221+C222+C223","v":39},{"$f":"SQRT((D221^2)+(D222^2)+(D223^2))","v":54.598534778874793},{"$f":"E221+E222+E223","v":707},{"$f":"SQRT((F221^2)+(F222^2)+(F223^2))","v":195.55306185278715},{"$f":"G221+G222+G223","v":84},{"$f":"SQRT((H221^2)+(H222^2)+(H223^2))","v":54.018515344278022},{"$f":"I221+I222+I223","v":41},{"$f":"SQRT((J221^2)+(J222^2)+(J223^2))","v":51.264022471905186},{"$f":"K221+K222+K223","v":40},{"$f":"SQRT((L221^2)+(L222^2)+(L223^2))","v":43.852023898561399},{"$f":"M221+M222+M223","v":18},{"$f":"SQRT((N221^2)+(N222^2)+(N223^2))","v":21.840329667841555},{"$f":"O221+O222+O223","v":19},{"$f":"SQRT((P221^2)+(P222^2)+(P223^2))","v":19.131126469708992},{"$f":"Q221+Q222+Q223","v":16},{"$f":"SQRT((R221^2)+(R222^2)+(R223^2))","v":23.790754506740637},{"$f":"S221+S222+S223","v":7},{"$f":"SQRT((T221^2)+(T222^2)+(T223^2))","v":18.493242008906929},{"$f":"U221+U222+U223","v":494},{"$f":"SQRT((V221^2)+(V222^2)+(V223^2))","v":171.89822570346675},{"$f":"W221+W222+W223","v":56},{"$f":"SQRT((X221^2)+(X222^2)+(X223^2))","v":57.77542730261716},{"$f":"Y221+Y222+Y223","v":260},{"$f":"SQRT((Z221^2)+(Z222^2)+(Z223^2))","v":110.34491379306978},{"$f":"AA221+AA222+AA223","v":0},{"$f":"SQRT((AB221^2)+(AB222^2)+(AB223^2))","v":19.05255888325765}]
[null,"More than 30.0 percent",{"$f":"C224+C225+C226+C227","v":24},{"$f":"SQRT((D224^2)+(D225^2)+(D226^2)+(D227^2))","v":46.227697325304881},{"$f":"E224+E225+E226+E227","v":49},{"$f":"SQRT((F224^2)+(F225^2)+(F226^2)+(F227^2))","v":46.324939287601879},{"$f":"G224+G225+G226+G227","v":0},{"$f":"SQRT((H224^2)+(H225^2)+(H226^2)+(H227^2))","v":36},{"$f":"I224+I225+I226+I227","v":19},{"$f":"SQRT((J224^2)+(J225^2)+(J226^2)+(J227^2))","v":40.11234224026316},{"$f":"K224+K225+K226+K227","v":0},{"$f":"SQRT((L224^2)+(L225^2)+(L226^2)+(L227^2))","v":22},{"$f":"M224+M225+M226+M227","v":0},{"$f":"SQRT((N224^2)+(N225^2)+(N226^2)+(N227^2))","v":22},{"$f":"O224+O225+O226+O227","v":0},{"$f":"SQRT((P224^2)+(P225^2)+(P226^2)+(P227^2))","v":22},{"$f":"Q224+Q225+Q226+Q227","v":0},{"$f":"SQRT((R224^2)+(R225^2)+(R226^2)+(R227^2))","v":22},{"$f":"S224+S225+S226+S227","v":0},{"$f":"SQRT((T224^2)+(T225^2)+(T226^2)+(T227^2))","v":22},{"$f":"U224+U225+U226+U227","v":0},{"$f":"SQRT((V224^2)+(V225^2)+(V226^2)+(V227^2))","v":48},{"$f":"W224+W225+W226+W227","v":0},{"$f":"SQRT((X224^2)+(X225^2)+(X226^2)+(X227^2))","v":22},{"$f":"Y224+Y225+Y226+Y227","v":0},{"$f":"SQRT((Z224^2)+(Z225^2)+(Z226^2)+(Z227^2))","v":36},{"$f":"AA224+AA225+AA226+AA227","v":0},{"$f":"SQRT((AB224^2)+(AB225^2)+(AB226^2)+(AB227^2))","v":22}]
[null,"Less Than 35% of HH Income",{"$f":"C221+C222+C223+C224","v":63},{"$f":"SQRT((D221^2)+(D222^2)+(D223^2)+(D224^2))","v":65.954529791364592},{"$f":"E221+E222+E223+E224","v":725},{"$f":"SQRT((F221^2)+(F222^2)+(F223^2)+(F224^2))","v":196.57314160383152},{"$f":"G221+G222+G223+G224","v":84},{"$f":"SQRT((H221^2)+(H222^2)+(H223^2)+(H224^2))","v":56.938563381947034},{"$f":"I221+I222+I223+I224","v":60},{"$f":"SQRT((J221^2)+(J222^2)+(J223^2)+(J224^2))","v":58.898217290508889},{"$f":"K221+K222+K223+K224","v":40},{"$f":"SQRT((L221^2)+(L222^2)+(L223^2)+(L224^2))","v":45.210618221829257},{"$f":"M221+M222+M223+M224","v":18},{"$f":"SQRT((N221^2)+(N222^2)+(N223^2)+(N224^2))","v":24.454038521274967},{"$f":"O221+O222+O223+O224","v":19},{"$f":"SQRT((P221^2)+(P222^2)+(P223^2)+(P224^2))","v":22.06807649071391},{"$f":"Q221+Q222+Q223+Q224","v":16},{"$f":"SQRT((R221^2)+(R222^2)+(R223^2)+(R224^2))","v":26.210684844162312},{"$f":"S221+S222+S223+S224","v":7},{"$f":"SQRT((T221^2)+(T222^2)+(T223^2)+(T224^2))","v":21.517434791350013},{"$f":"U221+U222+U223+U224","v":494},{"$f":"SQRT((V221^2)+(V222^2)+(V223^2)+(V224^2))","v":173.56554957709781},{"$f":"W221+W222+W223+W224","v":56},{"$f":"SQRT((X221^2)+(X222^2)+(X223^2)+(X224^2))","v":58.813263810130451},{"$f":"Y221+Y222+Y223+Y224","v":260},{"$f":"SQRT((Z221^2)+(Z222^2)+(Z223^2)+(Z224^2))","v":111.80339887498948},{"$f":"AA221+AA222+AA223+AA224","v":0},{"$f":"SQRT((AB221^2)+(AB222^2)+(AB223^2)+(AB224^2))","v":22}]
[null,"35.0 percent or more",{"$f":"C225+C226+C227","v":0},{"$f":"SQRT((D225^2)+(D226^2)+(D227^2))","v":27.712812921102035},{"$f":"E225+E226+E227","v":31},{"$f":"SQRT((F225^2)+(F226^2)+(F227^2))","v":41.785164831552358},{"$f":"G225+G226+G227","v":0},{"$f":"SQRT((H225^2)+(H226^2)+(H227^2))","v":31.176914536239792},{"$f":"I225+I226+I227","v":0},{"$f":"SQRT((J225^2)+(J226^2)+(J227^2))","v":27.712812921102035},{"$f":"K225+K226+K227","v":0},{"$f":"SQRT((L225^2)+(L226^2)+(L227^2))","v":19.05255888325765},{"$f":"M225+M226+M227","v":0},{"$f":"SQRT((N225^2)+(N226^2)+(N227^2))","v":19.05255888325765},{"$f":"O225+O226+O227","v":0},{"$f":"SQRT((P225^2)+(P226^2)+(P227^2))","v":19.05255888325765},{"$f":"Q225+Q226+Q227","v":0},{"$f":"SQRT((R225^2)+(R226^2)+(R227^2))","v":19.05255888325765},{"$f":"S225+S226+S227","v":0},{"$f":"SQRT((T225^2)+(T226^2)+(T227^2))","v":19.05255888325765},{"$f":"U225+U226+U227","v":0},{"$f":"SQRT((V225^2)+(V226^2)+(V227^2))","v":41.569219381653056},{"$f":"W225+W226+W227","v":0},{"$f":"SQRT((X225^2)+(X226^2)+(X227^2))","v":19.05255888325765},{"$f":"Y225+Y226+Y227","v":0},{"$f":"SQRT((Z225^2)+(Z226^2)+(Z227^2))","v":31.176914536239792},{"$f":"AA225+AA226+AA227","v":0},{"$f":"SQRT((AB225^2)+(AB226^2)+(AB227^2))","v":19.05255888325765}]
[null,"50.0 percent or more",{"$f":"C227","v":0},16,18,27,0,18,0,16,0,11,0,11,0,11,0,11,0,11,0,24,0,11,0,18,0,11]
[null,"Not Computed",0,16,21,34,0,18,16,28,0,11,0,11,2,4,0,11,0,11,18,29,0,11,0,18,0,11]
[null,"$100,000 or more:",15,25,650,167,108,57,31,38,63,96,9,9,4,6,0,11,0,11,400,151,7,10,100,72,0,11]
[null,"Less than 30.0 percent",{"$f":"C230+C231+C232","v":15},{"$f":"SQRT((D230^2)+(D231^2)+(D232^2))","v":33.719430600174732},{"$f":"E230+E231+E232","v":650},{"$f":"SQRT((F230^2)+(F231^2)+(F232^2))","v":181.46625030566977},{"$f":"G230+G231+G232","v":101},{"$f":"SQRT((H230^2)+(H231^2)+(H232^2))","v":58.017238817441147},{"$f":"I230+I231+I232","v":31},{"$f":"SQRT((J230^2)+(J231^2)+(J232^2))","v":44.226688774991963},{"$f":"K230+K231+K232","v":63},{"$f":"SQRT((L230^2)+(L231^2)+(L232^2))","v":97.252249331313664},{"$f":"M230+M231+M232","v":9},{"$f":"SQRT((N230^2)+(N231^2)+(N232^2))","v":14.352700094407323},{"$f":"O230+O231+O232","v":4},{"$f":"SQRT((P230^2)+(P231^2)+(P232^2))","v":16.673332000533065},{"$f":"Q230+Q231+Q232","v":0},{"$f":"SQRT((R230^2)+(R231^2)+(R232^2))","v":19.05255888325765},{"$f":"S230+S231+S232","v":0},{"$f":"SQRT((T230^2)+(T231^2)+(T232^2))","v":19.05255888325765},{"$f":"U230+U231+U232","v":400},{"$f":"SQRT((V230^2)+(V231^2)+(V232^2))","v":154.76756766196203},{"$f":"W230+W231+W232","v":7},{"$f":"SQRT((X230^2)+(X231^2)+(X232^2))","v":18.493242008906929},{"$f":"Y230+Y231+Y232","v":100},{"$f":"SQRT((Z230^2)+(Z231^2)+(Z232^2))","v":72.608539442685384},{"$f":"AA230+AA231+AA232","v":0},{"$f":"SQRT((AB230^2)+(AB231^2)+(AB232^2))","v":19.05255888325765}]
[null,"More than 30.0 percent",{"$f":"C233+C234+C235+C236","v":0},{"$f":"SQRT((D233^2)+(D234^2)+(D235^2)+(D236^2))","v":32},{"$f":"E233+E234+E235+E236","v":0},{"$f":"SQRT((F233^2)+(F234^2)+(F235^2)+(F236^2))","v":48},{"$f":"G233+G234+G235+G236","v":0},{"$f":"SQRT((H233^2)+(H234^2)+(H235^2)+(H236^2))","v":36},{"$f":"I233+I234+I235+I236","v":0},{"$f":"SQRT((J233^2)+(J234^2)+(J235^2)+(J236^2))","v":32},{"$f":"K233+K234+K235+K236","v":0},{"$f":"SQRT((L233^2)+(L234^2)+(L235^2)+(L236^2))","v":22},{"$f":"M233+M234+M235+M236","v":0},{"$f":"SQRT((N233^2)+(N234^2)+(N235^2)+(N236^2))","v":22},{"$f":"O233+O234+O235+O236","v":0},{"$f":"SQRT((P233^2)+(P234^2)+(P235^2)+(P236^2))","v":22},{"$f":"Q233+Q234+Q235+Q236","v":0},{"$f":"SQRT((R233^2)+(R234^2)+(R235^2)+(R236^2))","v":22},{"$f":"S233+S234+S235+S236","v":0},{"$f":"SQRT((T233^2)+(T234^2)+(T235^2)+(T236^2))","v":22},{"$f":"U233+U234+U235+U236","v":0},{"$f":"SQRT((V233^2)+(V234^2)+(V235^2)+(V236^2))","v":48},{"$f":"W233+W234+W235+W236","v":0},{"$f":"SQRT((X233^2)+(X234^2)+(X235^2)+(X236^2))","v":22},{"$f":"Y233+Y234+Y235+Y236","v":0},{"$f":"SQRT((Z233^2)+(Z234^2)+(Z235^2)+(Z236^2))","v":36},{"$f":"AA233+AA234+AA235+AA236","v":0},{"$f":"SQRT((AB233^2)+(AB234^2)+(AB235^2)+(AB236^2))","v":22}]
[null,"Less Than 35% of HH Income",{"$f":"C230+C231+C232+C233","v":15},{"$f":"SQRT(((D230^2)+(D231^2)+(D232^2)+(D233^2)))","v":37.322915213043046},{"$f":"E230+E231+E232+E233","v":650},{"$f":"SQRT(((F230^2)+(F231^2)+(F232^2)+(F233^2)))","v":183.04644219432402},{"$f":"G230+G231+G232+G233","v":101},{"$f":"SQRT(((H230^2)+(H231^2)+(H232^2)+(H233^2)))","v":60.745370193949761},{"$f":"I230+I231+I232+I233","v":31},{"$f":"SQRT(((J230^2)+(J231^2)+(J232^2)+(J233^2)))","v":47.031904065219386},{"$f":"K230+K231+K232+K233","v":63},{"$f":"SQRT(((L230^2)+(L231^2)+(L232^2)+(L233^2)))","v":97.872365864936569},{"$f":"M230+M231+M232+M233","v":9},{"$f":"SQRT(((N230^2)+(N231^2)+(N232^2)+(N233^2)))","v":18.083141320025124},{"$f":"O230+O231+O232+O233","v":4},{"$f":"SQRT(((P230^2)+(P231^2)+(P232^2)+(P233^2)))","v":19.974984355438178},{"$f":"Q230+Q231+Q232+Q233","v":0},{"$f":"SQRT(((R230^2)+(R231^2)+(R232^2)+(R233^2)))","v":22},{"$f":"S230+S231+S232+S233","v":0},{"$f":"SQRT(((T230^2)+(T231^2)+(T232^2)+(T233^2)))","v":22},{"$f":"U230+U231+U232+U233","v":400},{"$f":"SQRT(((V230^2)+(V231^2)+(V232^2)+(V233^2)))","v":156.61736813010236},{"$f":"W230+W231+W232+W233","v":7},{"$f":"SQRT(((X230^2)+(X231^2)+(X232^2)+(X233^2)))","v":21.517434791350013},{"$f":"Y230+Y231+Y232+Y233","v":100},{"$f":"SQRT(((Z230^2)+(Z231^2)+(Z232^2)+(Z233^2)))","v":74.806416837060169},{"$f":"AA230+AA231+AA232+AA233","v":0},{"$f":"SQRT(((AB230^2)+(AB231^2)+(AB232^2)+(AB233^2)))","v":22}]
[null,"35.0 percent or more",{"$f":"C234+C235+C236","v":0},{"$f":"SQRT((D234^2)+(D235^2)+(D236^2))","v":27.712812921102035},{"$f":"E234+E235+E236","v":0},{"$f":"SQRT((F234^2)+(F235^2)+(F236^2))","v":41.569219381653056},{"$f":"G234+G235+G236","v":0},{"$f":"SQRT((H234^2)+(H235^2)+(H236^2))","v":31.176914536239792},{"$f":"I234+I235+I236","v":0},{"$f":"SQRT((J234^2)+(J235^2)+(J236^2))","v":27.712812921102035},{"$f":"K234+K235+K236","v":0},{"$f":"SQRT((L234^2)+(L235^2)+(L236^2))","v":19.05255888325765},{"$f":"M234+M235+M236","v":0},{"$f":"SQRT((N234^2)+(N235^2)+(N236^2))","v":19.05255888325765},{"$f":"O234+O235+O236","v":0},{"$f":"SQRT((P234^2)+(P235^2)+(P236^2))","v":19.05255888325765},{"$f":"Q234+Q235+Q236","v":0},{"$f":"SQRT((R234^2)+(R235^2)+(R236^2))","v":19.05255888325765},{"$f":"S234+S235+S236","v":0},{"$f":"SQRT((T234^2)+(T235^2)+(T236^2))","v":19.05255888325765},{"$f":"U234+U235+U236","v":0},{"$f":"SQRT((V234^2)+(V235^2)+(V236^2))","v":41.569219381653056},{"$f":"W234+W235+W236","v":0},{"$f":"SQRT((X234^2)+(X235^2)+(X236^2))","v":19.05255888325765},{"$f":"Y234+Y235+Y236","v":0},{"$f":"SQRT((Z234^2)+(Z235^2)+(Z236^2))","v":31.176914536239792},{"$f":"AA234+AA235+AA236","v":0},{"$f":"SQRT((AB234^2)+(AB235^2)+(AB236^2))","v":19.05255888325765}]
[null,"50.0 percent or more",{"$f":"C236","v":0},16,0,24,{"$f":"G236","v":0},18,{"$f":"I236","v":0},16,{"$f":"K236","v":0},11,{"$f":"M236","v":0},11,{"$f":"O236","v":0},11,{"$f":"Q236","v":0},11,{"$f":"S236","v":0},11,{"$f":"U236","v":0},24,{"$f":"W236","v":0},11,{"$f":"Y236","v":0},18,{"$f":"AA236","v":0},11]
[null,"Not Computed",0,16,0,24,{"$f":"G237","v":7},11,{"$f":"I237","v":0},16,{"$f":"K237","v":0},11,{"$f":"M237","v":0},11,{"$f":"O237","v":0},11,{"$f":"Q237","v":0},11,{"$f":"S237","v":0},11,{"$f":"U237","v":0},24,{"$f":"W237","v":0},11,{"$f":"Y237","v":0},18,{"$f":"AA237","v":0},11]
[]
[]
[null,"Calculated GROSS RENT AS A PERCENTAGE OF HOUSEHOLD INCOME IN THE PAST 12 MONTHS"]
[null,"Universe:  RENTER-OCCUPIED HOUSING UNITS"]
[null,{"$f":"B170","v":"Data Set: 2013-2017 American Community Survey 5-Year Estimates"}]
[]
[null,null,"Barrington",null,"Dover",null,"Durham",null,"Farmington",null,"Lee",null,"Madbury",null,"Middleton",null,"Milton",null,"New Durham",null,"Rochester",null,"Rollinsford",null,"Somersworth",null,"Strafford"]
[null,null,"Estimate","Margin Of Error","Estimate","Margin Of Error","Estimate","Margin Of Error","Estimate","Margin Of Error","Estimate","Margin Of Error","Estimate","Margin Of Error","Estimate","Margin Of Error","Estimate","Margin Of Error","Estimate","Margin Of Error","Estimate","Margin Of Error","Estimate","Margin Of Error","Estimate","Margin Of Error","Estimate","Margin Of Error"]
[null,"Total:",{"$f":"C259","v":270},160,6173,387,1492,188,869,263,302,146,83,29,96,35,212,74,74,47,4529,385,283,71,2170,282,145,52]
[null,"Less than 30.0 percent",{"$f":"C303+C296+C289+C282+C275+C268+C261","v":148},{"$f":"SQRT((D303^2)+(D296^2)+(D289^2)+(D282^2)+(D275^2)+(D268^2)+(D261^2))","v":122.86578042726136},{"$f":"E303+E296+E289+E282+E275+E268+E261","v":3436},{"$f":"SQRT((F303^2)+(F296^2)+(F289^2)+(F282^2)+(F275^2)+(F268^2)+(F261^2))","v":436.98512560497983},{"$f":"G303+G296+G289+G282+G275+G268+G261","v":435},{"$f":"SQRT((H303^2)+(H296^2)+(H289^2)+(H282^2)+(H275^2)+(H268^2)+(H261^2))","v":126.15863030328127},{"$f":"I303+I296+I289+I282+I275+I268+I261","v":374},{"$f":"SQRT((J303^2)+(J296^2)+(J289^2)+(J282^2)+(J275^2)+(J268^2)+(J261^2))","v":200.21738186281431},{"$f":"K303+K296+K289+K282+K275+K268+K261","v":237},{"$f":"SQRT((L303^2)+(L296^2)+(L289^2)+(L282^2)+(L275^2)+(L268^2)+(L261^2))","v":155.31258802814406},{"$f":"M303+M296+M289+M282+M275+M268+M261","v":72},{"$f":"SQRT((N303^2)+(N296^2)+(N289^2)+(N282^2)+(N275^2)+(N268^2)+(N261^2))","v":47.074409183759279},{"$f":"O303+O296+O289+O282+O275+O268+O261","v":60},{"$f":"SQRT((P303^2)+(P296^2)+(P289^2)+(P282^2)+(P275^2)+(P268^2)+(P261^2))","v":53.619026473818039},{"$f":"Q303+Q296+Q289+Q282+Q275+Q268+Q261","v":57},{"$f":"SQRT((R303^2)+(R296^2)+(R289^2)+(R282^2)+(R275^2)+(R268^2)+(R261^2))","v":62.753485958948929},{"$f":"S303+S296+S289+S282+S275+S268+S261","v":40},{"$f":"SQRT((T303^2)+(T296^2)+(T289^2)+(T282^2)+(T275^2)+(T268^2)+(T261^2))","v":59.287435431126553},{"$f":"U303+U296+U289+U282+U275+U268+U261","v":2268},{"$f":"SQRT((V303^2)+(V296^2)+(V289^2)+(V282^2)+(V275^2)+(V268^2)+(V261^2))","v":380.99212590288528},{"$f":"W303+W296+W289+W282+W275+W268+W261","v":169},{"$f":"SQRT((X303^2)+(X296^2)+(X289^2)+(X282^2)+(X275^2)+(X268^2)+(X261^2))","v":87.726848797845236},{"$f":"Y303+Y296+Y289+Y282+Y275+Y268+Y261","v":1182},{"$f":"SQRT((Z303^2)+(Z296^2)+(Z289^2)+(Z282^2)+(Z275^2)+(Z268^2)+(Z261^2))","v":272.35271248878723},{"$f":"AA303+AA296+AA289+AA282+AA275+AA268+AA261","v":108},{"$f":"SQRT((AB303^2)+(AB296^2)+(AB289^2)+(AB282^2)+(AB275^2)+(AB268^2)+(AB261^2))","v":79.309520235593411}]
[null,"More than 30.0 percent",{"$f":"C304+C297+C290+C283+C276+C269+C262","v":73},{"$f":"SQRT((D304^2)+(D297^2)+(D290^2)+(D283^2)+(D276^2)+(D269^2)+(D262^2))","v":109.04127658827184},{"$f":"E304+E297+E290+E283+E276+E269+E262","v":2570},{"$f":"SQRT((F304^2)+(F297^2)+(F290^2)+(F283^2)+(F276^2)+(F269^2)+(F262^2))","v":388.21257063624307},{"$f":"G304+G297+G290+G283+G276+G269+G262","v":1009},{"$f":"SQRT((H304^2)+(H297^2)+(H290^2)+(H283^2)+(H276^2)+(H269^2)+(H262^2))","v":216.71409737255212},{"$f":"I304+I297+I290+I283+I276+I269+I262","v":461},{"$f":"SQRT((J304^2)+(J297^2)+(J290^2)+(J283^2)+(J276^2)+(J269^2)+(J262^2))","v":233.42236396712292},{"$f":"K304+K297+K290+K283+K276+K269+K262","v":65},{"$f":"SQRT((L304^2)+(L297^2)+(L290^2)+(L283^2)+(L276^2)+(L269^2)+(L262^2))","v":99.272352646645786},{"$f":"M304+M297+M290+M283+M276+M269+M262","v":8},{"$f":"SQRT((N304^2)+(N297^2)+(N290^2)+(N283^2)+(N276^2)+(N269^2)+(N262^2))","v":57.86190456595773},{"$f":"O304+O297+O290+O283+O276+O269+O262","v":28},{"$f":"SQRT((P304^2)+(P297^2)+(P290^2)+(P283^2)+(P276^2)+(P269^2)+(P262^2))","v":57.784080852774665},{"$f":"Q304+Q297+Q290+Q283+Q276+Q269+Q262","v":135},{"$f":"SQRT((R304^2)+(R297^2)+(R290^2)+(R283^2)+(R276^2)+(R269^2)+(R262^2))","v":98.224233262469397},{"$f":"S304+S297+S290+S283+S276+S269+S262","v":26},{"$f":"SQRT((T304^2)+(T297^2)+(T290^2)+(T283^2)+(T276^2)+(T269^2)+(T262^2))","v":62.625873247404705},{"$f":"U304+U297+U290+U283+U276+U269+U262","v":2070},{"$f":"SQRT((V304^2)+(V297^2)+(V290^2)+(V283^2)+(V276^2)+(V269^2)+(V262^2))","v":414.80356796922564},{"$f":"W304+W297+W290+W283+W276+W269+W262","v":102},{"$f":"SQRT((X304^2)+(X297^2)+(X290^2)+(X283^2)+(X276^2)+(X269^2)+(X262^2))","v":75.286120898874842},{"$f":"Y304+Y297+Y290+Y283+Y276+Y269+Y262","v":972},{"$f":"SQRT((Z304^2)+(Z297^2)+(Z290^2)+(Z283^2)+(Z276^2)+(Z269^2)+(Z262^2))","v":291.57674804414705},{"$f":"AA304+AA297+AA290+AA283+AA276+AA269+AA262","v":31},{"$f":"SQRT((AB304^2)+(AB297^2)+(AB290^2)+(AB283^2)+(AB276^2)+(AB269^2)+(AB262^2))","v":65.620118866091673}]
[null,"Less Than 35% of HH Income",{"$f":"C305+C298+C291+C284+C277+C270+C263","v":172},{"$f":"SQRT((D305^2)+(D298^2)+(D291^2)+(D284^2)+(D277^2)+(D270^2)+(D263^2))","v":134.16780537819048},{"$f":"E305+E298+E291+E284+E277+E270+E263","v":3975},{"$f":"SQRT((F305^2)+(F298^2)+(F291^2)+(F284^2)+(F277^2)+(F270^2)+(F263^2))","v":465.07311253178244},{"$f":"G305+G298+G291+G284+G277+G270+G263","v":573},{"$f":"SQRT((H305^2)+(H298^2)+(H291^2)+(H284^2)+(H277^2)+(H270^2)+(H263^2))","v":154.45063936416707},{"$f":"I305+I298+I291+I284+I277+I270+I263","v":411},{"$f":"SQRT((J305^2)+(J298^2)+(J291^2)+(J284^2)+(J277^2)+(J270^2)+(J263^2))","v":207.77150911518163},{"$f":"K305+K298+K291+K284+K277+K270+K263","v":237},{"$f":"SQRT((L305^2)+(L298^2)+(L291^2)+(L284^2)+(L277^2)+(L270^2)+(L263^2))","v":158.01582199260935},{"$f":"M305+M298+M291+M284+M277+M270+M263","v":72},{"$f":"SQRT((N305^2)+(N298^2)+(N291^2)+(N284^2)+(N277^2)+(N270^2)+(N263^2))","v":55.344376408086845},{"$f":"O305+O298+O291+O284+O277+O270+O263","v":67},{"$f":"SQRT((P305^2)+(P298^2)+(P291^2)+(P284^2)+(P277^2)+(P270^2)+(P263^2))","v":61.008196170678573},{"$f":"Q305+Q298+Q291+Q284+Q277+Q270+Q263","v":57},{"$f":"SQRT((R305^2)+(R298^2)+(R291^2)+(R284^2)+(R277^2)+(R270^2)+(R263^2))","v":69.173694422085049},{"$f":"S305+S298+S291+S284+S277+S270+S263","v":40},{"$f":"SQRT((T305^2)+(T298^2)+(T291^2)+(T284^2)+(T277^2)+(T270^2)+(T263^2))","v":66.045438903833471},{"$f":"U305+U298+U291+U284+U277+U270+U263","v":2628},{"$f":"SQRT((V305^2)+(V298^2)+(V291^2)+(V284^2)+(V277^2)+(V270^2)+(V263^2))","v":410.87345983891441},{"$f":"W305+W298+W291+W284+W277+W270+W263","v":169},{"$f":"SQRT((X305^2)+(X298^2)+(X291^2)+(X284^2)+(X277^2)+(X270^2)+(X263^2))","v":92.428350629014261},{"$f":"Y305+Y298+Y291+Y284+Y277+Y270+Y263","v":1313},{"$f":"SQRT((Z305^2)+(Z298^2)+(Z291^2)+(Z284^2)+(Z277^2)+(Z270^2)+(Z263^2))","v":286.11011866063041},{"$f":"AA305+AA298+AA291+AA284+AA277+AA270+AA263","v":108},{"$f":"SQRT((AB305^2)+(AB298^2)+(AB291^2)+(AB284^2)+(AB277^2)+(AB270^2)+(AB263^2))","v":84.480767041972342}]
[null,"35.0 percent or more",{"$f":"C306+C299+C292+C285+C278+C271+C264","v":49},{"$f":"SQRT((D306^2)+(D299^2)+(D292^2)+(D285^2)+(D278^2)+(D271^2)+(D264^2))","v":94.789239895675919},{"$f":"E306+E299+E292+E285+E278+E271+E264","v":2031},{"$f":"SQRT((F306^2)+(F299^2)+(F292^2)+(F285^2)+(F278^2)+(F271^2)+(F264^2))","v":354.07908721075296},{"$f":"G306+G299+G292+G285+G278+G271+G264","v":871},{"$f":"SQRT((H306^2)+(H299^2)+(H292^2)+(H285^2)+(H278^2)+(H271^2)+(H264^2))","v":197.54999367248789},{"$f":"I306+I299+I292+I285+I278+I271+I264","v":424},{"$f":"SQRT((J306^2)+(J299^2)+(J292^2)+(J285^2)+(J278^2)+(J271^2)+(J264^2))","v":226.7245024253003},{"$f":"K306+K299+K292+K285+K278+K271+K264","v":65},{"$f":"SQRT((L306^2)+(L299^2)+(L292^2)+(L285^2)+(L278^2)+(L271^2)+(L264^2))","v":94.910484141637383},{"$f":"M306+M299+M292+M285+M278+M271+M264","v":8},{"$f":"SQRT((N306^2)+(N299^2)+(N292^2)+(N285^2)+(N278^2)+(N271^2)+(N264^2))","v":50.009999000199947},{"$f":"O306+O299+O292+O285+O278+O271+O264","v":21},{"$f":"SQRT((P306^2)+(P299^2)+(P292^2)+(P285^2)+(P278^2)+(P271^2)+(P264^2))","v":49.919935897394737},{"$f":"Q306+Q299+Q292+Q285+Q278+Q271+Q264","v":135},{"$f":"SQRT((R306^2)+(R299^2)+(R292^2)+(R285^2)+(R278^2)+(R271^2)+(R264^2))","v":93.813645062965122},{"$f":"S306+S299+S292+S285+S278+S271+S264","v":26},{"$f":"SQRT((T306^2)+(T299^2)+(T292^2)+(T285^2)+(T278^2)+(T271^2)+(T264^2))","v":55.452682532047085},{"$f":"U306+U299+U292+U285+U278+U271+U264","v":1710},{"$f":"SQRT((V306^2)+(V299^2)+(V292^2)+(V285^2)+(V278^2)+(V271^2)+(V264^2))","v":385.22720568516445},{"$f":"W306+W299+W292+W285+W278+W271+W264","v":102},{"$f":"SQRT((X306^2)+(X299^2)+(X292^2)+(X285^2)+(X278^2)+(X271^2)+(X264^2))","v":69.433421347359797},{"$f":"Y306+Y299+Y292+Y285+Y278+Y271+Y264","v":841},{"$f":"SQRT((Z306^2)+(Z299^2)+(Z292^2)+(Z285^2)+(Z278^2)+(Z271^2)+(Z264^2))","v":278.08991351719322},{"$f":"AA306+AA299+AA292+AA285+AA278+AA271+AA264","v":31},{"$f":"SQRT((AB306^2)+(AB299^2)+(AB292^2)+(AB285^2)+(AB278^2)+(AB271^2)+(AB264^2))","v":58.813263810130451}]
[null,"50.0 percent or more",{"$f":"C307+C300+C293+C286+C279+C272+C265","v":37},{"$f":"SQRT((D307^2)+(D300^2)+(D293^2)+(D286^2)+(D279^2)+(D272^2)+(D265^2))","v":72.505172229296861},{"$f":"E307+E300+E293+E286+E279+E272+E265","v":1124},{"$f":"SQRT((F307^2)+(F300^2)+(F293^2)+(F286^2)+(F279^2)+(F272^2)+(F265^2))","v":252.56286346175281},{"$f":"G307+G300+G293+G286+G279+G272+G265","v":687},{"$f":"SQRT((H307^2)+(H300^2)+(H293^2)+(H286^2)+(H279^2)+(H272^2)+(H265^2))","v":176.10508226624239},{"$f":"I307+I300+I293+I286+I279+I272+I265","v":104},{"$f":"SQRT((J307^2)+(J300^2)+(J293^2)+(J286^2)+(J279^2)+(J272^2)+(J265^2))","v":85.755466298073387},{"$f":"K307+K300+K293+K286+K279+K272+K265","v":65},{"$f":"SQRT((L307^2)+(L300^2)+(L293^2)+(L286^2)+(L279^2)+(L272^2)+(L265^2))","v":85.521927012901202},{"$f":"M307+M300+M293+M286+M279+M272+M265","v":8},{"$f":"SQRT((N307^2)+(N300^2)+(N293^2)+(N286^2)+(N279^2)+(N272^2)+(N265^2))","v":28.407745422683583},{"$f":"O307+O300+O293+O286+O279+O272+O265","v":19},{"$f":"SQRT((P307^2)+(P300^2)+(P293^2)+(P286^2)+(P279^2)+(P272^2)+(P265^2))","v":30.166206257996713},{"$f":"Q307+Q300+Q293+Q286+Q279+Q272+Q265","v":69},{"$f":"SQRT((R307^2)+(R300^2)+(R293^2)+(R286^2)+(R279^2)+(R272^2)+(R265^2))","v":64.257295305669373},{"$f":"S307+S300+S293+S286+S279+S272+S265","v":20},{"$f":"SQRT((T307^2)+(T300^2)+(T293^2)+(T286^2)+(T279^2)+(T272^2)+(T265^2))","v":37.443290453698111},{"$f":"U307+U300+U293+U286+U279+U272+U265","v":1143},{"$f":"SQRT((V307^2)+(V300^2)+(V293^2)+(V286^2)+(V279^2)+(V272^2)+(V265^2))","v":335.05223473363077},{"$f":"W307+W300+W293+W286+W279+W272+W265","v":47},{"$f":"SQRT((X307^2)+(X300^2)+(X293^2)+(X286^2)+(X279^2)+(X272^2)+(X265^2))","v":38.118237105091836},{"$f":"Y307+Y300+Y293+Y286+Y279+Y272+Y265","v":543},{"$f":"SQRT((Z307^2)+(Z300^2)+(Z293^2)+(Z286^2)+(Z279^2)+(Z272^2)+(Z265^2))","v":217.98394436288191},{"$f":"AA307+AA300+AA293+AA286+AA279+AA272+AA265","v":14},{"$f":"SQRT((AB307^2)+(AB300^2)+(AB293^2)+(AB286^2)+(AB279^2)+(AB272^2)+(AB265^2))","v":34.785054261852174}]
[null,"Not Computed",{"$f":"C307+C301+C294+C287+C280+C273+C266","v":49},{"$f":"SQRT((D307^2)+(D301^2)+(D294^2)+(D287^2)+(D280^2)+(D273^2)+(D266^2))","v":90.884542140014105},{"$f":"E307+E301+E294+E287+E280+E273+E266","v":167},{"$f":"SQRT((F307^2)+(F301^2)+(F294^2)+(F287^2)+(F280^2)+(F273^2)+(F266^2))","v":135.22573719525437},{"$f":"G307+G301+G294+G287+G280+G273+G266","v":41},{"$f":"SQRT((H307^2)+(H301^2)+(H294^2)+(H287^2)+(H280^2)+(H273^2)+(H266^2))","v":45.287967496897011},{"$f":"I307+I301+I294+I287+I280+I273+I266","v":34},{"$f":"SQRT((J307^2)+(J301^2)+(J294^2)+(J287^2)+(J280^2)+(J273^2)+(J266^2))","v":53.366656256505337},{"$f":"K307+K301+K294+K287+K280+K273+K266","v":0},{"$f":"SQRT((L307^2)+(L301^2)+(L294^2)+(L287^2)+(L280^2)+(L273^2)+(L266^2))","v":29.103264421710495},{"$f":"M307+M301+M294+M287+M280+M273+M266","v":3},{"$f":"SQRT((N307^2)+(N301^2)+(N294^2)+(N287^2)+(N280^2)+(N273^2)+(N266^2))","v":27.404379212089442},{"$f":"O307+O301+O294+O287+O280+O273+O266","v":8},{"$f":"SQRT((P307^2)+(P301^2)+(P294^2)+(P287^2)+(P280^2)+(P273^2)+(P266^2))","v":25.632011235952593},{"$f":"Q307+Q301+Q294+Q287+Q280+Q273+Q266","v":20},{"$f":"SQRT((R307^2)+(R301^2)+(R294^2)+(R287^2)+(R280^2)+(R273^2)+(R266^2))","v":32.603680773802211},{"$f":"S307+S301+S294+S287+S280+S273+S266","v":8},{"$f":"SQRT((T307^2)+(T301^2)+(T294^2)+(T287^2)+(T280^2)+(T273^2)+(T266^2))","v":30.364452901377952},{"$f":"U307+U301+U294+U287+U280+U273+U266","v":191},{"$f":"SQRT((V307^2)+(V301^2)+(V294^2)+(V287^2)+(V280^2)+(V273^2)+(V266^2))","v":98.807894421447926},{"$f":"W307+W301+W294+W287+W280+W273+W266","v":12},{"$f":"SQRT((X307^2)+(X301^2)+(X294^2)+(X287^2)+(X280^2)+(X273^2)+(X266^2))","v":32.403703492039298},{"$f":"Y307+Y301+Y294+Y287+Y280+Y273+Y266","v":16},{"$f":"SQRT((Z307^2)+(Z301^2)+(Z294^2)+(Z287^2)+(Z280^2)+(Z273^2)+(Z266^2))","v":50.685303589896748},{"$f":"AA307+AA301+AA294+AA287+AA280+AA273+AA266","v":6},{"$f":"SQRT((AB307^2)+(AB301^2)+(AB294^2)+(AB287^2)+(AB280^2)+(AB273^2)+(AB266^2))","v":28.407745422683583}]
[]
[]
[]
[]
[]
[]
[]
[]
[]
[]
[]
[]
[]
[]
[]
[]
[]
[]
[]
[]
[null,"B25074. HOUSEHOLD INCOME BY GROSS RENT AS A PERCENTAGE OF HOUSEHOLD INCOME IN THE PAST 12 MONTHS"]
[null,"Universe:  RENTEROCCUPIED HOUSING UNITS"]
[null,"Data Set: 2008-2012 American Community Survey 5-Year Estimates",null,null,null,null,null,{"$f":"'RentalHousingCost-Prior10Yr'!D41","v":"Income in 2012 Inflation Adjusted Dollars"}]
[]
[null,null,"Barrington",null,"Dover",null,"Durham",null,"Farmington",null,"Lee",null,"Madbury",null,"Middleton",null,"Milton",null,"New Durham",null,"Rochester",null,"Rollinsford",null,"Somersworth",null,"Strafford"]
[null,null,"Estimate","Margin Of Error","Estimate","Margin Of Error","Estimate","Margin Of Error","Estimate","Margin Of Error","Estimate","Margin Of Error","Estimate","Margin Of Error","Estimate","Margin Of Error","Estimate","Margin Of Error","Estimate","Margin Of Error","Estimate","Margin Of Error","Estimate","Margin Of Error","Estimate","Margin Of Error","Estimate","Margin Of Error"]
[null,"Total:",411,124,6017,349,1298,221,808,220,213,87,142,53,38,27,215,92,95,44,3904,353,261,66,2030,250,96,65]
[null,"Less than $10,000:",17,28,583,212,442,139,26,35,0,11,13,19,3,4,27,31,4,6,384,127,30,34,306,150,0,11]
[null,"Less than 20.0 percent",0,16,42,60,0,18,0,16,0,11,0,11,0,11,0,11,0,11,0,21,0,11,0,18,0,11]
[null,"20.0 to 24.9 percent",0,16,12,19,0,18,0,16,0,11,0,11,0,11,0,11,0,11,18,28,0,11,0,18,0,11]
[null,"25.0 to 29.9 percent",0,16,83,53,0,18,0,16,0,11,0,11,0,11,0,11,0,11,9,14,0,11,14,23,0,11]
[null,"30.0 to 34.9 percent",0,16,16,25,0,18,0,16,0,11,0,11,0,11,0,11,0,11,0,21,0,11,0,18,0,11]
[null,"35.0 to 39.9 percent",17,28,409,179,296,110,20,33,0,11,13,19,0,11,27,31,4,6,267,105,30,34,227,129,0,11]
[null,"40.0 to 49.9 percent"]
[null,"50.0 percent or more"]
[null,"Not computed",0,16,21,24,146,65,6,10,0,11,0,11,3,4,0,11,0,11,90,78,0,11,65,62,0,11]
[null,"$10,000 to $19,999:",50,62,667,197,267,97,303,132,20,31,5,7,3,5,27,33,5,7,817,181,52,44,296,115,0,11]
[null,"Less than 20.0 percent",0,16,0,24,0,18,12,21,0,11,0,11,3,5,0,11,0,11,89,86,0,11,38,58,0,11]
[null,"20.0 to 24.9 percent",0,16,0,24,10,17,36,57,0,11,0,11,0,11,0,11,0,11,26,31,0,11,26,29,0,11]
[null,"25.0 to 29.9 percent",0,16,96,61,5,7,14,25,0,11,0,11,0,11,16,27,0,11,163,106,26,39,14,22,0,11]
[null,"30.0 to 34.9 percent",0,16,57,44,9,15,0,16,0,11,0,11,0,11,0,11,0,11,58,50,0,11,11,19,0,11]
[null,"35.0 to 39.9 percent",50,62,507,177,219,91,241,129,20,31,5,7,0,11,11,17,0,11,455,147,26,21,176,72,0,11]
[null,"40.0 to 49.9 percent"]
[null,"50.0 percent or more"]
[null,"Not computed",0,16,7,13,24,23,0,16,0,11,0,11,0,11,0,11,5,7,26,27,0,11,31,35,0,11]
[null,"$20,000 to $34,999:",71,48,1539,257,161,68,163,109,57,57,43,32,16,24,51,35,42,32,1294,229,90,48,304,121,52,55]
[null,"Less than 20.0 percent",0,16,21,23,11,20,0,16,0,11,2,3,0,11,0,11,0,11,36,55,0,11,0,18,0,11]
[null,"20.0 to 24.9 percent",0,16,14,22,0,18,45,67,11,18,0,11,0,11,0,11,0,11,57,66,0,11,0,18,9,14]
[null,"25.0 to 29.9 percent",0,16,34,32,4,7,0,16,0,11,3,7,0,11,0,11,0,11,91,65,11,13,32,39,0,11]
[null,"30.0 to 34.9 percent",32,26,348,129,22,27,0,16,0,11,0,11,0,11,10,16,0,11,156,84,6,8,14,24,0,11]
[null,"35.0 to 39.9 percent",39,40,1075,231,115,63,118,84,46,53,35,31,16,24,29,28,42,32,954,205,73,44,228,110,43,52]
[null,"40.0 to 49.9 percent"]
[null,"50.0 percent or more"]
[null,"Not computed",0,16,47,42,9,14,0,16,0,11,3,5,0,11,12,20,0,11,0,21,0,11,30,33,0,11]
[null,"$35,000 to $49,999:",107,92,1045,245,122,63,94,74,24,36,8,9,6,9,6,10,7,10,718,229,33,31,324,145,0,11]
[null,"Less than 20.0 percent",51,79,63,50,17,29,0,16,0,11,4,7,0,11,0,11,0,11,71,82,0,11,10,16,0,11]
[null,"20.0 to 24.9 percent",28,44,325,179,35,36,0,16,0,11,0,11,0,11,0,11,0,11,94,54,0,11,143,115,0,11]
[null,"25.0 to 29.9 percent",0,16,232,92,19,22,12,21,24,36,4,6,0,11,6,10,0,11,274,135,15,23,93,53,0,11]
[null,"30.0 to 34.9 percent",23,38,155,83,8,14,58,67,0,11,0,11,0,11,0,11,0,11,49,46,12,20,57,45,0,11]
[null,"35.0 to 39.9 percent",0,16,251,121,43,38,24,30,0,11,0,11,6,9,0,11,0,11,200,122,6,10,8,12,0,11]
[null,"40.0 to 49.9 percent"]
[null,"50.0 percent or more"]
[null,"Not computed",5,11,19,30,0,18,0,16,0,11,0,11,0,11,0,11,7,10,30,33,0,11,13,21,0,11]
[null,"$50,000 to $74,999:",60,55,1219,244,162,103,140,110,84,64,41,26,4,5,44,41,21,24,424,153,32,26,338,132,24,39]
[null,"Less than 20.0 percent",30,46,577,195,91,58,79,91,33,48,14,22,0,11,33,36,21,24,42,37,0,11,117,92,24,39]
[null,"20.0 to 24.9 percent",0,16,368,113,15,16,15,24,18,29,24,24,4,5,0,11,0,11,248,136,23,25,94,78,0,11]
[null,"25.0 to 29.9 percent",30,34,128,98,5,7,46,56,17,27,3,5,0,11,11,18,0,11,58,43,4,6,97,93,0,11]
[null,"30.0 to 34.9 percent",0,16,37,41,0,18,0,16,0,11,0,11,0,11,0,11,0,11,40,64,0,11,13,21,0,11]
[null,"35.0 to 39.9 percent",0,16,97,66,51,76,0,16,0,11,0,11,0,11,0,11,0,11,27,33,5,8,17,24,0,11]
[null,"40.0 to 49.9 percent"]
[null,"50.0 percent or more"]
[null,"Not computed",0,16,12,18,0,18,0,16,16,26,0,11,0,11,0,11,0,11,9,14,0,11,0,18,0,11]
[null,"$75,000 to $99,999:",68,64,518,177,62,43,32,49,0,11,20,22,0,11,34,39,16,17,201,109,19,26,328,155,0,11]
[null,"Less than 20.0 percent",17,26,295,102,16,26,32,49,0,11,5,7,0,11,0,11,0,11,176,98,16,25,299,151,0,11]
[null,"20.0 to 24.9 percent",0,16,122,110,35,33,0,16,0,11,0,11,0,11,34,39,16,17,0,21,3,5,13,20,0,11]
[null,"25.0 to 29.9 percent",31,48,35,41,11,18,0,16,0,11,5,10,0,11,0,11,0,11,15,23,0,11,0,18,0,11]
[null,"30.0 to 34.9 percent",20,34,26,42,0,18,0,16,0,11,10,16,0,11,0,11,0,11,10,15,0,11,16,20,0,11]
[null,"35.0 to 39.9 percent",0,16,40,64,0,18,0,16,0,11,0,11,0,11,0,11,0,11,0,21,0,11,0,18,0,11]
[null,"40.0 to 49.9 percent"]
[null,"50.0 percent or more"]
[null,"Not computed",0,16,0,24,0,18,0,16,0,11,0,11,0,11,0,11,0,11,0,21,0,11,0,18,0,11]
[null,"$100,000 or more:",38,37,446,160,82,54,50,72,28,35,12,11,6,6,26,40,0,11,66,49,5,7,134,85,20,23]
[null,"Less than 20.0 percent",38,37,357,149,71,53,50,72,28,35,9,10,6,6,26,40,0,11,60,46,5,7,125,87,20,23]
[null,"20.0 to 24.9 percent",0,16,27,45,0,18,0,16,0,11,0,11,0,11,0,11,0,11,0,21,0,11,9,17,0,11]
[null,"25.0 to 29.9 percent",0,16,33,54,0,18,0,16,0,11,3,5,0,11,0,11,0,11,0,21,0,11,0,18,0,11]
[null,"30.0 to 34.9 percent",0,16,7,10,0,18,0,16,0,11,0,11,0,11,0,11,0,11,0,21,0,11,0,18,0,11]
[null,"35.0 to 39.9 percent",0,16,0,24,0,18,0,16,0,11,0,11,0,11,0,11,0,11,0,21,0,11,0,18,0,11]
[null,"40.0 to 49.9 percent"]
[null,"50.0 percent or more"]
[null,"Not computed",0,16,22,26,11,17,0,16,0,11,0,11,0,11,0,11,0,11,6,10,0,11,0,18,0,11]
[]
[null,"Calculated B25074. HOUSEHOLD INCOME BY GROSS RENT AS A PERCENTAGE OF HOUSEHOLD INCOME IN THE PAST 12 MONTHS"]
[null,"Universe:  RENTER-OCCUPIED HOUSING UNITS"]
[null,{"$f":"B346","v":"Data Set: 2008-2012 American Community Survey 5-Year Estimates"}]
[]
[null,null,"Barrington",null,"Dover",null,"Durham",null,"Farmington",null,"Lee",null,"Madbury",null,"Middleton",null,"Milton",null,"New Durham",null,"Rochester",null,"Rollinsford",null,"Somersworth",null,"Strafford"]
[null,null,"Estimate","Margin Of Error","Estimate","Margin Of Error","Estimate","Margin Of Error","Estimate","Margin Of Error","Estimate","Margin Of Error","Estimate","Margin Of Error","Estimate","Margin Of Error","Estimate","Margin Of Error","Estimate","Margin Of Error","Estimate","Margin Of Error","Estimate","Margin Of Error","Estimate","Margin Of Error","Estimate","Margin Of Error"]
[null,"Total:",{"$f":"C350","v":411},{"$f":"D350","v":124},{"$f":"E350","v":6017},349,1298,221,808,220,213,87,142,53,38,27,215,92,95,44,3904,353,261,66,2030,250,96,65]
[null,"Less than $10,000:",{"$f":"C351","v":17},{"$f":"D351","v":28},{"$f":"E351","v":583},212,442,139,26,35,0,11,13,19,3,4,27,31,4,6,384,127,30,34,306,150,0,11]
[null,"Less than 30.0 percent",{"$f":"C352+C353+C354","v":0},{"$f":"SQRT((D352^2)+(D353^2)+(D355^2))","v":27.712812921102035},{"$f":"E352+E353+E354","v":137},{"$f":"SQRT((F352^2)+(F353^2)+(F355^2))","v":67.720011813348052},{"$f":"G352+G353+G354","v":0},{"$f":"SQRT((H352^2)+(H353^2)+(H355^2))","v":31.176914536239792},{"$f":"I352+I353+I354","v":0},{"$f":"SQRT((J352^2)+(J353^2)+(J355^2))","v":27.712812921102035},{"$f":"K352+K353+K354","v":0},{"$f":"SQRT((L352^2)+(L353^2)+(L355^2))","v":19.05255888325765},{"$f":"M352+M353+M354","v":0},{"$f":"SQRT((N352^2)+(N353^2)+(N355^2))","v":19.05255888325765},{"$f":"O352+O353+O354","v":0},{"$f":"SQRT((P352^2)+(P353^2)+(P355^2))","v":19.05255888325765},{"$f":"Q352+Q353+Q354","v":0},{"$f":"SQRT((R352^2)+(R353^2)+(R355^2))","v":19.05255888325765},{"$f":"S352+S353+S354","v":0},{"$f":"SQRT((T352^2)+(T353^2)+(T355^2))","v":19.05255888325765},{"$f":"U352+U353+U354","v":27},{"$f":"SQRT((V352^2)+(V353^2)+(V355^2))","v":40.8166632639171},{"$f":"W352+W353+W354","v":0},{"$f":"SQRT((X352^2)+(X353^2)+(X355^2))","v":19.05255888325765},{"$f":"Y352+Y353+Y354","v":14},{"$f":"SQRT((Z352^2)+(Z353^2)+(Z355^2))","v":31.176914536239792},{"$f":"AA352+AA353+AA354","v":0},{"$f":"SQRT((AB352^2)+(AB353^2)+(AB355^2))","v":19.05255888325765}]
[null,"More than 30.0 percent",{"$f":"C355+C356+C357+C358","v":17},{"$f":"SQRT((D355^2)+(D356^2)+(D357^2)+(D358^2))","v":32.249030993194197},{"$f":"E355+E356+E357+E358","v":425},{"$f":"SQRT((F355^2)+(F356^2)+(F357^2)+(F358^2))","v":180.7373785358192},{"$f":"G355+G356+G357+G358","v":296},{"$f":"SQRT((H355^2)+(H356^2)+(H357^2)+(H358^2))","v":111.46299834474219},{"$f":"I355+I356+I357+I358","v":20},{"$f":"SQRT((J355^2)+(J356^2)+(J357^2)+(J358^2))","v":36.674241641784498},{"$f":"K355+K356+K357+K358","v":0},{"$f":"SQRT((L355^2)+(L356^2)+(L357^2)+(L358^2))","v":15.556349186104045},{"$f":"M355+M356+M357+M358","v":13},{"$f":"SQRT((N355^2)+(N356^2)+(N357^2)+(N358^2))","v":21.95449840010015},{"$f":"O355+O356+O357+O358","v":0},{"$f":"SQRT((P355^2)+(P356^2)+(P357^2)+(P358^2))","v":15.556349186104045},{"$f":"Q355+Q356+Q357+Q358","v":27},{"$f":"SQRT((R355^2)+(R356^2)+(R357^2)+(R358^2))","v":32.893768406797051},{"$f":"S355+S356+S357+S358","v":4},{"$f":"SQRT((T355^2)+(T356^2)+(T357^2)+(T358^2))","v":12.529964086141668},{"$f":"U355+U356+U357+U358","v":267},{"$f":"SQRT((V355^2)+(V356^2)+(V357^2)+(V358^2))","v":107.07940978544848},{"$f":"W355+W356+W357+W358","v":30},{"$f":"SQRT((X355^2)+(X356^2)+(X357^2)+(X358^2))","v":35.735136770411273},{"$f":"Y355+Y356+Y357+Y358","v":227},{"$f":"SQRT((Z355^2)+(Z356^2)+(Z357^2)+(Z358^2))","v":130.24976007655445},{"$f":"AA355+AA356+AA357+AA358","v":0},{"$f":"SQRT((AB355^2)+(AB356^2)+(AB357^2)+(AB358^2))","v":15.556349186104045}]
[null,"Less Than 35% of HH Income",{"$f":"C352+C353+C354+C355","v":0},{"$f":"SQRT((D352^2)+(D353^2)+(D354^2)+(D355^2))","v":32},{"$f":"E352+E353+E354+E355","v":153},{"$f":"SQRT((F352^2)+(F353^2)+(F354^2)+(F355^2))","v":85.99418584997477},{"$f":"G352+G353+G354+G355","v":0},{"$f":"SQRT((H352^2)+(H353^2)+(H354^2)+(H355^2))","v":36},{"$f":"I352+I353+I354+I355","v":0},{"$f":"SQRT((J352^2)+(J353^2)+(J354^2)+(J355^2))","v":32},{"$f":"K352+K353+K354+K355","v":0},{"$f":"SQRT((L352^2)+(L353^2)+(L354^2)+(L355^2))","v":22},{"$f":"M352+M353+M354+M355","v":0},{"$f":"SQRT((N352^2)+(N353^2)+(N354^2)+(N355^2))","v":22},{"$f":"O352+O353+O354+O355","v":0},{"$f":"SQRT((P352^2)+(P353^2)+(P354^2)+(P355^2))","v":22},{"$f":"Q352+Q353+Q354+Q355","v":0},{"$f":"SQRT((R352^2)+(R353^2)+(R354^2)+(R355^2))","v":22},{"$f":"S352+S353+S354+S355","v":0},{"$f":"SQRT((T352^2)+(T353^2)+(T354^2)+(T355^2))","v":22},{"$f":"U352+U353+U354+U355","v":27},{"$f":"SQRT((V352^2)+(V353^2)+(V354^2)+(V355^2))","v":43.150898020782833},{"$f":"W352+W353+W354+W355","v":0},{"$f":"SQRT((X352^2)+(X353^2)+(X354^2)+(X355^2))","v":22},{"$f":"Y352+Y353+Y354+Y355","v":14},{"$f":"SQRT((Z352^2)+(Z353^2)+(Z354^2)+(Z355^2))","v":38.742741255621034},{"$f":"AA352+AA353+AA354+AA355","v":0},{"$f":"SQRT((AB352^2)+(AB353^2)+(AB354^2)+(AB355^2))","v":22}]
[null,"35.0 percent or more",{"$f":"C355+C356+C357+C358","v":17},{"$f":"SQRT((D355^2)+(D356^2)+(D357^2)+(D358^2))","v":32.249030993194197},{"$f":"E355+E356+E357+E358","v":425},{"$f":"SQRT((F355^2)+(F356^2)+(F357^2)+(F358^2))","v":180.7373785358192},{"$f":"G355+G356+G357+G358","v":296},{"$f":"SQRT((H355^2)+(H356^2)+(H357^2)+(H358^2))","v":111.46299834474219},{"$f":"I355+I356+I357+I358","v":20},{"$f":"SQRT((J355^2)+(J356^2)+(J357^2)+(J358^2))","v":36.674241641784498},{"$f":"K355+K356+K357+K358","v":0},{"$f":"SQRT((L355^2)+(L356^2)+(L357^2)+(L358^2))","v":15.556349186104045},{"$f":"M355+M356+M357+M358","v":13},{"$f":"SQRT((N355^2)+(N356^2)+(N357^2)+(N358^2))","v":21.95449840010015},{"$f":"O355+O356+O357+O358","v":0},{"$f":"SQRT((P355^2)+(P356^2)+(P357^2)+(P358^2))","v":15.556349186104045},{"$f":"Q355+Q356+Q357+Q358","v":27},{"$f":"SQRT((R355^2)+(R356^2)+(R357^2)+(R358^2))","v":32.893768406797051},{"$f":"S355+S356+S357+S358","v":4},{"$f":"SQRT((T355^2)+(T356^2)+(T357^2)+(T358^2))","v":12.529964086141668},{"$f":"U355+U356+U357+U358","v":267},{"$f":"SQRT((V355^2)+(V356^2)+(V357^2)+(V358^2))","v":107.07940978544848},{"$f":"W355+W356+W357+W358","v":30},{"$f":"SQRT((X355^2)+(X356^2)+(X357^2)+(X358^2))","v":35.735136770411273},{"$f":"Y355+Y356+Y357+Y358","v":227},{"$f":"SQRT((Z355^2)+(Z356^2)+(Z357^2)+(Z358^2))","v":130.24976007655445},{"$f":"AA355+AA356+AA357+AA358","v":0},{"$f":"SQRT((AB355^2)+(AB356^2)+(AB357^2)+(AB358^2))","v":15.556349186104045}]
[null,"50.0 percent or more",{"$f":"C358","v":0},0,{"$f":"E358","v":0},0,0,0,0,0,0,0,0,0,0,0,0,0,0,0,0,0,0,0,0,0,0,0]
[null,"Not Computed",0,16,{"$f":"E359","v":21},24,146,65,6,10,0,11,0,11,3,4,0,11,0,11,90,78,0,11,65,62,0,11]
[null,"$10,000 to $19,999:",50,62,{"$f":"E360","v":667},197,267,97,303,132,20,31,5,7,3,5,27,33,5,7,817,181,52,44,296,115,0,11]
[null,"Less than 30.0 percent",{"$f":"C361+C362+C363","v":0},{"$f":"SQRT((D361^2)+(D362^2)+(D363^2))","v":27.712812921102035},{"$f":"E361+E362+E363","v":96},{"$f":"SQRT((F361^2)+(F362^2)+(F363^2))","v":69.806876452108924},{"$f":"G361+G362+G363","v":15},{"$f":"SQRT((H361^2)+(H362^2)+(H363^2))","v":25.729360660537214},{"$f":"I361+I362+I363","v":62},{"$f":"SQRT((J361^2)+(J362^2)+(J363^2))","v":65.688659599659971},{"$f":"K361+K362+K363","v":0},{"$f":"SQRT((L361^2)+(L362^2)+(L363^2))","v":19.05255888325765},{"$f":"M361+M362+M363","v":0},{"$f":"SQRT((N361^2)+(N362^2)+(N363^2))","v":19.05255888325765},{"$f":"O361+O362+O363","v":3},{"$f":"SQRT((P361^2)+(P362^2)+(P363^2))","v":16.340134638368191},{"$f":"Q361+Q362+Q363","v":16},{"$f":"SQRT((R361^2)+(R362^2)+(R363^2))","v":31.160872901765767},{"$f":"S361+S362+S363","v":0},{"$f":"SQRT((T361^2)+(T362^2)+(T363^2))","v":19.05255888325765},{"$f":"U361+U362+U363","v":278},{"$f":"SQRT((V361^2)+(V362^2)+(V363^2))","v":139.97499776745846},{"$f":"W361+W362+W363","v":26},{"$f":"SQRT((X361^2)+(X362^2)+(X363^2))","v":41.98809355043403},{"$f":"Y361+Y362+Y363","v":78},{"$f":"SQRT((Z361^2)+(Z362^2)+(Z363^2))","v":68.47627326307996},{"$f":"AA361+AA362+AA363","v":0},{"$f":"SQRT((AB361^2)+(AB362^2)+(AB363^2))","v":19.05255888325765}]
[null,"More than 30.0 percent",{"$f":"C364+C365+C366+C367","v":50},{"$f":"SQRT((D364^2)+(D365^2)+(D366^2)+(D367^2))","v":64.031242374328485},{"$f":"E364+E365+E366+E367","v":564},{"$f":"SQRT((F364^2)+(F365^2)+(F366^2)+(F367^2))","v":182.3869512876401},{"$f":"G364+G365+G366+G367","v":228},{"$f":"SQRT((H364^2)+(H365^2)+(H366^2)+(H367^2))","v":92.22797840135064},{"$f":"I364+I365+I366+I367","v":241},{"$f":"SQRT((J364^2)+(J365^2)+(J366^2)+(J367^2))","v":129.98846102635417},{"$f":"K364+K365+K366+K367","v":20},{"$f":"SQRT((L364^2)+(L365^2)+(L366^2)+(L367^2))","v":32.893768406797051},{"$f":"M364+M365+M366+M367","v":5},{"$f":"SQRT((N364^2)+(N365^2)+(N366^2)+(N367^2))","v":13.038404810405298},{"$f":"O364+O365+O366+O367","v":0},{"$f":"SQRT((P364^2)+(P365^2)+(P366^2)+(P367^2))","v":15.556349186104045},{"$f":"Q364+Q365+Q366+Q367","v":11},{"$f":"SQRT((R364^2)+(R365^2)+(R366^2)+(R367^2))","v":20.248456731316587},{"$f":"S364+S365+S366+S367","v":0},{"$f":"SQRT((T364^2)+(T365^2)+(T366^2)+(T367^2))","v":15.556349186104045},{"$f":"U364+U365+U366+U367","v":513},{"$f":"SQRT((V364^2)+(V365^2)+(V366^2)+(V367^2))","v":155.27073130503379},{"$f":"W364+W365+W366+W367","v":26},{"$f":"SQRT((X364^2)+(X365^2)+(X366^2)+(X367^2))","v":23.706539182259394},{"$f":"Y364+Y365+Y366+Y367","v":187},{"$f":"SQRT((Z364^2)+(Z365^2)+(Z366^2)+(Z367^2))","v":74.464756764525859},{"$f":"AA364+AA365+AA366+AA367","v":0},{"$f":"SQRT((AB364^2)+(AB365^2)+(AB366^2)+(AB367^2))","v":15.556349186104045}]
[null,"Less Than 35% of HH Income",{"$f":"C361+C362+C363+C364","v":0},{"$f":"SQRT((D361^2)+(D362^2)+(D363^2)+(D364^2))","v":32},{"$f":"E361+E362+E363+E364","v":153},{"$f":"SQRT((F361^2)+(F362^2)+(F363^2)+(F364^2))","v":82.516664983504995},{"$f":"G361+G362+G363+G364","v":24},{"$f":"SQRT((H361^2)+(H362^2)+(H363^2)+(H364^2))","v":29.782545223670862},{"$f":"I361+I362+I363+I364","v":62},{"$f":"SQRT((J361^2)+(J362^2)+(J363^2)+(J364^2))","v":67.609170975541474},{"$f":"K361+K362+K363+K364","v":0},{"$f":"SQRT((L361^2)+(L362^2)+(L363^2)+(L364^2))","v":22},{"$f":"M361+M362+M363+M364","v":0},{"$f":"SQRT((N361^2)+(N362^2)+(N363^2)+(N364^2))","v":22},{"$f":"O361+O362+O363+O364","v":3},{"$f":"SQRT((P361^2)+(P362^2)+(P363^2)+(P364^2))","v":19.697715603592208},{"$f":"Q361+Q362+Q363+Q364","v":16},{"$f":"SQRT((R361^2)+(R362^2)+(R363^2)+(R364^2))","v":33.045423283716609},{"$f":"S361+S362+S363+S364","v":0},{"$f":"SQRT((T361^2)+(T362^2)+(T363^2)+(T364^2))","v":22},{"$f":"U361+U362+U363+U364","v":336},{"$f":"SQRT((V361^2)+(V362^2)+(V363^2)+(V364^2))","v":148.6371420607918},{"$f":"W361+W362+W363+W364","v":26},{"$f":"SQRT((X361^2)+(X362^2)+(X363^2)+(X364^2))","v":43.405068828421413},{"$f":"Y361+Y362+Y363+Y364","v":89},{"$f":"SQRT((Z361^2)+(Z362^2)+(Z363^2)+(Z364^2))","v":71.06335201775947},{"$f":"AA361+AA362+AA363+AA364","v":0},{"$f":"SQRT((AB361^2)+(AB362^2)+(AB363^2)+(AB364^2))","v":22}]
[null,"35.0 percent or more",{"$f":"C365+C366+C367","v":50},{"$f":"SQRT((D365^2)+(D366^2)+(D367^2))","v":62},{"$f":"E365+E366+E367","v":507},{"$f":"SQRT((F365^2)+(F366^2)+(F367^2))","v":177},{"$f":"G365+G366+G367","v":219},{"$f":"SQRT((H365^2)+(H366^2)+(H367^2))","v":91},{"$f":"I365+I366+I367","v":241},{"$f":"SQRT((J365^2)+(J366^2)+(J367^2))","v":129},{"$f":"K365+K366+K367","v":20},{"$f":"SQRT((L365^2)+(L366^2)+(L367^2))","v":31},{"$f":"M365+M366+M367","v":5},{"$f":"SQRT((N365^2)+(N366^2)+(N367^2))","v":7},{"$f":"O365+O366+O367","v":0},{"$f":"SQRT((P365^2)+(P366^2)+(P367^2))","v":11},{"$f":"Q365+Q366+Q367","v":11},{"$f":"SQRT((R365^2)+(R366^2)+(R367^2))","v":17},{"$f":"S365+S366+S367","v":0},{"$f":"SQRT((T365^2)+(T366^2)+(T367^2))","v":11},{"$f":"U365+U366+U367","v":455},{"$f":"SQRT((V365^2)+(V366^2)+(V367^2))","v":147},{"$f":"W365+W366+W367","v":26},{"$f":"SQRT((X365^2)+(X366^2)+(X367^2))","v":21},{"$f":"Y365+Y366+Y367","v":176},{"$f":"SQRT((Z365^2)+(Z366^2)+(Z367^2))","v":72},{"$f":"AA365+AA366+AA367","v":0},{"$f":"SQRT((AB365^2)+(AB366^2)+(AB367^2))","v":11}]
[null,"50.0 percent or more",{"$f":"C367","v":0},0,{"$f":"E367","v":0},0,0,0,0,0,0,0,0,0,0,0,0,0,0,0,0,0,0,0,0,0,0,0]
[null,"Not Computed",0,16,{"$f":"E368","v":7},13,24,23,0,16,0,11,0,11,0,11,0,11,5,7,26,27,0,11,31,35,0,11]
[null,"$20,000 to $34,999:",71,48,{"$f":"E369","v":1539},257,161,68,163,109,57,57,43,32,16,24,51,35,42,32,1294,229,90,48,304,121,52,55]
[null,"Less than 30.0 percent",{"$f":"C370","v":0},{"$f":"D370","v":16},21,23,11,20,0,16,0,11,2,3,0,11,0,11,0,11,36,55,0,11,0,18,0,11]
[null,"More than 30.0 percent",{"$f":"C373+C374+C375+C376","v":71},{"$f":"SQRT((D373^2)+(D374^2)+(D375^2)+(D376^2))","v":47.707441767506253},{"$f":"E373+E374+E375+E376","v":1423},{"$f":"SQRT((F373^2)+(F374^2)+(F375^2)+(F376^2))","v":264.5789107241921},{"$f":"G373+G374+G375+G376","v":137},{"$f":"SQRT((H373^2)+(H374^2)+(H375^2)+(H376^2))","v":68.541957952775178},{"$f":"I373+I374+I375+I376","v":118},{"$f":"SQRT((J373^2)+(J374^2)+(J375^2)+(J376^2))","v":85.510233305727795},{"$f":"K373+K374+K375+K376","v":46},{"$f":"SQRT((L373^2)+(L374^2)+(L375^2)+(L376^2))","v":54.12947441089743},{"$f":"M373+M374+M375+M376","v":35},{"$f":"SQRT((N373^2)+(N374^2)+(N375^2)+(N376^2))","v":32.893768406797051},{"$f":"O373+O374+O375+O376","v":16},{"$f":"SQRT((P373^2)+(P374^2)+(P375^2)+(P376^2))","v":26.40075756488817},{"$f":"Q373+Q374+Q375+Q376","v":39},{"$f":"SQRT((R373^2)+(R374^2)+(R375^2)+(R376^2))","v":32.249030993194197},{"$f":"S373+S374+S375+S376","v":42},{"$f":"SQRT((T373^2)+(T374^2)+(T375^2)+(T376^2))","v":33.837848631377263},{"$f":"U373+U374+U375+U376","v":1110},{"$f":"SQRT((V373^2)+(V374^2)+(V375^2)+(V376^2))","v":221.54232101339014},{"$f":"W373+W374+W375+W376","v":79},{"$f":"SQRT((X373^2)+(X374^2)+(X375^2)+(X376^2))","v":44.721359549995796},{"$f":"Y373+Y374+Y375+Y376","v":242},{"$f":"SQRT((Z373^2)+(Z374^2)+(Z375^2)+(Z376^2))","v":112.58774356030055},{"$f":"AA373+AA374+AA375+AA376","v":43},{"$f":"SQRT((AB373^2)+(AB374^2)+(AB375^2)+(AB376^2))","v":53.150729063673246}]
[null,"Less Than 35% of HH Income",{"$f":"C370+C371+C372+C373","v":32},{"$f":"SQRT((D372^2)+(D373^2)+(D374^2)+(D375^2))","v":50.318982501636498},{"$f":"E370+E371+E372+E373","v":417},{"$f":"SQRT((F372^2)+(F373^2)+(F374^2)+(F375^2))","v":266.50703555441083},{"$f":"G370+G371+G372+G373","v":37},{"$f":"SQRT((H372^2)+(H373^2)+(H374^2)+(H375^2))","v":68.898476035395731},{"$f":"I370+I371+I372+I373","v":45},{"$f":"SQRT((J372^2)+(J373^2)+(J374^2)+(J375^2))","v":86.994252683726188},{"$f":"K370+K371+K372+K373","v":11},{"$f":"SQRT((L372^2)+(L373^2)+(L374^2)+(L375^2))","v":55.235857918565905},{"$f":"M370+M371+M372+M373","v":5},{"$f":"SQRT((N372^2)+(N373^2)+(N374^2)+(N375^2))","v":33.630343441600473},{"$f":"O370+O371+O372+O373","v":0},{"$f":"SQRT((P372^2)+(P373^2)+(P374^2)+(P375^2))","v":28.600699292150182},{"$f":"Q370+Q371+Q372+Q373","v":10},{"$f":"SQRT((R372^2)+(R373^2)+(R374^2)+(R375^2))","v":34.073450074801642},{"$f":"S370+S371+S372+S373","v":0},{"$f":"SQRT((T372^2)+(T373^2)+(T374^2)+(T375^2))","v":35.580893749314392},{"$f":"U370+U371+U372+U373","v":340},{"$f":"SQRT((V372^2)+(V373^2)+(V374^2)+(V375^2))","v":230.88092168908196},{"$f":"W370+W371+W372+W373","v":17},{"$f":"SQRT((X372^2)+(X373^2)+(X374^2)+(X375^2))","v":46.572524088780071},{"$f":"Y370+Y371+Y372+Y373","v":46},{"$f":"SQRT((Z372^2)+(Z373^2)+(Z374^2)+(Z375^2))","v":119.15116449284078},{"$f":"AA370+AA371+AA372+AA373","v":9},{"$f":"SQRT((AB372^2)+(AB373^2)+(AB374^2)+(AB375^2))","v":54.277066980447643}]
[null,"35.0 percent or more",{"$f":"C374+C375+C376","v":39},{"$f":"SQRT((D369^2)+(D370^2)+(D371^2)+(D372^2))","v":55.42562584220407},{"$f":"E374+E375+E376","v":1075},{"$f":"SQRT((F369^2)+(F370^2)+(F371^2)+(F372^2))","v":260.93294157694999},{"$f":"G374+G375+G376","v":115},{"$f":"SQRT((H369^2)+(H370^2)+(H371^2)+(H372^2))","v":73.464277033126791},{"$f":"I374+I375+I376","v":118},{"$f":"SQRT((J369^2)+(J370^2)+(J371^2)+(J372^2))","v":129.93075078671714},{"$f":"K374+K375+K376","v":46},{"$f":"SQRT((L369^2)+(L370^2)+(L371^2)+(L372^2))","v":61.765686266729034},{"$f":"M374+M375+M376","v":35},{"$f":"SQRT((N369^2)+(N370^2)+(N371^2)+(N372^2))","v":34.684290392049249},{"$f":"O374+O375+O376","v":16},{"$f":"SQRT((P369^2)+(P370^2)+(P371^2)+(P372^2))","v":30.643106892089126},{"$f":"Q374+Q375+Q376","v":29},{"$f":"SQRT((R369^2)+(R370^2)+(R371^2)+(R372^2))","v":39.849717690342551},{"$f":"S374+S375+S376","v":42},{"$f":"SQRT((T369^2)+(T370^2)+(T371^2)+(T372^2))","v":37.242448899072144},{"$f":"U374+U375+U376","v":954},{"$f":"SQRT((V369^2)+(V370^2)+(V371^2)+(V372^2))","v":253.07508767162366},{"$f":"W374+W375+W376","v":73},{"$f":"SQRT((X369^2)+(X370^2)+(X371^2)+(X372^2))","v":52.105661880452111},{"$f":"Y374+Y375+Y376","v":228},{"$f":"SQRT((Z369^2)+(Z370^2)+(Z371^2)+(Z372^2))","v":129.65338406690356},{"$f":"AA374+AA375+AA376","v":43},{"$f":"SQRT((AB369^2)+(AB370^2)+(AB371^2)+(AB372^2))","v":58.84725991921799}]
[null,"50.0 percent or more",{"$f":"C376","v":0},{"$f":"SQRT((D373^2)+(D374^2)+(D375^2))","v":47.707441767506253},{"$f":"E376","v":0},{"$f":"SQRT((F373^2)+(F374^2)+(F375^2))","v":264.5789107241921},{"$f":"G376","v":0},{"$f":"SQRT((H373^2)+(H374^2)+(H375^2))","v":68.541957952775178},{"$f":"I376","v":0},{"$f":"SQRT((J373^2)+(J374^2)+(J375^2))","v":85.510233305727795},{"$f":"K376","v":0},{"$f":"SQRT((L373^2)+(L374^2)+(L375^2))","v":54.12947441089743},{"$f":"M376","v":0},{"$f":"SQRT((N373^2)+(N374^2)+(N375^2))","v":32.893768406797051},{"$f":"O376","v":0},{"$f":"SQRT((P373^2)+(P374^2)+(P375^2))","v":26.40075756488817},{"$f":"Q376","v":0},{"$f":"SQRT((R373^2)+(R374^2)+(R375^2))","v":32.249030993194197},{"$f":"S376","v":0},{"$f":"SQRT((T373^2)+(T374^2)+(T375^2))","v":33.837848631377263},{"$f":"U376","v":0},{"$f":"SQRT((V373^2)+(V374^2)+(V375^2))","v":221.54232101339014},{"$f":"W376","v":0},{"$f":"SQRT((X373^2)+(X374^2)+(X375^2))","v":44.721359549995796},{"$f":"Y376","v":0},{"$f":"SQRT((Z373^2)+(Z374^2)+(Z375^2))","v":112.58774356030055},{"$f":"AA376","v":0},{"$f":"SQRT((AB373^2)+(AB374^2)+(AB375^2))","v":53.150729063673246}]
[null,"Not Computed",{"$f":"C377","v":0},{"$f":"D377","v":16},{"$f":"E377","v":47},42,9,14,0,16,0,11,3,5,0,11,12,20,0,11,0,21,0,11,30,33,0,11]
[null,"$35,000 to $49,999:",{"$f":"C378","v":107},{"$f":"D378","v":92},{"$f":"E378","v":1045},245,122,63,94,74,24,36,8,9,6,9,6,10,7,10,718,229,33,31,324,145,0,11]
[null,"Less than 30.0 percent",{"$f":"C379+C380+C381","v":79},{"$f":"D379","v":79},{"$f":"E379+E380+E381","v":620},{"$f":"F379","v":50},{"$f":"G379+G380+G381","v":71},{"$f":"H379","v":29},{"$f":"I379+I380+I381","v":12},{"$f":"J379","v":16},{"$f":"K379+K380+K381","v":24},{"$f":"L379","v":11},{"$f":"M379+M380+M381","v":8},{"$f":"N379","v":7},{"$f":"O379+O380+O381","v":0},{"$f":"P379","v":11},{"$f":"Q379+Q380+Q381","v":6},{"$f":"R379","v":11},{"$f":"S379+S380+S381","v":0},{"$f":"T379","v":11},{"$f":"U379+U380+U381","v":439},{"$f":"V379","v":82},{"$f":"W379+W380+W381","v":15},{"$f":"X379","v":11},{"$f":"Y379+Y380+Y381","v":246},{"$f":"Z379","v":16},{"$f":"AA379+AA380+AA381","v":0},{"$f":"AB379","v":11}]
[null,"More than 30.0 percent",{"$f":"C382+C383+C384+C385","v":23},{"$f":"SQRT((D382^2)+(D383^2)+(D384^2)+(D385^2))","v":41.231056256176608},{"$f":"E382+E383+E384+E385","v":406},{"$f":"SQRT((F382^2)+(F383^2)+(F384^2)+(F385^2))","v":146.73104647619741},{"$f":"G382+G383+G384+G385","v":51},{"$f":"SQRT((H382^2)+(H383^2)+(H384^2)+(H385^2))","v":40.496913462633174},{"$f":"I382+I383+I384+I385","v":82},{"$f":"SQRT((J382^2)+(J383^2)+(J384^2)+(J385^2))","v":73.409808608931812},{"$f":"K382+K383+K384+K385","v":0},{"$f":"SQRT((L382^2)+(L383^2)+(L384^2)+(L385^2))","v":15.556349186104045},{"$f":"M382+M383+M384+M385","v":0},{"$f":"SQRT((N382^2)+(N383^2)+(N384^2)+(N385^2))","v":15.556349186104045},{"$f":"O382+O383+O384+O385","v":6},{"$f":"SQRT((P382^2)+(P383^2)+(P384^2)+(P385^2))","v":14.212670403551895},{"$f":"Q382+Q383+Q384+Q385","v":0},{"$f":"SQRT((R382^2)+(R383^2)+(R384^2)+(R385^2))","v":15.556349186104045},{"$f":"S382+S383+S384+S385","v":0},{"$f":"SQRT((T382^2)+(T383^2)+(T384^2)+(T385^2))","v":15.556349186104045},{"$f":"U382+U383+U384+U385","v":249},{"$f":"SQRT((V382^2)+(V383^2)+(V384^2)+(V385^2))","v":130.38404810405297},{"$f":"W382+W383+W384+W385","v":18},{"$f":"SQRT((X382^2)+(X383^2)+(X384^2)+(X385^2))","v":22.360679774997898},{"$f":"Y382+Y383+Y384+Y385","v":65},{"$f":"SQRT((Z382^2)+(Z383^2)+(Z384^2)+(Z385^2))","v":46.572524088780071},{"$f":"AA382+AA383+AA384+AA385","v":0},{"$f":"SQRT((AB382^2)+(AB383^2)+(AB384^2)+(AB385^2))","v":15.556349186104045}]
[null,"Less Than 35% of HH Income",{"$f":"C379+C380+C381+C382","v":102},{"$f":"SQRT((D379^2)+(D380^2)+(D381^2)+(D382^2))","v":99.383097154395429},{"$f":"E379+E380+E381+E382","v":775},{"$f":"SQRT((F379^2)+(F380^2)+(F381^2)+(F382^2))","v":223.36964878872868},{"$f":"G379+G380+G381+G382","v":79},{"$f":"SQRT((H379^2)+(H380^2)+(H381^2)+(H382^2))","v":53.075418038862395},{"$f":"I379+I380+I381+I382","v":70},{"$f":"SQRT((J379^2)+(J380^2)+(J381^2)+(J382^2))","v":73.769912566031962},{"$f":"K379+K380+K381+K382","v":24},{"$f":"SQRT((L379^2)+(L380^2)+(L381^2)+(L382^2))","v":40.730823708832602},{"$f":"M379+M380+M381+M382","v":8},{"$f":"SQRT((N379^2)+(N380^2)+(N381^2)+(N382^2))","v":18.083141320025124},{"$f":"O379+O380+O381+O382","v":0},{"$f":"SQRT((P379^2)+(P380^2)+(P381^2)+(P382^2))","v":22},{"$f":"Q379+Q380+Q381+Q382","v":6},{"$f":"SQRT((R379^2)+(R380^2)+(R381^2)+(R382^2))","v":21.517434791350013},{"$f":"S379+S380+S381+S382","v":0},{"$f":"SQRT((T379^2)+(T380^2)+(T381^2)+(T382^2))","v":22},{"$f":"U379+U380+U381+U382","v":488},{"$f":"SQRT((V379^2)+(V380^2)+(V381^2)+(V382^2))","v":173.15022379425329},{"$f":"W379+W380+W381+W382","v":27},{"$f":"SQRT((X379^2)+(X380^2)+(X381^2)+(X382^2))","v":34.219877264537345},{"$f":"Y379+Y380+Y381+Y382","v":303},{"$f":"SQRT((Z379^2)+(Z380^2)+(Z381^2)+(Z382^2))","v":135.33292282367952},{"$f":"AA379+AA380+AA381+AA382","v":0},{"$f":"SQRT((AB379^2)+(AB380^2)+(AB381^2)+(AB382^2))","v":22}]
[null,"35.0 percent or more",{"$f":"C383+C384+C385","v":0},{"$f":"SQRT((D383^2)+(D384^2)+(D385^2))","v":16},{"$f":"E383+E384+E385","v":251},{"$f":"SQRT((F383^2)+(F384^2)+(F385^2))","v":121},{"$f":"G383+G384+G385","v":43},{"$f":"SQRT((H383^2)+(H384^2)+(H385^2))","v":38},{"$f":"I383+I384+I385","v":24},{"$f":"SQRT((J383^2)+(J384^2)+(J385^2))","v":30},{"$f":"K383+K384+K385","v":0},{"$f":"SQRT((L383^2)+(L384^2)+(L385^2))","v":11},{"$f":"M383+M384+M385","v":0},{"$f":"SQRT((N383^2)+(N384^2)+(N385^2))","v":11},{"$f":"O383+O384+O385","v":6},{"$f":"SQRT((P383^2)+(P384^2)+(P385^2))","v":9},{"$f":"Q383+Q384+Q385","v":0},{"$f":"SQRT((R383^2)+(R384^2)+(R385^2))","v":11},{"$f":"S383+S384+S385","v":0},{"$f":"SQRT((T383^2)+(T384^2)+(T385^2))","v":11},{"$f":"U383+U384+U385","v":200},{"$f":"SQRT((V383^2)+(V384^2)+(V385^2))","v":122},{"$f":"W383+W384+W385","v":6},{"$f":"SQRT((X383^2)+(X384^2)+(X385^2))","v":10},{"$f":"Y383+Y384+Y385","v":8},{"$f":"SQRT((Z383^2)+(Z384^2)+(Z385^2))","v":12},{"$f":"AA383+AA384+AA385","v":0},{"$f":"SQRT((AB383^2)+(AB384^2)+(AB385^2))","v":11}]
[null,"50.0 percent or more",{"$f":"C385","v":0},0,{"$f":"E385","v":0},0,0,0,0,0,0,0,0,0,0,0,0,0,0,0,0,0,0,0,0,0,0,0]
[null,"Not Computed",5,11,{"$f":"E386","v":19},30,0,18,0,16,0,11,0,11,0,11,0,11,7,10,30,33,0,11,13,21,0,11]
[null,"$50,000 to $74,999:",60,55,{"$f":"E387","v":1219},244,162,103,140,110,84,64,41,26,4,5,44,41,21,24,424,153,32,26,338,132,24,39]
[null,"Less than 30.0 percent",{"$f":"C388+C389+C390","v":60},{"$f":"SQRT((D388^2)+(D389^2)+(D390^2))","v":59.396969619669989},{"$f":"E388+E389+E390","v":1073},{"$f":"SQRT((F388^2)+(F389^2)+(F390^2))","v":245.76004557291245},{"$f":"G388+G389+G390","v":111},{"$f":"SQRT((H388^2)+(H389^2)+(H390^2))","v":60.572270883631234},{"$f":"I388+I389+I390","v":140},{"$f":"SQRT((J388^2)+(J389^2)+(J390^2))","v":109.51255635770723},{"$f":"K388+K389+K390","v":68},{"$f":"SQRT((L388^2)+(L389^2)+(L390^2))","v":62.241465278381739},{"$f":"M388+M389+M390","v":41},{"$f":"SQRT((N388^2)+(N389^2)+(N390^2))","v":32.939338184001208},{"$f":"O388+O389+O390","v":4},{"$f":"SQRT((P388^2)+(P389^2)+(P390^2))","v":16.340134638368191},{"$f":"Q388+Q389+Q390","v":44},{"$f":"SQRT((R388^2)+(R389^2)+(R390^2))","v":41.725292090050132},{"$f":"S388+S389+S390","v":21},{"$f":"SQRT((T388^2)+(T389^2)+(T390^2))","v":28.600699292150182},{"$f":"U388+U389+U390","v":348},{"$f":"SQRT((V388^2)+(V389^2)+(V390^2))","v":147.35671006099452},{"$f":"W388+W389+W390","v":27},{"$f":"SQRT((X388^2)+(X389^2)+(X390^2))","v":27.964262908219126},{"$f":"Y388+Y389+Y390","v":308},{"$f":"SQRT((Z388^2)+(Z389^2)+(Z390^2))","v":152.30561381643159},{"$f":"AA388+AA389+AA390","v":24},{"$f":"SQRT((AB388^2)+(AB389^2)+(AB390^2))","v":41.98809355043403}]
[null,"More than 30.0 percent",{"$f":"C391+C392+C393+C394","v":0},{"$f":"SQRT((D391^2)+(D392^2)+(D393^2)+(D394^2))","v":22.627416997969522},{"$f":"E391+E392+E393+E394","v":134},{"$f":"SQRT((F391^2)+(F392^2)+(F393^2)+(F394^2))","v":77.698133825723247},{"$f":"G391+G392+G393+G394","v":51},{"$f":"SQRT((H391^2)+(H392^2)+(H393^2)+(H394^2))","v":78.10249675906654},{"$f":"I391+I392+I393+I394","v":0},{"$f":"SQRT((J391^2)+(J392^2)+(J393^2)+(J394^2))","v":22.627416997969522},{"$f":"K391+K392+K393+K394","v":0},{"$f":"SQRT((L391^2)+(L392^2)+(L393^2)+(L394^2))","v":15.556349186104045},{"$f":"M391+M392+M393+M394","v":0},{"$f":"SQRT((N391^2)+(N392^2)+(N393^2)+(N394^2))","v":15.556349186104045},{"$f":"O391+O392+O393+O394","v":0},{"$f":"SQRT((P391^2)+(P392^2)+(P393^2)+(P394^2))","v":15.556349186104045},{"$f":"Q391+Q392+Q393+Q394","v":0},{"$f":"SQRT((R391^2)+(R392^2)+(R393^2)+(R394^2))","v":15.556349186104045},{"$f":"S391+S392+S393+S394","v":0},{"$f":"SQRT((T391^2)+(T392^2)+(T393^2)+(T394^2))","v":15.556349186104045},{"$f":"U391+U392+U393+U394","v":67},{"$f":"SQRT((V391^2)+(V392^2)+(V393^2)+(V394^2))","v":72.006944109578768},{"$f":"W391+W392+W393+W394","v":5},{"$f":"SQRT((X391^2)+(X392^2)+(X393^2)+(X394^2))","v":13.601470508735444},{"$f":"Y391+Y392+Y393+Y394","v":30},{"$f":"SQRT((Z391^2)+(Z392^2)+(Z393^2)+(Z394^2))","v":31.89043743820395},{"$f":"AA391+AA392+AA393+AA394","v":0},{"$f":"SQRT((AB391^2)+(AB392^2)+(AB393^2)+(AB394^2))","v":15.556349186104045}]
[null,"Less Than 35% of HH Income",{"$f":"C388+C389+C390+C391","v":60},{"$f":"SQRT((D388^2)+(D389^2)+(D390^2)+(D391^2))","v":61.514225996918796},{"$f":"E388+E389+E390+E391","v":1110},{"$f":"SQRT((F388^2)+(F389^2)+(F390^2)+(F391^2))","v":249.15657727621803},{"$f":"G388+G389+G390+G391","v":111},{"$f":"SQRT((H388^2)+(H389^2)+(H390^2)+(H391^2))","v":63.190189111918315},{"$f":"I388+I389+I390+I391","v":140},{"$f":"SQRT((J388^2)+(J389^2)+(J390^2)+(J391^2))","v":110.6752004741803},{"$f":"K388+K389+K390+K391","v":68},{"$f":"SQRT((L388^2)+(L389^2)+(L390^2)+(L391^2))","v":63.206012372241929},{"$f":"M388+M389+M390+M391","v":41},{"$f":"SQRT((N388^2)+(N389^2)+(N390^2)+(N391^2))","v":34.727510708370673},{"$f":"O388+O389+O390+O391","v":4},{"$f":"SQRT((P388^2)+(P389^2)+(P390^2)+(P391^2))","v":19.697715603592208},{"$f":"Q388+Q389+Q390+Q391","v":44},{"$f":"SQRT((R388^2)+(R389^2)+(R390^2)+(R391^2))","v":43.150898020782833},{"$f":"S388+S389+S390+S391","v":21},{"$f":"SQRT((T388^2)+(T389^2)+(T390^2)+(T391^2))","v":30.643106892089126},{"$f":"U388+U389+U390+U391","v":388},{"$f":"SQRT((V388^2)+(V389^2)+(V390^2)+(V391^2))","v":160.65490966665163},{"$f":"W388+W389+W390+W391","v":27},{"$f":"SQRT((X388^2)+(X389^2)+(X390^2)+(X391^2))","v":30.04995840263344},{"$f":"Y388+Y389+Y390+Y391","v":321},{"$f":"SQRT((Z388^2)+(Z389^2)+(Z390^2)+(Z391^2))","v":153.74654467662029},{"$f":"AA388+AA389+AA390+AA391","v":24},{"$f":"SQRT((AB388^2)+(AB389^2)+(AB390^2)+(AB391^2))","v":43.405068828421413}]
[null,"35.0 percent or more",{"$f":"C392+C393+C394","v":0},{"$f":"SQRT((D392^2)+(D393^2)+(D394^2))","v":16},{"$f":"E392+E393+E394","v":97},{"$f":"SQRT((F392^2)+(F393^2)+(F394^2))","v":66},{"$f":"G392+G393+G394","v":51},{"$f":"SQRT((H392^2)+(H393^2)+(H394^2))","v":76},{"$f":"I392+I393+I394","v":0},{"$f":"SQRT((J392^2)+(J393^2)+(J394^2))","v":16},{"$f":"K392+K393+K394","v":0},{"$f":"SQRT((L392^2)+(L393^2)+(L394^2))","v":11},{"$f":"M392+M393+M394","v":0},{"$f":"SQRT((N392^2)+(N393^2)+(N394^2))","v":11},{"$f":"O392+O393+O394","v":0},{"$f":"SQRT((P392^2)+(P393^2)+(P394^2))","v":11},{"$f":"Q392+Q393+Q394","v":0},{"$f":"SQRT((R392^2)+(R393^2)+(R394^2))","v":11},{"$f":"S392+S393+S394","v":0},{"$f":"SQRT((T392^2)+(T393^2)+(T394^2))","v":11},{"$f":"U392+U393+U394","v":27},{"$f":"SQRT((V392^2)+(V393^2)+(V394^2))","v":33},{"$f":"W392+W393+W394","v":5},{"$f":"SQRT((X392^2)+(X393^2)+(X394^2))","v":8},{"$f":"Y392+Y393+Y394","v":17},{"$f":"SQRT((Z392^2)+(Z393^2)+(Z394^2))","v":24},{"$f":"AA392+AA393+AA394","v":0},{"$f":"SQRT((AB392^2)+(AB393^2)+(AB394^2))","v":11}]
[null,"50.0 percent or more",{"$f":"C394","v":0},0,{"$f":"E394","v":0},0,0,0,0,0,0,0,0,0,0,0,0,0,0,0,0,0,0,0,0,0,0,0]
[null,"Not Computed",0,16,{"$f":"E395","v":12},18,0,18,0,16,16,26,0,11,0,11,0,11,0,11,9,14,0,11,0,18,0,11]
[null,"$75,000 to $99,999:",68,64,{"$f":"E396","v":518},177,62,43,32,49,0,11,20,22,0,11,34,39,16,17,201,109,19,26,328,155,0,11]
[null,"Less than 30.0 percent",{"$f":"C397+C398+C399","v":48},{"$f":"SQRT((D397^2)+(D398^2)+(D399^2))","v":56.885850613311568},{"$f":"E397+E398+E399","v":452},{"$f":"SQRT((F397^2)+(F398^2)+(F399^2))","v":155.51527256189343},{"$f":"G397+G398+G399","v":62},{"$f":"SQRT((H397^2)+(H398^2)+(H399^2))","v":45.705579528105758},{"$f":"I397+I398+I399","v":32},{"$f":"SQRT((J397^2)+(J398^2)+(J399^2))","v":53.972215074054539},{"$f":"K397+K398+K399","v":0},{"$f":"SQRT((L397^2)+(L398^2)+(L399^2))","v":19.05255888325765},{"$f":"M397+M398+M399","v":10},{"$f":"SQRT((N397^2)+(N398^2)+(N399^2))","v":16.431676725154983},{"$f":"O397+O398+O399","v":0},{"$f":"SQRT((P397^2)+(P398^2)+(P399^2))","v":19.05255888325765},{"$f":"Q397+Q398+Q399","v":34},{"$f":"SQRT((R397^2)+(R398^2)+(R399^2))","v":41.98809355043403},{"$f":"S397+S398+S399","v":16},{"$f":"SQRT((T397^2)+(T398^2)+(T399^2))","v":23.043437243605826},{"$f":"U397+U398+U399","v":191},{"$f":"SQRT((V397^2)+(V398^2)+(V399^2))","v":102.82995672468213},{"$f":"W397+W398+W399","v":19},{"$f":"SQRT((X397^2)+(X398^2)+(X399^2))","v":27.766886753829642},{"$f":"Y397+Y398+Y399","v":312},{"$f":"SQRT((Z397^2)+(Z398^2)+(Z399^2))","v":153.37861650177967},{"$f":"AA397+AA398+AA399","v":0},{"$f":"SQRT((AB397^2)+(AB398^2)+(AB399^2))","v":19.05255888325765}]
[null,"More than 30.0 percent",{"$f":"C391+C392+C393+C394","v":0},{"$f":"SQRT((D391^2)+(D392^2)+(D393^2)+(D394^2))","v":22.627416997969522},{"$f":"E391+E392+E393+E394","v":134},{"$f":"SQRT((F391^2)+(F392^2)+(F393^2)+(F394^2))","v":77.698133825723247},{"$f":"G391+G392+G393+G394","v":51},{"$f":"SQRT((H391^2)+(H392^2)+(H393^2)+(H394^2))","v":78.10249675906654},{"$f":"I391+I392+I393+I394","v":0},{"$f":"SQRT((J391^2)+(J392^2)+(J393^2)+(J394^2))","v":22.627416997969522},{"$f":"K391+K392+K393+K394","v":0},{"$f":"SQRT((L391^2)+(L392^2)+(L393^2)+(L394^2))","v":15.556349186104045},{"$f":"M391+M392+M393+M394","v":0},{"$f":"SQRT((N391^2)+(N392^2)+(N393^2)+(N394^2))","v":15.556349186104045},{"$f":"O391+O392+O393+O394","v":0},{"$f":"SQRT((P391^2)+(P392^2)+(P393^2)+(P394^2))","v":15.556349186104045},{"$f":"Q391+Q392+Q393+Q394","v":0},{"$f":"SQRT((R391^2)+(R392^2)+(R393^2)+(R394^2))","v":15.556349186104045},{"$f":"S391+S392+S393+S394","v":0},{"$f":"SQRT((T391^2)+(T392^2)+(T393^2)+(T394^2))","v":15.556349186104045},{"$f":"U391+U392+U393+U394","v":67},{"$f":"SQRT((V391^2)+(V392^2)+(V393^2)+(V394^2))","v":72.006944109578768},{"$f":"W391+W392+W393+W394","v":5},{"$f":"SQRT((X391^2)+(X392^2)+(X393^2)+(X394^2))","v":13.601470508735444},{"$f":"Y391+Y392+Y393+Y394","v":30},{"$f":"SQRT((Z391^2)+(Z392^2)+(Z393^2)+(Z394^2))","v":31.89043743820395},{"$f":"AA391+AA392+AA393+AA394","v":0},{"$f":"SQRT((AB391^2)+(AB392^2)+(AB393^2)+(AB394^2))","v":15.556349186104045}]
[null,"Less Than 35% of HH Income",{"$f":"C388+C389+C390++C391","v":60},{"$f":"SQRT((D388^2)+(D389^2)+(D390^2)+(D391^2))","v":61.514225996918796},{"$f":"E388+E389+E390++E391","v":1110},{"$f":"SQRT((F388^2)+(F389^2)+(F390^2)+(F391^2))","v":249.15657727621803},{"$f":"G388+G389+G390++G391","v":111},{"$f":"SQRT((H388^2)+(H389^2)+(H390^2)+(H391^2))","v":63.190189111918315},{"$f":"I388+I389+I390++I391","v":140},{"$f":"SQRT((J388^2)+(J389^2)+(J390^2)+(J391^2))","v":110.6752004741803},{"$f":"K388+K389+K390++K391","v":68},{"$f":"SQRT((L388^2)+(L389^2)+(L390^2)+(L391^2))","v":63.206012372241929},{"$f":"M388+M389+M390++M391","v":41},{"$f":"SQRT((N388^2)+(N389^2)+(N390^2)+(N391^2))","v":34.727510708370673},{"$f":"O388+O389+O390++O391","v":4},{"$f":"SQRT((P388^2)+(P389^2)+(P390^2)+(P391^2))","v":19.697715603592208},{"$f":"Q388+Q389+Q390++Q391","v":44},{"$f":"SQRT((R388^2)+(R389^2)+(R390^2)+(R391^2))","v":43.150898020782833},{"$f":"S388+S389+S390++S391","v":21},{"$f":"SQRT((T388^2)+(T389^2)+(T390^2)+(T391^2))","v":30.643106892089126},{"$f":"U388+U389+U390++U391","v":388},{"$f":"SQRT((V388^2)+(V389^2)+(V390^2)+(V391^2))","v":160.65490966665163},{"$f":"W388+W389+W390++W391","v":27},{"$f":"SQRT((X388^2)+(X389^2)+(X390^2)+(X391^2))","v":30.04995840263344},{"$f":"Y388+Y389+Y390++Y391","v":321},{"$f":"SQRT((Z388^2)+(Z389^2)+(Z390^2)+(Z391^2))","v":153.74654467662029},{"$f":"AA388+AA389+AA390++AA391","v":24},{"$f":"SQRT((AB388^2)+(AB389^2)+(AB390^2)+(AB391^2))","v":43.405068828421413}]
[null,"35.0 percent or more",{"$f":"C392+C393+C394","v":0},{"$f":"SQRT((D392^2)+(D393^2)+(D394^2))","v":16},{"$f":"E392+E393+E394","v":97},{"$f":"SQRT((F392^2)+(F393^2)+(F394^2))","v":66},{"$f":"G392+G393+G394","v":51},{"$f":"SQRT((H392^2)+(H393^2)+(H394^2))","v":76},{"$f":"I392+I393+I394","v":0},{"$f":"SQRT((J392^2)+(J393^2)+(J394^2))","v":16},{"$f":"K392+K393+K394","v":0},{"$f":"SQRT((L392^2)+(L393^2)+(L394^2))","v":11},{"$f":"M392+M393+M394","v":0},{"$f":"SQRT((N392^2)+(N393^2)+(N394^2))","v":11},{"$f":"O392+O393+O394","v":0},{"$f":"SQRT((P392^2)+(P393^2)+(P394^2))","v":11},{"$f":"Q392+Q393+Q394","v":0},{"$f":"SQRT((R392^2)+(R393^2)+(R394^2))","v":11},{"$f":"S392+S393+S394","v":0},{"$f":"SQRT((T392^2)+(T393^2)+(T394^2))","v":11},{"$f":"U392+U393+U394","v":27},{"$f":"SQRT((V392^2)+(V393^2)+(V394^2))","v":33},{"$f":"W392+W393+W394","v":5},{"$f":"SQRT((X392^2)+(X393^2)+(X394^2))","v":8},{"$f":"Y392+Y393+Y394","v":17},{"$f":"SQRT((Z392^2)+(Z393^2)+(Z394^2))","v":24},{"$f":"AA392+AA393+AA394","v":0},{"$f":"SQRT((AB392^2)+(AB393^2)+(AB394^2))","v":11}]
[null,"50.0 percent or more",{"$f":"C403","v":0},0,{"$f":"E403","v":0},0,0,0,0,0,0,0,0,0,0,0,0,0,0,0,0,0,0,0,0,0,0,0]
[null,"Not Computed",0,16,{"$f":"E404","v":0},24,0,18,0,16,0,11,0,11,0,11,0,11,0,11,0,21,0,11,0,18,0,11]
[null,"$100,000 or more:",38,37,{"$f":"E405","v":446},160,82,54,50,72,28,35,12,11,6,6,26,40,0,11,66,49,5,7,134,85,20,23]
[null,"Less than 30.0 percent",{"$f":"C406+C407+C408","v":38},{"$f":"SQRT((D406^2)+(D407^2)+(D408^2))","v":43.370496884402883},{"$f":"E406+E407+E408","v":417},{"$f":"SQRT((F406^2)+(F407^2)+(F408^2))","v":164.74829285913708},{"$f":"G406+G407+G408","v":71},{"$f":"SQRT((H406^2)+(H407^2)+(H408^2))","v":58.796258384356399},{"$f":"I406+I407+I408","v":50},{"$f":"SQRT((J406^2)+(J407^2)+(J408^2))","v":75.471849056452825},{"$f":"K406+K407+K408","v":28},{"$f":"SQRT((L406^2)+(L407^2)+(L408^2))","v":38.301436004411116},{"$f":"M406+M407+M408","v":12},{"$f":"SQRT((N406^2)+(N407^2)+(N408^2))","v":15.684387141358123},{"$f":"O406+O407+O408","v":6},{"$f":"SQRT((P406^2)+(P407^2)+(P408^2))","v":16.673332000533065},{"$f":"Q406+Q407+Q408","v":26},{"$f":"SQRT((R406^2)+(R407^2)+(R408^2))","v":42.918527467749868},{"$f":"S406+S407+S408","v":0},{"$f":"SQRT((T406^2)+(T407^2)+(T408^2))","v":19.05255888325765},{"$f":"U406+U407+U408","v":60},{"$f":"SQRT((V406^2)+(V407^2)+(V408^2))","v":54.753995288015282},{"$f":"W406+W407+W408","v":5},{"$f":"SQRT((X406^2)+(X407^2)+(X408^2))","v":17.058722109231979},{"$f":"Y406+Y407+Y408","v":134},{"$f":"SQRT((Z406^2)+(Z407^2)+(Z408^2))","v":90.454408405560869},{"$f":"AA406+AA407+AA408","v":20},{"$f":"SQRT((AB406^2)+(AB407^2)+(AB408^2))","v":27.766886753829642}]
[null,"More than 30.0 percent",{"$f":"C409+C410+C411+C412","v":0},{"$f":"SQRT((D409^2)+(D410^2)+(D411^2)+(D412^2))","v":22.627416997969522},{"$f":"E409+E410+E411+E412","v":7},{"$f":"SQRT((F409^2)+(F410^2)+(F411^2)+(F412^2))","v":26},{"$f":"G409+G410+G411+G412","v":0},{"$f":"SQRT((H409^2)+(H410^2)+(H411^2)+(H412^2))","v":25.45584412271571},{"$f":"I409+I410+I411+I412","v":0},{"$f":"SQRT((J409^2)+(J410^2)+(J411^2)+(J412^2))","v":22.627416997969522},{"$f":"K409+K410+K411+K412","v":0},{"$f":"SQRT((L409^2)+(L410^2)+(L411^2)+(L412^2))","v":15.556349186104045},{"$f":"M409+M410+M411+M412","v":0},{"$f":"SQRT((N409^2)+(N410^2)+(N411^2)+(N412^2))","v":15.556349186104045},{"$f":"O409+O410+O411+O412","v":0},{"$f":"SQRT((P409^2)+(P410^2)+(P411^2)+(P412^2))","v":15.556349186104045},{"$f":"Q409+Q410+Q411+Q412","v":0},{"$f":"SQRT((R409^2)+(R410^2)+(R411^2)+(R412^2))","v":15.556349186104045},{"$f":"S409+S410+S411+S412","v":0},{"$f":"SQRT((T409^2)+(T410^2)+(T411^2)+(T412^2))","v":15.556349186104045},{"$f":"U409+U410+U411+U412","v":0},{"$f":"SQRT((V409^2)+(V410^2)+(V411^2)+(V412^2))","v":29.698484809834994},{"$f":"W409+W410+W411+W412","v":0},{"$f":"SQRT((X409^2)+(X410^2)+(X411^2)+(X412^2))","v":15.556349186104045},{"$f":"Y409+Y410+Y411+Y412","v":0},{"$f":"SQRT((Z409^2)+(Z410^2)+(Z411^2)+(Z412^2))","v":25.45584412271571},{"$f":"AA409+AA410+AA411+AA412","v":0},{"$f":"SQRT((AB409^2)+(AB410^2)+(AB411^2)+(AB412^2))","v":15.556349186104045}]
[null,"Less Than 35% of HH Income",{"$f":"C406+C407+C408+C409","v":38},{"$f":"SQRT((D406^2)+(D407^2)+(D408^2)+(D409^2))","v":46.227697325304881},{"$f":"E406+E407+E408+E409","v":424},{"$f":"SQRT((F406^2)+(F407^2)+(F408^2)+(F409^2))","v":165.05150711217394},{"$f":"G406+G407+G408+G409","v":71},{"$f":"SQRT((H406^2)+(H407^2)+(H408^2)+(H409^2))","v":61.489836558572833},{"$f":"I406+I407+I408+I409","v":50},{"$f":"SQRT((J406^2)+(J407^2)+(J408^2)+(J409^2))","v":77.149206087943639},{"$f":"K406+K407+K408+K409","v":28},{"$f":"SQRT((L406^2)+(L407^2)+(L408^2)+(L409^2))","v":39.849717690342551},{"$f":"M406+M407+M408+M409","v":12},{"$f":"SQRT((N406^2)+(N407^2)+(N408^2)+(N409^2))","v":19.157244060668017},{"$f":"O406+O407+O408+O409","v":6},{"$f":"SQRT((P406^2)+(P407^2)+(P408^2)+(P409^2))","v":19.974984355438178},{"$f":"Q406+Q407+Q408+Q409","v":26},{"$f":"SQRT((R406^2)+(R407^2)+(R408^2)+(R409^2))","v":44.305755833751441},{"$f":"S406+S407+S408+S409","v":0},{"$f":"SQRT((T406^2)+(T407^2)+(T408^2)+(T409^2))","v":22},{"$f":"U406+U407+U408+U409","v":60},{"$f":"SQRT((V406^2)+(V407^2)+(V408^2)+(V409^2))","v":58.642987645582998},{"$f":"W406+W407+W408+W409","v":5},{"$f":"SQRT((X406^2)+(X407^2)+(X408^2)+(X409^2))","v":20.297783130184438},{"$f":"Y406+Y407+Y408+Y409","v":134},{"$f":"SQRT((Z406^2)+(Z407^2)+(Z408^2)+(Z409^2))","v":92.22797840135064},{"$f":"AA406+AA407+AA408+AA409","v":20},{"$f":"SQRT((AB406^2)+(AB407^2)+(AB408^2)+(AB409^2))","v":29.866369046136157}]
[null,"35.0 percent or more",{"$f":"C410+C411+C412","v":0},{"$f":"SQRT((D410^2)+(D411^2)+(D412^2))","v":16},{"$f":"E410+E411+E412","v":0},{"$f":"SQRT((F410^2)+(F411^2)+(F412^2))","v":24},{"$f":"G410+G411+G412","v":0},{"$f":"SQRT((H410^2)+(H411^2)+(H412^2))","v":18},{"$f":"I410+I411+I412","v":0},{"$f":"SQRT((J410^2)+(J411^2)+(J412^2))","v":16},{"$f":"K410+K411+K412","v":0},{"$f":"SQRT((L410^2)+(L411^2)+(L412^2))","v":11},{"$f":"M410+M411+M412","v":0},{"$f":"SQRT((N410^2)+(N411^2)+(N412^2))","v":11},{"$f":"O410+O411+O412","v":0},{"$f":"SQRT((P410^2)+(P411^2)+(P412^2))","v":11},{"$f":"Q410+Q411+Q412","v":0},{"$f":"SQRT((R410^2)+(R411^2)+(R412^2))","v":11},{"$f":"S410+S411+S412","v":0},{"$f":"SQRT((T410^2)+(T411^2)+(T412^2))","v":11},{"$f":"U410+U411+U412","v":0},{"$f":"SQRT((V410^2)+(V411^2)+(V412^2))","v":21},{"$f":"W410+W411+W412","v":0},{"$f":"SQRT((X410^2)+(X411^2)+(X412^2))","v":11},{"$f":"Y410+Y411+Y412","v":0},{"$f":"SQRT((Z410^2)+(Z411^2)+(Z412^2))","v":18},{"$f":"AA410+AA411+AA412","v":0},{"$f":"SQRT((AB410^2)+(AB411^2)+(AB412^2))","v":11}]
[null,"50.0 percent or more",{"$f":"C412","v":0},{"$f":"D412","v":0},{"$f":"E412","v":0},0,0,0,0,0,0,0,0,0,0,0,0,0,0,0,0,0,0,0,0,0,0,0]
[null,"Not Computed",{"$f":"C413","v":0},{"$f":"D413","v":16},{"$f":"E413","v":22},26,11,17,0,16,0,11,0,11,0,11,0,11,0,11,6,10,0,11,0,18,0,11]
[]
[]
[null,"Calculated GROSS RENT AS A PERCENTAGE OF HOUSEHOLD INCOME IN THE PAST 12 MONTHS"]
[null,"Universe:  RENTER-OCCUPIED HOUSING UNITS"]
[null,{"$f":"B346","v":"Data Set: 2008-2012 American Community Survey 5-Year Estimates"}]
[]
[null,null,"Barrington",null,"Dover",null,"Durham",null,"Farmington",null,"Lee",null,"Madbury",null,"Middleton",null,"Milton",null,"New Durham",null,"Rochester",null,"Rollinsford",null,"Somersworth",null,"Strafford"]
[null,null,"Estimate","Margin Of Error","Estimate","Margin Of Error","Estimate","Margin Of Error","Estimate","Margin Of Error","Estimate","Margin Of Error","Estimate","Margin Of Error","Estimate","Margin Of Error","Estimate","Margin Of Error","Estimate","Margin Of Error","Estimate","Margin Of Error","Estimate","Margin Of Error","Estimate","Margin Of Error","Estimate","Margin Of Error"]
[null,"Total:",{"$f":"C421","v":411},124,6017,349,1298,221,808,220,213,87,142,53,38,27,215,92,95,44,3904,353,261,66,2030,250,96,65]
[null,"Less than 30.0 percent",{"$f":"C465+C458+C450+C444+C437+C430+C423","v":225},{"$f":"SQRT((D465^2)+(D458^2)+(D450^2)+(D444^2)+(D437^2)+(D430^2)+(D423^2))","v":127.18097341976905},{"$f":"E465+E458+E451+E444+E437+E430+E423","v":2816},{"$f":"SQRT((F465^2)+(F458^2)+(F451^2)+(F444^2)+(F437^2)+(F430^2)+(F423^2))","v":352.43864714301691},{"$f":"G465+G458+G451+G444+G437+G430+G423","v":341},{"$f":"SQRT((H465^2)+(H458^2)+(H451^2)+(H444^2)+(H437^2)+(H430^2)+(H423^2))","v":109.95453605922768},{"$f":"I465+I458+I451+I444+I437+I430+I423","v":296},{"$f":"SQRT((J465^2)+(J458^2)+(J451^2)+(J444^2)+(J437^2)+(J430^2)+(J423^2))","v":161.85487326614543},{"$f":"K465+K458+K451+K444+K437+K430+K423","v":120},{"$f":"SQRT((L465^2)+(L458^2)+(L451^2)+(L444^2)+(L437^2)+(L430^2)+(L423^2))","v":81.682311426648553},{"$f":"M465+M458+M451+M444+M437+M430+M423","v":73},{"$f":"SQRT((N465^2)+(N458^2)+(N451^2)+(N444^2)+(N437^2)+(N430^2)+(N423^2))","v":48.836461788299118},{"$f":"O465+O458+O451+O444+O437+O430+O423","v":13},{"$f":"SQRT((P465^2)+(P458^2)+(P451^2)+(P444^2)+(P437^2)+(P430^2)+(P423^2))","v":42.190046219457976},{"$f":"Q465+Q458+Q451+Q444+Q437+Q430+Q423","v":126},{"$f":"SQRT((R465^2)+(R458^2)+(R451^2)+(R444^2)+(R437^2)+(R430^2)+(R423^2))","v":83.198557679805958},{"$f":"S465+S458+S451+S444+S437+S430+S423","v":37},{"$f":"SQRT((T465^2)+(T458^2)+(T451^2)+(T444^2)+(T437^2)+(T430^2)+(T423^2))","v":51.768716422179139},{"$f":"U465+U458+U451+U444+U437+U430+U423","v":1379},{"$f":"SQRT((V465^2)+(V458^2)+(V451^2)+(V444^2)+(V437^2)+(V430^2)+(V423^2))","v":257.47621249350397},{"$f":"W465+W458+W451+W444+W437+W430+W423","v":92},{"$f":"SQRT((X465^2)+(X458^2)+(X451^2)+(X444^2)+(X437^2)+(X430^2)+(X423^2))","v":64.899922958351809},{"$f":"Y465+Y458+Y451+Y444+Y437+Y430+Y423","v":1092},{"$f":"SQRT((Z465^2)+(Z458^2)+(Z451^2)+(Z444^2)+(Z437^2)+(Z430^2)+(Z423^2))","v":247.27515038919702},{"$f":"AA465+AA458+AA451+AA444+AA437+AA430+AA423","v":44},{"$f":"SQRT((AB465^2)+(AB458^2)+(AB451^2)+(AB444^2)+(AB437^2)+(AB430^2)+(AB423^2))","v":62.169124169478209}]
[null,"More than 30.0 percent",{"$f":"C466+C459+C452+C445+C438+C431+C424","v":161},{"$f":"SQRT((D466^2)+(D459^2)+(D452^2)+(D445^2)+(D438^2)+(D431^2)+(D424^2))","v":103.20852677952534},{"$f":"E466+E459+E452+E445+E438+E431+E424","v":3093},{"$f":"SQRT((F466^2)+(F459^2)+(F452^2)+(F445^2)+(F438^2)+(F431^2)+(F424^2))","v":412.56878214426257},{"$f":"G466+G459+G452+G445+G438+G431+G424","v":814},{"$f":"SQRT((H466^2)+(H459^2)+(H452^2)+(H445^2)+(H438^2)+(H431^2)+(H424^2))","v":200.28979005431106},{"$f":"I466+I459+I452+I445+I438+I431+I424","v":461},{"$f":"SQRT((J466^2)+(J459^2)+(J452^2)+(J445^2)+(J438^2)+(J431^2)+(J424^2))","v":180.21931084098617},{"$f":"K466+K459+K452+K445+K438+K431+K424","v":66},{"$f":"SQRT((L466^2)+(L459^2)+(L452^2)+(L445^2)+(L438^2)+(L431^2)+(L424^2))","v":72.263407060558663},{"$f":"M466+M459+M452+M445+M438+M431+M424","v":53},{"$f":"SQRT((N466^2)+(N459^2)+(N452^2)+(N445^2)+(N438^2)+(N431^2)+(N424^2))","v":51.980765673468099},{"$f":"O466+O459+O452+O445+O438+O431+O424","v":22},{"$f":"SQRT((P466^2)+(P459^2)+(P452^2)+(P445^2)+(P438^2)+(P431^2)+(P424^2))","v":45.923850012820139},{"$f":"Q466+Q459+Q452+Q445+Q438+Q431+Q424","v":77},{"$f":"SQRT((R466^2)+(R459^2)+(R452^2)+(R445^2)+(R438^2)+(R431^2)+(R424^2))","v":59.160797830996152},{"$f":"S466+S459+S452+S445+S438+S431+S424","v":46},{"$f":"SQRT((T466^2)+(T459^2)+(T452^2)+(T445^2)+(T438^2)+(T431^2)+(T424^2))","v":50.119856344566671},{"$f":"U466+U459+U452+U445+U438+U431+U424","v":2273},{"$f":"SQRT((V466^2)+(V459^2)+(V452^2)+(V445^2)+(V438^2)+(V431^2)+(V424^2))","v":336.01785666836219},{"$f":"W466+W459+W452+W445+W438+W431+W424","v":163},{"$f":"SQRT((X466^2)+(X459^2)+(X452^2)+(X445^2)+(X438^2)+(X431^2)+(X424^2))","v":70.363342729009119},{"$f":"Y466+Y459+Y452+Y445+Y438+Y431+Y424","v":781},{"$f":"SQRT((Z466^2)+(Z459^2)+(Z452^2)+(Z445^2)+(Z438^2)+(Z431^2)+(Z424^2))","v":200.09247861926244},{"$f":"AA466+AA459+AA452+AA445+AA438+AA431+AA424","v":43},{"$f":"SQRT((AB466^2)+(AB459^2)+(AB452^2)+(AB445^2)+(AB438^2)+(AB431^2)+(AB424^2))","v":65.398776746969816}]
[null,"Less Than 35% of HH Income",{"$f":"C467+C460+C453+C446+C439+C432+C425","v":292},{"$f":"SQRT((D467^2)+(D460^2)+(D453^2)+(D446^2)+(D439^2)+(D432^2)+(D425^2))","v":155.44130725132234},{"$f":"E467+E460+E453+E446+E439+E432+E425","v":4142},{"$f":"SQRT((F467^2)+(F460^2)+(F453^2)+(F446^2)+(F439^2)+(F432^2)+(F425^2))","v":535.27936631258262},{"$f":"G467+G460+G453+G446+G439+G432+G425","v":433},{"$f":"SQRT((H467^2)+(H460^2)+(H453^2)+(H446^2)+(H439^2)+(H432^2)+(H425^2))","v":146.67651482088058},{"$f":"I467+I460+I453+I446+I439+I432+I425","v":507},{"$f":"SQRT((J467^2)+(J460^2)+(J453^2)+(J446^2)+(J439^2)+(J432^2)+(J425^2))","v":221.48363370687235},{"$f":"K467+K460+K453+K446+K439+K432+K425","v":199},{"$f":"SQRT((L467^2)+(L460^2)+(L453^2)+(L446^2)+(L439^2)+(L432^2)+(L425^2))","v":123.51518125315609},{"$f":"M467+M460+M453+M446+M439+M432+M425","v":107},{"$f":"SQRT((N467^2)+(N460^2)+(N453^2)+(N446^2)+(N439^2)+(N432^2)+(N425^2))","v":72.145685941711022},{"$f":"O467+O460+O453+O446+O439+O432+O425","v":17},{"$f":"SQRT((P467^2)+(P460^2)+(P453^2)+(P446^2)+(P439^2)+(P432^2)+(P425^2))","v":57.870545184921141},{"$f":"Q467+Q460+Q453+Q446+Q439+Q432+Q425","v":146},{"$f":"SQRT((R467^2)+(R460^2)+(R453^2)+(R446^2)+(R439^2)+(R432^2)+(R425^2))","v":94.270886279911451},{"$f":"S467+S460+S453+S446+S439+S432+S425","v":42},{"$f":"SQRT((T467^2)+(T460^2)+(T453^2)+(T446^2)+(T439^2)+(T432^2)+(T425^2))","v":71.274118724821847},{"$f":"U467+U460+U453+U446+U439+U432+U425","v":2027},{"$f":"SQRT((V467^2)+(V460^2)+(V453^2)+(V446^2)+(V439^2)+(V432^2)+(V425^2))","v":402.86598267910387},{"$f":"W467+W460+W453+W446+W439+W432+W425","v":129},{"$f":"SQRT((X467^2)+(X460^2)+(X453^2)+(X446^2)+(X439^2)+(X432^2)+(X425^2))","v":89.028085456219941},{"$f":"Y467+Y460+Y453+Y446+Y439+Y432+Y425","v":1228},{"$f":"SQRT((Z467^2)+(Z460^2)+(Z453^2)+(Z446^2)+(Z439^2)+(Z432^2)+(Z425^2))","v":307.96915429958239},{"$f":"AA467+AA460+AA453+AA446+AA439+AA432+AA425","v":77},{"$f":"SQRT((AB467^2)+(AB460^2)+(AB453^2)+(AB446^2)+(AB439^2)+(AB432^2)+(AB425^2))","v":95.173525730635831}]
[null,"35.0 percent or more",{"$f":"C468+C461+C454+C447+C440+C433+C426","v":106},{"$f":"SQRT((D468^2)+(D461^2)+(D454^2)+(D447^2)+(D440^2)+(D433^2)+(D426^2))","v":94.762861923857074},{"$f":"E468+E461+E454+E447+E440+E433+E426","v":2452},{"$f":"SQRT((F468^2)+(F461^2)+(F454^2)+(F447^2)+(F440^2)+(F433^2)+(F426^2))","v":394.98101220185254},{"$f":"G468+G461+G454+G447+G440+G433+G426","v":775},{"$f":"SQRT((H468^2)+(H461^2)+(H454^2)+(H447^2)+(H440^2)+(H433^2)+(H426^2))","v":198.54974187845221},{"$f":"I468+I461+I454+I447+I440+I433+I426","v":403},{"$f":"SQRT((J468^2)+(J461^2)+(J454^2)+(J447^2)+(J440^2)+(J433^2)+(J426^2))","v":191.14392483152585},{"$f":"K468+K461+K454+K447+K440+K433+K426","v":66},{"$f":"SQRT((L468^2)+(L461^2)+(L454^2)+(L447^2)+(L440^2)+(L433^2)+(L426^2))","v":74.175467642610784},{"$f":"M468+M461+M454+M447+M440+M433+M426","v":53},{"$f":"SQRT((N468^2)+(N461^2)+(N454^2)+(N447^2)+(N440^2)+(N433^2)+(N426^2))","v":47.095647357266465},{"$f":"O468+O461+O454+O447+O440+O433+O426","v":22},{"$f":"SQRT((P468^2)+(P461^2)+(P454^2)+(P447^2)+(P440^2)+(P433^2)+(P426^2))","v":41.785164831552358},{"$f":"Q468+Q461+Q454+Q447+Q440+Q433+Q426","v":67},{"$f":"SQRT((R468^2)+(R461^2)+(R454^2)+(R447^2)+(R440^2)+(R433^2)+(R426^2))","v":58.677082408722406},{"$f":"S468+S461+S454+S447+S440+S433+S426","v":46},{"$f":"SQRT((T468^2)+(T461^2)+(T454^2)+(T447^2)+(T440^2)+(T433^2)+(T426^2))","v":46.357307945997036},{"$f":"U468+U461+U454+U447+U440+U433+U426","v":1930},{"$f":"SQRT((V468^2)+(V461^2)+(V454^2)+(V447^2)+(V440^2)+(V433^2)+(V426^2))","v":338.56314034460394},{"$f":"W468+W461+W454+W447+W440+W433+W426","v":145},{"$f":"SQRT((X468^2)+(X461^2)+(X454^2)+(X447^2)+(X440^2)+(X433^2)+(X426^2))","v":69.15200647848188},{"$f":"Y468+Y461+Y454+Y447+Y440+Y433+Y426","v":673},{"$f":"SQRT((Z468^2)+(Z461^2)+(Z454^2)+(Z447^2)+(Z440^2)+(Z433^2)+(Z426^2))","v":201.44229943087922},{"$f":"AA468+AA461+AA454+AA447+AA440+AA433+AA426","v":43},{"$f":"SQRT((AB468^2)+(AB461^2)+(AB454^2)+(AB447^2)+(AB440^2)+(AB433^2)+(AB426^2))","v":65.650590248679407}]
[null,"50.0 percent or more",{"$f":"C469+C462+C455+C448+C441+C434+C427","v":0},{"$f":"SQRT((D469^2)+(D462^2)+(D455^2)+(D448^2)+(D441^2)+(D434^2)+(D427^2))","v":47.707441767506253},{"$f":"E469+E462+E455+E448+E441+E434+E427","v":0},{"$f":"SQRT((F469^2)+(F462^2)+(F455^2)+(F448^2)+(F441^2)+(F434^2)+(F427^2))","v":264.5789107241921},{"$f":"G469+G462+G455+G448+G441+G434+G427","v":0},{"$f":"SQRT((H469^2)+(H462^2)+(H455^2)+(H448^2)+(H441^2)+(H434^2)+(H427^2))","v":68.541957952775178},{"$f":"I469+I462+I455+I448+I441+I434+I427","v":0},{"$f":"SQRT((J469^2)+(J462^2)+(J455^2)+(J448^2)+(J441^2)+(J434^2)+(J427^2))","v":85.510233305727795},{"$f":"K469+K462+K455+K448+K441+K434+K427","v":0},{"$f":"SQRT((L469^2)+(L462^2)+(L455^2)+(L448^2)+(L441^2)+(L434^2)+(L427^2))","v":54.12947441089743},{"$f":"M469+M462+M455+M448+M441+M434+M427","v":0},{"$f":"SQRT((N469^2)+(N462^2)+(N455^2)+(N448^2)+(N441^2)+(N434^2)+(N427^2))","v":32.893768406797051},{"$f":"O469+O462+O455+O448+O441+O434+O427","v":0},{"$f":"SQRT((P469^2)+(P462^2)+(P455^2)+(P448^2)+(P441^2)+(P434^2)+(P427^2))","v":26.40075756488817},{"$f":"Q469+Q462+Q455+Q448+Q441+Q434+Q427","v":0},{"$f":"SQRT((R469^2)+(R462^2)+(R455^2)+(R448^2)+(R441^2)+(R434^2)+(R427^2))","v":32.249030993194197},{"$f":"S469+S462+S455+S448+S441+S434+S427","v":0},{"$f":"SQRT((T469^2)+(T462^2)+(T455^2)+(T448^2)+(T441^2)+(T434^2)+(T427^2))","v":33.837848631377263},{"$f":"U469+U462+U455+U448+U441+U434+U427","v":0},{"$f":"SQRT((V469^2)+(V462^2)+(V455^2)+(V448^2)+(V441^2)+(V434^2)+(V427^2))","v":221.54232101339014},{"$f":"W469+W462+W455+W448+W441+W434+W427","v":0},{"$f":"SQRT((X469^2)+(X462^2)+(X455^2)+(X448^2)+(X441^2)+(X434^2)+(X427^2))","v":44.721359549995796},{"$f":"Y469+Y462+Y455+Y448+Y441+Y434+Y427","v":0},{"$f":"SQRT((Z469^2)+(Z462^2)+(Z455^2)+(Z448^2)+(Z441^2)+(Z434^2)+(Z427^2))","v":112.58774356030055},{"$f":"AA469+AA462+AA455+AA448+AA441+AA434+AA427","v":0},{"$f":"SQRT((AB469^2)+(AB462^2)+(AB455^2)+(AB448^2)+(AB441^2)+(AB434^2)+(AB427^2))","v":53.150729063673246}]
[null,"Not Computed",{"$f":"C469+C463+C456+C449+C442+C435+C428","v":5},{"$f":"SQRT((D469^2)+(D463^2)+(D456^2)+(D449^2)+(D442^2)+(D435^2)+(D428^2))","v":37.429934544425805},{"$f":"E469+E463+E456+E449+E442+E435+E428","v":106},{"$f":"SQRT((F469^2)+(F463^2)+(F456^2)+(F449^2)+(F442^2)+(F435^2)+(F428^2))","v":65.642973729105236},{"$f":"G469+G463+G456+G449+G442+G435+G428","v":179},{"$f":"SQRT((H469^2)+(H463^2)+(H456^2)+(H449^2)+(H442^2)+(H435^2)+(H428^2))","v":76.954532030283957},{"$f":"I469+I463+I456+I449+I442+I435+I428","v":6},{"$f":"SQRT((J469^2)+(J463^2)+(J456^2)+(J449^2)+(J442^2)+(J435^2)+(J428^2))","v":37.148351242013419},{"$f":"K469+K463+K456+K449+K442+K435+K428","v":16},{"$f":"SQRT((L469^2)+(L463^2)+(L456^2)+(L449^2)+(L442^2)+(L435^2)+(L428^2))","v":35.791060336346561},{"$f":"M469+M463+M456+M449+M442+M435+M428","v":3},{"$f":"SQRT((N469^2)+(N463^2)+(N456^2)+(N449^2)+(N442^2)+(N435^2)+(N428^2))","v":25.099800796022265},{"$f":"O469+O463+O456+O449+O442+O435+O428","v":3},{"$f":"SQRT((P469^2)+(P463^2)+(P456^2)+(P449^2)+(P442^2)+(P435^2)+(P428^2))","v":24.919871588754223},{"$f":"Q469+Q463+Q456+Q449+Q442+Q435+Q428","v":12},{"$f":"SQRT((R469^2)+(R463^2)+(R456^2)+(R449^2)+(R442^2)+(R435^2)+(R428^2))","v":31.701734968294716},{"$f":"S469+S463+S456+S449+S442+S435+S428","v":12},{"$f":"SQRT((T469^2)+(T463^2)+(T456^2)+(T449^2)+(T442^2)+(T435^2)+(T428^2))","v":25.159491250818249},{"$f":"U469+U463+U456+U449+U442+U435+U428","v":155},{"$f":"SQRT((V469^2)+(V463^2)+(V456^2)+(V449^2)+(V442^2)+(V435^2)+(V428^2))","v":94.762861923857074},{"$f":"W469+W463+W456+W449+W442+W435+W428","v":0},{"$f":"SQRT((X469^2)+(X463^2)+(X456^2)+(X449^2)+(X442^2)+(X435^2)+(X428^2))","v":26.944387170614959},{"$f":"Y469+Y463+Y456+Y449+Y442+Y435+Y428","v":139},{"$f":"SQRT((Z469^2)+(Z463^2)+(Z456^2)+(Z449^2)+(Z442^2)+(Z435^2)+(Z428^2))","v":85.129313400261836},{"$f":"AA469+AA463+AA456+AA449+AA442+AA435+AA428","v":0},{"$f":"SQRT((AB469^2)+(AB463^2)+(AB456^2)+(AB449^2)+(AB442^2)+(AB435^2)+(AB428^2))","v":26.944387170614959}]

{"sheet":"PlaceOfBirthAndPriorRes","index":56,"n_rows":57,"n_cols":16,"rows_kept":57,"cut":false,"hidden":true,"merged":[[40,11,40,13],[53,2,54,14],[4,3,4,5],[4,7,4,9],[40,3,40,5],[40,7,40,9],[4,14,4,15],[40,14,40,15]]}
[]
[null,null,{"$f":"CntyDataLink!A50","v":"Rochester"}]
[null,null,"SOCIAL CHARACTERISTICS"]
[]
[null,null,"Place of Birth","2008-2012",null,null,null,"2013-2017",null,null,null,"2018-2022",null,null,"Statistically Significant Change "]
[null,null,"Universe: Total Population","Estimate","Margin of Error",null,null,"Estimate","Margin of Error",null,null,"Estimate","Margin of Error",null,"2012-2022","2017-2022"]
[null,null,"  Total:",{"$f":"CntyDataLinkPrior10YearEstimate!$B$136","v":29834},{"$f":"CntyDataLinkPrior10YearEstimate!$C$136","v":26},null,null,{"$f":"CntyDataLinkPrior5YearEstimates!$B$136","v":30052},{"$f":"CntyDataLinkPrior5YearEstimates!$C$136","v":24},null,null,{"$f":"CntyDataLink!$B$136","v":32317},{"$f":"CntyDataLink!$C$136","v":37}]
[null,null,"   United States Native",{"$f":"CntyDataLinkPrior10YearEstimate!$D$136","v":29196},{"$f":"CntyDataLinkPrior10YearEstimate!$E$136","v":150},{"$f":"D8/$D$7","v":0.97861500301669235},null,{"$f":"CntyDataLinkPrior5YearEstimates!$D$136","v":29227},{"$f":"CntyDataLinkPrior5YearEstimates!$E$136","v":229},{"$f":"H8/$H$7","v":0.9725475841874085},null,{"$f":"CntyDataLink!$D$136","v":31141},{"$f":"CntyDataLink!$E$136","v":349},{"$f":"L8/$L$7","v":0.96361048364637802},{"$f":"StatisticallySignificantCalcs!A25","v":"N"},{"$f":"StatisticallySignificantCalcs!J25","v":"Y"}]
[null,null,"      New Hampshire Native",{"$f":"CntyDataLinkPrior10YearEstimate!$F$136","v":17006},{"$f":"CntyDataLinkPrior10YearEstimate!$G$136","v":681},{"$f":"D9/$D$7","v":0.57002078165851044},null,{"$f":"CntyDataLinkPrior5YearEstimates!$F$136","v":16366},{"$f":"CntyDataLinkPrior5YearEstimates!$G$136","v":872},{"$f":"H9/$H$7","v":0.54458937841075472},null,{"$f":"CntyDataLink!$F$136","v":16444},{"$f":"CntyDataLink!$G$136","v":1038},{"$f":"L9/$L$7","v":0.50883435962496515},{"$f":"StatisticallySignificantCalcs!A26","v":"Y"},{"$f":"StatisticallySignificantCalcs!J26","v":"Y"}]
[null,null,"      Born in Different State",{"$f":"CntyDataLinkPrior10YearEstimate!$H$136","v":11996},{"$f":"CntyDataLinkPrior10YearEstimate!$I$136","v":682},0.40209157337266205,null,{"$f":"CntyDataLinkPrior5YearEstimates!$H$136","v":12382},{"$f":"CntyDataLinkPrior5YearEstimates!$I$136","v":795},0.41201916677758554,null,{"$f":"CntyDataLink!$H$136","v":14213},{"$f":"CntyDataLink!$I$136","v":1077},0.43979948633845961,{"$f":"StatisticallySignificantCalcs!A27","v":"N"},{"$f":"StatisticallySignificantCalcs!J27","v":"N"}]
[null,null,"          Northeast",{"$f":"CntyDataLinkPrior10YearEstimate!$J$136","v":9074},{"$f":"CntyDataLinkPrior10YearEstimate!$K$136","v":677},0.30414962794127504,null,{"$f":"CntyDataLinkPrior5YearEstimates!$J$136","v":9411},{"$f":"CntyDataLinkPrior5YearEstimates!$K$136","v":758},0.31315719419672566,null,{"$f":"CntyDataLink!$J$136","v":10569},{"$f":"CntyDataLink!$K$136","v":920},0.32704149518829101,{"$f":"StatisticallySignificantCalcs!A28","v":"Y"},{"$f":"StatisticallySignificantCalcs!J28","v":"Y"}]
[null,null,"          Midwest",{"$f":"CntyDataLinkPrior10YearEstimate!$L$136","v":1054},{"$f":"CntyDataLinkPrior10YearEstimate!$M$136","v":230},{"$f":"D12/$D$7","v":3.5328819467721394E-2},null,{"$f":"CntyDataLinkPrior5YearEstimates!$L$136","v":567},{"$f":"CntyDataLinkPrior5YearEstimates!$M$136","v":139},1.886729668574471E-2,null,{"$f":"CntyDataLink!$L$136","v":794},{"$f":"CntyDataLink!$M$136","v":241},{"$f":"L12/$L$7","v":2.4569112231952222E-2},{"$f":"StatisticallySignificantCalcs!A29","v":"Y"},{"$f":"StatisticallySignificantCalcs!J29","v":"N"}]
[null,null,"          South",{"$f":"CntyDataLinkPrior10YearEstimate!$N$136","v":1217},{"$f":"CntyDataLinkPrior10YearEstimate!$O$136","v":248},4.0792384527720049E-2,null,{"$f":"CntyDataLinkPrior5YearEstimates!$N$136","v":1584},{"$f":"CntyDataLinkPrior5YearEstimates!$O$136","v":332},{"$f":"H13/$H$7","v":5.2708638360175697E-2},null,{"$f":"CntyDataLink!$N$136","v":1846},{"$f":"CntyDataLink!$O$136","v":436},5.7121638765974564E-2,{"$f":"StatisticallySignificantCalcs!A30","v":"N"},{"$f":"StatisticallySignificantCalcs!J30","v":"N"}]
[null,null,"          West",{"$f":"CntyDataLinkPrior10YearEstimate!$P$136","v":651},{"$f":"CntyDataLinkPrior10YearEstimate!$Q$136","v":228},2.1820741435945566E-2,null,{"$f":"CntyDataLinkPrior5YearEstimates!$P$136","v":820},{"$f":"CntyDataLinkPrior5YearEstimates!$Q$136","v":324},2.7286037534939439E-2,null,{"$f":"CntyDataLink!$P$136","v":1004},{"$f":"CntyDataLink!$Q$136","v":265},3.1067240152241854E-2,{"$f":"StatisticallySignificantCalcs!A31","v":"Y"},{"$f":"StatisticallySignificantCalcs!J31","v":"N"}]
[null,null,"      Native Born Outside US",{"$f":"CntyDataLinkPrior10YearEstimate!$R136","v":194},{"$f":"CntyDataLinkPrior10YearEstimate!$S$136","v":97},6.5026479855198769E-3,null,{"$f":"CntyDataLinkPrior5YearEstimates!$R136","v":479},{"$f":"CntyDataLinkPrior5YearEstimates!$S$136","v":173},1.5939038999068282E-2,null,{"$f":"CntyDataLink!$R136","v":484},{"$f":"CntyDataLink!$S$136","v":227},1.4976637682953245E-2,{"$f":"StatisticallySignificantCalcs!A32","v":"Y"},{"$f":"StatisticallySignificantCalcs!J32","v":"N"}]
[null,null,"   Foreign Born",{"$f":"CntyDataLinkPrior10YearEstimate!$Z136","v":638},{"$f":"CntyDataLinkPrior10YearEstimate!$AA$136","v":146},2.1384996983307637E-2,null,{"$f":"CntyDataLinkPrior5YearEstimates!$Z136","v":825},{"$f":"CntyDataLinkPrior5YearEstimates!$AA$136","v":226},2.7452415812591509E-2,null,{"$f":"CntyDataLink!$Z136","v":1176},{"$f":"CntyDataLink!$AA$136","v":341},3.6389516353621934E-2,{"$f":"StatisticallySignificantCalcs!A33","v":"Y"},{"$f":"StatisticallySignificantCalcs!J33","v":"N"}]
[null,null,"      Naturalized Citizen",{"$f":"CntyDataLinkPrior10YearEstimate!$AB136","v":412},{"$f":"CntyDataLinkPrior10YearEstimate!$AC$136","v":126},{"$f":"D17/$L$7","v":1.2748708110282513E-2},null,{"$f":"CntyDataLinkPrior5YearEstimates!$AB136","v":370},{"$f":"CntyDataLinkPrior5YearEstimates!$AC$136","v":127},1.2311992546253162E-2,null,{"$f":"CntyDataLink!$AB136","v":634},{"$f":"CntyDataLink!$AC$136","v":269},1.9618157626017266E-2,{"$f":"StatisticallySignificantCalcs!A34","v":"Y"},{"$f":"StatisticallySignificantCalcs!J34","v":"N"}]
[null,null,"      Not a Citizen",{"$f":"CntyDataLinkPrior10YearEstimate!$AD$136","v":226},{"$f":"CntyDataLinkPrior10YearEstimate!$AE$136","v":90},{"$f":"D18/$L$7","v":6.9932233808831269E-3},null,{"$f":"CntyDataLinkPrior5YearEstimates!$AD$136","v":455},{"$f":"CntyDataLinkPrior5YearEstimates!$AE$136","v":186},1.5140423266338347E-2,null,{"$f":"CntyDataLink!$AD$136","v":542},{"$f":"CntyDataLink!$AE$136","v":276},1.6771358727604668E-2,{"$f":"StatisticallySignificantCalcs!A35","v":"N"},{"$f":"StatisticallySignificantCalcs!J35","v":"N"}]
[null,null,null,{"$f":"\"Source: \"&D41&\", \"&H41&\" and \"&L41& \" American Community Survey Table B05002.\"","v":"Source: 2008-2012, 2013-2017 and 2018-2022 American Community Survey Table B05002."}]
[]
[]
[]
[]
[]
[]
[]
[]
[]
[]
[]
[]
[]
[]
[]
[]
[]
[]
[]
[]
[null,null,"Place of Residence Prior year for Population"]
[null,null,"Universe: Population",{"$f":"D5","v":"2008-2012"},null,null,null,{"$f":"H5","v":"2013-2017"},null,null,null,{"$f":"L5","v":"2018-2022"},null,null,"Statistically Significant Change "]
[null,null,null,"Estimate","Margin of Error",null,null,"Estimate","Margin of Error",null,null,"Estimate","Margin of Error",null,{"$f":"O6","v":"2012-2022"},{"$f":"P6","v":"2017-2022"}]
[null,null,"  Total:",{"$f":"CntyDataLinkPrior10YearEstimate!$AF$136","v":29580},{"$f":"CntyDataLinkPrior10YearEstimate!$AG$136","v":105},null,null,{"$f":"CntyDataLinkPrior5YearEstimates!$AF$136","v":29814},{"$f":"CntyDataLinkPrior5YearEstimates!$AG$136","v":125},null,null,{"$f":"CntyDataLink!$AF$136","v":32155},{"$f":"CntyDataLink!$AG$136","v":96},null,{"$f":"StatisticallySignificantCalcs!$A36","v":"Y"},{"$f":"StatisticallySignificantCalcs!$J36","v":"N"}]
["Same House",null,"    Same House ",{"$f":"CntyDataLinkPrior10YearEstimate!$AH$136","v":24693},{"$f":"CntyDataLinkPrior10YearEstimate!$AI$136","v":859},{"$f":"IF($D$44=\"-\",\"-\",VALUE(D44/$D$43))","v":0.83478701825557811},null,{"$f":"CntyDataLinkPrior5YearEstimates!$AH$136","v":25030},{"$f":"CntyDataLinkPrior5YearEstimates!$AI$136","v":786},{"$f":"IF($D$44=\"-\",\"-\",VALUE(H44/$H$43))","v":0.83953847185885822},null,{"$f":"CntyDataLink!$AH$136","v":29240},{"$f":"CntyDataLink!$AI$136","v":645},{"$f":"IF($L$44=\"-\",\"-\",VALUE(L44/$L$43))","v":0.90934535842015241},{"$f":"StatisticallySignificantCalcs!$A37","v":"Y"},{"$f":"StatisticallySignificantCalcs!$J37","v":"Y"}]
["Different House",null,"    Different House 1  ",{"$f":"CntyDataLinkPrior10YearEstimate!$AJ$136","v":4887},{"$f":"CntyDataLinkPrior10YearEstimate!$AK$136","v":967.84399569352081},{"$f":"IF($D$45=\"-\",\"-\",VALUE(D45/$D$43))","v":0.16521298174442189},null,{"$f":"CntyDataLinkPrior5YearEstimates!$AJ$136","v":4784},{"$f":"CntyDataLinkPrior5YearEstimates!$AK$136","v":770.96562828702031},{"$f":"IF($D$44=\"-\",\"-\",VALUE(H45/$H$43))","v":0.16046152814114176},null,{"$f":"CntyDataLink!$AJ$136","v":2915},{"$f":"CntyDataLink!$AK$136","v":636.06682038917893},{"$f":"IF($L$44=\"-\",\"-\",VALUE(L45/$L$43))","v":9.0654641579847609E-2},{"$f":"StatisticallySignificantCalcs!$A38","v":"N"},{"$f":"StatisticallySignificantCalcs!$J38","v":"Y"}]
[null,null,"      in New Hampshire",{"$f":"CntyDataLinkPrior10YearEstimate!$AL$136","v":3990},{"$f":"CntyDataLinkPrior10YearEstimate!$AM$136","v":758.50181278623188},{"$f":"IF($D$46=\"-\",\"-\",VALUE(D46/$D$43))","v":0.13488843813387424},null,{"$f":"CntyDataLinkPrior5YearEstimates!$AL$136","v":3833},{"$f":"CntyDataLinkPrior5YearEstimates!$AM$136","v":703.97301084629657},0.12856376199101094,null,{"$f":"CntyDataLink!$AL$136","v":2022},{"$f":"CntyDataLink!$AM$136","v":509.83624822093611},6.288291090032655E-2,{"$f":"StatisticallySignificantCalcs!$A39","v":"N"},{"$f":"StatisticallySignificantCalcs!$J39","v":"N"}]
[null,null,"          Same county",{"$f":"CntyDataLinkPrior10YearEstimate!$AN$136","v":3164},{"$f":"CntyDataLinkPrior10YearEstimate!$AO$136","v":666},{"$f":"IF($D$47=\"-\",\"-\",VALUE(D47/$D$43))","v":0.10696416497633536},null,{"$f":"CntyDataLinkPrior5YearEstimates!$AN$136","v":3353},{"$f":"CntyDataLinkPrior5YearEstimates!$AO$136","v":677},0.1124639431139733,null,{"$f":"CntyDataLink!$AN$136","v":1534},{"$f":"CntyDataLink!$AO$136","v":363},4.7706422018348627E-2,{"$f":"StatisticallySignificantCalcs!$A40","v":"N"},{"$f":"StatisticallySignificantCalcs!$J40","v":"Y"}]
[null,null,"          Different county",{"$f":"CntyDataLinkPrior10YearEstimate!$AP$136","v":826},{"$f":"CntyDataLinkPrior10YearEstimate!$AQ$136","v":363},{"$f":"IF($D$48=\"-\",\"-\",VALUE(D48/$D$43))","v":2.7924273157538877E-2},null,{"$f":"CntyDataLinkPrior5YearEstimates!$AP$136","v":480},{"$f":"CntyDataLinkPrior5YearEstimates!$AQ$136","v":193},1.6099818877037632E-2,null,{"$f":"CntyDataLink!$AP$136","v":488},{"$f":"CntyDataLink!$AQ$136","v":358},1.517648888197792E-2,{"$f":"StatisticallySignificantCalcs!$A41","v":"N"},{"$f":"StatisticallySignificantCalcs!$J41","v":"N"}]
["Different State",null,"      in Different state",{"$f":"CntyDataLinkPrior10YearEstimate!$AR$136","v":891},{"$f":"CntyDataLinkPrior10YearEstimate!$AS$136","v":601},{"$f":"IF($D$49=\"-\",\"-\",VALUE(D49/$D$43))","v":3.0121703853955375E-2},null,{"$f":"CntyDataLinkPrior5YearEstimates!$AR$136","v":926},{"$f":"CntyDataLinkPrior5YearEstimates!$AS$136","v":313},3.1059233916951767E-2,null,{"$f":"CntyDataLink!$AR$136","v":854},{"$f":"CntyDataLink!$AS$136","v":378},2.6558855543461359E-2,{"$f":"StatisticallySignificantCalcs!$A42","v":"N"},{"$f":"StatisticallySignificantCalcs!$J42","v":"N"}]
["Eleswhere",null,"       Elsewhere",{"$f":"CntyDataLinkPrior10YearEstimate!$AT$136","v":6},{"$f":"CntyDataLinkPrior10YearEstimate!$AU$136","v":14},{"$f":"IF($D$50=\"-\",\"-\",VALUE(D50/$D$43))","v":2.0283975659229209E-4},null,{"$f":"CntyDataLinkPrior5YearEstimates!$AT$136","v":25},{"$f":"CntyDataLinkPrior5YearEstimates!$AU$136","v":29},8.3853223317904336E-4,null,{"$f":"CntyDataLink!$AT$136","v":39},{"$f":"CntyDataLink!$AU$136","v":42},1.2128751360597108E-3,{"$f":"StatisticallySignificantCalcs!$A43","v":"N"},{"$f":"StatisticallySignificantCalcs!$J43","v":"N"}]
[]
[null,null,"Data from the American Community Survey are estimates"]
[]
[null,null,"1   The number for Different House was calculated by adding In New Hampshire, In Different State, and Elsewhere totals. The number is not located in the source Table B07003."]
[]
[]
[null,null,{"$f":"\"Source: \"&D41&\", \"&H41&\" and \"&L41& \" American Community Survey Table B07003.\"","v":"Source: 2008-2012, 2013-2017 and 2018-2022 American Community Survey Table B07003."}]

{"sheet":"ACS_Table_B05002","index":57,"n_rows":84,"n_cols":28,"rows_kept":84,"cut":false,"hidden":true,"merged":[]}
[null,"B05002. PLACE OF BIRTH BY CITIZENSHIP STATUS"]
[null,"Universe: TOTAL POPULATION"]
[null,"Data Set: 2018-2022 American Community Survey 5-Year Estimates"]
[]
[null,null,"Barrington",null,"Dover",null,"Durham",null,"Farmington",null,"Lee",null,"Madbury",null,"Middleton",null,"Milton",null,"New Durham",null,"Rochester",null,"Rollinsford",null,"Somersworth",null,"Strafford"]
[null,null,"Estimate","Margin Of Error","Estimate","Margin Of Error","Estimate","Margin Of Error","Estimate","Margin Of Error","Estimate","Margin Of Error","Estimate","Margin Of Error","Estimate","Margin Of Error","Estimate","Margin Of Error","Estimate","Margin Of Error","Estimate","Margin Of Error","Estimate","Margin Of Error","Estimate","Margin Of Error","Estimate","Margin Of Error"]
[null,"Total:",9339,19,32849,21,15073,41,6762,17,4547,15,2213,277,1537,276,4509,17,2711,17,32573,26,2597,24,11994,26,4261,26]
[null,"Native:",9229,81,30934,436,14245,228,6490,210,4273,238,2068,293,1507,269,4429,65,2701,21,31700,281,2555,41,11278,259,4215,45]
[null,"Born in state of residence",4917,513,13960,854,4874,411,3272,521,1846,367,1011,230,767,157,2643,327,1539,178,16234,1006,1280,175,5901,505,1997,235]
[null,"Born in other state in the United States:",4241,521,16307,928,9268,443,3202,501,2240,369,1012,181,735,175,1709,332,1142,169,14980,1003,1250,177,5093,529,2157,237]
[null,"Northeast",3249,525,11068,771,7462,495,2283,487,1526,280,732,149,533,130,1415,319,879,149,10560,954,974,148,3497,517,1694,190]
[null,"Midwest",284,164,1517,330,608,162,273,122,165,119,86,34,57,30,161,95,138,74,902,265,45,34,578,256,145,77]
[null,"South",421,163,1996,468,654,147,309,170,317,151,155,81,118,73,67,42,77,39,2070,476,196,96,701,344,134,68]
[null,"West",287,147,1726,403,544,170,337,188,232,188,39,21,27,16,66,62,48,28,1448,408,35,26,317,195,184,89]
[null,"Born outside the United States:",71,85,667,207,103,62,16,24,187,166,45,24,5,6,77,52,20,25,486,236,25,19,284,193,61,53]
[null,"Puerto Rico",0,17,229,120,0,19,0,17,0,12,0,12,0,12,0,12,0,12,36,41,0,12,36,54,0,12]
[null,"U.S. Island Areas",0,17,0,25,0,19,0,17,0,12,0,12,0,12,0,12,0,12,66,88,0,12,0,19,0,12]
[null,"Born abroad of American parent(s)",71,85,438,186,103,62,16,24,187,166,45,24,5,6,77,52,20,25,384,208,25,19,248,181,61,53]
[null,"Foreign born:",110,78,1915,441,828,222,272,211,274,238,145,75,30,23,80,62,10,12,873,280,42,34,716,257,46,34]
[null,"Naturalized U.S. citizen",28,28,1075,354,512,147,160,128,56,74,60,41,7,7,46,41,10,12,565,222,16,22,448,207,27,28]
[null,"Europe",16,19,288,119,161,78,25,36,0,12,18,15,4,6,9,16,4,6,114,73,0,12,98,73,7,10]
[null,"Asia",0,17,445,256,261,119,0,17,56,74,41,36,0,12,16,26,0,12,243,152,0,12,273,181,1,2]
[null,"Africa",12,20,85,115,31,28,110,113,0,12,0,12,0,12,0,12,0,12,25,42,0,12,0,19,11,23]
[null,"Oceania",0,17,0,25,1,3,0,17,0,12,0,12,0,12,0,12,0,12,48,75,0,12,0,19,0,12]
[null,"Latin America",0,17,127,86,41,31,25,50,0,12,1,5,0,12,0,12,6,10,96,123,12,21,62,93,0,12]
[null,"Northern America",0,17,130,106,17,19,0,17,0,12,0,12,3,5,21,24,0,12,39,35,4,7,15,25,8,13]
[null,"Not a U.S. citizen",82,74,840,404,316,143,112,172,218,209,85,64,23,24,34,32,0,12,308,182,26,25,268,166,19,21]
[null,"Europe",32,51,185,128,78,48,0,17,0,12,33,42,14,22,9,14,0,12,76,62,12,12,19,33,8,12]
[null,"Asia",0,17,483,393,117,70,112,172,173,202,52,51,6,9,14,25,0,12,142,139,0,12,188,155,11,18]
[null,"Africa",0,17,17,12,13,19,0,17,0,12,0,12,0,12,0,12,0,12,0,25,0,12,0,19,0,12]
[null,"Oceania",0,17,8,14,5,9,0,17,0,12,0,12,0,12,0,12,0,12,0,25,0,12,0,19,0,12]
[null,"Latin America",50,61,86,51,0,19,0,17,20,26,0,12,0,12,1,2,0,12,26,28,14,20,44,53,0,12]
[null,"Northern America",0,17,61,62,103,92,0,17,25,36,0,12,3,4,10,16,0,12,64,77,0,12,17,27,0,12]
[]
[]
[]
[]
[]
[]
[null,"B05002. PLACE OF BIRTH BY CITIZENSHIP STATUS"]
[null,"Universe: TOTAL POPULATION"]
[null,"Data Set: 2013-2017 American Community Survey 5-Year Estimates"]
[]
[null,null,"Barrington",null,"Dover",null,"Durham",null,"Farmington",null,"Lee",null,"Madbury",null,"Middleton",null,"Milton",null,"New Durham",null,"Rochester",null,"Rollinsford",null,"Somersworth",null,"Strafford"]
[null,null,"Estimate","Margin Of Error","Estimate","Margin Of Error","Estimate","Margin Of Error","Estimate","Margin Of Error","Estimate","Margin Of Error","Estimate","Margin Of Error","Estimate","Margin Of Error","Estimate","Margin Of Error","Estimate","Margin Of Error","Estimate","Margin Of Error","Estimate","Margin Of Error","Estimate","Margin Of Error","Estimate","Margin Of Error"]
[null,"Total:",8841,20,30901,45,16148,27,6834,16,4375,18,1906,157,1687,154,4602,18,2663,22,30212,21,2529,20,11797,21,4057,15]
[null,"Native:",8661,150,28217,433,15015,248,6762,76,3959,190,1807,160,1675,151,4522,60,2646,26,29244,305,2484,29,10745,227,3923,78]
[null,"Born in state of residence",4909,540,13162,853,4776,340,4378,460,1566,270,864,142,1017,132,2623,220,1525,134,16587,826,1443,113,5817,479,1747,234]
[null,"Born in other state in the United States:",3649,549,14738,700,10060,362,2234,456,2289,291,908,118,658,104,1882,220,1087,127,12268,806,995,117,4771,478,2130,240]
[null,"Northeast",3056,569,10999,732,7817,397,1738,422,1728,300,627,88,455,80,1555,228,895,117,9401,661,765,115,3673,491,1499,214]
[null,"Midwest",167,154,1224,260,610,139,33,57,224,125,87,34,78,42,91,42,57,39,490,135,72,36,359,149,176,83]
[null,"South",279,152,1519,284,1061,199,308,188,210,141,121,35,96,46,90,52,75,40,1604,424,123,67,418,176,341,138]
[null,"West",147,119,996,214,572,122,155,111,127,95,73,40,29,21,146,61,60,36,773,279,35,24,321,132,114,76]
[null,"Born outside the United States:",103,101,317,117,179,68,150,97,104,87,35,19,0,11,17,19,34,31,389,159,46,41,157,92,46,33]
[null,"Puerto Rico",0,16,36,35,9,18,43,72,0,11,0,11,0,11,0,11,0,11,21,33,0,11,25,37,6,9]
[null,"U.S. Island Areas",0,16,0,24,0,18,0,16,0,11,0,11,0,11,0,11,0,11,0,24,0,11,0,18,0,11]
[null,"Born abroad of American parent(s)",103,101,281,107,170,67,107,66,104,87,35,19,0,11,17,19,34,31,368,158,46,41,132,82,40,31]
[null,"Foreign born:",180,149,2684,434,1133,250,72,75,416,189,99,48,12,10,80,54,17,15,968,303,45,23,1052,227,134,75]
[null,"Naturalized U.S. citizen",167,146,1068,276,358,107,37,47,214,119,70,39,9,8,47,46,12,12,364,121,40,21,444,144,80,53]
[null,"Not a U.S. citizen",13,21,1616,368,775,229,35,40,202,133,29,27,3,5,33,27,5,8,604,261,5,8,608,226,54,52]
[]
[]
[]
[null,"B05002. PLACE OF BIRTH BY CITIZENSHIP STATUS"]
[null,"Universe: TOTAL POPULATION"]
[null,"Data Set: 2008-2012 American Community Survey 5-Year Estimates"]
[]
[null,null,"Barrington",null,"Dover",null,"Durham",null,"Farmington",null,"Lee",null,"Madbury",null,"Middleton",null,"Milton",null,"New Durham",null,"Rochester",null,"Rollinsford",null,"Somersworth",null,"Strafford"]
[null,null,"Estimate","Margin Of Error","Estimate","Margin Of Error","Estimate","Margin Of Error","Estimate","Margin Of Error","Estimate","Margin Of Error","Estimate","Margin Of Error","Estimate","Margin Of Error","Estimate","Margin Of Error","Estimate","Margin Of Error","Estimate","Margin Of Error","Estimate","Margin Of Error","Estimate","Margin Of Error","Estimate","Margin Of Error"]
[null,"Total:",8591,19,30021,29,14695,19,6768,25,4334,22,2017,164,1532,166,4566,43,2627,18,29830,29,2540,18,11782,30,3992,17]
[null,"Native:",8541,48,28260,331,13754,229,6651,97,4154,121,1832,160,1521,167,4466,74,2544,44,29223,170,2497,39,10660,403,3903,81]
[null,"Born in state of residence",4570,490,13456,771,4808,438,4106,293,1726,216,928,141,882,128,2656,245,1449,152,16719,775,1534,124,6141,508,1984,170]
[null,"Born in other state in the United States:",3933,484,14430,778,8807,465,2497,309,2345,248,878,107,636,102,1810,239,1069,138,12202,747,941,119,4471,504,1843,205]
[null,"Northeast",3102,375,10787,745,7193,447,1810,289,1747,254,612,97,518,99,1557,238,882,140,9456,610,730,103,2909,431,1314,161]
[null,"Midwest",323,124,996,201,659,189,115,72,311,137,167,93,39,34,28,26,93,39,1050,253,59,25,378,149,231,120]
[null,"South",359,182,1599,310,614,171,339,168,162,105,77,33,52,22,105,72,72,38,1105,232,90,48,928,497,214,77]
[null,"West",149,78,1048,229,341,112,233,113,125,98,22,17,27,15,120,84,22,19,591,179,62,45,256,121,84,48]
[null,"Born outside the United States:",38,37,374,133,139,61,48,47,83,72,26,20,3,4,0,11,26,19,302,137,22,22,48,41,76,50]
[null,"Puerto Rico",0,16,44,42,13,20,17,29,28,43,0,11,0,11,0,11,0,11,12,23,0,11,0,18,0,11]
[null,"U.S. Island Areas",0,16,0,24,0,18,0,16,0,11,0,11,0,11,0,11,0,11,0,21,0,11,0,18,0,11]
[null,"Born abroad of American parent(s)",38,37,330,128,126,61,31,38,55,58,26,20,3,4,0,11,26,19,290,140,22,22,48,41,76,50]
[null,"Foreign born:",50,43,1761,333,941,224,117,92,180,119,185,109,11,10,100,63,83,44,607,171,43,32,1122,399,89,78]
[null,"Naturalized U.S. citizen",30,34,795,223,423,166,89,86,138,105,85,51,7,8,33,31,55,41,401,134,39,32,427,191,55,46]
[null,"Not a U.S. citizen",20,25,966,261,518,182,28,34,42,40,100,79,4,6,67,54,28,20,206,94,4,7,695,329,34,38]

{"sheet":"ACS_Table_B07003","index":58,"n_rows":89,"n_cols":28,"rows_kept":89,"cut":false,"hidden":true,"merged":[]}
[null,"B07003. GEOGRAPHICAL MOBILITY IN THE PAST YEAR BY SEX FOR CURRENT RESIDENCE IN THE UNITED STATES - Universe:  POPULATION 1 YEAR AND OVER IN THE UNITED STATES"]
[null,"Data Set: 2018-2022 American Community Survey 5-Year Estimates"]
[]
[]
[null,null,"Barrington",null,"Dover",null,"Durham",null,"Farmington",null,"Lee",null,"Madbury",null,"Middleton",null,"Milton",null,"New Durham",null,"Rochester",null,"Rollinsford",null,"Somersworth",null,"Strafford"]
[null,null,"Estimate","Margin Of Error","Estimate","Margin Of Error","Estimate","Margin Of Error","Estimate","Margin Of Error","Estimate","Margin Of Error","Estimate","Margin Of Error","Estimate","Margin Of Error","Estimate","Margin Of Error","Estimate","Margin Of Error","Estimate","Margin Of Error","Estimate","Margin Of Error","Estimate","Margin Of Error","Estimate","Margin Of Error"]
[null,"Total:",9290,62,32422,160,15035,53,6737,45,4524,38,2208,278,1519,275,4451,85,2662,51,32410,99,2552,41,11898,71,4250,31]
[null,"Male",4715,335,16113,484,7248,425,3088,265,2189,226,1027,131,808,165,2364,215,1331,92,16339,499,1018,134,6029,415,2009,127]
[null,"Female",4575,336,16309,470,7787,422,3649,270,2335,218,1181,213,711,142,2087,174,1331,91,16071,512,1534,134,5869,416,2241,130]
[null,"Same house 1 year ago:",8771,236,26312,709,6875,450,6227,218,3994,291,1988,286,1411,266,4201,114,2534,89,29408,669,2253,148,10360,544,3970,168]
[null,"Male",4444,343,12972,552,3425,297,2882,269,2001,247,943,132,767,165,2192,199,1261,97,14930,628,890,128,5206,462,1863,141]
[null,"Female",4327,356,13340,559,3450,315,3345,325,1993,261,1045,208,644,125,2009,184,1273,99,14478,571,1363,174,5154,457,2107,159]
[null,"Moved within same county:",272,184,2445,483,2987,450,334,182,149,156,112,75,53,37,137,80,39,44,1322,346,92,60,749,337,138,134]
[null,"Male",143,97,1042,291,1263,288,129,95,56,58,44,33,16,11,76,55,24,41,496,205,44,35,374,208,54,62]
[null,"Female",129,94,1403,295,1724,355,205,157,93,99,68,52,37,34,61,53,15,15,826,229,48,33,375,195,84,79]
[null,"Moved from different county within same state:",80,86,1540,409,2275,435,150,104,182,131,26,26,35,32,63,52,36,30,638,362,28,28,401,242,109,80]
[null,"Male",39,67,1108,385,1217,337,77,56,95,75,19,22,13,13,60,51,14,16,355,191,4,7,201,129,65,48]
[null,"Female",41,44,432,145,1058,212,73,83,87,58,7,9,22,21,3,6,22,26,283,191,24,28,200,149,44,39]
[null,"Moved from different state:",135,145,1914,500,2814,406,26,38,184,216,81,64,12,12,50,59,53,34,987,392,179,104,376,227,33,41]
[null,"Male",73,76,954,269,1308,275,0,17,22,31,21,20,7,9,36,57,32,24,553,211,80,51,248,177,27,37]
[null,"Female",62,72,960,324,1506,262,26,38,162,188,60,64,5,6,14,19,21,19,434,307,99,70,128,73,6,9]
[null,"Moved from abroad:",32,51,211,164,84,64,0,17,15,28,1,2,8,12,0,12,0,12,55,41,0,12,12,20,0,12]
[null,"Male",16,25,37,38,35,40,0,17,15,28,0,12,5,9,0,12,0,12,5,8,0,12,0,19,0,12]
[null,"Female",16,25,174,166,49,39,0,17,0,12,1,2,3,4,0,12,0,12,50,39,0,12,12,20,0,12]
[]
[null,"Calculated B07003. GEOGRAPHICAL MOBILITY IN THE PAST YEAR BY SEX FOR CURRENT RESIDENCE IN THE UNITED STATES "]
[null,null,{"$f":"C5","v":"Barrington"},null,"Dover",null,"Durham",null,"Farmington",null,"Lee",null,"Madbury",null,"Middleton",null,"Milton",null,"New Durham",null,"Rochester",null,"Rollinsford",null,{"$f":"Y5","v":"Somersworth"},null,{"$f":"AA5","v":"Strafford"}]
[null,null,"Estimate","Margin Of Error","Estimate","Margin Of Error","Estimate","Margin Of Error","Estimate","Margin Of Error","Estimate","Margin Of Error","Estimate","Margin Of Error","Estimate","Margin Of Error","Estimate","Margin Of Error","Estimate","Margin Of Error","Estimate","Margin Of Error","Estimate",{"$f":"X6","v":"Margin Of Error"},{"$f":"Y6","v":"Estimate"},{"$f":"Z6","v":"Margin Of Error"},{"$f":"AA6","v":"Estimate"},{"$f":"AB6","v":"Margin Of Error"}]
[]
[null,"  Total:",{"$f":"C7","v":9290},{"$f":"D7","v":62},{"$f":"E7","v":32422},160,15035,53,6737,45,4524,38,2208,278,1519,275,4451,85,2662,51,32410,99,2552,41,{"$f":"Y7","v":11898},{"$f":"Z7","v":71},{"$f":"AA7","v":4250},{"$f":"AB7","v":31}]
[null,"    Same house ",{"$f":"C10","v":8771},{"$f":"D10","v":236},{"$f":"E10","v":26312},709,6875,450,6227,218,3994,291,1988,286,1411,266,4201,114,2534,89,29408,669,2253,148,{"$f":"Y10","v":10360},{"$f":"Z10","v":544},{"$f":"AA10","v":3970},{"$f":"AB10","v":168}]
[null,"    Different house 2",{"$f":"C13+C16+C19+C22","v":519},{"$f":"SQRT((D13^2)+(D16^2)+(D19^2)+(D22^2))","v":254.71160162034238},{"$f":"E13+E16+E19+E22","v":6110},{"$f":"SQRT((F13^2)+(F16^2)+(F19^2)+(F22^2))","v":823.08322786945428},{"$f":"G13+G16+G19+G22","v":8160},{"$f":"SQRT((H13^2)+(H16^2)+(H19^2)+(H22^2))","v":748.77032526670018},{"$f":"I13+I16+I19+I22","v":510},{"$f":"SQRT((J13^2)+(J16^2)+(J19^2)+(J22^2))","v":213.71242359769354},{"$f":"K13+K16+K19+K22","v":530},{"$f":"SQRT((L13^2)+(L16^2)+(L19^2)+(L22^2))","v":298.22307087145356},{"$f":"M13+M16+M19+M22","v":220},{"$f":"SQRT((N13^2)+(N16^2)+(N19^2)+(N22^2))","v":101.98529305738157},{"$f":"O13+O16+O19+O22","v":108},{"$f":"SQRT((P13^2)+(P16^2)+(P19^2)+(P22^2))","v":51.778373863998475},{"$f":"Q13+Q16+Q19+Q22","v":250},{"$f":"SQRT((R13^2)+(R16^2)+(R19^2)+(R22^2))","v":112.8228700219951},{"$f":"S13+S16+S19+S22","v":128},{"$f":"SQRT((T13^2)+(T16^2)+(T19^2)+(T22^2))","v":64.311740763254107},{"$f":"U13+U16+U19+U22","v":3002},{"$f":"SQRT((V13^2)+(V16^2)+(V19^2)+(V22^2))","v":637.26368168914189},{"$f":"W13+W16+W19+W22","v":299},{"$f":"SQRT((X13^2)+(X16^2)+(X19^2)+(X22^2))","v":123.87090053761618},{"$f":"Y13+Y16+Y19+Y22","v":1538},{"$f":"SQRT((Z13^2)+(Z16^2)+(Z19^2)+(Z22^2))","v":473.35187757100954},{"$f":"AA13+AA16+AA19+AA22","v":280},{"$f":"SQRT((AB13^2)+(AB16^2)+(AB19^2)+(AB22^2))","v":161.80543872194161}]
[null,"      in New Hampshire",{"$f":"C16+C13","v":352},{"$f":"SQRT((D16^2)+(D13^2))","v":203.10588371585891},{"$f":"E16+E13","v":3985},{"$f":"SQRT((F16^2)+(F13^2))","v":632.90599617952739},{"$f":"G16+G13","v":5262},{"$f":"SQRT((H16^2)+(H13^2))","v":625.87938135075194},{"$f":"I16+I13","v":484},{"$f":"SQRT((J16^2)+(J13^2))","v":209.61870145576228},{"$f":"K16+K13","v":331},{"$f":"SQRT((L16^2)+(L13^2))","v":203.70812453115363},{"$f":"M16+M13","v":138},{"$f":"SQRT((N16^2)+(N13^2))","v":79.378838489864535},{"$f":"O16+O13","v":88},{"$f":"SQRT((P16^2)+(P13^2))","v":48.918299234540036},{"$f":"Q16+Q13","v":200},{"$f":"SQRT((R16^2)+(R13^2))","v":95.414883535012507},{"$f":"S16+S13","v":75},{"$f":"SQRT((T16^2)+(T13^2))","v":53.254107822777392},{"$f":"U16+U13","v":1960},{"$f":"SQRT((V16^2)+(V13^2))","v":500.75942327628741},{"$f":"W16+W13","v":120},{"$f":"SQRT((X16^2)+(X13^2))","v":66.211781428987393},{"$f":"Y16+Y13","v":1150},{"$f":"SQRT((Z16^2)+(Z13^2))","v":414.88914181983603},{"$f":"AA16+AA13","v":247},{"$f":"SQRT((AB16^2)+(AB13^2))","v":156.06408939919524}]
[null,"          Same county",{"$f":"C13","v":272},{"$f":"D13","v":184},{"$f":"E13","v":2445},483,2987,450,334,182,149,156,112,75,53,37,137,80,39,44,1322,346,92,60,{"$f":"Y13","v":749},{"$f":"Z13","v":337},{"$f":"AA13","v":138},{"$f":"AB13","v":134}]
[null,"          Different county",{"$f":"C16","v":80},{"$f":"D16","v":86},{"$f":"E16","v":1540},409,2275,435,150,104,182,131,26,26,35,32,63,52,36,30,638,362,28,28,{"$f":"Y16","v":401},{"$f":"Z16","v":242},{"$f":"AA16","v":109},{"$f":"AB16","v":80}]
[null,"      in Different state",{"$f":"C19","v":135},{"$f":"D19","v":145},{"$f":"E19","v":1914},500,2814,406,26,38,184,216,81,64,12,12,50,59,53,34,987,392,179,104,{"$f":"Y19","v":376},{"$f":"Z19","v":227},{"$f":"AA19","v":33},{"$f":"AB19","v":41}]
[null,"       Elsewhere",{"$f":"C22","v":32},{"$f":"D22","v":51},{"$f":"E22","v":211},164,84,64,0,17,15,28,1,2,8,12,0,12,0,12,55,41,0,12,{"$f":"Y22","v":12},{"$f":"Z22","v":20},{"$f":"AA22","v":0},{"$f":"AB22","v":12}]
[]
[]
[]
[]
[]
[]
[]
[]
[]
[]
[]
[]
[]
[]
[]
[]
[]
[]
[]
[]
[]
[]
[null,"Calculated GEOGRAPHICAL MOBILITY IN THE PAST YEAR BY SEX FOR CURRENT RESIDENCE IN THE UNITED STATES"]
[null,"Universe:  POPULATION 1 YEAR AND OVER IN THE UNITED STATES"]
[null,"Data Set: 2013-2017 American Community Survey 5-Year Estimates"]
[null,null,"Barrington",null,"Dover",null,"Durham",null,"Farmington",null,"Lee",null,"Madbury",null,"Middleton",null,"Milton",null,"New Durham",null,"Rochester",null,"Rollinsford",null,"Somersworth",null,"Strafford"]
[null,null,"Estimate","Margin Of Error","Estimate","Margin Of Error","Estimate","Margin Of Error","Estimate","Margin Of Error","Estimate","Margin Of Error","Estimate","Margin Of Error","Estimate","Margin Of Error","Estimate","Margin Of Error","Estimate","Margin Of Error","Estimate","Margin Of Error","Estimate","Margin Of Error","Estimate","Margin Of Error","Estimate","Margin Of Error"]
[]
[null,"  Total:",8742,81,30519,171,16104,42,6720,107,4373,19,1877,155,1671,154,4551,43,2636,36,30009,107,2497,29,11593,119,4010,41]
[null,"    Same house ",7974,324,24279,750,7685,509,5897,424,4123,186,1656,153,1435,165,4256,136,2468,92,25432,715,2185,130,9551,454,3767,121]
[null,"    Different house 2",768,347.52553862989697,6240,875.73626166786084,8419,610.95417176740841,823,398.74051712862087,250,189.35416552059266,221,101.51847122568385,236,114.14902540100813,295,133.25164164091939,168,79.793483443198539,4577,720.63929951120485,312,136.35981812836215,2042,465.00322579526261,243,121.1899335753593]
[null,"      in New Hampshire",633,317.23335259710632,4502,775.48436476823952,5890,529.64894033689905,703,377.30756684699554,155,175.85505395068975,165,95.210293561148106,197,110.60289327137876,221,122.61321299109652,117,71.344235926947874,3908,681.43671753142269,210,109.14210919713803,1590,410.75783620035781,225,118.84864324004712]
[null,"          Same county",322,194,2935,676,4057,428,587,356,36,45,72,56,169,107,158,97,50,37,3339,640,169,106,1164,341,180,110]
[null,"          Different county",311,251,1567,380,1833,312,116,125,119,170,93,77,28,28,63,75,67,61,569,234,41,26,426,229,45,45]
[null,"      in Different state",135,141,1387,307,2278,289,77,107,15,21,54,35,39,26,74,51,51,34,646,233,102,81,347,191,18,21]
[null,"       Elsewhere",0,16,351,267,251,96,43,72,80,67,2,4,0,11,0,11,0,11,23,26,0,11,105,105,0,11]
[]
[]
[]
[null,"Calculated GEOGRAPHICAL MOBILITY IN THE PAST YEAR BY SEX FOR CURRENT RESIDENCE IN THE UNITED STATES"]
[null,"Universe:  POPULATION 1 YEAR AND OVER IN THE UNITED STATES"]
[null,"Data Set: 2008-2012 American Community Survey 5-Year Estimates"]
[null,null,"Barrington",null,"Dover",null,"Durham",null,"Farmington",null,"Lee",null,"Madbury",null,"Middleton",null,"Milton",null,"New Durham",null,"Rochester",null,"Rollinsford",null,"Somersworth",null,"Strafford"]
[null,null,"Estimate","Margin Of Error","Estimate","Margin Of Error","Estimate","Margin Of Error","Estimate","Margin Of Error","Estimate","Margin Of Error","Estimate","Margin Of Error","Estimate","Margin Of Error","Estimate","Margin Of Error","Estimate","Margin Of Error","Estimate","Margin Of Error","Estimate","Margin Of Error","Estimate","Margin Of Error","Estimate","Margin Of Error"]
[null,"Total",8457,80,29556,163,14635,37,6753,33,4334,22,2008,162,1518,166,4513,54,2613,23,29543,120,2505,32,11665,73,3992,17]
[null,"    Same house ",7534,376,23216,751,8449,555,5921,345,3913,228,1753,178,1438,164,4248,150,2479,82,24422,909,2105,118,8772,605,3618,293]
[null,"    Different house ",923,394.94429987024751,6340,778.15808162609221,6186,739.7337358806883,832,343.63498075719821,421,208.12496246245908,255,117.01281981048059,80,43.231932642434579,265,129.29423807734048,134,79.906195003891909,5121,883.45401691316113,400,139.77481890526633,2893,719.29757402621613,374,294.73208172847416]
[null,"      in New Hampshire",750,314.77134558278965,4966,691.38484218270219,3892,626.62349142048606,698,318.90437438203946,279,151.34728276384746,159,103.74005976477939,76,41.036569057366385,234,125.29964086141668,95,75.133215025047349,4443,815.78551102602944,325,133.41664064126334,2026,548.25267897202286,327,291.61961525247233]
[null,"          Same county",609,291,3732,598,2072,544,678,318,163,109,132,99,39,28,186,114,82,74,3687,755,242,102,1370,434,17,19]
[null,"          Different county",141,120,1234,347,1820,311,20,24,116,105,27,31,37,30,48,52,13,13,756,309,83,86,656,335,310,291]
[null,"      in Different state",173,238,1162,341,2056,375,134,127,111,139,90,53,4,8,17,24,33,26,675,339,51,36,790,462,10,15]
[null,"       Elsewhere",0,16,212,106,238,118,0,16,31,33,6,11,0,11,14,21,6,8,3,8,24,21,77,58,37,40]

{"sheet":"ACS_Table_B14001","index":59,"n_rows":98,"n_cols":28,"rows_kept":98,"cut":false,"hidden":true,"merged":[]}
[null,"B14001. SCHOOL ENROLLMENT BY LEVEL OF SCHOOL FOR THE POPULATION 3 YEARS AND OVER"]
[null,"Universe: POPULATION 3 YEARS AND OVER"]
[null,"Data Set: 2018-2022 American Community Survey 5-Year Estimates"]
[]
[null,null,"Barrington",null,"Dover",null,"Durham",null,"Farmington",null,"Lee",null,"Madbury",null,"Middleton",null,"Milton",null,"New Durham",null,"Rochester",null,"Rollinsford",null,"Somersworth",null,"Strafford"]
[null,null,"Estimate","Margin Of Error","Estimate","Margin Of Error","Estimate","Margin Of Error","Estimate","Margin Of Error","Estimate","Margin Of Error","Estimate","Margin Of Error","Estimate","Margin Of Error","Estimate","Margin Of Error","Estimate","Margin Of Error","Estimate","Margin Of Error","Estimate","Margin Of Error","Estimate","Margin Of Error","Estimate","Margin Of Error"]
[null,"Total:",9136,91,31708,257,14980,65,6462,162,4458,74,2132,272,1484,270,4388,87,2592,115,31919,174,2494,50,11599,153,4150,61]
[null,"Enrolled in school:",2230,242,6214,604,10281,434,917,261,1161,216,622,165,315,102,765,162,464,128,6955,582,366,108,2378,420,897,145]
[null,"Enrolled in nursery school, preschool",170,134,455,159,76,47,46,47,19,29,58,35,8,11,26,35,11,11,537,181,18,13,58,69,35,30]
[null,"Enrolled in kindergarten",307,165,292,119,69,36,82,81,37,40,7,10,6,9,44,39,49,40,337,138,17,18,0,19,62,43]
[null,"Enrolled in grade 1 to grade 4",431,155,945,230,337,90,93,87,310,137,65,38,57,29,251,122,68,35,1199,242,78,59,353,183,196,91]
[null,"Enrolled in grade 5 to grade 8",570,161,1187,321,382,153,463,213,220,145,200,93,82,52,116,60,58,39,1860,349,74,39,790,268,182,81]
[null,"Enrolled in grade 9 to grade 12",301,148,1288,305,272,105,151,83,237,136,158,78,69,37,301,120,204,102,1413,344,62,35,520,182,184,82]
[null,"Enrolled in college, undergraduate years",344,137,988,250,8849,479,51,50,105,101,88,47,89,40,6,7,56,37,1314,268,76,35,532,234,178,75]
[null,"Graduate or professional school",107,87,1059,345,296,131,31,47,233,122,46,35,4,5,21,23,18,16,295,142,41,25,125,95,60,49]
[null,"Not enrolled in school",6906,239,25494,552,4699,420,5545,232,3297,217,1510,186,1169,196,3623,166,2128,125,24964,581,2128,117,9221,376,3253,147]
[]
[]
[]
[null,"B14001. Calculated  SCHOOL ENROLLMENT BY LEVEL OF SCHOOL FOR THE POPULATION 3 YEARS AND OVER "]
[null,"Universe: POPULATION 3 YEARS AND OVER"]
[null,"Data Set: 2018-2022 American Community Survey 5-Year Estimates"]
[]
[null,null,"Alton",null,"Barnstead",null,"Belmont",null,"Center Harbor",null,"Gilford",null,"Gilmanton",null,"Laconia",null,"Meredith",null,"New Hampton",null,"Sanbornton",null,"Tilton"]
[null,null,"Estimate","Margin Of Error","Estimate","Margin Of Error","Estimate","Margin Of Error","Estimate","Margin Of Error","Estimate","Margin Of Error","Estimate","Margin Of Error","Estimate","Margin Of Error","Estimate","Margin Of Error","Estimate","Margin Of Error","Estimate","Margin Of Error","Estimate","Margin Of Error"]
[null,"Total:",{"$f":"C7","v":9136},91,31708,257,14980,65,6462,162,4458,74,2132,272,1484,270,4388,87,2592,115,31919,174,2494,50]
[null,"Enrolled in school:",2230,242,6214,604,10281,434,917,261,1161,216,622,165,315,102,765,162,464,128,6955,582,366,108]
[null,"Enrolled in nursery school, preschool, and Kindergarten",{"$f":"C9+C10","v":477},{"$f":"SQRT((D9^2)+(D10^2))","v":212.55822731665788},{"$f":"E9+E10","v":747},{"$f":"SQRT((F9^2)+(F10^2))","v":198.60010070490901},{"$f":"G9+G10","v":145},{"$f":"SQRT((H9^2)+(H10^2))","v":59.203040462462738},{"$f":"I9+I10","v":128},{"$f":"SQRT((J9^2)+(J10^2))","v":93.648278147545241},{"$f":"K9+K10","v":56},{"$f":"SQRT((L9^2)+(L10^2))","v":49.406477308142499},{"$f":"M9+M10","v":65},{"$f":"SQRT((N9^2)+(N10^2))","v":36.400549446402593},{"$f":"O9+O10","v":14},{"$f":"SQRT((P9^2)+(P10^2))","v":14.212670403551895},{"$f":"Q9+Q10","v":70},{"$f":"SQRT((R9^2)+(R10^2))","v":52.40229002629561},{"$f":"S9+S10","v":60},{"$f":"SQRT((T9^2)+(T10^2))","v":41.484937025383083},{"$f":"U9+U10","v":874},{"$f":"SQRT((V9^2)+(V10^2))","v":227.60711763914591},{"$f":"W9+W10","v":35},{"$f":"SQRT((X9^2)+(X10^2))","v":22.203603311174518}]
[null,"Enrolled in nursery school, preschool",97,82,46,54,42,49,10,12,40,51,121,63,109,56,102,90,6,10,61,27,64,74]
[null,"Enrolled in kindergarten",0,16,73,49,135,102,4,6,78,61,14,21,202,118,43,36,17,19,11,13,58,46]
[null,"Enrolled in grade Elementary School (grade 1 to grade 8)",{"$f":"C11+C12","v":1001},{"$f":"SQRT((D11^2)+(D12^2))","v":223.48601745970598},{"$f":"E11+E12","v":2132},{"$f":"SQRT((F11^2)+(F12^2))","v":394.89365657098114},{"$f":"G11+G12","v":719},{"$f":"SQRT((H11^2)+(H12^2))","v":177.50774630984418},{"$f":"I11+I12","v":556},{"$f":"SQRT((J11^2)+(J12^2))","v":230.08259386576813},{"$f":"K11+K12","v":530},{"$f":"SQRT((L11^2)+(L12^2))","v":199.48433522459854},{"$f":"M11+M12","v":265},{"$f":"SQRT((N11^2)+(N12^2))","v":100.46392387319938},{"$f":"O11+O12","v":139},{"$f":"SQRT((P11^2)+(P12^2))","v":59.539902586416787},{"$f":"Q11+Q12","v":367},{"$f":"SQRT((R11^2)+(R12^2))","v":135.95587519485872},{"$f":"S11+S12","v":126},{"$f":"SQRT((T11^2)+(T12^2))","v":52.40229002629561},{"$f":"U11+U12","v":3059},{"$f":"SQRT((V11^2)+(V12^2))","v":424.69400749245335},{"$f":"W11+W12","v":152},{"$f":"SQRT((X11^2)+(X12^2))","v":70.724818840347695}]
[null,"Enrolled in grade 9 to grade 12",{"$f":"C13","v":301},148,1288,305,272,105,151,83,237,136,158,78,69,37,301,120,204,102,1413,344,62,35]
[null,"Enrolled in Elementary and High School",{"$f":"C11+C12+C13","v":1302},{"$f":"SQRT((D11^2)+(D12^2)+(D13^2))","v":268.04850307360419},{"$f":"E11+E12+E13","v":3420},{"$f":"SQRT((F11^2)+(F12^2)+(F13^2))","v":498.9649286272533},{"$f":"G11+G12+G13","v":991},{"$f":"SQRT((H11^2)+(H12^2)+(H13^2))","v":206.23772690756655},{"$f":"I11+I12+I13","v":707},{"$f":"SQRT((J11^2)+(J12^2)+(J13^2))","v":244.59558458811148},{"$f":"K11+K12+K13","v":767},{"$f":"SQRT((L11^2)+(L12^2)+(L13^2))","v":241.43322058076433},{"$f":"M11+M12+M13","v":423},{"$f":"SQRT((N11^2)+(N12^2)+(N13^2))","v":127.18883598806933},{"$f":"O11+O12+O13","v":208},{"$f":"SQRT((P11^2)+(P12^2)+(P13^2))","v":70.099928673287536},{"$f":"Q11+Q12+Q13","v":668},{"$f":"SQRT((R11^2)+(R12^2)+(R13^2))","v":181.33946068079061},{"$f":"S11+S12+S13","v":330},{"$f":"SQRT((T11^2)+(T12^2)+(T13^2))","v":114.67344941179715},{"$f":"U11+U12+U13","v":4472},{"$f":"SQRT((V11^2)+(V12^2)+(V13^2))","v":546.53545173209034},{"$f":"W11+W12+W13","v":214},{"$f":"SQRT((X11^2)+(X12^2)+(X13^2))","v":78.911342657440571}]
[null,"Enrolled in College or Graduate School",{"$f":"C14+C15","v":451},{"$f":"SQRT((D14^2)+(D15^2))","v":162.28986413205232},{"$f":"E14+E15","v":2047},{"$f":"SQRT((F14^2)+(F15^2))","v":426.05750785545371},{"$f":"G14+G15","v":9145},{"$f":"SQRT((H14^2)+(H15^2))","v":496.59037445363356},{"$f":"I14+I15","v":82},{"$f":"SQRT((J14^2)+(J15^2))","v":68.622153857191051},{"$f":"K14+K15","v":338},{"$f":"SQRT((L14^2)+(L15^2))","v":158.38244852255568},{"$f":"M14+M15","v":134},{"$f":"SQRT((N14^2)+(N15^2))","v":58.600341295934449},{"$f":"O14+O15","v":93},{"$f":"SQRT((P14^2)+(P15^2))","v":40.311288741492746},{"$f":"Q14+Q15","v":27},{"$f":"SQRT((R14^2)+(R15^2))","v":24.041630560342615},{"$f":"S14+S15","v":74},{"$f":"SQRT((T14^2)+(T15^2))","v":40.311288741492746},{"$f":"U14+U15","v":1609},{"$f":"SQRT((V14^2)+(V15^2))","v":303.29523570277195},{"$f":"W14+W15","v":117},{"$f":"SQRT((X14^2)+(X15^2))","v":43.011626335213137}]
[null,"Not enrolled in school",{"$f":"C16","v":6906},239,25494,552,4699,420,5545,232,3297,217,1510,186,1169,196,3623,166,2128,125,24964,581,2128,117]
[]
[]
[null,"B14001. Calculated  SCHOOL ENROLLMENT BY LEVEL OF SCHOOL FOR THE POPULATION 3 YEARS AND OVER "]
[null,"Universe: POPULATION 3 YEARS AND OVER"]
[null,"Data Set: 2013-2017 American Community Survey 5-Year Estimates"]
[]
[null,null,"Barrington",null,"Dover",null,"Durham",null,"Farmington",null,"Lee",null,"Madbury",null,"Middleton",null,"Milton",null,"New Durham",null,"Rochester",null,"Rollinsford",null,"Somersworth",null,"Strafford"]
[null,null,"Estimate","Margin Of Error","Estimate","Margin Of Error","Estimate","Margin Of Error","Estimate","Margin Of Error","Estimate","Margin Of Error","Estimate","Margin Of Error","Estimate","Margin Of Error","Estimate","Margin Of Error","Estimate","Margin Of Error","Estimate","Margin Of Error","Estimate","Margin Of Error","Estimate","Margin Of Error","Estimate","Margin Of Error"]
[null,"Total:",8585,158,29944,211,15963,81,6596,127,4308,69,1827,152,1627,147,4458,66,2591,45,29345,216,2459,39,11211,235,3950,79]
[null,"Enrolled in school:",1925,418,7330,618,11440,305,1396,231,1189,184,577,112,408,81,966,166,549,102,6263,517,559,78,2447,362,1050,187]
[null,"Enrolled in nursery school, preschool, and Kindergarten",317,167.2752223134078,825,201.80436070610565,195,76.380625815713245,181,86.452298986203942,149,97.590983190046813,76,33.015148038438355,38,24.083189157584592,97,65.192024052026483,74,32.202484376209235,617,179.655225362359,38,24.186773244895647,309,142.23923509355637,52,39.11521443121589]
[null,"Enrolled in nursery school, preschool",242,141,387,150,97,55,76,57,74,68,45,27,11,16,63,55,26,19,305,130,27,21,221,126,34,33]
[null,"Enrolled in kindergarten",75,90,438,135,98,53,105,65,75,70,31,19,27,18,34,35,48,26,312,124,11,12,88,66,18,21]
[null,"Enrolled in grade Elementary School (grade 1 to grade 8)",941,283.1960451701259,2681,403.7189616552584,681,155.20631430454111,565,181.66452598127131,491,194,291,70.092795635500224,203,51.400389103585589,400,121.07848694132248,193,61.522353661088097,2782,345.90461112855957,305,58.898217290508889,958,230,464,133.41664064126334]
[null,"Enrolled in grade 9 to grade 12",408,158,1236,218,255,85,365,160,319,125,144,54,89,35,231,84,184,64,1532,306,82,47,692,177,306,102]
[null,"Enrolled in Elementary and High School",1349,324.28999367849758,3917,458.81695696650098,936,176.95762204550556,930,242.07849966488143,810,230.7834482799839,435,88.481636512894582,292,62.185207244167003,631,147.36349615830918,377,88.774996479864754,4314,461.82897267278503,387,75.352504935138029,1650,290.2223285689783,770,167.94046564184583]
[null,"Enrolled in College or Graduate School",259,191.38704240360684,2588,449.87220407577973,10309,438.28871762800372,285,132.67252918370102,230,128.00390619039717,66,27.586228448267445,78,34.828149534535996,238,100.24470060806208,98,46.324939287601879,1332,286.6391459657944,134,49.819674828324601,488,157.64834283937145,228,82.006097334283623]
[null,"Not enrolled in school",6660,399,22614,589,4523,300,5200,235,3119,182,1250,106,1219,132,3492,170,2042,91,23082,500,1900,75,8764,358,2900,157]
[]
[]
[]
[]
[]
[]
[]
[]
[]
[]
[]
[]
[]
[]
[]
[]
[]
[]
[]
[]
[]
[]
[]
[]
[]
[]
[]
[]
[]
[null,"B14001.Calculated  SCHOOL ENROLLMENT BY LEVEL OF SCHOOL FOR THE POPULATION 3 YEARS AND OVER "]
[null,"Universe: POPULATION 3 YEARS AND OVER"]
[null,"Data Set: 2008-2012 American Community Survey 5-Year Estimates"]
[]
[null,null,"Barrington",null,"Dover",null,"Durham",null,"Farmington",null,"Lee",null,"Madbury",null,"Middleton",null,"Milton",null,"New Durham",null,"Rochester",null,"Rollinsford",null,"Somersworth",null,"Strafford"]
[null,null,"Estimate","Margin Of Error","Estimate","Margin Of Error","Estimate","Margin Of Error","Estimate","Margin Of Error","Estimate","Margin Of Error","Estimate","Margin Of Error","Estimate","Margin Of Error","Estimate","Margin Of Error","Estimate","Margin Of Error","Estimate","Margin Of Error","Estimate","Margin Of Error","Estimate","Margin Of Error","Estimate","Margin Of Error"]
[null,"Total:",8154,145,28750,255,14509,59,6697,61,4288,44,1977,161,1474,157,4450,70,2568,40,29019,234,2390,63,11275,161,3910,57]
[null,"Enrolled in school:",2184,283,7389,649,9806,505,1719,298,1264,203,596,130,299,67,1095,174,721,131,6278,544,575,110,2720,317,1030,141]
[null,"Enrolled in nursery school, preschool, and Kindergarten",329,113.3181362359971,823,186.95453992882869,323,126.7162183779172,144,89.944427287075428,148,79.404030124421269,39,20.248456731316587,26,15.811388300841896,126,71.56116265125938,58,31.400636936215164,587,160.2404443328837,51,31.304951684997057,483,174.0919297382851,86,56.850681614207581]
[null,"Enrolled in nursery school, preschool",256,104,469,154,222,116,60,43,92,68,11,11,10,9,36,39,32,25,259,99,34,28,219,118,30,36]
[null,"Enrolled in kindergarten",73,45,354,106,101,51,84,79,56,41,28,17,16,13,90,60,26,19,328,126,17,14,264,128,56,44]
[null,"Enrolled in grade Elementary School (grade 1 to grade 8)",1073,228.71160880025309,2337,294.26688566673619,629,137.59360450253493,955,272.61144510089815,488,136.35981812836215,271,66.483080554378645,148,48.877397639399746,545,137.20787149431334,351,88.526832090615329,2555,341.60357140990197,257,63.411355449950761,999,208.00961516237658,556,116.72617529928752]
[null,"Enrolled in grade 9 to grade 12",413,134,1368,249,389,128,255,120,377,122,101,40,78,36,287,122,131,51,1729,331,112,35,604,161,228,93]
[null,"Enrolled in Elementary and High School",1486,265.07546095404609,3705,385.47892289981303,1018,187.92551716038992,1210,297.85399107616468,865,182.96994288680312,372,77.588658965083297,226,60.704200843104758,832,183.60283222216373,482,102.1665307231287,4284,475.66164444907685,369,72.429275848927276,1603,263.0380200655411,784,149.24476540234167]
[null,"Enrolled in College or Graduate School",369,147.89861392183499,2861,479.40066750057827,8465,666.52831897827116,365,167.72000476985446,251,105.80170130957252,185,100.43903623591775,47,26.40075756488817,137,64.938432380216881,181,68.308125431752259,1407,340.19406226446694,155,59.413803110051795,634,223.86156436512275,160,63.812224534175265]
[null,"Not enrolled in school",5970,256,21361,560,4703,494,4978,289,3024,192,1381,151,1175,124,3355,164,1847,120,22741,476,1815,96,8555,342,2880,133]

{"sheet":"ACS_Table_B15002","index":60,"n_rows":141,"n_cols":28,"rows_kept":141,"cut":false,"hidden":true,"merged":[]}
[null,"B15002. SEX BY EDUCATIONAL ATTAINMENT FOR THE POPULATION 25 YEARS AND OVER"]
[null,"Universe: Population 25 years an over"]
[null,"Data Set: 2018-2022 American Community Survey 5-Year Estimates"]
[]
[null,null,"Barrington",null,"Dover",null,"Durham",null,"Farmington",null,"Lee",null,"Madbury",null,"Middleton",null,"Milton",null,"New Durham",null,"Rochester",null,"Rollinsford",null,"Somersworth",null,"Strafford"]
[null,null,"Estimate","Margin Of Error","Estimate","Margin Of Error","Estimate","Margin Of Error","Estimate","Margin Of Error","Estimate","Margin Of Error","Estimate","Margin Of Error","Estimate","Margin Of Error","Estimate","Margin Of Error","Estimate","Margin Of Error","Estimate","Margin Of Error","Estimate","Margin Of Error","Estimate","Margin Of Error","Estimate","Margin Of Error"]
[null,"Total:",6378,257,23709,652,4350,463,4857,466,3379,224,1400,172,1112,187,3177,154,1985,178,23414,566,1893,150,8963,393,3235,124]
[null,"Male:",3172,221,12032,450,2042,243,2352,245,1684,189,707,95,562,111,1566,124,1016,115,11316,434,806,107,4495,380,1518,105]
[null,"No schooling completed",0,17,95,105,0,19,15,29,0,12,0,12,0,12,11,16,7,11,78,68,13,22,2,14,16,16]
[null,"Nursery to 4th grade",0,17,9,19,0,19,0,17,0,12,0,12,0,12,0,12,0,12,27,30,11,20,0,19,0,12]
[null,"5th and 6th grade",0,17,13,23,0,19,0,17,0,12,0,12,0,12,0,12,0,12,0,25,0,12,22,35,0,12]
[null,"7th and 8th grade",0,17,156,95,9,16,48,47,13,21,0,12,2,3,27,24,44,55,149,97,0,12,67,85,7,10]
[null,"9th grade",0,17,58,39,12,20,16,25,51,80,4,6,4,6,30,32,14,17,158,90,0,12,13,23,0,12]
[null,"10th grade",0,17,81,57,11,4,119,111,0,12,0,12,3,5,38,42,0,12,261,107,0,12,59,56,7,11]
[null,"11th grade",0,17,75,47,3,2,98,70,14,21,10,16,8,7,12,17,0,12,107,74,0,12,41,67,7,11]
[null,"12th grade, no diploma",73,93,46,40,7,11,33,38,0,12,3,6,29,20,114,81,24,28,185,107,5,8,118,97,0,12]
[null,"High school graduate, GED, or alternative",756,196,2553,396,183,59,892,283,237,108,151,86,230,57,591,130,302,102,3875,477,240,74,1030,272,415,137]
[null,"Some college, less than 1 year",61,44,742,272,84,46,148,102,111,83,28,18,56,29,168,64,90,63,1020,254,72,42,870,313,115,66]
[null,"Some college, 1 or more years, no degree",492,161,1013,288,69,38,285,142,239,133,50,21,78,30,148,79,129,68,1469,336,47,25,625,268,58,40]
[null,"Associate's degree",368,145,1102,394,76,52,205,130,98,69,47,28,61,43,56,35,125,48,1178,220,101,50,561,213,266,119]
[null,"Bachelor's degree",915,198,4245,485,742,138,248,148,315,93,201,81,72,30,269,106,208,74,2114,344,208,56,663,203,463,114]
[null,"Master's degree",461,186,1466,272,575,145,230,142,511,171,112,41,19,18,68,41,51,32,530,172,83,36,352,189,123,57]
[null,"Professional school degree",0,17,237,118,48,36,15,25,18,27,63,35,0,12,0,12,5,9,102,81,18,14,13,21,9,13]
[null,"Doctorate degree",46,57,141,80,223,69,0,17,77,76,38,27,0,12,34,40,17,15,63,61,8,10,59,58,32,29]
[null,"Female:",3206,217,11677,529,2308,277,2505,318,1695,184,693,105,550,94,1611,158,969,102,12098,461,1087,109,4468,322,1717,132]
[null,"No schooling completed",0,17,9,9,33,42,0,17,0,12,0,12,0,12,21,32,12,13,127,78,13,21,34,55,211,140]
[null,"Nursery to 4th grade",0,17,0,25,0,19,0,17,0,12,0,12,0,12,0,12,4,7,19,31,17,27,0,19,0,12]
[null,"5th and 6th grade",0,17,0,25,0,19,0,17,0,12,0,12,0,12,0,12,0,12,0,25,0,12,2,8,0,12]
[null,"7th and 8th grade",0,17,53,49,0,19,56,46,22,34,0,12,15,18,21,23,0,12,283,191,0,12,0,19,0,12]
[null,"9th grade",0,17,10,18,0,19,16,30,0,12,0,12,6,6,26,42,0,12,66,62,15,17,6,12,6,10]
[null,"10th grade",12,25,85,69,0,19,63,68,0,12,3,5,7,9,0,12,0,12,116,97,0,12,85,86,5,12]
[null,"11th grade",44,48,54,47,0,19,43,48,13,19,5,9,6,6,0,12,0,12,82,57,0,12,0,19,15,17]
[null,"12th grade, no diploma",60,81,102,85,6,13,0,17,2,4,0,12,17,12,2,5,10,11,85,45,0,12,31,37,29,32]
[null,"High school graduate, GED, or alternative",898,253,2200,316,162,60,694,208,359,167,86,42,235,70,754,224,292,113,4029,497,356,99,1112,296,228,86]
[null,"Some college, less than 1 year",56,51,543,212,38,30,347,144,16,25,35,29,27,19,47,38,54,30,866,208,130,113,549,234,61,38]
[null,"Some college, 1 or more years, no degree",298,154,1268,252,189,86,240,125,183,121,44,25,61,33,230,100,118,46,1446,324,105,48,417,164,183,87]
[null,"Associate's degree",353,135,1433,319,149,68,623,266,148,93,131,86,61,25,223,98,133,52,1603,312,48,34,828,328,301,92]
[null,"Bachelor's degree",888,258,3598,470,809,183,302,131,461,169,203,65,84,34,179,76,238,74,2372,353,281,87,1088,278,484,133]
[null,"Master's degree",479,149,1985,301,613,139,110,110,276,118,114,42,24,19,102,61,73,30,819,194,108,41,302,144,169,64]
[null,"Professional school degree",87,77,182,88,112,61,0,17,90,83,43,26,4,6,0,12,35,35,89,77,14,11,14,24,10,16]
[null,"Doctorate degree",31,37,155,82,197,65,11,19,125,89,29,24,3,6,6,9,0,12,96,83,0,12,0,19,15,16]
[]
[]
[]
[]
[]
[]
[]
[]
[null,"Calculated B15002. SEX BY EDUCATIONAL ATTAINMENT FOR THE POPULATION 25 YEARS AND OVER"]
[null,{"$f":"B2","v":"Universe: Population 25 years an over"}]
[null,{"$f":"B3","v":"Data Set: 2018-2022 American Community Survey 5-Year Estimates"},"Barrington",null,"Dover",null,"Durham",null,"Farmington",null,"Lee",null,"Madbury",null,"Middleton",null,"Milton",null,"New Durham",null,"Rochester",null,"Rollinsford",null,"Somersworth",null,"Strafford"]
[null,null,"Estimate","Margin Of Error","Estimate","Margin Of Error","Estimate","Margin Of Error","Estimate","Margin Of Error","Estimate","Margin Of Error","Estimate","Margin Of Error","Estimate","Margin Of Error","Estimate","Margin Of Error","Estimate","Margin Of Error","Estimate","Margin Of Error","Estimate","Margin Of Error","Estimate","Margin Of Error","Estimate","Margin Of Error"]
[null,"Total:",{"$f":"C7","v":6378},257,23709,652,4350,463,4857,466,3379,224,1400,172,1112,187,3177,154,1985,178,23414,566,1893,150,8963,393,3235,124]
[null,"Less than 9th grade",{"$f":"(C12+C11+C10)+(C27+C28+C29)","v":0},{"$f":"SQRT((D12^2)+(D11^2)+(D10^2)+(D27^2)+(D28^2)+(D29^2))","v":41.641325627314025},{"$f":"(E12+E11+E10)+(E27+E28+E29)","v":231},{"$f":"SQRT((F12^2)+(F11^2)+(F10^2)+(F27^2)+(F28^2)+(F29^2))","v":116.47317287684749},{"$f":"(G12+G11+G10)+(G27+G28+G29)","v":9},{"$f":"SQRT((H12^2)+(H11^2)+(H10^2)+(H27^2)+(H28^2)+(H29^2))","v":45.398237851264668},{"$f":"(I12+I11+I10)+(I27+I28+I29)","v":104},{"$f":"SQRT((J12^2)+(J11^2)+(J10^2)+(J27^2)+(J28^2)+(J29^2))","v":74.033776075518389},{"$f":"(K12+K11+K10)+(K27+K28+K29)","v":35},{"$f":"SQRT((L12^2)+(L11^2)+(L10^2)+(L27^2)+(L28^2)+(L29^2))","v":46.61544808322666},{"$f":"(M12+M11+M10)+(M27+M28+M29)","v":0},{"$f":"SQRT((N12^2)+(N11^2)+(N10^2)+(N27^2)+(N28^2)+(N29^2))","v":29.393876913398138},{"$f":"(O12+O11+O10)+(O27+O28+O29)","v":17},{"$f":"SQRT((P12^2)+(P11^2)+(P10^2)+(P27^2)+(P28^2)+(P29^2))","v":30.14962686336267},{"$f":"(Q12+Q11+Q10)+(Q27+Q28+Q29)","v":48},{"$f":"SQRT((R12^2)+(R11^2)+(R10^2)+(R27^2)+(R28^2)+(R29^2))","v":41},{"$f":"(S12+S11+S10)+(S27+S28+S29)","v":48},{"$f":"SQRT((T12^2)+(T11^2)+(T10^2)+(T27^2)+(T28^2)+(T29^2))","v":60.415229867972862},{"$f":"(U12+U11+U10)+(U27+U28+U29)","v":478},{"$f":"SQRT((V12^2)+(V11^2)+(V10^2)+(V27^2)+(V28^2)+(V29^2))","v":221.36169497001958},{"$f":"(W12+W11+W10)+(W27+W28+W29)","v":28},{"$f":"SQRT((X12^2)+(X11^2)+(X10^2)+(X27^2)+(X28^2)+(X29^2))","v":41.291645644125154},{"$f":"(Y12+Y11+Y10)+(Y27+Y28+Y29)","v":91},{"$f":"SQRT((Z12^2)+(Z11^2)+(Z10^2)+(Z27^2)+(Z28^2)+(Z29^2))","v":97.964279204207898},{"$f":"(AA12+AA11+AA10)+(AA27+AA28+AA29)","v":7},{"$f":"SQRT((AB12^2)+(AB11^2)+(AB10^2)+(AB27^2)+(AB28^2)+(AB29^2))","v":28.635642126552707}]
[null,"9th to 12th grade, no diploma",{"$f":"(C13+C14+C15+C16)+(C30+C31+C32+C33)","v":189},{"$f":"SQRT((D13^2)+(D14^2)+(D15^2)+(D16^2)+(D30^2)+(D31^2)+(D32^2)+(D33^2))","v":138.90644333507356},{"$f":"(E13+E14+E15+E16)+(E30+E31+E32+E33)","v":511},{"$f":"SQRT((F13^2)+(F14^2)+(F15^2)+(F16^2)+(F30^2)+(F31^2)+(F32^2)+(F33^2))","v":151.9802618763371},{"$f":"(G13+G14+G15+G16)+(G30+G31+G32+G33)","v":39},{"$f":"SQRT((H13^2)+(H14^2)+(H15^2)+(H16^2)+(H30^2)+(H31^2)+(H32^2)+(H33^2))","v":42.343830719480259},{"$f":"(I13+I14+I15+I16)+(I30+I31+I32+I33)","v":388},{"$f":"SQRT((J13^2)+(J14^2)+(J15^2)+(J16^2)+(J30^2)+(J31^2)+(J32^2)+(J33^2))","v":165.55059649545211},{"$f":"(K13+K14+K15+K16)+(K30+K31+K32+K33)","v":80},{"$f":"SQRT((L13^2)+(L14^2)+(L15^2)+(L16^2)+(L30^2)+(L31^2)+(L32^2)+(L33^2))","v":88.283633817372973},{"$f":"(M13+M14+M15+M16)+(M30+M31+M32+M33)","v":25},{"$f":"SQRT((N13^2)+(N14^2)+(N15^2)+(N16^2)+(N30^2)+(N31^2)+(N32^2)+(N33^2))","v":29.427877939124322},{"$f":"(O13+O14+O15+O16)+(O30+O31+O32+O33)","v":80},{"$f":"SQRT((P13^2)+(P14^2)+(P15^2)+(P16^2)+(P30^2)+(P31^2)+(P32^2)+(P33^2))","v":28.407745422683583},{"$f":"(Q13+Q14+Q15+Q16)+(Q30+Q31+Q32+Q33)","v":222},{"$f":"SQRT((R13^2)+(R14^2)+(R15^2)+(R16^2)+(R30^2)+(R31^2)+(R32^2)+(R33^2))","v":108.23585357911675},{"$f":"(S13+S14+S15+S16)+(S30+S31+S32+S33)","v":48},{"$f":"SQRT((T13^2)+(T14^2)+(T15^2)+(T16^2)+(T30^2)+(T31^2)+(T32^2)+(T33^2))","v":43.749285708454714},{"$f":"(U13+U14+U15+U16)+(U30+U31+U32+U33)","v":1060},{"$f":"SQRT((V13^2)+(V14^2)+(V15^2)+(V16^2)+(V30^2)+(V31^2)+(V32^2)+(V33^2))","v":234.52291998864419},{"$f":"(W13+W14+W15+W16)+(W30+W31+W32+W33)","v":20},{"$f":"SQRT((X13^2)+(X14^2)+(X15^2)+(X16^2)+(X30^2)+(X31^2)+(X32^2)+(X33^2))","v":34.885527085024819},{"$f":"(Y13+Y14+Y15+Y16)+(Y30+Y31+Y32+Y33)","v":353},{"$f":"SQRT((Z13^2)+(Z14^2)+(Z15^2)+(Z16^2)+(Z30^2)+(Z31^2)+(Z32^2)+(Z33^2))","v":163.80781422142229},{"$f":"(AA13+AA14+AA15+AA16)+(AA30+AA31+AA32+AA33)","v":69},{"$f":"SQRT((AB13^2)+(AB14^2)+(AB15^2)+(AB16^2)+(AB30^2)+(AB31^2)+(AB32^2)+(AB33^2))","v":45.68369512200168}]
[null,"High school graduate (includes equivalency)",{"$f":"C17+C34","v":1654},{"$f":"SQRT((D17^2)+(D34^2))","v":320.03906011610519},{"$f":"E17+E34","v":4753},{"$f":"SQRT((F17^2)+(F34^2))","v":506.62806870523866},{"$f":"G17+G34","v":345},{"$f":"SQRT((H17^2)+(H34^2))","v":84.148677945645701},{"$f":"I17+I34","v":1586},{"$f":"SQRT((J17^2)+(J34^2))","v":351.21645747316569},{"$f":"K17+K34","v":596},{"$f":"SQRT((L17^2)+(L34^2))","v":198.8793604173143},{"$f":"M17+M34","v":237},{"$f":"SQRT((N17^2)+(N34^2))","v":95.707888912043188},{"$f":"O17+O34","v":465},{"$f":"SQRT((P17^2)+(P34^2))","v":90.271811768680038},{"$f":"Q17+Q34","v":1345},{"$f":"SQRT((R17^2)+(R34^2))","v":258.99034731047408},{"$f":"S17+S34","v":594},{"$f":"SQRT((T17^2)+(T34^2))","v":152.22680447279973},{"$f":"U17+U34","v":7904},{"$f":"SQRT((V17^2)+(V34^2))","v":688.86718603806355},{"$f":"W17+W34","v":596},{"$f":"SQRT((X17^2)+(X34^2))","v":123.60016181219181},{"$f":"Y17+Y34","v":2142},{"$f":"SQRT((Z17^2)+(Z34^2))","v":401.9950248448356},{"$f":"AA17+AA34","v":643},{"$f":"SQRT((AB17^2)+(AB34^2))","v":161.75598906995685}]
[null,"Some college, no degree",{"$f":"(C18+C19)+(C35+C36)","v":907},{"$f":"SQRT((D18^2)+(D19^2)+(D35^2)+(D36^2))","v":232.75308805685049},{"$f":"(E18+E19)+(E35+E36)","v":3566},{"$f":"SQRT((F18^2)+(F19^2)+(F35^2)+(F36^2))","v":515.14658108154038},{"$f":"(G18+G19)+(G35+G36)","v":380},{"$f":"SQRT((H18^2)+(H19^2)+(H35^2)+(H36^2))","v":108.88526071052959},{"$f":"(I18+I19)+(I35+I36)","v":1020},{"$f":"SQRT((J18^2)+(J19^2)+(J35^2)+(J36^2))","v":258.70639729237467},{"$f":"(K18+K19)+(K35+K36)","v":549},{"$f":"SQRT((L18^2)+(L19^2)+(L35^2)+(L36^2))","v":199.60961900670017},{"$f":"(M18+M19)+(M35+M36)","v":157},{"$f":"SQRT((N18^2)+(N19^2)+(N35^2)+(N36^2))","v":47.233462714478172},{"$f":"(O18+O19)+(O35+O36)","v":222},{"$f":"SQRT((P18^2)+(P19^2)+(P35^2)+(P36^2))","v":56.488936969994398},{"$f":"(Q18+Q19)+(Q35+Q36)","v":593},{"$f":"SQRT((R18^2)+(R19^2)+(R35^2)+(R36^2))","v":147.58387445788242},{"$f":"(S18+S19)+(S35+S36)","v":391},{"$f":"SQRT((T18^2)+(T19^2)+(T35^2)+(T36^2))","v":107.74506949276147},{"$f":"(U18+U19)+(U35+U36)","v":4801},{"$f":"SQRT((V18^2)+(V19^2)+(V35^2)+(V36^2))","v":570.65926786480918},{"$f":"(W18+W19)+(W35+W36)","v":354},{"$f":"SQRT((X18^2)+(X19^2)+(X35^2)+(X36^2))","v":132.14386100004796},{"$f":"(Y18+Y19)+(Y35+Y36)","v":2461},{"$f":"SQRT((Z18^2)+(Z19^2)+(Z35^2)+(Z36^2))","v":501.4429179876808},{"$f":"(AA18+AA19)+(AA35+AA36)","v":417},{"$f":"SQRT((AB18^2)+(AB19^2)+(AB35^2)+(AB36^2))","v":122.34786471369249}]
[null,"Associate's degree",{"$f":"C20+C37","v":721},{"$f":"SQRT((D20^2)+(D37^2))","v":198.11612756158948},{"$f":"E20+E37","v":2535},{"$f":"SQRT((F20^2)+(F37^2))","v":506.94871535491637},{"$f":"G20+G37","v":225},{"$f":"SQRT((H20^2)+(H37^2))","v":85.603738236130781},{"$f":"I20+I37","v":828},{"$f":"SQRT((J20^2)+(J37^2))","v":296.0675598575433},{"$f":"K20+K37","v":246},{"$f":"SQRT((L20^2)+(L37^2))","v":115.80155439371269},{"$f":"M20+M37","v":178},{"$f":"SQRT((N20^2)+(N37^2))","v":90.443352436760108},{"$f":"O20+O37","v":122},{"$f":"SQRT((P20^2)+(P37^2))","v":49.739320461783549},{"$f":"Q20+Q37","v":279},{"$f":"SQRT((R20^2)+(R37^2))","v":104.06248123122954},{"$f":"S20+S37","v":258},{"$f":"SQRT((T20^2)+(T37^2))","v":70.767224051816527},{"$f":"U20+U37","v":2781},{"$f":"SQRT((V20^2)+(V37^2))","v":381.7643252060098},{"$f":"W20+W37","v":149},{"$f":"SQRT((X20^2)+(X37^2))","v":60.464865831323898},{"$f":"Y20+Y37","v":1389},{"$f":"SQRT((Z20^2)+(Z37^2))","v":391.09206077341946},{"$f":"AA20+AA37","v":567},{"$f":"SQRT((AB20^2)+(AB37^2))","v":150.41608956491322}]
[null,"Bachelor's degree",{"$f":"C21+C38","v":1803},{"$f":"SQRT((D21^2)+(D38^2))","v":325.21992558882368},{"$f":"E21+E38","v":7843},{"$f":"SQRT((F21^2)+(F38^2))","v":675.37026881555869},{"$f":"G21+G38","v":1551},{"$f":"SQRT((H21^2)+(H38^2))","v":229.20078533896867},{"$f":"I21+I38","v":550},{"$f":"SQRT((J21^2)+(J38^2))","v":197.64867821465441},{"$f":"K21+K38","v":776},{"$f":"SQRT((L21^2)+(L38^2))","v":192.89893727027115},{"$f":"M21+M38","v":404},{"$f":"SQRT((N21^2)+(N38^2))","v":103.85566907973777},{"$f":"O21+O38","v":156},{"$f":"SQRT((P21^2)+(P38^2))","v":45.343136195018538},{"$f":"Q21+Q38","v":448},{"$f":"SQRT((R21^2)+(R38^2))","v":130.43005788544295},{"$f":"S21+S38","v":446},{"$f":"SQRT((T21^2)+(T38^2))","v":104.65180361560904},{"$f":"U21+U38","v":4486},{"$f":"SQRT((V21^2)+(V38^2))","v":492.89451204086254},{"$f":"W21+W38","v":489},{"$f":"SQRT((X21^2)+(X38^2))","v":103.46496991735899},{"$f":"Y21+Y38","v":1751},{"$f":"SQRT((Z21^2)+(Z38^2))","v":344.22812203537353},{"$f":"AA21+AA38","v":947},{"$f":"SQRT((AB21^2)+(AB38^2))","v":175.17134468856486}]
[null,"Graduate or professional degree",{"$f":"(C22+C23+C24)+(C39+C40+C41)","v":1104},{"$f":"SQRT((D22^2)+(D23^2)+(D24^2)+(D39^2)+(D41^2)+(D40^2))","v":260.06345379541511},{"$f":"(E22+E23+E24)+(E39+E40+E41)","v":4166},{"$f":"SQRT((F22^2)+(F23^2)+(F24^2)+(F39^2)+(F41^2)+(F40^2))","v":446.51651705172117},{"$f":"(G22+G23+G24)+(G39+G40+G41)","v":1768},{"$f":"SQRT((H22^2)+(H23^2)+(H24^2)+(H39^2)+(H41^2)+(H40^2))","v":233.12871980946491},{"$f":"(I22+I23+I24)+(I39+I40+I41)","v":366},{"$f":"SQRT((J22^2)+(J23^2)+(J24^2)+(J39^2)+(J41^2)+(J40^2))","v":183.92389730538008},{"$f":"(K22+K23+K24)+(K39+K40+K41)","v":1097},{"$f":"SQRT((L22^2)+(L23^2)+(L24^2)+(L39^2)+(L41^2)+(L40^2))","v":253.92912396966204},{"$f":"(M22+M23+M24)+(M39+M40+M41)","v":399},{"$f":"SQRT((N22^2)+(N23^2)+(N24^2)+(N39^2)+(N41^2)+(N40^2))","v":81.553663314409121},{"$f":"(O22+O23+O24)+(O39+O40+O41)","v":50},{"$f":"SQRT((P22^2)+(P23^2)+(P24^2)+(P39^2)+(P41^2)+(P40^2))","v":32.326459750489228},{"$f":"(Q22+Q23+Q24)+(Q39+Q40+Q41)","v":210},{"$f":"SQRT((R22^2)+(R23^2)+(R24^2)+(R39^2)+(R41^2)+(R40^2))","v":85.854528127525114},{"$f":"(S22+S23+S24)+(S39+S40+S41)","v":181},{"$f":"SQRT((T22^2)+(T23^2)+(T24^2)+(T39^2)+(T41^2)+(T40^2))","v":59.991666087882571},{"$f":"(U22+U23+U24)+(U39+U40+U41)","v":1699},{"$f":"SQRT((V22^2)+(V23^2)+(V24^2)+(V39^2)+(V41^2)+(V40^2))","v":300.5328601001894},{"$f":"(W22+W23+W24)+(W39+W40+W41)","v":231},{"$f":"SQRT((X22^2)+(X23^2)+(X24^2)+(X39^2)+(X41^2)+(X40^2))","v":59.481089431852205},{"$f":"(Y22+Y23+Y24)+(Y39+Y40+Y41)","v":740},{"$f":"SQRT((Z22^2)+(Z23^2)+(Z24^2)+(Z39^2)+(Z41^2)+(Z40^2))","v":247.38431639859468},{"$f":"(AA22+AA23+AA24)+(AA39+AA40+AA41)","v":358},{"$f":"SQRT((AB22^2)+(AB23^2)+(AB24^2)+(AB39^2)+(AB41^2)+(AB40^2))","v":94.164749243015564}]
[]
[]
[]
[]
[]
[]
[]
[]
[]
[]
[]
[]
[]
[]
[]
[]
[]
[]
[]
[]
[]
[]
[]
[]
[]
[]
[]
[null,"Calculated B15002. SEX BY EDUCATIONAL ATTAINMENT FOR THE POPULATION 25 YEARS AND OVER"]
[null,"Universe:  POPULATION 25 YEARS AND OVER"]
[null,"Data Set: 2013-2017 American Community Survey 5-Year Estimates"]
[null,null,"Barrington",null,"Dover",null,"Durham",null,"Farmington",null,"Lee",null,"Madbury",null,"Middleton",null,"Milton",null,"New Durham",null,"Rochester",null,"Rollinsford",null,"Somersworth",null,"Strafford"]
[null,null,"Estimate","Margin Of Error","Estimate","Margin Of Error","Estimate","Margin Of Error","Estimate","Margin Of Error","Estimate","Margin Of Error","Estimate","Margin Of Error","Estimate","Margin Of Error","Estimate","Margin Of Error","Estimate","Margin Of Error","Estimate","Margin Of Error","Estimate","Margin Of Error","Estimate","Margin Of Error","Estimate","Margin Of Error"]
[null,"Total:",6325,345,21643,514,4388,337,4612,306,3024,189,1208,103,1181,126,3262,161,1929,79,21468,422,1742,114,8154,463,2827,145]
[null,"Less than 9th grade",67,94.994736696303335,377,162.62226169869857,11,39.509492530276823,53,59.874869519690812,0,26.944387170614959,2,24.919871588754223,28,26.438608132804571,48,48.342527861087284,21,28.809720581775867,430,174.29285699649313,5,25.865034312755125,84,64.984613563519787,11,30.479501308256342]
[null,"9th to 12th grade, no diploma",128,111.33283433021904,1213,273.45749212629011,37,50.24937810560445,417,183.71989549311201,76,64.822835482567413,48,23,109,39.837168574084181,175,86.382868671976851,84,38.665229858362409,1659,292.22593998480011,45,34.26368339802363,444,191.63246071581924,75,54.918120870983927]
[null,"High school graduate (includes equivalency)",1438,367.3486082728503,4397,421.7262145041496,215,79.906195003891909,1906,295.2033197645311,424,134.46560898608982,198,51.623637996561229,408,69.656299069071991,1210,166.90116836020053,572,106.21675950620975,7808,571.95891460838334,466,84.02380615040002,3039,390.15509736513758,488,124.27791436936813]
[null,"Some college, no degree",1437,386.09972804963229,4052,431.4915989912202,460,124.49096352747857,977,250.33577451095559,426,167.40967713964446,191,58.189346103904619,250,63.953107821277925,660,147.75994044395119,481,97.344748189103655,4579,446.02914702965319,340,86.406018308911797,1536,256.71969149249145,686,144.71351008112546]
[null,"Associate's degree",593,203.33469944896271,1817,291.44639301250584,305,96.400207468656419,461,188.53381659532593,156,75.591004755857028,114,36.069377593742864,196,44.045431091090478,364,98.412397592986224,241,66.219332524573218,2132,301.97350877187887,190,61.220911460055866,924,203.72530525194949,273,88.617154095581284]
[null,"Bachelor's degree",1690,379.66564237497181,5817,469.61473571428741,1322,173.80736463107655,609,187.39530410338463,1098,269.98703672583986,331,51.61395160225576,119,34.655446902326915,561,117.5925167687128,355,75,3482,397.43427129526714,453,85.632937588290176,1505,262.01145013147806,823,130.23056476879765]
[null,"Graduate or professional degree",876,275.41786434434493,3927,391.07544029253484,2038,230.38880181119916,189,99.734647941425052,789,227.92762009023829,319,55.542776307995261,69,42.591078878093711,184,73.088986858486422,175,61.245407991130243,1147,231.69807940507405,243,59.648973168026956,582,168.81943016134133,471,118.43563652887589]
[]
[]
[]
[]
[]
[]
[]
[]
[]
[]
[]
[]
[]
[]
[]
[]
[]
[]
[]
[]
[]
[]
[]
[]
[]
[]
[]
[null,"Calculated B15002. SEX BY EDUCATIONAL ATTAINMENT FOR THE POPULATION 25 YEARS AND OVER"]
[null,"Universe:  POPULATION 25 YEARS AND OVER"]
[null,"Data Set: 2008-2012 American Community Survey 5-Year Estimates"]
[null,null,"Barrington",null,"Dover",null,"Durham",null,"Farmington",null,"Lee",null,"Madbury",null,"Middleton",null,"Milton",null,"New Durham",null,"Rochester",null,"Rollinsford",null,"Somersworth",null,"Strafford"]
[null,null,"Estimate","Margin Of Error","Estimate","Margin Of Error","Estimate","Margin Of Error","Estimate","Margin Of Error","Estimate","Margin Of Error","Estimate","Margin Of Error","Estimate","Margin Of Error","Estimate","Margin Of Error","Estimate","Margin Of Error","Estimate","Margin Of Error","Estimate","Margin Of Error","Estimate","Margin Of Error","Estimate","Margin Of Error"]
[null,"Total:",5744,284,19893,375,4740,469,4686,268,3049,187,1250,121,1067,110,3119,174,1847,97,21267,455,1669,107,7738,324,2728,140]
[null,"Less than 9th grade",73,77.72387020729218,479,153.04247776352813,57,50.259327492516249,136,95.131487952202235,81,83.360662185469707,7,20.273134932713294,21,26.305892875931811,163,87.206651122491792,36,29.816103031751148,603,176.2356377126942,38,36.496575181789318,385,155.93267778115015,15,34.365680554879162]
[null,"9th to 12th grade, no diploma",229,95.796659649488817,1175,253.39494864736352,105,76.622451017962092,421,178.86028066622282,92,65.79513659838392,50,30.199337741082999,112,38.052595180880893,113,57.052607302383649,120,61,1536,281.85989427373312,99,46.292547996410825,443,142.69197594819408,100,65.398776746969816]
[null,"High school graduate (includes equivalency)",1515,252.51732613822759,4620,410,459,108.97706180660222,1719,224.4014260204244,463,134.31678971744373,221,53.814496188294839,459,60.827625302982199,1278,180.31361568112376,574,100.12492197250393,8182,471.20802200302148,449,84.64632301523794,2727,331.11931384321269,579,115.27792503337315]
[null,"Some college, no degree",1033,238.86607126170097,3937,431.13223029599629,478,126.78327965469263,1073,251.12546664964108,528,161.25135658344087,175,53.329166503893532,230,52.3354564325181,650,138.54963009694396,390,87.80091115700337,4559,430.51132389287972,348,80.517078933602647,1552,272.40411156955764,699,151.13570061371999]
[null,"Associate's degree",796,205.13897728125681,2195,283.74636561549119,191,67.357256476195644,705,203.08865059377396,403,118.69709347747316,132,35.846896657869841,113,36.235341863986875,484,130.6981254647518,185,58.051701094799967,2110,333.31816632160928,149,51.623637996561229,719,170.69856472741651,247,92.956979296876895]
[null,"Bachelor's degree",1343,281.51376520518494,4558,403.71400768365714,1488,218.44907873461037,389,152.26949793047851,762,170.94151046483705,298,62.625873247404705,90,32.202484376209235,299,112.8716084761797,363,83.234608186739251,2853,327.39731214535038,458,92.314679222754165,1300,222.87440409342656,786,151.34728276384746]
[null,"Graduate or professional degree",325,134.73678042761748,1397,231.16660658494774,942,152.69905042271873,91,79.918708698276646,440,149.16769087171659,153,46.690470119715009,5,17.088007490635061,46,34,90,39.217343102255157,731,166.5292767053289,40,22.113344387495982,391,170.54324964653395,148,69.375788283809797]

{"sheet":"PopComparison","index":61,"n_rows":48,"n_cols":14,"rows_kept":48,"cut":false,"hidden":true,"merged":[[43,1,43,2],[42,1,42,2],[44,1,44,2],[45,1,45,2],[36,1,36,2],[37,1,37,2],[38,1,38,2],[39,1,39,2],[40,1,40,2],[41,1,41,2],[35,1,35,2],[26,12,26,14],[27,3,27,4],[27,5,27,6],[27,7,27,8],[27,9,27,10],[29,1,29,2],[30,1,30,2],[31,1,31,2],[32,1,32,2],[33,1,33,2],[34,1,34,2]]}
[]
[]
[]
[]
[]
[]
[]
[]
[]
[]
[]
[]
[]
[]
[]
[]
[]
[]
[]
[]
[]
[]
[]
[]
[]
[]
[]
[null,null,null,2000,null,2010,null,2020,null,2030,null,null,"2000-2010","2010-2020"]
[null,null,null,"#","%","#","%","#","%","#","%",null,"% Change","% Change"]
[null,"Barrington",null,{"$f":"CntyQuery!G118","v":7475},{"$f":"D30/$D$45","v":6.6602514411982214E-2},{"$f":"CntyQuery!H118","v":8576},{"$f":"F30/$F$45","v":6.9642610623421544E-2},{"$f":"CntyQuery!$I118","v":9326},{"$f":"H30/$H$45","v":7.1251212859751389E-2},{"$f":"CntyQuery!J118","v":9702},{"$f":"J30/$J$45","v":7.1253883270540025E-2},null,{"$f":"(F30-D30)/D30","v":0.14729096989966556},{"$f":"(H30-F30)/F30","v":8.7453358208955223E-2}]
[null,"Dover",null,{"$f":"CntyQuery!G119","v":26884},{"$f":"D31/$D$45","v":0.23953739096344212},{"$f":"CntyQuery!H119","v":29987},{"$f":"F31/$F$45","v":0.24351363861526842},{"$f":"CntyQuery!$I119","v":32741},0.25014325115173924,{"$f":"CntyQuery!J119","v":34076},{"$f":"J31/$J$45","v":0.25026255682611026},null,{"$f":"(F31-D31)/D31","v":0.11542181223032287},{"$f":"(H31-F31)/F31","v":9.1839797245473032E-2}]
[null,"Durham",null,{"$f":"CntyQuery!G120","v":12664},0.11283668796165121,{"$f":"CntyQuery!H120","v":14638},0.11886993170541565,{"$f":"CntyQuery!$I120","v":15490},0.11834455149019397,{"$f":"CntyQuery!J120","v":16114},0.11834519429205133,null,0.15587492103600759,5.8204672769504029E-2]
[null,"Farmington",null,{"$f":"CntyQuery!G121","v":5774},5.1446544242780647E-2,{"$f":"CntyQuery!H121","v":6786},5.5106664609437805E-2,{"$f":"CntyQuery!$I121","v":6722},5.1356492906202963E-2,{"$f":"CntyQuery!J121","v":6988},5.1321597226812378E-2,null,0.17526844475233808,-9.4311818449749479E-3]
[null,"Lee",null,{"$f":"CntyQuery!G122","v":4145},3.6932096620423585E-2,{"$f":"CntyQuery!H122","v":4330},3.5162372201424361E-2,{"$f":"CntyQuery!$I122","v":4520},3.4533077645944273E-2,{"$f":"CntyQuery!J122","v":4697},3.4495927615102707E-2,null,4.4632086851628471E-2,4.3879907621247112E-2]
[null,"Madbury",null,{"$f":"CntyQuery!G123","v":1509},1.344524337761621E-2,{"$f":"CntyQuery!H123","v":1771},1.4381653849589502E-2,{"$f":"CntyQuery!$I123","v":1918},1.4653637815248035E-2,{"$f":"CntyQuery!J123","v":1995},1.4651772533985502E-2,null,0.17362491716368456,8.3003952569169967E-2]
[null,"Middleton",null,{"$f":"CntyQuery!G124","v":1440},1.283045093689022E-2,{"$f":"CntyQuery!H124","v":1783},1.4479101532364811E-2,{"$f":"CntyQuery!$I124","v":1823},1.3927831979769118E-2,{"$f":"CntyQuery!J124","v":1891},1.3887970858028363E-2,null,0.23819444444444443,2.2434099831744252E-2]
[null,"Milton",null,{"$f":"CntyQuery!G125","v":3910},3.483823830780608E-2,{"$f":"CntyQuery!H125","v":4598},3.7338703783406285E-2,{"$f":"CntyQuery!$I125","v":4482},3.4242755311752707E-2,{"$f":"CntyQuery!J125","v":4657},3.4202157739734576E-2,null,0.17595907928388746,-2.5228360156589823E-2]
[null,"New Durham",null,{"$f":"CntyQuery!G126","v":2220},1.9780278527705756E-2,{"$f":"CntyQuery!H126","v":2638},2.142224893010565E-2,{"$f":"CntyQuery!$I126","v":2693},2.0574685420470782E-2,{"$f":"CntyQuery!J126","v":2796},2.0534514288232313E-2,null,0.18828828828828828,2.0849128127369221E-2]
[null,"Rochester",null,{"$f":"CntyQuery!G127","v":28461},0.25358851674641147,{"$f":"CntyQuery!H127","v":29752},0.24160528816091861,{"$f":"CntyQuery!$I127","v":32492},0.2482408758566419,{"$f":"CntyQuery!J127","v":33801},0.24824288893295438,null,4.5360317627630792E-2,9.2094649099220216E-2]
[null,"Rollinsford",null,{"$f":"CntyQuery!G128","v":2648},2.3593773667281458E-2,{"$f":"CntyQuery!H128","v":2527},2.0520857864434031E-2,{"$f":"CntyQuery!$I128","v":2597},1.9841239523565771E-2,{"$f":"CntyQuery!J128","v":2696},1.9800089599811988E-2,null,-4.569486404833837E-2,2.7700831024930747E-2]
[null,"Somersworth",null,{"$f":"CntyQuery!G129","v":11477},0.10226047597408962,{"$f":"CntyQuery!H129","v":11766},9.5547452961191465E-2,{"$f":"CntyQuery!$I129","v":11855},9.0572928206342773E-2,{"$f":"CntyQuery!J129","v":12348},9.0686760526141844E-2,null,2.5180796375359416E-2,7.5641679415264325E-3]
[null,"Strafford",null,{"$f":"CntyQuery!G130","v":3626},3.23077882619194E-2,{"$f":"CntyQuery!H130","v":3991},3.2409475163021853E-2,{"$f":"CntyQuery!$I130","v":4230},3.2317459832377049E-2,{"$f":"CntyQuery!J130","v":4400},3.2314686290494339E-2,null,0.10066188637617209,5.9884740666499625E-2]
[]
[]
[null,"Strafford County",null,{"$f":"SUM(D30:D44)","v":112233},null,{"$f":"SUM(F30:F44)","v":123143},null,{"$f":"SUM(H30:H44)","v":130889},null,{"$f":"SUM(J30:J42)","v":136161},null,null,{"$f":"(F45-D45)/D45","v":9.7208485917689089E-2},{"$f":"(H45-F45)/F45","v":6.290247923146261E-2}]
[]
[]
[null,"Source: US Census and NH Office of Planning and Devolpment."]

{"sheet":"DropDownList","index":62,"n_rows":47,"n_cols":3,"rows_kept":47,"cut":false,"hidden":true,"merged":[]}
["List Range for Combo Box on Start Page"]
["Barrington"]
["Dover"]
["Durham"]
["Farmington"]
["Lee"]
["Madbury"]
["Middleton"]
["Milton"]
["New Durham"]
["Rochester"]
["Rollinsford"]
["Somersworth"]
["Strafford"]
[]
[]
[]
[]
[]
[]
[]
[]
[]
[]
[]
[]
[]
[]
[]
[]
[]
[]
[]
[]
[]
[]
[]
[]
[]
[]
[]
[]
[]
[]
[]
[]
[{"$f":"B47","v":"Rochester"},"Rochester","Rochester"]

{"sheet":"CntyQryCensus","index":63,"n_rows":541,"n_cols":216,"rows_kept":541,"cut":false,"hidden":true,"merged":[]}
[]
["Census 2000 SF1   -           Query Name:  TownAllQuery3"]
["NAME","COUNTY","LOGRECNO","COUSUB","TRACT","AREALAND","AREAWATR","POP100","HU100","P01TotalPopulation","P03PopOfOneRace","P03PopWhite","P03PopBlack","P03PopAmIndian","P03PopAsian","P03PopHawaiian","P03PopOtherRace","P03Pop2orMoreRaces","P04PopHispanicLatino","P04PopNotHispanicLatino","P12PopMale","P12PopMale<15","P12PopMale15to24","P12PopMale25to34","P12PopMale35to44","P12PopMale45to54","P12PopMale55to64","P12PopMale65to74","P12PopMale75to84","P12PopMale85andOver","P12PopFemale","P12PopFemale<15","P12PopFemale15to24","P12PopFemale25to34","P12PopFemale35t44","P12PopFemale45to54","P12PopFemale55to64","P12PopFemale65to74","P12PopFemale75to84","P12PopFemale85andOver","P15Households2000","P16PopInHH","P17AvgHHSize","P18HHs1Person","P18HHs2orMorePerson","P18HHsFamily","P18HHMarriedCoupleFam","P18HHSingleParentFam","P18HHsNonFamily","P31Families","P32PopInFam","P33AvgFamSize","H01TotHsUnits","H04OccHsUnits","H04OwnerOccHU","H04RenterOccHU","H05VctHsUnits","H05VctHUForRent","H05VctHUForSale","H05VctHUSeasonal","H10PopInOccHU","H11PopInOwnOccHU","H11PopInRntOccHU","H12AvgHHSize2","H12AvgHHSizOwnOcc","H12AvgHHSizRntOcc","H14OwnOccWhtHsHldr","H14OwnOccBlkHsHldr","H14OwnOccAmIHsHldr","H14OwnOccAsnHsHldr","H14OwnOccPIsHsHldr","H14OwnOccORHsHldr","H14OwnOcc2RcHsHldr","H14RntOccWhtHsHldr","H14RntOccBlkHsHldr","H14RntOccAmIHsHldr","H14RntOccAsnHsHldr","H14RntOccPIsHsHldr","H14RntOccORHsHldr","H14RntOcc2RcHsHldr","H16OwnOccHH15to24","H16OwnOccHH25to34","H16OwnOccHH35to44","H16OwnOccHH45to54","H16OwnOccHH55to64","H16OwnOccHH65to74","H16OwnOccHH75to84","H16OwnOccHH85Over","H16RntOccHH15to24","H16RntOccHH25to34","H16RntOccHH35to44","H16RntOccHH45to54","H16RntOccHH55to64","H16RntOccHH65to74","H16RntOccHH75to84","H16RntOccHH85Over","P27TotalPop","P27PopInHseHlds","P27PopInGrpQtrs","P13MedianPopTotal","P13MedianPopMale","P13MedianPopFemale"]
["Barrington","017","0033389","03460","","     120656252","       5005827",7475,"     3147",7475,7415,7334,19,10,31,4,17,60,69,7406,3813,890,418,478,822,594,363,154,83,11,3662,832,340,537,788,580,308,162,90,25,2756,7467,2.71,465,2291,2076,1781,295,215,2076,6374,3.07,3147,2756,2349,407,391,9,18,310,7467,6513,954,2.71,2.77,2.34,2315,6,1,5,1,5,16,398,1,1,2,0,1,4,18,315,750,611,368,174,98,15,44,133,113,50,35,17,12,3,7475,7467,8,36.6,36.6,36.6]
["Dover","017","0033614","18820","","      69201907","       6048921",26884,"    11924",26884,26493,25396,301,53,635,15,93,391,306,26578,12914,2329,1878,2412,2266,1660,969,786,459,155,13970,2323,2072,2221,2229,1725,1108,952,878,462,11573,26127,2.2599999999999998,3593,7980,6496,4920,1576,1484,6496,18627,2.87,11924,11573,5920,5653,351,106,41,69,26127,15040,11087,2.2599999999999998,2.54,1.96,5794,30,4,59,1,5,27,5308,86,18,140,2,15,84,35,668,1488,1326,902,793,548,160,997,1799,1128,688,345,297,277,122,26884,26127,757,35.5,34.299999999999997,36.6]
["Durham","017","0034049","19700","","      57997657","       6139313",12664,"     2923",12664,12541,11974,98,27,392,16,34,123,157,12507,5719,621,3140,376,483,462,271,203,132,31,6945,607,4307,320,499,504,300,211,146,51,2882,8048,2.79,581,2301,1581,1392,189,720,1581,4786,3.03,2923,2882,1628,1254,41,4,7,17,8048,4521,3527,2.79,2.78,2.81,1594,4,0,23,0,0,7,1150,14,1,69,2,5,13,7,106,368,433,293,214,163,44,776,161,120,91,25,34,38,9,12664,8048,4616,21.2,21.6,20.9]
["Farmington","017","0034265","26020","","      96208101","        863183",5774,"     2337",5774,5716,5670,2,25,7,0,12,58,58,5716,2866,685,348,357,510,445,255,158,89,19,2908,656,350,378,545,412,240,173,117,37,2146,5747,2.68,458,1688,1529,1156,373,159,1529,4731,3.09,2337,2146,1516,630,191,35,12,82,5747,4216,1531,2.68,2.78,2.4300000000000002,1501,1,4,0,0,1,9,612,0,6,1,0,1,10,12,194,408,390,231,153,108,20,80,152,145,91,67,49,36,10,5774,5747,27,36.1,36,36.1]
["Lee","017","0034403","41460","","      51661481","        554502",4145,"     1534",4145,4101,3980,23,9,65,8,16,44,49,4096,2077,521,289,230,405,339,153,89,40,11,2068,505,268,229,450,324,136,89,49,18,1466,4126,2.81,260,1206,1092,900,192,114,1092,3496,3.2,1534,1466,1104,362,68,8,5,40,4126,3233,893,2.81,2.93,2.4700000000000002,1077,4,0,18,0,1,4,346,4,2,3,2,3,2,7,109,361,327,145,94,51,10,58,102,104,55,25,12,5,1,4145,4126,19,35.4,34.9,35.799999999999997]
["Madbury","017","0034535","44820","","      30261419","       1452782",1509,"      543",1509,1493,1458,6,4,19,0,6,16,7,1502,753,191,92,86,149,118,65,31,18,3,756,177,89,88,164,116,59,34,24,5,534,1509,2.83,80,454,411,337,74,43,411,1288,3.13,543,534,412,122,9,2,1,3,1509,1218,291,2.83,2.96,2.39,403,0,1,5,0,0,3,120,1,0,1,0,0,0,2,39,128,112,64,40,24,3,21,37,33,16,7,3,4,1,1509,1509,0,36.299999999999997,36,36.4]
["Middleton","017","0034594","47700","","      46850041","       1095146",1440,"      706",1440,1432,1419,2,3,8,0,0,8,5,1435,757,177,98,79,167,95,58,60,17,6,683,153,80,85,160,84,55,45,19,2,514,1438,2.8,85,429,389,324,65,40,389,1219,3.13,706,514,466,48,192,0,7,175,1438,1320,118,2.8,2.83,2.46,462,0,0,1,0,0,3,47,0,0,0,0,0,1,6,61,165,96,54,60,20,4,4,10,15,7,8,2,1,1,1440,1438,2,36.6,36.799999999999997,36.299999999999997]
["Milton","017","0034663","48660","","      85748791","       3037284",3910,"     1815",3910,3859,3826,8,12,10,0,3,51,16,3894,1943,426,232,225,389,292,188,133,49,9,1967,453,206,246,378,280,196,131,51,26,1456,3910,2.69,272,1184,1084,857,227,100,1084,3285,3.03,1815,1456,1160,296,359,13,13,310,3910,3156,754,2.69,2.72,2.5499999999999998,1139,2,5,3,0,1,10,289,0,4,0,0,0,3,13,127,323,277,192,145,62,21,42,85,80,40,19,16,12,2,3910,3910,0,37.4,37.4,37.299999999999997]
["New Durham","017","0034810","51220","","     107984735","       6366178",2220,"     1309",2220,2206,2179,5,4,12,0,6,14,9,2211,1151,265,104,133,238,182,107,84,34,4,1069,237,95,136,221,169,95,77,33,6,819,2219,2.71,139,680,631,550,81,49,631,1922,3.05,1309,819,740,79,490,7,7,460,2219,1989,230,2.71,2.69,2.91,731,1,1,1,0,1,5,79,0,0,0,0,0,0,3,97,218,180,104,91,44,3,1,22,30,14,5,5,2,0,2220,2219,1,38.1,38.5,37.799999999999997]
["Rochester","017","0034907","65140","","     116940933","       1625224",28461,"    11836",28461,28182,27640,149,62,248,9,74,279,255,28206,13838,3142,1655,2002,2422,1852,1202,955,499,109,14623,2847,1731,2031,2519,1976,1248,1116,843,312,11434,28168,2.46,2936,8498,7648,5819,1829,850,7648,22584,2.95,11836,11434,7643,3791,402,110,68,77,28168,19590,8578,2.46,2.56,2.2599999999999998,7538,20,15,29,1,8,32,3647,35,15,42,0,13,39,127,986,1890,1632,1155,1073,639,141,434,1021,919,552,301,261,232,71,28461,28168,293,36.700000000000003,35.5,37.799999999999997]
["Rollinsford","017","0035404","65540","","      18893418","        638032",2648,"     1060",2648,2625,2589,18,2,14,0,2,23,16,2632,1309,288,154,186,248,182,116,90,37,8,1339,271,137,203,238,179,120,106,70,15,1033,2648,2.56,230,803,721,603,118,82,721,2188,3.03,1060,1033,722,311,27,13,3,3,2648,1957,691,2.56,2.71,2.2200000000000002,714,4,0,0,0,0,4,300,5,1,2,0,0,3,5,74,190,151,119,107,65,11,40,103,76,50,18,13,9,2,2648,2648,0,36.9,36.1,38]
["Somersworth","017","0035480","69940","","      25333575","        594182",11477,"     4841",11477,11304,11037,66,22,110,1,68,173,185,11292,5521,1296,696,875,1011,715,403,302,188,35,5956,1256,692,948,963,757,492,446,315,87,4687,11444,2.44,1263,3424,3079,2227,852,345,3079,9068,2.95,4841,4687,2659,2028,154,56,16,22,11444,6940,4504,2.44,2.61,2.2200000000000002,2597,6,4,21,0,9,22,1941,21,5,15,0,9,37,45,358,698,580,404,325,212,37,223,574,458,257,174,154,133,55,11477,11444,33,34.9,33.700000000000003,35.799999999999997]
["Strafford","017","0035663","73860","","     127348390","       5827208",3626,"     1564",3626,3592,3571,5,5,9,0,2,34,23,3603,1814,462,212,168,369,328,144,82,42,7,1812,410,178,221,406,321,128,91,42,15,1281,3617,2.82,193,1088,1022,877,145,66,1022,3205,3.14,1564,1281,1139,142,283,7,4,255,3617,3297,320,2.82,2.89,2.25,1126,2,1,1,0,1,8,139,1,0,1,0,0,1,8,117,383,339,145,90,42,15,10,45,30,28,14,9,5,1,3626,3617,9,37.4,37.200000000000003,37.6]
[]
[]
[]
[]
[]
[]
[]
[]
[]
[]
[]
[]
[]
[]
[]
[]
[]
[]
[]
[]
[]
[]
[]
[]
[]
[]
[]
[]
[]
[]
[]
[]
[]
[]
["Census 2000 DemoProfile Sample Data Tables 2&3   -  DPTab23TownQry"]
[]
["TOWN_NAME","COUSUB","AREANAME","PopInSchool","Preschool","Kindergarten","Elementary","HighSchool","College","Pop25andOver","HighSchoolGrad","SomeCollege","AssocDegree","BachelDegree","GradDegree","HSGradorHigher","CollegeGradorHigher","Pop5to20yrs","Pop5to20wDis","Pop21to64","Pop21to64wDis","Pop65over","Pop65overwDis","Pop5yrsOver","SameHUin95","DiffHUinUSin95","HUinSameCountyin95","HUinSameStatein95","TotalPop","NativePop","NatPopBornUS","NatPopBornInStatRes","NatPopBornDiffState","NatPopBornOutUS","FornBornPop","FornPopEnt90to00","FornPopNatCit","FornPopNotCit","Households","HHIncLessThn10k","HHInc10to15K","HHInc15to25K","HHInc25to35K","HHInc35to50K","HHInc50to75K","HHInc75to100K","HHInc100to150K","HHInc150to200K","HHIncOver200K","MedianHHInc","HHwithPubAssistInc","MeanPubAssist","FamilyHH","FHHIncLessThn10k","FHHInc10to15K","FHHInc15to25K","FHHInc25to35K","FHHInc35to50K","FHHInc50to75K","FHHInc75to100K","FHHInc100to150K","FHHInc150to200K","FHHIncOver200K","MedianFHHInc","PerCapitaInc","PovStatFamilies","PovStatFHHwChilUnd18","PovStatFHHwChilUnd5","PovStFmalHH","DP3088","DP3089","PovStatIndiv","PovStatIndiv18yrOver","PovStatIndiv65yrOver","DP3093","DP3094","DP3095","CNTY_NAME"]
["Barrington","03460","Barrington town, Strafford County, New Hampshire",2084,64,152,1000,447,421,4986,1458,1124,587,983,386,4538,1369,1800,100,4666,658,528,173,7017,4296,2692,1241,1451,7475,7333,7284,3863,3421,49,142,70,48,94,2767,73,106,184,442,548,660,538,164,52,0,50630,64,1115,2096,43,47,138,288,359,523,508,151,39,0,56136,21012,76,70,9,42,36,9,411,259,0,141,131,136,"Strafford"]
["Dover","18820","Dover city, New Hampshire",6794,410,325,2508,1261,2290,18267,4578,3915,1669,4023,1901,16086,5924,4869,411,16570,2250,3219,1175,25347,11568,13411,6000,7411,26884,25530,25115,12388,12727,415,1354,544,714,640,11542,785,665,1187,1764,2073,2642,1236,843,200,147,43873,366,2627,6525,215,176,436,849,1052,1750,1087,679,151,130,57050,23459,310,271,133,202,202,79,2193,1641,183,501,347,1289,"Strafford"]
["Durham","19700","Durham town, Strafford County, New Hampshire",8623,148,92,680,350,7353,3988,278,442,242,1325,1603,3890,2928,5659,231,5868,416,810,184,12346,4030,7814,677,7137,12664,11857,11694,3629,8065,163,807,547,213,594,2887,270,235,360,228,286,475,372,368,165,128,51697,45,2389,1577,24,35,92,78,94,340,299,333,158,124,83609,17210,44,40,9,26,26,0,2246,2167,9,79,71,2108,"Strafford"]
["Farmington","26020","Farmington town, Strafford County, New Hampshire",1501,82,123,783,384,129,3712,1311,774,260,257,110,2712,367,1488,245,3317,920,597,274,5402,3338,2052,1215,837,5774,5690,5625,3528,2097,65,84,8,60,24,2134,207,139,332,218,411,497,193,112,22,3,40971,118,2690,1509,51,65,191,193,326,421,189,70,0,3,44788,16574,95,75,40,35,28,9,545,392,67,127,72,269,"Strafford"]
["Lee","41460","Lee town, Strafford County, New Hampshire",1296,67,55,637,309,228,2569,432,463,198,787,564,2444,1351,1078,86,2438,305,292,84,3875,1975,1850,694,1156,4145,3901,3890,1703,2187,11,244,62,131,113,1469,61,59,104,134,240,332,281,208,32,18,57993,5,3500,1082,20,32,29,92,193,267,227,172,32,18,62330,23905,47,47,18,34,34,18,211,137,17,70,47,94,"Strafford"]
["Madbury","44820","Madbury town, Strafford County, New Hampshire",495,37,25,228,112,93,964,178,164,61,272,215,890,487,418,18,894,56,118,47,1433,906,516,227,289,1509,1444,1430,666,764,14,65,30,28,37,535,19,28,50,41,96,115,104,41,22,19,57981,7,471,409,9,12,25,29,66,97,93,39,21,18,67981,26524,16,7,5,6,3,3,87,69,4,18,11,41,"Strafford"]
["Middleton","47700","Middleton town, Strafford County, New Hampshire",381,19,15,191,115,41,943,396,187,71,52,23,729,75,361,17,829,146,143,40,1339,772,562,373,189,1441,1413,1398,823,575,15,28,5,26,2,526,22,19,50,80,139,128,52,23,8,5,43942,7,800,396,11,11,28,60,98,110,49,19,10,0,48529,18415,18,8,8,2,2,2,104,74,9,22,6,51,"Strafford"]
["Milton","48660","Milton town, Strafford County, New Hampshire",976,25,65,548,219,119,2587,1077,620,177,153,86,2113,239,946,145,2320,451,399,178,3674,2310,1364,849,515,3910,3888,3853,2322,1531,35,22,0,19,3,1440,68,58,164,199,373,370,140,41,27,0,44194,73,3464,1076,37,50,103,145,251,312,127,24,27,0,48033,18092,66,61,34,15,15,5,307,144,18,163,101,46,"Strafford"]
["New Durham","51220","New Durham town, Strafford County, New Hampshire",596,11,47,301,139,98,1504,508,338,133,263,111,1353,374,522,55,1300,289,243,89,2069,1289,776,389,387,2219,2190,2174,1180,994,16,29,4,16,13,805,33,23,79,81,152,248,105,58,11,15,52270,22,2300,630,14,10,57,70,126,205,83,44,6,15,52941,22139,23,17,5,6,6,0,112,74,16,35,30,39,"Strafford"]
["Rochester","65140","Rochester city, New Hampshire",6893,489,302,3387,1635,1080,19122,7264,4004,1666,1953,955,15842,2908,6221,538,16484,3336,3609,1534,26567,13721,12721,7981,4740,28461,27738,27389,16186,11203,349,723,160,417,306,11397,857,765,1546,1600,2453,2501,965,509,118,83,40596,625,2802,7671,307,345,776,930,1757,2051,858,480,96,71,47324,18859,481,399,197,325,313,155,2357,1481,316,823,579,903,"Strafford"]
["Rollinsford","65540","Rollinsford town, Strafford County, New Hampshire",715,70,24,320,155,146,1799,649,313,155,357,124,1598,481,591,42,1555,281,324,143,2470,1617,853,505,348,2648,2602,2585,1614,971,17,46,0,37,9,1043,47,62,110,91,242,248,141,52,23,27,48588,13,408,740,11,21,36,72,145,225,150,44,14,22,60625,24444,19,15,0,12,12,0,98,64,11,34,34,40,"Strafford"]
["Somersworth","69940","Somersworth city, New Hampshire",2894,167,187,1450,579,511,7518,2628,1552,745,1009,408,6342,1417,2611,281,6646,1320,1359,548,10673,5191,5471,3314,2157,11477,11272,11182,6483,4699,90,205,15,83,122,4704,427,249,559,623,1035,1107,457,190,45,12,42739,286,2717,3092,140,138,298,360,734,841,377,153,45,6,47933,19592,196,189,135,155,148,108,995,671,122,315,185,442,"Strafford"]
["Strafford","73860","Strafford town, Strafford County, New Hampshire",1085,42,68,566,262,147,2360,655,516,347,469,203,2190,672,958,79,2166,224,279,112,3411,2160,1235,588,647,3626,3562,3513,1928,1585,49,64,9,39,25,1282,29,43,68,123,227,355,256,139,21,21,59044,19,2900,1037,6,15,43,85,176,341,214,115,21,21,62238,23500,10,10,6,10,10,6,67,51,15,16,8,41,"Strafford"]
[]
[]
[]
[]
[]
[]
[]
[]
[]
[]
[]
[]
[]
[]
[]
[]
[]
[]
[]
[]
[]
[]
[]
[]
[]
[]
[]
[]
[]
[]
[]
[]
[]
[]
["Census 2000 DemoProfile Sample Data Table 4   -  DPTab4TownQry"]
[]
["TOWN_NAME","COUSUB","TotHousingUnits","1UnitDet","1UnitAtt","2Units","3to4Units","5to9Units","10to19Units","20orMoreUnits","MobileHomes","BoatRvVan","SingleFamilyUnits","MultiFamUnits","MobileHomeUnits","YearBuilt99to00","YearBuilt95to98","YearBUilt90to94","YearBuilt80to89","YearBuilt70to79","YearBuilt60to69","YearBuilt40to59","YearBuilt39orEarlier","Rooms1","Rooms2","Rooms3","Rooms4","Rooms5","Rooms6","Rooms7","Rooms8","Rooms9orMore","MedianRooms","OccHU1","YrHHMvdIn99to00","YrHHMvdIn95to98","YrHHMvdIn90to94","YrHHMvdIn80to89","YrHHMvdIn70to79","YrHHMvdIn69orBefore","HeatFuelNatGas","HeatFuelBotGas","HeatFuelElectric","HeatFuelOil","HeatFuelCoal","HeatFuelWood","HeatFuelSolar","HeatFuelOther","HeatFuelNone","LackCompPlumb","LackCompKit","NoTelephone","OccHU","OccPerRm1orLess","OccPerRm1to1_5","OccPerRm1_5orMore","SpecOwnOccUnits","Value<50K","Value50to100K","Value100to150K","Value150to200K","Value200to300K","Value300to500K","Value500Kto1mil","Value1MilorMore","MedianValue","WithMortg","MnthOwnCst<300","MnthOwnCst300to500","MnthOwnCst500to700","MnthOwnCst700to1000","MnthOwnCst1000to1500","MnthOwnCst1500to2000","MnthOwnCst2000orMore","MediMnthOwnCst","NotMrtg","NotMrtgMediMnthOwnCst","OwnCst%HHInc<15","OwnCst%HHInc15to20","OwnCst%HHInc20to25","OwnCst%HHInc25to30","OwnCst%HHInc30to35","OwnCst%HHInc35orMor","NotComputed","SpecRntOccUnits","Rnt<200","Rnt200to300","Rnt300to500","Rnt500to750","Rnt750to1000","Rnt1000to1500","Rnt1500orMore","NoRent","MedianRent","Rnt%HHInc<15","Rnt%HHInc15to20","Rnt%HHInc20to25","Rnt%HHInc25to30","Rnt%HHInc30to35","Rnt%HHInc35orMore","Rnt%NotCompute","CNTY_NAME"]
["Barrington","03460",3147,2290,28,40,47,92,46,0,556,48,2290,253,604,68,329,229,844,813,282,284,298,41,127,166,642,662,605,447,268,189,5.4,2756,435,867,457,571,319,107,13,588,102,1872,8,139,0,9,25,45,29,17,2756,2727,29,0,1667,38,282,728,500,119,0,0,0,136400,1345,0,14,88,339,626,218,60,1195,322,433,452,292,318,223,92,275,15,411,18,0,46,188,84,38,0,37,674,88,37,41,34,39,127,45,"Strafford"]
["Dover","18820",11924,5243,628,1134,1425,1102,630,1355,407,0,5243,6274,407,212,481,464,2033,1628,1302,2196,3608,178,523,1851,2495,1968,2005,1263,951,690,5,11573,2869,3679,1570,1558,761,1136,3377,611,1212,6242,5,79,0,25,22,71,62,159,11573,11423,107,43,4747,5,977,2055,877,691,113,29,0,132800,3371,0,21,167,825,1492,591,275,1187,1376,442,1514,925,873,582,282,540,31,5652,218,298,618,2874,1076,469,25,74,639,1067,927,915,816,380,1392,155,"Strafford"]
["Durham","19700",2923,1747,119,144,198,275,155,285,0,0,1747,1176,0,38,99,203,600,557,592,462,372,110,177,261,392,359,297,380,479,468,6,2882,1009,620,352,365,320,216,118,260,619,1806,0,67,0,6,6,14,20,5,2882,2713,140,29,1408,7,43,175,584,462,115,16,6,191200,927,0,0,6,52,276,295,298,1610,481,564,437,226,249,188,79,229,0,1214,28,44,417,279,50,225,115,56,531,163,104,123,60,117,551,96,"Strafford"]
["Farmington","26020",2337,1400,14,104,117,129,93,47,416,17,1400,504,433,91,94,156,457,337,157,225,820,34,54,201,519,424,508,286,174,137,5.4,2146,432,539,394,379,173,229,18,228,139,1660,0,101,0,0,0,18,15,73,2146,2118,28,0,1043,61,593,322,24,15,28,0,0,88400,747,0,0,65,347,310,9,16,968,296,313,326,225,150,115,49,170,8,629,78,46,148,168,150,24,0,15,561,95,125,104,129,27,134,15,"Strafford"]
["Lee","41460",1534,1013,88,94,53,92,24,0,170,0,1013,351,170,59,132,72,555,277,136,94,209,13,39,95,299,221,264,209,188,206,5.9,1466,266,436,266,276,156,66,32,264,50,971,0,143,0,6,0,6,5,0,1466,1409,41,16,701,10,27,204,283,154,23,0,0,169300,529,0,5,0,37,234,116,137,1482,172,521,136,158,149,105,37,116,0,340,0,0,53,82,127,39,27,12,788,38,81,73,45,12,79,12,"Strafford"]
["Madbury","44820",543,363,34,48,20,3,0,3,72,0,363,108,72,13,37,40,136,125,31,48,113,3,11,18,77,88,89,102,81,74,6.3,534,81,135,107,129,43,39,6,48,42,417,0,19,2,0,0,0,0,0,534,532,2,0,259,0,32,41,120,46,18,2,0,169600,215,0,0,3,33,82,57,40,1444,44,543,54,55,45,29,29,47,0,102,0,0,13,38,30,14,2,5,729,12,23,18,3,5,34,7,"Strafford"]
["Middleton","47700",707,629,8,2,0,0,0,0,67,1,629,10,68,27,24,37,257,138,129,43,52,3,0,34,167,202,174,69,33,25,5.2,516,78,143,53,139,68,35,0,98,5,360,2,51,0,0,0,4,4,0,516,508,6,2,339,15,185,114,19,4,2,0,0,95800,270,0,9,38,111,108,4,0,945,69,325,92,69,50,30,30,68,0,45,0,0,5,23,6,0,0,11,615,9,8,0,7,3,7,11,"Strafford"]
["Milton","48660",1815,1260,11,73,48,30,23,0,349,21,1260,185,370,12,68,102,466,317,93,214,543,7,42,67,340,463,431,247,106,112,5.5,1456,226,327,216,385,182,120,23,166,6,1197,0,64,0,0,0,0,0,18,1456,1443,13,0,719,6,358,286,46,23,0,0,0,99600,540,0,37,45,185,240,26,7,1004,179,337,207,122,126,120,40,97,7,280,0,21,43,124,63,5,0,24,609,54,17,44,29,31,76,29,"Strafford"]
["New Durham","51220",1308,1175,11,12,4,0,0,2,104,0,1175,29,104,32,76,123,327,191,159,231,169,4,30,99,237,305,305,176,86,66,5.4,817,119,208,140,210,80,60,9,105,12,603,0,88,0,0,0,12,6,4,817,803,6,8,532,6,180,221,59,55,11,0,0,117700,383,0,12,10,113,189,46,13,1144,149,397,144,97,98,70,37,82,4,71,0,0,10,23,18,11,0,9,733,18,10,3,9,6,14,11,"Strafford"]
["Rochester","65140",11836,5727,402,707,1133,890,169,563,2239,6,5727,3864,2245,252,647,726,2520,1966,925,1799,3001,55,281,1391,2703,2850,2026,1263,751,516,5,11434,2293,3618,1710,1929,854,1030,2273,1063,739,7069,7,188,0,54,41,86,32,199,11434,11228,157,49,4928,68,2442,1780,427,173,38,0,0,99400,3576,15,62,281,1282,1541,268,127,1036,1352,393,1190,1004,1039,505,458,702,30,3777,217,204,726,1743,595,174,7,111,601,660,594,464,519,267,1123,150,"Strafford"]
["Rollinsford","65540",1060,700,7,109,80,112,19,11,22,0,700,338,22,13,12,52,175,121,90,222,375,0,22,106,151,195,230,176,82,98,5.7,1033,152,247,121,213,96,204,17,138,42,790,12,26,0,5,3,0,0,8,1033,1028,5,0,551,0,113,272,80,47,35,4,0,132000,364,0,0,42,90,155,60,17,1147,187,453,169,138,89,51,24,80,0,301,0,0,73,162,45,4,0,17,621,47,97,40,14,29,57,17,"Strafford"]
["Somersworth","69940",4841,2159,139,489,733,300,159,365,497,0,2159,2185,497,88,116,131,566,916,398,1100,1526,26,146,598,1124,920,994,491,245,297,5.0999999999999996,4687,1164,1397,643,743,374,366,1011,212,257,3157,0,41,0,9,0,24,26,60,4687,4579,91,17,1906,0,842,820,196,39,9,0,0,105500,1380,0,7,103,442,619,174,35,1088,526,454,476,442,364,223,137,256,8,2021,127,179,296,957,321,81,0,60,621,350,396,257,188,204,539,87,"Strafford"]
["Strafford","73860",1564,1389,15,50,13,0,0,0,97,0,1389,78,97,59,85,144,458,297,148,113,260,5,31,84,220,267,396,286,144,131,5.9,1281,146,307,289,288,148,103,7,220,33,855,0,160,0,6,0,0,11,0,1281,1267,14,0,770,4,155,342,194,52,16,7,0,135100,625,0,14,46,142,286,121,16,1219,145,428,223,151,148,103,40,97,8,134,0,4,19,57,13,9,0,32,628,22,30,24,18,4,4,32,"Strafford"]
[]
[]
[]
[]
[]
[]
[]
[]
[]
[]
[]
[]
[]
[]
[]
[]
[]
[]
[]
[]
[]
[]
[]
[]
[]
[]
[]
[]
[]
[]
[]
[]
[]
[]
[]
[]
["Census 2000 SummaryFile3 Sample Data  -  SF3TownQry1SocialChar"]
[]
["TOWN_NAME","LOGRECNO","COUSUB","P01TotalPopulation","P02SampleCountOfPop","P03Pop100pctCount","P05UrbanPopulation","P05RuralPopulation","P06WhiteAlone","P06BlackOrAfAm","P06AmIndAlone","P06AsianAlone","P06HawaiianOrPI","P06OtherRace","P06TwoPlusRaces","P07NotHispanicOrLatino","P07HispanicOrLatino","P08MalePop","P08FemalePop","P09PopInHouseholds","P09PopInFamHH","P09PopInNonFamHH","P09PopInGroupQtr","P13TotalHH","P13FamilyHH","P13FamHHolder15to24yrs","P13FamHHolder25to34yrs","P13FamHHolder35to44yrs","P13FamHHolder45to54yrs","P13FamHHolder55to64yrs","P13FamHHolder65to74yrs","P13FamHHolder75to84yrs","P13FamHHolder85yrsOver","P13NonFamilyHH","P13NonFamHHolder15to24yrs","P13NonFamHHolder25to34yrs","P13NonFamHHolder35to44yrs","P13NonFamHHolder45to54yrs","P13NonFamHHolder55to64yrs","P13NonFamHHolder65to74yrs","P13NonFamHHolder75to84yrs","P13NonFamHHolder85yrsOver","P18Pop15yrsOver","P18MaritalStatNeverMarried","P18MaritalStatNowMarried","P18MaritalStatSeparated","P18MaritalStatWidowed","P18MaritalStatWidowFemale","P18MaritalStatDivorced","P18MaritalStatDivorcedFemale","P21NativeBornPop","P21NatPopBornInState","P21NatPopBornOtherState","P021005","P021006","P021007","P021008","P21NatPopBornOutUS","P21ForeignBornPop","P021014","P021015","P24Pop5YrsPlus","P24ResSameHouseIn95","P24ResDiffHouseIn95","P24ResDiffHouseInUSIn95","P24ResDiffHouseSameCountyIn95","P24ResDiffHouseDiffCountyIn95","P24ResDiffHouseDiffCntySamStIn95","P24ResDiffHouseDiffCntyDifStIn95","P24ResDiffHouseDiffCntyNEStIn95","P24ResDiffHouseDiffCntyMWStIn95","P24ResDiffHouseDiffCntySoStIn95","P24ResDiffHouseDiffCntyWstStIn95","P24ResDiffInPR","P24ResDiffElsewhereIn95","P26Workers16yrsOver","P26WorkedInState","P26WorkedInCnty","P26WorkedOutsideCnty","P26WorkedOutsideState","P30Workers16Over","P30TranspToWrkCar","P30TranspToWrkPublic","P30TranspToWrkOther","P30WrkdAtHome","P31WrkrsNotWrkAtHom","P31TravTim<5min","P31TravTim5to9Min","P31TravTim10to14Min","P31TravTim15to19Min","P31TravTim20to24Min","P31TravTim25to29Min","P31TravTim30to34Min","P31TravTim35to39Min","P31TravTim40to44Min","P31TravTim45to59Min","P31TravTim60to89Min","P31TravTim90MinMore","P31WorkAtHome","P36SchEnrlPop3yrOver","P36NurserSchEnrl","P36KinderSchEnrl","P36ElemSchEnrl","P36HighSchEnrl","P36CollGradSchEnrl","P37Pop25yrsOver","P37EduAtain<9grd","P37EduAtainHSnoDip","P37EduAtainHSgrad","P37EduAtainCollNoDeg","P37EduAtainAssocDeg","P37EduAtainBachDeg","P37EduAtainGradProfDeg","P42NIPop5to15","P42NIPop5to15wDisabl","P42NIPop16to20","P42NIPop16to20wDisab","P42NIPop16to20wDisEmp","P42NIPop16to21NoDis","P42NIPop16to21NoDisEmpl","P42NIPop21to64","P42NIPop21to64wDis","P42NIPop21to64wDisEmp","P42NIPop21to64NoDis","P42NIPop21to64NoDisEmp","P42NIPop65to74","P42NIPop65to74wDis","P42NIPop75Over","P42NIPop75OverwDis","P43Pop16YrsOver","P43Pop16OvrInLaborForce","P43Pop16OvrCivlLabFrc","P43Pop16OvrCivlLbrFrcEmp","P48Families","P48MarriedFam","P48MarrFamNoWorkers","P48MarrFam1Worker","P48MarrFam2Worker","P48MarrFamHusbWifeWorked","P48MarrFamOther","P48MarrFam3PlusWorker","P48MarrFam3WorkHsbWif","P48MarrFam3PlsWrkOther","P48OtherFam","P48MaleHHNoWif","P48MaleHHNoWifNoWorker","P48MaleHHNoWif1Worker","P48MaleHHNoWif2Worker","P48MaleHHNoWif3PlusWorker","P48FemaleHHNoHsb","P48FemaleHHNoHsbNoWorker","P48FemaleHHNoHsb1Worker","P48FemaleHHNoHsb2Worker","P48FemaleHHNoHsb3Worker","P49EmpCivPop16YrOver","P49IndustAgricult","P49IndustConst","P49IndustMnftg","P49IndustWhlslTrd","P49IndustRtlTrd","P49IndustTrspWrhsUtlt","P49IndustInfrm","P49IndustFinInsRE","P49IndustPrfsScntfMngmt","P49IndustEduHlthSocSrv","P49IndustArtsEntRec","P49IndustOthrSrvc","P49IndustPubAdm","P50OccupMngmtProfs","P50OccupService","P50OccupSalesOff","P50OccupFarmFishForest","P50OccupConstExtrctMaint","P50OccupPrdctTrnspMatMv"]
["Barrington","0003823","03460",7475,889,7475,0,7475,7328,78,0,40,0,18,11,7405,70,3821,3654,7467,6552,915,8,2767,2096,29,325,705,513,289,176,53,6,671,14,118,144,166,121,78,30,0,5757,1261,3586,21,263,211,626,284,7333,3863,3421,2687,193,283,258,49,142,48,94,7017,4296,2721,2692,1241,1451,631,820,463,59,158,140,0,29,4192,3779,2361,1418,413,4192,3912,42,359,194,3998,34,238,390,613,781,379,624,140,178,299,243,79,194,7155,64,152,1000,447,421,4986,92,356,1458,1124,587,983,386,1377,64,423,36,18,387,226,4666,658,420,4008,3455,368,96,160,77,5640,4314,4299,4221,2096,1727,125,268,1036,994,42,298,298,0,369,159,0,102,21,36,210,23,122,53,12,4221,86,365,760,78,584,268,37,268,349,887,197,150,192,1593,507,1054,16,450,601]
["Dover","0003832","18820",26884,3679,26884,24900,1984,25266,292,82,712,0,66,466,26611,273,12983,13901,26125,19168,6957,759,11542,6525,179,1346,1884,1301,764,654,346,51,5017,876,1121,847,669,462,416,394,232,22237,7159,10716,433,1437,1223,2492,1397,25530,12388,12727,9623,1101,1262,741,415,1354,714,640,25347,11568,13779,13411,6000,7411,3409,4002,2814,310,575,303,0,368,15022,13479,7668,5811,1543,15022,13976,148,2004,414,14608,631,1802,2600,2744,2751,971,1191,205,143,627,703,240,414,25939,410,325,2508,1261,2290,18267,821,1360,4578,3915,1669,4023,1901,3423,181,1446,230,158,1216,819,16570,2250,1339,14320,12424,1793,527,1426,648,21908,15782,15747,15261,6525,4963,582,909,2822,2736,86,650,622,28,1562,482,26,232,224,0,1080,86,705,240,49,15261,73,686,2349,513,2251,537,461,1492,1290,3164,1208,665,572,5992,1973,4477,66,889,1864]
["Durham","0003871","19700",12664,1742,12664,10597,2067,12007,99,32,318,11,42,155,12508,156,5781,6883,8078,4771,3307,4586,2887,1577,15,192,408,394,239,198,108,23,1310,778,127,55,110,38,85,91,26,11485,7592,3312,73,181,149,327,208,11857,3629,8065,6077,699,733,556,163,807,213,594,12346,4030,8316,7814,677,7137,3083,4054,3315,215,316,208,0,502,5858,5471,3786,1685,387,5858,3692,213,1939,243,5615,574,1284,966,983,725,205,314,31,69,239,162,63,243,12475,148,92,680,350,7353,3988,40,58,278,442,242,1325,1603,957,45,4702,186,112,4516,1786,5868,416,291,5452,3838,450,86,360,98,11389,6946,6937,6171,1577,1387,154,326,740,673,67,167,147,20,190,30,5,12,5,8,160,10,143,3,4,6171,75,126,352,132,790,138,129,276,585,2168,1078,172,150,2684,1353,1604,39,185,306]
["Farmington","0003904","26020",5774,745,5774,0,5774,5701,0,31,0,0,15,27,5700,74,2856,2918,5747,4941,806,27,2134,1509,74,280,435,367,162,108,74,9,625,40,52,70,127,182,89,47,18,4424,1043,2520,115,251,176,495,251,5690,3528,2097,1774,134,118,71,65,84,60,24,5402,3338,2064,2052,1215,837,281,556,412,14,104,26,0,12,2741,2472,1847,625,269,2741,2597,7,430,55,2686,67,287,325,311,369,267,310,95,85,353,135,82,55,5561,82,123,783,384,129,3712,380,620,1311,774,260,257,110,1046,134,442,111,49,331,165,3317,920,532,2397,1987,335,137,262,137,4356,2951,2951,2792,1509,1199,110,222,656,577,79,211,185,26,310,100,7,69,15,9,210,22,121,52,15,2792,50,186,856,90,321,135,80,90,134,473,186,103,88,649,423,543,25,386,766]
["Lee","0003919","41460",4145,623,4145,17,4128,3986,11,0,104,0,0,44,4069,76,2120,2025,4126,3536,590,19,1469,1082,15,195,356,318,108,60,27,3,387,52,56,100,51,42,53,22,11,3132,772,1905,63,104,67,288,161,3901,1703,2187,1624,239,232,92,11,244,131,113,3875,1975,1900,1850,694,1156,592,564,326,52,93,93,0,50,2339,1999,1138,861,340,2339,2102,0,303,186,2153,20,255,300,219,326,229,359,68,55,120,138,64,186,3992,67,55,637,309,228,2569,36,89,432,463,198,787,564,826,69,252,17,17,235,116,2438,305,230,2133,1894,176,23,116,61,3049,2401,2334,2305,1082,921,55,114,613,605,8,139,125,14,161,35,9,26,0,0,126,12,94,8,12,2305,27,95,270,51,245,44,69,148,312,687,129,63,165,1184,263,530,3,147,178]
["Madbury","0003928","44820",1509,723,1509,203,1306,1451,0,2,21,0,9,26,1495,14,757,752,1509,1324,185,0,535,409,4,36,145,112,58,35,17,2,126,17,37,20,14,10,18,10,0,1145,287,716,14,44,37,84,43,1444,666,764,544,88,80,52,14,65,28,37,1433,906,527,516,227,289,119,170,78,19,47,26,0,11,803,738,472,266,65,803,728,2,63,59,744,16,72,127,187,120,48,71,3,16,30,30,24,59,1477,37,25,228,112,93,964,10,64,178,164,61,272,215,312,16,106,2,2,104,48,894,56,32,838,712,76,24,42,23,1121,843,840,820,409,337,24,63,215,205,10,35,32,3,72,24,4,11,4,5,48,5,21,20,2,820,13,55,112,14,64,35,21,36,98,244,74,27,27,395,115,170,5,71,64]
["Middleton","0003935","47700",1441,665,1440,0,1441,1411,0,0,4,0,3,23,1432,9,746,695,1441,1263,178,0,526,396,4,51,151,76,51,44,17,2,130,6,12,40,27,26,12,6,1,1119,243,662,24,43,23,147,77,1413,823,575,495,20,39,21,15,28,26,2,1339,772,567,562,373,189,92,97,60,2,29,6,0,5,750,691,467,224,59,750,691,11,9,26,724,8,37,52,78,124,45,102,20,37,120,60,41,26,1376,19,15,191,115,41,943,54,160,396,187,71,52,23,235,10,126,7,6,119,60,829,146,85,683,576,103,22,40,18,1104,781,775,758,396,319,33,76,154,141,13,56,53,3,77,37,0,28,7,2,40,2,21,5,12,758,9,110,199,15,82,33,5,25,43,121,44,40,32,157,125,140,5,142,189]
["Milton","0003940","48660",3910,585,3910,1329,2581,3771,0,33,0,0,0,106,3905,5,1938,1972,3910,3447,463,0,1440,1076,16,165,355,244,136,108,52,0,364,37,29,93,70,55,47,29,4,3026,712,1798,67,135,114,314,144,3888,2322,1531,1269,86,132,44,35,22,19,3,3674,2310,1364,1364,849,515,169,346,286,17,31,12,0,0,1945,1794,1360,434,151,1945,1854,0,166,40,1905,87,100,149,277,241,117,308,124,129,127,139,107,40,3756,25,65,548,219,119,2587,196,278,1077,620,177,153,86,707,76,239,69,50,170,70,2320,451,285,1869,1504,267,103,132,75,2967,2047,2038,1981,1076,858,91,149,517,454,63,101,94,7,218,94,5,69,14,6,124,20,68,36,0,1981,0,171,623,72,264,113,13,116,112,278,94,80,45,399,272,567,5,231,507]
["New Durham","0003950","51220",2219,1020,2220,0,2219,2195,4,5,3,0,8,4,2203,16,1158,1061,2216,1976,240,3,805,630,4,94,202,153,77,71,29,0,175,6,17,41,33,22,28,24,4,1709,324,1138,19,78,61,150,66,2190,1180,994,810,44,95,45,16,29,16,13,2069,1289,780,776,389,387,184,203,113,6,44,40,0,4,1159,1072,646,426,87,1159,1084,0,14,44,1115,20,61,118,97,126,57,154,64,77,181,98,62,44,2133,11,47,301,139,98,1504,29,122,508,338,133,263,111,399,37,123,18,16,105,58,1300,289,226,1011,867,164,59,79,30,1670,1219,1215,1189,630,554,77,81,311,295,16,85,82,3,76,38,2,29,7,0,38,2,18,16,2,1189,12,95,294,43,142,41,19,50,107,219,67,44,56,386,158,249,6,139,251]
["Rochester","0003956","65140",28461,3853,28461,22614,5847,27753,110,5,191,11,76,315,28129,332,13857,14604,28168,23509,4659,293,11397,7671,266,1520,2076,1578,985,832,370,44,3726,216,592,605,568,504,510,539,192,22490,5246,12431,401,1468,1278,2944,1665,27738,16186,11203,8937,819,955,492,349,723,417,306,26567,13721,12846,12721,7981,4740,1603,3137,1890,240,695,312,0,125,14407,13412,9640,3772,995,14407,13616,86,1659,332,14075,450,1681,2294,2125,2202,813,1870,406,451,929,587,267,332,27274,489,302,3387,1635,1080,19122,1009,2271,7264,4004,1666,1953,955,4502,384,1719,154,70,1565,941,16484,3336,2104,13148,11223,2074,779,1535,755,22045,15252,15232,14668,7671,5986,719,1072,3216,3116,100,979,931,48,1685,457,43,267,124,23,1228,110,795,213,110,14668,119,767,3525,384,2394,634,407,846,997,2549,852,567,627,3673,2288,4022,53,1425,3207]
["Rollinsford","0004003","65540",2648,631,2648,2428,220,2597,18,0,0,0,0,33,2631,17,1314,1334,2648,2275,373,0,1043,740,21,119,216,136,117,86,36,9,303,31,62,58,44,25,39,37,7,2089,467,1286,15,130,97,191,88,2602,1614,971,761,44,104,62,17,46,37,9,2470,1617,853,853,505,348,89,259,186,37,21,15,0,0,1481,1269,864,405,212,1481,1406,4,126,50,1431,34,164,246,220,218,129,193,34,31,67,53,42,50,2550,70,24,320,155,146,1799,76,125,649,313,155,357,124,423,30,168,12,12,156,115,1555,281,219,1274,1117,197,79,127,64,2047,1535,1535,1511,740,639,81,105,337,322,15,116,113,3,101,47,4,19,19,5,54,4,34,12,4,1511,16,97,250,84,277,65,19,95,96,263,111,54,84,471,205,511,8,104,212]
["Somersworth","0004012","69940",11477,1370,11477,11175,302,11007,82,19,81,41,20,227,11299,178,5447,6030,11445,9417,2028,32,4704,3092,157,773,781,638,283,287,158,15,1612,55,228,328,255,305,163,185,93,8923,2147,4696,130,594,508,1356,870,11272,6483,4699,3721,329,403,246,90,205,83,122,10673,5191,5482,5471,3314,2157,807,1350,780,59,276,235,0,11,5721,5070,3159,1911,651,5721,5406,43,705,82,5639,146,664,831,891,897,533,677,147,205,375,147,126,82,10988,167,187,1450,579,511,7518,462,714,2628,1552,745,1009,408,1861,228,750,53,34,697,380,6646,1320,763,5326,4461,729,145,630,403,8780,6117,6092,5853,3092,2323,259,425,1325,1284,41,314,295,19,769,170,0,118,39,13,599,79,404,97,19,5853,63,295,1369,184,859,213,110,229,386,1145,422,321,257,1849,822,1470,33,572,1107]
["Strafford","0004033","73860",3626,851,3626,0,3626,3578,8,0,3,0,0,37,3602,24,1821,1805,3617,3316,301,9,1282,1037,9,165,321,336,112,67,21,6,245,5,10,58,46,43,38,25,20,2754,569,1789,26,156,118,214,134,3562,1928,1585,1256,115,154,60,49,64,39,25,3411,2160,1251,1235,588,647,465,182,111,4,55,12,0,16,1985,1851,956,895,134,1985,1930,0,0,55,1930,25,87,170,106,194,93,329,152,140,396,159,79,55,3508,42,68,566,262,147,2360,38,132,655,516,347,469,203,735,54,223,25,16,198,109,2166,224,147,1942,1683,181,52,98,60,2676,2078,2070,2004,1037,879,33,119,560,530,30,167,164,3,158,34,0,31,3,0,124,11,52,49,12,2004,28,161,363,44,265,100,51,103,168,483,84,82,72,782,221,481,13,216,291]
[]
[]
[]
[]
[]
[]
[]
[]
[]
[]
[]
[]
[]
[]
[]
[]
[]
[]
[]
[]
[]
[]
[]
[]
[]
[]
[]
[]
[]
[]
[]
[]
[]
[]
["Census 2000 SummaryFile3 Sample Data  -  SF3TownQry2aIncomeChar"]
[]
["TOWN_NAME","LOGRECNO","COUSUB","TotalPop","P52Households1","P52HHInc<10K","P52HHInc10to15K","P52HHInc15to20K","P52HHInc20to25K","P52HHInc25to30K","P52HHInc30to35K","P52HHInc35to40K","P52HHInc40to45K","P52HHInc45to50K","P52HHInc50to60K","P52HHInc60to75K","P52HHInc75to100K","P52HHInc100to125K","P52HHInc125to150K","P52HHInc150to200K","P52HHInc>200K","P53MedianHHInc","P54AggregHHInc","P55Households2","P55HHUnder25yrs","P55HH<25HHInc<10K","P55HH<25HHInc10to15K","P55HH<25HHInc15to20K","P55HH<25HHInc20to25K","P55HH<25HHInc25to30K","P55HH<25HHInc30to35K","P55HH<25HHInc35to40K","P55HH<25HHInc40to45K","P55HH<25HHInc45to50K","P55HH<25HHInc50to60K","P55HH<25HHInc60to75K","P55HH<25HHInc75to100K","P55HH<25HHInc100to125K","P55HH<25HHInc125to150K","P55HH<25HHInc150to200K","P55HH<25HHInc>200K","P55HH25to34yrs","P55HH25to34HHInc<10K","P55HH25to34HHInc10to15K","P55HH25to34HHInc15to20K","P55HH25to34HHInc20to25K","P55HH25to34HHInc25to30K","P55HH25to34HHInc30to35K","P55HH25to34HHInc35to40K","P55HH25to34HHInc40to45K","P55HH25to34HHInc45to50K","P55HH25to34HHInc50to60K","P55HH25to34HHInc60to75K","P55HH25to34HHInc75to100K","P55HH25to34HHInc100to125K","P55HH25to34HHInc125to150K","P55HH25to34HHInc150to200K","P55HH25to34HHInc>200K","P55HH35to44yrs","P55HH35to44HHInc<10K","P55HH35to44HHInc10to15K","P55HH35to44HHInc15to20K","P55HH35to44HHInc20to25K","P55HH35to44HHInc25to30K","P55HH35to44HHInc30to35K","P55HH35to44HHInc35to40K","P55HH35to44HHInc40to45K","P55HH35to44HHInc45to50K","P55HH35to44HHInc50to60K","P55HH35to44HHInc60to75K","P55HH35to44HHInc75to100K","P55HH35to44HHInc100to125K","P55HH35to44HHInc125to150K","P55HH35to44HHInc150to200K","P55HH35to44HHInc>200K","P55HH45to54yrs","P55HH45to55HHInc<10K","P55HH45to55HHInc10to15K","P55HH45to55HHInc15to20K","P55HH45to55HHInc20to25K","P55HH45to55HHInc25to30K","P55HH45to55HHInc30to35K","P55HH45to55HHInc35to40K","P55HH45to55HHInc40to45K","P55HH45to55HHInc45to50K","P55HH45to55HHInc50to60K","P55HH45to55HHInc60to75K","P55HH45to55HHInc75to100K","P55HH45to55HHInc100to125K","P55HH45to55HHInc125to150K","P55HH45to55HHInc150to200K","P55HH45to55HHInc>200K","P55HH55to64yrs","P55HH55to64HHInc<10K","P55HH55to64HHInc10to15K","P55HH55to64HHInc15to20K","P55HH55to64HHInc20to25K","P55HH55to64HHInc25to30K","P55HH55to64HHInc30to35K","P55HH55to64HHInc35to40K","P55HH55to64HHInc40to45K","P55HH55to64HHInc45to50K","P55HH55to64HHInc50to60K","P55HH55to64HHInc60to75K","P55HH55to64HHInc75to100K","P55HH55to64HHInc100to125K","P55HH55to64HHInc125to150K","P55HH55to64HHInc150to200K","P55HH55to64HHInc>200K","P55HH65to74yrs","P55HH65to74HHInc<10K","P55HH65to74HHInc10to15K","P55HH65to74HHInc15to20K","P55HH65to74HHInc20to25K","P55HH65to74HHInc25to30K","P55HH65to74HHInc30to35K","P55HH65to74HHInc35to40K","P55HH65to74HHInc40to45K","P55HH65to74HHInc45to50K","P55HH65to74HHInc50to60K","P55HH65to74HHInc60to75K","P55HH65to74HHInc75to100K","P55HH65to74HHInc100to125K","P55HH65to74HHInc125to150K","P55HH65to74HHInc150to200K","P55HH65to74HHInc>200K","P55HH>75yrs","P55HH>75HHInc<10K","P55HH>75HHInc10to15K","P55HH>75HHInc15to20K","P55HH>75HHInc20to25K","P55HH>75HHInc25to30K","P55HH>75HHInc30to35K","P55HH>75HHInc35to40K","P55HH>75HHInc40to45K","P55HH>75HHInc45to50K","P55HH>75HHInc50to60K","P55HH>75HHInc60to75K","P55HH>75HHInc75to100K","P55HH>75HHInc100to125K","P55HH>75HHInc125to150K","P55HH>75HHInc150to200K","P55HH>75HHInc>200K","P56MedHHInc","P56MedHHIncHH<25y","P56MedHHIncHH25to34y","P56MedHHIncHH35to44y","P56MedHHIncHH45to54y","P56MedHHIncHH55to64y","P56MedHHIncHH65to74y","P56MedHHIncHH>75y","P58Households3","P58HHwithEarnings","P58HHNoEarnings","P59HHwWageSalInc","P59HHNoWageSalInc","P60HHwSelfEmpInc","P60HHNoSelfEmpInc","P61HHwIndDivInc","P61HHNoIndDivInc","P62HHwSocSecInc","P62HHNoSocSecInc","P63HHwSSI","P63HHNoSSI","P64HHwPubAssInc","P64HHNoPubAssInc","P65HHwRetInc","P65HHNoRetInc","P66HHwOtherTypInc","P66HHNoOtherTypInc","P67AggregEarnings","P68AggregWageSalInc","P69AggregSelfEmpInc","P70AggregIntDivInc","P71AggregSocSecInc","P72AggregSSIInc","P73AggregPublicAssInc","P74AggregRetireInc","P76Families1","P76FamInc<10K","P76FamInc10to15K","P76FamInc15to20K","P76FamInc20to25K","P76FamInc25to30K","P76FamInc30to35K","P76FamInc35to40K","P76FamInc40to45K","P76FamInc45to50K","P76FamInc50to60K","P76FamInc60to75K","P76FamInc75to100K","P76FamInc100to125K","P76FamInc125to150K","P76FamInc150to200K","P76FamInc>200K","P77MedFamInc","P78AggregFamInc","P79NonFamHH","P79NonFamHHwInc<10K","P79NonFamHHwInc10to15K","P79NonFamHHwInc15to20K","P79NonFamHHwInc20to25K","P79NonFamHHwInc25to30K","P79NonFamHHwInc30to35K","P79NonFamHHwInc35to40K","P79NonFamHHwInc40to45K","P79NonFamHHwInc45to50K","P79NonFamHHwInc50to60K","P79NonFamHHwInc60to75K","P79NonFamHHwInc75to100K","P79NonFamHHwInc100to125K","P79NonFamHHwInc125to150K","P79NonFamHHwInc150to200K","P79NonFamHHwInc200KorMore","P80MedNonFamInc","P82PerCapitaInc"]
["Barrington","0003823","03460",7475,2767,73,106,54,130,233,209,174,154,220,300,360,538,146,18,52,0,50630,155379000,2767,43,4,0,0,10,0,10,7,0,12,0,0,0,0,0,0,0,443,36,17,5,8,23,28,29,45,22,72,43,69,35,0,11,0,849,0,23,11,31,47,30,35,42,71,98,167,229,45,0,20,0,679,13,21,11,28,70,41,45,41,64,71,72,138,33,18,13,0,410,0,0,9,9,33,58,35,8,33,44,69,71,33,0,8,0,254,8,32,18,35,44,32,18,9,18,9,0,31,0,0,0,0,89,12,13,0,9,16,10,5,9,0,6,9,0,0,0,0,0,50630,31875,51012,62974,50724,51429,28611,29141,2767,2489,278,2413,354,459,2308,1043,1724,502,2265,36,2731,64,2703,453,2314,361,2406,135568400,123014900,12553500,4444500,5970100,163100,71300,6515700,2096,43,47,33,105,160,128,93,116,150,212,311,508,133,18,39,0,56136,126321800,671,38,67,31,44,84,72,64,46,51,77,49,22,17,0,9,0,34963,21012]
["Dover","0003832","18820",26884,11542,785,665,619,568,843,921,666,809,598,1132,1510,1236,604,239,200,147,43873,617325200,11542,1055,125,134,139,90,131,78,80,41,76,65,69,17,0,10,0,0,2467,77,49,102,120,152,182,185,216,156,339,445,269,98,38,26,13,2731,140,103,46,72,159,225,203,224,153,239,422,363,226,69,47,40,1970,78,38,52,91,113,167,44,144,71,217,326,337,168,53,43,28,1226,111,82,46,26,99,61,27,57,43,146,126,182,74,29,71,46,1070,53,100,120,101,107,91,88,69,59,69,90,47,28,30,5,13,1023,201,159,114,68,82,117,39,58,40,57,32,21,10,10,8,7,43873,26317,49824,51985,58295,53938,33150,22939,11542,9714,1828,9422,2120,1310,10232,4838,6704,2528,9014,265,11277,366,11176,1884,9658,1360,10182,509542900,471652700,37890300,34470500,28953900,1739200,961400,31810400,6525,215,176,187,249,378,471,300,421,331,745,1005,1087,503,176,151,130,57050,424292600,5017,593,491,461,328,490,456,385,414,287,360,470,131,66,32,36,17,31246,23459]
["Durham","0003871","19700",12664,2887,270,235,212,148,135,93,101,55,130,295,180,372,272,96,165,128,51697,196677100,2887,793,210,106,129,77,46,28,36,14,55,33,24,35,0,0,0,0,319,21,19,29,17,45,4,9,18,8,62,26,30,11,6,14,0,463,17,28,21,13,0,12,5,0,16,52,50,102,54,26,34,33,504,15,7,0,22,7,19,24,13,38,39,40,88,87,27,42,36,277,0,0,8,0,0,5,0,10,13,13,16,67,42,18,54,31,283,7,32,11,7,17,11,11,0,0,62,6,32,46,0,19,22,248,0,43,14,12,20,14,16,0,0,34,18,18,32,19,2,6,51697,18622,43750,77365,85315,103038,56902,51250,2887,2485,402,2434,453,559,2328,1669,1218,563,2324,23,2864,45,2842,486,2401,325,2562,152019200,139411200,12608000,17678800,7750900,164700,107500,15429400,1577,24,35,47,45,31,47,24,18,52,186,154,299,247,86,158,124,83609,155059400,1310,246,203,165,100,104,51,77,37,93,109,35,53,20,12,5,0,22621,17210]
["Farmington","0003904","26020",5774,2134,207,139,121,211,72,146,138,184,89,237,260,193,93,19,22,3,40971,97227000,2134,114,16,16,9,15,6,17,9,10,8,0,8,0,0,0,0,0,332,14,30,5,37,8,8,37,0,24,64,70,24,11,0,0,0,505,20,0,23,30,17,29,36,60,24,74,44,86,44,9,6,3,494,14,26,0,14,17,24,15,92,12,75,106,50,32,10,7,0,344,72,34,27,64,0,44,0,16,14,24,13,21,6,0,9,0,197,43,8,30,27,18,18,22,0,0,0,19,12,0,0,0,0,148,28,25,27,24,6,6,19,6,7,0,0,0,0,0,0,0,40971,25417,50536,51250,53203,23438,21620,19286,2134,1819,315,1801,333,194,1940,563,1571,549,1585,128,2006,118,2016,318,1816,312,1822,84494000,81948900,2545100,1835100,5256300,827900,317500,2353300,1509,51,65,82,109,61,132,110,150,66,180,241,189,61,9,0,3,44788,75184000,625,172,58,45,112,26,23,37,24,23,51,19,0,9,10,16,0,21736,16574]
["Lee","0003919","41460",4145,1469,61,59,32,72,62,72,49,88,103,167,165,281,123,85,32,18,57993,96838400,1469,67,9,9,10,8,0,8,0,6,0,0,0,3,14,0,0,0,251,9,19,0,14,6,10,12,34,50,0,45,22,11,19,0,0,456,19,14,0,25,12,9,18,27,20,54,80,108,37,15,18,0,369,0,0,0,7,13,26,6,21,21,65,12,103,48,34,7,6,150,4,6,4,12,13,8,0,0,6,16,10,37,13,9,7,5,113,10,11,18,6,18,6,6,0,0,18,4,8,0,8,0,0,63,10,0,0,0,0,5,7,0,6,14,14,0,0,0,0,7,57993,21719,46629,66136,76130,62143,28839,51094,1469,1311,158,1263,206,292,1177,702,767,230,1239,29,1440,5,1464,178,1291,152,1317,83184200,77995600,5188600,5832200,3058400,219200,17500,3813300,1082,20,32,7,22,40,52,21,73,99,134,133,227,96,76,32,18,62330,79159300,387,41,36,25,50,18,37,28,23,4,33,14,49,22,7,0,0,31895,23905]
["Madbury","0003928","44820",1509,535,19,28,25,25,15,26,21,44,31,44,71,104,24,17,22,19,57981,38691700,535,21,1,4,6,0,1,0,0,3,3,0,0,0,0,0,0,3,73,7,14,3,9,0,0,2,0,5,8,11,5,5,0,1,3,165,2,4,2,6,7,11,8,12,4,24,22,32,13,10,3,5,126,0,0,1,1,2,7,6,4,12,1,28,39,4,4,15,2,68,5,2,4,4,2,0,2,5,0,9,8,18,2,0,3,4,53,0,4,2,5,3,5,0,17,7,2,2,4,0,0,0,2,29,4,0,7,0,0,3,3,3,0,0,0,6,0,3,0,0,57981,19375,45938,61563,76605,63750,41705,35417,535,480,55,463,72,97,438,277,258,93,442,10,525,7,528,83,452,52,483,33074600,30480300,2594400,2382400,927700,67100,3300,1776800,409,9,12,12,13,8,21,12,39,15,33,64,93,21,18,21,18,67981,32894400,126,10,19,13,12,7,4,9,7,12,16,5,8,3,0,0,1,32500,26524]
["Middleton","0003935","47700",1440,526,22,19,19,31,52,28,52,51,36,71,57,52,16,7,8,5,43942,26551700,526,10,2,0,1,0,5,0,0,0,0,0,0,0,2,0,0,0,63,0,0,2,2,3,7,4,9,7,9,10,4,0,3,0,3,191,2,2,4,4,20,16,21,11,13,30,30,24,6,2,6,0,103,6,4,4,2,0,2,16,12,6,18,9,12,6,2,2,2,77,7,5,4,11,8,1,9,10,4,8,2,8,0,0,0,0,56,2,4,4,8,11,2,2,4,5,6,2,4,2,0,0,0,26,3,4,0,4,5,0,0,5,1,0,4,0,0,0,0,0,43942,27500,46607,50893,49688,35893,28750,27500,526,465,61,444,82,103,423,160,366,122,404,19,507,7,519,76,450,83,443,22801800,20733200,2068600,466800,1301900,153900,5600,1083800,396,11,11,6,22,34,26,35,33,30,64,46,49,14,5,10,0,48529,21149500,130,13,10,11,12,15,8,16,15,6,12,7,0,2,0,0,3,33333,18415]
["Milton","0003940","48660",3910,1440,68,58,64,100,99,100,133,108,132,166,204,140,27,14,27,0,44194,69519000,1440,53,5,0,6,0,5,9,19,0,0,9,0,0,0,0,0,0,194,21,0,7,25,26,5,21,19,9,21,30,5,5,0,0,0,448,7,19,7,7,31,24,32,44,37,64,92,59,12,0,13,0,314,0,10,14,21,17,15,28,22,27,12,69,52,10,6,11,0,191,18,6,6,19,6,13,6,11,29,37,13,16,0,8,3,0,155,5,10,18,5,5,30,24,10,30,14,0,4,0,0,0,0,85,12,13,6,23,9,4,3,2,0,9,0,4,0,0,0,0,44194,35469,37167,52794,51250,48073,35703,21917,1440,1232,208,1204,236,211,1229,496,944,345,1095,92,1348,73,1367,248,1192,183,1257,57427800,51470200,5957600,2688700,4150900,682800,252900,2748900,1076,37,50,28,75,75,70,67,82,102,136,176,127,10,14,27,0,48033,55135500,364,37,32,43,26,28,32,55,12,30,30,24,4,11,0,0,0,33095,18092]
["New Durham","0003950","51220",2220,805,33,23,32,47,53,28,46,64,42,132,116,105,52,6,11,15,52270,48331900,805,10,1,0,2,0,0,0,2,0,2,0,0,3,0,0,0,0,111,2,2,0,6,4,4,0,13,3,26,38,10,2,0,1,0,243,6,2,5,6,14,4,20,17,21,43,33,33,29,0,5,5,186,7,5,9,9,4,4,4,8,6,37,28,43,11,2,5,4,99,4,0,4,10,4,10,8,10,4,12,9,8,10,0,0,6,99,9,8,7,8,13,4,8,14,6,6,6,6,0,4,0,0,57,4,6,5,8,14,2,4,2,0,8,2,2,0,0,0,0,52270,41250,56806,55859,60000,42375,35417,26250,805,670,135,651,154,129,676,304,501,194,611,33,772,22,783,138,667,128,677,39028900,36935400,2093500,3824400,2148700,204300,50600,2199000,630,14,10,25,32,41,29,42,51,33,109,96,83,40,4,6,15,52941,39306800,175,21,13,7,17,15,4,10,8,11,15,15,22,10,2,5,0,40156,22139]
["Rochester","0003956","65140",28461,11397,857,765,696,850,702,898,816,904,733,1170,1331,965,401,108,118,83,40596,531067100,11397,482,60,56,17,75,30,43,69,41,33,8,27,23,0,0,0,0,2112,117,117,130,133,154,130,159,203,210,285,304,113,31,26,0,0,2681,105,102,68,130,179,181,171,226,186,358,435,295,184,30,19,12,2146,125,59,72,128,86,167,150,201,101,270,276,329,87,52,31,12,1489,119,53,69,113,51,130,111,131,153,128,143,138,66,0,48,36,1342,130,141,200,121,114,173,108,67,31,57,122,39,25,0,14,0,1145,201,237,140,150,88,74,48,35,19,64,24,28,8,0,6,23,40596,30313,42302,49740,49149,43917,28250,19771,11397,9126,2271,8956,2441,994,10403,3672,7725,3160,8237,439,10958,625,10772,2234,9163,1743,9654,427659500,407922300,19737300,23516400,34125200,2767100,1751100,27282400,7671,307,345,383,393,375,555,499,628,630,991,1060,858,378,102,96,71,47324,411636500,3726,603,501,345,473,312,379,273,255,86,154,208,86,11,6,22,12,24244,18859]
["Rollinsford","0004003","65540",2648,1043,47,62,62,48,42,49,103,62,77,85,163,141,37,15,23,27,48588,64554500,1043,52,0,10,19,0,5,0,0,0,13,0,0,0,0,0,0,5,181,7,9,0,9,13,8,46,12,14,24,14,14,3,3,5,0,274,8,12,6,4,0,19,25,14,21,16,63,59,11,0,9,7,180,16,5,0,4,4,5,11,13,10,8,42,40,3,8,0,11,142,8,0,5,3,4,4,9,12,3,28,40,12,14,0,0,0,125,0,5,17,19,16,5,12,4,11,5,0,16,6,4,5,0,89,8,21,15,9,0,8,0,7,5,4,4,0,0,0,4,4,48588,19605,39830,61579,65000,53958,37604,20208,1043,867,176,853,190,127,916,456,587,285,758,16,1027,13,1030,226,817,154,889,49318300,45621600,3696600,4888700,3152500,146400,5300,5915600,740,11,21,17,19,30,42,58,26,61,77,148,150,28,16,14,22,60625,53319300,303,36,41,45,29,18,11,39,36,12,8,18,0,0,0,5,5,25250,24444]
["Somersworth","0004012","69940",11477,4704,427,249,213,346,320,303,262,374,399,499,608,457,173,17,45,12,42739,223938000,4704,212,61,22,10,6,10,9,24,11,27,5,17,10,0,0,0,0,1001,57,45,32,77,70,62,43,116,118,119,137,80,45,0,0,0,1109,37,14,28,64,80,63,70,62,132,162,176,110,89,9,13,0,893,60,21,19,24,65,39,44,71,58,160,136,152,30,8,0,6,588,44,36,43,76,28,52,26,69,44,24,75,62,9,0,0,0,450,40,49,42,34,36,42,41,30,11,7,53,27,0,0,32,6,451,128,62,39,65,31,36,14,15,9,22,14,16,0,0,0,0,42739,26750,44896,50163,53609,38690,33448,19583,4704,3821,883,3803,901,318,4386,1594,3110,1224,3480,217,4487,286,4418,879,3825,807,3897,178476500,173811900,4664600,5561300,13185500,1116300,777200,19192200,3092,140,138,128,170,149,211,174,256,304,328,513,377,136,17,45,6,47933,162672000,1612,315,122,100,210,158,92,94,111,109,139,71,56,29,0,0,6,26536,19592]
["Strafford","0004033","73860",3626,1282,29,43,21,47,55,68,54,84,89,164,191,256,108,31,21,21,59044,85354300,1282,14,0,0,0,5,6,0,3,0,0,0,0,0,0,0,0,0,175,6,4,0,4,8,20,6,16,6,14,24,44,9,10,4,0,379,0,0,0,0,4,25,20,39,29,74,68,63,34,12,6,5,382,4,5,3,12,8,11,17,4,38,39,59,121,33,4,8,16,155,4,0,4,14,8,4,4,14,7,11,37,25,20,0,3,0,105,0,15,4,7,21,4,4,11,4,20,3,3,4,5,0,0,72,15,19,10,5,0,4,0,0,5,6,0,0,8,0,0,0,59044,25833,65313,59750,72250,63281,35938,16000,1282,1156,126,1132,150,248,1034,589,693,253,1029,25,1257,19,1263,167,1115,145,1137,71847600,65155200,6692400,6304200,3235100,117600,55100,2848000,1037,6,15,7,36,30,55,46,62,68,155,186,214,89,26,21,21,62238,73803000,245,23,28,14,18,25,17,11,14,25,15,15,20,15,5,0,0,34306,23500]
[]
[]
[]
[]
[]
[]
[]
[]
[]
[]
[]
[]
[]
[]
[]
[]
[]
[]
[]
[]
[]
[]
[]
[]
[]
[]
[]
[]
[]
[]
[]
[]
[]
[]
["Census 2000 SummaryFile3 Sample Data  -  SF3TownQry2bPovertyChar"]
[]
["TOWN_NAME","LOGRECNO","COUSUB","TotalPop","P52Households1","P82PerCapitaInc","P87PopForPovStatus","P87PopWIncBelowPovStatus","P87PopUnder5yrBelowPoverty","P87Pop5yrBelowPoverty","P87Pop5to11yrBelowPoverty","P87Pop12to17yrBelowPoverty","P87Pop18to64yrBelowPoverty","P87Pop65to74yrBelowPoverty","P87PopOver75yrBelowPoverty","P87PopWIncAbovePovStatus","P87PopUnder5yrAbovePoverty","P87Pop5yrAbovePoverty","P87Pop5to11yrAbovePoverty","P87Pop12to17yrAbovePoverty","P87Pop18to64yrAbovePoverty","P87Pop65to74yrAbovePoverty","P87PopOver75yrAbovePoverty","P90Families","P90FamWIncBelowPov","P90MarCupFamWIncBelowPov","P90MCFamWRltdChld<18WIncBelowPov","P90MCFamWRltdChld<5WIncBelowPov","P90MaleHhlrWIncBelowPov","P90MaleHhlrWRltdChld<18yrWIncBelowPov","P90MaleHhlrWRltdChld<5yrWIncBelowPov","P90FemaleHhlrWIncBelowPov","P90FemaleHhlrWRltdChld<18yWIncBelowPov","P90FemaleHhlrWRltdChld<5yWIncBelowPov","P90FamWIncAbovePov","P90MarCupFamWIncAbovePov","P90MCFamWRltdChld<18WIncAbovePov","P90MCFamWRltdChld<5WIncAbovePov","P90MaleHhlrWIncAbovePov","P90MaleHhlrWRltdChld<18yrWIncAbovePov","P90MaleHhlrWRltdChld<5yrWIncAbovePov","P90FemaleHhlrWIncAbovePov","P90FemaleHhlrWRltdChld<18yWIncAbovePov","P90FemaleHhlrWRltdChld<5yWIncAbovePov","P92Households","P92HHwIncBelowPov","P92FamHHwIncBelowPov","P92MCFamHHwIncBelowPov","P92MaleFamHHwIncBelowPov","P92FemaleFamHHwIncBelowPov","P92NonFamHHwIncBelowPov","P92NonFamMaleHHwIncBelowPov","P92NonFamFemaleHHwIncBelowPov","P92HHwIncAbovePov","P92FamHHwIncAbovePov","P92MCFamHHwIncAbovePov","P92MaleFamHHwIncAbovePov","P92FemaleFamHHwIncAbovePov","P92NonFamHHwIncAbovePov","P92NonFamMaleHHwIncAbovePov","P92NonFamFemaleHHwIncAbovePov"]
["Barrington","0003823","03460",7475,2767,21012,7441,411,10,19,71,52,259,0,0,7030,448,143,566,722,4623,368,160,2096,76,34,34,0,0,0,0,42,36,0,2020,1693,839,207,159,110,18,168,136,12,2767,125,76,34,0,42,49,30,19,2642,2020,1693,159,168,622,348,274]
["Dover","0003832","18820",26884,11542,23459,26079,2193,154,44,155,199,1458,51,132,23886,1354,308,1680,1506,16002,1742,1294,6525,310,75,45,13,33,24,16,202,202,41,6215,4888,2175,535,449,226,34,878,571,98,11542,911,310,75,33,202,601,212,389,10631,6215,4888,449,878,4416,2225,2191]
["Durham","0003871","19700",12664,2887,17210,8110,2246,8,7,36,28,2158,7,2,5864,310,84,493,462,3714,443,358,1577,44,18,14,9,0,0,0,26,26,0,1533,1369,653,135,30,12,4,134,121,8,2887,669,44,18,0,26,625,263,362,2218,1533,1369,30,134,685,339,346]
["Farmington","0003904","26020",5774,2134,16574,5727,545,55,9,41,48,325,43,24,5182,304,82,486,561,3219,292,238,1509,95,40,27,17,20,20,14,35,28,0,1414,1159,585,82,80,51,0,175,119,14,2134,230,95,40,20,35,135,65,70,1904,1414,1159,80,175,490,265,225]
["Lee","0003919","41460",4145,1469,23905,4114,211,23,0,30,21,120,6,11,3903,247,46,390,462,2483,170,105,1082,47,0,0,0,13,13,0,34,34,9,1035,921,539,99,22,22,0,92,84,10,1469,95,47,0,13,34,48,27,21,1374,1035,921,22,92,339,216,123]
["Madbury","0003928","44820",1509,535,26524,1501,87,7,4,5,2,65,0,4,1414,69,34,136,184,877,76,38,409,16,10,4,0,0,0,0,6,3,0,393,327,192,16,24,13,2,42,28,2,535,32,16,10,0,6,16,6,10,503,393,327,24,42,110,52,58]
["Middleton","0003935","47700",1440,526,18415,1433,104,16,0,2,12,65,6,3,1329,86,7,132,149,821,97,37,396,18,12,4,0,4,2,2,2,2,2,378,307,151,23,33,26,6,38,25,0,526,35,18,12,4,2,17,7,10,491,378,307,33,38,113,81,32]
["Milton","0003940","48660",3910,1440,18092,3903,307,62,26,39,36,126,9,9,3596,167,48,346,324,2330,258,123,1076,66,16,11,0,35,35,0,15,15,0,1010,842,371,66,59,29,18,109,81,0,1440,87,66,16,35,15,21,0,21,1353,1010,842,59,109,343,190,153]
["New Durham","0003950","51220",2220,805,22139,2200,112,5,0,13,20,58,9,7,2088,140,27,195,195,1304,155,72,630,23,15,9,0,2,2,2,6,6,0,607,539,261,47,36,29,4,32,17,0,805,40,23,15,2,6,17,8,9,765,607,539,36,32,158,105,53]
["Rochester","0003956","65140",28461,11397,18859,28140,2357,244,66,276,290,1165,114,202,25783,1611,257,2061,2297,16264,1960,1333,7671,481,130,65,15,26,21,0,325,313,87,7190,5856,2674,608,431,301,80,903,594,118,11397,986,481,130,26,325,505,133,372,10411,7190,5856,431,903,3221,1579,1642]
["Rollinsford","0004003","65540",2648,1043,24444,2644,98,0,0,13,21,53,0,11,2546,178,27,241,179,1608,197,116,740,19,7,3,0,0,0,0,12,12,0,721,632,313,61,47,26,13,42,26,7,1043,46,19,7,0,12,27,22,5,997,721,632,47,42,276,125,151]
["Somersworth","0004012","69940",11477,4704,19592,11334,995,130,30,106,58,549,41,81,10339,664,135,945,820,6538,688,549,3092,196,27,27,19,14,14,0,155,148,77,2896,2296,1053,290,156,72,18,444,356,67,4704,473,196,27,14,155,277,99,178,4231,2896,2296,156,444,1335,639,696]
["Strafford","0004033","73860",3626,1282,23500,3620,67,8,0,4,4,36,0,15,3553,201,44,375,448,2221,181,83,1037,10,0,0,0,0,0,0,10,10,6,1027,879,487,63,34,27,4,114,61,4,1282,33,10,0,0,10,23,5,18,1249,1027,879,34,114,222,116,106]
[]
[]
[]
[]
[]
[]
[]
[]
[]
[]
[]
[]
[]
[]
[]
[]
[]
[]
[]
[]
[]
[]
[]
[]
[]
[]
[]
[]
[]
[]
[]
[]
[]
[]
["Census 2000 SummaryFile3 Sample Data  -  SF3TownQry7HousingA"]
[]
["TOWN_NAME","LOGRECNO","COUSUB","TotalPop","H1HousingUnitsTotal","H2SampleHU","H2SampleOccHU","H2SampleVacHU","H3HU100pctCount","H5HUTotal","H5HUUrban","H5HUUrbanInUrbanAreas","H5HUUrbanInUrbanClusters","H5HURural","H5HURuralFarm","H5HURuralNonFarm","H7HUOcc","H7HUOwnrOcc","H7HURentrOcc","H8HUVacant","H8HUVacantForRent","H8HUVacantForSale","H8HUVacRentedorSold","H8HUVacSeasonal","H8HUVacForMigrantWrkrs","H8HUOtherVacant","H14OccHUa","H14OwnerOccHU","H14OwnOccHuHh15to24","H14OwnOccHuHh25to34","H14OwnOccHuHh35to44","H14OwnOccHuHh45to54","H14OwnOccHuHh55to59","H14OwnOccHuHh60to64","H14OwnOccHuHh65to74","H14OwnOccHuHh75to84","H14OwnOccHuHh85Over","H14RenterOccHU1","H14RntrOccHuHh15to24","H14RntrOccHuHh25to34","H14RntrOccHuHh35to44","H14RntrOccHuHh45to54","H14RntrOccHuHh55to59","H14RntrOccHuHh60to64","H14RntrOccHuHh65to74","H14RntrOccHuHh75to84","H14RntrOccHuHh85Over","H15PopInOccHU","H15PopInOwnOccHU1","H15PopInRentOccHU1","H17OccupHUb","H17OwnOccHU2","H17OwnOccHU1PersonHH","H17OwnOccHU2PersonHH","H17OwnOccHU3PersonHH","H17OwnOccHU4PersonHH","H17OwnOccHU5PersonHH","H17OwnOccHU6PersonHH","H17OwnOccHU7PlusPersonHH","H17RentOccHU2","H17RntOccHU1PersonHH","H17RntOccHU2PersonHH","H17RntOccHU3PersonHH","H17RntOccHU4PersonHH","H17RntOccHU5PersonHH","H17RntOccHU6PersonHH","H17RntOccHU7PlusPersonHH","H18AvgHHSize","H18AvgHHSizeOwnOcc","H18AvgHHSizeRentOcc","H23TotHU","H23HU1Room","H23HU2Room","H23HU3Room","H23HU4Room","H23HU5Room","H23HU6Room","H23HU7Room","H23HU8Room","H23HU9orMoreRoom","H24MedianNumRooms","H25AggregNumRooms","H30TotalHU","H30Det1HU","H30Att1HU","H30Units2","H30Units3or4","H30Units5to9","H30Units10to19","H30Units20to49","H30Units50orMore","H30UnitsMobileHome","H30UnitsBoatRv","H32OccHUcTotal","H32OwnerOccHU3","H32OwnOccHU1Det","H32OwnOccHU1Att","H32OwnOccHU2Unit","H32OwnOccHU3to4Unit","H32OwnOccHU5to9Unit","H32OwnOccHU10to19Unit","H32OwnOccHU20to49Unit","H32OwnOccHU50plusUnit","H32OwnOccHUMobHom","H32OwnOccHUBoatRVOth","H32RentrOccHU3","H32RntrOccHU1Det","H32RntrOccHU1Att","H32RntrOccHU2Unit","H32RntrOccHU3to4Unit","H32RntrOccHU5to9Unit","H32RntrOccHU10to19Unit","H32RntrOccHU20to49Unit","H32RntrOccHU50PlusUnit","H32RntrOccHUMobHom","H32RntrOccHUBoatRVOth","H33TotPopInOccHU","H33PopInOwnOccHU2","H33PopInOOHU1Det","H33PopInOOHU1Att","H33PopInOOHU2unit","H33PopInOOHU3to4Unit","H33PopInOOHU5to9Unit","H33PopInOOHU10to19Unit","H33PopInOOHU20to49Unit","H33PopInOOHU50PlusUnit","H33PopInOOHUMobilHome","H33PopInOOHUOtherUnit","H33PopInRentOccHU2","H33PopInROHU1Det","H33PopInROHU1Att","H33PopInROHU2Unit","H33PopInROHU3to4Unit","H33PopInROHU5to9Unit","H33PopInROHU10to19Unit","H33PopInROHU20to49Unit","H33PopInROHU50PlusUnit","H33PopInROHUMobilHome","H33PopInROHUOtherUnit","H36OccHousingUnitsdTotal","H36OwnerOccHU4","H36OOHUBuilt99to0300","H36OOHUBuilt95to98","H36OOHUBuilt90to94","H36OOHUBuilt80to89","H36OOHUBuilt70to79","H36OOHUBuilt60to69","H36OOHUBuilt50to59","H36OOHUBuilt40to49","H36OOHUBuilt39Earlier","H36RentOccHU4","H36ROHUBuilt99to0300","H36ROHUBuilt95to98","H36ROHUBuilt90to94","H36ROHUBuilt80to89","H36ROHUBuilt70to79","H36ROHUBuilt60to69","H36ROHUBuilt50to59","H36ROHUBuilt40to49","H36ROHUBuilt39Earlier","H40OccupHousUnitse","H40HeatFuelUtilGas","H40HeatFuelBotGas","H40HeatFuelElect","H40HeatFuelOilKero","H40HeatFuelCoal","H40HeatFuelWood","H40HeatFuelSolar","H40HeatFuelOther","H40HeatFuelNone","H41TotalHU","H41HUNoBdrm","H41HU1Bdrm","H41HU2Bdrm","H41HU3Bdrm","H41HU4Bdrm","H41HU5MoreBdrm","H42OccuHousUnitf","H42OwnerOccHU5","H42OOHUNoBdrm","H42OOHU1Bdrm","H42OOHU2Bdrm","H42OOHU3Bdrm","H42OOHU4Bdrm","H42OOHU5PlusBdrm","H42RentOccHU5","H42ROHUNoBdrm","H42ROHU1Bdrm","H42ROHU2Bdrm","H42ROHU3Bdrm","H42ROHU4Bdrm","H42ROHU5PlusBdrm","H48OccupHousUnitsg","H48OwnerOccHU6","H48OOHUwCompltPlumFacil","H48OOHULackCompltPlumFacil","H48RentOccHU6","H48ROHUwCompltPlumFacil","H48ROHULackCompltPlumFacil","H51OccupHousUnitf","H51OwnerOccHU7","H51OOHUwCompleteKitFacil","H51OOHULackCompleteKitFacil","H51RenterOccHU7","H51ROHUwCompleteKitFacil","H51ROHULackCompleteKitFacil"]
["Barrington","0003823","03460",7475,3147,379,343,36,3147,3147,0,0,0,3147,15,3132,2756,2345,411,391,0,20,0,314,0,57,2756,2345,18,319,756,603,241,114,208,78,8,411,29,173,116,75,0,0,18,0,0,7467,6781,686,2756,2345,332,823,448,508,178,47,9,411,135,170,70,13,11,12,0,3,3,2,3147,41,127,166,642,662,605,447,268,189,5,17464,3147,2290,28,40,47,92,46,0,0,556,48,2756,2345,1864,28,32,6,0,0,0,0,415,0,411,159,0,8,41,92,46,0,0,57,8,7467,6781,5554,63,87,5,0,0,0,0,1072,0,686,288,0,6,80,133,76,0,0,96,7,2756,2345,55,300,209,626,564,175,116,59,241,411,0,9,20,105,111,56,63,8,39,2756,13,588,102,1872,8,139,0,9,25,3147,49,265,1052,1301,370,110,2756,2345,0,102,606,1185,363,89,411,23,76,239,73,0,0,2756,2345,2319,26,411,392,19,2756,2345,2335,10,411,392,19]
["Dover","0003832","18820",26884,11924,1632,1586,46,11924,11924,11216,11216,0,708,0,708,11573,5909,5664,351,74,124,15,97,0,41,11573,5909,37,831,1472,1182,453,395,852,553,134,5664,999,1742,1227,732,188,124,283,218,151,26125,15329,10796,11573,5909,1159,2408,1025,888,332,59,38,5664,2429,1863,718,460,132,41,21,2,3,2,11924,178,523,1851,2495,1968,2005,1263,951,690,5,61976,11924,5243,628,1134,1425,1102,630,833,522,407,0,11573,5909,4644,429,270,143,80,7,0,0,336,0,5664,466,179,774,1249,1006,612,811,510,57,0,26125,15329,12655,888,695,272,118,12,0,0,689,0,10796,1163,435,1929,2414,1757,1017,1410,583,88,0,11573,5909,152,305,296,1132,590,670,1043,362,1359,5664,56,167,156,892,985,579,383,357,2089,11573,3377,611,1212,6242,5,79,0,25,22,11924,184,2255,4150,3779,1226,330,11573,5909,0,166,1509,3014,953,267,5664,170,2034,2461,696,240,63,11573,5909,5892,17,5664,5610,54,11573,5909,5892,17,5664,5619,45]
["Durham","0003871","19700",12664,2923,441,432,9,2923,2923,2200,2193,7,723,0,723,2882,1627,1255,41,10,14,1,16,0,0,2882,1627,9,128,303,439,138,143,250,189,28,1255,754,185,96,112,17,0,50,24,17,8078,4474,3604,2882,1627,223,605,305,327,148,19,0,1255,354,266,192,296,58,84,5,3,3,3,2923,110,177,261,392,359,297,380,479,468,6,17564,2923,1747,119,144,198,275,155,260,25,0,0,2882,1627,1510,61,42,14,0,0,0,0,0,0,1255,204,53,102,184,272,155,260,25,0,0,8078,4474,4235,138,90,11,0,0,0,0,0,0,3604,464,120,245,562,819,433,888,73,0,0,2882,1627,38,99,87,321,283,326,196,75,202,1255,0,0,116,260,271,258,139,46,165,2882,118,260,619,1806,0,67,0,6,6,2923,116,341,688,906,682,190,2882,1627,0,13,183,632,638,161,1255,116,320,500,260,33,26,2882,1627,1620,7,1255,1248,7,2882,1627,1627,0,1255,1235,20]
["Farmington","0003904","26020",5774,2337,293,269,24,2337,2337,0,0,0,2337,18,2319,2146,1511,635,191,31,16,0,94,0,50,2146,1511,8,248,381,421,122,90,114,111,16,635,107,132,110,77,75,53,58,15,8,5747,4251,1496,2146,1511,224,567,258,285,112,40,25,635,238,164,99,92,31,6,5,3,3,2,2337,34,54,201,519,424,508,286,174,137,5,12753,2337,1400,14,104,117,129,93,47,0,416,17,2146,1511,1214,14,22,5,0,0,8,0,248,0,635,113,0,82,105,107,85,39,0,104,0,5747,4251,3515,30,60,33,0,0,14,0,599,0,1496,378,0,226,206,245,140,49,0,252,0,2146,1511,52,82,125,301,193,79,33,60,586,635,33,0,23,104,115,36,58,69,197,2146,18,228,139,1660,0,101,0,0,0,2337,40,285,811,860,272,69,2146,1511,17,72,427,673,259,63,635,6,190,295,125,13,6,2146,1511,1503,8,635,625,10,2146,1511,1496,15,635,635,0]
["Lee","0003919","41460",4145,1534,244,233,11,1534,1534,7,7,0,1527,17,1510,1466,1101,365,68,10,3,0,55,0,0,1466,1101,6,110,363,306,89,71,99,42,15,365,44,123,95,47,29,7,15,5,0,4126,3068,1058,1466,1101,156,380,167,281,71,37,9,365,104,95,62,64,35,5,0,3,3,3,1534,13,39,95,299,221,264,209,188,206,6,9288,1534,1013,88,94,53,92,24,0,0,170,0,1466,1101,894,38,36,7,0,0,0,0,126,0,365,74,50,58,43,92,24,0,0,24,0,4126,3068,2605,94,112,12,0,0,0,0,245,0,1058,274,145,186,111,272,45,0,0,25,0,1466,1101,53,100,72,419,191,101,23,14,128,365,0,32,0,131,68,27,32,0,75,1466,32,264,50,971,0,143,0,6,0,1534,13,117,449,613,304,38,1466,1101,0,30,247,539,253,32,365,13,78,158,74,36,6,1466,1101,1095,6,365,365,0,1466,1101,1096,5,365,365,0]
["Madbury","0003928","44820",1509,543,257,251,6,543,543,80,80,0,463,14,449,534,410,124,9,1,2,2,2,0,2,534,410,1,29,140,129,23,32,38,18,0,124,24,48,29,12,2,2,2,2,3,1509,1239,270,534,410,51,142,78,84,36,17,2,124,30,46,16,19,10,3,0,3,3,2,543,3,11,18,77,88,89,102,81,74,6,3463,543,363,34,48,20,3,0,3,0,72,0,534,410,333,8,13,0,0,0,0,0,56,0,124,25,25,33,20,3,0,3,0,15,0,1509,1239,1051,16,27,0,0,0,0,0,145,0,270,76,47,75,36,3,0,4,0,29,0,534,410,13,33,31,117,93,29,26,6,62,124,0,4,9,18,28,2,11,5,47,534,6,48,42,417,0,19,2,0,0,543,3,32,140,205,135,28,534,410,0,5,83,171,131,20,124,3,27,50,34,2,8,534,410,410,0,124,124,0,534,410,410,0,124,124,0]
["Middleton","0003935","47700",1440,707,336,242,94,706,707,0,0,0,707,12,695,516,464,52,191,0,7,2,177,0,5,516,464,6,55,168,92,34,25,59,21,4,52,4,8,17,6,8,6,2,1,0,1441,1307,134,516,464,59,174,87,85,40,13,6,52,17,14,6,12,3,0,0,3,3,3,707,3,0,34,167,202,174,69,33,25,5,3824,707,629,8,2,0,0,0,0,0,67,1,516,464,409,4,2,0,0,0,0,0,49,0,52,41,2,0,0,0,0,0,0,8,1,1441,1307,1180,9,5,0,0,0,0,0,113,0,134,104,2,0,0,0,0,0,0,26,2,516,464,9,18,29,167,83,76,22,12,48,52,3,0,0,9,14,15,5,2,4,516,0,98,5,360,2,51,0,0,0,707,3,37,278,308,65,16,516,464,0,14,173,213,50,14,52,1,9,19,18,5,0,516,464,461,3,52,51,1,516,464,461,3,52,51,1]
["Milton","0003940","48660",3910,1815,288,232,56,1815,1815,695,695,0,1120,5,1115,1456,1158,298,359,11,15,14,313,0,6,1456,1158,18,87,305,292,133,41,174,103,5,298,24,87,75,47,11,14,13,27,0,3910,3097,813,1456,1158,186,441,198,212,81,31,9,298,88,73,83,29,21,4,0,3,3,3,1815,7,42,67,340,463,431,247,106,112,6,10250,1815,1260,11,73,48,30,23,0,0,349,21,1456,1158,881,0,0,6,0,6,0,0,265,0,298,75,11,51,36,30,17,0,0,78,0,3910,3097,2397,0,0,6,0,11,0,0,683,0,813,158,77,122,97,71,35,0,0,253,0,1456,1158,12,63,76,364,187,20,79,22,335,298,0,5,26,54,52,10,39,12,100,1456,23,166,6,1197,0,64,0,0,0,1815,7,142,604,782,231,49,1456,1158,0,56,301,555,197,49,298,0,47,149,102,0,0,1456,1158,1158,0,298,298,0,1456,1158,1158,0,298,298,0]
["New Durham","0003950","51220",2220,1308,615,381,234,1309,1308,0,0,0,1308,8,1300,817,744,73,491,9,4,0,469,0,9,817,744,8,83,226,178,57,40,97,51,4,73,2,19,32,10,2,0,4,4,0,2216,1975,241,817,744,126,277,152,112,51,22,4,73,14,18,10,15,10,3,3,3,3,3,1308,4,30,99,237,305,305,176,86,66,5,7244,1308,1175,11,12,4,0,0,2,0,104,0,817,744,655,7,4,2,0,0,2,0,74,0,73,47,0,6,2,0,0,0,0,18,0,2216,1975,1779,10,3,4,0,0,4,0,175,0,241,141,0,23,2,0,0,0,0,75,0,817,744,24,47,66,224,122,68,33,24,136,73,0,11,8,22,8,8,0,6,10,817,9,105,12,603,0,88,0,0,0,1308,6,111,467,581,131,12,817,744,2,28,228,383,91,12,73,0,6,38,26,3,0,817,744,732,12,73,73,0,817,744,738,6,73,73,0]
["Rochester","0003956","65140",28461,11836,1590,1542,48,11836,11836,9512,9512,0,2324,41,2283,11434,7637,3797,402,104,25,16,106,0,151,11434,7637,111,985,1835,1652,662,543,1089,646,114,3797,351,1068,935,516,160,118,296,237,116,28168,20039,8129,11434,7637,1506,2834,1401,1300,464,108,24,3797,1431,1166,556,370,185,89,0,2,3,2,11836,55,281,1391,2703,2850,2026,1263,751,516,5,62017,11836,5727,402,707,1133,890,169,351,212,2239,6,11434,7637,5154,277,164,91,65,0,9,0,1871,6,3797,467,125,527,963,750,165,342,200,258,0,28168,20039,14516,635,457,170,139,0,7,0,4105,10,8129,1271,236,1316,2168,1459,277,619,229,554,0,11434,7637,151,469,573,1841,1227,688,709,473,1506,3797,82,168,147,657,627,237,333,246,1300,11434,2273,1063,739,7069,7,188,0,54,41,11836,103,1671,4384,4227,1281,170,11434,7637,0,252,2561,3568,1111,145,3797,95,1315,1609,589,164,25,11434,7637,7572,65,3797,3776,21,11434,7637,7623,14,3797,3779,18]
["Rollinsford","0004003","65540",2648,1060,252,246,6,1060,1060,984,984,0,76,0,76,1033,722,311,27,12,9,0,6,0,0,1033,722,4,61,204,121,61,70,102,83,16,311,38,115,82,37,14,8,8,9,0,2648,1957,691,1033,722,124,258,127,146,48,16,3,311,103,105,63,31,6,3,0,3,3,2,1060,0,22,106,151,195,230,176,82,98,6,6189,1060,700,7,109,80,112,19,11,0,22,0,1033,722,646,3,37,17,0,0,0,0,19,0,311,43,4,64,59,112,15,11,0,3,0,2648,1957,1772,13,75,64,0,0,0,0,33,0,691,132,4,137,105,253,37,20,0,3,0,1033,722,13,12,52,145,88,70,97,66,179,311,0,0,0,30,33,15,26,27,180,1033,17,138,42,790,12,26,0,5,3,1060,4,148,235,485,150,38,1033,722,0,24,98,432,141,27,311,4,106,132,49,9,11,1033,722,722,0,311,311,0,1033,722,722,0,311,311,0]
["Somersworth","0004012","69940",11477,4841,579,569,10,4841,4841,4731,4731,0,110,6,104,4687,2660,2027,154,115,22,8,9,0,0,4687,2660,12,393,755,631,180,119,299,248,23,2027,173,651,411,263,95,90,141,123,80,11445,7249,4196,4687,2660,514,990,467,447,178,44,20,2027,744,606,369,213,81,0,14,2,3,2,4841,26,146,598,1124,920,994,491,245,297,5,25539,4841,2159,139,489,733,300,159,341,24,497,0,4687,2660,1890,99,139,49,18,0,0,0,465,0,2027,220,40,350,640,256,159,316,24,22,0,11445,7249,5398,213,385,120,95,0,0,0,1038,0,4196,556,109,902,1197,499,307,493,38,95,0,4687,2660,30,87,106,428,489,201,440,228,651,2027,46,19,25,138,394,197,233,199,776,4687,1011,212,257,3157,0,41,0,9,0,4841,34,808,1650,1506,715,128,4687,2660,0,75,761,1107,589,128,2027,34,653,827,399,114,0,4687,2660,2654,6,2027,2009,18,4687,2660,2644,16,2027,2017,10]
["Strafford","0004033","73860",3626,1564,360,305,55,1564,1564,0,0,0,1564,39,1525,1281,1138,143,283,7,4,16,247,0,9,1281,1138,4,121,366,333,91,54,108,38,23,143,12,32,30,32,19,5,9,4,0,3617,3330,287,1281,1138,153,390,206,250,94,40,5,143,43,65,17,13,5,0,0,3,3,2,1564,5,31,84,220,267,396,286,144,131,6,9374,1564,1389,15,50,13,0,0,0,0,97,0,1281,1138,1053,7,4,0,0,0,0,0,74,0,143,69,8,36,13,0,0,0,0,17,0,3617,3330,3112,22,8,0,0,0,0,0,188,0,287,140,26,85,16,0,0,0,0,20,0,1281,1138,53,80,129,338,216,62,61,12,187,143,0,0,15,50,17,4,9,6,42,1281,7,220,33,855,0,160,0,6,0,1564,5,91,490,682,268,28,1281,1138,0,16,293,576,225,28,143,0,39,68,23,13,0,1281,1138,1138,0,143,143,0,1281,1138,1127,11,143,143,0]
[]
[]
[]
[]
[]
[]
[]
[]
[]
[]
[]
[]
[]
[]
[]
[]
[]
[]
[]
[]
[]
[]
[]
[]
[]
[]
[]
[]
[]
[]
[]
[]
[]
[]
[]
["Census 2000 SummaryFile3 Sample Data  -  SF3TownQry8HousingCostA"]
[]
["TOWN_NAME","LOGRECNO","COUSUB","TotalPop","H62RntrOccHU","H62RntrOccHUwRent","H62ROHUGRent<100","H62ROHUGRent100to149","H62ROHUGRent150to199","H62ROHUGRent200to249","H62ROHUGRent250to299","H62ROHUGRent300to349","H62ROHUGRent350to399","H62ROHUGRent400to449","H62ROHUGRent450to499","H62ROHUGRent500to549","H62ROHUGRent550to599","H62ROHUGRent600to649","H62ROHUGRent650to699","H62ROHUGRent700to749","H62ROHUGRent750to799","H62ROHUGRent800to899","H62ROHUGRent900to999","H62ROHUGRent1000to1249","H62ROHUGRent1250to1499","H62ROHUGRent1500to1999","H62ROHUGRent2000>","H62ROHUNoGRent","H63MedianGrossRnt","H69RenterOccHsU","H69GRnt<10PctHHInc","H69GRnt10to15PctHHInc","H69GRnt15to20PctHHInc","H69GRnt20to25PctHHInc","H69GRnt25to30PctHHInc","H69GRnt30to35PctHHInc","H69GRnt35to40PctHHInc","H69GRnt40to50PctHHInc","H69GRnt>50PctHHInc","H69GRntPctNotcomputed","H73RenterOccHU","H73ROHUHhInc<10k","H73ROHUHhInc<10kRnt<20pct","H73ROHUHhInc<10kRnt20to25pct","H73ROHUHhInc<10kRnt25to30pct","H73ROHUHhInc<10kRnt30to35pct","H73ROHUHhInc<10kRnt>35pct","H73ROHUHhInc<10kPctNotComput","H73ROHUHhInc10to20k","H73ROHUHhInc10to20kRnt<20pct","H73ROHUHhInc10to20kRnt20to25pct","H73ROHUHhInc10to20kRnt25to30pct","H73ROHUHhInc10to20kRnt30to35pct","H73ROHUHhInc10to20kRnt>35pct","H73ROHUHhInc10to20kRntPctNC","H73ROHUHhInc20to35k","H73ROHUHhInc20to35kRnt<20pct","H73ROHUHhInc20to35kRnt20to25pct","H73ROHUHhInc20to35kRnt25to30pct","H73ROHUHhInc20to35kRnt30to35pct","H73ROHUHhInc20to35kRnt>35pct","H73ROHUHhInc20to35kRntPctNC","H73ROHUHhInc35to40k","H73ROHUHhInc35to40kRnt<20pct","H73ROHUHhInc35to40kRnt20to25pct","H73ROHUHhInc35to40kRnt25to30pct","H73ROHUHhInc35to40kRnt30to35pct","H73ROHUHhInc35to40kRnt>35pct","H73ROHUHhInc35to40kRntPctNC","H73ROHUHhInc50to75k","H73ROHUHhInc50to75kRnt<20pct","H73ROHUHhInc50to75kRnt20to25pct","H73ROHUHhInc50to75kRnt25to30pct","H73ROHUHhInc50to75kRnt30to35pct","H73ROHUHhInc50to75kRnt>35pct","H73ROHUHhInc50to75kRntPctNC","H73ROHUHhInc75to100k","H73ROHUHhInc75to100kRnt<20pct","H73ROHUHhInc75to100kRnt20to25pct","H73ROHUHhInc75to100kRnt25to30pct","H73ROHUHhInc75to100kRnt30to35pct","H73ROHUHhInc75to100kRnt>35pct","H73ROHUHhInc75to100kRntPctNC","H73ROHUHhInc>100k","H73ROHUHhInc>100kRnt<20pct","H73ROHUHhInc>100kRnt20to25pct","H73ROHUHhInc>100kRnt25to30pct","H73ROHUHhInc>100kRnt30to35pct","H73ROHUHhInc>100kRnt>35pct","H73ROHUHhInc>100kRntPctNC"]
["Barrington","0003823","03460",7475,411,374,0,8,10,0,0,0,9,8,29,24,28,53,37,46,66,8,10,38,0,0,0,37,674,411,8,80,37,41,34,39,35,52,40,45,411,24,0,0,0,0,9,15,63,10,0,0,0,53,0,157,0,31,24,39,55,8,94,52,0,10,0,10,22,73,63,10,0,0,0,0,0,0,0,0,0,0,0,0,0,0,0,0,0,0]
["Dover","0003832","18820",26884,5652,5578,25,38,155,145,153,104,94,147,273,484,709,586,637,458,363,479,234,364,105,25,0,74,639,5652,323,744,927,915,816,380,242,400,750,155,5652,651,15,15,53,37,442,89,906,89,39,54,61,647,16,1469,166,292,484,240,274,13,1250,578,401,190,28,29,24,979,793,147,25,14,0,0,242,204,21,10,0,0,7,155,149,0,0,0,0,6]
["Durham","0003871","19700",12664,1214,1158,0,0,28,18,26,54,94,189,80,144,18,43,50,24,14,7,29,114,111,108,7,56,531,1214,92,71,104,123,60,117,47,70,434,96,1214,254,0,0,0,6,208,40,350,24,5,33,62,218,8,233,35,69,15,6,90,18,149,82,23,0,12,28,4,152,61,15,12,31,7,26,44,33,11,0,0,0,0,32,32,0,0,0,0,0]
["Farmington","0003904","26020",5774,629,614,0,37,41,29,17,25,23,57,43,24,49,41,38,16,29,30,91,24,0,0,0,15,561,629,20,75,125,104,129,27,0,41,93,15,629,111,0,16,46,0,49,0,110,16,0,26,9,59,0,124,42,23,16,10,26,7,146,81,16,41,8,0,0,118,61,49,0,0,0,8,0,0,0,0,0,0,0,20,20,0,0,0,0,0]
["Lee","0003919","41460",4145,340,328,0,0,0,0,0,0,7,16,30,27,5,12,5,33,38,41,48,22,17,21,6,12,788,340,14,24,81,73,45,12,8,15,56,12,340,34,0,0,0,0,34,0,34,0,7,0,0,27,0,70,9,15,32,0,9,5,81,14,39,13,5,3,7,81,61,7,0,7,6,0,18,13,5,0,0,0,0,22,22,0,0,0,0,0]
["Madbury","0003928","44820",1509,102,97,0,0,0,0,0,0,5,3,5,5,14,13,0,6,7,15,8,9,5,2,0,5,729,102,3,9,23,18,3,5,3,9,22,7,102,6,0,0,0,0,4,2,32,0,0,0,3,24,5,13,0,7,0,0,6,0,19,5,11,3,0,0,0,22,20,0,0,2,0,0,5,5,0,0,0,0,0,5,5,0,0,0,0,0]
["Middleton","0003935","47700",1440,45,34,0,0,0,0,0,0,0,5,0,2,6,13,2,0,1,0,5,0,0,0,0,11,615,45,3,6,8,0,7,3,4,0,3,11,45,2,0,0,0,0,0,2,7,0,0,0,2,3,2,14,0,0,7,0,4,3,9,6,0,0,1,0,2,8,8,0,0,0,0,0,3,3,0,0,0,0,0,2,0,0,0,0,0,2]
["Milton","0003940","48660",3910,280,256,0,0,0,0,21,0,11,21,11,23,38,16,47,0,16,36,11,0,5,0,0,24,609,280,5,49,17,44,29,31,22,33,21,29,280,31,0,0,0,6,15,10,56,0,0,11,11,29,5,84,5,15,18,8,32,6,42,17,19,0,6,0,0,45,35,10,0,0,0,0,14,14,0,0,0,0,0,8,0,0,0,0,0,8]
["New Durham","0003950","51220",2220,71,62,0,0,0,0,0,2,2,2,4,0,4,8,5,6,2,6,10,11,0,0,0,9,733,71,6,12,10,3,9,6,2,3,9,11,71,4,0,0,0,0,2,2,11,0,2,0,0,7,2,17,2,0,2,4,5,4,13,8,1,2,2,0,0,20,12,0,5,0,0,3,2,2,0,0,0,0,0,4,4,0,0,0,0,0]
["Rochester","0003956","65140",28461,3777,3666,44,108,65,101,103,112,170,164,280,340,340,358,450,255,238,273,84,137,37,0,7,111,601,3777,212,448,594,464,519,267,209,232,682,150,3777,575,25,56,37,0,423,34,740,83,46,79,57,459,16,1016,180,150,259,166,212,49,751,339,188,136,44,29,15,486,439,16,8,0,0,23,135,119,8,0,0,0,8,74,69,0,0,0,0,5]
["Rollinsford","0004003","65540",2648,301,284,0,0,0,0,0,4,15,41,13,30,22,40,45,25,23,22,0,4,0,0,0,17,621,301,8,39,97,40,14,29,9,16,32,17,301,27,0,0,0,0,19,8,59,0,0,8,10,38,3,38,15,4,0,19,0,0,116,68,36,6,0,0,6,61,61,0,0,0,0,0,0,0,0,0,0,0,0,0,0,0,0,0,0,0]
["Somersworth","0004012","69940",11477,2021,1961,0,25,102,70,109,39,84,62,111,116,169,228,269,175,98,180,43,75,6,0,0,60,621,2021,131,219,396,257,188,204,173,144,222,87,2021,365,9,17,36,67,201,35,273,17,0,26,18,204,8,542,105,71,104,119,126,17,439,267,138,16,0,8,10,309,255,31,6,0,0,17,68,68,0,0,0,0,0,25,25,0,0,0,0,0]
["Strafford","0004033","73860",3626,134,102,0,0,0,4,0,0,0,10,9,12,0,29,8,8,5,4,4,5,4,0,0,32,628,134,18,4,30,24,18,4,0,0,4,32,134,0,0,0,0,0,0,0,8,0,0,0,0,4,4,42,10,4,18,0,0,10,40,12,15,0,4,0,9,17,12,5,0,0,0,0,18,13,0,0,0,0,5,9,5,0,0,0,0,4]
[]
[]
[]
[]
[]
[]
[]
[]
[]
[]
[]
[]
[]
[]
[]
[]
[]
[]
[]
[]
[]
[]
[]
[]
[]
[]
[]
[]
[]
[]
[]
[]
[]
[]
[]
["Census 2000 SummaryFile3 Sample Data  -  SF3TownQry8HousingCostB"]
[]
["TOWN_NAME","LOGRECNO","COUSUB","TotalPop","H74SpecOwnerOccHU","H74OOHU<10k","H74OOHU10to15k","H74OOHU15to20k","H74OOHU20to25k","H74OOHU25to30k","H74OOHU30to35k","H74OOHU35to40k","H74OOHU40to50k","H74OOHU50to60k","H74OOHU60to70k","H74OOHU70to80k","H74OOHU80to90k","H74OOHU90to100k","H74OOHU100to125k","H74OOHU125to150k","H74OOHU150to175k","H74OOHU175to200k","H74OOHU200to250k","H74OOHU250to300k","H74OOHU300to400k","H74OOHU400to500k","H74OOHU500to750k","H74OOHU750to1000k","H74OOHU1000kmore","H76OOHUMedianVal","H84OwnerOccHU","H84AllOOHU<10k","H84AllOOHU10to15k","H84AllOOHU15to20k","H84AllOOHU20to25k","H84AllOOHU25to30k","H84AllOOHU30to35k","H84AllOOHU35to40k","H84AllOOHU40to50k","H84AllOOHU50to60k","H84AllOOHU60to70k","H84AllOOHU70to80k","H84AllOOHU80to90k","H84AllOOHU90to100k","H84AllOOHU100to125k","H84AllOOHU125to150k","H84AllOOHU150to175k","H84AllOOHU175to200k","H84AllOOHU200to250k","H84AllOOHU250to300k","H84AllOOHU300to400k","H84AllOOHU400to500k","H84AllOOHU500to750k","H84AllOOHU750to1000k","H84AllOOHU1000kmore","H85OOHUMedVal","H90SOOHU","H90HUwMorgt","H90HUwMtgHC<200","H90HUwMtgHC200to300","H90HUwMtgHC300to400","H90HUwMtgHC400to500","H90HUwMtgHC500to600","H90HUwMtgHC600to700","H90HUwMtgHC700to800","H90HUwMtgHC800to900","H90HUwMtgHC900to1000","H90HUwMtgHC1000to1250","H90HUwMtgHC1250to1500","H90HUwMtgHC1500to2000","H90HUwMtgHC2000to2500","H90HUwMtgHC2500to3000","H90HUwMtgHC3000orMore","H90HUwOutMorgt","H90HUwOutMtgHC<100","H90HUwOutMtgHC100to150","H90HUwOutMtgHC150to200","H90HUwOutMtgHC200to250","H90HUwOutMtgHC250to300","H90HUwOutMtgHC300to350","H90HUwOutMtgHC350to400","H90HUwOutMtgHC400to500","H90HUwOutMtgHC500to600","H90HUwOutMtgHC600to700","H90HUwOutMtgHC700to800","H90HUwOutMtgHC800to900","H90HUwOutMtgHC900to1000","H90HUwOutMtgHC1000orMore","H91MedianOCHUwMtg","H91MedianOCHUwOutMtg","H94SpecOOHU","H94HUwMortg","H94HUwMtgHC<10pct","H94HUwMtgHC10to15pct","H94HUwMtgHC15to20pct","H94HUwMtgHC20to25pct","H94HUwMtgHC25to30pct","H94HUwMtgHC30to35pct","H94HUwMtgHC35to40pct","H94HUwMtgHC40to50pct","H94HUwMtgHC50pctOrMore","H94HUwMtgHCpctNotComp","H94HUWOutMortg","H94HUWOutMortgHC<10pct","H94HUWOutMortgHC10to15pct","H94HUWOutMortgHC15to20pct","H94HUWOutMortgHC20to25pct","H94HUWOutMortgHC25to30pct","H94HUWOutMortgHC30to35pct","H94HUWOutMortgHC35to40pct","H94HUWOutMortgHC40to50pct","H94HUWOutMortgHC50pctOrMore","H94HUWOutMortgHCpctNotComp","H97SpecifOwnOccHU","H97SOOHUInc<10k","H97SOOHUInc<10kHC<20pct","H97SOOHUInc<10kHC20to25pct","H97SOOHUInc<10kHC25to30pct","H97SOOHUInc<10kHC30to35pct","H97SOOHUInc<10kHC>35pct","H97SOOHUInc<10kHCpctNotComput","H97SOOHUInc10to20k","H97SOOHUInc10to20kHC<20pct","H97SOOHUInc10to20kHC20to25pct","H97SOOHUInc10to20kHC25to30pct","H97SOOHUInc10to20kHC30to35pct","H97SOOHUInc10to20kHC>35pct","H97SOOHUInc10to20kHCpctNotComput","H97SOOHUInc20to35k","H97SOOHUInc20to35kRC<20pct","H97SOOHUInc20to35kRC20to25pct","H97SOOHUInc20to35kRC25to30pct","H97SOOHUInc20to35kRC30to35pct","H97SOOHUInc20to35kRC>35pct","H97SOOHUInc20to35kRCpctNotComput","H97SOOHUInc35to50k","H97SOOHUInc35to50kRC<20pct","H97SOOHUInc35to50kRC20to25pct","H97SOOHUInc35to50kRC25to30pct","H97SOOHUInc35to50kRC30to35pct","H97SOOHUInc35to50kRC>35pct","H97SOOHUInc35to50kRCpctNotCompute","H97SOOHUInc50to75k","H97SOOHUInc50to75kRC<20pct","H97SOOHUInc50to75kRC20to25pct","H97SOOHUInc50to75kRC25to30pct","H97SOOHUInc50to75kRC30to35pct","H97SOOHUInc50to75kRC>35pct","H97SOOHUInc50to75kRCpctNotComput","H97SOOHUInc75to100k","H97SOOHUInc75to100kRC<20pct","H97SOOHUInc75to100kRC20to25pct","H97SOOHUInc75to100kRC25to30pct","H97SOOHUInc75to100kRC30to35pct","H97SOOHUInc75to100kRC>35pct","H97SOOHUInc75to100kRCpctNotCompute","H97SOOHUInc100to150k","H97SOOHUInc100to150kRC<20pct","H97SOOHUInc100to150kRC20to25pct","H97SOOHUInc100to150kRC25to30pct","H97SOOHUInc100to150kRC30to35pct","H97SOOHUInc100to150kRC>35pct","H97SOOHUInc100to150kRCpctNotCompute","H97SOOHUInc>150k","H97SOOHUInc>150kRC<20pct","H97SOOHUInc>150kRC20to25pct","H97SOOHUInc>150kRC25to30pct","H97SOOHUInc>150kRC30to35pct","H97SOOHUInc>150kRC>35pct","H97SOOHUInc>150kRCpctNotCompute"]
["Barrington","0003823","03460",7475,1667,0,0,0,0,10,7,0,21,15,14,49,99,105,334,394,336,164,85,34,0,0,0,0,0,136400,2345,13,37,29,38,61,68,23,28,55,59,73,123,148,383,409,369,221,126,57,17,0,0,8,0,127100,1667,1345,0,0,6,8,0,88,99,106,134,297,329,218,52,8,0,322,0,0,24,31,16,13,37,120,49,8,17,7,0,0,1195,433,1667,1345,60,161,247,318,208,85,88,86,83,9,322,140,91,45,0,15,7,6,12,0,6,1667,15,0,0,0,0,0,15,41,0,0,0,7,34,0,290,77,0,49,32,132,0,294,78,62,41,29,84,0,430,148,136,105,16,25,0,427,288,111,28,0,0,0,120,103,9,0,8,0,0,50,50,0,0,0,0,0]
["Dover","0003832","18820",26884,4747,0,0,0,0,0,0,0,5,8,86,123,326,434,1089,966,520,357,512,179,80,33,29,0,0,132800,5909,46,29,23,31,19,54,23,33,53,123,150,418,499,1216,1080,643,462,572,245,86,38,51,7,8,130500,4747,3371,0,0,0,21,66,101,182,251,392,898,594,591,205,26,44,1376,0,0,7,43,60,151,227,473,193,131,48,18,14,11,1187,442,4747,3371,158,659,686,699,478,235,134,123,189,10,1376,372,325,239,174,104,47,0,37,57,21,4747,104,0,0,0,0,73,31,281,15,44,69,31,122,0,622,227,126,47,76,146,0,659,248,138,113,85,75,0,1367,580,392,232,62,101,0,862,572,129,110,28,23,0,630,581,38,11,0,0,0,222,216,6,0,0,0,0]
["Durham","0003871","19700",12664,1408,0,0,7,0,0,0,0,0,0,0,13,17,13,41,134,286,298,303,159,105,10,11,5,6,191200,1627,0,0,7,0,0,0,0,0,0,0,20,17,13,48,152,322,331,335,188,131,28,11,11,13,192700,1408,927,0,0,0,0,0,6,5,18,29,108,168,295,176,90,32,481,0,0,0,0,0,0,20,49,96,123,110,38,27,18,1680,661,1408,927,47,119,155,203,174,58,48,52,71,0,481,197,74,71,46,14,21,13,6,39,0,1408,9,0,0,0,0,9,0,63,0,0,0,0,63,0,140,0,33,20,21,66,0,98,30,26,7,4,31,0,261,104,19,71,18,49,0,280,133,56,61,25,5,0,324,194,90,29,11,0,0,233,202,25,0,0,6,0]
["Farmington","0003904","26020",5774,1043,9,8,17,0,0,8,7,12,56,74,174,186,103,221,101,8,16,9,6,20,8,0,0,0,88400,1511,9,8,34,29,24,34,32,52,63,99,224,263,127,258,147,13,40,9,18,20,8,0,0,0,85600,1043,747,0,0,0,0,7,58,63,165,119,215,95,9,8,8,0,296,8,9,5,49,62,59,30,48,18,0,8,0,0,0,968,313,1043,747,39,129,160,134,90,49,13,83,50,0,296,73,85,65,16,25,0,14,0,10,8,1043,48,8,0,0,0,32,8,85,25,8,25,0,27,0,185,81,6,9,9,80,0,223,75,58,43,33,14,0,269,142,65,38,7,17,0,149,136,13,0,0,0,0,67,67,0,0,0,0,0,17,17,0,0,0,0,0]
["Lee","0003919","41460",4145,701,0,0,0,5,0,0,0,5,0,0,5,6,16,61,143,142,141,101,53,14,9,0,0,0,169300,1101,11,12,0,28,42,6,0,15,0,0,27,6,22,81,200,199,162,135,84,53,9,6,3,0,162600,701,529,0,0,5,0,0,0,5,7,25,72,162,116,120,17,0,172,0,0,0,0,0,12,6,49,53,33,19,0,0,0,1482,536,701,529,9,41,125,128,93,37,38,28,30,0,172,65,21,33,21,12,0,0,6,14,0,701,14,0,0,0,0,14,0,22,0,0,11,0,11,0,55,18,12,6,0,19,0,93,23,16,6,0,48,0,147,30,26,62,14,15,0,178,89,46,20,14,9,0,150,92,49,0,9,0,0,42,42,0,0,0,0,0]
["Madbury","0003928","44820",1509,259,0,0,0,0,0,0,0,0,2,0,9,11,10,30,11,72,48,27,19,16,2,0,2,0,169600,410,2,2,7,5,5,3,0,6,16,4,11,11,14,39,25,80,65,46,27,25,4,4,6,3,167200,259,215,0,0,0,0,3,0,9,13,11,35,47,57,34,0,6,44,0,0,0,0,1,0,4,4,18,8,4,3,2,0,1444,572,259,215,10,20,48,45,27,25,12,10,18,0,44,17,7,7,0,2,4,0,2,5,0,259,5,0,0,0,0,5,0,13,0,0,2,0,11,0,19,1,0,2,4,12,0,31,6,1,4,9,11,0,54,27,9,6,6,6,0,81,36,26,11,8,0,0,35,18,9,4,2,2,0,21,21,0,0,0,0,0]
["Middleton","0003935","47700",1440,339,0,0,0,0,0,3,3,9,8,37,26,42,72,74,40,13,6,4,0,2,0,0,0,0,95800,464,2,0,0,0,7,6,8,16,16,44,53,59,83,87,44,21,8,6,2,2,0,0,0,0,92500,339,270,0,0,2,7,20,18,37,32,42,71,37,4,0,0,0,69,0,0,0,4,21,19,0,14,7,4,0,0,0,0,945,325,339,270,16,31,58,46,28,30,16,20,25,0,69,29,16,11,4,2,0,0,3,4,0,339,12,0,0,0,0,12,0,12,0,0,4,2,6,0,65,20,6,0,10,29,0,112,32,28,13,18,21,0,84,55,16,13,0,0,0,36,36,0,0,0,0,0,13,13,0,0,0,0,0,5,5,0,0,0,0,0]
["Milton","0003940","48660",3910,719,0,0,0,0,0,0,0,6,41,22,70,97,128,156,130,46,0,10,13,0,0,0,0,0,99600,1158,0,34,27,19,35,0,11,20,79,41,103,152,138,193,151,89,18,30,18,0,0,0,0,0,94200,719,540,0,0,14,23,28,17,49,64,72,177,63,26,0,0,7,179,0,5,5,13,35,43,32,22,18,0,6,0,0,0,1004,337,719,540,14,82,117,104,109,34,13,12,55,0,179,60,51,5,22,11,6,0,6,11,7,719,29,0,0,0,0,22,7,56,5,16,11,0,24,0,109,45,11,10,17,26,0,179,59,20,70,12,18,0,215,102,73,29,11,0,0,86,73,6,0,0,7,0,28,28,0,0,0,0,0,17,17,0,0,0,0,0]
["New Durham","0003950","51220",2220,532,2,0,0,0,0,0,0,4,18,26,24,36,76,113,108,38,21,34,21,9,2,0,0,0,117700,744,2,2,2,0,0,10,2,14,36,43,33,55,88,128,161,47,27,48,27,11,2,4,0,2,116600,532,383,0,0,3,9,2,8,23,48,42,98,91,46,11,2,0,149,0,0,4,4,10,21,38,29,22,11,8,2,0,0,1144,397,532,383,15,47,79,73,64,35,17,10,43,0,149,54,28,18,25,6,2,4,0,8,4,532,16,0,0,0,0,12,4,33,0,4,4,4,21,0,62,18,21,6,0,17,0,102,33,14,18,16,21,0,171,67,46,30,17,11,0,79,60,11,8,0,0,0,51,45,2,4,0,0,0,18,18,0,0,0,0,0]
["Rochester","0003956","65140",28461,4928,0,6,0,8,7,14,0,33,107,357,487,765,726,1087,693,329,98,124,49,27,11,0,0,0,99400,7637,130,140,260,252,212,229,180,164,261,496,682,876,861,1329,771,387,134,150,61,34,22,6,0,0,89300,4928,3576,0,15,7,55,93,188,324,480,478,1039,502,268,104,9,14,1352,0,0,14,60,138,233,269,340,215,61,22,0,0,0,1036,393,4928,3576,104,413,763,897,443,385,152,148,258,13,1352,363,310,241,142,62,73,19,68,57,17,4928,138,0,0,0,0,108,30,405,38,75,52,54,186,0,781,285,90,58,123,225,0,1067,349,217,178,184,139,0,1437,653,499,182,80,23,0,612,430,130,29,8,15,0,344,295,28,6,9,6,0,144,144,0,0,0,0,0]
["Rollinsford","0004003","65540",2648,551,0,0,0,0,0,0,0,0,0,0,12,51,50,120,152,59,21,36,11,22,13,0,4,0,132000,722,5,0,0,0,0,0,0,0,4,8,12,65,56,157,191,59,21,62,26,25,13,0,10,8,132100,551,364,0,0,0,0,12,30,39,30,21,85,70,60,12,5,0,187,0,0,0,5,12,13,27,69,19,16,15,11,0,0,1147,453,551,364,9,53,107,68,47,20,15,15,30,0,187,48,59,31,21,4,4,4,0,16,0,551,12,0,0,0,0,12,0,43,0,8,0,4,31,0,68,31,9,11,0,17,0,97,54,14,8,16,5,0,150,73,39,19,4,15,0,110,78,19,13,0,0,0,34,34,0,0,0,0,0,37,37,0,0,0,0,0]
["Somersworth","0004012","69940",11477,1906,0,0,0,0,0,0,0,0,58,42,90,326,326,507,313,87,109,39,0,9,0,0,0,0,105500,2660,25,50,89,90,47,49,67,43,65,92,103,358,409,555,353,108,109,39,0,9,0,0,0,0,96200,1906,1380,0,0,0,7,40,63,79,112,251,391,228,174,26,9,0,526,0,0,0,7,0,64,73,219,114,22,17,10,0,0,1088,454,1906,1380,30,213,363,292,200,82,96,35,69,0,526,86,147,79,72,23,55,10,23,23,8,1906,22,0,0,0,7,7,8,132,0,10,16,31,75,0,262,103,52,15,23,69,0,387,98,105,80,23,81,0,596,307,143,88,34,24,0,338,257,46,16,19,0,0,136,120,8,8,0,0,0,33,33,0,0,0,0,0]
["Strafford","0004033","73860",3626,770,0,0,0,0,0,0,0,4,8,10,23,40,74,147,195,113,81,40,12,12,4,7,0,0,135100,1138,5,0,0,6,0,4,0,8,11,31,36,61,100,194,231,183,112,86,20,30,13,7,0,0,137200,770,625,0,0,10,4,16,30,39,59,44,126,160,121,9,4,3,145,0,0,5,0,9,43,8,27,24,22,0,0,3,4,1219,428,770,625,25,111,131,139,87,40,34,29,26,3,145,63,24,20,9,16,0,4,0,4,5,770,15,0,0,0,0,7,8,21,0,0,4,0,17,0,83,21,9,22,9,22,0,127,44,31,14,3,35,0,224,101,36,51,20,16,0,191,108,67,12,4,0,0,80,71,5,0,4,0,0,29,29,0,0,0,0,0]
[]
[]
[]
[]
[]
[]
[]
[]
[]
[]
[]
[]
[]
[]
[]
[]
[]
[]
[]
[]
[]
[]
[]
[]
[]
[]
[]
[]
[]
[]
[]
[]
[]
[]
[]
["Census 2000 SummaryFile3 Sample Data  -  SF3TownQry9HHIncomeByTenure"]
[]
["TOWN_NAME","LOGRECNO","COUSUB","NAME","COUNTY","TotalPop","HCT11OccHU","HCT11OwnOccHU","HCT11OOHUInc<5K","HCT11OOHUInc5to10K","HCT11OOHUInc10to15K","HCT11OOHUInc15to20K","HCT11OOHUInc20to25K","HCT11OOHUInc25to35K","HCT11OOHUInc35to50K","HCT11OOHUInc50to75K","HCT11OOHUInc75to100K","HCT11OOHUInc100to150K","HCT11OOHUInc>150K","HCT11RentOccHU","HCT11ROHUInc<5K","HCT11ROHUInc5to10K","HCT11ROHUInc10to15K","HCT11ROHUInc15to20K","HCT11ROHUInc20to25K","HCT11ROHUInc25to35K","HCT11ROHUInc35to50K","HCT11ROHUInc50to75K","HCT11ROHUInc75to100K","HCT11ROHUInc100to150K","HCT11ROHUInc>150K","HCT12MedHHInc","HCT12MedOwnOccHHInc","HCT12MedRentOccHHInc","SummaryLevel"]
["Barrington","0003823","03460","Barrington town","017",7475,2756,2345,25,33,82,24,79,327,450,588,523,164,50,411,17,7,30,33,56,101,94,73,0,0,0,50435,54272,30382,"060"]
["Dover","0003832","18820","Dover city","017",26884,11573,5909,62,86,185,213,199,672,871,1667,982,708,264,5664,212,439,501,405,393,1088,1250,979,242,110,45,43070,59780,32889,"060"]
["Durham","0003871","19700","Durham town","017",12664,2882,1627,0,9,47,29,36,111,111,314,330,358,282,1255,98,156,163,187,118,144,155,152,44,26,12,52139,84718,21306,"060"]
["Farmington","0003904","26020","Farmington town","017",5774,2146,1511,17,71,72,76,153,160,269,391,189,85,28,635,25,86,68,42,68,56,146,118,6,20,0,41221,44133,30809,"060"]
["Lee","0003919","41460","Lee town","017",4145,1466,1101,10,16,33,24,39,78,152,246,261,187,55,365,22,12,27,7,24,51,81,88,25,28,0,59211,68688,43698,"060"]
["Madbury","0003928","44820","Madbury town","017",1509,534,410,0,7,11,7,15,35,69,89,98,39,40,124,2,7,18,17,12,7,22,27,5,2,5,59167,68250,33750,"060"]
["Middleton","0003935","47700","Middleton town","017",1440,516,464,2,13,13,17,25,65,130,116,50,21,12,52,3,2,4,3,6,8,11,10,3,2,0,44375,45294,35000,"060"]
["Milton","0003940","48660","Milton town","017",3910,1456,1158,18,17,37,44,57,148,333,301,132,35,36,298,5,26,28,28,45,50,49,45,14,8,0,43547,47685,26250,"060"]
["New Durham","0003950","51220","New Durham town","017",2220,817,744,23,12,20,25,42,67,140,228,105,60,22,73,2,2,2,9,6,13,13,20,2,0,4,52257,53077,37083,"060"]
["Rochester","0003956","65140","Rochester city","017",28461,11434,7637,85,207,326,402,467,1003,1704,1968,829,469,177,3797,169,406,440,300,404,617,757,495,135,37,37,40279,46359,27936,"060"]
["Rollinsford","0004003","65540","Rollinsford town","017",2648,1033,722,8,4,33,31,39,59,119,192,136,51,50,311,12,18,28,31,13,29,116,61,0,3,0,48776,60345,36655,"060"]
["Somersworth","0004012","69940","Somersworth city","017",11477,4687,2660,30,22,101,97,118,301,579,817,385,159,51,2027,77,294,157,116,222,320,439,309,68,25,0,42790,52384,29175,"060"]
["Strafford","0004033","73860","Strafford town","017",3626,1281,1138,15,14,34,22,46,94,187,336,223,129,38,143,0,0,8,0,6,36,40,22,22,5,4,57831,59191,39821,"060"]
[]
[]
[]
[]
["TownName","LOGRECNO","COUNTY","TotalPop","TotalPop1Race","TotalPopWhite","TotalPopAfricanAmerican","TotalPopAmericanIndAlaska","TotalPopAsian","TotalPopNativeHawaiianPIsland","TotalPopSomeOtherRace","TotalPopTwoOrMoreRaces","TotalPopHispanicLatino","TotalNonHispanicLatino","TotPopUnder15yrs","TotPop15to24yrs","TotPop25to34yrs","TotPop35to44yrs","TotPop45to54yrs","TotPop55to64yrs","TotPop65to74yrs","TotPopOver74yrs","MedianAge","MedianAgeMale","MedianAgeFemale","TotalHH","TotalPopInHouseholds","TotalPopInFamilyHH","TotalPopInNonFamilyHH","AvgHHSize","TotalFamilyHH","TotalFamilyHHSpouse","TotalSingleParentHH","TotalNonFamilyHH","AvgFamilyHHSize","AvgNonFamilyHHSize","AverageHHSizeOwnerOccupied","AverageHHSizeRentalOccupied","TotalHousingUnits","TotalOccupiedHU","TotalOwnerOccupiedHUs","TotalRentalOccupiedHU","TotalVacantHU","VacantHUForRent","VacantHURentNotOccupied","VacantHUForSale","VacantHUsSoldNotOccupied","VacantHUSeasonalRecreational","VacantHUsAllOtherVacants","HomeOwnerVacancyRate","HomeRentalVacancyRate"]
["Barrington","0000216","017",8576,8473,8312,40,20,83,0,18,103,112,8464,1689,966,933,1368,1691,1110,535,284,40.700000000000003,40.299999999999997,41.1,3229,8576,4816,3760,2.66,2382,1973,409,847,3.02,4.4391971664698939,2.71,2.2599999999999998,3661,3229,2813,416,432,35,2,63,5,286,41,2.2000000000000002,7.7]
["Dover","0000263","017",29987,29307,27155,521,59,1371,14,187,680,660,29327,5103,4292,4926,4242,4363,3143,1804,2114,36.700000000000003,35.200000000000003,38.200000000000003,12827,29091,13324,15767,2.27,7059,5239,1820,5768,2.89,2.7335298196948683,2.48,2.0299999999999998,13685,12827,6790,6037,858,437,37,122,15,82,165,1.8,6.7]
["Durham","0000217","017",14638,14401,13730,126,10,474,2,59,237,300,14338,969,9712,457,664,959,865,500,512,21,21.1,20.9,2960,7372,2989,4383,2.4900000000000002,1544,1357,187,1416,2.94,3.0953389830508473,2.67,2.25,3092,2960,1713,1247,132,41,4,21,6,24,36,1.2,3.2]
["Farmington","0000218","017",6786,6671,6566,33,17,36,7,12,115,52,6734,1343,858,831,956,1181,867,455,295,39.200000000000003,38.9,39.6,2592,6786,3647,3139,2.62,1813,1321,492,779,3.01,4.0295250320924261,2.72,2.36,2832,2592,1879,713,240,69,2,40,7,58,64,2.1,8.8000000000000007]
["Lee","0000219","017",4330,4245,4063,39,3,127,1,12,85,70,4260,844,582,382,617,880,603,256,166,41,40.5,41.8,1661,4330,2370,1960,2.61,1177,928,249,484,3.01,4.0495867768595044,2.72,2.2000000000000002,1765,1661,1294,367,104,31,0,18,2,34,19,1.4,7.8]
["Madbury","0000220","017",1771,1734,1668,8,3,52,1,2,37,18,1753,385,209,145,283,347,227,112,63,40.6,39.5,41.5,626,1771,1023,748,2.83,480,417,63,146,3.13,5.1232876712328768,2.9,2.4900000000000002,653,626,514,112,27,4,0,6,1,2,14,1.2,3.4]
["Middleton","0000221","017",1783,1767,1736,9,7,13,0,2,16,15,1768,349,185,248,268,351,218,107,57,39,38.6,39.299999999999997,661,1783,1010,773,2.7,516,426,90,145,2.96,5.3310344827586205,2.68,2.93,851,661,607,54,190,1,0,20,0,149,20,3.2,1.8]
["New Durham","0000223","017",2638,2606,2586,4,3,8,0,5,32,22,2616,490,279,245,356,548,402,192,126,43.7,43.9,43.5,1014,2638,1479,1159,2.6,757,640,117,257,2.95,4.5097276264591439,2.6,2.65,1523,1014,923,91,509,7,2,24,4,446,26,2.5,7]
["Rochester","0000318","017",29752,29238,28388,251,92,361,15,131,514,547,29205,5457,3381,3779,4024,4863,3851,2334,2063,40.700000000000003,39.5,42.1,12378,29512,14994,14518,2.38,7936,5788,2148,4442,2.89,3.2683475911751465,2.46,2.23,13372,12378,8359,4019,994,376,15,231,18,80,274,2.7,8.5]
["Rollinsford","0000224","017",2527,2474,2422,17,6,21,1,7,53,24,2503,474,272,269,344,485,334,196,153,42.7,41.8,43.1,1032,2527,1352,1175,2.4500000000000002,703,562,141,329,2.92,3.5714285714285716,2.5299999999999998,2.2200000000000002,1099,1032,758,274,67,32,1,13,5,4,12,1.7,10.4]
["Somersworth","0000321","017",11766,11455,10523,162,40,621,2,107,311,296,11470,2312,1378,1761,1678,1912,1331,709,685,37.799999999999997,37,38.6,4862,11754,5936,5818,2.42,3044,2135,909,1818,2.95,3.2002200220022003,2.5299999999999998,2.2599999999999998,5199,4862,2791,2071,337,161,4,68,8,22,74,2.4,7.2]
["Strafford","0000225","017",3991,3953,3918,10,6,13,0,6,38,43,3948,730,500,298,552,903,604,261,143,44,43.6,44.2,1458,3985,2352,1633,2.73,1168,998,170,290,3.01,5.6310344827586203,2.76,2.4900000000000002,1784,1458,1289,169,326,15,2,16,6,258,29,1.2,8.1]
[]
[]
[]
[]
[]
[]
[]
[]
[]
[]
[]
[]
[]
[]
[null,null,null,null,null,null,null,null,null,null,null,null,null,null,null,null,null,null,null,null,null,null,null,null,null,null,null,null,null,null,null,null,null,null,null,null,null,null,null,null,null,null,null,null,null,null,null,null,null,null,null,null,null,null,null,null,null,null,null,null,null,null,null,null,null,null,null,null,null,null,null,null,null,null,null,null,null,null,null,null,null,null,null,null,null,null,null,null,null,null,null,null,null,null,null,null,null,null,null,null,0,7,3,4,28,"Coos"]
[null,null,null,null,null,null,null,null,null,null,null,null,null,null,null,null,null,null,null,null,null,null,null,null,null,null,null,null,null,null,null,null,null,null,null,null,null,null,null,null,null,null,null,null,null,null,null,null,null,null,null,null,null,null,null,null,null,null,null,null,null,null,null,null,null,null,null,null,null,null,null,null,null,null,null,null,null,null,null,null,null,null,null,null,null,null,null,null,null,null,null,null,null,null,null,null,null,null,null,null,3,20,7,13,29,"Coos"]
[null,null,null,null,null,null,null,null,null,null,null,null,null,null,null,null,null,null,null,null,null,null,null,null,null,null,null,null,null,null,null,null,null,null,null,null,null,null,null,null,null,null,null,null,null,null,null,null,null,null,null,null,null,null,null,null,null,null,null,null,null,null,null,null,null,null,null,null,null,null,null,null,null,null,null,null,null,null,null,null,null,null,null,null,null,null,null,null,null,null,null,null,null,null,null,null,null,null,null,null,0,0,0,0,0,"Coos"]
[null,null,null,null,null,null,null,null,null,null,null,null,null,null,null,null,null,null,null,null,null,null,null,null,null,null,null,null,null,null,null,null,null,null,null,null,null,null,null,null,null,null,null,null,null,null,null,null,null,null,null,null,null,null,null,null,null,null,null,null,null,null,null,null,null,null,null,null,null,null,null,null,null,null,null,null,null,null,null,null,null,null,null,null,null,null,null,null,null,null,null,null,null,null,null,null,null,null,null,null,0,0,0,0,0,"Coos"]
["Census 2000 SummaryFile3 Sample Data - SF3TownQry10aDisabil",null,null,null,null,null,null,null,null,null,null,null,null,null,null,null,null,null,null,null,null,null,null,null,null,null,null,null,null,null,null,null,null,null,null,null,null,null,null,null,null,null,null,null,null,null,null,null,null,null,null,null,null,null,null,null,null,null,null,null,null,null,null,null,null,null,null,null,null,null,null,null,null,null,null,null,null,null,null,null,null,null,null,null,null,null,null,null,null,null,null,null,null,null,null,null,null,null,null,null,0,0,0,0,0,"Coos"]
[null,null,null,null,null,null,null,null,null,null,null,null,null,null,null,null,null,null,null,null,null,null,null,null,null,null,null,null,null,null,null,null,null,null,null,null,null,null,null,null,null,null,null,null,null,null,null,null,null,null,null,null,null,null,null,null,null,null,null,null,null,null,null,null,null,null,null,null,null,null,null,null,null,null,null,null,null,null,null,null,null,null,null,null,null,null,null,null,null,null,null,null,null,null,null,null,null,null,null,null,2,38,9,29,98,"Coos"]
["TOWN_NAME","LOGRECNO","COUSUB","TotalPop","PCT026001","PCT026002","PCT026003","PCT026004","PCT026005","PCT026006","PCT026007","PCT026008","PCT026009","PCT026010","PCT026011","PCT026012","PCT026013","PCT026014","PCT026015","PCT026016","PCT026017","PCT026018","PCT026019","PCT026020","PCT026021","PCT026022","PCT026023","PCT026024","PCT026025","PCT026026","PCT026027","PCT026028","PCT026029","PCT026030","PCT026031","PCT026032","PCT026033","PCT026034","PCT026035","PCT026036","PCT026037","PCT026038","PCT026039","PCT026040","PCT026041","PCT026042","PCT026043","PCT026044","PCT026045","PCT026046","PCT026047","PCT026048","PCT026049","PCT026050","PCT026051","PCT026052","PCT026053","PCT026054","PCT026055","PCT026056","PCT026057","PCT026058","PCT026059","PCT026060","PCT026061","PCT026062","PCT026063","PCT026064","PCT026065","PCT026066","PCT026067","PCT026068","PCT026069","PCT026070","PCT026071","PCT026072","PCT026073","PCT026074","PCT026075","PCT026076","PCT026077","PCT026078","PCT026079","PCT026080","PCT026081","PCT026082","PCT026083","PCT026084","PCT026085","PCT026086","PCT026087","PCT026088","PCT026089","PCT026090","PCT026091","PCT026092","PCT026093","PCT026094","PCT026095","PCT026096","PCT026097","PCT026098","PCT026099","PCT026100","PCT026101"]
["Barrington","0003823","03460",7475,6994,3568,753,48,10,9,29,0,0,0,0,705,219,24,0,0,22,0,0,2,0,0,0,0,0,195,2346,197,33,8,42,0,8,106,138,37,101,44,57,2011,250,25,0,25,0,0,0,28,8,20,197,3426,624,7,0,0,7,0,9,0,9,608,204,12,0,0,0,0,0,12,0,0,0,0,0,192,2320,157,0,7,0,0,0,150,166,17,149,31,118,1997,278,70,28,13,0,0,29,50,0,50,158]
["Dover","0003832","18820",26884,24658,11953,1725,114,12,0,102,0,7,0,7,1604,734,107,0,0,70,0,0,37,22,0,22,0,22,605,8178,726,90,170,133,0,13,320,427,65,362,73,289,7025,1316,304,82,164,10,0,48,165,60,105,847,12705,1698,48,0,11,37,0,12,12,0,1638,712,101,7,0,33,0,12,49,0,0,0,0,0,611,8392,509,11,120,55,0,39,284,588,130,458,98,360,7295,1903,403,63,184,0,2,154,303,185,118,1197]
["Durham","0003871","19700",12664,12337,5589,480,33,0,0,33,0,0,0,0,447,1774,58,11,8,32,0,0,7,11,3,8,0,8,1705,2953,122,15,18,13,0,5,71,89,17,72,15,57,2742,382,44,9,29,6,0,0,46,22,24,292,6748,477,12,0,0,12,0,0,0,0,465,2928,85,18,16,44,0,0,7,32,0,32,16,16,2811,2915,154,0,11,26,0,0,117,51,6,45,29,16,2710,428,62,4,31,0,0,27,32,4,28,334]
["Farmington","0003904","26020",5774,5402,2672,528,67,0,0,67,0,23,9,14,438,217,41,0,0,17,0,7,17,29,21,8,8,0,147,1662,222,42,36,11,0,0,133,223,65,158,30,128,1217,265,48,12,18,0,0,18,65,12,53,152,2730,518,44,22,0,22,0,0,0,0,474,225,32,5,0,0,0,7,20,9,0,9,0,9,184,1655,261,29,111,12,0,0,109,214,71,143,31,112,1180,332,68,0,27,31,0,10,93,33,60,171]
["Lee","0003919","41460",4145,3808,1913,448,46,6,0,40,0,0,0,0,402,115,0,0,0,0,0,0,0,0,0,0,0,0,115,1209,133,31,11,10,3,9,69,55,22,33,9,24,1021,141,16,0,16,0,0,0,23,12,11,102,1895,378,23,0,0,23,0,0,0,0,355,137,8,0,0,8,0,0,0,9,0,9,0,9,120,1229,65,8,4,20,9,0,24,52,12,40,22,18,1112,151,10,5,5,0,0,0,35,12,23,106]
["Madbury","0003928","44820",1509,1430,719,169,7,2,0,5,0,0,0,0,162,57,0,0,0,0,0,0,0,0,0,0,0,0,57,439,12,2,6,0,0,0,4,16,9,7,0,7,411,54,8,2,6,0,0,0,9,2,7,37,711,143,6,0,0,6,0,3,3,0,134,49,2,0,0,2,0,0,0,0,0,0,0,0,47,455,16,2,8,0,0,0,6,12,6,6,0,6,427,64,12,0,5,0,0,7,18,6,12,34]
["Middleton","0003935","47700",1440,1333,677,113,8,0,0,8,0,0,0,0,105,71,4,0,0,2,0,0,2,1,1,0,0,0,66,415,47,10,8,2,0,0,27,38,2,36,10,26,330,78,12,0,4,0,0,8,8,2,6,58,656,122,2,0,0,2,0,0,0,0,120,55,2,0,0,0,0,2,0,0,0,0,0,0,53,414,27,2,6,5,0,0,14,34,4,30,6,24,353,65,10,4,6,0,0,0,10,6,4,45]
["Milton","0003940","48660",3910,3665,1810,353,60,8,0,52,0,0,0,0,293,124,40,0,0,9,0,0,31,10,0,10,0,10,74,1142,144,27,28,20,0,0,69,118,19,99,37,62,880,191,49,26,20,0,0,3,33,0,33,109,1855,354,16,0,0,16,0,0,0,0,338,115,19,0,0,7,0,12,0,0,0,0,0,0,96,1178,137,16,19,17,0,0,85,52,13,39,0,39,989,208,59,12,38,0,0,9,37,10,27,112]
["New Durham","0003950","51220",2220,2065,1077,225,27,0,4,23,0,7,2,5,191,58,8,0,0,0,0,0,8,4,0,4,2,2,46,670,104,12,12,4,0,0,76,58,5,53,4,49,508,124,32,8,13,0,0,11,15,2,13,77,988,174,0,0,0,0,0,3,3,0,171,65,2,0,0,0,0,0,2,4,0,4,0,4,59,630,103,6,11,11,0,0,75,24,8,16,2,14,503,119,32,17,14,1,0,0,10,4,6,77]
["Rochester","0003956","65140",28461,26314,12732,2359,250,0,7,243,0,35,26,9,2074,821,52,0,0,21,0,0,31,39,0,39,8,31,730,8055,1029,202,162,102,0,0,563,578,77,501,119,382,6448,1497,329,60,193,41,0,35,279,102,177,889,13582,2143,71,10,7,54,0,28,28,0,2044,898,63,0,6,30,0,5,22,0,0,0,0,0,835,8429,917,88,249,82,0,40,458,812,144,668,127,541,6700,2112,472,46,273,15,0,138,454,210,244,1186]
["Rollinsford","0004003","65540",2648,2470,1223,220,25,2,0,23,0,0,0,0,195,90,5,5,0,0,0,0,0,0,0,0,0,0,85,776,115,34,14,14,0,9,44,78,17,61,14,47,583,137,33,4,5,6,5,13,35,16,19,69,1247,203,5,0,0,5,0,0,0,0,198,78,7,0,0,0,0,0,7,0,0,0,0,0,71,779,66,0,17,7,0,4,38,22,5,17,0,17,691,187,31,5,7,3,0,16,44,10,34,112]
["Somersworth","0004012","69940",11477,10616,4984,883,103,0,10,93,0,10,0,10,770,346,29,19,0,10,0,0,0,8,0,8,0,8,309,3241,333,17,112,29,0,11,164,326,141,185,31,154,2582,514,121,49,50,0,0,22,53,0,53,340,5632,978,102,28,0,74,0,13,0,13,863,404,6,0,0,6,0,0,0,10,0,10,10,0,388,3405,375,19,111,50,0,9,186,286,71,215,13,202,2744,845,192,35,78,7,0,72,182,56,126,471]
["Strafford","0004033","73860",3626,3403,1708,397,38,0,0,38,0,0,0,0,359,140,21,3,3,15,0,0,0,0,0,0,0,0,119,1037,76,14,25,0,0,0,37,52,15,37,22,15,909,134,33,4,20,4,5,0,22,13,9,79,1695,338,16,0,0,16,0,0,0,0,322,83,4,0,0,4,0,0,0,0,0,0,0,0,79,1129,56,4,8,0,0,0,44,40,4,36,6,30,1033,145,38,7,18,0,0,13,19,16,3,88]
[]
[]
[]
[]
["2010 Census Demographic Profile Data -  QRY_CountyState"]
["TownName","LOGRECNO","COUNTY","TotalPop","TotalPop1Race","TotalPopWhite","TotalPopAfricanAmerican","TotalPopAmericanIndAlaska","TotalPopAsian","TotalPopNativeHawaiianPIsland","TotalPopSomeOtherRace","TotalPopTwoOrMoreRaces","TotalPopHispanicLatino","TotalNonHispanicLatino","TotPopUnder15yrs","TotPop15to24yrs","TotPop25to34yrs","TotPop35to44yrs","TotPop45to54yrs","TotPop55to64yrs","TotPop65to74yrs","TotPopOver74yrs","MedianAge","MedianAgeMale","MedianAgeFemale","TotalHH","TotalPopInHouseholds","TotalPopInFamilyHH","TotalPopInNonFamilyHH","AvgHHSize","TotalFamilyHH","TotalFamilyHHSpouse","TotalSingleParentHH","TotalNonFamilyHH","AvgFamilyHHSize","AvgNonFamilyHHSize","AverageHHSizeOwnerOccupied","AverageHHSizeRentalOccupied","TotalHousingUnits","TotalOccupiedHU","TotalOwnerOccupiedHUs","TotalRentalOccupiedHU","TotalVacantHU","VacantHUForRent","VacantHURentNotOccupied","VacantHUForSale","VacantHUsSoldNotOccupied","VacantHUSeasonalRecreational","VacantHUsAllOtherVacants","HomeOwnerVacancyRate","HomeRentalVacancyRate","TotalHousingUnits2010","SingFamHU2010","MultiFamHU2010","MobileHom2010"]
["Barrington","0000216","017",8576,8473,8312,40,20,83,0,18,103,112,8464,1689,966,933,1368,1691,1110,535,284,40.700000000000003,40.299999999999997,41.1,3229,8576,4816,3760,2.66,2382,1973,409,847,3.02,4.4391971664698939,2.71,2.2599999999999998,3661,3229,2813,416,432,35,2,63,5,286,41,2.2000000000000002,7.7,3661,3022,239,400]
["Dover","0000263","017",29987,29307,27155,521,59,1371,14,187,680,660,29327,5103,4292,4926,4242,4363,3143,1804,2114,36.700000000000003,35.200000000000003,38.200000000000003,12827,29091,13324,15767,2.27,7059,5239,1820,5768,2.89,2.7335298196948683,2.48,2.0299999999999998,13685,12827,6790,6037,858,437,37,122,15,82,165,1.8,6.7,13685,6182,7124,379]
["Durham","0000217","017",14638,14401,13730,126,10,474,2,59,237,300,14338,969,9712,457,664,959,865,500,512,21,21.1,20.9,2960,7372,2989,4383,2.4900000000000002,1544,1357,187,1416,2.94,3.0953389830508473,2.67,2.25,3092,2960,1713,1247,132,41,4,21,6,24,36,1.2,3.2,3092,1764,1318,9]
["Farmington","0000218","017",6786,6671,6566,33,17,36,7,12,115,52,6734,1343,858,831,956,1181,867,455,295,39.200000000000003,38.9,39.6,2592,6786,3647,3139,2.62,1813,1321,492,779,3.01,4.0295250320924261,2.72,2.36,2832,2592,1879,713,240,69,2,40,7,58,64,2.1,8.8000000000000007,2832,1630,685,517]
["Lee","0000219","017",4330,4245,4063,39,3,127,1,12,85,70,4260,844,582,382,617,880,603,256,166,41,40.5,41.8,1661,4330,2370,1960,2.61,1177,928,249,484,3.01,4.0495867768595044,2.72,2.2000000000000002,1765,1661,1294,367,104,31,0,18,2,34,19,1.4,7.8,1765,1162,346,258]
["Madbury","0000220","017",1771,1734,1668,8,3,52,1,2,37,18,1753,385,209,145,283,347,227,112,63,40.6,39.5,41.5,626,1771,1023,748,2.83,480,417,63,146,3.13,5.1232876712328768,2.9,2.4900000000000002,653,626,514,112,27,4,0,6,1,2,14,1.2,3.4,653,498,105,50]
["Middleton","0000221","017",1783,1767,1736,9,7,13,0,2,16,15,1768,349,185,248,268,351,218,107,57,39,38.6,39.299999999999997,661,1783,1010,773,2.7,516,426,90,145,2.96,5.3310344827586205,2.68,2.93,851,661,607,54,190,1,0,20,0,149,20,3.2,1.8,851,778,3,70]
["Milton","0000222","017",4598,4529,4478,22,9,11,1,8,69,42,4556,852,539,510,659,874,641,325,198,41.3,41.7,40.799999999999997,1800,4597,2480,2117,2.5499999999999998,1283,1013,270,517,2.93,4.094777562862669,2.57,2.4900000000000002,2181,1800,1512,288,381,41,1,42,5,225,67,2.7,12.4,2181,1617,223,341]
["New Durham","0000223","017",2638,2606,2586,4,3,8,0,5,32,22,2616,490,279,245,356,548,402,192,126,43.7,43.9,43.5,1014,2638,1479,1159,2.6,757,640,117,257,2.95,4.5097276264591439,2.6,2.65,1523,1014,923,91,509,7,2,24,4,446,26,2.5,7,1523,1417,39,67]
["Rochester","0000318","017",29752,29238,28388,251,92,361,15,131,514,547,29205,5457,3381,3779,4024,4863,3851,2334,2063,40.700000000000003,39.5,42.1,12378,29512,14994,14518,2.38,7936,5788,2148,4442,2.89,3.2683475911751465,2.46,2.23,13372,12378,8359,4019,994,376,15,231,18,80,274,2.7,8.5,13372,6622,4349,2402]
["Rollinsford","0000224","017",2527,2474,2422,17,6,21,1,7,53,24,2503,474,272,269,344,485,334,196,153,42.7,41.8,43.1,1032,2527,1352,1175,2.4500000000000002,703,562,141,329,2.92,3.5714285714285716,2.5299999999999998,2.2200000000000002,1099,1032,758,274,67,32,1,13,5,4,12,1.7,10.4,1099,797,300,2]
["Somersworth","0000321","017",11766,11455,10523,162,40,621,2,107,311,296,11470,2312,1378,1761,1678,1912,1331,709,685,37.799999999999997,37,38.6,4862,11754,5936,5818,2.42,3044,2135,909,1818,2.95,3.2002200220022003,2.5299999999999998,2.2599999999999998,5199,4862,2791,2071,337,161,4,68,8,22,74,2.4,7.2,5199,2447,2282,470]
["Strafford","0000225","017",3991,3953,3918,10,6,13,0,6,38,43,3948,730,500,298,552,903,604,261,143,44,43.6,44.2,1458,3985,2352,1633,2.73,1168,998,170,290,3.01,5.6310344827586203,2.76,2.4900000000000002,1784,1458,1289,169,326,15,2,16,6,258,29,1.2,8.1,1784,1549,114,122]

{"sheet":"SmallTownEmploymentandWages","index":64,"n_rows":77,"n_cols":14,"rows_kept":77,"cut":false,"hidden":true,"merged":[[73,1,73,2],[35,1,35,2],[66,1,67,3]]}
[]
[null,{"$f":"CntyDataLink!A35","v":"Rochester"}]
[]
[null,"EMPLOYMENT CHARACTERISTICS"]
[]
[]
[]
[]
[]
[]
[]
[]
[]
[]
[]
[]
[]
[]
[]
[]
[]
[]
[]
[]
[]
[]
[]
[]
[null,"Annual Average Covered Private Employment "]
[null,null,"Source: NH Department of Employment Security, Covered Private Employment by location of employment"]
[null,null,2012,{"$f":"C31+1","v":2013},2014,2015,2016,2017,2018,2019,2020,2021,2022,"Total Change  "]
[null,"Goods Producing",{"$f":"IF((CntyDataLink!$CO$25)=\"n\",NA(),IF(VALUE(CntyDataLink!$CO$25)=\"\",NA(),VALUE(CntyDataLink!$CO$25)))","v":1559},{"$f":"IF((CntyDataLink!$CW$25)=\"n\",NA(),IF(VALUE(CntyDataLink!$CW$25)=\"\",NA(),VALUE(CntyDataLink!$CW$25)))","v":1759},{"$f":"IF((CntyDataLink!$DE$25)=\"n\",NA(),IF(VALUE(CntyDataLink!$DE$25)=\"\",NA(),VALUE(CntyDataLink!$DE$25)))","v":1897},{"$f":"IF((CntyDataLink!$DM$25)=\"n\",NA(),IF(VALUE(CntyDataLink!$DM$25)=\"\",NA(),VALUE(CntyDataLink!$DM$25)))","v":1939},{"$f":"IF((CntyDataLink!$DU$25)=\"n\",NA(),IF(VALUE(CntyDataLink!$DU$25)=\"\",NA(),VALUE(CntyDataLink!$DU$25)))","v":2072},{"$f":"IF((CntyDataLink!$EC$25)=\"n\",NA(),IF(VALUE(CntyDataLink!$EC$25)=\"\",NA(),VALUE(CntyDataLink!$EC$25)))","v":2170},{"$f":"IF((CntyDataLink!$EK$25)=\"n\",NA(),IF(VALUE(CntyDataLink!$EK$25)=\"\",NA(),VALUE(CntyDataLink!$EK$25)))","v":2260},{"$f":"IF((CntyDataLink!$ET$25)=\"n\",NA(),IF(VALUE(CntyDataLink!$ET$25)=\"\",NA(),VALUE(CntyDataLink!$ET$25)))","v":2370},{"$f":"IF((CntyDataLink!$FD$25)=\"n\",NA(),IF(VALUE(CntyDataLink!$FD$25)=\"\",NA(),VALUE(CntyDataLink!$FD$25)))","v":2061},{"$f":"IF((CntyDataLink!$FN$25)=\"n\",NA(),IF(VALUE(CntyDataLink!$FN$25)=\"\",NA(),VALUE(CntyDataLink!$FN$25)))","v":2128},{"$f":"IF((CntyDataLink!$FX$25)=\"n\",NA(),IF(VALUE(CntyDataLink!$FX$25)=\"\",NA(),VALUE(CntyDataLink!$FX$25)))","v":2349},{"$f":"$M32-C32","v":790}]
[null,"Service Providing",{"$f":"IF((CntyDataLink!$CP$25)=\"n\",NA(),IF(VALUE(CntyDataLink!$CP$25)=\"\",NA(),VALUE(CntyDataLink!$CP$25)))","v":7760},{"$f":"IF((CntyDataLink!$CX$25)=\"n\",NA(),IF(VALUE(CntyDataLink!$CX$25)=\"\",NA(),VALUE(CntyDataLink!$CX$25)))","v":7885},{"$f":"IF((CntyDataLink!$DF$25)=\"n\",NA(),IF(VALUE(CntyDataLink!$DF$25)=\"\",NA(),VALUE(CntyDataLink!$DF$25)))","v":7914},{"$f":"IF((CntyDataLink!$DN$25)=\"n\",NA(),IF(VALUE(CntyDataLink!$DN$25)=\"\",NA(),VALUE(CntyDataLink!$DN$25)))","v":8161},{"$f":"IF((CntyDataLink!$DV$25)=\"n\",NA(),IF(VALUE(CntyDataLink!$DV$25)=\"\",NA(),VALUE(CntyDataLink!$DV$25)))","v":8442},{"$f":"IF((CntyDataLink!$ED$25)=\"n\",NA(),IF(VALUE(CntyDataLink!$ED$25)=\"\",NA(),VALUE(CntyDataLink!$ED$25)))","v":8522},{"$f":"IF((CntyDataLink!$EL$25)=\"n\",NA(),IF(VALUE(CntyDataLink!$EL$25)=\"\",NA(),VALUE(CntyDataLink!$EL$25)))","v":8681},{"$f":"IF((CntyDataLink!$EU$25)=\"n\",NA(),IF(VALUE(CntyDataLink!$EU$25)=\"\",NA(),VALUE(CntyDataLink!$EU$25)))","v":8697},{"$f":"IF((CntyDataLink!$FE$25)=\"n\",NA(),IF(VALUE(CntyDataLink!$FE$25)=\"\",NA(),VALUE(CntyDataLink!$FE$25)))","v":7980},{"$f":"IF((CntyDataLink!$FO$25)=\"n\",NA(),IF(VALUE(CntyDataLink!$FO$25)=\"\",NA(),VALUE(CntyDataLink!$FO$25)))","v":8076},{"$f":"IF((CntyDataLink!$FY$25)=\"n\",NA(),IF(VALUE(CntyDataLink!$FY$25)=\"\",NA(),VALUE(CntyDataLink!$FY$25)))","v":8227},{"$f":"$M33-C33","v":467}]
[null,"Total Private Emp",{"$f":"IF((CntyDataLink!$CN$25)=\"n\",NA(),IF(VALUE(CntyDataLink!$CN$25)=\"\",NA(),VALUE(CntyDataLink!$CN$25)))","v":9318},{"$f":"IF((CntyDataLink!$CV$25)=\"n\",NA(),IF(VALUE(CntyDataLink!$CV$25)=\"\",NA(),VALUE(CntyDataLink!$CV$25)))","v":9644},{"$f":"IF((CntyDataLink!$DD$25)=\"n\",NA(),IF(VALUE(CntyDataLink!$DD$25)=\"\",NA(),VALUE(CntyDataLink!$DD$25)))","v":9811},{"$f":"IF((CntyDataLink!$DL$25)=\"n\",NA(),IF(VALUE(CntyDataLink!$DL$25)=\"\",NA(),VALUE(CntyDataLink!$DL$25)))","v":10100},{"$f":"IF((CntyDataLink!$DT$25)=\"n\",NA(),IF(VALUE(CntyDataLink!$DT$25)=\"\",NA(),VALUE(CntyDataLink!$DT$25)))","v":10514},{"$f":"IF((CntyDataLink!$EB$25)=\"n\",NA(),IF(VALUE(CntyDataLink!$EB$25)=\"\",NA(),VALUE(CntyDataLink!$EB$25)))","v":10693},{"$f":"IF((CntyDataLink!$EJ$25)=\"n\",NA(),IF(VALUE(CntyDataLink!$EJ$25)=\"\",NA(),VALUE(CntyDataLink!$EJ$25)))","v":10941},{"$f":"IF((CntyDataLink!$ER$25)=\"n\",NA(),IF(VALUE(CntyDataLink!$ER$25)=\"\",NA(),VALUE(CntyDataLink!$ER$25)))","v":11067},{"$f":"IF((CntyDataLink!$FB$25)=\"n\",NA(),IF(VALUE(CntyDataLink!$FB$25)=\"\",NA(),VALUE(CntyDataLink!$FB$25)))","v":10041},{"$f":"IF((CntyDataLink!$FL$25)=\"n\",NA(),IF(VALUE(CntyDataLink!$FL$25)=\"\",NA(),VALUE(CntyDataLink!$FL$25)))","v":10204},{"$f":"IF((CntyDataLink!$FV$25)=\"n\",NA(),IF(VALUE(CntyDataLink!$FV$25)=\"\",NA(),VALUE(CntyDataLink!$FV$25)))","v":10576},{"$f":"$M34-C34","v":1258}]
[]
[null,"% Change from prior Year",null,"12-13","13-14","14-15","15-16","16-17","17-18","18-19","19-20","20-21","21-22","Total % Change"]
[null,"Goods Producing",null,{"$f":"(D32-C32)/C32","v":0.12828736369467608},7.845366685616828E-2,2.2140221402214021E-2,6.8592057761732855E-2,4.72972972972973E-2,{"$f":"(I32-H32)/H32","v":4.1474654377880185E-2},4.8672566371681415E-2,-0.13037974683544304,3.2508491023774864E-2,0.10385338345864661,{"$f":"N32/C32","v":0.50673508659397049}]
[null,"Service Providing",null,1.6108247422680411E-2,3.6778693722257453E-3,3.1210513014910287E-2,{"$f":"(G33-F33)/F33","v":3.4432054895233426E-2},9.4764273868751473E-3,1.8657592114527107E-2,1.8431056329915908E-3,-8.2442221455674369E-2,1.2030075187969926E-2,1.8697374938088162E-2,{"$f":"N33/C33","v":6.0180412371134022E-2}]
[null,"Total Private Emp",null,3.4986048508263576E-2,1.731646619659892E-2,2.945673223932321E-2,4.0990099009900992E-2,1.7024919155411832E-2,2.3192742915926306E-2,1.1516314779270634E-2,-9.2708050962320418E-2,1.6233442884174883E-2,3.6456291650333206E-2,{"$f":"N34/C34","v":0.13500751234170422}]
[]
[]
[null,"EMPLOYMENT CHARACTERISTICS"]
[]
[]
[]
[]
[]
[]
[]
[]
[]
[]
[]
[]
[]
[]
[]
[]
[]
[]
[]
[]
[]
[]
[]
[]
[null,"Covered Private Employment Average Wages",null,null,"Source: NH Department of Employment Security, Covered Private Employment"]
[]
[null,null,2012,{"$f":"C69+1","v":2013},{"$f":"D69+1","v":2014},{"$f":"E69+1","v":2015},2016,2017,2018,2019,2020,2021,2022,"Total $ Change"]
[null,"Goods Producing",{"$f":"IF((CntyDataLink!$CS$25)=\"n\",NA(),IF(VALUE(CntyDataLink!$CS$25)=\"\",NA(),VALUE(CntyDataLink!$CS$25)))","v":1163.8599999999999},{"$f":"IF((CntyDataLink!$DA$25)=\"n\",NA(),IF(VALUE(CntyDataLink!$DA$25)=\"\",NA(),VALUE(CntyDataLink!$DA$25)))","v":1198.75},{"$f":"IF((CntyDataLink!$DI$25)=\"n\",NA(),IF(VALUE(CntyDataLink!$DI$25)=\"\",NA(),VALUE(CntyDataLink!$DI$25)))","v":1206.82},{"$f":"IF((CntyDataLink!$DQ$25)=\"n\",NA(),IF(VALUE(CntyDataLink!$DQ$25)=\"\",NA(),VALUE(CntyDataLink!$DQ$25)))","v":1305.07},{"$f":"IF((CntyDataLink!$DY$25)=\"n\",NA(),IF(VALUE(CntyDataLink!$DY$25)=\"\",NA(),VALUE(CntyDataLink!$DY$25)))","v":1296.42},{"$f":"IF((CntyDataLink!$EG$25)=\"n\",NA(),IF(VALUE(CntyDataLink!$EG$25)=\"\",NA(),VALUE(CntyDataLink!$EG$25)))","v":1388.36},{"$f":"IF((CntyDataLink!$EO$25)=\"n\",NA(),IF(VALUE(CntyDataLink!$EO$25)=\"\",NA(),VALUE(CntyDataLink!$EO$25)))","v":1302.67},{"$f":"IF((CntyDataLink!$EY$25)=\"n\",NA(),IF(VALUE(CntyDataLink!$EY$25)=\"\",NA(),VALUE(CntyDataLink!$EY$25)))","v":1307.21},{"$f":"IF((CntyDataLink!$FI$25)=\"n\",NA(),IF(VALUE(CntyDataLink!$FI$25)=\"\",NA(),VALUE(CntyDataLink!$FI$25)))","v":1406.28},{"$f":"IF((CntyDataLink!$FS$25)=\"n\",NA(),IF(VALUE(CntyDataLink!$FS$25)=\"\",NA(),VALUE(CntyDataLink!$FS$25)))","v":1416.61},{"$f":"IF((CntyDataLink!$GC$25)=\"n\",NA(),IF(VALUE(CntyDataLink!$GC$25)=\"\",NA(),VALUE(CntyDataLink!$GC$25)))","v":1433},{"$f":"M70-C70","v":269.1400000000001}]
[null,"Service Providing",{"$f":"IF((CntyDataLink!$CT$25)=\"n\",NA(),IF(VALUE(CntyDataLink!$CT$25)=\"\",NA(),VALUE(CntyDataLink!$CT$25)))","v":670.33},{"$f":"IF((CntyDataLink!$DB$25)=\"n\",NA(),IF(VALUE(CntyDataLink!$DB$25)=\"\",NA(),VALUE(CntyDataLink!$DB$25)))","v":669.88},{"$f":"IF((CntyDataLink!$DJ$25)=\"n\",NA(),IF(VALUE(CntyDataLink!$DJ$25)=\"\",NA(),VALUE(CntyDataLink!$DJ$25)))","v":696.03},{"$f":"IF((CntyDataLink!$DR$25)=\"n\",NA(),IF(VALUE(CntyDataLink!$DR$25)=\"\",NA(),VALUE(CntyDataLink!$DR$25)))","v":741.27},{"$f":"IF((CntyDataLink!$DZ$25)=\"n\",NA(),IF(VALUE(CntyDataLink!$DZ$25)=\"\",NA(),VALUE(CntyDataLink!$DZ$25)))","v":741.78},{"$f":"IF((CntyDataLink!ED$25)=\"n\",NA(),IF(VALUE(CntyDataLink!$EE$25)=\"\",NA(),VALUE(CntyDataLink!$EE$25)))","v":877.87},{"$f":"IF((CntyDataLink!EL$25)=\"n\",NA(),IF(VALUE(CntyDataLink!$EM$25)=\"\",NA(),VALUE(CntyDataLink!$EM$25)))","v":889.69},{"$f":"IF((CntyDataLink!EY$25)=\"n\",NA(),IF(VALUE(CntyDataLink!$EZ$25)=\"\",NA(),VALUE(CntyDataLink!$EZ$25)))","v":796.89},{"$f":"IF((CntyDataLink!FI$25)=\"n\",NA(),IF(VALUE(CntyDataLink!$FJ$25)=\"\",NA(),VALUE(CntyDataLink!$FJ$25)))","v":865.36},{"$f":"IF((CntyDataLink!FS$25)=\"n\",NA(),IF(VALUE(CntyDataLink!$FT$25)=\"\",NA(),VALUE(CntyDataLink!$FT$25)))","v":884.52},{"$f":"IF((CntyDataLink!GD$25)=\"n\",NA(),IF(VALUE(CntyDataLink!$GD$25)=\"\",NA(),VALUE(CntyDataLink!$GD$25)))","v":938},{"$f":"M71-C71","v":267.66999999999996}]
[null,"Total Private Emp",{"$f":"IF((CntyDataLink!$CR$25)=\"n\",NA(),IF(VALUE(CntyDataLink!$CR$25)=\"\",NA(),VALUE(CntyDataLink!$CR$25)))","v":752.87},{"$f":"IF((CntyDataLink!$CZ$25)=\"n\",NA(),IF(VALUE(CntyDataLink!$CZ$25)=\"\",NA(),VALUE(CntyDataLink!$CZ$25)))","v":766.34},{"$f":"IF((CntyDataLink!$DH$25)=\"n\",NA(),IF(VALUE(CntyDataLink!$DH$25)=\"\",NA(),VALUE(CntyDataLink!$DH$25)))","v":794.8},{"$f":"IF((CntyDataLink!$DP$25)=\"n\",NA(),IF(VALUE(CntyDataLink!$DP$25)=\"\",NA(),VALUE(CntyDataLink!$DP$25)))","v":849.52},{"$f":"IF((CntyDataLink!$DX$25)=\"n\",NA(),IF(VALUE(CntyDataLink!$DX$25)=\"\",NA(),VALUE(CntyDataLink!$DX$25)))","v":851.07},{"$f":"IF((CntyDataLink!$EF$25)=\"n\",NA(),IF(VALUE(CntyDataLink!$EF$25)=\"\",NA(),VALUE(CntyDataLink!$EF$25)))","v":884.76},{"$f":"IF((CntyDataLink!$EN$25)=\"n\",NA(),IF(VALUE(CntyDataLink!$EN$25)=\"\",NA(),VALUE(CntyDataLink!$EN$25)))","v":895.48},{"$f":"IF((CntyDataLink!$EW$25)=\"n\",NA(),IF(VALUE(CntyDataLink!$EW$25)=\"\",NA(),VALUE(CntyDataLink!$EW$25)))","v":906.17},{"$f":"IF((CntyDataLink!$FG$25)=\"n\",NA(),IF(VALUE(CntyDataLink!$FG$25)=\"\",NA(),VALUE(CntyDataLink!$FG$25)))","v":976.39},{"$f":"IF((CntyDataLink!$FQ$25)=\"n\",NA(),IF(VALUE(CntyDataLink!$FQ$25)=\"\",NA(),VALUE(CntyDataLink!$FQ$25)))","v":995.49},{"$f":"IF((CntyDataLink!$GA$25)=\"n\",NA(),IF(VALUE(CntyDataLink!$GA$25)=\"\",NA(),VALUE(CntyDataLink!$GA$25)))","v":1048},{"$f":"M72-C72","v":295.13}]
[]
[null,"% Change from prior Year",null,{"$f":"D36","v":"12-13"},"13-14","14-15","15-16","16-17","17-18","18-19","19-20","20-21","21-22","Total % Change"]
[null,"Goods Producing",null,{"$f":"(D70-C70)/C70","v":2.9977832385338531E-2},6.7320125130343579E-3,8.1412306723455036E-2,-6.6279969656798977E-3,7.0918375217907642E-2,-6.1720303091417093E-2,3.4851497309372008E-3,7.5787363927754481E-2,7.3456210711948739E-3,1.1569874559688342E-2,{"$f":"N70/C70","v":0.23124774457408978}]
[null,"Service Providing",null,-6.7131114525688157E-4,3.9036842419537796E-2,6.4997198396620853E-2,6.8800841798533725E-4,0.18346409986788539,1.3464408169774626E-2,-0.10430599422270685,8.5921519908644897E-2,2.2141074235000426E-2,6.0462171573282708E-2,{"$f":"N71/C71","v":0.39931078722420293}]
[null,"Total Private Emp",null,1.78915350591736E-2,3.7137562961609624E-2,6.8847508807247146E-2,1.8245597513890999E-3,3.9585463005393139E-2,1.2116280121162832E-2,1.1937731719301315E-2,7.74909785139654E-2,1.9561855406138962E-2,5.2747892997418347E-2,{"$f":"N72/C72","v":0.39200658812278349}]

{"sheet":"HousingComparison","index":65,"n_rows":50,"n_cols":15,"rows_kept":50,"cut":false,"hidden":true,"merged":[[28,3,28,4],[28,5,28,8],[28,9,28,14],[29,5,29,6],[29,7,29,8],[29,9,29,10],[29,11,29,12],[29,13,29,14]]}
[]
[]
[]
[]
[]
[]
[]
[]
[]
[]
[]
[]
[]
[]
[]
[]
[]
[]
[]
[]
[]
[]
[]
[]
[]
[]
[]
[null,"Housing Units",null,"In 2022"]
[null,null,null,"Total Units",null,"Occupied Units",null,null,null,"Vacant Units"]
[null,null,null,null,null,"Owner",null,"Renter",null,"For Sale",null,"For Rent",null,"Seasonal"]
[null,null,null,"#","%","#","%","#","%","#","%","#","%","#","%"]
[]
[null,"Barrington",null,{"$f":"ACS_Table_B25001!$C$7","v":3651},{"$f":"D33/D$47","v":6.5580543181491591E-2},{"$f":"ACS_Table_B25003!$C$8","v":3074},{"$f":"F33/$F$47","v":8.9917219995904879E-2},{"$f":"ACS_Table_B25003!$C$9","v":327},{"$f":"H33/$H$47","v":1.9503757604676129E-2},{"$f":"ACS_Table_B25004!$C$10","v":0},{"$f":"J33/$J$47","v":0},{"$f":"ACS_Table_B25004!$C$8","v":0},{"$f":"L33/$L$47","v":0},{"$f":"ACS_Table_B25004!$C$12","v":203},{"$f":"N33/$N$47","v":0.10826666666666666}]
[null,"Dover",null,{"$f":"ACS_Table_B25001!$E$7","v":15245},0.27383603966087083,{"$f":"ACS_Table_B25003!$E$8","v":7585},0.22186796150583554,{"$f":"ACS_Table_B25003!$E$9","v":7021},0.4187641655731838,{"$f":"ACS_Table_B25004!$E$10","v":57},0.6,{"$f":"ACS_Table_B25004!$E$8","v":353},0.30536332179930797,{"$f":"ACS_Table_B25004!$E$12","v":79},4.2133333333333335E-2]
[null,"Durham",null,{"$f":"ACS_Table_B25001!$G$7","v":3784},6.7969535852852425E-2,{"$f":"ACS_Table_B25003!$G$8","v":1857},5.431889314651768E-2,{"$f":"ACS_Table_B25003!$G$9","v":1143},6.8173684838363349E-2,{"$f":"ACS_Table_B25004!$G$10","v":0},0,{"$f":"ACS_Table_B25004!$G$8","v":151},0.13062283737024222,{"$f":"ACS_Table_B25004!$G$12","v":79},4.2133333333333335E-2]
[null,"Farmington",null,{"$f":"ACS_Table_B25001!$I$7","v":2977},5.3473918666475065E-2,{"$f":"ACS_Table_B25003!$I$8","v":2024},5.9203790914675168E-2,{"$f":"ACS_Table_B25003!$I$9","v":887},5.2904688059167364E-2,{"$f":"ACS_Table_B25004!$I$10","v":0},0,{"$f":"ACS_Table_B25004!$I$8","v":45},3.8927335640138408E-2,{"$f":"ACS_Table_B25004!$I$12","v":21},1.12E-2]
[null,"Lee",null,{"$f":"ACS_Table_B25001!$K$7","v":2023},3.633783589596206E-2,{"$f":"ACS_Table_B25003!$K$8","v":1672},4.8907479451253399E-2,{"$f":"ACS_Table_B25003!$K$9","v":167},9.9606346176786351E-3,{"$f":"ACS_Table_B25004!$K$10","v":0},0,{"$f":"ACS_Table_B25004!$K$8","v":47},4.065743944636678E-2,{"$f":"ACS_Table_B25004!$K$12","v":73},3.8933333333333334E-2]
[null,"Madbury",null,{"$f":"ACS_Table_B25001!$M$7","v":715},1.284308090242851E-2,{"$f":"ACS_Table_B25003!$M$8","v":558},1.6321993740310646E-2,{"$f":"ACS_Table_B25003!$M$9","v":130},7.7537874269354642E-3,{"$f":"ACS_Table_B25004!$M$10","v":0},0,{"$f":"ACS_Table_B25004!$M$8","v":0},0,{"$f":"ACS_Table_B25004!$M$12","v":0},0]
[null,"Middleton",null,{"$f":"ACS_Table_B25001!$O$7","v":752},1.3507687886190545E-2,{"$f":"ACS_Table_B25003!$O$8","v":522},1.5268961886097054E-2,{"$f":"ACS_Table_B25003!$O$9","v":34},2.0279136347369675E-3,{"$f":"ACS_Table_B25004!$O$10","v":9},9.4736842105263161E-2,{"$f":"ACS_Table_B25004!$O$8","v":0},0,{"$f":"ACS_Table_B25004!$O$12","v":177},9.4399999999999998E-2]
[null,"Milton",null,{"$f":"ACS_Table_B25001!$Q$7","v":1909},3.4290127891938499E-2,{"$f":"ACS_Table_B25003!$Q$8","v":1452},4.2472284786614793E-2,{"$f":"ACS_Table_B25003!$Q$9","v":212},1.2644637957771682E-2,{"$f":"ACS_Table_B25004!$Q$10","v":0},0,{"$f":"ACS_Table_B25004!$Q$8","v":0},0,{"$f":"ACS_Table_B25004!$Q$12","v":193},0.10293333333333334]
[null,"New Durham",null,{"$f":"ACS_Table_B25001!$S$7","v":1579},2.8362552090817648E-2,{"$f":"ACS_Table_B25003!$S$8","v":911},2.6647556088571681E-2,{"$f":"ACS_Table_B25003!$S$9","v":93},5.5469402361922942E-3,{"$f":"ACS_Table_B25004!$S$10","v":0},0,{"$f":"ACS_Table_B25004!$S$8","v":0},0,{"$f":"ACS_Table_B25004!$S$12","v":547},0.29173333333333334]
[null,"Rochester",null,{"$f":"ACS_Table_B25001!$U$7","v":14309},0.25702327920678258,{"$f":"ACS_Table_B25003!$U$8","v":8933},0.26129815426916664,{"$f":"ACS_Table_B25003!$U$9","v":4609},0.27490158654419661,{"$f":"ACS_Table_B25004!$U$10","v":29},0.30526315789473685,{"$f":"ACS_Table_B25004!$U$8","v":292},0.25259515570934254,{"$f":"ACS_Table_B25004!$U$12","v":115},6.133333333333333E-2]
[null,"Rollinsford",null,{"$f":"ACS_Table_B25001!$W$7","v":1156},2.0764477654835464E-2,{"$f":"ACS_Table_B25003!$W$8","v":868},2.5389768040483224E-2,{"$f":"ACS_Table_B25003!$W$9","v":202},1.2048192771084338E-2,{"$f":"ACS_Table_B25004!$W$10","v":0},0,{"$f":"ACS_Table_B25004!$W$8","v":42},3.6332179930795849E-2,{"$f":"ACS_Table_B25004!$W$12","v":27},1.44E-2]
[null,"Somersworth",null,{"$f":"ACS_Table_B25001!$Y$7","v":5701},0.10240336255209082,{"$f":"ACS_Table_B25003!$Y$8","v":3388},9.9101997835434524E-2,{"$f":"ACS_Table_B25003!$Y$9","v":1844},0.10998449242514613,{"$f":"ACS_Table_B25004!$Y$10","v":0},0,{"$f":"ACS_Table_B25004!$Y$8","v":226},0.19550173010380623,{"$f":"ACS_Table_B25004!$Y$12","v":0},0]
[null,"Strafford",null,{"$f":"ACS_Table_B25001!$AA$7","v":1871},3.3607558557263974E-2,{"$f":"ACS_Table_B25003!$AA$8","v":1343},3.9283938339134759E-2,{"$f":"ACS_Table_B25003!$AA$9","v":97},5.7855183108672312E-3,{"$f":"ACS_Table_B25004!$AA$10","v":0},0,{"$f":"ACS_Table_B25004!$AA$8","v":0},0,{"$f":"ACS_Table_B25004!$AA$12","v":361},0.19253333333333333]
[]
[null,"Sullivan County",null,{"$f":"SUM(D33:D45)","v":55672},null,{"$f":"SUM(F33:F45)","v":34187},null,{"$f":"SUM(H33:H45)","v":16766},null,{"$f":"SUM(J33:J45)","v":95},null,{"$f":"SUM(L33:L45)","v":1156},null,{"$f":"SUM(N33:N45)","v":1875}]
[]
[null,"Source: 2018-2022 American Community Survey Tables B25001; B25003; and B25004"]
[null,"Margin of error is not displayed.  The American Community Survey data are estimates only."]

{"sheet":"Housing_EmploymentComparison","index":66,"n_rows":52,"n_cols":11,"rows_kept":52,"cut":false,"hidden":true,"merged":[[49,2,49,13],[50,2,50,13],[51,2,51,13],[28,3,28,4],[28,5,28,10],[29,3,29,4],[29,5,29,6],[29,7,29,8],[29,9,29,10]]}
[]
[]
[]
[]
[]
[]
[]
[]
[]
[]
[]
[]
[]
[]
[]
[]
[]
[]
[]
[]
[]
[]
[]
[]
[]
[]
[]
[null,null,null,"In 2022"]
[null,null,null,"Total Units",null,"Employment"]
[null,null,null,null,null,"Total Private",null,"Goods Producing",null,"Service Providing"]
[null,null,null,"#","%","#","%","#","%","#","%"]
[]
[null,"Barrington",null,{"$f":"ACS_Table_B25001!$C$7","v":3651},{"$f":"D33/D$47","v":6.5580543181491591E-2},{"$f":"CntyQuery!EQ171","v":2070},{"$f":"IF(F33=\"n\",\"n\",F33/$F$47)","v":5.2583447645176043E-2},{"$f":"CntyQuery!ET171","v":811},{"$f":"IF(H33=\"n\",\"n\",H33/$F$47)","v":2.0601534318955443E-2},{"$f":"CntyQuery!EU171","v":958},{"$f":"IF(J33=\"n\",\"n\",J33/$F$47)","v":2.4335721180714323E-2}]
[null,"Dover",null,{"$f":"ACS_Table_B25001!$E$7","v":15245},0.27383603966087083,{"$f":"CntyQuery!EQ172","v":17768},0.45135396027028402,{"$f":"CntyQuery!ET172","v":1428},3.6274958085657671E-2,{"$f":"CntyQuery!EU172","v":14462},0.36737285982827822]
[null,"Durham",null,{"$f":"ACS_Table_B25001!$G$7","v":3784},6.7969535852852425E-2,{"$f":"CntyQuery!EQ173","v":6000},0.15241579027587257,{"$f":"CntyQuery!ET173","v":212},5.3853579230808309E-3,{"$f":"CntyQuery!EU173","v":1485},3.7722908093278461E-2]
[null,"Farmington",null,{"$f":"ACS_Table_B25001!$I$7","v":2977},5.3473918666475065E-2,{"$f":"CntyQuery!EQ174","v":954},2.4234110653863741E-2,{"$f":"CntyQuery!ET174","v":207},5.2583447645176036E-3,{"$f":"CntyQuery!EU174","v":409},1.0389676370471982E-2]
[null,"Lee",null,{"$f":"ACS_Table_B25001!K$7","v":2023},3.633783589596206E-2,{"$f":"CntyQuery!EQ175","v":1330},3.3785500177818423E-2,{"$f":"CntyQuery!ET175","v":100},2.540263171264543E-3,{"$f":"CntyQuery!EU175","v":1092},2.7739673830208811E-2]
[null,"Madbury",null,{"$f":"ACS_Table_B25001!$M$7","v":715},1.284308090242851E-2,{"$f":"CntyQuery!EQ176","v":333},8.4590763603109281E-3,{"$f":"CntyQuery!ET176","v":50},1.2701315856322715E-3,{"$f":"CntyQuery!EU176","v":190},4.8265000254026314E-3]
[null,"Middleton",null,{"$f":"ACS_Table_B25001!$O$7","v":752},1.3507687886190545E-2,{"$f":"CntyQuery!EQ177","v":155},3.9374079154600415E-3,{"$f":"CntyQuery!ET177","v":0},0,{"$f":"CntyQuery!EU177","v":0},0]
[null,"Milton",null,{"$f":"ACS_Table_B25001!$Q$7","v":1909},3.4290127891938499E-2,{"$f":"CntyQuery!EQ178","v":608},1.5444800081288422E-2,{"$f":"CntyQuery!ET178","v":302},7.6715947772189198E-3,{"$f":"CntyQuery!EU178","v":235},5.9696184524716759E-3]
[null,"New Durham",null,{"$f":"ACS_Table_B25001!$S$7","v":1579},2.8362552090817648E-2,{"$f":"CntyQuery!EQ179","v":275},6.9857237209774931E-3,{"$f":"CntyQuery!ET179","v":13},3.3023421226439058E-4,{"$f":"CntyQuery!EU179","v":159},4.0390184423106231E-3]
[null,"Rochester",null,{"$f":"ACS_Table_B25001!$U$7","v":14309},0.25702327920678258,{"$f":"CntyQuery!EQ180","v":12483},0.31710105166895292,{"$f":"CntyQuery!ET180","v":2370},6.0204237158969671E-2,{"$f":"CntyQuery!EU180","v":8697},0.2209266880048773]
[null,"Rollinsford",null,{"$f":"ACS_Table_B25001!$W$7","v":1156},2.0764477654835464E-2,{"$f":"CntyQuery!EQ181","v":594},1.5089163237311385E-2,{"$f":"CntyQuery!ET181","v":266},6.7571000355636842E-3,{"$f":"CntyQuery!EU181","v":246},6.249047401310776E-3]
[null,"Somersworth",null,{"$f":"ACS_Table_B25001!$Y$7","v":5701},0.10240336255209082,{"$f":"CntyQuery!EQ182","v":5740},0.14581110603058478,{"$f":"CntyQuery!ET182","v":1182},3.0025910684346898E-2,{"$f":"CntyQuery!EU182","v":4093},0.10397297159985774]
[null,"Strafford",null,{"$f":"ACS_Table_B25001!$AA$7","v":1871},3.3607558557263974E-2,{"$f":"CntyQuery!EQ183","v":404},1.0262663211908754E-2,{"$f":"CntyQuery!ET183","v":144},3.6579789666209418E-3,{"$f":"CntyQuery!EU183","v":112},2.8450947518162883E-3]
[]
[null,"Sullivan County",null,{"$f":"SUM(D33:D46)","v":55672},null,{"$f":"CntyQuery!$ER$198","v":39366},null,{"$f":"CntyQuery!$ET$198","v":7127},null,{"$f":"CntyQuery!$EU$198","v":32239}]
[]
[null,"Source: ","2018-2022 American Community Survey Table B25001"]
[null,null,"Employment data provided by NH Department of Employment Security 2022 Covered Private Employment."]
[null,null,"Margin of error is not displayed.  The American Community Survey data are estimates only. Total Employment "]
[null,null,"at the county level is the number provided by NH Department of Employment Security."]

{"sheet":"CntyDataLinkPrior5YearEstimates","index":67,"n_rows":167,"n_cols":255,"rows_kept":167,"cut":false,"hidden":true,"merged":[]}
[1,{"$f":"A1+1","v":2},{"$f":"B1+1","v":3},4,5,6,7,8,9,10,11,12,13,14,15,{"$f":"O1+1","v":16},17,18,19,20,21,22,23,24,25,26,27,28,29,30,31,32,33,34,35,36,37,38,39,40,41,42,43,44,45,46,47,48,49,50,51,52,53,54,55,56,57,58,59,60,61,62,63,64,65,66,{"$f":"BN1+1","v":67},68,69,70,71,72,73,74,75,76,77,78,79,80,81,82,83,84,85,86,87,88,89,90,91,92,93,94,95,96,97,98,99,100,101,102,103,104,105,106,107,108,109,110,111,112,113,114,115,116,117,118,119,120,121,122,123,124,125,126,127,128,129,130,{"$f":"DZ1+1","v":131},132,133,134,135,136,137,138,139,140,141,142,143,144,145,146,147,148,149,150,151,152,153,154,155,156,157,158,159,160,161,162,163,164,165,166,167,168,169,170,171,172,173,174,175,176,177,178,179,180,181,182,183,184,185,186,187,188,189,190,191,192,193,194,{"$f":"GL1+1","v":195},196,197,198,199,200,201,202,203,204,205,206,207,208,209,210,211,212,213,214,215,216,217,218,219,220,221,222,223,224,225,226,227,228,229,230,231,232,233,234,235,236,237,238,239,240,241,242,243,244,245,246,247,248,249,250,251,252,253,254,255]
[]
["Census 1990 Data -           Query Name:  DPCnty90Census"]
["TownName","Cnty_Code","Census_Cnty_Code","LandAcres","WaterAcres","HousingUnits90Cen","Persons90Cen","Families90Cen","Households90cen","MalePop90cen","FemalePop90cen","WhitePop","BlackPop","AmerIndianPop","AsianPIPop","OtherRacePop","HispanicOrPop","AgeUnder15_90cen","Age15to24_90cen","Age25to34_90cen","Age35to44_90cen","Age45to54_90cen","Age55to64_90cen","Age65to74_90cen","Age75andOver_90cen","PersonsInHH90cen","PersonsInFamHH90cen","PersonsInGC","PersonsPerHH90cen","PersonsPerFam90Cen","SinglePersonHH90cen","MarriedCoupleHH90cen","SingleParentHH90cen","NonFamilyHH90cen","TotalHousingUnits","OccupiedHousingUnits","VacantHousingUnits","OwnerOccHU","RenterOccHU","VacantForRent90","VacantForSale90","VacantSeasonalRec","SingFamHU90cen","MultiFamHU90cen","MobileHom90cen","SingFamOwnHU90cen","MultiFamOwnHU90cen","MobileHomOwnHU90cen","SingFamRntrHU90cen","MultiFamRntrHU90cen","MobileHomRntrHU90cen","HU<5yrs90cen","HU5to20yrs90cen","HU20to50yrs90cen","HU>50yrs90cen","Units0Bedroom90cen","Units1Bedroom90cen","Units2Bedroom90cen","Units3Bedroom90cen","Units4+Bedroom90cen","HI<5K","HI5Kto10K","HI10Kto15K","HI15Kto25K","HI25Kto35K","HI35Kto50K","HI50Kto75K","HI75Kto100K","HI>100K","MedHI","HH<25HI<5K","HH<25HI5Kto10K","HH<25HI10Kto15K","HH<25HI15Kto25K","HH<25HI25Kto35K","HH<25HI35Kto50K","HH<25HI50Kto75K","HH<25HI75Kto100K","HH<25HI>100K","HH25to34HI<5K","HH25to34HI5Kto10K","HH25to34HI10Kto15K","HH25to34HI15Kto25K","HH25to34HI25Kto35K","HH25to34HI35Kto50K","HH25to34HI50Kto75K","HH25to34HI75Kto100K","HH25to34HI>100K","HH35to44HI<5K","HH35to44HI5Kto10K","HH35to44HI10Kto15K","HH35to44HI15Kto25K","HH35to44HI25Kto35K","HH35to44HI35Kto50K","HH35to44HI50Kto75K","HH35to44HI75Kto100K","HH35to44HI>100K","HH45to54HI<5K","HH45to54HI5Kto10K","HH45to54HI10Kto15K","HH45to54HI15Kto25K","HH45to54HI25Kto35K","HH45to54HI35Kto50K","HH45to54HI50Kto75K","HH45to54HI75Kto100K","HH45to54HI>100K","HH55to64HI<5K","HH55to64HI5Kto10K","HH55to64HI10Kto15K","HH55to64HI15Kto25K","HH55to64HI25Kto35K","HH55to64HI35Kto50K","HH55to64HI50Kto75K","HH55to64HI75Kto100K","HH55to64HI>100K","HH65to74HI<5K","HH65to74HI5Kto10K","HH65to74HI10Kto15K","HH65to74HI15Kto25K","HH65to74HI25Kto35K","HH65to74HI35Kto50K","HH65to74HI50Kto75K","HH65to74HI75Kto100K","HH65to74HI>100K","HH>75HI<5K","HH>75HI5Kto10K","HH>75HI10Kto15K","HH>75HI15Kto25K","HH>75HI25Kto35K","HH>75HI35Kto50K","HH>75HI50Kto75K","HH>75HI75Kto100K","HH>75HI>100K","SchoolEnrollment1thru12","Pop25andOver","HSGradorHigher","CollGradorHigher","NativePop","ForeignBornPop","BornStateOfRes","NativePop2","ForeignBornPop2","DroveAlone","CarPooled","PublicTranspt","Walked","OtherMeans","WorkedAtHome","HHInc<10K","HHInc10to15K","HHInc15to25K","HHInc25to35K","HHInc35to50K","HHInc50to75K","HHInc75to100K","HHInc100to150K","HHInc>150K"]
[{"$f":"VLOOKUP(DropDownList!$A$47,CntyQuery!$A$4:$FI$46,A1)","v":"Rochester"},{"$f":"VLOOKUP(DropDownList!$A$47,CntyQuery!$A$4:$FA$46,B1)","v":17050},{"$f":"VLOOKUP(DropDownList!$A$47,CntyQuery!$A$4:$FA$46,C1)","v":"65140"},{"$f":"VLOOKUP(DropDownList!$A$47,CntyQuery!$A$4:$FA$46,D1)","v":28688.05},{"$f":"VLOOKUP(DropDownList!$A$47,CntyQuery!$A$4:$FA$46,E1)","v":392.49},{"$f":"VLOOKUP(DropDownList!$A$47,CntyQuery!$A$4:$FA$46,F1)","v":11076},{"$f":"VLOOKUP(DropDownList!$A$47,CntyQuery!$A$4:$FA$46,G1)","v":26630},{"$f":"VLOOKUP(DropDownList!$A$47,CntyQuery!$A$4:$FA$46,H1)","v":7332},{"$f":"VLOOKUP(DropDownList!$A$47,CntyQuery!$A$4:$FA$46,I1)","v":10221},{"$f":"VLOOKUP(DropDownList!$A$47,CntyQuery!$A$4:$FA$46,J1)","v":12931},{"$f":"VLOOKUP(DropDownList!$A$47,CntyQuery!$A$4:$FA$46,K1)","v":13699},{"$f":"VLOOKUP(DropDownList!$A$47,CntyQuery!$A$4:$FA$46,L1)","v":26291},{"$f":"VLOOKUP(DropDownList!$A$47,CntyQuery!$A$4:$FA$46,M1)","v":85},{"$f":"VLOOKUP(DropDownList!$A$47,CntyQuery!$A$4:$FA$46,N1)","v":54},{"$f":"VLOOKUP(DropDownList!$A$47,CntyQuery!$A$4:$FA$46,O1)","v":147},{"$f":"VLOOKUP(DropDownList!$A$47,CntyQuery!$A$4:$FA$46,P1)","v":53},{"$f":"VLOOKUP(DropDownList!$A$47,CntyQuery!$A$4:$FA$46,Q1)","v":192},{"$f":"VLOOKUP(DropDownList!$A$47,CntyQuery!$A$4:$FA$46,R1)","v":6067},{"$f":"VLOOKUP(DropDownList!$A$47,CntyQuery!$A$4:$FA$46,S1)","v":3386},{"$f":"VLOOKUP(DropDownList!$A$47,CntyQuery!$A$4:$FA$46,T1)","v":5151},{"$f":"VLOOKUP(DropDownList!$A$47,CntyQuery!$A$4:$FA$46,U1)","v":3862},{"$f":"VLOOKUP(DropDownList!$A$47,CntyQuery!$A$4:$FA$46,V1)","v":2510},{"$f":"VLOOKUP(DropDownList!$A$47,CntyQuery!$A$4:$FA$46,W1)","v":2258},{"$f":"VLOOKUP(DropDownList!$A$47,CntyQuery!$A$4:$FA$46,X1)","v":1886},{"$f":"VLOOKUP(DropDownList!$A$47,CntyQuery!$A$4:$FA$46,Y1)","v":1510},{"$f":"VLOOKUP(DropDownList!$A$47,CntyQuery!$A$4:$FA$46,Z1)","v":26327},{"$f":"VLOOKUP(DropDownList!$A$47,CntyQuery!$A$4:$FA$46,AA1)","v":22703},{"$f":"VLOOKUP(DropDownList!$A$47,CntyQuery!$A$4:$FA$46,AB1)","v":303},{"$f":"VLOOKUP(DropDownList!$A$47,CntyQuery!$A$4:$FA$46,AC1)","v":2.5757753644457488},{"$f":"VLOOKUP(DropDownList!$A$47,CntyQuery!$A$4:$FA$46,AD1)","v":3.0964266230223676},{"$f":"VLOOKUP(DropDownList!$A$47,CntyQuery!$A$4:$FA$46,AE1)","v":2304},{"$f":"VLOOKUP(DropDownList!$A$47,CntyQuery!$A$4:$FA$46,AF1)","v":5989},{"$f":"VLOOKUP(DropDownList!$A$47,CntyQuery!$A$4:$FA$46,AG1)","v":1343},{"$f":"VLOOKUP(DropDownList!$A$47,CntyQuery!$A$4:$FA$46,AH1)","v":585},{"$f":"VLOOKUP(DropDownList!$A$47,CntyQuery!$A$4:$FA$46,AI1)","v":11076},{"$f":"VLOOKUP(DropDownList!$A$47,CntyQuery!$A$4:$FA$46,AJ1)","v":10221},{"$f":"VLOOKUP(DropDownList!$A$47,CntyQuery!$A$4:$FA$46,AK1)","v":855},{"$f":"VLOOKUP(DropDownList!$A$47,CntyQuery!$A$4:$FA$46,AL1)","v":7051},{"$f":"VLOOKUP(DropDownList!$A$47,CntyQuery!$A$4:$FA$46,AM1)","v":3170},{"$f":"VLOOKUP(DropDownList!$A$47,CntyQuery!$A$4:$FA$46,AN1)","v":446},{"$f":"VLOOKUP(DropDownList!$A$47,CntyQuery!$A$4:$FA$46,AO1)","v":212},{"$f":"VLOOKUP(DropDownList!$A$47,CntyQuery!$A$4:$FA$46,AP1)","v":50},{"$f":"VLOOKUP(DropDownList!$A$47,CntyQuery!$A$4:$FA$46,AQ1)","v":5129},{"$f":"VLOOKUP(DropDownList!$A$47,CntyQuery!$A$4:$FA$46,AR1)","v":3796},{"$f":"VLOOKUP(DropDownList!$A$47,CntyQuery!$A$4:$FA$46,AS1)","v":2151},{"$f":"VLOOKUP(DropDownList!$A$47,CntyQuery!$A$4:$FA$46,AT1)","v":4588},{"$f":"VLOOKUP(DropDownList!$A$47,CntyQuery!$A$4:$FA$46,AU1)","v":626},{"$f":"VLOOKUP(DropDownList!$A$47,CntyQuery!$A$4:$FA$46,AV1)","v":2151},{"$f":"VLOOKUP(DropDownList!$A$47,CntyQuery!$A$4:$FA$46,AW1)","v":392},{"$f":"VLOOKUP(DropDownList!$A$47,CntyQuery!$A$4:$FA$46,AX1)","v":2646},{"$f":"VLOOKUP(DropDownList!$A$47,CntyQuery!$A$4:$FA$46,AY1)","v":132},{"$f":"VLOOKUP(DropDownList!$A$47,CntyQuery!$A$4:$FA$46,AZ1)","v":2013},{"$f":"VLOOKUP(DropDownList!$A$47,CntyQuery!$A$4:$FA$46,BA1)","v":3034},{"$f":"VLOOKUP(DropDownList!$A$47,CntyQuery!$A$4:$FA$46,BB1)","v":2699},{"$f":"VLOOKUP(DropDownList!$A$47,CntyQuery!$A$4:$FA$46,BC1)","v":3330},{"$f":"VLOOKUP(DropDownList!$A$47,CntyQuery!$A$4:$FA$46,BD1)","v":113},{"$f":"VLOOKUP(DropDownList!$A$47,CntyQuery!$A$4:$FA$46,BE1)","v":1452},{"$f":"VLOOKUP(DropDownList!$A$47,CntyQuery!$A$4:$FA$46,BF1)","v":4176},{"$f":"VLOOKUP(DropDownList!$A$47,CntyQuery!$A$4:$FA$46,BG1)","v":3867},{"$f":"VLOOKUP(DropDownList!$A$47,CntyQuery!$A$4:$FA$46,BH1)","v":1468},{"$f":"VLOOKUP(DropDownList!$A$47,CntyQuery!$A$4:$FA$46,BI1)","v":335},{"$f":"VLOOKUP(DropDownList!$A$47,CntyQuery!$A$4:$FA$46,BJ1)","v":786},{"$f":"VLOOKUP(DropDownList!$A$47,CntyQuery!$A$4:$FA$46,BK1)","v":879},{"$f":"VLOOKUP(DropDownList!$A$47,CntyQuery!$A$4:$FA$46,BL1)","v":1996},{"$f":"VLOOKUP(DropDownList!$A$47,CntyQuery!$A$4:$FA$46,BM1)","v":1883},{"$f":"VLOOKUP(DropDownList!$A$47,CntyQuery!$A$4:$FA$46,BN1)","v":2394},{"$f":"VLOOKUP(DropDownList!$A$47,CntyQuery!$A$4:$FA$46,BO1)","v":1525},{"$f":"VLOOKUP(DropDownList!$A$47,CntyQuery!$A$4:$FA$46,BP1)","v":276},{"$f":"VLOOKUP(DropDownList!$A$47,CntyQuery!$A$4:$FA$46,BQ1)","v":122},{"$f":"VLOOKUP(DropDownList!$A$47,CntyQuery!$A$4:$FA$46,BR1)","v":30807},{"$f":"VLOOKUP(DropDownList!$A$47,CntyQuery!$A$4:$FA$46,BS1)","v":26},{"$f":"VLOOKUP(DropDownList!$A$47,CntyQuery!$A$4:$FA$46,BT1)","v":62},{"$f":"VLOOKUP(DropDownList!$A$47,CntyQuery!$A$4:$FA$46,BU1)","v":50},{"$f":"VLOOKUP(DropDownList!$A$47,CntyQuery!$A$4:$FA$46,BV1)","v":225},{"$f":"VLOOKUP(DropDownList!$A$47,CntyQuery!$A$4:$FA$46,BW1)","v":102},{"$f":"VLOOKUP(DropDownList!$A$47,CntyQuery!$A$4:$FA$46,BX1)","v":169},{"$f":"VLOOKUP(DropDownList!$A$47,CntyQuery!$A$4:$FA$46,BY1)","v":29},{"$f":"VLOOKUP(DropDownList!$A$47,CntyQuery!$A$4:$FA$46,BZ1)","v":6},{"$f":"VLOOKUP(DropDownList!$A$47,CntyQuery!$A$4:$FA$46,CA1)","v":0},{"$f":"VLOOKUP(DropDownList!$A$47,CntyQuery!$A$4:$FA$46,CB1)","v":37},{"$f":"VLOOKUP(DropDownList!$A$47,CntyQuery!$A$4:$FA$46,CC1)","v":65},{"$f":"VLOOKUP(DropDownList!$A$47,CntyQuery!$A$4:$FA$46,CD1)","v":144},{"$f":"VLOOKUP(DropDownList!$A$47,CntyQuery!$A$4:$FA$46,CE1)","v":464},{"$f":"VLOOKUP(DropDownList!$A$47,CntyQuery!$A$4:$FA$46,CF1)","v":563},{"$f":"VLOOKUP(DropDownList!$A$47,CntyQuery!$A$4:$FA$46,CG1)","v":766},{"$f":"VLOOKUP(DropDownList!$A$47,CntyQuery!$A$4:$FA$46,CH1)","v":423},{"$f":"VLOOKUP(DropDownList!$A$47,CntyQuery!$A$4:$FA$46,CI1)","v":45},{"$f":"VLOOKUP(DropDownList!$A$47,CntyQuery!$A$4:$FA$46,CJ1)","v":14},{"$f":"VLOOKUP(DropDownList!$A$47,CntyQuery!$A$4:$FA$46,CK1)","v":42},{"$f":"VLOOKUP(DropDownList!$A$47,CntyQuery!$A$4:$FA$46,CL1)","v":53},{"$f":"VLOOKUP(DropDownList!$A$47,CntyQuery!$A$4:$FA$46,CM1)","v":90},{"$f":"VLOOKUP(DropDownList!$A$47,CntyQuery!$A$4:$FA$46,CN1)","v":352},{"$f":"VLOOKUP(DropDownList!$A$47,CntyQuery!$A$4:$FA$46,CO1)","v":375},{"$f":"VLOOKUP(DropDownList!$A$47,CntyQuery!$A$4:$FA$46,CP1)","v":735},{"$f":"VLOOKUP(DropDownList!$A$47,CntyQuery!$A$4:$FA$46,CQ1)","v":455},{"$f":"VLOOKUP(DropDownList!$A$47,CntyQuery!$A$4:$FA$46,CR1)","v":64},{"$f":"VLOOKUP(DropDownList!$A$47,CntyQuery!$A$4:$FA$46,CS1)","v":38},{"$f":"VLOOKUP(DropDownList!$A$47,CntyQuery!$A$4:$FA$46,CT1)","v":24},{"$f":"VLOOKUP(DropDownList!$A$47,CntyQuery!$A$4:$FA$46,CU1)","v":80},{"$f":"VLOOKUP(DropDownList!$A$47,CntyQuery!$A$4:$FA$46,CV1)","v":48},{"$f":"VLOOKUP(DropDownList!$A$47,CntyQuery!$A$4:$FA$46,CW1)","v":189},{"$f":"VLOOKUP(DropDownList!$A$47,CntyQuery!$A$4:$FA$46,CX1)","v":244},{"$f":"VLOOKUP(DropDownList!$A$47,CntyQuery!$A$4:$FA$46,CY1)","v":339},{"$f":"VLOOKUP(DropDownList!$A$47,CntyQuery!$A$4:$FA$46,CZ1)","v":335},{"$f":"VLOOKUP(DropDownList!$A$47,CntyQuery!$A$4:$FA$46,DA1)","v":102},{"$f":"VLOOKUP(DropDownList!$A$47,CntyQuery!$A$4:$FA$46,DB1)","v":48},{"$f":"VLOOKUP(DropDownList!$A$47,CntyQuery!$A$4:$FA$46,DC1)","v":51},{"$f":"VLOOKUP(DropDownList!$A$47,CntyQuery!$A$4:$FA$46,DD1)","v":71},{"$f":"VLOOKUP(DropDownList!$A$47,CntyQuery!$A$4:$FA$46,DE1)","v":166},{"$f":"VLOOKUP(DropDownList!$A$47,CntyQuery!$A$4:$FA$46,DF1)","v":257},{"$f":"VLOOKUP(DropDownList!$A$47,CntyQuery!$A$4:$FA$46,DG1)","v":232},{"$f":"VLOOKUP(DropDownList!$A$47,CntyQuery!$A$4:$FA$46,DH1)","v":224},{"$f":"VLOOKUP(DropDownList!$A$47,CntyQuery!$A$4:$FA$46,DI1)","v":215},{"$f":"VLOOKUP(DropDownList!$A$47,CntyQuery!$A$4:$FA$46,DJ1)","v":47},{"$f":"VLOOKUP(DropDownList!$A$47,CntyQuery!$A$4:$FA$46,DK1)","v":22},{"$f":"VLOOKUP(DropDownList!$A$47,CntyQuery!$A$4:$FA$46,DL1)","v":39},{"$f":"VLOOKUP(DropDownList!$A$47,CntyQuery!$A$4:$FA$46,DM1)","v":142},{"$f":"VLOOKUP(DropDownList!$A$47,CntyQuery!$A$4:$FA$46,DN1)","v":263},{"$f":"VLOOKUP(DropDownList!$A$47,CntyQuery!$A$4:$FA$46,DO1)","v":354},{"$f":"VLOOKUP(DropDownList!$A$47,CntyQuery!$A$4:$FA$46,DP1)","v":297},{"$f":"VLOOKUP(DropDownList!$A$47,CntyQuery!$A$4:$FA$46,DQ1)","v":95},{"$f":"VLOOKUP(DropDownList!$A$47,CntyQuery!$A$4:$FA$46,DR1)","v":39},{"$f":"VLOOKUP(DropDownList!$A$47,CntyQuery!$A$4:$FA$46,DS1)","v":12},{"$f":"VLOOKUP(DropDownList!$A$47,CntyQuery!$A$4:$FA$46,DT1)","v":0},{"$f":"VLOOKUP(DropDownList!$A$47,CntyQuery!$A$4:$FA$46,DU1)","v":116},{"$f":"VLOOKUP(DropDownList!$A$47,CntyQuery!$A$4:$FA$46,DV1)","v":313},{"$f":"VLOOKUP(DropDownList!$A$47,CntyQuery!$A$4:$FA$46,DW1)","v":118},{"$f":"VLOOKUP(DropDownList!$A$47,CntyQuery!$A$4:$FA$46,DX1)","v":155},{"$f":"VLOOKUP(DropDownList!$A$47,CntyQuery!$A$4:$FA$46,DY1)","v":70},{"$f":"VLOOKUP(DropDownList!$A$47,CntyQuery!$A$4:$FA$46,DZ1)","v":66},{"$f":"VLOOKUP(DropDownList!$A$47,CntyQuery!$A$4:$FA$46,EA1)","v":29},{"$f":"VLOOKUP(DropDownList!$A$47,CntyQuery!$A$4:$FA$46,EB1)","v":0},{"$f":"VLOOKUP(DropDownList!$A$47,CntyQuery!$A$4:$FA$46,EC1)","v":0},{"$f":"VLOOKUP(DropDownList!$A$47,CntyQuery!$A$4:$FA$46,ED1)","v":4209},{"$f":"VLOOKUP(DropDownList!$A$47,CntyQuery!$A$4:$FA$46,EE1)","v":17177},{"$f":"VLOOKUP(DropDownList!$A$47,CntyQuery!$A$4:$FA$46,EF1)","v":12889},{"$f":"VLOOKUP(DropDownList!$A$47,CntyQuery!$A$4:$FA$46,EG1)","v":2416},{"$f":"VLOOKUP(DropDownList!$A$47,CntyQuery!$A$4:$FA$46,EH1)","v":25961},{"$f":"VLOOKUP(DropDownList!$A$47,CntyQuery!$A$4:$FA$46,EI1)","v":669},{"$f":"VLOOKUP(DropDownList!$A$47,CntyQuery!$A$4:$FA$46,EJ1)","v":15347},{"$f":"VLOOKUP(DropDownList!$A$47,CntyQuery!$A$4:$FA$46,EK1)","v":25961},{"$f":"VLOOKUP(DropDownList!$A$47,CntyQuery!$A$4:$FA$46,EL1)","v":669},{"$f":"VLOOKUP(DropDownList!$A$47,CntyQuery!$A$4:$FA$46,EM1)","v":9749},{"$f":"VLOOKUP(DropDownList!$A$47,CntyQuery!$A$4:$FA$46,EN1)","v":2241},{"$f":"VLOOKUP(DropDownList!$A$47,CntyQuery!$A$4:$FA$46,EO1)","v":113},{"$f":"VLOOKUP(DropDownList!$A$47,CntyQuery!$A$4:$FA$46,EP1)","v":278},{"$f":"VLOOKUP(DropDownList!$A$47,CntyQuery!$A$4:$FA$46,EQ1)","v":164},{"$f":"VLOOKUP(DropDownList!$A$47,CntyQuery!$A$4:$FA$46,ER1)","v":298},{"$f":"VLOOKUP(DropDownList!$A$47,CntyQuery!$A$4:$FA$46,ES1)","v":1121},{"$f":"VLOOKUP(DropDownList!$A$47,CntyQuery!$A$4:$FA$46,ET1)","v":879},{"$f":"VLOOKUP(DropDownList!$A$47,CntyQuery!$A$4:$FA$46,EU1)","v":1996},{"$f":"VLOOKUP(DropDownList!$A$47,CntyQuery!$A$4:$FA$46,EV1)","v":1883},{"$f":"VLOOKUP(DropDownList!$A$47,CntyQuery!$A$4:$FA$46,EW1)","v":2394},{"$f":"VLOOKUP(DropDownList!$A$47,CntyQuery!$A$4:$FA$46,EX1)","v":1525},{"$f":"VLOOKUP(DropDownList!$A$47,CntyQuery!$A$4:$FA$46,EY1)","v":276},{"$f":"VLOOKUP(DropDownList!$A$47,CntyQuery!$A$4:$FA$46,EZ1)","v":68},{"$f":"VLOOKUP(DropDownList!$A$47,CntyQuery!$A$4:$FA$46,FA1)","v":54}]
[]
[]
["Census 1990 Data -    Query Name:  TownSTF1Qry1"]
["NAME","COUSUBFP","Census_Cnty_Code","FIPS","LandAcres","WaterAcres","HousingUnits90Cen","P01Persons90Cen","P02Families90Cen","P03Households90cen","P05MalePop90cen","P05FemalePop90cen","P06WhitePop","P06BlackPop","P06AmerIndianPop","P06AsianPIPop","P06OtherRacePop","P08HispanicOrPop","P11AgeUnder15_90cen","P11Age15to24_90cen","P11Age25to34_90cen","P11Age35to44_90cen","P11Age45to54_90cen","P11Age55to64_90cen","P11Age65to74_90cen","P11Age75andOver_90cen","P15PersonsInHH90cen","P15PersonsInFamHH90cen","P15PersonsInGC","PersonsPerHH90cen","PersonsPerFam90Cen","P16SinglePersonHH90cen","P16MarriedCoupleHH90cen","P16SingleParentHH90cen","P16NonFamilyHH90cen","H01TotalHousingUnits","H02OccupiedHousingUnits","H02VacantHousingUnits","H03OwnerOccHU","H03RenterOccHU","H05VacantForRent90","H05VacantForSale90","H05VacantSeasonalRec","H23OOHUVal<15k","H23OOHUVal15to19k","H23OOHUVal20to24k","H23OOHUVal25to29k","H23OOHUVal30to34k","H23OOHUVal35to39k","H23OOHUVal40to44k","H23OOHUVal45to49k","H23OOHUVal50to59k","H23OOHUVal60to74k","H23OOHUVal75to99k","H23OOHUVal100to124k","H23OOHUVal125to149k","H23OOHUVal150to174k","H23OOHUVal175to199k","H23OOHUVal200to249k","H23OOHUVal250to299k","H23OOHUVal300to399k","H23OOHUVal400to499k","H23OOHUVal500kOrMore","H23BOOHUMedVal","H41SingFamHU90cen","H41MultiFamHU90cen","H41MobileHom90cen","H43SingFamOwnHU90cen","H43MultiFamOwnHU90cen","H43MobileHomOwnHU90cen","H43SingFamRntrHU90cen","H43MultiFamRntrHU90cen","H43MobileHomRntrHU90cen","H41HU1UnitDet","H41HU1UnitAtt","H41HU2Unit","H41HU3to4Unit","H41HU5to9Unit","H41HU10to19Unit","H41HU20to49Unit","H41HU50PlusUnit","H41HUMobilH","H41HUOther"]
[{"$f":"VLOOKUP(DropDownList!$B$47,CntyQuery!$A$51:$CE$93,A$1)","v":"Rochester"},{"$f":"VLOOKUP(DropDownList!$B$47,CntyQuery!$A$51:$CE$93,B$1)","v":910},{"$f":"VLOOKUP(DropDownList!$B$47,CntyQuery!$A$51:$CE$93,C$1)","v":17050},{"$f":"VLOOKUP(DropDownList!$B$47,CntyQuery!$A$51:$CE$93,D$1)","v":"65140"},{"$f":"VLOOKUP(DropDownList!$B$47,CntyQuery!$A$51:$CE$93,E$1)","v":28688.05},{"$f":"VLOOKUP(DropDownList!$B$47,CntyQuery!$A$51:$CE$93,F$1)","v":392.49},{"$f":"VLOOKUP(DropDownList!$B$47,CntyQuery!$A$51:$CE$93,G$1)","v":11076},{"$f":"VLOOKUP(DropDownList!$B$47,CntyQuery!$A$51:$CE$93,H$1)","v":26630},{"$f":"VLOOKUP(DropDownList!$B$47,CntyQuery!$A$51:$CE$93,I$1)","v":7332},{"$f":"VLOOKUP(DropDownList!$B$47,CntyQuery!$A$51:$CE$93,J$1)","v":10221},{"$f":"VLOOKUP(DropDownList!$B$47,CntyQuery!$A$51:$CE$93,K$1)","v":12931},{"$f":"VLOOKUP(DropDownList!$B$47,CntyQuery!$A$51:$CE$93,L$1)","v":13699},{"$f":"VLOOKUP(DropDownList!$B$47,CntyQuery!$A$51:$CE$93,M$1)","v":26291},{"$f":"VLOOKUP(DropDownList!$B$47,CntyQuery!$A$51:$CE$93,N$1)","v":85},{"$f":"VLOOKUP(DropDownList!$B$47,CntyQuery!$A$51:$CE$93,O$1)","v":54},{"$f":"VLOOKUP(DropDownList!$B$47,CntyQuery!$A$51:$CE$93,P$1)","v":147},{"$f":"VLOOKUP(DropDownList!$B$47,CntyQuery!$A$51:$CE$93,Q$1)","v":53},{"$f":"VLOOKUP(DropDownList!$B$47,CntyQuery!$A$51:$CE$93,R$1)","v":192},{"$f":"VLOOKUP(DropDownList!$B$47,CntyQuery!$A$51:$CE$93,S$1)","v":6067},{"$f":"VLOOKUP(DropDownList!$B$47,CntyQuery!$A$51:$CE$93,T$1)","v":3386},{"$f":"VLOOKUP(DropDownList!$B$47,CntyQuery!$A$51:$CE$93,U$1)","v":5151},{"$f":"VLOOKUP(DropDownList!$B$47,CntyQuery!$A$51:$CE$93,V$1)","v":3862},{"$f":"VLOOKUP(DropDownList!$B$47,CntyQuery!$A$51:$CE$93,W$1)","v":2510},{"$f":"VLOOKUP(DropDownList!$B$47,CntyQuery!$A$51:$CE$93,X$1)","v":2258},{"$f":"VLOOKUP(DropDownList!$B$47,CntyQuery!$A$51:$CE$93,Y$1)","v":1886},{"$f":"VLOOKUP(DropDownList!$B$47,CntyQuery!$A$51:$CE$93,Z$1)","v":1510},{"$f":"VLOOKUP(DropDownList!$B$47,CntyQuery!$A$51:$CE$93,AA$1)","v":26327},{"$f":"VLOOKUP(DropDownList!$B$47,CntyQuery!$A$51:$CE$93,AB$1)","v":22703},{"$f":"VLOOKUP(DropDownList!$B$47,CntyQuery!$A$51:$CE$93,AC$1)","v":303},{"$f":"VLOOKUP(DropDownList!$B$47,CntyQuery!$A$51:$CE$93,AD$1)","v":2.5757753644457488},{"$f":"VLOOKUP(DropDownList!$B$47,CntyQuery!$A$51:$CE$93,AE$1)","v":3.0964266230223676},{"$f":"VLOOKUP(DropDownList!$B$47,CntyQuery!$A$51:$CE$93,AF$1)","v":2304},{"$f":"VLOOKUP(DropDownList!$B$47,CntyQuery!$A$51:$CE$93,AG$1)","v":5989},{"$f":"VLOOKUP(DropDownList!$B$47,CntyQuery!$A$51:$CE$93,AH$1)","v":1343},{"$f":"VLOOKUP(DropDownList!$B$47,CntyQuery!$A$51:$CE$93,AI$1)","v":585},{"$f":"VLOOKUP(DropDownList!$B$47,CntyQuery!$A$51:$CE$93,AJ$1)","v":11076},{"$f":"VLOOKUP(DropDownList!$B$47,CntyQuery!$A$51:$CE$93,AK$1)","v":10221},{"$f":"VLOOKUP(DropDownList!$B$47,CntyQuery!$A$51:$CE$93,AL$1)","v":855},{"$f":"VLOOKUP(DropDownList!$B$47,CntyQuery!$A$51:$CE$93,AM$1)","v":7051},{"$f":"VLOOKUP(DropDownList!$B$47,CntyQuery!$A$51:$CE$93,AN$1)","v":3170},{"$f":"VLOOKUP(DropDownList!$B$47,CntyQuery!$A$51:$CE$93,AO$1)","v":446},{"$f":"VLOOKUP(DropDownList!$B$47,CntyQuery!$A$51:$CE$93,AP$1)","v":212},{"$f":"VLOOKUP(DropDownList!$B$47,CntyQuery!$A$51:$CE$93,AQ$1)","v":50},{"$f":"VLOOKUP(DropDownList!$B$47,CntyQuery!$A$51:$CE$93,AR$1)","v":15},{"$f":"VLOOKUP(DropDownList!$B$47,CntyQuery!$A$51:$CE$93,AS$1)","v":6},{"$f":"VLOOKUP(DropDownList!$B$47,CntyQuery!$A$51:$CE$93,AT$1)","v":18},{"$f":"VLOOKUP(DropDownList!$B$47,CntyQuery!$A$51:$CE$93,AU$1)","v":10},{"$f":"VLOOKUP(DropDownList!$B$47,CntyQuery!$A$51:$CE$93,AV$1)","v":20},{"$f":"VLOOKUP(DropDownList!$B$47,CntyQuery!$A$51:$CE$93,AW$1)","v":35},{"$f":"VLOOKUP(DropDownList!$B$47,CntyQuery!$A$51:$CE$93,AX$1)","v":33},{"$f":"VLOOKUP(DropDownList!$B$47,CntyQuery!$A$51:$CE$93,AY$1)","v":31},{"$f":"VLOOKUP(DropDownList!$B$47,CntyQuery!$A$51:$CE$93,AZ$1)","v":78},{"$f":"VLOOKUP(DropDownList!$B$47,CntyQuery!$A$51:$CE$93,BA$1)","v":311},{"$f":"VLOOKUP(DropDownList!$B$47,CntyQuery!$A$51:$CE$93,BB$1)","v":1366},{"$f":"VLOOKUP(DropDownList!$B$47,CntyQuery!$A$51:$CE$93,BC$1)","v":1172},{"$f":"VLOOKUP(DropDownList!$B$47,CntyQuery!$A$51:$CE$93,BD$1)","v":720},{"$f":"VLOOKUP(DropDownList!$B$47,CntyQuery!$A$51:$CE$93,BE$1)","v":265},{"$f":"VLOOKUP(DropDownList!$B$47,CntyQuery!$A$51:$CE$93,BF$1)","v":102},{"$f":"VLOOKUP(DropDownList!$B$47,CntyQuery!$A$51:$CE$93,BG$1)","v":97},{"$f":"VLOOKUP(DropDownList!$B$47,CntyQuery!$A$51:$CE$93,BH$1)","v":34},{"$f":"VLOOKUP(DropDownList!$B$47,CntyQuery!$A$51:$CE$93,BI$1)","v":12},{"$f":"VLOOKUP(DropDownList!$B$47,CntyQuery!$A$51:$CE$93,BJ$1)","v":3},{"$f":"VLOOKUP(DropDownList!$B$47,CntyQuery!$A$51:$CE$93,BK$1)","v":4},{"$f":"VLOOKUP(DropDownList!$B$47,CntyQuery!$A$51:$CE$93,BL$1)","v":105200},{"$f":"VLOOKUP(DropDownList!$B$47,CntyQuery!$A$51:$CE$93,BM$1)","v":5129},{"$f":"VLOOKUP(DropDownList!$B$47,CntyQuery!$A$51:$CE$93,BN$1)","v":3796},{"$f":"VLOOKUP(DropDownList!$B$47,CntyQuery!$A$51:$CE$93,BO$1)","v":2151},{"$f":"VLOOKUP(DropDownList!$B$47,CntyQuery!$A$51:$CE$93,BP$1)","v":4588},{"$f":"VLOOKUP(DropDownList!$B$47,CntyQuery!$A$51:$CE$93,BQ$1)","v":626},{"$f":"VLOOKUP(DropDownList!$B$47,CntyQuery!$A$51:$CE$93,BR$1)","v":1837},{"$f":"VLOOKUP(DropDownList!$B$47,CntyQuery!$A$51:$CE$93,BS$1)","v":392},{"$f":"VLOOKUP(DropDownList!$B$47,CntyQuery!$A$51:$CE$93,BT$1)","v":2646},{"$f":"VLOOKUP(DropDownList!$B$47,CntyQuery!$A$51:$CE$93,BU$1)","v":132},{"$f":"VLOOKUP(DropDownList!$B$47,CntyQuery!$A$51:$CE$93,BV$1)","v":5129},{"$f":"VLOOKUP(DropDownList!$B$47,CntyQuery!$A$51:$CE$93,BW$1)","v":362},{"$f":"VLOOKUP(DropDownList!$B$47,CntyQuery!$A$51:$CE$93,BX$1)","v":942},{"$f":"VLOOKUP(DropDownList!$B$47,CntyQuery!$A$51:$CE$93,BY$1)","v":1151},{"$f":"VLOOKUP(DropDownList!$B$47,CntyQuery!$A$51:$CE$93,BZ$1)","v":696},{"$f":"VLOOKUP(DropDownList!$B$47,CntyQuery!$A$51:$CE$93,CA$1)","v":273},{"$f":"VLOOKUP(DropDownList!$B$47,CntyQuery!$A$51:$CE$93,CB$1)","v":218},{"$f":"VLOOKUP(DropDownList!$B$47,CntyQuery!$A$51:$CE$93,CC$1)","v":154},{"$f":"VLOOKUP(DropDownList!$B$47,CntyQuery!$A$51:$CE$93,CD$1)","v":2041},{"$f":"VLOOKUP(DropDownList!$B$47,CntyQuery!$A$51:$CE$93,CE$1)","v":110}]
[]
[]
["Census 1990 Data -          Query Name: TownSTF3Qry1"]
["NAME","FIPS","COUSUBFP","LandAcres","WaterAcres","HousingUnits90Cen","P01Persons90Cen","P02Families90Cen","P03Households90cen","H25HU<5yrs90cen","H25HU5to20yrs90cen","H25HU20to50yrs90cen","H25HU>50yrs90cen","H31Units0Bedroom90cen","H31Units1Bedroom90cen","H31Units2Bedroom90cen","H31Units3Bedroom90cen","H31Units4Bedroom90cen","H31Units5+Bedroom90cen","P80HI<5K","P80HI5Kto10K","P80HI10Kto15K","P80HI15Kto25K","P80HI25Kto35K","P80HI35Kto50K","P80HI50Kto75K","P80HI75Kto100K","P80HI>100K","P80AMedHI","P86HH<25HI<5K","P86HH<25HI5Kto10K","P86HH<25HI10Kto15K","P86HH<25HI15Kto25K","P86HH<25HI25Kto35K","P86HH<25HI35Kto50K","P86HH<25HI50Kto75K","P86HH<25HI75Kto100K","P86HH<25HI>100K","P86HH25to34HI<5K","P86HH25to34HI5Kto10K","P86HH25to34HI10Kto15K","P86HH25to34HI15Kto25K","P86HH25to34HI25Kto35K","P86HH25to34HI35Kto50K","P86HH25to34HI50Kto75K","P86HH25to34HI75Kto100K","P86HH25to34HI>100K","P86HH35to44HI<5K","P86HH35to44HI5Kto10K","P86HH35to44HI10Kto15K","P86HH35to44HI15Kto25K","P86HH35to44HI25Kto35K","P86HH35to44HI35Kto50K","P86HH35to44HI50Kto75K","P86HH35to44HI75Kto100K","P86HH35to44HI>100K","P86HH45to54HI<5K","P86HH45to54HI5Kto10K","P86HH45to54HI10Kto15K","P86HH45to54HI15Kto25K","P86HH45to54HI25Kto35K","P86HH45to54HI35Kto50K","P86HH45to54HI50Kto75K","P86HH45to54HI75Kto100K","P86HH45to54HI>100K","P86HH55to64HI<5K","P86HH55to64HI5Kto10K","P86HH55to64HI10Kto15K","P86HH55to64HI15Kto25K","P86HH55to64HI25Kto35K","P86HH55to64HI35Kto50K","P86HH55to64HI50Kto75K","P86HH55to64HI75Kto100K","P86HH55to64HI>100K","P86HH65to74HI<5K","P86HH65to74HI5Kto10K","P86HH65to74HI10Kto15K","P86HH65to74HI15Kto25K","P86HH65to74HI25Kto35K","P86HH65to74HI35Kto50K","P86HH65to74HI50Kto75K","P86HH65to74HI75Kto100K","P86HH65to74HI>100K","P86HH>75HI<5K","P86HH>75HI5Kto10K","P86HH>75HI10Kto15K","P86HH>75HI15Kto25K","P86HH>75HI25Kto35K","P86HH>75HI35Kto50K","P86HH>75HI50Kto75K","P86HH>75HI75Kto100K","P86HH>75HI>100K","P54SchlEnrlPrePrim","P54SchlEnrlElemThrHS","P54SchlEnrlCollege","P54NotEnrlInSch","P57Pop25andOver","P57LessThan9thGrade","P579thto12thNoDip","P57HSGrad","P57SomeCollege","P57AssocDeg","P57BachelDeg","P57GradorProfDeg","P57HSGradorHigher","P57CollGradorHigher","P42NativePop","P42ForeignBornPop","P42BornStateOfRes","P37NativePop2","P37ForeignBornPop2","P49DroveAlone","P49CarPooled","P49PublicTranspt","P49Walked","P49OtherMeans","P49WorkedAtHome","P80HHInc<10K","P80HHInc10to15K","P80HHInc15to25K","P80HHInc25to35K","P80HHInc35to50K","P80HHInc50to75K","P80HHInc75to100K","P80HHInc100to150K","P80HHInc>150K","H25YearStBlt89to90","H25YearStBlt85to88","H25YearStBlt80to84","H25YearStBlt70to79","H25YearStBlt60to69","H25YearStBlt50to59","H25YearStBlt40to49","H25YearStBlt39earlier","P107FamInc<10K","P107FamInc10to15K","P107FamInc15to25K","P107FamInc25to35K","P107FamInc35to50K","P107FamInc50to75K","P107FamInc75to100K","P107FamInc100to150K","P107FamInc>150K","P107AMedFamInc","P110NonFamInc<10K","P110NonFamInc10to15K","P110NonFamInc15to25K","P110NonFamInc25to35K","P110NonFamInc35to50K","P110NonFamInc50to75K","P110NonFamInc75to100K","P110NonFamInc100to150K","P110NonFamInc>150K","P110AMedNonFamInc","H16HU1Room","H16HU2Room","H16HU3Room","H16HU4Room","H16HU5Room","H16HU6Room","H16HU7Room","H16HU8Room","H16HU9+Room","H43GrossRnt<100","H43GrossRnt100to149","H43GrossRnt150to199","H43GrossRnt200to249","H43GrossRnt250to299","H43GrossRnt300to349","H43GrossRnt350to399","H43GrossRnt400to449","H43GrossRnt450to499","H43GrossRnt500to549","H43GrossRnt550to599","H43GrossRnt600to649","H43GrossRnt650to699","H43GrossRnt700to749","H43GrossRnt750to999","H43GrossRnt1000Plus","H43NoCashRent","H43MedGrossRent","H51GrossRnt<20PctHHInc","H51GrossRnt20to24PctHHInc","H51GrossRnt25to29PctHHInc","H51GrossRnt30to34PctHHInc","H51GrossRnt35PctOrMoreHHInc","H51GrossRntAsPctHHIncNotComp","H52HUwMtgMoOwnCst<200","H52HUwMtgMoOwnCst200to299","H52HUwMtgMoOwnCst300to399","H52HUwMtgMoOwnCst400to499","H52HUwMtgMoOwnCst500to599","H52HUwMtgMoOwnCst600to699","H52HUwMtgMoOwnCst700to799","H52HUwMtgMoOwnCst800to899","H52HUwMtgMoOwnCst900to999","H52HUwMtgMoOwnCst1000to1249","H52HUwMtgMoOwnCst1250to1499","H52HUwMtgMoOwnCst1500to1999","H52HUwMtgMoOwnCst2000More","H52HUwNoMtgMoOwnCst<100","H52HUwNoMtgMoOwnCst100to149","H52HUwNoMtgMoOwnCst150to199","H52HUwNoMtgMoOwnCst200to249","H52HUwNoMtgMoOwnCst250to299","H52HUwNoMtgMoOwnCst300to349","H52HUwNoMtgMoOwnCst350to399","H52HUwNoMtgMoOwnCst400More","H52AMedMoOwnCstWMortg","H52AMedMoOwnCstWNoMortg","H58HUwMtgMOC<20pHHInc","H58HUwMtgMOC20to24pHHInc","H58HUwMtgMOC25to29pHHInc","H58HUwMtgMOC30to34pHHInc","H58wMtgMOC>35pHHInc","H58HUwMtgMOCNotComp","H58HUwNoMtgMOC<20pHHInc","H58HUwNoMtgMOC20to24pHHInc","H58HUwNoMtgMOC25to29pHHInc","H58HUwNoMtgMOC30to34pHHInc","H58wNoMtgMOC>35pHHInc","H58HUwNoMtgMOCNotComp","H61OOHUVal<15k","H61OOHUVal15to19k","H61OOHUVal20to24k","H61OOHUVal25to29k","H61OOHUVal30to34k","H61OOHUVal35to39k","H61OOHUVal40to44k","H61OOHUVal45to49k","H61OOHUVal50to59k","H61OOHUVal60to74k","H61OOHUVal75to99k","H61OOHUVal100to124k","H61OOHUVal125to149k","H61OOHUVal150to174k","H61OOHUVal175to199k","H61OOHUVal200to249k","H61OOHUVal250to299k","H61OOHUVal300to399k","H61OOHUVal400to499k","H61OOHUVal500kOrMore","H61aOOHUMedVal"]
[]
[]
[]
["Other Demo Data -             Query Name: QryAllTowns-ACSDemographicSheet"]
["TOWN_NAME","FIPS","TOWNCNTY","COUSUB","POP80","POP90CDCEN","POP2000CEN","POP2010CEN","POP2020-Proj","POP2025-Proj","POP2030-Proj","SF80","MF80","MH80","SF81","MF81","MH81","SF82","MF82","MH82","SF83","MF83","MH83","SF84_OSP","MF84_OSP","MH84_OSP","SF85_OSP","MF85_OSP","MH85_OSP","SF86_OSP","MF86_OSP","MH86_OSP","SF87_OSP","MF87_OSP","MH87_OSP","SF88_OSP","MF88_OSP","MH88_OSP","SF89_OSP","MF89_OSP","MH89_OSP","SF90_OSP","MF90_OSP","MH90_OSP","SF91_OSP","MF91_OSP","MH91_OSP","SF92_OSP","MF92_OSP","MH92_OSP","SF93_OSP","MF93_OSP","MH93_OSP","SF94_OSP","MF94_OSP","MH94_OSP","SF95_OSP","MF95_OSP","MH95_OSP","SF96_OSP","MF96_OSP","MH96_OSP","SF97_OSP","MF97_OSP","MH97_OSP","SF98_OSP","MF98_OSP","MH98_OSP","SF99_OSP","MF99_OSP","MH99_OSP","SF00_OSP","MF00_OSP","MH00_OSP","SF01_OSP","MF01_OSP","MH01_OSP","SF02_OSP","MF02_OSP","MH02_OSP","SF03_OSP","MF03_OSP","MH03_OSP","SF04_OSP","MF04_OSP","MH04_OSP","SF05_OSP","MF05_OSP","MH05_OSP","SF06_OSP","MF06_OSP","MH06_OSP","SF07_OSP","MF07_OSP","MH07_OSP","SF08_OSP","MF08_OSP","MH08_OSP","SF09_OSP","MF09_OSP","MH09_OSP","SF10_OSP","MF10_OSP","MH10_OSP","SF11_OSP","MF11_OSP","MH11_OSP","SF12_OSP","MF12_OSP","MH12_OSP","SF13_OSP","MF13_OSP","MH13_OSP","SF14_OSP","MF14_OSP","MH14_OSP","SF15_OSP","MF15_OSP","MH15_OSP","SF16_OSP","MF16_OSP","MH16_OSP","SF17_OSP","MF17_OSP","MH17_OSP","SF18_OSP","MF18_OSP","MH18_OSP","COMMENTS"]
[{"$f":"VLOOKUP(DropDownList!$B$47,CntyQuery!$A$118:$FZ$130,A$1)","v":"Rochester"},{"$f":"VLOOKUP(DropDownList!$B$47,CntyQuery!$A$118:$FZ$130,B$1)","v":17050},{"$f":"VLOOKUP(DropDownList!$B$47,CntyQuery!$A$118:$FZ$130,C$1)","v":910},{"$f":"VLOOKUP(DropDownList!$B$47,CntyQuery!$A$118:$FZ$130,D$1)","v":"65140"},{"$f":"VLOOKUP(DropDownList!$B$47,CntyQuery!$A$118:$FZ$130,E$1)","v":21560},{"$f":"VLOOKUP(DropDownList!$B$47,CntyQuery!$A$118:$FZ$130,F$1)","v":26630},{"$f":"VLOOKUP(DropDownList!$B$47,CntyQuery!$A$118:$FZ$130,G$1)","v":28461},{"$f":"VLOOKUP(DropDownList!$B$47,CntyQuery!$A$118:$FZ$130,H$1)","v":29752},{"$f":"VLOOKUP(DropDownList!$B$47,CntyQuery!$A$118:$FZ$130,I$1)","v":32492},{"$f":"VLOOKUP(DropDownList!$B$47,CntyQuery!$A$118:$FZ$130,J$1)","v":33801},{"$f":"VLOOKUP(DropDownList!$B$47,CntyQuery!$A$118:$FZ$130,K$1)","v":34894},{"$f":"VLOOKUP(DropDownList!$B$47,CntyQuery!$A$118:$FZ$130,L$1)","v":35800},{"$f":"VLOOKUP(DropDownList!$B$47,CntyQuery!$A$118:$FZ$130,M$1)","v":46},{"$f":"VLOOKUP(DropDownList!$B$47,CntyQuery!$A$118:$FZ$130,N$1)","v":48},{"$f":"VLOOKUP(DropDownList!$B$47,CntyQuery!$A$118:$FZ$130,O$1)","v":11},{"$f":"VLOOKUP(DropDownList!$B$47,CntyQuery!$A$118:$FZ$130,P$1)","v":31},{"$f":"VLOOKUP(DropDownList!$B$47,CntyQuery!$A$118:$FZ$130,Q$1)","v":0},{"$f":"VLOOKUP(DropDownList!$B$47,CntyQuery!$A$118:$FZ$130,R$1)","v":6},{"$f":"VLOOKUP(DropDownList!$B$47,CntyQuery!$A$118:$FZ$130,S$1)","v":19},{"$f":"VLOOKUP(DropDownList!$B$47,CntyQuery!$A$118:$FZ$130,T$1)","v":10},{"$f":"VLOOKUP(DropDownList!$B$47,CntyQuery!$A$118:$FZ$130,U$1)","v":8},{"$f":"VLOOKUP(DropDownList!$B$47,CntyQuery!$A$118:$FZ$130,V$1)","v":42},{"$f":"VLOOKUP(DropDownList!$B$47,CntyQuery!$A$118:$FZ$130,W$1)","v":2},{"$f":"VLOOKUP(DropDownList!$B$47,CntyQuery!$A$118:$FZ$130,X$1)","v":38},{"$f":"VLOOKUP(DropDownList!$B$47,CntyQuery!$A$118:$FZ$130,Y$1)","v":111},{"$f":"VLOOKUP(DropDownList!$B$47,CntyQuery!$A$118:$FZ$130,Z$1)","v":27},{"$f":"VLOOKUP(DropDownList!$B$47,CntyQuery!$A$118:$FZ$130,AA$1)","v":52},{"$f":"VLOOKUP(DropDownList!$B$47,CntyQuery!$A$118:$FZ$130,AB$1)","v":159},{"$f":"VLOOKUP(DropDownList!$B$47,CntyQuery!$A$118:$FZ$130,AC$1)","v":73},{"$f":"VLOOKUP(DropDownList!$B$47,CntyQuery!$A$118:$FZ$130,AD$1)","v":132},{"$f":"VLOOKUP(DropDownList!$B$47,CntyQuery!$A$118:$FZ$130,AE$1)","v":321},{"$f":"VLOOKUP(DropDownList!$B$47,CntyQuery!$A$118:$FZ$130,AF$1)","v":334},{"$f":"VLOOKUP(DropDownList!$B$47,CntyQuery!$A$118:$FZ$130,AG$1)","v":250},{"$f":"VLOOKUP(DropDownList!$B$47,CntyQuery!$A$118:$FZ$130,AH$1)","v":335},{"$f":"VLOOKUP(DropDownList!$B$47,CntyQuery!$A$118:$FZ$130,AI$1)","v":117},{"$f":"VLOOKUP(DropDownList!$B$47,CntyQuery!$A$118:$FZ$130,AJ$1)","v":159},{"$f":"VLOOKUP(DropDownList!$B$47,CntyQuery!$A$118:$FZ$130,AK$1)","v":81},{"$f":"VLOOKUP(DropDownList!$B$47,CntyQuery!$A$118:$FZ$130,AL$1)","v":28},{"$f":"VLOOKUP(DropDownList!$B$47,CntyQuery!$A$118:$FZ$130,AM$1)","v":87},{"$f":"VLOOKUP(DropDownList!$B$47,CntyQuery!$A$118:$FZ$130,AN$1)","v":114},{"$f":"VLOOKUP(DropDownList!$B$47,CntyQuery!$A$118:$FZ$130,AO$1)","v":1},{"$f":"VLOOKUP(DropDownList!$B$47,CntyQuery!$A$118:$FZ$130,AP$1)","v":78},{"$f":"VLOOKUP(DropDownList!$B$47,CntyQuery!$A$118:$FZ$130,AQ$1)","v":54},{"$f":"VLOOKUP(DropDownList!$B$47,CntyQuery!$A$118:$FZ$130,AR$1)","v":0},{"$f":"VLOOKUP(DropDownList!$B$47,CntyQuery!$A$118:$FZ$130,AS$1)","v":30},{"$f":"VLOOKUP(DropDownList!$B$47,CntyQuery!$A$118:$FZ$130,AT$1)","v":36},{"$f":"VLOOKUP(DropDownList!$B$47,CntyQuery!$A$118:$FZ$130,AU$1)","v":-7},{"$f":"VLOOKUP(DropDownList!$B$47,CntyQuery!$A$118:$FZ$130,AV$1)","v":32},{"$f":"VLOOKUP(DropDownList!$B$47,CntyQuery!$A$118:$FZ$130,AW$1)","v":36},{"$f":"VLOOKUP(DropDownList!$B$47,CntyQuery!$A$118:$FZ$130,AX$1)","v":2},{"$f":"VLOOKUP(DropDownList!$B$47,CntyQuery!$A$118:$FZ$130,AY$1)","v":28},{"$f":"VLOOKUP(DropDownList!$B$47,CntyQuery!$A$118:$FZ$130,AZ$1)","v":19},{"$f":"VLOOKUP(DropDownList!$B$47,CntyQuery!$A$118:$FZ$130,BA$1)","v":-6},{"$f":"VLOOKUP(DropDownList!$B$47,CntyQuery!$A$118:$FZ$130,BB$1)","v":69},{"$f":"VLOOKUP(DropDownList!$B$47,CntyQuery!$A$118:$FZ$130,BC$1)","v":47},{"$f":"VLOOKUP(DropDownList!$B$47,CntyQuery!$A$118:$FZ$130,BD$1)","v":43},{"$f":"VLOOKUP(DropDownList!$B$47,CntyQuery!$A$118:$FZ$130,BE$1)","v":61},{"$f":"VLOOKUP(DropDownList!$B$47,CntyQuery!$A$118:$FZ$130,BF$1)","v":30},{"$f":"VLOOKUP(DropDownList!$B$47,CntyQuery!$A$118:$FZ$130,BG$1)","v":5},{"$f":"VLOOKUP(DropDownList!$B$47,CntyQuery!$A$118:$FZ$130,BH$1)","v":37},{"$f":"VLOOKUP(DropDownList!$B$47,CntyQuery!$A$118:$FZ$130,BI$1)","v":26},{"$f":"VLOOKUP(DropDownList!$B$47,CntyQuery!$A$118:$FZ$130,BJ$1)","v":0},{"$f":"VLOOKUP(DropDownList!$B$47,CntyQuery!$A$118:$FZ$130,BK$1)","v":62},{"$f":"VLOOKUP(DropDownList!$B$47,CntyQuery!$A$118:$FZ$130,BL$1)","v":30},{"$f":"VLOOKUP(DropDownList!$B$47,CntyQuery!$A$118:$FZ$130,BM$1)","v":0},{"$f":"VLOOKUP(DropDownList!$B$47,CntyQuery!$A$118:$FZ$130,BN$1)","v":56},{"$f":"VLOOKUP(DropDownList!$B$47,CntyQuery!$A$118:$FZ$130,BO$1)","v":50},{"$f":"VLOOKUP(DropDownList!$B$47,CntyQuery!$A$118:$FZ$130,BP$1)","v":63},{"$f":"VLOOKUP(DropDownList!$B$47,CntyQuery!$A$118:$FZ$130,BQ$1)","v":88},{"$f":"VLOOKUP(DropDownList!$B$47,CntyQuery!$A$118:$FZ$130,BR$1)","v":79},{"$f":"VLOOKUP(DropDownList!$B$47,CntyQuery!$A$118:$FZ$130,BS$1)","v":0},{"$f":"VLOOKUP(DropDownList!$B$47,CntyQuery!$A$118:$FZ$130,BT$1)","v":52},{"$f":"VLOOKUP(DropDownList!$B$47,CntyQuery!$A$118:$FZ$130,BU$1)","v":87},{"$f":"VLOOKUP(DropDownList!$B$47,CntyQuery!$A$118:$FZ$130,BV$1)","v":16},{"$f":"VLOOKUP(DropDownList!$B$47,CntyQuery!$A$118:$FZ$130,BW$1)","v":40},{"$f":"VLOOKUP(DropDownList!$B$47,CntyQuery!$A$118:$FZ$130,BX$1)","v":62},{"$f":"VLOOKUP(DropDownList!$B$47,CntyQuery!$A$118:$FZ$130,BY$1)","v":-3},{"$f":"VLOOKUP(DropDownList!$B$47,CntyQuery!$A$118:$FZ$130,BZ$1)","v":71},{"$f":"VLOOKUP(DropDownList!$B$47,CntyQuery!$A$118:$FZ$130,CA$1)","v":108},{"$f":"VLOOKUP(DropDownList!$B$47,CntyQuery!$A$118:$FZ$130,CB$1)","v":7},{"$f":"VLOOKUP(DropDownList!$B$47,CntyQuery!$A$118:$FZ$130,CC$1)","v":88},{"$f":"VLOOKUP(DropDownList!$B$47,CntyQuery!$A$118:$FZ$130,CD$1)","v":86},{"$f":"VLOOKUP(DropDownList!$B$47,CntyQuery!$A$118:$FZ$130,CE$1)","v":193},{"$f":"VLOOKUP(DropDownList!$B$47,CntyQuery!$A$118:$FZ$130,CF$1)","v":61},{"$f":"VLOOKUP(DropDownList!$B$47,CntyQuery!$A$118:$FZ$130,CG$1)","v":158},{"$f":"VLOOKUP(DropDownList!$B$47,CntyQuery!$A$118:$FZ$130,CH$1)","v":90},{"$f":"VLOOKUP(DropDownList!$B$47,CntyQuery!$A$118:$FZ$130,CI$1)","v":44},{"$f":"VLOOKUP(DropDownList!$B$47,CntyQuery!$A$118:$FZ$130,CJ$1)","v":92},{"$f":"VLOOKUP(DropDownList!$B$47,CntyQuery!$A$118:$FZ$130,CK$1)","v":26},{"$f":"VLOOKUP(DropDownList!$B$47,CntyQuery!$A$118:$FZ$130,CL$1)","v":26},{"$f":"VLOOKUP(DropDownList!$B$47,CntyQuery!$A$118:$FZ$130,CM$1)","v":66},{"$f":"VLOOKUP(DropDownList!$B$47,CntyQuery!$A$118:$FZ$130,CN$1)","v":145},{"$f":"VLOOKUP(DropDownList!$B$47,CntyQuery!$A$118:$FZ$130,CO$1)","v":11},{"$f":"VLOOKUP(DropDownList!$B$47,CntyQuery!$A$118:$FZ$130,CP$1)","v":69},{"$f":"VLOOKUP(DropDownList!$B$47,CntyQuery!$A$118:$FZ$130,CQ$1)","v":4},{"$f":"VLOOKUP(DropDownList!$B$47,CntyQuery!$A$118:$FZ$130,CR$1)","v":0},{"$f":"VLOOKUP(DropDownList!$B$47,CntyQuery!$A$118:$FZ$130,CS$1)","v":63},{"$f":"VLOOKUP(DropDownList!$B$47,CntyQuery!$A$118:$FZ$130,CT$1)","v":0},{"$f":"VLOOKUP(DropDownList!$B$47,CntyQuery!$A$118:$FZ$130,CU$1)","v":18},{"$f":"VLOOKUP(DropDownList!$B$47,CntyQuery!$A$118:$FZ$130,CV$1)","v":15},{"$f":"VLOOKUP(DropDownList!$B$47,CntyQuery!$A$118:$FZ$130,CW$1)","v":30},{"$f":"VLOOKUP(DropDownList!$B$47,CntyQuery!$A$118:$FZ$130,CX$1)","v":1},{"$f":"VLOOKUP(DropDownList!$B$47,CntyQuery!$A$118:$FZ$130,CY$1)","v":20},{"$f":"VLOOKUP(DropDownList!$B$47,CntyQuery!$A$118:$FZ$130,CZ$1)","v":31},{"$f":"VLOOKUP(DropDownList!$B$47,CntyQuery!$A$118:$FZ$130,DA$1)","v":5},{"$f":"VLOOKUP(DropDownList!$B$47,CntyQuery!$A$118:$FZ$130,DB$1)","v":20},{"$f":"VLOOKUP(DropDownList!$B$47,CntyQuery!$A$118:$FZ$130,DC$1)","v":0},{"$f":"VLOOKUP(DropDownList!$B$47,CntyQuery!$A$118:$FZ$130,DD$1)","v":0},{"$f":"VLOOKUP(DropDownList!$B$47,CntyQuery!$A$118:$FZ$130,DE$1)","v":39},{"$f":"VLOOKUP(DropDownList!$B$47,CntyQuery!$A$118:$FZ$130,DF$1)","v":0},{"$f":"VLOOKUP(DropDownList!$B$47,CntyQuery!$A$118:$FZ$130,DG$1)","v":36},{"$f":"VLOOKUP(DropDownList!$B$47,CntyQuery!$A$118:$FZ$130,DH$1)","v":0},{"$f":"VLOOKUP(DropDownList!$B$47,CntyQuery!$A$118:$FZ$130,DI$1)","v":0},{"$f":"VLOOKUP(DropDownList!$B$47,CntyQuery!$A$118:$FZ$130,DJ$1)","v":3},{"$f":"VLOOKUP(DropDownList!$B$47,CntyQuery!$A$118:$FZ$130,DK$1)","v":27},{"$f":"VLOOKUP(DropDownList!$B$47,CntyQuery!$A$118:$FZ$130,DL$1)","v":24},{"$f":"VLOOKUP(DropDownList!$B$47,CntyQuery!$A$118:$FZ$130,DM$1)","v":7},{"$f":"VLOOKUP(DropDownList!$B$47,CntyQuery!$A$118:$FZ$130,DN$1)","v":45},{"$f":"VLOOKUP(DropDownList!$B$47,CntyQuery!$A$118:$FZ$130,DO$1)","v":51},{"$f":"VLOOKUP(DropDownList!$B$47,CntyQuery!$A$118:$FZ$130,DP$1)","v":0},{"$f":"VLOOKUP(DropDownList!$B$47,CntyQuery!$A$118:$FZ$130,DQ$1)","v":7},{"$f":"VLOOKUP(DropDownList!$B$47,CntyQuery!$A$118:$FZ$130,DR$1)","v":71},{"$f":"VLOOKUP(DropDownList!$B$47,CntyQuery!$A$118:$FZ$130,DS$1)","v":10},{"$f":"VLOOKUP(DropDownList!$B$47,CntyQuery!$A$118:$FZ$130,DT$1)","v":71},{"$f":"VLOOKUP(DropDownList!$B$47,CntyQuery!$A$118:$FZ$130,DU$1)","v":113},{"$f":"VLOOKUP(DropDownList!$B$47,CntyQuery!$A$118:$FZ$130,DV$1)","v":28},{"$f":"VLOOKUP(DropDownList!$B$47,CntyQuery!$A$118:$FZ$130,DW$1)","v":61},{"$f":"VLOOKUP(DropDownList!$B$47,CntyQuery!$A$118:$FZ$130,DX$1)","v":58},{"$f":"VLOOKUP(DropDownList!$B$47,CntyQuery!$A$118:$FZ$130,DY$1)","v":24}]
[]
[]
[]
["AreaName","COUNTYCODE","TOTP & G2001","TOT2001","GOODPRO2001","SERVICEPROMAN2001","WAGEP & G2001","WAGETOT2001","WAGEGOODPRO2001","WAGESERVICEPRO2001","TOTP & G2002","TOT2002","GOODPRO2002","SERVICEPROMAN2002","WAGEP & G2002","WAGETOT2002","WAGEGOODPRO2002","WAGESERVICEPRO2002","TOTP & G2003","TOT2003","GOODPRO2003","SERVICEPROMAN2003","WAGEP & G2003","WAGETOT2003","WAGEGOODPRO2003","WAGESERVICEPRO2003","TOTP & G2004","TOT2004","GOODPRO2004","SERVICEPROMAN2004","WAGEP & G2004","WAGETOT2004","WAGEGOODPRO2004","WAGESERVICEPRO2004","TOTP & G2005","TOT2005","GOODPRO2005","SERVICEPROMAN2005","WAGEP & G2005","WAGETOT2005","WAGEGOODPRO2005","WAGESERVICEPRO2005","TOTP & G2006","TOT2006","GOODPRO2006","SERVICEPROMAN2006","WAGEP & G2006","WAGETOT2006","WAGEGOODPRO2006","WAGESERVICEPRO2006","TOTP & G2007","TOT2007","GOODPRO2007","SERVICEPROMAN2007","WAGEP & G2007","WAGETOT2007","WAGEGOODPRO2007","WAGESERVICEPRO2007","TOTP & G2008","TOT2008","GOODPRO2008","SERVICEPROMAN2008","WAGEP & G2008","WAGETOT2008","WAGEGOODPRO2008","WAGESERVICEPRO2008","TOTP & G2009","TOT2009","GOODPRO2009","SERVICEPROMAN2009","WAGEP & G2009","WAGETOT2009","WAGEGOODPRO2009","WAGESERVICEPRO2009","TOTP & G2010","TOT2010","GOODPRO2010","SERVICEPROMAN2010","WAGEP & G2010","WAGETOT2010","WAGEGOODPRO2010","WAGESERVICEPRO2010","TOTP & G2011","TOT2011","GOODPRO2011","SERVICEPROMAN2011","WAGEP & G2011","WAGETOT2011","WAGEGOODPRO2011","WAGESERVICEPRO2011","TOTP & G2012","TOT2012","GOODPRO2012","SERVICEPROMAN2012","WAGEP & G2012","WAGETOT2012","WAGEGOODPRO2012","WAGESERVICEPRO2012","TOTP & G2013","TOT2013","GOODPRO2013","SERVICEPROMAN2013","WAGEP & G2013","WAGETOT2013","WAGEGOODPRO2013","WAGESERVICEPRO2013","TOTP & G2014","TOT2014","GOODPRO2014","SERVICEPROMAN2014","WAGEP & G2014","WAGETOT2014","WAGEGOODPRO2014","WAGESERVICEPRO2014","TOTP & G2015","TOT2015","GOODPRO2015","SERVICEPROMAN2015","WAGEP & G2015","WAGETOT2015","WAGEGOODPRO2015","WAGESERVICEPRO2015","TOTP & G2016","TOT2016","GOODPRO2016","SERVICEPROMAN2016","WAGEP & G2016","WAGETOT2016","WAGEGOODPRO2016","WAGESERVICEPRO2016","TOTP & G2017","TOT2017","GOODPRO2017","SERVICEPROMAN2017","WAGEP & G2017","WAGETOT2017","WAGEGOODPRO2017","WAGESERVICEPRO2017","TOTP & G2018","TOT2018","GOODPRO2018","SERVICEPROMAN2018","WAGEP & G2018","WAGETOT2018","WAGEGOODPRO2018","WAGESERVICEPRO2018","TOTP & G2019","TOT2019","TOTGov2019","GOODPRO2019","SERVICEPROMAN2019","WAGEP & G2019","WAGETOT2019","WAGEGov2019","WAGEGOODPRO2019","WAGESERVICEPRO2019","SummaryLevel"]
[{"$f":"VLOOKUP(DropDownList!$B$47,CntyQuery!$A$170:$FT$183,A$1)","v":"Rochester"},{"$f":"VLOOKUP(DropDownList!$B$47,CntyQuery!$A$170:$FT$183,B$1)","v":9},"v",{"$f":"VLOOKUP(DropDownList!$B$47,CntyQuery!$A$170:$FT$183,D$1)","v":10711},{"$f":"VLOOKUP(DropDownList!$B$47,CntyQuery!$A$170:$FT$183,E$1)","v":2575},{"$f":"VLOOKUP(DropDownList!$B$47,CntyQuery!$A$170:$FT$183,F$1)","v":8136},{"$f":"VLOOKUP(DropDownList!$B$47,CntyQuery!$A$170:$FT$183,G$1)","v":715.39},{"$f":"VLOOKUP(DropDownList!$B$47,CntyQuery!$A$170:$FT$183,H$1)","v":729.43},{"$f":"VLOOKUP(DropDownList!$B$47,CntyQuery!$A$170:$FT$183,I$1)","v":795.69},{"$f":"VLOOKUP(DropDownList!$B$47,CntyQuery!$A$170:$FT$183,J$1)","v":708.46},{"$f":"VLOOKUP(DropDownList!$B$47,CntyQuery!$A$170:$FT$183,K$1)","v":11143},{"$f":"VLOOKUP(DropDownList!$B$47,CntyQuery!$A$170:$FT$183,L$1)","v":9848},{"$f":"VLOOKUP(DropDownList!$B$47,CntyQuery!$A$170:$FT$183,M$1)","v":1791},{"$f":"VLOOKUP(DropDownList!$B$47,CntyQuery!$A$170:$FT$183,N$1)","v":8057},{"$f":"VLOOKUP(DropDownList!$B$47,CntyQuery!$A$170:$FT$183,O$1)","v":649.78},{"$f":"VLOOKUP(DropDownList!$B$47,CntyQuery!$A$170:$FT$183,P$1)","v":660.08},{"$f":"VLOOKUP(DropDownList!$B$47,CntyQuery!$A$170:$FT$183,Q$1)","v":817.04},{"$f":"VLOOKUP(DropDownList!$B$47,CntyQuery!$A$170:$FT$183,R$1)","v":625.17999999999995},{"$f":"VLOOKUP(DropDownList!$B$47,CntyQuery!$A$170:$FT$183,S$1)","v":11059},{"$f":"VLOOKUP(DropDownList!$B$47,CntyQuery!$A$170:$FT$183,T$1)","v":9763},{"$f":"VLOOKUP(DropDownList!$B$47,CntyQuery!$A$170:$FT$183,U$1)","v":1708},{"$f":"VLOOKUP(DropDownList!$B$47,CntyQuery!$A$170:$FT$183,V$1)","v":8055},{"$f":"VLOOKUP(DropDownList!$B$47,CntyQuery!$A$170:$FT$183,W$1)","v":642.30999999999995},{"$f":"VLOOKUP(DropDownList!$B$47,CntyQuery!$A$170:$FT$183,X$1)","v":647.39},{"$f":"VLOOKUP(DropDownList!$B$47,CntyQuery!$A$170:$FT$183,Y$1)","v":773.1},{"$f":"VLOOKUP(DropDownList!$B$47,CntyQuery!$A$170:$FT$183,Z$1)","v":620.74},{"$f":"VLOOKUP(DropDownList!$B$47,CntyQuery!$A$170:$FT$183,AA$1)","v":10935},{"$f":"VLOOKUP(DropDownList!$B$47,CntyQuery!$A$170:$FT$183,AB$1)","v":9664},{"$f":"VLOOKUP(DropDownList!$B$47,CntyQuery!$A$170:$FT$183,AC$1)","v":1666},{"$f":"VLOOKUP(DropDownList!$B$47,CntyQuery!$A$170:$FT$183,AD$1)","v":7998},{"$f":"VLOOKUP(DropDownList!$B$47,CntyQuery!$A$170:$FT$183,AE$1)","v":641.45000000000005},{"$f":"VLOOKUP(DropDownList!$B$47,CntyQuery!$A$170:$FT$183,AF$1)","v":641.09},{"$f":"VLOOKUP(DropDownList!$B$47,CntyQuery!$A$170:$FT$183,AG$1)","v":768.85},{"$f":"VLOOKUP(DropDownList!$B$47,CntyQuery!$A$170:$FT$183,AH$1)","v":614.47},{"$f":"VLOOKUP(DropDownList!$B$47,CntyQuery!$A$170:$FT$183,AI$1)","v":10944},{"$f":"VLOOKUP(DropDownList!$B$47,CntyQuery!$A$170:$FT$183,AJ$1)","v":9654},{"$f":"VLOOKUP(DropDownList!$B$47,CntyQuery!$A$170:$FT$183,AK$1)","v":1713},{"$f":"VLOOKUP(DropDownList!$B$47,CntyQuery!$A$170:$FT$183,AL$1)","v":7941},{"$f":"VLOOKUP(DropDownList!$B$47,CntyQuery!$A$170:$FT$183,AM$1)","v":644.64},{"$f":"VLOOKUP(DropDownList!$B$47,CntyQuery!$A$170:$FT$183,AN$1)","v":644.05999999999995},{"$f":"VLOOKUP(DropDownList!$B$47,CntyQuery!$A$170:$FT$183,AO$1)","v":764.91},{"$f":"VLOOKUP(DropDownList!$B$47,CntyQuery!$A$170:$FT$183,AP$1)","v":618},{"$f":"VLOOKUP(DropDownList!$B$47,CntyQuery!$A$170:$FT$183,AQ$1)","v":11250},{"$f":"VLOOKUP(DropDownList!$B$47,CntyQuery!$A$170:$FT$183,AR$1)","v":9937},{"$f":"VLOOKUP(DropDownList!$B$47,CntyQuery!$A$170:$FT$183,AS$1)","v":1790},{"$f":"VLOOKUP(DropDownList!$B$47,CntyQuery!$A$170:$FT$183,AT$1)","v":8147},{"$f":"VLOOKUP(DropDownList!$B$47,CntyQuery!$A$170:$FT$183,AU$1)","v":650.77},{"$f":"VLOOKUP(DropDownList!$B$47,CntyQuery!$A$170:$FT$183,AV$1)","v":648.54999999999995},{"$f":"VLOOKUP(DropDownList!$B$47,CntyQuery!$A$170:$FT$183,AW$1)","v":818},{"$f":"VLOOKUP(DropDownList!$B$47,CntyQuery!$A$170:$FT$183,AX$1)","v":611.32000000000005},{"$f":"VLOOKUP(DropDownList!$B$47,CntyQuery!$A$170:$FT$183,AY$1)","v":11702},{"$f":"VLOOKUP(DropDownList!$B$47,CntyQuery!$A$170:$FT$183,AZ$1)","v":10330},{"$f":"VLOOKUP(DropDownList!$B$47,CntyQuery!$A$170:$FT$183,BA$1)","v":1853},{"$f":"VLOOKUP(DropDownList!$B$47,CntyQuery!$A$170:$FT$183,BB$1)","v":8476},{"$f":"VLOOKUP(DropDownList!$B$47,CntyQuery!$A$170:$FT$183,BC$1)","v":670.68},{"$f":"VLOOKUP(DropDownList!$B$47,CntyQuery!$A$170:$FT$183,BD$1)","v":667.45},{"$f":"VLOOKUP(DropDownList!$B$47,CntyQuery!$A$170:$FT$183,BE$1)","v":846.88},{"$f":"VLOOKUP(DropDownList!$B$47,CntyQuery!$A$170:$FT$183,BF$1)","v":628.21},{"$f":"VLOOKUP(DropDownList!$B$47,CntyQuery!$A$170:$FT$183,BG$1)","v":11760},{"$f":"VLOOKUP(DropDownList!$B$47,CntyQuery!$A$170:$FT$183,BH$1)","v":10354},{"$f":"VLOOKUP(DropDownList!$B$47,CntyQuery!$A$170:$FT$183,BI$1)","v":1844},{"$f":"VLOOKUP(DropDownList!$B$47,CntyQuery!$A$170:$FT$183,BJ$1)","v":8511},{"$f":"VLOOKUP(DropDownList!$B$47,CntyQuery!$A$170:$FT$183,BK$1)","v":690.71},{"$f":"VLOOKUP(DropDownList!$B$47,CntyQuery!$A$170:$FT$183,BL$1)","v":688.41},{"$f":"VLOOKUP(DropDownList!$B$47,CntyQuery!$A$170:$FT$183,BM$1)","v":856},{"$f":"VLOOKUP(DropDownList!$B$47,CntyQuery!$A$170:$FT$183,BN$1)","v":652.11},{"$f":"VLOOKUP(DropDownList!$B$47,CntyQuery!$A$170:$FT$183,BO$1)","v":11201},{"$f":"VLOOKUP(DropDownList!$B$47,CntyQuery!$A$170:$FT$183,BP$1)","v":9784},{"$f":"VLOOKUP(DropDownList!$B$47,CntyQuery!$A$170:$FT$183,BQ$1)","v":1613},{"$f":"VLOOKUP(DropDownList!$B$47,CntyQuery!$A$170:$FT$183,BR$1)","v":8171},{"$f":"VLOOKUP(DropDownList!$B$47,CntyQuery!$A$170:$FT$183,BS$1)","v":686},{"$f":"VLOOKUP(DropDownList!$B$47,CntyQuery!$A$170:$FT$183,BT$1)","v":680.33},{"$f":"VLOOKUP(DropDownList!$B$47,CntyQuery!$A$170:$FT$183,BU$1)","v":907.22},{"$f":"VLOOKUP(DropDownList!$B$47,CntyQuery!$A$170:$FT$183,BV$1)","v":635.54},{"$f":"VLOOKUP(DropDownList!$B$47,CntyQuery!$A$170:$FT$183,BW$1)","v":11079},{"$f":"VLOOKUP(DropDownList!$B$47,CntyQuery!$A$170:$FT$183,BX$1)","v":9599},{"$f":"VLOOKUP(DropDownList!$B$47,CntyQuery!$A$170:$FT$183,BY$1)","v":1671},{"$f":"VLOOKUP(DropDownList!$B$47,CntyQuery!$A$170:$FT$183,BZ$1)","v":7928},{"$f":"VLOOKUP(DropDownList!$B$47,CntyQuery!$A$170:$FT$183,CA$1)","v":706.57},{"$f":"VLOOKUP(DropDownList!$B$47,CntyQuery!$A$170:$FT$183,CB$1)","v":705.31},{"$f":"VLOOKUP(DropDownList!$B$47,CntyQuery!$A$170:$FT$183,CC$1)","v":977.22},{"$f":"VLOOKUP(DropDownList!$B$47,CntyQuery!$A$170:$FT$183,CD$1)","v":647.99},{"$f":"VLOOKUP(DropDownList!$B$47,CntyQuery!$A$170:$FT$183,CE$1)","v":10780},{"$f":"VLOOKUP(DropDownList!$B$47,CntyQuery!$A$170:$FT$183,CF$1)","v":9364},{"$f":"VLOOKUP(DropDownList!$B$47,CntyQuery!$A$170:$FT$183,CG$1)","v":1614},{"$f":"VLOOKUP(DropDownList!$B$47,CntyQuery!$A$170:$FT$183,CH$1)","v":7750},{"$f":"VLOOKUP(DropDownList!$B$47,CntyQuery!$A$170:$FT$183,CI$1)","v":734.07},{"$f":"VLOOKUP(DropDownList!$B$47,CntyQuery!$A$170:$FT$183,CJ$1)","v":733.64},{"$f":"VLOOKUP(DropDownList!$B$47,CntyQuery!$A$170:$FT$183,CK$1)","v":1062.29},{"$f":"VLOOKUP(DropDownList!$B$47,CntyQuery!$A$170:$FT$183,CL$1)","v":665.17},{"$f":"VLOOKUP(DropDownList!$B$47,CntyQuery!$A$170:$FT$183,CM$1)","v":10732},{"$f":"VLOOKUP(DropDownList!$B$47,CntyQuery!$A$170:$FT$183,CN$1)","v":9318},{"$f":"VLOOKUP(DropDownList!$B$47,CntyQuery!$A$170:$FT$183,CO$1)","v":1559},{"$f":"VLOOKUP(DropDownList!$B$47,CntyQuery!$A$170:$FT$183,CP$1)","v":7760},{"$f":"VLOOKUP(DropDownList!$B$47,CntyQuery!$A$170:$FT$183,CQ$1)","v":750.73},{"$f":"VLOOKUP(DropDownList!$B$47,CntyQuery!$A$170:$FT$183,CR$1)","v":752.87},{"$f":"VLOOKUP(DropDownList!$B$47,CntyQuery!$A$170:$FT$183,CS$1)","v":1163.8599999999999},{"$f":"VLOOKUP(DropDownList!$B$47,CntyQuery!$A$170:$FT$183,CT$1)","v":670.33},{"$f":"VLOOKUP(DropDownList!$B$47,CntyQuery!$A$170:$FT$183,CU$1)","v":11035},{"$f":"VLOOKUP(DropDownList!$B$47,CntyQuery!$A$170:$FT$183,CV$1)","v":9644},{"$f":"VLOOKUP(DropDownList!$B$47,CntyQuery!$A$170:$FT$183,CW$1)","v":1759},{"$f":"VLOOKUP(DropDownList!$B$47,CntyQuery!$A$170:$FT$183,CX$1)","v":7885},{"$f":"VLOOKUP(DropDownList!$B$47,CntyQuery!$A$170:$FT$183,CY$1)","v":767.61},{"$f":"VLOOKUP(DropDownList!$B$47,CntyQuery!$A$170:$FT$183,CZ$1)","v":766.34},{"$f":"VLOOKUP(DropDownList!$B$47,CntyQuery!$A$170:$FT$183,DA$1)","v":1198.75},{"$f":"VLOOKUP(DropDownList!$B$47,CntyQuery!$A$170:$FT$183,DB$1)","v":669.88},{"$f":"VLOOKUP(DropDownList!$B$47,CntyQuery!$A$170:$FT$183,DC$1)","v":11249},{"$f":"VLOOKUP(DropDownList!$B$47,CntyQuery!$A$170:$FT$183,DD$1)","v":9811},{"$f":"VLOOKUP(DropDownList!$B$47,CntyQuery!$A$170:$FT$183,DE$1)","v":1897},{"$f":"VLOOKUP(DropDownList!$B$47,CntyQuery!$A$170:$FT$183,DF$1)","v":7914},{"$f":"VLOOKUP(DropDownList!$B$47,CntyQuery!$A$170:$FT$183,DG$1)","v":791.7},{"$f":"VLOOKUP(DropDownList!$B$47,CntyQuery!$A$170:$FT$183,DH$1)","v":794.8},{"$f":"VLOOKUP(DropDownList!$B$47,CntyQuery!$A$170:$FT$183,DI$1)","v":1206.82},{"$f":"VLOOKUP(DropDownList!$B$47,CntyQuery!$A$170:$FT$183,DJ$1)","v":696.03},{"$f":"VLOOKUP(DropDownList!$B$47,CntyQuery!$A$170:$FT$183,DK$1)","v":11523},{"$f":"VLOOKUP(DropDownList!$B$47,CntyQuery!$A$170:$FT$183,DL$1)","v":10100},{"$f":"VLOOKUP(DropDownList!$B$47,CntyQuery!$A$170:$FT$183,DM$1)","v":1939},{"$f":"VLOOKUP(DropDownList!$B$47,CntyQuery!$A$170:$FT$183,DN$1)","v":8161},{"$f":"VLOOKUP(DropDownList!$B$47,CntyQuery!$A$170:$FT$183,DO$1)","v":843.18},{"$f":"VLOOKUP(DropDownList!$B$47,CntyQuery!$A$170:$FT$183,DP$1)","v":849.52},{"$f":"VLOOKUP(DropDownList!$B$47,CntyQuery!$A$170:$FT$183,DQ$1)","v":1305.07},{"$f":"VLOOKUP(DropDownList!$B$47,CntyQuery!$A$170:$FT$183,DR$1)","v":741.27},{"$f":"VLOOKUP(DropDownList!$B$47,CntyQuery!$A$170:$FT$183,DS$1)","v":11928},{"$f":"VLOOKUP(DropDownList!$B$47,CntyQuery!$A$170:$FT$183,DT$1)","v":10514},{"$f":"VLOOKUP(DropDownList!$B$47,CntyQuery!$A$170:$FT$183,DU$1)","v":2072},{"$f":"VLOOKUP(DropDownList!$B$47,CntyQuery!$A$170:$FT$183,DV$1)","v":8442},{"$f":"VLOOKUP(DropDownList!$B$47,CntyQuery!$A$170:$FT$183,DW$1)","v":845.47},{"$f":"VLOOKUP(DropDownList!$B$47,CntyQuery!$A$170:$FT$183,DX$1)","v":851.07},{"$f":"VLOOKUP(DropDownList!$B$47,CntyQuery!$A$170:$FT$183,DY$1)","v":1296.42},{"$f":"VLOOKUP(DropDownList!$B$47,CntyQuery!$A$170:$FT$183,DZ$1)","v":741.78},{"$f":"VLOOKUP(DropDownList!$B$47,CntyQuery!$A$170:$FT$183,EA$1)","v":12108},{"$f":"VLOOKUP(DropDownList!$B$47,CntyQuery!$A$170:$FT$183,EB$1)","v":10693},{"$f":"VLOOKUP(DropDownList!$B$47,CntyQuery!$A$170:$FT$183,EC$1)","v":2170},{"$f":"VLOOKUP(DropDownList!$B$47,CntyQuery!$A$170:$FT$183,ED$1)","v":8522},{"$f":"VLOOKUP(DropDownList!$B$47,CntyQuery!$A$170:$FT$183,EE$1)","v":877.87},{"$f":"VLOOKUP(DropDownList!$B$47,CntyQuery!$A$170:$FT$183,EF$1)","v":884.76},{"$f":"VLOOKUP(DropDownList!$B$47,CntyQuery!$A$170:$FT$183,EG$1)","v":1388.36},{"$f":"VLOOKUP(DropDownList!$B$47,CntyQuery!$A$170:$FT$183,EH$1)","v":756.52},{"$f":"VLOOKUP(DropDownList!$B$47,CntyQuery!$A$170:$FT$183,EI$1)","v":12359},{"$f":"VLOOKUP(DropDownList!$B$47,CntyQuery!$A$170:$FT$183,EJ$1)","v":10941},{"$f":"VLOOKUP(DropDownList!$B$47,CntyQuery!$A$170:$FT$183,EK$1)","v":2260},{"$f":"VLOOKUP(DropDownList!$B$47,CntyQuery!$A$170:$FT$183,EL$1)","v":8681},{"$f":"VLOOKUP(DropDownList!$B$47,CntyQuery!$A$170:$FT$183,EM$1)","v":889.69},{"$f":"VLOOKUP(DropDownList!$B$47,CntyQuery!$A$170:$FT$183,EN$1)","v":895.48},{"$f":"VLOOKUP(DropDownList!$B$47,CntyQuery!$A$170:$FT$183,EO$1)","v":1302.67},{"$f":"VLOOKUP(DropDownList!$B$47,CntyQuery!$A$170:$FT$183,EP$1)","v":789.49},{"$f":"VLOOKUP(DropDownList!$B$47,CntyQuery!$A$170:$FT$183,EQ$1)","v":12483},{"$f":"VLOOKUP(DropDownList!$B$47,CntyQuery!$A$170:$FT$183,ER$1)","v":11067},{"$f":"VLOOKUP(DropDownList!$B$47,CntyQuery!$A$170:$FT$183,ES$1)","v":1415},{"$f":"VLOOKUP(DropDownList!$B$47,CntyQuery!$A$170:$FT$183,ET$1)","v":2370},{"$f":"VLOOKUP(DropDownList!$B$47,CntyQuery!$A$170:$FT$183,EU$1)","v":8697},{"$f":"VLOOKUP(DropDownList!$B$47,CntyQuery!$A$170:$FT$183,EV$1)","v":901.03},{"$f":"VLOOKUP(DropDownList!$B$47,CntyQuery!$A$170:$FT$183,EW$1)","v":906.17},{"$f":"VLOOKUP(DropDownList!$B$47,CntyQuery!$A$170:$FT$183,EX$1)","v":860.8},{"$f":"VLOOKUP(DropDownList!$B$47,CntyQuery!$A$170:$FT$183,EY$1)","v":1307.21},{"$f":"VLOOKUP(DropDownList!$B$47,CntyQuery!$A$170:$FT$183,EZ$1)","v":796.89},{"$f":"VLOOKUP(DropDownList!$B$47,CntyQuery!$A$170:$FT$183,FA$1)","v":11425}]
[]
[]
["Labor Force and Unemployment Rate","Query Name: DPQryUnempByCnty"]
["PlaceName","LaborForce1990","LaborForce1991","LaborForce1992","LaborForce1993","LaborForce1994","LaborForce1995","LaborForce1996","LaborForce1997","LaborForce1998","LaborForce1999","LaborForce2000","LaborForce2001","LaborForce2002","LaborForce2003","NumbEmployed1990","NumbEmployed1991","NumbEmployed1992","NumbEmployed1993","NumbEmployed1994","NumbEmployed1995","NumbEmployed1996","NumbEmployed1997","NumbEmployed1998","NumbEmployed1999","NumbEmployed2000","NumbEmployed2001","NumbEmployed2002","NumbEmployed2003","UnempRate1990","UnempRate1991","UnempRate1992","UnempRate1993","UnempRate1994","UnempRate1995","UnempRate1996","UnempRate1997","UnempRate1998","UnempRate1999","UnempRate2000","UnempRate2001","UnempRate2002","UnempRate2003","NumbUnEmp1990","NumbUnEmp1991","NumbUnEmp1992","NumbUnEmp1993","NumbUnEmp1994","NumbUnEmp1995","NumbUnEmp1996","NumbUnEmp1997","NumbUnEmp1998","NumbUnEmp1999","NumbUnEmp2000","NumbUnEmp2001","NumbUnEmp2002","NumbUnEmp2003","LaborForce2004","NumbEmployed2004","UnempRate2004","NumbUnEmp2004","LaborForce2005","NumbEmployed2005","NumbUnEmp2005","UnempRate2005","LaborForce2006","NumbEmployed2006","NumbUnEmp2006","UnempRate2006","LaborForce2007","NumbEmployed2007","NumbUnEmp2007","UnempRate2007","LaborForce2008","NumbEmployed2008","NumbUnEmp2008","UnempRate2008","LaborForce2009","NumbEmployed2009","NumbUnEmp2009","UnempRate2009","LaborForce2010","NumbEmployed2010","NumbUnEmp2010","UnempRate2010","LaborForce2011","NumbEmployed2011","NumbUnEmp2011","UnempRate2011","LaborForce2012","NumbEmployed2012","NumbUnEmp2012","UnempRate2012","LaborForce2013","NumbEmployed2013","NumbUnEmp2013","UnempRate2013","LaborForce2014","NumbEmployed2014","NumbUnEmp2014","UnempRate2014","LaborForce2015","NumbEmployed2015","NumbUnEmp2015","UnempRate2015","LaborForce2016","NumbEmployed2016","NumbUnEmp2016","UnempRate2016","LaborForce2017","NumbEmployed2017","NumbUnEmp2017","UnempRate2017","LaborForce2018","NumbEmployed2018","NumbUnEmp2018","UnempRate2018","LaborForce2019","NumbEmployed2019","NumbUnEmp2019","UnempRate2019","Place-TownIDNumber"]
[{"$f":"VLOOKUP(DropDownList!$B$47,CntyQuery!$A$220:$EF$229,A$1)","v":"Rochester"},{"$f":"VLOOKUP(DropDownList!$B$47,CntyQuery!$A$220:$EF$229,B$1)","v":14242},{"$f":"VLOOKUP(DropDownList!$B$47,CntyQuery!$A$220:$EF$229,C$1)","v":14280},{"$f":"VLOOKUP(DropDownList!$B$47,CntyQuery!$A$220:$EF$229,D$1)","v":14153},{"$f":"VLOOKUP(DropDownList!$B$47,CntyQuery!$A$220:$EF$229,E$1)","v":14123},{"$f":"VLOOKUP(DropDownList!$B$47,CntyQuery!$A$220:$EF$229,F$1)","v":13917},{"$f":"VLOOKUP(DropDownList!$B$47,CntyQuery!$A$220:$EF$229,G$1)","v":14056},{"$f":"VLOOKUP(DropDownList!$B$47,CntyQuery!$A$220:$EF$229,H$1)","v":14172},{"$f":"VLOOKUP(DropDownList!$B$47,CntyQuery!$A$220:$EF$229,I$1)","v":14407},{"$f":"VLOOKUP(DropDownList!$B$47,CntyQuery!$A$220:$EF$229,J$1)","v":14297},{"$f":"VLOOKUP(DropDownList!$B$47,CntyQuery!$A$220:$EF$229,K$1)","v":14288},{"$f":"VLOOKUP(DropDownList!$B$47,CntyQuery!$A$220:$EF$229,L$1)","v":15280},{"$f":"VLOOKUP(DropDownList!$B$47,CntyQuery!$A$220:$EF$229,M$1)","v":15450},{"$f":"VLOOKUP(DropDownList!$B$47,CntyQuery!$A$220:$EF$229,N$1)","v":15670},{"$f":"VLOOKUP(DropDownList!$B$47,CntyQuery!$A$220:$EF$229,O$1)","v":15900},{"$f":"VLOOKUP(DropDownList!$B$47,CntyQuery!$A$220:$EF$229,P$1)","v":13158},{"$f":"VLOOKUP(DropDownList!$B$47,CntyQuery!$A$220:$EF$229,Q$1)","v":12952},{"$f":"VLOOKUP(DropDownList!$B$47,CntyQuery!$A$220:$EF$229,R$1)","v":12771},{"$f":"VLOOKUP(DropDownList!$B$47,CntyQuery!$A$220:$EF$229,S$1)","v":13032},{"$f":"VLOOKUP(DropDownList!$B$47,CntyQuery!$A$220:$EF$229,T$1)","v":13177},{"$f":"VLOOKUP(DropDownList!$B$47,CntyQuery!$A$220:$EF$229,U$1)","v":13387},{"$f":"VLOOKUP(DropDownList!$B$47,CntyQuery!$A$220:$EF$229,V$1)","v":13529},{"$f":"VLOOKUP(DropDownList!$B$47,CntyQuery!$A$220:$EF$229,W$1)","v":13825},{"$f":"VLOOKUP(DropDownList!$B$47,CntyQuery!$A$220:$EF$229,X$1)","v":13799},{"$f":"VLOOKUP(DropDownList!$B$47,CntyQuery!$A$220:$EF$229,Y$1)","v":13892},{"$f":"VLOOKUP(DropDownList!$B$47,CntyQuery!$A$220:$EF$229,Z$1)","v":14820},{"$f":"VLOOKUP(DropDownList!$B$47,CntyQuery!$A$220:$EF$229,AA$1)","v":14880},{"$f":"VLOOKUP(DropDownList!$B$47,CntyQuery!$A$220:$EF$229,AB$1)","v":14870},{"$f":"VLOOKUP(DropDownList!$B$47,CntyQuery!$A$220:$EF$229,AC$1)","v":15210},{"$f":"VLOOKUP(DropDownList!$B$47,CntyQuery!$A$220:$EF$229,AD$1)","v":7.6000000000000005},{"$f":"VLOOKUP(DropDownList!$B$47,CntyQuery!$A$220:$EF$229,AE$1)","v":9.3000000000000007},{"$f":"VLOOKUP(DropDownList!$B$47,CntyQuery!$A$220:$EF$229,AF$1)","v":9.8000000000000007},{"$f":"VLOOKUP(DropDownList!$B$47,CntyQuery!$A$220:$EF$229,AG$1)","v":7.7},{"$f":"VLOOKUP(DropDownList!$B$47,CntyQuery!$A$220:$EF$229,AH$1)","v":5.3},{"$f":"VLOOKUP(DropDownList!$B$47,CntyQuery!$A$220:$EF$229,AI$1)","v":4.8},{"$f":"VLOOKUP(DropDownList!$B$47,CntyQuery!$A$220:$EF$229,AJ$1)","v":4.5},{"$f":"VLOOKUP(DropDownList!$B$47,CntyQuery!$A$220:$EF$229,AK$1)","v":4},{"$f":"VLOOKUP(DropDownList!$B$47,CntyQuery!$A$220:$EF$229,AL$1)","v":3.5},{"$f":"VLOOKUP(DropDownList!$B$47,CntyQuery!$A$220:$EF$229,AM$1)","v":2.8000000000000003},{"$f":"VLOOKUP(DropDownList!$B$47,CntyQuery!$A$220:$EF$229,AN$1)","v":3},{"$f":"VLOOKUP(DropDownList!$B$47,CntyQuery!$A$220:$EF$229,AO$1)","v":3.7000000000000006},{"$f":"VLOOKUP(DropDownList!$B$47,CntyQuery!$A$220:$EF$229,AP$1)","v":5.0999999999999996},{"$f":"VLOOKUP(DropDownList!$B$47,CntyQuery!$A$220:$EF$229,AQ$1)","v":4.3},{"$f":"VLOOKUP(DropDownList!$B$47,CntyQuery!$A$220:$EF$229,AR$1)","v":1084},{"$f":"VLOOKUP(DropDownList!$B$47,CntyQuery!$A$220:$EF$229,AS$1)","v":1328},{"$f":"VLOOKUP(DropDownList!$B$47,CntyQuery!$A$220:$EF$229,AT$1)","v":1382},{"$f":"VLOOKUP(DropDownList!$B$47,CntyQuery!$A$220:$EF$229,AU$1)","v":1091},{"$f":"VLOOKUP(DropDownList!$B$47,CntyQuery!$A$220:$EF$229,AV$1)","v":740},{"$f":"VLOOKUP(DropDownList!$B$47,CntyQuery!$A$220:$EF$229,AW$1)","v":669},{"$f":"VLOOKUP(DropDownList!$B$47,CntyQuery!$A$220:$EF$229,AX$1)","v":643},{"$f":"VLOOKUP(DropDownList!$B$47,CntyQuery!$A$220:$EF$229,AY$1)","v":582},{"$f":"VLOOKUP(DropDownList!$B$47,CntyQuery!$A$220:$EF$229,AZ$1)","v":498},{"$f":"VLOOKUP(DropDownList!$B$47,CntyQuery!$A$220:$EF$229,BA$1)","v":396},{"$f":"VLOOKUP(DropDownList!$B$47,CntyQuery!$A$220:$EF$229,BB$1)","v":460},{"$f":"VLOOKUP(DropDownList!$B$47,CntyQuery!$A$220:$EF$229,BC$1)","v":570},{"$f":"VLOOKUP(DropDownList!$B$47,CntyQuery!$A$220:$EF$229,BD$1)","v":800},{"$f":"VLOOKUP(DropDownList!$B$47,CntyQuery!$A$220:$EF$229,BE$1)","v":690},{"$f":"VLOOKUP(DropDownList!$B$47,CntyQuery!$A$220:$EF$229,BF$1)","v":16150},{"$f":"VLOOKUP(DropDownList!$B$47,CntyQuery!$A$220:$EF$229,BG$1)","v":15550},{"$f":"VLOOKUP(DropDownList!$B$47,CntyQuery!$A$220:$EF$229,BH$1)","v":3.7000000000000006},{"$f":"VLOOKUP(DropDownList!$B$47,CntyQuery!$A$220:$EF$229,BI$1)","v":600},{"$f":"VLOOKUP(DropDownList!$B$47,CntyQuery!$A$220:$EF$229,BJ$1)","v":16360},{"$f":"VLOOKUP(DropDownList!$B$47,CntyQuery!$A$220:$EF$229,BK$1)","v":15740},{"$f":"VLOOKUP(DropDownList!$B$47,CntyQuery!$A$220:$EF$229,BL$1)","v":620},{"$f":"VLOOKUP(DropDownList!$B$47,CntyQuery!$A$220:$EF$229,BM$1)","v":3.8},{"$f":"VLOOKUP(DropDownList!$B$47,CntyQuery!$A$220:$EF$229,BN$1)","v":16340},{"$f":"VLOOKUP(DropDownList!$B$47,CntyQuery!$A$220:$EF$229,BO$1)","v":15790},{"$f":"VLOOKUP(DropDownList!$B$47,CntyQuery!$A$220:$EF$229,BP$1)","v":550},{"$f":"VLOOKUP(DropDownList!$B$47,CntyQuery!$A$220:$EF$229,BQ$1)","v":3.3000000000000003},{"$f":"VLOOKUP(DropDownList!$B$47,CntyQuery!$A$220:$EF$229,BR$1)","v":16700},{"$f":"VLOOKUP(DropDownList!$B$47,CntyQuery!$A$220:$EF$229,BS$1)","v":16100},{"$f":"VLOOKUP(DropDownList!$B$47,CntyQuery!$A$220:$EF$229,BT$1)","v":600},{"$f":"VLOOKUP(DropDownList!$B$47,CntyQuery!$A$220:$EF$229,BU$1)","v":3.6000000000000005},{"$f":"VLOOKUP(DropDownList!$B$47,CntyQuery!$A$220:$EF$229,BV$1)","v":17120},{"$f":"VLOOKUP(DropDownList!$B$47,CntyQuery!$A$220:$EF$229,BW$1)","v":16410},{"$f":"VLOOKUP(DropDownList!$B$47,CntyQuery!$A$220:$EF$229,BX$1)","v":710},{"$f":"VLOOKUP(DropDownList!$B$47,CntyQuery!$A$220:$EF$229,BY$1)","v":4.0999999999999996},{"$f":"VLOOKUP(DropDownList!$B$47,CntyQuery!$A$220:$EF$229,BZ$1)","v":17210},{"$f":"VLOOKUP(DropDownList!$B$47,CntyQuery!$A$220:$EF$229,CA$1)","v":15950},{"$f":"VLOOKUP(DropDownList!$B$47,CntyQuery!$A$220:$EF$229,CB$1)","v":1260},{"$f":"VLOOKUP(DropDownList!$B$47,CntyQuery!$A$220:$EF$229,CC$1)","v":7.3},{"$f":"VLOOKUP(DropDownList!$B$47,CntyQuery!$A$220:$EF$229,CD$1)","v":16940},{"$f":"VLOOKUP(DropDownList!$B$47,CntyQuery!$A$220:$EF$229,CE$1)","v":15815},{"$f":"VLOOKUP(DropDownList!$B$47,CntyQuery!$A$220:$EF$229,CF$1)","v":1125},{"$f":"VLOOKUP(DropDownList!$B$47,CntyQuery!$A$220:$EF$229,CG$1)","v":6.6000000000000005},{"$f":"VLOOKUP(DropDownList!$B$47,CntyQuery!$A$220:$EF$229,CH$1)","v":16868},{"$f":"VLOOKUP(DropDownList!$B$47,CntyQuery!$A$220:$EF$229,CI$1)","v":15894},{"$f":"VLOOKUP(DropDownList!$B$47,CntyQuery!$A$220:$EF$229,CJ$1)","v":974},{"$f":"VLOOKUP(DropDownList!$B$47,CntyQuery!$A$220:$EF$229,CK$1)","v":5.8},{"$f":"VLOOKUP(DropDownList!$B$47,CntyQuery!$A$220:$EF$229,CL$1)","v":16840},{"$f":"VLOOKUP(DropDownList!$B$47,CntyQuery!$A$220:$EF$229,CM$1)","v":15863},{"$f":"VLOOKUP(DropDownList!$B$47,CntyQuery!$A$220:$EF$229,CN$1)","v":977},{"$f":"VLOOKUP(DropDownList!$B$47,CntyQuery!$A$220:$EF$229,CO$1)","v":5.8},{"$f":"VLOOKUP(DropDownList!$B$47,CntyQuery!$A$220:$EF$229,CP$1)","v":16849},{"$f":"VLOOKUP(DropDownList!$B$47,CntyQuery!$A$220:$EF$229,CQ$1)","v":15932},{"$f":"VLOOKUP(DropDownList!$B$47,CntyQuery!$A$220:$EF$229,CR$1)","v":917},{"$f":"VLOOKUP(DropDownList!$B$47,CntyQuery!$A$220:$EF$229,CS$1)","v":5.4},{"$f":"VLOOKUP(DropDownList!$B$47,CntyQuery!$A$220:$EF$229,CT$1)","v":16923},{"$f":"VLOOKUP(DropDownList!$B$47,CntyQuery!$A$220:$EF$229,CU$1)","v":16214},{"$f":"VLOOKUP(DropDownList!$B$47,CntyQuery!$A$220:$EF$229,CV$1)","v":709},{"$f":"VLOOKUP(DropDownList!$B$47,CntyQuery!$A$220:$EF$229,CW$1)","v":4.2},{"$f":"VLOOKUP(DropDownList!$B$47,CntyQuery!$A$220:$EF$229,CX$1)","v":16914},{"$f":"VLOOKUP(DropDownList!$B$47,CntyQuery!$A$220:$EF$229,CY$1)","v":16360},{"$f":"VLOOKUP(DropDownList!$B$47,CntyQuery!$A$220:$EF$229,CZ$1)","v":554},{"$f":"VLOOKUP(DropDownList!$B$47,CntyQuery!$A$220:$EF$229,DA$1)","v":3.3000000000000003},{"$f":"VLOOKUP(DropDownList!$B$47,CntyQuery!$A$220:$EF$229,DB$1)","v":17257},{"$f":"VLOOKUP(DropDownList!$B$47,CntyQuery!$A$220:$EF$229,DC$1)","v":16818},{"$f":"VLOOKUP(DropDownList!$B$47,CntyQuery!$A$220:$EF$229,DD$1)","v":439},{"$f":"VLOOKUP(DropDownList!$B$47,CntyQuery!$A$220:$EF$229,DE$1)","v":2.5},{"$f":"VLOOKUP(DropDownList!$B$47,CntyQuery!$A$220:$EF$229,DF$1)","v":17433},{"$f":"VLOOKUP(DropDownList!$B$47,CntyQuery!$A$220:$EF$229,DG$1)","v":17005},{"$f":"VLOOKUP(DropDownList!$B$47,CntyQuery!$A$220:$EF$229,DH$1)","v":428},{"$f":"VLOOKUP(DropDownList!$B$47,CntyQuery!$A$220:$EF$229,DI$1)","v":2.5},{"$f":"VLOOKUP(DropDownList!$B$47,CntyQuery!$A$220:$EF$229,DJ$1)","v":17920},{"$f":"VLOOKUP(DropDownList!$B$47,CntyQuery!$A$220:$EF$229,DK$1)","v":17480},{"$f":"VLOOKUP(DropDownList!$B$47,CntyQuery!$A$220:$EF$229,DL$1)","v":440},{"$f":"VLOOKUP(DropDownList!$B$47,CntyQuery!$A$220:$EF$229,DM$1)","v":2.4},{"$f":"VLOOKUP(DropDownList!$B$47,CntyQuery!$A$220:$EF$229,DN$1)","v":18140},{"$f":"VLOOKUP(DropDownList!$B$47,CntyQuery!$A$220:$EF$229,DO$1)","v":17700},{"$f":"VLOOKUP(DropDownList!$B$47,CntyQuery!$A$220:$EF$229,DP$1)","v":440},{"$f":"VLOOKUP(DropDownList!$B$47,CntyQuery!$A$220:$EF$229,DQ$1)","v":2.4},{"$f":"VLOOKUP(DropDownList!$B$47,CntyQuery!$A$220:$EF$229,DR$1)","v":17760}]
[]
[null,null,null,null,null,null,null,null,null,null,null,null,{"$f":"IF((CntyDataLink!$BL$25)=\"n\",NA(),IF(VALUE(CntyDataLink!$BL$25)=\"\",NA(),VALUE(CntyDataLink!$BL$25)))","v":688.41}]
["Census 2000   -           Query Name:  TownAllQuery3",2,{"$f":"B33+1","v":3},{"$f":"C33+1","v":4},5,6,7,8,9,10,11,12,13,14,15,16,17,18,19,20,21,22,23,24,25,26,27,28,29,30,31,32,33,34,35,36,37,38,39,40,41,42,43,44,45,46,47,48,49,50,51,52,53,54,55,56,57,58,59,60,61,62,63,64,65,66,67,{"$f":"BO33+1","v":68},69,70,71,72,73,74,75,76,77,78,79,80,81,82,83,84,85,86,87,88,89,90,91,92,93,94,95,96,97,98,99,100,101,102]
["NAME","COUNTY","LOGRECNO","COUSUB","TRACT","AREALAND","AREAWATR","POP100","HU100","2000Population","PopOfOneRace","PopWhite","PopBlack","PopAmIndian","PopAsian","PopHawaiian","PopOtherRace","Pop2orMoreRaces","PopHispanicLatino","PopNotHispanicLatino","PopMale","PopMale<15","PopMale15to24","PopMale25to34","PopMale35to44","PopMale45to54","PopMale55to64","PopMale65to74","PopMale75to84","PopMale85andOver","PopFemale","PopFemale<15","PopFemale15to24","PopFemale25to34","PopFemale35t44","PopFemale45to54","PopFemale55to64","PopFemale65to74","PopFemale75to84","PopFemale85andOver","Households2000","PopInHH","AvgHHSize","HHs1Person","HHs2orMorePerson","HHsFamily","HHMarriedCoupleFam","HHSingleParentFam","HHsNonFamily","Families","PopInFam","AvgFamSize","TotHsUnits","OccHsUnits","OwnerOccHU","RenterOccHU","VctHsUnits","VctHUForRent","VctHUForSale","VctHUSeasonal","PopInOccHU","PopInOwnOccHU","PopInRntOccHU","AvgHHSize2","AvgHHSizOwnOcc","AvgHHSizRntOcc","OwnOccWhtHsHldr","OwnOccBlkHsHldr","OwnOccAmIHsHldr","OwnOccAsnHsHldr","OwnOccPIsHsHldr","OwnOccORHsHldr","OwnOcc2RcHsHldr","RntOccWhtHsHldr","RntOccBlkHsHldr","RntOccAmIHsHldr","RntOccAsnHsHldr","RntOccPIsHsHldr","RntOccORHsHldr","RntOcc2RcHsHldr","OwnOccHH15to24","OwnOccHH25to34","OwnOccHH35to44","OwnOccHH45to54","OwnOccHH55to64","OwnOccHH65to74","OwnOccHH75to84","OwnOccHH85Over","RntOccHH15to24","RntOccHH25to34","RntOccHH35to44","RntOccHH45to54","RntOccHH55to64","RntOccHH65to74","RntOccHH75to84","RntOccHH85Over","P27TotalPop","P27PopInHseHlds","P27PopInGrpQtrs","Median Age Total","Median Age (Male)","Median Age (Female)"]
[{"$f":"VLOOKUP(DropDownList!$B$47,CntyQryCensus!$A$4:$CW$46,A$1)","v":"Rochester"},{"$f":"VLOOKUP(DropDownList!$B$47,CntyQryCensus!$A$4:$CW$46,B$1)","v":"017"},{"$f":"VLOOKUP(DropDownList!$B$47,CntyQryCensus!$A$4:$CW$46,C$1)","v":"0034907"},{"$f":"VLOOKUP(DropDownList!$B$47,CntyQryCensus!$A$4:$CW$46,D$1)","v":"65140"},{"$f":"VLOOKUP(DropDownList!$B$47,CntyQryCensus!$A$4:$CW$46,E$1)","v":""},{"$f":"VLOOKUP(DropDownList!$B$47,CntyQryCensus!$A$4:$CW$46,F$1)","v":"     116940933"},{"$f":"VLOOKUP(DropDownList!$B$47,CntyQryCensus!$A$4:$CW$46,G$1)","v":"       1625224"},{"$f":"VLOOKUP(DropDownList!$B$47,CntyQryCensus!$A$4:$CW$46,H$1)","v":28461},{"$f":"VLOOKUP(DropDownList!$B$47,CntyQryCensus!$A$4:$CW$46,I$1)","v":"    11836"},{"$f":"VLOOKUP(DropDownList!$B$47,CntyQryCensus!$A$4:$CW$46,J$1)","v":28461},{"$f":"VLOOKUP(DropDownList!$B$47,CntyQryCensus!$A$4:$CW$46,K$1)","v":28182},{"$f":"VLOOKUP(DropDownList!$B$47,CntyQryCensus!$A$4:$CW$46,L$1)","v":27640},{"$f":"VLOOKUP(DropDownList!$B$47,CntyQryCensus!$A$4:$CW$46,M$1)","v":149},{"$f":"VLOOKUP(DropDownList!$B$47,CntyQryCensus!$A$4:$CW$46,N$1)","v":62},{"$f":"VLOOKUP(DropDownList!$B$47,CntyQryCensus!$A$4:$CW$46,O$1)","v":248},{"$f":"VLOOKUP(DropDownList!$B$47,CntyQryCensus!$A$4:$CW$46,P$1)","v":9},{"$f":"VLOOKUP(DropDownList!$B$47,CntyQryCensus!$A$4:$CW$46,Q$1)","v":74},{"$f":"VLOOKUP(DropDownList!$B$47,CntyQryCensus!$A$4:$CW$46,R$1)","v":279},{"$f":"VLOOKUP(DropDownList!$B$47,CntyQryCensus!$A$4:$CW$46,S$1)","v":255},{"$f":"VLOOKUP(DropDownList!$B$47,CntyQryCensus!$A$4:$CW$46,T$1)","v":28206},{"$f":"VLOOKUP(DropDownList!$B$47,CntyQryCensus!$A$4:$CW$46,U$1)","v":13838},{"$f":"VLOOKUP(DropDownList!$B$47,CntyQryCensus!$A$4:$CW$46,V$1)","v":3142},{"$f":"VLOOKUP(DropDownList!$B$47,CntyQryCensus!$A$4:$CW$46,W$1)","v":1655},{"$f":"VLOOKUP(DropDownList!$B$47,CntyQryCensus!$A$4:$CW$46,X$1)","v":2002},{"$f":"VLOOKUP(DropDownList!$B$47,CntyQryCensus!$A$4:$CW$46,Y$1)","v":2422},{"$f":"VLOOKUP(DropDownList!$B$47,CntyQryCensus!$A$4:$CW$46,Z$1)","v":1852},{"$f":"VLOOKUP(DropDownList!$B$47,CntyQryCensus!$A$4:$CW$46,AA$1)","v":1202},{"$f":"VLOOKUP(DropDownList!$B$47,CntyQryCensus!$A$4:$CW$46,AB$1)","v":955},{"$f":"VLOOKUP(DropDownList!$B$47,CntyQryCensus!$A$4:$CW$46,AC$1)","v":499},{"$f":"VLOOKUP(DropDownList!$B$47,CntyQryCensus!$A$4:$CW$46,AD$1)","v":109},{"$f":"VLOOKUP(DropDownList!$B$47,CntyQryCensus!$A$4:$CW$46,AE$1)","v":14623},{"$f":"VLOOKUP(DropDownList!$B$47,CntyQryCensus!$A$4:$CW$46,AF$1)","v":2847},{"$f":"VLOOKUP(DropDownList!$B$47,CntyQryCensus!$A$4:$CW$46,AG$1)","v":1731},{"$f":"VLOOKUP(DropDownList!$B$47,CntyQryCensus!$A$4:$CW$46,AH$1)","v":2031},{"$f":"VLOOKUP(DropDownList!$B$47,CntyQryCensus!$A$4:$CW$46,AI$1)","v":2519},{"$f":"VLOOKUP(DropDownList!$B$47,CntyQryCensus!$A$4:$CW$46,AJ$1)","v":1976},{"$f":"VLOOKUP(DropDownList!$B$47,CntyQryCensus!$A$4:$CW$46,AK$1)","v":1248},{"$f":"VLOOKUP(DropDownList!$B$47,CntyQryCensus!$A$4:$CW$46,AL$1)","v":1116},{"$f":"VLOOKUP(DropDownList!$B$47,CntyQryCensus!$A$4:$CW$46,AM$1)","v":843},{"$f":"VLOOKUP(DropDownList!$B$47,CntyQryCensus!$A$4:$CW$46,AN$1)","v":312},{"$f":"VLOOKUP(DropDownList!$B$47,CntyQryCensus!$A$4:$CW$46,AO$1)","v":11434},{"$f":"VLOOKUP(DropDownList!$B$47,CntyQryCensus!$A$4:$CW$46,AP$1)","v":28168},{"$f":"VLOOKUP(DropDownList!$B$47,CntyQryCensus!$A$4:$CW$46,AQ$1)","v":2.46},{"$f":"VLOOKUP(DropDownList!$B$47,CntyQryCensus!$A$4:$CW$46,AR$1)","v":2936},{"$f":"VLOOKUP(DropDownList!$B$47,CntyQryCensus!$A$4:$CW$46,AS$1)","v":8498},{"$f":"VLOOKUP(DropDownList!$B$47,CntyQryCensus!$A$4:$CW$46,AT$1)","v":7648},{"$f":"VLOOKUP(DropDownList!$B$47,CntyQryCensus!$A$4:$CW$46,AU$1)","v":5819},{"$f":"VLOOKUP(DropDownList!$B$47,CntyQryCensus!$A$4:$CW$46,AV$1)","v":1829},{"$f":"VLOOKUP(DropDownList!$B$47,CntyQryCensus!$A$4:$CW$46,AW$1)","v":850},{"$f":"VLOOKUP(DropDownList!$B$47,CntyQryCensus!$A$4:$CW$46,AX$1)","v":7648},{"$f":"VLOOKUP(DropDownList!$B$47,CntyQryCensus!$A$4:$CW$46,AY$1)","v":22584},{"$f":"VLOOKUP(DropDownList!$B$47,CntyQryCensus!$A$4:$CW$46,AZ$1)","v":2.95},{"$f":"VLOOKUP(DropDownList!$B$47,CntyQryCensus!$A$4:$CW$46,BA$1)","v":11836},{"$f":"VLOOKUP(DropDownList!$B$47,CntyQryCensus!$A$4:$CW$46,BB$1)","v":11434},{"$f":"VLOOKUP(DropDownList!$B$47,CntyQryCensus!$A$4:$CW$46,BC$1)","v":7643},{"$f":"VLOOKUP(DropDownList!$B$47,CntyQryCensus!$A$4:$CW$46,BD$1)","v":3791},{"$f":"VLOOKUP(DropDownList!$B$47,CntyQryCensus!$A$4:$CW$46,BE$1)","v":402},{"$f":"VLOOKUP(DropDownList!$B$47,CntyQryCensus!$A$4:$CW$46,BF$1)","v":110},{"$f":"VLOOKUP(DropDownList!$B$47,CntyQryCensus!$A$4:$CW$46,BG$1)","v":68},{"$f":"VLOOKUP(DropDownList!$B$47,CntyQryCensus!$A$4:$CW$46,BH$1)","v":77},{"$f":"VLOOKUP(DropDownList!$B$47,CntyQryCensus!$A$4:$CW$46,BI$1)","v":28168},{"$f":"VLOOKUP(DropDownList!$B$47,CntyQryCensus!$A$4:$CW$46,BJ$1)","v":19590},{"$f":"VLOOKUP(DropDownList!$B$47,CntyQryCensus!$A$4:$CW$46,BK$1)","v":8578},{"$f":"VLOOKUP(DropDownList!$B$47,CntyQryCensus!$A$4:$CW$46,BL$1)","v":2.46},{"$f":"VLOOKUP(DropDownList!$B$47,CntyQryCensus!$A$4:$CW$46,BM$1)","v":2.56},{"$f":"VLOOKUP(DropDownList!$B$47,CntyQryCensus!$A$4:$CW$46,BN$1)","v":2.2599999999999998},{"$f":"VLOOKUP(DropDownList!$B$47,CntyQryCensus!$A$4:$CW$46,BO$1)","v":7538},{"$f":"VLOOKUP(DropDownList!$B$47,CntyQryCensus!$A$4:$CW$46,BP$1)","v":20},{"$f":"VLOOKUP(DropDownList!$B$47,CntyQryCensus!$A$4:$CW$46,BQ$1)","v":15},{"$f":"VLOOKUP(DropDownList!$B$47,CntyQryCensus!$A$4:$CW$46,BR$1)","v":29},{"$f":"VLOOKUP(DropDownList!$B$47,CntyQryCensus!$A$4:$CW$46,BS$1)","v":1},{"$f":"VLOOKUP(DropDownList!$B$47,CntyQryCensus!$A$4:$CW$46,BT$1)","v":8},{"$f":"VLOOKUP(DropDownList!$B$47,CntyQryCensus!$A$4:$CW$46,BU$1)","v":32},{"$f":"VLOOKUP(DropDownList!$B$47,CntyQryCensus!$A$4:$CW$46,BV$1)","v":3647},{"$f":"VLOOKUP(DropDownList!$B$47,CntyQryCensus!$A$4:$CW$46,BW$1)","v":35},{"$f":"VLOOKUP(DropDownList!$B$47,CntyQryCensus!$A$4:$CW$46,BX$1)","v":15},{"$f":"VLOOKUP(DropDownList!$B$47,CntyQryCensus!$A$4:$CW$46,BY$1)","v":42},{"$f":"VLOOKUP(DropDownList!$B$47,CntyQryCensus!$A$4:$CW$46,BZ$1)","v":0},{"$f":"VLOOKUP(DropDownList!$B$47,CntyQryCensus!$A$4:$CW$46,CA$1)","v":13},{"$f":"VLOOKUP(DropDownList!$B$47,CntyQryCensus!$A$4:$CW$46,CB$1)","v":39},{"$f":"VLOOKUP(DropDownList!$B$47,CntyQryCensus!$A$4:$CW$46,CC$1)","v":127},{"$f":"VLOOKUP(DropDownList!$B$47,CntyQryCensus!$A$4:$CW$46,CD$1)","v":986},{"$f":"VLOOKUP(DropDownList!$B$47,CntyQryCensus!$A$4:$CW$46,CE$1)","v":1890},{"$f":"VLOOKUP(DropDownList!$B$47,CntyQryCensus!$A$4:$CW$46,CF$1)","v":1632},{"$f":"VLOOKUP(DropDownList!$B$47,CntyQryCensus!$A$4:$CW$46,CG$1)","v":1155},{"$f":"VLOOKUP(DropDownList!$B$47,CntyQryCensus!$A$4:$CW$46,CH$1)","v":1073},{"$f":"VLOOKUP(DropDownList!$B$47,CntyQryCensus!$A$4:$CW$46,CI$1)","v":639},{"$f":"VLOOKUP(DropDownList!$B$47,CntyQryCensus!$A$4:$CW$46,CJ$1)","v":141},{"$f":"VLOOKUP(DropDownList!$B$47,CntyQryCensus!$A$4:$CW$46,CK$1)","v":434},{"$f":"VLOOKUP(DropDownList!$B$47,CntyQryCensus!$A$4:$CW$46,CL$1)","v":1021},{"$f":"VLOOKUP(DropDownList!$B$47,CntyQryCensus!$A$4:$CW$46,CM$1)","v":919},{"$f":"VLOOKUP(DropDownList!$B$47,CntyQryCensus!$A$4:$CW$46,CN$1)","v":552},{"$f":"VLOOKUP(DropDownList!$B$47,CntyQryCensus!$A$4:$CW$46,CO$1)","v":301},{"$f":"VLOOKUP(DropDownList!$B$47,CntyQryCensus!$A$4:$CW$46,CP$1)","v":261},{"$f":"VLOOKUP(DropDownList!$B$47,CntyQryCensus!$A$4:$CW$46,CQ$1)","v":232},{"$f":"VLOOKUP(DropDownList!$B$47,CntyQryCensus!$A$4:$CW$46,CR$1)","v":71},{"$f":"VLOOKUP(DropDownList!$B$47,CntyQryCensus!$A$4:$CW$46,CS$1)","v":28461},{"$f":"VLOOKUP(DropDownList!$B$47,CntyQryCensus!$A$4:$CW$46,CT$1)","v":28168},{"$f":"VLOOKUP(DropDownList!$B$47,CntyQryCensus!$A$4:$CW$46,CU$1)","v":293},{"$f":"VLOOKUP(DropDownList!$B$47,CntyQryCensus!$A$4:$CW$46,CV$1)","v":36.700000000000003},{"$f":"VLOOKUP(DropDownList!$B$47,CntyQryCensus!$A$4:$CW$46,CW$1)","v":35.5},{"$f":"VLOOKUP(DropDownList!$B$47,CntyQryCensus!$A$4:$CW$46,CX$1)","v":{"$error":"#REF!"}}]
[]
[]
["Census 2000 DemoProfile Sample Data Tables 2&3   -  DPTab23TownQry"]
["NAME","COUSUB","AREANAME","PopInSchool","Preschool","Kindergarten","Elementary","HighSchool","College","Pop25andOver","HighSchoolGrad","SomeCollege","AssocDegree","BachelDegree","GradDegree","HSGradorHigher","CollegeGradorHigher","Pop5to20yrs","Pop5to20wDis","Pop21to64","Pop21to64wDis","Pop65over","Pop65overwDis","Pop5yrsOver","SameHUin95","DiffHUinUSin95","HUinSameCountyin95","HUinSameStatein95","TotalPop","NativePop","NatPopBornUS","NatPopBornInStatRes","NatPopBornDiffState","NatPopBornOutUS","FornBornPop","FornPopEnt90to00","FornPopNatCit","FornPopNotCit","Households","HHIncLessThn10k","HHInc10to15K","HHInc15to25K","HHInc25to35K","HHInc35to50K","HHInc50to75K","HHInc75to100K","HHInc100to150K","HHInc150to200K","HHIncOver200K","MedianHHInc","HHwithPubAssistInc","MeanPubAssist","FamilyHH","FHHIncLessThn10k","FHHInc10to15K","FHHInc15to25K","FHHInc25to35K","FHHInc35to50K","FHHInc50to75K","FHHInc75to100K","FHHInc100to150K","FHHInc150to200K","FHHIncOver200K","MedianFHHInc","PerCapitaInc","PovStatFamilies","PovStatFHHwChilUnd18","PovStatFHHwChilUnd5","PovStFmalHH","DP3088","DP3089","PovStatIndiv","PovStatIndiv18yrOver","PovStatIndiv65yrOver","DP3093","DP3094","DP3095"]
[{"$f":"VLOOKUP(DropDownList!$B$47,CntyQryCensus!$A$53:$BY$96,A$1)","v":"Rochester"},{"$f":"VLOOKUP(DropDownList!$B$47,CntyQryCensus!$A$53:$BY$96,B$1)","v":"65140"},{"$f":"VLOOKUP(DropDownList!$B$47,CntyQryCensus!$A$53:$BY$96,C$1)","v":"Rochester city, New Hampshire"},{"$f":"VLOOKUP(DropDownList!$B$47,CntyQryCensus!$A$53:$BY$96,D$1)","v":6893},{"$f":"VLOOKUP(DropDownList!$B$47,CntyQryCensus!$A$53:$BY$96,E$1)","v":489},{"$f":"VLOOKUP(DropDownList!$B$47,CntyQryCensus!$A$53:$BY$96,F$1)","v":302},{"$f":"VLOOKUP(DropDownList!$B$47,CntyQryCensus!$A$53:$BY$96,G$1)","v":3387},{"$f":"VLOOKUP(DropDownList!$B$47,CntyQryCensus!$A$53:$BY$96,H$1)","v":1635},{"$f":"VLOOKUP(DropDownList!$B$47,CntyQryCensus!$A$53:$BY$96,I$1)","v":1080},{"$f":"VLOOKUP(DropDownList!$B$47,CntyQryCensus!$A$53:$BY$96,J$1)","v":19122},{"$f":"VLOOKUP(DropDownList!$B$47,CntyQryCensus!$A$53:$BY$96,K$1)","v":7264},{"$f":"VLOOKUP(DropDownList!$B$47,CntyQryCensus!$A$53:$BY$96,L$1)","v":4004},{"$f":"VLOOKUP(DropDownList!$B$47,CntyQryCensus!$A$53:$BY$96,M$1)","v":1666},{"$f":"VLOOKUP(DropDownList!$B$47,CntyQryCensus!$A$53:$BY$96,N$1)","v":1953},{"$f":"VLOOKUP(DropDownList!$B$47,CntyQryCensus!$A$53:$BY$96,O$1)","v":955},{"$f":"VLOOKUP(DropDownList!$B$47,CntyQryCensus!$A$53:$BY$96,P$1)","v":15842},{"$f":"VLOOKUP(DropDownList!$B$47,CntyQryCensus!$A$53:$BY$96,Q$1)","v":2908},{"$f":"VLOOKUP(DropDownList!$B$47,CntyQryCensus!$A$53:$BY$96,R$1)","v":6221},{"$f":"VLOOKUP(DropDownList!$B$47,CntyQryCensus!$A$53:$BY$96,S$1)","v":538},{"$f":"VLOOKUP(DropDownList!$B$47,CntyQryCensus!$A$53:$BY$96,T$1)","v":16484},{"$f":"VLOOKUP(DropDownList!$B$47,CntyQryCensus!$A$53:$BY$96,U$1)","v":3336},{"$f":"VLOOKUP(DropDownList!$B$47,CntyQryCensus!$A$53:$BY$96,V$1)","v":3609},{"$f":"VLOOKUP(DropDownList!$B$47,CntyQryCensus!$A$53:$BY$96,W$1)","v":1534},{"$f":"VLOOKUP(DropDownList!$B$47,CntyQryCensus!$A$53:$BY$96,X$1)","v":26567},{"$f":"VLOOKUP(DropDownList!$B$47,CntyQryCensus!$A$53:$BY$96,Y$1)","v":13721},{"$f":"VLOOKUP(DropDownList!$B$47,CntyQryCensus!$A$53:$BY$96,Z$1)","v":12721},{"$f":"VLOOKUP(DropDownList!$B$47,CntyQryCensus!$A$53:$BY$96,AA$1)","v":7981},{"$f":"VLOOKUP(DropDownList!$B$47,CntyQryCensus!$A$53:$BY$96,AB$1)","v":4740},{"$f":"VLOOKUP(DropDownList!$B$47,CntyQryCensus!$A$53:$BY$96,AC$1)","v":28461},{"$f":"VLOOKUP(DropDownList!$B$47,CntyQryCensus!$A$53:$BY$96,AD$1)","v":27738},{"$f":"VLOOKUP(DropDownList!$B$47,CntyQryCensus!$A$53:$BY$96,AE$1)","v":27389},{"$f":"VLOOKUP(DropDownList!$B$47,CntyQryCensus!$A$53:$BY$96,AF$1)","v":16186},{"$f":"VLOOKUP(DropDownList!$B$47,CntyQryCensus!$A$53:$BY$96,AG$1)","v":11203},{"$f":"VLOOKUP(DropDownList!$B$47,CntyQryCensus!$A$53:$BY$96,AH$1)","v":349},{"$f":"VLOOKUP(DropDownList!$B$47,CntyQryCensus!$A$53:$BY$96,AI$1)","v":723},{"$f":"VLOOKUP(DropDownList!$B$47,CntyQryCensus!$A$53:$BY$96,AJ$1)","v":160},{"$f":"VLOOKUP(DropDownList!$B$47,CntyQryCensus!$A$53:$BY$96,AK$1)","v":417},{"$f":"VLOOKUP(DropDownList!$B$47,CntyQryCensus!$A$53:$BY$96,AL$1)","v":306},{"$f":"VLOOKUP(DropDownList!$B$47,CntyQryCensus!$A$53:$BY$96,AM$1)","v":11397},{"$f":"VLOOKUP(DropDownList!$B$47,CntyQryCensus!$A$53:$BY$96,AN$1)","v":857},{"$f":"VLOOKUP(DropDownList!$B$47,CntyQryCensus!$A$53:$BY$96,AO$1)","v":765},{"$f":"VLOOKUP(DropDownList!$B$47,CntyQryCensus!$A$53:$BY$96,AP$1)","v":1546},{"$f":"VLOOKUP(DropDownList!$B$47,CntyQryCensus!$A$53:$BY$96,AQ$1)","v":1600},{"$f":"VLOOKUP(DropDownList!$B$47,CntyQryCensus!$A$53:$BY$96,AR$1)","v":2453},{"$f":"VLOOKUP(DropDownList!$B$47,CntyQryCensus!$A$53:$BY$96,AS$1)","v":2501},{"$f":"VLOOKUP(DropDownList!$B$47,CntyQryCensus!$A$53:$BY$96,AT$1)","v":965},{"$f":"VLOOKUP(DropDownList!$B$47,CntyQryCensus!$A$53:$BY$96,AU$1)","v":509},{"$f":"VLOOKUP(DropDownList!$B$47,CntyQryCensus!$A$53:$BY$96,AV$1)","v":118},{"$f":"VLOOKUP(DropDownList!$B$47,CntyQryCensus!$A$53:$BY$96,AW$1)","v":83},{"$f":"VLOOKUP(DropDownList!$B$47,CntyQryCensus!$A$53:$BY$96,AX$1)","v":40596},{"$f":"VLOOKUP(DropDownList!$B$47,CntyQryCensus!$A$53:$BY$96,AY$1)","v":625},{"$f":"VLOOKUP(DropDownList!$B$47,CntyQryCensus!$A$53:$BY$96,AZ$1)","v":2802},{"$f":"VLOOKUP(DropDownList!$B$47,CntyQryCensus!$A$53:$BY$96,BA$1)","v":7671},{"$f":"VLOOKUP(DropDownList!$B$47,CntyQryCensus!$A$53:$BY$96,BB$1)","v":307},{"$f":"VLOOKUP(DropDownList!$B$47,CntyQryCensus!$A$53:$BY$96,BC$1)","v":345},{"$f":"VLOOKUP(DropDownList!$B$47,CntyQryCensus!$A$53:$BY$96,BD$1)","v":776},{"$f":"VLOOKUP(DropDownList!$B$47,CntyQryCensus!$A$53:$BY$96,BE$1)","v":930},{"$f":"VLOOKUP(DropDownList!$B$47,CntyQryCensus!$A$53:$BY$96,BF$1)","v":1757},{"$f":"VLOOKUP(DropDownList!$B$47,CntyQryCensus!$A$53:$BY$96,BG$1)","v":2051},{"$f":"VLOOKUP(DropDownList!$B$47,CntyQryCensus!$A$53:$BY$96,BH$1)","v":858},{"$f":"VLOOKUP(DropDownList!$B$47,CntyQryCensus!$A$53:$BY$96,BI$1)","v":480},{"$f":"VLOOKUP(DropDownList!$B$47,CntyQryCensus!$A$53:$BY$96,BJ$1)","v":96},{"$f":"VLOOKUP(DropDownList!$B$47,CntyQryCensus!$A$53:$BY$96,BK$1)","v":71},{"$f":"VLOOKUP(DropDownList!$B$47,CntyQryCensus!$A$53:$BY$96,BL$1)","v":47324},{"$f":"VLOOKUP(DropDownList!$B$47,CntyQryCensus!$A$53:$BY$96,BM$1)","v":18859},{"$f":"VLOOKUP(DropDownList!$B$47,CntyQryCensus!$A$53:$BY$96,BN$1)","v":481},{"$f":"VLOOKUP(DropDownList!$B$47,CntyQryCensus!$A$53:$BY$96,BO$1)","v":399},{"$f":"VLOOKUP(DropDownList!$B$47,CntyQryCensus!$A$53:$BY$96,BP$1)","v":197},{"$f":"VLOOKUP(DropDownList!$B$47,CntyQryCensus!$A$53:$BY$96,BQ$1)","v":325},{"$f":"VLOOKUP(DropDownList!$B$47,CntyQryCensus!$A$53:$BY$96,BR$1)","v":313},{"$f":"VLOOKUP(DropDownList!$B$47,CntyQryCensus!$A$53:$BY$96,BS$1)","v":155},{"$f":"VLOOKUP(DropDownList!$B$47,CntyQryCensus!$A$53:$BY$96,BT$1)","v":2357},{"$f":"VLOOKUP(DropDownList!$B$47,CntyQryCensus!$A$53:$BY$96,BU$1)","v":1481},{"$f":"VLOOKUP(DropDownList!$B$47,CntyQryCensus!$A$53:$BY$96,BV$1)","v":316},{"$f":"VLOOKUP(DropDownList!$B$47,CntyQryCensus!$A$53:$BY$96,BW$1)","v":823},{"$f":"VLOOKUP(DropDownList!$B$47,CntyQryCensus!$A$53:$BY$96,BX$1)","v":579},{"$f":"VLOOKUP(DropDownList!$B$47,CntyQryCensus!$A$53:$BY$96,BY$1)","v":903}]
[]
[]
["Census 2000 DemoProfile Sample Data Table 4   -  DPTab4TownQry"]
["NAME","COUSUB","TotHousingUnits","1UnitDet","1UnitAtt","2Units","3to4Units","5to9Units","10to19Units","20orMoreUnits","MobileHomes","BoatRvVan","SingleFamilyUnits","MultiFamUnits","MobileHomeUnits","YearBuilt99to00","YearBuilt95to98","YearBUilt90to94","YearBuilt80to89","YearBuilt70to79","YearBuilt60to69","YearBuilt40to59","YearBuilt39orEarlier","Rooms1","Rooms2","Rooms3","Rooms4","Rooms5","Rooms6","Rooms7","Rooms8","Rooms9orMore","MedianRooms","OccHU1","YrHHMvdIn99to00","YrHHMvdIn95to98","YrHHMvdIn90to94","YrHHMvdIn80to89","YrHHMvdIn70to79","YrHHMvdIn69orBefore","HeatFuelNatGas","HeatFuelBotGas","HeatFuelElectric","HeatFuelOil","HeatFuelCoal","HeatFuelWood","HeatFuelSolar","HeatFuelOther","HeatFuelNone","LackCompPlumb","LackCompKit","NoTelephone","OccHU","OccPerRm1orLess","OccPerRm1to1_5","OccPerRm1_5orMore","SpecOwnOccUnits","Value<50K","Value50to100K","Value100to150K","Value150to200K","Value200to300K","Value300to500K","Value500Kto1mil","Value1MilorMore","MedianValue","WithMortg","MnthOwnCst<300","MnthOwnCst300to500","MnthOwnCst500to700","MnthOwnCst700to1000","MnthOwnCst1000to1500","MnthOwnCst1500to2000","MnthOwnCst2000orMore","MediMnthOwnCst","NotMrtg","NotMrtgMediMnthOwnCst","OwnCst%HHInc<15","OwnCst%HHInc15to20","OwnCst%HHInc20to25","OwnCst%HHInc25to30","OwnCst%HHInc30to35","OwnCst%HHInc35orMor","NotComputed","SpecRntOccUnits","Rnt<200","Rnt200to300","Rnt300to500","Rnt500to750","Rnt750to1000","Rnt1000to1500","Rnt1500orMore","NoRent","MedianRent","Rnt%HHInc<15","Rnt%HHInc15to20","Rnt%HHInc20to25","Rnt%HHInc25to30","Rnt%HHInc30to35","Rnt%HHInc35orMore","Rnt%NotCompute"]
[{"$f":"VLOOKUP(DropDownList!$B$47,CntyQryCensus!$A$103:$CX$146,A$1)","v":"Rochester"},{"$f":"VLOOKUP(DropDownList!$B$47,CntyQryCensus!$A$103:$CX$146,B$1)","v":"65140"},{"$f":"VLOOKUP(DropDownList!$B$47,CntyQryCensus!$A$103:$CX$146,C$1)","v":11836},{"$f":"VLOOKUP(DropDownList!$B$47,CntyQryCensus!$A$103:$CX$146,D$1)","v":5727},{"$f":"VLOOKUP(DropDownList!$B$47,CntyQryCensus!$A$103:$CX$146,E$1)","v":402},{"$f":"VLOOKUP(DropDownList!$B$47,CntyQryCensus!$A$103:$CX$146,F$1)","v":707},{"$f":"VLOOKUP(DropDownList!$B$47,CntyQryCensus!$A$103:$CX$146,G$1)","v":1133},{"$f":"VLOOKUP(DropDownList!$B$47,CntyQryCensus!$A$103:$CX$146,H$1)","v":890},{"$f":"VLOOKUP(DropDownList!$B$47,CntyQryCensus!$A$103:$CX$146,I$1)","v":169},{"$f":"VLOOKUP(DropDownList!$B$47,CntyQryCensus!$A$103:$CX$146,J$1)","v":563},{"$f":"VLOOKUP(DropDownList!$B$47,CntyQryCensus!$A$103:$CX$146,K$1)","v":2239},{"$f":"VLOOKUP(DropDownList!$B$47,CntyQryCensus!$A$103:$CX$146,L$1)","v":6},{"$f":"VLOOKUP(DropDownList!$B$47,CntyQryCensus!$A$103:$CX$146,M$1)","v":5727},{"$f":"VLOOKUP(DropDownList!$B$47,CntyQryCensus!$A$103:$CX$146,N$1)","v":3864},{"$f":"VLOOKUP(DropDownList!$B$47,CntyQryCensus!$A$103:$CX$146,O$1)","v":2245},{"$f":"VLOOKUP(DropDownList!$B$47,CntyQryCensus!$A$103:$CX$146,P$1)","v":252},{"$f":"VLOOKUP(DropDownList!$B$47,CntyQryCensus!$A$103:$CX$146,Q$1)","v":647},{"$f":"VLOOKUP(DropDownList!$B$47,CntyQryCensus!$A$103:$CX$146,R$1)","v":726},{"$f":"VLOOKUP(DropDownList!$B$47,CntyQryCensus!$A$103:$CX$146,S$1)","v":2520},{"$f":"VLOOKUP(DropDownList!$B$47,CntyQryCensus!$A$103:$CX$146,T$1)","v":1966},{"$f":"VLOOKUP(DropDownList!$B$47,CntyQryCensus!$A$103:$CX$146,U$1)","v":925},{"$f":"VLOOKUP(DropDownList!$B$47,CntyQryCensus!$A$103:$CX$146,V$1)","v":1799},{"$f":"VLOOKUP(DropDownList!$B$47,CntyQryCensus!$A$103:$CX$146,W$1)","v":3001},{"$f":"VLOOKUP(DropDownList!$B$47,CntyQryCensus!$A$103:$CX$146,X$1)","v":55},{"$f":"VLOOKUP(DropDownList!$B$47,CntyQryCensus!$A$103:$CX$146,Y$1)","v":281},{"$f":"VLOOKUP(DropDownList!$B$47,CntyQryCensus!$A$103:$CX$146,Z$1)","v":1391},{"$f":"VLOOKUP(DropDownList!$B$47,CntyQryCensus!$A$103:$CX$146,AA$1)","v":2703},{"$f":"VLOOKUP(DropDownList!$B$47,CntyQryCensus!$A$103:$CX$146,AB$1)","v":2850},{"$f":"VLOOKUP(DropDownList!$B$47,CntyQryCensus!$A$103:$CX$146,AC$1)","v":2026},{"$f":"VLOOKUP(DropDownList!$B$47,CntyQryCensus!$A$103:$CX$146,AD$1)","v":1263},{"$f":"VLOOKUP(DropDownList!$B$47,CntyQryCensus!$A$103:$CX$146,AE$1)","v":751},{"$f":"VLOOKUP(DropDownList!$B$47,CntyQryCensus!$A$103:$CX$146,AF$1)","v":516},{"$f":"VLOOKUP(DropDownList!$B$47,CntyQryCensus!$A$103:$CX$146,AG$1)","v":5},{"$f":"VLOOKUP(DropDownList!$B$47,CntyQryCensus!$A$103:$CX$146,AH$1)","v":11434},{"$f":"VLOOKUP(DropDownList!$B$47,CntyQryCensus!$A$103:$CX$146,AI$1)","v":2293},{"$f":"VLOOKUP(DropDownList!$B$47,CntyQryCensus!$A$103:$CX$146,AJ$1)","v":3618},{"$f":"VLOOKUP(DropDownList!$B$47,CntyQryCensus!$A$103:$CX$146,AK$1)","v":1710},{"$f":"VLOOKUP(DropDownList!$B$47,CntyQryCensus!$A$103:$CX$146,AL$1)","v":1929},{"$f":"VLOOKUP(DropDownList!$B$47,CntyQryCensus!$A$103:$CX$146,AM$1)","v":854},{"$f":"VLOOKUP(DropDownList!$B$47,CntyQryCensus!$A$103:$CX$146,AN$1)","v":1030},{"$f":"VLOOKUP(DropDownList!$B$47,CntyQryCensus!$A$103:$CX$146,AO$1)","v":2273},{"$f":"VLOOKUP(DropDownList!$B$47,CntyQryCensus!$A$103:$CX$146,AP$1)","v":1063},{"$f":"VLOOKUP(DropDownList!$B$47,CntyQryCensus!$A$103:$CX$146,AQ$1)","v":739},{"$f":"VLOOKUP(DropDownList!$B$47,CntyQryCensus!$A$103:$CX$146,AR$1)","v":7069},{"$f":"VLOOKUP(DropDownList!$B$47,CntyQryCensus!$A$103:$CX$146,AS$1)","v":7},{"$f":"VLOOKUP(DropDownList!$B$47,CntyQryCensus!$A$103:$CX$146,AT$1)","v":188},{"$f":"VLOOKUP(DropDownList!$B$47,CntyQryCensus!$A$103:$CX$146,AU$1)","v":0},{"$f":"VLOOKUP(DropDownList!$B$47,CntyQryCensus!$A$103:$CX$146,AV$1)","v":54},{"$f":"VLOOKUP(DropDownList!$B$47,CntyQryCensus!$A$103:$CX$146,AW$1)","v":41},{"$f":"VLOOKUP(DropDownList!$B$47,CntyQryCensus!$A$103:$CX$146,AX$1)","v":86},{"$f":"VLOOKUP(DropDownList!$B$47,CntyQryCensus!$A$103:$CX$146,AY$1)","v":32},{"$f":"VLOOKUP(DropDownList!$B$47,CntyQryCensus!$A$103:$CX$146,AZ$1)","v":199},{"$f":"VLOOKUP(DropDownList!$B$47,CntyQryCensus!$A$103:$CX$146,BA$1)","v":11434},{"$f":"VLOOKUP(DropDownList!$B$47,CntyQryCensus!$A$103:$CX$146,BB$1)","v":11228},{"$f":"VLOOKUP(DropDownList!$B$47,CntyQryCensus!$A$103:$CX$146,BC$1)","v":157},{"$f":"VLOOKUP(DropDownList!$B$47,CntyQryCensus!$A$103:$CX$146,BD$1)","v":49},{"$f":"VLOOKUP(DropDownList!$B$47,CntyQryCensus!$A$103:$CX$146,BE$1)","v":4928},{"$f":"VLOOKUP(DropDownList!$B$47,CntyQryCensus!$A$103:$CX$146,BF$1)","v":68},{"$f":"VLOOKUP(DropDownList!$B$47,CntyQryCensus!$A$103:$CX$146,BG$1)","v":2442},{"$f":"VLOOKUP(DropDownList!$B$47,CntyQryCensus!$A$103:$CX$146,BH$1)","v":1780},{"$f":"VLOOKUP(DropDownList!$B$47,CntyQryCensus!$A$103:$CX$146,BI$1)","v":427},{"$f":"VLOOKUP(DropDownList!$B$47,CntyQryCensus!$A$103:$CX$146,BJ$1)","v":173},{"$f":"VLOOKUP(DropDownList!$B$47,CntyQryCensus!$A$103:$CX$146,BK$1)","v":38},{"$f":"VLOOKUP(DropDownList!$B$47,CntyQryCensus!$A$103:$CX$146,BL$1)","v":0},{"$f":"VLOOKUP(DropDownList!$B$47,CntyQryCensus!$A$103:$CX$146,BM$1)","v":0},{"$f":"VLOOKUP(DropDownList!$B$47,CntyQryCensus!$A$103:$CX$146,BN$1)","v":99400},{"$f":"VLOOKUP(DropDownList!$B$47,CntyQryCensus!$A$103:$CX$146,BO$1)","v":3576},{"$f":"VLOOKUP(DropDownList!$B$47,CntyQryCensus!$A$103:$CX$146,BP$1)","v":15},{"$f":"VLOOKUP(DropDownList!$B$47,CntyQryCensus!$A$103:$CX$146,BQ$1)","v":62},{"$f":"VLOOKUP(DropDownList!$B$47,CntyQryCensus!$A$103:$CX$146,BR$1)","v":281},{"$f":"VLOOKUP(DropDownList!$B$47,CntyQryCensus!$A$103:$CX$146,BS$1)","v":1282},{"$f":"VLOOKUP(DropDownList!$B$47,CntyQryCensus!$A$103:$CX$146,BT$1)","v":1541},{"$f":"VLOOKUP(DropDownList!$B$47,CntyQryCensus!$A$103:$CX$146,BU$1)","v":268},{"$f":"VLOOKUP(DropDownList!$B$47,CntyQryCensus!$A$103:$CX$146,BV$1)","v":127},{"$f":"VLOOKUP(DropDownList!$B$47,CntyQryCensus!$A$103:$CX$146,BW$1)","v":1036},{"$f":"VLOOKUP(DropDownList!$B$47,CntyQryCensus!$A$103:$CX$146,BX$1)","v":1352},{"$f":"VLOOKUP(DropDownList!$B$47,CntyQryCensus!$A$103:$CX$146,BY$1)","v":393},{"$f":"VLOOKUP(DropDownList!$B$47,CntyQryCensus!$A$103:$CX$146,BZ$1)","v":1190},{"$f":"VLOOKUP(DropDownList!$B$47,CntyQryCensus!$A$103:$CX$146,CA$1)","v":1004},{"$f":"VLOOKUP(DropDownList!$B$47,CntyQryCensus!$A$103:$CX$146,CB$1)","v":1039},{"$f":"VLOOKUP(DropDownList!$B$47,CntyQryCensus!$A$103:$CX$146,CC$1)","v":505},{"$f":"VLOOKUP(DropDownList!$B$47,CntyQryCensus!$A$103:$CX$146,CD$1)","v":458},{"$f":"VLOOKUP(DropDownList!$B$47,CntyQryCensus!$A$103:$CX$146,CE$1)","v":702},{"$f":"VLOOKUP(DropDownList!$B$47,CntyQryCensus!$A$103:$CX$146,CF$1)","v":30},{"$f":"VLOOKUP(DropDownList!$B$47,CntyQryCensus!$A$103:$CX$146,CG$1)","v":3777},{"$f":"VLOOKUP(DropDownList!$B$47,CntyQryCensus!$A$103:$CX$146,CH$1)","v":217},{"$f":"VLOOKUP(DropDownList!$B$47,CntyQryCensus!$A$103:$CX$146,CI$1)","v":204},{"$f":"VLOOKUP(DropDownList!$B$47,CntyQryCensus!$A$103:$CX$146,CJ$1)","v":726},{"$f":"VLOOKUP(DropDownList!$B$47,CntyQryCensus!$A$103:$CX$146,CK$1)","v":1743},{"$f":"VLOOKUP(DropDownList!$B$47,CntyQryCensus!$A$103:$CX$146,CL$1)","v":595},{"$f":"VLOOKUP(DropDownList!$B$47,CntyQryCensus!$A$103:$CX$146,CM$1)","v":174},{"$f":"VLOOKUP(DropDownList!$B$47,CntyQryCensus!$A$103:$CX$146,CN$1)","v":7},{"$f":"VLOOKUP(DropDownList!$B$47,CntyQryCensus!$A$103:$CX$146,CO$1)","v":111},{"$f":"VLOOKUP(DropDownList!$B$47,CntyQryCensus!$A$103:$CX$146,CP$1)","v":601},{"$f":"VLOOKUP(DropDownList!$B$47,CntyQryCensus!$A$103:$CX$146,CQ$1)","v":660},{"$f":"VLOOKUP(DropDownList!$B$47,CntyQryCensus!$A$103:$CX$146,CR$1)","v":594},{"$f":"VLOOKUP(DropDownList!$B$47,CntyQryCensus!$A$103:$CX$146,CS$1)","v":464},{"$f":"VLOOKUP(DropDownList!$B$47,CntyQryCensus!$A$103:$CX$146,CT$1)","v":519},{"$f":"VLOOKUP(DropDownList!$B$47,CntyQryCensus!$A$103:$CX$146,CU$1)","v":267},{"$f":"VLOOKUP(DropDownList!$B$47,CntyQryCensus!$A$103:$CX$146,CV$1)","v":1123},{"$f":"VLOOKUP(DropDownList!$B$47,CntyQryCensus!$A$103:$CX$146,CW$1)","v":150}]
[]
[]
["Census 2000 SummaryFile3 Sample Data  -  SF3TownQry1SocialChar"]
["TOWN_NAME","LOGRECNO","COUSUB","P01TotalPopulation","P02SampleCountOfPop","P03Pop100pctCount","P05UrbanPopulation","P05RuralPopulation","P06WhiteAlone","P06BlackOrAfAm","P06AmIndAlone","P06AsianAlone","P06HawaiianOrPI","P06OtherRace","P06TwoPlusRaces","P07NotHispanicOrLatino","P07HispanicOrLatino","P08MalePop","P08FemalePop","P09PopInHouseholds","P09PopInFamHH","P09PopInNonFamHH","P09PopInGroupQtr","P13TotalHH","P13FamilyHH","P13FamHHolder15to24yrs","P13FamHHolder25to34yrs","P13FamHHolder35to44yrs","P13FamHHolder45to54yrs","P13FamHHolder55to64yrs","P13FamHHolder65to74yrs","P13FamHHolder75to84yrs","P13FamHHolder85yrsOver","P13NonFamilyHH","P13NonFamHHolder15to24yrs","P13NonFamHHolder25to34yrs","P13NonFamHHolder35to44yrs","P13NonFamHHolder45to54yrs","P13NonFamHHolder55to64yrs","P13NonFamHHolder65to74yrs","P13NonFamHHolder75to84yrs","P13NonFamHHolder85yrsOver","P18Pop15yrsOver","P18MaritalStatNeverMarried","P18MaritalStatNowMarried","P18MaritalStatSeparated","P18MaritalStatWidowed","P18MaritalStatWidowFemale","P18MaritalStatDivorced","P18MaritalStatDivorcedFemale","P21NativeBornPop","P21NatPopBornInState","P21NatPopBornOtherState","P021005","P021006","P021007","P021008","P21NatPopBornOutUS","P21ForeignBornPop","P021014","P021015","P24Pop5YrsPlus","P24ResSameHouseIn95","P24ResDiffHouseIn95","P24ResDiffHouseInUSIn95","P24ResDiffHouseSameCountyIn95","P24ResDiffHouseDiffCountyIn95","P24ResDiffHouseDiffCntySamStIn95","P24ResDiffHouseDiffCntyDifStIn95","P24ResDiffHouseDiffCntyNEStIn95","P24ResDiffHouseDiffCntyMWStIn95","P24ResDiffHouseDiffCntySoStIn95","P24ResDiffHouseDiffCntyWstStIn95","P24ResDiffInPR","P24ResDiffElsewhereIn95","P26Workers16yrsOver","P26WorkedInState","P26WorkedInCnty","P26WorkedOutsideCnty","P26WorkedOutsideState","P30Workers16Over","P30TranspToWrkCar","P30TranspToWrkPublic","P30TranspToWrkOther","P30WrkdAtHome","P31WrkrsNotWrkAtHom","P31TravTim<5min","P31TravTim5to9Min","P31TravTim10to14Min","P31TravTim15to19Min","P31TravTim20to24Min","P31TravTim25to29Min","P31TravTim30to34Min","P31TravTim35to39Min","P31TravTim40to44Min","P31TravTim45to59Min","P31TravTim60to89Min","P31TravTim90MinMore","P31WorkAtHome","P36SchEnrlPop3yrOver","P36NurserSchEnrl","P36KinderSchEnrl","P36ElemSchEnrl","P36HighSchEnrl","P36CollGradSchEnrl","P37Pop25yrsOver","P37EduAtain<9grd","P37EduAtainHSnoDip","P37EduAtainHSgrad","P37EduAtainCollNoDeg","P37EduAtainAssocDeg","P37EduAtainBachDeg","P37EduAtainGradProfDeg","P42NIPop5to15","P42NIPop5to15wDisabl","P42NIPop16to20","P42NIPop16to20wDisab","P42NIPop16to20wDisEmp","P42NIPop16to21NoDis","P42NIPop16to21NoDisEmpl","P42NIPop21to64","P42NIPop21to64wDis","P42NIPop21to64wDisEmp","P42NIPop21to64NoDis","P42NIPop21to64NoDisEmp","P42NIPop65to74","P42NIPop65to74wDis","P42NIPop75Over","P42NIPop75OverwDis","P43Pop16YrsOver","P43Pop16OvrInLaborForce","P43Pop16OvrCivlLabFrc","P43Pop16OvrCivlLbrFrcEmp","P48Families","P48MarriedFam","P48MarrFamNoWorkers","P48MarrFam1Worker","P48MarrFam2Worker","P48MarrFamHusbWifeWorked","P48MarrFamOther","P48MarrFam3PlusWorker","P48MarrFam3WorkHsbWif","P48MarrFam3PlsWrkOther","P48OtherFam","P48MaleHHNoWif","P48MaleHHNoWifNoWorker","P48MaleHHNoWif1Worker","P48MaleHHNoWif2Worker","P48MaleHHNoWif3PlusWorker","P48FemaleHHNoHsb","P48FemaleHHNoHsbNoWorker","P48FemaleHHNoHsb1Worker","P48FemaleHHNoHsb2Worker","P48FemaleHHNoHsb3Worker","P49EmpCivPop16YrOver","P49IndustAgricult","P49IndustConst","P49IndustMnftg","P49IndustWhlslTrd","P49IndustRtlTrd","P49IndustTrspWrhsUtlt","P49IndustInfrm","P49IndustFinInsRE","P49IndustPrfsScntfMngmt","P49IndustEduHlthSocSrv","P49IndustArtsEntRec","P49IndustOthrSrvc","P49IndustPubAdm","P50OccupMngmtProfs","P50OccupService","P50OccupSalesOff","P50OccupFarmFishForest","P50OccupConstExtrctMaint","P50OccupPrdctTrnspMatMv"]
[{"$f":"VLOOKUP(DropDownList!$B$47,CntyQryCensus!$A$156:$FR$198,A$1)","v":"Rochester"},{"$f":"VLOOKUP(DropDownList!$B$47,CntyQryCensus!$A$156:$FR$198,B$1)","v":"0003956"},{"$f":"VLOOKUP(DropDownList!$B$47,CntyQryCensus!$A$156:$FR$198,C$1)","v":"65140"},{"$f":"VLOOKUP(DropDownList!$B$47,CntyQryCensus!$A$156:$FR$198,D$1)","v":28461},{"$f":"VLOOKUP(DropDownList!$B$47,CntyQryCensus!$A$156:$FR$198,E$1)","v":3853},{"$f":"VLOOKUP(DropDownList!$B$47,CntyQryCensus!$A$156:$FR$198,F$1)","v":28461},{"$f":"VLOOKUP(DropDownList!$B$47,CntyQryCensus!$A$156:$FR$198,G$1)","v":22614},{"$f":"VLOOKUP(DropDownList!$B$47,CntyQryCensus!$A$156:$FR$198,H$1)","v":5847},{"$f":"VLOOKUP(DropDownList!$B$47,CntyQryCensus!$A$156:$FR$198,I$1)","v":27753},{"$f":"VLOOKUP(DropDownList!$B$47,CntyQryCensus!$A$156:$FR$198,J$1)","v":110},{"$f":"VLOOKUP(DropDownList!$B$47,CntyQryCensus!$A$156:$FR$198,K$1)","v":5},{"$f":"VLOOKUP(DropDownList!$B$47,CntyQryCensus!$A$156:$FR$198,L$1)","v":191},{"$f":"VLOOKUP(DropDownList!$B$47,CntyQryCensus!$A$156:$FR$198,M$1)","v":11},{"$f":"VLOOKUP(DropDownList!$B$47,CntyQryCensus!$A$156:$FR$198,N$1)","v":76},{"$f":"VLOOKUP(DropDownList!$B$47,CntyQryCensus!$A$156:$FR$198,O$1)","v":315},{"$f":"VLOOKUP(DropDownList!$B$47,CntyQryCensus!$A$156:$FR$198,P$1)","v":28129},{"$f":"VLOOKUP(DropDownList!$B$47,CntyQryCensus!$A$156:$FR$198,Q$1)","v":332},{"$f":"VLOOKUP(DropDownList!$B$47,CntyQryCensus!$A$156:$FR$198,R$1)","v":13857},{"$f":"VLOOKUP(DropDownList!$B$47,CntyQryCensus!$A$156:$FR$198,S$1)","v":14604},{"$f":"VLOOKUP(DropDownList!$B$47,CntyQryCensus!$A$156:$FR$198,T$1)","v":28168},{"$f":"VLOOKUP(DropDownList!$B$47,CntyQryCensus!$A$156:$FR$198,U$1)","v":23509},{"$f":"VLOOKUP(DropDownList!$B$47,CntyQryCensus!$A$156:$FR$198,V$1)","v":4659},{"$f":"VLOOKUP(DropDownList!$B$47,CntyQryCensus!$A$156:$FR$198,W$1)","v":293},{"$f":"VLOOKUP(DropDownList!$B$47,CntyQryCensus!$A$156:$FR$198,X$1)","v":11397},{"$f":"VLOOKUP(DropDownList!$B$47,CntyQryCensus!$A$156:$FR$198,Y$1)","v":7671},{"$f":"VLOOKUP(DropDownList!$B$47,CntyQryCensus!$A$156:$FR$198,Z$1)","v":266},{"$f":"VLOOKUP(DropDownList!$B$47,CntyQryCensus!$A$156:$FR$198,AA$1)","v":1520},{"$f":"VLOOKUP(DropDownList!$B$47,CntyQryCensus!$A$156:$FR$198,AB$1)","v":2076},{"$f":"VLOOKUP(DropDownList!$B$47,CntyQryCensus!$A$156:$FR$198,AC$1)","v":1578},{"$f":"VLOOKUP(DropDownList!$B$47,CntyQryCensus!$A$156:$FR$198,AD$1)","v":985},{"$f":"VLOOKUP(DropDownList!$B$47,CntyQryCensus!$A$156:$FR$198,AE$1)","v":832},{"$f":"VLOOKUP(DropDownList!$B$47,CntyQryCensus!$A$156:$FR$198,AF$1)","v":370},{"$f":"VLOOKUP(DropDownList!$B$47,CntyQryCensus!$A$156:$FR$198,AG$1)","v":44},{"$f":"VLOOKUP(DropDownList!$B$47,CntyQryCensus!$A$156:$FR$198,AH$1)","v":3726},{"$f":"VLOOKUP(DropDownList!$B$47,CntyQryCensus!$A$156:$FR$198,AI$1)","v":216},{"$f":"VLOOKUP(DropDownList!$B$47,CntyQryCensus!$A$156:$FR$198,AJ$1)","v":592},{"$f":"VLOOKUP(DropDownList!$B$47,CntyQryCensus!$A$156:$FR$198,AK$1)","v":605},{"$f":"VLOOKUP(DropDownList!$B$47,CntyQryCensus!$A$156:$FR$198,AL$1)","v":568},{"$f":"VLOOKUP(DropDownList!$B$47,CntyQryCensus!$A$156:$FR$198,AM$1)","v":504},{"$f":"VLOOKUP(DropDownList!$B$47,CntyQryCensus!$A$156:$FR$198,AN$1)","v":510},{"$f":"VLOOKUP(DropDownList!$B$47,CntyQryCensus!$A$156:$FR$198,AO$1)","v":539},{"$f":"VLOOKUP(DropDownList!$B$47,CntyQryCensus!$A$156:$FR$198,AP$1)","v":192},{"$f":"VLOOKUP(DropDownList!$B$47,CntyQryCensus!$A$156:$FR$198,AQ$1)","v":22490},{"$f":"VLOOKUP(DropDownList!$B$47,CntyQryCensus!$A$156:$FR$198,AR$1)","v":5246},{"$f":"VLOOKUP(DropDownList!$B$47,CntyQryCensus!$A$156:$FR$198,AS$1)","v":12431},{"$f":"VLOOKUP(DropDownList!$B$47,CntyQryCensus!$A$156:$FR$198,AT$1)","v":401},{"$f":"VLOOKUP(DropDownList!$B$47,CntyQryCensus!$A$156:$FR$198,AU$1)","v":1468},{"$f":"VLOOKUP(DropDownList!$B$47,CntyQryCensus!$A$156:$FR$198,AV$1)","v":1278},{"$f":"VLOOKUP(DropDownList!$B$47,CntyQryCensus!$A$156:$FR$198,AW$1)","v":2944},{"$f":"VLOOKUP(DropDownList!$B$47,CntyQryCensus!$A$156:$FR$198,AX$1)","v":1665},{"$f":"VLOOKUP(DropDownList!$B$47,CntyQryCensus!$A$156:$FR$198,AY$1)","v":27738},{"$f":"VLOOKUP(DropDownList!$B$47,CntyQryCensus!$A$156:$FR$198,AZ$1)","v":16186},{"$f":"VLOOKUP(DropDownList!$B$47,CntyQryCensus!$A$156:$FR$198,BA$1)","v":11203},{"$f":"VLOOKUP(DropDownList!$B$47,CntyQryCensus!$A$156:$FR$198,BB$1)","v":8937},{"$f":"VLOOKUP(DropDownList!$B$47,CntyQryCensus!$A$156:$FR$198,BC$1)","v":819},{"$f":"VLOOKUP(DropDownList!$B$47,CntyQryCensus!$A$156:$FR$198,BD$1)","v":955},{"$f":"VLOOKUP(DropDownList!$B$47,CntyQryCensus!$A$156:$FR$198,BE$1)","v":492},{"$f":"VLOOKUP(DropDownList!$B$47,CntyQryCensus!$A$156:$FR$198,BF$1)","v":349},{"$f":"VLOOKUP(DropDownList!$B$47,CntyQryCensus!$A$156:$FR$198,BG$1)","v":723},{"$f":"VLOOKUP(DropDownList!$B$47,CntyQryCensus!$A$156:$FR$198,BH$1)","v":417},{"$f":"VLOOKUP(DropDownList!$B$47,CntyQryCensus!$A$156:$FR$198,BI$1)","v":306},{"$f":"VLOOKUP(DropDownList!$B$47,CntyQryCensus!$A$156:$FR$198,BJ$1)","v":26567},{"$f":"VLOOKUP(DropDownList!$B$47,CntyQryCensus!$A$156:$FR$198,BK$1)","v":13721},{"$f":"VLOOKUP(DropDownList!$B$47,CntyQryCensus!$A$156:$FR$198,BL$1)","v":12846},{"$f":"VLOOKUP(DropDownList!$B$47,CntyQryCensus!$A$156:$FR$198,BM$1)","v":12721},{"$f":"VLOOKUP(DropDownList!$B$47,CntyQryCensus!$A$156:$FR$198,BN$1)","v":7981},{"$f":"VLOOKUP(DropDownList!$B$47,CntyQryCensus!$A$156:$FR$198,BO$1)","v":4740},{"$f":"VLOOKUP(DropDownList!$B$47,CntyQryCensus!$A$156:$FR$198,BP$1)","v":1603},{"$f":"VLOOKUP(DropDownList!$B$47,CntyQryCensus!$A$156:$FR$198,BQ$1)","v":3137},{"$f":"VLOOKUP(DropDownList!$B$47,CntyQryCensus!$A$156:$FR$198,BR$1)","v":1890},{"$f":"VLOOKUP(DropDownList!$B$47,CntyQryCensus!$A$156:$FR$198,BS$1)","v":240},{"$f":"VLOOKUP(DropDownList!$B$47,CntyQryCensus!$A$156:$FR$198,BT$1)","v":695},{"$f":"VLOOKUP(DropDownList!$B$47,CntyQryCensus!$A$156:$FR$198,BU$1)","v":312},{"$f":"VLOOKUP(DropDownList!$B$47,CntyQryCensus!$A$156:$FR$198,BV$1)","v":0},{"$f":"VLOOKUP(DropDownList!$B$47,CntyQryCensus!$A$156:$FR$198,BW$1)","v":125},{"$f":"VLOOKUP(DropDownList!$B$47,CntyQryCensus!$A$156:$FR$198,BX$1)","v":14407},{"$f":"VLOOKUP(DropDownList!$B$47,CntyQryCensus!$A$156:$FR$198,BY$1)","v":13412},{"$f":"VLOOKUP(DropDownList!$B$47,CntyQryCensus!$A$156:$FR$198,BZ$1)","v":9640},{"$f":"VLOOKUP(DropDownList!$B$47,CntyQryCensus!$A$156:$FR$198,CA$1)","v":3772},{"$f":"VLOOKUP(DropDownList!$B$47,CntyQryCensus!$A$156:$FR$198,CB$1)","v":995},{"$f":"VLOOKUP(DropDownList!$B$47,CntyQryCensus!$A$156:$FR$198,CC$1)","v":14407},{"$f":"VLOOKUP(DropDownList!$B$47,CntyQryCensus!$A$156:$FR$198,CD$1)","v":13616},{"$f":"VLOOKUP(DropDownList!$B$47,CntyQryCensus!$A$156:$FR$198,CE$1)","v":86},{"$f":"VLOOKUP(DropDownList!$B$47,CntyQryCensus!$A$156:$FR$198,CF$1)","v":1659},{"$f":"VLOOKUP(DropDownList!$B$47,CntyQryCensus!$A$156:$FR$198,CG$1)","v":332},{"$f":"VLOOKUP(DropDownList!$B$47,CntyQryCensus!$A$156:$FR$198,CH$1)","v":14075},{"$f":"VLOOKUP(DropDownList!$B$47,CntyQryCensus!$A$156:$FR$198,CI$1)","v":450},{"$f":"VLOOKUP(DropDownList!$B$47,CntyQryCensus!$A$156:$FR$198,CJ$1)","v":1681},{"$f":"VLOOKUP(DropDownList!$B$47,CntyQryCensus!$A$156:$FR$198,CK$1)","v":2294},{"$f":"VLOOKUP(DropDownList!$B$47,CntyQryCensus!$A$156:$FR$198,CL$1)","v":2125},{"$f":"VLOOKUP(DropDownList!$B$47,CntyQryCensus!$A$156:$FR$198,CM$1)","v":2202},{"$f":"VLOOKUP(DropDownList!$B$47,CntyQryCensus!$A$156:$FR$198,CN$1)","v":813},{"$f":"VLOOKUP(DropDownList!$B$47,CntyQryCensus!$A$156:$FR$198,CO$1)","v":1870},{"$f":"VLOOKUP(DropDownList!$B$47,CntyQryCensus!$A$156:$FR$198,CP$1)","v":406},{"$f":"VLOOKUP(DropDownList!$B$47,CntyQryCensus!$A$156:$FR$198,CQ$1)","v":451},{"$f":"VLOOKUP(DropDownList!$B$47,CntyQryCensus!$A$156:$FR$198,CR$1)","v":929},{"$f":"VLOOKUP(DropDownList!$B$47,CntyQryCensus!$A$156:$FR$198,CS$1)","v":587},{"$f":"VLOOKUP(DropDownList!$B$47,CntyQryCensus!$A$156:$FR$198,CT$1)","v":267},{"$f":"VLOOKUP(DropDownList!$B$47,CntyQryCensus!$A$156:$FR$198,CU$1)","v":332},{"$f":"VLOOKUP(DropDownList!$B$47,CntyQryCensus!$A$156:$FR$198,CV$1)","v":27274},{"$f":"VLOOKUP(DropDownList!$B$47,CntyQryCensus!$A$156:$FR$198,CW$1)","v":489},{"$f":"VLOOKUP(DropDownList!$B$47,CntyQryCensus!$A$156:$FR$198,CX$1)","v":302},{"$f":"VLOOKUP(DropDownList!$B$47,CntyQryCensus!$A$156:$FR$198,CY$1)","v":3387},{"$f":"VLOOKUP(DropDownList!$B$47,CntyQryCensus!$A$156:$FR$198,CZ$1)","v":1635},{"$f":"VLOOKUP(DropDownList!$B$47,CntyQryCensus!$A$156:$FR$198,DA$1)","v":1080},{"$f":"VLOOKUP(DropDownList!$B$47,CntyQryCensus!$A$156:$FR$198,DB$1)","v":19122},{"$f":"VLOOKUP(DropDownList!$B$47,CntyQryCensus!$A$156:$FR$198,DC$1)","v":1009},{"$f":"VLOOKUP(DropDownList!$B$47,CntyQryCensus!$A$156:$FR$198,DD$1)","v":2271},{"$f":"VLOOKUP(DropDownList!$B$47,CntyQryCensus!$A$156:$FR$198,DE$1)","v":7264},{"$f":"VLOOKUP(DropDownList!$B$47,CntyQryCensus!$A$156:$FR$198,DF$1)","v":4004},{"$f":"VLOOKUP(DropDownList!$B$47,CntyQryCensus!$A$156:$FR$198,DG$1)","v":1666},{"$f":"VLOOKUP(DropDownList!$B$47,CntyQryCensus!$A$156:$FR$198,DH$1)","v":1953},{"$f":"VLOOKUP(DropDownList!$B$47,CntyQryCensus!$A$156:$FR$198,DI$1)","v":955},{"$f":"VLOOKUP(DropDownList!$B$47,CntyQryCensus!$A$156:$FR$198,DJ$1)","v":4502},{"$f":"VLOOKUP(DropDownList!$B$47,CntyQryCensus!$A$156:$FR$198,DK$1)","v":384},{"$f":"VLOOKUP(DropDownList!$B$47,CntyQryCensus!$A$156:$FR$198,DL$1)","v":1719},{"$f":"VLOOKUP(DropDownList!$B$47,CntyQryCensus!$A$156:$FR$198,DM$1)","v":154},{"$f":"VLOOKUP(DropDownList!$B$47,CntyQryCensus!$A$156:$FR$198,DN$1)","v":70},{"$f":"VLOOKUP(DropDownList!$B$47,CntyQryCensus!$A$156:$FR$198,DO$1)","v":1565},{"$f":"VLOOKUP(DropDownList!$B$47,CntyQryCensus!$A$156:$FR$198,DP$1)","v":941},{"$f":"VLOOKUP(DropDownList!$B$47,CntyQryCensus!$A$156:$FR$198,DQ$1)","v":16484},{"$f":"VLOOKUP(DropDownList!$B$47,CntyQryCensus!$A$156:$FR$198,DR$1)","v":3336},{"$f":"VLOOKUP(DropDownList!$B$47,CntyQryCensus!$A$156:$FR$198,DS$1)","v":2104},{"$f":"VLOOKUP(DropDownList!$B$47,CntyQryCensus!$A$156:$FR$198,DT$1)","v":13148},{"$f":"VLOOKUP(DropDownList!$B$47,CntyQryCensus!$A$156:$FR$198,DU$1)","v":11223},{"$f":"VLOOKUP(DropDownList!$B$47,CntyQryCensus!$A$156:$FR$198,DV$1)","v":2074},{"$f":"VLOOKUP(DropDownList!$B$47,CntyQryCensus!$A$156:$FR$198,DW$1)","v":779},{"$f":"VLOOKUP(DropDownList!$B$47,CntyQryCensus!$A$156:$FR$198,DX$1)","v":1535},{"$f":"VLOOKUP(DropDownList!$B$47,CntyQryCensus!$A$156:$FR$198,DY$1)","v":755},{"$f":"VLOOKUP(DropDownList!$B$47,CntyQryCensus!$A$156:$FR$198,DZ$1)","v":22045},{"$f":"VLOOKUP(DropDownList!$B$47,CntyQryCensus!$A$156:$FR$198,EA$1)","v":15252},{"$f":"VLOOKUP(DropDownList!$B$47,CntyQryCensus!$A$156:$FR$198,EB$1)","v":15232},{"$f":"VLOOKUP(DropDownList!$B$47,CntyQryCensus!$A$156:$FR$198,EC$1)","v":14668},{"$f":"VLOOKUP(DropDownList!$B$47,CntyQryCensus!$A$156:$FR$198,ED$1)","v":7671},{"$f":"VLOOKUP(DropDownList!$B$47,CntyQryCensus!$A$156:$FR$198,EE$1)","v":5986},{"$f":"VLOOKUP(DropDownList!$B$47,CntyQryCensus!$A$156:$FR$198,EF$1)","v":719},{"$f":"VLOOKUP(DropDownList!$B$47,CntyQryCensus!$A$156:$FR$198,EG$1)","v":1072},{"$f":"VLOOKUP(DropDownList!$B$47,CntyQryCensus!$A$156:$FR$198,EH$1)","v":3216},{"$f":"VLOOKUP(DropDownList!$B$47,CntyQryCensus!$A$156:$FR$198,EI$1)","v":3116},{"$f":"VLOOKUP(DropDownList!$B$47,CntyQryCensus!$A$156:$FR$198,EJ$1)","v":100},{"$f":"VLOOKUP(DropDownList!$B$47,CntyQryCensus!$A$156:$FR$198,EK$1)","v":979},{"$f":"VLOOKUP(DropDownList!$B$47,CntyQryCensus!$A$156:$FR$198,EL$1)","v":931},{"$f":"VLOOKUP(DropDownList!$B$47,CntyQryCensus!$A$156:$FR$198,EM$1)","v":48},{"$f":"VLOOKUP(DropDownList!$B$47,CntyQryCensus!$A$156:$FR$198,EN$1)","v":1685},{"$f":"VLOOKUP(DropDownList!$B$47,CntyQryCensus!$A$156:$FR$198,EO$1)","v":457},{"$f":"VLOOKUP(DropDownList!$B$47,CntyQryCensus!$A$156:$FR$198,EP$1)","v":43},{"$f":"VLOOKUP(DropDownList!$B$47,CntyQryCensus!$A$156:$FR$198,EQ$1)","v":267},{"$f":"VLOOKUP(DropDownList!$B$47,CntyQryCensus!$A$156:$FR$198,ER$1)","v":124},{"$f":"VLOOKUP(DropDownList!$B$47,CntyQryCensus!$A$156:$FR$198,ES$1)","v":23},{"$f":"VLOOKUP(DropDownList!$B$47,CntyQryCensus!$A$156:$FR$198,ET$1)","v":1228},{"$f":"VLOOKUP(DropDownList!$B$47,CntyQryCensus!$A$156:$FR$198,EU$1)","v":110},{"$f":"VLOOKUP(DropDownList!$B$47,CntyQryCensus!$A$156:$FR$198,EV$1)","v":795},{"$f":"VLOOKUP(DropDownList!$B$47,CntyQryCensus!$A$156:$FR$198,EW$1)","v":213},{"$f":"VLOOKUP(DropDownList!$B$47,CntyQryCensus!$A$156:$FR$198,EX$1)","v":110},{"$f":"VLOOKUP(DropDownList!$B$47,CntyQryCensus!$A$156:$FR$198,EY$1)","v":14668},{"$f":"VLOOKUP(DropDownList!$B$47,CntyQryCensus!$A$156:$FR$198,EZ$1)","v":119},{"$f":"VLOOKUP(DropDownList!$B$47,CntyQryCensus!$A$156:$FR$198,FA$1)","v":767},{"$f":"VLOOKUP(DropDownList!$B$47,CntyQryCensus!$A$156:$FR$198,FB$1)","v":3525},{"$f":"VLOOKUP(DropDownList!$B$47,CntyQryCensus!$A$156:$FR$198,FC$1)","v":384},{"$f":"VLOOKUP(DropDownList!$B$47,CntyQryCensus!$A$156:$FR$198,FD$1)","v":2394},{"$f":"VLOOKUP(DropDownList!$B$47,CntyQryCensus!$A$156:$FR$198,FE$1)","v":634},{"$f":"VLOOKUP(DropDownList!$B$47,CntyQryCensus!$A$156:$FR$198,FF$1)","v":407},{"$f":"VLOOKUP(DropDownList!$B$47,CntyQryCensus!$A$156:$FR$198,FG$1)","v":846},{"$f":"VLOOKUP(DropDownList!$B$47,CntyQryCensus!$A$156:$FR$198,FH$1)","v":997},{"$f":"VLOOKUP(DropDownList!$B$47,CntyQryCensus!$A$156:$FR$198,FI$1)","v":2549},{"$f":"VLOOKUP(DropDownList!$B$47,CntyQryCensus!$A$156:$FR$198,FJ$1)","v":852},{"$f":"VLOOKUP(DropDownList!$B$47,CntyQryCensus!$A$156:$FR$198,FK$1)","v":567},{"$f":"VLOOKUP(DropDownList!$B$47,CntyQryCensus!$A$156:$FR$198,FL$1)","v":627},{"$f":"VLOOKUP(DropDownList!$B$47,CntyQryCensus!$A$156:$FR$198,FM$1)","v":3673},{"$f":"VLOOKUP(DropDownList!$B$47,CntyQryCensus!$A$156:$FR$198,FN$1)","v":2288},{"$f":"VLOOKUP(DropDownList!$B$47,CntyQryCensus!$A$156:$FR$198,FO$1)","v":4022},{"$f":"VLOOKUP(DropDownList!$B$47,CntyQryCensus!$A$156:$FR$198,FP$1)","v":53},{"$f":"VLOOKUP(DropDownList!$B$47,CntyQryCensus!$A$156:$FR$198,FQ$1)","v":1425},{"$f":"VLOOKUP(DropDownList!$B$47,CntyQryCensus!$A$156:$FR$198,FR$1)","v":3207}]
[]
[]
["Census 2000 SummaryFile3 Sample Data  -  SF3TownQry2aIncomeChar"]
["NAME","LOGRECNO","COUNTY","TotalPop","P52Households1","P52HHInc<10K","P52HHInc10to15K","P52HHInc15to20K","P52HHInc20to25K","P52HHInc25to30K","P52HHInc30to35K","P52HHInc35to40K","P52HHInc40to45K","P52HHInc45to50K","P52HHInc50to60K","P52HHInc60to75K","P52HHInc75to100K","P52HHInc100to125K","P52HHInc125to150K","P52HHInc150to200K","P52HHInc>200K","P53MedianHHInc","P54AggregHHInc","P55Households2","P55HHUnder25yrs","P55HH<25HHInc<10K","P55HH<25HHInc10to15K","P55HH<25HHInc15to20K","P55HH<25HHInc20to25K","P55HH<25HHInc25to30K","P55HH<25HHInc30to35K","P55HH<25HHInc35to40K","P55HH<25HHInc40to45K","P55HH<25HHInc45to50K","P55HH<25HHInc50to60K","P55HH<25HHInc60to75K","P55HH<25HHInc75to100K","P55HH<25HHInc100to125K","P55HH<25HHInc125to150K","P55HH<25HHInc150to200K","P55HH<25HHInc>200K","P55HH25to34yrs","P55HH25to34HHInc<10K","P55HH25to34HHInc10to15K","P55HH25to34HHInc15to20K","P55HH25to34HHInc20to25K","P55HH25to34HHInc25to30K","P55HH25to34HHInc30to35K","P55HH25to34HHInc35to40K","P55HH25to34HHInc40to45K","P55HH25to34HHInc45to50K","P55HH25to34HHInc50to60K","P55HH25to34HHInc60to75K","P55HH25to34HHInc75to100K","P55HH25to34HHInc100to125K","P55HH25to34HHInc125to150K","P55HH25to34HHInc150to200K","P55HH25to34HHInc>200K","P55HH35to44yrs","P55HH35to44HHInc<10K","P55HH35to44HHInc10to15K","P55HH35to44HHInc15to20K","P55HH35to44HHInc20to25K","P55HH35to44HHInc25to30K","P55HH35to44HHInc30to35K","P55HH35to44HHInc35to40K","P55HH35to44HHInc40to45K","P55HH35to44HHInc45to50K","P55HH35to44HHInc50to60K","P55HH35to44HHInc60to75K","P55HH35to44HHInc75to100K","P55HH35to44HHInc100to125K","P55HH35to44HHInc125to150K","P55HH35to44HHInc150to200K","P55HH35to44HHInc>200K","P55HH45to54yrs","P55HH45to55HHInc<10K","P55HH45to55HHInc10to15K","P55HH45to55HHInc15to20K","P55HH45to55HHInc20to25K","P55HH45to55HHInc25to30K","P55HH45to55HHInc30to35K","P55HH45to55HHInc35to40K","P55HH45to55HHInc40to45K","P55HH45to55HHInc45to50K","P55HH45to55HHInc50to60K","P55HH45to55HHInc60to75K","P55HH45to55HHInc75to100K","P55HH45to55HHInc100to125K","P55HH45to55HHInc125to150K","P55HH45to55HHInc150to200K","P55HH45to55HHInc>200K","P55HH55to64yrs","P55HH55to64HHInc<10K","P55HH55to64HHInc10to15K","P55HH55to64HHInc15to20K","P55HH55to64HHInc20to25K","P55HH55to64HHInc25to30K","P55HH55to64HHInc30to35K","P55HH55to64HHInc35to40K","P55HH55to64HHInc40to45K","P55HH55to64HHInc45to50K","P55HH55to64HHInc50to60K","P55HH55to64HHInc60to75K","P55HH55to64HHInc75to100K","P55HH55to64HHInc100to125K","P55HH55to64HHInc125to150K","P55HH55to64HHInc150to200K","P55HH55to64HHInc>200K","P55HH65to74yrs","P55HH65to74HHInc<10K","P55HH65to74HHInc10to15K","P55HH65to74HHInc15to20K","P55HH65to74HHInc20to25K","P55HH65to74HHInc25to30K","P55HH65to74HHInc30to35K","P55HH65to74HHInc35to40K","P55HH65to74HHInc40to45K","P55HH65to74HHInc45to50K","P55HH65to74HHInc50to60K","P55HH65to74HHInc60to75K","P55HH65to74HHInc75to100K","P55HH65to74HHInc100to125K","P55HH65to74HHInc125to150K","P55HH65to74HHInc150to200K","P55HH65to74HHInc>200K","P55HH>75yrs","P55HH>75HHInc<10K","P55HH>75HHInc10to15K","P55HH>75HHInc15to20K","P55HH>75HHInc20to25K","P55HH>75HHInc25to30K","P55HH>75HHInc30to35K","P55HH>75HHInc35to40K","P55HH>75HHInc40to45K","P55HH>75HHInc45to50K","P55HH>75HHInc50to60K","P55HH>75HHInc60to75K","P55HH>75HHInc75to100K","P55HH>75HHInc100to125K","P55HH>75HHInc125to150K","P55HH>75HHInc150to200K","P55HH>75HHInc>200K","P56MedHHInc","P56MedHHIncHH<25y","P56MedHHIncHH25to34y","P56MedHHIncHH35to44y","P56MedHHIncHH45to54y","P56MedHHIncHH55to64y","P56MedHHIncHH65to74y","P56MedHHIncHH>75y","P58Households3","P58HHwithEarnings","P58HHNoEarnings","P59HHwWageSalInc","P59HHNoWageSalInc","P60HHwSelfEmpInc","P60HHNoSelfEmpInc","P61HHwIndDivInc","P61HHNoIndDivInc","P62HHwSocSecInc","P62HHNoSocSecInc","P63HHwSSI","P63HHNoSSI","P64HHwPubAssInc","P64HHNoPubAssInc","P65HHwRetInc","P65HHNoRetInc","P66HHwOtherTypInc","P66HHNoOtherTypInc","P67AggregEarnings","P68AggregWageSalInc","P69AggregSelfEmpInc","P70AggregIntDivInc","P71AggregSocSecInc","P72AggregSSIInc","P73AggregPublicAssInc","P74AggregRetireInc","P76Families1","P76FamInc<10K","P76FamInc10to15K","P76FamInc15to20K","P76FamInc20to25K","P76FamInc25to30K","P76FamInc30to35K","P76FamInc35to40K","P76FamInc40to45K","P76FamInc45to50K","P76FamInc50to60K","P76FamInc60to75K","P76FamInc75to100K","P76FamInc100to125K","P76FamInc125to150K","P76FamInc150to200K","P76FamInc>200K","P77MedFamInc","P78AggregFamInc","P79NonFamHH","P79NonFamHHwInc<10K","P79NonFamHHwInc10to15K","P79NonFamHHwInc15to20K","P79NonFamHHwInc20to25K","P79NonFamHHwInc25to30K","P79NonFamHHwInc30to35K","P79NonFamHHwInc35to40K","P79NonFamHHwInc40to45K","P79NonFamHHwInc45to50K","P79NonFamHHwInc50to60K","P79NonFamHHwInc60to75K","P79NonFamHHwInc75to100K","P79NonFamHHwInc100to125K","P79NonFamHHwInc125to150K","P79NonFamHHwInc150to200K","P79NonFamHHwInc200KorMore","P80MedNonFamInc","P82PerCapitaInc"]
[{"$f":"VLOOKUP(DropDownList!$B$47,CntyQryCensus!$A$206:$HH$248,A$1)","v":"Rochester"},{"$f":"VLOOKUP(DropDownList!$B$47,CntyQryCensus!$A$206:$HH$248,B$1)","v":"0003956"},{"$f":"VLOOKUP(DropDownList!$B$47,CntyQryCensus!$A$206:$HH$248,C$1)","v":"65140"},{"$f":"VLOOKUP(DropDownList!$B$47,CntyQryCensus!$A$206:$HH$248,D$1)","v":28461},{"$f":"VLOOKUP(DropDownList!$B$47,CntyQryCensus!$A$206:$HH$248,E$1)","v":11397},{"$f":"VLOOKUP(DropDownList!$B$47,CntyQryCensus!$A$206:$HH$248,F$1)","v":857},{"$f":"VLOOKUP(DropDownList!$B$47,CntyQryCensus!$A$206:$HH$248,G$1)","v":765},{"$f":"VLOOKUP(DropDownList!$B$47,CntyQryCensus!$A$206:$HH$248,H$1)","v":696},{"$f":"VLOOKUP(DropDownList!$B$47,CntyQryCensus!$A$206:$HH$248,I$1)","v":850},{"$f":"VLOOKUP(DropDownList!$B$47,CntyQryCensus!$A$206:$HH$248,J$1)","v":702},{"$f":"VLOOKUP(DropDownList!$B$47,CntyQryCensus!$A$206:$HH$248,K$1)","v":898},{"$f":"VLOOKUP(DropDownList!$B$47,CntyQryCensus!$A$206:$HH$248,L$1)","v":816},{"$f":"VLOOKUP(DropDownList!$B$47,CntyQryCensus!$A$206:$HH$248,M$1)","v":904},{"$f":"VLOOKUP(DropDownList!$B$47,CntyQryCensus!$A$206:$HH$248,N$1)","v":733},{"$f":"VLOOKUP(DropDownList!$B$47,CntyQryCensus!$A$206:$HH$248,O$1)","v":1170},{"$f":"VLOOKUP(DropDownList!$B$47,CntyQryCensus!$A$206:$HH$248,P$1)","v":1331},{"$f":"VLOOKUP(DropDownList!$B$47,CntyQryCensus!$A$206:$HH$248,Q$1)","v":965},{"$f":"VLOOKUP(DropDownList!$B$47,CntyQryCensus!$A$206:$HH$248,R$1)","v":401},{"$f":"VLOOKUP(DropDownList!$B$47,CntyQryCensus!$A$206:$HH$248,S$1)","v":108},{"$f":"VLOOKUP(DropDownList!$B$47,CntyQryCensus!$A$206:$HH$248,T$1)","v":118},{"$f":"VLOOKUP(DropDownList!$B$47,CntyQryCensus!$A$206:$HH$248,U$1)","v":83},{"$f":"VLOOKUP(DropDownList!$B$47,CntyQryCensus!$A$206:$HH$248,V$1)","v":40596},{"$f":"VLOOKUP(DropDownList!$B$47,CntyQryCensus!$A$206:$HH$248,W$1)","v":531067100},{"$f":"VLOOKUP(DropDownList!$B$47,CntyQryCensus!$A$206:$HH$248,X$1)","v":11397},{"$f":"VLOOKUP(DropDownList!$B$47,CntyQryCensus!$A$206:$HH$248,Y$1)","v":482},{"$f":"VLOOKUP(DropDownList!$B$47,CntyQryCensus!$A$206:$HH$248,Z$1)","v":60},{"$f":"VLOOKUP(DropDownList!$B$47,CntyQryCensus!$A$206:$HH$248,AA$1)","v":56},{"$f":"VLOOKUP(DropDownList!$B$47,CntyQryCensus!$A$206:$HH$248,AB$1)","v":17},{"$f":"VLOOKUP(DropDownList!$B$47,CntyQryCensus!$A$206:$HH$248,AC$1)","v":75},{"$f":"VLOOKUP(DropDownList!$B$47,CntyQryCensus!$A$206:$HH$248,AD$1)","v":30},{"$f":"VLOOKUP(DropDownList!$B$47,CntyQryCensus!$A$206:$HH$248,AE$1)","v":43},{"$f":"VLOOKUP(DropDownList!$B$47,CntyQryCensus!$A$206:$HH$248,AF$1)","v":69},{"$f":"VLOOKUP(DropDownList!$B$47,CntyQryCensus!$A$206:$HH$248,AG$1)","v":41},{"$f":"VLOOKUP(DropDownList!$B$47,CntyQryCensus!$A$206:$HH$248,AH$1)","v":33},{"$f":"VLOOKUP(DropDownList!$B$47,CntyQryCensus!$A$206:$HH$248,AI$1)","v":8},{"$f":"VLOOKUP(DropDownList!$B$47,CntyQryCensus!$A$206:$HH$248,AJ$1)","v":27},{"$f":"VLOOKUP(DropDownList!$B$47,CntyQryCensus!$A$206:$HH$248,AK$1)","v":23},{"$f":"VLOOKUP(DropDownList!$B$47,CntyQryCensus!$A$206:$HH$248,AL$1)","v":0},{"$f":"VLOOKUP(DropDownList!$B$47,CntyQryCensus!$A$206:$HH$248,AM$1)","v":0},{"$f":"VLOOKUP(DropDownList!$B$47,CntyQryCensus!$A$206:$HH$248,AN$1)","v":0},{"$f":"VLOOKUP(DropDownList!$B$47,CntyQryCensus!$A$206:$HH$248,AO$1)","v":0},{"$f":"VLOOKUP(DropDownList!$B$47,CntyQryCensus!$A$206:$HH$248,AP$1)","v":2112},{"$f":"VLOOKUP(DropDownList!$B$47,CntyQryCensus!$A$206:$HH$248,AQ$1)","v":117},{"$f":"VLOOKUP(DropDownList!$B$47,CntyQryCensus!$A$206:$HH$248,AR$1)","v":117},{"$f":"VLOOKUP(DropDownList!$B$47,CntyQryCensus!$A$206:$HH$248,AS$1)","v":130},{"$f":"VLOOKUP(DropDownList!$B$47,CntyQryCensus!$A$206:$HH$248,AT$1)","v":133},{"$f":"VLOOKUP(DropDownList!$B$47,CntyQryCensus!$A$206:$HH$248,AU$1)","v":154},{"$f":"VLOOKUP(DropDownList!$B$47,CntyQryCensus!$A$206:$HH$248,AV$1)","v":130},{"$f":"VLOOKUP(DropDownList!$B$47,CntyQryCensus!$A$206:$HH$248,AW$1)","v":159},{"$f":"VLOOKUP(DropDownList!$B$47,CntyQryCensus!$A$206:$HH$248,AX$1)","v":203},{"$f":"VLOOKUP(DropDownList!$B$47,CntyQryCensus!$A$206:$HH$248,AY$1)","v":210},{"$f":"VLOOKUP(DropDownList!$B$47,CntyQryCensus!$A$206:$HH$248,AZ$1)","v":285},{"$f":"VLOOKUP(DropDownList!$B$47,CntyQryCensus!$A$206:$HH$248,BA$1)","v":304},{"$f":"VLOOKUP(DropDownList!$B$47,CntyQryCensus!$A$206:$HH$248,BB$1)","v":113},{"$f":"VLOOKUP(DropDownList!$B$47,CntyQryCensus!$A$206:$HH$248,BC$1)","v":31},{"$f":"VLOOKUP(DropDownList!$B$47,CntyQryCensus!$A$206:$HH$248,BD$1)","v":26},{"$f":"VLOOKUP(DropDownList!$B$47,CntyQryCensus!$A$206:$HH$248,BE$1)","v":0},{"$f":"VLOOKUP(DropDownList!$B$47,CntyQryCensus!$A$206:$HH$248,BF$1)","v":0},{"$f":"VLOOKUP(DropDownList!$B$47,CntyQryCensus!$A$206:$HH$248,BG$1)","v":2681},{"$f":"VLOOKUP(DropDownList!$B$47,CntyQryCensus!$A$206:$HH$248,BH$1)","v":105},{"$f":"VLOOKUP(DropDownList!$B$47,CntyQryCensus!$A$206:$HH$248,BI$1)","v":102},{"$f":"VLOOKUP(DropDownList!$B$47,CntyQryCensus!$A$206:$HH$248,BJ$1)","v":68},{"$f":"VLOOKUP(DropDownList!$B$47,CntyQryCensus!$A$206:$HH$248,BK$1)","v":130},{"$f":"VLOOKUP(DropDownList!$B$47,CntyQryCensus!$A$206:$HH$248,BL$1)","v":179},{"$f":"VLOOKUP(DropDownList!$B$47,CntyQryCensus!$A$206:$HH$248,BM$1)","v":181},{"$f":"VLOOKUP(DropDownList!$B$47,CntyQryCensus!$A$206:$HH$248,BN$1)","v":171},{"$f":"VLOOKUP(DropDownList!$B$47,CntyQryCensus!$A$206:$HH$248,BO$1)","v":226},{"$f":"VLOOKUP(DropDownList!$B$47,CntyQryCensus!$A$206:$HH$248,BP$1)","v":186},{"$f":"VLOOKUP(DropDownList!$B$47,CntyQryCensus!$A$206:$HH$248,BQ$1)","v":358},{"$f":"VLOOKUP(DropDownList!$B$47,CntyQryCensus!$A$206:$HH$248,BR$1)","v":435},{"$f":"VLOOKUP(DropDownList!$B$47,CntyQryCensus!$A$206:$HH$248,BS$1)","v":295},{"$f":"VLOOKUP(DropDownList!$B$47,CntyQryCensus!$A$206:$HH$248,BT$1)","v":184},{"$f":"VLOOKUP(DropDownList!$B$47,CntyQryCensus!$A$206:$HH$248,BU$1)","v":30},{"$f":"VLOOKUP(DropDownList!$B$47,CntyQryCensus!$A$206:$HH$248,BV$1)","v":19},{"$f":"VLOOKUP(DropDownList!$B$47,CntyQryCensus!$A$206:$HH$248,BW$1)","v":12},{"$f":"VLOOKUP(DropDownList!$B$47,CntyQryCensus!$A$206:$HH$248,BX$1)","v":2146},{"$f":"VLOOKUP(DropDownList!$B$47,CntyQryCensus!$A$206:$HH$248,BY$1)","v":125},{"$f":"VLOOKUP(DropDownList!$B$47,CntyQryCensus!$A$206:$HH$248,BZ$1)","v":59},{"$f":"VLOOKUP(DropDownList!$B$47,CntyQryCensus!$A$206:$HH$248,CA$1)","v":72},{"$f":"VLOOKUP(DropDownList!$B$47,CntyQryCensus!$A$206:$HH$248,CB$1)","v":128},{"$f":"VLOOKUP(DropDownList!$B$47,CntyQryCensus!$A$206:$HH$248,CC$1)","v":86},{"$f":"VLOOKUP(DropDownList!$B$47,CntyQryCensus!$A$206:$HH$248,CD$1)","v":167},{"$f":"VLOOKUP(DropDownList!$B$47,CntyQryCensus!$A$206:$HH$248,CE$1)","v":150},{"$f":"VLOOKUP(DropDownList!$B$47,CntyQryCensus!$A$206:$HH$248,CF$1)","v":201},{"$f":"VLOOKUP(DropDownList!$B$47,CntyQryCensus!$A$206:$HH$248,CG$1)","v":101},{"$f":"VLOOKUP(DropDownList!$B$47,CntyQryCensus!$A$206:$HH$248,CH$1)","v":270},{"$f":"VLOOKUP(DropDownList!$B$47,CntyQryCensus!$A$206:$HH$248,CI$1)","v":276},{"$f":"VLOOKUP(DropDownList!$B$47,CntyQryCensus!$A$206:$HH$248,CJ$1)","v":329},{"$f":"VLOOKUP(DropDownList!$B$47,CntyQryCensus!$A$206:$HH$248,CK$1)","v":87},{"$f":"VLOOKUP(DropDownList!$B$47,CntyQryCensus!$A$206:$HH$248,CL$1)","v":52},{"$f":"VLOOKUP(DropDownList!$B$47,CntyQryCensus!$A$206:$HH$248,CM$1)","v":31},{"$f":"VLOOKUP(DropDownList!$B$47,CntyQryCensus!$A$206:$HH$248,CN$1)","v":12},{"$f":"VLOOKUP(DropDownList!$B$47,CntyQryCensus!$A$206:$HH$248,CO$1)","v":1489},{"$f":"VLOOKUP(DropDownList!$B$47,CntyQryCensus!$A$206:$HH$248,CP$1)","v":119},{"$f":"VLOOKUP(DropDownList!$B$47,CntyQryCensus!$A$206:$HH$248,CQ$1)","v":53},{"$f":"VLOOKUP(DropDownList!$B$47,CntyQryCensus!$A$206:$HH$248,CR$1)","v":69},{"$f":"VLOOKUP(DropDownList!$B$47,CntyQryCensus!$A$206:$HH$248,CS$1)","v":113},{"$f":"VLOOKUP(DropDownList!$B$47,CntyQryCensus!$A$206:$HH$248,CT$1)","v":51},{"$f":"VLOOKUP(DropDownList!$B$47,CntyQryCensus!$A$206:$HH$248,CU$1)","v":130},{"$f":"VLOOKUP(DropDownList!$B$47,CntyQryCensus!$A$206:$HH$248,CV$1)","v":111},{"$f":"VLOOKUP(DropDownList!$B$47,CntyQryCensus!$A$206:$HH$248,CW$1)","v":131},{"$f":"VLOOKUP(DropDownList!$B$47,CntyQryCensus!$A$206:$HH$248,CX$1)","v":153},{"$f":"VLOOKUP(DropDownList!$B$47,CntyQryCensus!$A$206:$HH$248,CY$1)","v":128},{"$f":"VLOOKUP(DropDownList!$B$47,CntyQryCensus!$A$206:$HH$248,CZ$1)","v":143},{"$f":"VLOOKUP(DropDownList!$B$47,CntyQryCensus!$A$206:$HH$248,DA$1)","v":138},{"$f":"VLOOKUP(DropDownList!$B$47,CntyQryCensus!$A$206:$HH$248,DB$1)","v":66},{"$f":"VLOOKUP(DropDownList!$B$47,CntyQryCensus!$A$206:$HH$248,DC$1)","v":0},{"$f":"VLOOKUP(DropDownList!$B$47,CntyQryCensus!$A$206:$HH$248,DD$1)","v":48},{"$f":"VLOOKUP(DropDownList!$B$47,CntyQryCensus!$A$206:$HH$248,DE$1)","v":36},{"$f":"VLOOKUP(DropDownList!$B$47,CntyQryCensus!$A$206:$HH$248,DF$1)","v":1342},{"$f":"VLOOKUP(DropDownList!$B$47,CntyQryCensus!$A$206:$HH$248,DG$1)","v":130},{"$f":"VLOOKUP(DropDownList!$B$47,CntyQryCensus!$A$206:$HH$248,DH$1)","v":141},{"$f":"VLOOKUP(DropDownList!$B$47,CntyQryCensus!$A$206:$HH$248,DI$1)","v":200},{"$f":"VLOOKUP(DropDownList!$B$47,CntyQryCensus!$A$206:$HH$248,DJ$1)","v":121},{"$f":"VLOOKUP(DropDownList!$B$47,CntyQryCensus!$A$206:$HH$248,DK$1)","v":114},{"$f":"VLOOKUP(DropDownList!$B$47,CntyQryCensus!$A$206:$HH$248,DL$1)","v":173},{"$f":"VLOOKUP(DropDownList!$B$47,CntyQryCensus!$A$206:$HH$248,DM$1)","v":108},{"$f":"VLOOKUP(DropDownList!$B$47,CntyQryCensus!$A$206:$HH$248,DN$1)","v":67},{"$f":"VLOOKUP(DropDownList!$B$47,CntyQryCensus!$A$206:$HH$248,DO$1)","v":31},{"$f":"VLOOKUP(DropDownList!$B$47,CntyQryCensus!$A$206:$HH$248,DP$1)","v":57},{"$f":"VLOOKUP(DropDownList!$B$47,CntyQryCensus!$A$206:$HH$248,DQ$1)","v":122},{"$f":"VLOOKUP(DropDownList!$B$47,CntyQryCensus!$A$206:$HH$248,DR$1)","v":39},{"$f":"VLOOKUP(DropDownList!$B$47,CntyQryCensus!$A$206:$HH$248,DS$1)","v":25},{"$f":"VLOOKUP(DropDownList!$B$47,CntyQryCensus!$A$206:$HH$248,DT$1)","v":0},{"$f":"VLOOKUP(DropDownList!$B$47,CntyQryCensus!$A$206:$HH$248,DU$1)","v":14},{"$f":"VLOOKUP(DropDownList!$B$47,CntyQryCensus!$A$206:$HH$248,DV$1)","v":0},{"$f":"VLOOKUP(DropDownList!$B$47,CntyQryCensus!$A$206:$HH$248,DW$1)","v":1145},{"$f":"VLOOKUP(DropDownList!$B$47,CntyQryCensus!$A$206:$HH$248,DX$1)","v":201},{"$f":"VLOOKUP(DropDownList!$B$47,CntyQryCensus!$A$206:$HH$248,DY$1)","v":237},{"$f":"VLOOKUP(DropDownList!$B$47,CntyQryCensus!$A$206:$HH$248,DZ$1)","v":140},{"$f":"VLOOKUP(DropDownList!$B$47,CntyQryCensus!$A$206:$HH$248,EA$1)","v":150},{"$f":"VLOOKUP(DropDownList!$B$47,CntyQryCensus!$A$206:$HH$248,EB$1)","v":88},{"$f":"VLOOKUP(DropDownList!$B$47,CntyQryCensus!$A$206:$HH$248,EC$1)","v":74},{"$f":"VLOOKUP(DropDownList!$B$47,CntyQryCensus!$A$206:$HH$248,ED$1)","v":48},{"$f":"VLOOKUP(DropDownList!$B$47,CntyQryCensus!$A$206:$HH$248,EE$1)","v":35},{"$f":"VLOOKUP(DropDownList!$B$47,CntyQryCensus!$A$206:$HH$248,EF$1)","v":19},{"$f":"VLOOKUP(DropDownList!$B$47,CntyQryCensus!$A$206:$HH$248,EG$1)","v":64},{"$f":"VLOOKUP(DropDownList!$B$47,CntyQryCensus!$A$206:$HH$248,EH$1)","v":24},{"$f":"VLOOKUP(DropDownList!$B$47,CntyQryCensus!$A$206:$HH$248,EI$1)","v":28},{"$f":"VLOOKUP(DropDownList!$B$47,CntyQryCensus!$A$206:$HH$248,EJ$1)","v":8},{"$f":"VLOOKUP(DropDownList!$B$47,CntyQryCensus!$A$206:$HH$248,EK$1)","v":0},{"$f":"VLOOKUP(DropDownList!$B$47,CntyQryCensus!$A$206:$HH$248,EL$1)","v":6},{"$f":"VLOOKUP(DropDownList!$B$47,CntyQryCensus!$A$206:$HH$248,EM$1)","v":23},{"$f":"VLOOKUP(DropDownList!$B$47,CntyQryCensus!$A$206:$HH$248,EN$1)","v":40596},{"$f":"VLOOKUP(DropDownList!$B$47,CntyQryCensus!$A$206:$HH$248,EO$1)","v":30313},{"$f":"VLOOKUP(DropDownList!$B$47,CntyQryCensus!$A$206:$HH$248,EP$1)","v":42302},{"$f":"VLOOKUP(DropDownList!$B$47,CntyQryCensus!$A$206:$HH$248,EQ$1)","v":49740},{"$f":"VLOOKUP(DropDownList!$B$47,CntyQryCensus!$A$206:$HH$248,ER$1)","v":49149},{"$f":"VLOOKUP(DropDownList!$B$47,CntyQryCensus!$A$206:$HH$248,ES$1)","v":43917},{"$f":"VLOOKUP(DropDownList!$B$47,CntyQryCensus!$A$206:$HH$248,ET$1)","v":28250},{"$f":"VLOOKUP(DropDownList!$B$47,CntyQryCensus!$A$206:$HH$248,EU$1)","v":19771},{"$f":"VLOOKUP(DropDownList!$B$47,CntyQryCensus!$A$206:$HH$248,EV$1)","v":11397},{"$f":"VLOOKUP(DropDownList!$B$47,CntyQryCensus!$A$206:$HH$248,EW$1)","v":9126},{"$f":"VLOOKUP(DropDownList!$B$47,CntyQryCensus!$A$206:$HH$248,EX$1)","v":2271},{"$f":"VLOOKUP(DropDownList!$B$47,CntyQryCensus!$A$206:$HH$248,EY$1)","v":8956},{"$f":"VLOOKUP(DropDownList!$B$47,CntyQryCensus!$A$206:$HH$248,EZ$1)","v":2441},{"$f":"VLOOKUP(DropDownList!$B$47,CntyQryCensus!$A$206:$HH$248,FA$1)","v":994},{"$f":"VLOOKUP(DropDownList!$B$47,CntyQryCensus!$A$206:$HH$248,FB$1)","v":10403},{"$f":"VLOOKUP(DropDownList!$B$47,CntyQryCensus!$A$206:$HH$248,FC$1)","v":3672},{"$f":"VLOOKUP(DropDownList!$B$47,CntyQryCensus!$A$206:$HH$248,FD$1)","v":7725},{"$f":"VLOOKUP(DropDownList!$B$47,CntyQryCensus!$A$206:$HH$248,FE$1)","v":3160},{"$f":"VLOOKUP(DropDownList!$B$47,CntyQryCensus!$A$206:$HH$248,FF$1)","v":8237},{"$f":"VLOOKUP(DropDownList!$B$47,CntyQryCensus!$A$206:$HH$248,FG$1)","v":439},{"$f":"VLOOKUP(DropDownList!$B$47,CntyQryCensus!$A$206:$HH$248,FH$1)","v":10958},{"$f":"VLOOKUP(DropDownList!$B$47,CntyQryCensus!$A$206:$HH$248,FI$1)","v":625},{"$f":"VLOOKUP(DropDownList!$B$47,CntyQryCensus!$A$206:$HH$248,FJ$1)","v":10772},{"$f":"VLOOKUP(DropDownList!$B$47,CntyQryCensus!$A$206:$HH$248,FK$1)","v":2234},{"$f":"VLOOKUP(DropDownList!$B$47,CntyQryCensus!$A$206:$HH$248,FL$1)","v":9163},{"$f":"VLOOKUP(DropDownList!$B$47,CntyQryCensus!$A$206:$HH$248,FM$1)","v":1743},{"$f":"VLOOKUP(DropDownList!$B$47,CntyQryCensus!$A$206:$HH$248,FN$1)","v":9654},{"$f":"VLOOKUP(DropDownList!$B$47,CntyQryCensus!$A$206:$HH$248,FO$1)","v":427659500},{"$f":"VLOOKUP(DropDownList!$B$47,CntyQryCensus!$A$206:$HH$248,FP$1)","v":407922300},{"$f":"VLOOKUP(DropDownList!$B$47,CntyQryCensus!$A$206:$HH$248,FQ$1)","v":19737300},{"$f":"VLOOKUP(DropDownList!$B$47,CntyQryCensus!$A$206:$HH$248,FR$1)","v":23516400},{"$f":"VLOOKUP(DropDownList!$B$47,CntyQryCensus!$A$206:$HH$248,FS$1)","v":34125200},{"$f":"VLOOKUP(DropDownList!$B$47,CntyQryCensus!$A$206:$HH$248,FT$1)","v":2767100},{"$f":"VLOOKUP(DropDownList!$B$47,CntyQryCensus!$A$206:$HH$248,FU$1)","v":1751100},{"$f":"VLOOKUP(DropDownList!$B$47,CntyQryCensus!$A$206:$HH$248,FV$1)","v":27282400},{"$f":"VLOOKUP(DropDownList!$B$47,CntyQryCensus!$A$206:$HH$248,FW$1)","v":7671},{"$f":"VLOOKUP(DropDownList!$B$47,CntyQryCensus!$A$206:$HH$248,FX$1)","v":307},{"$f":"VLOOKUP(DropDownList!$B$47,CntyQryCensus!$A$206:$HH$248,FY$1)","v":345},{"$f":"VLOOKUP(DropDownList!$B$47,CntyQryCensus!$A$206:$HH$248,FZ$1)","v":383},{"$f":"VLOOKUP(DropDownList!$B$47,CntyQryCensus!$A$206:$HH$248,GA$1)","v":393},{"$f":"VLOOKUP(DropDownList!$B$47,CntyQryCensus!$A$206:$HH$248,GB$1)","v":375},{"$f":"VLOOKUP(DropDownList!$B$47,CntyQryCensus!$A$206:$HH$248,GC$1)","v":555},{"$f":"VLOOKUP(DropDownList!$B$47,CntyQryCensus!$A$206:$HH$248,GD$1)","v":499},{"$f":"VLOOKUP(DropDownList!$B$47,CntyQryCensus!$A$206:$HH$248,GE$1)","v":628},{"$f":"VLOOKUP(DropDownList!$B$47,CntyQryCensus!$A$206:$HH$248,GF$1)","v":630},{"$f":"VLOOKUP(DropDownList!$B$47,CntyQryCensus!$A$206:$HH$248,GG$1)","v":991},{"$f":"VLOOKUP(DropDownList!$B$47,CntyQryCensus!$A$206:$HH$248,GH$1)","v":1060},{"$f":"VLOOKUP(DropDownList!$B$47,CntyQryCensus!$A$206:$HH$248,GI$1)","v":858},{"$f":"VLOOKUP(DropDownList!$B$47,CntyQryCensus!$A$206:$HH$248,GJ$1)","v":378},{"$f":"VLOOKUP(DropDownList!$B$47,CntyQryCensus!$A$206:$HH$248,GK$1)","v":102},{"$f":"VLOOKUP(DropDownList!$B$47,CntyQryCensus!$A$206:$HH$248,GL$1)","v":96},{"$f":"VLOOKUP(DropDownList!$B$47,CntyQryCensus!$A$206:$HH$248,GM$1)","v":71},{"$f":"VLOOKUP(DropDownList!$B$47,CntyQryCensus!$A$206:$HH$248,GN$1)","v":47324},{"$f":"VLOOKUP(DropDownList!$B$47,CntyQryCensus!$A$206:$HH$248,GO$1)","v":411636500},{"$f":"VLOOKUP(DropDownList!$B$47,CntyQryCensus!$A$206:$HH$248,GP$1)","v":3726},{"$f":"VLOOKUP(DropDownList!$B$47,CntyQryCensus!$A$206:$HH$248,GQ$1)","v":603},{"$f":"VLOOKUP(DropDownList!$B$47,CntyQryCensus!$A$206:$HH$248,GR$1)","v":501},{"$f":"VLOOKUP(DropDownList!$B$47,CntyQryCensus!$A$206:$HH$248,GS$1)","v":345},{"$f":"VLOOKUP(DropDownList!$B$47,CntyQryCensus!$A$206:$HH$248,GT$1)","v":473},{"$f":"VLOOKUP(DropDownList!$B$47,CntyQryCensus!$A$206:$HH$248,GU$1)","v":312},{"$f":"VLOOKUP(DropDownList!$B$47,CntyQryCensus!$A$206:$HH$248,GV$1)","v":379},{"$f":"VLOOKUP(DropDownList!$B$47,CntyQryCensus!$A$206:$HH$248,GW$1)","v":273},{"$f":"VLOOKUP(DropDownList!$B$47,CntyQryCensus!$A$206:$HH$248,GX$1)","v":255},{"$f":"VLOOKUP(DropDownList!$B$47,CntyQryCensus!$A$206:$HH$248,GY$1)","v":86},{"$f":"VLOOKUP(DropDownList!$B$47,CntyQryCensus!$A$206:$HH$248,GZ$1)","v":154},{"$f":"VLOOKUP(DropDownList!$B$47,CntyQryCensus!$A$206:$HH$248,HA$1)","v":208},{"$f":"VLOOKUP(DropDownList!$B$47,CntyQryCensus!$A$206:$HH$248,HB$1)","v":86},{"$f":"VLOOKUP(DropDownList!$B$47,CntyQryCensus!$A$206:$HH$248,HC$1)","v":11},{"$f":"VLOOKUP(DropDownList!$B$47,CntyQryCensus!$A$206:$HH$248,HD$1)","v":6},{"$f":"VLOOKUP(DropDownList!$B$47,CntyQryCensus!$A$206:$HH$248,HE$1)","v":22},{"$f":"VLOOKUP(DropDownList!$B$47,CntyQryCensus!$A$206:$HH$248,HF$1)","v":12},{"$f":"VLOOKUP(DropDownList!$B$47,CntyQryCensus!$A$206:$HH$248,HG$1)","v":24244},{"$f":"VLOOKUP(DropDownList!$B$47,CntyQryCensus!$A$206:$HH$248,HH$1)","v":18859}]
[]
[]
["Census 2000 SummaryFile3 Sample Data  -  SF3TownQry2bPovertyChar"]
["NAME","LOGRECNO","COUNTY","TotalPop","P52Households1","P82PerCapitaInc","P87PopForPovStatus","P87PopWIncBelowPovStatus","P87PopUnder5yrBelowPoverty","P87Pop5yrBelowPoverty","P87Pop5to11yrBelowPoverty","P87Pop12to17yrBelowPoverty","P87Pop18to64yrBelowPoverty","P87Pop65to74yrBelowPoverty","P87PopOver75yrBelowPoverty","P87PopWIncAbovePovStatus","P87PopUnder5yrAbovePoverty","P87Pop5yrAbovePoverty","P87Pop5to11yrAbovePoverty","P87Pop12to17yrAbovePoverty","P87Pop18to64yrAbovePoverty","P87Pop65to74yrAbovePoverty","P87PopOver75yrAbovePoverty","P90Families","P90FamWIncBelowPov","P90MarCupFamWIncBelowPov","P90MCFamWRltdChld<18WIncBelowPov","P90MCFamWRltdChld<5WIncBelowPov","P90MaleHhlrWIncBelowPov","P90MaleHhlrWRltdChld<18yrWIncBelowPov","P90MaleHhlrWRltdChld<5yrWIncBelowPov","P90FemaleHhlrWIncBelowPov","P90FemaleHhlrWRltdChld<18yWIncBelowPov","P90FemaleHhlrWRltdChld<5yWIncBelowPov","P90FamWIncAbovePov","P90MarCupFamWIncAbovePov","P90MCFamWRltdChld<18WIncAbovePov","P90MCFamWRltdChld<5WIncAbovePov","P90MaleHhlrWIncAbovePov","P90MaleHhlrWRltdChld<18yrWIncAbovePov","P90MaleHhlrWRltdChld<5yrWIncAbovePov","P90FemaleHhlrWIncAbovePov","P90FemaleHhlrWRltdChld<18yWIncAbovePov","P90FemaleHhlrWRltdChld<5yWIncAbovePov","P92Households","P92HHwIncBelowPov","P92FamHHwIncBelowPov","P92MCFamHHwIncBelowPov","P92MaleFamHHwIncBelowPov","P92FemaleFamHHwIncBelowPov","P92NonFamHHwIncBelowPov","P92NonFamMaleHHwIncBelowPov","P92NonFamFemaleHHwIncBelowPov","P92HHwIncAbovePov","P92FamHHwIncAbovePov","P92MCFamHHwIncAbovePov","P92MaleFamHHwIncAbovePov","P92FemaleFamHHwIncAbovePov","P92NonFamHHwIncAbovePov","P92NonFamMaleHHwIncAbovePov","P92NonFamFemaleHHwIncAbovePov"]
[{"$f":"VLOOKUP(DropDownList!$B$47,CntyQryCensus!$A$256:$BI$298,A$1)","v":"Rochester"},{"$f":"VLOOKUP(DropDownList!$B$47,CntyQryCensus!$A$256:$BI$298,B$1)","v":"0003956"},{"$f":"VLOOKUP(DropDownList!$B$47,CntyQryCensus!$A$256:$BI$298,C$1)","v":"65140"},{"$f":"VLOOKUP(DropDownList!$B$47,CntyQryCensus!$A$256:$BI$298,D$1)","v":28461},{"$f":"VLOOKUP(DropDownList!$B$47,CntyQryCensus!$A$256:$BI$298,E$1)","v":11397},{"$f":"VLOOKUP(DropDownList!$B$47,CntyQryCensus!$A$256:$BI$298,F$1)","v":18859},{"$f":"VLOOKUP(DropDownList!$B$47,CntyQryCensus!$A$256:$BI$298,G$1)","v":28140},{"$f":"VLOOKUP(DropDownList!$B$47,CntyQryCensus!$A$256:$BI$298,H$1)","v":2357},{"$f":"VLOOKUP(DropDownList!$B$47,CntyQryCensus!$A$256:$BI$298,I$1)","v":244},{"$f":"VLOOKUP(DropDownList!$B$47,CntyQryCensus!$A$256:$BI$298,J$1)","v":66},{"$f":"VLOOKUP(DropDownList!$B$47,CntyQryCensus!$A$256:$BI$298,K$1)","v":276},{"$f":"VLOOKUP(DropDownList!$B$47,CntyQryCensus!$A$256:$BI$298,L$1)","v":290},{"$f":"VLOOKUP(DropDownList!$B$47,CntyQryCensus!$A$256:$BI$298,M$1)","v":1165},{"$f":"VLOOKUP(DropDownList!$B$47,CntyQryCensus!$A$256:$BI$298,N$1)","v":114},{"$f":"VLOOKUP(DropDownList!$B$47,CntyQryCensus!$A$256:$BI$298,O$1)","v":202},{"$f":"VLOOKUP(DropDownList!$B$47,CntyQryCensus!$A$256:$BI$298,P$1)","v":25783},{"$f":"VLOOKUP(DropDownList!$B$47,CntyQryCensus!$A$256:$BI$298,Q$1)","v":1611},{"$f":"VLOOKUP(DropDownList!$B$47,CntyQryCensus!$A$256:$BI$298,R$1)","v":257},{"$f":"VLOOKUP(DropDownList!$B$47,CntyQryCensus!$A$256:$BI$298,S$1)","v":2061},{"$f":"VLOOKUP(DropDownList!$B$47,CntyQryCensus!$A$256:$BI$298,T$1)","v":2297},{"$f":"VLOOKUP(DropDownList!$B$47,CntyQryCensus!$A$256:$BI$298,U$1)","v":16264},{"$f":"VLOOKUP(DropDownList!$B$47,CntyQryCensus!$A$256:$BI$298,V$1)","v":1960},{"$f":"VLOOKUP(DropDownList!$B$47,CntyQryCensus!$A$256:$BI$298,W$1)","v":1333},{"$f":"VLOOKUP(DropDownList!$B$47,CntyQryCensus!$A$256:$BI$298,X$1)","v":7671},{"$f":"VLOOKUP(DropDownList!$B$47,CntyQryCensus!$A$256:$BI$298,Y$1)","v":481},{"$f":"VLOOKUP(DropDownList!$B$47,CntyQryCensus!$A$256:$BI$298,Z$1)","v":130},{"$f":"VLOOKUP(DropDownList!$B$47,CntyQryCensus!$A$256:$BI$298,AA$1)","v":65},{"$f":"VLOOKUP(DropDownList!$B$47,CntyQryCensus!$A$256:$BI$298,AB$1)","v":15},{"$f":"VLOOKUP(DropDownList!$B$47,CntyQryCensus!$A$256:$BI$298,AC$1)","v":26},{"$f":"VLOOKUP(DropDownList!$B$47,CntyQryCensus!$A$256:$BI$298,AD$1)","v":21},{"$f":"VLOOKUP(DropDownList!$B$47,CntyQryCensus!$A$256:$BI$298,AE$1)","v":0},{"$f":"VLOOKUP(DropDownList!$B$47,CntyQryCensus!$A$256:$BI$298,AF$1)","v":325},{"$f":"VLOOKUP(DropDownList!$B$47,CntyQryCensus!$A$256:$BI$298,AG$1)","v":313},{"$f":"VLOOKUP(DropDownList!$B$47,CntyQryCensus!$A$256:$BI$298,AH$1)","v":87},{"$f":"VLOOKUP(DropDownList!$B$47,CntyQryCensus!$A$256:$BI$298,AI$1)","v":7190},{"$f":"VLOOKUP(DropDownList!$B$47,CntyQryCensus!$A$256:$BI$298,AJ$1)","v":5856},{"$f":"VLOOKUP(DropDownList!$B$47,CntyQryCensus!$A$256:$BI$298,AK$1)","v":2674},{"$f":"VLOOKUP(DropDownList!$B$47,CntyQryCensus!$A$256:$BI$298,AL$1)","v":608},{"$f":"VLOOKUP(DropDownList!$B$47,CntyQryCensus!$A$256:$BI$298,AM$1)","v":431},{"$f":"VLOOKUP(DropDownList!$B$47,CntyQryCensus!$A$256:$BI$298,AN$1)","v":301},{"$f":"VLOOKUP(DropDownList!$B$47,CntyQryCensus!$A$256:$BI$298,AO$1)","v":80},{"$f":"VLOOKUP(DropDownList!$B$47,CntyQryCensus!$A$256:$BI$298,AP$1)","v":903},{"$f":"VLOOKUP(DropDownList!$B$47,CntyQryCensus!$A$256:$BI$298,AQ$1)","v":594},{"$f":"VLOOKUP(DropDownList!$B$47,CntyQryCensus!$A$256:$BI$298,AR$1)","v":118},{"$f":"VLOOKUP(DropDownList!$B$47,CntyQryCensus!$A$256:$BI$298,AS$1)","v":11397},{"$f":"VLOOKUP(DropDownList!$B$47,CntyQryCensus!$A$256:$BI$298,AT$1)","v":986},{"$f":"VLOOKUP(DropDownList!$B$47,CntyQryCensus!$A$256:$BI$298,AU$1)","v":481},{"$f":"VLOOKUP(DropDownList!$B$47,CntyQryCensus!$A$256:$BI$298,AV$1)","v":130},{"$f":"VLOOKUP(DropDownList!$B$47,CntyQryCensus!$A$256:$BI$298,AW$1)","v":26},{"$f":"VLOOKUP(DropDownList!$B$47,CntyQryCensus!$A$256:$BI$298,AX$1)","v":325},{"$f":"VLOOKUP(DropDownList!$B$47,CntyQryCensus!$A$256:$BI$298,AY$1)","v":505},{"$f":"VLOOKUP(DropDownList!$B$47,CntyQryCensus!$A$256:$BI$298,AZ$1)","v":133},{"$f":"VLOOKUP(DropDownList!$B$47,CntyQryCensus!$A$256:$BI$298,BA$1)","v":372},{"$f":"VLOOKUP(DropDownList!$B$47,CntyQryCensus!$A$256:$BI$298,BB$1)","v":10411},{"$f":"VLOOKUP(DropDownList!$B$47,CntyQryCensus!$A$256:$BI$298,BC$1)","v":7190},{"$f":"VLOOKUP(DropDownList!$B$47,CntyQryCensus!$A$256:$BI$298,BD$1)","v":5856},{"$f":"VLOOKUP(DropDownList!$B$47,CntyQryCensus!$A$256:$BI$298,BE$1)","v":431},{"$f":"VLOOKUP(DropDownList!$B$47,CntyQryCensus!$A$256:$BI$298,BF$1)","v":903},{"$f":"VLOOKUP(DropDownList!$B$47,CntyQryCensus!$A$256:$BI$298,BG$1)","v":3221},{"$f":"VLOOKUP(DropDownList!$B$47,CntyQryCensus!$A$256:$BI$298,BH$1)","v":1579},{"$f":"VLOOKUP(DropDownList!$B$47,CntyQryCensus!$A$256:$BI$298,BI$1)","v":1642}]
[null,null,null,null,null,null,null,null,null,null,null,null,null,null,null,null,null,null,{"$f":"SUM(R60:T60)","v":4615}]
[]
["Census 2000 SummaryFile3 Sample Data  -  SF3TownQry7HousingA"]
["NAME","LOGRECNO","COUNTY","TotalPop","H1HousingUnitsTotal","H2SampleHU","H2SampleOccHU","H2SampleVacHU","H3HU100pctCount","H5HUTotal","H5HUUrban","H5HUUrbanInUrbanAreas","H5HUUrbanInUrbanClusters","H5HURural","H5HURuralFarm","H5HURuralNonFarm","H7HUOcc","H7HUOwnrOcc","H7HURentrOcc","H8HUVacant","H8HUVacantForRent","H8HUVacantForSale","H8HUVacRentedorSold","H8HUVacSeasonal","H8HUVacForMigrantWrkrs","H8HUOtherVacant","H14OccHUa","H14OwnerOccHU","H14OwnOccHuHh15to24","H14OwnOccHuHh25to34","H14OwnOccHuHh35to44","H14OwnOccHuHh45to54","H14OwnOccHuHh55to59","H14OwnOccHuHh60to64","H14OwnOccHuHh65to74","H14OwnOccHuHh75to84","H14OwnOccHuHh85Over","H14RenterOccHU1","H14RntrOccHuHh15to24","H14RntrOccHuHh25to34","H14RntrOccHuHh35to44","H14RntrOccHuHh45to54","H14RntrOccHuHh55to59","H14RntrOccHuHh60to64","H14RntrOccHuHh65to74","H14RntrOccHuHh75to84","H14RntrOccHuHh85Over","H15PopInOccHU","H15PopInOwnOccHU1","H15PopInRentOccHU1","H17OccupHUb","H17OwnOccHU2","H17OwnOccHU1PersonHH","H17OwnOccHU2PersonHH","H17OwnOccHU3PersonHH","H17OwnOccHU4PersonHH","H17OwnOccHU5PersonHH","H17OwnOccHU6PersonHH","H17OwnOccHU7PlusPersonHH","H17RentOccHU2","H17RntOccHU1PersonHH","H17RntOccHU2PersonHH","H17RntOccHU3PersonHH","H17RntOccHU4PersonHH","H17RntOccHU5PersonHH","H17RntOccHU6PersonHH","H17RntOccHU7PlusPersonHH","H18AvgHHSize","H18AvgHHSizeOwnOcc","H18AvgHHSizeRentOcc","H23TotHU","H23HU1Room","H23HU2Room","H23HU3Room","H23HU4Room","H23HU5Room","H23HU6Room","H23HU7Room","H23HU8Room","H23HU9orMoreRoom","H24MedianNumRooms","H25AggregNumRooms","H30TotalHU","H30Det1HU","H30Att1HU","H30Units2","H30Units3or4","H30Units5to9","H30Units10to19","H30Units20to49","H30Units50orMore","H30UnitsMobileHome","H30UnitsBoatRv","H32OccHUcTotal","H32OwnerOccHU3","H32OwnOccHU1Det","H32OwnOccHU1Att","H32OwnOccHU2Unit","H32OwnOccHU3to4Unit","H32OwnOccHU5to9Unit","H32OwnOccHU10to19Unit","H32OwnOccHU20to49Unit","H32OwnOccHU50plusUnit","H32OwnOccHUMobHom","H32OwnOccHUBoatRVOth","H32RentrOccHU3","H32RntrOccHU1Det","H32RntrOccHU1Att","H32RntrOccHU2Unit","H32RntrOccHU3to4Unit","H32RntrOccHU5to9Unit","H32RntrOccHU10to19Unit","H32RntrOccHU20to49Unit","H32RntrOccHU50PlusUnit","H32RntrOccHUMobHom","H32RntrOccHUBoatRVOth","H33TotPopInOccHU","H33PopInOwnOccHU2","H33PopInOOHU1Det","H33PopInOOHU1Att","H33PopInOOHU2unit","H33PopInOOHU3to4Unit","H33PopInOOHU5to9Unit","H33PopInOOHU10to19Unit","H33PopInOOHU20to49Unit","H33PopInOOHU50PlusUnit","H33PopInOOHUMobilHome","H33PopInOOHUOtherUnit","H33PopInRentOccHU2","H33PopInROHU1Det","H33PopInROHU1Att","H33PopInROHU2Unit","H33PopInROHU3to4Unit","H33PopInROHU5to9Unit","H33PopInROHU10to19Unit","H33PopInROHU20to49Unit","H33PopInROHU50PlusUnit","H33PopInROHUMobilHome","H33PopInROHUOtherUnit","H36OccHousingUnitsdTotal","H36OwnerOccHU4","H36OOHUBuilt99to0300","H36OOHUBuilt95to98","H36OOHUBuilt90to94","H36OOHUBuilt80to89","H36OOHUBuilt70to79","H36OOHUBuilt60to69","H36OOHUBuilt50to59","H36OOHUBuilt40to49","H36OOHUBuilt39Earlier","H36RentOccHU4","H36ROHUBuilt99to0300","H36ROHUBuilt95to98","H36ROHUBuilt90to94","H36ROHUBuilt80to89","H36ROHUBuilt70to79","H36ROHUBuilt60to69","H36ROHUBuilt50to59","H36ROHUBuilt40to49","H36ROHUBuilt39Earlier","H40OccupHousUnitse","H40HeatFuelUtilGas","H40HeatFuelBotGas","H40HeatFuelElect","H40HeatFuelOilKero","H40HeatFuelCoal","H40HeatFuelWood","H40HeatFuelSolar","H40HeatFuelOther","H40HeatFuelNone","H41TotalHU","H41HUNoBdrm","H41HU1Bdrm","H41HU2Bdrm","H41HU3Bdrm","H41HU4Bdrm","H41HU5MoreBdrm","H42OccuHousUnitf","H42OwnerOccHU5","H42OOHUNoBdrm","H42OOHU1Bdrm","H42OOHU2Bdrm","H42OOHU3Bdrm","H42OOHU4Bdrm","H42OOHU5PlusBdrm","H42RentOccHU5","H42ROHUNoBdrm","H42ROHU1Bdrm","H42ROHU2Bdrm","H42ROHU3Bdrm","H42ROHU4Bdrm","H42ROHU5PlusBdrm","H48OccupHousUnitsg","H48OwnerOccHU6","H48OOHUwCompltPlumFacil","H48OOHULackCompltPlumFacil","H48RentOccHU6","H48ROHUwCompltPlumFacil","H48ROHULackCompltPlumFacil","H51OccupHousUnitf","H51OwnerOccHU7","H51OOHUwCompleteKitFacil","H51OOHULackCompleteKitFacil","H51RenterOccHU7","H51ROHUwCompleteKitFacil","H51ROHULackCompleteKitFacil"]
[{"$f":"VLOOKUP(DropDownList!$B47,CntyQryCensus!$A$306:$GX$348,A$1)","v":"Rochester"},{"$f":"VLOOKUP(DropDownList!$B47,CntyQryCensus!$A$306:$GX$348,B$1)","v":"0003956"},{"$f":"VLOOKUP(DropDownList!$B47,CntyQryCensus!$A$306:$GX$348,C$1)","v":"65140"},{"$f":"VLOOKUP(DropDownList!$B47,CntyQryCensus!$A$306:$GX$348,D$1)","v":28461},{"$f":"VLOOKUP(DropDownList!$B47,CntyQryCensus!$A$306:$GX$348,E$1)","v":11836},{"$f":"VLOOKUP(DropDownList!$B47,CntyQryCensus!$A$306:$GX$348,F$1)","v":1590},{"$f":"VLOOKUP(DropDownList!$B47,CntyQryCensus!$A$306:$GX$348,G$1)","v":1542},{"$f":"VLOOKUP(DropDownList!$B47,CntyQryCensus!$A$306:$GX$348,H$1)","v":48},{"$f":"VLOOKUP(DropDownList!$B47,CntyQryCensus!$A$306:$GX$348,I$1)","v":11836},{"$f":"VLOOKUP(DropDownList!$B47,CntyQryCensus!$A$306:$GX$348,J$1)","v":11836},{"$f":"VLOOKUP(DropDownList!$B47,CntyQryCensus!$A$306:$GX$348,K$1)","v":9512},{"$f":"VLOOKUP(DropDownList!$B47,CntyQryCensus!$A$306:$GX$348,L$1)","v":9512},{"$f":"VLOOKUP(DropDownList!$B47,CntyQryCensus!$A$306:$GX$348,M$1)","v":0},{"$f":"VLOOKUP(DropDownList!$B47,CntyQryCensus!$A$306:$GX$348,N$1)","v":2324},{"$f":"VLOOKUP(DropDownList!$B47,CntyQryCensus!$A$306:$GX$348,O$1)","v":41},{"$f":"VLOOKUP(DropDownList!$B47,CntyQryCensus!$A$306:$GX$348,P$1)","v":2283},{"$f":"VLOOKUP(DropDownList!$B47,CntyQryCensus!$A$306:$GX$348,Q$1)","v":11434},{"$f":"VLOOKUP(DropDownList!$B47,CntyQryCensus!$A$306:$GX$348,R$1)","v":7637},{"$f":"VLOOKUP(DropDownList!$B47,CntyQryCensus!$A$306:$GX$348,S$1)","v":3797},{"$f":"VLOOKUP(DropDownList!$B47,CntyQryCensus!$A$306:$GX$348,T$1)","v":402},{"$f":"VLOOKUP(DropDownList!$B47,CntyQryCensus!$A$306:$GX$348,U$1)","v":104},{"$f":"VLOOKUP(DropDownList!$B47,CntyQryCensus!$A$306:$GX$348,V$1)","v":25},{"$f":"VLOOKUP(DropDownList!$B47,CntyQryCensus!$A$306:$GX$348,W$1)","v":16},{"$f":"VLOOKUP(DropDownList!$B47,CntyQryCensus!$A$306:$GX$348,X$1)","v":106},{"$f":"VLOOKUP(DropDownList!$B47,CntyQryCensus!$A$306:$GX$348,Y$1)","v":0},{"$f":"VLOOKUP(DropDownList!$B47,CntyQryCensus!$A$306:$GX$348,Z$1)","v":151},{"$f":"VLOOKUP(DropDownList!$B47,CntyQryCensus!$A$306:$GX$348,AA$1)","v":11434},{"$f":"VLOOKUP(DropDownList!$B47,CntyQryCensus!$A$306:$GX$348,AB$1)","v":7637},{"$f":"VLOOKUP(DropDownList!$B47,CntyQryCensus!$A$306:$GX$348,AC$1)","v":111},{"$f":"VLOOKUP(DropDownList!$B47,CntyQryCensus!$A$306:$GX$348,AD$1)","v":985},{"$f":"VLOOKUP(DropDownList!$B47,CntyQryCensus!$A$306:$GX$348,AE$1)","v":1835},{"$f":"VLOOKUP(DropDownList!$B47,CntyQryCensus!$A$306:$GX$348,AF$1)","v":1652},{"$f":"VLOOKUP(DropDownList!$B47,CntyQryCensus!$A$306:$GX$348,AG$1)","v":662},{"$f":"VLOOKUP(DropDownList!$B47,CntyQryCensus!$A$306:$GX$348,AH$1)","v":543},{"$f":"VLOOKUP(DropDownList!$B47,CntyQryCensus!$A$306:$GX$348,AI$1)","v":1089},{"$f":"VLOOKUP(DropDownList!$B47,CntyQryCensus!$A$306:$GX$348,AJ$1)","v":646},{"$f":"VLOOKUP(DropDownList!$B47,CntyQryCensus!$A$306:$GX$348,AK$1)","v":114},{"$f":"VLOOKUP(DropDownList!$B47,CntyQryCensus!$A$306:$GX$348,AL$1)","v":3797},{"$f":"VLOOKUP(DropDownList!$B47,CntyQryCensus!$A$306:$GX$348,AM$1)","v":351},{"$f":"VLOOKUP(DropDownList!$B47,CntyQryCensus!$A$306:$GX$348,AN$1)","v":1068},{"$f":"VLOOKUP(DropDownList!$B47,CntyQryCensus!$A$306:$GX$348,AO$1)","v":935},{"$f":"VLOOKUP(DropDownList!$B47,CntyQryCensus!$A$306:$GX$348,AP$1)","v":516},{"$f":"VLOOKUP(DropDownList!$B47,CntyQryCensus!$A$306:$GX$348,AQ$1)","v":160},{"$f":"VLOOKUP(DropDownList!$B47,CntyQryCensus!$A$306:$GX$348,AR$1)","v":118},{"$f":"VLOOKUP(DropDownList!$B47,CntyQryCensus!$A$306:$GX$348,AS$1)","v":296},{"$f":"VLOOKUP(DropDownList!$B47,CntyQryCensus!$A$306:$GX$348,AT$1)","v":237},{"$f":"VLOOKUP(DropDownList!$B47,CntyQryCensus!$A$306:$GX$348,AU$1)","v":116},{"$f":"VLOOKUP(DropDownList!$B47,CntyQryCensus!$A$306:$GX$348,AV$1)","v":28168},{"$f":"VLOOKUP(DropDownList!$B47,CntyQryCensus!$A$306:$GX$348,AW$1)","v":20039},{"$f":"VLOOKUP(DropDownList!$B47,CntyQryCensus!$A$306:$GX$348,AX$1)","v":8129},{"$f":"VLOOKUP(DropDownList!$B47,CntyQryCensus!$A$306:$GX$348,AY$1)","v":11434},{"$f":"VLOOKUP(DropDownList!$B47,CntyQryCensus!$A$306:$GX$348,AZ$1)","v":7637},{"$f":"VLOOKUP(DropDownList!$B47,CntyQryCensus!$A$306:$GX$348,BA$1)","v":1506},{"$f":"VLOOKUP(DropDownList!$B47,CntyQryCensus!$A$306:$GX$348,BB$1)","v":2834},{"$f":"VLOOKUP(DropDownList!$B47,CntyQryCensus!$A$306:$GX$348,BC$1)","v":1401},{"$f":"VLOOKUP(DropDownList!$B47,CntyQryCensus!$A$306:$GX$348,BD$1)","v":1300},{"$f":"VLOOKUP(DropDownList!$B47,CntyQryCensus!$A$306:$GX$348,BE$1)","v":464},{"$f":"VLOOKUP(DropDownList!$B47,CntyQryCensus!$A$306:$GX$348,BF$1)","v":108},{"$f":"VLOOKUP(DropDownList!$B47,CntyQryCensus!$A$306:$GX$348,BG$1)","v":24},{"$f":"VLOOKUP(DropDownList!$B47,CntyQryCensus!$A$306:$GX$348,BH$1)","v":3797},{"$f":"VLOOKUP(DropDownList!$B47,CntyQryCensus!$A$306:$GX$348,BI$1)","v":1431},{"$f":"VLOOKUP(DropDownList!$B47,CntyQryCensus!$A$306:$GX$348,BJ$1)","v":1166},{"$f":"VLOOKUP(DropDownList!$B47,CntyQryCensus!$A$306:$GX$348,BK$1)","v":556},{"$f":"VLOOKUP(DropDownList!$B47,CntyQryCensus!$A$306:$GX$348,BL$1)","v":370},{"$f":"VLOOKUP(DropDownList!$B47,CntyQryCensus!$A$306:$GX$348,BM$1)","v":185},{"$f":"VLOOKUP(DropDownList!$B47,CntyQryCensus!$A$306:$GX$348,BN$1)","v":89},{"$f":"VLOOKUP(DropDownList!$B47,CntyQryCensus!$A$306:$GX$348,BO$1)","v":0},{"$f":"VLOOKUP(DropDownList!$B47,CntyQryCensus!$A$306:$GX$348,BP$1)","v":2},{"$f":"VLOOKUP(DropDownList!$B47,CntyQryCensus!$A$306:$GX$348,BQ$1)","v":3},{"$f":"VLOOKUP(DropDownList!$B47,CntyQryCensus!$A$306:$GX$348,BR$1)","v":2},{"$f":"VLOOKUP(DropDownList!$B47,CntyQryCensus!$A$306:$GX$348,BS$1)","v":11836},{"$f":"VLOOKUP(DropDownList!$B47,CntyQryCensus!$A$306:$GX$348,BT$1)","v":55},{"$f":"VLOOKUP(DropDownList!$B47,CntyQryCensus!$A$306:$GX$348,BU$1)","v":281},{"$f":"VLOOKUP(DropDownList!$B47,CntyQryCensus!$A$306:$GX$348,BV$1)","v":1391},{"$f":"VLOOKUP(DropDownList!$B47,CntyQryCensus!$A$306:$GX$348,BW$1)","v":2703},{"$f":"VLOOKUP(DropDownList!$B47,CntyQryCensus!$A$306:$GX$348,BX$1)","v":2850},{"$f":"VLOOKUP(DropDownList!$B47,CntyQryCensus!$A$306:$GX$348,BY$1)","v":2026},{"$f":"VLOOKUP(DropDownList!$B47,CntyQryCensus!$A$306:$GX$348,BZ$1)","v":1263},{"$f":"VLOOKUP(DropDownList!$B47,CntyQryCensus!$A$306:$GX$348,CA$1)","v":751},{"$f":"VLOOKUP(DropDownList!$B47,CntyQryCensus!$A$306:$GX$348,CB$1)","v":516},{"$f":"VLOOKUP(DropDownList!$B47,CntyQryCensus!$A$306:$GX$348,CC$1)","v":5},{"$f":"VLOOKUP(DropDownList!$B47,CntyQryCensus!$A$306:$GX$348,CD$1)","v":62017},{"$f":"VLOOKUP(DropDownList!$B47,CntyQryCensus!$A$306:$GX$348,CE$1)","v":11836},{"$f":"VLOOKUP(DropDownList!$B47,CntyQryCensus!$A$306:$GX$348,CF$1)","v":5727},{"$f":"VLOOKUP(DropDownList!$B47,CntyQryCensus!$A$306:$GX$348,CG$1)","v":402},{"$f":"VLOOKUP(DropDownList!$B47,CntyQryCensus!$A$306:$GX$348,CH$1)","v":707},{"$f":"VLOOKUP(DropDownList!$B47,CntyQryCensus!$A$306:$GX$348,CI$1)","v":1133},{"$f":"VLOOKUP(DropDownList!$B47,CntyQryCensus!$A$306:$GX$348,CJ$1)","v":890},{"$f":"VLOOKUP(DropDownList!$B47,CntyQryCensus!$A$306:$GX$348,CK$1)","v":169},{"$f":"VLOOKUP(DropDownList!$B47,CntyQryCensus!$A$306:$GX$348,CL$1)","v":351},{"$f":"VLOOKUP(DropDownList!$B47,CntyQryCensus!$A$306:$GX$348,CM$1)","v":212},{"$f":"VLOOKUP(DropDownList!$B47,CntyQryCensus!$A$306:$GX$348,CN$1)","v":2239},{"$f":"VLOOKUP(DropDownList!$B47,CntyQryCensus!$A$306:$GX$348,CO$1)","v":6},{"$f":"VLOOKUP(DropDownList!$B47,CntyQryCensus!$A$306:$GX$348,CP$1)","v":11434},{"$f":"VLOOKUP(DropDownList!$B47,CntyQryCensus!$A$306:$GX$348,CQ$1)","v":7637},{"$f":"VLOOKUP(DropDownList!$B47,CntyQryCensus!$A$306:$GX$348,CR$1)","v":5154},{"$f":"VLOOKUP(DropDownList!$B47,CntyQryCensus!$A$306:$GX$348,CS$1)","v":277},{"$f":"VLOOKUP(DropDownList!$B47,CntyQryCensus!$A$306:$GX$348,CT$1)","v":164},{"$f":"VLOOKUP(DropDownList!$B47,CntyQryCensus!$A$306:$GX$348,CU$1)","v":91},{"$f":"VLOOKUP(DropDownList!$B47,CntyQryCensus!$A$306:$GX$348,CV$1)","v":65},{"$f":"VLOOKUP(DropDownList!$B47,CntyQryCensus!$A$306:$GX$348,CW$1)","v":0},{"$f":"VLOOKUP(DropDownList!$B47,CntyQryCensus!$A$306:$GX$348,CX$1)","v":9},{"$f":"VLOOKUP(DropDownList!$B47,CntyQryCensus!$A$306:$GX$348,CY$1)","v":0},{"$f":"VLOOKUP(DropDownList!$B47,CntyQryCensus!$A$306:$GX$348,CZ$1)","v":1871},{"$f":"VLOOKUP(DropDownList!$B47,CntyQryCensus!$A$306:$GX$348,DA$1)","v":6},{"$f":"VLOOKUP(DropDownList!$B47,CntyQryCensus!$A$306:$GX$348,DB$1)","v":3797},{"$f":"VLOOKUP(DropDownList!$B47,CntyQryCensus!$A$306:$GX$348,DC$1)","v":467},{"$f":"VLOOKUP(DropDownList!$B47,CntyQryCensus!$A$306:$GX$348,DD$1)","v":125},{"$f":"VLOOKUP(DropDownList!$B47,CntyQryCensus!$A$306:$GX$348,DE$1)","v":527},{"$f":"VLOOKUP(DropDownList!$B47,CntyQryCensus!$A$306:$GX$348,DF$1)","v":963},{"$f":"VLOOKUP(DropDownList!$B47,CntyQryCensus!$A$306:$GX$348,DG$1)","v":750},{"$f":"VLOOKUP(DropDownList!$B47,CntyQryCensus!$A$306:$GX$348,DH$1)","v":165},{"$f":"VLOOKUP(DropDownList!$B47,CntyQryCensus!$A$306:$GX$348,DI$1)","v":342},{"$f":"VLOOKUP(DropDownList!$B47,CntyQryCensus!$A$306:$GX$348,DJ$1)","v":200},{"$f":"VLOOKUP(DropDownList!$B47,CntyQryCensus!$A$306:$GX$348,DK$1)","v":258},{"$f":"VLOOKUP(DropDownList!$B47,CntyQryCensus!$A$306:$GX$348,DL$1)","v":0},{"$f":"VLOOKUP(DropDownList!$B47,CntyQryCensus!$A$306:$GX$348,DM$1)","v":28168},{"$f":"VLOOKUP(DropDownList!$B47,CntyQryCensus!$A$306:$GX$348,DN$1)","v":20039},{"$f":"VLOOKUP(DropDownList!$B47,CntyQryCensus!$A$306:$GX$348,DO$1)","v":14516},{"$f":"VLOOKUP(DropDownList!$B47,CntyQryCensus!$A$306:$GX$348,DP$1)","v":635},{"$f":"VLOOKUP(DropDownList!$B47,CntyQryCensus!$A$306:$GX$348,DQ$1)","v":457},{"$f":"VLOOKUP(DropDownList!$B47,CntyQryCensus!$A$306:$GX$348,DR$1)","v":170},{"$f":"VLOOKUP(DropDownList!$B47,CntyQryCensus!$A$306:$GX$348,DS$1)","v":139},{"$f":"VLOOKUP(DropDownList!$B47,CntyQryCensus!$A$306:$GX$348,DT$1)","v":0},{"$f":"VLOOKUP(DropDownList!$B47,CntyQryCensus!$A$306:$GX$348,DU$1)","v":7},{"$f":"VLOOKUP(DropDownList!$B47,CntyQryCensus!$A$306:$GX$348,DV$1)","v":0},{"$f":"VLOOKUP(DropDownList!$B47,CntyQryCensus!$A$306:$GX$348,DW$1)","v":4105},{"$f":"VLOOKUP(DropDownList!$B47,CntyQryCensus!$A$306:$GX$348,DX$1)","v":10},{"$f":"VLOOKUP(DropDownList!$B47,CntyQryCensus!$A$306:$GX$348,DY$1)","v":8129},{"$f":"VLOOKUP(DropDownList!$B47,CntyQryCensus!$A$306:$GX$348,DZ$1)","v":1271},{"$f":"VLOOKUP(DropDownList!$B47,CntyQryCensus!$A$306:$GX$348,EA$1)","v":236},{"$f":"VLOOKUP(DropDownList!$B47,CntyQryCensus!$A$306:$GX$348,EB$1)","v":1316},{"$f":"VLOOKUP(DropDownList!$B47,CntyQryCensus!$A$306:$GX$348,EC$1)","v":2168},{"$f":"VLOOKUP(DropDownList!$B47,CntyQryCensus!$A$306:$GX$348,ED$1)","v":1459},{"$f":"VLOOKUP(DropDownList!$B47,CntyQryCensus!$A$306:$GX$348,EE$1)","v":277},{"$f":"VLOOKUP(DropDownList!$B47,CntyQryCensus!$A$306:$GX$348,EF$1)","v":619},{"$f":"VLOOKUP(DropDownList!$B47,CntyQryCensus!$A$306:$GX$348,EG$1)","v":229},{"$f":"VLOOKUP(DropDownList!$B47,CntyQryCensus!$A$306:$GX$348,EH$1)","v":554},{"$f":"VLOOKUP(DropDownList!$B47,CntyQryCensus!$A$306:$GX$348,EI$1)","v":0},{"$f":"VLOOKUP(DropDownList!$B47,CntyQryCensus!$A$306:$GX$348,EJ$1)","v":11434},{"$f":"VLOOKUP(DropDownList!$B47,CntyQryCensus!$A$306:$GX$348,EK$1)","v":7637},{"$f":"VLOOKUP(DropDownList!$B47,CntyQryCensus!$A$306:$GX$348,EL$1)","v":151},{"$f":"VLOOKUP(DropDownList!$B47,CntyQryCensus!$A$306:$GX$348,EM$1)","v":469},{"$f":"VLOOKUP(DropDownList!$B47,CntyQryCensus!$A$306:$GX$348,EN$1)","v":573},{"$f":"VLOOKUP(DropDownList!$B47,CntyQryCensus!$A$306:$GX$348,EO$1)","v":1841},{"$f":"VLOOKUP(DropDownList!$B47,CntyQryCensus!$A$306:$GX$348,EP$1)","v":1227},{"$f":"VLOOKUP(DropDownList!$B47,CntyQryCensus!$A$306:$GX$348,EQ$1)","v":688},{"$f":"VLOOKUP(DropDownList!$B47,CntyQryCensus!$A$306:$GX$348,ER$1)","v":709},{"$f":"VLOOKUP(DropDownList!$B47,CntyQryCensus!$A$306:$GX$348,ES$1)","v":473},{"$f":"VLOOKUP(DropDownList!$B47,CntyQryCensus!$A$306:$GX$348,ET$1)","v":1506},{"$f":"VLOOKUP(DropDownList!$B47,CntyQryCensus!$A$306:$GX$348,EU$1)","v":3797},{"$f":"VLOOKUP(DropDownList!$B47,CntyQryCensus!$A$306:$GX$348,EV$1)","v":82},{"$f":"VLOOKUP(DropDownList!$B47,CntyQryCensus!$A$306:$GX$348,EW$1)","v":168},{"$f":"VLOOKUP(DropDownList!$B47,CntyQryCensus!$A$306:$GX$348,EX$1)","v":147},{"$f":"VLOOKUP(DropDownList!$B47,CntyQryCensus!$A$306:$GX$348,EY$1)","v":657},{"$f":"VLOOKUP(DropDownList!$B47,CntyQryCensus!$A$306:$GX$348,EZ$1)","v":627},{"$f":"VLOOKUP(DropDownList!$B47,CntyQryCensus!$A$306:$GX$348,FA$1)","v":237},{"$f":"VLOOKUP(DropDownList!$B47,CntyQryCensus!$A$306:$GX$348,FB$1)","v":333},{"$f":"VLOOKUP(DropDownList!$B47,CntyQryCensus!$A$306:$GX$348,FC$1)","v":246},{"$f":"VLOOKUP(DropDownList!$B47,CntyQryCensus!$A$306:$GX$348,FD$1)","v":1300},{"$f":"VLOOKUP(DropDownList!$B47,CntyQryCensus!$A$306:$GX$348,FE$1)","v":11434},{"$f":"VLOOKUP(DropDownList!$B47,CntyQryCensus!$A$306:$GX$348,FF$1)","v":2273},{"$f":"VLOOKUP(DropDownList!$B47,CntyQryCensus!$A$306:$GX$348,FG$1)","v":1063},{"$f":"VLOOKUP(DropDownList!$B47,CntyQryCensus!$A$306:$GX$348,FH$1)","v":739},{"$f":"VLOOKUP(DropDownList!$B47,CntyQryCensus!$A$306:$GX$348,FI$1)","v":7069},{"$f":"VLOOKUP(DropDownList!$B47,CntyQryCensus!$A$306:$GX$348,FJ$1)","v":7},{"$f":"VLOOKUP(DropDownList!$B47,CntyQryCensus!$A$306:$GX$348,FK$1)","v":188},{"$f":"VLOOKUP(DropDownList!$B47,CntyQryCensus!$A$306:$GX$348,FL$1)","v":0},{"$f":"VLOOKUP(DropDownList!$B47,CntyQryCensus!$A$306:$GX$348,FM$1)","v":54},{"$f":"VLOOKUP(DropDownList!$B47,CntyQryCensus!$A$306:$GX$348,FN$1)","v":41},{"$f":"VLOOKUP(DropDownList!$B47,CntyQryCensus!$A$306:$GX$348,FO$1)","v":11836},{"$f":"VLOOKUP(DropDownList!$B47,CntyQryCensus!$A$306:$GX$348,FP$1)","v":103},{"$f":"VLOOKUP(DropDownList!$B47,CntyQryCensus!$A$306:$GX$348,FQ$1)","v":1671},{"$f":"VLOOKUP(DropDownList!$B47,CntyQryCensus!$A$306:$GX$348,FR$1)","v":4384},{"$f":"VLOOKUP(DropDownList!$B47,CntyQryCensus!$A$306:$GX$348,FS$1)","v":4227},{"$f":"VLOOKUP(DropDownList!$B47,CntyQryCensus!$A$306:$GX$348,FT$1)","v":1281},{"$f":"VLOOKUP(DropDownList!$B47,CntyQryCensus!$A$306:$GX$348,FU$1)","v":170},{"$f":"VLOOKUP(DropDownList!$B47,CntyQryCensus!$A$306:$GX$348,FV$1)","v":11434},{"$f":"VLOOKUP(DropDownList!$B47,CntyQryCensus!$A$306:$GX$348,FW$1)","v":7637},{"$f":"VLOOKUP(DropDownList!$B47,CntyQryCensus!$A$306:$GX$348,FX$1)","v":0},{"$f":"VLOOKUP(DropDownList!$B47,CntyQryCensus!$A$306:$GX$348,FY$1)","v":252},{"$f":"VLOOKUP(DropDownList!$B47,CntyQryCensus!$A$306:$GX$348,FZ$1)","v":2561},{"$f":"VLOOKUP(DropDownList!$B47,CntyQryCensus!$A$306:$GX$348,GA$1)","v":3568},{"$f":"VLOOKUP(DropDownList!$B47,CntyQryCensus!$A$306:$GX$348,GB$1)","v":1111},{"$f":"VLOOKUP(DropDownList!$B47,CntyQryCensus!$A$306:$GX$348,GC$1)","v":145},{"$f":"VLOOKUP(DropDownList!$B47,CntyQryCensus!$A$306:$GX$348,GD$1)","v":3797},{"$f":"VLOOKUP(DropDownList!$B47,CntyQryCensus!$A$306:$GX$348,GE$1)","v":95},{"$f":"VLOOKUP(DropDownList!$B47,CntyQryCensus!$A$306:$GX$348,GF$1)","v":1315},{"$f":"VLOOKUP(DropDownList!$B47,CntyQryCensus!$A$306:$GX$348,GG$1)","v":1609},{"$f":"VLOOKUP(DropDownList!$B47,CntyQryCensus!$A$306:$GX$348,GH$1)","v":589},{"$f":"VLOOKUP(DropDownList!$B47,CntyQryCensus!$A$306:$GX$348,GI$1)","v":164},{"$f":"VLOOKUP(DropDownList!$B47,CntyQryCensus!$A$306:$GX$348,GJ$1)","v":25},{"$f":"VLOOKUP(DropDownList!$B47,CntyQryCensus!$A$306:$GX$348,GK$1)","v":11434},{"$f":"VLOOKUP(DropDownList!$B47,CntyQryCensus!$A$306:$GX$348,GL$1)","v":7637},{"$f":"VLOOKUP(DropDownList!$B47,CntyQryCensus!$A$306:$GX$348,GM$1)","v":7572},{"$f":"VLOOKUP(DropDownList!$B47,CntyQryCensus!$A$306:$GX$348,GN$1)","v":65},{"$f":"VLOOKUP(DropDownList!$B47,CntyQryCensus!$A$306:$GX$348,GO$1)","v":3797},{"$f":"VLOOKUP(DropDownList!$B47,CntyQryCensus!$A$306:$GX$348,GP$1)","v":3776},{"$f":"VLOOKUP(DropDownList!$B47,CntyQryCensus!$A$306:$GX$348,GQ$1)","v":21},{"$f":"VLOOKUP(DropDownList!$B47,CntyQryCensus!$A$306:$GX$348,GR$1)","v":11434},{"$f":"VLOOKUP(DropDownList!$B47,CntyQryCensus!$A$306:$GX$348,GS$1)","v":7637},{"$f":"VLOOKUP(DropDownList!$B47,CntyQryCensus!$A$306:$GX$348,GT$1)","v":7623},{"$f":"VLOOKUP(DropDownList!$B47,CntyQryCensus!$A$306:$GX$348,GU$1)","v":14},{"$f":"VLOOKUP(DropDownList!$B47,CntyQryCensus!$A$306:$GX$348,GV$1)","v":3797},{"$f":"VLOOKUP(DropDownList!$B47,CntyQryCensus!$A$306:$GX$348,GW$1)","v":3779},{"$f":"VLOOKUP(DropDownList!$B47,CntyQryCensus!$A$306:$GX$348,GX$1)","v":18}]
[]
[]
["Census 2000 SummaryFile3 Sample Data  -  SF3TownQry8HousingCostA"]
["NAME","LOGRECNO","COUNTY","TotalPop","H62RntrOccHU","H62RntrOccHUwRent","H62ROHUGRent<100","H62ROHUGRent100to149","H62ROHUGRent150to199","H62ROHUGRent200to249","H62ROHUGRent250to299","H62ROHUGRent300to349","H62ROHUGRent350to399","H62ROHUGRent400to449","H62ROHUGRent450to499","H62ROHUGRent500to549","H62ROHUGRent550to599","H62ROHUGRent600to649","H62ROHUGRent650to699","H62ROHUGRent700to749","H62ROHUGRent750to799","H62ROHUGRent800to899","H62ROHUGRent900to999","H62ROHUGRent1000to1249","H62ROHUGRent1250to1499","H62ROHUGRent1500to1999","H62ROHUGRent2000>","H62ROHUNoGRent","H63MedianGrossRnt","H69RenterOccHsU","H69GRnt<10PctHHInc","H69GRnt10to15PctHHInc","H69GRnt15to20PctHHInc","H69GRnt20to25PctHHInc","H69GRnt25to30PctHHInc","H69GRnt30to35PctHHInc","H69GRnt35to40PctHHInc","H69GRnt40to50PctHHInc","H69GRnt>50PctHHInc","H69GRntPctNotcomputed","H73RenterOccHU","H73ROHUHhInc<10k","H73ROHUHhInc<10kRnt<20pct","H73ROHUHhInc<10kRnt20to25pct","H73ROHUHhInc<10kRnt25to30pct","H73ROHUHhInc<10kRnt30to35pct","H73ROHUHhInc<10kRnt>35pct","H73ROHUHhInc<10kPctNotComput","H73ROHUHhInc10to20k","H73ROHUHhInc10to20kRnt<20pct","H73ROHUHhInc10to20kRnt20to25pct","H73ROHUHhInc10to20kRnt25to30pct","H73ROHUHhInc10to20kRnt30to35pct","H73ROHUHhInc10to20kRnt>35pct","H73ROHUHhInc10to20kRntPctNC","H73ROHUHhInc20to35k","H73ROHUHhInc20to35kRnt<20pct","H73ROHUHhInc20to35kRnt20to25pct","H73ROHUHhInc20to35kRnt25to30pct","H73ROHUHhInc20to35kRnt30to35pct","H73ROHUHhInc20to35kRnt>35pct","H73ROHUHhInc20to35kRntPctNC","H73ROHUHhInc35to40k","H73ROHUHhInc35to40kRnt<20pct","H73ROHUHhInc35to40kRnt20to25pct","H73ROHUHhInc35to40kRnt25to30pct","H73ROHUHhInc35to40kRnt30to35pct","H73ROHUHhInc35to40kRnt>35pct","H73ROHUHhInc35to40kRntPctNC","H73ROHUHhInc50to75k","H73ROHUHhInc50to75kRnt<20pct","H73ROHUHhInc50to75kRnt20to25pct","H73ROHUHhInc50to75kRnt25to30pct","H73ROHUHhInc50to75kRnt30to35pct","H73ROHUHhInc50to75kRnt>35pct","H73ROHUHhInc50to75kRntPctNC","H73ROHUHhInc75to100k","H73ROHUHhInc75to100kRnt<20pct","H73ROHUHhInc75to100kRnt20to25pct","H73ROHUHhInc75to100kRnt25to30pct","H73ROHUHhInc75to100kRnt30to35pct","H73ROHUHhInc75to100kRnt>35pct","H73ROHUHhInc75to100kRntPctNC","H73ROHUHhInc>100k","H73ROHUHhInc>100kRnt<20pct","H73ROHUHhInc>100kRnt20to25pct","H73ROHUHhInc>100kRnt25to30pct","H73ROHUHhInc>100kRnt30to35pct","H73ROHUHhInc>100kRnt>35pct","H73ROHUHhInc>100kRntPctNC","H73ROHUHhInc>100kRntPctNC"]
[{"$f":"VLOOKUP(DropDownList!$B$47,CntyQryCensus!$A$357:$CM$399,A$1)","v":"Rochester"},{"$f":"VLOOKUP(DropDownList!$B$47,CntyQryCensus!$A$357:$CM$399,B$1)","v":"0003956"},{"$f":"VLOOKUP(DropDownList!$B$47,CntyQryCensus!$A$357:$CM$399,C$1)","v":"65140"},{"$f":"VLOOKUP(DropDownList!$B$47,CntyQryCensus!$A$357:$CM$399,D$1)","v":28461},{"$f":"VLOOKUP(DropDownList!$B$47,CntyQryCensus!$A$357:$CM$399,E$1)","v":3777},{"$f":"VLOOKUP(DropDownList!$B$47,CntyQryCensus!$A$357:$CM$399,F$1)","v":3666},{"$f":"VLOOKUP(DropDownList!$B$47,CntyQryCensus!$A$357:$CM$399,G$1)","v":44},{"$f":"VLOOKUP(DropDownList!$B$47,CntyQryCensus!$A$357:$CM$399,H$1)","v":108},{"$f":"VLOOKUP(DropDownList!$B$47,CntyQryCensus!$A$357:$CM$399,I$1)","v":65},{"$f":"VLOOKUP(DropDownList!$B$47,CntyQryCensus!$A$357:$CM$399,J$1)","v":101},{"$f":"VLOOKUP(DropDownList!$B$47,CntyQryCensus!$A$357:$CM$399,K$1)","v":103},{"$f":"VLOOKUP(DropDownList!$B$47,CntyQryCensus!$A$357:$CM$399,L$1)","v":112},{"$f":"VLOOKUP(DropDownList!$B$47,CntyQryCensus!$A$357:$CM$399,M$1)","v":170},{"$f":"VLOOKUP(DropDownList!$B$47,CntyQryCensus!$A$357:$CM$399,N$1)","v":164},{"$f":"VLOOKUP(DropDownList!$B$47,CntyQryCensus!$A$357:$CM$399,O$1)","v":280},{"$f":"VLOOKUP(DropDownList!$B$47,CntyQryCensus!$A$357:$CM$399,P$1)","v":340},{"$f":"VLOOKUP(DropDownList!$B$47,CntyQryCensus!$A$357:$CM$399,Q$1)","v":340},{"$f":"VLOOKUP(DropDownList!$B$47,CntyQryCensus!$A$357:$CM$399,R$1)","v":358},{"$f":"VLOOKUP(DropDownList!$B$47,CntyQryCensus!$A$357:$CM$399,S$1)","v":450},{"$f":"VLOOKUP(DropDownList!$B$47,CntyQryCensus!$A$357:$CM$399,T$1)","v":255},{"$f":"VLOOKUP(DropDownList!$B$47,CntyQryCensus!$A$357:$CM$399,U$1)","v":238},{"$f":"VLOOKUP(DropDownList!$B$47,CntyQryCensus!$A$357:$CM$399,V$1)","v":273},{"$f":"VLOOKUP(DropDownList!$B$47,CntyQryCensus!$A$357:$CM$399,W$1)","v":84},{"$f":"VLOOKUP(DropDownList!$B$47,CntyQryCensus!$A$357:$CM$399,X$1)","v":137},{"$f":"VLOOKUP(DropDownList!$B$47,CntyQryCensus!$A$357:$CM$399,Y$1)","v":37},{"$f":"VLOOKUP(DropDownList!$B$47,CntyQryCensus!$A$357:$CM$399,Z$1)","v":0},{"$f":"VLOOKUP(DropDownList!$B$47,CntyQryCensus!$A$357:$CM$399,AA$1)","v":7},{"$f":"VLOOKUP(DropDownList!$B$47,CntyQryCensus!$A$357:$CM$399,AB$1)","v":111},{"$f":"VLOOKUP(DropDownList!$B$47,CntyQryCensus!$A$357:$CM$399,AC$1)","v":601},{"$f":"VLOOKUP(DropDownList!$B$47,CntyQryCensus!$A$357:$CM$399,AD$1)","v":3777},{"$f":"VLOOKUP(DropDownList!$B$47,CntyQryCensus!$A$357:$CM$399,AE$1)","v":212},{"$f":"VLOOKUP(DropDownList!$B$47,CntyQryCensus!$A$357:$CM$399,AF$1)","v":448},{"$f":"VLOOKUP(DropDownList!$B$47,CntyQryCensus!$A$357:$CM$399,AG$1)","v":594},{"$f":"VLOOKUP(DropDownList!$B$47,CntyQryCensus!$A$357:$CM$399,AH$1)","v":464},{"$f":"VLOOKUP(DropDownList!$B$47,CntyQryCensus!$A$357:$CM$399,AI$1)","v":519},{"$f":"VLOOKUP(DropDownList!$B$47,CntyQryCensus!$A$357:$CM$399,AJ$1)","v":267},{"$f":"VLOOKUP(DropDownList!$B$47,CntyQryCensus!$A$357:$CM$399,AK$1)","v":209},{"$f":"VLOOKUP(DropDownList!$B$47,CntyQryCensus!$A$357:$CM$399,AL$1)","v":232},{"$f":"VLOOKUP(DropDownList!$B$47,CntyQryCensus!$A$357:$CM$399,AM$1)","v":682},{"$f":"VLOOKUP(DropDownList!$B$47,CntyQryCensus!$A$357:$CM$399,AN$1)","v":150},{"$f":"VLOOKUP(DropDownList!$B$47,CntyQryCensus!$A$357:$CM$399,AO$1)","v":3777},{"$f":"VLOOKUP(DropDownList!$B$47,CntyQryCensus!$A$357:$CM$399,AP$1)","v":575},{"$f":"VLOOKUP(DropDownList!$B$47,CntyQryCensus!$A$357:$CM$399,AQ$1)","v":25},{"$f":"VLOOKUP(DropDownList!$B$47,CntyQryCensus!$A$357:$CM$399,AR$1)","v":56},{"$f":"VLOOKUP(DropDownList!$B$47,CntyQryCensus!$A$357:$CM$399,AS$1)","v":37},{"$f":"VLOOKUP(DropDownList!$B$47,CntyQryCensus!$A$357:$CM$399,AT$1)","v":0},{"$f":"VLOOKUP(DropDownList!$B$47,CntyQryCensus!$A$357:$CM$399,AU$1)","v":423},{"$f":"VLOOKUP(DropDownList!$B$47,CntyQryCensus!$A$357:$CM$399,AV$1)","v":34},{"$f":"VLOOKUP(DropDownList!$B$47,CntyQryCensus!$A$357:$CM$399,AW$1)","v":740},{"$f":"VLOOKUP(DropDownList!$B$47,CntyQryCensus!$A$357:$CM$399,AX$1)","v":83},{"$f":"VLOOKUP(DropDownList!$B$47,CntyQryCensus!$A$357:$CM$399,AY$1)","v":46},{"$f":"VLOOKUP(DropDownList!$B$47,CntyQryCensus!$A$357:$CM$399,AZ$1)","v":79},{"$f":"VLOOKUP(DropDownList!$B$47,CntyQryCensus!$A$357:$CM$399,BA$1)","v":57},{"$f":"VLOOKUP(DropDownList!$B$47,CntyQryCensus!$A$357:$CM$399,BB$1)","v":459},{"$f":"VLOOKUP(DropDownList!$B$47,CntyQryCensus!$A$357:$CM$399,BC$1)","v":16},{"$f":"VLOOKUP(DropDownList!$B$47,CntyQryCensus!$A$357:$CM$399,BD$1)","v":1016},{"$f":"VLOOKUP(DropDownList!$B$47,CntyQryCensus!$A$357:$CM$399,BE$1)","v":180},{"$f":"VLOOKUP(DropDownList!$B$47,CntyQryCensus!$A$357:$CM$399,BF$1)","v":150},{"$f":"VLOOKUP(DropDownList!$B$47,CntyQryCensus!$A$357:$CM$399,BG$1)","v":259},{"$f":"VLOOKUP(DropDownList!$B$47,CntyQryCensus!$A$357:$CM$399,BH$1)","v":166},{"$f":"VLOOKUP(DropDownList!$B$47,CntyQryCensus!$A$357:$CM$399,BI$1)","v":212},{"$f":"VLOOKUP(DropDownList!$B$47,CntyQryCensus!$A$357:$CM$399,BJ$1)","v":49},{"$f":"VLOOKUP(DropDownList!$B$47,CntyQryCensus!$A$357:$CM$399,BK$1)","v":751},{"$f":"VLOOKUP(DropDownList!$B$47,CntyQryCensus!$A$357:$CM$399,BL$1)","v":339},{"$f":"VLOOKUP(DropDownList!$B$47,CntyQryCensus!$A$357:$CM$399,BM$1)","v":188},{"$f":"VLOOKUP(DropDownList!$B$47,CntyQryCensus!$A$357:$CM$399,BN$1)","v":136},{"$f":"VLOOKUP(DropDownList!$B$47,CntyQryCensus!$A$357:$CM$399,BO$1)","v":44},{"$f":"VLOOKUP(DropDownList!$B$47,CntyQryCensus!$A$357:$CM$399,BP$1)","v":29},{"$f":"VLOOKUP(DropDownList!$B$47,CntyQryCensus!$A$357:$CM$399,BQ$1)","v":15},{"$f":"VLOOKUP(DropDownList!$B$47,CntyQryCensus!$A$357:$CM$399,BR$1)","v":486},{"$f":"VLOOKUP(DropDownList!$B$47,CntyQryCensus!$A$357:$CM$399,BS$1)","v":439},{"$f":"VLOOKUP(DropDownList!$B$47,CntyQryCensus!$A$357:$CM$399,BT$1)","v":16},{"$f":"VLOOKUP(DropDownList!$B$47,CntyQryCensus!$A$357:$CM$399,BU$1)","v":8},{"$f":"VLOOKUP(DropDownList!$B$47,CntyQryCensus!$A$357:$CM$399,BV$1)","v":0},{"$f":"VLOOKUP(DropDownList!$B$47,CntyQryCensus!$A$357:$CM$399,BW$1)","v":0},{"$f":"VLOOKUP(DropDownList!$B$47,CntyQryCensus!$A$357:$CM$399,BX$1)","v":23},{"$f":"VLOOKUP(DropDownList!$B$47,CntyQryCensus!$A$357:$CM$399,BY$1)","v":135},{"$f":"VLOOKUP(DropDownList!$B$47,CntyQryCensus!$A$357:$CM$399,BZ$1)","v":119},{"$f":"VLOOKUP(DropDownList!$B$47,CntyQryCensus!$A$357:$CM$399,CA$1)","v":8},{"$f":"VLOOKUP(DropDownList!$B$47,CntyQryCensus!$A$357:$CM$399,CB$1)","v":0},{"$f":"VLOOKUP(DropDownList!$B$47,CntyQryCensus!$A$357:$CM$399,CC$1)","v":0},{"$f":"VLOOKUP(DropDownList!$B$47,CntyQryCensus!$A$357:$CM$399,CD$1)","v":0},{"$f":"VLOOKUP(DropDownList!$B$47,CntyQryCensus!$A$357:$CM$399,CE$1)","v":8},{"$f":"VLOOKUP(DropDownList!$B$47,CntyQryCensus!$A$357:$CM$399,CF$1)","v":74},{"$f":"VLOOKUP(DropDownList!$B$47,CntyQryCensus!$A$357:$CM$399,CG$1)","v":69},{"$f":"VLOOKUP(DropDownList!$B$47,CntyQryCensus!$A$357:$CM$399,CH$1)","v":0},{"$f":"VLOOKUP(DropDownList!$B$47,CntyQryCensus!$A$357:$CM$399,CI$1)","v":0},{"$f":"VLOOKUP(DropDownList!$B$47,CntyQryCensus!$A$357:$CM$399,CJ$1)","v":0},{"$f":"VLOOKUP(DropDownList!$B$47,CntyQryCensus!$A$357:$CM$399,CK$1)","v":0},{"$f":"VLOOKUP(DropDownList!$B$47,CntyQryCensus!$A$357:$CM$399,CL$1)","v":5},{"$f":"VLOOKUP(DropDownList!$B$47,CntyQryCensus!$A$357:$CM$399,CM$1)","v":0}]
[]
[]
["Census 2000 SummaryFile3 Sample Data  -  SF3TownQry8HousingCostB"]
["NAME","LOGRECNO","COUNTY","TotalPop","H74SpecOwnerOccHU","H74OOHU<10k","H74OOHU10to15k","H74OOHU15to20k","H74OOHU20to25k","H74OOHU25to30k","H74OOHU30to35k","H74OOHU35to40k","H74OOHU40to50k","H74OOHU50to60k","H74OOHU60to70k","H74OOHU70to80k","H74OOHU80to90k","H74OOHU90to100k","H74OOHU100to125k","H74OOHU125to150k","H74OOHU150to175k","H74OOHU175to200k","H74OOHU200to250k","H74OOHU250to300k","H74OOHU300to400k","H74OOHU400to500k","H74OOHU500to750k","H74OOHU750to1000k","H74OOHU1000kmore","H76OOHUMedianVal","H84OwnerOccHU","H84AllOOHU<10k","H84AllOOHU10to15k","H84AllOOHU15to20k","H84AllOOHU20to25k","H84AllOOHU25to30k","H84AllOOHU30to35k","H84AllOOHU35to40k","H84AllOOHU40to50k","H84AllOOHU50to60k","H84AllOOHU60to70k","H84AllOOHU70to80k","H84AllOOHU80to90k","H84AllOOHU90to100k","H84AllOOHU100to125k","H84AllOOHU125to150k","H84AllOOHU150to175k","H84AllOOHU175to200k","H84AllOOHU200to250k","H84AllOOHU250to300k","H84AllOOHU300to400k","H84AllOOHU400to500k","H84AllOOHU500to750k","H84AllOOHU750to1000k","H84AllOOHU1000kmore","H85OOHUMedVal","H90SOOHU","H90HUwMorgt","H90HUwMtgHC<200","H90HUwMtgHC200to300","H90HUwMtgHC300to400","H90HUwMtgHC400to500","H90HUwMtgHC500to600","H90HUwMtgHC600to700","H90HUwMtgHC700to800","H90HUwMtgHC800to900","H90HUwMtgHC900to1000","H90HUwMtgHC1000to1250","H90HUwMtgHC1250to1500","H90HUwMtgHC1500to2000","H90HUwMtgHC2000to2500","H90HUwMtgHC2500to3000","H90HUwMtgHC3000orMore","H90HUwOutMorgt","H90HUwOutMtgHC<100","H90HUwOutMtgHC100to150","H90HUwOutMtgHC150to200","H90HUwOutMtgHC200to250","H90HUwOutMtgHC250to300","H90HUwOutMtgHC300to350","H90HUwOutMtgHC350to400","H90HUwOutMtgHC400to500","H90HUwOutMtgHC500to600","H90HUwOutMtgHC600to700","H90HUwOutMtgHC700to800","H90HUwOutMtgHC800to900","H90HUwOutMtgHC900to1000","H90HUwOutMtgHC1000orMore","H91MedianOCHUwMtg","H91MedianOCHUwOutMtg","H94SpecOOHU","H94HUwMortg","H94HUwMtgHC<10pct","H94HUwMtgHC10to15pct","H94HUwMtgHC15to20pct","H94HUwMtgHC20to25pct","H94HUwMtgHC25to30pct","H94HUwMtgHC30to35pct","H94HUwMtgHC35to40pct","H94HUwMtgHC40to50pct","H94HUwMtgHC50pctOrMore","H94HUwMtgHCpctNotComp","H94HUWOutMortg","H94HUWOutMortgHC<10pct","H94HUWOutMortgHC10to15pct","H94HUWOutMortgHC15to20pct","H94HUWOutMortgHC20to25pct","H94HUWOutMortgHC25to30pct","H94HUWOutMortgHC30to35pct","H94HUWOutMortgHC35to40pct","H94HUWOutMortgHC40to50pct","H94HUWOutMortgHC50pctOrMore","H94HUWOutMortgHCpctNotComp","H97SpecifOwnOccHU","H97SOOHUInc<10k","H97SOOHUInc<10kHC<20pct","H97SOOHUInc<10kHC20to25pct","H97SOOHUInc<10kHC25to30pct","H97SOOHUInc<10kHC30to35pct","H97SOOHUInc<10kHC>35pct","H97SOOHUInc<10kHCpctNotComput","H97SOOHUInc10to20k","H97SOOHUInc10to20kHC<20pct","H97SOOHUInc10to20kHC20to25pct","H97SOOHUInc10to20kHC25to30pct","H97SOOHUInc10to20kHC30to35pct","H97SOOHUInc10to20kHC>35pct","H97SOOHUInc10to20kHCpctNotComput","H97SOOHUInc20to35k","H97SOOHUInc20to35kRC<20pct","H97SOOHUInc20to35kRC20to25pct","H97SOOHUInc20to35kRC25to30pct","H97SOOHUInc20to35kRC30to35pct","H97SOOHUInc20to35kRC>35pct","H97SOOHUInc20to35kRCpctNotComput","H97SOOHUInc35to50k","H97SOOHUInc35to50kRC<20pct","H97SOOHUInc35to50kRC20to25pct","H97SOOHUInc35to50kRC25to30pct","H97SOOHUInc35to50kRC30to35pct","H97SOOHUInc35to50kRC>35pct","H97SOOHUInc35to50kRCpctNotCompute","H97SOOHUInc50to75k","H97SOOHUInc50to75kRC<20pct","H97SOOHUInc50to75kRC20to25pct","H97SOOHUInc50to75kRC25to30pct","H97SOOHUInc50to75kRC30to35pct","H97SOOHUInc50to75kRC>35pct","H97SOOHUInc50to75kRCpctNotComput","H97SOOHUInc75to100k","H97SOOHUInc75to100kRC<20pct","H97SOOHUInc75to100kRC20to25pct","H97SOOHUInc75to100kRC25to30pct","H97SOOHUInc75to100kRC30to35pct","H97SOOHUInc75to100kRC>35pct","H97SOOHUInc75to100kRCpctNotCompute","H97SOOHUInc100to150k","H97SOOHUInc100to150kRC<20pct","H97SOOHUInc100to150kRC20to25pct","H97SOOHUInc100to150kRC25to30pct","H97SOOHUInc100to150kRC30to35pct","H97SOOHUInc100to150kRC>35pct","H97SOOHUInc100to150kRCpctNotCompute","H97SOOHUInc>150k","H97SOOHUInc>150kRC<20pct","H97SOOHUInc>150kRC20to25pct","H97SOOHUInc>150kRC25to30pct","H97SOOHUInc>150kRC30to35pct","H97SOOHUInc>150kRC>35pct","H97SOOHUInc>150kRCpctNotCompute"]
[{"$f":"VLOOKUP(DropDownList!$B$47,CntyQryCensus!$A$408:$FN$450,A$1)","v":"Rochester"},{"$f":"VLOOKUP(DropDownList!$B$47,CntyQryCensus!$A$408:$FN$450,B$1)","v":"0003956"},{"$f":"VLOOKUP(DropDownList!$B$47,CntyQryCensus!$A$408:$FN$450,C$1)","v":"65140"},{"$f":"VLOOKUP(DropDownList!$B$47,CntyQryCensus!$A$408:$FN$450,D$1)","v":28461},{"$f":"VLOOKUP(DropDownList!$B$47,CntyQryCensus!$A$408:$FN$450,E$1)","v":4928},{"$f":"VLOOKUP(DropDownList!$B$47,CntyQryCensus!$A$408:$FN$450,F$1)","v":0},{"$f":"VLOOKUP(DropDownList!$B$47,CntyQryCensus!$A$408:$FN$450,G$1)","v":6},{"$f":"VLOOKUP(DropDownList!$B$47,CntyQryCensus!$A$408:$FN$450,H$1)","v":0},{"$f":"VLOOKUP(DropDownList!$B$47,CntyQryCensus!$A$408:$FN$450,I$1)","v":8},{"$f":"VLOOKUP(DropDownList!$B$47,CntyQryCensus!$A$408:$FN$450,J$1)","v":7},{"$f":"VLOOKUP(DropDownList!$B$47,CntyQryCensus!$A$408:$FN$450,K$1)","v":14},{"$f":"VLOOKUP(DropDownList!$B$47,CntyQryCensus!$A$408:$FN$450,L$1)","v":0},{"$f":"VLOOKUP(DropDownList!$B$47,CntyQryCensus!$A$408:$FN$450,M$1)","v":33},{"$f":"VLOOKUP(DropDownList!$B$47,CntyQryCensus!$A$408:$FN$450,N$1)","v":107},{"$f":"VLOOKUP(DropDownList!$B$47,CntyQryCensus!$A$408:$FN$450,O$1)","v":357},{"$f":"VLOOKUP(DropDownList!$B$47,CntyQryCensus!$A$408:$FN$450,P$1)","v":487},{"$f":"VLOOKUP(DropDownList!$B$47,CntyQryCensus!$A$408:$FN$450,Q$1)","v":765},{"$f":"VLOOKUP(DropDownList!$B$47,CntyQryCensus!$A$408:$FN$450,R$1)","v":726},{"$f":"VLOOKUP(DropDownList!$B$47,CntyQryCensus!$A$408:$FN$450,S$1)","v":1087},{"$f":"VLOOKUP(DropDownList!$B$47,CntyQryCensus!$A$408:$FN$450,T$1)","v":693},{"$f":"VLOOKUP(DropDownList!$B$47,CntyQryCensus!$A$408:$FN$450,U$1)","v":329},{"$f":"VLOOKUP(DropDownList!$B$47,CntyQryCensus!$A$408:$FN$450,V$1)","v":98},{"$f":"VLOOKUP(DropDownList!$B$47,CntyQryCensus!$A$408:$FN$450,W$1)","v":124},{"$f":"VLOOKUP(DropDownList!$B$47,CntyQryCensus!$A$408:$FN$450,X$1)","v":49},{"$f":"VLOOKUP(DropDownList!$B$47,CntyQryCensus!$A$408:$FN$450,Y$1)","v":27},{"$f":"VLOOKUP(DropDownList!$B$47,CntyQryCensus!$A$408:$FN$450,Z$1)","v":11},{"$f":"VLOOKUP(DropDownList!$B$47,CntyQryCensus!$A$408:$FN$450,AA$1)","v":0},{"$f":"VLOOKUP(DropDownList!$B$47,CntyQryCensus!$A$408:$FN$450,AB$1)","v":0},{"$f":"VLOOKUP(DropDownList!$B$47,CntyQryCensus!$A$408:$FN$450,AC$1)","v":0},{"$f":"VLOOKUP(DropDownList!$B$47,CntyQryCensus!$A$408:$FN$450,AD$1)","v":99400},{"$f":"VLOOKUP(DropDownList!$B$47,CntyQryCensus!$A$408:$FN$450,AE$1)","v":7637},{"$f":"VLOOKUP(DropDownList!$B$47,CntyQryCensus!$A$408:$FN$450,AF$1)","v":130},{"$f":"VLOOKUP(DropDownList!$B$47,CntyQryCensus!$A$408:$FN$450,AG$1)","v":140},{"$f":"VLOOKUP(DropDownList!$B$47,CntyQryCensus!$A$408:$FN$450,AH$1)","v":260},{"$f":"VLOOKUP(DropDownList!$B$47,CntyQryCensus!$A$408:$FN$450,AI$1)","v":252},{"$f":"VLOOKUP(DropDownList!$B$47,CntyQryCensus!$A$408:$FN$450,AJ$1)","v":212},{"$f":"VLOOKUP(DropDownList!$B$47,CntyQryCensus!$A$408:$FN$450,AK$1)","v":229},{"$f":"VLOOKUP(DropDownList!$B$47,CntyQryCensus!$A$408:$FN$450,AL$1)","v":180},{"$f":"VLOOKUP(DropDownList!$B$47,CntyQryCensus!$A$408:$FN$450,AM$1)","v":164},{"$f":"VLOOKUP(DropDownList!$B$47,CntyQryCensus!$A$408:$FN$450,AN$1)","v":261},{"$f":"VLOOKUP(DropDownList!$B$47,CntyQryCensus!$A$408:$FN$450,AO$1)","v":496},{"$f":"VLOOKUP(DropDownList!$B$47,CntyQryCensus!$A$408:$FN$450,AP$1)","v":682},{"$f":"VLOOKUP(DropDownList!$B$47,CntyQryCensus!$A$408:$FN$450,AQ$1)","v":876},{"$f":"VLOOKUP(DropDownList!$B$47,CntyQryCensus!$A$408:$FN$450,AR$1)","v":861},{"$f":"VLOOKUP(DropDownList!$B$47,CntyQryCensus!$A$408:$FN$450,AS$1)","v":1329},{"$f":"VLOOKUP(DropDownList!$B$47,CntyQryCensus!$A$408:$FN$450,AT$1)","v":771},{"$f":"VLOOKUP(DropDownList!$B$47,CntyQryCensus!$A$408:$FN$450,AU$1)","v":387},{"$f":"VLOOKUP(DropDownList!$B$47,CntyQryCensus!$A$408:$FN$450,AV$1)","v":134},{"$f":"VLOOKUP(DropDownList!$B$47,CntyQryCensus!$A$408:$FN$450,AW$1)","v":150},{"$f":"VLOOKUP(DropDownList!$B$47,CntyQryCensus!$A$408:$FN$450,AX$1)","v":61},{"$f":"VLOOKUP(DropDownList!$B$47,CntyQryCensus!$A$408:$FN$450,AY$1)","v":34},{"$f":"VLOOKUP(DropDownList!$B$47,CntyQryCensus!$A$408:$FN$450,AZ$1)","v":22},{"$f":"VLOOKUP(DropDownList!$B$47,CntyQryCensus!$A$408:$FN$450,BA$1)","v":6},{"$f":"VLOOKUP(DropDownList!$B$47,CntyQryCensus!$A$408:$FN$450,BB$1)","v":0},{"$f":"VLOOKUP(DropDownList!$B$47,CntyQryCensus!$A$408:$FN$450,BC$1)","v":0},{"$f":"VLOOKUP(DropDownList!$B$47,CntyQryCensus!$A$408:$FN$450,BD$1)","v":89300},{"$f":"VLOOKUP(DropDownList!$B$47,CntyQryCensus!$A$408:$FN$450,BE$1)","v":4928},{"$f":"VLOOKUP(DropDownList!$B$47,CntyQryCensus!$A$408:$FN$450,BF$1)","v":3576},{"$f":"VLOOKUP(DropDownList!$B$47,CntyQryCensus!$A$408:$FN$450,BG$1)","v":0},{"$f":"VLOOKUP(DropDownList!$B$47,CntyQryCensus!$A$408:$FN$450,BH$1)","v":15},{"$f":"VLOOKUP(DropDownList!$B$47,CntyQryCensus!$A$408:$FN$450,BI$1)","v":7},{"$f":"VLOOKUP(DropDownList!$B$47,CntyQryCensus!$A$408:$FN$450,BJ$1)","v":55},{"$f":"VLOOKUP(DropDownList!$B$47,CntyQryCensus!$A$408:$FN$450,BK$1)","v":93},{"$f":"VLOOKUP(DropDownList!$B$47,CntyQryCensus!$A$408:$FN$450,BL$1)","v":188},{"$f":"VLOOKUP(DropDownList!$B$47,CntyQryCensus!$A$408:$FN$450,BM$1)","v":324},{"$f":"VLOOKUP(DropDownList!$B$47,CntyQryCensus!$A$408:$FN$450,BN$1)","v":480},{"$f":"VLOOKUP(DropDownList!$B$47,CntyQryCensus!$A$408:$FN$450,BO$1)","v":478},{"$f":"VLOOKUP(DropDownList!$B$47,CntyQryCensus!$A$408:$FN$450,BP$1)","v":1039},{"$f":"VLOOKUP(DropDownList!$B$47,CntyQryCensus!$A$408:$FN$450,BQ$1)","v":502},{"$f":"VLOOKUP(DropDownList!$B$47,CntyQryCensus!$A$408:$FN$450,BR$1)","v":268},{"$f":"VLOOKUP(DropDownList!$B$47,CntyQryCensus!$A$408:$FN$450,BS$1)","v":104},{"$f":"VLOOKUP(DropDownList!$B$47,CntyQryCensus!$A$408:$FN$450,BT$1)","v":9},{"$f":"VLOOKUP(DropDownList!$B$47,CntyQryCensus!$A$408:$FN$450,BU$1)","v":14},{"$f":"VLOOKUP(DropDownList!$B$47,CntyQryCensus!$A$408:$FN$450,BV$1)","v":1352},{"$f":"VLOOKUP(DropDownList!$B$47,CntyQryCensus!$A$408:$FN$450,BW$1)","v":0},{"$f":"VLOOKUP(DropDownList!$B$47,CntyQryCensus!$A$408:$FN$450,BX$1)","v":0},{"$f":"VLOOKUP(DropDownList!$B$47,CntyQryCensus!$A$408:$FN$450,BY$1)","v":14},{"$f":"VLOOKUP(DropDownList!$B$47,CntyQryCensus!$A$408:$FN$450,BZ$1)","v":60},{"$f":"VLOOKUP(DropDownList!$B$47,CntyQryCensus!$A$408:$FN$450,CA$1)","v":138},{"$f":"VLOOKUP(DropDownList!$B$47,CntyQryCensus!$A$408:$FN$450,CB$1)","v":233},{"$f":"VLOOKUP(DropDownList!$B$47,CntyQryCensus!$A$408:$FN$450,CC$1)","v":269},{"$f":"VLOOKUP(DropDownList!$B$47,CntyQryCensus!$A$408:$FN$450,CD$1)","v":340},{"$f":"VLOOKUP(DropDownList!$B$47,CntyQryCensus!$A$408:$FN$450,CE$1)","v":215},{"$f":"VLOOKUP(DropDownList!$B$47,CntyQryCensus!$A$408:$FN$450,CF$1)","v":61},{"$f":"VLOOKUP(DropDownList!$B$47,CntyQryCensus!$A$408:$FN$450,CG$1)","v":22},{"$f":"VLOOKUP(DropDownList!$B$47,CntyQryCensus!$A$408:$FN$450,CH$1)","v":0},{"$f":"VLOOKUP(DropDownList!$B$47,CntyQryCensus!$A$408:$FN$450,CI$1)","v":0},{"$f":"VLOOKUP(DropDownList!$B$47,CntyQryCensus!$A$408:$FN$450,CJ$1)","v":0},{"$f":"VLOOKUP(DropDownList!$B$47,CntyQryCensus!$A$408:$FN$450,CK$1)","v":1036},{"$f":"VLOOKUP(DropDownList!$B$47,CntyQryCensus!$A$408:$FN$450,CL$1)","v":393},{"$f":"VLOOKUP(DropDownList!$B$47,CntyQryCensus!$A$408:$FN$450,CM$1)","v":4928},{"$f":"VLOOKUP(DropDownList!$B$47,CntyQryCensus!$A$408:$FN$450,CN$1)","v":3576},{"$f":"VLOOKUP(DropDownList!$B$47,CntyQryCensus!$A$408:$FN$450,CO$1)","v":104},{"$f":"VLOOKUP(DropDownList!$B$47,CntyQryCensus!$A$408:$FN$450,CP$1)","v":413},{"$f":"VLOOKUP(DropDownList!$B$47,CntyQryCensus!$A$408:$FN$450,CQ$1)","v":763},{"$f":"VLOOKUP(DropDownList!$B$47,CntyQryCensus!$A$408:$FN$450,CR$1)","v":897},{"$f":"VLOOKUP(DropDownList!$B$47,CntyQryCensus!$A$408:$FN$450,CS$1)","v":443},{"$f":"VLOOKUP(DropDownList!$B$47,CntyQryCensus!$A$408:$FN$450,CT$1)","v":385},{"$f":"VLOOKUP(DropDownList!$B$47,CntyQryCensus!$A$408:$FN$450,CU$1)","v":152},{"$f":"VLOOKUP(DropDownList!$B$47,CntyQryCensus!$A$408:$FN$450,CV$1)","v":148},{"$f":"VLOOKUP(DropDownList!$B$47,CntyQryCensus!$A$408:$FN$450,CW$1)","v":258},{"$f":"VLOOKUP(DropDownList!$B$47,CntyQryCensus!$A$408:$FN$450,CX$1)","v":13},{"$f":"VLOOKUP(DropDownList!$B$47,CntyQryCensus!$A$408:$FN$450,CY$1)","v":1352},{"$f":"VLOOKUP(DropDownList!$B$47,CntyQryCensus!$A$408:$FN$450,CZ$1)","v":363},{"$f":"VLOOKUP(DropDownList!$B$47,CntyQryCensus!$A$408:$FN$450,DA$1)","v":310},{"$f":"VLOOKUP(DropDownList!$B$47,CntyQryCensus!$A$408:$FN$450,DB$1)","v":241},{"$f":"VLOOKUP(DropDownList!$B$47,CntyQryCensus!$A$408:$FN$450,DC$1)","v":142},{"$f":"VLOOKUP(DropDownList!$B$47,CntyQryCensus!$A$408:$FN$450,DD$1)","v":62},{"$f":"VLOOKUP(DropDownList!$B$47,CntyQryCensus!$A$408:$FN$450,DE$1)","v":73},{"$f":"VLOOKUP(DropDownList!$B$47,CntyQryCensus!$A$408:$FN$450,DF$1)","v":19},{"$f":"VLOOKUP(DropDownList!$B$47,CntyQryCensus!$A$408:$FN$450,DG$1)","v":68},{"$f":"VLOOKUP(DropDownList!$B$47,CntyQryCensus!$A$408:$FN$450,DH$1)","v":57},{"$f":"VLOOKUP(DropDownList!$B$47,CntyQryCensus!$A$408:$FN$450,DI$1)","v":17},{"$f":"VLOOKUP(DropDownList!$B$47,CntyQryCensus!$A$408:$FN$450,DJ$1)","v":4928},{"$f":"VLOOKUP(DropDownList!$B$47,CntyQryCensus!$A$408:$FN$450,DK$1)","v":138},{"$f":"VLOOKUP(DropDownList!$B$47,CntyQryCensus!$A$408:$FN$450,DL$1)","v":0},{"$f":"VLOOKUP(DropDownList!$B$47,CntyQryCensus!$A$408:$FN$450,DM$1)","v":0},{"$f":"VLOOKUP(DropDownList!$B$47,CntyQryCensus!$A$408:$FN$450,DN$1)","v":0},{"$f":"VLOOKUP(DropDownList!$B$47,CntyQryCensus!$A$408:$FN$450,DO$1)","v":0},{"$f":"VLOOKUP(DropDownList!$B$47,CntyQryCensus!$A$408:$FN$450,DP$1)","v":108},{"$f":"VLOOKUP(DropDownList!$B$47,CntyQryCensus!$A$408:$FN$450,DQ$1)","v":30},{"$f":"VLOOKUP(DropDownList!$B$47,CntyQryCensus!$A$408:$FN$450,DR$1)","v":405},{"$f":"VLOOKUP(DropDownList!$B$47,CntyQryCensus!$A$408:$FN$450,DS$1)","v":38},{"$f":"VLOOKUP(DropDownList!$B$47,CntyQryCensus!$A$408:$FN$450,DT$1)","v":75},{"$f":"VLOOKUP(DropDownList!$B$47,CntyQryCensus!$A$408:$FN$450,DU$1)","v":52},{"$f":"VLOOKUP(DropDownList!$B$47,CntyQryCensus!$A$408:$FN$450,DV$1)","v":54},{"$f":"VLOOKUP(DropDownList!$B$47,CntyQryCensus!$A$408:$FN$450,DW$1)","v":186},{"$f":"VLOOKUP(DropDownList!$B$47,CntyQryCensus!$A$408:$FN$450,DX$1)","v":0},{"$f":"VLOOKUP(DropDownList!$B$47,CntyQryCensus!$A$408:$FN$450,DY$1)","v":781},{"$f":"VLOOKUP(DropDownList!$B$47,CntyQryCensus!$A$408:$FN$450,DZ$1)","v":285},{"$f":"VLOOKUP(DropDownList!$B$47,CntyQryCensus!$A$408:$FN$450,EA$1)","v":90},{"$f":"VLOOKUP(DropDownList!$B$47,CntyQryCensus!$A$408:$FN$450,EB$1)","v":58},{"$f":"VLOOKUP(DropDownList!$B$47,CntyQryCensus!$A$408:$FN$450,EC$1)","v":123},{"$f":"VLOOKUP(DropDownList!$B$47,CntyQryCensus!$A$408:$FN$450,ED$1)","v":225},{"$f":"VLOOKUP(DropDownList!$B$47,CntyQryCensus!$A$408:$FN$450,EE$1)","v":0},{"$f":"VLOOKUP(DropDownList!$B$47,CntyQryCensus!$A$408:$FN$450,EF$1)","v":1067},{"$f":"VLOOKUP(DropDownList!$B$47,CntyQryCensus!$A$408:$FN$450,EG$1)","v":349},{"$f":"VLOOKUP(DropDownList!$B$47,CntyQryCensus!$A$408:$FN$450,EH$1)","v":217},{"$f":"VLOOKUP(DropDownList!$B$47,CntyQryCensus!$A$408:$FN$450,EI$1)","v":178},{"$f":"VLOOKUP(DropDownList!$B$47,CntyQryCensus!$A$408:$FN$450,EJ$1)","v":184},{"$f":"VLOOKUP(DropDownList!$B$47,CntyQryCensus!$A$408:$FN$450,EK$1)","v":139},{"$f":"VLOOKUP(DropDownList!$B$47,CntyQryCensus!$A$408:$FN$450,EL$1)","v":0},{"$f":"VLOOKUP(DropDownList!$B$47,CntyQryCensus!$A$408:$FN$450,EM$1)","v":1437},{"$f":"VLOOKUP(DropDownList!$B$47,CntyQryCensus!$A$408:$FN$450,EN$1)","v":653},{"$f":"VLOOKUP(DropDownList!$B$47,CntyQryCensus!$A$408:$FN$450,EO$1)","v":499},{"$f":"VLOOKUP(DropDownList!$B$47,CntyQryCensus!$A$408:$FN$450,EP$1)","v":182},{"$f":"VLOOKUP(DropDownList!$B$47,CntyQryCensus!$A$408:$FN$450,EQ$1)","v":80},{"$f":"VLOOKUP(DropDownList!$B$47,CntyQryCensus!$A$408:$FN$450,ER$1)","v":23},{"$f":"VLOOKUP(DropDownList!$B$47,CntyQryCensus!$A$408:$FN$450,ES$1)","v":0},{"$f":"VLOOKUP(DropDownList!$B$47,CntyQryCensus!$A$408:$FN$450,ET$1)","v":612},{"$f":"VLOOKUP(DropDownList!$B$47,CntyQryCensus!$A$408:$FN$450,EU$1)","v":430},{"$f":"VLOOKUP(DropDownList!$B$47,CntyQryCensus!$A$408:$FN$450,EV$1)","v":130},{"$f":"VLOOKUP(DropDownList!$B$47,CntyQryCensus!$A$408:$FN$450,EW$1)","v":29},{"$f":"VLOOKUP(DropDownList!$B$47,CntyQryCensus!$A$408:$FN$450,EX$1)","v":8},{"$f":"VLOOKUP(DropDownList!$B$47,CntyQryCensus!$A$408:$FN$450,EY$1)","v":15},{"$f":"VLOOKUP(DropDownList!$B$47,CntyQryCensus!$A$408:$FN$450,EZ$1)","v":0},{"$f":"VLOOKUP(DropDownList!$B$47,CntyQryCensus!$A$408:$FN$450,FA$1)","v":344},{"$f":"VLOOKUP(DropDownList!$B$47,CntyQryCensus!$A$408:$FN$450,FB$1)","v":295},{"$f":"VLOOKUP(DropDownList!$B$47,CntyQryCensus!$A$408:$FN$450,FC$1)","v":28},{"$f":"VLOOKUP(DropDownList!$B$47,CntyQryCensus!$A$408:$FN$450,FD$1)","v":6},{"$f":"VLOOKUP(DropDownList!$B$47,CntyQryCensus!$A$408:$FN$450,FE$1)","v":9},{"$f":"VLOOKUP(DropDownList!$B$47,CntyQryCensus!$A$408:$FN$450,FF$1)","v":6},{"$f":"VLOOKUP(DropDownList!$B$47,CntyQryCensus!$A$408:$FN$450,FG$1)","v":0},{"$f":"VLOOKUP(DropDownList!$B$47,CntyQryCensus!$A$408:$FN$450,FH$1)","v":144},{"$f":"VLOOKUP(DropDownList!$B$47,CntyQryCensus!$A$408:$FN$450,FI$1)","v":144},{"$f":"VLOOKUP(DropDownList!$B$47,CntyQryCensus!$A$408:$FN$450,FJ$1)","v":0},{"$f":"VLOOKUP(DropDownList!$B$47,CntyQryCensus!$A$408:$FN$450,FK$1)","v":0},{"$f":"VLOOKUP(DropDownList!$B$47,CntyQryCensus!$A$408:$FN$450,FL$1)","v":0},{"$f":"VLOOKUP(DropDownList!$B$47,CntyQryCensus!$A$408:$FN$450,FM$1)","v":0},{"$f":"VLOOKUP(DropDownList!$B$47,CntyQryCensus!$A$408:$FN$450,FN$1)","v":0}]
[]
[]
["Census 2000 SummaryFile3 Sample Data  -  SF3TownQry9HHIncomeByTenure"]
["NAME","LOGRECNO","COUNTY","TotalPop","HCT11OccHU","HCT11OwnOccHU","HCT11OOHUInc<5K","HCT11OOHUInc5to10K","HCT11OOHUInc10to15K","HCT11OOHUInc15to20K","HCT11OOHUInc20to25K","HCT11OOHUInc25to35K","HCT11OOHUInc35to50K","HCT11OOHUInc50to75K","HCT11OOHUInc75to100K","HCT11OOHUInc100to150K","HCT11OOHUInc>150K","HCT11RentOccHU","HCT11ROHUInc<5K","HCT11ROHUInc5to10K","HCT11ROHUInc10to15K","HCT11ROHUInc15to20K","HCT11ROHUInc20to25K","HCT11ROHUInc25to35K","HCT11ROHUInc35to50K","HCT11ROHUInc50to75K","HCT11ROHUInc75to100K","HCT11ROHUInc100to150K","HCT11ROHUInc>150K","HCT12MedHHInc","HCT12MedOwnOccHHInc","HCT12MedRentOccHHInc","Summary Level"]
[{"$f":"VLOOKUP(DropDownList!$B$47,CntyQryCensus!$A$459:$AG$501,A$1)","v":"Rochester"},{"$f":"VLOOKUP(DropDownList!$B$47,CntyQryCensus!$A$459:$AG$501,B$1)","v":"0000318"},{"$f":"VLOOKUP(DropDownList!$B$47,CntyQryCensus!$A$459:$AG$501,C$1)","v":"017"},{"$f":"VLOOKUP(DropDownList!$B$47,CntyQryCensus!$A$459:$AG$501,D$1)","v":29752},{"$f":"VLOOKUP(DropDownList!$B$47,CntyQryCensus!$A$459:$AG$501,E$1)","v":29238},{"$f":"VLOOKUP(DropDownList!$B$47,CntyQryCensus!$A$459:$AG$501,F$1)","v":28388},{"$f":"VLOOKUP(DropDownList!$B$47,CntyQryCensus!$A$459:$AG$501,G$1)","v":251},{"$f":"VLOOKUP(DropDownList!$B$47,CntyQryCensus!$A$459:$AG$501,H$1)","v":92},{"$f":"VLOOKUP(DropDownList!$B$47,CntyQryCensus!$A$459:$AG$501,I$1)","v":361},{"$f":"VLOOKUP(DropDownList!$B$47,CntyQryCensus!$A$459:$AG$501,J$1)","v":15},{"$f":"VLOOKUP(DropDownList!$B$47,CntyQryCensus!$A$459:$AG$501,K$1)","v":131},{"$f":"VLOOKUP(DropDownList!$B$47,CntyQryCensus!$A$459:$AG$501,L$1)","v":514},{"$f":"VLOOKUP(DropDownList!$B$47,CntyQryCensus!$A$459:$AG$501,M$1)","v":547},{"$f":"VLOOKUP(DropDownList!$B$47,CntyQryCensus!$A$459:$AG$501,N$1)","v":29205},{"$f":"VLOOKUP(DropDownList!$B$47,CntyQryCensus!$A$459:$AG$501,O$1)","v":5457},{"$f":"VLOOKUP(DropDownList!$B$47,CntyQryCensus!$A$459:$AG$501,P$1)","v":3381},{"$f":"VLOOKUP(DropDownList!$B$47,CntyQryCensus!$A$459:$AG$501,Q$1)","v":3779},{"$f":"VLOOKUP(DropDownList!$B$47,CntyQryCensus!$A$459:$AG$501,R$1)","v":4024},{"$f":"VLOOKUP(DropDownList!$B$47,CntyQryCensus!$A$459:$AG$501,S$1)","v":4863},{"$f":"VLOOKUP(DropDownList!$B$47,CntyQryCensus!$A$459:$AG$501,T$1)","v":3851},{"$f":"VLOOKUP(DropDownList!$B$47,CntyQryCensus!$A$459:$AG$501,U$1)","v":2334},{"$f":"VLOOKUP(DropDownList!$B$47,CntyQryCensus!$A$459:$AG$501,V$1)","v":2063},{"$f":"VLOOKUP(DropDownList!$B$47,CntyQryCensus!$A$459:$AG$501,W$1)","v":40.700000000000003},{"$f":"VLOOKUP(DropDownList!$B$47,CntyQryCensus!$A$459:$AG$501,X$1)","v":39.5},{"$f":"VLOOKUP(DropDownList!$B$47,CntyQryCensus!$A$459:$AG$501,Y$1)","v":42.1},{"$f":"VLOOKUP(DropDownList!$B$47,CntyQryCensus!$A$459:$AG$501,Z$1)","v":12378},{"$f":"VLOOKUP(DropDownList!$B$47,CntyQryCensus!$A$459:$AG$501,AA$1)","v":29512},{"$f":"VLOOKUP(DropDownList!$B$47,CntyQryCensus!$A$459:$AG$501,AB$1)","v":14994},{"$f":"VLOOKUP(DropDownList!$B$47,CntyQryCensus!$A$459:$AG$501,AC$1)","v":14518},{"$f":"VLOOKUP(DropDownList!$B$47,CntyQryCensus!$A$459:$AG$501,AD$1)","v":2.38},{"$f":"VLOOKUP(DropDownList!$B$47,CntyQryCensus!$A$459:$AG$501,AE$1)","v":7936},{"$f":"VLOOKUP(DropDownList!$B$47,CntyQryCensus!$A$459:$AG$501,AF$1)","v":5788},{"$f":"VLOOKUP(DropDownList!$B$47,CntyQryCensus!$A$459:$AG$501,AG$1)","v":2148}]
[]
[]
[]
[]
[]
[{"$f":"VLOOKUP(DropDownList!$B$47,CntyQryCensus!$A$510:$DA$522,A$1)","v":"Rochester"}]
[]
[]
[]
[]
[]
[]
[]
["Census 2000 SummaryFile3 Sample Data - SF3TownQry10Disabil"]
["NAME","LOGRECNO","COUNTY","TotalPop","PCT026001-NonInstPop5yrs+","PCT026002-MaleNonInstPop5yrs+","PCT026003","PCT026004","PCT026005","PCT026006","PCT026007","PCT026008","PCT026009","PCT026010","PCT026011","PCT026012","PCT026013","PCT026014","PCT026015","PCT026016","PCT026017","PCT026018","PCT026019","PCT026020","PCT026021","PCT026022","PCT026023","PCT026024","PCT026025","PCT026026","PCT026027","PCT026028","PCT026029","PCT026030","PCT026031","PCT026032","PCT026033","PCT026034","PCT026035","PCT026036","PCT026037","PCT026038","PCT026039","PCT026040","PCT026041","PCT026042","PCT026043","PCT026044","PCT026045","PCT026046","PCT026047","PCT026048","PCT026049","PCT026050","PCT026051","PCT026052","PCT026053","PCT026054","PCT026055","PCT026056","PCT026057","PCT026058","PCT026059","PCT026060","PCT026061","PCT026062","PCT026063","PCT026064","PCT026065","PCT026066","PCT026067","PCT026068","PCT026069","PCT026070","PCT026071","PCT026072","PCT026073","PCT026074","PCT026075","PCT026076","PCT026077","PCT026078","PCT026079","PCT026080","PCT026081","PCT026082","PCT026083","PCT026084","PCT026085","PCT026086","PCT026087","PCT026088","PCT026089","PCT026090","PCT026091","PCT026092","PCT026093","PCT026094","PCT026095","PCT026096","PCT026097","PCT026098","PCT026099","PCT026100","PCT026101"]
[{"$f":"VLOOKUP(DropDownList!$B$47,CntyQryCensus!$A$510:$DA$522,A$1)","v":"Rochester"},{"$f":"VLOOKUP(DropDownList!$B$47,CntyQryCensus!$A$510:$DA$522,B$1)","v":"0003956"},{"$f":"VLOOKUP(DropDownList!$B$47,CntyQryCensus!$A$510:$DA$522,C$1)","v":"65140"},{"$f":"VLOOKUP(DropDownList!$B$47,CntyQryCensus!$A$510:$DA$522,D$1)","v":28461},{"$f":"VLOOKUP(DropDownList!$B$47,CntyQryCensus!$A$510:$DA$522,E$1)","v":26314},{"$f":"VLOOKUP(DropDownList!$B$47,CntyQryCensus!$A$510:$DA$522,F$1)","v":12732},{"$f":"VLOOKUP(DropDownList!$B$47,CntyQryCensus!$A$510:$DA$522,G$1)","v":2359},{"$f":"VLOOKUP(DropDownList!$B$47,CntyQryCensus!$A$510:$DA$522,H$1)","v":250},{"$f":"VLOOKUP(DropDownList!$B$47,CntyQryCensus!$A$510:$DA$522,I$1)","v":0},{"$f":"VLOOKUP(DropDownList!$B$47,CntyQryCensus!$A$510:$DA$522,J$1)","v":7},{"$f":"VLOOKUP(DropDownList!$B$47,CntyQryCensus!$A$510:$DA$522,K$1)","v":243},{"$f":"VLOOKUP(DropDownList!$B$47,CntyQryCensus!$A$510:$DA$522,L$1)","v":0},{"$f":"VLOOKUP(DropDownList!$B$47,CntyQryCensus!$A$510:$DA$522,M$1)","v":35},{"$f":"VLOOKUP(DropDownList!$B$47,CntyQryCensus!$A$510:$DA$522,N$1)","v":26},{"$f":"VLOOKUP(DropDownList!$B$47,CntyQryCensus!$A$510:$DA$522,O$1)","v":9},{"$f":"VLOOKUP(DropDownList!$B$47,CntyQryCensus!$A$510:$DA$522,P$1)","v":2074},{"$f":"VLOOKUP(DropDownList!$B$47,CntyQryCensus!$A$510:$DA$522,Q$1)","v":821},{"$f":"VLOOKUP(DropDownList!$B$47,CntyQryCensus!$A$510:$DA$522,R$1)","v":52},{"$f":"VLOOKUP(DropDownList!$B$47,CntyQryCensus!$A$510:$DA$522,S$1)","v":0},{"$f":"VLOOKUP(DropDownList!$B$47,CntyQryCensus!$A$510:$DA$522,T$1)","v":0},{"$f":"VLOOKUP(DropDownList!$B$47,CntyQryCensus!$A$510:$DA$522,U$1)","v":21},{"$f":"VLOOKUP(DropDownList!$B$47,CntyQryCensus!$A$510:$DA$522,V$1)","v":0},{"$f":"VLOOKUP(DropDownList!$B$47,CntyQryCensus!$A$510:$DA$522,W$1)","v":0},{"$f":"VLOOKUP(DropDownList!$B$47,CntyQryCensus!$A$510:$DA$522,X$1)","v":31},{"$f":"VLOOKUP(DropDownList!$B$47,CntyQryCensus!$A$510:$DA$522,Y$1)","v":39},{"$f":"VLOOKUP(DropDownList!$B$47,CntyQryCensus!$A$510:$DA$522,Z$1)","v":0},{"$f":"VLOOKUP(DropDownList!$B$47,CntyQryCensus!$A$510:$DA$522,AA$1)","v":39},{"$f":"VLOOKUP(DropDownList!$B$47,CntyQryCensus!$A$510:$DA$522,AB$1)","v":8},{"$f":"VLOOKUP(DropDownList!$B$47,CntyQryCensus!$A$510:$DA$522,AC$1)","v":31},{"$f":"VLOOKUP(DropDownList!$B$47,CntyQryCensus!$A$510:$DA$522,AD$1)","v":730},{"$f":"VLOOKUP(DropDownList!$B$47,CntyQryCensus!$A$510:$DA$522,AE$1)","v":8055},{"$f":"VLOOKUP(DropDownList!$B$47,CntyQryCensus!$A$510:$DA$522,AF$1)","v":1029},{"$f":"VLOOKUP(DropDownList!$B$47,CntyQryCensus!$A$510:$DA$522,AG$1)","v":202},{"$f":"VLOOKUP(DropDownList!$B$47,CntyQryCensus!$A$510:$DA$522,AH$1)","v":162},{"$f":"VLOOKUP(DropDownList!$B$47,CntyQryCensus!$A$510:$DA$522,AI$1)","v":102},{"$f":"VLOOKUP(DropDownList!$B$47,CntyQryCensus!$A$510:$DA$522,AJ$1)","v":0},{"$f":"VLOOKUP(DropDownList!$B$47,CntyQryCensus!$A$510:$DA$522,AK$1)","v":0},{"$f":"VLOOKUP(DropDownList!$B$47,CntyQryCensus!$A$510:$DA$522,AL$1)","v":563},{"$f":"VLOOKUP(DropDownList!$B$47,CntyQryCensus!$A$510:$DA$522,AM$1)","v":578},{"$f":"VLOOKUP(DropDownList!$B$47,CntyQryCensus!$A$510:$DA$522,AN$1)","v":77},{"$f":"VLOOKUP(DropDownList!$B$47,CntyQryCensus!$A$510:$DA$522,AO$1)","v":501},{"$f":"VLOOKUP(DropDownList!$B$47,CntyQryCensus!$A$510:$DA$522,AP$1)","v":119},{"$f":"VLOOKUP(DropDownList!$B$47,CntyQryCensus!$A$510:$DA$522,AQ$1)","v":382},{"$f":"VLOOKUP(DropDownList!$B$47,CntyQryCensus!$A$510:$DA$522,AR$1)","v":6448},{"$f":"VLOOKUP(DropDownList!$B$47,CntyQryCensus!$A$510:$DA$522,AS$1)","v":1497},{"$f":"VLOOKUP(DropDownList!$B$47,CntyQryCensus!$A$510:$DA$522,AT$1)","v":329},{"$f":"VLOOKUP(DropDownList!$B$47,CntyQryCensus!$A$510:$DA$522,AU$1)","v":60},{"$f":"VLOOKUP(DropDownList!$B$47,CntyQryCensus!$A$510:$DA$522,AV$1)","v":193},{"$f":"VLOOKUP(DropDownList!$B$47,CntyQryCensus!$A$510:$DA$522,AW$1)","v":41},{"$f":"VLOOKUP(DropDownList!$B$47,CntyQryCensus!$A$510:$DA$522,AX$1)","v":0},{"$f":"VLOOKUP(DropDownList!$B$47,CntyQryCensus!$A$510:$DA$522,AY$1)","v":35},{"$f":"VLOOKUP(DropDownList!$B$47,CntyQryCensus!$A$510:$DA$522,AZ$1)","v":279},{"$f":"VLOOKUP(DropDownList!$B$47,CntyQryCensus!$A$510:$DA$522,BA$1)","v":102},{"$f":"VLOOKUP(DropDownList!$B$47,CntyQryCensus!$A$510:$DA$522,BB$1)","v":177},{"$f":"VLOOKUP(DropDownList!$B$47,CntyQryCensus!$A$510:$DA$522,BC$1)","v":889},{"$f":"VLOOKUP(DropDownList!$B$47,CntyQryCensus!$A$510:$DA$522,BD$1)","v":13582},{"$f":"VLOOKUP(DropDownList!$B$47,CntyQryCensus!$A$510:$DA$522,BE$1)","v":2143},{"$f":"VLOOKUP(DropDownList!$B$47,CntyQryCensus!$A$510:$DA$522,BF$1)","v":71},{"$f":"VLOOKUP(DropDownList!$B$47,CntyQryCensus!$A$510:$DA$522,BG$1)","v":10},{"$f":"VLOOKUP(DropDownList!$B$47,CntyQryCensus!$A$510:$DA$522,BH$1)","v":7},{"$f":"VLOOKUP(DropDownList!$B$47,CntyQryCensus!$A$510:$DA$522,BI$1)","v":54},{"$f":"VLOOKUP(DropDownList!$B$47,CntyQryCensus!$A$510:$DA$522,BJ$1)","v":0},{"$f":"VLOOKUP(DropDownList!$B$47,CntyQryCensus!$A$510:$DA$522,BK$1)","v":28},{"$f":"VLOOKUP(DropDownList!$B$47,CntyQryCensus!$A$510:$DA$522,BL$1)","v":28},{"$f":"VLOOKUP(DropDownList!$B$47,CntyQryCensus!$A$510:$DA$522,BM$1)","v":0},{"$f":"VLOOKUP(DropDownList!$B$47,CntyQryCensus!$A$510:$DA$522,BN$1)","v":2044},{"$f":"VLOOKUP(DropDownList!$B$47,CntyQryCensus!$A$510:$DA$522,BO$1)","v":898},{"$f":"VLOOKUP(DropDownList!$B$47,CntyQryCensus!$A$510:$DA$522,BP$1)","v":63},{"$f":"VLOOKUP(DropDownList!$B$47,CntyQryCensus!$A$510:$DA$522,BQ$1)","v":0},{"$f":"VLOOKUP(DropDownList!$B$47,CntyQryCensus!$A$510:$DA$522,BR$1)","v":6},{"$f":"VLOOKUP(DropDownList!$B$47,CntyQryCensus!$A$510:$DA$522,BS$1)","v":30},{"$f":"VLOOKUP(DropDownList!$B$47,CntyQryCensus!$A$510:$DA$522,BT$1)","v":0},{"$f":"VLOOKUP(DropDownList!$B$47,CntyQryCensus!$A$510:$DA$522,BU$1)","v":5},{"$f":"VLOOKUP(DropDownList!$B$47,CntyQryCensus!$A$510:$DA$522,BV$1)","v":22},{"$f":"VLOOKUP(DropDownList!$B$47,CntyQryCensus!$A$510:$DA$522,BW$1)","v":0},{"$f":"VLOOKUP(DropDownList!$B$47,CntyQryCensus!$A$510:$DA$522,BX$1)","v":0},{"$f":"VLOOKUP(DropDownList!$B$47,CntyQryCensus!$A$510:$DA$522,BY$1)","v":0},{"$f":"VLOOKUP(DropDownList!$B$47,CntyQryCensus!$A$510:$DA$522,BZ$1)","v":0},{"$f":"VLOOKUP(DropDownList!$B$47,CntyQryCensus!$A$510:$DA$522,CA$1)","v":0},{"$f":"VLOOKUP(DropDownList!$B$47,CntyQryCensus!$A$510:$DA$522,CB$1)","v":835},{"$f":"VLOOKUP(DropDownList!$B$47,CntyQryCensus!$A$510:$DA$522,CC$1)","v":8429},{"$f":"VLOOKUP(DropDownList!$B$47,CntyQryCensus!$A$510:$DA$522,CD$1)","v":917},{"$f":"VLOOKUP(DropDownList!$B$47,CntyQryCensus!$A$510:$DA$522,CE$1)","v":88},{"$f":"VLOOKUP(DropDownList!$B$47,CntyQryCensus!$A$510:$DA$522,CF$1)","v":249},{"$f":"VLOOKUP(DropDownList!$B$47,CntyQryCensus!$A$510:$DA$522,CG$1)","v":82},{"$f":"VLOOKUP(DropDownList!$B$47,CntyQryCensus!$A$510:$DA$522,CH$1)","v":0},{"$f":"VLOOKUP(DropDownList!$B$47,CntyQryCensus!$A$510:$DA$522,CI$1)","v":40},{"$f":"VLOOKUP(DropDownList!$B$47,CntyQryCensus!$A$510:$DA$522,CJ$1)","v":458},{"$f":"VLOOKUP(DropDownList!$B$47,CntyQryCensus!$A$510:$DA$522,CK$1)","v":812},{"$f":"VLOOKUP(DropDownList!$B$47,CntyQryCensus!$A$510:$DA$522,CL$1)","v":144},{"$f":"VLOOKUP(DropDownList!$B$47,CntyQryCensus!$A$510:$DA$522,CM$1)","v":668},{"$f":"VLOOKUP(DropDownList!$B$47,CntyQryCensus!$A$510:$DA$522,CN$1)","v":127},{"$f":"VLOOKUP(DropDownList!$B$47,CntyQryCensus!$A$510:$DA$522,CO$1)","v":541},{"$f":"VLOOKUP(DropDownList!$B$47,CntyQryCensus!$A$510:$DA$522,CP$1)","v":6700},{"$f":"VLOOKUP(DropDownList!$B$47,CntyQryCensus!$A$510:$DA$522,CQ$1)","v":2112},{"$f":"VLOOKUP(DropDownList!$B$47,CntyQryCensus!$A$510:$DA$522,CR$1)","v":472},{"$f":"VLOOKUP(DropDownList!$B$47,CntyQryCensus!$A$510:$DA$522,CS$1)","v":46},{"$f":"VLOOKUP(DropDownList!$B$47,CntyQryCensus!$A$510:$DA$522,CT$1)","v":273},{"$f":"VLOOKUP(DropDownList!$B$47,CntyQryCensus!$A$510:$DA$522,CU$1)","v":15},{"$f":"VLOOKUP(DropDownList!$B$47,CntyQryCensus!$A$510:$DA$522,CV$1)","v":0},{"$f":"VLOOKUP(DropDownList!$B$47,CntyQryCensus!$A$510:$DA$522,CW$1)","v":138},{"$f":"VLOOKUP(DropDownList!$B$47,CntyQryCensus!$A$510:$DA$522,CX$1)","v":454},{"$f":"VLOOKUP(DropDownList!$B$47,CntyQryCensus!$A$510:$DA$522,CY$1)","v":210},{"$f":"VLOOKUP(DropDownList!$B$47,CntyQryCensus!$A$510:$DA$522,CZ$1)","v":244},{"$f":"VLOOKUP(DropDownList!$B$47,CntyQryCensus!$A$510:$DA$522,DA$1)","v":1186}]
[]
[]
[]
[]
[{"$f":"VLOOKUP(DropDownList!$B$47,CntyQryCensus!$A$510:$DA$522,A$1)","v":"Rochester"}]
[]
[]
[]
["ACS",2,{"$f":"B105+1","v":3},{"$f":"C105+1","v":4},5,6,7,8,9,10,11,{"$f":"K105+1","v":12},13,14,15,{"$f":"O105+1","v":16},17,18,19,20,21,22,23,24,25,26,27,28,29,30,31,32,33,34,35,36,37,38,39,40,41,42,43,44,45,46,47,48,49,50,51,52,53,54,55,56,57,58,59,60,61,62,63,64,65,66,67,{"$f":"BO105+1","v":68},69,70,71,72,73,74,75,76,77,78,79,80,81,82,83,84,85,86,87,88,89,90,91,92,93,94,95,96,97,98,99,100,101,102,103,104,105,106,107,108,109,110,111,112,113,114,115,116,117,118,119,120,121,122,123,124,125]
["Househould Data (Housing Unit Type)"]
["NAME","TotalHU",{"$f":"\"MOE \"&B107","v":"MOE TotalHU"},"TotalOccHU",{"$f":"\"MOE \"&D107","v":"MOE TotalOccHU"},"TotalOwnerOccUn",{"$f":"\"MOE \"&F107","v":"MOE TotalOwnerOccUn"},"TotalRenterOccn",{"$f":"\"MOE \"&H107","v":"MOE TotalRenterOccn"},"TotalVacantUntis",{"$f":"\"MOE \"&J107","v":"MOE TotalVacantUntis"},"VacantUnitsForRent",{"$f":"\"MOE \"&L107","v":"MOE VacantUnitsForRent"},"VacantUnitRentedNotOcc",{"$f":"\"MOE \"&N107","v":"MOE VacantUnitRentedNotOcc"},"VacantUnitForSale",{"$f":"\"MOE \"&P107","v":"MOE VacantUnitForSale"},"VacantUnitSoldNotOcc",{"$f":"\"MOE \"&R107","v":"MOE VacantUnitSoldNotOcc"},"VacantUnitSeasonalRec",{"$f":"\"MOE \"&T107","v":"MOE VacantUnitSeasonalRec"},"TotalPopInHousingUnits",{"$f":"\"MOE \"&V107","v":"MOE TotalPopInHousingUnits"},"OwnerOccPopHousingUnits",{"$f":"\"MOE \"&X107","v":"MOE OwnerOccPopHousingUnits"},"RenterOccPopHousingUnits",{"$f":"\"MOE \"&Z107","v":"MOE RenterOccPopHousingUnits"},"TotalUntis",{"$f":"\"MOE \"&AB107","v":"MOE TotalUntis"},"TotalOwnerOccUnits",{"$f":"\"MOE \"&AD107","v":"MOE TotalOwnerOccUnits"},"SigFamOwnerOcc",{"$f":"\"MOE \"&AF107","v":"MOE SigFamOwnerOcc"},"MultiFamOwnerOcc",{"$f":"\"MOE \"&AH107","v":"MOE MultiFamOwnerOcc"},"MobileOwnerOcc",{"$f":"\"MOE \"&AJ107","v":"MOE MobileOwnerOcc"},"TotalRenterOccUnits",{"$f":"\"MOE \"&AL107","v":"MOE TotalRenterOccUnits"},"SigFamRenterOcc",{"$f":"\"MOE \"&AN107","v":"MOE SigFamRenterOcc"},"MultiFamRenterOcc",{"$f":"\"MOE \"&AP107","v":"MOE MultiFamRenterOcc"},"MobileRenterOcc",{"$f":"\"MOE \"&AR107","v":"MOE MobileRenterOcc"},"TotalSigFamilyUnits",{"$f":"\"MOE \"&AT107","v":"MOE TotalSigFamilyUnits"},"TotalMultiFamilyUnits",{"$f":"\"MOE \"&AV107","v":"MOE TotalMultiFamilyUnits"},"TotalMobileUnits",{"$f":"\"MOE \"&AX107","v":"MOE TotalMobileUnits"},"YrHouseBuilt2014Later",{"$f":"\"MOE \"&AZ107","v":"MOE YrHouseBuilt2014Later"},"YrHouseBuilt2010-2013",{"$f":"\"MOE \"&BB107","v":"MOE YrHouseBuilt2010-2013"},"YrHouseBuilt2000-2009",{"$f":"\"MOE \"&BD107","v":"MOE YrHouseBuilt2000-2009"},"YrHouseBuilt1990-1999",{"$f":"\"MOE \"&BF107","v":"MOE YrHouseBuilt1990-1999"},"YrHouseBuilt1980-1989",{"$f":"\"MOE \"&BH107","v":"MOE YrHouseBuilt1980-1989"},"YrHouseBuilt1970-1979",{"$f":"\"MOE \"&BJ107","v":"MOE YrHouseBuilt1970-1979"},"YrHouseBuilt1960-1969",{"$f":"\"MOE \"&BL107","v":"MOE YrHouseBuilt1960-1969"},"YrHouseBuilt1950-1959",{"$f":"\"MOE \"&BN107","v":"MOE YrHouseBuilt1950-1959"},"YrHouseBuilt1940-1949",{"$f":"\"MOE \"&BP107","v":"MOE YrHouseBuilt1940-1949"},"YrHouseBuilt1939orEarlier",{"$f":"\"MOE \"&BR107","v":"MOE YrHouseBuilt1939orEarlier"},"NoBedrooms",{"$f":"\"MOE \"&BT107","v":"MOE NoBedrooms"},"1Bedroom",{"$f":"\"MOE \"&BV107","v":"MOE 1Bedroom"},"2Bedroom",{"$f":"\"MOE \"&BX107","v":"MOE 2Bedroom"},"3Bedroom",{"$f":"\"MOE \"&BZ107","v":"MOE 3Bedroom"},"4+Bedroom",{"$f":"\"MOE \"&CB107","v":"MOE 4+Bedroom"}]
[{"$f":"VLOOKUP(DropDownList!$B$47,CntyQryCensus!$A$510:$DA$522,A$1)","v":"Rochester"},13661,337,12837,353,8308,395,4529,385,824,248,258,146,113,108,197,133,0,24,0,24,30027,56,19708,893,10319,896,12837,353,8308,395,5870,374,665,167.62159765376299,1773,264.09278672466615,4529,385,551,156,3753,514.22174205297858,225,96.046863561492728,6662,372,4890,559.3093955942453,2109,280.03035549739963,34,32,227,98,1860,309,1181,212,2887,331,1779,242,1089,211,1086,208,760,189,265,164,1315,260,5577,383,4911,379,1370,264,657,230.31500168247834,null,null,null,null,28]
[]
["Disability Data"]
["NAME","TotalPop",{"$f":"\"MOE \"&B111","v":"MOE TotalPop"},"PopUnder 5 years:",{"$f":"\"MOE \"&D111","v":"MOE PopUnder 5 years:"},{"$f":"D$111&\"-WithDisability\"","v":"PopUnder 5 years:-WithDisability"},{"$f":"\"MOE \"&F111","v":"MOE PopUnder 5 years:-WithDisability"},{"$f":"D111&\"-NoDisability\"","v":"PopUnder 5 years:-NoDisability"},{"$f":"\"MOE \"&H111","v":"MOE PopUnder 5 years:-NoDisability"},"PopUnder 5 to 17years:",{"$f":"\"MOE \"&J111","v":"MOE PopUnder 5 to 17years:"},{"$f":"J$111&\"-WithDisability\"","v":"PopUnder 5 to 17years:-WithDisability"},{"$f":"\"MOE \"&L111","v":"MOE PopUnder 5 to 17years:-WithDisability"},{"$f":"J111&\"-NoDisability\"","v":"PopUnder 5 to 17years:-NoDisability"},{"$f":"\"MOE \"&N111","v":"MOE PopUnder 5 to 17years:-NoDisability"},"PopUnder 18 to 34 years:",{"$f":"\"MOE \"&P111","v":"MOE PopUnder 18 to 34 years:"},{"$f":"P$111&\"-WithDisability\"","v":"PopUnder 18 to 34 years:-WithDisability"},{"$f":"\"MOE \"&R111","v":"MOE PopUnder 18 to 34 years:-WithDisability"},{"$f":"P111&\"-NoDisability\"","v":"PopUnder 18 to 34 years:-NoDisability"},{"$f":"\"MOE \"&T111","v":"MOE PopUnder 18 to 34 years:-NoDisability"},"Pop 35 years to 64:",{"$f":"\"MOE \"&V111","v":"MOE Pop 35 years to 64:"},{"$f":"$V$111&\"-WithDisability\"","v":"Pop 35 years to 64:-WithDisability"},{"$f":"\"MOE \"&X111","v":"MOE Pop 35 years to 64:-WithDisability"},{"$f":"$V$111&\"-NoDisability\"","v":"Pop 35 years to 64:-NoDisability"},{"$f":"\"MOE \"&Z111","v":"MOE Pop 35 years to 64:-NoDisability"},"Pop 65 years to 74:",{"$f":"\"MOE \"&AB111","v":"MOE Pop 65 years to 74:"},{"$f":"$AB$111&\"-WithDisability\"","v":"Pop 65 years to 74:-WithDisability"},{"$f":"\"MOE \"&AD111","v":"MOE Pop 65 years to 74:-WithDisability"},{"$f":"$AB$111&\"-NoDisability\"","v":"Pop 65 years to 74:-NoDisability"},{"$f":"\"MOE \"&AF111","v":"MOE Pop 65 years to 74:-NoDisability"},"Pop 75 and older:",{"$f":"\"MOE \"&AH111","v":"MOE Pop 75 and older:"},{"$f":"$AH$111&\"-WithDisability\"","v":"Pop 75 and older:-WithDisability"},{"$f":"\"MOE \"&AJ111","v":"MOE Pop 75 and older:-WithDisability"},{"$f":"$AH$111&\"-NoDisability\"","v":"Pop 75 and older:-NoDisability"},{"$f":"\"MOE \"&AL111","v":"MOE Pop 75 and older:-NoDisability"},"TotalPopUnder5_HearingDisability",{"$f":"\"MOE \"&AN111","v":"MOE TotalPopUnder5_HearingDisability"},"TotalPopUnder5_HearingDisability",{"$f":"\"MOE \"&AP111","v":"MOE TotalPopUnder5_HearingDisability"},"TotalPop18To34_HearingDisability",{"$f":"\"MOE \"&AR111","v":"MOE TotalPop18To34_HearingDisability"},"TotalPop35To64_HearingDisability",{"$f":"\"MOE \"&AT111","v":"MOE TotalPop35To64_HearingDisability"},"TotalPop65To74_HearingDisability",{"$f":"\"MOE \"&AV111","v":"MOE TotalPop65To74_HearingDisability"},"TotalPop75andOlder_HearingDisability",{"$f":"\"MOE \"&AX111","v":"MOE TotalPop75andOlder_HearingDisability"},"TotalPopUnder5_VisionDisability",{"$f":"\"MOE \"&AZ111","v":"MOE TotalPopUnder5_VisionDisability"},"TotalPop5To17_VisionDisability",{"$f":"\"MOE \"&BB111","v":"MOE TotalPop5To17_VisionDisability"},"TotalPop18To34_VisionDisability",{"$f":"\"MOE \"&BD111","v":"MOE TotalPop18To34_VisionDisability"},"TotalPop35To64_VisionDisability",{"$f":"\"MOE \"&BF111","v":"MOE TotalPop35To64_VisionDisability"},"TotalPop65To74_VisionDisability",{"$f":"\"MOE \"&BH111","v":"MOE TotalPop65To74_VisionDisability"},"TotalPop75andOlder_VisionDisability",{"$f":"\"MOE \"&BJ111","v":"MOE TotalPop75andOlder_VisionDisability"},"TotalPop5To17_CongnitiveDisability",{"$f":"\"MOE \"&BL111","v":"MOE TotalPop5To17_CongnitiveDisability"},"TotalPop18To34_CongnitiveDisability",{"$f":"\"MOE \"&BN111","v":"MOE TotalPop18To34_CongnitiveDisability"},"TotalPop35To64_CongnitiveDisability",{"$f":"\"MOE \"&BP111","v":"MOE TotalPop35To64_CongnitiveDisability"},"TotalPop65To74_CongnitiveDisability",{"$f":"\"MOE \"&BR111","v":"MOE TotalPop65To74_CongnitiveDisability"},"TotalPop75andOlder_CongnitiveDisability",{"$f":"\"MOE \"&BT111","v":"MOE TotalPop75andOlder_CongnitiveDisability"},"TotalPop5To17_AmbulatoryDisability",{"$f":"\"MOE \"&BV111","v":"MOE TotalPop5To17_AmbulatoryDisability"},"TotalPop18To34_AmbulatoryDisability",{"$f":"\"MOE \"&BX111","v":"MOE TotalPop18To34_AmbulatoryDisability"},"TotalPop35To64_AmbulatoryDisability",{"$f":"\"MOE \"&BZ111","v":"MOE TotalPop35To64_AmbulatoryDisability"},"TotalPop65To74_AmbulatoryDisability",{"$f":"\"MOE \"&CB111","v":"MOE TotalPop65To74_AmbulatoryDisability"},"TotalPop75andOlder_AmbulatoryDisability",{"$f":"\"MOE \"&CD111","v":"MOE TotalPop75andOlder_AmbulatoryDisability"},"TotalPop5To17_SelfCareDisability",{"$f":"\"MOE \"&CF111","v":"MOE TotalPop5To17_SelfCareDisability"},"TotalPop18To34_SelfCareDisability",{"$f":"\"MOE \"&CH111","v":"MOE TotalPop18To34_SelfCareDisability"},"TotalPop35To64_SelfCareDisability",{"$f":"\"MOE \"&CJ111","v":"MOE TotalPop35To64_SelfCareDisability"},"TotalPop65To74_SelfCareDisability",{"$f":"\"MOE \"&CL111","v":"MOE TotalPop65To74_SelfCareDisability"},"TotalPop75andOlder_SelfCareDisability",{"$f":"\"MOE \"&CN111","v":"MOE TotalPop75andOlder_SelfCareDisability"},"TotalPop18To34_IndependantLivingDisability",{"$f":"\"MOE \"&CP111","v":"MOE TotalPop18To34_IndependantLivingDisability"},"TotalPop35To64_IndependantLivingDisability",{"$f":"\"MOE \"&CR111","v":"MOE TotalPop35To64_IndependantLivingDisability"},"TotalPop65To74_IndependantLivingDisability",{"$f":"\"MOE \"&CT111","v":"MOE TotalPop65To74_IndependantLivingDisability"},"TotalPop75andOlder_IndependantLivingDisability",{"$f":"\"MOE \"&CV111","v":"MOE TotalPop75andOlder_IndependantLivingDisability"},"TotalUnder5_HearingorVisionDisability",{"$f":"\"MOE \"&CX111","v":"MOE TotalUnder5_HearingorVisionDisability"},"TotalUnder5_HearingandVisionDisability",{"$f":"\"MOE \"&CZ111","v":"MOE TotalUnder5_HearingandVisionDisability"},"5to17YearWIthOneDisability",{"$f":"\"MOE \"&DB111","v":"MOE 5to17YearWIthOneDisability"},"5to17YearWIthTwoOrMoreDisability",{"$f":"\"MOE \"&DD111","v":"MOE 5to17YearWIthTwoOrMoreDisability"},"18to34YearWIthOneDisability",{"$f":"\"MOE \"&DF111","v":"MOE 18to34YearWIthOneDisability"},"18to34YearWIthTwoOrMoreDisability",{"$f":"\"MOE \"&DH111","v":"MOE 18to34YearWIthTwoOrMoreDisability"},"35to64YearWIthOneDisability",{"$f":"\"MOE \"&DJ111","v":"MOE 35to64YearWIthOneDisability"},"35to64YearWIthTwoOrMoreDisability",{"$f":"\"MOE \"&DL111","v":"MOE 35to64YearWIthTwoOrMoreDisability"},"65to74YearWIthOneDisability",{"$f":"\"MOE \"&DN111","v":"MOE 65to74YearWIthOneDisability"},"65to74YearWIthTwoOrMoreDisability",{"$f":"\"MOE \"&DP111","v":"MOE 65to74YearWIthTwoOrMoreDisability"},"75AndOlderWIthOneDisability",{"$f":"\"MOE \"&DR111","v":"MOE 75AndOlderWIthOneDisability"},"75AndOlderWIthTwoOrMoreDisability",{"$f":"\"MOE \"&DT111","v":"MOE 75AndOlderWIthTwoOrMoreDisability"}]
[{"$f":"VLOOKUP(DropDownList!$B$47,CntyQryCensus!$A$510:$DA$522,A$1)","v":"Rochester"},29911,118,1481,263.00570336021235,46,72.111025509279784,1435,264.90941848111027,4521,369.89863476363359,292,116.76472069936193,4229,378.41379467455994,6734,498.25495481731036,492,157.87653403846943,6242,493.34065309885017,12087,414.36457377531684,2301,327.0244639166923,9786,431.35600146514713,3036,262.45190035509364,644,180.47160441465576,2392,240.16869071550522,2052,219.93862780330335,1028,204.35263639111682,1024,194.20092687729377,46,72.111025509279784,53,56.36488268416781,59,83.024092888751269,483,154.87091398968369,168,74.632432628181164,597,154.38264151127873,0,33.941125496954278,30,37.215588131856791,170,119,242,98.2344135219425,99,56.586217403180434,249,124.27791436936813,142,98.2344135219425,387,150.41608956491322,825,227.96929617823537,203,124.33824833895642,154,80.131142510262507,0,29.698484809834994,142,95.707888912043188,1168,236.81216184985095,526,144.9413674559475,522,129.40247292845683,48,46.690470119715009,89,84.723078319900537,294,109.98636279102969,28,29.546573405388315,176,96.332756630338366,275,124.06449935416659,528,170.42300314218147,136,98.030607465219759,326,119.20151005754919,235,113,103,66,1721,345,1072,220,851,181,821,210,751,211]
[]
["Househould Income By Age"]
["NAME","TotalHouseholds",{"$f":"\"MOE \"&B115","v":"MOE TotalHouseholds"},"HHInc<10K",{"$f":"\"MOE \"&D115","v":"MOE HHInc<10K"},"HHInc10to15K",{"$f":"\"MOE \"&F115","v":"MOE HHInc10to15K"},"HHInc15to20K",{"$f":"\"MOE \"&H115","v":"MOE HHInc15to20K"},"HHInc20to25K",{"$f":"\"MOE \"&J115","v":"MOE HHInc20to25K"},"HHInc25to30K",{"$f":"\"MOE \"&L115","v":"MOE HHInc25to30K"},"HHInc30to35K",{"$f":"\"MOE \"&N115","v":"MOE HHInc30to35K"},"HHInc35to40K",{"$f":"\"MOE \"&P115","v":"MOE HHInc35to40K"},"HHInc40to45K",{"$f":"\"MOE \"&R115","v":"MOE HHInc40to45K"},"HHInc45to50K",{"$f":"\"MOE \"&T115","v":"MOE HHInc45to50K"},"HHInc50to60K",{"$f":"\"MOE \"&V115","v":"MOE HHInc50to60K"},"HHInc60to75K",{"$f":"\"MOE \"&X115","v":"MOE HHInc60to75K"},"HHInc75to100K",{"$f":"\"MOE \"&Z115","v":"MOE HHInc75to100K"},"HHInc100to125K",{"$f":"\"MOE \"&AB115","v":"MOE HHInc100to125K"},"HHInc125to150K",{"$f":"\"MOE \"&AD115","v":"MOE HHInc125to150K"},"HHInc150to200K",{"$f":"\"MOE \"&AF115","v":"MOE HHInc150to200K"},"HHInc>200K",{"$f":"\"MOE \"&AH115","v":"MOE HHInc>200K"},"TotalHH",{"$f":"\"MOE \"&AJ115","v":"MOE TotalHH"},"HHAgeHHUnder25yrs",{"$f":"\"MOE \"&AL115","v":"MOE HHAgeHHUnder25yrs"},"HHAgeHH<25HHInc<10K",{"$f":"\"MOE \"&AN115","v":"MOE HHAgeHH<25HHInc<10K"},"HHAgeHH<25HHInc10to15K",{"$f":"\"MOE \"&AP115","v":"MOE HHAgeHH<25HHInc10to15K"},"HHAgeHH<25HHInc15to20K",{"$f":"\"MOE \"&AR115","v":"MOE HHAgeHH<25HHInc15to20K"},"HHAgeHH<25HHInc20to25K",{"$f":"\"MOE \"&AT115","v":"MOE HHAgeHH<25HHInc20to25K"},"HHAgeHH<25HHInc25to30K",{"$f":"\"MOE \"&AV115","v":"MOE HHAgeHH<25HHInc25to30K"},"HHAgeHH<25HHInc30to35K",{"$f":"\"MOE \"&AX115","v":"MOE HHAgeHH<25HHInc30to35K"},"HHAgeHH<25HHInc35to40K",{"$f":"\"MOE \"&AZ115","v":"MOE HHAgeHH<25HHInc35to40K"},"HHAgeHH<25HHInc40to45K",{"$f":"\"MOE \"&BB115","v":"MOE HHAgeHH<25HHInc40to45K"},"HHAgeHH<25HHInc45to50K",{"$f":"\"MOE \"&BD115","v":"MOE HHAgeHH<25HHInc45to50K"},"HHAgeHH<25HHInc50to60K",{"$f":"\"MOE \"&BF115","v":"MOE HHAgeHH<25HHInc50to60K"},"HHAgeHH<25HHInc60to75K",{"$f":"\"MOE \"&BH115","v":"MOE HHAgeHH<25HHInc60to75K"},"HHAgeHH<25HHInc75to100K",{"$f":"\"MOE \"&BJ115","v":"MOE HHAgeHH<25HHInc75to100K"},"HHAgeHH<25HHInc100to125K",{"$f":"\"MOE \"&BL115","v":"MOE HHAgeHH<25HHInc100to125K"},"HHAgeHH<25HHInc125to150K",{"$f":"\"MOE \"&BN115","v":"MOE HHAgeHH<25HHInc125to150K"},"HHAgeHH<25HHInc150to200K",{"$f":"\"MOE \"&BP115","v":"MOE HHAgeHH<25HHInc150to200K"},"HHAge<25HHInc>200K",{"$f":"\"MOE \"&BR115","v":"MOE HHAge<25HHInc>200K"},"HHAgeHH25to44yrs",{"$f":"\"MOE \"&BT115","v":"MOE HHAgeHH25to44yrs"},"HHAgeHH25To44yrsHHInc<10K",{"$f":"\"MOE \"&BV115","v":"MOE HHAgeHH25To44yrsHHInc<10K"},"HHAgeHH25To44yrsHHInc10to15K",{"$f":"\"MOE \"&BX115","v":"MOE HHAgeHH25To44yrsHHInc10to15K"},"HHAgeHH25To44yrsHHInc15to20K",{"$f":"\"MOE \"&BZ115","v":"MOE HHAgeHH25To44yrsHHInc15to20K"},"HHAgeHH25To44yrsHHInc20to25K",{"$f":"\"MOE \"&CB115","v":"MOE HHAgeHH25To44yrsHHInc20to25K"},"HHAgeHH25To44yrsHHInc25to30K",{"$f":"\"MOE \"&CD115","v":"MOE HHAgeHH25To44yrsHHInc25to30K"},"HHAgeHH25To44yrsHHInc30to35K",{"$f":"\"MOE \"&CF115","v":"MOE HHAgeHH25To44yrsHHInc30to35K"},"HHAgeHH25To44yrsHHInc35to40K",{"$f":"\"MOE \"&CH115","v":"MOE HHAgeHH25To44yrsHHInc35to40K"},"HHAgeHH25To44yrsHHInc40to45K",{"$f":"\"MOE \"&CJ115","v":"MOE HHAgeHH25To44yrsHHInc40to45K"},"HHAgeHH25To44yrsHHInc45to50K",{"$f":"\"MOE \"&CL115","v":"MOE HHAgeHH25To44yrsHHInc45to50K"},"HHAgeHH25To44yrsHHInc50to60K",{"$f":"\"MOE \"&CN115","v":"MOE HHAgeHH25To44yrsHHInc50to60K"},"HHAgeHH25To44yrsHHInc60to75K",{"$f":"\"MOE \"&CP115","v":"MOE HHAgeHH25To44yrsHHInc60to75K"},"HHAgeHH25To44yrsHHInc75to100K",{"$f":"\"MOE \"&CR115","v":"MOE HHAgeHH25To44yrsHHInc75to100K"},"HHAgeHH25To44yrsHHInc100to125K",{"$f":"\"MOE \"&CT115","v":"MOE HHAgeHH25To44yrsHHInc100to125K"},"HHAgeHH25To44yrsHHInc125to150K",{"$f":"\"MOE \"&CV115","v":"MOE HHAgeHH25To44yrsHHInc125to150K"},"HHAgeHH25To44yrsHHInc150to200K",{"$f":"\"MOE \"&CX115","v":"MOE HHAgeHH25To44yrsHHInc150to200K"},"HHAge25To44yrsHHInc>200K",{"$f":"\"MOE \"&CZ115","v":"MOE HHAge25To44yrsHHInc>200K"},"HHAgeHH45To64yrs",{"$f":"\"MOE \"&DB115","v":"MOE HHAgeHH45To64yrs"},"HHAgeHH45To64yrsHHInc<10K",{"$f":"\"MOE \"&DD115","v":"MOE HHAgeHH45To64yrsHHInc<10K"},"HHAgeHH45To64yrsHHInc10to15K",{"$f":"\"MOE \"&DF115","v":"MOE HHAgeHH45To64yrsHHInc10to15K"},"HHAgeHH45To64yrsHHInc15to20K",{"$f":"\"MOE \"&DH115","v":"MOE HHAgeHH45To64yrsHHInc15to20K"},"HHAgeHH45To64yrsHHInc20to25K",{"$f":"\"MOE \"&DJ115","v":"MOE HHAgeHH45To64yrsHHInc20to25K"},"HHAgeHH45To64yrsHHInc25to30K",{"$f":"\"MOE \"&DL115","v":"MOE HHAgeHH45To64yrsHHInc25to30K"},"HHAgeHH45To64yrsHHInc30to35K",{"$f":"\"MOE \"&DN115","v":"MOE HHAgeHH45To64yrsHHInc30to35K"},"HHAgeHH45To64yrsHHInc35to40K",{"$f":"\"MOE \"&DP115","v":"MOE HHAgeHH45To64yrsHHInc35to40K"},"HHAgeHH45To64yrsHHInc40to45K",{"$f":"\"MOE \"&DR115","v":"MOE HHAgeHH45To64yrsHHInc40to45K"},"HHAgeHH45To64yrsHHInc45to50K",{"$f":"\"MOE \"&DT115","v":"MOE HHAgeHH45To64yrsHHInc45to50K"},"HHAgeHH45To64yrsHHInc50to60K",{"$f":"\"MOE \"&DV115","v":"MOE HHAgeHH45To64yrsHHInc50to60K"},"HHAgeHH45To64yrsHHInc60to75K",{"$f":"\"MOE \"&DX115","v":"MOE HHAgeHH45To64yrsHHInc60to75K"},"HHAgeHH45To64yrsHHInc75to100K",{"$f":"\"MOE \"&DZ115","v":"MOE HHAgeHH45To64yrsHHInc75to100K"},"HHAgeHH45To64yrsHHInc100to125K",{"$f":"\"MOE \"&EB115","v":"MOE HHAgeHH45To64yrsHHInc100to125K"},"HHAgeHH45To64yrsHHInc125to150K",{"$f":"\"MOE \"&ED115","v":"MOE HHAgeHH45To64yrsHHInc125to150K"},"HHAgeHH45To64yrsHHInc150to200K",{"$f":"\"MOE \"&EF115","v":"MOE HHAgeHH45To64yrsHHInc150to200K"},"HHAge45To64yrsHHInc>200K",{"$f":"\"MOE \"&EH115","v":"MOE HHAge45To64yrsHHInc>200K"},"HHAgeHH65yrsorOlder",{"$f":"\"MOE \"&EJ115","v":"MOE HHAgeHH65yrsorOlder"},"HHAgeHH65yrsorOlderHHInc<10K",{"$f":"\"MOE \"&EL115","v":"MOE HHAgeHH65yrsorOlderHHInc<10K"},"HHAgeHH65yrsorOlderHHInc10to15K",{"$f":"\"MOE \"&EN115","v":"MOE HHAgeHH65yrsorOlderHHInc10to15K"},"HHAgeHH65yrsorOlderHHInc15to20K",{"$f":"\"MOE \"&EP115","v":"MOE HHAgeHH65yrsorOlderHHInc15to20K"},"HHAgeHH65yrsorOlderHHInc20to25K",{"$f":"\"MOE \"&ER115","v":"MOE HHAgeHH65yrsorOlderHHInc20to25K"},"HHAgeHH65yrsorOlderHHInc25to30K",{"$f":"\"MOE \"&ET115","v":"MOE HHAgeHH65yrsorOlderHHInc25to30K"},"HHAgeHH65yrsorOlderHHInc30to35K",{"$f":"\"MOE \"&EV115","v":"MOE HHAgeHH65yrsorOlderHHInc30to35K"},"HHAgeHH65yrsorOlderHHInc35to40K",{"$f":"\"MOE \"&EX115","v":"MOE HHAgeHH65yrsorOlderHHInc35to40K"},"HHAgeHH65yrsorOlderHHInc40to45K",{"$f":"\"MOE \"&EZ115","v":"MOE HHAgeHH65yrsorOlderHHInc40to45K"},"HHAgeHH65yrsorOlderHHInc45to50K",{"$f":"\"MOE \"&FB115","v":"MOE HHAgeHH65yrsorOlderHHInc45to50K"},"HHAgeHH65yrsorOlderHHInc50to60K",{"$f":"\"MOE \"&FD115","v":"MOE HHAgeHH65yrsorOlderHHInc50to60K"},"HHAgeHH65yrsorOlderHHInc60to75K",{"$f":"\"MOE \"&FF115","v":"MOE HHAgeHH65yrsorOlderHHInc60to75K"},"HHAgeHH65yrsorOlderHHInc75to100K",{"$f":"\"MOE \"&FH115","v":"MOE HHAgeHH65yrsorOlderHHInc75to100K"},"HHAgeHH65yrsorOlderHHInc100to125K",{"$f":"\"MOE \"&FJ115","v":"MOE HHAgeHH65yrsorOlderHHInc100to125K"},"HHAgeHH65yrsorOlderHHInc125to150K",{"$f":"\"MOE \"&FL115","v":"MOE HHAgeHH65yrsorOlderHHInc125to150K"},"HHAgeHH65yrsorOlderHHInc150to200K",{"$f":"\"MOE \"&FN115","v":"MOE HHAgeHH65yrsorOlderHHInc150to200K"},"HHAge65yrsorOlderHHInc>200K",{"$f":"\"MOE \"&FP115","v":"MOE HHAge65yrsorOlderHHInc>200K"},"MedianHHInc",{"$f":"\"MOE \"&FR115","v":"MOE MedianHHInc"},"HH under 25 years",{"$f":"\"MOE \"&FT115","v":"MOE HH under 25 years"},"Householder 25 to 44 years",{"$f":"\"MOE \"&FV115","v":"MOE Householder 25 to 44 years"},"Householder 45 to 64 years",{"$f":"\"MOE \"&FX115","v":"MOE Householder 45 to 64 years"},"Householder 65 years and over",{"$f":"\"MOE \"&FZ115","v":"MOE Householder 65 years and over"}]
[{"$f":"VLOOKUP(DropDownList!$B$47,CntyQryCensus!$A$510:$DA$522,A$1)","v":"Rochester"},12837,353,703,233,510,176,757,233,656,173,640,181,678,165,482,160,576,149,869,272,799,183,1427,255,2276,370,1106,280,557,137,541,143,260,91,12837,353,682,244,0,24,0,24,31,48,17,27,106,82,12,19,26,39,0,24,130,114,14,22,136,127,116,100,80,121,0,24,0,24,14,23,4022,344,329,201,34,42,146,93,216,130,171,102,196,117,94,59,240,121,212,141,215,100,428,148,1011,295,281,113,153,77,209,104,87,67,4843,329,182,102,227,109,273,142,89,56,162,82,241,98,232,110,168,76,308,151,311,140,430,131,893,211,547,188,365,120,256,110,159,67,3290,201,192,94,249,125,307,152,334,123,201,68,229,97,130,68,168,98,219,78,259,87,433,151,256,103,198,91,39,31,76,52,0,24,55767,6283,70092,45446,66848,11919,68210,7323,40063,4929,297,135,195,132,null,null,null,null,null,null,null,null,null,null,null,null,null,null,"Barrington",null,"Esitimate","Margin Of Error",2987,193,null,null,48,47,65,66,137,96.566039579139826,253,97.082439194738001,245,120.47406359876801,477,151.40013210033868,816,184,549,172.15400082484288,216,91,181,122]
[]
["Number of Households by Income"]
["NAME","HHIncLessThn10k",{"$f":"\"MOE \"&B119","v":"MOE HHIncLessThn10k"},"HHInc10to15K",{"$f":"\"MOE \"&D119","v":"MOE HHInc10to15K"},"HHInc15to25K",{"$f":"\"MOE \"&F119","v":"MOE HHInc15to25K"},"HHInc25to35K",{"$f":"\"MOE \"&H119","v":"MOE HHInc25to35K"},"HHInc35to50K",{"$f":"\"MOE \"&J119","v":"MOE HHInc35to50K"},"HHInc50to75K",{"$f":"\"MOE \"&L119","v":"MOE HHInc50to75K"},"HHInc75to100K",{"$f":"\"MOE \"&N119","v":"MOE HHInc75to100K"},"HHInc100to150K",{"$f":"\"MOE \"&P119","v":"MOE HHInc100to150K"},"HHInc150to200K",{"$f":"\"MOE \"&R119","v":"MOE HHInc150to200K"},"HHIncOver200K",{"$f":"\"MOE \"&T119","v":"MOE HHIncOver200K"}]
[{"$f":"VLOOKUP(DropDownList!$B$47,CntyQryCensus!$A$510:$DA$522,A$1)","v":"Rochester"},703,233,510,176,1413,290.20337696174386,1318,244.92039523077696,1927,348.97707661105767,2226,313.86939959161356,2276,370,1663,311.71942512458219,541,143,260,91,533,149,637,143,397,109,163,71,186,95,27,25,null,null,null,null,null,null,null,null,null,null,null,null,null,null,null,null,null,null,null,null,null,null,null,null,null,null,null,null,null,null,null,null,null,null,null,null,null,null,null,null,null,40,80,51,13,20,12,19,104,88,115,65,276,90,254,107,166,59,152,59,206,97,79,43,null,null,null,null,null,null,null,null,null,null,null,null,null,null,"Lee",null,"Esitimate","Margin Of Error",1774,134,null,null,83,74,28,43,92,104.58011283222064,43,49.244289008980523,174,91.586025134842487,256,114.63420083029322,271,92,490,193.9922678871506,225,98,112,70]
[]
[]
["NAME","TotalPop",{"$f":"\"MOE \"&B123","v":"MOE TotalPop"},"Total Individuals living in Poverty",{"$f":"\"MOE \"&D123","v":"MOE Total Individuals living in Poverty"},"Under 5 yrs.",{"$f":"\"MOE \"&F123","v":"MOE Under 5 yrs."},"5 to 17 yrs.",{"$f":"\"MOE \"&H123","v":"MOE 5 to 17 yrs."},"18 to 64 yrs.",{"$f":"\"MOE \"&J123","v":"MOE 18 to 64 yrs."},"65 to 74 yrs.",{"$f":"\"MOE \"&L123","v":"MOE 65 to 74 yrs."},"75 yrs. & Over",{"$f":"\"MOE \"&N123","v":"MOE 75 yrs. & Over"},"Total Individuals  Not living Poverty",{"$f":"\"MOE \"&P123","v":"MOE Total Individuals  Not living Poverty"},"Under 5 yrs.",{"$f":"\"MOE \"&R123","v":"MOE Under 5 yrs."},"5 to 17 yrs.",{"$f":"\"MOE \"&T123","v":"MOE 5 to 17 yrs."},"18 to 64 yrs.",{"$f":"\"MOE \"&V123","v":"MOE 18 to 64 yrs."},"65 to 74 yrs.",{"$f":"\"MOE \"&X123","v":"MOE 65 to 74 yrs."},"75 yrs. & Over",{"$f":"\"MOE \"&Z123","v":"MOE 75 yrs. & Over"},"Total HH",{"$f":"\"MOE \"&AB123","v":"MOE Total HH"},"Total Households Below Poverty",{"$f":"\"MOE \"&AD123","v":"MOE Total Households Below Poverty"},"Family Households in Poverty",{"$f":"\"MOE \"&AF123","v":"MOE Family Households in Poverty"},"Married Couple Fam HH",{"$f":"\"MOE \"&AH123","v":"MOE Married Couple Fam HH"},"Other Family",{"$f":"\"MOE \"&AJ123","v":"MOE Other Family"},"Male Head of Family HH no wife",{"$f":"\"MOE \"&AL123","v":"MOE Male Head of Family HH no wife"},"Female Head of Family HH no husband",{"$f":"\"MOE \"&AN123","v":"MOE Female Head of Family HH no husband"},"Non-Family HH",{"$f":"\"MOE \"&AP123","v":"MOE Non-Family HH"},"Non-Family Male HH",{"$f":"\"MOE \"&AR123","v":"MOE Non-Family Male HH"},"Non-Family Female HH",{"$f":"\"MOE \"&AT123","v":"MOE Non-Family Female HH"},"Total Households at or Above Poverty",{"$f":"\"MOE \"&AV123","v":"MOE Total Households at or Above Poverty"},"Family Households above Poverty",{"$f":"\"MOE \"&AX123","v":"MOE Family Households above Poverty"},"Married Couple Fam HH",{"$f":"\"MOE \"&AZ123","v":"MOE Married Couple Fam HH"},"Other Family",{"$f":"\"MOE \"&BB123","v":"MOE Other Family"},"Male Head of Family HH no wife",{"$f":"\"MOE \"&BD123","v":"MOE Male Head of Family HH no wife"},"Female Head of Family HH no husband",{"$f":"\"MOE \"&BF123","v":"MOE Female Head of Family HH no husband"},"Non-Family HH",{"$f":"\"MOE \"&BH123","v":"MOE Non-Family HH"},"Non-Family Male HH",{"$f":"\"MOE \"&BJ123","v":"MOE Non-Family Male HH"},"Non-Family Female HH",{"$f":"\"MOE \"&BL123","v":"MOE Non-Family Female HH"},"Married Couple with Children Below Poverty",{"$f":"\"MOE \"&BN123","v":"MOE Married Couple with Children Below Poverty"},"Male HH with children below poverty",{"$f":"\"MOE \"&BP123","v":"MOE Male HH with children below poverty"},"Female HH with children below poverty",{"$f":"\"MOE \"&BR123","v":"MOE Female HH with children below poverty"},"Married Couple with Children At or Above Poverty",{"$f":"\"MOE \"&BT123","v":"MOE Married Couple with Children At or Above Poverty"},"Male HH with children at or above poverty",{"$f":"\"MOE \"&BV123","v":"MOE Male HH with children at or above poverty"},"Female HH with children at or above poverty",{"$f":"\"MOE \"&BX123","v":"MOE Female HH with children at or above poverty"}]
[{"$f":"VLOOKUP(DropDownList!$B$47,CntyQryCensus!$A$510:$DA$522,A$1)","v":"Rochester"},29971,82,3249,667,386,182.33211456021672,554,188.33746308156537,1927,381.67918465643368,143,77.103826104804938,239,113.22543883774529,26722,667,1095,250,3892,408.465420813072,17029,808.42501198317711,2893,260.35360569809666,1813,222.15760171553887,12837,353,1554,341,693,197,222,133,471,146,142,95,329,115,861,276,339,178,522,217,11283,360,7250,398,5857,343,1393,256,626,194,767,177,4033,445,4033,445,2081,345,147,122,142,95,291,119,1994,241,464,180,381,144]
[]
["Household Income By Tenure"]
["NAME","TotalOccHU",{"$f":"\"MOE \"&B127","v":"MOE TotalOccHU"},"OwnOccHU",{"$f":"\"MOE \"&D127","v":"MOE OwnOccHU"},"OOHUInc<5K",{"$f":"\"MOE \"&F127","v":"MOE OOHUInc<5K"},"OOHUInc5to10K",{"$f":"\"MOE \"&H127","v":"MOE OOHUInc5to10K"},"OOHUInc10to15K",{"$f":"\"MOE \"&J127","v":"MOE OOHUInc10to15K"},"OOHUInc15to20K",{"$f":"\"MOE \"&L127","v":"MOE OOHUInc15to20K"},"OOHUInc20to25K",{"$f":"\"MOE \"&N127","v":"MOE OOHUInc20to25K"},"OOHUInc25to35K",{"$f":"\"MOE \"&P127","v":"MOE OOHUInc25to35K"},"OOHUInc35to50K",{"$f":"\"MOE \"&R127","v":"MOE OOHUInc35to50K"},"OOHUInc50to75K",{"$f":"\"MOE \"&T127","v":"MOE OOHUInc50to75K"},"OOHUInc75to100K",{"$f":"\"MOE \"&V127","v":"MOE OOHUInc75to100K"},"OOHUInc100to150K",{"$f":"\"MOE \"&X127","v":"MOE OOHUInc100to150K"},"OOHUInc>150K",{"$f":"\"MOE \"&Z127","v":"MOE OOHUInc>150K"},"RentOccHU",{"$f":"\"MOE \"&AB127","v":"MOE RentOccHU"},"ROHUInc<5K",{"$f":"\"MOE \"&AD127","v":"MOE ROHUInc<5K"},"ROHUInc5to10K",{"$f":"\"MOE \"&AF127","v":"MOE ROHUInc5to10K"},"ROHUInc10to15K",{"$f":"\"MOE \"&AH127","v":"MOE ROHUInc10to15K"},"ROHUInc15to20K",{"$f":"\"MOE \"&AJ127","v":"MOE ROHUInc15to20K"},"ROHUInc20to25K",{"$f":"\"MOE \"&AL127","v":"MOE ROHUInc20to25K"},"ROHUInc25to35K",{"$f":"\"MOE \"&AN127","v":"MOE ROHUInc25to35K"},"ROHUInc35to50K",{"$f":"\"MOE \"&AP127","v":"MOE ROHUInc35to50K"},"ROHUInc50to75K",{"$f":"\"MOE \"&AR127","v":"MOE ROHUInc50to75K"},"ROHUInc75to100K",{"$f":"\"MOE \"&AT127","v":"MOE ROHUInc75to100K"},"ROHUInc100to150K",{"$f":"\"MOE \"&AV127","v":"MOE ROHUInc100to150K"},"ROHUInc>150K",{"$f":"\"MOE \"&AX127","v":"MOE ROHUInc>150K"},"Total OCC HUInc<5K",{"$f":"\"MOE \"&AZ127","v":"MOE Total OCC HUInc<5K"},"Total OCC HUInc5to10K",{"$f":"\"MOE \"&BB127","v":"MOE Total OCC HUInc5to10K"},"Total OCC HUInc10to15K",{"$f":"\"MOE \"&BD127","v":"MOE Total OCC HUInc10to15K"},"Total OCC HUInc15to20K",{"$f":"\"MOE \"&BF127","v":"MOE Total OCC HUInc15to20K"},"Total OCC HUInc20to25K",{"$f":"\"MOE \"&BH127","v":"MOE Total OCC HUInc20to25K"},"Total OCC HUInc25to35K",{"$f":"\"MOE \"&BJ127","v":"MOE Total OCC HUInc25to35K"},"Total OCC HUInc35to50K",{"$f":"\"MOE \"&BL127","v":"MOE Total OCC HUInc35to50K"},"Total OCC HUInc50to75K",{"$f":"\"MOE \"&BN127","v":"MOE Total OCC HUInc50to75K"},"Total OCC HUInc75to100K",{"$f":"\"MOE \"&BP127","v":"MOE Total OCC HUInc75to100K"},"Total OCC HUInc100to150K",{"$f":"\"MOE \"&BR127","v":"MOE Total OCC HUInc100to150K"},"Total OCC HUInc>150K",{"$f":"\"MOE \"&BT127","v":"MOE Total OCC HUInc>150K"},"MedHHInc",{"$f":"\"MOE \"&BV127","v":"MOE MedHHInc"},"MedOwnOccHHInc",{"$f":"\"MOE \"&BX127","v":"MOE MedOwnOccHHInc"},"MedRentOccHHInc",{"$f":"\"MOE \"&BZ127","v":"MOE MedRentOccHHInc"}]
[{"$f":"VLOOKUP(DropDownList!$B$47,CntyQryCensus!$A$510:$DA$522,A$1)","v":"Rochester"},12837,353,8308,395,72,48,108,72,198,87,290,147,423,144,679,151,1133,238,1577,259,1764,301,1321,259,743,152,4529,385,108,79,415,225,312,137,467,178,233,118,639,198,794,264,649,232,512,166,342,153,58,45,180,92.439169187092972,523,236.23928547132036,510,162.28986413205232,757,230.85276693165278,656,186.17196351760379,1318,249.00803199896987,1927,355.44338508403837,2226,347.71396290629457,2276,343.73972711922607,1663,300.81555810828667,801,158.52129194527782,55767,6283,70153,3218,37845,7646]
[]
["Population Data"]
["NAME","Total Population","MOE Total Population","Under 15 Years","MOE Under 15 yrs.","15 to 24 yrs.","MOE 15 to 24 yrs.","25 to 34 yrs.","MOE 25 to 34 yrs.","35 to 44 yrs.","MOE 35 to 44 yrs.","45 to 54 yrs.","MOE 45 to 54 yrs.","55 to 64 yrs.","MOE 55 to 64 yrs.","65 to 74 yrs.","MOE 65 to 74 yrs.","Over 74 yrs. ","MOE Over 74 yrs. ","TotalHH","MOE TotalHH","FamilyHH","MOE FamilyHH","MarriedFamilyHH","MOE MarriedFamilyHH","SingleFamilyHH","MOE SingleFamilyHH","Sfamily-MaleHH","MOE Sfamily-MaleHH","Sfamily-FemaleHH","MOE Sfamily-FemaleHH","NonFamilyHH","MOE NonFamilyHH","NonFamilyHH-LivingAlone","MOE NonFamilyHH-LivingAlone","NonFamilyHH-NotLivingAlone","MOE NonFamilyHH-NotLivingAlone","PopRaceWhite","MOE PopRaceWhite","PopRaceBlack","MOE PopRaceBlack","PopRaceAmerican Indian","MOE PopRaceAmerican Indian","PopRaceAsian &Pacific Is.","MOE PopRaceAsian &Pacific Is.","PopRaceOther*","MOE PopRaceOther*","PopRaceHispanic or Latino:","MOE PopRaceHispanic or Latino:","MedianAgeTotalPop","MOE MedianAgeTotalPop","MedianAgeMale","MOE MedianAgeMale","MedianAgeFemale","MOE MedianAgeFemale","AvgHHSizeTotal","MOE AvgHHSizeTotal","AvgHHSizeFamilyHH","MOE AvgHHSizeFamilyHH","AvgHHSizeNonFamilyHH","MOE AvgHHSizeNonFamilyHH"]
[{"$f":"VLOOKUP(DropDownList!$B$47,CntyQryCensus!$A$510:$DA$522,A$1)","v":"Rochester"},30212,21,4974,456.55996320308248,3770,478.41404661652649,4106,404.13116682582154,3942,392.77219860881195,4300,371.33542788158525,3893,389.17990698390378,3047,337.86091813052303,2180,302.93068514100713,12837,353,7943,369,6079,344,1864,266,768,206,1096,190,4894,520,3543,460,1351,327,28298,439,227,187,20,24,408,235.22754940695191,692,316.12813857674865,567,270,41.1,1,38.700000000000003,2.1,43.9,2.1,2.3390979200747837,9.2042299123706886E-2,2.9880397834571322,0.17184018017954392,1.2858602370249286,0.22744495571615367,null,null,null,null,null,null,null,null,null,null,null,null,null,null,null,null,null,null,null,null,null,null,null,null,null,null,null,null,null,null,null,null,null,null,null,null,null,null,null,null,null,null,null,null,29,535,534]
[]
["Nativity and Prior Place of Residence"]
["NAME","TotalPop",{"$f":"\"MOE \"&B135","v":"MOE TotalPop"},"Native:",{"$f":"\"MOE \"&D135","v":"MOE Native:"},"NatBornInStateOfResidence",{"$f":"\"MOE \"&F135","v":"MOE NatBornInStateOfResidence"},"Born in other state in the United States:",{"$f":"\"MOE \"&H135","v":"MOE Born in other state in the United States:"},"Northeast",{"$f":"\"MOE \"&J135","v":"MOE Northeast"},"Midwest",{"$f":"\"MOE \"&L135","v":"MOE Midwest"},"South",{"$f":"\"MOE \"&N135","v":"MOE South"},"West",{"$f":"\"MOE \"&P135","v":"MOE West"},"Born outside the United States:",{"$f":"\"MOE \"&R135","v":"MOE Born outside the United States:"},"Puerto Rico",{"$f":"\"MOE \"&T135","v":"MOE Puerto Rico"},"U.S. Island Areas",{"$f":"\"MOE \"&V135","v":"MOE U.S. Island Areas"},"Born abroad of American parent(s)",{"$f":"\"MOE \"&X135","v":"MOE Born abroad of American parent(s)"},"Foreign born:",{"$f":"\"MOE \"&Z135","v":"MOE Foreign born:"},"Naturalized U.S. citizen",{"$f":"\"MOE \"&AB135","v":"MOE Naturalized U.S. citizen"},"Not a U.S. citizen",{"$f":"\"MOE \"&AD135","v":"MOE Not a U.S. citizen"},"CurrentResidenceTotal:",{"$f":"\"MOE \"&AF135","v":"MOE CurrentResidenceTotal:"},"SameHouse:",{"$f":"\"MOE \"&AH135","v":"MOE SameHouse:"},"DifferentHouse:",{"$f":"\"MOE \"&AJ135","v":"MOE DifferentHouse:"},"DiffHouseInNH",{"$f":"\"MOE \"&AL135","v":"MOE DiffHouseInNH"},"DiffHouseInNHSameCnty",{"$f":"\"MOE \"&AN135","v":"MOE DiffHouseInNHSameCnty"},"DiffHouseInNHDiffCnty",{"$f":"\"MOE \"&AP135","v":"MOE DiffHouseInNHDiffCnty"},"DiffHouseInDiffState",{"$f":"\"MOE \"&AR135","v":"MOE DiffHouseInDiffState"},"DiffHouseInElsewhere",{"$f":"\"MOE \"&AT135","v":"MOE DiffHouseInElsewhere"}]
[{"$f":"VLOOKUP(DropDownList!$B$47,CntyQryCensus!$A$510:$DA$522,A$1)","v":"Rochester"},30052,24,29227,229,16366,872,12382,795,9411,758,567,139,1584,332,820,324,479,173,21,32,0,23,458,173,825,226,370,127,455,186,29814,125,25030,786,4784,770.96562828702031,3833,703.97301084629657,3353,677,480,193,926,313,25,29]
[]
["School Enrollment - Education"]
["NAME","Total Pop 3 Years and Older","MOE Total Pop 3 Years and Older","SchEnrlPop3yrOver",{"$f":"\"MOE \"&D139","v":"MOE SchEnrlPop3yrOver"},"TotalEnrollNursy&Kinder",{"$f":"\"MOE \"&F139","v":"MOE TotalEnrollNursy&Kinder"},"NurserSchEnrl",{"$f":"\"MOE \"&H139","v":"MOE NurserSchEnrl"},"KinderSchEnrl",{"$f":"\"MOE \"&J139","v":"MOE KinderSchEnrl"},"ElemSchEnrl (1-8)",{"$f":"\"MOE \"&L139","v":"MOE ElemSchEnrl (1-8)"},"HighSchEnrl(9-12)",{"$f":"\"MOE \"&N139","v":"MOE HighSchEnrl(9-12)"},"TotalElementry&HSEnroll",{"$f":"\"MOE \"&P139","v":"MOE TotalElementry&HSEnroll"},"CollGradSchEnrl",{"$f":"\"MOE \"&R139","v":"MOE CollGradSchEnrl"},"PopNotEnrolled","MOE PopNotEnrolled","Pop25yrsOver",{"$f":"\"MOE \"&V139","v":"MOE Pop25yrsOver"},"EduAtain<9grd",{"$f":"\"MOE \"&X139","v":"MOE EduAtain<9grd"},"EduAtainHSnoDip",{"$f":"\"MOE \"&Z139","v":"MOE EduAtainHSnoDip"},"EduAtainHSgrad",{"$f":"\"MOE \"&AB139","v":"MOE EduAtainHSgrad"},"EduAtainCollNoDeg",{"$f":"\"MOE \"&AD139","v":"MOE EduAtainCollNoDeg"},"EduAtainAssocDeg",{"$f":"\"MOE \"&AF139","v":"MOE EduAtainAssocDeg"},"EduAtainBachDeg",{"$f":"\"MOE \"&AH139","v":"MOE EduAtainBachDeg"},"EduAtainGradProfDeg",{"$f":"\"MOE \"&AJ139","v":"MOE EduAtainGradProfDeg"}]
[{"$f":"VLOOKUP(DropDownList!$B$47,CntyQryCensus!$A$510:$DA$522,A$1)","v":"Rochester"},29091,218,5985,520,493,174.01149387324966,279,138,214,106,2463,372.80826171103024,1614,263,4077,456.24006838505539,1415,327.49351138610365,23106,505,21589,436,448,186.1531627450901,1693,318.23104813955536,7739,511.4782497819433,4778,505.38994845564548,2007,314.66966806478189,3516,369.49966170485192,1229,227.442300375282]
[]
["Occupied Owner Housing Value"]
["NAME","Estimate; Total:","Margin of Error; Total:","Estimate; Total: - Less than $10,000","Margin of Error; Total: - Less than $10,000","Estimate; Total: - $10,000 to $14,999","Margin of Error; Total: - $10,000 to $14,999","Estimate; Total: - $15,000 to $19,999","Margin of Error; Total: - $15,000 to $19,999","Estimate; Total: - $20,000 to $24,999","Margin of Error; Total: - $20,000 to $24,999","Estimate; Total: - $25,000 to $29,999","Margin of Error; Total: - $25,000 to $29,999","Estimate; Total: - $30,000 to $34,999","Margin of Error; Total: - $30,000 to $34,999","Estimate; Total: - $35,000 to $39,999","Margin of Error; Total: - $35,000 to $39,999","Estimate; Total: - $40,000 to $49,999","Margin of Error; Total: - $40,000 to $49,999","Estimate; Total: - $50,000 to $59,999","Margin of Error; Total: - $50,000 to $59,999","Estimate; Total: - $60,000 to $69,999","Margin of Error; Total: - $60,000 to $69,999","Estimate; Total: - $70,000 to $79,999","Margin of Error; Total: - $70,000 to $79,999","Estimate; Total: - $80,000 to $89,999","Margin of Error; Total: - $80,000 to $89,999","Estimate; Total: - $90,000 to $99,999","Margin of Error; Total: - $90,000 to $99,999","Estimate; Total: - $100,000 to $124,999","Margin of Error; Total: - $100,000 to $124,999","Estimate; Total: - $125,000 to $149,999","Margin of Error; Total: - $125,000 to $149,999","Estimate; Total: - $150,000 to $174,999","Margin of Error; Total: - $150,000 to $174,999","Estimate; Total: - $175,000 to $199,999","Margin of Error; Total: - $175,000 to $199,999","Estimate; Total: - $200,000 to $249,999","Margin of Error; Total: - $200,000 to $249,999","Estimate; Total: - $250,000 to $299,999","Margin of Error; Total: - $250,000 to $299,999","Estimate; Total: - $300,000 to $399,999","Margin of Error; Total: - $300,000 to $399,999","Estimate; Total: - $400,000 to $499,999","Margin of Error; Total: - $400,000 to $499,999","Estimate; Total: - $500,000 to $749,999","Margin of Error; Total: - $500,000 to $749,999","Estimate; Total: - $750,000 to $999,999","Margin of Error; Total: - $750,000 to $999,999","Estimate; Total: - $1,000,000 to $1,499,999","Margin of Error; Total: - $1,000,000 to $1,499,999","Estimate; Total: - $1,500,000 to $1,999,999","Margin of Error; Total: - $1,500,000 to $1,999,999","Estimate; Total: - $2,000,000 or more","Margin of Error; Total: - $2,000,000 or more","MedianOwnOCCHomeValue","MOE MedianOwnOCCHomeValue","OnwerOccHsU","MOE OnwerOccHsU","OwnerCosts>20PctHHInc","MOE OwnerCosts>20PctHHInc","OwnerCosts20to29.9PctHHInc","MOE OwnerCosts20to29.9PctHHInc","OwnerCosts<30PctHHInc","MOE OwnerCosts<30PctHHInc","OwnerCosts>30PctHHInc","MOE OwnerCosts>30PctHHInc","OwnerCosts30to34.9PctHHInc","MOE OwnerCosts30to34.9PctHHInc","OwnerCosts<35PctHHInc","MOE OwnerCosts<35PctHHInc","OwnerCosts>35PctHHInc","MOE OwnerCosts>35PctHHInc","OwnerCosts>50PctHHInc","MOE OwnerCosts>50PctHHInc","OwnerCostsPctNotcomputed","MOE OwnerCostsPctNotcomputed","OwnerOHUHhInc<20k","MOE OwnerOHUHhInc<20k","OwnerOHUHhInc<20kHCosts<20pct","MOE OwnerOHUHhInc<20kHCosts<20pct","OwnerOHUHhInc<20kHCosts20to29pct","MOE OwnerOHUHhInc<20kHCosts20to29pct","OwnerOHUHhInc>20kHCosts30pct","MOE OwnerOHUHhInc>20kHCosts30pct","OwnerOHUHhInc20kTo34999","MOE OwnerOHUHhInc20kTo34999","OwnerOHUHhInc20kTo34999HCosts<20pct","MOE OwnerOHUHhInc20kTo34999HCosts<20pct","OwnerOHUHhInc20kTo34999HCosts20to29pct","MOE OwnerOHUHhInc20kTo34999HCosts20to29pct","OwnerOHUHhInc20kTo34999HCosts30pct","MOE OwnerOHUHhInc20kTo34999HCosts30pct","OwnerOHUHhInc35kTo49999","MOE OwnerOHUHhInc35kTo49999","OwnerOHUHhInc35kTo49999HCosts<20pct","MOE OwnerOHUHhInc35kTo49999HCosts<20pct","OwnerOHUHhInc35kTo49999HCosts20to29pct","MOE OwnerOHUHhInc35kTo49999HCosts20to29pct","OwnerOHUHhInc35kTo49999HCosts30pct","MOE OwnerOHUHhInc35kTo49999HCosts30pct","OwnerOHUHhInc50kTo74999","MOE OwnerOHUHhInc50kTo74999","OwnerOHUHhInc50kTo74999HCosts<20pct","MOE OwnerOHUHhInc50kTo74999HCosts<20pct","OwnerOHUHhInc50kTo74999HCosts20to29pct","MOE OwnerOHUHhInc50kTo74999HCosts20to29pct","OwnerOHUHhInc50kTo74999HCosts30pct","MOE OwnerOHUHhInc50kTo74999HCosts30pct","OwnerOHUHhInc>75000","MOE OwnerOHUHhInc>75000","OwnerOHUHhInc>75000HCosts<20pct","MOE OwnerOHUHhInc>75000HCosts<20pct","OwnerOHUHhInc>75000HCosts20to29pct","MOE OwnerOHUHhInc>75000HCosts20to29pct","OwnerOHUHhInc>75000HCosts30pct","MOE OwnerOHUHhInc>75000HCosts30pct","ZeroOrNegativeIncome","MOE ZeroOrNegativeIncome"]
[{"$f":"VLOOKUP(DropDownList!$B$47,CntyQryCensus!$A$510:$DA$522,A$1)","v":"Rochester"},8308,395,60,53,174,90,218,111,147,74,49,46,231,128,0,24,134,77,160,94,227,127,113,66,292,146,123,61,531,158,804,160,1336,235,885,164,1409,250,704,158,481,139,121,69,48,38,0,24,0,24,0,24,61,49,166700,5229,8308,395,3688,527.71678010084156,2149,296.93433617552552,5837,605.52043730992273,2455,345.81064182584089,474,198.8793604173143,6311,637.34449083678442,1981,282.89927536139078,963,189.4887859478761,16,193.49418595916518,652,184,18,32,35,34,599,185,1102,217,134,83,284,105,684,193,1133,238,374,128,132,79,627,173,1577,259,745,205,437,118,395,130,3828,365,2417,323,1261,268,150,75,16,24]
[]
["Occupied Rental Housing Value"]
["NAME","RntrOccHU","MOE RntrOccHU","RntrOccHUwRent","MOE RntrOccHUwRent","ROHUGRent<100","MOE ROHUGRent<100","ROHUGRent100to149","MOE ROHUGRent100to149","ROHUGRent150to199","MOE ROHUGRent150to199","ROHUGRent200to249","MOE ROHUGRent200to249","ROHUGRent250to299","MOE ROHUGRent250to299","ROHUGRent300to349","MOE ROHUGRent300to349","ROHUGRent350to399","MOE ROHUGRent350to399","ROHUGRent400to449","MOE ROHUGRent400to449","ROHUGRent450to499","MOE ROHUGRent450to499","ROHUGRent500to549","MOE ROHUGRent500to549","ROHUGRent550to599","MOE ROHUGRent550to599","ROHUGRent600to649","MOE ROHUGRent600to649","ROHUGRent650to699","MOE ROHUGRent650to699","ROHUGRent700to749","MOE ROHUGRent700to749","ROHUGRent750to799","MOE ROHUGRent750to799","ROHUGRent800to899","MOE ROHUGRent800to899","ROHUGRent900to999","MOE ROHUGRent900to999","ROHUGRent1000to1249","MOE ROHUGRent1000to1249","ROHUGRent1250to1499","MOE ROHUGRent1250to1499","ROHUGRent1500to1999","MOE ROHUGRent1500to1999","ROHUGRent$2,000 to $2,499","MOE ROHUGRent$2,000 to $2,499","ROHUGRent$2,500 to $2,999","MOE ROHUGRent$2,500 to $2,999","ROHUGRent$3,000 to $3,499","MOE ROHUGRent$3,000 to $3,499","ROHUGRent$3,500 or more","MOE ROHUGRent$3,500 or more","ROHUNoGRent","MOE ROHUNoGRent","MedianGrossRnt","MOE MedianGrossRnt","H73RenterOccHU","MOE H73RenterOccHU","H73ROHUHhInc<10k","MOE H73ROHUHhInc<10k","H73ROHUHhInc<10kRnt<20pct","MOE H73ROHUHhInc<10kRnt<20pct","H73ROHUHhInc<10kRnt20to25pct","MOE H73ROHUHhInc<10kRnt20to25pct","H73ROHUHhInc<10kRnt25to30pct","MOE H73ROHUHhInc<10kRnt25to30pct","H73ROHUHhInc<10kRnt30to35pct","MOE H73ROHUHhInc<10kRnt30to35pct","H73ROHUHhInc<10kRnt35to39.9","MOE H73ROHUHhInc<10kRnt35to39.9","H73ROHUHhInc<10kRnt40to49.9","MOE H73ROHUHhInc<10kRnt40to49.9","H73ROHUHhInc<10kRnt>50pct","MOE H73ROHUHhInc<10kRnt>50pct","H73ROHUHhInc<10kPctNotComput","MOE H73ROHUHhInc<10kPctNotComput","H73ROHUHhInc10to20k","MOE H73ROHUHhInc10to20k","H73ROHUHhInc10to20kRnt<20pct","MOE H73ROHUHhInc10to20kRnt<20pct","H73ROHUHhInc10to20kRnt20to25pct","MOE H73ROHUHhInc10to20kRnt20to25pct","H73ROHUHhInc10to20kRnt25to30pct","MOE H73ROHUHhInc10to20kRnt25to30pct","H73ROHUHhInc10to20kRnt30to35pct","MOE H73ROHUHhInc10to20kRnt30to35pct","H73ROHUHhInc10to20kRnt35to39.9","MOE H73ROHUHhInc10to20kRnt35to39.9","H73ROHUHhInc10to20kRnt40to49.9","MOE H73ROHUHhInc10to20kRnt40to49.9","H73ROHUHhInc10to20kRnt>50pct","MOE H73ROHUHhInc10to20kRnt>50pct","H73ROHUHhInc10to20kRntPctNC","MOE H73ROHUHhInc10to20kRntPctNC","H73ROHUHhInc20to34.9k","MOE H73ROHUHhInc20to34.9k","H73ROHUHhInc20to34.9kRnt<20pct","MOE H73ROHUHhInc20to34.9kRnt<20pct","H73ROHUHhInc20to34.9kRnt20to25pct","MOE H73ROHUHhInc20to34.9kRnt20to25pct","H73ROHUHhInc20to34.9kRnt25to30pct","MOE H73ROHUHhInc20to34.9kRnt25to30pct","H73ROHUHhInc20to34.9kRnt30to35pct","MOE H73ROHUHhInc20to34.9kRnt30to35pct","H73ROHUHhInc20to34.9kRnt35to39.9","MOE H73ROHUHhInc20to34.9kRnt35to39.9","H73ROHUHhInc20to34.9kRnt40to49.9","MOE H73ROHUHhInc20to34.9kRnt40to49.9","H73ROHUHhInc20to34.9kRnt>50pct","MOE H73ROHUHhInc20to34.9kRnt>50pct","H73ROHUHhInc20to34.9kRntPctNC","MOE H73ROHUHhInc20to34.9kRntPctNC","H73ROHUHhInc35to49.9k","MOE H73ROHUHhInc35to49.9k","H73ROHUHhInc35to49.9kRnt<20pct","MOE H73ROHUHhInc35to49.9kRnt<20pct","H73ROHUHhInc35to49.9kRnt20to25pct","MOE H73ROHUHhInc35to49.9kRnt20to25pct","H73ROHUHhInc35to49.9kRnt25to30pct","MOE H73ROHUHhInc35to49.9kRnt25to30pct","H73ROHUHhInc35to49.9kRnt30to35pct","MOE H73ROHUHhInc35to49.9kRnt30to35pct","H73ROHUHhInc35to49.9kRnt35to39.9","MOE H73ROHUHhInc35to49.9kRnt35to39.9","H73ROHUHhInc35to49.9kRnt40to49.9","MOE H73ROHUHhInc35to49.9kRnt40to49.9","H73ROHUHhInc35to49.9kRnt>50pct","MOE H73ROHUHhInc35to49.9kRnt>50pct","H73ROHUHhInc35to49.9kRntPctNC","MOE H73ROHUHhInc35to49.9kRntPctNC","H73ROHUHhInc50to74.9k","MOE H73ROHUHhInc50to74.9k","H73ROHUHhInc50to74.9kRnt<20pct","MOE H73ROHUHhInc50to74.9kRnt<20pct","H73ROHUHhInc50to74.9kRnt20to25pct","MOE H73ROHUHhInc50to74.9kRnt20to25pct","H73ROHUHhInc50to74.9kRnt25to30pct","MOE H73ROHUHhInc50to74.9kRnt25to30pct","H73ROHUHhInc50to74.9kRnt30to35pct","MOE H73ROHUHhInc50to74.9kRnt30to35pct","H73ROHUHhInc50to74.9kRnt35to39.9","MOE H73ROHUHhInc50to74.9kRnt35to39.9","H73ROHUHhInc50to74.9kRnt40to49.9","MOE H73ROHUHhInc50to74.9kRnt40to49.9","H73ROHUHhInc50to74.9kRnt>50pct","MOE H73ROHUHhInc50to74.9kRnt>50pct","H73ROHUHhInc50to74.9kRntPctNC","MOE H73ROHUHhInc50to74.9kRntPctNC","H73ROHUHhInc75to99.9k","MOE H73ROHUHhInc75to99.9k","H73ROHUHhInc75to99.9kRnt<20pct","MOE H73ROHUHhInc75to99.9kRnt<20pct","H73ROHUHhInc75to99.9kRnt20to25pct","MOE H73ROHUHhInc75to99.9kRnt20to25pct","H73ROHUHhInc75to99.9kRnt25to30pct","MOE H73ROHUHhInc75to99.9kRnt25to30pct","H73ROHUHhInc75to99.9kRnt30to35pct","MOE H73ROHUHhInc75to99.9kRnt30to35pct","H73ROHUHhInc75to99.9kRnt35to39.9","MOE H73ROHUHhInc75to99.9kRnt35to39.9","H73ROHUHhInc75to99.9kRnt40to49.9","MOE H73ROHUHhInc75to99.9kRnt40to49.9","H73ROHUHhInc75to99.9kRnt>50pct","MOE H73ROHUHhInc75to99.9kRnt>50pct","H73ROHUHhInc75to99.9kRntPctNC","MOE H73ROHUHhInc75to99.9kRntPctNC","H73ROHUHhInc>100k","MOE H73ROHUHhInc>100k","H73ROHUHhInc>100kRnt<20pct","MOE H73ROHUHhInc>100kRnt<20pct","H73ROHUHhInc>100kRnt20to25pct","MOE H73ROHUHhInc>100kRnt20to25pct","H73ROHUHhInc>100kRnt25to30pct","MOE H73ROHUHhInc>100kRnt25to30pct","H73ROHUHhInc>100kRnt30to35pct","MOE H73ROHUHhInc>100kRnt30to35pct","H73ROHUHhInc>100kRnt35to39.9","MOE H73ROHUHhInc>100kRnt35to39.9","H73ROHUHhInc>100kRnt40to49.9","MOE H73ROHUHhInc>100kRnt40to49.9","H73ROHUHhInc>100kRnt>50pct","MOE H73ROHUHhInc>100kRnt>50pct","H73ROHUHhInc>100kRntPctNC","MOE H73ROHUHhInc>100kRntPctNC"]
[{"$f":"VLOOKUP(DropDownList!$B$47,CntyQryCensus!$A$510:$DA$522,A$1)","v":"Rochester"},4504,373,4353,367,0,23,12,19,25,29,75,78,103,97,77,49,95,64,120,99,44,63,103,77,16,17,154,97,133,96,178,114,194,93,630,194,674,204,1009,266,421,169,275,131,15,23,0,23,0,23,0,23,151,75,932,40,4504,373,459,138,0,23,13,22,0,23,0,23,0,23,26,40,388,137,32,47,1019,245,69,76,29,33,162,116,70,53,29,32,29,25,599,207,32,25,945,234,13,23,57,72,120,92,107,89,209,100,200,90,239,122,0,23,822,213,126,105,119,84,298,138,131,89,75,66,23,28,0,23,50,43,638,225,255,170,225,117,78,41,29,36,0,23,0,23,0,23,51,49,320,111,198,101,47,47,57,51,0,23,0,23,0,23,0,23,18,28,301,138,301,138,0,23,0,23,0,23,0,23,0,23,0,23,0,23]
[]
[]
[]
[]
[]
["Occupied Rental Housing Cost Burdern All Incomes"]
["NAME","RntrOccHU","MOE RntrOccHU","RntrOccHUwRent","MOE RntrOccHUwRent","ROHUGRent<100","MOE ROHUGRent<100","ROHUGRent100to149","MOE ROHUGRent100to149","ROHUGRent150to199","MOE ROHUGRent150to199","ROHUGRent200to249","MOE ROHUGRent200to249","ROHUGRent250to299","MOE ROHUGRent250to299","ROHUGRent300to349","MOE ROHUGRent300to349","ROHUGRent350to399","MOE ROHUGRent350to399","ROHUGRent400to449","MOE ROHUGRent400to449","ROHUGRent450to499","MOE ROHUGRent450to499","ROHUGRent500to549","MOE ROHUGRent500to549","ROHUGRent550to599","MOE ROHUGRent550to599","ROHUGRent600to649","MOE ROHUGRent600to649","ROHUGRent650to699","MOE ROHUGRent650to699","ROHUGRent700to749","MOE ROHUGRent700to749","ROHUGRent750to799","MOE ROHUGRent750to799","ROHUGRent800to899","MOE ROHUGRent800to899","ROHUGRent900to999","MOE ROHUGRent900to999","ROHUGRent1000to1249","MOE ROHUGRent1000to1249","ROHUGRent1250to1499","MOE ROHUGRent1250to1499","ROHUGRent1500to1999","MOE ROHUGRent1500to1999","ROHUGRent2000-2499","MOE ROHUGRent2000-2499","ROHUGRent2500-2999","MOE ROHUGRent2500-2999","ROHUGRent3000-3499","MOE ROHUGRent3000-3499","ROHUGRent3500<","MOE ROHUGRent3500<","ROHUNoGRent","MOE ROHUNoGRent","MedianGrossRnt","MOE MedianGrossRnt","H73RenterOccHU","MOE H73RenterOccHU","H73ROHUHhInc<10k","MOE H73ROHUHhInc<10k","H73ROHUHhInc<10kRnt<20pct","MOE H73ROHUHhInc<10kRnt<20pct","H73ROHUHhInc<10kRnt20to25pct","MOE H73ROHUHhInc<10kRnt20to25pct","H73ROHUHhInc<10kRnt25to30pct","MOE H73ROHUHhInc<10kRnt25to30pct","H73ROHUHhInc<10kRnt30to35pct","MOE H73ROHUHhInc<10kRnt30to35pct","H73ROHUHhInc<10kRnt35to39.9","MOE H73ROHUHhInc<10kRnt35to39.9","H73ROHUHhInc<10kRnt40to49.9","MOE H73ROHUHhInc<10kRnt40to49.9","H73ROHUHhInc<10kRnt>50pct","MOE H73ROHUHhInc<10kRnt>50pct","H73ROHUHhInc<10kPctNotComput","MOE H73ROHUHhInc<10kPctNotComput","H73ROHUHhInc10to20k","MOE H73ROHUHhInc10to20k","H73ROHUHhInc10to20kRnt<20pct","MOE H73ROHUHhInc10to20kRnt<20pct","H73ROHUHhInc10to20kRnt20to25pct","MOE H73ROHUHhInc10to20kRnt20to25pct","H73ROHUHhInc10to20kRnt25to30pct","MOE H73ROHUHhInc10to20kRnt25to30pct","H73ROHUHhInc10to20kRnt30to35pct","MOE H73ROHUHhInc10to20kRnt30to35pct","H73ROHUHhInc10to20kRnt35to39.9","MOE H73ROHUHhInc10to20kRnt35to39.9","H73ROHUHhInc10to20kRnt40to49.9","MOE H73ROHUHhInc10to20kRnt40to49.9","H73ROHUHhInc10to20kRnt>50pct","MOE H73ROHUHhInc10to20kRnt>50pct","H73ROHUHhInc10to20kRntPctNC","MOE H73ROHUHhInc10to20kRntPctNC","H73ROHUHhInc20to34.9k","MOE H73ROHUHhInc20to34.9k","H73ROHUHhInc20to34.9kRnt<20pct","MOE H73ROHUHhInc20to34.9kRnt<20pct","H73ROHUHhInc20to34.9kRnt20to25pct","MOE H73ROHUHhInc20to34.9kRnt20to25pct","H73ROHUHhInc20to34.9kRnt25to30pct","MOE H73ROHUHhInc20to34.9kRnt25to30pct","H73ROHUHhInc20to34.9kRnt30to35pct","MOE H73ROHUHhInc20to34.9kRnt30to35pct","H73ROHUHhInc20to34.9kRnt35to39.9","MOE H73ROHUHhInc20to34.9kRnt35to39.9","H73ROHUHhInc20to34.9kRnt40to49.9","MOE H73ROHUHhInc20to34.9kRnt40to49.9","H73ROHUHhInc20to34.9kRnt>50pct","MOE H73ROHUHhInc20to34.9kRnt>50pct","H73ROHUHhInc20to34.9kRntPctNC","MOE H73ROHUHhInc20to34.9kRntPctNC","H73ROHUHhInc35to49.9k","MOE H73ROHUHhInc35to49.9k","H73ROHUHhInc35to49.9kRnt<20pct","MOE H73ROHUHhInc35to49.9kRnt<20pct","H73ROHUHhInc35to49.9kRnt20to25pct","MOE H73ROHUHhInc35to49.9kRnt20to25pct","H73ROHUHhInc35to49.9kRnt25to30pct","MOE H73ROHUHhInc35to49.9kRnt25to30pct","H73ROHUHhInc35to49.9kRnt30to35pct","MOE H73ROHUHhInc35to49.9kRnt30to35pct","H73ROHUHhInc35to49.9kRnt35to39.9","MOE H73ROHUHhInc35to49.9kRnt35to39.9","H73ROHUHhInc35to49.9kRnt40to49.9","MOE H73ROHUHhInc35to49.9kRnt40to49.9","H73ROHUHhInc35to49.9kRnt>50pct","MOE H73ROHUHhInc35to49.9kRnt>50pct","H73ROHUHhInc35to49.9kRntPctNC","MOE H73ROHUHhInc35to49.9kRntPctNC","H73ROHUHhInc50to74.9k","MOE H73ROHUHhInc50to74.9k","H73ROHUHhInc50to74.9kRnt<20pct","MOE H73ROHUHhInc50to74.9kRnt<20pct","H73ROHUHhInc50to74.9kRnt20to25pct","MOE H73ROHUHhInc50to74.9kRnt20to25pct","H73ROHUHhInc50to74.9kRnt25to30pct","MOE H73ROHUHhInc50to74.9kRnt25to30pct","H73ROHUHhInc50to74.9kRnt30to35pct","MOE H73ROHUHhInc50to74.9kRnt30to35pct","H73ROHUHhInc50to74.9kRnt35to39.9","MOE H73ROHUHhInc50to74.9kRnt35to39.9","H73ROHUHhInc50to74.9kRnt40to49.9","MOE H73ROHUHhInc50to74.9kRnt40to49.9","H73ROHUHhInc50to74.9kRnt>50pct","MOE H73ROHUHhInc50to74.9kRnt>50pct","H73ROHUHhInc50to74.9kRntPctNC","MOE H73ROHUHhInc50to74.9kRntPctNC","H73ROHUHhInc75to99.9k","MOE H73ROHUHhInc75to99.9k","H73ROHUHhInc75to99.9kRnt<20pct","MOE H73ROHUHhInc75to99.9kRnt<20pct","H73ROHUHhInc75to99.9kRnt20to25pct","MOE H73ROHUHhInc75to99.9kRnt20to25pct","H73ROHUHhInc75to99.9kRnt25to30pct","MOE H73ROHUHhInc75to99.9kRnt25to30pct","H73ROHUHhInc75to99.9kRnt30to35pct","MOE H73ROHUHhInc75to99.9kRnt30to35pct","H73ROHUHhInc75to99.9kRnt35to39.9","MOE H73ROHUHhInc75to99.9kRnt35to39.9","H73ROHUHhInc75to99.9kRnt40to49.9","MOE H73ROHUHhInc75to99.9kRnt40to49.9","H73ROHUHhInc75to99.9kRnt>50pct","MOE H73ROHUHhInc75to99.9kRnt>50pct","H73ROHUHhInc75to99.9kRntPctNC","MOE H73ROHUHhInc75to99.9kRntPctNC","H73ROHUHhInc>100k","MOE H73ROHUHhInc>100k","H73ROHUHhInc>100kRnt<20pct","MOE H73ROHUHhInc>100kRnt<20pct","H73ROHUHhInc>100kRnt20to25pct","MOE H73ROHUHhInc>100kRnt20to25pct","H73ROHUHhInc>100kRnt25to30pct","MOE H73ROHUHhInc>100kRnt25to30pct","H73ROHUHhInc>100kRnt30to35pct","MOE H73ROHUHhInc>100kRnt30to35pct","H73ROHUHhInc>100kRnt35to39.9","MOE H73ROHUHhInc>100kRnt35to39.9","H73ROHUHhInc>100kRnt40to49.9","MOE H73ROHUHhInc>100kRnt40to49.9","H73ROHUHhInc>100kRnt>50pct","MOE H73ROHUHhInc>100kRnt>50pct","H73ROHUHhInc>100kRntPctNC","MOE H73ROHUHhInc>100kRntPctNC"]
[{"$f":"VLOOKUP(DropDownList!$B$47,CntyQryCensus!$A$510:$DA$522,A$1)","v":"Rochester"},4504,373,962,289.39073931278449,490,158,715,219,2167,395.81814005929539,2154,350.45256455046808,337,136,2504,418.53076350490653,1817,322.9876158616612,1226,283,183,89]
[]
["Income By Household Type and Tenure"]
["NAME","TotalFamilyHouseholds",{"$f":"\"MOE \"&B159","v":"MOE TotalFamilyHouseholds"},"FamInc<10K",{"$f":"\"MOE \"&D159","v":"MOE FamInc<10K"},"FamInc10to15K",{"$f":"\"MOE \"&F159","v":"MOE FamInc10to15K"},"FamInc15to20K",{"$f":"\"MOE \"&H159","v":"MOE FamInc15to20K"},"FamInc20to25K",{"$f":"\"MOE \"&J159","v":"MOE FamInc20to25K"},"FamInc25to30K",{"$f":"\"MOE \"&L159","v":"MOE FamInc25to30K"},"FamInc30to35K",{"$f":"\"MOE \"&N159","v":"MOE FamInc30to35K"},"FamInc35to40K",{"$f":"\"MOE \"&P159","v":"MOE FamInc35to40K"},"FamInc40to45K",{"$f":"\"MOE \"&R159","v":"MOE FamInc40to45K"},"FamInc45to50K",{"$f":"\"MOE \"&T159","v":"MOE FamInc45to50K"},"FamInc50to60K",{"$f":"\"MOE \"&V159","v":"MOE FamInc50to60K"},"FamInc60to75K",{"$f":"\"MOE \"&X159","v":"MOE FamInc60to75K"},"FamInc75to100K",{"$f":"\"MOE \"&Z159","v":"MOE FamInc75to100K"},"FamInc100to125K",{"$f":"\"MOE \"&AB159","v":"MOE FamInc100to125K"},"FamInc125to150K",{"$f":"\"MOE \"&AD159","v":"MOE FamInc125to150K"},"FamInc150to200K",{"$f":"\"MOE \"&AF159","v":"MOE FamInc150to200K"},"FamInc>200K",{"$f":"\"MOE \"&AH159","v":"MOE FamInc>200K"},"MedFamInc",{"$f":"\"MOE \"&AJ159","v":"MOE MedFamInc"},"TotalNonNonFamilyHouseholds",{"$f":"\"MOE \"&AL159","v":"MOE TotalNonNonFamilyHouseholds"},"NonFamInc<10K",{"$f":"\"MOE \"&AN159","v":"MOE NonFamInc<10K"},"NonFamInc10to15K",{"$f":"\"MOE \"&AP159","v":"MOE NonFamInc10to15K"},"NonFamInc15to20K",{"$f":"\"MOE \"&AR159","v":"MOE NonFamInc15to20K"},"NonFamInc20to25K",{"$f":"\"MOE \"&AT159","v":"MOE NonFamInc20to25K"},"NonFamInc25to30K",{"$f":"\"MOE \"&AV159","v":"MOE NonFamInc25to30K"},"NonFamInc30to35K",{"$f":"\"MOE \"&AX159","v":"MOE NonFamInc30to35K"},"NonFamInc35to40K",{"$f":"\"MOE \"&AZ159","v":"MOE NonFamInc35to40K"},"NonFamInc40to45K",{"$f":"\"MOE \"&BB159","v":"MOE NonFamInc40to45K"},"NonFamInc45to50K",{"$f":"\"MOE \"&BD159","v":"MOE NonFamInc45to50K"},"NonFamInc50to60K",{"$f":"\"MOE \"&BF159","v":"MOE NonFamInc50to60K"},"NonFamInc60to75K",{"$f":"\"MOE \"&BH159","v":"MOE NonFamInc60to75K"},"NonFamInc75to100K",{"$f":"\"MOE \"&BJ159","v":"MOE NonFamInc75to100K"},"NonFamInc100to125K",{"$f":"\"MOE \"&BL159","v":"MOE NonFamInc100to125K"},"NonFamInc125to150K",{"$f":"\"MOE \"&BN159","v":"MOE NonFamInc125to150K"},"NonFamInc150to200K",{"$f":"\"MOE \"&BP159","v":"MOE NonFamInc150to200K"},"NonFamInc>200K",{"$f":"\"MOE \"&BR159","v":"MOE NonFamInc>200K"},"MedNonFamInc",{"$f":"\"MOE \"&BT159","v":"MOE MedNonFamInc"},"PerCapitaIncome","MOE PerCapitaIncome"]
[{"$f":"VLOOKUP(DropDownList!$B$47,CntyQryCensus!$A$510:$DA$522,A$1)","v":"Rochester"},7943,369,335,127,130,87,421,162,305,141,282,152,274,138,324,116,381,116,451,151,441,144,839,203,1715,322,857,219,477,136,494,144,217,81,70385,5011,4894,520,494,236,411,150,372,168,424,128,436,141,444,125,193,107,131,79,321,167,299,121,511,179,545,182,195,142,42,40,47,42,29,28,null,null,33317,3671]
[]
[]
[]
["2010 Census"]
[]
["TownName","LOGRECNO","COUNTY","TotalPop","TotalPop1Race","TotalPopWhite","TotalPopAfricanAmerican","TotalPopAmericanIndAlaska","TotalPopAsian","TotalPopNativeHawaiianPIsland","TotalPopSomeOtherRace","TotalPopTwoOrMoreRaces","TotalPopHispanicLatino","TotalNonHispanicLatino","TotPopUnder15yrs","TotPop15to24yrs","TotPop25to34yrs","TotPop35to44yrs","TotPop45to54yrs","TotPop55to64yrs","TotPop65to74yrs","TotPopOver74yrs","MedianAge","MedianAgeMale","MedianAgeFemale","TotalHH","TotalPopInHouseholds","TotalPopInFamilyHH","TotalPopInNonFamilyHH","AvgHHSize","TotalFamilyHH","TotalFamilyHHSpouse","TotalSingleParentHH","TotalNonFamilyHH","AvgFamilyHHSize","AvgNonFamilyHHSize","AverageHHSizeOwnerOccupied","AverageHHSizeRentalOccupied","TotalHousingUnits","TotalOccupiedHU","TotalOwnerOccupiedHUs","TotalRentalOccupiedHU","TotalVacantHU","VacantHUForRent","VacantHURentNotOccupied","VacantHUForSale","VacantHUsSoldNotOccupied","VacantHUSeasonalRecreational","VacantHUsAllOtherVacants","HomeOwnerVacancyRate","HomeRentalVacancyRate","Total HH","Total Single Family HU","Total Multi-Family HU","Total Manufacture HU"]
[{"$f":"VLOOKUP(DropDownList!$B$47,CntyQryCensus!$A$529:$DA$540,A$1)","v":"Rochester"},{"$f":"VLOOKUP(DropDownList!$B$47,CntyQryCensus!$A$529:$DA$540,B$1)","v":"0000318"},{"$f":"VLOOKUP(DropDownList!$B$47,CntyQryCensus!$A$529:$DA$540,C$1)","v":"017"},{"$f":"VLOOKUP(DropDownList!$B$47,CntyQryCensus!$A$529:$DA$540,D$1)","v":29752},{"$f":"VLOOKUP(DropDownList!$B$47,CntyQryCensus!$A$529:$DA$540,E$1)","v":29238},{"$f":"VLOOKUP(DropDownList!$B$47,CntyQryCensus!$A$529:$DA$540,F$1)","v":28388},{"$f":"VLOOKUP(DropDownList!$B$47,CntyQryCensus!$A$529:$DA$540,G$1)","v":251},{"$f":"VLOOKUP(DropDownList!$B$47,CntyQryCensus!$A$529:$DA$540,H$1)","v":92},{"$f":"VLOOKUP(DropDownList!$B$47,CntyQryCensus!$A$529:$DA$540,I$1)","v":361},{"$f":"VLOOKUP(DropDownList!$B$47,CntyQryCensus!$A$529:$DA$540,J$1)","v":15},{"$f":"VLOOKUP(DropDownList!$B$47,CntyQryCensus!$A$529:$DA$540,K$1)","v":131},{"$f":"VLOOKUP(DropDownList!$B$47,CntyQryCensus!$A$529:$DA$540,L$1)","v":514},{"$f":"VLOOKUP(DropDownList!$B$47,CntyQryCensus!$A$529:$DA$540,M$1)","v":547},{"$f":"VLOOKUP(DropDownList!$B$47,CntyQryCensus!$A$529:$DA$540,N$1)","v":29205},{"$f":"VLOOKUP(DropDownList!$B$47,CntyQryCensus!$A$529:$DA$540,O$1)","v":5457},{"$f":"VLOOKUP(DropDownList!$B$47,CntyQryCensus!$A$529:$DA$540,P$1)","v":3381},{"$f":"VLOOKUP(DropDownList!$B$47,CntyQryCensus!$A$529:$DA$540,Q$1)","v":3779},{"$f":"VLOOKUP(DropDownList!$B$47,CntyQryCensus!$A$529:$DA$540,R$1)","v":4024},{"$f":"VLOOKUP(DropDownList!$B$47,CntyQryCensus!$A$529:$DA$540,S$1)","v":4863},{"$f":"VLOOKUP(DropDownList!$B$47,CntyQryCensus!$A$529:$DA$540,T$1)","v":3851},{"$f":"VLOOKUP(DropDownList!$B$47,CntyQryCensus!$A$529:$DA$540,U$1)","v":2334},{"$f":"VLOOKUP(DropDownList!$B$47,CntyQryCensus!$A$529:$DA$540,V$1)","v":2063},{"$f":"VLOOKUP(DropDownList!$B$47,CntyQryCensus!$A$529:$DA$540,W$1)","v":40.700000000000003},{"$f":"VLOOKUP(DropDownList!$B$47,CntyQryCensus!$A$529:$DA$540,X$1)","v":39.5},{"$f":"VLOOKUP(DropDownList!$B$47,CntyQryCensus!$A$529:$DA$540,Y$1)","v":42.1},{"$f":"VLOOKUP(DropDownList!$B$47,CntyQryCensus!$A$529:$DA$540,Z$1)","v":12378},{"$f":"VLOOKUP(DropDownList!$B$47,CntyQryCensus!$A$529:$DA$540,AA$1)","v":29512},{"$f":"VLOOKUP(DropDownList!$B$47,CntyQryCensus!$A$529:$DA$540,AB$1)","v":14994},{"$f":"VLOOKUP(DropDownList!$B$47,CntyQryCensus!$A$529:$DA$540,AC$1)","v":14518},{"$f":"VLOOKUP(DropDownList!$B$47,CntyQryCensus!$A$529:$DA$540,AD$1)","v":2.38},{"$f":"VLOOKUP(DropDownList!$B$47,CntyQryCensus!$A$529:$DA$540,AE$1)","v":7936},{"$f":"VLOOKUP(DropDownList!$B$47,CntyQryCensus!$A$529:$DA$540,AF$1)","v":5788},{"$f":"VLOOKUP(DropDownList!$B$47,CntyQryCensus!$A$529:$DA$540,AG$1)","v":2148},{"$f":"VLOOKUP(DropDownList!$B$47,CntyQryCensus!$A$529:$DA$540,AH$1)","v":4442},{"$f":"VLOOKUP(DropDownList!$B$47,CntyQryCensus!$A$529:$DA$540,AI$1)","v":2.89},{"$f":"VLOOKUP(DropDownList!$B$47,CntyQryCensus!$A$529:$DA$540,AJ$1)","v":3.2683475911751465},{"$f":"VLOOKUP(DropDownList!$B$47,CntyQryCensus!$A$529:$DA$540,AK$1)","v":2.46},{"$f":"VLOOKUP(DropDownList!$B$47,CntyQryCensus!$A$529:$DA$540,AL$1)","v":2.23},{"$f":"VLOOKUP(DropDownList!$B$47,CntyQryCensus!$A$529:$DA$540,AM$1)","v":13372},{"$f":"VLOOKUP(DropDownList!$B$47,CntyQryCensus!$A$529:$DA$540,AN$1)","v":12378},{"$f":"VLOOKUP(DropDownList!$B$47,CntyQryCensus!$A$529:$DA$540,AO$1)","v":8359},{"$f":"VLOOKUP(DropDownList!$B$47,CntyQryCensus!$A$529:$DA$540,AP$1)","v":4019},{"$f":"VLOOKUP(DropDownList!$B$47,CntyQryCensus!$A$529:$DA$540,AQ$1)","v":994},{"$f":"VLOOKUP(DropDownList!$B$47,CntyQryCensus!$A$529:$DA$540,AR$1)","v":376},{"$f":"VLOOKUP(DropDownList!$B$47,CntyQryCensus!$A$529:$DA$540,AS$1)","v":15},{"$f":"VLOOKUP(DropDownList!$B$47,CntyQryCensus!$A$529:$DA$540,AT$1)","v":231},{"$f":"VLOOKUP(DropDownList!$B$47,CntyQryCensus!$A$529:$DA$540,AU$1)","v":18},{"$f":"VLOOKUP(DropDownList!$B$47,CntyQryCensus!$A$529:$DA$540,AV$1)","v":80},{"$f":"VLOOKUP(DropDownList!$B$47,CntyQryCensus!$A$529:$DA$540,AW$1)","v":274},{"$f":"VLOOKUP(DropDownList!$B$47,CntyQryCensus!$A$529:$DA$540,AX$1)","v":2.7},{"$f":"VLOOKUP(DropDownList!$B$47,CntyQryCensus!$A$529:$DA$540,AY$1)","v":8.5},{"$f":"VLOOKUP(DropDownList!$B$47,CntyQryCensus!$A$529:$DA$540,AZ$1)","v":13372},{"$f":"VLOOKUP(DropDownList!$B$47,CntyQryCensus!$A$529:$DA$540,BA$1)","v":6622},{"$f":"VLOOKUP(DropDownList!$B$47,CntyQryCensus!$A$529:$DA$540,BB$1)","v":4349},{"$f":"VLOOKUP(DropDownList!$B$47,CntyQryCensus!$A$529:$DA$540,BC$1)","v":2402}]

{"sheet":"CntyDataLinkPrior10YearEstimate","index":68,"n_rows":167,"n_cols":255,"rows_kept":167,"cut":false,"hidden":true,"merged":[]}
[1,{"$f":"A1+1","v":2},{"$f":"B1+1","v":3},4,5,6,7,8,9,10,11,12,13,14,15,{"$f":"O1+1","v":16},17,18,19,20,21,22,23,24,25,26,27,28,29,30,31,32,33,34,35,36,37,38,39,40,41,42,43,44,45,46,47,48,49,50,51,52,53,54,55,56,57,58,59,60,61,62,63,64,65,66,{"$f":"BN1+1","v":67},68,69,70,71,72,73,74,75,76,77,78,79,80,81,82,83,84,85,86,87,88,89,90,91,92,93,94,95,96,97,98,99,100,101,102,103,104,105,106,107,108,109,110,111,112,113,114,115,116,117,118,119,120,121,122,123,124,125,126,127,128,129,130,{"$f":"DZ1+1","v":131},132,133,134,135,136,137,138,139,140,141,142,143,144,145,146,147,148,149,150,151,152,153,154,155,156,157,158,159,160,161,162,163,164,165,166,167,168,169,170,171,172,173,174,175,176,177,178,179,180,181,182,183,184,185,186,187,188,189,190,191,192,193,194,{"$f":"GL1+1","v":195},196,197,198,199,200,201,202,203,204,205,206,207,208,209,210,211,212,213,214,215,216,217,218,219,220,221,222,223,224,225,226,227,228,229,230,231,232,233,234,235,236,237,238,239,240,241,242,243,244,245,246,247,248,249,250,251,252,253,254,255]
[]
["Census 1990 Data -           Query Name:  DPCnty90Census"]
["TownName","Cnty_Code","Census_Cnty_Code","LandAcres","WaterAcres","HousingUnits90Cen","Persons90Cen","Families90Cen","Households90cen","MalePop90cen","FemalePop90cen","WhitePop","BlackPop","AmerIndianPop","AsianPIPop","OtherRacePop","HispanicOrPop","AgeUnder15_90cen","Age15to24_90cen","Age25to34_90cen","Age35to44_90cen","Age45to54_90cen","Age55to64_90cen","Age65to74_90cen","Age75andOver_90cen","PersonsInHH90cen","PersonsInFamHH90cen","PersonsInGC","PersonsPerHH90cen","PersonsPerFam90Cen","SinglePersonHH90cen","MarriedCoupleHH90cen","SingleParentHH90cen","NonFamilyHH90cen","TotalHousingUnits","OccupiedHousingUnits","VacantHousingUnits","OwnerOccHU","RenterOccHU","VacantForRent90","VacantForSale90","VacantSeasonalRec","SingFamHU90cen","MultiFamHU90cen","MobileHom90cen","SingFamOwnHU90cen","MultiFamOwnHU90cen","MobileHomOwnHU90cen","SingFamRntrHU90cen","MultiFamRntrHU90cen","MobileHomRntrHU90cen","HU<5yrs90cen","HU5to20yrs90cen","HU20to50yrs90cen","HU>50yrs90cen","Units0Bedroom90cen","Units1Bedroom90cen","Units2Bedroom90cen","Units3Bedroom90cen","Units4+Bedroom90cen","HI<5K","HI5Kto10K","HI10Kto15K","HI15Kto25K","HI25Kto35K","HI35Kto50K","HI50Kto75K","HI75Kto100K","HI>100K","MedHI","HH<25HI<5K","HH<25HI5Kto10K","HH<25HI10Kto15K","HH<25HI15Kto25K","HH<25HI25Kto35K","HH<25HI35Kto50K","HH<25HI50Kto75K","HH<25HI75Kto100K","HH<25HI>100K","HH25to34HI<5K","HH25to34HI5Kto10K","HH25to34HI10Kto15K","HH25to34HI15Kto25K","HH25to34HI25Kto35K","HH25to34HI35Kto50K","HH25to34HI50Kto75K","HH25to34HI75Kto100K","HH25to34HI>100K","HH35to44HI<5K","HH35to44HI5Kto10K","HH35to44HI10Kto15K","HH35to44HI15Kto25K","HH35to44HI25Kto35K","HH35to44HI35Kto50K","HH35to44HI50Kto75K","HH35to44HI75Kto100K","HH35to44HI>100K","HH45to54HI<5K","HH45to54HI5Kto10K","HH45to54HI10Kto15K","HH45to54HI15Kto25K","HH45to54HI25Kto35K","HH45to54HI35Kto50K","HH45to54HI50Kto75K","HH45to54HI75Kto100K","HH45to54HI>100K","HH55to64HI<5K","HH55to64HI5Kto10K","HH55to64HI10Kto15K","HH55to64HI15Kto25K","HH55to64HI25Kto35K","HH55to64HI35Kto50K","HH55to64HI50Kto75K","HH55to64HI75Kto100K","HH55to64HI>100K","HH65to74HI<5K","HH65to74HI5Kto10K","HH65to74HI10Kto15K","HH65to74HI15Kto25K","HH65to74HI25Kto35K","HH65to74HI35Kto50K","HH65to74HI50Kto75K","HH65to74HI75Kto100K","HH65to74HI>100K","HH>75HI<5K","HH>75HI5Kto10K","HH>75HI10Kto15K","HH>75HI15Kto25K","HH>75HI25Kto35K","HH>75HI35Kto50K","HH>75HI50Kto75K","HH>75HI75Kto100K","HH>75HI>100K","SchoolEnrollment1thru12","Pop25andOver","HSGradorHigher","CollGradorHigher","NativePop","ForeignBornPop","BornStateOfRes","NativePop2","ForeignBornPop2","DroveAlone","CarPooled","PublicTranspt","Walked","OtherMeans","WorkedAtHome","HHInc<10K","HHInc10to15K","HHInc15to25K","HHInc25to35K","HHInc35to50K","HHInc50to75K","HHInc75to100K","HHInc100to150K","HHInc>150K"]
[{"$f":"VLOOKUP(DropDownList!$A$47,CntyQuery!$A$4:$FI$46,A1)","v":"Rochester"},{"$f":"VLOOKUP(DropDownList!$A$47,CntyQuery!$A$4:$FA$46,B1)","v":17050},{"$f":"VLOOKUP(DropDownList!$A$47,CntyQuery!$A$4:$FA$46,C1)","v":"65140"},{"$f":"VLOOKUP(DropDownList!$A$47,CntyQuery!$A$4:$FA$46,D1)","v":28688.05},{"$f":"VLOOKUP(DropDownList!$A$47,CntyQuery!$A$4:$FA$46,E1)","v":392.49},{"$f":"VLOOKUP(DropDownList!$A$47,CntyQuery!$A$4:$FA$46,F1)","v":11076},{"$f":"VLOOKUP(DropDownList!$A$47,CntyQuery!$A$4:$FA$46,G1)","v":26630},{"$f":"VLOOKUP(DropDownList!$A$47,CntyQuery!$A$4:$FA$46,H1)","v":7332},{"$f":"VLOOKUP(DropDownList!$A$47,CntyQuery!$A$4:$FA$46,I1)","v":10221},{"$f":"VLOOKUP(DropDownList!$A$47,CntyQuery!$A$4:$FA$46,J1)","v":12931},{"$f":"VLOOKUP(DropDownList!$A$47,CntyQuery!$A$4:$FA$46,K1)","v":13699},{"$f":"VLOOKUP(DropDownList!$A$47,CntyQuery!$A$4:$FA$46,L1)","v":26291},{"$f":"VLOOKUP(DropDownList!$A$47,CntyQuery!$A$4:$FA$46,M1)","v":85},{"$f":"VLOOKUP(DropDownList!$A$47,CntyQuery!$A$4:$FA$46,N1)","v":54},{"$f":"VLOOKUP(DropDownList!$A$47,CntyQuery!$A$4:$FA$46,O1)","v":147},{"$f":"VLOOKUP(DropDownList!$A$47,CntyQuery!$A$4:$FA$46,P1)","v":53},{"$f":"VLOOKUP(DropDownList!$A$47,CntyQuery!$A$4:$FA$46,Q1)","v":192},{"$f":"VLOOKUP(DropDownList!$A$47,CntyQuery!$A$4:$FA$46,R1)","v":6067},{"$f":"VLOOKUP(DropDownList!$A$47,CntyQuery!$A$4:$FA$46,S1)","v":3386},{"$f":"VLOOKUP(DropDownList!$A$47,CntyQuery!$A$4:$FA$46,T1)","v":5151},{"$f":"VLOOKUP(DropDownList!$A$47,CntyQuery!$A$4:$FA$46,U1)","v":3862},{"$f":"VLOOKUP(DropDownList!$A$47,CntyQuery!$A$4:$FA$46,V1)","v":2510},{"$f":"VLOOKUP(DropDownList!$A$47,CntyQuery!$A$4:$FA$46,W1)","v":2258},{"$f":"VLOOKUP(DropDownList!$A$47,CntyQuery!$A$4:$FA$46,X1)","v":1886},{"$f":"VLOOKUP(DropDownList!$A$47,CntyQuery!$A$4:$FA$46,Y1)","v":1510},{"$f":"VLOOKUP(DropDownList!$A$47,CntyQuery!$A$4:$FA$46,Z1)","v":26327},{"$f":"VLOOKUP(DropDownList!$A$47,CntyQuery!$A$4:$FA$46,AA1)","v":22703},{"$f":"VLOOKUP(DropDownList!$A$47,CntyQuery!$A$4:$FA$46,AB1)","v":303},{"$f":"VLOOKUP(DropDownList!$A$47,CntyQuery!$A$4:$FA$46,AC1)","v":2.5757753644457488},{"$f":"VLOOKUP(DropDownList!$A$47,CntyQuery!$A$4:$FA$46,AD1)","v":3.0964266230223676},{"$f":"VLOOKUP(DropDownList!$A$47,CntyQuery!$A$4:$FA$46,AE1)","v":2304},{"$f":"VLOOKUP(DropDownList!$A$47,CntyQuery!$A$4:$FA$46,AF1)","v":5989},{"$f":"VLOOKUP(DropDownList!$A$47,CntyQuery!$A$4:$FA$46,AG1)","v":1343},{"$f":"VLOOKUP(DropDownList!$A$47,CntyQuery!$A$4:$FA$46,AH1)","v":585},{"$f":"VLOOKUP(DropDownList!$A$47,CntyQuery!$A$4:$FA$46,AI1)","v":11076},{"$f":"VLOOKUP(DropDownList!$A$47,CntyQuery!$A$4:$FA$46,AJ1)","v":10221},{"$f":"VLOOKUP(DropDownList!$A$47,CntyQuery!$A$4:$FA$46,AK1)","v":855},{"$f":"VLOOKUP(DropDownList!$A$47,CntyQuery!$A$4:$FA$46,AL1)","v":7051},{"$f":"VLOOKUP(DropDownList!$A$47,CntyQuery!$A$4:$FA$46,AM1)","v":3170},{"$f":"VLOOKUP(DropDownList!$A$47,CntyQuery!$A$4:$FA$46,AN1)","v":446},{"$f":"VLOOKUP(DropDownList!$A$47,CntyQuery!$A$4:$FA$46,AO1)","v":212},{"$f":"VLOOKUP(DropDownList!$A$47,CntyQuery!$A$4:$FA$46,AP1)","v":50},{"$f":"VLOOKUP(DropDownList!$A$47,CntyQuery!$A$4:$FA$46,AQ1)","v":5129},{"$f":"VLOOKUP(DropDownList!$A$47,CntyQuery!$A$4:$FA$46,AR1)","v":3796},{"$f":"VLOOKUP(DropDownList!$A$47,CntyQuery!$A$4:$FA$46,AS1)","v":2151},{"$f":"VLOOKUP(DropDownList!$A$47,CntyQuery!$A$4:$FA$46,AT1)","v":4588},{"$f":"VLOOKUP(DropDownList!$A$47,CntyQuery!$A$4:$FA$46,AU1)","v":626},{"$f":"VLOOKUP(DropDownList!$A$47,CntyQuery!$A$4:$FA$46,AV1)","v":2151},{"$f":"VLOOKUP(DropDownList!$A$47,CntyQuery!$A$4:$FA$46,AW1)","v":392},{"$f":"VLOOKUP(DropDownList!$A$47,CntyQuery!$A$4:$FA$46,AX1)","v":2646},{"$f":"VLOOKUP(DropDownList!$A$47,CntyQuery!$A$4:$FA$46,AY1)","v":132},{"$f":"VLOOKUP(DropDownList!$A$47,CntyQuery!$A$4:$FA$46,AZ1)","v":2013},{"$f":"VLOOKUP(DropDownList!$A$47,CntyQuery!$A$4:$FA$46,BA1)","v":3034},{"$f":"VLOOKUP(DropDownList!$A$47,CntyQuery!$A$4:$FA$46,BB1)","v":2699},{"$f":"VLOOKUP(DropDownList!$A$47,CntyQuery!$A$4:$FA$46,BC1)","v":3330},{"$f":"VLOOKUP(DropDownList!$A$47,CntyQuery!$A$4:$FA$46,BD1)","v":113},{"$f":"VLOOKUP(DropDownList!$A$47,CntyQuery!$A$4:$FA$46,BE1)","v":1452},{"$f":"VLOOKUP(DropDownList!$A$47,CntyQuery!$A$4:$FA$46,BF1)","v":4176},{"$f":"VLOOKUP(DropDownList!$A$47,CntyQuery!$A$4:$FA$46,BG1)","v":3867},{"$f":"VLOOKUP(DropDownList!$A$47,CntyQuery!$A$4:$FA$46,BH1)","v":1468},{"$f":"VLOOKUP(DropDownList!$A$47,CntyQuery!$A$4:$FA$46,BI1)","v":335},{"$f":"VLOOKUP(DropDownList!$A$47,CntyQuery!$A$4:$FA$46,BJ1)","v":786},{"$f":"VLOOKUP(DropDownList!$A$47,CntyQuery!$A$4:$FA$46,BK1)","v":879},{"$f":"VLOOKUP(DropDownList!$A$47,CntyQuery!$A$4:$FA$46,BL1)","v":1996},{"$f":"VLOOKUP(DropDownList!$A$47,CntyQuery!$A$4:$FA$46,BM1)","v":1883},{"$f":"VLOOKUP(DropDownList!$A$47,CntyQuery!$A$4:$FA$46,BN1)","v":2394},{"$f":"VLOOKUP(DropDownList!$A$47,CntyQuery!$A$4:$FA$46,BO1)","v":1525},{"$f":"VLOOKUP(DropDownList!$A$47,CntyQuery!$A$4:$FA$46,BP1)","v":276},{"$f":"VLOOKUP(DropDownList!$A$47,CntyQuery!$A$4:$FA$46,BQ1)","v":122},{"$f":"VLOOKUP(DropDownList!$A$47,CntyQuery!$A$4:$FA$46,BR1)","v":30807},{"$f":"VLOOKUP(DropDownList!$A$47,CntyQuery!$A$4:$FA$46,BS1)","v":26},{"$f":"VLOOKUP(DropDownList!$A$47,CntyQuery!$A$4:$FA$46,BT1)","v":62},{"$f":"VLOOKUP(DropDownList!$A$47,CntyQuery!$A$4:$FA$46,BU1)","v":50},{"$f":"VLOOKUP(DropDownList!$A$47,CntyQuery!$A$4:$FA$46,BV1)","v":225},{"$f":"VLOOKUP(DropDownList!$A$47,CntyQuery!$A$4:$FA$46,BW1)","v":102},{"$f":"VLOOKUP(DropDownList!$A$47,CntyQuery!$A$4:$FA$46,BX1)","v":169},{"$f":"VLOOKUP(DropDownList!$A$47,CntyQuery!$A$4:$FA$46,BY1)","v":29},{"$f":"VLOOKUP(DropDownList!$A$47,CntyQuery!$A$4:$FA$46,BZ1)","v":6},{"$f":"VLOOKUP(DropDownList!$A$47,CntyQuery!$A$4:$FA$46,CA1)","v":0},{"$f":"VLOOKUP(DropDownList!$A$47,CntyQuery!$A$4:$FA$46,CB1)","v":37},{"$f":"VLOOKUP(DropDownList!$A$47,CntyQuery!$A$4:$FA$46,CC1)","v":65},{"$f":"VLOOKUP(DropDownList!$A$47,CntyQuery!$A$4:$FA$46,CD1)","v":144},{"$f":"VLOOKUP(DropDownList!$A$47,CntyQuery!$A$4:$FA$46,CE1)","v":464},{"$f":"VLOOKUP(DropDownList!$A$47,CntyQuery!$A$4:$FA$46,CF1)","v":563},{"$f":"VLOOKUP(DropDownList!$A$47,CntyQuery!$A$4:$FA$46,CG1)","v":766},{"$f":"VLOOKUP(DropDownList!$A$47,CntyQuery!$A$4:$FA$46,CH1)","v":423},{"$f":"VLOOKUP(DropDownList!$A$47,CntyQuery!$A$4:$FA$46,CI1)","v":45},{"$f":"VLOOKUP(DropDownList!$A$47,CntyQuery!$A$4:$FA$46,CJ1)","v":14},{"$f":"VLOOKUP(DropDownList!$A$47,CntyQuery!$A$4:$FA$46,CK1)","v":42},{"$f":"VLOOKUP(DropDownList!$A$47,CntyQuery!$A$4:$FA$46,CL1)","v":53},{"$f":"VLOOKUP(DropDownList!$A$47,CntyQuery!$A$4:$FA$46,CM1)","v":90},{"$f":"VLOOKUP(DropDownList!$A$47,CntyQuery!$A$4:$FA$46,CN1)","v":352},{"$f":"VLOOKUP(DropDownList!$A$47,CntyQuery!$A$4:$FA$46,CO1)","v":375},{"$f":"VLOOKUP(DropDownList!$A$47,CntyQuery!$A$4:$FA$46,CP1)","v":735},{"$f":"VLOOKUP(DropDownList!$A$47,CntyQuery!$A$4:$FA$46,CQ1)","v":455},{"$f":"VLOOKUP(DropDownList!$A$47,CntyQuery!$A$4:$FA$46,CR1)","v":64},{"$f":"VLOOKUP(DropDownList!$A$47,CntyQuery!$A$4:$FA$46,CS1)","v":38},{"$f":"VLOOKUP(DropDownList!$A$47,CntyQuery!$A$4:$FA$46,CT1)","v":24},{"$f":"VLOOKUP(DropDownList!$A$47,CntyQuery!$A$4:$FA$46,CU1)","v":80},{"$f":"VLOOKUP(DropDownList!$A$47,CntyQuery!$A$4:$FA$46,CV1)","v":48},{"$f":"VLOOKUP(DropDownList!$A$47,CntyQuery!$A$4:$FA$46,CW1)","v":189},{"$f":"VLOOKUP(DropDownList!$A$47,CntyQuery!$A$4:$FA$46,CX1)","v":244},{"$f":"VLOOKUP(DropDownList!$A$47,CntyQuery!$A$4:$FA$46,CY1)","v":339},{"$f":"VLOOKUP(DropDownList!$A$47,CntyQuery!$A$4:$FA$46,CZ1)","v":335},{"$f":"VLOOKUP(DropDownList!$A$47,CntyQuery!$A$4:$FA$46,DA1)","v":102},{"$f":"VLOOKUP(DropDownList!$A$47,CntyQuery!$A$4:$FA$46,DB1)","v":48},{"$f":"VLOOKUP(DropDownList!$A$47,CntyQuery!$A$4:$FA$46,DC1)","v":51},{"$f":"VLOOKUP(DropDownList!$A$47,CntyQuery!$A$4:$FA$46,DD1)","v":71},{"$f":"VLOOKUP(DropDownList!$A$47,CntyQuery!$A$4:$FA$46,DE1)","v":166},{"$f":"VLOOKUP(DropDownList!$A$47,CntyQuery!$A$4:$FA$46,DF1)","v":257},{"$f":"VLOOKUP(DropDownList!$A$47,CntyQuery!$A$4:$FA$46,DG1)","v":232},{"$f":"VLOOKUP(DropDownList!$A$47,CntyQuery!$A$4:$FA$46,DH1)","v":224},{"$f":"VLOOKUP(DropDownList!$A$47,CntyQuery!$A$4:$FA$46,DI1)","v":215},{"$f":"VLOOKUP(DropDownList!$A$47,CntyQuery!$A$4:$FA$46,DJ1)","v":47},{"$f":"VLOOKUP(DropDownList!$A$47,CntyQuery!$A$4:$FA$46,DK1)","v":22},{"$f":"VLOOKUP(DropDownList!$A$47,CntyQuery!$A$4:$FA$46,DL1)","v":39},{"$f":"VLOOKUP(DropDownList!$A$47,CntyQuery!$A$4:$FA$46,DM1)","v":142},{"$f":"VLOOKUP(DropDownList!$A$47,CntyQuery!$A$4:$FA$46,DN1)","v":263},{"$f":"VLOOKUP(DropDownList!$A$47,CntyQuery!$A$4:$FA$46,DO1)","v":354},{"$f":"VLOOKUP(DropDownList!$A$47,CntyQuery!$A$4:$FA$46,DP1)","v":297},{"$f":"VLOOKUP(DropDownList!$A$47,CntyQuery!$A$4:$FA$46,DQ1)","v":95},{"$f":"VLOOKUP(DropDownList!$A$47,CntyQuery!$A$4:$FA$46,DR1)","v":39},{"$f":"VLOOKUP(DropDownList!$A$47,CntyQuery!$A$4:$FA$46,DS1)","v":12},{"$f":"VLOOKUP(DropDownList!$A$47,CntyQuery!$A$4:$FA$46,DT1)","v":0},{"$f":"VLOOKUP(DropDownList!$A$47,CntyQuery!$A$4:$FA$46,DU1)","v":116},{"$f":"VLOOKUP(DropDownList!$A$47,CntyQuery!$A$4:$FA$46,DV1)","v":313},{"$f":"VLOOKUP(DropDownList!$A$47,CntyQuery!$A$4:$FA$46,DW1)","v":118},{"$f":"VLOOKUP(DropDownList!$A$47,CntyQuery!$A$4:$FA$46,DX1)","v":155},{"$f":"VLOOKUP(DropDownList!$A$47,CntyQuery!$A$4:$FA$46,DY1)","v":70},{"$f":"VLOOKUP(DropDownList!$A$47,CntyQuery!$A$4:$FA$46,DZ1)","v":66},{"$f":"VLOOKUP(DropDownList!$A$47,CntyQuery!$A$4:$FA$46,EA1)","v":29},{"$f":"VLOOKUP(DropDownList!$A$47,CntyQuery!$A$4:$FA$46,EB1)","v":0},{"$f":"VLOOKUP(DropDownList!$A$47,CntyQuery!$A$4:$FA$46,EC1)","v":0},{"$f":"VLOOKUP(DropDownList!$A$47,CntyQuery!$A$4:$FA$46,ED1)","v":4209},{"$f":"VLOOKUP(DropDownList!$A$47,CntyQuery!$A$4:$FA$46,EE1)","v":17177},{"$f":"VLOOKUP(DropDownList!$A$47,CntyQuery!$A$4:$FA$46,EF1)","v":12889},{"$f":"VLOOKUP(DropDownList!$A$47,CntyQuery!$A$4:$FA$46,EG1)","v":2416},{"$f":"VLOOKUP(DropDownList!$A$47,CntyQuery!$A$4:$FA$46,EH1)","v":25961},{"$f":"VLOOKUP(DropDownList!$A$47,CntyQuery!$A$4:$FA$46,EI1)","v":669},{"$f":"VLOOKUP(DropDownList!$A$47,CntyQuery!$A$4:$FA$46,EJ1)","v":15347},{"$f":"VLOOKUP(DropDownList!$A$47,CntyQuery!$A$4:$FA$46,EK1)","v":25961},{"$f":"VLOOKUP(DropDownList!$A$47,CntyQuery!$A$4:$FA$46,EL1)","v":669},{"$f":"VLOOKUP(DropDownList!$A$47,CntyQuery!$A$4:$FA$46,EM1)","v":9749},{"$f":"VLOOKUP(DropDownList!$A$47,CntyQuery!$A$4:$FA$46,EN1)","v":2241},{"$f":"VLOOKUP(DropDownList!$A$47,CntyQuery!$A$4:$FA$46,EO1)","v":113},{"$f":"VLOOKUP(DropDownList!$A$47,CntyQuery!$A$4:$FA$46,EP1)","v":278},{"$f":"VLOOKUP(DropDownList!$A$47,CntyQuery!$A$4:$FA$46,EQ1)","v":164},{"$f":"VLOOKUP(DropDownList!$A$47,CntyQuery!$A$4:$FA$46,ER1)","v":298},{"$f":"VLOOKUP(DropDownList!$A$47,CntyQuery!$A$4:$FA$46,ES1)","v":1121},{"$f":"VLOOKUP(DropDownList!$A$47,CntyQuery!$A$4:$FA$46,ET1)","v":879},{"$f":"VLOOKUP(DropDownList!$A$47,CntyQuery!$A$4:$FA$46,EU1)","v":1996},{"$f":"VLOOKUP(DropDownList!$A$47,CntyQuery!$A$4:$FA$46,EV1)","v":1883},{"$f":"VLOOKUP(DropDownList!$A$47,CntyQuery!$A$4:$FA$46,EW1)","v":2394},{"$f":"VLOOKUP(DropDownList!$A$47,CntyQuery!$A$4:$FA$46,EX1)","v":1525},{"$f":"VLOOKUP(DropDownList!$A$47,CntyQuery!$A$4:$FA$46,EY1)","v":276},{"$f":"VLOOKUP(DropDownList!$A$47,CntyQuery!$A$4:$FA$46,EZ1)","v":68},{"$f":"VLOOKUP(DropDownList!$A$47,CntyQuery!$A$4:$FA$46,FA1)","v":54}]
[]
[]
["Census 1990 Data -    Query Name:  TownSTF1Qry1"]
["NAME","COUSUBFP","Census_Cnty_Code","FIPS","LandAcres","WaterAcres","HousingUnits90Cen","P01Persons90Cen","P02Families90Cen","P03Households90cen","P05MalePop90cen","P05FemalePop90cen","P06WhitePop","P06BlackPop","P06AmerIndianPop","P06AsianPIPop","P06OtherRacePop","P08HispanicOrPop","P11AgeUnder15_90cen","P11Age15to24_90cen","P11Age25to34_90cen","P11Age35to44_90cen","P11Age45to54_90cen","P11Age55to64_90cen","P11Age65to74_90cen","P11Age75andOver_90cen","P15PersonsInHH90cen","P15PersonsInFamHH90cen","P15PersonsInGC","PersonsPerHH90cen","PersonsPerFam90Cen","P16SinglePersonHH90cen","P16MarriedCoupleHH90cen","P16SingleParentHH90cen","P16NonFamilyHH90cen","H01TotalHousingUnits","H02OccupiedHousingUnits","H02VacantHousingUnits","H03OwnerOccHU","H03RenterOccHU","H05VacantForRent90","H05VacantForSale90","H05VacantSeasonalRec","H23OOHUVal<15k","H23OOHUVal15to19k","H23OOHUVal20to24k","H23OOHUVal25to29k","H23OOHUVal30to34k","H23OOHUVal35to39k","H23OOHUVal40to44k","H23OOHUVal45to49k","H23OOHUVal50to59k","H23OOHUVal60to74k","H23OOHUVal75to99k","H23OOHUVal100to124k","H23OOHUVal125to149k","H23OOHUVal150to174k","H23OOHUVal175to199k","H23OOHUVal200to249k","H23OOHUVal250to299k","H23OOHUVal300to399k","H23OOHUVal400to499k","H23OOHUVal500kOrMore","H23BOOHUMedVal","H41SingFamHU90cen","H41MultiFamHU90cen","H41MobileHom90cen","H43SingFamOwnHU90cen","H43MultiFamOwnHU90cen","H43MobileHomOwnHU90cen","H43SingFamRntrHU90cen","H43MultiFamRntrHU90cen","H43MobileHomRntrHU90cen","H41HU1UnitDet","H41HU1UnitAtt","H41HU2Unit","H41HU3to4Unit","H41HU5to9Unit","H41HU10to19Unit","H41HU20to49Unit","H41HU50PlusUnit","H41HUMobilH","H41HUOther"]
[{"$f":"VLOOKUP(DropDownList!$B$47,CntyQuery!$A$51:$CE$93,A$1)","v":"Rochester"},{"$f":"VLOOKUP(DropDownList!$B$47,CntyQuery!$A$51:$CE$93,B$1)","v":910},{"$f":"VLOOKUP(DropDownList!$B$47,CntyQuery!$A$51:$CE$93,C$1)","v":17050},{"$f":"VLOOKUP(DropDownList!$B$47,CntyQuery!$A$51:$CE$93,D$1)","v":"65140"},{"$f":"VLOOKUP(DropDownList!$B$47,CntyQuery!$A$51:$CE$93,E$1)","v":28688.05},{"$f":"VLOOKUP(DropDownList!$B$47,CntyQuery!$A$51:$CE$93,F$1)","v":392.49},{"$f":"VLOOKUP(DropDownList!$B$47,CntyQuery!$A$51:$CE$93,G$1)","v":11076},{"$f":"VLOOKUP(DropDownList!$B$47,CntyQuery!$A$51:$CE$93,H$1)","v":26630},{"$f":"VLOOKUP(DropDownList!$B$47,CntyQuery!$A$51:$CE$93,I$1)","v":7332},{"$f":"VLOOKUP(DropDownList!$B$47,CntyQuery!$A$51:$CE$93,J$1)","v":10221},{"$f":"VLOOKUP(DropDownList!$B$47,CntyQuery!$A$51:$CE$93,K$1)","v":12931},{"$f":"VLOOKUP(DropDownList!$B$47,CntyQuery!$A$51:$CE$93,L$1)","v":13699},{"$f":"VLOOKUP(DropDownList!$B$47,CntyQuery!$A$51:$CE$93,M$1)","v":26291},{"$f":"VLOOKUP(DropDownList!$B$47,CntyQuery!$A$51:$CE$93,N$1)","v":85},{"$f":"VLOOKUP(DropDownList!$B$47,CntyQuery!$A$51:$CE$93,O$1)","v":54},{"$f":"VLOOKUP(DropDownList!$B$47,CntyQuery!$A$51:$CE$93,P$1)","v":147},{"$f":"VLOOKUP(DropDownList!$B$47,CntyQuery!$A$51:$CE$93,Q$1)","v":53},{"$f":"VLOOKUP(DropDownList!$B$47,CntyQuery!$A$51:$CE$93,R$1)","v":192},{"$f":"VLOOKUP(DropDownList!$B$47,CntyQuery!$A$51:$CE$93,S$1)","v":6067},{"$f":"VLOOKUP(DropDownList!$B$47,CntyQuery!$A$51:$CE$93,T$1)","v":3386},{"$f":"VLOOKUP(DropDownList!$B$47,CntyQuery!$A$51:$CE$93,U$1)","v":5151},{"$f":"VLOOKUP(DropDownList!$B$47,CntyQuery!$A$51:$CE$93,V$1)","v":3862},{"$f":"VLOOKUP(DropDownList!$B$47,CntyQuery!$A$51:$CE$93,W$1)","v":2510},{"$f":"VLOOKUP(DropDownList!$B$47,CntyQuery!$A$51:$CE$93,X$1)","v":2258},{"$f":"VLOOKUP(DropDownList!$B$47,CntyQuery!$A$51:$CE$93,Y$1)","v":1886},{"$f":"VLOOKUP(DropDownList!$B$47,CntyQuery!$A$51:$CE$93,Z$1)","v":1510},{"$f":"VLOOKUP(DropDownList!$B$47,CntyQuery!$A$51:$CE$93,AA$1)","v":26327},{"$f":"VLOOKUP(DropDownList!$B$47,CntyQuery!$A$51:$CE$93,AB$1)","v":22703},{"$f":"VLOOKUP(DropDownList!$B$47,CntyQuery!$A$51:$CE$93,AC$1)","v":303},{"$f":"VLOOKUP(DropDownList!$B$47,CntyQuery!$A$51:$CE$93,AD$1)","v":2.5757753644457488},{"$f":"VLOOKUP(DropDownList!$B$47,CntyQuery!$A$51:$CE$93,AE$1)","v":3.0964266230223676},{"$f":"VLOOKUP(DropDownList!$B$47,CntyQuery!$A$51:$CE$93,AF$1)","v":2304},{"$f":"VLOOKUP(DropDownList!$B$47,CntyQuery!$A$51:$CE$93,AG$1)","v":5989},{"$f":"VLOOKUP(DropDownList!$B$47,CntyQuery!$A$51:$CE$93,AH$1)","v":1343},{"$f":"VLOOKUP(DropDownList!$B$47,CntyQuery!$A$51:$CE$93,AI$1)","v":585},{"$f":"VLOOKUP(DropDownList!$B$47,CntyQuery!$A$51:$CE$93,AJ$1)","v":11076},{"$f":"VLOOKUP(DropDownList!$B$47,CntyQuery!$A$51:$CE$93,AK$1)","v":10221},{"$f":"VLOOKUP(DropDownList!$B$47,CntyQuery!$A$51:$CE$93,AL$1)","v":855},{"$f":"VLOOKUP(DropDownList!$B$47,CntyQuery!$A$51:$CE$93,AM$1)","v":7051},{"$f":"VLOOKUP(DropDownList!$B$47,CntyQuery!$A$51:$CE$93,AN$1)","v":3170},{"$f":"VLOOKUP(DropDownList!$B$47,CntyQuery!$A$51:$CE$93,AO$1)","v":446},{"$f":"VLOOKUP(DropDownList!$B$47,CntyQuery!$A$51:$CE$93,AP$1)","v":212},{"$f":"VLOOKUP(DropDownList!$B$47,CntyQuery!$A$51:$CE$93,AQ$1)","v":50},{"$f":"VLOOKUP(DropDownList!$B$47,CntyQuery!$A$51:$CE$93,AR$1)","v":15},{"$f":"VLOOKUP(DropDownList!$B$47,CntyQuery!$A$51:$CE$93,AS$1)","v":6},{"$f":"VLOOKUP(DropDownList!$B$47,CntyQuery!$A$51:$CE$93,AT$1)","v":18},{"$f":"VLOOKUP(DropDownList!$B$47,CntyQuery!$A$51:$CE$93,AU$1)","v":10},{"$f":"VLOOKUP(DropDownList!$B$47,CntyQuery!$A$51:$CE$93,AV$1)","v":20},{"$f":"VLOOKUP(DropDownList!$B$47,CntyQuery!$A$51:$CE$93,AW$1)","v":35},{"$f":"VLOOKUP(DropDownList!$B$47,CntyQuery!$A$51:$CE$93,AX$1)","v":33},{"$f":"VLOOKUP(DropDownList!$B$47,CntyQuery!$A$51:$CE$93,AY$1)","v":31},{"$f":"VLOOKUP(DropDownList!$B$47,CntyQuery!$A$51:$CE$93,AZ$1)","v":78},{"$f":"VLOOKUP(DropDownList!$B$47,CntyQuery!$A$51:$CE$93,BA$1)","v":311},{"$f":"VLOOKUP(DropDownList!$B$47,CntyQuery!$A$51:$CE$93,BB$1)","v":1366},{"$f":"VLOOKUP(DropDownList!$B$47,CntyQuery!$A$51:$CE$93,BC$1)","v":1172},{"$f":"VLOOKUP(DropDownList!$B$47,CntyQuery!$A$51:$CE$93,BD$1)","v":720},{"$f":"VLOOKUP(DropDownList!$B$47,CntyQuery!$A$51:$CE$93,BE$1)","v":265},{"$f":"VLOOKUP(DropDownList!$B$47,CntyQuery!$A$51:$CE$93,BF$1)","v":102},{"$f":"VLOOKUP(DropDownList!$B$47,CntyQuery!$A$51:$CE$93,BG$1)","v":97},{"$f":"VLOOKUP(DropDownList!$B$47,CntyQuery!$A$51:$CE$93,BH$1)","v":34},{"$f":"VLOOKUP(DropDownList!$B$47,CntyQuery!$A$51:$CE$93,BI$1)","v":12},{"$f":"VLOOKUP(DropDownList!$B$47,CntyQuery!$A$51:$CE$93,BJ$1)","v":3},{"$f":"VLOOKUP(DropDownList!$B$47,CntyQuery!$A$51:$CE$93,BK$1)","v":4},{"$f":"VLOOKUP(DropDownList!$B$47,CntyQuery!$A$51:$CE$93,BL$1)","v":105200},{"$f":"VLOOKUP(DropDownList!$B$47,CntyQuery!$A$51:$CE$93,BM$1)","v":5129},{"$f":"VLOOKUP(DropDownList!$B$47,CntyQuery!$A$51:$CE$93,BN$1)","v":3796},{"$f":"VLOOKUP(DropDownList!$B$47,CntyQuery!$A$51:$CE$93,BO$1)","v":2151},{"$f":"VLOOKUP(DropDownList!$B$47,CntyQuery!$A$51:$CE$93,BP$1)","v":4588},{"$f":"VLOOKUP(DropDownList!$B$47,CntyQuery!$A$51:$CE$93,BQ$1)","v":626},{"$f":"VLOOKUP(DropDownList!$B$47,CntyQuery!$A$51:$CE$93,BR$1)","v":1837},{"$f":"VLOOKUP(DropDownList!$B$47,CntyQuery!$A$51:$CE$93,BS$1)","v":392},{"$f":"VLOOKUP(DropDownList!$B$47,CntyQuery!$A$51:$CE$93,BT$1)","v":2646},{"$f":"VLOOKUP(DropDownList!$B$47,CntyQuery!$A$51:$CE$93,BU$1)","v":132},{"$f":"VLOOKUP(DropDownList!$B$47,CntyQuery!$A$51:$CE$93,BV$1)","v":5129},{"$f":"VLOOKUP(DropDownList!$B$47,CntyQuery!$A$51:$CE$93,BW$1)","v":362},{"$f":"VLOOKUP(DropDownList!$B$47,CntyQuery!$A$51:$CE$93,BX$1)","v":942},{"$f":"VLOOKUP(DropDownList!$B$47,CntyQuery!$A$51:$CE$93,BY$1)","v":1151},{"$f":"VLOOKUP(DropDownList!$B$47,CntyQuery!$A$51:$CE$93,BZ$1)","v":696},{"$f":"VLOOKUP(DropDownList!$B$47,CntyQuery!$A$51:$CE$93,CA$1)","v":273},{"$f":"VLOOKUP(DropDownList!$B$47,CntyQuery!$A$51:$CE$93,CB$1)","v":218},{"$f":"VLOOKUP(DropDownList!$B$47,CntyQuery!$A$51:$CE$93,CC$1)","v":154},{"$f":"VLOOKUP(DropDownList!$B$47,CntyQuery!$A$51:$CE$93,CD$1)","v":2041},{"$f":"VLOOKUP(DropDownList!$B$47,CntyQuery!$A$51:$CE$93,CE$1)","v":110}]
[]
[]
["Census 1990 Data -          Query Name: TownSTF3Qry1"]
["NAME","FIPS","COUSUBFP","LandAcres","WaterAcres","HousingUnits90Cen","P01Persons90Cen","P02Families90Cen","P03Households90cen","H25HU<5yrs90cen","H25HU5to20yrs90cen","H25HU20to50yrs90cen","H25HU>50yrs90cen","H31Units0Bedroom90cen","H31Units1Bedroom90cen","H31Units2Bedroom90cen","H31Units3Bedroom90cen","H31Units4Bedroom90cen","H31Units5+Bedroom90cen","P80HI<5K","P80HI5Kto10K","P80HI10Kto15K","P80HI15Kto25K","P80HI25Kto35K","P80HI35Kto50K","P80HI50Kto75K","P80HI75Kto100K","P80HI>100K","P80AMedHI","P86HH<25HI<5K","P86HH<25HI5Kto10K","P86HH<25HI10Kto15K","P86HH<25HI15Kto25K","P86HH<25HI25Kto35K","P86HH<25HI35Kto50K","P86HH<25HI50Kto75K","P86HH<25HI75Kto100K","P86HH<25HI>100K","P86HH25to34HI<5K","P86HH25to34HI5Kto10K","P86HH25to34HI10Kto15K","P86HH25to34HI15Kto25K","P86HH25to34HI25Kto35K","P86HH25to34HI35Kto50K","P86HH25to34HI50Kto75K","P86HH25to34HI75Kto100K","P86HH25to34HI>100K","P86HH35to44HI<5K","P86HH35to44HI5Kto10K","P86HH35to44HI10Kto15K","P86HH35to44HI15Kto25K","P86HH35to44HI25Kto35K","P86HH35to44HI35Kto50K","P86HH35to44HI50Kto75K","P86HH35to44HI75Kto100K","P86HH35to44HI>100K","P86HH45to54HI<5K","P86HH45to54HI5Kto10K","P86HH45to54HI10Kto15K","P86HH45to54HI15Kto25K","P86HH45to54HI25Kto35K","P86HH45to54HI35Kto50K","P86HH45to54HI50Kto75K","P86HH45to54HI75Kto100K","P86HH45to54HI>100K","P86HH55to64HI<5K","P86HH55to64HI5Kto10K","P86HH55to64HI10Kto15K","P86HH55to64HI15Kto25K","P86HH55to64HI25Kto35K","P86HH55to64HI35Kto50K","P86HH55to64HI50Kto75K","P86HH55to64HI75Kto100K","P86HH55to64HI>100K","P86HH65to74HI<5K","P86HH65to74HI5Kto10K","P86HH65to74HI10Kto15K","P86HH65to74HI15Kto25K","P86HH65to74HI25Kto35K","P86HH65to74HI35Kto50K","P86HH65to74HI50Kto75K","P86HH65to74HI75Kto100K","P86HH65to74HI>100K","P86HH>75HI<5K","P86HH>75HI5Kto10K","P86HH>75HI10Kto15K","P86HH>75HI15Kto25K","P86HH>75HI25Kto35K","P86HH>75HI35Kto50K","P86HH>75HI50Kto75K","P86HH>75HI75Kto100K","P86HH>75HI>100K","P54SchlEnrlPrePrim","P54SchlEnrlElemThrHS","P54SchlEnrlCollege","P54NotEnrlInSch","P57Pop25andOver","P57LessThan9thGrade","P579thto12thNoDip","P57HSGrad","P57SomeCollege","P57AssocDeg","P57BachelDeg","P57GradorProfDeg","P57HSGradorHigher","P57CollGradorHigher","P42NativePop","P42ForeignBornPop","P42BornStateOfRes","P37NativePop2","P37ForeignBornPop2","P49DroveAlone","P49CarPooled","P49PublicTranspt","P49Walked","P49OtherMeans","P49WorkedAtHome","P80HHInc<10K","P80HHInc10to15K","P80HHInc15to25K","P80HHInc25to35K","P80HHInc35to50K","P80HHInc50to75K","P80HHInc75to100K","P80HHInc100to150K","P80HHInc>150K","H25YearStBlt89to90","H25YearStBlt85to88","H25YearStBlt80to84","H25YearStBlt70to79","H25YearStBlt60to69","H25YearStBlt50to59","H25YearStBlt40to49","H25YearStBlt39earlier","P107FamInc<10K","P107FamInc10to15K","P107FamInc15to25K","P107FamInc25to35K","P107FamInc35to50K","P107FamInc50to75K","P107FamInc75to100K","P107FamInc100to150K","P107FamInc>150K","P107AMedFamInc","P110NonFamInc<10K","P110NonFamInc10to15K","P110NonFamInc15to25K","P110NonFamInc25to35K","P110NonFamInc35to50K","P110NonFamInc50to75K","P110NonFamInc75to100K","P110NonFamInc100to150K","P110NonFamInc>150K","P110AMedNonFamInc","H16HU1Room","H16HU2Room","H16HU3Room","H16HU4Room","H16HU5Room","H16HU6Room","H16HU7Room","H16HU8Room","H16HU9+Room","H43GrossRnt<100","H43GrossRnt100to149","H43GrossRnt150to199","H43GrossRnt200to249","H43GrossRnt250to299","H43GrossRnt300to349","H43GrossRnt350to399","H43GrossRnt400to449","H43GrossRnt450to499","H43GrossRnt500to549","H43GrossRnt550to599","H43GrossRnt600to649","H43GrossRnt650to699","H43GrossRnt700to749","H43GrossRnt750to999","H43GrossRnt1000Plus","H43NoCashRent","H43MedGrossRent","H51GrossRnt<20PctHHInc","H51GrossRnt20to24PctHHInc","H51GrossRnt25to29PctHHInc","H51GrossRnt30to34PctHHInc","H51GrossRnt35PctOrMoreHHInc","H51GrossRntAsPctHHIncNotComp","H52HUwMtgMoOwnCst<200","H52HUwMtgMoOwnCst200to299","H52HUwMtgMoOwnCst300to399","H52HUwMtgMoOwnCst400to499","H52HUwMtgMoOwnCst500to599","H52HUwMtgMoOwnCst600to699","H52HUwMtgMoOwnCst700to799","H52HUwMtgMoOwnCst800to899","H52HUwMtgMoOwnCst900to999","H52HUwMtgMoOwnCst1000to1249","H52HUwMtgMoOwnCst1250to1499","H52HUwMtgMoOwnCst1500to1999","H52HUwMtgMoOwnCst2000More","H52HUwNoMtgMoOwnCst<100","H52HUwNoMtgMoOwnCst100to149","H52HUwNoMtgMoOwnCst150to199","H52HUwNoMtgMoOwnCst200to249","H52HUwNoMtgMoOwnCst250to299","H52HUwNoMtgMoOwnCst300to349","H52HUwNoMtgMoOwnCst350to399","H52HUwNoMtgMoOwnCst400More","H52AMedMoOwnCstWMortg","H52AMedMoOwnCstWNoMortg","H58HUwMtgMOC<20pHHInc","H58HUwMtgMOC20to24pHHInc","H58HUwMtgMOC25to29pHHInc","H58HUwMtgMOC30to34pHHInc","H58wMtgMOC>35pHHInc","H58HUwMtgMOCNotComp","H58HUwNoMtgMOC<20pHHInc","H58HUwNoMtgMOC20to24pHHInc","H58HUwNoMtgMOC25to29pHHInc","H58HUwNoMtgMOC30to34pHHInc","H58wNoMtgMOC>35pHHInc","H58HUwNoMtgMOCNotComp","H61OOHUVal<15k","H61OOHUVal15to19k","H61OOHUVal20to24k","H61OOHUVal25to29k","H61OOHUVal30to34k","H61OOHUVal35to39k","H61OOHUVal40to44k","H61OOHUVal45to49k","H61OOHUVal50to59k","H61OOHUVal60to74k","H61OOHUVal75to99k","H61OOHUVal100to124k","H61OOHUVal125to149k","H61OOHUVal150to174k","H61OOHUVal175to199k","H61OOHUVal200to249k","H61OOHUVal250to299k","H61OOHUVal300to399k","H61OOHUVal400to499k","H61OOHUVal500kOrMore","H61aOOHUMedVal"]
[]
[]
[]
["Other Demo Data -             Query Name: QryAllTowns-ACSDemographicSheet"]
["TOWN_NAME","FIPS","TOWNCNTY","COUSUB","POP80","POP90CDCEN","POP2000CEN","POP2010CEN","POP2020-Proj","POP2025-Proj","POP2030-Proj","SF80","MF80","MH80","SF81","MF81","MH81","SF82","MF82","MH82","SF83","MF83","MH83","SF84_OSP","MF84_OSP","MH84_OSP","SF85_OSP","MF85_OSP","MH85_OSP","SF86_OSP","MF86_OSP","MH86_OSP","SF87_OSP","MF87_OSP","MH87_OSP","SF88_OSP","MF88_OSP","MH88_OSP","SF89_OSP","MF89_OSP","MH89_OSP","SF90_OSP","MF90_OSP","MH90_OSP","SF91_OSP","MF91_OSP","MH91_OSP","SF92_OSP","MF92_OSP","MH92_OSP","SF93_OSP","MF93_OSP","MH93_OSP","SF94_OSP","MF94_OSP","MH94_OSP","SF95_OSP","MF95_OSP","MH95_OSP","SF96_OSP","MF96_OSP","MH96_OSP","SF97_OSP","MF97_OSP","MH97_OSP","SF98_OSP","MF98_OSP","MH98_OSP","SF99_OSP","MF99_OSP","MH99_OSP","SF00_OSP","MF00_OSP","MH00_OSP","SF01_OSP","MF01_OSP","MH01_OSP","SF02_OSP","MF02_OSP","MH02_OSP","SF03_OSP","MF03_OSP","MH03_OSP","SF04_OSP","MF04_OSP","MH04_OSP","SF05_OSP","MF05_OSP","MH05_OSP","SF06_OSP","MF06_OSP","MH06_OSP","SF07_OSP","MF07_OSP","MH07_OSP","SF08_OSP","MF08_OSP","MH08_OSP","SF09_OSP","MF09_OSP","MH09_OSP","SF10_OSP","MF10_OSP","MH10_OSP","SF11_OSP","MF11_OSP","MH11_OSP","SF12_OSP","MF12_OSP","MH12_OSP","SF13_OSP","MF13_OSP","MH13_OSP","SF14_OSP","MF14_OSP","MH14_OSP","SF15_OSP","MF15_OSP","MH15_OSP","SF16_OSP","MF16_OSP","MH16_OSP","SF17_OSP","MF17_OSP","MH17_OSP","SF18_OSP","MF18_OSP","MH18_OSP","COMMENTS"]
[{"$f":"VLOOKUP(DropDownList!$B$47,CntyQuery!$A$118:$FZ$130,A$1)","v":"Rochester"},{"$f":"VLOOKUP(DropDownList!$B$47,CntyQuery!$A$118:$FZ$130,B$1)","v":17050},{"$f":"VLOOKUP(DropDownList!$B$47,CntyQuery!$A$118:$FZ$130,C$1)","v":910},{"$f":"VLOOKUP(DropDownList!$B$47,CntyQuery!$A$118:$FZ$130,D$1)","v":"65140"},{"$f":"VLOOKUP(DropDownList!$B$47,CntyQuery!$A$118:$FZ$130,E$1)","v":21560},{"$f":"VLOOKUP(DropDownList!$B$47,CntyQuery!$A$118:$FZ$130,F$1)","v":26630},{"$f":"VLOOKUP(DropDownList!$B$47,CntyQuery!$A$118:$FZ$130,G$1)","v":28461},{"$f":"VLOOKUP(DropDownList!$B$47,CntyQuery!$A$118:$FZ$130,H$1)","v":29752},{"$f":"VLOOKUP(DropDownList!$B$47,CntyQuery!$A$118:$FZ$130,I$1)","v":32492},{"$f":"VLOOKUP(DropDownList!$B$47,CntyQuery!$A$118:$FZ$130,J$1)","v":33801},{"$f":"VLOOKUP(DropDownList!$B$47,CntyQuery!$A$118:$FZ$130,K$1)","v":34894},{"$f":"VLOOKUP(DropDownList!$B$47,CntyQuery!$A$118:$FZ$130,L$1)","v":35800},{"$f":"VLOOKUP(DropDownList!$B$47,CntyQuery!$A$118:$FZ$130,M$1)","v":46},{"$f":"VLOOKUP(DropDownList!$B$47,CntyQuery!$A$118:$FZ$130,N$1)","v":48},{"$f":"VLOOKUP(DropDownList!$B$47,CntyQuery!$A$118:$FZ$130,O$1)","v":11},{"$f":"VLOOKUP(DropDownList!$B$47,CntyQuery!$A$118:$FZ$130,P$1)","v":31},{"$f":"VLOOKUP(DropDownList!$B$47,CntyQuery!$A$118:$FZ$130,Q$1)","v":0},{"$f":"VLOOKUP(DropDownList!$B$47,CntyQuery!$A$118:$FZ$130,R$1)","v":6},{"$f":"VLOOKUP(DropDownList!$B$47,CntyQuery!$A$118:$FZ$130,S$1)","v":19},{"$f":"VLOOKUP(DropDownList!$B$47,CntyQuery!$A$118:$FZ$130,T$1)","v":10},{"$f":"VLOOKUP(DropDownList!$B$47,CntyQuery!$A$118:$FZ$130,U$1)","v":8},{"$f":"VLOOKUP(DropDownList!$B$47,CntyQuery!$A$118:$FZ$130,V$1)","v":42},{"$f":"VLOOKUP(DropDownList!$B$47,CntyQuery!$A$118:$FZ$130,W$1)","v":2},{"$f":"VLOOKUP(DropDownList!$B$47,CntyQuery!$A$118:$FZ$130,X$1)","v":38},{"$f":"VLOOKUP(DropDownList!$B$47,CntyQuery!$A$118:$FZ$130,Y$1)","v":111},{"$f":"VLOOKUP(DropDownList!$B$47,CntyQuery!$A$118:$FZ$130,Z$1)","v":27},{"$f":"VLOOKUP(DropDownList!$B$47,CntyQuery!$A$118:$FZ$130,AA$1)","v":52},{"$f":"VLOOKUP(DropDownList!$B$47,CntyQuery!$A$118:$FZ$130,AB$1)","v":159},{"$f":"VLOOKUP(DropDownList!$B$47,CntyQuery!$A$118:$FZ$130,AC$1)","v":73},{"$f":"VLOOKUP(DropDownList!$B$47,CntyQuery!$A$118:$FZ$130,AD$1)","v":132},{"$f":"VLOOKUP(DropDownList!$B$47,CntyQuery!$A$118:$FZ$130,AE$1)","v":321},{"$f":"VLOOKUP(DropDownList!$B$47,CntyQuery!$A$118:$FZ$130,AF$1)","v":334},{"$f":"VLOOKUP(DropDownList!$B$47,CntyQuery!$A$118:$FZ$130,AG$1)","v":250},{"$f":"VLOOKUP(DropDownList!$B$47,CntyQuery!$A$118:$FZ$130,AH$1)","v":335},{"$f":"VLOOKUP(DropDownList!$B$47,CntyQuery!$A$118:$FZ$130,AI$1)","v":117},{"$f":"VLOOKUP(DropDownList!$B$47,CntyQuery!$A$118:$FZ$130,AJ$1)","v":159},{"$f":"VLOOKUP(DropDownList!$B$47,CntyQuery!$A$118:$FZ$130,AK$1)","v":81},{"$f":"VLOOKUP(DropDownList!$B$47,CntyQuery!$A$118:$FZ$130,AL$1)","v":28},{"$f":"VLOOKUP(DropDownList!$B$47,CntyQuery!$A$118:$FZ$130,AM$1)","v":87},{"$f":"VLOOKUP(DropDownList!$B$47,CntyQuery!$A$118:$FZ$130,AN$1)","v":114},{"$f":"VLOOKUP(DropDownList!$B$47,CntyQuery!$A$118:$FZ$130,AO$1)","v":1},{"$f":"VLOOKUP(DropDownList!$B$47,CntyQuery!$A$118:$FZ$130,AP$1)","v":78},{"$f":"VLOOKUP(DropDownList!$B$47,CntyQuery!$A$118:$FZ$130,AQ$1)","v":54},{"$f":"VLOOKUP(DropDownList!$B$47,CntyQuery!$A$118:$FZ$130,AR$1)","v":0},{"$f":"VLOOKUP(DropDownList!$B$47,CntyQuery!$A$118:$FZ$130,AS$1)","v":30},{"$f":"VLOOKUP(DropDownList!$B$47,CntyQuery!$A$118:$FZ$130,AT$1)","v":36},{"$f":"VLOOKUP(DropDownList!$B$47,CntyQuery!$A$118:$FZ$130,AU$1)","v":-7},{"$f":"VLOOKUP(DropDownList!$B$47,CntyQuery!$A$118:$FZ$130,AV$1)","v":32},{"$f":"VLOOKUP(DropDownList!$B$47,CntyQuery!$A$118:$FZ$130,AW$1)","v":36},{"$f":"VLOOKUP(DropDownList!$B$47,CntyQuery!$A$118:$FZ$130,AX$1)","v":2},{"$f":"VLOOKUP(DropDownList!$B$47,CntyQuery!$A$118:$FZ$130,AY$1)","v":28},{"$f":"VLOOKUP(DropDownList!$B$47,CntyQuery!$A$118:$FZ$130,AZ$1)","v":19},{"$f":"VLOOKUP(DropDownList!$B$47,CntyQuery!$A$118:$FZ$130,BA$1)","v":-6},{"$f":"VLOOKUP(DropDownList!$B$47,CntyQuery!$A$118:$FZ$130,BB$1)","v":69},{"$f":"VLOOKUP(DropDownList!$B$47,CntyQuery!$A$118:$FZ$130,BC$1)","v":47},{"$f":"VLOOKUP(DropDownList!$B$47,CntyQuery!$A$118:$FZ$130,BD$1)","v":43},{"$f":"VLOOKUP(DropDownList!$B$47,CntyQuery!$A$118:$FZ$130,BE$1)","v":61},{"$f":"VLOOKUP(DropDownList!$B$47,CntyQuery!$A$118:$FZ$130,BF$1)","v":30},{"$f":"VLOOKUP(DropDownList!$B$47,CntyQuery!$A$118:$FZ$130,BG$1)","v":5},{"$f":"VLOOKUP(DropDownList!$B$47,CntyQuery!$A$118:$FZ$130,BH$1)","v":37},{"$f":"VLOOKUP(DropDownList!$B$47,CntyQuery!$A$118:$FZ$130,BI$1)","v":26},{"$f":"VLOOKUP(DropDownList!$B$47,CntyQuery!$A$118:$FZ$130,BJ$1)","v":0},{"$f":"VLOOKUP(DropDownList!$B$47,CntyQuery!$A$118:$FZ$130,BK$1)","v":62},{"$f":"VLOOKUP(DropDownList!$B$47,CntyQuery!$A$118:$FZ$130,BL$1)","v":30},{"$f":"VLOOKUP(DropDownList!$B$47,CntyQuery!$A$118:$FZ$130,BM$1)","v":0},{"$f":"VLOOKUP(DropDownList!$B$47,CntyQuery!$A$118:$FZ$130,BN$1)","v":56},{"$f":"VLOOKUP(DropDownList!$B$47,CntyQuery!$A$118:$FZ$130,BO$1)","v":50},{"$f":"VLOOKUP(DropDownList!$B$47,CntyQuery!$A$118:$FZ$130,BP$1)","v":63},{"$f":"VLOOKUP(DropDownList!$B$47,CntyQuery!$A$118:$FZ$130,BQ$1)","v":88},{"$f":"VLOOKUP(DropDownList!$B$47,CntyQuery!$A$118:$FZ$130,BR$1)","v":79},{"$f":"VLOOKUP(DropDownList!$B$47,CntyQuery!$A$118:$FZ$130,BS$1)","v":0},{"$f":"VLOOKUP(DropDownList!$B$47,CntyQuery!$A$118:$FZ$130,BT$1)","v":52},{"$f":"VLOOKUP(DropDownList!$B$47,CntyQuery!$A$118:$FZ$130,BU$1)","v":87},{"$f":"VLOOKUP(DropDownList!$B$47,CntyQuery!$A$118:$FZ$130,BV$1)","v":16},{"$f":"VLOOKUP(DropDownList!$B$47,CntyQuery!$A$118:$FZ$130,BW$1)","v":40},{"$f":"VLOOKUP(DropDownList!$B$47,CntyQuery!$A$118:$FZ$130,BX$1)","v":62},{"$f":"VLOOKUP(DropDownList!$B$47,CntyQuery!$A$118:$FZ$130,BY$1)","v":-3},{"$f":"VLOOKUP(DropDownList!$B$47,CntyQuery!$A$118:$FZ$130,BZ$1)","v":71},{"$f":"VLOOKUP(DropDownList!$B$47,CntyQuery!$A$118:$FZ$130,CA$1)","v":108},{"$f":"VLOOKUP(DropDownList!$B$47,CntyQuery!$A$118:$FZ$130,CB$1)","v":7},{"$f":"VLOOKUP(DropDownList!$B$47,CntyQuery!$A$118:$FZ$130,CC$1)","v":88},{"$f":"VLOOKUP(DropDownList!$B$47,CntyQuery!$A$118:$FZ$130,CD$1)","v":86},{"$f":"VLOOKUP(DropDownList!$B$47,CntyQuery!$A$118:$FZ$130,CE$1)","v":193},{"$f":"VLOOKUP(DropDownList!$B$47,CntyQuery!$A$118:$FZ$130,CF$1)","v":61},{"$f":"VLOOKUP(DropDownList!$B$47,CntyQuery!$A$118:$FZ$130,CG$1)","v":158},{"$f":"VLOOKUP(DropDownList!$B$47,CntyQuery!$A$118:$FZ$130,CH$1)","v":90},{"$f":"VLOOKUP(DropDownList!$B$47,CntyQuery!$A$118:$FZ$130,CI$1)","v":44},{"$f":"VLOOKUP(DropDownList!$B$47,CntyQuery!$A$118:$FZ$130,CJ$1)","v":92},{"$f":"VLOOKUP(DropDownList!$B$47,CntyQuery!$A$118:$FZ$130,CK$1)","v":26},{"$f":"VLOOKUP(DropDownList!$B$47,CntyQuery!$A$118:$FZ$130,CL$1)","v":26},{"$f":"VLOOKUP(DropDownList!$B$47,CntyQuery!$A$118:$FZ$130,CM$1)","v":66},{"$f":"VLOOKUP(DropDownList!$B$47,CntyQuery!$A$118:$FZ$130,CN$1)","v":145},{"$f":"VLOOKUP(DropDownList!$B$47,CntyQuery!$A$118:$FZ$130,CO$1)","v":11},{"$f":"VLOOKUP(DropDownList!$B$47,CntyQuery!$A$118:$FZ$130,CP$1)","v":69},{"$f":"VLOOKUP(DropDownList!$B$47,CntyQuery!$A$118:$FZ$130,CQ$1)","v":4},{"$f":"VLOOKUP(DropDownList!$B$47,CntyQuery!$A$118:$FZ$130,CR$1)","v":0},{"$f":"VLOOKUP(DropDownList!$B$47,CntyQuery!$A$118:$FZ$130,CS$1)","v":63},{"$f":"VLOOKUP(DropDownList!$B$47,CntyQuery!$A$118:$FZ$130,CT$1)","v":0},{"$f":"VLOOKUP(DropDownList!$B$47,CntyQuery!$A$118:$FZ$130,CU$1)","v":18},{"$f":"VLOOKUP(DropDownList!$B$47,CntyQuery!$A$118:$FZ$130,CV$1)","v":15},{"$f":"VLOOKUP(DropDownList!$B$47,CntyQuery!$A$118:$FZ$130,CW$1)","v":30},{"$f":"VLOOKUP(DropDownList!$B$47,CntyQuery!$A$118:$FZ$130,CX$1)","v":1},{"$f":"VLOOKUP(DropDownList!$B$47,CntyQuery!$A$118:$FZ$130,CY$1)","v":20},{"$f":"VLOOKUP(DropDownList!$B$47,CntyQuery!$A$118:$FZ$130,CZ$1)","v":31},{"$f":"VLOOKUP(DropDownList!$B$47,CntyQuery!$A$118:$FZ$130,DA$1)","v":5},{"$f":"VLOOKUP(DropDownList!$B$47,CntyQuery!$A$118:$FZ$130,DB$1)","v":20},{"$f":"VLOOKUP(DropDownList!$B$47,CntyQuery!$A$118:$FZ$130,DC$1)","v":0},{"$f":"VLOOKUP(DropDownList!$B$47,CntyQuery!$A$118:$FZ$130,DD$1)","v":0},{"$f":"VLOOKUP(DropDownList!$B$47,CntyQuery!$A$118:$FZ$130,DE$1)","v":39},{"$f":"VLOOKUP(DropDownList!$B$47,CntyQuery!$A$118:$FZ$130,DF$1)","v":0},{"$f":"VLOOKUP(DropDownList!$B$47,CntyQuery!$A$118:$FZ$130,DG$1)","v":36},{"$f":"VLOOKUP(DropDownList!$B$47,CntyQuery!$A$118:$FZ$130,DH$1)","v":0},{"$f":"VLOOKUP(DropDownList!$B$47,CntyQuery!$A$118:$FZ$130,DI$1)","v":0},{"$f":"VLOOKUP(DropDownList!$B$47,CntyQuery!$A$118:$FZ$130,DJ$1)","v":3},{"$f":"VLOOKUP(DropDownList!$B$47,CntyQuery!$A$118:$FZ$130,DK$1)","v":27},{"$f":"VLOOKUP(DropDownList!$B$47,CntyQuery!$A$118:$FZ$130,DL$1)","v":24},{"$f":"VLOOKUP(DropDownList!$B$47,CntyQuery!$A$118:$FZ$130,DM$1)","v":7},{"$f":"VLOOKUP(DropDownList!$B$47,CntyQuery!$A$118:$FZ$130,DN$1)","v":45},{"$f":"VLOOKUP(DropDownList!$B$47,CntyQuery!$A$118:$FZ$130,DO$1)","v":51},{"$f":"VLOOKUP(DropDownList!$B$47,CntyQuery!$A$118:$FZ$130,DP$1)","v":0},{"$f":"VLOOKUP(DropDownList!$B$47,CntyQuery!$A$118:$FZ$130,DQ$1)","v":7},{"$f":"VLOOKUP(DropDownList!$B$47,CntyQuery!$A$118:$FZ$130,DR$1)","v":71},{"$f":"VLOOKUP(DropDownList!$B$47,CntyQuery!$A$118:$FZ$130,DS$1)","v":10},{"$f":"VLOOKUP(DropDownList!$B$47,CntyQuery!$A$118:$FZ$130,DT$1)","v":71},{"$f":"VLOOKUP(DropDownList!$B$47,CntyQuery!$A$118:$FZ$130,DU$1)","v":113},{"$f":"VLOOKUP(DropDownList!$B$47,CntyQuery!$A$118:$FZ$130,DV$1)","v":28},{"$f":"VLOOKUP(DropDownList!$B$47,CntyQuery!$A$118:$FZ$130,DW$1)","v":61},{"$f":"VLOOKUP(DropDownList!$B$47,CntyQuery!$A$118:$FZ$130,DX$1)","v":58},{"$f":"VLOOKUP(DropDownList!$B$47,CntyQuery!$A$118:$FZ$130,DY$1)","v":24}]
[]
[]
[]
["AreaName","COUNTYCODE","TOTP & G2001","TOT2001","GOODPRO2001","SERVICEPROMAN2001","WAGEP & G2001","WAGETOT2001","WAGEGOODPRO2001","WAGESERVICEPRO2001","TOTP & G2002","TOT2002","GOODPRO2002","SERVICEPROMAN2002","WAGEP & G2002","WAGETOT2002","WAGEGOODPRO2002","WAGESERVICEPRO2002","TOTP & G2003","TOT2003","GOODPRO2003","SERVICEPROMAN2003","WAGEP & G2003","WAGETOT2003","WAGEGOODPRO2003","WAGESERVICEPRO2003","TOTP & G2004","TOT2004","GOODPRO2004","SERVICEPROMAN2004","WAGEP & G2004","WAGETOT2004","WAGEGOODPRO2004","WAGESERVICEPRO2004","TOTP & G2005","TOT2005","GOODPRO2005","SERVICEPROMAN2005","WAGEP & G2005","WAGETOT2005","WAGEGOODPRO2005","WAGESERVICEPRO2005","TOTP & G2006","TOT2006","GOODPRO2006","SERVICEPROMAN2006","WAGEP & G2006","WAGETOT2006","WAGEGOODPRO2006","WAGESERVICEPRO2006","TOTP & G2007","TOT2007","GOODPRO2007","SERVICEPROMAN2007","WAGEP & G2007","WAGETOT2007","WAGEGOODPRO2007","WAGESERVICEPRO2007","TOTP & G2008","TOT2008","GOODPRO2008","SERVICEPROMAN2008","WAGEP & G2008","WAGETOT2008","WAGEGOODPRO2008","WAGESERVICEPRO2008","TOTP & G2009","TOT2009","GOODPRO2009","SERVICEPROMAN2009","WAGEP & G2009","WAGETOT2009","WAGEGOODPRO2009","WAGESERVICEPRO2009","TOTP & G2010","TOT2010","GOODPRO2010","SERVICEPROMAN2010","WAGEP & G2010","WAGETOT2010","WAGEGOODPRO2010","WAGESERVICEPRO2010","TOTP & G2011","TOT2011","GOODPRO2011","SERVICEPROMAN2011","WAGEP & G2011","WAGETOT2011","WAGEGOODPRO2011","WAGESERVICEPRO2011","TOTP & G2012","TOT2012","GOODPRO2012","SERVICEPROMAN2012","WAGEP & G2012","WAGETOT2012","WAGEGOODPRO2012","WAGESERVICEPRO2012","TOTP & G2013","TOT2013","GOODPRO2013","SERVICEPROMAN2013","WAGEP & G2013","WAGETOT2013","WAGEGOODPRO2013","WAGESERVICEPRO2013","TOTP & G2014","TOT2014","GOODPRO2014","SERVICEPROMAN2014","WAGEP & G2014","WAGETOT2014","WAGEGOODPRO2014","WAGESERVICEPRO2014","TOTP & G2015","TOT2015","GOODPRO2015","SERVICEPROMAN2015","WAGEP & G2015","WAGETOT2015","WAGEGOODPRO2015","WAGESERVICEPRO2015","TOTP & G2016","TOT2016","GOODPRO2016","SERVICEPROMAN2016","WAGEP & G2016","WAGETOT2016","WAGEGOODPRO2016","WAGESERVICEPRO2016","TOTP & G2017","TOT2017","GOODPRO2017","SERVICEPROMAN2017","WAGEP & G2017","WAGETOT2017","WAGEGOODPRO2017","WAGESERVICEPRO2017","TOTP & G2018","TOT2018","GOODPRO2018","SERVICEPROMAN2018","WAGEP & G2018","WAGETOT2018","WAGEGOODPRO2018","WAGESERVICEPRO2018","TOTP & G2019","TOT2019","TOTGov2019","GOODPRO2019","SERVICEPROMAN2019","WAGEP & G2019","WAGETOT2019","WAGEGov2019","WAGEGOODPRO2019","WAGESERVICEPRO2019","SummaryLevel"]
[{"$f":"VLOOKUP(DropDownList!$B$47,CntyQuery!$A$170:$FT$183,A$1)","v":"Rochester"},{"$f":"VLOOKUP(DropDownList!$B$47,CntyQuery!$A$170:$FT$183,B$1)","v":9},"v",{"$f":"VLOOKUP(DropDownList!$B$47,CntyQuery!$A$170:$FT$183,D$1)","v":10711},{"$f":"VLOOKUP(DropDownList!$B$47,CntyQuery!$A$170:$FT$183,E$1)","v":2575},{"$f":"VLOOKUP(DropDownList!$B$47,CntyQuery!$A$170:$FT$183,F$1)","v":8136},{"$f":"VLOOKUP(DropDownList!$B$47,CntyQuery!$A$170:$FT$183,G$1)","v":715.39},{"$f":"VLOOKUP(DropDownList!$B$47,CntyQuery!$A$170:$FT$183,H$1)","v":729.43},{"$f":"VLOOKUP(DropDownList!$B$47,CntyQuery!$A$170:$FT$183,I$1)","v":795.69},{"$f":"VLOOKUP(DropDownList!$B$47,CntyQuery!$A$170:$FT$183,J$1)","v":708.46},{"$f":"VLOOKUP(DropDownList!$B$47,CntyQuery!$A$170:$FT$183,K$1)","v":11143},{"$f":"VLOOKUP(DropDownList!$B$47,CntyQuery!$A$170:$FT$183,L$1)","v":9848},{"$f":"VLOOKUP(DropDownList!$B$47,CntyQuery!$A$170:$FT$183,M$1)","v":1791},{"$f":"VLOOKUP(DropDownList!$B$47,CntyQuery!$A$170:$FT$183,N$1)","v":8057},{"$f":"VLOOKUP(DropDownList!$B$47,CntyQuery!$A$170:$FT$183,O$1)","v":649.78},{"$f":"VLOOKUP(DropDownList!$B$47,CntyQuery!$A$170:$FT$183,P$1)","v":660.08},{"$f":"VLOOKUP(DropDownList!$B$47,CntyQuery!$A$170:$FT$183,Q$1)","v":817.04},{"$f":"VLOOKUP(DropDownList!$B$47,CntyQuery!$A$170:$FT$183,R$1)","v":625.17999999999995},{"$f":"VLOOKUP(DropDownList!$B$47,CntyQuery!$A$170:$FT$183,S$1)","v":11059},{"$f":"VLOOKUP(DropDownList!$B$47,CntyQuery!$A$170:$FT$183,T$1)","v":9763},{"$f":"VLOOKUP(DropDownList!$B$47,CntyQuery!$A$170:$FT$183,U$1)","v":1708},{"$f":"VLOOKUP(DropDownList!$B$47,CntyQuery!$A$170:$FT$183,V$1)","v":8055},{"$f":"VLOOKUP(DropDownList!$B$47,CntyQuery!$A$170:$FT$183,W$1)","v":642.30999999999995},{"$f":"VLOOKUP(DropDownList!$B$47,CntyQuery!$A$170:$FT$183,X$1)","v":647.39},{"$f":"VLOOKUP(DropDownList!$B$47,CntyQuery!$A$170:$FT$183,Y$1)","v":773.1},{"$f":"VLOOKUP(DropDownList!$B$47,CntyQuery!$A$170:$FT$183,Z$1)","v":620.74},{"$f":"VLOOKUP(DropDownList!$B$47,CntyQuery!$A$170:$FT$183,AA$1)","v":10935},{"$f":"VLOOKUP(DropDownList!$B$47,CntyQuery!$A$170:$FT$183,AB$1)","v":9664},{"$f":"VLOOKUP(DropDownList!$B$47,CntyQuery!$A$170:$FT$183,AC$1)","v":1666},{"$f":"VLOOKUP(DropDownList!$B$47,CntyQuery!$A$170:$FT$183,AD$1)","v":7998},{"$f":"VLOOKUP(DropDownList!$B$47,CntyQuery!$A$170:$FT$183,AE$1)","v":641.45000000000005},{"$f":"VLOOKUP(DropDownList!$B$47,CntyQuery!$A$170:$FT$183,AF$1)","v":641.09},{"$f":"VLOOKUP(DropDownList!$B$47,CntyQuery!$A$170:$FT$183,AG$1)","v":768.85},{"$f":"VLOOKUP(DropDownList!$B$47,CntyQuery!$A$170:$FT$183,AH$1)","v":614.47},{"$f":"VLOOKUP(DropDownList!$B$47,CntyQuery!$A$170:$FT$183,AI$1)","v":10944},{"$f":"VLOOKUP(DropDownList!$B$47,CntyQuery!$A$170:$FT$183,AJ$1)","v":9654},{"$f":"VLOOKUP(DropDownList!$B$47,CntyQuery!$A$170:$FT$183,AK$1)","v":1713},{"$f":"VLOOKUP(DropDownList!$B$47,CntyQuery!$A$170:$FT$183,AL$1)","v":7941},{"$f":"VLOOKUP(DropDownList!$B$47,CntyQuery!$A$170:$FT$183,AM$1)","v":644.64},{"$f":"VLOOKUP(DropDownList!$B$47,CntyQuery!$A$170:$FT$183,AN$1)","v":644.05999999999995},{"$f":"VLOOKUP(DropDownList!$B$47,CntyQuery!$A$170:$FT$183,AO$1)","v":764.91},{"$f":"VLOOKUP(DropDownList!$B$47,CntyQuery!$A$170:$FT$183,AP$1)","v":618},{"$f":"VLOOKUP(DropDownList!$B$47,CntyQuery!$A$170:$FT$183,AQ$1)","v":11250},{"$f":"VLOOKUP(DropDownList!$B$47,CntyQuery!$A$170:$FT$183,AR$1)","v":9937},{"$f":"VLOOKUP(DropDownList!$B$47,CntyQuery!$A$170:$FT$183,AS$1)","v":1790},{"$f":"VLOOKUP(DropDownList!$B$47,CntyQuery!$A$170:$FT$183,AT$1)","v":8147},{"$f":"VLOOKUP(DropDownList!$B$47,CntyQuery!$A$170:$FT$183,AU$1)","v":650.77},{"$f":"VLOOKUP(DropDownList!$B$47,CntyQuery!$A$170:$FT$183,AV$1)","v":648.54999999999995},{"$f":"VLOOKUP(DropDownList!$B$47,CntyQuery!$A$170:$FT$183,AW$1)","v":818},{"$f":"VLOOKUP(DropDownList!$B$47,CntyQuery!$A$170:$FT$183,AX$1)","v":611.32000000000005},{"$f":"VLOOKUP(DropDownList!$B$47,CntyQuery!$A$170:$FT$183,AY$1)","v":11702},{"$f":"VLOOKUP(DropDownList!$B$47,CntyQuery!$A$170:$FT$183,AZ$1)","v":10330},{"$f":"VLOOKUP(DropDownList!$B$47,CntyQuery!$A$170:$FT$183,BA$1)","v":1853},{"$f":"VLOOKUP(DropDownList!$B$47,CntyQuery!$A$170:$FT$183,BB$1)","v":8476},{"$f":"VLOOKUP(DropDownList!$B$47,CntyQuery!$A$170:$FT$183,BC$1)","v":670.68},{"$f":"VLOOKUP(DropDownList!$B$47,CntyQuery!$A$170:$FT$183,BD$1)","v":667.45},{"$f":"VLOOKUP(DropDownList!$B$47,CntyQuery!$A$170:$FT$183,BE$1)","v":846.88},{"$f":"VLOOKUP(DropDownList!$B$47,CntyQuery!$A$170:$FT$183,BF$1)","v":628.21},{"$f":"VLOOKUP(DropDownList!$B$47,CntyQuery!$A$170:$FT$183,BG$1)","v":11760},{"$f":"VLOOKUP(DropDownList!$B$47,CntyQuery!$A$170:$FT$183,BH$1)","v":10354},{"$f":"VLOOKUP(DropDownList!$B$47,CntyQuery!$A$170:$FT$183,BI$1)","v":1844},{"$f":"VLOOKUP(DropDownList!$B$47,CntyQuery!$A$170:$FT$183,BJ$1)","v":8511},{"$f":"VLOOKUP(DropDownList!$B$47,CntyQuery!$A$170:$FT$183,BK$1)","v":690.71},{"$f":"VLOOKUP(DropDownList!$B$47,CntyQuery!$A$170:$FT$183,BL$1)","v":688.41},{"$f":"VLOOKUP(DropDownList!$B$47,CntyQuery!$A$170:$FT$183,BM$1)","v":856},{"$f":"VLOOKUP(DropDownList!$B$47,CntyQuery!$A$170:$FT$183,BN$1)","v":652.11},{"$f":"VLOOKUP(DropDownList!$B$47,CntyQuery!$A$170:$FT$183,BO$1)","v":11201},{"$f":"VLOOKUP(DropDownList!$B$47,CntyQuery!$A$170:$FT$183,BP$1)","v":9784},{"$f":"VLOOKUP(DropDownList!$B$47,CntyQuery!$A$170:$FT$183,BQ$1)","v":1613},{"$f":"VLOOKUP(DropDownList!$B$47,CntyQuery!$A$170:$FT$183,BR$1)","v":8171},{"$f":"VLOOKUP(DropDownList!$B$47,CntyQuery!$A$170:$FT$183,BS$1)","v":686},{"$f":"VLOOKUP(DropDownList!$B$47,CntyQuery!$A$170:$FT$183,BT$1)","v":680.33},{"$f":"VLOOKUP(DropDownList!$B$47,CntyQuery!$A$170:$FT$183,BU$1)","v":907.22},{"$f":"VLOOKUP(DropDownList!$B$47,CntyQuery!$A$170:$FT$183,BV$1)","v":635.54},{"$f":"VLOOKUP(DropDownList!$B$47,CntyQuery!$A$170:$FT$183,BW$1)","v":11079},{"$f":"VLOOKUP(DropDownList!$B$47,CntyQuery!$A$170:$FT$183,BX$1)","v":9599},{"$f":"VLOOKUP(DropDownList!$B$47,CntyQuery!$A$170:$FT$183,BY$1)","v":1671},{"$f":"VLOOKUP(DropDownList!$B$47,CntyQuery!$A$170:$FT$183,BZ$1)","v":7928},{"$f":"VLOOKUP(DropDownList!$B$47,CntyQuery!$A$170:$FT$183,CA$1)","v":706.57},{"$f":"VLOOKUP(DropDownList!$B$47,CntyQuery!$A$170:$FT$183,CB$1)","v":705.31},{"$f":"VLOOKUP(DropDownList!$B$47,CntyQuery!$A$170:$FT$183,CC$1)","v":977.22},{"$f":"VLOOKUP(DropDownList!$B$47,CntyQuery!$A$170:$FT$183,CD$1)","v":647.99},{"$f":"VLOOKUP(DropDownList!$B$47,CntyQuery!$A$170:$FT$183,CE$1)","v":10780},{"$f":"VLOOKUP(DropDownList!$B$47,CntyQuery!$A$170:$FT$183,CF$1)","v":9364},{"$f":"VLOOKUP(DropDownList!$B$47,CntyQuery!$A$170:$FT$183,CG$1)","v":1614},{"$f":"VLOOKUP(DropDownList!$B$47,CntyQuery!$A$170:$FT$183,CH$1)","v":7750},{"$f":"VLOOKUP(DropDownList!$B$47,CntyQuery!$A$170:$FT$183,CI$1)","v":734.07},{"$f":"VLOOKUP(DropDownList!$B$47,CntyQuery!$A$170:$FT$183,CJ$1)","v":733.64},{"$f":"VLOOKUP(DropDownList!$B$47,CntyQuery!$A$170:$FT$183,CK$1)","v":1062.29},{"$f":"VLOOKUP(DropDownList!$B$47,CntyQuery!$A$170:$FT$183,CL$1)","v":665.17},{"$f":"VLOOKUP(DropDownList!$B$47,CntyQuery!$A$170:$FT$183,CM$1)","v":10732},{"$f":"VLOOKUP(DropDownList!$B$47,CntyQuery!$A$170:$FT$183,CN$1)","v":9318},{"$f":"VLOOKUP(DropDownList!$B$47,CntyQuery!$A$170:$FT$183,CO$1)","v":1559},{"$f":"VLOOKUP(DropDownList!$B$47,CntyQuery!$A$170:$FT$183,CP$1)","v":7760},{"$f":"VLOOKUP(DropDownList!$B$47,CntyQuery!$A$170:$FT$183,CQ$1)","v":750.73},{"$f":"VLOOKUP(DropDownList!$B$47,CntyQuery!$A$170:$FT$183,CR$1)","v":752.87},{"$f":"VLOOKUP(DropDownList!$B$47,CntyQuery!$A$170:$FT$183,CS$1)","v":1163.8599999999999},{"$f":"VLOOKUP(DropDownList!$B$47,CntyQuery!$A$170:$FT$183,CT$1)","v":670.33},{"$f":"VLOOKUP(DropDownList!$B$47,CntyQuery!$A$170:$FT$183,CU$1)","v":11035},{"$f":"VLOOKUP(DropDownList!$B$47,CntyQuery!$A$170:$FT$183,CV$1)","v":9644},{"$f":"VLOOKUP(DropDownList!$B$47,CntyQuery!$A$170:$FT$183,CW$1)","v":1759},{"$f":"VLOOKUP(DropDownList!$B$47,CntyQuery!$A$170:$FT$183,CX$1)","v":7885},{"$f":"VLOOKUP(DropDownList!$B$47,CntyQuery!$A$170:$FT$183,CY$1)","v":767.61},{"$f":"VLOOKUP(DropDownList!$B$47,CntyQuery!$A$170:$FT$183,CZ$1)","v":766.34},{"$f":"VLOOKUP(DropDownList!$B$47,CntyQuery!$A$170:$FT$183,DA$1)","v":1198.75},{"$f":"VLOOKUP(DropDownList!$B$47,CntyQuery!$A$170:$FT$183,DB$1)","v":669.88},{"$f":"VLOOKUP(DropDownList!$B$47,CntyQuery!$A$170:$FT$183,DC$1)","v":11249},{"$f":"VLOOKUP(DropDownList!$B$47,CntyQuery!$A$170:$FT$183,DD$1)","v":9811},{"$f":"VLOOKUP(DropDownList!$B$47,CntyQuery!$A$170:$FT$183,DE$1)","v":1897},{"$f":"VLOOKUP(DropDownList!$B$47,CntyQuery!$A$170:$FT$183,DF$1)","v":7914},{"$f":"VLOOKUP(DropDownList!$B$47,CntyQuery!$A$170:$FT$183,DG$1)","v":791.7},{"$f":"VLOOKUP(DropDownList!$B$47,CntyQuery!$A$170:$FT$183,DH$1)","v":794.8},{"$f":"VLOOKUP(DropDownList!$B$47,CntyQuery!$A$170:$FT$183,DI$1)","v":1206.82},{"$f":"VLOOKUP(DropDownList!$B$47,CntyQuery!$A$170:$FT$183,DJ$1)","v":696.03},{"$f":"VLOOKUP(DropDownList!$B$47,CntyQuery!$A$170:$FT$183,DK$1)","v":11523},{"$f":"VLOOKUP(DropDownList!$B$47,CntyQuery!$A$170:$FT$183,DL$1)","v":10100},{"$f":"VLOOKUP(DropDownList!$B$47,CntyQuery!$A$170:$FT$183,DM$1)","v":1939},{"$f":"VLOOKUP(DropDownList!$B$47,CntyQuery!$A$170:$FT$183,DN$1)","v":8161},{"$f":"VLOOKUP(DropDownList!$B$47,CntyQuery!$A$170:$FT$183,DO$1)","v":843.18},{"$f":"VLOOKUP(DropDownList!$B$47,CntyQuery!$A$170:$FT$183,DP$1)","v":849.52},{"$f":"VLOOKUP(DropDownList!$B$47,CntyQuery!$A$170:$FT$183,DQ$1)","v":1305.07},{"$f":"VLOOKUP(DropDownList!$B$47,CntyQuery!$A$170:$FT$183,DR$1)","v":741.27},{"$f":"VLOOKUP(DropDownList!$B$47,CntyQuery!$A$170:$FT$183,DS$1)","v":11928},{"$f":"VLOOKUP(DropDownList!$B$47,CntyQuery!$A$170:$FT$183,DT$1)","v":10514},{"$f":"VLOOKUP(DropDownList!$B$47,CntyQuery!$A$170:$FT$183,DU$1)","v":2072},{"$f":"VLOOKUP(DropDownList!$B$47,CntyQuery!$A$170:$FT$183,DV$1)","v":8442},{"$f":"VLOOKUP(DropDownList!$B$47,CntyQuery!$A$170:$FT$183,DW$1)","v":845.47},{"$f":"VLOOKUP(DropDownList!$B$47,CntyQuery!$A$170:$FT$183,DX$1)","v":851.07},{"$f":"VLOOKUP(DropDownList!$B$47,CntyQuery!$A$170:$FT$183,DY$1)","v":1296.42},{"$f":"VLOOKUP(DropDownList!$B$47,CntyQuery!$A$170:$FT$183,DZ$1)","v":741.78},{"$f":"VLOOKUP(DropDownList!$B$47,CntyQuery!$A$170:$FT$183,EA$1)","v":12108},{"$f":"VLOOKUP(DropDownList!$B$47,CntyQuery!$A$170:$FT$183,EB$1)","v":10693},{"$f":"VLOOKUP(DropDownList!$B$47,CntyQuery!$A$170:$FT$183,EC$1)","v":2170},{"$f":"VLOOKUP(DropDownList!$B$47,CntyQuery!$A$170:$FT$183,ED$1)","v":8522},{"$f":"VLOOKUP(DropDownList!$B$47,CntyQuery!$A$170:$FT$183,EE$1)","v":877.87},{"$f":"VLOOKUP(DropDownList!$B$47,CntyQuery!$A$170:$FT$183,EF$1)","v":884.76},{"$f":"VLOOKUP(DropDownList!$B$47,CntyQuery!$A$170:$FT$183,EG$1)","v":1388.36},{"$f":"VLOOKUP(DropDownList!$B$47,CntyQuery!$A$170:$FT$183,EH$1)","v":756.52},{"$f":"VLOOKUP(DropDownList!$B$47,CntyQuery!$A$170:$FT$183,EI$1)","v":12359},{"$f":"VLOOKUP(DropDownList!$B$47,CntyQuery!$A$170:$FT$183,EJ$1)","v":10941},{"$f":"VLOOKUP(DropDownList!$B$47,CntyQuery!$A$170:$FT$183,EK$1)","v":2260},{"$f":"VLOOKUP(DropDownList!$B$47,CntyQuery!$A$170:$FT$183,EL$1)","v":8681},{"$f":"VLOOKUP(DropDownList!$B$47,CntyQuery!$A$170:$FT$183,EM$1)","v":889.69},{"$f":"VLOOKUP(DropDownList!$B$47,CntyQuery!$A$170:$FT$183,EN$1)","v":895.48},{"$f":"VLOOKUP(DropDownList!$B$47,CntyQuery!$A$170:$FT$183,EO$1)","v":1302.67},{"$f":"VLOOKUP(DropDownList!$B$47,CntyQuery!$A$170:$FT$183,EP$1)","v":789.49},{"$f":"VLOOKUP(DropDownList!$B$47,CntyQuery!$A$170:$FT$183,EQ$1)","v":12483},{"$f":"VLOOKUP(DropDownList!$B$47,CntyQuery!$A$170:$FT$183,ER$1)","v":11067},{"$f":"VLOOKUP(DropDownList!$B$47,CntyQuery!$A$170:$FT$183,ES$1)","v":1415},{"$f":"VLOOKUP(DropDownList!$B$47,CntyQuery!$A$170:$FT$183,ET$1)","v":2370},{"$f":"VLOOKUP(DropDownList!$B$47,CntyQuery!$A$170:$FT$183,EU$1)","v":8697},{"$f":"VLOOKUP(DropDownList!$B$47,CntyQuery!$A$170:$FT$183,EV$1)","v":901.03},{"$f":"VLOOKUP(DropDownList!$B$47,CntyQuery!$A$170:$FT$183,EW$1)","v":906.17},{"$f":"VLOOKUP(DropDownList!$B$47,CntyQuery!$A$170:$FT$183,EX$1)","v":860.8},{"$f":"VLOOKUP(DropDownList!$B$47,CntyQuery!$A$170:$FT$183,EY$1)","v":1307.21},{"$f":"VLOOKUP(DropDownList!$B$47,CntyQuery!$A$170:$FT$183,EZ$1)","v":796.89},{"$f":"VLOOKUP(DropDownList!$B$47,CntyQuery!$A$170:$FT$183,FA$1)","v":11425}]
[]
[]
["Labor Force and Unemployment Rate","Query Name: DPQryUnempByCnty"]
["PlaceName","LaborForce1990","LaborForce1991","LaborForce1992","LaborForce1993","LaborForce1994","LaborForce1995","LaborForce1996","LaborForce1997","LaborForce1998","LaborForce1999","LaborForce2000","LaborForce2001","LaborForce2002","LaborForce2003","NumbEmployed1990","NumbEmployed1991","NumbEmployed1992","NumbEmployed1993","NumbEmployed1994","NumbEmployed1995","NumbEmployed1996","NumbEmployed1997","NumbEmployed1998","NumbEmployed1999","NumbEmployed2000","NumbEmployed2001","NumbEmployed2002","NumbEmployed2003","UnempRate1990","UnempRate1991","UnempRate1992","UnempRate1993","UnempRate1994","UnempRate1995","UnempRate1996","UnempRate1997","UnempRate1998","UnempRate1999","UnempRate2000","UnempRate2001","UnempRate2002","UnempRate2003","NumbUnEmp1990","NumbUnEmp1991","NumbUnEmp1992","NumbUnEmp1993","NumbUnEmp1994","NumbUnEmp1995","NumbUnEmp1996","NumbUnEmp1997","NumbUnEmp1998","NumbUnEmp1999","NumbUnEmp2000","NumbUnEmp2001","NumbUnEmp2002","NumbUnEmp2003","LaborForce2004","NumbEmployed2004","UnempRate2004","NumbUnEmp2004","LaborForce2005","NumbEmployed2005","NumbUnEmp2005","UnempRate2005","LaborForce2006","NumbEmployed2006","NumbUnEmp2006","UnempRate2006","LaborForce2007","NumbEmployed2007","NumbUnEmp2007","UnempRate2007","LaborForce2008","NumbEmployed2008","NumbUnEmp2008","UnempRate2008","LaborForce2009","NumbEmployed2009","NumbUnEmp2009","UnempRate2009","LaborForce2010","NumbEmployed2010","NumbUnEmp2010","UnempRate2010","LaborForce2011","NumbEmployed2011","NumbUnEmp2011","UnempRate2011","LaborForce2012","NumbEmployed2012","NumbUnEmp2012","UnempRate2012","LaborForce2013","NumbEmployed2013","NumbUnEmp2013","UnempRate2013","LaborForce2014","NumbEmployed2014","NumbUnEmp2014","UnempRate2014","LaborForce2015","NumbEmployed2015","NumbUnEmp2015","UnempRate2015","LaborForce2016","NumbEmployed2016","NumbUnEmp2016","UnempRate2016","LaborForce2017","NumbEmployed2017","NumbUnEmp2017","UnempRate2017","LaborForce2018","NumbEmployed2018","NumbUnEmp2018","UnempRate2018","LaborForce2019","NumbEmployed2019","NumbUnEmp2019","UnempRate2019","Place-TownIDNumber"]
[{"$f":"VLOOKUP(DropDownList!$B$47,CntyQuery!$A$220:$EF$229,A$1)","v":"Rochester"},{"$f":"VLOOKUP(DropDownList!$B$47,CntyQuery!$A$220:$EF$229,B$1)","v":14242},{"$f":"VLOOKUP(DropDownList!$B$47,CntyQuery!$A$220:$EF$229,C$1)","v":14280},{"$f":"VLOOKUP(DropDownList!$B$47,CntyQuery!$A$220:$EF$229,D$1)","v":14153},{"$f":"VLOOKUP(DropDownList!$B$47,CntyQuery!$A$220:$EF$229,E$1)","v":14123},{"$f":"VLOOKUP(DropDownList!$B$47,CntyQuery!$A$220:$EF$229,F$1)","v":13917},{"$f":"VLOOKUP(DropDownList!$B$47,CntyQuery!$A$220:$EF$229,G$1)","v":14056},{"$f":"VLOOKUP(DropDownList!$B$47,CntyQuery!$A$220:$EF$229,H$1)","v":14172},{"$f":"VLOOKUP(DropDownList!$B$47,CntyQuery!$A$220:$EF$229,I$1)","v":14407},{"$f":"VLOOKUP(DropDownList!$B$47,CntyQuery!$A$220:$EF$229,J$1)","v":14297},{"$f":"VLOOKUP(DropDownList!$B$47,CntyQuery!$A$220:$EF$229,K$1)","v":14288},{"$f":"VLOOKUP(DropDownList!$B$47,CntyQuery!$A$220:$EF$229,L$1)","v":15280},{"$f":"VLOOKUP(DropDownList!$B$47,CntyQuery!$A$220:$EF$229,M$1)","v":15450},{"$f":"VLOOKUP(DropDownList!$B$47,CntyQuery!$A$220:$EF$229,N$1)","v":15670},{"$f":"VLOOKUP(DropDownList!$B$47,CntyQuery!$A$220:$EF$229,O$1)","v":15900},{"$f":"VLOOKUP(DropDownList!$B$47,CntyQuery!$A$220:$EF$229,P$1)","v":13158},{"$f":"VLOOKUP(DropDownList!$B$47,CntyQuery!$A$220:$EF$229,Q$1)","v":12952},{"$f":"VLOOKUP(DropDownList!$B$47,CntyQuery!$A$220:$EF$229,R$1)","v":12771},{"$f":"VLOOKUP(DropDownList!$B$47,CntyQuery!$A$220:$EF$229,S$1)","v":13032},{"$f":"VLOOKUP(DropDownList!$B$47,CntyQuery!$A$220:$EF$229,T$1)","v":13177},{"$f":"VLOOKUP(DropDownList!$B$47,CntyQuery!$A$220:$EF$229,U$1)","v":13387},{"$f":"VLOOKUP(DropDownList!$B$47,CntyQuery!$A$220:$EF$229,V$1)","v":13529},{"$f":"VLOOKUP(DropDownList!$B$47,CntyQuery!$A$220:$EF$229,W$1)","v":13825},{"$f":"VLOOKUP(DropDownList!$B$47,CntyQuery!$A$220:$EF$229,X$1)","v":13799},{"$f":"VLOOKUP(DropDownList!$B$47,CntyQuery!$A$220:$EF$229,Y$1)","v":13892},{"$f":"VLOOKUP(DropDownList!$B$47,CntyQuery!$A$220:$EF$229,Z$1)","v":14820},{"$f":"VLOOKUP(DropDownList!$B$47,CntyQuery!$A$220:$EF$229,AA$1)","v":14880},{"$f":"VLOOKUP(DropDownList!$B$47,CntyQuery!$A$220:$EF$229,AB$1)","v":14870},{"$f":"VLOOKUP(DropDownList!$B$47,CntyQuery!$A$220:$EF$229,AC$1)","v":15210},{"$f":"VLOOKUP(DropDownList!$B$47,CntyQuery!$A$220:$EF$229,AD$1)","v":7.6000000000000005},{"$f":"VLOOKUP(DropDownList!$B$47,CntyQuery!$A$220:$EF$229,AE$1)","v":9.3000000000000007},{"$f":"VLOOKUP(DropDownList!$B$47,CntyQuery!$A$220:$EF$229,AF$1)","v":9.8000000000000007},{"$f":"VLOOKUP(DropDownList!$B$47,CntyQuery!$A$220:$EF$229,AG$1)","v":7.7},{"$f":"VLOOKUP(DropDownList!$B$47,CntyQuery!$A$220:$EF$229,AH$1)","v":5.3},{"$f":"VLOOKUP(DropDownList!$B$47,CntyQuery!$A$220:$EF$229,AI$1)","v":4.8},{"$f":"VLOOKUP(DropDownList!$B$47,CntyQuery!$A$220:$EF$229,AJ$1)","v":4.5},{"$f":"VLOOKUP(DropDownList!$B$47,CntyQuery!$A$220:$EF$229,AK$1)","v":4},{"$f":"VLOOKUP(DropDownList!$B$47,CntyQuery!$A$220:$EF$229,AL$1)","v":3.5},{"$f":"VLOOKUP(DropDownList!$B$47,CntyQuery!$A$220:$EF$229,AM$1)","v":2.8000000000000003},{"$f":"VLOOKUP(DropDownList!$B$47,CntyQuery!$A$220:$EF$229,AN$1)","v":3},{"$f":"VLOOKUP(DropDownList!$B$47,CntyQuery!$A$220:$EF$229,AO$1)","v":3.7000000000000006},{"$f":"VLOOKUP(DropDownList!$B$47,CntyQuery!$A$220:$EF$229,AP$1)","v":5.0999999999999996},{"$f":"VLOOKUP(DropDownList!$B$47,CntyQuery!$A$220:$EF$229,AQ$1)","v":4.3},{"$f":"VLOOKUP(DropDownList!$B$47,CntyQuery!$A$220:$EF$229,AR$1)","v":1084},{"$f":"VLOOKUP(DropDownList!$B$47,CntyQuery!$A$220:$EF$229,AS$1)","v":1328},{"$f":"VLOOKUP(DropDownList!$B$47,CntyQuery!$A$220:$EF$229,AT$1)","v":1382},{"$f":"VLOOKUP(DropDownList!$B$47,CntyQuery!$A$220:$EF$229,AU$1)","v":1091},{"$f":"VLOOKUP(DropDownList!$B$47,CntyQuery!$A$220:$EF$229,AV$1)","v":740},{"$f":"VLOOKUP(DropDownList!$B$47,CntyQuery!$A$220:$EF$229,AW$1)","v":669},{"$f":"VLOOKUP(DropDownList!$B$47,CntyQuery!$A$220:$EF$229,AX$1)","v":643},{"$f":"VLOOKUP(DropDownList!$B$47,CntyQuery!$A$220:$EF$229,AY$1)","v":582},{"$f":"VLOOKUP(DropDownList!$B$47,CntyQuery!$A$220:$EF$229,AZ$1)","v":498},{"$f":"VLOOKUP(DropDownList!$B$47,CntyQuery!$A$220:$EF$229,BA$1)","v":396},{"$f":"VLOOKUP(DropDownList!$B$47,CntyQuery!$A$220:$EF$229,BB$1)","v":460},{"$f":"VLOOKUP(DropDownList!$B$47,CntyQuery!$A$220:$EF$229,BC$1)","v":570},{"$f":"VLOOKUP(DropDownList!$B$47,CntyQuery!$A$220:$EF$229,BD$1)","v":800},{"$f":"VLOOKUP(DropDownList!$B$47,CntyQuery!$A$220:$EF$229,BE$1)","v":690},{"$f":"VLOOKUP(DropDownList!$B$47,CntyQuery!$A$220:$EF$229,BF$1)","v":16150},{"$f":"VLOOKUP(DropDownList!$B$47,CntyQuery!$A$220:$EF$229,BG$1)","v":15550},{"$f":"VLOOKUP(DropDownList!$B$47,CntyQuery!$A$220:$EF$229,BH$1)","v":3.7000000000000006},{"$f":"VLOOKUP(DropDownList!$B$47,CntyQuery!$A$220:$EF$229,BI$1)","v":600},{"$f":"VLOOKUP(DropDownList!$B$47,CntyQuery!$A$220:$EF$229,BJ$1)","v":16360},{"$f":"VLOOKUP(DropDownList!$B$47,CntyQuery!$A$220:$EF$229,BK$1)","v":15740},{"$f":"VLOOKUP(DropDownList!$B$47,CntyQuery!$A$220:$EF$229,BL$1)","v":620},{"$f":"VLOOKUP(DropDownList!$B$47,CntyQuery!$A$220:$EF$229,BM$1)","v":3.8},{"$f":"VLOOKUP(DropDownList!$B$47,CntyQuery!$A$220:$EF$229,BN$1)","v":16340},{"$f":"VLOOKUP(DropDownList!$B$47,CntyQuery!$A$220:$EF$229,BO$1)","v":15790},{"$f":"VLOOKUP(DropDownList!$B$47,CntyQuery!$A$220:$EF$229,BP$1)","v":550},{"$f":"VLOOKUP(DropDownList!$B$47,CntyQuery!$A$220:$EF$229,BQ$1)","v":3.3000000000000003},{"$f":"VLOOKUP(DropDownList!$B$47,CntyQuery!$A$220:$EF$229,BR$1)","v":16700},{"$f":"VLOOKUP(DropDownList!$B$47,CntyQuery!$A$220:$EF$229,BS$1)","v":16100},{"$f":"VLOOKUP(DropDownList!$B$47,CntyQuery!$A$220:$EF$229,BT$1)","v":600},{"$f":"VLOOKUP(DropDownList!$B$47,CntyQuery!$A$220:$EF$229,BU$1)","v":3.6000000000000005},{"$f":"VLOOKUP(DropDownList!$B$47,CntyQuery!$A$220:$EF$229,BV$1)","v":17120},{"$f":"VLOOKUP(DropDownList!$B$47,CntyQuery!$A$220:$EF$229,BW$1)","v":16410},{"$f":"VLOOKUP(DropDownList!$B$47,CntyQuery!$A$220:$EF$229,BX$1)","v":710},{"$f":"VLOOKUP(DropDownList!$B$47,CntyQuery!$A$220:$EF$229,BY$1)","v":4.0999999999999996},{"$f":"VLOOKUP(DropDownList!$B$47,CntyQuery!$A$220:$EF$229,BZ$1)","v":17210},{"$f":"VLOOKUP(DropDownList!$B$47,CntyQuery!$A$220:$EF$229,CA$1)","v":15950},{"$f":"VLOOKUP(DropDownList!$B$47,CntyQuery!$A$220:$EF$229,CB$1)","v":1260},{"$f":"VLOOKUP(DropDownList!$B$47,CntyQuery!$A$220:$EF$229,CC$1)","v":7.3},{"$f":"VLOOKUP(DropDownList!$B$47,CntyQuery!$A$220:$EF$229,CD$1)","v":16940},{"$f":"VLOOKUP(DropDownList!$B$47,CntyQuery!$A$220:$EF$229,CE$1)","v":15815},{"$f":"VLOOKUP(DropDownList!$B$47,CntyQuery!$A$220:$EF$229,CF$1)","v":1125},{"$f":"VLOOKUP(DropDownList!$B$47,CntyQuery!$A$220:$EF$229,CG$1)","v":6.6000000000000005},{"$f":"VLOOKUP(DropDownList!$B$47,CntyQuery!$A$220:$EF$229,CH$1)","v":16868},{"$f":"VLOOKUP(DropDownList!$B$47,CntyQuery!$A$220:$EF$229,CI$1)","v":15894},{"$f":"VLOOKUP(DropDownList!$B$47,CntyQuery!$A$220:$EF$229,CJ$1)","v":974},{"$f":"VLOOKUP(DropDownList!$B$47,CntyQuery!$A$220:$EF$229,CK$1)","v":5.8},{"$f":"VLOOKUP(DropDownList!$B$47,CntyQuery!$A$220:$EF$229,CL$1)","v":16840},{"$f":"VLOOKUP(DropDownList!$B$47,CntyQuery!$A$220:$EF$229,CM$1)","v":15863},{"$f":"VLOOKUP(DropDownList!$B$47,CntyQuery!$A$220:$EF$229,CN$1)","v":977},{"$f":"VLOOKUP(DropDownList!$B$47,CntyQuery!$A$220:$EF$229,CO$1)","v":5.8},{"$f":"VLOOKUP(DropDownList!$B$47,CntyQuery!$A$220:$EF$229,CP$1)","v":16849},{"$f":"VLOOKUP(DropDownList!$B$47,CntyQuery!$A$220:$EF$229,CQ$1)","v":15932},{"$f":"VLOOKUP(DropDownList!$B$47,CntyQuery!$A$220:$EF$229,CR$1)","v":917},{"$f":"VLOOKUP(DropDownList!$B$47,CntyQuery!$A$220:$EF$229,CS$1)","v":5.4},{"$f":"VLOOKUP(DropDownList!$B$47,CntyQuery!$A$220:$EF$229,CT$1)","v":16923},{"$f":"VLOOKUP(DropDownList!$B$47,CntyQuery!$A$220:$EF$229,CU$1)","v":16214},{"$f":"VLOOKUP(DropDownList!$B$47,CntyQuery!$A$220:$EF$229,CV$1)","v":709},{"$f":"VLOOKUP(DropDownList!$B$47,CntyQuery!$A$220:$EF$229,CW$1)","v":4.2},{"$f":"VLOOKUP(DropDownList!$B$47,CntyQuery!$A$220:$EF$229,CX$1)","v":16914},{"$f":"VLOOKUP(DropDownList!$B$47,CntyQuery!$A$220:$EF$229,CY$1)","v":16360},{"$f":"VLOOKUP(DropDownList!$B$47,CntyQuery!$A$220:$EF$229,CZ$1)","v":554},{"$f":"VLOOKUP(DropDownList!$B$47,CntyQuery!$A$220:$EF$229,DA$1)","v":3.3000000000000003},{"$f":"VLOOKUP(DropDownList!$B$47,CntyQuery!$A$220:$EF$229,DB$1)","v":17257},{"$f":"VLOOKUP(DropDownList!$B$47,CntyQuery!$A$220:$EF$229,DC$1)","v":16818},{"$f":"VLOOKUP(DropDownList!$B$47,CntyQuery!$A$220:$EF$229,DD$1)","v":439},{"$f":"VLOOKUP(DropDownList!$B$47,CntyQuery!$A$220:$EF$229,DE$1)","v":2.5},{"$f":"VLOOKUP(DropDownList!$B$47,CntyQuery!$A$220:$EF$229,DF$1)","v":17433},{"$f":"VLOOKUP(DropDownList!$B$47,CntyQuery!$A$220:$EF$229,DG$1)","v":17005},{"$f":"VLOOKUP(DropDownList!$B$47,CntyQuery!$A$220:$EF$229,DH$1)","v":428},{"$f":"VLOOKUP(DropDownList!$B$47,CntyQuery!$A$220:$EF$229,DI$1)","v":2.5},{"$f":"VLOOKUP(DropDownList!$B$47,CntyQuery!$A$220:$EF$229,DJ$1)","v":17920},{"$f":"VLOOKUP(DropDownList!$B$47,CntyQuery!$A$220:$EF$229,DK$1)","v":17480},{"$f":"VLOOKUP(DropDownList!$B$47,CntyQuery!$A$220:$EF$229,DL$1)","v":440},{"$f":"VLOOKUP(DropDownList!$B$47,CntyQuery!$A$220:$EF$229,DM$1)","v":2.4},{"$f":"VLOOKUP(DropDownList!$B$47,CntyQuery!$A$220:$EF$229,DN$1)","v":18140},{"$f":"VLOOKUP(DropDownList!$B$47,CntyQuery!$A$220:$EF$229,DO$1)","v":17700},{"$f":"VLOOKUP(DropDownList!$B$47,CntyQuery!$A$220:$EF$229,DP$1)","v":440},{"$f":"VLOOKUP(DropDownList!$B$47,CntyQuery!$A$220:$EF$229,DQ$1)","v":2.4},{"$f":"VLOOKUP(DropDownList!$B$47,CntyQuery!$A$220:$EF$229,DR$1)","v":17760}]
[]
[null,null,null,null,null,null,null,null,null,null,null,null,{"$f":"IF((CntyDataLink!$BL$25)=\"n\",NA(),IF(VALUE(CntyDataLink!$BL$25)=\"\",NA(),VALUE(CntyDataLink!$BL$25)))","v":688.41}]
["Census 2000   -           Query Name:  TownAllQuery3",2,{"$f":"B33+1","v":3},{"$f":"C33+1","v":4},5,6,7,8,9,10,11,12,13,14,15,16,17,18,19,20,21,22,23,24,25,26,27,28,29,30,31,32,33,34,35,36,37,38,39,40,41,42,43,44,45,46,47,48,49,50,51,52,53,54,55,56,57,58,59,60,61,62,63,64,65,66,67,{"$f":"BO33+1","v":68},69,70,71,72,73,74,75,76,77,78,79,80,81,82,83,84,85,86,87,88,89,90,91,92,93,94,95,96,97,98,99,100,101,102]
["NAME","COUNTY","LOGRECNO","COUSUB","TRACT","AREALAND","AREAWATR","POP100","HU100","2000Population","PopOfOneRace","PopWhite","PopBlack","PopAmIndian","PopAsian","PopHawaiian","PopOtherRace","Pop2orMoreRaces","PopHispanicLatino","PopNotHispanicLatino","PopMale","PopMale<15","PopMale15to24","PopMale25to34","PopMale35to44","PopMale45to54","PopMale55to64","PopMale65to74","PopMale75to84","PopMale85andOver","PopFemale","PopFemale<15","PopFemale15to24","PopFemale25to34","PopFemale35t44","PopFemale45to54","PopFemale55to64","PopFemale65to74","PopFemale75to84","PopFemale85andOver","Households2000","PopInHH","AvgHHSize","HHs1Person","HHs2orMorePerson","HHsFamily","HHMarriedCoupleFam","HHSingleParentFam","HHsNonFamily","Families","PopInFam","AvgFamSize","TotHsUnits","OccHsUnits","OwnerOccHU","RenterOccHU","VctHsUnits","VctHUForRent","VctHUForSale","VctHUSeasonal","PopInOccHU","PopInOwnOccHU","PopInRntOccHU","AvgHHSize2","AvgHHSizOwnOcc","AvgHHSizRntOcc","OwnOccWhtHsHldr","OwnOccBlkHsHldr","OwnOccAmIHsHldr","OwnOccAsnHsHldr","OwnOccPIsHsHldr","OwnOccORHsHldr","OwnOcc2RcHsHldr","RntOccWhtHsHldr","RntOccBlkHsHldr","RntOccAmIHsHldr","RntOccAsnHsHldr","RntOccPIsHsHldr","RntOccORHsHldr","RntOcc2RcHsHldr","OwnOccHH15to24","OwnOccHH25to34","OwnOccHH35to44","OwnOccHH45to54","OwnOccHH55to64","OwnOccHH65to74","OwnOccHH75to84","OwnOccHH85Over","RntOccHH15to24","RntOccHH25to34","RntOccHH35to44","RntOccHH45to54","RntOccHH55to64","RntOccHH65to74","RntOccHH75to84","RntOccHH85Over","P27TotalPop","P27PopInHseHlds","P27PopInGrpQtrs","Median Age Total","Median Age (Male)","Median Age (Female)"]
[{"$f":"VLOOKUP(DropDownList!$B$47,CntyQryCensus!$A$4:$CW$46,A$1)","v":"Rochester"},{"$f":"VLOOKUP(DropDownList!$B$47,CntyQryCensus!$A$4:$CW$46,B$1)","v":"017"},{"$f":"VLOOKUP(DropDownList!$B$47,CntyQryCensus!$A$4:$CW$46,C$1)","v":"0034907"},{"$f":"VLOOKUP(DropDownList!$B$47,CntyQryCensus!$A$4:$CW$46,D$1)","v":"65140"},{"$f":"VLOOKUP(DropDownList!$B$47,CntyQryCensus!$A$4:$CW$46,E$1)","v":""},{"$f":"VLOOKUP(DropDownList!$B$47,CntyQryCensus!$A$4:$CW$46,F$1)","v":"     116940933"},{"$f":"VLOOKUP(DropDownList!$B$47,CntyQryCensus!$A$4:$CW$46,G$1)","v":"       1625224"},{"$f":"VLOOKUP(DropDownList!$B$47,CntyQryCensus!$A$4:$CW$46,H$1)","v":28461},{"$f":"VLOOKUP(DropDownList!$B$47,CntyQryCensus!$A$4:$CW$46,I$1)","v":"    11836"},{"$f":"VLOOKUP(DropDownList!$B$47,CntyQryCensus!$A$4:$CW$46,J$1)","v":28461},{"$f":"VLOOKUP(DropDownList!$B$47,CntyQryCensus!$A$4:$CW$46,K$1)","v":28182},{"$f":"VLOOKUP(DropDownList!$B$47,CntyQryCensus!$A$4:$CW$46,L$1)","v":27640},{"$f":"VLOOKUP(DropDownList!$B$47,CntyQryCensus!$A$4:$CW$46,M$1)","v":149},{"$f":"VLOOKUP(DropDownList!$B$47,CntyQryCensus!$A$4:$CW$46,N$1)","v":62},{"$f":"VLOOKUP(DropDownList!$B$47,CntyQryCensus!$A$4:$CW$46,O$1)","v":248},{"$f":"VLOOKUP(DropDownList!$B$47,CntyQryCensus!$A$4:$CW$46,P$1)","v":9},{"$f":"VLOOKUP(DropDownList!$B$47,CntyQryCensus!$A$4:$CW$46,Q$1)","v":74},{"$f":"VLOOKUP(DropDownList!$B$47,CntyQryCensus!$A$4:$CW$46,R$1)","v":279},{"$f":"VLOOKUP(DropDownList!$B$47,CntyQryCensus!$A$4:$CW$46,S$1)","v":255},{"$f":"VLOOKUP(DropDownList!$B$47,CntyQryCensus!$A$4:$CW$46,T$1)","v":28206},{"$f":"VLOOKUP(DropDownList!$B$47,CntyQryCensus!$A$4:$CW$46,U$1)","v":13838},{"$f":"VLOOKUP(DropDownList!$B$47,CntyQryCensus!$A$4:$CW$46,V$1)","v":3142},{"$f":"VLOOKUP(DropDownList!$B$47,CntyQryCensus!$A$4:$CW$46,W$1)","v":1655},{"$f":"VLOOKUP(DropDownList!$B$47,CntyQryCensus!$A$4:$CW$46,X$1)","v":2002},{"$f":"VLOOKUP(DropDownList!$B$47,CntyQryCensus!$A$4:$CW$46,Y$1)","v":2422},{"$f":"VLOOKUP(DropDownList!$B$47,CntyQryCensus!$A$4:$CW$46,Z$1)","v":1852},{"$f":"VLOOKUP(DropDownList!$B$47,CntyQryCensus!$A$4:$CW$46,AA$1)","v":1202},{"$f":"VLOOKUP(DropDownList!$B$47,CntyQryCensus!$A$4:$CW$46,AB$1)","v":955},{"$f":"VLOOKUP(DropDownList!$B$47,CntyQryCensus!$A$4:$CW$46,AC$1)","v":499},{"$f":"VLOOKUP(DropDownList!$B$47,CntyQryCensus!$A$4:$CW$46,AD$1)","v":109},{"$f":"VLOOKUP(DropDownList!$B$47,CntyQryCensus!$A$4:$CW$46,AE$1)","v":14623},{"$f":"VLOOKUP(DropDownList!$B$47,CntyQryCensus!$A$4:$CW$46,AF$1)","v":2847},{"$f":"VLOOKUP(DropDownList!$B$47,CntyQryCensus!$A$4:$CW$46,AG$1)","v":1731},{"$f":"VLOOKUP(DropDownList!$B$47,CntyQryCensus!$A$4:$CW$46,AH$1)","v":2031},{"$f":"VLOOKUP(DropDownList!$B$47,CntyQryCensus!$A$4:$CW$46,AI$1)","v":2519},{"$f":"VLOOKUP(DropDownList!$B$47,CntyQryCensus!$A$4:$CW$46,AJ$1)","v":1976},{"$f":"VLOOKUP(DropDownList!$B$47,CntyQryCensus!$A$4:$CW$46,AK$1)","v":1248},{"$f":"VLOOKUP(DropDownList!$B$47,CntyQryCensus!$A$4:$CW$46,AL$1)","v":1116},{"$f":"VLOOKUP(DropDownList!$B$47,CntyQryCensus!$A$4:$CW$46,AM$1)","v":843},{"$f":"VLOOKUP(DropDownList!$B$47,CntyQryCensus!$A$4:$CW$46,AN$1)","v":312},{"$f":"VLOOKUP(DropDownList!$B$47,CntyQryCensus!$A$4:$CW$46,AO$1)","v":11434},{"$f":"VLOOKUP(DropDownList!$B$47,CntyQryCensus!$A$4:$CW$46,AP$1)","v":28168},{"$f":"VLOOKUP(DropDownList!$B$47,CntyQryCensus!$A$4:$CW$46,AQ$1)","v":2.46},{"$f":"VLOOKUP(DropDownList!$B$47,CntyQryCensus!$A$4:$CW$46,AR$1)","v":2936},{"$f":"VLOOKUP(DropDownList!$B$47,CntyQryCensus!$A$4:$CW$46,AS$1)","v":8498},{"$f":"VLOOKUP(DropDownList!$B$47,CntyQryCensus!$A$4:$CW$46,AT$1)","v":7648},{"$f":"VLOOKUP(DropDownList!$B$47,CntyQryCensus!$A$4:$CW$46,AU$1)","v":5819},{"$f":"VLOOKUP(DropDownList!$B$47,CntyQryCensus!$A$4:$CW$46,AV$1)","v":1829},{"$f":"VLOOKUP(DropDownList!$B$47,CntyQryCensus!$A$4:$CW$46,AW$1)","v":850},{"$f":"VLOOKUP(DropDownList!$B$47,CntyQryCensus!$A$4:$CW$46,AX$1)","v":7648},{"$f":"VLOOKUP(DropDownList!$B$47,CntyQryCensus!$A$4:$CW$46,AY$1)","v":22584},{"$f":"VLOOKUP(DropDownList!$B$47,CntyQryCensus!$A$4:$CW$46,AZ$1)","v":2.95},{"$f":"VLOOKUP(DropDownList!$B$47,CntyQryCensus!$A$4:$CW$46,BA$1)","v":11836},{"$f":"VLOOKUP(DropDownList!$B$47,CntyQryCensus!$A$4:$CW$46,BB$1)","v":11434},{"$f":"VLOOKUP(DropDownList!$B$47,CntyQryCensus!$A$4:$CW$46,BC$1)","v":7643},{"$f":"VLOOKUP(DropDownList!$B$47,CntyQryCensus!$A$4:$CW$46,BD$1)","v":3791},{"$f":"VLOOKUP(DropDownList!$B$47,CntyQryCensus!$A$4:$CW$46,BE$1)","v":402},{"$f":"VLOOKUP(DropDownList!$B$47,CntyQryCensus!$A$4:$CW$46,BF$1)","v":110},{"$f":"VLOOKUP(DropDownList!$B$47,CntyQryCensus!$A$4:$CW$46,BG$1)","v":68},{"$f":"VLOOKUP(DropDownList!$B$47,CntyQryCensus!$A$4:$CW$46,BH$1)","v":77},{"$f":"VLOOKUP(DropDownList!$B$47,CntyQryCensus!$A$4:$CW$46,BI$1)","v":28168},{"$f":"VLOOKUP(DropDownList!$B$47,CntyQryCensus!$A$4:$CW$46,BJ$1)","v":19590},{"$f":"VLOOKUP(DropDownList!$B$47,CntyQryCensus!$A$4:$CW$46,BK$1)","v":8578},{"$f":"VLOOKUP(DropDownList!$B$47,CntyQryCensus!$A$4:$CW$46,BL$1)","v":2.46},{"$f":"VLOOKUP(DropDownList!$B$47,CntyQryCensus!$A$4:$CW$46,BM$1)","v":2.56},{"$f":"VLOOKUP(DropDownList!$B$47,CntyQryCensus!$A$4:$CW$46,BN$1)","v":2.2599999999999998},{"$f":"VLOOKUP(DropDownList!$B$47,CntyQryCensus!$A$4:$CW$46,BO$1)","v":7538},{"$f":"VLOOKUP(DropDownList!$B$47,CntyQryCensus!$A$4:$CW$46,BP$1)","v":20},{"$f":"VLOOKUP(DropDownList!$B$47,CntyQryCensus!$A$4:$CW$46,BQ$1)","v":15},{"$f":"VLOOKUP(DropDownList!$B$47,CntyQryCensus!$A$4:$CW$46,BR$1)","v":29},{"$f":"VLOOKUP(DropDownList!$B$47,CntyQryCensus!$A$4:$CW$46,BS$1)","v":1},{"$f":"VLOOKUP(DropDownList!$B$47,CntyQryCensus!$A$4:$CW$46,BT$1)","v":8},{"$f":"VLOOKUP(DropDownList!$B$47,CntyQryCensus!$A$4:$CW$46,BU$1)","v":32},{"$f":"VLOOKUP(DropDownList!$B$47,CntyQryCensus!$A$4:$CW$46,BV$1)","v":3647},{"$f":"VLOOKUP(DropDownList!$B$47,CntyQryCensus!$A$4:$CW$46,BW$1)","v":35},{"$f":"VLOOKUP(DropDownList!$B$47,CntyQryCensus!$A$4:$CW$46,BX$1)","v":15},{"$f":"VLOOKUP(DropDownList!$B$47,CntyQryCensus!$A$4:$CW$46,BY$1)","v":42},{"$f":"VLOOKUP(DropDownList!$B$47,CntyQryCensus!$A$4:$CW$46,BZ$1)","v":0},{"$f":"VLOOKUP(DropDownList!$B$47,CntyQryCensus!$A$4:$CW$46,CA$1)","v":13},{"$f":"VLOOKUP(DropDownList!$B$47,CntyQryCensus!$A$4:$CW$46,CB$1)","v":39},{"$f":"VLOOKUP(DropDownList!$B$47,CntyQryCensus!$A$4:$CW$46,CC$1)","v":127},{"$f":"VLOOKUP(DropDownList!$B$47,CntyQryCensus!$A$4:$CW$46,CD$1)","v":986},{"$f":"VLOOKUP(DropDownList!$B$47,CntyQryCensus!$A$4:$CW$46,CE$1)","v":1890},{"$f":"VLOOKUP(DropDownList!$B$47,CntyQryCensus!$A$4:$CW$46,CF$1)","v":1632},{"$f":"VLOOKUP(DropDownList!$B$47,CntyQryCensus!$A$4:$CW$46,CG$1)","v":1155},{"$f":"VLOOKUP(DropDownList!$B$47,CntyQryCensus!$A$4:$CW$46,CH$1)","v":1073},{"$f":"VLOOKUP(DropDownList!$B$47,CntyQryCensus!$A$4:$CW$46,CI$1)","v":639},{"$f":"VLOOKUP(DropDownList!$B$47,CntyQryCensus!$A$4:$CW$46,CJ$1)","v":141},{"$f":"VLOOKUP(DropDownList!$B$47,CntyQryCensus!$A$4:$CW$46,CK$1)","v":434},{"$f":"VLOOKUP(DropDownList!$B$47,CntyQryCensus!$A$4:$CW$46,CL$1)","v":1021},{"$f":"VLOOKUP(DropDownList!$B$47,CntyQryCensus!$A$4:$CW$46,CM$1)","v":919},{"$f":"VLOOKUP(DropDownList!$B$47,CntyQryCensus!$A$4:$CW$46,CN$1)","v":552},{"$f":"VLOOKUP(DropDownList!$B$47,CntyQryCensus!$A$4:$CW$46,CO$1)","v":301},{"$f":"VLOOKUP(DropDownList!$B$47,CntyQryCensus!$A$4:$CW$46,CP$1)","v":261},{"$f":"VLOOKUP(DropDownList!$B$47,CntyQryCensus!$A$4:$CW$46,CQ$1)","v":232},{"$f":"VLOOKUP(DropDownList!$B$47,CntyQryCensus!$A$4:$CW$46,CR$1)","v":71},{"$f":"VLOOKUP(DropDownList!$B$47,CntyQryCensus!$A$4:$CW$46,CS$1)","v":28461},{"$f":"VLOOKUP(DropDownList!$B$47,CntyQryCensus!$A$4:$CW$46,CT$1)","v":28168},{"$f":"VLOOKUP(DropDownList!$B$47,CntyQryCensus!$A$4:$CW$46,CU$1)","v":293},{"$f":"VLOOKUP(DropDownList!$B$47,CntyQryCensus!$A$4:$CW$46,CV$1)","v":36.700000000000003},{"$f":"VLOOKUP(DropDownList!$B$47,CntyQryCensus!$A$4:$CW$46,CW$1)","v":35.5},{"$f":"VLOOKUP(DropDownList!$B$47,CntyQryCensus!$A$4:$CW$46,CX$1)","v":{"$error":"#REF!"}}]
[]
[]
["Census 2000 DemoProfile Sample Data Tables 2&3   -  DPTab23TownQry"]
["NAME","COUSUB","AREANAME","PopInSchool","Preschool","Kindergarten","Elementary","HighSchool","College","Pop25andOver","HighSchoolGrad","SomeCollege","AssocDegree","BachelDegree","GradDegree","HSGradorHigher","CollegeGradorHigher","Pop5to20yrs","Pop5to20wDis","Pop21to64","Pop21to64wDis","Pop65over","Pop65overwDis","Pop5yrsOver","SameHUin95","DiffHUinUSin95","HUinSameCountyin95","HUinSameStatein95","TotalPop","NativePop","NatPopBornUS","NatPopBornInStatRes","NatPopBornDiffState","NatPopBornOutUS","FornBornPop","FornPopEnt90to00","FornPopNatCit","FornPopNotCit","Households","HHIncLessThn10k","HHInc10to15K","HHInc15to25K","HHInc25to35K","HHInc35to50K","HHInc50to75K","HHInc75to100K","HHInc100to150K","HHInc150to200K","HHIncOver200K","MedianHHInc","HHwithPubAssistInc","MeanPubAssist","FamilyHH","FHHIncLessThn10k","FHHInc10to15K","FHHInc15to25K","FHHInc25to35K","FHHInc35to50K","FHHInc50to75K","FHHInc75to100K","FHHInc100to150K","FHHInc150to200K","FHHIncOver200K","MedianFHHInc","PerCapitaInc","PovStatFamilies","PovStatFHHwChilUnd18","PovStatFHHwChilUnd5","PovStFmalHH","DP3088","DP3089","PovStatIndiv","PovStatIndiv18yrOver","PovStatIndiv65yrOver","DP3093","DP3094","DP3095"]
[{"$f":"VLOOKUP(DropDownList!$B$47,CntyQryCensus!$A$53:$BY$96,A$1)","v":"Rochester"},{"$f":"VLOOKUP(DropDownList!$B$47,CntyQryCensus!$A$53:$BY$96,B$1)","v":"65140"},{"$f":"VLOOKUP(DropDownList!$B$47,CntyQryCensus!$A$53:$BY$96,C$1)","v":"Rochester city, New Hampshire"},{"$f":"VLOOKUP(DropDownList!$B$47,CntyQryCensus!$A$53:$BY$96,D$1)","v":6893},{"$f":"VLOOKUP(DropDownList!$B$47,CntyQryCensus!$A$53:$BY$96,E$1)","v":489},{"$f":"VLOOKUP(DropDownList!$B$47,CntyQryCensus!$A$53:$BY$96,F$1)","v":302},{"$f":"VLOOKUP(DropDownList!$B$47,CntyQryCensus!$A$53:$BY$96,G$1)","v":3387},{"$f":"VLOOKUP(DropDownList!$B$47,CntyQryCensus!$A$53:$BY$96,H$1)","v":1635},{"$f":"VLOOKUP(DropDownList!$B$47,CntyQryCensus!$A$53:$BY$96,I$1)","v":1080},{"$f":"VLOOKUP(DropDownList!$B$47,CntyQryCensus!$A$53:$BY$96,J$1)","v":19122},{"$f":"VLOOKUP(DropDownList!$B$47,CntyQryCensus!$A$53:$BY$96,K$1)","v":7264},{"$f":"VLOOKUP(DropDownList!$B$47,CntyQryCensus!$A$53:$BY$96,L$1)","v":4004},{"$f":"VLOOKUP(DropDownList!$B$47,CntyQryCensus!$A$53:$BY$96,M$1)","v":1666},{"$f":"VLOOKUP(DropDownList!$B$47,CntyQryCensus!$A$53:$BY$96,N$1)","v":1953},{"$f":"VLOOKUP(DropDownList!$B$47,CntyQryCensus!$A$53:$BY$96,O$1)","v":955},{"$f":"VLOOKUP(DropDownList!$B$47,CntyQryCensus!$A$53:$BY$96,P$1)","v":15842},{"$f":"VLOOKUP(DropDownList!$B$47,CntyQryCensus!$A$53:$BY$96,Q$1)","v":2908},{"$f":"VLOOKUP(DropDownList!$B$47,CntyQryCensus!$A$53:$BY$96,R$1)","v":6221},{"$f":"VLOOKUP(DropDownList!$B$47,CntyQryCensus!$A$53:$BY$96,S$1)","v":538},{"$f":"VLOOKUP(DropDownList!$B$47,CntyQryCensus!$A$53:$BY$96,T$1)","v":16484},{"$f":"VLOOKUP(DropDownList!$B$47,CntyQryCensus!$A$53:$BY$96,U$1)","v":3336},{"$f":"VLOOKUP(DropDownList!$B$47,CntyQryCensus!$A$53:$BY$96,V$1)","v":3609},{"$f":"VLOOKUP(DropDownList!$B$47,CntyQryCensus!$A$53:$BY$96,W$1)","v":1534},{"$f":"VLOOKUP(DropDownList!$B$47,CntyQryCensus!$A$53:$BY$96,X$1)","v":26567},{"$f":"VLOOKUP(DropDownList!$B$47,CntyQryCensus!$A$53:$BY$96,Y$1)","v":13721},{"$f":"VLOOKUP(DropDownList!$B$47,CntyQryCensus!$A$53:$BY$96,Z$1)","v":12721},{"$f":"VLOOKUP(DropDownList!$B$47,CntyQryCensus!$A$53:$BY$96,AA$1)","v":7981},{"$f":"VLOOKUP(DropDownList!$B$47,CntyQryCensus!$A$53:$BY$96,AB$1)","v":4740},{"$f":"VLOOKUP(DropDownList!$B$47,CntyQryCensus!$A$53:$BY$96,AC$1)","v":28461},{"$f":"VLOOKUP(DropDownList!$B$47,CntyQryCensus!$A$53:$BY$96,AD$1)","v":27738},{"$f":"VLOOKUP(DropDownList!$B$47,CntyQryCensus!$A$53:$BY$96,AE$1)","v":27389},{"$f":"VLOOKUP(DropDownList!$B$47,CntyQryCensus!$A$53:$BY$96,AF$1)","v":16186},{"$f":"VLOOKUP(DropDownList!$B$47,CntyQryCensus!$A$53:$BY$96,AG$1)","v":11203},{"$f":"VLOOKUP(DropDownList!$B$47,CntyQryCensus!$A$53:$BY$96,AH$1)","v":349},{"$f":"VLOOKUP(DropDownList!$B$47,CntyQryCensus!$A$53:$BY$96,AI$1)","v":723},{"$f":"VLOOKUP(DropDownList!$B$47,CntyQryCensus!$A$53:$BY$96,AJ$1)","v":160},{"$f":"VLOOKUP(DropDownList!$B$47,CntyQryCensus!$A$53:$BY$96,AK$1)","v":417},{"$f":"VLOOKUP(DropDownList!$B$47,CntyQryCensus!$A$53:$BY$96,AL$1)","v":306},{"$f":"VLOOKUP(DropDownList!$B$47,CntyQryCensus!$A$53:$BY$96,AM$1)","v":11397},{"$f":"VLOOKUP(DropDownList!$B$47,CntyQryCensus!$A$53:$BY$96,AN$1)","v":857},{"$f":"VLOOKUP(DropDownList!$B$47,CntyQryCensus!$A$53:$BY$96,AO$1)","v":765},{"$f":"VLOOKUP(DropDownList!$B$47,CntyQryCensus!$A$53:$BY$96,AP$1)","v":1546},{"$f":"VLOOKUP(DropDownList!$B$47,CntyQryCensus!$A$53:$BY$96,AQ$1)","v":1600},{"$f":"VLOOKUP(DropDownList!$B$47,CntyQryCensus!$A$53:$BY$96,AR$1)","v":2453},{"$f":"VLOOKUP(DropDownList!$B$47,CntyQryCensus!$A$53:$BY$96,AS$1)","v":2501},{"$f":"VLOOKUP(DropDownList!$B$47,CntyQryCensus!$A$53:$BY$96,AT$1)","v":965},{"$f":"VLOOKUP(DropDownList!$B$47,CntyQryCensus!$A$53:$BY$96,AU$1)","v":509},{"$f":"VLOOKUP(DropDownList!$B$47,CntyQryCensus!$A$53:$BY$96,AV$1)","v":118},{"$f":"VLOOKUP(DropDownList!$B$47,CntyQryCensus!$A$53:$BY$96,AW$1)","v":83},{"$f":"VLOOKUP(DropDownList!$B$47,CntyQryCensus!$A$53:$BY$96,AX$1)","v":40596},{"$f":"VLOOKUP(DropDownList!$B$47,CntyQryCensus!$A$53:$BY$96,AY$1)","v":625},{"$f":"VLOOKUP(DropDownList!$B$47,CntyQryCensus!$A$53:$BY$96,AZ$1)","v":2802},{"$f":"VLOOKUP(DropDownList!$B$47,CntyQryCensus!$A$53:$BY$96,BA$1)","v":7671},{"$f":"VLOOKUP(DropDownList!$B$47,CntyQryCensus!$A$53:$BY$96,BB$1)","v":307},{"$f":"VLOOKUP(DropDownList!$B$47,CntyQryCensus!$A$53:$BY$96,BC$1)","v":345},{"$f":"VLOOKUP(DropDownList!$B$47,CntyQryCensus!$A$53:$BY$96,BD$1)","v":776},{"$f":"VLOOKUP(DropDownList!$B$47,CntyQryCensus!$A$53:$BY$96,BE$1)","v":930},{"$f":"VLOOKUP(DropDownList!$B$47,CntyQryCensus!$A$53:$BY$96,BF$1)","v":1757},{"$f":"VLOOKUP(DropDownList!$B$47,CntyQryCensus!$A$53:$BY$96,BG$1)","v":2051},{"$f":"VLOOKUP(DropDownList!$B$47,CntyQryCensus!$A$53:$BY$96,BH$1)","v":858},{"$f":"VLOOKUP(DropDownList!$B$47,CntyQryCensus!$A$53:$BY$96,BI$1)","v":480},{"$f":"VLOOKUP(DropDownList!$B$47,CntyQryCensus!$A$53:$BY$96,BJ$1)","v":96},{"$f":"VLOOKUP(DropDownList!$B$47,CntyQryCensus!$A$53:$BY$96,BK$1)","v":71},{"$f":"VLOOKUP(DropDownList!$B$47,CntyQryCensus!$A$53:$BY$96,BL$1)","v":47324},{"$f":"VLOOKUP(DropDownList!$B$47,CntyQryCensus!$A$53:$BY$96,BM$1)","v":18859},{"$f":"VLOOKUP(DropDownList!$B$47,CntyQryCensus!$A$53:$BY$96,BN$1)","v":481},{"$f":"VLOOKUP(DropDownList!$B$47,CntyQryCensus!$A$53:$BY$96,BO$1)","v":399},{"$f":"VLOOKUP(DropDownList!$B$47,CntyQryCensus!$A$53:$BY$96,BP$1)","v":197},{"$f":"VLOOKUP(DropDownList!$B$47,CntyQryCensus!$A$53:$BY$96,BQ$1)","v":325},{"$f":"VLOOKUP(DropDownList!$B$47,CntyQryCensus!$A$53:$BY$96,BR$1)","v":313},{"$f":"VLOOKUP(DropDownList!$B$47,CntyQryCensus!$A$53:$BY$96,BS$1)","v":155},{"$f":"VLOOKUP(DropDownList!$B$47,CntyQryCensus!$A$53:$BY$96,BT$1)","v":2357},{"$f":"VLOOKUP(DropDownList!$B$47,CntyQryCensus!$A$53:$BY$96,BU$1)","v":1481},{"$f":"VLOOKUP(DropDownList!$B$47,CntyQryCensus!$A$53:$BY$96,BV$1)","v":316},{"$f":"VLOOKUP(DropDownList!$B$47,CntyQryCensus!$A$53:$BY$96,BW$1)","v":823},{"$f":"VLOOKUP(DropDownList!$B$47,CntyQryCensus!$A$53:$BY$96,BX$1)","v":579},{"$f":"VLOOKUP(DropDownList!$B$47,CntyQryCensus!$A$53:$BY$96,BY$1)","v":903}]
[]
[]
["Census 2000 DemoProfile Sample Data Table 4   -  DPTab4TownQry"]
["NAME","COUSUB","TotHousingUnits","1UnitDet","1UnitAtt","2Units","3to4Units","5to9Units","10to19Units","20orMoreUnits","MobileHomes","BoatRvVan","SingleFamilyUnits","MultiFamUnits","MobileHomeUnits","YearBuilt99to00","YearBuilt95to98","YearBUilt90to94","YearBuilt80to89","YearBuilt70to79","YearBuilt60to69","YearBuilt40to59","YearBuilt39orEarlier","Rooms1","Rooms2","Rooms3","Rooms4","Rooms5","Rooms6","Rooms7","Rooms8","Rooms9orMore","MedianRooms","OccHU1","YrHHMvdIn99to00","YrHHMvdIn95to98","YrHHMvdIn90to94","YrHHMvdIn80to89","YrHHMvdIn70to79","YrHHMvdIn69orBefore","HeatFuelNatGas","HeatFuelBotGas","HeatFuelElectric","HeatFuelOil","HeatFuelCoal","HeatFuelWood","HeatFuelSolar","HeatFuelOther","HeatFuelNone","LackCompPlumb","LackCompKit","NoTelephone","OccHU","OccPerRm1orLess","OccPerRm1to1_5","OccPerRm1_5orMore","SpecOwnOccUnits","Value<50K","Value50to100K","Value100to150K","Value150to200K","Value200to300K","Value300to500K","Value500Kto1mil","Value1MilorMore","MedianValue","WithMortg","MnthOwnCst<300","MnthOwnCst300to500","MnthOwnCst500to700","MnthOwnCst700to1000","MnthOwnCst1000to1500","MnthOwnCst1500to2000","MnthOwnCst2000orMore","MediMnthOwnCst","NotMrtg","NotMrtgMediMnthOwnCst","OwnCst%HHInc<15","OwnCst%HHInc15to20","OwnCst%HHInc20to25","OwnCst%HHInc25to30","OwnCst%HHInc30to35","OwnCst%HHInc35orMor","NotComputed","SpecRntOccUnits","Rnt<200","Rnt200to300","Rnt300to500","Rnt500to750","Rnt750to1000","Rnt1000to1500","Rnt1500orMore","NoRent","MedianRent","Rnt%HHInc<15","Rnt%HHInc15to20","Rnt%HHInc20to25","Rnt%HHInc25to30","Rnt%HHInc30to35","Rnt%HHInc35orMore","Rnt%NotCompute"]
[{"$f":"VLOOKUP(DropDownList!$B$47,CntyQryCensus!$A$103:$CX$146,A$1)","v":"Rochester"},{"$f":"VLOOKUP(DropDownList!$B$47,CntyQryCensus!$A$103:$CX$146,B$1)","v":"65140"},{"$f":"VLOOKUP(DropDownList!$B$47,CntyQryCensus!$A$103:$CX$146,C$1)","v":11836},{"$f":"VLOOKUP(DropDownList!$B$47,CntyQryCensus!$A$103:$CX$146,D$1)","v":5727},{"$f":"VLOOKUP(DropDownList!$B$47,CntyQryCensus!$A$103:$CX$146,E$1)","v":402},{"$f":"VLOOKUP(DropDownList!$B$47,CntyQryCensus!$A$103:$CX$146,F$1)","v":707},{"$f":"VLOOKUP(DropDownList!$B$47,CntyQryCensus!$A$103:$CX$146,G$1)","v":1133},{"$f":"VLOOKUP(DropDownList!$B$47,CntyQryCensus!$A$103:$CX$146,H$1)","v":890},{"$f":"VLOOKUP(DropDownList!$B$47,CntyQryCensus!$A$103:$CX$146,I$1)","v":169},{"$f":"VLOOKUP(DropDownList!$B$47,CntyQryCensus!$A$103:$CX$146,J$1)","v":563},{"$f":"VLOOKUP(DropDownList!$B$47,CntyQryCensus!$A$103:$CX$146,K$1)","v":2239},{"$f":"VLOOKUP(DropDownList!$B$47,CntyQryCensus!$A$103:$CX$146,L$1)","v":6},{"$f":"VLOOKUP(DropDownList!$B$47,CntyQryCensus!$A$103:$CX$146,M$1)","v":5727},{"$f":"VLOOKUP(DropDownList!$B$47,CntyQryCensus!$A$103:$CX$146,N$1)","v":3864},{"$f":"VLOOKUP(DropDownList!$B$47,CntyQryCensus!$A$103:$CX$146,O$1)","v":2245},{"$f":"VLOOKUP(DropDownList!$B$47,CntyQryCensus!$A$103:$CX$146,P$1)","v":252},{"$f":"VLOOKUP(DropDownList!$B$47,CntyQryCensus!$A$103:$CX$146,Q$1)","v":647},{"$f":"VLOOKUP(DropDownList!$B$47,CntyQryCensus!$A$103:$CX$146,R$1)","v":726},{"$f":"VLOOKUP(DropDownList!$B$47,CntyQryCensus!$A$103:$CX$146,S$1)","v":2520},{"$f":"VLOOKUP(DropDownList!$B$47,CntyQryCensus!$A$103:$CX$146,T$1)","v":1966},{"$f":"VLOOKUP(DropDownList!$B$47,CntyQryCensus!$A$103:$CX$146,U$1)","v":925},{"$f":"VLOOKUP(DropDownList!$B$47,CntyQryCensus!$A$103:$CX$146,V$1)","v":1799},{"$f":"VLOOKUP(DropDownList!$B$47,CntyQryCensus!$A$103:$CX$146,W$1)","v":3001},{"$f":"VLOOKUP(DropDownList!$B$47,CntyQryCensus!$A$103:$CX$146,X$1)","v":55},{"$f":"VLOOKUP(DropDownList!$B$47,CntyQryCensus!$A$103:$CX$146,Y$1)","v":281},{"$f":"VLOOKUP(DropDownList!$B$47,CntyQryCensus!$A$103:$CX$146,Z$1)","v":1391},{"$f":"VLOOKUP(DropDownList!$B$47,CntyQryCensus!$A$103:$CX$146,AA$1)","v":2703},{"$f":"VLOOKUP(DropDownList!$B$47,CntyQryCensus!$A$103:$CX$146,AB$1)","v":2850},{"$f":"VLOOKUP(DropDownList!$B$47,CntyQryCensus!$A$103:$CX$146,AC$1)","v":2026},{"$f":"VLOOKUP(DropDownList!$B$47,CntyQryCensus!$A$103:$CX$146,AD$1)","v":1263},{"$f":"VLOOKUP(DropDownList!$B$47,CntyQryCensus!$A$103:$CX$146,AE$1)","v":751},{"$f":"VLOOKUP(DropDownList!$B$47,CntyQryCensus!$A$103:$CX$146,AF$1)","v":516},{"$f":"VLOOKUP(DropDownList!$B$47,CntyQryCensus!$A$103:$CX$146,AG$1)","v":5},{"$f":"VLOOKUP(DropDownList!$B$47,CntyQryCensus!$A$103:$CX$146,AH$1)","v":11434},{"$f":"VLOOKUP(DropDownList!$B$47,CntyQryCensus!$A$103:$CX$146,AI$1)","v":2293},{"$f":"VLOOKUP(DropDownList!$B$47,CntyQryCensus!$A$103:$CX$146,AJ$1)","v":3618},{"$f":"VLOOKUP(DropDownList!$B$47,CntyQryCensus!$A$103:$CX$146,AK$1)","v":1710},{"$f":"VLOOKUP(DropDownList!$B$47,CntyQryCensus!$A$103:$CX$146,AL$1)","v":1929},{"$f":"VLOOKUP(DropDownList!$B$47,CntyQryCensus!$A$103:$CX$146,AM$1)","v":854},{"$f":"VLOOKUP(DropDownList!$B$47,CntyQryCensus!$A$103:$CX$146,AN$1)","v":1030},{"$f":"VLOOKUP(DropDownList!$B$47,CntyQryCensus!$A$103:$CX$146,AO$1)","v":2273},{"$f":"VLOOKUP(DropDownList!$B$47,CntyQryCensus!$A$103:$CX$146,AP$1)","v":1063},{"$f":"VLOOKUP(DropDownList!$B$47,CntyQryCensus!$A$103:$CX$146,AQ$1)","v":739},{"$f":"VLOOKUP(DropDownList!$B$47,CntyQryCensus!$A$103:$CX$146,AR$1)","v":7069},{"$f":"VLOOKUP(DropDownList!$B$47,CntyQryCensus!$A$103:$CX$146,AS$1)","v":7},{"$f":"VLOOKUP(DropDownList!$B$47,CntyQryCensus!$A$103:$CX$146,AT$1)","v":188},{"$f":"VLOOKUP(DropDownList!$B$47,CntyQryCensus!$A$103:$CX$146,AU$1)","v":0},{"$f":"VLOOKUP(DropDownList!$B$47,CntyQryCensus!$A$103:$CX$146,AV$1)","v":54},{"$f":"VLOOKUP(DropDownList!$B$47,CntyQryCensus!$A$103:$CX$146,AW$1)","v":41},{"$f":"VLOOKUP(DropDownList!$B$47,CntyQryCensus!$A$103:$CX$146,AX$1)","v":86},{"$f":"VLOOKUP(DropDownList!$B$47,CntyQryCensus!$A$103:$CX$146,AY$1)","v":32},{"$f":"VLOOKUP(DropDownList!$B$47,CntyQryCensus!$A$103:$CX$146,AZ$1)","v":199},{"$f":"VLOOKUP(DropDownList!$B$47,CntyQryCensus!$A$103:$CX$146,BA$1)","v":11434},{"$f":"VLOOKUP(DropDownList!$B$47,CntyQryCensus!$A$103:$CX$146,BB$1)","v":11228},{"$f":"VLOOKUP(DropDownList!$B$47,CntyQryCensus!$A$103:$CX$146,BC$1)","v":157},{"$f":"VLOOKUP(DropDownList!$B$47,CntyQryCensus!$A$103:$CX$146,BD$1)","v":49},{"$f":"VLOOKUP(DropDownList!$B$47,CntyQryCensus!$A$103:$CX$146,BE$1)","v":4928},{"$f":"VLOOKUP(DropDownList!$B$47,CntyQryCensus!$A$103:$CX$146,BF$1)","v":68},{"$f":"VLOOKUP(DropDownList!$B$47,CntyQryCensus!$A$103:$CX$146,BG$1)","v":2442},{"$f":"VLOOKUP(DropDownList!$B$47,CntyQryCensus!$A$103:$CX$146,BH$1)","v":1780},{"$f":"VLOOKUP(DropDownList!$B$47,CntyQryCensus!$A$103:$CX$146,BI$1)","v":427},{"$f":"VLOOKUP(DropDownList!$B$47,CntyQryCensus!$A$103:$CX$146,BJ$1)","v":173},{"$f":"VLOOKUP(DropDownList!$B$47,CntyQryCensus!$A$103:$CX$146,BK$1)","v":38},{"$f":"VLOOKUP(DropDownList!$B$47,CntyQryCensus!$A$103:$CX$146,BL$1)","v":0},{"$f":"VLOOKUP(DropDownList!$B$47,CntyQryCensus!$A$103:$CX$146,BM$1)","v":0},{"$f":"VLOOKUP(DropDownList!$B$47,CntyQryCensus!$A$103:$CX$146,BN$1)","v":99400},{"$f":"VLOOKUP(DropDownList!$B$47,CntyQryCensus!$A$103:$CX$146,BO$1)","v":3576},{"$f":"VLOOKUP(DropDownList!$B$47,CntyQryCensus!$A$103:$CX$146,BP$1)","v":15},{"$f":"VLOOKUP(DropDownList!$B$47,CntyQryCensus!$A$103:$CX$146,BQ$1)","v":62},{"$f":"VLOOKUP(DropDownList!$B$47,CntyQryCensus!$A$103:$CX$146,BR$1)","v":281},{"$f":"VLOOKUP(DropDownList!$B$47,CntyQryCensus!$A$103:$CX$146,BS$1)","v":1282},{"$f":"VLOOKUP(DropDownList!$B$47,CntyQryCensus!$A$103:$CX$146,BT$1)","v":1541},{"$f":"VLOOKUP(DropDownList!$B$47,CntyQryCensus!$A$103:$CX$146,BU$1)","v":268},{"$f":"VLOOKUP(DropDownList!$B$47,CntyQryCensus!$A$103:$CX$146,BV$1)","v":127},{"$f":"VLOOKUP(DropDownList!$B$47,CntyQryCensus!$A$103:$CX$146,BW$1)","v":1036},{"$f":"VLOOKUP(DropDownList!$B$47,CntyQryCensus!$A$103:$CX$146,BX$1)","v":1352},{"$f":"VLOOKUP(DropDownList!$B$47,CntyQryCensus!$A$103:$CX$146,BY$1)","v":393},{"$f":"VLOOKUP(DropDownList!$B$47,CntyQryCensus!$A$103:$CX$146,BZ$1)","v":1190},{"$f":"VLOOKUP(DropDownList!$B$47,CntyQryCensus!$A$103:$CX$146,CA$1)","v":1004},{"$f":"VLOOKUP(DropDownList!$B$47,CntyQryCensus!$A$103:$CX$146,CB$1)","v":1039},{"$f":"VLOOKUP(DropDownList!$B$47,CntyQryCensus!$A$103:$CX$146,CC$1)","v":505},{"$f":"VLOOKUP(DropDownList!$B$47,CntyQryCensus!$A$103:$CX$146,CD$1)","v":458},{"$f":"VLOOKUP(DropDownList!$B$47,CntyQryCensus!$A$103:$CX$146,CE$1)","v":702},{"$f":"VLOOKUP(DropDownList!$B$47,CntyQryCensus!$A$103:$CX$146,CF$1)","v":30},{"$f":"VLOOKUP(DropDownList!$B$47,CntyQryCensus!$A$103:$CX$146,CG$1)","v":3777},{"$f":"VLOOKUP(DropDownList!$B$47,CntyQryCensus!$A$103:$CX$146,CH$1)","v":217},{"$f":"VLOOKUP(DropDownList!$B$47,CntyQryCensus!$A$103:$CX$146,CI$1)","v":204},{"$f":"VLOOKUP(DropDownList!$B$47,CntyQryCensus!$A$103:$CX$146,CJ$1)","v":726},{"$f":"VLOOKUP(DropDownList!$B$47,CntyQryCensus!$A$103:$CX$146,CK$1)","v":1743},{"$f":"VLOOKUP(DropDownList!$B$47,CntyQryCensus!$A$103:$CX$146,CL$1)","v":595},{"$f":"VLOOKUP(DropDownList!$B$47,CntyQryCensus!$A$103:$CX$146,CM$1)","v":174},{"$f":"VLOOKUP(DropDownList!$B$47,CntyQryCensus!$A$103:$CX$146,CN$1)","v":7},{"$f":"VLOOKUP(DropDownList!$B$47,CntyQryCensus!$A$103:$CX$146,CO$1)","v":111},{"$f":"VLOOKUP(DropDownList!$B$47,CntyQryCensus!$A$103:$CX$146,CP$1)","v":601},{"$f":"VLOOKUP(DropDownList!$B$47,CntyQryCensus!$A$103:$CX$146,CQ$1)","v":660},{"$f":"VLOOKUP(DropDownList!$B$47,CntyQryCensus!$A$103:$CX$146,CR$1)","v":594},{"$f":"VLOOKUP(DropDownList!$B$47,CntyQryCensus!$A$103:$CX$146,CS$1)","v":464},{"$f":"VLOOKUP(DropDownList!$B$47,CntyQryCensus!$A$103:$CX$146,CT$1)","v":519},{"$f":"VLOOKUP(DropDownList!$B$47,CntyQryCensus!$A$103:$CX$146,CU$1)","v":267},{"$f":"VLOOKUP(DropDownList!$B$47,CntyQryCensus!$A$103:$CX$146,CV$1)","v":1123},{"$f":"VLOOKUP(DropDownList!$B$47,CntyQryCensus!$A$103:$CX$146,CW$1)","v":150}]
[]
[]
["Census 2000 SummaryFile3 Sample Data  -  SF3TownQry1SocialChar"]
["TOWN_NAME","LOGRECNO","COUSUB","P01TotalPopulation","P02SampleCountOfPop","P03Pop100pctCount","P05UrbanPopulation","P05RuralPopulation","P06WhiteAlone","P06BlackOrAfAm","P06AmIndAlone","P06AsianAlone","P06HawaiianOrPI","P06OtherRace","P06TwoPlusRaces","P07NotHispanicOrLatino","P07HispanicOrLatino","P08MalePop","P08FemalePop","P09PopInHouseholds","P09PopInFamHH","P09PopInNonFamHH","P09PopInGroupQtr","P13TotalHH","P13FamilyHH","P13FamHHolder15to24yrs","P13FamHHolder25to34yrs","P13FamHHolder35to44yrs","P13FamHHolder45to54yrs","P13FamHHolder55to64yrs","P13FamHHolder65to74yrs","P13FamHHolder75to84yrs","P13FamHHolder85yrsOver","P13NonFamilyHH","P13NonFamHHolder15to24yrs","P13NonFamHHolder25to34yrs","P13NonFamHHolder35to44yrs","P13NonFamHHolder45to54yrs","P13NonFamHHolder55to64yrs","P13NonFamHHolder65to74yrs","P13NonFamHHolder75to84yrs","P13NonFamHHolder85yrsOver","P18Pop15yrsOver","P18MaritalStatNeverMarried","P18MaritalStatNowMarried","P18MaritalStatSeparated","P18MaritalStatWidowed","P18MaritalStatWidowFemale","P18MaritalStatDivorced","P18MaritalStatDivorcedFemale","P21NativeBornPop","P21NatPopBornInState","P21NatPopBornOtherState","P021005","P021006","P021007","P021008","P21NatPopBornOutUS","P21ForeignBornPop","P021014","P021015","P24Pop5YrsPlus","P24ResSameHouseIn95","P24ResDiffHouseIn95","P24ResDiffHouseInUSIn95","P24ResDiffHouseSameCountyIn95","P24ResDiffHouseDiffCountyIn95","P24ResDiffHouseDiffCntySamStIn95","P24ResDiffHouseDiffCntyDifStIn95","P24ResDiffHouseDiffCntyNEStIn95","P24ResDiffHouseDiffCntyMWStIn95","P24ResDiffHouseDiffCntySoStIn95","P24ResDiffHouseDiffCntyWstStIn95","P24ResDiffInPR","P24ResDiffElsewhereIn95","P26Workers16yrsOver","P26WorkedInState","P26WorkedInCnty","P26WorkedOutsideCnty","P26WorkedOutsideState","P30Workers16Over","P30TranspToWrkCar","P30TranspToWrkPublic","P30TranspToWrkOther","P30WrkdAtHome","P31WrkrsNotWrkAtHom","P31TravTim<5min","P31TravTim5to9Min","P31TravTim10to14Min","P31TravTim15to19Min","P31TravTim20to24Min","P31TravTim25to29Min","P31TravTim30to34Min","P31TravTim35to39Min","P31TravTim40to44Min","P31TravTim45to59Min","P31TravTim60to89Min","P31TravTim90MinMore","P31WorkAtHome","P36SchEnrlPop3yrOver","P36NurserSchEnrl","P36KinderSchEnrl","P36ElemSchEnrl","P36HighSchEnrl","P36CollGradSchEnrl","P37Pop25yrsOver","P37EduAtain<9grd","P37EduAtainHSnoDip","P37EduAtainHSgrad","P37EduAtainCollNoDeg","P37EduAtainAssocDeg","P37EduAtainBachDeg","P37EduAtainGradProfDeg","P42NIPop5to15","P42NIPop5to15wDisabl","P42NIPop16to20","P42NIPop16to20wDisab","P42NIPop16to20wDisEmp","P42NIPop16to21NoDis","P42NIPop16to21NoDisEmpl","P42NIPop21to64","P42NIPop21to64wDis","P42NIPop21to64wDisEmp","P42NIPop21to64NoDis","P42NIPop21to64NoDisEmp","P42NIPop65to74","P42NIPop65to74wDis","P42NIPop75Over","P42NIPop75OverwDis","P43Pop16YrsOver","P43Pop16OvrInLaborForce","P43Pop16OvrCivlLabFrc","P43Pop16OvrCivlLbrFrcEmp","P48Families","P48MarriedFam","P48MarrFamNoWorkers","P48MarrFam1Worker","P48MarrFam2Worker","P48MarrFamHusbWifeWorked","P48MarrFamOther","P48MarrFam3PlusWorker","P48MarrFam3WorkHsbWif","P48MarrFam3PlsWrkOther","P48OtherFam","P48MaleHHNoWif","P48MaleHHNoWifNoWorker","P48MaleHHNoWif1Worker","P48MaleHHNoWif2Worker","P48MaleHHNoWif3PlusWorker","P48FemaleHHNoHsb","P48FemaleHHNoHsbNoWorker","P48FemaleHHNoHsb1Worker","P48FemaleHHNoHsb2Worker","P48FemaleHHNoHsb3Worker","P49EmpCivPop16YrOver","P49IndustAgricult","P49IndustConst","P49IndustMnftg","P49IndustWhlslTrd","P49IndustRtlTrd","P49IndustTrspWrhsUtlt","P49IndustInfrm","P49IndustFinInsRE","P49IndustPrfsScntfMngmt","P49IndustEduHlthSocSrv","P49IndustArtsEntRec","P49IndustOthrSrvc","P49IndustPubAdm","P50OccupMngmtProfs","P50OccupService","P50OccupSalesOff","P50OccupFarmFishForest","P50OccupConstExtrctMaint","P50OccupPrdctTrnspMatMv"]
[{"$f":"VLOOKUP(DropDownList!$B$47,CntyQryCensus!$A$156:$FR$198,A$1)","v":"Rochester"},{"$f":"VLOOKUP(DropDownList!$B$47,CntyQryCensus!$A$156:$FR$198,B$1)","v":"0003956"},{"$f":"VLOOKUP(DropDownList!$B$47,CntyQryCensus!$A$156:$FR$198,C$1)","v":"65140"},{"$f":"VLOOKUP(DropDownList!$B$47,CntyQryCensus!$A$156:$FR$198,D$1)","v":28461},{"$f":"VLOOKUP(DropDownList!$B$47,CntyQryCensus!$A$156:$FR$198,E$1)","v":3853},{"$f":"VLOOKUP(DropDownList!$B$47,CntyQryCensus!$A$156:$FR$198,F$1)","v":28461},{"$f":"VLOOKUP(DropDownList!$B$47,CntyQryCensus!$A$156:$FR$198,G$1)","v":22614},{"$f":"VLOOKUP(DropDownList!$B$47,CntyQryCensus!$A$156:$FR$198,H$1)","v":5847},{"$f":"VLOOKUP(DropDownList!$B$47,CntyQryCensus!$A$156:$FR$198,I$1)","v":27753},{"$f":"VLOOKUP(DropDownList!$B$47,CntyQryCensus!$A$156:$FR$198,J$1)","v":110},{"$f":"VLOOKUP(DropDownList!$B$47,CntyQryCensus!$A$156:$FR$198,K$1)","v":5},{"$f":"VLOOKUP(DropDownList!$B$47,CntyQryCensus!$A$156:$FR$198,L$1)","v":191},{"$f":"VLOOKUP(DropDownList!$B$47,CntyQryCensus!$A$156:$FR$198,M$1)","v":11},{"$f":"VLOOKUP(DropDownList!$B$47,CntyQryCensus!$A$156:$FR$198,N$1)","v":76},{"$f":"VLOOKUP(DropDownList!$B$47,CntyQryCensus!$A$156:$FR$198,O$1)","v":315},{"$f":"VLOOKUP(DropDownList!$B$47,CntyQryCensus!$A$156:$FR$198,P$1)","v":28129},{"$f":"VLOOKUP(DropDownList!$B$47,CntyQryCensus!$A$156:$FR$198,Q$1)","v":332},{"$f":"VLOOKUP(DropDownList!$B$47,CntyQryCensus!$A$156:$FR$198,R$1)","v":13857},{"$f":"VLOOKUP(DropDownList!$B$47,CntyQryCensus!$A$156:$FR$198,S$1)","v":14604},{"$f":"VLOOKUP(DropDownList!$B$47,CntyQryCensus!$A$156:$FR$198,T$1)","v":28168},{"$f":"VLOOKUP(DropDownList!$B$47,CntyQryCensus!$A$156:$FR$198,U$1)","v":23509},{"$f":"VLOOKUP(DropDownList!$B$47,CntyQryCensus!$A$156:$FR$198,V$1)","v":4659},{"$f":"VLOOKUP(DropDownList!$B$47,CntyQryCensus!$A$156:$FR$198,W$1)","v":293},{"$f":"VLOOKUP(DropDownList!$B$47,CntyQryCensus!$A$156:$FR$198,X$1)","v":11397},{"$f":"VLOOKUP(DropDownList!$B$47,CntyQryCensus!$A$156:$FR$198,Y$1)","v":7671},{"$f":"VLOOKUP(DropDownList!$B$47,CntyQryCensus!$A$156:$FR$198,Z$1)","v":266},{"$f":"VLOOKUP(DropDownList!$B$47,CntyQryCensus!$A$156:$FR$198,AA$1)","v":1520},{"$f":"VLOOKUP(DropDownList!$B$47,CntyQryCensus!$A$156:$FR$198,AB$1)","v":2076},{"$f":"VLOOKUP(DropDownList!$B$47,CntyQryCensus!$A$156:$FR$198,AC$1)","v":1578},{"$f":"VLOOKUP(DropDownList!$B$47,CntyQryCensus!$A$156:$FR$198,AD$1)","v":985},{"$f":"VLOOKUP(DropDownList!$B$47,CntyQryCensus!$A$156:$FR$198,AE$1)","v":832},{"$f":"VLOOKUP(DropDownList!$B$47,CntyQryCensus!$A$156:$FR$198,AF$1)","v":370},{"$f":"VLOOKUP(DropDownList!$B$47,CntyQryCensus!$A$156:$FR$198,AG$1)","v":44},{"$f":"VLOOKUP(DropDownList!$B$47,CntyQryCensus!$A$156:$FR$198,AH$1)","v":3726},{"$f":"VLOOKUP(DropDownList!$B$47,CntyQryCensus!$A$156:$FR$198,AI$1)","v":216},{"$f":"VLOOKUP(DropDownList!$B$47,CntyQryCensus!$A$156:$FR$198,AJ$1)","v":592},{"$f":"VLOOKUP(DropDownList!$B$47,CntyQryCensus!$A$156:$FR$198,AK$1)","v":605},{"$f":"VLOOKUP(DropDownList!$B$47,CntyQryCensus!$A$156:$FR$198,AL$1)","v":568},{"$f":"VLOOKUP(DropDownList!$B$47,CntyQryCensus!$A$156:$FR$198,AM$1)","v":504},{"$f":"VLOOKUP(DropDownList!$B$47,CntyQryCensus!$A$156:$FR$198,AN$1)","v":510},{"$f":"VLOOKUP(DropDownList!$B$47,CntyQryCensus!$A$156:$FR$198,AO$1)","v":539},{"$f":"VLOOKUP(DropDownList!$B$47,CntyQryCensus!$A$156:$FR$198,AP$1)","v":192},{"$f":"VLOOKUP(DropDownList!$B$47,CntyQryCensus!$A$156:$FR$198,AQ$1)","v":22490},{"$f":"VLOOKUP(DropDownList!$B$47,CntyQryCensus!$A$156:$FR$198,AR$1)","v":5246},{"$f":"VLOOKUP(DropDownList!$B$47,CntyQryCensus!$A$156:$FR$198,AS$1)","v":12431},{"$f":"VLOOKUP(DropDownList!$B$47,CntyQryCensus!$A$156:$FR$198,AT$1)","v":401},{"$f":"VLOOKUP(DropDownList!$B$47,CntyQryCensus!$A$156:$FR$198,AU$1)","v":1468},{"$f":"VLOOKUP(DropDownList!$B$47,CntyQryCensus!$A$156:$FR$198,AV$1)","v":1278},{"$f":"VLOOKUP(DropDownList!$B$47,CntyQryCensus!$A$156:$FR$198,AW$1)","v":2944},{"$f":"VLOOKUP(DropDownList!$B$47,CntyQryCensus!$A$156:$FR$198,AX$1)","v":1665},{"$f":"VLOOKUP(DropDownList!$B$47,CntyQryCensus!$A$156:$FR$198,AY$1)","v":27738},{"$f":"VLOOKUP(DropDownList!$B$47,CntyQryCensus!$A$156:$FR$198,AZ$1)","v":16186},{"$f":"VLOOKUP(DropDownList!$B$47,CntyQryCensus!$A$156:$FR$198,BA$1)","v":11203},{"$f":"VLOOKUP(DropDownList!$B$47,CntyQryCensus!$A$156:$FR$198,BB$1)","v":8937},{"$f":"VLOOKUP(DropDownList!$B$47,CntyQryCensus!$A$156:$FR$198,BC$1)","v":819},{"$f":"VLOOKUP(DropDownList!$B$47,CntyQryCensus!$A$156:$FR$198,BD$1)","v":955},{"$f":"VLOOKUP(DropDownList!$B$47,CntyQryCensus!$A$156:$FR$198,BE$1)","v":492},{"$f":"VLOOKUP(DropDownList!$B$47,CntyQryCensus!$A$156:$FR$198,BF$1)","v":349},{"$f":"VLOOKUP(DropDownList!$B$47,CntyQryCensus!$A$156:$FR$198,BG$1)","v":723},{"$f":"VLOOKUP(DropDownList!$B$47,CntyQryCensus!$A$156:$FR$198,BH$1)","v":417},{"$f":"VLOOKUP(DropDownList!$B$47,CntyQryCensus!$A$156:$FR$198,BI$1)","v":306},{"$f":"VLOOKUP(DropDownList!$B$47,CntyQryCensus!$A$156:$FR$198,BJ$1)","v":26567},{"$f":"VLOOKUP(DropDownList!$B$47,CntyQryCensus!$A$156:$FR$198,BK$1)","v":13721},{"$f":"VLOOKUP(DropDownList!$B$47,CntyQryCensus!$A$156:$FR$198,BL$1)","v":12846},{"$f":"VLOOKUP(DropDownList!$B$47,CntyQryCensus!$A$156:$FR$198,BM$1)","v":12721},{"$f":"VLOOKUP(DropDownList!$B$47,CntyQryCensus!$A$156:$FR$198,BN$1)","v":7981},{"$f":"VLOOKUP(DropDownList!$B$47,CntyQryCensus!$A$156:$FR$198,BO$1)","v":4740},{"$f":"VLOOKUP(DropDownList!$B$47,CntyQryCensus!$A$156:$FR$198,BP$1)","v":1603},{"$f":"VLOOKUP(DropDownList!$B$47,CntyQryCensus!$A$156:$FR$198,BQ$1)","v":3137},{"$f":"VLOOKUP(DropDownList!$B$47,CntyQryCensus!$A$156:$FR$198,BR$1)","v":1890},{"$f":"VLOOKUP(DropDownList!$B$47,CntyQryCensus!$A$156:$FR$198,BS$1)","v":240},{"$f":"VLOOKUP(DropDownList!$B$47,CntyQryCensus!$A$156:$FR$198,BT$1)","v":695},{"$f":"VLOOKUP(DropDownList!$B$47,CntyQryCensus!$A$156:$FR$198,BU$1)","v":312},{"$f":"VLOOKUP(DropDownList!$B$47,CntyQryCensus!$A$156:$FR$198,BV$1)","v":0},{"$f":"VLOOKUP(DropDownList!$B$47,CntyQryCensus!$A$156:$FR$198,BW$1)","v":125},{"$f":"VLOOKUP(DropDownList!$B$47,CntyQryCensus!$A$156:$FR$198,BX$1)","v":14407},{"$f":"VLOOKUP(DropDownList!$B$47,CntyQryCensus!$A$156:$FR$198,BY$1)","v":13412},{"$f":"VLOOKUP(DropDownList!$B$47,CntyQryCensus!$A$156:$FR$198,BZ$1)","v":9640},{"$f":"VLOOKUP(DropDownList!$B$47,CntyQryCensus!$A$156:$FR$198,CA$1)","v":3772},{"$f":"VLOOKUP(DropDownList!$B$47,CntyQryCensus!$A$156:$FR$198,CB$1)","v":995},{"$f":"VLOOKUP(DropDownList!$B$47,CntyQryCensus!$A$156:$FR$198,CC$1)","v":14407},{"$f":"VLOOKUP(DropDownList!$B$47,CntyQryCensus!$A$156:$FR$198,CD$1)","v":13616},{"$f":"VLOOKUP(DropDownList!$B$47,CntyQryCensus!$A$156:$FR$198,CE$1)","v":86},{"$f":"VLOOKUP(DropDownList!$B$47,CntyQryCensus!$A$156:$FR$198,CF$1)","v":1659},{"$f":"VLOOKUP(DropDownList!$B$47,CntyQryCensus!$A$156:$FR$198,CG$1)","v":332},{"$f":"VLOOKUP(DropDownList!$B$47,CntyQryCensus!$A$156:$FR$198,CH$1)","v":14075},{"$f":"VLOOKUP(DropDownList!$B$47,CntyQryCensus!$A$156:$FR$198,CI$1)","v":450},{"$f":"VLOOKUP(DropDownList!$B$47,CntyQryCensus!$A$156:$FR$198,CJ$1)","v":1681},{"$f":"VLOOKUP(DropDownList!$B$47,CntyQryCensus!$A$156:$FR$198,CK$1)","v":2294},{"$f":"VLOOKUP(DropDownList!$B$47,CntyQryCensus!$A$156:$FR$198,CL$1)","v":2125},{"$f":"VLOOKUP(DropDownList!$B$47,CntyQryCensus!$A$156:$FR$198,CM$1)","v":2202},{"$f":"VLOOKUP(DropDownList!$B$47,CntyQryCensus!$A$156:$FR$198,CN$1)","v":813},{"$f":"VLOOKUP(DropDownList!$B$47,CntyQryCensus!$A$156:$FR$198,CO$1)","v":1870},{"$f":"VLOOKUP(DropDownList!$B$47,CntyQryCensus!$A$156:$FR$198,CP$1)","v":406},{"$f":"VLOOKUP(DropDownList!$B$47,CntyQryCensus!$A$156:$FR$198,CQ$1)","v":451},{"$f":"VLOOKUP(DropDownList!$B$47,CntyQryCensus!$A$156:$FR$198,CR$1)","v":929},{"$f":"VLOOKUP(DropDownList!$B$47,CntyQryCensus!$A$156:$FR$198,CS$1)","v":587},{"$f":"VLOOKUP(DropDownList!$B$47,CntyQryCensus!$A$156:$FR$198,CT$1)","v":267},{"$f":"VLOOKUP(DropDownList!$B$47,CntyQryCensus!$A$156:$FR$198,CU$1)","v":332},{"$f":"VLOOKUP(DropDownList!$B$47,CntyQryCensus!$A$156:$FR$198,CV$1)","v":27274},{"$f":"VLOOKUP(DropDownList!$B$47,CntyQryCensus!$A$156:$FR$198,CW$1)","v":489},{"$f":"VLOOKUP(DropDownList!$B$47,CntyQryCensus!$A$156:$FR$198,CX$1)","v":302},{"$f":"VLOOKUP(DropDownList!$B$47,CntyQryCensus!$A$156:$FR$198,CY$1)","v":3387},{"$f":"VLOOKUP(DropDownList!$B$47,CntyQryCensus!$A$156:$FR$198,CZ$1)","v":1635},{"$f":"VLOOKUP(DropDownList!$B$47,CntyQryCensus!$A$156:$FR$198,DA$1)","v":1080},{"$f":"VLOOKUP(DropDownList!$B$47,CntyQryCensus!$A$156:$FR$198,DB$1)","v":19122},{"$f":"VLOOKUP(DropDownList!$B$47,CntyQryCensus!$A$156:$FR$198,DC$1)","v":1009},{"$f":"VLOOKUP(DropDownList!$B$47,CntyQryCensus!$A$156:$FR$198,DD$1)","v":2271},{"$f":"VLOOKUP(DropDownList!$B$47,CntyQryCensus!$A$156:$FR$198,DE$1)","v":7264},{"$f":"VLOOKUP(DropDownList!$B$47,CntyQryCensus!$A$156:$FR$198,DF$1)","v":4004},{"$f":"VLOOKUP(DropDownList!$B$47,CntyQryCensus!$A$156:$FR$198,DG$1)","v":1666},{"$f":"VLOOKUP(DropDownList!$B$47,CntyQryCensus!$A$156:$FR$198,DH$1)","v":1953},{"$f":"VLOOKUP(DropDownList!$B$47,CntyQryCensus!$A$156:$FR$198,DI$1)","v":955},{"$f":"VLOOKUP(DropDownList!$B$47,CntyQryCensus!$A$156:$FR$198,DJ$1)","v":4502},{"$f":"VLOOKUP(DropDownList!$B$47,CntyQryCensus!$A$156:$FR$198,DK$1)","v":384},{"$f":"VLOOKUP(DropDownList!$B$47,CntyQryCensus!$A$156:$FR$198,DL$1)","v":1719},{"$f":"VLOOKUP(DropDownList!$B$47,CntyQryCensus!$A$156:$FR$198,DM$1)","v":154},{"$f":"VLOOKUP(DropDownList!$B$47,CntyQryCensus!$A$156:$FR$198,DN$1)","v":70},{"$f":"VLOOKUP(DropDownList!$B$47,CntyQryCensus!$A$156:$FR$198,DO$1)","v":1565},{"$f":"VLOOKUP(DropDownList!$B$47,CntyQryCensus!$A$156:$FR$198,DP$1)","v":941},{"$f":"VLOOKUP(DropDownList!$B$47,CntyQryCensus!$A$156:$FR$198,DQ$1)","v":16484},{"$f":"VLOOKUP(DropDownList!$B$47,CntyQryCensus!$A$156:$FR$198,DR$1)","v":3336},{"$f":"VLOOKUP(DropDownList!$B$47,CntyQryCensus!$A$156:$FR$198,DS$1)","v":2104},{"$f":"VLOOKUP(DropDownList!$B$47,CntyQryCensus!$A$156:$FR$198,DT$1)","v":13148},{"$f":"VLOOKUP(DropDownList!$B$47,CntyQryCensus!$A$156:$FR$198,DU$1)","v":11223},{"$f":"VLOOKUP(DropDownList!$B$47,CntyQryCensus!$A$156:$FR$198,DV$1)","v":2074},{"$f":"VLOOKUP(DropDownList!$B$47,CntyQryCensus!$A$156:$FR$198,DW$1)","v":779},{"$f":"VLOOKUP(DropDownList!$B$47,CntyQryCensus!$A$156:$FR$198,DX$1)","v":1535},{"$f":"VLOOKUP(DropDownList!$B$47,CntyQryCensus!$A$156:$FR$198,DY$1)","v":755},{"$f":"VLOOKUP(DropDownList!$B$47,CntyQryCensus!$A$156:$FR$198,DZ$1)","v":22045},{"$f":"VLOOKUP(DropDownList!$B$47,CntyQryCensus!$A$156:$FR$198,EA$1)","v":15252},{"$f":"VLOOKUP(DropDownList!$B$47,CntyQryCensus!$A$156:$FR$198,EB$1)","v":15232},{"$f":"VLOOKUP(DropDownList!$B$47,CntyQryCensus!$A$156:$FR$198,EC$1)","v":14668},{"$f":"VLOOKUP(DropDownList!$B$47,CntyQryCensus!$A$156:$FR$198,ED$1)","v":7671},{"$f":"VLOOKUP(DropDownList!$B$47,CntyQryCensus!$A$156:$FR$198,EE$1)","v":5986},{"$f":"VLOOKUP(DropDownList!$B$47,CntyQryCensus!$A$156:$FR$198,EF$1)","v":719},{"$f":"VLOOKUP(DropDownList!$B$47,CntyQryCensus!$A$156:$FR$198,EG$1)","v":1072},{"$f":"VLOOKUP(DropDownList!$B$47,CntyQryCensus!$A$156:$FR$198,EH$1)","v":3216},{"$f":"VLOOKUP(DropDownList!$B$47,CntyQryCensus!$A$156:$FR$198,EI$1)","v":3116},{"$f":"VLOOKUP(DropDownList!$B$47,CntyQryCensus!$A$156:$FR$198,EJ$1)","v":100},{"$f":"VLOOKUP(DropDownList!$B$47,CntyQryCensus!$A$156:$FR$198,EK$1)","v":979},{"$f":"VLOOKUP(DropDownList!$B$47,CntyQryCensus!$A$156:$FR$198,EL$1)","v":931},{"$f":"VLOOKUP(DropDownList!$B$47,CntyQryCensus!$A$156:$FR$198,EM$1)","v":48},{"$f":"VLOOKUP(DropDownList!$B$47,CntyQryCensus!$A$156:$FR$198,EN$1)","v":1685},{"$f":"VLOOKUP(DropDownList!$B$47,CntyQryCensus!$A$156:$FR$198,EO$1)","v":457},{"$f":"VLOOKUP(DropDownList!$B$47,CntyQryCensus!$A$156:$FR$198,EP$1)","v":43},{"$f":"VLOOKUP(DropDownList!$B$47,CntyQryCensus!$A$156:$FR$198,EQ$1)","v":267},{"$f":"VLOOKUP(DropDownList!$B$47,CntyQryCensus!$A$156:$FR$198,ER$1)","v":124},{"$f":"VLOOKUP(DropDownList!$B$47,CntyQryCensus!$A$156:$FR$198,ES$1)","v":23},{"$f":"VLOOKUP(DropDownList!$B$47,CntyQryCensus!$A$156:$FR$198,ET$1)","v":1228},{"$f":"VLOOKUP(DropDownList!$B$47,CntyQryCensus!$A$156:$FR$198,EU$1)","v":110},{"$f":"VLOOKUP(DropDownList!$B$47,CntyQryCensus!$A$156:$FR$198,EV$1)","v":795},{"$f":"VLOOKUP(DropDownList!$B$47,CntyQryCensus!$A$156:$FR$198,EW$1)","v":213},{"$f":"VLOOKUP(DropDownList!$B$47,CntyQryCensus!$A$156:$FR$198,EX$1)","v":110},{"$f":"VLOOKUP(DropDownList!$B$47,CntyQryCensus!$A$156:$FR$198,EY$1)","v":14668},{"$f":"VLOOKUP(DropDownList!$B$47,CntyQryCensus!$A$156:$FR$198,EZ$1)","v":119},{"$f":"VLOOKUP(DropDownList!$B$47,CntyQryCensus!$A$156:$FR$198,FA$1)","v":767},{"$f":"VLOOKUP(DropDownList!$B$47,CntyQryCensus!$A$156:$FR$198,FB$1)","v":3525},{"$f":"VLOOKUP(DropDownList!$B$47,CntyQryCensus!$A$156:$FR$198,FC$1)","v":384},{"$f":"VLOOKUP(DropDownList!$B$47,CntyQryCensus!$A$156:$FR$198,FD$1)","v":2394},{"$f":"VLOOKUP(DropDownList!$B$47,CntyQryCensus!$A$156:$FR$198,FE$1)","v":634},{"$f":"VLOOKUP(DropDownList!$B$47,CntyQryCensus!$A$156:$FR$198,FF$1)","v":407},{"$f":"VLOOKUP(DropDownList!$B$47,CntyQryCensus!$A$156:$FR$198,FG$1)","v":846},{"$f":"VLOOKUP(DropDownList!$B$47,CntyQryCensus!$A$156:$FR$198,FH$1)","v":997},{"$f":"VLOOKUP(DropDownList!$B$47,CntyQryCensus!$A$156:$FR$198,FI$1)","v":2549},{"$f":"VLOOKUP(DropDownList!$B$47,CntyQryCensus!$A$156:$FR$198,FJ$1)","v":852},{"$f":"VLOOKUP(DropDownList!$B$47,CntyQryCensus!$A$156:$FR$198,FK$1)","v":567},{"$f":"VLOOKUP(DropDownList!$B$47,CntyQryCensus!$A$156:$FR$198,FL$1)","v":627},{"$f":"VLOOKUP(DropDownList!$B$47,CntyQryCensus!$A$156:$FR$198,FM$1)","v":3673},{"$f":"VLOOKUP(DropDownList!$B$47,CntyQryCensus!$A$156:$FR$198,FN$1)","v":2288},{"$f":"VLOOKUP(DropDownList!$B$47,CntyQryCensus!$A$156:$FR$198,FO$1)","v":4022},{"$f":"VLOOKUP(DropDownList!$B$47,CntyQryCensus!$A$156:$FR$198,FP$1)","v":53},{"$f":"VLOOKUP(DropDownList!$B$47,CntyQryCensus!$A$156:$FR$198,FQ$1)","v":1425},{"$f":"VLOOKUP(DropDownList!$B$47,CntyQryCensus!$A$156:$FR$198,FR$1)","v":3207}]
[]
[]
["Census 2000 SummaryFile3 Sample Data  -  SF3TownQry2aIncomeChar"]
["NAME","LOGRECNO","COUNTY","TotalPop","P52Households1","P52HHInc<10K","P52HHInc10to15K","P52HHInc15to20K","P52HHInc20to25K","P52HHInc25to30K","P52HHInc30to35K","P52HHInc35to40K","P52HHInc40to45K","P52HHInc45to50K","P52HHInc50to60K","P52HHInc60to75K","P52HHInc75to100K","P52HHInc100to125K","P52HHInc125to150K","P52HHInc150to200K","P52HHInc>200K","P53MedianHHInc","P54AggregHHInc","P55Households2","P55HHUnder25yrs","P55HH<25HHInc<10K","P55HH<25HHInc10to15K","P55HH<25HHInc15to20K","P55HH<25HHInc20to25K","P55HH<25HHInc25to30K","P55HH<25HHInc30to35K","P55HH<25HHInc35to40K","P55HH<25HHInc40to45K","P55HH<25HHInc45to50K","P55HH<25HHInc50to60K","P55HH<25HHInc60to75K","P55HH<25HHInc75to100K","P55HH<25HHInc100to125K","P55HH<25HHInc125to150K","P55HH<25HHInc150to200K","P55HH<25HHInc>200K","P55HH25to34yrs","P55HH25to34HHInc<10K","P55HH25to34HHInc10to15K","P55HH25to34HHInc15to20K","P55HH25to34HHInc20to25K","P55HH25to34HHInc25to30K","P55HH25to34HHInc30to35K","P55HH25to34HHInc35to40K","P55HH25to34HHInc40to45K","P55HH25to34HHInc45to50K","P55HH25to34HHInc50to60K","P55HH25to34HHInc60to75K","P55HH25to34HHInc75to100K","P55HH25to34HHInc100to125K","P55HH25to34HHInc125to150K","P55HH25to34HHInc150to200K","P55HH25to34HHInc>200K","P55HH35to44yrs","P55HH35to44HHInc<10K","P55HH35to44HHInc10to15K","P55HH35to44HHInc15to20K","P55HH35to44HHInc20to25K","P55HH35to44HHInc25to30K","P55HH35to44HHInc30to35K","P55HH35to44HHInc35to40K","P55HH35to44HHInc40to45K","P55HH35to44HHInc45to50K","P55HH35to44HHInc50to60K","P55HH35to44HHInc60to75K","P55HH35to44HHInc75to100K","P55HH35to44HHInc100to125K","P55HH35to44HHInc125to150K","P55HH35to44HHInc150to200K","P55HH35to44HHInc>200K","P55HH45to54yrs","P55HH45to55HHInc<10K","P55HH45to55HHInc10to15K","P55HH45to55HHInc15to20K","P55HH45to55HHInc20to25K","P55HH45to55HHInc25to30K","P55HH45to55HHInc30to35K","P55HH45to55HHInc35to40K","P55HH45to55HHInc40to45K","P55HH45to55HHInc45to50K","P55HH45to55HHInc50to60K","P55HH45to55HHInc60to75K","P55HH45to55HHInc75to100K","P55HH45to55HHInc100to125K","P55HH45to55HHInc125to150K","P55HH45to55HHInc150to200K","P55HH45to55HHInc>200K","P55HH55to64yrs","P55HH55to64HHInc<10K","P55HH55to64HHInc10to15K","P55HH55to64HHInc15to20K","P55HH55to64HHInc20to25K","P55HH55to64HHInc25to30K","P55HH55to64HHInc30to35K","P55HH55to64HHInc35to40K","P55HH55to64HHInc40to45K","P55HH55to64HHInc45to50K","P55HH55to64HHInc50to60K","P55HH55to64HHInc60to75K","P55HH55to64HHInc75to100K","P55HH55to64HHInc100to125K","P55HH55to64HHInc125to150K","P55HH55to64HHInc150to200K","P55HH55to64HHInc>200K","P55HH65to74yrs","P55HH65to74HHInc<10K","P55HH65to74HHInc10to15K","P55HH65to74HHInc15to20K","P55HH65to74HHInc20to25K","P55HH65to74HHInc25to30K","P55HH65to74HHInc30to35K","P55HH65to74HHInc35to40K","P55HH65to74HHInc40to45K","P55HH65to74HHInc45to50K","P55HH65to74HHInc50to60K","P55HH65to74HHInc60to75K","P55HH65to74HHInc75to100K","P55HH65to74HHInc100to125K","P55HH65to74HHInc125to150K","P55HH65to74HHInc150to200K","P55HH65to74HHInc>200K","P55HH>75yrs","P55HH>75HHInc<10K","P55HH>75HHInc10to15K","P55HH>75HHInc15to20K","P55HH>75HHInc20to25K","P55HH>75HHInc25to30K","P55HH>75HHInc30to35K","P55HH>75HHInc35to40K","P55HH>75HHInc40to45K","P55HH>75HHInc45to50K","P55HH>75HHInc50to60K","P55HH>75HHInc60to75K","P55HH>75HHInc75to100K","P55HH>75HHInc100to125K","P55HH>75HHInc125to150K","P55HH>75HHInc150to200K","P55HH>75HHInc>200K","P56MedHHInc","P56MedHHIncHH<25y","P56MedHHIncHH25to34y","P56MedHHIncHH35to44y","P56MedHHIncHH45to54y","P56MedHHIncHH55to64y","P56MedHHIncHH65to74y","P56MedHHIncHH>75y","P58Households3","P58HHwithEarnings","P58HHNoEarnings","P59HHwWageSalInc","P59HHNoWageSalInc","P60HHwSelfEmpInc","P60HHNoSelfEmpInc","P61HHwIndDivInc","P61HHNoIndDivInc","P62HHwSocSecInc","P62HHNoSocSecInc","P63HHwSSI","P63HHNoSSI","P64HHwPubAssInc","P64HHNoPubAssInc","P65HHwRetInc","P65HHNoRetInc","P66HHwOtherTypInc","P66HHNoOtherTypInc","P67AggregEarnings","P68AggregWageSalInc","P69AggregSelfEmpInc","P70AggregIntDivInc","P71AggregSocSecInc","P72AggregSSIInc","P73AggregPublicAssInc","P74AggregRetireInc","P76Families1","P76FamInc<10K","P76FamInc10to15K","P76FamInc15to20K","P76FamInc20to25K","P76FamInc25to30K","P76FamInc30to35K","P76FamInc35to40K","P76FamInc40to45K","P76FamInc45to50K","P76FamInc50to60K","P76FamInc60to75K","P76FamInc75to100K","P76FamInc100to125K","P76FamInc125to150K","P76FamInc150to200K","P76FamInc>200K","P77MedFamInc","P78AggregFamInc","P79NonFamHH","P79NonFamHHwInc<10K","P79NonFamHHwInc10to15K","P79NonFamHHwInc15to20K","P79NonFamHHwInc20to25K","P79NonFamHHwInc25to30K","P79NonFamHHwInc30to35K","P79NonFamHHwInc35to40K","P79NonFamHHwInc40to45K","P79NonFamHHwInc45to50K","P79NonFamHHwInc50to60K","P79NonFamHHwInc60to75K","P79NonFamHHwInc75to100K","P79NonFamHHwInc100to125K","P79NonFamHHwInc125to150K","P79NonFamHHwInc150to200K","P79NonFamHHwInc200KorMore","P80MedNonFamInc","P82PerCapitaInc"]
[{"$f":"VLOOKUP(DropDownList!$B$47,CntyQryCensus!$A$206:$HH$248,A$1)","v":"Rochester"},{"$f":"VLOOKUP(DropDownList!$B$47,CntyQryCensus!$A$206:$HH$248,B$1)","v":"0003956"},{"$f":"VLOOKUP(DropDownList!$B$47,CntyQryCensus!$A$206:$HH$248,C$1)","v":"65140"},{"$f":"VLOOKUP(DropDownList!$B$47,CntyQryCensus!$A$206:$HH$248,D$1)","v":28461},{"$f":"VLOOKUP(DropDownList!$B$47,CntyQryCensus!$A$206:$HH$248,E$1)","v":11397},{"$f":"VLOOKUP(DropDownList!$B$47,CntyQryCensus!$A$206:$HH$248,F$1)","v":857},{"$f":"VLOOKUP(DropDownList!$B$47,CntyQryCensus!$A$206:$HH$248,G$1)","v":765},{"$f":"VLOOKUP(DropDownList!$B$47,CntyQryCensus!$A$206:$HH$248,H$1)","v":696},{"$f":"VLOOKUP(DropDownList!$B$47,CntyQryCensus!$A$206:$HH$248,I$1)","v":850},{"$f":"VLOOKUP(DropDownList!$B$47,CntyQryCensus!$A$206:$HH$248,J$1)","v":702},{"$f":"VLOOKUP(DropDownList!$B$47,CntyQryCensus!$A$206:$HH$248,K$1)","v":898},{"$f":"VLOOKUP(DropDownList!$B$47,CntyQryCensus!$A$206:$HH$248,L$1)","v":816},{"$f":"VLOOKUP(DropDownList!$B$47,CntyQryCensus!$A$206:$HH$248,M$1)","v":904},{"$f":"VLOOKUP(DropDownList!$B$47,CntyQryCensus!$A$206:$HH$248,N$1)","v":733},{"$f":"VLOOKUP(DropDownList!$B$47,CntyQryCensus!$A$206:$HH$248,O$1)","v":1170},{"$f":"VLOOKUP(DropDownList!$B$47,CntyQryCensus!$A$206:$HH$248,P$1)","v":1331},{"$f":"VLOOKUP(DropDownList!$B$47,CntyQryCensus!$A$206:$HH$248,Q$1)","v":965},{"$f":"VLOOKUP(DropDownList!$B$47,CntyQryCensus!$A$206:$HH$248,R$1)","v":401},{"$f":"VLOOKUP(DropDownList!$B$47,CntyQryCensus!$A$206:$HH$248,S$1)","v":108},{"$f":"VLOOKUP(DropDownList!$B$47,CntyQryCensus!$A$206:$HH$248,T$1)","v":118},{"$f":"VLOOKUP(DropDownList!$B$47,CntyQryCensus!$A$206:$HH$248,U$1)","v":83},{"$f":"VLOOKUP(DropDownList!$B$47,CntyQryCensus!$A$206:$HH$248,V$1)","v":40596},{"$f":"VLOOKUP(DropDownList!$B$47,CntyQryCensus!$A$206:$HH$248,W$1)","v":531067100},{"$f":"VLOOKUP(DropDownList!$B$47,CntyQryCensus!$A$206:$HH$248,X$1)","v":11397},{"$f":"VLOOKUP(DropDownList!$B$47,CntyQryCensus!$A$206:$HH$248,Y$1)","v":482},{"$f":"VLOOKUP(DropDownList!$B$47,CntyQryCensus!$A$206:$HH$248,Z$1)","v":60},{"$f":"VLOOKUP(DropDownList!$B$47,CntyQryCensus!$A$206:$HH$248,AA$1)","v":56},{"$f":"VLOOKUP(DropDownList!$B$47,CntyQryCensus!$A$206:$HH$248,AB$1)","v":17},{"$f":"VLOOKUP(DropDownList!$B$47,CntyQryCensus!$A$206:$HH$248,AC$1)","v":75},{"$f":"VLOOKUP(DropDownList!$B$47,CntyQryCensus!$A$206:$HH$248,AD$1)","v":30},{"$f":"VLOOKUP(DropDownList!$B$47,CntyQryCensus!$A$206:$HH$248,AE$1)","v":43},{"$f":"VLOOKUP(DropDownList!$B$47,CntyQryCensus!$A$206:$HH$248,AF$1)","v":69},{"$f":"VLOOKUP(DropDownList!$B$47,CntyQryCensus!$A$206:$HH$248,AG$1)","v":41},{"$f":"VLOOKUP(DropDownList!$B$47,CntyQryCensus!$A$206:$HH$248,AH$1)","v":33},{"$f":"VLOOKUP(DropDownList!$B$47,CntyQryCensus!$A$206:$HH$248,AI$1)","v":8},{"$f":"VLOOKUP(DropDownList!$B$47,CntyQryCensus!$A$206:$HH$248,AJ$1)","v":27},{"$f":"VLOOKUP(DropDownList!$B$47,CntyQryCensus!$A$206:$HH$248,AK$1)","v":23},{"$f":"VLOOKUP(DropDownList!$B$47,CntyQryCensus!$A$206:$HH$248,AL$1)","v":0},{"$f":"VLOOKUP(DropDownList!$B$47,CntyQryCensus!$A$206:$HH$248,AM$1)","v":0},{"$f":"VLOOKUP(DropDownList!$B$47,CntyQryCensus!$A$206:$HH$248,AN$1)","v":0},{"$f":"VLOOKUP(DropDownList!$B$47,CntyQryCensus!$A$206:$HH$248,AO$1)","v":0},{"$f":"VLOOKUP(DropDownList!$B$47,CntyQryCensus!$A$206:$HH$248,AP$1)","v":2112},{"$f":"VLOOKUP(DropDownList!$B$47,CntyQryCensus!$A$206:$HH$248,AQ$1)","v":117},{"$f":"VLOOKUP(DropDownList!$B$47,CntyQryCensus!$A$206:$HH$248,AR$1)","v":117},{"$f":"VLOOKUP(DropDownList!$B$47,CntyQryCensus!$A$206:$HH$248,AS$1)","v":130},{"$f":"VLOOKUP(DropDownList!$B$47,CntyQryCensus!$A$206:$HH$248,AT$1)","v":133},{"$f":"VLOOKUP(DropDownList!$B$47,CntyQryCensus!$A$206:$HH$248,AU$1)","v":154},{"$f":"VLOOKUP(DropDownList!$B$47,CntyQryCensus!$A$206:$HH$248,AV$1)","v":130},{"$f":"VLOOKUP(DropDownList!$B$47,CntyQryCensus!$A$206:$HH$248,AW$1)","v":159},{"$f":"VLOOKUP(DropDownList!$B$47,CntyQryCensus!$A$206:$HH$248,AX$1)","v":203},{"$f":"VLOOKUP(DropDownList!$B$47,CntyQryCensus!$A$206:$HH$248,AY$1)","v":210},{"$f":"VLOOKUP(DropDownList!$B$47,CntyQryCensus!$A$206:$HH$248,AZ$1)","v":285},{"$f":"VLOOKUP(DropDownList!$B$47,CntyQryCensus!$A$206:$HH$248,BA$1)","v":304},{"$f":"VLOOKUP(DropDownList!$B$47,CntyQryCensus!$A$206:$HH$248,BB$1)","v":113},{"$f":"VLOOKUP(DropDownList!$B$47,CntyQryCensus!$A$206:$HH$248,BC$1)","v":31},{"$f":"VLOOKUP(DropDownList!$B$47,CntyQryCensus!$A$206:$HH$248,BD$1)","v":26},{"$f":"VLOOKUP(DropDownList!$B$47,CntyQryCensus!$A$206:$HH$248,BE$1)","v":0},{"$f":"VLOOKUP(DropDownList!$B$47,CntyQryCensus!$A$206:$HH$248,BF$1)","v":0},{"$f":"VLOOKUP(DropDownList!$B$47,CntyQryCensus!$A$206:$HH$248,BG$1)","v":2681},{"$f":"VLOOKUP(DropDownList!$B$47,CntyQryCensus!$A$206:$HH$248,BH$1)","v":105},{"$f":"VLOOKUP(DropDownList!$B$47,CntyQryCensus!$A$206:$HH$248,BI$1)","v":102},{"$f":"VLOOKUP(DropDownList!$B$47,CntyQryCensus!$A$206:$HH$248,BJ$1)","v":68},{"$f":"VLOOKUP(DropDownList!$B$47,CntyQryCensus!$A$206:$HH$248,BK$1)","v":130},{"$f":"VLOOKUP(DropDownList!$B$47,CntyQryCensus!$A$206:$HH$248,BL$1)","v":179},{"$f":"VLOOKUP(DropDownList!$B$47,CntyQryCensus!$A$206:$HH$248,BM$1)","v":181},{"$f":"VLOOKUP(DropDownList!$B$47,CntyQryCensus!$A$206:$HH$248,BN$1)","v":171},{"$f":"VLOOKUP(DropDownList!$B$47,CntyQryCensus!$A$206:$HH$248,BO$1)","v":226},{"$f":"VLOOKUP(DropDownList!$B$47,CntyQryCensus!$A$206:$HH$248,BP$1)","v":186},{"$f":"VLOOKUP(DropDownList!$B$47,CntyQryCensus!$A$206:$HH$248,BQ$1)","v":358},{"$f":"VLOOKUP(DropDownList!$B$47,CntyQryCensus!$A$206:$HH$248,BR$1)","v":435},{"$f":"VLOOKUP(DropDownList!$B$47,CntyQryCensus!$A$206:$HH$248,BS$1)","v":295},{"$f":"VLOOKUP(DropDownList!$B$47,CntyQryCensus!$A$206:$HH$248,BT$1)","v":184},{"$f":"VLOOKUP(DropDownList!$B$47,CntyQryCensus!$A$206:$HH$248,BU$1)","v":30},{"$f":"VLOOKUP(DropDownList!$B$47,CntyQryCensus!$A$206:$HH$248,BV$1)","v":19},{"$f":"VLOOKUP(DropDownList!$B$47,CntyQryCensus!$A$206:$HH$248,BW$1)","v":12},{"$f":"VLOOKUP(DropDownList!$B$47,CntyQryCensus!$A$206:$HH$248,BX$1)","v":2146},{"$f":"VLOOKUP(DropDownList!$B$47,CntyQryCensus!$A$206:$HH$248,BY$1)","v":125},{"$f":"VLOOKUP(DropDownList!$B$47,CntyQryCensus!$A$206:$HH$248,BZ$1)","v":59},{"$f":"VLOOKUP(DropDownList!$B$47,CntyQryCensus!$A$206:$HH$248,CA$1)","v":72},{"$f":"VLOOKUP(DropDownList!$B$47,CntyQryCensus!$A$206:$HH$248,CB$1)","v":128},{"$f":"VLOOKUP(DropDownList!$B$47,CntyQryCensus!$A$206:$HH$248,CC$1)","v":86},{"$f":"VLOOKUP(DropDownList!$B$47,CntyQryCensus!$A$206:$HH$248,CD$1)","v":167},{"$f":"VLOOKUP(DropDownList!$B$47,CntyQryCensus!$A$206:$HH$248,CE$1)","v":150},{"$f":"VLOOKUP(DropDownList!$B$47,CntyQryCensus!$A$206:$HH$248,CF$1)","v":201},{"$f":"VLOOKUP(DropDownList!$B$47,CntyQryCensus!$A$206:$HH$248,CG$1)","v":101},{"$f":"VLOOKUP(DropDownList!$B$47,CntyQryCensus!$A$206:$HH$248,CH$1)","v":270},{"$f":"VLOOKUP(DropDownList!$B$47,CntyQryCensus!$A$206:$HH$248,CI$1)","v":276},{"$f":"VLOOKUP(DropDownList!$B$47,CntyQryCensus!$A$206:$HH$248,CJ$1)","v":329},{"$f":"VLOOKUP(DropDownList!$B$47,CntyQryCensus!$A$206:$HH$248,CK$1)","v":87},{"$f":"VLOOKUP(DropDownList!$B$47,CntyQryCensus!$A$206:$HH$248,CL$1)","v":52},{"$f":"VLOOKUP(DropDownList!$B$47,CntyQryCensus!$A$206:$HH$248,CM$1)","v":31},{"$f":"VLOOKUP(DropDownList!$B$47,CntyQryCensus!$A$206:$HH$248,CN$1)","v":12},{"$f":"VLOOKUP(DropDownList!$B$47,CntyQryCensus!$A$206:$HH$248,CO$1)","v":1489},{"$f":"VLOOKUP(DropDownList!$B$47,CntyQryCensus!$A$206:$HH$248,CP$1)","v":119},{"$f":"VLOOKUP(DropDownList!$B$47,CntyQryCensus!$A$206:$HH$248,CQ$1)","v":53},{"$f":"VLOOKUP(DropDownList!$B$47,CntyQryCensus!$A$206:$HH$248,CR$1)","v":69},{"$f":"VLOOKUP(DropDownList!$B$47,CntyQryCensus!$A$206:$HH$248,CS$1)","v":113},{"$f":"VLOOKUP(DropDownList!$B$47,CntyQryCensus!$A$206:$HH$248,CT$1)","v":51},{"$f":"VLOOKUP(DropDownList!$B$47,CntyQryCensus!$A$206:$HH$248,CU$1)","v":130},{"$f":"VLOOKUP(DropDownList!$B$47,CntyQryCensus!$A$206:$HH$248,CV$1)","v":111},{"$f":"VLOOKUP(DropDownList!$B$47,CntyQryCensus!$A$206:$HH$248,CW$1)","v":131},{"$f":"VLOOKUP(DropDownList!$B$47,CntyQryCensus!$A$206:$HH$248,CX$1)","v":153},{"$f":"VLOOKUP(DropDownList!$B$47,CntyQryCensus!$A$206:$HH$248,CY$1)","v":128},{"$f":"VLOOKUP(DropDownList!$B$47,CntyQryCensus!$A$206:$HH$248,CZ$1)","v":143},{"$f":"VLOOKUP(DropDownList!$B$47,CntyQryCensus!$A$206:$HH$248,DA$1)","v":138},{"$f":"VLOOKUP(DropDownList!$B$47,CntyQryCensus!$A$206:$HH$248,DB$1)","v":66},{"$f":"VLOOKUP(DropDownList!$B$47,CntyQryCensus!$A$206:$HH$248,DC$1)","v":0},{"$f":"VLOOKUP(DropDownList!$B$47,CntyQryCensus!$A$206:$HH$248,DD$1)","v":48},{"$f":"VLOOKUP(DropDownList!$B$47,CntyQryCensus!$A$206:$HH$248,DE$1)","v":36},{"$f":"VLOOKUP(DropDownList!$B$47,CntyQryCensus!$A$206:$HH$248,DF$1)","v":1342},{"$f":"VLOOKUP(DropDownList!$B$47,CntyQryCensus!$A$206:$HH$248,DG$1)","v":130},{"$f":"VLOOKUP(DropDownList!$B$47,CntyQryCensus!$A$206:$HH$248,DH$1)","v":141},{"$f":"VLOOKUP(DropDownList!$B$47,CntyQryCensus!$A$206:$HH$248,DI$1)","v":200},{"$f":"VLOOKUP(DropDownList!$B$47,CntyQryCensus!$A$206:$HH$248,DJ$1)","v":121},{"$f":"VLOOKUP(DropDownList!$B$47,CntyQryCensus!$A$206:$HH$248,DK$1)","v":114},{"$f":"VLOOKUP(DropDownList!$B$47,CntyQryCensus!$A$206:$HH$248,DL$1)","v":173},{"$f":"VLOOKUP(DropDownList!$B$47,CntyQryCensus!$A$206:$HH$248,DM$1)","v":108},{"$f":"VLOOKUP(DropDownList!$B$47,CntyQryCensus!$A$206:$HH$248,DN$1)","v":67},{"$f":"VLOOKUP(DropDownList!$B$47,CntyQryCensus!$A$206:$HH$248,DO$1)","v":31},{"$f":"VLOOKUP(DropDownList!$B$47,CntyQryCensus!$A$206:$HH$248,DP$1)","v":57},{"$f":"VLOOKUP(DropDownList!$B$47,CntyQryCensus!$A$206:$HH$248,DQ$1)","v":122},{"$f":"VLOOKUP(DropDownList!$B$47,CntyQryCensus!$A$206:$HH$248,DR$1)","v":39},{"$f":"VLOOKUP(DropDownList!$B$47,CntyQryCensus!$A$206:$HH$248,DS$1)","v":25},{"$f":"VLOOKUP(DropDownList!$B$47,CntyQryCensus!$A$206:$HH$248,DT$1)","v":0},{"$f":"VLOOKUP(DropDownList!$B$47,CntyQryCensus!$A$206:$HH$248,DU$1)","v":14},{"$f":"VLOOKUP(DropDownList!$B$47,CntyQryCensus!$A$206:$HH$248,DV$1)","v":0},{"$f":"VLOOKUP(DropDownList!$B$47,CntyQryCensus!$A$206:$HH$248,DW$1)","v":1145},{"$f":"VLOOKUP(DropDownList!$B$47,CntyQryCensus!$A$206:$HH$248,DX$1)","v":201},{"$f":"VLOOKUP(DropDownList!$B$47,CntyQryCensus!$A$206:$HH$248,DY$1)","v":237},{"$f":"VLOOKUP(DropDownList!$B$47,CntyQryCensus!$A$206:$HH$248,DZ$1)","v":140},{"$f":"VLOOKUP(DropDownList!$B$47,CntyQryCensus!$A$206:$HH$248,EA$1)","v":150},{"$f":"VLOOKUP(DropDownList!$B$47,CntyQryCensus!$A$206:$HH$248,EB$1)","v":88},{"$f":"VLOOKUP(DropDownList!$B$47,CntyQryCensus!$A$206:$HH$248,EC$1)","v":74},{"$f":"VLOOKUP(DropDownList!$B$47,CntyQryCensus!$A$206:$HH$248,ED$1)","v":48},{"$f":"VLOOKUP(DropDownList!$B$47,CntyQryCensus!$A$206:$HH$248,EE$1)","v":35},{"$f":"VLOOKUP(DropDownList!$B$47,CntyQryCensus!$A$206:$HH$248,EF$1)","v":19},{"$f":"VLOOKUP(DropDownList!$B$47,CntyQryCensus!$A$206:$HH$248,EG$1)","v":64},{"$f":"VLOOKUP(DropDownList!$B$47,CntyQryCensus!$A$206:$HH$248,EH$1)","v":24},{"$f":"VLOOKUP(DropDownList!$B$47,CntyQryCensus!$A$206:$HH$248,EI$1)","v":28},{"$f":"VLOOKUP(DropDownList!$B$47,CntyQryCensus!$A$206:$HH$248,EJ$1)","v":8},{"$f":"VLOOKUP(DropDownList!$B$47,CntyQryCensus!$A$206:$HH$248,EK$1)","v":0},{"$f":"VLOOKUP(DropDownList!$B$47,CntyQryCensus!$A$206:$HH$248,EL$1)","v":6},{"$f":"VLOOKUP(DropDownList!$B$47,CntyQryCensus!$A$206:$HH$248,EM$1)","v":23},{"$f":"VLOOKUP(DropDownList!$B$47,CntyQryCensus!$A$206:$HH$248,EN$1)","v":40596},{"$f":"VLOOKUP(DropDownList!$B$47,CntyQryCensus!$A$206:$HH$248,EO$1)","v":30313},{"$f":"VLOOKUP(DropDownList!$B$47,CntyQryCensus!$A$206:$HH$248,EP$1)","v":42302},{"$f":"VLOOKUP(DropDownList!$B$47,CntyQryCensus!$A$206:$HH$248,EQ$1)","v":49740},{"$f":"VLOOKUP(DropDownList!$B$47,CntyQryCensus!$A$206:$HH$248,ER$1)","v":49149},{"$f":"VLOOKUP(DropDownList!$B$47,CntyQryCensus!$A$206:$HH$248,ES$1)","v":43917},{"$f":"VLOOKUP(DropDownList!$B$47,CntyQryCensus!$A$206:$HH$248,ET$1)","v":28250},{"$f":"VLOOKUP(DropDownList!$B$47,CntyQryCensus!$A$206:$HH$248,EU$1)","v":19771},{"$f":"VLOOKUP(DropDownList!$B$47,CntyQryCensus!$A$206:$HH$248,EV$1)","v":11397},{"$f":"VLOOKUP(DropDownList!$B$47,CntyQryCensus!$A$206:$HH$248,EW$1)","v":9126},{"$f":"VLOOKUP(DropDownList!$B$47,CntyQryCensus!$A$206:$HH$248,EX$1)","v":2271},{"$f":"VLOOKUP(DropDownList!$B$47,CntyQryCensus!$A$206:$HH$248,EY$1)","v":8956},{"$f":"VLOOKUP(DropDownList!$B$47,CntyQryCensus!$A$206:$HH$248,EZ$1)","v":2441},{"$f":"VLOOKUP(DropDownList!$B$47,CntyQryCensus!$A$206:$HH$248,FA$1)","v":994},{"$f":"VLOOKUP(DropDownList!$B$47,CntyQryCensus!$A$206:$HH$248,FB$1)","v":10403},{"$f":"VLOOKUP(DropDownList!$B$47,CntyQryCensus!$A$206:$HH$248,FC$1)","v":3672},{"$f":"VLOOKUP(DropDownList!$B$47,CntyQryCensus!$A$206:$HH$248,FD$1)","v":7725},{"$f":"VLOOKUP(DropDownList!$B$47,CntyQryCensus!$A$206:$HH$248,FE$1)","v":3160},{"$f":"VLOOKUP(DropDownList!$B$47,CntyQryCensus!$A$206:$HH$248,FF$1)","v":8237},{"$f":"VLOOKUP(DropDownList!$B$47,CntyQryCensus!$A$206:$HH$248,FG$1)","v":439},{"$f":"VLOOKUP(DropDownList!$B$47,CntyQryCensus!$A$206:$HH$248,FH$1)","v":10958},{"$f":"VLOOKUP(DropDownList!$B$47,CntyQryCensus!$A$206:$HH$248,FI$1)","v":625},{"$f":"VLOOKUP(DropDownList!$B$47,CntyQryCensus!$A$206:$HH$248,FJ$1)","v":10772},{"$f":"VLOOKUP(DropDownList!$B$47,CntyQryCensus!$A$206:$HH$248,FK$1)","v":2234},{"$f":"VLOOKUP(DropDownList!$B$47,CntyQryCensus!$A$206:$HH$248,FL$1)","v":9163},{"$f":"VLOOKUP(DropDownList!$B$47,CntyQryCensus!$A$206:$HH$248,FM$1)","v":1743},{"$f":"VLOOKUP(DropDownList!$B$47,CntyQryCensus!$A$206:$HH$248,FN$1)","v":9654},{"$f":"VLOOKUP(DropDownList!$B$47,CntyQryCensus!$A$206:$HH$248,FO$1)","v":427659500},{"$f":"VLOOKUP(DropDownList!$B$47,CntyQryCensus!$A$206:$HH$248,FP$1)","v":407922300},{"$f":"VLOOKUP(DropDownList!$B$47,CntyQryCensus!$A$206:$HH$248,FQ$1)","v":19737300},{"$f":"VLOOKUP(DropDownList!$B$47,CntyQryCensus!$A$206:$HH$248,FR$1)","v":23516400},{"$f":"VLOOKUP(DropDownList!$B$47,CntyQryCensus!$A$206:$HH$248,FS$1)","v":34125200},{"$f":"VLOOKUP(DropDownList!$B$47,CntyQryCensus!$A$206:$HH$248,FT$1)","v":2767100},{"$f":"VLOOKUP(DropDownList!$B$47,CntyQryCensus!$A$206:$HH$248,FU$1)","v":1751100},{"$f":"VLOOKUP(DropDownList!$B$47,CntyQryCensus!$A$206:$HH$248,FV$1)","v":27282400},{"$f":"VLOOKUP(DropDownList!$B$47,CntyQryCensus!$A$206:$HH$248,FW$1)","v":7671},{"$f":"VLOOKUP(DropDownList!$B$47,CntyQryCensus!$A$206:$HH$248,FX$1)","v":307},{"$f":"VLOOKUP(DropDownList!$B$47,CntyQryCensus!$A$206:$HH$248,FY$1)","v":345},{"$f":"VLOOKUP(DropDownList!$B$47,CntyQryCensus!$A$206:$HH$248,FZ$1)","v":383},{"$f":"VLOOKUP(DropDownList!$B$47,CntyQryCensus!$A$206:$HH$248,GA$1)","v":393},{"$f":"VLOOKUP(DropDownList!$B$47,CntyQryCensus!$A$206:$HH$248,GB$1)","v":375},{"$f":"VLOOKUP(DropDownList!$B$47,CntyQryCensus!$A$206:$HH$248,GC$1)","v":555},{"$f":"VLOOKUP(DropDownList!$B$47,CntyQryCensus!$A$206:$HH$248,GD$1)","v":499},{"$f":"VLOOKUP(DropDownList!$B$47,CntyQryCensus!$A$206:$HH$248,GE$1)","v":628},{"$f":"VLOOKUP(DropDownList!$B$47,CntyQryCensus!$A$206:$HH$248,GF$1)","v":630},{"$f":"VLOOKUP(DropDownList!$B$47,CntyQryCensus!$A$206:$HH$248,GG$1)","v":991},{"$f":"VLOOKUP(DropDownList!$B$47,CntyQryCensus!$A$206:$HH$248,GH$1)","v":1060},{"$f":"VLOOKUP(DropDownList!$B$47,CntyQryCensus!$A$206:$HH$248,GI$1)","v":858},{"$f":"VLOOKUP(DropDownList!$B$47,CntyQryCensus!$A$206:$HH$248,GJ$1)","v":378},{"$f":"VLOOKUP(DropDownList!$B$47,CntyQryCensus!$A$206:$HH$248,GK$1)","v":102},{"$f":"VLOOKUP(DropDownList!$B$47,CntyQryCensus!$A$206:$HH$248,GL$1)","v":96},{"$f":"VLOOKUP(DropDownList!$B$47,CntyQryCensus!$A$206:$HH$248,GM$1)","v":71},{"$f":"VLOOKUP(DropDownList!$B$47,CntyQryCensus!$A$206:$HH$248,GN$1)","v":47324},{"$f":"VLOOKUP(DropDownList!$B$47,CntyQryCensus!$A$206:$HH$248,GO$1)","v":411636500},{"$f":"VLOOKUP(DropDownList!$B$47,CntyQryCensus!$A$206:$HH$248,GP$1)","v":3726},{"$f":"VLOOKUP(DropDownList!$B$47,CntyQryCensus!$A$206:$HH$248,GQ$1)","v":603},{"$f":"VLOOKUP(DropDownList!$B$47,CntyQryCensus!$A$206:$HH$248,GR$1)","v":501},{"$f":"VLOOKUP(DropDownList!$B$47,CntyQryCensus!$A$206:$HH$248,GS$1)","v":345},{"$f":"VLOOKUP(DropDownList!$B$47,CntyQryCensus!$A$206:$HH$248,GT$1)","v":473},{"$f":"VLOOKUP(DropDownList!$B$47,CntyQryCensus!$A$206:$HH$248,GU$1)","v":312},{"$f":"VLOOKUP(DropDownList!$B$47,CntyQryCensus!$A$206:$HH$248,GV$1)","v":379},{"$f":"VLOOKUP(DropDownList!$B$47,CntyQryCensus!$A$206:$HH$248,GW$1)","v":273},{"$f":"VLOOKUP(DropDownList!$B$47,CntyQryCensus!$A$206:$HH$248,GX$1)","v":255},{"$f":"VLOOKUP(DropDownList!$B$47,CntyQryCensus!$A$206:$HH$248,GY$1)","v":86},{"$f":"VLOOKUP(DropDownList!$B$47,CntyQryCensus!$A$206:$HH$248,GZ$1)","v":154},{"$f":"VLOOKUP(DropDownList!$B$47,CntyQryCensus!$A$206:$HH$248,HA$1)","v":208},{"$f":"VLOOKUP(DropDownList!$B$47,CntyQryCensus!$A$206:$HH$248,HB$1)","v":86},{"$f":"VLOOKUP(DropDownList!$B$47,CntyQryCensus!$A$206:$HH$248,HC$1)","v":11},{"$f":"VLOOKUP(DropDownList!$B$47,CntyQryCensus!$A$206:$HH$248,HD$1)","v":6},{"$f":"VLOOKUP(DropDownList!$B$47,CntyQryCensus!$A$206:$HH$248,HE$1)","v":22},{"$f":"VLOOKUP(DropDownList!$B$47,CntyQryCensus!$A$206:$HH$248,HF$1)","v":12},{"$f":"VLOOKUP(DropDownList!$B$47,CntyQryCensus!$A$206:$HH$248,HG$1)","v":24244},{"$f":"VLOOKUP(DropDownList!$B$47,CntyQryCensus!$A$206:$HH$248,HH$1)","v":18859}]
[]
[]
["Census 2000 SummaryFile3 Sample Data  -  SF3TownQry2bPovertyChar"]
["NAME","LOGRECNO","COUNTY","TotalPop","P52Households1","P82PerCapitaInc","P87PopForPovStatus","P87PopWIncBelowPovStatus","P87PopUnder5yrBelowPoverty","P87Pop5yrBelowPoverty","P87Pop5to11yrBelowPoverty","P87Pop12to17yrBelowPoverty","P87Pop18to64yrBelowPoverty","P87Pop65to74yrBelowPoverty","P87PopOver75yrBelowPoverty","P87PopWIncAbovePovStatus","P87PopUnder5yrAbovePoverty","P87Pop5yrAbovePoverty","P87Pop5to11yrAbovePoverty","P87Pop12to17yrAbovePoverty","P87Pop18to64yrAbovePoverty","P87Pop65to74yrAbovePoverty","P87PopOver75yrAbovePoverty","P90Families","P90FamWIncBelowPov","P90MarCupFamWIncBelowPov","P90MCFamWRltdChld<18WIncBelowPov","P90MCFamWRltdChld<5WIncBelowPov","P90MaleHhlrWIncBelowPov","P90MaleHhlrWRltdChld<18yrWIncBelowPov","P90MaleHhlrWRltdChld<5yrWIncBelowPov","P90FemaleHhlrWIncBelowPov","P90FemaleHhlrWRltdChld<18yWIncBelowPov","P90FemaleHhlrWRltdChld<5yWIncBelowPov","P90FamWIncAbovePov","P90MarCupFamWIncAbovePov","P90MCFamWRltdChld<18WIncAbovePov","P90MCFamWRltdChld<5WIncAbovePov","P90MaleHhlrWIncAbovePov","P90MaleHhlrWRltdChld<18yrWIncAbovePov","P90MaleHhlrWRltdChld<5yrWIncAbovePov","P90FemaleHhlrWIncAbovePov","P90FemaleHhlrWRltdChld<18yWIncAbovePov","P90FemaleHhlrWRltdChld<5yWIncAbovePov","P92Households","P92HHwIncBelowPov","P92FamHHwIncBelowPov","P92MCFamHHwIncBelowPov","P92MaleFamHHwIncBelowPov","P92FemaleFamHHwIncBelowPov","P92NonFamHHwIncBelowPov","P92NonFamMaleHHwIncBelowPov","P92NonFamFemaleHHwIncBelowPov","P92HHwIncAbovePov","P92FamHHwIncAbovePov","P92MCFamHHwIncAbovePov","P92MaleFamHHwIncAbovePov","P92FemaleFamHHwIncAbovePov","P92NonFamHHwIncAbovePov","P92NonFamMaleHHwIncAbovePov","P92NonFamFemaleHHwIncAbovePov"]
[{"$f":"VLOOKUP(DropDownList!$B$47,CntyQryCensus!$A$256:$BI$298,A$1)","v":"Rochester"},{"$f":"VLOOKUP(DropDownList!$B$47,CntyQryCensus!$A$256:$BI$298,B$1)","v":"0003956"},{"$f":"VLOOKUP(DropDownList!$B$47,CntyQryCensus!$A$256:$BI$298,C$1)","v":"65140"},{"$f":"VLOOKUP(DropDownList!$B$47,CntyQryCensus!$A$256:$BI$298,D$1)","v":28461},{"$f":"VLOOKUP(DropDownList!$B$47,CntyQryCensus!$A$256:$BI$298,E$1)","v":11397},{"$f":"VLOOKUP(DropDownList!$B$47,CntyQryCensus!$A$256:$BI$298,F$1)","v":18859},{"$f":"VLOOKUP(DropDownList!$B$47,CntyQryCensus!$A$256:$BI$298,G$1)","v":28140},{"$f":"VLOOKUP(DropDownList!$B$47,CntyQryCensus!$A$256:$BI$298,H$1)","v":2357},{"$f":"VLOOKUP(DropDownList!$B$47,CntyQryCensus!$A$256:$BI$298,I$1)","v":244},{"$f":"VLOOKUP(DropDownList!$B$47,CntyQryCensus!$A$256:$BI$298,J$1)","v":66},{"$f":"VLOOKUP(DropDownList!$B$47,CntyQryCensus!$A$256:$BI$298,K$1)","v":276},{"$f":"VLOOKUP(DropDownList!$B$47,CntyQryCensus!$A$256:$BI$298,L$1)","v":290},{"$f":"VLOOKUP(DropDownList!$B$47,CntyQryCensus!$A$256:$BI$298,M$1)","v":1165},{"$f":"VLOOKUP(DropDownList!$B$47,CntyQryCensus!$A$256:$BI$298,N$1)","v":114},{"$f":"VLOOKUP(DropDownList!$B$47,CntyQryCensus!$A$256:$BI$298,O$1)","v":202},{"$f":"VLOOKUP(DropDownList!$B$47,CntyQryCensus!$A$256:$BI$298,P$1)","v":25783},{"$f":"VLOOKUP(DropDownList!$B$47,CntyQryCensus!$A$256:$BI$298,Q$1)","v":1611},{"$f":"VLOOKUP(DropDownList!$B$47,CntyQryCensus!$A$256:$BI$298,R$1)","v":257},{"$f":"VLOOKUP(DropDownList!$B$47,CntyQryCensus!$A$256:$BI$298,S$1)","v":2061},{"$f":"VLOOKUP(DropDownList!$B$47,CntyQryCensus!$A$256:$BI$298,T$1)","v":2297},{"$f":"VLOOKUP(DropDownList!$B$47,CntyQryCensus!$A$256:$BI$298,U$1)","v":16264},{"$f":"VLOOKUP(DropDownList!$B$47,CntyQryCensus!$A$256:$BI$298,V$1)","v":1960},{"$f":"VLOOKUP(DropDownList!$B$47,CntyQryCensus!$A$256:$BI$298,W$1)","v":1333},{"$f":"VLOOKUP(DropDownList!$B$47,CntyQryCensus!$A$256:$BI$298,X$1)","v":7671},{"$f":"VLOOKUP(DropDownList!$B$47,CntyQryCensus!$A$256:$BI$298,Y$1)","v":481},{"$f":"VLOOKUP(DropDownList!$B$47,CntyQryCensus!$A$256:$BI$298,Z$1)","v":130},{"$f":"VLOOKUP(DropDownList!$B$47,CntyQryCensus!$A$256:$BI$298,AA$1)","v":65},{"$f":"VLOOKUP(DropDownList!$B$47,CntyQryCensus!$A$256:$BI$298,AB$1)","v":15},{"$f":"VLOOKUP(DropDownList!$B$47,CntyQryCensus!$A$256:$BI$298,AC$1)","v":26},{"$f":"VLOOKUP(DropDownList!$B$47,CntyQryCensus!$A$256:$BI$298,AD$1)","v":21},{"$f":"VLOOKUP(DropDownList!$B$47,CntyQryCensus!$A$256:$BI$298,AE$1)","v":0},{"$f":"VLOOKUP(DropDownList!$B$47,CntyQryCensus!$A$256:$BI$298,AF$1)","v":325},{"$f":"VLOOKUP(DropDownList!$B$47,CntyQryCensus!$A$256:$BI$298,AG$1)","v":313},{"$f":"VLOOKUP(DropDownList!$B$47,CntyQryCensus!$A$256:$BI$298,AH$1)","v":87},{"$f":"VLOOKUP(DropDownList!$B$47,CntyQryCensus!$A$256:$BI$298,AI$1)","v":7190},{"$f":"VLOOKUP(DropDownList!$B$47,CntyQryCensus!$A$256:$BI$298,AJ$1)","v":5856},{"$f":"VLOOKUP(DropDownList!$B$47,CntyQryCensus!$A$256:$BI$298,AK$1)","v":2674},{"$f":"VLOOKUP(DropDownList!$B$47,CntyQryCensus!$A$256:$BI$298,AL$1)","v":608},{"$f":"VLOOKUP(DropDownList!$B$47,CntyQryCensus!$A$256:$BI$298,AM$1)","v":431},{"$f":"VLOOKUP(DropDownList!$B$47,CntyQryCensus!$A$256:$BI$298,AN$1)","v":301},{"$f":"VLOOKUP(DropDownList!$B$47,CntyQryCensus!$A$256:$BI$298,AO$1)","v":80},{"$f":"VLOOKUP(DropDownList!$B$47,CntyQryCensus!$A$256:$BI$298,AP$1)","v":903},{"$f":"VLOOKUP(DropDownList!$B$47,CntyQryCensus!$A$256:$BI$298,AQ$1)","v":594},{"$f":"VLOOKUP(DropDownList!$B$47,CntyQryCensus!$A$256:$BI$298,AR$1)","v":118},{"$f":"VLOOKUP(DropDownList!$B$47,CntyQryCensus!$A$256:$BI$298,AS$1)","v":11397},{"$f":"VLOOKUP(DropDownList!$B$47,CntyQryCensus!$A$256:$BI$298,AT$1)","v":986},{"$f":"VLOOKUP(DropDownList!$B$47,CntyQryCensus!$A$256:$BI$298,AU$1)","v":481},{"$f":"VLOOKUP(DropDownList!$B$47,CntyQryCensus!$A$256:$BI$298,AV$1)","v":130},{"$f":"VLOOKUP(DropDownList!$B$47,CntyQryCensus!$A$256:$BI$298,AW$1)","v":26},{"$f":"VLOOKUP(DropDownList!$B$47,CntyQryCensus!$A$256:$BI$298,AX$1)","v":325},{"$f":"VLOOKUP(DropDownList!$B$47,CntyQryCensus!$A$256:$BI$298,AY$1)","v":505},{"$f":"VLOOKUP(DropDownList!$B$47,CntyQryCensus!$A$256:$BI$298,AZ$1)","v":133},{"$f":"VLOOKUP(DropDownList!$B$47,CntyQryCensus!$A$256:$BI$298,BA$1)","v":372},{"$f":"VLOOKUP(DropDownList!$B$47,CntyQryCensus!$A$256:$BI$298,BB$1)","v":10411},{"$f":"VLOOKUP(DropDownList!$B$47,CntyQryCensus!$A$256:$BI$298,BC$1)","v":7190},{"$f":"VLOOKUP(DropDownList!$B$47,CntyQryCensus!$A$256:$BI$298,BD$1)","v":5856},{"$f":"VLOOKUP(DropDownList!$B$47,CntyQryCensus!$A$256:$BI$298,BE$1)","v":431},{"$f":"VLOOKUP(DropDownList!$B$47,CntyQryCensus!$A$256:$BI$298,BF$1)","v":903},{"$f":"VLOOKUP(DropDownList!$B$47,CntyQryCensus!$A$256:$BI$298,BG$1)","v":3221},{"$f":"VLOOKUP(DropDownList!$B$47,CntyQryCensus!$A$256:$BI$298,BH$1)","v":1579},{"$f":"VLOOKUP(DropDownList!$B$47,CntyQryCensus!$A$256:$BI$298,BI$1)","v":1642}]
[null,null,null,null,null,null,null,null,null,null,null,null,null,null,null,null,null,null,{"$f":"SUM(R60:T60)","v":4615}]
[]
["Census 2000 SummaryFile3 Sample Data  -  SF3TownQry7HousingA"]
["NAME","LOGRECNO","COUNTY","TotalPop","H1HousingUnitsTotal","H2SampleHU","H2SampleOccHU","H2SampleVacHU","H3HU100pctCount","H5HUTotal","H5HUUrban","H5HUUrbanInUrbanAreas","H5HUUrbanInUrbanClusters","H5HURural","H5HURuralFarm","H5HURuralNonFarm","H7HUOcc","H7HUOwnrOcc","H7HURentrOcc","H8HUVacant","H8HUVacantForRent","H8HUVacantForSale","H8HUVacRentedorSold","H8HUVacSeasonal","H8HUVacForMigrantWrkrs","H8HUOtherVacant","H14OccHUa","H14OwnerOccHU","H14OwnOccHuHh15to24","H14OwnOccHuHh25to34","H14OwnOccHuHh35to44","H14OwnOccHuHh45to54","H14OwnOccHuHh55to59","H14OwnOccHuHh60to64","H14OwnOccHuHh65to74","H14OwnOccHuHh75to84","H14OwnOccHuHh85Over","H14RenterOccHU1","H14RntrOccHuHh15to24","H14RntrOccHuHh25to34","H14RntrOccHuHh35to44","H14RntrOccHuHh45to54","H14RntrOccHuHh55to59","H14RntrOccHuHh60to64","H14RntrOccHuHh65to74","H14RntrOccHuHh75to84","H14RntrOccHuHh85Over","H15PopInOccHU","H15PopInOwnOccHU1","H15PopInRentOccHU1","H17OccupHUb","H17OwnOccHU2","H17OwnOccHU1PersonHH","H17OwnOccHU2PersonHH","H17OwnOccHU3PersonHH","H17OwnOccHU4PersonHH","H17OwnOccHU5PersonHH","H17OwnOccHU6PersonHH","H17OwnOccHU7PlusPersonHH","H17RentOccHU2","H17RntOccHU1PersonHH","H17RntOccHU2PersonHH","H17RntOccHU3PersonHH","H17RntOccHU4PersonHH","H17RntOccHU5PersonHH","H17RntOccHU6PersonHH","H17RntOccHU7PlusPersonHH","H18AvgHHSize","H18AvgHHSizeOwnOcc","H18AvgHHSizeRentOcc","H23TotHU","H23HU1Room","H23HU2Room","H23HU3Room","H23HU4Room","H23HU5Room","H23HU6Room","H23HU7Room","H23HU8Room","H23HU9orMoreRoom","H24MedianNumRooms","H25AggregNumRooms","H30TotalHU","H30Det1HU","H30Att1HU","H30Units2","H30Units3or4","H30Units5to9","H30Units10to19","H30Units20to49","H30Units50orMore","H30UnitsMobileHome","H30UnitsBoatRv","H32OccHUcTotal","H32OwnerOccHU3","H32OwnOccHU1Det","H32OwnOccHU1Att","H32OwnOccHU2Unit","H32OwnOccHU3to4Unit","H32OwnOccHU5to9Unit","H32OwnOccHU10to19Unit","H32OwnOccHU20to49Unit","H32OwnOccHU50plusUnit","H32OwnOccHUMobHom","H32OwnOccHUBoatRVOth","H32RentrOccHU3","H32RntrOccHU1Det","H32RntrOccHU1Att","H32RntrOccHU2Unit","H32RntrOccHU3to4Unit","H32RntrOccHU5to9Unit","H32RntrOccHU10to19Unit","H32RntrOccHU20to49Unit","H32RntrOccHU50PlusUnit","H32RntrOccHUMobHom","H32RntrOccHUBoatRVOth","H33TotPopInOccHU","H33PopInOwnOccHU2","H33PopInOOHU1Det","H33PopInOOHU1Att","H33PopInOOHU2unit","H33PopInOOHU3to4Unit","H33PopInOOHU5to9Unit","H33PopInOOHU10to19Unit","H33PopInOOHU20to49Unit","H33PopInOOHU50PlusUnit","H33PopInOOHUMobilHome","H33PopInOOHUOtherUnit","H33PopInRentOccHU2","H33PopInROHU1Det","H33PopInROHU1Att","H33PopInROHU2Unit","H33PopInROHU3to4Unit","H33PopInROHU5to9Unit","H33PopInROHU10to19Unit","H33PopInROHU20to49Unit","H33PopInROHU50PlusUnit","H33PopInROHUMobilHome","H33PopInROHUOtherUnit","H36OccHousingUnitsdTotal","H36OwnerOccHU4","H36OOHUBuilt99to0300","H36OOHUBuilt95to98","H36OOHUBuilt90to94","H36OOHUBuilt80to89","H36OOHUBuilt70to79","H36OOHUBuilt60to69","H36OOHUBuilt50to59","H36OOHUBuilt40to49","H36OOHUBuilt39Earlier","H36RentOccHU4","H36ROHUBuilt99to0300","H36ROHUBuilt95to98","H36ROHUBuilt90to94","H36ROHUBuilt80to89","H36ROHUBuilt70to79","H36ROHUBuilt60to69","H36ROHUBuilt50to59","H36ROHUBuilt40to49","H36ROHUBuilt39Earlier","H40OccupHousUnitse","H40HeatFuelUtilGas","H40HeatFuelBotGas","H40HeatFuelElect","H40HeatFuelOilKero","H40HeatFuelCoal","H40HeatFuelWood","H40HeatFuelSolar","H40HeatFuelOther","H40HeatFuelNone","H41TotalHU","H41HUNoBdrm","H41HU1Bdrm","H41HU2Bdrm","H41HU3Bdrm","H41HU4Bdrm","H41HU5MoreBdrm","H42OccuHousUnitf","H42OwnerOccHU5","H42OOHUNoBdrm","H42OOHU1Bdrm","H42OOHU2Bdrm","H42OOHU3Bdrm","H42OOHU4Bdrm","H42OOHU5PlusBdrm","H42RentOccHU5","H42ROHUNoBdrm","H42ROHU1Bdrm","H42ROHU2Bdrm","H42ROHU3Bdrm","H42ROHU4Bdrm","H42ROHU5PlusBdrm","H48OccupHousUnitsg","H48OwnerOccHU6","H48OOHUwCompltPlumFacil","H48OOHULackCompltPlumFacil","H48RentOccHU6","H48ROHUwCompltPlumFacil","H48ROHULackCompltPlumFacil","H51OccupHousUnitf","H51OwnerOccHU7","H51OOHUwCompleteKitFacil","H51OOHULackCompleteKitFacil","H51RenterOccHU7","H51ROHUwCompleteKitFacil","H51ROHULackCompleteKitFacil"]
[{"$f":"VLOOKUP(DropDownList!$B47,CntyQryCensus!$A$306:$GX$348,A$1)","v":"Rochester"},{"$f":"VLOOKUP(DropDownList!$B47,CntyQryCensus!$A$306:$GX$348,B$1)","v":"0003956"},{"$f":"VLOOKUP(DropDownList!$B47,CntyQryCensus!$A$306:$GX$348,C$1)","v":"65140"},{"$f":"VLOOKUP(DropDownList!$B47,CntyQryCensus!$A$306:$GX$348,D$1)","v":28461},{"$f":"VLOOKUP(DropDownList!$B47,CntyQryCensus!$A$306:$GX$348,E$1)","v":11836},{"$f":"VLOOKUP(DropDownList!$B47,CntyQryCensus!$A$306:$GX$348,F$1)","v":1590},{"$f":"VLOOKUP(DropDownList!$B47,CntyQryCensus!$A$306:$GX$348,G$1)","v":1542},{"$f":"VLOOKUP(DropDownList!$B47,CntyQryCensus!$A$306:$GX$348,H$1)","v":48},{"$f":"VLOOKUP(DropDownList!$B47,CntyQryCensus!$A$306:$GX$348,I$1)","v":11836},{"$f":"VLOOKUP(DropDownList!$B47,CntyQryCensus!$A$306:$GX$348,J$1)","v":11836},{"$f":"VLOOKUP(DropDownList!$B47,CntyQryCensus!$A$306:$GX$348,K$1)","v":9512},{"$f":"VLOOKUP(DropDownList!$B47,CntyQryCensus!$A$306:$GX$348,L$1)","v":9512},{"$f":"VLOOKUP(DropDownList!$B47,CntyQryCensus!$A$306:$GX$348,M$1)","v":0},{"$f":"VLOOKUP(DropDownList!$B47,CntyQryCensus!$A$306:$GX$348,N$1)","v":2324},{"$f":"VLOOKUP(DropDownList!$B47,CntyQryCensus!$A$306:$GX$348,O$1)","v":41},{"$f":"VLOOKUP(DropDownList!$B47,CntyQryCensus!$A$306:$GX$348,P$1)","v":2283},{"$f":"VLOOKUP(DropDownList!$B47,CntyQryCensus!$A$306:$GX$348,Q$1)","v":11434},{"$f":"VLOOKUP(DropDownList!$B47,CntyQryCensus!$A$306:$GX$348,R$1)","v":7637},{"$f":"VLOOKUP(DropDownList!$B47,CntyQryCensus!$A$306:$GX$348,S$1)","v":3797},{"$f":"VLOOKUP(DropDownList!$B47,CntyQryCensus!$A$306:$GX$348,T$1)","v":402},{"$f":"VLOOKUP(DropDownList!$B47,CntyQryCensus!$A$306:$GX$348,U$1)","v":104},{"$f":"VLOOKUP(DropDownList!$B47,CntyQryCensus!$A$306:$GX$348,V$1)","v":25},{"$f":"VLOOKUP(DropDownList!$B47,CntyQryCensus!$A$306:$GX$348,W$1)","v":16},{"$f":"VLOOKUP(DropDownList!$B47,CntyQryCensus!$A$306:$GX$348,X$1)","v":106},{"$f":"VLOOKUP(DropDownList!$B47,CntyQryCensus!$A$306:$GX$348,Y$1)","v":0},{"$f":"VLOOKUP(DropDownList!$B47,CntyQryCensus!$A$306:$GX$348,Z$1)","v":151},{"$f":"VLOOKUP(DropDownList!$B47,CntyQryCensus!$A$306:$GX$348,AA$1)","v":11434},{"$f":"VLOOKUP(DropDownList!$B47,CntyQryCensus!$A$306:$GX$348,AB$1)","v":7637},{"$f":"VLOOKUP(DropDownList!$B47,CntyQryCensus!$A$306:$GX$348,AC$1)","v":111},{"$f":"VLOOKUP(DropDownList!$B47,CntyQryCensus!$A$306:$GX$348,AD$1)","v":985},{"$f":"VLOOKUP(DropDownList!$B47,CntyQryCensus!$A$306:$GX$348,AE$1)","v":1835},{"$f":"VLOOKUP(DropDownList!$B47,CntyQryCensus!$A$306:$GX$348,AF$1)","v":1652},{"$f":"VLOOKUP(DropDownList!$B47,CntyQryCensus!$A$306:$GX$348,AG$1)","v":662},{"$f":"VLOOKUP(DropDownList!$B47,CntyQryCensus!$A$306:$GX$348,AH$1)","v":543},{"$f":"VLOOKUP(DropDownList!$B47,CntyQryCensus!$A$306:$GX$348,AI$1)","v":1089},{"$f":"VLOOKUP(DropDownList!$B47,CntyQryCensus!$A$306:$GX$348,AJ$1)","v":646},{"$f":"VLOOKUP(DropDownList!$B47,CntyQryCensus!$A$306:$GX$348,AK$1)","v":114},{"$f":"VLOOKUP(DropDownList!$B47,CntyQryCensus!$A$306:$GX$348,AL$1)","v":3797},{"$f":"VLOOKUP(DropDownList!$B47,CntyQryCensus!$A$306:$GX$348,AM$1)","v":351},{"$f":"VLOOKUP(DropDownList!$B47,CntyQryCensus!$A$306:$GX$348,AN$1)","v":1068},{"$f":"VLOOKUP(DropDownList!$B47,CntyQryCensus!$A$306:$GX$348,AO$1)","v":935},{"$f":"VLOOKUP(DropDownList!$B47,CntyQryCensus!$A$306:$GX$348,AP$1)","v":516},{"$f":"VLOOKUP(DropDownList!$B47,CntyQryCensus!$A$306:$GX$348,AQ$1)","v":160},{"$f":"VLOOKUP(DropDownList!$B47,CntyQryCensus!$A$306:$GX$348,AR$1)","v":118},{"$f":"VLOOKUP(DropDownList!$B47,CntyQryCensus!$A$306:$GX$348,AS$1)","v":296},{"$f":"VLOOKUP(DropDownList!$B47,CntyQryCensus!$A$306:$GX$348,AT$1)","v":237},{"$f":"VLOOKUP(DropDownList!$B47,CntyQryCensus!$A$306:$GX$348,AU$1)","v":116},{"$f":"VLOOKUP(DropDownList!$B47,CntyQryCensus!$A$306:$GX$348,AV$1)","v":28168},{"$f":"VLOOKUP(DropDownList!$B47,CntyQryCensus!$A$306:$GX$348,AW$1)","v":20039},{"$f":"VLOOKUP(DropDownList!$B47,CntyQryCensus!$A$306:$GX$348,AX$1)","v":8129},{"$f":"VLOOKUP(DropDownList!$B47,CntyQryCensus!$A$306:$GX$348,AY$1)","v":11434},{"$f":"VLOOKUP(DropDownList!$B47,CntyQryCensus!$A$306:$GX$348,AZ$1)","v":7637},{"$f":"VLOOKUP(DropDownList!$B47,CntyQryCensus!$A$306:$GX$348,BA$1)","v":1506},{"$f":"VLOOKUP(DropDownList!$B47,CntyQryCensus!$A$306:$GX$348,BB$1)","v":2834},{"$f":"VLOOKUP(DropDownList!$B47,CntyQryCensus!$A$306:$GX$348,BC$1)","v":1401},{"$f":"VLOOKUP(DropDownList!$B47,CntyQryCensus!$A$306:$GX$348,BD$1)","v":1300},{"$f":"VLOOKUP(DropDownList!$B47,CntyQryCensus!$A$306:$GX$348,BE$1)","v":464},{"$f":"VLOOKUP(DropDownList!$B47,CntyQryCensus!$A$306:$GX$348,BF$1)","v":108},{"$f":"VLOOKUP(DropDownList!$B47,CntyQryCensus!$A$306:$GX$348,BG$1)","v":24},{"$f":"VLOOKUP(DropDownList!$B47,CntyQryCensus!$A$306:$GX$348,BH$1)","v":3797},{"$f":"VLOOKUP(DropDownList!$B47,CntyQryCensus!$A$306:$GX$348,BI$1)","v":1431},{"$f":"VLOOKUP(DropDownList!$B47,CntyQryCensus!$A$306:$GX$348,BJ$1)","v":1166},{"$f":"VLOOKUP(DropDownList!$B47,CntyQryCensus!$A$306:$GX$348,BK$1)","v":556},{"$f":"VLOOKUP(DropDownList!$B47,CntyQryCensus!$A$306:$GX$348,BL$1)","v":370},{"$f":"VLOOKUP(DropDownList!$B47,CntyQryCensus!$A$306:$GX$348,BM$1)","v":185},{"$f":"VLOOKUP(DropDownList!$B47,CntyQryCensus!$A$306:$GX$348,BN$1)","v":89},{"$f":"VLOOKUP(DropDownList!$B47,CntyQryCensus!$A$306:$GX$348,BO$1)","v":0},{"$f":"VLOOKUP(DropDownList!$B47,CntyQryCensus!$A$306:$GX$348,BP$1)","v":2},{"$f":"VLOOKUP(DropDownList!$B47,CntyQryCensus!$A$306:$GX$348,BQ$1)","v":3},{"$f":"VLOOKUP(DropDownList!$B47,CntyQryCensus!$A$306:$GX$348,BR$1)","v":2},{"$f":"VLOOKUP(DropDownList!$B47,CntyQryCensus!$A$306:$GX$348,BS$1)","v":11836},{"$f":"VLOOKUP(DropDownList!$B47,CntyQryCensus!$A$306:$GX$348,BT$1)","v":55},{"$f":"VLOOKUP(DropDownList!$B47,CntyQryCensus!$A$306:$GX$348,BU$1)","v":281},{"$f":"VLOOKUP(DropDownList!$B47,CntyQryCensus!$A$306:$GX$348,BV$1)","v":1391},{"$f":"VLOOKUP(DropDownList!$B47,CntyQryCensus!$A$306:$GX$348,BW$1)","v":2703},{"$f":"VLOOKUP(DropDownList!$B47,CntyQryCensus!$A$306:$GX$348,BX$1)","v":2850},{"$f":"VLOOKUP(DropDownList!$B47,CntyQryCensus!$A$306:$GX$348,BY$1)","v":2026},{"$f":"VLOOKUP(DropDownList!$B47,CntyQryCensus!$A$306:$GX$348,BZ$1)","v":1263},{"$f":"VLOOKUP(DropDownList!$B47,CntyQryCensus!$A$306:$GX$348,CA$1)","v":751},{"$f":"VLOOKUP(DropDownList!$B47,CntyQryCensus!$A$306:$GX$348,CB$1)","v":516},{"$f":"VLOOKUP(DropDownList!$B47,CntyQryCensus!$A$306:$GX$348,CC$1)","v":5},{"$f":"VLOOKUP(DropDownList!$B47,CntyQryCensus!$A$306:$GX$348,CD$1)","v":62017},{"$f":"VLOOKUP(DropDownList!$B47,CntyQryCensus!$A$306:$GX$348,CE$1)","v":11836},{"$f":"VLOOKUP(DropDownList!$B47,CntyQryCensus!$A$306:$GX$348,CF$1)","v":5727},{"$f":"VLOOKUP(DropDownList!$B47,CntyQryCensus!$A$306:$GX$348,CG$1)","v":402},{"$f":"VLOOKUP(DropDownList!$B47,CntyQryCensus!$A$306:$GX$348,CH$1)","v":707},{"$f":"VLOOKUP(DropDownList!$B47,CntyQryCensus!$A$306:$GX$348,CI$1)","v":1133},{"$f":"VLOOKUP(DropDownList!$B47,CntyQryCensus!$A$306:$GX$348,CJ$1)","v":890},{"$f":"VLOOKUP(DropDownList!$B47,CntyQryCensus!$A$306:$GX$348,CK$1)","v":169},{"$f":"VLOOKUP(DropDownList!$B47,CntyQryCensus!$A$306:$GX$348,CL$1)","v":351},{"$f":"VLOOKUP(DropDownList!$B47,CntyQryCensus!$A$306:$GX$348,CM$1)","v":212},{"$f":"VLOOKUP(DropDownList!$B47,CntyQryCensus!$A$306:$GX$348,CN$1)","v":2239},{"$f":"VLOOKUP(DropDownList!$B47,CntyQryCensus!$A$306:$GX$348,CO$1)","v":6},{"$f":"VLOOKUP(DropDownList!$B47,CntyQryCensus!$A$306:$GX$348,CP$1)","v":11434},{"$f":"VLOOKUP(DropDownList!$B47,CntyQryCensus!$A$306:$GX$348,CQ$1)","v":7637},{"$f":"VLOOKUP(DropDownList!$B47,CntyQryCensus!$A$306:$GX$348,CR$1)","v":5154},{"$f":"VLOOKUP(DropDownList!$B47,CntyQryCensus!$A$306:$GX$348,CS$1)","v":277},{"$f":"VLOOKUP(DropDownList!$B47,CntyQryCensus!$A$306:$GX$348,CT$1)","v":164},{"$f":"VLOOKUP(DropDownList!$B47,CntyQryCensus!$A$306:$GX$348,CU$1)","v":91},{"$f":"VLOOKUP(DropDownList!$B47,CntyQryCensus!$A$306:$GX$348,CV$1)","v":65},{"$f":"VLOOKUP(DropDownList!$B47,CntyQryCensus!$A$306:$GX$348,CW$1)","v":0},{"$f":"VLOOKUP(DropDownList!$B47,CntyQryCensus!$A$306:$GX$348,CX$1)","v":9},{"$f":"VLOOKUP(DropDownList!$B47,CntyQryCensus!$A$306:$GX$348,CY$1)","v":0},{"$f":"VLOOKUP(DropDownList!$B47,CntyQryCensus!$A$306:$GX$348,CZ$1)","v":1871},{"$f":"VLOOKUP(DropDownList!$B47,CntyQryCensus!$A$306:$GX$348,DA$1)","v":6},{"$f":"VLOOKUP(DropDownList!$B47,CntyQryCensus!$A$306:$GX$348,DB$1)","v":3797},{"$f":"VLOOKUP(DropDownList!$B47,CntyQryCensus!$A$306:$GX$348,DC$1)","v":467},{"$f":"VLOOKUP(DropDownList!$B47,CntyQryCensus!$A$306:$GX$348,DD$1)","v":125},{"$f":"VLOOKUP(DropDownList!$B47,CntyQryCensus!$A$306:$GX$348,DE$1)","v":527},{"$f":"VLOOKUP(DropDownList!$B47,CntyQryCensus!$A$306:$GX$348,DF$1)","v":963},{"$f":"VLOOKUP(DropDownList!$B47,CntyQryCensus!$A$306:$GX$348,DG$1)","v":750},{"$f":"VLOOKUP(DropDownList!$B47,CntyQryCensus!$A$306:$GX$348,DH$1)","v":165},{"$f":"VLOOKUP(DropDownList!$B47,CntyQryCensus!$A$306:$GX$348,DI$1)","v":342},{"$f":"VLOOKUP(DropDownList!$B47,CntyQryCensus!$A$306:$GX$348,DJ$1)","v":200},{"$f":"VLOOKUP(DropDownList!$B47,CntyQryCensus!$A$306:$GX$348,DK$1)","v":258},{"$f":"VLOOKUP(DropDownList!$B47,CntyQryCensus!$A$306:$GX$348,DL$1)","v":0},{"$f":"VLOOKUP(DropDownList!$B47,CntyQryCensus!$A$306:$GX$348,DM$1)","v":28168},{"$f":"VLOOKUP(DropDownList!$B47,CntyQryCensus!$A$306:$GX$348,DN$1)","v":20039},{"$f":"VLOOKUP(DropDownList!$B47,CntyQryCensus!$A$306:$GX$348,DO$1)","v":14516},{"$f":"VLOOKUP(DropDownList!$B47,CntyQryCensus!$A$306:$GX$348,DP$1)","v":635},{"$f":"VLOOKUP(DropDownList!$B47,CntyQryCensus!$A$306:$GX$348,DQ$1)","v":457},{"$f":"VLOOKUP(DropDownList!$B47,CntyQryCensus!$A$306:$GX$348,DR$1)","v":170},{"$f":"VLOOKUP(DropDownList!$B47,CntyQryCensus!$A$306:$GX$348,DS$1)","v":139},{"$f":"VLOOKUP(DropDownList!$B47,CntyQryCensus!$A$306:$GX$348,DT$1)","v":0},{"$f":"VLOOKUP(DropDownList!$B47,CntyQryCensus!$A$306:$GX$348,DU$1)","v":7},{"$f":"VLOOKUP(DropDownList!$B47,CntyQryCensus!$A$306:$GX$348,DV$1)","v":0},{"$f":"VLOOKUP(DropDownList!$B47,CntyQryCensus!$A$306:$GX$348,DW$1)","v":4105},{"$f":"VLOOKUP(DropDownList!$B47,CntyQryCensus!$A$306:$GX$348,DX$1)","v":10},{"$f":"VLOOKUP(DropDownList!$B47,CntyQryCensus!$A$306:$GX$348,DY$1)","v":8129},{"$f":"VLOOKUP(DropDownList!$B47,CntyQryCensus!$A$306:$GX$348,DZ$1)","v":1271},{"$f":"VLOOKUP(DropDownList!$B47,CntyQryCensus!$A$306:$GX$348,EA$1)","v":236},{"$f":"VLOOKUP(DropDownList!$B47,CntyQryCensus!$A$306:$GX$348,EB$1)","v":1316},{"$f":"VLOOKUP(DropDownList!$B47,CntyQryCensus!$A$306:$GX$348,EC$1)","v":2168},{"$f":"VLOOKUP(DropDownList!$B47,CntyQryCensus!$A$306:$GX$348,ED$1)","v":1459},{"$f":"VLOOKUP(DropDownList!$B47,CntyQryCensus!$A$306:$GX$348,EE$1)","v":277},{"$f":"VLOOKUP(DropDownList!$B47,CntyQryCensus!$A$306:$GX$348,EF$1)","v":619},{"$f":"VLOOKUP(DropDownList!$B47,CntyQryCensus!$A$306:$GX$348,EG$1)","v":229},{"$f":"VLOOKUP(DropDownList!$B47,CntyQryCensus!$A$306:$GX$348,EH$1)","v":554},{"$f":"VLOOKUP(DropDownList!$B47,CntyQryCensus!$A$306:$GX$348,EI$1)","v":0},{"$f":"VLOOKUP(DropDownList!$B47,CntyQryCensus!$A$306:$GX$348,EJ$1)","v":11434},{"$f":"VLOOKUP(DropDownList!$B47,CntyQryCensus!$A$306:$GX$348,EK$1)","v":7637},{"$f":"VLOOKUP(DropDownList!$B47,CntyQryCensus!$A$306:$GX$348,EL$1)","v":151},{"$f":"VLOOKUP(DropDownList!$B47,CntyQryCensus!$A$306:$GX$348,EM$1)","v":469},{"$f":"VLOOKUP(DropDownList!$B47,CntyQryCensus!$A$306:$GX$348,EN$1)","v":573},{"$f":"VLOOKUP(DropDownList!$B47,CntyQryCensus!$A$306:$GX$348,EO$1)","v":1841},{"$f":"VLOOKUP(DropDownList!$B47,CntyQryCensus!$A$306:$GX$348,EP$1)","v":1227},{"$f":"VLOOKUP(DropDownList!$B47,CntyQryCensus!$A$306:$GX$348,EQ$1)","v":688},{"$f":"VLOOKUP(DropDownList!$B47,CntyQryCensus!$A$306:$GX$348,ER$1)","v":709},{"$f":"VLOOKUP(DropDownList!$B47,CntyQryCensus!$A$306:$GX$348,ES$1)","v":473},{"$f":"VLOOKUP(DropDownList!$B47,CntyQryCensus!$A$306:$GX$348,ET$1)","v":1506},{"$f":"VLOOKUP(DropDownList!$B47,CntyQryCensus!$A$306:$GX$348,EU$1)","v":3797},{"$f":"VLOOKUP(DropDownList!$B47,CntyQryCensus!$A$306:$GX$348,EV$1)","v":82},{"$f":"VLOOKUP(DropDownList!$B47,CntyQryCensus!$A$306:$GX$348,EW$1)","v":168},{"$f":"VLOOKUP(DropDownList!$B47,CntyQryCensus!$A$306:$GX$348,EX$1)","v":147},{"$f":"VLOOKUP(DropDownList!$B47,CntyQryCensus!$A$306:$GX$348,EY$1)","v":657},{"$f":"VLOOKUP(DropDownList!$B47,CntyQryCensus!$A$306:$GX$348,EZ$1)","v":627},{"$f":"VLOOKUP(DropDownList!$B47,CntyQryCensus!$A$306:$GX$348,FA$1)","v":237},{"$f":"VLOOKUP(DropDownList!$B47,CntyQryCensus!$A$306:$GX$348,FB$1)","v":333},{"$f":"VLOOKUP(DropDownList!$B47,CntyQryCensus!$A$306:$GX$348,FC$1)","v":246},{"$f":"VLOOKUP(DropDownList!$B47,CntyQryCensus!$A$306:$GX$348,FD$1)","v":1300},{"$f":"VLOOKUP(DropDownList!$B47,CntyQryCensus!$A$306:$GX$348,FE$1)","v":11434},{"$f":"VLOOKUP(DropDownList!$B47,CntyQryCensus!$A$306:$GX$348,FF$1)","v":2273},{"$f":"VLOOKUP(DropDownList!$B47,CntyQryCensus!$A$306:$GX$348,FG$1)","v":1063},{"$f":"VLOOKUP(DropDownList!$B47,CntyQryCensus!$A$306:$GX$348,FH$1)","v":739},{"$f":"VLOOKUP(DropDownList!$B47,CntyQryCensus!$A$306:$GX$348,FI$1)","v":7069},{"$f":"VLOOKUP(DropDownList!$B47,CntyQryCensus!$A$306:$GX$348,FJ$1)","v":7},{"$f":"VLOOKUP(DropDownList!$B47,CntyQryCensus!$A$306:$GX$348,FK$1)","v":188},{"$f":"VLOOKUP(DropDownList!$B47,CntyQryCensus!$A$306:$GX$348,FL$1)","v":0},{"$f":"VLOOKUP(DropDownList!$B47,CntyQryCensus!$A$306:$GX$348,FM$1)","v":54},{"$f":"VLOOKUP(DropDownList!$B47,CntyQryCensus!$A$306:$GX$348,FN$1)","v":41},{"$f":"VLOOKUP(DropDownList!$B47,CntyQryCensus!$A$306:$GX$348,FO$1)","v":11836},{"$f":"VLOOKUP(DropDownList!$B47,CntyQryCensus!$A$306:$GX$348,FP$1)","v":103},{"$f":"VLOOKUP(DropDownList!$B47,CntyQryCensus!$A$306:$GX$348,FQ$1)","v":1671},{"$f":"VLOOKUP(DropDownList!$B47,CntyQryCensus!$A$306:$GX$348,FR$1)","v":4384},{"$f":"VLOOKUP(DropDownList!$B47,CntyQryCensus!$A$306:$GX$348,FS$1)","v":4227},{"$f":"VLOOKUP(DropDownList!$B47,CntyQryCensus!$A$306:$GX$348,FT$1)","v":1281},{"$f":"VLOOKUP(DropDownList!$B47,CntyQryCensus!$A$306:$GX$348,FU$1)","v":170},{"$f":"VLOOKUP(DropDownList!$B47,CntyQryCensus!$A$306:$GX$348,FV$1)","v":11434},{"$f":"VLOOKUP(DropDownList!$B47,CntyQryCensus!$A$306:$GX$348,FW$1)","v":7637},{"$f":"VLOOKUP(DropDownList!$B47,CntyQryCensus!$A$306:$GX$348,FX$1)","v":0},{"$f":"VLOOKUP(DropDownList!$B47,CntyQryCensus!$A$306:$GX$348,FY$1)","v":252},{"$f":"VLOOKUP(DropDownList!$B47,CntyQryCensus!$A$306:$GX$348,FZ$1)","v":2561},{"$f":"VLOOKUP(DropDownList!$B47,CntyQryCensus!$A$306:$GX$348,GA$1)","v":3568},{"$f":"VLOOKUP(DropDownList!$B47,CntyQryCensus!$A$306:$GX$348,GB$1)","v":1111},{"$f":"VLOOKUP(DropDownList!$B47,CntyQryCensus!$A$306:$GX$348,GC$1)","v":145},{"$f":"VLOOKUP(DropDownList!$B47,CntyQryCensus!$A$306:$GX$348,GD$1)","v":3797},{"$f":"VLOOKUP(DropDownList!$B47,CntyQryCensus!$A$306:$GX$348,GE$1)","v":95},{"$f":"VLOOKUP(DropDownList!$B47,CntyQryCensus!$A$306:$GX$348,GF$1)","v":1315},{"$f":"VLOOKUP(DropDownList!$B47,CntyQryCensus!$A$306:$GX$348,GG$1)","v":1609},{"$f":"VLOOKUP(DropDownList!$B47,CntyQryCensus!$A$306:$GX$348,GH$1)","v":589},{"$f":"VLOOKUP(DropDownList!$B47,CntyQryCensus!$A$306:$GX$348,GI$1)","v":164},{"$f":"VLOOKUP(DropDownList!$B47,CntyQryCensus!$A$306:$GX$348,GJ$1)","v":25},{"$f":"VLOOKUP(DropDownList!$B47,CntyQryCensus!$A$306:$GX$348,GK$1)","v":11434},{"$f":"VLOOKUP(DropDownList!$B47,CntyQryCensus!$A$306:$GX$348,GL$1)","v":7637},{"$f":"VLOOKUP(DropDownList!$B47,CntyQryCensus!$A$306:$GX$348,GM$1)","v":7572},{"$f":"VLOOKUP(DropDownList!$B47,CntyQryCensus!$A$306:$GX$348,GN$1)","v":65},{"$f":"VLOOKUP(DropDownList!$B47,CntyQryCensus!$A$306:$GX$348,GO$1)","v":3797},{"$f":"VLOOKUP(DropDownList!$B47,CntyQryCensus!$A$306:$GX$348,GP$1)","v":3776},{"$f":"VLOOKUP(DropDownList!$B47,CntyQryCensus!$A$306:$GX$348,GQ$1)","v":21},{"$f":"VLOOKUP(DropDownList!$B47,CntyQryCensus!$A$306:$GX$348,GR$1)","v":11434},{"$f":"VLOOKUP(DropDownList!$B47,CntyQryCensus!$A$306:$GX$348,GS$1)","v":7637},{"$f":"VLOOKUP(DropDownList!$B47,CntyQryCensus!$A$306:$GX$348,GT$1)","v":7623},{"$f":"VLOOKUP(DropDownList!$B47,CntyQryCensus!$A$306:$GX$348,GU$1)","v":14},{"$f":"VLOOKUP(DropDownList!$B47,CntyQryCensus!$A$306:$GX$348,GV$1)","v":3797},{"$f":"VLOOKUP(DropDownList!$B47,CntyQryCensus!$A$306:$GX$348,GW$1)","v":3779},{"$f":"VLOOKUP(DropDownList!$B47,CntyQryCensus!$A$306:$GX$348,GX$1)","v":18}]
[]
[]
["Census 2000 SummaryFile3 Sample Data  -  SF3TownQry8HousingCostA"]
["NAME","LOGRECNO","COUNTY","TotalPop","H62RntrOccHU","H62RntrOccHUwRent","H62ROHUGRent<100","H62ROHUGRent100to149","H62ROHUGRent150to199","H62ROHUGRent200to249","H62ROHUGRent250to299","H62ROHUGRent300to349","H62ROHUGRent350to399","H62ROHUGRent400to449","H62ROHUGRent450to499","H62ROHUGRent500to549","H62ROHUGRent550to599","H62ROHUGRent600to649","H62ROHUGRent650to699","H62ROHUGRent700to749","H62ROHUGRent750to799","H62ROHUGRent800to899","H62ROHUGRent900to999","H62ROHUGRent1000to1249","H62ROHUGRent1250to1499","H62ROHUGRent1500to1999","H62ROHUGRent2000>","H62ROHUNoGRent","H63MedianGrossRnt","H69RenterOccHsU","H69GRnt<10PctHHInc","H69GRnt10to15PctHHInc","H69GRnt15to20PctHHInc","H69GRnt20to25PctHHInc","H69GRnt25to30PctHHInc","H69GRnt30to35PctHHInc","H69GRnt35to40PctHHInc","H69GRnt40to50PctHHInc","H69GRnt>50PctHHInc","H69GRntPctNotcomputed","H73RenterOccHU","H73ROHUHhInc<10k","H73ROHUHhInc<10kRnt<20pct","H73ROHUHhInc<10kRnt20to25pct","H73ROHUHhInc<10kRnt25to30pct","H73ROHUHhInc<10kRnt30to35pct","H73ROHUHhInc<10kRnt>35pct","H73ROHUHhInc<10kPctNotComput","H73ROHUHhInc10to20k","H73ROHUHhInc10to20kRnt<20pct","H73ROHUHhInc10to20kRnt20to25pct","H73ROHUHhInc10to20kRnt25to30pct","H73ROHUHhInc10to20kRnt30to35pct","H73ROHUHhInc10to20kRnt>35pct","H73ROHUHhInc10to20kRntPctNC","H73ROHUHhInc20to35k","H73ROHUHhInc20to35kRnt<20pct","H73ROHUHhInc20to35kRnt20to25pct","H73ROHUHhInc20to35kRnt25to30pct","H73ROHUHhInc20to35kRnt30to35pct","H73ROHUHhInc20to35kRnt>35pct","H73ROHUHhInc20to35kRntPctNC","H73ROHUHhInc35to40k","H73ROHUHhInc35to40kRnt<20pct","H73ROHUHhInc35to40kRnt20to25pct","H73ROHUHhInc35to40kRnt25to30pct","H73ROHUHhInc35to40kRnt30to35pct","H73ROHUHhInc35to40kRnt>35pct","H73ROHUHhInc35to40kRntPctNC","H73ROHUHhInc50to75k","H73ROHUHhInc50to75kRnt<20pct","H73ROHUHhInc50to75kRnt20to25pct","H73ROHUHhInc50to75kRnt25to30pct","H73ROHUHhInc50to75kRnt30to35pct","H73ROHUHhInc50to75kRnt>35pct","H73ROHUHhInc50to75kRntPctNC","H73ROHUHhInc75to100k","H73ROHUHhInc75to100kRnt<20pct","H73ROHUHhInc75to100kRnt20to25pct","H73ROHUHhInc75to100kRnt25to30pct","H73ROHUHhInc75to100kRnt30to35pct","H73ROHUHhInc75to100kRnt>35pct","H73ROHUHhInc75to100kRntPctNC","H73ROHUHhInc>100k","H73ROHUHhInc>100kRnt<20pct","H73ROHUHhInc>100kRnt20to25pct","H73ROHUHhInc>100kRnt25to30pct","H73ROHUHhInc>100kRnt30to35pct","H73ROHUHhInc>100kRnt>35pct","H73ROHUHhInc>100kRntPctNC","H73ROHUHhInc>100kRntPctNC"]
[{"$f":"VLOOKUP(DropDownList!$B$47,CntyQryCensus!$A$357:$CM$399,A$1)","v":"Rochester"},{"$f":"VLOOKUP(DropDownList!$B$47,CntyQryCensus!$A$357:$CM$399,B$1)","v":"0003956"},{"$f":"VLOOKUP(DropDownList!$B$47,CntyQryCensus!$A$357:$CM$399,C$1)","v":"65140"},{"$f":"VLOOKUP(DropDownList!$B$47,CntyQryCensus!$A$357:$CM$399,D$1)","v":28461},{"$f":"VLOOKUP(DropDownList!$B$47,CntyQryCensus!$A$357:$CM$399,E$1)","v":3777},{"$f":"VLOOKUP(DropDownList!$B$47,CntyQryCensus!$A$357:$CM$399,F$1)","v":3666},{"$f":"VLOOKUP(DropDownList!$B$47,CntyQryCensus!$A$357:$CM$399,G$1)","v":44},{"$f":"VLOOKUP(DropDownList!$B$47,CntyQryCensus!$A$357:$CM$399,H$1)","v":108},{"$f":"VLOOKUP(DropDownList!$B$47,CntyQryCensus!$A$357:$CM$399,I$1)","v":65},{"$f":"VLOOKUP(DropDownList!$B$47,CntyQryCensus!$A$357:$CM$399,J$1)","v":101},{"$f":"VLOOKUP(DropDownList!$B$47,CntyQryCensus!$A$357:$CM$399,K$1)","v":103},{"$f":"VLOOKUP(DropDownList!$B$47,CntyQryCensus!$A$357:$CM$399,L$1)","v":112},{"$f":"VLOOKUP(DropDownList!$B$47,CntyQryCensus!$A$357:$CM$399,M$1)","v":170},{"$f":"VLOOKUP(DropDownList!$B$47,CntyQryCensus!$A$357:$CM$399,N$1)","v":164},{"$f":"VLOOKUP(DropDownList!$B$47,CntyQryCensus!$A$357:$CM$399,O$1)","v":280},{"$f":"VLOOKUP(DropDownList!$B$47,CntyQryCensus!$A$357:$CM$399,P$1)","v":340},{"$f":"VLOOKUP(DropDownList!$B$47,CntyQryCensus!$A$357:$CM$399,Q$1)","v":340},{"$f":"VLOOKUP(DropDownList!$B$47,CntyQryCensus!$A$357:$CM$399,R$1)","v":358},{"$f":"VLOOKUP(DropDownList!$B$47,CntyQryCensus!$A$357:$CM$399,S$1)","v":450},{"$f":"VLOOKUP(DropDownList!$B$47,CntyQryCensus!$A$357:$CM$399,T$1)","v":255},{"$f":"VLOOKUP(DropDownList!$B$47,CntyQryCensus!$A$357:$CM$399,U$1)","v":238},{"$f":"VLOOKUP(DropDownList!$B$47,CntyQryCensus!$A$357:$CM$399,V$1)","v":273},{"$f":"VLOOKUP(DropDownList!$B$47,CntyQryCensus!$A$357:$CM$399,W$1)","v":84},{"$f":"VLOOKUP(DropDownList!$B$47,CntyQryCensus!$A$357:$CM$399,X$1)","v":137},{"$f":"VLOOKUP(DropDownList!$B$47,CntyQryCensus!$A$357:$CM$399,Y$1)","v":37},{"$f":"VLOOKUP(DropDownList!$B$47,CntyQryCensus!$A$357:$CM$399,Z$1)","v":0},{"$f":"VLOOKUP(DropDownList!$B$47,CntyQryCensus!$A$357:$CM$399,AA$1)","v":7},{"$f":"VLOOKUP(DropDownList!$B$47,CntyQryCensus!$A$357:$CM$399,AB$1)","v":111},{"$f":"VLOOKUP(DropDownList!$B$47,CntyQryCensus!$A$357:$CM$399,AC$1)","v":601},{"$f":"VLOOKUP(DropDownList!$B$47,CntyQryCensus!$A$357:$CM$399,AD$1)","v":3777},{"$f":"VLOOKUP(DropDownList!$B$47,CntyQryCensus!$A$357:$CM$399,AE$1)","v":212},{"$f":"VLOOKUP(DropDownList!$B$47,CntyQryCensus!$A$357:$CM$399,AF$1)","v":448},{"$f":"VLOOKUP(DropDownList!$B$47,CntyQryCensus!$A$357:$CM$399,AG$1)","v":594},{"$f":"VLOOKUP(DropDownList!$B$47,CntyQryCensus!$A$357:$CM$399,AH$1)","v":464},{"$f":"VLOOKUP(DropDownList!$B$47,CntyQryCensus!$A$357:$CM$399,AI$1)","v":519},{"$f":"VLOOKUP(DropDownList!$B$47,CntyQryCensus!$A$357:$CM$399,AJ$1)","v":267},{"$f":"VLOOKUP(DropDownList!$B$47,CntyQryCensus!$A$357:$CM$399,AK$1)","v":209},{"$f":"VLOOKUP(DropDownList!$B$47,CntyQryCensus!$A$357:$CM$399,AL$1)","v":232},{"$f":"VLOOKUP(DropDownList!$B$47,CntyQryCensus!$A$357:$CM$399,AM$1)","v":682},{"$f":"VLOOKUP(DropDownList!$B$47,CntyQryCensus!$A$357:$CM$399,AN$1)","v":150},{"$f":"VLOOKUP(DropDownList!$B$47,CntyQryCensus!$A$357:$CM$399,AO$1)","v":3777},{"$f":"VLOOKUP(DropDownList!$B$47,CntyQryCensus!$A$357:$CM$399,AP$1)","v":575},{"$f":"VLOOKUP(DropDownList!$B$47,CntyQryCensus!$A$357:$CM$399,AQ$1)","v":25},{"$f":"VLOOKUP(DropDownList!$B$47,CntyQryCensus!$A$357:$CM$399,AR$1)","v":56},{"$f":"VLOOKUP(DropDownList!$B$47,CntyQryCensus!$A$357:$CM$399,AS$1)","v":37},{"$f":"VLOOKUP(DropDownList!$B$47,CntyQryCensus!$A$357:$CM$399,AT$1)","v":0},{"$f":"VLOOKUP(DropDownList!$B$47,CntyQryCensus!$A$357:$CM$399,AU$1)","v":423},{"$f":"VLOOKUP(DropDownList!$B$47,CntyQryCensus!$A$357:$CM$399,AV$1)","v":34},{"$f":"VLOOKUP(DropDownList!$B$47,CntyQryCensus!$A$357:$CM$399,AW$1)","v":740},{"$f":"VLOOKUP(DropDownList!$B$47,CntyQryCensus!$A$357:$CM$399,AX$1)","v":83},{"$f":"VLOOKUP(DropDownList!$B$47,CntyQryCensus!$A$357:$CM$399,AY$1)","v":46},{"$f":"VLOOKUP(DropDownList!$B$47,CntyQryCensus!$A$357:$CM$399,AZ$1)","v":79},{"$f":"VLOOKUP(DropDownList!$B$47,CntyQryCensus!$A$357:$CM$399,BA$1)","v":57},{"$f":"VLOOKUP(DropDownList!$B$47,CntyQryCensus!$A$357:$CM$399,BB$1)","v":459},{"$f":"VLOOKUP(DropDownList!$B$47,CntyQryCensus!$A$357:$CM$399,BC$1)","v":16},{"$f":"VLOOKUP(DropDownList!$B$47,CntyQryCensus!$A$357:$CM$399,BD$1)","v":1016},{"$f":"VLOOKUP(DropDownList!$B$47,CntyQryCensus!$A$357:$CM$399,BE$1)","v":180},{"$f":"VLOOKUP(DropDownList!$B$47,CntyQryCensus!$A$357:$CM$399,BF$1)","v":150},{"$f":"VLOOKUP(DropDownList!$B$47,CntyQryCensus!$A$357:$CM$399,BG$1)","v":259},{"$f":"VLOOKUP(DropDownList!$B$47,CntyQryCensus!$A$357:$CM$399,BH$1)","v":166},{"$f":"VLOOKUP(DropDownList!$B$47,CntyQryCensus!$A$357:$CM$399,BI$1)","v":212},{"$f":"VLOOKUP(DropDownList!$B$47,CntyQryCensus!$A$357:$CM$399,BJ$1)","v":49},{"$f":"VLOOKUP(DropDownList!$B$47,CntyQryCensus!$A$357:$CM$399,BK$1)","v":751},{"$f":"VLOOKUP(DropDownList!$B$47,CntyQryCensus!$A$357:$CM$399,BL$1)","v":339},{"$f":"VLOOKUP(DropDownList!$B$47,CntyQryCensus!$A$357:$CM$399,BM$1)","v":188},{"$f":"VLOOKUP(DropDownList!$B$47,CntyQryCensus!$A$357:$CM$399,BN$1)","v":136},{"$f":"VLOOKUP(DropDownList!$B$47,CntyQryCensus!$A$357:$CM$399,BO$1)","v":44},{"$f":"VLOOKUP(DropDownList!$B$47,CntyQryCensus!$A$357:$CM$399,BP$1)","v":29},{"$f":"VLOOKUP(DropDownList!$B$47,CntyQryCensus!$A$357:$CM$399,BQ$1)","v":15},{"$f":"VLOOKUP(DropDownList!$B$47,CntyQryCensus!$A$357:$CM$399,BR$1)","v":486},{"$f":"VLOOKUP(DropDownList!$B$47,CntyQryCensus!$A$357:$CM$399,BS$1)","v":439},{"$f":"VLOOKUP(DropDownList!$B$47,CntyQryCensus!$A$357:$CM$399,BT$1)","v":16},{"$f":"VLOOKUP(DropDownList!$B$47,CntyQryCensus!$A$357:$CM$399,BU$1)","v":8},{"$f":"VLOOKUP(DropDownList!$B$47,CntyQryCensus!$A$357:$CM$399,BV$1)","v":0},{"$f":"VLOOKUP(DropDownList!$B$47,CntyQryCensus!$A$357:$CM$399,BW$1)","v":0},{"$f":"VLOOKUP(DropDownList!$B$47,CntyQryCensus!$A$357:$CM$399,BX$1)","v":23},{"$f":"VLOOKUP(DropDownList!$B$47,CntyQryCensus!$A$357:$CM$399,BY$1)","v":135},{"$f":"VLOOKUP(DropDownList!$B$47,CntyQryCensus!$A$357:$CM$399,BZ$1)","v":119},{"$f":"VLOOKUP(DropDownList!$B$47,CntyQryCensus!$A$357:$CM$399,CA$1)","v":8},{"$f":"VLOOKUP(DropDownList!$B$47,CntyQryCensus!$A$357:$CM$399,CB$1)","v":0},{"$f":"VLOOKUP(DropDownList!$B$47,CntyQryCensus!$A$357:$CM$399,CC$1)","v":0},{"$f":"VLOOKUP(DropDownList!$B$47,CntyQryCensus!$A$357:$CM$399,CD$1)","v":0},{"$f":"VLOOKUP(DropDownList!$B$47,CntyQryCensus!$A$357:$CM$399,CE$1)","v":8},{"$f":"VLOOKUP(DropDownList!$B$47,CntyQryCensus!$A$357:$CM$399,CF$1)","v":74},{"$f":"VLOOKUP(DropDownList!$B$47,CntyQryCensus!$A$357:$CM$399,CG$1)","v":69},{"$f":"VLOOKUP(DropDownList!$B$47,CntyQryCensus!$A$357:$CM$399,CH$1)","v":0},{"$f":"VLOOKUP(DropDownList!$B$47,CntyQryCensus!$A$357:$CM$399,CI$1)","v":0},{"$f":"VLOOKUP(DropDownList!$B$47,CntyQryCensus!$A$357:$CM$399,CJ$1)","v":0},{"$f":"VLOOKUP(DropDownList!$B$47,CntyQryCensus!$A$357:$CM$399,CK$1)","v":0},{"$f":"VLOOKUP(DropDownList!$B$47,CntyQryCensus!$A$357:$CM$399,CL$1)","v":5},{"$f":"VLOOKUP(DropDownList!$B$47,CntyQryCensus!$A$357:$CM$399,CM$1)","v":0}]
[]
[]
["Census 2000 SummaryFile3 Sample Data  -  SF3TownQry8HousingCostB"]
["NAME","LOGRECNO","COUNTY","TotalPop","H74SpecOwnerOccHU","H74OOHU<10k","H74OOHU10to15k","H74OOHU15to20k","H74OOHU20to25k","H74OOHU25to30k","H74OOHU30to35k","H74OOHU35to40k","H74OOHU40to50k","H74OOHU50to60k","H74OOHU60to70k","H74OOHU70to80k","H74OOHU80to90k","H74OOHU90to100k","H74OOHU100to125k","H74OOHU125to150k","H74OOHU150to175k","H74OOHU175to200k","H74OOHU200to250k","H74OOHU250to300k","H74OOHU300to400k","H74OOHU400to500k","H74OOHU500to750k","H74OOHU750to1000k","H74OOHU1000kmore","H76OOHUMedianVal","H84OwnerOccHU","H84AllOOHU<10k","H84AllOOHU10to15k","H84AllOOHU15to20k","H84AllOOHU20to25k","H84AllOOHU25to30k","H84AllOOHU30to35k","H84AllOOHU35to40k","H84AllOOHU40to50k","H84AllOOHU50to60k","H84AllOOHU60to70k","H84AllOOHU70to80k","H84AllOOHU80to90k","H84AllOOHU90to100k","H84AllOOHU100to125k","H84AllOOHU125to150k","H84AllOOHU150to175k","H84AllOOHU175to200k","H84AllOOHU200to250k","H84AllOOHU250to300k","H84AllOOHU300to400k","H84AllOOHU400to500k","H84AllOOHU500to750k","H84AllOOHU750to1000k","H84AllOOHU1000kmore","H85OOHUMedVal","H90SOOHU","H90HUwMorgt","H90HUwMtgHC<200","H90HUwMtgHC200to300","H90HUwMtgHC300to400","H90HUwMtgHC400to500","H90HUwMtgHC500to600","H90HUwMtgHC600to700","H90HUwMtgHC700to800","H90HUwMtgHC800to900","H90HUwMtgHC900to1000","H90HUwMtgHC1000to1250","H90HUwMtgHC1250to1500","H90HUwMtgHC1500to2000","H90HUwMtgHC2000to2500","H90HUwMtgHC2500to3000","H90HUwMtgHC3000orMore","H90HUwOutMorgt","H90HUwOutMtgHC<100","H90HUwOutMtgHC100to150","H90HUwOutMtgHC150to200","H90HUwOutMtgHC200to250","H90HUwOutMtgHC250to300","H90HUwOutMtgHC300to350","H90HUwOutMtgHC350to400","H90HUwOutMtgHC400to500","H90HUwOutMtgHC500to600","H90HUwOutMtgHC600to700","H90HUwOutMtgHC700to800","H90HUwOutMtgHC800to900","H90HUwOutMtgHC900to1000","H90HUwOutMtgHC1000orMore","H91MedianOCHUwMtg","H91MedianOCHUwOutMtg","H94SpecOOHU","H94HUwMortg","H94HUwMtgHC<10pct","H94HUwMtgHC10to15pct","H94HUwMtgHC15to20pct","H94HUwMtgHC20to25pct","H94HUwMtgHC25to30pct","H94HUwMtgHC30to35pct","H94HUwMtgHC35to40pct","H94HUwMtgHC40to50pct","H94HUwMtgHC50pctOrMore","H94HUwMtgHCpctNotComp","H94HUWOutMortg","H94HUWOutMortgHC<10pct","H94HUWOutMortgHC10to15pct","H94HUWOutMortgHC15to20pct","H94HUWOutMortgHC20to25pct","H94HUWOutMortgHC25to30pct","H94HUWOutMortgHC30to35pct","H94HUWOutMortgHC35to40pct","H94HUWOutMortgHC40to50pct","H94HUWOutMortgHC50pctOrMore","H94HUWOutMortgHCpctNotComp","H97SpecifOwnOccHU","H97SOOHUInc<10k","H97SOOHUInc<10kHC<20pct","H97SOOHUInc<10kHC20to25pct","H97SOOHUInc<10kHC25to30pct","H97SOOHUInc<10kHC30to35pct","H97SOOHUInc<10kHC>35pct","H97SOOHUInc<10kHCpctNotComput","H97SOOHUInc10to20k","H97SOOHUInc10to20kHC<20pct","H97SOOHUInc10to20kHC20to25pct","H97SOOHUInc10to20kHC25to30pct","H97SOOHUInc10to20kHC30to35pct","H97SOOHUInc10to20kHC>35pct","H97SOOHUInc10to20kHCpctNotComput","H97SOOHUInc20to35k","H97SOOHUInc20to35kRC<20pct","H97SOOHUInc20to35kRC20to25pct","H97SOOHUInc20to35kRC25to30pct","H97SOOHUInc20to35kRC30to35pct","H97SOOHUInc20to35kRC>35pct","H97SOOHUInc20to35kRCpctNotComput","H97SOOHUInc35to50k","H97SOOHUInc35to50kRC<20pct","H97SOOHUInc35to50kRC20to25pct","H97SOOHUInc35to50kRC25to30pct","H97SOOHUInc35to50kRC30to35pct","H97SOOHUInc35to50kRC>35pct","H97SOOHUInc35to50kRCpctNotCompute","H97SOOHUInc50to75k","H97SOOHUInc50to75kRC<20pct","H97SOOHUInc50to75kRC20to25pct","H97SOOHUInc50to75kRC25to30pct","H97SOOHUInc50to75kRC30to35pct","H97SOOHUInc50to75kRC>35pct","H97SOOHUInc50to75kRCpctNotComput","H97SOOHUInc75to100k","H97SOOHUInc75to100kRC<20pct","H97SOOHUInc75to100kRC20to25pct","H97SOOHUInc75to100kRC25to30pct","H97SOOHUInc75to100kRC30to35pct","H97SOOHUInc75to100kRC>35pct","H97SOOHUInc75to100kRCpctNotCompute","H97SOOHUInc100to150k","H97SOOHUInc100to150kRC<20pct","H97SOOHUInc100to150kRC20to25pct","H97SOOHUInc100to150kRC25to30pct","H97SOOHUInc100to150kRC30to35pct","H97SOOHUInc100to150kRC>35pct","H97SOOHUInc100to150kRCpctNotCompute","H97SOOHUInc>150k","H97SOOHUInc>150kRC<20pct","H97SOOHUInc>150kRC20to25pct","H97SOOHUInc>150kRC25to30pct","H97SOOHUInc>150kRC30to35pct","H97SOOHUInc>150kRC>35pct","H97SOOHUInc>150kRCpctNotCompute"]
[{"$f":"VLOOKUP(DropDownList!$B$47,CntyQryCensus!$A$408:$FN$450,A$1)","v":"Rochester"},{"$f":"VLOOKUP(DropDownList!$B$47,CntyQryCensus!$A$408:$FN$450,B$1)","v":"0003956"},{"$f":"VLOOKUP(DropDownList!$B$47,CntyQryCensus!$A$408:$FN$450,C$1)","v":"65140"},{"$f":"VLOOKUP(DropDownList!$B$47,CntyQryCensus!$A$408:$FN$450,D$1)","v":28461},{"$f":"VLOOKUP(DropDownList!$B$47,CntyQryCensus!$A$408:$FN$450,E$1)","v":4928},{"$f":"VLOOKUP(DropDownList!$B$47,CntyQryCensus!$A$408:$FN$450,F$1)","v":0},{"$f":"VLOOKUP(DropDownList!$B$47,CntyQryCensus!$A$408:$FN$450,G$1)","v":6},{"$f":"VLOOKUP(DropDownList!$B$47,CntyQryCensus!$A$408:$FN$450,H$1)","v":0},{"$f":"VLOOKUP(DropDownList!$B$47,CntyQryCensus!$A$408:$FN$450,I$1)","v":8},{"$f":"VLOOKUP(DropDownList!$B$47,CntyQryCensus!$A$408:$FN$450,J$1)","v":7},{"$f":"VLOOKUP(DropDownList!$B$47,CntyQryCensus!$A$408:$FN$450,K$1)","v":14},{"$f":"VLOOKUP(DropDownList!$B$47,CntyQryCensus!$A$408:$FN$450,L$1)","v":0},{"$f":"VLOOKUP(DropDownList!$B$47,CntyQryCensus!$A$408:$FN$450,M$1)","v":33},{"$f":"VLOOKUP(DropDownList!$B$47,CntyQryCensus!$A$408:$FN$450,N$1)","v":107},{"$f":"VLOOKUP(DropDownList!$B$47,CntyQryCensus!$A$408:$FN$450,O$1)","v":357},{"$f":"VLOOKUP(DropDownList!$B$47,CntyQryCensus!$A$408:$FN$450,P$1)","v":487},{"$f":"VLOOKUP(DropDownList!$B$47,CntyQryCensus!$A$408:$FN$450,Q$1)","v":765},{"$f":"VLOOKUP(DropDownList!$B$47,CntyQryCensus!$A$408:$FN$450,R$1)","v":726},{"$f":"VLOOKUP(DropDownList!$B$47,CntyQryCensus!$A$408:$FN$450,S$1)","v":1087},{"$f":"VLOOKUP(DropDownList!$B$47,CntyQryCensus!$A$408:$FN$450,T$1)","v":693},{"$f":"VLOOKUP(DropDownList!$B$47,CntyQryCensus!$A$408:$FN$450,U$1)","v":329},{"$f":"VLOOKUP(DropDownList!$B$47,CntyQryCensus!$A$408:$FN$450,V$1)","v":98},{"$f":"VLOOKUP(DropDownList!$B$47,CntyQryCensus!$A$408:$FN$450,W$1)","v":124},{"$f":"VLOOKUP(DropDownList!$B$47,CntyQryCensus!$A$408:$FN$450,X$1)","v":49},{"$f":"VLOOKUP(DropDownList!$B$47,CntyQryCensus!$A$408:$FN$450,Y$1)","v":27},{"$f":"VLOOKUP(DropDownList!$B$47,CntyQryCensus!$A$408:$FN$450,Z$1)","v":11},{"$f":"VLOOKUP(DropDownList!$B$47,CntyQryCensus!$A$408:$FN$450,AA$1)","v":0},{"$f":"VLOOKUP(DropDownList!$B$47,CntyQryCensus!$A$408:$FN$450,AB$1)","v":0},{"$f":"VLOOKUP(DropDownList!$B$47,CntyQryCensus!$A$408:$FN$450,AC$1)","v":0},{"$f":"VLOOKUP(DropDownList!$B$47,CntyQryCensus!$A$408:$FN$450,AD$1)","v":99400},{"$f":"VLOOKUP(DropDownList!$B$47,CntyQryCensus!$A$408:$FN$450,AE$1)","v":7637},{"$f":"VLOOKUP(DropDownList!$B$47,CntyQryCensus!$A$408:$FN$450,AF$1)","v":130},{"$f":"VLOOKUP(DropDownList!$B$47,CntyQryCensus!$A$408:$FN$450,AG$1)","v":140},{"$f":"VLOOKUP(DropDownList!$B$47,CntyQryCensus!$A$408:$FN$450,AH$1)","v":260},{"$f":"VLOOKUP(DropDownList!$B$47,CntyQryCensus!$A$408:$FN$450,AI$1)","v":252},{"$f":"VLOOKUP(DropDownList!$B$47,CntyQryCensus!$A$408:$FN$450,AJ$1)","v":212},{"$f":"VLOOKUP(DropDownList!$B$47,CntyQryCensus!$A$408:$FN$450,AK$1)","v":229},{"$f":"VLOOKUP(DropDownList!$B$47,CntyQryCensus!$A$408:$FN$450,AL$1)","v":180},{"$f":"VLOOKUP(DropDownList!$B$47,CntyQryCensus!$A$408:$FN$450,AM$1)","v":164},{"$f":"VLOOKUP(DropDownList!$B$47,CntyQryCensus!$A$408:$FN$450,AN$1)","v":261},{"$f":"VLOOKUP(DropDownList!$B$47,CntyQryCensus!$A$408:$FN$450,AO$1)","v":496},{"$f":"VLOOKUP(DropDownList!$B$47,CntyQryCensus!$A$408:$FN$450,AP$1)","v":682},{"$f":"VLOOKUP(DropDownList!$B$47,CntyQryCensus!$A$408:$FN$450,AQ$1)","v":876},{"$f":"VLOOKUP(DropDownList!$B$47,CntyQryCensus!$A$408:$FN$450,AR$1)","v":861},{"$f":"VLOOKUP(DropDownList!$B$47,CntyQryCensus!$A$408:$FN$450,AS$1)","v":1329},{"$f":"VLOOKUP(DropDownList!$B$47,CntyQryCensus!$A$408:$FN$450,AT$1)","v":771},{"$f":"VLOOKUP(DropDownList!$B$47,CntyQryCensus!$A$408:$FN$450,AU$1)","v":387},{"$f":"VLOOKUP(DropDownList!$B$47,CntyQryCensus!$A$408:$FN$450,AV$1)","v":134},{"$f":"VLOOKUP(DropDownList!$B$47,CntyQryCensus!$A$408:$FN$450,AW$1)","v":150},{"$f":"VLOOKUP(DropDownList!$B$47,CntyQryCensus!$A$408:$FN$450,AX$1)","v":61},{"$f":"VLOOKUP(DropDownList!$B$47,CntyQryCensus!$A$408:$FN$450,AY$1)","v":34},{"$f":"VLOOKUP(DropDownList!$B$47,CntyQryCensus!$A$408:$FN$450,AZ$1)","v":22},{"$f":"VLOOKUP(DropDownList!$B$47,CntyQryCensus!$A$408:$FN$450,BA$1)","v":6},{"$f":"VLOOKUP(DropDownList!$B$47,CntyQryCensus!$A$408:$FN$450,BB$1)","v":0},{"$f":"VLOOKUP(DropDownList!$B$47,CntyQryCensus!$A$408:$FN$450,BC$1)","v":0},{"$f":"VLOOKUP(DropDownList!$B$47,CntyQryCensus!$A$408:$FN$450,BD$1)","v":89300},{"$f":"VLOOKUP(DropDownList!$B$47,CntyQryCensus!$A$408:$FN$450,BE$1)","v":4928},{"$f":"VLOOKUP(DropDownList!$B$47,CntyQryCensus!$A$408:$FN$450,BF$1)","v":3576},{"$f":"VLOOKUP(DropDownList!$B$47,CntyQryCensus!$A$408:$FN$450,BG$1)","v":0},{"$f":"VLOOKUP(DropDownList!$B$47,CntyQryCensus!$A$408:$FN$450,BH$1)","v":15},{"$f":"VLOOKUP(DropDownList!$B$47,CntyQryCensus!$A$408:$FN$450,BI$1)","v":7},{"$f":"VLOOKUP(DropDownList!$B$47,CntyQryCensus!$A$408:$FN$450,BJ$1)","v":55},{"$f":"VLOOKUP(DropDownList!$B$47,CntyQryCensus!$A$408:$FN$450,BK$1)","v":93},{"$f":"VLOOKUP(DropDownList!$B$47,CntyQryCensus!$A$408:$FN$450,BL$1)","v":188},{"$f":"VLOOKUP(DropDownList!$B$47,CntyQryCensus!$A$408:$FN$450,BM$1)","v":324},{"$f":"VLOOKUP(DropDownList!$B$47,CntyQryCensus!$A$408:$FN$450,BN$1)","v":480},{"$f":"VLOOKUP(DropDownList!$B$47,CntyQryCensus!$A$408:$FN$450,BO$1)","v":478},{"$f":"VLOOKUP(DropDownList!$B$47,CntyQryCensus!$A$408:$FN$450,BP$1)","v":1039},{"$f":"VLOOKUP(DropDownList!$B$47,CntyQryCensus!$A$408:$FN$450,BQ$1)","v":502},{"$f":"VLOOKUP(DropDownList!$B$47,CntyQryCensus!$A$408:$FN$450,BR$1)","v":268},{"$f":"VLOOKUP(DropDownList!$B$47,CntyQryCensus!$A$408:$FN$450,BS$1)","v":104},{"$f":"VLOOKUP(DropDownList!$B$47,CntyQryCensus!$A$408:$FN$450,BT$1)","v":9},{"$f":"VLOOKUP(DropDownList!$B$47,CntyQryCensus!$A$408:$FN$450,BU$1)","v":14},{"$f":"VLOOKUP(DropDownList!$B$47,CntyQryCensus!$A$408:$FN$450,BV$1)","v":1352},{"$f":"VLOOKUP(DropDownList!$B$47,CntyQryCensus!$A$408:$FN$450,BW$1)","v":0},{"$f":"VLOOKUP(DropDownList!$B$47,CntyQryCensus!$A$408:$FN$450,BX$1)","v":0},{"$f":"VLOOKUP(DropDownList!$B$47,CntyQryCensus!$A$408:$FN$450,BY$1)","v":14},{"$f":"VLOOKUP(DropDownList!$B$47,CntyQryCensus!$A$408:$FN$450,BZ$1)","v":60},{"$f":"VLOOKUP(DropDownList!$B$47,CntyQryCensus!$A$408:$FN$450,CA$1)","v":138},{"$f":"VLOOKUP(DropDownList!$B$47,CntyQryCensus!$A$408:$FN$450,CB$1)","v":233},{"$f":"VLOOKUP(DropDownList!$B$47,CntyQryCensus!$A$408:$FN$450,CC$1)","v":269},{"$f":"VLOOKUP(DropDownList!$B$47,CntyQryCensus!$A$408:$FN$450,CD$1)","v":340},{"$f":"VLOOKUP(DropDownList!$B$47,CntyQryCensus!$A$408:$FN$450,CE$1)","v":215},{"$f":"VLOOKUP(DropDownList!$B$47,CntyQryCensus!$A$408:$FN$450,CF$1)","v":61},{"$f":"VLOOKUP(DropDownList!$B$47,CntyQryCensus!$A$408:$FN$450,CG$1)","v":22},{"$f":"VLOOKUP(DropDownList!$B$47,CntyQryCensus!$A$408:$FN$450,CH$1)","v":0},{"$f":"VLOOKUP(DropDownList!$B$47,CntyQryCensus!$A$408:$FN$450,CI$1)","v":0},{"$f":"VLOOKUP(DropDownList!$B$47,CntyQryCensus!$A$408:$FN$450,CJ$1)","v":0},{"$f":"VLOOKUP(DropDownList!$B$47,CntyQryCensus!$A$408:$FN$450,CK$1)","v":1036},{"$f":"VLOOKUP(DropDownList!$B$47,CntyQryCensus!$A$408:$FN$450,CL$1)","v":393},{"$f":"VLOOKUP(DropDownList!$B$47,CntyQryCensus!$A$408:$FN$450,CM$1)","v":4928},{"$f":"VLOOKUP(DropDownList!$B$47,CntyQryCensus!$A$408:$FN$450,CN$1)","v":3576},{"$f":"VLOOKUP(DropDownList!$B$47,CntyQryCensus!$A$408:$FN$450,CO$1)","v":104},{"$f":"VLOOKUP(DropDownList!$B$47,CntyQryCensus!$A$408:$FN$450,CP$1)","v":413},{"$f":"VLOOKUP(DropDownList!$B$47,CntyQryCensus!$A$408:$FN$450,CQ$1)","v":763},{"$f":"VLOOKUP(DropDownList!$B$47,CntyQryCensus!$A$408:$FN$450,CR$1)","v":897},{"$f":"VLOOKUP(DropDownList!$B$47,CntyQryCensus!$A$408:$FN$450,CS$1)","v":443},{"$f":"VLOOKUP(DropDownList!$B$47,CntyQryCensus!$A$408:$FN$450,CT$1)","v":385},{"$f":"VLOOKUP(DropDownList!$B$47,CntyQryCensus!$A$408:$FN$450,CU$1)","v":152},{"$f":"VLOOKUP(DropDownList!$B$47,CntyQryCensus!$A$408:$FN$450,CV$1)","v":148},{"$f":"VLOOKUP(DropDownList!$B$47,CntyQryCensus!$A$408:$FN$450,CW$1)","v":258},{"$f":"VLOOKUP(DropDownList!$B$47,CntyQryCensus!$A$408:$FN$450,CX$1)","v":13},{"$f":"VLOOKUP(DropDownList!$B$47,CntyQryCensus!$A$408:$FN$450,CY$1)","v":1352},{"$f":"VLOOKUP(DropDownList!$B$47,CntyQryCensus!$A$408:$FN$450,CZ$1)","v":363},{"$f":"VLOOKUP(DropDownList!$B$47,CntyQryCensus!$A$408:$FN$450,DA$1)","v":310},{"$f":"VLOOKUP(DropDownList!$B$47,CntyQryCensus!$A$408:$FN$450,DB$1)","v":241},{"$f":"VLOOKUP(DropDownList!$B$47,CntyQryCensus!$A$408:$FN$450,DC$1)","v":142},{"$f":"VLOOKUP(DropDownList!$B$47,CntyQryCensus!$A$408:$FN$450,DD$1)","v":62},{"$f":"VLOOKUP(DropDownList!$B$47,CntyQryCensus!$A$408:$FN$450,DE$1)","v":73},{"$f":"VLOOKUP(DropDownList!$B$47,CntyQryCensus!$A$408:$FN$450,DF$1)","v":19},{"$f":"VLOOKUP(DropDownList!$B$47,CntyQryCensus!$A$408:$FN$450,DG$1)","v":68},{"$f":"VLOOKUP(DropDownList!$B$47,CntyQryCensus!$A$408:$FN$450,DH$1)","v":57},{"$f":"VLOOKUP(DropDownList!$B$47,CntyQryCensus!$A$408:$FN$450,DI$1)","v":17},{"$f":"VLOOKUP(DropDownList!$B$47,CntyQryCensus!$A$408:$FN$450,DJ$1)","v":4928},{"$f":"VLOOKUP(DropDownList!$B$47,CntyQryCensus!$A$408:$FN$450,DK$1)","v":138},{"$f":"VLOOKUP(DropDownList!$B$47,CntyQryCensus!$A$408:$FN$450,DL$1)","v":0},{"$f":"VLOOKUP(DropDownList!$B$47,CntyQryCensus!$A$408:$FN$450,DM$1)","v":0},{"$f":"VLOOKUP(DropDownList!$B$47,CntyQryCensus!$A$408:$FN$450,DN$1)","v":0},{"$f":"VLOOKUP(DropDownList!$B$47,CntyQryCensus!$A$408:$FN$450,DO$1)","v":0},{"$f":"VLOOKUP(DropDownList!$B$47,CntyQryCensus!$A$408:$FN$450,DP$1)","v":108},{"$f":"VLOOKUP(DropDownList!$B$47,CntyQryCensus!$A$408:$FN$450,DQ$1)","v":30},{"$f":"VLOOKUP(DropDownList!$B$47,CntyQryCensus!$A$408:$FN$450,DR$1)","v":405},{"$f":"VLOOKUP(DropDownList!$B$47,CntyQryCensus!$A$408:$FN$450,DS$1)","v":38},{"$f":"VLOOKUP(DropDownList!$B$47,CntyQryCensus!$A$408:$FN$450,DT$1)","v":75},{"$f":"VLOOKUP(DropDownList!$B$47,CntyQryCensus!$A$408:$FN$450,DU$1)","v":52},{"$f":"VLOOKUP(DropDownList!$B$47,CntyQryCensus!$A$408:$FN$450,DV$1)","v":54},{"$f":"VLOOKUP(DropDownList!$B$47,CntyQryCensus!$A$408:$FN$450,DW$1)","v":186},{"$f":"VLOOKUP(DropDownList!$B$47,CntyQryCensus!$A$408:$FN$450,DX$1)","v":0},{"$f":"VLOOKUP(DropDownList!$B$47,CntyQryCensus!$A$408:$FN$450,DY$1)","v":781},{"$f":"VLOOKUP(DropDownList!$B$47,CntyQryCensus!$A$408:$FN$450,DZ$1)","v":285},{"$f":"VLOOKUP(DropDownList!$B$47,CntyQryCensus!$A$408:$FN$450,EA$1)","v":90},{"$f":"VLOOKUP(DropDownList!$B$47,CntyQryCensus!$A$408:$FN$450,EB$1)","v":58},{"$f":"VLOOKUP(DropDownList!$B$47,CntyQryCensus!$A$408:$FN$450,EC$1)","v":123},{"$f":"VLOOKUP(DropDownList!$B$47,CntyQryCensus!$A$408:$FN$450,ED$1)","v":225},{"$f":"VLOOKUP(DropDownList!$B$47,CntyQryCensus!$A$408:$FN$450,EE$1)","v":0},{"$f":"VLOOKUP(DropDownList!$B$47,CntyQryCensus!$A$408:$FN$450,EF$1)","v":1067},{"$f":"VLOOKUP(DropDownList!$B$47,CntyQryCensus!$A$408:$FN$450,EG$1)","v":349},{"$f":"VLOOKUP(DropDownList!$B$47,CntyQryCensus!$A$408:$FN$450,EH$1)","v":217},{"$f":"VLOOKUP(DropDownList!$B$47,CntyQryCensus!$A$408:$FN$450,EI$1)","v":178},{"$f":"VLOOKUP(DropDownList!$B$47,CntyQryCensus!$A$408:$FN$450,EJ$1)","v":184},{"$f":"VLOOKUP(DropDownList!$B$47,CntyQryCensus!$A$408:$FN$450,EK$1)","v":139},{"$f":"VLOOKUP(DropDownList!$B$47,CntyQryCensus!$A$408:$FN$450,EL$1)","v":0},{"$f":"VLOOKUP(DropDownList!$B$47,CntyQryCensus!$A$408:$FN$450,EM$1)","v":1437},{"$f":"VLOOKUP(DropDownList!$B$47,CntyQryCensus!$A$408:$FN$450,EN$1)","v":653},{"$f":"VLOOKUP(DropDownList!$B$47,CntyQryCensus!$A$408:$FN$450,EO$1)","v":499},{"$f":"VLOOKUP(DropDownList!$B$47,CntyQryCensus!$A$408:$FN$450,EP$1)","v":182},{"$f":"VLOOKUP(DropDownList!$B$47,CntyQryCensus!$A$408:$FN$450,EQ$1)","v":80},{"$f":"VLOOKUP(DropDownList!$B$47,CntyQryCensus!$A$408:$FN$450,ER$1)","v":23},{"$f":"VLOOKUP(DropDownList!$B$47,CntyQryCensus!$A$408:$FN$450,ES$1)","v":0},{"$f":"VLOOKUP(DropDownList!$B$47,CntyQryCensus!$A$408:$FN$450,ET$1)","v":612},{"$f":"VLOOKUP(DropDownList!$B$47,CntyQryCensus!$A$408:$FN$450,EU$1)","v":430},{"$f":"VLOOKUP(DropDownList!$B$47,CntyQryCensus!$A$408:$FN$450,EV$1)","v":130},{"$f":"VLOOKUP(DropDownList!$B$47,CntyQryCensus!$A$408:$FN$450,EW$1)","v":29},{"$f":"VLOOKUP(DropDownList!$B$47,CntyQryCensus!$A$408:$FN$450,EX$1)","v":8},{"$f":"VLOOKUP(DropDownList!$B$47,CntyQryCensus!$A$408:$FN$450,EY$1)","v":15},{"$f":"VLOOKUP(DropDownList!$B$47,CntyQryCensus!$A$408:$FN$450,EZ$1)","v":0},{"$f":"VLOOKUP(DropDownList!$B$47,CntyQryCensus!$A$408:$FN$450,FA$1)","v":344},{"$f":"VLOOKUP(DropDownList!$B$47,CntyQryCensus!$A$408:$FN$450,FB$1)","v":295},{"$f":"VLOOKUP(DropDownList!$B$47,CntyQryCensus!$A$408:$FN$450,FC$1)","v":28},{"$f":"VLOOKUP(DropDownList!$B$47,CntyQryCensus!$A$408:$FN$450,FD$1)","v":6},{"$f":"VLOOKUP(DropDownList!$B$47,CntyQryCensus!$A$408:$FN$450,FE$1)","v":9},{"$f":"VLOOKUP(DropDownList!$B$47,CntyQryCensus!$A$408:$FN$450,FF$1)","v":6},{"$f":"VLOOKUP(DropDownList!$B$47,CntyQryCensus!$A$408:$FN$450,FG$1)","v":0},{"$f":"VLOOKUP(DropDownList!$B$47,CntyQryCensus!$A$408:$FN$450,FH$1)","v":144},{"$f":"VLOOKUP(DropDownList!$B$47,CntyQryCensus!$A$408:$FN$450,FI$1)","v":144},{"$f":"VLOOKUP(DropDownList!$B$47,CntyQryCensus!$A$408:$FN$450,FJ$1)","v":0},{"$f":"VLOOKUP(DropDownList!$B$47,CntyQryCensus!$A$408:$FN$450,FK$1)","v":0},{"$f":"VLOOKUP(DropDownList!$B$47,CntyQryCensus!$A$408:$FN$450,FL$1)","v":0},{"$f":"VLOOKUP(DropDownList!$B$47,CntyQryCensus!$A$408:$FN$450,FM$1)","v":0},{"$f":"VLOOKUP(DropDownList!$B$47,CntyQryCensus!$A$408:$FN$450,FN$1)","v":0}]
[]
[]
["Census 2000 SummaryFile3 Sample Data  -  SF3TownQry9HHIncomeByTenure"]
["NAME","LOGRECNO","COUNTY","TotalPop","HCT11OccHU","HCT11OwnOccHU","HCT11OOHUInc<5K","HCT11OOHUInc5to10K","HCT11OOHUInc10to15K","HCT11OOHUInc15to20K","HCT11OOHUInc20to25K","HCT11OOHUInc25to35K","HCT11OOHUInc35to50K","HCT11OOHUInc50to75K","HCT11OOHUInc75to100K","HCT11OOHUInc100to150K","HCT11OOHUInc>150K","HCT11RentOccHU","HCT11ROHUInc<5K","HCT11ROHUInc5to10K","HCT11ROHUInc10to15K","HCT11ROHUInc15to20K","HCT11ROHUInc20to25K","HCT11ROHUInc25to35K","HCT11ROHUInc35to50K","HCT11ROHUInc50to75K","HCT11ROHUInc75to100K","HCT11ROHUInc100to150K","HCT11ROHUInc>150K","HCT12MedHHInc","HCT12MedOwnOccHHInc","HCT12MedRentOccHHInc","Summary Level"]
[{"$f":"VLOOKUP(DropDownList!$B$47,CntyQryCensus!$A$459:$AG$501,A$1)","v":"Rochester"},{"$f":"VLOOKUP(DropDownList!$B$47,CntyQryCensus!$A$459:$AG$501,B$1)","v":"0000318"},{"$f":"VLOOKUP(DropDownList!$B$47,CntyQryCensus!$A$459:$AG$501,C$1)","v":"017"},{"$f":"VLOOKUP(DropDownList!$B$47,CntyQryCensus!$A$459:$AG$501,D$1)","v":29752},{"$f":"VLOOKUP(DropDownList!$B$47,CntyQryCensus!$A$459:$AG$501,E$1)","v":29238},{"$f":"VLOOKUP(DropDownList!$B$47,CntyQryCensus!$A$459:$AG$501,F$1)","v":28388},{"$f":"VLOOKUP(DropDownList!$B$47,CntyQryCensus!$A$459:$AG$501,G$1)","v":251},{"$f":"VLOOKUP(DropDownList!$B$47,CntyQryCensus!$A$459:$AG$501,H$1)","v":92},{"$f":"VLOOKUP(DropDownList!$B$47,CntyQryCensus!$A$459:$AG$501,I$1)","v":361},{"$f":"VLOOKUP(DropDownList!$B$47,CntyQryCensus!$A$459:$AG$501,J$1)","v":15},{"$f":"VLOOKUP(DropDownList!$B$47,CntyQryCensus!$A$459:$AG$501,K$1)","v":131},{"$f":"VLOOKUP(DropDownList!$B$47,CntyQryCensus!$A$459:$AG$501,L$1)","v":514},{"$f":"VLOOKUP(DropDownList!$B$47,CntyQryCensus!$A$459:$AG$501,M$1)","v":547},{"$f":"VLOOKUP(DropDownList!$B$47,CntyQryCensus!$A$459:$AG$501,N$1)","v":29205},{"$f":"VLOOKUP(DropDownList!$B$47,CntyQryCensus!$A$459:$AG$501,O$1)","v":5457},{"$f":"VLOOKUP(DropDownList!$B$47,CntyQryCensus!$A$459:$AG$501,P$1)","v":3381},{"$f":"VLOOKUP(DropDownList!$B$47,CntyQryCensus!$A$459:$AG$501,Q$1)","v":3779},{"$f":"VLOOKUP(DropDownList!$B$47,CntyQryCensus!$A$459:$AG$501,R$1)","v":4024},{"$f":"VLOOKUP(DropDownList!$B$47,CntyQryCensus!$A$459:$AG$501,S$1)","v":4863},{"$f":"VLOOKUP(DropDownList!$B$47,CntyQryCensus!$A$459:$AG$501,T$1)","v":3851},{"$f":"VLOOKUP(DropDownList!$B$47,CntyQryCensus!$A$459:$AG$501,U$1)","v":2334},{"$f":"VLOOKUP(DropDownList!$B$47,CntyQryCensus!$A$459:$AG$501,V$1)","v":2063},{"$f":"VLOOKUP(DropDownList!$B$47,CntyQryCensus!$A$459:$AG$501,W$1)","v":40.700000000000003},{"$f":"VLOOKUP(DropDownList!$B$47,CntyQryCensus!$A$459:$AG$501,X$1)","v":39.5},{"$f":"VLOOKUP(DropDownList!$B$47,CntyQryCensus!$A$459:$AG$501,Y$1)","v":42.1},{"$f":"VLOOKUP(DropDownList!$B$47,CntyQryCensus!$A$459:$AG$501,Z$1)","v":12378},{"$f":"VLOOKUP(DropDownList!$B$47,CntyQryCensus!$A$459:$AG$501,AA$1)","v":29512},{"$f":"VLOOKUP(DropDownList!$B$47,CntyQryCensus!$A$459:$AG$501,AB$1)","v":14994},{"$f":"VLOOKUP(DropDownList!$B$47,CntyQryCensus!$A$459:$AG$501,AC$1)","v":14518},{"$f":"VLOOKUP(DropDownList!$B$47,CntyQryCensus!$A$459:$AG$501,AD$1)","v":2.38},{"$f":"VLOOKUP(DropDownList!$B$47,CntyQryCensus!$A$459:$AG$501,AE$1)","v":7936},{"$f":"VLOOKUP(DropDownList!$B$47,CntyQryCensus!$A$459:$AG$501,AF$1)","v":5788},{"$f":"VLOOKUP(DropDownList!$B$47,CntyQryCensus!$A$459:$AG$501,AG$1)","v":2148}]
[]
[]
[]
[]
[]
[{"$f":"VLOOKUP(DropDownList!$B$47,CntyQryCensus!$A$510:$DA$522,A$1)","v":"Rochester"}]
[]
[]
[]
[]
[]
[]
[]
["Census 2000 SummaryFile3 Sample Data - SF3TownQry10Disabil"]
["NAME","LOGRECNO","COUNTY","TotalPop","PCT026001-NonInstPop5yrs+","PCT026002-MaleNonInstPop5yrs+","PCT026003","PCT026004","PCT026005","PCT026006","PCT026007","PCT026008","PCT026009","PCT026010","PCT026011","PCT026012","PCT026013","PCT026014","PCT026015","PCT026016","PCT026017","PCT026018","PCT026019","PCT026020","PCT026021","PCT026022","PCT026023","PCT026024","PCT026025","PCT026026","PCT026027","PCT026028","PCT026029","PCT026030","PCT026031","PCT026032","PCT026033","PCT026034","PCT026035","PCT026036","PCT026037","PCT026038","PCT026039","PCT026040","PCT026041","PCT026042","PCT026043","PCT026044","PCT026045","PCT026046","PCT026047","PCT026048","PCT026049","PCT026050","PCT026051","PCT026052","PCT026053","PCT026054","PCT026055","PCT026056","PCT026057","PCT026058","PCT026059","PCT026060","PCT026061","PCT026062","PCT026063","PCT026064","PCT026065","PCT026066","PCT026067","PCT026068","PCT026069","PCT026070","PCT026071","PCT026072","PCT026073","PCT026074","PCT026075","PCT026076","PCT026077","PCT026078","PCT026079","PCT026080","PCT026081","PCT026082","PCT026083","PCT026084","PCT026085","PCT026086","PCT026087","PCT026088","PCT026089","PCT026090","PCT026091","PCT026092","PCT026093","PCT026094","PCT026095","PCT026096","PCT026097","PCT026098","PCT026099","PCT026100","PCT026101"]
[{"$f":"VLOOKUP(DropDownList!$B$47,CntyQryCensus!$A$510:$DA$522,A$1)","v":"Rochester"},{"$f":"VLOOKUP(DropDownList!$B$47,CntyQryCensus!$A$510:$DA$522,B$1)","v":"0003956"},{"$f":"VLOOKUP(DropDownList!$B$47,CntyQryCensus!$A$510:$DA$522,C$1)","v":"65140"},{"$f":"VLOOKUP(DropDownList!$B$47,CntyQryCensus!$A$510:$DA$522,D$1)","v":28461},{"$f":"VLOOKUP(DropDownList!$B$47,CntyQryCensus!$A$510:$DA$522,E$1)","v":26314},{"$f":"VLOOKUP(DropDownList!$B$47,CntyQryCensus!$A$510:$DA$522,F$1)","v":12732},{"$f":"VLOOKUP(DropDownList!$B$47,CntyQryCensus!$A$510:$DA$522,G$1)","v":2359},{"$f":"VLOOKUP(DropDownList!$B$47,CntyQryCensus!$A$510:$DA$522,H$1)","v":250},{"$f":"VLOOKUP(DropDownList!$B$47,CntyQryCensus!$A$510:$DA$522,I$1)","v":0},{"$f":"VLOOKUP(DropDownList!$B$47,CntyQryCensus!$A$510:$DA$522,J$1)","v":7},{"$f":"VLOOKUP(DropDownList!$B$47,CntyQryCensus!$A$510:$DA$522,K$1)","v":243},{"$f":"VLOOKUP(DropDownList!$B$47,CntyQryCensus!$A$510:$DA$522,L$1)","v":0},{"$f":"VLOOKUP(DropDownList!$B$47,CntyQryCensus!$A$510:$DA$522,M$1)","v":35},{"$f":"VLOOKUP(DropDownList!$B$47,CntyQryCensus!$A$510:$DA$522,N$1)","v":26},{"$f":"VLOOKUP(DropDownList!$B$47,CntyQryCensus!$A$510:$DA$522,O$1)","v":9},{"$f":"VLOOKUP(DropDownList!$B$47,CntyQryCensus!$A$510:$DA$522,P$1)","v":2074},{"$f":"VLOOKUP(DropDownList!$B$47,CntyQryCensus!$A$510:$DA$522,Q$1)","v":821},{"$f":"VLOOKUP(DropDownList!$B$47,CntyQryCensus!$A$510:$DA$522,R$1)","v":52},{"$f":"VLOOKUP(DropDownList!$B$47,CntyQryCensus!$A$510:$DA$522,S$1)","v":0},{"$f":"VLOOKUP(DropDownList!$B$47,CntyQryCensus!$A$510:$DA$522,T$1)","v":0},{"$f":"VLOOKUP(DropDownList!$B$47,CntyQryCensus!$A$510:$DA$522,U$1)","v":21},{"$f":"VLOOKUP(DropDownList!$B$47,CntyQryCensus!$A$510:$DA$522,V$1)","v":0},{"$f":"VLOOKUP(DropDownList!$B$47,CntyQryCensus!$A$510:$DA$522,W$1)","v":0},{"$f":"VLOOKUP(DropDownList!$B$47,CntyQryCensus!$A$510:$DA$522,X$1)","v":31},{"$f":"VLOOKUP(DropDownList!$B$47,CntyQryCensus!$A$510:$DA$522,Y$1)","v":39},{"$f":"VLOOKUP(DropDownList!$B$47,CntyQryCensus!$A$510:$DA$522,Z$1)","v":0},{"$f":"VLOOKUP(DropDownList!$B$47,CntyQryCensus!$A$510:$DA$522,AA$1)","v":39},{"$f":"VLOOKUP(DropDownList!$B$47,CntyQryCensus!$A$510:$DA$522,AB$1)","v":8},{"$f":"VLOOKUP(DropDownList!$B$47,CntyQryCensus!$A$510:$DA$522,AC$1)","v":31},{"$f":"VLOOKUP(DropDownList!$B$47,CntyQryCensus!$A$510:$DA$522,AD$1)","v":730},{"$f":"VLOOKUP(DropDownList!$B$47,CntyQryCensus!$A$510:$DA$522,AE$1)","v":8055},{"$f":"VLOOKUP(DropDownList!$B$47,CntyQryCensus!$A$510:$DA$522,AF$1)","v":1029},{"$f":"VLOOKUP(DropDownList!$B$47,CntyQryCensus!$A$510:$DA$522,AG$1)","v":202},{"$f":"VLOOKUP(DropDownList!$B$47,CntyQryCensus!$A$510:$DA$522,AH$1)","v":162},{"$f":"VLOOKUP(DropDownList!$B$47,CntyQryCensus!$A$510:$DA$522,AI$1)","v":102},{"$f":"VLOOKUP(DropDownList!$B$47,CntyQryCensus!$A$510:$DA$522,AJ$1)","v":0},{"$f":"VLOOKUP(DropDownList!$B$47,CntyQryCensus!$A$510:$DA$522,AK$1)","v":0},{"$f":"VLOOKUP(DropDownList!$B$47,CntyQryCensus!$A$510:$DA$522,AL$1)","v":563},{"$f":"VLOOKUP(DropDownList!$B$47,CntyQryCensus!$A$510:$DA$522,AM$1)","v":578},{"$f":"VLOOKUP(DropDownList!$B$47,CntyQryCensus!$A$510:$DA$522,AN$1)","v":77},{"$f":"VLOOKUP(DropDownList!$B$47,CntyQryCensus!$A$510:$DA$522,AO$1)","v":501},{"$f":"VLOOKUP(DropDownList!$B$47,CntyQryCensus!$A$510:$DA$522,AP$1)","v":119},{"$f":"VLOOKUP(DropDownList!$B$47,CntyQryCensus!$A$510:$DA$522,AQ$1)","v":382},{"$f":"VLOOKUP(DropDownList!$B$47,CntyQryCensus!$A$510:$DA$522,AR$1)","v":6448},{"$f":"VLOOKUP(DropDownList!$B$47,CntyQryCensus!$A$510:$DA$522,AS$1)","v":1497},{"$f":"VLOOKUP(DropDownList!$B$47,CntyQryCensus!$A$510:$DA$522,AT$1)","v":329},{"$f":"VLOOKUP(DropDownList!$B$47,CntyQryCensus!$A$510:$DA$522,AU$1)","v":60},{"$f":"VLOOKUP(DropDownList!$B$47,CntyQryCensus!$A$510:$DA$522,AV$1)","v":193},{"$f":"VLOOKUP(DropDownList!$B$47,CntyQryCensus!$A$510:$DA$522,AW$1)","v":41},{"$f":"VLOOKUP(DropDownList!$B$47,CntyQryCensus!$A$510:$DA$522,AX$1)","v":0},{"$f":"VLOOKUP(DropDownList!$B$47,CntyQryCensus!$A$510:$DA$522,AY$1)","v":35},{"$f":"VLOOKUP(DropDownList!$B$47,CntyQryCensus!$A$510:$DA$522,AZ$1)","v":279},{"$f":"VLOOKUP(DropDownList!$B$47,CntyQryCensus!$A$510:$DA$522,BA$1)","v":102},{"$f":"VLOOKUP(DropDownList!$B$47,CntyQryCensus!$A$510:$DA$522,BB$1)","v":177},{"$f":"VLOOKUP(DropDownList!$B$47,CntyQryCensus!$A$510:$DA$522,BC$1)","v":889},{"$f":"VLOOKUP(DropDownList!$B$47,CntyQryCensus!$A$510:$DA$522,BD$1)","v":13582},{"$f":"VLOOKUP(DropDownList!$B$47,CntyQryCensus!$A$510:$DA$522,BE$1)","v":2143},{"$f":"VLOOKUP(DropDownList!$B$47,CntyQryCensus!$A$510:$DA$522,BF$1)","v":71},{"$f":"VLOOKUP(DropDownList!$B$47,CntyQryCensus!$A$510:$DA$522,BG$1)","v":10},{"$f":"VLOOKUP(DropDownList!$B$47,CntyQryCensus!$A$510:$DA$522,BH$1)","v":7},{"$f":"VLOOKUP(DropDownList!$B$47,CntyQryCensus!$A$510:$DA$522,BI$1)","v":54},{"$f":"VLOOKUP(DropDownList!$B$47,CntyQryCensus!$A$510:$DA$522,BJ$1)","v":0},{"$f":"VLOOKUP(DropDownList!$B$47,CntyQryCensus!$A$510:$DA$522,BK$1)","v":28},{"$f":"VLOOKUP(DropDownList!$B$47,CntyQryCensus!$A$510:$DA$522,BL$1)","v":28},{"$f":"VLOOKUP(DropDownList!$B$47,CntyQryCensus!$A$510:$DA$522,BM$1)","v":0},{"$f":"VLOOKUP(DropDownList!$B$47,CntyQryCensus!$A$510:$DA$522,BN$1)","v":2044},{"$f":"VLOOKUP(DropDownList!$B$47,CntyQryCensus!$A$510:$DA$522,BO$1)","v":898},{"$f":"VLOOKUP(DropDownList!$B$47,CntyQryCensus!$A$510:$DA$522,BP$1)","v":63},{"$f":"VLOOKUP(DropDownList!$B$47,CntyQryCensus!$A$510:$DA$522,BQ$1)","v":0},{"$f":"VLOOKUP(DropDownList!$B$47,CntyQryCensus!$A$510:$DA$522,BR$1)","v":6},{"$f":"VLOOKUP(DropDownList!$B$47,CntyQryCensus!$A$510:$DA$522,BS$1)","v":30},{"$f":"VLOOKUP(DropDownList!$B$47,CntyQryCensus!$A$510:$DA$522,BT$1)","v":0},{"$f":"VLOOKUP(DropDownList!$B$47,CntyQryCensus!$A$510:$DA$522,BU$1)","v":5},{"$f":"VLOOKUP(DropDownList!$B$47,CntyQryCensus!$A$510:$DA$522,BV$1)","v":22},{"$f":"VLOOKUP(DropDownList!$B$47,CntyQryCensus!$A$510:$DA$522,BW$1)","v":0},{"$f":"VLOOKUP(DropDownList!$B$47,CntyQryCensus!$A$510:$DA$522,BX$1)","v":0},{"$f":"VLOOKUP(DropDownList!$B$47,CntyQryCensus!$A$510:$DA$522,BY$1)","v":0},{"$f":"VLOOKUP(DropDownList!$B$47,CntyQryCensus!$A$510:$DA$522,BZ$1)","v":0},{"$f":"VLOOKUP(DropDownList!$B$47,CntyQryCensus!$A$510:$DA$522,CA$1)","v":0},{"$f":"VLOOKUP(DropDownList!$B$47,CntyQryCensus!$A$510:$DA$522,CB$1)","v":835},{"$f":"VLOOKUP(DropDownList!$B$47,CntyQryCensus!$A$510:$DA$522,CC$1)","v":8429},{"$f":"VLOOKUP(DropDownList!$B$47,CntyQryCensus!$A$510:$DA$522,CD$1)","v":917},{"$f":"VLOOKUP(DropDownList!$B$47,CntyQryCensus!$A$510:$DA$522,CE$1)","v":88},{"$f":"VLOOKUP(DropDownList!$B$47,CntyQryCensus!$A$510:$DA$522,CF$1)","v":249},{"$f":"VLOOKUP(DropDownList!$B$47,CntyQryCensus!$A$510:$DA$522,CG$1)","v":82},{"$f":"VLOOKUP(DropDownList!$B$47,CntyQryCensus!$A$510:$DA$522,CH$1)","v":0},{"$f":"VLOOKUP(DropDownList!$B$47,CntyQryCensus!$A$510:$DA$522,CI$1)","v":40},{"$f":"VLOOKUP(DropDownList!$B$47,CntyQryCensus!$A$510:$DA$522,CJ$1)","v":458},{"$f":"VLOOKUP(DropDownList!$B$47,CntyQryCensus!$A$510:$DA$522,CK$1)","v":812},{"$f":"VLOOKUP(DropDownList!$B$47,CntyQryCensus!$A$510:$DA$522,CL$1)","v":144},{"$f":"VLOOKUP(DropDownList!$B$47,CntyQryCensus!$A$510:$DA$522,CM$1)","v":668},{"$f":"VLOOKUP(DropDownList!$B$47,CntyQryCensus!$A$510:$DA$522,CN$1)","v":127},{"$f":"VLOOKUP(DropDownList!$B$47,CntyQryCensus!$A$510:$DA$522,CO$1)","v":541},{"$f":"VLOOKUP(DropDownList!$B$47,CntyQryCensus!$A$510:$DA$522,CP$1)","v":6700},{"$f":"VLOOKUP(DropDownList!$B$47,CntyQryCensus!$A$510:$DA$522,CQ$1)","v":2112},{"$f":"VLOOKUP(DropDownList!$B$47,CntyQryCensus!$A$510:$DA$522,CR$1)","v":472},{"$f":"VLOOKUP(DropDownList!$B$47,CntyQryCensus!$A$510:$DA$522,CS$1)","v":46},{"$f":"VLOOKUP(DropDownList!$B$47,CntyQryCensus!$A$510:$DA$522,CT$1)","v":273},{"$f":"VLOOKUP(DropDownList!$B$47,CntyQryCensus!$A$510:$DA$522,CU$1)","v":15},{"$f":"VLOOKUP(DropDownList!$B$47,CntyQryCensus!$A$510:$DA$522,CV$1)","v":0},{"$f":"VLOOKUP(DropDownList!$B$47,CntyQryCensus!$A$510:$DA$522,CW$1)","v":138},{"$f":"VLOOKUP(DropDownList!$B$47,CntyQryCensus!$A$510:$DA$522,CX$1)","v":454},{"$f":"VLOOKUP(DropDownList!$B$47,CntyQryCensus!$A$510:$DA$522,CY$1)","v":210},{"$f":"VLOOKUP(DropDownList!$B$47,CntyQryCensus!$A$510:$DA$522,CZ$1)","v":244},{"$f":"VLOOKUP(DropDownList!$B$47,CntyQryCensus!$A$510:$DA$522,DA$1)","v":1186}]
[]
[]
[]
[]
[{"$f":"VLOOKUP(DropDownList!$B$47,CntyQryCensus!$A$510:$DA$522,A$1)","v":"Rochester"}]
[]
[]
[]
["ACS",2,{"$f":"B105+1","v":3},{"$f":"C105+1","v":4},5,6,7,8,9,10,11,{"$f":"K105+1","v":12},13,14,15,{"$f":"O105+1","v":16},17,18,19,20,21,22,23,24,25,26,27,28,29,30,31,32,33,34,35,36,37,38,39,40,41,42,43,44,45,46,47,48,49,50,51,52,53,54,55,56,57,58,59,60,61,62,63,64,65,66,67,{"$f":"BO105+1","v":68},69,70,71,72,73,74,75,76,77,78,79,80,81,82,83,84,85,86,87,88,89,90,91,92,93,94,95,96,97,98,99,100,101,102,103,104,105,106,107,108,109,110,111,112,113,114,115,116,117,118,119,120,121,122,123,124,125]
["Househould Data (Housing Unit Type)"]
["NAME","TotalHU",{"$f":"\"MOE \"&B107","v":"MOE TotalHU"},"TotalOccHU",{"$f":"\"MOE \"&D107","v":"MOE TotalOccHU"},"TotalOwnerOccUn",{"$f":"\"MOE \"&F107","v":"MOE TotalOwnerOccUn"},"TotalRenterOccn",{"$f":"\"MOE \"&H107","v":"MOE TotalRenterOccn"},"TotalVacantUntis",{"$f":"\"MOE \"&J107","v":"MOE TotalVacantUntis"},"VacantUnitsForRent",{"$f":"\"MOE \"&L107","v":"MOE VacantUnitsForRent"},"VacantUnitRentedNotOcc",{"$f":"\"MOE \"&N107","v":"MOE VacantUnitRentedNotOcc"},"VacantUnitForSale",{"$f":"\"MOE \"&P107","v":"MOE VacantUnitForSale"},"VacantUnitSoldNotOcc",{"$f":"\"MOE \"&R107","v":"MOE VacantUnitSoldNotOcc"},"VacantUnitSeasonalRec",{"$f":"\"MOE \"&T107","v":"MOE VacantUnitSeasonalRec"},"TotalPopInHousingUnits",{"$f":"\"MOE \"&V107","v":"MOE TotalPopInHousingUnits"},"OwnerOccPopHousingUnits",{"$f":"\"MOE \"&X107","v":"MOE OwnerOccPopHousingUnits"},"RenterOccPopHousingUnits",{"$f":"\"MOE \"&Z107","v":"MOE RenterOccPopHousingUnits"},"TotalUntis",{"$f":"\"MOE \"&AB107","v":"MOE TotalUntis"},"TotalOwnerOccUnits",{"$f":"\"MOE \"&AD107","v":"MOE TotalOwnerOccUnits"},"SigFamOwnerOcc",{"$f":"\"MOE \"&AF107","v":"MOE SigFamOwnerOcc"},"MultiFamOwnerOcc",{"$f":"\"MOE \"&AH107","v":"MOE MultiFamOwnerOcc"},"MobileOwnerOcc",{"$f":"\"MOE \"&AJ107","v":"MOE MobileOwnerOcc"},"TotalRenterOccUnits",{"$f":"\"MOE \"&AL107","v":"MOE TotalRenterOccUnits"},"SigFamRenterOcc",{"$f":"\"MOE \"&AN107","v":"MOE SigFamRenterOcc"},"MultiFamRenterOcc",{"$f":"\"MOE \"&AP107","v":"MOE MultiFamRenterOcc"},"MobileRenterOcc",{"$f":"\"MOE \"&AR107","v":"MOE MobileRenterOcc"},"TotalSigFamilyUnits",{"$f":"\"MOE \"&AT107","v":"MOE TotalSigFamilyUnits"},"TotalMultiFamilyUnits",{"$f":"\"MOE \"&AV107","v":"MOE TotalMultiFamilyUnits"},"TotalMobileUnits",{"$f":"\"MOE \"&AX107","v":"MOE TotalMobileUnits"},"YrHouseBuilt2014Later",{"$f":"\"MOE \"&AZ107","v":"MOE YrHouseBuilt2014Later"},"YrHouseBuilt2010-2013",{"$f":"\"MOE \"&BB107","v":"MOE YrHouseBuilt2010-2013"},"YrHouseBuilt2000-2009",{"$f":"\"MOE \"&BD107","v":"MOE YrHouseBuilt2000-2009"},"YrHouseBuilt1990-1999",{"$f":"\"MOE \"&BF107","v":"MOE YrHouseBuilt1990-1999"},"YrHouseBuilt1980-1989",{"$f":"\"MOE \"&BH107","v":"MOE YrHouseBuilt1980-1989"},"YrHouseBuilt1970-1979",{"$f":"\"MOE \"&BJ107","v":"MOE YrHouseBuilt1970-1979"},"YrHouseBuilt1960-1969",{"$f":"\"MOE \"&BL107","v":"MOE YrHouseBuilt1960-1969"},"YrHouseBuilt1950-1959",{"$f":"\"MOE \"&BN107","v":"MOE YrHouseBuilt1950-1959"},"YrHouseBuilt1940-1949",{"$f":"\"MOE \"&BP107","v":"MOE YrHouseBuilt1940-1949"},"YrHouseBuilt1939orEarlier",{"$f":"\"MOE \"&BR107","v":"MOE YrHouseBuilt1939orEarlier"},"NoBedrooms",{"$f":"\"MOE \"&BT107","v":"MOE NoBedrooms"},"1Bedroom",{"$f":"\"MOE \"&BV107","v":"MOE 1Bedroom"},"2Bedroom",{"$f":"\"MOE \"&BX107","v":"MOE 2Bedroom"},"3Bedroom",{"$f":"\"MOE \"&BZ107","v":"MOE 3Bedroom"},"4+Bedroom",{"$f":"\"MOE \"&CB107","v":"MOE 4+Bedroom"}]
[{"$f":"VLOOKUP(DropDownList!$B$47,CntyQryCensus!$A$510:$DA$522,A$1)","v":"Rochester"},14003,458,12762,368,8858,400,3904,353,1241,336,252,147,77,83,189,122,138,136,222,149,29577,64,21454,915,8123,904,12762,368,8858,400,5873,376,864,202.64747716169575,2121,257.85654926722339,3904,353,598,193,3081,404.66035140596614,225,106.09901036296239,6934,443,4554,482.5194296606096,2515,304.72446570631638,27,32,2237,295,1371,244,2687,290,1783,279,1378,254,1210,222,582,164,2728,291,381,167,1257,221,5221,441,5525,475,1619,276.09056485146317]
[]
["Disability Data"]
["NAME","TotalPop",{"$f":"\"MOE \"&B111","v":"MOE TotalPop"},"PopUnder 5 years:",{"$f":"\"MOE \"&D111","v":"MOE PopUnder 5 years:"},{"$f":"D$111&\"-WithDisability\"","v":"PopUnder 5 years:-WithDisability"},{"$f":"\"MOE \"&F111","v":"MOE PopUnder 5 years:-WithDisability"},{"$f":"D111&\"-NoDisability\"","v":"PopUnder 5 years:-NoDisability"},{"$f":"\"MOE \"&H111","v":"MOE PopUnder 5 years:-NoDisability"},"PopUnder 5 to 17years:",{"$f":"\"MOE \"&J111","v":"MOE PopUnder 5 to 17years:"},{"$f":"J$111&\"-WithDisability\"","v":"PopUnder 5 to 17years:-WithDisability"},{"$f":"\"MOE \"&L111","v":"MOE PopUnder 5 to 17years:-WithDisability"},{"$f":"J111&\"-NoDisability\"","v":"PopUnder 5 to 17years:-NoDisability"},{"$f":"\"MOE \"&N111","v":"MOE PopUnder 5 to 17years:-NoDisability"},"PopUnder 18 to 34 years:",{"$f":"\"MOE \"&P111","v":"MOE PopUnder 18 to 34 years:"},{"$f":"P$111&\"-WithDisability\"","v":"PopUnder 18 to 34 years:-WithDisability"},{"$f":"\"MOE \"&R111","v":"MOE PopUnder 18 to 34 years:-WithDisability"},{"$f":"P111&\"-NoDisability\"","v":"PopUnder 18 to 34 years:-NoDisability"},{"$f":"\"MOE \"&T111","v":"MOE PopUnder 18 to 34 years:-NoDisability"},"Pop 35 years to 64:",{"$f":"\"MOE \"&V111","v":"MOE Pop 35 years to 64:"},{"$f":"$V$111&\"-WithDisability\"","v":"Pop 35 years to 64:-WithDisability"},{"$f":"\"MOE \"&X111","v":"MOE Pop 35 years to 64:-WithDisability"},{"$f":"$V$111&\"-NoDisability\"","v":"Pop 35 years to 64:-NoDisability"},{"$f":"\"MOE \"&Z111","v":"MOE Pop 35 years to 64:-NoDisability"},"Pop 65 years to 74:",{"$f":"\"MOE \"&AB111","v":"MOE Pop 65 years to 74:"},{"$f":"$AB$111&\"-WithDisability\"","v":"Pop 65 years to 74:-WithDisability"},{"$f":"\"MOE \"&AD111","v":"MOE Pop 65 years to 74:-WithDisability"},{"$f":"$AB$111&\"-NoDisability\"","v":"Pop 65 years to 74:-NoDisability"},{"$f":"\"MOE \"&AF111","v":"MOE Pop 65 years to 74:-NoDisability"},"Pop 75 and older:",{"$f":"\"MOE \"&AH111","v":"MOE Pop 75 and older:"},{"$f":"$AH$111&\"-WithDisability\"","v":"Pop 75 and older:-WithDisability"},{"$f":"\"MOE \"&AJ111","v":"MOE Pop 75 and older:-WithDisability"},{"$f":"$AH$111&\"-NoDisability\"","v":"Pop 75 and older:-NoDisability"},{"$f":"\"MOE \"&AL111","v":"MOE Pop 75 and older:-NoDisability"},"TotalPopUnder5_HearingDisability",{"$f":"\"MOE \"&AN111","v":"MOE TotalPopUnder5_HearingDisability"},"TotalPopUnder5_HearingDisability",{"$f":"\"MOE \"&AP111","v":"MOE TotalPopUnder5_HearingDisability"},"TotalPop18To34_HearingDisability",{"$f":"\"MOE \"&AR111","v":"MOE TotalPop18To34_HearingDisability"},"TotalPop35To64_HearingDisability",{"$f":"\"MOE \"&AT111","v":"MOE TotalPop35To64_HearingDisability"},"TotalPop65To74_HearingDisability",{"$f":"\"MOE \"&AV111","v":"MOE TotalPop65To74_HearingDisability"},"TotalPop75andOlder_HearingDisability",{"$f":"\"MOE \"&AX111","v":"MOE TotalPop75andOlder_HearingDisability"},"TotalPopUnder5_VisionDisability",{"$f":"\"MOE \"&AZ111","v":"MOE TotalPopUnder5_VisionDisability"},"TotalPop5To17_VisionDisability",{"$f":"\"MOE \"&BB111","v":"MOE TotalPop5To17_VisionDisability"},"TotalPop18To34_VisionDisability",{"$f":"\"MOE \"&BD111","v":"MOE TotalPop18To34_VisionDisability"},"TotalPop35To64_VisionDisability",{"$f":"\"MOE \"&BF111","v":"MOE TotalPop35To64_VisionDisability"},"TotalPop65To74_VisionDisability",{"$f":"\"MOE \"&BH111","v":"MOE TotalPop65To74_VisionDisability"},"TotalPop75andOlder_VisionDisability",{"$f":"\"MOE \"&BJ111","v":"MOE TotalPop75andOlder_VisionDisability"},"TotalPop5To17_CongnitiveDisability",{"$f":"\"MOE \"&BL111","v":"MOE TotalPop5To17_CongnitiveDisability"},"TotalPop18To34_CongnitiveDisability",{"$f":"\"MOE \"&BN111","v":"MOE TotalPop18To34_CongnitiveDisability"},"TotalPop35To64_CongnitiveDisability",{"$f":"\"MOE \"&BP111","v":"MOE TotalPop35To64_CongnitiveDisability"},"TotalPop65To74_CongnitiveDisability",{"$f":"\"MOE \"&BR111","v":"MOE TotalPop65To74_CongnitiveDisability"},"TotalPop75andOlder_CongnitiveDisability",{"$f":"\"MOE \"&BT111","v":"MOE TotalPop75andOlder_CongnitiveDisability"},"TotalPop5To17_AmbulatoryDisability",{"$f":"\"MOE \"&BV111","v":"MOE TotalPop5To17_AmbulatoryDisability"},"TotalPop18To34_AmbulatoryDisability",{"$f":"\"MOE \"&BX111","v":"MOE TotalPop18To34_AmbulatoryDisability"},"TotalPop35To64_AmbulatoryDisability",{"$f":"\"MOE \"&BZ111","v":"MOE TotalPop35To64_AmbulatoryDisability"},"TotalPop65To74_AmbulatoryDisability",{"$f":"\"MOE \"&CB111","v":"MOE TotalPop65To74_AmbulatoryDisability"},"TotalPop75andOlder_AmbulatoryDisability",{"$f":"\"MOE \"&CD111","v":"MOE TotalPop75andOlder_AmbulatoryDisability"},"TotalPop5To17_SelfCareDisability",{"$f":"\"MOE \"&CF111","v":"MOE TotalPop5To17_SelfCareDisability"},"TotalPop18To34_SelfCareDisability",{"$f":"\"MOE \"&CH111","v":"MOE TotalPop18To34_SelfCareDisability"},"TotalPop35To64_SelfCareDisability",{"$f":"\"MOE \"&CJ111","v":"MOE TotalPop35To64_SelfCareDisability"},"TotalPop65To74_SelfCareDisability",{"$f":"\"MOE \"&CL111","v":"MOE TotalPop65To74_SelfCareDisability"},"TotalPop75andOlder_SelfCareDisability",{"$f":"\"MOE \"&CN111","v":"MOE TotalPop75andOlder_SelfCareDisability"},"TotalPop18To34_IndependantLivingDisability",{"$f":"\"MOE \"&CP111","v":"MOE TotalPop18To34_IndependantLivingDisability"},"TotalPop35To64_IndependantLivingDisability",{"$f":"\"MOE \"&CR111","v":"MOE TotalPop35To64_IndependantLivingDisability"},"TotalPop65To74_IndependantLivingDisability",{"$f":"\"MOE \"&CT111","v":"MOE TotalPop65To74_IndependantLivingDisability"},"TotalPop75andOlder_IndependantLivingDisability",{"$f":"\"MOE \"&CV111","v":"MOE TotalPop75andOlder_IndependantLivingDisability"},"TotalUnder5_HearingorVisionDisability",{"$f":"\"MOE \"&CX111","v":"MOE TotalUnder5_HearingorVisionDisability"},"TotalUnder5_HearingandVisionDisability",{"$f":"\"MOE \"&CZ111","v":"MOE TotalUnder5_HearingandVisionDisability"},"5to17YearWIthOneDisability",{"$f":"\"MOE \"&DB111","v":"MOE 5to17YearWIthOneDisability"},"5to17YearWIthTwoOrMoreDisability",{"$f":"\"MOE \"&DD111","v":"MOE 5to17YearWIthTwoOrMoreDisability"},"18to34YearWIthOneDisability",{"$f":"\"MOE \"&DF111","v":"MOE 18to34YearWIthOneDisability"},"18to34YearWIthTwoOrMoreDisability",{"$f":"\"MOE \"&DH111","v":"MOE 18to34YearWIthTwoOrMoreDisability"},"35to64YearWIthOneDisability",{"$f":"\"MOE \"&DJ111","v":"MOE 35to64YearWIthOneDisability"},"35to64YearWIthTwoOrMoreDisability",{"$f":"\"MOE \"&DL111","v":"MOE 35to64YearWIthTwoOrMoreDisability"},"65to74YearWIthOneDisability",{"$f":"\"MOE \"&DN111","v":"MOE 65to74YearWIthOneDisability"},"65to74YearWIthTwoOrMoreDisability",{"$f":"\"MOE \"&DP111","v":"MOE 65to74YearWIthTwoOrMoreDisability"},"75AndOlderWIthOneDisability",{"$f":"\"MOE \"&DR111","v":"MOE 75AndOlderWIthOneDisability"},"75AndOlderWIthTwoOrMoreDisability",{"$f":"\"MOE \"&DT111","v":"MOE 75AndOlderWIthTwoOrMoreDisability"}]
[{"$f":"VLOOKUP(DropDownList!$B$47,CntyQryCensus!$A$510:$DA$522,A$1)","v":"Rochester"},29569,78,1422,249.01807163336559,0,29.698484809834994,1422,249.01807163336559,4302,403.20962290104137,205,111.40017953306898,4097,380.59164467970129,6260,505.26131852735375,505,172.55723688098394,5755,468.5232118049222,13110,428.05723916317544,2105,327.03516630478748,11005,434.94022577820965,2646,242.52834885843757,784,168.04761230080004,1862,209.32271735289507,1829,192.75372888740699,912,165.42369842317032,917,141.73566946961517,0,29.698484809834994,29,38.275318418009277,99,80.411441971898498,422,137.88763541376724,243,103.40696301506973,521,145.09651959988565,0,29.698484809834994,42,43.278170016764804,73,53.254107822777392,260,126.53062870309307,115,64.350602172784676,199,105.58882516630251,669,305.85127104525822,1333,390.40619872128053,2076,442.05203313637185,286,134.52880732393342,572,173.36666346215469,6,147.33974345029924,262,128.03515142334936,2826,474.85260871137689,1236,304.52914474644297,1656,277.40583988085041,14,30.413812651491099,46,43.266615305567875,228,102.82509421342633,49,42.544094772365298,144,75.802374632988901,187,84.291162051546067,794,218.3323155192561,218,111.66467659918243,344,117.83462988442744,194,117,11,17,1407,292,1203,259,808,147,888,189]
[]
["Househould Income By Age"]
["NAME","TotalHouseholds",{"$f":"\"MOE \"&B115","v":"MOE TotalHouseholds"},"HHInc<10K",{"$f":"\"MOE \"&D115","v":"MOE HHInc<10K"},"HHInc10to15K",{"$f":"\"MOE \"&F115","v":"MOE HHInc10to15K"},"HHInc15to20K",{"$f":"\"MOE \"&H115","v":"MOE HHInc15to20K"},"HHInc20to25K",{"$f":"\"MOE \"&J115","v":"MOE HHInc20to25K"},"HHInc25to30K",{"$f":"\"MOE \"&L115","v":"MOE HHInc25to30K"},"HHInc30to35K",{"$f":"\"MOE \"&N115","v":"MOE HHInc30to35K"},"HHInc35to40K",{"$f":"\"MOE \"&P115","v":"MOE HHInc35to40K"},"HHInc40to45K",{"$f":"\"MOE \"&R115","v":"MOE HHInc40to45K"},"HHInc45to50K",{"$f":"\"MOE \"&T115","v":"MOE HHInc45to50K"},"HHInc50to60K",{"$f":"\"MOE \"&V115","v":"MOE HHInc50to60K"},"HHInc60to75K",{"$f":"\"MOE \"&X115","v":"MOE HHInc60to75K"},"HHInc75to100K",{"$f":"\"MOE \"&Z115","v":"MOE HHInc75to100K"},"HHInc100to125K",{"$f":"\"MOE \"&AB115","v":"MOE HHInc100to125K"},"HHInc125to150K",{"$f":"\"MOE \"&AD115","v":"MOE HHInc125to150K"},"HHInc150to200K",{"$f":"\"MOE \"&AF115","v":"MOE HHInc150to200K"},"HHInc>200K",{"$f":"\"MOE \"&AH115","v":"MOE HHInc>200K"},"TotalHH",{"$f":"\"MOE \"&AJ115","v":"MOE TotalHH"},"HHAgeHHUnder25yrs",{"$f":"\"MOE \"&AL115","v":"MOE HHAgeHHUnder25yrs"},"HHAgeHH<25HHInc<10K",{"$f":"\"MOE \"&AN115","v":"MOE HHAgeHH<25HHInc<10K"},"HHAgeHH<25HHInc10to15K",{"$f":"\"MOE \"&AP115","v":"MOE HHAgeHH<25HHInc10to15K"},"HHAgeHH<25HHInc15to20K",{"$f":"\"MOE \"&AR115","v":"MOE HHAgeHH<25HHInc15to20K"},"HHAgeHH<25HHInc20to25K",{"$f":"\"MOE \"&AT115","v":"MOE HHAgeHH<25HHInc20to25K"},"HHAgeHH<25HHInc25to30K",{"$f":"\"MOE \"&AV115","v":"MOE HHAgeHH<25HHInc25to30K"},"HHAgeHH<25HHInc30to35K",{"$f":"\"MOE \"&AX115","v":"MOE HHAgeHH<25HHInc30to35K"},"HHAgeHH<25HHInc35to40K",{"$f":"\"MOE \"&AZ115","v":"MOE HHAgeHH<25HHInc35to40K"},"HHAgeHH<25HHInc40to45K",{"$f":"\"MOE \"&BB115","v":"MOE HHAgeHH<25HHInc40to45K"},"HHAgeHH<25HHInc45to50K",{"$f":"\"MOE \"&BD115","v":"MOE HHAgeHH<25HHInc45to50K"},"HHAgeHH<25HHInc50to60K",{"$f":"\"MOE \"&BF115","v":"MOE HHAgeHH<25HHInc50to60K"},"HHAgeHH<25HHInc60to75K",{"$f":"\"MOE \"&BH115","v":"MOE HHAgeHH<25HHInc60to75K"},"HHAgeHH<25HHInc75to100K",{"$f":"\"MOE \"&BJ115","v":"MOE HHAgeHH<25HHInc75to100K"},"HHAgeHH<25HHInc100to125K",{"$f":"\"MOE \"&BL115","v":"MOE HHAgeHH<25HHInc100to125K"},"HHAgeHH<25HHInc125to150K",{"$f":"\"MOE \"&BN115","v":"MOE HHAgeHH<25HHInc125to150K"},"HHAgeHH<25HHInc150to200K",{"$f":"\"MOE \"&BP115","v":"MOE HHAgeHH<25HHInc150to200K"},"HHAge<25HHInc>200K",{"$f":"\"MOE \"&BR115","v":"MOE HHAge<25HHInc>200K"},"HHAgeHH25to44yrs",{"$f":"\"MOE \"&BT115","v":"MOE HHAgeHH25to44yrs"},"HHAgeHH25To44yrsHHInc<10K",{"$f":"\"MOE \"&BV115","v":"MOE HHAgeHH25To44yrsHHInc<10K"},"HHAgeHH25To44yrsHHInc10to15K",{"$f":"\"MOE \"&BX115","v":"MOE HHAgeHH25To44yrsHHInc10to15K"},"HHAgeHH25To44yrsHHInc15to20K",{"$f":"\"MOE \"&BZ115","v":"MOE HHAgeHH25To44yrsHHInc15to20K"},"HHAgeHH25To44yrsHHInc20to25K",{"$f":"\"MOE \"&CB115","v":"MOE HHAgeHH25To44yrsHHInc20to25K"},"HHAgeHH25To44yrsHHInc25to30K",{"$f":"\"MOE \"&CD115","v":"MOE HHAgeHH25To44yrsHHInc25to30K"},"HHAgeHH25To44yrsHHInc30to35K",{"$f":"\"MOE \"&CF115","v":"MOE HHAgeHH25To44yrsHHInc30to35K"},"HHAgeHH25To44yrsHHInc35to40K",{"$f":"\"MOE \"&CH115","v":"MOE HHAgeHH25To44yrsHHInc35to40K"},"HHAgeHH25To44yrsHHInc40to45K",{"$f":"\"MOE \"&CJ115","v":"MOE HHAgeHH25To44yrsHHInc40to45K"},"HHAgeHH25To44yrsHHInc45to50K",{"$f":"\"MOE \"&CL115","v":"MOE HHAgeHH25To44yrsHHInc45to50K"},"HHAgeHH25To44yrsHHInc50to60K",{"$f":"\"MOE \"&CN115","v":"MOE HHAgeHH25To44yrsHHInc50to60K"},"HHAgeHH25To44yrsHHInc60to75K",{"$f":"\"MOE \"&CP115","v":"MOE HHAgeHH25To44yrsHHInc60to75K"},"HHAgeHH25To44yrsHHInc75to100K",{"$f":"\"MOE \"&CR115","v":"MOE HHAgeHH25To44yrsHHInc75to100K"},"HHAgeHH25To44yrsHHInc100to125K",{"$f":"\"MOE \"&CT115","v":"MOE HHAgeHH25To44yrsHHInc100to125K"},"HHAgeHH25To44yrsHHInc125to150K",{"$f":"\"MOE \"&CV115","v":"MOE HHAgeHH25To44yrsHHInc125to150K"},"HHAgeHH25To44yrsHHInc150to200K",{"$f":"\"MOE \"&CX115","v":"MOE HHAgeHH25To44yrsHHInc150to200K"},"HHAge25To44yrsHHInc>200K",{"$f":"\"MOE \"&CZ115","v":"MOE HHAge25To44yrsHHInc>200K"},"HHAgeHH45To64yrs",{"$f":"\"MOE \"&DB115","v":"MOE HHAgeHH45To64yrs"},"HHAgeHH45To64yrsHHInc<10K",{"$f":"\"MOE \"&DD115","v":"MOE HHAgeHH45To64yrsHHInc<10K"},"HHAgeHH45To64yrsHHInc10to15K",{"$f":"\"MOE \"&DF115","v":"MOE HHAgeHH45To64yrsHHInc10to15K"},"HHAgeHH45To64yrsHHInc15to20K",{"$f":"\"MOE \"&DH115","v":"MOE HHAgeHH45To64yrsHHInc15to20K"},"HHAgeHH45To64yrsHHInc20to25K",{"$f":"\"MOE \"&DJ115","v":"MOE HHAgeHH45To64yrsHHInc20to25K"},"HHAgeHH45To64yrsHHInc25to30K",{"$f":"\"MOE \"&DL115","v":"MOE HHAgeHH45To64yrsHHInc25to30K"},"HHAgeHH45To64yrsHHInc30to35K",{"$f":"\"MOE \"&DN115","v":"MOE HHAgeHH45To64yrsHHInc30to35K"},"HHAgeHH45To64yrsHHInc35to40K",{"$f":"\"MOE \"&DP115","v":"MOE HHAgeHH45To64yrsHHInc35to40K"},"HHAgeHH45To64yrsHHInc40to45K",{"$f":"\"MOE \"&DR115","v":"MOE HHAgeHH45To64yrsHHInc40to45K"},"HHAgeHH45To64yrsHHInc45to50K",{"$f":"\"MOE \"&DT115","v":"MOE HHAgeHH45To64yrsHHInc45to50K"},"HHAgeHH45To64yrsHHInc50to60K",{"$f":"\"MOE \"&DV115","v":"MOE HHAgeHH45To64yrsHHInc50to60K"},"HHAgeHH45To64yrsHHInc60to75K",{"$f":"\"MOE \"&DX115","v":"MOE HHAgeHH45To64yrsHHInc60to75K"},"HHAgeHH45To64yrsHHInc75to100K",{"$f":"\"MOE \"&DZ115","v":"MOE HHAgeHH45To64yrsHHInc75to100K"},"HHAgeHH45To64yrsHHInc100to125K",{"$f":"\"MOE \"&EB115","v":"MOE HHAgeHH45To64yrsHHInc100to125K"},"HHAgeHH45To64yrsHHInc125to150K",{"$f":"\"MOE \"&ED115","v":"MOE HHAgeHH45To64yrsHHInc125to150K"},"HHAgeHH45To64yrsHHInc150to200K",{"$f":"\"MOE \"&EF115","v":"MOE HHAgeHH45To64yrsHHInc150to200K"},"HHAge45To64yrsHHInc>200K",{"$f":"\"MOE \"&EH115","v":"MOE HHAge45To64yrsHHInc>200K"},"HHAgeHH65yrsorOlder",{"$f":"\"MOE \"&EJ115","v":"MOE HHAgeHH65yrsorOlder"},"HHAgeHH65yrsorOlderHHInc<10K",{"$f":"\"MOE \"&EL115","v":"MOE HHAgeHH65yrsorOlderHHInc<10K"},"HHAgeHH65yrsorOlderHHInc10to15K",{"$f":"\"MOE \"&EN115","v":"MOE HHAgeHH65yrsorOlderHHInc10to15K"},"HHAgeHH65yrsorOlderHHInc15to20K",{"$f":"\"MOE \"&EP115","v":"MOE HHAgeHH65yrsorOlderHHInc15to20K"},"HHAgeHH65yrsorOlderHHInc20to25K",{"$f":"\"MOE \"&ER115","v":"MOE HHAgeHH65yrsorOlderHHInc20to25K"},"HHAgeHH65yrsorOlderHHInc25to30K",{"$f":"\"MOE \"&ET115","v":"MOE HHAgeHH65yrsorOlderHHInc25to30K"},"HHAgeHH65yrsorOlderHHInc30to35K",{"$f":"\"MOE \"&EV115","v":"MOE HHAgeHH65yrsorOlderHHInc30to35K"},"HHAgeHH65yrsorOlderHHInc35to40K",{"$f":"\"MOE \"&EX115","v":"MOE HHAgeHH65yrsorOlderHHInc35to40K"},"HHAgeHH65yrsorOlderHHInc40to45K",{"$f":"\"MOE \"&EZ115","v":"MOE HHAgeHH65yrsorOlderHHInc40to45K"},"HHAgeHH65yrsorOlderHHInc45to50K",{"$f":"\"MOE \"&FB115","v":"MOE HHAgeHH65yrsorOlderHHInc45to50K"},"HHAgeHH65yrsorOlderHHInc50to60K",{"$f":"\"MOE \"&FD115","v":"MOE HHAgeHH65yrsorOlderHHInc50to60K"},"HHAgeHH65yrsorOlderHHInc60to75K",{"$f":"\"MOE \"&FF115","v":"MOE HHAgeHH65yrsorOlderHHInc60to75K"},"HHAgeHH65yrsorOlderHHInc75to100K",{"$f":"\"MOE \"&FH115","v":"MOE HHAgeHH65yrsorOlderHHInc75to100K"},"HHAgeHH65yrsorOlderHHInc100to125K",{"$f":"\"MOE \"&FJ115","v":"MOE HHAgeHH65yrsorOlderHHInc100to125K"},"HHAgeHH65yrsorOlderHHInc125to150K",{"$f":"\"MOE \"&FL115","v":"MOE HHAgeHH65yrsorOlderHHInc125to150K"},"HHAgeHH65yrsorOlderHHInc150to200K",{"$f":"\"MOE \"&FN115","v":"MOE HHAgeHH65yrsorOlderHHInc150to200K"},"HHAge65yrsorOlderHHInc>200K",{"$f":"\"MOE \"&FP115","v":"MOE HHAge65yrsorOlderHHInc>200K"},"MedianHHInc",{"$f":"\"MOE \"&FR115","v":"MOE MedianHHInc"},"HH under 25 years",{"$f":"\"MOE \"&FT115","v":"MOE HH under 25 years"},"Householder 25 to 44 years",{"$f":"\"MOE \"&FV115","v":"MOE Householder 25 to 44 years"},"Householder 45 to 64 years",{"$f":"\"MOE \"&FX115","v":"MOE Householder 45 to 64 years"},"Householder 65 years and over",{"$f":"\"MOE \"&FZ115","v":"MOE Householder 65 years and over"}]
[{"$f":"VLOOKUP(DropDownList!$B$47,CntyQryCensus!$A$510:$DA$522,A$1)","v":"Rochester"},12357,312,553,151,620,151,517,179,600,177,802,208,540,169,717,218,901,215,602,150,1286,256,1291,226,1589,230,1037,163,548,148,515,153,239,100,12762,368,460,194,68,53,0,21,0,21,58,57,106,81,100,117,22,26,46,70,17,19,0,21,0,21,0,21,0,21,43,66,0,21,0,21,3945,276,207,105,176,94,71,48,150,105,242,113,318,152,208,107,321,156,162,80,338,141,366,134,693,176,319,109,108,51,162,72,104,78,5467,327,246,122,255,103,219,95,166,86,265,133,190,78,207,123,214,115,365,142,601,180,685,147,695,173,527,156,416,113,316,120,100,65,2890,224,80,46,444,131,190,71,256,94,254,96,113,54,278,118,273,101,167,80,240,106,202,82,149,72,114,59,76,41,34,33,20,32,49366,2913,29904,8173,51698,6319,60116,4851,37195,2890,297,135,195,132,null,null,null,null,null,null,null,null,null,null,null,null,null,null,"Barrington",null,"Esitimate","Margin Of Error",2987,193,null,null,48,47,65,66,137,96.566039579139826,253,97.082439194738001,245,120.47406359876801,477,151.40013210033868,816,184,549,172.15400082484288,216,91,181,122]
[]
["Number of Households by Income"]
["NAME","HHIncLessThn10k",{"$f":"\"MOE \"&B119","v":"MOE HHIncLessThn10k"},"HHInc10to15K",{"$f":"\"MOE \"&D119","v":"MOE HHInc10to15K"},"HHInc15to25K",{"$f":"\"MOE \"&F119","v":"MOE HHInc15to25K"},"HHInc25to35K",{"$f":"\"MOE \"&H119","v":"MOE HHInc25to35K"},"HHInc35to50K",{"$f":"\"MOE \"&J119","v":"MOE HHInc35to50K"},"HHInc50to75K",{"$f":"\"MOE \"&L119","v":"MOE HHInc50to75K"},"HHInc75to100K",{"$f":"\"MOE \"&N119","v":"MOE HHInc75to100K"},"HHInc100to150K",{"$f":"\"MOE \"&P119","v":"MOE HHInc100to150K"},"HHInc150to200K",{"$f":"\"MOE \"&R119","v":"MOE HHInc150to200K"},"HHIncOver200K",{"$f":"\"MOE \"&T119","v":"MOE HHIncOver200K"}]
[{"$f":"VLOOKUP(DropDownList!$B$47,CntyQryCensus!$A$510:$DA$522,A$1)","v":"Rochester"},553,151,620,151,1117,251.73398658107331,1342,268.00186566514793,2220,340.95307595034245,2577,341.4849923495907,1589,230,1585,220.16584657934573,515,153,239,100,533,149,637,143,397,109,163,71,186,95,27,25,null,null,null,null,null,null,null,null,null,null,null,null,null,null,null,null,null,null,null,null,null,null,null,null,null,null,null,null,null,null,null,null,null,null,null,null,null,null,null,null,null,40,80,51,13,20,12,19,104,88,115,65,276,90,254,107,166,59,152,59,206,97,79,43,null,null,null,null,null,null,null,null,null,null,null,null,null,null,"Lee",null,"Esitimate","Margin Of Error",1774,134,null,null,83,74,28,43,92,104.58011283222064,43,49.244289008980523,174,91.586025134842487,256,114.63420083029322,271,92,490,193.9922678871506,225,98,112,70]
[]
[]
["NAME","TotalPop",{"$f":"\"MOE \"&B123","v":"MOE TotalPop"},"Total Individuals living in Poverty",{"$f":"\"MOE \"&D123","v":"MOE Total Individuals living in Poverty"},"Under 5 yrs.",{"$f":"\"MOE \"&F123","v":"MOE Under 5 yrs."},"5 to 17 yrs.",{"$f":"\"MOE \"&H123","v":"MOE 5 to 17 yrs."},"18 to 64 yrs.",{"$f":"\"MOE \"&J123","v":"MOE 18 to 64 yrs."},"65 to 74 yrs.",{"$f":"\"MOE \"&L123","v":"MOE 65 to 74 yrs."},"75 yrs. & Over",{"$f":"\"MOE \"&N123","v":"MOE 75 yrs. & Over"},"Total Individuals  Not living Poverty",{"$f":"\"MOE \"&P123","v":"MOE Total Individuals  Not living Poverty"},"Under 5 yrs.",{"$f":"\"MOE \"&R123","v":"MOE Under 5 yrs."},"5 to 17 yrs.",{"$f":"\"MOE \"&T123","v":"MOE 5 to 17 yrs."},"18 to 64 yrs.",{"$f":"\"MOE \"&V123","v":"MOE 18 to 64 yrs."},"65 to 74 yrs.",{"$f":"\"MOE \"&X123","v":"MOE 65 to 74 yrs."},"75 yrs. & Over",{"$f":"\"MOE \"&Z123","v":"MOE 75 yrs. & Over"},"Total HH",{"$f":"\"MOE \"&AB123","v":"MOE Total HH"},"Total Households Below Poverty",{"$f":"\"MOE \"&AD123","v":"MOE Total Households Below Poverty"},"Family Households in Poverty",{"$f":"\"MOE \"&AF123","v":"MOE Family Households in Poverty"},"Married Couple Fam HH",{"$f":"\"MOE \"&AH123","v":"MOE Married Couple Fam HH"},"Other Family",{"$f":"\"MOE \"&AJ123","v":"MOE Other Family"},"Male Head of Family HH no wife",{"$f":"\"MOE \"&AL123","v":"MOE Male Head of Family HH no wife"},"Female Head of Family HH no husband",{"$f":"\"MOE \"&AN123","v":"MOE Female Head of Family HH no husband"},"Non-Family HH",{"$f":"\"MOE \"&AP123","v":"MOE Non-Family HH"},"Non-Family Male HH",{"$f":"\"MOE \"&AR123","v":"MOE Non-Family Male HH"},"Non-Family Female HH",{"$f":"\"MOE \"&AT123","v":"MOE Non-Family Female HH"},"Total Households at or Above Poverty",{"$f":"\"MOE \"&AV123","v":"MOE Total Households at or Above Poverty"},"Family Households above Poverty",{"$f":"\"MOE \"&AX123","v":"MOE Family Households above Poverty"},"Married Couple Fam HH",{"$f":"\"MOE \"&AZ123","v":"MOE Married Couple Fam HH"},"Other Family",{"$f":"\"MOE \"&BB123","v":"MOE Other Family"},"Male Head of Family HH no wife",{"$f":"\"MOE \"&BD123","v":"MOE Male Head of Family HH no wife"},"Female Head of Family HH no husband",{"$f":"\"MOE \"&BF123","v":"MOE Female Head of Family HH no husband"},"Non-Family HH",{"$f":"\"MOE \"&BH123","v":"MOE Non-Family HH"},"Non-Family Male HH",{"$f":"\"MOE \"&BJ123","v":"MOE Non-Family Male HH"},"Non-Family Female HH",{"$f":"\"MOE \"&BL123","v":"MOE Non-Family Female HH"},"Married Couple with Children Below Poverty",{"$f":"\"MOE \"&BN123","v":"MOE Married Couple with Children Below Poverty"},"Male HH with children below poverty",{"$f":"\"MOE \"&BP123","v":"MOE Male HH with children below poverty"},"Female HH with children below poverty",{"$f":"\"MOE \"&BR123","v":"MOE Female HH with children below poverty"},"Married Couple with Children At or Above Poverty",{"$f":"\"MOE \"&BT123","v":"MOE Married Couple with Children At or Above Poverty"},"Male HH with children at or above poverty",{"$f":"\"MOE \"&BV123","v":"MOE Male HH with children at or above poverty"},"Female HH with children at or above poverty",{"$f":"\"MOE \"&BX123","v":"MOE Female HH with children at or above poverty"}]
[{"$f":"VLOOKUP(DropDownList!$B$47,CntyQryCensus!$A$510:$DA$522,A$1)","v":"Rochester"},29481,121,3620,565,566,205.8275977608445,657,191.34785078489907,2079,338.05916641913439,162,97.082439194738001,156,68.8839603971781,25861,552,856,210.4305110957059,3516,410.28526661336502,17332,738.13752106230174,2484,241.99380157351138,1673,187.4459922217597,12762,368,1472,261,835,193,191,93,644,172,88,87,556,184,637,204,195,128,442,161,11290,375,7031,316,2009,215,4259,419,495,160,1049,233,4259,419,1808,292,2451,311,null,null,835,193,150,85,1994,241,7031,316,3687,322]
[]
["Household Income By Tenure"]
["NAME","TotalOccHU",{"$f":"\"MOE \"&B127","v":"MOE TotalOccHU"},"OwnOccHU",{"$f":"\"MOE \"&D127","v":"MOE OwnOccHU"},"OOHUInc<5K",{"$f":"\"MOE \"&F127","v":"MOE OOHUInc<5K"},"OOHUInc5to10K",{"$f":"\"MOE \"&H127","v":"MOE OOHUInc5to10K"},"OOHUInc10to15K",{"$f":"\"MOE \"&J127","v":"MOE OOHUInc10to15K"},"OOHUInc15to20K",{"$f":"\"MOE \"&L127","v":"MOE OOHUInc15to20K"},"OOHUInc20to25K",{"$f":"\"MOE \"&N127","v":"MOE OOHUInc20to25K"},"OOHUInc25to35K",{"$f":"\"MOE \"&P127","v":"MOE OOHUInc25to35K"},"OOHUInc35to50K",{"$f":"\"MOE \"&R127","v":"MOE OOHUInc35to50K"},"OOHUInc50to75K",{"$f":"\"MOE \"&T127","v":"MOE OOHUInc50to75K"},"OOHUInc75to100K",{"$f":"\"MOE \"&V127","v":"MOE OOHUInc75to100K"},"OOHUInc100to150K",{"$f":"\"MOE \"&X127","v":"MOE OOHUInc100to150K"},"OOHUInc>150K",{"$f":"\"MOE \"&Z127","v":"MOE OOHUInc>150K"},"RentOccHU",{"$f":"\"MOE \"&AB127","v":"MOE RentOccHU"},"ROHUInc<5K",{"$f":"\"MOE \"&AD127","v":"MOE ROHUInc<5K"},"ROHUInc5to10K",{"$f":"\"MOE \"&AF127","v":"MOE ROHUInc5to10K"},"ROHUInc10to15K",{"$f":"\"MOE \"&AH127","v":"MOE ROHUInc10to15K"},"ROHUInc15to20K",{"$f":"\"MOE \"&AJ127","v":"MOE ROHUInc15to20K"},"ROHUInc20to25K",{"$f":"\"MOE \"&AL127","v":"MOE ROHUInc20to25K"},"ROHUInc25to35K",{"$f":"\"MOE \"&AN127","v":"MOE ROHUInc25to35K"},"ROHUInc35to50K",{"$f":"\"MOE \"&AP127","v":"MOE ROHUInc35to50K"},"ROHUInc50to75K",{"$f":"\"MOE \"&AR127","v":"MOE ROHUInc50to75K"},"ROHUInc75to100K",{"$f":"\"MOE \"&AT127","v":"MOE ROHUInc75to100K"},"ROHUInc100to150K",{"$f":"\"MOE \"&AV127","v":"MOE ROHUInc100to150K"},"ROHUInc>150K",{"$f":"\"MOE \"&AX127","v":"MOE ROHUInc>150K"},"Total OCC HUInc<5K",{"$f":"\"MOE \"&AZ127","v":"MOE Total OCC HUInc<5K"},"Total OCC HUInc5to10K",{"$f":"\"MOE \"&BB127","v":"MOE Total OCC HUInc5to10K"},"Total OCC HUInc10to15K",{"$f":"\"MOE \"&BD127","v":"MOE Total OCC HUInc10to15K"},"Total OCC HUInc15to20K",{"$f":"\"MOE \"&BF127","v":"MOE Total OCC HUInc15to20K"},"Total OCC HUInc20to25K",{"$f":"\"MOE \"&BH127","v":"MOE Total OCC HUInc20to25K"},"Total OCC HUInc25to35K",{"$f":"\"MOE \"&BJ127","v":"MOE Total OCC HUInc25to35K"},"Total OCC HUInc35to50K",{"$f":"\"MOE \"&BL127","v":"MOE Total OCC HUInc35to50K"},"Total OCC HUInc50to75K",{"$f":"\"MOE \"&BN127","v":"MOE Total OCC HUInc50to75K"},"Total OCC HUInc75to100K",{"$f":"\"MOE \"&BP127","v":"MOE Total OCC HUInc75to100K"},"Total OCC HUInc100to150K",{"$f":"\"MOE \"&BR127","v":"MOE Total OCC HUInc100to150K"},"Total OCC HUInc>150K",{"$f":"\"MOE \"&BT127","v":"MOE Total OCC HUInc>150K"},"MedHHInc",{"$f":"\"MOE \"&BV127","v":"MOE MedHHInc"},"MedOwnOccHHInc",{"$f":"\"MOE \"&BX127","v":"MOE MedOwnOccHHInc"},"MedRentOccHHInc",{"$f":"\"MOE \"&BZ127","v":"MOE MedRentOccHHInc"}]
[{"$f":"VLOOKUP(DropDownList!$B$47,CntyQryCensus!$A$510:$DA$522,A$1)","v":"Rochester"},12762,368,8858,400,154,93,63,53,259,81,279,87,181,81,743,159,1562,259,2008,314,1336,230,1566,248,707,185,3904,353,119,86,265,99,616,165,201,90,449,146,845,237,718,229,424,153,201,109,37,38,29,31,273,126.66885963013956,328,112.29425630903836,875,183.80968418448469,480,125.1758762701504,630,166.96406799069075,1588,285.39446385660671,2280,345.71953951143695,2432,349.29214133730522,1537,254.52111896658005,1603,250.89440009693323,736,187.57931655702342,49366,2913,63925,3448,28716,2218]
[]
["Population Data"]
["NAME","Total Population","MOE Total Population","Under 15 Years","MOE Under 15 yrs.","15 to 24 yrs.","MOE 15 to 24 yrs.","25 to 34 yrs.","MOE 25 to 34 yrs.","35 to 44 yrs.","MOE 35 to 44 yrs.","45 to 54 yrs.","MOE 45 to 54 yrs.","55 to 64 yrs.","MOE 55 to 64 yrs.","65 to 74 yrs.","MOE 65 to 74 yrs.","Over 74 yrs. ","MOE Over 74 yrs. ","TotalHH","MOE TotalHH","FamilyHH","MOE FamilyHH","MarriedFamilyHH","MOE MarriedFamilyHH","SingleFamilyHH","MOE SingleFamilyHH","Sfamily-MaleHH","MOE Sfamily-MaleHH","Sfamily-FemaleHH","MOE Sfamily-FemaleHH","NonFamilyHH","MOE NonFamilyHH","NonFamilyHH-LivingAlone","MOE NonFamilyHH-LivingAlone","NonFamilyHH-NotLivingAlone","MOE NonFamilyHH-NotLivingAlone","PopRaceWhite","MOE PopRaceWhite","PopRaceBlack","MOE PopRaceBlack","PopRaceAmerican Indian","MOE PopRaceAmerican Indian","PopRaceAsian &Pacific Is.","MOE PopRaceAsian &Pacific Is.","PopRaceOther*","MOE PopRaceOther*","PopRaceHispanic or Latino:","MOE PopRaceHispanic or Latino:","MedianAgeTotalPop","MOE MedianAgeTotalPop","MedianAgeMale","MOE MedianAgeMale","MedianAgeFemale","MOE MedianAgeFemale","AvgHHSizeTotal","MOE AvgHHSizeTotal","AvgHHSizeFamilyHH","MOE AvgHHSizeFamilyHH","AvgHHSizeNonFamilyHH","MOE AvgHHSizeNonFamilyHH"]
[{"$f":"VLOOKUP(DropDownList!$B$47,CntyQryCensus!$A$510:$DA$522,A$1)","v":"Rochester"},29830,29,4630,474.26891106206824,3933,511.67176978996997,3447,360.803270495155,4261,399.48717125835219,4797,365.38336032173112,4091,402.46863231809755,2698,303.27215500273019,1973,267.87123772439622,29577,64,23065,742,16370,1023,16231,1008,139,95,1852,634,1595,538,257,129,4843,868,28204,414,276,156,33,37,194,163.78339354159201,537,239.58505796480713,590,263,42.6,1,40.200000000000003,1.8,44,1.1000000000000001,2.3199999999999998,7.0000000000000007E-2,2.42,0.09,2.08,0.14000000000000001,null,null,null,null,null,null,null,null,null,null,null,null,null,null,null,null,null,null,null,null,null,null,null,null,null,null,null,null,null,null,null,null,null,null,null,null,null,null,null,null,null,null,null,null,29,535,534]
[]
["Nativity and Prior Place of Residence"]
["NAME","TotalPop",{"$f":"\"MOE \"&B135","v":"MOE TotalPop"},"Native:",{"$f":"\"MOE \"&D135","v":"MOE Native:"},"NatBornInStateOfResidence",{"$f":"\"MOE \"&F135","v":"MOE NatBornInStateOfResidence"},"Born in other state in the United States:",{"$f":"\"MOE \"&H135","v":"MOE Born in other state in the United States:"},"Northeast",{"$f":"\"MOE \"&J135","v":"MOE Northeast"},"Midwest",{"$f":"\"MOE \"&L135","v":"MOE Midwest"},"South",{"$f":"\"MOE \"&N135","v":"MOE South"},"West",{"$f":"\"MOE \"&P135","v":"MOE West"},"Born outside the United States:",{"$f":"\"MOE \"&R135","v":"MOE Born outside the United States:"},"Puerto Rico",{"$f":"\"MOE \"&T135","v":"MOE Puerto Rico"},"U.S. Island Areas",{"$f":"\"MOE \"&V135","v":"MOE U.S. Island Areas"},"Born abroad of American parent(s)",{"$f":"\"MOE \"&X135","v":"MOE Born abroad of American parent(s)"},"Foreign born:",{"$f":"\"MOE \"&Z135","v":"MOE Foreign born:"},"Naturalized U.S. citizen",{"$f":"\"MOE \"&AB135","v":"MOE Naturalized U.S. citizen"},"Not a U.S. citizen",{"$f":"\"MOE \"&AD135","v":"MOE Not a U.S. citizen"},"CurrentResidenceTotal:",{"$f":"\"MOE \"&AF135","v":"MOE CurrentResidenceTotal:"},"SameHouse:",{"$f":"\"MOE \"&AH135","v":"MOE SameHouse:"},"DifferentHouse:",{"$f":"\"MOE \"&AJ135","v":"MOE DifferentHouse:"},"DiffHouseInNH",{"$f":"\"MOE \"&AL135","v":"MOE DiffHouseInNH"},"DiffHouseInNHSameCnty",{"$f":"\"MOE \"&AN135","v":"MOE DiffHouseInNHSameCnty"},"DiffHouseInNHDiffCnty",{"$f":"\"MOE \"&AP135","v":"MOE DiffHouseInNHDiffCnty"},"DiffHouseInDiffState",{"$f":"\"MOE \"&AR135","v":"MOE DiffHouseInDiffState"},"DiffHouseInElsewhere",{"$f":"\"MOE \"&AT135","v":"MOE DiffHouseInElsewhere"}]
[{"$f":"VLOOKUP(DropDownList!$B$47,CntyQryCensus!$A$510:$DA$522,A$1)","v":"Rochester"},29834,26,29196,150,17006,681,11996,682,9074,677,1054,230,1217,248,651,228,194,97,18,26,0,85,176,99,638,146,412,126,226,90,29580,105,24693,859,4887,967.84399569352081,3990,758.50181278623188,3164,666,826,363,891,601,6,14]
[]
["School Enrollment - Education"]
["NAME","Total Pop 3 Years and Older","MOE Total Pop 3 Years and Older","SchEnrlPop3yrOver",{"$f":"\"MOE \"&D139","v":"MOE SchEnrlPop3yrOver"},"TotalEnrollNursy&Kinder",{"$f":"\"MOE \"&F139","v":"MOE TotalEnrollNursy&Kinder"},"NurserSchEnrl",{"$f":"\"MOE \"&H139","v":"MOE NurserSchEnrl"},"KinderSchEnrl",{"$f":"\"MOE \"&J139","v":"MOE KinderSchEnrl"},"ElemSchEnrl (1-8)",{"$f":"\"MOE \"&L139","v":"MOE ElemSchEnrl (1-8)"},"HighSchEnrl(9-12)",{"$f":"\"MOE \"&N139","v":"MOE HighSchEnrl(9-12)"},"TotalElementry&HSEnroll",{"$f":"\"MOE \"&P139","v":"MOE TotalElementry&HSEnroll"},"CollGradSchEnrl",{"$f":"\"MOE \"&R139","v":"MOE CollGradSchEnrl"},"PopNotEnrolled","MOE PopNotEnrolled","Pop25yrsOver",{"$f":"\"MOE \"&V139","v":"MOE Pop25yrsOver"},"EduAtain<9grd",{"$f":"\"MOE \"&X139","v":"MOE EduAtain<9grd"},"EduAtainHSnoDip",{"$f":"\"MOE \"&Z139","v":"MOE EduAtainHSnoDip"},"EduAtainHSgrad",{"$f":"\"MOE \"&AB139","v":"MOE EduAtainHSgrad"},"EduAtainCollNoDeg",{"$f":"\"MOE \"&AD139","v":"MOE EduAtainCollNoDeg"},"EduAtainAssocDeg",{"$f":"\"MOE \"&AF139","v":"MOE EduAtainAssocDeg"},"EduAtainBachDeg",{"$f":"\"MOE \"&AH139","v":"MOE EduAtainBachDeg"},"EduAtainGradProfDeg",{"$f":"\"MOE \"&AJ139","v":"MOE EduAtainGradProfDeg"}]
[{"$f":"VLOOKUP(DropDownList!$B$47,CntyQryCensus!$A$510:$DA$522,A$1)","v":"Rochester"},29014,180,6311,455,573,154.26276284314372,226,89,347,126,2930,343.582595601116,1614,279,4544,442.59462265147323,1194,281.78360491696463,22703,470,20844,426,747,190.23669467271554,1482,274.38112179958739,7945,449.71991283464422,4531,408.57190309662752,2071,281.81199406696658,2759,323.32182110089633,645,143.9791651594077]
[]
["Occupied Owner Housing Value"]
["NAME","Estimate; Total:","Margin of Error; Total:","Estimate; Total: - Less than $10,000","Margin of Error; Total: - Less than $10,000","Estimate; Total: - $10,000 to $14,999","Margin of Error; Total: - $10,000 to $14,999","Estimate; Total: - $15,000 to $19,999","Margin of Error; Total: - $15,000 to $19,999","Estimate; Total: - $20,000 to $24,999","Margin of Error; Total: - $20,000 to $24,999","Estimate; Total: - $25,000 to $29,999","Margin of Error; Total: - $25,000 to $29,999","Estimate; Total: - $30,000 to $34,999","Margin of Error; Total: - $30,000 to $34,999","Estimate; Total: - $35,000 to $39,999","Margin of Error; Total: - $35,000 to $39,999","Estimate; Total: - $40,000 to $49,999","Margin of Error; Total: - $40,000 to $49,999","Estimate; Total: - $50,000 to $59,999","Margin of Error; Total: - $50,000 to $59,999","Estimate; Total: - $60,000 to $69,999","Margin of Error; Total: - $60,000 to $69,999","Estimate; Total: - $70,000 to $79,999","Margin of Error; Total: - $70,000 to $79,999","Estimate; Total: - $80,000 to $89,999","Margin of Error; Total: - $80,000 to $89,999","Estimate; Total: - $90,000 to $99,999","Margin of Error; Total: - $90,000 to $99,999","Estimate; Total: - $100,000 to $124,999","Margin of Error; Total: - $100,000 to $124,999","Estimate; Total: - $125,000 to $149,999","Margin of Error; Total: - $125,000 to $149,999","Estimate; Total: - $150,000 to $174,999","Margin of Error; Total: - $150,000 to $174,999","Estimate; Total: - $175,000 to $199,999","Margin of Error; Total: - $175,000 to $199,999","Estimate; Total: - $200,000 to $249,999","Margin of Error; Total: - $200,000 to $249,999","Estimate; Total: - $250,000 to $299,999","Margin of Error; Total: - $250,000 to $299,999","Estimate; Total: - $300,000 to $399,999","Margin of Error; Total: - $300,000 to $399,999","Estimate; Total: - $400,000 to $499,999","Margin of Error; Total: - $400,000 to $499,999","Estimate; Total: - $500,000 to $749,999","Margin of Error; Total: - $500,000 to $749,999","Estimate; Total: - $750,000 to $999,999","Margin of Error; Total: - $750,000 to $999,999","Estimate; Total: - $1,000,000 to $1,499,999","Margin of Error; Total: - $1,000,000 to $1,499,999","Estimate; Total: - $1,500,000 to $1,999,999","Margin of Error; Total: - $1,500,000 to $1,999,999","Estimate; Total: - $2,000,000 or more","Margin of Error; Total: - $2,000,000 or more","MedianOwnOCCHomeValue","MOE MedianOwnOCCHomeValue","OnwerOccHsU","MOE OnwerOccHsU","OwnerCosts>20PctHHInc","MOE OwnerCosts>20PctHHInc","OwnerCosts20to29.9PctHHInc","MOE OwnerCosts20to29.9PctHHInc","OwnerCosts<30PctHHInc","MOE OwnerCosts<30PctHHInc","OwnerCosts>30PctHHInc","MOE OwnerCosts>30PctHHInc","OwnerCosts30to34.9PctHHInc","MOE OwnerCosts30to34.9PctHHInc","OwnerCosts<35PctHHInc","MOE OwnerCosts<35PctHHInc","OwnerCosts>35PctHHInc","MOE OwnerCosts>35PctHHInc","OwnerCosts>50PctHHInc","MOE OwnerCosts>50PctHHInc","OwnerCostsPctNotcomputed","MOE OwnerCostsPctNotcomputed","OwnerOHUHhInc<20k","MOE OwnerOHUHhInc<20k","OwnerOHUHhInc<20kHCosts<20pct","MOE OwnerOHUHhInc<20kHCosts<20pct","OwnerOHUHhInc<20kHCosts20to29pct","MOE OwnerOHUHhInc<20kHCosts20to29pct","OwnerOHUHhInc>20kHCosts30pct","MOE OwnerOHUHhInc>20kHCosts30pct","OwnerOHUHhInc20kTo34999","MOE OwnerOHUHhInc20kTo34999","OwnerOHUHhInc20kTo34999HCosts<20pct","MOE OwnerOHUHhInc20kTo34999HCosts<20pct","OwnerOHUHhInc20kTo34999HCosts20to29pct","MOE OwnerOHUHhInc20kTo34999HCosts20to29pct","OwnerOHUHhInc20kTo34999HCosts30pct","MOE OwnerOHUHhInc20kTo34999HCosts30pct","OwnerOHUHhInc35kTo49999","MOE OwnerOHUHhInc35kTo49999","OwnerOHUHhInc35kTo49999HCosts<20pct","MOE OwnerOHUHhInc35kTo49999HCosts<20pct","OwnerOHUHhInc35kTo49999HCosts20to29pct","MOE OwnerOHUHhInc35kTo49999HCosts20to29pct","OwnerOHUHhInc35kTo49999HCosts30pct","MOE OwnerOHUHhInc35kTo49999HCosts30pct","OwnerOHUHhInc50kTo74999","MOE OwnerOHUHhInc50kTo74999","OwnerOHUHhInc50kTo74999HCosts<20pct","MOE OwnerOHUHhInc50kTo74999HCosts<20pct","OwnerOHUHhInc50kTo74999HCosts20to29pct","MOE OwnerOHUHhInc50kTo74999HCosts20to29pct","OwnerOHUHhInc50kTo74999HCosts30pct","MOE OwnerOHUHhInc50kTo74999HCosts30pct","OwnerOHUHhInc>75000","MOE OwnerOHUHhInc>75000","OwnerOHUHhInc>75000HCosts<20pct","MOE OwnerOHUHhInc>75000HCosts<20pct","OwnerOHUHhInc>75000HCosts20to29pct","MOE OwnerOHUHhInc>75000HCosts20to29pct","OwnerOHUHhInc>75000HCosts30pct","MOE OwnerOHUHhInc>75000HCosts30pct","ZeroOrNegativeIncome","MOE ZeroOrNegativeIncome"]
[{"$f":"VLOOKUP(DropDownList!$B$47,CntyQryCensus!$A$510:$DA$522,A$1)","v":"Rochester"},8858,400,43,36,71,45,114,52,107,81,176,92,154,87,119,69,243,112,177,109,179,103,211,111,307,139,345,153,502,131,612,155,803,162,1213,242,1688,253,914,182,670,187,127,61,29,33,20,23,34,33,null,null,null,null,180500,5207,8858,400,3166,368.79940347023341,2511,323.06500893782976,5677,490.28971027342601,3118,334.52952037152119,959,188.80677953929515,6636,525.38747605933656,2159,276.15575315390407,919,175.42234749312871,63,75,692,145,13,20,56,49,623,145,924,164,69,45,284,100,571,143,1562,259,419,135,492,147,651,168,2008,314,731,189,462,130,815,224,3609,290,1934,272,1217,197,458,136,63,72,3904,353]
[]
["Occupied Rental Housing Value"]
["NAME","RntrOccHU","MOE RntrOccHU","RntrOccHUwRent","MOE RntrOccHUwRent","ROHUGRent<100","MOE ROHUGRent<100","ROHUGRent100to149","MOE ROHUGRent100to149","ROHUGRent150to199","MOE ROHUGRent150to199","ROHUGRent200to249","MOE ROHUGRent200to249","ROHUGRent250to299","MOE ROHUGRent250to299","ROHUGRent300to349","MOE ROHUGRent300to349","ROHUGRent350to399","MOE ROHUGRent350to399","ROHUGRent400to449","MOE ROHUGRent400to449","ROHUGRent450to499","MOE ROHUGRent450to499","ROHUGRent500to549","MOE ROHUGRent500to549","ROHUGRent550to599","MOE ROHUGRent550to599","ROHUGRent600to649","MOE ROHUGRent600to649","ROHUGRent650to699","MOE ROHUGRent650to699","ROHUGRent700to749","MOE ROHUGRent700to749","ROHUGRent750to799","MOE ROHUGRent750to799","ROHUGRent800to899","MOE ROHUGRent800to899","ROHUGRent900to999","MOE ROHUGRent900to999","ROHUGRent1000to1249","MOE ROHUGRent1000to1249","ROHUGRent1250to1499","MOE ROHUGRent1250to1499","ROHUGRent1500to1999","MOE ROHUGRent1500to1999","ROHUGRent$2,000 to $2,499","MOE ROHUGRent$2,000 to $2,499","ROHUGRent$2,500 to $2,999","MOE ROHUGRent$2,500 to $2,999","ROHUGRent$3,000 to $3,499","MOE ROHUGRent$3,000 to $3,499","ROHUGRent$3,500 or more","MOE ROHUGRent$3,500 or more","ROHUNoGRent","MOE ROHUNoGRent","MedianGrossRnt","MOE MedianGrossRnt","H73RenterOccHU","MOE H73RenterOccHU","H73ROHUHhInc<10k","MOE H73ROHUHhInc<10k","H73ROHUHhInc<10kRnt<20pct","MOE H73ROHUHhInc<10kRnt<20pct","H73ROHUHhInc<10kRnt20to25pct","MOE H73ROHUHhInc<10kRnt20to25pct","H73ROHUHhInc<10kRnt25to30pct","MOE H73ROHUHhInc<10kRnt25to30pct","H73ROHUHhInc<10kRnt30to35pct","MOE H73ROHUHhInc<10kRnt30to35pct","H73ROHUHhInc<10kRnt35to39.9","MOE H73ROHUHhInc<10kRnt35to39.9","H73ROHUHhInc<10kRnt40to49.9","MOE H73ROHUHhInc<10kRnt40to49.9","H73ROHUHhInc<10kRnt>50pct","MOE H73ROHUHhInc<10kRnt>50pct","H73ROHUHhInc<10kPctNotComput","MOE H73ROHUHhInc<10kPctNotComput","H73ROHUHhInc10to20k","MOE H73ROHUHhInc10to20k","H73ROHUHhInc10to20kRnt<20pct","MOE H73ROHUHhInc10to20kRnt<20pct","H73ROHUHhInc10to20kRnt20to25pct","MOE H73ROHUHhInc10to20kRnt20to25pct","H73ROHUHhInc10to20kRnt25to30pct","MOE H73ROHUHhInc10to20kRnt25to30pct","H73ROHUHhInc10to20kRnt30to35pct","MOE H73ROHUHhInc10to20kRnt30to35pct","H73ROHUHhInc10to20kRnt35to39.9","MOE H73ROHUHhInc10to20kRnt35to39.9","H73ROHUHhInc10to20kRnt40to49.9","MOE H73ROHUHhInc10to20kRnt40to49.9","H73ROHUHhInc10to20kRnt>50pct","MOE H73ROHUHhInc10to20kRnt>50pct","H73ROHUHhInc10to20kRntPctNC","MOE H73ROHUHhInc10to20kRntPctNC","H73ROHUHhInc20to34.9k","MOE H73ROHUHhInc20to34.9k","H73ROHUHhInc20to34.9kRnt<20pct","MOE H73ROHUHhInc20to34.9kRnt<20pct","H73ROHUHhInc20to34.9kRnt20to25pct","MOE H73ROHUHhInc20to34.9kRnt20to25pct","H73ROHUHhInc20to34.9kRnt25to30pct","MOE H73ROHUHhInc20to34.9kRnt25to30pct","H73ROHUHhInc20to34.9kRnt30to35pct","MOE H73ROHUHhInc20to34.9kRnt30to35pct","H73ROHUHhInc20to34.9kRnt35to39.9","MOE H73ROHUHhInc20to34.9kRnt35to39.9","H73ROHUHhInc20to34.9kRnt40to49.9","MOE H73ROHUHhInc20to34.9kRnt40to49.9","H73ROHUHhInc20to34.9kRnt>50pct","MOE H73ROHUHhInc20to34.9kRnt>50pct","H73ROHUHhInc20to34.9kRntPctNC","MOE H73ROHUHhInc20to34.9kRntPctNC","H73ROHUHhInc35to49.9k","MOE H73ROHUHhInc35to49.9k","H73ROHUHhInc35to49.9kRnt<20pct","MOE H73ROHUHhInc35to49.9kRnt<20pct","H73ROHUHhInc35to49.9kRnt20to25pct","MOE H73ROHUHhInc35to49.9kRnt20to25pct","H73ROHUHhInc35to49.9kRnt25to30pct","MOE H73ROHUHhInc35to49.9kRnt25to30pct","H73ROHUHhInc35to49.9kRnt30to35pct","MOE H73ROHUHhInc35to49.9kRnt30to35pct","H73ROHUHhInc35to49.9kRnt35to39.9","MOE H73ROHUHhInc35to49.9kRnt35to39.9","H73ROHUHhInc35to49.9kRnt40to49.9","MOE H73ROHUHhInc35to49.9kRnt40to49.9","H73ROHUHhInc35to49.9kRnt>50pct","MOE H73ROHUHhInc35to49.9kRnt>50pct","H73ROHUHhInc35to49.9kRntPctNC","MOE H73ROHUHhInc35to49.9kRntPctNC","H73ROHUHhInc50to74.9k","MOE H73ROHUHhInc50to74.9k","H73ROHUHhInc50to74.9kRnt<20pct","MOE H73ROHUHhInc50to74.9kRnt<20pct","H73ROHUHhInc50to74.9kRnt20to25pct","MOE H73ROHUHhInc50to74.9kRnt20to25pct","H73ROHUHhInc50to74.9kRnt25to30pct","MOE H73ROHUHhInc50to74.9kRnt25to30pct","H73ROHUHhInc50to74.9kRnt30to35pct","MOE H73ROHUHhInc50to74.9kRnt30to35pct","H73ROHUHhInc50to74.9kRnt35to39.9","MOE H73ROHUHhInc50to74.9kRnt35to39.9","H73ROHUHhInc50to74.9kRnt40to49.9","MOE H73ROHUHhInc50to74.9kRnt40to49.9","H73ROHUHhInc50to74.9kRnt>50pct","MOE H73ROHUHhInc50to74.9kRnt>50pct","H73ROHUHhInc50to74.9kRntPctNC","MOE H73ROHUHhInc50to74.9kRntPctNC","H73ROHUHhInc75to99.9k","MOE H73ROHUHhInc75to99.9k","H73ROHUHhInc75to99.9kRnt<20pct","MOE H73ROHUHhInc75to99.9kRnt<20pct","H73ROHUHhInc75to99.9kRnt20to25pct","MOE H73ROHUHhInc75to99.9kRnt20to25pct","H73ROHUHhInc75to99.9kRnt25to30pct","MOE H73ROHUHhInc75to99.9kRnt25to30pct","H73ROHUHhInc75to99.9kRnt30to35pct","MOE H73ROHUHhInc75to99.9kRnt30to35pct","H73ROHUHhInc75to99.9kRnt35to39.9","MOE H73ROHUHhInc75to99.9kRnt35to39.9","H73ROHUHhInc75to99.9kRnt40to49.9","MOE H73ROHUHhInc75to99.9kRnt40to49.9","H73ROHUHhInc75to99.9kRnt>50pct","MOE H73ROHUHhInc75to99.9kRnt>50pct","H73ROHUHhInc75to99.9kRntPctNC","MOE H73ROHUHhInc75to99.9kRntPctNC","H73ROHUHhInc>100k","MOE H73ROHUHhInc>100k","H73ROHUHhInc>100kRnt<20pct","MOE H73ROHUHhInc>100kRnt<20pct","H73ROHUHhInc>100kRnt20to25pct","MOE H73ROHUHhInc>100kRnt20to25pct","H73ROHUHhInc>100kRnt25to30pct","MOE H73ROHUHhInc>100kRnt25to30pct","H73ROHUHhInc>100kRnt30to35pct","MOE H73ROHUHhInc>100kRnt30to35pct","H73ROHUHhInc>100kRnt35to39.9","MOE H73ROHUHhInc>100kRnt35to39.9","H73ROHUHhInc>100kRnt40to49.9","MOE H73ROHUHhInc>100kRnt40to49.9","H73ROHUHhInc>100kRnt>50pct","MOE H73ROHUHhInc>100kRnt>50pct","H73ROHUHhInc>100kRntPctNC","MOE H73ROHUHhInc>100kRntPctNC"]
[{"$f":"VLOOKUP(DropDownList!$B$47,CntyQryCensus!$A$510:$DA$522,A$1)","v":"Rochester"},3657,386,3555,384,0,85,21,23,18,30,95,64,91,74,62,52,58,50,98,71,11,17,73,77,52,47,66,64,71,68,61,52,262,120,393,135,662,228,891,266,284,119,256,136,30,36,null,null,null,null,null,null,102,60,909,41,3657,386,331,129,0,85,0,85,30,31,0,85,214,110,null,null,null,null,87,73,698,212,21,23,41,31,125,72,27,32,457,191,null,null,null,null,27,31,986,251,28,43,15,25,76,60,94,61,773,240,null,null,null,null,0,85,818,231,153,119,114,60,213,116,25,31,275,159,null,null,null,null,38,40,511,208,57,49,233,134,135,115,56,73,23,26,null,null,null,null,7,12,244,131,218,127,0,85,17,28,9,14,0,85,null,null,null,null,0,85,69,50,59,46,0,85,0,85,0,85,0,85,null,null,null,null,10,17]
[]
[]
[]
[]
[]
["Occupied Rental Housing Cost Burdern All Incomes"]
["NAME","RntrOccHU","MOE RntrOccHU","RntrOccHUwRent","MOE RntrOccHUwRent","ROHUGRent<100","MOE ROHUGRent<100","ROHUGRent100to149","MOE ROHUGRent100to149","ROHUGRent150to199","MOE ROHUGRent150to199","ROHUGRent200to249","MOE ROHUGRent200to249","ROHUGRent250to299","MOE ROHUGRent250to299","ROHUGRent300to349","MOE ROHUGRent300to349","ROHUGRent350to399","MOE ROHUGRent350to399","ROHUGRent400to449","MOE ROHUGRent400to449","ROHUGRent450to499","MOE ROHUGRent450to499","ROHUGRent500to549","MOE ROHUGRent500to549","ROHUGRent550to599","MOE ROHUGRent550to599","ROHUGRent600to649","MOE ROHUGRent600to649","ROHUGRent650to699","MOE ROHUGRent650to699","ROHUGRent700to749","MOE ROHUGRent700to749","ROHUGRent750to799","MOE ROHUGRent750to799","ROHUGRent800to899","MOE ROHUGRent800to899","ROHUGRent900to999","MOE ROHUGRent900to999","ROHUGRent1000to1249","MOE ROHUGRent1000to1249","ROHUGRent1250to1499","MOE ROHUGRent1250to1499","ROHUGRent1500to1999","MOE ROHUGRent1500to1999","ROHUGRent2000-2499","MOE ROHUGRent2000-2499","ROHUGRent2500-2999","MOE ROHUGRent2500-2999","ROHUGRent3000-3499","MOE ROHUGRent3000-3499","ROHUGRent3500<","MOE ROHUGRent3500<","ROHUNoGRent","MOE ROHUNoGRent","MedianGrossRnt","MOE MedianGrossRnt","H73RenterOccHU","MOE H73RenterOccHU","H73ROHUHhInc<10k","MOE H73ROHUHhInc<10k","H73ROHUHhInc<10kRnt<20pct","MOE H73ROHUHhInc<10kRnt<20pct","H73ROHUHhInc<10kRnt20to25pct","MOE H73ROHUHhInc<10kRnt20to25pct","H73ROHUHhInc<10kRnt25to30pct","MOE H73ROHUHhInc<10kRnt25to30pct","H73ROHUHhInc<10kRnt30to35pct","MOE H73ROHUHhInc<10kRnt30to35pct","H73ROHUHhInc<10kRnt35to39.9","MOE H73ROHUHhInc<10kRnt35to39.9","H73ROHUHhInc<10kRnt40to49.9","MOE H73ROHUHhInc<10kRnt40to49.9","H73ROHUHhInc<10kRnt>50pct","MOE H73ROHUHhInc<10kRnt>50pct","H73ROHUHhInc<10kPctNotComput","MOE H73ROHUHhInc<10kPctNotComput","H73ROHUHhInc10to20k","MOE H73ROHUHhInc10to20k","H73ROHUHhInc10to20kRnt<20pct","MOE H73ROHUHhInc10to20kRnt<20pct","H73ROHUHhInc10to20kRnt20to25pct","MOE H73ROHUHhInc10to20kRnt20to25pct","H73ROHUHhInc10to20kRnt25to30pct","MOE H73ROHUHhInc10to20kRnt25to30pct","H73ROHUHhInc10to20kRnt30to35pct","MOE H73ROHUHhInc10to20kRnt30to35pct","H73ROHUHhInc10to20kRnt35to39.9","MOE H73ROHUHhInc10to20kRnt35to39.9","H73ROHUHhInc10to20kRnt40to49.9","MOE H73ROHUHhInc10to20kRnt40to49.9","H73ROHUHhInc10to20kRnt>50pct","MOE H73ROHUHhInc10to20kRnt>50pct","H73ROHUHhInc10to20kRntPctNC","MOE H73ROHUHhInc10to20kRntPctNC","H73ROHUHhInc20to34.9k","MOE H73ROHUHhInc20to34.9k","H73ROHUHhInc20to34.9kRnt<20pct","MOE H73ROHUHhInc20to34.9kRnt<20pct","H73ROHUHhInc20to34.9kRnt20to25pct","MOE H73ROHUHhInc20to34.9kRnt20to25pct","H73ROHUHhInc20to34.9kRnt25to30pct","MOE H73ROHUHhInc20to34.9kRnt25to30pct","H73ROHUHhInc20to34.9kRnt30to35pct","MOE H73ROHUHhInc20to34.9kRnt30to35pct","H73ROHUHhInc20to34.9kRnt35to39.9","MOE H73ROHUHhInc20to34.9kRnt35to39.9","H73ROHUHhInc20to34.9kRnt40to49.9","MOE H73ROHUHhInc20to34.9kRnt40to49.9","H73ROHUHhInc20to34.9kRnt>50pct","MOE H73ROHUHhInc20to34.9kRnt>50pct","H73ROHUHhInc20to34.9kRntPctNC","MOE H73ROHUHhInc20to34.9kRntPctNC","H73ROHUHhInc35to49.9k","MOE H73ROHUHhInc35to49.9k","H73ROHUHhInc35to49.9kRnt<20pct","MOE H73ROHUHhInc35to49.9kRnt<20pct","H73ROHUHhInc35to49.9kRnt20to25pct","MOE H73ROHUHhInc35to49.9kRnt20to25pct","H73ROHUHhInc35to49.9kRnt25to30pct","MOE H73ROHUHhInc35to49.9kRnt25to30pct","H73ROHUHhInc35to49.9kRnt30to35pct","MOE H73ROHUHhInc35to49.9kRnt30to35pct","H73ROHUHhInc35to49.9kRnt35to39.9","MOE H73ROHUHhInc35to49.9kRnt35to39.9","H73ROHUHhInc35to49.9kRnt40to49.9","MOE H73ROHUHhInc35to49.9kRnt40to49.9","H73ROHUHhInc35to49.9kRnt>50pct","MOE H73ROHUHhInc35to49.9kRnt>50pct","H73ROHUHhInc35to49.9kRntPctNC","MOE H73ROHUHhInc35to49.9kRntPctNC","H73ROHUHhInc50to74.9k","MOE H73ROHUHhInc50to74.9k","H73ROHUHhInc50to74.9kRnt<20pct","MOE H73ROHUHhInc50to74.9kRnt<20pct","H73ROHUHhInc50to74.9kRnt20to25pct","MOE H73ROHUHhInc50to74.9kRnt20to25pct","H73ROHUHhInc50to74.9kRnt25to30pct","MOE H73ROHUHhInc50to74.9kRnt25to30pct","H73ROHUHhInc50to74.9kRnt30to35pct","MOE H73ROHUHhInc50to74.9kRnt30to35pct","H73ROHUHhInc50to74.9kRnt35to39.9","MOE H73ROHUHhInc50to74.9kRnt35to39.9","H73ROHUHhInc50to74.9kRnt40to49.9","MOE H73ROHUHhInc50to74.9kRnt40to49.9","H73ROHUHhInc50to74.9kRnt>50pct","MOE H73ROHUHhInc50to74.9kRnt>50pct","H73ROHUHhInc50to74.9kRntPctNC","MOE H73ROHUHhInc50to74.9kRntPctNC","H73ROHUHhInc75to99.9k","MOE H73ROHUHhInc75to99.9k","H73ROHUHhInc75to99.9kRnt<20pct","MOE H73ROHUHhInc75to99.9kRnt<20pct","H73ROHUHhInc75to99.9kRnt20to25pct","MOE H73ROHUHhInc75to99.9kRnt20to25pct","H73ROHUHhInc75to99.9kRnt25to30pct","MOE H73ROHUHhInc75to99.9kRnt25to30pct","H73ROHUHhInc75to99.9kRnt30to35pct","MOE H73ROHUHhInc75to99.9kRnt30to35pct","H73ROHUHhInc75to99.9kRnt35to39.9","MOE H73ROHUHhInc75to99.9kRnt35to39.9","H73ROHUHhInc75to99.9kRnt40to49.9","MOE H73ROHUHhInc75to99.9kRnt40to49.9","H73ROHUHhInc75to99.9kRnt>50pct","MOE H73ROHUHhInc75to99.9kRnt>50pct","H73ROHUHhInc75to99.9kRntPctNC","MOE H73ROHUHhInc75to99.9kRntPctNC","H73ROHUHhInc>100k","MOE H73ROHUHhInc>100k","H73ROHUHhInc>100kRnt<20pct","MOE H73ROHUHhInc>100kRnt<20pct","H73ROHUHhInc>100kRnt20to25pct","MOE H73ROHUHhInc>100kRnt20to25pct","H73ROHUHhInc>100kRnt25to30pct","MOE H73ROHUHhInc>100kRnt25to30pct","H73ROHUHhInc>100kRnt30to35pct","MOE H73ROHUHhInc>100kRnt30to35pct","H73ROHUHhInc>100kRnt35to39.9","MOE H73ROHUHhInc>100kRnt35to39.9","H73ROHUHhInc>100kRnt40to49.9","MOE H73ROHUHhInc>100kRnt40to49.9","H73ROHUHhInc>100kRnt>50pct","MOE H73ROHUHhInc>100kRnt>50pct","H73ROHUHhInc>100kRntPctNC","MOE H73ROHUHhInc>100kRntPctNC"]
[{"$f":"VLOOKUP(DropDownList!$B$47,CntyQryCensus!$A$510:$DA$522,A$1)","v":"Rochester"},3657,386,536,181.13806888669205,403,145,596,188,1535,298.63020610782161,1953,337.40924705763473,211,100,1746,314.92856332825704,1742,322.24990302558666,965,209,169,85]
[]
["Income By Household Type and Tenure"]
["NAME","TotalFamilyHouseholds",{"$f":"\"MOE \"&B159","v":"MOE TotalFamilyHouseholds"},"FamInc<10K",{"$f":"\"MOE \"&D159","v":"MOE FamInc<10K"},"FamInc10to15K",{"$f":"\"MOE \"&F159","v":"MOE FamInc10to15K"},"FamInc15to20K",{"$f":"\"MOE \"&H159","v":"MOE FamInc15to20K"},"FamInc20to25K",{"$f":"\"MOE \"&J159","v":"MOE FamInc20to25K"},"FamInc25to30K",{"$f":"\"MOE \"&L159","v":"MOE FamInc25to30K"},"FamInc30to35K",{"$f":"\"MOE \"&N159","v":"MOE FamInc30to35K"},"FamInc35to40K",{"$f":"\"MOE \"&P159","v":"MOE FamInc35to40K"},"FamInc40to45K",{"$f":"\"MOE \"&R159","v":"MOE FamInc40to45K"},"FamInc45to50K",{"$f":"\"MOE \"&T159","v":"MOE FamInc45to50K"},"FamInc50to60K",{"$f":"\"MOE \"&V159","v":"MOE FamInc50to60K"},"FamInc60to75K",{"$f":"\"MOE \"&X159","v":"MOE FamInc60to75K"},"FamInc75to100K",{"$f":"\"MOE \"&Z159","v":"MOE FamInc75to100K"},"FamInc100to125K",{"$f":"\"MOE \"&AB159","v":"MOE FamInc100to125K"},"FamInc125to150K",{"$f":"\"MOE \"&AD159","v":"MOE FamInc125to150K"},"FamInc150to200K",{"$f":"\"MOE \"&AF159","v":"MOE FamInc150to200K"},"FamInc>200K",{"$f":"\"MOE \"&AH159","v":"MOE FamInc>200K"},"MedFamInc",{"$f":"\"MOE \"&AJ159","v":"MOE MedFamInc"},"TotalNonNonFamilyHouseholds",{"$f":"\"MOE \"&AL159","v":"MOE TotalNonNonFamilyHouseholds"},"NonFamInc<10K",{"$f":"\"MOE \"&AN159","v":"MOE NonFamInc<10K"},"NonFamInc10to15K",{"$f":"\"MOE \"&AP159","v":"MOE NonFamInc10to15K"},"NonFamInc15to20K",{"$f":"\"MOE \"&AR159","v":"MOE NonFamInc15to20K"},"NonFamInc20to25K",{"$f":"\"MOE \"&AT159","v":"MOE NonFamInc20to25K"},"NonFamInc25to30K",{"$f":"\"MOE \"&AV159","v":"MOE NonFamInc25to30K"},"NonFamInc30to35K",{"$f":"\"MOE \"&AX159","v":"MOE NonFamInc30to35K"},"NonFamInc35to40K",{"$f":"\"MOE \"&AZ159","v":"MOE NonFamInc35to40K"},"NonFamInc40to45K",{"$f":"\"MOE \"&BB159","v":"MOE NonFamInc40to45K"},"NonFamInc45to50K",{"$f":"\"MOE \"&BD159","v":"MOE NonFamInc45to50K"},"NonFamInc50to60K",{"$f":"\"MOE \"&BF159","v":"MOE NonFamInc50to60K"},"NonFamInc60to75K",{"$f":"\"MOE \"&BH159","v":"MOE NonFamInc60to75K"},"NonFamInc75to100K",{"$f":"\"MOE \"&BJ159","v":"MOE NonFamInc75to100K"},"NonFamInc100to125K",{"$f":"\"MOE \"&BL159","v":"MOE NonFamInc100to125K"},"NonFamInc125to150K",{"$f":"\"MOE \"&BN159","v":"MOE NonFamInc125to150K"},"NonFamInc150to200K",{"$f":"\"MOE \"&BP159","v":"MOE NonFamInc150to200K"},"NonFamInc>200K",{"$f":"\"MOE \"&BR159","v":"MOE NonFamInc>200K"},"MedNonFamInc",{"$f":"\"MOE \"&BT159","v":"MOE MedNonFamInc"},"PerCapitaIncome","MOE PerCapitaIncome"]
[{"$f":"VLOOKUP(DropDownList!$B$47,CntyQryCensus!$A$510:$DA$522,A$1)","v":"Rochester"},7866,306,386,156,286,112,240,98,334,113,361,119,253,123,390,138,538,185,347,123,623,163,979,174,1140,223,755,176,645,144,381,129,208,93,62044,3459,4896,471,376,154,683,166,303,115,328,138,493,178,385,187,242,98,309,122,336,108,568,212,272,112,284,118,182,92,47,41,88,61,0,21,33578,2817]
[]
[]
[]
["2010 Census"]
[]
["TownName","LOGRECNO","COUNTY","TotalPop","TotalPop1Race","TotalPopWhite","TotalPopAfricanAmerican","TotalPopAmericanIndAlaska","TotalPopAsian","TotalPopNativeHawaiianPIsland","TotalPopSomeOtherRace","TotalPopTwoOrMoreRaces","TotalPopHispanicLatino","TotalNonHispanicLatino","TotPopUnder15yrs","TotPop15to24yrs","TotPop25to34yrs","TotPop35to44yrs","TotPop45to54yrs","TotPop55to64yrs","TotPop65to74yrs","TotPopOver74yrs","MedianAge","MedianAgeMale","MedianAgeFemale","TotalHH","TotalPopInHouseholds","TotalPopInFamilyHH","TotalPopInNonFamilyHH","AvgHHSize","TotalFamilyHH","TotalFamilyHHSpouse","TotalSingleParentHH","TotalNonFamilyHH","AvgFamilyHHSize","AvgNonFamilyHHSize","AverageHHSizeOwnerOccupied","AverageHHSizeRentalOccupied","TotalHousingUnits","TotalOccupiedHU","TotalOwnerOccupiedHUs","TotalRentalOccupiedHU","TotalVacantHU","VacantHUForRent","VacantHURentNotOccupied","VacantHUForSale","VacantHUsSoldNotOccupied","VacantHUSeasonalRecreational","VacantHUsAllOtherVacants","HomeOwnerVacancyRate","HomeRentalVacancyRate","Total HH","Total Single Family HU","Total Multi-Family HU","Total Manufacture HU"]
[{"$f":"VLOOKUP(DropDownList!$B$47,CntyQryCensus!$A$529:$DA$540,A$1)","v":"Rochester"},{"$f":"VLOOKUP(DropDownList!$B$47,CntyQryCensus!$A$529:$DA$540,B$1)","v":"0000318"},{"$f":"VLOOKUP(DropDownList!$B$47,CntyQryCensus!$A$529:$DA$540,C$1)","v":"017"},{"$f":"VLOOKUP(DropDownList!$B$47,CntyQryCensus!$A$529:$DA$540,D$1)","v":29752},{"$f":"VLOOKUP(DropDownList!$B$47,CntyQryCensus!$A$529:$DA$540,E$1)","v":29238},{"$f":"VLOOKUP(DropDownList!$B$47,CntyQryCensus!$A$529:$DA$540,F$1)","v":28388},{"$f":"VLOOKUP(DropDownList!$B$47,CntyQryCensus!$A$529:$DA$540,G$1)","v":251},{"$f":"VLOOKUP(DropDownList!$B$47,CntyQryCensus!$A$529:$DA$540,H$1)","v":92},{"$f":"VLOOKUP(DropDownList!$B$47,CntyQryCensus!$A$529:$DA$540,I$1)","v":361},{"$f":"VLOOKUP(DropDownList!$B$47,CntyQryCensus!$A$529:$DA$540,J$1)","v":15},{"$f":"VLOOKUP(DropDownList!$B$47,CntyQryCensus!$A$529:$DA$540,K$1)","v":131},{"$f":"VLOOKUP(DropDownList!$B$47,CntyQryCensus!$A$529:$DA$540,L$1)","v":514},{"$f":"VLOOKUP(DropDownList!$B$47,CntyQryCensus!$A$529:$DA$540,M$1)","v":547},{"$f":"VLOOKUP(DropDownList!$B$47,CntyQryCensus!$A$529:$DA$540,N$1)","v":29205},{"$f":"VLOOKUP(DropDownList!$B$47,CntyQryCensus!$A$529:$DA$540,O$1)","v":5457},{"$f":"VLOOKUP(DropDownList!$B$47,CntyQryCensus!$A$529:$DA$540,P$1)","v":3381},{"$f":"VLOOKUP(DropDownList!$B$47,CntyQryCensus!$A$529:$DA$540,Q$1)","v":3779},{"$f":"VLOOKUP(DropDownList!$B$47,CntyQryCensus!$A$529:$DA$540,R$1)","v":4024},{"$f":"VLOOKUP(DropDownList!$B$47,CntyQryCensus!$A$529:$DA$540,S$1)","v":4863},{"$f":"VLOOKUP(DropDownList!$B$47,CntyQryCensus!$A$529:$DA$540,T$1)","v":3851},{"$f":"VLOOKUP(DropDownList!$B$47,CntyQryCensus!$A$529:$DA$540,U$1)","v":2334},{"$f":"VLOOKUP(DropDownList!$B$47,CntyQryCensus!$A$529:$DA$540,V$1)","v":2063},{"$f":"VLOOKUP(DropDownList!$B$47,CntyQryCensus!$A$529:$DA$540,W$1)","v":40.700000000000003},{"$f":"VLOOKUP(DropDownList!$B$47,CntyQryCensus!$A$529:$DA$540,X$1)","v":39.5},{"$f":"VLOOKUP(DropDownList!$B$47,CntyQryCensus!$A$529:$DA$540,Y$1)","v":42.1},{"$f":"VLOOKUP(DropDownList!$B$47,CntyQryCensus!$A$529:$DA$540,Z$1)","v":12378},{"$f":"VLOOKUP(DropDownList!$B$47,CntyQryCensus!$A$529:$DA$540,AA$1)","v":29512},{"$f":"VLOOKUP(DropDownList!$B$47,CntyQryCensus!$A$529:$DA$540,AB$1)","v":14994},{"$f":"VLOOKUP(DropDownList!$B$47,CntyQryCensus!$A$529:$DA$540,AC$1)","v":14518},{"$f":"VLOOKUP(DropDownList!$B$47,CntyQryCensus!$A$529:$DA$540,AD$1)","v":2.38},{"$f":"VLOOKUP(DropDownList!$B$47,CntyQryCensus!$A$529:$DA$540,AE$1)","v":7936},{"$f":"VLOOKUP(DropDownList!$B$47,CntyQryCensus!$A$529:$DA$540,AF$1)","v":5788},{"$f":"VLOOKUP(DropDownList!$B$47,CntyQryCensus!$A$529:$DA$540,AG$1)","v":2148},{"$f":"VLOOKUP(DropDownList!$B$47,CntyQryCensus!$A$529:$DA$540,AH$1)","v":4442},{"$f":"VLOOKUP(DropDownList!$B$47,CntyQryCensus!$A$529:$DA$540,AI$1)","v":2.89},{"$f":"VLOOKUP(DropDownList!$B$47,CntyQryCensus!$A$529:$DA$540,AJ$1)","v":3.2683475911751465},{"$f":"VLOOKUP(DropDownList!$B$47,CntyQryCensus!$A$529:$DA$540,AK$1)","v":2.46},{"$f":"VLOOKUP(DropDownList!$B$47,CntyQryCensus!$A$529:$DA$540,AL$1)","v":2.23},{"$f":"VLOOKUP(DropDownList!$B$47,CntyQryCensus!$A$529:$DA$540,AM$1)","v":13372},{"$f":"VLOOKUP(DropDownList!$B$47,CntyQryCensus!$A$529:$DA$540,AN$1)","v":12378},{"$f":"VLOOKUP(DropDownList!$B$47,CntyQryCensus!$A$529:$DA$540,AO$1)","v":8359},{"$f":"VLOOKUP(DropDownList!$B$47,CntyQryCensus!$A$529:$DA$540,AP$1)","v":4019},{"$f":"VLOOKUP(DropDownList!$B$47,CntyQryCensus!$A$529:$DA$540,AQ$1)","v":994},{"$f":"VLOOKUP(DropDownList!$B$47,CntyQryCensus!$A$529:$DA$540,AR$1)","v":376},{"$f":"VLOOKUP(DropDownList!$B$47,CntyQryCensus!$A$529:$DA$540,AS$1)","v":15},{"$f":"VLOOKUP(DropDownList!$B$47,CntyQryCensus!$A$529:$DA$540,AT$1)","v":231},{"$f":"VLOOKUP(DropDownList!$B$47,CntyQryCensus!$A$529:$DA$540,AU$1)","v":18},{"$f":"VLOOKUP(DropDownList!$B$47,CntyQryCensus!$A$529:$DA$540,AV$1)","v":80},{"$f":"VLOOKUP(DropDownList!$B$47,CntyQryCensus!$A$529:$DA$540,AW$1)","v":274},{"$f":"VLOOKUP(DropDownList!$B$47,CntyQryCensus!$A$529:$DA$540,AX$1)","v":2.7},{"$f":"VLOOKUP(DropDownList!$B$47,CntyQryCensus!$A$529:$DA$540,AY$1)","v":8.5},{"$f":"VLOOKUP(DropDownList!$B$47,CntyQryCensus!$A$529:$DA$540,AZ$1)","v":13372},{"$f":"VLOOKUP(DropDownList!$B$47,CntyQryCensus!$A$529:$DA$540,BA$1)","v":6622},{"$f":"VLOOKUP(DropDownList!$B$47,CntyQryCensus!$A$529:$DA$540,BB$1)","v":4349},{"$f":"VLOOKUP(DropDownList!$B$47,CntyQryCensus!$A$529:$DA$540,BC$1)","v":2402}]

{"sheet":"StatisticallySignificantCalcs","index":69,"n_rows":271,"n_cols":16,"rows_kept":271,"cut":false,"hidden":true,"merged":[]}
[]
["Statistically Significant Change  10 Year","Standard Error Estimate  1","Standard Error Estimate  2","Square Root of Sum of Squared SE","Difference between the estimates","Value","Test Statistic (90%) Confidence Interval",null,null,"Statistically Significant Change  5Year","Standard Error Estimate  1","Standard Error Estimate  2","Square Root of Sum of Squared SE","Difference between the estimates","Value","Test Statistic (90%) Confidence Interval"]
[{"$f":"IF(F3>G3,\"Y\",\"N\")","v":"Y"},{"$f":"PopulationCharacteristics!Q22/1.645","v":277.54405057938146},{"$f":"PopulationCharacteristics!T22/1.645","v":353.37820530595138},{"$f":"SQRT((B3^2)+(C3^2))","v":449.34046779392725},{"$f":"(PopulationCharacteristics!M22-PopulationCharacteristics!S22)","v":-5379},{"$f":"ABS((E3/D3))","v":11.97087817709504},1.645,"Population By Age Under 15 yrs.",null,{"$f":"IF(O3>P3,\"Y\",\"N\")","v":"N"},{"$f":"PopulationCharacteristics!P22/1.645","v":3023.7082066869302},{"$f":"PopulationCharacteristics!T22/1.645","v":353.37820530595138},{"$f":"SQRT((K3^2)+(L3^2))","v":3044.287679436874},{"$f":"(PopulationCharacteristics!P22-PopulationCharacteristics!S22)","v":-405},{"$f":"ABS((N3/M3))","v":0.13303604739316754},1.645]
["Y",{"$f":"PopulationCharacteristics!Q23/1.645","v":290.82920766962098},{"$f":"PopulationCharacteristics!T23/1.645","v":327.64660411589927},438.10264233672495,{"$f":"(PopulationCharacteristics!M23-PopulationCharacteristics!S23)","v":-4073},9.2969080904777996,1.645,"Population By Age 15 to 24 yrs.",null,{"$f":"IF(O4>P4,\"Y\",\"N\")","v":"N"},{"$f":"PopulationCharacteristics!P23/1.645","v":2291.7933130699089},{"$f":"PopulationCharacteristics!T23/1.645","v":327.64660411589927},2315.0958699415946,{"$f":"(PopulationCharacteristics!P23-PopulationCharacteristics!S23)","v":-303},0.13088010908491843,1.645]
["Y",{"$f":"PopulationCharacteristics!Q24/1.645","v":245.6724418394052},{"$f":"PopulationCharacteristics!T24/1.645","v":278.97040031647145},371.72494257457117,{"$f":"(PopulationCharacteristics!M24-PopulationCharacteristics!S24)","v":-3883},10.445895755894931,1.645,"Population By Age 25 to 34 yrs.",null,"N",{"$f":"PopulationCharacteristics!P24/1.645","v":2496.0486322188449},{"$f":"PopulationCharacteristics!T24/1.645","v":278.97040031647145},2511.5897870978647,{"$f":"(PopulationCharacteristics!P24-PopulationCharacteristics!S24)","v":223},8.8788384610241591E-2,1.645]
["Y",{"$f":"PopulationCharacteristics!Q25/1.645","v":238.76729398711973},{"$f":"PopulationCharacteristics!T25/1.645","v":298.69683052398193},382.39981334070239,{"$f":"(PopulationCharacteristics!M25-PopulationCharacteristics!S25)","v":-4020},10.512557432705508,1.645,"Population By Age 35 to 44 yrs.",null,"N",{"$f":"PopulationCharacteristics!P25/1.645","v":2396.3525835866262},{"$f":"PopulationCharacteristics!T25/1.645","v":298.69683052398193},2414.8965819321065,{"$f":"(PopulationCharacteristics!P25-PopulationCharacteristics!S25)","v":-78},3.2299519815293241E-2,1.645]
["Y",{"$f":"PopulationCharacteristics!Q26/1.645","v":225.73582242041655},{"$f":"PopulationCharacteristics!T26/1.645","v":280.34006592576384},359.92667876538889,{"$f":"(PopulationCharacteristics!M26-PopulationCharacteristics!S26)","v":-4322},12.008001226319793,1.645,"Population By Age 45 to 54 yrs.",null,"N",{"$f":"PopulationCharacteristics!P26/1.645","v":2613.9817629179329},{"$f":"PopulationCharacteristics!T26/1.645","v":280.34006592576384},2628.9715117191372,{"$f":"(PopulationCharacteristics!P26-PopulationCharacteristics!S26)","v":-22},8.3682915170175277E-3,1.645]
["Y",{"$f":"PopulationCharacteristics!Q27/1.645","v":236.58353008140048},{"$f":"PopulationCharacteristics!T27/1.645","v":306.30818790912832},387.03549279872357,{"$f":"(PopulationCharacteristics!M27-PopulationCharacteristics!S27)","v":-5019},12.9678029363837,1.645,"Population By Age 55 to 64 yrs.",null,"N",{"$f":"PopulationCharacteristics!P27/1.645","v":2366.5653495440729},{"$f":"PopulationCharacteristics!T27/1.645","v":306.30818790912832},2386.3059861725264,{"$f":"(PopulationCharacteristics!P27-PopulationCharacteristics!S27)","v":-1126},0.47185901830051052,1.645]
["Y",{"$f":"PopulationCharacteristics!Q28/1.645","v":205.38657637113863},{"$f":"PopulationCharacteristics!T28/1.645","v":289.88611773096272},355.27117390324133,{"$f":"(PopulationCharacteristics!M28-PopulationCharacteristics!S28)","v":-3380},9.5138594073510401,1.645,"Population By Age 65 to 74 yrs.",null,"N",{"$f":"PopulationCharacteristics!P28/1.645","v":1852.2796352583587},{"$f":"PopulationCharacteristics!T28/1.645","v":289.88611773096272},1874.8263408769271,{"$f":"(PopulationCharacteristics!P28-PopulationCharacteristics!S28)","v":-333},0.17761645051575461,1.645]
["Y",{"$f":"PopulationCharacteristics!Q29/1.645","v":184.15239218298305},{"$f":"PopulationCharacteristics!T29/1.645","v":229.76310965176719},294.45405431673919,{"$f":"(PopulationCharacteristics!M29-PopulationCharacteristics!S29)","v":-2241},7.6106950036741372,1.645,"Population By Age Over 74 yrs. ",null,"N",{"$f":"PopulationCharacteristics!P29/1.645","v":1325.2279635258358},{"$f":"PopulationCharacteristics!T29/1.645","v":229.76310965176719},1344.9982311764145,{"$f":"(PopulationCharacteristics!P29-PopulationCharacteristics!S29)","v":-61},4.5353219495795037E-2,1.645]
["N",{"$f":"PopulationCharacteristics!Q$30/1.645","v":0.60790273556231},{"$f":"PopulationCharacteristics!T$30/1.645","v":1.094224924012158},1.2517483454087539,{"$f":"(PopulationCharacteristics!P30-PopulationCharacteristics!S30)","v":-1.5},1.1983239326832746,1.645,"Population By Age Median Age        ",null,"N",{"$f":"PopulationCharacteristics!P30/1.645","v":24.984802431610944},{"$f":"PopulationCharacteristics!T30/1.645","v":1.094224924012158},{"$f":"SQRT((K11^2)+(L11^2))","v":25.008752082640221},{"$f":"(PopulationCharacteristics!P30-PopulationCharacteristics!S30)","v":-1.5},5.9979002352589288E-2,1.645]
["Y",{"$f":"PopulationCharacteristics!E51/1.645","v":38.90577507598784},{"$f":"PopulationCharacteristics!K51/1.645","v":314.89361702127661},317.28795970696052,{"$f":"PopulationCharacteristics!D51-PopulationCharacteristics!J51","v":16106},50.761459763159976,1.645,"Total Households",null,"Y",{"$f":"PopulationCharacteristics!H51/1.645","v":214.58966565349544},{"$f":"PopulationCharacteristics!K51/1.645","v":314.89361702127661},381.05998825122191,{"$f":"PopulationCharacteristics!G51-PopulationCharacteristics!J51","v":-634},1.6637800334524284,1.645]
["N",{"$f":"PopulationCharacteristics!E52/1.645","v":4.2553191489361708E-2},{"$f":"PopulationCharacteristics!K52/1.645","v":5.5952765424745823E-2},7.0295704453450902E-2,{"$f":"PopulationCharacteristics!D52-PopulationCharacteristics!J52","v":-6.5197832380669674E-2},0.92747960757464221,1.645,"Persons per Household",null,"N",{"$f":"PopulationCharacteristics!H52/1.645","v":5.5952765424745823E-2},{"$f":"PopulationCharacteristics!K52/1.645","v":5.5952765424745823E-2},7.9129159715955938E-2,{"$f":"PopulationCharacteristics!G52-PopulationCharacteristics!J52","v":-4.6099912305885837E-2},0.582590696923451,1.645]
["Y",{"$f":"PopulationCharacteristics!E53/1.645","v":38.90577507598784},{"$f":"PopulationCharacteristics!K53/1.645","v":314.89361702127661},317.28795970696052,{"$f":"PopulationCharacteristics!D53-PopulationCharacteristics!J53","v":14589},45.98031395037507,1.645,"Family Households",null,"N",{"$f":"PopulationCharacteristics!H53/1.645","v":214.58966565349544},{"$f":"PopulationCharacteristics!K53/1.645","v":314.89361702127661},381.05998825122191,{"$f":"PopulationCharacteristics!G53-PopulationCharacteristics!J53","v":-533},1.3987299019402908,1.645]
["Y",{"$f":"PopulationCharacteristics!E54/1.645","v":5.4711246200607903E-2},{"$f":"PopulationCharacteristics!K54/1.645","v":0.104462115610665},0.11792223733749065,{"$f":"PopulationCharacteristics!D54-PopulationCharacteristics!J54","v":-0.61386031146767328},5.2056365731157186,1.645,"Persons per Family Household",null,"N",{"$f":"PopulationCharacteristics!H54/1.645","v":0.104462115610665},{"$f":"PopulationCharacteristics!K54/1.645","v":0.104462115610665},0.14773174065078865,{"$f":"PopulationCharacteristics!G54-PopulationCharacteristics!J54","v":-4.582052801054104E-2},0.31016034745608634,1.645]
["Y",{"$f":"PopulationCharacteristics!E55/1.645","v":621.88449848024311},{"$f":"PopulationCharacteristics!K55/1.645","v":269.90881458966567},677.93148447554927,{"$f":"PopulationCharacteristics!D55-PopulationCharacteristics!J55","v":9988},14.733052275521265,1.645,"Married-Couple Family Hh",null,"N",{"$f":"PopulationCharacteristics!H55/1.645","v":209.11854103343464},{"$f":"PopulationCharacteristics!K55/1.645","v":269.90881458966567},341.44008610172125,{"$f":"PopulationCharacteristics!G55-PopulationCharacteristics!J55","v":-303},0.88741777059454807,1.645]
["Y",{"$f":"PopulationCharacteristics!E56/1.645","v":612.76595744680856},{"$f":"PopulationCharacteristics!K56/1.645","v":200.60790273556231},644.7679033928913,{"$f":"PopulationCharacteristics!D56-PopulationCharacteristics!J56","v":14137},21.925719201604824,1.645,"Single-Parent Family Hh",null,"N",{"$f":"PopulationCharacteristics!H56/1.645","v":161.70212765957447},{"$f":"PopulationCharacteristics!K56/1.645","v":200.60790273556231},257.66472154641997,{"$f":"PopulationCharacteristics!G56-PopulationCharacteristics!J56","v":-230},0.89263287042019068,1.645]
["Y",{"$f":"PopulationCharacteristics!E57/1.645","v":327.05167173252278},{"$f":"PopulationCharacteristics!K57/1.645","v":375.07598784194528},497.63921935338755,{"$f":"PopulationCharacteristics!D57-PopulationCharacteristics!J57","v":-3400},6.8322589293059011,1.645,"Non-Family Households*",null,"N",{"$f":"PopulationCharacteristics!H57/1.645","v":316.10942249240122},{"$f":"PopulationCharacteristics!K57/1.645","v":375.07598784194528},490.51724092440469,{"$f":"PopulationCharacteristics!G57-PopulationCharacteristics!J57","v":-101},0.20590509685176481,1.645]
["Y",{"$f":"PopulationCharacteristics!E58/1.645","v":8.5106382978723416E-2},{"$f":"PopulationCharacteristics!K58/1.645","v":0.13826441076969828},0.16235807251015577,{"$f":"PopulationCharacteristics!D58-PopulationCharacteristics!J58","v":0.79551551551551558},4.8997595451606184,1.645,"Persons per Non-Family Hh",null,"N",{"$f":"PopulationCharacteristics!H58/1.645","v":0.13826441076969828},{"$f":"PopulationCharacteristics!K58/1.645","v":0.13826441076969828},0.19553540490403193,{"$f":"PopulationCharacteristics!G58-PopulationCharacteristics!J58","v":1.3757525404440862E-3},7.0358232112455576E-3,1.645]
["Y",{"$f":"PopulationCharacteristics!D36/1.645","v":251.67173252279636},{"$f":"PopulationCharacteristics!J36/1.645","v":328.26747720364739},413.64017882777432,{"$f":"PopulationCharacteristics!C36-PopulationCharacteristics!I36","v":-1189},2.8744789816345646,1.645,"Ethnicity -White",null,"Y",{"$f":"PopulationCharacteristics!G36/1.645","v":266.86930091185411},{"$f":"PopulationCharacteristics!J36/1.645","v":328.26747720364739},423.05881430225384,{"$f":"PopulationCharacteristics!F36-PopulationCharacteristics!I36","v":-1095},{"$f":"ABS((N20/M20))","v":2.5882926037269103},1.645]
["N",{"$f":"PopulationCharacteristics!D37/1.645","v":94.832826747720361},{"$f":"PopulationCharacteristics!J37/1.645","v":117.93313069908814},151.33237705610571,{"$f":"PopulationCharacteristics!C37-PopulationCharacteristics!I37","v":-48},0.31718262102104061,1.645,"Ethnicity -Black",null,"N",{"$f":"PopulationCharacteristics!G37/1.645","v":113.67781155015197},{"$f":"PopulationCharacteristics!J37/1.645","v":117.93313069908814},163.80130694020752,{"$f":"PopulationCharacteristics!F37-PopulationCharacteristics!I37","v":-97},{"$f":"ABS((N21/M21))","v":0.59218086724673058},1.645]
["N",{"$f":"PopulationCharacteristics!D38/1.645","v":22.492401215805472},{"$f":"PopulationCharacteristics!J38/1.645","v":4.86322188449848},23.012149824617264,{"$f":"PopulationCharacteristics!C38-PopulationCharacteristics!I38","v":29},1.2602038584407802,1.645,"Ethnicity -American Indian",null,"N",{"$f":"PopulationCharacteristics!G38/1.645","v":14.589665653495441},{"$f":"PopulationCharacteristics!J38/1.645","v":4.86322188449848},15.378857921791511,{"$f":"PopulationCharacteristics!F38-PopulationCharacteristics!I38","v":16},1.0403893501953967,1.645]
["Y",{"$f":"PopulationCharacteristics!D39/1.645","v":99.564372973612166},{"$f":"PopulationCharacteristics!J39/1.645","v":214.87878437049747},236.82473759759833,{"$f":"PopulationCharacteristics!C39-PopulationCharacteristics!I39","v":-519},2.191494035905408,1.645,"Ethnicity -Asian &Pacific Is",null,"N",{"$f":"PopulationCharacteristics!G39/1.645","v":142.99547076410451},{"$f":"PopulationCharacteristics!J39/1.645","v":214.87878437049747},258.10966008964215,{"$f":"PopulationCharacteristics!F39-PopulationCharacteristics!I39","v":-305},1.1816682874018458,1.645]
["Y",{"$f":"PopulationCharacteristics!D40/1.645","v":145.64441213666086},{"$f":"PopulationCharacteristics!J40/1.645","v":178.7626861696103},230.58272431647632,{"$f":"PopulationCharacteristics!C40-PopulationCharacteristics!I40","v":-522},2.263829614934862,1.645,"Ethnicity -Other*",null,"N",{"$f":"PopulationCharacteristics!G40/1.645","v":192.17516022902655},{"$f":"PopulationCharacteristics!J40/1.645","v":178.7626861696103},262.46407406657892,{"$f":"PopulationCharacteristics!F40-PopulationCharacteristics!I40","v":-367},1.3982866085775365,1.645]
["N",{"$f":"PopulationCharacteristics!D42/1.645","v":159.87841945288753},{"$f":"PopulationCharacteristics!J42/1.645","v":159.87841945288753},226.10222912104803,{"$f":"PopulationCharacteristics!C42-PopulationCharacteristics!I42","v":-234},1.0349300885252386,1.645,"Ethnicity -Hispanic",null,"Y",{"$f":"PopulationCharacteristics!G42/1.645","v":164.13373860182369},{"$f":"PopulationCharacteristics!J42/1.645","v":159.87841945288753},229.13095197760873,{"$f":"PopulationCharacteristics!F42-PopulationCharacteristics!I41","v":-31750},138.56704965421997,1.645]
["Y",{"$f":"PlaceOfBirthAndPriorRes!E8/1.645","v":91.1854103343465},{"$f":"PlaceOfBirthAndPriorRes!M8/1.645","v":212.15805471124619},230.92383860637531,{"$f":"PlaceOfBirthAndPriorRes!D8-PlaceOfBirthAndPriorRes!L8","v":-1945},8.4226904062312027,1.645,"Place of Birth - United States Native",null,"Y",{"$f":"PlaceOfBirthAndPriorRes!I8/1.645","v":139.209726443769},{"$f":"PlaceOfBirthAndPriorRes!M8/1.645","v":212.15805471124619},253.75261203662345,{"$f":"PlaceOfBirthAndPriorRes!H8-PlaceOfBirthAndPriorRes!L8","v":-1914},7.5427794994431716,1.645]
["N",{"$f":"PlaceOfBirthAndPriorRes!E9/1.645","v":413.98176291793311},{"$f":"PlaceOfBirthAndPriorRes!M9/1.645","v":631.00303951367778},754.68253981666999,{"$f":"PlaceOfBirthAndPriorRes!D9-PlaceOfBirthAndPriorRes!L9","v":562},0.74468398346213616,1.645,"Place of Birth - New Hampshire Native",null,"N",{"$f":"PlaceOfBirthAndPriorRes!I9/1.645","v":530.09118541033433},{"$f":"PlaceOfBirthAndPriorRes!M9/1.645","v":631.00303951367778},824.1125534326203,{"$f":"PlaceOfBirthAndPriorRes!H9-PlaceOfBirthAndPriorRes!L9","v":-78},9.4647265928800475E-2,1.645]
["Y",{"$f":"PlaceOfBirthAndPriorRes!E10/1.645","v":414.58966565349544},{"$f":"PlaceOfBirthAndPriorRes!M10/1.645","v":654.71124620060789},774.93961491733671,{"$f":"PlaceOfBirthAndPriorRes!D10-PlaceOfBirthAndPriorRes!L10","v":-2217},2.8608680693611062,1.645,"Place of Birth - Born in Different State",null,"Y",{"$f":"PlaceOfBirthAndPriorRes!I10/1.645","v":483.28267477203644},{"$f":"PlaceOfBirthAndPriorRes!M10/1.645","v":654.71124620060789},813.7622254911854,{"$f":"PlaceOfBirthAndPriorRes!H10-PlaceOfBirthAndPriorRes!L10","v":-1831},2.2500430010680477,1.645]
["Y",{"$f":"PlaceOfBirthAndPriorRes!E11/1.645","v":411.55015197568389},{"$f":"PlaceOfBirthAndPriorRes!M11/1.645","v":559.27051671732522},694.37528647012812,{"$f":"PlaceOfBirthAndPriorRes!D11-PlaceOfBirthAndPriorRes!L11","v":-1495},2.1530144132863152,1.645,"Place of Birth - Northeast",null,"N",{"$f":"PlaceOfBirthAndPriorRes!I11/1.645","v":460.790273556231},{"$f":"PlaceOfBirthAndPriorRes!M11/1.645","v":559.27051671732522},724.64555961745191,{"$f":"PlaceOfBirthAndPriorRes!H11-PlaceOfBirthAndPriorRes!L11","v":-1158},1.5980226258632158,1.645]
["N",{"$f":"PlaceOfBirthAndPriorRes!E12/1.645","v":139.81762917933131},{"$f":"PlaceOfBirthAndPriorRes!M12/1.645","v":146.50455927051672},202.5155680839805,{"$f":"PlaceOfBirthAndPriorRes!D12-PlaceOfBirthAndPriorRes!L12","v":260},1.2838519154842529,1.645,"Place of Birth - Midwest",null,"N",{"$f":"PlaceOfBirthAndPriorRes!I12/1.645","v":84.498480243161097},{"$f":"PlaceOfBirthAndPriorRes!M12/1.645","v":146.50455927051672},169.12592660633743,{"$f":"PlaceOfBirthAndPriorRes!H12-PlaceOfBirthAndPriorRes!L12","v":-227},1.3421951592813561,1.645]
["Y",{"$f":"PlaceOfBirthAndPriorRes!E13/1.645","v":150.75987841945289},{"$f":"PlaceOfBirthAndPriorRes!M13/1.645","v":265.04559270516717},304.92246088715996,{"$f":"PlaceOfBirthAndPriorRes!D13-PlaceOfBirthAndPriorRes!L13","v":-629},2.0628195055554421,1.645,"Place of Birth - South",null,"N",{"$f":"PlaceOfBirthAndPriorRes!I13/1.645","v":201.82370820668692},{"$f":"PlaceOfBirthAndPriorRes!M13/1.645","v":265.04559270516717},333.13957346243222,{"$f":"PlaceOfBirthAndPriorRes!H13-PlaceOfBirthAndPriorRes!L13","v":-262},0.78645715150843654,1.645]
["Y",{"$f":"PlaceOfBirthAndPriorRes!E14/1.645","v":138.60182370820669},{"$f":"PlaceOfBirthAndPriorRes!M14/1.645","v":161.09422492401217},212.51309333570259,{"$f":"PlaceOfBirthAndPriorRes!D14-PlaceOfBirthAndPriorRes!L14","v":-353},1.6610741223477139,1.645,"Place of Birth - West",null,"N",{"$f":"PlaceOfBirthAndPriorRes!I14/1.645","v":196.96048632218844},{"$f":"PlaceOfBirthAndPriorRes!M14/1.645","v":161.09422492401217},254.44996065266193,{"$f":"PlaceOfBirthAndPriorRes!H14-PlaceOfBirthAndPriorRes!L14","v":-184},0.72312842779791209,1.645]
["Y",{"$f":"PlaceOfBirthAndPriorRes!E15/1.645","v":58.966565349544069},{"$f":"PlaceOfBirthAndPriorRes!M15/1.645","v":137.99392097264439},150.06457961333339,{"$f":"PlaceOfBirthAndPriorRes!D15-PlaceOfBirthAndPriorRes!L15","v":-290},1.9325013320747224,1.645,"Place of Birth - Native Born Outside US",null,"N",{"$f":"PlaceOfBirthAndPriorRes!I15/1.645","v":105.16717325227964},{"$f":"PlaceOfBirthAndPriorRes!M15/1.645","v":137.99392097264439},173.50059525915015,{"$f":"PlaceOfBirthAndPriorRes!H15-PlaceOfBirthAndPriorRes!L15","v":-5},2.8818344931507131E-2,1.645]
["Y",{"$f":"PlaceOfBirthAndPriorRes!E16/1.645","v":88.753799392097264},{"$f":"PlaceOfBirthAndPriorRes!M16/1.645","v":207.29483282674772},225.49586387160613,{"$f":"PlaceOfBirthAndPriorRes!D16-PlaceOfBirthAndPriorRes!L16","v":-538},2.3858530740338941,1.645,"Place of Birth - Foreign Born",null,"N",{"$f":"PlaceOfBirthAndPriorRes!I16/1.645","v":137.38601823708206},{"$f":"PlaceOfBirthAndPriorRes!M16/1.645","v":207.29483282674772},248.68869239213336,{"$f":"PlaceOfBirthAndPriorRes!H16-PlaceOfBirthAndPriorRes!L16","v":-351},1.4114031346730544,1.645]
["N",{"$f":"PlaceOfBirthAndPriorRes!E17/1.645","v":76.59574468085107},{"$f":"PlaceOfBirthAndPriorRes!M17/1.645","v":163.52583586626139},180.57576553616929,{"$f":"PlaceOfBirthAndPriorRes!D17-PlaceOfBirthAndPriorRes!L17","v":-222},1.2294008519960196,1.645,"Place of Birth - Naturalized Citizen",null,"N",{"$f":"PlaceOfBirthAndPriorRes!I17/1.645","v":77.203647416413375},{"$f":"PlaceOfBirthAndPriorRes!M17/1.645","v":163.52583586626139},180.83446068202082,{"$f":"PlaceOfBirthAndPriorRes!H17-PlaceOfBirthAndPriorRes!L17","v":-264},1.4598987328207171,1.645]
["Y",{"$f":"PlaceOfBirthAndPriorRes!E18/1.645","v":54.711246200607903},{"$f":"PlaceOfBirthAndPriorRes!M18/1.645","v":167.78115501519756},176.47616394022532,{"$f":"PlaceOfBirthAndPriorRes!D18-PlaceOfBirthAndPriorRes!L18","v":-316},1.7906100911567477,1.645,"Place of Birth - Not a Citizen",null,"N",{"$f":"PlaceOfBirthAndPriorRes!I18/1.645","v":113.06990881458967},{"$f":"PlaceOfBirthAndPriorRes!M18/1.645","v":167.78115501519756},202.32478903380419,{"$f":"PlaceOfBirthAndPriorRes!H18-PlaceOfBirthAndPriorRes!L18","v":-87},0.4300016840025675,1.645]
["Y",{"$f":"PlaceOfBirthAndPriorRes!E43/1.645","v":63.829787234042556},{"$f":"PlaceOfBirthAndPriorRes!I43/1.645","v":75.98784194528875},99.239074269389107,{"$f":"PlaceOfBirthAndPriorRes!D43-PlaceOfBirthAndPriorRes!H43","v":-234},2.3579421888277197,1.645,"Place of Residence for Population Total:",null,"Y",{"$f":"PlaceOfBirthAndPriorRes!I43/1.645","v":75.98784194528875},{"$f":"PlaceOfBirthAndPriorRes!M43/1.645","v":58.358662613981764},{"$f":"SQRT((K37^2)+(L37^2))","v":95.811719667244972},{"$f":"PlaceOfBirthAndPriorRes!H43-PlaceOfBirthAndPriorRes!L43","v":-2341},24.433336632828588,1.645]
["N",{"$f":"PlaceOfBirthAndPriorRes!E44/1.645","v":522.18844984802433},{"$f":"PlaceOfBirthAndPriorRes!I44/1.645","v":477.81155015197567},707.80269469204245,{"$f":"PlaceOfBirthAndPriorRes!D44-PlaceOfBirthAndPriorRes!H44","v":-337},0.47612138598402082,1.645,"Place of Residence for Population  Same house ",null,"Y",{"$f":"PlaceOfBirthAndPriorRes!I8/1.645","v":139.209726443769},{"$f":"PlaceOfBirthAndPriorRes!M8/1.645","v":212.15805471124619},{"$f":"SQRT((K38^2)+(L38^2))","v":253.75261203662345},{"$f":"PlaceOfBirthAndPriorRes!H8-PlaceOfBirthAndPriorRes!L8","v":-1914},7.5427794994431716,1.645]
["N",{"$f":"PlaceOfBirthAndPriorRes!E45/1.645","v":588.35501257964791},{"$f":"PlaceOfBirthAndPriorRes!I45/1.645","v":468.67211446019473},752.20686762365278,{"$f":"PlaceOfBirthAndPriorRes!D45-PlaceOfBirthAndPriorRes!H45","v":103},0.13693041692825036,1.645,"Place of Residence for Population  Different house",null,"N",{"$f":"PlaceOfBirthAndPriorRes!I9/1.645","v":530.09118541033433},{"$f":"PlaceOfBirthAndPriorRes!M9/1.645","v":631.00303951367778},824.1125534326203,{"$f":"PlaceOfBirthAndPriorRes!H9-PlaceOfBirthAndPriorRes!L9","v":-78},9.4647265928800475E-2,1.645]
["N",{"$f":"PlaceOfBirthAndPriorRes!E46/1.645","v":461.09532692172149},{"$f":"PlaceOfBirthAndPriorRes!I46/1.645","v":427.94711905549946},629.0847615520114,{"$f":"PlaceOfBirthAndPriorRes!D46-PlaceOfBirthAndPriorRes!H46","v":157},0.24956891280066332,1.645,"Place of Residence for Population in New Hampshire",null,"Y",{"$f":"PlaceOfBirthAndPriorRes!I10/1.645","v":483.28267477203644},{"$f":"PlaceOfBirthAndPriorRes!M10/1.645","v":654.71124620060789},813.7622254911854,{"$f":"PlaceOfBirthAndPriorRes!H10-PlaceOfBirthAndPriorRes!L10","v":-1831},2.2500430010680477,1.645]
["N",{"$f":"PlaceOfBirthAndPriorRes!E47/1.645","v":404.8632218844985},{"$f":"PlaceOfBirthAndPriorRes!I47/1.645","v":411.55015197568389},577.3107967342246,{"$f":"PlaceOfBirthAndPriorRes!D47-PlaceOfBirthAndPriorRes!H47","v":-189},0.32737998504297772,1.645,"Place of Residence for Population Same county",null,"N",{"$f":"PlaceOfBirthAndPriorRes!I11/1.645","v":460.790273556231},{"$f":"PlaceOfBirthAndPriorRes!M11/1.645","v":559.27051671732522},724.64555961745191,{"$f":"PlaceOfBirthAndPriorRes!H11-PlaceOfBirthAndPriorRes!L11","v":-1158},1.5980226258632158,1.645]
["N",{"$f":"PlaceOfBirthAndPriorRes!E48/1.645","v":220.66869300911853},{"$f":"PlaceOfBirthAndPriorRes!I48/1.645","v":117.32522796352583},249.91974950180688,{"$f":"PlaceOfBirthAndPriorRes!D48-PlaceOfBirthAndPriorRes!H48","v":346},1.3844444094143047,1.645,"Place of Residence for Population Different county",null,"N",{"$f":"PlaceOfBirthAndPriorRes!I12/1.645","v":84.498480243161097},{"$f":"PlaceOfBirthAndPriorRes!M12/1.645","v":146.50455927051672},169.12592660633743,{"$f":"PlaceOfBirthAndPriorRes!H12-PlaceOfBirthAndPriorRes!L12","v":-227},1.3421951592813561,1.645]
["N",{"$f":"PlaceOfBirthAndPriorRes!E49/1.645","v":365.34954407294833},{"$f":"PlaceOfBirthAndPriorRes!I49/1.645","v":190.27355623100303},411.92756105303744,{"$f":"PlaceOfBirthAndPriorRes!D49-PlaceOfBirthAndPriorRes!H49","v":-35},8.4966395330594552E-2,1.645,"Place of Residence for Population in Different state",null,"N",{"$f":"PlaceOfBirthAndPriorRes!I13/1.645","v":201.82370820668692},{"$f":"PlaceOfBirthAndPriorRes!M13/1.645","v":265.04559270516717},333.13957346243222,{"$f":"PlaceOfBirthAndPriorRes!H13-PlaceOfBirthAndPriorRes!L13","v":-262},0.78645715150843654,1.645]
["N",{"$f":"PlaceOfBirthAndPriorRes!E50/1.645","v":8.5106382978723403},{"$f":"PlaceOfBirthAndPriorRes!I50/1.645","v":17.62917933130699},19.575978344200141,{"$f":"PlaceOfBirthAndPriorRes!D50-PlaceOfBirthAndPriorRes!H50","v":-19},0.97057728946810018,1.645,"Place of Residence for Population Elsewhere",null,"N",{"$f":"PlaceOfBirthAndPriorRes!I14/1.645","v":196.96048632218844},{"$f":"PlaceOfBirthAndPriorRes!M14/1.645","v":161.09422492401217},254.44996065266193,{"$f":"PlaceOfBirthAndPriorRes!H14-PlaceOfBirthAndPriorRes!L14","v":-184},0.72312842779791209,1.645]
["Y",{"$f":"SchoolEnrolEduAttain!G23/1.645","v":109.42249240121581},{"$f":"SchoolEnrolEduAttain!M23/1.645","v":99.088145896656528},{"$f":"SQRT((B45^2)+(C45^2))","v":147.62026453211368},{"$f":"SchoolEnrolEduAttain!F23-SchoolEnrolEduAttain!L23","v":-2723},18.4459769709167,1.645,"Total Population 3 years & over",null,"Y",{"$f":"SchoolEnrolEduAttain!J23/1.645","v":132.52279635258358},{"$f":"SchoolEnrolEduAttain!M23/1.645","v":99.088145896656528},{"$f":"SQRT((K45^2)+(L45^2))","v":165.47130328351631},{"$f":"SchoolEnrolEduAttain!I23-SchoolEnrolEduAttain!L23","v":-2646},15.990688098143393,1.645]
["Y",{"$f":"SchoolEnrolEduAttain!G24/1.645","v":276.59574468085106},{"$f":"SchoolEnrolEduAttain!M24/1.645","v":416.41337386018239},{"$f":"SQRT((B46^2)+(C46^2))","v":499.90529493612547},{"$f":"SchoolEnrolEduAttain!F24-SchoolEnrolEduAttain!L24","v":-1177},2.354445955909287,1.645,"Population 3 years & over enrolled in school",null,"Y",{"$f":"SchoolEnrolEduAttain!J24/1.645","v":316.10942249240122},{"$f":"SchoolEnrolEduAttain!M24/1.645","v":416.41337386018239},{"$f":"SQRT((K46^2)+(L46^2))","v":522.80518830449591},{"$f":"SchoolEnrolEduAttain!I24-SchoolEnrolEduAttain!L24","v":-1503},2.8748758306595308,1.645]
["Y",{"$f":"SchoolEnrolEduAttain!G25/1.645","v":93.776755527746943},{"$f":"SchoolEnrolEduAttain!M25/1.645","v":153.88946987913403},180.211122900313,{"$f":"SchoolEnrolEduAttain!F25-SchoolEnrolEduAttain!L25","v":-422},2.3416978553173813,1.645,"Preprimary (Nursery, Preschool, Kindergarten)",null,"Y",{"$f":"SchoolEnrolEduAttain!J25/1.645","v":105.78206314483262},{"$f":"SchoolEnrolEduAttain!M25/1.645","v":153.88946987913403},186.73996311143006,{"$f":"SchoolEnrolEduAttain!I25-SchoolEnrolEduAttain!L25","v":-502},2.6882301551085259,1.645]
["Y",{"$f":"SchoolEnrolEduAttain!G26/1.645","v":54.10334346504559},{"$f":"SchoolEnrolEduAttain!M26/1.645","v":16.413373860182372},56.538222607107215,{"$f":"SchoolEnrolEduAttain!F26-SchoolEnrolEduAttain!L26","v":165},2.9183796800017983,1.645,"Nursery school and Preschool",null,"Y",{"$f":"SchoolEnrolEduAttain!J26/1.645","v":83.890577507598778},{"$f":"SchoolEnrolEduAttain!M26/1.645","v":16.413373860182372},85.481154859024656,{"$f":"SchoolEnrolEduAttain!I26-SchoolEnrolEduAttain!L26","v":218},2.5502697098503777,1.645]
["Y",{"$f":"SchoolEnrolEduAttain!G27/1.645","v":76.59574468085107},{"$f":"SchoolEnrolEduAttain!M27/1.645","v":7.9027355623100304},77.002346279720101,{"$f":"SchoolEnrolEduAttain!F27-SchoolEnrolEduAttain!L27","v":336},4.3635034026033495,1.645,"Kindergarten",null,"Y",{"$f":"SchoolEnrolEduAttain!J27/1.645","v":64.437689969604861},{"$f":"SchoolEnrolEduAttain!M27/1.645","v":7.9027355623100304},64.920483038766079,{"$f":"SchoolEnrolEduAttain!I27-SchoolEnrolEduAttain!L27","v":203},3.1269021809154172,1.645]
["N",{"$f":"SchoolEnrolEduAttain!G28/1.645","v":269.05448185499893},{"$f":"SchoolEnrolEduAttain!M28/1.645","v":317.33512660847049},416.04314293817652,{"$f":"SchoolEnrolEduAttain!F28-SchoolEnrolEduAttain!L28","v":-167},0.40140067883492553,1.645,"Elementary through High school",null,"N",{"$f":"SchoolEnrolEduAttain!J28/1.645","v":277.34958564441058},{"$f":"SchoolEnrolEduAttain!M28/1.645","v":317.33512660847049},421.45506906043994,{"$f":"SchoolEnrolEduAttain!I28-SchoolEnrolEduAttain!L28","v":-634},1.5043121949236289,1.645]
["N",{"$f":"SchoolEnrolEduAttain!G29/1.645","v":208.86479975751732},{"$f":"SchoolEnrolEduAttain!M29/1.645","v":275.86797605900335},346.01682732583782,{"$f":"SchoolEnrolEduAttain!F29-SchoolEnrolEduAttain!L29","v":-197},0.56933647280248789,1.645,"Elementary school (grades 1-8)",null,"Y",{"$f":"SchoolEnrolEduAttain!J29/1.645","v":226.6311621343649},{"$f":"SchoolEnrolEduAttain!M29/1.645","v":275.86797605900335},357.02216158841406,{"$f":"SchoolEnrolEduAttain!I29-SchoolEnrolEduAttain!L29","v":-664},1.8598285244978132,1.645]
["N",{"$f":"SchoolEnrolEduAttain!G30/1.645","v":169.6048632218845},{"$f":"SchoolEnrolEduAttain!M30/1.645","v":156.838905775076},231.00703883916032,{"$f":"SchoolEnrolEduAttain!F30-SchoolEnrolEduAttain!L30","v":30},0.12986617269652823,1.645,"High school (grades 9-12)",null,"N",{"$f":"SchoolEnrolEduAttain!J30/1.645","v":159.87841945288753},{"$f":"SchoolEnrolEduAttain!M30/1.645","v":156.838905775076},223.96328130181655,{"$f":"SchoolEnrolEduAttain!I30-SchoolEnrolEduAttain!L30","v":30},0.13395052896894966,1.645]
["Y",{"$f":"SchoolEnrolEduAttain!G31/1.645","v":171.29702426563199},{"$f":"SchoolEnrolEduAttain!M31/1.645","v":201.7147323616332},264.63466094596492,{"$f":"SchoolEnrolEduAttain!F31-SchoolEnrolEduAttain!L31","v":-588},2.2219311631293159,1.645,"College or Graduate School",null,"N",{"$f":"SchoolEnrolEduAttain!J31/1.645","v":199.08420145051895},{"$f":"SchoolEnrolEduAttain!M31/1.645","v":201.7147323616332},283.4137479356217,{"$f":"SchoolEnrolEduAttain!I31-SchoolEnrolEduAttain!L31","v":-367},1.294926596445015,1.645]
["Y",{"$f":"SchoolEnrolEduAttain!G52/1.645","v":258.96656534954406},{"$f":"SchoolEnrolEduAttain!M52/1.645","v":370.21276595744678},{"$f":"SQRT((B54^2)+(C54^2))","v":451.79771363609501},{"$f":"SchoolEnrolEduAttain!I52-SchoolEnrolEduAttain!L52","v":-1276},2.8242728138898174,1.645,"Population 25 years and over",null,"Y",{"$f":"SchoolEnrolEduAttain!J52/1.645","v":265.04559270516717},{"$f":"SchoolEnrolEduAttain!M52/1.645","v":370.21276595744678},{"$f":"SQRT((K54^2)+(L54^2))","v":455.3094094023279},{"$f":"SchoolEnrolEduAttain!I52-SchoolEnrolEduAttain!L52","v":-1276},2.8024898533833729,1.645]
["N",{"$f":"SchoolEnrolEduAttain!G53/1.645","v":115.64540709587571},{"$f":"SchoolEnrolEduAttain!M53/1.645","v":154.04787884557271},{"$f":"SQRT((B55^2)+(C55^2))","v":192.62556725209421},{"$f":"SchoolEnrolEduAttain!I53-SchoolEnrolEduAttain!L53","v":-105},0.54509897880058522,1.645,"Less than 9th Grade",null,"N",{"$f":"SchoolEnrolEduAttain!J53/1.645","v":113.16301686631617},{"$f":"SchoolEnrolEduAttain!M53/1.645","v":154.04787884557271},{"$f":"SQRT((K55^2)+(L55^2))","v":191.14553974159691},{"$f":"SchoolEnrolEduAttain!I53-SchoolEnrolEduAttain!L53","v":-105},0.54931964482114459,1.645]
["Y",{"$f":"SchoolEnrolEduAttain!G54/1.645","v":166.79703452862455},{"$f":"SchoolEnrolEduAttain!M54/1.645","v":139.35034906506274},217.34711986152013,{"$f":"SchoolEnrolEduAttain!I54-SchoolEnrolEduAttain!L54","v":702},3.2298564639240221,1.645,"9th to 12th Grade, no Diploma",null,"Y",{"$f":"SchoolEnrolEduAttain!J54/1.645","v":193.45352470489686},{"$f":"SchoolEnrolEduAttain!M54/1.645","v":139.35034906506274},238.41725190368035,{"$f":"SchoolEnrolEduAttain!I54-SchoolEnrolEduAttain!L54","v":702},2.9444177986063074,1.645]
["N",{"$f":"SchoolEnrolEduAttain!G55/1.645","v":273.38596524902385},{"$f":"SchoolEnrolEduAttain!M55/1.645","v":419.10606338945325},500.38962655609168,{"$f":"SchoolEnrolEduAttain!I55-SchoolEnrolEduAttain!L55","v":-170},0.33973526024113865,1.645,"High School Graduate ",null,"N",{"$f":"SchoolEnrolEduAttain!J55/1.645","v":310.92902722306582},{"$f":"SchoolEnrolEduAttain!M55/1.645","v":419.10606338945325},521.84935789908411,{"$f":"SchoolEnrolEduAttain!I55-SchoolEnrolEduAttain!L55","v":-170},0.32576450929134765,1.645]
["N",{"$f":"SchoolEnrolEduAttain!G56/1.645","v":248.37197756633893},{"$f":"SchoolEnrolEduAttain!M56/1.645","v":345.14209822723666},425.21959880620915,{"$f":"SchoolEnrolEduAttain!I56-SchoolEnrolEduAttain!L56","v":-1},2.3517260324017733E-3,1.645,"Some College, No Degree",null,"N",{"$f":"SchoolEnrolEduAttain!J56/1.645","v":307.22793219188173},{"$f":"SchoolEnrolEduAttain!M56/1.645","v":345.14209822723666},462.07366326982861,{"$f":"SchoolEnrolEduAttain!I56-SchoolEnrolEduAttain!L56","v":-1},2.1641571019728263E-3,1.645]
["Y",{"$f":"SchoolEnrolEduAttain!G57/1.645","v":171.31428210757846},{"$f":"SchoolEnrolEduAttain!M57/1.645","v":262.18373514147817},313.19146576299255,{"$f":"SchoolEnrolEduAttain!I57-SchoolEnrolEduAttain!L57","v":-789},2.5192257332997547,1.645,"Associate Degree",null,"Y",{"$f":"SchoolEnrolEduAttain!J57/1.645","v":191.28855201506497},{"$f":"SchoolEnrolEduAttain!M57/1.645","v":262.18373514147817},324.54833400397695,{"$f":"SchoolEnrolEduAttain!I57-SchoolEnrolEduAttain!L57","v":-789},2.4310708678305271,1.645]
["N",{"$f":"SchoolEnrolEduAttain!G58/1.645","v":196.54821951422269},{"$f":"SchoolEnrolEduAttain!M58/1.645","v":288.51373799597047},349.10081582061446,{"$f":"SchoolEnrolEduAttain!I58-SchoolEnrolEduAttain!L58","v":-539},1.5439666009745601,1.645,"Bachelor's Degree",null,"N",{"$f":"SchoolEnrolEduAttain!J58/1.645","v":224.6198551397276},{"$f":"SchoolEnrolEduAttain!M58/1.645","v":288.51373799597047},365.64225184652787,{"$f":"SchoolEnrolEduAttain!I58-SchoolEnrolEduAttain!L58","v":-539},1.4741184785893839,1.645]
["N",{"$f":"SchoolEnrolEduAttain!G59/1.645","v":87.525328364381579},{"$f":"SchoolEnrolEduAttain!M59/1.645","v":171.08331440135095},192.17227576277571,{"$f":"SchoolEnrolEduAttain!I59-SchoolEnrolEduAttain!L59","v":-290},1.5090626306470258,1.645,"Graduate or Professional Degree",null,"N",{"$f":"SchoolEnrolEduAttain!J59/1.645","v":138.26279658071854},{"$f":"SchoolEnrolEduAttain!M59/1.645","v":171.08331440135095},219.96840997032427,{"$f":"SchoolEnrolEduAttain!I59-SchoolEnrolEduAttain!L59","v":-290},1.3183711244679344,1.645]
["N",{"$f":"HousingCharacteristics!D32/1.645","v":204.86322188449847},{"$f":"HousingCharacteristics!J32/1.645","v":293.00911854103344},357.52382190434616,{"$f":"HousingCharacteristics!C32-HousingCharacteristics!I32","v":-189},0.52863610316452159,1.645,"Total Housing Units",null,"N",{"$f":"HousingCharacteristics!G32/1.645","v":204.86322188449847},{"$f":"HousingCharacteristics!J32/1.645","v":293.00911854103344},{"$f":"SQRT((K62^2)+(L62^2))","v":357.52382190434616},{"$f":"HousingCharacteristics!F32-HousingCharacteristics!I32","v":-531},{"$f":"ABS((N62/M62))","v":1.4852157184146084},1.645]
["Y",{"$f":"HousingCharacteristics!D33/1.645","v":214.58966565349544},{"$f":"HousingCharacteristics!J33/1.645","v":314.89361702127661},381.05998825122191,{"$f":"HousingCharacteristics!C33-HousingCharacteristics!I33","v":-709},1.8605994380406496,1.645,"Occupied Units",null,"Y",{"$f":"HousingCharacteristics!G33/1.645","v":214.58966565349544},{"$f":"HousingCharacteristics!J33/1.645","v":314.89361702127661},{"$f":"SQRT((K63^2)+(L63^2))","v":381.05998825122191},{"$f":"HousingCharacteristics!F33-HousingCharacteristics!I33","v":-634},{"$f":"ABS((N63/M63))","v":1.6637800334524284},1.645]
["N",{"$f":"HousingCharacteristics!D34/1.645","v":240.12158054711247},{"$f":"HousingCharacteristics!J34/1.645","v":350.75987841945289},425.07748205859218,{"$f":"HousingCharacteristics!C34-HousingCharacteristics!I34","v":63},0.14820827415957111,1.645,"Owner Occupied",null,"N",{"$f":"HousingCharacteristics!G34/1.645","v":240.12158054711247},{"$f":"HousingCharacteristics!J34/1.645","v":350.75987841945289},425.07748205859218,{"$f":"HousingCharacteristics!F34-HousingCharacteristics!I34","v":-487},1.1456734843763672,1.645]
["Y",{"$f":"HousingCharacteristics!D35/1.645","v":234.04255319148936},{"$f":"HousingCharacteristics!J35/1.645","v":315.50151975683889},392.83218512905245,{"$f":"HousingCharacteristics!C35-HousingCharacteristics!I35","v":-772},1.9652157568158122,1.645,"Renter Occupied",null,"N",{"$f":"HousingCharacteristics!G35/1.645","v":234.04255319148936},{"$f":"HousingCharacteristics!J35/1.645","v":315.50151975683889},392.83218512905245,{"$f":"HousingCharacteristics!F35-HousingCharacteristics!I35","v":-147},0.37420559099990203,1.645]
["Y",{"$f":"HousingCharacteristics!D36/1.645","v":150.75987841945289},{"$f":"HousingCharacteristics!J36/1.645","v":137.38601823708206},203.96925981159038,{"$f":"HousingCharacteristics!C36-HousingCharacteristics!I36","v":520},2.5494037703540826,1.645,"Vacant Units",null,"N",{"$f":"HousingCharacteristics!G36/1.645","v":150.75987841945289},{"$f":"HousingCharacteristics!J36/1.645","v":137.38601823708206},203.96925981159038,{"$f":"HousingCharacteristics!F36-HousingCharacteristics!I36","v":103},0.50497805451244338,1.645]
["N",{"$f":"HousingCharacteristics!D37/1.645","v":80.851063829787236},{"$f":"HousingCharacteristics!J37/1.645","v":80.243161094224916},113.91162989265872,{"$f":"HousingCharacteristics!C37-HousingCharacteristics!I37","v":42},0.36870686548491549,1.645,"Vacant For Sale",null,"N",{"$f":"HousingCharacteristics!G37/1.645","v":80.851063829787236},{"$f":"HousingCharacteristics!J37/1.645","v":80.243161094224916},113.91162989265872,{"$f":"HousingCharacteristics!F37-HousingCharacteristics!I37","v":50},0.4389367446248994,1.645]
[{"$f":"IF(F68>G68,\"Y\",\"N\")","v":"N"},{"$f":"HousingCharacteristics!D38/1.645","v":88.753799392097264},{"$f":"HousingCharacteristics!J38/1.645","v":96.048632218844986},130.77682003185271,{"$f":"HousingCharacteristics!C38-HousingCharacteristics!I38","v":-12},{"$f":"ABS((E68/D68))","v":9.1759380577362368E-2},1.645,"Vacant For Rent",null,"N",{"$f":"HousingCharacteristics!G38/1.645","v":88.753799392097264},{"$f":"HousingCharacteristics!J38/1.645","v":96.048632218844986},130.77682003185271,{"$f":"HousingCharacteristics!F38-HousingCharacteristics!I38","v":-6},4.5879690288681184E-2,1.645]
["Y",{"$f":"HousingCharacteristics!D39/1.645","v":14.589665653495441},{"$f":"HousingCharacteristics!J39/1.645","v":44.984802431610944},47.291550975748876,{"$f":"HousingCharacteristics!C39-HousingCharacteristics!I39","v":160},3.3832681884772198,1.645,"Vacant Seasonal",null,{"$f":"IF(O69>P69,\"Y\",\"N\")","v":"N"},{"$f":"HousingCharacteristics!G39/1.645","v":14.589665653495441},{"$f":"HousingCharacteristics!J39/1.645","v":44.984802431610944},47.291550975748876,{"$f":"HousingCharacteristics!F39-HousingCharacteristics!I39","v":-62},1.3110164230349226,1.645]
["N",{"$f":"HousingCharacteristics!E71/1.645","v":278.419452887538},{"$f":"HousingCharacteristics!K71/1.645","v":293.00911854103344},404.19269574596393,{"$f":"HousingCharacteristics!D71-HousingCharacteristics!J71","v":-189},0.46759875175672877,1.645,"Total Housing Units",null,"N",{"$f":"HousingCharacteristics!H71/1.645","v":204.86322188449847},{"$f":"HousingCharacteristics!K71/1.645","v":293.00911854103344},357.52382190434616,{"$f":"HousingCharacteristics!G71-HousingCharacteristics!J71","v":-531},1.4852157184146084,1.645]
["N",{"$f":"HousingCharacteristics!E72/1.645","v":269.30091185410333},{"$f":"HousingCharacteristics!K72/1.645","v":276.59574468085106},386.04169088455473,{"$f":"HousingCharacteristics!D72-HousingCharacteristics!J72","v":-49},0.12692929586885834,1.645,"Single Family Units",null,"N",{"$f":"HousingCharacteristics!H72/1.645","v":226.13981762917933},{"$f":"HousingCharacteristics!K72/1.645","v":276.59574468085106},357.27359697144294,{"$f":"HousingCharacteristics!G72-HousingCharacteristics!J72","v":-321},0.8984710953204238,1.645]
["N",{"$f":"HousingCharacteristics!E73/1.645","v":228.57142857142856},{"$f":"HousingCharacteristics!K73/1.645","v":286.93009118541033},366.84298437731036,{"$f":"HousingCharacteristics!D73-HousingCharacteristics!J73","v":-378},1.0304135995448513,1.645,"SF Owner Occ.",null,"N",{"$f":"HousingCharacteristics!H73/1.645","v":227.35562310030394},{"$f":"HousingCharacteristics!K73/1.645","v":286.93009118541033},366.08667905701697,{"$f":"HousingCharacteristics!G73-HousingCharacteristics!J73","v":-381},1.0407371308385147,1.645]
["N",{"$f":"HousingCharacteristics!E74/1.645","v":117.32522796352583},{"$f":"HousingCharacteristics!K74/1.645","v":102.12765957446808},155.54828178688359,{"$f":"HousingCharacteristics!D74-HousingCharacteristics!J74","v":55},0.3535879623238487,1.645,"SF Renter Occ.",null,"N",{"$f":"HousingCharacteristics!H74/1.645","v":94.832826747720361},{"$f":"HousingCharacteristics!K74/1.645","v":102.12765957446808},139.36758546778941,{"$f":"HousingCharacteristics!G74-HousingCharacteristics!J74","v":8},5.7402156844060109E-2,1.645]
["N",{"$f":"HousingCharacteristics!E75/1.645","v":293.32488125265019},{"$f":"HousingCharacteristics!K75/1.645","v":392.33846637349075},489.86626558499012,{"$f":"HousingCharacteristics!D75-HousingCharacteristics!J75","v":-353},0.72060483605347536,1.645,"Multi-family Units",null,"N",{"$f":"HousingCharacteristics!H75/1.645","v":340.00571160744397},{"$f":"HousingCharacteristics!K75/1.645","v":392.33846637349075},519.16601980675421,{"$f":"HousingCharacteristics!G75-HousingCharacteristics!J75","v":-17},3.2744824105259814E-2,1.645]
["N",{"$f":"HousingCharacteristics!E76/1.645","v":123.18995572139559},{"$f":"HousingCharacteristics!K76/1.645","v":116.03938115630893},169.23623480147077,{"$f":"HousingCharacteristics!D76-HousingCharacteristics!J76","v":154},0.9099706110848883,1.645,"MF Owner Occ.",null,"N",{"$f":"HousingCharacteristics!H76/1.645","v":101.8976277530474},{"$f":"HousingCharacteristics!K76/1.645","v":116.03938115630893},154.42883319133691,{"$f":"HousingCharacteristics!G76-HousingCharacteristics!J76","v":-45},0.29139636083531839,1.645]
["Y",{"$f":"HousingCharacteristics!E77/1.645","v":245.99413459329247},{"$f":"HousingCharacteristics!K77/1.645","v":362.7911372947504},438.32695964761433,{"$f":"HousingCharacteristics!D77-HousingCharacteristics!J77","v":-746},1.7019258879256123,1.645,"MF Renter Occ.",null,"N",{"$f":"HousingCharacteristics!H77/1.645","v":312.59680367962221},{"$f":"HousingCharacteristics!K77/1.645","v":362.7911372947504},478.88847445969583,{"$f":"HousingCharacteristics!G77-HousingCharacteristics!J77","v":-74},0.15452449567405069,1.645]
["N",{"$f":"HousingCharacteristics!E78/1.645","v":185.24283629563305},{"$f":"HousingCharacteristics!K78/1.645","v":181.79137937804236},259.54385759447672,{"$f":"HousingCharacteristics!D78-HousingCharacteristics!J78","v":213},0.82067054860840138,1.645,"Mobile Home & Other",null,"N",{"$f":"HousingCharacteristics!H78/1.645","v":170.2312191473554},{"$f":"HousingCharacteristics!K78/1.645","v":181.79137937804236},249.0517488165186,{"$f":"HousingCharacteristics!G78-HousingCharacteristics!J78","v":-193},0.77493934861781255,1.645]
["N",{"$f":"HousingCharacteristics!$D88/1.645","v":101.51975683890578},{"$f":"HousingCharacteristics!L88/1.645","v":97.872340425531917},141.01509156470368,{"$f":"HousingCharacteristics!$D88-HousingCharacteristics!$K88","v":-130},0.92188714383347048,1.645,"No Bedrooms",null,"N",{"$f":"HousingCharacteristics!H88/1.645","v":99.696048632218847},{"$f":"HousingCharacteristics!L88/1.645","v":97.872340425531917},139.70789932301236,{"$f":"HousingCharacteristics!G88-HousingCharacteristics!K88","v":-32},0.22904932473441775,1.645]
["Y",{"$f":"HousingCharacteristics!$D89/1.645","v":134.34650455927053},{"$f":"HousingCharacteristics!L89/1.645","v":249.24012158054711},283.14240497103219,{"$f":"HousingCharacteristics!$D89-HousingCharacteristics!$K89","v":-1444},5.0999072362464855,1.645,"1 Bedroom",null,"N",{"$f":"HousingCharacteristics!H89/1.645","v":158.05471124620061},{"$f":"HousingCharacteristics!L89/1.645","v":249.24012158054711},295.13036094682934,{"$f":"HousingCharacteristics!G89-HousingCharacteristics!K89","v":-350},1.1859166196156143,1.645]
["Y",{"$f":"HousingCharacteristics!$D90/1.645","v":268.08510638297872},{"$f":"HousingCharacteristics!L90/1.645","v":285.10638297872339},391.35057669509513,{"$f":"HousingCharacteristics!$D90-HousingCharacteristics!$K90","v":-4456},11.386210383616506,1.645,"2 Bedrooms",null,"Y",{"$f":"HousingCharacteristics!H90/1.645","v":232.82674772036475},{"$f":"HousingCharacteristics!L90/1.645","v":285.10638297872339},368.09502043528499,{"$f":"HousingCharacteristics!G90-HousingCharacteristics!K90","v":680},1.8473490871891629,1.645]
["Y",{"$f":"HousingCharacteristics!$D91/1.645","v":288.75379939209728},{"$f":"HousingCharacteristics!L91/1.645","v":310.63829787234044},424.11662166012366,{"$f":"HousingCharacteristics!$D91-HousingCharacteristics!$K91","v":-4895},11.541636781033141,1.645,"3 Bedrooms",null,"N",{"$f":"HousingCharacteristics!H91/1.645","v":230.3951367781155},{"$f":"HousingCharacteristics!L91/1.645","v":310.63829787234044},386.7532432391892,{"$f":"HousingCharacteristics!G91-HousingCharacteristics!K91","v":-459},1.186803234423375,1.645]
["Y",{"$f":"HousingCharacteristics!$D92/1.645","v":167.83620963614783},{"$f":"HousingCharacteristics!L92/1.645","v":193.56619699106773},256.19692793359917,{"$f":"HousingCharacteristics!$D92-HousingCharacteristics!$K92","v":-1686.9094351485369},6.5844249138918176,1.645,"4+ Bedrooms",null,"Y",{"$f":"HousingCharacteristics!H92/1.645","v":160.48632218844983},{"$f":"HousingCharacteristics!L92/1.645","v":193.56619699106773},251.44329823473078,{"$f":"HousingCharacteristics!G92-HousingCharacteristics!K92","v":-593},2.3583845907335124,1.645]
["N",{"$f":"'HHIncome-10YearComparison'!$F$30/1.645","v":91.79331306990882},{"$f":"'HHIncome-10YearComparison'!$M$30/1.645","v":105.16717325227964},{"$f":"SQRT((B83^2)+(C83^2))","v":139.59278868990796},{"$f":"'HHIncome-10YearComparison'!$E$30-'HHIncome-10YearComparison'!$L$30","v":122},0.87397064808993352,1.645,"Household Income Less than $10,000",null,"N",{"$f":"'HHIncome-10YearComparison'!$F$30/1.645","v":91.79331306990882},{"$f":"'HHIncome-10YearComparison'!$J$30/1.645","v":141.64133738601822},{"$f":"SQRT((K83^2)+(L83^2))","v":168.78471726092423},{"$f":"'HHIncome-10YearComparison'!$E$30-'HHIncome-10YearComparison'!$I$30","v":-150},0.8887060536891801,1.645]
["N",{"$f":"'HHIncome-10YearComparison'!$F$31/1.645","v":91.79331306990882},{"$f":"'HHIncome-10YearComparison'!$M$31/1.645","v":173.25227963525836},{"$f":"SQRT((B84^2)+(C84^2))","v":196.06724541127224},{"$f":"'HHIncome-10YearComparison'!$E$31-'HHIncome-10YearComparison'!$L$31","v":-72},0.36722094936853028,1.645,"Household Income $10,000 to $14,999",null,"N",{"$f":"'HHIncome-10YearComparison'!$F$31/1.645","v":91.79331306990882},{"$f":"'HHIncome-10YearComparison'!$J$31/1.645","v":106.99088145896657},{"$f":"SQRT((K84^2)+(L84^2))","v":140.97184484753305},{"$f":"'HHIncome-10YearComparison'!$E$31-'HHIncome-10YearComparison'!$I$31","v":110},0.78029765531528372,1.645]
["N",{"$f":"'HHIncome-10YearComparison'!$F$32/1.645","v":153.0297790766403},{"$f":"'HHIncome-10YearComparison'!$M$32/1.645","v":142.43616430224901},209.06021664913345,{"$f":"'HHIncome-10YearComparison'!$E$32-'HHIncome-10YearComparison'!$L$32","v":43},0.20568236601498918,1.645,"Household Income $15,000 to $24,999",null,"N",{"$f":"'HHIncome-10YearComparison'!$F$32/1.645","v":153.0297790766403},{"$f":"'HHIncome-10YearComparison'!$J$32/1.645","v":176.41542672446434},233.53911036616583,{"$f":"'HHIncome-10YearComparison'!$E$32-'HHIncome-10YearComparison'!$I$32","v":-296},1.2674536592003873,1.645]
["N",{"$f":"'HHIncome-10YearComparison'!$F$33/1.645","v":162.91906727364616},{"$f":"'HHIncome-10YearComparison'!$M$33/1.645","v":191.00338777081546},251.04763815109541,{"$f":"'HHIncome-10YearComparison'!$E$33-'HHIncome-10YearComparison'!$L$33","v":190},0.75682847048195168,1.645,"Household Income $25,000 to $34,999",null,"N",{"$f":"'HHIncome-10YearComparison'!$F$33/1.645","v":162.91906727364616},{"$f":"'HHIncome-10YearComparison'!$J$33/1.645","v":148.88777825579146},220.70385813406293,{"$f":"'HHIncome-10YearComparison'!$E$33-'HHIncome-10YearComparison'!$I$33","v":24},0.10874300160816217,1.645]
["Y",{"$f":"'HHIncome-10YearComparison'!$F$34/1.645","v":207.26630756859723},{"$f":"'HHIncome-10YearComparison'!$M$34/1.645","v":197.44115613212915},286.2557115376253,{"$f":"'HHIncome-10YearComparison'!$E$34-'HHIncome-10YearComparison'!$L$34","v":956},3.3396713549044552,1.645,"Household Income $35,000 to $49,999",null,"N",{"$f":"'HHIncome-10YearComparison'!$F$34/1.645","v":207.26630756859723},{"$f":"'HHIncome-10YearComparison'!$J$34/1.645","v":212.14411952039978},296.58801341289234,{"$f":"'HHIncome-10YearComparison'!$E$34-'HHIncome-10YearComparison'!$I$34","v":293},0.98790236540039356,1.645]
["N",{"$f":"'HHIncome-10YearComparison'!$F$35/1.645","v":207.58966100279071},{"$f":"'HHIncome-10YearComparison'!$M$35/1.645","v":192.44418675321211},283.06930665538209,{"$f":"'HHIncome-10YearComparison'!$E$35-'HHIncome-10YearComparison'!$L$35","v":409},1.4448758321153132,1.645,"Household Income $50,000 to $74,999",null,"N",{"$f":"'HHIncome-10YearComparison'!$F$35/1.645","v":207.58966100279071},{"$f":"'HHIncome-10YearComparison'!$J$35/1.645","v":190.80206662104166},281.9554858166693,{"$f":"'HHIncome-10YearComparison'!$E$35-'HHIncome-10YearComparison'!$I$35","v":351},1.2448773570882896,1.645]
["N",{"$f":"'HHIncome-10YearComparison'!$F$36/1.645","v":139.81762917933131},{"$f":"'HHIncome-10YearComparison'!$M$36/1.645","v":220.06079027355622},260.72153889763518,{"$f":"'HHIncome-10YearComparison'!$E$36-'HHIncome-10YearComparison'!$L$36","v":-393},1.5073553250017451,1.645,"Household Income $75,000 to $99,999",null,"Y",{"$f":"'HHIncome-10YearComparison'!$F$36/1.645","v":139.81762917933131},{"$f":"'HHIncome-10YearComparison'!$J$36/1.645","v":224.92401215805472},264.83916000962876,{"$f":"'HHIncome-10YearComparison'!$E$36-'HHIncome-10YearComparison'!$I$36","v":-687},2.5940272578081833,1.645]
["Y",{"$f":"'HHIncome-10YearComparison'!$F$37/1.645","v":133.83942041297612},{"$f":"'HHIncome-10YearComparison'!$M$37/1.645","v":216.30149766967315},254.36062657303114,{"$f":"'HHIncome-10YearComparison'!$E$37-'HHIncome-10YearComparison'!$L$37","v":-1067},4.1948316230210523,1.645,"Household Income $100,000 to $149,999",null,"N",{"$f":"'HHIncome-10YearComparison'!$F$37/1.645","v":133.83942041297612},{"$f":"'HHIncome-10YearComparison'!$J$37/1.645","v":189.49509126114418},231.99435352730188,{"$f":"'HHIncome-10YearComparison'!$E$37-'HHIncome-10YearComparison'!$I$37","v":-78},0.33621507943649453,1.645]
["Y",{"$f":"'HHIncome-10YearComparison'!$F$38/1.645","v":93.00911854103343},{"$f":"'HHIncome-10YearComparison'!$M$38/1.645","v":175.07598784194528},198.24807098837803,{"$f":"'HHIncome-10YearComparison'!$E$38-'HHIncome-10YearComparison'!$L$38","v":-670},3.3796041326388373,1.645,"Household Income $150,000 to $199,999",null,"N",{"$f":"'HHIncome-10YearComparison'!$F$38/1.645","v":93.00911854103343},{"$f":"'HHIncome-10YearComparison'!$J$38/1.645","v":86.930091185410333},127.30882485233992,{"$f":"'HHIncome-10YearComparison'!$E$38-'HHIncome-10YearComparison'!$I$38","v":-26},0.20422779041559994,1.645]
["Y",{"$f":"'HHIncome-10YearComparison'!$F$39/1.645","v":60.790273556231},{"$f":"'HHIncome-10YearComparison'!$M$39/1.645","v":130.69908814589667},144.14475016874621,{"$f":"'HHIncome-10YearComparison'!$E$39-'HHIncome-10YearComparison'!$L$39","v":-703},4.877041995473423,1.645,"Household Income Greater than $200,000",null,"N",{"$f":"'HHIncome-10YearComparison'!$F$39/1.645","v":60.790273556231},{"$f":"'HHIncome-10YearComparison'!$J$39/1.645","v":55.319148936170215},82.192856125478329,{"$f":"'HHIncome-10YearComparison'!$E$39-'HHIncome-10YearComparison'!$I$39","v":-21},0.25549665737300459,1.645]
[{"$error":"#REF!"},{"$f":"'HHIncome-10YearComparison'!#REF!/1.645","v":{"$error":"#REF!"}},{"$f":"'HHIncome-10YearComparison'!$M$41/1.645","v":3100.3039513677813},{"$error":"#REF!"},{"$f":"'HHIncome-10YearComparison'!$E$41-'HHIncome-10YearComparison'!$I$41","v":-6401},{"$error":"#REF!"},1.645,"Median Household Income",null,{"$error":"#REF!"},{"$f":"'HHIncome-10YearComparison'!#REF!/1.645","v":{"$error":"#REF!"}},{"$f":"'HHIncome-10YearComparison'!$J$41/1.645","v":3819.4528875379938},{"$error":"#REF!"},{"$f":"'HHIncome-10YearComparison'!$E$41-'HHIncome-10YearComparison'!$I$41","v":-6401},{"$error":"#REF!"},1.645]
["N",{"$f":"PovertyCharacteristics!$E$54/1.645","v":158.66261398176292},{"$f":"PovertyCharacteristics!$M54/1.645","v":206.07902735562311},260.08150759207308,{"$f":"PovertyCharacteristics!$D54-PovertyCharacteristics!$L54","v":6},2.3069690942466959E-2,1.645,"Total Households Below Poverty Level",null,"N",{"$f":"PovertyCharacteristics!$I$54/1.645","v":207.29483282674772},{"$f":"PovertyCharacteristics!$M54/1.645","v":206.07902735562311},292.30072396849954,{"$f":"PovertyCharacteristics!$H54-PovertyCharacteristics!$L54","v":88},0.301059808560322,1.645]
["Y",{"$f":"PovertyCharacteristics!$E$55/1.645","v":117.32522796352583},{"$f":"PovertyCharacteristics!$M55/1.645","v":111.24620060790274},161.68155821362882,{"$f":"PovertyCharacteristics!$D55-PovertyCharacteristics!$L55","v":305},1.8864241745926609,1.645,"Family Households Below Poverty Level",null,"N",{"$f":"PovertyCharacteristics!$I$55/1.645","v":119.75683890577507},{"$f":"PovertyCharacteristics!$M55/1.645","v":111.24620060790274},163.45463472902046,{"$f":"PovertyCharacteristics!$H55-PovertyCharacteristics!$L55","v":163},0.99721858771533667,1.645]
["N",{"$f":"PovertyCharacteristics!$E$56/1.645","v":56.534954407294833},{"$f":"PovertyCharacteristics!$M56/1.645","v":67.477203647416417},88.030529260648052,{"$f":"PovertyCharacteristics!$D56-PovertyCharacteristics!$L56","v":-16},0.18175512670866581,1.645,"Married Couple Fam HH Below Poverty Level",null,"N",{"$f":"PovertyCharacteristics!$I$56/1.645","v":80.851063829787236},{"$f":"PovertyCharacteristics!$M56/1.645","v":67.477203647416417},105.30938958366076,{"$f":"PovertyCharacteristics!$H56-PovertyCharacteristics!$L56","v":15},0.1424374413269538,1.645]
["Y",{"$f":"PovertyCharacteristics!$E$57/1.645","v":0},{"$f":"PovertyCharacteristics!$M57/1.645","v":63.221884498480243},63.221884498480243,{"$f":"PovertyCharacteristics!$D57-PovertyCharacteristics!$L57","v":-140},2.2144230769230768,1.645,"M C Fam HH w/Children Below Poverty Level",null,"N",{"$f":"PovertyCharacteristics!$I$57/1.645","v":74.164133738601819},{"$f":"PovertyCharacteristics!$M57/1.645","v":63.221884498480243},97.454222139096629,{"$f":"PovertyCharacteristics!$H57-PovertyCharacteristics!$L57","v":7},7.1828596507690398E-2,1.645]
["N",{"$f":"PovertyCharacteristics!$E$58/1.645","v":52.887537993920972},{"$f":"PovertyCharacteristics!$M58/1.645","v":46.808510638297875},70.626682940897624,{"$f":"PovertyCharacteristics!$D58-PovertyCharacteristics!$L58","v":-30},0.42476863914315266,1.645,"Male Head of Family HH  Below Poverty Level",null,"N",{"$f":"PovertyCharacteristics!$I$58/1.645","v":57.750759878419451},{"$f":"PovertyCharacteristics!$M58/1.645","v":46.808510638297875},74.338327494708324,{"$f":"PovertyCharacteristics!$H58-PovertyCharacteristics!$L58","v":24},0.32284826426460034,1.645]
["Y",{"$f":"PovertyCharacteristics!$E$59/1.645","v":117.32522796352583},{"$f":"PovertyCharacteristics!$M59/1.645","v":43.161094224924014},125.01235607485395,{"$f":"PovertyCharacteristics!$D59-PovertyCharacteristics!$L59","v":745},5.9594109205806385,1.645,"Male Head of HH w/Children Below Poverty Level",null,"N",{"$f":"PovertyCharacteristics!$I$59/1.645","v":57.750759878419451},{"$f":"PovertyCharacteristics!$M59/1.645","v":43.161094224924014},72.097366950725956,{"$f":"PovertyCharacteristics!$H59-PovertyCharacteristics!$L59","v":52},0.72124686655393044,1.645]
["Y",{"$f":"PovertyCharacteristics!$E$60/1.645","v":111.85410334346504},{"$f":"PovertyCharacteristics!$M60/1.645","v":68.693009118541028},131.26336098291296,{"$f":"PovertyCharacteristics!$D60-PovertyCharacteristics!$L60","v":351},2.6740135051523706,1.645,"Female Head of Family HH  Below Poverty Level",null,"N",{"$f":"PovertyCharacteristics!$I$60/1.645","v":69.908814589665653},{"$f":"PovertyCharacteristics!$M60/1.645","v":68.693009118541028},98.010059989228708,{"$f":"PovertyCharacteristics!$H60-PovertyCharacteristics!$L60","v":124},1.2651762483731526,1.645]
["N",{"$f":"PovertyCharacteristics!$E$61/1.645","v":51.671732522796354},{"$f":"PovertyCharacteristics!$M61/1.645","v":65.653495440729486},83.548485357266046,{"$f":"PovertyCharacteristics!$D61-PovertyCharacteristics!$L61","v":-38},0.45482571990989679,1.645,"Female Head of HH w/Children Below Poverty Level",null,"N",{"$f":"PovertyCharacteristics!$I$61/1.645","v":72.340425531914889},{"$f":"PovertyCharacteristics!$M61/1.645","v":65.653495440729486},97.690934224852256,{"$f":"PovertyCharacteristics!$H61-PovertyCharacteristics!$L61","v":103},1.0543455318272219,1.645]
["N",{"$f":"PovertyCharacteristics!$E$62/1.645","v":124.01215805471125},{"$f":"PovertyCharacteristics!$M62/1.645","v":190.88145896656536},227.62852791904459,{"$f":"PovertyCharacteristics!$D62-PovertyCharacteristics!$L62","v":-299},1.3135436174605428,1.645,"Non-Family HH  Below Poverty Level",null,"N",{"$f":"PovertyCharacteristics!$I$62/1.645","v":167.78115501519756},{"$f":"PovertyCharacteristics!$M62/1.645","v":190.88145896656536},254.13824457455891,{"$f":"PovertyCharacteristics!$H62-PovertyCharacteristics!$L62","v":-75},0.29511496833368794,1.645]
["Y",{"$f":"PovertyCharacteristics!$E$68/1.645","v":227.96352583586625},{"$f":"PovertyCharacteristics!$M68/1.645","v":311.24620060790272},385.79990474904798,{"$f":"PovertyCharacteristics!$D68-PovertyCharacteristics!$L68","v":-715},1.8532923186310464,1.645,"Total Households At or Above Poverty Level",null,"Y",{"$f":"PovertyCharacteristics!$I$68/1.645","v":218.84498480243161},{"$f":"PovertyCharacteristics!$M68/1.645","v":311.24620060790272},380.48301508218651,{"$f":"PovertyCharacteristics!$H68-PovertyCharacteristics!$L68","v":-722},1.897587990475853,1.645]
["Y",{"$f":"PovertyCharacteristics!$E$69/1.645","v":192.09726443768997},{"$f":"PovertyCharacteristics!$M69/1.645","v":253.49544072948328},318.05863842234936,{"$f":"PovertyCharacteristics!$D69-PovertyCharacteristics!$L69","v":-915},2.8768280105160153,1.645,"Family Households At or Above Poverty Level",null,"Y",{"$f":"PovertyCharacteristics!$I$69/1.645","v":241.94528875379939},{"$f":"PovertyCharacteristics!$M69/1.645","v":253.49544072948328},350.42468694541816,{"$f":"PovertyCharacteristics!$H69-PovertyCharacteristics!$L69","v":-696},1.9861614376170031,1.645]
["Y",{"$f":"PovertyCharacteristics!$E$70/1.645","v":130.69908814589667},{"$f":"PovertyCharacteristics!$M70/1.645","v":269.90881458966567},299.88834561444258,{"$f":"PovertyCharacteristics!$D70-PovertyCharacteristics!$L70","v":-4166},13.89183694839579,1.645,"Married Couple Fam HH At or Above Poverty Level",null,"N",{"$f":"PovertyCharacteristics!$I$70/1.645","v":208.51063829787233},{"$f":"PovertyCharacteristics!$M70/1.645","v":269.90881458966567},341.06810826664025,{"$f":"PovertyCharacteristics!$H70-PovertyCharacteristics!$L70","v":-318},0.93236509744673612,1.645]
["N",{"$f":"PovertyCharacteristics!$E$71/1.645","v":146.50455927051672},{"$f":"PovertyCharacteristics!$M71/1.645","v":179.93920972644378},232.03815437127031,{"$f":"PovertyCharacteristics!$D71-PovertyCharacteristics!$L71","v":-52},0.22410107570842822,1.645,"M C Fam HH w/Children At or Above Poverty Level",null,"N",{"$f":"PovertyCharacteristics!$I$71/1.645","v":146.50455927051672},{"$f":"PovertyCharacteristics!$M71/1.645","v":179.93920972644378},232.03815437127031,{"$f":"PovertyCharacteristics!$H71-PovertyCharacteristics!$L71","v":-52},0.22410107570842822,1.645]
["N",{"$f":"PovertyCharacteristics!$E$72/1.645","v":97.264437689969597},{"$f":"PovertyCharacteristics!$M72/1.645","v":128.87537993920972},161.45969897662275,{"$f":"PovertyCharacteristics!$D72-PovertyCharacteristics!$L72","v":-170},1.0528943202390944,1.645,"Male Head of Family HH  At or Above Poverty Level",null,"N",{"$f":"PovertyCharacteristics!$I$72/1.645","v":117.93313069908814},{"$f":"PovertyCharacteristics!$M72/1.645","v":128.87537993920972},174.69140468541622,{"$f":"PovertyCharacteristics!$H72-PovertyCharacteristics!$L72","v":-39},0.22325082376108366,1.645]
["Y",{"$f":"PovertyCharacteristics!$E$73/1.645","v":192.09726443768997},{"$f":"PovertyCharacteristics!$M73/1.645","v":88.145896656534958},211.35528879549793,{"$f":"PovertyCharacteristics!$D73-PovertyCharacteristics!$L73","v":6695},31.67651984558529,1.645,"Male Head of HH w/Children At or Above Poverty Level",null,"N",{"$f":"PovertyCharacteristics!$I$73/1.645","v":109.42249240121581},{"$f":"PovertyCharacteristics!$M73/1.645","v":88.145896656534958},140.50971831399661,{"$f":"PovertyCharacteristics!$H73-PovertyCharacteristics!$L73","v":128},0.91096901720320023,1.645]
["N",{"$f":"PovertyCharacteristics!$E$74/1.645","v":141.64133738601822},{"$f":"PovertyCharacteristics!$M74/1.645","v":165.95744680851064},218.18373589179254,{"$f":"PovertyCharacteristics!$D74-PovertyCharacteristics!$L74","v":-57},0.26124770376224998,1.645,"Female Head of Family HH  At or Above Poverty Level",null,"Y",{"$f":"PovertyCharacteristics!$I$74/1.645","v":107.59878419452887},{"$f":"PovertyCharacteristics!$M74/1.645","v":165.95744680851064},197.78617876722436,{"$f":"PovertyCharacteristics!$H74-PovertyCharacteristics!$L74","v":-339},1.7139721395748839,1.645]
["Y",{"$f":"PovertyCharacteristics!$E$75/1.645","v":195.74468085106383},{"$f":"PovertyCharacteristics!$M75/1.645","v":136.17021276595744},238.44979959356425,{"$f":"PovertyCharacteristics!$D75-PovertyCharacteristics!$L75","v":2969},12.451258105733938,1.645,"Female Head of HH w/Children At or Above Poverty Level",null,"Y",{"$f":"PovertyCharacteristics!$I$75/1.645","v":87.537993920972639},{"$f":"PovertyCharacteristics!$M75/1.645","v":136.17021276595744},161.88028670728986,{"$f":"PovertyCharacteristics!$H75-PovertyCharacteristics!$L75","v":-337},2.0817852924201925,1.645]
["N",{"$f":"PovertyCharacteristics!$E$76/1.645","v":254.71124620060789},{"$f":"PovertyCharacteristics!$M76/1.645","v":318.54103343465044},407.85562264443746,{"$f":"PovertyCharacteristics!$D76-PovertyCharacteristics!$L76","v":200},0.49036960359464521,1.645,"Non-Family HH  At or Above Poverty Level",null,"N",{"$f":"PovertyCharacteristics!$I$76/1.645","v":270.51671732522794},{"$f":"PovertyCharacteristics!$M76/1.645","v":318.54103343465044},417.90870334803071,{"$f":"PovertyCharacteristics!$H76-PovertyCharacteristics!$L76","v":-26},6.2214545405979323E-2,1.645]
["N",{"$f":"PovertyCharacteristics!$E24/1.645","v":343.46504559270517},{"$f":"PovertyCharacteristics!M24/1.645","v":401.21580547112461},528.14994092950758,{"$f":"PovertyCharacteristics!H24-PovertyCharacteristics!L24","v":291},0.5509798968979529,1.645,"Total Individuals Living in Poverty",null,{"$f":"IF(O112>P112,\"Y\",\"N\")","v":"N"},{"$f":"PovertyCharacteristics!$I24/1.645","v":405.47112462006078},{"$f":"PovertyCharacteristics!$M24/1.645","v":401.21580547112461},570.42173473711546,{"$f":"PovertyCharacteristics!$H24-PovertyCharacteristics!$L24","v":291},0.51014886404023552,1.645]
["N",{"$f":"PovertyCharacteristics!$E25/1.645","v":125.12315973303616},{"$f":"PovertyCharacteristics!M25/1.645","v":84.867228025732544},151.18945563216559,{"$f":"PovertyCharacteristics!H25-PovertyCharacteristics!L25","v":228},1.5080416755696879,1.645,"Individuals Under 5 yrs. Living in Poverty",null,"N",{"$f":"PovertyCharacteristics!$I25/1.645","v":110.84019122201624},{"$f":"PovertyCharacteristics!$M25/1.645","v":84.867228025732544},139.59940681430137,{"$f":"PovertyCharacteristics!$H25-PovertyCharacteristics!$L25","v":228},1.6332447623025454,1.645]
["N",{"$f":"PovertyCharacteristics!$E26/1.645","v":116.32088193610885},{"$f":"PovertyCharacteristics!M26/1.645","v":108.16228042738956},158.83836589957551,{"$f":"PovertyCharacteristics!H26-PovertyCharacteristics!L26","v":36},0.22664549459518338,1.645,"Individuals 5 to 17 yrs. Living in Poverty",null,"N",{"$f":"PovertyCharacteristics!$I26/1.645","v":114.49085901614916},{"$f":"PovertyCharacteristics!$M26/1.645","v":108.16228042738956},157.50312919275288,{"$f":"PovertyCharacteristics!$H26-PovertyCharacteristics!$L26","v":36},0.22856688742953846,1.645]
["N",{"$f":"PovertyCharacteristics!$E27/1.645","v":205.50709204810602},{"$f":"PovertyCharacteristics!M27/1.645","v":215.46443364144667},297.75507896003739,{"$f":"PovertyCharacteristics!H27-PovertyCharacteristics!L27","v":234},0.78588080115135783,1.645,"Individuals 18 to 64 yrs. Living in Poverty",null,"N",{"$f":"PovertyCharacteristics!$I27/1.645","v":232.02382045983811},{"$f":"PovertyCharacteristics!$M27/1.645","v":215.46443364144667},316.63855644126562,{"$f":"PovertyCharacteristics!$H27-PovertyCharacteristics!$L27","v":234},0.73901296996155763,1.645]
["N",{"$f":"PovertyCharacteristics!$E28/1.645","v":59.016680361542853},{"$f":"PovertyCharacteristics!M28/1.645","v":126.8071118131662},139.86783821627242,{"$f":"PovertyCharacteristics!H28-PovertyCharacteristics!L28","v":-184},1.3155275890908364,1.645,"Individuals 65 to 74 yrs. Living in Poverty",null,"N",{"$f":"PovertyCharacteristics!$I28/1.645","v":46.871626811431575},{"$f":"PovertyCharacteristics!$M28/1.645","v":126.8071118131662},135.19242954524839,{"$f":"PovertyCharacteristics!$H28-PovertyCharacteristics!$L28","v":-184},1.3610229553454094,1.645]
["N",{"$f":"PovertyCharacteristics!$E29/1.645","v":41.874747961810392},{"$f":"PovertyCharacteristics!M29/1.645","v":94.842568278398431},103.67549023037128,{"$f":"PovertyCharacteristics!H29-PovertyCharacteristics!L29","v":-23},0.22184606939299767,1.645,"Individuals 75 yrs. & Over Living in Poverty",null,"N",{"$f":"PovertyCharacteristics!$I29/1.645","v":68.830054004708387},{"$f":"PovertyCharacteristics!$M29/1.645","v":94.842568278398431},117.18655678845479,{"$f":"PovertyCharacteristics!$H29-PovertyCharacteristics!$L29","v":-23},0.19626824637846138,1.645]
[null,null,null,null,null,null,null,"Under 5",null,"N",{"$f":"DisabilityByAgePrior5YearEst!$E$31/1.645","v":159.88188654116252},{"$f":"DisabilityByAge!$E$31/1.645","v":165.35066153743622},{"$f":"SQRT((K118^2)+(L118^2))","v":230.00664971871782},{"$f":"DisabilityByAge!$D$31-DisabilityByAgePrior5YearEst!$D$31","v":-71},0.30868672747865367,1.645]
[null,null,null,null,null,null,null,"5 to 17",null,"N",{"$f":"DisabilityByAgePrior5YearEst!$F$31/1.645","v":2748.3282674772036},{"$f":"DisabilityByAge!$F$31/1.645","v":3016.4133738601822},{"$f":"SQRT((K119^2)+(L119^2))","v":4080.6933121489069},{"$f":"DisabilityByAge!$D$31-DisabilityByAgePrior5YearEst!$D$31","v":-71},1.7399004181132927E-2,1.645]
[null,null,null,null,null,null,null,"18 to 34",null,"N",{"$f":"DisabilityByAgePrior5YearEst!$I$31/1.645","v":302.89055004091813},{"$f":"DisabilityByAge!$I$31/1.645","v":342.9180355074962},457.53192717056407,{"$f":"DisabilityByAge!$D$31-DisabilityByAgePrior5YearEst!$D$31","v":-71},0.15518042738366494,1.645]
[null,null,null,null,null,null,null,"35 to 64",null,"N",{"$f":"DisabilityByAgePrior5YearEst!$K$31/1.645","v":251.89335791812573},{"$f":"DisabilityByAge!$K$31/1.645","v":357.02112650905104},436.93746524767226,{"$f":"DisabilityByAge!$D$31-DisabilityByAgePrior5YearEst!$D$31","v":-71},0.16249464888471987,1.645]
[null,null,null,null,null,null,null,"65 to 74",null,"N",{"$f":"DisabilityByAgePrior5YearEst!$M$31/1.645","v":159.54522817938823},{"$f":"DisabilityByAge!$M$31/1.645","v":228.99866299495497},279.09687832057529,{"$f":"DisabilityByAge!$D$31-DisabilityByAgePrior5YearEst!$D$31","v":-71},0.25439195317135804,1.645]
[null,null,null,null,null,null,null,"75 and Over",null,"N",{"$f":"DisabilityByAgePrior5YearEst!$O$31/1.645","v":133.70129349744883},{"$f":"DisabilityByAge!$O$31/1.645","v":199.21131251264239},239.91911744565215,{"$f":"DisabilityByAge!$D$31-DisabilityByAgePrior5YearEst!$D$31","v":-71},0.29593306592620044,1.645]
[null,null,null,null,null,null,null,"With a Disability -Under 5",null,"N",{"$f":"DisabilityByAgePrior5YearEst!$E$33/1.645","v":43.8364896712947},{"$f":"DisabilityByAge!$E$33/1.645","v":48.636018088679904},65.475950411001492,{"$f":"DisabilityByAge!$D$31-DisabilityByAgePrior5YearEst!$D$31","v":-71},1.0843676121434405,1.645]
[null,null,null,null,null,null,null,"With a Disability -5 to 17",null,"N",{"$f":"DisabilityByAgePrior5YearEst!$F$33/1.645","v":177.50759878419453},{"$f":"DisabilityByAge!$F$33/1.645","v":162.91793313069908},240.93816750716255,{"$f":"DisabilityByAge!$D$31-DisabilityByAgePrior5YearEst!$D$31","v":-71},0.29468141446659474,1.645]
[null,null,null,null,null,null,null,"With a Disability -18 to 34",null,"N",{"$f":"DisabilityByAgePrior5YearEst!$I$33/1.645","v":95.973576923081723},{"$f":"DisabilityByAge!$I$33/1.645","v":168.35394057354227},193.7884846270554,{"$f":"DisabilityByAge!$D$31-DisabilityByAgePrior5YearEst!$D$31","v":-71},0.36637883895237122,1.645]
[null,null,null,null,null,null,null,"With a Disability -35 to 64",null,"N",{"$f":"DisabilityByAgePrior5YearEst!$K$33/1.645","v":198.7990662107552},{"$f":"DisabilityByAge!$K$33/1.645","v":212.48787733131462},290.98482217984503,{"$f":"DisabilityByAge!$D$31-DisabilityByAgePrior5YearEst!$D$31","v":-71},{"$f":"ABS((N127/M127))","v":0.24399898066201542},1.645]
[null,null,null,null,null,null,null,"With a Disability -65 to 74",null,"N",{"$f":"DisabilityByAgePrior5YearEst!$M$33/1.645","v":109.7091820149883},{"$f":"DisabilityByAge!$M$33/1.645","v":189.41609331696483},218.89394926735403,{"$f":"DisabilityByAge!$D$31-DisabilityByAgePrior5YearEst!$D$31","v":-71},0.32435798356985002,1.645]
[null,null,null,null,null,null,null,"With a Disability -75 and Over",null,"N",{"$f":"DisabilityByAgePrior5YearEst!$O$33/1.645","v":124.22652668152998},{"$f":"DisabilityByAge!$O$33/1.645","v":161.40132453325944},203.67281971939067,{"$f":"DisabilityByAge!$D$31-DisabilityByAgePrior5YearEst!$D$31","v":-71},0.34859830633179201,1.645]
[null,null,null,null,null,null,null,"Hearing Disability - Under 5",null,"N",{"$f":"DisabilityByAgePrior5YearEst!$E$38/1.645","v":43.8364896712947},{"$f":"DisabilityByAge!$E$38/1.645","v":10.316451518831087},45.034064869184519,{"$f":"DisabilityByAge!$D$31-DisabilityByAgePrior5YearEst!$D$31","v":-71},1.576584308039739,1.645]
[null,null,null,null,null,null,null,"Hearing Disability - 5 to 17",null,"Y",{"$f":"DisabilityByAgePrior5YearEst!$F$38/1.645","v":32.218844984802431},{"$f":"DisabilityByAge!$F$38/1.645","v":0},32.218844984802431,{"$f":"DisabilityByAge!$D$31-DisabilityByAgePrior5YearEst!$D$31","v":-71},2.203679245283019,1.645]
[null,null,null,null,null,null,null,"Hearing Disability - 18 to 34",null,"N",{"$f":"DisabilityByAgePrior5YearEst!$I$38/1.645","v":50.470573184651229},{"$f":"DisabilityByAge!$I$38/1.645","v":10.316451518831087},51.514152710955344,{"$f":"DisabilityByAge!$D$31-DisabilityByAgePrior5YearEst!$D$31","v":-71},1.3782620166224857,1.645]
[null,null,null,null,null,null,null,"Hearing Disability - 35 to 64",null,"N",{"$f":"DisabilityByAgePrior5YearEst!$K$38/1.645","v":94.146452273363948},{"$f":"DisabilityByAge!$K$38/1.645","v":12.1580547112462},94.928250642379652,{"$f":"DisabilityByAge!$D$31-DisabilityByAgePrior5YearEst!$D$31","v":-71},0.74793330246310097,1.645]
[null,null,null,null,null,null,null,"Hearing Disability - 65 to 74",null,"N",{"$f":"DisabilityByAgePrior5YearEst!$M$38/1.645","v":45.369259956341132},{"$f":"DisabilityByAge!$M$38/1.645","v":6.462094718987629},45.827158074041932,{"$f":"DisabilityByAge!$D$31-DisabilityByAgePrior5YearEst!$D$31","v":-71},1.5492996507722967,1.645]
[null,null,null,null,null,null,null,"Hearing Disability - 75 and Over",null,"N",{"$f":"DisabilityByAgePrior5YearEst!$O$38/1.645","v":93.849630098041786},{"$f":"DisabilityByAge!$O$38/1.645","v":51.370478877381146},106.98915444862033,{"$f":"DisabilityByAge!$D$31-DisabilityByAgePrior5YearEst!$D$31","v":-71},0.66361866645180856,1.645]
[null,null,null,null,null,null,null,"Visual Disability - Under 5",null,"N",{"$f":"DisabilityByAgePrior5YearEst!$E$39/1.645","v":20.632903037662174},{"$f":"DisabilityByAge!$E$39/1.645","v":48.636018088679904},52.831609319459197,{"$f":"DisabilityByAge!$D$31-DisabilityByAgePrior5YearEst!$D$31","v":-71},1.343892433234074,1.645]
[null,null,null,null,null,null,null,"Visual Disability - 5 to 17",null,"Y",{"$f":"DisabilityByAgePrior5YearEst!$F$39/1.645","v":18.237082066869302},{"$f":"DisabilityByAge!$F$39/1.645","v":0},18.237082066869302,{"$f":"DisabilityByAge!$D$31-DisabilityByAgePrior5YearEst!$D$31","v":-71},3.8931666666666662,1.645]
[null,null,null,null,null,null,null,"Visual Disability - 18 to 34",null,"N",{"$f":"DisabilityByAgePrior5YearEst!$I$39/1.645","v":72.340425531914889},{"$f":"DisabilityByAge!$I$39/1.645","v":80.30300798554957},108.08196083373841,{"$f":"DisabilityByAge!$D$31-DisabilityByAgePrior5YearEst!$D$31","v":-71},0.65690888148503079,1.645]
[null,null,null,null,null,null,null,"Visual Disability - 35 to 64",null,"N",{"$f":"DisabilityByAgePrior5YearEst!$K$39/1.645","v":59.716968706348027},{"$f":"DisabilityByAge!$K$39/1.645","v":91.438352319096182},{"$f":"SQRT((K140^2)+(L140^2))","v":115.39909072016808},{"$f":"DisabilityByAge!$D$31-DisabilityByAgePrior5YearEst!$D$31","v":-71},{"$f":"ABS((N140/M140))","v":0.61525614766036862},1.645]
[null,null,null,null,null,null,null,"Visual Disability - 65 to 74",null,"N",{"$f":"DisabilityByAgePrior5YearEst!$M$39/1.645","v":34.398916354516984},{"$f":"DisabilityByAge!$M$39/1.645","v":110.15291504393575},115.39909072016808,{"$f":"DisabilityByAge!$D$31-DisabilityByAgePrior5YearEst!$D$31","v":-71},0.61525614766036862,1.645]
[null,null,null,null,null,null,null,"Visual Disability - 75 and Over",null,"N",{"$f":"DisabilityByAgePrior5YearEst!$O$39/1.645","v":75.548884115117403},{"$f":"DisabilityByAge!$O$39/1.645","v":108.0699932336189},131.85885381177053,{"$f":"DisabilityByAge!$D$31-DisabilityByAgePrior5YearEst!$D$31","v":-71},0.53845455157188771,1.645]
[null,null,null,null,null,null,null,"Cognative Disability - 5 to 17",null,"N",{"$f":"DisabilityByAgePrior5YearEst!$F$40/1.645","v":86.322188449848028},{"$f":"DisabilityByAge!$F$40/1.645","v":62.006079027355625},106.28393131192385,{"$f":"DisabilityByAge!$D$31-DisabilityByAgePrior5YearEst!$D$31","v":-71},0.66802195895095395,1.645]
[null,null,null,null,null,null,null,"Cognative Disability - 18 to 34",null,"N",{"$f":"DisabilityByAgePrior5YearEst!$I$40/1.645","v":91.438352319096182},{"$f":"DisabilityByAge!$I$40/1.645","v":89.044782607175947},127.63207114354286,{"$f":"DisabilityByAge!$D$31-DisabilityByAgePrior5YearEst!$D$31","v":-71},0.55628651454029165,1.645]
[null,null,null,null,null,null,null,"Cognative Disability - 35 to 64",null,{"$f":"IF(O144>P144,\"Y\",\"N\")","v":"N"},{"$f":"DisabilityByAgePrior5YearEst!$K$40/1.645","v":138.58315877096373},{"$f":"DisabilityByAge!$K$40/1.645","v":140.80922330751213},{"$f":"SQRT((K145^2)+(L145^2))","v":110.68671908783794},{"$f":"DisabilityByAge!$D$31-DisabilityByAgePrior5YearEst!$D$31","v":-71},{"$f":"ABS((N145/M145))","v":0.64145003650940591},1.645]
[null,null,null,null,null,null,null,"Cognative Disability - 65 to 74",null,"N",{"$f":"DisabilityByAgePrior5YearEst!$M$40/1.645","v":75.585561300277462},{"$f":"DisabilityByAge!$M$40/1.645","v":80.860204707581261},{"$f":"SQRT((K145^2)+(L145^2))","v":110.68671908783794},{"$f":"DisabilityByAge!$D$31-DisabilityByAgePrior5YearEst!$D$31","v":-71},{"$f":"ABS((N145/M145))","v":0.64145003650940591},1.645]
[null,null,null,null,null,null,null,"Cognative Disability - 75 and Over",null,"N",{"$f":"DisabilityByAgePrior5YearEst!$O$40/1.645","v":48.711940735721889},{"$f":"DisabilityByAge!$O$40/1.645","v":68.250450555814524},{"$f":"SQRT((K146^2)+(L146^2))","v":83.85092230448133},{"$f":"DisabilityByAge!$D$31-DisabilityByAgePrior5YearEst!$D$31","v":-71},{"$f":"ABS((N146/M146))","v":0.84674083538620148},1.645]
[null,null,null,null,null,null,null,"Amblatory Disability - 5 to 17",null,"Y",{"$f":"DisabilityByAgePrior5YearEst!$F$41/1.645","v":0},{"$f":"DisabilityByAge!$F$41/1.645","v":4.2553191489361701},{"$f":"SQRT((K147^2)+(L147^2))","v":4.2553191489361701},{"$f":"DisabilityByAge!$D$31-DisabilityByAgePrior5YearEst!$D$31","v":-71},{"$f":"ABS((N147/M147))","v":16.684999999999999},1.645]
[null,null,null,null,null,null,null,"Amblatory Disability - 18 to 34",null,"N",{"$f":"DisabilityByAgePrior5YearEst!$I$41/1.645","v":58.181087484524731},{"$f":"DisabilityByAge!$I$41/1.645","v":73.163310371876051},{"$f":"SQRT((K148^2)+(L148^2))","v":93.476782815057277},{"$f":"DisabilityByAge!$D$31-DisabilityByAgePrior5YearEst!$D$31","v":-71},{"$f":"ABS((N148/M148))","v":0.75954689348340831},1.645]
[null,null,null,null,null,null,null,"Amblatory Disability - 35 to 64",null,"N",{"$f":"DisabilityByAgePrior5YearEst!$K$41/1.645","v":143.9587610029489},{"$f":"DisabilityByAge!$K$41/1.645","v":160.88763492389796},{"$f":"SQRT((K150^2)+(L150^2))","v":134.46610638490932},{"$f":"DisabilityByAge!$D$31-DisabilityByAgePrior5YearEst!$D$31","v":-71},{"$f":"ABS((N150/M150))","v":0.52801409893406481},1.645]
[null,null,null,null,null,null,null,"Amblatory Disability - 65 to 74",null,"N",{"$f":"DisabilityByAgePrior5YearEst!$M$41/1.645","v":88.110253772612467},{"$f":"DisabilityByAge!$M$41/1.645","v":101.57616327881057},{"$f":"SQRT((K150^2)+(L150^2))","v":134.46610638490932},{"$f":"DisabilityByAge!$D$31-DisabilityByAgePrior5YearEst!$D$31","v":-71},{"$f":"ABS((N150/M150))","v":0.52801409893406481},1.645]
[null,null,null,null,null,null,null,"Amblatory Disability - 75 and Over",null,"N",{"$f":"DisabilityByAgePrior5YearEst!$O$41/1.645","v":78.664117281736679},{"$f":"DisabilityByAge!$O$41/1.645","v":91.680520085455782},{"$f":"SQRT((K151^2)+(L151^2))","v":120.80298469348547},{"$f":"DisabilityByAge!$D$31-DisabilityByAgePrior5YearEst!$D$31","v":-71},{"$f":"ABS((N151/M151))","v":0.58773382280370767},1.645]
[null,null,null,null,null,null,null,"Self Care Disability - 5 to 17",null,"N",{"$f":"DisabilityByAgePrior5YearEst!$F$42/1.645","v":29.179331306990882},{"$f":"DisabilityByAge!$F$42/1.645","v":63.829787234042556},{"$f":"SQRT((K152^2)+(L152^2))","v":70.183154060403126},{"$f":"DisabilityByAge!$D$31-DisabilityByAgePrior5YearEst!$D$31","v":-71},{"$f":"ABS((N152/M152))","v":1.0116387750099383},1.645]
[null,null,null,null,null,null,null,"Self Care Disability - 18 to 34",null,"N",{"$f":"DisabilityByAgePrior5YearEst!$I$42/1.645","v":51.503391075927375},{"$f":"DisabilityByAge!$I$42/1.645","v":16.603647761395333},{"$f":"SQRT((K153^2)+(L153^2))","v":54.113588046852001},{"$f":"DisabilityByAge!$D$31-DisabilityByAgePrior5YearEst!$D$31","v":-71},{"$f":"ABS((N153/M153))","v":1.3120549304275961},1.645]
[null,null,null,null,null,null,null,"Self Care Disability - 35 to 64",null,"N",{"$f":"DisabilityByAgePrior5YearEst!$K$42/1.645","v":66.861010815215622},{"$f":"DisabilityByAge!$K$42/1.645","v":107.57130485573897},{"$f":"SQRT((K155^2)+(L155^2))","v":108.70755973133876},{"$f":"DisabilityByAge!$D$31-DisabilityByAgePrior5YearEst!$D$31","v":-71},{"$f":"ABS((N155/M155))","v":0.65312845008636289},1.645]
[null,null,null,null,null,null,null,"Self Care Disability - 65 to 74",null,"N",{"$f":"DisabilityByAgePrior5YearEst!$M$42/1.645","v":17.961442799628156},{"$f":"DisabilityByAge!$M$42/1.645","v":107.21343253202124},{"$f":"SQRT((K155^2)+(L155^2))","v":108.70755973133876},{"$f":"DisabilityByAge!$D$31-DisabilityByAgePrior5YearEst!$D$31","v":-71},{"$f":"ABS((N155/M155))","v":0.65312845008636289},1.645]
[null,null,null,null,null,null,null,"Self Care Disability - 75 and Over",null,"N",{"$f":"DisabilityByAgePrior5YearEst!$O$42/1.645","v":58.560946279840948},{"$f":"DisabilityByAge!$O$42/1.645","v":107.69490666392458},{"$f":"SQRT((K156^2)+(L156^2))","v":122.58701950264492},{"$f":"DisabilityByAge!$D$31-DisabilityByAgePrior5YearEst!$D$31","v":-71},{"$f":"ABS((N156/M156))","v":0.57918040823619266},1.645]
[null,null,null,null,null,null,null,"Independant Living Disability - 18 to 34",null,"N",{"$f":"DisabilityByAgePrior5YearEst!$I$43/1.645","v":75.419148543566308},{"$f":"DisabilityByAge!$I$43/1.645","v":127.50605909276126},{"$f":"SQRT((K157^2)+(L157^2))","v":148.14129428489292},{"$f":"DisabilityByAge!$D$31-DisabilityByAgePrior5YearEst!$D$31","v":-71},{"$f":"ABS((N157/M157))","v":0.47927217284505935},1.645]
[null,null,null,null,null,null,null,"Independant Living Disability - 35 to 64",null,"N",{"$f":"DisabilityByAgePrior5YearEst!$K$43/1.645","v":103.60060981287627},{"$f":"DisabilityByAge!$K$43/1.645","v":135.25665105988114},{"$f":"SQRT((K159^2)+(L159^2))","v":124.74158208759265},{"$f":"DisabilityByAge!$D$31-DisabilityByAgePrior5YearEst!$D$31","v":-71},{"$f":"ABS((N159/M159))","v":0.56917668360294094},1.645]
[null,null,null,null,null,null,null,"Independant Living Disability - 65 to 74",null,"N",{"$f":"DisabilityByAgePrior5YearEst!$M$43/1.645","v":59.593074446942104},{"$f":"DisabilityByAge!$M$43/1.645","v":109.58616600500645},{"$f":"SQRT((K159^2)+(L159^2))","v":124.74158208759265},{"$f":"DisabilityByAge!$D$31-DisabilityByAgePrior5YearEst!$D$31","v":-71},{"$f":"ABS((N159/M159))","v":0.56917668360294094},1.645]
[null,null,null,null,null,null,null,"Independant Living Disability - 75 and Over",null,"N",{"$f":"DisabilityByAgePrior5YearEst!$O$43/1.645","v":72.462924047142366},{"$f":"DisabilityByAge!$O$43/1.645","v":139.27474888725629},{"$f":"SQRT((K160^2)+(L160^2))","v":156.99786953672404},{"$f":"DisabilityByAge!$D$31-DisabilityByAgePrior5YearEst!$D$31","v":-71},0.45223543612094741,1.645]
[null,null,null,null,null,null,null,"No Disability - Under 5",null,"N",{"$f":"DisabilityByAgePrior5YearEst!$E$47/1.645","v":161.0391601708877},{"$f":"DisabilityByAge!$E$47/1.645","v":159.11730722414964},{"$f":"SQRT((K161^2)+(L161^2))","v":226.38888790488204},{"$f":"DisabilityByAge!$D$47-DisabilityByAgePrior5YearEst!$D$47","v":-88},0.38871165813126596,1.645]
[null,null,null,null,null,null,null,"No Disability - 5 to 17",null,"N",{"$f":"DisabilityByAgePrior5YearEst!$F$47/1.645","v":2570.8206686930089},{"$f":"DisabilityByAge!$F$47/1.645","v":2853.4954407294831},{"$f":"SQRT((K162^2)+(L162^2))","v":3840.7753306908121},{"$f":"DisabilityByAge!$D$47-DisabilityByAgePrior5YearEst!$D$47","v":-88},2.2912040518697063E-2,1.645]
[null,null,null,null,null,null,null,"No Disability - 18 to 34",null,"N",{"$f":"DisabilityByAgePrior5YearEst!$I$47/1.645","v":299.90313258288762},{"$f":"DisabilityByAge!$I$47/1.645","v":352.12736441224791},462.531695887909,{"$f":"DisabilityByAge!$D$47-DisabilityByAgePrior5YearEst!$D$47","v":-88},0.1902572316283512,1.645]
[null,null,null,null,null,null,null,"No Disability - 35 to 64",null,"N",{"$f":"DisabilityByAgePrior5YearEst!$K$47/1.645","v":262.22249329188276},{"$f":"DisabilityByAge!$K$47/1.645","v":358.98445196577967},444.55648993281233,{"$f":"DisabilityByAge!$D$47-DisabilityByAgePrior5YearEst!$D$47","v":-88},0.19795009631576813,1.645]
[null,null,null,null,null,null,null,"No Disability - 65 to 74",null,{"$f":"IF(O165>P165,\"Y\",\"N\")","v":"N"},{"$f":"DisabilityByAgePrior5YearEst!$M$47/1.645","v":145.99920408237401},{"$f":"DisabilityByAge!$M$47/1.645","v":219.91716416637993},263.96841986811455,{"$f":"DisabilityByAge!$D$47-DisabilityByAgePrior5YearEst!$D$47","v":-88},0.33337321200758435,1.645]
[null,null,null,null,null,null,null,"No Disability - 75 and Over",null,"N",{"$f":"DisabilityByAgePrior5YearEst!$O$47/1.645","v":118.05527469744302},{"$f":"DisabilityByAge!$O$47/1.645","v":172.91493847053255},209.3719747964297,{"$f":"DisabilityByAge!$D$47-DisabilityByAgePrior5YearEst!$D$47","v":-88},{"$f":"ABS((N166/M166))","v":0.42030458033154405},1.645]
[{"$f":"IF(F167>G167,\"Y\",\"N\")","v":"N"},null,null,null,null,null,null,"Renter Total:",null,"N",{"$f":"'RentalHousingCost-Prior5Yr'!$F$52/1.645","v":226.74772036474164},{"$f":"RentalHousingCost!$F$52/1.645","v":315.50151975683889},388.53022747204886,{"$f":"'RentalHousingCost-Prior5Yr'!$E$52-RentalHousingCost!$E$52","v":-172},{"$f":"ABS((N167/M167))","v":0.44269399866030706},1.645]
["N",null,null,null,null,null,null,"Renter Less than 20.0 percent",null,"Y",{"$f":"'RentalHousingCost-Prior5Yr'!$F$53/1.645","v":175.92142207464101},{"$f":"RentalHousingCost!$F$53/1.645","v":216.96167010265529},279.32188070127518,{"$f":"'RentalHousingCost-Prior5Yr'!$E$53-RentalHousingCost!$E$53","v":-634},2.269782798283678,1.645]
["N",null,null,null,null,null,null,"Renter 20.0 to 24.9 percent",null,"Y",{"$f":"'RentalHousingCost-Prior5Yr'!$F$54/1.645","v":96.048632218844986},{"$f":"RentalHousingCost!$F$54/1.645","v":72.948328267477208},120.61010881402338,{"$f":"'RentalHousingCost-Prior5Yr'!$E$54-RentalHousingCost!$E$54","v":211},1.7494387665743234,1.645]
["N",null,null,null,null,null,null,"Renter 25.0 to 29.9 percent",null,"N",{"$f":"'RentalHousingCost-Prior5Yr'!$F$55/1.645","v":133.13069908814589},{"$f":"RentalHousingCost!$F$55/1.645","v":187.2340425531915},229.73978699935449,{"$f":"'RentalHousingCost-Prior5Yr'!$E$55-RentalHousingCost!$E$55","v":-151},0.65726534342274923,1.645]
["N",null,null,null,null,null,null,"Renter 30.0 to 34.9 percent",null,"N",{"$f":"'RentalHousingCost-Prior5Yr'!$F$56/1.645","v":240.61893012723124},{"$f":"RentalHousingCost!$F$56/1.645","v":295.72015755028161},381.24517192632982,{"$f":"'RentalHousingCost-Prior5Yr'!$E$56-RentalHousingCost!$E$56","v":-574},1.5055928370180576,1.645]
["N",null,null,null,null,null,null,"Renter 35.0 to 39.9 percent",null,"N",{"$f":"'RentalHousingCost-Prior5Yr'!$F$57/1.645","v":213.04107267505657},{"$f":"RentalHousingCost!$F$57/1.645","v":232.79182640647542},315.56066467194756,{"$f":"'RentalHousingCost-Prior5Yr'!$E$57-RentalHousingCost!$E$57","v":356},1.1281507483516446,1.645]
["N",null,null,null,null,null,null,"Renter 40.0 to 49.9 percent",null,"N",{"$f":"'RentalHousingCost-Prior5Yr'!$F$58/1.645","v":82.674772036474167},{"$f":"RentalHousingCost!$F$58/1.645","v":109.42249240121581},137.14371941353019,{"$f":"'RentalHousingCost-Prior5Yr'!$E$58-RentalHousingCost!$E$58","v":-93},0.67812073639024328,1.645]
["N",null,null,null,null,null,null,"Renter 50.0 percent or more",null,"Y",{"$f":"'RentalHousingCost-Prior5Yr'!$F$59/1.645","v":254.4259960516149},{"$f":"RentalHousingCost!$F$59/1.645","v":315.31522865991974},405.16204275784997,{"$f":"'RentalHousingCost-Prior5Yr'!$E$59-RentalHousingCost!$E$59","v":-667},1.6462549044818611,1.645]
["N",null,null,null,null,null,null,"Renter Not computed",null,"N",{"$f":"'RentalHousingCost-Prior5Yr'!$F$60/1.645","v":196.3450552350524},{"$f":"RentalHousingCost!$F$60/1.645","v":205.47202388249465},{"$f":"SQRT((K175^2)+(L175^2))","v":284.20086789738036},{"$f":"'RentalHousingCost-Prior5Yr'!$E$60-RentalHousingCost!$E$60","v":449},1.5798685039981142,1.645]
["N",null,null,null,null,null,null,"Renter Less than $10,000:",null,"N",{"$f":"'RentalHousingCost-Prior5Yr'!$I$52/1.645","v":83.890577507598778},{"$f":"RentalHousingCost!$I$52/1.645","v":97.872340425531917},{"$f":"SQRT((K176^2)+(L176^2))","v":128.9054848132136},{"$f":"'RentalHousingCost-Prior5Yr'!$H$52-RentalHousingCost!$H$52","v":178},1.3808566816061028,1.645]
["N",null,null,null,null,null,null,"Renter Less than 20.0 percent",null,"N",{"$f":"'RentalHousingCost-Prior5Yr'!$I$53/1.645","v":13.98176291793313},{"$f":"RentalHousingCost!$I$53/1.645","v":27.96352583586626},31.264172329784294,{"$f":"'RentalHousingCost-Prior5Yr'!$H$53-RentalHousingCost!$H$53","v":-31},0.99155031750088496,1.645]
["N",null,null,null,null,null,null,"Renter 20.0 to 24.9 percent",null,"N",{"$f":"'RentalHousingCost-Prior5Yr'!$I$54/1.645","v":13.373860182370821},{"$f":"RentalHousingCost!$I$54/1.645","v":15.19756838905775},20.24416511288354,{"$f":"'RentalHousingCost-Prior5Yr'!$H$54-RentalHousingCost!$H$54","v":13},0.64216034237572495,1.645]
["N",null,null,null,null,null,null,"Renter 25.0 to 29.9 percent",null,"N",{"$f":"'RentalHousingCost-Prior5Yr'!$I$55/1.645","v":13.98176291793313},{"$f":"RentalHousingCost!$I$55/1.645","v":15.19756838905775},20.650805776854746,{"$f":"'RentalHousingCost-Prior5Yr'!$H$55-RentalHousingCost!$H$55","v":0},0,1.645]
["N",null,null,null,null,null,null,"Renter 30.0 to 34.9 percent",null,"N",{"$f":"'RentalHousingCost-Prior5Yr'!$I$56/1.645","v":23.87131175206305},{"$f":"RentalHousingCost!$I$56/1.645","v":35.268838186894314},42.587914621609713,{"$f":"'RentalHousingCost-Prior5Yr'!$H$56-RentalHousingCost!$H$56","v":-18},0.42265511612692452,1.645]
["N",null,null,null,null,null,null,"Renter 35.0 to 39.9 percent",null,"Y",{"$f":"'RentalHousingCost-Prior5Yr'!$I$57/1.645","v":88.984585649526991},{"$f":"RentalHousingCost!$I$57/1.645","v":84.450359130165907},122.6789290808817,{"$f":"'RentalHousingCost-Prior5Yr'!$H$57-RentalHousingCost!$H$57","v":245},1.9970829696310157,1.645]
["N",null,null,null,null,null,null,"Renter 40.0 to 49.9 percent",null,"N",{"$f":"'RentalHousingCost-Prior5Yr'!$I$58/1.645","v":13.98176291793313},{"$f":"RentalHousingCost!$I$58/1.645","v":15.19756838905775},20.650805776854746,{"$f":"'RentalHousingCost-Prior5Yr'!$H$58-RentalHousingCost!$H$58","v":0},0,1.645]
["N",null,null,null,null,null,null,"Renter 50.0 percent or more",null,"N",{"$f":"'RentalHousingCost-Prior5Yr'!$I$59/1.645","v":27.664584201781771},{"$f":"RentalHousingCost!$I$59/1.645","v":38.403867409330303},47.330605859748886,{"$f":"'RentalHousingCost-Prior5Yr'!$H$59-RentalHousingCost!$H$59","v":-18},0.38030360425425369,1.645]
["N",null,null,null,null,null,null,"Renter Not computed",null,"Y",{"$f":"'RentalHousingCost-Prior5Yr'!$I$60/1.645","v":87.879273944000673},{"$f":"RentalHousingCost!$I$60/1.645","v":83.071638194235149},{"$f":"SQRT((K184^2)+(L184^2))","v":120.9283418442452},{"$f":"'RentalHousingCost-Prior5Yr'!$H$60-RentalHousingCost!$H$60","v":245},2.0259932143579555,1.645]
["N",null,null,null,null,null,null,"Renter $10,000 to $19,999:",null,"N",{"$f":"'RentalHousingCost-Prior5Yr'!$K$52/1.645","v":148.93617021276594},{"$f":"RentalHousingCost!$K$52/1.645","v":159.87841945288753},{"$f":"SQRT((K185^2)+(L185^2))","v":218.50192631736553},{"$f":"'RentalHousingCost-Prior5Yr'!$J$52-RentalHousingCost!$J$52","v":347},1.5880866857713465,1.645]
["N",null,null,null,null,null,null,"Renter Less than 20.0 percent",null,"N",{"$f":"'RentalHousingCost-Prior5Yr'!$K$53/1.645","v":46.200607902735563},{"$f":"RentalHousingCost!$K$53/1.645","v":15.19756838905775},48.636018088679904,{"$f":"'RentalHousingCost-Prior5Yr'!$J$53-RentalHousingCost!$J$53","v":69},1.4187016682613629,1.645]
["N",null,null,null,null,null,null,"Renter 20.0 to 24.9 percent",null,"N",{"$f":"'RentalHousingCost-Prior5Yr'!$K$54/1.645","v":20.060790273556229},{"$f":"RentalHousingCost!$K$54/1.645","v":16.413373860182372},25.919763653894034,{"$f":"'RentalHousingCost-Prior5Yr'!$J$54-RentalHousingCost!$J$54","v":12},0.46296718443253204,1.645]
["N",null,null,null,null,null,null,"Renter 25.0 to 29.9 percent",null,"N",{"$f":"'RentalHousingCost-Prior5Yr'!$K$55/1.645","v":70.516717325227958},{"$f":"RentalHousingCost!$K$55/1.645","v":116.10942249240121},135.84552040404213,{"$f":"'RentalHousingCost-Prior5Yr'!$J$55-RentalHousingCost!$J$55","v":-70},0.51529119099253806,1.645]
["N",null,null,null,null,null,null,"Renter 30.0 to 34.9 percent",null,"N",{"$f":"'RentalHousingCost-Prior5Yr'!$K$56/1.645","v":86.65759573925429},{"$f":"RentalHousingCost!$K$56/1.645","v":118.24450481072316},146.59911942860077,{"$f":"'RentalHousingCost-Prior5Yr'!$J$56-RentalHousingCost!$J$56","v":11},7.5034557116541278E-2,1.645]
["N",null,null,null,null,null,null,"Renter 35.0 to 39.9 percent",null,"Y",{"$f":"'RentalHousingCost-Prior5Yr'!$K$57/1.645","v":132.21989308881302},{"$f":"RentalHousingCost!$K$57/1.645","v":96.858957238855282},163.90167090611232,{"$f":"'RentalHousingCost-Prior5Yr'!$J$57-RentalHousingCost!$J$57","v":323},1.9706937593395486,1.645]
["N",null,null,null,null,null,null,"Renter 40.0 to 49.9 percent",null,"N",{"$f":"'RentalHousingCost-Prior5Yr'!$K$58/1.645","v":32.218844984802431},{"$f":"RentalHousingCost!$K$58/1.645","v":43.161094224924014},53.860319594739671,{"$f":"'RentalHousingCost-Prior5Yr'!$J$58-RentalHousingCost!$J$58","v":-1},1.8566544118643998E-2,1.645]
["N",null,null,null,null,null,null,"Renter 50.0 percent or more",null,"N",{"$f":"'RentalHousingCost-Prior5Yr'!$K$59/1.645","v":92.453192867865596},{"$f":"RentalHousingCost!$K$59/1.645","v":125.87550584854029},156.18013908333111,{"$f":"'RentalHousingCost-Prior5Yr'!$J$59-RentalHousingCost!$J$59","v":10},6.402862783125339E-2,1.645]
["N",null,null,null,null,null,null,"Renter Not computed",null,"Y",{"$f":"'RentalHousingCost-Prior5Yr'!$K$60/1.645","v":128.23434078382598},{"$f":"RentalHousingCost!$K$60/1.645","v":86.710884799462335},{"$f":"SQRT((K193^2)+(L193^2))","v":154.79930135167939},{"$f":"'RentalHousingCost-Prior5Yr'!$J$60-RentalHousingCost!$J$60","v":324},2.0930327021562167,1.645]
["N",null,null,null,null,null,null,"Renter $20,000 to $34,999:",null,"N",{"$f":"'RentalHousingCost-Prior5Yr'!$M$52/1.645","v":142.24924012158056},{"$f":"RentalHousingCost!$M$52/1.645","v":205.47112462006078},{"$f":"SQRT((K194^2)+(L194^2))","v":249.90644122911206},{"$f":"'RentalHousingCost-Prior5Yr'!$L$52-RentalHousingCost!$L$52","v":16},6.4023960012024414E-2,1.645]
["N",null,null,null,null,null,null,"Renter Less than 20.0 percent",null,"Y",{"$f":"'RentalHousingCost-Prior5Yr'!$M$53/1.645","v":13.98176291793313},{"$f":"RentalHousingCost!$M$53/1.645","v":47.416413373860181},49.43486574811422,{"$f":"'RentalHousingCost-Prior5Yr'!$L$53-RentalHousingCost!$L$53","v":-85},1.7194342234709614,1.645]
["N",null,null,null,null,null,null,"Renter 20.0 to 24.9 percent",null,"N",{"$f":"'RentalHousingCost-Prior5Yr'!$M$54/1.645","v":43.768996960486319},{"$f":"RentalHousingCost!$M$54/1.645","v":19.45288753799392},47.89718079900841,{"$f":"'RentalHousingCost-Prior5Yr'!$L$54-RentalHousingCost!$L$54","v":31},0.64721972113736126,1.645]
["N",null,null,null,null,null,null,"Renter 25.0 to 29.9 percent",null,"N",{"$f":"'RentalHousingCost-Prior5Yr'!$M$55/1.645","v":55.927051671732521},{"$f":"RentalHousingCost!$M$55/1.645","v":128.26747720364742},139.92991394580662,{"$f":"'RentalHousingCost-Prior5Yr'!$L$55-RentalHousingCost!$L$55","v":-62},0.44307895468307046,1.645]
["N",null,null,null,null,null,null,"Renter 30.0 to 34.9 percent",null,"N",{"$f":"'RentalHousingCost-Prior5Yr'!$M$56/1.645","v":72.381281405574683},{"$f":"RentalHousingCost!$M$56/1.645","v":138.12775535349454},155.94334450981813,{"$f":"'RentalHousingCost-Prior5Yr'!$L$56-RentalHousingCost!$L$56","v":-116},0.74385989581425638,1.645]
["N",null,null,null,null,null,null,"Renter 35.0 to 39.9 percent",null,"N",{"$f":"'RentalHousingCost-Prior5Yr'!$M$57/1.645","v":122.94823433933014},{"$f":"RentalHousingCost!$M$57/1.645","v":140.06453684620914},186.37151823468605,{"$f":"'RentalHousingCost-Prior5Yr'!$L$57-RentalHousingCost!$L$57","v":157},0.84240339665151875,1.645]
["N",null,null,null,null,null,null,"Renter 40.0 to 49.9 percent",null,"N",{"$f":"'RentalHousingCost-Prior5Yr'!$M$58/1.645","v":54.10334346504559},{"$f":"RentalHousingCost!$M$58/1.645","v":41.945288753799389},68.458593490783187,{"$f":"'RentalHousingCost-Prior5Yr'!$L$58-RentalHousingCost!$L$58","v":20},0.29214739859784977,1.645]
["N",null,null,null,null,null,null,"Renter 50.0 percent or more",null,"N",{"$f":"'RentalHousingCost-Prior5Yr'!$M$59/1.645","v":90.367149296686804},{"$f":"RentalHousingCost!$M$59/1.645","v":144.35610152547915},170.30826673900515,{"$f":"'RentalHousingCost-Prior5Yr'!$L$59-RentalHousingCost!$L$59","v":-96},0.56368373560585028,1.645]
["N",null,null,null,null,null,null,"Renter Not computed",null,"N",{"$f":"'RentalHousingCost-Prior5Yr'!$M$60/1.645","v":110.40424155376526},{"$f":"RentalHousingCost!$M$60/1.645","v":133.63632452781491},173.34290809365584,{"$f":"'RentalHousingCost-Prior5Yr'!$L$60-RentalHousingCost!$L$60","v":137},0.79034095773898039,1.645]
["N",null,null,null,null,null,null,"Renter $35,000 to $49,999:",null,"N",{"$f":"'RentalHousingCost-Prior5Yr'!$O$52/1.645","v":129.48328267477203},{"$f":"RentalHousingCost!$O$52/1.645","v":153.19148936170214},200.58303244564686,{"$f":"'RentalHousingCost-Prior5Yr'!$N$52-RentalHousingCost!$N$52","v":113},0.5633577208511904,1.645]
["N",null,null,null,null,null,null,"Renter Less than 20.0 percent",null,"N",{"$f":"'RentalHousingCost-Prior5Yr'!$O$53/1.645","v":63.829787234042556},{"$f":"RentalHousingCost!$O$53/1.645","v":18.237082066869302},66.3839807533178,{"$f":"'RentalHousingCost-Prior5Yr'!$N$53-RentalHousingCost!$N$53","v":101},1.5214513931503291,1.645]
["N",null,null,null,null,null,null,"Renter 20.0 to 24.9 percent",null,"Y",{"$f":"'RentalHousingCost-Prior5Yr'!$O$54/1.645","v":51.063829787234042},{"$f":"RentalHousingCost!$O$54/1.645","v":10.94224924012158},52.223055549944142,{"$f":"'RentalHousingCost-Prior5Yr'!$N$54-RentalHousingCost!$N$54","v":108},2.0680521057737211,1.645]
["N",null,null,null,null,null,null,"Renter 25.0 to 29.9 percent",null,"N",{"$f":"'RentalHousingCost-Prior5Yr'!$O$55/1.645","v":83.890577507598778},{"$f":"RentalHousingCost!$O$55/1.645","v":66.261398176291792},106.9027683590819,{"$f":"'RentalHousingCost-Prior5Yr'!$N$55-RentalHousingCost!$N$55","v":151},1.4124985004391781,1.645]
["N",null,null,null,null,null,null,"Renter 30.0 to 34.9 percent",null,"Y",{"$f":"'RentalHousingCost-Prior5Yr'!$O$56/1.645","v":117.12978035256957},{"$f":"RentalHousingCost!$O$56/1.645","v":69.59092519160636},136.24346705242399,{"$f":"'RentalHousingCost-Prior5Yr'!$N$56-RentalHousingCost!$N$56","v":360},2.6423285298624895,1.645]
["N",null,null,null,null,null,null,"Renter 35.0 to 39.9 percent",null,{"$f":"IF(O208>P208,\"Y\",\"N\")","v":"Y"},{"$f":"'RentalHousingCost-Prior5Yr'!$O$57/1.645","v":70.866963748542659},{"$f":"RentalHousingCost!$O$57/1.645","v":143.8817296440028},160.38727716464038,{"$f":"'RentalHousingCost-Prior5Yr'!$N$57-RentalHousingCost!$N$57","v":-297},1.8517678287855976,1.645]
["N",null,null,null,null,null,null,"Renter 40.0 to 49.9 percent",null,"N",{"$f":"'RentalHousingCost-Prior5Yr'!$O$58/1.645","v":54.10334346504559},{"$f":"RentalHousingCost!$O$58/1.645","v":78.419452887538},95.27214894856462,{"$f":"'RentalHousingCost-Prior5Yr'!$N$58-RentalHousingCost!$N$58","v":-60},0.62977481522320555,1.645]
["N",null,null,null,null,null,null,"Renter 50.0 percent or more",null,"N",{"$f":"'RentalHousingCost-Prior5Yr'!$O$59/1.645","v":171.23312381761514},{"$f":"RentalHousingCost!$O$59/1.645","v":148.01037807914435},226.33571240851489,{"$f":"'RentalHousingCost-Prior5Yr'!$N$59-RentalHousingCost!$N$59","v":300},1.3254647126058832,1.645]
["N",null,null,null,null,null,null,"Renter Not computed",null,"Y",{"$f":"'RentalHousingCost-Prior5Yr'!$O$60/1.645","v":45.770675949133292},{"$f":"RentalHousingCost!$O$60/1.645","v":120.63308639908507},129.02440199826424,{"$f":"'RentalHousingCost-Prior5Yr'!$N$60-RentalHousingCost!$N$60","v":-237},1.8368618364391904,1.645]
["N",null,null,null,null,null,null,"Renter $50,000 to $74,999:",null,"N",{"$f":"'RentalHousingCost-Prior5Yr'!$Q$52/1.645","v":136.77811550151975},{"$f":"RentalHousingCost!$Q$52/1.645","v":136.17021276595744},193.00409250809474,{"$f":"'RentalHousingCost-Prior5Yr'!$P$52-RentalHousingCost!$P$52","v":-218},1.1295097278357293,1.645]
["N",null,null,null,null,null,null,"Renter Less than 20.0 percent",null,"N",{"$f":"'RentalHousingCost-Prior5Yr'!$Q$53/1.645","v":103.34346504559271},{"$f":"RentalHousingCost!$Q$53/1.645","v":97.872340425531917},142.33364601527234,{"$f":"'RentalHousingCost-Prior5Yr'!$P$53-RentalHousingCost!$P$53","v":-125},0.87821821122032917,1.645]
["N",null,null,null,null,null,null,"Renter 20.0 to 24.9 percent",null,"N",{"$f":"'RentalHousingCost-Prior5Yr'!$Q$54/1.645","v":71.124620060790278},{"$f":"RentalHousingCost!$Q$54/1.645","v":41.945288753799389},82.57190095566034,{"$f":"'RentalHousingCost-Prior5Yr'!$P$54-RentalHousingCost!$P$54","v":102},1.2352870506732334,1.645]
["N",null,null,null,null,null,null,"Renter 25.0 to 29.9 percent",null,"Y",{"$f":"'RentalHousingCost-Prior5Yr'!$Q$55/1.645","v":24.924012158054712},{"$f":"RentalHousingCost!$Q$55/1.645","v":70.516717325227958},74.791803056090075,{"$f":"'RentalHousingCost-Prior5Yr'!$P$55-RentalHousingCost!$P$55","v":-182},2.433421746277586,1.645]
["N",null,null,null,null,null,null,"Renter 30.0 to 34.9 percent",null,"N",{"$f":"'RentalHousingCost-Prior5Yr'!$Q$56/1.645","v":127.90539366452171},{"$f":"RentalHousingCost!$Q$56/1.645","v":127.71456334865231},180.7506553786547,{"$f":"'RentalHousingCost-Prior5Yr'!$P$56-RentalHousingCost!$P$56","v":-205},1.1341590965219204,1.645]
["N",null,null,null,null,null,null,"Renter 35.0 to 39.9 percent",null,"N",{"$f":"'RentalHousingCost-Prior5Yr'!$Q$57/1.645","v":32.640471145674887},{"$f":"RentalHousingCost!$Q$57/1.645","v":50.536428255601031},60.160875471066284,{"$f":"'RentalHousingCost-Prior5Yr'!$P$57-RentalHousingCost!$P$57","v":-64},1.0638143062060341,1.645]
["N",null,null,null,null,null,null,"Renter 40.0 to 49.9 percent",null,"N",{"$f":"'RentalHousingCost-Prior5Yr'!$Q$58/1.645","v":21.88449848024316},{"$f":"RentalHousingCost!$Q$58/1.645","v":41.945288753799389},47.311082447682111,{"$f":"'RentalHousingCost-Prior5Yr'!$P$58-RentalHousingCost!$P$58","v":-44},0.93001465457182053,1.645]
["N",null,null,null,null,null,null,"Renter 50.0 percent or more",null,"N",{"$f":"'RentalHousingCost-Prior5Yr'!$Q$59/1.645","v":129.7640975085483},{"$f":"RentalHousingCost!$Q$59/1.645","v":134.42625093327766},186.83987246352038,{"$f":"'RentalHousingCost-Prior5Yr'!$P$59-RentalHousingCost!$P$59","v":-249},1.332691982267415,1.645]
["N",null,null,null,null,null,null,"Renter Not computed",null,"N",{"$f":"'RentalHousingCost-Prior5Yr'!$Q$60/1.645","v":24.217123753242664},{"$f":"RentalHousingCost!$Q$60/1.645","v":28.18729025986536},37.161706299277633,{"$f":"'RentalHousingCost-Prior5Yr'!$P$60-RentalHousingCost!$P$60","v":-20},0.53818842006156131,1.645]
["N",null,null,null,null,null,null,"Renter $75,000 to $99,999:",null,"N",{"$f":"'RentalHousingCost-Prior5Yr'!$S$52/1.645","v":67.477203647416417},{"$f":"RentalHousingCost!$S$52/1.645","v":90.577507598784194},112.94891719216575,{"$f":"'RentalHousingCost-Prior5Yr'!$R$52-RentalHousingCost!$R$52","v":-87},0.77025970821820688,1.645]
["N",null,null,null,null,null,null,"Renter Less than 20.0 percent",null,"N",{"$f":"'RentalHousingCost-Prior5Yr'!$S$53/1.645","v":61.398176291793312},{"$f":"RentalHousingCost!$S$53/1.645","v":88.753799392097264},107.92114231461217,{"$f":"'RentalHousingCost-Prior5Yr'!$R$53-RentalHousingCost!$R$53","v":-91},0.84320827271005361,1.645]
["N",null,null,null,null,null,null,"Renter 20.0 to 24.9 percent",null,"N",{"$f":"'RentalHousingCost-Prior5Yr'!$S$54/1.645","v":28.571428571428569},{"$f":"RentalHousingCost!$S$54/1.645","v":43.161094224924014},51.761052783970825,{"$f":"'RentalHousingCost-Prior5Yr'!$R$54-RentalHousingCost!$R$54","v":-18},0.34775181399660737,1.645]
["N",null,null,null,null,null,null,"Renter 25.0 to 29.9 percent",null,"N",{"$f":"'RentalHousingCost-Prior5Yr'!$S$55/1.645","v":31.003039513677813},{"$f":"RentalHousingCost!$S$55/1.645","v":32.218844984802431},44.712888871570314,{"$f":"'RentalHousingCost-Prior5Yr'!$R$55-RentalHousingCost!$R$55","v":12},0.26837899099894508,1.645]
["N",null,null,null,null,null,null,"Renter 30.0 to 34.9 percent",null,"N",{"$f":"'RentalHousingCost-Prior5Yr'!$S$56/1.645","v":74.479870043234115},{"$f":"RentalHousingCost!$S$56/1.645","v":103.8179701852244},127.7709746970617,{"$f":"'RentalHousingCost-Prior5Yr'!$R$56-RentalHousingCost!$R$56","v":-97},0.75917085417859509,1.645]
["N",null,null,null,null,null,null,"Renter 35.0 to 39.9 percent",null,"N",{"$f":"'RentalHousingCost-Prior5Yr'!$S$57/1.645","v":27.96352583586626},{"$f":"RentalHousingCost!$S$57/1.645","v":27.483658493513225},39.208548319992943,{"$f":"'RentalHousingCost-Prior5Yr'!$R$57-RentalHousingCost!$R$57","v":-8},0.20403713839924792,1.645]
["N",null,null,null,null,null,null,"Renter 40.0 to 49.9 percent",null,"N",{"$f":"'RentalHousingCost-Prior5Yr'!$S$58/1.645","v":13.98176291793313},{"$f":"RentalHousingCost!$S$58/1.645","v":7.9027355623100304},16.060601597109915,{"$f":"'RentalHousingCost-Prior5Yr'!$R$58-RentalHousingCost!$R$58","v":-8},0.4981133459807377,1.645]
["N",null,null,null,null,null,null,"Renter 50.0 percent or more",null,"N",{"$f":"'RentalHousingCost-Prior5Yr'!$S$59/1.645","v":75.780873153786857},{"$f":"RentalHousingCost!$S$59/1.645","v":104.11831809411801},128.77641437273471,{"$f":"'RentalHousingCost-Prior5Yr'!$R$59-RentalHousingCost!$R$59","v":-105},0.8153666998064143,1.645]
["N",null,null,null,null,null,null,"Renter Not computed",null,"N",{"$f":"'RentalHousingCost-Prior5Yr'!$S$60/1.645","v":24.217123753242664},{"$f":"RentalHousingCost!$S$60/1.645","v":26.322960601350719},35.768244822749303,{"$f":"'RentalHousingCost-Prior5Yr'!$R$60-RentalHousingCost!$R$60","v":0},0,1.645]
["N",null,null,null,null,null,null,"Renter $100,000 or more:",null,"Y",{"$f":"'RentalHousingCost-Prior5Yr'!$U$52/1.645","v":83.890577507598778},{"$f":"RentalHousingCost!$U$52/1.645","v":167.78115501519756},187.58503397870575,{"$f":"'RentalHousingCost-Prior5Yr'!$T$52-RentalHousingCost!$T$52","v":-521},2.7774070721395758,1.645]
[{"$f":"IF(F231>G231,\"Y\",\"N\")","v":"N"},null,null,null,null,null,null,"Renter Less than 20.0 percent",null,"Y",{"$f":"'RentalHousingCost-Prior5Yr'!$U$53/1.645","v":83.890577507598778},{"$f":"RentalHousingCost!$U$53/1.645","v":160.48632218844983},181.08972528592935,{"$f":"'RentalHousingCost-Prior5Yr'!$T$53-RentalHousingCost!$T$53","v":-472},{"$f":"ABS((N231/M231))","v":2.6064427413247304},1.645]
["N",null,null,null,null,null,null,"Renter 20.0 to 24.9 percent",null,"N",{"$f":"'RentalHousingCost-Prior5Yr'!$U$54/1.645","v":13.98176291793313},{"$f":"RentalHousingCost!$U$54/1.645","v":35.258358662613979},37.929428546641937,{"$f":"'RentalHousingCost-Prior5Yr'!$T$54-RentalHousingCost!$T$54","v":-37},0.97549584630575137,1.645]
["N",null,null,null,null,null,null,"Renter 25.0 to 29.9 percent",null,"N",{"$f":"'RentalHousingCost-Prior5Yr'!$U$55/1.645","v":13.98176291793313},{"$f":"RentalHousingCost!$U$55/1.645","v":15.19756838905775},20.650805776854746,{"$f":"'RentalHousingCost-Prior5Yr'!$T$55-RentalHousingCost!$T$55","v":0},0,1.645]
["N",null,null,null,null,null,null,"Renter 30.0 to 34.9 percent",null,"Y",{"$f":"'RentalHousingCost-Prior5Yr'!$U$56/1.645","v":86.189375117499367},{"$f":"RentalHousingCost!$U$56/1.645","v":165.01508279577519},186.16816573528772,{"$f":"'RentalHousingCost-Prior5Yr'!$T$56-RentalHousingCost!$T$56","v":-509},2.7340872054556655,1.645]
["N",null,null,null,null,null,null,"Renter 35.0 to 39.9 percent",null,"N",{"$f":"'RentalHousingCost-Prior5Yr'!$U$57/1.645","v":27.96352583586626},{"$f":"RentalHousingCost!$U$57/1.645","v":30.3951367781155},41.301611553709492,{"$f":"'RentalHousingCost-Prior5Yr'!$T$57-RentalHousingCost!$T$57","v":0},0,1.645]
["N",null,null,null,null,null,null,"Renter 40.0 to 49.9 percent",null,"N",{"$f":"'RentalHousingCost-Prior5Yr'!$U$58/1.645","v":13.98176291793313},{"$f":"RentalHousingCost!$U$58/1.645","v":15.19756838905775},20.650805776854746,{"$f":"'RentalHousingCost-Prior5Yr'!$T$58-RentalHousingCost!$T$58","v":0},0,1.645]
["N",null,null,null,null,null,null,"Renter 50.0 percent or more",null,"Y",{"$f":"'RentalHousingCost-Prior5Yr'!$U$59/1.645","v":87.316081436573342},{"$f":"RentalHousingCost!$U$59/1.645","v":165.71343830551774},187.3100149817808,{"$f":"'RentalHousingCost-Prior5Yr'!$T$59-RentalHousingCost!$T$59","v":-509},2.7174201019070403,1.645]
["N",null,null,null,null,null,null,"Renter Not computed",null,"N",{"$f":"'RentalHousingCost-Prior5Yr'!$U$60/1.645","v":24.217123753242664},{"$f":"RentalHousingCost!$U$60/1.645","v":26.322960601350719},35.768244822749303,{"$f":"'RentalHousingCost-Prior5Yr'!$T$60-RentalHousingCost!$T$60","v":0},0,1.645]
[null,null,null,null,null,null,null,"Total Owner Housing",null,"Y",{"$f":"OwnerHousingCostPrior5Year!$F$50/1.645","v":240.12158054711247},{"$f":"OwnerHousingCost!$F$50/1.645","v":283.28267477203644},371.35891973997713,{"$f":"OwnerHousingCostPrior5Year!$E$50-OwnerHousingCost!$E$50","v":-625},1.6830079116926033,1.645]
[null,null,null,null,null,null,null,"Monthly Costs Less than 20% of HH Income",null,"Y",{"$f":"OwnerHousingCostPrior5Year!$F$51/1.645","v":320.80047422543561},{"$f":"OwnerHousingCost!$F$51/1.645","v":311.56127194922664},447.19500270227115,{"$f":"OwnerHousingCostPrior5Year!$E$51-OwnerHousingCost!$E$51","v":-792},1.7710394687198452,1.645]
[null,null,null,null,null,null,null,"Monthly Costs 20% to 29.9% of HH Income",null,"N",{"$f":"OwnerHousingCostPrior5Year!$F$52/1.645","v":180.50719524348057},{"$f":"OwnerHousingCost!$F$52/1.645","v":191.08849825326499},262.86434086683585,{"$f":"OwnerHousingCostPrior5Year!$E$52-OwnerHousingCost!$E$52","v":302},1.1488815828122911,1.645]
[null,null,null,null,null,null,null,"Monthly Costs Less Than 30% of HH Income",null,"N",{"$f":"OwnerHousingCostPrior5Year!$F$53/1.645","v":368.09753027958828},{"$f":"OwnerHousingCost!$F$53/1.645","v":365.49314678022074},518.73021132496262,{"$f":"OwnerHousingCostPrior5Year!$E$53-OwnerHousingCost!$E$53","v":-490},0.94461434730863525,1.645]
[null,null,null,null,null,null,null,"Monthly Costs 30% or More of HH Income",null,"N",{"$f":"OwnerHousingCostPrior5Year!$F$54/1.645","v":210.21923515248687},{"$f":"OwnerHousingCost!$F$54/1.645","v":240.65348344391168},319.54064830907765,{"$f":"OwnerHousingCostPrior5Year!$E$54-OwnerHousingCost!$E$54","v":-151},0.47255333804650834,1.645]
[null,null,null,null,null,null,null,"Monthly Costs 35% or More of HH Income",null,"N",{"$f":"OwnerHousingCostPrior5Year!$F$56/1.645","v":171.97524338078466},{"$f":"OwnerHousingCost!$F$56/1.645","v":213.07576229119749},273.81885401092273,{"$f":"OwnerHousingCostPrior5Year!$E$56-OwnerHousingCost!$E$56","v":24},8.7649187221573249E-2,1.645]
[null,null,null,null,null,null,null,"Monthly Costs 50% or More of HH Income",null,"N",{"$f":"OwnerHousingCostPrior5Year!$F$57/1.645","v":115.19075133609489},{"$f":"OwnerHousingCost!$F$57/1.645","v":143.9587610029489},184.37199912914707,{"$f":"OwnerHousingCostPrior5Year!$E$57-OwnerHousingCost!$E$57","v":5},2.7119085455582923E-2,1.645]
[null,null,null,null,null,null,null,"Percent not computed",null,"N",{"$f":"OwnerHousingCostPrior5Year!$F$58/1.645","v":117.62564495997883},{"$f":"OwnerHousingCost!$F$58/1.645","v":21.492607330898103},119.57309280156286,{"$f":"OwnerHousingCostPrior5Year!$E$58-OwnerHousingCost!$E$58","v":16},0.13380936818747965,1.645]
[null,null,null,null,null,null,null,"Owner Less than $20,000:",null,"N",{"$f":"OwnerHousingCostPrior5Year!$I$50/1.645","v":111.85410334346504},{"$f":"OwnerHousingCost!$I$50/1.645","v":114.28571428571428},159.91424240688031,{"$f":"OwnerHousingCostPrior5Year!$H$50-OwnerHousingCost!$H$50","v":42},0.26264077150261977,1.645]
[null,null,null,null,null,null,null,"Owner Less than 20.0 percent",null,"N",{"$f":"OwnerHousingCostPrior5Year!$I$51/1.645","v":19.45288753799392},{"$f":"OwnerHousingCost!$I$51/1.645","v":13.98176291793313},23.956304553480887,{"$f":"OwnerHousingCostPrior5Year!$H$51-OwnerHousingCost!$H$51","v":6},0.25045599109851818,1.645]
[null,null,null,null,null,null,null,"Owner 20.0 to 24.9 percent",null,"N",{"$f":"OwnerHousingCostPrior5Year!$I$52/1.645","v":20.668693009118542},{"$f":"OwnerHousingCost!$I$52/1.645","v":24.316109422492399},31.913446196733585,{"$f":"OwnerHousingCostPrior5Year!$H$52-OwnerHousingCost!$H$52","v":11},0.34468229887143542,1.645]
[null,null,null,null,null,null,null,"Owner 25.0 to 29.9 percent",null,"N",{"$f":"OwnerHousingCostPrior5Year!$I$53/1.645","v":28.38326451046505},{"$f":"OwnerHousingCost!$I$53/1.645","v":28.049293605007481},39.904543300367919,{"$f":"OwnerHousingCostPrior5Year!$H$53-OwnerHousingCost!$H$53","v":17},0.42601665359350849,1.645]
[null,null,null,null,null,null,null,"Owner 30.0 or more",null,"N",{"$f":"OwnerHousingCostPrior5Year!$I$54/1.645","v":112.46200607902736},{"$f":"OwnerHousingCost!$I$54/1.645","v":111.24620060790274},158.18792609113038,{"$f":"OwnerHousingCostPrior5Year!$H$54-OwnerHousingCost!$H$54","v":25},0.15803987458308144,1.645]
[null,null,null,null,null,null,null,"Owner $20,000 to $34,999:",null,"N",{"$f":"OwnerHousingCostPrior5Year!$J$50/1.645","v":669.90881458966567},{"$f":"OwnerHousingCost!$J$50/1.645","v":541.03343465045589},861.10103778511393,{"$f":"OwnerHousingCostPrior5Year!$K$50-OwnerHousingCost!$K$50","v":-20},2.3226078151575704E-2,1.645]
[null,null,null,null,null,null,null,"Owner Less than 20.0 percent",null,"N",{"$f":"OwnerHousingCostPrior5Year!$J$51/1.645","v":81.458966565349542},{"$f":"OwnerHousingCost!$J$51/1.645","v":23.70820668693009},84.838919713801943,{"$f":"OwnerHousingCostPrior5Year!$K$51-OwnerHousingCost!$K$51","v":41},0.48326876554193032,1.645]
[null,null,null,null,null,null,null,"Owner 20.0 to 24.9 percent",null,"N",{"$f":"OwnerHousingCostPrior5Year!$J$52/1.645","v":172.64437689969606},{"$f":"OwnerHousingCost!$J$52/1.645","v":98.480243161094222},198.75723676926219,{"$f":"OwnerHousingCostPrior5Year!$K$52-OwnerHousingCost!$K$52","v":2},1.0062526690898835E-2,1.645]
[null,null,null,null,null,null,null,"Owner 25.0 to 29.9 percent",null,"N",{"$f":"OwnerHousingCostPrior5Year!$J$53/1.645","v":254.10334346504558},{"$f":"OwnerHousingCost!$J$53/1.645","v":122.18844984802432},281.9548304895273,{"$f":"OwnerHousingCostPrior5Year!$K$53-OwnerHousingCost!$K$53","v":22.609204221130227},8.0187327104403003E-2,1.645]
[null,null,null,null,null,null,null,"Owner 30.0 or more",null,"N",{"$f":"OwnerHousingCostPrior5Year!$J$54/1.645","v":415.80547112462006},{"$f":"OwnerHousingCost!$J$54/1.645","v":418.84498480243161},590.1909107325497,{"$f":"OwnerHousingCostPrior5Year!$K$54-OwnerHousingCost!$K$54","v":-7},1.186056896625457E-2,1.645]
[null,null,null,null,null,null,null,"Owner $35,000 to $49,999:",null,"Y",{"$f":"OwnerHousingCostPrior5Year!$M$50/1.645","v":144.68085106382978},{"$f":"OwnerHousingCost!$M$50/1.645","v":132.52279635258358},196.20101992003617,{"$f":"OwnerHousingCostPrior5Year!$L$50-OwnerHousingCost!$L$50","v":335},1.7074325104759029,1.645]
[null,null,null,null,null,null,null,"Owner Less than 20.0 percent",null,"Y",{"$f":"OwnerHousingCostPrior5Year!$M$51/1.645","v":77.81155015197568},{"$f":"OwnerHousingCost!$M$51/1.645","v":44.984802431610944},{"$f":"SQRT((K258^2)+(L258^2))","v":89.879195517452743},{"$f":"OwnerHousingCostPrior5Year!$L$51-OwnerHousingCost!$L$51","v":279},3.1041666360467564,1.645]
[null,null,null,null,null,null,null,"Owner 20.0 to 24.9 percent",null,"N",{"$f":"OwnerHousingCostPrior5Year!$M$52/1.645","v":48.024316109422493},{"$f":"OwnerHousingCost!$M$52/1.645","v":63.829787234042556},79.878511979886554,{"$f":"OwnerHousingCostPrior5Year!$L$52-OwnerHousingCost!$L$52","v":-123},1.5398383989798339,1.645]
[null,null,null,null,null,null,null,"Owner 25.0 to 29.9 percent",null,"N",{"$f":"OwnerHousingCostPrior5Year!$M$53/1.645","v":91.438352319096182},{"$f":"OwnerHousingCost!$M$53/1.645","v":78.088886457384007},120.24494360672874,{"$f":"OwnerHousingCostPrior5Year!$L$53-OwnerHousingCost!$L$53","v":156},1.2973518496562417,1.645]
[null,null,null,null,null,null,null,"Owner 30.0 or more",null,"N",{"$f":"OwnerHousingCostPrior5Year!$M$54/1.645","v":105.16717325227964},{"$f":"OwnerHousingCost!$M$54/1.645","v":98.480243161094222},144.07807821783038,{"$f":"OwnerHousingCostPrior5Year!$L$54-OwnerHousingCost!$L$54","v":179},1.2423819238439,1.645]
[null,null,null,null,null,null,null,"Owner $50,000 to $74,999:",null,"N",{"$f":"OwnerHousingCostPrior5Year!$O$50/1.645","v":157.44680851063831},{"$f":"OwnerHousingCost!$O$50/1.645","v":148.93617021276594},216.72904814037179,{"$f":"OwnerHousingCostPrior5Year!$N$50-OwnerHousingCost!$N$50","v":318},1.4672698594331328,1.645]
[null,null,null,null,null,null,null,"Owner Less than 20.0 percent",null,"Y",{"$f":"OwnerHousingCostPrior5Year!$O$51/1.645","v":124.62006079027356},{"$f":"OwnerHousingCost!$O$51/1.645","v":103.34346504559271},161.89512444481187,{"$f":"OwnerHousingCostPrior5Year!$N$51-OwnerHousingCost!$N$51","v":281},1.7356915531807109,1.645]
[null,null,null,null,null,null,null,"Owner 20.0 to 24.9 percent",null,"N",{"$f":"OwnerHousingCostPrior5Year!$O$52/1.645","v":71.732522796352583},{"$f":"OwnerHousingCost!$O$52/1.645","v":71.732522796352583},101.44510660183904,{"$f":"OwnerHousingCostPrior5Year!$N$52-OwnerHousingCost!$N$52","v":139},1.3701991614594069,1.645]
[null,null,null,null,null,null,null,"Owner 25.0 to 29.9 percent",null,"Y",{"$f":"OwnerHousingCostPrior5Year!$O$53/1.645","v":143.79052256007947},{"$f":"OwnerHousingCost!$O$53/1.645","v":125.79915180301846},191.05271778349453,{"$f":"OwnerHousingCostPrior5Year!$N$53-OwnerHousingCost!$N$53","v":420},2.1983461155258412,1.645]
[null,null,null,null,null,null,null,"Owner 30.0 or more",null,"N",{"$f":"OwnerHousingCostPrior5Year!$O$54/1.645","v":79.027355623100306},{"$f":"OwnerHousingCost!$O$54/1.645","v":100.91185410334346},128.17380869489071,{"$f":"OwnerHousingCostPrior5Year!$N$54-OwnerHousingCost!$N$54","v":-102},0.79579440635024168,1.645]
[null,null,null,null,null,null,null,"Owner $75,000 or more",null,"Y",{"$f":"OwnerHousingCostPrior5Year!$Q$50/1.645","v":221.88449848024317},{"$f":"OwnerHousingCost!$Q$50/1.645","v":250.45592705167172},334.60559179598499,{"$f":"OwnerHousingCostPrior5Year!$P$50-OwnerHousingCost!$P$50","v":-1548},4.6263422906089486,1.645]
[null,null,null,null,null,null,null,"Owner Less than 20.0 percent",null,"Y",{"$f":"OwnerHousingCostPrior5Year!$Q$51/1.645","v":196.35258358662614},{"$f":"OwnerHousingCost!$Q$51/1.645","v":218.23708206686931},293.56730245414673,{"$f":"OwnerHousingCostPrior5Year!$P$51-OwnerHousingCost!$P$51","v":-1453},4.949461291680973,1.645]
[null,null,null,null,null,null,null,"Owner 20.0 to 24.9 percent",null,"N",{"$f":"OwnerHousingCostPrior5Year!$Q$52/1.645","v":162.91793313069908},{"$f":"OwnerHousingCost!$Q$52/1.645","v":134.34650455927053},211.16637095634579,{"$f":"OwnerHousingCostPrior5Year!$P$52-OwnerHousingCost!$P$52","v":153},0.72454718669020235,1.645]
[null,null,null,null,null,null,null,"Owner 25.0 to 29.9 percent",null,"Y",{"$f":"OwnerHousingCostPrior5Year!$Q$53/1.645","v":255.14033396686213},{"$f":"OwnerHousingCost!$Q$53/1.645","v":256.2740862365049},361.6254931459859,{"$f":"OwnerHousingCostPrior5Year!$P$53-OwnerHousingCost!$P$53","v":-1300},3.5948793009324658,1.645]
[null,null,null,null,null,null,null,"Owner 30.0 or more",null,"Y",{"$f":"OwnerHousingCostPrior5Year!$Q$54/1.645","v":45.59270516717325},{"$f":"OwnerHousingCost!$Q$54/1.645","v":96.048632218844986},106.32043319875881,{"$f":"OwnerHousingCostPrior5Year!$P$54-OwnerHousingCost!$P$54","v":-248},2.3325713838691842,1.645]

{"sheet":"OwnerHousingCost","index":70,"n_rows":112,"n_cols":17,"rows_kept":112,"cut":false,"hidden":true,"merged":[]}
[]
[null,null,"HIDE THIS COLUMN",{"$f":"CntyDataLink!$A35","v":"Rochester"}]
[null,null,null,"OWNER HOUSING COST CHARACTERISTICS"]
[]
[]
[]
[]
[]
[]
[]
[]
[]
[]
[]
[]
[]
[]
[]
[]
[]
[]
[]
[]
[]
[]
[]
[]
[]
[]
[]
[]
[]
[]
[]
[]
[]
[null,null,null,"Income in 2022 Inflation Adjusted Dollars"]
[null,null,null,"Source: 2018-2022 American Community Survey Table B25106"]
[null,null,null,"Data from the American Community Survey are estimates."]
[]
[]
[null,null,null,{"$f":"CntyDataLink!A$35","v":"Rochester"}]
[]
[null,null,null,{"$f":"D3","v":"OWNER HOUSING COST CHARACTERISTICS"}]
[]
[null,null,null,"Owner Households by "]
[null,null,null,"Selected Monthly Housing Costs as a Percent of 2022 Household Income",null,null,null,"By Household Income"]
[null,null,"H73RenterOccHU",null,"Specified Owner Occ Housing Units","Margin of Error Owner Occ Housing Units",null,"Less than $20,000",{"$f":"\"Margin of Error \"&H48","v":"Margin of Error Less than $20,000"},"$20,000 to $34,999",{"$f":"\"Margin of Error \"&J48","v":"Margin of Error $20,000 to $34,999"},"$35,000 to $49,999",{"$f":"\"Margin of Error \"&L48","v":"Margin of Error $35,000 to $49,999"},"$50,000 to $74,999",{"$f":"\"Margin of Error \"&N48","v":"Margin of Error $50,000 to $74,999"},"$75,000 or More",{"$f":"\"Margin of Error \"&P48","v":"Margin of Error $75,000 or More"}]
[]
[null,null,null,"Total Households",{"$f":"CntyDataLink!$BF144","v":8933},{"$f":"CntyDataLink!$BG$144","v":466},null,{"$f":"CntyDataLink!$BZ$144","v":610},{"$f":"CntyDataLink!$CA$144","v":188},{"$f":"CntyDataLink!$CH$144","v":890},{"$f":"CntyDataLink!$CI$144","v":237},{"$f":"CntyDataLink!$CP$144","v":798},{"$f":"CntyDataLink!$CQ$144","v":218},{"$f":"CntyDataLink!$CX$144","v":1259},{"$f":"CntyDataLink!$CY$144","v":245},{"$f":"CntyDataLink!$DF$144","v":5376},{"$f":"CntyDataLink!$DG$144","v":412}]
[null,null,null,"Monthly Costs Less than 20% of HH Income",{"$f":"CntyDataLink!$BH$144","v":4480},{"$f":"CntyDataLink!$BI$144","v":512.51829235647779},null,{"$f":"CntyDataLink!$CB$144","v":12},{"$f":"CntyDataLink!$CC$144","v":23},{"$f":"CntyDataLink!CJ$144","v":39},{"$f":"CntyDataLink!CK$144","v":42},{"$f":"CntyDataLink!CR$144","v":95},{"$f":"CntyDataLink!CS$144","v":74},{"$f":"CntyDataLink!CZ$144","v":464},{"$f":"CntyDataLink!DA$144","v":170},{"$f":"CntyDataLink!DH$144","v":3870},{"$f":"CntyDataLink!DI$144","v":359}]
[null,null,null,"Monthly Costs 20% to 29.9% of HH Income",{"$f":"CntyDataLink!$BJ$144","v":1847},{"$f":"CntyDataLink!$BK$144","v":314.34057962662092},null,{"$f":"CntyDataLink!$CD$144","v":24},{"$f":"CntyDataLink!$CE$144","v":40},{"$f":"CntyDataLink!CL$144","v":162},{"$f":"CntyDataLink!CM$144","v":103},{"$f":"CntyDataLink!CT$144","v":255},{"$f":"CntyDataLink!CU$144","v":105},{"$f":"CntyDataLink!DB$144","v":298},{"$f":"CntyDataLink!DC$144","v":118},{"$f":"CntyDataLink!DJ$144","v":1108},{"$f":"CntyDataLink!DK$144","v":221}]
[null,null,null,"Monthly Costs Less Than 30% of HH Income",{"$f":"CntyDataLink!$BL$144","v":6327},{"$f":"CntyDataLink!$BM$144","v":601.23622645346313},null,{"$f":"H52+H51","v":36},{"$f":"SQRT((I52^2)+(I51^2))","v":46.141087980237309},{"$f":"J52+J51","v":201},{"$f":"SQRT((K52^2)+(K51^2))","v":111.23398761170077},{"$f":"L52+L51","v":350},{"$f":"SQRT((M52^2)+(M51^2))","v":128.4562182223967},{"$f":"N52+N51","v":762},{"$f":"SQRT((O52^2)+(O51^2))","v":206.93960471596537},{"$f":"P52+P51","v":4978},{"$f":"SQRT((Q52^2)+(Q51^2))","v":421.57087185905056}]
[null,null,null,"Monthly Costs 30% or More of HH Income",{"$f":"CntyDataLink!$BN$144","v":2606},{"$f":"CntyDataLink!$BO$144","v":395.87498026523474},null,{"$f":"CntyDataLink!$CF$144","v":574},{"$f":"CntyDataLink!$CG$144","v":183},{"$f":"CntyDataLink!CN$144","v":689},{"$f":"CntyDataLink!CO$144","v":200},{"$f":"CntyDataLink!CV$144","v":448},{"$f":"CntyDataLink!CW$144","v":162},{"$f":"CntyDataLink!DD$144","v":497},{"$f":"CntyDataLink!DE$144","v":166},{"$f":"CntyDataLink!$DL$144","v":398},{"$f":"CntyDataLink!$DM$144","v":158}]
[]
[null,null,null,"Monthly Costs 35% or More of HH Income",{"$f":"CntyDataLink!$BT$144","v":1957},{"$f":"CntyDataLink!$BU$144","v":350.5096289690199},null,"NA","NA","NA","NA","NA","NA","NA","NA","NA","NA"]
[null,null,null,"Monthly Costs 50% or More of HH Income",{"$f":"CntyDataLink!$BV$144","v":958},{"$f":"CntyDataLink!$BW$144","v":236.81216184985095},null,"NA","NA","NA","NA","NA","NA","NA","NA","NA","NA"]
[null,null,null,"Percent not computed",{"$f":"CntyDataLink!$BX$144","v":0},{"$f":"CntyDataLink!$BY$144","v":35.355339059327378},null,"NA","NA","NA","NA","NA","NA","NA","NA","NA","NA"]
[]
[null,null,null,"Percent of Owner Households Paying ",null,null,null,"By Household Income"]
[null,null,null,{"$f":"D53","v":"Monthly Costs Less Than 30% of HH Income"},{"$f":"E53/E$50","v":0.70827269674241577},null,null,{"$f":"H53/H$50","v":5.9016393442622953E-2},null,{"$f":"J53/J$50","v":0.2258426966292135},null,{"$f":"L53/L$50","v":0.43859649122807015},null,{"$f":"N53/N$50","v":0.60524225575853852},null,{"$f":"P53/P$50","v":0.92596726190476186}]
[null,null,null,{"$f":"D54","v":"Monthly Costs 30% or More of HH Income"},{"$f":"E54/E$50","v":0.29172730325758423},null,null,{"$f":"H54/H50","v":0.94098360655737701},null,{"$f":"J54/J50","v":0.77415730337078648},null,{"$f":"L54/L50","v":0.56140350877192979},null,{"$f":"N54/N50","v":0.39475774424146148},null,{"$f":"P54/P50","v":7.4032738095238096E-2}]
[]
[null,null,null,"Monthly Costs 35% or More of HH Income",{"$f":"E56/E$50","v":0.21907533863203851},null,null,"NA","NA","NA","NA","NA","NA","NA","NA","NA","NA"]
[null,null,null,"Monthly Costs 50% or More of HH Income",{"$f":"E57/E$50","v":0.10724280756744654},null,null,"NA","NA","NA","NA","NA","NA","NA","NA","NA","NA"]
[null,null,null,"Percent not computed",{"$f":"E58/$E$50","v":0},null,null,"NA","NA","NA","NA","NA","NA","NA","NA","NA","NA"]
[]
[null,null,null,{"$f":"D37","v":"Income in 2022 Inflation Adjusted Dollars"}]
[null,null,null,"Source: 2018-2022 American Community Survey Table B25091; B25106",null,null,null,"NA indicates that the American Community Survey does not provide that data."]
[null,null,null,"Data from the American Community Survey are estimates."]
[]
[]
[null,null,"H62ROHUGRent250to299",{"$f":"D3","v":"OWNER HOUSING COST CHARACTERISTICS"}]
[null,null,"H62ROHUGRent300to349"]
[null,null,"H62ROHUGRent350to399","Value of Owner Occupied Housing Units"]
[null,null,"H62ROHUGRent400to449"]
[null,null,"H62ROHUGRent450to499","Owner Occupied Housing Units",{"$f":"CntyDataLink!$B$144","v":8933},{"$f":"CntyDataLink!$C$144","v":466}]
[null,null,"H62ROHUGRent500to549"]
[null,null,"H62ROHUGRent550to599","Value","Housing Units","Margin of Error"]
[null,null,"H62ROHUGRent600to649","Less than $10,000",{"$f":"CntyDataLink!$D$144","v":68},{"$f":"CntyDataLink!$E$144","v":44}]
[null,null,"H62ROHUGRent650to699","$10,000 to $14,999",{"$f":"CntyDataLink!$F$144","v":15},{"$f":"CntyDataLink!$G$144","v":24}]
[null,null,"H62ROHUGRent700to749","$15,000 to $19,999",{"$f":"CntyDataLink!$H$144","v":2},{"$f":"CntyDataLink!$I$144","v":7}]
[null,null,"H62ROHUGRent750to799","$20,000 to $24,999",{"$f":"CntyDataLink!$J$144","v":146},{"$f":"CntyDataLink!$K$144","v":98}]
[null,null,"H62ROHUGRent800to899","$25,000 to $29,999",{"$f":"CntyDataLink!$L$144","v":161},{"$f":"CntyDataLink!$M$144","v":89}]
[null,null,"H62ROHUGRent900to999","$30,000 to $34,999",{"$f":"CntyDataLink!$N$144","v":157},{"$f":"CntyDataLink!$O$144","v":92}]
[null,null,"H62ROHUGRent1000to1249","$35,000 to $39,999",{"$f":"CntyDataLink!$P$144","v":20},{"$f":"CntyDataLink!$Q$144","v":29}]
[null,null,"H62ROHUGRent1250to1499","$40,000 to $49,999",{"$f":"CntyDataLink!$R$144","v":127},{"$f":"CntyDataLink!$S$144","v":78}]
[null,null,"H62ROHUGRent1500to1999","$50,000 to $59,999",{"$f":"CntyDataLink!$T$144","v":239},{"$f":"CntyDataLink!$U$144","v":164}]
[null,null,"H62ROHUGRent2000>","$60,000 to $69,999",{"$f":"CntyDataLink!$V$144","v":141},{"$f":"CntyDataLink!$W$144","v":97}]
[null,null,"H62ROHUNoGRent","$70,000 to $79,999",{"$f":"CntyDataLink!$X$144","v":73},{"$f":"CntyDataLink!$Y$144","v":54}]
[null,null,"H63MedianGrossRnt","$80,000 to $89,999",{"$f":"CntyDataLink!$Z$144","v":118},{"$f":"CntyDataLink!$AA$144","v":91}]
[null,null,null,"$90,000 to $99,999",{"$f":"CntyDataLink!$AB$144","v":96},{"$f":"CntyDataLink!$AC$144","v":62}]
[null,null,null,"$100,000 to $124,999",{"$f":"CntyDataLink!$AD$144","v":305},{"$f":"CntyDataLink!$AE$144","v":194}]
[null,null,null,"$125,000 to $149,999",{"$f":"CntyDataLink!$AF$144","v":281},{"$f":"CntyDataLink!$AG$144","v":110}]
[null,null,null,"$150,000 to $174,999",{"$f":"CntyDataLink!$AH$144","v":824},{"$f":"CntyDataLink!$AI$144","v":234}]
[null,null,null,"$175,000 to $199,999",{"$f":"CntyDataLink!$AJ$144","v":437},{"$f":"CntyDataLink!$AK$144","v":142}]
[null,null,null,"$200,000 to $249,999",{"$f":"CntyDataLink!$AL$144","v":1634},{"$f":"CntyDataLink!$AM$144","v":295}]
[null,null,null,"$250,000 to $299,999",{"$f":"CntyDataLink!$AN$144","v":1650},{"$f":"CntyDataLink!$AO$144","v":283}]
[null,null,null,"$300,000 to $399,999",{"$f":"CntyDataLink!$AP$144","v":1493},{"$f":"CntyDataLink!$AQ$144","v":253}]
[null,null,null,"$400,000 to $499,999",{"$f":"CntyDataLink!$AR$144","v":628},{"$f":"CntyDataLink!$AS$144","v":186}]
[null,null,null,"$500,000 to $749,999",{"$f":"CntyDataLink!$AT$144","v":200},{"$f":"CntyDataLink!$AU$144","v":92}]
[null,null,null,"$750,000 to $999,999",{"$f":"CntyDataLink!$AV$144","v":18},{"$f":"CntyDataLink!$AW$144","v":20}]
[null,null,null,"$1,000,000 to $1,499,999",{"$f":"CntyDataLink!$AX$144","v":52},{"$f":"CntyDataLink!$AY$144","v":53}]
[null,null,null,"$1,500,000 to $1,999,999",{"$f":"CntyDataLink!$AZ$144","v":9},{"$f":"CntyDataLink!$BA$144","v":18}]
[null,null,null,"$2,000,000 or more",{"$f":"CntyDataLink!$BB$144","v":39},{"$f":"CntyDataLink!$BC$144","v":43}]
[]
[null,null,null,"Median Value",{"$f":"CntyDataLink!$BD$144","v":238400},{"$f":"CntyDataLink!$BE$144","v":10945}]
[]
[]
[]
[null,null,null,"Source: 2018-2022 American Community Survey Tables B25075 and B25077"]
[null,null,null,"Data from the American Community Survey are estimates."]

{"sheet":"OwnerHousingCostPrior5Year","index":71,"n_rows":112,"n_cols":17,"rows_kept":112,"cut":false,"hidden":true,"merged":[]}
[]
[null,null,"HIDE THIS COLUMN",{"$f":"CntyDataLink!$A35","v":"Rochester"}]
[null,null,null,"OWNER HOUSING COST CHARACTERISTICS"]
[]
[]
[]
[]
[]
[]
[]
[]
[]
[]
[]
[]
[]
[]
[]
[]
[]
[]
[]
[]
[]
[]
[]
[]
[]
[]
[]
[]
[]
[]
[]
[]
[]
[null,null,null,"Income in 2017 Inflation Adjusted Dollars"]
[null,null,null,"Source: 2013-2017 American Community Survey Table B25106"]
[null,null,null,"Data from the American Community Survey are estimates."]
[]
[]
[null,null,null,{"$f":"CntyDataLinkPrior5YearEstimates!$A$108","v":"Rochester"}]
[]
[null,null,null,{"$f":"D3","v":"OWNER HOUSING COST CHARACTERISTICS"}]
[]
[null,null,null,"Owner Households by "]
[null,null,null,"Selected Monthly Housing Costs as a Percent of 2017 Household Income",null,null,null,"By Household Income"]
[null,null,"H73RenterOccHU",null,"Specified Owner Occ Housing Units","Margin of Error Owner Occ Housing Units",null,"Less than $20,000",{"$f":"\"Margin of Error \"&H48","v":"Margin of Error Less than $20,000"},"$20,000 to $34,999",{"$f":"\"Margin of Error \"&J48","v":"Margin of Error $20,000 to $34,999"},"$35,000 to $49,999",{"$f":"\"Margin of Error \"&L48","v":"Margin of Error $35,000 to $49,999"},"$50,000 to $74,999",{"$f":"\"Margin of Error \"&N48","v":"Margin of Error $50,000 to $74,999"},"$75,000 or More",{"$f":"\"Margin of Error \"&P48","v":"Margin of Error $75,000 or More"}]
[]
[null,null,null,"Total Households",{"$f":"CntyDataLinkPrior5YearEstimates!$BF144","v":8308},{"$f":"CntyDataLinkPrior5YearEstimates!$BG$144","v":395},null,{"$f":"CntyDataLinkPrior5YearEstimates!$BZ$144","v":652},{"$f":"CntyDataLinkPrior5YearEstimates!$CA$144","v":184},{"$f":"CntyDataLinkPrior5YearEstimates!$CH$144","v":1102},{"$f":"CntyDataLinkPrior5YearEstimates!$CI$144","v":217},{"$f":"CntyDataLinkPrior5YearEstimates!$CP$144","v":1133},{"$f":"CntyDataLinkPrior5YearEstimates!$CQ$144","v":238},{"$f":"CntyDataLinkPrior5YearEstimates!$CX$144","v":1577},{"$f":"CntyDataLinkPrior5YearEstimates!$CY$144","v":259},{"$f":"CntyDataLinkPrior5YearEstimates!$DF$144","v":3828},{"$f":"CntyDataLinkPrior5YearEstimates!$DG$144","v":365}]
[null,null,null,"Monthly Costs Less than 20% of HH Income",{"$f":"CntyDataLinkPrior5YearEstimates!$BH$144","v":3688},{"$f":"CntyDataLinkPrior5YearEstimates!$BI$144","v":527.71678010084156},null,{"$f":"CntyDataLinkPrior5YearEstimates!$CB$144","v":18},{"$f":"CntyDataLinkPrior5YearEstimates!$CC$144","v":32},{"$f":"CntyDataLinkPrior5YearEstimates!CJ$144","v":134},{"$f":"CntyDataLinkPrior5YearEstimates!CK$144","v":83},{"$f":"CntyDataLinkPrior5YearEstimates!CR$144","v":374},{"$f":"CntyDataLinkPrior5YearEstimates!CS$144","v":128},{"$f":"CntyDataLinkPrior5YearEstimates!CZ$144","v":745},{"$f":"CntyDataLinkPrior5YearEstimates!DA$144","v":205},{"$f":"CntyDataLinkPrior5YearEstimates!DH$144","v":2417},{"$f":"CntyDataLinkPrior5YearEstimates!DI$144","v":323}]
[null,null,null,"Monthly Costs 20% to 29.9% of HH Income",{"$f":"CntyDataLinkPrior5YearEstimates!$BJ$144","v":2149},{"$f":"CntyDataLinkPrior5YearEstimates!$BK$144","v":296.93433617552552},null,{"$f":"CntyDataLinkPrior5YearEstimates!$CD$144","v":35},{"$f":"CntyDataLinkPrior5YearEstimates!$CE$144","v":34},{"$f":"CntyDataLinkPrior5YearEstimates!CL$144","v":284},{"$f":"CntyDataLinkPrior5YearEstimates!CM$144","v":105},{"$f":"CntyDataLinkPrior5YearEstimates!CT$144","v":132},{"$f":"CntyDataLinkPrior5YearEstimates!CU$144","v":79},{"$f":"CntyDataLinkPrior5YearEstimates!DB$144","v":437},{"$f":"CntyDataLinkPrior5YearEstimates!DC$144","v":118},{"$f":"CntyDataLinkPrior5YearEstimates!DJ$144","v":1261},{"$f":"CntyDataLinkPrior5YearEstimates!DK$144","v":268}]
[null,null,null,"Monthly Costs Less Than 30% of HH Income",{"$f":"CntyDataLinkPrior5YearEstimates!$BL$144","v":5837},{"$f":"CntyDataLinkPrior5YearEstimates!$BM$144","v":605.52043730992273},null,{"$f":"H52+H51","v":53},{"$f":"SQRT((I52^2)+(I51^2))","v":46.690470119715009},{"$f":"J52+J51","v":418},{"$f":"SQRT((K52^2)+(K51^2))","v":133.843191832831},{"$f":"L52+L51","v":506},{"$f":"SQRT((M52^2)+(M51^2))","v":150.41608956491322},{"$f":"N52+N51","v":1182},{"$f":"SQRT((O52^2)+(O51^2))","v":236.53540961133072},{"$f":"P52+P51","v":3678},{"$f":"SQRT((Q52^2)+(Q51^2))","v":419.70584937548819}]
[null,null,null,"Monthly Costs 30% or More of HH Income",{"$f":"CntyDataLinkPrior5YearEstimates!$BN$144","v":2455},{"$f":"CntyDataLinkPrior5YearEstimates!$BO$144","v":345.81064182584089},null,{"$f":"CntyDataLinkPrior5YearEstimates!$CF$144","v":599},{"$f":"CntyDataLinkPrior5YearEstimates!$CG$144","v":185},{"$f":"CntyDataLinkPrior5YearEstimates!CN$144","v":684},{"$f":"CntyDataLinkPrior5YearEstimates!CO$144","v":193},{"$f":"CntyDataLinkPrior5YearEstimates!CV$144","v":627},{"$f":"CntyDataLinkPrior5YearEstimates!CW$144","v":173},{"$f":"CntyDataLinkPrior5YearEstimates!DD$144","v":395},{"$f":"CntyDataLinkPrior5YearEstimates!DE$144","v":130},{"$f":"CntyDataLinkPrior5YearEstimates!$DL$144","v":150},{"$f":"CntyDataLinkPrior5YearEstimates!$DM$144","v":75}]
[]
[null,null,null,"Monthly Costs 35% or More of HH Income",{"$f":"CntyDataLinkPrior5YearEstimates!$BT$144","v":1981},{"$f":"CntyDataLinkPrior5YearEstimates!$BU$144","v":282.89927536139078},null,"NA","NA","NA","NA","NA","NA","NA","NA","NA","NA"]
[null,null,null,"Monthly Costs 50% or More of HH Income",{"$f":"CntyDataLinkPrior5YearEstimates!$BV$144","v":963},{"$f":"CntyDataLinkPrior5YearEstimates!$BW$144","v":189.4887859478761},null,"NA","NA","NA","NA","NA","NA","NA","NA","NA","NA"]
[null,null,null,"Percent not computed",{"$f":"CntyDataLinkPrior5YearEstimates!$BX$144","v":16},{"$f":"CntyDataLinkPrior5YearEstimates!$BY$144","v":193.49418595916518},null,"NA","NA","NA","NA","NA","NA","NA","NA","NA","NA"]
[]
[null,null,null,"Percent of Owner Households Paying ",null,null,null,"By Household Income"]
[null,null,null,{"$f":"D53","v":"Monthly Costs Less Than 30% of HH Income"},{"$f":"E53/E$50","v":0.70257583052479533},null,null,{"$f":"H53/H$50","v":8.1288343558282211E-2},null,{"$f":"J53/J$50","v":0.37931034482758619},null,{"$f":"L53/L$50","v":0.44660194174757284},null,{"$f":"N53/N$50","v":0.74952441344324672},null,{"$f":"P53/P$50","v":0.96081504702194354}]
[null,null,null,{"$f":"D54","v":"Monthly Costs 30% or More of HH Income"},{"$f":"E54/E$50","v":0.29549831487722678},null,null,{"$f":"H54/H50","v":0.91871165644171782},null,{"$f":"J54/J50","v":0.62068965517241381},null,{"$f":"L54/L50","v":0.55339805825242716},null,{"$f":"N54/N50","v":0.25047558655675334},null,{"$f":"P54/P50","v":3.918495297805643E-2}]
[]
[null,null,null,"Monthly Costs 35% or More of HH Income",{"$f":"E56/E$50","v":0.23844487241213289},null,null,"NA","NA","NA","NA","NA","NA","NA","NA","NA","NA"]
[null,null,null,"Monthly Costs 50% or More of HH Income",{"$f":"E57/E$50","v":0.11591237361579201},null,null,"NA","NA","NA","NA","NA","NA","NA","NA","NA","NA"]
[null,null,null,"Percent not computed",{"$f":"E58/$E$50","v":1.9258545979778526E-3},null,null,"NA","NA","NA","NA","NA","NA","NA","NA","NA","NA"]
[]
[null,null,"H62ROHUGRent200to249",{"$f":"D37","v":"Income in 2017 Inflation Adjusted Dollars"}]
[null,null,null,"Source: 2013-2017 American Community Survey Table B25091; B25106",null,null,null,null,"NA indicates that the American Community Survey does not provide that data."]
[null,null,null,"Data from the American Community Survey are estimates."]
[]
[null,null,null,{"$f":"D2","v":"Rochester"}]
[null,null,null,{"$f":"D3","v":"OWNER HOUSING COST CHARACTERISTICS"}]
[]
[null,null,null,"Value of Owner Occupied Housing Units"]
[]
[null,null,null,"Owner Occupied Housing Units",{"$f":"CntyDataLinkPrior5YearEstimates!$B$144","v":8308},{"$f":"CntyDataLinkPrior5YearEstimates!$C$144","v":395}]
[]
[null,null,null,"Value","Housing Units","Margin of Error"]
[null,null,null,"Less than $10,000",{"$f":"CntyDataLinkPrior5YearEstimates!$D$144","v":60},{"$f":"CntyDataLinkPrior5YearEstimates!$E$144","v":53}]
[null,null,null,"$10,000 to $14,999",{"$f":"CntyDataLinkPrior5YearEstimates!$F$144","v":174},{"$f":"CntyDataLinkPrior5YearEstimates!$G$144","v":90}]
[null,null,null,"$15,000 to $19,999",{"$f":"CntyDataLinkPrior5YearEstimates!$H$144","v":218},{"$f":"CntyDataLinkPrior5YearEstimates!$I$144","v":111}]
[null,null,null,"$20,000 to $24,999",{"$f":"CntyDataLinkPrior5YearEstimates!$J$144","v":147},{"$f":"CntyDataLinkPrior5YearEstimates!$K$144","v":74}]
[null,null,null,"$25,000 to $29,999",{"$f":"CntyDataLinkPrior5YearEstimates!$L$144","v":49},{"$f":"CntyDataLinkPrior5YearEstimates!$M$144","v":46}]
[null,null,null,"$30,000 to $34,999",{"$f":"CntyDataLinkPrior5YearEstimates!$N$144","v":231},{"$f":"CntyDataLinkPrior5YearEstimates!$O$144","v":128}]
[null,null,null,"$35,000 to $39,999",{"$f":"CntyDataLinkPrior5YearEstimates!$P$144","v":0},{"$f":"CntyDataLinkPrior5YearEstimates!$Q$144","v":24}]
[null,null,null,"$40,000 to $49,999",{"$f":"CntyDataLinkPrior5YearEstimates!$R$144","v":134},{"$f":"CntyDataLinkPrior5YearEstimates!$S$144","v":77}]
[null,null,null,"$50,000 to $59,999",{"$f":"CntyDataLinkPrior5YearEstimates!$T$144","v":160},{"$f":"CntyDataLinkPrior5YearEstimates!$U$144","v":94}]
[null,null,null,"$60,000 to $69,999",{"$f":"CntyDataLinkPrior5YearEstimates!$V$144","v":227},{"$f":"CntyDataLinkPrior5YearEstimates!$W$144","v":127}]
[null,null,null,"$70,000 to $79,999",{"$f":"CntyDataLinkPrior5YearEstimates!$X$144","v":113},{"$f":"CntyDataLinkPrior5YearEstimates!$Y$144","v":66}]
[null,null,null,"$80,000 to $89,999",{"$f":"CntyDataLinkPrior5YearEstimates!$Z$144","v":292},{"$f":"CntyDataLinkPrior5YearEstimates!$AA$144","v":146}]
[null,null,null,"$90,000 to $99,999",{"$f":"CntyDataLinkPrior5YearEstimates!$AB$144","v":123},{"$f":"CntyDataLinkPrior5YearEstimates!$AC$144","v":61}]
[null,null,null,"$100,000 to $124,999",{"$f":"CntyDataLinkPrior5YearEstimates!$AD$144","v":531},{"$f":"CntyDataLinkPrior5YearEstimates!$AE$144","v":158}]
[null,null,null,"$125,000 to $149,999",{"$f":"CntyDataLinkPrior5YearEstimates!$AF$144","v":804},{"$f":"CntyDataLinkPrior5YearEstimates!$AG$144","v":160}]
[null,null,null,"$150,000 to $174,999",{"$f":"CntyDataLinkPrior5YearEstimates!$AH$144","v":1336},{"$f":"CntyDataLinkPrior5YearEstimates!$AI$144","v":235}]
[null,null,null,"$175,000 to $199,999",{"$f":"CntyDataLinkPrior5YearEstimates!$AJ$144","v":885},{"$f":"CntyDataLinkPrior5YearEstimates!$AK$144","v":164}]
[null,null,null,"$200,000 to $249,999",{"$f":"CntyDataLinkPrior5YearEstimates!$AL$144","v":1409},{"$f":"CntyDataLinkPrior5YearEstimates!$AM$144","v":250}]
[null,null,null,"$250,000 to $299,999",{"$f":"CntyDataLinkPrior5YearEstimates!$AN$144","v":704},{"$f":"CntyDataLinkPrior5YearEstimates!$AO$144","v":158}]
[null,null,null,"$300,000 to $399,999",{"$f":"CntyDataLinkPrior5YearEstimates!$AP$144","v":481},{"$f":"CntyDataLinkPrior5YearEstimates!$AQ$144","v":139}]
[null,null,null,"$400,000 to $499,999",{"$f":"CntyDataLinkPrior5YearEstimates!$AR$144","v":121},{"$f":"CntyDataLinkPrior5YearEstimates!$AS$144","v":69}]
[null,null,null,"$500,000 to $749,999",{"$f":"CntyDataLinkPrior5YearEstimates!$AT$144","v":48},{"$f":"CntyDataLinkPrior5YearEstimates!$AU$144","v":38}]
[null,null,null,"$750,000 to $999,999",{"$f":"CntyDataLinkPrior5YearEstimates!$AV$144","v":0},{"$f":"CntyDataLinkPrior5YearEstimates!$AW$144","v":24}]
[null,null,null,"$1,000,000 to $1,499,999",{"$f":"CntyDataLinkPrior5YearEstimates!$AX$144","v":0},{"$f":"CntyDataLinkPrior5YearEstimates!$AY$144","v":24}]
[null,null,null,"$1,500,000 to $1,999,999",{"$f":"CntyDataLinkPrior5YearEstimates!$AZ$144","v":0},{"$f":"CntyDataLinkPrior5YearEstimates!$BA$144","v":24}]
[null,null,null,"$2,000,000 or more",{"$f":"CntyDataLinkPrior5YearEstimates!$BB$144","v":61},{"$f":"CntyDataLinkPrior5YearEstimates!$BC$144","v":49}]
[]
[null,null,null,"Median Value",{"$f":"CntyDataLinkPrior5YearEstimates!$BD$144","v":166700},{"$f":"CntyDataLinkPrior5YearEstimates!$BE$144","v":5229}]
[]
[]
[]
[null,null,null,"Source: 2013-2017 American Community Survey Tables B25075 and B25077"]
[null,null,null,"Data from the American Community Survey are estimates."]

{"sheet":"OwnerHousingCostPrior10Year","index":72,"n_rows":112,"n_cols":17,"rows_kept":112,"cut":false,"hidden":true,"merged":[]}
[]
[null,null,"HIDE THIS COLUMN",{"$f":"CntyDataLink!$A35","v":"Rochester"}]
[null,null,null,"OWNER HOUSING COST CHARACTERISTICS"]
[]
[]
[]
[]
[]
[]
[]
[]
[]
[]
[]
[]
[]
[]
[]
[]
[]
[]
[]
[]
[]
[]
[]
[]
[]
[]
[]
[]
[]
[]
[]
[]
[]
[null,null,null,"Income in 2012 Inflation Adjusted Dollars"]
[null,null,null,"Source: 2008-2012 American Community Survey Table B25106"]
[null,null,null,"Data from the American Community Survey are estimates."]
[]
[]
[null,null,null,{"$f":"CntyDataLinkPrior5YearEstimates!$A$108","v":"Rochester"}]
[]
[null,null,null,{"$f":"D3","v":"OWNER HOUSING COST CHARACTERISTICS"}]
[]
[null,null,null,"Owner Households by "]
[null,null,null,"Selected Monthly Housing Costs as a Percent of 2012 Household Income",null,null,null,"By Household Income"]
[null,null,"H73RenterOccHU",null,"Specified Owner Occ Housing Units","Margin of Error Owner Occ Housing Units",null,"Less than $20,000",{"$f":"\"Margin of Error \"&H48","v":"Margin of Error Less than $20,000"},"$20,000 to $34,999",{"$f":"\"Margin of Error \"&J48","v":"Margin of Error $20,000 to $34,999"},"$35,000 to $49,999",{"$f":"\"Margin of Error \"&L48","v":"Margin of Error $35,000 to $49,999"},"$50,000 to $74,999",{"$f":"\"Margin of Error \"&N48","v":"Margin of Error $50,000 to $74,999"},"$75,000 or More",{"$f":"\"Margin of Error \"&P48","v":"Margin of Error $75,000 or More"}]
[]
[null,null,null,"Total Households",{"$f":"CntyDataLinkPrior10YearEstimate!$BF144","v":8858},{"$f":"CntyDataLinkPrior10YearEstimate!$BG$144","v":400},null,{"$f":"CntyDataLinkPrior10YearEstimate!$BZ$144","v":692},{"$f":"CntyDataLinkPrior10YearEstimate!$CA$144","v":145},{"$f":"CntyDataLinkPrior10YearEstimate!$CH$144","v":924},{"$f":"CntyDataLinkPrior10YearEstimate!$CI$144","v":164},{"$f":"CntyDataLinkPrior10YearEstimate!$CP$144","v":1562},{"$f":"CntyDataLinkPrior10YearEstimate!$CQ$144","v":259},{"$f":"CntyDataLinkPrior10YearEstimate!$CX$144","v":2008},{"$f":"CntyDataLinkPrior10YearEstimate!$CY$144","v":314},{"$f":"CntyDataLinkPrior10YearEstimate!$DF$144","v":3609},{"$f":"CntyDataLinkPrior10YearEstimate!$DG$144","v":290}]
[null,null,null,"Monthly Costs Less than 20% of HH Income",{"$f":"CntyDataLinkPrior10YearEstimate!$BH$144","v":3166},{"$f":"CntyDataLinkPrior10YearEstimate!$BI$144","v":368.79940347023341},null,{"$f":"CntyDataLinkPrior10YearEstimate!$CB$144","v":13},{"$f":"CntyDataLinkPrior10YearEstimate!$CC$144","v":20},{"$f":"CntyDataLinkPrior10YearEstimate!CJ$144","v":69},{"$f":"CntyDataLinkPrior10YearEstimate!CK$144","v":45},{"$f":"CntyDataLinkPrior10YearEstimate!CR$144","v":419},{"$f":"CntyDataLinkPrior10YearEstimate!CS$144","v":135},{"$f":"CntyDataLinkPrior10YearEstimate!CZ$144","v":731},{"$f":"CntyDataLinkPrior10YearEstimate!DA$144","v":189},{"$f":"CntyDataLinkPrior10YearEstimate!DH$144","v":1934},{"$f":"CntyDataLinkPrior10YearEstimate!DI$144","v":272}]
[null,null,null,"Monthly Costs 20% to 29.9% of HH Income",{"$f":"CntyDataLinkPrior10YearEstimate!$BJ$144","v":2511},{"$f":"CntyDataLinkPrior10YearEstimate!$BK$144","v":323.06500893782976},null,{"$f":"CntyDataLinkPrior10YearEstimate!$CD$144","v":56},{"$f":"CntyDataLinkPrior10YearEstimate!$CE$144","v":49},{"$f":"CntyDataLinkPrior10YearEstimate!CL$144","v":284},{"$f":"CntyDataLinkPrior10YearEstimate!CM$144","v":100},{"$f":"CntyDataLinkPrior10YearEstimate!CT$144","v":492},{"$f":"CntyDataLinkPrior10YearEstimate!CU$144","v":147},{"$f":"CntyDataLinkPrior10YearEstimate!DB$144","v":462},{"$f":"CntyDataLinkPrior10YearEstimate!DC$144","v":130},{"$f":"CntyDataLinkPrior10YearEstimate!DJ$144","v":1217},{"$f":"CntyDataLinkPrior10YearEstimate!DK$144","v":197}]
[null,null,null,"Monthly Costs Less Than 30% of HH Income",{"$f":"CntyDataLinkPrior10YearEstimate!$BL$144","v":5677},{"$f":"CntyDataLinkPrior10YearEstimate!$BM$144","v":490.28971027342601},null,{"$f":"H52+H51","v":69},{"$f":"SQRT((I52^2)+(I51^2))","v":52.924474489596967},{"$f":"J52+J51","v":353},{"$f":"SQRT((K52^2)+(K51^2))","v":109.65856099730654},{"$f":"L52+L51","v":911},{"$f":"SQRT((M52^2)+(M51^2))","v":199.58456854175876},{"$f":"N52+N51","v":1193},{"$f":"SQRT((O52^2)+(O51^2))","v":229.39267643061319},{"$f":"P52+P51","v":3151},{"$f":"SQRT((Q52^2)+(Q51^2))","v":335.84669121490538}]
[null,null,null,"Monthly Costs 30% or More of HH Income",{"$f":"CntyDataLinkPrior10YearEstimate!$BN$144","v":3118},{"$f":"CntyDataLinkPrior10YearEstimate!$BO$144","v":334.52952037152119},null,{"$f":"CntyDataLinkPrior10YearEstimate!$CF$144","v":623},{"$f":"CntyDataLinkPrior10YearEstimate!$CG$144","v":145},{"$f":"CntyDataLinkPrior10YearEstimate!CN$144","v":571},{"$f":"CntyDataLinkPrior10YearEstimate!CO$144","v":143},{"$f":"CntyDataLinkPrior10YearEstimate!CV$144","v":651},{"$f":"CntyDataLinkPrior10YearEstimate!CW$144","v":168},{"$f":"CntyDataLinkPrior10YearEstimate!DD$144","v":815},{"$f":"CntyDataLinkPrior10YearEstimate!DE$144","v":224},{"$f":"CntyDataLinkPrior10YearEstimate!$DL$144","v":458},{"$f":"CntyDataLinkPrior10YearEstimate!$DM$144","v":136}]
[]
[null,null,null,"Monthly Costs 35% or More of HH Income",{"$f":"CntyDataLinkPrior10YearEstimate!$BT$144","v":2159},{"$f":"CntyDataLinkPrior10YearEstimate!$BU$144","v":276.15575315390407},null,"NA","NA","NA","NA","NA","NA","NA","NA","NA","NA"]
[null,null,null,"Monthly Costs 50% or More of HH Income",{"$f":"CntyDataLinkPrior10YearEstimate!$BV$144","v":919},{"$f":"CntyDataLinkPrior10YearEstimate!$BW$144","v":175.42234749312871},null,"NA","NA","NA","NA","NA","NA","NA","NA","NA","NA"]
[null,null,null,"Percent not computed",{"$f":"CntyDataLinkPrior10YearEstimate!$BX$144","v":63},{"$f":"CntyDataLinkPrior10YearEstimate!$BY$144","v":75},null,"NA","NA","NA","NA","NA","NA","NA","NA","NA","NA"]
[]
[null,null,null,"Percent of Owner Households Paying ",null,null,null,"By Household Income"]
[null,null,null,{"$f":"D53","v":"Monthly Costs Less Than 30% of HH Income"},{"$f":"E53/E$50","v":0.64088959132987133},null,null,{"$f":"H53/H$50","v":9.9710982658959543E-2},null,{"$f":"J53/J$50","v":0.38203463203463206},null,{"$f":"L53/L$50","v":0.58322663252240714},null,{"$f":"N53/N$50","v":0.59412350597609564},null,{"$f":"P53/P$50","v":0.87309504017733441}]
[null,null,null,{"$f":"D54","v":"Monthly Costs 30% or More of HH Income"},{"$f":"E54/E$50","v":0.35199819372318808},null,null,{"$f":"H54/H50","v":0.9002890173410405},null,{"$f":"J54/J50","v":0.61796536796536794},null,{"$f":"L54/L50","v":0.4167733674775928},null,{"$f":"N54/N50","v":0.40587649402390436},null,{"$f":"P54/P50","v":0.12690495982266556}]
[]
[null,null,null,"Monthly Costs 35% or More of HH Income",{"$f":"E56/E$50","v":0.24373447730864756},null,null,"NA","NA","NA","NA","NA","NA","NA","NA","NA","NA"]
[null,null,null,"Monthly Costs 50% or More of HH Income",{"$f":"E57/E$50","v":0.10374802438473696},null,null,"NA","NA","NA","NA","NA","NA","NA","NA","NA","NA"]
[null,null,null,"Percent not computed",{"$f":"E58/$E$50","v":7.1122149469406183E-3},null,null,"NA","NA","NA","NA","NA","NA","NA","NA","NA","NA"]
[]
[null,null,"H62ROHUGRent200to249",{"$f":"D37","v":"Income in 2012 Inflation Adjusted Dollars"}]
[null,null,null,"Source: 2008-2012 American Community Survey Table B25091; B25106",null,null,null,null,"NA indicates that the American Community Survey does not provide that data."]
[null,null,null,"Data from the American Community Survey are estimates."]
[]
[null,null,null,{"$f":"D2","v":"Rochester"}]
[null,null,null,{"$f":"D3","v":"OWNER HOUSING COST CHARACTERISTICS"}]
[]
[null,null,null,"Value of Owner Occupied Housing Units"]
[]
[null,null,null,"Owner Occupied Housing Units",{"$f":"CntyDataLinkPrior10YearEstimate!$B$144","v":8858},{"$f":"CntyDataLinkPrior10YearEstimate!$C$144","v":400}]
[]
[null,null,null,"Value","Housing Units","Margin of Error"]
[null,null,null,"Less than $10,000",{"$f":"CntyDataLinkPrior10YearEstimate!$D$144","v":43},{"$f":"CntyDataLinkPrior10YearEstimate!$E$144","v":36}]
[null,null,null,"$10,000 to $14,999",{"$f":"CntyDataLinkPrior10YearEstimate!$F$144","v":71},{"$f":"CntyDataLinkPrior10YearEstimate!$G$144","v":45}]
[null,null,null,"$15,000 to $19,999",{"$f":"CntyDataLinkPrior10YearEstimate!$H$144","v":114},{"$f":"CntyDataLinkPrior10YearEstimate!$I$144","v":52}]
[null,null,null,"$20,000 to $24,999",{"$f":"CntyDataLinkPrior10YearEstimate!$J$144","v":107},{"$f":"CntyDataLinkPrior10YearEstimate!$K$144","v":81}]
[null,null,null,"$25,000 to $29,999",{"$f":"CntyDataLinkPrior10YearEstimate!$L$144","v":176},{"$f":"CntyDataLinkPrior10YearEstimate!$M$144","v":92}]
[null,null,null,"$30,000 to $34,999",{"$f":"CntyDataLinkPrior10YearEstimate!$N$144","v":154},{"$f":"CntyDataLinkPrior10YearEstimate!$O$144","v":87}]
[null,null,null,"$35,000 to $39,999",{"$f":"CntyDataLinkPrior10YearEstimate!$P$144","v":119},{"$f":"CntyDataLinkPrior10YearEstimate!$Q$144","v":69}]
[null,null,null,"$40,000 to $49,999",{"$f":"CntyDataLinkPrior10YearEstimate!$R$144","v":243},{"$f":"CntyDataLinkPrior10YearEstimate!$S$144","v":112}]
[null,null,null,"$50,000 to $59,999",{"$f":"CntyDataLinkPrior10YearEstimate!$T$144","v":177},{"$f":"CntyDataLinkPrior10YearEstimate!$U$144","v":109}]
[null,null,null,"$60,000 to $69,999",{"$f":"CntyDataLinkPrior10YearEstimate!$V$144","v":179},{"$f":"CntyDataLinkPrior10YearEstimate!$W$144","v":103}]
[null,null,null,"$70,000 to $79,999",{"$f":"CntyDataLinkPrior10YearEstimate!$X$144","v":211},{"$f":"CntyDataLinkPrior10YearEstimate!$Y$144","v":111}]
[null,null,null,"$80,000 to $89,999",{"$f":"CntyDataLinkPrior10YearEstimate!$Z$144","v":307},{"$f":"CntyDataLinkPrior10YearEstimate!$AA$144","v":139}]
[null,null,null,"$90,000 to $99,999",{"$f":"CntyDataLinkPrior10YearEstimate!$AB$144","v":345},{"$f":"CntyDataLinkPrior10YearEstimate!$AC$144","v":153}]
[null,null,null,"$100,000 to $124,999",{"$f":"CntyDataLinkPrior10YearEstimate!$AD$144","v":502},{"$f":"CntyDataLinkPrior10YearEstimate!$AE$144","v":131}]
[null,null,null,"$125,000 to $149,999",{"$f":"CntyDataLinkPrior10YearEstimate!$AF$144","v":612},{"$f":"CntyDataLinkPrior10YearEstimate!$AG$144","v":155}]
[null,null,null,"$150,000 to $174,999",{"$f":"CntyDataLinkPrior10YearEstimate!$AH$144","v":803},{"$f":"CntyDataLinkPrior10YearEstimate!$AI$144","v":162}]
[null,null,null,"$175,000 to $199,999",{"$f":"CntyDataLinkPrior10YearEstimate!$AJ$144","v":1213},{"$f":"CntyDataLinkPrior10YearEstimate!$AK$144","v":242}]
[null,null,null,"$200,000 to $249,999",{"$f":"CntyDataLinkPrior10YearEstimate!$AL$144","v":1688},{"$f":"CntyDataLinkPrior10YearEstimate!$AM$144","v":253}]
[null,null,null,"$250,000 to $299,999",{"$f":"CntyDataLinkPrior10YearEstimate!$AN$144","v":914},{"$f":"CntyDataLinkPrior10YearEstimate!$AO$144","v":182}]
[null,null,null,"$300,000 to $399,999",{"$f":"CntyDataLinkPrior10YearEstimate!$AP$144","v":670},{"$f":"CntyDataLinkPrior10YearEstimate!$AQ$144","v":187}]
[null,null,null,"$400,000 to $499,999",{"$f":"CntyDataLinkPrior10YearEstimate!$AR$144","v":127},{"$f":"CntyDataLinkPrior10YearEstimate!$AS$144","v":61}]
[null,null,null,"$500,000 to $749,999",{"$f":"CntyDataLinkPrior10YearEstimate!$AT$144","v":29},{"$f":"CntyDataLinkPrior10YearEstimate!$AU$144","v":33}]
[null,null,null,"$750,000 to $999,999",{"$f":"CntyDataLinkPrior10YearEstimate!$AV$144","v":20},{"$f":"CntyDataLinkPrior10YearEstimate!$AW$144","v":23}]
[null,null,null,"$1,000,000 to $1,499,999",{"$f":"CntyDataLinkPrior10YearEstimate!$AX$144","v":34},{"$f":"CntyDataLinkPrior10YearEstimate!$AY$144","v":33}]
[null,null,null,"$1,500,000 to $1,999,999",{"$f":"CntyDataLinkPrior10YearEstimate!$AZ$144","v":0},{"$f":"CntyDataLinkPrior10YearEstimate!$BA$144","v":0}]
[null,null,null,"$2,000,000 or more",{"$f":"CntyDataLinkPrior10YearEstimate!$BB$144","v":0},{"$f":"CntyDataLinkPrior10YearEstimate!$BC$144","v":0}]
[]
[null,null,null,"Median Value",{"$f":"CntyDataLinkPrior10YearEstimate!$BD$144","v":180500},{"$f":"CntyDataLinkPrior10YearEstimate!$BE$144","v":5207}]
[]
[]
[]
[null,null,null,"Source: 2008-2012 American Community Survey Tables B25075 and B25077"]
[null,null,null,"Data from the American Community Survey are estimates."]

{"sheet":"ACS_Table_B25075_&_B25077","index":73,"n_rows":160,"n_cols":28,"rows_kept":160,"cut":false,"hidden":true,"merged":[]}
[null,"B25075. VALUE"]
[null,"Universe:  OWNER-OCCUPIED HOUSING UNITS"]
[null,"Data Set: 2018-2022 American Community Survey 5-Year Estimates"]
[]
[null,null,"Barrington",null,"Dover",null,"Durham",null,"Farmington",null,"Lee",null,"Madbury",null,"Middleton",null,"Milton",null,"New Durham",null,"Rochester",null,"Rollinsford",null,"Somersworth",null,"Strafford"]
[null,null,"Estimate","Margin Of Error","Estimate","Margin Of Error","Estimate","Margin Of Error","Estimate","Margin Of Error","Estimate","Margin Of Error","Estimate","Margin Of Error","Estimate","Margin Of Error","Estimate","Margin Of Error","Estimate","Margin Of Error","Estimate","Margin Of Error","Estimate","Margin Of Error","Estimate","Margin Of Error","Estimate","Margin Of Error"]
[null,"Total:",3074,266,7585,556,1857,246,2024,274,1672,189,558,91,522,88,1452,134,911,97,8933,466,868,116,3388,318,1343,94]
[null,"Less than $10,000",0,17,17,28,0,19,23,34,0,12,0,12,0,12,12,15,4,6,68,44,0,12,67,83,33,28]
[null,"$10,000 to $14,999",64,83,0,25,0,19,0,17,24,38,0,12,0,12,3,7,0,12,15,24,0,12,0,19,0,12]
[null,"$15,000 to $19,999",60,98,0,25,0,19,17,28,0,12,0,12,2,4,12,18,0,12,2,7,0,12,0,19,0,12]
[null,"$20,000 to $24,999",15,24,75,116,0,19,0,17,0,12,0,12,4,6,0,12,7,11,146,98,0,12,13,23,0,12]
[null,"$25,000 to $29,999",12,20,17,26,0,19,12,21,0,12,0,12,0,12,53,58,0,12,161,89,0,12,36,43,0,12]
[null,"$30,000 to $34,999",60,88,24,28,7,13,0,17,0,12,0,12,0,12,10,15,5,7,157,92,0,12,81,54,0,12]
[null,"$35,000 to $39,999",38,52,16,24,0,19,14,24,0,12,0,12,10,14,0,12,0,12,20,29,0,12,16,28,0,12]
[null,"$40,000 to $49,999",41,50,16,26,5,7,0,17,16,26,0,12,0,12,0,12,9,9,127,78,6,8,85,80,0,12]
[null,"$50,000 to $59,999",99,92,0,25,0,19,0,17,40,45,0,12,3,4,0,12,0,12,239,164,0,12,0,19,15,24]
[null,"$60,000 to $69,999",27,38,24,38,0,19,28,43,0,12,7,17,0,12,0,12,0,12,141,97,0,12,14,22,0,12]
[null,"$70,000 to $79,999",0,17,0,25,0,19,0,17,16,25,0,12,3,5,0,12,0,12,73,54,3,7,24,36,39,49]
[null,"$80,000 to $89,999",0,17,45,36,0,19,0,17,0,12,0,12,4,6,0,12,6,9,118,91,0,12,0,19,0,12]
[null,"$90,000 to $99,999",0,17,147,112,0,19,72,82,0,12,3,5,4,5,0,12,0,12,96,62,4,7,18,31,6,9]
[null,"$100,000 to $124,999",75,67,48,37,3,5,203,141,0,12,0,12,17,12,58,47,11,13,305,194,0,12,42,54,0,12]
[null,"$125,000 to $149,999",48,70,98,80,5,7,60,68,19,29,0,12,25,18,154,101,69,49,281,110,16,14,126,80,16,18]
[null,"$150,000 to $174,999",51,54,28,43,27,25,118,88,0,12,6,10,60,24,0,12,10,10,824,234,27,29,131,94,8,13]
[null,"$175,000 to $199,999",106,96,72,53,72,65,95,72,0,12,8,10,40,24,37,36,44,30,437,142,73,46,143,91,18,19]
[null,"$200,000 to $249,999",414,164,723,307,21,23,473,268,150,136,41,32,98,46,410,103,131,51,1634,295,90,47,686,271,140,61]
[null,"$250,000 to $299,999",237,116,943,287,127,55,174,111,307,138,1,4,74,31,175,73,232,87,1650,283,140,49,665,189,169,62]
[null,"$300,000 to $399,999",721,205,2187,359,366,136,369,131,242,89,117,41,113,39,393,137,241,59,1493,253,267,91,1058,225,357,99]
[null,"$400,000 to $499,999",461,162,1348,325,610,136,201,118,352,138,170,73,55,25,52,34,62,32,628,186,85,37,104,67,258,126]
[null,"$500,000 to $749,999",421,168,1505,245,414,93,146,122,276,142,143,44,7,9,58,57,52,30,200,92,56,32,63,50,221,80]
[null,"$750,000 to $999,999",112,87,110,79,70,33,0,17,194,118,53,27,3,4,14,21,23,22,18,20,29,23,0,19,51,30]
[null,"$1,000,000 to $1,499,999",12,20,93,89,83,65,19,29,20,31,9,13,0,12,11,16,5,7,52,53,72,67,16,28,7,12]
[null,"$1,500,000 to $1,999,999",0,17,25,27,35,51,0,17,0,12,0,12,0,12,0,12,0,12,9,18,0,12,0,19,0,12]
[null,"$2,000,000 or more",0,17,24,27,12,16,0,17,16,25,0,12,0,12,0,12,0,12,39,43,0,12,0,19,5,9]
[]
[]
[null,"B25077. MEDIAN VALUE (Dollars)"]
[null,"Universe:  OWNER-OCCUPIED HOUSING UNITS"]
[null,"Data Set: 2018-2022 American Community Survey 5-Year Estimates"]
[]
[null,null,"Barrington",null,"Dover",null,"Durham",null,"Farmington",null,"Lee",null,"Madbury",null,"Middleton",null,"Milton",null,"New Durham",null,"Rochester",null,"Rollinsford",null,"Somersworth",null,"Strafford"]
[null,null,"Estimate","Margin Of Error","Estimate","Margin Of Error","Estimate","Margin Of Error","Estimate","Margin Of Error","Estimate","Margin Of Error","Estimate","Margin Of Error","Estimate","Margin Of Error","Estimate","Margin Of Error","Estimate","Margin Of Error","Estimate","Margin Of Error","Estimate","Margin Of Error","Estimate","Margin Of Error","Estimate","Margin Of Error"]
[]
[null,"Median value (dollars)",326400,28811,368600,14939,448400,15746,239100,20766,406300,60963,456500,23762,245400,22628,247200,23812,284400,15005,238400,10945,328100,25320,265900,16011,363700,30720]
[]
[]
[]
[]
[]
[]
[]
[]
[]
[]
[]
[]
[]
[]
[]
[]
[]
[]
[]
[]
[]
[]
[]
[]
[]
[]
[null,"B25075. VALUE"]
[null,"Universe:  OWNER-OCCUPIED HOUSING UNITS"]
[null,"Data Set: 2013-2017 American Community Survey 5-Year Estimates"]
[]
[null,null,"Barrington",null,"Dover",null,"Durham",null,"Farmington",null,"Lee",null,"Madbury",null,"Middleton",null,"Milton",null,"New Durham",null,"Rochester",null,"Rollinsford",null,"Somersworth",null,"Strafford"]
[null,null,"Estimate","Margin Of Error","Estimate","Margin Of Error","Estimate","Margin Of Error","Estimate","Margin Of Error","Estimate","Margin Of Error","Estimate","Margin Of Error","Estimate","Margin Of Error","Estimate","Margin Of Error","Estimate","Margin Of Error","Estimate","Margin Of Error","Estimate","Margin Of Error","Estimate","Margin Of Error","Estimate","Margin Of Error"]
[null,"Total:",3118,226,7021,367,1833,175,1850,201,1450,148,538,63,499,74,1520,115,921,56,8308,395,765,74,2735,242,1287,101]
[null,"Less than $10,000",13,20,49,58,3,7,18,31,17,28,1,4,0,11,45,49,5,7,60,53,0,11,70,62,0,11]
[null,"$10,000 to $14,999",0,16,19,30,0,18,0,16,0,11,0,11,4,6,3,6,6,8,174,90,0,11,30,34,0,11]
[null,"$15,000 to $19,999",0,16,26,25,0,18,0,16,0,11,0,11,5,6,43,29,22,26,218,111,0,11,63,51,0,11]
[null,"$20,000 to $24,999",122,133,44,44,0,18,0,16,18,27,0,11,1,4,18,19,7,9,147,74,0,11,89,80,0,11]
[null,"$25,000 to $29,999",13,25,34,32,18,20,0,16,0,11,0,11,0,11,7,11,0,11,49,46,0,11,58,62,8,12]
[null,"$30,000 to $34,999",26,42,15,23,0,18,18,29,0,11,0,11,3,4,0,11,0,11,231,128,4,6,103,70,0,11]
[null,"$35,000 to $39,999",0,16,17,27,0,18,0,16,40,56,0,11,0,11,0,11,0,11,0,24,0,11,60,49,0,11]
[null,"$40,000 to $49,999",66,67,35,32,0,18,30,27,14,21,0,11,0,11,0,11,0,11,134,77,0,11,74,69,7,12]
[null,"$50,000 to $59,999",30,52,45,58,0,18,48,49,0,11,4,6,11,8,0,11,0,11,160,94,0,11,0,18,7,11]
[null,"$60,000 to $69,999",135,150,69,75,0,18,53,51,59,71,5,7,15,10,37,44,8,10,227,127,0,11,0,18,0,11]
[null,"$70,000 to $79,999",0,16,15,23,0,18,109,73,0,11,11,20,11,8,17,19,0,11,113,66,0,11,27,42,0,11]
[null,"$80,000 to $89,999",0,16,49,43,0,18,49,53,0,11,0,11,2,4,42,41,0,11,292,146,4,7,0,18,0,11]
[null,"$90,000 to $99,999",51,82,40,36,0,18,75,52,0,11,4,7,3,5,30,47,27,20,123,61,0,11,41,47,43,57]
[null,"$100,000 to $124,999",64,73,216,88,4,7,99,64,14,22,24,18,28,15,84,53,43,32,531,158,17,15,123,84,55,32]
[null,"$125,000 to $149,999",16,27,340,150,6,9,55,51,15,24,0,11,89,32,114,57,60,36,804,160,56,37,186,82,40,32]
[null,"$150,000 to $174,999",204,149,442,151,30,23,379,149,19,29,15,10,93,32,162,66,78,29,1336,235,63,34,510,158,75,46]
[null,"$175,000 to $199,999",97,117,502,147,25,22,66,51,52,47,9,8,86,32,136,61,119,39,885,164,68,35,337,130,101,54]
[null,"$200,000 to $249,999",444,210,1921,241,94,50,382,127,171,90,52,23,79,33,292,95,143,51,1409,250,250,57,428,139,214,81]
[null,"$250,000 to $299,999",519,188,1135,217,260,80,344,169,174,116,74,25,40,22,231,86,187,52,704,158,116,35,261,112,189,61]
[null,"$300,000 to $399,999",938,219,1178,188,777,124,103,83,553,165,163,43,22,17,135,68,99,33,481,139,92,34,205,98,283,96]
[null,"$400,000 to $499,999",250,175,569,171,389,94,0,16,166,94,101,31,3,4,33,26,38,32,121,69,15,13,26,30,140,73]
[null,"$500,000 to $749,999",88,87,228,74,145,63,22,38,126,80,49,18,4,6,39,33,44,33,48,38,44,24,16,27,91,47]
[null,"$750,000 to $999,999",42,66,29,29,21,24,0,16,0,11,21,16,0,11,17,18,29,30,0,24,18,15,13,22,21,19]
[null,"$1,000,000 to $1,499,999",0,16,4,7,19,21,0,16,12,17,5,6,0,11,35,45,6,8,0,24,18,13,15,24,13,18]
[null,"$1,500,000 to $1,999,999",0,16,0,24,0,18,0,16,0,11,0,11,0,11,0,11,0,11,0,24,0,11,0,18,0,11]
[null,"$2,000,000 or more",0,16,0,24,42,41,0,16,0,11,0,11,0,11,0,11,0,11,61,49,0,11,0,18,0,11]
[]
[]
[null,"B25077. MEDIAN VALUE (Dollars)"]
[null,"Universe:  OWNER-OCCUPIED HOUSING UNITS"]
[null,"Data Set: 2013-2017 American Community Survey 5-Year Estimates"]
[]
[null,null,"Barrington",null,"Dover",null,"Durham",null,"Farmington",null,"Lee",null,"Madbury",null,"Middleton",null,"Milton",null,"New Durham",null,"Rochester",null,"Rollinsford",null,"Somersworth",null,"Strafford"]
[null,null,"Estimate","Margin Of Error","Estimate","Margin Of Error","Estimate","Margin Of Error","Estimate","Margin Of Error","Estimate","Margin Of Error","Estimate","Margin Of Error","Estimate","Margin Of Error","Estimate","Margin Of Error","Estimate","Margin Of Error","Estimate","Margin Of Error","Estimate","Margin Of Error","Estimate","Margin Of Error","Estimate","Margin Of Error"]
[]
[null,"Median value (dollars)",276800,22832,240400,6045,361300,9511,174500,34889,323900,23635,342900,17010,170800,8185,203800,21026,229900,21337,166700,5229,234100,8572,171700,9847,274700,29758]
[]
[]
[]
[]
[]
[null,"B25075. VALUE"]
[null,"Universe:  OWNER-OCCUPIED HOUSING UNITS"]
[null,"Data Set: 2008-2012 American Community Survey 5-Year Estimates"]
[]
[null,null,"Barrington",null,"Dover",null,"Durham",null,"Farmington",null,"Lee",null,"Madbury",null,"Middleton",null,"Milton",null,"New Durham",null,"Rochester",null,"Rollinsford",null,"Somersworth",null,"Strafford"]
[null,null,"Estimate","Margin Of Error","Estimate","Margin Of Error","Estimate","Margin Of Error","Estimate","Margin Of Error","Estimate","Margin Of Error","Estimate","Margin Of Error","Estimate","Margin Of Error","Estimate","Margin Of Error","Estimate","Margin Of Error","Estimate","Margin Of Error","Estimate","Margin Of Error","Estimate","Margin Of Error","Estimate","Margin Of Error"]
[null,"Total:",2576,226,6495,370,2029,239,1838,249,1560,142,514,49,555,62,1445,127,860,69,8858,400,759,75,2522,270,1282,113]
[null,"Less than $10,000",0,16,9,15,0,18,44,69,0,11,0,11,0,11,20,31,0,11,43,36,0,11,22,28,0,11]
[null,"$10,000 to $14,999",21,32,10,15,0,18,16,26,0,11,2,5,7,8,0,11,0,11,71,45,0,11,53,67,0,11]
[null,"$15,000 to $19,999",42,40,30,47,0,18,11,18,45,54,7,8,2,4,9,14,0,11,114,52,0,11,15,23,0,11]
[null,"$20,000 to $24,999",37,34,26,30,18,21,21,27,0,11,0,11,3,4,10,15,0,11,107,81,0,11,19,24,0,11]
[null,"$25,000 to $29,999",49,47,10,16,0,18,0,16,36,44,0,11,3,6,47,36,4,6,176,92,0,11,0,18,0,11]
[null,"$30,000 to $34,999",0,16,22,23,0,18,25,38,0,11,4,6,0,11,19,22,0,11,154,87,0,11,57,49,0,11]
[null,"$35,000 to $39,999",28,33,0,24,0,18,0,16,65,75,0,11,0,11,0,11,0,11,119,69,0,11,12,20,0,11]
[null,"$40,000 to $49,999",25,28,13,20,0,18,0,16,30,46,3,6,0,11,10,15,0,11,243,112,5,7,166,100,0,11]
[null,"$50,000 to $59,999",14,22,0,24,0,18,78,75,63,63,0,11,0,11,0,11,5,8,177,109,0,11,35,35,11,17]
[null,"$60,000 to $69,999",11,18,35,28,12,19,32,33,22,19,0,11,0,11,11,19,0,11,179,103,0,11,12,19,0,11]
[null,"$70,000 to $79,999",41,43,13,20,0,18,18,23,0,11,12,16,5,6,25,40,0,11,211,111,0,11,17,28,0,11]
[null,"$80,000 to $89,999",36,58,47,39,0,18,74,52,0,11,4,7,18,10,27,34,0,11,307,139,0,11,17,26,0,11]
[null,"$90,000 to $99,999",33,38,58,49,11,17,16,25,0,11,0,11,2,4,6,9,0,11,345,153,0,11,0,18,0,11]
[null,"$100,000 to $124,999",18,26,103,53,0,18,93,61,0,11,12,15,50,24,31,29,30,19,502,131,21,23,26,30,14,17]
[null,"$125,000 to $149,999",0,16,164,89,13,18,219,108,18,26,6,5,52,21,91,60,35,22,612,155,23,29,100,57,0,11]
[null,"$150,000 to $174,999",200,114,453,136,44,29,342,133,34,39,8,8,58,21,291,110,132,57,803,162,45,25,152,76,68,44]
[null,"$175,000 to $199,999",126,72,754,164,46,53,233,113,130,86,25,20,98,32,140,68,127,41,1213,242,81,35,180,101,131,47]
[null,"$200,000 to $249,999",519,166,1748,204,256,77,254,118,298,103,48,25,164,44,303,80,175,51,1688,253,261,69,766,203,382,101]
[null,"$250,000 to $299,999",651,175,1166,212,340,92,194,103,239,114,50,25,64,24,188,82,167,45,914,182,131,41,344,109,333,104]
[null,"$300,000 to $399,999",438,155,1097,196,712,136,100,75,311,93,165,38,18,13,102,54,93,37,670,187,118,36,407,184,168,68]
[null,"$400,000 to $499,999",217,121,450,124,256,75,14,23,224,100,111,48,7,8,36,32,26,19,127,61,37,21,110,74,85,56]
[null,"$500,000 to $749,999",70,52,169,67,237,85,54,63,29,34,54,27,2,5,21,23,44,41,29,33,23,16,0,18,55,46]
[null,"$750,000 to $999,999",0,16,58,33,18,19,0,16,16,26,3,5,2,4,41,45,22,17,20,23,4,6,0,18,27,21]
[null,"$1,000,000 or more",0,16,60,46,66,44,0,16,0,11,0,11,0,11,17,15,0,11,34,33,10,14,12,20,8,11]
[]
[]
[]
[]
[null,"B25077.MEDIAN VALUE (Dollars)"]
[null,"Universe:  OWNER-OCCUPIED HOUSING UNITS"]
[null,"Data Set: 2008-2012 American Community Survey 5-Year Estimates"]
[]
[null,null,"Barrington",null,"Dover",null,"Durham",null,"Farmington",null,"Lee",null,"Madbury",null,"Middleton",null,"Milton",null,"New Durham",null,"Rochester",null,"Rollinsford",null,"Somersworth",null,"Strafford"]
[null,null,"Estimate","Margin Of Error","Estimate","Margin Of Error","Estimate","Margin Of Error","Estimate","Margin Of Error","Estimate","Margin Of Error","Estimate","Margin Of Error","Estimate","Margin Of Error","Estimate","Margin Of Error","Estimate","Margin Of Error","Estimate","Margin Of Error","Estimate","Margin Of Error","Estimate","Margin Of Error","Estimate","Margin Of Error"]
[]
[null,"Median value (dollars)",256800,16050,242900,6533,338600,12777,169900,11626,258200,24566,346100,23397,194800,10057,197400,17612,227700,17188,180500,5207,239200,9117,224700,10731,255300,13441]

{"sheet":"ACS_Table_B25088","index":74,"n_rows":62,"n_cols":28,"rows_kept":62,"cut":false,"hidden":true,"merged":[]}
[null,"B25088. MEDIAN SELECTED MONTHLY OWNER COSTS (DOLLARS) BY MORTGAGE STATUS"]
[null,"Universe:  OWNER-OCCUPIED HOUSING UNITS"]
[null,"Data Set: 2018-2022 American Community Survey 5-Year Estimates"]
[]
[null,null,"Barrington",null,"Dover",null,"Durham",null,"Farmington",null,"Lee",null,"Madbury",null,"Middleton",null,"Milton",null,"New Durham",null,"Rochester",null,"Rollinsford",null,"Somersworth",null,"Strafford"]
[null,null,"Estimate","Margin Of Error","Estimate","Margin Of Error","Estimate","Margin Of Error","Estimate","Margin Of Error","Estimate","Margin Of Error","Estimate","Margin Of Error","Estimate","Margin Of Error","Estimate","Margin Of Error","Estimate","Margin Of Error","Estimate","Margin Of Error","Estimate","Margin Of Error","Estimate","Margin Of Error","Estimate","Margin Of Error"]
[]
[null,"Total:",1614,267,2066,142,2406,161,1520,366,2062,364,2403,312,1630,121,1600,124,1599,117,1331,96,1771,238,1858,138,1960,196]
[null,"Housing units with a mortgage (dollars)",2266,141,2564,122,2943,183,2078,184,2762,343,2891,187,1877,119,1799,108,1773,141,1905,102,2133,210,2179,89,2361,167]
[null,"Housing units without a mortgage (dollars)",853,102,1015,95,1365,84,742,75,1037,289,1242,116,763,52,821,201,738,97,868,71,900,161,862,38,872,116]
[]
[]
[]
[]
[]
[]
[]
[]
[]
[]
[]
[]
[]
[]
[]
[]
[]
[]
[]
[]
[]
[]
[]
[]
[]
[]
[]
[]
[]
[null,"B25088. MEDIAN SELECTED MONTHLY OWNER COSTS (DOLLARS) BY MORTGAGE STATUS"]
[null,"Universe:  OWNER-OCCUPIED HOUSING UNITS"]
[null,"Data Set: 2013-2017 American Community Survey 5-Year Estimates"]
[]
[null,null,"Barrington",null,"Dover",null,"Durham",null,"Farmington",null,"Lee",null,"Madbury",null,"Middleton",null,"Milton",null,"New Durham",null,"Rochester",null,"Rollinsford",null,"Somersworth",null,"Strafford"]
[null,null,"Estimate","Margin Of Error","Estimate","Margin Of Error","Estimate","Margin Of Error","Estimate","Margin Of Error","Estimate","Margin Of Error","Estimate","Margin Of Error","Estimate","Margin Of Error","Estimate","Margin Of Error","Estimate","Margin Of Error","Estimate","Margin Of Error","Estimate","Margin Of Error","Estimate","Margin Of Error","Estimate","Margin Of Error"]
[]
[null,"Total:",1579,265,1551,90,2100,145,1242,217,2003,234,2129,251,1462,231,1324,108,1495,142,1177,60,1471,120,1379,102,1601,182]
[null,"Housing units with a mortgage (dollars)",2025,242,1931,75,2540,163,1682,134,2217,169,2549,172,1617,81,1759,196,1735,123,1583,72,1802,90,1694,135,2026,197]
[null,"Housing units without a mortgage (dollars)",817,63,825,43,1185,73,695,185,999,209,978,104,640,34,670,38,706,96,688,29,731,50,772,49,885,118]
[]
[]
[]
[null,"B25088. MEDIAN SELECTED MONTHLY OWNER COSTS (DOLLARS) BY MORTGAGE STATUS"]
[null,"Universe:  OWNER-OCCUPIED HOUSING UNITS"]
[null,"Data Set: 2008-2012 American Community Survey 5-Year Estimates"]
[]
[null,null,"Barrington",null,"Dover",null,"Durham",null,"Farmington",null,"Lee",null,"Madbury",null,"Middleton",null,"Milton",null,"New Durham",null,"Rochester",null,"Rollinsford",null,"Somersworth",null,"Strafford"]
[null,null,"Estimate","Margin Of Error","Estimate","Margin Of Error","Estimate","Margin Of Error","Estimate","Margin Of Error","Estimate","Margin Of Error","Estimate","Margin Of Error","Estimate","Margin Of Error","Estimate","Margin Of Error","Estimate","Margin Of Error","Estimate","Margin Of Error","Estimate","Margin Of Error","Estimate","Margin Of Error","Estimate","Margin Of Error"]
[]
[null,"Total:",1753,200,1636,71,1935,98,1388,158,1676,224,1867,130,1378,113,1283,199,1750,159,1314,76,1711,159,1424,239,1572,114]
[null,"Housing units with a mortgage (dollars)",2066,151,2033,88,2533,169,1595,84,2157,241,2472,379,1557,85,1797,131,1922,119,1768,73,1987,176,1902,126,1775,153]
[null,"Housing units without a mortgage (dollars)",712,57,759,42,"1,000+","***",633,63,908,180,"1,000+","***",624,61,650,50,671,46,681,26,785,54,790,54,845,97]

{"sheet":"ACS_Table_B25091","index":75,"n_rows":219,"n_cols":28,"rows_kept":219,"cut":false,"hidden":true,"merged":[]}
[null,"B25091. MORTGAGE STATUS BY SELECTED MONTHLY OWNER COSTS AS A PERCENTAGE OF HOUSEHOLD INCOME IN THE PAST 12 MONTHS "]
[null,"Universe:  OWNER-OCCUPIED HOUSING UNITS"]
[null,"Data Set: 2018-2022 American Community Survey 5-Year Estimates"]
[]
[null,null,"Barrington",null,"Dover",null,"Durham",null,"Farmington",null,"Lee",null,"Madbury",null,"Middleton",null,"Milton",null,"New Durham",null,"Rochester",null,"Rollinsford",null,"Somersworth",null,"Strafford"]
[null,null,"Estimate","Margin Of Error","Estimate","Margin Of Error","Estimate","Margin Of Error","Estimate","Margin Of Error","Estimate","Margin Of Error","Estimate","Margin Of Error","Estimate","Margin Of Error","Estimate","Margin Of Error","Estimate","Margin Of Error","Estimate","Margin Of Error","Estimate","Margin Of Error","Estimate","Margin Of Error","Estimate","Margin Of Error"]
[null,"Total",3074,266,7585,556,1857,246,2024,274,1672,189,558,91,522,88,1452,134,911,97,8933,466,868,116,3388,318,1343,94]
[null,"Housing units with a mortgage:",1785,279,5042,476,1179,183,1253,257,1041,200,354,91,367,70,987,127,654,83,5173,371,496,106,2284,359,938,126]
[null,"Less than 10.0 percent",36,37,235,129,54,36,51,61,82,68,20,19,28,20,18,21,55,37,278,127,17,14,46,74,29,28]
[null,"10.0 to 14.9 percent",307,169,769,192,113,41,118,78,78,59,84,40,47,24,178,90,180,81,739,210,118,50,185,105,147,78]
[null,"15.0 to 19.9 percent",469,172,1034,232,237,122,169,104,144,92,115,75,44,19,279,90,129,49,1233,280,110,46,385,146,293,127]
[null,"20.0 to 24.9 percent",314,140,876,231,272,81,306,156,379,184,50,25,75,29,88,52,87,47,731,186,55,32,279,120,191,75]
[null,"25.0 to 29.9 percent",117,79,456,162,220,84,298,150,131,81,28,21,76,49,75,61,42,22,609,183,35,26,374,174,57,42]
[null,"30.0 to 34.9 percent",168,105,577,225,60,36,111,75,90,85,23,16,21,14,6,10,59,57,396,146,26,26,216,124,27,23]
[null,"35.0 to 39.9 percent",164,93,185,115,45,38,15,24,0,12,15,14,26,17,169,107,21,22,327,183,32,29,363,288,22,20]
[null,"40.0 to 49.9 percent",57,49,272,134,69,57,62,61,41,34,7,11,17,11,115,72,22,16,376,154,43,33,267,169,84,50]
[null,"50.0 percent or more",153,116,603,247,93,49,112,82,96,73,12,12,33,19,59,49,55,29,484,144,60,37,169,113,88,43]
[null,"Not computed",0,17,35,40,16,26,11,25,0,12,0,12,0,12,0,12,4,6,0,25,0,12,0,19,0,12]
[null,"Housing units without a mortgage:",1289,268,2543,397,678,144,771,281,631,219,204,59,155,44,465,122,257,81,3760,424,372,115,1104,197,405,108]
[null,"Less than 10.0 percent",381,154,760,205,285,90,96,64,223,156,91,38,37,19,181,88,94,49,859,194,102,44,278,118,198,81]
[null,"10.0 to 14.9 percent",362,166,737,290,141,78,237,138,72,59,53,36,21,13,41,30,47,26,897,251,38,22,235,102,64,39]
[null,"15.0 to 19.9 percent",256,144,295,106,64,37,43,46,93,68,13,9,38,20,47,36,37,23,474,153,34,24,233,122,32,28]
[null,"20.0 to 24.9 percent",90,62,190,107,35,28,242,248,67,71,14,13,18,17,58,52,4,6,330,146,21,15,156,88,26,24]
[null,"25.0 to 29.9 percent",152,108,130,87,0,19,19,33,120,98,6,9,0,12,40,44,0,12,177,97,28,26,16,26,35,45]
[null,"30.0 to 34.9 percent",2,11,117,67,10,12,16,30,30,47,1,2,13,10,3,7,24,27,253,112,13,13,80,58,0,12]
[null,"35.0 to 39.9 percent",8,15,63,48,41,31,36,47,26,41,4,7,3,5,17,19,4,6,171,74,0,12,35,31,12,16]
[null,"40.0 to 49.9 percent",0,17,161,138,25,23,0,17,0,12,2,3,5,6,50,57,0,12,125,64,0,12,24,37,0,12]
[null,"50.0 percent or more",14,22,77,58,65,51,82,64,0,12,18,14,18,16,20,22,47,33,474,188,136,123,47,46,20,18]
[null,"Not computed",24,38,13,23,12,18,0,17,0,12,2,4,2,5,8,13,0,12,0,25,0,12,0,19,18,17]
[]
[]
[]
[null,"Calculated B25091. MORTGAGE STATUS BY SELECTED MONTHLY OWNER COSTS AS A PERCENTAGE OF HOUSEHOLD INCOME IN THE PAST 12 MONTHS "]
[null,"Universe:  OWNER-OCCUPIED HOUSING UNITS"]
[null,"Data Set: 2018-2022 American Community Survey 5-Year Estimates"]
[]
[null,null,"Barrington",null,"Dover",null,"Durham",null,"Farmington",null,"Lee",null,"Madbury",null,"Middleton",null,"Milton",null,"New Durham",null,"Rochester",null,"Rollinsford",null,"Somersworth",null,"Strafford"]
[null,null,"Estimate","Margin Of Error","Estimate","Margin Of Error","Estimate","Margin Of Error","Estimate","Margin Of Error","Estimate","Margin Of Error","Estimate","Margin Of Error","Estimate","Margin Of Error","Estimate","Margin Of Error","Estimate","Margin Of Error","Estimate","Margin Of Error","Estimate","Margin Of Error","Estimate","Margin Of Error","Estimate","Margin Of Error"]
[null,"Total:",{"$f":"C7","v":3074},{"$f":"D7","v":266},{"$f":"E7","v":7585},556,1857,246,2024,274,1672,189,558,91,522,88,1452,134,911,97,8933,466,868,116,{"$f":"Y7","v":3388},{"$f":"Z7","v":318},{"$f":"AA7","v":1343},{"$f":"AB7","v":94}]
[null,"Less than 10.0 percent",{"$f":"C9+C20","v":417},{"$f":"SQRT((D9^2)+(D20^2))","v":158.38244852255568},{"$f":"E9+E20","v":995},{"$f":"SQRT((F9^2)+(F20^2))","v":242.21065211918324},{"$f":"G9+G20","v":339},{"$f":"SQRT((H9^2)+(H20^2))","v":96.932966528421076},{"$f":"I9+I20","v":147},{"$f":"SQRT((J9^2)+(J20^2))","v":88.41379982785493},{"$f":"K9+K20","v":305},{"$f":"SQRT((L9^2)+(L20^2))","v":170.17637908946119},{"$f":"M9+M20","v":111},{"$f":"SQRT((N9^2)+(N20^2))","v":42.485291572496003},{"$f":"O9+O20","v":65},{"$f":"SQRT((P9^2)+(P20^2))","v":27.586228448267445},{"$f":"Q9+Q20","v":199},{"$f":"SQRT((R9^2)+(R20^2))","v":90.470989825468365},{"$f":"S9+S20","v":149},{"$f":"SQRT((T9^2)+(T20^2))","v":61.400325732035007},{"$f":"U9+U20","v":1137},{"$f":"SQRT((V9^2)+(V20^2))","v":231.87280996270349},{"$f":"W9+W20","v":119},{"$f":"SQRT((X9^2)+(X20^2))","v":46.173585522460783},324,{"$f":"SQRT((Z9^2)+(Z20^2))","v":139.28388277184121},{"$f":"AA9+AA20","v":227},{"$f":"SQRT((AB9^2)+(AB20^2))","v":85.702975444263316}]
[null,"10.0 to 14.9 percent",{"$f":"C10+C21","v":669},236.8902699563661,1506,347.79879240733425,254,88.11923740024082,355,158.51813776347487,150,83.438600180012614,137,53.814496188294839,68,27.294688127912362,219,94.868329805051374,227,85.07055894961546,1636,327.26289126633344,156,{"$f":"SQRT((X10^2)+(X21^2))","v":54.626001134990652},420,146.38647478507022,211,87.206651122491792]
[null,"15.0 to 19.9 percent",725,224.32119828495925,1329,255.06861821870601,301,127.4872542648872,212,113.718951806636,237,114.40279716860073,128,75.538069872085032,82,27.586228448267445,326,96.932966528421076,166,54.12947441089743,1707,319.07522623983203,144,51.884487084291386,618,190.26297590440447,325,130.04999038831184]
[null,"20.0 to 24.9 percent",404,153.11433636338563,1066,254.57808232446092,307,85.702975444263316,548,292.98464123567982,446,197.22322378462431,64,28.178005607210743,93,33.61547262794322,146,73.53910524340094,91,47.381430961928537,1061,236.45718428502019,76,35.341194094144583,435,148.8086019019062,217,78.746428490440124]
[null,"25.0 to 29.9 percent",269,133.80956617521784,586,183.88311504866346,220,86.122006479180456,317,153.58710883404245,251,127.1416532848303,34,22.847319317591726,76,50.447993022517757,115,75.213030785895072,42,25.059928172283335,786,207.1183236703117,63,36.76955262170047,390,175.93180496999398,92,61.554853586049575]
[null,"30.0 to 34.9 percent",170,105.57461816175325,694,234.76371099469355,70,37.947331922020552,127,80.777472107017559,120,97.128780492704635,24,16.124515496597098,34,17.204650534085253,9,12.206555615733702,83,63.071388124885914,649,184.01086924418351,39,29.068883707497267,296,136.89411966918081,27,25.942243542145693]
[null,"35.0 to 39.9 percent",172,94.201910808645493,248,124.61540835707277,86,49.040799340956916,51,52.773099207835045,26,42.720018726587654,19,15.652475842498529,29,17.720045146669349,186,108.67382389517726,25,22.803508501982758,498,197.39554199626699,32,31.384709652950431,398,289.66359798911566,34,25.612496949731394]
[null,"40.0 to 49.9 percent",57,51.86520991955976,433,192.35384061671346,94,61.465437442517235,62,63.324560795950255,41,36.055512754639892,9,11.401754250991379,22,12.529964086141668,165,91.831367190083796,22,20,501,166.76930173146374,43,35.114099732158877,291,173.00289014926889,84,51.419840528729765]
[null,"50.0 percent or more",167,118.06777714516353,680,253.71834777958017,158,70.724818840347695,194,104.01922899156675,96,73.979726952726722,30,18.439088914585774,51,24.839484696748443,79,53.712196007983138,102,43.931765272977593,958,236.81216184985095,196,128.4445405612866,216,122.00409829181969,108,46.61544808322666]
[null,"Not computed",24,41.629316592997299,48,46.141087980237309,28,31.622776601683793,11,30.232432915661949,0,16.970562748477139,2,12.649110640673518,2,13,8,17.691806012954132,4,13.416407864998739,0,35.355339059327378,0,16.970562748477139,0,26.870057685088806,18,20.808652046684813]
[]
[]
[]
[]
[null,"Calculated MONTHLY OWNER COSTS AS A PERCENTAGE OF HOUSEHOLD INCOME IN THE PAST 12 MONTHS "]
[null,"Universe:  OWNER-OCCUPIED HOUSING UNITS"]
[null,"Data Set: 2018-2022 American Community Survey 5-Year Estimates"]
[null,null,"Barrington",null,"Dover",null,"Durham",null,"Farmington",null,"Lee",null,"Madbury",null,"Middleton",null,"Milton",null,"New Durham",null,"Rochester",null,"Rollinsford",null,"Somersworth",null,"Strafford"]
[null,null,"Estimate","Margin Of Error","Estimate","Margin Of Error","Estimate","Margin Of Error","Estimate","Margin Of Error","Estimate","Margin Of Error","Estimate","Margin Of Error","Estimate","Margin Of Error","Estimate","Margin Of Error","Estimate","Margin Of Error","Estimate","Margin Of Error","Estimate","Margin Of Error","Estimate","Margin Of Error","Estimate","Margin Of Error"]
[null,"Total:",{"$f":"C39","v":3074},{"$f":"D39","v":266},7585,556,1857,246,2024,274,1672,189,558,91,522,88,1452,134,911,97,8933,466,868,116,{"$f":"Y39","v":3388},{"$f":"Z39","v":318},{"$f":"AA39","v":1343},{"$f":"AB39","v":94}]
[null,"Less than 20% of HH Income",{"$f":"C40+C41+C42","v":1811},{"$f":"SQRT((D40^2)+(D41^2)+(D42^2))","v":362.65962002958088},{"$f":"E40+E41+E42","v":3830},{"$f":"SQRT((F40^2)+(F41^2)+(F42^2))","v":494.66150042225843},{"$f":"G40+G41+G42","v":894},{"$f":"SQRT((H40^2)+(H41^2)+(H42^2))","v":182.79496710795951},{"$f":"I40+I41+I42","v":714},{"$f":"SQRT((J40^2)+(J41^2)+(J42^2))","v":214.18916872708573},{"$f":"K40+K41+K42","v":692},{"$f":"SQRT((L40^2)+(L41^2)+(L42^2))","v":221.38202275704325},{"$f":"M40+M41+M42","v":376},{"$f":"SQRT((N40^2)+(N41^2)+(N42^2))","v":102.01470482239313},{"$f":"O40+O41+O42","v":215},{"$f":"SQRT((P40^2)+(P41^2)+(P42^2))","v":47.61302342846966},{"$f":"Q40+Q41+Q42","v":744},{"$f":"SQRT((R40^2)+(R41^2)+(R42^2))","v":163.03680566056244},{"$f":"S40+S41+S42","v":542},{"$f":"SQRT((T40^2)+(T41^2)+(T42^2))","v":118.05507189443408},{"$f":"U40+U41+U42","v":4480},{"$f":"SQRT((V40^2)+(V41^2)+(V42^2))","v":512.51829235647779},{"$f":"W40+W41+W42","v":419},{"$f":"SQRT((X40^2)+(X41^2)+(X42^2))","v":88.362888137498089},{"$f":"Y40+Y41+Y42","v":1362},{"$f":"SQRT((Z40^2)+(Z41^2)+(Z42^2))","v":277.54098796394021},{"$f":"AA40+AA41+AA42","v":763},{"$f":"SQRT((AB40^2)+(AB41^2)+(AB42^2))","v":178.50210082797346}]
[null," 20% to 29.9% of HH Income",{"$f":"C43+C44","v":673},{"$f":"SQRT((D43^2)+(D44^2))","v":203.34453521056327},{"$f":"E43+E44","v":1652},{"$f":"SQRT((F43^2)+(F44^2))","v":314.04299068758087},{"$f":"G43+G44","v":527},{"$f":"SQRT((H43^2)+(H44^2))","v":121.49897118905987},{"$f":"I43+I44","v":865},{"$f":"SQRT((J43^2)+(J44^2))","v":330.80054413498175},{"$f":"K43+K44","v":697},{"$f":"SQRT((L43^2)+(L44^2))","v":234.65293520431402},{"$f":"M43+M44","v":98},{"$f":"SQRT((N43^2)+(N44^2))","v":36.276714294434107},{"$f":"O43+O44","v":169},{"$f":"SQRT((P43^2)+(P44^2))","v":60.621778264910702},{"$f":"Q43+Q44","v":261},{"$f":"SQRT((R43^2)+(R44^2))","v":105.19030373565806},{"$f":"S43+S44","v":133},{"$f":"SQRT((T43^2)+(T44^2))","v":53.600373133029585},{"$f":"U43+U44","v":1847},{"$f":"SQRT((V43^2)+(V44^2))","v":314.34057962662092},{"$f":"W43+W44","v":139},{"$f":"SQRT((X43^2)+(X44^2))","v":51},{"$f":"Y43+Y44","v":825},{"$f":"SQRT((Z43^2)+(Z44^2))","v":230.42569301186879},{"$f":"AA43+AA44","v":309},{"$f":"SQRT((AB43^2)+(AB44^2))","v":99.949987493746093}]
[null," Less Than 30% of HH Income",{"$f":"C40+C41+C42+C43+C44","v":2484},{"$f":"SQRT((D40^2)+(D41^2)+(D42^2)+(D43^2)+(D44^2))","v":415.77758477339779},{"$f":"E40+E41+E42+E43+E44","v":5482},{"$f":"SQRT((F40^2)+(F41^2)+(F42^2)+(F43^2)+(F44^2))","v":585.9291766075487},{"$f":"G40+G41+G42+G43+G44","v":1421},{"$f":"SQRT((H40^2)+(H41^2)+(H42^2)+(H43^2)+(H44^2))","v":219.49031869310318},{"$f":"I40+I41+I42+I43+I44","v":1579},{"$f":"SQRT((J40^2)+(J41^2)+(J42^2)+(J43^2)+(J44^2))","v":394.08882247533995},{"$f":"K40+K41+K42+K43+K44","v":1389},{"$f":"SQRT((L40^2)+(L41^2)+(L42^2)+(L43^2)+(L44^2))","v":322.60192187896217},{"$f":"M40+M41+M42+M43+M44","v":474},{"$f":"SQRT((N40^2)+(N41^2)+(N42^2)+(N43^2)+(N44^2))","v":108.27280360275151},{"$f":"O40+O41+O42+O43+O44","v":384},{"$f":"SQRT((P40^2)+(P41^2)+(P42^2)+(P43^2)+(P44^2))","v":77.08436936240706},{"$f":"Q40+Q41+Q42+Q43+Q44","v":1005},{"$f":"SQRT((R40^2)+(R41^2)+(R42^2)+(R43^2)+(R44^2))","v":194.02577148409949},{"$f":"S40+S41+S42+S43+S44","v":675},{"$f":"SQRT((T40^2)+(T41^2)+(T42^2)+(T43^2)+(T44^2))","v":129.65338406690356},{"$f":"U40+U41+U42+U43+U44","v":6327},{"$f":"SQRT((V40^2)+(V41^2)+(V42^2)+(V43^2)+(V44^2))","v":601.23622645346313},{"$f":"W40+W41+W42+W43+W44","v":558},{"$f":"SQRT((X40^2)+(X41^2)+(X42^2)+(X43^2)+(X44^2))","v":102.02450685987166},{"$f":"Y40+Y41+Y42+Y43+Y44","v":2187},{"$f":"SQRT((Z40^2)+(Z41^2)+(Z42^2)+(Z43^2)+(Z44^2))","v":360.72842970855515},{"$f":"AA40+AA41+AA42+AA43+AA44","v":1072},{"$f":"SQRT((AB40^2)+(AB41^2)+(AB42^2)+(AB43^2)+(AB44^2))","v":204.5800576791394}]
[null," 30% or More of HH Income",{"$f":"C45+C46+C47+C48","v":566},{"$f":"SQRT((D45^2)+(D46^2)+(D47^2)+(D48^2))","v":191.44189719076647},{"$f":"E45+E46+E47+E48","v":2055},{"$f":"SQRT((F45^2)+(F46^2)+(F47^2)+(F48^2))","v":414.74811633086415},{"$f":"G45+G46+G47+G48","v":408},{"$f":"SQRT((H45^2)+(H46^2)+(H47^2)+(H48^2))","v":112.36102527122117},{"$f":"I45+I46+I47+I48","v":434},{"$f":"SQRT((J45^2)+(J46^2)+(J47^2)+(J48^2))","v":155.37052487521564},{"$f":"K45+K46+K47+K48","v":283},{"$f":"SQRT((L45^2)+(L46^2)+(L47^2)+(L48^2))","v":134.28328265275616},{"$f":"M45+M46+M47+M48","v":82},{"$f":"SQRT((N45^2)+(N46^2)+(N47^2)+(N48^2))","v":31.22498999199199},{"$f":"O45+O46+O47+O48","v":136},{"$f":"SQRT((P45^2)+(P46^2)+(P47^2)+(P48^2))","v":37.20215047547655},{"$f":"Q45+Q46+Q47+Q48","v":439},{"$f":"SQRT((R45^2)+(R46^2)+(R47^2)+(R48^2))","v":152.56801761837244},{"$f":"S45+S46+S47+S48","v":232},{"$f":"SQRT((T45^2)+(T46^2)+(T47^2)+(T48^2))","v":82.631713040454386},{"$f":"U45+U46+U47+U48","v":2606},{"$f":"SQRT((V45^2)+(V46^2)+(V47^2)+(V48^2))","v":395.87498026523474},{"$f":"W45+W46+W47+W48","v":310},{"$f":"SQRT((X45^2)+(X46^2)+(X47^2)+(X48^2))","v":139.86064492915796},{"$f":"Y45+Y46+Y47+Y48","v":1201},{"$f":"SQRT((Z45^2)+(Z46^2)+(Z47^2)+(Z48^2))","v":384.00520829801252},{"$f":"AA45+AA46+AA47+AA48","v":253},{"$f":"SQRT((AB45^2)+(AB46^2)+(AB47^2)+(AB48^2))","v":78.396428490078549}]
[null," 30% to 34.9% of HH Income",{"$f":"C45","v":170},{"$f":"D45","v":105.57461816175325},{"$f":"E45","v":694},234.76371099469355,70,37.947331922020552,127,80.777472107017559,120,97.128780492704635,24,16.124515496597098,34,17.204650534085253,9,12.206555615733702,83,63.071388124885914,649,184.01086924418351,39,29.068883707497267,{"$f":"Y45","v":296},{"$f":"Z45","v":136.89411966918081},{"$f":"AA45","v":27},{"$f":"AB45","v":25.942243542145693}]
[null," Less Than 35% of HH Income",{"$f":"C40+C41+C42+C43+C44+C45","v":2654},{"$f":"SQRT((D40^2)+(D41^2)+(D42^2)+(D43^2)+(D44^2)+(D45^2))","v":428.97202706004038},{"$f":"E40+E41+E42+E43+E44+E45","v":6176},{"$f":"SQRT((F40^2)+(F41^2)+(F42^2)+(F43^2)+(F44^2)+(F45^2))","v":631.21074135347226},{"$f":"G40+G41+G42+G43+G44+G45","v":1491},{"$f":"SQRT((H40^2)+(H41^2)+(H42^2)+(H43^2)+(H44^2)+(H45^2))","v":222.74649267721367},{"$f":"I40+I41+I42+I43+I44+I45","v":1706},{"$f":"SQRT((J40^2)+(J41^2)+(J42^2)+(J43^2)+(J44^2)+(J45^2))","v":402.28223923012064},{"$f":"K40+K41+K42+K43+K44+K45","v":1509},{"$f":"SQRT((L40^2)+(L41^2)+(L42^2)+(L43^2)+(L44^2)+(L45^2))","v":336.906515223437},{"$f":"M40+M41+M42+M43+M44+M45","v":498},{"$f":"SQRT((N40^2)+(N41^2)+(N42^2)+(N43^2)+(N44^2)+(N45^2))","v":109.46688997135161},{"$f":"O40+O41+O42+O43+O44+O45","v":418},{"$f":"SQRT((P40^2)+(P41^2)+(P42^2)+(P43^2)+(P44^2)+(P45^2))","v":78.981010375912518},{"$f":"Q40+Q41+Q42+Q43+Q44+Q45","v":1014},{"$f":"SQRT((R40^2)+(R41^2)+(R42^2)+(R43^2)+(R44^2)+(R45^2))","v":194.40936191449217},{"$f":"S40+S41+S42+S43+S44+S45","v":758},{"$f":"SQRT((T40^2)+(T41^2)+(T42^2)+(T43^2)+(T44^2)+(T45^2))","v":144.18044250174847},{"$f":"U40+U41+U42+U43+U44+U45","v":6976},{"$f":"SQRT((V40^2)+(V41^2)+(V42^2)+(V43^2)+(V44^2)+(V45^2))","v":628.76466185688264},{"$f":"W40+W41+W42+W43+W44+W45","v":597},{"$f":"SQRT((X40^2)+(X41^2)+(X42^2)+(X43^2)+(X44^2)+(X45^2))","v":106.08487168300671},{"$f":"Y40+Y41+Y42+Y43+Y44+Y45","v":2483},{"$f":"SQRT((Z40^2)+(Z41^2)+(Z42^2)+(Z43^2)+(Z44^2)+(Z45^2))","v":385.83027356598132},{"$f":"AA40+AA41+AA42+AA43+AA44+AA45","v":1099},{"$f":"SQRT((AB40^2)+(AB41^2)+(AB42^2)+(AB43^2)+(AB44^2)+(AB45^2))","v":206.21833090198359}]
[null," 35% or More of HH Income",{"$f":"C46+C47+C48","v":396},{"$f":"SQRT((D46^2)+(D47^2)+(D48^2))","v":159.69971822141704},{"$f":"E46+E47+E48","v":1361},{"$f":"SQRT((F46^2)+(F47^2)+(F48^2))","v":341.90934470996842},{"$f":"G46+G47+G48","v":338},{"$f":"SQRT((H46^2)+(H47^2)+(H48^2))","v":105.75916035975324},{"$f":"I46+I47+I48","v":307},{"$f":"SQRT((J46^2)+(J47^2)+(J48^2))","v":132.72151295099073},{"$f":"K46+K47+K48","v":163},{"$f":"SQRT((L46^2)+(L47^2)+(L48^2))","v":92.72540105062906},{"$f":"M46+M47+M48","v":58},{"$f":"SQRT((N46^2)+(N47^2)+(N48^2))","v":26.739483914241877},{"$f":"O46+O47+O48","v":102},{"$f":"SQRT((P46^2)+(P47^2)+(P48^2))","v":32.984845004941285},{"$f":"Q46+Q47+Q48","v":430},{"$f":"SQRT((R46^2)+(R47^2)+(R48^2))","v":152.07892687680302},{"$f":"S46+S47+S48","v":149},{"$f":"SQRT((T46^2)+(T47^2)+(T48^2))","v":53.385391260156553},{"$f":"U46+U47+U48","v":1957},{"$f":"SQRT((V46^2)+(V47^2)+(V48^2))","v":350.5096289690199},{"$f":"W46+W47+W48","v":271},{"$f":"SQRT((X46^2)+(X47^2)+(X48^2))","v":136.80643259730149},{"$f":"Y46+Y47+Y48","v":905},{"$f":"SQRT((Z46^2)+(Z47^2)+(Z48^2))","v":358.77569594385852},{"$f":"AA46+AA47+AA48","v":226},{"$f":"SQRT((AB46^2)+(AB47^2)+(AB48^2))","v":73.979726952726722}]
[null," 50% or More of HH Income",{"$f":"C48","v":167},{"$f":"D48","v":118.06777714516353},{"$f":"E48","v":680},253.71834777958017,158,70.724818840347695,194,104.01922899156675,96,73.979726952726722,30,18.439088914585774,51,24.839484696748443,79,53.712196007983138,102,43.931765272977593,958,236.81216184985095,196,128.4445405612866,{"$f":"Y48","v":216},122.00409829181969,108,46.61544808322666]
[null,"Not computed",{"$f":"C49","v":24},{"$f":"D49","v":41.629316592997299},{"$f":"E49","v":48},46.141087980237309,28,31.622776601683793,11,30.232432915661949,0,16.970562748477139,2,12.649110640673518,2,13,8,17.691806012954132,4,13.416407864998739,0,35.355339059327378,0,16.970562748477139,0,26.870057685088806,18,20.808652046684813]
[]
[]
[]
[]
[]
[]
[]
[]
[]
[]
[]
[]
[null,"B25091. MORTGAGE STATUS BY SELECTED MONTHLY OWNER COSTS AS A PERCENTAGE OF HOUSEHOLD INCOME IN THE PAST 12 MONTHS "]
[null,"Universe:  OWNER-OCCUPIED HOUSING UNITS"]
[null,"Data Set: 2013-2017 American Community Survey 5-Year Estimates"]
[]
[null,null,"Barrington",null,"Dover",null,"Durham",null,"Farmington",null,"Lee",null,"Madbury",null,"Middleton",null,"Milton",null,"New Durham",null,"Rochester",null,"Rollinsford",null,"Somersworth",null,"Strafford"]
[null,null,"Estimate","Margin Of Error","Estimate","Margin Of Error","Estimate","Margin Of Error","Estimate","Margin Of Error","Estimate","Margin Of Error","Estimate","Margin Of Error","Estimate","Margin Of Error","Estimate","Margin Of Error","Estimate","Margin Of Error","Estimate","Margin Of Error","Estimate","Margin Of Error","Estimate","Margin Of Error","Estimate","Margin Of Error"]
[null,"Total",3118,226,7021,367,1833,175,1850,201,1450,148,538,63,499,74,1520,115,921,56,8308,395,765,74,2735,242,1287,101]
[null,"Housing units with a mortgage:",2223,279,4519,346,1234,171,1060,210,1139,136,394,53,397,64,993,113,669,66,5026,383,495,64,1935,256,925,114]
[null,"Less than 10.0 percent",143,105,195,84,51,42,50,50,45,48,12,10,17,12,13,15,43,31,162,93,22,17,57,64,32,30]
[null,"10.0 to 14.9 percent",206,138,534,167,164,69,143,101,145,97,57,29,72,31,92,53,66,45,614,144,78,35,257,108,169,75]
[null,"15.0 to 19.9 percent",643,254,1065,193,237,71,245,111,308,134,94,31,53,24,95,42,149,50,786,186,91,34,359,127,294,108]
[null,"20.0 to 24.9 percent",357,165,972,191,284,83,214,111,213,148,76,28,85,32,279,96,110,38,969,193,69,28,470,151,123,52]
[null,"25.0 to 29.9 percent",192,125,588,150,178,73,172,126,123,75,42,20,52,22,159,83,88,31,734,193,85,31,247,114,52,35]
[null,"30.0 to 34.9 percent",217,105,317,128,128,61,38,42,109,63,37,21,26,15,77,48,59,37,349,150,67,36,221,87,108,50]
[null,"35.0 to 39.9 percent",0,16,167,73,70,51,64,75,39,40,16,16,29,15,76,59,53,24,221,89,18,16,76,57,48,29]
[null,"40.0 to 49.9 percent",131,127,261,93,49,31,99,77,46,41,11,10,29,14,114,59,53,35,514,155,28,22,125,74,41,28]
[null,"50.0 percent or more",334,175,411,154,65,53,35,41,111,85,49,25,28,16,88,57,48,29,677,192,37,21,123,71,58,32]
[null,"Not computed",0,16,9,15,8,11,0,16,0,11,0,11,6,6,0,11,0,11,0,24,0,11,0,18,0,11]
[null,"Housing units without a mortgage:",895,260,2502,267,599,109,790,209,311,129,144,46,102,31,527,118,252,61,3282,299,270,56,800,172,362,98]
[null,"Less than 10.0 percent",262,161,591,154,152,59,88,65,121,88,45,21,20,12,163,73,58,27,837,219,100,41,78,57,106,55]
[null,"10.0 to 14.9 percent",200,101,479,151,201,68,336,143,107,95,14,11,26,16,132,70,62,31,713,165,66,29,221,89,62,47]
[null,"15.0 to 19.9 percent",82,74,381,143,41,32,128,81,34,40,31,15,21,15,116,68,51,40,576,165,36,19,153,104,40,25]
[null,"20.0 to 24.9 percent",78,77,276,118,60,39,23,31,0,11,18,21,9,11,18,20,30,20,156,65,19,28,182,91,39,30]
[null,"25.0 to 29.9 percent",13,21,207,112,68,44,43,42,12,17,22,16,3,5,17,19,12,15,290,110,27,16,56,46,11,17]
[null,"30.0 to 34.9 percent",0,16,123,105,21,20,21,34,0,11,2,4,0,11,26,25,18,29,125,48,0,11,0,18,4,8]
[null,"35.0 to 39.9 percent",32,54,91,62,11,16,17,27,24,37,2,5,0,11,11,14,0,11,129,67,0,11,14,23,37,38]
[null,"40.0 to 49.9 percent",76,92,61,45,40,35,14,26,0,11,2,4,11,9,11,18,6,8,154,96,16,14,44,42,11,19]
[null,"50.0 percent or more",152,153,272,116,5,7,120,98,13,19,8,8,9,8,33,25,10,10,286,109,6,9,52,47,46,53]
[null,"Not computed",0,16,21,33,0,18,0,16,0,11,0,11,3,4,0,11,5,8,16,24,0,11,0,18,6,11]
[]
[]
[]
[null,"Calculated B25091. MORTGAGE STATUS BY SELECTED MONTHLY OWNER COSTS AS A PERCENTAGE OF HOUSEHOLD INCOME IN THE PAST 12 MONTHS "]
[null,"Universe:  OWNER-OCCUPIED HOUSING UNITS"]
[null,{"$f":"B83","v":"Data Set: 2013-2017 American Community Survey 5-Year Estimates"}]
[]
[null,null,"Barrington",null,"Dover",null,"Durham",null,"Farmington",null,"Lee",null,"Madbury",null,"Middleton",null,"Milton",null,"New Durham",null,"Rochester",null,"Rollinsford",null,"Somersworth",null,"Strafford"]
[null,null,"Estimate","Margin Of Error","Estimate","Margin Of Error","Estimate","Margin Of Error","Estimate","Margin Of Error","Estimate","Margin Of Error","Estimate","Margin Of Error","Estimate","Margin Of Error","Estimate","Margin Of Error","Estimate","Margin Of Error","Estimate","Margin Of Error","Estimate","Margin Of Error","Estimate","Margin Of Error","Estimate","Margin Of Error"]
[null,"Total:",{"$f":"C87","v":3118},{"$f":"D87","v":226},{"$f":"E87","v":7021},367,1833,175,1850,201,1450,148,538,63,499,74,1520,115,921,56,8308,395,765,74,2735,242,1287,101]
[null,"Less than 10.0 percent",{"$f":"C100+C89","v":405},{"$f":"SQRT((D88^2)+(D100^2))","v":322.12109524214645},{"$f":"E100+E89","v":786},{"$f":"SQRT((F88^2)+(F100^2))","v":378.72417403698961},{"$f":"G100+G89","v":203},{"$f":"SQRT((H88^2)+(H100^2))","v":180.89223311131963},{"$f":"I100+I89","v":138},{"$f":"SQRT((J88^2)+(J100^2))","v":219.82947936980608},{"$f":"K100+K89","v":166},{"$f":"SQRT((L88^2)+(L100^2))","v":161.98765385053269},{"$f":"M100+M89","v":57},{"$f":"SQRT((N88^2)+(N100^2))","v":57.008771254956898},{"$f":"O100+O89","v":37},{"$f":"SQRT((P88^2)+(P100^2))","v":65.115282384398824},{"$f":"Q100+Q89","v":176},{"$f":"SQRT((R88^2)+(R100^2))","v":134.52880732393342},{"$f":"S100+S89","v":101},{"$f":"SQRT((T88^2)+(T100^2))","v":71.309185944028272},{"$f":"U100+U89","v":999},{"$f":"SQRT((V88^2)+(V100^2))","v":441.1915683691156},{"$f":"W100+W89","v":122},{"$f":"SQRT((X88^2)+(X100^2))","v":76.006578662639456},{"$f":"Y100+Y89","v":135},{"$f":"SQRT((Z88^2)+(Z100^2))","v":262.26894593146176},{"$f":"AA100+AA89","v":138},{"$f":"SQRT((AB88^2)+(AB100^2))","v":126.57408897558773}]
[null,"10.0 to 14.9 percent",{"$f":"C101+C90","v":406},145.69145479402695,1013,172.7917822120022,365,79.924964810752343,479,151.48927354766738,252,106.4377752492037,71,14.866068747318506,98,20,224,71.589105316381762,128,43.840620433565945,1327,189.40432941197517,144,33.61547262794322,478,109.62207806824317,231,55.758407437802596]
[null,"15.0 to 19.9 percent",725,156.58863304850706,1446,219.8590457543196,278,76.05918747922567,373,129.46814279968643,342,104.92378186092989,125,32.649655434629018,74,34.438350715445125,211,86.214847909162373,200,60.207972893961475,1362,219,127,39.824615503479755,512,149.93331851193051,334,79.05694150420949]
[null,"20.0 to 24.9 percent",435,265.41476974727686,1248,226.2144999773445,344,81.006172604314543,237,115.24755962709145,213,134.45073447177595,94,37.443290453698111,94,26.40075756488817,297,46.518813398452032,140,53.851648071345039,1125,197.03045449879062,88,44.045431091090478,652,156.23699945915499,162,112.08925015361643]
[null,"25.0 to 29.9 percent",205,166.33099530754933,795,221.41589825484527,246,93.941471140279674,215,118.68024266911489,135,148.97315194356329,64,32.249030993194197,55,32.388269481403292,176,97.862147942909985,100,40.853396431630991,1024,222.14634815814551,112,32.249030993194197,303,157.85119575093501,63,54.708317466359723]
[null,"30.0 to 34.9 percent",217,126.01983970788092,440,183.09833423600554,149,75.690157880665041,59,130.50670480860362,109,75.802374632988901,39,20.396078054371138,26,24.596747752497688,103,86.683331731077345,77,42.449970553582247,474,198.8793604173143,67,32.893768406797051,221,115.41230437002807,112,35.902646142032481]
[null,"35.0 to 39.9 percent",32,118.07201192492656,258,142.22517358048822,81,63.063460101710248,81,49.929950931279713,63,73.061617830431317,18,21.587033144922902,29,18.601075237738275,87,50,53,38.600518131237564,350,164.28329190760695,18,37.643060449437421,90,89.98888820293314,85,62.801273872430329]
[null,"40.0 to 49.9 percent",207,93.380940239430018,322,85.755466298073387,89,61.854668376768458,113,79.378838489864535,46,41.484937025383083,13,16.492422502470642,40,17.4928556845359,125,61.684682053164543,59,25.298221281347036,668,130.90836489697671,44,21.2602916254693,169,70.802542327235685,52,34.669871646719429]
[null,"50.0 percent or more",486,198.84164553734712,683,148.67750334196495,70,31.780497164141408,155,124.63145670335399,124,45.188494110780013,57,12.806248474865697,37,16.124515496597098,121,64.078077374403179,58,36.400549446402593,963,189.4887859478761,43,23.769728648009426,175,87.664131775772461,104,59.941638282582836]
[null,"Not computed",0,175.72990639046048,30,157.49603169603989,8,55.97320787662612,0,44.011362169330773,0,85.708809348864477,0,27.313000567495326,9,16.492422502470642,0,58.051701094799967,5,30.083217912982647,16,193.49418595916518,0,23.706539182259394,0,73.246160308919954,6,33.837848631377263]
[]
[]
[]
[]
[null,"Calculated B25091. MORTGAGE STATUS BY SELECTED MONTHLY OWNER COSTS AS A PERCENTAGE OF HOUSEHOLD INCOME IN THE PAST 12 MONTHS "]
[null,"Universe:  OWNER-OCCUPIED HOUSING UNITS"]
[null,{"$f":"B83","v":"Data Set: 2013-2017 American Community Survey 5-Year Estimates"}]
[null,null,"Barrington",null,"Dover",null,"Durham",null,"Farmington",null,"Lee",null,"Madbury",null,"Middleton",null,"Milton",null,"New Durham",null,"Rochester",null,"Rollinsford",null,"Somersworth",null,"Strafford"]
[null,null,"Estimate","Margin Of Error","Estimate","Margin Of Error","Estimate","Margin Of Error","Estimate","Margin Of Error","Estimate","Margin Of Error","Estimate","Margin Of Error","Estimate","Margin Of Error","Estimate","Margin Of Error","Estimate","Margin Of Error","Estimate","Margin Of Error","Estimate","Margin Of Error","Estimate","Margin Of Error","Estimate","Margin Of Error"]
[null,"Total:",{"$f":"C119","v":3118},{"$f":"D119","v":226},7021,367,1833,175,1850,201,1450,148,538,63,499,74,1520,115,921,56,8308,395,765,74,{"$f":"Y119","v":2735},{"$f":"Z119","v":242},{"$f":"AA119","v":1287},{"$f":"AB119","v":101}]
[null,"Less than 20% of HH Income",{"$f":"C120+C121+C122","v":1536},{"$f":"SQRT((D120^2)+(D121^2)+(D122^2))","v":386.66264365723254},{"$f":"E120+E121+E122","v":3245},{"$f":"SQRT((F120^2)+(F121^2)+(F122^2))","v":470.7727689660905},{"$f":"G120+G121+G122","v":846},{"$f":"SQRT((H120^2)+(H121^2)+(H122^2))","v":211.88440244623953},{"$f":"I120+I121+I122","v":990},{"$f":"SQRT((J120^2)+(J121^2)+(J122^2))","v":296.70861126701396},{"$f":"K120+K121+K122","v":760},{"$f":"SQRT((L120^2)+(L121^2)+(L122^2))","v":220.40417418914734},{"$f":"M120+M121+M122","v":253},{"$f":"SQRT((N120^2)+(N121^2)+(N122^2))","v":67.357256476195644},{"$f":"O120+O121+O122","v":209},{"$f":"SQRT((P120^2)+(P121^2)+(P122^2))","v":76.328238549045523},{"$f":"Q120+Q121+Q122","v":611},{"$f":"SQRT((R120^2)+(R121^2)+(R122^2))","v":175.08854902591432},{"$f":"S120+S121+S122","v":429},{"$f":"SQRT((T120^2)+(T121^2)+(T122^2))","v":103.11159003720192},{"$f":"U120+U121+U122","v":3688},{"$f":"SQRT((V120^2)+(V121^2)+(V122^2))","v":527.71678010084156},{"$f":"W120+W121+W122","v":393},{"$f":"SQRT((X120^2)+(X121^2)+(X122^2))","v":92.157473923713866},{"$f":"Y120+Y121+Y122","v":1125},{"$f":"SQRT((Z120^2)+(Z121^2)+(Z122^2))","v":321.37517016720506},{"$f":"AA120+AA121+AA122","v":703},{"$f":"SQRT((AB120^2)+(AB121^2)+(AB122^2))","v":159.31101656822105}]
[null," 20% to 29.9% of HH Income",{"$f":"C123+C124","v":640},{"$f":"SQRT((D123^2)+(D124^2))","v":313.22675492364954},{"$f":"E123+E124","v":2043},{"$f":"SQRT((F123^2)+(F124^2))","v":316.54067669100601},{"$f":"G123+G124","v":590},{"$f":"SQRT((H123^2)+(H124^2))","v":124.04434690867616},{"$f":"I123+I124","v":452},{"$f":"SQRT((J123^2)+(J124^2))","v":165.42974339579928},{"$f":"K123+K124","v":348},{"$f":"SQRT((L123^2)+(L124^2))","v":200.67386476569388},{"$f":"M123+M124","v":158},{"$f":"SQRT((N123^2)+(N124^2))","v":49.416596402423345},{"$f":"O123+O124","v":149},{"$f":"SQRT((P123^2)+(P124^2))","v":41.785164831552358},{"$f":"Q123+Q124","v":473},{"$f":"SQRT((R123^2)+(R124^2))","v":108.35589508651572},{"$f":"S123+S124","v":240},{"$f":"SQRT((T123^2)+(T124^2))","v":67.594378464484748},{"$f":"U123+U124","v":2149},{"$f":"SQRT((V123^2)+(V124^2))","v":296.93433617552552},{"$f":"W123+W124","v":200},{"$f":"SQRT((X123^2)+(X124^2))","v":54.589376255824718},{"$f":"Y123+Y124","v":955},{"$f":"SQRT((Z123^2)+(Z124^2))","v":222.09682573148135},{"$f":"AA123+AA124","v":225},{"$f":"SQRT((AB123^2)+(AB124^2))","v":124.72770341828635}]
[null," Less Than 30% of HH Income",{"$f":"C120+C121+C122+C123+C124","v":2176},{"$f":"SQRT((D120^2)+(D121^2)+(D122^2)+(D123^2)+(D124^2))","v":497.61330368067934},{"$f":"E120+E121+E122+E123+E124","v":5288},{"$f":"SQRT((F120^2)+(F121^2)+(F122^2)+(F123^2)+(F124^2))","v":567.29621891918157},{"$f":"G120+G121+G122+G123+G124","v":1436},{"$f":"SQRT((H120^2)+(H121^2)+(H122^2)+(H123^2)+(H124^2))","v":245.52392958732148},{"$f":"I120+I121+I122+I123+I124","v":1442},{"$f":"SQRT((J120^2)+(J121^2)+(J122^2)+(J123^2)+(J124^2))","v":339.71017058663404},{"$f":"K120+K121+K122+K123+K124","v":1108},{"$f":"SQRT((L120^2)+(L121^2)+(L122^2)+(L123^2)+(L124^2))","v":298.07381636098131},{"$f":"M120+M121+M122+M123+M124","v":411},{"$f":"SQRT((N120^2)+(N121^2)+(N122^2)+(N123^2)+(N124^2))","v":83.540409383722803},{"$f":"O120+O121+O122+O123+O124","v":358},{"$f":"SQRT((P120^2)+(P121^2)+(P122^2)+(P123^2)+(P124^2))","v":87.017239671228367},{"$f":"Q120+Q121+Q122+Q123+Q124","v":1084},{"$f":"SQRT((R120^2)+(R121^2)+(R122^2)+(R123^2)+(R124^2))","v":205.90531804691204},{"$f":"S120+S121+S122+S123+S124","v":669},{"$f":"SQRT((T120^2)+(T121^2)+(T122^2)+(T123^2)+(T124^2))","v":123.2923355282071},{"$f":"U120+U121+U122+U123+U124","v":5837},{"$f":"SQRT((V120^2)+(V121^2)+(V122^2)+(V123^2)+(V124^2))","v":605.52043730992273},{"$f":"W120+W121+W122+W123+W124","v":593},{"$f":"SQRT((X120^2)+(X121^2)+(X122^2)+(X123^2)+(X124^2))","v":107.11209082078456},{"$f":"Y120+Y121+Y122+Y123+Y124","v":2080},{"$f":"SQRT((Z120^2)+(Z121^2)+(Z122^2)+(Z123^2)+(Z124^2))","v":390.65201906556172},{"$f":"AA120+AA121+AA122+AA123+AA124","v":928},{"$f":"SQRT((AB120^2)+(AB121^2)+(AB122^2)+(AB123^2)+(AB124^2))","v":202.32894009508377}]
[null," 30% or More of HH Income",{"$f":"C125+C126+C127+C128","v":942},{"$f":"SQRT((D125^2)+(D126^2)+(D127^2)+(D128^2))","v":279.42798714516766},{"$f":"E125+E126+E127+E128","v":1703},{"$f":"SQRT((F125^2)+(F126^2)+(F127^2)+(F128^2))","v":288.46490254448634},{"$f":"G125+G126+G127+G128","v":389},{"$f":"SQRT((H125^2)+(H126^2)+(H127^2)+(H128^2))","v":120.5902151917808},{"$f":"I125+I126+I127+I128","v":408},{"$f":"SQRT((J125^2)+(J126^2)+(J127^2)+(J128^2))","v":203.36912253338755},{"$f":"K125+K126+K127+K128","v":342},{"$f":"SQRT((L125^2)+(L126^2)+(L127^2)+(L128^2))","v":121.84826629870446},{"$f":"M125+M126+M127+M128","v":127},{"$f":"SQRT((N125^2)+(N126^2)+(N127^2)+(N128^2))","v":36.304269721342692},{"$f":"O125+O126+O127+O128","v":132},{"$f":"SQRT((P125^2)+(P126^2)+(P127^2)+(P128^2))","v":38.948684188300895},{"$f":"Q125+Q126+Q127+Q128","v":436},{"$f":"SQRT((R125^2)+(R126^2)+(R127^2)+(R128^2))","v":133.88427838995884},{"$f":"S125+S126+S127+S128","v":247},{"$f":"SQRT((T125^2)+(T126^2)+(T127^2)+(T128^2))","v":72.505172229296861},{"$f":"U125+U126+U127+U128","v":2455},{"$f":"SQRT((V125^2)+(V126^2)+(V127^2)+(V128^2))","v":345.81064182584089},{"$f":"W125+W126+W127+W128","v":172},{"$f":"SQRT((X125^2)+(X126^2)+(X127^2)+(X128^2))","v":59.295868321494368},{"$f":"Y125+Y126+Y127+Y128","v":655},{"$f":"SQRT((Z125^2)+(Z126^2)+(Z127^2)+(Z128^2))","v":184.70517047446182},{"$f":"AA125+AA126+AA127+AA128","v":353},{"$f":"SQRT((AB125^2)+(AB126^2)+(AB127^2)+(AB128^2))","v":100.13990213696037}]
[null," 30% to 34.9% of HH Income",{"$f":"C125","v":217},{"$f":"D125","v":126.01983970788092},{"$f":"E125","v":440},183.09833423600554,149,75.690157880665041,59,130.50670480860362,109,75.802374632988901,39,20.396078054371138,26,24.596747752497688,103,86.683331731077345,77,42.449970553582247,474,198.8793604173143,67,32.893768406797051,{"$f":"Y125","v":221},{"$f":"Z125","v":115.41230437002807},{"$f":"AA125","v":112},{"$f":"AB125","v":35.902646142032481}]
[null," Less Than 35% of HH Income",{"$f":"C120+C121+C122+C123+C124+C125","v":2393},{"$f":"SQRT((D120^2)+(D121^2)+(D122^2)+(D123^2)+(D124^2)+(D125^2))","v":513.32251070842392},{"$f":"E120+E121+E122+E123+E124+E125","v":5728},{"$f":"SQRT((F120^2)+(F121^2)+(F122^2)+(F123^2)+(F124^2)+(F125^2))","v":596.1124055075519},{"$f":"G120+G121+G122+G123+G124+G125","v":1585},{"$f":"SQRT((H120^2)+(H121^2)+(H122^2)+(H123^2)+(H124^2)+(H125^2))","v":256.9260594023113},{"$f":"I120+I121+I122+I123+I124+I125","v":1501},{"$f":"SQRT((J120^2)+(J121^2)+(J122^2)+(J123^2)+(J124^2)+(J125^2))","v":363.9161991448031},{"$f":"K120+K121+K122+K123+K124+K125","v":1217},{"$f":"SQRT((L120^2)+(L121^2)+(L122^2)+(L123^2)+(L124^2)+(L125^2))","v":307.5613759885984},{"$f":"M120+M121+M122+M123+M124+M125","v":450},{"$f":"SQRT((N120^2)+(N121^2)+(N122^2)+(N123^2)+(N124^2)+(N125^2))","v":85.99418584997477},{"$f":"O120+O121+O122+O123+O124+O125","v":384},{"$f":"SQRT((P120^2)+(P121^2)+(P122^2)+(P123^2)+(P124^2)+(P125^2))","v":90.426765949026404},{"$f":"Q120+Q121+Q122+Q123+Q124+Q125","v":1187},{"$f":"SQRT((R120^2)+(R121^2)+(R122^2)+(R123^2)+(R124^2)+(R125^2))","v":223.40769906160352},{"$f":"S120+S121+S122+S123+S124+S125","v":746},{"$f":"SQRT((T120^2)+(T121^2)+(T122^2)+(T123^2)+(T124^2)+(T125^2))","v":130.39555207138008},{"$f":"U120+U121+U122+U123+U124+U125","v":6311},{"$f":"SQRT((V120^2)+(V121^2)+(V122^2)+(V123^2)+(V124^2)+(V125^2))","v":637.34449083678442},{"$f":"W120+W121+W122+W123+W124+W125","v":660},{"$f":"SQRT((X120^2)+(X121^2)+(X122^2)+(X123^2)+(X124^2)+(X125^2))","v":112.04909638189859},{"$f":"Y120+Y121+Y122+Y123+Y124+Y125","v":2301},{"$f":"SQRT((Z120^2)+(Z121^2)+(Z122^2)+(Z123^2)+(Z124^2)+(Z125^2))","v":407.34383510739423},{"$f":"AA120+AA121+AA122+AA123+AA124+AA125","v":1040},{"$f":"SQRT((AB120^2)+(AB121^2)+(AB122^2)+(AB123^2)+(AB124^2)+(AB125^2))","v":205.4896591072164}]
[null," 35% or More of HH Income",{"$f":"C126+C127+C128","v":725},{"$f":"SQRT((D126^2)+(D127^2)+(D128^2))","v":249.39727344139109},{"$f":"E126+E127+E128","v":1263},{"$f":"SQRT((F126^2)+(F127^2)+(F128^2))","v":222.90580970445791},{"$f":"G126+G127+G128","v":240},{"$f":"SQRT((H126^2)+(H127^2)+(H128^2))","v":93.87757985802574},{"$f":"I126+I127+I128","v":349},{"$f":"SQRT((J126^2)+(J127^2)+(J128^2))","v":155.97115117867151},{"$f":"K126+K127+K128","v":233},{"$f":"SQRT((L126^2)+(L127^2)+(L128^2))","v":95.399161421890909},{"$f":"M126+M127+M128","v":88},{"$f":"SQRT((N126^2)+(N127^2)+(N128^2))","v":30.033314835362415},{"$f":"O126+O127+O128","v":106},{"$f":"SQRT((P126^2)+(P127^2)+(P128^2))","v":30.199337741082999},{"$f":"Q126+Q127+Q128","v":333},{"$f":"SQRT((R126^2)+(R127^2)+(R128^2))","v":102.03430795570674},{"$f":"S126+S127+S128","v":170},{"$f":"SQRT((T126^2)+(T127^2)+(T128^2))","v":58.779248038742381},{"$f":"U126+U127+U128","v":1981},{"$f":"SQRT((V126^2)+(V127^2)+(V128^2))","v":282.89927536139078},{"$f":"W126+W127+W128","v":105},{"$f":"SQRT((X126^2)+(X127^2)+(X128^2))","v":49.33558553417604},{"$f":"Y126+Y127+Y128","v":434},{"$f":"SQRT((Z126^2)+(Z127^2)+(Z128^2))","v":144.20818284688286},{"$f":"AA126+AA127+AA128","v":241},{"$f":"SQRT((AB126^2)+(AB127^2)+(AB128^2))","v":93.482618705297298}]
[null," 50% or More of HH Income",{"$f":"C128","v":486},{"$f":"D128","v":198.84164553734712},{"$f":"E128","v":683},148.67750334196495,70,31.780497164141408,155,124.63145670335399,124,45.188494110780013,57,12.806248474865697,37,16.124515496597098,121,64.078077374403179,58,36.400549446402593,963,189.4887859478761,43,23.769728648009426,175,87.664131775772461,104,59.941638282582836]
[null,"Not computed",{"$f":"C129","v":0},{"$f":"D129","v":175.72990639046048},{"$f":"E129","v":30},157.49603169603989,8,55.97320787662612,0,44.011362169330773,0,85.708809348864477,0,27.313000567495326,9,16.492422502470642,0,58.051701094799967,5,30.083217912982647,16,193.49418595916518,0,23.706539182259394,0,73.246160308919954,6,33.837848631377263]
[]
[]
[]
[null,"B25091. MORTGAGE STATUS BY SELECTED MONTHLY OWNER COSTS AS A PERCENTAGE OF HOUSEHOLD INCOME IN THE PAST 12 MONTHS "]
[null,"Universe:  OWNER-OCCUPIED HOUSING UNITS"]
[null,"Data Set: 2008-2012 American Community Survey 5-Year Estimates"]
[]
[null,null,"Barrington",null,"Dover",null,"Durham",null,"Farmington",null,"Lee",null,"Madbury",null,"Middleton",null,"Milton",null,"New Durham",null,"Rochester",null,"Rollinsford",null,"Somersworth",null,"Strafford"]
[null,null,"Esitimate","Margin Of Error","Esitimate","Margin Of Error","Esitimate","Margin Of Error","Esitimate","Margin Of Error","Esitimate","Margin Of Error","Esitimate","Margin Of Error","Esitimate","Margin Of Error","Esitimate","Margin Of Error","Esitimate","Margin Of Error","Esitimate","Margin Of Error","Esitimate","Margin Of Error","Esitimate","Margin Of Error","Esitimate","Margin Of Error"]
[null,"Total",2576,226,6495,370,2029,239,1838,249,1560,142,514,49,555,62,1445,127,860,69,8858,400,759,75,2522,270,1282,113]
[null,"Housing units with a mortgage:",1874,217,4539,353,1297,195,1394,210,1029,137,349,53,427,56,971,130,672,64,5914,363,511,80,1609,227,975,108]
[null,"Less than 10.0 percent",15,23,134,79,56,41,100,87,27,30,5,7,13,17,0,11,32,36,138,83,18,15,23,25,76,38]
[null,"10.0 to 14.9 percent",95,60,305,96,240,81,191,96,121,91,50,25,32,15,110,67,50,25,490,145,43,37,68,52,74,53]
[null,"15.0 to 19.9 percent",272,126,843,165,221,81,218,99,113,62,45,25,59,26,81,49,113,43,1070,215,56,32,169,81,132,62]
[null,"20.0 to 24.9 percent",366,183,751,181,167,68,273,141,110,70,57,28,56,25,90,48,138,49,974,199,113,61,263,110,221,71]
[null,"25.0 to 29.9 percent",429,147,625,168,212,90,71,48,136,64,32,19,42,22,105,60,114,47,807,188,27,19,310,91,130,63]
[null,"30.0 to 34.9 percent",174,73,561,162,110,54,159,90,148,69,30,19,42,24,145,68,62,32,721,152,80,40,288,124,105,64]
[null,"35.0 to 39.9 percent",166,104,241,73,55,39,57,42,83,59,32,19,27,14,101,47,34,20,440,122,40,23,137,77,23,28]
[null,"40.0 to 49.9 percent",71,53,534,141,96,47,94,110,102,76,49,47,25,18,92,53,55,25,605,152,49,29,131,59,115,62]
[null,"50.0 percent or more",286,119,545,141,140,59,216,110,189,122,44,19,128,37,247,97,74,39,606,142,85,35,207,78,99,51]
[null,"Not computed",0,16,0,24,0,18,15,23,0,11,5,8,3,5,0,11,0,11,63,72,0,11,13,20,0,11]
[null,"Housing units without a mortgage:",702,185,1956,267,732,147,444,155,531,136,165,46,128,31,474,107,188,58,2944,273,248,58,913,178,307,108]
[null,"Less than 10.0 percent",263,140,465,142,193,72,166,94,67,77,32,21,30,16,86,57,22,15,331,100,30,19,170,105,57,50]
[null,"10.0 to 14.9 percent",174,80,409,129,171,63,81,72,140,83,29,14,36,17,124,63,22,17,579,165,57,24,161,95,89,53]
[null,"15.0 to 19.9 percent",81,55,275,102,62,39,46,37,82,61,45,29,16,11,99,56,34,23,558,157,53,35,70,45,72,50]
[null,"20.0 to 24.9 percent",44,43,218,115,56,31,26,34,79,54,13,10,14,11,10,15,36,22,467,149,45,21,112,69,0,11]
[null,"25.0 to 29.9 percent",68,59,138,78,59,43,62,70,45,42,5,7,8,9,34,38,24,17,263,85,10,11,98,76,9,13]
[null,"30.0 to 34.9 percent",21,25,102,60,11,17,27,32,0,11,8,9,0,11,26,23,27,31,238,112,6,10,53,49,12,18]
[null,"35.0 to 39.9 percent",12,20,29,26,17,18,0,16,0,11,8,15,6,5,21,33,0,11,66,45,12,11,37,36,8,11]
[null,"40.0 to 49.9 percent",29,32,115,61,18,23,13,21,40,48,7,7,0,11,13,14,0,11,129,74,10,10,111,84,25,31]
[null,"50.0 percent or more",10,16,205,81,145,67,23,27,48,55,18,14,15,10,61,40,23,17,313,103,25,20,101,60,35,30]
[null,"Not computed",0,16,0,24,0,18,0,16,30,46,0,11,3,4,0,11,0,11,0,21,0,11,0,18,0,11]
[]
[]
[]
[null,"Calculated B25091. MORTGAGE STATUS BY SELECTED MONTHLY OWNER COSTS AS A PERCENTAGE OF HOUSEHOLD INCOME IN THE PAST 12 MONTHS "]
[null,"Universe:  OWNER-OCCUPIED HOUSING UNITS"]
[null,{"$f":"B154","v":"Data Set: 2008-2012 American Community Survey 5-Year Estimates"}]
[]
[null,null,"Alton",null,"Barnstead",null,"Belmont",null,"Center Harbor",null,"Gilford",null,"Gilmanton",null,"Laconia",null,"Meredith",null,"New Hampton",null,"Sanbornton",null,"Tilton"]
[null," ","Estimate","Margin of Error","Estimate","Margin of Error","Estimate","Margin of Error","Estimate","Margin of Error","Estimate","Margin of Error","Estimate","Margin of Error","Estimate","Margin of Error","Estimate","Margin of Error","Estimate","Margin of Error","Estimate","Margin of Error","Estimate","Margin of Error"]
[null,"Total:",{"$f":"C158","v":2576},{"$f":"D158","v":226},{"$f":"E158","v":6495},370,2029,239,1838,249,1560,142,514,49,555,62,1445,127,860,69,8858,400,759,75]
[null,"Less than 10.0 percent",{"$f":"C160+C171","v":278},{"$f":"SQRT((D160^2)+(D171^2))","v":141.87670703818861},{"$f":"E160+E171","v":599},{"$f":"SQRT((F160^2)+(F171^2))","v":162.49615380063616},{"$f":"G160+G171","v":249},{"$f":"SQRT((H160^2)+(H171^2))","v":82.855295545909442},{"$f":"I160+I171","v":266},{"$f":"SQRT((J160^2)+(J171^2))","v":128.08200498118384},{"$f":"K160+K171","v":94},{"$f":"SQRT((L160^2)+(L171^2))","v":82.637763764516279},{"$f":"M160+M171","v":37},{"$f":"SQRT((N160^2)+(N171^2))","v":22.135943621178654},{"$f":"O160+O171","v":43},{"$f":"SQRT((P160^2)+(P171^2))","v":23.345235059857504},{"$f":"Q160+Q171","v":86},{"$f":"SQRT((R160^2)+(R171^2))","v":58.051701094799967},{"$f":"S160+S171","v":54},{"$f":"SQRT((T160^2)+(T171^2))","v":39},{"$f":"U160+U171","v":469},{"$f":"SQRT((V160^2)+(V171^2))","v":129.9576854210631},{"$f":"W160+W171","v":48},{"$f":"SQRT((X160^2)+(X171^2))","v":24.207436873820409}]
[null,"10.0 to 14.9 percent",{"$f":"C161+C172","v":269},100,714,160.80111939908875,411,102.61578825892242,272,120,261,123.16655390161731,79,28.653097563788805,68,22.671568097509269,234,91.967385523347346,72,30.232432915661949,1069,219.65882636488797,100,{"$f":"SQRT((X161^2)+(X172^2))","v":44.10215414239989}]
[null,"15.0 to 19.9 percent",353,137.48090776540573,1118,193.98195792392653,283,89.899944382630181,264,105.6882207249228,195,86.977008456258133,90,38.288379438153292,75,28.231188426986208,180,74.411020689142546,147,48.764741360946438,1628,266.22171211229187,109,47.423622805517503]
[null,"20.0 to 24.9 percent",410,187.98404187589966,969,214.44346574330496,223,74.732857566133518,299,145.04137340772803,189,88.408144421201371,70,29.732137494637012,70,27.313000567495326,100,50.289163842720633,174,53.712196007983138,1441,248.60008045050992,158,64.513564465157245]
[null,"25.0 to 29.9 percent",497,158.39823231336896,763,185.22418848519757,271,99.744674043279119,133,84.876380695691779,181,76.550636836018555,37,20.248456731316587,50,23.769728648009426,139,71.021123618258812,138,49.979995998399197,1070,206.32256299299891,37,21.95449840010015]
[null,"30.0 to 34.9 percent",195,77.1621668954417,663,172.75416058665562,121,56.612719418872643,186,95.519631490076421,148,69.871310278253688,38,21.023796041628639,42,26.40075756488817,171,71.784399419372448,89,44.553338819890925,959,188.80677953929515,86,41.231056256176608]
[null,"35.0 to 39.9 percent",178,105.90561835898981,270,77.491935064237495,72,42.953463189829058,57,44.944410108488462,83,60.016664352494629,40,24.207436873820409,33,14.866068747318506,122,57.428216061444921,34,22.825424421026653,506,130.034610777285,52,25.495097567963924]
[null,"40.0 to 49.9 percent",100,61.911226768656427,649,153.62942426501507,114,52.32590180780452,107,111.9866063420086,142,89.888820216976924,56,47.518417482066887,25,21.095023109728988,105,54.817880294662984,55,27.313000567495326,734,169.05620367203329,59,30.675723300355934]
[null,"50.0 percent or more",{"$f":"C168+C179","v":296},120.07081243999309,750,162.60996279441184,285,89.274856482662571,239,113.26517558367179,237,133.82451195502264,62,23.600847442411894,143,38.327535793473601,308,104.92378186092989,97,42.544094772365298,919,175.42234749312871,110,40.311288741492746]
[null,"Not computed",0,22.627416997969522,0,33.941125496954278,0,25.45584412271571,15,28.0178514522438,30,47.296934361541872,5,13.601470508735444,6,6.4031242374328485,0,15.556349186104045,0,15.556349186104045,63,75,0,15.556349186104045]
[]
[]
[]
[]
[null,"Calculated MONTHLY OWNER COSTS AS A PERCENTAGE OF HOUSEHOLD INCOME IN THE PAST 12 MONTHS "]
[null,"Universe:  OWNER-OCCUPIED HOUSING UNITS"]
[null,{"$f":"B154","v":"Data Set: 2008-2012 American Community Survey 5-Year Estimates"}]
[null,null,"Alton",null,"Barnstead",null,"Belmont",null,"Center Harbor",null,"Gilford",null,"Gilmanton",null,"Laconia",null,"Meredith",null,"New Hampton",null,"Sanbornton",null,"Tilton"]
[null," ","Estimate","Margin of Error","Estimate","Margin of Error","Estimate","Margin of Error","Estimate","Margin of Error","Estimate","Margin of Error","Estimate","Margin of Error","Estimate","Margin of Error","Estimate","Margin of Error","Estimate","Margin of Error","Estimate","Margin of Error","Estimate","Margin of Error"]
[null,"Total:",{"$f":"C190","v":2576},{"$f":"D190","v":226},6495,370,2029,239,1838,249,1560,142,514,49,555,62,1445,127,860,69,8858,400,759,75]
[null,"Less than 20% of HH Income",{"$f":"C191+C192+C193","v":900},{"$f":"SQRT((D191^2)+(D192^2)+(D193^2))","v":221.42718893577637},{"$f":"E191+E192+E193","v":2431},{"$f":"SQRT((F191^2)+(F192^2)+(F193^2))","v":299.81827829537013},{"$f":"G191+G192+G193","v":943},{"$f":"SQRT((H191^2)+(H192^2)+(H193^2))","v":159.6151621870554},{"$f":"I191+I192+I193","v":802},{"$f":"SQRT((J191^2)+(J192^2)+(J193^2))","v":204.87801248547879},{"$f":"K191+K192+K193","v":550},{"$f":"SQRT((L191^2)+(L192^2)+(L193^2))","v":171.9418506356146},{"$f":"M191+M192+M193","v":206},{"$f":"SQRT((N191^2)+(N192^2)+(N193^2))","v":52.697248505021584},{"$f":"O191+O192+O193","v":186},{"$f":"SQRT((P191^2)+(P192^2)+(P193^2))","v":43.08131845707603},{"$f":"Q191+Q192+Q193","v":500},{"$f":"SQRT((R191^2)+(R192^2)+(R193^2))","v":131.77632564311392},{"$f":"S191+S192+S193","v":273},{"$f":"SQRT((T191^2)+(T192^2)+(T193^2))","v":69.375788283809797},{"$f":"U191+U192+U193","v":3166},{"$f":"SQRT((V191^2)+(V192^2)+(V193^2))","v":368.79940347023341},{"$f":"W191+W192+W193","v":257},{"$f":"SQRT((X191^2)+(X192^2)+(X193^2))","v":69.137544069774421}]
[null," 20% to 29.9% of HH Income",{"$f":"C194+C195","v":907},{"$f":"SQRT((D194^2)+(D195^2))","v":245.82107314060769},{"$f":"E194+E195","v":1732},{"$f":"SQRT((F194^2)+(F195^2))","v":283.36195933822876},{"$f":"G194+G195","v":494},{"$f":"SQRT((H194^2)+(H195^2))","v":124.63546846704592},{"$f":"I194+I195","v":432},{"$f":"SQRT((J194^2)+(J195^2))","v":168.05058762170395},{"$f":"K194+K195","v":370},{"$f":"SQRT((L194^2)+(L195^2))","v":116.94443124834974},{"$f":"M194+M195","v":107},{"$f":"SQRT((N194^2)+(N195^2))","v":35.972211497209898},{"$f":"O194+O195","v":120},{"$f":"SQRT((P194^2)+(P195^2))","v":36.207733980463345},{"$f":"Q194+Q195","v":239},{"$f":"SQRT((R194^2)+(R195^2))","v":87.022985469357465},{"$f":"S194+S195","v":312},{"$f":"SQRT((T194^2)+(T195^2))","v":73.368930754100532},{"$f":"U194+U195","v":2511},{"$f":"SQRT((V194^2)+(V195^2))","v":323.06500893782976},{"$f":"W194+W195","v":195},{"$f":"SQRT((X194^2)+(X195^2))","v":68.146900149603283}]
[null," Less Than 30% of HH Income",{"$f":"C191+C192+C193+C194+C195","v":1807},{"$f":"SQRT((D191^2)+(D192^2)+(D193^2)+(D194^2)+(D195^2))","v":330.84437429099501},{"$f":"E191+E192+E193+E194+E195","v":4163},{"$f":"SQRT((F191^2)+(F192^2)+(F193^2)+(F194^2)+(F195^2))","v":412.53484701295235},{"$f":"G191+G192+G193+G194+G195","v":1437},{"$f":"SQRT((H191^2)+(H192^2)+(H193^2)+(H194^2)+(H195^2))","v":202.51172805543879},{"$f":"I191+I192+I193+I194+I195","v":1234},{"$f":"SQRT((J191^2)+(J192^2)+(J193^2)+(J194^2)+(J195^2))","v":264.98301832381634},{"$f":"K191+K192+K193+K194+K195","v":920},{"$f":"SQRT((L191^2)+(L192^2)+(L193^2)+(L194^2)+(L195^2))","v":207.94229968912049},{"$f":"M191+M192+M193+M194+M195","v":313},{"$f":"SQRT((N191^2)+(N192^2)+(N193^2)+(N194^2)+(N195^2))","v":63.804388563797076},{"$f":"O191+O192+O193+O194+O195","v":306},{"$f":"SQRT((P191^2)+(P192^2)+(P193^2)+(P194^2)+(P195^2))","v":56.276105053566027},{"$f":"Q191+Q192+Q193+Q194+Q195","v":739},{"$f":"SQRT((R191^2)+(R192^2)+(R193^2)+(R194^2)+(R195^2))","v":157.91770008456936},{"$f":"S191+S192+S193+S194+S195","v":585},{"$f":"SQRT((T191^2)+(T192^2)+(T193^2)+(T194^2)+(T195^2))","v":100.9752444909147},{"$f":"U191+U192+U193+U194+U195","v":5677},{"$f":"SQRT((V191^2)+(V192^2)+(V193^2)+(V194^2)+(V195^2))","v":490.28971027342601},{"$f":"W191+W192+W193+W194+W195","v":452},{"$f":"SQRT((X191^2)+(X192^2)+(X193^2)+(X194^2)+(X195^2))","v":97.077288796092773}]
[null," 30% or More of HH Income",{"$f":"C196+C197+C198+C199","v":769},{"$f":"SQRT((D196^2)+(D197^2)+(D198^2)+(D199^2))","v":188.20201911775547},{"$f":"E196+E197+E198+E199","v":2332},{"$f":"SQRT((F196^2)+(F197^2)+(F198^2)+(F199^2))","v":293.07507570586756},{"$f":"G196+G197+G198+G199","v":592},{"$f":"SQRT((H196^2)+(H197^2)+(H198^2)+(H199^2))","v":125.53087269671951},{"$f":"I196+I197+I198+I199","v":589},{"$f":"SQRT((J196^2)+(J197^2)+(J198^2)+(J199^2))","v":191.08636790728951},{"$f":"K196+K197+K198+K199","v":610},{"$f":"SQRT((L196^2)+(L197^2)+(L198^2)+(L199^2))","v":185.66906042741746},{"$f":"M196+M197+M198+M199","v":196},{"$f":"SQRT((N196^2)+(N197^2)+(N198^2)+(N199^2))","v":61.991934959315472},{"$f":"O196+O197+O198+O199","v":243},{"$f":"SQRT((P196^2)+(P197^2)+(P198^2)+(P199^2))","v":53.216538782600281},{"$f":"Q196+Q197+Q198+Q199","v":706},{"$f":"SQRT((R196^2)+(R197^2)+(R198^2)+(R199^2))","v":149.88328792764054},{"$f":"S196+S197+S198+S199","v":275},{"$f":"SQRT((T196^2)+(T197^2)+(T198^2)+(T199^2))","v":71.147733625183037},{"$f":"U196+U197+U198+U199","v":3118},{"$f":"SQRT((V196^2)+(V197^2)+(V198^2)+(V199^2))","v":334.52952037152119},{"$f":"W196+W197+W198+W199","v":307},{"$f":"SQRT((X196^2)+(X197^2)+(X198^2)+(X199^2))","v":70.114192571832419}]
[null," 30% to 34.9% of HH Income",{"$f":"C196","v":195},{"$f":"D196","v":77.1621668954417},{"$f":"E196","v":663},172.75416058665562,121,56.612719418872643,186,95.519631490076421,148,69.871310278253688,38,21.023796041628639,42,26.40075756488817,171,71.784399419372448,89,44.553338819890925,959,188.80677953929515,86,41.231056256176608]
[null," Less Than 35% of HH Income",{"$f":"C191+C192+C193+C194+C195+C196","v":2002},{"$f":"SQRT((D191^2)+(D192^2)+(D193^2)+(D194^2)+(D195^2)+(D196^2))","v":339.72341691440698},{"$f":"E191+E192+E193+E194+E195+E196","v":4826},{"$f":"SQRT((F191^2)+(F192^2)+(F193^2)+(F194^2)+(F195^2)+(F196^2))","v":447.24601731038365},{"$f":"G191+G192+G193+G194+G195+G196","v":1558},{"$f":"SQRT((H191^2)+(H192^2)+(H193^2)+(H194^2)+(H195^2)+(H196^2))","v":210.27600909281117},{"$f":"I191+I192+I193+I194+I195+I196","v":1420},{"$f":"SQRT((J191^2)+(J192^2)+(J193^2)+(J194^2)+(J195^2)+(J196^2))","v":281.67356993512897},{"$f":"K191+K192+K193+K194+K195+K196","v":1068},{"$f":"SQRT((L191^2)+(L192^2)+(L193^2)+(L194^2)+(L195^2)+(L196^2))","v":219.36727194365162},{"$f":"M191+M192+M193+M194+M195+M196","v":351},{"$f":"SQRT((N191^2)+(N192^2)+(N193^2)+(N194^2)+(N195^2)+(N196^2))","v":67.178865724273734},{"$f":"O191+O192+O193+O194+O195+O196","v":348},{"$f":"SQRT((P191^2)+(P192^2)+(P193^2)+(P194^2)+(P195^2)+(P196^2))","v":62.161081071680215},{"$f":"Q191+Q192+Q193+Q194+Q195+Q196","v":910},{"$f":"SQRT((R191^2)+(R192^2)+(R193^2)+(R194^2)+(R195^2)+(R196^2))","v":173.46757622103331},{"$f":"S191+S192+S193+S194+S195+S196","v":674},{"$f":"SQRT((T191^2)+(T192^2)+(T193^2)+(T194^2)+(T195^2)+(T196^2))","v":110.3675676999362},{"$f":"U191+U192+U193+U194+U195+U196","v":6636},{"$f":"SQRT((V191^2)+(V192^2)+(V193^2)+(V194^2)+(V195^2)+(V196^2))","v":525.38747605933656},{"$f":"W191+W192+W193+W194+W195+W196","v":538},{"$f":"SQRT((X191^2)+(X192^2)+(X193^2)+(X194^2)+(X195^2)+(X196^2))","v":105.47037498748168}]
[null," 35% or More of HH Income",{"$f":"C197+C198+C199","v":574},{"$f":"SQRT((D197^2)+(D198^2)+(D199^2))","v":171.65663401103961},{"$f":"E197+E198+E199","v":1669},{"$f":"SQRT((F197^2)+(F198^2)+(F199^2))","v":236.74670008259884},{"$f":"G197+G198+G199","v":471},{"$f":"SQRT((H197^2)+(H198^2)+(H199^2))","v":112.04017136723775},{"$f":"I197+I198+I199","v":403},{"$f":"SQRT((J197^2)+(J198^2)+(J199^2))","v":165.49924471126749},{"$f":"K197+K198+K199","v":462},{"$f":"SQRT((L197^2)+(L198^2)+(L199^2))","v":172.02034763364477},{"$f":"M197+M198+M199","v":158},{"$f":"SQRT((N197^2)+(N198^2)+(N199^2))","v":58.318093247293334},{"$f":"O197+O198+O199","v":201},{"$f":"SQRT((P197^2)+(P198^2)+(P199^2))","v":46.206060208591687},{"$f":"Q197+Q198+Q199","v":535},{"$f":"SQRT((R197^2)+(R198^2)+(R199^2))","v":131.5750736271882},{"$f":"S197+S198+S199","v":186},{"$f":"SQRT((T197^2)+(T198^2)+(T199^2))","v":55.470712993434653},{"$f":"U197+U198+U199","v":2159},{"$f":"SQRT((V197^2)+(V198^2)+(V199^2))","v":276.15575315390407},{"$f":"W197+W198+W199","v":221},{"$f":"SQRT((X197^2)+(X198^2)+(X199^2))","v":56.709787515031302}]
[null," 50% or More of HH Income",{"$f":"C199","v":296},{"$f":"D199","v":120.07081243999309},{"$f":"E199","v":750},162.60996279441184,285,89.274856482662571,239,113.26517558367179,237,133.82451195502264,62,23.600847442411894,143,38.327535793473601,308,104.92378186092989,97,42.544094772365298,919,175.42234749312871,110,40.311288741492746]
[null,"Not computed",{"$f":"C200","v":0},{"$f":"D200","v":22.627416997969522},0,33.941125496954278,0,25.45584412271571,15,28.0178514522438,30,47.296934361541872,5,13.601470508735444,6,6.4031242374328485,0,15.556349186104045,0,15.556349186104045,63,75,0,15.556349186104045]

{"sheet":"ACS_Table_B25106","index":76,"n_rows":255,"n_cols":28,"rows_kept":255,"cut":false,"hidden":true,"merged":[]}
[null,"B25106. TENURE BY HOUSING COSTS AS A PERCENTAGE OF HOUSEHOLD INCOME IN THE PAST 12 MONTHS"]
[null,"Universe:  OCCUPIED HOUSING UNITS"]
[null,"Data Set: 2018-2022 American Community Survey 5-Year Estimates"]
[]
[null,null,"Barrington",null,"Dover",null,"Durham",null,"Farmington",null,"Lee",null,"Madbury",null,"Middleton",null,"Milton",null,"New Durham",null,"Rochester",null,"Rollinsford",null,"Somersworth",null,"Strafford"]
[null,null,"Estimate","Margin of Error","Estimate","Margin of Error","Estimate","Margin of Error","Estimate","Margin of Error","Estimate","Margin of Error","Estimate","Margin of Error","Estimate","Margin of Error","Estimate","Margin of Error","Estimate","Margin of Error","Estimate","Margin of Error","Estimate","Margin of Error","Estimate","Margin of Error","Estimate","Margin of Error"]
[null,"Total:",3401,227,14606,524,3000,226,2911,264,1839,183,688,80,556,90,1664,125,1004,107,13542,419,1070,112,5232,318,1440,98]
[null,"Owner occupied housing units:",3074,266,7585,556,1857,246,2024,274,1672,189,558,91,522,88,1452,134,911,97,8933,466,868,116,3388,318,1343,94]
[null,"Less than $20,000:",88,101,225,140,36,42,178,111,0,12,14,13,19,17,47,42,61,36,610,188,37,37,186,120,35,39]
[null,"Less than 20 percent",60,98,15,22,0,19,0,17,0,12,0,12,0,12,10,15,0,12,12,23,0,12,53,81,0,12]
[null,"20 to 29 percent",0,17,0,25,5,8,0,17,0,12,0,12,0,12,0,12,0,12,24,40,0,12,0,19,0,12]
[null,"30 percent or more",28,30,210,139,31,41,178,111,0,12,14,13,19,17,37,38,61,36,574,183,37,37,133,95,35,39]
[null,"$20,000 to $34,999:",354,151,548,230,54,50,95,71,56,52,15,13,41,18,147,84,62,35,890,237,97,86,130,76,43,23]
[null,"Less than 20 percent",62,54,46,44,3,5,29,33,0,12,0,12,2,4,18,22,0,12,39,42,0,12,48,46,0,12]
[null,"20 to 29 percent",120,94,28,33,0,19,19,29,14,21,6,9,4,6,35,42,6,9,162,103,25,25,12,20,0,12]
[null,"30 percent or more",172,120,474,230,51,48,47,57,42,48,9,7,35,15,94,65,56,33,689,200,72,80,70,55,43,23]
[null,"$35,000 to $49,999:",240,149,328,156,84,47,289,223,109,69,12,14,52,28,43,35,41,19,798,218,25,18,366,132,82,47]
[null,"Less than 20 percent",205,147,42,38,17,26,16,29,0,12,5,9,12,14,20,26,7,9,95,74,6,8,37,45,0,12]
[null,"20 to 29 percent",31,34,140,105,5,7,252,222,66,76,3,4,14,16,3,6,14,12,255,105,10,11,94,70,17,19]
[null,"30 percent or more",4,10,146,83,62,42,21,27,43,49,4,7,26,17,20,21,20,13,448,162,9,11,235,105,65,39]
[null,"$50,000 to $74,999:",394,162,823,204,80,45,441,161,355,178,14,12,81,30,362,127,96,61,1259,245,120,60,648,222,165,75]
[null,"Less than 20 percent",158,101,230,97,0,19,232,140,146,131,1,3,29,14,39,30,18,17,464,170,35,27,162,73,32,26]
[null,"20 to 29 percent",82,59,119,58,0,19,100,75,126,97,7,8,17,16,74,57,8,12,298,118,9,10,88,64,58,49]
[null,"30 percent or more",154,96,474,171,80,45,109,76,83,70,6,7,35,18,249,106,70,57,497,166,76,47,398,199,75,48]
[null,"$75,000 or more:",1974,237,5613,470,1575,229,1010,216,1152,190,501,88,327,73,845,149,647,89,5376,412,589,98,2058,301,1000,113]
[null,"Less than 20 percent",1326,213,3497,441,874,200,437,134,546,154,370,85,172,40,657,133,517,86,3870,359,378,88,1062,212,731,101]
[null,"20 to 29 percent",440,163,1365,262,517,103,494,186,491,186,82,34,134,53,149,72,105,50,1108,221,95,44,631,188,234,94]
[null,"30 percent or more",208,102,751,259,184,83,79,60,115,91,49,25,21,17,39,39,25,25,398,158,116,77,365,266,35,26]
[null,"Zero or negative income",24,38,48,46,28,34,11,25,0,12,2,4,2,5,8,13,4,6,0,25,0,12,0,19,18,17]
[null,"Renter occupied housing units:",327,147,7021,521,1143,175,887,218,167,125,130,59,34,20,212,93,93,60,4609,426,202,72,1844,355,97,56]
[null,"Less than $20,000:",0,17,902,265,320,122,217,144,51,80,0,12,8,9,21,25,4,7,931,283,36,33,188,113,12,19]
[null,"Less than 20 percent",0,17,0,25,0,19,9,14,0,12,0,12,0,12,0,12,0,12,24,35,0,12,57,91,0,12]
[null,"20 to 29 percent",0,17,169,128,30,27,35,43,0,12,0,12,0,12,0,12,0,12,246,161,0,12,41,67,0,12]
[null,"30 percent or more",0,17,733,228,290,118,173,136,51,80,0,12,8,9,21,25,4,7,661,223,36,33,90,67,12,19]
[null,"$20,000 to $34,999:",29,46,743,248,112,58,230,127,0,12,5,6,0,12,35,35,20,13,791,306,29,33,443,280,0,12]
[null,"Less than 20 percent",0,17,15,26,0,19,0,17,0,12,0,12,0,12,0,12,0,12,50,41,0,12,15,25,0,12]
[null,"20 to 29 percent",0,17,104,134,18,27,18,30,0,12,2,4,0,12,0,12,0,12,222,230,0,12,22,38,0,12]
[null,"30 percent or more",29,46,624,194,94,50,212,123,0,12,3,4,0,12,35,35,20,13,519,175,29,33,406,280,0,12]
[null,"$35,000 to $49,999:",128,109,1049,287,154,103,153,105,34,38,8,10,8,12,48,44,0,12,466,227,23,27,127,109,17,19]
[null,"Less than 20 percent",0,17,40,46,0,19,19,33,16,24,5,8,0,12,0,12,0,12,9,15,18,26,0,19,0,12]
[null,"20 to 29 percent",30,50,110,103,12,15,41,40,0,12,0,12,0,12,23,37,0,12,75,65,5,7,27,34,0,12]
[null,"30 percent or more",98,97,899,272,142,103,93,93,18,29,3,5,8,12,25,25,0,12,382,215,0,12,100,100,17,19]
[null,"$50,000 to $74,999:",24,33,1329,336,198,132,118,130,17,28,38,40,0,12,18,21,40,48,909,234,10,8,409,245,62,48]
[null,"Less than 20 percent",0,17,237,138,20,24,0,17,17,28,26,36,0,12,9,16,0,12,193,95,0,12,53,63,0,12]
[null,"20 to 29 percent",0,17,468,146,26,28,79,117,0,12,0,12,0,12,9,14,40,48,371,148,10,8,241,204,21,32]
[null,"30 percent or more",24,33,624,259,152,126,39,54,0,12,12,17,0,12,0,12,0,12,345,165,0,12,115,122,41,34]
[null,"$75,000 or more:",114,78,2838,423,253,75,59,71,50,75,59,35,10,11,68,65,9,9,1360,276,50,32,664,228,6,9]
[null,"Less than 20 percent",0,17,2002,413,197,70,37,57,50,75,13,11,10,11,45,41,5,7,1058,256,37,28,438,179,6,9]
[null,"20 to 29 percent",114,78,700,239,28,25,22,37,0,12,46,32,0,12,23,38,4,7,272,135,13,14,182,133,0,12]
[null,"30 percent or more",0,17,136,72,28,25,0,17,0,12,0,12,0,12,0,12,0,12,30,28,0,12,44,52,0,12]
[null,"Zero or negative income",0,17,68,85,39,45,0,17,0,12,0,12,0,12,12,19,0,12,83,82,14,23,13,23,0,12]
[null,"No cash rent",32,36,92,80,67,57,110,98,15,23,20,26,8,8,10,17,20,27,69,53,40,40,0,19,0,12]
[]
[]
[]
[]
[]
[]
[null,"Calculated B25106. TENURE BY HOUSING COSTS AS A PERCENTAGE OF HOUSEHOLD INCOME IN THE PAST 12 MONTHS"]
[null,"Universe:  OCCUPIED HOUSING UNITS"]
[null,"Data Set: 2018-2022 American Community Survey 5-Year Estimates"]
[]
[null,null,"Barrington",null,"Dover",null,"Durham",null,"Farmington",null,"Lee",null,"Madbury",null,"Middleton",null,"Milton",null,"New Durham",null,"Rochester",null,"Rollinsford",null,"Somersworth",null,"Strafford"]
[null,null,"Estimate","Margin of Error","Estimate","Margin of Error","Estimate","Margin of Error","Estimate","Margin of Error","Estimate","Margin of Error","Estimate","Margin of Error","Estimate","Margin of Error","Estimate","Margin of Error","Estimate","Margin of Error","Estimate","Margin of Error","Estimate","Margin of Error","Estimate","Margin of Error","Estimate","Margin of Error"]
[null,{"$f":"B7","v":"Total:"},3401,227,14606,524,3000,226,2911,264,1839,183,688,80,556,90,1664,125,1004,107,13542,419,1070,112,{"$f":"Y186","v":4552},227,1378,88]
[null,"Owner occupied housing units:",3074,266,7585,556,1857,246,2024,274,1672,189,558,91,522,88,1452,134,911,97,8933,466,868,116,2522,270,1282,113]
[null,"Less than 20 percent",{"$f":"C10+C14+C18+C22+C26","v":1811},{"$f":"SQRT((D10^2)+(D14^2)+(D18^2)+(D22^2)+(D26^2))","v":299.49791318137761},{"$f":"SQRT((E10^2)+(E14^2)+(E18^2)+(E22^2)+(E26^2))","v":3505.1410813261141},455.80039490987718,874.17046392565794,203.5264110625449,495.87296760359908,199.43670675179132,565.18315615382596,203.24615617521528,370.03513346708041,87.19518335321051,174.85136545077364,46.389654018972806,658.78220983872961,141.32940246105903,517.36060924658727,89.744080584738285,3899.0878420471627,406.87836020117857,379.66432542444647,93.941471140279674,{"$f":"SQRT((Y189^2)+(Y193^2)+(Y197^2)+(Y201^2)+(Y205^2))","v":502.54452539053693},173.77859476932136,427.78265509485072,125.05998560690786]
[null,"20 to 29 percent",{"$f":"C11+C15+C19+C23+C27","v":673},{"$f":"SQRT((D11^2)+(D15^2)+(D19^2)+(D23^2)+(D27^2))","v":200.82579515590123},1377.5957317007046,291.11337997419491,517.04835363822599,106.97663296253066,563.82710115779287,301.05647310762146,511.37950682443267,224.42370641266933,82.571181413372059,38.223029707232783,135.85654198455074,59.169248769948062,170.03234986319515,101.86756107809786,106.40018796975878,54.890800686453829,1186.7236409543714,293.25586098149853,99.151399384980948,54.092513345194085,475.45451938119169,180.62115047801018,262.68231763862599,111.51681487560519]
[null,"30 percent or more",{"$f":"C12+C16+C20+C24+C28","v":566},{"$f":"SQRT((D12^2)+(D16^2)+(D20^2)+(D24^2)+(D28^2))","v":187.13631395322503},1038.6380505257835,418.84603376419835,218.31628432162361,121.09087496587016,229.03274875004229,160.23420358962065,154.03571014540751,134.27583550289307,52.249401910452526,30.675723300355934,62.673758463969591,37.629775444453557,272.26274074871134,137.35719857364595,113.05750749065716,80.174809011309776,1187.5664191951539,390.19610454231855,160.82910184416252,126.60173774478768,487.79196385344437,206.30559856678636,198.3885077316728,108.30050784737807]
[null,"Zero or negative income",{"$f":"C29","v":24},{"$f":"D29","v":38},{"$f":"E29","v":48},46,28,34,11,25,0,12,2,4,2,5,8,13,4,6,0,25,0,12,{"$f":"Y208","v":13},20,0,11]
[null,"Renter occupied housing units:",{"$f":"C30","v":327},{"$f":"D30","v":147},7021,521,1143,175,887,218,167,125,130,59,34,20,212,93,93,60,4609,426,202,72,2030,250,96,65]
[null,"Less than 20 percent",{"$f":"C32+C36+C40+C44+C48","v":0},{"$f":"SQRT((D32^2)+(D36^2)+(D40^2)+(D44^2)+(D48^2))","v":38.013155617496423},{"$f":"SQRT((E32^2)+(E36^2)+(E40^2)+(E44^2)+(E48^2))","v":2016.4319973656438},439.35179526206559,198.01262586006985,80.987653380006023,42.555845661906424,71.498251726877911,55.181518645285578,85.281885532626447,29.49576240750525,42.059481689626182,10,26.40075756488817,45.891175622335062,48.672374094551827,5,25,1076.9261813142068,278.73284700587408,41.146081222881968,43.497126341863094,{"$f":"SQRT((Y211^2)+(Y215^2)+(Y219^2)+(Y223^2)+(Y227^2))","v":441.59823369211972},204.91949638821583,31.240998703626616,49.122296363260546]
[null,"20 to 29 percent",{"$f":"C33+C37+C41+C45+C49","v":144},{"$f":"SQRT((D33^2)+(D37^2)+(D41^2)+(D45^2)+(D49^2))","v":97.216253785053865},872.06708457549291,351.26343390680449,53.178943201233324,55.605755097831377,99.774746303861875,139.30900904105232,0,26.832815729997478,46.043457732885351,38.366652186501753,0,26.832815729997478,33.749074061372411,57.419508879822367,40.19950248448356,52.773099207835045,571.88285513730864,350.96296100870813,17.146428199482248,24.433583445741231,310.80701407786796,180.90881681112174,9,26.076809620810597]
[null,"30 percent or more",{"$f":"C34+C38+C42+C46+C50","v":151},{"$f":"SQRT((D34^2)+(D38^2)+(D42^2)+(D46^2)+(D50^2))","v":114.85643212288984},1463.809413824081,485.66346372771341,370.11889981464066,208.64802898661659,291.62132980973803,213.25805963667585,54.083269131959838,87.595661993046207,12.727922061357855,24.859605789312106,11.313708498984761,25.632011235952593,47.864391775097282,52.564246403805697,20.396078054371138,25.495097567963924,985.96703798859323,393.17680501270672,46.227697325304881,51.088159097779204,485.11957288899401,196.03316046016297,43,56.462376853972415]
[null,"Zero or negative income",{"$f":"C51","v":0},{"$f":"D51","v":17},{"$f":"E51","v":68},85,39,45,0,17,0,12,0,12,0,12,12,19,0,12,83,82,14,23,{"$f":"Y230","v":36},50,0,11]
[null,"No cash rent",{"$f":"C52","v":32},{"$f":"D52","v":36},92,80,67,57,110,98,15,23,20,26,8,8,10,17,20,27,69,53,40,40,103,59,0,11]
[]
[]
[]
[]
[]
[]
[]
[]
[]
[]
[]
[]
[]
[]
[]
[]
[]
[]
[]
[]
[]
[]
[]
[null,"B25106. TENURE BY HOUSING COSTS AS A PERCENTAGE OF HOUSEHOLD INCOME IN THE PAST 12 MONTHS"]
[null,"Universe:  OCCUPIED HOUSING UNITS"]
[null,"Data Set: 2013-2017 American Community Survey 5-Year Estimates"]
[]
[null,null,"Barrington",null,"Dover",null,"Durham",null,"Farmington",null,"Lee",null,"Madbury",null,"Middleton",null,"Milton",null,"New Durham",null,"Rochester",null,"Rollinsford",null,"Somersworth",null,"Strafford"]
[null,null,"Estimate","Margin of Error","Estimate","Margin of Error","Estimate","Margin of Error","Estimate","Margin of Error","Estimate","Margin of Error","Estimate","Margin of Error","Estimate","Margin of Error","Estimate","Margin of Error","Estimate","Margin of Error","Estimate","Margin of Error","Estimate","Margin of Error","Estimate","Margin of Error","Estimate","Margin of Error"]
[null,"Total:",3388,209,13194,359,3325,237,2719,176,1752,139,621,60,595,70,1732,107,995,58,12837,353,1048,57,4905,237,1432,100]
[null,"Owner occupied housing units:",3118,226,7021,367,1833,175,1850,201,1450,148,538,63,499,74,1520,115,921,56,8308,395,765,74,2735,242,1287,101]
[null,"Less than $20,000:",302,185,408,157,5,7,66,81,0,11,9,9,27,13,95,58,29,18,652,184,21,17,114,60,84,58]
[null,"Less than 20 percent",0,16,51,79,0,18,0,16,0,11,0,11,0,11,0,11,0,11,18,32,5,8,0,18,0,11]
[null,"20 to 29 percent",0,16,0,24,0,18,0,16,0,11,0,11,0,11,9,15,0,11,35,34,0,11,0,18,0,11]
[null,"30 percent or more",302,185,357,138,5,7,66,81,0,11,9,9,27,13,86,56,29,18,599,185,16,15,114,60,84,58]
[null,"$20,000 to $34,999:",280,177,581,175,74,39,246,103,70,70,41,28,42,22,127,67,78,46,1102,217,70,32,141,69,95,54]
[null,"Less than 20 percent",0,16,14,24,10,15,51,49,0,11,1,4,14,10,63,54,14,20,134,83,6,8,15,24,22,34]
[null,"20 to 29 percent",52,65,181,94,0,18,54,45,0,11,16,21,5,7,0,11,25,17,284,105,31,26,52,43,6,10]
[null,"30 percent or more",228,163,386,148,64,36,141,78,70,70,24,18,23,17,64,49,39,32,684,193,33,20,74,55,67,47]
[null,"$35,000 to $49,999:",245,128,565,169,71,47,190,97,59,53,39,22,52,16,215,82,103,41,1133,238,41,21,363,116,79,42]
[null,"Less than 20 percent",66,85,53,38,9,15,54,52,0,11,19,16,9,10,54,40,20,18,374,128,10,12,42,56,9,14]
[null,"20 to 29 percent",39,46,188,104,5,8,0,16,0,11,5,6,13,11,65,51,32,24,132,79,25,17,170,86,29,28]
[null,"30 percent or more",140,96,324,124,57,46,136,87,59,53,15,11,30,15,96,65,51,29,627,173,6,9,151,69,41,31]
[null,"$50,000 to $74,999:",447,157,1010,215,213,66,322,127,207,104,60,27,110,33,371,97,215,53,1577,259,179,50,748,199,160,60]
[null,"Less than 20 percent",189,104,397,118,32,25,210,99,91,81,15,11,27,15,102,58,72,33,745,205,43,24,244,114,44,38]
[null,"20 to 29 percent",66,58,317,138,120,55,47,47,20,32,21,16,47,20,144,75,49,25,437,118,53,31,266,115,45,33]
[null,"30 percent or more",192,102,296,108,61,37,65,75,96,66,24,19,36,19,125,55,94,38,395,130,83,41,238,106,71,37]
[null,"$75,000 or more:",1844,229,4427,338,1462,153,1026,186,1114,137,389,54,259,44,712,122,491,68,3828,365,454,63,1369,223,863,109]
[null,"Less than 20 percent",1281,280,2730,330,795,119,675,194,669,172,218,48,159,30,392,99,323,72,2417,323,329,59,824,153,628,112]
[null,"20 to 29 percent",483,201,1357,221,465,100,351,136,328,149,116,32,84,32,255,96,134,42,1261,268,91,31,467,141,145,59]
[null,"30 percent or more",80,81,340,117,202,79,0,16,117,72,55,25,16,12,65,43,34,22,150,75,34,20,78,63,90,54]
[null,"Zero or negative income",0,16,30,36,8,11,0,16,0,11,0,11,9,7,0,11,5,8,16,24,0,11,0,18,6,11]
[null,"Renter occupied housing units:",270,160,6173,387,1492,188,869,263,302,146,83,29,96,35,212,74,74,47,4529,385,283,71,2170,282,145,52]
[null,"Less than $20,000:",37,61,1069,201,599,153,191,154,49,78,8,9,13,16,48,50,20,26,1206,338,39,29,471,196,0,11]
[null,"Less than 20 percent",0,16,12,20,9,16,56,87,0,11,0,11,0,11,0,11,0,11,16,17,0,11,0,18,0,11]
[null,"20 to 29 percent",0,16,143,64,44,46,0,16,0,11,0,11,0,11,0,11,0,11,208,117,6,9,82,94,0,11]
[null,"30 percent or more",37,61,914,207,546,155,135,125,49,78,8,9,13,16,48,50,20,26,982,314,33,28,389,170,0,11]
[null,"$20,000 to $34,999:",52,54,955,253,348,116,250,161,16,25,8,9,6,6,77,51,0,11,872,233,64,42,526,188,31,34]
[null,"Less than 20 percent",40,52,76,92,4,6,0,16,0,11,0,11,0,11,0,11,0,11,50,47,0,11,0,18,0,11]
[null,"20 to 29 percent",0,16,160,105,77,53,18,28,0,11,8,9,4,5,0,11,0,11,82,50,12,10,71,65,0,11]
[null,"30 percent or more",12,20,719,212,267,96,232,160,16,25,0,11,2,3,77,51,0,11,740,220,52,41,455,190,31,34]
[null,"$35,000 to $49,999:",41,69,1172,290,210,96,156,141,79,95,10,9,6,7,17,19,22,34,758,261,32,28,284,110,61,45]
[null,"Less than 20 percent",41,69,131,108,9,14,0,16,0,11,3,4,0,11,0,11,22,34,132,115,0,11,50,48,38,28]
[null,"20 to 29 percent",0,16,404,163,56,35,99,109,79,95,7,8,0,11,7,12,0,11,308,120,15,15,123,75,23,37]
[null,"30 percent or more",0,16,637,194,145,93,57,87,0,11,0,11,6,7,10,16,0,11,318,167,17,22,111,66,0,11]
[null,"$50,000 to $74,999:",13,21,1404,244,102,50,147,123,55,49,27,16,40,29,34,38,17,13,608,218,73,48,513,168,47,46]
[null,"Less than 20 percent",13,21,380,135,25,21,79,96,0,11,14,11,10,15,0,11,11,9,303,161,6,8,220,140,8,12]
[null,"20 to 29 percent",0,16,773,191,26,27,50,58,55,49,13,13,23,23,34,38,0,11,275,130,67,47,276,116,39,44]
[null,"30 percent or more",0,16,251,135,51,37,18,31,0,11,0,11,7,11,0,11,6,10,30,34,0,11,17,26,0,11]
[null,"$75,000 or more:",78,74,1406,227,185,71,91,67,103,103,27,19,23,16,16,18,7,10,894,221,63,59,360,147,0,11]
[null,"Less than 20 percent",8,18,879,211,97,61,72,59,84,99,16,17,8,7,0,11,7,10,737,211,57,58,284,131,0,11]
[null,"20 to 29 percent",46,56,478,154,88,38,0,16,19,29,11,11,15,14,16,18,0,11,157,85,6,9,76,50,0,11]
[null,"30 percent or more",24,37,49,41,0,18,19,29,0,11,0,11,0,11,0,11,0,11,0,24,0,11,0,18,0,11]
[null,"Zero or negative income",0,16,119,121,24,21,0,16,0,11,0,11,0,11,0,11,0,11,44,59,12,18,0,18,0,11]
[null,"No cash rent",49,82,48,42,24,20,34,42,0,11,3,5,8,8,20,23,8,14,147,70,0,11,16,25,6,9]
[]
[]
[]
[]
[]
[]
[null,"Calculated B25106. TENURE BY HOUSING COSTS AS A PERCENTAGE OF HOUSEHOLD INCOME IN THE PAST 12 MONTHS"]
[null,"Universe:  OCCUPIED HOUSING UNITS"]
[null,{"$f":"B102","v":"Data Set: 2013-2017 American Community Survey 5-Year Estimates"}]
[]
[null,null,"Barrington",null,"Dover",null,"Durham",null,"Farmington",null,"Lee",null,"Madbury",null,"Middleton",null,"Milton",null,"New Durham",null,"Rochester",null,"Rollinsford",null,"Somersworth",null,"Strafford"]
[null,null,"Estimate","Margin of Error","Estimate","Margin of Error","Estimate","Margin of Error","Estimate","Margin of Error","Estimate","Margin of Error","Estimate","Margin of Error","Estimate","Margin of Error","Estimate","Margin of Error","Estimate","Margin of Error","Estimate","Margin of Error","Estimate","Margin of Error","Estimate","Margin of Error","Estimate","Margin of Error"]
[null,"Total:",{"$f":"C106","v":3388},209,13194,359,3325,237,2719,176,1752,139,621,60,595,70,1732,107,995,58,12837,353,1048,57,4492,207,1430,118]
[null,"Owner occupied housing units:",3118,226,7021,367,1833,175,1850,201,1450,148,538,63,499,74,1520,115,921,56,8308,395,765,74,2538,212,1313,143]
[null,"Less than 20 percent",{"$f":"C109+C113+C117+C121+C125","v":1536},{"$f":"SQRT((D109^2)+(D113^2)+(D117^2)+(D121^2)+(D125^2))","v":311.37276695305258},{"$f":"SQRT((E109^2)+(E113^2)+(E117^2)+(E121^2)+(E125^2))","v":2759.7309651485957},362.05662540547439,795.75750075007147,124.73972903610141,710.80377038954987,229.7781538789099,675.16072160634462,191.07066755522681,219.34219840240502,53.084837759947987,162.13266173106516,38.026306683663087,413.46462968432985,133.4241357476225,331.8267620310333,84.368240469977806,2560.2870932768456,413.09926167932082,332.04066016077007,65.79513659838392,506.31610679495475,164.60255162056268,503.51266121121523,143.5130656072819]
[null,"20 to 29 percent",{"$f":"C110+C114+C118+C122+C126","v":640},{"$f":"SQRT((D110^2)+(D114^2)+(D118^2)+(D122^2)+(D126^2))","v":224.41479452121689},1417.7598527254183,296.83833984173947,480.26034606242479,117.20494870098275,358.22618553087375,152.45327152934436,328.60919037665394,153.58385331798391,119.07140714714008,43.335897360040903,97.257390464683965,41.41255848169731,300.11164589199132,133.37166115783367,148.34419435893,58.094750193111253,1371.2749541940887,322.75377612043519,112.58774356030055,54.845236803208351,480.02708256930669,177.19762978098777,255.17640956796927,94.482802667998797]
[null,"30 percent or more",{"$f":"C111+C115+C119+C123+C127","v":942},{"$f":"SQRT((D111^2)+(D115^2)+(D119^2)+(D123^2)+(D127^2))","v":294.91524206117253},764.61558969197063,285.79188231998472,227.80474095154386,105.21881960942159,216.69794646004377,161.53946886132812,176.87848936487444,131.79529581893277,66.955208908642803,38.884444190447162,60.909769331364245,34.467375879228172,201.3901685783097,120.97933707869291,122.2906374175881,64.163852752153218,1182.502008454954,352.03408925841256,97.087589320159765,52.792044855262048,476.24468500971221,222.47022272654829,176.48512685209482,110.81064930772673]
[null,"Zero or negative income",{"$f":"C128","v":0},{"$f":"D128","v":16},{"$f":"E128","v":30},36,8,11,0,16,0,11,0,11,9,7,0,11,5,8,16,24,0,11,11,18,0,11]
[null,"Renter occupied housing units:",{"$f":"C129","v":270},{"$f":"D129","v":160},6173,387,1492,188,869,263,302,146,83,29,96,35,212,74,74,47,4529,385,283,71,1954,238,117,67]
[null,"Less than 20 percent",{"$f":"C131+C135+C139+C143+C147","v":102},{"$f":"SQRT((D131^2)+(D135^2)+(D139^2)+(D143^2)+(D147^2))","v":92.11948762341224},{"$f":"SQRT((E131^2)+(E135^2)+(E139^2)+(E143^2)+(E147^2))","v":969.59888613797409},288.57234794761609,101.05444077327824,68.190908484929281,120.66896867049125,144.14575956302011,84,101.41498903022176,21.470910553583888,25.845695966640172,12.806248474865697,25.238858928247925,0,24.596747752497688,25.573423705088842,39.736632972611055,809.41830965206123,293.5387538298819,57.314919523628397,61.571097115448573,347.22327110952688,182.52123164169149,27.820855486487112,47.602520941647619]
[null,"20 to 29 percent",{"$f":"C132+C136+C140+C144+C148","v":46},{"$f":"SQRT((D132^2)+(D136^2)+(D140^2)+(D144^2)+(D148^2))","v":64.498061986388393},1017.486117841418,319.19743106735683,139.35924798878617,91.23047736365298,112.36102527122117,128.61181905252721,98.117276766123098,111.84364085633121,20.074859899884732,23.57965224510319,27.748873851023216,31.496031496047245,38.223029707232783,46.411205543489174,0,24.596747752497688,495.10200969093228,233.91023919443973,70.213958726167832,51.923019942988681,259.11387458027019,173.25992035089939,8,25.059928172283335]
[null,"30 percent or more",{"$f":"C133+C137+C141+C145+C149","v":73},{"$f":"SQRT((D133^2)+(D137^2)+(D141^2)+(D145^2)+(D149^2))","v":77.472575792986262},1350.3806870656881,381.22827806971509,626.92184520879471,208.76541859225631,275.65014057678258,224.93554632383029,51.546095875439491,84.095184166514557,8,23.769728648009426,16.06237840420901,23.57965224510319,91.285267157411553,74.82646590612174,20.880613017821101,33.749074061372411,1270.4125314243402,420.25825393441113,63.890531379853151,56.488936969994398,593.68425951847507,221.95495038408131,59,58.309518948453004]
[null,"Zero or negative income",{"$f":"C150","v":0},{"$f":"D150","v":16},{"$f":"E150","v":119},121,24,21,0,16,0,11,0,11,0,11,0,11,0,11,44,59,12,18,0,17,0,11]
[null,"No cash rent",{"$f":"C151","v":49},{"$f":"D151","v":82},48,42,24,20,34,42,0,11,3,5,8,8,20,23,8,14,147,70,0,11,63,51,8,12]
[]
[]
[]
[]
[null,"B25106. TENURE BY HOUSING COSTS AS A PERCENTAGE OF HOUSEHOLD INCOME IN THE PAST 12 MONTHS"]
[null,"Universe:  OCCUPIED HOUSING UNITS"]
[null,"Data Set: 2008-2012 American Community Survey 5-Year Estimates"]
[]
[null,null,"Alton",null,"Barnstead",null,"Belmont",null,"Center Harbor",null,"Gilford",null,"Gilmanton",null,"Laconia",null,"Meredith",null,"New Hampton",null,"Sanbornton",null,"Tilton"]
[null,null,"Estimate","Margin of Error","Estimate","Margin of Error","Estimate","Margin of Error","Estimate","Margin of Error","Estimate","Margin of Error","Estimate","Margin of Error","Estimate","Margin of Error","Estimate","Margin of Error","Estimate","Margin of Error","Estimate","Margin of Error","Estimate","Margin of Error"]
[null,"Total:",2987,193,12512,344,3327,354,2646,185,1773,146,656,57,593,63,1660,130,955,62,12762,368,1020,77,4552,227,1378,88]
[null,"Owner occupied housing units:",2576,226,6495,370,2029,239,1838,249,1560,142,514,49,555,62,1445,127,860,69,8858,400,759,75,2522,270,1282,113]
[null,"Less than $20,000:",69,53,344,122,116,47,138,95,189,96,18,14,46,22,163,70,54,36,692,145,69,33,279,111,40,33]
[null,"Less than 20 percent",0,16,49,55,0,18,0,16,27,45,0,11,0,11,9,14,0,11,13,20,0,11,14,21,0,11]
[null,"20 to 29 percent",0,16,18,29,0,18,0,16,0,11,0,11,0,11,0,11,4,6,56,49,0,11,16,25,0,11]
[null,"30 percent or more",69,53,277,105,116,47,138,95,162,106,18,14,46,22,154,70,50,35,623,145,69,33,249,107,40,33]
[null,"$20,000 to $34,999:",296,124,637,184,121,64,172,97,46,50,29,19,78,28,183,83,91,35,924,164,63,38,185,82,94,48]
[null,"Less than 20 percent",28,31,58,50,10,15,0,16,0,11,0,11,3,5,28,34,6,8,69,45,17,28,0,18,0,11]
[null,"20 to 29 percent",97,70,100,65,0,18,70,72,11,18,3,4,11,9,31,36,31,21,284,100,12,13,30,35,0,11]
[null,"30 percent or more",171,107,479,148,111,61,102,65,35,56,26,18,64,26,124,60,54,35,571,143,34,21,155,76,94,48]
[null,"$35,000 to $49,999:",138,73,789,143,66,58,284,135,139,74,48,21,120,38,215,81,82,35,1562,259,79,29,432,150,103,55]
[null,"Less than 20 percent",7,13,150,61,0,18,81,71,26,42,16,12,18,12,55,46,0,11,419,135,7,6,29,29,15,18]
[null,"20 to 29 percent",15,24,176,78,23,22,65,58,29,33,12,9,10,10,31,28,27,18,492,147,41,19,214,98,9,13]
[null,"30 percent or more",116,68,463,104,43,53,138,102,84,43,20,16,92,38,129,67,55,28,651,168,31,21,189,94,79,48]
[null,"$50,000 to $74,999:",417,139,1178,195,228,72,402,118,301,103,83,50,114,28,381,108,133,45,2008,314,160,49,438,132,302,108]
[null,"Less than 20 percent",155,82,327,99,26,26,140,76,54,43,6,7,47,17,132,68,57,31,731,189,48,28,135,72,62,43]
[null,"20 to 29 percent",118,67,295,112,85,40,113,84,108,70,17,18,33,17,98,57,44,25,462,130,18,15,116,59,115,75]
[null,"30 percent or more",144,71,556,163,117,52,149,72,139,67,60,46,34,20,151,75,32,21,815,224,94,44,187,74,125,64]
[null,"$75,000 or more:",1656,232,3547,297,1498,206,827,172,855,131,331,54,191,44,503,104,500,57,3609,290,388,66,1175,186,743,136]
[null,"Less than 20 percent",710,191,1847,250,907,174,581,156,443,143,184,43,118,31,276,85,210,58,1934,272,185,54,483,153,423,115]
[null,"20 to 29 percent",677,180,1143,193,386,117,184,102,222,89,75,31,66,28,79,41,206,61,1217,197,124,61,407,133,236,80]
[null,"30 percent or more",269,109,557,135,205,82,62,45,190,88,72,27,7,8,148,70,84,37,458,136,79,37,285,105,84,44]
[null,"Zero or negative income",0,16,0,24,0,18,15,23,30,46,5,8,6,6,0,11,0,11,63,72,0,11,13,20,0,11]
[null,"Renter occupied housing units:",411,124,6017,349,1298,221,808,220,213,87,142,53,38,27,215,92,95,44,3904,353,261,66,2030,250,96,65]
[null,"Less than $20,000:",67,68,1222,273,539,152,323,132,20,31,18,20,3,5,54,46,4,6,1085,198,82,52,506,164,0,11]
[null,"Less than 20 percent",0,16,42,60,0,18,12,21,0,11,0,11,3,5,0,11,0,11,89,86,0,11,38,58,0,11]
[null,"20 to 29 percent",0,16,191,75,15,18,50,61,0,11,0,11,0,11,16,27,0,11,216,109,26,39,54,42,0,11]
[null,"30 percent or more",67,68,989,255,524,153,261,134,20,31,18,20,0,11,38,35,4,6,780,192,56,38,414,154,0,11]
[null,"$20,000 to $34,999:",71,48,1492,258,152,68,163,109,57,57,40,31,16,24,39,34,42,32,1294,229,90,48,274,118,52,55]
[null,"Less than 20 percent",0,16,21,23,11,20,0,16,0,11,2,3,0,11,0,11,0,11,36,55,0,11,0,18,0,11]
[null,"20 to 29 percent",0,16,48,40,4,7,45,67,11,18,3,7,0,11,0,11,0,11,148,104,11,13,32,39,9,14]
[null,"30 percent or more",71,48,1423,249,137,67,118,84,46,53,35,31,16,24,39,34,42,32,1110,213,79,45,242,106,43,52]
[null,"$35,000 to $49,999:",102,89,1026,245,122,63,94,74,24,36,8,9,6,9,6,10,0,11,688,220,33,31,311,142,0,11]
[null,"Less than 20 percent",51,79,63,50,17,29,0,16,0,11,4,7,0,11,0,11,0,11,71,82,0,11,10,16,0,11]
[null,"20 to 29 percent",28,44,557,197,54,43,12,21,24,36,4,6,0,11,6,10,0,11,368,150,15,23,236,133,0,11]
[null,"30 percent or more",23,38,406,147,51,42,82,73,0,11,0,11,6,9,0,11,0,11,249,135,18,22,65,46,0,11]
[null,"$50,000 to $74,999:",60,55,1207,242,162,103,140,110,68,63,41,26,4,5,44,41,21,24,415,151,32,26,338,132,24,39]
[null,"Less than 20 percent",30,46,577,195,91,58,79,91,33,48,14,22,0,11,33,36,21,24,42,37,0,11,117,92,24,39]
[null,"20 to 29 percent",30,34,496,142,20,18,61,60,35,40,27,25,4,5,11,18,0,11,306,140,27,25,191,105,0,11]
[null,"30 percent or more",0,16,134,84,51,76,0,16,0,11,0,11,0,11,0,11,0,11,67,72,5,8,30,31,0,11]
[null,"$75,000 or more:",106,73,942,237,133,74,82,89,28,35,32,26,6,6,60,54,16,17,261,120,24,26,462,175,20,23]
[null,"Less than 20 percent",55,44,652,185,87,62,82,89,28,35,14,13,6,6,26,40,0,11,236,110,21,26,424,172,20,23]
[null,"20 to 29 percent",31,48,217,134,46,37,0,16,0,11,8,11,0,11,34,39,16,17,15,23,3,5,22,27,0,11]
[null,"30 percent or more",20,34,73,79,0,18,0,16,0,11,10,16,0,11,0,11,0,11,10,15,0,11,16,20,0,11]
[null,"Zero or negative income",0,16,6,9,73,51,0,16,0,11,0,11,3,4,0,11,0,11,70,74,0,11,36,50,0,11]
[null,"No cash rent",5,11,122,60,117,54,6,10,16,26,3,5,0,11,12,20,12,12,91,52,0,11,103,59,0,11]
[]
[]
[]
[]
[]
[]
[null,"Calculated B25106. TENURE BY HOUSING COSTS AS A PERCENTAGE OF HOUSEHOLD INCOME IN THE PAST 12 MONTHS"]
[null,"Universe:  OCCUPIED HOUSING UNITS"]
[null,{"$f":"B182","v":"Data Set: 2008-2012 American Community Survey 5-Year Estimates"}]
[]
[null,null,"Alton",null,"Barnstead",null,"Belmont",null,"Center Harbor",null,"Gilford",null,"Gilmanton",null,"Laconia",null,"Meredith",null,"New Hampton",null,"Sanbornton",null,"Tilton"]
[null,null,"Estimate","Margin of Error","Estimate","Margin of Error","Estimate","Margin of Error","Estimate","Margin of Error","Estimate","Margin of Error","Estimate","Margin of Error","Estimate","Margin of Error","Estimate","Margin of Error","Estimate","Margin of Error","Estimate","Margin of Error","Estimate","Margin of Error"]
[null,"Total:",{"$f":"C186","v":2987},193,12512,344,3327,354,2646,185,1773,146,656,57,593,63,1660,130,955,62,12762,368,1020,77,4492,207,1430,118]
[null,"Owner occupied housing units:",{"$f":"C187","v":2576},226,6495,370,2029,239,1838,249,1560,142,514,49,555,62,1445,127,860,69,8858,400,759,75,2538,212,1313,143]
[null,"Less than 20 percent",{"$f":"C189+C193+C197+C201+C205","v":900},{"$f":"SQRT((D189^2)+(D193^2)+(D197^2)+(D201^2)+(D205^2))","v":211.16581162678773},{"$f":"SQRT((E189^2)+(E193^2)+(E197^2)+(E201^2)+(E205^2))","v":1883.2426821841098},285.5643535177316,907.42768306901462,178.39562774911272,603.09369089719382,188.85179374313606,447.85042145787918,161.88885075878449,184.79177470872452,47.791212581394085,128.31991271817481,39.242833740697165,312.23388669393336,123.76186811776881,217.68095920406083,68.051451123396333,2110.7363643998747,361.04708834167326,192.00781234106074,68.124885321004399,506.31610679495475,164.60255162056268,503.51266121121523,143.5130656072819]
[null,"20 to 29 percent",{"$f":"C190+C194+C198+C202+C206","v":907},{"$f":"SQRT((D190^2)+(D194^2)+(D198^2)+(D202^2)+(D206^2))","v":206.44854080375575},{"$f":"SQRT((E190^2)+(E194^2)+(E198^2)+(E202^2)+(E206^2))","v":1197.8205207793028},246.86636060832589,395.9166578965831,128.14444974324874,236.1143790623519,162.06171663906315,248.81720197767677,119.81235328629515,77.890949410056621,38.768543949960254,75.272837066235255,37.080992435478315,133.29291053915807,84.445248534183378,214.6578673144779,71.742595436741766,1421.4038834898404,299.53130053468533,132.38202294873727,67.801179930735714,480.02708256930669,177.19762978098777,255.17640956796927,94.482802667998797]
[null,"30 percent or more",{"$f":"C191+C195+C199+C203+C207","v":769},{"$f":"SQRT((D191^2)+(D195^2)+(D199^2)+(D203^2)+(D207^2))","v":189.21944931745256},{"$f":"SQRT((E191^2)+(E195^2)+(E199^2)+(E203^2)+(E207^2))","v":1067.6722343491003},297.55503692594419,288.68668136926578,134.78501400378309,273.01465162148349,175.67868396592684,299.90998649594849,168.68313490091415,100.91580649234291,60.174745533321534,126.01983970788092,55.389529696504916,316.91954815063082,153.34275333383056,128.53404218338423,71.021123618258812,1418.4357581505058,371.98118231975121,148.17219712213219,72.636079189339512,476.24468500971221,222.47022272654829,176.48512685209482,110.81064930772673]
[null,"Zero or negative income",{"$f":"C208","v":0},{"$f":"D208","v":16},{"$f":"E208","v":0},24,0,18,15,23,30,46,5,8,6,6,0,11,0,11,63,72,0,11,11,18,0,11]
[null,"Renter occupied housing units:",{"$f":"C209","v":411},{"$f":"D209","v":124},{"$f":"E209","v":6017},349,1298,221,808,220,213,87,142,53,38,27,215,92,95,44,3904,353,261,66,1954,238,117,67]
[null,"Less than 20 percent",{"$f":"C211+C215+C219+C223+C227","v":136},{"$f":"SQRT((D211^2)+(D215^2)+(D219^2)+(D223^2)+(D227^2))","v":103.9471019317037},{"$f":"SQRT((E211^2)+(E215^2)+(E219^2)+(E223^2)+(E227^2))","v":874.1893387590585},280.8540546262418,127.51470503436065,93.66429415737889,114.49454135459908,130.97709723459289,43.278170016764804,62.385895841928885,20.297783130184438,28.844410203711913,6.7082039324993694,20.591260281974002,42.01190307520001,57.087651904768336,21,32.557641192199412,267.80216578661197,174.96856860590705,21,34.058772731852805,347.22327110952688,182.52123164169149,27.820855486487112,47.602520941647619]
[null,"20 to 29 percent",{"$f":"C212+C216+C220+C224+C228","v":89},{"$f":"SQRT((D212^2)+(D216^2)+(D220^2)+(D224^2)+(D228^2))","v":76.863515402302539},{"$f":"SQRT((E212^2)+(E216^2)+(E220^2)+(E224^2)+(E228^2))","v":801.33575984102947},290.09308850780985,75.319320230602187,62.56996084384263,91.596943180435886,111.83469944520797,43.840620433565945,58.838762733422598,28.600699292150182,30.854497241083024,4,22.561028345356956,39.610604640676719,52.867759551545213,16,27.802877548915689,545.75177507727813,255.58951465191211,41.952353926806062,53.563046963368315,259.11387458027019,173.25992035089939,8,25.059928172283335]
[null,"30 percent or more",{"$f":"C213+C217+C221+C225+C229","v":181},{"$f":"SQRT((D213^2)+(D217^2)+(D221^2)+(D225^2)+(D229^2))","v":98.91410415102591},{"$f":"SQRT((E213^2)+(E217^2)+(E221^2)+(E225^2)+(E229^2))","v":1786.384896935708},402.40775340442934,546.39454609283939,189.10843450253614,297.94126938039318,175.65022060902743,50.159744815937813,64.288412641781719,40.607881008493905,43.116122274620196,17.088007490635061,31.937438845342623,54.451813560247928,52.38320341483518,42.190046219457976,37.722672227720032,1380.9742937506114,325.37209468545393,98.62048468751307,64.327288144301562,593.68425951847507,221.95495038408131,59,58.309518948453004]
[null,"Zero or negative income",{"$f":"C230","v":0},{"$f":"D230","v":16},{"$f":"E230","v":6},9,73,51,0,16,0,11,0,11,3,4,0,11,0,11,70,74,0,11,0,17,0,11]
[null,"No cash rent",{"$f":"C231","v":5},{"$f":"D231","v":11},{"$f":"E231","v":122},60,117,54,6,10,16,26,3,5,0,11,12,20,12,12,91,52,0,11,63,51,8,12]